{"text_format":"1","workbook":"xlsx","n_sheets":35,"sheets":["Translation","Data","1.Cover Page","2. ToC","3","4","5","6","7","8","9","10","11","12","13","14","15","16","17","18","19","20","21","22","23","24","25","26","27","28","29","30","31","32","33"],"not_rendered":{"charts":0,"images":2,"macros":1,"external_links":0,"defined_names":68,"comments":2,"pivot_tables":0},"unopened":[],"bounds":{"document_bytes":16777216,"sheet_cells":100000,"rows_first":2000,"rows_last":500,"rows_between":2000,"halvings":0,"cell_chars":16384,"cell_head_chars":4096},"cells_cut":0,"cells_raw":0,"read":"whole","date_system":"1900"}

{"sheet":"Translation","index":0,"n_rows":287,"n_cols":9,"rows_kept":287,"cut":false,"hidden":true,"merged":[[87,1,87,2],[100,1,100,2],[1,1,1,2],[15,1,15,2],[33,1,33,2],[49,1,49,2],[69,1,69,2],[224,0,232,0],[224,1,232,1],[224,2,232,2],[184,1,184,2],[186,1,186,2],[192,1,192,2],[194,1,194,2],[201,1,201,2],[204,1,204,2],[233,1,233,2],[237,1,237,2],[211,1,211,2],[217,1,217,2],[223,1,223,2],[179,1,179,2],[115,1,115,2],[120,1,120,2],[124,1,124,2],[130,1,130,2],[134,1,134,2],[140,1,140,2],[145,1,145,2],[150,1,150,2],[155,1,155,2],[167,1,167,2],[177,1,177,2]]}
[2,"English","French"]
[null,"Titles"]
["CANADA MORTGAGE AND HOUSING CORPORATION","CANADA MORTGAGE AND HOUSING CORPORATION","SOCIÉTÉ CANADIENNE D'HYPOTHÈQUES ET DE LOGEMENT"]
["National Mortgage Loan Insurance Business Supplement","National Mortgage Loan Insurance Business Supplement","Supplément national d’information sur les activités d’assurance prêt hypothécaire"]
["First Quarter","First Quarter","Premier trimestre"]
["Second Quarter","Second Quarter","Deuxième trimestre"]
["Third Quarter","Third Quarter","Troisième trimestre"]
["Fourth Quarter","Fourth Quarter","Quatrième trimestre"]
["March 31, 2019","March 31, 2019","31 mars 2019"]
["June 30, 2019","June 30, 2019","30 juin 2019"]
["September 30, 2019","September 30, 2019","30 septembre 2019"]
["December 31, 2019","December 31, 2019","31 décembre 2019"]
["March 31, 2020","March 31, 2020","31 mars 2020"]
["NATIONAL INSURED VOLUMES","NATIONAL INSURED VOLUMES","VOLUME DE PRÊTS ASSURÉS À L’ÉCHELLE NATIONALE"]
["National Insured Volumes ","National Insured Volumes","Volume de prêts assurés à l’échelle nationale"]
[null,"Tab Heading 1"]
["TRANSACTIONAL HOMEOWNER AND PORTFOLIO - LOAN-TO-VALUE RATIO","TRANSACTIONAL HOMEOWNER AND PORTFOLIO - LOAN-TO-VALUE RATIO","PROPRIÉTAIRES-OCCUPANTS (À L’UNITÉ) ET ASSURANCE DE PORTEFEUILLE - RAPPORT PRÊT-VALEUR"]
["TRANSACTIONAL HOMEOWNER AND PORTFOLIO - AMORTIZATION","TRANSACTIONAL HOMEOWNER AND PORTFOLIO - AMORTIZATION","PROPRIÉTAIRES-OCCUPANTS (À L’UNITÉ) ET ASSURANCE DE PORTEFEUILLE - AMORTISSEMENT"]
["TRANSACTIONAL HOMEOWNER AND PORTFOLIO - CREDIT SCORE","TRANSACTIONAL HOMEOWNER AND PORTFOLIO - CREDIT SCORE","PROPRIÉTAIRES-OCCUPANTS (À L’UNITÉ) ET ASSURANCE DE PORTEFEUILLE - POINTAGE DE CRÉDIT"]
["TRANSACTIONAL HOMEOWNER AND PORTFOLIO - PURCHASE PRICE","TRANSACTIONAL HOMEOWNER AND PORTFOLIO - PURCHASE PRICE","PROPRIÉTAIRES-OCCUPANTS (À L’UNITÉ) ET ASSURANCE DE PORTEFEUILLE - PRIX D'ACHAT"]
["TRANSACTIONAL HOMEOWNER AND PORTFOLIO - DWELLING TYPE","TRANSACTIONAL HOMEOWNER AND PORTFOLIO - DWELLING TYPE","PROPRIÉTAIRES-OCCUPANTS (À L’UNITÉ) ET ASSURANCE DE PORTEFEUILLE – TYPE DE LOGEMENT"]
["TRANSACTIONAL HOMEOWNER AND PORTFOLIO - URBAN/RURAL","TRANSACTIONAL HOMEOWNER AND PORTFOLIO - URBAN/RURAL","PROPRIÉTAIRES-OCCUPANTS (À L’UNITÉ) ET ASSURANCE DE PORTEFEUILLE - URBAIN/RURAL"]
["TRANSACTIONAL HOMEOWNER AND PORTFOLIO - NEW/EXISTING","TRANSACTIONAL HOMEOWNER AND PORTFOLIO - NEW/EXISTING","PROPRIÉTAIRES-OCCUPANTS (À L’UNITÉ) ET ASSURANCE DE PORTEFEUILLE - NEUF/EXISTANT"]
["TRANSACTIONAL HOMEOWNER AND PORTFOLIO - GDS/TDS","TRANSACTIONAL HOMEOWNER AND PORTFOLIO - GDS/TDS","PROPRIÉTAIRES-OCCUPANTS (À L’UNITÉ) ET ASSURANCE DE PORTEFEUILLE - ABD/ATD"]
["TRANSACTIONAL HOMEOWNER AND PORTFOLIO - INTEREST RATE TYPE","TRANSACTIONAL HOMEOWNER AND PORTFOLIO - INTEREST RATE TYPE","PROPRIÉTAIRES-OCCUPANTS (À L’UNITÉ) ET ASSURANCE DE PORTEFEUILLE – TYPE DE TAUX D’INTÉRÊT"]
["TRANSACTIONAL HOMEOWNER AND PORTFOLIO - ARREARS","TRANSACTIONAL HOMEOWNER AND PORTFOLIO - ARREARS","PROPRIÉTAIRES-OCCUPANTS (À L’UNITÉ) ET ASSURANCE DE PORTEFEUILLE – PRÊTS EN SOUFFRANCE"]
["TRANSACTIONAL HOMEOWNER AND PORTFOLIO - CLAIMS PAID","TRANSACTIONAL HOMEOWNER AND PORTFOLIO - CLAIMS PAID","PROPRIÉTAIRES-OCCUPANTS (À L’UNITÉ) ET ASSURANCE DE PORTEFEUILLE - RÈGLEMENTS PAYÉS"]
["MULTI-UNIT RESIDENTIAL - LOAN-TO-VALUE","MULTI-UNIT RESIDENTIAL - LOAN-TO-VALUE","IMMEUBLES COLLECTIFS RÉSIDENTIELS - RAPPORT PRÊT-VALEUR"]
["MULTI-UNIT RESIDENTIAL - AMORTIZATION","MULTI-UNIT RESIDENTIAL - AMORTIZATION","IMMEUBLES COLLECTIFS RÉSIDENTIELS - AMORTISSEMENT"]
["MULTI-UNIT RESIDENTIAL - DWELLING TYPE","MULTI-UNIT RESIDENTIAL - DWELLING TYPE","IMMEUBLES COLLECTIFS RÉSIDENTIELS – TYPE DE LOGEMENT"]
["MULTI-UNIT RESIDENTIAL - URBAN/RURAL","MULTI-UNIT RESIDENTIAL - URBAN/RURAL","IMMEUBLES COLLECTIFS RÉSIDENTIELS - URBAIN/RURAL"]
["MULTI-UNIT RESIDENTIAL - NEW/EXISTING","MULTI-UNIT RESIDENTIAL - NEW/EXISTING","IMMEUBLES COLLECTIFS RÉSIDENTIELS - NEUF/EXISTANT"]
["MULTI-UNIT RESIDENTIAL - ARREARS AND CLAIMS PAID","MULTI-UNIT RESIDENTIAL - ARREARS RATE AND CLAIMS PAID","IMMEUBLES COLLECTIFS RÉSIDENTIELS –  PRÊTS EN SOUFFRANCE ET RÈGLEMENTS PAYÉS"]
[null,"Tables of Contents"]
["Table of Contents","Table of Contents","Table des matières"]
["Transactional Homeowner and Portfolio","Transactional Homeowner and Portfolio","Propriétaires-occupants (à l’unité) et assurance de portefeuille"]
["Multi-Unit Residential ","Multi-Unit Residential ","Immeubles collectifs résidentiels"]
["Loan-to-Value","Loan-to-Value","Rapport prêt-valeur"]
["Amortization","Amortization","Période d'amortissement"]
["Credit Score","Credit Score","Pointage de crédit"]
["Purchase Price","Purchase Price","Prix d'achat"]
["Dwelling Type","Dwelling Type","Type de logement"]
["Urban/Rural ","Urban/Rural ","Urbain/Rural"]
["New/Existing ","New/Existing ","Neuf/Existant"]
["GDS/TDS","GDS/TDS","Rapport d’amortissement brut de la dette/Rapport d'amortissement total de la dette"]
["Interest Rate Type","Interest Rate Type","Type de taux d’intérêt"]
["Arrears Rate","Arrears Rate","Taux de prêts en souffrance"]
["Claims Paid ","Claims Paid ","Règlements payés"]
["Arrears Rate and Claims Paid ","Arrears Rate and Claims Paid ","Taux de prêts en souffrance et règlements payés"]
[null,"Date/ Time "]
["As at","As at","Aux"]
["Q1 2017","Q1 2017","T1 2017"]
["Q2 2017","Q2 2017","T2 2017"]
["Q3 2017","Q3 2017","T3 2017"]
["Q4 2017","Q4 2017","T4 2017"]
["Q1 2018","Q1 2018","T1 2018"]
["Q2 2018","Q2 2018","T2 2018"]
["Q3 2018","Q3 2018","T3 2018"]
["Q4 2018","Q4 2018","T4 2018"]
["Q1 2019","Q1 2019","T1 2019"]
["Q2 2019","Q2 2019","T2 2019"]
["Q3 2019","Q3 2019","T3 2019"]
["Q4 2019","Q4 2019","T4 2019"]
["Q1 2020","Q1 2020","T1 2020"]
["YTD 2020","YTD 2020","Cumul 2020"]
["YTD 2019","YTD 2019","Cumul 2019"]
["YTD 2018","YTD 2018","Cumul 2018"]
["YTD 2017","YTD 2017","Cumul 2017"]
["YTD","YTD","Cumul"]
[null,"Recurring "]
["Transactional Homeowner ","Transactional Homeowner ","Propriétaires-occupants, à l’unité"]
["TRANSACTIONAL HOMEOWNER","TRANSACTIONAL HOMEOWNER","PROPRIÉTAIRES-OCCUPANTS, À L’UNITÉ"]
["PORTFOLIO","PORTFOLIO","ASSURANCE DE PORTEFEUILLE"]
["Portfolio ","Portfolio ","Assurance de portefeuille "]
["MULTI-UNIT RESIDENTIAL","MULTI-UNIT RESIDENTIAL","IMMEUBLES COLLECTIFS RÉSIDENTIELS"]
["Multi-Unit Residential ","Multi-Unit Residential ","Immeubles collectifs résidentiels "]
["Overall","Overall","Tous les types de prêts"]
[null,"Footnote"]
["Portfolio distributions do not include substitutions volumes for Portfolio insurance.","Portfolio distributions do not include substitutions volumes for Portfolio insurance.","La répartition des prêts hypothécaires pour l'assurance de portefeuille ne comprend pas les prêts de remplacement. "]
["Distribution based on number of units, not number of loans.","Distribution based on number of units, not number of loans.","La répartition est établie d'après le nombre de logements, plutôt que le nombre de prêts assurés."]
["Distribution based on loan amounts, not number of loans.","Distribution based on loan amounts, not number of loans.","La répartition est établie d'après le montant, plutôt que le nombre de prêts assurés."]
["Distribution based on number of loans, not loan amounts.","Distribution based on number of loans, not loan amounts.","Distribution basée sur le nombre de prêts et non sur le montant des prêts."]
["Distribution based on outstanding loan amounts, not number of loans.","Distribution based on outstanding loan amounts, not number of loans.","La répartition est établie d'après le solde, plutôt que le nombre de prêts assurés."]
["The sum of all breakdown categories may not add up to 100 due to rounding.","The sum of all breakdown categories may not add up to 100 due to rounding.","Les chiffres ayant été arrondis, il se peut que la somme de l'ensemble des catégories n'égale pas 100 %."]
["¹ The sum of all breakdown categories may not add up to total due to rounding.","¹ The sum of all breakdown categories may not add up to total due to rounding.","¹ Les chiffres ayant été arrondis, il se peut que la somme de l'ensemble des catégories n'égale pas 100 %."]
["Portfolio-insured Line of Credit loans with zero ($0.00) balance were included in the number of loans in force starting from Q2 2018.","Portfolio-insured Line of Credit loans with zero ($0.00) balance were included in the number of loans in force starting from Q2 2018.","Les prêts liés à une marge de crédit couverts par une assurance de portefeuille ayant un solde nul (0,00 $) sont inclus dans le nombre des prêts en cours depuis le deuxième trimestre de 2018."]
["Not Available","Not Available","Non disponible "]
[null,"Province"]
["Newfoundland","Newfoundland and Labrador","Terre-Neuve-et-Labrador"]
["Newfoundland and Labrador","Newfoundland and Labrador","Terre-Neuve-et-Labrador"]
["Prince Edward Island","Prince Edward Island","Île-du-Prince-Édouard"]
["Nova Scotia","Nova Scotia","Nouvelle-Écosse"]
["New Brunswick","New Brunswick","Nouveau-Brunswick"]
["Quebec","Quebec","Québec"]
["Ontario","Ontario","Ontario"]
["Manitoba","Manitoba","Manitoba"]
["Saskatchewan","Saskatchewan","Saskatchewan"]
["Alberta","Alberta","Alberta"]
["British Columbia","British Columbia","Colombie-Britannique"]
["Territories","Territories","Territoires"]
[null,"Insured Volumes"]
["Loans insured in period","Loans insured in period","Prêts assurés au cours de la période"]
["Insurance-in-force","Insurance-in-force","Contrats d’assurance en vigueur"]
["Total Insured Volumes (units)¹","Total Insured Volumes (units)¹","Volume total d'assurance (nbre de logements)¹"]
["Total Insured Volumes ($M)","Total Insured Volumes ($M)","Volume total d'assurance (M$)"]
["Portfolio (New)","Portfolio (New)","Assurance de portefeuille (nouveaux prêts)"]
["Portfolio (Substitutions)","Portfolio (Substitutions)","Assurance de portefeuille (prêts de substitution)"]
["Affordable","Affordable","Abordable"]
["Market","Market","Marché"]
["Loans insured during period by province (%)","Loans insured during period by province (%)","Prêts hypothécaires assurés au cours de la période selon la province (%)"]
["Insurance-in-force by province (%)","Insurance-in-force by province (%)","Contrats d’assurance en vigueur selon la province (%)"]
["Insurance-in-force (loans)","Insurance-in-force (loans)","Contrats d’assurance en vigueur (nbre de prêts assurés)"]
["Insurance-in-force ($B)","Insurance-in-force ($B)","Contrats d’assurance en vigueur (G$)"]
[" The sum of all breakdown categories may not add up to total due to rounding."," The sum of all breakdown categories may not add up to total due to rounding."," Les chiffres ayant été arrondis, il se peut que la somme de l’ensemble des catégories n’égale pas le volume total."]
["Distributions do not include substitutions volumes for Portfolio insurance.","Distributions do not include substitutions volumes for Portfolio insurance.","La répartition des prêts hypothécaires pour l'assurance de portefeuille ne comprend pas les prêts de remplacement. "]
[null,"LTV (NBW)"]
["Loans insured in period by loan-to-value (LTV) ratio based on original property value (%)","Loans insured in period by loan-to-value (LTV) ratio based on original property value (%)","Prêts hypothécaires assurés au cours de la période selon le rapport prêt-valeur (RPV) établi d’après la valeur initiale de la propriété (%)"]
["Average loan-to-value","Average loan-to-value","Rapport prêt-valeur moyen "]
["Average equity","Average equity","Avoir propre foncier moyen "]
["Average equity by province","Average equity by province","Avoir propre foncier moyen selon la province"]
[null,"LTV (IIF Orig.)"]
["Based on Loan Amounts and Property Values at Origination¹","Based on Loan Amounts and Property Values at Origination¹","D'après le montant du prêt et la valeur de la propriété à l'initiation¹"]
["Insurance-in-force by loan-to-value (LTV) ratio based on original property value (%)","Insurance-in-force by loan-to-value (LTV) ratio based on original property value (%)","Contrats d’assurance en vigueur selon le rapport prêt-valeur établi d'après la valeur originale de la propriété (%)"]
["LTV calculated on the basis of loan amounts and property values at insurance origination.","LTV calculated on the basis of loan amounts and property values at insurance origination.","Le RPV est fondé sur le montant du prêt et la valeur de la propriété à l'initiation de l'assurance."]
[null,"LTV (IIF Updated Price)"]
["Percentage distribution of loans insured in period by \nloan-to-value (LTV) ratio based on updated property value","Percentage distribution of loans insured in period by \nloan-to-value (LTV) ratio based on updated property value","Répartition en pourcentage des prêts hypothécaires assurés au cours de la période selon le rapport prêt-valeur basé sur la valeur courante de la propriété"]
["Insurance-in-force by loan-to-value (LTV) ratio based on updated property value (%)","Insurance-in-force by loan-to-value (LTV) ratio based on updated property value (%)","Contrats d’assurance en vigueur selon le rapport prêt-valeur établi d'après la valeur courante de la propriété (%)"]
["Based on Outstanding Loan Amounts and Updated Property Value¹","Based on Outstanding Loan Amounts and Updated Property Value¹","D'après le solde du prêt et la valeur courante de la propriété¹"]
["LTV calculated on the basis of outstanding loan amounts and estimated updated property values reflecting changes in local resale prices.","LTV calculated on the basis of outstanding loan amounts and estimated updated property values reflecting changes in local resale prices.","Le RPV est fondé sur le solde du prêt et la valeur courante estimative de la propriété en tenant compte des variations des prix de revente sur le marché local."]
["Distribution based on outstanding loan amounts, not number of loans.","Distribution based on outstanding loan amounts, not number of loans.","La répartition est établie d'après le solde, plutôt que le nombre de prêts assurés."]
[null,"Amortization (NBW)"]
["Loans insured during the period by amortization (years) at origination (%)","Loans insured during the period by amortization (years) at origination (%)","Prêts hypothécaires assurés au cours de la période selon la période d’amortissement (en années) à l'initiation (%)"]
["Average amortization period","Average amortization period","Période d’amortissement moyenne"]
["Average amortization period by province","Average amortization period by province","Période d’amortissement moyenne selon la province"]
[null,"Amortization (Orig - IIF)"]
["Insurance-in-force by amortization (years) at origination (%)","Insurance-in-force by amortization (years) at origination (%)","Contrats d’assurance en vigueur selon la période d’amortissement (en années) à l'initiation (%)"]
["Amortization at Origination","Amortization at Origination","Période d'amortissement à l'initiation"]
["Percentage distribution of insurance-in-force by amortization at origination (years)","Percentage distribution of insurance-in-force by amortization at origination (years)","Répartition en pourcentage des contrats d’assurance en vigueur selon la période d’amortissement à l'initiation (en années)"]
["Average amortization period","Average amortization period","Période d’amortissement moyenne"]
["Average amortization period by province","Average amortization period by province","Période d’amortissement moyenne selon la province"]
[null,"Amortization (Remaining - IIF)"]
["Insurance-in-force by remaining amortization (years) (%)","Insurance-in-force by remaining amortization (years) (%)","Contrats d’assurance en vigueur selon la période d’amortissement résiduelle (en années) (%)"]
["Remaining Amortization","Remaining Amortization","Période d'amortissement résiduelle"]
["Average remaining amortization period","Average remaining amortization period","Période d’amortissement résiduelle moyenne"]
["Average remaining amortization period by province","Average remaining amortization period by province","Période d’amortissement résiduelle moyenne selon la province"]
[null,"Credit Score (NBW)"]
["Loans insured during period by credit score at origination (%)","Loans insured during period by credit score at origination (%)","Prêts hypothécaires assurés au cours de la période selon le pointage de crédit à l’initiation (%)"]
["No credit score","No credit score","Aucun pointage de crédit"]
["Average credit score at origination","Average credit score at origination","Pointage de crédit moyen à l'initiation "]
["Average credit score at origination by province","Average credit score at origination by province","Pointage de crédit moyen à l'initiation selon la province"]
[null,"Credit Score (IIF)"]
["Insurance-in-force by credit score at origination (%)","Insurance-in-force by credit score at origination (%)","Contrats d’assurance en vigueur selon le pointage de crédit à l'initiation (%)"]
["No credit score","No credit score","Aucun pointage de crédit"]
["Average credit score at origination","Average credit score at origination","Pointage moyen à l'initiation "]
["Average credit score at origination by province","Average credit score at origination by province","Pointage moyen à l'initiation selon la province"]
[null,"Purchase Price (NBW)"]
["Loans insured in period by purchase price (%)","Loans insured in period by purchase price (%)","Prêts hypothécaires assurés au cours de la période selon le prix d'achat (%)"]
["Over $1,000,000","Over $1,000,000","Plus de 1 000 000 $"]
["Over $850,000 to $1,000,000","Over $850,000 to $1,000,000","Plus de 850 000 $ à 1 000 000 $"]
["Over $600,000 to $850,000","Over $600,000 to $850,000","Plus de 600 000 $ à 850 000 $"]
["Over $500,000 to $600,000","Over $500,000 to $600,000","Plus de 500 000 $ à 600 000 $"]
["Over $400,000 to $500,000","Over $400,000 to $500,000","Plus de 400 000 $ à 500 000 $"]
["Over $300,000 to $400,000","Over $300,000 to $400,000","Plus de 300 000 $ à 400 000 $"]
["Over $200,000 to $300,000","Over $200,000 to $300,000","Plus de 200 000 $ à 300 000 $"]
["$200,000 or under","$200,000 or under","200 000 $ ou moins"]
["Average purchase price amount ($)","Average purchase price amount ($)","Prix d'achat moyen ($)"]
["Average purchase price amount ($) by province","Average purchase price amount ($) by province","Prix d'achat moyen ($) selon la province"]
[null,"DWELLING TYPE (NBW)"]
["Loans insured in period by dwelling type (%)","Loans insured in period by dwelling type (%)","Prêts hypothécaires assurés au cours de la période selon le type de logement (%)"]
["Single by province (%)","Single by province (%)","Logements individuels selon la province (%)"]
["Single","Single","Logement unifamilial"]
["Row","Row","Maison en rangée"]
["Apartment","Apartment","Appartement"]
["Semi-detached","Semi-detached","Jumelé"]
["Plexes","Plexes","Plex"]
["Retirement/Nursing homes","Retirement/Nursing homes","Maison de retraite/de repos"]
["Other","Other","Autre"]
[null,"DWELLING TYPES (IIF)"]
["Insurance-in-force by dwelling type (%)","Insurance-in-force by dwelling type (%)","Contrats d’assurance en vigueur selon le type de logement (%)"]
[null,"URBAN/RURAL (NBW)"]
["Loans insured in period by urban and rural type (%)","Loans insured in period by urban and rural type (%)","Prêts hypothécaires assurés au cours de la période selon le milieu urbain/rural (%)"]
["Urban","Urban","Urbain"]
["Rural","Rural","Rural"]
["Urban properties by province (%)","Urban properties by province (%)","Propriétés urbaines selon la province (%)"]
[null,"URBAN/RURAL (IIF)"]
["Insurance-in-force by urban and rural type (%)","Insurance-in-force by urban and rural type (%)","Contrats d’assurance en vigueur selon le milieu urbain/rural (%)"]
[null,"NEW/EXISTING (NBW)"]
["Loans insured in period by new and existing type (%)","Loans insured in period by new and existing type (%)","Prêts hypothécaires assurés au cours de la période selon le type neuf/existant (%)"]
["New","New","Neuf"]
["Existing","Existing","Existant"]
["Apartments by province (%)","Apartments by province (%)","Appartements selon la province (%)"]
["Existing properties by province (%)","Existing properties by province (%)","Propriétés existantes selon la province (%)"]
[null,"NEW/EXISTING (IIF)"]
["Insurance-in-force by new and existing type (%)","Insurance-in-force by new and existing type (%)","Contrats d’assurance en vigueur selon le type neuf/existant (%)"]
[null,"GDS/TDS (NBW)"]
["Loans insured in period by borrower average gross debt service ratio (GDS) (%)","Loans insured in period by borrower average gross debt service ratio (GDS) (%)","Prêts hypothécaires assurés au cours de la période selon le rapport d’amortissement brut de la dette (ABD) moyen des emprunteurs détenant un prêt assuré par la SCHL (%)"]
["Average Gross Debt Service Ratio (GDS)","Average Gross Debt Service Ratio (GDS)","Rapport d'amortissement brut de la dette (ABD) moyen"]
["Average Gross Debt Service Ratio (GDS) by province","Average Gross Debt Service Ratio (GDS) by province","Rapport d'amortissement brut de la dette (ABD) moyen selon la province"]
["Loans insured in period by borrower average total debt service ratio (TDS) (%)","Loans insured in period by borrower average total debt service ratio (TDS) (%)","Prêts hypothécaires assurés au cours de la période selon le rapport d’amortissement total de la dette (ATD) moyen des emprunteurs détenant un prêt assuré par la SCHL (%)"]
["Average Total Debt Service Ratio (TDS)","Average Total Debt Service Ratio (TDS)","Rapport d'amortissement total de la dette (ATD) moyen"]
["Average Total Debt Service Ratio (TDS) by province","Average Total Debt Service Ratio (TDS) by province","Rapport d'amortissement total de la dette (ATD) moyen selon la province"]
[null,"GDS/TDS (IIF)"]
["Insurance-in-force by CMHC  borrower average gross debt service ratio (GDS) at origination (%)","Insurance-in-force by CMHC  borrower average gross debt service ratio (GDS) at origination (%)","Contrats d’assurance en vigueur selon le rapport d’amortissement brut de la dette (ABD) moyen des emprunteurs détenant un prêt assuré par la SCHL établi à l’initiation (%)"]
["Insurance-in-force by CMHC borrower average total debt service ratio (TDS) at origination (%)","Insurance-in-force by CMHC borrower average total debt service ratio (TDS) at origination (%)","Contrats d’assurance en vigueur selon le rapport d’amortissement total de la dette (ATD) moyen des emprunteurs détenant un prêt assuré par la SCHL établi à l’initiation (%)"]
[null,"Interest Rates Type"]
["Interest rate type for homeowner purchase loans at origination (%)","Interest rate type for homeowner purchase loans at origination (%)","Prêts achat pour propriétaires-occupants selon le type de taux d'intérêt à l'initiation (%)"]
["Distribution of interest rate type for homeowner purchase loans at origination","Distribution of interest rate type for homeowner purchase loans at origination","Répartition des prêts achat pour propriétaires-occupants selon le type de taux d'intérêt à l'initiation"]
["Fixed","Fixed","Fixe"]
["Variable","Variable","Variable"]
["Purchase loans that are fixed interest rate at origination by province (%)","Purchase loans that are fixed interest rate at origination by province (%)","Prêts achat à taux fixe à l'initiation selon la province (%)"]
["Figures have been refreshed due to data sources consolidation. Slight differences from previous versions of the report may be found.","Figures have been refreshed due to data sources consolidation. Slight differences from previous versions of the report may be found.","Les résultats ont été actualisés en raison de la consolidation de sources de données, ce qui peut expliquer de légères différences par rapport aux versions précédentes du rapport."]
[null,"Arrears"]
["Arrears","Arrears","Prêts en souffrance"]
["Number of Loans in Arrears","Number of Loans in Arrears","Nombre de prêts en souffrance"]
["Arrears Rate","Arrears Rate","Taux de prêts en souffrance"]
["By province","By province","Répartition selon la province",null,null,null,null,null,"YTD 2018"]
["Canada","Canada","Canada"]
[null,"Claims Paid"]
["Claims Paid","Claims Paid","Règlements payés"]
["Arrears and Claims paid","Arrears and claims paid","Arrérages et Règlements payés"]
["PORTFOLIO","PORTFOLIO","ASSURANCE DE PORTEFEUILLE"]
["Due to the re-freshing of data in Q1 2018, some differences  from previously reported figures are present. This is due to cancelation of claims which can occur up to 12 months after the original claim was received.","Due to the re-freshing of data in Q1 2018, some differences  from previously reported figures are present. This is due to cancelation of claims which can occur up to 12 months after the original claim was received.","Les données ayant été mises à jour au premier trimestre de 2018, il y a quelques écarts par rapport aux chiffres publiés précédemment. Cette différence s’explique par le fait qu’une demande de règlement peut être annulée au plus tard 12 mois après sa réception initiale."]
["Provincial figures can not be disclosed due to confidentiality reasons.","Provincial figures can not be disclosed due to confidentiality reasons.","Les données provinciales ne peuvent être divulguées pour des raisons de confidentialité."]
[null,"COVER PAGE BLURB"]
["To supplement CMHC’s unaudited quarterly consolidated financial statements, which are prepared in accordance with IFRS, CMHC uses non-IFRS measures to analyse its performance. The following Mortgage Loan Insurance Business Supplement is prepared for the first quarter ending 31 March and is intended to help readers better understand CMHC’s insurance activities. CMHC believes that these performance measures provide meaningful information that enables greater transparency and clarity with respect to CMHC’s residential mortgage insurance underwriting practices.","To supplement CMHC’s unaudited quarterly consolidated financial statements, which are prepared in accordance with IFRS, CMHC uses non-IFRS measures to analyse its performance. The following Mortgage Loan Insurance Business Supplement is prepared for the first quarter ending 31 March and is intended to help readers better understand CMHC’s insurance activities. CMHC believes that these performance measures provide meaningful information that enables greater transparency and clarity with respect to CMHC’s residential mortgage insurance underwriting practices.","Afin de compléter ses états financiers consolidés trimestriels non audités, qui sont préparés conformément aux IFRS, la SCHL a recours à des mesures non définies par les IFRS pour analyser son rendement. Le présent supplément d’information sur les activités d’assurance prêt hypothécaire vise le premier trimestre clos le 31 mars et a pour but d’aider le lecteur à mieux comprendre les activités d’assurance de la SCHL. La Société est d’avis que ces mesures de rendement fournissent des informations utiles qui se traduisent par une plus grande transparence et davantage de clarté quant aux pratiques de souscription d’assurance prêt hypothécaire à l’habitation qu’elle applique."]
[]
[]
[]
[]
[]
[]
[]
[]
[null,"Extra"]
["Back to Table of Contents","Back to Table of Contents","Retour à la table des matières"]
["Glossary","Glossary","Glossaire"]
["Insurance In-force product level dollar amounts have been rounded to add up to the total insurance in-force.","Insurance In-force product level dollar amounts have been rounded to add up to the total insurance in-force.","Les montants des produits d’assurance en vigueur ont été arrondis de manière à correspondre au total des contrats d’assurance en vigueur."]
[null,"Glossary"]
["Amortization","Amortization","Période d'amortissement"]
["The period of time required to reduce a debt to zero when payments are made regularly.","The period of time required to reduce a debt to zero when payments are made regularly.","Période nécessaire pour rembourser entièrement la dette, lorsque les versements hypothécaires sont effectués à temps."]
["Arrears Rate  ","Arrears Rate  ","Taux de prêts en souffrance"]
["All loans more than 90 days past due as a percentage of outstanding insured loans.","All loans more than 90 days past due as a percentage of outstanding insured loans.","Rapport, exprimé en pourcentage, de tous les prêts en souffrance depuis plus de 90 jours au nombre de prêts assurés en cours de remboursement."]
["Claims Paid","Claims Paid","Règlements payés"]
["The total number of claims paid to the lender. The figures reflect claims paid year-to-date.","The total number of claims paid to the lender. The figures reflect year-to-date claims paid volume.","Le nombre total de règlements payés au prêteur. Les données reflètent le volume payé depuis le début de l'année."]
["Credit Score","Credit Score","Pointage de crédit"]
["The credit score is based on credit report information sourced from Canadian credit bureaus, i.e. Equifax and TransUnion. There are no credit score data available for Multiples. The credit score reported is obtained during the original underwriting process.","The credit score is based on credit report information sourced from Canadian credit bureaus, i.e. Equifax and TransUnion. There are no credit score data available for Multiples. The credit score reported is obtained during the original underwriting process.","Le pointage de crédit est basé sur les informations de crédit fournies par les bureaux de crédit canadiens, à savoir Equifax et TransUnion. Les données de crédit ne sont pas disponibles pour les immeubles collectifs."]
["The credit score is based on credit report information sourced from Canadian credit bureaus, i.e. Equifax and TransUnion.","The credit score is based on credit report information sourced from Canadian credit bureaus, i.e. Equifax and TransUnion.","Le pointage de crédit est basé sur les informations de crédit fournies par les bureaux de crédit canadiens, à savoir Equifax et TransUnion."]
["There are no credit score data available for Multiples.","There are no credit score data available for Multiples.","Les données de crédit ne sont pas disponibles pour les immeubles collectifs."]
["The credit score reported is obtained during the original underwriting process.","The credit score reported is obtained during the original underwriting process.","Le pointage de crédit indiqué est obtenu lors du processus de souscription initial."]
["Gross Debt Service (GDS) Ratio","Gross Debt Service (GDS) Ratio","Rapport d’amortissement brut de la dette (ABD)"]
["The percentage of the borrower's gross income that will be used for monthly payments of principal, interest, taxes, heating costs, and half of any condominium, pad rent / lot rent fees, when applicable.","The percentage of the borrower's gross income that will be used for monthly payments of principal, interest, taxes, heating costs, and half of any condominium, pad rent / lot rent fees, when applicable.","Le pourcentage du revenu brut de l'emprunteur qui sera utilisé pour les paiements mensuels du capital, des intérêts, des taxes, des frais de chauffage et de la moitié des frais de copropriété, des frais de loyer et de loyer, le cas échéant."]
["Provided by the lender during the original underwriting process.","Provided by the lender during the original underwriting process.","Fourni par le prêteur au cours du processus de souscription initial."]
["Dwelling Type","Dwelling Type","Type de logement"]
["For Transactional Homeowner and Portfolio:","For Transactional Homeowner and Portfolio:","Pour propriétaires-occupants et assurance de portefeuille:"]
["Type of physical structure and style of residential house and includes Single, Row (i.e. Townhouses), Apartment, Semi-detached, Plexes and Others. Plexes include Duplex, Triplex and Four Plex buildings.","Type of physical structure and style of residential house and includes Single, Row (i.e. Townhouses), Apartment, Semi-detached, Plexes and Others. Plexes include Duplex, Triplex and Four Plex buildings.","Type de structure physique et style d'habitation : comprend logement unifamlial, en rangée, (i.e. maisons en rangée), appartement, jumelé, plex et autres. Les plex comprennent les duplex, triplex et quadriplex."]
["For Multi-Unit:","For Multi-Unit:","Pour Immeubles collectifs résidentiels:"]
["Type of physical structure and style of residential house and includes Apartment, Retirement/Nursing homes, and Others.","Type of physical structure and style of residential house and includes Apartment, Retirement/Nursing homes, and Others.","Type de structure physique et style d'habitation : comprend appartement, maisons de retraite/de repos, et autres."]
["Insurance-in-force","Insurance-in-force","Contrats d’assurance en vigueur"]
["The outstanding balance of all mortgages insured as reported by the lender on a quarterly basis. CMHC’s insurance in-force has a legislated limit of $600 billion.","The outstanding balance of all mortgages insured as reported by the lender on a quarterly basis. CMHC’s insurance in-force has a legislated limit of $600 billion.","Solde impayé de tous les prêts hypothécaires assurés. Communiqué par le prêteur tous les trimestres. La loi plafonne les contrats d’assurance en vigueur de la SCHL à 600 milliards de dollars."]
["Insured Volume","Insured Volume","Volume de prêts assurés"]
["Number of loans for which a mortgage insurance premium was received.","Number of loans for which a mortgage insurance premium was received.","Nombre de prêts pour lesquels une prime d'assurance hypothécaire a été reçue."]
["Interest Rate Type    ","Interest Rate Type    ","Type de taux d’intérêt"]
["Interest rate (rate of the cost of borrowing money from lenders) type which includes fixed or variable interest rates. ","Interest rate (rate of the cost of borrowing money from lenders) type which includes fixed or variable interest rates. ","Type de taux d'intérêt (taux du coût d'emprunt auprès d'un prêteur) qui comprend des taux d'intérêt fixes ou variables."]
["A fixed interest rate remains unchanged for a given term or period of time while a floating interest rate fluctuates with general market conditions. ","A fixed interest rate remains unchanged for a given term or period of time while a floating interest rate fluctuates with general market conditions. ","Un taux d'intérêt fixe demeure inchangé pour une durée ou une période donnée, tandis qu'un taux d'intérêt variable fluctue en fonction des conditions générales du marché."]
["Provided by the lender during the original underwriting process.","Provided by the lender during the original underwriting process.","Fourni par le prêteur au cours du processus de souscription initial."]
["Loan Amount","Loan Amount","Montant du prêt"]
["Amount of the mortgage loans insured by CMHC which typically includes the mortgage loan insurance premium. ","Amount of the mortgage loans insured by CMHC which typically includes the mortgage loan insurance premium. ","Montant des prêts hypothécaires assurés par la SCHL. Comprend généralement la prime d’assurance hypothécaire."]
["Loan to Value ","Loan to Value ","Ratio prêt-valeur"]
["The ratio of the loan to the lending value of a property expressed as a percentage. For example, the loan-to-value ratio of a loan for $25,000 on a home which costs $100,000 is 25%.","The ratio of the loan to the lending value of a property expressed as a percentage. For example, the loan-to-value ratio of a loan for $25,000 on a home which costs $100,000 is 25%.","Rapport entre le montant du prêt et la valeur d’emprunt, exprimé en pourcentage. Par exemple, dans le cas d’un prêt de 25 000 $ visant une propriété qui coûte 100 000 $, le rapport prêt-valeur est de 25 %."]
["Multi-Unit Residential","Multi-Unit Residential","Immeubles collectifs résidentiels"]
["Default insurance for loans for the construction, purchase and refinancing of multi-unit residential properties consisting of 5 or more units. ","Default insurance for loans for the construction, purchase and refinancing of multi-unit residential properties consisting of 5 or more units. ","Assurance prêt hypothécaire consentie pour la construction, l’achat et le refinancement d’immeubles collectifs résidentiels comptant 5 logements ou plus. "]
["These properties include rental buildings, licensed care facilities and retirement homes, affordable housing projects and purpose-built student housing.","These properties include rental buildings, licensed care facilities and retirement homes, affordable housing projects and purpose-built student housing.","Il peut s’agir d’immeubles locatifs, de centres d’hébergement et de résidences pour personnes âgées, d’ensembles de logements abordables ou de logements pour étudiants."]
["New/Existing Type","New/Existing Type","Neuf/Existant"]
["Determines whether the property was a new construction or existing building, at time of mortgage insurance initiation.","Determines whether the property was a new construction or existing building, at time of mortgage insurance initiation.","Détermine si la propriété était une construction ou un bâtiment existant au moment de l'initiation de l'assurance prêt hypothécaire."]
["Portfolio","Portfolio","Assurance de portefeuille"]
["Default insurance for pools of loans with loan-to-value ratio less than or equal to 80% secured by residential properties of 4 or fewer units, previously uninsured on a transactional basis and that must be under repayment. ","Default insurance for pools of loans with loan-to-value ratio less than or equal to 80% secured by residential properties of 4 or fewer units, previously uninsured on a transactional basis and that must be under repayment. ","Assurance prêt hypothécaire pour les blocs de prêts dont le rapport prêt/valeur est inférieur ou égal à 80 % et garantie par des propriétés résidentielles de 4 logements ou moins, auparavant non assurées à l'unité et devant être remboursées."]
["Mortgage insurance premium is assumed by the lender.","Mortgage insurance premium is assumed by the lender.","La prime d'assurance hypothécaire est à la charge du prêteur."]
["Purchase Price","Purchase Price","Prix d’achat"]
["The price of the property at the time of purchase (as provided by Lender).","The price of the property at the time of purchase (as provided by Lender).","Prix de la propriété au moment de l’achat (donnée fournie par le prêteur). "]
["Rural","Rural","Rural"]
["Area where the census population count is less than 10,000.","Area where the census population count is less than 10,000.","Se dit d’un milieu qui, selon le recensement, compte moins de 10 000 habitants."]
["Total Debt Service (TDS) Ratio","Total Debt Service (TDS) Ratio","Rapport d’amortissement total de la dette (ATD)"]
["The percent of gross annual income required to cover all payments for housing and all other debts, such as car payments or credit card payments. Provided by the lender during the original underwriting process.","The percent of gross annual income required to cover all payments for housing and all other debts, such as car payments or credit card payments. Provided by the lender during the original underwriting process.","Le pourcentage du revenu annuel brut requis pour couvrir tous les paiements pour le logement et toutes les autres dettes, telles que les prêts auto ou les paiements sur une carte de crédit. Fourni par le prêteur au cours du processus de souscription initiale."]
["Transactional Homeowner","Transactional Homeowner","Propriétaires-occupants (à l’unité)"]
["Default insurance for loans secured by residential properties of 4 or fewer units issued at the time the loan is originated the cost of which is usually assumed by the borrower.","Default insurance for loans secured by residential properties of 4 or fewer units issued at the time the loan is originated the cost of which is usually assumed by the borrower.","L'assurance prêt hypothécaire pour les prêts garantis par des propriétés résidentielles de 4 logements ou moins émise au moment du prêt dont le coût est habituellement assumé par l'emprunteur."]
["Urban","Urban","Urbain"]
["Area where the census population count is at least 10,000. ","Area where the census population count is at least 10,000. ","Se dit d’un milieu qui, selon le recensement, compte 10 000 habitants ou plus."]

{"sheet":"Data","index":1,"n_rows":7297,"n_cols":16,"rows_kept":4500,"cut":true,"hidden":true,"merged":[],"bounds":{"rows_first":2000,"rows_last":500,"rows_between":2000,"halvings":0}}
["TabName","Quarter","Business_Line","Categories","Figure","Metric_Description","figure_formatted",null,"TabName","Quarter","Business_Line","Categories","Figure","Metric_Description","figure_formatted"]
[10,"T1 2020","PROPRIÉTAIRES-OCCUPANTS, À L’UNITÉ","<= 5",3.8834600895502097E-3,"Prêts hypothécaires assurés au cours de la période selon la période d’amortissement (en années) à l'initiation (%)","0.0"," <= 5",{"$f":"IFERROR(VLOOKUP(A2,Translation!$A:$C,3,FALSE),A2)","v":10},{"$f":"IFERROR(VLOOKUP(B2,Translation!$A:$C,3,FALSE),B2)","v":"T1 2020"},{"$f":"IFERROR(VLOOKUP(C2,Translation!$A:$C,3,FALSE),C2)","v":"PROPRIÉTAIRES-OCCUPANTS, À L’UNITÉ"},{"$f":"IFERROR(VLOOKUP(D2,Translation!$A:$C,3,FALSE),D2)","v":"<= 5"},{"$f":"IFERROR(VLOOKUP(E2,Translation!$A:$C,3,FALSE),E2)","v":3.8834600895502097E-3},{"$f":"IFERROR(VLOOKUP(F2,Translation!$A:$C,3,FALSE),F2)","v":"Prêts hypothécaires assurés au cours de la période selon la période d’amortissement (en années) à l'initiation (%)"},{"$f":"IFERROR(VLOOKUP(G2,Translation!$A:$C,3,FALSE),G2)","v":"0.0"},{"$f":"IFERROR(VLOOKUP(H2,Translation!$A:$C,3,FALSE),H2)","v":" <= 5"}]
[10,"Cumul 2019","PROPRIÉTAIRES-OCCUPANTS, À L’UNITÉ","<= 5",6.1547823826264047E-3,"Prêts hypothécaires assurés au cours de la période selon la période d’amortissement (en années) à l'initiation (%)","0.0"," <= 5",{"$f":"IFERROR(VLOOKUP(A3,Translation!$A:$C,3,FALSE),A3)","v":10},{"$f":"IFERROR(VLOOKUP(B3,Translation!$A:$C,3,FALSE),B3)","v":"Cumul 2019"},{"$f":"IFERROR(VLOOKUP(C3,Translation!$A:$C,3,FALSE),C3)","v":"PROPRIÉTAIRES-OCCUPANTS, À L’UNITÉ"},{"$f":"IFERROR(VLOOKUP(D3,Translation!$A:$C,3,FALSE),D3)","v":"<= 5"},{"$f":"IFERROR(VLOOKUP(E3,Translation!$A:$C,3,FALSE),E3)","v":6.1547823826264047E-3},{"$f":"IFERROR(VLOOKUP(F3,Translation!$A:$C,3,FALSE),F3)","v":"Prêts hypothécaires assurés au cours de la période selon la période d’amortissement (en années) à l'initiation (%)"},{"$f":"IFERROR(VLOOKUP(G3,Translation!$A:$C,3,FALSE),G3)","v":"0.0"},{"$f":"IFERROR(VLOOKUP(H3,Translation!$A:$C,3,FALSE),H3)","v":" <= 5"}]
[10,"Cumul 2020","PROPRIÉTAIRES-OCCUPANTS, À L’UNITÉ","<= 5",3.8834600895502097E-3,"Prêts hypothécaires assurés au cours de la période selon la période d’amortissement (en années) à l'initiation (%)","0.0"," <= 5",{"$f":"IFERROR(VLOOKUP(A4,Translation!$A:$C,3,FALSE),A4)","v":10},{"$f":"IFERROR(VLOOKUP(B4,Translation!$A:$C,3,FALSE),B4)","v":"Cumul 2020"},{"$f":"IFERROR(VLOOKUP(C4,Translation!$A:$C,3,FALSE),C4)","v":"PROPRIÉTAIRES-OCCUPANTS, À L’UNITÉ"},{"$f":"IFERROR(VLOOKUP(D4,Translation!$A:$C,3,FALSE),D4)","v":"<= 5"},{"$f":"IFERROR(VLOOKUP(E4,Translation!$A:$C,3,FALSE),E4)","v":3.8834600895502097E-3},{"$f":"IFERROR(VLOOKUP(F4,Translation!$A:$C,3,FALSE),F4)","v":"Prêts hypothécaires assurés au cours de la période selon la période d’amortissement (en années) à l'initiation (%)"},{"$f":"IFERROR(VLOOKUP(G4,Translation!$A:$C,3,FALSE),G4)","v":"0.0"},{"$f":"IFERROR(VLOOKUP(H4,Translation!$A:$C,3,FALSE),H4)","v":" <= 5"}]
[10,"T1 2020","PROPRIÉTAIRES-OCCUPANTS, À L’UNITÉ","> 5 <= 10",4.0292352234998635E-2,"Prêts hypothécaires assurés au cours de la période selon la période d’amortissement (en années) à l'initiation (%)","0.0"," > 5 <= 10",{"$f":"IFERROR(VLOOKUP(A5,Translation!$A:$C,3,FALSE),A5)","v":10},{"$f":"IFERROR(VLOOKUP(B5,Translation!$A:$C,3,FALSE),B5)","v":"T1 2020"},{"$f":"IFERROR(VLOOKUP(C5,Translation!$A:$C,3,FALSE),C5)","v":"PROPRIÉTAIRES-OCCUPANTS, À L’UNITÉ"},{"$f":"IFERROR(VLOOKUP(D5,Translation!$A:$C,3,FALSE),D5)","v":"> 5 <= 10"},{"$f":"IFERROR(VLOOKUP(E5,Translation!$A:$C,3,FALSE),E5)","v":4.0292352234998635E-2},{"$f":"IFERROR(VLOOKUP(F5,Translation!$A:$C,3,FALSE),F5)","v":"Prêts hypothécaires assurés au cours de la période selon la période d’amortissement (en années) à l'initiation (%)"},{"$f":"IFERROR(VLOOKUP(G5,Translation!$A:$C,3,FALSE),G5)","v":"0.0"},{"$f":"IFERROR(VLOOKUP(H5,Translation!$A:$C,3,FALSE),H5)","v":" > 5 <= 10"}]
[10,"Cumul 2019","PROPRIÉTAIRES-OCCUPANTS, À L’UNITÉ","> 5 <= 10",5.0417371067813667E-2,"Prêts hypothécaires assurés au cours de la période selon la période d’amortissement (en années) à l'initiation (%)","0.1"," > 5 <= 10",{"$f":"IFERROR(VLOOKUP(A6,Translation!$A:$C,3,FALSE),A6)","v":10},{"$f":"IFERROR(VLOOKUP(B6,Translation!$A:$C,3,FALSE),B6)","v":"Cumul 2019"},{"$f":"IFERROR(VLOOKUP(C6,Translation!$A:$C,3,FALSE),C6)","v":"PROPRIÉTAIRES-OCCUPANTS, À L’UNITÉ"},{"$f":"IFERROR(VLOOKUP(D6,Translation!$A:$C,3,FALSE),D6)","v":"> 5 <= 10"},{"$f":"IFERROR(VLOOKUP(E6,Translation!$A:$C,3,FALSE),E6)","v":5.0417371067813667E-2},{"$f":"IFERROR(VLOOKUP(F6,Translation!$A:$C,3,FALSE),F6)","v":"Prêts hypothécaires assurés au cours de la période selon la période d’amortissement (en années) à l'initiation (%)"},{"$f":"IFERROR(VLOOKUP(G6,Translation!$A:$C,3,FALSE),G6)","v":"0.1"},{"$f":"IFERROR(VLOOKUP(H6,Translation!$A:$C,3,FALSE),H6)","v":" > 5 <= 10"}]
[10,"Cumul 2020","PROPRIÉTAIRES-OCCUPANTS, À L’UNITÉ","> 5 <= 10",4.0292352234998635E-2,"Prêts hypothécaires assurés au cours de la période selon la période d’amortissement (en années) à l'initiation (%)","0.0"," > 5 <= 10",{"$f":"IFERROR(VLOOKUP(A7,Translation!$A:$C,3,FALSE),A7)","v":10},{"$f":"IFERROR(VLOOKUP(B7,Translation!$A:$C,3,FALSE),B7)","v":"Cumul 2020"},{"$f":"IFERROR(VLOOKUP(C7,Translation!$A:$C,3,FALSE),C7)","v":"PROPRIÉTAIRES-OCCUPANTS, À L’UNITÉ"},{"$f":"IFERROR(VLOOKUP(D7,Translation!$A:$C,3,FALSE),D7)","v":"> 5 <= 10"},{"$f":"IFERROR(VLOOKUP(E7,Translation!$A:$C,3,FALSE),E7)","v":4.0292352234998635E-2},{"$f":"IFERROR(VLOOKUP(F7,Translation!$A:$C,3,FALSE),F7)","v":"Prêts hypothécaires assurés au cours de la période selon la période d’amortissement (en années) à l'initiation (%)"},{"$f":"IFERROR(VLOOKUP(G7,Translation!$A:$C,3,FALSE),G7)","v":"0.0"},{"$f":"IFERROR(VLOOKUP(H7,Translation!$A:$C,3,FALSE),H7)","v":" > 5 <= 10"}]
[10,"T1 2020","PROPRIÉTAIRES-OCCUPANTS, À L’UNITÉ","> 10 <= 15",0.13935756314483339,"Prêts hypothécaires assurés au cours de la période selon la période d’amortissement (en années) à l'initiation (%)","0.1"," > 10 <= 15",{"$f":"IFERROR(VLOOKUP(A8,Translation!$A:$C,3,FALSE),A8)","v":10},{"$f":"IFERROR(VLOOKUP(B8,Translation!$A:$C,3,FALSE),B8)","v":"T1 2020"},{"$f":"IFERROR(VLOOKUP(C8,Translation!$A:$C,3,FALSE),C8)","v":"PROPRIÉTAIRES-OCCUPANTS, À L’UNITÉ"},{"$f":"IFERROR(VLOOKUP(D8,Translation!$A:$C,3,FALSE),D8)","v":"> 10 <= 15"},{"$f":"IFERROR(VLOOKUP(E8,Translation!$A:$C,3,FALSE),E8)","v":0.13935756314483339},{"$f":"IFERROR(VLOOKUP(F8,Translation!$A:$C,3,FALSE),F8)","v":"Prêts hypothécaires assurés au cours de la période selon la période d’amortissement (en années) à l'initiation (%)"},{"$f":"IFERROR(VLOOKUP(G8,Translation!$A:$C,3,FALSE),G8)","v":"0.1"},{"$f":"IFERROR(VLOOKUP(H8,Translation!$A:$C,3,FALSE),H8)","v":" > 10 <= 15"}]
[10,"Cumul 2019","PROPRIÉTAIRES-OCCUPANTS, À L’UNITÉ","> 10 <= 15",0.13327435293438203,"Prêts hypothécaires assurés au cours de la période selon la période d’amortissement (en années) à l'initiation (%)","0.1"," > 10 <= 15",{"$f":"IFERROR(VLOOKUP(A9,Translation!$A:$C,3,FALSE),A9)","v":10},{"$f":"IFERROR(VLOOKUP(B9,Translation!$A:$C,3,FALSE),B9)","v":"Cumul 2019"},{"$f":"IFERROR(VLOOKUP(C9,Translation!$A:$C,3,FALSE),C9)","v":"PROPRIÉTAIRES-OCCUPANTS, À L’UNITÉ"},{"$f":"IFERROR(VLOOKUP(D9,Translation!$A:$C,3,FALSE),D9)","v":"> 10 <= 15"},{"$f":"IFERROR(VLOOKUP(E9,Translation!$A:$C,3,FALSE),E9)","v":0.13327435293438203},{"$f":"IFERROR(VLOOKUP(F9,Translation!$A:$C,3,FALSE),F9)","v":"Prêts hypothécaires assurés au cours de la période selon la période d’amortissement (en années) à l'initiation (%)"},{"$f":"IFERROR(VLOOKUP(G9,Translation!$A:$C,3,FALSE),G9)","v":"0.1"},{"$f":"IFERROR(VLOOKUP(H9,Translation!$A:$C,3,FALSE),H9)","v":" > 10 <= 15"}]
[10,"Cumul 2020","PROPRIÉTAIRES-OCCUPANTS, À L’UNITÉ","> 10 <= 15",0.13935756314483339,"Prêts hypothécaires assurés au cours de la période selon la période d’amortissement (en années) à l'initiation (%)","0.1"," > 10 <= 15",{"$f":"IFERROR(VLOOKUP(A10,Translation!$A:$C,3,FALSE),A10)","v":10},{"$f":"IFERROR(VLOOKUP(B10,Translation!$A:$C,3,FALSE),B10)","v":"Cumul 2020"},{"$f":"IFERROR(VLOOKUP(C10,Translation!$A:$C,3,FALSE),C10)","v":"PROPRIÉTAIRES-OCCUPANTS, À L’UNITÉ"},{"$f":"IFERROR(VLOOKUP(D10,Translation!$A:$C,3,FALSE),D10)","v":"> 10 <= 15"},{"$f":"IFERROR(VLOOKUP(E10,Translation!$A:$C,3,FALSE),E10)","v":0.13935756314483339},{"$f":"IFERROR(VLOOKUP(F10,Translation!$A:$C,3,FALSE),F10)","v":"Prêts hypothécaires assurés au cours de la période selon la période d’amortissement (en années) à l'initiation (%)"},{"$f":"IFERROR(VLOOKUP(G10,Translation!$A:$C,3,FALSE),G10)","v":"0.1"},{"$f":"IFERROR(VLOOKUP(H10,Translation!$A:$C,3,FALSE),H10)","v":" > 10 <= 15"}]
[10,"T1 2020","PROPRIÉTAIRES-OCCUPANTS, À L’UNITÉ","> 15 <= 20",0.67596602323829613,"Prêts hypothécaires assurés au cours de la période selon la période d’amortissement (en années) à l'initiation (%)","0.7"," > 15 <= 20",{"$f":"IFERROR(VLOOKUP(A11,Translation!$A:$C,3,FALSE),A11)","v":10},{"$f":"IFERROR(VLOOKUP(B11,Translation!$A:$C,3,FALSE),B11)","v":"T1 2020"},{"$f":"IFERROR(VLOOKUP(C11,Translation!$A:$C,3,FALSE),C11)","v":"PROPRIÉTAIRES-OCCUPANTS, À L’UNITÉ"},{"$f":"IFERROR(VLOOKUP(D11,Translation!$A:$C,3,FALSE),D11)","v":"> 15 <= 20"},{"$f":"IFERROR(VLOOKUP(E11,Translation!$A:$C,3,FALSE),E11)","v":0.67596602323829613},{"$f":"IFERROR(VLOOKUP(F11,Translation!$A:$C,3,FALSE),F11)","v":"Prêts hypothécaires assurés au cours de la période selon la période d’amortissement (en années) à l'initiation (%)"},{"$f":"IFERROR(VLOOKUP(G11,Translation!$A:$C,3,FALSE),G11)","v":"0.7"},{"$f":"IFERROR(VLOOKUP(H11,Translation!$A:$C,3,FALSE),H11)","v":" > 15 <= 20"}]
[10,"Cumul 2019","PROPRIÉTAIRES-OCCUPANTS, À L’UNITÉ","> 15 <= 20",0.60056344818090324,"Prêts hypothécaires assurés au cours de la période selon la période d’amortissement (en années) à l'initiation (%)","0.6"," > 15 <= 20",{"$f":"IFERROR(VLOOKUP(A12,Translation!$A:$C,3,FALSE),A12)","v":10},{"$f":"IFERROR(VLOOKUP(B12,Translation!$A:$C,3,FALSE),B12)","v":"Cumul 2019"},{"$f":"IFERROR(VLOOKUP(C12,Translation!$A:$C,3,FALSE),C12)","v":"PROPRIÉTAIRES-OCCUPANTS, À L’UNITÉ"},{"$f":"IFERROR(VLOOKUP(D12,Translation!$A:$C,3,FALSE),D12)","v":"> 15 <= 20"},{"$f":"IFERROR(VLOOKUP(E12,Translation!$A:$C,3,FALSE),E12)","v":0.60056344818090324},{"$f":"IFERROR(VLOOKUP(F12,Translation!$A:$C,3,FALSE),F12)","v":"Prêts hypothécaires assurés au cours de la période selon la période d’amortissement (en années) à l'initiation (%)"},{"$f":"IFERROR(VLOOKUP(G12,Translation!$A:$C,3,FALSE),G12)","v":"0.6"},{"$f":"IFERROR(VLOOKUP(H12,Translation!$A:$C,3,FALSE),H12)","v":" > 15 <= 20"}]
[10,"Cumul 2020","PROPRIÉTAIRES-OCCUPANTS, À L’UNITÉ","> 15 <= 20",0.67596602323829613,"Prêts hypothécaires assurés au cours de la période selon la période d’amortissement (en années) à l'initiation (%)","0.7"," > 15 <= 20",{"$f":"IFERROR(VLOOKUP(A13,Translation!$A:$C,3,FALSE),A13)","v":10},{"$f":"IFERROR(VLOOKUP(B13,Translation!$A:$C,3,FALSE),B13)","v":"Cumul 2020"},{"$f":"IFERROR(VLOOKUP(C13,Translation!$A:$C,3,FALSE),C13)","v":"PROPRIÉTAIRES-OCCUPANTS, À L’UNITÉ"},{"$f":"IFERROR(VLOOKUP(D13,Translation!$A:$C,3,FALSE),D13)","v":"> 15 <= 20"},{"$f":"IFERROR(VLOOKUP(E13,Translation!$A:$C,3,FALSE),E13)","v":0.67596602323829613},{"$f":"IFERROR(VLOOKUP(F13,Translation!$A:$C,3,FALSE),F13)","v":"Prêts hypothécaires assurés au cours de la période selon la période d’amortissement (en années) à l'initiation (%)"},{"$f":"IFERROR(VLOOKUP(G13,Translation!$A:$C,3,FALSE),G13)","v":"0.7"},{"$f":"IFERROR(VLOOKUP(H13,Translation!$A:$C,3,FALSE),H13)","v":" > 15 <= 20"}]
[10,"T1 2020","PROPRIÉTAIRES-OCCUPANTS, À L’UNITÉ","> 20 <= 25",99.130299912095325,"Prêts hypothécaires assurés au cours de la période selon la période d’amortissement (en années) à l'initiation (%)","99.1"," > 20 <= 25",{"$f":"IFERROR(VLOOKUP(A14,Translation!$A:$C,3,FALSE),A14)","v":10},{"$f":"IFERROR(VLOOKUP(B14,Translation!$A:$C,3,FALSE),B14)","v":"T1 2020"},{"$f":"IFERROR(VLOOKUP(C14,Translation!$A:$C,3,FALSE),C14)","v":"PROPRIÉTAIRES-OCCUPANTS, À L’UNITÉ"},{"$f":"IFERROR(VLOOKUP(D14,Translation!$A:$C,3,FALSE),D14)","v":"> 20 <= 25"},{"$f":"IFERROR(VLOOKUP(E14,Translation!$A:$C,3,FALSE),E14)","v":99.130299912095325},{"$f":"IFERROR(VLOOKUP(F14,Translation!$A:$C,3,FALSE),F14)","v":"Prêts hypothécaires assurés au cours de la période selon la période d’amortissement (en années) à l'initiation (%)"},{"$f":"IFERROR(VLOOKUP(G14,Translation!$A:$C,3,FALSE),G14)","v":"99.1"},{"$f":"IFERROR(VLOOKUP(H14,Translation!$A:$C,3,FALSE),H14)","v":" > 20 <= 25"}]
[10,"Cumul 2019","PROPRIÉTAIRES-OCCUPANTS, À L’UNITÉ","> 20 <= 25",99.205147137682317,"Prêts hypothécaires assurés au cours de la période selon la période d’amortissement (en années) à l'initiation (%)","99.2"," > 20 <= 25",{"$f":"IFERROR(VLOOKUP(A15,Translation!$A:$C,3,FALSE),A15)","v":10},{"$f":"IFERROR(VLOOKUP(B15,Translation!$A:$C,3,FALSE),B15)","v":"Cumul 2019"},{"$f":"IFERROR(VLOOKUP(C15,Translation!$A:$C,3,FALSE),C15)","v":"PROPRIÉTAIRES-OCCUPANTS, À L’UNITÉ"},{"$f":"IFERROR(VLOOKUP(D15,Translation!$A:$C,3,FALSE),D15)","v":"> 20 <= 25"},{"$f":"IFERROR(VLOOKUP(E15,Translation!$A:$C,3,FALSE),E15)","v":99.205147137682317},{"$f":"IFERROR(VLOOKUP(F15,Translation!$A:$C,3,FALSE),F15)","v":"Prêts hypothécaires assurés au cours de la période selon la période d’amortissement (en années) à l'initiation (%)"},{"$f":"IFERROR(VLOOKUP(G15,Translation!$A:$C,3,FALSE),G15)","v":"99.2"},{"$f":"IFERROR(VLOOKUP(H15,Translation!$A:$C,3,FALSE),H15)","v":" > 20 <= 25"}]
[10,"Cumul 2020","PROPRIÉTAIRES-OCCUPANTS, À L’UNITÉ","> 20 <= 25",99.130299912095325,"Prêts hypothécaires assurés au cours de la période selon la période d’amortissement (en années) à l'initiation (%)","99.1"," > 20 <= 25",{"$f":"IFERROR(VLOOKUP(A16,Translation!$A:$C,3,FALSE),A16)","v":10},{"$f":"IFERROR(VLOOKUP(B16,Translation!$A:$C,3,FALSE),B16)","v":"Cumul 2020"},{"$f":"IFERROR(VLOOKUP(C16,Translation!$A:$C,3,FALSE),C16)","v":"PROPRIÉTAIRES-OCCUPANTS, À L’UNITÉ"},{"$f":"IFERROR(VLOOKUP(D16,Translation!$A:$C,3,FALSE),D16)","v":"> 20 <= 25"},{"$f":"IFERROR(VLOOKUP(E16,Translation!$A:$C,3,FALSE),E16)","v":99.130299912095325},{"$f":"IFERROR(VLOOKUP(F16,Translation!$A:$C,3,FALSE),F16)","v":"Prêts hypothécaires assurés au cours de la période selon la période d’amortissement (en années) à l'initiation (%)"},{"$f":"IFERROR(VLOOKUP(G16,Translation!$A:$C,3,FALSE),G16)","v":"99.1"},{"$f":"IFERROR(VLOOKUP(H16,Translation!$A:$C,3,FALSE),H16)","v":" > 20 <= 25"}]
[10,"T1 2020","PROPRIÉTAIRES-OCCUPANTS, À L’UNITÉ","> 25 <= 30",1.0200689197016524E-2,"Prêts hypothécaires assurés au cours de la période selon la période d’amortissement (en années) à l'initiation (%)","0.0"," > 25 <= 30",{"$f":"IFERROR(VLOOKUP(A17,Translation!$A:$C,3,FALSE),A17)","v":10},{"$f":"IFERROR(VLOOKUP(B17,Translation!$A:$C,3,FALSE),B17)","v":"T1 2020"},{"$f":"IFERROR(VLOOKUP(C17,Translation!$A:$C,3,FALSE),C17)","v":"PROPRIÉTAIRES-OCCUPANTS, À L’UNITÉ"},{"$f":"IFERROR(VLOOKUP(D17,Translation!$A:$C,3,FALSE),D17)","v":"> 25 <= 30"},{"$f":"IFERROR(VLOOKUP(E17,Translation!$A:$C,3,FALSE),E17)","v":1.0200689197016524E-2},{"$f":"IFERROR(VLOOKUP(F17,Translation!$A:$C,3,FALSE),F17)","v":"Prêts hypothécaires assurés au cours de la période selon la période d’amortissement (en années) à l'initiation (%)"},{"$f":"IFERROR(VLOOKUP(G17,Translation!$A:$C,3,FALSE),G17)","v":"0.0"},{"$f":"IFERROR(VLOOKUP(H17,Translation!$A:$C,3,FALSE),H17)","v":" > 25 <= 30"}]
[10,"Cumul 2019","PROPRIÉTAIRES-OCCUPANTS, À L’UNITÉ","> 25 <= 30",4.4429077519859373E-3,"Prêts hypothécaires assurés au cours de la période selon la période d’amortissement (en années) à l'initiation (%)","0.0"," > 25 <= 30",{"$f":"IFERROR(VLOOKUP(A18,Translation!$A:$C,3,FALSE),A18)","v":10},{"$f":"IFERROR(VLOOKUP(B18,Translation!$A:$C,3,FALSE),B18)","v":"Cumul 2019"},{"$f":"IFERROR(VLOOKUP(C18,Translation!$A:$C,3,FALSE),C18)","v":"PROPRIÉTAIRES-OCCUPANTS, À L’UNITÉ"},{"$f":"IFERROR(VLOOKUP(D18,Translation!$A:$C,3,FALSE),D18)","v":"> 25 <= 30"},{"$f":"IFERROR(VLOOKUP(E18,Translation!$A:$C,3,FALSE),E18)","v":4.4429077519859373E-3},{"$f":"IFERROR(VLOOKUP(F18,Translation!$A:$C,3,FALSE),F18)","v":"Prêts hypothécaires assurés au cours de la période selon la période d’amortissement (en années) à l'initiation (%)"},{"$f":"IFERROR(VLOOKUP(G18,Translation!$A:$C,3,FALSE),G18)","v":"0.0"},{"$f":"IFERROR(VLOOKUP(H18,Translation!$A:$C,3,FALSE),H18)","v":" > 25 <= 30"}]
[10,"Cumul 2020","PROPRIÉTAIRES-OCCUPANTS, À L’UNITÉ","> 25 <= 30",1.0200689197016524E-2,"Prêts hypothécaires assurés au cours de la période selon la période d’amortissement (en années) à l'initiation (%)","0.0"," > 25 <= 30",{"$f":"IFERROR(VLOOKUP(A19,Translation!$A:$C,3,FALSE),A19)","v":10},{"$f":"IFERROR(VLOOKUP(B19,Translation!$A:$C,3,FALSE),B19)","v":"Cumul 2020"},{"$f":"IFERROR(VLOOKUP(C19,Translation!$A:$C,3,FALSE),C19)","v":"PROPRIÉTAIRES-OCCUPANTS, À L’UNITÉ"},{"$f":"IFERROR(VLOOKUP(D19,Translation!$A:$C,3,FALSE),D19)","v":"> 25 <= 30"},{"$f":"IFERROR(VLOOKUP(E19,Translation!$A:$C,3,FALSE),E19)","v":1.0200689197016524E-2},{"$f":"IFERROR(VLOOKUP(F19,Translation!$A:$C,3,FALSE),F19)","v":"Prêts hypothécaires assurés au cours de la période selon la période d’amortissement (en années) à l'initiation (%)"},{"$f":"IFERROR(VLOOKUP(G19,Translation!$A:$C,3,FALSE),G19)","v":"0.0"},{"$f":"IFERROR(VLOOKUP(H19,Translation!$A:$C,3,FALSE),H19)","v":" > 25 <= 30"}]
[10,"T1 2020","PROPRIÉTAIRES-OCCUPANTS, À L’UNITÉ","Période d’amortissement moyenne",24.895853118304881,"Prêts hypothécaires assurés au cours de la période selon la période d’amortissement (en années) à l'initiation (%)","24.9","Période d’amortissement moyenne",{"$f":"IFERROR(VLOOKUP(A20,Translation!$A:$C,3,FALSE),A20)","v":10},{"$f":"IFERROR(VLOOKUP(B20,Translation!$A:$C,3,FALSE),B20)","v":"T1 2020"},{"$f":"IFERROR(VLOOKUP(C20,Translation!$A:$C,3,FALSE),C20)","v":"PROPRIÉTAIRES-OCCUPANTS, À L’UNITÉ"},{"$f":"IFERROR(VLOOKUP(D20,Translation!$A:$C,3,FALSE),D20)","v":"Période d’amortissement moyenne"},{"$f":"IFERROR(VLOOKUP(E20,Translation!$A:$C,3,FALSE),E20)","v":24.895853118304881},{"$f":"IFERROR(VLOOKUP(F20,Translation!$A:$C,3,FALSE),F20)","v":"Prêts hypothécaires assurés au cours de la période selon la période d’amortissement (en années) à l'initiation (%)"},{"$f":"IFERROR(VLOOKUP(G20,Translation!$A:$C,3,FALSE),G20)","v":"24.9"},{"$f":"IFERROR(VLOOKUP(H20,Translation!$A:$C,3,FALSE),H20)","v":"Période d’amortissement moyenne"}]
[10,"Cumul 2019","PROPRIÉTAIRES-OCCUPANTS, À L’UNITÉ","Période d’amortissement moyenne",24.871239945749618,"Prêts hypothécaires assurés au cours de la période selon la période d’amortissement (en années) à l'initiation (%)","24.9","Période d’amortissement moyenne",{"$f":"IFERROR(VLOOKUP(A21,Translation!$A:$C,3,FALSE),A21)","v":10},{"$f":"IFERROR(VLOOKUP(B21,Translation!$A:$C,3,FALSE),B21)","v":"Cumul 2019"},{"$f":"IFERROR(VLOOKUP(C21,Translation!$A:$C,3,FALSE),C21)","v":"PROPRIÉTAIRES-OCCUPANTS, À L’UNITÉ"},{"$f":"IFERROR(VLOOKUP(D21,Translation!$A:$C,3,FALSE),D21)","v":"Période d’amortissement moyenne"},{"$f":"IFERROR(VLOOKUP(E21,Translation!$A:$C,3,FALSE),E21)","v":24.871239945749618},{"$f":"IFERROR(VLOOKUP(F21,Translation!$A:$C,3,FALSE),F21)","v":"Prêts hypothécaires assurés au cours de la période selon la période d’amortissement (en années) à l'initiation (%)"},{"$f":"IFERROR(VLOOKUP(G21,Translation!$A:$C,3,FALSE),G21)","v":"24.9"},{"$f":"IFERROR(VLOOKUP(H21,Translation!$A:$C,3,FALSE),H21)","v":"Période d’amortissement moyenne"}]
[10,"Cumul 2020","PROPRIÉTAIRES-OCCUPANTS, À L’UNITÉ","Période d’amortissement moyenne",24.895853118304881,"Prêts hypothécaires assurés au cours de la période selon la période d’amortissement (en années) à l'initiation (%)","24.9","Période d’amortissement moyenne",{"$f":"IFERROR(VLOOKUP(A22,Translation!$A:$C,3,FALSE),A22)","v":10},{"$f":"IFERROR(VLOOKUP(B22,Translation!$A:$C,3,FALSE),B22)","v":"Cumul 2020"},{"$f":"IFERROR(VLOOKUP(C22,Translation!$A:$C,3,FALSE),C22)","v":"PROPRIÉTAIRES-OCCUPANTS, À L’UNITÉ"},{"$f":"IFERROR(VLOOKUP(D22,Translation!$A:$C,3,FALSE),D22)","v":"Période d’amortissement moyenne"},{"$f":"IFERROR(VLOOKUP(E22,Translation!$A:$C,3,FALSE),E22)","v":24.895853118304881},{"$f":"IFERROR(VLOOKUP(F22,Translation!$A:$C,3,FALSE),F22)","v":"Prêts hypothécaires assurés au cours de la période selon la période d’amortissement (en années) à l'initiation (%)"},{"$f":"IFERROR(VLOOKUP(G22,Translation!$A:$C,3,FALSE),G22)","v":"24.9"},{"$f":"IFERROR(VLOOKUP(H22,Translation!$A:$C,3,FALSE),H22)","v":"Période d’amortissement moyenne"}]
[10,"T1 2020","PROPRIÉTAIRES-OCCUPANTS, À L’UNITÉ","Terre-Neuve-et-Labrador",24.787072802884804,"Période d’amortissement moyenne selon la province","24.8","Terre-Neuve-et-Labrador",{"$f":"IFERROR(VLOOKUP(A23,Translation!$A:$C,3,FALSE),A23)","v":10},{"$f":"IFERROR(VLOOKUP(B23,Translation!$A:$C,3,FALSE),B23)","v":"T1 2020"},{"$f":"IFERROR(VLOOKUP(C23,Translation!$A:$C,3,FALSE),C23)","v":"PROPRIÉTAIRES-OCCUPANTS, À L’UNITÉ"},{"$f":"IFERROR(VLOOKUP(D23,Translation!$A:$C,3,FALSE),D23)","v":"Terre-Neuve-et-Labrador"},{"$f":"IFERROR(VLOOKUP(E23,Translation!$A:$C,3,FALSE),E23)","v":24.787072802884804},{"$f":"IFERROR(VLOOKUP(F23,Translation!$A:$C,3,FALSE),F23)","v":"Période d’amortissement moyenne selon la province"},{"$f":"IFERROR(VLOOKUP(G23,Translation!$A:$C,3,FALSE),G23)","v":"24.8"},{"$f":"IFERROR(VLOOKUP(H23,Translation!$A:$C,3,FALSE),H23)","v":"Terre-Neuve-et-Labrador"}]
[10,"T1 2020","PROPRIÉTAIRES-OCCUPANTS, À L’UNITÉ","Île-du-Prince-Édouard",24.912991865153018,"Période d’amortissement moyenne selon la province","24.9","Île-du-Prince-Édouard",{"$f":"IFERROR(VLOOKUP(A24,Translation!$A:$C,3,FALSE),A24)","v":10},{"$f":"IFERROR(VLOOKUP(B24,Translation!$A:$C,3,FALSE),B24)","v":"T1 2020"},{"$f":"IFERROR(VLOOKUP(C24,Translation!$A:$C,3,FALSE),C24)","v":"PROPRIÉTAIRES-OCCUPANTS, À L’UNITÉ"},{"$f":"IFERROR(VLOOKUP(D24,Translation!$A:$C,3,FALSE),D24)","v":"Île-du-Prince-Édouard"},{"$f":"IFERROR(VLOOKUP(E24,Translation!$A:$C,3,FALSE),E24)","v":24.912991865153018},{"$f":"IFERROR(VLOOKUP(F24,Translation!$A:$C,3,FALSE),F24)","v":"Période d’amortissement moyenne selon la province"},{"$f":"IFERROR(VLOOKUP(G24,Translation!$A:$C,3,FALSE),G24)","v":"24.9"},{"$f":"IFERROR(VLOOKUP(H24,Translation!$A:$C,3,FALSE),H24)","v":"Île-du-Prince-Édouard"}]
[10,"T1 2020","PROPRIÉTAIRES-OCCUPANTS, À L’UNITÉ","Nouvelle-Écosse",24.794989457742993,"Période d’amortissement moyenne selon la province","24.8","Nouvelle-Écosse",{"$f":"IFERROR(VLOOKUP(A25,Translation!$A:$C,3,FALSE),A25)","v":10},{"$f":"IFERROR(VLOOKUP(B25,Translation!$A:$C,3,FALSE),B25)","v":"T1 2020"},{"$f":"IFERROR(VLOOKUP(C25,Translation!$A:$C,3,FALSE),C25)","v":"PROPRIÉTAIRES-OCCUPANTS, À L’UNITÉ"},{"$f":"IFERROR(VLOOKUP(D25,Translation!$A:$C,3,FALSE),D25)","v":"Nouvelle-Écosse"},{"$f":"IFERROR(VLOOKUP(E25,Translation!$A:$C,3,FALSE),E25)","v":24.794989457742993},{"$f":"IFERROR(VLOOKUP(F25,Translation!$A:$C,3,FALSE),F25)","v":"Période d’amortissement moyenne selon la province"},{"$f":"IFERROR(VLOOKUP(G25,Translation!$A:$C,3,FALSE),G25)","v":"24.8"},{"$f":"IFERROR(VLOOKUP(H25,Translation!$A:$C,3,FALSE),H25)","v":"Nouvelle-Écosse"}]
[10,"T1 2020","PROPRIÉTAIRES-OCCUPANTS, À L’UNITÉ","Nouveau-Brunswick",24.695702263585421,"Période d’amortissement moyenne selon la province","24.7","Nouveau-Brunswick",{"$f":"IFERROR(VLOOKUP(A26,Translation!$A:$C,3,FALSE),A26)","v":10},{"$f":"IFERROR(VLOOKUP(B26,Translation!$A:$C,3,FALSE),B26)","v":"T1 2020"},{"$f":"IFERROR(VLOOKUP(C26,Translation!$A:$C,3,FALSE),C26)","v":"PROPRIÉTAIRES-OCCUPANTS, À L’UNITÉ"},{"$f":"IFERROR(VLOOKUP(D26,Translation!$A:$C,3,FALSE),D26)","v":"Nouveau-Brunswick"},{"$f":"IFERROR(VLOOKUP(E26,Translation!$A:$C,3,FALSE),E26)","v":24.695702263585421},{"$f":"IFERROR(VLOOKUP(F26,Translation!$A:$C,3,FALSE),F26)","v":"Période d’amortissement moyenne selon la province"},{"$f":"IFERROR(VLOOKUP(G26,Translation!$A:$C,3,FALSE),G26)","v":"24.7"},{"$f":"IFERROR(VLOOKUP(H26,Translation!$A:$C,3,FALSE),H26)","v":"Nouveau-Brunswick"}]
[10,"T1 2020","PROPRIÉTAIRES-OCCUPANTS, À L’UNITÉ","Québec",24.901898891015151,"Période d’amortissement moyenne selon la province","24.9","Québec",{"$f":"IFERROR(VLOOKUP(A27,Translation!$A:$C,3,FALSE),A27)","v":10},{"$f":"IFERROR(VLOOKUP(B27,Translation!$A:$C,3,FALSE),B27)","v":"T1 2020"},{"$f":"IFERROR(VLOOKUP(C27,Translation!$A:$C,3,FALSE),C27)","v":"PROPRIÉTAIRES-OCCUPANTS, À L’UNITÉ"},{"$f":"IFERROR(VLOOKUP(D27,Translation!$A:$C,3,FALSE),D27)","v":"Québec"},{"$f":"IFERROR(VLOOKUP(E27,Translation!$A:$C,3,FALSE),E27)","v":24.901898891015151},{"$f":"IFERROR(VLOOKUP(F27,Translation!$A:$C,3,FALSE),F27)","v":"Période d’amortissement moyenne selon la province"},{"$f":"IFERROR(VLOOKUP(G27,Translation!$A:$C,3,FALSE),G27)","v":"24.9"},{"$f":"IFERROR(VLOOKUP(H27,Translation!$A:$C,3,FALSE),H27)","v":"Québec"}]
[10,"T1 2020","PROPRIÉTAIRES-OCCUPANTS, À L’UNITÉ","Ontario",24.958812204631752,"Période d’amortissement moyenne selon la province","25.0","Ontario",{"$f":"IFERROR(VLOOKUP(A28,Translation!$A:$C,3,FALSE),A28)","v":10},{"$f":"IFERROR(VLOOKUP(B28,Translation!$A:$C,3,FALSE),B28)","v":"T1 2020"},{"$f":"IFERROR(VLOOKUP(C28,Translation!$A:$C,3,FALSE),C28)","v":"PROPRIÉTAIRES-OCCUPANTS, À L’UNITÉ"},{"$f":"IFERROR(VLOOKUP(D28,Translation!$A:$C,3,FALSE),D28)","v":"Ontario"},{"$f":"IFERROR(VLOOKUP(E28,Translation!$A:$C,3,FALSE),E28)","v":24.958812204631752},{"$f":"IFERROR(VLOOKUP(F28,Translation!$A:$C,3,FALSE),F28)","v":"Période d’amortissement moyenne selon la province"},{"$f":"IFERROR(VLOOKUP(G28,Translation!$A:$C,3,FALSE),G28)","v":"25.0"},{"$f":"IFERROR(VLOOKUP(H28,Translation!$A:$C,3,FALSE),H28)","v":"Ontario"}]
[10,"T1 2020","PROPRIÉTAIRES-OCCUPANTS, À L’UNITÉ","Manitoba",24.884209626602576,"Période d’amortissement moyenne selon la province","24.9","Manitoba",{"$f":"IFERROR(VLOOKUP(A29,Translation!$A:$C,3,FALSE),A29)","v":10},{"$f":"IFERROR(VLOOKUP(B29,Translation!$A:$C,3,FALSE),B29)","v":"T1 2020"},{"$f":"IFERROR(VLOOKUP(C29,Translation!$A:$C,3,FALSE),C29)","v":"PROPRIÉTAIRES-OCCUPANTS, À L’UNITÉ"},{"$f":"IFERROR(VLOOKUP(D29,Translation!$A:$C,3,FALSE),D29)","v":"Manitoba"},{"$f":"IFERROR(VLOOKUP(E29,Translation!$A:$C,3,FALSE),E29)","v":24.884209626602576},{"$f":"IFERROR(VLOOKUP(F29,Translation!$A:$C,3,FALSE),F29)","v":"Période d’amortissement moyenne selon la province"},{"$f":"IFERROR(VLOOKUP(G29,Translation!$A:$C,3,FALSE),G29)","v":"24.9"},{"$f":"IFERROR(VLOOKUP(H29,Translation!$A:$C,3,FALSE),H29)","v":"Manitoba"}]
[10,"T1 2020","PROPRIÉTAIRES-OCCUPANTS, À L’UNITÉ","Saskatchewan",24.676672497682265,"Période d’amortissement moyenne selon la province","24.7","Saskatchewan",{"$f":"IFERROR(VLOOKUP(A30,Translation!$A:$C,3,FALSE),A30)","v":10},{"$f":"IFERROR(VLOOKUP(B30,Translation!$A:$C,3,FALSE),B30)","v":"T1 2020"},{"$f":"IFERROR(VLOOKUP(C30,Translation!$A:$C,3,FALSE),C30)","v":"PROPRIÉTAIRES-OCCUPANTS, À L’UNITÉ"},{"$f":"IFERROR(VLOOKUP(D30,Translation!$A:$C,3,FALSE),D30)","v":"Saskatchewan"},{"$f":"IFERROR(VLOOKUP(E30,Translation!$A:$C,3,FALSE),E30)","v":24.676672497682265},{"$f":"IFERROR(VLOOKUP(F30,Translation!$A:$C,3,FALSE),F30)","v":"Période d’amortissement moyenne selon la province"},{"$f":"IFERROR(VLOOKUP(G30,Translation!$A:$C,3,FALSE),G30)","v":"24.7"},{"$f":"IFERROR(VLOOKUP(H30,Translation!$A:$C,3,FALSE),H30)","v":"Saskatchewan"}]
[10,"T1 2020","PROPRIÉTAIRES-OCCUPANTS, À L’UNITÉ","Alberta",24.887863804254735,"Période d’amortissement moyenne selon la province","24.9","Alberta",{"$f":"IFERROR(VLOOKUP(A31,Translation!$A:$C,3,FALSE),A31)","v":10},{"$f":"IFERROR(VLOOKUP(B31,Translation!$A:$C,3,FALSE),B31)","v":"T1 2020"},{"$f":"IFERROR(VLOOKUP(C31,Translation!$A:$C,3,FALSE),C31)","v":"PROPRIÉTAIRES-OCCUPANTS, À L’UNITÉ"},{"$f":"IFERROR(VLOOKUP(D31,Translation!$A:$C,3,FALSE),D31)","v":"Alberta"},{"$f":"IFERROR(VLOOKUP(E31,Translation!$A:$C,3,FALSE),E31)","v":24.887863804254735},{"$f":"IFERROR(VLOOKUP(F31,Translation!$A:$C,3,FALSE),F31)","v":"Période d’amortissement moyenne selon la province"},{"$f":"IFERROR(VLOOKUP(G31,Translation!$A:$C,3,FALSE),G31)","v":"24.9"},{"$f":"IFERROR(VLOOKUP(H31,Translation!$A:$C,3,FALSE),H31)","v":"Alberta"}]
[10,"T1 2020","PROPRIÉTAIRES-OCCUPANTS, À L’UNITÉ","Colombie-Britannique",24.845105094632796,"Période d’amortissement moyenne selon la province","24.8","Colombie-Britannique",{"$f":"IFERROR(VLOOKUP(A32,Translation!$A:$C,3,FALSE),A32)","v":10},{"$f":"IFERROR(VLOOKUP(B32,Translation!$A:$C,3,FALSE),B32)","v":"T1 2020"},{"$f":"IFERROR(VLOOKUP(C32,Translation!$A:$C,3,FALSE),C32)","v":"PROPRIÉTAIRES-OCCUPANTS, À L’UNITÉ"},{"$f":"IFERROR(VLOOKUP(D32,Translation!$A:$C,3,FALSE),D32)","v":"Colombie-Britannique"},{"$f":"IFERROR(VLOOKUP(E32,Translation!$A:$C,3,FALSE),E32)","v":24.845105094632796},{"$f":"IFERROR(VLOOKUP(F32,Translation!$A:$C,3,FALSE),F32)","v":"Période d’amortissement moyenne selon la province"},{"$f":"IFERROR(VLOOKUP(G32,Translation!$A:$C,3,FALSE),G32)","v":"24.8"},{"$f":"IFERROR(VLOOKUP(H32,Translation!$A:$C,3,FALSE),H32)","v":"Colombie-Britannique"}]
[10,"T1 2020","PROPRIÉTAIRES-OCCUPANTS, À L’UNITÉ","Territoires",24.747152163710918,"Période d’amortissement moyenne selon la province","24.7","Territoires",{"$f":"IFERROR(VLOOKUP(A33,Translation!$A:$C,3,FALSE),A33)","v":10},{"$f":"IFERROR(VLOOKUP(B33,Translation!$A:$C,3,FALSE),B33)","v":"T1 2020"},{"$f":"IFERROR(VLOOKUP(C33,Translation!$A:$C,3,FALSE),C33)","v":"PROPRIÉTAIRES-OCCUPANTS, À L’UNITÉ"},{"$f":"IFERROR(VLOOKUP(D33,Translation!$A:$C,3,FALSE),D33)","v":"Territoires"},{"$f":"IFERROR(VLOOKUP(E33,Translation!$A:$C,3,FALSE),E33)","v":24.747152163710918},{"$f":"IFERROR(VLOOKUP(F33,Translation!$A:$C,3,FALSE),F33)","v":"Période d’amortissement moyenne selon la province"},{"$f":"IFERROR(VLOOKUP(G33,Translation!$A:$C,3,FALSE),G33)","v":"24.7"},{"$f":"IFERROR(VLOOKUP(H33,Translation!$A:$C,3,FALSE),H33)","v":"Territoires"}]
[10,"Cumul 2019","PROPRIÉTAIRES-OCCUPANTS, À L’UNITÉ","Terre-Neuve-et-Labrador",24.884286440108305,"Période d’amortissement moyenne selon la province","24.9","Terre-Neuve-et-Labrador",{"$f":"IFERROR(VLOOKUP(A34,Translation!$A:$C,3,FALSE),A34)","v":10},{"$f":"IFERROR(VLOOKUP(B34,Translation!$A:$C,3,FALSE),B34)","v":"Cumul 2019"},{"$f":"IFERROR(VLOOKUP(C34,Translation!$A:$C,3,FALSE),C34)","v":"PROPRIÉTAIRES-OCCUPANTS, À L’UNITÉ"},{"$f":"IFERROR(VLOOKUP(D34,Translation!$A:$C,3,FALSE),D34)","v":"Terre-Neuve-et-Labrador"},{"$f":"IFERROR(VLOOKUP(E34,Translation!$A:$C,3,FALSE),E34)","v":24.884286440108305},{"$f":"IFERROR(VLOOKUP(F34,Translation!$A:$C,3,FALSE),F34)","v":"Période d’amortissement moyenne selon la province"},{"$f":"IFERROR(VLOOKUP(G34,Translation!$A:$C,3,FALSE),G34)","v":"24.9"},{"$f":"IFERROR(VLOOKUP(H34,Translation!$A:$C,3,FALSE),H34)","v":"Terre-Neuve-et-Labrador"}]
[10,"Cumul 2019","PROPRIÉTAIRES-OCCUPANTS, À L’UNITÉ","Île-du-Prince-Édouard",24.87290334330422,"Période d’amortissement moyenne selon la province","24.9","Île-du-Prince-Édouard",{"$f":"IFERROR(VLOOKUP(A35,Translation!$A:$C,3,FALSE),A35)","v":10},{"$f":"IFERROR(VLOOKUP(B35,Translation!$A:$C,3,FALSE),B35)","v":"Cumul 2019"},{"$f":"IFERROR(VLOOKUP(C35,Translation!$A:$C,3,FALSE),C35)","v":"PROPRIÉTAIRES-OCCUPANTS, À L’UNITÉ"},{"$f":"IFERROR(VLOOKUP(D35,Translation!$A:$C,3,FALSE),D35)","v":"Île-du-Prince-Édouard"},{"$f":"IFERROR(VLOOKUP(E35,Translation!$A:$C,3,FALSE),E35)","v":24.87290334330422},{"$f":"IFERROR(VLOOKUP(F35,Translation!$A:$C,3,FALSE),F35)","v":"Période d’amortissement moyenne selon la province"},{"$f":"IFERROR(VLOOKUP(G35,Translation!$A:$C,3,FALSE),G35)","v":"24.9"},{"$f":"IFERROR(VLOOKUP(H35,Translation!$A:$C,3,FALSE),H35)","v":"Île-du-Prince-Édouard"}]
[10,"Cumul 2019","PROPRIÉTAIRES-OCCUPANTS, À L’UNITÉ","Nouvelle-Écosse",24.794296030410798,"Période d’amortissement moyenne selon la province","24.8","Nouvelle-Écosse",{"$f":"IFERROR(VLOOKUP(A36,Translation!$A:$C,3,FALSE),A36)","v":10},{"$f":"IFERROR(VLOOKUP(B36,Translation!$A:$C,3,FALSE),B36)","v":"Cumul 2019"},{"$f":"IFERROR(VLOOKUP(C36,Translation!$A:$C,3,FALSE),C36)","v":"PROPRIÉTAIRES-OCCUPANTS, À L’UNITÉ"},{"$f":"IFERROR(VLOOKUP(D36,Translation!$A:$C,3,FALSE),D36)","v":"Nouvelle-Écosse"},{"$f":"IFERROR(VLOOKUP(E36,Translation!$A:$C,3,FALSE),E36)","v":24.794296030410798},{"$f":"IFERROR(VLOOKUP(F36,Translation!$A:$C,3,FALSE),F36)","v":"Période d’amortissement moyenne selon la province"},{"$f":"IFERROR(VLOOKUP(G36,Translation!$A:$C,3,FALSE),G36)","v":"24.8"},{"$f":"IFERROR(VLOOKUP(H36,Translation!$A:$C,3,FALSE),H36)","v":"Nouvelle-Écosse"}]
[10,"Cumul 2019","PROPRIÉTAIRES-OCCUPANTS, À L’UNITÉ","Nouveau-Brunswick",24.804978133626129,"Période d’amortissement moyenne selon la province","24.8","Nouveau-Brunswick",{"$f":"IFERROR(VLOOKUP(A37,Translation!$A:$C,3,FALSE),A37)","v":10},{"$f":"IFERROR(VLOOKUP(B37,Translation!$A:$C,3,FALSE),B37)","v":"Cumul 2019"},{"$f":"IFERROR(VLOOKUP(C37,Translation!$A:$C,3,FALSE),C37)","v":"PROPRIÉTAIRES-OCCUPANTS, À L’UNITÉ"},{"$f":"IFERROR(VLOOKUP(D37,Translation!$A:$C,3,FALSE),D37)","v":"Nouveau-Brunswick"},{"$f":"IFERROR(VLOOKUP(E37,Translation!$A:$C,3,FALSE),E37)","v":24.804978133626129},{"$f":"IFERROR(VLOOKUP(F37,Translation!$A:$C,3,FALSE),F37)","v":"Période d’amortissement moyenne selon la province"},{"$f":"IFERROR(VLOOKUP(G37,Translation!$A:$C,3,FALSE),G37)","v":"24.8"},{"$f":"IFERROR(VLOOKUP(H37,Translation!$A:$C,3,FALSE),H37)","v":"Nouveau-Brunswick"}]
[10,"Cumul 2019","PROPRIÉTAIRES-OCCUPANTS, À L’UNITÉ","Québec",24.836499141625755,"Période d’amortissement moyenne selon la province","24.8","Québec",{"$f":"IFERROR(VLOOKUP(A38,Translation!$A:$C,3,FALSE),A38)","v":10},{"$f":"IFERROR(VLOOKUP(B38,Translation!$A:$C,3,FALSE),B38)","v":"Cumul 2019"},{"$f":"IFERROR(VLOOKUP(C38,Translation!$A:$C,3,FALSE),C38)","v":"PROPRIÉTAIRES-OCCUPANTS, À L’UNITÉ"},{"$f":"IFERROR(VLOOKUP(D38,Translation!$A:$C,3,FALSE),D38)","v":"Québec"},{"$f":"IFERROR(VLOOKUP(E38,Translation!$A:$C,3,FALSE),E38)","v":24.836499141625755},{"$f":"IFERROR(VLOOKUP(F38,Translation!$A:$C,3,FALSE),F38)","v":"Période d’amortissement moyenne selon la province"},{"$f":"IFERROR(VLOOKUP(G38,Translation!$A:$C,3,FALSE),G38)","v":"24.8"},{"$f":"IFERROR(VLOOKUP(H38,Translation!$A:$C,3,FALSE),H38)","v":"Québec"}]
[10,"Cumul 2019","PROPRIÉTAIRES-OCCUPANTS, À L’UNITÉ","Ontario",24.921949316172888,"Période d’amortissement moyenne selon la province","24.9","Ontario",{"$f":"IFERROR(VLOOKUP(A39,Translation!$A:$C,3,FALSE),A39)","v":10},{"$f":"IFERROR(VLOOKUP(B39,Translation!$A:$C,3,FALSE),B39)","v":"Cumul 2019"},{"$f":"IFERROR(VLOOKUP(C39,Translation!$A:$C,3,FALSE),C39)","v":"PROPRIÉTAIRES-OCCUPANTS, À L’UNITÉ"},{"$f":"IFERROR(VLOOKUP(D39,Translation!$A:$C,3,FALSE),D39)","v":"Ontario"},{"$f":"IFERROR(VLOOKUP(E39,Translation!$A:$C,3,FALSE),E39)","v":24.921949316172888},{"$f":"IFERROR(VLOOKUP(F39,Translation!$A:$C,3,FALSE),F39)","v":"Période d’amortissement moyenne selon la province"},{"$f":"IFERROR(VLOOKUP(G39,Translation!$A:$C,3,FALSE),G39)","v":"24.9"},{"$f":"IFERROR(VLOOKUP(H39,Translation!$A:$C,3,FALSE),H39)","v":"Ontario"}]
[10,"Cumul 2019","PROPRIÉTAIRES-OCCUPANTS, À L’UNITÉ","Manitoba",24.879769566255344,"Période d’amortissement moyenne selon la province","24.9","Manitoba",{"$f":"IFERROR(VLOOKUP(A40,Translation!$A:$C,3,FALSE),A40)","v":10},{"$f":"IFERROR(VLOOKUP(B40,Translation!$A:$C,3,FALSE),B40)","v":"Cumul 2019"},{"$f":"IFERROR(VLOOKUP(C40,Translation!$A:$C,3,FALSE),C40)","v":"PROPRIÉTAIRES-OCCUPANTS, À L’UNITÉ"},{"$f":"IFERROR(VLOOKUP(D40,Translation!$A:$C,3,FALSE),D40)","v":"Manitoba"},{"$f":"IFERROR(VLOOKUP(E40,Translation!$A:$C,3,FALSE),E40)","v":24.879769566255344},{"$f":"IFERROR(VLOOKUP(F40,Translation!$A:$C,3,FALSE),F40)","v":"Période d’amortissement moyenne selon la province"},{"$f":"IFERROR(VLOOKUP(G40,Translation!$A:$C,3,FALSE),G40)","v":"24.9"},{"$f":"IFERROR(VLOOKUP(H40,Translation!$A:$C,3,FALSE),H40)","v":"Manitoba"}]
[10,"Cumul 2019","PROPRIÉTAIRES-OCCUPANTS, À L’UNITÉ","Saskatchewan",24.802152160103994,"Période d’amortissement moyenne selon la province","24.8","Saskatchewan",{"$f":"IFERROR(VLOOKUP(A41,Translation!$A:$C,3,FALSE),A41)","v":10},{"$f":"IFERROR(VLOOKUP(B41,Translation!$A:$C,3,FALSE),B41)","v":"Cumul 2019"},{"$f":"IFERROR(VLOOKUP(C41,Translation!$A:$C,3,FALSE),C41)","v":"PROPRIÉTAIRES-OCCUPANTS, À L’UNITÉ"},{"$f":"IFERROR(VLOOKUP(D41,Translation!$A:$C,3,FALSE),D41)","v":"Saskatchewan"},{"$f":"IFERROR(VLOOKUP(E41,Translation!$A:$C,3,FALSE),E41)","v":24.802152160103994},{"$f":"IFERROR(VLOOKUP(F41,Translation!$A:$C,3,FALSE),F41)","v":"Période d’amortissement moyenne selon la province"},{"$f":"IFERROR(VLOOKUP(G41,Translation!$A:$C,3,FALSE),G41)","v":"24.8"},{"$f":"IFERROR(VLOOKUP(H41,Translation!$A:$C,3,FALSE),H41)","v":"Saskatchewan"}]
[10,"Cumul 2019","PROPRIÉTAIRES-OCCUPANTS, À L’UNITÉ","Alberta",24.874795977995355,"Période d’amortissement moyenne selon la province","24.9","Alberta",{"$f":"IFERROR(VLOOKUP(A42,Translation!$A:$C,3,FALSE),A42)","v":10},{"$f":"IFERROR(VLOOKUP(B42,Translation!$A:$C,3,FALSE),B42)","v":"Cumul 2019"},{"$f":"IFERROR(VLOOKUP(C42,Translation!$A:$C,3,FALSE),C42)","v":"PROPRIÉTAIRES-OCCUPANTS, À L’UNITÉ"},{"$f":"IFERROR(VLOOKUP(D42,Translation!$A:$C,3,FALSE),D42)","v":"Alberta"},{"$f":"IFERROR(VLOOKUP(E42,Translation!$A:$C,3,FALSE),E42)","v":24.874795977995355},{"$f":"IFERROR(VLOOKUP(F42,Translation!$A:$C,3,FALSE),F42)","v":"Période d’amortissement moyenne selon la province"},{"$f":"IFERROR(VLOOKUP(G42,Translation!$A:$C,3,FALSE),G42)","v":"24.9"},{"$f":"IFERROR(VLOOKUP(H42,Translation!$A:$C,3,FALSE),H42)","v":"Alberta"}]
[10,"Cumul 2019","PROPRIÉTAIRES-OCCUPANTS, À L’UNITÉ","Colombie-Britannique",24.848020963621003,"Période d’amortissement moyenne selon la province","24.8","Colombie-Britannique",{"$f":"IFERROR(VLOOKUP(A43,Translation!$A:$C,3,FALSE),A43)","v":10},{"$f":"IFERROR(VLOOKUP(B43,Translation!$A:$C,3,FALSE),B43)","v":"Cumul 2019"},{"$f":"IFERROR(VLOOKUP(C43,Translation!$A:$C,3,FALSE),C43)","v":"PROPRIÉTAIRES-OCCUPANTS, À L’UNITÉ"},{"$f":"IFERROR(VLOOKUP(D43,Translation!$A:$C,3,FALSE),D43)","v":"Colombie-Britannique"},{"$f":"IFERROR(VLOOKUP(E43,Translation!$A:$C,3,FALSE),E43)","v":24.848020963621003},{"$f":"IFERROR(VLOOKUP(F43,Translation!$A:$C,3,FALSE),F43)","v":"Période d’amortissement moyenne selon la province"},{"$f":"IFERROR(VLOOKUP(G43,Translation!$A:$C,3,FALSE),G43)","v":"24.8"},{"$f":"IFERROR(VLOOKUP(H43,Translation!$A:$C,3,FALSE),H43)","v":"Colombie-Britannique"}]
[10,"Cumul 2019","PROPRIÉTAIRES-OCCUPANTS, À L’UNITÉ","Territoires",24.661209291484184,"Période d’amortissement moyenne selon la province","24.7","Territoires",{"$f":"IFERROR(VLOOKUP(A44,Translation!$A:$C,3,FALSE),A44)","v":10},{"$f":"IFERROR(VLOOKUP(B44,Translation!$A:$C,3,FALSE),B44)","v":"Cumul 2019"},{"$f":"IFERROR(VLOOKUP(C44,Translation!$A:$C,3,FALSE),C44)","v":"PROPRIÉTAIRES-OCCUPANTS, À L’UNITÉ"},{"$f":"IFERROR(VLOOKUP(D44,Translation!$A:$C,3,FALSE),D44)","v":"Territoires"},{"$f":"IFERROR(VLOOKUP(E44,Translation!$A:$C,3,FALSE),E44)","v":24.661209291484184},{"$f":"IFERROR(VLOOKUP(F44,Translation!$A:$C,3,FALSE),F44)","v":"Période d’amortissement moyenne selon la province"},{"$f":"IFERROR(VLOOKUP(G44,Translation!$A:$C,3,FALSE),G44)","v":"24.7"},{"$f":"IFERROR(VLOOKUP(H44,Translation!$A:$C,3,FALSE),H44)","v":"Territoires"}]
[10,"Cumul 2020","PROPRIÉTAIRES-OCCUPANTS, À L’UNITÉ","Terre-Neuve-et-Labrador",24.787072802884804,"Période d’amortissement moyenne selon la province","24.8","Terre-Neuve-et-Labrador",{"$f":"IFERROR(VLOOKUP(A45,Translation!$A:$C,3,FALSE),A45)","v":10},{"$f":"IFERROR(VLOOKUP(B45,Translation!$A:$C,3,FALSE),B45)","v":"Cumul 2020"},{"$f":"IFERROR(VLOOKUP(C45,Translation!$A:$C,3,FALSE),C45)","v":"PROPRIÉTAIRES-OCCUPANTS, À L’UNITÉ"},{"$f":"IFERROR(VLOOKUP(D45,Translation!$A:$C,3,FALSE),D45)","v":"Terre-Neuve-et-Labrador"},{"$f":"IFERROR(VLOOKUP(E45,Translation!$A:$C,3,FALSE),E45)","v":24.787072802884804},{"$f":"IFERROR(VLOOKUP(F45,Translation!$A:$C,3,FALSE),F45)","v":"Période d’amortissement moyenne selon la province"},{"$f":"IFERROR(VLOOKUP(G45,Translation!$A:$C,3,FALSE),G45)","v":"24.8"},{"$f":"IFERROR(VLOOKUP(H45,Translation!$A:$C,3,FALSE),H45)","v":"Terre-Neuve-et-Labrador"}]
[10,"Cumul 2020","PROPRIÉTAIRES-OCCUPANTS, À L’UNITÉ","Île-du-Prince-Édouard",24.912991865153018,"Période d’amortissement moyenne selon la province","24.9","Île-du-Prince-Édouard",{"$f":"IFERROR(VLOOKUP(A46,Translation!$A:$C,3,FALSE),A46)","v":10},{"$f":"IFERROR(VLOOKUP(B46,Translation!$A:$C,3,FALSE),B46)","v":"Cumul 2020"},{"$f":"IFERROR(VLOOKUP(C46,Translation!$A:$C,3,FALSE),C46)","v":"PROPRIÉTAIRES-OCCUPANTS, À L’UNITÉ"},{"$f":"IFERROR(VLOOKUP(D46,Translation!$A:$C,3,FALSE),D46)","v":"Île-du-Prince-Édouard"},{"$f":"IFERROR(VLOOKUP(E46,Translation!$A:$C,3,FALSE),E46)","v":24.912991865153018},{"$f":"IFERROR(VLOOKUP(F46,Translation!$A:$C,3,FALSE),F46)","v":"Période d’amortissement moyenne selon la province"},{"$f":"IFERROR(VLOOKUP(G46,Translation!$A:$C,3,FALSE),G46)","v":"24.9"},{"$f":"IFERROR(VLOOKUP(H46,Translation!$A:$C,3,FALSE),H46)","v":"Île-du-Prince-Édouard"}]
[10,"Cumul 2020","PROPRIÉTAIRES-OCCUPANTS, À L’UNITÉ","Nouvelle-Écosse",24.794989457742993,"Période d’amortissement moyenne selon la province","24.8","Nouvelle-Écosse",{"$f":"IFERROR(VLOOKUP(A47,Translation!$A:$C,3,FALSE),A47)","v":10},{"$f":"IFERROR(VLOOKUP(B47,Translation!$A:$C,3,FALSE),B47)","v":"Cumul 2020"},{"$f":"IFERROR(VLOOKUP(C47,Translation!$A:$C,3,FALSE),C47)","v":"PROPRIÉTAIRES-OCCUPANTS, À L’UNITÉ"},{"$f":"IFERROR(VLOOKUP(D47,Translation!$A:$C,3,FALSE),D47)","v":"Nouvelle-Écosse"},{"$f":"IFERROR(VLOOKUP(E47,Translation!$A:$C,3,FALSE),E47)","v":24.794989457742993},{"$f":"IFERROR(VLOOKUP(F47,Translation!$A:$C,3,FALSE),F47)","v":"Période d’amortissement moyenne selon la province"},{"$f":"IFERROR(VLOOKUP(G47,Translation!$A:$C,3,FALSE),G47)","v":"24.8"},{"$f":"IFERROR(VLOOKUP(H47,Translation!$A:$C,3,FALSE),H47)","v":"Nouvelle-Écosse"}]
[10,"Cumul 2020","PROPRIÉTAIRES-OCCUPANTS, À L’UNITÉ","Nouveau-Brunswick",24.695702263585421,"Période d’amortissement moyenne selon la province","24.7","Nouveau-Brunswick",{"$f":"IFERROR(VLOOKUP(A48,Translation!$A:$C,3,FALSE),A48)","v":10},{"$f":"IFERROR(VLOOKUP(B48,Translation!$A:$C,3,FALSE),B48)","v":"Cumul 2020"},{"$f":"IFERROR(VLOOKUP(C48,Translation!$A:$C,3,FALSE),C48)","v":"PROPRIÉTAIRES-OCCUPANTS, À L’UNITÉ"},{"$f":"IFERROR(VLOOKUP(D48,Translation!$A:$C,3,FALSE),D48)","v":"Nouveau-Brunswick"},{"$f":"IFERROR(VLOOKUP(E48,Translation!$A:$C,3,FALSE),E48)","v":24.695702263585421},{"$f":"IFERROR(VLOOKUP(F48,Translation!$A:$C,3,FALSE),F48)","v":"Période d’amortissement moyenne selon la province"},{"$f":"IFERROR(VLOOKUP(G48,Translation!$A:$C,3,FALSE),G48)","v":"24.7"},{"$f":"IFERROR(VLOOKUP(H48,Translation!$A:$C,3,FALSE),H48)","v":"Nouveau-Brunswick"}]
[10,"Cumul 2020","PROPRIÉTAIRES-OCCUPANTS, À L’UNITÉ","Québec",24.901898891015151,"Période d’amortissement moyenne selon la province","24.9","Québec",{"$f":"IFERROR(VLOOKUP(A49,Translation!$A:$C,3,FALSE),A49)","v":10},{"$f":"IFERROR(VLOOKUP(B49,Translation!$A:$C,3,FALSE),B49)","v":"Cumul 2020"},{"$f":"IFERROR(VLOOKUP(C49,Translation!$A:$C,3,FALSE),C49)","v":"PROPRIÉTAIRES-OCCUPANTS, À L’UNITÉ"},{"$f":"IFERROR(VLOOKUP(D49,Translation!$A:$C,3,FALSE),D49)","v":"Québec"},{"$f":"IFERROR(VLOOKUP(E49,Translation!$A:$C,3,FALSE),E49)","v":24.901898891015151},{"$f":"IFERROR(VLOOKUP(F49,Translation!$A:$C,3,FALSE),F49)","v":"Période d’amortissement moyenne selon la province"},{"$f":"IFERROR(VLOOKUP(G49,Translation!$A:$C,3,FALSE),G49)","v":"24.9"},{"$f":"IFERROR(VLOOKUP(H49,Translation!$A:$C,3,FALSE),H49)","v":"Québec"}]
[10,"Cumul 2020","PROPRIÉTAIRES-OCCUPANTS, À L’UNITÉ","Ontario",24.958812204631752,"Période d’amortissement moyenne selon la province","25.0","Ontario",{"$f":"IFERROR(VLOOKUP(A50,Translation!$A:$C,3,FALSE),A50)","v":10},{"$f":"IFERROR(VLOOKUP(B50,Translation!$A:$C,3,FALSE),B50)","v":"Cumul 2020"},{"$f":"IFERROR(VLOOKUP(C50,Translation!$A:$C,3,FALSE),C50)","v":"PROPRIÉTAIRES-OCCUPANTS, À L’UNITÉ"},{"$f":"IFERROR(VLOOKUP(D50,Translation!$A:$C,3,FALSE),D50)","v":"Ontario"},{"$f":"IFERROR(VLOOKUP(E50,Translation!$A:$C,3,FALSE),E50)","v":24.958812204631752},{"$f":"IFERROR(VLOOKUP(F50,Translation!$A:$C,3,FALSE),F50)","v":"Période d’amortissement moyenne selon la province"},{"$f":"IFERROR(VLOOKUP(G50,Translation!$A:$C,3,FALSE),G50)","v":"25.0"},{"$f":"IFERROR(VLOOKUP(H50,Translation!$A:$C,3,FALSE),H50)","v":"Ontario"}]
[10,"Cumul 2020","PROPRIÉTAIRES-OCCUPANTS, À L’UNITÉ","Manitoba",24.884209626602576,"Période d’amortissement moyenne selon la province","24.9","Manitoba",{"$f":"IFERROR(VLOOKUP(A51,Translation!$A:$C,3,FALSE),A51)","v":10},{"$f":"IFERROR(VLOOKUP(B51,Translation!$A:$C,3,FALSE),B51)","v":"Cumul 2020"},{"$f":"IFERROR(VLOOKUP(C51,Translation!$A:$C,3,FALSE),C51)","v":"PROPRIÉTAIRES-OCCUPANTS, À L’UNITÉ"},{"$f":"IFERROR(VLOOKUP(D51,Translation!$A:$C,3,FALSE),D51)","v":"Manitoba"},{"$f":"IFERROR(VLOOKUP(E51,Translation!$A:$C,3,FALSE),E51)","v":24.884209626602576},{"$f":"IFERROR(VLOOKUP(F51,Translation!$A:$C,3,FALSE),F51)","v":"Période d’amortissement moyenne selon la province"},{"$f":"IFERROR(VLOOKUP(G51,Translation!$A:$C,3,FALSE),G51)","v":"24.9"},{"$f":"IFERROR(VLOOKUP(H51,Translation!$A:$C,3,FALSE),H51)","v":"Manitoba"}]
[10,"Cumul 2020","PROPRIÉTAIRES-OCCUPANTS, À L’UNITÉ","Saskatchewan",24.676672497682265,"Période d’amortissement moyenne selon la province","24.7","Saskatchewan",{"$f":"IFERROR(VLOOKUP(A52,Translation!$A:$C,3,FALSE),A52)","v":10},{"$f":"IFERROR(VLOOKUP(B52,Translation!$A:$C,3,FALSE),B52)","v":"Cumul 2020"},{"$f":"IFERROR(VLOOKUP(C52,Translation!$A:$C,3,FALSE),C52)","v":"PROPRIÉTAIRES-OCCUPANTS, À L’UNITÉ"},{"$f":"IFERROR(VLOOKUP(D52,Translation!$A:$C,3,FALSE),D52)","v":"Saskatchewan"},{"$f":"IFERROR(VLOOKUP(E52,Translation!$A:$C,3,FALSE),E52)","v":24.676672497682265},{"$f":"IFERROR(VLOOKUP(F52,Translation!$A:$C,3,FALSE),F52)","v":"Période d’amortissement moyenne selon la province"},{"$f":"IFERROR(VLOOKUP(G52,Translation!$A:$C,3,FALSE),G52)","v":"24.7"},{"$f":"IFERROR(VLOOKUP(H52,Translation!$A:$C,3,FALSE),H52)","v":"Saskatchewan"}]
[10,"Cumul 2020","PROPRIÉTAIRES-OCCUPANTS, À L’UNITÉ","Alberta",24.887863804254735,"Période d’amortissement moyenne selon la province","24.9","Alberta",{"$f":"IFERROR(VLOOKUP(A53,Translation!$A:$C,3,FALSE),A53)","v":10},{"$f":"IFERROR(VLOOKUP(B53,Translation!$A:$C,3,FALSE),B53)","v":"Cumul 2020"},{"$f":"IFERROR(VLOOKUP(C53,Translation!$A:$C,3,FALSE),C53)","v":"PROPRIÉTAIRES-OCCUPANTS, À L’UNITÉ"},{"$f":"IFERROR(VLOOKUP(D53,Translation!$A:$C,3,FALSE),D53)","v":"Alberta"},{"$f":"IFERROR(VLOOKUP(E53,Translation!$A:$C,3,FALSE),E53)","v":24.887863804254735},{"$f":"IFERROR(VLOOKUP(F53,Translation!$A:$C,3,FALSE),F53)","v":"Période d’amortissement moyenne selon la province"},{"$f":"IFERROR(VLOOKUP(G53,Translation!$A:$C,3,FALSE),G53)","v":"24.9"},{"$f":"IFERROR(VLOOKUP(H53,Translation!$A:$C,3,FALSE),H53)","v":"Alberta"}]
[10,"Cumul 2020","PROPRIÉTAIRES-OCCUPANTS, À L’UNITÉ","Colombie-Britannique",24.845105094632796,"Période d’amortissement moyenne selon la province","24.8","Colombie-Britannique",{"$f":"IFERROR(VLOOKUP(A54,Translation!$A:$C,3,FALSE),A54)","v":10},{"$f":"IFERROR(VLOOKUP(B54,Translation!$A:$C,3,FALSE),B54)","v":"Cumul 2020"},{"$f":"IFERROR(VLOOKUP(C54,Translation!$A:$C,3,FALSE),C54)","v":"PROPRIÉTAIRES-OCCUPANTS, À L’UNITÉ"},{"$f":"IFERROR(VLOOKUP(D54,Translation!$A:$C,3,FALSE),D54)","v":"Colombie-Britannique"},{"$f":"IFERROR(VLOOKUP(E54,Translation!$A:$C,3,FALSE),E54)","v":24.845105094632796},{"$f":"IFERROR(VLOOKUP(F54,Translation!$A:$C,3,FALSE),F54)","v":"Période d’amortissement moyenne selon la province"},{"$f":"IFERROR(VLOOKUP(G54,Translation!$A:$C,3,FALSE),G54)","v":"24.8"},{"$f":"IFERROR(VLOOKUP(H54,Translation!$A:$C,3,FALSE),H54)","v":"Colombie-Britannique"}]
[10,"Cumul 2020","PROPRIÉTAIRES-OCCUPANTS, À L’UNITÉ","Territoires",24.747152163710918,"Période d’amortissement moyenne selon la province","24.7","Territoires",{"$f":"IFERROR(VLOOKUP(A55,Translation!$A:$C,3,FALSE),A55)","v":10},{"$f":"IFERROR(VLOOKUP(B55,Translation!$A:$C,3,FALSE),B55)","v":"Cumul 2020"},{"$f":"IFERROR(VLOOKUP(C55,Translation!$A:$C,3,FALSE),C55)","v":"PROPRIÉTAIRES-OCCUPANTS, À L’UNITÉ"},{"$f":"IFERROR(VLOOKUP(D55,Translation!$A:$C,3,FALSE),D55)","v":"Territoires"},{"$f":"IFERROR(VLOOKUP(E55,Translation!$A:$C,3,FALSE),E55)","v":24.747152163710918},{"$f":"IFERROR(VLOOKUP(F55,Translation!$A:$C,3,FALSE),F55)","v":"Période d’amortissement moyenne selon la province"},{"$f":"IFERROR(VLOOKUP(G55,Translation!$A:$C,3,FALSE),G55)","v":"24.7"},{"$f":"IFERROR(VLOOKUP(H55,Translation!$A:$C,3,FALSE),H55)","v":"Territoires"}]
[10,"T1 2020","ASSURANCE DE PORTEFEUILLE","<= 5",0.19472322767604217,"Prêts hypothécaires assurés au cours de la période selon la période d’amortissement (en années) à l'initiation (%)","0.2"," <= 5",{"$f":"IFERROR(VLOOKUP(A56,Translation!$A:$C,3,FALSE),A56)","v":10},{"$f":"IFERROR(VLOOKUP(B56,Translation!$A:$C,3,FALSE),B56)","v":"T1 2020"},{"$f":"IFERROR(VLOOKUP(C56,Translation!$A:$C,3,FALSE),C56)","v":"ASSURANCE DE PORTEFEUILLE"},{"$f":"IFERROR(VLOOKUP(D56,Translation!$A:$C,3,FALSE),D56)","v":"<= 5"},{"$f":"IFERROR(VLOOKUP(E56,Translation!$A:$C,3,FALSE),E56)","v":0.19472322767604217},{"$f":"IFERROR(VLOOKUP(F56,Translation!$A:$C,3,FALSE),F56)","v":"Prêts hypothécaires assurés au cours de la période selon la période d’amortissement (en années) à l'initiation (%)"},{"$f":"IFERROR(VLOOKUP(G56,Translation!$A:$C,3,FALSE),G56)","v":"0.2"},{"$f":"IFERROR(VLOOKUP(H56,Translation!$A:$C,3,FALSE),H56)","v":" <= 5"}]
[10,"Cumul 2019","ASSURANCE DE PORTEFEUILLE","<= 5",0.26941560246254997,"Prêts hypothécaires assurés au cours de la période selon la période d’amortissement (en années) à l'initiation (%)","0.3"," <= 5",{"$f":"IFERROR(VLOOKUP(A57,Translation!$A:$C,3,FALSE),A57)","v":10},{"$f":"IFERROR(VLOOKUP(B57,Translation!$A:$C,3,FALSE),B57)","v":"Cumul 2019"},{"$f":"IFERROR(VLOOKUP(C57,Translation!$A:$C,3,FALSE),C57)","v":"ASSURANCE DE PORTEFEUILLE"},{"$f":"IFERROR(VLOOKUP(D57,Translation!$A:$C,3,FALSE),D57)","v":"<= 5"},{"$f":"IFERROR(VLOOKUP(E57,Translation!$A:$C,3,FALSE),E57)","v":0.26941560246254997},{"$f":"IFERROR(VLOOKUP(F57,Translation!$A:$C,3,FALSE),F57)","v":"Prêts hypothécaires assurés au cours de la période selon la période d’amortissement (en années) à l'initiation (%)"},{"$f":"IFERROR(VLOOKUP(G57,Translation!$A:$C,3,FALSE),G57)","v":"0.3"},{"$f":"IFERROR(VLOOKUP(H57,Translation!$A:$C,3,FALSE),H57)","v":" <= 5"}]
[10,"Cumul 2020","ASSURANCE DE PORTEFEUILLE","<= 5",0.19472322767604217,"Prêts hypothécaires assurés au cours de la période selon la période d’amortissement (en années) à l'initiation (%)","0.2"," <= 5",{"$f":"IFERROR(VLOOKUP(A58,Translation!$A:$C,3,FALSE),A58)","v":10},{"$f":"IFERROR(VLOOKUP(B58,Translation!$A:$C,3,FALSE),B58)","v":"Cumul 2020"},{"$f":"IFERROR(VLOOKUP(C58,Translation!$A:$C,3,FALSE),C58)","v":"ASSURANCE DE PORTEFEUILLE"},{"$f":"IFERROR(VLOOKUP(D58,Translation!$A:$C,3,FALSE),D58)","v":"<= 5"},{"$f":"IFERROR(VLOOKUP(E58,Translation!$A:$C,3,FALSE),E58)","v":0.19472322767604217},{"$f":"IFERROR(VLOOKUP(F58,Translation!$A:$C,3,FALSE),F58)","v":"Prêts hypothécaires assurés au cours de la période selon la période d’amortissement (en années) à l'initiation (%)"},{"$f":"IFERROR(VLOOKUP(G58,Translation!$A:$C,3,FALSE),G58)","v":"0.2"},{"$f":"IFERROR(VLOOKUP(H58,Translation!$A:$C,3,FALSE),H58)","v":" <= 5"}]
[10,"T1 2020","ASSURANCE DE PORTEFEUILLE","> 5 <= 10",1.6684681169536619,"Prêts hypothécaires assurés au cours de la période selon la période d’amortissement (en années) à l'initiation (%)","1.7"," > 5 <= 10",{"$f":"IFERROR(VLOOKUP(A59,Translation!$A:$C,3,FALSE),A59)","v":10},{"$f":"IFERROR(VLOOKUP(B59,Translation!$A:$C,3,FALSE),B59)","v":"T1 2020"},{"$f":"IFERROR(VLOOKUP(C59,Translation!$A:$C,3,FALSE),C59)","v":"ASSURANCE DE PORTEFEUILLE"},{"$f":"IFERROR(VLOOKUP(D59,Translation!$A:$C,3,FALSE),D59)","v":"> 5 <= 10"},{"$f":"IFERROR(VLOOKUP(E59,Translation!$A:$C,3,FALSE),E59)","v":1.6684681169536619},{"$f":"IFERROR(VLOOKUP(F59,Translation!$A:$C,3,FALSE),F59)","v":"Prêts hypothécaires assurés au cours de la période selon la période d’amortissement (en années) à l'initiation (%)"},{"$f":"IFERROR(VLOOKUP(G59,Translation!$A:$C,3,FALSE),G59)","v":"1.7"},{"$f":"IFERROR(VLOOKUP(H59,Translation!$A:$C,3,FALSE),H59)","v":" > 5 <= 10"}]
[10,"Cumul 2019","ASSURANCE DE PORTEFEUILLE","> 5 <= 10",2.2439350785793697,"Prêts hypothécaires assurés au cours de la période selon la période d’amortissement (en années) à l'initiation (%)","2.2"," > 5 <= 10",{"$f":"IFERROR(VLOOKUP(A60,Translation!$A:$C,3,FALSE),A60)","v":10},{"$f":"IFERROR(VLOOKUP(B60,Translation!$A:$C,3,FALSE),B60)","v":"Cumul 2019"},{"$f":"IFERROR(VLOOKUP(C60,Translation!$A:$C,3,FALSE),C60)","v":"ASSURANCE DE PORTEFEUILLE"},{"$f":"IFERROR(VLOOKUP(D60,Translation!$A:$C,3,FALSE),D60)","v":"> 5 <= 10"},{"$f":"IFERROR(VLOOKUP(E60,Translation!$A:$C,3,FALSE),E60)","v":2.2439350785793697},{"$f":"IFERROR(VLOOKUP(F60,Translation!$A:$C,3,FALSE),F60)","v":"Prêts hypothécaires assurés au cours de la période selon la période d’amortissement (en années) à l'initiation (%)"},{"$f":"IFERROR(VLOOKUP(G60,Translation!$A:$C,3,FALSE),G60)","v":"2.2"},{"$f":"IFERROR(VLOOKUP(H60,Translation!$A:$C,3,FALSE),H60)","v":" > 5 <= 10"}]
[10,"Cumul 2020","ASSURANCE DE PORTEFEUILLE","> 5 <= 10",1.6684681169536619,"Prêts hypothécaires assurés au cours de la période selon la période d’amortissement (en années) à l'initiation (%)","1.7"," > 5 <= 10",{"$f":"IFERROR(VLOOKUP(A61,Translation!$A:$C,3,FALSE),A61)","v":10},{"$f":"IFERROR(VLOOKUP(B61,Translation!$A:$C,3,FALSE),B61)","v":"Cumul 2020"},{"$f":"IFERROR(VLOOKUP(C61,Translation!$A:$C,3,FALSE),C61)","v":"ASSURANCE DE PORTEFEUILLE"},{"$f":"IFERROR(VLOOKUP(D61,Translation!$A:$C,3,FALSE),D61)","v":"> 5 <= 10"},{"$f":"IFERROR(VLOOKUP(E61,Translation!$A:$C,3,FALSE),E61)","v":1.6684681169536619},{"$f":"IFERROR(VLOOKUP(F61,Translation!$A:$C,3,FALSE),F61)","v":"Prêts hypothécaires assurés au cours de la période selon la période d’amortissement (en années) à l'initiation (%)"},{"$f":"IFERROR(VLOOKUP(G61,Translation!$A:$C,3,FALSE),G61)","v":"1.7"},{"$f":"IFERROR(VLOOKUP(H61,Translation!$A:$C,3,FALSE),H61)","v":" > 5 <= 10"}]
[10,"T1 2020","ASSURANCE DE PORTEFEUILLE","> 10 <= 15",3.8211147785260993,"Prêts hypothécaires assurés au cours de la période selon la période d’amortissement (en années) à l'initiation (%)","3.8"," > 10 <= 15",{"$f":"IFERROR(VLOOKUP(A62,Translation!$A:$C,3,FALSE),A62)","v":10},{"$f":"IFERROR(VLOOKUP(B62,Translation!$A:$C,3,FALSE),B62)","v":"T1 2020"},{"$f":"IFERROR(VLOOKUP(C62,Translation!$A:$C,3,FALSE),C62)","v":"ASSURANCE DE PORTEFEUILLE"},{"$f":"IFERROR(VLOOKUP(D62,Translation!$A:$C,3,FALSE),D62)","v":"> 10 <= 15"},{"$f":"IFERROR(VLOOKUP(E62,Translation!$A:$C,3,FALSE),E62)","v":3.8211147785260993},{"$f":"IFERROR(VLOOKUP(F62,Translation!$A:$C,3,FALSE),F62)","v":"Prêts hypothécaires assurés au cours de la période selon la période d’amortissement (en années) à l'initiation (%)"},{"$f":"IFERROR(VLOOKUP(G62,Translation!$A:$C,3,FALSE),G62)","v":"3.8"},{"$f":"IFERROR(VLOOKUP(H62,Translation!$A:$C,3,FALSE),H62)","v":" > 10 <= 15"}]
[10,"Cumul 2019","ASSURANCE DE PORTEFEUILLE","> 10 <= 15",6.9988546123420798,"Prêts hypothécaires assurés au cours de la période selon la période d’amortissement (en années) à l'initiation (%)","7.0"," > 10 <= 15",{"$f":"IFERROR(VLOOKUP(A63,Translation!$A:$C,3,FALSE),A63)","v":10},{"$f":"IFERROR(VLOOKUP(B63,Translation!$A:$C,3,FALSE),B63)","v":"Cumul 2019"},{"$f":"IFERROR(VLOOKUP(C63,Translation!$A:$C,3,FALSE),C63)","v":"ASSURANCE DE PORTEFEUILLE"},{"$f":"IFERROR(VLOOKUP(D63,Translation!$A:$C,3,FALSE),D63)","v":"> 10 <= 15"},{"$f":"IFERROR(VLOOKUP(E63,Translation!$A:$C,3,FALSE),E63)","v":6.9988546123420798},{"$f":"IFERROR(VLOOKUP(F63,Translation!$A:$C,3,FALSE),F63)","v":"Prêts hypothécaires assurés au cours de la période selon la période d’amortissement (en années) à l'initiation (%)"},{"$f":"IFERROR(VLOOKUP(G63,Translation!$A:$C,3,FALSE),G63)","v":"7.0"},{"$f":"IFERROR(VLOOKUP(H63,Translation!$A:$C,3,FALSE),H63)","v":" > 10 <= 15"}]
[10,"Cumul 2020","ASSURANCE DE PORTEFEUILLE","> 10 <= 15",3.8211147785260993,"Prêts hypothécaires assurés au cours de la période selon la période d’amortissement (en années) à l'initiation (%)","3.8"," > 10 <= 15",{"$f":"IFERROR(VLOOKUP(A64,Translation!$A:$C,3,FALSE),A64)","v":10},{"$f":"IFERROR(VLOOKUP(B64,Translation!$A:$C,3,FALSE),B64)","v":"Cumul 2020"},{"$f":"IFERROR(VLOOKUP(C64,Translation!$A:$C,3,FALSE),C64)","v":"ASSURANCE DE PORTEFEUILLE"},{"$f":"IFERROR(VLOOKUP(D64,Translation!$A:$C,3,FALSE),D64)","v":"> 10 <= 15"},{"$f":"IFERROR(VLOOKUP(E64,Translation!$A:$C,3,FALSE),E64)","v":3.8211147785260993},{"$f":"IFERROR(VLOOKUP(F64,Translation!$A:$C,3,FALSE),F64)","v":"Prêts hypothécaires assurés au cours de la période selon la période d’amortissement (en années) à l'initiation (%)"},{"$f":"IFERROR(VLOOKUP(G64,Translation!$A:$C,3,FALSE),G64)","v":"3.8"},{"$f":"IFERROR(VLOOKUP(H64,Translation!$A:$C,3,FALSE),H64)","v":" > 10 <= 15"}]
[10,"T1 2020","ASSURANCE DE PORTEFEUILLE","> 15 <= 20",12.222717763480157,"Prêts hypothécaires assurés au cours de la période selon la période d’amortissement (en années) à l'initiation (%)","12.2"," > 15 <= 20",{"$f":"IFERROR(VLOOKUP(A65,Translation!$A:$C,3,FALSE),A65)","v":10},{"$f":"IFERROR(VLOOKUP(B65,Translation!$A:$C,3,FALSE),B65)","v":"T1 2020"},{"$f":"IFERROR(VLOOKUP(C65,Translation!$A:$C,3,FALSE),C65)","v":"ASSURANCE DE PORTEFEUILLE"},{"$f":"IFERROR(VLOOKUP(D65,Translation!$A:$C,3,FALSE),D65)","v":"> 15 <= 20"},{"$f":"IFERROR(VLOOKUP(E65,Translation!$A:$C,3,FALSE),E65)","v":12.222717763480157},{"$f":"IFERROR(VLOOKUP(F65,Translation!$A:$C,3,FALSE),F65)","v":"Prêts hypothécaires assurés au cours de la période selon la période d’amortissement (en années) à l'initiation (%)"},{"$f":"IFERROR(VLOOKUP(G65,Translation!$A:$C,3,FALSE),G65)","v":"12.2"},{"$f":"IFERROR(VLOOKUP(H65,Translation!$A:$C,3,FALSE),H65)","v":" > 15 <= 20"}]
[10,"Cumul 2019","ASSURANCE DE PORTEFEUILLE","> 15 <= 20",16.823481911277803,"Prêts hypothécaires assurés au cours de la période selon la période d’amortissement (en années) à l'initiation (%)","16.8"," > 15 <= 20",{"$f":"IFERROR(VLOOKUP(A66,Translation!$A:$C,3,FALSE),A66)","v":10},{"$f":"IFERROR(VLOOKUP(B66,Translation!$A:$C,3,FALSE),B66)","v":"Cumul 2019"},{"$f":"IFERROR(VLOOKUP(C66,Translation!$A:$C,3,FALSE),C66)","v":"ASSURANCE DE PORTEFEUILLE"},{"$f":"IFERROR(VLOOKUP(D66,Translation!$A:$C,3,FALSE),D66)","v":"> 15 <= 20"},{"$f":"IFERROR(VLOOKUP(E66,Translation!$A:$C,3,FALSE),E66)","v":16.823481911277803},{"$f":"IFERROR(VLOOKUP(F66,Translation!$A:$C,3,FALSE),F66)","v":"Prêts hypothécaires assurés au cours de la période selon la période d’amortissement (en années) à l'initiation (%)"},{"$f":"IFERROR(VLOOKUP(G66,Translation!$A:$C,3,FALSE),G66)","v":"16.8"},{"$f":"IFERROR(VLOOKUP(H66,Translation!$A:$C,3,FALSE),H66)","v":" > 15 <= 20"}]
[10,"Cumul 2020","ASSURANCE DE PORTEFEUILLE","> 15 <= 20",12.222717763480157,"Prêts hypothécaires assurés au cours de la période selon la période d’amortissement (en années) à l'initiation (%)","12.2"," > 15 <= 20",{"$f":"IFERROR(VLOOKUP(A67,Translation!$A:$C,3,FALSE),A67)","v":10},{"$f":"IFERROR(VLOOKUP(B67,Translation!$A:$C,3,FALSE),B67)","v":"Cumul 2020"},{"$f":"IFERROR(VLOOKUP(C67,Translation!$A:$C,3,FALSE),C67)","v":"ASSURANCE DE PORTEFEUILLE"},{"$f":"IFERROR(VLOOKUP(D67,Translation!$A:$C,3,FALSE),D67)","v":"> 15 <= 20"},{"$f":"IFERROR(VLOOKUP(E67,Translation!$A:$C,3,FALSE),E67)","v":12.222717763480157},{"$f":"IFERROR(VLOOKUP(F67,Translation!$A:$C,3,FALSE),F67)","v":"Prêts hypothécaires assurés au cours de la période selon la période d’amortissement (en années) à l'initiation (%)"},{"$f":"IFERROR(VLOOKUP(G67,Translation!$A:$C,3,FALSE),G67)","v":"12.2"},{"$f":"IFERROR(VLOOKUP(H67,Translation!$A:$C,3,FALSE),H67)","v":" > 15 <= 20"}]
[10,"T1 2020","ASSURANCE DE PORTEFEUILLE","> 20 <= 25",81.044902244254686,"Prêts hypothécaires assurés au cours de la période selon la période d’amortissement (en années) à l'initiation (%)","81.0"," > 20 <= 25",{"$f":"IFERROR(VLOOKUP(A68,Translation!$A:$C,3,FALSE),A68)","v":10},{"$f":"IFERROR(VLOOKUP(B68,Translation!$A:$C,3,FALSE),B68)","v":"T1 2020"},{"$f":"IFERROR(VLOOKUP(C68,Translation!$A:$C,3,FALSE),C68)","v":"ASSURANCE DE PORTEFEUILLE"},{"$f":"IFERROR(VLOOKUP(D68,Translation!$A:$C,3,FALSE),D68)","v":"> 20 <= 25"},{"$f":"IFERROR(VLOOKUP(E68,Translation!$A:$C,3,FALSE),E68)","v":81.044902244254686},{"$f":"IFERROR(VLOOKUP(F68,Translation!$A:$C,3,FALSE),F68)","v":"Prêts hypothécaires assurés au cours de la période selon la période d’amortissement (en années) à l'initiation (%)"},{"$f":"IFERROR(VLOOKUP(G68,Translation!$A:$C,3,FALSE),G68)","v":"81.0"},{"$f":"IFERROR(VLOOKUP(H68,Translation!$A:$C,3,FALSE),H68)","v":" > 20 <= 25"}]
[10,"Cumul 2019","ASSURANCE DE PORTEFEUILLE","> 20 <= 25",64.667491386278115,"Prêts hypothécaires assurés au cours de la période selon la période d’amortissement (en années) à l'initiation (%)","64.7"," > 20 <= 25",{"$f":"IFERROR(VLOOKUP(A69,Translation!$A:$C,3,FALSE),A69)","v":10},{"$f":"IFERROR(VLOOKUP(B69,Translation!$A:$C,3,FALSE),B69)","v":"Cumul 2019"},{"$f":"IFERROR(VLOOKUP(C69,Translation!$A:$C,3,FALSE),C69)","v":"ASSURANCE DE PORTEFEUILLE"},{"$f":"IFERROR(VLOOKUP(D69,Translation!$A:$C,3,FALSE),D69)","v":"> 20 <= 25"},{"$f":"IFERROR(VLOOKUP(E69,Translation!$A:$C,3,FALSE),E69)","v":64.667491386278115},{"$f":"IFERROR(VLOOKUP(F69,Translation!$A:$C,3,FALSE),F69)","v":"Prêts hypothécaires assurés au cours de la période selon la période d’amortissement (en années) à l'initiation (%)"},{"$f":"IFERROR(VLOOKUP(G69,Translation!$A:$C,3,FALSE),G69)","v":"64.7"},{"$f":"IFERROR(VLOOKUP(H69,Translation!$A:$C,3,FALSE),H69)","v":" > 20 <= 25"}]
[10,"Cumul 2020","ASSURANCE DE PORTEFEUILLE","> 20 <= 25",81.044902244254686,"Prêts hypothécaires assurés au cours de la période selon la période d’amortissement (en années) à l'initiation (%)","81.0"," > 20 <= 25",{"$f":"IFERROR(VLOOKUP(A70,Translation!$A:$C,3,FALSE),A70)","v":10},{"$f":"IFERROR(VLOOKUP(B70,Translation!$A:$C,3,FALSE),B70)","v":"Cumul 2020"},{"$f":"IFERROR(VLOOKUP(C70,Translation!$A:$C,3,FALSE),C70)","v":"ASSURANCE DE PORTEFEUILLE"},{"$f":"IFERROR(VLOOKUP(D70,Translation!$A:$C,3,FALSE),D70)","v":"> 20 <= 25"},{"$f":"IFERROR(VLOOKUP(E70,Translation!$A:$C,3,FALSE),E70)","v":81.044902244254686},{"$f":"IFERROR(VLOOKUP(F70,Translation!$A:$C,3,FALSE),F70)","v":"Prêts hypothécaires assurés au cours de la période selon la période d’amortissement (en années) à l'initiation (%)"},{"$f":"IFERROR(VLOOKUP(G70,Translation!$A:$C,3,FALSE),G70)","v":"81.0"},{"$f":"IFERROR(VLOOKUP(H70,Translation!$A:$C,3,FALSE),H70)","v":" > 20 <= 25"}]
[10,"T1 2020","ASSURANCE DE PORTEFEUILLE","> 25 <= 30",1.0480738691093929,"Prêts hypothécaires assurés au cours de la période selon la période d’amortissement (en années) à l'initiation (%)","1.0"," > 25 <= 30",{"$f":"IFERROR(VLOOKUP(A71,Translation!$A:$C,3,FALSE),A71)","v":10},{"$f":"IFERROR(VLOOKUP(B71,Translation!$A:$C,3,FALSE),B71)","v":"T1 2020"},{"$f":"IFERROR(VLOOKUP(C71,Translation!$A:$C,3,FALSE),C71)","v":"ASSURANCE DE PORTEFEUILLE"},{"$f":"IFERROR(VLOOKUP(D71,Translation!$A:$C,3,FALSE),D71)","v":"> 25 <= 30"},{"$f":"IFERROR(VLOOKUP(E71,Translation!$A:$C,3,FALSE),E71)","v":1.0480738691093929},{"$f":"IFERROR(VLOOKUP(F71,Translation!$A:$C,3,FALSE),F71)","v":"Prêts hypothécaires assurés au cours de la période selon la période d’amortissement (en années) à l'initiation (%)"},{"$f":"IFERROR(VLOOKUP(G71,Translation!$A:$C,3,FALSE),G71)","v":"1.0"},{"$f":"IFERROR(VLOOKUP(H71,Translation!$A:$C,3,FALSE),H71)","v":" > 25 <= 30"}]
[10,"Cumul 2019","ASSURANCE DE PORTEFEUILLE","> 25 <= 30",8.4806079349542998,"Prêts hypothécaires assurés au cours de la période selon la période d’amortissement (en années) à l'initiation (%)","8.5"," > 25 <= 30",{"$f":"IFERROR(VLOOKUP(A72,Translation!$A:$C,3,FALSE),A72)","v":10},{"$f":"IFERROR(VLOOKUP(B72,Translation!$A:$C,3,FALSE),B72)","v":"Cumul 2019"},{"$f":"IFERROR(VLOOKUP(C72,Translation!$A:$C,3,FALSE),C72)","v":"ASSURANCE DE PORTEFEUILLE"},{"$f":"IFERROR(VLOOKUP(D72,Translation!$A:$C,3,FALSE),D72)","v":"> 25 <= 30"},{"$f":"IFERROR(VLOOKUP(E72,Translation!$A:$C,3,FALSE),E72)","v":8.4806079349542998},{"$f":"IFERROR(VLOOKUP(F72,Translation!$A:$C,3,FALSE),F72)","v":"Prêts hypothécaires assurés au cours de la période selon la période d’amortissement (en années) à l'initiation (%)"},{"$f":"IFERROR(VLOOKUP(G72,Translation!$A:$C,3,FALSE),G72)","v":"8.5"},{"$f":"IFERROR(VLOOKUP(H72,Translation!$A:$C,3,FALSE),H72)","v":" > 25 <= 30"}]
[10,"Cumul 2020","ASSURANCE DE PORTEFEUILLE","> 25 <= 30",1.0480738691093929,"Prêts hypothécaires assurés au cours de la période selon la période d’amortissement (en années) à l'initiation (%)","1.0"," > 25 <= 30",{"$f":"IFERROR(VLOOKUP(A73,Translation!$A:$C,3,FALSE),A73)","v":10},{"$f":"IFERROR(VLOOKUP(B73,Translation!$A:$C,3,FALSE),B73)","v":"Cumul 2020"},{"$f":"IFERROR(VLOOKUP(C73,Translation!$A:$C,3,FALSE),C73)","v":"ASSURANCE DE PORTEFEUILLE"},{"$f":"IFERROR(VLOOKUP(D73,Translation!$A:$C,3,FALSE),D73)","v":"> 25 <= 30"},{"$f":"IFERROR(VLOOKUP(E73,Translation!$A:$C,3,FALSE),E73)","v":1.0480738691093929},{"$f":"IFERROR(VLOOKUP(F73,Translation!$A:$C,3,FALSE),F73)","v":"Prêts hypothécaires assurés au cours de la période selon la période d’amortissement (en années) à l'initiation (%)"},{"$f":"IFERROR(VLOOKUP(G73,Translation!$A:$C,3,FALSE),G73)","v":"1.0"},{"$f":"IFERROR(VLOOKUP(H73,Translation!$A:$C,3,FALSE),H73)","v":" > 25 <= 30"}]
[10,"Cumul 2019","ASSURANCE DE PORTEFEUILLE","> 30 <= 35",5.6361967376850279E-2,"Prêts hypothécaires assurés au cours de la période selon la période d’amortissement (en années) à l'initiation (%)","0.1"," > 30 <= 35",{"$f":"IFERROR(VLOOKUP(A74,Translation!$A:$C,3,FALSE),A74)","v":10},{"$f":"IFERROR(VLOOKUP(B74,Translation!$A:$C,3,FALSE),B74)","v":"Cumul 2019"},{"$f":"IFERROR(VLOOKUP(C74,Translation!$A:$C,3,FALSE),C74)","v":"ASSURANCE DE PORTEFEUILLE"},{"$f":"IFERROR(VLOOKUP(D74,Translation!$A:$C,3,FALSE),D74)","v":"> 30 <= 35"},{"$f":"IFERROR(VLOOKUP(E74,Translation!$A:$C,3,FALSE),E74)","v":5.6361967376850279E-2},{"$f":"IFERROR(VLOOKUP(F74,Translation!$A:$C,3,FALSE),F74)","v":"Prêts hypothécaires assurés au cours de la période selon la période d’amortissement (en années) à l'initiation (%)"},{"$f":"IFERROR(VLOOKUP(G74,Translation!$A:$C,3,FALSE),G74)","v":"0.1"},{"$f":"IFERROR(VLOOKUP(H74,Translation!$A:$C,3,FALSE),H74)","v":" > 30 <= 35"}]
[10,"Cumul 2019","ASSURANCE DE PORTEFEUILLE","> 35",0.45985150672894598,"Prêts hypothécaires assurés au cours de la période selon la période d’amortissement (en années) à l'initiation (%)","0.5"," > 35",{"$f":"IFERROR(VLOOKUP(A75,Translation!$A:$C,3,FALSE),A75)","v":10},{"$f":"IFERROR(VLOOKUP(B75,Translation!$A:$C,3,FALSE),B75)","v":"Cumul 2019"},{"$f":"IFERROR(VLOOKUP(C75,Translation!$A:$C,3,FALSE),C75)","v":"ASSURANCE DE PORTEFEUILLE"},{"$f":"IFERROR(VLOOKUP(D75,Translation!$A:$C,3,FALSE),D75)","v":"> 35"},{"$f":"IFERROR(VLOOKUP(E75,Translation!$A:$C,3,FALSE),E75)","v":0.45985150672894598},{"$f":"IFERROR(VLOOKUP(F75,Translation!$A:$C,3,FALSE),F75)","v":"Prêts hypothécaires assurés au cours de la période selon la période d’amortissement (en années) à l'initiation (%)"},{"$f":"IFERROR(VLOOKUP(G75,Translation!$A:$C,3,FALSE),G75)","v":"0.5"},{"$f":"IFERROR(VLOOKUP(H75,Translation!$A:$C,3,FALSE),H75)","v":" > 35"}]
[10,"T1 2020","ASSURANCE DE PORTEFEUILLE","Période d’amortissement moyenne",22.588879318925237,"Prêts hypothécaires assurés au cours de la période selon la période d’amortissement (en années) à l'initiation (%)","22.6","Période d’amortissement moyenne",{"$f":"IFERROR(VLOOKUP(A76,Translation!$A:$C,3,FALSE),A76)","v":10},{"$f":"IFERROR(VLOOKUP(B76,Translation!$A:$C,3,FALSE),B76)","v":"T1 2020"},{"$f":"IFERROR(VLOOKUP(C76,Translation!$A:$C,3,FALSE),C76)","v":"ASSURANCE DE PORTEFEUILLE"},{"$f":"IFERROR(VLOOKUP(D76,Translation!$A:$C,3,FALSE),D76)","v":"Période d’amortissement moyenne"},{"$f":"IFERROR(VLOOKUP(E76,Translation!$A:$C,3,FALSE),E76)","v":22.588879318925237},{"$f":"IFERROR(VLOOKUP(F76,Translation!$A:$C,3,FALSE),F76)","v":"Prêts hypothécaires assurés au cours de la période selon la période d’amortissement (en années) à l'initiation (%)"},{"$f":"IFERROR(VLOOKUP(G76,Translation!$A:$C,3,FALSE),G76)","v":"22.6"},{"$f":"IFERROR(VLOOKUP(H76,Translation!$A:$C,3,FALSE),H76)","v":"Période d’amortissement moyenne"}]
[10,"Cumul 2019","ASSURANCE DE PORTEFEUILLE","Période d’amortissement moyenne",22.303489589592814,"Prêts hypothécaires assurés au cours de la période selon la période d’amortissement (en années) à l'initiation (%)","22.3","Période d’amortissement moyenne",{"$f":"IFERROR(VLOOKUP(A77,Translation!$A:$C,3,FALSE),A77)","v":10},{"$f":"IFERROR(VLOOKUP(B77,Translation!$A:$C,3,FALSE),B77)","v":"Cumul 2019"},{"$f":"IFERROR(VLOOKUP(C77,Translation!$A:$C,3,FALSE),C77)","v":"ASSURANCE DE PORTEFEUILLE"},{"$f":"IFERROR(VLOOKUP(D77,Translation!$A:$C,3,FALSE),D77)","v":"Période d’amortissement moyenne"},{"$f":"IFERROR(VLOOKUP(E77,Translation!$A:$C,3,FALSE),E77)","v":22.303489589592814},{"$f":"IFERROR(VLOOKUP(F77,Translation!$A:$C,3,FALSE),F77)","v":"Prêts hypothécaires assurés au cours de la période selon la période d’amortissement (en années) à l'initiation (%)"},{"$f":"IFERROR(VLOOKUP(G77,Translation!$A:$C,3,FALSE),G77)","v":"22.3"},{"$f":"IFERROR(VLOOKUP(H77,Translation!$A:$C,3,FALSE),H77)","v":"Période d’amortissement moyenne"}]
[10,"Cumul 2020","ASSURANCE DE PORTEFEUILLE","Période d’amortissement moyenne",22.588879318925237,"Prêts hypothécaires assurés au cours de la période selon la période d’amortissement (en années) à l'initiation (%)","22.6","Période d’amortissement moyenne",{"$f":"IFERROR(VLOOKUP(A78,Translation!$A:$C,3,FALSE),A78)","v":10},{"$f":"IFERROR(VLOOKUP(B78,Translation!$A:$C,3,FALSE),B78)","v":"Cumul 2020"},{"$f":"IFERROR(VLOOKUP(C78,Translation!$A:$C,3,FALSE),C78)","v":"ASSURANCE DE PORTEFEUILLE"},{"$f":"IFERROR(VLOOKUP(D78,Translation!$A:$C,3,FALSE),D78)","v":"Période d’amortissement moyenne"},{"$f":"IFERROR(VLOOKUP(E78,Translation!$A:$C,3,FALSE),E78)","v":22.588879318925237},{"$f":"IFERROR(VLOOKUP(F78,Translation!$A:$C,3,FALSE),F78)","v":"Prêts hypothécaires assurés au cours de la période selon la période d’amortissement (en années) à l'initiation (%)"},{"$f":"IFERROR(VLOOKUP(G78,Translation!$A:$C,3,FALSE),G78)","v":"22.6"},{"$f":"IFERROR(VLOOKUP(H78,Translation!$A:$C,3,FALSE),H78)","v":"Période d’amortissement moyenne"}]
[10,"T1 2020","ASSURANCE DE PORTEFEUILLE","Terre-Neuve-et-Labrador",20.439601993678057,"Période d’amortissement moyenne selon la province","20.4","Terre-Neuve-et-Labrador",{"$f":"IFERROR(VLOOKUP(A79,Translation!$A:$C,3,FALSE),A79)","v":10},{"$f":"IFERROR(VLOOKUP(B79,Translation!$A:$C,3,FALSE),B79)","v":"T1 2020"},{"$f":"IFERROR(VLOOKUP(C79,Translation!$A:$C,3,FALSE),C79)","v":"ASSURANCE DE PORTEFEUILLE"},{"$f":"IFERROR(VLOOKUP(D79,Translation!$A:$C,3,FALSE),D79)","v":"Terre-Neuve-et-Labrador"},{"$f":"IFERROR(VLOOKUP(E79,Translation!$A:$C,3,FALSE),E79)","v":20.439601993678057},{"$f":"IFERROR(VLOOKUP(F79,Translation!$A:$C,3,FALSE),F79)","v":"Période d’amortissement moyenne selon la province"},{"$f":"IFERROR(VLOOKUP(G79,Translation!$A:$C,3,FALSE),G79)","v":"20.4"},{"$f":"IFERROR(VLOOKUP(H79,Translation!$A:$C,3,FALSE),H79)","v":"Terre-Neuve-et-Labrador"}]
[10,"T1 2020","ASSURANCE DE PORTEFEUILLE","Nouvelle-Écosse",21.647317597920377,"Période d’amortissement moyenne selon la province","21.6","Nouvelle-Écosse",{"$f":"IFERROR(VLOOKUP(A80,Translation!$A:$C,3,FALSE),A80)","v":10},{"$f":"IFERROR(VLOOKUP(B80,Translation!$A:$C,3,FALSE),B80)","v":"T1 2020"},{"$f":"IFERROR(VLOOKUP(C80,Translation!$A:$C,3,FALSE),C80)","v":"ASSURANCE DE PORTEFEUILLE"},{"$f":"IFERROR(VLOOKUP(D80,Translation!$A:$C,3,FALSE),D80)","v":"Nouvelle-Écosse"},{"$f":"IFERROR(VLOOKUP(E80,Translation!$A:$C,3,FALSE),E80)","v":21.647317597920377},{"$f":"IFERROR(VLOOKUP(F80,Translation!$A:$C,3,FALSE),F80)","v":"Période d’amortissement moyenne selon la province"},{"$f":"IFERROR(VLOOKUP(G80,Translation!$A:$C,3,FALSE),G80)","v":"21.6"},{"$f":"IFERROR(VLOOKUP(H80,Translation!$A:$C,3,FALSE),H80)","v":"Nouvelle-Écosse"}]
[10,"T1 2020","ASSURANCE DE PORTEFEUILLE","Nouveau-Brunswick",22.714207525858793,"Période d’amortissement moyenne selon la province","22.7","Nouveau-Brunswick",{"$f":"IFERROR(VLOOKUP(A81,Translation!$A:$C,3,FALSE),A81)","v":10},{"$f":"IFERROR(VLOOKUP(B81,Translation!$A:$C,3,FALSE),B81)","v":"T1 2020"},{"$f":"IFERROR(VLOOKUP(C81,Translation!$A:$C,3,FALSE),C81)","v":"ASSURANCE DE PORTEFEUILLE"},{"$f":"IFERROR(VLOOKUP(D81,Translation!$A:$C,3,FALSE),D81)","v":"Nouveau-Brunswick"},{"$f":"IFERROR(VLOOKUP(E81,Translation!$A:$C,3,FALSE),E81)","v":22.714207525858793},{"$f":"IFERROR(VLOOKUP(F81,Translation!$A:$C,3,FALSE),F81)","v":"Période d’amortissement moyenne selon la province"},{"$f":"IFERROR(VLOOKUP(G81,Translation!$A:$C,3,FALSE),G81)","v":"22.7"},{"$f":"IFERROR(VLOOKUP(H81,Translation!$A:$C,3,FALSE),H81)","v":"Nouveau-Brunswick"}]
[10,"T1 2020","ASSURANCE DE PORTEFEUILLE","Québec",22.011742631470874,"Période d’amortissement moyenne selon la province","22.0","Québec",{"$f":"IFERROR(VLOOKUP(A82,Translation!$A:$C,3,FALSE),A82)","v":10},{"$f":"IFERROR(VLOOKUP(B82,Translation!$A:$C,3,FALSE),B82)","v":"T1 2020"},{"$f":"IFERROR(VLOOKUP(C82,Translation!$A:$C,3,FALSE),C82)","v":"ASSURANCE DE PORTEFEUILLE"},{"$f":"IFERROR(VLOOKUP(D82,Translation!$A:$C,3,FALSE),D82)","v":"Québec"},{"$f":"IFERROR(VLOOKUP(E82,Translation!$A:$C,3,FALSE),E82)","v":22.011742631470874},{"$f":"IFERROR(VLOOKUP(F82,Translation!$A:$C,3,FALSE),F82)","v":"Période d’amortissement moyenne selon la province"},{"$f":"IFERROR(VLOOKUP(G82,Translation!$A:$C,3,FALSE),G82)","v":"22.0"},{"$f":"IFERROR(VLOOKUP(H82,Translation!$A:$C,3,FALSE),H82)","v":"Québec"}]
[10,"T1 2020","ASSURANCE DE PORTEFEUILLE","Ontario",22.884156220074203,"Période d’amortissement moyenne selon la province","22.9","Ontario",{"$f":"IFERROR(VLOOKUP(A83,Translation!$A:$C,3,FALSE),A83)","v":10},{"$f":"IFERROR(VLOOKUP(B83,Translation!$A:$C,3,FALSE),B83)","v":"T1 2020"},{"$f":"IFERROR(VLOOKUP(C83,Translation!$A:$C,3,FALSE),C83)","v":"ASSURANCE DE PORTEFEUILLE"},{"$f":"IFERROR(VLOOKUP(D83,Translation!$A:$C,3,FALSE),D83)","v":"Ontario"},{"$f":"IFERROR(VLOOKUP(E83,Translation!$A:$C,3,FALSE),E83)","v":22.884156220074203},{"$f":"IFERROR(VLOOKUP(F83,Translation!$A:$C,3,FALSE),F83)","v":"Période d’amortissement moyenne selon la province"},{"$f":"IFERROR(VLOOKUP(G83,Translation!$A:$C,3,FALSE),G83)","v":"22.9"},{"$f":"IFERROR(VLOOKUP(H83,Translation!$A:$C,3,FALSE),H83)","v":"Ontario"}]
[10,"T1 2020","ASSURANCE DE PORTEFEUILLE","Manitoba",22.329403186005894,"Période d’amortissement moyenne selon la province","22.3","Manitoba",{"$f":"IFERROR(VLOOKUP(A84,Translation!$A:$C,3,FALSE),A84)","v":10},{"$f":"IFERROR(VLOOKUP(B84,Translation!$A:$C,3,FALSE),B84)","v":"T1 2020"},{"$f":"IFERROR(VLOOKUP(C84,Translation!$A:$C,3,FALSE),C84)","v":"ASSURANCE DE PORTEFEUILLE"},{"$f":"IFERROR(VLOOKUP(D84,Translation!$A:$C,3,FALSE),D84)","v":"Manitoba"},{"$f":"IFERROR(VLOOKUP(E84,Translation!$A:$C,3,FALSE),E84)","v":22.329403186005894},{"$f":"IFERROR(VLOOKUP(F84,Translation!$A:$C,3,FALSE),F84)","v":"Période d’amortissement moyenne selon la province"},{"$f":"IFERROR(VLOOKUP(G84,Translation!$A:$C,3,FALSE),G84)","v":"22.3"},{"$f":"IFERROR(VLOOKUP(H84,Translation!$A:$C,3,FALSE),H84)","v":"Manitoba"}]
[10,"T1 2020","ASSURANCE DE PORTEFEUILLE","Saskatchewan",20.786385547549372,"Période d’amortissement moyenne selon la province","20.8","Saskatchewan",{"$f":"IFERROR(VLOOKUP(A85,Translation!$A:$C,3,FALSE),A85)","v":10},{"$f":"IFERROR(VLOOKUP(B85,Translation!$A:$C,3,FALSE),B85)","v":"T1 2020"},{"$f":"IFERROR(VLOOKUP(C85,Translation!$A:$C,3,FALSE),C85)","v":"ASSURANCE DE PORTEFEUILLE"},{"$f":"IFERROR(VLOOKUP(D85,Translation!$A:$C,3,FALSE),D85)","v":"Saskatchewan"},{"$f":"IFERROR(VLOOKUP(E85,Translation!$A:$C,3,FALSE),E85)","v":20.786385547549372},{"$f":"IFERROR(VLOOKUP(F85,Translation!$A:$C,3,FALSE),F85)","v":"Période d’amortissement moyenne selon la province"},{"$f":"IFERROR(VLOOKUP(G85,Translation!$A:$C,3,FALSE),G85)","v":"20.8"},{"$f":"IFERROR(VLOOKUP(H85,Translation!$A:$C,3,FALSE),H85)","v":"Saskatchewan"}]
[10,"T1 2020","ASSURANCE DE PORTEFEUILLE","Alberta",22.271864587882689,"Période d’amortissement moyenne selon la province","22.3","Alberta",{"$f":"IFERROR(VLOOKUP(A86,Translation!$A:$C,3,FALSE),A86)","v":10},{"$f":"IFERROR(VLOOKUP(B86,Translation!$A:$C,3,FALSE),B86)","v":"T1 2020"},{"$f":"IFERROR(VLOOKUP(C86,Translation!$A:$C,3,FALSE),C86)","v":"ASSURANCE DE PORTEFEUILLE"},{"$f":"IFERROR(VLOOKUP(D86,Translation!$A:$C,3,FALSE),D86)","v":"Alberta"},{"$f":"IFERROR(VLOOKUP(E86,Translation!$A:$C,3,FALSE),E86)","v":22.271864587882689},{"$f":"IFERROR(VLOOKUP(F86,Translation!$A:$C,3,FALSE),F86)","v":"Période d’amortissement moyenne selon la province"},{"$f":"IFERROR(VLOOKUP(G86,Translation!$A:$C,3,FALSE),G86)","v":"22.3"},{"$f":"IFERROR(VLOOKUP(H86,Translation!$A:$C,3,FALSE),H86)","v":"Alberta"}]
[10,"T1 2020","ASSURANCE DE PORTEFEUILLE","Colombie-Britannique",22.356333037426285,"Période d’amortissement moyenne selon la province","22.4","Colombie-Britannique",{"$f":"IFERROR(VLOOKUP(A87,Translation!$A:$C,3,FALSE),A87)","v":10},{"$f":"IFERROR(VLOOKUP(B87,Translation!$A:$C,3,FALSE),B87)","v":"T1 2020"},{"$f":"IFERROR(VLOOKUP(C87,Translation!$A:$C,3,FALSE),C87)","v":"ASSURANCE DE PORTEFEUILLE"},{"$f":"IFERROR(VLOOKUP(D87,Translation!$A:$C,3,FALSE),D87)","v":"Colombie-Britannique"},{"$f":"IFERROR(VLOOKUP(E87,Translation!$A:$C,3,FALSE),E87)","v":22.356333037426285},{"$f":"IFERROR(VLOOKUP(F87,Translation!$A:$C,3,FALSE),F87)","v":"Période d’amortissement moyenne selon la province"},{"$f":"IFERROR(VLOOKUP(G87,Translation!$A:$C,3,FALSE),G87)","v":"22.4"},{"$f":"IFERROR(VLOOKUP(H87,Translation!$A:$C,3,FALSE),H87)","v":"Colombie-Britannique"}]
[10,"Cumul 2019","ASSURANCE DE PORTEFEUILLE","Terre-Neuve-et-Labrador",20.905083589985004,"Période d’amortissement moyenne selon la province","20.9","Terre-Neuve-et-Labrador",{"$f":"IFERROR(VLOOKUP(A88,Translation!$A:$C,3,FALSE),A88)","v":10},{"$f":"IFERROR(VLOOKUP(B88,Translation!$A:$C,3,FALSE),B88)","v":"Cumul 2019"},{"$f":"IFERROR(VLOOKUP(C88,Translation!$A:$C,3,FALSE),C88)","v":"ASSURANCE DE PORTEFEUILLE"},{"$f":"IFERROR(VLOOKUP(D88,Translation!$A:$C,3,FALSE),D88)","v":"Terre-Neuve-et-Labrador"},{"$f":"IFERROR(VLOOKUP(E88,Translation!$A:$C,3,FALSE),E88)","v":20.905083589985004},{"$f":"IFERROR(VLOOKUP(F88,Translation!$A:$C,3,FALSE),F88)","v":"Période d’amortissement moyenne selon la province"},{"$f":"IFERROR(VLOOKUP(G88,Translation!$A:$C,3,FALSE),G88)","v":"20.9"},{"$f":"IFERROR(VLOOKUP(H88,Translation!$A:$C,3,FALSE),H88)","v":"Terre-Neuve-et-Labrador"}]
[10,"Cumul 2019","ASSURANCE DE PORTEFEUILLE","Île-du-Prince-Édouard",24.270016040585464,"Période d’amortissement moyenne selon la province","24.3","Île-du-Prince-Édouard",{"$f":"IFERROR(VLOOKUP(A89,Translation!$A:$C,3,FALSE),A89)","v":10},{"$f":"IFERROR(VLOOKUP(B89,Translation!$A:$C,3,FALSE),B89)","v":"Cumul 2019"},{"$f":"IFERROR(VLOOKUP(C89,Translation!$A:$C,3,FALSE),C89)","v":"ASSURANCE DE PORTEFEUILLE"},{"$f":"IFERROR(VLOOKUP(D89,Translation!$A:$C,3,FALSE),D89)","v":"Île-du-Prince-Édouard"},{"$f":"IFERROR(VLOOKUP(E89,Translation!$A:$C,3,FALSE),E89)","v":24.270016040585464},{"$f":"IFERROR(VLOOKUP(F89,Translation!$A:$C,3,FALSE),F89)","v":"Période d’amortissement moyenne selon la province"},{"$f":"IFERROR(VLOOKUP(G89,Translation!$A:$C,3,FALSE),G89)","v":"24.3"},{"$f":"IFERROR(VLOOKUP(H89,Translation!$A:$C,3,FALSE),H89)","v":"Île-du-Prince-Édouard"}]
[10,"Cumul 2019","ASSURANCE DE PORTEFEUILLE","Nouvelle-Écosse",23.136158399185604,"Période d’amortissement moyenne selon la province","23.1","Nouvelle-Écosse",{"$f":"IFERROR(VLOOKUP(A90,Translation!$A:$C,3,FALSE),A90)","v":10},{"$f":"IFERROR(VLOOKUP(B90,Translation!$A:$C,3,FALSE),B90)","v":"Cumul 2019"},{"$f":"IFERROR(VLOOKUP(C90,Translation!$A:$C,3,FALSE),C90)","v":"ASSURANCE DE PORTEFEUILLE"},{"$f":"IFERROR(VLOOKUP(D90,Translation!$A:$C,3,FALSE),D90)","v":"Nouvelle-Écosse"},{"$f":"IFERROR(VLOOKUP(E90,Translation!$A:$C,3,FALSE),E90)","v":23.136158399185604},{"$f":"IFERROR(VLOOKUP(F90,Translation!$A:$C,3,FALSE),F90)","v":"Période d’amortissement moyenne selon la province"},{"$f":"IFERROR(VLOOKUP(G90,Translation!$A:$C,3,FALSE),G90)","v":"23.1"},{"$f":"IFERROR(VLOOKUP(H90,Translation!$A:$C,3,FALSE),H90)","v":"Nouvelle-Écosse"}]
[10,"Cumul 2019","ASSURANCE DE PORTEFEUILLE","Nouveau-Brunswick",22.420537918744529,"Période d’amortissement moyenne selon la province","22.4","Nouveau-Brunswick",{"$f":"IFERROR(VLOOKUP(A91,Translation!$A:$C,3,FALSE),A91)","v":10},{"$f":"IFERROR(VLOOKUP(B91,Translation!$A:$C,3,FALSE),B91)","v":"Cumul 2019"},{"$f":"IFERROR(VLOOKUP(C91,Translation!$A:$C,3,FALSE),C91)","v":"ASSURANCE DE PORTEFEUILLE"},{"$f":"IFERROR(VLOOKUP(D91,Translation!$A:$C,3,FALSE),D91)","v":"Nouveau-Brunswick"},{"$f":"IFERROR(VLOOKUP(E91,Translation!$A:$C,3,FALSE),E91)","v":22.420537918744529},{"$f":"IFERROR(VLOOKUP(F91,Translation!$A:$C,3,FALSE),F91)","v":"Période d’amortissement moyenne selon la province"},{"$f":"IFERROR(VLOOKUP(G91,Translation!$A:$C,3,FALSE),G91)","v":"22.4"},{"$f":"IFERROR(VLOOKUP(H91,Translation!$A:$C,3,FALSE),H91)","v":"Nouveau-Brunswick"}]
[10,"Cumul 2019","ASSURANCE DE PORTEFEUILLE","Québec",21.455162910769996,"Période d’amortissement moyenne selon la province","21.5","Québec",{"$f":"IFERROR(VLOOKUP(A92,Translation!$A:$C,3,FALSE),A92)","v":10},{"$f":"IFERROR(VLOOKUP(B92,Translation!$A:$C,3,FALSE),B92)","v":"Cumul 2019"},{"$f":"IFERROR(VLOOKUP(C92,Translation!$A:$C,3,FALSE),C92)","v":"ASSURANCE DE PORTEFEUILLE"},{"$f":"IFERROR(VLOOKUP(D92,Translation!$A:$C,3,FALSE),D92)","v":"Québec"},{"$f":"IFERROR(VLOOKUP(E92,Translation!$A:$C,3,FALSE),E92)","v":21.455162910769996},{"$f":"IFERROR(VLOOKUP(F92,Translation!$A:$C,3,FALSE),F92)","v":"Période d’amortissement moyenne selon la province"},{"$f":"IFERROR(VLOOKUP(G92,Translation!$A:$C,3,FALSE),G92)","v":"21.5"},{"$f":"IFERROR(VLOOKUP(H92,Translation!$A:$C,3,FALSE),H92)","v":"Québec"}]
[10,"Cumul 2019","ASSURANCE DE PORTEFEUILLE","Ontario",22.674495298802832,"Période d’amortissement moyenne selon la province","22.7","Ontario",{"$f":"IFERROR(VLOOKUP(A93,Translation!$A:$C,3,FALSE),A93)","v":10},{"$f":"IFERROR(VLOOKUP(B93,Translation!$A:$C,3,FALSE),B93)","v":"Cumul 2019"},{"$f":"IFERROR(VLOOKUP(C93,Translation!$A:$C,3,FALSE),C93)","v":"ASSURANCE DE PORTEFEUILLE"},{"$f":"IFERROR(VLOOKUP(D93,Translation!$A:$C,3,FALSE),D93)","v":"Ontario"},{"$f":"IFERROR(VLOOKUP(E93,Translation!$A:$C,3,FALSE),E93)","v":22.674495298802832},{"$f":"IFERROR(VLOOKUP(F93,Translation!$A:$C,3,FALSE),F93)","v":"Période d’amortissement moyenne selon la province"},{"$f":"IFERROR(VLOOKUP(G93,Translation!$A:$C,3,FALSE),G93)","v":"22.7"},{"$f":"IFERROR(VLOOKUP(H93,Translation!$A:$C,3,FALSE),H93)","v":"Ontario"}]
[10,"Cumul 2019","ASSURANCE DE PORTEFEUILLE","Manitoba",22.540431387764524,"Période d’amortissement moyenne selon la province","22.5","Manitoba",{"$f":"IFERROR(VLOOKUP(A94,Translation!$A:$C,3,FALSE),A94)","v":10},{"$f":"IFERROR(VLOOKUP(B94,Translation!$A:$C,3,FALSE),B94)","v":"Cumul 2019"},{"$f":"IFERROR(VLOOKUP(C94,Translation!$A:$C,3,FALSE),C94)","v":"ASSURANCE DE PORTEFEUILLE"},{"$f":"IFERROR(VLOOKUP(D94,Translation!$A:$C,3,FALSE),D94)","v":"Manitoba"},{"$f":"IFERROR(VLOOKUP(E94,Translation!$A:$C,3,FALSE),E94)","v":22.540431387764524},{"$f":"IFERROR(VLOOKUP(F94,Translation!$A:$C,3,FALSE),F94)","v":"Période d’amortissement moyenne selon la province"},{"$f":"IFERROR(VLOOKUP(G94,Translation!$A:$C,3,FALSE),G94)","v":"22.5"},{"$f":"IFERROR(VLOOKUP(H94,Translation!$A:$C,3,FALSE),H94)","v":"Manitoba"}]
[10,"Cumul 2019","ASSURANCE DE PORTEFEUILLE","Saskatchewan",20.422149571180249,"Période d’amortissement moyenne selon la province","20.4","Saskatchewan",{"$f":"IFERROR(VLOOKUP(A95,Translation!$A:$C,3,FALSE),A95)","v":10},{"$f":"IFERROR(VLOOKUP(B95,Translation!$A:$C,3,FALSE),B95)","v":"Cumul 2019"},{"$f":"IFERROR(VLOOKUP(C95,Translation!$A:$C,3,FALSE),C95)","v":"ASSURANCE DE PORTEFEUILLE"},{"$f":"IFERROR(VLOOKUP(D95,Translation!$A:$C,3,FALSE),D95)","v":"Saskatchewan"},{"$f":"IFERROR(VLOOKUP(E95,Translation!$A:$C,3,FALSE),E95)","v":20.422149571180249},{"$f":"IFERROR(VLOOKUP(F95,Translation!$A:$C,3,FALSE),F95)","v":"Période d’amortissement moyenne selon la province"},{"$f":"IFERROR(VLOOKUP(G95,Translation!$A:$C,3,FALSE),G95)","v":"20.4"},{"$f":"IFERROR(VLOOKUP(H95,Translation!$A:$C,3,FALSE),H95)","v":"Saskatchewan"}]
[10,"Cumul 2019","ASSURANCE DE PORTEFEUILLE","Alberta",21.366442028312452,"Période d’amortissement moyenne selon la province","21.4","Alberta",{"$f":"IFERROR(VLOOKUP(A96,Translation!$A:$C,3,FALSE),A96)","v":10},{"$f":"IFERROR(VLOOKUP(B96,Translation!$A:$C,3,FALSE),B96)","v":"Cumul 2019"},{"$f":"IFERROR(VLOOKUP(C96,Translation!$A:$C,3,FALSE),C96)","v":"ASSURANCE DE PORTEFEUILLE"},{"$f":"IFERROR(VLOOKUP(D96,Translation!$A:$C,3,FALSE),D96)","v":"Alberta"},{"$f":"IFERROR(VLOOKUP(E96,Translation!$A:$C,3,FALSE),E96)","v":21.366442028312452},{"$f":"IFERROR(VLOOKUP(F96,Translation!$A:$C,3,FALSE),F96)","v":"Période d’amortissement moyenne selon la province"},{"$f":"IFERROR(VLOOKUP(G96,Translation!$A:$C,3,FALSE),G96)","v":"21.4"},{"$f":"IFERROR(VLOOKUP(H96,Translation!$A:$C,3,FALSE),H96)","v":"Alberta"}]
[10,"Cumul 2019","ASSURANCE DE PORTEFEUILLE","Colombie-Britannique",22.819768238489097,"Période d’amortissement moyenne selon la province","22.8","Colombie-Britannique",{"$f":"IFERROR(VLOOKUP(A97,Translation!$A:$C,3,FALSE),A97)","v":10},{"$f":"IFERROR(VLOOKUP(B97,Translation!$A:$C,3,FALSE),B97)","v":"Cumul 2019"},{"$f":"IFERROR(VLOOKUP(C97,Translation!$A:$C,3,FALSE),C97)","v":"ASSURANCE DE PORTEFEUILLE"},{"$f":"IFERROR(VLOOKUP(D97,Translation!$A:$C,3,FALSE),D97)","v":"Colombie-Britannique"},{"$f":"IFERROR(VLOOKUP(E97,Translation!$A:$C,3,FALSE),E97)","v":22.819768238489097},{"$f":"IFERROR(VLOOKUP(F97,Translation!$A:$C,3,FALSE),F97)","v":"Période d’amortissement moyenne selon la province"},{"$f":"IFERROR(VLOOKUP(G97,Translation!$A:$C,3,FALSE),G97)","v":"22.8"},{"$f":"IFERROR(VLOOKUP(H97,Translation!$A:$C,3,FALSE),H97)","v":"Colombie-Britannique"}]
[10,"Cumul 2019","ASSURANCE DE PORTEFEUILLE","Territoires",13.166666666666663,"Période d’amortissement moyenne selon la province","13.2","Territoires",{"$f":"IFERROR(VLOOKUP(A98,Translation!$A:$C,3,FALSE),A98)","v":10},{"$f":"IFERROR(VLOOKUP(B98,Translation!$A:$C,3,FALSE),B98)","v":"Cumul 2019"},{"$f":"IFERROR(VLOOKUP(C98,Translation!$A:$C,3,FALSE),C98)","v":"ASSURANCE DE PORTEFEUILLE"},{"$f":"IFERROR(VLOOKUP(D98,Translation!$A:$C,3,FALSE),D98)","v":"Territoires"},{"$f":"IFERROR(VLOOKUP(E98,Translation!$A:$C,3,FALSE),E98)","v":13.166666666666663},{"$f":"IFERROR(VLOOKUP(F98,Translation!$A:$C,3,FALSE),F98)","v":"Période d’amortissement moyenne selon la province"},{"$f":"IFERROR(VLOOKUP(G98,Translation!$A:$C,3,FALSE),G98)","v":"13.2"},{"$f":"IFERROR(VLOOKUP(H98,Translation!$A:$C,3,FALSE),H98)","v":"Territoires"}]
[10,"Cumul 2020","ASSURANCE DE PORTEFEUILLE","Terre-Neuve-et-Labrador",20.439601993678057,"Période d’amortissement moyenne selon la province","20.4","Terre-Neuve-et-Labrador",{"$f":"IFERROR(VLOOKUP(A99,Translation!$A:$C,3,FALSE),A99)","v":10},{"$f":"IFERROR(VLOOKUP(B99,Translation!$A:$C,3,FALSE),B99)","v":"Cumul 2020"},{"$f":"IFERROR(VLOOKUP(C99,Translation!$A:$C,3,FALSE),C99)","v":"ASSURANCE DE PORTEFEUILLE"},{"$f":"IFERROR(VLOOKUP(D99,Translation!$A:$C,3,FALSE),D99)","v":"Terre-Neuve-et-Labrador"},{"$f":"IFERROR(VLOOKUP(E99,Translation!$A:$C,3,FALSE),E99)","v":20.439601993678057},{"$f":"IFERROR(VLOOKUP(F99,Translation!$A:$C,3,FALSE),F99)","v":"Période d’amortissement moyenne selon la province"},{"$f":"IFERROR(VLOOKUP(G99,Translation!$A:$C,3,FALSE),G99)","v":"20.4"},{"$f":"IFERROR(VLOOKUP(H99,Translation!$A:$C,3,FALSE),H99)","v":"Terre-Neuve-et-Labrador"}]
[10,"Cumul 2020","ASSURANCE DE PORTEFEUILLE","Nouvelle-Écosse",21.647317597920377,"Période d’amortissement moyenne selon la province","21.6","Nouvelle-Écosse",{"$f":"IFERROR(VLOOKUP(A100,Translation!$A:$C,3,FALSE),A100)","v":10},{"$f":"IFERROR(VLOOKUP(B100,Translation!$A:$C,3,FALSE),B100)","v":"Cumul 2020"},{"$f":"IFERROR(VLOOKUP(C100,Translation!$A:$C,3,FALSE),C100)","v":"ASSURANCE DE PORTEFEUILLE"},{"$f":"IFERROR(VLOOKUP(D100,Translation!$A:$C,3,FALSE),D100)","v":"Nouvelle-Écosse"},{"$f":"IFERROR(VLOOKUP(E100,Translation!$A:$C,3,FALSE),E100)","v":21.647317597920377},{"$f":"IFERROR(VLOOKUP(F100,Translation!$A:$C,3,FALSE),F100)","v":"Période d’amortissement moyenne selon la province"},{"$f":"IFERROR(VLOOKUP(G100,Translation!$A:$C,3,FALSE),G100)","v":"21.6"},{"$f":"IFERROR(VLOOKUP(H100,Translation!$A:$C,3,FALSE),H100)","v":"Nouvelle-Écosse"}]
[10,"Cumul 2020","ASSURANCE DE PORTEFEUILLE","Nouveau-Brunswick",22.714207525858793,"Période d’amortissement moyenne selon la province","22.7","Nouveau-Brunswick",{"$f":"IFERROR(VLOOKUP(A101,Translation!$A:$C,3,FALSE),A101)","v":10},{"$f":"IFERROR(VLOOKUP(B101,Translation!$A:$C,3,FALSE),B101)","v":"Cumul 2020"},{"$f":"IFERROR(VLOOKUP(C101,Translation!$A:$C,3,FALSE),C101)","v":"ASSURANCE DE PORTEFEUILLE"},{"$f":"IFERROR(VLOOKUP(D101,Translation!$A:$C,3,FALSE),D101)","v":"Nouveau-Brunswick"},{"$f":"IFERROR(VLOOKUP(E101,Translation!$A:$C,3,FALSE),E101)","v":22.714207525858793},{"$f":"IFERROR(VLOOKUP(F101,Translation!$A:$C,3,FALSE),F101)","v":"Période d’amortissement moyenne selon la province"},{"$f":"IFERROR(VLOOKUP(G101,Translation!$A:$C,3,FALSE),G101)","v":"22.7"},{"$f":"IFERROR(VLOOKUP(H101,Translation!$A:$C,3,FALSE),H101)","v":"Nouveau-Brunswick"}]
[10,"Cumul 2020","ASSURANCE DE PORTEFEUILLE","Québec",22.011742631470874,"Période d’amortissement moyenne selon la province","22.0","Québec",{"$f":"IFERROR(VLOOKUP(A102,Translation!$A:$C,3,FALSE),A102)","v":10},{"$f":"IFERROR(VLOOKUP(B102,Translation!$A:$C,3,FALSE),B102)","v":"Cumul 2020"},{"$f":"IFERROR(VLOOKUP(C102,Translation!$A:$C,3,FALSE),C102)","v":"ASSURANCE DE PORTEFEUILLE"},{"$f":"IFERROR(VLOOKUP(D102,Translation!$A:$C,3,FALSE),D102)","v":"Québec"},{"$f":"IFERROR(VLOOKUP(E102,Translation!$A:$C,3,FALSE),E102)","v":22.011742631470874},{"$f":"IFERROR(VLOOKUP(F102,Translation!$A:$C,3,FALSE),F102)","v":"Période d’amortissement moyenne selon la province"},{"$f":"IFERROR(VLOOKUP(G102,Translation!$A:$C,3,FALSE),G102)","v":"22.0"},{"$f":"IFERROR(VLOOKUP(H102,Translation!$A:$C,3,FALSE),H102)","v":"Québec"}]
[10,"Cumul 2020","ASSURANCE DE PORTEFEUILLE","Ontario",22.884156220074203,"Période d’amortissement moyenne selon la province","22.9","Ontario",{"$f":"IFERROR(VLOOKUP(A103,Translation!$A:$C,3,FALSE),A103)","v":10},{"$f":"IFERROR(VLOOKUP(B103,Translation!$A:$C,3,FALSE),B103)","v":"Cumul 2020"},{"$f":"IFERROR(VLOOKUP(C103,Translation!$A:$C,3,FALSE),C103)","v":"ASSURANCE DE PORTEFEUILLE"},{"$f":"IFERROR(VLOOKUP(D103,Translation!$A:$C,3,FALSE),D103)","v":"Ontario"},{"$f":"IFERROR(VLOOKUP(E103,Translation!$A:$C,3,FALSE),E103)","v":22.884156220074203},{"$f":"IFERROR(VLOOKUP(F103,Translation!$A:$C,3,FALSE),F103)","v":"Période d’amortissement moyenne selon la province"},{"$f":"IFERROR(VLOOKUP(G103,Translation!$A:$C,3,FALSE),G103)","v":"22.9"},{"$f":"IFERROR(VLOOKUP(H103,Translation!$A:$C,3,FALSE),H103)","v":"Ontario"}]
[10,"Cumul 2020","ASSURANCE DE PORTEFEUILLE","Manitoba",22.329403186005894,"Période d’amortissement moyenne selon la province","22.3","Manitoba",{"$f":"IFERROR(VLOOKUP(A104,Translation!$A:$C,3,FALSE),A104)","v":10},{"$f":"IFERROR(VLOOKUP(B104,Translation!$A:$C,3,FALSE),B104)","v":"Cumul 2020"},{"$f":"IFERROR(VLOOKUP(C104,Translation!$A:$C,3,FALSE),C104)","v":"ASSURANCE DE PORTEFEUILLE"},{"$f":"IFERROR(VLOOKUP(D104,Translation!$A:$C,3,FALSE),D104)","v":"Manitoba"},{"$f":"IFERROR(VLOOKUP(E104,Translation!$A:$C,3,FALSE),E104)","v":22.329403186005894},{"$f":"IFERROR(VLOOKUP(F104,Translation!$A:$C,3,FALSE),F104)","v":"Période d’amortissement moyenne selon la province"},{"$f":"IFERROR(VLOOKUP(G104,Translation!$A:$C,3,FALSE),G104)","v":"22.3"},{"$f":"IFERROR(VLOOKUP(H104,Translation!$A:$C,3,FALSE),H104)","v":"Manitoba"}]
[10,"Cumul 2020","ASSURANCE DE PORTEFEUILLE","Saskatchewan",20.786385547549372,"Période d’amortissement moyenne selon la province","20.8","Saskatchewan",{"$f":"IFERROR(VLOOKUP(A105,Translation!$A:$C,3,FALSE),A105)","v":10},{"$f":"IFERROR(VLOOKUP(B105,Translation!$A:$C,3,FALSE),B105)","v":"Cumul 2020"},{"$f":"IFERROR(VLOOKUP(C105,Translation!$A:$C,3,FALSE),C105)","v":"ASSURANCE DE PORTEFEUILLE"},{"$f":"IFERROR(VLOOKUP(D105,Translation!$A:$C,3,FALSE),D105)","v":"Saskatchewan"},{"$f":"IFERROR(VLOOKUP(E105,Translation!$A:$C,3,FALSE),E105)","v":20.786385547549372},{"$f":"IFERROR(VLOOKUP(F105,Translation!$A:$C,3,FALSE),F105)","v":"Période d’amortissement moyenne selon la province"},{"$f":"IFERROR(VLOOKUP(G105,Translation!$A:$C,3,FALSE),G105)","v":"20.8"},{"$f":"IFERROR(VLOOKUP(H105,Translation!$A:$C,3,FALSE),H105)","v":"Saskatchewan"}]
[10,"Cumul 2020","ASSURANCE DE PORTEFEUILLE","Alberta",22.271864587882689,"Période d’amortissement moyenne selon la province","22.3","Alberta",{"$f":"IFERROR(VLOOKUP(A106,Translation!$A:$C,3,FALSE),A106)","v":10},{"$f":"IFERROR(VLOOKUP(B106,Translation!$A:$C,3,FALSE),B106)","v":"Cumul 2020"},{"$f":"IFERROR(VLOOKUP(C106,Translation!$A:$C,3,FALSE),C106)","v":"ASSURANCE DE PORTEFEUILLE"},{"$f":"IFERROR(VLOOKUP(D106,Translation!$A:$C,3,FALSE),D106)","v":"Alberta"},{"$f":"IFERROR(VLOOKUP(E106,Translation!$A:$C,3,FALSE),E106)","v":22.271864587882689},{"$f":"IFERROR(VLOOKUP(F106,Translation!$A:$C,3,FALSE),F106)","v":"Période d’amortissement moyenne selon la province"},{"$f":"IFERROR(VLOOKUP(G106,Translation!$A:$C,3,FALSE),G106)","v":"22.3"},{"$f":"IFERROR(VLOOKUP(H106,Translation!$A:$C,3,FALSE),H106)","v":"Alberta"}]
[10,"Cumul 2020","ASSURANCE DE PORTEFEUILLE","Colombie-Britannique",22.356333037426285,"Période d’amortissement moyenne selon la province","22.4","Colombie-Britannique",{"$f":"IFERROR(VLOOKUP(A107,Translation!$A:$C,3,FALSE),A107)","v":10},{"$f":"IFERROR(VLOOKUP(B107,Translation!$A:$C,3,FALSE),B107)","v":"Cumul 2020"},{"$f":"IFERROR(VLOOKUP(C107,Translation!$A:$C,3,FALSE),C107)","v":"ASSURANCE DE PORTEFEUILLE"},{"$f":"IFERROR(VLOOKUP(D107,Translation!$A:$C,3,FALSE),D107)","v":"Colombie-Britannique"},{"$f":"IFERROR(VLOOKUP(E107,Translation!$A:$C,3,FALSE),E107)","v":22.356333037426285},{"$f":"IFERROR(VLOOKUP(F107,Translation!$A:$C,3,FALSE),F107)","v":"Période d’amortissement moyenne selon la province"},{"$f":"IFERROR(VLOOKUP(G107,Translation!$A:$C,3,FALSE),G107)","v":"22.4"},{"$f":"IFERROR(VLOOKUP(H107,Translation!$A:$C,3,FALSE),H107)","v":"Colombie-Britannique"}]
[28,"T1 2020","IMMEUBLES COLLECTIFS RÉSIDENTIELS","> 5 <= 10",6.3044345627901371E-2,"Prêts hypothécaires assurés au cours de la période selon la période d’amortissement (en années) à l'initiation (%)","0.1"," > 5 <= 10",{"$f":"IFERROR(VLOOKUP(A108,Translation!$A:$C,3,FALSE),A108)","v":28},{"$f":"IFERROR(VLOOKUP(B108,Translation!$A:$C,3,FALSE),B108)","v":"T1 2020"},{"$f":"IFERROR(VLOOKUP(C108,Translation!$A:$C,3,FALSE),C108)","v":"IMMEUBLES COLLECTIFS RÉSIDENTIELS"},{"$f":"IFERROR(VLOOKUP(D108,Translation!$A:$C,3,FALSE),D108)","v":"> 5 <= 10"},{"$f":"IFERROR(VLOOKUP(E108,Translation!$A:$C,3,FALSE),E108)","v":6.3044345627901371E-2},{"$f":"IFERROR(VLOOKUP(F108,Translation!$A:$C,3,FALSE),F108)","v":"Prêts hypothécaires assurés au cours de la période selon la période d’amortissement (en années) à l'initiation (%)"},{"$f":"IFERROR(VLOOKUP(G108,Translation!$A:$C,3,FALSE),G108)","v":"0.1"},{"$f":"IFERROR(VLOOKUP(H108,Translation!$A:$C,3,FALSE),H108)","v":" > 5 <= 10"}]
[28,"Cumul 2020","IMMEUBLES COLLECTIFS RÉSIDENTIELS","> 5 <= 10",6.3044345627901371E-2,"Prêts hypothécaires assurés au cours de la période selon la période d’amortissement (en années) à l'initiation (%)","0.1"," > 5 <= 10",{"$f":"IFERROR(VLOOKUP(A109,Translation!$A:$C,3,FALSE),A109)","v":28},{"$f":"IFERROR(VLOOKUP(B109,Translation!$A:$C,3,FALSE),B109)","v":"Cumul 2020"},{"$f":"IFERROR(VLOOKUP(C109,Translation!$A:$C,3,FALSE),C109)","v":"IMMEUBLES COLLECTIFS RÉSIDENTIELS"},{"$f":"IFERROR(VLOOKUP(D109,Translation!$A:$C,3,FALSE),D109)","v":"> 5 <= 10"},{"$f":"IFERROR(VLOOKUP(E109,Translation!$A:$C,3,FALSE),E109)","v":6.3044345627901371E-2},{"$f":"IFERROR(VLOOKUP(F109,Translation!$A:$C,3,FALSE),F109)","v":"Prêts hypothécaires assurés au cours de la période selon la période d’amortissement (en années) à l'initiation (%)"},{"$f":"IFERROR(VLOOKUP(G109,Translation!$A:$C,3,FALSE),G109)","v":"0.1"},{"$f":"IFERROR(VLOOKUP(H109,Translation!$A:$C,3,FALSE),H109)","v":" > 5 <= 10"}]
[28,"T1 2020","IMMEUBLES COLLECTIFS RÉSIDENTIELS","> 10 <= 15",0.8107659277702739,"Prêts hypothécaires assurés au cours de la période selon la période d’amortissement (en années) à l'initiation (%)","0.8"," > 10 <= 15",{"$f":"IFERROR(VLOOKUP(A110,Translation!$A:$C,3,FALSE),A110)","v":28},{"$f":"IFERROR(VLOOKUP(B110,Translation!$A:$C,3,FALSE),B110)","v":"T1 2020"},{"$f":"IFERROR(VLOOKUP(C110,Translation!$A:$C,3,FALSE),C110)","v":"IMMEUBLES COLLECTIFS RÉSIDENTIELS"},{"$f":"IFERROR(VLOOKUP(D110,Translation!$A:$C,3,FALSE),D110)","v":"> 10 <= 15"},{"$f":"IFERROR(VLOOKUP(E110,Translation!$A:$C,3,FALSE),E110)","v":0.8107659277702739},{"$f":"IFERROR(VLOOKUP(F110,Translation!$A:$C,3,FALSE),F110)","v":"Prêts hypothécaires assurés au cours de la période selon la période d’amortissement (en années) à l'initiation (%)"},{"$f":"IFERROR(VLOOKUP(G110,Translation!$A:$C,3,FALSE),G110)","v":"0.8"},{"$f":"IFERROR(VLOOKUP(H110,Translation!$A:$C,3,FALSE),H110)","v":" > 10 <= 15"}]
[28,"Cumul 2019","IMMEUBLES COLLECTIFS RÉSIDENTIELS","> 10 <= 15",0.49858250761961209,"Prêts hypothécaires assurés au cours de la période selon la période d’amortissement (en années) à l'initiation (%)","0.5"," > 10 <= 15",{"$f":"IFERROR(VLOOKUP(A111,Translation!$A:$C,3,FALSE),A111)","v":28},{"$f":"IFERROR(VLOOKUP(B111,Translation!$A:$C,3,FALSE),B111)","v":"Cumul 2019"},{"$f":"IFERROR(VLOOKUP(C111,Translation!$A:$C,3,FALSE),C111)","v":"IMMEUBLES COLLECTIFS RÉSIDENTIELS"},{"$f":"IFERROR(VLOOKUP(D111,Translation!$A:$C,3,FALSE),D111)","v":"> 10 <= 15"},{"$f":"IFERROR(VLOOKUP(E111,Translation!$A:$C,3,FALSE),E111)","v":0.49858250761961209},{"$f":"IFERROR(VLOOKUP(F111,Translation!$A:$C,3,FALSE),F111)","v":"Prêts hypothécaires assurés au cours de la période selon la période d’amortissement (en années) à l'initiation (%)"},{"$f":"IFERROR(VLOOKUP(G111,Translation!$A:$C,3,FALSE),G111)","v":"0.5"},{"$f":"IFERROR(VLOOKUP(H111,Translation!$A:$C,3,FALSE),H111)","v":" > 10 <= 15"}]
[28,"Cumul 2020","IMMEUBLES COLLECTIFS RÉSIDENTIELS","> 10 <= 15",0.8107659277702739,"Prêts hypothécaires assurés au cours de la période selon la période d’amortissement (en années) à l'initiation (%)","0.8"," > 10 <= 15",{"$f":"IFERROR(VLOOKUP(A112,Translation!$A:$C,3,FALSE),A112)","v":28},{"$f":"IFERROR(VLOOKUP(B112,Translation!$A:$C,3,FALSE),B112)","v":"Cumul 2020"},{"$f":"IFERROR(VLOOKUP(C112,Translation!$A:$C,3,FALSE),C112)","v":"IMMEUBLES COLLECTIFS RÉSIDENTIELS"},{"$f":"IFERROR(VLOOKUP(D112,Translation!$A:$C,3,FALSE),D112)","v":"> 10 <= 15"},{"$f":"IFERROR(VLOOKUP(E112,Translation!$A:$C,3,FALSE),E112)","v":0.8107659277702739},{"$f":"IFERROR(VLOOKUP(F112,Translation!$A:$C,3,FALSE),F112)","v":"Prêts hypothécaires assurés au cours de la période selon la période d’amortissement (en années) à l'initiation (%)"},{"$f":"IFERROR(VLOOKUP(G112,Translation!$A:$C,3,FALSE),G112)","v":"0.8"},{"$f":"IFERROR(VLOOKUP(H112,Translation!$A:$C,3,FALSE),H112)","v":" > 10 <= 15"}]
[28,"T1 2020","IMMEUBLES COLLECTIFS RÉSIDENTIELS","> 15 <= 20",0.15245250346768852,"Prêts hypothécaires assurés au cours de la période selon la période d’amortissement (en années) à l'initiation (%)","0.2"," > 15 <= 20",{"$f":"IFERROR(VLOOKUP(A113,Translation!$A:$C,3,FALSE),A113)","v":28},{"$f":"IFERROR(VLOOKUP(B113,Translation!$A:$C,3,FALSE),B113)","v":"T1 2020"},{"$f":"IFERROR(VLOOKUP(C113,Translation!$A:$C,3,FALSE),C113)","v":"IMMEUBLES COLLECTIFS RÉSIDENTIELS"},{"$f":"IFERROR(VLOOKUP(D113,Translation!$A:$C,3,FALSE),D113)","v":"> 15 <= 20"},{"$f":"IFERROR(VLOOKUP(E113,Translation!$A:$C,3,FALSE),E113)","v":0.15245250346768852},{"$f":"IFERROR(VLOOKUP(F113,Translation!$A:$C,3,FALSE),F113)","v":"Prêts hypothécaires assurés au cours de la période selon la période d’amortissement (en années) à l'initiation (%)"},{"$f":"IFERROR(VLOOKUP(G113,Translation!$A:$C,3,FALSE),G113)","v":"0.2"},{"$f":"IFERROR(VLOOKUP(H113,Translation!$A:$C,3,FALSE),H113)","v":" > 15 <= 20"}]
[28,"Cumul 2019","IMMEUBLES COLLECTIFS RÉSIDENTIELS","> 15 <= 20",0.62930499764585324,"Prêts hypothécaires assurés au cours de la période selon la période d’amortissement (en années) à l'initiation (%)","0.6"," > 15 <= 20",{"$f":"IFERROR(VLOOKUP(A114,Translation!$A:$C,3,FALSE),A114)","v":28},{"$f":"IFERROR(VLOOKUP(B114,Translation!$A:$C,3,FALSE),B114)","v":"Cumul 2019"},{"$f":"IFERROR(VLOOKUP(C114,Translation!$A:$C,3,FALSE),C114)","v":"IMMEUBLES COLLECTIFS RÉSIDENTIELS"},{"$f":"IFERROR(VLOOKUP(D114,Translation!$A:$C,3,FALSE),D114)","v":"> 15 <= 20"},{"$f":"IFERROR(VLOOKUP(E114,Translation!$A:$C,3,FALSE),E114)","v":0.62930499764585324},{"$f":"IFERROR(VLOOKUP(F114,Translation!$A:$C,3,FALSE),F114)","v":"Prêts hypothécaires assurés au cours de la période selon la période d’amortissement (en années) à l'initiation (%)"},{"$f":"IFERROR(VLOOKUP(G114,Translation!$A:$C,3,FALSE),G114)","v":"0.6"},{"$f":"IFERROR(VLOOKUP(H114,Translation!$A:$C,3,FALSE),H114)","v":" > 15 <= 20"}]
[28,"Cumul 2020","IMMEUBLES COLLECTIFS RÉSIDENTIELS","> 15 <= 20",0.15245250346768852,"Prêts hypothécaires assurés au cours de la période selon la période d’amortissement (en années) à l'initiation (%)","0.2"," > 15 <= 20",{"$f":"IFERROR(VLOOKUP(A115,Translation!$A:$C,3,FALSE),A115)","v":28},{"$f":"IFERROR(VLOOKUP(B115,Translation!$A:$C,3,FALSE),B115)","v":"Cumul 2020"},{"$f":"IFERROR(VLOOKUP(C115,Translation!$A:$C,3,FALSE),C115)","v":"IMMEUBLES COLLECTIFS RÉSIDENTIELS"},{"$f":"IFERROR(VLOOKUP(D115,Translation!$A:$C,3,FALSE),D115)","v":"> 15 <= 20"},{"$f":"IFERROR(VLOOKUP(E115,Translation!$A:$C,3,FALSE),E115)","v":0.15245250346768852},{"$f":"IFERROR(VLOOKUP(F115,Translation!$A:$C,3,FALSE),F115)","v":"Prêts hypothécaires assurés au cours de la période selon la période d’amortissement (en années) à l'initiation (%)"},{"$f":"IFERROR(VLOOKUP(G115,Translation!$A:$C,3,FALSE),G115)","v":"0.2"},{"$f":"IFERROR(VLOOKUP(H115,Translation!$A:$C,3,FALSE),H115)","v":" > 15 <= 20"}]
[28,"T1 2020","IMMEUBLES COLLECTIFS RÉSIDENTIELS","> 20 <= 25",9.856474829149322,"Prêts hypothécaires assurés au cours de la période selon la période d’amortissement (en années) à l'initiation (%)","9.9"," > 20 <= 25",{"$f":"IFERROR(VLOOKUP(A116,Translation!$A:$C,3,FALSE),A116)","v":28},{"$f":"IFERROR(VLOOKUP(B116,Translation!$A:$C,3,FALSE),B116)","v":"T1 2020"},{"$f":"IFERROR(VLOOKUP(C116,Translation!$A:$C,3,FALSE),C116)","v":"IMMEUBLES COLLECTIFS RÉSIDENTIELS"},{"$f":"IFERROR(VLOOKUP(D116,Translation!$A:$C,3,FALSE),D116)","v":"> 20 <= 25"},{"$f":"IFERROR(VLOOKUP(E116,Translation!$A:$C,3,FALSE),E116)","v":9.856474829149322},{"$f":"IFERROR(VLOOKUP(F116,Translation!$A:$C,3,FALSE),F116)","v":"Prêts hypothécaires assurés au cours de la période selon la période d’amortissement (en années) à l'initiation (%)"},{"$f":"IFERROR(VLOOKUP(G116,Translation!$A:$C,3,FALSE),G116)","v":"9.9"},{"$f":"IFERROR(VLOOKUP(H116,Translation!$A:$C,3,FALSE),H116)","v":" > 20 <= 25"}]
[28,"Cumul 2019","IMMEUBLES COLLECTIFS RÉSIDENTIELS","> 20 <= 25",20.076326455699,"Prêts hypothécaires assurés au cours de la période selon la période d’amortissement (en années) à l'initiation (%)","20.1"," > 20 <= 25",{"$f":"IFERROR(VLOOKUP(A117,Translation!$A:$C,3,FALSE),A117)","v":28},{"$f":"IFERROR(VLOOKUP(B117,Translation!$A:$C,3,FALSE),B117)","v":"Cumul 2019"},{"$f":"IFERROR(VLOOKUP(C117,Translation!$A:$C,3,FALSE),C117)","v":"IMMEUBLES COLLECTIFS RÉSIDENTIELS"},{"$f":"IFERROR(VLOOKUP(D117,Translation!$A:$C,3,FALSE),D117)","v":"> 20 <= 25"},{"$f":"IFERROR(VLOOKUP(E117,Translation!$A:$C,3,FALSE),E117)","v":20.076326455699},{"$f":"IFERROR(VLOOKUP(F117,Translation!$A:$C,3,FALSE),F117)","v":"Prêts hypothécaires assurés au cours de la période selon la période d’amortissement (en années) à l'initiation (%)"},{"$f":"IFERROR(VLOOKUP(G117,Translation!$A:$C,3,FALSE),G117)","v":"20.1"},{"$f":"IFERROR(VLOOKUP(H117,Translation!$A:$C,3,FALSE),H117)","v":" > 20 <= 25"}]
[28,"Cumul 2020","IMMEUBLES COLLECTIFS RÉSIDENTIELS","> 20 <= 25",9.856474829149322,"Prêts hypothécaires assurés au cours de la période selon la période d’amortissement (en années) à l'initiation (%)","9.9"," > 20 <= 25",{"$f":"IFERROR(VLOOKUP(A118,Translation!$A:$C,3,FALSE),A118)","v":28},{"$f":"IFERROR(VLOOKUP(B118,Translation!$A:$C,3,FALSE),B118)","v":"Cumul 2020"},{"$f":"IFERROR(VLOOKUP(C118,Translation!$A:$C,3,FALSE),C118)","v":"IMMEUBLES COLLECTIFS RÉSIDENTIELS"},{"$f":"IFERROR(VLOOKUP(D118,Translation!$A:$C,3,FALSE),D118)","v":"> 20 <= 25"},{"$f":"IFERROR(VLOOKUP(E118,Translation!$A:$C,3,FALSE),E118)","v":9.856474829149322},{"$f":"IFERROR(VLOOKUP(F118,Translation!$A:$C,3,FALSE),F118)","v":"Prêts hypothécaires assurés au cours de la période selon la période d’amortissement (en années) à l'initiation (%)"},{"$f":"IFERROR(VLOOKUP(G118,Translation!$A:$C,3,FALSE),G118)","v":"9.9"},{"$f":"IFERROR(VLOOKUP(H118,Translation!$A:$C,3,FALSE),H118)","v":" > 20 <= 25"}]
[28,"T1 2020","IMMEUBLES COLLECTIFS RÉSIDENTIELS","> 25 <= 30",23.688896222983843,"Prêts hypothécaires assurés au cours de la période selon la période d’amortissement (en années) à l'initiation (%)","23.7"," > 25 <= 30",{"$f":"IFERROR(VLOOKUP(A119,Translation!$A:$C,3,FALSE),A119)","v":28},{"$f":"IFERROR(VLOOKUP(B119,Translation!$A:$C,3,FALSE),B119)","v":"T1 2020"},{"$f":"IFERROR(VLOOKUP(C119,Translation!$A:$C,3,FALSE),C119)","v":"IMMEUBLES COLLECTIFS RÉSIDENTIELS"},{"$f":"IFERROR(VLOOKUP(D119,Translation!$A:$C,3,FALSE),D119)","v":"> 25 <= 30"},{"$f":"IFERROR(VLOOKUP(E119,Translation!$A:$C,3,FALSE),E119)","v":23.688896222983843},{"$f":"IFERROR(VLOOKUP(F119,Translation!$A:$C,3,FALSE),F119)","v":"Prêts hypothécaires assurés au cours de la période selon la période d’amortissement (en années) à l'initiation (%)"},{"$f":"IFERROR(VLOOKUP(G119,Translation!$A:$C,3,FALSE),G119)","v":"23.7"},{"$f":"IFERROR(VLOOKUP(H119,Translation!$A:$C,3,FALSE),H119)","v":" > 25 <= 30"}]
[28,"Cumul 2019","IMMEUBLES COLLECTIFS RÉSIDENTIELS","> 25 <= 30",22.560001776371248,"Prêts hypothécaires assurés au cours de la période selon la période d’amortissement (en années) à l'initiation (%)","22.6"," > 25 <= 30",{"$f":"IFERROR(VLOOKUP(A120,Translation!$A:$C,3,FALSE),A120)","v":28},{"$f":"IFERROR(VLOOKUP(B120,Translation!$A:$C,3,FALSE),B120)","v":"Cumul 2019"},{"$f":"IFERROR(VLOOKUP(C120,Translation!$A:$C,3,FALSE),C120)","v":"IMMEUBLES COLLECTIFS RÉSIDENTIELS"},{"$f":"IFERROR(VLOOKUP(D120,Translation!$A:$C,3,FALSE),D120)","v":"> 25 <= 30"},{"$f":"IFERROR(VLOOKUP(E120,Translation!$A:$C,3,FALSE),E120)","v":22.560001776371248},{"$f":"IFERROR(VLOOKUP(F120,Translation!$A:$C,3,FALSE),F120)","v":"Prêts hypothécaires assurés au cours de la période selon la période d’amortissement (en années) à l'initiation (%)"},{"$f":"IFERROR(VLOOKUP(G120,Translation!$A:$C,3,FALSE),G120)","v":"22.6"},{"$f":"IFERROR(VLOOKUP(H120,Translation!$A:$C,3,FALSE),H120)","v":" > 25 <= 30"}]
[28,"Cumul 2020","IMMEUBLES COLLECTIFS RÉSIDENTIELS","> 25 <= 30",23.688896222983843,"Prêts hypothécaires assurés au cours de la période selon la période d’amortissement (en années) à l'initiation (%)","23.7"," > 25 <= 30",{"$f":"IFERROR(VLOOKUP(A121,Translation!$A:$C,3,FALSE),A121)","v":28},{"$f":"IFERROR(VLOOKUP(B121,Translation!$A:$C,3,FALSE),B121)","v":"Cumul 2020"},{"$f":"IFERROR(VLOOKUP(C121,Translation!$A:$C,3,FALSE),C121)","v":"IMMEUBLES COLLECTIFS RÉSIDENTIELS"},{"$f":"IFERROR(VLOOKUP(D121,Translation!$A:$C,3,FALSE),D121)","v":"> 25 <= 30"},{"$f":"IFERROR(VLOOKUP(E121,Translation!$A:$C,3,FALSE),E121)","v":23.688896222983843},{"$f":"IFERROR(VLOOKUP(F121,Translation!$A:$C,3,FALSE),F121)","v":"Prêts hypothécaires assurés au cours de la période selon la période d’amortissement (en années) à l'initiation (%)"},{"$f":"IFERROR(VLOOKUP(G121,Translation!$A:$C,3,FALSE),G121)","v":"23.7"},{"$f":"IFERROR(VLOOKUP(H121,Translation!$A:$C,3,FALSE),H121)","v":" > 25 <= 30"}]
[28,"T1 2020","IMMEUBLES COLLECTIFS RÉSIDENTIELS","> 30 <= 35",13.181367613332132,"Prêts hypothécaires assurés au cours de la période selon la période d’amortissement (en années) à l'initiation (%)","13.2"," > 30 <= 35",{"$f":"IFERROR(VLOOKUP(A122,Translation!$A:$C,3,FALSE),A122)","v":28},{"$f":"IFERROR(VLOOKUP(B122,Translation!$A:$C,3,FALSE),B122)","v":"T1 2020"},{"$f":"IFERROR(VLOOKUP(C122,Translation!$A:$C,3,FALSE),C122)","v":"IMMEUBLES COLLECTIFS RÉSIDENTIELS"},{"$f":"IFERROR(VLOOKUP(D122,Translation!$A:$C,3,FALSE),D122)","v":"> 30 <= 35"},{"$f":"IFERROR(VLOOKUP(E122,Translation!$A:$C,3,FALSE),E122)","v":13.181367613332132},{"$f":"IFERROR(VLOOKUP(F122,Translation!$A:$C,3,FALSE),F122)","v":"Prêts hypothécaires assurés au cours de la période selon la période d’amortissement (en années) à l'initiation (%)"},{"$f":"IFERROR(VLOOKUP(G122,Translation!$A:$C,3,FALSE),G122)","v":"13.2"},{"$f":"IFERROR(VLOOKUP(H122,Translation!$A:$C,3,FALSE),H122)","v":" > 30 <= 35"}]
[28,"Cumul 2019","IMMEUBLES COLLECTIFS RÉSIDENTIELS","> 30 <= 35",22.99028439527282,"Prêts hypothécaires assurés au cours de la période selon la période d’amortissement (en années) à l'initiation (%)","23.0"," > 30 <= 35",{"$f":"IFERROR(VLOOKUP(A123,Translation!$A:$C,3,FALSE),A123)","v":28},{"$f":"IFERROR(VLOOKUP(B123,Translation!$A:$C,3,FALSE),B123)","v":"Cumul 2019"},{"$f":"IFERROR(VLOOKUP(C123,Translation!$A:$C,3,FALSE),C123)","v":"IMMEUBLES COLLECTIFS RÉSIDENTIELS"},{"$f":"IFERROR(VLOOKUP(D123,Translation!$A:$C,3,FALSE),D123)","v":"> 30 <= 35"},{"$f":"IFERROR(VLOOKUP(E123,Translation!$A:$C,3,FALSE),E123)","v":22.99028439527282},{"$f":"IFERROR(VLOOKUP(F123,Translation!$A:$C,3,FALSE),F123)","v":"Prêts hypothécaires assurés au cours de la période selon la période d’amortissement (en années) à l'initiation (%)"},{"$f":"IFERROR(VLOOKUP(G123,Translation!$A:$C,3,FALSE),G123)","v":"23.0"},{"$f":"IFERROR(VLOOKUP(H123,Translation!$A:$C,3,FALSE),H123)","v":" > 30 <= 35"}]
[28,"Cumul 2020","IMMEUBLES COLLECTIFS RÉSIDENTIELS","> 30 <= 35",13.181367613332132,"Prêts hypothécaires assurés au cours de la période selon la période d’amortissement (en années) à l'initiation (%)","13.2"," > 30 <= 35",{"$f":"IFERROR(VLOOKUP(A124,Translation!$A:$C,3,FALSE),A124)","v":28},{"$f":"IFERROR(VLOOKUP(B124,Translation!$A:$C,3,FALSE),B124)","v":"Cumul 2020"},{"$f":"IFERROR(VLOOKUP(C124,Translation!$A:$C,3,FALSE),C124)","v":"IMMEUBLES COLLECTIFS RÉSIDENTIELS"},{"$f":"IFERROR(VLOOKUP(D124,Translation!$A:$C,3,FALSE),D124)","v":"> 30 <= 35"},{"$f":"IFERROR(VLOOKUP(E124,Translation!$A:$C,3,FALSE),E124)","v":13.181367613332132},{"$f":"IFERROR(VLOOKUP(F124,Translation!$A:$C,3,FALSE),F124)","v":"Prêts hypothécaires assurés au cours de la période selon la période d’amortissement (en années) à l'initiation (%)"},{"$f":"IFERROR(VLOOKUP(G124,Translation!$A:$C,3,FALSE),G124)","v":"13.2"},{"$f":"IFERROR(VLOOKUP(H124,Translation!$A:$C,3,FALSE),H124)","v":" > 30 <= 35"}]
[28,"T1 2020","IMMEUBLES COLLECTIFS RÉSIDENTIELS","> 35",52.246998557668867,"Prêts hypothécaires assurés au cours de la période selon la période d’amortissement (en années) à l'initiation (%)","52.2"," > 35",{"$f":"IFERROR(VLOOKUP(A125,Translation!$A:$C,3,FALSE),A125)","v":28},{"$f":"IFERROR(VLOOKUP(B125,Translation!$A:$C,3,FALSE),B125)","v":"T1 2020"},{"$f":"IFERROR(VLOOKUP(C125,Translation!$A:$C,3,FALSE),C125)","v":"IMMEUBLES COLLECTIFS RÉSIDENTIELS"},{"$f":"IFERROR(VLOOKUP(D125,Translation!$A:$C,3,FALSE),D125)","v":"> 35"},{"$f":"IFERROR(VLOOKUP(E125,Translation!$A:$C,3,FALSE),E125)","v":52.246998557668867},{"$f":"IFERROR(VLOOKUP(F125,Translation!$A:$C,3,FALSE),F125)","v":"Prêts hypothécaires assurés au cours de la période selon la période d’amortissement (en années) à l'initiation (%)"},{"$f":"IFERROR(VLOOKUP(G125,Translation!$A:$C,3,FALSE),G125)","v":"52.2"},{"$f":"IFERROR(VLOOKUP(H125,Translation!$A:$C,3,FALSE),H125)","v":" > 35"}]
[28,"Cumul 2019","IMMEUBLES COLLECTIFS RÉSIDENTIELS","> 35",33.245499867391445,"Prêts hypothécaires assurés au cours de la période selon la période d’amortissement (en années) à l'initiation (%)","33.2"," > 35",{"$f":"IFERROR(VLOOKUP(A126,Translation!$A:$C,3,FALSE),A126)","v":28},{"$f":"IFERROR(VLOOKUP(B126,Translation!$A:$C,3,FALSE),B126)","v":"Cumul 2019"},{"$f":"IFERROR(VLOOKUP(C126,Translation!$A:$C,3,FALSE),C126)","v":"IMMEUBLES COLLECTIFS RÉSIDENTIELS"},{"$f":"IFERROR(VLOOKUP(D126,Translation!$A:$C,3,FALSE),D126)","v":"> 35"},{"$f":"IFERROR(VLOOKUP(E126,Translation!$A:$C,3,FALSE),E126)","v":33.245499867391445},{"$f":"IFERROR(VLOOKUP(F126,Translation!$A:$C,3,FALSE),F126)","v":"Prêts hypothécaires assurés au cours de la période selon la période d’amortissement (en années) à l'initiation (%)"},{"$f":"IFERROR(VLOOKUP(G126,Translation!$A:$C,3,FALSE),G126)","v":"33.2"},{"$f":"IFERROR(VLOOKUP(H126,Translation!$A:$C,3,FALSE),H126)","v":" > 35"}]
[28,"Cumul 2020","IMMEUBLES COLLECTIFS RÉSIDENTIELS","> 35",52.246998557668867,"Prêts hypothécaires assurés au cours de la période selon la période d’amortissement (en années) à l'initiation (%)","52.2"," > 35",{"$f":"IFERROR(VLOOKUP(A127,Translation!$A:$C,3,FALSE),A127)","v":28},{"$f":"IFERROR(VLOOKUP(B127,Translation!$A:$C,3,FALSE),B127)","v":"Cumul 2020"},{"$f":"IFERROR(VLOOKUP(C127,Translation!$A:$C,3,FALSE),C127)","v":"IMMEUBLES COLLECTIFS RÉSIDENTIELS"},{"$f":"IFERROR(VLOOKUP(D127,Translation!$A:$C,3,FALSE),D127)","v":"> 35"},{"$f":"IFERROR(VLOOKUP(E127,Translation!$A:$C,3,FALSE),E127)","v":52.246998557668867},{"$f":"IFERROR(VLOOKUP(F127,Translation!$A:$C,3,FALSE),F127)","v":"Prêts hypothécaires assurés au cours de la période selon la période d’amortissement (en années) à l'initiation (%)"},{"$f":"IFERROR(VLOOKUP(G127,Translation!$A:$C,3,FALSE),G127)","v":"52.2"},{"$f":"IFERROR(VLOOKUP(H127,Translation!$A:$C,3,FALSE),H127)","v":" > 35"}]
[28,"T1 2020","IMMEUBLES COLLECTIFS RÉSIDENTIELS","Période d’amortissement moyenne",35.764885242652902,"Prêts hypothécaires assurés au cours de la période selon la période d’amortissement (en années) à l'initiation (%)","35.8","Période d’amortissement moyenne",{"$f":"IFERROR(VLOOKUP(A128,Translation!$A:$C,3,FALSE),A128)","v":28},{"$f":"IFERROR(VLOOKUP(B128,Translation!$A:$C,3,FALSE),B128)","v":"T1 2020"},{"$f":"IFERROR(VLOOKUP(C128,Translation!$A:$C,3,FALSE),C128)","v":"IMMEUBLES COLLECTIFS RÉSIDENTIELS"},{"$f":"IFERROR(VLOOKUP(D128,Translation!$A:$C,3,FALSE),D128)","v":"Période d’amortissement moyenne"},{"$f":"IFERROR(VLOOKUP(E128,Translation!$A:$C,3,FALSE),E128)","v":35.764885242652902},{"$f":"IFERROR(VLOOKUP(F128,Translation!$A:$C,3,FALSE),F128)","v":"Prêts hypothécaires assurés au cours de la période selon la période d’amortissement (en années) à l'initiation (%)"},{"$f":"IFERROR(VLOOKUP(G128,Translation!$A:$C,3,FALSE),G128)","v":"35.8"},{"$f":"IFERROR(VLOOKUP(H128,Translation!$A:$C,3,FALSE),H128)","v":"Période d’amortissement moyenne"}]
[28,"Cumul 2019","IMMEUBLES COLLECTIFS RÉSIDENTIELS","Période d’amortissement moyenne",33.393542347031257,"Prêts hypothécaires assurés au cours de la période selon la période d’amortissement (en années) à l'initiation (%)","33.4","Période d’amortissement moyenne",{"$f":"IFERROR(VLOOKUP(A129,Translation!$A:$C,3,FALSE),A129)","v":28},{"$f":"IFERROR(VLOOKUP(B129,Translation!$A:$C,3,FALSE),B129)","v":"Cumul 2019"},{"$f":"IFERROR(VLOOKUP(C129,Translation!$A:$C,3,FALSE),C129)","v":"IMMEUBLES COLLECTIFS RÉSIDENTIELS"},{"$f":"IFERROR(VLOOKUP(D129,Translation!$A:$C,3,FALSE),D129)","v":"Période d’amortissement moyenne"},{"$f":"IFERROR(VLOOKUP(E129,Translation!$A:$C,3,FALSE),E129)","v":33.393542347031257},{"$f":"IFERROR(VLOOKUP(F129,Translation!$A:$C,3,FALSE),F129)","v":"Prêts hypothécaires assurés au cours de la période selon la période d’amortissement (en années) à l'initiation (%)"},{"$f":"IFERROR(VLOOKUP(G129,Translation!$A:$C,3,FALSE),G129)","v":"33.4"},{"$f":"IFERROR(VLOOKUP(H129,Translation!$A:$C,3,FALSE),H129)","v":"Période d’amortissement moyenne"}]
[28,"Cumul 2020","IMMEUBLES COLLECTIFS RÉSIDENTIELS","Période d’amortissement moyenne",35.764885242652902,"Prêts hypothécaires assurés au cours de la période selon la période d’amortissement (en années) à l'initiation (%)","35.8","Période d’amortissement moyenne",{"$f":"IFERROR(VLOOKUP(A130,Translation!$A:$C,3,FALSE),A130)","v":28},{"$f":"IFERROR(VLOOKUP(B130,Translation!$A:$C,3,FALSE),B130)","v":"Cumul 2020"},{"$f":"IFERROR(VLOOKUP(C130,Translation!$A:$C,3,FALSE),C130)","v":"IMMEUBLES COLLECTIFS RÉSIDENTIELS"},{"$f":"IFERROR(VLOOKUP(D130,Translation!$A:$C,3,FALSE),D130)","v":"Période d’amortissement moyenne"},{"$f":"IFERROR(VLOOKUP(E130,Translation!$A:$C,3,FALSE),E130)","v":35.764885242652902},{"$f":"IFERROR(VLOOKUP(F130,Translation!$A:$C,3,FALSE),F130)","v":"Prêts hypothécaires assurés au cours de la période selon la période d’amortissement (en années) à l'initiation (%)"},{"$f":"IFERROR(VLOOKUP(G130,Translation!$A:$C,3,FALSE),G130)","v":"35.8"},{"$f":"IFERROR(VLOOKUP(H130,Translation!$A:$C,3,FALSE),H130)","v":"Période d’amortissement moyenne"}]
[28,"T1 2020","IMMEUBLES COLLECTIFS RÉSIDENTIELS","Terre-Neuve-et-Labrador",25,"Période d’amortissement moyenne selon la province","25.0","Terre-Neuve-et-Labrador",{"$f":"IFERROR(VLOOKUP(A131,Translation!$A:$C,3,FALSE),A131)","v":28},{"$f":"IFERROR(VLOOKUP(B131,Translation!$A:$C,3,FALSE),B131)","v":"T1 2020"},{"$f":"IFERROR(VLOOKUP(C131,Translation!$A:$C,3,FALSE),C131)","v":"IMMEUBLES COLLECTIFS RÉSIDENTIELS"},{"$f":"IFERROR(VLOOKUP(D131,Translation!$A:$C,3,FALSE),D131)","v":"Terre-Neuve-et-Labrador"},{"$f":"IFERROR(VLOOKUP(E131,Translation!$A:$C,3,FALSE),E131)","v":25},{"$f":"IFERROR(VLOOKUP(F131,Translation!$A:$C,3,FALSE),F131)","v":"Période d’amortissement moyenne selon la province"},{"$f":"IFERROR(VLOOKUP(G131,Translation!$A:$C,3,FALSE),G131)","v":"25.0"},{"$f":"IFERROR(VLOOKUP(H131,Translation!$A:$C,3,FALSE),H131)","v":"Terre-Neuve-et-Labrador"}]
[28,"T1 2020","IMMEUBLES COLLECTIFS RÉSIDENTIELS","Île-du-Prince-Édouard",25,"Période d’amortissement moyenne selon la province","25.0","Île-du-Prince-Édouard",{"$f":"IFERROR(VLOOKUP(A132,Translation!$A:$C,3,FALSE),A132)","v":28},{"$f":"IFERROR(VLOOKUP(B132,Translation!$A:$C,3,FALSE),B132)","v":"T1 2020"},{"$f":"IFERROR(VLOOKUP(C132,Translation!$A:$C,3,FALSE),C132)","v":"IMMEUBLES COLLECTIFS RÉSIDENTIELS"},{"$f":"IFERROR(VLOOKUP(D132,Translation!$A:$C,3,FALSE),D132)","v":"Île-du-Prince-Édouard"},{"$f":"IFERROR(VLOOKUP(E132,Translation!$A:$C,3,FALSE),E132)","v":25},{"$f":"IFERROR(VLOOKUP(F132,Translation!$A:$C,3,FALSE),F132)","v":"Période d’amortissement moyenne selon la province"},{"$f":"IFERROR(VLOOKUP(G132,Translation!$A:$C,3,FALSE),G132)","v":"25.0"},{"$f":"IFERROR(VLOOKUP(H132,Translation!$A:$C,3,FALSE),H132)","v":"Île-du-Prince-Édouard"}]
[28,"T1 2020","IMMEUBLES COLLECTIFS RÉSIDENTIELS","Nouvelle-Écosse",33.094734785101409,"Période d’amortissement moyenne selon la province","33.1","Nouvelle-Écosse",{"$f":"IFERROR(VLOOKUP(A133,Translation!$A:$C,3,FALSE),A133)","v":28},{"$f":"IFERROR(VLOOKUP(B133,Translation!$A:$C,3,FALSE),B133)","v":"T1 2020"},{"$f":"IFERROR(VLOOKUP(C133,Translation!$A:$C,3,FALSE),C133)","v":"IMMEUBLES COLLECTIFS RÉSIDENTIELS"},{"$f":"IFERROR(VLOOKUP(D133,Translation!$A:$C,3,FALSE),D133)","v":"Nouvelle-Écosse"},{"$f":"IFERROR(VLOOKUP(E133,Translation!$A:$C,3,FALSE),E133)","v":33.094734785101409},{"$f":"IFERROR(VLOOKUP(F133,Translation!$A:$C,3,FALSE),F133)","v":"Période d’amortissement moyenne selon la province"},{"$f":"IFERROR(VLOOKUP(G133,Translation!$A:$C,3,FALSE),G133)","v":"33.1"},{"$f":"IFERROR(VLOOKUP(H133,Translation!$A:$C,3,FALSE),H133)","v":"Nouvelle-Écosse"}]
[28,"T1 2020","IMMEUBLES COLLECTIFS RÉSIDENTIELS","Nouveau-Brunswick",33.244289988545944,"Période d’amortissement moyenne selon la province","33.2","Nouveau-Brunswick",{"$f":"IFERROR(VLOOKUP(A134,Translation!$A:$C,3,FALSE),A134)","v":28},{"$f":"IFERROR(VLOOKUP(B134,Translation!$A:$C,3,FALSE),B134)","v":"T1 2020"},{"$f":"IFERROR(VLOOKUP(C134,Translation!$A:$C,3,FALSE),C134)","v":"IMMEUBLES COLLECTIFS RÉSIDENTIELS"},{"$f":"IFERROR(VLOOKUP(D134,Translation!$A:$C,3,FALSE),D134)","v":"Nouveau-Brunswick"},{"$f":"IFERROR(VLOOKUP(E134,Translation!$A:$C,3,FALSE),E134)","v":33.244289988545944},{"$f":"IFERROR(VLOOKUP(F134,Translation!$A:$C,3,FALSE),F134)","v":"Période d’amortissement moyenne selon la province"},{"$f":"IFERROR(VLOOKUP(G134,Translation!$A:$C,3,FALSE),G134)","v":"33.2"},{"$f":"IFERROR(VLOOKUP(H134,Translation!$A:$C,3,FALSE),H134)","v":"Nouveau-Brunswick"}]
[28,"T1 2020","IMMEUBLES COLLECTIFS RÉSIDENTIELS","Québec",33.543153212507903,"Période d’amortissement moyenne selon la province","33.5","Québec",{"$f":"IFERROR(VLOOKUP(A135,Translation!$A:$C,3,FALSE),A135)","v":28},{"$f":"IFERROR(VLOOKUP(B135,Translation!$A:$C,3,FALSE),B135)","v":"T1 2020"},{"$f":"IFERROR(VLOOKUP(C135,Translation!$A:$C,3,FALSE),C135)","v":"IMMEUBLES COLLECTIFS RÉSIDENTIELS"},{"$f":"IFERROR(VLOOKUP(D135,Translation!$A:$C,3,FALSE),D135)","v":"Québec"},{"$f":"IFERROR(VLOOKUP(E135,Translation!$A:$C,3,FALSE),E135)","v":33.543153212507903},{"$f":"IFERROR(VLOOKUP(F135,Translation!$A:$C,3,FALSE),F135)","v":"Période d’amortissement moyenne selon la province"},{"$f":"IFERROR(VLOOKUP(G135,Translation!$A:$C,3,FALSE),G135)","v":"33.5"},{"$f":"IFERROR(VLOOKUP(H135,Translation!$A:$C,3,FALSE),H135)","v":"Québec"}]
[28,"T1 2020","IMMEUBLES COLLECTIFS RÉSIDENTIELS","Ontario",37.61140139293115,"Période d’amortissement moyenne selon la province","37.6","Ontario",{"$f":"IFERROR(VLOOKUP(A136,Translation!$A:$C,3,FALSE),A136)","v":28},{"$f":"IFERROR(VLOOKUP(B136,Translation!$A:$C,3,FALSE),B136)","v":"T1 2020"},{"$f":"IFERROR(VLOOKUP(C136,Translation!$A:$C,3,FALSE),C136)","v":"IMMEUBLES COLLECTIFS RÉSIDENTIELS"},{"$f":"IFERROR(VLOOKUP(D136,Translation!$A:$C,3,FALSE),D136)","v":"Ontario"},{"$f":"IFERROR(VLOOKUP(E136,Translation!$A:$C,3,FALSE),E136)","v":37.61140139293115},{"$f":"IFERROR(VLOOKUP(F136,Translation!$A:$C,3,FALSE),F136)","v":"Période d’amortissement moyenne selon la province"},{"$f":"IFERROR(VLOOKUP(G136,Translation!$A:$C,3,FALSE),G136)","v":"37.6"},{"$f":"IFERROR(VLOOKUP(H136,Translation!$A:$C,3,FALSE),H136)","v":"Ontario"}]
[28,"T1 2020","IMMEUBLES COLLECTIFS RÉSIDENTIELS","Manitoba",32.851924665267525,"Période d’amortissement moyenne selon la province","32.9","Manitoba",{"$f":"IFERROR(VLOOKUP(A137,Translation!$A:$C,3,FALSE),A137)","v":28},{"$f":"IFERROR(VLOOKUP(B137,Translation!$A:$C,3,FALSE),B137)","v":"T1 2020"},{"$f":"IFERROR(VLOOKUP(C137,Translation!$A:$C,3,FALSE),C137)","v":"IMMEUBLES COLLECTIFS RÉSIDENTIELS"},{"$f":"IFERROR(VLOOKUP(D137,Translation!$A:$C,3,FALSE),D137)","v":"Manitoba"},{"$f":"IFERROR(VLOOKUP(E137,Translation!$A:$C,3,FALSE),E137)","v":32.851924665267525},{"$f":"IFERROR(VLOOKUP(F137,Translation!$A:$C,3,FALSE),F137)","v":"Période d’amortissement moyenne selon la province"},{"$f":"IFERROR(VLOOKUP(G137,Translation!$A:$C,3,FALSE),G137)","v":"32.9"},{"$f":"IFERROR(VLOOKUP(H137,Translation!$A:$C,3,FALSE),H137)","v":"Manitoba"}]
[28,"T1 2020","IMMEUBLES COLLECTIFS RÉSIDENTIELS","Saskatchewan",36.025620488832999,"Période d’amortissement moyenne selon la province","36.0","Saskatchewan",{"$f":"IFERROR(VLOOKUP(A138,Translation!$A:$C,3,FALSE),A138)","v":28},{"$f":"IFERROR(VLOOKUP(B138,Translation!$A:$C,3,FALSE),B138)","v":"T1 2020"},{"$f":"IFERROR(VLOOKUP(C138,Translation!$A:$C,3,FALSE),C138)","v":"IMMEUBLES COLLECTIFS RÉSIDENTIELS"},{"$f":"IFERROR(VLOOKUP(D138,Translation!$A:$C,3,FALSE),D138)","v":"Saskatchewan"},{"$f":"IFERROR(VLOOKUP(E138,Translation!$A:$C,3,FALSE),E138)","v":36.025620488832999},{"$f":"IFERROR(VLOOKUP(F138,Translation!$A:$C,3,FALSE),F138)","v":"Période d’amortissement moyenne selon la province"},{"$f":"IFERROR(VLOOKUP(G138,Translation!$A:$C,3,FALSE),G138)","v":"36.0"},{"$f":"IFERROR(VLOOKUP(H138,Translation!$A:$C,3,FALSE),H138)","v":"Saskatchewan"}]
[28,"T1 2020","IMMEUBLES COLLECTIFS RÉSIDENTIELS","Alberta",35.573134140686406,"Période d’amortissement moyenne selon la province","35.6","Alberta",{"$f":"IFERROR(VLOOKUP(A139,Translation!$A:$C,3,FALSE),A139)","v":28},{"$f":"IFERROR(VLOOKUP(B139,Translation!$A:$C,3,FALSE),B139)","v":"T1 2020"},{"$f":"IFERROR(VLOOKUP(C139,Translation!$A:$C,3,FALSE),C139)","v":"IMMEUBLES COLLECTIFS RÉSIDENTIELS"},{"$f":"IFERROR(VLOOKUP(D139,Translation!$A:$C,3,FALSE),D139)","v":"Alberta"},{"$f":"IFERROR(VLOOKUP(E139,Translation!$A:$C,3,FALSE),E139)","v":35.573134140686406},{"$f":"IFERROR(VLOOKUP(F139,Translation!$A:$C,3,FALSE),F139)","v":"Période d’amortissement moyenne selon la province"},{"$f":"IFERROR(VLOOKUP(G139,Translation!$A:$C,3,FALSE),G139)","v":"35.6"},{"$f":"IFERROR(VLOOKUP(H139,Translation!$A:$C,3,FALSE),H139)","v":"Alberta"}]
[28,"T1 2020","IMMEUBLES COLLECTIFS RÉSIDENTIELS","Colombie-Britannique",35.658108552077557,"Période d’amortissement moyenne selon la province","35.7","Colombie-Britannique",{"$f":"IFERROR(VLOOKUP(A140,Translation!$A:$C,3,FALSE),A140)","v":28},{"$f":"IFERROR(VLOOKUP(B140,Translation!$A:$C,3,FALSE),B140)","v":"T1 2020"},{"$f":"IFERROR(VLOOKUP(C140,Translation!$A:$C,3,FALSE),C140)","v":"IMMEUBLES COLLECTIFS RÉSIDENTIELS"},{"$f":"IFERROR(VLOOKUP(D140,Translation!$A:$C,3,FALSE),D140)","v":"Colombie-Britannique"},{"$f":"IFERROR(VLOOKUP(E140,Translation!$A:$C,3,FALSE),E140)","v":35.658108552077557},{"$f":"IFERROR(VLOOKUP(F140,Translation!$A:$C,3,FALSE),F140)","v":"Période d’amortissement moyenne selon la province"},{"$f":"IFERROR(VLOOKUP(G140,Translation!$A:$C,3,FALSE),G140)","v":"35.7"},{"$f":"IFERROR(VLOOKUP(H140,Translation!$A:$C,3,FALSE),H140)","v":"Colombie-Britannique"}]
[28,"Cumul 2019","IMMEUBLES COLLECTIFS RÉSIDENTIELS","Île-du-Prince-Édouard",24.155721129396344,"Période d’amortissement moyenne selon la province","24.2","Île-du-Prince-Édouard",{"$f":"IFERROR(VLOOKUP(A141,Translation!$A:$C,3,FALSE),A141)","v":28},{"$f":"IFERROR(VLOOKUP(B141,Translation!$A:$C,3,FALSE),B141)","v":"Cumul 2019"},{"$f":"IFERROR(VLOOKUP(C141,Translation!$A:$C,3,FALSE),C141)","v":"IMMEUBLES COLLECTIFS RÉSIDENTIELS"},{"$f":"IFERROR(VLOOKUP(D141,Translation!$A:$C,3,FALSE),D141)","v":"Île-du-Prince-Édouard"},{"$f":"IFERROR(VLOOKUP(E141,Translation!$A:$C,3,FALSE),E141)","v":24.155721129396344},{"$f":"IFERROR(VLOOKUP(F141,Translation!$A:$C,3,FALSE),F141)","v":"Période d’amortissement moyenne selon la province"},{"$f":"IFERROR(VLOOKUP(G141,Translation!$A:$C,3,FALSE),G141)","v":"24.2"},{"$f":"IFERROR(VLOOKUP(H141,Translation!$A:$C,3,FALSE),H141)","v":"Île-du-Prince-Édouard"}]
[28,"Cumul 2019","IMMEUBLES COLLECTIFS RÉSIDENTIELS","Nouvelle-Écosse",34.305943471714187,"Période d’amortissement moyenne selon la province","34.3","Nouvelle-Écosse",{"$f":"IFERROR(VLOOKUP(A142,Translation!$A:$C,3,FALSE),A142)","v":28},{"$f":"IFERROR(VLOOKUP(B142,Translation!$A:$C,3,FALSE),B142)","v":"Cumul 2019"},{"$f":"IFERROR(VLOOKUP(C142,Translation!$A:$C,3,FALSE),C142)","v":"IMMEUBLES COLLECTIFS RÉSIDENTIELS"},{"$f":"IFERROR(VLOOKUP(D142,Translation!$A:$C,3,FALSE),D142)","v":"Nouvelle-Écosse"},{"$f":"IFERROR(VLOOKUP(E142,Translation!$A:$C,3,FALSE),E142)","v":34.305943471714187},{"$f":"IFERROR(VLOOKUP(F142,Translation!$A:$C,3,FALSE),F142)","v":"Période d’amortissement moyenne selon la province"},{"$f":"IFERROR(VLOOKUP(G142,Translation!$A:$C,3,FALSE),G142)","v":"34.3"},{"$f":"IFERROR(VLOOKUP(H142,Translation!$A:$C,3,FALSE),H142)","v":"Nouvelle-Écosse"}]
[28,"Cumul 2019","IMMEUBLES COLLECTIFS RÉSIDENTIELS","Nouveau-Brunswick",28.977408446353312,"Période d’amortissement moyenne selon la province","29.0","Nouveau-Brunswick",{"$f":"IFERROR(VLOOKUP(A143,Translation!$A:$C,3,FALSE),A143)","v":28},{"$f":"IFERROR(VLOOKUP(B143,Translation!$A:$C,3,FALSE),B143)","v":"Cumul 2019"},{"$f":"IFERROR(VLOOKUP(C143,Translation!$A:$C,3,FALSE),C143)","v":"IMMEUBLES COLLECTIFS RÉSIDENTIELS"},{"$f":"IFERROR(VLOOKUP(D143,Translation!$A:$C,3,FALSE),D143)","v":"Nouveau-Brunswick"},{"$f":"IFERROR(VLOOKUP(E143,Translation!$A:$C,3,FALSE),E143)","v":28.977408446353312},{"$f":"IFERROR(VLOOKUP(F143,Translation!$A:$C,3,FALSE),F143)","v":"Période d’amortissement moyenne selon la province"},{"$f":"IFERROR(VLOOKUP(G143,Translation!$A:$C,3,FALSE),G143)","v":"29.0"},{"$f":"IFERROR(VLOOKUP(H143,Translation!$A:$C,3,FALSE),H143)","v":"Nouveau-Brunswick"}]
[28,"Cumul 2019","IMMEUBLES COLLECTIFS RÉSIDENTIELS","Québec",35.13090644414514,"Période d’amortissement moyenne selon la province","35.1","Québec",{"$f":"IFERROR(VLOOKUP(A144,Translation!$A:$C,3,FALSE),A144)","v":28},{"$f":"IFERROR(VLOOKUP(B144,Translation!$A:$C,3,FALSE),B144)","v":"Cumul 2019"},{"$f":"IFERROR(VLOOKUP(C144,Translation!$A:$C,3,FALSE),C144)","v":"IMMEUBLES COLLECTIFS RÉSIDENTIELS"},{"$f":"IFERROR(VLOOKUP(D144,Translation!$A:$C,3,FALSE),D144)","v":"Québec"},{"$f":"IFERROR(VLOOKUP(E144,Translation!$A:$C,3,FALSE),E144)","v":35.13090644414514},{"$f":"IFERROR(VLOOKUP(F144,Translation!$A:$C,3,FALSE),F144)","v":"Période d’amortissement moyenne selon la province"},{"$f":"IFERROR(VLOOKUP(G144,Translation!$A:$C,3,FALSE),G144)","v":"35.1"},{"$f":"IFERROR(VLOOKUP(H144,Translation!$A:$C,3,FALSE),H144)","v":"Québec"}]
[28,"Cumul 2019","IMMEUBLES COLLECTIFS RÉSIDENTIELS","Ontario",32.789778074231094,"Période d’amortissement moyenne selon la province","32.8","Ontario",{"$f":"IFERROR(VLOOKUP(A145,Translation!$A:$C,3,FALSE),A145)","v":28},{"$f":"IFERROR(VLOOKUP(B145,Translation!$A:$C,3,FALSE),B145)","v":"Cumul 2019"},{"$f":"IFERROR(VLOOKUP(C145,Translation!$A:$C,3,FALSE),C145)","v":"IMMEUBLES COLLECTIFS RÉSIDENTIELS"},{"$f":"IFERROR(VLOOKUP(D145,Translation!$A:$C,3,FALSE),D145)","v":"Ontario"},{"$f":"IFERROR(VLOOKUP(E145,Translation!$A:$C,3,FALSE),E145)","v":32.789778074231094},{"$f":"IFERROR(VLOOKUP(F145,Translation!$A:$C,3,FALSE),F145)","v":"Période d’amortissement moyenne selon la province"},{"$f":"IFERROR(VLOOKUP(G145,Translation!$A:$C,3,FALSE),G145)","v":"32.8"},{"$f":"IFERROR(VLOOKUP(H145,Translation!$A:$C,3,FALSE),H145)","v":"Ontario"}]
[28,"Cumul 2019","IMMEUBLES COLLECTIFS RÉSIDENTIELS","Manitoba",32.241431417380475,"Période d’amortissement moyenne selon la province","32.2","Manitoba",{"$f":"IFERROR(VLOOKUP(A146,Translation!$A:$C,3,FALSE),A146)","v":28},{"$f":"IFERROR(VLOOKUP(B146,Translation!$A:$C,3,FALSE),B146)","v":"Cumul 2019"},{"$f":"IFERROR(VLOOKUP(C146,Translation!$A:$C,3,FALSE),C146)","v":"IMMEUBLES COLLECTIFS RÉSIDENTIELS"},{"$f":"IFERROR(VLOOKUP(D146,Translation!$A:$C,3,FALSE),D146)","v":"Manitoba"},{"$f":"IFERROR(VLOOKUP(E146,Translation!$A:$C,3,FALSE),E146)","v":32.241431417380475},{"$f":"IFERROR(VLOOKUP(F146,Translation!$A:$C,3,FALSE),F146)","v":"Période d’amortissement moyenne selon la province"},{"$f":"IFERROR(VLOOKUP(G146,Translation!$A:$C,3,FALSE),G146)","v":"32.2"},{"$f":"IFERROR(VLOOKUP(H146,Translation!$A:$C,3,FALSE),H146)","v":"Manitoba"}]
[28,"Cumul 2019","IMMEUBLES COLLECTIFS RÉSIDENTIELS","Saskatchewan",33.499473510290713,"Période d’amortissement moyenne selon la province","33.5","Saskatchewan",{"$f":"IFERROR(VLOOKUP(A147,Translation!$A:$C,3,FALSE),A147)","v":28},{"$f":"IFERROR(VLOOKUP(B147,Translation!$A:$C,3,FALSE),B147)","v":"Cumul 2019"},{"$f":"IFERROR(VLOOKUP(C147,Translation!$A:$C,3,FALSE),C147)","v":"IMMEUBLES COLLECTIFS RÉSIDENTIELS"},{"$f":"IFERROR(VLOOKUP(D147,Translation!$A:$C,3,FALSE),D147)","v":"Saskatchewan"},{"$f":"IFERROR(VLOOKUP(E147,Translation!$A:$C,3,FALSE),E147)","v":33.499473510290713},{"$f":"IFERROR(VLOOKUP(F147,Translation!$A:$C,3,FALSE),F147)","v":"Période d’amortissement moyenne selon la province"},{"$f":"IFERROR(VLOOKUP(G147,Translation!$A:$C,3,FALSE),G147)","v":"33.5"},{"$f":"IFERROR(VLOOKUP(H147,Translation!$A:$C,3,FALSE),H147)","v":"Saskatchewan"}]
[28,"Cumul 2019","IMMEUBLES COLLECTIFS RÉSIDENTIELS","Alberta",31.708745489753397,"Période d’amortissement moyenne selon la province","31.7","Alberta",{"$f":"IFERROR(VLOOKUP(A148,Translation!$A:$C,3,FALSE),A148)","v":28},{"$f":"IFERROR(VLOOKUP(B148,Translation!$A:$C,3,FALSE),B148)","v":"Cumul 2019"},{"$f":"IFERROR(VLOOKUP(C148,Translation!$A:$C,3,FALSE),C148)","v":"IMMEUBLES COLLECTIFS RÉSIDENTIELS"},{"$f":"IFERROR(VLOOKUP(D148,Translation!$A:$C,3,FALSE),D148)","v":"Alberta"},{"$f":"IFERROR(VLOOKUP(E148,Translation!$A:$C,3,FALSE),E148)","v":31.708745489753397},{"$f":"IFERROR(VLOOKUP(F148,Translation!$A:$C,3,FALSE),F148)","v":"Période d’amortissement moyenne selon la province"},{"$f":"IFERROR(VLOOKUP(G148,Translation!$A:$C,3,FALSE),G148)","v":"31.7"},{"$f":"IFERROR(VLOOKUP(H148,Translation!$A:$C,3,FALSE),H148)","v":"Alberta"}]
[28,"Cumul 2019","IMMEUBLES COLLECTIFS RÉSIDENTIELS","Colombie-Britannique",33.765182199436005,"Période d’amortissement moyenne selon la province","33.8","Colombie-Britannique",{"$f":"IFERROR(VLOOKUP(A149,Translation!$A:$C,3,FALSE),A149)","v":28},{"$f":"IFERROR(VLOOKUP(B149,Translation!$A:$C,3,FALSE),B149)","v":"Cumul 2019"},{"$f":"IFERROR(VLOOKUP(C149,Translation!$A:$C,3,FALSE),C149)","v":"IMMEUBLES COLLECTIFS RÉSIDENTIELS"},{"$f":"IFERROR(VLOOKUP(D149,Translation!$A:$C,3,FALSE),D149)","v":"Colombie-Britannique"},{"$f":"IFERROR(VLOOKUP(E149,Translation!$A:$C,3,FALSE),E149)","v":33.765182199436005},{"$f":"IFERROR(VLOOKUP(F149,Translation!$A:$C,3,FALSE),F149)","v":"Période d’amortissement moyenne selon la province"},{"$f":"IFERROR(VLOOKUP(G149,Translation!$A:$C,3,FALSE),G149)","v":"33.8"},{"$f":"IFERROR(VLOOKUP(H149,Translation!$A:$C,3,FALSE),H149)","v":"Colombie-Britannique"}]
[28,"Cumul 2019","IMMEUBLES COLLECTIFS RÉSIDENTIELS","Territoires",30,"Période d’amortissement moyenne selon la province","30.0","Territoires",{"$f":"IFERROR(VLOOKUP(A150,Translation!$A:$C,3,FALSE),A150)","v":28},{"$f":"IFERROR(VLOOKUP(B150,Translation!$A:$C,3,FALSE),B150)","v":"Cumul 2019"},{"$f":"IFERROR(VLOOKUP(C150,Translation!$A:$C,3,FALSE),C150)","v":"IMMEUBLES COLLECTIFS RÉSIDENTIELS"},{"$f":"IFERROR(VLOOKUP(D150,Translation!$A:$C,3,FALSE),D150)","v":"Territoires"},{"$f":"IFERROR(VLOOKUP(E150,Translation!$A:$C,3,FALSE),E150)","v":30},{"$f":"IFERROR(VLOOKUP(F150,Translation!$A:$C,3,FALSE),F150)","v":"Période d’amortissement moyenne selon la province"},{"$f":"IFERROR(VLOOKUP(G150,Translation!$A:$C,3,FALSE),G150)","v":"30.0"},{"$f":"IFERROR(VLOOKUP(H150,Translation!$A:$C,3,FALSE),H150)","v":"Territoires"}]
[28,"Cumul 2020","IMMEUBLES COLLECTIFS RÉSIDENTIELS","Terre-Neuve-et-Labrador",25,"Période d’amortissement moyenne selon la province","25.0","Terre-Neuve-et-Labrador",{"$f":"IFERROR(VLOOKUP(A151,Translation!$A:$C,3,FALSE),A151)","v":28},{"$f":"IFERROR(VLOOKUP(B151,Translation!$A:$C,3,FALSE),B151)","v":"Cumul 2020"},{"$f":"IFERROR(VLOOKUP(C151,Translation!$A:$C,3,FALSE),C151)","v":"IMMEUBLES COLLECTIFS RÉSIDENTIELS"},{"$f":"IFERROR(VLOOKUP(D151,Translation!$A:$C,3,FALSE),D151)","v":"Terre-Neuve-et-Labrador"},{"$f":"IFERROR(VLOOKUP(E151,Translation!$A:$C,3,FALSE),E151)","v":25},{"$f":"IFERROR(VLOOKUP(F151,Translation!$A:$C,3,FALSE),F151)","v":"Période d’amortissement moyenne selon la province"},{"$f":"IFERROR(VLOOKUP(G151,Translation!$A:$C,3,FALSE),G151)","v":"25.0"},{"$f":"IFERROR(VLOOKUP(H151,Translation!$A:$C,3,FALSE),H151)","v":"Terre-Neuve-et-Labrador"}]
[28,"Cumul 2020","IMMEUBLES COLLECTIFS RÉSIDENTIELS","Île-du-Prince-Édouard",25,"Période d’amortissement moyenne selon la province","25.0","Île-du-Prince-Édouard",{"$f":"IFERROR(VLOOKUP(A152,Translation!$A:$C,3,FALSE),A152)","v":28},{"$f":"IFERROR(VLOOKUP(B152,Translation!$A:$C,3,FALSE),B152)","v":"Cumul 2020"},{"$f":"IFERROR(VLOOKUP(C152,Translation!$A:$C,3,FALSE),C152)","v":"IMMEUBLES COLLECTIFS RÉSIDENTIELS"},{"$f":"IFERROR(VLOOKUP(D152,Translation!$A:$C,3,FALSE),D152)","v":"Île-du-Prince-Édouard"},{"$f":"IFERROR(VLOOKUP(E152,Translation!$A:$C,3,FALSE),E152)","v":25},{"$f":"IFERROR(VLOOKUP(F152,Translation!$A:$C,3,FALSE),F152)","v":"Période d’amortissement moyenne selon la province"},{"$f":"IFERROR(VLOOKUP(G152,Translation!$A:$C,3,FALSE),G152)","v":"25.0"},{"$f":"IFERROR(VLOOKUP(H152,Translation!$A:$C,3,FALSE),H152)","v":"Île-du-Prince-Édouard"}]
[28,"Cumul 2020","IMMEUBLES COLLECTIFS RÉSIDENTIELS","Nouvelle-Écosse",33.094734785101409,"Période d’amortissement moyenne selon la province","33.1","Nouvelle-Écosse",{"$f":"IFERROR(VLOOKUP(A153,Translation!$A:$C,3,FALSE),A153)","v":28},{"$f":"IFERROR(VLOOKUP(B153,Translation!$A:$C,3,FALSE),B153)","v":"Cumul 2020"},{"$f":"IFERROR(VLOOKUP(C153,Translation!$A:$C,3,FALSE),C153)","v":"IMMEUBLES COLLECTIFS RÉSIDENTIELS"},{"$f":"IFERROR(VLOOKUP(D153,Translation!$A:$C,3,FALSE),D153)","v":"Nouvelle-Écosse"},{"$f":"IFERROR(VLOOKUP(E153,Translation!$A:$C,3,FALSE),E153)","v":33.094734785101409},{"$f":"IFERROR(VLOOKUP(F153,Translation!$A:$C,3,FALSE),F153)","v":"Période d’amortissement moyenne selon la province"},{"$f":"IFERROR(VLOOKUP(G153,Translation!$A:$C,3,FALSE),G153)","v":"33.1"},{"$f":"IFERROR(VLOOKUP(H153,Translation!$A:$C,3,FALSE),H153)","v":"Nouvelle-Écosse"}]
[28,"Cumul 2020","IMMEUBLES COLLECTIFS RÉSIDENTIELS","Nouveau-Brunswick",33.244289988545944,"Période d’amortissement moyenne selon la province","33.2","Nouveau-Brunswick",{"$f":"IFERROR(VLOOKUP(A154,Translation!$A:$C,3,FALSE),A154)","v":28},{"$f":"IFERROR(VLOOKUP(B154,Translation!$A:$C,3,FALSE),B154)","v":"Cumul 2020"},{"$f":"IFERROR(VLOOKUP(C154,Translation!$A:$C,3,FALSE),C154)","v":"IMMEUBLES COLLECTIFS RÉSIDENTIELS"},{"$f":"IFERROR(VLOOKUP(D154,Translation!$A:$C,3,FALSE),D154)","v":"Nouveau-Brunswick"},{"$f":"IFERROR(VLOOKUP(E154,Translation!$A:$C,3,FALSE),E154)","v":33.244289988545944},{"$f":"IFERROR(VLOOKUP(F154,Translation!$A:$C,3,FALSE),F154)","v":"Période d’amortissement moyenne selon la province"},{"$f":"IFERROR(VLOOKUP(G154,Translation!$A:$C,3,FALSE),G154)","v":"33.2"},{"$f":"IFERROR(VLOOKUP(H154,Translation!$A:$C,3,FALSE),H154)","v":"Nouveau-Brunswick"}]
[28,"Cumul 2020","IMMEUBLES COLLECTIFS RÉSIDENTIELS","Québec",33.543153212507903,"Période d’amortissement moyenne selon la province","33.5","Québec",{"$f":"IFERROR(VLOOKUP(A155,Translation!$A:$C,3,FALSE),A155)","v":28},{"$f":"IFERROR(VLOOKUP(B155,Translation!$A:$C,3,FALSE),B155)","v":"Cumul 2020"},{"$f":"IFERROR(VLOOKUP(C155,Translation!$A:$C,3,FALSE),C155)","v":"IMMEUBLES COLLECTIFS RÉSIDENTIELS"},{"$f":"IFERROR(VLOOKUP(D155,Translation!$A:$C,3,FALSE),D155)","v":"Québec"},{"$f":"IFERROR(VLOOKUP(E155,Translation!$A:$C,3,FALSE),E155)","v":33.543153212507903},{"$f":"IFERROR(VLOOKUP(F155,Translation!$A:$C,3,FALSE),F155)","v":"Période d’amortissement moyenne selon la province"},{"$f":"IFERROR(VLOOKUP(G155,Translation!$A:$C,3,FALSE),G155)","v":"33.5"},{"$f":"IFERROR(VLOOKUP(H155,Translation!$A:$C,3,FALSE),H155)","v":"Québec"}]
[28,"Cumul 2020","IMMEUBLES COLLECTIFS RÉSIDENTIELS","Ontario",37.61140139293115,"Période d’amortissement moyenne selon la province","37.6","Ontario",{"$f":"IFERROR(VLOOKUP(A156,Translation!$A:$C,3,FALSE),A156)","v":28},{"$f":"IFERROR(VLOOKUP(B156,Translation!$A:$C,3,FALSE),B156)","v":"Cumul 2020"},{"$f":"IFERROR(VLOOKUP(C156,Translation!$A:$C,3,FALSE),C156)","v":"IMMEUBLES COLLECTIFS RÉSIDENTIELS"},{"$f":"IFERROR(VLOOKUP(D156,Translation!$A:$C,3,FALSE),D156)","v":"Ontario"},{"$f":"IFERROR(VLOOKUP(E156,Translation!$A:$C,3,FALSE),E156)","v":37.61140139293115},{"$f":"IFERROR(VLOOKUP(F156,Translation!$A:$C,3,FALSE),F156)","v":"Période d’amortissement moyenne selon la province"},{"$f":"IFERROR(VLOOKUP(G156,Translation!$A:$C,3,FALSE),G156)","v":"37.6"},{"$f":"IFERROR(VLOOKUP(H156,Translation!$A:$C,3,FALSE),H156)","v":"Ontario"}]
[28,"Cumul 2020","IMMEUBLES COLLECTIFS RÉSIDENTIELS","Manitoba",32.851924665267525,"Période d’amortissement moyenne selon la province","32.9","Manitoba",{"$f":"IFERROR(VLOOKUP(A157,Translation!$A:$C,3,FALSE),A157)","v":28},{"$f":"IFERROR(VLOOKUP(B157,Translation!$A:$C,3,FALSE),B157)","v":"Cumul 2020"},{"$f":"IFERROR(VLOOKUP(C157,Translation!$A:$C,3,FALSE),C157)","v":"IMMEUBLES COLLECTIFS RÉSIDENTIELS"},{"$f":"IFERROR(VLOOKUP(D157,Translation!$A:$C,3,FALSE),D157)","v":"Manitoba"},{"$f":"IFERROR(VLOOKUP(E157,Translation!$A:$C,3,FALSE),E157)","v":32.851924665267525},{"$f":"IFERROR(VLOOKUP(F157,Translation!$A:$C,3,FALSE),F157)","v":"Période d’amortissement moyenne selon la province"},{"$f":"IFERROR(VLOOKUP(G157,Translation!$A:$C,3,FALSE),G157)","v":"32.9"},{"$f":"IFERROR(VLOOKUP(H157,Translation!$A:$C,3,FALSE),H157)","v":"Manitoba"}]
[28,"Cumul 2020","IMMEUBLES COLLECTIFS RÉSIDENTIELS","Saskatchewan",36.025620488832999,"Période d’amortissement moyenne selon la province","36.0","Saskatchewan",{"$f":"IFERROR(VLOOKUP(A158,Translation!$A:$C,3,FALSE),A158)","v":28},{"$f":"IFERROR(VLOOKUP(B158,Translation!$A:$C,3,FALSE),B158)","v":"Cumul 2020"},{"$f":"IFERROR(VLOOKUP(C158,Translation!$A:$C,3,FALSE),C158)","v":"IMMEUBLES COLLECTIFS RÉSIDENTIELS"},{"$f":"IFERROR(VLOOKUP(D158,Translation!$A:$C,3,FALSE),D158)","v":"Saskatchewan"},{"$f":"IFERROR(VLOOKUP(E158,Translation!$A:$C,3,FALSE),E158)","v":36.025620488832999},{"$f":"IFERROR(VLOOKUP(F158,Translation!$A:$C,3,FALSE),F158)","v":"Période d’amortissement moyenne selon la province"},{"$f":"IFERROR(VLOOKUP(G158,Translation!$A:$C,3,FALSE),G158)","v":"36.0"},{"$f":"IFERROR(VLOOKUP(H158,Translation!$A:$C,3,FALSE),H158)","v":"Saskatchewan"}]
[28,"Cumul 2020","IMMEUBLES COLLECTIFS RÉSIDENTIELS","Alberta",35.573134140686406,"Période d’amortissement moyenne selon la province","35.6","Alberta",{"$f":"IFERROR(VLOOKUP(A159,Translation!$A:$C,3,FALSE),A159)","v":28},{"$f":"IFERROR(VLOOKUP(B159,Translation!$A:$C,3,FALSE),B159)","v":"Cumul 2020"},{"$f":"IFERROR(VLOOKUP(C159,Translation!$A:$C,3,FALSE),C159)","v":"IMMEUBLES COLLECTIFS RÉSIDENTIELS"},{"$f":"IFERROR(VLOOKUP(D159,Translation!$A:$C,3,FALSE),D159)","v":"Alberta"},{"$f":"IFERROR(VLOOKUP(E159,Translation!$A:$C,3,FALSE),E159)","v":35.573134140686406},{"$f":"IFERROR(VLOOKUP(F159,Translation!$A:$C,3,FALSE),F159)","v":"Période d’amortissement moyenne selon la province"},{"$f":"IFERROR(VLOOKUP(G159,Translation!$A:$C,3,FALSE),G159)","v":"35.6"},{"$f":"IFERROR(VLOOKUP(H159,Translation!$A:$C,3,FALSE),H159)","v":"Alberta"}]
[28,"Cumul 2020","IMMEUBLES COLLECTIFS RÉSIDENTIELS","Colombie-Britannique",35.658108552077557,"Période d’amortissement moyenne selon la province","35.7","Colombie-Britannique",{"$f":"IFERROR(VLOOKUP(A160,Translation!$A:$C,3,FALSE),A160)","v":28},{"$f":"IFERROR(VLOOKUP(B160,Translation!$A:$C,3,FALSE),B160)","v":"Cumul 2020"},{"$f":"IFERROR(VLOOKUP(C160,Translation!$A:$C,3,FALSE),C160)","v":"IMMEUBLES COLLECTIFS RÉSIDENTIELS"},{"$f":"IFERROR(VLOOKUP(D160,Translation!$A:$C,3,FALSE),D160)","v":"Colombie-Britannique"},{"$f":"IFERROR(VLOOKUP(E160,Translation!$A:$C,3,FALSE),E160)","v":35.658108552077557},{"$f":"IFERROR(VLOOKUP(F160,Translation!$A:$C,3,FALSE),F160)","v":"Période d’amortissement moyenne selon la province"},{"$f":"IFERROR(VLOOKUP(G160,Translation!$A:$C,3,FALSE),G160)","v":"35.7"},{"$f":"IFERROR(VLOOKUP(H160,Translation!$A:$C,3,FALSE),H160)","v":"Colombie-Britannique"}]
[10,"T4 2019","PROPRIÉTAIRES-OCCUPANTS, À L’UNITÉ","<= 5",3.7641510072579888E-3,"Prêts hypothécaires assurés au cours de la période selon la période d’amortissement (en années) à l'initiation (%)","0.0"," <= 5",{"$f":"IFERROR(VLOOKUP(A161,Translation!$A:$C,3,FALSE),A161)","v":10},{"$f":"IFERROR(VLOOKUP(B161,Translation!$A:$C,3,FALSE),B161)","v":"T4 2019"},{"$f":"IFERROR(VLOOKUP(C161,Translation!$A:$C,3,FALSE),C161)","v":"PROPRIÉTAIRES-OCCUPANTS, À L’UNITÉ"},{"$f":"IFERROR(VLOOKUP(D161,Translation!$A:$C,3,FALSE),D161)","v":"<= 5"},{"$f":"IFERROR(VLOOKUP(E161,Translation!$A:$C,3,FALSE),E161)","v":3.7641510072579888E-3},{"$f":"IFERROR(VLOOKUP(F161,Translation!$A:$C,3,FALSE),F161)","v":"Prêts hypothécaires assurés au cours de la période selon la période d’amortissement (en années) à l'initiation (%)"},{"$f":"IFERROR(VLOOKUP(G161,Translation!$A:$C,3,FALSE),G161)","v":"0.0"},{"$f":"IFERROR(VLOOKUP(H161,Translation!$A:$C,3,FALSE),H161)","v":" <= 5"}]
[10,"Cumul 2018","PROPRIÉTAIRES-OCCUPANTS, À L’UNITÉ","<= 5",1.0734758392080898E-2,"Prêts hypothécaires assurés au cours de la période selon la période d’amortissement (en années) à l'initiation (%)","0.0"," <= 5",{"$f":"IFERROR(VLOOKUP(A162,Translation!$A:$C,3,FALSE),A162)","v":10},{"$f":"IFERROR(VLOOKUP(B162,Translation!$A:$C,3,FALSE),B162)","v":"Cumul 2018"},{"$f":"IFERROR(VLOOKUP(C162,Translation!$A:$C,3,FALSE),C162)","v":"PROPRIÉTAIRES-OCCUPANTS, À L’UNITÉ"},{"$f":"IFERROR(VLOOKUP(D162,Translation!$A:$C,3,FALSE),D162)","v":"<= 5"},{"$f":"IFERROR(VLOOKUP(E162,Translation!$A:$C,3,FALSE),E162)","v":1.0734758392080898E-2},{"$f":"IFERROR(VLOOKUP(F162,Translation!$A:$C,3,FALSE),F162)","v":"Prêts hypothécaires assurés au cours de la période selon la période d’amortissement (en années) à l'initiation (%)"},{"$f":"IFERROR(VLOOKUP(G162,Translation!$A:$C,3,FALSE),G162)","v":"0.0"},{"$f":"IFERROR(VLOOKUP(H162,Translation!$A:$C,3,FALSE),H162)","v":" <= 5"}]
[10,"T4 2019","PROPRIÉTAIRES-OCCUPANTS, À L’UNITÉ","> 5 <= 10",5.2423630854769442E-2,"Prêts hypothécaires assurés au cours de la période selon la période d’amortissement (en années) à l'initiation (%)","0.1"," > 5 <= 10",{"$f":"IFERROR(VLOOKUP(A163,Translation!$A:$C,3,FALSE),A163)","v":10},{"$f":"IFERROR(VLOOKUP(B163,Translation!$A:$C,3,FALSE),B163)","v":"T4 2019"},{"$f":"IFERROR(VLOOKUP(C163,Translation!$A:$C,3,FALSE),C163)","v":"PROPRIÉTAIRES-OCCUPANTS, À L’UNITÉ"},{"$f":"IFERROR(VLOOKUP(D163,Translation!$A:$C,3,FALSE),D163)","v":"> 5 <= 10"},{"$f":"IFERROR(VLOOKUP(E163,Translation!$A:$C,3,FALSE),E163)","v":5.2423630854769442E-2},{"$f":"IFERROR(VLOOKUP(F163,Translation!$A:$C,3,FALSE),F163)","v":"Prêts hypothécaires assurés au cours de la période selon la période d’amortissement (en années) à l'initiation (%)"},{"$f":"IFERROR(VLOOKUP(G163,Translation!$A:$C,3,FALSE),G163)","v":"0.1"},{"$f":"IFERROR(VLOOKUP(H163,Translation!$A:$C,3,FALSE),H163)","v":" > 5 <= 10"}]
[10,"Cumul 2018","PROPRIÉTAIRES-OCCUPANTS, À L’UNITÉ","> 5 <= 10",5.2288175751115155E-2,"Prêts hypothécaires assurés au cours de la période selon la période d’amortissement (en années) à l'initiation (%)","0.1"," > 5 <= 10",{"$f":"IFERROR(VLOOKUP(A164,Translation!$A:$C,3,FALSE),A164)","v":10},{"$f":"IFERROR(VLOOKUP(B164,Translation!$A:$C,3,FALSE),B164)","v":"Cumul 2018"},{"$f":"IFERROR(VLOOKUP(C164,Translation!$A:$C,3,FALSE),C164)","v":"PROPRIÉTAIRES-OCCUPANTS, À L’UNITÉ"},{"$f":"IFERROR(VLOOKUP(D164,Translation!$A:$C,3,FALSE),D164)","v":"> 5 <= 10"},{"$f":"IFERROR(VLOOKUP(E164,Translation!$A:$C,3,FALSE),E164)","v":5.2288175751115155E-2},{"$f":"IFERROR(VLOOKUP(F164,Translation!$A:$C,3,FALSE),F164)","v":"Prêts hypothécaires assurés au cours de la période selon la période d’amortissement (en années) à l'initiation (%)"},{"$f":"IFERROR(VLOOKUP(G164,Translation!$A:$C,3,FALSE),G164)","v":"0.1"},{"$f":"IFERROR(VLOOKUP(H164,Translation!$A:$C,3,FALSE),H164)","v":" > 5 <= 10"}]
[10,"T4 2019","PROPRIÉTAIRES-OCCUPANTS, À L’UNITÉ","> 10 <= 15",0.13155314409171112,"Prêts hypothécaires assurés au cours de la période selon la période d’amortissement (en années) à l'initiation (%)","0.1"," > 10 <= 15",{"$f":"IFERROR(VLOOKUP(A165,Translation!$A:$C,3,FALSE),A165)","v":10},{"$f":"IFERROR(VLOOKUP(B165,Translation!$A:$C,3,FALSE),B165)","v":"T4 2019"},{"$f":"IFERROR(VLOOKUP(C165,Translation!$A:$C,3,FALSE),C165)","v":"PROPRIÉTAIRES-OCCUPANTS, À L’UNITÉ"},{"$f":"IFERROR(VLOOKUP(D165,Translation!$A:$C,3,FALSE),D165)","v":"> 10 <= 15"},{"$f":"IFERROR(VLOOKUP(E165,Translation!$A:$C,3,FALSE),E165)","v":0.13155314409171112},{"$f":"IFERROR(VLOOKUP(F165,Translation!$A:$C,3,FALSE),F165)","v":"Prêts hypothécaires assurés au cours de la période selon la période d’amortissement (en années) à l'initiation (%)"},{"$f":"IFERROR(VLOOKUP(G165,Translation!$A:$C,3,FALSE),G165)","v":"0.1"},{"$f":"IFERROR(VLOOKUP(H165,Translation!$A:$C,3,FALSE),H165)","v":" > 10 <= 15"}]
[10,"Cumul 2018","PROPRIÉTAIRES-OCCUPANTS, À L’UNITÉ","> 10 <= 15",0.1920962657306812,"Prêts hypothécaires assurés au cours de la période selon la période d’amortissement (en années) à l'initiation (%)","0.2"," > 10 <= 15",{"$f":"IFERROR(VLOOKUP(A166,Translation!$A:$C,3,FALSE),A166)","v":10},{"$f":"IFERROR(VLOOKUP(B166,Translation!$A:$C,3,FALSE),B166)","v":"Cumul 2018"},{"$f":"IFERROR(VLOOKUP(C166,Translation!$A:$C,3,FALSE),C166)","v":"PROPRIÉTAIRES-OCCUPANTS, À L’UNITÉ"},{"$f":"IFERROR(VLOOKUP(D166,Translation!$A:$C,3,FALSE),D166)","v":"> 10 <= 15"},{"$f":"IFERROR(VLOOKUP(E166,Translation!$A:$C,3,FALSE),E166)","v":0.1920962657306812},{"$f":"IFERROR(VLOOKUP(F166,Translation!$A:$C,3,FALSE),F166)","v":"Prêts hypothécaires assurés au cours de la période selon la période d’amortissement (en années) à l'initiation (%)"},{"$f":"IFERROR(VLOOKUP(G166,Translation!$A:$C,3,FALSE),G166)","v":"0.2"},{"$f":"IFERROR(VLOOKUP(H166,Translation!$A:$C,3,FALSE),H166)","v":" > 10 <= 15"}]
[10,"T4 2019","PROPRIÉTAIRES-OCCUPANTS, À L’UNITÉ","> 15 <= 20",0.7036069022132696,"Prêts hypothécaires assurés au cours de la période selon la période d’amortissement (en années) à l'initiation (%)","0.7"," > 15 <= 20",{"$f":"IFERROR(VLOOKUP(A167,Translation!$A:$C,3,FALSE),A167)","v":10},{"$f":"IFERROR(VLOOKUP(B167,Translation!$A:$C,3,FALSE),B167)","v":"T4 2019"},{"$f":"IFERROR(VLOOKUP(C167,Translation!$A:$C,3,FALSE),C167)","v":"PROPRIÉTAIRES-OCCUPANTS, À L’UNITÉ"},{"$f":"IFERROR(VLOOKUP(D167,Translation!$A:$C,3,FALSE),D167)","v":"> 15 <= 20"},{"$f":"IFERROR(VLOOKUP(E167,Translation!$A:$C,3,FALSE),E167)","v":0.7036069022132696},{"$f":"IFERROR(VLOOKUP(F167,Translation!$A:$C,3,FALSE),F167)","v":"Prêts hypothécaires assurés au cours de la période selon la période d’amortissement (en années) à l'initiation (%)"},{"$f":"IFERROR(VLOOKUP(G167,Translation!$A:$C,3,FALSE),G167)","v":"0.7"},{"$f":"IFERROR(VLOOKUP(H167,Translation!$A:$C,3,FALSE),H167)","v":" > 15 <= 20"}]
[10,"Cumul 2018","PROPRIÉTAIRES-OCCUPANTS, À L’UNITÉ","> 15 <= 20",0.73060166548571104,"Prêts hypothécaires assurés au cours de la période selon la période d’amortissement (en années) à l'initiation (%)","0.7"," > 15 <= 20",{"$f":"IFERROR(VLOOKUP(A168,Translation!$A:$C,3,FALSE),A168)","v":10},{"$f":"IFERROR(VLOOKUP(B168,Translation!$A:$C,3,FALSE),B168)","v":"Cumul 2018"},{"$f":"IFERROR(VLOOKUP(C168,Translation!$A:$C,3,FALSE),C168)","v":"PROPRIÉTAIRES-OCCUPANTS, À L’UNITÉ"},{"$f":"IFERROR(VLOOKUP(D168,Translation!$A:$C,3,FALSE),D168)","v":"> 15 <= 20"},{"$f":"IFERROR(VLOOKUP(E168,Translation!$A:$C,3,FALSE),E168)","v":0.73060166548571104},{"$f":"IFERROR(VLOOKUP(F168,Translation!$A:$C,3,FALSE),F168)","v":"Prêts hypothécaires assurés au cours de la période selon la période d’amortissement (en années) à l'initiation (%)"},{"$f":"IFERROR(VLOOKUP(G168,Translation!$A:$C,3,FALSE),G168)","v":"0.7"},{"$f":"IFERROR(VLOOKUP(H168,Translation!$A:$C,3,FALSE),H168)","v":" > 15 <= 20"}]
[10,"T4 2019","PROPRIÉTAIRES-OCCUPANTS, À L’UNITÉ","> 20 <= 25",99.108652171832972,"Prêts hypothécaires assurés au cours de la période selon la période d’amortissement (en années) à l'initiation (%)","99.1"," > 20 <= 25",{"$f":"IFERROR(VLOOKUP(A169,Translation!$A:$C,3,FALSE),A169)","v":10},{"$f":"IFERROR(VLOOKUP(B169,Translation!$A:$C,3,FALSE),B169)","v":"T4 2019"},{"$f":"IFERROR(VLOOKUP(C169,Translation!$A:$C,3,FALSE),C169)","v":"PROPRIÉTAIRES-OCCUPANTS, À L’UNITÉ"},{"$f":"IFERROR(VLOOKUP(D169,Translation!$A:$C,3,FALSE),D169)","v":"> 20 <= 25"},{"$f":"IFERROR(VLOOKUP(E169,Translation!$A:$C,3,FALSE),E169)","v":99.108652171832972},{"$f":"IFERROR(VLOOKUP(F169,Translation!$A:$C,3,FALSE),F169)","v":"Prêts hypothécaires assurés au cours de la période selon la période d’amortissement (en années) à l'initiation (%)"},{"$f":"IFERROR(VLOOKUP(G169,Translation!$A:$C,3,FALSE),G169)","v":"99.1"},{"$f":"IFERROR(VLOOKUP(H169,Translation!$A:$C,3,FALSE),H169)","v":" > 20 <= 25"}]
[10,"Cumul 2018","PROPRIÉTAIRES-OCCUPANTS, À L’UNITÉ","> 20 <= 25",98.940732593573117,"Prêts hypothécaires assurés au cours de la période selon la période d’amortissement (en années) à l'initiation (%)","98.9"," > 20 <= 25",{"$f":"IFERROR(VLOOKUP(A170,Translation!$A:$C,3,FALSE),A170)","v":10},{"$f":"IFERROR(VLOOKUP(B170,Translation!$A:$C,3,FALSE),B170)","v":"Cumul 2018"},{"$f":"IFERROR(VLOOKUP(C170,Translation!$A:$C,3,FALSE),C170)","v":"PROPRIÉTAIRES-OCCUPANTS, À L’UNITÉ"},{"$f":"IFERROR(VLOOKUP(D170,Translation!$A:$C,3,FALSE),D170)","v":"> 20 <= 25"},{"$f":"IFERROR(VLOOKUP(E170,Translation!$A:$C,3,FALSE),E170)","v":98.940732593573117},{"$f":"IFERROR(VLOOKUP(F170,Translation!$A:$C,3,FALSE),F170)","v":"Prêts hypothécaires assurés au cours de la période selon la période d’amortissement (en années) à l'initiation (%)"},{"$f":"IFERROR(VLOOKUP(G170,Translation!$A:$C,3,FALSE),G170)","v":"98.9"},{"$f":"IFERROR(VLOOKUP(H170,Translation!$A:$C,3,FALSE),H170)","v":" > 20 <= 25"}]
[10,"Cumul 2018","PROPRIÉTAIRES-OCCUPANTS, À L’UNITÉ","> 25 <= 30",7.3546541067291499E-2,"Prêts hypothécaires assurés au cours de la période selon la période d’amortissement (en années) à l'initiation (%)","0.1"," > 25 <= 30",{"$f":"IFERROR(VLOOKUP(A171,Translation!$A:$C,3,FALSE),A171)","v":10},{"$f":"IFERROR(VLOOKUP(B171,Translation!$A:$C,3,FALSE),B171)","v":"Cumul 2018"},{"$f":"IFERROR(VLOOKUP(C171,Translation!$A:$C,3,FALSE),C171)","v":"PROPRIÉTAIRES-OCCUPANTS, À L’UNITÉ"},{"$f":"IFERROR(VLOOKUP(D171,Translation!$A:$C,3,FALSE),D171)","v":"> 25 <= 30"},{"$f":"IFERROR(VLOOKUP(E171,Translation!$A:$C,3,FALSE),E171)","v":7.3546541067291499E-2},{"$f":"IFERROR(VLOOKUP(F171,Translation!$A:$C,3,FALSE),F171)","v":"Prêts hypothécaires assurés au cours de la période selon la période d’amortissement (en années) à l'initiation (%)"},{"$f":"IFERROR(VLOOKUP(G171,Translation!$A:$C,3,FALSE),G171)","v":"0.1"},{"$f":"IFERROR(VLOOKUP(H171,Translation!$A:$C,3,FALSE),H171)","v":" > 25 <= 30"}]
[10,"T4 2019","PROPRIÉTAIRES-OCCUPANTS, À L’UNITÉ","Période d’amortissement moyenne",24.885885049715256,"Prêts hypothécaires assurés au cours de la période selon la période d’amortissement (en années) à l'initiation (%)","24.9","Période d’amortissement moyenne",{"$f":"IFERROR(VLOOKUP(A172,Translation!$A:$C,3,FALSE),A172)","v":10},{"$f":"IFERROR(VLOOKUP(B172,Translation!$A:$C,3,FALSE),B172)","v":"T4 2019"},{"$f":"IFERROR(VLOOKUP(C172,Translation!$A:$C,3,FALSE),C172)","v":"PROPRIÉTAIRES-OCCUPANTS, À L’UNITÉ"},{"$f":"IFERROR(VLOOKUP(D172,Translation!$A:$C,3,FALSE),D172)","v":"Période d’amortissement moyenne"},{"$f":"IFERROR(VLOOKUP(E172,Translation!$A:$C,3,FALSE),E172)","v":24.885885049715256},{"$f":"IFERROR(VLOOKUP(F172,Translation!$A:$C,3,FALSE),F172)","v":"Prêts hypothécaires assurés au cours de la période selon la période d’amortissement (en années) à l'initiation (%)"},{"$f":"IFERROR(VLOOKUP(G172,Translation!$A:$C,3,FALSE),G172)","v":"24.9"},{"$f":"IFERROR(VLOOKUP(H172,Translation!$A:$C,3,FALSE),H172)","v":"Période d’amortissement moyenne"}]
[10,"Cumul 2018","PROPRIÉTAIRES-OCCUPANTS, À L’UNITÉ","Période d’amortissement moyenne",24.86275110773342,"Prêts hypothécaires assurés au cours de la période selon la période d’amortissement (en années) à l'initiation (%)","24.9","Période d’amortissement moyenne",{"$f":"IFERROR(VLOOKUP(A173,Translation!$A:$C,3,FALSE),A173)","v":10},{"$f":"IFERROR(VLOOKUP(B173,Translation!$A:$C,3,FALSE),B173)","v":"Cumul 2018"},{"$f":"IFERROR(VLOOKUP(C173,Translation!$A:$C,3,FALSE),C173)","v":"PROPRIÉTAIRES-OCCUPANTS, À L’UNITÉ"},{"$f":"IFERROR(VLOOKUP(D173,Translation!$A:$C,3,FALSE),D173)","v":"Période d’amortissement moyenne"},{"$f":"IFERROR(VLOOKUP(E173,Translation!$A:$C,3,FALSE),E173)","v":24.86275110773342},{"$f":"IFERROR(VLOOKUP(F173,Translation!$A:$C,3,FALSE),F173)","v":"Prêts hypothécaires assurés au cours de la période selon la période d’amortissement (en années) à l'initiation (%)"},{"$f":"IFERROR(VLOOKUP(G173,Translation!$A:$C,3,FALSE),G173)","v":"24.9"},{"$f":"IFERROR(VLOOKUP(H173,Translation!$A:$C,3,FALSE),H173)","v":"Période d’amortissement moyenne"}]
[10,"T4 2019","PROPRIÉTAIRES-OCCUPANTS, À L’UNITÉ","Terre-Neuve-et-Labrador",24.736327546089314,"Période d’amortissement moyenne selon la province","24.7","Terre-Neuve-et-Labrador",{"$f":"IFERROR(VLOOKUP(A174,Translation!$A:$C,3,FALSE),A174)","v":10},{"$f":"IFERROR(VLOOKUP(B174,Translation!$A:$C,3,FALSE),B174)","v":"T4 2019"},{"$f":"IFERROR(VLOOKUP(C174,Translation!$A:$C,3,FALSE),C174)","v":"PROPRIÉTAIRES-OCCUPANTS, À L’UNITÉ"},{"$f":"IFERROR(VLOOKUP(D174,Translation!$A:$C,3,FALSE),D174)","v":"Terre-Neuve-et-Labrador"},{"$f":"IFERROR(VLOOKUP(E174,Translation!$A:$C,3,FALSE),E174)","v":24.736327546089314},{"$f":"IFERROR(VLOOKUP(F174,Translation!$A:$C,3,FALSE),F174)","v":"Période d’amortissement moyenne selon la province"},{"$f":"IFERROR(VLOOKUP(G174,Translation!$A:$C,3,FALSE),G174)","v":"24.7"},{"$f":"IFERROR(VLOOKUP(H174,Translation!$A:$C,3,FALSE),H174)","v":"Terre-Neuve-et-Labrador"}]
[10,"T4 2019","PROPRIÉTAIRES-OCCUPANTS, À L’UNITÉ","Île-du-Prince-Édouard",24.840138437319201,"Période d’amortissement moyenne selon la province","24.8","Île-du-Prince-Édouard",{"$f":"IFERROR(VLOOKUP(A175,Translation!$A:$C,3,FALSE),A175)","v":10},{"$f":"IFERROR(VLOOKUP(B175,Translation!$A:$C,3,FALSE),B175)","v":"T4 2019"},{"$f":"IFERROR(VLOOKUP(C175,Translation!$A:$C,3,FALSE),C175)","v":"PROPRIÉTAIRES-OCCUPANTS, À L’UNITÉ"},{"$f":"IFERROR(VLOOKUP(D175,Translation!$A:$C,3,FALSE),D175)","v":"Île-du-Prince-Édouard"},{"$f":"IFERROR(VLOOKUP(E175,Translation!$A:$C,3,FALSE),E175)","v":24.840138437319201},{"$f":"IFERROR(VLOOKUP(F175,Translation!$A:$C,3,FALSE),F175)","v":"Période d’amortissement moyenne selon la province"},{"$f":"IFERROR(VLOOKUP(G175,Translation!$A:$C,3,FALSE),G175)","v":"24.8"},{"$f":"IFERROR(VLOOKUP(H175,Translation!$A:$C,3,FALSE),H175)","v":"Île-du-Prince-Édouard"}]
[10,"T4 2019","PROPRIÉTAIRES-OCCUPANTS, À L’UNITÉ","Nouvelle-Écosse",24.81570530280711,"Période d’amortissement moyenne selon la province","24.8","Nouvelle-Écosse",{"$f":"IFERROR(VLOOKUP(A176,Translation!$A:$C,3,FALSE),A176)","v":10},{"$f":"IFERROR(VLOOKUP(B176,Translation!$A:$C,3,FALSE),B176)","v":"T4 2019"},{"$f":"IFERROR(VLOOKUP(C176,Translation!$A:$C,3,FALSE),C176)","v":"PROPRIÉTAIRES-OCCUPANTS, À L’UNITÉ"},{"$f":"IFERROR(VLOOKUP(D176,Translation!$A:$C,3,FALSE),D176)","v":"Nouvelle-Écosse"},{"$f":"IFERROR(VLOOKUP(E176,Translation!$A:$C,3,FALSE),E176)","v":24.81570530280711},{"$f":"IFERROR(VLOOKUP(F176,Translation!$A:$C,3,FALSE),F176)","v":"Période d’amortissement moyenne selon la province"},{"$f":"IFERROR(VLOOKUP(G176,Translation!$A:$C,3,FALSE),G176)","v":"24.8"},{"$f":"IFERROR(VLOOKUP(H176,Translation!$A:$C,3,FALSE),H176)","v":"Nouvelle-Écosse"}]
[10,"T4 2019","PROPRIÉTAIRES-OCCUPANTS, À L’UNITÉ","Nouveau-Brunswick",24.835436615083101,"Période d’amortissement moyenne selon la province","24.8","Nouveau-Brunswick",{"$f":"IFERROR(VLOOKUP(A177,Translation!$A:$C,3,FALSE),A177)","v":10},{"$f":"IFERROR(VLOOKUP(B177,Translation!$A:$C,3,FALSE),B177)","v":"T4 2019"},{"$f":"IFERROR(VLOOKUP(C177,Translation!$A:$C,3,FALSE),C177)","v":"PROPRIÉTAIRES-OCCUPANTS, À L’UNITÉ"},{"$f":"IFERROR(VLOOKUP(D177,Translation!$A:$C,3,FALSE),D177)","v":"Nouveau-Brunswick"},{"$f":"IFERROR(VLOOKUP(E177,Translation!$A:$C,3,FALSE),E177)","v":24.835436615083101},{"$f":"IFERROR(VLOOKUP(F177,Translation!$A:$C,3,FALSE),F177)","v":"Période d’amortissement moyenne selon la province"},{"$f":"IFERROR(VLOOKUP(G177,Translation!$A:$C,3,FALSE),G177)","v":"24.8"},{"$f":"IFERROR(VLOOKUP(H177,Translation!$A:$C,3,FALSE),H177)","v":"Nouveau-Brunswick"}]
[10,"T4 2019","PROPRIÉTAIRES-OCCUPANTS, À L’UNITÉ","Québec",24.89041719139064,"Période d’amortissement moyenne selon la province","24.9","Québec",{"$f":"IFERROR(VLOOKUP(A178,Translation!$A:$C,3,FALSE),A178)","v":10},{"$f":"IFERROR(VLOOKUP(B178,Translation!$A:$C,3,FALSE),B178)","v":"T4 2019"},{"$f":"IFERROR(VLOOKUP(C178,Translation!$A:$C,3,FALSE),C178)","v":"PROPRIÉTAIRES-OCCUPANTS, À L’UNITÉ"},{"$f":"IFERROR(VLOOKUP(D178,Translation!$A:$C,3,FALSE),D178)","v":"Québec"},{"$f":"IFERROR(VLOOKUP(E178,Translation!$A:$C,3,FALSE),E178)","v":24.89041719139064},{"$f":"IFERROR(VLOOKUP(F178,Translation!$A:$C,3,FALSE),F178)","v":"Période d’amortissement moyenne selon la province"},{"$f":"IFERROR(VLOOKUP(G178,Translation!$A:$C,3,FALSE),G178)","v":"24.9"},{"$f":"IFERROR(VLOOKUP(H178,Translation!$A:$C,3,FALSE),H178)","v":"Québec"}]
[10,"T4 2019","PROPRIÉTAIRES-OCCUPANTS, À L’UNITÉ","Ontario",24.946157496911638,"Période d’amortissement moyenne selon la province","24.9","Ontario",{"$f":"IFERROR(VLOOKUP(A179,Translation!$A:$C,3,FALSE),A179)","v":10},{"$f":"IFERROR(VLOOKUP(B179,Translation!$A:$C,3,FALSE),B179)","v":"T4 2019"},{"$f":"IFERROR(VLOOKUP(C179,Translation!$A:$C,3,FALSE),C179)","v":"PROPRIÉTAIRES-OCCUPANTS, À L’UNITÉ"},{"$f":"IFERROR(VLOOKUP(D179,Translation!$A:$C,3,FALSE),D179)","v":"Ontario"},{"$f":"IFERROR(VLOOKUP(E179,Translation!$A:$C,3,FALSE),E179)","v":24.946157496911638},{"$f":"IFERROR(VLOOKUP(F179,Translation!$A:$C,3,FALSE),F179)","v":"Période d’amortissement moyenne selon la province"},{"$f":"IFERROR(VLOOKUP(G179,Translation!$A:$C,3,FALSE),G179)","v":"24.9"},{"$f":"IFERROR(VLOOKUP(H179,Translation!$A:$C,3,FALSE),H179)","v":"Ontario"}]
[10,"T4 2019","PROPRIÉTAIRES-OCCUPANTS, À L’UNITÉ","Manitoba",24.845022256244874,"Période d’amortissement moyenne selon la province","24.8","Manitoba",{"$f":"IFERROR(VLOOKUP(A180,Translation!$A:$C,3,FALSE),A180)","v":10},{"$f":"IFERROR(VLOOKUP(B180,Translation!$A:$C,3,FALSE),B180)","v":"T4 2019"},{"$f":"IFERROR(VLOOKUP(C180,Translation!$A:$C,3,FALSE),C180)","v":"PROPRIÉTAIRES-OCCUPANTS, À L’UNITÉ"},{"$f":"IFERROR(VLOOKUP(D180,Translation!$A:$C,3,FALSE),D180)","v":"Manitoba"},{"$f":"IFERROR(VLOOKUP(E180,Translation!$A:$C,3,FALSE),E180)","v":24.845022256244874},{"$f":"IFERROR(VLOOKUP(F180,Translation!$A:$C,3,FALSE),F180)","v":"Période d’amortissement moyenne selon la province"},{"$f":"IFERROR(VLOOKUP(G180,Translation!$A:$C,3,FALSE),G180)","v":"24.8"},{"$f":"IFERROR(VLOOKUP(H180,Translation!$A:$C,3,FALSE),H180)","v":"Manitoba"}]
[10,"T4 2019","PROPRIÉTAIRES-OCCUPANTS, À L’UNITÉ","Saskatchewan",24.755302826378482,"Période d’amortissement moyenne selon la province","24.8","Saskatchewan",{"$f":"IFERROR(VLOOKUP(A181,Translation!$A:$C,3,FALSE),A181)","v":10},{"$f":"IFERROR(VLOOKUP(B181,Translation!$A:$C,3,FALSE),B181)","v":"T4 2019"},{"$f":"IFERROR(VLOOKUP(C181,Translation!$A:$C,3,FALSE),C181)","v":"PROPRIÉTAIRES-OCCUPANTS, À L’UNITÉ"},{"$f":"IFERROR(VLOOKUP(D181,Translation!$A:$C,3,FALSE),D181)","v":"Saskatchewan"},{"$f":"IFERROR(VLOOKUP(E181,Translation!$A:$C,3,FALSE),E181)","v":24.755302826378482},{"$f":"IFERROR(VLOOKUP(F181,Translation!$A:$C,3,FALSE),F181)","v":"Période d’amortissement moyenne selon la province"},{"$f":"IFERROR(VLOOKUP(G181,Translation!$A:$C,3,FALSE),G181)","v":"24.8"},{"$f":"IFERROR(VLOOKUP(H181,Translation!$A:$C,3,FALSE),H181)","v":"Saskatchewan"}]
[10,"T4 2019","PROPRIÉTAIRES-OCCUPANTS, À L’UNITÉ","Alberta",24.825154074003031,"Période d’amortissement moyenne selon la province","24.8","Alberta",{"$f":"IFERROR(VLOOKUP(A182,Translation!$A:$C,3,FALSE),A182)","v":10},{"$f":"IFERROR(VLOOKUP(B182,Translation!$A:$C,3,FALSE),B182)","v":"T4 2019"},{"$f":"IFERROR(VLOOKUP(C182,Translation!$A:$C,3,FALSE),C182)","v":"PROPRIÉTAIRES-OCCUPANTS, À L’UNITÉ"},{"$f":"IFERROR(VLOOKUP(D182,Translation!$A:$C,3,FALSE),D182)","v":"Alberta"},{"$f":"IFERROR(VLOOKUP(E182,Translation!$A:$C,3,FALSE),E182)","v":24.825154074003031},{"$f":"IFERROR(VLOOKUP(F182,Translation!$A:$C,3,FALSE),F182)","v":"Période d’amortissement moyenne selon la province"},{"$f":"IFERROR(VLOOKUP(G182,Translation!$A:$C,3,FALSE),G182)","v":"24.8"},{"$f":"IFERROR(VLOOKUP(H182,Translation!$A:$C,3,FALSE),H182)","v":"Alberta"}]
[10,"T4 2019","PROPRIÉTAIRES-OCCUPANTS, À L’UNITÉ","Colombie-Britannique",24.86732546027206,"Période d’amortissement moyenne selon la province","24.9","Colombie-Britannique",{"$f":"IFERROR(VLOOKUP(A183,Translation!$A:$C,3,FALSE),A183)","v":10},{"$f":"IFERROR(VLOOKUP(B183,Translation!$A:$C,3,FALSE),B183)","v":"T4 2019"},{"$f":"IFERROR(VLOOKUP(C183,Translation!$A:$C,3,FALSE),C183)","v":"PROPRIÉTAIRES-OCCUPANTS, À L’UNITÉ"},{"$f":"IFERROR(VLOOKUP(D183,Translation!$A:$C,3,FALSE),D183)","v":"Colombie-Britannique"},{"$f":"IFERROR(VLOOKUP(E183,Translation!$A:$C,3,FALSE),E183)","v":24.86732546027206},{"$f":"IFERROR(VLOOKUP(F183,Translation!$A:$C,3,FALSE),F183)","v":"Période d’amortissement moyenne selon la province"},{"$f":"IFERROR(VLOOKUP(G183,Translation!$A:$C,3,FALSE),G183)","v":"24.9"},{"$f":"IFERROR(VLOOKUP(H183,Translation!$A:$C,3,FALSE),H183)","v":"Colombie-Britannique"}]
[10,"T4 2019","PROPRIÉTAIRES-OCCUPANTS, À L’UNITÉ","Territoires",24.727753233845942,"Période d’amortissement moyenne selon la province","24.7","Territoires",{"$f":"IFERROR(VLOOKUP(A184,Translation!$A:$C,3,FALSE),A184)","v":10},{"$f":"IFERROR(VLOOKUP(B184,Translation!$A:$C,3,FALSE),B184)","v":"T4 2019"},{"$f":"IFERROR(VLOOKUP(C184,Translation!$A:$C,3,FALSE),C184)","v":"PROPRIÉTAIRES-OCCUPANTS, À L’UNITÉ"},{"$f":"IFERROR(VLOOKUP(D184,Translation!$A:$C,3,FALSE),D184)","v":"Territoires"},{"$f":"IFERROR(VLOOKUP(E184,Translation!$A:$C,3,FALSE),E184)","v":24.727753233845942},{"$f":"IFERROR(VLOOKUP(F184,Translation!$A:$C,3,FALSE),F184)","v":"Période d’amortissement moyenne selon la province"},{"$f":"IFERROR(VLOOKUP(G184,Translation!$A:$C,3,FALSE),G184)","v":"24.7"},{"$f":"IFERROR(VLOOKUP(H184,Translation!$A:$C,3,FALSE),H184)","v":"Territoires"}]
[10,"Cumul 2018","PROPRIÉTAIRES-OCCUPANTS, À L’UNITÉ","Terre-Neuve-et-Labrador",24.848847395428905,"Période d’amortissement moyenne selon la province","24.8","Terre-Neuve-et-Labrador",{"$f":"IFERROR(VLOOKUP(A185,Translation!$A:$C,3,FALSE),A185)","v":10},{"$f":"IFERROR(VLOOKUP(B185,Translation!$A:$C,3,FALSE),B185)","v":"Cumul 2018"},{"$f":"IFERROR(VLOOKUP(C185,Translation!$A:$C,3,FALSE),C185)","v":"PROPRIÉTAIRES-OCCUPANTS, À L’UNITÉ"},{"$f":"IFERROR(VLOOKUP(D185,Translation!$A:$C,3,FALSE),D185)","v":"Terre-Neuve-et-Labrador"},{"$f":"IFERROR(VLOOKUP(E185,Translation!$A:$C,3,FALSE),E185)","v":24.848847395428905},{"$f":"IFERROR(VLOOKUP(F185,Translation!$A:$C,3,FALSE),F185)","v":"Période d’amortissement moyenne selon la province"},{"$f":"IFERROR(VLOOKUP(G185,Translation!$A:$C,3,FALSE),G185)","v":"24.8"},{"$f":"IFERROR(VLOOKUP(H185,Translation!$A:$C,3,FALSE),H185)","v":"Terre-Neuve-et-Labrador"}]
[10,"Cumul 2018","PROPRIÉTAIRES-OCCUPANTS, À L’UNITÉ","Île-du-Prince-Édouard",24.751255977336751,"Période d’amortissement moyenne selon la province","24.8","Île-du-Prince-Édouard",{"$f":"IFERROR(VLOOKUP(A186,Translation!$A:$C,3,FALSE),A186)","v":10},{"$f":"IFERROR(VLOOKUP(B186,Translation!$A:$C,3,FALSE),B186)","v":"Cumul 2018"},{"$f":"IFERROR(VLOOKUP(C186,Translation!$A:$C,3,FALSE),C186)","v":"PROPRIÉTAIRES-OCCUPANTS, À L’UNITÉ"},{"$f":"IFERROR(VLOOKUP(D186,Translation!$A:$C,3,FALSE),D186)","v":"Île-du-Prince-Édouard"},{"$f":"IFERROR(VLOOKUP(E186,Translation!$A:$C,3,FALSE),E186)","v":24.751255977336751},{"$f":"IFERROR(VLOOKUP(F186,Translation!$A:$C,3,FALSE),F186)","v":"Période d’amortissement moyenne selon la province"},{"$f":"IFERROR(VLOOKUP(G186,Translation!$A:$C,3,FALSE),G186)","v":"24.8"},{"$f":"IFERROR(VLOOKUP(H186,Translation!$A:$C,3,FALSE),H186)","v":"Île-du-Prince-Édouard"}]
[10,"Cumul 2018","PROPRIÉTAIRES-OCCUPANTS, À L’UNITÉ","Nouvelle-Écosse",24.755319157598247,"Période d’amortissement moyenne selon la province","24.8","Nouvelle-Écosse",{"$f":"IFERROR(VLOOKUP(A187,Translation!$A:$C,3,FALSE),A187)","v":10},{"$f":"IFERROR(VLOOKUP(B187,Translation!$A:$C,3,FALSE),B187)","v":"Cumul 2018"},{"$f":"IFERROR(VLOOKUP(C187,Translation!$A:$C,3,FALSE),C187)","v":"PROPRIÉTAIRES-OCCUPANTS, À L’UNITÉ"},{"$f":"IFERROR(VLOOKUP(D187,Translation!$A:$C,3,FALSE),D187)","v":"Nouvelle-Écosse"},{"$f":"IFERROR(VLOOKUP(E187,Translation!$A:$C,3,FALSE),E187)","v":24.755319157598247},{"$f":"IFERROR(VLOOKUP(F187,Translation!$A:$C,3,FALSE),F187)","v":"Période d’amortissement moyenne selon la province"},{"$f":"IFERROR(VLOOKUP(G187,Translation!$A:$C,3,FALSE),G187)","v":"24.8"},{"$f":"IFERROR(VLOOKUP(H187,Translation!$A:$C,3,FALSE),H187)","v":"Nouvelle-Écosse"}]
[10,"Cumul 2018","PROPRIÉTAIRES-OCCUPANTS, À L’UNITÉ","Nouveau-Brunswick",24.757148966428744,"Période d’amortissement moyenne selon la province","24.8","Nouveau-Brunswick",{"$f":"IFERROR(VLOOKUP(A188,Translation!$A:$C,3,FALSE),A188)","v":10},{"$f":"IFERROR(VLOOKUP(B188,Translation!$A:$C,3,FALSE),B188)","v":"Cumul 2018"},{"$f":"IFERROR(VLOOKUP(C188,Translation!$A:$C,3,FALSE),C188)","v":"PROPRIÉTAIRES-OCCUPANTS, À L’UNITÉ"},{"$f":"IFERROR(VLOOKUP(D188,Translation!$A:$C,3,FALSE),D188)","v":"Nouveau-Brunswick"},{"$f":"IFERROR(VLOOKUP(E188,Translation!$A:$C,3,FALSE),E188)","v":24.757148966428744},{"$f":"IFERROR(VLOOKUP(F188,Translation!$A:$C,3,FALSE),F188)","v":"Période d’amortissement moyenne selon la province"},{"$f":"IFERROR(VLOOKUP(G188,Translation!$A:$C,3,FALSE),G188)","v":"24.8"},{"$f":"IFERROR(VLOOKUP(H188,Translation!$A:$C,3,FALSE),H188)","v":"Nouveau-Brunswick"}]
[10,"Cumul 2018","PROPRIÉTAIRES-OCCUPANTS, À L’UNITÉ","Québec",24.879506899499823,"Période d’amortissement moyenne selon la province","24.9","Québec",{"$f":"IFERROR(VLOOKUP(A189,Translation!$A:$C,3,FALSE),A189)","v":10},{"$f":"IFERROR(VLOOKUP(B189,Translation!$A:$C,3,FALSE),B189)","v":"Cumul 2018"},{"$f":"IFERROR(VLOOKUP(C189,Translation!$A:$C,3,FALSE),C189)","v":"PROPRIÉTAIRES-OCCUPANTS, À L’UNITÉ"},{"$f":"IFERROR(VLOOKUP(D189,Translation!$A:$C,3,FALSE),D189)","v":"Québec"},{"$f":"IFERROR(VLOOKUP(E189,Translation!$A:$C,3,FALSE),E189)","v":24.879506899499823},{"$f":"IFERROR(VLOOKUP(F189,Translation!$A:$C,3,FALSE),F189)","v":"Période d’amortissement moyenne selon la province"},{"$f":"IFERROR(VLOOKUP(G189,Translation!$A:$C,3,FALSE),G189)","v":"24.9"},{"$f":"IFERROR(VLOOKUP(H189,Translation!$A:$C,3,FALSE),H189)","v":"Québec"}]
[10,"Cumul 2018","PROPRIÉTAIRES-OCCUPANTS, À L’UNITÉ","Ontario",24.90642015668432,"Période d’amortissement moyenne selon la province","24.9","Ontario",{"$f":"IFERROR(VLOOKUP(A190,Translation!$A:$C,3,FALSE),A190)","v":10},{"$f":"IFERROR(VLOOKUP(B190,Translation!$A:$C,3,FALSE),B190)","v":"Cumul 2018"},{"$f":"IFERROR(VLOOKUP(C190,Translation!$A:$C,3,FALSE),C190)","v":"PROPRIÉTAIRES-OCCUPANTS, À L’UNITÉ"},{"$f":"IFERROR(VLOOKUP(D190,Translation!$A:$C,3,FALSE),D190)","v":"Ontario"},{"$f":"IFERROR(VLOOKUP(E190,Translation!$A:$C,3,FALSE),E190)","v":24.90642015668432},{"$f":"IFERROR(VLOOKUP(F190,Translation!$A:$C,3,FALSE),F190)","v":"Période d’amortissement moyenne selon la province"},{"$f":"IFERROR(VLOOKUP(G190,Translation!$A:$C,3,FALSE),G190)","v":"24.9"},{"$f":"IFERROR(VLOOKUP(H190,Translation!$A:$C,3,FALSE),H190)","v":"Ontario"}]
[10,"Cumul 2018","PROPRIÉTAIRES-OCCUPANTS, À L’UNITÉ","Manitoba",24.834072560848444,"Période d’amortissement moyenne selon la province","24.8","Manitoba",{"$f":"IFERROR(VLOOKUP(A191,Translation!$A:$C,3,FALSE),A191)","v":10},{"$f":"IFERROR(VLOOKUP(B191,Translation!$A:$C,3,FALSE),B191)","v":"Cumul 2018"},{"$f":"IFERROR(VLOOKUP(C191,Translation!$A:$C,3,FALSE),C191)","v":"PROPRIÉTAIRES-OCCUPANTS, À L’UNITÉ"},{"$f":"IFERROR(VLOOKUP(D191,Translation!$A:$C,3,FALSE),D191)","v":"Manitoba"},{"$f":"IFERROR(VLOOKUP(E191,Translation!$A:$C,3,FALSE),E191)","v":24.834072560848444},{"$f":"IFERROR(VLOOKUP(F191,Translation!$A:$C,3,FALSE),F191)","v":"Période d’amortissement moyenne selon la province"},{"$f":"IFERROR(VLOOKUP(G191,Translation!$A:$C,3,FALSE),G191)","v":"24.8"},{"$f":"IFERROR(VLOOKUP(H191,Translation!$A:$C,3,FALSE),H191)","v":"Manitoba"}]
[10,"Cumul 2018","PROPRIÉTAIRES-OCCUPANTS, À L’UNITÉ","Saskatchewan",24.742656599167439,"Période d’amortissement moyenne selon la province","24.7","Saskatchewan",{"$f":"IFERROR(VLOOKUP(A192,Translation!$A:$C,3,FALSE),A192)","v":10},{"$f":"IFERROR(VLOOKUP(B192,Translation!$A:$C,3,FALSE),B192)","v":"Cumul 2018"},{"$f":"IFERROR(VLOOKUP(C192,Translation!$A:$C,3,FALSE),C192)","v":"PROPRIÉTAIRES-OCCUPANTS, À L’UNITÉ"},{"$f":"IFERROR(VLOOKUP(D192,Translation!$A:$C,3,FALSE),D192)","v":"Saskatchewan"},{"$f":"IFERROR(VLOOKUP(E192,Translation!$A:$C,3,FALSE),E192)","v":24.742656599167439},{"$f":"IFERROR(VLOOKUP(F192,Translation!$A:$C,3,FALSE),F192)","v":"Période d’amortissement moyenne selon la province"},{"$f":"IFERROR(VLOOKUP(G192,Translation!$A:$C,3,FALSE),G192)","v":"24.7"},{"$f":"IFERROR(VLOOKUP(H192,Translation!$A:$C,3,FALSE),H192)","v":"Saskatchewan"}]
[10,"Cumul 2018","PROPRIÉTAIRES-OCCUPANTS, À L’UNITÉ","Alberta",24.833714600810342,"Période d’amortissement moyenne selon la province","24.8","Alberta",{"$f":"IFERROR(VLOOKUP(A193,Translation!$A:$C,3,FALSE),A193)","v":10},{"$f":"IFERROR(VLOOKUP(B193,Translation!$A:$C,3,FALSE),B193)","v":"Cumul 2018"},{"$f":"IFERROR(VLOOKUP(C193,Translation!$A:$C,3,FALSE),C193)","v":"PROPRIÉTAIRES-OCCUPANTS, À L’UNITÉ"},{"$f":"IFERROR(VLOOKUP(D193,Translation!$A:$C,3,FALSE),D193)","v":"Alberta"},{"$f":"IFERROR(VLOOKUP(E193,Translation!$A:$C,3,FALSE),E193)","v":24.833714600810342},{"$f":"IFERROR(VLOOKUP(F193,Translation!$A:$C,3,FALSE),F193)","v":"Période d’amortissement moyenne selon la province"},{"$f":"IFERROR(VLOOKUP(G193,Translation!$A:$C,3,FALSE),G193)","v":"24.8"},{"$f":"IFERROR(VLOOKUP(H193,Translation!$A:$C,3,FALSE),H193)","v":"Alberta"}]
[10,"Cumul 2018","PROPRIÉTAIRES-OCCUPANTS, À L’UNITÉ","Colombie-Britannique",24.833233505995516,"Période d’amortissement moyenne selon la province","24.8","Colombie-Britannique",{"$f":"IFERROR(VLOOKUP(A194,Translation!$A:$C,3,FALSE),A194)","v":10},{"$f":"IFERROR(VLOOKUP(B194,Translation!$A:$C,3,FALSE),B194)","v":"Cumul 2018"},{"$f":"IFERROR(VLOOKUP(C194,Translation!$A:$C,3,FALSE),C194)","v":"PROPRIÉTAIRES-OCCUPANTS, À L’UNITÉ"},{"$f":"IFERROR(VLOOKUP(D194,Translation!$A:$C,3,FALSE),D194)","v":"Colombie-Britannique"},{"$f":"IFERROR(VLOOKUP(E194,Translation!$A:$C,3,FALSE),E194)","v":24.833233505995516},{"$f":"IFERROR(VLOOKUP(F194,Translation!$A:$C,3,FALSE),F194)","v":"Période d’amortissement moyenne selon la province"},{"$f":"IFERROR(VLOOKUP(G194,Translation!$A:$C,3,FALSE),G194)","v":"24.8"},{"$f":"IFERROR(VLOOKUP(H194,Translation!$A:$C,3,FALSE),H194)","v":"Colombie-Britannique"}]
[10,"Cumul 2018","PROPRIÉTAIRES-OCCUPANTS, À L’UNITÉ","Territoires",24.745587308020756,"Période d’amortissement moyenne selon la province","24.7","Territoires",{"$f":"IFERROR(VLOOKUP(A195,Translation!$A:$C,3,FALSE),A195)","v":10},{"$f":"IFERROR(VLOOKUP(B195,Translation!$A:$C,3,FALSE),B195)","v":"Cumul 2018"},{"$f":"IFERROR(VLOOKUP(C195,Translation!$A:$C,3,FALSE),C195)","v":"PROPRIÉTAIRES-OCCUPANTS, À L’UNITÉ"},{"$f":"IFERROR(VLOOKUP(D195,Translation!$A:$C,3,FALSE),D195)","v":"Territoires"},{"$f":"IFERROR(VLOOKUP(E195,Translation!$A:$C,3,FALSE),E195)","v":24.745587308020756},{"$f":"IFERROR(VLOOKUP(F195,Translation!$A:$C,3,FALSE),F195)","v":"Période d’amortissement moyenne selon la province"},{"$f":"IFERROR(VLOOKUP(G195,Translation!$A:$C,3,FALSE),G195)","v":"24.7"},{"$f":"IFERROR(VLOOKUP(H195,Translation!$A:$C,3,FALSE),H195)","v":"Territoires"}]
[10,"T4 2019","ASSURANCE DE PORTEFEUILLE","<= 5",0.14926396440963549,"Prêts hypothécaires assurés au cours de la période selon la période d’amortissement (en années) à l'initiation (%)","0.1"," <= 5",{"$f":"IFERROR(VLOOKUP(A196,Translation!$A:$C,3,FALSE),A196)","v":10},{"$f":"IFERROR(VLOOKUP(B196,Translation!$A:$C,3,FALSE),B196)","v":"T4 2019"},{"$f":"IFERROR(VLOOKUP(C196,Translation!$A:$C,3,FALSE),C196)","v":"ASSURANCE DE PORTEFEUILLE"},{"$f":"IFERROR(VLOOKUP(D196,Translation!$A:$C,3,FALSE),D196)","v":"<= 5"},{"$f":"IFERROR(VLOOKUP(E196,Translation!$A:$C,3,FALSE),E196)","v":0.14926396440963549},{"$f":"IFERROR(VLOOKUP(F196,Translation!$A:$C,3,FALSE),F196)","v":"Prêts hypothécaires assurés au cours de la période selon la période d’amortissement (en années) à l'initiation (%)"},{"$f":"IFERROR(VLOOKUP(G196,Translation!$A:$C,3,FALSE),G196)","v":"0.1"},{"$f":"IFERROR(VLOOKUP(H196,Translation!$A:$C,3,FALSE),H196)","v":" <= 5"}]
[10,"Cumul 2018","ASSURANCE DE PORTEFEUILLE","<= 5",0.29309944092095774,"Prêts hypothécaires assurés au cours de la période selon la période d’amortissement (en années) à l'initiation (%)","0.3"," <= 5",{"$f":"IFERROR(VLOOKUP(A197,Translation!$A:$C,3,FALSE),A197)","v":10},{"$f":"IFERROR(VLOOKUP(B197,Translation!$A:$C,3,FALSE),B197)","v":"Cumul 2018"},{"$f":"IFERROR(VLOOKUP(C197,Translation!$A:$C,3,FALSE),C197)","v":"ASSURANCE DE PORTEFEUILLE"},{"$f":"IFERROR(VLOOKUP(D197,Translation!$A:$C,3,FALSE),D197)","v":"<= 5"},{"$f":"IFERROR(VLOOKUP(E197,Translation!$A:$C,3,FALSE),E197)","v":0.29309944092095774},{"$f":"IFERROR(VLOOKUP(F197,Translation!$A:$C,3,FALSE),F197)","v":"Prêts hypothécaires assurés au cours de la période selon la période d’amortissement (en années) à l'initiation (%)"},{"$f":"IFERROR(VLOOKUP(G197,Translation!$A:$C,3,FALSE),G197)","v":"0.3"},{"$f":"IFERROR(VLOOKUP(H197,Translation!$A:$C,3,FALSE),H197)","v":" <= 5"}]
[10,"T4 2019","ASSURANCE DE PORTEFEUILLE","> 5 <= 10",1.2715956149034613,"Prêts hypothécaires assurés au cours de la période selon la période d’amortissement (en années) à l'initiation (%)","1.3"," > 5 <= 10",{"$f":"IFERROR(VLOOKUP(A198,Translation!$A:$C,3,FALSE),A198)","v":10},{"$f":"IFERROR(VLOOKUP(B198,Translation!$A:$C,3,FALSE),B198)","v":"T4 2019"},{"$f":"IFERROR(VLOOKUP(C198,Translation!$A:$C,3,FALSE),C198)","v":"ASSURANCE DE PORTEFEUILLE"},{"$f":"IFERROR(VLOOKUP(D198,Translation!$A:$C,3,FALSE),D198)","v":"> 5 <= 10"},{"$f":"IFERROR(VLOOKUP(E198,Translation!$A:$C,3,FALSE),E198)","v":1.2715956149034613},{"$f":"IFERROR(VLOOKUP(F198,Translation!$A:$C,3,FALSE),F198)","v":"Prêts hypothécaires assurés au cours de la période selon la période d’amortissement (en années) à l'initiation (%)"},{"$f":"IFERROR(VLOOKUP(G198,Translation!$A:$C,3,FALSE),G198)","v":"1.3"},{"$f":"IFERROR(VLOOKUP(H198,Translation!$A:$C,3,FALSE),H198)","v":" > 5 <= 10"}]
[10,"Cumul 2018","ASSURANCE DE PORTEFEUILLE","> 5 <= 10",3.0733078164260874,"Prêts hypothécaires assurés au cours de la période selon la période d’amortissement (en années) à l'initiation (%)","3.1"," > 5 <= 10",{"$f":"IFERROR(VLOOKUP(A199,Translation!$A:$C,3,FALSE),A199)","v":10},{"$f":"IFERROR(VLOOKUP(B199,Translation!$A:$C,3,FALSE),B199)","v":"Cumul 2018"},{"$f":"IFERROR(VLOOKUP(C199,Translation!$A:$C,3,FALSE),C199)","v":"ASSURANCE DE PORTEFEUILLE"},{"$f":"IFERROR(VLOOKUP(D199,Translation!$A:$C,3,FALSE),D199)","v":"> 5 <= 10"},{"$f":"IFERROR(VLOOKUP(E199,Translation!$A:$C,3,FALSE),E199)","v":3.0733078164260874},{"$f":"IFERROR(VLOOKUP(F199,Translation!$A:$C,3,FALSE),F199)","v":"Prêts hypothécaires assurés au cours de la période selon la période d’amortissement (en années) à l'initiation (%)"},{"$f":"IFERROR(VLOOKUP(G199,Translation!$A:$C,3,FALSE),G199)","v":"3.1"},{"$f":"IFERROR(VLOOKUP(H199,Translation!$A:$C,3,FALSE),H199)","v":" > 5 <= 10"}]
[10,"T4 2019","ASSURANCE DE PORTEFEUILLE","> 10 <= 15",3.3670130985999882,"Prêts hypothécaires assurés au cours de la période selon la période d’amortissement (en années) à l'initiation (%)","3.4"," > 10 <= 15",{"$f":"IFERROR(VLOOKUP(A200,Translation!$A:$C,3,FALSE),A200)","v":10},{"$f":"IFERROR(VLOOKUP(B200,Translation!$A:$C,3,FALSE),B200)","v":"T4 2019"},{"$f":"IFERROR(VLOOKUP(C200,Translation!$A:$C,3,FALSE),C200)","v":"ASSURANCE DE PORTEFEUILLE"},{"$f":"IFERROR(VLOOKUP(D200,Translation!$A:$C,3,FALSE),D200)","v":"> 10 <= 15"},{"$f":"IFERROR(VLOOKUP(E200,Translation!$A:$C,3,FALSE),E200)","v":3.3670130985999882},{"$f":"IFERROR(VLOOKUP(F200,Translation!$A:$C,3,FALSE),F200)","v":"Prêts hypothécaires assurés au cours de la période selon la période d’amortissement (en années) à l'initiation (%)"},{"$f":"IFERROR(VLOOKUP(G200,Translation!$A:$C,3,FALSE),G200)","v":"3.4"},{"$f":"IFERROR(VLOOKUP(H200,Translation!$A:$C,3,FALSE),H200)","v":" > 10 <= 15"}]
[10,"Cumul 2018","ASSURANCE DE PORTEFEUILLE","> 10 <= 15",7.1207382714396878,"Prêts hypothécaires assurés au cours de la période selon la période d’amortissement (en années) à l'initiation (%)","7.1"," > 10 <= 15",{"$f":"IFERROR(VLOOKUP(A201,Translation!$A:$C,3,FALSE),A201)","v":10},{"$f":"IFERROR(VLOOKUP(B201,Translation!$A:$C,3,FALSE),B201)","v":"Cumul 2018"},{"$f":"IFERROR(VLOOKUP(C201,Translation!$A:$C,3,FALSE),C201)","v":"ASSURANCE DE PORTEFEUILLE"},{"$f":"IFERROR(VLOOKUP(D201,Translation!$A:$C,3,FALSE),D201)","v":"> 10 <= 15"},{"$f":"IFERROR(VLOOKUP(E201,Translation!$A:$C,3,FALSE),E201)","v":7.1207382714396878},{"$f":"IFERROR(VLOOKUP(F201,Translation!$A:$C,3,FALSE),F201)","v":"Prêts hypothécaires assurés au cours de la période selon la période d’amortissement (en années) à l'initiation (%)"},{"$f":"IFERROR(VLOOKUP(G201,Translation!$A:$C,3,FALSE),G201)","v":"7.1"},{"$f":"IFERROR(VLOOKUP(H201,Translation!$A:$C,3,FALSE),H201)","v":" > 10 <= 15"}]
[10,"T4 2019","ASSURANCE DE PORTEFEUILLE","> 15 <= 20",11.845363111710411,"Prêts hypothécaires assurés au cours de la période selon la période d’amortissement (en années) à l'initiation (%)","11.8"," > 15 <= 20",{"$f":"IFERROR(VLOOKUP(A202,Translation!$A:$C,3,FALSE),A202)","v":10},{"$f":"IFERROR(VLOOKUP(B202,Translation!$A:$C,3,FALSE),B202)","v":"T4 2019"},{"$f":"IFERROR(VLOOKUP(C202,Translation!$A:$C,3,FALSE),C202)","v":"ASSURANCE DE PORTEFEUILLE"},{"$f":"IFERROR(VLOOKUP(D202,Translation!$A:$C,3,FALSE),D202)","v":"> 15 <= 20"},{"$f":"IFERROR(VLOOKUP(E202,Translation!$A:$C,3,FALSE),E202)","v":11.845363111710411},{"$f":"IFERROR(VLOOKUP(F202,Translation!$A:$C,3,FALSE),F202)","v":"Prêts hypothécaires assurés au cours de la période selon la période d’amortissement (en années) à l'initiation (%)"},{"$f":"IFERROR(VLOOKUP(G202,Translation!$A:$C,3,FALSE),G202)","v":"11.8"},{"$f":"IFERROR(VLOOKUP(H202,Translation!$A:$C,3,FALSE),H202)","v":" > 15 <= 20"}]
[10,"Cumul 2018","ASSURANCE DE PORTEFEUILLE","> 15 <= 20",17.538439963011999,"Prêts hypothécaires assurés au cours de la période selon la période d’amortissement (en années) à l'initiation (%)","17.5"," > 15 <= 20",{"$f":"IFERROR(VLOOKUP(A203,Translation!$A:$C,3,FALSE),A203)","v":10},{"$f":"IFERROR(VLOOKUP(B203,Translation!$A:$C,3,FALSE),B203)","v":"Cumul 2018"},{"$f":"IFERROR(VLOOKUP(C203,Translation!$A:$C,3,FALSE),C203)","v":"ASSURANCE DE PORTEFEUILLE"},{"$f":"IFERROR(VLOOKUP(D203,Translation!$A:$C,3,FALSE),D203)","v":"> 15 <= 20"},{"$f":"IFERROR(VLOOKUP(E203,Translation!$A:$C,3,FALSE),E203)","v":17.538439963011999},{"$f":"IFERROR(VLOOKUP(F203,Translation!$A:$C,3,FALSE),F203)","v":"Prêts hypothécaires assurés au cours de la période selon la période d’amortissement (en années) à l'initiation (%)"},{"$f":"IFERROR(VLOOKUP(G203,Translation!$A:$C,3,FALSE),G203)","v":"17.5"},{"$f":"IFERROR(VLOOKUP(H203,Translation!$A:$C,3,FALSE),H203)","v":" > 15 <= 20"}]
[10,"T4 2019","ASSURANCE DE PORTEFEUILLE","> 20 <= 25",82.413212689990303,"Prêts hypothécaires assurés au cours de la période selon la période d’amortissement (en années) à l'initiation (%)","82.4"," > 20 <= 25",{"$f":"IFERROR(VLOOKUP(A204,Translation!$A:$C,3,FALSE),A204)","v":10},{"$f":"IFERROR(VLOOKUP(B204,Translation!$A:$C,3,FALSE),B204)","v":"T4 2019"},{"$f":"IFERROR(VLOOKUP(C204,Translation!$A:$C,3,FALSE),C204)","v":"ASSURANCE DE PORTEFEUILLE"},{"$f":"IFERROR(VLOOKUP(D204,Translation!$A:$C,3,FALSE),D204)","v":"> 20 <= 25"},{"$f":"IFERROR(VLOOKUP(E204,Translation!$A:$C,3,FALSE),E204)","v":82.413212689990303},{"$f":"IFERROR(VLOOKUP(F204,Translation!$A:$C,3,FALSE),F204)","v":"Prêts hypothécaires assurés au cours de la période selon la période d’amortissement (en années) à l'initiation (%)"},{"$f":"IFERROR(VLOOKUP(G204,Translation!$A:$C,3,FALSE),G204)","v":"82.4"},{"$f":"IFERROR(VLOOKUP(H204,Translation!$A:$C,3,FALSE),H204)","v":" > 20 <= 25"}]
[10,"Cumul 2018","ASSURANCE DE PORTEFEUILLE","> 20 <= 25",62.43601541199957,"Prêts hypothécaires assurés au cours de la période selon la période d’amortissement (en années) à l'initiation (%)","62.4"," > 20 <= 25",{"$f":"IFERROR(VLOOKUP(A205,Translation!$A:$C,3,FALSE),A205)","v":10},{"$f":"IFERROR(VLOOKUP(B205,Translation!$A:$C,3,FALSE),B205)","v":"Cumul 2018"},{"$f":"IFERROR(VLOOKUP(C205,Translation!$A:$C,3,FALSE),C205)","v":"ASSURANCE DE PORTEFEUILLE"},{"$f":"IFERROR(VLOOKUP(D205,Translation!$A:$C,3,FALSE),D205)","v":"> 20 <= 25"},{"$f":"IFERROR(VLOOKUP(E205,Translation!$A:$C,3,FALSE),E205)","v":62.43601541199957},{"$f":"IFERROR(VLOOKUP(F205,Translation!$A:$C,3,FALSE),F205)","v":"Prêts hypothécaires assurés au cours de la période selon la période d’amortissement (en années) à l'initiation (%)"},{"$f":"IFERROR(VLOOKUP(G205,Translation!$A:$C,3,FALSE),G205)","v":"62.4"},{"$f":"IFERROR(VLOOKUP(H205,Translation!$A:$C,3,FALSE),H205)","v":" > 20 <= 25"}]
[10,"T4 2019","ASSURANCE DE PORTEFEUILLE","> 25 <= 30",0.89783456917431215,"Prêts hypothécaires assurés au cours de la période selon la période d’amortissement (en années) à l'initiation (%)","0.9"," > 25 <= 30",{"$f":"IFERROR(VLOOKUP(A206,Translation!$A:$C,3,FALSE),A206)","v":10},{"$f":"IFERROR(VLOOKUP(B206,Translation!$A:$C,3,FALSE),B206)","v":"T4 2019"},{"$f":"IFERROR(VLOOKUP(C206,Translation!$A:$C,3,FALSE),C206)","v":"ASSURANCE DE PORTEFEUILLE"},{"$f":"IFERROR(VLOOKUP(D206,Translation!$A:$C,3,FALSE),D206)","v":"> 25 <= 30"},{"$f":"IFERROR(VLOOKUP(E206,Translation!$A:$C,3,FALSE),E206)","v":0.89783456917431215},{"$f":"IFERROR(VLOOKUP(F206,Translation!$A:$C,3,FALSE),F206)","v":"Prêts hypothécaires assurés au cours de la période selon la période d’amortissement (en années) à l'initiation (%)"},{"$f":"IFERROR(VLOOKUP(G206,Translation!$A:$C,3,FALSE),G206)","v":"0.9"},{"$f":"IFERROR(VLOOKUP(H206,Translation!$A:$C,3,FALSE),H206)","v":" > 25 <= 30"}]
[10,"Cumul 2018","ASSURANCE DE PORTEFEUILLE","> 25 <= 30",8.1631606180091207,"Prêts hypothécaires assurés au cours de la période selon la période d’amortissement (en années) à l'initiation (%)","8.2"," > 25 <= 30",{"$f":"IFERROR(VLOOKUP(A207,Translation!$A:$C,3,FALSE),A207)","v":10},{"$f":"IFERROR(VLOOKUP(B207,Translation!$A:$C,3,FALSE),B207)","v":"Cumul 2018"},{"$f":"IFERROR(VLOOKUP(C207,Translation!$A:$C,3,FALSE),C207)","v":"ASSURANCE DE PORTEFEUILLE"},{"$f":"IFERROR(VLOOKUP(D207,Translation!$A:$C,3,FALSE),D207)","v":"> 25 <= 30"},{"$f":"IFERROR(VLOOKUP(E207,Translation!$A:$C,3,FALSE),E207)","v":8.1631606180091207},{"$f":"IFERROR(VLOOKUP(F207,Translation!$A:$C,3,FALSE),F207)","v":"Prêts hypothécaires assurés au cours de la période selon la période d’amortissement (en années) à l'initiation (%)"},{"$f":"IFERROR(VLOOKUP(G207,Translation!$A:$C,3,FALSE),G207)","v":"8.2"},{"$f":"IFERROR(VLOOKUP(H207,Translation!$A:$C,3,FALSE),H207)","v":" > 25 <= 30"}]
[10,"T4 2019","ASSURANCE DE PORTEFEUILLE","> 30 <= 35",5.5716951211859961E-2,"Prêts hypothécaires assurés au cours de la période selon la période d’amortissement (en années) à l'initiation (%)","0.1"," > 30 <= 35",{"$f":"IFERROR(VLOOKUP(A208,Translation!$A:$C,3,FALSE),A208)","v":10},{"$f":"IFERROR(VLOOKUP(B208,Translation!$A:$C,3,FALSE),B208)","v":"T4 2019"},{"$f":"IFERROR(VLOOKUP(C208,Translation!$A:$C,3,FALSE),C208)","v":"ASSURANCE DE PORTEFEUILLE"},{"$f":"IFERROR(VLOOKUP(D208,Translation!$A:$C,3,FALSE),D208)","v":"> 30 <= 35"},{"$f":"IFERROR(VLOOKUP(E208,Translation!$A:$C,3,FALSE),E208)","v":5.5716951211859961E-2},{"$f":"IFERROR(VLOOKUP(F208,Translation!$A:$C,3,FALSE),F208)","v":"Prêts hypothécaires assurés au cours de la période selon la période d’amortissement (en années) à l'initiation (%)"},{"$f":"IFERROR(VLOOKUP(G208,Translation!$A:$C,3,FALSE),G208)","v":"0.1"},{"$f":"IFERROR(VLOOKUP(H208,Translation!$A:$C,3,FALSE),H208)","v":" > 30 <= 35"}]
[10,"Cumul 2018","ASSURANCE DE PORTEFEUILLE","> 30 <= 35",1.3752384781926201,"Prêts hypothécaires assurés au cours de la période selon la période d’amortissement (en années) à l'initiation (%)","1.4"," > 30 <= 35",{"$f":"IFERROR(VLOOKUP(A209,Translation!$A:$C,3,FALSE),A209)","v":10},{"$f":"IFERROR(VLOOKUP(B209,Translation!$A:$C,3,FALSE),B209)","v":"Cumul 2018"},{"$f":"IFERROR(VLOOKUP(C209,Translation!$A:$C,3,FALSE),C209)","v":"ASSURANCE DE PORTEFEUILLE"},{"$f":"IFERROR(VLOOKUP(D209,Translation!$A:$C,3,FALSE),D209)","v":"> 30 <= 35"},{"$f":"IFERROR(VLOOKUP(E209,Translation!$A:$C,3,FALSE),E209)","v":1.3752384781926201},{"$f":"IFERROR(VLOOKUP(F209,Translation!$A:$C,3,FALSE),F209)","v":"Prêts hypothécaires assurés au cours de la période selon la période d’amortissement (en années) à l'initiation (%)"},{"$f":"IFERROR(VLOOKUP(G209,Translation!$A:$C,3,FALSE),G209)","v":"1.4"},{"$f":"IFERROR(VLOOKUP(H209,Translation!$A:$C,3,FALSE),H209)","v":" > 30 <= 35"}]
[10,"T4 2019","ASSURANCE DE PORTEFEUILLE","Période d’amortissement moyenne",22.844407844180179,"Prêts hypothécaires assurés au cours de la période selon la période d’amortissement (en années) à l'initiation (%)","22.8","Période d’amortissement moyenne",{"$f":"IFERROR(VLOOKUP(A210,Translation!$A:$C,3,FALSE),A210)","v":10},{"$f":"IFERROR(VLOOKUP(B210,Translation!$A:$C,3,FALSE),B210)","v":"T4 2019"},{"$f":"IFERROR(VLOOKUP(C210,Translation!$A:$C,3,FALSE),C210)","v":"ASSURANCE DE PORTEFEUILLE"},{"$f":"IFERROR(VLOOKUP(D210,Translation!$A:$C,3,FALSE),D210)","v":"Période d’amortissement moyenne"},{"$f":"IFERROR(VLOOKUP(E210,Translation!$A:$C,3,FALSE),E210)","v":22.844407844180179},{"$f":"IFERROR(VLOOKUP(F210,Translation!$A:$C,3,FALSE),F210)","v":"Prêts hypothécaires assurés au cours de la période selon la période d’amortissement (en années) à l'initiation (%)"},{"$f":"IFERROR(VLOOKUP(G210,Translation!$A:$C,3,FALSE),G210)","v":"22.8"},{"$f":"IFERROR(VLOOKUP(H210,Translation!$A:$C,3,FALSE),H210)","v":"Période d’amortissement moyenne"}]
[10,"Cumul 2018","ASSURANCE DE PORTEFEUILLE","Période d’amortissement moyenne",21.916515293375578,"Prêts hypothécaires assurés au cours de la période selon la période d’amortissement (en années) à l'initiation (%)","21.9","Période d’amortissement moyenne",{"$f":"IFERROR(VLOOKUP(A211,Translation!$A:$C,3,FALSE),A211)","v":10},{"$f":"IFERROR(VLOOKUP(B211,Translation!$A:$C,3,FALSE),B211)","v":"Cumul 2018"},{"$f":"IFERROR(VLOOKUP(C211,Translation!$A:$C,3,FALSE),C211)","v":"ASSURANCE DE PORTEFEUILLE"},{"$f":"IFERROR(VLOOKUP(D211,Translation!$A:$C,3,FALSE),D211)","v":"Période d’amortissement moyenne"},{"$f":"IFERROR(VLOOKUP(E211,Translation!$A:$C,3,FALSE),E211)","v":21.916515293375578},{"$f":"IFERROR(VLOOKUP(F211,Translation!$A:$C,3,FALSE),F211)","v":"Prêts hypothécaires assurés au cours de la période selon la période d’amortissement (en années) à l'initiation (%)"},{"$f":"IFERROR(VLOOKUP(G211,Translation!$A:$C,3,FALSE),G211)","v":"21.9"},{"$f":"IFERROR(VLOOKUP(H211,Translation!$A:$C,3,FALSE),H211)","v":"Période d’amortissement moyenne"}]
[10,"T4 2019","ASSURANCE DE PORTEFEUILLE","Terre-Neuve-et-Labrador",22.16466119808398,"Période d’amortissement moyenne selon la province","22.2","Terre-Neuve-et-Labrador",{"$f":"IFERROR(VLOOKUP(A212,Translation!$A:$C,3,FALSE),A212)","v":10},{"$f":"IFERROR(VLOOKUP(B212,Translation!$A:$C,3,FALSE),B212)","v":"T4 2019"},{"$f":"IFERROR(VLOOKUP(C212,Translation!$A:$C,3,FALSE),C212)","v":"ASSURANCE DE PORTEFEUILLE"},{"$f":"IFERROR(VLOOKUP(D212,Translation!$A:$C,3,FALSE),D212)","v":"Terre-Neuve-et-Labrador"},{"$f":"IFERROR(VLOOKUP(E212,Translation!$A:$C,3,FALSE),E212)","v":22.16466119808398},{"$f":"IFERROR(VLOOKUP(F212,Translation!$A:$C,3,FALSE),F212)","v":"Période d’amortissement moyenne selon la province"},{"$f":"IFERROR(VLOOKUP(G212,Translation!$A:$C,3,FALSE),G212)","v":"22.2"},{"$f":"IFERROR(VLOOKUP(H212,Translation!$A:$C,3,FALSE),H212)","v":"Terre-Neuve-et-Labrador"}]
[10,"T4 2019","ASSURANCE DE PORTEFEUILLE","Île-du-Prince-Édouard",22.644684702540658,"Période d’amortissement moyenne selon la province","22.6","Île-du-Prince-Édouard",{"$f":"IFERROR(VLOOKUP(A213,Translation!$A:$C,3,FALSE),A213)","v":10},{"$f":"IFERROR(VLOOKUP(B213,Translation!$A:$C,3,FALSE),B213)","v":"T4 2019"},{"$f":"IFERROR(VLOOKUP(C213,Translation!$A:$C,3,FALSE),C213)","v":"ASSURANCE DE PORTEFEUILLE"},{"$f":"IFERROR(VLOOKUP(D213,Translation!$A:$C,3,FALSE),D213)","v":"Île-du-Prince-Édouard"},{"$f":"IFERROR(VLOOKUP(E213,Translation!$A:$C,3,FALSE),E213)","v":22.644684702540658},{"$f":"IFERROR(VLOOKUP(F213,Translation!$A:$C,3,FALSE),F213)","v":"Période d’amortissement moyenne selon la province"},{"$f":"IFERROR(VLOOKUP(G213,Translation!$A:$C,3,FALSE),G213)","v":"22.6"},{"$f":"IFERROR(VLOOKUP(H213,Translation!$A:$C,3,FALSE),H213)","v":"Île-du-Prince-Édouard"}]
[10,"T4 2019","ASSURANCE DE PORTEFEUILLE","Nouvelle-Écosse",22.784125271594263,"Période d’amortissement moyenne selon la province","22.8","Nouvelle-Écosse",{"$f":"IFERROR(VLOOKUP(A214,Translation!$A:$C,3,FALSE),A214)","v":10},{"$f":"IFERROR(VLOOKUP(B214,Translation!$A:$C,3,FALSE),B214)","v":"T4 2019"},{"$f":"IFERROR(VLOOKUP(C214,Translation!$A:$C,3,FALSE),C214)","v":"ASSURANCE DE PORTEFEUILLE"},{"$f":"IFERROR(VLOOKUP(D214,Translation!$A:$C,3,FALSE),D214)","v":"Nouvelle-Écosse"},{"$f":"IFERROR(VLOOKUP(E214,Translation!$A:$C,3,FALSE),E214)","v":22.784125271594263},{"$f":"IFERROR(VLOOKUP(F214,Translation!$A:$C,3,FALSE),F214)","v":"Période d’amortissement moyenne selon la province"},{"$f":"IFERROR(VLOOKUP(G214,Translation!$A:$C,3,FALSE),G214)","v":"22.8"},{"$f":"IFERROR(VLOOKUP(H214,Translation!$A:$C,3,FALSE),H214)","v":"Nouvelle-Écosse"}]
[10,"T4 2019","ASSURANCE DE PORTEFEUILLE","Nouveau-Brunswick",22.367782800828671,"Période d’amortissement moyenne selon la province","22.4","Nouveau-Brunswick",{"$f":"IFERROR(VLOOKUP(A215,Translation!$A:$C,3,FALSE),A215)","v":10},{"$f":"IFERROR(VLOOKUP(B215,Translation!$A:$C,3,FALSE),B215)","v":"T4 2019"},{"$f":"IFERROR(VLOOKUP(C215,Translation!$A:$C,3,FALSE),C215)","v":"ASSURANCE DE PORTEFEUILLE"},{"$f":"IFERROR(VLOOKUP(D215,Translation!$A:$C,3,FALSE),D215)","v":"Nouveau-Brunswick"},{"$f":"IFERROR(VLOOKUP(E215,Translation!$A:$C,3,FALSE),E215)","v":22.367782800828671},{"$f":"IFERROR(VLOOKUP(F215,Translation!$A:$C,3,FALSE),F215)","v":"Période d’amortissement moyenne selon la province"},{"$f":"IFERROR(VLOOKUP(G215,Translation!$A:$C,3,FALSE),G215)","v":"22.4"},{"$f":"IFERROR(VLOOKUP(H215,Translation!$A:$C,3,FALSE),H215)","v":"Nouveau-Brunswick"}]
[10,"T4 2019","ASSURANCE DE PORTEFEUILLE","Québec",23.235500793307502,"Période d’amortissement moyenne selon la province","23.2","Québec",{"$f":"IFERROR(VLOOKUP(A216,Translation!$A:$C,3,FALSE),A216)","v":10},{"$f":"IFERROR(VLOOKUP(B216,Translation!$A:$C,3,FALSE),B216)","v":"T4 2019"},{"$f":"IFERROR(VLOOKUP(C216,Translation!$A:$C,3,FALSE),C216)","v":"ASSURANCE DE PORTEFEUILLE"},{"$f":"IFERROR(VLOOKUP(D216,Translation!$A:$C,3,FALSE),D216)","v":"Québec"},{"$f":"IFERROR(VLOOKUP(E216,Translation!$A:$C,3,FALSE),E216)","v":23.235500793307502},{"$f":"IFERROR(VLOOKUP(F216,Translation!$A:$C,3,FALSE),F216)","v":"Période d’amortissement moyenne selon la province"},{"$f":"IFERROR(VLOOKUP(G216,Translation!$A:$C,3,FALSE),G216)","v":"23.2"},{"$f":"IFERROR(VLOOKUP(H216,Translation!$A:$C,3,FALSE),H216)","v":"Québec"}]
[10,"T4 2019","ASSURANCE DE PORTEFEUILLE","Ontario",22.923118726742647,"Période d’amortissement moyenne selon la province","22.9","Ontario",{"$f":"IFERROR(VLOOKUP(A217,Translation!$A:$C,3,FALSE),A217)","v":10},{"$f":"IFERROR(VLOOKUP(B217,Translation!$A:$C,3,FALSE),B217)","v":"T4 2019"},{"$f":"IFERROR(VLOOKUP(C217,Translation!$A:$C,3,FALSE),C217)","v":"ASSURANCE DE PORTEFEUILLE"},{"$f":"IFERROR(VLOOKUP(D217,Translation!$A:$C,3,FALSE),D217)","v":"Ontario"},{"$f":"IFERROR(VLOOKUP(E217,Translation!$A:$C,3,FALSE),E217)","v":22.923118726742647},{"$f":"IFERROR(VLOOKUP(F217,Translation!$A:$C,3,FALSE),F217)","v":"Période d’amortissement moyenne selon la province"},{"$f":"IFERROR(VLOOKUP(G217,Translation!$A:$C,3,FALSE),G217)","v":"22.9"},{"$f":"IFERROR(VLOOKUP(H217,Translation!$A:$C,3,FALSE),H217)","v":"Ontario"}]
[10,"T4 2019","ASSURANCE DE PORTEFEUILLE","Manitoba",22.851491235037894,"Période d’amortissement moyenne selon la province","22.9","Manitoba",{"$f":"IFERROR(VLOOKUP(A218,Translation!$A:$C,3,FALSE),A218)","v":10},{"$f":"IFERROR(VLOOKUP(B218,Translation!$A:$C,3,FALSE),B218)","v":"T4 2019"},{"$f":"IFERROR(VLOOKUP(C218,Translation!$A:$C,3,FALSE),C218)","v":"ASSURANCE DE PORTEFEUILLE"},{"$f":"IFERROR(VLOOKUP(D218,Translation!$A:$C,3,FALSE),D218)","v":"Manitoba"},{"$f":"IFERROR(VLOOKUP(E218,Translation!$A:$C,3,FALSE),E218)","v":22.851491235037894},{"$f":"IFERROR(VLOOKUP(F218,Translation!$A:$C,3,FALSE),F218)","v":"Période d’amortissement moyenne selon la province"},{"$f":"IFERROR(VLOOKUP(G218,Translation!$A:$C,3,FALSE),G218)","v":"22.9"},{"$f":"IFERROR(VLOOKUP(H218,Translation!$A:$C,3,FALSE),H218)","v":"Manitoba"}]
[10,"T4 2019","ASSURANCE DE PORTEFEUILLE","Saskatchewan",21.028570422699602,"Période d’amortissement moyenne selon la province","21.0","Saskatchewan",{"$f":"IFERROR(VLOOKUP(A219,Translation!$A:$C,3,FALSE),A219)","v":10},{"$f":"IFERROR(VLOOKUP(B219,Translation!$A:$C,3,FALSE),B219)","v":"T4 2019"},{"$f":"IFERROR(VLOOKUP(C219,Translation!$A:$C,3,FALSE),C219)","v":"ASSURANCE DE PORTEFEUILLE"},{"$f":"IFERROR(VLOOKUP(D219,Translation!$A:$C,3,FALSE),D219)","v":"Saskatchewan"},{"$f":"IFERROR(VLOOKUP(E219,Translation!$A:$C,3,FALSE),E219)","v":21.028570422699602},{"$f":"IFERROR(VLOOKUP(F219,Translation!$A:$C,3,FALSE),F219)","v":"Période d’amortissement moyenne selon la province"},{"$f":"IFERROR(VLOOKUP(G219,Translation!$A:$C,3,FALSE),G219)","v":"21.0"},{"$f":"IFERROR(VLOOKUP(H219,Translation!$A:$C,3,FALSE),H219)","v":"Saskatchewan"}]
[10,"T4 2019","ASSURANCE DE PORTEFEUILLE","Alberta",22.407533657983912,"Période d’amortissement moyenne selon la province","22.4","Alberta",{"$f":"IFERROR(VLOOKUP(A220,Translation!$A:$C,3,FALSE),A220)","v":10},{"$f":"IFERROR(VLOOKUP(B220,Translation!$A:$C,3,FALSE),B220)","v":"T4 2019"},{"$f":"IFERROR(VLOOKUP(C220,Translation!$A:$C,3,FALSE),C220)","v":"ASSURANCE DE PORTEFEUILLE"},{"$f":"IFERROR(VLOOKUP(D220,Translation!$A:$C,3,FALSE),D220)","v":"Alberta"},{"$f":"IFERROR(VLOOKUP(E220,Translation!$A:$C,3,FALSE),E220)","v":22.407533657983912},{"$f":"IFERROR(VLOOKUP(F220,Translation!$A:$C,3,FALSE),F220)","v":"Période d’amortissement moyenne selon la province"},{"$f":"IFERROR(VLOOKUP(G220,Translation!$A:$C,3,FALSE),G220)","v":"22.4"},{"$f":"IFERROR(VLOOKUP(H220,Translation!$A:$C,3,FALSE),H220)","v":"Alberta"}]
[10,"T4 2019","ASSURANCE DE PORTEFEUILLE","Colombie-Britannique",23.016444416285889,"Période d’amortissement moyenne selon la province","23.0","Colombie-Britannique",{"$f":"IFERROR(VLOOKUP(A221,Translation!$A:$C,3,FALSE),A221)","v":10},{"$f":"IFERROR(VLOOKUP(B221,Translation!$A:$C,3,FALSE),B221)","v":"T4 2019"},{"$f":"IFERROR(VLOOKUP(C221,Translation!$A:$C,3,FALSE),C221)","v":"ASSURANCE DE PORTEFEUILLE"},{"$f":"IFERROR(VLOOKUP(D221,Translation!$A:$C,3,FALSE),D221)","v":"Colombie-Britannique"},{"$f":"IFERROR(VLOOKUP(E221,Translation!$A:$C,3,FALSE),E221)","v":23.016444416285889},{"$f":"IFERROR(VLOOKUP(F221,Translation!$A:$C,3,FALSE),F221)","v":"Période d’amortissement moyenne selon la province"},{"$f":"IFERROR(VLOOKUP(G221,Translation!$A:$C,3,FALSE),G221)","v":"23.0"},{"$f":"IFERROR(VLOOKUP(H221,Translation!$A:$C,3,FALSE),H221)","v":"Colombie-Britannique"}]
[10,"T4 2019","ASSURANCE DE PORTEFEUILLE","Territoires",22.013535457478607,"Période d’amortissement moyenne selon la province","22.0","Territoires",{"$f":"IFERROR(VLOOKUP(A222,Translation!$A:$C,3,FALSE),A222)","v":10},{"$f":"IFERROR(VLOOKUP(B222,Translation!$A:$C,3,FALSE),B222)","v":"T4 2019"},{"$f":"IFERROR(VLOOKUP(C222,Translation!$A:$C,3,FALSE),C222)","v":"ASSURANCE DE PORTEFEUILLE"},{"$f":"IFERROR(VLOOKUP(D222,Translation!$A:$C,3,FALSE),D222)","v":"Territoires"},{"$f":"IFERROR(VLOOKUP(E222,Translation!$A:$C,3,FALSE),E222)","v":22.013535457478607},{"$f":"IFERROR(VLOOKUP(F222,Translation!$A:$C,3,FALSE),F222)","v":"Période d’amortissement moyenne selon la province"},{"$f":"IFERROR(VLOOKUP(G222,Translation!$A:$C,3,FALSE),G222)","v":"22.0"},{"$f":"IFERROR(VLOOKUP(H222,Translation!$A:$C,3,FALSE),H222)","v":"Territoires"}]
[10,"Cumul 2018","ASSURANCE DE PORTEFEUILLE","Terre-Neuve-et-Labrador",21.309398099136423,"Période d’amortissement moyenne selon la province","21.3","Terre-Neuve-et-Labrador",{"$f":"IFERROR(VLOOKUP(A223,Translation!$A:$C,3,FALSE),A223)","v":10},{"$f":"IFERROR(VLOOKUP(B223,Translation!$A:$C,3,FALSE),B223)","v":"Cumul 2018"},{"$f":"IFERROR(VLOOKUP(C223,Translation!$A:$C,3,FALSE),C223)","v":"ASSURANCE DE PORTEFEUILLE"},{"$f":"IFERROR(VLOOKUP(D223,Translation!$A:$C,3,FALSE),D223)","v":"Terre-Neuve-et-Labrador"},{"$f":"IFERROR(VLOOKUP(E223,Translation!$A:$C,3,FALSE),E223)","v":21.309398099136423},{"$f":"IFERROR(VLOOKUP(F223,Translation!$A:$C,3,FALSE),F223)","v":"Période d’amortissement moyenne selon la province"},{"$f":"IFERROR(VLOOKUP(G223,Translation!$A:$C,3,FALSE),G223)","v":"21.3"},{"$f":"IFERROR(VLOOKUP(H223,Translation!$A:$C,3,FALSE),H223)","v":"Terre-Neuve-et-Labrador"}]
[10,"Cumul 2018","ASSURANCE DE PORTEFEUILLE","Île-du-Prince-Édouard",17.486943010643877,"Période d’amortissement moyenne selon la province","17.5","Île-du-Prince-Édouard",{"$f":"IFERROR(VLOOKUP(A224,Translation!$A:$C,3,FALSE),A224)","v":10},{"$f":"IFERROR(VLOOKUP(B224,Translation!$A:$C,3,FALSE),B224)","v":"Cumul 2018"},{"$f":"IFERROR(VLOOKUP(C224,Translation!$A:$C,3,FALSE),C224)","v":"ASSURANCE DE PORTEFEUILLE"},{"$f":"IFERROR(VLOOKUP(D224,Translation!$A:$C,3,FALSE),D224)","v":"Île-du-Prince-Édouard"},{"$f":"IFERROR(VLOOKUP(E224,Translation!$A:$C,3,FALSE),E224)","v":17.486943010643877},{"$f":"IFERROR(VLOOKUP(F224,Translation!$A:$C,3,FALSE),F224)","v":"Période d’amortissement moyenne selon la province"},{"$f":"IFERROR(VLOOKUP(G224,Translation!$A:$C,3,FALSE),G224)","v":"17.5"},{"$f":"IFERROR(VLOOKUP(H224,Translation!$A:$C,3,FALSE),H224)","v":"Île-du-Prince-Édouard"}]
[10,"Cumul 2018","ASSURANCE DE PORTEFEUILLE","Nouvelle-Écosse",20.673152303681555,"Période d’amortissement moyenne selon la province","20.7","Nouvelle-Écosse",{"$f":"IFERROR(VLOOKUP(A225,Translation!$A:$C,3,FALSE),A225)","v":10},{"$f":"IFERROR(VLOOKUP(B225,Translation!$A:$C,3,FALSE),B225)","v":"Cumul 2018"},{"$f":"IFERROR(VLOOKUP(C225,Translation!$A:$C,3,FALSE),C225)","v":"ASSURANCE DE PORTEFEUILLE"},{"$f":"IFERROR(VLOOKUP(D225,Translation!$A:$C,3,FALSE),D225)","v":"Nouvelle-Écosse"},{"$f":"IFERROR(VLOOKUP(E225,Translation!$A:$C,3,FALSE),E225)","v":20.673152303681555},{"$f":"IFERROR(VLOOKUP(F225,Translation!$A:$C,3,FALSE),F225)","v":"Période d’amortissement moyenne selon la province"},{"$f":"IFERROR(VLOOKUP(G225,Translation!$A:$C,3,FALSE),G225)","v":"20.7"},{"$f":"IFERROR(VLOOKUP(H225,Translation!$A:$C,3,FALSE),H225)","v":"Nouvelle-Écosse"}]
[10,"Cumul 2018","ASSURANCE DE PORTEFEUILLE","Nouveau-Brunswick",19.736919736904206,"Période d’amortissement moyenne selon la province","19.7","Nouveau-Brunswick",{"$f":"IFERROR(VLOOKUP(A226,Translation!$A:$C,3,FALSE),A226)","v":10},{"$f":"IFERROR(VLOOKUP(B226,Translation!$A:$C,3,FALSE),B226)","v":"Cumul 2018"},{"$f":"IFERROR(VLOOKUP(C226,Translation!$A:$C,3,FALSE),C226)","v":"ASSURANCE DE PORTEFEUILLE"},{"$f":"IFERROR(VLOOKUP(D226,Translation!$A:$C,3,FALSE),D226)","v":"Nouveau-Brunswick"},{"$f":"IFERROR(VLOOKUP(E226,Translation!$A:$C,3,FALSE),E226)","v":19.736919736904206},{"$f":"IFERROR(VLOOKUP(F226,Translation!$A:$C,3,FALSE),F226)","v":"Période d’amortissement moyenne selon la province"},{"$f":"IFERROR(VLOOKUP(G226,Translation!$A:$C,3,FALSE),G226)","v":"19.7"},{"$f":"IFERROR(VLOOKUP(H226,Translation!$A:$C,3,FALSE),H226)","v":"Nouveau-Brunswick"}]
[10,"Cumul 2018","ASSURANCE DE PORTEFEUILLE","Québec",21.028531023241086,"Période d’amortissement moyenne selon la province","21.0","Québec",{"$f":"IFERROR(VLOOKUP(A227,Translation!$A:$C,3,FALSE),A227)","v":10},{"$f":"IFERROR(VLOOKUP(B227,Translation!$A:$C,3,FALSE),B227)","v":"Cumul 2018"},{"$f":"IFERROR(VLOOKUP(C227,Translation!$A:$C,3,FALSE),C227)","v":"ASSURANCE DE PORTEFEUILLE"},{"$f":"IFERROR(VLOOKUP(D227,Translation!$A:$C,3,FALSE),D227)","v":"Québec"},{"$f":"IFERROR(VLOOKUP(E227,Translation!$A:$C,3,FALSE),E227)","v":21.028531023241086},{"$f":"IFERROR(VLOOKUP(F227,Translation!$A:$C,3,FALSE),F227)","v":"Période d’amortissement moyenne selon la province"},{"$f":"IFERROR(VLOOKUP(G227,Translation!$A:$C,3,FALSE),G227)","v":"21.0"},{"$f":"IFERROR(VLOOKUP(H227,Translation!$A:$C,3,FALSE),H227)","v":"Québec"}]
[10,"Cumul 2018","ASSURANCE DE PORTEFEUILLE","Ontario",22.009583701769923,"Période d’amortissement moyenne selon la province","22.0","Ontario",{"$f":"IFERROR(VLOOKUP(A228,Translation!$A:$C,3,FALSE),A228)","v":10},{"$f":"IFERROR(VLOOKUP(B228,Translation!$A:$C,3,FALSE),B228)","v":"Cumul 2018"},{"$f":"IFERROR(VLOOKUP(C228,Translation!$A:$C,3,FALSE),C228)","v":"ASSURANCE DE PORTEFEUILLE"},{"$f":"IFERROR(VLOOKUP(D228,Translation!$A:$C,3,FALSE),D228)","v":"Ontario"},{"$f":"IFERROR(VLOOKUP(E228,Translation!$A:$C,3,FALSE),E228)","v":22.009583701769923},{"$f":"IFERROR(VLOOKUP(F228,Translation!$A:$C,3,FALSE),F228)","v":"Période d’amortissement moyenne selon la province"},{"$f":"IFERROR(VLOOKUP(G228,Translation!$A:$C,3,FALSE),G228)","v":"22.0"},{"$f":"IFERROR(VLOOKUP(H228,Translation!$A:$C,3,FALSE),H228)","v":"Ontario"}]
[10,"Cumul 2018","ASSURANCE DE PORTEFEUILLE","Manitoba",21.442388837943422,"Période d’amortissement moyenne selon la province","21.4","Manitoba",{"$f":"IFERROR(VLOOKUP(A229,Translation!$A:$C,3,FALSE),A229)","v":10},{"$f":"IFERROR(VLOOKUP(B229,Translation!$A:$C,3,FALSE),B229)","v":"Cumul 2018"},{"$f":"IFERROR(VLOOKUP(C229,Translation!$A:$C,3,FALSE),C229)","v":"ASSURANCE DE PORTEFEUILLE"},{"$f":"IFERROR(VLOOKUP(D229,Translation!$A:$C,3,FALSE),D229)","v":"Manitoba"},{"$f":"IFERROR(VLOOKUP(E229,Translation!$A:$C,3,FALSE),E229)","v":21.442388837943422},{"$f":"IFERROR(VLOOKUP(F229,Translation!$A:$C,3,FALSE),F229)","v":"Période d’amortissement moyenne selon la province"},{"$f":"IFERROR(VLOOKUP(G229,Translation!$A:$C,3,FALSE),G229)","v":"21.4"},{"$f":"IFERROR(VLOOKUP(H229,Translation!$A:$C,3,FALSE),H229)","v":"Manitoba"}]
[10,"Cumul 2018","ASSURANCE DE PORTEFEUILLE","Saskatchewan",20.018941585480952,"Période d’amortissement moyenne selon la province","20.0","Saskatchewan",{"$f":"IFERROR(VLOOKUP(A230,Translation!$A:$C,3,FALSE),A230)","v":10},{"$f":"IFERROR(VLOOKUP(B230,Translation!$A:$C,3,FALSE),B230)","v":"Cumul 2018"},{"$f":"IFERROR(VLOOKUP(C230,Translation!$A:$C,3,FALSE),C230)","v":"ASSURANCE DE PORTEFEUILLE"},{"$f":"IFERROR(VLOOKUP(D230,Translation!$A:$C,3,FALSE),D230)","v":"Saskatchewan"},{"$f":"IFERROR(VLOOKUP(E230,Translation!$A:$C,3,FALSE),E230)","v":20.018941585480952},{"$f":"IFERROR(VLOOKUP(F230,Translation!$A:$C,3,FALSE),F230)","v":"Période d’amortissement moyenne selon la province"},{"$f":"IFERROR(VLOOKUP(G230,Translation!$A:$C,3,FALSE),G230)","v":"20.0"},{"$f":"IFERROR(VLOOKUP(H230,Translation!$A:$C,3,FALSE),H230)","v":"Saskatchewan"}]
[10,"Cumul 2018","ASSURANCE DE PORTEFEUILLE","Alberta",21.325974403784695,"Période d’amortissement moyenne selon la province","21.3","Alberta",{"$f":"IFERROR(VLOOKUP(A231,Translation!$A:$C,3,FALSE),A231)","v":10},{"$f":"IFERROR(VLOOKUP(B231,Translation!$A:$C,3,FALSE),B231)","v":"Cumul 2018"},{"$f":"IFERROR(VLOOKUP(C231,Translation!$A:$C,3,FALSE),C231)","v":"ASSURANCE DE PORTEFEUILLE"},{"$f":"IFERROR(VLOOKUP(D231,Translation!$A:$C,3,FALSE),D231)","v":"Alberta"},{"$f":"IFERROR(VLOOKUP(E231,Translation!$A:$C,3,FALSE),E231)","v":21.325974403784695},{"$f":"IFERROR(VLOOKUP(F231,Translation!$A:$C,3,FALSE),F231)","v":"Période d’amortissement moyenne selon la province"},{"$f":"IFERROR(VLOOKUP(G231,Translation!$A:$C,3,FALSE),G231)","v":"21.3"},{"$f":"IFERROR(VLOOKUP(H231,Translation!$A:$C,3,FALSE),H231)","v":"Alberta"}]
[10,"Cumul 2018","ASSURANCE DE PORTEFEUILLE","Colombie-Britannique",22.5044071752456,"Période d’amortissement moyenne selon la province","22.5","Colombie-Britannique",{"$f":"IFERROR(VLOOKUP(A232,Translation!$A:$C,3,FALSE),A232)","v":10},{"$f":"IFERROR(VLOOKUP(B232,Translation!$A:$C,3,FALSE),B232)","v":"Cumul 2018"},{"$f":"IFERROR(VLOOKUP(C232,Translation!$A:$C,3,FALSE),C232)","v":"ASSURANCE DE PORTEFEUILLE"},{"$f":"IFERROR(VLOOKUP(D232,Translation!$A:$C,3,FALSE),D232)","v":"Colombie-Britannique"},{"$f":"IFERROR(VLOOKUP(E232,Translation!$A:$C,3,FALSE),E232)","v":22.5044071752456},{"$f":"IFERROR(VLOOKUP(F232,Translation!$A:$C,3,FALSE),F232)","v":"Période d’amortissement moyenne selon la province"},{"$f":"IFERROR(VLOOKUP(G232,Translation!$A:$C,3,FALSE),G232)","v":"22.5"},{"$f":"IFERROR(VLOOKUP(H232,Translation!$A:$C,3,FALSE),H232)","v":"Colombie-Britannique"}]
[28,"T4 2019","IMMEUBLES COLLECTIFS RÉSIDENTIELS","> 5 <= 10",2.4996293173662063E-2,"Prêts hypothécaires assurés au cours de la période selon la période d’amortissement (en années) à l'initiation (%)","0.0"," > 5 <= 10",{"$f":"IFERROR(VLOOKUP(A233,Translation!$A:$C,3,FALSE),A233)","v":28},{"$f":"IFERROR(VLOOKUP(B233,Translation!$A:$C,3,FALSE),B233)","v":"T4 2019"},{"$f":"IFERROR(VLOOKUP(C233,Translation!$A:$C,3,FALSE),C233)","v":"IMMEUBLES COLLECTIFS RÉSIDENTIELS"},{"$f":"IFERROR(VLOOKUP(D233,Translation!$A:$C,3,FALSE),D233)","v":"> 5 <= 10"},{"$f":"IFERROR(VLOOKUP(E233,Translation!$A:$C,3,FALSE),E233)","v":2.4996293173662063E-2},{"$f":"IFERROR(VLOOKUP(F233,Translation!$A:$C,3,FALSE),F233)","v":"Prêts hypothécaires assurés au cours de la période selon la période d’amortissement (en années) à l'initiation (%)"},{"$f":"IFERROR(VLOOKUP(G233,Translation!$A:$C,3,FALSE),G233)","v":"0.0"},{"$f":"IFERROR(VLOOKUP(H233,Translation!$A:$C,3,FALSE),H233)","v":" > 5 <= 10"}]
[28,"Cumul 2018","IMMEUBLES COLLECTIFS RÉSIDENTIELS","> 5 <= 10",2.3400426242304686E-3,"Prêts hypothécaires assurés au cours de la période selon la période d’amortissement (en années) à l'initiation (%)","0.0"," > 5 <= 10",{"$f":"IFERROR(VLOOKUP(A234,Translation!$A:$C,3,FALSE),A234)","v":28},{"$f":"IFERROR(VLOOKUP(B234,Translation!$A:$C,3,FALSE),B234)","v":"Cumul 2018"},{"$f":"IFERROR(VLOOKUP(C234,Translation!$A:$C,3,FALSE),C234)","v":"IMMEUBLES COLLECTIFS RÉSIDENTIELS"},{"$f":"IFERROR(VLOOKUP(D234,Translation!$A:$C,3,FALSE),D234)","v":"> 5 <= 10"},{"$f":"IFERROR(VLOOKUP(E234,Translation!$A:$C,3,FALSE),E234)","v":2.3400426242304686E-3},{"$f":"IFERROR(VLOOKUP(F234,Translation!$A:$C,3,FALSE),F234)","v":"Prêts hypothécaires assurés au cours de la période selon la période d’amortissement (en années) à l'initiation (%)"},{"$f":"IFERROR(VLOOKUP(G234,Translation!$A:$C,3,FALSE),G234)","v":"0.0"},{"$f":"IFERROR(VLOOKUP(H234,Translation!$A:$C,3,FALSE),H234)","v":" > 5 <= 10"}]
[28,"T4 2019","IMMEUBLES COLLECTIFS RÉSIDENTIELS","> 10 <= 15",2.9806471481404501E-2,"Prêts hypothécaires assurés au cours de la période selon la période d’amortissement (en années) à l'initiation (%)","0.0"," > 10 <= 15",{"$f":"IFERROR(VLOOKUP(A235,Translation!$A:$C,3,FALSE),A235)","v":28},{"$f":"IFERROR(VLOOKUP(B235,Translation!$A:$C,3,FALSE),B235)","v":"T4 2019"},{"$f":"IFERROR(VLOOKUP(C235,Translation!$A:$C,3,FALSE),C235)","v":"IMMEUBLES COLLECTIFS RÉSIDENTIELS"},{"$f":"IFERROR(VLOOKUP(D235,Translation!$A:$C,3,FALSE),D235)","v":"> 10 <= 15"},{"$f":"IFERROR(VLOOKUP(E235,Translation!$A:$C,3,FALSE),E235)","v":2.9806471481404501E-2},{"$f":"IFERROR(VLOOKUP(F235,Translation!$A:$C,3,FALSE),F235)","v":"Prêts hypothécaires assurés au cours de la période selon la période d’amortissement (en années) à l'initiation (%)"},{"$f":"IFERROR(VLOOKUP(G235,Translation!$A:$C,3,FALSE),G235)","v":"0.0"},{"$f":"IFERROR(VLOOKUP(H235,Translation!$A:$C,3,FALSE),H235)","v":" > 10 <= 15"}]
[28,"Cumul 2018","IMMEUBLES COLLECTIFS RÉSIDENTIELS","> 10 <= 15",0.37469326415470633,"Prêts hypothécaires assurés au cours de la période selon la période d’amortissement (en années) à l'initiation (%)","0.4"," > 10 <= 15",{"$f":"IFERROR(VLOOKUP(A236,Translation!$A:$C,3,FALSE),A236)","v":28},{"$f":"IFERROR(VLOOKUP(B236,Translation!$A:$C,3,FALSE),B236)","v":"Cumul 2018"},{"$f":"IFERROR(VLOOKUP(C236,Translation!$A:$C,3,FALSE),C236)","v":"IMMEUBLES COLLECTIFS RÉSIDENTIELS"},{"$f":"IFERROR(VLOOKUP(D236,Translation!$A:$C,3,FALSE),D236)","v":"> 10 <= 15"},{"$f":"IFERROR(VLOOKUP(E236,Translation!$A:$C,3,FALSE),E236)","v":0.37469326415470633},{"$f":"IFERROR(VLOOKUP(F236,Translation!$A:$C,3,FALSE),F236)","v":"Prêts hypothécaires assurés au cours de la période selon la période d’amortissement (en années) à l'initiation (%)"},{"$f":"IFERROR(VLOOKUP(G236,Translation!$A:$C,3,FALSE),G236)","v":"0.4"},{"$f":"IFERROR(VLOOKUP(H236,Translation!$A:$C,3,FALSE),H236)","v":" > 10 <= 15"}]
[28,"T4 2019","IMMEUBLES COLLECTIFS RÉSIDENTIELS","> 15 <= 20",0.18531511382289464,"Prêts hypothécaires assurés au cours de la période selon la période d’amortissement (en années) à l'initiation (%)","0.2"," > 15 <= 20",{"$f":"IFERROR(VLOOKUP(A237,Translation!$A:$C,3,FALSE),A237)","v":28},{"$f":"IFERROR(VLOOKUP(B237,Translation!$A:$C,3,FALSE),B237)","v":"T4 2019"},{"$f":"IFERROR(VLOOKUP(C237,Translation!$A:$C,3,FALSE),C237)","v":"IMMEUBLES COLLECTIFS RÉSIDENTIELS"},{"$f":"IFERROR(VLOOKUP(D237,Translation!$A:$C,3,FALSE),D237)","v":"> 15 <= 20"},{"$f":"IFERROR(VLOOKUP(E237,Translation!$A:$C,3,FALSE),E237)","v":0.18531511382289464},{"$f":"IFERROR(VLOOKUP(F237,Translation!$A:$C,3,FALSE),F237)","v":"Prêts hypothécaires assurés au cours de la période selon la période d’amortissement (en années) à l'initiation (%)"},{"$f":"IFERROR(VLOOKUP(G237,Translation!$A:$C,3,FALSE),G237)","v":"0.2"},{"$f":"IFERROR(VLOOKUP(H237,Translation!$A:$C,3,FALSE),H237)","v":" > 15 <= 20"}]
[28,"Cumul 2018","IMMEUBLES COLLECTIFS RÉSIDENTIELS","> 15 <= 20",1.072075463899314,"Prêts hypothécaires assurés au cours de la période selon la période d’amortissement (en années) à l'initiation (%)","1.1"," > 15 <= 20",{"$f":"IFERROR(VLOOKUP(A238,Translation!$A:$C,3,FALSE),A238)","v":28},{"$f":"IFERROR(VLOOKUP(B238,Translation!$A:$C,3,FALSE),B238)","v":"Cumul 2018"},{"$f":"IFERROR(VLOOKUP(C238,Translation!$A:$C,3,FALSE),C238)","v":"IMMEUBLES COLLECTIFS RÉSIDENTIELS"},{"$f":"IFERROR(VLOOKUP(D238,Translation!$A:$C,3,FALSE),D238)","v":"> 15 <= 20"},{"$f":"IFERROR(VLOOKUP(E238,Translation!$A:$C,3,FALSE),E238)","v":1.072075463899314},{"$f":"IFERROR(VLOOKUP(F238,Translation!$A:$C,3,FALSE),F238)","v":"Prêts hypothécaires assurés au cours de la période selon la période d’amortissement (en années) à l'initiation (%)"},{"$f":"IFERROR(VLOOKUP(G238,Translation!$A:$C,3,FALSE),G238)","v":"1.1"},{"$f":"IFERROR(VLOOKUP(H238,Translation!$A:$C,3,FALSE),H238)","v":" > 15 <= 20"}]
[28,"T4 2019","IMMEUBLES COLLECTIFS RÉSIDENTIELS","> 20 <= 25",14.91609247889016,"Prêts hypothécaires assurés au cours de la période selon la période d’amortissement (en années) à l'initiation (%)","14.9"," > 20 <= 25",{"$f":"IFERROR(VLOOKUP(A239,Translation!$A:$C,3,FALSE),A239)","v":28},{"$f":"IFERROR(VLOOKUP(B239,Translation!$A:$C,3,FALSE),B239)","v":"T4 2019"},{"$f":"IFERROR(VLOOKUP(C239,Translation!$A:$C,3,FALSE),C239)","v":"IMMEUBLES COLLECTIFS RÉSIDENTIELS"},{"$f":"IFERROR(VLOOKUP(D239,Translation!$A:$C,3,FALSE),D239)","v":"> 20 <= 25"},{"$f":"IFERROR(VLOOKUP(E239,Translation!$A:$C,3,FALSE),E239)","v":14.91609247889016},{"$f":"IFERROR(VLOOKUP(F239,Translation!$A:$C,3,FALSE),F239)","v":"Prêts hypothécaires assurés au cours de la période selon la période d’amortissement (en années) à l'initiation (%)"},{"$f":"IFERROR(VLOOKUP(G239,Translation!$A:$C,3,FALSE),G239)","v":"14.9"},{"$f":"IFERROR(VLOOKUP(H239,Translation!$A:$C,3,FALSE),H239)","v":" > 20 <= 25"}]
[28,"Cumul 2018","IMMEUBLES COLLECTIFS RÉSIDENTIELS","> 20 <= 25",22.861768429343485,"Prêts hypothécaires assurés au cours de la période selon la période d’amortissement (en années) à l'initiation (%)","22.9"," > 20 <= 25",{"$f":"IFERROR(VLOOKUP(A240,Translation!$A:$C,3,FALSE),A240)","v":28},{"$f":"IFERROR(VLOOKUP(B240,Translation!$A:$C,3,FALSE),B240)","v":"Cumul 2018"},{"$f":"IFERROR(VLOOKUP(C240,Translation!$A:$C,3,FALSE),C240)","v":"IMMEUBLES COLLECTIFS RÉSIDENTIELS"},{"$f":"IFERROR(VLOOKUP(D240,Translation!$A:$C,3,FALSE),D240)","v":"> 20 <= 25"},{"$f":"IFERROR(VLOOKUP(E240,Translation!$A:$C,3,FALSE),E240)","v":22.861768429343485},{"$f":"IFERROR(VLOOKUP(F240,Translation!$A:$C,3,FALSE),F240)","v":"Prêts hypothécaires assurés au cours de la période selon la période d’amortissement (en années) à l'initiation (%)"},{"$f":"IFERROR(VLOOKUP(G240,Translation!$A:$C,3,FALSE),G240)","v":"22.9"},{"$f":"IFERROR(VLOOKUP(H240,Translation!$A:$C,3,FALSE),H240)","v":" > 20 <= 25"}]
[28,"T4 2019","IMMEUBLES COLLECTIFS RÉSIDENTIELS","> 25 <= 30",18.025476833004653,"Prêts hypothécaires assurés au cours de la période selon la période d’amortissement (en années) à l'initiation (%)","18.0"," > 25 <= 30",{"$f":"IFERROR(VLOOKUP(A241,Translation!$A:$C,3,FALSE),A241)","v":28},{"$f":"IFERROR(VLOOKUP(B241,Translation!$A:$C,3,FALSE),B241)","v":"T4 2019"},{"$f":"IFERROR(VLOOKUP(C241,Translation!$A:$C,3,FALSE),C241)","v":"IMMEUBLES COLLECTIFS RÉSIDENTIELS"},{"$f":"IFERROR(VLOOKUP(D241,Translation!$A:$C,3,FALSE),D241)","v":"> 25 <= 30"},{"$f":"IFERROR(VLOOKUP(E241,Translation!$A:$C,3,FALSE),E241)","v":18.025476833004653},{"$f":"IFERROR(VLOOKUP(F241,Translation!$A:$C,3,FALSE),F241)","v":"Prêts hypothécaires assurés au cours de la période selon la période d’amortissement (en années) à l'initiation (%)"},{"$f":"IFERROR(VLOOKUP(G241,Translation!$A:$C,3,FALSE),G241)","v":"18.0"},{"$f":"IFERROR(VLOOKUP(H241,Translation!$A:$C,3,FALSE),H241)","v":" > 25 <= 30"}]
[28,"Cumul 2018","IMMEUBLES COLLECTIFS RÉSIDENTIELS","> 25 <= 30",28.790806653457409,"Prêts hypothécaires assurés au cours de la période selon la période d’amortissement (en années) à l'initiation (%)","28.8"," > 25 <= 30",{"$f":"IFERROR(VLOOKUP(A242,Translation!$A:$C,3,FALSE),A242)","v":28},{"$f":"IFERROR(VLOOKUP(B242,Translation!$A:$C,3,FALSE),B242)","v":"Cumul 2018"},{"$f":"IFERROR(VLOOKUP(C242,Translation!$A:$C,3,FALSE),C242)","v":"IMMEUBLES COLLECTIFS RÉSIDENTIELS"},{"$f":"IFERROR(VLOOKUP(D242,Translation!$A:$C,3,FALSE),D242)","v":"> 25 <= 30"},{"$f":"IFERROR(VLOOKUP(E242,Translation!$A:$C,3,FALSE),E242)","v":28.790806653457409},{"$f":"IFERROR(VLOOKUP(F242,Translation!$A:$C,3,FALSE),F242)","v":"Prêts hypothécaires assurés au cours de la période selon la période d’amortissement (en années) à l'initiation (%)"},{"$f":"IFERROR(VLOOKUP(G242,Translation!$A:$C,3,FALSE),G242)","v":"28.8"},{"$f":"IFERROR(VLOOKUP(H242,Translation!$A:$C,3,FALSE),H242)","v":" > 25 <= 30"}]
[28,"T4 2019","IMMEUBLES COLLECTIFS RÉSIDENTIELS","> 30 <= 35",14.817825541774347,"Prêts hypothécaires assurés au cours de la période selon la période d’amortissement (en années) à l'initiation (%)","14.8"," > 30 <= 35",{"$f":"IFERROR(VLOOKUP(A243,Translation!$A:$C,3,FALSE),A243)","v":28},{"$f":"IFERROR(VLOOKUP(B243,Translation!$A:$C,3,FALSE),B243)","v":"T4 2019"},{"$f":"IFERROR(VLOOKUP(C243,Translation!$A:$C,3,FALSE),C243)","v":"IMMEUBLES COLLECTIFS RÉSIDENTIELS"},{"$f":"IFERROR(VLOOKUP(D243,Translation!$A:$C,3,FALSE),D243)","v":"> 30 <= 35"},{"$f":"IFERROR(VLOOKUP(E243,Translation!$A:$C,3,FALSE),E243)","v":14.817825541774347},{"$f":"IFERROR(VLOOKUP(F243,Translation!$A:$C,3,FALSE),F243)","v":"Prêts hypothécaires assurés au cours de la période selon la période d’amortissement (en années) à l'initiation (%)"},{"$f":"IFERROR(VLOOKUP(G243,Translation!$A:$C,3,FALSE),G243)","v":"14.8"},{"$f":"IFERROR(VLOOKUP(H243,Translation!$A:$C,3,FALSE),H243)","v":" > 30 <= 35"}]
[28,"Cumul 2018","IMMEUBLES COLLECTIFS RÉSIDENTIELS","> 30 <= 35",23.70736935491756,"Prêts hypothécaires assurés au cours de la période selon la période d’amortissement (en années) à l'initiation (%)","23.7"," > 30 <= 35",{"$f":"IFERROR(VLOOKUP(A244,Translation!$A:$C,3,FALSE),A244)","v":28},{"$f":"IFERROR(VLOOKUP(B244,Translation!$A:$C,3,FALSE),B244)","v":"Cumul 2018"},{"$f":"IFERROR(VLOOKUP(C244,Translation!$A:$C,3,FALSE),C244)","v":"IMMEUBLES COLLECTIFS RÉSIDENTIELS"},{"$f":"IFERROR(VLOOKUP(D244,Translation!$A:$C,3,FALSE),D244)","v":"> 30 <= 35"},{"$f":"IFERROR(VLOOKUP(E244,Translation!$A:$C,3,FALSE),E244)","v":23.70736935491756},{"$f":"IFERROR(VLOOKUP(F244,Translation!$A:$C,3,FALSE),F244)","v":"Prêts hypothécaires assurés au cours de la période selon la période d’amortissement (en années) à l'initiation (%)"},{"$f":"IFERROR(VLOOKUP(G244,Translation!$A:$C,3,FALSE),G244)","v":"23.7"},{"$f":"IFERROR(VLOOKUP(H244,Translation!$A:$C,3,FALSE),H244)","v":" > 30 <= 35"}]
[28,"T4 2019","IMMEUBLES COLLECTIFS RÉSIDENTIELS","> 35",52.000487267852883,"Prêts hypothécaires assurés au cours de la période selon la période d’amortissement (en années) à l'initiation (%)","52.0"," > 35",{"$f":"IFERROR(VLOOKUP(A245,Translation!$A:$C,3,FALSE),A245)","v":28},{"$f":"IFERROR(VLOOKUP(B245,Translation!$A:$C,3,FALSE),B245)","v":"T4 2019"},{"$f":"IFERROR(VLOOKUP(C245,Translation!$A:$C,3,FALSE),C245)","v":"IMMEUBLES COLLECTIFS RÉSIDENTIELS"},{"$f":"IFERROR(VLOOKUP(D245,Translation!$A:$C,3,FALSE),D245)","v":"> 35"},{"$f":"IFERROR(VLOOKUP(E245,Translation!$A:$C,3,FALSE),E245)","v":52.000487267852883},{"$f":"IFERROR(VLOOKUP(F245,Translation!$A:$C,3,FALSE),F245)","v":"Prêts hypothécaires assurés au cours de la période selon la période d’amortissement (en années) à l'initiation (%)"},{"$f":"IFERROR(VLOOKUP(G245,Translation!$A:$C,3,FALSE),G245)","v":"52.0"},{"$f":"IFERROR(VLOOKUP(H245,Translation!$A:$C,3,FALSE),H245)","v":" > 35"}]
[28,"Cumul 2018","IMMEUBLES COLLECTIFS RÉSIDENTIELS","> 35",23.190946791603299,"Prêts hypothécaires assurés au cours de la période selon la période d’amortissement (en années) à l'initiation (%)","23.2"," > 35",{"$f":"IFERROR(VLOOKUP(A246,Translation!$A:$C,3,FALSE),A246)","v":28},{"$f":"IFERROR(VLOOKUP(B246,Translation!$A:$C,3,FALSE),B246)","v":"Cumul 2018"},{"$f":"IFERROR(VLOOKUP(C246,Translation!$A:$C,3,FALSE),C246)","v":"IMMEUBLES COLLECTIFS RÉSIDENTIELS"},{"$f":"IFERROR(VLOOKUP(D246,Translation!$A:$C,3,FALSE),D246)","v":"> 35"},{"$f":"IFERROR(VLOOKUP(E246,Translation!$A:$C,3,FALSE),E246)","v":23.190946791603299},{"$f":"IFERROR(VLOOKUP(F246,Translation!$A:$C,3,FALSE),F246)","v":"Prêts hypothécaires assurés au cours de la période selon la période d’amortissement (en années) à l'initiation (%)"},{"$f":"IFERROR(VLOOKUP(G246,Translation!$A:$C,3,FALSE),G246)","v":"23.2"},{"$f":"IFERROR(VLOOKUP(H246,Translation!$A:$C,3,FALSE),H246)","v":" > 35"}]
[28,"T4 2019","IMMEUBLES COLLECTIFS RÉSIDENTIELS","Période d’amortissement moyenne",37.057481523659128,"Prêts hypothécaires assurés au cours de la période selon la période d’amortissement (en années) à l'initiation (%)","37.1","Période d’amortissement moyenne",{"$f":"IFERROR(VLOOKUP(A247,Translation!$A:$C,3,FALSE),A247)","v":28},{"$f":"IFERROR(VLOOKUP(B247,Translation!$A:$C,3,FALSE),B247)","v":"T4 2019"},{"$f":"IFERROR(VLOOKUP(C247,Translation!$A:$C,3,FALSE),C247)","v":"IMMEUBLES COLLECTIFS RÉSIDENTIELS"},{"$f":"IFERROR(VLOOKUP(D247,Translation!$A:$C,3,FALSE),D247)","v":"Période d’amortissement moyenne"},{"$f":"IFERROR(VLOOKUP(E247,Translation!$A:$C,3,FALSE),E247)","v":37.057481523659128},{"$f":"IFERROR(VLOOKUP(F247,Translation!$A:$C,3,FALSE),F247)","v":"Prêts hypothécaires assurés au cours de la période selon la période d’amortissement (en années) à l'initiation (%)"},{"$f":"IFERROR(VLOOKUP(G247,Translation!$A:$C,3,FALSE),G247)","v":"37.1"},{"$f":"IFERROR(VLOOKUP(H247,Translation!$A:$C,3,FALSE),H247)","v":"Période d’amortissement moyenne"}]
[28,"Cumul 2018","IMMEUBLES COLLECTIFS RÉSIDENTIELS","Période d’amortissement moyenne",32.358132880012299,"Prêts hypothécaires assurés au cours de la période selon la période d’amortissement (en années) à l'initiation (%)","32.4","Période d’amortissement moyenne",{"$f":"IFERROR(VLOOKUP(A248,Translation!$A:$C,3,FALSE),A248)","v":28},{"$f":"IFERROR(VLOOKUP(B248,Translation!$A:$C,3,FALSE),B248)","v":"Cumul 2018"},{"$f":"IFERROR(VLOOKUP(C248,Translation!$A:$C,3,FALSE),C248)","v":"IMMEUBLES COLLECTIFS RÉSIDENTIELS"},{"$f":"IFERROR(VLOOKUP(D248,Translation!$A:$C,3,FALSE),D248)","v":"Période d’amortissement moyenne"},{"$f":"IFERROR(VLOOKUP(E248,Translation!$A:$C,3,FALSE),E248)","v":32.358132880012299},{"$f":"IFERROR(VLOOKUP(F248,Translation!$A:$C,3,FALSE),F248)","v":"Prêts hypothécaires assurés au cours de la période selon la période d’amortissement (en années) à l'initiation (%)"},{"$f":"IFERROR(VLOOKUP(G248,Translation!$A:$C,3,FALSE),G248)","v":"32.4"},{"$f":"IFERROR(VLOOKUP(H248,Translation!$A:$C,3,FALSE),H248)","v":"Période d’amortissement moyenne"}]
[28,"T4 2019","IMMEUBLES COLLECTIFS RÉSIDENTIELS","Terre-Neuve-et-Labrador",19.75,"Période d’amortissement moyenne selon la province","19.8","Terre-Neuve-et-Labrador",{"$f":"IFERROR(VLOOKUP(A249,Translation!$A:$C,3,FALSE),A249)","v":28},{"$f":"IFERROR(VLOOKUP(B249,Translation!$A:$C,3,FALSE),B249)","v":"T4 2019"},{"$f":"IFERROR(VLOOKUP(C249,Translation!$A:$C,3,FALSE),C249)","v":"IMMEUBLES COLLECTIFS RÉSIDENTIELS"},{"$f":"IFERROR(VLOOKUP(D249,Translation!$A:$C,3,FALSE),D249)","v":"Terre-Neuve-et-Labrador"},{"$f":"IFERROR(VLOOKUP(E249,Translation!$A:$C,3,FALSE),E249)","v":19.75},{"$f":"IFERROR(VLOOKUP(F249,Translation!$A:$C,3,FALSE),F249)","v":"Période d’amortissement moyenne selon la province"},{"$f":"IFERROR(VLOOKUP(G249,Translation!$A:$C,3,FALSE),G249)","v":"19.8"},{"$f":"IFERROR(VLOOKUP(H249,Translation!$A:$C,3,FALSE),H249)","v":"Terre-Neuve-et-Labrador"}]
[28,"T4 2019","IMMEUBLES COLLECTIFS RÉSIDENTIELS","Île-du-Prince-Édouard",40.215396787046075,"Période d’amortissement moyenne selon la province","40.2","Île-du-Prince-Édouard",{"$f":"IFERROR(VLOOKUP(A250,Translation!$A:$C,3,FALSE),A250)","v":28},{"$f":"IFERROR(VLOOKUP(B250,Translation!$A:$C,3,FALSE),B250)","v":"T4 2019"},{"$f":"IFERROR(VLOOKUP(C250,Translation!$A:$C,3,FALSE),C250)","v":"IMMEUBLES COLLECTIFS RÉSIDENTIELS"},{"$f":"IFERROR(VLOOKUP(D250,Translation!$A:$C,3,FALSE),D250)","v":"Île-du-Prince-Édouard"},{"$f":"IFERROR(VLOOKUP(E250,Translation!$A:$C,3,FALSE),E250)","v":40.215396787046075},{"$f":"IFERROR(VLOOKUP(F250,Translation!$A:$C,3,FALSE),F250)","v":"Période d’amortissement moyenne selon la province"},{"$f":"IFERROR(VLOOKUP(G250,Translation!$A:$C,3,FALSE),G250)","v":"40.2"},{"$f":"IFERROR(VLOOKUP(H250,Translation!$A:$C,3,FALSE),H250)","v":"Île-du-Prince-Édouard"}]
[28,"T4 2019","IMMEUBLES COLLECTIFS RÉSIDENTIELS","Nouvelle-Écosse",32.543378337083794,"Période d’amortissement moyenne selon la province","32.5","Nouvelle-Écosse",{"$f":"IFERROR(VLOOKUP(A251,Translation!$A:$C,3,FALSE),A251)","v":28},{"$f":"IFERROR(VLOOKUP(B251,Translation!$A:$C,3,FALSE),B251)","v":"T4 2019"},{"$f":"IFERROR(VLOOKUP(C251,Translation!$A:$C,3,FALSE),C251)","v":"IMMEUBLES COLLECTIFS RÉSIDENTIELS"},{"$f":"IFERROR(VLOOKUP(D251,Translation!$A:$C,3,FALSE),D251)","v":"Nouvelle-Écosse"},{"$f":"IFERROR(VLOOKUP(E251,Translation!$A:$C,3,FALSE),E251)","v":32.543378337083794},{"$f":"IFERROR(VLOOKUP(F251,Translation!$A:$C,3,FALSE),F251)","v":"Période d’amortissement moyenne selon la province"},{"$f":"IFERROR(VLOOKUP(G251,Translation!$A:$C,3,FALSE),G251)","v":"32.5"},{"$f":"IFERROR(VLOOKUP(H251,Translation!$A:$C,3,FALSE),H251)","v":"Nouvelle-Écosse"}]
[28,"T4 2019","IMMEUBLES COLLECTIFS RÉSIDENTIELS","Nouveau-Brunswick",28.474645882534599,"Période d’amortissement moyenne selon la province","28.5","Nouveau-Brunswick",{"$f":"IFERROR(VLOOKUP(A252,Translation!$A:$C,3,FALSE),A252)","v":28},{"$f":"IFERROR(VLOOKUP(B252,Translation!$A:$C,3,FALSE),B252)","v":"T4 2019"},{"$f":"IFERROR(VLOOKUP(C252,Translation!$A:$C,3,FALSE),C252)","v":"IMMEUBLES COLLECTIFS RÉSIDENTIELS"},{"$f":"IFERROR(VLOOKUP(D252,Translation!$A:$C,3,FALSE),D252)","v":"Nouveau-Brunswick"},{"$f":"IFERROR(VLOOKUP(E252,Translation!$A:$C,3,FALSE),E252)","v":28.474645882534599},{"$f":"IFERROR(VLOOKUP(F252,Translation!$A:$C,3,FALSE),F252)","v":"Période d’amortissement moyenne selon la province"},{"$f":"IFERROR(VLOOKUP(G252,Translation!$A:$C,3,FALSE),G252)","v":"28.5"},{"$f":"IFERROR(VLOOKUP(H252,Translation!$A:$C,3,FALSE),H252)","v":"Nouveau-Brunswick"}]
[28,"T4 2019","IMMEUBLES COLLECTIFS RÉSIDENTIELS","Québec",36.080378421707024,"Période d’amortissement moyenne selon la province","36.1","Québec",{"$f":"IFERROR(VLOOKUP(A253,Translation!$A:$C,3,FALSE),A253)","v":28},{"$f":"IFERROR(VLOOKUP(B253,Translation!$A:$C,3,FALSE),B253)","v":"T4 2019"},{"$f":"IFERROR(VLOOKUP(C253,Translation!$A:$C,3,FALSE),C253)","v":"IMMEUBLES COLLECTIFS RÉSIDENTIELS"},{"$f":"IFERROR(VLOOKUP(D253,Translation!$A:$C,3,FALSE),D253)","v":"Québec"},{"$f":"IFERROR(VLOOKUP(E253,Translation!$A:$C,3,FALSE),E253)","v":36.080378421707024},{"$f":"IFERROR(VLOOKUP(F253,Translation!$A:$C,3,FALSE),F253)","v":"Période d’amortissement moyenne selon la province"},{"$f":"IFERROR(VLOOKUP(G253,Translation!$A:$C,3,FALSE),G253)","v":"36.1"},{"$f":"IFERROR(VLOOKUP(H253,Translation!$A:$C,3,FALSE),H253)","v":"Québec"}]
[28,"T4 2019","IMMEUBLES COLLECTIFS RÉSIDENTIELS","Ontario",40.159796951840633,"Période d’amortissement moyenne selon la province","40.2","Ontario",{"$f":"IFERROR(VLOOKUP(A254,Translation!$A:$C,3,FALSE),A254)","v":28},{"$f":"IFERROR(VLOOKUP(B254,Translation!$A:$C,3,FALSE),B254)","v":"T4 2019"},{"$f":"IFERROR(VLOOKUP(C254,Translation!$A:$C,3,FALSE),C254)","v":"IMMEUBLES COLLECTIFS RÉSIDENTIELS"},{"$f":"IFERROR(VLOOKUP(D254,Translation!$A:$C,3,FALSE),D254)","v":"Ontario"},{"$f":"IFERROR(VLOOKUP(E254,Translation!$A:$C,3,FALSE),E254)","v":40.159796951840633},{"$f":"IFERROR(VLOOKUP(F254,Translation!$A:$C,3,FALSE),F254)","v":"Période d’amortissement moyenne selon la province"},{"$f":"IFERROR(VLOOKUP(G254,Translation!$A:$C,3,FALSE),G254)","v":"40.2"},{"$f":"IFERROR(VLOOKUP(H254,Translation!$A:$C,3,FALSE),H254)","v":"Ontario"}]
[28,"T4 2019","IMMEUBLES COLLECTIFS RÉSIDENTIELS","Manitoba",33.839118632486056,"Période d’amortissement moyenne selon la province","33.8","Manitoba",{"$f":"IFERROR(VLOOKUP(A255,Translation!$A:$C,3,FALSE),A255)","v":28},{"$f":"IFERROR(VLOOKUP(B255,Translation!$A:$C,3,FALSE),B255)","v":"T4 2019"},{"$f":"IFERROR(VLOOKUP(C255,Translation!$A:$C,3,FALSE),C255)","v":"IMMEUBLES COLLECTIFS RÉSIDENTIELS"},{"$f":"IFERROR(VLOOKUP(D255,Translation!$A:$C,3,FALSE),D255)","v":"Manitoba"},{"$f":"IFERROR(VLOOKUP(E255,Translation!$A:$C,3,FALSE),E255)","v":33.839118632486056},{"$f":"IFERROR(VLOOKUP(F255,Translation!$A:$C,3,FALSE),F255)","v":"Période d’amortissement moyenne selon la province"},{"$f":"IFERROR(VLOOKUP(G255,Translation!$A:$C,3,FALSE),G255)","v":"33.8"},{"$f":"IFERROR(VLOOKUP(H255,Translation!$A:$C,3,FALSE),H255)","v":"Manitoba"}]
[28,"T4 2019","IMMEUBLES COLLECTIFS RÉSIDENTIELS","Saskatchewan",39.200140806575376,"Période d’amortissement moyenne selon la province","39.2","Saskatchewan",{"$f":"IFERROR(VLOOKUP(A256,Translation!$A:$C,3,FALSE),A256)","v":28},{"$f":"IFERROR(VLOOKUP(B256,Translation!$A:$C,3,FALSE),B256)","v":"T4 2019"},{"$f":"IFERROR(VLOOKUP(C256,Translation!$A:$C,3,FALSE),C256)","v":"IMMEUBLES COLLECTIFS RÉSIDENTIELS"},{"$f":"IFERROR(VLOOKUP(D256,Translation!$A:$C,3,FALSE),D256)","v":"Saskatchewan"},{"$f":"IFERROR(VLOOKUP(E256,Translation!$A:$C,3,FALSE),E256)","v":39.200140806575376},{"$f":"IFERROR(VLOOKUP(F256,Translation!$A:$C,3,FALSE),F256)","v":"Période d’amortissement moyenne selon la province"},{"$f":"IFERROR(VLOOKUP(G256,Translation!$A:$C,3,FALSE),G256)","v":"39.2"},{"$f":"IFERROR(VLOOKUP(H256,Translation!$A:$C,3,FALSE),H256)","v":"Saskatchewan"}]
[28,"T4 2019","IMMEUBLES COLLECTIFS RÉSIDENTIELS","Alberta",31.830645406016288,"Période d’amortissement moyenne selon la province","31.8","Alberta",{"$f":"IFERROR(VLOOKUP(A257,Translation!$A:$C,3,FALSE),A257)","v":28},{"$f":"IFERROR(VLOOKUP(B257,Translation!$A:$C,3,FALSE),B257)","v":"T4 2019"},{"$f":"IFERROR(VLOOKUP(C257,Translation!$A:$C,3,FALSE),C257)","v":"IMMEUBLES COLLECTIFS RÉSIDENTIELS"},{"$f":"IFERROR(VLOOKUP(D257,Translation!$A:$C,3,FALSE),D257)","v":"Alberta"},{"$f":"IFERROR(VLOOKUP(E257,Translation!$A:$C,3,FALSE),E257)","v":31.830645406016288},{"$f":"IFERROR(VLOOKUP(F257,Translation!$A:$C,3,FALSE),F257)","v":"Période d’amortissement moyenne selon la province"},{"$f":"IFERROR(VLOOKUP(G257,Translation!$A:$C,3,FALSE),G257)","v":"31.8"},{"$f":"IFERROR(VLOOKUP(H257,Translation!$A:$C,3,FALSE),H257)","v":"Alberta"}]
[28,"T4 2019","IMMEUBLES COLLECTIFS RÉSIDENTIELS","Colombie-Britannique",32.792165882987241,"Période d’amortissement moyenne selon la province","32.8","Colombie-Britannique",{"$f":"IFERROR(VLOOKUP(A258,Translation!$A:$C,3,FALSE),A258)","v":28},{"$f":"IFERROR(VLOOKUP(B258,Translation!$A:$C,3,FALSE),B258)","v":"T4 2019"},{"$f":"IFERROR(VLOOKUP(C258,Translation!$A:$C,3,FALSE),C258)","v":"IMMEUBLES COLLECTIFS RÉSIDENTIELS"},{"$f":"IFERROR(VLOOKUP(D258,Translation!$A:$C,3,FALSE),D258)","v":"Colombie-Britannique"},{"$f":"IFERROR(VLOOKUP(E258,Translation!$A:$C,3,FALSE),E258)","v":32.792165882987241},{"$f":"IFERROR(VLOOKUP(F258,Translation!$A:$C,3,FALSE),F258)","v":"Période d’amortissement moyenne selon la province"},{"$f":"IFERROR(VLOOKUP(G258,Translation!$A:$C,3,FALSE),G258)","v":"32.8"},{"$f":"IFERROR(VLOOKUP(H258,Translation!$A:$C,3,FALSE),H258)","v":"Colombie-Britannique"}]
[28,"T4 2019","IMMEUBLES COLLECTIFS RÉSIDENTIELS","Territoires",33.788480204612618,"Période d’amortissement moyenne selon la province","33.8","Territoires",{"$f":"IFERROR(VLOOKUP(A259,Translation!$A:$C,3,FALSE),A259)","v":28},{"$f":"IFERROR(VLOOKUP(B259,Translation!$A:$C,3,FALSE),B259)","v":"T4 2019"},{"$f":"IFERROR(VLOOKUP(C259,Translation!$A:$C,3,FALSE),C259)","v":"IMMEUBLES COLLECTIFS RÉSIDENTIELS"},{"$f":"IFERROR(VLOOKUP(D259,Translation!$A:$C,3,FALSE),D259)","v":"Territoires"},{"$f":"IFERROR(VLOOKUP(E259,Translation!$A:$C,3,FALSE),E259)","v":33.788480204612618},{"$f":"IFERROR(VLOOKUP(F259,Translation!$A:$C,3,FALSE),F259)","v":"Période d’amortissement moyenne selon la province"},{"$f":"IFERROR(VLOOKUP(G259,Translation!$A:$C,3,FALSE),G259)","v":"33.8"},{"$f":"IFERROR(VLOOKUP(H259,Translation!$A:$C,3,FALSE),H259)","v":"Territoires"}]
[28,"Cumul 2018","IMMEUBLES COLLECTIFS RÉSIDENTIELS","Terre-Neuve-et-Labrador",26.157420862376021,"Période d’amortissement moyenne selon la province","26.2","Terre-Neuve-et-Labrador",{"$f":"IFERROR(VLOOKUP(A260,Translation!$A:$C,3,FALSE),A260)","v":28},{"$f":"IFERROR(VLOOKUP(B260,Translation!$A:$C,3,FALSE),B260)","v":"Cumul 2018"},{"$f":"IFERROR(VLOOKUP(C260,Translation!$A:$C,3,FALSE),C260)","v":"IMMEUBLES COLLECTIFS RÉSIDENTIELS"},{"$f":"IFERROR(VLOOKUP(D260,Translation!$A:$C,3,FALSE),D260)","v":"Terre-Neuve-et-Labrador"},{"$f":"IFERROR(VLOOKUP(E260,Translation!$A:$C,3,FALSE),E260)","v":26.157420862376021},{"$f":"IFERROR(VLOOKUP(F260,Translation!$A:$C,3,FALSE),F260)","v":"Période d’amortissement moyenne selon la province"},{"$f":"IFERROR(VLOOKUP(G260,Translation!$A:$C,3,FALSE),G260)","v":"26.2"},{"$f":"IFERROR(VLOOKUP(H260,Translation!$A:$C,3,FALSE),H260)","v":"Terre-Neuve-et-Labrador"}]
[28,"Cumul 2018","IMMEUBLES COLLECTIFS RÉSIDENTIELS","Île-du-Prince-Édouard",26.611010767403062,"Période d’amortissement moyenne selon la province","26.6","Île-du-Prince-Édouard",{"$f":"IFERROR(VLOOKUP(A261,Translation!$A:$C,3,FALSE),A261)","v":28},{"$f":"IFERROR(VLOOKUP(B261,Translation!$A:$C,3,FALSE),B261)","v":"Cumul 2018"},{"$f":"IFERROR(VLOOKUP(C261,Translation!$A:$C,3,FALSE),C261)","v":"IMMEUBLES COLLECTIFS RÉSIDENTIELS"},{"$f":"IFERROR(VLOOKUP(D261,Translation!$A:$C,3,FALSE),D261)","v":"Île-du-Prince-Édouard"},{"$f":"IFERROR(VLOOKUP(E261,Translation!$A:$C,3,FALSE),E261)","v":26.611010767403062},{"$f":"IFERROR(VLOOKUP(F261,Translation!$A:$C,3,FALSE),F261)","v":"Période d’amortissement moyenne selon la province"},{"$f":"IFERROR(VLOOKUP(G261,Translation!$A:$C,3,FALSE),G261)","v":"26.6"},{"$f":"IFERROR(VLOOKUP(H261,Translation!$A:$C,3,FALSE),H261)","v":"Île-du-Prince-Édouard"}]
[28,"Cumul 2018","IMMEUBLES COLLECTIFS RÉSIDENTIELS","Nouvelle-Écosse",32.549115716143881,"Période d’amortissement moyenne selon la province","32.5","Nouvelle-Écosse",{"$f":"IFERROR(VLOOKUP(A262,Translation!$A:$C,3,FALSE),A262)","v":28},{"$f":"IFERROR(VLOOKUP(B262,Translation!$A:$C,3,FALSE),B262)","v":"Cumul 2018"},{"$f":"IFERROR(VLOOKUP(C262,Translation!$A:$C,3,FALSE),C262)","v":"IMMEUBLES COLLECTIFS RÉSIDENTIELS"},{"$f":"IFERROR(VLOOKUP(D262,Translation!$A:$C,3,FALSE),D262)","v":"Nouvelle-Écosse"},{"$f":"IFERROR(VLOOKUP(E262,Translation!$A:$C,3,FALSE),E262)","v":32.549115716143881},{"$f":"IFERROR(VLOOKUP(F262,Translation!$A:$C,3,FALSE),F262)","v":"Période d’amortissement moyenne selon la province"},{"$f":"IFERROR(VLOOKUP(G262,Translation!$A:$C,3,FALSE),G262)","v":"32.5"},{"$f":"IFERROR(VLOOKUP(H262,Translation!$A:$C,3,FALSE),H262)","v":"Nouvelle-Écosse"}]
[28,"Cumul 2018","IMMEUBLES COLLECTIFS RÉSIDENTIELS","Nouveau-Brunswick",30.765450692557899,"Période d’amortissement moyenne selon la province","30.8","Nouveau-Brunswick",{"$f":"IFERROR(VLOOKUP(A263,Translation!$A:$C,3,FALSE),A263)","v":28},{"$f":"IFERROR(VLOOKUP(B263,Translation!$A:$C,3,FALSE),B263)","v":"Cumul 2018"},{"$f":"IFERROR(VLOOKUP(C263,Translation!$A:$C,3,FALSE),C263)","v":"IMMEUBLES COLLECTIFS RÉSIDENTIELS"},{"$f":"IFERROR(VLOOKUP(D263,Translation!$A:$C,3,FALSE),D263)","v":"Nouveau-Brunswick"},{"$f":"IFERROR(VLOOKUP(E263,Translation!$A:$C,3,FALSE),E263)","v":30.765450692557899},{"$f":"IFERROR(VLOOKUP(F263,Translation!$A:$C,3,FALSE),F263)","v":"Période d’amortissement moyenne selon la province"},{"$f":"IFERROR(VLOOKUP(G263,Translation!$A:$C,3,FALSE),G263)","v":"30.8"},{"$f":"IFERROR(VLOOKUP(H263,Translation!$A:$C,3,FALSE),H263)","v":"Nouveau-Brunswick"}]
[28,"Cumul 2018","IMMEUBLES COLLECTIFS RÉSIDENTIELS","Québec",33.176247388924246,"Période d’amortissement moyenne selon la province","33.2","Québec",{"$f":"IFERROR(VLOOKUP(A264,Translation!$A:$C,3,FALSE),A264)","v":28},{"$f":"IFERROR(VLOOKUP(B264,Translation!$A:$C,3,FALSE),B264)","v":"Cumul 2018"},{"$f":"IFERROR(VLOOKUP(C264,Translation!$A:$C,3,FALSE),C264)","v":"IMMEUBLES COLLECTIFS RÉSIDENTIELS"},{"$f":"IFERROR(VLOOKUP(D264,Translation!$A:$C,3,FALSE),D264)","v":"Québec"},{"$f":"IFERROR(VLOOKUP(E264,Translation!$A:$C,3,FALSE),E264)","v":33.176247388924246},{"$f":"IFERROR(VLOOKUP(F264,Translation!$A:$C,3,FALSE),F264)","v":"Période d’amortissement moyenne selon la province"},{"$f":"IFERROR(VLOOKUP(G264,Translation!$A:$C,3,FALSE),G264)","v":"33.2"},{"$f":"IFERROR(VLOOKUP(H264,Translation!$A:$C,3,FALSE),H264)","v":"Québec"}]
[28,"Cumul 2018","IMMEUBLES COLLECTIFS RÉSIDENTIELS","Ontario",31.012526604663577,"Période d’amortissement moyenne selon la province","31.0","Ontario",{"$f":"IFERROR(VLOOKUP(A265,Translation!$A:$C,3,FALSE),A265)","v":28},{"$f":"IFERROR(VLOOKUP(B265,Translation!$A:$C,3,FALSE),B265)","v":"Cumul 2018"},{"$f":"IFERROR(VLOOKUP(C265,Translation!$A:$C,3,FALSE),C265)","v":"IMMEUBLES COLLECTIFS RÉSIDENTIELS"},{"$f":"IFERROR(VLOOKUP(D265,Translation!$A:$C,3,FALSE),D265)","v":"Ontario"},{"$f":"IFERROR(VLOOKUP(E265,Translation!$A:$C,3,FALSE),E265)","v":31.012526604663577},{"$f":"IFERROR(VLOOKUP(F265,Translation!$A:$C,3,FALSE),F265)","v":"Période d’amortissement moyenne selon la province"},{"$f":"IFERROR(VLOOKUP(G265,Translation!$A:$C,3,FALSE),G265)","v":"31.0"},{"$f":"IFERROR(VLOOKUP(H265,Translation!$A:$C,3,FALSE),H265)","v":"Ontario"}]
[28,"Cumul 2018","IMMEUBLES COLLECTIFS RÉSIDENTIELS","Manitoba",31.8073181029979,"Période d’amortissement moyenne selon la province","31.8","Manitoba",{"$f":"IFERROR(VLOOKUP(A266,Translation!$A:$C,3,FALSE),A266)","v":28},{"$f":"IFERROR(VLOOKUP(B266,Translation!$A:$C,3,FALSE),B266)","v":"Cumul 2018"},{"$f":"IFERROR(VLOOKUP(C266,Translation!$A:$C,3,FALSE),C266)","v":"IMMEUBLES COLLECTIFS RÉSIDENTIELS"},{"$f":"IFERROR(VLOOKUP(D266,Translation!$A:$C,3,FALSE),D266)","v":"Manitoba"},{"$f":"IFERROR(VLOOKUP(E266,Translation!$A:$C,3,FALSE),E266)","v":31.8073181029979},{"$f":"IFERROR(VLOOKUP(F266,Translation!$A:$C,3,FALSE),F266)","v":"Période d’amortissement moyenne selon la province"},{"$f":"IFERROR(VLOOKUP(G266,Translation!$A:$C,3,FALSE),G266)","v":"31.8"},{"$f":"IFERROR(VLOOKUP(H266,Translation!$A:$C,3,FALSE),H266)","v":"Manitoba"}]
[28,"Cumul 2018","IMMEUBLES COLLECTIFS RÉSIDENTIELS","Saskatchewan",34.321021161049849,"Période d’amortissement moyenne selon la province","34.3","Saskatchewan",{"$f":"IFERROR(VLOOKUP(A267,Translation!$A:$C,3,FALSE),A267)","v":28},{"$f":"IFERROR(VLOOKUP(B267,Translation!$A:$C,3,FALSE),B267)","v":"Cumul 2018"},{"$f":"IFERROR(VLOOKUP(C267,Translation!$A:$C,3,FALSE),C267)","v":"IMMEUBLES COLLECTIFS RÉSIDENTIELS"},{"$f":"IFERROR(VLOOKUP(D267,Translation!$A:$C,3,FALSE),D267)","v":"Saskatchewan"},{"$f":"IFERROR(VLOOKUP(E267,Translation!$A:$C,3,FALSE),E267)","v":34.321021161049849},{"$f":"IFERROR(VLOOKUP(F267,Translation!$A:$C,3,FALSE),F267)","v":"Période d’amortissement moyenne selon la province"},{"$f":"IFERROR(VLOOKUP(G267,Translation!$A:$C,3,FALSE),G267)","v":"34.3"},{"$f":"IFERROR(VLOOKUP(H267,Translation!$A:$C,3,FALSE),H267)","v":"Saskatchewan"}]
[28,"Cumul 2018","IMMEUBLES COLLECTIFS RÉSIDENTIELS","Alberta",33.045894767451649,"Période d’amortissement moyenne selon la province","33.0","Alberta",{"$f":"IFERROR(VLOOKUP(A268,Translation!$A:$C,3,FALSE),A268)","v":28},{"$f":"IFERROR(VLOOKUP(B268,Translation!$A:$C,3,FALSE),B268)","v":"Cumul 2018"},{"$f":"IFERROR(VLOOKUP(C268,Translation!$A:$C,3,FALSE),C268)","v":"IMMEUBLES COLLECTIFS RÉSIDENTIELS"},{"$f":"IFERROR(VLOOKUP(D268,Translation!$A:$C,3,FALSE),D268)","v":"Alberta"},{"$f":"IFERROR(VLOOKUP(E268,Translation!$A:$C,3,FALSE),E268)","v":33.045894767451649},{"$f":"IFERROR(VLOOKUP(F268,Translation!$A:$C,3,FALSE),F268)","v":"Période d’amortissement moyenne selon la province"},{"$f":"IFERROR(VLOOKUP(G268,Translation!$A:$C,3,FALSE),G268)","v":"33.0"},{"$f":"IFERROR(VLOOKUP(H268,Translation!$A:$C,3,FALSE),H268)","v":"Alberta"}]
[28,"Cumul 2018","IMMEUBLES COLLECTIFS RÉSIDENTIELS","Colombie-Britannique",34.230640542194998,"Période d’amortissement moyenne selon la province","34.2","Colombie-Britannique",{"$f":"IFERROR(VLOOKUP(A269,Translation!$A:$C,3,FALSE),A269)","v":28},{"$f":"IFERROR(VLOOKUP(B269,Translation!$A:$C,3,FALSE),B269)","v":"Cumul 2018"},{"$f":"IFERROR(VLOOKUP(C269,Translation!$A:$C,3,FALSE),C269)","v":"IMMEUBLES COLLECTIFS RÉSIDENTIELS"},{"$f":"IFERROR(VLOOKUP(D269,Translation!$A:$C,3,FALSE),D269)","v":"Colombie-Britannique"},{"$f":"IFERROR(VLOOKUP(E269,Translation!$A:$C,3,FALSE),E269)","v":34.230640542194998},{"$f":"IFERROR(VLOOKUP(F269,Translation!$A:$C,3,FALSE),F269)","v":"Période d’amortissement moyenne selon la province"},{"$f":"IFERROR(VLOOKUP(G269,Translation!$A:$C,3,FALSE),G269)","v":"34.2"},{"$f":"IFERROR(VLOOKUP(H269,Translation!$A:$C,3,FALSE),H269)","v":"Colombie-Britannique"}]
[28,"Cumul 2018","IMMEUBLES COLLECTIFS RÉSIDENTIELS","Territoires",28.089068058661521,"Période d’amortissement moyenne selon la province","28.1","Territoires",{"$f":"IFERROR(VLOOKUP(A270,Translation!$A:$C,3,FALSE),A270)","v":28},{"$f":"IFERROR(VLOOKUP(B270,Translation!$A:$C,3,FALSE),B270)","v":"Cumul 2018"},{"$f":"IFERROR(VLOOKUP(C270,Translation!$A:$C,3,FALSE),C270)","v":"IMMEUBLES COLLECTIFS RÉSIDENTIELS"},{"$f":"IFERROR(VLOOKUP(D270,Translation!$A:$C,3,FALSE),D270)","v":"Territoires"},{"$f":"IFERROR(VLOOKUP(E270,Translation!$A:$C,3,FALSE),E270)","v":28.089068058661521},{"$f":"IFERROR(VLOOKUP(F270,Translation!$A:$C,3,FALSE),F270)","v":"Période d’amortissement moyenne selon la province"},{"$f":"IFERROR(VLOOKUP(G270,Translation!$A:$C,3,FALSE),G270)","v":"28.1"},{"$f":"IFERROR(VLOOKUP(H270,Translation!$A:$C,3,FALSE),H270)","v":"Territoires"}]
[10,"T3 2019","PROPRIÉTAIRES-OCCUPANTS, À L’UNITÉ","<= 5",3.9213895849560063E-3,"Prêts hypothécaires assurés au cours de la période selon la période d’amortissement (en années) à l'initiation (%)","0.0"," <= 5",{"$f":"IFERROR(VLOOKUP(A271,Translation!$A:$C,3,FALSE),A271)","v":10},{"$f":"IFERROR(VLOOKUP(B271,Translation!$A:$C,3,FALSE),B271)","v":"T3 2019"},{"$f":"IFERROR(VLOOKUP(C271,Translation!$A:$C,3,FALSE),C271)","v":"PROPRIÉTAIRES-OCCUPANTS, À L’UNITÉ"},{"$f":"IFERROR(VLOOKUP(D271,Translation!$A:$C,3,FALSE),D271)","v":"<= 5"},{"$f":"IFERROR(VLOOKUP(E271,Translation!$A:$C,3,FALSE),E271)","v":3.9213895849560063E-3},{"$f":"IFERROR(VLOOKUP(F271,Translation!$A:$C,3,FALSE),F271)","v":"Prêts hypothécaires assurés au cours de la période selon la période d’amortissement (en années) à l'initiation (%)"},{"$f":"IFERROR(VLOOKUP(G271,Translation!$A:$C,3,FALSE),G271)","v":"0.0"},{"$f":"IFERROR(VLOOKUP(H271,Translation!$A:$C,3,FALSE),H271)","v":" <= 5"}]
[10,"T3 2019","PROPRIÉTAIRES-OCCUPANTS, À L’UNITÉ","> 5 <= 10",4.6387931989942559E-2,"Prêts hypothécaires assurés au cours de la période selon la période d’amortissement (en années) à l'initiation (%)","0.0"," > 5 <= 10",{"$f":"IFERROR(VLOOKUP(A272,Translation!$A:$C,3,FALSE),A272)","v":10},{"$f":"IFERROR(VLOOKUP(B272,Translation!$A:$C,3,FALSE),B272)","v":"T3 2019"},{"$f":"IFERROR(VLOOKUP(C272,Translation!$A:$C,3,FALSE),C272)","v":"PROPRIÉTAIRES-OCCUPANTS, À L’UNITÉ"},{"$f":"IFERROR(VLOOKUP(D272,Translation!$A:$C,3,FALSE),D272)","v":"> 5 <= 10"},{"$f":"IFERROR(VLOOKUP(E272,Translation!$A:$C,3,FALSE),E272)","v":4.6387931989942559E-2},{"$f":"IFERROR(VLOOKUP(F272,Translation!$A:$C,3,FALSE),F272)","v":"Prêts hypothécaires assurés au cours de la période selon la période d’amortissement (en années) à l'initiation (%)"},{"$f":"IFERROR(VLOOKUP(G272,Translation!$A:$C,3,FALSE),G272)","v":"0.0"},{"$f":"IFERROR(VLOOKUP(H272,Translation!$A:$C,3,FALSE),H272)","v":" > 5 <= 10"}]
[10,"T3 2019","PROPRIÉTAIRES-OCCUPANTS, À L’UNITÉ","> 10 <= 15",0.17912794828576678,"Prêts hypothécaires assurés au cours de la période selon la période d’amortissement (en années) à l'initiation (%)","0.2"," > 10 <= 15",{"$f":"IFERROR(VLOOKUP(A273,Translation!$A:$C,3,FALSE),A273)","v":10},{"$f":"IFERROR(VLOOKUP(B273,Translation!$A:$C,3,FALSE),B273)","v":"T3 2019"},{"$f":"IFERROR(VLOOKUP(C273,Translation!$A:$C,3,FALSE),C273)","v":"PROPRIÉTAIRES-OCCUPANTS, À L’UNITÉ"},{"$f":"IFERROR(VLOOKUP(D273,Translation!$A:$C,3,FALSE),D273)","v":"> 10 <= 15"},{"$f":"IFERROR(VLOOKUP(E273,Translation!$A:$C,3,FALSE),E273)","v":0.17912794828576678},{"$f":"IFERROR(VLOOKUP(F273,Translation!$A:$C,3,FALSE),F273)","v":"Prêts hypothécaires assurés au cours de la période selon la période d’amortissement (en années) à l'initiation (%)"},{"$f":"IFERROR(VLOOKUP(G273,Translation!$A:$C,3,FALSE),G273)","v":"0.2"},{"$f":"IFERROR(VLOOKUP(H273,Translation!$A:$C,3,FALSE),H273)","v":" > 10 <= 15"}]
[10,"T3 2019","PROPRIÉTAIRES-OCCUPANTS, À L’UNITÉ","> 15 <= 20",0.83635930418796556,"Prêts hypothécaires assurés au cours de la période selon la période d’amortissement (en années) à l'initiation (%)","0.8"," > 15 <= 20",{"$f":"IFERROR(VLOOKUP(A274,Translation!$A:$C,3,FALSE),A274)","v":10},{"$f":"IFERROR(VLOOKUP(B274,Translation!$A:$C,3,FALSE),B274)","v":"T3 2019"},{"$f":"IFERROR(VLOOKUP(C274,Translation!$A:$C,3,FALSE),C274)","v":"PROPRIÉTAIRES-OCCUPANTS, À L’UNITÉ"},{"$f":"IFERROR(VLOOKUP(D274,Translation!$A:$C,3,FALSE),D274)","v":"> 15 <= 20"},{"$f":"IFERROR(VLOOKUP(E274,Translation!$A:$C,3,FALSE),E274)","v":0.83635930418796556},{"$f":"IFERROR(VLOOKUP(F274,Translation!$A:$C,3,FALSE),F274)","v":"Prêts hypothécaires assurés au cours de la période selon la période d’amortissement (en années) à l'initiation (%)"},{"$f":"IFERROR(VLOOKUP(G274,Translation!$A:$C,3,FALSE),G274)","v":"0.8"},{"$f":"IFERROR(VLOOKUP(H274,Translation!$A:$C,3,FALSE),H274)","v":" > 15 <= 20"}]
[10,"T3 2019","PROPRIÉTAIRES-OCCUPANTS, À L’UNITÉ","> 20 <= 25",98.934203425951381,"Prêts hypothécaires assurés au cours de la période selon la période d’amortissement (en années) à l'initiation (%)","98.9"," > 20 <= 25",{"$f":"IFERROR(VLOOKUP(A275,Translation!$A:$C,3,FALSE),A275)","v":10},{"$f":"IFERROR(VLOOKUP(B275,Translation!$A:$C,3,FALSE),B275)","v":"T3 2019"},{"$f":"IFERROR(VLOOKUP(C275,Translation!$A:$C,3,FALSE),C275)","v":"PROPRIÉTAIRES-OCCUPANTS, À L’UNITÉ"},{"$f":"IFERROR(VLOOKUP(D275,Translation!$A:$C,3,FALSE),D275)","v":"> 20 <= 25"},{"$f":"IFERROR(VLOOKUP(E275,Translation!$A:$C,3,FALSE),E275)","v":98.934203425951381},{"$f":"IFERROR(VLOOKUP(F275,Translation!$A:$C,3,FALSE),F275)","v":"Prêts hypothécaires assurés au cours de la période selon la période d’amortissement (en années) à l'initiation (%)"},{"$f":"IFERROR(VLOOKUP(G275,Translation!$A:$C,3,FALSE),G275)","v":"98.9"},{"$f":"IFERROR(VLOOKUP(H275,Translation!$A:$C,3,FALSE),H275)","v":" > 20 <= 25"}]
[10,"T3 2019","PROPRIÉTAIRES-OCCUPANTS, À L’UNITÉ","Période d’amortissement moyenne",24.868975640013421,"Prêts hypothécaires assurés au cours de la période selon la période d’amortissement (en années) à l'initiation (%)","24.9","Période d’amortissement moyenne",{"$f":"IFERROR(VLOOKUP(A276,Translation!$A:$C,3,FALSE),A276)","v":10},{"$f":"IFERROR(VLOOKUP(B276,Translation!$A:$C,3,FALSE),B276)","v":"T3 2019"},{"$f":"IFERROR(VLOOKUP(C276,Translation!$A:$C,3,FALSE),C276)","v":"PROPRIÉTAIRES-OCCUPANTS, À L’UNITÉ"},{"$f":"IFERROR(VLOOKUP(D276,Translation!$A:$C,3,FALSE),D276)","v":"Période d’amortissement moyenne"},{"$f":"IFERROR(VLOOKUP(E276,Translation!$A:$C,3,FALSE),E276)","v":24.868975640013421},{"$f":"IFERROR(VLOOKUP(F276,Translation!$A:$C,3,FALSE),F276)","v":"Prêts hypothécaires assurés au cours de la période selon la période d’amortissement (en années) à l'initiation (%)"},{"$f":"IFERROR(VLOOKUP(G276,Translation!$A:$C,3,FALSE),G276)","v":"24.9"},{"$f":"IFERROR(VLOOKUP(H276,Translation!$A:$C,3,FALSE),H276)","v":"Période d’amortissement moyenne"}]
[10,"T3 2019","PROPRIÉTAIRES-OCCUPANTS, À L’UNITÉ","Terre-Neuve-et-Labrador",24.785847090074764,"Période d’amortissement moyenne selon la province","24.8","Terre-Neuve-et-Labrador",{"$f":"IFERROR(VLOOKUP(A277,Translation!$A:$C,3,FALSE),A277)","v":10},{"$f":"IFERROR(VLOOKUP(B277,Translation!$A:$C,3,FALSE),B277)","v":"T3 2019"},{"$f":"IFERROR(VLOOKUP(C277,Translation!$A:$C,3,FALSE),C277)","v":"PROPRIÉTAIRES-OCCUPANTS, À L’UNITÉ"},{"$f":"IFERROR(VLOOKUP(D277,Translation!$A:$C,3,FALSE),D277)","v":"Terre-Neuve-et-Labrador"},{"$f":"IFERROR(VLOOKUP(E277,Translation!$A:$C,3,FALSE),E277)","v":24.785847090074764},{"$f":"IFERROR(VLOOKUP(F277,Translation!$A:$C,3,FALSE),F277)","v":"Période d’amortissement moyenne selon la province"},{"$f":"IFERROR(VLOOKUP(G277,Translation!$A:$C,3,FALSE),G277)","v":"24.8"},{"$f":"IFERROR(VLOOKUP(H277,Translation!$A:$C,3,FALSE),H277)","v":"Terre-Neuve-et-Labrador"}]
[10,"T3 2019","PROPRIÉTAIRES-OCCUPANTS, À L’UNITÉ","Île-du-Prince-Édouard",24.919500383206326,"Période d’amortissement moyenne selon la province","24.9","Île-du-Prince-Édouard",{"$f":"IFERROR(VLOOKUP(A278,Translation!$A:$C,3,FALSE),A278)","v":10},{"$f":"IFERROR(VLOOKUP(B278,Translation!$A:$C,3,FALSE),B278)","v":"T3 2019"},{"$f":"IFERROR(VLOOKUP(C278,Translation!$A:$C,3,FALSE),C278)","v":"PROPRIÉTAIRES-OCCUPANTS, À L’UNITÉ"},{"$f":"IFERROR(VLOOKUP(D278,Translation!$A:$C,3,FALSE),D278)","v":"Île-du-Prince-Édouard"},{"$f":"IFERROR(VLOOKUP(E278,Translation!$A:$C,3,FALSE),E278)","v":24.919500383206326},{"$f":"IFERROR(VLOOKUP(F278,Translation!$A:$C,3,FALSE),F278)","v":"Période d’amortissement moyenne selon la province"},{"$f":"IFERROR(VLOOKUP(G278,Translation!$A:$C,3,FALSE),G278)","v":"24.9"},{"$f":"IFERROR(VLOOKUP(H278,Translation!$A:$C,3,FALSE),H278)","v":"Île-du-Prince-Édouard"}]
[10,"T3 2019","PROPRIÉTAIRES-OCCUPANTS, À L’UNITÉ","Nouvelle-Écosse",24.798401455969575,"Période d’amortissement moyenne selon la province","24.8","Nouvelle-Écosse",{"$f":"IFERROR(VLOOKUP(A279,Translation!$A:$C,3,FALSE),A279)","v":10},{"$f":"IFERROR(VLOOKUP(B279,Translation!$A:$C,3,FALSE),B279)","v":"T3 2019"},{"$f":"IFERROR(VLOOKUP(C279,Translation!$A:$C,3,FALSE),C279)","v":"PROPRIÉTAIRES-OCCUPANTS, À L’UNITÉ"},{"$f":"IFERROR(VLOOKUP(D279,Translation!$A:$C,3,FALSE),D279)","v":"Nouvelle-Écosse"},{"$f":"IFERROR(VLOOKUP(E279,Translation!$A:$C,3,FALSE),E279)","v":24.798401455969575},{"$f":"IFERROR(VLOOKUP(F279,Translation!$A:$C,3,FALSE),F279)","v":"Période d’amortissement moyenne selon la province"},{"$f":"IFERROR(VLOOKUP(G279,Translation!$A:$C,3,FALSE),G279)","v":"24.8"},{"$f":"IFERROR(VLOOKUP(H279,Translation!$A:$C,3,FALSE),H279)","v":"Nouvelle-Écosse"}]
[10,"T3 2019","PROPRIÉTAIRES-OCCUPANTS, À L’UNITÉ","Nouveau-Brunswick",24.725308960649219,"Période d’amortissement moyenne selon la province","24.7","Nouveau-Brunswick",{"$f":"IFERROR(VLOOKUP(A280,Translation!$A:$C,3,FALSE),A280)","v":10},{"$f":"IFERROR(VLOOKUP(B280,Translation!$A:$C,3,FALSE),B280)","v":"T3 2019"},{"$f":"IFERROR(VLOOKUP(C280,Translation!$A:$C,3,FALSE),C280)","v":"PROPRIÉTAIRES-OCCUPANTS, À L’UNITÉ"},{"$f":"IFERROR(VLOOKUP(D280,Translation!$A:$C,3,FALSE),D280)","v":"Nouveau-Brunswick"},{"$f":"IFERROR(VLOOKUP(E280,Translation!$A:$C,3,FALSE),E280)","v":24.725308960649219},{"$f":"IFERROR(VLOOKUP(F280,Translation!$A:$C,3,FALSE),F280)","v":"Période d’amortissement moyenne selon la province"},{"$f":"IFERROR(VLOOKUP(G280,Translation!$A:$C,3,FALSE),G280)","v":"24.7"},{"$f":"IFERROR(VLOOKUP(H280,Translation!$A:$C,3,FALSE),H280)","v":"Nouveau-Brunswick"}]
[10,"T3 2019","PROPRIÉTAIRES-OCCUPANTS, À L’UNITÉ","Québec",24.878702338946656,"Période d’amortissement moyenne selon la province","24.9","Québec",{"$f":"IFERROR(VLOOKUP(A281,Translation!$A:$C,3,FALSE),A281)","v":10},{"$f":"IFERROR(VLOOKUP(B281,Translation!$A:$C,3,FALSE),B281)","v":"T3 2019"},{"$f":"IFERROR(VLOOKUP(C281,Translation!$A:$C,3,FALSE),C281)","v":"PROPRIÉTAIRES-OCCUPANTS, À L’UNITÉ"},{"$f":"IFERROR(VLOOKUP(D281,Translation!$A:$C,3,FALSE),D281)","v":"Québec"},{"$f":"IFERROR(VLOOKUP(E281,Translation!$A:$C,3,FALSE),E281)","v":24.878702338946656},{"$f":"IFERROR(VLOOKUP(F281,Translation!$A:$C,3,FALSE),F281)","v":"Période d’amortissement moyenne selon la province"},{"$f":"IFERROR(VLOOKUP(G281,Translation!$A:$C,3,FALSE),G281)","v":"24.9"},{"$f":"IFERROR(VLOOKUP(H281,Translation!$A:$C,3,FALSE),H281)","v":"Québec"}]
[10,"T3 2019","PROPRIÉTAIRES-OCCUPANTS, À L’UNITÉ","Ontario",24.929126312288648,"Période d’amortissement moyenne selon la province","24.9","Ontario",{"$f":"IFERROR(VLOOKUP(A282,Translation!$A:$C,3,FALSE),A282)","v":10},{"$f":"IFERROR(VLOOKUP(B282,Translation!$A:$C,3,FALSE),B282)","v":"T3 2019"},{"$f":"IFERROR(VLOOKUP(C282,Translation!$A:$C,3,FALSE),C282)","v":"PROPRIÉTAIRES-OCCUPANTS, À L’UNITÉ"},{"$f":"IFERROR(VLOOKUP(D282,Translation!$A:$C,3,FALSE),D282)","v":"Ontario"},{"$f":"IFERROR(VLOOKUP(E282,Translation!$A:$C,3,FALSE),E282)","v":24.929126312288648},{"$f":"IFERROR(VLOOKUP(F282,Translation!$A:$C,3,FALSE),F282)","v":"Période d’amortissement moyenne selon la province"},{"$f":"IFERROR(VLOOKUP(G282,Translation!$A:$C,3,FALSE),G282)","v":"24.9"},{"$f":"IFERROR(VLOOKUP(H282,Translation!$A:$C,3,FALSE),H282)","v":"Ontario"}]
[10,"T3 2019","PROPRIÉTAIRES-OCCUPANTS, À L’UNITÉ","Manitoba",24.864800892383879,"Période d’amortissement moyenne selon la province","24.9","Manitoba",{"$f":"IFERROR(VLOOKUP(A283,Translation!$A:$C,3,FALSE),A283)","v":10},{"$f":"IFERROR(VLOOKUP(B283,Translation!$A:$C,3,FALSE),B283)","v":"T3 2019"},{"$f":"IFERROR(VLOOKUP(C283,Translation!$A:$C,3,FALSE),C283)","v":"PROPRIÉTAIRES-OCCUPANTS, À L’UNITÉ"},{"$f":"IFERROR(VLOOKUP(D283,Translation!$A:$C,3,FALSE),D283)","v":"Manitoba"},{"$f":"IFERROR(VLOOKUP(E283,Translation!$A:$C,3,FALSE),E283)","v":24.864800892383879},{"$f":"IFERROR(VLOOKUP(F283,Translation!$A:$C,3,FALSE),F283)","v":"Période d’amortissement moyenne selon la province"},{"$f":"IFERROR(VLOOKUP(G283,Translation!$A:$C,3,FALSE),G283)","v":"24.9"},{"$f":"IFERROR(VLOOKUP(H283,Translation!$A:$C,3,FALSE),H283)","v":"Manitoba"}]
[10,"T3 2019","PROPRIÉTAIRES-OCCUPANTS, À L’UNITÉ","Saskatchewan",24.804421645162769,"Période d’amortissement moyenne selon la province","24.8","Saskatchewan",{"$f":"IFERROR(VLOOKUP(A284,Translation!$A:$C,3,FALSE),A284)","v":10},{"$f":"IFERROR(VLOOKUP(B284,Translation!$A:$C,3,FALSE),B284)","v":"T3 2019"},{"$f":"IFERROR(VLOOKUP(C284,Translation!$A:$C,3,FALSE),C284)","v":"PROPRIÉTAIRES-OCCUPANTS, À L’UNITÉ"},{"$f":"IFERROR(VLOOKUP(D284,Translation!$A:$C,3,FALSE),D284)","v":"Saskatchewan"},{"$f":"IFERROR(VLOOKUP(E284,Translation!$A:$C,3,FALSE),E284)","v":24.804421645162769},{"$f":"IFERROR(VLOOKUP(F284,Translation!$A:$C,3,FALSE),F284)","v":"Période d’amortissement moyenne selon la province"},{"$f":"IFERROR(VLOOKUP(G284,Translation!$A:$C,3,FALSE),G284)","v":"24.8"},{"$f":"IFERROR(VLOOKUP(H284,Translation!$A:$C,3,FALSE),H284)","v":"Saskatchewan"}]
[10,"T3 2019","PROPRIÉTAIRES-OCCUPANTS, À L’UNITÉ","Alberta",24.819049913604317,"Période d’amortissement moyenne selon la province","24.8","Alberta",{"$f":"IFERROR(VLOOKUP(A285,Translation!$A:$C,3,FALSE),A285)","v":10},{"$f":"IFERROR(VLOOKUP(B285,Translation!$A:$C,3,FALSE),B285)","v":"T3 2019"},{"$f":"IFERROR(VLOOKUP(C285,Translation!$A:$C,3,FALSE),C285)","v":"PROPRIÉTAIRES-OCCUPANTS, À L’UNITÉ"},{"$f":"IFERROR(VLOOKUP(D285,Translation!$A:$C,3,FALSE),D285)","v":"Alberta"},{"$f":"IFERROR(VLOOKUP(E285,Translation!$A:$C,3,FALSE),E285)","v":24.819049913604317},{"$f":"IFERROR(VLOOKUP(F285,Translation!$A:$C,3,FALSE),F285)","v":"Période d’amortissement moyenne selon la province"},{"$f":"IFERROR(VLOOKUP(G285,Translation!$A:$C,3,FALSE),G285)","v":"24.8"},{"$f":"IFERROR(VLOOKUP(H285,Translation!$A:$C,3,FALSE),H285)","v":"Alberta"}]
[10,"T3 2019","PROPRIÉTAIRES-OCCUPANTS, À L’UNITÉ","Colombie-Britannique",24.811702428759688,"Période d’amortissement moyenne selon la province","24.8","Colombie-Britannique",{"$f":"IFERROR(VLOOKUP(A286,Translation!$A:$C,3,FALSE),A286)","v":10},{"$f":"IFERROR(VLOOKUP(B286,Translation!$A:$C,3,FALSE),B286)","v":"T3 2019"},{"$f":"IFERROR(VLOOKUP(C286,Translation!$A:$C,3,FALSE),C286)","v":"PROPRIÉTAIRES-OCCUPANTS, À L’UNITÉ"},{"$f":"IFERROR(VLOOKUP(D286,Translation!$A:$C,3,FALSE),D286)","v":"Colombie-Britannique"},{"$f":"IFERROR(VLOOKUP(E286,Translation!$A:$C,3,FALSE),E286)","v":24.811702428759688},{"$f":"IFERROR(VLOOKUP(F286,Translation!$A:$C,3,FALSE),F286)","v":"Période d’amortissement moyenne selon la province"},{"$f":"IFERROR(VLOOKUP(G286,Translation!$A:$C,3,FALSE),G286)","v":"24.8"},{"$f":"IFERROR(VLOOKUP(H286,Translation!$A:$C,3,FALSE),H286)","v":"Colombie-Britannique"}]
[10,"T3 2019","PROPRIÉTAIRES-OCCUPANTS, À L’UNITÉ","Territoires",24.674255420826523,"Période d’amortissement moyenne selon la province","24.7","Territoires",{"$f":"IFERROR(VLOOKUP(A287,Translation!$A:$C,3,FALSE),A287)","v":10},{"$f":"IFERROR(VLOOKUP(B287,Translation!$A:$C,3,FALSE),B287)","v":"T3 2019"},{"$f":"IFERROR(VLOOKUP(C287,Translation!$A:$C,3,FALSE),C287)","v":"PROPRIÉTAIRES-OCCUPANTS, À L’UNITÉ"},{"$f":"IFERROR(VLOOKUP(D287,Translation!$A:$C,3,FALSE),D287)","v":"Territoires"},{"$f":"IFERROR(VLOOKUP(E287,Translation!$A:$C,3,FALSE),E287)","v":24.674255420826523},{"$f":"IFERROR(VLOOKUP(F287,Translation!$A:$C,3,FALSE),F287)","v":"Période d’amortissement moyenne selon la province"},{"$f":"IFERROR(VLOOKUP(G287,Translation!$A:$C,3,FALSE),G287)","v":"24.7"},{"$f":"IFERROR(VLOOKUP(H287,Translation!$A:$C,3,FALSE),H287)","v":"Territoires"}]
[10,"T3 2019","ASSURANCE DE PORTEFEUILLE","<= 5",0.33683966352909739,"Prêts hypothécaires assurés au cours de la période selon la période d’amortissement (en années) à l'initiation (%)","0.3"," <= 5",{"$f":"IFERROR(VLOOKUP(A288,Translation!$A:$C,3,FALSE),A288)","v":10},{"$f":"IFERROR(VLOOKUP(B288,Translation!$A:$C,3,FALSE),B288)","v":"T3 2019"},{"$f":"IFERROR(VLOOKUP(C288,Translation!$A:$C,3,FALSE),C288)","v":"ASSURANCE DE PORTEFEUILLE"},{"$f":"IFERROR(VLOOKUP(D288,Translation!$A:$C,3,FALSE),D288)","v":"<= 5"},{"$f":"IFERROR(VLOOKUP(E288,Translation!$A:$C,3,FALSE),E288)","v":0.33683966352909739},{"$f":"IFERROR(VLOOKUP(F288,Translation!$A:$C,3,FALSE),F288)","v":"Prêts hypothécaires assurés au cours de la période selon la période d’amortissement (en années) à l'initiation (%)"},{"$f":"IFERROR(VLOOKUP(G288,Translation!$A:$C,3,FALSE),G288)","v":"0.3"},{"$f":"IFERROR(VLOOKUP(H288,Translation!$A:$C,3,FALSE),H288)","v":" <= 5"}]
[10,"T3 2019","ASSURANCE DE PORTEFEUILLE","> 5 <= 10",2.2867641046146407,"Prêts hypothécaires assurés au cours de la période selon la période d’amortissement (en années) à l'initiation (%)","2.3"," > 5 <= 10",{"$f":"IFERROR(VLOOKUP(A289,Translation!$A:$C,3,FALSE),A289)","v":10},{"$f":"IFERROR(VLOOKUP(B289,Translation!$A:$C,3,FALSE),B289)","v":"T3 2019"},{"$f":"IFERROR(VLOOKUP(C289,Translation!$A:$C,3,FALSE),C289)","v":"ASSURANCE DE PORTEFEUILLE"},{"$f":"IFERROR(VLOOKUP(D289,Translation!$A:$C,3,FALSE),D289)","v":"> 5 <= 10"},{"$f":"IFERROR(VLOOKUP(E289,Translation!$A:$C,3,FALSE),E289)","v":2.2867641046146407},{"$f":"IFERROR(VLOOKUP(F289,Translation!$A:$C,3,FALSE),F289)","v":"Prêts hypothécaires assurés au cours de la période selon la période d’amortissement (en années) à l'initiation (%)"},{"$f":"IFERROR(VLOOKUP(G289,Translation!$A:$C,3,FALSE),G289)","v":"2.3"},{"$f":"IFERROR(VLOOKUP(H289,Translation!$A:$C,3,FALSE),H289)","v":" > 5 <= 10"}]
[10,"T3 2019","ASSURANCE DE PORTEFEUILLE","> 10 <= 15",6.6556063573658752,"Prêts hypothécaires assurés au cours de la période selon la période d’amortissement (en années) à l'initiation (%)","6.7"," > 10 <= 15",{"$f":"IFERROR(VLOOKUP(A290,Translation!$A:$C,3,FALSE),A290)","v":10},{"$f":"IFERROR(VLOOKUP(B290,Translation!$A:$C,3,FALSE),B290)","v":"T3 2019"},{"$f":"IFERROR(VLOOKUP(C290,Translation!$A:$C,3,FALSE),C290)","v":"ASSURANCE DE PORTEFEUILLE"},{"$f":"IFERROR(VLOOKUP(D290,Translation!$A:$C,3,FALSE),D290)","v":"> 10 <= 15"},{"$f":"IFERROR(VLOOKUP(E290,Translation!$A:$C,3,FALSE),E290)","v":6.6556063573658752},{"$f":"IFERROR(VLOOKUP(F290,Translation!$A:$C,3,FALSE),F290)","v":"Prêts hypothécaires assurés au cours de la période selon la période d’amortissement (en années) à l'initiation (%)"},{"$f":"IFERROR(VLOOKUP(G290,Translation!$A:$C,3,FALSE),G290)","v":"6.7"},{"$f":"IFERROR(VLOOKUP(H290,Translation!$A:$C,3,FALSE),H290)","v":" > 10 <= 15"}]
[10,"T3 2019","ASSURANCE DE PORTEFEUILLE","> 15 <= 20",16.456533976021863,"Prêts hypothécaires assurés au cours de la période selon la période d’amortissement (en années) à l'initiation (%)","16.5"," > 15 <= 20",{"$f":"IFERROR(VLOOKUP(A291,Translation!$A:$C,3,FALSE),A291)","v":10},{"$f":"IFERROR(VLOOKUP(B291,Translation!$A:$C,3,FALSE),B291)","v":"T3 2019"},{"$f":"IFERROR(VLOOKUP(C291,Translation!$A:$C,3,FALSE),C291)","v":"ASSURANCE DE PORTEFEUILLE"},{"$f":"IFERROR(VLOOKUP(D291,Translation!$A:$C,3,FALSE),D291)","v":"> 15 <= 20"},{"$f":"IFERROR(VLOOKUP(E291,Translation!$A:$C,3,FALSE),E291)","v":16.456533976021863},{"$f":"IFERROR(VLOOKUP(F291,Translation!$A:$C,3,FALSE),F291)","v":"Prêts hypothécaires assurés au cours de la période selon la période d’amortissement (en années) à l'initiation (%)"},{"$f":"IFERROR(VLOOKUP(G291,Translation!$A:$C,3,FALSE),G291)","v":"16.5"},{"$f":"IFERROR(VLOOKUP(H291,Translation!$A:$C,3,FALSE),H291)","v":" > 15 <= 20"}]
[10,"T3 2019","ASSURANCE DE PORTEFEUILLE","> 20 <= 25",73.430007548172611,"Prêts hypothécaires assurés au cours de la période selon la période d’amortissement (en années) à l'initiation (%)","73.4"," > 20 <= 25",{"$f":"IFERROR(VLOOKUP(A292,Translation!$A:$C,3,FALSE),A292)","v":10},{"$f":"IFERROR(VLOOKUP(B292,Translation!$A:$C,3,FALSE),B292)","v":"T3 2019"},{"$f":"IFERROR(VLOOKUP(C292,Translation!$A:$C,3,FALSE),C292)","v":"ASSURANCE DE PORTEFEUILLE"},{"$f":"IFERROR(VLOOKUP(D292,Translation!$A:$C,3,FALSE),D292)","v":"> 20 <= 25"},{"$f":"IFERROR(VLOOKUP(E292,Translation!$A:$C,3,FALSE),E292)","v":73.430007548172611},{"$f":"IFERROR(VLOOKUP(F292,Translation!$A:$C,3,FALSE),F292)","v":"Prêts hypothécaires assurés au cours de la période selon la période d’amortissement (en années) à l'initiation (%)"},{"$f":"IFERROR(VLOOKUP(G292,Translation!$A:$C,3,FALSE),G292)","v":"73.4"},{"$f":"IFERROR(VLOOKUP(H292,Translation!$A:$C,3,FALSE),H292)","v":" > 20 <= 25"}]
[10,"T3 2019","ASSURANCE DE PORTEFEUILLE","> 25 <= 30",0.83424835029594191,"Prêts hypothécaires assurés au cours de la période selon la période d’amortissement (en années) à l'initiation (%)","0.8"," > 25 <= 30",{"$f":"IFERROR(VLOOKUP(A293,Translation!$A:$C,3,FALSE),A293)","v":10},{"$f":"IFERROR(VLOOKUP(B293,Translation!$A:$C,3,FALSE),B293)","v":"T3 2019"},{"$f":"IFERROR(VLOOKUP(C293,Translation!$A:$C,3,FALSE),C293)","v":"ASSURANCE DE PORTEFEUILLE"},{"$f":"IFERROR(VLOOKUP(D293,Translation!$A:$C,3,FALSE),D293)","v":"> 25 <= 30"},{"$f":"IFERROR(VLOOKUP(E293,Translation!$A:$C,3,FALSE),E293)","v":0.83424835029594191},{"$f":"IFERROR(VLOOKUP(F293,Translation!$A:$C,3,FALSE),F293)","v":"Prêts hypothécaires assurés au cours de la période selon la période d’amortissement (en années) à l'initiation (%)"},{"$f":"IFERROR(VLOOKUP(G293,Translation!$A:$C,3,FALSE),G293)","v":"0.8"},{"$f":"IFERROR(VLOOKUP(H293,Translation!$A:$C,3,FALSE),H293)","v":" > 25 <= 30"}]
[10,"T3 2019","ASSURANCE DE PORTEFEUILLE","Période d’amortissement moyenne",21.842966125238632,"Prêts hypothécaires assurés au cours de la période selon la période d’amortissement (en années) à l'initiation (%)","21.8","Période d’amortissement moyenne",{"$f":"IFERROR(VLOOKUP(A294,Translation!$A:$C,3,FALSE),A294)","v":10},{"$f":"IFERROR(VLOOKUP(B294,Translation!$A:$C,3,FALSE),B294)","v":"T3 2019"},{"$f":"IFERROR(VLOOKUP(C294,Translation!$A:$C,3,FALSE),C294)","v":"ASSURANCE DE PORTEFEUILLE"},{"$f":"IFERROR(VLOOKUP(D294,Translation!$A:$C,3,FALSE),D294)","v":"Période d’amortissement moyenne"},{"$f":"IFERROR(VLOOKUP(E294,Translation!$A:$C,3,FALSE),E294)","v":21.842966125238632},{"$f":"IFERROR(VLOOKUP(F294,Translation!$A:$C,3,FALSE),F294)","v":"Prêts hypothécaires assurés au cours de la période selon la période d’amortissement (en années) à l'initiation (%)"},{"$f":"IFERROR(VLOOKUP(G294,Translation!$A:$C,3,FALSE),G294)","v":"21.8"},{"$f":"IFERROR(VLOOKUP(H294,Translation!$A:$C,3,FALSE),H294)","v":"Période d’amortissement moyenne"}]
[10,"T3 2019","ASSURANCE DE PORTEFEUILLE","Nouvelle-Écosse",21.751189157937844,"Période d’amortissement moyenne selon la province","21.8","Nouvelle-Écosse",{"$f":"IFERROR(VLOOKUP(A295,Translation!$A:$C,3,FALSE),A295)","v":10},{"$f":"IFERROR(VLOOKUP(B295,Translation!$A:$C,3,FALSE),B295)","v":"T3 2019"},{"$f":"IFERROR(VLOOKUP(C295,Translation!$A:$C,3,FALSE),C295)","v":"ASSURANCE DE PORTEFEUILLE"},{"$f":"IFERROR(VLOOKUP(D295,Translation!$A:$C,3,FALSE),D295)","v":"Nouvelle-Écosse"},{"$f":"IFERROR(VLOOKUP(E295,Translation!$A:$C,3,FALSE),E295)","v":21.751189157937844},{"$f":"IFERROR(VLOOKUP(F295,Translation!$A:$C,3,FALSE),F295)","v":"Période d’amortissement moyenne selon la province"},{"$f":"IFERROR(VLOOKUP(G295,Translation!$A:$C,3,FALSE),G295)","v":"21.8"},{"$f":"IFERROR(VLOOKUP(H295,Translation!$A:$C,3,FALSE),H295)","v":"Nouvelle-Écosse"}]
[10,"T3 2019","ASSURANCE DE PORTEFEUILLE","Nouveau-Brunswick",20.249584968825488,"Période d’amortissement moyenne selon la province","20.2","Nouveau-Brunswick",{"$f":"IFERROR(VLOOKUP(A296,Translation!$A:$C,3,FALSE),A296)","v":10},{"$f":"IFERROR(VLOOKUP(B296,Translation!$A:$C,3,FALSE),B296)","v":"T3 2019"},{"$f":"IFERROR(VLOOKUP(C296,Translation!$A:$C,3,FALSE),C296)","v":"ASSURANCE DE PORTEFEUILLE"},{"$f":"IFERROR(VLOOKUP(D296,Translation!$A:$C,3,FALSE),D296)","v":"Nouveau-Brunswick"},{"$f":"IFERROR(VLOOKUP(E296,Translation!$A:$C,3,FALSE),E296)","v":20.249584968825488},{"$f":"IFERROR(VLOOKUP(F296,Translation!$A:$C,3,FALSE),F296)","v":"Période d’amortissement moyenne selon la province"},{"$f":"IFERROR(VLOOKUP(G296,Translation!$A:$C,3,FALSE),G296)","v":"20.2"},{"$f":"IFERROR(VLOOKUP(H296,Translation!$A:$C,3,FALSE),H296)","v":"Nouveau-Brunswick"}]
[10,"T3 2019","ASSURANCE DE PORTEFEUILLE","Québec",21.92717870685691,"Période d’amortissement moyenne selon la province","21.9","Québec",{"$f":"IFERROR(VLOOKUP(A297,Translation!$A:$C,3,FALSE),A297)","v":10},{"$f":"IFERROR(VLOOKUP(B297,Translation!$A:$C,3,FALSE),B297)","v":"T3 2019"},{"$f":"IFERROR(VLOOKUP(C297,Translation!$A:$C,3,FALSE),C297)","v":"ASSURANCE DE PORTEFEUILLE"},{"$f":"IFERROR(VLOOKUP(D297,Translation!$A:$C,3,FALSE),D297)","v":"Québec"},{"$f":"IFERROR(VLOOKUP(E297,Translation!$A:$C,3,FALSE),E297)","v":21.92717870685691},{"$f":"IFERROR(VLOOKUP(F297,Translation!$A:$C,3,FALSE),F297)","v":"Période d’amortissement moyenne selon la province"},{"$f":"IFERROR(VLOOKUP(G297,Translation!$A:$C,3,FALSE),G297)","v":"21.9"},{"$f":"IFERROR(VLOOKUP(H297,Translation!$A:$C,3,FALSE),H297)","v":"Québec"}]
[10,"T3 2019","ASSURANCE DE PORTEFEUILLE","Ontario",21.506280542959527,"Période d’amortissement moyenne selon la province","21.5","Ontario",{"$f":"IFERROR(VLOOKUP(A298,Translation!$A:$C,3,FALSE),A298)","v":10},{"$f":"IFERROR(VLOOKUP(B298,Translation!$A:$C,3,FALSE),B298)","v":"T3 2019"},{"$f":"IFERROR(VLOOKUP(C298,Translation!$A:$C,3,FALSE),C298)","v":"ASSURANCE DE PORTEFEUILLE"},{"$f":"IFERROR(VLOOKUP(D298,Translation!$A:$C,3,FALSE),D298)","v":"Ontario"},{"$f":"IFERROR(VLOOKUP(E298,Translation!$A:$C,3,FALSE),E298)","v":21.506280542959527},{"$f":"IFERROR(VLOOKUP(F298,Translation!$A:$C,3,FALSE),F298)","v":"Période d’amortissement moyenne selon la province"},{"$f":"IFERROR(VLOOKUP(G298,Translation!$A:$C,3,FALSE),G298)","v":"21.5"},{"$f":"IFERROR(VLOOKUP(H298,Translation!$A:$C,3,FALSE),H298)","v":"Ontario"}]
[10,"T3 2019","ASSURANCE DE PORTEFEUILLE","Manitoba",20.956601913993779,"Période d’amortissement moyenne selon la province","21.0","Manitoba",{"$f":"IFERROR(VLOOKUP(A299,Translation!$A:$C,3,FALSE),A299)","v":10},{"$f":"IFERROR(VLOOKUP(B299,Translation!$A:$C,3,FALSE),B299)","v":"T3 2019"},{"$f":"IFERROR(VLOOKUP(C299,Translation!$A:$C,3,FALSE),C299)","v":"ASSURANCE DE PORTEFEUILLE"},{"$f":"IFERROR(VLOOKUP(D299,Translation!$A:$C,3,FALSE),D299)","v":"Manitoba"},{"$f":"IFERROR(VLOOKUP(E299,Translation!$A:$C,3,FALSE),E299)","v":20.956601913993779},{"$f":"IFERROR(VLOOKUP(F299,Translation!$A:$C,3,FALSE),F299)","v":"Période d’amortissement moyenne selon la province"},{"$f":"IFERROR(VLOOKUP(G299,Translation!$A:$C,3,FALSE),G299)","v":"21.0"},{"$f":"IFERROR(VLOOKUP(H299,Translation!$A:$C,3,FALSE),H299)","v":"Manitoba"}]
[10,"T3 2019","ASSURANCE DE PORTEFEUILLE","Saskatchewan",18.429867604380295,"Période d’amortissement moyenne selon la province","18.4","Saskatchewan",{"$f":"IFERROR(VLOOKUP(A300,Translation!$A:$C,3,FALSE),A300)","v":10},{"$f":"IFERROR(VLOOKUP(B300,Translation!$A:$C,3,FALSE),B300)","v":"T3 2019"},{"$f":"IFERROR(VLOOKUP(C300,Translation!$A:$C,3,FALSE),C300)","v":"ASSURANCE DE PORTEFEUILLE"},{"$f":"IFERROR(VLOOKUP(D300,Translation!$A:$C,3,FALSE),D300)","v":"Saskatchewan"},{"$f":"IFERROR(VLOOKUP(E300,Translation!$A:$C,3,FALSE),E300)","v":18.429867604380295},{"$f":"IFERROR(VLOOKUP(F300,Translation!$A:$C,3,FALSE),F300)","v":"Période d’amortissement moyenne selon la province"},{"$f":"IFERROR(VLOOKUP(G300,Translation!$A:$C,3,FALSE),G300)","v":"18.4"},{"$f":"IFERROR(VLOOKUP(H300,Translation!$A:$C,3,FALSE),H300)","v":"Saskatchewan"}]
[10,"T3 2019","ASSURANCE DE PORTEFEUILLE","Alberta",21.044499786391089,"Période d’amortissement moyenne selon la province","21.0","Alberta",{"$f":"IFERROR(VLOOKUP(A301,Translation!$A:$C,3,FALSE),A301)","v":10},{"$f":"IFERROR(VLOOKUP(B301,Translation!$A:$C,3,FALSE),B301)","v":"T3 2019"},{"$f":"IFERROR(VLOOKUP(C301,Translation!$A:$C,3,FALSE),C301)","v":"ASSURANCE DE PORTEFEUILLE"},{"$f":"IFERROR(VLOOKUP(D301,Translation!$A:$C,3,FALSE),D301)","v":"Alberta"},{"$f":"IFERROR(VLOOKUP(E301,Translation!$A:$C,3,FALSE),E301)","v":21.044499786391089},{"$f":"IFERROR(VLOOKUP(F301,Translation!$A:$C,3,FALSE),F301)","v":"Période d’amortissement moyenne selon la province"},{"$f":"IFERROR(VLOOKUP(G301,Translation!$A:$C,3,FALSE),G301)","v":"21.0"},{"$f":"IFERROR(VLOOKUP(H301,Translation!$A:$C,3,FALSE),H301)","v":"Alberta"}]
[10,"T3 2019","ASSURANCE DE PORTEFEUILLE","Colombie-Britannique",23.48257670727962,"Période d’amortissement moyenne selon la province","23.5","Colombie-Britannique",{"$f":"IFERROR(VLOOKUP(A302,Translation!$A:$C,3,FALSE),A302)","v":10},{"$f":"IFERROR(VLOOKUP(B302,Translation!$A:$C,3,FALSE),B302)","v":"T3 2019"},{"$f":"IFERROR(VLOOKUP(C302,Translation!$A:$C,3,FALSE),C302)","v":"ASSURANCE DE PORTEFEUILLE"},{"$f":"IFERROR(VLOOKUP(D302,Translation!$A:$C,3,FALSE),D302)","v":"Colombie-Britannique"},{"$f":"IFERROR(VLOOKUP(E302,Translation!$A:$C,3,FALSE),E302)","v":23.48257670727962},{"$f":"IFERROR(VLOOKUP(F302,Translation!$A:$C,3,FALSE),F302)","v":"Période d’amortissement moyenne selon la province"},{"$f":"IFERROR(VLOOKUP(G302,Translation!$A:$C,3,FALSE),G302)","v":"23.5"},{"$f":"IFERROR(VLOOKUP(H302,Translation!$A:$C,3,FALSE),H302)","v":"Colombie-Britannique"}]
[28,"T3 2019","IMMEUBLES COLLECTIFS RÉSIDENTIELS","> 10 <= 15",0.13767363182920617,"Prêts hypothécaires assurés au cours de la période selon la période d’amortissement (en années) à l'initiation (%)","0.1"," > 10 <= 15",{"$f":"IFERROR(VLOOKUP(A303,Translation!$A:$C,3,FALSE),A303)","v":28},{"$f":"IFERROR(VLOOKUP(B303,Translation!$A:$C,3,FALSE),B303)","v":"T3 2019"},{"$f":"IFERROR(VLOOKUP(C303,Translation!$A:$C,3,FALSE),C303)","v":"IMMEUBLES COLLECTIFS RÉSIDENTIELS"},{"$f":"IFERROR(VLOOKUP(D303,Translation!$A:$C,3,FALSE),D303)","v":"> 10 <= 15"},{"$f":"IFERROR(VLOOKUP(E303,Translation!$A:$C,3,FALSE),E303)","v":0.13767363182920617},{"$f":"IFERROR(VLOOKUP(F303,Translation!$A:$C,3,FALSE),F303)","v":"Prêts hypothécaires assurés au cours de la période selon la période d’amortissement (en années) à l'initiation (%)"},{"$f":"IFERROR(VLOOKUP(G303,Translation!$A:$C,3,FALSE),G303)","v":"0.1"},{"$f":"IFERROR(VLOOKUP(H303,Translation!$A:$C,3,FALSE),H303)","v":" > 10 <= 15"}]
[28,"T3 2019","IMMEUBLES COLLECTIFS RÉSIDENTIELS","> 15 <= 20",1.2027261645353355,"Prêts hypothécaires assurés au cours de la période selon la période d’amortissement (en années) à l'initiation (%)","1.2"," > 15 <= 20",{"$f":"IFERROR(VLOOKUP(A304,Translation!$A:$C,3,FALSE),A304)","v":28},{"$f":"IFERROR(VLOOKUP(B304,Translation!$A:$C,3,FALSE),B304)","v":"T3 2019"},{"$f":"IFERROR(VLOOKUP(C304,Translation!$A:$C,3,FALSE),C304)","v":"IMMEUBLES COLLECTIFS RÉSIDENTIELS"},{"$f":"IFERROR(VLOOKUP(D304,Translation!$A:$C,3,FALSE),D304)","v":"> 15 <= 20"},{"$f":"IFERROR(VLOOKUP(E304,Translation!$A:$C,3,FALSE),E304)","v":1.2027261645353355},{"$f":"IFERROR(VLOOKUP(F304,Translation!$A:$C,3,FALSE),F304)","v":"Prêts hypothécaires assurés au cours de la période selon la période d’amortissement (en années) à l'initiation (%)"},{"$f":"IFERROR(VLOOKUP(G304,Translation!$A:$C,3,FALSE),G304)","v":"1.2"},{"$f":"IFERROR(VLOOKUP(H304,Translation!$A:$C,3,FALSE),H304)","v":" > 15 <= 20"}]
[28,"T3 2019","IMMEUBLES COLLECTIFS RÉSIDENTIELS","> 20 <= 25",12.55346225108608,"Prêts hypothécaires assurés au cours de la période selon la période d’amortissement (en années) à l'initiation (%)","12.6"," > 20 <= 25",{"$f":"IFERROR(VLOOKUP(A305,Translation!$A:$C,3,FALSE),A305)","v":28},{"$f":"IFERROR(VLOOKUP(B305,Translation!$A:$C,3,FALSE),B305)","v":"T3 2019"},{"$f":"IFERROR(VLOOKUP(C305,Translation!$A:$C,3,FALSE),C305)","v":"IMMEUBLES COLLECTIFS RÉSIDENTIELS"},{"$f":"IFERROR(VLOOKUP(D305,Translation!$A:$C,3,FALSE),D305)","v":"> 20 <= 25"},{"$f":"IFERROR(VLOOKUP(E305,Translation!$A:$C,3,FALSE),E305)","v":12.55346225108608},{"$f":"IFERROR(VLOOKUP(F305,Translation!$A:$C,3,FALSE),F305)","v":"Prêts hypothécaires assurés au cours de la période selon la période d’amortissement (en années) à l'initiation (%)"},{"$f":"IFERROR(VLOOKUP(G305,Translation!$A:$C,3,FALSE),G305)","v":"12.6"},{"$f":"IFERROR(VLOOKUP(H305,Translation!$A:$C,3,FALSE),H305)","v":" > 20 <= 25"}]
[28,"T3 2019","IMMEUBLES COLLECTIFS RÉSIDENTIELS","> 25 <= 30",22.893576831577633,"Prêts hypothécaires assurés au cours de la période selon la période d’amortissement (en années) à l'initiation (%)","22.9"," > 25 <= 30",{"$f":"IFERROR(VLOOKUP(A306,Translation!$A:$C,3,FALSE),A306)","v":28},{"$f":"IFERROR(VLOOKUP(B306,Translation!$A:$C,3,FALSE),B306)","v":"T3 2019"},{"$f":"IFERROR(VLOOKUP(C306,Translation!$A:$C,3,FALSE),C306)","v":"IMMEUBLES COLLECTIFS RÉSIDENTIELS"},{"$f":"IFERROR(VLOOKUP(D306,Translation!$A:$C,3,FALSE),D306)","v":"> 25 <= 30"},{"$f":"IFERROR(VLOOKUP(E306,Translation!$A:$C,3,FALSE),E306)","v":22.893576831577633},{"$f":"IFERROR(VLOOKUP(F306,Translation!$A:$C,3,FALSE),F306)","v":"Prêts hypothécaires assurés au cours de la période selon la période d’amortissement (en années) à l'initiation (%)"},{"$f":"IFERROR(VLOOKUP(G306,Translation!$A:$C,3,FALSE),G306)","v":"22.9"},{"$f":"IFERROR(VLOOKUP(H306,Translation!$A:$C,3,FALSE),H306)","v":" > 25 <= 30"}]
[28,"T3 2019","IMMEUBLES COLLECTIFS RÉSIDENTIELS","> 30 <= 35",21.685460212608472,"Prêts hypothécaires assurés au cours de la période selon la période d’amortissement (en années) à l'initiation (%)","21.7"," > 30 <= 35",{"$f":"IFERROR(VLOOKUP(A307,Translation!$A:$C,3,FALSE),A307)","v":28},{"$f":"IFERROR(VLOOKUP(B307,Translation!$A:$C,3,FALSE),B307)","v":"T3 2019"},{"$f":"IFERROR(VLOOKUP(C307,Translation!$A:$C,3,FALSE),C307)","v":"IMMEUBLES COLLECTIFS RÉSIDENTIELS"},{"$f":"IFERROR(VLOOKUP(D307,Translation!$A:$C,3,FALSE),D307)","v":"> 30 <= 35"},{"$f":"IFERROR(VLOOKUP(E307,Translation!$A:$C,3,FALSE),E307)","v":21.685460212608472},{"$f":"IFERROR(VLOOKUP(F307,Translation!$A:$C,3,FALSE),F307)","v":"Prêts hypothécaires assurés au cours de la période selon la période d’amortissement (en années) à l'initiation (%)"},{"$f":"IFERROR(VLOOKUP(G307,Translation!$A:$C,3,FALSE),G307)","v":"21.7"},{"$f":"IFERROR(VLOOKUP(H307,Translation!$A:$C,3,FALSE),H307)","v":" > 30 <= 35"}]
[28,"T3 2019","IMMEUBLES COLLECTIFS RÉSIDENTIELS","> 35",41.527100908363273,"Prêts hypothécaires assurés au cours de la période selon la période d’amortissement (en années) à l'initiation (%)","41.5"," > 35",{"$f":"IFERROR(VLOOKUP(A308,Translation!$A:$C,3,FALSE),A308)","v":28},{"$f":"IFERROR(VLOOKUP(B308,Translation!$A:$C,3,FALSE),B308)","v":"T3 2019"},{"$f":"IFERROR(VLOOKUP(C308,Translation!$A:$C,3,FALSE),C308)","v":"IMMEUBLES COLLECTIFS RÉSIDENTIELS"},{"$f":"IFERROR(VLOOKUP(D308,Translation!$A:$C,3,FALSE),D308)","v":"> 35"},{"$f":"IFERROR(VLOOKUP(E308,Translation!$A:$C,3,FALSE),E308)","v":41.527100908363273},{"$f":"IFERROR(VLOOKUP(F308,Translation!$A:$C,3,FALSE),F308)","v":"Prêts hypothécaires assurés au cours de la période selon la période d’amortissement (en années) à l'initiation (%)"},{"$f":"IFERROR(VLOOKUP(G308,Translation!$A:$C,3,FALSE),G308)","v":"41.5"},{"$f":"IFERROR(VLOOKUP(H308,Translation!$A:$C,3,FALSE),H308)","v":" > 35"}]
[28,"T3 2019","IMMEUBLES COLLECTIFS RÉSIDENTIELS","Période d’amortissement moyenne",34.917001678146342,"Prêts hypothécaires assurés au cours de la période selon la période d’amortissement (en années) à l'initiation (%)","34.9","Période d’amortissement moyenne",{"$f":"IFERROR(VLOOKUP(A309,Translation!$A:$C,3,FALSE),A309)","v":28},{"$f":"IFERROR(VLOOKUP(B309,Translation!$A:$C,3,FALSE),B309)","v":"T3 2019"},{"$f":"IFERROR(VLOOKUP(C309,Translation!$A:$C,3,FALSE),C309)","v":"IMMEUBLES COLLECTIFS RÉSIDENTIELS"},{"$f":"IFERROR(VLOOKUP(D309,Translation!$A:$C,3,FALSE),D309)","v":"Période d’amortissement moyenne"},{"$f":"IFERROR(VLOOKUP(E309,Translation!$A:$C,3,FALSE),E309)","v":34.917001678146342},{"$f":"IFERROR(VLOOKUP(F309,Translation!$A:$C,3,FALSE),F309)","v":"Prêts hypothécaires assurés au cours de la période selon la période d’amortissement (en années) à l'initiation (%)"},{"$f":"IFERROR(VLOOKUP(G309,Translation!$A:$C,3,FALSE),G309)","v":"34.9"},{"$f":"IFERROR(VLOOKUP(H309,Translation!$A:$C,3,FALSE),H309)","v":"Période d’amortissement moyenne"}]
[28,"T3 2019","IMMEUBLES COLLECTIFS RÉSIDENTIELS","Île-du-Prince-Édouard",25,"Période d’amortissement moyenne selon la province","25.0","Île-du-Prince-Édouard",{"$f":"IFERROR(VLOOKUP(A310,Translation!$A:$C,3,FALSE),A310)","v":28},{"$f":"IFERROR(VLOOKUP(B310,Translation!$A:$C,3,FALSE),B310)","v":"T3 2019"},{"$f":"IFERROR(VLOOKUP(C310,Translation!$A:$C,3,FALSE),C310)","v":"IMMEUBLES COLLECTIFS RÉSIDENTIELS"},{"$f":"IFERROR(VLOOKUP(D310,Translation!$A:$C,3,FALSE),D310)","v":"Île-du-Prince-Édouard"},{"$f":"IFERROR(VLOOKUP(E310,Translation!$A:$C,3,FALSE),E310)","v":25},{"$f":"IFERROR(VLOOKUP(F310,Translation!$A:$C,3,FALSE),F310)","v":"Période d’amortissement moyenne selon la province"},{"$f":"IFERROR(VLOOKUP(G310,Translation!$A:$C,3,FALSE),G310)","v":"25.0"},{"$f":"IFERROR(VLOOKUP(H310,Translation!$A:$C,3,FALSE),H310)","v":"Île-du-Prince-Édouard"}]
[28,"T3 2019","IMMEUBLES COLLECTIFS RÉSIDENTIELS","Nouvelle-Écosse",33.08494321242609,"Période d’amortissement moyenne selon la province","33.1","Nouvelle-Écosse",{"$f":"IFERROR(VLOOKUP(A311,Translation!$A:$C,3,FALSE),A311)","v":28},{"$f":"IFERROR(VLOOKUP(B311,Translation!$A:$C,3,FALSE),B311)","v":"T3 2019"},{"$f":"IFERROR(VLOOKUP(C311,Translation!$A:$C,3,FALSE),C311)","v":"IMMEUBLES COLLECTIFS RÉSIDENTIELS"},{"$f":"IFERROR(VLOOKUP(D311,Translation!$A:$C,3,FALSE),D311)","v":"Nouvelle-Écosse"},{"$f":"IFERROR(VLOOKUP(E311,Translation!$A:$C,3,FALSE),E311)","v":33.08494321242609},{"$f":"IFERROR(VLOOKUP(F311,Translation!$A:$C,3,FALSE),F311)","v":"Période d’amortissement moyenne selon la province"},{"$f":"IFERROR(VLOOKUP(G311,Translation!$A:$C,3,FALSE),G311)","v":"33.1"},{"$f":"IFERROR(VLOOKUP(H311,Translation!$A:$C,3,FALSE),H311)","v":"Nouvelle-Écosse"}]
[28,"T3 2019","IMMEUBLES COLLECTIFS RÉSIDENTIELS","Nouveau-Brunswick",28.742612256597425,"Période d’amortissement moyenne selon la province","28.7","Nouveau-Brunswick",{"$f":"IFERROR(VLOOKUP(A312,Translation!$A:$C,3,FALSE),A312)","v":28},{"$f":"IFERROR(VLOOKUP(B312,Translation!$A:$C,3,FALSE),B312)","v":"T3 2019"},{"$f":"IFERROR(VLOOKUP(C312,Translation!$A:$C,3,FALSE),C312)","v":"IMMEUBLES COLLECTIFS RÉSIDENTIELS"},{"$f":"IFERROR(VLOOKUP(D312,Translation!$A:$C,3,FALSE),D312)","v":"Nouveau-Brunswick"},{"$f":"IFERROR(VLOOKUP(E312,Translation!$A:$C,3,FALSE),E312)","v":28.742612256597425},{"$f":"IFERROR(VLOOKUP(F312,Translation!$A:$C,3,FALSE),F312)","v":"Période d’amortissement moyenne selon la province"},{"$f":"IFERROR(VLOOKUP(G312,Translation!$A:$C,3,FALSE),G312)","v":"28.7"},{"$f":"IFERROR(VLOOKUP(H312,Translation!$A:$C,3,FALSE),H312)","v":"Nouveau-Brunswick"}]
[28,"T3 2019","IMMEUBLES COLLECTIFS RÉSIDENTIELS","Québec",34.315383159776907,"Période d’amortissement moyenne selon la province","34.3","Québec",{"$f":"IFERROR(VLOOKUP(A313,Translation!$A:$C,3,FALSE),A313)","v":28},{"$f":"IFERROR(VLOOKUP(B313,Translation!$A:$C,3,FALSE),B313)","v":"T3 2019"},{"$f":"IFERROR(VLOOKUP(C313,Translation!$A:$C,3,FALSE),C313)","v":"IMMEUBLES COLLECTIFS RÉSIDENTIELS"},{"$f":"IFERROR(VLOOKUP(D313,Translation!$A:$C,3,FALSE),D313)","v":"Québec"},{"$f":"IFERROR(VLOOKUP(E313,Translation!$A:$C,3,FALSE),E313)","v":34.315383159776907},{"$f":"IFERROR(VLOOKUP(F313,Translation!$A:$C,3,FALSE),F313)","v":"Période d’amortissement moyenne selon la province"},{"$f":"IFERROR(VLOOKUP(G313,Translation!$A:$C,3,FALSE),G313)","v":"34.3"},{"$f":"IFERROR(VLOOKUP(H313,Translation!$A:$C,3,FALSE),H313)","v":"Québec"}]
[28,"T3 2019","IMMEUBLES COLLECTIFS RÉSIDENTIELS","Ontario",34.865044916997974,"Période d’amortissement moyenne selon la province","34.9","Ontario",{"$f":"IFERROR(VLOOKUP(A314,Translation!$A:$C,3,FALSE),A314)","v":28},{"$f":"IFERROR(VLOOKUP(B314,Translation!$A:$C,3,FALSE),B314)","v":"T3 2019"},{"$f":"IFERROR(VLOOKUP(C314,Translation!$A:$C,3,FALSE),C314)","v":"IMMEUBLES COLLECTIFS RÉSIDENTIELS"},{"$f":"IFERROR(VLOOKUP(D314,Translation!$A:$C,3,FALSE),D314)","v":"Ontario"},{"$f":"IFERROR(VLOOKUP(E314,Translation!$A:$C,3,FALSE),E314)","v":34.865044916997974},{"$f":"IFERROR(VLOOKUP(F314,Translation!$A:$C,3,FALSE),F314)","v":"Période d’amortissement moyenne selon la province"},{"$f":"IFERROR(VLOOKUP(G314,Translation!$A:$C,3,FALSE),G314)","v":"34.9"},{"$f":"IFERROR(VLOOKUP(H314,Translation!$A:$C,3,FALSE),H314)","v":"Ontario"}]
[28,"T3 2019","IMMEUBLES COLLECTIFS RÉSIDENTIELS","Manitoba",37.412991347457186,"Période d’amortissement moyenne selon la province","37.4","Manitoba",{"$f":"IFERROR(VLOOKUP(A315,Translation!$A:$C,3,FALSE),A315)","v":28},{"$f":"IFERROR(VLOOKUP(B315,Translation!$A:$C,3,FALSE),B315)","v":"T3 2019"},{"$f":"IFERROR(VLOOKUP(C315,Translation!$A:$C,3,FALSE),C315)","v":"IMMEUBLES COLLECTIFS RÉSIDENTIELS"},{"$f":"IFERROR(VLOOKUP(D315,Translation!$A:$C,3,FALSE),D315)","v":"Manitoba"},{"$f":"IFERROR(VLOOKUP(E315,Translation!$A:$C,3,FALSE),E315)","v":37.412991347457186},{"$f":"IFERROR(VLOOKUP(F315,Translation!$A:$C,3,FALSE),F315)","v":"Période d’amortissement moyenne selon la province"},{"$f":"IFERROR(VLOOKUP(G315,Translation!$A:$C,3,FALSE),G315)","v":"37.4"},{"$f":"IFERROR(VLOOKUP(H315,Translation!$A:$C,3,FALSE),H315)","v":"Manitoba"}]
[28,"T3 2019","IMMEUBLES COLLECTIFS RÉSIDENTIELS","Saskatchewan",39.507273052195011,"Période d’amortissement moyenne selon la province","39.5","Saskatchewan",{"$f":"IFERROR(VLOOKUP(A316,Translation!$A:$C,3,FALSE),A316)","v":28},{"$f":"IFERROR(VLOOKUP(B316,Translation!$A:$C,3,FALSE),B316)","v":"T3 2019"},{"$f":"IFERROR(VLOOKUP(C316,Translation!$A:$C,3,FALSE),C316)","v":"IMMEUBLES COLLECTIFS RÉSIDENTIELS"},{"$f":"IFERROR(VLOOKUP(D316,Translation!$A:$C,3,FALSE),D316)","v":"Saskatchewan"},{"$f":"IFERROR(VLOOKUP(E316,Translation!$A:$C,3,FALSE),E316)","v":39.507273052195011},{"$f":"IFERROR(VLOOKUP(F316,Translation!$A:$C,3,FALSE),F316)","v":"Période d’amortissement moyenne selon la province"},{"$f":"IFERROR(VLOOKUP(G316,Translation!$A:$C,3,FALSE),G316)","v":"39.5"},{"$f":"IFERROR(VLOOKUP(H316,Translation!$A:$C,3,FALSE),H316)","v":"Saskatchewan"}]
[28,"T3 2019","IMMEUBLES COLLECTIFS RÉSIDENTIELS","Alberta",33.179800132461125,"Période d’amortissement moyenne selon la province","33.2","Alberta",{"$f":"IFERROR(VLOOKUP(A317,Translation!$A:$C,3,FALSE),A317)","v":28},{"$f":"IFERROR(VLOOKUP(B317,Translation!$A:$C,3,FALSE),B317)","v":"T3 2019"},{"$f":"IFERROR(VLOOKUP(C317,Translation!$A:$C,3,FALSE),C317)","v":"IMMEUBLES COLLECTIFS RÉSIDENTIELS"},{"$f":"IFERROR(VLOOKUP(D317,Translation!$A:$C,3,FALSE),D317)","v":"Alberta"},{"$f":"IFERROR(VLOOKUP(E317,Translation!$A:$C,3,FALSE),E317)","v":33.179800132461125},{"$f":"IFERROR(VLOOKUP(F317,Translation!$A:$C,3,FALSE),F317)","v":"Période d’amortissement moyenne selon la province"},{"$f":"IFERROR(VLOOKUP(G317,Translation!$A:$C,3,FALSE),G317)","v":"33.2"},{"$f":"IFERROR(VLOOKUP(H317,Translation!$A:$C,3,FALSE),H317)","v":"Alberta"}]
[28,"T3 2019","IMMEUBLES COLLECTIFS RÉSIDENTIELS","Colombie-Britannique",36.243821573962549,"Période d’amortissement moyenne selon la province","36.2","Colombie-Britannique",{"$f":"IFERROR(VLOOKUP(A318,Translation!$A:$C,3,FALSE),A318)","v":28},{"$f":"IFERROR(VLOOKUP(B318,Translation!$A:$C,3,FALSE),B318)","v":"T3 2019"},{"$f":"IFERROR(VLOOKUP(C318,Translation!$A:$C,3,FALSE),C318)","v":"IMMEUBLES COLLECTIFS RÉSIDENTIELS"},{"$f":"IFERROR(VLOOKUP(D318,Translation!$A:$C,3,FALSE),D318)","v":"Colombie-Britannique"},{"$f":"IFERROR(VLOOKUP(E318,Translation!$A:$C,3,FALSE),E318)","v":36.243821573962549},{"$f":"IFERROR(VLOOKUP(F318,Translation!$A:$C,3,FALSE),F318)","v":"Période d’amortissement moyenne selon la province"},{"$f":"IFERROR(VLOOKUP(G318,Translation!$A:$C,3,FALSE),G318)","v":"36.2"},{"$f":"IFERROR(VLOOKUP(H318,Translation!$A:$C,3,FALSE),H318)","v":"Colombie-Britannique"}]
[28,"T3 2019","IMMEUBLES COLLECTIFS RÉSIDENTIELS","Territoires",27.762190597325752,"Période d’amortissement moyenne selon la province","27.8","Territoires",{"$f":"IFERROR(VLOOKUP(A319,Translation!$A:$C,3,FALSE),A319)","v":28},{"$f":"IFERROR(VLOOKUP(B319,Translation!$A:$C,3,FALSE),B319)","v":"T3 2019"},{"$f":"IFERROR(VLOOKUP(C319,Translation!$A:$C,3,FALSE),C319)","v":"IMMEUBLES COLLECTIFS RÉSIDENTIELS"},{"$f":"IFERROR(VLOOKUP(D319,Translation!$A:$C,3,FALSE),D319)","v":"Territoires"},{"$f":"IFERROR(VLOOKUP(E319,Translation!$A:$C,3,FALSE),E319)","v":27.762190597325752},{"$f":"IFERROR(VLOOKUP(F319,Translation!$A:$C,3,FALSE),F319)","v":"Période d’amortissement moyenne selon la province"},{"$f":"IFERROR(VLOOKUP(G319,Translation!$A:$C,3,FALSE),G319)","v":"27.8"},{"$f":"IFERROR(VLOOKUP(H319,Translation!$A:$C,3,FALSE),H319)","v":"Territoires"}]
[10,"T2 2019","PROPRIÉTAIRES-OCCUPANTS, À L’UNITÉ","<= 5",1.5750541383088651E-2,"Prêts hypothécaires assurés au cours de la période selon la période d’amortissement (en années) à l'initiation (%)","0.0"," <= 5",{"$f":"IFERROR(VLOOKUP(A320,Translation!$A:$C,3,FALSE),A320)","v":10},{"$f":"IFERROR(VLOOKUP(B320,Translation!$A:$C,3,FALSE),B320)","v":"T2 2019"},{"$f":"IFERROR(VLOOKUP(C320,Translation!$A:$C,3,FALSE),C320)","v":"PROPRIÉTAIRES-OCCUPANTS, À L’UNITÉ"},{"$f":"IFERROR(VLOOKUP(D320,Translation!$A:$C,3,FALSE),D320)","v":"<= 5"},{"$f":"IFERROR(VLOOKUP(E320,Translation!$A:$C,3,FALSE),E320)","v":1.5750541383088651E-2},{"$f":"IFERROR(VLOOKUP(F320,Translation!$A:$C,3,FALSE),F320)","v":"Prêts hypothécaires assurés au cours de la période selon la période d’amortissement (en années) à l'initiation (%)"},{"$f":"IFERROR(VLOOKUP(G320,Translation!$A:$C,3,FALSE),G320)","v":"0.0"},{"$f":"IFERROR(VLOOKUP(H320,Translation!$A:$C,3,FALSE),H320)","v":" <= 5"}]
[10,"T2 2019","PROPRIÉTAIRES-OCCUPANTS, À L’UNITÉ","> 5 <= 10",4.1381142791501437E-2,"Prêts hypothécaires assurés au cours de la période selon la période d’amortissement (en années) à l'initiation (%)","0.0"," > 5 <= 10",{"$f":"IFERROR(VLOOKUP(A321,Translation!$A:$C,3,FALSE),A321)","v":10},{"$f":"IFERROR(VLOOKUP(B321,Translation!$A:$C,3,FALSE),B321)","v":"T2 2019"},{"$f":"IFERROR(VLOOKUP(C321,Translation!$A:$C,3,FALSE),C321)","v":"PROPRIÉTAIRES-OCCUPANTS, À L’UNITÉ"},{"$f":"IFERROR(VLOOKUP(D321,Translation!$A:$C,3,FALSE),D321)","v":"> 5 <= 10"},{"$f":"IFERROR(VLOOKUP(E321,Translation!$A:$C,3,FALSE),E321)","v":4.1381142791501437E-2},{"$f":"IFERROR(VLOOKUP(F321,Translation!$A:$C,3,FALSE),F321)","v":"Prêts hypothécaires assurés au cours de la période selon la période d’amortissement (en années) à l'initiation (%)"},{"$f":"IFERROR(VLOOKUP(G321,Translation!$A:$C,3,FALSE),G321)","v":"0.0"},{"$f":"IFERROR(VLOOKUP(H321,Translation!$A:$C,3,FALSE),H321)","v":" > 5 <= 10"}]
[10,"T2 2019","PROPRIÉTAIRES-OCCUPANTS, À L’UNITÉ","> 10 <= 15",0.1412123590269462,"Prêts hypothécaires assurés au cours de la période selon la période d’amortissement (en années) à l'initiation (%)","0.1"," > 10 <= 15",{"$f":"IFERROR(VLOOKUP(A322,Translation!$A:$C,3,FALSE),A322)","v":10},{"$f":"IFERROR(VLOOKUP(B322,Translation!$A:$C,3,FALSE),B322)","v":"T2 2019"},{"$f":"IFERROR(VLOOKUP(C322,Translation!$A:$C,3,FALSE),C322)","v":"PROPRIÉTAIRES-OCCUPANTS, À L’UNITÉ"},{"$f":"IFERROR(VLOOKUP(D322,Translation!$A:$C,3,FALSE),D322)","v":"> 10 <= 15"},{"$f":"IFERROR(VLOOKUP(E322,Translation!$A:$C,3,FALSE),E322)","v":0.1412123590269462},{"$f":"IFERROR(VLOOKUP(F322,Translation!$A:$C,3,FALSE),F322)","v":"Prêts hypothécaires assurés au cours de la période selon la période d’amortissement (en années) à l'initiation (%)"},{"$f":"IFERROR(VLOOKUP(G322,Translation!$A:$C,3,FALSE),G322)","v":"0.1"},{"$f":"IFERROR(VLOOKUP(H322,Translation!$A:$C,3,FALSE),H322)","v":" > 10 <= 15"}]
[10,"T2 2019","PROPRIÉTAIRES-OCCUPANTS, À L’UNITÉ","> 15 <= 20",0.63108486205590897,"Prêts hypothécaires assurés au cours de la période selon la période d’amortissement (en années) à l'initiation (%)","0.6"," > 15 <= 20",{"$f":"IFERROR(VLOOKUP(A323,Translation!$A:$C,3,FALSE),A323)","v":10},{"$f":"IFERROR(VLOOKUP(B323,Translation!$A:$C,3,FALSE),B323)","v":"T2 2019"},{"$f":"IFERROR(VLOOKUP(C323,Translation!$A:$C,3,FALSE),C323)","v":"PROPRIÉTAIRES-OCCUPANTS, À L’UNITÉ"},{"$f":"IFERROR(VLOOKUP(D323,Translation!$A:$C,3,FALSE),D323)","v":"> 15 <= 20"},{"$f":"IFERROR(VLOOKUP(E323,Translation!$A:$C,3,FALSE),E323)","v":0.63108486205590897},{"$f":"IFERROR(VLOOKUP(F323,Translation!$A:$C,3,FALSE),F323)","v":"Prêts hypothécaires assurés au cours de la période selon la période d’amortissement (en années) à l'initiation (%)"},{"$f":"IFERROR(VLOOKUP(G323,Translation!$A:$C,3,FALSE),G323)","v":"0.6"},{"$f":"IFERROR(VLOOKUP(H323,Translation!$A:$C,3,FALSE),H323)","v":" > 15 <= 20"}]
[10,"T2 2019","PROPRIÉTAIRES-OCCUPANTS, À L’UNITÉ","> 20 <= 25",99.170571094742556,"Prêts hypothécaires assurés au cours de la période selon la période d’amortissement (en années) à l'initiation (%)","99.2"," > 20 <= 25",{"$f":"IFERROR(VLOOKUP(A324,Translation!$A:$C,3,FALSE),A324)","v":10},{"$f":"IFERROR(VLOOKUP(B324,Translation!$A:$C,3,FALSE),B324)","v":"T2 2019"},{"$f":"IFERROR(VLOOKUP(C324,Translation!$A:$C,3,FALSE),C324)","v":"PROPRIÉTAIRES-OCCUPANTS, À L’UNITÉ"},{"$f":"IFERROR(VLOOKUP(D324,Translation!$A:$C,3,FALSE),D324)","v":"> 20 <= 25"},{"$f":"IFERROR(VLOOKUP(E324,Translation!$A:$C,3,FALSE),E324)","v":99.170571094742556},{"$f":"IFERROR(VLOOKUP(F324,Translation!$A:$C,3,FALSE),F324)","v":"Prêts hypothécaires assurés au cours de la période selon la période d’amortissement (en années) à l'initiation (%)"},{"$f":"IFERROR(VLOOKUP(G324,Translation!$A:$C,3,FALSE),G324)","v":"99.2"},{"$f":"IFERROR(VLOOKUP(H324,Translation!$A:$C,3,FALSE),H324)","v":" > 20 <= 25"}]
[10,"T2 2019","PROPRIÉTAIRES-OCCUPANTS, À L’UNITÉ","Période d’amortissement moyenne",24.882135943521,"Prêts hypothécaires assurés au cours de la période selon la période d’amortissement (en années) à l'initiation (%)","24.9","Période d’amortissement moyenne",{"$f":"IFERROR(VLOOKUP(A325,Translation!$A:$C,3,FALSE),A325)","v":10},{"$f":"IFERROR(VLOOKUP(B325,Translation!$A:$C,3,FALSE),B325)","v":"T2 2019"},{"$f":"IFERROR(VLOOKUP(C325,Translation!$A:$C,3,FALSE),C325)","v":"PROPRIÉTAIRES-OCCUPANTS, À L’UNITÉ"},{"$f":"IFERROR(VLOOKUP(D325,Translation!$A:$C,3,FALSE),D325)","v":"Période d’amortissement moyenne"},{"$f":"IFERROR(VLOOKUP(E325,Translation!$A:$C,3,FALSE),E325)","v":24.882135943521},{"$f":"IFERROR(VLOOKUP(F325,Translation!$A:$C,3,FALSE),F325)","v":"Prêts hypothécaires assurés au cours de la période selon la période d’amortissement (en années) à l'initiation (%)"},{"$f":"IFERROR(VLOOKUP(G325,Translation!$A:$C,3,FALSE),G325)","v":"24.9"},{"$f":"IFERROR(VLOOKUP(H325,Translation!$A:$C,3,FALSE),H325)","v":"Période d’amortissement moyenne"}]
[10,"T2 2019","PROPRIÉTAIRES-OCCUPANTS, À L’UNITÉ","Terre-Neuve-et-Labrador",24.914773808007329,"Période d’amortissement moyenne selon la province","24.9","Terre-Neuve-et-Labrador",{"$f":"IFERROR(VLOOKUP(A326,Translation!$A:$C,3,FALSE),A326)","v":10},{"$f":"IFERROR(VLOOKUP(B326,Translation!$A:$C,3,FALSE),B326)","v":"T2 2019"},{"$f":"IFERROR(VLOOKUP(C326,Translation!$A:$C,3,FALSE),C326)","v":"PROPRIÉTAIRES-OCCUPANTS, À L’UNITÉ"},{"$f":"IFERROR(VLOOKUP(D326,Translation!$A:$C,3,FALSE),D326)","v":"Terre-Neuve-et-Labrador"},{"$f":"IFERROR(VLOOKUP(E326,Translation!$A:$C,3,FALSE),E326)","v":24.914773808007329},{"$f":"IFERROR(VLOOKUP(F326,Translation!$A:$C,3,FALSE),F326)","v":"Période d’amortissement moyenne selon la province"},{"$f":"IFERROR(VLOOKUP(G326,Translation!$A:$C,3,FALSE),G326)","v":"24.9"},{"$f":"IFERROR(VLOOKUP(H326,Translation!$A:$C,3,FALSE),H326)","v":"Terre-Neuve-et-Labrador"}]
[10,"T2 2019","PROPRIÉTAIRES-OCCUPANTS, À L’UNITÉ","Île-du-Prince-Édouard",24.899093314360695,"Période d’amortissement moyenne selon la province","24.9","Île-du-Prince-Édouard",{"$f":"IFERROR(VLOOKUP(A327,Translation!$A:$C,3,FALSE),A327)","v":10},{"$f":"IFERROR(VLOOKUP(B327,Translation!$A:$C,3,FALSE),B327)","v":"T2 2019"},{"$f":"IFERROR(VLOOKUP(C327,Translation!$A:$C,3,FALSE),C327)","v":"PROPRIÉTAIRES-OCCUPANTS, À L’UNITÉ"},{"$f":"IFERROR(VLOOKUP(D327,Translation!$A:$C,3,FALSE),D327)","v":"Île-du-Prince-Édouard"},{"$f":"IFERROR(VLOOKUP(E327,Translation!$A:$C,3,FALSE),E327)","v":24.899093314360695},{"$f":"IFERROR(VLOOKUP(F327,Translation!$A:$C,3,FALSE),F327)","v":"Période d’amortissement moyenne selon la province"},{"$f":"IFERROR(VLOOKUP(G327,Translation!$A:$C,3,FALSE),G327)","v":"24.9"},{"$f":"IFERROR(VLOOKUP(H327,Translation!$A:$C,3,FALSE),H327)","v":"Île-du-Prince-Édouard"}]
[10,"T2 2019","PROPRIÉTAIRES-OCCUPANTS, À L’UNITÉ","Nouvelle-Écosse",24.712096805603121,"Période d’amortissement moyenne selon la province","24.7","Nouvelle-Écosse",{"$f":"IFERROR(VLOOKUP(A328,Translation!$A:$C,3,FALSE),A328)","v":10},{"$f":"IFERROR(VLOOKUP(B328,Translation!$A:$C,3,FALSE),B328)","v":"T2 2019"},{"$f":"IFERROR(VLOOKUP(C328,Translation!$A:$C,3,FALSE),C328)","v":"PROPRIÉTAIRES-OCCUPANTS, À L’UNITÉ"},{"$f":"IFERROR(VLOOKUP(D328,Translation!$A:$C,3,FALSE),D328)","v":"Nouvelle-Écosse"},{"$f":"IFERROR(VLOOKUP(E328,Translation!$A:$C,3,FALSE),E328)","v":24.712096805603121},{"$f":"IFERROR(VLOOKUP(F328,Translation!$A:$C,3,FALSE),F328)","v":"Période d’amortissement moyenne selon la province"},{"$f":"IFERROR(VLOOKUP(G328,Translation!$A:$C,3,FALSE),G328)","v":"24.7"},{"$f":"IFERROR(VLOOKUP(H328,Translation!$A:$C,3,FALSE),H328)","v":"Nouvelle-Écosse"}]
[10,"T2 2019","PROPRIÉTAIRES-OCCUPANTS, À L’UNITÉ","Nouveau-Brunswick",24.715791042748503,"Période d’amortissement moyenne selon la province","24.7","Nouveau-Brunswick",{"$f":"IFERROR(VLOOKUP(A329,Translation!$A:$C,3,FALSE),A329)","v":10},{"$f":"IFERROR(VLOOKUP(B329,Translation!$A:$C,3,FALSE),B329)","v":"T2 2019"},{"$f":"IFERROR(VLOOKUP(C329,Translation!$A:$C,3,FALSE),C329)","v":"PROPRIÉTAIRES-OCCUPANTS, À L’UNITÉ"},{"$f":"IFERROR(VLOOKUP(D329,Translation!$A:$C,3,FALSE),D329)","v":"Nouveau-Brunswick"},{"$f":"IFERROR(VLOOKUP(E329,Translation!$A:$C,3,FALSE),E329)","v":24.715791042748503},{"$f":"IFERROR(VLOOKUP(F329,Translation!$A:$C,3,FALSE),F329)","v":"Période d’amortissement moyenne selon la province"},{"$f":"IFERROR(VLOOKUP(G329,Translation!$A:$C,3,FALSE),G329)","v":"24.7"},{"$f":"IFERROR(VLOOKUP(H329,Translation!$A:$C,3,FALSE),H329)","v":"Nouveau-Brunswick"}]
[10,"T2 2019","PROPRIÉTAIRES-OCCUPANTS, À L’UNITÉ","Québec",24.909343324308121,"Période d’amortissement moyenne selon la province","24.9","Québec",{"$f":"IFERROR(VLOOKUP(A330,Translation!$A:$C,3,FALSE),A330)","v":10},{"$f":"IFERROR(VLOOKUP(B330,Translation!$A:$C,3,FALSE),B330)","v":"T2 2019"},{"$f":"IFERROR(VLOOKUP(C330,Translation!$A:$C,3,FALSE),C330)","v":"PROPRIÉTAIRES-OCCUPANTS, À L’UNITÉ"},{"$f":"IFERROR(VLOOKUP(D330,Translation!$A:$C,3,FALSE),D330)","v":"Québec"},{"$f":"IFERROR(VLOOKUP(E330,Translation!$A:$C,3,FALSE),E330)","v":24.909343324308121},{"$f":"IFERROR(VLOOKUP(F330,Translation!$A:$C,3,FALSE),F330)","v":"Période d’amortissement moyenne selon la province"},{"$f":"IFERROR(VLOOKUP(G330,Translation!$A:$C,3,FALSE),G330)","v":"24.9"},{"$f":"IFERROR(VLOOKUP(H330,Translation!$A:$C,3,FALSE),H330)","v":"Québec"}]
[10,"T2 2019","PROPRIÉTAIRES-OCCUPANTS, À L’UNITÉ","Ontario",24.92029379599504,"Période d’amortissement moyenne selon la province","24.9","Ontario",{"$f":"IFERROR(VLOOKUP(A331,Translation!$A:$C,3,FALSE),A331)","v":10},{"$f":"IFERROR(VLOOKUP(B331,Translation!$A:$C,3,FALSE),B331)","v":"T2 2019"},{"$f":"IFERROR(VLOOKUP(C331,Translation!$A:$C,3,FALSE),C331)","v":"PROPRIÉTAIRES-OCCUPANTS, À L’UNITÉ"},{"$f":"IFERROR(VLOOKUP(D331,Translation!$A:$C,3,FALSE),D331)","v":"Ontario"},{"$f":"IFERROR(VLOOKUP(E331,Translation!$A:$C,3,FALSE),E331)","v":24.92029379599504},{"$f":"IFERROR(VLOOKUP(F331,Translation!$A:$C,3,FALSE),F331)","v":"Période d’amortissement moyenne selon la province"},{"$f":"IFERROR(VLOOKUP(G331,Translation!$A:$C,3,FALSE),G331)","v":"24.9"},{"$f":"IFERROR(VLOOKUP(H331,Translation!$A:$C,3,FALSE),H331)","v":"Ontario"}]
[10,"T2 2019","PROPRIÉTAIRES-OCCUPANTS, À L’UNITÉ","Manitoba",24.827652642881088,"Période d’amortissement moyenne selon la province","24.8","Manitoba",{"$f":"IFERROR(VLOOKUP(A332,Translation!$A:$C,3,FALSE),A332)","v":10},{"$f":"IFERROR(VLOOKUP(B332,Translation!$A:$C,3,FALSE),B332)","v":"T2 2019"},{"$f":"IFERROR(VLOOKUP(C332,Translation!$A:$C,3,FALSE),C332)","v":"PROPRIÉTAIRES-OCCUPANTS, À L’UNITÉ"},{"$f":"IFERROR(VLOOKUP(D332,Translation!$A:$C,3,FALSE),D332)","v":"Manitoba"},{"$f":"IFERROR(VLOOKUP(E332,Translation!$A:$C,3,FALSE),E332)","v":24.827652642881088},{"$f":"IFERROR(VLOOKUP(F332,Translation!$A:$C,3,FALSE),F332)","v":"Période d’amortissement moyenne selon la province"},{"$f":"IFERROR(VLOOKUP(G332,Translation!$A:$C,3,FALSE),G332)","v":"24.8"},{"$f":"IFERROR(VLOOKUP(H332,Translation!$A:$C,3,FALSE),H332)","v":"Manitoba"}]
[10,"T2 2019","PROPRIÉTAIRES-OCCUPANTS, À L’UNITÉ","Saskatchewan",24.751859295691339,"Période d’amortissement moyenne selon la province","24.8","Saskatchewan",{"$f":"IFERROR(VLOOKUP(A333,Translation!$A:$C,3,FALSE),A333)","v":10},{"$f":"IFERROR(VLOOKUP(B333,Translation!$A:$C,3,FALSE),B333)","v":"T2 2019"},{"$f":"IFERROR(VLOOKUP(C333,Translation!$A:$C,3,FALSE),C333)","v":"PROPRIÉTAIRES-OCCUPANTS, À L’UNITÉ"},{"$f":"IFERROR(VLOOKUP(D333,Translation!$A:$C,3,FALSE),D333)","v":"Saskatchewan"},{"$f":"IFERROR(VLOOKUP(E333,Translation!$A:$C,3,FALSE),E333)","v":24.751859295691339},{"$f":"IFERROR(VLOOKUP(F333,Translation!$A:$C,3,FALSE),F333)","v":"Période d’amortissement moyenne selon la province"},{"$f":"IFERROR(VLOOKUP(G333,Translation!$A:$C,3,FALSE),G333)","v":"24.8"},{"$f":"IFERROR(VLOOKUP(H333,Translation!$A:$C,3,FALSE),H333)","v":"Saskatchewan"}]
[10,"T2 2019","PROPRIÉTAIRES-OCCUPANTS, À L’UNITÉ","Alberta",24.83179012803264,"Période d’amortissement moyenne selon la province","24.8","Alberta",{"$f":"IFERROR(VLOOKUP(A334,Translation!$A:$C,3,FALSE),A334)","v":10},{"$f":"IFERROR(VLOOKUP(B334,Translation!$A:$C,3,FALSE),B334)","v":"T2 2019"},{"$f":"IFERROR(VLOOKUP(C334,Translation!$A:$C,3,FALSE),C334)","v":"PROPRIÉTAIRES-OCCUPANTS, À L’UNITÉ"},{"$f":"IFERROR(VLOOKUP(D334,Translation!$A:$C,3,FALSE),D334)","v":"Alberta"},{"$f":"IFERROR(VLOOKUP(E334,Translation!$A:$C,3,FALSE),E334)","v":24.83179012803264},{"$f":"IFERROR(VLOOKUP(F334,Translation!$A:$C,3,FALSE),F334)","v":"Période d’amortissement moyenne selon la province"},{"$f":"IFERROR(VLOOKUP(G334,Translation!$A:$C,3,FALSE),G334)","v":"24.8"},{"$f":"IFERROR(VLOOKUP(H334,Translation!$A:$C,3,FALSE),H334)","v":"Alberta"}]
[10,"T2 2019","PROPRIÉTAIRES-OCCUPANTS, À L’UNITÉ","Colombie-Britannique",24.853131255871503,"Période d’amortissement moyenne selon la province","24.9","Colombie-Britannique",{"$f":"IFERROR(VLOOKUP(A335,Translation!$A:$C,3,FALSE),A335)","v":10},{"$f":"IFERROR(VLOOKUP(B335,Translation!$A:$C,3,FALSE),B335)","v":"T2 2019"},{"$f":"IFERROR(VLOOKUP(C335,Translation!$A:$C,3,FALSE),C335)","v":"PROPRIÉTAIRES-OCCUPANTS, À L’UNITÉ"},{"$f":"IFERROR(VLOOKUP(D335,Translation!$A:$C,3,FALSE),D335)","v":"Colombie-Britannique"},{"$f":"IFERROR(VLOOKUP(E335,Translation!$A:$C,3,FALSE),E335)","v":24.853131255871503},{"$f":"IFERROR(VLOOKUP(F335,Translation!$A:$C,3,FALSE),F335)","v":"Période d’amortissement moyenne selon la province"},{"$f":"IFERROR(VLOOKUP(G335,Translation!$A:$C,3,FALSE),G335)","v":"24.9"},{"$f":"IFERROR(VLOOKUP(H335,Translation!$A:$C,3,FALSE),H335)","v":"Colombie-Britannique"}]
[10,"T2 2019","PROPRIÉTAIRES-OCCUPANTS, À L’UNITÉ","Territoires",24.779462565158639,"Période d’amortissement moyenne selon la province","24.8","Territoires",{"$f":"IFERROR(VLOOKUP(A336,Translation!$A:$C,3,FALSE),A336)","v":10},{"$f":"IFERROR(VLOOKUP(B336,Translation!$A:$C,3,FALSE),B336)","v":"T2 2019"},{"$f":"IFERROR(VLOOKUP(C336,Translation!$A:$C,3,FALSE),C336)","v":"PROPRIÉTAIRES-OCCUPANTS, À L’UNITÉ"},{"$f":"IFERROR(VLOOKUP(D336,Translation!$A:$C,3,FALSE),D336)","v":"Territoires"},{"$f":"IFERROR(VLOOKUP(E336,Translation!$A:$C,3,FALSE),E336)","v":24.779462565158639},{"$f":"IFERROR(VLOOKUP(F336,Translation!$A:$C,3,FALSE),F336)","v":"Période d’amortissement moyenne selon la province"},{"$f":"IFERROR(VLOOKUP(G336,Translation!$A:$C,3,FALSE),G336)","v":"24.8"},{"$f":"IFERROR(VLOOKUP(H336,Translation!$A:$C,3,FALSE),H336)","v":"Territoires"}]
[10,"T2 2019","ASSURANCE DE PORTEFEUILLE","<= 5",0.3913522087957067,"Prêts hypothécaires assurés au cours de la période selon la période d’amortissement (en années) à l'initiation (%)","0.4"," <= 5",{"$f":"IFERROR(VLOOKUP(A337,Translation!$A:$C,3,FALSE),A337)","v":10},{"$f":"IFERROR(VLOOKUP(B337,Translation!$A:$C,3,FALSE),B337)","v":"T2 2019"},{"$f":"IFERROR(VLOOKUP(C337,Translation!$A:$C,3,FALSE),C337)","v":"ASSURANCE DE PORTEFEUILLE"},{"$f":"IFERROR(VLOOKUP(D337,Translation!$A:$C,3,FALSE),D337)","v":"<= 5"},{"$f":"IFERROR(VLOOKUP(E337,Translation!$A:$C,3,FALSE),E337)","v":0.3913522087957067},{"$f":"IFERROR(VLOOKUP(F337,Translation!$A:$C,3,FALSE),F337)","v":"Prêts hypothécaires assurés au cours de la période selon la période d’amortissement (en années) à l'initiation (%)"},{"$f":"IFERROR(VLOOKUP(G337,Translation!$A:$C,3,FALSE),G337)","v":"0.4"},{"$f":"IFERROR(VLOOKUP(H337,Translation!$A:$C,3,FALSE),H337)","v":" <= 5"}]
[10,"T2 2019","ASSURANCE DE PORTEFEUILLE","> 5 <= 10",5.0963169652642915,"Prêts hypothécaires assurés au cours de la période selon la période d’amortissement (en années) à l'initiation (%)","5.1"," > 5 <= 10",{"$f":"IFERROR(VLOOKUP(A338,Translation!$A:$C,3,FALSE),A338)","v":10},{"$f":"IFERROR(VLOOKUP(B338,Translation!$A:$C,3,FALSE),B338)","v":"T2 2019"},{"$f":"IFERROR(VLOOKUP(C338,Translation!$A:$C,3,FALSE),C338)","v":"ASSURANCE DE PORTEFEUILLE"},{"$f":"IFERROR(VLOOKUP(D338,Translation!$A:$C,3,FALSE),D338)","v":"> 5 <= 10"},{"$f":"IFERROR(VLOOKUP(E338,Translation!$A:$C,3,FALSE),E338)","v":5.0963169652642915},{"$f":"IFERROR(VLOOKUP(F338,Translation!$A:$C,3,FALSE),F338)","v":"Prêts hypothécaires assurés au cours de la période selon la période d’amortissement (en années) à l'initiation (%)"},{"$f":"IFERROR(VLOOKUP(G338,Translation!$A:$C,3,FALSE),G338)","v":"5.1"},{"$f":"IFERROR(VLOOKUP(H338,Translation!$A:$C,3,FALSE),H338)","v":" > 5 <= 10"}]
[10,"T2 2019","ASSURANCE DE PORTEFEUILLE","> 10 <= 15",6.1924648104500495,"Prêts hypothécaires assurés au cours de la période selon la période d’amortissement (en années) à l'initiation (%)","6.2"," > 10 <= 15",{"$f":"IFERROR(VLOOKUP(A339,Translation!$A:$C,3,FALSE),A339)","v":10},{"$f":"IFERROR(VLOOKUP(B339,Translation!$A:$C,3,FALSE),B339)","v":"T2 2019"},{"$f":"IFERROR(VLOOKUP(C339,Translation!$A:$C,3,FALSE),C339)","v":"ASSURANCE DE PORTEFEUILLE"},{"$f":"IFERROR(VLOOKUP(D339,Translation!$A:$C,3,FALSE),D339)","v":"> 10 <= 15"},{"$f":"IFERROR(VLOOKUP(E339,Translation!$A:$C,3,FALSE),E339)","v":6.1924648104500495},{"$f":"IFERROR(VLOOKUP(F339,Translation!$A:$C,3,FALSE),F339)","v":"Prêts hypothécaires assurés au cours de la période selon la période d’amortissement (en années) à l'initiation (%)"},{"$f":"IFERROR(VLOOKUP(G339,Translation!$A:$C,3,FALSE),G339)","v":"6.2"},{"$f":"IFERROR(VLOOKUP(H339,Translation!$A:$C,3,FALSE),H339)","v":" > 10 <= 15"}]
[10,"T2 2019","ASSURANCE DE PORTEFEUILLE","> 15 <= 20",14.073640872166612,"Prêts hypothécaires assurés au cours de la période selon la période d’amortissement (en années) à l'initiation (%)","14.1"," > 15 <= 20",{"$f":"IFERROR(VLOOKUP(A340,Translation!$A:$C,3,FALSE),A340)","v":10},{"$f":"IFERROR(VLOOKUP(B340,Translation!$A:$C,3,FALSE),B340)","v":"T2 2019"},{"$f":"IFERROR(VLOOKUP(C340,Translation!$A:$C,3,FALSE),C340)","v":"ASSURANCE DE PORTEFEUILLE"},{"$f":"IFERROR(VLOOKUP(D340,Translation!$A:$C,3,FALSE),D340)","v":"> 15 <= 20"},{"$f":"IFERROR(VLOOKUP(E340,Translation!$A:$C,3,FALSE),E340)","v":14.073640872166612},{"$f":"IFERROR(VLOOKUP(F340,Translation!$A:$C,3,FALSE),F340)","v":"Prêts hypothécaires assurés au cours de la période selon la période d’amortissement (en années) à l'initiation (%)"},{"$f":"IFERROR(VLOOKUP(G340,Translation!$A:$C,3,FALSE),G340)","v":"14.1"},{"$f":"IFERROR(VLOOKUP(H340,Translation!$A:$C,3,FALSE),H340)","v":" > 15 <= 20"}]
[10,"T2 2019","ASSURANCE DE PORTEFEUILLE","> 20 <= 25",68.987343072618671,"Prêts hypothécaires assurés au cours de la période selon la période d’amortissement (en années) à l'initiation (%)","69.0"," > 20 <= 25",{"$f":"IFERROR(VLOOKUP(A341,Translation!$A:$C,3,FALSE),A341)","v":10},{"$f":"IFERROR(VLOOKUP(B341,Translation!$A:$C,3,FALSE),B341)","v":"T2 2019"},{"$f":"IFERROR(VLOOKUP(C341,Translation!$A:$C,3,FALSE),C341)","v":"ASSURANCE DE PORTEFEUILLE"},{"$f":"IFERROR(VLOOKUP(D341,Translation!$A:$C,3,FALSE),D341)","v":"> 20 <= 25"},{"$f":"IFERROR(VLOOKUP(E341,Translation!$A:$C,3,FALSE),E341)","v":68.987343072618671},{"$f":"IFERROR(VLOOKUP(F341,Translation!$A:$C,3,FALSE),F341)","v":"Prêts hypothécaires assurés au cours de la période selon la période d’amortissement (en années) à l'initiation (%)"},{"$f":"IFERROR(VLOOKUP(G341,Translation!$A:$C,3,FALSE),G341)","v":"69.0"},{"$f":"IFERROR(VLOOKUP(H341,Translation!$A:$C,3,FALSE),H341)","v":" > 20 <= 25"}]
[10,"T2 2019","ASSURANCE DE PORTEFEUILLE","> 25 <= 30",5.1250945711903011,"Prêts hypothécaires assurés au cours de la période selon la période d’amortissement (en années) à l'initiation (%)","5.1"," > 25 <= 30",{"$f":"IFERROR(VLOOKUP(A342,Translation!$A:$C,3,FALSE),A342)","v":10},{"$f":"IFERROR(VLOOKUP(B342,Translation!$A:$C,3,FALSE),B342)","v":"T2 2019"},{"$f":"IFERROR(VLOOKUP(C342,Translation!$A:$C,3,FALSE),C342)","v":"ASSURANCE DE PORTEFEUILLE"},{"$f":"IFERROR(VLOOKUP(D342,Translation!$A:$C,3,FALSE),D342)","v":"> 25 <= 30"},{"$f":"IFERROR(VLOOKUP(E342,Translation!$A:$C,3,FALSE),E342)","v":5.1250945711903011},{"$f":"IFERROR(VLOOKUP(F342,Translation!$A:$C,3,FALSE),F342)","v":"Prêts hypothécaires assurés au cours de la période selon la période d’amortissement (en années) à l'initiation (%)"},{"$f":"IFERROR(VLOOKUP(G342,Translation!$A:$C,3,FALSE),G342)","v":"5.1"},{"$f":"IFERROR(VLOOKUP(H342,Translation!$A:$C,3,FALSE),H342)","v":" > 25 <= 30"}]
[10,"T2 2019","ASSURANCE DE PORTEFEUILLE","> 30 <= 35",2.0178228231555663E-2,"Prêts hypothécaires assurés au cours de la période selon la période d’amortissement (en années) à l'initiation (%)","0.0"," > 30 <= 35",{"$f":"IFERROR(VLOOKUP(A343,Translation!$A:$C,3,FALSE),A343)","v":10},{"$f":"IFERROR(VLOOKUP(B343,Translation!$A:$C,3,FALSE),B343)","v":"T2 2019"},{"$f":"IFERROR(VLOOKUP(C343,Translation!$A:$C,3,FALSE),C343)","v":"ASSURANCE DE PORTEFEUILLE"},{"$f":"IFERROR(VLOOKUP(D343,Translation!$A:$C,3,FALSE),D343)","v":"> 30 <= 35"},{"$f":"IFERROR(VLOOKUP(E343,Translation!$A:$C,3,FALSE),E343)","v":2.0178228231555663E-2},{"$f":"IFERROR(VLOOKUP(F343,Translation!$A:$C,3,FALSE),F343)","v":"Prêts hypothécaires assurés au cours de la période selon la période d’amortissement (en années) à l'initiation (%)"},{"$f":"IFERROR(VLOOKUP(G343,Translation!$A:$C,3,FALSE),G343)","v":"0.0"},{"$f":"IFERROR(VLOOKUP(H343,Translation!$A:$C,3,FALSE),H343)","v":" > 30 <= 35"}]
[10,"T2 2019","ASSURANCE DE PORTEFEUILLE","> 35",0.11360927128278152,"Prêts hypothécaires assurés au cours de la période selon la période d’amortissement (en années) à l'initiation (%)","0.1"," > 35",{"$f":"IFERROR(VLOOKUP(A344,Translation!$A:$C,3,FALSE),A344)","v":10},{"$f":"IFERROR(VLOOKUP(B344,Translation!$A:$C,3,FALSE),B344)","v":"T2 2019"},{"$f":"IFERROR(VLOOKUP(C344,Translation!$A:$C,3,FALSE),C344)","v":"ASSURANCE DE PORTEFEUILLE"},{"$f":"IFERROR(VLOOKUP(D344,Translation!$A:$C,3,FALSE),D344)","v":"> 35"},{"$f":"IFERROR(VLOOKUP(E344,Translation!$A:$C,3,FALSE),E344)","v":0.11360927128278152},{"$f":"IFERROR(VLOOKUP(F344,Translation!$A:$C,3,FALSE),F344)","v":"Prêts hypothécaires assurés au cours de la période selon la période d’amortissement (en années) à l'initiation (%)"},{"$f":"IFERROR(VLOOKUP(G344,Translation!$A:$C,3,FALSE),G344)","v":"0.1"},{"$f":"IFERROR(VLOOKUP(H344,Translation!$A:$C,3,FALSE),H344)","v":" > 35"}]
[10,"T2 2019","ASSURANCE DE PORTEFEUILLE","Période d’amortissement moyenne",21.566066764570387,"Prêts hypothécaires assurés au cours de la période selon la période d’amortissement (en années) à l'initiation (%)","21.6","Période d’amortissement moyenne",{"$f":"IFERROR(VLOOKUP(A345,Translation!$A:$C,3,FALSE),A345)","v":10},{"$f":"IFERROR(VLOOKUP(B345,Translation!$A:$C,3,FALSE),B345)","v":"T2 2019"},{"$f":"IFERROR(VLOOKUP(C345,Translation!$A:$C,3,FALSE),C345)","v":"ASSURANCE DE PORTEFEUILLE"},{"$f":"IFERROR(VLOOKUP(D345,Translation!$A:$C,3,FALSE),D345)","v":"Période d’amortissement moyenne"},{"$f":"IFERROR(VLOOKUP(E345,Translation!$A:$C,3,FALSE),E345)","v":21.566066764570387},{"$f":"IFERROR(VLOOKUP(F345,Translation!$A:$C,3,FALSE),F345)","v":"Prêts hypothécaires assurés au cours de la période selon la période d’amortissement (en années) à l'initiation (%)"},{"$f":"IFERROR(VLOOKUP(G345,Translation!$A:$C,3,FALSE),G345)","v":"21.6"},{"$f":"IFERROR(VLOOKUP(H345,Translation!$A:$C,3,FALSE),H345)","v":"Période d’amortissement moyenne"}]
[10,"T2 2019","ASSURANCE DE PORTEFEUILLE","Terre-Neuve-et-Labrador",21.920264714527057,"Période d’amortissement moyenne selon la province","21.9","Terre-Neuve-et-Labrador",{"$f":"IFERROR(VLOOKUP(A346,Translation!$A:$C,3,FALSE),A346)","v":10},{"$f":"IFERROR(VLOOKUP(B346,Translation!$A:$C,3,FALSE),B346)","v":"T2 2019"},{"$f":"IFERROR(VLOOKUP(C346,Translation!$A:$C,3,FALSE),C346)","v":"ASSURANCE DE PORTEFEUILLE"},{"$f":"IFERROR(VLOOKUP(D346,Translation!$A:$C,3,FALSE),D346)","v":"Terre-Neuve-et-Labrador"},{"$f":"IFERROR(VLOOKUP(E346,Translation!$A:$C,3,FALSE),E346)","v":21.920264714527057},{"$f":"IFERROR(VLOOKUP(F346,Translation!$A:$C,3,FALSE),F346)","v":"Période d’amortissement moyenne selon la province"},{"$f":"IFERROR(VLOOKUP(G346,Translation!$A:$C,3,FALSE),G346)","v":"21.9"},{"$f":"IFERROR(VLOOKUP(H346,Translation!$A:$C,3,FALSE),H346)","v":"Terre-Neuve-et-Labrador"}]
[10,"T2 2019","ASSURANCE DE PORTEFEUILLE","Île-du-Prince-Édouard",20.825047020806505,"Période d’amortissement moyenne selon la province","20.8","Île-du-Prince-Édouard",{"$f":"IFERROR(VLOOKUP(A347,Translation!$A:$C,3,FALSE),A347)","v":10},{"$f":"IFERROR(VLOOKUP(B347,Translation!$A:$C,3,FALSE),B347)","v":"T2 2019"},{"$f":"IFERROR(VLOOKUP(C347,Translation!$A:$C,3,FALSE),C347)","v":"ASSURANCE DE PORTEFEUILLE"},{"$f":"IFERROR(VLOOKUP(D347,Translation!$A:$C,3,FALSE),D347)","v":"Île-du-Prince-Édouard"},{"$f":"IFERROR(VLOOKUP(E347,Translation!$A:$C,3,FALSE),E347)","v":20.825047020806505},{"$f":"IFERROR(VLOOKUP(F347,Translation!$A:$C,3,FALSE),F347)","v":"Période d’amortissement moyenne selon la province"},{"$f":"IFERROR(VLOOKUP(G347,Translation!$A:$C,3,FALSE),G347)","v":"20.8"},{"$f":"IFERROR(VLOOKUP(H347,Translation!$A:$C,3,FALSE),H347)","v":"Île-du-Prince-Édouard"}]
[10,"T2 2019","ASSURANCE DE PORTEFEUILLE","Nouvelle-Écosse",22.187538441080569,"Période d’amortissement moyenne selon la province","22.2","Nouvelle-Écosse",{"$f":"IFERROR(VLOOKUP(A348,Translation!$A:$C,3,FALSE),A348)","v":10},{"$f":"IFERROR(VLOOKUP(B348,Translation!$A:$C,3,FALSE),B348)","v":"T2 2019"},{"$f":"IFERROR(VLOOKUP(C348,Translation!$A:$C,3,FALSE),C348)","v":"ASSURANCE DE PORTEFEUILLE"},{"$f":"IFERROR(VLOOKUP(D348,Translation!$A:$C,3,FALSE),D348)","v":"Nouvelle-Écosse"},{"$f":"IFERROR(VLOOKUP(E348,Translation!$A:$C,3,FALSE),E348)","v":22.187538441080569},{"$f":"IFERROR(VLOOKUP(F348,Translation!$A:$C,3,FALSE),F348)","v":"Période d’amortissement moyenne selon la province"},{"$f":"IFERROR(VLOOKUP(G348,Translation!$A:$C,3,FALSE),G348)","v":"22.2"},{"$f":"IFERROR(VLOOKUP(H348,Translation!$A:$C,3,FALSE),H348)","v":"Nouvelle-Écosse"}]
[10,"T2 2019","ASSURANCE DE PORTEFEUILLE","Nouveau-Brunswick",21.914118277843922,"Période d’amortissement moyenne selon la province","21.9","Nouveau-Brunswick",{"$f":"IFERROR(VLOOKUP(A349,Translation!$A:$C,3,FALSE),A349)","v":10},{"$f":"IFERROR(VLOOKUP(B349,Translation!$A:$C,3,FALSE),B349)","v":"T2 2019"},{"$f":"IFERROR(VLOOKUP(C349,Translation!$A:$C,3,FALSE),C349)","v":"ASSURANCE DE PORTEFEUILLE"},{"$f":"IFERROR(VLOOKUP(D349,Translation!$A:$C,3,FALSE),D349)","v":"Nouveau-Brunswick"},{"$f":"IFERROR(VLOOKUP(E349,Translation!$A:$C,3,FALSE),E349)","v":21.914118277843922},{"$f":"IFERROR(VLOOKUP(F349,Translation!$A:$C,3,FALSE),F349)","v":"Période d’amortissement moyenne selon la province"},{"$f":"IFERROR(VLOOKUP(G349,Translation!$A:$C,3,FALSE),G349)","v":"21.9"},{"$f":"IFERROR(VLOOKUP(H349,Translation!$A:$C,3,FALSE),H349)","v":"Nouveau-Brunswick"}]
[10,"T2 2019","ASSURANCE DE PORTEFEUILLE","Québec",22.424522594980196,"Période d’amortissement moyenne selon la province","22.4","Québec",{"$f":"IFERROR(VLOOKUP(A350,Translation!$A:$C,3,FALSE),A350)","v":10},{"$f":"IFERROR(VLOOKUP(B350,Translation!$A:$C,3,FALSE),B350)","v":"T2 2019"},{"$f":"IFERROR(VLOOKUP(C350,Translation!$A:$C,3,FALSE),C350)","v":"ASSURANCE DE PORTEFEUILLE"},{"$f":"IFERROR(VLOOKUP(D350,Translation!$A:$C,3,FALSE),D350)","v":"Québec"},{"$f":"IFERROR(VLOOKUP(E350,Translation!$A:$C,3,FALSE),E350)","v":22.424522594980196},{"$f":"IFERROR(VLOOKUP(F350,Translation!$A:$C,3,FALSE),F350)","v":"Période d’amortissement moyenne selon la province"},{"$f":"IFERROR(VLOOKUP(G350,Translation!$A:$C,3,FALSE),G350)","v":"22.4"},{"$f":"IFERROR(VLOOKUP(H350,Translation!$A:$C,3,FALSE),H350)","v":"Québec"}]
[10,"T2 2019","ASSURANCE DE PORTEFEUILLE","Ontario",21.827354799180995,"Période d’amortissement moyenne selon la province","21.8","Ontario",{"$f":"IFERROR(VLOOKUP(A351,Translation!$A:$C,3,FALSE),A351)","v":10},{"$f":"IFERROR(VLOOKUP(B351,Translation!$A:$C,3,FALSE),B351)","v":"T2 2019"},{"$f":"IFERROR(VLOOKUP(C351,Translation!$A:$C,3,FALSE),C351)","v":"ASSURANCE DE PORTEFEUILLE"},{"$f":"IFERROR(VLOOKUP(D351,Translation!$A:$C,3,FALSE),D351)","v":"Ontario"},{"$f":"IFERROR(VLOOKUP(E351,Translation!$A:$C,3,FALSE),E351)","v":21.827354799180995},{"$f":"IFERROR(VLOOKUP(F351,Translation!$A:$C,3,FALSE),F351)","v":"Période d’amortissement moyenne selon la province"},{"$f":"IFERROR(VLOOKUP(G351,Translation!$A:$C,3,FALSE),G351)","v":"21.8"},{"$f":"IFERROR(VLOOKUP(H351,Translation!$A:$C,3,FALSE),H351)","v":"Ontario"}]
[10,"T2 2019","ASSURANCE DE PORTEFEUILLE","Manitoba",21.894466451963535,"Période d’amortissement moyenne selon la province","21.9","Manitoba",{"$f":"IFERROR(VLOOKUP(A352,Translation!$A:$C,3,FALSE),A352)","v":10},{"$f":"IFERROR(VLOOKUP(B352,Translation!$A:$C,3,FALSE),B352)","v":"T2 2019"},{"$f":"IFERROR(VLOOKUP(C352,Translation!$A:$C,3,FALSE),C352)","v":"ASSURANCE DE PORTEFEUILLE"},{"$f":"IFERROR(VLOOKUP(D352,Translation!$A:$C,3,FALSE),D352)","v":"Manitoba"},{"$f":"IFERROR(VLOOKUP(E352,Translation!$A:$C,3,FALSE),E352)","v":21.894466451963535},{"$f":"IFERROR(VLOOKUP(F352,Translation!$A:$C,3,FALSE),F352)","v":"Période d’amortissement moyenne selon la province"},{"$f":"IFERROR(VLOOKUP(G352,Translation!$A:$C,3,FALSE),G352)","v":"21.9"},{"$f":"IFERROR(VLOOKUP(H352,Translation!$A:$C,3,FALSE),H352)","v":"Manitoba"}]
[10,"T2 2019","ASSURANCE DE PORTEFEUILLE","Saskatchewan",21.227435086897273,"Période d’amortissement moyenne selon la province","21.2","Saskatchewan",{"$f":"IFERROR(VLOOKUP(A353,Translation!$A:$C,3,FALSE),A353)","v":10},{"$f":"IFERROR(VLOOKUP(B353,Translation!$A:$C,3,FALSE),B353)","v":"T2 2019"},{"$f":"IFERROR(VLOOKUP(C353,Translation!$A:$C,3,FALSE),C353)","v":"ASSURANCE DE PORTEFEUILLE"},{"$f":"IFERROR(VLOOKUP(D353,Translation!$A:$C,3,FALSE),D353)","v":"Saskatchewan"},{"$f":"IFERROR(VLOOKUP(E353,Translation!$A:$C,3,FALSE),E353)","v":21.227435086897273},{"$f":"IFERROR(VLOOKUP(F353,Translation!$A:$C,3,FALSE),F353)","v":"Période d’amortissement moyenne selon la province"},{"$f":"IFERROR(VLOOKUP(G353,Translation!$A:$C,3,FALSE),G353)","v":"21.2"},{"$f":"IFERROR(VLOOKUP(H353,Translation!$A:$C,3,FALSE),H353)","v":"Saskatchewan"}]
[10,"T2 2019","ASSURANCE DE PORTEFEUILLE","Alberta",21.741363893110712,"Période d’amortissement moyenne selon la province","21.7","Alberta",{"$f":"IFERROR(VLOOKUP(A354,Translation!$A:$C,3,FALSE),A354)","v":10},{"$f":"IFERROR(VLOOKUP(B354,Translation!$A:$C,3,FALSE),B354)","v":"T2 2019"},{"$f":"IFERROR(VLOOKUP(C354,Translation!$A:$C,3,FALSE),C354)","v":"ASSURANCE DE PORTEFEUILLE"},{"$f":"IFERROR(VLOOKUP(D354,Translation!$A:$C,3,FALSE),D354)","v":"Alberta"},{"$f":"IFERROR(VLOOKUP(E354,Translation!$A:$C,3,FALSE),E354)","v":21.741363893110712},{"$f":"IFERROR(VLOOKUP(F354,Translation!$A:$C,3,FALSE),F354)","v":"Période d’amortissement moyenne selon la province"},{"$f":"IFERROR(VLOOKUP(G354,Translation!$A:$C,3,FALSE),G354)","v":"21.7"},{"$f":"IFERROR(VLOOKUP(H354,Translation!$A:$C,3,FALSE),H354)","v":"Alberta"}]
[10,"T2 2019","ASSURANCE DE PORTEFEUILLE","Colombie-Britannique",19.983325885056281,"Période d’amortissement moyenne selon la province","20.0","Colombie-Britannique",{"$f":"IFERROR(VLOOKUP(A355,Translation!$A:$C,3,FALSE),A355)","v":10},{"$f":"IFERROR(VLOOKUP(B355,Translation!$A:$C,3,FALSE),B355)","v":"T2 2019"},{"$f":"IFERROR(VLOOKUP(C355,Translation!$A:$C,3,FALSE),C355)","v":"ASSURANCE DE PORTEFEUILLE"},{"$f":"IFERROR(VLOOKUP(D355,Translation!$A:$C,3,FALSE),D355)","v":"Colombie-Britannique"},{"$f":"IFERROR(VLOOKUP(E355,Translation!$A:$C,3,FALSE),E355)","v":19.983325885056281},{"$f":"IFERROR(VLOOKUP(F355,Translation!$A:$C,3,FALSE),F355)","v":"Période d’amortissement moyenne selon la province"},{"$f":"IFERROR(VLOOKUP(G355,Translation!$A:$C,3,FALSE),G355)","v":"20.0"},{"$f":"IFERROR(VLOOKUP(H355,Translation!$A:$C,3,FALSE),H355)","v":"Colombie-Britannique"}]
[28,"T2 2019","IMMEUBLES COLLECTIFS RÉSIDENTIELS","> 5 <= 10",0.54649823737669934,"Prêts hypothécaires assurés au cours de la période selon la période d’amortissement (en années) à l'initiation (%)","0.5"," > 5 <= 10",{"$f":"IFERROR(VLOOKUP(A356,Translation!$A:$C,3,FALSE),A356)","v":28},{"$f":"IFERROR(VLOOKUP(B356,Translation!$A:$C,3,FALSE),B356)","v":"T2 2019"},{"$f":"IFERROR(VLOOKUP(C356,Translation!$A:$C,3,FALSE),C356)","v":"IMMEUBLES COLLECTIFS RÉSIDENTIELS"},{"$f":"IFERROR(VLOOKUP(D356,Translation!$A:$C,3,FALSE),D356)","v":"> 5 <= 10"},{"$f":"IFERROR(VLOOKUP(E356,Translation!$A:$C,3,FALSE),E356)","v":0.54649823737669934},{"$f":"IFERROR(VLOOKUP(F356,Translation!$A:$C,3,FALSE),F356)","v":"Prêts hypothécaires assurés au cours de la période selon la période d’amortissement (en années) à l'initiation (%)"},{"$f":"IFERROR(VLOOKUP(G356,Translation!$A:$C,3,FALSE),G356)","v":"0.5"},{"$f":"IFERROR(VLOOKUP(H356,Translation!$A:$C,3,FALSE),H356)","v":" > 5 <= 10"}]
[28,"T2 2019","IMMEUBLES COLLECTIFS RÉSIDENTIELS","> 10 <= 15",0.23927793656984064,"Prêts hypothécaires assurés au cours de la période selon la période d’amortissement (en années) à l'initiation (%)","0.2"," > 10 <= 15",{"$f":"IFERROR(VLOOKUP(A357,Translation!$A:$C,3,FALSE),A357)","v":28},{"$f":"IFERROR(VLOOKUP(B357,Translation!$A:$C,3,FALSE),B357)","v":"T2 2019"},{"$f":"IFERROR(VLOOKUP(C357,Translation!$A:$C,3,FALSE),C357)","v":"IMMEUBLES COLLECTIFS RÉSIDENTIELS"},{"$f":"IFERROR(VLOOKUP(D357,Translation!$A:$C,3,FALSE),D357)","v":"> 10 <= 15"},{"$f":"IFERROR(VLOOKUP(E357,Translation!$A:$C,3,FALSE),E357)","v":0.23927793656984064},{"$f":"IFERROR(VLOOKUP(F357,Translation!$A:$C,3,FALSE),F357)","v":"Prêts hypothécaires assurés au cours de la période selon la période d’amortissement (en années) à l'initiation (%)"},{"$f":"IFERROR(VLOOKUP(G357,Translation!$A:$C,3,FALSE),G357)","v":"0.2"},{"$f":"IFERROR(VLOOKUP(H357,Translation!$A:$C,3,FALSE),H357)","v":" > 10 <= 15"}]
[28,"T2 2019","IMMEUBLES COLLECTIFS RÉSIDENTIELS","> 15 <= 20",0.85330240520204659,"Prêts hypothécaires assurés au cours de la période selon la période d’amortissement (en années) à l'initiation (%)","0.9"," > 15 <= 20",{"$f":"IFERROR(VLOOKUP(A358,Translation!$A:$C,3,FALSE),A358)","v":28},{"$f":"IFERROR(VLOOKUP(B358,Translation!$A:$C,3,FALSE),B358)","v":"T2 2019"},{"$f":"IFERROR(VLOOKUP(C358,Translation!$A:$C,3,FALSE),C358)","v":"IMMEUBLES COLLECTIFS RÉSIDENTIELS"},{"$f":"IFERROR(VLOOKUP(D358,Translation!$A:$C,3,FALSE),D358)","v":"> 15 <= 20"},{"$f":"IFERROR(VLOOKUP(E358,Translation!$A:$C,3,FALSE),E358)","v":0.85330240520204659},{"$f":"IFERROR(VLOOKUP(F358,Translation!$A:$C,3,FALSE),F358)","v":"Prêts hypothécaires assurés au cours de la période selon la période d’amortissement (en années) à l'initiation (%)"},{"$f":"IFERROR(VLOOKUP(G358,Translation!$A:$C,3,FALSE),G358)","v":"0.9"},{"$f":"IFERROR(VLOOKUP(H358,Translation!$A:$C,3,FALSE),H358)","v":" > 15 <= 20"}]
[28,"T2 2019","IMMEUBLES COLLECTIFS RÉSIDENTIELS","> 20 <= 25",14.81232521998913,"Prêts hypothécaires assurés au cours de la période selon la période d’amortissement (en années) à l'initiation (%)","14.8"," > 20 <= 25",{"$f":"IFERROR(VLOOKUP(A359,Translation!$A:$C,3,FALSE),A359)","v":28},{"$f":"IFERROR(VLOOKUP(B359,Translation!$A:$C,3,FALSE),B359)","v":"T2 2019"},{"$f":"IFERROR(VLOOKUP(C359,Translation!$A:$C,3,FALSE),C359)","v":"IMMEUBLES COLLECTIFS RÉSIDENTIELS"},{"$f":"IFERROR(VLOOKUP(D359,Translation!$A:$C,3,FALSE),D359)","v":"> 20 <= 25"},{"$f":"IFERROR(VLOOKUP(E359,Translation!$A:$C,3,FALSE),E359)","v":14.81232521998913},{"$f":"IFERROR(VLOOKUP(F359,Translation!$A:$C,3,FALSE),F359)","v":"Prêts hypothécaires assurés au cours de la période selon la période d’amortissement (en années) à l'initiation (%)"},{"$f":"IFERROR(VLOOKUP(G359,Translation!$A:$C,3,FALSE),G359)","v":"14.8"},{"$f":"IFERROR(VLOOKUP(H359,Translation!$A:$C,3,FALSE),H359)","v":" > 20 <= 25"}]
[28,"T2 2019","IMMEUBLES COLLECTIFS RÉSIDENTIELS","> 25 <= 30",27.878795683328395,"Prêts hypothécaires assurés au cours de la période selon la période d’amortissement (en années) à l'initiation (%)","27.9"," > 25 <= 30",{"$f":"IFERROR(VLOOKUP(A360,Translation!$A:$C,3,FALSE),A360)","v":28},{"$f":"IFERROR(VLOOKUP(B360,Translation!$A:$C,3,FALSE),B360)","v":"T2 2019"},{"$f":"IFERROR(VLOOKUP(C360,Translation!$A:$C,3,FALSE),C360)","v":"IMMEUBLES COLLECTIFS RÉSIDENTIELS"},{"$f":"IFERROR(VLOOKUP(D360,Translation!$A:$C,3,FALSE),D360)","v":"> 25 <= 30"},{"$f":"IFERROR(VLOOKUP(E360,Translation!$A:$C,3,FALSE),E360)","v":27.878795683328395},{"$f":"IFERROR(VLOOKUP(F360,Translation!$A:$C,3,FALSE),F360)","v":"Prêts hypothécaires assurés au cours de la période selon la période d’amortissement (en années) à l'initiation (%)"},{"$f":"IFERROR(VLOOKUP(G360,Translation!$A:$C,3,FALSE),G360)","v":"27.9"},{"$f":"IFERROR(VLOOKUP(H360,Translation!$A:$C,3,FALSE),H360)","v":" > 25 <= 30"}]
[28,"T2 2019","IMMEUBLES COLLECTIFS RÉSIDENTIELS","> 30 <= 35",21.378836371566795,"Prêts hypothécaires assurés au cours de la période selon la période d’amortissement (en années) à l'initiation (%)","21.4"," > 30 <= 35",{"$f":"IFERROR(VLOOKUP(A361,Translation!$A:$C,3,FALSE),A361)","v":28},{"$f":"IFERROR(VLOOKUP(B361,Translation!$A:$C,3,FALSE),B361)","v":"T2 2019"},{"$f":"IFERROR(VLOOKUP(C361,Translation!$A:$C,3,FALSE),C361)","v":"IMMEUBLES COLLECTIFS RÉSIDENTIELS"},{"$f":"IFERROR(VLOOKUP(D361,Translation!$A:$C,3,FALSE),D361)","v":"> 30 <= 35"},{"$f":"IFERROR(VLOOKUP(E361,Translation!$A:$C,3,FALSE),E361)","v":21.378836371566795},{"$f":"IFERROR(VLOOKUP(F361,Translation!$A:$C,3,FALSE),F361)","v":"Prêts hypothécaires assurés au cours de la période selon la période d’amortissement (en années) à l'initiation (%)"},{"$f":"IFERROR(VLOOKUP(G361,Translation!$A:$C,3,FALSE),G361)","v":"21.4"},{"$f":"IFERROR(VLOOKUP(H361,Translation!$A:$C,3,FALSE),H361)","v":" > 30 <= 35"}]
[28,"T2 2019","IMMEUBLES COLLECTIFS RÉSIDENTIELS","> 35",34.290964145967081,"Prêts hypothécaires assurés au cours de la période selon la période d’amortissement (en années) à l'initiation (%)","34.3"," > 35",{"$f":"IFERROR(VLOOKUP(A362,Translation!$A:$C,3,FALSE),A362)","v":28},{"$f":"IFERROR(VLOOKUP(B362,Translation!$A:$C,3,FALSE),B362)","v":"T2 2019"},{"$f":"IFERROR(VLOOKUP(C362,Translation!$A:$C,3,FALSE),C362)","v":"IMMEUBLES COLLECTIFS RÉSIDENTIELS"},{"$f":"IFERROR(VLOOKUP(D362,Translation!$A:$C,3,FALSE),D362)","v":"> 35"},{"$f":"IFERROR(VLOOKUP(E362,Translation!$A:$C,3,FALSE),E362)","v":34.290964145967081},{"$f":"IFERROR(VLOOKUP(F362,Translation!$A:$C,3,FALSE),F362)","v":"Prêts hypothécaires assurés au cours de la période selon la période d’amortissement (en années) à l'initiation (%)"},{"$f":"IFERROR(VLOOKUP(G362,Translation!$A:$C,3,FALSE),G362)","v":"34.3"},{"$f":"IFERROR(VLOOKUP(H362,Translation!$A:$C,3,FALSE),H362)","v":" > 35"}]
[28,"T2 2019","IMMEUBLES COLLECTIFS RÉSIDENTIELS","Période d’amortissement moyenne",33.870859507018935,"Prêts hypothécaires assurés au cours de la période selon la période d’amortissement (en années) à l'initiation (%)","33.9","Période d’amortissement moyenne",{"$f":"IFERROR(VLOOKUP(A363,Translation!$A:$C,3,FALSE),A363)","v":28},{"$f":"IFERROR(VLOOKUP(B363,Translation!$A:$C,3,FALSE),B363)","v":"T2 2019"},{"$f":"IFERROR(VLOOKUP(C363,Translation!$A:$C,3,FALSE),C363)","v":"IMMEUBLES COLLECTIFS RÉSIDENTIELS"},{"$f":"IFERROR(VLOOKUP(D363,Translation!$A:$C,3,FALSE),D363)","v":"Période d’amortissement moyenne"},{"$f":"IFERROR(VLOOKUP(E363,Translation!$A:$C,3,FALSE),E363)","v":33.870859507018935},{"$f":"IFERROR(VLOOKUP(F363,Translation!$A:$C,3,FALSE),F363)","v":"Prêts hypothécaires assurés au cours de la période selon la période d’amortissement (en années) à l'initiation (%)"},{"$f":"IFERROR(VLOOKUP(G363,Translation!$A:$C,3,FALSE),G363)","v":"33.9"},{"$f":"IFERROR(VLOOKUP(H363,Translation!$A:$C,3,FALSE),H363)","v":"Période d’amortissement moyenne"}]
[28,"T2 2019","IMMEUBLES COLLECTIFS RÉSIDENTIELS","Terre-Neuve-et-Labrador",25.326213918238157,"Période d’amortissement moyenne selon la province","25.3","Terre-Neuve-et-Labrador",{"$f":"IFERROR(VLOOKUP(A364,Translation!$A:$C,3,FALSE),A364)","v":28},{"$f":"IFERROR(VLOOKUP(B364,Translation!$A:$C,3,FALSE),B364)","v":"T2 2019"},{"$f":"IFERROR(VLOOKUP(C364,Translation!$A:$C,3,FALSE),C364)","v":"IMMEUBLES COLLECTIFS RÉSIDENTIELS"},{"$f":"IFERROR(VLOOKUP(D364,Translation!$A:$C,3,FALSE),D364)","v":"Terre-Neuve-et-Labrador"},{"$f":"IFERROR(VLOOKUP(E364,Translation!$A:$C,3,FALSE),E364)","v":25.326213918238157},{"$f":"IFERROR(VLOOKUP(F364,Translation!$A:$C,3,FALSE),F364)","v":"Période d’amortissement moyenne selon la province"},{"$f":"IFERROR(VLOOKUP(G364,Translation!$A:$C,3,FALSE),G364)","v":"25.3"},{"$f":"IFERROR(VLOOKUP(H364,Translation!$A:$C,3,FALSE),H364)","v":"Terre-Neuve-et-Labrador"}]
[28,"T2 2019","IMMEUBLES COLLECTIFS RÉSIDENTIELS","Île-du-Prince-Édouard",16.903460504548669,"Période d’amortissement moyenne selon la province","16.9","Île-du-Prince-Édouard",{"$f":"IFERROR(VLOOKUP(A365,Translation!$A:$C,3,FALSE),A365)","v":28},{"$f":"IFERROR(VLOOKUP(B365,Translation!$A:$C,3,FALSE),B365)","v":"T2 2019"},{"$f":"IFERROR(VLOOKUP(C365,Translation!$A:$C,3,FALSE),C365)","v":"IMMEUBLES COLLECTIFS RÉSIDENTIELS"},{"$f":"IFERROR(VLOOKUP(D365,Translation!$A:$C,3,FALSE),D365)","v":"Île-du-Prince-Édouard"},{"$f":"IFERROR(VLOOKUP(E365,Translation!$A:$C,3,FALSE),E365)","v":16.903460504548669},{"$f":"IFERROR(VLOOKUP(F365,Translation!$A:$C,3,FALSE),F365)","v":"Période d’amortissement moyenne selon la province"},{"$f":"IFERROR(VLOOKUP(G365,Translation!$A:$C,3,FALSE),G365)","v":"16.9"},{"$f":"IFERROR(VLOOKUP(H365,Translation!$A:$C,3,FALSE),H365)","v":"Île-du-Prince-Édouard"}]
[28,"T2 2019","IMMEUBLES COLLECTIFS RÉSIDENTIELS","Nouvelle-Écosse",32.260960937096677,"Période d’amortissement moyenne selon la province","32.3","Nouvelle-Écosse",{"$f":"IFERROR(VLOOKUP(A366,Translation!$A:$C,3,FALSE),A366)","v":28},{"$f":"IFERROR(VLOOKUP(B366,Translation!$A:$C,3,FALSE),B366)","v":"T2 2019"},{"$f":"IFERROR(VLOOKUP(C366,Translation!$A:$C,3,FALSE),C366)","v":"IMMEUBLES COLLECTIFS RÉSIDENTIELS"},{"$f":"IFERROR(VLOOKUP(D366,Translation!$A:$C,3,FALSE),D366)","v":"Nouvelle-Écosse"},{"$f":"IFERROR(VLOOKUP(E366,Translation!$A:$C,3,FALSE),E366)","v":32.260960937096677},{"$f":"IFERROR(VLOOKUP(F366,Translation!$A:$C,3,FALSE),F366)","v":"Période d’amortissement moyenne selon la province"},{"$f":"IFERROR(VLOOKUP(G366,Translation!$A:$C,3,FALSE),G366)","v":"32.3"},{"$f":"IFERROR(VLOOKUP(H366,Translation!$A:$C,3,FALSE),H366)","v":"Nouvelle-Écosse"}]
[28,"T2 2019","IMMEUBLES COLLECTIFS RÉSIDENTIELS","Nouveau-Brunswick",30.836491524238003,"Période d’amortissement moyenne selon la province","30.8","Nouveau-Brunswick",{"$f":"IFERROR(VLOOKUP(A367,Translation!$A:$C,3,FALSE),A367)","v":28},{"$f":"IFERROR(VLOOKUP(B367,Translation!$A:$C,3,FALSE),B367)","v":"T2 2019"},{"$f":"IFERROR(VLOOKUP(C367,Translation!$A:$C,3,FALSE),C367)","v":"IMMEUBLES COLLECTIFS RÉSIDENTIELS"},{"$f":"IFERROR(VLOOKUP(D367,Translation!$A:$C,3,FALSE),D367)","v":"Nouveau-Brunswick"},{"$f":"IFERROR(VLOOKUP(E367,Translation!$A:$C,3,FALSE),E367)","v":30.836491524238003},{"$f":"IFERROR(VLOOKUP(F367,Translation!$A:$C,3,FALSE),F367)","v":"Période d’amortissement moyenne selon la province"},{"$f":"IFERROR(VLOOKUP(G367,Translation!$A:$C,3,FALSE),G367)","v":"30.8"},{"$f":"IFERROR(VLOOKUP(H367,Translation!$A:$C,3,FALSE),H367)","v":"Nouveau-Brunswick"}]
[28,"T2 2019","IMMEUBLES COLLECTIFS RÉSIDENTIELS","Québec",34.518386901993701,"Période d’amortissement moyenne selon la province","34.5","Québec",{"$f":"IFERROR(VLOOKUP(A368,Translation!$A:$C,3,FALSE),A368)","v":28},{"$f":"IFERROR(VLOOKUP(B368,Translation!$A:$C,3,FALSE),B368)","v":"T2 2019"},{"$f":"IFERROR(VLOOKUP(C368,Translation!$A:$C,3,FALSE),C368)","v":"IMMEUBLES COLLECTIFS RÉSIDENTIELS"},{"$f":"IFERROR(VLOOKUP(D368,Translation!$A:$C,3,FALSE),D368)","v":"Québec"},{"$f":"IFERROR(VLOOKUP(E368,Translation!$A:$C,3,FALSE),E368)","v":34.518386901993701},{"$f":"IFERROR(VLOOKUP(F368,Translation!$A:$C,3,FALSE),F368)","v":"Période d’amortissement moyenne selon la province"},{"$f":"IFERROR(VLOOKUP(G368,Translation!$A:$C,3,FALSE),G368)","v":"34.5"},{"$f":"IFERROR(VLOOKUP(H368,Translation!$A:$C,3,FALSE),H368)","v":"Québec"}]
[28,"T2 2019","IMMEUBLES COLLECTIFS RÉSIDENTIELS","Ontario",31.33370914536539,"Période d’amortissement moyenne selon la province","31.3","Ontario",{"$f":"IFERROR(VLOOKUP(A369,Translation!$A:$C,3,FALSE),A369)","v":28},{"$f":"IFERROR(VLOOKUP(B369,Translation!$A:$C,3,FALSE),B369)","v":"T2 2019"},{"$f":"IFERROR(VLOOKUP(C369,Translation!$A:$C,3,FALSE),C369)","v":"IMMEUBLES COLLECTIFS RÉSIDENTIELS"},{"$f":"IFERROR(VLOOKUP(D369,Translation!$A:$C,3,FALSE),D369)","v":"Ontario"},{"$f":"IFERROR(VLOOKUP(E369,Translation!$A:$C,3,FALSE),E369)","v":31.33370914536539},{"$f":"IFERROR(VLOOKUP(F369,Translation!$A:$C,3,FALSE),F369)","v":"Période d’amortissement moyenne selon la province"},{"$f":"IFERROR(VLOOKUP(G369,Translation!$A:$C,3,FALSE),G369)","v":"31.3"},{"$f":"IFERROR(VLOOKUP(H369,Translation!$A:$C,3,FALSE),H369)","v":"Ontario"}]
[28,"T2 2019","IMMEUBLES COLLECTIFS RÉSIDENTIELS","Manitoba",33.384694860387945,"Période d’amortissement moyenne selon la province","33.4","Manitoba",{"$f":"IFERROR(VLOOKUP(A370,Translation!$A:$C,3,FALSE),A370)","v":28},{"$f":"IFERROR(VLOOKUP(B370,Translation!$A:$C,3,FALSE),B370)","v":"T2 2019"},{"$f":"IFERROR(VLOOKUP(C370,Translation!$A:$C,3,FALSE),C370)","v":"IMMEUBLES COLLECTIFS RÉSIDENTIELS"},{"$f":"IFERROR(VLOOKUP(D370,Translation!$A:$C,3,FALSE),D370)","v":"Manitoba"},{"$f":"IFERROR(VLOOKUP(E370,Translation!$A:$C,3,FALSE),E370)","v":33.384694860387945},{"$f":"IFERROR(VLOOKUP(F370,Translation!$A:$C,3,FALSE),F370)","v":"Période d’amortissement moyenne selon la province"},{"$f":"IFERROR(VLOOKUP(G370,Translation!$A:$C,3,FALSE),G370)","v":"33.4"},{"$f":"IFERROR(VLOOKUP(H370,Translation!$A:$C,3,FALSE),H370)","v":"Manitoba"}]
[28,"T2 2019","IMMEUBLES COLLECTIFS RÉSIDENTIELS","Saskatchewan",37.463864579838813,"Période d’amortissement moyenne selon la province","37.5","Saskatchewan",{"$f":"IFERROR(VLOOKUP(A371,Translation!$A:$C,3,FALSE),A371)","v":28},{"$f":"IFERROR(VLOOKUP(B371,Translation!$A:$C,3,FALSE),B371)","v":"T2 2019"},{"$f":"IFERROR(VLOOKUP(C371,Translation!$A:$C,3,FALSE),C371)","v":"IMMEUBLES COLLECTIFS RÉSIDENTIELS"},{"$f":"IFERROR(VLOOKUP(D371,Translation!$A:$C,3,FALSE),D371)","v":"Saskatchewan"},{"$f":"IFERROR(VLOOKUP(E371,Translation!$A:$C,3,FALSE),E371)","v":37.463864579838813},{"$f":"IFERROR(VLOOKUP(F371,Translation!$A:$C,3,FALSE),F371)","v":"Période d’amortissement moyenne selon la province"},{"$f":"IFERROR(VLOOKUP(G371,Translation!$A:$C,3,FALSE),G371)","v":"37.5"},{"$f":"IFERROR(VLOOKUP(H371,Translation!$A:$C,3,FALSE),H371)","v":"Saskatchewan"}]
[28,"T2 2019","IMMEUBLES COLLECTIFS RÉSIDENTIELS","Alberta",37.323775472620333,"Période d’amortissement moyenne selon la province","37.3","Alberta",{"$f":"IFERROR(VLOOKUP(A372,Translation!$A:$C,3,FALSE),A372)","v":28},{"$f":"IFERROR(VLOOKUP(B372,Translation!$A:$C,3,FALSE),B372)","v":"T2 2019"},{"$f":"IFERROR(VLOOKUP(C372,Translation!$A:$C,3,FALSE),C372)","v":"IMMEUBLES COLLECTIFS RÉSIDENTIELS"},{"$f":"IFERROR(VLOOKUP(D372,Translation!$A:$C,3,FALSE),D372)","v":"Alberta"},{"$f":"IFERROR(VLOOKUP(E372,Translation!$A:$C,3,FALSE),E372)","v":37.323775472620333},{"$f":"IFERROR(VLOOKUP(F372,Translation!$A:$C,3,FALSE),F372)","v":"Période d’amortissement moyenne selon la province"},{"$f":"IFERROR(VLOOKUP(G372,Translation!$A:$C,3,FALSE),G372)","v":"37.3"},{"$f":"IFERROR(VLOOKUP(H372,Translation!$A:$C,3,FALSE),H372)","v":"Alberta"}]
[28,"T2 2019","IMMEUBLES COLLECTIFS RÉSIDENTIELS","Colombie-Britannique",35.928119224350297,"Période d’amortissement moyenne selon la province","35.9","Colombie-Britannique",{"$f":"IFERROR(VLOOKUP(A373,Translation!$A:$C,3,FALSE),A373)","v":28},{"$f":"IFERROR(VLOOKUP(B373,Translation!$A:$C,3,FALSE),B373)","v":"T2 2019"},{"$f":"IFERROR(VLOOKUP(C373,Translation!$A:$C,3,FALSE),C373)","v":"IMMEUBLES COLLECTIFS RÉSIDENTIELS"},{"$f":"IFERROR(VLOOKUP(D373,Translation!$A:$C,3,FALSE),D373)","v":"Colombie-Britannique"},{"$f":"IFERROR(VLOOKUP(E373,Translation!$A:$C,3,FALSE),E373)","v":35.928119224350297},{"$f":"IFERROR(VLOOKUP(F373,Translation!$A:$C,3,FALSE),F373)","v":"Période d’amortissement moyenne selon la province"},{"$f":"IFERROR(VLOOKUP(G373,Translation!$A:$C,3,FALSE),G373)","v":"35.9"},{"$f":"IFERROR(VLOOKUP(H373,Translation!$A:$C,3,FALSE),H373)","v":"Colombie-Britannique"}]
[28,"T2 2019","IMMEUBLES COLLECTIFS RÉSIDENTIELS","Territoires",33.867326324387193,"Période d’amortissement moyenne selon la province","33.9","Territoires",{"$f":"IFERROR(VLOOKUP(A374,Translation!$A:$C,3,FALSE),A374)","v":28},{"$f":"IFERROR(VLOOKUP(B374,Translation!$A:$C,3,FALSE),B374)","v":"T2 2019"},{"$f":"IFERROR(VLOOKUP(C374,Translation!$A:$C,3,FALSE),C374)","v":"IMMEUBLES COLLECTIFS RÉSIDENTIELS"},{"$f":"IFERROR(VLOOKUP(D374,Translation!$A:$C,3,FALSE),D374)","v":"Territoires"},{"$f":"IFERROR(VLOOKUP(E374,Translation!$A:$C,3,FALSE),E374)","v":33.867326324387193},{"$f":"IFERROR(VLOOKUP(F374,Translation!$A:$C,3,FALSE),F374)","v":"Période d’amortissement moyenne selon la province"},{"$f":"IFERROR(VLOOKUP(G374,Translation!$A:$C,3,FALSE),G374)","v":"33.9"},{"$f":"IFERROR(VLOOKUP(H374,Translation!$A:$C,3,FALSE),H374)","v":"Territoires"}]
[10,"T1 2019","PROPRIÉTAIRES-OCCUPANTS, À L’UNITÉ","<= 5",6.1547823826264047E-3,"Prêts hypothécaires assurés au cours de la période selon la période d’amortissement (en années) à l'initiation (%)","0.0"," <= 5",{"$f":"IFERROR(VLOOKUP(A375,Translation!$A:$C,3,FALSE),A375)","v":10},{"$f":"IFERROR(VLOOKUP(B375,Translation!$A:$C,3,FALSE),B375)","v":"T1 2019"},{"$f":"IFERROR(VLOOKUP(C375,Translation!$A:$C,3,FALSE),C375)","v":"PROPRIÉTAIRES-OCCUPANTS, À L’UNITÉ"},{"$f":"IFERROR(VLOOKUP(D375,Translation!$A:$C,3,FALSE),D375)","v":"<= 5"},{"$f":"IFERROR(VLOOKUP(E375,Translation!$A:$C,3,FALSE),E375)","v":6.1547823826264047E-3},{"$f":"IFERROR(VLOOKUP(F375,Translation!$A:$C,3,FALSE),F375)","v":"Prêts hypothécaires assurés au cours de la période selon la période d’amortissement (en années) à l'initiation (%)"},{"$f":"IFERROR(VLOOKUP(G375,Translation!$A:$C,3,FALSE),G375)","v":"0.0"},{"$f":"IFERROR(VLOOKUP(H375,Translation!$A:$C,3,FALSE),H375)","v":" <= 5"}]
[10,"T1 2019","PROPRIÉTAIRES-OCCUPANTS, À L’UNITÉ","> 5 <= 10",5.0417371067813667E-2,"Prêts hypothécaires assurés au cours de la période selon la période d’amortissement (en années) à l'initiation (%)","0.1"," > 5 <= 10",{"$f":"IFERROR(VLOOKUP(A376,Translation!$A:$C,3,FALSE),A376)","v":10},{"$f":"IFERROR(VLOOKUP(B376,Translation!$A:$C,3,FALSE),B376)","v":"T1 2019"},{"$f":"IFERROR(VLOOKUP(C376,Translation!$A:$C,3,FALSE),C376)","v":"PROPRIÉTAIRES-OCCUPANTS, À L’UNITÉ"},{"$f":"IFERROR(VLOOKUP(D376,Translation!$A:$C,3,FALSE),D376)","v":"> 5 <= 10"},{"$f":"IFERROR(VLOOKUP(E376,Translation!$A:$C,3,FALSE),E376)","v":5.0417371067813667E-2},{"$f":"IFERROR(VLOOKUP(F376,Translation!$A:$C,3,FALSE),F376)","v":"Prêts hypothécaires assurés au cours de la période selon la période d’amortissement (en années) à l'initiation (%)"},{"$f":"IFERROR(VLOOKUP(G376,Translation!$A:$C,3,FALSE),G376)","v":"0.1"},{"$f":"IFERROR(VLOOKUP(H376,Translation!$A:$C,3,FALSE),H376)","v":" > 5 <= 10"}]
[10,"T1 2019","PROPRIÉTAIRES-OCCUPANTS, À L’UNITÉ","> 10 <= 15",0.13327435293438203,"Prêts hypothécaires assurés au cours de la période selon la période d’amortissement (en années) à l'initiation (%)","0.1"," > 10 <= 15",{"$f":"IFERROR(VLOOKUP(A377,Translation!$A:$C,3,FALSE),A377)","v":10},{"$f":"IFERROR(VLOOKUP(B377,Translation!$A:$C,3,FALSE),B377)","v":"T1 2019"},{"$f":"IFERROR(VLOOKUP(C377,Translation!$A:$C,3,FALSE),C377)","v":"PROPRIÉTAIRES-OCCUPANTS, À L’UNITÉ"},{"$f":"IFERROR(VLOOKUP(D377,Translation!$A:$C,3,FALSE),D377)","v":"> 10 <= 15"},{"$f":"IFERROR(VLOOKUP(E377,Translation!$A:$C,3,FALSE),E377)","v":0.13327435293438203},{"$f":"IFERROR(VLOOKUP(F377,Translation!$A:$C,3,FALSE),F377)","v":"Prêts hypothécaires assurés au cours de la période selon la période d’amortissement (en années) à l'initiation (%)"},{"$f":"IFERROR(VLOOKUP(G377,Translation!$A:$C,3,FALSE),G377)","v":"0.1"},{"$f":"IFERROR(VLOOKUP(H377,Translation!$A:$C,3,FALSE),H377)","v":" > 10 <= 15"}]
[10,"T1 2019","PROPRIÉTAIRES-OCCUPANTS, À L’UNITÉ","> 15 <= 20",0.60056344818090324,"Prêts hypothécaires assurés au cours de la période selon la période d’amortissement (en années) à l'initiation (%)","0.6"," > 15 <= 20",{"$f":"IFERROR(VLOOKUP(A378,Translation!$A:$C,3,FALSE),A378)","v":10},{"$f":"IFERROR(VLOOKUP(B378,Translation!$A:$C,3,FALSE),B378)","v":"T1 2019"},{"$f":"IFERROR(VLOOKUP(C378,Translation!$A:$C,3,FALSE),C378)","v":"PROPRIÉTAIRES-OCCUPANTS, À L’UNITÉ"},{"$f":"IFERROR(VLOOKUP(D378,Translation!$A:$C,3,FALSE),D378)","v":"> 15 <= 20"},{"$f":"IFERROR(VLOOKUP(E378,Translation!$A:$C,3,FALSE),E378)","v":0.60056344818090324},{"$f":"IFERROR(VLOOKUP(F378,Translation!$A:$C,3,FALSE),F378)","v":"Prêts hypothécaires assurés au cours de la période selon la période d’amortissement (en années) à l'initiation (%)"},{"$f":"IFERROR(VLOOKUP(G378,Translation!$A:$C,3,FALSE),G378)","v":"0.6"},{"$f":"IFERROR(VLOOKUP(H378,Translation!$A:$C,3,FALSE),H378)","v":" > 15 <= 20"}]
[10,"T1 2019","PROPRIÉTAIRES-OCCUPANTS, À L’UNITÉ","> 20 <= 25",99.205147137682317,"Prêts hypothécaires assurés au cours de la période selon la période d’amortissement (en années) à l'initiation (%)","99.2"," > 20 <= 25",{"$f":"IFERROR(VLOOKUP(A379,Translation!$A:$C,3,FALSE),A379)","v":10},{"$f":"IFERROR(VLOOKUP(B379,Translation!$A:$C,3,FALSE),B379)","v":"T1 2019"},{"$f":"IFERROR(VLOOKUP(C379,Translation!$A:$C,3,FALSE),C379)","v":"PROPRIÉTAIRES-OCCUPANTS, À L’UNITÉ"},{"$f":"IFERROR(VLOOKUP(D379,Translation!$A:$C,3,FALSE),D379)","v":"> 20 <= 25"},{"$f":"IFERROR(VLOOKUP(E379,Translation!$A:$C,3,FALSE),E379)","v":99.205147137682317},{"$f":"IFERROR(VLOOKUP(F379,Translation!$A:$C,3,FALSE),F379)","v":"Prêts hypothécaires assurés au cours de la période selon la période d’amortissement (en années) à l'initiation (%)"},{"$f":"IFERROR(VLOOKUP(G379,Translation!$A:$C,3,FALSE),G379)","v":"99.2"},{"$f":"IFERROR(VLOOKUP(H379,Translation!$A:$C,3,FALSE),H379)","v":" > 20 <= 25"}]
[10,"T1 2019","PROPRIÉTAIRES-OCCUPANTS, À L’UNITÉ","> 25 <= 30",4.4429077519859373E-3,"Prêts hypothécaires assurés au cours de la période selon la période d’amortissement (en années) à l'initiation (%)","0.0"," > 25 <= 30",{"$f":"IFERROR(VLOOKUP(A380,Translation!$A:$C,3,FALSE),A380)","v":10},{"$f":"IFERROR(VLOOKUP(B380,Translation!$A:$C,3,FALSE),B380)","v":"T1 2019"},{"$f":"IFERROR(VLOOKUP(C380,Translation!$A:$C,3,FALSE),C380)","v":"PROPRIÉTAIRES-OCCUPANTS, À L’UNITÉ"},{"$f":"IFERROR(VLOOKUP(D380,Translation!$A:$C,3,FALSE),D380)","v":"> 25 <= 30"},{"$f":"IFERROR(VLOOKUP(E380,Translation!$A:$C,3,FALSE),E380)","v":4.4429077519859373E-3},{"$f":"IFERROR(VLOOKUP(F380,Translation!$A:$C,3,FALSE),F380)","v":"Prêts hypothécaires assurés au cours de la période selon la période d’amortissement (en années) à l'initiation (%)"},{"$f":"IFERROR(VLOOKUP(G380,Translation!$A:$C,3,FALSE),G380)","v":"0.0"},{"$f":"IFERROR(VLOOKUP(H380,Translation!$A:$C,3,FALSE),H380)","v":" > 25 <= 30"}]
[10,"T1 2019","PROPRIÉTAIRES-OCCUPANTS, À L’UNITÉ","Période d’amortissement moyenne",24.871239945749618,"Prêts hypothécaires assurés au cours de la période selon la période d’amortissement (en années) à l'initiation (%)","24.9","Période d’amortissement moyenne",{"$f":"IFERROR(VLOOKUP(A381,Translation!$A:$C,3,FALSE),A381)","v":10},{"$f":"IFERROR(VLOOKUP(B381,Translation!$A:$C,3,FALSE),B381)","v":"T1 2019"},{"$f":"IFERROR(VLOOKUP(C381,Translation!$A:$C,3,FALSE),C381)","v":"PROPRIÉTAIRES-OCCUPANTS, À L’UNITÉ"},{"$f":"IFERROR(VLOOKUP(D381,Translation!$A:$C,3,FALSE),D381)","v":"Période d’amortissement moyenne"},{"$f":"IFERROR(VLOOKUP(E381,Translation!$A:$C,3,FALSE),E381)","v":24.871239945749618},{"$f":"IFERROR(VLOOKUP(F381,Translation!$A:$C,3,FALSE),F381)","v":"Prêts hypothécaires assurés au cours de la période selon la période d’amortissement (en années) à l'initiation (%)"},{"$f":"IFERROR(VLOOKUP(G381,Translation!$A:$C,3,FALSE),G381)","v":"24.9"},{"$f":"IFERROR(VLOOKUP(H381,Translation!$A:$C,3,FALSE),H381)","v":"Période d’amortissement moyenne"}]
[10,"T1 2019","PROPRIÉTAIRES-OCCUPANTS, À L’UNITÉ","Terre-Neuve-et-Labrador",24.884286440108305,"Période d’amortissement moyenne selon la province","24.9","Terre-Neuve-et-Labrador",{"$f":"IFERROR(VLOOKUP(A382,Translation!$A:$C,3,FALSE),A382)","v":10},{"$f":"IFERROR(VLOOKUP(B382,Translation!$A:$C,3,FALSE),B382)","v":"T1 2019"},{"$f":"IFERROR(VLOOKUP(C382,Translation!$A:$C,3,FALSE),C382)","v":"PROPRIÉTAIRES-OCCUPANTS, À L’UNITÉ"},{"$f":"IFERROR(VLOOKUP(D382,Translation!$A:$C,3,FALSE),D382)","v":"Terre-Neuve-et-Labrador"},{"$f":"IFERROR(VLOOKUP(E382,Translation!$A:$C,3,FALSE),E382)","v":24.884286440108305},{"$f":"IFERROR(VLOOKUP(F382,Translation!$A:$C,3,FALSE),F382)","v":"Période d’amortissement moyenne selon la province"},{"$f":"IFERROR(VLOOKUP(G382,Translation!$A:$C,3,FALSE),G382)","v":"24.9"},{"$f":"IFERROR(VLOOKUP(H382,Translation!$A:$C,3,FALSE),H382)","v":"Terre-Neuve-et-Labrador"}]
[10,"T1 2019","PROPRIÉTAIRES-OCCUPANTS, À L’UNITÉ","Île-du-Prince-Édouard",24.87290334330422,"Période d’amortissement moyenne selon la province","24.9","Île-du-Prince-Édouard",{"$f":"IFERROR(VLOOKUP(A383,Translation!$A:$C,3,FALSE),A383)","v":10},{"$f":"IFERROR(VLOOKUP(B383,Translation!$A:$C,3,FALSE),B383)","v":"T1 2019"},{"$f":"IFERROR(VLOOKUP(C383,Translation!$A:$C,3,FALSE),C383)","v":"PROPRIÉTAIRES-OCCUPANTS, À L’UNITÉ"},{"$f":"IFERROR(VLOOKUP(D383,Translation!$A:$C,3,FALSE),D383)","v":"Île-du-Prince-Édouard"},{"$f":"IFERROR(VLOOKUP(E383,Translation!$A:$C,3,FALSE),E383)","v":24.87290334330422},{"$f":"IFERROR(VLOOKUP(F383,Translation!$A:$C,3,FALSE),F383)","v":"Période d’amortissement moyenne selon la province"},{"$f":"IFERROR(VLOOKUP(G383,Translation!$A:$C,3,FALSE),G383)","v":"24.9"},{"$f":"IFERROR(VLOOKUP(H383,Translation!$A:$C,3,FALSE),H383)","v":"Île-du-Prince-Édouard"}]
[10,"T1 2019","PROPRIÉTAIRES-OCCUPANTS, À L’UNITÉ","Nouvelle-Écosse",24.794296030410798,"Période d’amortissement moyenne selon la province","24.8","Nouvelle-Écosse",{"$f":"IFERROR(VLOOKUP(A384,Translation!$A:$C,3,FALSE),A384)","v":10},{"$f":"IFERROR(VLOOKUP(B384,Translation!$A:$C,3,FALSE),B384)","v":"T1 2019"},{"$f":"IFERROR(VLOOKUP(C384,Translation!$A:$C,3,FALSE),C384)","v":"PROPRIÉTAIRES-OCCUPANTS, À L’UNITÉ"},{"$f":"IFERROR(VLOOKUP(D384,Translation!$A:$C,3,FALSE),D384)","v":"Nouvelle-Écosse"},{"$f":"IFERROR(VLOOKUP(E384,Translation!$A:$C,3,FALSE),E384)","v":24.794296030410798},{"$f":"IFERROR(VLOOKUP(F384,Translation!$A:$C,3,FALSE),F384)","v":"Période d’amortissement moyenne selon la province"},{"$f":"IFERROR(VLOOKUP(G384,Translation!$A:$C,3,FALSE),G384)","v":"24.8"},{"$f":"IFERROR(VLOOKUP(H384,Translation!$A:$C,3,FALSE),H384)","v":"Nouvelle-Écosse"}]
[10,"T1 2019","PROPRIÉTAIRES-OCCUPANTS, À L’UNITÉ","Nouveau-Brunswick",24.804978133626129,"Période d’amortissement moyenne selon la province","24.8","Nouveau-Brunswick",{"$f":"IFERROR(VLOOKUP(A385,Translation!$A:$C,3,FALSE),A385)","v":10},{"$f":"IFERROR(VLOOKUP(B385,Translation!$A:$C,3,FALSE),B385)","v":"T1 2019"},{"$f":"IFERROR(VLOOKUP(C385,Translation!$A:$C,3,FALSE),C385)","v":"PROPRIÉTAIRES-OCCUPANTS, À L’UNITÉ"},{"$f":"IFERROR(VLOOKUP(D385,Translation!$A:$C,3,FALSE),D385)","v":"Nouveau-Brunswick"},{"$f":"IFERROR(VLOOKUP(E385,Translation!$A:$C,3,FALSE),E385)","v":24.804978133626129},{"$f":"IFERROR(VLOOKUP(F385,Translation!$A:$C,3,FALSE),F385)","v":"Période d’amortissement moyenne selon la province"},{"$f":"IFERROR(VLOOKUP(G385,Translation!$A:$C,3,FALSE),G385)","v":"24.8"},{"$f":"IFERROR(VLOOKUP(H385,Translation!$A:$C,3,FALSE),H385)","v":"Nouveau-Brunswick"}]
[10,"T1 2019","PROPRIÉTAIRES-OCCUPANTS, À L’UNITÉ","Québec",24.836499141625755,"Période d’amortissement moyenne selon la province","24.8","Québec",{"$f":"IFERROR(VLOOKUP(A386,Translation!$A:$C,3,FALSE),A386)","v":10},{"$f":"IFERROR(VLOOKUP(B386,Translation!$A:$C,3,FALSE),B386)","v":"T1 2019"},{"$f":"IFERROR(VLOOKUP(C386,Translation!$A:$C,3,FALSE),C386)","v":"PROPRIÉTAIRES-OCCUPANTS, À L’UNITÉ"},{"$f":"IFERROR(VLOOKUP(D386,Translation!$A:$C,3,FALSE),D386)","v":"Québec"},{"$f":"IFERROR(VLOOKUP(E386,Translation!$A:$C,3,FALSE),E386)","v":24.836499141625755},{"$f":"IFERROR(VLOOKUP(F386,Translation!$A:$C,3,FALSE),F386)","v":"Période d’amortissement moyenne selon la province"},{"$f":"IFERROR(VLOOKUP(G386,Translation!$A:$C,3,FALSE),G386)","v":"24.8"},{"$f":"IFERROR(VLOOKUP(H386,Translation!$A:$C,3,FALSE),H386)","v":"Québec"}]
[10,"T1 2019","PROPRIÉTAIRES-OCCUPANTS, À L’UNITÉ","Ontario",24.921949316172888,"Période d’amortissement moyenne selon la province","24.9","Ontario",{"$f":"IFERROR(VLOOKUP(A387,Translation!$A:$C,3,FALSE),A387)","v":10},{"$f":"IFERROR(VLOOKUP(B387,Translation!$A:$C,3,FALSE),B387)","v":"T1 2019"},{"$f":"IFERROR(VLOOKUP(C387,Translation!$A:$C,3,FALSE),C387)","v":"PROPRIÉTAIRES-OCCUPANTS, À L’UNITÉ"},{"$f":"IFERROR(VLOOKUP(D387,Translation!$A:$C,3,FALSE),D387)","v":"Ontario"},{"$f":"IFERROR(VLOOKUP(E387,Translation!$A:$C,3,FALSE),E387)","v":24.921949316172888},{"$f":"IFERROR(VLOOKUP(F387,Translation!$A:$C,3,FALSE),F387)","v":"Période d’amortissement moyenne selon la province"},{"$f":"IFERROR(VLOOKUP(G387,Translation!$A:$C,3,FALSE),G387)","v":"24.9"},{"$f":"IFERROR(VLOOKUP(H387,Translation!$A:$C,3,FALSE),H387)","v":"Ontario"}]
[10,"T1 2019","PROPRIÉTAIRES-OCCUPANTS, À L’UNITÉ","Manitoba",24.879769566255344,"Période d’amortissement moyenne selon la province","24.9","Manitoba",{"$f":"IFERROR(VLOOKUP(A388,Translation!$A:$C,3,FALSE),A388)","v":10},{"$f":"IFERROR(VLOOKUP(B388,Translation!$A:$C,3,FALSE),B388)","v":"T1 2019"},{"$f":"IFERROR(VLOOKUP(C388,Translation!$A:$C,3,FALSE),C388)","v":"PROPRIÉTAIRES-OCCUPANTS, À L’UNITÉ"},{"$f":"IFERROR(VLOOKUP(D388,Translation!$A:$C,3,FALSE),D388)","v":"Manitoba"},{"$f":"IFERROR(VLOOKUP(E388,Translation!$A:$C,3,FALSE),E388)","v":24.879769566255344},{"$f":"IFERROR(VLOOKUP(F388,Translation!$A:$C,3,FALSE),F388)","v":"Période d’amortissement moyenne selon la province"},{"$f":"IFERROR(VLOOKUP(G388,Translation!$A:$C,3,FALSE),G388)","v":"24.9"},{"$f":"IFERROR(VLOOKUP(H388,Translation!$A:$C,3,FALSE),H388)","v":"Manitoba"}]
[10,"T1 2019","PROPRIÉTAIRES-OCCUPANTS, À L’UNITÉ","Saskatchewan",24.802152160103994,"Période d’amortissement moyenne selon la province","24.8","Saskatchewan",{"$f":"IFERROR(VLOOKUP(A389,Translation!$A:$C,3,FALSE),A389)","v":10},{"$f":"IFERROR(VLOOKUP(B389,Translation!$A:$C,3,FALSE),B389)","v":"T1 2019"},{"$f":"IFERROR(VLOOKUP(C389,Translation!$A:$C,3,FALSE),C389)","v":"PROPRIÉTAIRES-OCCUPANTS, À L’UNITÉ"},{"$f":"IFERROR(VLOOKUP(D389,Translation!$A:$C,3,FALSE),D389)","v":"Saskatchewan"},{"$f":"IFERROR(VLOOKUP(E389,Translation!$A:$C,3,FALSE),E389)","v":24.802152160103994},{"$f":"IFERROR(VLOOKUP(F389,Translation!$A:$C,3,FALSE),F389)","v":"Période d’amortissement moyenne selon la province"},{"$f":"IFERROR(VLOOKUP(G389,Translation!$A:$C,3,FALSE),G389)","v":"24.8"},{"$f":"IFERROR(VLOOKUP(H389,Translation!$A:$C,3,FALSE),H389)","v":"Saskatchewan"}]
[10,"T1 2019","PROPRIÉTAIRES-OCCUPANTS, À L’UNITÉ","Alberta",24.874795977995355,"Période d’amortissement moyenne selon la province","24.9","Alberta",{"$f":"IFERROR(VLOOKUP(A390,Translation!$A:$C,3,FALSE),A390)","v":10},{"$f":"IFERROR(VLOOKUP(B390,Translation!$A:$C,3,FALSE),B390)","v":"T1 2019"},{"$f":"IFERROR(VLOOKUP(C390,Translation!$A:$C,3,FALSE),C390)","v":"PROPRIÉTAIRES-OCCUPANTS, À L’UNITÉ"},{"$f":"IFERROR(VLOOKUP(D390,Translation!$A:$C,3,FALSE),D390)","v":"Alberta"},{"$f":"IFERROR(VLOOKUP(E390,Translation!$A:$C,3,FALSE),E390)","v":24.874795977995355},{"$f":"IFERROR(VLOOKUP(F390,Translation!$A:$C,3,FALSE),F390)","v":"Période d’amortissement moyenne selon la province"},{"$f":"IFERROR(VLOOKUP(G390,Translation!$A:$C,3,FALSE),G390)","v":"24.9"},{"$f":"IFERROR(VLOOKUP(H390,Translation!$A:$C,3,FALSE),H390)","v":"Alberta"}]
[10,"T1 2019","PROPRIÉTAIRES-OCCUPANTS, À L’UNITÉ","Colombie-Britannique",24.848020963621003,"Période d’amortissement moyenne selon la province","24.8","Colombie-Britannique",{"$f":"IFERROR(VLOOKUP(A391,Translation!$A:$C,3,FALSE),A391)","v":10},{"$f":"IFERROR(VLOOKUP(B391,Translation!$A:$C,3,FALSE),B391)","v":"T1 2019"},{"$f":"IFERROR(VLOOKUP(C391,Translation!$A:$C,3,FALSE),C391)","v":"PROPRIÉTAIRES-OCCUPANTS, À L’UNITÉ"},{"$f":"IFERROR(VLOOKUP(D391,Translation!$A:$C,3,FALSE),D391)","v":"Colombie-Britannique"},{"$f":"IFERROR(VLOOKUP(E391,Translation!$A:$C,3,FALSE),E391)","v":24.848020963621003},{"$f":"IFERROR(VLOOKUP(F391,Translation!$A:$C,3,FALSE),F391)","v":"Période d’amortissement moyenne selon la province"},{"$f":"IFERROR(VLOOKUP(G391,Translation!$A:$C,3,FALSE),G391)","v":"24.8"},{"$f":"IFERROR(VLOOKUP(H391,Translation!$A:$C,3,FALSE),H391)","v":"Colombie-Britannique"}]
[10,"T1 2019","PROPRIÉTAIRES-OCCUPANTS, À L’UNITÉ","Territoires",24.661209291484184,"Période d’amortissement moyenne selon la province","24.7","Territoires",{"$f":"IFERROR(VLOOKUP(A392,Translation!$A:$C,3,FALSE),A392)","v":10},{"$f":"IFERROR(VLOOKUP(B392,Translation!$A:$C,3,FALSE),B392)","v":"T1 2019"},{"$f":"IFERROR(VLOOKUP(C392,Translation!$A:$C,3,FALSE),C392)","v":"PROPRIÉTAIRES-OCCUPANTS, À L’UNITÉ"},{"$f":"IFERROR(VLOOKUP(D392,Translation!$A:$C,3,FALSE),D392)","v":"Territoires"},{"$f":"IFERROR(VLOOKUP(E392,Translation!$A:$C,3,FALSE),E392)","v":24.661209291484184},{"$f":"IFERROR(VLOOKUP(F392,Translation!$A:$C,3,FALSE),F392)","v":"Période d’amortissement moyenne selon la province"},{"$f":"IFERROR(VLOOKUP(G392,Translation!$A:$C,3,FALSE),G392)","v":"24.7"},{"$f":"IFERROR(VLOOKUP(H392,Translation!$A:$C,3,FALSE),H392)","v":"Territoires"}]
[10,"T1 2019","ASSURANCE DE PORTEFEUILLE","<= 5",0.26941560246254997,"Prêts hypothécaires assurés au cours de la période selon la période d’amortissement (en années) à l'initiation (%)","0.3"," <= 5",{"$f":"IFERROR(VLOOKUP(A393,Translation!$A:$C,3,FALSE),A393)","v":10},{"$f":"IFERROR(VLOOKUP(B393,Translation!$A:$C,3,FALSE),B393)","v":"T1 2019"},{"$f":"IFERROR(VLOOKUP(C393,Translation!$A:$C,3,FALSE),C393)","v":"ASSURANCE DE PORTEFEUILLE"},{"$f":"IFERROR(VLOOKUP(D393,Translation!$A:$C,3,FALSE),D393)","v":"<= 5"},{"$f":"IFERROR(VLOOKUP(E393,Translation!$A:$C,3,FALSE),E393)","v":0.26941560246254997},{"$f":"IFERROR(VLOOKUP(F393,Translation!$A:$C,3,FALSE),F393)","v":"Prêts hypothécaires assurés au cours de la période selon la période d’amortissement (en années) à l'initiation (%)"},{"$f":"IFERROR(VLOOKUP(G393,Translation!$A:$C,3,FALSE),G393)","v":"0.3"},{"$f":"IFERROR(VLOOKUP(H393,Translation!$A:$C,3,FALSE),H393)","v":" <= 5"}]
[10,"T1 2019","ASSURANCE DE PORTEFEUILLE","> 5 <= 10",2.2439350785793697,"Prêts hypothécaires assurés au cours de la période selon la période d’amortissement (en années) à l'initiation (%)","2.2"," > 5 <= 10",{"$f":"IFERROR(VLOOKUP(A394,Translation!$A:$C,3,FALSE),A394)","v":10},{"$f":"IFERROR(VLOOKUP(B394,Translation!$A:$C,3,FALSE),B394)","v":"T1 2019"},{"$f":"IFERROR(VLOOKUP(C394,Translation!$A:$C,3,FALSE),C394)","v":"ASSURANCE DE PORTEFEUILLE"},{"$f":"IFERROR(VLOOKUP(D394,Translation!$A:$C,3,FALSE),D394)","v":"> 5 <= 10"},{"$f":"IFERROR(VLOOKUP(E394,Translation!$A:$C,3,FALSE),E394)","v":2.2439350785793697},{"$f":"IFERROR(VLOOKUP(F394,Translation!$A:$C,3,FALSE),F394)","v":"Prêts hypothécaires assurés au cours de la période selon la période d’amortissement (en années) à l'initiation (%)"},{"$f":"IFERROR(VLOOKUP(G394,Translation!$A:$C,3,FALSE),G394)","v":"2.2"},{"$f":"IFERROR(VLOOKUP(H394,Translation!$A:$C,3,FALSE),H394)","v":" > 5 <= 10"}]
[10,"T1 2019","ASSURANCE DE PORTEFEUILLE","> 10 <= 15",6.9988546123420798,"Prêts hypothécaires assurés au cours de la période selon la période d’amortissement (en années) à l'initiation (%)","7.0"," > 10 <= 15",{"$f":"IFERROR(VLOOKUP(A395,Translation!$A:$C,3,FALSE),A395)","v":10},{"$f":"IFERROR(VLOOKUP(B395,Translation!$A:$C,3,FALSE),B395)","v":"T1 2019"},{"$f":"IFERROR(VLOOKUP(C395,Translation!$A:$C,3,FALSE),C395)","v":"ASSURANCE DE PORTEFEUILLE"},{"$f":"IFERROR(VLOOKUP(D395,Translation!$A:$C,3,FALSE),D395)","v":"> 10 <= 15"},{"$f":"IFERROR(VLOOKUP(E395,Translation!$A:$C,3,FALSE),E395)","v":6.9988546123420798},{"$f":"IFERROR(VLOOKUP(F395,Translation!$A:$C,3,FALSE),F395)","v":"Prêts hypothécaires assurés au cours de la période selon la période d’amortissement (en années) à l'initiation (%)"},{"$f":"IFERROR(VLOOKUP(G395,Translation!$A:$C,3,FALSE),G395)","v":"7.0"},{"$f":"IFERROR(VLOOKUP(H395,Translation!$A:$C,3,FALSE),H395)","v":" > 10 <= 15"}]
[10,"T1 2019","ASSURANCE DE PORTEFEUILLE","> 15 <= 20",16.823481911277803,"Prêts hypothécaires assurés au cours de la période selon la période d’amortissement (en années) à l'initiation (%)","16.8"," > 15 <= 20",{"$f":"IFERROR(VLOOKUP(A396,Translation!$A:$C,3,FALSE),A396)","v":10},{"$f":"IFERROR(VLOOKUP(B396,Translation!$A:$C,3,FALSE),B396)","v":"T1 2019"},{"$f":"IFERROR(VLOOKUP(C396,Translation!$A:$C,3,FALSE),C396)","v":"ASSURANCE DE PORTEFEUILLE"},{"$f":"IFERROR(VLOOKUP(D396,Translation!$A:$C,3,FALSE),D396)","v":"> 15 <= 20"},{"$f":"IFERROR(VLOOKUP(E396,Translation!$A:$C,3,FALSE),E396)","v":16.823481911277803},{"$f":"IFERROR(VLOOKUP(F396,Translation!$A:$C,3,FALSE),F396)","v":"Prêts hypothécaires assurés au cours de la période selon la période d’amortissement (en années) à l'initiation (%)"},{"$f":"IFERROR(VLOOKUP(G396,Translation!$A:$C,3,FALSE),G396)","v":"16.8"},{"$f":"IFERROR(VLOOKUP(H396,Translation!$A:$C,3,FALSE),H396)","v":" > 15 <= 20"}]
[10,"T1 2019","ASSURANCE DE PORTEFEUILLE","> 20 <= 25",64.667491386278115,"Prêts hypothécaires assurés au cours de la période selon la période d’amortissement (en années) à l'initiation (%)","64.7"," > 20 <= 25",{"$f":"IFERROR(VLOOKUP(A397,Translation!$A:$C,3,FALSE),A397)","v":10},{"$f":"IFERROR(VLOOKUP(B397,Translation!$A:$C,3,FALSE),B397)","v":"T1 2019"},{"$f":"IFERROR(VLOOKUP(C397,Translation!$A:$C,3,FALSE),C397)","v":"ASSURANCE DE PORTEFEUILLE"},{"$f":"IFERROR(VLOOKUP(D397,Translation!$A:$C,3,FALSE),D397)","v":"> 20 <= 25"},{"$f":"IFERROR(VLOOKUP(E397,Translation!$A:$C,3,FALSE),E397)","v":64.667491386278115},{"$f":"IFERROR(VLOOKUP(F397,Translation!$A:$C,3,FALSE),F397)","v":"Prêts hypothécaires assurés au cours de la période selon la période d’amortissement (en années) à l'initiation (%)"},{"$f":"IFERROR(VLOOKUP(G397,Translation!$A:$C,3,FALSE),G397)","v":"64.7"},{"$f":"IFERROR(VLOOKUP(H397,Translation!$A:$C,3,FALSE),H397)","v":" > 20 <= 25"}]
[10,"T1 2019","ASSURANCE DE PORTEFEUILLE","> 25 <= 30",8.4806079349542998,"Prêts hypothécaires assurés au cours de la période selon la période d’amortissement (en années) à l'initiation (%)","8.5"," > 25 <= 30",{"$f":"IFERROR(VLOOKUP(A398,Translation!$A:$C,3,FALSE),A398)","v":10},{"$f":"IFERROR(VLOOKUP(B398,Translation!$A:$C,3,FALSE),B398)","v":"T1 2019"},{"$f":"IFERROR(VLOOKUP(C398,Translation!$A:$C,3,FALSE),C398)","v":"ASSURANCE DE PORTEFEUILLE"},{"$f":"IFERROR(VLOOKUP(D398,Translation!$A:$C,3,FALSE),D398)","v":"> 25 <= 30"},{"$f":"IFERROR(VLOOKUP(E398,Translation!$A:$C,3,FALSE),E398)","v":8.4806079349542998},{"$f":"IFERROR(VLOOKUP(F398,Translation!$A:$C,3,FALSE),F398)","v":"Prêts hypothécaires assurés au cours de la période selon la période d’amortissement (en années) à l'initiation (%)"},{"$f":"IFERROR(VLOOKUP(G398,Translation!$A:$C,3,FALSE),G398)","v":"8.5"},{"$f":"IFERROR(VLOOKUP(H398,Translation!$A:$C,3,FALSE),H398)","v":" > 25 <= 30"}]
[10,"T1 2019","ASSURANCE DE PORTEFEUILLE","> 30 <= 35",5.6361967376850279E-2,"Prêts hypothécaires assurés au cours de la période selon la période d’amortissement (en années) à l'initiation (%)","0.1"," > 30 <= 35",{"$f":"IFERROR(VLOOKUP(A399,Translation!$A:$C,3,FALSE),A399)","v":10},{"$f":"IFERROR(VLOOKUP(B399,Translation!$A:$C,3,FALSE),B399)","v":"T1 2019"},{"$f":"IFERROR(VLOOKUP(C399,Translation!$A:$C,3,FALSE),C399)","v":"ASSURANCE DE PORTEFEUILLE"},{"$f":"IFERROR(VLOOKUP(D399,Translation!$A:$C,3,FALSE),D399)","v":"> 30 <= 35"},{"$f":"IFERROR(VLOOKUP(E399,Translation!$A:$C,3,FALSE),E399)","v":5.6361967376850279E-2},{"$f":"IFERROR(VLOOKUP(F399,Translation!$A:$C,3,FALSE),F399)","v":"Prêts hypothécaires assurés au cours de la période selon la période d’amortissement (en années) à l'initiation (%)"},{"$f":"IFERROR(VLOOKUP(G399,Translation!$A:$C,3,FALSE),G399)","v":"0.1"},{"$f":"IFERROR(VLOOKUP(H399,Translation!$A:$C,3,FALSE),H399)","v":" > 30 <= 35"}]
[10,"T1 2019","ASSURANCE DE PORTEFEUILLE","> 35",0.45985150672894598,"Prêts hypothécaires assurés au cours de la période selon la période d’amortissement (en années) à l'initiation (%)","0.5"," > 35",{"$f":"IFERROR(VLOOKUP(A400,Translation!$A:$C,3,FALSE),A400)","v":10},{"$f":"IFERROR(VLOOKUP(B400,Translation!$A:$C,3,FALSE),B400)","v":"T1 2019"},{"$f":"IFERROR(VLOOKUP(C400,Translation!$A:$C,3,FALSE),C400)","v":"ASSURANCE DE PORTEFEUILLE"},{"$f":"IFERROR(VLOOKUP(D400,Translation!$A:$C,3,FALSE),D400)","v":"> 35"},{"$f":"IFERROR(VLOOKUP(E400,Translation!$A:$C,3,FALSE),E400)","v":0.45985150672894598},{"$f":"IFERROR(VLOOKUP(F400,Translation!$A:$C,3,FALSE),F400)","v":"Prêts hypothécaires assurés au cours de la période selon la période d’amortissement (en années) à l'initiation (%)"},{"$f":"IFERROR(VLOOKUP(G400,Translation!$A:$C,3,FALSE),G400)","v":"0.5"},{"$f":"IFERROR(VLOOKUP(H400,Translation!$A:$C,3,FALSE),H400)","v":" > 35"}]
[10,"T1 2019","ASSURANCE DE PORTEFEUILLE","Période d’amortissement moyenne",22.303489589592814,"Prêts hypothécaires assurés au cours de la période selon la période d’amortissement (en années) à l'initiation (%)","22.3","Période d’amortissement moyenne",{"$f":"IFERROR(VLOOKUP(A401,Translation!$A:$C,3,FALSE),A401)","v":10},{"$f":"IFERROR(VLOOKUP(B401,Translation!$A:$C,3,FALSE),B401)","v":"T1 2019"},{"$f":"IFERROR(VLOOKUP(C401,Translation!$A:$C,3,FALSE),C401)","v":"ASSURANCE DE PORTEFEUILLE"},{"$f":"IFERROR(VLOOKUP(D401,Translation!$A:$C,3,FALSE),D401)","v":"Période d’amortissement moyenne"},{"$f":"IFERROR(VLOOKUP(E401,Translation!$A:$C,3,FALSE),E401)","v":22.303489589592814},{"$f":"IFERROR(VLOOKUP(F401,Translation!$A:$C,3,FALSE),F401)","v":"Prêts hypothécaires assurés au cours de la période selon la période d’amortissement (en années) à l'initiation (%)"},{"$f":"IFERROR(VLOOKUP(G401,Translation!$A:$C,3,FALSE),G401)","v":"22.3"},{"$f":"IFERROR(VLOOKUP(H401,Translation!$A:$C,3,FALSE),H401)","v":"Période d’amortissement moyenne"}]
[10,"T1 2019","ASSURANCE DE PORTEFEUILLE","Terre-Neuve-et-Labrador",20.905083589985004,"Période d’amortissement moyenne selon la province","20.9","Terre-Neuve-et-Labrador",{"$f":"IFERROR(VLOOKUP(A402,Translation!$A:$C,3,FALSE),A402)","v":10},{"$f":"IFERROR(VLOOKUP(B402,Translation!$A:$C,3,FALSE),B402)","v":"T1 2019"},{"$f":"IFERROR(VLOOKUP(C402,Translation!$A:$C,3,FALSE),C402)","v":"ASSURANCE DE PORTEFEUILLE"},{"$f":"IFERROR(VLOOKUP(D402,Translation!$A:$C,3,FALSE),D402)","v":"Terre-Neuve-et-Labrador"},{"$f":"IFERROR(VLOOKUP(E402,Translation!$A:$C,3,FALSE),E402)","v":20.905083589985004},{"$f":"IFERROR(VLOOKUP(F402,Translation!$A:$C,3,FALSE),F402)","v":"Période d’amortissement moyenne selon la province"},{"$f":"IFERROR(VLOOKUP(G402,Translation!$A:$C,3,FALSE),G402)","v":"20.9"},{"$f":"IFERROR(VLOOKUP(H402,Translation!$A:$C,3,FALSE),H402)","v":"Terre-Neuve-et-Labrador"}]
[10,"T1 2019","ASSURANCE DE PORTEFEUILLE","Île-du-Prince-Édouard",24.270016040585464,"Période d’amortissement moyenne selon la province","24.3","Île-du-Prince-Édouard",{"$f":"IFERROR(VLOOKUP(A403,Translation!$A:$C,3,FALSE),A403)","v":10},{"$f":"IFERROR(VLOOKUP(B403,Translation!$A:$C,3,FALSE),B403)","v":"T1 2019"},{"$f":"IFERROR(VLOOKUP(C403,Translation!$A:$C,3,FALSE),C403)","v":"ASSURANCE DE PORTEFEUILLE"},{"$f":"IFERROR(VLOOKUP(D403,Translation!$A:$C,3,FALSE),D403)","v":"Île-du-Prince-Édouard"},{"$f":"IFERROR(VLOOKUP(E403,Translation!$A:$C,3,FALSE),E403)","v":24.270016040585464},{"$f":"IFERROR(VLOOKUP(F403,Translation!$A:$C,3,FALSE),F403)","v":"Période d’amortissement moyenne selon la province"},{"$f":"IFERROR(VLOOKUP(G403,Translation!$A:$C,3,FALSE),G403)","v":"24.3"},{"$f":"IFERROR(VLOOKUP(H403,Translation!$A:$C,3,FALSE),H403)","v":"Île-du-Prince-Édouard"}]
[10,"T1 2019","ASSURANCE DE PORTEFEUILLE","Nouvelle-Écosse",23.136158399185604,"Période d’amortissement moyenne selon la province","23.1","Nouvelle-Écosse",{"$f":"IFERROR(VLOOKUP(A404,Translation!$A:$C,3,FALSE),A404)","v":10},{"$f":"IFERROR(VLOOKUP(B404,Translation!$A:$C,3,FALSE),B404)","v":"T1 2019"},{"$f":"IFERROR(VLOOKUP(C404,Translation!$A:$C,3,FALSE),C404)","v":"ASSURANCE DE PORTEFEUILLE"},{"$f":"IFERROR(VLOOKUP(D404,Translation!$A:$C,3,FALSE),D404)","v":"Nouvelle-Écosse"},{"$f":"IFERROR(VLOOKUP(E404,Translation!$A:$C,3,FALSE),E404)","v":23.136158399185604},{"$f":"IFERROR(VLOOKUP(F404,Translation!$A:$C,3,FALSE),F404)","v":"Période d’amortissement moyenne selon la province"},{"$f":"IFERROR(VLOOKUP(G404,Translation!$A:$C,3,FALSE),G404)","v":"23.1"},{"$f":"IFERROR(VLOOKUP(H404,Translation!$A:$C,3,FALSE),H404)","v":"Nouvelle-Écosse"}]
[10,"T1 2019","ASSURANCE DE PORTEFEUILLE","Nouveau-Brunswick",22.420537918744529,"Période d’amortissement moyenne selon la province","22.4","Nouveau-Brunswick",{"$f":"IFERROR(VLOOKUP(A405,Translation!$A:$C,3,FALSE),A405)","v":10},{"$f":"IFERROR(VLOOKUP(B405,Translation!$A:$C,3,FALSE),B405)","v":"T1 2019"},{"$f":"IFERROR(VLOOKUP(C405,Translation!$A:$C,3,FALSE),C405)","v":"ASSURANCE DE PORTEFEUILLE"},{"$f":"IFERROR(VLOOKUP(D405,Translation!$A:$C,3,FALSE),D405)","v":"Nouveau-Brunswick"},{"$f":"IFERROR(VLOOKUP(E405,Translation!$A:$C,3,FALSE),E405)","v":22.420537918744529},{"$f":"IFERROR(VLOOKUP(F405,Translation!$A:$C,3,FALSE),F405)","v":"Période d’amortissement moyenne selon la province"},{"$f":"IFERROR(VLOOKUP(G405,Translation!$A:$C,3,FALSE),G405)","v":"22.4"},{"$f":"IFERROR(VLOOKUP(H405,Translation!$A:$C,3,FALSE),H405)","v":"Nouveau-Brunswick"}]
[10,"T1 2019","ASSURANCE DE PORTEFEUILLE","Québec",21.455162910769996,"Période d’amortissement moyenne selon la province","21.5","Québec",{"$f":"IFERROR(VLOOKUP(A406,Translation!$A:$C,3,FALSE),A406)","v":10},{"$f":"IFERROR(VLOOKUP(B406,Translation!$A:$C,3,FALSE),B406)","v":"T1 2019"},{"$f":"IFERROR(VLOOKUP(C406,Translation!$A:$C,3,FALSE),C406)","v":"ASSURANCE DE PORTEFEUILLE"},{"$f":"IFERROR(VLOOKUP(D406,Translation!$A:$C,3,FALSE),D406)","v":"Québec"},{"$f":"IFERROR(VLOOKUP(E406,Translation!$A:$C,3,FALSE),E406)","v":21.455162910769996},{"$f":"IFERROR(VLOOKUP(F406,Translation!$A:$C,3,FALSE),F406)","v":"Période d’amortissement moyenne selon la province"},{"$f":"IFERROR(VLOOKUP(G406,Translation!$A:$C,3,FALSE),G406)","v":"21.5"},{"$f":"IFERROR(VLOOKUP(H406,Translation!$A:$C,3,FALSE),H406)","v":"Québec"}]
[10,"T1 2019","ASSURANCE DE PORTEFEUILLE","Ontario",22.674495298802832,"Période d’amortissement moyenne selon la province","22.7","Ontario",{"$f":"IFERROR(VLOOKUP(A407,Translation!$A:$C,3,FALSE),A407)","v":10},{"$f":"IFERROR(VLOOKUP(B407,Translation!$A:$C,3,FALSE),B407)","v":"T1 2019"},{"$f":"IFERROR(VLOOKUP(C407,Translation!$A:$C,3,FALSE),C407)","v":"ASSURANCE DE PORTEFEUILLE"},{"$f":"IFERROR(VLOOKUP(D407,Translation!$A:$C,3,FALSE),D407)","v":"Ontario"},{"$f":"IFERROR(VLOOKUP(E407,Translation!$A:$C,3,FALSE),E407)","v":22.674495298802832},{"$f":"IFERROR(VLOOKUP(F407,Translation!$A:$C,3,FALSE),F407)","v":"Période d’amortissement moyenne selon la province"},{"$f":"IFERROR(VLOOKUP(G407,Translation!$A:$C,3,FALSE),G407)","v":"22.7"},{"$f":"IFERROR(VLOOKUP(H407,Translation!$A:$C,3,FALSE),H407)","v":"Ontario"}]
[10,"T1 2019","ASSURANCE DE PORTEFEUILLE","Manitoba",22.540431387764524,"Période d’amortissement moyenne selon la province","22.5","Manitoba",{"$f":"IFERROR(VLOOKUP(A408,Translation!$A:$C,3,FALSE),A408)","v":10},{"$f":"IFERROR(VLOOKUP(B408,Translation!$A:$C,3,FALSE),B408)","v":"T1 2019"},{"$f":"IFERROR(VLOOKUP(C408,Translation!$A:$C,3,FALSE),C408)","v":"ASSURANCE DE PORTEFEUILLE"},{"$f":"IFERROR(VLOOKUP(D408,Translation!$A:$C,3,FALSE),D408)","v":"Manitoba"},{"$f":"IFERROR(VLOOKUP(E408,Translation!$A:$C,3,FALSE),E408)","v":22.540431387764524},{"$f":"IFERROR(VLOOKUP(F408,Translation!$A:$C,3,FALSE),F408)","v":"Période d’amortissement moyenne selon la province"},{"$f":"IFERROR(VLOOKUP(G408,Translation!$A:$C,3,FALSE),G408)","v":"22.5"},{"$f":"IFERROR(VLOOKUP(H408,Translation!$A:$C,3,FALSE),H408)","v":"Manitoba"}]
[10,"T1 2019","ASSURANCE DE PORTEFEUILLE","Saskatchewan",20.422149571180249,"Période d’amortissement moyenne selon la province","20.4","Saskatchewan",{"$f":"IFERROR(VLOOKUP(A409,Translation!$A:$C,3,FALSE),A409)","v":10},{"$f":"IFERROR(VLOOKUP(B409,Translation!$A:$C,3,FALSE),B409)","v":"T1 2019"},{"$f":"IFERROR(VLOOKUP(C409,Translation!$A:$C,3,FALSE),C409)","v":"ASSURANCE DE PORTEFEUILLE"},{"$f":"IFERROR(VLOOKUP(D409,Translation!$A:$C,3,FALSE),D409)","v":"Saskatchewan"},{"$f":"IFERROR(VLOOKUP(E409,Translation!$A:$C,3,FALSE),E409)","v":20.422149571180249},{"$f":"IFERROR(VLOOKUP(F409,Translation!$A:$C,3,FALSE),F409)","v":"Période d’amortissement moyenne selon la province"},{"$f":"IFERROR(VLOOKUP(G409,Translation!$A:$C,3,FALSE),G409)","v":"20.4"},{"$f":"IFERROR(VLOOKUP(H409,Translation!$A:$C,3,FALSE),H409)","v":"Saskatchewan"}]
[10,"T1 2019","ASSURANCE DE PORTEFEUILLE","Alberta",21.366442028312452,"Période d’amortissement moyenne selon la province","21.4","Alberta",{"$f":"IFERROR(VLOOKUP(A410,Translation!$A:$C,3,FALSE),A410)","v":10},{"$f":"IFERROR(VLOOKUP(B410,Translation!$A:$C,3,FALSE),B410)","v":"T1 2019"},{"$f":"IFERROR(VLOOKUP(C410,Translation!$A:$C,3,FALSE),C410)","v":"ASSURANCE DE PORTEFEUILLE"},{"$f":"IFERROR(VLOOKUP(D410,Translation!$A:$C,3,FALSE),D410)","v":"Alberta"},{"$f":"IFERROR(VLOOKUP(E410,Translation!$A:$C,3,FALSE),E410)","v":21.366442028312452},{"$f":"IFERROR(VLOOKUP(F410,Translation!$A:$C,3,FALSE),F410)","v":"Période d’amortissement moyenne selon la province"},{"$f":"IFERROR(VLOOKUP(G410,Translation!$A:$C,3,FALSE),G410)","v":"21.4"},{"$f":"IFERROR(VLOOKUP(H410,Translation!$A:$C,3,FALSE),H410)","v":"Alberta"}]
[10,"T1 2019","ASSURANCE DE PORTEFEUILLE","Colombie-Britannique",22.819768238489097,"Période d’amortissement moyenne selon la province","22.8","Colombie-Britannique",{"$f":"IFERROR(VLOOKUP(A411,Translation!$A:$C,3,FALSE),A411)","v":10},{"$f":"IFERROR(VLOOKUP(B411,Translation!$A:$C,3,FALSE),B411)","v":"T1 2019"},{"$f":"IFERROR(VLOOKUP(C411,Translation!$A:$C,3,FALSE),C411)","v":"ASSURANCE DE PORTEFEUILLE"},{"$f":"IFERROR(VLOOKUP(D411,Translation!$A:$C,3,FALSE),D411)","v":"Colombie-Britannique"},{"$f":"IFERROR(VLOOKUP(E411,Translation!$A:$C,3,FALSE),E411)","v":22.819768238489097},{"$f":"IFERROR(VLOOKUP(F411,Translation!$A:$C,3,FALSE),F411)","v":"Période d’amortissement moyenne selon la province"},{"$f":"IFERROR(VLOOKUP(G411,Translation!$A:$C,3,FALSE),G411)","v":"22.8"},{"$f":"IFERROR(VLOOKUP(H411,Translation!$A:$C,3,FALSE),H411)","v":"Colombie-Britannique"}]
[10,"T1 2019","ASSURANCE DE PORTEFEUILLE","Territoires",13.166666666666663,"Période d’amortissement moyenne selon la province","13.2","Territoires",{"$f":"IFERROR(VLOOKUP(A412,Translation!$A:$C,3,FALSE),A412)","v":10},{"$f":"IFERROR(VLOOKUP(B412,Translation!$A:$C,3,FALSE),B412)","v":"T1 2019"},{"$f":"IFERROR(VLOOKUP(C412,Translation!$A:$C,3,FALSE),C412)","v":"ASSURANCE DE PORTEFEUILLE"},{"$f":"IFERROR(VLOOKUP(D412,Translation!$A:$C,3,FALSE),D412)","v":"Territoires"},{"$f":"IFERROR(VLOOKUP(E412,Translation!$A:$C,3,FALSE),E412)","v":13.166666666666663},{"$f":"IFERROR(VLOOKUP(F412,Translation!$A:$C,3,FALSE),F412)","v":"Période d’amortissement moyenne selon la province"},{"$f":"IFERROR(VLOOKUP(G412,Translation!$A:$C,3,FALSE),G412)","v":"13.2"},{"$f":"IFERROR(VLOOKUP(H412,Translation!$A:$C,3,FALSE),H412)","v":"Territoires"}]
[28,"T1 2019","IMMEUBLES COLLECTIFS RÉSIDENTIELS","> 10 <= 15",0.49858250761961209,"Prêts hypothécaires assurés au cours de la période selon la période d’amortissement (en années) à l'initiation (%)","0.5"," > 10 <= 15",{"$f":"IFERROR(VLOOKUP(A413,Translation!$A:$C,3,FALSE),A413)","v":28},{"$f":"IFERROR(VLOOKUP(B413,Translation!$A:$C,3,FALSE),B413)","v":"T1 2019"},{"$f":"IFERROR(VLOOKUP(C413,Translation!$A:$C,3,FALSE),C413)","v":"IMMEUBLES COLLECTIFS RÉSIDENTIELS"},{"$f":"IFERROR(VLOOKUP(D413,Translation!$A:$C,3,FALSE),D413)","v":"> 10 <= 15"},{"$f":"IFERROR(VLOOKUP(E413,Translation!$A:$C,3,FALSE),E413)","v":0.49858250761961209},{"$f":"IFERROR(VLOOKUP(F413,Translation!$A:$C,3,FALSE),F413)","v":"Prêts hypothécaires assurés au cours de la période selon la période d’amortissement (en années) à l'initiation (%)"},{"$f":"IFERROR(VLOOKUP(G413,Translation!$A:$C,3,FALSE),G413)","v":"0.5"},{"$f":"IFERROR(VLOOKUP(H413,Translation!$A:$C,3,FALSE),H413)","v":" > 10 <= 15"}]
[28,"T1 2019","IMMEUBLES COLLECTIFS RÉSIDENTIELS","> 15 <= 20",0.62930499764585324,"Prêts hypothécaires assurés au cours de la période selon la période d’amortissement (en années) à l'initiation (%)","0.6"," > 15 <= 20",{"$f":"IFERROR(VLOOKUP(A414,Translation!$A:$C,3,FALSE),A414)","v":28},{"$f":"IFERROR(VLOOKUP(B414,Translation!$A:$C,3,FALSE),B414)","v":"T1 2019"},{"$f":"IFERROR(VLOOKUP(C414,Translation!$A:$C,3,FALSE),C414)","v":"IMMEUBLES COLLECTIFS RÉSIDENTIELS"},{"$f":"IFERROR(VLOOKUP(D414,Translation!$A:$C,3,FALSE),D414)","v":"> 15 <= 20"},{"$f":"IFERROR(VLOOKUP(E414,Translation!$A:$C,3,FALSE),E414)","v":0.62930499764585324},{"$f":"IFERROR(VLOOKUP(F414,Translation!$A:$C,3,FALSE),F414)","v":"Prêts hypothécaires assurés au cours de la période selon la période d’amortissement (en années) à l'initiation (%)"},{"$f":"IFERROR(VLOOKUP(G414,Translation!$A:$C,3,FALSE),G414)","v":"0.6"},{"$f":"IFERROR(VLOOKUP(H414,Translation!$A:$C,3,FALSE),H414)","v":" > 15 <= 20"}]
[28,"T1 2019","IMMEUBLES COLLECTIFS RÉSIDENTIELS","> 20 <= 25",20.076326455699,"Prêts hypothécaires assurés au cours de la période selon la période d’amortissement (en années) à l'initiation (%)","20.1"," > 20 <= 25",{"$f":"IFERROR(VLOOKUP(A415,Translation!$A:$C,3,FALSE),A415)","v":28},{"$f":"IFERROR(VLOOKUP(B415,Translation!$A:$C,3,FALSE),B415)","v":"T1 2019"},{"$f":"IFERROR(VLOOKUP(C415,Translation!$A:$C,3,FALSE),C415)","v":"IMMEUBLES COLLECTIFS RÉSIDENTIELS"},{"$f":"IFERROR(VLOOKUP(D415,Translation!$A:$C,3,FALSE),D415)","v":"> 20 <= 25"},{"$f":"IFERROR(VLOOKUP(E415,Translation!$A:$C,3,FALSE),E415)","v":20.076326455699},{"$f":"IFERROR(VLOOKUP(F415,Translation!$A:$C,3,FALSE),F415)","v":"Prêts hypothécaires assurés au cours de la période selon la période d’amortissement (en années) à l'initiation (%)"},{"$f":"IFERROR(VLOOKUP(G415,Translation!$A:$C,3,FALSE),G415)","v":"20.1"},{"$f":"IFERROR(VLOOKUP(H415,Translation!$A:$C,3,FALSE),H415)","v":" > 20 <= 25"}]
[28,"T1 2019","IMMEUBLES COLLECTIFS RÉSIDENTIELS","> 25 <= 30",22.560001776371248,"Prêts hypothécaires assurés au cours de la période selon la période d’amortissement (en années) à l'initiation (%)","22.6"," > 25 <= 30",{"$f":"IFERROR(VLOOKUP(A416,Translation!$A:$C,3,FALSE),A416)","v":28},{"$f":"IFERROR(VLOOKUP(B416,Translation!$A:$C,3,FALSE),B416)","v":"T1 2019"},{"$f":"IFERROR(VLOOKUP(C416,Translation!$A:$C,3,FALSE),C416)","v":"IMMEUBLES COLLECTIFS RÉSIDENTIELS"},{"$f":"IFERROR(VLOOKUP(D416,Translation!$A:$C,3,FALSE),D416)","v":"> 25 <= 30"},{"$f":"IFERROR(VLOOKUP(E416,Translation!$A:$C,3,FALSE),E416)","v":22.560001776371248},{"$f":"IFERROR(VLOOKUP(F416,Translation!$A:$C,3,FALSE),F416)","v":"Prêts hypothécaires assurés au cours de la période selon la période d’amortissement (en années) à l'initiation (%)"},{"$f":"IFERROR(VLOOKUP(G416,Translation!$A:$C,3,FALSE),G416)","v":"22.6"},{"$f":"IFERROR(VLOOKUP(H416,Translation!$A:$C,3,FALSE),H416)","v":" > 25 <= 30"}]
[28,"T1 2019","IMMEUBLES COLLECTIFS RÉSIDENTIELS","> 30 <= 35",22.99028439527282,"Prêts hypothécaires assurés au cours de la période selon la période d’amortissement (en années) à l'initiation (%)","23.0"," > 30 <= 35",{"$f":"IFERROR(VLOOKUP(A417,Translation!$A:$C,3,FALSE),A417)","v":28},{"$f":"IFERROR(VLOOKUP(B417,Translation!$A:$C,3,FALSE),B417)","v":"T1 2019"},{"$f":"IFERROR(VLOOKUP(C417,Translation!$A:$C,3,FALSE),C417)","v":"IMMEUBLES COLLECTIFS RÉSIDENTIELS"},{"$f":"IFERROR(VLOOKUP(D417,Translation!$A:$C,3,FALSE),D417)","v":"> 30 <= 35"},{"$f":"IFERROR(VLOOKUP(E417,Translation!$A:$C,3,FALSE),E417)","v":22.99028439527282},{"$f":"IFERROR(VLOOKUP(F417,Translation!$A:$C,3,FALSE),F417)","v":"Prêts hypothécaires assurés au cours de la période selon la période d’amortissement (en années) à l'initiation (%)"},{"$f":"IFERROR(VLOOKUP(G417,Translation!$A:$C,3,FALSE),G417)","v":"23.0"},{"$f":"IFERROR(VLOOKUP(H417,Translation!$A:$C,3,FALSE),H417)","v":" > 30 <= 35"}]
[28,"T1 2019","IMMEUBLES COLLECTIFS RÉSIDENTIELS","> 35",33.245499867391445,"Prêts hypothécaires assurés au cours de la période selon la période d’amortissement (en années) à l'initiation (%)","33.2"," > 35",{"$f":"IFERROR(VLOOKUP(A418,Translation!$A:$C,3,FALSE),A418)","v":28},{"$f":"IFERROR(VLOOKUP(B418,Translation!$A:$C,3,FALSE),B418)","v":"T1 2019"},{"$f":"IFERROR(VLOOKUP(C418,Translation!$A:$C,3,FALSE),C418)","v":"IMMEUBLES COLLECTIFS RÉSIDENTIELS"},{"$f":"IFERROR(VLOOKUP(D418,Translation!$A:$C,3,FALSE),D418)","v":"> 35"},{"$f":"IFERROR(VLOOKUP(E418,Translation!$A:$C,3,FALSE),E418)","v":33.245499867391445},{"$f":"IFERROR(VLOOKUP(F418,Translation!$A:$C,3,FALSE),F418)","v":"Prêts hypothécaires assurés au cours de la période selon la période d’amortissement (en années) à l'initiation (%)"},{"$f":"IFERROR(VLOOKUP(G418,Translation!$A:$C,3,FALSE),G418)","v":"33.2"},{"$f":"IFERROR(VLOOKUP(H418,Translation!$A:$C,3,FALSE),H418)","v":" > 35"}]
[28,"T1 2019","IMMEUBLES COLLECTIFS RÉSIDENTIELS","Période d’amortissement moyenne",33.393542347031257,"Prêts hypothécaires assurés au cours de la période selon la période d’amortissement (en années) à l'initiation (%)","33.4","Période d’amortissement moyenne",{"$f":"IFERROR(VLOOKUP(A419,Translation!$A:$C,3,FALSE),A419)","v":28},{"$f":"IFERROR(VLOOKUP(B419,Translation!$A:$C,3,FALSE),B419)","v":"T1 2019"},{"$f":"IFERROR(VLOOKUP(C419,Translation!$A:$C,3,FALSE),C419)","v":"IMMEUBLES COLLECTIFS RÉSIDENTIELS"},{"$f":"IFERROR(VLOOKUP(D419,Translation!$A:$C,3,FALSE),D419)","v":"Période d’amortissement moyenne"},{"$f":"IFERROR(VLOOKUP(E419,Translation!$A:$C,3,FALSE),E419)","v":33.393542347031257},{"$f":"IFERROR(VLOOKUP(F419,Translation!$A:$C,3,FALSE),F419)","v":"Prêts hypothécaires assurés au cours de la période selon la période d’amortissement (en années) à l'initiation (%)"},{"$f":"IFERROR(VLOOKUP(G419,Translation!$A:$C,3,FALSE),G419)","v":"33.4"},{"$f":"IFERROR(VLOOKUP(H419,Translation!$A:$C,3,FALSE),H419)","v":"Période d’amortissement moyenne"}]
[28,"T1 2019","IMMEUBLES COLLECTIFS RÉSIDENTIELS","Île-du-Prince-Édouard",24.155721129396344,"Période d’amortissement moyenne selon la province","24.2","Île-du-Prince-Édouard",{"$f":"IFERROR(VLOOKUP(A420,Translation!$A:$C,3,FALSE),A420)","v":28},{"$f":"IFERROR(VLOOKUP(B420,Translation!$A:$C,3,FALSE),B420)","v":"T1 2019"},{"$f":"IFERROR(VLOOKUP(C420,Translation!$A:$C,3,FALSE),C420)","v":"IMMEUBLES COLLECTIFS RÉSIDENTIELS"},{"$f":"IFERROR(VLOOKUP(D420,Translation!$A:$C,3,FALSE),D420)","v":"Île-du-Prince-Édouard"},{"$f":"IFERROR(VLOOKUP(E420,Translation!$A:$C,3,FALSE),E420)","v":24.155721129396344},{"$f":"IFERROR(VLOOKUP(F420,Translation!$A:$C,3,FALSE),F420)","v":"Période d’amortissement moyenne selon la province"},{"$f":"IFERROR(VLOOKUP(G420,Translation!$A:$C,3,FALSE),G420)","v":"24.2"},{"$f":"IFERROR(VLOOKUP(H420,Translation!$A:$C,3,FALSE),H420)","v":"Île-du-Prince-Édouard"}]
[28,"T1 2019","IMMEUBLES COLLECTIFS RÉSIDENTIELS","Nouvelle-Écosse",34.305943471714187,"Période d’amortissement moyenne selon la province","34.3","Nouvelle-Écosse",{"$f":"IFERROR(VLOOKUP(A421,Translation!$A:$C,3,FALSE),A421)","v":28},{"$f":"IFERROR(VLOOKUP(B421,Translation!$A:$C,3,FALSE),B421)","v":"T1 2019"},{"$f":"IFERROR(VLOOKUP(C421,Translation!$A:$C,3,FALSE),C421)","v":"IMMEUBLES COLLECTIFS RÉSIDENTIELS"},{"$f":"IFERROR(VLOOKUP(D421,Translation!$A:$C,3,FALSE),D421)","v":"Nouvelle-Écosse"},{"$f":"IFERROR(VLOOKUP(E421,Translation!$A:$C,3,FALSE),E421)","v":34.305943471714187},{"$f":"IFERROR(VLOOKUP(F421,Translation!$A:$C,3,FALSE),F421)","v":"Période d’amortissement moyenne selon la province"},{"$f":"IFERROR(VLOOKUP(G421,Translation!$A:$C,3,FALSE),G421)","v":"34.3"},{"$f":"IFERROR(VLOOKUP(H421,Translation!$A:$C,3,FALSE),H421)","v":"Nouvelle-Écosse"}]
[28,"T1 2019","IMMEUBLES COLLECTIFS RÉSIDENTIELS","Nouveau-Brunswick",28.977408446353312,"Période d’amortissement moyenne selon la province","29.0","Nouveau-Brunswick",{"$f":"IFERROR(VLOOKUP(A422,Translation!$A:$C,3,FALSE),A422)","v":28},{"$f":"IFERROR(VLOOKUP(B422,Translation!$A:$C,3,FALSE),B422)","v":"T1 2019"},{"$f":"IFERROR(VLOOKUP(C422,Translation!$A:$C,3,FALSE),C422)","v":"IMMEUBLES COLLECTIFS RÉSIDENTIELS"},{"$f":"IFERROR(VLOOKUP(D422,Translation!$A:$C,3,FALSE),D422)","v":"Nouveau-Brunswick"},{"$f":"IFERROR(VLOOKUP(E422,Translation!$A:$C,3,FALSE),E422)","v":28.977408446353312},{"$f":"IFERROR(VLOOKUP(F422,Translation!$A:$C,3,FALSE),F422)","v":"Période d’amortissement moyenne selon la province"},{"$f":"IFERROR(VLOOKUP(G422,Translation!$A:$C,3,FALSE),G422)","v":"29.0"},{"$f":"IFERROR(VLOOKUP(H422,Translation!$A:$C,3,FALSE),H422)","v":"Nouveau-Brunswick"}]
[28,"T1 2019","IMMEUBLES COLLECTIFS RÉSIDENTIELS","Québec",35.13090644414514,"Période d’amortissement moyenne selon la province","35.1","Québec",{"$f":"IFERROR(VLOOKUP(A423,Translation!$A:$C,3,FALSE),A423)","v":28},{"$f":"IFERROR(VLOOKUP(B423,Translation!$A:$C,3,FALSE),B423)","v":"T1 2019"},{"$f":"IFERROR(VLOOKUP(C423,Translation!$A:$C,3,FALSE),C423)","v":"IMMEUBLES COLLECTIFS RÉSIDENTIELS"},{"$f":"IFERROR(VLOOKUP(D423,Translation!$A:$C,3,FALSE),D423)","v":"Québec"},{"$f":"IFERROR(VLOOKUP(E423,Translation!$A:$C,3,FALSE),E423)","v":35.13090644414514},{"$f":"IFERROR(VLOOKUP(F423,Translation!$A:$C,3,FALSE),F423)","v":"Période d’amortissement moyenne selon la province"},{"$f":"IFERROR(VLOOKUP(G423,Translation!$A:$C,3,FALSE),G423)","v":"35.1"},{"$f":"IFERROR(VLOOKUP(H423,Translation!$A:$C,3,FALSE),H423)","v":"Québec"}]
[28,"T1 2019","IMMEUBLES COLLECTIFS RÉSIDENTIELS","Ontario",32.789778074231094,"Période d’amortissement moyenne selon la province","32.8","Ontario",{"$f":"IFERROR(VLOOKUP(A424,Translation!$A:$C,3,FALSE),A424)","v":28},{"$f":"IFERROR(VLOOKUP(B424,Translation!$A:$C,3,FALSE),B424)","v":"T1 2019"},{"$f":"IFERROR(VLOOKUP(C424,Translation!$A:$C,3,FALSE),C424)","v":"IMMEUBLES COLLECTIFS RÉSIDENTIELS"},{"$f":"IFERROR(VLOOKUP(D424,Translation!$A:$C,3,FALSE),D424)","v":"Ontario"},{"$f":"IFERROR(VLOOKUP(E424,Translation!$A:$C,3,FALSE),E424)","v":32.789778074231094},{"$f":"IFERROR(VLOOKUP(F424,Translation!$A:$C,3,FALSE),F424)","v":"Période d’amortissement moyenne selon la province"},{"$f":"IFERROR(VLOOKUP(G424,Translation!$A:$C,3,FALSE),G424)","v":"32.8"},{"$f":"IFERROR(VLOOKUP(H424,Translation!$A:$C,3,FALSE),H424)","v":"Ontario"}]
[28,"T1 2019","IMMEUBLES COLLECTIFS RÉSIDENTIELS","Manitoba",32.241431417380475,"Période d’amortissement moyenne selon la province","32.2","Manitoba",{"$f":"IFERROR(VLOOKUP(A425,Translation!$A:$C,3,FALSE),A425)","v":28},{"$f":"IFERROR(VLOOKUP(B425,Translation!$A:$C,3,FALSE),B425)","v":"T1 2019"},{"$f":"IFERROR(VLOOKUP(C425,Translation!$A:$C,3,FALSE),C425)","v":"IMMEUBLES COLLECTIFS RÉSIDENTIELS"},{"$f":"IFERROR(VLOOKUP(D425,Translation!$A:$C,3,FALSE),D425)","v":"Manitoba"},{"$f":"IFERROR(VLOOKUP(E425,Translation!$A:$C,3,FALSE),E425)","v":32.241431417380475},{"$f":"IFERROR(VLOOKUP(F425,Translation!$A:$C,3,FALSE),F425)","v":"Période d’amortissement moyenne selon la province"},{"$f":"IFERROR(VLOOKUP(G425,Translation!$A:$C,3,FALSE),G425)","v":"32.2"},{"$f":"IFERROR(VLOOKUP(H425,Translation!$A:$C,3,FALSE),H425)","v":"Manitoba"}]
[28,"T1 2019","IMMEUBLES COLLECTIFS RÉSIDENTIELS","Saskatchewan",33.499473510290713,"Période d’amortissement moyenne selon la province","33.5","Saskatchewan",{"$f":"IFERROR(VLOOKUP(A426,Translation!$A:$C,3,FALSE),A426)","v":28},{"$f":"IFERROR(VLOOKUP(B426,Translation!$A:$C,3,FALSE),B426)","v":"T1 2019"},{"$f":"IFERROR(VLOOKUP(C426,Translation!$A:$C,3,FALSE),C426)","v":"IMMEUBLES COLLECTIFS RÉSIDENTIELS"},{"$f":"IFERROR(VLOOKUP(D426,Translation!$A:$C,3,FALSE),D426)","v":"Saskatchewan"},{"$f":"IFERROR(VLOOKUP(E426,Translation!$A:$C,3,FALSE),E426)","v":33.499473510290713},{"$f":"IFERROR(VLOOKUP(F426,Translation!$A:$C,3,FALSE),F426)","v":"Période d’amortissement moyenne selon la province"},{"$f":"IFERROR(VLOOKUP(G426,Translation!$A:$C,3,FALSE),G426)","v":"33.5"},{"$f":"IFERROR(VLOOKUP(H426,Translation!$A:$C,3,FALSE),H426)","v":"Saskatchewan"}]
[28,"T1 2019","IMMEUBLES COLLECTIFS RÉSIDENTIELS","Alberta",31.708745489753397,"Période d’amortissement moyenne selon la province","31.7","Alberta",{"$f":"IFERROR(VLOOKUP(A427,Translation!$A:$C,3,FALSE),A427)","v":28},{"$f":"IFERROR(VLOOKUP(B427,Translation!$A:$C,3,FALSE),B427)","v":"T1 2019"},{"$f":"IFERROR(VLOOKUP(C427,Translation!$A:$C,3,FALSE),C427)","v":"IMMEUBLES COLLECTIFS RÉSIDENTIELS"},{"$f":"IFERROR(VLOOKUP(D427,Translation!$A:$C,3,FALSE),D427)","v":"Alberta"},{"$f":"IFERROR(VLOOKUP(E427,Translation!$A:$C,3,FALSE),E427)","v":31.708745489753397},{"$f":"IFERROR(VLOOKUP(F427,Translation!$A:$C,3,FALSE),F427)","v":"Période d’amortissement moyenne selon la province"},{"$f":"IFERROR(VLOOKUP(G427,Translation!$A:$C,3,FALSE),G427)","v":"31.7"},{"$f":"IFERROR(VLOOKUP(H427,Translation!$A:$C,3,FALSE),H427)","v":"Alberta"}]
[28,"T1 2019","IMMEUBLES COLLECTIFS RÉSIDENTIELS","Colombie-Britannique",33.765182199436005,"Période d’amortissement moyenne selon la province","33.8","Colombie-Britannique",{"$f":"IFERROR(VLOOKUP(A428,Translation!$A:$C,3,FALSE),A428)","v":28},{"$f":"IFERROR(VLOOKUP(B428,Translation!$A:$C,3,FALSE),B428)","v":"T1 2019"},{"$f":"IFERROR(VLOOKUP(C428,Translation!$A:$C,3,FALSE),C428)","v":"IMMEUBLES COLLECTIFS RÉSIDENTIELS"},{"$f":"IFERROR(VLOOKUP(D428,Translation!$A:$C,3,FALSE),D428)","v":"Colombie-Britannique"},{"$f":"IFERROR(VLOOKUP(E428,Translation!$A:$C,3,FALSE),E428)","v":33.765182199436005},{"$f":"IFERROR(VLOOKUP(F428,Translation!$A:$C,3,FALSE),F428)","v":"Période d’amortissement moyenne selon la province"},{"$f":"IFERROR(VLOOKUP(G428,Translation!$A:$C,3,FALSE),G428)","v":"33.8"},{"$f":"IFERROR(VLOOKUP(H428,Translation!$A:$C,3,FALSE),H428)","v":"Colombie-Britannique"}]
[28,"T1 2019","IMMEUBLES COLLECTIFS RÉSIDENTIELS","Territoires",30,"Période d’amortissement moyenne selon la province","30.0","Territoires",{"$f":"IFERROR(VLOOKUP(A429,Translation!$A:$C,3,FALSE),A429)","v":28},{"$f":"IFERROR(VLOOKUP(B429,Translation!$A:$C,3,FALSE),B429)","v":"T1 2019"},{"$f":"IFERROR(VLOOKUP(C429,Translation!$A:$C,3,FALSE),C429)","v":"IMMEUBLES COLLECTIFS RÉSIDENTIELS"},{"$f":"IFERROR(VLOOKUP(D429,Translation!$A:$C,3,FALSE),D429)","v":"Territoires"},{"$f":"IFERROR(VLOOKUP(E429,Translation!$A:$C,3,FALSE),E429)","v":30},{"$f":"IFERROR(VLOOKUP(F429,Translation!$A:$C,3,FALSE),F429)","v":"Période d’amortissement moyenne selon la province"},{"$f":"IFERROR(VLOOKUP(G429,Translation!$A:$C,3,FALSE),G429)","v":"30.0"},{"$f":"IFERROR(VLOOKUP(H429,Translation!$A:$C,3,FALSE),H429)","v":"Territoires"}]
[10,"T4 2018","PROPRIÉTAIRES-OCCUPANTS, À L’UNITÉ","<= 5",2.0356648273447994E-3,"Prêts hypothécaires assurés au cours de la période selon la période d’amortissement (en années) à l'initiation (%)","0.0"," <= 5",{"$f":"IFERROR(VLOOKUP(A430,Translation!$A:$C,3,FALSE),A430)","v":10},{"$f":"IFERROR(VLOOKUP(B430,Translation!$A:$C,3,FALSE),B430)","v":"T4 2018"},{"$f":"IFERROR(VLOOKUP(C430,Translation!$A:$C,3,FALSE),C430)","v":"PROPRIÉTAIRES-OCCUPANTS, À L’UNITÉ"},{"$f":"IFERROR(VLOOKUP(D430,Translation!$A:$C,3,FALSE),D430)","v":"<= 5"},{"$f":"IFERROR(VLOOKUP(E430,Translation!$A:$C,3,FALSE),E430)","v":2.0356648273447994E-3},{"$f":"IFERROR(VLOOKUP(F430,Translation!$A:$C,3,FALSE),F430)","v":"Prêts hypothécaires assurés au cours de la période selon la période d’amortissement (en années) à l'initiation (%)"},{"$f":"IFERROR(VLOOKUP(G430,Translation!$A:$C,3,FALSE),G430)","v":"0.0"},{"$f":"IFERROR(VLOOKUP(H430,Translation!$A:$C,3,FALSE),H430)","v":" <= 5"}]
[10,"Cumul 2017","PROPRIÉTAIRES-OCCUPANTS, À L’UNITÉ","<= 5",7.6247617771389858E-3,"Prêts hypothécaires assurés au cours de la période selon la période d’amortissement (en années) à l'initiation (%)","0.0"," <= 5",{"$f":"IFERROR(VLOOKUP(A431,Translation!$A:$C,3,FALSE),A431)","v":10},{"$f":"IFERROR(VLOOKUP(B431,Translation!$A:$C,3,FALSE),B431)","v":"Cumul 2017"},{"$f":"IFERROR(VLOOKUP(C431,Translation!$A:$C,3,FALSE),C431)","v":"PROPRIÉTAIRES-OCCUPANTS, À L’UNITÉ"},{"$f":"IFERROR(VLOOKUP(D431,Translation!$A:$C,3,FALSE),D431)","v":"<= 5"},{"$f":"IFERROR(VLOOKUP(E431,Translation!$A:$C,3,FALSE),E431)","v":7.6247617771389858E-3},{"$f":"IFERROR(VLOOKUP(F431,Translation!$A:$C,3,FALSE),F431)","v":"Prêts hypothécaires assurés au cours de la période selon la période d’amortissement (en années) à l'initiation (%)"},{"$f":"IFERROR(VLOOKUP(G431,Translation!$A:$C,3,FALSE),G431)","v":"0.0"},{"$f":"IFERROR(VLOOKUP(H431,Translation!$A:$C,3,FALSE),H431)","v":" <= 5"}]
[10,"T4 2018","PROPRIÉTAIRES-OCCUPANTS, À L’UNITÉ","> 5 <= 10",4.9174904525054255E-2,"Prêts hypothécaires assurés au cours de la période selon la période d’amortissement (en années) à l'initiation (%)","0.0"," > 5 <= 10",{"$f":"IFERROR(VLOOKUP(A432,Translation!$A:$C,3,FALSE),A432)","v":10},{"$f":"IFERROR(VLOOKUP(B432,Translation!$A:$C,3,FALSE),B432)","v":"T4 2018"},{"$f":"IFERROR(VLOOKUP(C432,Translation!$A:$C,3,FALSE),C432)","v":"PROPRIÉTAIRES-OCCUPANTS, À L’UNITÉ"},{"$f":"IFERROR(VLOOKUP(D432,Translation!$A:$C,3,FALSE),D432)","v":"> 5 <= 10"},{"$f":"IFERROR(VLOOKUP(E432,Translation!$A:$C,3,FALSE),E432)","v":4.9174904525054255E-2},{"$f":"IFERROR(VLOOKUP(F432,Translation!$A:$C,3,FALSE),F432)","v":"Prêts hypothécaires assurés au cours de la période selon la période d’amortissement (en années) à l'initiation (%)"},{"$f":"IFERROR(VLOOKUP(G432,Translation!$A:$C,3,FALSE),G432)","v":"0.0"},{"$f":"IFERROR(VLOOKUP(H432,Translation!$A:$C,3,FALSE),H432)","v":" > 5 <= 10"}]
[10,"Cumul 2017","PROPRIÉTAIRES-OCCUPANTS, À L’UNITÉ","> 5 <= 10",5.750979438422265E-2,"Prêts hypothécaires assurés au cours de la période selon la période d’amortissement (en années) à l'initiation (%)","0.1"," > 5 <= 10",{"$f":"IFERROR(VLOOKUP(A433,Translation!$A:$C,3,FALSE),A433)","v":10},{"$f":"IFERROR(VLOOKUP(B433,Translation!$A:$C,3,FALSE),B433)","v":"Cumul 2017"},{"$f":"IFERROR(VLOOKUP(C433,Translation!$A:$C,3,FALSE),C433)","v":"PROPRIÉTAIRES-OCCUPANTS, À L’UNITÉ"},{"$f":"IFERROR(VLOOKUP(D433,Translation!$A:$C,3,FALSE),D433)","v":"> 5 <= 10"},{"$f":"IFERROR(VLOOKUP(E433,Translation!$A:$C,3,FALSE),E433)","v":5.750979438422265E-2},{"$f":"IFERROR(VLOOKUP(F433,Translation!$A:$C,3,FALSE),F433)","v":"Prêts hypothécaires assurés au cours de la période selon la période d’amortissement (en années) à l'initiation (%)"},{"$f":"IFERROR(VLOOKUP(G433,Translation!$A:$C,3,FALSE),G433)","v":"0.1"},{"$f":"IFERROR(VLOOKUP(H433,Translation!$A:$C,3,FALSE),H433)","v":" > 5 <= 10"}]
[10,"T4 2018","PROPRIÉTAIRES-OCCUPANTS, À L’UNITÉ","> 10 <= 15",0.19985145631571316,"Prêts hypothécaires assurés au cours de la période selon la période d’amortissement (en années) à l'initiation (%)","0.2"," > 10 <= 15",{"$f":"IFERROR(VLOOKUP(A434,Translation!$A:$C,3,FALSE),A434)","v":10},{"$f":"IFERROR(VLOOKUP(B434,Translation!$A:$C,3,FALSE),B434)","v":"T4 2018"},{"$f":"IFERROR(VLOOKUP(C434,Translation!$A:$C,3,FALSE),C434)","v":"PROPRIÉTAIRES-OCCUPANTS, À L’UNITÉ"},{"$f":"IFERROR(VLOOKUP(D434,Translation!$A:$C,3,FALSE),D434)","v":"> 10 <= 15"},{"$f":"IFERROR(VLOOKUP(E434,Translation!$A:$C,3,FALSE),E434)","v":0.19985145631571316},{"$f":"IFERROR(VLOOKUP(F434,Translation!$A:$C,3,FALSE),F434)","v":"Prêts hypothécaires assurés au cours de la période selon la période d’amortissement (en années) à l'initiation (%)"},{"$f":"IFERROR(VLOOKUP(G434,Translation!$A:$C,3,FALSE),G434)","v":"0.2"},{"$f":"IFERROR(VLOOKUP(H434,Translation!$A:$C,3,FALSE),H434)","v":" > 10 <= 15"}]
[10,"Cumul 2017","PROPRIÉTAIRES-OCCUPANTS, À L’UNITÉ","> 10 <= 15",0.19699220062328887,"Prêts hypothécaires assurés au cours de la période selon la période d’amortissement (en années) à l'initiation (%)","0.2"," > 10 <= 15",{"$f":"IFERROR(VLOOKUP(A435,Translation!$A:$C,3,FALSE),A435)","v":10},{"$f":"IFERROR(VLOOKUP(B435,Translation!$A:$C,3,FALSE),B435)","v":"Cumul 2017"},{"$f":"IFERROR(VLOOKUP(C435,Translation!$A:$C,3,FALSE),C435)","v":"PROPRIÉTAIRES-OCCUPANTS, À L’UNITÉ"},{"$f":"IFERROR(VLOOKUP(D435,Translation!$A:$C,3,FALSE),D435)","v":"> 10 <= 15"},{"$f":"IFERROR(VLOOKUP(E435,Translation!$A:$C,3,FALSE),E435)","v":0.19699220062328887},{"$f":"IFERROR(VLOOKUP(F435,Translation!$A:$C,3,FALSE),F435)","v":"Prêts hypothécaires assurés au cours de la période selon la période d’amortissement (en années) à l'initiation (%)"},{"$f":"IFERROR(VLOOKUP(G435,Translation!$A:$C,3,FALSE),G435)","v":"0.2"},{"$f":"IFERROR(VLOOKUP(H435,Translation!$A:$C,3,FALSE),H435)","v":" > 10 <= 15"}]
[10,"T4 2018","PROPRIÉTAIRES-OCCUPANTS, À L’UNITÉ","> 15 <= 20",0.775336361390495,"Prêts hypothécaires assurés au cours de la période selon la période d’amortissement (en années) à l'initiation (%)","0.8"," > 15 <= 20",{"$f":"IFERROR(VLOOKUP(A436,Translation!$A:$C,3,FALSE),A436)","v":10},{"$f":"IFERROR(VLOOKUP(B436,Translation!$A:$C,3,FALSE),B436)","v":"T4 2018"},{"$f":"IFERROR(VLOOKUP(C436,Translation!$A:$C,3,FALSE),C436)","v":"PROPRIÉTAIRES-OCCUPANTS, À L’UNITÉ"},{"$f":"IFERROR(VLOOKUP(D436,Translation!$A:$C,3,FALSE),D436)","v":"> 15 <= 20"},{"$f":"IFERROR(VLOOKUP(E436,Translation!$A:$C,3,FALSE),E436)","v":0.775336361390495},{"$f":"IFERROR(VLOOKUP(F436,Translation!$A:$C,3,FALSE),F436)","v":"Prêts hypothécaires assurés au cours de la période selon la période d’amortissement (en années) à l'initiation (%)"},{"$f":"IFERROR(VLOOKUP(G436,Translation!$A:$C,3,FALSE),G436)","v":"0.8"},{"$f":"IFERROR(VLOOKUP(H436,Translation!$A:$C,3,FALSE),H436)","v":" > 15 <= 20"}]
[10,"Cumul 2017","PROPRIÉTAIRES-OCCUPANTS, À L’UNITÉ","> 15 <= 20",0.64578076985299726,"Prêts hypothécaires assurés au cours de la période selon la période d’amortissement (en années) à l'initiation (%)","0.6"," > 15 <= 20",{"$f":"IFERROR(VLOOKUP(A437,Translation!$A:$C,3,FALSE),A437)","v":10},{"$f":"IFERROR(VLOOKUP(B437,Translation!$A:$C,3,FALSE),B437)","v":"Cumul 2017"},{"$f":"IFERROR(VLOOKUP(C437,Translation!$A:$C,3,FALSE),C437)","v":"PROPRIÉTAIRES-OCCUPANTS, À L’UNITÉ"},{"$f":"IFERROR(VLOOKUP(D437,Translation!$A:$C,3,FALSE),D437)","v":"> 15 <= 20"},{"$f":"IFERROR(VLOOKUP(E437,Translation!$A:$C,3,FALSE),E437)","v":0.64578076985299726},{"$f":"IFERROR(VLOOKUP(F437,Translation!$A:$C,3,FALSE),F437)","v":"Prêts hypothécaires assurés au cours de la période selon la période d’amortissement (en années) à l'initiation (%)"},{"$f":"IFERROR(VLOOKUP(G437,Translation!$A:$C,3,FALSE),G437)","v":"0.6"},{"$f":"IFERROR(VLOOKUP(H437,Translation!$A:$C,3,FALSE),H437)","v":" > 15 <= 20"}]
[10,"T4 2018","PROPRIÉTAIRES-OCCUPANTS, À L’UNITÉ","> 20 <= 25",98.914156358844764,"Prêts hypothécaires assurés au cours de la période selon la période d’amortissement (en années) à l'initiation (%)","98.9"," > 20 <= 25",{"$f":"IFERROR(VLOOKUP(A438,Translation!$A:$C,3,FALSE),A438)","v":10},{"$f":"IFERROR(VLOOKUP(B438,Translation!$A:$C,3,FALSE),B438)","v":"T4 2018"},{"$f":"IFERROR(VLOOKUP(C438,Translation!$A:$C,3,FALSE),C438)","v":"PROPRIÉTAIRES-OCCUPANTS, À L’UNITÉ"},{"$f":"IFERROR(VLOOKUP(D438,Translation!$A:$C,3,FALSE),D438)","v":"> 20 <= 25"},{"$f":"IFERROR(VLOOKUP(E438,Translation!$A:$C,3,FALSE),E438)","v":98.914156358844764},{"$f":"IFERROR(VLOOKUP(F438,Translation!$A:$C,3,FALSE),F438)","v":"Prêts hypothécaires assurés au cours de la période selon la période d’amortissement (en années) à l'initiation (%)"},{"$f":"IFERROR(VLOOKUP(G438,Translation!$A:$C,3,FALSE),G438)","v":"98.9"},{"$f":"IFERROR(VLOOKUP(H438,Translation!$A:$C,3,FALSE),H438)","v":" > 20 <= 25"}]
[10,"Cumul 2017","PROPRIÉTAIRES-OCCUPANTS, À L’UNITÉ","> 20 <= 25",99.018885190849517,"Prêts hypothécaires assurés au cours de la période selon la période d’amortissement (en années) à l'initiation (%)","99.0"," > 20 <= 25",{"$f":"IFERROR(VLOOKUP(A439,Translation!$A:$C,3,FALSE),A439)","v":10},{"$f":"IFERROR(VLOOKUP(B439,Translation!$A:$C,3,FALSE),B439)","v":"Cumul 2017"},{"$f":"IFERROR(VLOOKUP(C439,Translation!$A:$C,3,FALSE),C439)","v":"PROPRIÉTAIRES-OCCUPANTS, À L’UNITÉ"},{"$f":"IFERROR(VLOOKUP(D439,Translation!$A:$C,3,FALSE),D439)","v":"> 20 <= 25"},{"$f":"IFERROR(VLOOKUP(E439,Translation!$A:$C,3,FALSE),E439)","v":99.018885190849517},{"$f":"IFERROR(VLOOKUP(F439,Translation!$A:$C,3,FALSE),F439)","v":"Prêts hypothécaires assurés au cours de la période selon la période d’amortissement (en années) à l'initiation (%)"},{"$f":"IFERROR(VLOOKUP(G439,Translation!$A:$C,3,FALSE),G439)","v":"99.0"},{"$f":"IFERROR(VLOOKUP(H439,Translation!$A:$C,3,FALSE),H439)","v":" > 20 <= 25"}]
[10,"T4 2018","PROPRIÉTAIRES-OCCUPANTS, À L’UNITÉ","> 25 <= 30",5.9445254096632497E-2,"Prêts hypothécaires assurés au cours de la période selon la période d’amortissement (en années) à l'initiation (%)","0.1"," > 25 <= 30",{"$f":"IFERROR(VLOOKUP(A440,Translation!$A:$C,3,FALSE),A440)","v":10},{"$f":"IFERROR(VLOOKUP(B440,Translation!$A:$C,3,FALSE),B440)","v":"T4 2018"},{"$f":"IFERROR(VLOOKUP(C440,Translation!$A:$C,3,FALSE),C440)","v":"PROPRIÉTAIRES-OCCUPANTS, À L’UNITÉ"},{"$f":"IFERROR(VLOOKUP(D440,Translation!$A:$C,3,FALSE),D440)","v":"> 25 <= 30"},{"$f":"IFERROR(VLOOKUP(E440,Translation!$A:$C,3,FALSE),E440)","v":5.9445254096632497E-2},{"$f":"IFERROR(VLOOKUP(F440,Translation!$A:$C,3,FALSE),F440)","v":"Prêts hypothécaires assurés au cours de la période selon la période d’amortissement (en années) à l'initiation (%)"},{"$f":"IFERROR(VLOOKUP(G440,Translation!$A:$C,3,FALSE),G440)","v":"0.1"},{"$f":"IFERROR(VLOOKUP(H440,Translation!$A:$C,3,FALSE),H440)","v":" > 25 <= 30"}]
[10,"Cumul 2017","PROPRIÉTAIRES-OCCUPANTS, À L’UNITÉ","> 25 <= 30",6.4348514136364596E-2,"Prêts hypothécaires assurés au cours de la période selon la période d’amortissement (en années) à l'initiation (%)","0.1"," > 25 <= 30",{"$f":"IFERROR(VLOOKUP(A441,Translation!$A:$C,3,FALSE),A441)","v":10},{"$f":"IFERROR(VLOOKUP(B441,Translation!$A:$C,3,FALSE),B441)","v":"Cumul 2017"},{"$f":"IFERROR(VLOOKUP(C441,Translation!$A:$C,3,FALSE),C441)","v":"PROPRIÉTAIRES-OCCUPANTS, À L’UNITÉ"},{"$f":"IFERROR(VLOOKUP(D441,Translation!$A:$C,3,FALSE),D441)","v":"> 25 <= 30"},{"$f":"IFERROR(VLOOKUP(E441,Translation!$A:$C,3,FALSE),E441)","v":6.4348514136364596E-2},{"$f":"IFERROR(VLOOKUP(F441,Translation!$A:$C,3,FALSE),F441)","v":"Prêts hypothécaires assurés au cours de la période selon la période d’amortissement (en années) à l'initiation (%)"},{"$f":"IFERROR(VLOOKUP(G441,Translation!$A:$C,3,FALSE),G441)","v":"0.1"},{"$f":"IFERROR(VLOOKUP(H441,Translation!$A:$C,3,FALSE),H441)","v":" > 25 <= 30"}]
[10,"Cumul 2017","PROPRIÉTAIRES-OCCUPANTS, À L’UNITÉ","> 30 <= 35",5.246461256565361E-3,"Prêts hypothécaires assurés au cours de la période selon la période d’amortissement (en années) à l'initiation (%)","0.0"," > 30 <= 35",{"$f":"IFERROR(VLOOKUP(A442,Translation!$A:$C,3,FALSE),A442)","v":10},{"$f":"IFERROR(VLOOKUP(B442,Translation!$A:$C,3,FALSE),B442)","v":"Cumul 2017"},{"$f":"IFERROR(VLOOKUP(C442,Translation!$A:$C,3,FALSE),C442)","v":"PROPRIÉTAIRES-OCCUPANTS, À L’UNITÉ"},{"$f":"IFERROR(VLOOKUP(D442,Translation!$A:$C,3,FALSE),D442)","v":"> 30 <= 35"},{"$f":"IFERROR(VLOOKUP(E442,Translation!$A:$C,3,FALSE),E442)","v":5.246461256565361E-3},{"$f":"IFERROR(VLOOKUP(F442,Translation!$A:$C,3,FALSE),F442)","v":"Prêts hypothécaires assurés au cours de la période selon la période d’amortissement (en années) à l'initiation (%)"},{"$f":"IFERROR(VLOOKUP(G442,Translation!$A:$C,3,FALSE),G442)","v":"0.0"},{"$f":"IFERROR(VLOOKUP(H442,Translation!$A:$C,3,FALSE),H442)","v":" > 30 <= 35"}]
[10,"Cumul 2017","PROPRIÉTAIRES-OCCUPANTS, À L’UNITÉ","> 35",3.6123071198911247E-3,"Prêts hypothécaires assurés au cours de la période selon la période d’amortissement (en années) à l'initiation (%)","0.0"," > 35",{"$f":"IFERROR(VLOOKUP(A443,Translation!$A:$C,3,FALSE),A443)","v":10},{"$f":"IFERROR(VLOOKUP(B443,Translation!$A:$C,3,FALSE),B443)","v":"Cumul 2017"},{"$f":"IFERROR(VLOOKUP(C443,Translation!$A:$C,3,FALSE),C443)","v":"PROPRIÉTAIRES-OCCUPANTS, À L’UNITÉ"},{"$f":"IFERROR(VLOOKUP(D443,Translation!$A:$C,3,FALSE),D443)","v":"> 35"},{"$f":"IFERROR(VLOOKUP(E443,Translation!$A:$C,3,FALSE),E443)","v":3.6123071198911247E-3},{"$f":"IFERROR(VLOOKUP(F443,Translation!$A:$C,3,FALSE),F443)","v":"Prêts hypothécaires assurés au cours de la période selon la période d’amortissement (en années) à l'initiation (%)"},{"$f":"IFERROR(VLOOKUP(G443,Translation!$A:$C,3,FALSE),G443)","v":"0.0"},{"$f":"IFERROR(VLOOKUP(H443,Translation!$A:$C,3,FALSE),H443)","v":" > 35"}]
[10,"T4 2018","PROPRIÉTAIRES-OCCUPANTS, À L’UNITÉ","Période d’amortissement moyenne",24.867591896073353,"Prêts hypothécaires assurés au cours de la période selon la période d’amortissement (en années) à l'initiation (%)","24.9","Période d’amortissement moyenne",{"$f":"IFERROR(VLOOKUP(A444,Translation!$A:$C,3,FALSE),A444)","v":10},{"$f":"IFERROR(VLOOKUP(B444,Translation!$A:$C,3,FALSE),B444)","v":"T4 2018"},{"$f":"IFERROR(VLOOKUP(C444,Translation!$A:$C,3,FALSE),C444)","v":"PROPRIÉTAIRES-OCCUPANTS, À L’UNITÉ"},{"$f":"IFERROR(VLOOKUP(D444,Translation!$A:$C,3,FALSE),D444)","v":"Période d’amortissement moyenne"},{"$f":"IFERROR(VLOOKUP(E444,Translation!$A:$C,3,FALSE),E444)","v":24.867591896073353},{"$f":"IFERROR(VLOOKUP(F444,Translation!$A:$C,3,FALSE),F444)","v":"Prêts hypothécaires assurés au cours de la période selon la période d’amortissement (en années) à l'initiation (%)"},{"$f":"IFERROR(VLOOKUP(G444,Translation!$A:$C,3,FALSE),G444)","v":"24.9"},{"$f":"IFERROR(VLOOKUP(H444,Translation!$A:$C,3,FALSE),H444)","v":"Période d’amortissement moyenne"}]
[10,"Cumul 2017","PROPRIÉTAIRES-OCCUPANTS, À L’UNITÉ","Période d’amortissement moyenne",24.86390387281936,"Prêts hypothécaires assurés au cours de la période selon la période d’amortissement (en années) à l'initiation (%)","24.9","Période d’amortissement moyenne",{"$f":"IFERROR(VLOOKUP(A445,Translation!$A:$C,3,FALSE),A445)","v":10},{"$f":"IFERROR(VLOOKUP(B445,Translation!$A:$C,3,FALSE),B445)","v":"Cumul 2017"},{"$f":"IFERROR(VLOOKUP(C445,Translation!$A:$C,3,FALSE),C445)","v":"PROPRIÉTAIRES-OCCUPANTS, À L’UNITÉ"},{"$f":"IFERROR(VLOOKUP(D445,Translation!$A:$C,3,FALSE),D445)","v":"Période d’amortissement moyenne"},{"$f":"IFERROR(VLOOKUP(E445,Translation!$A:$C,3,FALSE),E445)","v":24.86390387281936},{"$f":"IFERROR(VLOOKUP(F445,Translation!$A:$C,3,FALSE),F445)","v":"Prêts hypothécaires assurés au cours de la période selon la période d’amortissement (en années) à l'initiation (%)"},{"$f":"IFERROR(VLOOKUP(G445,Translation!$A:$C,3,FALSE),G445)","v":"24.9"},{"$f":"IFERROR(VLOOKUP(H445,Translation!$A:$C,3,FALSE),H445)","v":"Période d’amortissement moyenne"}]
[10,"T4 2018","PROPRIÉTAIRES-OCCUPANTS, À L’UNITÉ","Terre-Neuve-et-Labrador",24.874769218277898,"Période d’amortissement moyenne selon la province","24.9","Terre-Neuve-et-Labrador",{"$f":"IFERROR(VLOOKUP(A446,Translation!$A:$C,3,FALSE),A446)","v":10},{"$f":"IFERROR(VLOOKUP(B446,Translation!$A:$C,3,FALSE),B446)","v":"T4 2018"},{"$f":"IFERROR(VLOOKUP(C446,Translation!$A:$C,3,FALSE),C446)","v":"PROPRIÉTAIRES-OCCUPANTS, À L’UNITÉ"},{"$f":"IFERROR(VLOOKUP(D446,Translation!$A:$C,3,FALSE),D446)","v":"Terre-Neuve-et-Labrador"},{"$f":"IFERROR(VLOOKUP(E446,Translation!$A:$C,3,FALSE),E446)","v":24.874769218277898},{"$f":"IFERROR(VLOOKUP(F446,Translation!$A:$C,3,FALSE),F446)","v":"Période d’amortissement moyenne selon la province"},{"$f":"IFERROR(VLOOKUP(G446,Translation!$A:$C,3,FALSE),G446)","v":"24.9"},{"$f":"IFERROR(VLOOKUP(H446,Translation!$A:$C,3,FALSE),H446)","v":"Terre-Neuve-et-Labrador"}]
[10,"T4 2018","PROPRIÉTAIRES-OCCUPANTS, À L’UNITÉ","Île-du-Prince-Édouard",24.722005538842353,"Période d’amortissement moyenne selon la province","24.7","Île-du-Prince-Édouard",{"$f":"IFERROR(VLOOKUP(A447,Translation!$A:$C,3,FALSE),A447)","v":10},{"$f":"IFERROR(VLOOKUP(B447,Translation!$A:$C,3,FALSE),B447)","v":"T4 2018"},{"$f":"IFERROR(VLOOKUP(C447,Translation!$A:$C,3,FALSE),C447)","v":"PROPRIÉTAIRES-OCCUPANTS, À L’UNITÉ"},{"$f":"IFERROR(VLOOKUP(D447,Translation!$A:$C,3,FALSE),D447)","v":"Île-du-Prince-Édouard"},{"$f":"IFERROR(VLOOKUP(E447,Translation!$A:$C,3,FALSE),E447)","v":24.722005538842353},{"$f":"IFERROR(VLOOKUP(F447,Translation!$A:$C,3,FALSE),F447)","v":"Période d’amortissement moyenne selon la province"},{"$f":"IFERROR(VLOOKUP(G447,Translation!$A:$C,3,FALSE),G447)","v":"24.7"},{"$f":"IFERROR(VLOOKUP(H447,Translation!$A:$C,3,FALSE),H447)","v":"Île-du-Prince-Édouard"}]
[10,"T4 2018","PROPRIÉTAIRES-OCCUPANTS, À L’UNITÉ","Nouvelle-Écosse",24.732750892479249,"Période d’amortissement moyenne selon la province","24.7","Nouvelle-Écosse",{"$f":"IFERROR(VLOOKUP(A448,Translation!$A:$C,3,FALSE),A448)","v":10},{"$f":"IFERROR(VLOOKUP(B448,Translation!$A:$C,3,FALSE),B448)","v":"T4 2018"},{"$f":"IFERROR(VLOOKUP(C448,Translation!$A:$C,3,FALSE),C448)","v":"PROPRIÉTAIRES-OCCUPANTS, À L’UNITÉ"},{"$f":"IFERROR(VLOOKUP(D448,Translation!$A:$C,3,FALSE),D448)","v":"Nouvelle-Écosse"},{"$f":"IFERROR(VLOOKUP(E448,Translation!$A:$C,3,FALSE),E448)","v":24.732750892479249},{"$f":"IFERROR(VLOOKUP(F448,Translation!$A:$C,3,FALSE),F448)","v":"Période d’amortissement moyenne selon la province"},{"$f":"IFERROR(VLOOKUP(G448,Translation!$A:$C,3,FALSE),G448)","v":"24.7"},{"$f":"IFERROR(VLOOKUP(H448,Translation!$A:$C,3,FALSE),H448)","v":"Nouvelle-Écosse"}]
[10,"T4 2018","PROPRIÉTAIRES-OCCUPANTS, À L’UNITÉ","Nouveau-Brunswick",24.787255422594033,"Période d’amortissement moyenne selon la province","24.8","Nouveau-Brunswick",{"$f":"IFERROR(VLOOKUP(A449,Translation!$A:$C,3,FALSE),A449)","v":10},{"$f":"IFERROR(VLOOKUP(B449,Translation!$A:$C,3,FALSE),B449)","v":"T4 2018"},{"$f":"IFERROR(VLOOKUP(C449,Translation!$A:$C,3,FALSE),C449)","v":"PROPRIÉTAIRES-OCCUPANTS, À L’UNITÉ"},{"$f":"IFERROR(VLOOKUP(D449,Translation!$A:$C,3,FALSE),D449)","v":"Nouveau-Brunswick"},{"$f":"IFERROR(VLOOKUP(E449,Translation!$A:$C,3,FALSE),E449)","v":24.787255422594033},{"$f":"IFERROR(VLOOKUP(F449,Translation!$A:$C,3,FALSE),F449)","v":"Période d’amortissement moyenne selon la province"},{"$f":"IFERROR(VLOOKUP(G449,Translation!$A:$C,3,FALSE),G449)","v":"24.8"},{"$f":"IFERROR(VLOOKUP(H449,Translation!$A:$C,3,FALSE),H449)","v":"Nouveau-Brunswick"}]
[10,"T4 2018","PROPRIÉTAIRES-OCCUPANTS, À L’UNITÉ","Québec",24.880011865587001,"Période d’amortissement moyenne selon la province","24.9","Québec",{"$f":"IFERROR(VLOOKUP(A450,Translation!$A:$C,3,FALSE),A450)","v":10},{"$f":"IFERROR(VLOOKUP(B450,Translation!$A:$C,3,FALSE),B450)","v":"T4 2018"},{"$f":"IFERROR(VLOOKUP(C450,Translation!$A:$C,3,FALSE),C450)","v":"PROPRIÉTAIRES-OCCUPANTS, À L’UNITÉ"},{"$f":"IFERROR(VLOOKUP(D450,Translation!$A:$C,3,FALSE),D450)","v":"Québec"},{"$f":"IFERROR(VLOOKUP(E450,Translation!$A:$C,3,FALSE),E450)","v":24.880011865587001},{"$f":"IFERROR(VLOOKUP(F450,Translation!$A:$C,3,FALSE),F450)","v":"Période d’amortissement moyenne selon la province"},{"$f":"IFERROR(VLOOKUP(G450,Translation!$A:$C,3,FALSE),G450)","v":"24.9"},{"$f":"IFERROR(VLOOKUP(H450,Translation!$A:$C,3,FALSE),H450)","v":"Québec"}]
[10,"T4 2018","PROPRIÉTAIRES-OCCUPANTS, À L’UNITÉ","Ontario",24.925607432234209,"Période d’amortissement moyenne selon la province","24.9","Ontario",{"$f":"IFERROR(VLOOKUP(A451,Translation!$A:$C,3,FALSE),A451)","v":10},{"$f":"IFERROR(VLOOKUP(B451,Translation!$A:$C,3,FALSE),B451)","v":"T4 2018"},{"$f":"IFERROR(VLOOKUP(C451,Translation!$A:$C,3,FALSE),C451)","v":"PROPRIÉTAIRES-OCCUPANTS, À L’UNITÉ"},{"$f":"IFERROR(VLOOKUP(D451,Translation!$A:$C,3,FALSE),D451)","v":"Ontario"},{"$f":"IFERROR(VLOOKUP(E451,Translation!$A:$C,3,FALSE),E451)","v":24.925607432234209},{"$f":"IFERROR(VLOOKUP(F451,Translation!$A:$C,3,FALSE),F451)","v":"Période d’amortissement moyenne selon la province"},{"$f":"IFERROR(VLOOKUP(G451,Translation!$A:$C,3,FALSE),G451)","v":"24.9"},{"$f":"IFERROR(VLOOKUP(H451,Translation!$A:$C,3,FALSE),H451)","v":"Ontario"}]
[10,"T4 2018","PROPRIÉTAIRES-OCCUPANTS, À L’UNITÉ","Manitoba",24.823121449179926,"Période d’amortissement moyenne selon la province","24.8","Manitoba",{"$f":"IFERROR(VLOOKUP(A452,Translation!$A:$C,3,FALSE),A452)","v":10},{"$f":"IFERROR(VLOOKUP(B452,Translation!$A:$C,3,FALSE),B452)","v":"T4 2018"},{"$f":"IFERROR(VLOOKUP(C452,Translation!$A:$C,3,FALSE),C452)","v":"PROPRIÉTAIRES-OCCUPANTS, À L’UNITÉ"},{"$f":"IFERROR(VLOOKUP(D452,Translation!$A:$C,3,FALSE),D452)","v":"Manitoba"},{"$f":"IFERROR(VLOOKUP(E452,Translation!$A:$C,3,FALSE),E452)","v":24.823121449179926},{"$f":"IFERROR(VLOOKUP(F452,Translation!$A:$C,3,FALSE),F452)","v":"Période d’amortissement moyenne selon la province"},{"$f":"IFERROR(VLOOKUP(G452,Translation!$A:$C,3,FALSE),G452)","v":"24.8"},{"$f":"IFERROR(VLOOKUP(H452,Translation!$A:$C,3,FALSE),H452)","v":"Manitoba"}]
[10,"T4 2018","PROPRIÉTAIRES-OCCUPANTS, À L’UNITÉ","Saskatchewan",24.73845557629781,"Période d’amortissement moyenne selon la province","24.7","Saskatchewan",{"$f":"IFERROR(VLOOKUP(A453,Translation!$A:$C,3,FALSE),A453)","v":10},{"$f":"IFERROR(VLOOKUP(B453,Translation!$A:$C,3,FALSE),B453)","v":"T4 2018"},{"$f":"IFERROR(VLOOKUP(C453,Translation!$A:$C,3,FALSE),C453)","v":"PROPRIÉTAIRES-OCCUPANTS, À L’UNITÉ"},{"$f":"IFERROR(VLOOKUP(D453,Translation!$A:$C,3,FALSE),D453)","v":"Saskatchewan"},{"$f":"IFERROR(VLOOKUP(E453,Translation!$A:$C,3,FALSE),E453)","v":24.73845557629781},{"$f":"IFERROR(VLOOKUP(F453,Translation!$A:$C,3,FALSE),F453)","v":"Période d’amortissement moyenne selon la province"},{"$f":"IFERROR(VLOOKUP(G453,Translation!$A:$C,3,FALSE),G453)","v":"24.7"},{"$f":"IFERROR(VLOOKUP(H453,Translation!$A:$C,3,FALSE),H453)","v":"Saskatchewan"}]
[10,"T4 2018","PROPRIÉTAIRES-OCCUPANTS, À L’UNITÉ","Alberta",24.825175336144419,"Période d’amortissement moyenne selon la province","24.8","Alberta",{"$f":"IFERROR(VLOOKUP(A454,Translation!$A:$C,3,FALSE),A454)","v":10},{"$f":"IFERROR(VLOOKUP(B454,Translation!$A:$C,3,FALSE),B454)","v":"T4 2018"},{"$f":"IFERROR(VLOOKUP(C454,Translation!$A:$C,3,FALSE),C454)","v":"PROPRIÉTAIRES-OCCUPANTS, À L’UNITÉ"},{"$f":"IFERROR(VLOOKUP(D454,Translation!$A:$C,3,FALSE),D454)","v":"Alberta"},{"$f":"IFERROR(VLOOKUP(E454,Translation!$A:$C,3,FALSE),E454)","v":24.825175336144419},{"$f":"IFERROR(VLOOKUP(F454,Translation!$A:$C,3,FALSE),F454)","v":"Période d’amortissement moyenne selon la province"},{"$f":"IFERROR(VLOOKUP(G454,Translation!$A:$C,3,FALSE),G454)","v":"24.8"},{"$f":"IFERROR(VLOOKUP(H454,Translation!$A:$C,3,FALSE),H454)","v":"Alberta"}]
[10,"T4 2018","PROPRIÉTAIRES-OCCUPANTS, À L’UNITÉ","Colombie-Britannique",24.836426502250475,"Période d’amortissement moyenne selon la province","24.8","Colombie-Britannique",{"$f":"IFERROR(VLOOKUP(A455,Translation!$A:$C,3,FALSE),A455)","v":10},{"$f":"IFERROR(VLOOKUP(B455,Translation!$A:$C,3,FALSE),B455)","v":"T4 2018"},{"$f":"IFERROR(VLOOKUP(C455,Translation!$A:$C,3,FALSE),C455)","v":"PROPRIÉTAIRES-OCCUPANTS, À L’UNITÉ"},{"$f":"IFERROR(VLOOKUP(D455,Translation!$A:$C,3,FALSE),D455)","v":"Colombie-Britannique"},{"$f":"IFERROR(VLOOKUP(E455,Translation!$A:$C,3,FALSE),E455)","v":24.836426502250475},{"$f":"IFERROR(VLOOKUP(F455,Translation!$A:$C,3,FALSE),F455)","v":"Période d’amortissement moyenne selon la province"},{"$f":"IFERROR(VLOOKUP(G455,Translation!$A:$C,3,FALSE),G455)","v":"24.8"},{"$f":"IFERROR(VLOOKUP(H455,Translation!$A:$C,3,FALSE),H455)","v":"Colombie-Britannique"}]
[10,"T4 2018","PROPRIÉTAIRES-OCCUPANTS, À L’UNITÉ","Territoires",24.737456807640736,"Période d’amortissement moyenne selon la province","24.7","Territoires",{"$f":"IFERROR(VLOOKUP(A456,Translation!$A:$C,3,FALSE),A456)","v":10},{"$f":"IFERROR(VLOOKUP(B456,Translation!$A:$C,3,FALSE),B456)","v":"T4 2018"},{"$f":"IFERROR(VLOOKUP(C456,Translation!$A:$C,3,FALSE),C456)","v":"PROPRIÉTAIRES-OCCUPANTS, À L’UNITÉ"},{"$f":"IFERROR(VLOOKUP(D456,Translation!$A:$C,3,FALSE),D456)","v":"Territoires"},{"$f":"IFERROR(VLOOKUP(E456,Translation!$A:$C,3,FALSE),E456)","v":24.737456807640736},{"$f":"IFERROR(VLOOKUP(F456,Translation!$A:$C,3,FALSE),F456)","v":"Période d’amortissement moyenne selon la province"},{"$f":"IFERROR(VLOOKUP(G456,Translation!$A:$C,3,FALSE),G456)","v":"24.7"},{"$f":"IFERROR(VLOOKUP(H456,Translation!$A:$C,3,FALSE),H456)","v":"Territoires"}]
[10,"Cumul 2017","PROPRIÉTAIRES-OCCUPANTS, À L’UNITÉ","Terre-Neuve-et-Labrador",24.858516594717255,"Période d’amortissement moyenne selon la province","24.9","Terre-Neuve-et-Labrador",{"$f":"IFERROR(VLOOKUP(A457,Translation!$A:$C,3,FALSE),A457)","v":10},{"$f":"IFERROR(VLOOKUP(B457,Translation!$A:$C,3,FALSE),B457)","v":"Cumul 2017"},{"$f":"IFERROR(VLOOKUP(C457,Translation!$A:$C,3,FALSE),C457)","v":"PROPRIÉTAIRES-OCCUPANTS, À L’UNITÉ"},{"$f":"IFERROR(VLOOKUP(D457,Translation!$A:$C,3,FALSE),D457)","v":"Terre-Neuve-et-Labrador"},{"$f":"IFERROR(VLOOKUP(E457,Translation!$A:$C,3,FALSE),E457)","v":24.858516594717255},{"$f":"IFERROR(VLOOKUP(F457,Translation!$A:$C,3,FALSE),F457)","v":"Période d’amortissement moyenne selon la province"},{"$f":"IFERROR(VLOOKUP(G457,Translation!$A:$C,3,FALSE),G457)","v":"24.9"},{"$f":"IFERROR(VLOOKUP(H457,Translation!$A:$C,3,FALSE),H457)","v":"Terre-Neuve-et-Labrador"}]
[10,"Cumul 2017","PROPRIÉTAIRES-OCCUPANTS, À L’UNITÉ","Île-du-Prince-Édouard",24.825641169415359,"Période d’amortissement moyenne selon la province","24.8","Île-du-Prince-Édouard",{"$f":"IFERROR(VLOOKUP(A458,Translation!$A:$C,3,FALSE),A458)","v":10},{"$f":"IFERROR(VLOOKUP(B458,Translation!$A:$C,3,FALSE),B458)","v":"Cumul 2017"},{"$f":"IFERROR(VLOOKUP(C458,Translation!$A:$C,3,FALSE),C458)","v":"PROPRIÉTAIRES-OCCUPANTS, À L’UNITÉ"},{"$f":"IFERROR(VLOOKUP(D458,Translation!$A:$C,3,FALSE),D458)","v":"Île-du-Prince-Édouard"},{"$f":"IFERROR(VLOOKUP(E458,Translation!$A:$C,3,FALSE),E458)","v":24.825641169415359},{"$f":"IFERROR(VLOOKUP(F458,Translation!$A:$C,3,FALSE),F458)","v":"Période d’amortissement moyenne selon la province"},{"$f":"IFERROR(VLOOKUP(G458,Translation!$A:$C,3,FALSE),G458)","v":"24.8"},{"$f":"IFERROR(VLOOKUP(H458,Translation!$A:$C,3,FALSE),H458)","v":"Île-du-Prince-Édouard"}]
[10,"Cumul 2017","PROPRIÉTAIRES-OCCUPANTS, À L’UNITÉ","Nouvelle-Écosse",24.770183839780803,"Période d’amortissement moyenne selon la province","24.8","Nouvelle-Écosse",{"$f":"IFERROR(VLOOKUP(A459,Translation!$A:$C,3,FALSE),A459)","v":10},{"$f":"IFERROR(VLOOKUP(B459,Translation!$A:$C,3,FALSE),B459)","v":"Cumul 2017"},{"$f":"IFERROR(VLOOKUP(C459,Translation!$A:$C,3,FALSE),C459)","v":"PROPRIÉTAIRES-OCCUPANTS, À L’UNITÉ"},{"$f":"IFERROR(VLOOKUP(D459,Translation!$A:$C,3,FALSE),D459)","v":"Nouvelle-Écosse"},{"$f":"IFERROR(VLOOKUP(E459,Translation!$A:$C,3,FALSE),E459)","v":24.770183839780803},{"$f":"IFERROR(VLOOKUP(F459,Translation!$A:$C,3,FALSE),F459)","v":"Période d’amortissement moyenne selon la province"},{"$f":"IFERROR(VLOOKUP(G459,Translation!$A:$C,3,FALSE),G459)","v":"24.8"},{"$f":"IFERROR(VLOOKUP(H459,Translation!$A:$C,3,FALSE),H459)","v":"Nouvelle-Écosse"}]
[10,"Cumul 2017","PROPRIÉTAIRES-OCCUPANTS, À L’UNITÉ","Nouveau-Brunswick",24.757178675504633,"Période d’amortissement moyenne selon la province","24.8","Nouveau-Brunswick",{"$f":"IFERROR(VLOOKUP(A460,Translation!$A:$C,3,FALSE),A460)","v":10},{"$f":"IFERROR(VLOOKUP(B460,Translation!$A:$C,3,FALSE),B460)","v":"Cumul 2017"},{"$f":"IFERROR(VLOOKUP(C460,Translation!$A:$C,3,FALSE),C460)","v":"PROPRIÉTAIRES-OCCUPANTS, À L’UNITÉ"},{"$f":"IFERROR(VLOOKUP(D460,Translation!$A:$C,3,FALSE),D460)","v":"Nouveau-Brunswick"},{"$f":"IFERROR(VLOOKUP(E460,Translation!$A:$C,3,FALSE),E460)","v":24.757178675504633},{"$f":"IFERROR(VLOOKUP(F460,Translation!$A:$C,3,FALSE),F460)","v":"Période d’amortissement moyenne selon la province"},{"$f":"IFERROR(VLOOKUP(G460,Translation!$A:$C,3,FALSE),G460)","v":"24.8"},{"$f":"IFERROR(VLOOKUP(H460,Translation!$A:$C,3,FALSE),H460)","v":"Nouveau-Brunswick"}]
[10,"Cumul 2017","PROPRIÉTAIRES-OCCUPANTS, À L’UNITÉ","Québec",24.885803310670894,"Période d’amortissement moyenne selon la province","24.9","Québec",{"$f":"IFERROR(VLOOKUP(A461,Translation!$A:$C,3,FALSE),A461)","v":10},{"$f":"IFERROR(VLOOKUP(B461,Translation!$A:$C,3,FALSE),B461)","v":"Cumul 2017"},{"$f":"IFERROR(VLOOKUP(C461,Translation!$A:$C,3,FALSE),C461)","v":"PROPRIÉTAIRES-OCCUPANTS, À L’UNITÉ"},{"$f":"IFERROR(VLOOKUP(D461,Translation!$A:$C,3,FALSE),D461)","v":"Québec"},{"$f":"IFERROR(VLOOKUP(E461,Translation!$A:$C,3,FALSE),E461)","v":24.885803310670894},{"$f":"IFERROR(VLOOKUP(F461,Translation!$A:$C,3,FALSE),F461)","v":"Période d’amortissement moyenne selon la province"},{"$f":"IFERROR(VLOOKUP(G461,Translation!$A:$C,3,FALSE),G461)","v":"24.9"},{"$f":"IFERROR(VLOOKUP(H461,Translation!$A:$C,3,FALSE),H461)","v":"Québec"}]
[10,"Cumul 2017","PROPRIÉTAIRES-OCCUPANTS, À L’UNITÉ","Ontario",24.906851640280561,"Période d’amortissement moyenne selon la province","24.9","Ontario",{"$f":"IFERROR(VLOOKUP(A462,Translation!$A:$C,3,FALSE),A462)","v":10},{"$f":"IFERROR(VLOOKUP(B462,Translation!$A:$C,3,FALSE),B462)","v":"Cumul 2017"},{"$f":"IFERROR(VLOOKUP(C462,Translation!$A:$C,3,FALSE),C462)","v":"PROPRIÉTAIRES-OCCUPANTS, À L’UNITÉ"},{"$f":"IFERROR(VLOOKUP(D462,Translation!$A:$C,3,FALSE),D462)","v":"Ontario"},{"$f":"IFERROR(VLOOKUP(E462,Translation!$A:$C,3,FALSE),E462)","v":24.906851640280561},{"$f":"IFERROR(VLOOKUP(F462,Translation!$A:$C,3,FALSE),F462)","v":"Période d’amortissement moyenne selon la province"},{"$f":"IFERROR(VLOOKUP(G462,Translation!$A:$C,3,FALSE),G462)","v":"24.9"},{"$f":"IFERROR(VLOOKUP(H462,Translation!$A:$C,3,FALSE),H462)","v":"Ontario"}]
[10,"Cumul 2017","PROPRIÉTAIRES-OCCUPANTS, À L’UNITÉ","Manitoba",24.832999500338591,"Période d’amortissement moyenne selon la province","24.8","Manitoba",{"$f":"IFERROR(VLOOKUP(A463,Translation!$A:$C,3,FALSE),A463)","v":10},{"$f":"IFERROR(VLOOKUP(B463,Translation!$A:$C,3,FALSE),B463)","v":"Cumul 2017"},{"$f":"IFERROR(VLOOKUP(C463,Translation!$A:$C,3,FALSE),C463)","v":"PROPRIÉTAIRES-OCCUPANTS, À L’UNITÉ"},{"$f":"IFERROR(VLOOKUP(D463,Translation!$A:$C,3,FALSE),D463)","v":"Manitoba"},{"$f":"IFERROR(VLOOKUP(E463,Translation!$A:$C,3,FALSE),E463)","v":24.832999500338591},{"$f":"IFERROR(VLOOKUP(F463,Translation!$A:$C,3,FALSE),F463)","v":"Période d’amortissement moyenne selon la province"},{"$f":"IFERROR(VLOOKUP(G463,Translation!$A:$C,3,FALSE),G463)","v":"24.8"},{"$f":"IFERROR(VLOOKUP(H463,Translation!$A:$C,3,FALSE),H463)","v":"Manitoba"}]
[10,"Cumul 2017","PROPRIÉTAIRES-OCCUPANTS, À L’UNITÉ","Saskatchewan",24.781173124522834,"Période d’amortissement moyenne selon la province","24.8","Saskatchewan",{"$f":"IFERROR(VLOOKUP(A464,Translation!$A:$C,3,FALSE),A464)","v":10},{"$f":"IFERROR(VLOOKUP(B464,Translation!$A:$C,3,FALSE),B464)","v":"Cumul 2017"},{"$f":"IFERROR(VLOOKUP(C464,Translation!$A:$C,3,FALSE),C464)","v":"PROPRIÉTAIRES-OCCUPANTS, À L’UNITÉ"},{"$f":"IFERROR(VLOOKUP(D464,Translation!$A:$C,3,FALSE),D464)","v":"Saskatchewan"},{"$f":"IFERROR(VLOOKUP(E464,Translation!$A:$C,3,FALSE),E464)","v":24.781173124522834},{"$f":"IFERROR(VLOOKUP(F464,Translation!$A:$C,3,FALSE),F464)","v":"Période d’amortissement moyenne selon la province"},{"$f":"IFERROR(VLOOKUP(G464,Translation!$A:$C,3,FALSE),G464)","v":"24.8"},{"$f":"IFERROR(VLOOKUP(H464,Translation!$A:$C,3,FALSE),H464)","v":"Saskatchewan"}]
[10,"Cumul 2017","PROPRIÉTAIRES-OCCUPANTS, À L’UNITÉ","Alberta",24.828521936633656,"Période d’amortissement moyenne selon la province","24.8","Alberta",{"$f":"IFERROR(VLOOKUP(A465,Translation!$A:$C,3,FALSE),A465)","v":10},{"$f":"IFERROR(VLOOKUP(B465,Translation!$A:$C,3,FALSE),B465)","v":"Cumul 2017"},{"$f":"IFERROR(VLOOKUP(C465,Translation!$A:$C,3,FALSE),C465)","v":"PROPRIÉTAIRES-OCCUPANTS, À L’UNITÉ"},{"$f":"IFERROR(VLOOKUP(D465,Translation!$A:$C,3,FALSE),D465)","v":"Alberta"},{"$f":"IFERROR(VLOOKUP(E465,Translation!$A:$C,3,FALSE),E465)","v":24.828521936633656},{"$f":"IFERROR(VLOOKUP(F465,Translation!$A:$C,3,FALSE),F465)","v":"Période d’amortissement moyenne selon la province"},{"$f":"IFERROR(VLOOKUP(G465,Translation!$A:$C,3,FALSE),G465)","v":"24.8"},{"$f":"IFERROR(VLOOKUP(H465,Translation!$A:$C,3,FALSE),H465)","v":"Alberta"}]
[10,"Cumul 2017","PROPRIÉTAIRES-OCCUPANTS, À L’UNITÉ","Colombie-Britannique",24.838467587291007,"Période d’amortissement moyenne selon la province","24.8","Colombie-Britannique",{"$f":"IFERROR(VLOOKUP(A466,Translation!$A:$C,3,FALSE),A466)","v":10},{"$f":"IFERROR(VLOOKUP(B466,Translation!$A:$C,3,FALSE),B466)","v":"Cumul 2017"},{"$f":"IFERROR(VLOOKUP(C466,Translation!$A:$C,3,FALSE),C466)","v":"PROPRIÉTAIRES-OCCUPANTS, À L’UNITÉ"},{"$f":"IFERROR(VLOOKUP(D466,Translation!$A:$C,3,FALSE),D466)","v":"Colombie-Britannique"},{"$f":"IFERROR(VLOOKUP(E466,Translation!$A:$C,3,FALSE),E466)","v":24.838467587291007},{"$f":"IFERROR(VLOOKUP(F466,Translation!$A:$C,3,FALSE),F466)","v":"Période d’amortissement moyenne selon la province"},{"$f":"IFERROR(VLOOKUP(G466,Translation!$A:$C,3,FALSE),G466)","v":"24.8"},{"$f":"IFERROR(VLOOKUP(H466,Translation!$A:$C,3,FALSE),H466)","v":"Colombie-Britannique"}]
[10,"Cumul 2017","PROPRIÉTAIRES-OCCUPANTS, À L’UNITÉ","Territoires",24.569558467243805,"Période d’amortissement moyenne selon la province","24.6","Territoires",{"$f":"IFERROR(VLOOKUP(A467,Translation!$A:$C,3,FALSE),A467)","v":10},{"$f":"IFERROR(VLOOKUP(B467,Translation!$A:$C,3,FALSE),B467)","v":"Cumul 2017"},{"$f":"IFERROR(VLOOKUP(C467,Translation!$A:$C,3,FALSE),C467)","v":"PROPRIÉTAIRES-OCCUPANTS, À L’UNITÉ"},{"$f":"IFERROR(VLOOKUP(D467,Translation!$A:$C,3,FALSE),D467)","v":"Territoires"},{"$f":"IFERROR(VLOOKUP(E467,Translation!$A:$C,3,FALSE),E467)","v":24.569558467243805},{"$f":"IFERROR(VLOOKUP(F467,Translation!$A:$C,3,FALSE),F467)","v":"Période d’amortissement moyenne selon la province"},{"$f":"IFERROR(VLOOKUP(G467,Translation!$A:$C,3,FALSE),G467)","v":"24.6"},{"$f":"IFERROR(VLOOKUP(H467,Translation!$A:$C,3,FALSE),H467)","v":"Territoires"}]
[10,"T4 2018","ASSURANCE DE PORTEFEUILLE","<= 5",0.42135249522022128,"Prêts hypothécaires assurés au cours de la période selon la période d’amortissement (en années) à l'initiation (%)","0.4"," <= 5",{"$f":"IFERROR(VLOOKUP(A468,Translation!$A:$C,3,FALSE),A468)","v":10},{"$f":"IFERROR(VLOOKUP(B468,Translation!$A:$C,3,FALSE),B468)","v":"T4 2018"},{"$f":"IFERROR(VLOOKUP(C468,Translation!$A:$C,3,FALSE),C468)","v":"ASSURANCE DE PORTEFEUILLE"},{"$f":"IFERROR(VLOOKUP(D468,Translation!$A:$C,3,FALSE),D468)","v":"<= 5"},{"$f":"IFERROR(VLOOKUP(E468,Translation!$A:$C,3,FALSE),E468)","v":0.42135249522022128},{"$f":"IFERROR(VLOOKUP(F468,Translation!$A:$C,3,FALSE),F468)","v":"Prêts hypothécaires assurés au cours de la période selon la période d’amortissement (en années) à l'initiation (%)"},{"$f":"IFERROR(VLOOKUP(G468,Translation!$A:$C,3,FALSE),G468)","v":"0.4"},{"$f":"IFERROR(VLOOKUP(H468,Translation!$A:$C,3,FALSE),H468)","v":" <= 5"}]
[10,"Cumul 2017","ASSURANCE DE PORTEFEUILLE","<= 5",0.17290295890808027,"Prêts hypothécaires assurés au cours de la période selon la période d’amortissement (en années) à l'initiation (%)","0.2"," <= 5",{"$f":"IFERROR(VLOOKUP(A469,Translation!$A:$C,3,FALSE),A469)","v":10},{"$f":"IFERROR(VLOOKUP(B469,Translation!$A:$C,3,FALSE),B469)","v":"Cumul 2017"},{"$f":"IFERROR(VLOOKUP(C469,Translation!$A:$C,3,FALSE),C469)","v":"ASSURANCE DE PORTEFEUILLE"},{"$f":"IFERROR(VLOOKUP(D469,Translation!$A:$C,3,FALSE),D469)","v":"<= 5"},{"$f":"IFERROR(VLOOKUP(E469,Translation!$A:$C,3,FALSE),E469)","v":0.17290295890808027},{"$f":"IFERROR(VLOOKUP(F469,Translation!$A:$C,3,FALSE),F469)","v":"Prêts hypothécaires assurés au cours de la période selon la période d’amortissement (en années) à l'initiation (%)"},{"$f":"IFERROR(VLOOKUP(G469,Translation!$A:$C,3,FALSE),G469)","v":"0.2"},{"$f":"IFERROR(VLOOKUP(H469,Translation!$A:$C,3,FALSE),H469)","v":" <= 5"}]
[10,"T4 2018","ASSURANCE DE PORTEFEUILLE","> 5 <= 10",3.3211012128150488,"Prêts hypothécaires assurés au cours de la période selon la période d’amortissement (en années) à l'initiation (%)","3.3"," > 5 <= 10",{"$f":"IFERROR(VLOOKUP(A470,Translation!$A:$C,3,FALSE),A470)","v":10},{"$f":"IFERROR(VLOOKUP(B470,Translation!$A:$C,3,FALSE),B470)","v":"T4 2018"},{"$f":"IFERROR(VLOOKUP(C470,Translation!$A:$C,3,FALSE),C470)","v":"ASSURANCE DE PORTEFEUILLE"},{"$f":"IFERROR(VLOOKUP(D470,Translation!$A:$C,3,FALSE),D470)","v":"> 5 <= 10"},{"$f":"IFERROR(VLOOKUP(E470,Translation!$A:$C,3,FALSE),E470)","v":3.3211012128150488},{"$f":"IFERROR(VLOOKUP(F470,Translation!$A:$C,3,FALSE),F470)","v":"Prêts hypothécaires assurés au cours de la période selon la période d’amortissement (en années) à l'initiation (%)"},{"$f":"IFERROR(VLOOKUP(G470,Translation!$A:$C,3,FALSE),G470)","v":"3.3"},{"$f":"IFERROR(VLOOKUP(H470,Translation!$A:$C,3,FALSE),H470)","v":" > 5 <= 10"}]
[10,"Cumul 2017","ASSURANCE DE PORTEFEUILLE","> 5 <= 10",1.6282788051272101,"Prêts hypothécaires assurés au cours de la période selon la période d’amortissement (en années) à l'initiation (%)","1.6"," > 5 <= 10",{"$f":"IFERROR(VLOOKUP(A471,Translation!$A:$C,3,FALSE),A471)","v":10},{"$f":"IFERROR(VLOOKUP(B471,Translation!$A:$C,3,FALSE),B471)","v":"Cumul 2017"},{"$f":"IFERROR(VLOOKUP(C471,Translation!$A:$C,3,FALSE),C471)","v":"ASSURANCE DE PORTEFEUILLE"},{"$f":"IFERROR(VLOOKUP(D471,Translation!$A:$C,3,FALSE),D471)","v":"> 5 <= 10"},{"$f":"IFERROR(VLOOKUP(E471,Translation!$A:$C,3,FALSE),E471)","v":1.6282788051272101},{"$f":"IFERROR(VLOOKUP(F471,Translation!$A:$C,3,FALSE),F471)","v":"Prêts hypothécaires assurés au cours de la période selon la période d’amortissement (en années) à l'initiation (%)"},{"$f":"IFERROR(VLOOKUP(G471,Translation!$A:$C,3,FALSE),G471)","v":"1.6"},{"$f":"IFERROR(VLOOKUP(H471,Translation!$A:$C,3,FALSE),H471)","v":" > 5 <= 10"}]
[10,"T4 2018","ASSURANCE DE PORTEFEUILLE","> 10 <= 15",7.2864465649392001,"Prêts hypothécaires assurés au cours de la période selon la période d’amortissement (en années) à l'initiation (%)","7.3"," > 10 <= 15",{"$f":"IFERROR(VLOOKUP(A472,Translation!$A:$C,3,FALSE),A472)","v":10},{"$f":"IFERROR(VLOOKUP(B472,Translation!$A:$C,3,FALSE),B472)","v":"T4 2018"},{"$f":"IFERROR(VLOOKUP(C472,Translation!$A:$C,3,FALSE),C472)","v":"ASSURANCE DE PORTEFEUILLE"},{"$f":"IFERROR(VLOOKUP(D472,Translation!$A:$C,3,FALSE),D472)","v":"> 10 <= 15"},{"$f":"IFERROR(VLOOKUP(E472,Translation!$A:$C,3,FALSE),E472)","v":7.2864465649392001},{"$f":"IFERROR(VLOOKUP(F472,Translation!$A:$C,3,FALSE),F472)","v":"Prêts hypothécaires assurés au cours de la période selon la période d’amortissement (en années) à l'initiation (%)"},{"$f":"IFERROR(VLOOKUP(G472,Translation!$A:$C,3,FALSE),G472)","v":"7.3"},{"$f":"IFERROR(VLOOKUP(H472,Translation!$A:$C,3,FALSE),H472)","v":" > 10 <= 15"}]
[10,"Cumul 2017","ASSURANCE DE PORTEFEUILLE","> 10 <= 15",3.5021462051580121,"Prêts hypothécaires assurés au cours de la période selon la période d’amortissement (en années) à l'initiation (%)","3.5"," > 10 <= 15",{"$f":"IFERROR(VLOOKUP(A473,Translation!$A:$C,3,FALSE),A473)","v":10},{"$f":"IFERROR(VLOOKUP(B473,Translation!$A:$C,3,FALSE),B473)","v":"Cumul 2017"},{"$f":"IFERROR(VLOOKUP(C473,Translation!$A:$C,3,FALSE),C473)","v":"ASSURANCE DE PORTEFEUILLE"},{"$f":"IFERROR(VLOOKUP(D473,Translation!$A:$C,3,FALSE),D473)","v":"> 10 <= 15"},{"$f":"IFERROR(VLOOKUP(E473,Translation!$A:$C,3,FALSE),E473)","v":3.5021462051580121},{"$f":"IFERROR(VLOOKUP(F473,Translation!$A:$C,3,FALSE),F473)","v":"Prêts hypothécaires assurés au cours de la période selon la période d’amortissement (en années) à l'initiation (%)"},{"$f":"IFERROR(VLOOKUP(G473,Translation!$A:$C,3,FALSE),G473)","v":"3.5"},{"$f":"IFERROR(VLOOKUP(H473,Translation!$A:$C,3,FALSE),H473)","v":" > 10 <= 15"}]
[10,"T4 2018","ASSURANCE DE PORTEFEUILLE","> 15 <= 20",14.818232171781023,"Prêts hypothécaires assurés au cours de la période selon la période d’amortissement (en années) à l'initiation (%)","14.8"," > 15 <= 20",{"$f":"IFERROR(VLOOKUP(A474,Translation!$A:$C,3,FALSE),A474)","v":10},{"$f":"IFERROR(VLOOKUP(B474,Translation!$A:$C,3,FALSE),B474)","v":"T4 2018"},{"$f":"IFERROR(VLOOKUP(C474,Translation!$A:$C,3,FALSE),C474)","v":"ASSURANCE DE PORTEFEUILLE"},{"$f":"IFERROR(VLOOKUP(D474,Translation!$A:$C,3,FALSE),D474)","v":"> 15 <= 20"},{"$f":"IFERROR(VLOOKUP(E474,Translation!$A:$C,3,FALSE),E474)","v":14.818232171781023},{"$f":"IFERROR(VLOOKUP(F474,Translation!$A:$C,3,FALSE),F474)","v":"Prêts hypothécaires assurés au cours de la période selon la période d’amortissement (en années) à l'initiation (%)"},{"$f":"IFERROR(VLOOKUP(G474,Translation!$A:$C,3,FALSE),G474)","v":"14.8"},{"$f":"IFERROR(VLOOKUP(H474,Translation!$A:$C,3,FALSE),H474)","v":" > 15 <= 20"}]
[10,"Cumul 2017","ASSURANCE DE PORTEFEUILLE","> 15 <= 20",14.903473958506211,"Prêts hypothécaires assurés au cours de la période selon la période d’amortissement (en années) à l'initiation (%)","14.9"," > 15 <= 20",{"$f":"IFERROR(VLOOKUP(A475,Translation!$A:$C,3,FALSE),A475)","v":10},{"$f":"IFERROR(VLOOKUP(B475,Translation!$A:$C,3,FALSE),B475)","v":"Cumul 2017"},{"$f":"IFERROR(VLOOKUP(C475,Translation!$A:$C,3,FALSE),C475)","v":"ASSURANCE DE PORTEFEUILLE"},{"$f":"IFERROR(VLOOKUP(D475,Translation!$A:$C,3,FALSE),D475)","v":"> 15 <= 20"},{"$f":"IFERROR(VLOOKUP(E475,Translation!$A:$C,3,FALSE),E475)","v":14.903473958506211},{"$f":"IFERROR(VLOOKUP(F475,Translation!$A:$C,3,FALSE),F475)","v":"Prêts hypothécaires assurés au cours de la période selon la période d’amortissement (en années) à l'initiation (%)"},{"$f":"IFERROR(VLOOKUP(G475,Translation!$A:$C,3,FALSE),G475)","v":"14.9"},{"$f":"IFERROR(VLOOKUP(H475,Translation!$A:$C,3,FALSE),H475)","v":" > 15 <= 20"}]
[10,"T4 2018","ASSURANCE DE PORTEFEUILLE","> 20 <= 25",71.752319972542239,"Prêts hypothécaires assurés au cours de la période selon la période d’amortissement (en années) à l'initiation (%)","71.8"," > 20 <= 25",{"$f":"IFERROR(VLOOKUP(A476,Translation!$A:$C,3,FALSE),A476)","v":10},{"$f":"IFERROR(VLOOKUP(B476,Translation!$A:$C,3,FALSE),B476)","v":"T4 2018"},{"$f":"IFERROR(VLOOKUP(C476,Translation!$A:$C,3,FALSE),C476)","v":"ASSURANCE DE PORTEFEUILLE"},{"$f":"IFERROR(VLOOKUP(D476,Translation!$A:$C,3,FALSE),D476)","v":"> 20 <= 25"},{"$f":"IFERROR(VLOOKUP(E476,Translation!$A:$C,3,FALSE),E476)","v":71.752319972542239},{"$f":"IFERROR(VLOOKUP(F476,Translation!$A:$C,3,FALSE),F476)","v":"Prêts hypothécaires assurés au cours de la période selon la période d’amortissement (en années) à l'initiation (%)"},{"$f":"IFERROR(VLOOKUP(G476,Translation!$A:$C,3,FALSE),G476)","v":"71.8"},{"$f":"IFERROR(VLOOKUP(H476,Translation!$A:$C,3,FALSE),H476)","v":" > 20 <= 25"}]
[10,"Cumul 2017","ASSURANCE DE PORTEFEUILLE","> 20 <= 25",47.546316057651751,"Prêts hypothécaires assurés au cours de la période selon la période d’amortissement (en années) à l'initiation (%)","47.5"," > 20 <= 25",{"$f":"IFERROR(VLOOKUP(A477,Translation!$A:$C,3,FALSE),A477)","v":10},{"$f":"IFERROR(VLOOKUP(B477,Translation!$A:$C,3,FALSE),B477)","v":"Cumul 2017"},{"$f":"IFERROR(VLOOKUP(C477,Translation!$A:$C,3,FALSE),C477)","v":"ASSURANCE DE PORTEFEUILLE"},{"$f":"IFERROR(VLOOKUP(D477,Translation!$A:$C,3,FALSE),D477)","v":"> 20 <= 25"},{"$f":"IFERROR(VLOOKUP(E477,Translation!$A:$C,3,FALSE),E477)","v":47.546316057651751},{"$f":"IFERROR(VLOOKUP(F477,Translation!$A:$C,3,FALSE),F477)","v":"Prêts hypothécaires assurés au cours de la période selon la période d’amortissement (en années) à l'initiation (%)"},{"$f":"IFERROR(VLOOKUP(G477,Translation!$A:$C,3,FALSE),G477)","v":"47.5"},{"$f":"IFERROR(VLOOKUP(H477,Translation!$A:$C,3,FALSE),H477)","v":" > 20 <= 25"}]
[10,"T4 2018","ASSURANCE DE PORTEFEUILLE","> 25 <= 30",2.400547582702266,"Prêts hypothécaires assurés au cours de la période selon la période d’amortissement (en années) à l'initiation (%)","2.4"," > 25 <= 30",{"$f":"IFERROR(VLOOKUP(A478,Translation!$A:$C,3,FALSE),A478)","v":10},{"$f":"IFERROR(VLOOKUP(B478,Translation!$A:$C,3,FALSE),B478)","v":"T4 2018"},{"$f":"IFERROR(VLOOKUP(C478,Translation!$A:$C,3,FALSE),C478)","v":"ASSURANCE DE PORTEFEUILLE"},{"$f":"IFERROR(VLOOKUP(D478,Translation!$A:$C,3,FALSE),D478)","v":"> 25 <= 30"},{"$f":"IFERROR(VLOOKUP(E478,Translation!$A:$C,3,FALSE),E478)","v":2.400547582702266},{"$f":"IFERROR(VLOOKUP(F478,Translation!$A:$C,3,FALSE),F478)","v":"Prêts hypothécaires assurés au cours de la période selon la période d’amortissement (en années) à l'initiation (%)"},{"$f":"IFERROR(VLOOKUP(G478,Translation!$A:$C,3,FALSE),G478)","v":"2.4"},{"$f":"IFERROR(VLOOKUP(H478,Translation!$A:$C,3,FALSE),H478)","v":" > 25 <= 30"}]
[10,"Cumul 2017","ASSURANCE DE PORTEFEUILLE","> 25 <= 30",30.6732490990683,"Prêts hypothécaires assurés au cours de la période selon la période d’amortissement (en années) à l'initiation (%)","30.7"," > 25 <= 30",{"$f":"IFERROR(VLOOKUP(A479,Translation!$A:$C,3,FALSE),A479)","v":10},{"$f":"IFERROR(VLOOKUP(B479,Translation!$A:$C,3,FALSE),B479)","v":"Cumul 2017"},{"$f":"IFERROR(VLOOKUP(C479,Translation!$A:$C,3,FALSE),C479)","v":"ASSURANCE DE PORTEFEUILLE"},{"$f":"IFERROR(VLOOKUP(D479,Translation!$A:$C,3,FALSE),D479)","v":"> 25 <= 30"},{"$f":"IFERROR(VLOOKUP(E479,Translation!$A:$C,3,FALSE),E479)","v":30.6732490990683},{"$f":"IFERROR(VLOOKUP(F479,Translation!$A:$C,3,FALSE),F479)","v":"Prêts hypothécaires assurés au cours de la période selon la période d’amortissement (en années) à l'initiation (%)"},{"$f":"IFERROR(VLOOKUP(G479,Translation!$A:$C,3,FALSE),G479)","v":"30.7"},{"$f":"IFERROR(VLOOKUP(H479,Translation!$A:$C,3,FALSE),H479)","v":" > 25 <= 30"}]
[10,"Cumul 2017","ASSURANCE DE PORTEFEUILLE","> 30 <= 35",1.4826063160434999,"Prêts hypothécaires assurés au cours de la période selon la période d’amortissement (en années) à l'initiation (%)","1.5"," > 30 <= 35",{"$f":"IFERROR(VLOOKUP(A480,Translation!$A:$C,3,FALSE),A480)","v":10},{"$f":"IFERROR(VLOOKUP(B480,Translation!$A:$C,3,FALSE),B480)","v":"Cumul 2017"},{"$f":"IFERROR(VLOOKUP(C480,Translation!$A:$C,3,FALSE),C480)","v":"ASSURANCE DE PORTEFEUILLE"},{"$f":"IFERROR(VLOOKUP(D480,Translation!$A:$C,3,FALSE),D480)","v":"> 30 <= 35"},{"$f":"IFERROR(VLOOKUP(E480,Translation!$A:$C,3,FALSE),E480)","v":1.4826063160434999},{"$f":"IFERROR(VLOOKUP(F480,Translation!$A:$C,3,FALSE),F480)","v":"Prêts hypothécaires assurés au cours de la période selon la période d’amortissement (en années) à l'initiation (%)"},{"$f":"IFERROR(VLOOKUP(G480,Translation!$A:$C,3,FALSE),G480)","v":"1.5"},{"$f":"IFERROR(VLOOKUP(H480,Translation!$A:$C,3,FALSE),H480)","v":" > 30 <= 35"}]
[10,"Cumul 2017","ASSURANCE DE PORTEFEUILLE","> 35",9.1026599536939173E-2,"Prêts hypothécaires assurés au cours de la période selon la période d’amortissement (en années) à l'initiation (%)","0.1"," > 35",{"$f":"IFERROR(VLOOKUP(A481,Translation!$A:$C,3,FALSE),A481)","v":10},{"$f":"IFERROR(VLOOKUP(B481,Translation!$A:$C,3,FALSE),B481)","v":"Cumul 2017"},{"$f":"IFERROR(VLOOKUP(C481,Translation!$A:$C,3,FALSE),C481)","v":"ASSURANCE DE PORTEFEUILLE"},{"$f":"IFERROR(VLOOKUP(D481,Translation!$A:$C,3,FALSE),D481)","v":"> 35"},{"$f":"IFERROR(VLOOKUP(E481,Translation!$A:$C,3,FALSE),E481)","v":9.1026599536939173E-2},{"$f":"IFERROR(VLOOKUP(F481,Translation!$A:$C,3,FALSE),F481)","v":"Prêts hypothécaires assurés au cours de la période selon la période d’amortissement (en années) à l'initiation (%)"},{"$f":"IFERROR(VLOOKUP(G481,Translation!$A:$C,3,FALSE),G481)","v":"0.1"},{"$f":"IFERROR(VLOOKUP(H481,Translation!$A:$C,3,FALSE),H481)","v":" > 35"}]
[10,"T4 2018","ASSURANCE DE PORTEFEUILLE","Période d’amortissement moyenne",21.80269842521875,"Prêts hypothécaires assurés au cours de la période selon la période d’amortissement (en années) à l'initiation (%)","21.8","Période d’amortissement moyenne",{"$f":"IFERROR(VLOOKUP(A482,Translation!$A:$C,3,FALSE),A482)","v":10},{"$f":"IFERROR(VLOOKUP(B482,Translation!$A:$C,3,FALSE),B482)","v":"T4 2018"},{"$f":"IFERROR(VLOOKUP(C482,Translation!$A:$C,3,FALSE),C482)","v":"ASSURANCE DE PORTEFEUILLE"},{"$f":"IFERROR(VLOOKUP(D482,Translation!$A:$C,3,FALSE),D482)","v":"Période d’amortissement moyenne"},{"$f":"IFERROR(VLOOKUP(E482,Translation!$A:$C,3,FALSE),E482)","v":21.80269842521875},{"$f":"IFERROR(VLOOKUP(F482,Translation!$A:$C,3,FALSE),F482)","v":"Prêts hypothécaires assurés au cours de la période selon la période d’amortissement (en années) à l'initiation (%)"},{"$f":"IFERROR(VLOOKUP(G482,Translation!$A:$C,3,FALSE),G482)","v":"21.8"},{"$f":"IFERROR(VLOOKUP(H482,Translation!$A:$C,3,FALSE),H482)","v":"Période d’amortissement moyenne"}]
[10,"Cumul 2017","ASSURANCE DE PORTEFEUILLE","Période d’amortissement moyenne",23.949183796292484,"Prêts hypothécaires assurés au cours de la période selon la période d’amortissement (en années) à l'initiation (%)","23.9","Période d’amortissement moyenne",{"$f":"IFERROR(VLOOKUP(A483,Translation!$A:$C,3,FALSE),A483)","v":10},{"$f":"IFERROR(VLOOKUP(B483,Translation!$A:$C,3,FALSE),B483)","v":"Cumul 2017"},{"$f":"IFERROR(VLOOKUP(C483,Translation!$A:$C,3,FALSE),C483)","v":"ASSURANCE DE PORTEFEUILLE"},{"$f":"IFERROR(VLOOKUP(D483,Translation!$A:$C,3,FALSE),D483)","v":"Période d’amortissement moyenne"},{"$f":"IFERROR(VLOOKUP(E483,Translation!$A:$C,3,FALSE),E483)","v":23.949183796292484},{"$f":"IFERROR(VLOOKUP(F483,Translation!$A:$C,3,FALSE),F483)","v":"Prêts hypothécaires assurés au cours de la période selon la période d’amortissement (en années) à l'initiation (%)"},{"$f":"IFERROR(VLOOKUP(G483,Translation!$A:$C,3,FALSE),G483)","v":"23.9"},{"$f":"IFERROR(VLOOKUP(H483,Translation!$A:$C,3,FALSE),H483)","v":"Période d’amortissement moyenne"}]
[10,"T4 2018","ASSURANCE DE PORTEFEUILLE","Terre-Neuve-et-Labrador",21.718305356664015,"Période d’amortissement moyenne selon la province","21.7","Terre-Neuve-et-Labrador",{"$f":"IFERROR(VLOOKUP(A484,Translation!$A:$C,3,FALSE),A484)","v":10},{"$f":"IFERROR(VLOOKUP(B484,Translation!$A:$C,3,FALSE),B484)","v":"T4 2018"},{"$f":"IFERROR(VLOOKUP(C484,Translation!$A:$C,3,FALSE),C484)","v":"ASSURANCE DE PORTEFEUILLE"},{"$f":"IFERROR(VLOOKUP(D484,Translation!$A:$C,3,FALSE),D484)","v":"Terre-Neuve-et-Labrador"},{"$f":"IFERROR(VLOOKUP(E484,Translation!$A:$C,3,FALSE),E484)","v":21.718305356664015},{"$f":"IFERROR(VLOOKUP(F484,Translation!$A:$C,3,FALSE),F484)","v":"Période d’amortissement moyenne selon la province"},{"$f":"IFERROR(VLOOKUP(G484,Translation!$A:$C,3,FALSE),G484)","v":"21.7"},{"$f":"IFERROR(VLOOKUP(H484,Translation!$A:$C,3,FALSE),H484)","v":"Terre-Neuve-et-Labrador"}]
[10,"T4 2018","ASSURANCE DE PORTEFEUILLE","Île-du-Prince-Édouard",15.162123790017676,"Période d’amortissement moyenne selon la province","15.2","Île-du-Prince-Édouard",{"$f":"IFERROR(VLOOKUP(A485,Translation!$A:$C,3,FALSE),A485)","v":10},{"$f":"IFERROR(VLOOKUP(B485,Translation!$A:$C,3,FALSE),B485)","v":"T4 2018"},{"$f":"IFERROR(VLOOKUP(C485,Translation!$A:$C,3,FALSE),C485)","v":"ASSURANCE DE PORTEFEUILLE"},{"$f":"IFERROR(VLOOKUP(D485,Translation!$A:$C,3,FALSE),D485)","v":"Île-du-Prince-Édouard"},{"$f":"IFERROR(VLOOKUP(E485,Translation!$A:$C,3,FALSE),E485)","v":15.162123790017676},{"$f":"IFERROR(VLOOKUP(F485,Translation!$A:$C,3,FALSE),F485)","v":"Période d’amortissement moyenne selon la province"},{"$f":"IFERROR(VLOOKUP(G485,Translation!$A:$C,3,FALSE),G485)","v":"15.2"},{"$f":"IFERROR(VLOOKUP(H485,Translation!$A:$C,3,FALSE),H485)","v":"Île-du-Prince-Édouard"}]
[10,"T4 2018","ASSURANCE DE PORTEFEUILLE","Nouvelle-Écosse",20.036602160453381,"Période d’amortissement moyenne selon la province","20.0","Nouvelle-Écosse",{"$f":"IFERROR(VLOOKUP(A486,Translation!$A:$C,3,FALSE),A486)","v":10},{"$f":"IFERROR(VLOOKUP(B486,Translation!$A:$C,3,FALSE),B486)","v":"T4 2018"},{"$f":"IFERROR(VLOOKUP(C486,Translation!$A:$C,3,FALSE),C486)","v":"ASSURANCE DE PORTEFEUILLE"},{"$f":"IFERROR(VLOOKUP(D486,Translation!$A:$C,3,FALSE),D486)","v":"Nouvelle-Écosse"},{"$f":"IFERROR(VLOOKUP(E486,Translation!$A:$C,3,FALSE),E486)","v":20.036602160453381},{"$f":"IFERROR(VLOOKUP(F486,Translation!$A:$C,3,FALSE),F486)","v":"Période d’amortissement moyenne selon la province"},{"$f":"IFERROR(VLOOKUP(G486,Translation!$A:$C,3,FALSE),G486)","v":"20.0"},{"$f":"IFERROR(VLOOKUP(H486,Translation!$A:$C,3,FALSE),H486)","v":"Nouvelle-Écosse"}]
[10,"T4 2018","ASSURANCE DE PORTEFEUILLE","Nouveau-Brunswick",19.92362982475975,"Période d’amortissement moyenne selon la province","19.9","Nouveau-Brunswick",{"$f":"IFERROR(VLOOKUP(A487,Translation!$A:$C,3,FALSE),A487)","v":10},{"$f":"IFERROR(VLOOKUP(B487,Translation!$A:$C,3,FALSE),B487)","v":"T4 2018"},{"$f":"IFERROR(VLOOKUP(C487,Translation!$A:$C,3,FALSE),C487)","v":"ASSURANCE DE PORTEFEUILLE"},{"$f":"IFERROR(VLOOKUP(D487,Translation!$A:$C,3,FALSE),D487)","v":"Nouveau-Brunswick"},{"$f":"IFERROR(VLOOKUP(E487,Translation!$A:$C,3,FALSE),E487)","v":19.92362982475975},{"$f":"IFERROR(VLOOKUP(F487,Translation!$A:$C,3,FALSE),F487)","v":"Période d’amortissement moyenne selon la province"},{"$f":"IFERROR(VLOOKUP(G487,Translation!$A:$C,3,FALSE),G487)","v":"19.9"},{"$f":"IFERROR(VLOOKUP(H487,Translation!$A:$C,3,FALSE),H487)","v":"Nouveau-Brunswick"}]
[10,"T4 2018","ASSURANCE DE PORTEFEUILLE","Québec",22.194082376513055,"Période d’amortissement moyenne selon la province","22.2","Québec",{"$f":"IFERROR(VLOOKUP(A488,Translation!$A:$C,3,FALSE),A488)","v":10},{"$f":"IFERROR(VLOOKUP(B488,Translation!$A:$C,3,FALSE),B488)","v":"T4 2018"},{"$f":"IFERROR(VLOOKUP(C488,Translation!$A:$C,3,FALSE),C488)","v":"ASSURANCE DE PORTEFEUILLE"},{"$f":"IFERROR(VLOOKUP(D488,Translation!$A:$C,3,FALSE),D488)","v":"Québec"},{"$f":"IFERROR(VLOOKUP(E488,Translation!$A:$C,3,FALSE),E488)","v":22.194082376513055},{"$f":"IFERROR(VLOOKUP(F488,Translation!$A:$C,3,FALSE),F488)","v":"Période d’amortissement moyenne selon la province"},{"$f":"IFERROR(VLOOKUP(G488,Translation!$A:$C,3,FALSE),G488)","v":"22.2"},{"$f":"IFERROR(VLOOKUP(H488,Translation!$A:$C,3,FALSE),H488)","v":"Québec"}]
[10,"T4 2018","ASSURANCE DE PORTEFEUILLE","Ontario",21.922004243436405,"Période d’amortissement moyenne selon la province","21.9","Ontario",{"$f":"IFERROR(VLOOKUP(A489,Translation!$A:$C,3,FALSE),A489)","v":10},{"$f":"IFERROR(VLOOKUP(B489,Translation!$A:$C,3,FALSE),B489)","v":"T4 2018"},{"$f":"IFERROR(VLOOKUP(C489,Translation!$A:$C,3,FALSE),C489)","v":"ASSURANCE DE PORTEFEUILLE"},{"$f":"IFERROR(VLOOKUP(D489,Translation!$A:$C,3,FALSE),D489)","v":"Ontario"},{"$f":"IFERROR(VLOOKUP(E489,Translation!$A:$C,3,FALSE),E489)","v":21.922004243436405},{"$f":"IFERROR(VLOOKUP(F489,Translation!$A:$C,3,FALSE),F489)","v":"Période d’amortissement moyenne selon la province"},{"$f":"IFERROR(VLOOKUP(G489,Translation!$A:$C,3,FALSE),G489)","v":"21.9"},{"$f":"IFERROR(VLOOKUP(H489,Translation!$A:$C,3,FALSE),H489)","v":"Ontario"}]
[10,"T4 2018","ASSURANCE DE PORTEFEUILLE","Manitoba",22.351086604771002,"Période d’amortissement moyenne selon la province","22.4","Manitoba",{"$f":"IFERROR(VLOOKUP(A490,Translation!$A:$C,3,FALSE),A490)","v":10},{"$f":"IFERROR(VLOOKUP(B490,Translation!$A:$C,3,FALSE),B490)","v":"T4 2018"},{"$f":"IFERROR(VLOOKUP(C490,Translation!$A:$C,3,FALSE),C490)","v":"ASSURANCE DE PORTEFEUILLE"},{"$f":"IFERROR(VLOOKUP(D490,Translation!$A:$C,3,FALSE),D490)","v":"Manitoba"},{"$f":"IFERROR(VLOOKUP(E490,Translation!$A:$C,3,FALSE),E490)","v":22.351086604771002},{"$f":"IFERROR(VLOOKUP(F490,Translation!$A:$C,3,FALSE),F490)","v":"Période d’amortissement moyenne selon la province"},{"$f":"IFERROR(VLOOKUP(G490,Translation!$A:$C,3,FALSE),G490)","v":"22.4"},{"$f":"IFERROR(VLOOKUP(H490,Translation!$A:$C,3,FALSE),H490)","v":"Manitoba"}]
[10,"T4 2018","ASSURANCE DE PORTEFEUILLE","Saskatchewan",19.950577961501565,"Période d’amortissement moyenne selon la province","20.0","Saskatchewan",{"$f":"IFERROR(VLOOKUP(A491,Translation!$A:$C,3,FALSE),A491)","v":10},{"$f":"IFERROR(VLOOKUP(B491,Translation!$A:$C,3,FALSE),B491)","v":"T4 2018"},{"$f":"IFERROR(VLOOKUP(C491,Translation!$A:$C,3,FALSE),C491)","v":"ASSURANCE DE PORTEFEUILLE"},{"$f":"IFERROR(VLOOKUP(D491,Translation!$A:$C,3,FALSE),D491)","v":"Saskatchewan"},{"$f":"IFERROR(VLOOKUP(E491,Translation!$A:$C,3,FALSE),E491)","v":19.950577961501565},{"$f":"IFERROR(VLOOKUP(F491,Translation!$A:$C,3,FALSE),F491)","v":"Période d’amortissement moyenne selon la province"},{"$f":"IFERROR(VLOOKUP(G491,Translation!$A:$C,3,FALSE),G491)","v":"20.0"},{"$f":"IFERROR(VLOOKUP(H491,Translation!$A:$C,3,FALSE),H491)","v":"Saskatchewan"}]
[10,"T4 2018","ASSURANCE DE PORTEFEUILLE","Alberta",22.217431214187439,"Période d’amortissement moyenne selon la province","22.2","Alberta",{"$f":"IFERROR(VLOOKUP(A492,Translation!$A:$C,3,FALSE),A492)","v":10},{"$f":"IFERROR(VLOOKUP(B492,Translation!$A:$C,3,FALSE),B492)","v":"T4 2018"},{"$f":"IFERROR(VLOOKUP(C492,Translation!$A:$C,3,FALSE),C492)","v":"ASSURANCE DE PORTEFEUILLE"},{"$f":"IFERROR(VLOOKUP(D492,Translation!$A:$C,3,FALSE),D492)","v":"Alberta"},{"$f":"IFERROR(VLOOKUP(E492,Translation!$A:$C,3,FALSE),E492)","v":22.217431214187439},{"$f":"IFERROR(VLOOKUP(F492,Translation!$A:$C,3,FALSE),F492)","v":"Période d’amortissement moyenne selon la province"},{"$f":"IFERROR(VLOOKUP(G492,Translation!$A:$C,3,FALSE),G492)","v":"22.2"},{"$f":"IFERROR(VLOOKUP(H492,Translation!$A:$C,3,FALSE),H492)","v":"Alberta"}]
[10,"T4 2018","ASSURANCE DE PORTEFEUILLE","Colombie-Britannique",21.623290382851795,"Période d’amortissement moyenne selon la province","21.6","Colombie-Britannique",{"$f":"IFERROR(VLOOKUP(A493,Translation!$A:$C,3,FALSE),A493)","v":10},{"$f":"IFERROR(VLOOKUP(B493,Translation!$A:$C,3,FALSE),B493)","v":"T4 2018"},{"$f":"IFERROR(VLOOKUP(C493,Translation!$A:$C,3,FALSE),C493)","v":"ASSURANCE DE PORTEFEUILLE"},{"$f":"IFERROR(VLOOKUP(D493,Translation!$A:$C,3,FALSE),D493)","v":"Colombie-Britannique"},{"$f":"IFERROR(VLOOKUP(E493,Translation!$A:$C,3,FALSE),E493)","v":21.623290382851795},{"$f":"IFERROR(VLOOKUP(F493,Translation!$A:$C,3,FALSE),F493)","v":"Période d’amortissement moyenne selon la province"},{"$f":"IFERROR(VLOOKUP(G493,Translation!$A:$C,3,FALSE),G493)","v":"21.6"},{"$f":"IFERROR(VLOOKUP(H493,Translation!$A:$C,3,FALSE),H493)","v":"Colombie-Britannique"}]
[10,"Cumul 2017","ASSURANCE DE PORTEFEUILLE","Terre-Neuve-et-Labrador",23.417182422275395,"Période d’amortissement moyenne selon la province","23.4","Terre-Neuve-et-Labrador",{"$f":"IFERROR(VLOOKUP(A494,Translation!$A:$C,3,FALSE),A494)","v":10},{"$f":"IFERROR(VLOOKUP(B494,Translation!$A:$C,3,FALSE),B494)","v":"Cumul 2017"},{"$f":"IFERROR(VLOOKUP(C494,Translation!$A:$C,3,FALSE),C494)","v":"ASSURANCE DE PORTEFEUILLE"},{"$f":"IFERROR(VLOOKUP(D494,Translation!$A:$C,3,FALSE),D494)","v":"Terre-Neuve-et-Labrador"},{"$f":"IFERROR(VLOOKUP(E494,Translation!$A:$C,3,FALSE),E494)","v":23.417182422275395},{"$f":"IFERROR(VLOOKUP(F494,Translation!$A:$C,3,FALSE),F494)","v":"Période d’amortissement moyenne selon la province"},{"$f":"IFERROR(VLOOKUP(G494,Translation!$A:$C,3,FALSE),G494)","v":"23.4"},{"$f":"IFERROR(VLOOKUP(H494,Translation!$A:$C,3,FALSE),H494)","v":"Terre-Neuve-et-Labrador"}]
[10,"Cumul 2017","ASSURANCE DE PORTEFEUILLE","Île-du-Prince-Édouard",23.910916064621954,"Période d’amortissement moyenne selon la province","23.9","Île-du-Prince-Édouard",{"$f":"IFERROR(VLOOKUP(A495,Translation!$A:$C,3,FALSE),A495)","v":10},{"$f":"IFERROR(VLOOKUP(B495,Translation!$A:$C,3,FALSE),B495)","v":"Cumul 2017"},{"$f":"IFERROR(VLOOKUP(C495,Translation!$A:$C,3,FALSE),C495)","v":"ASSURANCE DE PORTEFEUILLE"},{"$f":"IFERROR(VLOOKUP(D495,Translation!$A:$C,3,FALSE),D495)","v":"Île-du-Prince-Édouard"},{"$f":"IFERROR(VLOOKUP(E495,Translation!$A:$C,3,FALSE),E495)","v":23.910916064621954},{"$f":"IFERROR(VLOOKUP(F495,Translation!$A:$C,3,FALSE),F495)","v":"Période d’amortissement moyenne selon la province"},{"$f":"IFERROR(VLOOKUP(G495,Translation!$A:$C,3,FALSE),G495)","v":"23.9"},{"$f":"IFERROR(VLOOKUP(H495,Translation!$A:$C,3,FALSE),H495)","v":"Île-du-Prince-Édouard"}]
[10,"Cumul 2017","ASSURANCE DE PORTEFEUILLE","Nouvelle-Écosse",22.651833158414696,"Période d’amortissement moyenne selon la province","22.7","Nouvelle-Écosse",{"$f":"IFERROR(VLOOKUP(A496,Translation!$A:$C,3,FALSE),A496)","v":10},{"$f":"IFERROR(VLOOKUP(B496,Translation!$A:$C,3,FALSE),B496)","v":"Cumul 2017"},{"$f":"IFERROR(VLOOKUP(C496,Translation!$A:$C,3,FALSE),C496)","v":"ASSURANCE DE PORTEFEUILLE"},{"$f":"IFERROR(VLOOKUP(D496,Translation!$A:$C,3,FALSE),D496)","v":"Nouvelle-Écosse"},{"$f":"IFERROR(VLOOKUP(E496,Translation!$A:$C,3,FALSE),E496)","v":22.651833158414696},{"$f":"IFERROR(VLOOKUP(F496,Translation!$A:$C,3,FALSE),F496)","v":"Période d’amortissement moyenne selon la province"},{"$f":"IFERROR(VLOOKUP(G496,Translation!$A:$C,3,FALSE),G496)","v":"22.7"},{"$f":"IFERROR(VLOOKUP(H496,Translation!$A:$C,3,FALSE),H496)","v":"Nouvelle-Écosse"}]
[10,"Cumul 2017","ASSURANCE DE PORTEFEUILLE","Nouveau-Brunswick",21.926799075192474,"Période d’amortissement moyenne selon la province","21.9","Nouveau-Brunswick",{"$f":"IFERROR(VLOOKUP(A497,Translation!$A:$C,3,FALSE),A497)","v":10},{"$f":"IFERROR(VLOOKUP(B497,Translation!$A:$C,3,FALSE),B497)","v":"Cumul 2017"},{"$f":"IFERROR(VLOOKUP(C497,Translation!$A:$C,3,FALSE),C497)","v":"ASSURANCE DE PORTEFEUILLE"},{"$f":"IFERROR(VLOOKUP(D497,Translation!$A:$C,3,FALSE),D497)","v":"Nouveau-Brunswick"},{"$f":"IFERROR(VLOOKUP(E497,Translation!$A:$C,3,FALSE),E497)","v":21.926799075192474},{"$f":"IFERROR(VLOOKUP(F497,Translation!$A:$C,3,FALSE),F497)","v":"Période d’amortissement moyenne selon la province"},{"$f":"IFERROR(VLOOKUP(G497,Translation!$A:$C,3,FALSE),G497)","v":"21.9"},{"$f":"IFERROR(VLOOKUP(H497,Translation!$A:$C,3,FALSE),H497)","v":"Nouveau-Brunswick"}]
[10,"Cumul 2017","ASSURANCE DE PORTEFEUILLE","Québec",21.626716448798145,"Période d’amortissement moyenne selon la province","21.6","Québec",{"$f":"IFERROR(VLOOKUP(A498,Translation!$A:$C,3,FALSE),A498)","v":10},{"$f":"IFERROR(VLOOKUP(B498,Translation!$A:$C,3,FALSE),B498)","v":"Cumul 2017"},{"$f":"IFERROR(VLOOKUP(C498,Translation!$A:$C,3,FALSE),C498)","v":"ASSURANCE DE PORTEFEUILLE"},{"$f":"IFERROR(VLOOKUP(D498,Translation!$A:$C,3,FALSE),D498)","v":"Québec"},{"$f":"IFERROR(VLOOKUP(E498,Translation!$A:$C,3,FALSE),E498)","v":21.626716448798145},{"$f":"IFERROR(VLOOKUP(F498,Translation!$A:$C,3,FALSE),F498)","v":"Période d’amortissement moyenne selon la province"},{"$f":"IFERROR(VLOOKUP(G498,Translation!$A:$C,3,FALSE),G498)","v":"21.6"},{"$f":"IFERROR(VLOOKUP(H498,Translation!$A:$C,3,FALSE),H498)","v":"Québec"}]
[10,"Cumul 2017","ASSURANCE DE PORTEFEUILLE","Ontario",24.522723880268082,"Période d’amortissement moyenne selon la province","24.5","Ontario",{"$f":"IFERROR(VLOOKUP(A499,Translation!$A:$C,3,FALSE),A499)","v":10},{"$f":"IFERROR(VLOOKUP(B499,Translation!$A:$C,3,FALSE),B499)","v":"Cumul 2017"},{"$f":"IFERROR(VLOOKUP(C499,Translation!$A:$C,3,FALSE),C499)","v":"ASSURANCE DE PORTEFEUILLE"},{"$f":"IFERROR(VLOOKUP(D499,Translation!$A:$C,3,FALSE),D499)","v":"Ontario"},{"$f":"IFERROR(VLOOKUP(E499,Translation!$A:$C,3,FALSE),E499)","v":24.522723880268082},{"$f":"IFERROR(VLOOKUP(F499,Translation!$A:$C,3,FALSE),F499)","v":"Période d’amortissement moyenne selon la province"},{"$f":"IFERROR(VLOOKUP(G499,Translation!$A:$C,3,FALSE),G499)","v":"24.5"},{"$f":"IFERROR(VLOOKUP(H499,Translation!$A:$C,3,FALSE),H499)","v":"Ontario"}]
[10,"Cumul 2017","ASSURANCE DE PORTEFEUILLE","Manitoba",24.750763176626503,"Période d’amortissement moyenne selon la province","24.8","Manitoba",{"$f":"IFERROR(VLOOKUP(A500,Translation!$A:$C,3,FALSE),A500)","v":10},{"$f":"IFERROR(VLOOKUP(B500,Translation!$A:$C,3,FALSE),B500)","v":"Cumul 2017"},{"$f":"IFERROR(VLOOKUP(C500,Translation!$A:$C,3,FALSE),C500)","v":"ASSURANCE DE PORTEFEUILLE"},{"$f":"IFERROR(VLOOKUP(D500,Translation!$A:$C,3,FALSE),D500)","v":"Manitoba"},{"$f":"IFERROR(VLOOKUP(E500,Translation!$A:$C,3,FALSE),E500)","v":24.750763176626503},{"$f":"IFERROR(VLOOKUP(F500,Translation!$A:$C,3,FALSE),F500)","v":"Période d’amortissement moyenne selon la province"},{"$f":"IFERROR(VLOOKUP(G500,Translation!$A:$C,3,FALSE),G500)","v":"24.8"},{"$f":"IFERROR(VLOOKUP(H500,Translation!$A:$C,3,FALSE),H500)","v":"Manitoba"}]
[10,"Cumul 2017","ASSURANCE DE PORTEFEUILLE","Saskatchewan",22.935523113491382,"Période d’amortissement moyenne selon la province","22.9","Saskatchewan",{"$f":"IFERROR(VLOOKUP(A501,Translation!$A:$C,3,FALSE),A501)","v":10},{"$f":"IFERROR(VLOOKUP(B501,Translation!$A:$C,3,FALSE),B501)","v":"Cumul 2017"},{"$f":"IFERROR(VLOOKUP(C501,Translation!$A:$C,3,FALSE),C501)","v":"ASSURANCE DE PORTEFEUILLE"},{"$f":"IFERROR(VLOOKUP(D501,Translation!$A:$C,3,FALSE),D501)","v":"Saskatchewan"},{"$f":"IFERROR(VLOOKUP(E501,Translation!$A:$C,3,FALSE),E501)","v":22.935523113491382},{"$f":"IFERROR(VLOOKUP(F501,Translation!$A:$C,3,FALSE),F501)","v":"Période d’amortissement moyenne selon la province"},{"$f":"IFERROR(VLOOKUP(G501,Translation!$A:$C,3,FALSE),G501)","v":"22.9"},{"$f":"IFERROR(VLOOKUP(H501,Translation!$A:$C,3,FALSE),H501)","v":"Saskatchewan"}]
[10,"Cumul 2017","ASSURANCE DE PORTEFEUILLE","Alberta",24.194554254393434,"Période d’amortissement moyenne selon la province","24.2","Alberta",{"$f":"IFERROR(VLOOKUP(A502,Translation!$A:$C,3,FALSE),A502)","v":10},{"$f":"IFERROR(VLOOKUP(B502,Translation!$A:$C,3,FALSE),B502)","v":"Cumul 2017"},{"$f":"IFERROR(VLOOKUP(C502,Translation!$A:$C,3,FALSE),C502)","v":"ASSURANCE DE PORTEFEUILLE"},{"$f":"IFERROR(VLOOKUP(D502,Translation!$A:$C,3,FALSE),D502)","v":"Alberta"},{"$f":"IFERROR(VLOOKUP(E502,Translation!$A:$C,3,FALSE),E502)","v":24.194554254393434},{"$f":"IFERROR(VLOOKUP(F502,Translation!$A:$C,3,FALSE),F502)","v":"Période d’amortissement moyenne selon la province"},{"$f":"IFERROR(VLOOKUP(G502,Translation!$A:$C,3,FALSE),G502)","v":"24.2"},{"$f":"IFERROR(VLOOKUP(H502,Translation!$A:$C,3,FALSE),H502)","v":"Alberta"}]
[10,"Cumul 2017","ASSURANCE DE PORTEFEUILLE","Colombie-Britannique",25.111901520209074,"Période d’amortissement moyenne selon la province","25.1","Colombie-Britannique",{"$f":"IFERROR(VLOOKUP(A503,Translation!$A:$C,3,FALSE),A503)","v":10},{"$f":"IFERROR(VLOOKUP(B503,Translation!$A:$C,3,FALSE),B503)","v":"Cumul 2017"},{"$f":"IFERROR(VLOOKUP(C503,Translation!$A:$C,3,FALSE),C503)","v":"ASSURANCE DE PORTEFEUILLE"},{"$f":"IFERROR(VLOOKUP(D503,Translation!$A:$C,3,FALSE),D503)","v":"Colombie-Britannique"},{"$f":"IFERROR(VLOOKUP(E503,Translation!$A:$C,3,FALSE),E503)","v":25.111901520209074},{"$f":"IFERROR(VLOOKUP(F503,Translation!$A:$C,3,FALSE),F503)","v":"Période d’amortissement moyenne selon la province"},{"$f":"IFERROR(VLOOKUP(G503,Translation!$A:$C,3,FALSE),G503)","v":"25.1"},{"$f":"IFERROR(VLOOKUP(H503,Translation!$A:$C,3,FALSE),H503)","v":"Colombie-Britannique"}]
[10,"Cumul 2017","ASSURANCE DE PORTEFEUILLE","Territoires",21.02847838213232,"Période d’amortissement moyenne selon la province","21.0","Territoires",{"$f":"IFERROR(VLOOKUP(A504,Translation!$A:$C,3,FALSE),A504)","v":10},{"$f":"IFERROR(VLOOKUP(B504,Translation!$A:$C,3,FALSE),B504)","v":"Cumul 2017"},{"$f":"IFERROR(VLOOKUP(C504,Translation!$A:$C,3,FALSE),C504)","v":"ASSURANCE DE PORTEFEUILLE"},{"$f":"IFERROR(VLOOKUP(D504,Translation!$A:$C,3,FALSE),D504)","v":"Territoires"},{"$f":"IFERROR(VLOOKUP(E504,Translation!$A:$C,3,FALSE),E504)","v":21.02847838213232},{"$f":"IFERROR(VLOOKUP(F504,Translation!$A:$C,3,FALSE),F504)","v":"Période d’amortissement moyenne selon la province"},{"$f":"IFERROR(VLOOKUP(G504,Translation!$A:$C,3,FALSE),G504)","v":"21.0"},{"$f":"IFERROR(VLOOKUP(H504,Translation!$A:$C,3,FALSE),H504)","v":"Territoires"}]
[28,"Cumul 2017","IMMEUBLES COLLECTIFS RÉSIDENTIELS","<= 5",4.5740229177867074E-3,"Prêts hypothécaires assurés au cours de la période selon la période d’amortissement (en années) à l'initiation (%)","0.0"," <= 5",{"$f":"IFERROR(VLOOKUP(A505,Translation!$A:$C,3,FALSE),A505)","v":28},{"$f":"IFERROR(VLOOKUP(B505,Translation!$A:$C,3,FALSE),B505)","v":"Cumul 2017"},{"$f":"IFERROR(VLOOKUP(C505,Translation!$A:$C,3,FALSE),C505)","v":"IMMEUBLES COLLECTIFS RÉSIDENTIELS"},{"$f":"IFERROR(VLOOKUP(D505,Translation!$A:$C,3,FALSE),D505)","v":"<= 5"},{"$f":"IFERROR(VLOOKUP(E505,Translation!$A:$C,3,FALSE),E505)","v":4.5740229177867074E-3},{"$f":"IFERROR(VLOOKUP(F505,Translation!$A:$C,3,FALSE),F505)","v":"Prêts hypothécaires assurés au cours de la période selon la période d’amortissement (en années) à l'initiation (%)"},{"$f":"IFERROR(VLOOKUP(G505,Translation!$A:$C,3,FALSE),G505)","v":"0.0"},{"$f":"IFERROR(VLOOKUP(H505,Translation!$A:$C,3,FALSE),H505)","v":" <= 5"}]
[28,"T4 2018","IMMEUBLES COLLECTIFS RÉSIDENTIELS","> 5 <= 10",7.3193623274223985E-3,"Prêts hypothécaires assurés au cours de la période selon la période d’amortissement (en années) à l'initiation (%)","0.0"," > 5 <= 10",{"$f":"IFERROR(VLOOKUP(A506,Translation!$A:$C,3,FALSE),A506)","v":28},{"$f":"IFERROR(VLOOKUP(B506,Translation!$A:$C,3,FALSE),B506)","v":"T4 2018"},{"$f":"IFERROR(VLOOKUP(C506,Translation!$A:$C,3,FALSE),C506)","v":"IMMEUBLES COLLECTIFS RÉSIDENTIELS"},{"$f":"IFERROR(VLOOKUP(D506,Translation!$A:$C,3,FALSE),D506)","v":"> 5 <= 10"},{"$f":"IFERROR(VLOOKUP(E506,Translation!$A:$C,3,FALSE),E506)","v":7.3193623274223985E-3},{"$f":"IFERROR(VLOOKUP(F506,Translation!$A:$C,3,FALSE),F506)","v":"Prêts hypothécaires assurés au cours de la période selon la période d’amortissement (en années) à l'initiation (%)"},{"$f":"IFERROR(VLOOKUP(G506,Translation!$A:$C,3,FALSE),G506)","v":"0.0"},{"$f":"IFERROR(VLOOKUP(H506,Translation!$A:$C,3,FALSE),H506)","v":" > 5 <= 10"}]
[28,"T4 2018","IMMEUBLES COLLECTIFS RÉSIDENTIELS","> 10 <= 15",0.9854585704044998,"Prêts hypothécaires assurés au cours de la période selon la période d’amortissement (en années) à l'initiation (%)","1.0"," > 10 <= 15",{"$f":"IFERROR(VLOOKUP(A507,Translation!$A:$C,3,FALSE),A507)","v":28},{"$f":"IFERROR(VLOOKUP(B507,Translation!$A:$C,3,FALSE),B507)","v":"T4 2018"},{"$f":"IFERROR(VLOOKUP(C507,Translation!$A:$C,3,FALSE),C507)","v":"IMMEUBLES COLLECTIFS RÉSIDENTIELS"},{"$f":"IFERROR(VLOOKUP(D507,Translation!$A:$C,3,FALSE),D507)","v":"> 10 <= 15"},{"$f":"IFERROR(VLOOKUP(E507,Translation!$A:$C,3,FALSE),E507)","v":0.9854585704044998},{"$f":"IFERROR(VLOOKUP(F507,Translation!$A:$C,3,FALSE),F507)","v":"Prêts hypothécaires assurés au cours de la période selon la période d’amortissement (en années) à l'initiation (%)"},{"$f":"IFERROR(VLOOKUP(G507,Translation!$A:$C,3,FALSE),G507)","v":"1.0"},{"$f":"IFERROR(VLOOKUP(H507,Translation!$A:$C,3,FALSE),H507)","v":" > 10 <= 15"}]
[28,"Cumul 2017","IMMEUBLES COLLECTIFS RÉSIDENTIELS","> 10 <= 15",1.7513216195309067,"Prêts hypothécaires assurés au cours de la période selon la période d’amortissement (en années) à l'initiation (%)","1.8"," > 10 <= 15",{"$f":"IFERROR(VLOOKUP(A508,Translation!$A:$C,3,FALSE),A508)","v":28},{"$f":"IFERROR(VLOOKUP(B508,Translation!$A:$C,3,FALSE),B508)","v":"Cumul 2017"},{"$f":"IFERROR(VLOOKUP(C508,Translation!$A:$C,3,FALSE),C508)","v":"IMMEUBLES COLLECTIFS RÉSIDENTIELS"},{"$f":"IFERROR(VLOOKUP(D508,Translation!$A:$C,3,FALSE),D508)","v":"> 10 <= 15"},{"$f":"IFERROR(VLOOKUP(E508,Translation!$A:$C,3,FALSE),E508)","v":1.7513216195309067},{"$f":"IFERROR(VLOOKUP(F508,Translation!$A:$C,3,FALSE),F508)","v":"Prêts hypothécaires assurés au cours de la période selon la période d’amortissement (en années) à l'initiation (%)"},{"$f":"IFERROR(VLOOKUP(G508,Translation!$A:$C,3,FALSE),G508)","v":"1.8"},{"$f":"IFERROR(VLOOKUP(H508,Translation!$A:$C,3,FALSE),H508)","v":" > 10 <= 15"}]
[28,"T4 2018","IMMEUBLES COLLECTIFS RÉSIDENTIELS","> 15 <= 20",0.88696447722240002,"Prêts hypothécaires assurés au cours de la période selon la période d’amortissement (en années) à l'initiation (%)","0.9"," > 15 <= 20",{"$f":"IFERROR(VLOOKUP(A509,Translation!$A:$C,3,FALSE),A509)","v":28},{"$f":"IFERROR(VLOOKUP(B509,Translation!$A:$C,3,FALSE),B509)","v":"T4 2018"},{"$f":"IFERROR(VLOOKUP(C509,Translation!$A:$C,3,FALSE),C509)","v":"IMMEUBLES COLLECTIFS RÉSIDENTIELS"},{"$f":"IFERROR(VLOOKUP(D509,Translation!$A:$C,3,FALSE),D509)","v":"> 15 <= 20"},{"$f":"IFERROR(VLOOKUP(E509,Translation!$A:$C,3,FALSE),E509)","v":0.88696447722240002},{"$f":"IFERROR(VLOOKUP(F509,Translation!$A:$C,3,FALSE),F509)","v":"Prêts hypothécaires assurés au cours de la période selon la période d’amortissement (en années) à l'initiation (%)"},{"$f":"IFERROR(VLOOKUP(G509,Translation!$A:$C,3,FALSE),G509)","v":"0.9"},{"$f":"IFERROR(VLOOKUP(H509,Translation!$A:$C,3,FALSE),H509)","v":" > 15 <= 20"}]
[28,"Cumul 2017","IMMEUBLES COLLECTIFS RÉSIDENTIELS","> 15 <= 20",1.2892298472461463,"Prêts hypothécaires assurés au cours de la période selon la période d’amortissement (en années) à l'initiation (%)","1.3"," > 15 <= 20",{"$f":"IFERROR(VLOOKUP(A510,Translation!$A:$C,3,FALSE),A510)","v":28},{"$f":"IFERROR(VLOOKUP(B510,Translation!$A:$C,3,FALSE),B510)","v":"Cumul 2017"},{"$f":"IFERROR(VLOOKUP(C510,Translation!$A:$C,3,FALSE),C510)","v":"IMMEUBLES COLLECTIFS RÉSIDENTIELS"},{"$f":"IFERROR(VLOOKUP(D510,Translation!$A:$C,3,FALSE),D510)","v":"> 15 <= 20"},{"$f":"IFERROR(VLOOKUP(E510,Translation!$A:$C,3,FALSE),E510)","v":1.2892298472461463},{"$f":"IFERROR(VLOOKUP(F510,Translation!$A:$C,3,FALSE),F510)","v":"Prêts hypothécaires assurés au cours de la période selon la période d’amortissement (en années) à l'initiation (%)"},{"$f":"IFERROR(VLOOKUP(G510,Translation!$A:$C,3,FALSE),G510)","v":"1.3"},{"$f":"IFERROR(VLOOKUP(H510,Translation!$A:$C,3,FALSE),H510)","v":" > 15 <= 20"}]
[28,"T4 2018","IMMEUBLES COLLECTIFS RÉSIDENTIELS","> 20 <= 25",12.833021988121653,"Prêts hypothécaires assurés au cours de la période selon la période d’amortissement (en années) à l'initiation (%)","12.8"," > 20 <= 25",{"$f":"IFERROR(VLOOKUP(A511,Translation!$A:$C,3,FALSE),A511)","v":28},{"$f":"IFERROR(VLOOKUP(B511,Translation!$A:$C,3,FALSE),B511)","v":"T4 2018"},{"$f":"IFERROR(VLOOKUP(C511,Translation!$A:$C,3,FALSE),C511)","v":"IMMEUBLES COLLECTIFS RÉSIDENTIELS"},{"$f":"IFERROR(VLOOKUP(D511,Translation!$A:$C,3,FALSE),D511)","v":"> 20 <= 25"},{"$f":"IFERROR(VLOOKUP(E511,Translation!$A:$C,3,FALSE),E511)","v":12.833021988121653},{"$f":"IFERROR(VLOOKUP(F511,Translation!$A:$C,3,FALSE),F511)","v":"Prêts hypothécaires assurés au cours de la période selon la période d’amortissement (en années) à l'initiation (%)"},{"$f":"IFERROR(VLOOKUP(G511,Translation!$A:$C,3,FALSE),G511)","v":"12.8"},{"$f":"IFERROR(VLOOKUP(H511,Translation!$A:$C,3,FALSE),H511)","v":" > 20 <= 25"}]
[28,"Cumul 2017","IMMEUBLES COLLECTIFS RÉSIDENTIELS","> 20 <= 25",30.588432140693325,"Prêts hypothécaires assurés au cours de la période selon la période d’amortissement (en années) à l'initiation (%)","30.6"," > 20 <= 25",{"$f":"IFERROR(VLOOKUP(A512,Translation!$A:$C,3,FALSE),A512)","v":28},{"$f":"IFERROR(VLOOKUP(B512,Translation!$A:$C,3,FALSE),B512)","v":"Cumul 2017"},{"$f":"IFERROR(VLOOKUP(C512,Translation!$A:$C,3,FALSE),C512)","v":"IMMEUBLES COLLECTIFS RÉSIDENTIELS"},{"$f":"IFERROR(VLOOKUP(D512,Translation!$A:$C,3,FALSE),D512)","v":"> 20 <= 25"},{"$f":"IFERROR(VLOOKUP(E512,Translation!$A:$C,3,FALSE),E512)","v":30.588432140693325},{"$f":"IFERROR(VLOOKUP(F512,Translation!$A:$C,3,FALSE),F512)","v":"Prêts hypothécaires assurés au cours de la période selon la période d’amortissement (en années) à l'initiation (%)"},{"$f":"IFERROR(VLOOKUP(G512,Translation!$A:$C,3,FALSE),G512)","v":"30.6"},{"$f":"IFERROR(VLOOKUP(H512,Translation!$A:$C,3,FALSE),H512)","v":" > 20 <= 25"}]
[28,"T4 2018","IMMEUBLES COLLECTIFS RÉSIDENTIELS","> 25 <= 30",24.951620425028956,"Prêts hypothécaires assurés au cours de la période selon la période d’amortissement (en années) à l'initiation (%)","25.0"," > 25 <= 30",{"$f":"IFERROR(VLOOKUP(A513,Translation!$A:$C,3,FALSE),A513)","v":28},{"$f":"IFERROR(VLOOKUP(B513,Translation!$A:$C,3,FALSE),B513)","v":"T4 2018"},{"$f":"IFERROR(VLOOKUP(C513,Translation!$A:$C,3,FALSE),C513)","v":"IMMEUBLES COLLECTIFS RÉSIDENTIELS"},{"$f":"IFERROR(VLOOKUP(D513,Translation!$A:$C,3,FALSE),D513)","v":"> 25 <= 30"},{"$f":"IFERROR(VLOOKUP(E513,Translation!$A:$C,3,FALSE),E513)","v":24.951620425028956},{"$f":"IFERROR(VLOOKUP(F513,Translation!$A:$C,3,FALSE),F513)","v":"Prêts hypothécaires assurés au cours de la période selon la période d’amortissement (en années) à l'initiation (%)"},{"$f":"IFERROR(VLOOKUP(G513,Translation!$A:$C,3,FALSE),G513)","v":"25.0"},{"$f":"IFERROR(VLOOKUP(H513,Translation!$A:$C,3,FALSE),H513)","v":" > 25 <= 30"}]
[28,"Cumul 2017","IMMEUBLES COLLECTIFS RÉSIDENTIELS","> 25 <= 30",34.34742377731299,"Prêts hypothécaires assurés au cours de la période selon la période d’amortissement (en années) à l'initiation (%)","34.3"," > 25 <= 30",{"$f":"IFERROR(VLOOKUP(A514,Translation!$A:$C,3,FALSE),A514)","v":28},{"$f":"IFERROR(VLOOKUP(B514,Translation!$A:$C,3,FALSE),B514)","v":"Cumul 2017"},{"$f":"IFERROR(VLOOKUP(C514,Translation!$A:$C,3,FALSE),C514)","v":"IMMEUBLES COLLECTIFS RÉSIDENTIELS"},{"$f":"IFERROR(VLOOKUP(D514,Translation!$A:$C,3,FALSE),D514)","v":"> 25 <= 30"},{"$f":"IFERROR(VLOOKUP(E514,Translation!$A:$C,3,FALSE),E514)","v":34.34742377731299},{"$f":"IFERROR(VLOOKUP(F514,Translation!$A:$C,3,FALSE),F514)","v":"Prêts hypothécaires assurés au cours de la période selon la période d’amortissement (en années) à l'initiation (%)"},{"$f":"IFERROR(VLOOKUP(G514,Translation!$A:$C,3,FALSE),G514)","v":"34.3"},{"$f":"IFERROR(VLOOKUP(H514,Translation!$A:$C,3,FALSE),H514)","v":" > 25 <= 30"}]
[28,"T4 2018","IMMEUBLES COLLECTIFS RÉSIDENTIELS","> 30 <= 35",27.067082912352024,"Prêts hypothécaires assurés au cours de la période selon la période d’amortissement (en années) à l'initiation (%)","27.1"," > 30 <= 35",{"$f":"IFERROR(VLOOKUP(A515,Translation!$A:$C,3,FALSE),A515)","v":28},{"$f":"IFERROR(VLOOKUP(B515,Translation!$A:$C,3,FALSE),B515)","v":"T4 2018"},{"$f":"IFERROR(VLOOKUP(C515,Translation!$A:$C,3,FALSE),C515)","v":"IMMEUBLES COLLECTIFS RÉSIDENTIELS"},{"$f":"IFERROR(VLOOKUP(D515,Translation!$A:$C,3,FALSE),D515)","v":"> 30 <= 35"},{"$f":"IFERROR(VLOOKUP(E515,Translation!$A:$C,3,FALSE),E515)","v":27.067082912352024},{"$f":"IFERROR(VLOOKUP(F515,Translation!$A:$C,3,FALSE),F515)","v":"Prêts hypothécaires assurés au cours de la période selon la période d’amortissement (en années) à l'initiation (%)"},{"$f":"IFERROR(VLOOKUP(G515,Translation!$A:$C,3,FALSE),G515)","v":"27.1"},{"$f":"IFERROR(VLOOKUP(H515,Translation!$A:$C,3,FALSE),H515)","v":" > 30 <= 35"}]
[28,"Cumul 2017","IMMEUBLES COLLECTIFS RÉSIDENTIELS","> 30 <= 35",18.342656156510973,"Prêts hypothécaires assurés au cours de la période selon la période d’amortissement (en années) à l'initiation (%)","18.3"," > 30 <= 35",{"$f":"IFERROR(VLOOKUP(A516,Translation!$A:$C,3,FALSE),A516)","v":28},{"$f":"IFERROR(VLOOKUP(B516,Translation!$A:$C,3,FALSE),B516)","v":"Cumul 2017"},{"$f":"IFERROR(VLOOKUP(C516,Translation!$A:$C,3,FALSE),C516)","v":"IMMEUBLES COLLECTIFS RÉSIDENTIELS"},{"$f":"IFERROR(VLOOKUP(D516,Translation!$A:$C,3,FALSE),D516)","v":"> 30 <= 35"},{"$f":"IFERROR(VLOOKUP(E516,Translation!$A:$C,3,FALSE),E516)","v":18.342656156510973},{"$f":"IFERROR(VLOOKUP(F516,Translation!$A:$C,3,FALSE),F516)","v":"Prêts hypothécaires assurés au cours de la période selon la période d’amortissement (en années) à l'initiation (%)"},{"$f":"IFERROR(VLOOKUP(G516,Translation!$A:$C,3,FALSE),G516)","v":"18.3"},{"$f":"IFERROR(VLOOKUP(H516,Translation!$A:$C,3,FALSE),H516)","v":" > 30 <= 35"}]
[28,"T4 2018","IMMEUBLES COLLECTIFS RÉSIDENTIELS","> 35",33.268532264543047,"Prêts hypothécaires assurés au cours de la période selon la période d’amortissement (en années) à l'initiation (%)","33.3"," > 35",{"$f":"IFERROR(VLOOKUP(A517,Translation!$A:$C,3,FALSE),A517)","v":28},{"$f":"IFERROR(VLOOKUP(B517,Translation!$A:$C,3,FALSE),B517)","v":"T4 2018"},{"$f":"IFERROR(VLOOKUP(C517,Translation!$A:$C,3,FALSE),C517)","v":"IMMEUBLES COLLECTIFS RÉSIDENTIELS"},{"$f":"IFERROR(VLOOKUP(D517,Translation!$A:$C,3,FALSE),D517)","v":"> 35"},{"$f":"IFERROR(VLOOKUP(E517,Translation!$A:$C,3,FALSE),E517)","v":33.268532264543047},{"$f":"IFERROR(VLOOKUP(F517,Translation!$A:$C,3,FALSE),F517)","v":"Prêts hypothécaires assurés au cours de la période selon la période d’amortissement (en années) à l'initiation (%)"},{"$f":"IFERROR(VLOOKUP(G517,Translation!$A:$C,3,FALSE),G517)","v":"33.3"},{"$f":"IFERROR(VLOOKUP(H517,Translation!$A:$C,3,FALSE),H517)","v":" > 35"}]
[28,"Cumul 2017","IMMEUBLES COLLECTIFS RÉSIDENTIELS","> 35",13.67636243578789,"Prêts hypothécaires assurés au cours de la période selon la période d’amortissement (en années) à l'initiation (%)","13.7"," > 35",{"$f":"IFERROR(VLOOKUP(A518,Translation!$A:$C,3,FALSE),A518)","v":28},{"$f":"IFERROR(VLOOKUP(B518,Translation!$A:$C,3,FALSE),B518)","v":"Cumul 2017"},{"$f":"IFERROR(VLOOKUP(C518,Translation!$A:$C,3,FALSE),C518)","v":"IMMEUBLES COLLECTIFS RÉSIDENTIELS"},{"$f":"IFERROR(VLOOKUP(D518,Translation!$A:$C,3,FALSE),D518)","v":"> 35"},{"$f":"IFERROR(VLOOKUP(E518,Translation!$A:$C,3,FALSE),E518)","v":13.67636243578789},{"$f":"IFERROR(VLOOKUP(F518,Translation!$A:$C,3,FALSE),F518)","v":"Prêts hypothécaires assurés au cours de la période selon la période d’amortissement (en années) à l'initiation (%)"},{"$f":"IFERROR(VLOOKUP(G518,Translation!$A:$C,3,FALSE),G518)","v":"13.7"},{"$f":"IFERROR(VLOOKUP(H518,Translation!$A:$C,3,FALSE),H518)","v":" > 35"}]
[28,"T4 2018","IMMEUBLES COLLECTIFS RÉSIDENTIELS","Période d’amortissement moyenne",34.024956724070996,"Prêts hypothécaires assurés au cours de la période selon la période d’amortissement (en années) à l'initiation (%)","34.0","Période d’amortissement moyenne",{"$f":"IFERROR(VLOOKUP(A519,Translation!$A:$C,3,FALSE),A519)","v":28},{"$f":"IFERROR(VLOOKUP(B519,Translation!$A:$C,3,FALSE),B519)","v":"T4 2018"},{"$f":"IFERROR(VLOOKUP(C519,Translation!$A:$C,3,FALSE),C519)","v":"IMMEUBLES COLLECTIFS RÉSIDENTIELS"},{"$f":"IFERROR(VLOOKUP(D519,Translation!$A:$C,3,FALSE),D519)","v":"Période d’amortissement moyenne"},{"$f":"IFERROR(VLOOKUP(E519,Translation!$A:$C,3,FALSE),E519)","v":34.024956724070996},{"$f":"IFERROR(VLOOKUP(F519,Translation!$A:$C,3,FALSE),F519)","v":"Prêts hypothécaires assurés au cours de la période selon la période d’amortissement (en années) à l'initiation (%)"},{"$f":"IFERROR(VLOOKUP(G519,Translation!$A:$C,3,FALSE),G519)","v":"34.0"},{"$f":"IFERROR(VLOOKUP(H519,Translation!$A:$C,3,FALSE),H519)","v":"Période d’amortissement moyenne"}]
[28,"Cumul 2017","IMMEUBLES COLLECTIFS RÉSIDENTIELS","Période d’amortissement moyenne",30.389491205400077,"Prêts hypothécaires assurés au cours de la période selon la période d’amortissement (en années) à l'initiation (%)","30.4","Période d’amortissement moyenne",{"$f":"IFERROR(VLOOKUP(A520,Translation!$A:$C,3,FALSE),A520)","v":28},{"$f":"IFERROR(VLOOKUP(B520,Translation!$A:$C,3,FALSE),B520)","v":"Cumul 2017"},{"$f":"IFERROR(VLOOKUP(C520,Translation!$A:$C,3,FALSE),C520)","v":"IMMEUBLES COLLECTIFS RÉSIDENTIELS"},{"$f":"IFERROR(VLOOKUP(D520,Translation!$A:$C,3,FALSE),D520)","v":"Période d’amortissement moyenne"},{"$f":"IFERROR(VLOOKUP(E520,Translation!$A:$C,3,FALSE),E520)","v":30.389491205400077},{"$f":"IFERROR(VLOOKUP(F520,Translation!$A:$C,3,FALSE),F520)","v":"Prêts hypothécaires assurés au cours de la période selon la période d’amortissement (en années) à l'initiation (%)"},{"$f":"IFERROR(VLOOKUP(G520,Translation!$A:$C,3,FALSE),G520)","v":"30.4"},{"$f":"IFERROR(VLOOKUP(H520,Translation!$A:$C,3,FALSE),H520)","v":"Période d’amortissement moyenne"}]
[28,"T4 2018","IMMEUBLES COLLECTIFS RÉSIDENTIELS","Terre-Neuve-et-Labrador",25,"Période d’amortissement moyenne selon la province","25.0","Terre-Neuve-et-Labrador",{"$f":"IFERROR(VLOOKUP(A521,Translation!$A:$C,3,FALSE),A521)","v":28},{"$f":"IFERROR(VLOOKUP(B521,Translation!$A:$C,3,FALSE),B521)","v":"T4 2018"},{"$f":"IFERROR(VLOOKUP(C521,Translation!$A:$C,3,FALSE),C521)","v":"IMMEUBLES COLLECTIFS RÉSIDENTIELS"},{"$f":"IFERROR(VLOOKUP(D521,Translation!$A:$C,3,FALSE),D521)","v":"Terre-Neuve-et-Labrador"},{"$f":"IFERROR(VLOOKUP(E521,Translation!$A:$C,3,FALSE),E521)","v":25},{"$f":"IFERROR(VLOOKUP(F521,Translation!$A:$C,3,FALSE),F521)","v":"Période d’amortissement moyenne selon la province"},{"$f":"IFERROR(VLOOKUP(G521,Translation!$A:$C,3,FALSE),G521)","v":"25.0"},{"$f":"IFERROR(VLOOKUP(H521,Translation!$A:$C,3,FALSE),H521)","v":"Terre-Neuve-et-Labrador"}]
[28,"T4 2018","IMMEUBLES COLLECTIFS RÉSIDENTIELS","Île-du-Prince-Édouard",25,"Période d’amortissement moyenne selon la province","25.0","Île-du-Prince-Édouard",{"$f":"IFERROR(VLOOKUP(A522,Translation!$A:$C,3,FALSE),A522)","v":28},{"$f":"IFERROR(VLOOKUP(B522,Translation!$A:$C,3,FALSE),B522)","v":"T4 2018"},{"$f":"IFERROR(VLOOKUP(C522,Translation!$A:$C,3,FALSE),C522)","v":"IMMEUBLES COLLECTIFS RÉSIDENTIELS"},{"$f":"IFERROR(VLOOKUP(D522,Translation!$A:$C,3,FALSE),D522)","v":"Île-du-Prince-Édouard"},{"$f":"IFERROR(VLOOKUP(E522,Translation!$A:$C,3,FALSE),E522)","v":25},{"$f":"IFERROR(VLOOKUP(F522,Translation!$A:$C,3,FALSE),F522)","v":"Période d’amortissement moyenne selon la province"},{"$f":"IFERROR(VLOOKUP(G522,Translation!$A:$C,3,FALSE),G522)","v":"25.0"},{"$f":"IFERROR(VLOOKUP(H522,Translation!$A:$C,3,FALSE),H522)","v":"Île-du-Prince-Édouard"}]
[28,"T4 2018","IMMEUBLES COLLECTIFS RÉSIDENTIELS","Nouvelle-Écosse",33.317919779143438,"Période d’amortissement moyenne selon la province","33.3","Nouvelle-Écosse",{"$f":"IFERROR(VLOOKUP(A523,Translation!$A:$C,3,FALSE),A523)","v":28},{"$f":"IFERROR(VLOOKUP(B523,Translation!$A:$C,3,FALSE),B523)","v":"T4 2018"},{"$f":"IFERROR(VLOOKUP(C523,Translation!$A:$C,3,FALSE),C523)","v":"IMMEUBLES COLLECTIFS RÉSIDENTIELS"},{"$f":"IFERROR(VLOOKUP(D523,Translation!$A:$C,3,FALSE),D523)","v":"Nouvelle-Écosse"},{"$f":"IFERROR(VLOOKUP(E523,Translation!$A:$C,3,FALSE),E523)","v":33.317919779143438},{"$f":"IFERROR(VLOOKUP(F523,Translation!$A:$C,3,FALSE),F523)","v":"Période d’amortissement moyenne selon la province"},{"$f":"IFERROR(VLOOKUP(G523,Translation!$A:$C,3,FALSE),G523)","v":"33.3"},{"$f":"IFERROR(VLOOKUP(H523,Translation!$A:$C,3,FALSE),H523)","v":"Nouvelle-Écosse"}]
[28,"T4 2018","IMMEUBLES COLLECTIFS RÉSIDENTIELS","Nouveau-Brunswick",28.98977483502016,"Période d’amortissement moyenne selon la province","29.0","Nouveau-Brunswick",{"$f":"IFERROR(VLOOKUP(A524,Translation!$A:$C,3,FALSE),A524)","v":28},{"$f":"IFERROR(VLOOKUP(B524,Translation!$A:$C,3,FALSE),B524)","v":"T4 2018"},{"$f":"IFERROR(VLOOKUP(C524,Translation!$A:$C,3,FALSE),C524)","v":"IMMEUBLES COLLECTIFS RÉSIDENTIELS"},{"$f":"IFERROR(VLOOKUP(D524,Translation!$A:$C,3,FALSE),D524)","v":"Nouveau-Brunswick"},{"$f":"IFERROR(VLOOKUP(E524,Translation!$A:$C,3,FALSE),E524)","v":28.98977483502016},{"$f":"IFERROR(VLOOKUP(F524,Translation!$A:$C,3,FALSE),F524)","v":"Période d’amortissement moyenne selon la province"},{"$f":"IFERROR(VLOOKUP(G524,Translation!$A:$C,3,FALSE),G524)","v":"29.0"},{"$f":"IFERROR(VLOOKUP(H524,Translation!$A:$C,3,FALSE),H524)","v":"Nouveau-Brunswick"}]
[28,"T4 2018","IMMEUBLES COLLECTIFS RÉSIDENTIELS","Québec",34.498455766549746,"Période d’amortissement moyenne selon la province","34.5","Québec",{"$f":"IFERROR(VLOOKUP(A525,Translation!$A:$C,3,FALSE),A525)","v":28},{"$f":"IFERROR(VLOOKUP(B525,Translation!$A:$C,3,FALSE),B525)","v":"T4 2018"},{"$f":"IFERROR(VLOOKUP(C525,Translation!$A:$C,3,FALSE),C525)","v":"IMMEUBLES COLLECTIFS RÉSIDENTIELS"},{"$f":"IFERROR(VLOOKUP(D525,Translation!$A:$C,3,FALSE),D525)","v":"Québec"},{"$f":"IFERROR(VLOOKUP(E525,Translation!$A:$C,3,FALSE),E525)","v":34.498455766549746},{"$f":"IFERROR(VLOOKUP(F525,Translation!$A:$C,3,FALSE),F525)","v":"Période d’amortissement moyenne selon la province"},{"$f":"IFERROR(VLOOKUP(G525,Translation!$A:$C,3,FALSE),G525)","v":"34.5"},{"$f":"IFERROR(VLOOKUP(H525,Translation!$A:$C,3,FALSE),H525)","v":"Québec"}]
[28,"T4 2018","IMMEUBLES COLLECTIFS RÉSIDENTIELS","Ontario",32.685499023358858,"Période d’amortissement moyenne selon la province","32.7","Ontario",{"$f":"IFERROR(VLOOKUP(A526,Translation!$A:$C,3,FALSE),A526)","v":28},{"$f":"IFERROR(VLOOKUP(B526,Translation!$A:$C,3,FALSE),B526)","v":"T4 2018"},{"$f":"IFERROR(VLOOKUP(C526,Translation!$A:$C,3,FALSE),C526)","v":"IMMEUBLES COLLECTIFS RÉSIDENTIELS"},{"$f":"IFERROR(VLOOKUP(D526,Translation!$A:$C,3,FALSE),D526)","v":"Ontario"},{"$f":"IFERROR(VLOOKUP(E526,Translation!$A:$C,3,FALSE),E526)","v":32.685499023358858},{"$f":"IFERROR(VLOOKUP(F526,Translation!$A:$C,3,FALSE),F526)","v":"Période d’amortissement moyenne selon la province"},{"$f":"IFERROR(VLOOKUP(G526,Translation!$A:$C,3,FALSE),G526)","v":"32.7"},{"$f":"IFERROR(VLOOKUP(H526,Translation!$A:$C,3,FALSE),H526)","v":"Ontario"}]
[28,"T4 2018","IMMEUBLES COLLECTIFS RÉSIDENTIELS","Manitoba",32.947086916912085,"Période d’amortissement moyenne selon la province","32.9","Manitoba",{"$f":"IFERROR(VLOOKUP(A527,Translation!$A:$C,3,FALSE),A527)","v":28},{"$f":"IFERROR(VLOOKUP(B527,Translation!$A:$C,3,FALSE),B527)","v":"T4 2018"},{"$f":"IFERROR(VLOOKUP(C527,Translation!$A:$C,3,FALSE),C527)","v":"IMMEUBLES COLLECTIFS RÉSIDENTIELS"},{"$f":"IFERROR(VLOOKUP(D527,Translation!$A:$C,3,FALSE),D527)","v":"Manitoba"},{"$f":"IFERROR(VLOOKUP(E527,Translation!$A:$C,3,FALSE),E527)","v":32.947086916912085},{"$f":"IFERROR(VLOOKUP(F527,Translation!$A:$C,3,FALSE),F527)","v":"Période d’amortissement moyenne selon la province"},{"$f":"IFERROR(VLOOKUP(G527,Translation!$A:$C,3,FALSE),G527)","v":"32.9"},{"$f":"IFERROR(VLOOKUP(H527,Translation!$A:$C,3,FALSE),H527)","v":"Manitoba"}]
[28,"T4 2018","IMMEUBLES COLLECTIFS RÉSIDENTIELS","Saskatchewan",38.774625330520287,"Période d’amortissement moyenne selon la province","38.8","Saskatchewan",{"$f":"IFERROR(VLOOKUP(A528,Translation!$A:$C,3,FALSE),A528)","v":28},{"$f":"IFERROR(VLOOKUP(B528,Translation!$A:$C,3,FALSE),B528)","v":"T4 2018"},{"$f":"IFERROR(VLOOKUP(C528,Translation!$A:$C,3,FALSE),C528)","v":"IMMEUBLES COLLECTIFS RÉSIDENTIELS"},{"$f":"IFERROR(VLOOKUP(D528,Translation!$A:$C,3,FALSE),D528)","v":"Saskatchewan"},{"$f":"IFERROR(VLOOKUP(E528,Translation!$A:$C,3,FALSE),E528)","v":38.774625330520287},{"$f":"IFERROR(VLOOKUP(F528,Translation!$A:$C,3,FALSE),F528)","v":"Période d’amortissement moyenne selon la province"},{"$f":"IFERROR(VLOOKUP(G528,Translation!$A:$C,3,FALSE),G528)","v":"38.8"},{"$f":"IFERROR(VLOOKUP(H528,Translation!$A:$C,3,FALSE),H528)","v":"Saskatchewan"}]
[28,"T4 2018","IMMEUBLES COLLECTIFS RÉSIDENTIELS","Alberta",34.871472241955807,"Période d’amortissement moyenne selon la province","34.9","Alberta",{"$f":"IFERROR(VLOOKUP(A529,Translation!$A:$C,3,FALSE),A529)","v":28},{"$f":"IFERROR(VLOOKUP(B529,Translation!$A:$C,3,FALSE),B529)","v":"T4 2018"},{"$f":"IFERROR(VLOOKUP(C529,Translation!$A:$C,3,FALSE),C529)","v":"IMMEUBLES COLLECTIFS RÉSIDENTIELS"},{"$f":"IFERROR(VLOOKUP(D529,Translation!$A:$C,3,FALSE),D529)","v":"Alberta"},{"$f":"IFERROR(VLOOKUP(E529,Translation!$A:$C,3,FALSE),E529)","v":34.871472241955807},{"$f":"IFERROR(VLOOKUP(F529,Translation!$A:$C,3,FALSE),F529)","v":"Période d’amortissement moyenne selon la province"},{"$f":"IFERROR(VLOOKUP(G529,Translation!$A:$C,3,FALSE),G529)","v":"34.9"},{"$f":"IFERROR(VLOOKUP(H529,Translation!$A:$C,3,FALSE),H529)","v":"Alberta"}]
[28,"T4 2018","IMMEUBLES COLLECTIFS RÉSIDENTIELS","Colombie-Britannique",36.078530086348593,"Période d’amortissement moyenne selon la province","36.1","Colombie-Britannique",{"$f":"IFERROR(VLOOKUP(A530,Translation!$A:$C,3,FALSE),A530)","v":28},{"$f":"IFERROR(VLOOKUP(B530,Translation!$A:$C,3,FALSE),B530)","v":"T4 2018"},{"$f":"IFERROR(VLOOKUP(C530,Translation!$A:$C,3,FALSE),C530)","v":"IMMEUBLES COLLECTIFS RÉSIDENTIELS"},{"$f":"IFERROR(VLOOKUP(D530,Translation!$A:$C,3,FALSE),D530)","v":"Colombie-Britannique"},{"$f":"IFERROR(VLOOKUP(E530,Translation!$A:$C,3,FALSE),E530)","v":36.078530086348593},{"$f":"IFERROR(VLOOKUP(F530,Translation!$A:$C,3,FALSE),F530)","v":"Période d’amortissement moyenne selon la province"},{"$f":"IFERROR(VLOOKUP(G530,Translation!$A:$C,3,FALSE),G530)","v":"36.1"},{"$f":"IFERROR(VLOOKUP(H530,Translation!$A:$C,3,FALSE),H530)","v":"Colombie-Britannique"}]
[28,"T4 2018","IMMEUBLES COLLECTIFS RÉSIDENTIELS","Territoires",30,"Période d’amortissement moyenne selon la province","30.0","Territoires",{"$f":"IFERROR(VLOOKUP(A531,Translation!$A:$C,3,FALSE),A531)","v":28},{"$f":"IFERROR(VLOOKUP(B531,Translation!$A:$C,3,FALSE),B531)","v":"T4 2018"},{"$f":"IFERROR(VLOOKUP(C531,Translation!$A:$C,3,FALSE),C531)","v":"IMMEUBLES COLLECTIFS RÉSIDENTIELS"},{"$f":"IFERROR(VLOOKUP(D531,Translation!$A:$C,3,FALSE),D531)","v":"Territoires"},{"$f":"IFERROR(VLOOKUP(E531,Translation!$A:$C,3,FALSE),E531)","v":30},{"$f":"IFERROR(VLOOKUP(F531,Translation!$A:$C,3,FALSE),F531)","v":"Période d’amortissement moyenne selon la province"},{"$f":"IFERROR(VLOOKUP(G531,Translation!$A:$C,3,FALSE),G531)","v":"30.0"},{"$f":"IFERROR(VLOOKUP(H531,Translation!$A:$C,3,FALSE),H531)","v":"Territoires"}]
[28,"Cumul 2017","IMMEUBLES COLLECTIFS RÉSIDENTIELS","Terre-Neuve-et-Labrador",25.000000000000004,"Période d’amortissement moyenne selon la province","25.0","Terre-Neuve-et-Labrador",{"$f":"IFERROR(VLOOKUP(A532,Translation!$A:$C,3,FALSE),A532)","v":28},{"$f":"IFERROR(VLOOKUP(B532,Translation!$A:$C,3,FALSE),B532)","v":"Cumul 2017"},{"$f":"IFERROR(VLOOKUP(C532,Translation!$A:$C,3,FALSE),C532)","v":"IMMEUBLES COLLECTIFS RÉSIDENTIELS"},{"$f":"IFERROR(VLOOKUP(D532,Translation!$A:$C,3,FALSE),D532)","v":"Terre-Neuve-et-Labrador"},{"$f":"IFERROR(VLOOKUP(E532,Translation!$A:$C,3,FALSE),E532)","v":25.000000000000004},{"$f":"IFERROR(VLOOKUP(F532,Translation!$A:$C,3,FALSE),F532)","v":"Période d’amortissement moyenne selon la province"},{"$f":"IFERROR(VLOOKUP(G532,Translation!$A:$C,3,FALSE),G532)","v":"25.0"},{"$f":"IFERROR(VLOOKUP(H532,Translation!$A:$C,3,FALSE),H532)","v":"Terre-Neuve-et-Labrador"}]
[28,"Cumul 2017","IMMEUBLES COLLECTIFS RÉSIDENTIELS","Île-du-Prince-Édouard",25,"Période d’amortissement moyenne selon la province","25.0","Île-du-Prince-Édouard",{"$f":"IFERROR(VLOOKUP(A533,Translation!$A:$C,3,FALSE),A533)","v":28},{"$f":"IFERROR(VLOOKUP(B533,Translation!$A:$C,3,FALSE),B533)","v":"Cumul 2017"},{"$f":"IFERROR(VLOOKUP(C533,Translation!$A:$C,3,FALSE),C533)","v":"IMMEUBLES COLLECTIFS RÉSIDENTIELS"},{"$f":"IFERROR(VLOOKUP(D533,Translation!$A:$C,3,FALSE),D533)","v":"Île-du-Prince-Édouard"},{"$f":"IFERROR(VLOOKUP(E533,Translation!$A:$C,3,FALSE),E533)","v":25},{"$f":"IFERROR(VLOOKUP(F533,Translation!$A:$C,3,FALSE),F533)","v":"Période d’amortissement moyenne selon la province"},{"$f":"IFERROR(VLOOKUP(G533,Translation!$A:$C,3,FALSE),G533)","v":"25.0"},{"$f":"IFERROR(VLOOKUP(H533,Translation!$A:$C,3,FALSE),H533)","v":"Île-du-Prince-Édouard"}]
[28,"Cumul 2017","IMMEUBLES COLLECTIFS RÉSIDENTIELS","Nouvelle-Écosse",27.55269009183969,"Période d’amortissement moyenne selon la province","27.6","Nouvelle-Écosse",{"$f":"IFERROR(VLOOKUP(A534,Translation!$A:$C,3,FALSE),A534)","v":28},{"$f":"IFERROR(VLOOKUP(B534,Translation!$A:$C,3,FALSE),B534)","v":"Cumul 2017"},{"$f":"IFERROR(VLOOKUP(C534,Translation!$A:$C,3,FALSE),C534)","v":"IMMEUBLES COLLECTIFS RÉSIDENTIELS"},{"$f":"IFERROR(VLOOKUP(D534,Translation!$A:$C,3,FALSE),D534)","v":"Nouvelle-Écosse"},{"$f":"IFERROR(VLOOKUP(E534,Translation!$A:$C,3,FALSE),E534)","v":27.55269009183969},{"$f":"IFERROR(VLOOKUP(F534,Translation!$A:$C,3,FALSE),F534)","v":"Période d’amortissement moyenne selon la province"},{"$f":"IFERROR(VLOOKUP(G534,Translation!$A:$C,3,FALSE),G534)","v":"27.6"},{"$f":"IFERROR(VLOOKUP(H534,Translation!$A:$C,3,FALSE),H534)","v":"Nouvelle-Écosse"}]
[28,"Cumul 2017","IMMEUBLES COLLECTIFS RÉSIDENTIELS","Nouveau-Brunswick",26.110876279505597,"Période d’amortissement moyenne selon la province","26.1","Nouveau-Brunswick",{"$f":"IFERROR(VLOOKUP(A535,Translation!$A:$C,3,FALSE),A535)","v":28},{"$f":"IFERROR(VLOOKUP(B535,Translation!$A:$C,3,FALSE),B535)","v":"Cumul 2017"},{"$f":"IFERROR(VLOOKUP(C535,Translation!$A:$C,3,FALSE),C535)","v":"IMMEUBLES COLLECTIFS RÉSIDENTIELS"},{"$f":"IFERROR(VLOOKUP(D535,Translation!$A:$C,3,FALSE),D535)","v":"Nouveau-Brunswick"},{"$f":"IFERROR(VLOOKUP(E535,Translation!$A:$C,3,FALSE),E535)","v":26.110876279505597},{"$f":"IFERROR(VLOOKUP(F535,Translation!$A:$C,3,FALSE),F535)","v":"Période d’amortissement moyenne selon la province"},{"$f":"IFERROR(VLOOKUP(G535,Translation!$A:$C,3,FALSE),G535)","v":"26.1"},{"$f":"IFERROR(VLOOKUP(H535,Translation!$A:$C,3,FALSE),H535)","v":"Nouveau-Brunswick"}]
[28,"Cumul 2017","IMMEUBLES COLLECTIFS RÉSIDENTIELS","Québec",29.967866777617484,"Période d’amortissement moyenne selon la province","30.0","Québec",{"$f":"IFERROR(VLOOKUP(A536,Translation!$A:$C,3,FALSE),A536)","v":28},{"$f":"IFERROR(VLOOKUP(B536,Translation!$A:$C,3,FALSE),B536)","v":"Cumul 2017"},{"$f":"IFERROR(VLOOKUP(C536,Translation!$A:$C,3,FALSE),C536)","v":"IMMEUBLES COLLECTIFS RÉSIDENTIELS"},{"$f":"IFERROR(VLOOKUP(D536,Translation!$A:$C,3,FALSE),D536)","v":"Québec"},{"$f":"IFERROR(VLOOKUP(E536,Translation!$A:$C,3,FALSE),E536)","v":29.967866777617484},{"$f":"IFERROR(VLOOKUP(F536,Translation!$A:$C,3,FALSE),F536)","v":"Période d’amortissement moyenne selon la province"},{"$f":"IFERROR(VLOOKUP(G536,Translation!$A:$C,3,FALSE),G536)","v":"30.0"},{"$f":"IFERROR(VLOOKUP(H536,Translation!$A:$C,3,FALSE),H536)","v":"Québec"}]
[28,"Cumul 2017","IMMEUBLES COLLECTIFS RÉSIDENTIELS","Ontario",30.00704203719387,"Période d’amortissement moyenne selon la province","30.0","Ontario",{"$f":"IFERROR(VLOOKUP(A537,Translation!$A:$C,3,FALSE),A537)","v":28},{"$f":"IFERROR(VLOOKUP(B537,Translation!$A:$C,3,FALSE),B537)","v":"Cumul 2017"},{"$f":"IFERROR(VLOOKUP(C537,Translation!$A:$C,3,FALSE),C537)","v":"IMMEUBLES COLLECTIFS RÉSIDENTIELS"},{"$f":"IFERROR(VLOOKUP(D537,Translation!$A:$C,3,FALSE),D537)","v":"Ontario"},{"$f":"IFERROR(VLOOKUP(E537,Translation!$A:$C,3,FALSE),E537)","v":30.00704203719387},{"$f":"IFERROR(VLOOKUP(F537,Translation!$A:$C,3,FALSE),F537)","v":"Période d’amortissement moyenne selon la province"},{"$f":"IFERROR(VLOOKUP(G537,Translation!$A:$C,3,FALSE),G537)","v":"30.0"},{"$f":"IFERROR(VLOOKUP(H537,Translation!$A:$C,3,FALSE),H537)","v":"Ontario"}]
[28,"Cumul 2017","IMMEUBLES COLLECTIFS RÉSIDENTIELS","Manitoba",32.187870194180157,"Période d’amortissement moyenne selon la province","32.2","Manitoba",{"$f":"IFERROR(VLOOKUP(A538,Translation!$A:$C,3,FALSE),A538)","v":28},{"$f":"IFERROR(VLOOKUP(B538,Translation!$A:$C,3,FALSE),B538)","v":"Cumul 2017"},{"$f":"IFERROR(VLOOKUP(C538,Translation!$A:$C,3,FALSE),C538)","v":"IMMEUBLES COLLECTIFS RÉSIDENTIELS"},{"$f":"IFERROR(VLOOKUP(D538,Translation!$A:$C,3,FALSE),D538)","v":"Manitoba"},{"$f":"IFERROR(VLOOKUP(E538,Translation!$A:$C,3,FALSE),E538)","v":32.187870194180157},{"$f":"IFERROR(VLOOKUP(F538,Translation!$A:$C,3,FALSE),F538)","v":"Période d’amortissement moyenne selon la province"},{"$f":"IFERROR(VLOOKUP(G538,Translation!$A:$C,3,FALSE),G538)","v":"32.2"},{"$f":"IFERROR(VLOOKUP(H538,Translation!$A:$C,3,FALSE),H538)","v":"Manitoba"}]
[28,"Cumul 2017","IMMEUBLES COLLECTIFS RÉSIDENTIELS","Saskatchewan",30.069801379265076,"Période d’amortissement moyenne selon la province","30.1","Saskatchewan",{"$f":"IFERROR(VLOOKUP(A539,Translation!$A:$C,3,FALSE),A539)","v":28},{"$f":"IFERROR(VLOOKUP(B539,Translation!$A:$C,3,FALSE),B539)","v":"Cumul 2017"},{"$f":"IFERROR(VLOOKUP(C539,Translation!$A:$C,3,FALSE),C539)","v":"IMMEUBLES COLLECTIFS RÉSIDENTIELS"},{"$f":"IFERROR(VLOOKUP(D539,Translation!$A:$C,3,FALSE),D539)","v":"Saskatchewan"},{"$f":"IFERROR(VLOOKUP(E539,Translation!$A:$C,3,FALSE),E539)","v":30.069801379265076},{"$f":"IFERROR(VLOOKUP(F539,Translation!$A:$C,3,FALSE),F539)","v":"Période d’amortissement moyenne selon la province"},{"$f":"IFERROR(VLOOKUP(G539,Translation!$A:$C,3,FALSE),G539)","v":"30.1"},{"$f":"IFERROR(VLOOKUP(H539,Translation!$A:$C,3,FALSE),H539)","v":"Saskatchewan"}]
[28,"Cumul 2017","IMMEUBLES COLLECTIFS RÉSIDENTIELS","Alberta",31.056015866859006,"Période d’amortissement moyenne selon la province","31.1","Alberta",{"$f":"IFERROR(VLOOKUP(A540,Translation!$A:$C,3,FALSE),A540)","v":28},{"$f":"IFERROR(VLOOKUP(B540,Translation!$A:$C,3,FALSE),B540)","v":"Cumul 2017"},{"$f":"IFERROR(VLOOKUP(C540,Translation!$A:$C,3,FALSE),C540)","v":"IMMEUBLES COLLECTIFS RÉSIDENTIELS"},{"$f":"IFERROR(VLOOKUP(D540,Translation!$A:$C,3,FALSE),D540)","v":"Alberta"},{"$f":"IFERROR(VLOOKUP(E540,Translation!$A:$C,3,FALSE),E540)","v":31.056015866859006},{"$f":"IFERROR(VLOOKUP(F540,Translation!$A:$C,3,FALSE),F540)","v":"Période d’amortissement moyenne selon la province"},{"$f":"IFERROR(VLOOKUP(G540,Translation!$A:$C,3,FALSE),G540)","v":"31.1"},{"$f":"IFERROR(VLOOKUP(H540,Translation!$A:$C,3,FALSE),H540)","v":"Alberta"}]
[28,"Cumul 2017","IMMEUBLES COLLECTIFS RÉSIDENTIELS","Colombie-Britannique",32.795991783166158,"Période d’amortissement moyenne selon la province","32.8","Colombie-Britannique",{"$f":"IFERROR(VLOOKUP(A541,Translation!$A:$C,3,FALSE),A541)","v":28},{"$f":"IFERROR(VLOOKUP(B541,Translation!$A:$C,3,FALSE),B541)","v":"Cumul 2017"},{"$f":"IFERROR(VLOOKUP(C541,Translation!$A:$C,3,FALSE),C541)","v":"IMMEUBLES COLLECTIFS RÉSIDENTIELS"},{"$f":"IFERROR(VLOOKUP(D541,Translation!$A:$C,3,FALSE),D541)","v":"Colombie-Britannique"},{"$f":"IFERROR(VLOOKUP(E541,Translation!$A:$C,3,FALSE),E541)","v":32.795991783166158},{"$f":"IFERROR(VLOOKUP(F541,Translation!$A:$C,3,FALSE),F541)","v":"Période d’amortissement moyenne selon la province"},{"$f":"IFERROR(VLOOKUP(G541,Translation!$A:$C,3,FALSE),G541)","v":"32.8"},{"$f":"IFERROR(VLOOKUP(H541,Translation!$A:$C,3,FALSE),H541)","v":"Colombie-Britannique"}]
[28,"Cumul 2017","IMMEUBLES COLLECTIFS RÉSIDENTIELS","Territoires",26.369120905276219,"Période d’amortissement moyenne selon la province","26.4","Territoires",{"$f":"IFERROR(VLOOKUP(A542,Translation!$A:$C,3,FALSE),A542)","v":28},{"$f":"IFERROR(VLOOKUP(B542,Translation!$A:$C,3,FALSE),B542)","v":"Cumul 2017"},{"$f":"IFERROR(VLOOKUP(C542,Translation!$A:$C,3,FALSE),C542)","v":"IMMEUBLES COLLECTIFS RÉSIDENTIELS"},{"$f":"IFERROR(VLOOKUP(D542,Translation!$A:$C,3,FALSE),D542)","v":"Territoires"},{"$f":"IFERROR(VLOOKUP(E542,Translation!$A:$C,3,FALSE),E542)","v":26.369120905276219},{"$f":"IFERROR(VLOOKUP(F542,Translation!$A:$C,3,FALSE),F542)","v":"Période d’amortissement moyenne selon la province"},{"$f":"IFERROR(VLOOKUP(G542,Translation!$A:$C,3,FALSE),G542)","v":"26.4"},{"$f":"IFERROR(VLOOKUP(H542,Translation!$A:$C,3,FALSE),H542)","v":"Territoires"}]
[10,"T3 2018","PROPRIÉTAIRES-OCCUPANTS, À L’UNITÉ","<= 5",2.1726106802449071E-2,"Prêts hypothécaires assurés au cours de la période selon la période d’amortissement (en années) à l'initiation (%)","0.0"," <= 5",{"$f":"IFERROR(VLOOKUP(A543,Translation!$A:$C,3,FALSE),A543)","v":10},{"$f":"IFERROR(VLOOKUP(B543,Translation!$A:$C,3,FALSE),B543)","v":"T3 2018"},{"$f":"IFERROR(VLOOKUP(C543,Translation!$A:$C,3,FALSE),C543)","v":"PROPRIÉTAIRES-OCCUPANTS, À L’UNITÉ"},{"$f":"IFERROR(VLOOKUP(D543,Translation!$A:$C,3,FALSE),D543)","v":"<= 5"},{"$f":"IFERROR(VLOOKUP(E543,Translation!$A:$C,3,FALSE),E543)","v":2.1726106802449071E-2},{"$f":"IFERROR(VLOOKUP(F543,Translation!$A:$C,3,FALSE),F543)","v":"Prêts hypothécaires assurés au cours de la période selon la période d’amortissement (en années) à l'initiation (%)"},{"$f":"IFERROR(VLOOKUP(G543,Translation!$A:$C,3,FALSE),G543)","v":"0.0"},{"$f":"IFERROR(VLOOKUP(H543,Translation!$A:$C,3,FALSE),H543)","v":" <= 5"}]
[10,"T3 2018","PROPRIÉTAIRES-OCCUPANTS, À L’UNITÉ","> 5 <= 10",7.5380534070210753E-2,"Prêts hypothécaires assurés au cours de la période selon la période d’amortissement (en années) à l'initiation (%)","0.1"," > 5 <= 10",{"$f":"IFERROR(VLOOKUP(A544,Translation!$A:$C,3,FALSE),A544)","v":10},{"$f":"IFERROR(VLOOKUP(B544,Translation!$A:$C,3,FALSE),B544)","v":"T3 2018"},{"$f":"IFERROR(VLOOKUP(C544,Translation!$A:$C,3,FALSE),C544)","v":"PROPRIÉTAIRES-OCCUPANTS, À L’UNITÉ"},{"$f":"IFERROR(VLOOKUP(D544,Translation!$A:$C,3,FALSE),D544)","v":"> 5 <= 10"},{"$f":"IFERROR(VLOOKUP(E544,Translation!$A:$C,3,FALSE),E544)","v":7.5380534070210753E-2},{"$f":"IFERROR(VLOOKUP(F544,Translation!$A:$C,3,FALSE),F544)","v":"Prêts hypothécaires assurés au cours de la période selon la période d’amortissement (en années) à l'initiation (%)"},{"$f":"IFERROR(VLOOKUP(G544,Translation!$A:$C,3,FALSE),G544)","v":"0.1"},{"$f":"IFERROR(VLOOKUP(H544,Translation!$A:$C,3,FALSE),H544)","v":" > 5 <= 10"}]
[10,"T3 2018","PROPRIÉTAIRES-OCCUPANTS, À L’UNITÉ","> 10 <= 15",0.19600804553960072,"Prêts hypothécaires assurés au cours de la période selon la période d’amortissement (en années) à l'initiation (%)","0.2"," > 10 <= 15",{"$f":"IFERROR(VLOOKUP(A545,Translation!$A:$C,3,FALSE),A545)","v":10},{"$f":"IFERROR(VLOOKUP(B545,Translation!$A:$C,3,FALSE),B545)","v":"T3 2018"},{"$f":"IFERROR(VLOOKUP(C545,Translation!$A:$C,3,FALSE),C545)","v":"PROPRIÉTAIRES-OCCUPANTS, À L’UNITÉ"},{"$f":"IFERROR(VLOOKUP(D545,Translation!$A:$C,3,FALSE),D545)","v":"> 10 <= 15"},{"$f":"IFERROR(VLOOKUP(E545,Translation!$A:$C,3,FALSE),E545)","v":0.19600804553960072},{"$f":"IFERROR(VLOOKUP(F545,Translation!$A:$C,3,FALSE),F545)","v":"Prêts hypothécaires assurés au cours de la période selon la période d’amortissement (en années) à l'initiation (%)"},{"$f":"IFERROR(VLOOKUP(G545,Translation!$A:$C,3,FALSE),G545)","v":"0.2"},{"$f":"IFERROR(VLOOKUP(H545,Translation!$A:$C,3,FALSE),H545)","v":" > 10 <= 15"}]
[10,"T3 2018","PROPRIÉTAIRES-OCCUPANTS, À L’UNITÉ","> 15 <= 20",0.70850370621483882,"Prêts hypothécaires assurés au cours de la période selon la période d’amortissement (en années) à l'initiation (%)","0.7"," > 15 <= 20",{"$f":"IFERROR(VLOOKUP(A546,Translation!$A:$C,3,FALSE),A546)","v":10},{"$f":"IFERROR(VLOOKUP(B546,Translation!$A:$C,3,FALSE),B546)","v":"T3 2018"},{"$f":"IFERROR(VLOOKUP(C546,Translation!$A:$C,3,FALSE),C546)","v":"PROPRIÉTAIRES-OCCUPANTS, À L’UNITÉ"},{"$f":"IFERROR(VLOOKUP(D546,Translation!$A:$C,3,FALSE),D546)","v":"> 15 <= 20"},{"$f":"IFERROR(VLOOKUP(E546,Translation!$A:$C,3,FALSE),E546)","v":0.70850370621483882},{"$f":"IFERROR(VLOOKUP(F546,Translation!$A:$C,3,FALSE),F546)","v":"Prêts hypothécaires assurés au cours de la période selon la période d’amortissement (en années) à l'initiation (%)"},{"$f":"IFERROR(VLOOKUP(G546,Translation!$A:$C,3,FALSE),G546)","v":"0.7"},{"$f":"IFERROR(VLOOKUP(H546,Translation!$A:$C,3,FALSE),H546)","v":" > 15 <= 20"}]
[10,"T3 2018","PROPRIÉTAIRES-OCCUPANTS, À L’UNITÉ","> 20 <= 25",98.830366000049821,"Prêts hypothécaires assurés au cours de la période selon la période d’amortissement (en années) à l'initiation (%)","98.8"," > 20 <= 25",{"$f":"IFERROR(VLOOKUP(A547,Translation!$A:$C,3,FALSE),A547)","v":10},{"$f":"IFERROR(VLOOKUP(B547,Translation!$A:$C,3,FALSE),B547)","v":"T3 2018"},{"$f":"IFERROR(VLOOKUP(C547,Translation!$A:$C,3,FALSE),C547)","v":"PROPRIÉTAIRES-OCCUPANTS, À L’UNITÉ"},{"$f":"IFERROR(VLOOKUP(D547,Translation!$A:$C,3,FALSE),D547)","v":"> 20 <= 25"},{"$f":"IFERROR(VLOOKUP(E547,Translation!$A:$C,3,FALSE),E547)","v":98.830366000049821},{"$f":"IFERROR(VLOOKUP(F547,Translation!$A:$C,3,FALSE),F547)","v":"Prêts hypothécaires assurés au cours de la période selon la période d’amortissement (en années) à l'initiation (%)"},{"$f":"IFERROR(VLOOKUP(G547,Translation!$A:$C,3,FALSE),G547)","v":"98.8"},{"$f":"IFERROR(VLOOKUP(H547,Translation!$A:$C,3,FALSE),H547)","v":" > 20 <= 25"}]
[10,"T3 2018","PROPRIÉTAIRES-OCCUPANTS, À L’UNITÉ","> 25 <= 30",0.16801560732304299,"Prêts hypothécaires assurés au cours de la période selon la période d’amortissement (en années) à l'initiation (%)","0.2"," > 25 <= 30",{"$f":"IFERROR(VLOOKUP(A548,Translation!$A:$C,3,FALSE),A548)","v":10},{"$f":"IFERROR(VLOOKUP(B548,Translation!$A:$C,3,FALSE),B548)","v":"T3 2018"},{"$f":"IFERROR(VLOOKUP(C548,Translation!$A:$C,3,FALSE),C548)","v":"PROPRIÉTAIRES-OCCUPANTS, À L’UNITÉ"},{"$f":"IFERROR(VLOOKUP(D548,Translation!$A:$C,3,FALSE),D548)","v":"> 25 <= 30"},{"$f":"IFERROR(VLOOKUP(E548,Translation!$A:$C,3,FALSE),E548)","v":0.16801560732304299},{"$f":"IFERROR(VLOOKUP(F548,Translation!$A:$C,3,FALSE),F548)","v":"Prêts hypothécaires assurés au cours de la période selon la période d’amortissement (en années) à l'initiation (%)"},{"$f":"IFERROR(VLOOKUP(G548,Translation!$A:$C,3,FALSE),G548)","v":"0.2"},{"$f":"IFERROR(VLOOKUP(H548,Translation!$A:$C,3,FALSE),H548)","v":" > 25 <= 30"}]
[10,"T3 2018","PROPRIÉTAIRES-OCCUPANTS, À L’UNITÉ","Période d’amortissement moyenne",24.855555130677832,"Prêts hypothécaires assurés au cours de la période selon la période d’amortissement (en années) à l'initiation (%)","24.9","Période d’amortissement moyenne",{"$f":"IFERROR(VLOOKUP(A549,Translation!$A:$C,3,FALSE),A549)","v":10},{"$f":"IFERROR(VLOOKUP(B549,Translation!$A:$C,3,FALSE),B549)","v":"T3 2018"},{"$f":"IFERROR(VLOOKUP(C549,Translation!$A:$C,3,FALSE),C549)","v":"PROPRIÉTAIRES-OCCUPANTS, À L’UNITÉ"},{"$f":"IFERROR(VLOOKUP(D549,Translation!$A:$C,3,FALSE),D549)","v":"Période d’amortissement moyenne"},{"$f":"IFERROR(VLOOKUP(E549,Translation!$A:$C,3,FALSE),E549)","v":24.855555130677832},{"$f":"IFERROR(VLOOKUP(F549,Translation!$A:$C,3,FALSE),F549)","v":"Prêts hypothécaires assurés au cours de la période selon la période d’amortissement (en années) à l'initiation (%)"},{"$f":"IFERROR(VLOOKUP(G549,Translation!$A:$C,3,FALSE),G549)","v":"24.9"},{"$f":"IFERROR(VLOOKUP(H549,Translation!$A:$C,3,FALSE),H549)","v":"Période d’amortissement moyenne"}]
[10,"T3 2018","PROPRIÉTAIRES-OCCUPANTS, À L’UNITÉ","Terre-Neuve-et-Labrador",24.837161634445074,"Période d’amortissement moyenne selon la province","24.8","Terre-Neuve-et-Labrador",{"$f":"IFERROR(VLOOKUP(A550,Translation!$A:$C,3,FALSE),A550)","v":10},{"$f":"IFERROR(VLOOKUP(B550,Translation!$A:$C,3,FALSE),B550)","v":"T3 2018"},{"$f":"IFERROR(VLOOKUP(C550,Translation!$A:$C,3,FALSE),C550)","v":"PROPRIÉTAIRES-OCCUPANTS, À L’UNITÉ"},{"$f":"IFERROR(VLOOKUP(D550,Translation!$A:$C,3,FALSE),D550)","v":"Terre-Neuve-et-Labrador"},{"$f":"IFERROR(VLOOKUP(E550,Translation!$A:$C,3,FALSE),E550)","v":24.837161634445074},{"$f":"IFERROR(VLOOKUP(F550,Translation!$A:$C,3,FALSE),F550)","v":"Période d’amortissement moyenne selon la province"},{"$f":"IFERROR(VLOOKUP(G550,Translation!$A:$C,3,FALSE),G550)","v":"24.8"},{"$f":"IFERROR(VLOOKUP(H550,Translation!$A:$C,3,FALSE),H550)","v":"Terre-Neuve-et-Labrador"}]
[10,"T3 2018","PROPRIÉTAIRES-OCCUPANTS, À L’UNITÉ","Île-du-Prince-Édouard",24.776434207884368,"Période d’amortissement moyenne selon la province","24.8","Île-du-Prince-Édouard",{"$f":"IFERROR(VLOOKUP(A551,Translation!$A:$C,3,FALSE),A551)","v":10},{"$f":"IFERROR(VLOOKUP(B551,Translation!$A:$C,3,FALSE),B551)","v":"T3 2018"},{"$f":"IFERROR(VLOOKUP(C551,Translation!$A:$C,3,FALSE),C551)","v":"PROPRIÉTAIRES-OCCUPANTS, À L’UNITÉ"},{"$f":"IFERROR(VLOOKUP(D551,Translation!$A:$C,3,FALSE),D551)","v":"Île-du-Prince-Édouard"},{"$f":"IFERROR(VLOOKUP(E551,Translation!$A:$C,3,FALSE),E551)","v":24.776434207884368},{"$f":"IFERROR(VLOOKUP(F551,Translation!$A:$C,3,FALSE),F551)","v":"Période d’amortissement moyenne selon la province"},{"$f":"IFERROR(VLOOKUP(G551,Translation!$A:$C,3,FALSE),G551)","v":"24.8"},{"$f":"IFERROR(VLOOKUP(H551,Translation!$A:$C,3,FALSE),H551)","v":"Île-du-Prince-Édouard"}]
[10,"T3 2018","PROPRIÉTAIRES-OCCUPANTS, À L’UNITÉ","Nouvelle-Écosse",24.786557399334161,"Période d’amortissement moyenne selon la province","24.8","Nouvelle-Écosse",{"$f":"IFERROR(VLOOKUP(A552,Translation!$A:$C,3,FALSE),A552)","v":10},{"$f":"IFERROR(VLOOKUP(B552,Translation!$A:$C,3,FALSE),B552)","v":"T3 2018"},{"$f":"IFERROR(VLOOKUP(C552,Translation!$A:$C,3,FALSE),C552)","v":"PROPRIÉTAIRES-OCCUPANTS, À L’UNITÉ"},{"$f":"IFERROR(VLOOKUP(D552,Translation!$A:$C,3,FALSE),D552)","v":"Nouvelle-Écosse"},{"$f":"IFERROR(VLOOKUP(E552,Translation!$A:$C,3,FALSE),E552)","v":24.786557399334161},{"$f":"IFERROR(VLOOKUP(F552,Translation!$A:$C,3,FALSE),F552)","v":"Période d’amortissement moyenne selon la province"},{"$f":"IFERROR(VLOOKUP(G552,Translation!$A:$C,3,FALSE),G552)","v":"24.8"},{"$f":"IFERROR(VLOOKUP(H552,Translation!$A:$C,3,FALSE),H552)","v":"Nouvelle-Écosse"}]
[10,"T3 2018","PROPRIÉTAIRES-OCCUPANTS, À L’UNITÉ","Nouveau-Brunswick",24.740940933810929,"Période d’amortissement moyenne selon la province","24.7","Nouveau-Brunswick",{"$f":"IFERROR(VLOOKUP(A553,Translation!$A:$C,3,FALSE),A553)","v":10},{"$f":"IFERROR(VLOOKUP(B553,Translation!$A:$C,3,FALSE),B553)","v":"T3 2018"},{"$f":"IFERROR(VLOOKUP(C553,Translation!$A:$C,3,FALSE),C553)","v":"PROPRIÉTAIRES-OCCUPANTS, À L’UNITÉ"},{"$f":"IFERROR(VLOOKUP(D553,Translation!$A:$C,3,FALSE),D553)","v":"Nouveau-Brunswick"},{"$f":"IFERROR(VLOOKUP(E553,Translation!$A:$C,3,FALSE),E553)","v":24.740940933810929},{"$f":"IFERROR(VLOOKUP(F553,Translation!$A:$C,3,FALSE),F553)","v":"Période d’amortissement moyenne selon la province"},{"$f":"IFERROR(VLOOKUP(G553,Translation!$A:$C,3,FALSE),G553)","v":"24.7"},{"$f":"IFERROR(VLOOKUP(H553,Translation!$A:$C,3,FALSE),H553)","v":"Nouveau-Brunswick"}]
[10,"T3 2018","PROPRIÉTAIRES-OCCUPANTS, À L’UNITÉ","Québec",24.871141905724368,"Période d’amortissement moyenne selon la province","24.9","Québec",{"$f":"IFERROR(VLOOKUP(A554,Translation!$A:$C,3,FALSE),A554)","v":10},{"$f":"IFERROR(VLOOKUP(B554,Translation!$A:$C,3,FALSE),B554)","v":"T3 2018"},{"$f":"IFERROR(VLOOKUP(C554,Translation!$A:$C,3,FALSE),C554)","v":"PROPRIÉTAIRES-OCCUPANTS, À L’UNITÉ"},{"$f":"IFERROR(VLOOKUP(D554,Translation!$A:$C,3,FALSE),D554)","v":"Québec"},{"$f":"IFERROR(VLOOKUP(E554,Translation!$A:$C,3,FALSE),E554)","v":24.871141905724368},{"$f":"IFERROR(VLOOKUP(F554,Translation!$A:$C,3,FALSE),F554)","v":"Période d’amortissement moyenne selon la province"},{"$f":"IFERROR(VLOOKUP(G554,Translation!$A:$C,3,FALSE),G554)","v":"24.9"},{"$f":"IFERROR(VLOOKUP(H554,Translation!$A:$C,3,FALSE),H554)","v":"Québec"}]
[10,"T3 2018","PROPRIÉTAIRES-OCCUPANTS, À L’UNITÉ","Ontario",24.900632809891281,"Période d’amortissement moyenne selon la province","24.9","Ontario",{"$f":"IFERROR(VLOOKUP(A555,Translation!$A:$C,3,FALSE),A555)","v":10},{"$f":"IFERROR(VLOOKUP(B555,Translation!$A:$C,3,FALSE),B555)","v":"T3 2018"},{"$f":"IFERROR(VLOOKUP(C555,Translation!$A:$C,3,FALSE),C555)","v":"PROPRIÉTAIRES-OCCUPANTS, À L’UNITÉ"},{"$f":"IFERROR(VLOOKUP(D555,Translation!$A:$C,3,FALSE),D555)","v":"Ontario"},{"$f":"IFERROR(VLOOKUP(E555,Translation!$A:$C,3,FALSE),E555)","v":24.900632809891281},{"$f":"IFERROR(VLOOKUP(F555,Translation!$A:$C,3,FALSE),F555)","v":"Période d’amortissement moyenne selon la province"},{"$f":"IFERROR(VLOOKUP(G555,Translation!$A:$C,3,FALSE),G555)","v":"24.9"},{"$f":"IFERROR(VLOOKUP(H555,Translation!$A:$C,3,FALSE),H555)","v":"Ontario"}]
[10,"T3 2018","PROPRIÉTAIRES-OCCUPANTS, À L’UNITÉ","Manitoba",24.8286006947917,"Période d’amortissement moyenne selon la province","24.8","Manitoba",{"$f":"IFERROR(VLOOKUP(A556,Translation!$A:$C,3,FALSE),A556)","v":10},{"$f":"IFERROR(VLOOKUP(B556,Translation!$A:$C,3,FALSE),B556)","v":"T3 2018"},{"$f":"IFERROR(VLOOKUP(C556,Translation!$A:$C,3,FALSE),C556)","v":"PROPRIÉTAIRES-OCCUPANTS, À L’UNITÉ"},{"$f":"IFERROR(VLOOKUP(D556,Translation!$A:$C,3,FALSE),D556)","v":"Manitoba"},{"$f":"IFERROR(VLOOKUP(E556,Translation!$A:$C,3,FALSE),E556)","v":24.8286006947917},{"$f":"IFERROR(VLOOKUP(F556,Translation!$A:$C,3,FALSE),F556)","v":"Période d’amortissement moyenne selon la province"},{"$f":"IFERROR(VLOOKUP(G556,Translation!$A:$C,3,FALSE),G556)","v":"24.8"},{"$f":"IFERROR(VLOOKUP(H556,Translation!$A:$C,3,FALSE),H556)","v":"Manitoba"}]
[10,"T3 2018","PROPRIÉTAIRES-OCCUPANTS, À L’UNITÉ","Saskatchewan",24.711538403879473,"Période d’amortissement moyenne selon la province","24.7","Saskatchewan",{"$f":"IFERROR(VLOOKUP(A557,Translation!$A:$C,3,FALSE),A557)","v":10},{"$f":"IFERROR(VLOOKUP(B557,Translation!$A:$C,3,FALSE),B557)","v":"T3 2018"},{"$f":"IFERROR(VLOOKUP(C557,Translation!$A:$C,3,FALSE),C557)","v":"PROPRIÉTAIRES-OCCUPANTS, À L’UNITÉ"},{"$f":"IFERROR(VLOOKUP(D557,Translation!$A:$C,3,FALSE),D557)","v":"Saskatchewan"},{"$f":"IFERROR(VLOOKUP(E557,Translation!$A:$C,3,FALSE),E557)","v":24.711538403879473},{"$f":"IFERROR(VLOOKUP(F557,Translation!$A:$C,3,FALSE),F557)","v":"Période d’amortissement moyenne selon la province"},{"$f":"IFERROR(VLOOKUP(G557,Translation!$A:$C,3,FALSE),G557)","v":"24.7"},{"$f":"IFERROR(VLOOKUP(H557,Translation!$A:$C,3,FALSE),H557)","v":"Saskatchewan"}]
[10,"T3 2018","PROPRIÉTAIRES-OCCUPANTS, À L’UNITÉ","Alberta",24.832914422232879,"Période d’amortissement moyenne selon la province","24.8","Alberta",{"$f":"IFERROR(VLOOKUP(A558,Translation!$A:$C,3,FALSE),A558)","v":10},{"$f":"IFERROR(VLOOKUP(B558,Translation!$A:$C,3,FALSE),B558)","v":"T3 2018"},{"$f":"IFERROR(VLOOKUP(C558,Translation!$A:$C,3,FALSE),C558)","v":"PROPRIÉTAIRES-OCCUPANTS, À L’UNITÉ"},{"$f":"IFERROR(VLOOKUP(D558,Translation!$A:$C,3,FALSE),D558)","v":"Alberta"},{"$f":"IFERROR(VLOOKUP(E558,Translation!$A:$C,3,FALSE),E558)","v":24.832914422232879},{"$f":"IFERROR(VLOOKUP(F558,Translation!$A:$C,3,FALSE),F558)","v":"Période d’amortissement moyenne selon la province"},{"$f":"IFERROR(VLOOKUP(G558,Translation!$A:$C,3,FALSE),G558)","v":"24.8"},{"$f":"IFERROR(VLOOKUP(H558,Translation!$A:$C,3,FALSE),H558)","v":"Alberta"}]
[10,"T3 2018","PROPRIÉTAIRES-OCCUPANTS, À L’UNITÉ","Colombie-Britannique",24.819401279401401,"Période d’amortissement moyenne selon la province","24.8","Colombie-Britannique",{"$f":"IFERROR(VLOOKUP(A559,Translation!$A:$C,3,FALSE),A559)","v":10},{"$f":"IFERROR(VLOOKUP(B559,Translation!$A:$C,3,FALSE),B559)","v":"T3 2018"},{"$f":"IFERROR(VLOOKUP(C559,Translation!$A:$C,3,FALSE),C559)","v":"PROPRIÉTAIRES-OCCUPANTS, À L’UNITÉ"},{"$f":"IFERROR(VLOOKUP(D559,Translation!$A:$C,3,FALSE),D559)","v":"Colombie-Britannique"},{"$f":"IFERROR(VLOOKUP(E559,Translation!$A:$C,3,FALSE),E559)","v":24.819401279401401},{"$f":"IFERROR(VLOOKUP(F559,Translation!$A:$C,3,FALSE),F559)","v":"Période d’amortissement moyenne selon la province"},{"$f":"IFERROR(VLOOKUP(G559,Translation!$A:$C,3,FALSE),G559)","v":"24.8"},{"$f":"IFERROR(VLOOKUP(H559,Translation!$A:$C,3,FALSE),H559)","v":"Colombie-Britannique"}]
[10,"T3 2018","PROPRIÉTAIRES-OCCUPANTS, À L’UNITÉ","Territoires",24.835870699467392,"Période d’amortissement moyenne selon la province","24.8","Territoires",{"$f":"IFERROR(VLOOKUP(A560,Translation!$A:$C,3,FALSE),A560)","v":10},{"$f":"IFERROR(VLOOKUP(B560,Translation!$A:$C,3,FALSE),B560)","v":"T3 2018"},{"$f":"IFERROR(VLOOKUP(C560,Translation!$A:$C,3,FALSE),C560)","v":"PROPRIÉTAIRES-OCCUPANTS, À L’UNITÉ"},{"$f":"IFERROR(VLOOKUP(D560,Translation!$A:$C,3,FALSE),D560)","v":"Territoires"},{"$f":"IFERROR(VLOOKUP(E560,Translation!$A:$C,3,FALSE),E560)","v":24.835870699467392},{"$f":"IFERROR(VLOOKUP(F560,Translation!$A:$C,3,FALSE),F560)","v":"Période d’amortissement moyenne selon la province"},{"$f":"IFERROR(VLOOKUP(G560,Translation!$A:$C,3,FALSE),G560)","v":"24.8"},{"$f":"IFERROR(VLOOKUP(H560,Translation!$A:$C,3,FALSE),H560)","v":"Territoires"}]
[10,"T3 2018","ASSURANCE DE PORTEFEUILLE","<= 5",0.18390895096892088,"Prêts hypothécaires assurés au cours de la période selon la période d’amortissement (en années) à l'initiation (%)","0.2"," <= 5",{"$f":"IFERROR(VLOOKUP(A561,Translation!$A:$C,3,FALSE),A561)","v":10},{"$f":"IFERROR(VLOOKUP(B561,Translation!$A:$C,3,FALSE),B561)","v":"T3 2018"},{"$f":"IFERROR(VLOOKUP(C561,Translation!$A:$C,3,FALSE),C561)","v":"ASSURANCE DE PORTEFEUILLE"},{"$f":"IFERROR(VLOOKUP(D561,Translation!$A:$C,3,FALSE),D561)","v":"<= 5"},{"$f":"IFERROR(VLOOKUP(E561,Translation!$A:$C,3,FALSE),E561)","v":0.18390895096892088},{"$f":"IFERROR(VLOOKUP(F561,Translation!$A:$C,3,FALSE),F561)","v":"Prêts hypothécaires assurés au cours de la période selon la période d’amortissement (en années) à l'initiation (%)"},{"$f":"IFERROR(VLOOKUP(G561,Translation!$A:$C,3,FALSE),G561)","v":"0.2"},{"$f":"IFERROR(VLOOKUP(H561,Translation!$A:$C,3,FALSE),H561)","v":" <= 5"}]
[10,"T3 2018","ASSURANCE DE PORTEFEUILLE","> 5 <= 10",2.4554821853390378,"Prêts hypothécaires assurés au cours de la période selon la période d’amortissement (en années) à l'initiation (%)","2.5"," > 5 <= 10",{"$f":"IFERROR(VLOOKUP(A562,Translation!$A:$C,3,FALSE),A562)","v":10},{"$f":"IFERROR(VLOOKUP(B562,Translation!$A:$C,3,FALSE),B562)","v":"T3 2018"},{"$f":"IFERROR(VLOOKUP(C562,Translation!$A:$C,3,FALSE),C562)","v":"ASSURANCE DE PORTEFEUILLE"},{"$f":"IFERROR(VLOOKUP(D562,Translation!$A:$C,3,FALSE),D562)","v":"> 5 <= 10"},{"$f":"IFERROR(VLOOKUP(E562,Translation!$A:$C,3,FALSE),E562)","v":2.4554821853390378},{"$f":"IFERROR(VLOOKUP(F562,Translation!$A:$C,3,FALSE),F562)","v":"Prêts hypothécaires assurés au cours de la période selon la période d’amortissement (en années) à l'initiation (%)"},{"$f":"IFERROR(VLOOKUP(G562,Translation!$A:$C,3,FALSE),G562)","v":"2.5"},{"$f":"IFERROR(VLOOKUP(H562,Translation!$A:$C,3,FALSE),H562)","v":" > 5 <= 10"}]
[10,"T3 2018","ASSURANCE DE PORTEFEUILLE","> 10 <= 15",5.6595752640281187,"Prêts hypothécaires assurés au cours de la période selon la période d’amortissement (en années) à l'initiation (%)","5.7"," > 10 <= 15",{"$f":"IFERROR(VLOOKUP(A563,Translation!$A:$C,3,FALSE),A563)","v":10},{"$f":"IFERROR(VLOOKUP(B563,Translation!$A:$C,3,FALSE),B563)","v":"T3 2018"},{"$f":"IFERROR(VLOOKUP(C563,Translation!$A:$C,3,FALSE),C563)","v":"ASSURANCE DE PORTEFEUILLE"},{"$f":"IFERROR(VLOOKUP(D563,Translation!$A:$C,3,FALSE),D563)","v":"> 10 <= 15"},{"$f":"IFERROR(VLOOKUP(E563,Translation!$A:$C,3,FALSE),E563)","v":5.6595752640281187},{"$f":"IFERROR(VLOOKUP(F563,Translation!$A:$C,3,FALSE),F563)","v":"Prêts hypothécaires assurés au cours de la période selon la période d’amortissement (en années) à l'initiation (%)"},{"$f":"IFERROR(VLOOKUP(G563,Translation!$A:$C,3,FALSE),G563)","v":"5.7"},{"$f":"IFERROR(VLOOKUP(H563,Translation!$A:$C,3,FALSE),H563)","v":" > 10 <= 15"}]
[10,"T3 2018","ASSURANCE DE PORTEFEUILLE","> 15 <= 20",21.516215945581877,"Prêts hypothécaires assurés au cours de la période selon la période d’amortissement (en années) à l'initiation (%)","21.5"," > 15 <= 20",{"$f":"IFERROR(VLOOKUP(A564,Translation!$A:$C,3,FALSE),A564)","v":10},{"$f":"IFERROR(VLOOKUP(B564,Translation!$A:$C,3,FALSE),B564)","v":"T3 2018"},{"$f":"IFERROR(VLOOKUP(C564,Translation!$A:$C,3,FALSE),C564)","v":"ASSURANCE DE PORTEFEUILLE"},{"$f":"IFERROR(VLOOKUP(D564,Translation!$A:$C,3,FALSE),D564)","v":"> 15 <= 20"},{"$f":"IFERROR(VLOOKUP(E564,Translation!$A:$C,3,FALSE),E564)","v":21.516215945581877},{"$f":"IFERROR(VLOOKUP(F564,Translation!$A:$C,3,FALSE),F564)","v":"Prêts hypothécaires assurés au cours de la période selon la période d’amortissement (en années) à l'initiation (%)"},{"$f":"IFERROR(VLOOKUP(G564,Translation!$A:$C,3,FALSE),G564)","v":"21.5"},{"$f":"IFERROR(VLOOKUP(H564,Translation!$A:$C,3,FALSE),H564)","v":" > 15 <= 20"}]
[10,"T3 2018","ASSURANCE DE PORTEFEUILLE","> 20 <= 25",53.971754119003357,"Prêts hypothécaires assurés au cours de la période selon la période d’amortissement (en années) à l'initiation (%)","54.0"," > 20 <= 25",{"$f":"IFERROR(VLOOKUP(A565,Translation!$A:$C,3,FALSE),A565)","v":10},{"$f":"IFERROR(VLOOKUP(B565,Translation!$A:$C,3,FALSE),B565)","v":"T3 2018"},{"$f":"IFERROR(VLOOKUP(C565,Translation!$A:$C,3,FALSE),C565)","v":"ASSURANCE DE PORTEFEUILLE"},{"$f":"IFERROR(VLOOKUP(D565,Translation!$A:$C,3,FALSE),D565)","v":"> 20 <= 25"},{"$f":"IFERROR(VLOOKUP(E565,Translation!$A:$C,3,FALSE),E565)","v":53.971754119003357},{"$f":"IFERROR(VLOOKUP(F565,Translation!$A:$C,3,FALSE),F565)","v":"Prêts hypothécaires assurés au cours de la période selon la période d’amortissement (en années) à l'initiation (%)"},{"$f":"IFERROR(VLOOKUP(G565,Translation!$A:$C,3,FALSE),G565)","v":"54.0"},{"$f":"IFERROR(VLOOKUP(H565,Translation!$A:$C,3,FALSE),H565)","v":" > 20 <= 25"}]
[10,"T3 2018","ASSURANCE DE PORTEFEUILLE","> 25 <= 30",12.097591502905416,"Prêts hypothécaires assurés au cours de la période selon la période d’amortissement (en années) à l'initiation (%)","12.1"," > 25 <= 30",{"$f":"IFERROR(VLOOKUP(A566,Translation!$A:$C,3,FALSE),A566)","v":10},{"$f":"IFERROR(VLOOKUP(B566,Translation!$A:$C,3,FALSE),B566)","v":"T3 2018"},{"$f":"IFERROR(VLOOKUP(C566,Translation!$A:$C,3,FALSE),C566)","v":"ASSURANCE DE PORTEFEUILLE"},{"$f":"IFERROR(VLOOKUP(D566,Translation!$A:$C,3,FALSE),D566)","v":"> 25 <= 30"},{"$f":"IFERROR(VLOOKUP(E566,Translation!$A:$C,3,FALSE),E566)","v":12.097591502905416},{"$f":"IFERROR(VLOOKUP(F566,Translation!$A:$C,3,FALSE),F566)","v":"Prêts hypothécaires assurés au cours de la période selon la période d’amortissement (en années) à l'initiation (%)"},{"$f":"IFERROR(VLOOKUP(G566,Translation!$A:$C,3,FALSE),G566)","v":"12.1"},{"$f":"IFERROR(VLOOKUP(H566,Translation!$A:$C,3,FALSE),H566)","v":" > 25 <= 30"}]
[10,"T3 2018","ASSURANCE DE PORTEFEUILLE","> 30 <= 35",4.1154720321732698,"Prêts hypothécaires assurés au cours de la période selon la période d’amortissement (en années) à l'initiation (%)","4.1"," > 30 <= 35",{"$f":"IFERROR(VLOOKUP(A567,Translation!$A:$C,3,FALSE),A567)","v":10},{"$f":"IFERROR(VLOOKUP(B567,Translation!$A:$C,3,FALSE),B567)","v":"T3 2018"},{"$f":"IFERROR(VLOOKUP(C567,Translation!$A:$C,3,FALSE),C567)","v":"ASSURANCE DE PORTEFEUILLE"},{"$f":"IFERROR(VLOOKUP(D567,Translation!$A:$C,3,FALSE),D567)","v":"> 30 <= 35"},{"$f":"IFERROR(VLOOKUP(E567,Translation!$A:$C,3,FALSE),E567)","v":4.1154720321732698},{"$f":"IFERROR(VLOOKUP(F567,Translation!$A:$C,3,FALSE),F567)","v":"Prêts hypothécaires assurés au cours de la période selon la période d’amortissement (en années) à l'initiation (%)"},{"$f":"IFERROR(VLOOKUP(G567,Translation!$A:$C,3,FALSE),G567)","v":"4.1"},{"$f":"IFERROR(VLOOKUP(H567,Translation!$A:$C,3,FALSE),H567)","v":" > 30 <= 35"}]
[10,"T3 2018","ASSURANCE DE PORTEFEUILLE","Période d’amortissement moyenne",22.27231693398538,"Prêts hypothécaires assurés au cours de la période selon la période d’amortissement (en années) à l'initiation (%)","22.3","Période d’amortissement moyenne",{"$f":"IFERROR(VLOOKUP(A568,Translation!$A:$C,3,FALSE),A568)","v":10},{"$f":"IFERROR(VLOOKUP(B568,Translation!$A:$C,3,FALSE),B568)","v":"T3 2018"},{"$f":"IFERROR(VLOOKUP(C568,Translation!$A:$C,3,FALSE),C568)","v":"ASSURANCE DE PORTEFEUILLE"},{"$f":"IFERROR(VLOOKUP(D568,Translation!$A:$C,3,FALSE),D568)","v":"Période d’amortissement moyenne"},{"$f":"IFERROR(VLOOKUP(E568,Translation!$A:$C,3,FALSE),E568)","v":22.27231693398538},{"$f":"IFERROR(VLOOKUP(F568,Translation!$A:$C,3,FALSE),F568)","v":"Prêts hypothécaires assurés au cours de la période selon la période d’amortissement (en années) à l'initiation (%)"},{"$f":"IFERROR(VLOOKUP(G568,Translation!$A:$C,3,FALSE),G568)","v":"22.3"},{"$f":"IFERROR(VLOOKUP(H568,Translation!$A:$C,3,FALSE),H568)","v":"Période d’amortissement moyenne"}]
[10,"T3 2018","ASSURANCE DE PORTEFEUILLE","Terre-Neuve-et-Labrador",22.401769720149687,"Période d’amortissement moyenne selon la province","22.4","Terre-Neuve-et-Labrador",{"$f":"IFERROR(VLOOKUP(A569,Translation!$A:$C,3,FALSE),A569)","v":10},{"$f":"IFERROR(VLOOKUP(B569,Translation!$A:$C,3,FALSE),B569)","v":"T3 2018"},{"$f":"IFERROR(VLOOKUP(C569,Translation!$A:$C,3,FALSE),C569)","v":"ASSURANCE DE PORTEFEUILLE"},{"$f":"IFERROR(VLOOKUP(D569,Translation!$A:$C,3,FALSE),D569)","v":"Terre-Neuve-et-Labrador"},{"$f":"IFERROR(VLOOKUP(E569,Translation!$A:$C,3,FALSE),E569)","v":22.401769720149687},{"$f":"IFERROR(VLOOKUP(F569,Translation!$A:$C,3,FALSE),F569)","v":"Période d’amortissement moyenne selon la province"},{"$f":"IFERROR(VLOOKUP(G569,Translation!$A:$C,3,FALSE),G569)","v":"22.4"},{"$f":"IFERROR(VLOOKUP(H569,Translation!$A:$C,3,FALSE),H569)","v":"Terre-Neuve-et-Labrador"}]
[10,"T3 2018","ASSURANCE DE PORTEFEUILLE","Nouvelle-Écosse",22.035729378354844,"Période d’amortissement moyenne selon la province","22.0","Nouvelle-Écosse",{"$f":"IFERROR(VLOOKUP(A570,Translation!$A:$C,3,FALSE),A570)","v":10},{"$f":"IFERROR(VLOOKUP(B570,Translation!$A:$C,3,FALSE),B570)","v":"T3 2018"},{"$f":"IFERROR(VLOOKUP(C570,Translation!$A:$C,3,FALSE),C570)","v":"ASSURANCE DE PORTEFEUILLE"},{"$f":"IFERROR(VLOOKUP(D570,Translation!$A:$C,3,FALSE),D570)","v":"Nouvelle-Écosse"},{"$f":"IFERROR(VLOOKUP(E570,Translation!$A:$C,3,FALSE),E570)","v":22.035729378354844},{"$f":"IFERROR(VLOOKUP(F570,Translation!$A:$C,3,FALSE),F570)","v":"Période d’amortissement moyenne selon la province"},{"$f":"IFERROR(VLOOKUP(G570,Translation!$A:$C,3,FALSE),G570)","v":"22.0"},{"$f":"IFERROR(VLOOKUP(H570,Translation!$A:$C,3,FALSE),H570)","v":"Nouvelle-Écosse"}]
[10,"T3 2018","ASSURANCE DE PORTEFEUILLE","Nouveau-Brunswick",18.894620674158286,"Période d’amortissement moyenne selon la province","18.9","Nouveau-Brunswick",{"$f":"IFERROR(VLOOKUP(A571,Translation!$A:$C,3,FALSE),A571)","v":10},{"$f":"IFERROR(VLOOKUP(B571,Translation!$A:$C,3,FALSE),B571)","v":"T3 2018"},{"$f":"IFERROR(VLOOKUP(C571,Translation!$A:$C,3,FALSE),C571)","v":"ASSURANCE DE PORTEFEUILLE"},{"$f":"IFERROR(VLOOKUP(D571,Translation!$A:$C,3,FALSE),D571)","v":"Nouveau-Brunswick"},{"$f":"IFERROR(VLOOKUP(E571,Translation!$A:$C,3,FALSE),E571)","v":18.894620674158286},{"$f":"IFERROR(VLOOKUP(F571,Translation!$A:$C,3,FALSE),F571)","v":"Période d’amortissement moyenne selon la province"},{"$f":"IFERROR(VLOOKUP(G571,Translation!$A:$C,3,FALSE),G571)","v":"18.9"},{"$f":"IFERROR(VLOOKUP(H571,Translation!$A:$C,3,FALSE),H571)","v":"Nouveau-Brunswick"}]
[10,"T3 2018","ASSURANCE DE PORTEFEUILLE","Québec",21.400231025650289,"Période d’amortissement moyenne selon la province","21.4","Québec",{"$f":"IFERROR(VLOOKUP(A572,Translation!$A:$C,3,FALSE),A572)","v":10},{"$f":"IFERROR(VLOOKUP(B572,Translation!$A:$C,3,FALSE),B572)","v":"T3 2018"},{"$f":"IFERROR(VLOOKUP(C572,Translation!$A:$C,3,FALSE),C572)","v":"ASSURANCE DE PORTEFEUILLE"},{"$f":"IFERROR(VLOOKUP(D572,Translation!$A:$C,3,FALSE),D572)","v":"Québec"},{"$f":"IFERROR(VLOOKUP(E572,Translation!$A:$C,3,FALSE),E572)","v":21.400231025650289},{"$f":"IFERROR(VLOOKUP(F572,Translation!$A:$C,3,FALSE),F572)","v":"Période d’amortissement moyenne selon la province"},{"$f":"IFERROR(VLOOKUP(G572,Translation!$A:$C,3,FALSE),G572)","v":"21.4"},{"$f":"IFERROR(VLOOKUP(H572,Translation!$A:$C,3,FALSE),H572)","v":"Québec"}]
[10,"T3 2018","ASSURANCE DE PORTEFEUILLE","Ontario",22.402512104261952,"Période d’amortissement moyenne selon la province","22.4","Ontario",{"$f":"IFERROR(VLOOKUP(A573,Translation!$A:$C,3,FALSE),A573)","v":10},{"$f":"IFERROR(VLOOKUP(B573,Translation!$A:$C,3,FALSE),B573)","v":"T3 2018"},{"$f":"IFERROR(VLOOKUP(C573,Translation!$A:$C,3,FALSE),C573)","v":"ASSURANCE DE PORTEFEUILLE"},{"$f":"IFERROR(VLOOKUP(D573,Translation!$A:$C,3,FALSE),D573)","v":"Ontario"},{"$f":"IFERROR(VLOOKUP(E573,Translation!$A:$C,3,FALSE),E573)","v":22.402512104261952},{"$f":"IFERROR(VLOOKUP(F573,Translation!$A:$C,3,FALSE),F573)","v":"Période d’amortissement moyenne selon la province"},{"$f":"IFERROR(VLOOKUP(G573,Translation!$A:$C,3,FALSE),G573)","v":"22.4"},{"$f":"IFERROR(VLOOKUP(H573,Translation!$A:$C,3,FALSE),H573)","v":"Ontario"}]
[10,"T3 2018","ASSURANCE DE PORTEFEUILLE","Manitoba",22.733293548407445,"Période d’amortissement moyenne selon la province","22.7","Manitoba",{"$f":"IFERROR(VLOOKUP(A574,Translation!$A:$C,3,FALSE),A574)","v":10},{"$f":"IFERROR(VLOOKUP(B574,Translation!$A:$C,3,FALSE),B574)","v":"T3 2018"},{"$f":"IFERROR(VLOOKUP(C574,Translation!$A:$C,3,FALSE),C574)","v":"ASSURANCE DE PORTEFEUILLE"},{"$f":"IFERROR(VLOOKUP(D574,Translation!$A:$C,3,FALSE),D574)","v":"Manitoba"},{"$f":"IFERROR(VLOOKUP(E574,Translation!$A:$C,3,FALSE),E574)","v":22.733293548407445},{"$f":"IFERROR(VLOOKUP(F574,Translation!$A:$C,3,FALSE),F574)","v":"Période d’amortissement moyenne selon la province"},{"$f":"IFERROR(VLOOKUP(G574,Translation!$A:$C,3,FALSE),G574)","v":"22.7"},{"$f":"IFERROR(VLOOKUP(H574,Translation!$A:$C,3,FALSE),H574)","v":"Manitoba"}]
[10,"T3 2018","ASSURANCE DE PORTEFEUILLE","Saskatchewan",19.437953798980512,"Période d’amortissement moyenne selon la province","19.4","Saskatchewan",{"$f":"IFERROR(VLOOKUP(A575,Translation!$A:$C,3,FALSE),A575)","v":10},{"$f":"IFERROR(VLOOKUP(B575,Translation!$A:$C,3,FALSE),B575)","v":"T3 2018"},{"$f":"IFERROR(VLOOKUP(C575,Translation!$A:$C,3,FALSE),C575)","v":"ASSURANCE DE PORTEFEUILLE"},{"$f":"IFERROR(VLOOKUP(D575,Translation!$A:$C,3,FALSE),D575)","v":"Saskatchewan"},{"$f":"IFERROR(VLOOKUP(E575,Translation!$A:$C,3,FALSE),E575)","v":19.437953798980512},{"$f":"IFERROR(VLOOKUP(F575,Translation!$A:$C,3,FALSE),F575)","v":"Période d’amortissement moyenne selon la province"},{"$f":"IFERROR(VLOOKUP(G575,Translation!$A:$C,3,FALSE),G575)","v":"19.4"},{"$f":"IFERROR(VLOOKUP(H575,Translation!$A:$C,3,FALSE),H575)","v":"Saskatchewan"}]
[10,"T3 2018","ASSURANCE DE PORTEFEUILLE","Alberta",21.371518131180263,"Période d’amortissement moyenne selon la province","21.4","Alberta",{"$f":"IFERROR(VLOOKUP(A576,Translation!$A:$C,3,FALSE),A576)","v":10},{"$f":"IFERROR(VLOOKUP(B576,Translation!$A:$C,3,FALSE),B576)","v":"T3 2018"},{"$f":"IFERROR(VLOOKUP(C576,Translation!$A:$C,3,FALSE),C576)","v":"ASSURANCE DE PORTEFEUILLE"},{"$f":"IFERROR(VLOOKUP(D576,Translation!$A:$C,3,FALSE),D576)","v":"Alberta"},{"$f":"IFERROR(VLOOKUP(E576,Translation!$A:$C,3,FALSE),E576)","v":21.371518131180263},{"$f":"IFERROR(VLOOKUP(F576,Translation!$A:$C,3,FALSE),F576)","v":"Période d’amortissement moyenne selon la province"},{"$f":"IFERROR(VLOOKUP(G576,Translation!$A:$C,3,FALSE),G576)","v":"21.4"},{"$f":"IFERROR(VLOOKUP(H576,Translation!$A:$C,3,FALSE),H576)","v":"Alberta"}]
[10,"T3 2018","ASSURANCE DE PORTEFEUILLE","Colombie-Britannique",22.908989574517118,"Période d’amortissement moyenne selon la province","22.9","Colombie-Britannique",{"$f":"IFERROR(VLOOKUP(A577,Translation!$A:$C,3,FALSE),A577)","v":10},{"$f":"IFERROR(VLOOKUP(B577,Translation!$A:$C,3,FALSE),B577)","v":"T3 2018"},{"$f":"IFERROR(VLOOKUP(C577,Translation!$A:$C,3,FALSE),C577)","v":"ASSURANCE DE PORTEFEUILLE"},{"$f":"IFERROR(VLOOKUP(D577,Translation!$A:$C,3,FALSE),D577)","v":"Colombie-Britannique"},{"$f":"IFERROR(VLOOKUP(E577,Translation!$A:$C,3,FALSE),E577)","v":22.908989574517118},{"$f":"IFERROR(VLOOKUP(F577,Translation!$A:$C,3,FALSE),F577)","v":"Période d’amortissement moyenne selon la province"},{"$f":"IFERROR(VLOOKUP(G577,Translation!$A:$C,3,FALSE),G577)","v":"22.9"},{"$f":"IFERROR(VLOOKUP(H577,Translation!$A:$C,3,FALSE),H577)","v":"Colombie-Britannique"}]
[28,"T3 2018","IMMEUBLES COLLECTIFS RÉSIDENTIELS","> 15 <= 20",0.9534182448713282,"Prêts hypothécaires assurés au cours de la période selon la période d’amortissement (en années) à l'initiation (%)","1.0"," > 15 <= 20",{"$f":"IFERROR(VLOOKUP(A578,Translation!$A:$C,3,FALSE),A578)","v":28},{"$f":"IFERROR(VLOOKUP(B578,Translation!$A:$C,3,FALSE),B578)","v":"T3 2018"},{"$f":"IFERROR(VLOOKUP(C578,Translation!$A:$C,3,FALSE),C578)","v":"IMMEUBLES COLLECTIFS RÉSIDENTIELS"},{"$f":"IFERROR(VLOOKUP(D578,Translation!$A:$C,3,FALSE),D578)","v":"> 15 <= 20"},{"$f":"IFERROR(VLOOKUP(E578,Translation!$A:$C,3,FALSE),E578)","v":0.9534182448713282},{"$f":"IFERROR(VLOOKUP(F578,Translation!$A:$C,3,FALSE),F578)","v":"Prêts hypothécaires assurés au cours de la période selon la période d’amortissement (en années) à l'initiation (%)"},{"$f":"IFERROR(VLOOKUP(G578,Translation!$A:$C,3,FALSE),G578)","v":"1.0"},{"$f":"IFERROR(VLOOKUP(H578,Translation!$A:$C,3,FALSE),H578)","v":" > 15 <= 20"}]
[28,"T3 2018","IMMEUBLES COLLECTIFS RÉSIDENTIELS","> 20 <= 25",28.376891078094928,"Prêts hypothécaires assurés au cours de la période selon la période d’amortissement (en années) à l'initiation (%)","28.4"," > 20 <= 25",{"$f":"IFERROR(VLOOKUP(A579,Translation!$A:$C,3,FALSE),A579)","v":28},{"$f":"IFERROR(VLOOKUP(B579,Translation!$A:$C,3,FALSE),B579)","v":"T3 2018"},{"$f":"IFERROR(VLOOKUP(C579,Translation!$A:$C,3,FALSE),C579)","v":"IMMEUBLES COLLECTIFS RÉSIDENTIELS"},{"$f":"IFERROR(VLOOKUP(D579,Translation!$A:$C,3,FALSE),D579)","v":"> 20 <= 25"},{"$f":"IFERROR(VLOOKUP(E579,Translation!$A:$C,3,FALSE),E579)","v":28.376891078094928},{"$f":"IFERROR(VLOOKUP(F579,Translation!$A:$C,3,FALSE),F579)","v":"Prêts hypothécaires assurés au cours de la période selon la période d’amortissement (en années) à l'initiation (%)"},{"$f":"IFERROR(VLOOKUP(G579,Translation!$A:$C,3,FALSE),G579)","v":"28.4"},{"$f":"IFERROR(VLOOKUP(H579,Translation!$A:$C,3,FALSE),H579)","v":" > 20 <= 25"}]
[28,"T3 2018","IMMEUBLES COLLECTIFS RÉSIDENTIELS","> 25 <= 30",25.646540960097465,"Prêts hypothécaires assurés au cours de la période selon la période d’amortissement (en années) à l'initiation (%)","25.6"," > 25 <= 30",{"$f":"IFERROR(VLOOKUP(A580,Translation!$A:$C,3,FALSE),A580)","v":28},{"$f":"IFERROR(VLOOKUP(B580,Translation!$A:$C,3,FALSE),B580)","v":"T3 2018"},{"$f":"IFERROR(VLOOKUP(C580,Translation!$A:$C,3,FALSE),C580)","v":"IMMEUBLES COLLECTIFS RÉSIDENTIELS"},{"$f":"IFERROR(VLOOKUP(D580,Translation!$A:$C,3,FALSE),D580)","v":"> 25 <= 30"},{"$f":"IFERROR(VLOOKUP(E580,Translation!$A:$C,3,FALSE),E580)","v":25.646540960097465},{"$f":"IFERROR(VLOOKUP(F580,Translation!$A:$C,3,FALSE),F580)","v":"Prêts hypothécaires assurés au cours de la période selon la période d’amortissement (en années) à l'initiation (%)"},{"$f":"IFERROR(VLOOKUP(G580,Translation!$A:$C,3,FALSE),G580)","v":"25.6"},{"$f":"IFERROR(VLOOKUP(H580,Translation!$A:$C,3,FALSE),H580)","v":" > 25 <= 30"}]
[28,"T3 2018","IMMEUBLES COLLECTIFS RÉSIDENTIELS","> 30 <= 35",21.360348198616482,"Prêts hypothécaires assurés au cours de la période selon la période d’amortissement (en années) à l'initiation (%)","21.4"," > 30 <= 35",{"$f":"IFERROR(VLOOKUP(A581,Translation!$A:$C,3,FALSE),A581)","v":28},{"$f":"IFERROR(VLOOKUP(B581,Translation!$A:$C,3,FALSE),B581)","v":"T3 2018"},{"$f":"IFERROR(VLOOKUP(C581,Translation!$A:$C,3,FALSE),C581)","v":"IMMEUBLES COLLECTIFS RÉSIDENTIELS"},{"$f":"IFERROR(VLOOKUP(D581,Translation!$A:$C,3,FALSE),D581)","v":"> 30 <= 35"},{"$f":"IFERROR(VLOOKUP(E581,Translation!$A:$C,3,FALSE),E581)","v":21.360348198616482},{"$f":"IFERROR(VLOOKUP(F581,Translation!$A:$C,3,FALSE),F581)","v":"Prêts hypothécaires assurés au cours de la période selon la période d’amortissement (en années) à l'initiation (%)"},{"$f":"IFERROR(VLOOKUP(G581,Translation!$A:$C,3,FALSE),G581)","v":"21.4"},{"$f":"IFERROR(VLOOKUP(H581,Translation!$A:$C,3,FALSE),H581)","v":" > 30 <= 35"}]
[28,"T3 2018","IMMEUBLES COLLECTIFS RÉSIDENTIELS","> 35",23.662801518319799,"Prêts hypothécaires assurés au cours de la période selon la période d’amortissement (en années) à l'initiation (%)","23.7"," > 35",{"$f":"IFERROR(VLOOKUP(A582,Translation!$A:$C,3,FALSE),A582)","v":28},{"$f":"IFERROR(VLOOKUP(B582,Translation!$A:$C,3,FALSE),B582)","v":"T3 2018"},{"$f":"IFERROR(VLOOKUP(C582,Translation!$A:$C,3,FALSE),C582)","v":"IMMEUBLES COLLECTIFS RÉSIDENTIELS"},{"$f":"IFERROR(VLOOKUP(D582,Translation!$A:$C,3,FALSE),D582)","v":"> 35"},{"$f":"IFERROR(VLOOKUP(E582,Translation!$A:$C,3,FALSE),E582)","v":23.662801518319799},{"$f":"IFERROR(VLOOKUP(F582,Translation!$A:$C,3,FALSE),F582)","v":"Prêts hypothécaires assurés au cours de la période selon la période d’amortissement (en années) à l'initiation (%)"},{"$f":"IFERROR(VLOOKUP(G582,Translation!$A:$C,3,FALSE),G582)","v":"23.7"},{"$f":"IFERROR(VLOOKUP(H582,Translation!$A:$C,3,FALSE),H582)","v":" > 35"}]
[28,"T3 2018","IMMEUBLES COLLECTIFS RÉSIDENTIELS","Période d’amortissement moyenne",32.343902436546848,"Prêts hypothécaires assurés au cours de la période selon la période d’amortissement (en années) à l'initiation (%)","32.3","Période d’amortissement moyenne",{"$f":"IFERROR(VLOOKUP(A583,Translation!$A:$C,3,FALSE),A583)","v":28},{"$f":"IFERROR(VLOOKUP(B583,Translation!$A:$C,3,FALSE),B583)","v":"T3 2018"},{"$f":"IFERROR(VLOOKUP(C583,Translation!$A:$C,3,FALSE),C583)","v":"IMMEUBLES COLLECTIFS RÉSIDENTIELS"},{"$f":"IFERROR(VLOOKUP(D583,Translation!$A:$C,3,FALSE),D583)","v":"Période d’amortissement moyenne"},{"$f":"IFERROR(VLOOKUP(E583,Translation!$A:$C,3,FALSE),E583)","v":32.343902436546848},{"$f":"IFERROR(VLOOKUP(F583,Translation!$A:$C,3,FALSE),F583)","v":"Prêts hypothécaires assurés au cours de la période selon la période d’amortissement (en années) à l'initiation (%)"},{"$f":"IFERROR(VLOOKUP(G583,Translation!$A:$C,3,FALSE),G583)","v":"32.3"},{"$f":"IFERROR(VLOOKUP(H583,Translation!$A:$C,3,FALSE),H583)","v":"Période d’amortissement moyenne"}]
[28,"T3 2018","IMMEUBLES COLLECTIFS RÉSIDENTIELS","Terre-Neuve-et-Labrador",26.426886186459704,"Période d’amortissement moyenne selon la province","26.4","Terre-Neuve-et-Labrador",{"$f":"IFERROR(VLOOKUP(A584,Translation!$A:$C,3,FALSE),A584)","v":28},{"$f":"IFERROR(VLOOKUP(B584,Translation!$A:$C,3,FALSE),B584)","v":"T3 2018"},{"$f":"IFERROR(VLOOKUP(C584,Translation!$A:$C,3,FALSE),C584)","v":"IMMEUBLES COLLECTIFS RÉSIDENTIELS"},{"$f":"IFERROR(VLOOKUP(D584,Translation!$A:$C,3,FALSE),D584)","v":"Terre-Neuve-et-Labrador"},{"$f":"IFERROR(VLOOKUP(E584,Translation!$A:$C,3,FALSE),E584)","v":26.426886186459704},{"$f":"IFERROR(VLOOKUP(F584,Translation!$A:$C,3,FALSE),F584)","v":"Période d’amortissement moyenne selon la province"},{"$f":"IFERROR(VLOOKUP(G584,Translation!$A:$C,3,FALSE),G584)","v":"26.4"},{"$f":"IFERROR(VLOOKUP(H584,Translation!$A:$C,3,FALSE),H584)","v":"Terre-Neuve-et-Labrador"}]
[28,"T3 2018","IMMEUBLES COLLECTIFS RÉSIDENTIELS","Île-du-Prince-Édouard",27.116946905359697,"Période d’amortissement moyenne selon la province","27.1","Île-du-Prince-Édouard",{"$f":"IFERROR(VLOOKUP(A585,Translation!$A:$C,3,FALSE),A585)","v":28},{"$f":"IFERROR(VLOOKUP(B585,Translation!$A:$C,3,FALSE),B585)","v":"T3 2018"},{"$f":"IFERROR(VLOOKUP(C585,Translation!$A:$C,3,FALSE),C585)","v":"IMMEUBLES COLLECTIFS RÉSIDENTIELS"},{"$f":"IFERROR(VLOOKUP(D585,Translation!$A:$C,3,FALSE),D585)","v":"Île-du-Prince-Édouard"},{"$f":"IFERROR(VLOOKUP(E585,Translation!$A:$C,3,FALSE),E585)","v":27.116946905359697},{"$f":"IFERROR(VLOOKUP(F585,Translation!$A:$C,3,FALSE),F585)","v":"Période d’amortissement moyenne selon la province"},{"$f":"IFERROR(VLOOKUP(G585,Translation!$A:$C,3,FALSE),G585)","v":"27.1"},{"$f":"IFERROR(VLOOKUP(H585,Translation!$A:$C,3,FALSE),H585)","v":"Île-du-Prince-Édouard"}]
[28,"T3 2018","IMMEUBLES COLLECTIFS RÉSIDENTIELS","Nouvelle-Écosse",31.952174599857742,"Période d’amortissement moyenne selon la province","32.0","Nouvelle-Écosse",{"$f":"IFERROR(VLOOKUP(A586,Translation!$A:$C,3,FALSE),A586)","v":28},{"$f":"IFERROR(VLOOKUP(B586,Translation!$A:$C,3,FALSE),B586)","v":"T3 2018"},{"$f":"IFERROR(VLOOKUP(C586,Translation!$A:$C,3,FALSE),C586)","v":"IMMEUBLES COLLECTIFS RÉSIDENTIELS"},{"$f":"IFERROR(VLOOKUP(D586,Translation!$A:$C,3,FALSE),D586)","v":"Nouvelle-Écosse"},{"$f":"IFERROR(VLOOKUP(E586,Translation!$A:$C,3,FALSE),E586)","v":31.952174599857742},{"$f":"IFERROR(VLOOKUP(F586,Translation!$A:$C,3,FALSE),F586)","v":"Période d’amortissement moyenne selon la province"},{"$f":"IFERROR(VLOOKUP(G586,Translation!$A:$C,3,FALSE),G586)","v":"32.0"},{"$f":"IFERROR(VLOOKUP(H586,Translation!$A:$C,3,FALSE),H586)","v":"Nouvelle-Écosse"}]
[28,"T3 2018","IMMEUBLES COLLECTIFS RÉSIDENTIELS","Nouveau-Brunswick",30.897997690828301,"Période d’amortissement moyenne selon la province","30.9","Nouveau-Brunswick",{"$f":"IFERROR(VLOOKUP(A587,Translation!$A:$C,3,FALSE),A587)","v":28},{"$f":"IFERROR(VLOOKUP(B587,Translation!$A:$C,3,FALSE),B587)","v":"T3 2018"},{"$f":"IFERROR(VLOOKUP(C587,Translation!$A:$C,3,FALSE),C587)","v":"IMMEUBLES COLLECTIFS RÉSIDENTIELS"},{"$f":"IFERROR(VLOOKUP(D587,Translation!$A:$C,3,FALSE),D587)","v":"Nouveau-Brunswick"},{"$f":"IFERROR(VLOOKUP(E587,Translation!$A:$C,3,FALSE),E587)","v":30.897997690828301},{"$f":"IFERROR(VLOOKUP(F587,Translation!$A:$C,3,FALSE),F587)","v":"Période d’amortissement moyenne selon la province"},{"$f":"IFERROR(VLOOKUP(G587,Translation!$A:$C,3,FALSE),G587)","v":"30.9"},{"$f":"IFERROR(VLOOKUP(H587,Translation!$A:$C,3,FALSE),H587)","v":"Nouveau-Brunswick"}]
[28,"T3 2018","IMMEUBLES COLLECTIFS RÉSIDENTIELS","Québec",33.163011090266075,"Période d’amortissement moyenne selon la province","33.2","Québec",{"$f":"IFERROR(VLOOKUP(A588,Translation!$A:$C,3,FALSE),A588)","v":28},{"$f":"IFERROR(VLOOKUP(B588,Translation!$A:$C,3,FALSE),B588)","v":"T3 2018"},{"$f":"IFERROR(VLOOKUP(C588,Translation!$A:$C,3,FALSE),C588)","v":"IMMEUBLES COLLECTIFS RÉSIDENTIELS"},{"$f":"IFERROR(VLOOKUP(D588,Translation!$A:$C,3,FALSE),D588)","v":"Québec"},{"$f":"IFERROR(VLOOKUP(E588,Translation!$A:$C,3,FALSE),E588)","v":33.163011090266075},{"$f":"IFERROR(VLOOKUP(F588,Translation!$A:$C,3,FALSE),F588)","v":"Période d’amortissement moyenne selon la province"},{"$f":"IFERROR(VLOOKUP(G588,Translation!$A:$C,3,FALSE),G588)","v":"33.2"},{"$f":"IFERROR(VLOOKUP(H588,Translation!$A:$C,3,FALSE),H588)","v":"Québec"}]
[28,"T3 2018","IMMEUBLES COLLECTIFS RÉSIDENTIELS","Ontario",31.601298097748661,"Période d’amortissement moyenne selon la province","31.6","Ontario",{"$f":"IFERROR(VLOOKUP(A589,Translation!$A:$C,3,FALSE),A589)","v":28},{"$f":"IFERROR(VLOOKUP(B589,Translation!$A:$C,3,FALSE),B589)","v":"T3 2018"},{"$f":"IFERROR(VLOOKUP(C589,Translation!$A:$C,3,FALSE),C589)","v":"IMMEUBLES COLLECTIFS RÉSIDENTIELS"},{"$f":"IFERROR(VLOOKUP(D589,Translation!$A:$C,3,FALSE),D589)","v":"Ontario"},{"$f":"IFERROR(VLOOKUP(E589,Translation!$A:$C,3,FALSE),E589)","v":31.601298097748661},{"$f":"IFERROR(VLOOKUP(F589,Translation!$A:$C,3,FALSE),F589)","v":"Période d’amortissement moyenne selon la province"},{"$f":"IFERROR(VLOOKUP(G589,Translation!$A:$C,3,FALSE),G589)","v":"31.6"},{"$f":"IFERROR(VLOOKUP(H589,Translation!$A:$C,3,FALSE),H589)","v":"Ontario"}]
[28,"T3 2018","IMMEUBLES COLLECTIFS RÉSIDENTIELS","Manitoba",34.542546648219435,"Période d’amortissement moyenne selon la province","34.5","Manitoba",{"$f":"IFERROR(VLOOKUP(A590,Translation!$A:$C,3,FALSE),A590)","v":28},{"$f":"IFERROR(VLOOKUP(B590,Translation!$A:$C,3,FALSE),B590)","v":"T3 2018"},{"$f":"IFERROR(VLOOKUP(C590,Translation!$A:$C,3,FALSE),C590)","v":"IMMEUBLES COLLECTIFS RÉSIDENTIELS"},{"$f":"IFERROR(VLOOKUP(D590,Translation!$A:$C,3,FALSE),D590)","v":"Manitoba"},{"$f":"IFERROR(VLOOKUP(E590,Translation!$A:$C,3,FALSE),E590)","v":34.542546648219435},{"$f":"IFERROR(VLOOKUP(F590,Translation!$A:$C,3,FALSE),F590)","v":"Période d’amortissement moyenne selon la province"},{"$f":"IFERROR(VLOOKUP(G590,Translation!$A:$C,3,FALSE),G590)","v":"34.5"},{"$f":"IFERROR(VLOOKUP(H590,Translation!$A:$C,3,FALSE),H590)","v":"Manitoba"}]
[28,"T3 2018","IMMEUBLES COLLECTIFS RÉSIDENTIELS","Saskatchewan",38.220784970207504,"Période d’amortissement moyenne selon la province","38.2","Saskatchewan",{"$f":"IFERROR(VLOOKUP(A591,Translation!$A:$C,3,FALSE),A591)","v":28},{"$f":"IFERROR(VLOOKUP(B591,Translation!$A:$C,3,FALSE),B591)","v":"T3 2018"},{"$f":"IFERROR(VLOOKUP(C591,Translation!$A:$C,3,FALSE),C591)","v":"IMMEUBLES COLLECTIFS RÉSIDENTIELS"},{"$f":"IFERROR(VLOOKUP(D591,Translation!$A:$C,3,FALSE),D591)","v":"Saskatchewan"},{"$f":"IFERROR(VLOOKUP(E591,Translation!$A:$C,3,FALSE),E591)","v":38.220784970207504},{"$f":"IFERROR(VLOOKUP(F591,Translation!$A:$C,3,FALSE),F591)","v":"Période d’amortissement moyenne selon la province"},{"$f":"IFERROR(VLOOKUP(G591,Translation!$A:$C,3,FALSE),G591)","v":"38.2"},{"$f":"IFERROR(VLOOKUP(H591,Translation!$A:$C,3,FALSE),H591)","v":"Saskatchewan"}]
[28,"T3 2018","IMMEUBLES COLLECTIFS RÉSIDENTIELS","Alberta",32.644523298046281,"Période d’amortissement moyenne selon la province","32.6","Alberta",{"$f":"IFERROR(VLOOKUP(A592,Translation!$A:$C,3,FALSE),A592)","v":28},{"$f":"IFERROR(VLOOKUP(B592,Translation!$A:$C,3,FALSE),B592)","v":"T3 2018"},{"$f":"IFERROR(VLOOKUP(C592,Translation!$A:$C,3,FALSE),C592)","v":"IMMEUBLES COLLECTIFS RÉSIDENTIELS"},{"$f":"IFERROR(VLOOKUP(D592,Translation!$A:$C,3,FALSE),D592)","v":"Alberta"},{"$f":"IFERROR(VLOOKUP(E592,Translation!$A:$C,3,FALSE),E592)","v":32.644523298046281},{"$f":"IFERROR(VLOOKUP(F592,Translation!$A:$C,3,FALSE),F592)","v":"Période d’amortissement moyenne selon la province"},{"$f":"IFERROR(VLOOKUP(G592,Translation!$A:$C,3,FALSE),G592)","v":"32.6"},{"$f":"IFERROR(VLOOKUP(H592,Translation!$A:$C,3,FALSE),H592)","v":"Alberta"}]
[28,"T3 2018","IMMEUBLES COLLECTIFS RÉSIDENTIELS","Colombie-Britannique",33.074235119025559,"Période d’amortissement moyenne selon la province","33.1","Colombie-Britannique",{"$f":"IFERROR(VLOOKUP(A593,Translation!$A:$C,3,FALSE),A593)","v":28},{"$f":"IFERROR(VLOOKUP(B593,Translation!$A:$C,3,FALSE),B593)","v":"T3 2018"},{"$f":"IFERROR(VLOOKUP(C593,Translation!$A:$C,3,FALSE),C593)","v":"IMMEUBLES COLLECTIFS RÉSIDENTIELS"},{"$f":"IFERROR(VLOOKUP(D593,Translation!$A:$C,3,FALSE),D593)","v":"Colombie-Britannique"},{"$f":"IFERROR(VLOOKUP(E593,Translation!$A:$C,3,FALSE),E593)","v":33.074235119025559},{"$f":"IFERROR(VLOOKUP(F593,Translation!$A:$C,3,FALSE),F593)","v":"Période d’amortissement moyenne selon la province"},{"$f":"IFERROR(VLOOKUP(G593,Translation!$A:$C,3,FALSE),G593)","v":"33.1"},{"$f":"IFERROR(VLOOKUP(H593,Translation!$A:$C,3,FALSE),H593)","v":"Colombie-Britannique"}]
[28,"T3 2018","IMMEUBLES COLLECTIFS RÉSIDENTIELS","Territoires",24.999999999999996,"Période d’amortissement moyenne selon la province","25.0","Territoires",{"$f":"IFERROR(VLOOKUP(A594,Translation!$A:$C,3,FALSE),A594)","v":28},{"$f":"IFERROR(VLOOKUP(B594,Translation!$A:$C,3,FALSE),B594)","v":"T3 2018"},{"$f":"IFERROR(VLOOKUP(C594,Translation!$A:$C,3,FALSE),C594)","v":"IMMEUBLES COLLECTIFS RÉSIDENTIELS"},{"$f":"IFERROR(VLOOKUP(D594,Translation!$A:$C,3,FALSE),D594)","v":"Territoires"},{"$f":"IFERROR(VLOOKUP(E594,Translation!$A:$C,3,FALSE),E594)","v":24.999999999999996},{"$f":"IFERROR(VLOOKUP(F594,Translation!$A:$C,3,FALSE),F594)","v":"Période d’amortissement moyenne selon la province"},{"$f":"IFERROR(VLOOKUP(G594,Translation!$A:$C,3,FALSE),G594)","v":"25.0"},{"$f":"IFERROR(VLOOKUP(H594,Translation!$A:$C,3,FALSE),H594)","v":"Territoires"}]
[10,"T2 2018","PROPRIÉTAIRES-OCCUPANTS, À L’UNITÉ","<= 5",6.1802365899019133E-3,"Prêts hypothécaires assurés au cours de la période selon la période d’amortissement (en années) à l'initiation (%)","0.0"," <= 5",{"$f":"IFERROR(VLOOKUP(A595,Translation!$A:$C,3,FALSE),A595)","v":10},{"$f":"IFERROR(VLOOKUP(B595,Translation!$A:$C,3,FALSE),B595)","v":"T2 2018"},{"$f":"IFERROR(VLOOKUP(C595,Translation!$A:$C,3,FALSE),C595)","v":"PROPRIÉTAIRES-OCCUPANTS, À L’UNITÉ"},{"$f":"IFERROR(VLOOKUP(D595,Translation!$A:$C,3,FALSE),D595)","v":"<= 5"},{"$f":"IFERROR(VLOOKUP(E595,Translation!$A:$C,3,FALSE),E595)","v":6.1802365899019133E-3},{"$f":"IFERROR(VLOOKUP(F595,Translation!$A:$C,3,FALSE),F595)","v":"Prêts hypothécaires assurés au cours de la période selon la période d’amortissement (en années) à l'initiation (%)"},{"$f":"IFERROR(VLOOKUP(G595,Translation!$A:$C,3,FALSE),G595)","v":"0.0"},{"$f":"IFERROR(VLOOKUP(H595,Translation!$A:$C,3,FALSE),H595)","v":" <= 5"}]
[10,"T2 2018","PROPRIÉTAIRES-OCCUPANTS, À L’UNITÉ","> 5 <= 10",3.8758840588825991E-2,"Prêts hypothécaires assurés au cours de la période selon la période d’amortissement (en années) à l'initiation (%)","0.0"," > 5 <= 10",{"$f":"IFERROR(VLOOKUP(A596,Translation!$A:$C,3,FALSE),A596)","v":10},{"$f":"IFERROR(VLOOKUP(B596,Translation!$A:$C,3,FALSE),B596)","v":"T2 2018"},{"$f":"IFERROR(VLOOKUP(C596,Translation!$A:$C,3,FALSE),C596)","v":"PROPRIÉTAIRES-OCCUPANTS, À L’UNITÉ"},{"$f":"IFERROR(VLOOKUP(D596,Translation!$A:$C,3,FALSE),D596)","v":"> 5 <= 10"},{"$f":"IFERROR(VLOOKUP(E596,Translation!$A:$C,3,FALSE),E596)","v":3.8758840588825991E-2},{"$f":"IFERROR(VLOOKUP(F596,Translation!$A:$C,3,FALSE),F596)","v":"Prêts hypothécaires assurés au cours de la période selon la période d’amortissement (en années) à l'initiation (%)"},{"$f":"IFERROR(VLOOKUP(G596,Translation!$A:$C,3,FALSE),G596)","v":"0.0"},{"$f":"IFERROR(VLOOKUP(H596,Translation!$A:$C,3,FALSE),H596)","v":" > 5 <= 10"}]
[10,"T2 2018","PROPRIÉTAIRES-OCCUPANTS, À L’UNITÉ","> 10 <= 15",0.20274943476209087,"Prêts hypothécaires assurés au cours de la période selon la période d’amortissement (en années) à l'initiation (%)","0.2"," > 10 <= 15",{"$f":"IFERROR(VLOOKUP(A597,Translation!$A:$C,3,FALSE),A597)","v":10},{"$f":"IFERROR(VLOOKUP(B597,Translation!$A:$C,3,FALSE),B597)","v":"T2 2018"},{"$f":"IFERROR(VLOOKUP(C597,Translation!$A:$C,3,FALSE),C597)","v":"PROPRIÉTAIRES-OCCUPANTS, À L’UNITÉ"},{"$f":"IFERROR(VLOOKUP(D597,Translation!$A:$C,3,FALSE),D597)","v":"> 10 <= 15"},{"$f":"IFERROR(VLOOKUP(E597,Translation!$A:$C,3,FALSE),E597)","v":0.20274943476209087},{"$f":"IFERROR(VLOOKUP(F597,Translation!$A:$C,3,FALSE),F597)","v":"Prêts hypothécaires assurés au cours de la période selon la période d’amortissement (en années) à l'initiation (%)"},{"$f":"IFERROR(VLOOKUP(G597,Translation!$A:$C,3,FALSE),G597)","v":"0.2"},{"$f":"IFERROR(VLOOKUP(H597,Translation!$A:$C,3,FALSE),H597)","v":" > 10 <= 15"}]
[10,"T2 2018","PROPRIÉTAIRES-OCCUPANTS, À L’UNITÉ","> 15 <= 20",0.77241243421479056,"Prêts hypothécaires assurés au cours de la période selon la période d’amortissement (en années) à l'initiation (%)","0.8"," > 15 <= 20",{"$f":"IFERROR(VLOOKUP(A598,Translation!$A:$C,3,FALSE),A598)","v":10},{"$f":"IFERROR(VLOOKUP(B598,Translation!$A:$C,3,FALSE),B598)","v":"T2 2018"},{"$f":"IFERROR(VLOOKUP(C598,Translation!$A:$C,3,FALSE),C598)","v":"PROPRIÉTAIRES-OCCUPANTS, À L’UNITÉ"},{"$f":"IFERROR(VLOOKUP(D598,Translation!$A:$C,3,FALSE),D598)","v":"> 15 <= 20"},{"$f":"IFERROR(VLOOKUP(E598,Translation!$A:$C,3,FALSE),E598)","v":0.77241243421479056},{"$f":"IFERROR(VLOOKUP(F598,Translation!$A:$C,3,FALSE),F598)","v":"Prêts hypothécaires assurés au cours de la période selon la période d’amortissement (en années) à l'initiation (%)"},{"$f":"IFERROR(VLOOKUP(G598,Translation!$A:$C,3,FALSE),G598)","v":"0.8"},{"$f":"IFERROR(VLOOKUP(H598,Translation!$A:$C,3,FALSE),H598)","v":" > 15 <= 20"}]
[10,"T2 2018","PROPRIÉTAIRES-OCCUPANTS, À L’UNITÉ","> 20 <= 25",98.973836707985498,"Prêts hypothécaires assurés au cours de la période selon la période d’amortissement (en années) à l'initiation (%)","99.0"," > 20 <= 25",{"$f":"IFERROR(VLOOKUP(A599,Translation!$A:$C,3,FALSE),A599)","v":10},{"$f":"IFERROR(VLOOKUP(B599,Translation!$A:$C,3,FALSE),B599)","v":"T2 2018"},{"$f":"IFERROR(VLOOKUP(C599,Translation!$A:$C,3,FALSE),C599)","v":"PROPRIÉTAIRES-OCCUPANTS, À L’UNITÉ"},{"$f":"IFERROR(VLOOKUP(D599,Translation!$A:$C,3,FALSE),D599)","v":"> 20 <= 25"},{"$f":"IFERROR(VLOOKUP(E599,Translation!$A:$C,3,FALSE),E599)","v":98.973836707985498},{"$f":"IFERROR(VLOOKUP(F599,Translation!$A:$C,3,FALSE),F599)","v":"Prêts hypothécaires assurés au cours de la période selon la période d’amortissement (en années) à l'initiation (%)"},{"$f":"IFERROR(VLOOKUP(G599,Translation!$A:$C,3,FALSE),G599)","v":"99.0"},{"$f":"IFERROR(VLOOKUP(H599,Translation!$A:$C,3,FALSE),H599)","v":" > 20 <= 25"}]
[10,"T2 2018","PROPRIÉTAIRES-OCCUPANTS, À L’UNITÉ","> 25 <= 30",6.0623458588955088E-3,"Prêts hypothécaires assurés au cours de la période selon la période d’amortissement (en années) à l'initiation (%)","0.0"," > 25 <= 30",{"$f":"IFERROR(VLOOKUP(A600,Translation!$A:$C,3,FALSE),A600)","v":10},{"$f":"IFERROR(VLOOKUP(B600,Translation!$A:$C,3,FALSE),B600)","v":"T2 2018"},{"$f":"IFERROR(VLOOKUP(C600,Translation!$A:$C,3,FALSE),C600)","v":"PROPRIÉTAIRES-OCCUPANTS, À L’UNITÉ"},{"$f":"IFERROR(VLOOKUP(D600,Translation!$A:$C,3,FALSE),D600)","v":"> 25 <= 30"},{"$f":"IFERROR(VLOOKUP(E600,Translation!$A:$C,3,FALSE),E600)","v":6.0623458588955088E-3},{"$f":"IFERROR(VLOOKUP(F600,Translation!$A:$C,3,FALSE),F600)","v":"Prêts hypothécaires assurés au cours de la période selon la période d’amortissement (en années) à l'initiation (%)"},{"$f":"IFERROR(VLOOKUP(G600,Translation!$A:$C,3,FALSE),G600)","v":"0.0"},{"$f":"IFERROR(VLOOKUP(H600,Translation!$A:$C,3,FALSE),H600)","v":" > 25 <= 30"}]
[10,"T2 2018","PROPRIÉTAIRES-OCCUPANTS, À L’UNITÉ","Période d’amortissement moyenne",24.865227694395969,"Prêts hypothécaires assurés au cours de la période selon la période d’amortissement (en années) à l'initiation (%)","24.9","Période d’amortissement moyenne",{"$f":"IFERROR(VLOOKUP(A601,Translation!$A:$C,3,FALSE),A601)","v":10},{"$f":"IFERROR(VLOOKUP(B601,Translation!$A:$C,3,FALSE),B601)","v":"T2 2018"},{"$f":"IFERROR(VLOOKUP(C601,Translation!$A:$C,3,FALSE),C601)","v":"PROPRIÉTAIRES-OCCUPANTS, À L’UNITÉ"},{"$f":"IFERROR(VLOOKUP(D601,Translation!$A:$C,3,FALSE),D601)","v":"Période d’amortissement moyenne"},{"$f":"IFERROR(VLOOKUP(E601,Translation!$A:$C,3,FALSE),E601)","v":24.865227694395969},{"$f":"IFERROR(VLOOKUP(F601,Translation!$A:$C,3,FALSE),F601)","v":"Prêts hypothécaires assurés au cours de la période selon la période d’amortissement (en années) à l'initiation (%)"},{"$f":"IFERROR(VLOOKUP(G601,Translation!$A:$C,3,FALSE),G601)","v":"24.9"},{"$f":"IFERROR(VLOOKUP(H601,Translation!$A:$C,3,FALSE),H601)","v":"Période d’amortissement moyenne"}]
[10,"T2 2018","PROPRIÉTAIRES-OCCUPANTS, À L’UNITÉ","Terre-Neuve-et-Labrador",24.841456322204191,"Période d’amortissement moyenne selon la province","24.8","Terre-Neuve-et-Labrador",{"$f":"IFERROR(VLOOKUP(A602,Translation!$A:$C,3,FALSE),A602)","v":10},{"$f":"IFERROR(VLOOKUP(B602,Translation!$A:$C,3,FALSE),B602)","v":"T2 2018"},{"$f":"IFERROR(VLOOKUP(C602,Translation!$A:$C,3,FALSE),C602)","v":"PROPRIÉTAIRES-OCCUPANTS, À L’UNITÉ"},{"$f":"IFERROR(VLOOKUP(D602,Translation!$A:$C,3,FALSE),D602)","v":"Terre-Neuve-et-Labrador"},{"$f":"IFERROR(VLOOKUP(E602,Translation!$A:$C,3,FALSE),E602)","v":24.841456322204191},{"$f":"IFERROR(VLOOKUP(F602,Translation!$A:$C,3,FALSE),F602)","v":"Période d’amortissement moyenne selon la province"},{"$f":"IFERROR(VLOOKUP(G602,Translation!$A:$C,3,FALSE),G602)","v":"24.8"},{"$f":"IFERROR(VLOOKUP(H602,Translation!$A:$C,3,FALSE),H602)","v":"Terre-Neuve-et-Labrador"}]
[10,"T2 2018","PROPRIÉTAIRES-OCCUPANTS, À L’UNITÉ","Île-du-Prince-Édouard",24.802649582518196,"Période d’amortissement moyenne selon la province","24.8","Île-du-Prince-Édouard",{"$f":"IFERROR(VLOOKUP(A603,Translation!$A:$C,3,FALSE),A603)","v":10},{"$f":"IFERROR(VLOOKUP(B603,Translation!$A:$C,3,FALSE),B603)","v":"T2 2018"},{"$f":"IFERROR(VLOOKUP(C603,Translation!$A:$C,3,FALSE),C603)","v":"PROPRIÉTAIRES-OCCUPANTS, À L’UNITÉ"},{"$f":"IFERROR(VLOOKUP(D603,Translation!$A:$C,3,FALSE),D603)","v":"Île-du-Prince-Édouard"},{"$f":"IFERROR(VLOOKUP(E603,Translation!$A:$C,3,FALSE),E603)","v":24.802649582518196},{"$f":"IFERROR(VLOOKUP(F603,Translation!$A:$C,3,FALSE),F603)","v":"Période d’amortissement moyenne selon la province"},{"$f":"IFERROR(VLOOKUP(G603,Translation!$A:$C,3,FALSE),G603)","v":"24.8"},{"$f":"IFERROR(VLOOKUP(H603,Translation!$A:$C,3,FALSE),H603)","v":"Île-du-Prince-Édouard"}]
[10,"T2 2018","PROPRIÉTAIRES-OCCUPANTS, À L’UNITÉ","Nouvelle-Écosse",24.732968311512689,"Période d’amortissement moyenne selon la province","24.7","Nouvelle-Écosse",{"$f":"IFERROR(VLOOKUP(A604,Translation!$A:$C,3,FALSE),A604)","v":10},{"$f":"IFERROR(VLOOKUP(B604,Translation!$A:$C,3,FALSE),B604)","v":"T2 2018"},{"$f":"IFERROR(VLOOKUP(C604,Translation!$A:$C,3,FALSE),C604)","v":"PROPRIÉTAIRES-OCCUPANTS, À L’UNITÉ"},{"$f":"IFERROR(VLOOKUP(D604,Translation!$A:$C,3,FALSE),D604)","v":"Nouvelle-Écosse"},{"$f":"IFERROR(VLOOKUP(E604,Translation!$A:$C,3,FALSE),E604)","v":24.732968311512689},{"$f":"IFERROR(VLOOKUP(F604,Translation!$A:$C,3,FALSE),F604)","v":"Période d’amortissement moyenne selon la province"},{"$f":"IFERROR(VLOOKUP(G604,Translation!$A:$C,3,FALSE),G604)","v":"24.7"},{"$f":"IFERROR(VLOOKUP(H604,Translation!$A:$C,3,FALSE),H604)","v":"Nouvelle-Écosse"}]
[10,"T2 2018","PROPRIÉTAIRES-OCCUPANTS, À L’UNITÉ","Nouveau-Brunswick",24.735893742427969,"Période d’amortissement moyenne selon la province","24.7","Nouveau-Brunswick",{"$f":"IFERROR(VLOOKUP(A605,Translation!$A:$C,3,FALSE),A605)","v":10},{"$f":"IFERROR(VLOOKUP(B605,Translation!$A:$C,3,FALSE),B605)","v":"T2 2018"},{"$f":"IFERROR(VLOOKUP(C605,Translation!$A:$C,3,FALSE),C605)","v":"PROPRIÉTAIRES-OCCUPANTS, À L’UNITÉ"},{"$f":"IFERROR(VLOOKUP(D605,Translation!$A:$C,3,FALSE),D605)","v":"Nouveau-Brunswick"},{"$f":"IFERROR(VLOOKUP(E605,Translation!$A:$C,3,FALSE),E605)","v":24.735893742427969},{"$f":"IFERROR(VLOOKUP(F605,Translation!$A:$C,3,FALSE),F605)","v":"Période d’amortissement moyenne selon la province"},{"$f":"IFERROR(VLOOKUP(G605,Translation!$A:$C,3,FALSE),G605)","v":"24.7"},{"$f":"IFERROR(VLOOKUP(H605,Translation!$A:$C,3,FALSE),H605)","v":"Nouveau-Brunswick"}]
[10,"T2 2018","PROPRIÉTAIRES-OCCUPANTS, À L’UNITÉ","Québec",24.893620853258152,"Période d’amortissement moyenne selon la province","24.9","Québec",{"$f":"IFERROR(VLOOKUP(A606,Translation!$A:$C,3,FALSE),A606)","v":10},{"$f":"IFERROR(VLOOKUP(B606,Translation!$A:$C,3,FALSE),B606)","v":"T2 2018"},{"$f":"IFERROR(VLOOKUP(C606,Translation!$A:$C,3,FALSE),C606)","v":"PROPRIÉTAIRES-OCCUPANTS, À L’UNITÉ"},{"$f":"IFERROR(VLOOKUP(D606,Translation!$A:$C,3,FALSE),D606)","v":"Québec"},{"$f":"IFERROR(VLOOKUP(E606,Translation!$A:$C,3,FALSE),E606)","v":24.893620853258152},{"$f":"IFERROR(VLOOKUP(F606,Translation!$A:$C,3,FALSE),F606)","v":"Période d’amortissement moyenne selon la province"},{"$f":"IFERROR(VLOOKUP(G606,Translation!$A:$C,3,FALSE),G606)","v":"24.9"},{"$f":"IFERROR(VLOOKUP(H606,Translation!$A:$C,3,FALSE),H606)","v":"Québec"}]
[10,"T2 2018","PROPRIÉTAIRES-OCCUPANTS, À L’UNITÉ","Ontario",24.882423469322099,"Période d’amortissement moyenne selon la province","24.9","Ontario",{"$f":"IFERROR(VLOOKUP(A607,Translation!$A:$C,3,FALSE),A607)","v":10},{"$f":"IFERROR(VLOOKUP(B607,Translation!$A:$C,3,FALSE),B607)","v":"T2 2018"},{"$f":"IFERROR(VLOOKUP(C607,Translation!$A:$C,3,FALSE),C607)","v":"PROPRIÉTAIRES-OCCUPANTS, À L’UNITÉ"},{"$f":"IFERROR(VLOOKUP(D607,Translation!$A:$C,3,FALSE),D607)","v":"Ontario"},{"$f":"IFERROR(VLOOKUP(E607,Translation!$A:$C,3,FALSE),E607)","v":24.882423469322099},{"$f":"IFERROR(VLOOKUP(F607,Translation!$A:$C,3,FALSE),F607)","v":"Période d’amortissement moyenne selon la province"},{"$f":"IFERROR(VLOOKUP(G607,Translation!$A:$C,3,FALSE),G607)","v":"24.9"},{"$f":"IFERROR(VLOOKUP(H607,Translation!$A:$C,3,FALSE),H607)","v":"Ontario"}]
[10,"T2 2018","PROPRIÉTAIRES-OCCUPANTS, À L’UNITÉ","Manitoba",24.847788364511661,"Période d’amortissement moyenne selon la province","24.8","Manitoba",{"$f":"IFERROR(VLOOKUP(A608,Translation!$A:$C,3,FALSE),A608)","v":10},{"$f":"IFERROR(VLOOKUP(B608,Translation!$A:$C,3,FALSE),B608)","v":"T2 2018"},{"$f":"IFERROR(VLOOKUP(C608,Translation!$A:$C,3,FALSE),C608)","v":"PROPRIÉTAIRES-OCCUPANTS, À L’UNITÉ"},{"$f":"IFERROR(VLOOKUP(D608,Translation!$A:$C,3,FALSE),D608)","v":"Manitoba"},{"$f":"IFERROR(VLOOKUP(E608,Translation!$A:$C,3,FALSE),E608)","v":24.847788364511661},{"$f":"IFERROR(VLOOKUP(F608,Translation!$A:$C,3,FALSE),F608)","v":"Période d’amortissement moyenne selon la province"},{"$f":"IFERROR(VLOOKUP(G608,Translation!$A:$C,3,FALSE),G608)","v":"24.8"},{"$f":"IFERROR(VLOOKUP(H608,Translation!$A:$C,3,FALSE),H608)","v":"Manitoba"}]
[10,"T2 2018","PROPRIÉTAIRES-OCCUPANTS, À L’UNITÉ","Saskatchewan",24.775127226120073,"Période d’amortissement moyenne selon la province","24.8","Saskatchewan",{"$f":"IFERROR(VLOOKUP(A609,Translation!$A:$C,3,FALSE),A609)","v":10},{"$f":"IFERROR(VLOOKUP(B609,Translation!$A:$C,3,FALSE),B609)","v":"T2 2018"},{"$f":"IFERROR(VLOOKUP(C609,Translation!$A:$C,3,FALSE),C609)","v":"PROPRIÉTAIRES-OCCUPANTS, À L’UNITÉ"},{"$f":"IFERROR(VLOOKUP(D609,Translation!$A:$C,3,FALSE),D609)","v":"Saskatchewan"},{"$f":"IFERROR(VLOOKUP(E609,Translation!$A:$C,3,FALSE),E609)","v":24.775127226120073},{"$f":"IFERROR(VLOOKUP(F609,Translation!$A:$C,3,FALSE),F609)","v":"Période d’amortissement moyenne selon la province"},{"$f":"IFERROR(VLOOKUP(G609,Translation!$A:$C,3,FALSE),G609)","v":"24.8"},{"$f":"IFERROR(VLOOKUP(H609,Translation!$A:$C,3,FALSE),H609)","v":"Saskatchewan"}]
[10,"T2 2018","PROPRIÉTAIRES-OCCUPANTS, À L’UNITÉ","Alberta",24.839375862516167,"Période d’amortissement moyenne selon la province","24.8","Alberta",{"$f":"IFERROR(VLOOKUP(A610,Translation!$A:$C,3,FALSE),A610)","v":10},{"$f":"IFERROR(VLOOKUP(B610,Translation!$A:$C,3,FALSE),B610)","v":"T2 2018"},{"$f":"IFERROR(VLOOKUP(C610,Translation!$A:$C,3,FALSE),C610)","v":"PROPRIÉTAIRES-OCCUPANTS, À L’UNITÉ"},{"$f":"IFERROR(VLOOKUP(D610,Translation!$A:$C,3,FALSE),D610)","v":"Alberta"},{"$f":"IFERROR(VLOOKUP(E610,Translation!$A:$C,3,FALSE),E610)","v":24.839375862516167},{"$f":"IFERROR(VLOOKUP(F610,Translation!$A:$C,3,FALSE),F610)","v":"Période d’amortissement moyenne selon la province"},{"$f":"IFERROR(VLOOKUP(G610,Translation!$A:$C,3,FALSE),G610)","v":"24.8"},{"$f":"IFERROR(VLOOKUP(H610,Translation!$A:$C,3,FALSE),H610)","v":"Alberta"}]
[10,"T2 2018","PROPRIÉTAIRES-OCCUPANTS, À L’UNITÉ","Colombie-Britannique",24.82913396843254,"Période d’amortissement moyenne selon la province","24.8","Colombie-Britannique",{"$f":"IFERROR(VLOOKUP(A611,Translation!$A:$C,3,FALSE),A611)","v":10},{"$f":"IFERROR(VLOOKUP(B611,Translation!$A:$C,3,FALSE),B611)","v":"T2 2018"},{"$f":"IFERROR(VLOOKUP(C611,Translation!$A:$C,3,FALSE),C611)","v":"PROPRIÉTAIRES-OCCUPANTS, À L’UNITÉ"},{"$f":"IFERROR(VLOOKUP(D611,Translation!$A:$C,3,FALSE),D611)","v":"Colombie-Britannique"},{"$f":"IFERROR(VLOOKUP(E611,Translation!$A:$C,3,FALSE),E611)","v":24.82913396843254},{"$f":"IFERROR(VLOOKUP(F611,Translation!$A:$C,3,FALSE),F611)","v":"Période d’amortissement moyenne selon la province"},{"$f":"IFERROR(VLOOKUP(G611,Translation!$A:$C,3,FALSE),G611)","v":"24.8"},{"$f":"IFERROR(VLOOKUP(H611,Translation!$A:$C,3,FALSE),H611)","v":"Colombie-Britannique"}]
[10,"T2 2018","PROPRIÉTAIRES-OCCUPANTS, À L’UNITÉ","Territoires",24.723627536592382,"Période d’amortissement moyenne selon la province","24.7","Territoires",{"$f":"IFERROR(VLOOKUP(A612,Translation!$A:$C,3,FALSE),A612)","v":10},{"$f":"IFERROR(VLOOKUP(B612,Translation!$A:$C,3,FALSE),B612)","v":"T2 2018"},{"$f":"IFERROR(VLOOKUP(C612,Translation!$A:$C,3,FALSE),C612)","v":"PROPRIÉTAIRES-OCCUPANTS, À L’UNITÉ"},{"$f":"IFERROR(VLOOKUP(D612,Translation!$A:$C,3,FALSE),D612)","v":"Territoires"},{"$f":"IFERROR(VLOOKUP(E612,Translation!$A:$C,3,FALSE),E612)","v":24.723627536592382},{"$f":"IFERROR(VLOOKUP(F612,Translation!$A:$C,3,FALSE),F612)","v":"Période d’amortissement moyenne selon la province"},{"$f":"IFERROR(VLOOKUP(G612,Translation!$A:$C,3,FALSE),G612)","v":"24.7"},{"$f":"IFERROR(VLOOKUP(H612,Translation!$A:$C,3,FALSE),H612)","v":"Territoires"}]
[10,"T2 2018","ASSURANCE DE PORTEFEUILLE","<= 5",0.20876625495921361,"Prêts hypothécaires assurés au cours de la période selon la période d’amortissement (en années) à l'initiation (%)","0.2"," <= 5",{"$f":"IFERROR(VLOOKUP(A613,Translation!$A:$C,3,FALSE),A613)","v":10},{"$f":"IFERROR(VLOOKUP(B613,Translation!$A:$C,3,FALSE),B613)","v":"T2 2018"},{"$f":"IFERROR(VLOOKUP(C613,Translation!$A:$C,3,FALSE),C613)","v":"ASSURANCE DE PORTEFEUILLE"},{"$f":"IFERROR(VLOOKUP(D613,Translation!$A:$C,3,FALSE),D613)","v":"<= 5"},{"$f":"IFERROR(VLOOKUP(E613,Translation!$A:$C,3,FALSE),E613)","v":0.20876625495921361},{"$f":"IFERROR(VLOOKUP(F613,Translation!$A:$C,3,FALSE),F613)","v":"Prêts hypothécaires assurés au cours de la période selon la période d’amortissement (en années) à l'initiation (%)"},{"$f":"IFERROR(VLOOKUP(G613,Translation!$A:$C,3,FALSE),G613)","v":"0.2"},{"$f":"IFERROR(VLOOKUP(H613,Translation!$A:$C,3,FALSE),H613)","v":" <= 5"}]
[10,"T2 2018","ASSURANCE DE PORTEFEUILLE","> 5 <= 10",3.3012497864649126,"Prêts hypothécaires assurés au cours de la période selon la période d’amortissement (en années) à l'initiation (%)","3.3"," > 5 <= 10",{"$f":"IFERROR(VLOOKUP(A614,Translation!$A:$C,3,FALSE),A614)","v":10},{"$f":"IFERROR(VLOOKUP(B614,Translation!$A:$C,3,FALSE),B614)","v":"T2 2018"},{"$f":"IFERROR(VLOOKUP(C614,Translation!$A:$C,3,FALSE),C614)","v":"ASSURANCE DE PORTEFEUILLE"},{"$f":"IFERROR(VLOOKUP(D614,Translation!$A:$C,3,FALSE),D614)","v":"> 5 <= 10"},{"$f":"IFERROR(VLOOKUP(E614,Translation!$A:$C,3,FALSE),E614)","v":3.3012497864649126},{"$f":"IFERROR(VLOOKUP(F614,Translation!$A:$C,3,FALSE),F614)","v":"Prêts hypothécaires assurés au cours de la période selon la période d’amortissement (en années) à l'initiation (%)"},{"$f":"IFERROR(VLOOKUP(G614,Translation!$A:$C,3,FALSE),G614)","v":"3.3"},{"$f":"IFERROR(VLOOKUP(H614,Translation!$A:$C,3,FALSE),H614)","v":" > 5 <= 10"}]
[10,"T2 2018","ASSURANCE DE PORTEFEUILLE","> 10 <= 15",8.0420800331016729,"Prêts hypothécaires assurés au cours de la période selon la période d’amortissement (en années) à l'initiation (%)","8.0"," > 10 <= 15",{"$f":"IFERROR(VLOOKUP(A615,Translation!$A:$C,3,FALSE),A615)","v":10},{"$f":"IFERROR(VLOOKUP(B615,Translation!$A:$C,3,FALSE),B615)","v":"T2 2018"},{"$f":"IFERROR(VLOOKUP(C615,Translation!$A:$C,3,FALSE),C615)","v":"ASSURANCE DE PORTEFEUILLE"},{"$f":"IFERROR(VLOOKUP(D615,Translation!$A:$C,3,FALSE),D615)","v":"> 10 <= 15"},{"$f":"IFERROR(VLOOKUP(E615,Translation!$A:$C,3,FALSE),E615)","v":8.0420800331016729},{"$f":"IFERROR(VLOOKUP(F615,Translation!$A:$C,3,FALSE),F615)","v":"Prêts hypothécaires assurés au cours de la période selon la période d’amortissement (en années) à l'initiation (%)"},{"$f":"IFERROR(VLOOKUP(G615,Translation!$A:$C,3,FALSE),G615)","v":"8.0"},{"$f":"IFERROR(VLOOKUP(H615,Translation!$A:$C,3,FALSE),H615)","v":" > 10 <= 15"}]
[10,"T2 2018","ASSURANCE DE PORTEFEUILLE","> 15 <= 20",16.705120610876403,"Prêts hypothécaires assurés au cours de la période selon la période d’amortissement (en années) à l'initiation (%)","16.7"," > 15 <= 20",{"$f":"IFERROR(VLOOKUP(A616,Translation!$A:$C,3,FALSE),A616)","v":10},{"$f":"IFERROR(VLOOKUP(B616,Translation!$A:$C,3,FALSE),B616)","v":"T2 2018"},{"$f":"IFERROR(VLOOKUP(C616,Translation!$A:$C,3,FALSE),C616)","v":"ASSURANCE DE PORTEFEUILLE"},{"$f":"IFERROR(VLOOKUP(D616,Translation!$A:$C,3,FALSE),D616)","v":"> 15 <= 20"},{"$f":"IFERROR(VLOOKUP(E616,Translation!$A:$C,3,FALSE),E616)","v":16.705120610876403},{"$f":"IFERROR(VLOOKUP(F616,Translation!$A:$C,3,FALSE),F616)","v":"Prêts hypothécaires assurés au cours de la période selon la période d’amortissement (en années) à l'initiation (%)"},{"$f":"IFERROR(VLOOKUP(G616,Translation!$A:$C,3,FALSE),G616)","v":"16.7"},{"$f":"IFERROR(VLOOKUP(H616,Translation!$A:$C,3,FALSE),H616)","v":" > 15 <= 20"}]
[10,"T2 2018","ASSURANCE DE PORTEFEUILLE","> 20 <= 25",62.833996964643582,"Prêts hypothécaires assurés au cours de la période selon la période d’amortissement (en années) à l'initiation (%)","62.8"," > 20 <= 25",{"$f":"IFERROR(VLOOKUP(A617,Translation!$A:$C,3,FALSE),A617)","v":10},{"$f":"IFERROR(VLOOKUP(B617,Translation!$A:$C,3,FALSE),B617)","v":"T2 2018"},{"$f":"IFERROR(VLOOKUP(C617,Translation!$A:$C,3,FALSE),C617)","v":"ASSURANCE DE PORTEFEUILLE"},{"$f":"IFERROR(VLOOKUP(D617,Translation!$A:$C,3,FALSE),D617)","v":"> 20 <= 25"},{"$f":"IFERROR(VLOOKUP(E617,Translation!$A:$C,3,FALSE),E617)","v":62.833996964643582},{"$f":"IFERROR(VLOOKUP(F617,Translation!$A:$C,3,FALSE),F617)","v":"Prêts hypothécaires assurés au cours de la période selon la période d’amortissement (en années) à l'initiation (%)"},{"$f":"IFERROR(VLOOKUP(G617,Translation!$A:$C,3,FALSE),G617)","v":"62.8"},{"$f":"IFERROR(VLOOKUP(H617,Translation!$A:$C,3,FALSE),H617)","v":" > 20 <= 25"}]
[10,"T2 2018","ASSURANCE DE PORTEFEUILLE","> 25 <= 30",8.908786349954207,"Prêts hypothécaires assurés au cours de la période selon la période d’amortissement (en années) à l'initiation (%)","8.9"," > 25 <= 30",{"$f":"IFERROR(VLOOKUP(A618,Translation!$A:$C,3,FALSE),A618)","v":10},{"$f":"IFERROR(VLOOKUP(B618,Translation!$A:$C,3,FALSE),B618)","v":"T2 2018"},{"$f":"IFERROR(VLOOKUP(C618,Translation!$A:$C,3,FALSE),C618)","v":"ASSURANCE DE PORTEFEUILLE"},{"$f":"IFERROR(VLOOKUP(D618,Translation!$A:$C,3,FALSE),D618)","v":"> 25 <= 30"},{"$f":"IFERROR(VLOOKUP(E618,Translation!$A:$C,3,FALSE),E618)","v":8.908786349954207},{"$f":"IFERROR(VLOOKUP(F618,Translation!$A:$C,3,FALSE),F618)","v":"Prêts hypothécaires assurés au cours de la période selon la période d’amortissement (en années) à l'initiation (%)"},{"$f":"IFERROR(VLOOKUP(G618,Translation!$A:$C,3,FALSE),G618)","v":"8.9"},{"$f":"IFERROR(VLOOKUP(H618,Translation!$A:$C,3,FALSE),H618)","v":" > 25 <= 30"}]
[10,"T2 2018","ASSURANCE DE PORTEFEUILLE","Période d’amortissement moyenne",21.740077859740524,"Prêts hypothécaires assurés au cours de la période selon la période d’amortissement (en années) à l'initiation (%)","21.7","Période d’amortissement moyenne",{"$f":"IFERROR(VLOOKUP(A619,Translation!$A:$C,3,FALSE),A619)","v":10},{"$f":"IFERROR(VLOOKUP(B619,Translation!$A:$C,3,FALSE),B619)","v":"T2 2018"},{"$f":"IFERROR(VLOOKUP(C619,Translation!$A:$C,3,FALSE),C619)","v":"ASSURANCE DE PORTEFEUILLE"},{"$f":"IFERROR(VLOOKUP(D619,Translation!$A:$C,3,FALSE),D619)","v":"Période d’amortissement moyenne"},{"$f":"IFERROR(VLOOKUP(E619,Translation!$A:$C,3,FALSE),E619)","v":21.740077859740524},{"$f":"IFERROR(VLOOKUP(F619,Translation!$A:$C,3,FALSE),F619)","v":"Prêts hypothécaires assurés au cours de la période selon la période d’amortissement (en années) à l'initiation (%)"},{"$f":"IFERROR(VLOOKUP(G619,Translation!$A:$C,3,FALSE),G619)","v":"21.7"},{"$f":"IFERROR(VLOOKUP(H619,Translation!$A:$C,3,FALSE),H619)","v":"Période d’amortissement moyenne"}]
[10,"T2 2018","ASSURANCE DE PORTEFEUILLE","Terre-Neuve-et-Labrador",17.933155189456794,"Période d’amortissement moyenne selon la province","17.9","Terre-Neuve-et-Labrador",{"$f":"IFERROR(VLOOKUP(A620,Translation!$A:$C,3,FALSE),A620)","v":10},{"$f":"IFERROR(VLOOKUP(B620,Translation!$A:$C,3,FALSE),B620)","v":"T2 2018"},{"$f":"IFERROR(VLOOKUP(C620,Translation!$A:$C,3,FALSE),C620)","v":"ASSURANCE DE PORTEFEUILLE"},{"$f":"IFERROR(VLOOKUP(D620,Translation!$A:$C,3,FALSE),D620)","v":"Terre-Neuve-et-Labrador"},{"$f":"IFERROR(VLOOKUP(E620,Translation!$A:$C,3,FALSE),E620)","v":17.933155189456794},{"$f":"IFERROR(VLOOKUP(F620,Translation!$A:$C,3,FALSE),F620)","v":"Période d’amortissement moyenne selon la province"},{"$f":"IFERROR(VLOOKUP(G620,Translation!$A:$C,3,FALSE),G620)","v":"17.9"},{"$f":"IFERROR(VLOOKUP(H620,Translation!$A:$C,3,FALSE),H620)","v":"Terre-Neuve-et-Labrador"}]
[10,"T2 2018","ASSURANCE DE PORTEFEUILLE","Île-du-Prince-Édouard",18.341037171313378,"Période d’amortissement moyenne selon la province","18.3","Île-du-Prince-Édouard",{"$f":"IFERROR(VLOOKUP(A621,Translation!$A:$C,3,FALSE),A621)","v":10},{"$f":"IFERROR(VLOOKUP(B621,Translation!$A:$C,3,FALSE),B621)","v":"T2 2018"},{"$f":"IFERROR(VLOOKUP(C621,Translation!$A:$C,3,FALSE),C621)","v":"ASSURANCE DE PORTEFEUILLE"},{"$f":"IFERROR(VLOOKUP(D621,Translation!$A:$C,3,FALSE),D621)","v":"Île-du-Prince-Édouard"},{"$f":"IFERROR(VLOOKUP(E621,Translation!$A:$C,3,FALSE),E621)","v":18.341037171313378},{"$f":"IFERROR(VLOOKUP(F621,Translation!$A:$C,3,FALSE),F621)","v":"Période d’amortissement moyenne selon la province"},{"$f":"IFERROR(VLOOKUP(G621,Translation!$A:$C,3,FALSE),G621)","v":"18.3"},{"$f":"IFERROR(VLOOKUP(H621,Translation!$A:$C,3,FALSE),H621)","v":"Île-du-Prince-Édouard"}]
[10,"T2 2018","ASSURANCE DE PORTEFEUILLE","Nouvelle-Écosse",18.781301377700963,"Période d’amortissement moyenne selon la province","18.8","Nouvelle-Écosse",{"$f":"IFERROR(VLOOKUP(A622,Translation!$A:$C,3,FALSE),A622)","v":10},{"$f":"IFERROR(VLOOKUP(B622,Translation!$A:$C,3,FALSE),B622)","v":"T2 2018"},{"$f":"IFERROR(VLOOKUP(C622,Translation!$A:$C,3,FALSE),C622)","v":"ASSURANCE DE PORTEFEUILLE"},{"$f":"IFERROR(VLOOKUP(D622,Translation!$A:$C,3,FALSE),D622)","v":"Nouvelle-Écosse"},{"$f":"IFERROR(VLOOKUP(E622,Translation!$A:$C,3,FALSE),E622)","v":18.781301377700963},{"$f":"IFERROR(VLOOKUP(F622,Translation!$A:$C,3,FALSE),F622)","v":"Période d’amortissement moyenne selon la province"},{"$f":"IFERROR(VLOOKUP(G622,Translation!$A:$C,3,FALSE),G622)","v":"18.8"},{"$f":"IFERROR(VLOOKUP(H622,Translation!$A:$C,3,FALSE),H622)","v":"Nouvelle-Écosse"}]
[10,"T2 2018","ASSURANCE DE PORTEFEUILLE","Nouveau-Brunswick",22.349745407289127,"Période d’amortissement moyenne selon la province","22.3","Nouveau-Brunswick",{"$f":"IFERROR(VLOOKUP(A623,Translation!$A:$C,3,FALSE),A623)","v":10},{"$f":"IFERROR(VLOOKUP(B623,Translation!$A:$C,3,FALSE),B623)","v":"T2 2018"},{"$f":"IFERROR(VLOOKUP(C623,Translation!$A:$C,3,FALSE),C623)","v":"ASSURANCE DE PORTEFEUILLE"},{"$f":"IFERROR(VLOOKUP(D623,Translation!$A:$C,3,FALSE),D623)","v":"Nouveau-Brunswick"},{"$f":"IFERROR(VLOOKUP(E623,Translation!$A:$C,3,FALSE),E623)","v":22.349745407289127},{"$f":"IFERROR(VLOOKUP(F623,Translation!$A:$C,3,FALSE),F623)","v":"Période d’amortissement moyenne selon la province"},{"$f":"IFERROR(VLOOKUP(G623,Translation!$A:$C,3,FALSE),G623)","v":"22.3"},{"$f":"IFERROR(VLOOKUP(H623,Translation!$A:$C,3,FALSE),H623)","v":"Nouveau-Brunswick"}]
[10,"T2 2018","ASSURANCE DE PORTEFEUILLE","Québec",20.243091423970295,"Période d’amortissement moyenne selon la province","20.2","Québec",{"$f":"IFERROR(VLOOKUP(A624,Translation!$A:$C,3,FALSE),A624)","v":10},{"$f":"IFERROR(VLOOKUP(B624,Translation!$A:$C,3,FALSE),B624)","v":"T2 2018"},{"$f":"IFERROR(VLOOKUP(C624,Translation!$A:$C,3,FALSE),C624)","v":"ASSURANCE DE PORTEFEUILLE"},{"$f":"IFERROR(VLOOKUP(D624,Translation!$A:$C,3,FALSE),D624)","v":"Québec"},{"$f":"IFERROR(VLOOKUP(E624,Translation!$A:$C,3,FALSE),E624)","v":20.243091423970295},{"$f":"IFERROR(VLOOKUP(F624,Translation!$A:$C,3,FALSE),F624)","v":"Période d’amortissement moyenne selon la province"},{"$f":"IFERROR(VLOOKUP(G624,Translation!$A:$C,3,FALSE),G624)","v":"20.2"},{"$f":"IFERROR(VLOOKUP(H624,Translation!$A:$C,3,FALSE),H624)","v":"Québec"}]
[10,"T2 2018","ASSURANCE DE PORTEFEUILLE","Ontario",21.988056801080614,"Période d’amortissement moyenne selon la province","22.0","Ontario",{"$f":"IFERROR(VLOOKUP(A625,Translation!$A:$C,3,FALSE),A625)","v":10},{"$f":"IFERROR(VLOOKUP(B625,Translation!$A:$C,3,FALSE),B625)","v":"T2 2018"},{"$f":"IFERROR(VLOOKUP(C625,Translation!$A:$C,3,FALSE),C625)","v":"ASSURANCE DE PORTEFEUILLE"},{"$f":"IFERROR(VLOOKUP(D625,Translation!$A:$C,3,FALSE),D625)","v":"Ontario"},{"$f":"IFERROR(VLOOKUP(E625,Translation!$A:$C,3,FALSE),E625)","v":21.988056801080614},{"$f":"IFERROR(VLOOKUP(F625,Translation!$A:$C,3,FALSE),F625)","v":"Période d’amortissement moyenne selon la province"},{"$f":"IFERROR(VLOOKUP(G625,Translation!$A:$C,3,FALSE),G625)","v":"22.0"},{"$f":"IFERROR(VLOOKUP(H625,Translation!$A:$C,3,FALSE),H625)","v":"Ontario"}]
[10,"T2 2018","ASSURANCE DE PORTEFEUILLE","Manitoba",19.685080544039849,"Période d’amortissement moyenne selon la province","19.7","Manitoba",{"$f":"IFERROR(VLOOKUP(A626,Translation!$A:$C,3,FALSE),A626)","v":10},{"$f":"IFERROR(VLOOKUP(B626,Translation!$A:$C,3,FALSE),B626)","v":"T2 2018"},{"$f":"IFERROR(VLOOKUP(C626,Translation!$A:$C,3,FALSE),C626)","v":"ASSURANCE DE PORTEFEUILLE"},{"$f":"IFERROR(VLOOKUP(D626,Translation!$A:$C,3,FALSE),D626)","v":"Manitoba"},{"$f":"IFERROR(VLOOKUP(E626,Translation!$A:$C,3,FALSE),E626)","v":19.685080544039849},{"$f":"IFERROR(VLOOKUP(F626,Translation!$A:$C,3,FALSE),F626)","v":"Période d’amortissement moyenne selon la province"},{"$f":"IFERROR(VLOOKUP(G626,Translation!$A:$C,3,FALSE),G626)","v":"19.7"},{"$f":"IFERROR(VLOOKUP(H626,Translation!$A:$C,3,FALSE),H626)","v":"Manitoba"}]
[10,"T2 2018","ASSURANCE DE PORTEFEUILLE","Saskatchewan",20.650104737813276,"Période d’amortissement moyenne selon la province","20.7","Saskatchewan",{"$f":"IFERROR(VLOOKUP(A627,Translation!$A:$C,3,FALSE),A627)","v":10},{"$f":"IFERROR(VLOOKUP(B627,Translation!$A:$C,3,FALSE),B627)","v":"T2 2018"},{"$f":"IFERROR(VLOOKUP(C627,Translation!$A:$C,3,FALSE),C627)","v":"ASSURANCE DE PORTEFEUILLE"},{"$f":"IFERROR(VLOOKUP(D627,Translation!$A:$C,3,FALSE),D627)","v":"Saskatchewan"},{"$f":"IFERROR(VLOOKUP(E627,Translation!$A:$C,3,FALSE),E627)","v":20.650104737813276},{"$f":"IFERROR(VLOOKUP(F627,Translation!$A:$C,3,FALSE),F627)","v":"Période d’amortissement moyenne selon la province"},{"$f":"IFERROR(VLOOKUP(G627,Translation!$A:$C,3,FALSE),G627)","v":"20.7"},{"$f":"IFERROR(VLOOKUP(H627,Translation!$A:$C,3,FALSE),H627)","v":"Saskatchewan"}]
[10,"T2 2018","ASSURANCE DE PORTEFEUILLE","Alberta",20.429569723134502,"Période d’amortissement moyenne selon la province","20.4","Alberta",{"$f":"IFERROR(VLOOKUP(A628,Translation!$A:$C,3,FALSE),A628)","v":10},{"$f":"IFERROR(VLOOKUP(B628,Translation!$A:$C,3,FALSE),B628)","v":"T2 2018"},{"$f":"IFERROR(VLOOKUP(C628,Translation!$A:$C,3,FALSE),C628)","v":"ASSURANCE DE PORTEFEUILLE"},{"$f":"IFERROR(VLOOKUP(D628,Translation!$A:$C,3,FALSE),D628)","v":"Alberta"},{"$f":"IFERROR(VLOOKUP(E628,Translation!$A:$C,3,FALSE),E628)","v":20.429569723134502},{"$f":"IFERROR(VLOOKUP(F628,Translation!$A:$C,3,FALSE),F628)","v":"Période d’amortissement moyenne selon la province"},{"$f":"IFERROR(VLOOKUP(G628,Translation!$A:$C,3,FALSE),G628)","v":"20.4"},{"$f":"IFERROR(VLOOKUP(H628,Translation!$A:$C,3,FALSE),H628)","v":"Alberta"}]
[10,"T2 2018","ASSURANCE DE PORTEFEUILLE","Colombie-Britannique",22.556851682673845,"Période d’amortissement moyenne selon la province","22.6","Colombie-Britannique",{"$f":"IFERROR(VLOOKUP(A629,Translation!$A:$C,3,FALSE),A629)","v":10},{"$f":"IFERROR(VLOOKUP(B629,Translation!$A:$C,3,FALSE),B629)","v":"T2 2018"},{"$f":"IFERROR(VLOOKUP(C629,Translation!$A:$C,3,FALSE),C629)","v":"ASSURANCE DE PORTEFEUILLE"},{"$f":"IFERROR(VLOOKUP(D629,Translation!$A:$C,3,FALSE),D629)","v":"Colombie-Britannique"},{"$f":"IFERROR(VLOOKUP(E629,Translation!$A:$C,3,FALSE),E629)","v":22.556851682673845},{"$f":"IFERROR(VLOOKUP(F629,Translation!$A:$C,3,FALSE),F629)","v":"Période d’amortissement moyenne selon la province"},{"$f":"IFERROR(VLOOKUP(G629,Translation!$A:$C,3,FALSE),G629)","v":"22.6"},{"$f":"IFERROR(VLOOKUP(H629,Translation!$A:$C,3,FALSE),H629)","v":"Colombie-Britannique"}]
[28,"T2 2018","IMMEUBLES COLLECTIFS RÉSIDENTIELS","> 10 <= 15",0.24474109185254245,"Prêts hypothécaires assurés au cours de la période selon la période d’amortissement (en années) à l'initiation (%)","0.2"," > 10 <= 15",{"$f":"IFERROR(VLOOKUP(A630,Translation!$A:$C,3,FALSE),A630)","v":28},{"$f":"IFERROR(VLOOKUP(B630,Translation!$A:$C,3,FALSE),B630)","v":"T2 2018"},{"$f":"IFERROR(VLOOKUP(C630,Translation!$A:$C,3,FALSE),C630)","v":"IMMEUBLES COLLECTIFS RÉSIDENTIELS"},{"$f":"IFERROR(VLOOKUP(D630,Translation!$A:$C,3,FALSE),D630)","v":"> 10 <= 15"},{"$f":"IFERROR(VLOOKUP(E630,Translation!$A:$C,3,FALSE),E630)","v":0.24474109185254245},{"$f":"IFERROR(VLOOKUP(F630,Translation!$A:$C,3,FALSE),F630)","v":"Prêts hypothécaires assurés au cours de la période selon la période d’amortissement (en années) à l'initiation (%)"},{"$f":"IFERROR(VLOOKUP(G630,Translation!$A:$C,3,FALSE),G630)","v":"0.2"},{"$f":"IFERROR(VLOOKUP(H630,Translation!$A:$C,3,FALSE),H630)","v":" > 10 <= 15"}]
[28,"T2 2018","IMMEUBLES COLLECTIFS RÉSIDENTIELS","> 15 <= 20",1.6238788223785146,"Prêts hypothécaires assurés au cours de la période selon la période d’amortissement (en années) à l'initiation (%)","1.6"," > 15 <= 20",{"$f":"IFERROR(VLOOKUP(A631,Translation!$A:$C,3,FALSE),A631)","v":28},{"$f":"IFERROR(VLOOKUP(B631,Translation!$A:$C,3,FALSE),B631)","v":"T2 2018"},{"$f":"IFERROR(VLOOKUP(C631,Translation!$A:$C,3,FALSE),C631)","v":"IMMEUBLES COLLECTIFS RÉSIDENTIELS"},{"$f":"IFERROR(VLOOKUP(D631,Translation!$A:$C,3,FALSE),D631)","v":"> 15 <= 20"},{"$f":"IFERROR(VLOOKUP(E631,Translation!$A:$C,3,FALSE),E631)","v":1.6238788223785146},{"$f":"IFERROR(VLOOKUP(F631,Translation!$A:$C,3,FALSE),F631)","v":"Prêts hypothécaires assurés au cours de la période selon la période d’amortissement (en années) à l'initiation (%)"},{"$f":"IFERROR(VLOOKUP(G631,Translation!$A:$C,3,FALSE),G631)","v":"1.6"},{"$f":"IFERROR(VLOOKUP(H631,Translation!$A:$C,3,FALSE),H631)","v":" > 15 <= 20"}]
[28,"T2 2018","IMMEUBLES COLLECTIFS RÉSIDENTIELS","> 20 <= 25",26.555105479192967,"Prêts hypothécaires assurés au cours de la période selon la période d’amortissement (en années) à l'initiation (%)","26.6"," > 20 <= 25",{"$f":"IFERROR(VLOOKUP(A632,Translation!$A:$C,3,FALSE),A632)","v":28},{"$f":"IFERROR(VLOOKUP(B632,Translation!$A:$C,3,FALSE),B632)","v":"T2 2018"},{"$f":"IFERROR(VLOOKUP(C632,Translation!$A:$C,3,FALSE),C632)","v":"IMMEUBLES COLLECTIFS RÉSIDENTIELS"},{"$f":"IFERROR(VLOOKUP(D632,Translation!$A:$C,3,FALSE),D632)","v":"> 20 <= 25"},{"$f":"IFERROR(VLOOKUP(E632,Translation!$A:$C,3,FALSE),E632)","v":26.555105479192967},{"$f":"IFERROR(VLOOKUP(F632,Translation!$A:$C,3,FALSE),F632)","v":"Prêts hypothécaires assurés au cours de la période selon la période d’amortissement (en années) à l'initiation (%)"},{"$f":"IFERROR(VLOOKUP(G632,Translation!$A:$C,3,FALSE),G632)","v":"26.6"},{"$f":"IFERROR(VLOOKUP(H632,Translation!$A:$C,3,FALSE),H632)","v":" > 20 <= 25"}]
[28,"T2 2018","IMMEUBLES COLLECTIFS RÉSIDENTIELS","> 25 <= 30",27.111509284799862,"Prêts hypothécaires assurés au cours de la période selon la période d’amortissement (en années) à l'initiation (%)","27.1"," > 25 <= 30",{"$f":"IFERROR(VLOOKUP(A633,Translation!$A:$C,3,FALSE),A633)","v":28},{"$f":"IFERROR(VLOOKUP(B633,Translation!$A:$C,3,FALSE),B633)","v":"T2 2018"},{"$f":"IFERROR(VLOOKUP(C633,Translation!$A:$C,3,FALSE),C633)","v":"IMMEUBLES COLLECTIFS RÉSIDENTIELS"},{"$f":"IFERROR(VLOOKUP(D633,Translation!$A:$C,3,FALSE),D633)","v":"> 25 <= 30"},{"$f":"IFERROR(VLOOKUP(E633,Translation!$A:$C,3,FALSE),E633)","v":27.111509284799862},{"$f":"IFERROR(VLOOKUP(F633,Translation!$A:$C,3,FALSE),F633)","v":"Prêts hypothécaires assurés au cours de la période selon la période d’amortissement (en années) à l'initiation (%)"},{"$f":"IFERROR(VLOOKUP(G633,Translation!$A:$C,3,FALSE),G633)","v":"27.1"},{"$f":"IFERROR(VLOOKUP(H633,Translation!$A:$C,3,FALSE),H633)","v":" > 25 <= 30"}]
[28,"T2 2018","IMMEUBLES COLLECTIFS RÉSIDENTIELS","> 30 <= 35",30.620439241891059,"Prêts hypothécaires assurés au cours de la période selon la période d’amortissement (en années) à l'initiation (%)","30.6"," > 30 <= 35",{"$f":"IFERROR(VLOOKUP(A634,Translation!$A:$C,3,FALSE),A634)","v":28},{"$f":"IFERROR(VLOOKUP(B634,Translation!$A:$C,3,FALSE),B634)","v":"T2 2018"},{"$f":"IFERROR(VLOOKUP(C634,Translation!$A:$C,3,FALSE),C634)","v":"IMMEUBLES COLLECTIFS RÉSIDENTIELS"},{"$f":"IFERROR(VLOOKUP(D634,Translation!$A:$C,3,FALSE),D634)","v":"> 30 <= 35"},{"$f":"IFERROR(VLOOKUP(E634,Translation!$A:$C,3,FALSE),E634)","v":30.620439241891059},{"$f":"IFERROR(VLOOKUP(F634,Translation!$A:$C,3,FALSE),F634)","v":"Prêts hypothécaires assurés au cours de la période selon la période d’amortissement (en années) à l'initiation (%)"},{"$f":"IFERROR(VLOOKUP(G634,Translation!$A:$C,3,FALSE),G634)","v":"30.6"},{"$f":"IFERROR(VLOOKUP(H634,Translation!$A:$C,3,FALSE),H634)","v":" > 30 <= 35"}]
[28,"T2 2018","IMMEUBLES COLLECTIFS RÉSIDENTIELS","> 35",13.844326079885063,"Prêts hypothécaires assurés au cours de la période selon la période d’amortissement (en années) à l'initiation (%)","13.8"," > 35",{"$f":"IFERROR(VLOOKUP(A635,Translation!$A:$C,3,FALSE),A635)","v":28},{"$f":"IFERROR(VLOOKUP(B635,Translation!$A:$C,3,FALSE),B635)","v":"T2 2018"},{"$f":"IFERROR(VLOOKUP(C635,Translation!$A:$C,3,FALSE),C635)","v":"IMMEUBLES COLLECTIFS RÉSIDENTIELS"},{"$f":"IFERROR(VLOOKUP(D635,Translation!$A:$C,3,FALSE),D635)","v":"> 35"},{"$f":"IFERROR(VLOOKUP(E635,Translation!$A:$C,3,FALSE),E635)","v":13.844326079885063},{"$f":"IFERROR(VLOOKUP(F635,Translation!$A:$C,3,FALSE),F635)","v":"Prêts hypothécaires assurés au cours de la période selon la période d’amortissement (en années) à l'initiation (%)"},{"$f":"IFERROR(VLOOKUP(G635,Translation!$A:$C,3,FALSE),G635)","v":"13.8"},{"$f":"IFERROR(VLOOKUP(H635,Translation!$A:$C,3,FALSE),H635)","v":" > 35"}]
[28,"T2 2018","IMMEUBLES COLLECTIFS RÉSIDENTIELS","Période d’amortissement moyenne",31.205030155633548,"Prêts hypothécaires assurés au cours de la période selon la période d’amortissement (en années) à l'initiation (%)","31.2","Période d’amortissement moyenne",{"$f":"IFERROR(VLOOKUP(A636,Translation!$A:$C,3,FALSE),A636)","v":28},{"$f":"IFERROR(VLOOKUP(B636,Translation!$A:$C,3,FALSE),B636)","v":"T2 2018"},{"$f":"IFERROR(VLOOKUP(C636,Translation!$A:$C,3,FALSE),C636)","v":"IMMEUBLES COLLECTIFS RÉSIDENTIELS"},{"$f":"IFERROR(VLOOKUP(D636,Translation!$A:$C,3,FALSE),D636)","v":"Période d’amortissement moyenne"},{"$f":"IFERROR(VLOOKUP(E636,Translation!$A:$C,3,FALSE),E636)","v":31.205030155633548},{"$f":"IFERROR(VLOOKUP(F636,Translation!$A:$C,3,FALSE),F636)","v":"Prêts hypothécaires assurés au cours de la période selon la période d’amortissement (en années) à l'initiation (%)"},{"$f":"IFERROR(VLOOKUP(G636,Translation!$A:$C,3,FALSE),G636)","v":"31.2"},{"$f":"IFERROR(VLOOKUP(H636,Translation!$A:$C,3,FALSE),H636)","v":"Période d’amortissement moyenne"}]
[28,"T2 2018","IMMEUBLES COLLECTIFS RÉSIDENTIELS","Île-du-Prince-Édouard",25,"Période d’amortissement moyenne selon la province","25.0","Île-du-Prince-Édouard",{"$f":"IFERROR(VLOOKUP(A637,Translation!$A:$C,3,FALSE),A637)","v":28},{"$f":"IFERROR(VLOOKUP(B637,Translation!$A:$C,3,FALSE),B637)","v":"T2 2018"},{"$f":"IFERROR(VLOOKUP(C637,Translation!$A:$C,3,FALSE),C637)","v":"IMMEUBLES COLLECTIFS RÉSIDENTIELS"},{"$f":"IFERROR(VLOOKUP(D637,Translation!$A:$C,3,FALSE),D637)","v":"Île-du-Prince-Édouard"},{"$f":"IFERROR(VLOOKUP(E637,Translation!$A:$C,3,FALSE),E637)","v":25},{"$f":"IFERROR(VLOOKUP(F637,Translation!$A:$C,3,FALSE),F637)","v":"Période d’amortissement moyenne selon la province"},{"$f":"IFERROR(VLOOKUP(G637,Translation!$A:$C,3,FALSE),G637)","v":"25.0"},{"$f":"IFERROR(VLOOKUP(H637,Translation!$A:$C,3,FALSE),H637)","v":"Île-du-Prince-Édouard"}]
[28,"T2 2018","IMMEUBLES COLLECTIFS RÉSIDENTIELS","Nouvelle-Écosse",31.657840533123498,"Période d’amortissement moyenne selon la province","31.7","Nouvelle-Écosse",{"$f":"IFERROR(VLOOKUP(A638,Translation!$A:$C,3,FALSE),A638)","v":28},{"$f":"IFERROR(VLOOKUP(B638,Translation!$A:$C,3,FALSE),B638)","v":"T2 2018"},{"$f":"IFERROR(VLOOKUP(C638,Translation!$A:$C,3,FALSE),C638)","v":"IMMEUBLES COLLECTIFS RÉSIDENTIELS"},{"$f":"IFERROR(VLOOKUP(D638,Translation!$A:$C,3,FALSE),D638)","v":"Nouvelle-Écosse"},{"$f":"IFERROR(VLOOKUP(E638,Translation!$A:$C,3,FALSE),E638)","v":31.657840533123498},{"$f":"IFERROR(VLOOKUP(F638,Translation!$A:$C,3,FALSE),F638)","v":"Période d’amortissement moyenne selon la province"},{"$f":"IFERROR(VLOOKUP(G638,Translation!$A:$C,3,FALSE),G638)","v":"31.7"},{"$f":"IFERROR(VLOOKUP(H638,Translation!$A:$C,3,FALSE),H638)","v":"Nouvelle-Écosse"}]
[28,"T2 2018","IMMEUBLES COLLECTIFS RÉSIDENTIELS","Nouveau-Brunswick",26.928962557665113,"Période d’amortissement moyenne selon la province","26.9","Nouveau-Brunswick",{"$f":"IFERROR(VLOOKUP(A639,Translation!$A:$C,3,FALSE),A639)","v":28},{"$f":"IFERROR(VLOOKUP(B639,Translation!$A:$C,3,FALSE),B639)","v":"T2 2018"},{"$f":"IFERROR(VLOOKUP(C639,Translation!$A:$C,3,FALSE),C639)","v":"IMMEUBLES COLLECTIFS RÉSIDENTIELS"},{"$f":"IFERROR(VLOOKUP(D639,Translation!$A:$C,3,FALSE),D639)","v":"Nouveau-Brunswick"},{"$f":"IFERROR(VLOOKUP(E639,Translation!$A:$C,3,FALSE),E639)","v":26.928962557665113},{"$f":"IFERROR(VLOOKUP(F639,Translation!$A:$C,3,FALSE),F639)","v":"Période d’amortissement moyenne selon la province"},{"$f":"IFERROR(VLOOKUP(G639,Translation!$A:$C,3,FALSE),G639)","v":"26.9"},{"$f":"IFERROR(VLOOKUP(H639,Translation!$A:$C,3,FALSE),H639)","v":"Nouveau-Brunswick"}]
[28,"T2 2018","IMMEUBLES COLLECTIFS RÉSIDENTIELS","Québec",33.508469104125723,"Période d’amortissement moyenne selon la province","33.5","Québec",{"$f":"IFERROR(VLOOKUP(A640,Translation!$A:$C,3,FALSE),A640)","v":28},{"$f":"IFERROR(VLOOKUP(B640,Translation!$A:$C,3,FALSE),B640)","v":"T2 2018"},{"$f":"IFERROR(VLOOKUP(C640,Translation!$A:$C,3,FALSE),C640)","v":"IMMEUBLES COLLECTIFS RÉSIDENTIELS"},{"$f":"IFERROR(VLOOKUP(D640,Translation!$A:$C,3,FALSE),D640)","v":"Québec"},{"$f":"IFERROR(VLOOKUP(E640,Translation!$A:$C,3,FALSE),E640)","v":33.508469104125723},{"$f":"IFERROR(VLOOKUP(F640,Translation!$A:$C,3,FALSE),F640)","v":"Période d’amortissement moyenne selon la province"},{"$f":"IFERROR(VLOOKUP(G640,Translation!$A:$C,3,FALSE),G640)","v":"33.5"},{"$f":"IFERROR(VLOOKUP(H640,Translation!$A:$C,3,FALSE),H640)","v":"Québec"}]
[28,"T2 2018","IMMEUBLES COLLECTIFS RÉSIDENTIELS","Ontario",29.330519383947507,"Période d’amortissement moyenne selon la province","29.3","Ontario",{"$f":"IFERROR(VLOOKUP(A641,Translation!$A:$C,3,FALSE),A641)","v":28},{"$f":"IFERROR(VLOOKUP(B641,Translation!$A:$C,3,FALSE),B641)","v":"T2 2018"},{"$f":"IFERROR(VLOOKUP(C641,Translation!$A:$C,3,FALSE),C641)","v":"IMMEUBLES COLLECTIFS RÉSIDENTIELS"},{"$f":"IFERROR(VLOOKUP(D641,Translation!$A:$C,3,FALSE),D641)","v":"Ontario"},{"$f":"IFERROR(VLOOKUP(E641,Translation!$A:$C,3,FALSE),E641)","v":29.330519383947507},{"$f":"IFERROR(VLOOKUP(F641,Translation!$A:$C,3,FALSE),F641)","v":"Période d’amortissement moyenne selon la province"},{"$f":"IFERROR(VLOOKUP(G641,Translation!$A:$C,3,FALSE),G641)","v":"29.3"},{"$f":"IFERROR(VLOOKUP(H641,Translation!$A:$C,3,FALSE),H641)","v":"Ontario"}]
[28,"T2 2018","IMMEUBLES COLLECTIFS RÉSIDENTIELS","Manitoba",26.066229008123123,"Période d’amortissement moyenne selon la province","26.1","Manitoba",{"$f":"IFERROR(VLOOKUP(A642,Translation!$A:$C,3,FALSE),A642)","v":28},{"$f":"IFERROR(VLOOKUP(B642,Translation!$A:$C,3,FALSE),B642)","v":"T2 2018"},{"$f":"IFERROR(VLOOKUP(C642,Translation!$A:$C,3,FALSE),C642)","v":"IMMEUBLES COLLECTIFS RÉSIDENTIELS"},{"$f":"IFERROR(VLOOKUP(D642,Translation!$A:$C,3,FALSE),D642)","v":"Manitoba"},{"$f":"IFERROR(VLOOKUP(E642,Translation!$A:$C,3,FALSE),E642)","v":26.066229008123123},{"$f":"IFERROR(VLOOKUP(F642,Translation!$A:$C,3,FALSE),F642)","v":"Période d’amortissement moyenne selon la province"},{"$f":"IFERROR(VLOOKUP(G642,Translation!$A:$C,3,FALSE),G642)","v":"26.1"},{"$f":"IFERROR(VLOOKUP(H642,Translation!$A:$C,3,FALSE),H642)","v":"Manitoba"}]
[28,"T2 2018","IMMEUBLES COLLECTIFS RÉSIDENTIELS","Saskatchewan",32.750445837229059,"Période d’amortissement moyenne selon la province","32.8","Saskatchewan",{"$f":"IFERROR(VLOOKUP(A643,Translation!$A:$C,3,FALSE),A643)","v":28},{"$f":"IFERROR(VLOOKUP(B643,Translation!$A:$C,3,FALSE),B643)","v":"T2 2018"},{"$f":"IFERROR(VLOOKUP(C643,Translation!$A:$C,3,FALSE),C643)","v":"IMMEUBLES COLLECTIFS RÉSIDENTIELS"},{"$f":"IFERROR(VLOOKUP(D643,Translation!$A:$C,3,FALSE),D643)","v":"Saskatchewan"},{"$f":"IFERROR(VLOOKUP(E643,Translation!$A:$C,3,FALSE),E643)","v":32.750445837229059},{"$f":"IFERROR(VLOOKUP(F643,Translation!$A:$C,3,FALSE),F643)","v":"Période d’amortissement moyenne selon la province"},{"$f":"IFERROR(VLOOKUP(G643,Translation!$A:$C,3,FALSE),G643)","v":"32.8"},{"$f":"IFERROR(VLOOKUP(H643,Translation!$A:$C,3,FALSE),H643)","v":"Saskatchewan"}]
[28,"T2 2018","IMMEUBLES COLLECTIFS RÉSIDENTIELS","Alberta",31.707263415657959,"Période d’amortissement moyenne selon la province","31.7","Alberta",{"$f":"IFERROR(VLOOKUP(A644,Translation!$A:$C,3,FALSE),A644)","v":28},{"$f":"IFERROR(VLOOKUP(B644,Translation!$A:$C,3,FALSE),B644)","v":"T2 2018"},{"$f":"IFERROR(VLOOKUP(C644,Translation!$A:$C,3,FALSE),C644)","v":"IMMEUBLES COLLECTIFS RÉSIDENTIELS"},{"$f":"IFERROR(VLOOKUP(D644,Translation!$A:$C,3,FALSE),D644)","v":"Alberta"},{"$f":"IFERROR(VLOOKUP(E644,Translation!$A:$C,3,FALSE),E644)","v":31.707263415657959},{"$f":"IFERROR(VLOOKUP(F644,Translation!$A:$C,3,FALSE),F644)","v":"Période d’amortissement moyenne selon la province"},{"$f":"IFERROR(VLOOKUP(G644,Translation!$A:$C,3,FALSE),G644)","v":"31.7"},{"$f":"IFERROR(VLOOKUP(H644,Translation!$A:$C,3,FALSE),H644)","v":"Alberta"}]
[28,"T2 2018","IMMEUBLES COLLECTIFS RÉSIDENTIELS","Colombie-Britannique",32.740463406230774,"Période d’amortissement moyenne selon la province","32.7","Colombie-Britannique",{"$f":"IFERROR(VLOOKUP(A645,Translation!$A:$C,3,FALSE),A645)","v":28},{"$f":"IFERROR(VLOOKUP(B645,Translation!$A:$C,3,FALSE),B645)","v":"T2 2018"},{"$f":"IFERROR(VLOOKUP(C645,Translation!$A:$C,3,FALSE),C645)","v":"IMMEUBLES COLLECTIFS RÉSIDENTIELS"},{"$f":"IFERROR(VLOOKUP(D645,Translation!$A:$C,3,FALSE),D645)","v":"Colombie-Britannique"},{"$f":"IFERROR(VLOOKUP(E645,Translation!$A:$C,3,FALSE),E645)","v":32.740463406230774},{"$f":"IFERROR(VLOOKUP(F645,Translation!$A:$C,3,FALSE),F645)","v":"Période d’amortissement moyenne selon la province"},{"$f":"IFERROR(VLOOKUP(G645,Translation!$A:$C,3,FALSE),G645)","v":"32.7"},{"$f":"IFERROR(VLOOKUP(H645,Translation!$A:$C,3,FALSE),H645)","v":"Colombie-Britannique"}]
[10,"T1 2017","PROPRIÉTAIRES-OCCUPANTS, À L’UNITÉ","<= 5",2.3349271328082805E-3,"Prêts hypothécaires assurés au cours de la période selon la période d’amortissement (en années) à l'initiation (%)","0.0"," <= 5",{"$f":"IFERROR(VLOOKUP(A646,Translation!$A:$C,3,FALSE),A646)","v":10},{"$f":"IFERROR(VLOOKUP(B646,Translation!$A:$C,3,FALSE),B646)","v":"T1 2017"},{"$f":"IFERROR(VLOOKUP(C646,Translation!$A:$C,3,FALSE),C646)","v":"PROPRIÉTAIRES-OCCUPANTS, À L’UNITÉ"},{"$f":"IFERROR(VLOOKUP(D646,Translation!$A:$C,3,FALSE),D646)","v":"<= 5"},{"$f":"IFERROR(VLOOKUP(E646,Translation!$A:$C,3,FALSE),E646)","v":2.3349271328082805E-3},{"$f":"IFERROR(VLOOKUP(F646,Translation!$A:$C,3,FALSE),F646)","v":"Prêts hypothécaires assurés au cours de la période selon la période d’amortissement (en années) à l'initiation (%)"},{"$f":"IFERROR(VLOOKUP(G646,Translation!$A:$C,3,FALSE),G646)","v":"0.0"},{"$f":"IFERROR(VLOOKUP(H646,Translation!$A:$C,3,FALSE),H646)","v":" <= 5"}]
[10,"T1 2018","PROPRIÉTAIRES-OCCUPANTS, À L’UNITÉ","<= 5",7.1857004317547983E-3,"Prêts hypothécaires assurés au cours de la période selon la période d’amortissement (en années) à l'initiation (%)","0.0"," <= 5",{"$f":"IFERROR(VLOOKUP(A647,Translation!$A:$C,3,FALSE),A647)","v":10},{"$f":"IFERROR(VLOOKUP(B647,Translation!$A:$C,3,FALSE),B647)","v":"T1 2018"},{"$f":"IFERROR(VLOOKUP(C647,Translation!$A:$C,3,FALSE),C647)","v":"PROPRIÉTAIRES-OCCUPANTS, À L’UNITÉ"},{"$f":"IFERROR(VLOOKUP(D647,Translation!$A:$C,3,FALSE),D647)","v":"<= 5"},{"$f":"IFERROR(VLOOKUP(E647,Translation!$A:$C,3,FALSE),E647)","v":7.1857004317547983E-3},{"$f":"IFERROR(VLOOKUP(F647,Translation!$A:$C,3,FALSE),F647)","v":"Prêts hypothécaires assurés au cours de la période selon la période d’amortissement (en années) à l'initiation (%)"},{"$f":"IFERROR(VLOOKUP(G647,Translation!$A:$C,3,FALSE),G647)","v":"0.0"},{"$f":"IFERROR(VLOOKUP(H647,Translation!$A:$C,3,FALSE),H647)","v":" <= 5"}]
[10,"Q2 2016","PROPRIÉTAIRES-OCCUPANTS, À L’UNITÉ","<= 5",1.351842825301139E-2,"Prêts hypothécaires assurés au cours de la période selon la période d’amortissement (en années) à l'initiation (%)","0.0"," <= 5",{"$f":"IFERROR(VLOOKUP(A648,Translation!$A:$C,3,FALSE),A648)","v":10},{"$f":"IFERROR(VLOOKUP(B648,Translation!$A:$C,3,FALSE),B648)","v":"Q2 2016"},{"$f":"IFERROR(VLOOKUP(C648,Translation!$A:$C,3,FALSE),C648)","v":"PROPRIÉTAIRES-OCCUPANTS, À L’UNITÉ"},{"$f":"IFERROR(VLOOKUP(D648,Translation!$A:$C,3,FALSE),D648)","v":"<= 5"},{"$f":"IFERROR(VLOOKUP(E648,Translation!$A:$C,3,FALSE),E648)","v":1.351842825301139E-2},{"$f":"IFERROR(VLOOKUP(F648,Translation!$A:$C,3,FALSE),F648)","v":"Prêts hypothécaires assurés au cours de la période selon la période d’amortissement (en années) à l'initiation (%)"},{"$f":"IFERROR(VLOOKUP(G648,Translation!$A:$C,3,FALSE),G648)","v":"0.0"},{"$f":"IFERROR(VLOOKUP(H648,Translation!$A:$C,3,FALSE),H648)","v":" <= 5"}]
[10,"T2 2017","PROPRIÉTAIRES-OCCUPANTS, À L’UNITÉ","<= 5",8.4572522811376984E-3,"Prêts hypothécaires assurés au cours de la période selon la période d’amortissement (en années) à l'initiation (%)","0.0"," <= 5",{"$f":"IFERROR(VLOOKUP(A649,Translation!$A:$C,3,FALSE),A649)","v":10},{"$f":"IFERROR(VLOOKUP(B649,Translation!$A:$C,3,FALSE),B649)","v":"T2 2017"},{"$f":"IFERROR(VLOOKUP(C649,Translation!$A:$C,3,FALSE),C649)","v":"PROPRIÉTAIRES-OCCUPANTS, À L’UNITÉ"},{"$f":"IFERROR(VLOOKUP(D649,Translation!$A:$C,3,FALSE),D649)","v":"<= 5"},{"$f":"IFERROR(VLOOKUP(E649,Translation!$A:$C,3,FALSE),E649)","v":8.4572522811376984E-3},{"$f":"IFERROR(VLOOKUP(F649,Translation!$A:$C,3,FALSE),F649)","v":"Prêts hypothécaires assurés au cours de la période selon la période d’amortissement (en années) à l'initiation (%)"},{"$f":"IFERROR(VLOOKUP(G649,Translation!$A:$C,3,FALSE),G649)","v":"0.0"},{"$f":"IFERROR(VLOOKUP(H649,Translation!$A:$C,3,FALSE),H649)","v":" <= 5"}]
[10,"Q3 2016","PROPRIÉTAIRES-OCCUPANTS, À L’UNITÉ","<= 5",2.6705404389159183E-2,"Prêts hypothécaires assurés au cours de la période selon la période d’amortissement (en années) à l'initiation (%)","0.0"," <= 5",{"$f":"IFERROR(VLOOKUP(A650,Translation!$A:$C,3,FALSE),A650)","v":10},{"$f":"IFERROR(VLOOKUP(B650,Translation!$A:$C,3,FALSE),B650)","v":"Q3 2016"},{"$f":"IFERROR(VLOOKUP(C650,Translation!$A:$C,3,FALSE),C650)","v":"PROPRIÉTAIRES-OCCUPANTS, À L’UNITÉ"},{"$f":"IFERROR(VLOOKUP(D650,Translation!$A:$C,3,FALSE),D650)","v":"<= 5"},{"$f":"IFERROR(VLOOKUP(E650,Translation!$A:$C,3,FALSE),E650)","v":2.6705404389159183E-2},{"$f":"IFERROR(VLOOKUP(F650,Translation!$A:$C,3,FALSE),F650)","v":"Prêts hypothécaires assurés au cours de la période selon la période d’amortissement (en années) à l'initiation (%)"},{"$f":"IFERROR(VLOOKUP(G650,Translation!$A:$C,3,FALSE),G650)","v":"0.0"},{"$f":"IFERROR(VLOOKUP(H650,Translation!$A:$C,3,FALSE),H650)","v":" <= 5"}]
[10,"T3 2017","PROPRIÉTAIRES-OCCUPANTS, À L’UNITÉ","<= 5",9.1755056760271653E-3,"Prêts hypothécaires assurés au cours de la période selon la période d’amortissement (en années) à l'initiation (%)","0.0"," <= 5",{"$f":"IFERROR(VLOOKUP(A651,Translation!$A:$C,3,FALSE),A651)","v":10},{"$f":"IFERROR(VLOOKUP(B651,Translation!$A:$C,3,FALSE),B651)","v":"T3 2017"},{"$f":"IFERROR(VLOOKUP(C651,Translation!$A:$C,3,FALSE),C651)","v":"PROPRIÉTAIRES-OCCUPANTS, À L’UNITÉ"},{"$f":"IFERROR(VLOOKUP(D651,Translation!$A:$C,3,FALSE),D651)","v":"<= 5"},{"$f":"IFERROR(VLOOKUP(E651,Translation!$A:$C,3,FALSE),E651)","v":9.1755056760271653E-3},{"$f":"IFERROR(VLOOKUP(F651,Translation!$A:$C,3,FALSE),F651)","v":"Prêts hypothécaires assurés au cours de la période selon la période d’amortissement (en années) à l'initiation (%)"},{"$f":"IFERROR(VLOOKUP(G651,Translation!$A:$C,3,FALSE),G651)","v":"0.0"},{"$f":"IFERROR(VLOOKUP(H651,Translation!$A:$C,3,FALSE),H651)","v":" <= 5"}]
[10,"Q4 2016","PROPRIÉTAIRES-OCCUPANTS, À L’UNITÉ","<= 5",2.0445890411546198E-2,"Prêts hypothécaires assurés au cours de la période selon la période d’amortissement (en années) à l'initiation (%)","0.0"," <= 5",{"$f":"IFERROR(VLOOKUP(A652,Translation!$A:$C,3,FALSE),A652)","v":10},{"$f":"IFERROR(VLOOKUP(B652,Translation!$A:$C,3,FALSE),B652)","v":"Q4 2016"},{"$f":"IFERROR(VLOOKUP(C652,Translation!$A:$C,3,FALSE),C652)","v":"PROPRIÉTAIRES-OCCUPANTS, À L’UNITÉ"},{"$f":"IFERROR(VLOOKUP(D652,Translation!$A:$C,3,FALSE),D652)","v":"<= 5"},{"$f":"IFERROR(VLOOKUP(E652,Translation!$A:$C,3,FALSE),E652)","v":2.0445890411546198E-2},{"$f":"IFERROR(VLOOKUP(F652,Translation!$A:$C,3,FALSE),F652)","v":"Prêts hypothécaires assurés au cours de la période selon la période d’amortissement (en années) à l'initiation (%)"},{"$f":"IFERROR(VLOOKUP(G652,Translation!$A:$C,3,FALSE),G652)","v":"0.0"},{"$f":"IFERROR(VLOOKUP(H652,Translation!$A:$C,3,FALSE),H652)","v":" <= 5"}]
[10,"T4 2017","PROPRIÉTAIRES-OCCUPANTS, À L’UNITÉ","<= 5",9.3033242223774584E-3,"Prêts hypothécaires assurés au cours de la période selon la période d’amortissement (en années) à l'initiation (%)","0.0"," <= 5",{"$f":"IFERROR(VLOOKUP(A653,Translation!$A:$C,3,FALSE),A653)","v":10},{"$f":"IFERROR(VLOOKUP(B653,Translation!$A:$C,3,FALSE),B653)","v":"T4 2017"},{"$f":"IFERROR(VLOOKUP(C653,Translation!$A:$C,3,FALSE),C653)","v":"PROPRIÉTAIRES-OCCUPANTS, À L’UNITÉ"},{"$f":"IFERROR(VLOOKUP(D653,Translation!$A:$C,3,FALSE),D653)","v":"<= 5"},{"$f":"IFERROR(VLOOKUP(E653,Translation!$A:$C,3,FALSE),E653)","v":9.3033242223774584E-3},{"$f":"IFERROR(VLOOKUP(F653,Translation!$A:$C,3,FALSE),F653)","v":"Prêts hypothécaires assurés au cours de la période selon la période d’amortissement (en années) à l'initiation (%)"},{"$f":"IFERROR(VLOOKUP(G653,Translation!$A:$C,3,FALSE),G653)","v":"0.0"},{"$f":"IFERROR(VLOOKUP(H653,Translation!$A:$C,3,FALSE),H653)","v":" <= 5"}]
[10,"T1 2017","PROPRIÉTAIRES-OCCUPANTS, À L’UNITÉ","> 5 <= 10",5.01037542775832E-2,"Prêts hypothécaires assurés au cours de la période selon la période d’amortissement (en années) à l'initiation (%)","0.1"," > 5 <= 10",{"$f":"IFERROR(VLOOKUP(A654,Translation!$A:$C,3,FALSE),A654)","v":10},{"$f":"IFERROR(VLOOKUP(B654,Translation!$A:$C,3,FALSE),B654)","v":"T1 2017"},{"$f":"IFERROR(VLOOKUP(C654,Translation!$A:$C,3,FALSE),C654)","v":"PROPRIÉTAIRES-OCCUPANTS, À L’UNITÉ"},{"$f":"IFERROR(VLOOKUP(D654,Translation!$A:$C,3,FALSE),D654)","v":"> 5 <= 10"},{"$f":"IFERROR(VLOOKUP(E654,Translation!$A:$C,3,FALSE),E654)","v":5.01037542775832E-2},{"$f":"IFERROR(VLOOKUP(F654,Translation!$A:$C,3,FALSE),F654)","v":"Prêts hypothécaires assurés au cours de la période selon la période d’amortissement (en années) à l'initiation (%)"},{"$f":"IFERROR(VLOOKUP(G654,Translation!$A:$C,3,FALSE),G654)","v":"0.1"},{"$f":"IFERROR(VLOOKUP(H654,Translation!$A:$C,3,FALSE),H654)","v":" > 5 <= 10"}]
[10,"T1 2018","PROPRIÉTAIRES-OCCUPANTS, À L’UNITÉ","> 5 <= 10",4.4805044648409807E-2,"Prêts hypothécaires assurés au cours de la période selon la période d’amortissement (en années) à l'initiation (%)","0.0"," > 5 <= 10",{"$f":"IFERROR(VLOOKUP(A655,Translation!$A:$C,3,FALSE),A655)","v":10},{"$f":"IFERROR(VLOOKUP(B655,Translation!$A:$C,3,FALSE),B655)","v":"T1 2018"},{"$f":"IFERROR(VLOOKUP(C655,Translation!$A:$C,3,FALSE),C655)","v":"PROPRIÉTAIRES-OCCUPANTS, À L’UNITÉ"},{"$f":"IFERROR(VLOOKUP(D655,Translation!$A:$C,3,FALSE),D655)","v":"> 5 <= 10"},{"$f":"IFERROR(VLOOKUP(E655,Translation!$A:$C,3,FALSE),E655)","v":4.4805044648409807E-2},{"$f":"IFERROR(VLOOKUP(F655,Translation!$A:$C,3,FALSE),F655)","v":"Prêts hypothécaires assurés au cours de la période selon la période d’amortissement (en années) à l'initiation (%)"},{"$f":"IFERROR(VLOOKUP(G655,Translation!$A:$C,3,FALSE),G655)","v":"0.0"},{"$f":"IFERROR(VLOOKUP(H655,Translation!$A:$C,3,FALSE),H655)","v":" > 5 <= 10"}]
[10,"Q2 2016","PROPRIÉTAIRES-OCCUPANTS, À L’UNITÉ","> 5 <= 10",0.11166054271391355,"Prêts hypothécaires assurés au cours de la période selon la période d’amortissement (en années) à l'initiation (%)","0.1"," > 5 <= 10",{"$f":"IFERROR(VLOOKUP(A656,Translation!$A:$C,3,FALSE),A656)","v":10},{"$f":"IFERROR(VLOOKUP(B656,Translation!$A:$C,3,FALSE),B656)","v":"Q2 2016"},{"$f":"IFERROR(VLOOKUP(C656,Translation!$A:$C,3,FALSE),C656)","v":"PROPRIÉTAIRES-OCCUPANTS, À L’UNITÉ"},{"$f":"IFERROR(VLOOKUP(D656,Translation!$A:$C,3,FALSE),D656)","v":"> 5 <= 10"},{"$f":"IFERROR(VLOOKUP(E656,Translation!$A:$C,3,FALSE),E656)","v":0.11166054271391355},{"$f":"IFERROR(VLOOKUP(F656,Translation!$A:$C,3,FALSE),F656)","v":"Prêts hypothécaires assurés au cours de la période selon la période d’amortissement (en années) à l'initiation (%)"},{"$f":"IFERROR(VLOOKUP(G656,Translation!$A:$C,3,FALSE),G656)","v":"0.1"},{"$f":"IFERROR(VLOOKUP(H656,Translation!$A:$C,3,FALSE),H656)","v":" > 5 <= 10"}]
[10,"T2 2017","PROPRIÉTAIRES-OCCUPANTS, À L’UNITÉ","> 5 <= 10",4.8340548991440802E-2,"Prêts hypothécaires assurés au cours de la période selon la période d’amortissement (en années) à l'initiation (%)","0.0"," > 5 <= 10",{"$f":"IFERROR(VLOOKUP(A657,Translation!$A:$C,3,FALSE),A657)","v":10},{"$f":"IFERROR(VLOOKUP(B657,Translation!$A:$C,3,FALSE),B657)","v":"T2 2017"},{"$f":"IFERROR(VLOOKUP(C657,Translation!$A:$C,3,FALSE),C657)","v":"PROPRIÉTAIRES-OCCUPANTS, À L’UNITÉ"},{"$f":"IFERROR(VLOOKUP(D657,Translation!$A:$C,3,FALSE),D657)","v":"> 5 <= 10"},{"$f":"IFERROR(VLOOKUP(E657,Translation!$A:$C,3,FALSE),E657)","v":4.8340548991440802E-2},{"$f":"IFERROR(VLOOKUP(F657,Translation!$A:$C,3,FALSE),F657)","v":"Prêts hypothécaires assurés au cours de la période selon la période d’amortissement (en années) à l'initiation (%)"},{"$f":"IFERROR(VLOOKUP(G657,Translation!$A:$C,3,FALSE),G657)","v":"0.0"},{"$f":"IFERROR(VLOOKUP(H657,Translation!$A:$C,3,FALSE),H657)","v":" > 5 <= 10"}]
[10,"Q3 2016","PROPRIÉTAIRES-OCCUPANTS, À L’UNITÉ","> 5 <= 10",0.12381660456367111,"Prêts hypothécaires assurés au cours de la période selon la période d’amortissement (en années) à l'initiation (%)","0.1"," > 5 <= 10",{"$f":"IFERROR(VLOOKUP(A658,Translation!$A:$C,3,FALSE),A658)","v":10},{"$f":"IFERROR(VLOOKUP(B658,Translation!$A:$C,3,FALSE),B658)","v":"Q3 2016"},{"$f":"IFERROR(VLOOKUP(C658,Translation!$A:$C,3,FALSE),C658)","v":"PROPRIÉTAIRES-OCCUPANTS, À L’UNITÉ"},{"$f":"IFERROR(VLOOKUP(D658,Translation!$A:$C,3,FALSE),D658)","v":"> 5 <= 10"},{"$f":"IFERROR(VLOOKUP(E658,Translation!$A:$C,3,FALSE),E658)","v":0.12381660456367111},{"$f":"IFERROR(VLOOKUP(F658,Translation!$A:$C,3,FALSE),F658)","v":"Prêts hypothécaires assurés au cours de la période selon la période d’amortissement (en années) à l'initiation (%)"},{"$f":"IFERROR(VLOOKUP(G658,Translation!$A:$C,3,FALSE),G658)","v":"0.1"},{"$f":"IFERROR(VLOOKUP(H658,Translation!$A:$C,3,FALSE),H658)","v":" > 5 <= 10"}]
[10,"T3 2017","PROPRIÉTAIRES-OCCUPANTS, À L’UNITÉ","> 5 <= 10",6.8172224081226085E-2,"Prêts hypothécaires assurés au cours de la période selon la période d’amortissement (en années) à l'initiation (%)","0.1"," > 5 <= 10",{"$f":"IFERROR(VLOOKUP(A659,Translation!$A:$C,3,FALSE),A659)","v":10},{"$f":"IFERROR(VLOOKUP(B659,Translation!$A:$C,3,FALSE),B659)","v":"T3 2017"},{"$f":"IFERROR(VLOOKUP(C659,Translation!$A:$C,3,FALSE),C659)","v":"PROPRIÉTAIRES-OCCUPANTS, À L’UNITÉ"},{"$f":"IFERROR(VLOOKUP(D659,Translation!$A:$C,3,FALSE),D659)","v":"> 5 <= 10"},{"$f":"IFERROR(VLOOKUP(E659,Translation!$A:$C,3,FALSE),E659)","v":6.8172224081226085E-2},{"$f":"IFERROR(VLOOKUP(F659,Translation!$A:$C,3,FALSE),F659)","v":"Prêts hypothécaires assurés au cours de la période selon la période d’amortissement (en années) à l'initiation (%)"},{"$f":"IFERROR(VLOOKUP(G659,Translation!$A:$C,3,FALSE),G659)","v":"0.1"},{"$f":"IFERROR(VLOOKUP(H659,Translation!$A:$C,3,FALSE),H659)","v":" > 5 <= 10"}]
[10,"Q4 2016","PROPRIÉTAIRES-OCCUPANTS, À L’UNITÉ","> 5 <= 10",0.15050169898788121,"Prêts hypothécaires assurés au cours de la période selon la période d’amortissement (en années) à l'initiation (%)","0.2"," > 5 <= 10",{"$f":"IFERROR(VLOOKUP(A660,Translation!$A:$C,3,FALSE),A660)","v":10},{"$f":"IFERROR(VLOOKUP(B660,Translation!$A:$C,3,FALSE),B660)","v":"Q4 2016"},{"$f":"IFERROR(VLOOKUP(C660,Translation!$A:$C,3,FALSE),C660)","v":"PROPRIÉTAIRES-OCCUPANTS, À L’UNITÉ"},{"$f":"IFERROR(VLOOKUP(D660,Translation!$A:$C,3,FALSE),D660)","v":"> 5 <= 10"},{"$f":"IFERROR(VLOOKUP(E660,Translation!$A:$C,3,FALSE),E660)","v":0.15050169898788121},{"$f":"IFERROR(VLOOKUP(F660,Translation!$A:$C,3,FALSE),F660)","v":"Prêts hypothécaires assurés au cours de la période selon la période d’amortissement (en années) à l'initiation (%)"},{"$f":"IFERROR(VLOOKUP(G660,Translation!$A:$C,3,FALSE),G660)","v":"0.2"},{"$f":"IFERROR(VLOOKUP(H660,Translation!$A:$C,3,FALSE),H660)","v":" > 5 <= 10"}]
[10,"T4 2017","PROPRIÉTAIRES-OCCUPANTS, À L’UNITÉ","> 5 <= 10",6.2790183934333846E-2,"Prêts hypothécaires assurés au cours de la période selon la période d’amortissement (en années) à l'initiation (%)","0.1"," > 5 <= 10",{"$f":"IFERROR(VLOOKUP(A661,Translation!$A:$C,3,FALSE),A661)","v":10},{"$f":"IFERROR(VLOOKUP(B661,Translation!$A:$C,3,FALSE),B661)","v":"T4 2017"},{"$f":"IFERROR(VLOOKUP(C661,Translation!$A:$C,3,FALSE),C661)","v":"PROPRIÉTAIRES-OCCUPANTS, À L’UNITÉ"},{"$f":"IFERROR(VLOOKUP(D661,Translation!$A:$C,3,FALSE),D661)","v":"> 5 <= 10"},{"$f":"IFERROR(VLOOKUP(E661,Translation!$A:$C,3,FALSE),E661)","v":6.2790183934333846E-2},{"$f":"IFERROR(VLOOKUP(F661,Translation!$A:$C,3,FALSE),F661)","v":"Prêts hypothécaires assurés au cours de la période selon la période d’amortissement (en années) à l'initiation (%)"},{"$f":"IFERROR(VLOOKUP(G661,Translation!$A:$C,3,FALSE),G661)","v":"0.1"},{"$f":"IFERROR(VLOOKUP(H661,Translation!$A:$C,3,FALSE),H661)","v":" > 5 <= 10"}]
[10,"T1 2017","PROPRIÉTAIRES-OCCUPANTS, À L’UNITÉ","> 10 <= 15",0.18875616033447265,"Prêts hypothécaires assurés au cours de la période selon la période d’amortissement (en années) à l'initiation (%)","0.2"," > 10 <= 15",{"$f":"IFERROR(VLOOKUP(A662,Translation!$A:$C,3,FALSE),A662)","v":10},{"$f":"IFERROR(VLOOKUP(B662,Translation!$A:$C,3,FALSE),B662)","v":"T1 2017"},{"$f":"IFERROR(VLOOKUP(C662,Translation!$A:$C,3,FALSE),C662)","v":"PROPRIÉTAIRES-OCCUPANTS, À L’UNITÉ"},{"$f":"IFERROR(VLOOKUP(D662,Translation!$A:$C,3,FALSE),D662)","v":"> 10 <= 15"},{"$f":"IFERROR(VLOOKUP(E662,Translation!$A:$C,3,FALSE),E662)","v":0.18875616033447265},{"$f":"IFERROR(VLOOKUP(F662,Translation!$A:$C,3,FALSE),F662)","v":"Prêts hypothécaires assurés au cours de la période selon la période d’amortissement (en années) à l'initiation (%)"},{"$f":"IFERROR(VLOOKUP(G662,Translation!$A:$C,3,FALSE),G662)","v":"0.2"},{"$f":"IFERROR(VLOOKUP(H662,Translation!$A:$C,3,FALSE),H662)","v":" > 10 <= 15"}]
[10,"T1 2018","PROPRIÉTAIRES-OCCUPANTS, À L’UNITÉ","> 10 <= 15",0.16470815013575363,"Prêts hypothécaires assurés au cours de la période selon la période d’amortissement (en années) à l'initiation (%)","0.2"," > 10 <= 15",{"$f":"IFERROR(VLOOKUP(A663,Translation!$A:$C,3,FALSE),A663)","v":10},{"$f":"IFERROR(VLOOKUP(B663,Translation!$A:$C,3,FALSE),B663)","v":"T1 2018"},{"$f":"IFERROR(VLOOKUP(C663,Translation!$A:$C,3,FALSE),C663)","v":"PROPRIÉTAIRES-OCCUPANTS, À L’UNITÉ"},{"$f":"IFERROR(VLOOKUP(D663,Translation!$A:$C,3,FALSE),D663)","v":"> 10 <= 15"},{"$f":"IFERROR(VLOOKUP(E663,Translation!$A:$C,3,FALSE),E663)","v":0.16470815013575363},{"$f":"IFERROR(VLOOKUP(F663,Translation!$A:$C,3,FALSE),F663)","v":"Prêts hypothécaires assurés au cours de la période selon la période d’amortissement (en années) à l'initiation (%)"},{"$f":"IFERROR(VLOOKUP(G663,Translation!$A:$C,3,FALSE),G663)","v":"0.2"},{"$f":"IFERROR(VLOOKUP(H663,Translation!$A:$C,3,FALSE),H663)","v":" > 10 <= 15"}]
[10,"Q2 2016","PROPRIÉTAIRES-OCCUPANTS, À L’UNITÉ","> 10 <= 15",0.29993033110005157,"Prêts hypothécaires assurés au cours de la période selon la période d’amortissement (en années) à l'initiation (%)","0.3"," > 10 <= 15",{"$f":"IFERROR(VLOOKUP(A664,Translation!$A:$C,3,FALSE),A664)","v":10},{"$f":"IFERROR(VLOOKUP(B664,Translation!$A:$C,3,FALSE),B664)","v":"Q2 2016"},{"$f":"IFERROR(VLOOKUP(C664,Translation!$A:$C,3,FALSE),C664)","v":"PROPRIÉTAIRES-OCCUPANTS, À L’UNITÉ"},{"$f":"IFERROR(VLOOKUP(D664,Translation!$A:$C,3,FALSE),D664)","v":"> 10 <= 15"},{"$f":"IFERROR(VLOOKUP(E664,Translation!$A:$C,3,FALSE),E664)","v":0.29993033110005157},{"$f":"IFERROR(VLOOKUP(F664,Translation!$A:$C,3,FALSE),F664)","v":"Prêts hypothécaires assurés au cours de la période selon la période d’amortissement (en années) à l'initiation (%)"},{"$f":"IFERROR(VLOOKUP(G664,Translation!$A:$C,3,FALSE),G664)","v":"0.3"},{"$f":"IFERROR(VLOOKUP(H664,Translation!$A:$C,3,FALSE),H664)","v":" > 10 <= 15"}]
[10,"T2 2017","PROPRIÉTAIRES-OCCUPANTS, À L’UNITÉ","> 10 <= 15",0.19264424284179224,"Prêts hypothécaires assurés au cours de la période selon la période d’amortissement (en années) à l'initiation (%)","0.2"," > 10 <= 15",{"$f":"IFERROR(VLOOKUP(A665,Translation!$A:$C,3,FALSE),A665)","v":10},{"$f":"IFERROR(VLOOKUP(B665,Translation!$A:$C,3,FALSE),B665)","v":"T2 2017"},{"$f":"IFERROR(VLOOKUP(C665,Translation!$A:$C,3,FALSE),C665)","v":"PROPRIÉTAIRES-OCCUPANTS, À L’UNITÉ"},{"$f":"IFERROR(VLOOKUP(D665,Translation!$A:$C,3,FALSE),D665)","v":"> 10 <= 15"},{"$f":"IFERROR(VLOOKUP(E665,Translation!$A:$C,3,FALSE),E665)","v":0.19264424284179224},{"$f":"IFERROR(VLOOKUP(F665,Translation!$A:$C,3,FALSE),F665)","v":"Prêts hypothécaires assurés au cours de la période selon la période d’amortissement (en années) à l'initiation (%)"},{"$f":"IFERROR(VLOOKUP(G665,Translation!$A:$C,3,FALSE),G665)","v":"0.2"},{"$f":"IFERROR(VLOOKUP(H665,Translation!$A:$C,3,FALSE),H665)","v":" > 10 <= 15"}]
[10,"Q3 2016","PROPRIÉTAIRES-OCCUPANTS, À L’UNITÉ","> 10 <= 15",0.31859914576819315,"Prêts hypothécaires assurés au cours de la période selon la période d’amortissement (en années) à l'initiation (%)","0.3"," > 10 <= 15",{"$f":"IFERROR(VLOOKUP(A666,Translation!$A:$C,3,FALSE),A666)","v":10},{"$f":"IFERROR(VLOOKUP(B666,Translation!$A:$C,3,FALSE),B666)","v":"Q3 2016"},{"$f":"IFERROR(VLOOKUP(C666,Translation!$A:$C,3,FALSE),C666)","v":"PROPRIÉTAIRES-OCCUPANTS, À L’UNITÉ"},{"$f":"IFERROR(VLOOKUP(D666,Translation!$A:$C,3,FALSE),D666)","v":"> 10 <= 15"},{"$f":"IFERROR(VLOOKUP(E666,Translation!$A:$C,3,FALSE),E666)","v":0.31859914576819315},{"$f":"IFERROR(VLOOKUP(F666,Translation!$A:$C,3,FALSE),F666)","v":"Prêts hypothécaires assurés au cours de la période selon la période d’amortissement (en années) à l'initiation (%)"},{"$f":"IFERROR(VLOOKUP(G666,Translation!$A:$C,3,FALSE),G666)","v":"0.3"},{"$f":"IFERROR(VLOOKUP(H666,Translation!$A:$C,3,FALSE),H666)","v":" > 10 <= 15"}]
[10,"T3 2017","PROPRIÉTAIRES-OCCUPANTS, À L’UNITÉ","> 10 <= 15",0.18871819140418372,"Prêts hypothécaires assurés au cours de la période selon la période d’amortissement (en années) à l'initiation (%)","0.2"," > 10 <= 15",{"$f":"IFERROR(VLOOKUP(A667,Translation!$A:$C,3,FALSE),A667)","v":10},{"$f":"IFERROR(VLOOKUP(B667,Translation!$A:$C,3,FALSE),B667)","v":"T3 2017"},{"$f":"IFERROR(VLOOKUP(C667,Translation!$A:$C,3,FALSE),C667)","v":"PROPRIÉTAIRES-OCCUPANTS, À L’UNITÉ"},{"$f":"IFERROR(VLOOKUP(D667,Translation!$A:$C,3,FALSE),D667)","v":"> 10 <= 15"},{"$f":"IFERROR(VLOOKUP(E667,Translation!$A:$C,3,FALSE),E667)","v":0.18871819140418372},{"$f":"IFERROR(VLOOKUP(F667,Translation!$A:$C,3,FALSE),F667)","v":"Prêts hypothécaires assurés au cours de la période selon la période d’amortissement (en années) à l'initiation (%)"},{"$f":"IFERROR(VLOOKUP(G667,Translation!$A:$C,3,FALSE),G667)","v":"0.2"},{"$f":"IFERROR(VLOOKUP(H667,Translation!$A:$C,3,FALSE),H667)","v":" > 10 <= 15"}]
[10,"Q4 2016","PROPRIÉTAIRES-OCCUPANTS, À L’UNITÉ","> 10 <= 15",0.34044648396261035,"Prêts hypothécaires assurés au cours de la période selon la période d’amortissement (en années) à l'initiation (%)","0.3"," > 10 <= 15",{"$f":"IFERROR(VLOOKUP(A668,Translation!$A:$C,3,FALSE),A668)","v":10},{"$f":"IFERROR(VLOOKUP(B668,Translation!$A:$C,3,FALSE),B668)","v":"Q4 2016"},{"$f":"IFERROR(VLOOKUP(C668,Translation!$A:$C,3,FALSE),C668)","v":"PROPRIÉTAIRES-OCCUPANTS, À L’UNITÉ"},{"$f":"IFERROR(VLOOKUP(D668,Translation!$A:$C,3,FALSE),D668)","v":"> 10 <= 15"},{"$f":"IFERROR(VLOOKUP(E668,Translation!$A:$C,3,FALSE),E668)","v":0.34044648396261035},{"$f":"IFERROR(VLOOKUP(F668,Translation!$A:$C,3,FALSE),F668)","v":"Prêts hypothécaires assurés au cours de la période selon la période d’amortissement (en années) à l'initiation (%)"},{"$f":"IFERROR(VLOOKUP(G668,Translation!$A:$C,3,FALSE),G668)","v":"0.3"},{"$f":"IFERROR(VLOOKUP(H668,Translation!$A:$C,3,FALSE),H668)","v":" > 10 <= 15"}]
[10,"T4 2017","PROPRIÉTAIRES-OCCUPANTS, À L’UNITÉ","> 10 <= 15",0.22043087258123212,"Prêts hypothécaires assurés au cours de la période selon la période d’amortissement (en années) à l'initiation (%)","0.2"," > 10 <= 15",{"$f":"IFERROR(VLOOKUP(A669,Translation!$A:$C,3,FALSE),A669)","v":10},{"$f":"IFERROR(VLOOKUP(B669,Translation!$A:$C,3,FALSE),B669)","v":"T4 2017"},{"$f":"IFERROR(VLOOKUP(C669,Translation!$A:$C,3,FALSE),C669)","v":"PROPRIÉTAIRES-OCCUPANTS, À L’UNITÉ"},{"$f":"IFERROR(VLOOKUP(D669,Translation!$A:$C,3,FALSE),D669)","v":"> 10 <= 15"},{"$f":"IFERROR(VLOOKUP(E669,Translation!$A:$C,3,FALSE),E669)","v":0.22043087258123212},{"$f":"IFERROR(VLOOKUP(F669,Translation!$A:$C,3,FALSE),F669)","v":"Prêts hypothécaires assurés au cours de la période selon la période d’amortissement (en années) à l'initiation (%)"},{"$f":"IFERROR(VLOOKUP(G669,Translation!$A:$C,3,FALSE),G669)","v":"0.2"},{"$f":"IFERROR(VLOOKUP(H669,Translation!$A:$C,3,FALSE),H669)","v":" > 10 <= 15"}]
[10,"T1 2017","PROPRIÉTAIRES-OCCUPANTS, À L’UNITÉ","> 15 <= 20",0.51519011461318065,"Prêts hypothécaires assurés au cours de la période selon la période d’amortissement (en années) à l'initiation (%)","0.5"," > 15 <= 20",{"$f":"IFERROR(VLOOKUP(A670,Translation!$A:$C,3,FALSE),A670)","v":10},{"$f":"IFERROR(VLOOKUP(B670,Translation!$A:$C,3,FALSE),B670)","v":"T1 2017"},{"$f":"IFERROR(VLOOKUP(C670,Translation!$A:$C,3,FALSE),C670)","v":"PROPRIÉTAIRES-OCCUPANTS, À L’UNITÉ"},{"$f":"IFERROR(VLOOKUP(D670,Translation!$A:$C,3,FALSE),D670)","v":"> 15 <= 20"},{"$f":"IFERROR(VLOOKUP(E670,Translation!$A:$C,3,FALSE),E670)","v":0.51519011461318065},{"$f":"IFERROR(VLOOKUP(F670,Translation!$A:$C,3,FALSE),F670)","v":"Prêts hypothécaires assurés au cours de la période selon la période d’amortissement (en années) à l'initiation (%)"},{"$f":"IFERROR(VLOOKUP(G670,Translation!$A:$C,3,FALSE),G670)","v":"0.5"},{"$f":"IFERROR(VLOOKUP(H670,Translation!$A:$C,3,FALSE),H670)","v":" > 15 <= 20"}]
[10,"T1 2018","PROPRIÉTAIRES-OCCUPANTS, À L’UNITÉ","> 15 <= 20",0.63211058166176981,"Prêts hypothécaires assurés au cours de la période selon la période d’amortissement (en années) à l'initiation (%)","0.6"," > 15 <= 20",{"$f":"IFERROR(VLOOKUP(A671,Translation!$A:$C,3,FALSE),A671)","v":10},{"$f":"IFERROR(VLOOKUP(B671,Translation!$A:$C,3,FALSE),B671)","v":"T1 2018"},{"$f":"IFERROR(VLOOKUP(C671,Translation!$A:$C,3,FALSE),C671)","v":"PROPRIÉTAIRES-OCCUPANTS, À L’UNITÉ"},{"$f":"IFERROR(VLOOKUP(D671,Translation!$A:$C,3,FALSE),D671)","v":"> 15 <= 20"},{"$f":"IFERROR(VLOOKUP(E671,Translation!$A:$C,3,FALSE),E671)","v":0.63211058166176981},{"$f":"IFERROR(VLOOKUP(F671,Translation!$A:$C,3,FALSE),F671)","v":"Prêts hypothécaires assurés au cours de la période selon la période d’amortissement (en années) à l'initiation (%)"},{"$f":"IFERROR(VLOOKUP(G671,Translation!$A:$C,3,FALSE),G671)","v":"0.6"},{"$f":"IFERROR(VLOOKUP(H671,Translation!$A:$C,3,FALSE),H671)","v":" > 15 <= 20"}]
[10,"Q2 2016","PROPRIÉTAIRES-OCCUPANTS, À L’UNITÉ","> 15 <= 20",0.80322515374668946,"Prêts hypothécaires assurés au cours de la période selon la période d’amortissement (en années) à l'initiation (%)","0.8"," > 15 <= 20",{"$f":"IFERROR(VLOOKUP(A672,Translation!$A:$C,3,FALSE),A672)","v":10},{"$f":"IFERROR(VLOOKUP(B672,Translation!$A:$C,3,FALSE),B672)","v":"Q2 2016"},{"$f":"IFERROR(VLOOKUP(C672,Translation!$A:$C,3,FALSE),C672)","v":"PROPRIÉTAIRES-OCCUPANTS, À L’UNITÉ"},{"$f":"IFERROR(VLOOKUP(D672,Translation!$A:$C,3,FALSE),D672)","v":"> 15 <= 20"},{"$f":"IFERROR(VLOOKUP(E672,Translation!$A:$C,3,FALSE),E672)","v":0.80322515374668946},{"$f":"IFERROR(VLOOKUP(F672,Translation!$A:$C,3,FALSE),F672)","v":"Prêts hypothécaires assurés au cours de la période selon la période d’amortissement (en années) à l'initiation (%)"},{"$f":"IFERROR(VLOOKUP(G672,Translation!$A:$C,3,FALSE),G672)","v":"0.8"},{"$f":"IFERROR(VLOOKUP(H672,Translation!$A:$C,3,FALSE),H672)","v":" > 15 <= 20"}]
[10,"T2 2017","PROPRIÉTAIRES-OCCUPANTS, À L’UNITÉ","> 15 <= 20",0.60292069628729361,"Prêts hypothécaires assurés au cours de la période selon la période d’amortissement (en années) à l'initiation (%)","0.6"," > 15 <= 20",{"$f":"IFERROR(VLOOKUP(A673,Translation!$A:$C,3,FALSE),A673)","v":10},{"$f":"IFERROR(VLOOKUP(B673,Translation!$A:$C,3,FALSE),B673)","v":"T2 2017"},{"$f":"IFERROR(VLOOKUP(C673,Translation!$A:$C,3,FALSE),C673)","v":"PROPRIÉTAIRES-OCCUPANTS, À L’UNITÉ"},{"$f":"IFERROR(VLOOKUP(D673,Translation!$A:$C,3,FALSE),D673)","v":"> 15 <= 20"},{"$f":"IFERROR(VLOOKUP(E673,Translation!$A:$C,3,FALSE),E673)","v":0.60292069628729361},{"$f":"IFERROR(VLOOKUP(F673,Translation!$A:$C,3,FALSE),F673)","v":"Prêts hypothécaires assurés au cours de la période selon la période d’amortissement (en années) à l'initiation (%)"},{"$f":"IFERROR(VLOOKUP(G673,Translation!$A:$C,3,FALSE),G673)","v":"0.6"},{"$f":"IFERROR(VLOOKUP(H673,Translation!$A:$C,3,FALSE),H673)","v":" > 15 <= 20"}]
[10,"Q3 2016","PROPRIÉTAIRES-OCCUPANTS, À L’UNITÉ","> 15 <= 20",0.82375843627484258,"Prêts hypothécaires assurés au cours de la période selon la période d’amortissement (en années) à l'initiation (%)","0.8"," > 15 <= 20",{"$f":"IFERROR(VLOOKUP(A674,Translation!$A:$C,3,FALSE),A674)","v":10},{"$f":"IFERROR(VLOOKUP(B674,Translation!$A:$C,3,FALSE),B674)","v":"Q3 2016"},{"$f":"IFERROR(VLOOKUP(C674,Translation!$A:$C,3,FALSE),C674)","v":"PROPRIÉTAIRES-OCCUPANTS, À L’UNITÉ"},{"$f":"IFERROR(VLOOKUP(D674,Translation!$A:$C,3,FALSE),D674)","v":"> 15 <= 20"},{"$f":"IFERROR(VLOOKUP(E674,Translation!$A:$C,3,FALSE),E674)","v":0.82375843627484258},{"$f":"IFERROR(VLOOKUP(F674,Translation!$A:$C,3,FALSE),F674)","v":"Prêts hypothécaires assurés au cours de la période selon la période d’amortissement (en années) à l'initiation (%)"},{"$f":"IFERROR(VLOOKUP(G674,Translation!$A:$C,3,FALSE),G674)","v":"0.8"},{"$f":"IFERROR(VLOOKUP(H674,Translation!$A:$C,3,FALSE),H674)","v":" > 15 <= 20"}]
[10,"T3 2017","PROPRIÉTAIRES-OCCUPANTS, À L’UNITÉ","> 15 <= 20",0.74375199572032946,"Prêts hypothécaires assurés au cours de la période selon la période d’amortissement (en années) à l'initiation (%)","0.7"," > 15 <= 20",{"$f":"IFERROR(VLOOKUP(A675,Translation!$A:$C,3,FALSE),A675)","v":10},{"$f":"IFERROR(VLOOKUP(B675,Translation!$A:$C,3,FALSE),B675)","v":"T3 2017"},{"$f":"IFERROR(VLOOKUP(C675,Translation!$A:$C,3,FALSE),C675)","v":"PROPRIÉTAIRES-OCCUPANTS, À L’UNITÉ"},{"$f":"IFERROR(VLOOKUP(D675,Translation!$A:$C,3,FALSE),D675)","v":"> 15 <= 20"},{"$f":"IFERROR(VLOOKUP(E675,Translation!$A:$C,3,FALSE),E675)","v":0.74375199572032946},{"$f":"IFERROR(VLOOKUP(F675,Translation!$A:$C,3,FALSE),F675)","v":"Prêts hypothécaires assurés au cours de la période selon la période d’amortissement (en années) à l'initiation (%)"},{"$f":"IFERROR(VLOOKUP(G675,Translation!$A:$C,3,FALSE),G675)","v":"0.7"},{"$f":"IFERROR(VLOOKUP(H675,Translation!$A:$C,3,FALSE),H675)","v":" > 15 <= 20"}]
[10,"Q4 2016","PROPRIÉTAIRES-OCCUPANTS, À L’UNITÉ","> 15 <= 20",0.81872035515508068,"Prêts hypothécaires assurés au cours de la période selon la période d’amortissement (en années) à l'initiation (%)","0.8"," > 15 <= 20",{"$f":"IFERROR(VLOOKUP(A676,Translation!$A:$C,3,FALSE),A676)","v":10},{"$f":"IFERROR(VLOOKUP(B676,Translation!$A:$C,3,FALSE),B676)","v":"Q4 2016"},{"$f":"IFERROR(VLOOKUP(C676,Translation!$A:$C,3,FALSE),C676)","v":"PROPRIÉTAIRES-OCCUPANTS, À L’UNITÉ"},{"$f":"IFERROR(VLOOKUP(D676,Translation!$A:$C,3,FALSE),D676)","v":"> 15 <= 20"},{"$f":"IFERROR(VLOOKUP(E676,Translation!$A:$C,3,FALSE),E676)","v":0.81872035515508068},{"$f":"IFERROR(VLOOKUP(F676,Translation!$A:$C,3,FALSE),F676)","v":"Prêts hypothécaires assurés au cours de la période selon la période d’amortissement (en années) à l'initiation (%)"},{"$f":"IFERROR(VLOOKUP(G676,Translation!$A:$C,3,FALSE),G676)","v":"0.8"},{"$f":"IFERROR(VLOOKUP(H676,Translation!$A:$C,3,FALSE),H676)","v":" > 15 <= 20"}]
[10,"T4 2017","PROPRIÉTAIRES-OCCUPANTS, À L’UNITÉ","> 15 <= 20",0.6800245701669384,"Prêts hypothécaires assurés au cours de la période selon la période d’amortissement (en années) à l'initiation (%)","0.7"," > 15 <= 20",{"$f":"IFERROR(VLOOKUP(A677,Translation!$A:$C,3,FALSE),A677)","v":10},{"$f":"IFERROR(VLOOKUP(B677,Translation!$A:$C,3,FALSE),B677)","v":"T4 2017"},{"$f":"IFERROR(VLOOKUP(C677,Translation!$A:$C,3,FALSE),C677)","v":"PROPRIÉTAIRES-OCCUPANTS, À L’UNITÉ"},{"$f":"IFERROR(VLOOKUP(D677,Translation!$A:$C,3,FALSE),D677)","v":"> 15 <= 20"},{"$f":"IFERROR(VLOOKUP(E677,Translation!$A:$C,3,FALSE),E677)","v":0.6800245701669384},{"$f":"IFERROR(VLOOKUP(F677,Translation!$A:$C,3,FALSE),F677)","v":"Prêts hypothécaires assurés au cours de la période selon la période d’amortissement (en années) à l'initiation (%)"},{"$f":"IFERROR(VLOOKUP(G677,Translation!$A:$C,3,FALSE),G677)","v":"0.7"},{"$f":"IFERROR(VLOOKUP(H677,Translation!$A:$C,3,FALSE),H677)","v":" > 15 <= 20"}]
[10,"T1 2017","PROPRIÉTAIRES-OCCUPANTS, À L’UNITÉ","> 20 <= 25",99.043890151968512,"Prêts hypothécaires assurés au cours de la période selon la période d’amortissement (en années) à l'initiation (%)","99.0"," > 20 <= 25",{"$f":"IFERROR(VLOOKUP(A678,Translation!$A:$C,3,FALSE),A678)","v":10},{"$f":"IFERROR(VLOOKUP(B678,Translation!$A:$C,3,FALSE),B678)","v":"T1 2017"},{"$f":"IFERROR(VLOOKUP(C678,Translation!$A:$C,3,FALSE),C678)","v":"PROPRIÉTAIRES-OCCUPANTS, À L’UNITÉ"},{"$f":"IFERROR(VLOOKUP(D678,Translation!$A:$C,3,FALSE),D678)","v":"> 20 <= 25"},{"$f":"IFERROR(VLOOKUP(E678,Translation!$A:$C,3,FALSE),E678)","v":99.043890151968512},{"$f":"IFERROR(VLOOKUP(F678,Translation!$A:$C,3,FALSE),F678)","v":"Prêts hypothécaires assurés au cours de la période selon la période d’amortissement (en années) à l'initiation (%)"},{"$f":"IFERROR(VLOOKUP(G678,Translation!$A:$C,3,FALSE),G678)","v":"99.0"},{"$f":"IFERROR(VLOOKUP(H678,Translation!$A:$C,3,FALSE),H678)","v":" > 20 <= 25"}]
[10,"T1 2018","PROPRIÉTAIRES-OCCUPANTS, À L’UNITÉ","> 20 <= 25",99.103664835909569,"Prêts hypothécaires assurés au cours de la période selon la période d’amortissement (en années) à l'initiation (%)","99.1"," > 20 <= 25",{"$f":"IFERROR(VLOOKUP(A679,Translation!$A:$C,3,FALSE),A679)","v":10},{"$f":"IFERROR(VLOOKUP(B679,Translation!$A:$C,3,FALSE),B679)","v":"T1 2018"},{"$f":"IFERROR(VLOOKUP(C679,Translation!$A:$C,3,FALSE),C679)","v":"PROPRIÉTAIRES-OCCUPANTS, À L’UNITÉ"},{"$f":"IFERROR(VLOOKUP(D679,Translation!$A:$C,3,FALSE),D679)","v":"> 20 <= 25"},{"$f":"IFERROR(VLOOKUP(E679,Translation!$A:$C,3,FALSE),E679)","v":99.103664835909569},{"$f":"IFERROR(VLOOKUP(F679,Translation!$A:$C,3,FALSE),F679)","v":"Prêts hypothécaires assurés au cours de la période selon la période d’amortissement (en années) à l'initiation (%)"},{"$f":"IFERROR(VLOOKUP(G679,Translation!$A:$C,3,FALSE),G679)","v":"99.1"},{"$f":"IFERROR(VLOOKUP(H679,Translation!$A:$C,3,FALSE),H679)","v":" > 20 <= 25"}]
[10,"Q2 2016","PROPRIÉTAIRES-OCCUPANTS, À L’UNITÉ","> 20 <= 25",98.569574830753567,"Prêts hypothécaires assurés au cours de la période selon la période d’amortissement (en années) à l'initiation (%)","98.6"," > 20 <= 25",{"$f":"IFERROR(VLOOKUP(A680,Translation!$A:$C,3,FALSE),A680)","v":10},{"$f":"IFERROR(VLOOKUP(B680,Translation!$A:$C,3,FALSE),B680)","v":"Q2 2016"},{"$f":"IFERROR(VLOOKUP(C680,Translation!$A:$C,3,FALSE),C680)","v":"PROPRIÉTAIRES-OCCUPANTS, À L’UNITÉ"},{"$f":"IFERROR(VLOOKUP(D680,Translation!$A:$C,3,FALSE),D680)","v":"> 20 <= 25"},{"$f":"IFERROR(VLOOKUP(E680,Translation!$A:$C,3,FALSE),E680)","v":98.569574830753567},{"$f":"IFERROR(VLOOKUP(F680,Translation!$A:$C,3,FALSE),F680)","v":"Prêts hypothécaires assurés au cours de la période selon la période d’amortissement (en années) à l'initiation (%)"},{"$f":"IFERROR(VLOOKUP(G680,Translation!$A:$C,3,FALSE),G680)","v":"98.6"},{"$f":"IFERROR(VLOOKUP(H680,Translation!$A:$C,3,FALSE),H680)","v":" > 20 <= 25"}]
[10,"T2 2017","PROPRIÉTAIRES-OCCUPANTS, À L’UNITÉ","> 20 <= 25",99.127610261994178,"Prêts hypothécaires assurés au cours de la période selon la période d’amortissement (en années) à l'initiation (%)","99.1"," > 20 <= 25",{"$f":"IFERROR(VLOOKUP(A681,Translation!$A:$C,3,FALSE),A681)","v":10},{"$f":"IFERROR(VLOOKUP(B681,Translation!$A:$C,3,FALSE),B681)","v":"T2 2017"},{"$f":"IFERROR(VLOOKUP(C681,Translation!$A:$C,3,FALSE),C681)","v":"PROPRIÉTAIRES-OCCUPANTS, À L’UNITÉ"},{"$f":"IFERROR(VLOOKUP(D681,Translation!$A:$C,3,FALSE),D681)","v":"> 20 <= 25"},{"$f":"IFERROR(VLOOKUP(E681,Translation!$A:$C,3,FALSE),E681)","v":99.127610261994178},{"$f":"IFERROR(VLOOKUP(F681,Translation!$A:$C,3,FALSE),F681)","v":"Prêts hypothécaires assurés au cours de la période selon la période d’amortissement (en années) à l'initiation (%)"},{"$f":"IFERROR(VLOOKUP(G681,Translation!$A:$C,3,FALSE),G681)","v":"99.1"},{"$f":"IFERROR(VLOOKUP(H681,Translation!$A:$C,3,FALSE),H681)","v":" > 20 <= 25"}]
[10,"Q3 2016","PROPRIÉTAIRES-OCCUPANTS, À L’UNITÉ","> 20 <= 25",98.512279244486365,"Prêts hypothécaires assurés au cours de la période selon la période d’amortissement (en années) à l'initiation (%)","98.5"," > 20 <= 25",{"$f":"IFERROR(VLOOKUP(A682,Translation!$A:$C,3,FALSE),A682)","v":10},{"$f":"IFERROR(VLOOKUP(B682,Translation!$A:$C,3,FALSE),B682)","v":"Q3 2016"},{"$f":"IFERROR(VLOOKUP(C682,Translation!$A:$C,3,FALSE),C682)","v":"PROPRIÉTAIRES-OCCUPANTS, À L’UNITÉ"},{"$f":"IFERROR(VLOOKUP(D682,Translation!$A:$C,3,FALSE),D682)","v":"> 20 <= 25"},{"$f":"IFERROR(VLOOKUP(E682,Translation!$A:$C,3,FALSE),E682)","v":98.512279244486365},{"$f":"IFERROR(VLOOKUP(F682,Translation!$A:$C,3,FALSE),F682)","v":"Prêts hypothécaires assurés au cours de la période selon la période d’amortissement (en années) à l'initiation (%)"},{"$f":"IFERROR(VLOOKUP(G682,Translation!$A:$C,3,FALSE),G682)","v":"98.5"},{"$f":"IFERROR(VLOOKUP(H682,Translation!$A:$C,3,FALSE),H682)","v":" > 20 <= 25"}]
[10,"T3 2017","PROPRIÉTAIRES-OCCUPANTS, À L’UNITÉ","> 20 <= 25",98.893172637893045,"Prêts hypothécaires assurés au cours de la période selon la période d’amortissement (en années) à l'initiation (%)","98.9"," > 20 <= 25",{"$f":"IFERROR(VLOOKUP(A683,Translation!$A:$C,3,FALSE),A683)","v":10},{"$f":"IFERROR(VLOOKUP(B683,Translation!$A:$C,3,FALSE),B683)","v":"T3 2017"},{"$f":"IFERROR(VLOOKUP(C683,Translation!$A:$C,3,FALSE),C683)","v":"PROPRIÉTAIRES-OCCUPANTS, À L’UNITÉ"},{"$f":"IFERROR(VLOOKUP(D683,Translation!$A:$C,3,FALSE),D683)","v":"> 20 <= 25"},{"$f":"IFERROR(VLOOKUP(E683,Translation!$A:$C,3,FALSE),E683)","v":98.893172637893045},{"$f":"IFERROR(VLOOKUP(F683,Translation!$A:$C,3,FALSE),F683)","v":"Prêts hypothécaires assurés au cours de la période selon la période d’amortissement (en années) à l'initiation (%)"},{"$f":"IFERROR(VLOOKUP(G683,Translation!$A:$C,3,FALSE),G683)","v":"98.9"},{"$f":"IFERROR(VLOOKUP(H683,Translation!$A:$C,3,FALSE),H683)","v":" > 20 <= 25"}]
[10,"Q4 2016","PROPRIÉTAIRES-OCCUPANTS, À L’UNITÉ","> 20 <= 25",98.430983099062814,"Prêts hypothécaires assurés au cours de la période selon la période d’amortissement (en années) à l'initiation (%)","98.4"," > 20 <= 25",{"$f":"IFERROR(VLOOKUP(A684,Translation!$A:$C,3,FALSE),A684)","v":10},{"$f":"IFERROR(VLOOKUP(B684,Translation!$A:$C,3,FALSE),B684)","v":"Q4 2016"},{"$f":"IFERROR(VLOOKUP(C684,Translation!$A:$C,3,FALSE),C684)","v":"PROPRIÉTAIRES-OCCUPANTS, À L’UNITÉ"},{"$f":"IFERROR(VLOOKUP(D684,Translation!$A:$C,3,FALSE),D684)","v":"> 20 <= 25"},{"$f":"IFERROR(VLOOKUP(E684,Translation!$A:$C,3,FALSE),E684)","v":98.430983099062814},{"$f":"IFERROR(VLOOKUP(F684,Translation!$A:$C,3,FALSE),F684)","v":"Prêts hypothécaires assurés au cours de la période selon la période d’amortissement (en années) à l'initiation (%)"},{"$f":"IFERROR(VLOOKUP(G684,Translation!$A:$C,3,FALSE),G684)","v":"98.4"},{"$f":"IFERROR(VLOOKUP(H684,Translation!$A:$C,3,FALSE),H684)","v":" > 20 <= 25"}]
[10,"T4 2017","PROPRIÉTAIRES-OCCUPANTS, À L’UNITÉ","> 20 <= 25",99.004936991500387,"Prêts hypothécaires assurés au cours de la période selon la période d’amortissement (en années) à l'initiation (%)","99.0"," > 20 <= 25",{"$f":"IFERROR(VLOOKUP(A685,Translation!$A:$C,3,FALSE),A685)","v":10},{"$f":"IFERROR(VLOOKUP(B685,Translation!$A:$C,3,FALSE),B685)","v":"T4 2017"},{"$f":"IFERROR(VLOOKUP(C685,Translation!$A:$C,3,FALSE),C685)","v":"PROPRIÉTAIRES-OCCUPANTS, À L’UNITÉ"},{"$f":"IFERROR(VLOOKUP(D685,Translation!$A:$C,3,FALSE),D685)","v":"> 20 <= 25"},{"$f":"IFERROR(VLOOKUP(E685,Translation!$A:$C,3,FALSE),E685)","v":99.004936991500387},{"$f":"IFERROR(VLOOKUP(F685,Translation!$A:$C,3,FALSE),F685)","v":"Prêts hypothécaires assurés au cours de la période selon la période d’amortissement (en années) à l'initiation (%)"},{"$f":"IFERROR(VLOOKUP(G685,Translation!$A:$C,3,FALSE),G685)","v":"99.0"},{"$f":"IFERROR(VLOOKUP(H685,Translation!$A:$C,3,FALSE),H685)","v":" > 20 <= 25"}]
[10,"T1 2017","PROPRIÉTAIRES-OCCUPANTS, À L’UNITÉ","> 25 <= 30",0.15508835190300299,"Prêts hypothécaires assurés au cours de la période selon la période d’amortissement (en années) à l'initiation (%)","0.2"," > 25 <= 30",{"$f":"IFERROR(VLOOKUP(A686,Translation!$A:$C,3,FALSE),A686)","v":10},{"$f":"IFERROR(VLOOKUP(B686,Translation!$A:$C,3,FALSE),B686)","v":"T1 2017"},{"$f":"IFERROR(VLOOKUP(C686,Translation!$A:$C,3,FALSE),C686)","v":"PROPRIÉTAIRES-OCCUPANTS, À L’UNITÉ"},{"$f":"IFERROR(VLOOKUP(D686,Translation!$A:$C,3,FALSE),D686)","v":"> 25 <= 30"},{"$f":"IFERROR(VLOOKUP(E686,Translation!$A:$C,3,FALSE),E686)","v":0.15508835190300299},{"$f":"IFERROR(VLOOKUP(F686,Translation!$A:$C,3,FALSE),F686)","v":"Prêts hypothécaires assurés au cours de la période selon la période d’amortissement (en années) à l'initiation (%)"},{"$f":"IFERROR(VLOOKUP(G686,Translation!$A:$C,3,FALSE),G686)","v":"0.2"},{"$f":"IFERROR(VLOOKUP(H686,Translation!$A:$C,3,FALSE),H686)","v":" > 25 <= 30"}]
[10,"T1 2018","PROPRIÉTAIRES-OCCUPANTS, À L’UNITÉ","> 25 <= 30",4.752568721275701E-2,"Prêts hypothécaires assurés au cours de la période selon la période d’amortissement (en années) à l'initiation (%)","0.0"," > 25 <= 30",{"$f":"IFERROR(VLOOKUP(A687,Translation!$A:$C,3,FALSE),A687)","v":10},{"$f":"IFERROR(VLOOKUP(B687,Translation!$A:$C,3,FALSE),B687)","v":"T1 2018"},{"$f":"IFERROR(VLOOKUP(C687,Translation!$A:$C,3,FALSE),C687)","v":"PROPRIÉTAIRES-OCCUPANTS, À L’UNITÉ"},{"$f":"IFERROR(VLOOKUP(D687,Translation!$A:$C,3,FALSE),D687)","v":"> 25 <= 30"},{"$f":"IFERROR(VLOOKUP(E687,Translation!$A:$C,3,FALSE),E687)","v":4.752568721275701E-2},{"$f":"IFERROR(VLOOKUP(F687,Translation!$A:$C,3,FALSE),F687)","v":"Prêts hypothécaires assurés au cours de la période selon la période d’amortissement (en années) à l'initiation (%)"},{"$f":"IFERROR(VLOOKUP(G687,Translation!$A:$C,3,FALSE),G687)","v":"0.0"},{"$f":"IFERROR(VLOOKUP(H687,Translation!$A:$C,3,FALSE),H687)","v":" > 25 <= 30"}]
[10,"Q2 2016","PROPRIÉTAIRES-OCCUPANTS, À L’UNITÉ","> 25 <= 30",0.16445858873891228,"Prêts hypothécaires assurés au cours de la période selon la période d’amortissement (en années) à l'initiation (%)","0.2"," > 25 <= 30",{"$f":"IFERROR(VLOOKUP(A688,Translation!$A:$C,3,FALSE),A688)","v":10},{"$f":"IFERROR(VLOOKUP(B688,Translation!$A:$C,3,FALSE),B688)","v":"Q2 2016"},{"$f":"IFERROR(VLOOKUP(C688,Translation!$A:$C,3,FALSE),C688)","v":"PROPRIÉTAIRES-OCCUPANTS, À L’UNITÉ"},{"$f":"IFERROR(VLOOKUP(D688,Translation!$A:$C,3,FALSE),D688)","v":"> 25 <= 30"},{"$f":"IFERROR(VLOOKUP(E688,Translation!$A:$C,3,FALSE),E688)","v":0.16445858873891228},{"$f":"IFERROR(VLOOKUP(F688,Translation!$A:$C,3,FALSE),F688)","v":"Prêts hypothécaires assurés au cours de la période selon la période d’amortissement (en années) à l'initiation (%)"},{"$f":"IFERROR(VLOOKUP(G688,Translation!$A:$C,3,FALSE),G688)","v":"0.2"},{"$f":"IFERROR(VLOOKUP(H688,Translation!$A:$C,3,FALSE),H688)","v":" > 25 <= 30"}]
[10,"T2 2017","PROPRIÉTAIRES-OCCUPANTS, À L’UNITÉ","> 25 <= 30",1.5130553084111303E-2,"Prêts hypothécaires assurés au cours de la période selon la période d’amortissement (en années) à l'initiation (%)","0.0"," > 25 <= 30",{"$f":"IFERROR(VLOOKUP(A689,Translation!$A:$C,3,FALSE),A689)","v":10},{"$f":"IFERROR(VLOOKUP(B689,Translation!$A:$C,3,FALSE),B689)","v":"T2 2017"},{"$f":"IFERROR(VLOOKUP(C689,Translation!$A:$C,3,FALSE),C689)","v":"PROPRIÉTAIRES-OCCUPANTS, À L’UNITÉ"},{"$f":"IFERROR(VLOOKUP(D689,Translation!$A:$C,3,FALSE),D689)","v":"> 25 <= 30"},{"$f":"IFERROR(VLOOKUP(E689,Translation!$A:$C,3,FALSE),E689)","v":1.5130553084111303E-2},{"$f":"IFERROR(VLOOKUP(F689,Translation!$A:$C,3,FALSE),F689)","v":"Prêts hypothécaires assurés au cours de la période selon la période d’amortissement (en années) à l'initiation (%)"},{"$f":"IFERROR(VLOOKUP(G689,Translation!$A:$C,3,FALSE),G689)","v":"0.0"},{"$f":"IFERROR(VLOOKUP(H689,Translation!$A:$C,3,FALSE),H689)","v":" > 25 <= 30"}]
[10,"Q3 2016","PROPRIÉTAIRES-OCCUPANTS, À L’UNITÉ","> 25 <= 30",0.18164529918188521,"Prêts hypothécaires assurés au cours de la période selon la période d’amortissement (en années) à l'initiation (%)","0.2"," > 25 <= 30",{"$f":"IFERROR(VLOOKUP(A690,Translation!$A:$C,3,FALSE),A690)","v":10},{"$f":"IFERROR(VLOOKUP(B690,Translation!$A:$C,3,FALSE),B690)","v":"Q3 2016"},{"$f":"IFERROR(VLOOKUP(C690,Translation!$A:$C,3,FALSE),C690)","v":"PROPRIÉTAIRES-OCCUPANTS, À L’UNITÉ"},{"$f":"IFERROR(VLOOKUP(D690,Translation!$A:$C,3,FALSE),D690)","v":"> 25 <= 30"},{"$f":"IFERROR(VLOOKUP(E690,Translation!$A:$C,3,FALSE),E690)","v":0.18164529918188521},{"$f":"IFERROR(VLOOKUP(F690,Translation!$A:$C,3,FALSE),F690)","v":"Prêts hypothécaires assurés au cours de la période selon la période d’amortissement (en années) à l'initiation (%)"},{"$f":"IFERROR(VLOOKUP(G690,Translation!$A:$C,3,FALSE),G690)","v":"0.2"},{"$f":"IFERROR(VLOOKUP(H690,Translation!$A:$C,3,FALSE),H690)","v":" > 25 <= 30"}]
[10,"T3 2017","PROPRIÉTAIRES-OCCUPANTS, À L’UNITÉ","> 25 <= 30",9.7009445225203494E-2,"Prêts hypothécaires assurés au cours de la période selon la période d’amortissement (en années) à l'initiation (%)","0.1"," > 25 <= 30",{"$f":"IFERROR(VLOOKUP(A691,Translation!$A:$C,3,FALSE),A691)","v":10},{"$f":"IFERROR(VLOOKUP(B691,Translation!$A:$C,3,FALSE),B691)","v":"T3 2017"},{"$f":"IFERROR(VLOOKUP(C691,Translation!$A:$C,3,FALSE),C691)","v":"PROPRIÉTAIRES-OCCUPANTS, À L’UNITÉ"},{"$f":"IFERROR(VLOOKUP(D691,Translation!$A:$C,3,FALSE),D691)","v":"> 25 <= 30"},{"$f":"IFERROR(VLOOKUP(E691,Translation!$A:$C,3,FALSE),E691)","v":9.7009445225203494E-2},{"$f":"IFERROR(VLOOKUP(F691,Translation!$A:$C,3,FALSE),F691)","v":"Prêts hypothécaires assurés au cours de la période selon la période d’amortissement (en années) à l'initiation (%)"},{"$f":"IFERROR(VLOOKUP(G691,Translation!$A:$C,3,FALSE),G691)","v":"0.1"},{"$f":"IFERROR(VLOOKUP(H691,Translation!$A:$C,3,FALSE),H691)","v":" > 25 <= 30"}]
[10,"Q4 2016","PROPRIÉTAIRES-OCCUPANTS, À L’UNITÉ","> 25 <= 30",0.22355558504453943,"Prêts hypothécaires assurés au cours de la période selon la période d’amortissement (en années) à l'initiation (%)","0.2"," > 25 <= 30",{"$f":"IFERROR(VLOOKUP(A692,Translation!$A:$C,3,FALSE),A692)","v":10},{"$f":"IFERROR(VLOOKUP(B692,Translation!$A:$C,3,FALSE),B692)","v":"Q4 2016"},{"$f":"IFERROR(VLOOKUP(C692,Translation!$A:$C,3,FALSE),C692)","v":"PROPRIÉTAIRES-OCCUPANTS, À L’UNITÉ"},{"$f":"IFERROR(VLOOKUP(D692,Translation!$A:$C,3,FALSE),D692)","v":"> 25 <= 30"},{"$f":"IFERROR(VLOOKUP(E692,Translation!$A:$C,3,FALSE),E692)","v":0.22355558504453943},{"$f":"IFERROR(VLOOKUP(F692,Translation!$A:$C,3,FALSE),F692)","v":"Prêts hypothécaires assurés au cours de la période selon la période d’amortissement (en années) à l'initiation (%)"},{"$f":"IFERROR(VLOOKUP(G692,Translation!$A:$C,3,FALSE),G692)","v":"0.2"},{"$f":"IFERROR(VLOOKUP(H692,Translation!$A:$C,3,FALSE),H692)","v":" > 25 <= 30"}]
[10,"T4 2017","PROPRIÉTAIRES-OCCUPANTS, À L’UNITÉ","> 25 <= 30",2.2514057594767097E-2,"Prêts hypothécaires assurés au cours de la période selon la période d’amortissement (en années) à l'initiation (%)","0.0"," > 25 <= 30",{"$f":"IFERROR(VLOOKUP(A693,Translation!$A:$C,3,FALSE),A693)","v":10},{"$f":"IFERROR(VLOOKUP(B693,Translation!$A:$C,3,FALSE),B693)","v":"T4 2017"},{"$f":"IFERROR(VLOOKUP(C693,Translation!$A:$C,3,FALSE),C693)","v":"PROPRIÉTAIRES-OCCUPANTS, À L’UNITÉ"},{"$f":"IFERROR(VLOOKUP(D693,Translation!$A:$C,3,FALSE),D693)","v":"> 25 <= 30"},{"$f":"IFERROR(VLOOKUP(E693,Translation!$A:$C,3,FALSE),E693)","v":2.2514057594767097E-2},{"$f":"IFERROR(VLOOKUP(F693,Translation!$A:$C,3,FALSE),F693)","v":"Prêts hypothécaires assurés au cours de la période selon la période d’amortissement (en années) à l'initiation (%)"},{"$f":"IFERROR(VLOOKUP(G693,Translation!$A:$C,3,FALSE),G693)","v":"0.0"},{"$f":"IFERROR(VLOOKUP(H693,Translation!$A:$C,3,FALSE),H693)","v":" > 25 <= 30"}]
[10,"T1 2017","PROPRIÉTAIRES-OCCUPANTS, À L’UNITÉ","> 30 <= 35",2.2616171642088911E-2,"Prêts hypothécaires assurés au cours de la période selon la période d’amortissement (en années) à l'initiation (%)","0.0"," > 30 <= 35",{"$f":"IFERROR(VLOOKUP(A694,Translation!$A:$C,3,FALSE),A694)","v":10},{"$f":"IFERROR(VLOOKUP(B694,Translation!$A:$C,3,FALSE),B694)","v":"T1 2017"},{"$f":"IFERROR(VLOOKUP(C694,Translation!$A:$C,3,FALSE),C694)","v":"PROPRIÉTAIRES-OCCUPANTS, À L’UNITÉ"},{"$f":"IFERROR(VLOOKUP(D694,Translation!$A:$C,3,FALSE),D694)","v":"> 30 <= 35"},{"$f":"IFERROR(VLOOKUP(E694,Translation!$A:$C,3,FALSE),E694)","v":2.2616171642088911E-2},{"$f":"IFERROR(VLOOKUP(F694,Translation!$A:$C,3,FALSE),F694)","v":"Prêts hypothécaires assurés au cours de la période selon la période d’amortissement (en années) à l'initiation (%)"},{"$f":"IFERROR(VLOOKUP(G694,Translation!$A:$C,3,FALSE),G694)","v":"0.0"},{"$f":"IFERROR(VLOOKUP(H694,Translation!$A:$C,3,FALSE),H694)","v":" > 30 <= 35"}]
[10,"Q2 2016","PROPRIÉTAIRES-OCCUPANTS, À L’UNITÉ","> 30 <= 35",3.0513079661351111E-2,"Prêts hypothécaires assurés au cours de la période selon la période d’amortissement (en années) à l'initiation (%)","0.0"," > 30 <= 35",{"$f":"IFERROR(VLOOKUP(A695,Translation!$A:$C,3,FALSE),A695)","v":10},{"$f":"IFERROR(VLOOKUP(B695,Translation!$A:$C,3,FALSE),B695)","v":"Q2 2016"},{"$f":"IFERROR(VLOOKUP(C695,Translation!$A:$C,3,FALSE),C695)","v":"PROPRIÉTAIRES-OCCUPANTS, À L’UNITÉ"},{"$f":"IFERROR(VLOOKUP(D695,Translation!$A:$C,3,FALSE),D695)","v":"> 30 <= 35"},{"$f":"IFERROR(VLOOKUP(E695,Translation!$A:$C,3,FALSE),E695)","v":3.0513079661351111E-2},{"$f":"IFERROR(VLOOKUP(F695,Translation!$A:$C,3,FALSE),F695)","v":"Prêts hypothécaires assurés au cours de la période selon la période d’amortissement (en années) à l'initiation (%)"},{"$f":"IFERROR(VLOOKUP(G695,Translation!$A:$C,3,FALSE),G695)","v":"0.0"},{"$f":"IFERROR(VLOOKUP(H695,Translation!$A:$C,3,FALSE),H695)","v":" > 30 <= 35"}]
[10,"T2 2017","PROPRIÉTAIRES-OCCUPANTS, À L’UNITÉ","> 30 <= 35",4.8964445200228761E-3,"Prêts hypothécaires assurés au cours de la période selon la période d’amortissement (en années) à l'initiation (%)","0.0"," > 30 <= 35",{"$f":"IFERROR(VLOOKUP(A696,Translation!$A:$C,3,FALSE),A696)","v":10},{"$f":"IFERROR(VLOOKUP(B696,Translation!$A:$C,3,FALSE),B696)","v":"T2 2017"},{"$f":"IFERROR(VLOOKUP(C696,Translation!$A:$C,3,FALSE),C696)","v":"PROPRIÉTAIRES-OCCUPANTS, À L’UNITÉ"},{"$f":"IFERROR(VLOOKUP(D696,Translation!$A:$C,3,FALSE),D696)","v":"> 30 <= 35"},{"$f":"IFERROR(VLOOKUP(E696,Translation!$A:$C,3,FALSE),E696)","v":4.8964445200228761E-3},{"$f":"IFERROR(VLOOKUP(F696,Translation!$A:$C,3,FALSE),F696)","v":"Prêts hypothécaires assurés au cours de la période selon la période d’amortissement (en années) à l'initiation (%)"},{"$f":"IFERROR(VLOOKUP(G696,Translation!$A:$C,3,FALSE),G696)","v":"0.0"},{"$f":"IFERROR(VLOOKUP(H696,Translation!$A:$C,3,FALSE),H696)","v":" > 30 <= 35"}]
[10,"Q3 2016","PROPRIÉTAIRES-OCCUPANTS, À L’UNITÉ","> 30 <= 35",6.3572272708599309E-3,"Prêts hypothécaires assurés au cours de la période selon la période d’amortissement (en années) à l'initiation (%)","0.0"," > 30 <= 35",{"$f":"IFERROR(VLOOKUP(A697,Translation!$A:$C,3,FALSE),A697)","v":10},{"$f":"IFERROR(VLOOKUP(B697,Translation!$A:$C,3,FALSE),B697)","v":"Q3 2016"},{"$f":"IFERROR(VLOOKUP(C697,Translation!$A:$C,3,FALSE),C697)","v":"PROPRIÉTAIRES-OCCUPANTS, À L’UNITÉ"},{"$f":"IFERROR(VLOOKUP(D697,Translation!$A:$C,3,FALSE),D697)","v":"> 30 <= 35"},{"$f":"IFERROR(VLOOKUP(E697,Translation!$A:$C,3,FALSE),E697)","v":6.3572272708599309E-3},{"$f":"IFERROR(VLOOKUP(F697,Translation!$A:$C,3,FALSE),F697)","v":"Prêts hypothécaires assurés au cours de la période selon la période d’amortissement (en années) à l'initiation (%)"},{"$f":"IFERROR(VLOOKUP(G697,Translation!$A:$C,3,FALSE),G697)","v":"0.0"},{"$f":"IFERROR(VLOOKUP(H697,Translation!$A:$C,3,FALSE),H697)","v":" > 30 <= 35"}]
[10,"Q4 2016","PROPRIÉTAIRES-OCCUPANTS, À L’UNITÉ","> 30 <= 35",5.8031807782691564E-3,"Prêts hypothécaires assurés au cours de la période selon la période d’amortissement (en années) à l'initiation (%)","0.0"," > 30 <= 35",{"$f":"IFERROR(VLOOKUP(A698,Translation!$A:$C,3,FALSE),A698)","v":10},{"$f":"IFERROR(VLOOKUP(B698,Translation!$A:$C,3,FALSE),B698)","v":"Q4 2016"},{"$f":"IFERROR(VLOOKUP(C698,Translation!$A:$C,3,FALSE),C698)","v":"PROPRIÉTAIRES-OCCUPANTS, À L’UNITÉ"},{"$f":"IFERROR(VLOOKUP(D698,Translation!$A:$C,3,FALSE),D698)","v":"> 30 <= 35"},{"$f":"IFERROR(VLOOKUP(E698,Translation!$A:$C,3,FALSE),E698)","v":5.8031807782691564E-3},{"$f":"IFERROR(VLOOKUP(F698,Translation!$A:$C,3,FALSE),F698)","v":"Prêts hypothécaires assurés au cours de la période selon la période d’amortissement (en années) à l'initiation (%)"},{"$f":"IFERROR(VLOOKUP(G698,Translation!$A:$C,3,FALSE),G698)","v":"0.0"},{"$f":"IFERROR(VLOOKUP(H698,Translation!$A:$C,3,FALSE),H698)","v":" > 30 <= 35"}]
[10,"T1 2017","PROPRIÉTAIRES-OCCUPANTS, À L’UNITÉ","> 35",2.2020368128340111E-2,"Prêts hypothécaires assurés au cours de la période selon la période d’amortissement (en années) à l'initiation (%)","0.0"," > 35",{"$f":"IFERROR(VLOOKUP(A699,Translation!$A:$C,3,FALSE),A699)","v":10},{"$f":"IFERROR(VLOOKUP(B699,Translation!$A:$C,3,FALSE),B699)","v":"T1 2017"},{"$f":"IFERROR(VLOOKUP(C699,Translation!$A:$C,3,FALSE),C699)","v":"PROPRIÉTAIRES-OCCUPANTS, À L’UNITÉ"},{"$f":"IFERROR(VLOOKUP(D699,Translation!$A:$C,3,FALSE),D699)","v":"> 35"},{"$f":"IFERROR(VLOOKUP(E699,Translation!$A:$C,3,FALSE),E699)","v":2.2020368128340111E-2},{"$f":"IFERROR(VLOOKUP(F699,Translation!$A:$C,3,FALSE),F699)","v":"Prêts hypothécaires assurés au cours de la période selon la période d’amortissement (en années) à l'initiation (%)"},{"$f":"IFERROR(VLOOKUP(G699,Translation!$A:$C,3,FALSE),G699)","v":"0.0"},{"$f":"IFERROR(VLOOKUP(H699,Translation!$A:$C,3,FALSE),H699)","v":" > 35"}]
[10,"Q2 2016","PROPRIÉTAIRES-OCCUPANTS, À L’UNITÉ","> 35",7.1190450325139517E-3,"Prêts hypothécaires assurés au cours de la période selon la période d’amortissement (en années) à l'initiation (%)","0.0"," > 35",{"$f":"IFERROR(VLOOKUP(A700,Translation!$A:$C,3,FALSE),A700)","v":10},{"$f":"IFERROR(VLOOKUP(B700,Translation!$A:$C,3,FALSE),B700)","v":"Q2 2016"},{"$f":"IFERROR(VLOOKUP(C700,Translation!$A:$C,3,FALSE),C700)","v":"PROPRIÉTAIRES-OCCUPANTS, À L’UNITÉ"},{"$f":"IFERROR(VLOOKUP(D700,Translation!$A:$C,3,FALSE),D700)","v":"> 35"},{"$f":"IFERROR(VLOOKUP(E700,Translation!$A:$C,3,FALSE),E700)","v":7.1190450325139517E-3},{"$f":"IFERROR(VLOOKUP(F700,Translation!$A:$C,3,FALSE),F700)","v":"Prêts hypothécaires assurés au cours de la période selon la période d’amortissement (en années) à l'initiation (%)"},{"$f":"IFERROR(VLOOKUP(G700,Translation!$A:$C,3,FALSE),G700)","v":"0.0"},{"$f":"IFERROR(VLOOKUP(H700,Translation!$A:$C,3,FALSE),H700)","v":" > 35"}]
[10,"Q3 2016","PROPRIÉTAIRES-OCCUPANTS, À L’UNITÉ","> 35",6.8386380650383846E-3,"Prêts hypothécaires assurés au cours de la période selon la période d’amortissement (en années) à l'initiation (%)","0.0"," > 35",{"$f":"IFERROR(VLOOKUP(A701,Translation!$A:$C,3,FALSE),A701)","v":10},{"$f":"IFERROR(VLOOKUP(B701,Translation!$A:$C,3,FALSE),B701)","v":"Q3 2016"},{"$f":"IFERROR(VLOOKUP(C701,Translation!$A:$C,3,FALSE),C701)","v":"PROPRIÉTAIRES-OCCUPANTS, À L’UNITÉ"},{"$f":"IFERROR(VLOOKUP(D701,Translation!$A:$C,3,FALSE),D701)","v":"> 35"},{"$f":"IFERROR(VLOOKUP(E701,Translation!$A:$C,3,FALSE),E701)","v":6.8386380650383846E-3},{"$f":"IFERROR(VLOOKUP(F701,Translation!$A:$C,3,FALSE),F701)","v":"Prêts hypothécaires assurés au cours de la période selon la période d’amortissement (en années) à l'initiation (%)"},{"$f":"IFERROR(VLOOKUP(G701,Translation!$A:$C,3,FALSE),G701)","v":"0.0"},{"$f":"IFERROR(VLOOKUP(H701,Translation!$A:$C,3,FALSE),H701)","v":" > 35"}]
[10,"Q4 2016","PROPRIÉTAIRES-OCCUPANTS, À L’UNITÉ","> 35",9.5437065972766959E-3,"Prêts hypothécaires assurés au cours de la période selon la période d’amortissement (en années) à l'initiation (%)","0.0"," > 35",{"$f":"IFERROR(VLOOKUP(A702,Translation!$A:$C,3,FALSE),A702)","v":10},{"$f":"IFERROR(VLOOKUP(B702,Translation!$A:$C,3,FALSE),B702)","v":"Q4 2016"},{"$f":"IFERROR(VLOOKUP(C702,Translation!$A:$C,3,FALSE),C702)","v":"PROPRIÉTAIRES-OCCUPANTS, À L’UNITÉ"},{"$f":"IFERROR(VLOOKUP(D702,Translation!$A:$C,3,FALSE),D702)","v":"> 35"},{"$f":"IFERROR(VLOOKUP(E702,Translation!$A:$C,3,FALSE),E702)","v":9.5437065972766959E-3},{"$f":"IFERROR(VLOOKUP(F702,Translation!$A:$C,3,FALSE),F702)","v":"Prêts hypothécaires assurés au cours de la période selon la période d’amortissement (en années) à l'initiation (%)"},{"$f":"IFERROR(VLOOKUP(G702,Translation!$A:$C,3,FALSE),G702)","v":"0.0"},{"$f":"IFERROR(VLOOKUP(H702,Translation!$A:$C,3,FALSE),H702)","v":" > 35"}]
[10,"T1 2017","PROPRIÉTAIRES-OCCUPANTS, À L’UNITÉ","Période d’amortissement moyenne",24.893378842317297,"Prêts hypothécaires assurés au cours de la période selon la période d’amortissement (en années) à l'initiation (%)","24.9","Période d’amortissement moyenne",{"$f":"IFERROR(VLOOKUP(A703,Translation!$A:$C,3,FALSE),A703)","v":10},{"$f":"IFERROR(VLOOKUP(B703,Translation!$A:$C,3,FALSE),B703)","v":"T1 2017"},{"$f":"IFERROR(VLOOKUP(C703,Translation!$A:$C,3,FALSE),C703)","v":"PROPRIÉTAIRES-OCCUPANTS, À L’UNITÉ"},{"$f":"IFERROR(VLOOKUP(D703,Translation!$A:$C,3,FALSE),D703)","v":"Période d’amortissement moyenne"},{"$f":"IFERROR(VLOOKUP(E703,Translation!$A:$C,3,FALSE),E703)","v":24.893378842317297},{"$f":"IFERROR(VLOOKUP(F703,Translation!$A:$C,3,FALSE),F703)","v":"Prêts hypothécaires assurés au cours de la période selon la période d’amortissement (en années) à l'initiation (%)"},{"$f":"IFERROR(VLOOKUP(G703,Translation!$A:$C,3,FALSE),G703)","v":"24.9"},{"$f":"IFERROR(VLOOKUP(H703,Translation!$A:$C,3,FALSE),H703)","v":"Période d’amortissement moyenne"}]
[10,"T1 2018","PROPRIÉTAIRES-OCCUPANTS, À L’UNITÉ","Période d’amortissement moyenne",24.862367717866022,"Prêts hypothécaires assurés au cours de la période selon la période d’amortissement (en années) à l'initiation (%)","24.9","Période d’amortissement moyenne",{"$f":"IFERROR(VLOOKUP(A704,Translation!$A:$C,3,FALSE),A704)","v":10},{"$f":"IFERROR(VLOOKUP(B704,Translation!$A:$C,3,FALSE),B704)","v":"T1 2018"},{"$f":"IFERROR(VLOOKUP(C704,Translation!$A:$C,3,FALSE),C704)","v":"PROPRIÉTAIRES-OCCUPANTS, À L’UNITÉ"},{"$f":"IFERROR(VLOOKUP(D704,Translation!$A:$C,3,FALSE),D704)","v":"Période d’amortissement moyenne"},{"$f":"IFERROR(VLOOKUP(E704,Translation!$A:$C,3,FALSE),E704)","v":24.862367717866022},{"$f":"IFERROR(VLOOKUP(F704,Translation!$A:$C,3,FALSE),F704)","v":"Prêts hypothécaires assurés au cours de la période selon la période d’amortissement (en années) à l'initiation (%)"},{"$f":"IFERROR(VLOOKUP(G704,Translation!$A:$C,3,FALSE),G704)","v":"24.9"},{"$f":"IFERROR(VLOOKUP(H704,Translation!$A:$C,3,FALSE),H704)","v":"Période d’amortissement moyenne"}]
[10,"Q2 2016","PROPRIÉTAIRES-OCCUPANTS, À L’UNITÉ","Période d’amortissement moyenne",24.857022833667088,"Prêts hypothécaires assurés au cours de la période selon la période d’amortissement (en années) à l'initiation (%)","24.9","Période d’amortissement moyenne",{"$f":"IFERROR(VLOOKUP(A705,Translation!$A:$C,3,FALSE),A705)","v":10},{"$f":"IFERROR(VLOOKUP(B705,Translation!$A:$C,3,FALSE),B705)","v":"Q2 2016"},{"$f":"IFERROR(VLOOKUP(C705,Translation!$A:$C,3,FALSE),C705)","v":"PROPRIÉTAIRES-OCCUPANTS, À L’UNITÉ"},{"$f":"IFERROR(VLOOKUP(D705,Translation!$A:$C,3,FALSE),D705)","v":"Période d’amortissement moyenne"},{"$f":"IFERROR(VLOOKUP(E705,Translation!$A:$C,3,FALSE),E705)","v":24.857022833667088},{"$f":"IFERROR(VLOOKUP(F705,Translation!$A:$C,3,FALSE),F705)","v":"Prêts hypothécaires assurés au cours de la période selon la période d’amortissement (en années) à l'initiation (%)"},{"$f":"IFERROR(VLOOKUP(G705,Translation!$A:$C,3,FALSE),G705)","v":"24.9"},{"$f":"IFERROR(VLOOKUP(H705,Translation!$A:$C,3,FALSE),H705)","v":"Période d’amortissement moyenne"}]
[10,"T2 2017","PROPRIÉTAIRES-OCCUPANTS, À L’UNITÉ","Période d’amortissement moyenne",24.872081020341081,"Prêts hypothécaires assurés au cours de la période selon la période d’amortissement (en années) à l'initiation (%)","24.9","Période d’amortissement moyenne",{"$f":"IFERROR(VLOOKUP(A706,Translation!$A:$C,3,FALSE),A706)","v":10},{"$f":"IFERROR(VLOOKUP(B706,Translation!$A:$C,3,FALSE),B706)","v":"T2 2017"},{"$f":"IFERROR(VLOOKUP(C706,Translation!$A:$C,3,FALSE),C706)","v":"PROPRIÉTAIRES-OCCUPANTS, À L’UNITÉ"},{"$f":"IFERROR(VLOOKUP(D706,Translation!$A:$C,3,FALSE),D706)","v":"Période d’amortissement moyenne"},{"$f":"IFERROR(VLOOKUP(E706,Translation!$A:$C,3,FALSE),E706)","v":24.872081020341081},{"$f":"IFERROR(VLOOKUP(F706,Translation!$A:$C,3,FALSE),F706)","v":"Prêts hypothécaires assurés au cours de la période selon la période d’amortissement (en années) à l'initiation (%)"},{"$f":"IFERROR(VLOOKUP(G706,Translation!$A:$C,3,FALSE),G706)","v":"24.9"},{"$f":"IFERROR(VLOOKUP(H706,Translation!$A:$C,3,FALSE),H706)","v":"Période d’amortissement moyenne"}]
[10,"Q3 2016","PROPRIÉTAIRES-OCCUPANTS, À L’UNITÉ","Période d’amortissement moyenne",24.836748250661142,"Prêts hypothécaires assurés au cours de la période selon la période d’amortissement (en années) à l'initiation (%)","24.8","Période d’amortissement moyenne",{"$f":"IFERROR(VLOOKUP(A707,Translation!$A:$C,3,FALSE),A707)","v":10},{"$f":"IFERROR(VLOOKUP(B707,Translation!$A:$C,3,FALSE),B707)","v":"Q3 2016"},{"$f":"IFERROR(VLOOKUP(C707,Translation!$A:$C,3,FALSE),C707)","v":"PROPRIÉTAIRES-OCCUPANTS, À L’UNITÉ"},{"$f":"IFERROR(VLOOKUP(D707,Translation!$A:$C,3,FALSE),D707)","v":"Période d’amortissement moyenne"},{"$f":"IFERROR(VLOOKUP(E707,Translation!$A:$C,3,FALSE),E707)","v":24.836748250661142},{"$f":"IFERROR(VLOOKUP(F707,Translation!$A:$C,3,FALSE),F707)","v":"Prêts hypothécaires assurés au cours de la période selon la période d’amortissement (en années) à l'initiation (%)"},{"$f":"IFERROR(VLOOKUP(G707,Translation!$A:$C,3,FALSE),G707)","v":"24.8"},{"$f":"IFERROR(VLOOKUP(H707,Translation!$A:$C,3,FALSE),H707)","v":"Période d’amortissement moyenne"}]
[10,"T3 2017","PROPRIÉTAIRES-OCCUPANTS, À L’UNITÉ","Période d’amortissement moyenne",24.849028425771255,"Prêts hypothécaires assurés au cours de la période selon la période d’amortissement (en années) à l'initiation (%)","24.8","Période d’amortissement moyenne",{"$f":"IFERROR(VLOOKUP(A708,Translation!$A:$C,3,FALSE),A708)","v":10},{"$f":"IFERROR(VLOOKUP(B708,Translation!$A:$C,3,FALSE),B708)","v":"T3 2017"},{"$f":"IFERROR(VLOOKUP(C708,Translation!$A:$C,3,FALSE),C708)","v":"PROPRIÉTAIRES-OCCUPANTS, À L’UNITÉ"},{"$f":"IFERROR(VLOOKUP(D708,Translation!$A:$C,3,FALSE),D708)","v":"Période d’amortissement moyenne"},{"$f":"IFERROR(VLOOKUP(E708,Translation!$A:$C,3,FALSE),E708)","v":24.849028425771255},{"$f":"IFERROR(VLOOKUP(F708,Translation!$A:$C,3,FALSE),F708)","v":"Prêts hypothécaires assurés au cours de la période selon la période d’amortissement (en années) à l'initiation (%)"},{"$f":"IFERROR(VLOOKUP(G708,Translation!$A:$C,3,FALSE),G708)","v":"24.8"},{"$f":"IFERROR(VLOOKUP(H708,Translation!$A:$C,3,FALSE),H708)","v":"Période d’amortissement moyenne"}]
[10,"Q4 2016","PROPRIÉTAIRES-OCCUPANTS, À L’UNITÉ","Période d’amortissement moyenne",24.838830418649199,"Prêts hypothécaires assurés au cours de la période selon la période d’amortissement (en années) à l'initiation (%)","24.8","Période d’amortissement moyenne",{"$f":"IFERROR(VLOOKUP(A709,Translation!$A:$C,3,FALSE),A709)","v":10},{"$f":"IFERROR(VLOOKUP(B709,Translation!$A:$C,3,FALSE),B709)","v":"Q4 2016"},{"$f":"IFERROR(VLOOKUP(C709,Translation!$A:$C,3,FALSE),C709)","v":"PROPRIÉTAIRES-OCCUPANTS, À L’UNITÉ"},{"$f":"IFERROR(VLOOKUP(D709,Translation!$A:$C,3,FALSE),D709)","v":"Période d’amortissement moyenne"},{"$f":"IFERROR(VLOOKUP(E709,Translation!$A:$C,3,FALSE),E709)","v":24.838830418649199},{"$f":"IFERROR(VLOOKUP(F709,Translation!$A:$C,3,FALSE),F709)","v":"Prêts hypothécaires assurés au cours de la période selon la période d’amortissement (en années) à l'initiation (%)"},{"$f":"IFERROR(VLOOKUP(G709,Translation!$A:$C,3,FALSE),G709)","v":"24.8"},{"$f":"IFERROR(VLOOKUP(H709,Translation!$A:$C,3,FALSE),H709)","v":"Période d’amortissement moyenne"}]
[10,"T4 2017","PROPRIÉTAIRES-OCCUPANTS, À L’UNITÉ","Période d’amortissement moyenne",24.849659638995043,"Prêts hypothécaires assurés au cours de la période selon la période d’amortissement (en années) à l'initiation (%)","24.8","Période d’amortissement moyenne",{"$f":"IFERROR(VLOOKUP(A710,Translation!$A:$C,3,FALSE),A710)","v":10},{"$f":"IFERROR(VLOOKUP(B710,Translation!$A:$C,3,FALSE),B710)","v":"T4 2017"},{"$f":"IFERROR(VLOOKUP(C710,Translation!$A:$C,3,FALSE),C710)","v":"PROPRIÉTAIRES-OCCUPANTS, À L’UNITÉ"},{"$f":"IFERROR(VLOOKUP(D710,Translation!$A:$C,3,FALSE),D710)","v":"Période d’amortissement moyenne"},{"$f":"IFERROR(VLOOKUP(E710,Translation!$A:$C,3,FALSE),E710)","v":24.849659638995043},{"$f":"IFERROR(VLOOKUP(F710,Translation!$A:$C,3,FALSE),F710)","v":"Prêts hypothécaires assurés au cours de la période selon la période d’amortissement (en années) à l'initiation (%)"},{"$f":"IFERROR(VLOOKUP(G710,Translation!$A:$C,3,FALSE),G710)","v":"24.8"},{"$f":"IFERROR(VLOOKUP(H710,Translation!$A:$C,3,FALSE),H710)","v":"Période d’amortissement moyenne"}]
[10,"T1 2017","PROPRIÉTAIRES-OCCUPANTS, À L’UNITÉ","Terre-Neuve-et-Labrador",24.855714347980125,"Période d’amortissement moyenne selon la province","24.9","Terre-Neuve-et-Labrador",{"$f":"IFERROR(VLOOKUP(A711,Translation!$A:$C,3,FALSE),A711)","v":10},{"$f":"IFERROR(VLOOKUP(B711,Translation!$A:$C,3,FALSE),B711)","v":"T1 2017"},{"$f":"IFERROR(VLOOKUP(C711,Translation!$A:$C,3,FALSE),C711)","v":"PROPRIÉTAIRES-OCCUPANTS, À L’UNITÉ"},{"$f":"IFERROR(VLOOKUP(D711,Translation!$A:$C,3,FALSE),D711)","v":"Terre-Neuve-et-Labrador"},{"$f":"IFERROR(VLOOKUP(E711,Translation!$A:$C,3,FALSE),E711)","v":24.855714347980125},{"$f":"IFERROR(VLOOKUP(F711,Translation!$A:$C,3,FALSE),F711)","v":"Période d’amortissement moyenne selon la province"},{"$f":"IFERROR(VLOOKUP(G711,Translation!$A:$C,3,FALSE),G711)","v":"24.9"},{"$f":"IFERROR(VLOOKUP(H711,Translation!$A:$C,3,FALSE),H711)","v":"Terre-Neuve-et-Labrador"}]
[10,"T1 2017","PROPRIÉTAIRES-OCCUPANTS, À L’UNITÉ","Île-du-Prince-Édouard",24.941176357729471,"Période d’amortissement moyenne selon la province","24.9","Île-du-Prince-Édouard",{"$f":"IFERROR(VLOOKUP(A712,Translation!$A:$C,3,FALSE),A712)","v":10},{"$f":"IFERROR(VLOOKUP(B712,Translation!$A:$C,3,FALSE),B712)","v":"T1 2017"},{"$f":"IFERROR(VLOOKUP(C712,Translation!$A:$C,3,FALSE),C712)","v":"PROPRIÉTAIRES-OCCUPANTS, À L’UNITÉ"},{"$f":"IFERROR(VLOOKUP(D712,Translation!$A:$C,3,FALSE),D712)","v":"Île-du-Prince-Édouard"},{"$f":"IFERROR(VLOOKUP(E712,Translation!$A:$C,3,FALSE),E712)","v":24.941176357729471},{"$f":"IFERROR(VLOOKUP(F712,Translation!$A:$C,3,FALSE),F712)","v":"Période d’amortissement moyenne selon la province"},{"$f":"IFERROR(VLOOKUP(G712,Translation!$A:$C,3,FALSE),G712)","v":"24.9"},{"$f":"IFERROR(VLOOKUP(H712,Translation!$A:$C,3,FALSE),H712)","v":"Île-du-Prince-Édouard"}]
[10,"T1 2017","PROPRIÉTAIRES-OCCUPANTS, À L’UNITÉ","Nouvelle-Écosse",24.787740399559059,"Période d’amortissement moyenne selon la province","24.8","Nouvelle-Écosse",{"$f":"IFERROR(VLOOKUP(A713,Translation!$A:$C,3,FALSE),A713)","v":10},{"$f":"IFERROR(VLOOKUP(B713,Translation!$A:$C,3,FALSE),B713)","v":"T1 2017"},{"$f":"IFERROR(VLOOKUP(C713,Translation!$A:$C,3,FALSE),C713)","v":"PROPRIÉTAIRES-OCCUPANTS, À L’UNITÉ"},{"$f":"IFERROR(VLOOKUP(D713,Translation!$A:$C,3,FALSE),D713)","v":"Nouvelle-Écosse"},{"$f":"IFERROR(VLOOKUP(E713,Translation!$A:$C,3,FALSE),E713)","v":24.787740399559059},{"$f":"IFERROR(VLOOKUP(F713,Translation!$A:$C,3,FALSE),F713)","v":"Période d’amortissement moyenne selon la province"},{"$f":"IFERROR(VLOOKUP(G713,Translation!$A:$C,3,FALSE),G713)","v":"24.8"},{"$f":"IFERROR(VLOOKUP(H713,Translation!$A:$C,3,FALSE),H713)","v":"Nouvelle-Écosse"}]
[10,"T1 2017","PROPRIÉTAIRES-OCCUPANTS, À L’UNITÉ","Nouveau-Brunswick",24.809995367924994,"Période d’amortissement moyenne selon la province","24.8","Nouveau-Brunswick",{"$f":"IFERROR(VLOOKUP(A714,Translation!$A:$C,3,FALSE),A714)","v":10},{"$f":"IFERROR(VLOOKUP(B714,Translation!$A:$C,3,FALSE),B714)","v":"T1 2017"},{"$f":"IFERROR(VLOOKUP(C714,Translation!$A:$C,3,FALSE),C714)","v":"PROPRIÉTAIRES-OCCUPANTS, À L’UNITÉ"},{"$f":"IFERROR(VLOOKUP(D714,Translation!$A:$C,3,FALSE),D714)","v":"Nouveau-Brunswick"},{"$f":"IFERROR(VLOOKUP(E714,Translation!$A:$C,3,FALSE),E714)","v":24.809995367924994},{"$f":"IFERROR(VLOOKUP(F714,Translation!$A:$C,3,FALSE),F714)","v":"Période d’amortissement moyenne selon la province"},{"$f":"IFERROR(VLOOKUP(G714,Translation!$A:$C,3,FALSE),G714)","v":"24.8"},{"$f":"IFERROR(VLOOKUP(H714,Translation!$A:$C,3,FALSE),H714)","v":"Nouveau-Brunswick"}]
[10,"T1 2017","PROPRIÉTAIRES-OCCUPANTS, À L’UNITÉ","Québec",24.919649883213033,"Période d’amortissement moyenne selon la province","24.9","Québec",{"$f":"IFERROR(VLOOKUP(A715,Translation!$A:$C,3,FALSE),A715)","v":10},{"$f":"IFERROR(VLOOKUP(B715,Translation!$A:$C,3,FALSE),B715)","v":"T1 2017"},{"$f":"IFERROR(VLOOKUP(C715,Translation!$A:$C,3,FALSE),C715)","v":"PROPRIÉTAIRES-OCCUPANTS, À L’UNITÉ"},{"$f":"IFERROR(VLOOKUP(D715,Translation!$A:$C,3,FALSE),D715)","v":"Québec"},{"$f":"IFERROR(VLOOKUP(E715,Translation!$A:$C,3,FALSE),E715)","v":24.919649883213033},{"$f":"IFERROR(VLOOKUP(F715,Translation!$A:$C,3,FALSE),F715)","v":"Période d’amortissement moyenne selon la province"},{"$f":"IFERROR(VLOOKUP(G715,Translation!$A:$C,3,FALSE),G715)","v":"24.9"},{"$f":"IFERROR(VLOOKUP(H715,Translation!$A:$C,3,FALSE),H715)","v":"Québec"}]
[10,"T1 2017","PROPRIÉTAIRES-OCCUPANTS, À L’UNITÉ","Ontario",24.938530346987758,"Période d’amortissement moyenne selon la province","24.9","Ontario",{"$f":"IFERROR(VLOOKUP(A716,Translation!$A:$C,3,FALSE),A716)","v":10},{"$f":"IFERROR(VLOOKUP(B716,Translation!$A:$C,3,FALSE),B716)","v":"T1 2017"},{"$f":"IFERROR(VLOOKUP(C716,Translation!$A:$C,3,FALSE),C716)","v":"PROPRIÉTAIRES-OCCUPANTS, À L’UNITÉ"},{"$f":"IFERROR(VLOOKUP(D716,Translation!$A:$C,3,FALSE),D716)","v":"Ontario"},{"$f":"IFERROR(VLOOKUP(E716,Translation!$A:$C,3,FALSE),E716)","v":24.938530346987758},{"$f":"IFERROR(VLOOKUP(F716,Translation!$A:$C,3,FALSE),F716)","v":"Période d’amortissement moyenne selon la province"},{"$f":"IFERROR(VLOOKUP(G716,Translation!$A:$C,3,FALSE),G716)","v":"24.9"},{"$f":"IFERROR(VLOOKUP(H716,Translation!$A:$C,3,FALSE),H716)","v":"Ontario"}]
[10,"T1 2017","PROPRIÉTAIRES-OCCUPANTS, À L’UNITÉ","Manitoba",24.868331026611919,"Période d’amortissement moyenne selon la province","24.9","Manitoba",{"$f":"IFERROR(VLOOKUP(A717,Translation!$A:$C,3,FALSE),A717)","v":10},{"$f":"IFERROR(VLOOKUP(B717,Translation!$A:$C,3,FALSE),B717)","v":"T1 2017"},{"$f":"IFERROR(VLOOKUP(C717,Translation!$A:$C,3,FALSE),C717)","v":"PROPRIÉTAIRES-OCCUPANTS, À L’UNITÉ"},{"$f":"IFERROR(VLOOKUP(D717,Translation!$A:$C,3,FALSE),D717)","v":"Manitoba"},{"$f":"IFERROR(VLOOKUP(E717,Translation!$A:$C,3,FALSE),E717)","v":24.868331026611919},{"$f":"IFERROR(VLOOKUP(F717,Translation!$A:$C,3,FALSE),F717)","v":"Période d’amortissement moyenne selon la province"},{"$f":"IFERROR(VLOOKUP(G717,Translation!$A:$C,3,FALSE),G717)","v":"24.9"},{"$f":"IFERROR(VLOOKUP(H717,Translation!$A:$C,3,FALSE),H717)","v":"Manitoba"}]
[10,"T1 2017","PROPRIÉTAIRES-OCCUPANTS, À L’UNITÉ","Saskatchewan",24.852366447583314,"Période d’amortissement moyenne selon la province","24.9","Saskatchewan",{"$f":"IFERROR(VLOOKUP(A718,Translation!$A:$C,3,FALSE),A718)","v":10},{"$f":"IFERROR(VLOOKUP(B718,Translation!$A:$C,3,FALSE),B718)","v":"T1 2017"},{"$f":"IFERROR(VLOOKUP(C718,Translation!$A:$C,3,FALSE),C718)","v":"PROPRIÉTAIRES-OCCUPANTS, À L’UNITÉ"},{"$f":"IFERROR(VLOOKUP(D718,Translation!$A:$C,3,FALSE),D718)","v":"Saskatchewan"},{"$f":"IFERROR(VLOOKUP(E718,Translation!$A:$C,3,FALSE),E718)","v":24.852366447583314},{"$f":"IFERROR(VLOOKUP(F718,Translation!$A:$C,3,FALSE),F718)","v":"Période d’amortissement moyenne selon la province"},{"$f":"IFERROR(VLOOKUP(G718,Translation!$A:$C,3,FALSE),G718)","v":"24.9"},{"$f":"IFERROR(VLOOKUP(H718,Translation!$A:$C,3,FALSE),H718)","v":"Saskatchewan"}]
[10,"T1 2017","PROPRIÉTAIRES-OCCUPANTS, À L’UNITÉ","Alberta",24.863883055084756,"Période d’amortissement moyenne selon la province","24.9","Alberta",{"$f":"IFERROR(VLOOKUP(A719,Translation!$A:$C,3,FALSE),A719)","v":10},{"$f":"IFERROR(VLOOKUP(B719,Translation!$A:$C,3,FALSE),B719)","v":"T1 2017"},{"$f":"IFERROR(VLOOKUP(C719,Translation!$A:$C,3,FALSE),C719)","v":"PROPRIÉTAIRES-OCCUPANTS, À L’UNITÉ"},{"$f":"IFERROR(VLOOKUP(D719,Translation!$A:$C,3,FALSE),D719)","v":"Alberta"},{"$f":"IFERROR(VLOOKUP(E719,Translation!$A:$C,3,FALSE),E719)","v":24.863883055084756},{"$f":"IFERROR(VLOOKUP(F719,Translation!$A:$C,3,FALSE),F719)","v":"Période d’amortissement moyenne selon la province"},{"$f":"IFERROR(VLOOKUP(G719,Translation!$A:$C,3,FALSE),G719)","v":"24.9"},{"$f":"IFERROR(VLOOKUP(H719,Translation!$A:$C,3,FALSE),H719)","v":"Alberta"}]
[10,"T1 2017","PROPRIÉTAIRES-OCCUPANTS, À L’UNITÉ","Colombie-Britannique",24.858170319586993,"Période d’amortissement moyenne selon la province","24.9","Colombie-Britannique",{"$f":"IFERROR(VLOOKUP(A720,Translation!$A:$C,3,FALSE),A720)","v":10},{"$f":"IFERROR(VLOOKUP(B720,Translation!$A:$C,3,FALSE),B720)","v":"T1 2017"},{"$f":"IFERROR(VLOOKUP(C720,Translation!$A:$C,3,FALSE),C720)","v":"PROPRIÉTAIRES-OCCUPANTS, À L’UNITÉ"},{"$f":"IFERROR(VLOOKUP(D720,Translation!$A:$C,3,FALSE),D720)","v":"Colombie-Britannique"},{"$f":"IFERROR(VLOOKUP(E720,Translation!$A:$C,3,FALSE),E720)","v":24.858170319586993},{"$f":"IFERROR(VLOOKUP(F720,Translation!$A:$C,3,FALSE),F720)","v":"Période d’amortissement moyenne selon la province"},{"$f":"IFERROR(VLOOKUP(G720,Translation!$A:$C,3,FALSE),G720)","v":"24.9"},{"$f":"IFERROR(VLOOKUP(H720,Translation!$A:$C,3,FALSE),H720)","v":"Colombie-Britannique"}]
[10,"T1 2017","PROPRIÉTAIRES-OCCUPANTS, À L’UNITÉ","Territoires",24.346800767124655,"Période d’amortissement moyenne selon la province","24.3","Territoires",{"$f":"IFERROR(VLOOKUP(A721,Translation!$A:$C,3,FALSE),A721)","v":10},{"$f":"IFERROR(VLOOKUP(B721,Translation!$A:$C,3,FALSE),B721)","v":"T1 2017"},{"$f":"IFERROR(VLOOKUP(C721,Translation!$A:$C,3,FALSE),C721)","v":"PROPRIÉTAIRES-OCCUPANTS, À L’UNITÉ"},{"$f":"IFERROR(VLOOKUP(D721,Translation!$A:$C,3,FALSE),D721)","v":"Territoires"},{"$f":"IFERROR(VLOOKUP(E721,Translation!$A:$C,3,FALSE),E721)","v":24.346800767124655},{"$f":"IFERROR(VLOOKUP(F721,Translation!$A:$C,3,FALSE),F721)","v":"Période d’amortissement moyenne selon la province"},{"$f":"IFERROR(VLOOKUP(G721,Translation!$A:$C,3,FALSE),G721)","v":"24.3"},{"$f":"IFERROR(VLOOKUP(H721,Translation!$A:$C,3,FALSE),H721)","v":"Territoires"}]
[10,"T1 2018","PROPRIÉTAIRES-OCCUPANTS, À L’UNITÉ","Terre-Neuve-et-Labrador",24.843069368260739,"Période d’amortissement moyenne selon la province","24.8","Terre-Neuve-et-Labrador",{"$f":"IFERROR(VLOOKUP(A722,Translation!$A:$C,3,FALSE),A722)","v":10},{"$f":"IFERROR(VLOOKUP(B722,Translation!$A:$C,3,FALSE),B722)","v":"T1 2018"},{"$f":"IFERROR(VLOOKUP(C722,Translation!$A:$C,3,FALSE),C722)","v":"PROPRIÉTAIRES-OCCUPANTS, À L’UNITÉ"},{"$f":"IFERROR(VLOOKUP(D722,Translation!$A:$C,3,FALSE),D722)","v":"Terre-Neuve-et-Labrador"},{"$f":"IFERROR(VLOOKUP(E722,Translation!$A:$C,3,FALSE),E722)","v":24.843069368260739},{"$f":"IFERROR(VLOOKUP(F722,Translation!$A:$C,3,FALSE),F722)","v":"Période d’amortissement moyenne selon la province"},{"$f":"IFERROR(VLOOKUP(G722,Translation!$A:$C,3,FALSE),G722)","v":"24.8"},{"$f":"IFERROR(VLOOKUP(H722,Translation!$A:$C,3,FALSE),H722)","v":"Terre-Neuve-et-Labrador"}]
[10,"T1 2018","PROPRIÉTAIRES-OCCUPANTS, À L’UNITÉ","Île-du-Prince-Édouard",24.627069974085558,"Période d’amortissement moyenne selon la province","24.6","Île-du-Prince-Édouard",{"$f":"IFERROR(VLOOKUP(A723,Translation!$A:$C,3,FALSE),A723)","v":10},{"$f":"IFERROR(VLOOKUP(B723,Translation!$A:$C,3,FALSE),B723)","v":"T1 2018"},{"$f":"IFERROR(VLOOKUP(C723,Translation!$A:$C,3,FALSE),C723)","v":"PROPRIÉTAIRES-OCCUPANTS, À L’UNITÉ"},{"$f":"IFERROR(VLOOKUP(D723,Translation!$A:$C,3,FALSE),D723)","v":"Île-du-Prince-Édouard"},{"$f":"IFERROR(VLOOKUP(E723,Translation!$A:$C,3,FALSE),E723)","v":24.627069974085558},{"$f":"IFERROR(VLOOKUP(F723,Translation!$A:$C,3,FALSE),F723)","v":"Période d’amortissement moyenne selon la province"},{"$f":"IFERROR(VLOOKUP(G723,Translation!$A:$C,3,FALSE),G723)","v":"24.6"},{"$f":"IFERROR(VLOOKUP(H723,Translation!$A:$C,3,FALSE),H723)","v":"Île-du-Prince-Édouard"}]
[10,"T1 2018","PROPRIÉTAIRES-OCCUPANTS, À L’UNITÉ","Nouvelle-Écosse",24.751369062523455,"Période d’amortissement moyenne selon la province","24.8","Nouvelle-Écosse",{"$f":"IFERROR(VLOOKUP(A724,Translation!$A:$C,3,FALSE),A724)","v":10},{"$f":"IFERROR(VLOOKUP(B724,Translation!$A:$C,3,FALSE),B724)","v":"T1 2018"},{"$f":"IFERROR(VLOOKUP(C724,Translation!$A:$C,3,FALSE),C724)","v":"PROPRIÉTAIRES-OCCUPANTS, À L’UNITÉ"},{"$f":"IFERROR(VLOOKUP(D724,Translation!$A:$C,3,FALSE),D724)","v":"Nouvelle-Écosse"},{"$f":"IFERROR(VLOOKUP(E724,Translation!$A:$C,3,FALSE),E724)","v":24.751369062523455},{"$f":"IFERROR(VLOOKUP(F724,Translation!$A:$C,3,FALSE),F724)","v":"Période d’amortissement moyenne selon la province"},{"$f":"IFERROR(VLOOKUP(G724,Translation!$A:$C,3,FALSE),G724)","v":"24.8"},{"$f":"IFERROR(VLOOKUP(H724,Translation!$A:$C,3,FALSE),H724)","v":"Nouvelle-Écosse"}]
[10,"T1 2018","PROPRIÉTAIRES-OCCUPANTS, À L’UNITÉ","Nouveau-Brunswick",24.781353903386687,"Période d’amortissement moyenne selon la province","24.8","Nouveau-Brunswick",{"$f":"IFERROR(VLOOKUP(A725,Translation!$A:$C,3,FALSE),A725)","v":10},{"$f":"IFERROR(VLOOKUP(B725,Translation!$A:$C,3,FALSE),B725)","v":"T1 2018"},{"$f":"IFERROR(VLOOKUP(C725,Translation!$A:$C,3,FALSE),C725)","v":"PROPRIÉTAIRES-OCCUPANTS, À L’UNITÉ"},{"$f":"IFERROR(VLOOKUP(D725,Translation!$A:$C,3,FALSE),D725)","v":"Nouveau-Brunswick"},{"$f":"IFERROR(VLOOKUP(E725,Translation!$A:$C,3,FALSE),E725)","v":24.781353903386687},{"$f":"IFERROR(VLOOKUP(F725,Translation!$A:$C,3,FALSE),F725)","v":"Période d’amortissement moyenne selon la province"},{"$f":"IFERROR(VLOOKUP(G725,Translation!$A:$C,3,FALSE),G725)","v":"24.8"},{"$f":"IFERROR(VLOOKUP(H725,Translation!$A:$C,3,FALSE),H725)","v":"Nouveau-Brunswick"}]
[10,"T1 2018","PROPRIÉTAIRES-OCCUPANTS, À L’UNITÉ","Québec",24.848099877982527,"Période d’amortissement moyenne selon la province","24.8","Québec",{"$f":"IFERROR(VLOOKUP(A726,Translation!$A:$C,3,FALSE),A726)","v":10},{"$f":"IFERROR(VLOOKUP(B726,Translation!$A:$C,3,FALSE),B726)","v":"T1 2018"},{"$f":"IFERROR(VLOOKUP(C726,Translation!$A:$C,3,FALSE),C726)","v":"PROPRIÉTAIRES-OCCUPANTS, À L’UNITÉ"},{"$f":"IFERROR(VLOOKUP(D726,Translation!$A:$C,3,FALSE),D726)","v":"Québec"},{"$f":"IFERROR(VLOOKUP(E726,Translation!$A:$C,3,FALSE),E726)","v":24.848099877982527},{"$f":"IFERROR(VLOOKUP(F726,Translation!$A:$C,3,FALSE),F726)","v":"Période d’amortissement moyenne selon la province"},{"$f":"IFERROR(VLOOKUP(G726,Translation!$A:$C,3,FALSE),G726)","v":"24.8"},{"$f":"IFERROR(VLOOKUP(H726,Translation!$A:$C,3,FALSE),H726)","v":"Québec"}]
[10,"T1 2018","PROPRIÉTAIRES-OCCUPANTS, À L’UNITÉ","Ontario",24.919453771430895,"Période d’amortissement moyenne selon la province","24.9","Ontario",{"$f":"IFERROR(VLOOKUP(A727,Translation!$A:$C,3,FALSE),A727)","v":10},{"$f":"IFERROR(VLOOKUP(B727,Translation!$A:$C,3,FALSE),B727)","v":"T1 2018"},{"$f":"IFERROR(VLOOKUP(C727,Translation!$A:$C,3,FALSE),C727)","v":"PROPRIÉTAIRES-OCCUPANTS, À L’UNITÉ"},{"$f":"IFERROR(VLOOKUP(D727,Translation!$A:$C,3,FALSE),D727)","v":"Ontario"},{"$f":"IFERROR(VLOOKUP(E727,Translation!$A:$C,3,FALSE),E727)","v":24.919453771430895},{"$f":"IFERROR(VLOOKUP(F727,Translation!$A:$C,3,FALSE),F727)","v":"Période d’amortissement moyenne selon la province"},{"$f":"IFERROR(VLOOKUP(G727,Translation!$A:$C,3,FALSE),G727)","v":"24.9"},{"$f":"IFERROR(VLOOKUP(H727,Translation!$A:$C,3,FALSE),H727)","v":"Ontario"}]
[10,"T1 2018","PROPRIÉTAIRES-OCCUPANTS, À L’UNITÉ","Manitoba",24.84399312166774,"Période d’amortissement moyenne selon la province","24.8","Manitoba",{"$f":"IFERROR(VLOOKUP(A728,Translation!$A:$C,3,FALSE),A728)","v":10},{"$f":"IFERROR(VLOOKUP(B728,Translation!$A:$C,3,FALSE),B728)","v":"T1 2018"},{"$f":"IFERROR(VLOOKUP(C728,Translation!$A:$C,3,FALSE),C728)","v":"PROPRIÉTAIRES-OCCUPANTS, À L’UNITÉ"},{"$f":"IFERROR(VLOOKUP(D728,Translation!$A:$C,3,FALSE),D728)","v":"Manitoba"},{"$f":"IFERROR(VLOOKUP(E728,Translation!$A:$C,3,FALSE),E728)","v":24.84399312166774},{"$f":"IFERROR(VLOOKUP(F728,Translation!$A:$C,3,FALSE),F728)","v":"Période d’amortissement moyenne selon la province"},{"$f":"IFERROR(VLOOKUP(G728,Translation!$A:$C,3,FALSE),G728)","v":"24.8"},{"$f":"IFERROR(VLOOKUP(H728,Translation!$A:$C,3,FALSE),H728)","v":"Manitoba"}]
[10,"T1 2018","PROPRIÉTAIRES-OCCUPANTS, À L’UNITÉ","Saskatchewan",24.753205510649838,"Période d’amortissement moyenne selon la province","24.8","Saskatchewan",{"$f":"IFERROR(VLOOKUP(A729,Translation!$A:$C,3,FALSE),A729)","v":10},{"$f":"IFERROR(VLOOKUP(B729,Translation!$A:$C,3,FALSE),B729)","v":"T1 2018"},{"$f":"IFERROR(VLOOKUP(C729,Translation!$A:$C,3,FALSE),C729)","v":"PROPRIÉTAIRES-OCCUPANTS, À L’UNITÉ"},{"$f":"IFERROR(VLOOKUP(D729,Translation!$A:$C,3,FALSE),D729)","v":"Saskatchewan"},{"$f":"IFERROR(VLOOKUP(E729,Translation!$A:$C,3,FALSE),E729)","v":24.753205510649838},{"$f":"IFERROR(VLOOKUP(F729,Translation!$A:$C,3,FALSE),F729)","v":"Période d’amortissement moyenne selon la province"},{"$f":"IFERROR(VLOOKUP(G729,Translation!$A:$C,3,FALSE),G729)","v":"24.8"},{"$f":"IFERROR(VLOOKUP(H729,Translation!$A:$C,3,FALSE),H729)","v":"Saskatchewan"}]
[10,"T1 2018","PROPRIÉTAIRES-OCCUPANTS, À L’UNITÉ","Alberta",24.839152531937874,"Période d’amortissement moyenne selon la province","24.8","Alberta",{"$f":"IFERROR(VLOOKUP(A730,Translation!$A:$C,3,FALSE),A730)","v":10},{"$f":"IFERROR(VLOOKUP(B730,Translation!$A:$C,3,FALSE),B730)","v":"T1 2018"},{"$f":"IFERROR(VLOOKUP(C730,Translation!$A:$C,3,FALSE),C730)","v":"PROPRIÉTAIRES-OCCUPANTS, À L’UNITÉ"},{"$f":"IFERROR(VLOOKUP(D730,Translation!$A:$C,3,FALSE),D730)","v":"Alberta"},{"$f":"IFERROR(VLOOKUP(E730,Translation!$A:$C,3,FALSE),E730)","v":24.839152531937874},{"$f":"IFERROR(VLOOKUP(F730,Translation!$A:$C,3,FALSE),F730)","v":"Période d’amortissement moyenne selon la province"},{"$f":"IFERROR(VLOOKUP(G730,Translation!$A:$C,3,FALSE),G730)","v":"24.8"},{"$f":"IFERROR(VLOOKUP(H730,Translation!$A:$C,3,FALSE),H730)","v":"Alberta"}]
[10,"T1 2018","PROPRIÉTAIRES-OCCUPANTS, À L’UNITÉ","Colombie-Britannique",24.860761055708195,"Période d’amortissement moyenne selon la province","24.9","Colombie-Britannique",{"$f":"IFERROR(VLOOKUP(A731,Translation!$A:$C,3,FALSE),A731)","v":10},{"$f":"IFERROR(VLOOKUP(B731,Translation!$A:$C,3,FALSE),B731)","v":"T1 2018"},{"$f":"IFERROR(VLOOKUP(C731,Translation!$A:$C,3,FALSE),C731)","v":"PROPRIÉTAIRES-OCCUPANTS, À L’UNITÉ"},{"$f":"IFERROR(VLOOKUP(D731,Translation!$A:$C,3,FALSE),D731)","v":"Colombie-Britannique"},{"$f":"IFERROR(VLOOKUP(E731,Translation!$A:$C,3,FALSE),E731)","v":24.860761055708195},{"$f":"IFERROR(VLOOKUP(F731,Translation!$A:$C,3,FALSE),F731)","v":"Période d’amortissement moyenne selon la province"},{"$f":"IFERROR(VLOOKUP(G731,Translation!$A:$C,3,FALSE),G731)","v":"24.9"},{"$f":"IFERROR(VLOOKUP(H731,Translation!$A:$C,3,FALSE),H731)","v":"Colombie-Britannique"}]
[10,"T1 2018","PROPRIÉTAIRES-OCCUPANTS, À L’UNITÉ","Territoires",24.559344686630141,"Période d’amortissement moyenne selon la province","24.6","Territoires",{"$f":"IFERROR(VLOOKUP(A732,Translation!$A:$C,3,FALSE),A732)","v":10},{"$f":"IFERROR(VLOOKUP(B732,Translation!$A:$C,3,FALSE),B732)","v":"T1 2018"},{"$f":"IFERROR(VLOOKUP(C732,Translation!$A:$C,3,FALSE),C732)","v":"PROPRIÉTAIRES-OCCUPANTS, À L’UNITÉ"},{"$f":"IFERROR(VLOOKUP(D732,Translation!$A:$C,3,FALSE),D732)","v":"Territoires"},{"$f":"IFERROR(VLOOKUP(E732,Translation!$A:$C,3,FALSE),E732)","v":24.559344686630141},{"$f":"IFERROR(VLOOKUP(F732,Translation!$A:$C,3,FALSE),F732)","v":"Période d’amortissement moyenne selon la province"},{"$f":"IFERROR(VLOOKUP(G732,Translation!$A:$C,3,FALSE),G732)","v":"24.6"},{"$f":"IFERROR(VLOOKUP(H732,Translation!$A:$C,3,FALSE),H732)","v":"Territoires"}]
[10,"Q2 2016","PROPRIÉTAIRES-OCCUPANTS, À L’UNITÉ","Terre-Neuve-et-Labrador",24.640509156220592,"Période d’amortissement moyenne selon la province","24.6","Terre-Neuve-et-Labrador",{"$f":"IFERROR(VLOOKUP(A733,Translation!$A:$C,3,FALSE),A733)","v":10},{"$f":"IFERROR(VLOOKUP(B733,Translation!$A:$C,3,FALSE),B733)","v":"Q2 2016"},{"$f":"IFERROR(VLOOKUP(C733,Translation!$A:$C,3,FALSE),C733)","v":"PROPRIÉTAIRES-OCCUPANTS, À L’UNITÉ"},{"$f":"IFERROR(VLOOKUP(D733,Translation!$A:$C,3,FALSE),D733)","v":"Terre-Neuve-et-Labrador"},{"$f":"IFERROR(VLOOKUP(E733,Translation!$A:$C,3,FALSE),E733)","v":24.640509156220592},{"$f":"IFERROR(VLOOKUP(F733,Translation!$A:$C,3,FALSE),F733)","v":"Période d’amortissement moyenne selon la province"},{"$f":"IFERROR(VLOOKUP(G733,Translation!$A:$C,3,FALSE),G733)","v":"24.6"},{"$f":"IFERROR(VLOOKUP(H733,Translation!$A:$C,3,FALSE),H733)","v":"Terre-Neuve-et-Labrador"}]
[10,"Q2 2016","PROPRIÉTAIRES-OCCUPANTS, À L’UNITÉ","Île-du-Prince-Édouard",24.698482650457301,"Période d’amortissement moyenne selon la province","24.7","Île-du-Prince-Édouard",{"$f":"IFERROR(VLOOKUP(A734,Translation!$A:$C,3,FALSE),A734)","v":10},{"$f":"IFERROR(VLOOKUP(B734,Translation!$A:$C,3,FALSE),B734)","v":"Q2 2016"},{"$f":"IFERROR(VLOOKUP(C734,Translation!$A:$C,3,FALSE),C734)","v":"PROPRIÉTAIRES-OCCUPANTS, À L’UNITÉ"},{"$f":"IFERROR(VLOOKUP(D734,Translation!$A:$C,3,FALSE),D734)","v":"Île-du-Prince-Édouard"},{"$f":"IFERROR(VLOOKUP(E734,Translation!$A:$C,3,FALSE),E734)","v":24.698482650457301},{"$f":"IFERROR(VLOOKUP(F734,Translation!$A:$C,3,FALSE),F734)","v":"Période d’amortissement moyenne selon la province"},{"$f":"IFERROR(VLOOKUP(G734,Translation!$A:$C,3,FALSE),G734)","v":"24.7"},{"$f":"IFERROR(VLOOKUP(H734,Translation!$A:$C,3,FALSE),H734)","v":"Île-du-Prince-Édouard"}]
[10,"Q2 2016","PROPRIÉTAIRES-OCCUPANTS, À L’UNITÉ","Nouvelle-Écosse",24.548975417572937,"Période d’amortissement moyenne selon la province","24.5","Nouvelle-Écosse",{"$f":"IFERROR(VLOOKUP(A735,Translation!$A:$C,3,FALSE),A735)","v":10},{"$f":"IFERROR(VLOOKUP(B735,Translation!$A:$C,3,FALSE),B735)","v":"Q2 2016"},{"$f":"IFERROR(VLOOKUP(C735,Translation!$A:$C,3,FALSE),C735)","v":"PROPRIÉTAIRES-OCCUPANTS, À L’UNITÉ"},{"$f":"IFERROR(VLOOKUP(D735,Translation!$A:$C,3,FALSE),D735)","v":"Nouvelle-Écosse"},{"$f":"IFERROR(VLOOKUP(E735,Translation!$A:$C,3,FALSE),E735)","v":24.548975417572937},{"$f":"IFERROR(VLOOKUP(F735,Translation!$A:$C,3,FALSE),F735)","v":"Période d’amortissement moyenne selon la province"},{"$f":"IFERROR(VLOOKUP(G735,Translation!$A:$C,3,FALSE),G735)","v":"24.5"},{"$f":"IFERROR(VLOOKUP(H735,Translation!$A:$C,3,FALSE),H735)","v":"Nouvelle-Écosse"}]
[10,"Q2 2016","PROPRIÉTAIRES-OCCUPANTS, À L’UNITÉ","Nouveau-Brunswick",24.371587774888795,"Période d’amortissement moyenne selon la province","24.4","Nouveau-Brunswick",{"$f":"IFERROR(VLOOKUP(A736,Translation!$A:$C,3,FALSE),A736)","v":10},{"$f":"IFERROR(VLOOKUP(B736,Translation!$A:$C,3,FALSE),B736)","v":"Q2 2016"},{"$f":"IFERROR(VLOOKUP(C736,Translation!$A:$C,3,FALSE),C736)","v":"PROPRIÉTAIRES-OCCUPANTS, À L’UNITÉ"},{"$f":"IFERROR(VLOOKUP(D736,Translation!$A:$C,3,FALSE),D736)","v":"Nouveau-Brunswick"},{"$f":"IFERROR(VLOOKUP(E736,Translation!$A:$C,3,FALSE),E736)","v":24.371587774888795},{"$f":"IFERROR(VLOOKUP(F736,Translation!$A:$C,3,FALSE),F736)","v":"Période d’amortissement moyenne selon la province"},{"$f":"IFERROR(VLOOKUP(G736,Translation!$A:$C,3,FALSE),G736)","v":"24.4"},{"$f":"IFERROR(VLOOKUP(H736,Translation!$A:$C,3,FALSE),H736)","v":"Nouveau-Brunswick"}]
[10,"Q2 2016","PROPRIÉTAIRES-OCCUPANTS, À L’UNITÉ","Québec",24.902457732078833,"Période d’amortissement moyenne selon la province","24.9","Québec",{"$f":"IFERROR(VLOOKUP(A737,Translation!$A:$C,3,FALSE),A737)","v":10},{"$f":"IFERROR(VLOOKUP(B737,Translation!$A:$C,3,FALSE),B737)","v":"Q2 2016"},{"$f":"IFERROR(VLOOKUP(C737,Translation!$A:$C,3,FALSE),C737)","v":"PROPRIÉTAIRES-OCCUPANTS, À L’UNITÉ"},{"$f":"IFERROR(VLOOKUP(D737,Translation!$A:$C,3,FALSE),D737)","v":"Québec"},{"$f":"IFERROR(VLOOKUP(E737,Translation!$A:$C,3,FALSE),E737)","v":24.902457732078833},{"$f":"IFERROR(VLOOKUP(F737,Translation!$A:$C,3,FALSE),F737)","v":"Période d’amortissement moyenne selon la province"},{"$f":"IFERROR(VLOOKUP(G737,Translation!$A:$C,3,FALSE),G737)","v":"24.9"},{"$f":"IFERROR(VLOOKUP(H737,Translation!$A:$C,3,FALSE),H737)","v":"Québec"}]
[10,"Q2 2016","PROPRIÉTAIRES-OCCUPANTS, À L’UNITÉ","Ontario",24.884035056698455,"Période d’amortissement moyenne selon la province","24.9","Ontario",{"$f":"IFERROR(VLOOKUP(A738,Translation!$A:$C,3,FALSE),A738)","v":10},{"$f":"IFERROR(VLOOKUP(B738,Translation!$A:$C,3,FALSE),B738)","v":"Q2 2016"},{"$f":"IFERROR(VLOOKUP(C738,Translation!$A:$C,3,FALSE),C738)","v":"PROPRIÉTAIRES-OCCUPANTS, À L’UNITÉ"},{"$f":"IFERROR(VLOOKUP(D738,Translation!$A:$C,3,FALSE),D738)","v":"Ontario"},{"$f":"IFERROR(VLOOKUP(E738,Translation!$A:$C,3,FALSE),E738)","v":24.884035056698455},{"$f":"IFERROR(VLOOKUP(F738,Translation!$A:$C,3,FALSE),F738)","v":"Période d’amortissement moyenne selon la province"},{"$f":"IFERROR(VLOOKUP(G738,Translation!$A:$C,3,FALSE),G738)","v":"24.9"},{"$f":"IFERROR(VLOOKUP(H738,Translation!$A:$C,3,FALSE),H738)","v":"Ontario"}]
[10,"Q2 2016","PROPRIÉTAIRES-OCCUPANTS, À L’UNITÉ","Manitoba",24.784910978204657,"Période d’amortissement moyenne selon la province","24.8","Manitoba",{"$f":"IFERROR(VLOOKUP(A739,Translation!$A:$C,3,FALSE),A739)","v":10},{"$f":"IFERROR(VLOOKUP(B739,Translation!$A:$C,3,FALSE),B739)","v":"Q2 2016"},{"$f":"IFERROR(VLOOKUP(C739,Translation!$A:$C,3,FALSE),C739)","v":"PROPRIÉTAIRES-OCCUPANTS, À L’UNITÉ"},{"$f":"IFERROR(VLOOKUP(D739,Translation!$A:$C,3,FALSE),D739)","v":"Manitoba"},{"$f":"IFERROR(VLOOKUP(E739,Translation!$A:$C,3,FALSE),E739)","v":24.784910978204657},{"$f":"IFERROR(VLOOKUP(F739,Translation!$A:$C,3,FALSE),F739)","v":"Période d’amortissement moyenne selon la province"},{"$f":"IFERROR(VLOOKUP(G739,Translation!$A:$C,3,FALSE),G739)","v":"24.8"},{"$f":"IFERROR(VLOOKUP(H739,Translation!$A:$C,3,FALSE),H739)","v":"Manitoba"}]
[10,"Q2 2016","PROPRIÉTAIRES-OCCUPANTS, À L’UNITÉ","Saskatchewan",24.756722104602641,"Période d’amortissement moyenne selon la province","24.8","Saskatchewan",{"$f":"IFERROR(VLOOKUP(A740,Translation!$A:$C,3,FALSE),A740)","v":10},{"$f":"IFERROR(VLOOKUP(B740,Translation!$A:$C,3,FALSE),B740)","v":"Q2 2016"},{"$f":"IFERROR(VLOOKUP(C740,Translation!$A:$C,3,FALSE),C740)","v":"PROPRIÉTAIRES-OCCUPANTS, À L’UNITÉ"},{"$f":"IFERROR(VLOOKUP(D740,Translation!$A:$C,3,FALSE),D740)","v":"Saskatchewan"},{"$f":"IFERROR(VLOOKUP(E740,Translation!$A:$C,3,FALSE),E740)","v":24.756722104602641},{"$f":"IFERROR(VLOOKUP(F740,Translation!$A:$C,3,FALSE),F740)","v":"Période d’amortissement moyenne selon la province"},{"$f":"IFERROR(VLOOKUP(G740,Translation!$A:$C,3,FALSE),G740)","v":"24.8"},{"$f":"IFERROR(VLOOKUP(H740,Translation!$A:$C,3,FALSE),H740)","v":"Saskatchewan"}]
[10,"Q2 2016","PROPRIÉTAIRES-OCCUPANTS, À L’UNITÉ","Alberta",24.874316577170159,"Période d’amortissement moyenne selon la province","24.9","Alberta",{"$f":"IFERROR(VLOOKUP(A741,Translation!$A:$C,3,FALSE),A741)","v":10},{"$f":"IFERROR(VLOOKUP(B741,Translation!$A:$C,3,FALSE),B741)","v":"Q2 2016"},{"$f":"IFERROR(VLOOKUP(C741,Translation!$A:$C,3,FALSE),C741)","v":"PROPRIÉTAIRES-OCCUPANTS, À L’UNITÉ"},{"$f":"IFERROR(VLOOKUP(D741,Translation!$A:$C,3,FALSE),D741)","v":"Alberta"},{"$f":"IFERROR(VLOOKUP(E741,Translation!$A:$C,3,FALSE),E741)","v":24.874316577170159},{"$f":"IFERROR(VLOOKUP(F741,Translation!$A:$C,3,FALSE),F741)","v":"Période d’amortissement moyenne selon la province"},{"$f":"IFERROR(VLOOKUP(G741,Translation!$A:$C,3,FALSE),G741)","v":"24.9"},{"$f":"IFERROR(VLOOKUP(H741,Translation!$A:$C,3,FALSE),H741)","v":"Alberta"}]
[10,"Q2 2016","PROPRIÉTAIRES-OCCUPANTS, À L’UNITÉ","Colombie-Britannique",24.825310989763445,"Période d’amortissement moyenne selon la province","24.8","Colombie-Britannique",{"$f":"IFERROR(VLOOKUP(A742,Translation!$A:$C,3,FALSE),A742)","v":10},{"$f":"IFERROR(VLOOKUP(B742,Translation!$A:$C,3,FALSE),B742)","v":"Q2 2016"},{"$f":"IFERROR(VLOOKUP(C742,Translation!$A:$C,3,FALSE),C742)","v":"PROPRIÉTAIRES-OCCUPANTS, À L’UNITÉ"},{"$f":"IFERROR(VLOOKUP(D742,Translation!$A:$C,3,FALSE),D742)","v":"Colombie-Britannique"},{"$f":"IFERROR(VLOOKUP(E742,Translation!$A:$C,3,FALSE),E742)","v":24.825310989763445},{"$f":"IFERROR(VLOOKUP(F742,Translation!$A:$C,3,FALSE),F742)","v":"Période d’amortissement moyenne selon la province"},{"$f":"IFERROR(VLOOKUP(G742,Translation!$A:$C,3,FALSE),G742)","v":"24.8"},{"$f":"IFERROR(VLOOKUP(H742,Translation!$A:$C,3,FALSE),H742)","v":"Colombie-Britannique"}]
[10,"Q2 2016","PROPRIÉTAIRES-OCCUPANTS, À L’UNITÉ","Territoires",24.481434986757581,"Période d’amortissement moyenne selon la province","24.5","Territoires",{"$f":"IFERROR(VLOOKUP(A743,Translation!$A:$C,3,FALSE),A743)","v":10},{"$f":"IFERROR(VLOOKUP(B743,Translation!$A:$C,3,FALSE),B743)","v":"Q2 2016"},{"$f":"IFERROR(VLOOKUP(C743,Translation!$A:$C,3,FALSE),C743)","v":"PROPRIÉTAIRES-OCCUPANTS, À L’UNITÉ"},{"$f":"IFERROR(VLOOKUP(D743,Translation!$A:$C,3,FALSE),D743)","v":"Territoires"},{"$f":"IFERROR(VLOOKUP(E743,Translation!$A:$C,3,FALSE),E743)","v":24.481434986757581},{"$f":"IFERROR(VLOOKUP(F743,Translation!$A:$C,3,FALSE),F743)","v":"Période d’amortissement moyenne selon la province"},{"$f":"IFERROR(VLOOKUP(G743,Translation!$A:$C,3,FALSE),G743)","v":"24.5"},{"$f":"IFERROR(VLOOKUP(H743,Translation!$A:$C,3,FALSE),H743)","v":"Territoires"}]
[10,"T2 2017","PROPRIÉTAIRES-OCCUPANTS, À L’UNITÉ","Terre-Neuve-et-Labrador",24.87930705292888,"Période d’amortissement moyenne selon la province","24.9","Terre-Neuve-et-Labrador",{"$f":"IFERROR(VLOOKUP(A744,Translation!$A:$C,3,FALSE),A744)","v":10},{"$f":"IFERROR(VLOOKUP(B744,Translation!$A:$C,3,FALSE),B744)","v":"T2 2017"},{"$f":"IFERROR(VLOOKUP(C744,Translation!$A:$C,3,FALSE),C744)","v":"PROPRIÉTAIRES-OCCUPANTS, À L’UNITÉ"},{"$f":"IFERROR(VLOOKUP(D744,Translation!$A:$C,3,FALSE),D744)","v":"Terre-Neuve-et-Labrador"},{"$f":"IFERROR(VLOOKUP(E744,Translation!$A:$C,3,FALSE),E744)","v":24.87930705292888},{"$f":"IFERROR(VLOOKUP(F744,Translation!$A:$C,3,FALSE),F744)","v":"Période d’amortissement moyenne selon la province"},{"$f":"IFERROR(VLOOKUP(G744,Translation!$A:$C,3,FALSE),G744)","v":"24.9"},{"$f":"IFERROR(VLOOKUP(H744,Translation!$A:$C,3,FALSE),H744)","v":"Terre-Neuve-et-Labrador"}]
[10,"T2 2017","PROPRIÉTAIRES-OCCUPANTS, À L’UNITÉ","Île-du-Prince-Édouard",24.852367843510969,"Période d’amortissement moyenne selon la province","24.9","Île-du-Prince-Édouard",{"$f":"IFERROR(VLOOKUP(A745,Translation!$A:$C,3,FALSE),A745)","v":10},{"$f":"IFERROR(VLOOKUP(B745,Translation!$A:$C,3,FALSE),B745)","v":"T2 2017"},{"$f":"IFERROR(VLOOKUP(C745,Translation!$A:$C,3,FALSE),C745)","v":"PROPRIÉTAIRES-OCCUPANTS, À L’UNITÉ"},{"$f":"IFERROR(VLOOKUP(D745,Translation!$A:$C,3,FALSE),D745)","v":"Île-du-Prince-Édouard"},{"$f":"IFERROR(VLOOKUP(E745,Translation!$A:$C,3,FALSE),E745)","v":24.852367843510969},{"$f":"IFERROR(VLOOKUP(F745,Translation!$A:$C,3,FALSE),F745)","v":"Période d’amortissement moyenne selon la province"},{"$f":"IFERROR(VLOOKUP(G745,Translation!$A:$C,3,FALSE),G745)","v":"24.9"},{"$f":"IFERROR(VLOOKUP(H745,Translation!$A:$C,3,FALSE),H745)","v":"Île-du-Prince-Édouard"}]
[10,"T2 2017","PROPRIÉTAIRES-OCCUPANTS, À L’UNITÉ","Nouvelle-Écosse",24.836374055367049,"Période d’amortissement moyenne selon la province","24.8","Nouvelle-Écosse",{"$f":"IFERROR(VLOOKUP(A746,Translation!$A:$C,3,FALSE),A746)","v":10},{"$f":"IFERROR(VLOOKUP(B746,Translation!$A:$C,3,FALSE),B746)","v":"T2 2017"},{"$f":"IFERROR(VLOOKUP(C746,Translation!$A:$C,3,FALSE),C746)","v":"PROPRIÉTAIRES-OCCUPANTS, À L’UNITÉ"},{"$f":"IFERROR(VLOOKUP(D746,Translation!$A:$C,3,FALSE),D746)","v":"Nouvelle-Écosse"},{"$f":"IFERROR(VLOOKUP(E746,Translation!$A:$C,3,FALSE),E746)","v":24.836374055367049},{"$f":"IFERROR(VLOOKUP(F746,Translation!$A:$C,3,FALSE),F746)","v":"Période d’amortissement moyenne selon la province"},{"$f":"IFERROR(VLOOKUP(G746,Translation!$A:$C,3,FALSE),G746)","v":"24.8"},{"$f":"IFERROR(VLOOKUP(H746,Translation!$A:$C,3,FALSE),H746)","v":"Nouvelle-Écosse"}]
[10,"T2 2017","PROPRIÉTAIRES-OCCUPANTS, À L’UNITÉ","Nouveau-Brunswick",24.683413046638456,"Période d’amortissement moyenne selon la province","24.7","Nouveau-Brunswick",{"$f":"IFERROR(VLOOKUP(A747,Translation!$A:$C,3,FALSE),A747)","v":10},{"$f":"IFERROR(VLOOKUP(B747,Translation!$A:$C,3,FALSE),B747)","v":"T2 2017"},{"$f":"IFERROR(VLOOKUP(C747,Translation!$A:$C,3,FALSE),C747)","v":"PROPRIÉTAIRES-OCCUPANTS, À L’UNITÉ"},{"$f":"IFERROR(VLOOKUP(D747,Translation!$A:$C,3,FALSE),D747)","v":"Nouveau-Brunswick"},{"$f":"IFERROR(VLOOKUP(E747,Translation!$A:$C,3,FALSE),E747)","v":24.683413046638456},{"$f":"IFERROR(VLOOKUP(F747,Translation!$A:$C,3,FALSE),F747)","v":"Période d’amortissement moyenne selon la province"},{"$f":"IFERROR(VLOOKUP(G747,Translation!$A:$C,3,FALSE),G747)","v":"24.7"},{"$f":"IFERROR(VLOOKUP(H747,Translation!$A:$C,3,FALSE),H747)","v":"Nouveau-Brunswick"}]
[10,"T2 2017","PROPRIÉTAIRES-OCCUPANTS, À L’UNITÉ","Québec",24.895694590098238,"Période d’amortissement moyenne selon la province","24.9","Québec",{"$f":"IFERROR(VLOOKUP(A748,Translation!$A:$C,3,FALSE),A748)","v":10},{"$f":"IFERROR(VLOOKUP(B748,Translation!$A:$C,3,FALSE),B748)","v":"T2 2017"},{"$f":"IFERROR(VLOOKUP(C748,Translation!$A:$C,3,FALSE),C748)","v":"PROPRIÉTAIRES-OCCUPANTS, À L’UNITÉ"},{"$f":"IFERROR(VLOOKUP(D748,Translation!$A:$C,3,FALSE),D748)","v":"Québec"},{"$f":"IFERROR(VLOOKUP(E748,Translation!$A:$C,3,FALSE),E748)","v":24.895694590098238},{"$f":"IFERROR(VLOOKUP(F748,Translation!$A:$C,3,FALSE),F748)","v":"Période d’amortissement moyenne selon la province"},{"$f":"IFERROR(VLOOKUP(G748,Translation!$A:$C,3,FALSE),G748)","v":"24.9"},{"$f":"IFERROR(VLOOKUP(H748,Translation!$A:$C,3,FALSE),H748)","v":"Québec"}]
[10,"T2 2017","PROPRIÉTAIRES-OCCUPANTS, À L’UNITÉ","Ontario",24.902826260902959,"Période d’amortissement moyenne selon la province","24.9","Ontario",{"$f":"IFERROR(VLOOKUP(A749,Translation!$A:$C,3,FALSE),A749)","v":10},{"$f":"IFERROR(VLOOKUP(B749,Translation!$A:$C,3,FALSE),B749)","v":"T2 2017"},{"$f":"IFERROR(VLOOKUP(C749,Translation!$A:$C,3,FALSE),C749)","v":"PROPRIÉTAIRES-OCCUPANTS, À L’UNITÉ"},{"$f":"IFERROR(VLOOKUP(D749,Translation!$A:$C,3,FALSE),D749)","v":"Ontario"},{"$f":"IFERROR(VLOOKUP(E749,Translation!$A:$C,3,FALSE),E749)","v":24.902826260902959},{"$f":"IFERROR(VLOOKUP(F749,Translation!$A:$C,3,FALSE),F749)","v":"Période d’amortissement moyenne selon la province"},{"$f":"IFERROR(VLOOKUP(G749,Translation!$A:$C,3,FALSE),G749)","v":"24.9"},{"$f":"IFERROR(VLOOKUP(H749,Translation!$A:$C,3,FALSE),H749)","v":"Ontario"}]
[10,"T2 2017","PROPRIÉTAIRES-OCCUPANTS, À L’UNITÉ","Manitoba",24.826947772470746,"Période d’amortissement moyenne selon la province","24.8","Manitoba",{"$f":"IFERROR(VLOOKUP(A750,Translation!$A:$C,3,FALSE),A750)","v":10},{"$f":"IFERROR(VLOOKUP(B750,Translation!$A:$C,3,FALSE),B750)","v":"T2 2017"},{"$f":"IFERROR(VLOOKUP(C750,Translation!$A:$C,3,FALSE),C750)","v":"PROPRIÉTAIRES-OCCUPANTS, À L’UNITÉ"},{"$f":"IFERROR(VLOOKUP(D750,Translation!$A:$C,3,FALSE),D750)","v":"Manitoba"},{"$f":"IFERROR(VLOOKUP(E750,Translation!$A:$C,3,FALSE),E750)","v":24.826947772470746},{"$f":"IFERROR(VLOOKUP(F750,Translation!$A:$C,3,FALSE),F750)","v":"Période d’amortissement moyenne selon la province"},{"$f":"IFERROR(VLOOKUP(G750,Translation!$A:$C,3,FALSE),G750)","v":"24.8"},{"$f":"IFERROR(VLOOKUP(H750,Translation!$A:$C,3,FALSE),H750)","v":"Manitoba"}]
[10,"T2 2017","PROPRIÉTAIRES-OCCUPANTS, À L’UNITÉ","Saskatchewan",24.739460251962559,"Période d’amortissement moyenne selon la province","24.7","Saskatchewan",{"$f":"IFERROR(VLOOKUP(A751,Translation!$A:$C,3,FALSE),A751)","v":10},{"$f":"IFERROR(VLOOKUP(B751,Translation!$A:$C,3,FALSE),B751)","v":"T2 2017"},{"$f":"IFERROR(VLOOKUP(C751,Translation!$A:$C,3,FALSE),C751)","v":"PROPRIÉTAIRES-OCCUPANTS, À L’UNITÉ"},{"$f":"IFERROR(VLOOKUP(D751,Translation!$A:$C,3,FALSE),D751)","v":"Saskatchewan"},{"$f":"IFERROR(VLOOKUP(E751,Translation!$A:$C,3,FALSE),E751)","v":24.739460251962559},{"$f":"IFERROR(VLOOKUP(F751,Translation!$A:$C,3,FALSE),F751)","v":"Période d’amortissement moyenne selon la province"},{"$f":"IFERROR(VLOOKUP(G751,Translation!$A:$C,3,FALSE),G751)","v":"24.7"},{"$f":"IFERROR(VLOOKUP(H751,Translation!$A:$C,3,FALSE),H751)","v":"Saskatchewan"}]
[10,"T2 2017","PROPRIÉTAIRES-OCCUPANTS, À L’UNITÉ","Alberta",24.853357862698047,"Période d’amortissement moyenne selon la province","24.9","Alberta",{"$f":"IFERROR(VLOOKUP(A752,Translation!$A:$C,3,FALSE),A752)","v":10},{"$f":"IFERROR(VLOOKUP(B752,Translation!$A:$C,3,FALSE),B752)","v":"T2 2017"},{"$f":"IFERROR(VLOOKUP(C752,Translation!$A:$C,3,FALSE),C752)","v":"PROPRIÉTAIRES-OCCUPANTS, À L’UNITÉ"},{"$f":"IFERROR(VLOOKUP(D752,Translation!$A:$C,3,FALSE),D752)","v":"Alberta"},{"$f":"IFERROR(VLOOKUP(E752,Translation!$A:$C,3,FALSE),E752)","v":24.853357862698047},{"$f":"IFERROR(VLOOKUP(F752,Translation!$A:$C,3,FALSE),F752)","v":"Période d’amortissement moyenne selon la province"},{"$f":"IFERROR(VLOOKUP(G752,Translation!$A:$C,3,FALSE),G752)","v":"24.9"},{"$f":"IFERROR(VLOOKUP(H752,Translation!$A:$C,3,FALSE),H752)","v":"Alberta"}]
[10,"T2 2017","PROPRIÉTAIRES-OCCUPANTS, À L’UNITÉ","Colombie-Britannique",24.827222733170633,"Période d’amortissement moyenne selon la province","24.8","Colombie-Britannique",{"$f":"IFERROR(VLOOKUP(A753,Translation!$A:$C,3,FALSE),A753)","v":10},{"$f":"IFERROR(VLOOKUP(B753,Translation!$A:$C,3,FALSE),B753)","v":"T2 2017"},{"$f":"IFERROR(VLOOKUP(C753,Translation!$A:$C,3,FALSE),C753)","v":"PROPRIÉTAIRES-OCCUPANTS, À L’UNITÉ"},{"$f":"IFERROR(VLOOKUP(D753,Translation!$A:$C,3,FALSE),D753)","v":"Colombie-Britannique"},{"$f":"IFERROR(VLOOKUP(E753,Translation!$A:$C,3,FALSE),E753)","v":24.827222733170633},{"$f":"IFERROR(VLOOKUP(F753,Translation!$A:$C,3,FALSE),F753)","v":"Période d’amortissement moyenne selon la province"},{"$f":"IFERROR(VLOOKUP(G753,Translation!$A:$C,3,FALSE),G753)","v":"24.8"},{"$f":"IFERROR(VLOOKUP(H753,Translation!$A:$C,3,FALSE),H753)","v":"Colombie-Britannique"}]
[10,"T2 2017","PROPRIÉTAIRES-OCCUPANTS, À L’UNITÉ","Territoires",24.736830971178055,"Période d’amortissement moyenne selon la province","24.7","Territoires",{"$f":"IFERROR(VLOOKUP(A754,Translation!$A:$C,3,FALSE),A754)","v":10},{"$f":"IFERROR(VLOOKUP(B754,Translation!$A:$C,3,FALSE),B754)","v":"T2 2017"},{"$f":"IFERROR(VLOOKUP(C754,Translation!$A:$C,3,FALSE),C754)","v":"PROPRIÉTAIRES-OCCUPANTS, À L’UNITÉ"},{"$f":"IFERROR(VLOOKUP(D754,Translation!$A:$C,3,FALSE),D754)","v":"Territoires"},{"$f":"IFERROR(VLOOKUP(E754,Translation!$A:$C,3,FALSE),E754)","v":24.736830971178055},{"$f":"IFERROR(VLOOKUP(F754,Translation!$A:$C,3,FALSE),F754)","v":"Période d’amortissement moyenne selon la province"},{"$f":"IFERROR(VLOOKUP(G754,Translation!$A:$C,3,FALSE),G754)","v":"24.7"},{"$f":"IFERROR(VLOOKUP(H754,Translation!$A:$C,3,FALSE),H754)","v":"Territoires"}]
[10,"Q3 2016","PROPRIÉTAIRES-OCCUPANTS, À L’UNITÉ","Terre-Neuve-et-Labrador",24.689731107034255,"Période d’amortissement moyenne selon la province","24.7","Terre-Neuve-et-Labrador",{"$f":"IFERROR(VLOOKUP(A755,Translation!$A:$C,3,FALSE),A755)","v":10},{"$f":"IFERROR(VLOOKUP(B755,Translation!$A:$C,3,FALSE),B755)","v":"Q3 2016"},{"$f":"IFERROR(VLOOKUP(C755,Translation!$A:$C,3,FALSE),C755)","v":"PROPRIÉTAIRES-OCCUPANTS, À L’UNITÉ"},{"$f":"IFERROR(VLOOKUP(D755,Translation!$A:$C,3,FALSE),D755)","v":"Terre-Neuve-et-Labrador"},{"$f":"IFERROR(VLOOKUP(E755,Translation!$A:$C,3,FALSE),E755)","v":24.689731107034255},{"$f":"IFERROR(VLOOKUP(F755,Translation!$A:$C,3,FALSE),F755)","v":"Période d’amortissement moyenne selon la province"},{"$f":"IFERROR(VLOOKUP(G755,Translation!$A:$C,3,FALSE),G755)","v":"24.7"},{"$f":"IFERROR(VLOOKUP(H755,Translation!$A:$C,3,FALSE),H755)","v":"Terre-Neuve-et-Labrador"}]
[10,"Q3 2016","PROPRIÉTAIRES-OCCUPANTS, À L’UNITÉ","Île-du-Prince-Édouard",24.70273904872516,"Période d’amortissement moyenne selon la province","24.7","Île-du-Prince-Édouard",{"$f":"IFERROR(VLOOKUP(A756,Translation!$A:$C,3,FALSE),A756)","v":10},{"$f":"IFERROR(VLOOKUP(B756,Translation!$A:$C,3,FALSE),B756)","v":"Q3 2016"},{"$f":"IFERROR(VLOOKUP(C756,Translation!$A:$C,3,FALSE),C756)","v":"PROPRIÉTAIRES-OCCUPANTS, À L’UNITÉ"},{"$f":"IFERROR(VLOOKUP(D756,Translation!$A:$C,3,FALSE),D756)","v":"Île-du-Prince-Édouard"},{"$f":"IFERROR(VLOOKUP(E756,Translation!$A:$C,3,FALSE),E756)","v":24.70273904872516},{"$f":"IFERROR(VLOOKUP(F756,Translation!$A:$C,3,FALSE),F756)","v":"Période d’amortissement moyenne selon la province"},{"$f":"IFERROR(VLOOKUP(G756,Translation!$A:$C,3,FALSE),G756)","v":"24.7"},{"$f":"IFERROR(VLOOKUP(H756,Translation!$A:$C,3,FALSE),H756)","v":"Île-du-Prince-Édouard"}]
[10,"Q3 2016","PROPRIÉTAIRES-OCCUPANTS, À L’UNITÉ","Nouvelle-Écosse",24.519528346059278,"Période d’amortissement moyenne selon la province","24.5","Nouvelle-Écosse",{"$f":"IFERROR(VLOOKUP(A757,Translation!$A:$C,3,FALSE),A757)","v":10},{"$f":"IFERROR(VLOOKUP(B757,Translation!$A:$C,3,FALSE),B757)","v":"Q3 2016"},{"$f":"IFERROR(VLOOKUP(C757,Translation!$A:$C,3,FALSE),C757)","v":"PROPRIÉTAIRES-OCCUPANTS, À L’UNITÉ"},{"$f":"IFERROR(VLOOKUP(D757,Translation!$A:$C,3,FALSE),D757)","v":"Nouvelle-Écosse"},{"$f":"IFERROR(VLOOKUP(E757,Translation!$A:$C,3,FALSE),E757)","v":24.519528346059278},{"$f":"IFERROR(VLOOKUP(F757,Translation!$A:$C,3,FALSE),F757)","v":"Période d’amortissement moyenne selon la province"},{"$f":"IFERROR(VLOOKUP(G757,Translation!$A:$C,3,FALSE),G757)","v":"24.5"},{"$f":"IFERROR(VLOOKUP(H757,Translation!$A:$C,3,FALSE),H757)","v":"Nouvelle-Écosse"}]
[10,"Q3 2016","PROPRIÉTAIRES-OCCUPANTS, À L’UNITÉ","Nouveau-Brunswick",24.487790219658287,"Période d’amortissement moyenne selon la province","24.5","Nouveau-Brunswick",{"$f":"IFERROR(VLOOKUP(A758,Translation!$A:$C,3,FALSE),A758)","v":10},{"$f":"IFERROR(VLOOKUP(B758,Translation!$A:$C,3,FALSE),B758)","v":"Q3 2016"},{"$f":"IFERROR(VLOOKUP(C758,Translation!$A:$C,3,FALSE),C758)","v":"PROPRIÉTAIRES-OCCUPANTS, À L’UNITÉ"},{"$f":"IFERROR(VLOOKUP(D758,Translation!$A:$C,3,FALSE),D758)","v":"Nouveau-Brunswick"},{"$f":"IFERROR(VLOOKUP(E758,Translation!$A:$C,3,FALSE),E758)","v":24.487790219658287},{"$f":"IFERROR(VLOOKUP(F758,Translation!$A:$C,3,FALSE),F758)","v":"Période d’amortissement moyenne selon la province"},{"$f":"IFERROR(VLOOKUP(G758,Translation!$A:$C,3,FALSE),G758)","v":"24.5"},{"$f":"IFERROR(VLOOKUP(H758,Translation!$A:$C,3,FALSE),H758)","v":"Nouveau-Brunswick"}]
[10,"Q3 2016","PROPRIÉTAIRES-OCCUPANTS, À L’UNITÉ","Québec",24.85862548311767,"Période d’amortissement moyenne selon la province","24.9","Québec",{"$f":"IFERROR(VLOOKUP(A759,Translation!$A:$C,3,FALSE),A759)","v":10},{"$f":"IFERROR(VLOOKUP(B759,Translation!$A:$C,3,FALSE),B759)","v":"Q3 2016"},{"$f":"IFERROR(VLOOKUP(C759,Translation!$A:$C,3,FALSE),C759)","v":"PROPRIÉTAIRES-OCCUPANTS, À L’UNITÉ"},{"$f":"IFERROR(VLOOKUP(D759,Translation!$A:$C,3,FALSE),D759)","v":"Québec"},{"$f":"IFERROR(VLOOKUP(E759,Translation!$A:$C,3,FALSE),E759)","v":24.85862548311767},{"$f":"IFERROR(VLOOKUP(F759,Translation!$A:$C,3,FALSE),F759)","v":"Période d’amortissement moyenne selon la province"},{"$f":"IFERROR(VLOOKUP(G759,Translation!$A:$C,3,FALSE),G759)","v":"24.9"},{"$f":"IFERROR(VLOOKUP(H759,Translation!$A:$C,3,FALSE),H759)","v":"Québec"}]
[10,"Q3 2016","PROPRIÉTAIRES-OCCUPANTS, À L’UNITÉ","Ontario",24.882102317092674,"Période d’amortissement moyenne selon la province","24.9","Ontario",{"$f":"IFERROR(VLOOKUP(A760,Translation!$A:$C,3,FALSE),A760)","v":10},{"$f":"IFERROR(VLOOKUP(B760,Translation!$A:$C,3,FALSE),B760)","v":"Q3 2016"},{"$f":"IFERROR(VLOOKUP(C760,Translation!$A:$C,3,FALSE),C760)","v":"PROPRIÉTAIRES-OCCUPANTS, À L’UNITÉ"},{"$f":"IFERROR(VLOOKUP(D760,Translation!$A:$C,3,FALSE),D760)","v":"Ontario"},{"$f":"IFERROR(VLOOKUP(E760,Translation!$A:$C,3,FALSE),E760)","v":24.882102317092674},{"$f":"IFERROR(VLOOKUP(F760,Translation!$A:$C,3,FALSE),F760)","v":"Période d’amortissement moyenne selon la province"},{"$f":"IFERROR(VLOOKUP(G760,Translation!$A:$C,3,FALSE),G760)","v":"24.9"},{"$f":"IFERROR(VLOOKUP(H760,Translation!$A:$C,3,FALSE),H760)","v":"Ontario"}]
[10,"Q3 2016","PROPRIÉTAIRES-OCCUPANTS, À L’UNITÉ","Manitoba",24.814733699536376,"Période d’amortissement moyenne selon la province","24.8","Manitoba",{"$f":"IFERROR(VLOOKUP(A761,Translation!$A:$C,3,FALSE),A761)","v":10},{"$f":"IFERROR(VLOOKUP(B761,Translation!$A:$C,3,FALSE),B761)","v":"Q3 2016"},{"$f":"IFERROR(VLOOKUP(C761,Translation!$A:$C,3,FALSE),C761)","v":"PROPRIÉTAIRES-OCCUPANTS, À L’UNITÉ"},{"$f":"IFERROR(VLOOKUP(D761,Translation!$A:$C,3,FALSE),D761)","v":"Manitoba"},{"$f":"IFERROR(VLOOKUP(E761,Translation!$A:$C,3,FALSE),E761)","v":24.814733699536376},{"$f":"IFERROR(VLOOKUP(F761,Translation!$A:$C,3,FALSE),F761)","v":"Période d’amortissement moyenne selon la province"},{"$f":"IFERROR(VLOOKUP(G761,Translation!$A:$C,3,FALSE),G761)","v":"24.8"},{"$f":"IFERROR(VLOOKUP(H761,Translation!$A:$C,3,FALSE),H761)","v":"Manitoba"}]
[10,"Q3 2016","PROPRIÉTAIRES-OCCUPANTS, À L’UNITÉ","Saskatchewan",24.783557226400418,"Période d’amortissement moyenne selon la province","24.8","Saskatchewan",{"$f":"IFERROR(VLOOKUP(A762,Translation!$A:$C,3,FALSE),A762)","v":10},{"$f":"IFERROR(VLOOKUP(B762,Translation!$A:$C,3,FALSE),B762)","v":"Q3 2016"},{"$f":"IFERROR(VLOOKUP(C762,Translation!$A:$C,3,FALSE),C762)","v":"PROPRIÉTAIRES-OCCUPANTS, À L’UNITÉ"},{"$f":"IFERROR(VLOOKUP(D762,Translation!$A:$C,3,FALSE),D762)","v":"Saskatchewan"},{"$f":"IFERROR(VLOOKUP(E762,Translation!$A:$C,3,FALSE),E762)","v":24.783557226400418},{"$f":"IFERROR(VLOOKUP(F762,Translation!$A:$C,3,FALSE),F762)","v":"Période d’amortissement moyenne selon la province"},{"$f":"IFERROR(VLOOKUP(G762,Translation!$A:$C,3,FALSE),G762)","v":"24.8"},{"$f":"IFERROR(VLOOKUP(H762,Translation!$A:$C,3,FALSE),H762)","v":"Saskatchewan"}]
[10,"Q3 2016","PROPRIÉTAIRES-OCCUPANTS, À L’UNITÉ","Alberta",24.85264353880514,"Période d’amortissement moyenne selon la province","24.9","Alberta",{"$f":"IFERROR(VLOOKUP(A763,Translation!$A:$C,3,FALSE),A763)","v":10},{"$f":"IFERROR(VLOOKUP(B763,Translation!$A:$C,3,FALSE),B763)","v":"Q3 2016"},{"$f":"IFERROR(VLOOKUP(C763,Translation!$A:$C,3,FALSE),C763)","v":"PROPRIÉTAIRES-OCCUPANTS, À L’UNITÉ"},{"$f":"IFERROR(VLOOKUP(D763,Translation!$A:$C,3,FALSE),D763)","v":"Alberta"},{"$f":"IFERROR(VLOOKUP(E763,Translation!$A:$C,3,FALSE),E763)","v":24.85264353880514},{"$f":"IFERROR(VLOOKUP(F763,Translation!$A:$C,3,FALSE),F763)","v":"Période d’amortissement moyenne selon la province"},{"$f":"IFERROR(VLOOKUP(G763,Translation!$A:$C,3,FALSE),G763)","v":"24.9"},{"$f":"IFERROR(VLOOKUP(H763,Translation!$A:$C,3,FALSE),H763)","v":"Alberta"}]
[10,"Q3 2016","PROPRIÉTAIRES-OCCUPANTS, À L’UNITÉ","Colombie-Britannique",24.813488150492049,"Période d’amortissement moyenne selon la province","24.8","Colombie-Britannique",{"$f":"IFERROR(VLOOKUP(A764,Translation!$A:$C,3,FALSE),A764)","v":10},{"$f":"IFERROR(VLOOKUP(B764,Translation!$A:$C,3,FALSE),B764)","v":"Q3 2016"},{"$f":"IFERROR(VLOOKUP(C764,Translation!$A:$C,3,FALSE),C764)","v":"PROPRIÉTAIRES-OCCUPANTS, À L’UNITÉ"},{"$f":"IFERROR(VLOOKUP(D764,Translation!$A:$C,3,FALSE),D764)","v":"Colombie-Britannique"},{"$f":"IFERROR(VLOOKUP(E764,Translation!$A:$C,3,FALSE),E764)","v":24.813488150492049},{"$f":"IFERROR(VLOOKUP(F764,Translation!$A:$C,3,FALSE),F764)","v":"Période d’amortissement moyenne selon la province"},{"$f":"IFERROR(VLOOKUP(G764,Translation!$A:$C,3,FALSE),G764)","v":"24.8"},{"$f":"IFERROR(VLOOKUP(H764,Translation!$A:$C,3,FALSE),H764)","v":"Colombie-Britannique"}]
[10,"Q3 2016","PROPRIÉTAIRES-OCCUPANTS, À L’UNITÉ","Territoires",24.568785974743871,"Période d’amortissement moyenne selon la province","24.6","Territoires",{"$f":"IFERROR(VLOOKUP(A765,Translation!$A:$C,3,FALSE),A765)","v":10},{"$f":"IFERROR(VLOOKUP(B765,Translation!$A:$C,3,FALSE),B765)","v":"Q3 2016"},{"$f":"IFERROR(VLOOKUP(C765,Translation!$A:$C,3,FALSE),C765)","v":"PROPRIÉTAIRES-OCCUPANTS, À L’UNITÉ"},{"$f":"IFERROR(VLOOKUP(D765,Translation!$A:$C,3,FALSE),D765)","v":"Territoires"},{"$f":"IFERROR(VLOOKUP(E765,Translation!$A:$C,3,FALSE),E765)","v":24.568785974743871},{"$f":"IFERROR(VLOOKUP(F765,Translation!$A:$C,3,FALSE),F765)","v":"Période d’amortissement moyenne selon la province"},{"$f":"IFERROR(VLOOKUP(G765,Translation!$A:$C,3,FALSE),G765)","v":"24.6"},{"$f":"IFERROR(VLOOKUP(H765,Translation!$A:$C,3,FALSE),H765)","v":"Territoires"}]
[10,"T3 2017","PROPRIÉTAIRES-OCCUPANTS, À L’UNITÉ","Terre-Neuve-et-Labrador",24.804782558145504,"Période d’amortissement moyenne selon la province","24.8","Terre-Neuve-et-Labrador",{"$f":"IFERROR(VLOOKUP(A766,Translation!$A:$C,3,FALSE),A766)","v":10},{"$f":"IFERROR(VLOOKUP(B766,Translation!$A:$C,3,FALSE),B766)","v":"T3 2017"},{"$f":"IFERROR(VLOOKUP(C766,Translation!$A:$C,3,FALSE),C766)","v":"PROPRIÉTAIRES-OCCUPANTS, À L’UNITÉ"},{"$f":"IFERROR(VLOOKUP(D766,Translation!$A:$C,3,FALSE),D766)","v":"Terre-Neuve-et-Labrador"},{"$f":"IFERROR(VLOOKUP(E766,Translation!$A:$C,3,FALSE),E766)","v":24.804782558145504},{"$f":"IFERROR(VLOOKUP(F766,Translation!$A:$C,3,FALSE),F766)","v":"Période d’amortissement moyenne selon la province"},{"$f":"IFERROR(VLOOKUP(G766,Translation!$A:$C,3,FALSE),G766)","v":"24.8"},{"$f":"IFERROR(VLOOKUP(H766,Translation!$A:$C,3,FALSE),H766)","v":"Terre-Neuve-et-Labrador"}]
[10,"T3 2017","PROPRIÉTAIRES-OCCUPANTS, À L’UNITÉ","Île-du-Prince-Édouard",24.743762405087914,"Période d’amortissement moyenne selon la province","24.7","Île-du-Prince-Édouard",{"$f":"IFERROR(VLOOKUP(A767,Translation!$A:$C,3,FALSE),A767)","v":10},{"$f":"IFERROR(VLOOKUP(B767,Translation!$A:$C,3,FALSE),B767)","v":"T3 2017"},{"$f":"IFERROR(VLOOKUP(C767,Translation!$A:$C,3,FALSE),C767)","v":"PROPRIÉTAIRES-OCCUPANTS, À L’UNITÉ"},{"$f":"IFERROR(VLOOKUP(D767,Translation!$A:$C,3,FALSE),D767)","v":"Île-du-Prince-Édouard"},{"$f":"IFERROR(VLOOKUP(E767,Translation!$A:$C,3,FALSE),E767)","v":24.743762405087914},{"$f":"IFERROR(VLOOKUP(F767,Translation!$A:$C,3,FALSE),F767)","v":"Période d’amortissement moyenne selon la province"},{"$f":"IFERROR(VLOOKUP(G767,Translation!$A:$C,3,FALSE),G767)","v":"24.7"},{"$f":"IFERROR(VLOOKUP(H767,Translation!$A:$C,3,FALSE),H767)","v":"Île-du-Prince-Édouard"}]
[10,"T3 2017","PROPRIÉTAIRES-OCCUPANTS, À L’UNITÉ","Nouvelle-Écosse",24.72726066353064,"Période d’amortissement moyenne selon la province","24.7","Nouvelle-Écosse",{"$f":"IFERROR(VLOOKUP(A768,Translation!$A:$C,3,FALSE),A768)","v":10},{"$f":"IFERROR(VLOOKUP(B768,Translation!$A:$C,3,FALSE),B768)","v":"T3 2017"},{"$f":"IFERROR(VLOOKUP(C768,Translation!$A:$C,3,FALSE),C768)","v":"PROPRIÉTAIRES-OCCUPANTS, À L’UNITÉ"},{"$f":"IFERROR(VLOOKUP(D768,Translation!$A:$C,3,FALSE),D768)","v":"Nouvelle-Écosse"},{"$f":"IFERROR(VLOOKUP(E768,Translation!$A:$C,3,FALSE),E768)","v":24.72726066353064},{"$f":"IFERROR(VLOOKUP(F768,Translation!$A:$C,3,FALSE),F768)","v":"Période d’amortissement moyenne selon la province"},{"$f":"IFERROR(VLOOKUP(G768,Translation!$A:$C,3,FALSE),G768)","v":"24.7"},{"$f":"IFERROR(VLOOKUP(H768,Translation!$A:$C,3,FALSE),H768)","v":"Nouvelle-Écosse"}]
[10,"T3 2017","PROPRIÉTAIRES-OCCUPANTS, À L’UNITÉ","Nouveau-Brunswick",24.788993780857567,"Période d’amortissement moyenne selon la province","24.8","Nouveau-Brunswick",{"$f":"IFERROR(VLOOKUP(A769,Translation!$A:$C,3,FALSE),A769)","v":10},{"$f":"IFERROR(VLOOKUP(B769,Translation!$A:$C,3,FALSE),B769)","v":"T3 2017"},{"$f":"IFERROR(VLOOKUP(C769,Translation!$A:$C,3,FALSE),C769)","v":"PROPRIÉTAIRES-OCCUPANTS, À L’UNITÉ"},{"$f":"IFERROR(VLOOKUP(D769,Translation!$A:$C,3,FALSE),D769)","v":"Nouveau-Brunswick"},{"$f":"IFERROR(VLOOKUP(E769,Translation!$A:$C,3,FALSE),E769)","v":24.788993780857567},{"$f":"IFERROR(VLOOKUP(F769,Translation!$A:$C,3,FALSE),F769)","v":"Période d’amortissement moyenne selon la province"},{"$f":"IFERROR(VLOOKUP(G769,Translation!$A:$C,3,FALSE),G769)","v":"24.8"},{"$f":"IFERROR(VLOOKUP(H769,Translation!$A:$C,3,FALSE),H769)","v":"Nouveau-Brunswick"}]
[10,"T3 2017","PROPRIÉTAIRES-OCCUPANTS, À L’UNITÉ","Québec",24.868928639178598,"Période d’amortissement moyenne selon la province","24.9","Québec",{"$f":"IFERROR(VLOOKUP(A770,Translation!$A:$C,3,FALSE),A770)","v":10},{"$f":"IFERROR(VLOOKUP(B770,Translation!$A:$C,3,FALSE),B770)","v":"T3 2017"},{"$f":"IFERROR(VLOOKUP(C770,Translation!$A:$C,3,FALSE),C770)","v":"PROPRIÉTAIRES-OCCUPANTS, À L’UNITÉ"},{"$f":"IFERROR(VLOOKUP(D770,Translation!$A:$C,3,FALSE),D770)","v":"Québec"},{"$f":"IFERROR(VLOOKUP(E770,Translation!$A:$C,3,FALSE),E770)","v":24.868928639178598},{"$f":"IFERROR(VLOOKUP(F770,Translation!$A:$C,3,FALSE),F770)","v":"Période d’amortissement moyenne selon la province"},{"$f":"IFERROR(VLOOKUP(G770,Translation!$A:$C,3,FALSE),G770)","v":"24.9"},{"$f":"IFERROR(VLOOKUP(H770,Translation!$A:$C,3,FALSE),H770)","v":"Québec"}]
[10,"T3 2017","PROPRIÉTAIRES-OCCUPANTS, À L’UNITÉ","Ontario",24.893251904290796,"Période d’amortissement moyenne selon la province","24.9","Ontario",{"$f":"IFERROR(VLOOKUP(A771,Translation!$A:$C,3,FALSE),A771)","v":10},{"$f":"IFERROR(VLOOKUP(B771,Translation!$A:$C,3,FALSE),B771)","v":"T3 2017"},{"$f":"IFERROR(VLOOKUP(C771,Translation!$A:$C,3,FALSE),C771)","v":"PROPRIÉTAIRES-OCCUPANTS, À L’UNITÉ"},{"$f":"IFERROR(VLOOKUP(D771,Translation!$A:$C,3,FALSE),D771)","v":"Ontario"},{"$f":"IFERROR(VLOOKUP(E771,Translation!$A:$C,3,FALSE),E771)","v":24.893251904290796},{"$f":"IFERROR(VLOOKUP(F771,Translation!$A:$C,3,FALSE),F771)","v":"Période d’amortissement moyenne selon la province"},{"$f":"IFERROR(VLOOKUP(G771,Translation!$A:$C,3,FALSE),G771)","v":"24.9"},{"$f":"IFERROR(VLOOKUP(H771,Translation!$A:$C,3,FALSE),H771)","v":"Ontario"}]
[10,"T3 2017","PROPRIÉTAIRES-OCCUPANTS, À L’UNITÉ","Manitoba",24.818174839099125,"Période d’amortissement moyenne selon la province","24.8","Manitoba",{"$f":"IFERROR(VLOOKUP(A772,Translation!$A:$C,3,FALSE),A772)","v":10},{"$f":"IFERROR(VLOOKUP(B772,Translation!$A:$C,3,FALSE),B772)","v":"T3 2017"},{"$f":"IFERROR(VLOOKUP(C772,Translation!$A:$C,3,FALSE),C772)","v":"PROPRIÉTAIRES-OCCUPANTS, À L’UNITÉ"},{"$f":"IFERROR(VLOOKUP(D772,Translation!$A:$C,3,FALSE),D772)","v":"Manitoba"},{"$f":"IFERROR(VLOOKUP(E772,Translation!$A:$C,3,FALSE),E772)","v":24.818174839099125},{"$f":"IFERROR(VLOOKUP(F772,Translation!$A:$C,3,FALSE),F772)","v":"Période d’amortissement moyenne selon la province"},{"$f":"IFERROR(VLOOKUP(G772,Translation!$A:$C,3,FALSE),G772)","v":"24.8"},{"$f":"IFERROR(VLOOKUP(H772,Translation!$A:$C,3,FALSE),H772)","v":"Manitoba"}]
[10,"T3 2017","PROPRIÉTAIRES-OCCUPANTS, À L’UNITÉ","Saskatchewan",24.776576584274657,"Période d’amortissement moyenne selon la province","24.8","Saskatchewan",{"$f":"IFERROR(VLOOKUP(A773,Translation!$A:$C,3,FALSE),A773)","v":10},{"$f":"IFERROR(VLOOKUP(B773,Translation!$A:$C,3,FALSE),B773)","v":"T3 2017"},{"$f":"IFERROR(VLOOKUP(C773,Translation!$A:$C,3,FALSE),C773)","v":"PROPRIÉTAIRES-OCCUPANTS, À L’UNITÉ"},{"$f":"IFERROR(VLOOKUP(D773,Translation!$A:$C,3,FALSE),D773)","v":"Saskatchewan"},{"$f":"IFERROR(VLOOKUP(E773,Translation!$A:$C,3,FALSE),E773)","v":24.776576584274657},{"$f":"IFERROR(VLOOKUP(F773,Translation!$A:$C,3,FALSE),F773)","v":"Période d’amortissement moyenne selon la province"},{"$f":"IFERROR(VLOOKUP(G773,Translation!$A:$C,3,FALSE),G773)","v":"24.8"},{"$f":"IFERROR(VLOOKUP(H773,Translation!$A:$C,3,FALSE),H773)","v":"Saskatchewan"}]
[10,"T3 2017","PROPRIÉTAIRES-OCCUPANTS, À L’UNITÉ","Alberta",24.803130135517495,"Période d’amortissement moyenne selon la province","24.8","Alberta",{"$f":"IFERROR(VLOOKUP(A774,Translation!$A:$C,3,FALSE),A774)","v":10},{"$f":"IFERROR(VLOOKUP(B774,Translation!$A:$C,3,FALSE),B774)","v":"T3 2017"},{"$f":"IFERROR(VLOOKUP(C774,Translation!$A:$C,3,FALSE),C774)","v":"PROPRIÉTAIRES-OCCUPANTS, À L’UNITÉ"},{"$f":"IFERROR(VLOOKUP(D774,Translation!$A:$C,3,FALSE),D774)","v":"Alberta"},{"$f":"IFERROR(VLOOKUP(E774,Translation!$A:$C,3,FALSE),E774)","v":24.803130135517495},{"$f":"IFERROR(VLOOKUP(F774,Translation!$A:$C,3,FALSE),F774)","v":"Période d’amortissement moyenne selon la province"},{"$f":"IFERROR(VLOOKUP(G774,Translation!$A:$C,3,FALSE),G774)","v":"24.8"},{"$f":"IFERROR(VLOOKUP(H774,Translation!$A:$C,3,FALSE),H774)","v":"Alberta"}]
[10,"T3 2017","PROPRIÉTAIRES-OCCUPANTS, À L’UNITÉ","Colombie-Britannique",24.851341404132494,"Période d’amortissement moyenne selon la province","24.9","Colombie-Britannique",{"$f":"IFERROR(VLOOKUP(A775,Translation!$A:$C,3,FALSE),A775)","v":10},{"$f":"IFERROR(VLOOKUP(B775,Translation!$A:$C,3,FALSE),B775)","v":"T3 2017"},{"$f":"IFERROR(VLOOKUP(C775,Translation!$A:$C,3,FALSE),C775)","v":"PROPRIÉTAIRES-OCCUPANTS, À L’UNITÉ"},{"$f":"IFERROR(VLOOKUP(D775,Translation!$A:$C,3,FALSE),D775)","v":"Colombie-Britannique"},{"$f":"IFERROR(VLOOKUP(E775,Translation!$A:$C,3,FALSE),E775)","v":24.851341404132494},{"$f":"IFERROR(VLOOKUP(F775,Translation!$A:$C,3,FALSE),F775)","v":"Période d’amortissement moyenne selon la province"},{"$f":"IFERROR(VLOOKUP(G775,Translation!$A:$C,3,FALSE),G775)","v":"24.9"},{"$f":"IFERROR(VLOOKUP(H775,Translation!$A:$C,3,FALSE),H775)","v":"Colombie-Britannique"}]
[10,"T3 2017","PROPRIÉTAIRES-OCCUPANTS, À L’UNITÉ","Territoires",24.624271225721152,"Période d’amortissement moyenne selon la province","24.6","Territoires",{"$f":"IFERROR(VLOOKUP(A776,Translation!$A:$C,3,FALSE),A776)","v":10},{"$f":"IFERROR(VLOOKUP(B776,Translation!$A:$C,3,FALSE),B776)","v":"T3 2017"},{"$f":"IFERROR(VLOOKUP(C776,Translation!$A:$C,3,FALSE),C776)","v":"PROPRIÉTAIRES-OCCUPANTS, À L’UNITÉ"},{"$f":"IFERROR(VLOOKUP(D776,Translation!$A:$C,3,FALSE),D776)","v":"Territoires"},{"$f":"IFERROR(VLOOKUP(E776,Translation!$A:$C,3,FALSE),E776)","v":24.624271225721152},{"$f":"IFERROR(VLOOKUP(F776,Translation!$A:$C,3,FALSE),F776)","v":"Période d’amortissement moyenne selon la province"},{"$f":"IFERROR(VLOOKUP(G776,Translation!$A:$C,3,FALSE),G776)","v":"24.6"},{"$f":"IFERROR(VLOOKUP(H776,Translation!$A:$C,3,FALSE),H776)","v":"Territoires"}]
[10,"Q4 2016","PROPRIÉTAIRES-OCCUPANTS, À L’UNITÉ","Terre-Neuve-et-Labrador",24.663778984504685,"Période d’amortissement moyenne selon la province","24.7","Terre-Neuve-et-Labrador",{"$f":"IFERROR(VLOOKUP(A777,Translation!$A:$C,3,FALSE),A777)","v":10},{"$f":"IFERROR(VLOOKUP(B777,Translation!$A:$C,3,FALSE),B777)","v":"Q4 2016"},{"$f":"IFERROR(VLOOKUP(C777,Translation!$A:$C,3,FALSE),C777)","v":"PROPRIÉTAIRES-OCCUPANTS, À L’UNITÉ"},{"$f":"IFERROR(VLOOKUP(D777,Translation!$A:$C,3,FALSE),D777)","v":"Terre-Neuve-et-Labrador"},{"$f":"IFERROR(VLOOKUP(E777,Translation!$A:$C,3,FALSE),E777)","v":24.663778984504685},{"$f":"IFERROR(VLOOKUP(F777,Translation!$A:$C,3,FALSE),F777)","v":"Période d’amortissement moyenne selon la province"},{"$f":"IFERROR(VLOOKUP(G777,Translation!$A:$C,3,FALSE),G777)","v":"24.7"},{"$f":"IFERROR(VLOOKUP(H777,Translation!$A:$C,3,FALSE),H777)","v":"Terre-Neuve-et-Labrador"}]
[10,"Q4 2016","PROPRIÉTAIRES-OCCUPANTS, À L’UNITÉ","Île-du-Prince-Édouard",24.424883084308391,"Période d’amortissement moyenne selon la province","24.4","Île-du-Prince-Édouard",{"$f":"IFERROR(VLOOKUP(A778,Translation!$A:$C,3,FALSE),A778)","v":10},{"$f":"IFERROR(VLOOKUP(B778,Translation!$A:$C,3,FALSE),B778)","v":"Q4 2016"},{"$f":"IFERROR(VLOOKUP(C778,Translation!$A:$C,3,FALSE),C778)","v":"PROPRIÉTAIRES-OCCUPANTS, À L’UNITÉ"},{"$f":"IFERROR(VLOOKUP(D778,Translation!$A:$C,3,FALSE),D778)","v":"Île-du-Prince-Édouard"},{"$f":"IFERROR(VLOOKUP(E778,Translation!$A:$C,3,FALSE),E778)","v":24.424883084308391},{"$f":"IFERROR(VLOOKUP(F778,Translation!$A:$C,3,FALSE),F778)","v":"Période d’amortissement moyenne selon la province"},{"$f":"IFERROR(VLOOKUP(G778,Translation!$A:$C,3,FALSE),G778)","v":"24.4"},{"$f":"IFERROR(VLOOKUP(H778,Translation!$A:$C,3,FALSE),H778)","v":"Île-du-Prince-Édouard"}]
[10,"Q4 2016","PROPRIÉTAIRES-OCCUPANTS, À L’UNITÉ","Nouvelle-Écosse",24.497594381998031,"Période d’amortissement moyenne selon la province","24.5","Nouvelle-Écosse",{"$f":"IFERROR(VLOOKUP(A779,Translation!$A:$C,3,FALSE),A779)","v":10},{"$f":"IFERROR(VLOOKUP(B779,Translation!$A:$C,3,FALSE),B779)","v":"Q4 2016"},{"$f":"IFERROR(VLOOKUP(C779,Translation!$A:$C,3,FALSE),C779)","v":"PROPRIÉTAIRES-OCCUPANTS, À L’UNITÉ"},{"$f":"IFERROR(VLOOKUP(D779,Translation!$A:$C,3,FALSE),D779)","v":"Nouvelle-Écosse"},{"$f":"IFERROR(VLOOKUP(E779,Translation!$A:$C,3,FALSE),E779)","v":24.497594381998031},{"$f":"IFERROR(VLOOKUP(F779,Translation!$A:$C,3,FALSE),F779)","v":"Période d’amortissement moyenne selon la province"},{"$f":"IFERROR(VLOOKUP(G779,Translation!$A:$C,3,FALSE),G779)","v":"24.5"},{"$f":"IFERROR(VLOOKUP(H779,Translation!$A:$C,3,FALSE),H779)","v":"Nouvelle-Écosse"}]
[10,"Q4 2016","PROPRIÉTAIRES-OCCUPANTS, À L’UNITÉ","Nouveau-Brunswick",24.489788048703431,"Période d’amortissement moyenne selon la province","24.5","Nouveau-Brunswick",{"$f":"IFERROR(VLOOKUP(A780,Translation!$A:$C,3,FALSE),A780)","v":10},{"$f":"IFERROR(VLOOKUP(B780,Translation!$A:$C,3,FALSE),B780)","v":"Q4 2016"},{"$f":"IFERROR(VLOOKUP(C780,Translation!$A:$C,3,FALSE),C780)","v":"PROPRIÉTAIRES-OCCUPANTS, À L’UNITÉ"},{"$f":"IFERROR(VLOOKUP(D780,Translation!$A:$C,3,FALSE),D780)","v":"Nouveau-Brunswick"},{"$f":"IFERROR(VLOOKUP(E780,Translation!$A:$C,3,FALSE),E780)","v":24.489788048703431},{"$f":"IFERROR(VLOOKUP(F780,Translation!$A:$C,3,FALSE),F780)","v":"Période d’amortissement moyenne selon la province"},{"$f":"IFERROR(VLOOKUP(G780,Translation!$A:$C,3,FALSE),G780)","v":"24.5"},{"$f":"IFERROR(VLOOKUP(H780,Translation!$A:$C,3,FALSE),H780)","v":"Nouveau-Brunswick"}]
[10,"Q4 2016","PROPRIÉTAIRES-OCCUPANTS, À L’UNITÉ","Québec",24.84408030730528,"Période d’amortissement moyenne selon la province","24.8","Québec",{"$f":"IFERROR(VLOOKUP(A781,Translation!$A:$C,3,FALSE),A781)","v":10},{"$f":"IFERROR(VLOOKUP(B781,Translation!$A:$C,3,FALSE),B781)","v":"Q4 2016"},{"$f":"IFERROR(VLOOKUP(C781,Translation!$A:$C,3,FALSE),C781)","v":"PROPRIÉTAIRES-OCCUPANTS, À L’UNITÉ"},{"$f":"IFERROR(VLOOKUP(D781,Translation!$A:$C,3,FALSE),D781)","v":"Québec"},{"$f":"IFERROR(VLOOKUP(E781,Translation!$A:$C,3,FALSE),E781)","v":24.84408030730528},{"$f":"IFERROR(VLOOKUP(F781,Translation!$A:$C,3,FALSE),F781)","v":"Période d’amortissement moyenne selon la province"},{"$f":"IFERROR(VLOOKUP(G781,Translation!$A:$C,3,FALSE),G781)","v":"24.8"},{"$f":"IFERROR(VLOOKUP(H781,Translation!$A:$C,3,FALSE),H781)","v":"Québec"}]
[10,"Q4 2016","PROPRIÉTAIRES-OCCUPANTS, À L’UNITÉ","Ontario",24.909641413451169,"Période d’amortissement moyenne selon la province","24.9","Ontario",{"$f":"IFERROR(VLOOKUP(A782,Translation!$A:$C,3,FALSE),A782)","v":10},{"$f":"IFERROR(VLOOKUP(B782,Translation!$A:$C,3,FALSE),B782)","v":"Q4 2016"},{"$f":"IFERROR(VLOOKUP(C782,Translation!$A:$C,3,FALSE),C782)","v":"PROPRIÉTAIRES-OCCUPANTS, À L’UNITÉ"},{"$f":"IFERROR(VLOOKUP(D782,Translation!$A:$C,3,FALSE),D782)","v":"Ontario"},{"$f":"IFERROR(VLOOKUP(E782,Translation!$A:$C,3,FALSE),E782)","v":24.909641413451169},{"$f":"IFERROR(VLOOKUP(F782,Translation!$A:$C,3,FALSE),F782)","v":"Période d’amortissement moyenne selon la province"},{"$f":"IFERROR(VLOOKUP(G782,Translation!$A:$C,3,FALSE),G782)","v":"24.9"},{"$f":"IFERROR(VLOOKUP(H782,Translation!$A:$C,3,FALSE),H782)","v":"Ontario"}]
[10,"Q4 2016","PROPRIÉTAIRES-OCCUPANTS, À L’UNITÉ","Manitoba",24.765102895573975,"Période d’amortissement moyenne selon la province","24.8","Manitoba",{"$f":"IFERROR(VLOOKUP(A783,Translation!$A:$C,3,FALSE),A783)","v":10},{"$f":"IFERROR(VLOOKUP(B783,Translation!$A:$C,3,FALSE),B783)","v":"Q4 2016"},{"$f":"IFERROR(VLOOKUP(C783,Translation!$A:$C,3,FALSE),C783)","v":"PROPRIÉTAIRES-OCCUPANTS, À L’UNITÉ"},{"$f":"IFERROR(VLOOKUP(D783,Translation!$A:$C,3,FALSE),D783)","v":"Manitoba"},{"$f":"IFERROR(VLOOKUP(E783,Translation!$A:$C,3,FALSE),E783)","v":24.765102895573975},{"$f":"IFERROR(VLOOKUP(F783,Translation!$A:$C,3,FALSE),F783)","v":"Période d’amortissement moyenne selon la province"},{"$f":"IFERROR(VLOOKUP(G783,Translation!$A:$C,3,FALSE),G783)","v":"24.8"},{"$f":"IFERROR(VLOOKUP(H783,Translation!$A:$C,3,FALSE),H783)","v":"Manitoba"}]
[10,"Q4 2016","PROPRIÉTAIRES-OCCUPANTS, À L’UNITÉ","Saskatchewan",24.760682138911097,"Période d’amortissement moyenne selon la province","24.8","Saskatchewan",{"$f":"IFERROR(VLOOKUP(A784,Translation!$A:$C,3,FALSE),A784)","v":10},{"$f":"IFERROR(VLOOKUP(B784,Translation!$A:$C,3,FALSE),B784)","v":"Q4 2016"},{"$f":"IFERROR(VLOOKUP(C784,Translation!$A:$C,3,FALSE),C784)","v":"PROPRIÉTAIRES-OCCUPANTS, À L’UNITÉ"},{"$f":"IFERROR(VLOOKUP(D784,Translation!$A:$C,3,FALSE),D784)","v":"Saskatchewan"},{"$f":"IFERROR(VLOOKUP(E784,Translation!$A:$C,3,FALSE),E784)","v":24.760682138911097},{"$f":"IFERROR(VLOOKUP(F784,Translation!$A:$C,3,FALSE),F784)","v":"Période d’amortissement moyenne selon la province"},{"$f":"IFERROR(VLOOKUP(G784,Translation!$A:$C,3,FALSE),G784)","v":"24.8"},{"$f":"IFERROR(VLOOKUP(H784,Translation!$A:$C,3,FALSE),H784)","v":"Saskatchewan"}]
[10,"Q4 2016","PROPRIÉTAIRES-OCCUPANTS, À L’UNITÉ","Alberta",24.854592655370205,"Période d’amortissement moyenne selon la province","24.9","Alberta",{"$f":"IFERROR(VLOOKUP(A785,Translation!$A:$C,3,FALSE),A785)","v":10},{"$f":"IFERROR(VLOOKUP(B785,Translation!$A:$C,3,FALSE),B785)","v":"Q4 2016"},{"$f":"IFERROR(VLOOKUP(C785,Translation!$A:$C,3,FALSE),C785)","v":"PROPRIÉTAIRES-OCCUPANTS, À L’UNITÉ"},{"$f":"IFERROR(VLOOKUP(D785,Translation!$A:$C,3,FALSE),D785)","v":"Alberta"},{"$f":"IFERROR(VLOOKUP(E785,Translation!$A:$C,3,FALSE),E785)","v":24.854592655370205},{"$f":"IFERROR(VLOOKUP(F785,Translation!$A:$C,3,FALSE),F785)","v":"Période d’amortissement moyenne selon la province"},{"$f":"IFERROR(VLOOKUP(G785,Translation!$A:$C,3,FALSE),G785)","v":"24.9"},{"$f":"IFERROR(VLOOKUP(H785,Translation!$A:$C,3,FALSE),H785)","v":"Alberta"}]
[10,"Q4 2016","PROPRIÉTAIRES-OCCUPANTS, À L’UNITÉ","Colombie-Britannique",24.804990612664927,"Période d’amortissement moyenne selon la province","24.8","Colombie-Britannique",{"$f":"IFERROR(VLOOKUP(A786,Translation!$A:$C,3,FALSE),A786)","v":10},{"$f":"IFERROR(VLOOKUP(B786,Translation!$A:$C,3,FALSE),B786)","v":"Q4 2016"},{"$f":"IFERROR(VLOOKUP(C786,Translation!$A:$C,3,FALSE),C786)","v":"PROPRIÉTAIRES-OCCUPANTS, À L’UNITÉ"},{"$f":"IFERROR(VLOOKUP(D786,Translation!$A:$C,3,FALSE),D786)","v":"Colombie-Britannique"},{"$f":"IFERROR(VLOOKUP(E786,Translation!$A:$C,3,FALSE),E786)","v":24.804990612664927},{"$f":"IFERROR(VLOOKUP(F786,Translation!$A:$C,3,FALSE),F786)","v":"Période d’amortissement moyenne selon la province"},{"$f":"IFERROR(VLOOKUP(G786,Translation!$A:$C,3,FALSE),G786)","v":"24.8"},{"$f":"IFERROR(VLOOKUP(H786,Translation!$A:$C,3,FALSE),H786)","v":"Colombie-Britannique"}]
[10,"Q4 2016","PROPRIÉTAIRES-OCCUPANTS, À L’UNITÉ","Territoires",24.196882496863456,"Période d’amortissement moyenne selon la province","24.2","Territoires",{"$f":"IFERROR(VLOOKUP(A787,Translation!$A:$C,3,FALSE),A787)","v":10},{"$f":"IFERROR(VLOOKUP(B787,Translation!$A:$C,3,FALSE),B787)","v":"Q4 2016"},{"$f":"IFERROR(VLOOKUP(C787,Translation!$A:$C,3,FALSE),C787)","v":"PROPRIÉTAIRES-OCCUPANTS, À L’UNITÉ"},{"$f":"IFERROR(VLOOKUP(D787,Translation!$A:$C,3,FALSE),D787)","v":"Territoires"},{"$f":"IFERROR(VLOOKUP(E787,Translation!$A:$C,3,FALSE),E787)","v":24.196882496863456},{"$f":"IFERROR(VLOOKUP(F787,Translation!$A:$C,3,FALSE),F787)","v":"Période d’amortissement moyenne selon la province"},{"$f":"IFERROR(VLOOKUP(G787,Translation!$A:$C,3,FALSE),G787)","v":"24.2"},{"$f":"IFERROR(VLOOKUP(H787,Translation!$A:$C,3,FALSE),H787)","v":"Territoires"}]
[10,"T4 2017","PROPRIÉTAIRES-OCCUPANTS, À L’UNITÉ","Terre-Neuve-et-Labrador",24.906510579390375,"Période d’amortissement moyenne selon la province","24.9","Terre-Neuve-et-Labrador",{"$f":"IFERROR(VLOOKUP(A788,Translation!$A:$C,3,FALSE),A788)","v":10},{"$f":"IFERROR(VLOOKUP(B788,Translation!$A:$C,3,FALSE),B788)","v":"T4 2017"},{"$f":"IFERROR(VLOOKUP(C788,Translation!$A:$C,3,FALSE),C788)","v":"PROPRIÉTAIRES-OCCUPANTS, À L’UNITÉ"},{"$f":"IFERROR(VLOOKUP(D788,Translation!$A:$C,3,FALSE),D788)","v":"Terre-Neuve-et-Labrador"},{"$f":"IFERROR(VLOOKUP(E788,Translation!$A:$C,3,FALSE),E788)","v":24.906510579390375},{"$f":"IFERROR(VLOOKUP(F788,Translation!$A:$C,3,FALSE),F788)","v":"Période d’amortissement moyenne selon la province"},{"$f":"IFERROR(VLOOKUP(G788,Translation!$A:$C,3,FALSE),G788)","v":"24.9"},{"$f":"IFERROR(VLOOKUP(H788,Translation!$A:$C,3,FALSE),H788)","v":"Terre-Neuve-et-Labrador"}]
[10,"T4 2017","PROPRIÉTAIRES-OCCUPANTS, À L’UNITÉ","Île-du-Prince-Édouard",24.829812468300215,"Période d’amortissement moyenne selon la province","24.8","Île-du-Prince-Édouard",{"$f":"IFERROR(VLOOKUP(A789,Translation!$A:$C,3,FALSE),A789)","v":10},{"$f":"IFERROR(VLOOKUP(B789,Translation!$A:$C,3,FALSE),B789)","v":"T4 2017"},{"$f":"IFERROR(VLOOKUP(C789,Translation!$A:$C,3,FALSE),C789)","v":"PROPRIÉTAIRES-OCCUPANTS, À L’UNITÉ"},{"$f":"IFERROR(VLOOKUP(D789,Translation!$A:$C,3,FALSE),D789)","v":"Île-du-Prince-Édouard"},{"$f":"IFERROR(VLOOKUP(E789,Translation!$A:$C,3,FALSE),E789)","v":24.829812468300215},{"$f":"IFERROR(VLOOKUP(F789,Translation!$A:$C,3,FALSE),F789)","v":"Période d’amortissement moyenne selon la province"},{"$f":"IFERROR(VLOOKUP(G789,Translation!$A:$C,3,FALSE),G789)","v":"24.8"},{"$f":"IFERROR(VLOOKUP(H789,Translation!$A:$C,3,FALSE),H789)","v":"Île-du-Prince-Édouard"}]
[10,"T4 2017","PROPRIÉTAIRES-OCCUPANTS, À L’UNITÉ","Nouvelle-Écosse",24.735337026504695,"Période d’amortissement moyenne selon la province","24.7","Nouvelle-Écosse",{"$f":"IFERROR(VLOOKUP(A790,Translation!$A:$C,3,FALSE),A790)","v":10},{"$f":"IFERROR(VLOOKUP(B790,Translation!$A:$C,3,FALSE),B790)","v":"T4 2017"},{"$f":"IFERROR(VLOOKUP(C790,Translation!$A:$C,3,FALSE),C790)","v":"PROPRIÉTAIRES-OCCUPANTS, À L’UNITÉ"},{"$f":"IFERROR(VLOOKUP(D790,Translation!$A:$C,3,FALSE),D790)","v":"Nouvelle-Écosse"},{"$f":"IFERROR(VLOOKUP(E790,Translation!$A:$C,3,FALSE),E790)","v":24.735337026504695},{"$f":"IFERROR(VLOOKUP(F790,Translation!$A:$C,3,FALSE),F790)","v":"Période d’amortissement moyenne selon la province"},{"$f":"IFERROR(VLOOKUP(G790,Translation!$A:$C,3,FALSE),G790)","v":"24.7"},{"$f":"IFERROR(VLOOKUP(H790,Translation!$A:$C,3,FALSE),H790)","v":"Nouvelle-Écosse"}]
[10,"T4 2017","PROPRIÉTAIRES-OCCUPANTS, À L’UNITÉ","Nouveau-Brunswick",24.759246922750432,"Période d’amortissement moyenne selon la province","24.8","Nouveau-Brunswick",{"$f":"IFERROR(VLOOKUP(A791,Translation!$A:$C,3,FALSE),A791)","v":10},{"$f":"IFERROR(VLOOKUP(B791,Translation!$A:$C,3,FALSE),B791)","v":"T4 2017"},{"$f":"IFERROR(VLOOKUP(C791,Translation!$A:$C,3,FALSE),C791)","v":"PROPRIÉTAIRES-OCCUPANTS, À L’UNITÉ"},{"$f":"IFERROR(VLOOKUP(D791,Translation!$A:$C,3,FALSE),D791)","v":"Nouveau-Brunswick"},{"$f":"IFERROR(VLOOKUP(E791,Translation!$A:$C,3,FALSE),E791)","v":24.759246922750432},{"$f":"IFERROR(VLOOKUP(F791,Translation!$A:$C,3,FALSE),F791)","v":"Période d’amortissement moyenne selon la province"},{"$f":"IFERROR(VLOOKUP(G791,Translation!$A:$C,3,FALSE),G791)","v":"24.8"},{"$f":"IFERROR(VLOOKUP(H791,Translation!$A:$C,3,FALSE),H791)","v":"Nouveau-Brunswick"}]
[10,"T4 2017","PROPRIÉTAIRES-OCCUPANTS, À L’UNITÉ","Québec",24.85852688565042,"Période d’amortissement moyenne selon la province","24.9","Québec",{"$f":"IFERROR(VLOOKUP(A792,Translation!$A:$C,3,FALSE),A792)","v":10},{"$f":"IFERROR(VLOOKUP(B792,Translation!$A:$C,3,FALSE),B792)","v":"T4 2017"},{"$f":"IFERROR(VLOOKUP(C792,Translation!$A:$C,3,FALSE),C792)","v":"PROPRIÉTAIRES-OCCUPANTS, À L’UNITÉ"},{"$f":"IFERROR(VLOOKUP(D792,Translation!$A:$C,3,FALSE),D792)","v":"Québec"},{"$f":"IFERROR(VLOOKUP(E792,Translation!$A:$C,3,FALSE),E792)","v":24.85852688565042},{"$f":"IFERROR(VLOOKUP(F792,Translation!$A:$C,3,FALSE),F792)","v":"Période d’amortissement moyenne selon la province"},{"$f":"IFERROR(VLOOKUP(G792,Translation!$A:$C,3,FALSE),G792)","v":"24.9"},{"$f":"IFERROR(VLOOKUP(H792,Translation!$A:$C,3,FALSE),H792)","v":"Québec"}]
[10,"T4 2017","PROPRIÉTAIRES-OCCUPANTS, À L’UNITÉ","Ontario",24.908369458930238,"Période d’amortissement moyenne selon la province","24.9","Ontario",{"$f":"IFERROR(VLOOKUP(A793,Translation!$A:$C,3,FALSE),A793)","v":10},{"$f":"IFERROR(VLOOKUP(B793,Translation!$A:$C,3,FALSE),B793)","v":"T4 2017"},{"$f":"IFERROR(VLOOKUP(C793,Translation!$A:$C,3,FALSE),C793)","v":"PROPRIÉTAIRES-OCCUPANTS, À L’UNITÉ"},{"$f":"IFERROR(VLOOKUP(D793,Translation!$A:$C,3,FALSE),D793)","v":"Ontario"},{"$f":"IFERROR(VLOOKUP(E793,Translation!$A:$C,3,FALSE),E793)","v":24.908369458930238},{"$f":"IFERROR(VLOOKUP(F793,Translation!$A:$C,3,FALSE),F793)","v":"Période d’amortissement moyenne selon la province"},{"$f":"IFERROR(VLOOKUP(G793,Translation!$A:$C,3,FALSE),G793)","v":"24.9"},{"$f":"IFERROR(VLOOKUP(H793,Translation!$A:$C,3,FALSE),H793)","v":"Ontario"}]
[10,"T4 2017","PROPRIÉTAIRES-OCCUPANTS, À L’UNITÉ","Manitoba",24.84223366520477,"Période d’amortissement moyenne selon la province","24.8","Manitoba",{"$f":"IFERROR(VLOOKUP(A794,Translation!$A:$C,3,FALSE),A794)","v":10},{"$f":"IFERROR(VLOOKUP(B794,Translation!$A:$C,3,FALSE),B794)","v":"T4 2017"},{"$f":"IFERROR(VLOOKUP(C794,Translation!$A:$C,3,FALSE),C794)","v":"PROPRIÉTAIRES-OCCUPANTS, À L’UNITÉ"},{"$f":"IFERROR(VLOOKUP(D794,Translation!$A:$C,3,FALSE),D794)","v":"Manitoba"},{"$f":"IFERROR(VLOOKUP(E794,Translation!$A:$C,3,FALSE),E794)","v":24.84223366520477},{"$f":"IFERROR(VLOOKUP(F794,Translation!$A:$C,3,FALSE),F794)","v":"Période d’amortissement moyenne selon la province"},{"$f":"IFERROR(VLOOKUP(G794,Translation!$A:$C,3,FALSE),G794)","v":"24.8"},{"$f":"IFERROR(VLOOKUP(H794,Translation!$A:$C,3,FALSE),H794)","v":"Manitoba"}]
[10,"T4 2017","PROPRIÉTAIRES-OCCUPANTS, À L’UNITÉ","Saskatchewan",24.770207302661056,"Période d’amortissement moyenne selon la province","24.8","Saskatchewan",{"$f":"IFERROR(VLOOKUP(A795,Translation!$A:$C,3,FALSE),A795)","v":10},{"$f":"IFERROR(VLOOKUP(B795,Translation!$A:$C,3,FALSE),B795)","v":"T4 2017"},{"$f":"IFERROR(VLOOKUP(C795,Translation!$A:$C,3,FALSE),C795)","v":"PROPRIÉTAIRES-OCCUPANTS, À L’UNITÉ"},{"$f":"IFERROR(VLOOKUP(D795,Translation!$A:$C,3,FALSE),D795)","v":"Saskatchewan"},{"$f":"IFERROR(VLOOKUP(E795,Translation!$A:$C,3,FALSE),E795)","v":24.770207302661056},{"$f":"IFERROR(VLOOKUP(F795,Translation!$A:$C,3,FALSE),F795)","v":"Période d’amortissement moyenne selon la province"},{"$f":"IFERROR(VLOOKUP(G795,Translation!$A:$C,3,FALSE),G795)","v":"24.8"},{"$f":"IFERROR(VLOOKUP(H795,Translation!$A:$C,3,FALSE),H795)","v":"Saskatchewan"}]
[10,"T4 2017","PROPRIÉTAIRES-OCCUPANTS, À L’UNITÉ","Alberta",24.798462180222256,"Période d’amortissement moyenne selon la province","24.8","Alberta",{"$f":"IFERROR(VLOOKUP(A796,Translation!$A:$C,3,FALSE),A796)","v":10},{"$f":"IFERROR(VLOOKUP(B796,Translation!$A:$C,3,FALSE),B796)","v":"T4 2017"},{"$f":"IFERROR(VLOOKUP(C796,Translation!$A:$C,3,FALSE),C796)","v":"PROPRIÉTAIRES-OCCUPANTS, À L’UNITÉ"},{"$f":"IFERROR(VLOOKUP(D796,Translation!$A:$C,3,FALSE),D796)","v":"Alberta"},{"$f":"IFERROR(VLOOKUP(E796,Translation!$A:$C,3,FALSE),E796)","v":24.798462180222256},{"$f":"IFERROR(VLOOKUP(F796,Translation!$A:$C,3,FALSE),F796)","v":"Période d’amortissement moyenne selon la province"},{"$f":"IFERROR(VLOOKUP(G796,Translation!$A:$C,3,FALSE),G796)","v":"24.8"},{"$f":"IFERROR(VLOOKUP(H796,Translation!$A:$C,3,FALSE),H796)","v":"Alberta"}]
[10,"T4 2017","PROPRIÉTAIRES-OCCUPANTS, À L’UNITÉ","Colombie-Britannique",24.819399453399459,"Période d’amortissement moyenne selon la province","24.8","Colombie-Britannique",{"$f":"IFERROR(VLOOKUP(A797,Translation!$A:$C,3,FALSE),A797)","v":10},{"$f":"IFERROR(VLOOKUP(B797,Translation!$A:$C,3,FALSE),B797)","v":"T4 2017"},{"$f":"IFERROR(VLOOKUP(C797,Translation!$A:$C,3,FALSE),C797)","v":"PROPRIÉTAIRES-OCCUPANTS, À L’UNITÉ"},{"$f":"IFERROR(VLOOKUP(D797,Translation!$A:$C,3,FALSE),D797)","v":"Colombie-Britannique"},{"$f":"IFERROR(VLOOKUP(E797,Translation!$A:$C,3,FALSE),E797)","v":24.819399453399459},{"$f":"IFERROR(VLOOKUP(F797,Translation!$A:$C,3,FALSE),F797)","v":"Période d’amortissement moyenne selon la province"},{"$f":"IFERROR(VLOOKUP(G797,Translation!$A:$C,3,FALSE),G797)","v":"24.8"},{"$f":"IFERROR(VLOOKUP(H797,Translation!$A:$C,3,FALSE),H797)","v":"Colombie-Britannique"}]
[10,"T4 2017","PROPRIÉTAIRES-OCCUPANTS, À L’UNITÉ","Territoires",24.500519255728047,"Période d’amortissement moyenne selon la province","24.5","Territoires",{"$f":"IFERROR(VLOOKUP(A798,Translation!$A:$C,3,FALSE),A798)","v":10},{"$f":"IFERROR(VLOOKUP(B798,Translation!$A:$C,3,FALSE),B798)","v":"T4 2017"},{"$f":"IFERROR(VLOOKUP(C798,Translation!$A:$C,3,FALSE),C798)","v":"PROPRIÉTAIRES-OCCUPANTS, À L’UNITÉ"},{"$f":"IFERROR(VLOOKUP(D798,Translation!$A:$C,3,FALSE),D798)","v":"Territoires"},{"$f":"IFERROR(VLOOKUP(E798,Translation!$A:$C,3,FALSE),E798)","v":24.500519255728047},{"$f":"IFERROR(VLOOKUP(F798,Translation!$A:$C,3,FALSE),F798)","v":"Période d’amortissement moyenne selon la province"},{"$f":"IFERROR(VLOOKUP(G798,Translation!$A:$C,3,FALSE),G798)","v":"24.5"},{"$f":"IFERROR(VLOOKUP(H798,Translation!$A:$C,3,FALSE),H798)","v":"Territoires"}]
[10,"T1 2017","ASSURANCE DE PORTEFEUILLE","<= 5",5.0514228584920551E-2,"Prêts hypothécaires assurés au cours de la période selon la période d’amortissement (en années) à l'initiation (%)","0.1"," <= 5",{"$f":"IFERROR(VLOOKUP(A799,Translation!$A:$C,3,FALSE),A799)","v":10},{"$f":"IFERROR(VLOOKUP(B799,Translation!$A:$C,3,FALSE),B799)","v":"T1 2017"},{"$f":"IFERROR(VLOOKUP(C799,Translation!$A:$C,3,FALSE),C799)","v":"ASSURANCE DE PORTEFEUILLE"},{"$f":"IFERROR(VLOOKUP(D799,Translation!$A:$C,3,FALSE),D799)","v":"<= 5"},{"$f":"IFERROR(VLOOKUP(E799,Translation!$A:$C,3,FALSE),E799)","v":5.0514228584920551E-2},{"$f":"IFERROR(VLOOKUP(F799,Translation!$A:$C,3,FALSE),F799)","v":"Prêts hypothécaires assurés au cours de la période selon la période d’amortissement (en années) à l'initiation (%)"},{"$f":"IFERROR(VLOOKUP(G799,Translation!$A:$C,3,FALSE),G799)","v":"0.1"},{"$f":"IFERROR(VLOOKUP(H799,Translation!$A:$C,3,FALSE),H799)","v":" <= 5"}]
[10,"T1 2018","ASSURANCE DE PORTEFEUILLE","<= 5",0.50832871634707,"Prêts hypothécaires assurés au cours de la période selon la période d’amortissement (en années) à l'initiation (%)","0.5"," <= 5",{"$f":"IFERROR(VLOOKUP(A800,Translation!$A:$C,3,FALSE),A800)","v":10},{"$f":"IFERROR(VLOOKUP(B800,Translation!$A:$C,3,FALSE),B800)","v":"T1 2018"},{"$f":"IFERROR(VLOOKUP(C800,Translation!$A:$C,3,FALSE),C800)","v":"ASSURANCE DE PORTEFEUILLE"},{"$f":"IFERROR(VLOOKUP(D800,Translation!$A:$C,3,FALSE),D800)","v":"<= 5"},{"$f":"IFERROR(VLOOKUP(E800,Translation!$A:$C,3,FALSE),E800)","v":0.50832871634707},{"$f":"IFERROR(VLOOKUP(F800,Translation!$A:$C,3,FALSE),F800)","v":"Prêts hypothécaires assurés au cours de la période selon la période d’amortissement (en années) à l'initiation (%)"},{"$f":"IFERROR(VLOOKUP(G800,Translation!$A:$C,3,FALSE),G800)","v":"0.5"},{"$f":"IFERROR(VLOOKUP(H800,Translation!$A:$C,3,FALSE),H800)","v":" <= 5"}]
[10,"Q2 2016","ASSURANCE DE PORTEFEUILLE","<= 5",7.6752011767365777E-2,"Prêts hypothécaires assurés au cours de la période selon la période d’amortissement (en années) à l'initiation (%)","0.1"," <= 5",{"$f":"IFERROR(VLOOKUP(A801,Translation!$A:$C,3,FALSE),A801)","v":10},{"$f":"IFERROR(VLOOKUP(B801,Translation!$A:$C,3,FALSE),B801)","v":"Q2 2016"},{"$f":"IFERROR(VLOOKUP(C801,Translation!$A:$C,3,FALSE),C801)","v":"ASSURANCE DE PORTEFEUILLE"},{"$f":"IFERROR(VLOOKUP(D801,Translation!$A:$C,3,FALSE),D801)","v":"<= 5"},{"$f":"IFERROR(VLOOKUP(E801,Translation!$A:$C,3,FALSE),E801)","v":7.6752011767365777E-2},{"$f":"IFERROR(VLOOKUP(F801,Translation!$A:$C,3,FALSE),F801)","v":"Prêts hypothécaires assurés au cours de la période selon la période d’amortissement (en années) à l'initiation (%)"},{"$f":"IFERROR(VLOOKUP(G801,Translation!$A:$C,3,FALSE),G801)","v":"0.1"},{"$f":"IFERROR(VLOOKUP(H801,Translation!$A:$C,3,FALSE),H801)","v":" <= 5"}]
[10,"T2 2017","ASSURANCE DE PORTEFEUILLE","<= 5",3.3251174832607103E-2,"Prêts hypothécaires assurés au cours de la période selon la période d’amortissement (en années) à l'initiation (%)","0.0"," <= 5",{"$f":"IFERROR(VLOOKUP(A802,Translation!$A:$C,3,FALSE),A802)","v":10},{"$f":"IFERROR(VLOOKUP(B802,Translation!$A:$C,3,FALSE),B802)","v":"T2 2017"},{"$f":"IFERROR(VLOOKUP(C802,Translation!$A:$C,3,FALSE),C802)","v":"ASSURANCE DE PORTEFEUILLE"},{"$f":"IFERROR(VLOOKUP(D802,Translation!$A:$C,3,FALSE),D802)","v":"<= 5"},{"$f":"IFERROR(VLOOKUP(E802,Translation!$A:$C,3,FALSE),E802)","v":3.3251174832607103E-2},{"$f":"IFERROR(VLOOKUP(F802,Translation!$A:$C,3,FALSE),F802)","v":"Prêts hypothécaires assurés au cours de la période selon la période d’amortissement (en années) à l'initiation (%)"},{"$f":"IFERROR(VLOOKUP(G802,Translation!$A:$C,3,FALSE),G802)","v":"0.0"},{"$f":"IFERROR(VLOOKUP(H802,Translation!$A:$C,3,FALSE),H802)","v":" <= 5"}]
[10,"Q3 2016","ASSURANCE DE PORTEFEUILLE","<= 5",7.8397441358000503E-2,"Prêts hypothécaires assurés au cours de la période selon la période d’amortissement (en années) à l'initiation (%)","0.1"," <= 5",{"$f":"IFERROR(VLOOKUP(A803,Translation!$A:$C,3,FALSE),A803)","v":10},{"$f":"IFERROR(VLOOKUP(B803,Translation!$A:$C,3,FALSE),B803)","v":"Q3 2016"},{"$f":"IFERROR(VLOOKUP(C803,Translation!$A:$C,3,FALSE),C803)","v":"ASSURANCE DE PORTEFEUILLE"},{"$f":"IFERROR(VLOOKUP(D803,Translation!$A:$C,3,FALSE),D803)","v":"<= 5"},{"$f":"IFERROR(VLOOKUP(E803,Translation!$A:$C,3,FALSE),E803)","v":7.8397441358000503E-2},{"$f":"IFERROR(VLOOKUP(F803,Translation!$A:$C,3,FALSE),F803)","v":"Prêts hypothécaires assurés au cours de la période selon la période d’amortissement (en années) à l'initiation (%)"},{"$f":"IFERROR(VLOOKUP(G803,Translation!$A:$C,3,FALSE),G803)","v":"0.1"},{"$f":"IFERROR(VLOOKUP(H803,Translation!$A:$C,3,FALSE),H803)","v":" <= 5"}]
[10,"T3 2017","ASSURANCE DE PORTEFEUILLE","<= 5",6.4783938895569132E-2,"Prêts hypothécaires assurés au cours de la période selon la période d’amortissement (en années) à l'initiation (%)","0.1"," <= 5",{"$f":"IFERROR(VLOOKUP(A804,Translation!$A:$C,3,FALSE),A804)","v":10},{"$f":"IFERROR(VLOOKUP(B804,Translation!$A:$C,3,FALSE),B804)","v":"T3 2017"},{"$f":"IFERROR(VLOOKUP(C804,Translation!$A:$C,3,FALSE),C804)","v":"ASSURANCE DE PORTEFEUILLE"},{"$f":"IFERROR(VLOOKUP(D804,Translation!$A:$C,3,FALSE),D804)","v":"<= 5"},{"$f":"IFERROR(VLOOKUP(E804,Translation!$A:$C,3,FALSE),E804)","v":6.4783938895569132E-2},{"$f":"IFERROR(VLOOKUP(F804,Translation!$A:$C,3,FALSE),F804)","v":"Prêts hypothécaires assurés au cours de la période selon la période d’amortissement (en années) à l'initiation (%)"},{"$f":"IFERROR(VLOOKUP(G804,Translation!$A:$C,3,FALSE),G804)","v":"0.1"},{"$f":"IFERROR(VLOOKUP(H804,Translation!$A:$C,3,FALSE),H804)","v":" <= 5"}]
[10,"Q4 2016","ASSURANCE DE PORTEFEUILLE","<= 5",5.2560176654405405E-2,"Prêts hypothécaires assurés au cours de la période selon la période d’amortissement (en années) à l'initiation (%)","0.1"," <= 5",{"$f":"IFERROR(VLOOKUP(A805,Translation!$A:$C,3,FALSE),A805)","v":10},{"$f":"IFERROR(VLOOKUP(B805,Translation!$A:$C,3,FALSE),B805)","v":"Q4 2016"},{"$f":"IFERROR(VLOOKUP(C805,Translation!$A:$C,3,FALSE),C805)","v":"ASSURANCE DE PORTEFEUILLE"},{"$f":"IFERROR(VLOOKUP(D805,Translation!$A:$C,3,FALSE),D805)","v":"<= 5"},{"$f":"IFERROR(VLOOKUP(E805,Translation!$A:$C,3,FALSE),E805)","v":5.2560176654405405E-2},{"$f":"IFERROR(VLOOKUP(F805,Translation!$A:$C,3,FALSE),F805)","v":"Prêts hypothécaires assurés au cours de la période selon la période d’amortissement (en années) à l'initiation (%)"},{"$f":"IFERROR(VLOOKUP(G805,Translation!$A:$C,3,FALSE),G805)","v":"0.1"},{"$f":"IFERROR(VLOOKUP(H805,Translation!$A:$C,3,FALSE),H805)","v":" <= 5"}]
[10,"T4 2017","ASSURANCE DE PORTEFEUILLE","<= 5",0.39590194714363208,"Prêts hypothécaires assurés au cours de la période selon la période d’amortissement (en années) à l'initiation (%)","0.4"," <= 5",{"$f":"IFERROR(VLOOKUP(A806,Translation!$A:$C,3,FALSE),A806)","v":10},{"$f":"IFERROR(VLOOKUP(B806,Translation!$A:$C,3,FALSE),B806)","v":"T4 2017"},{"$f":"IFERROR(VLOOKUP(C806,Translation!$A:$C,3,FALSE),C806)","v":"ASSURANCE DE PORTEFEUILLE"},{"$f":"IFERROR(VLOOKUP(D806,Translation!$A:$C,3,FALSE),D806)","v":"<= 5"},{"$f":"IFERROR(VLOOKUP(E806,Translation!$A:$C,3,FALSE),E806)","v":0.39590194714363208},{"$f":"IFERROR(VLOOKUP(F806,Translation!$A:$C,3,FALSE),F806)","v":"Prêts hypothécaires assurés au cours de la période selon la période d’amortissement (en années) à l'initiation (%)"},{"$f":"IFERROR(VLOOKUP(G806,Translation!$A:$C,3,FALSE),G806)","v":"0.4"},{"$f":"IFERROR(VLOOKUP(H806,Translation!$A:$C,3,FALSE),H806)","v":" <= 5"}]
[10,"T1 2017","ASSURANCE DE PORTEFEUILLE","> 5 <= 10",0.50233522467029523,"Prêts hypothécaires assurés au cours de la période selon la période d’amortissement (en années) à l'initiation (%)","0.5"," > 5 <= 10",{"$f":"IFERROR(VLOOKUP(A807,Translation!$A:$C,3,FALSE),A807)","v":10},{"$f":"IFERROR(VLOOKUP(B807,Translation!$A:$C,3,FALSE),B807)","v":"T1 2017"},{"$f":"IFERROR(VLOOKUP(C807,Translation!$A:$C,3,FALSE),C807)","v":"ASSURANCE DE PORTEFEUILLE"},{"$f":"IFERROR(VLOOKUP(D807,Translation!$A:$C,3,FALSE),D807)","v":"> 5 <= 10"},{"$f":"IFERROR(VLOOKUP(E807,Translation!$A:$C,3,FALSE),E807)","v":0.50233522467029523},{"$f":"IFERROR(VLOOKUP(F807,Translation!$A:$C,3,FALSE),F807)","v":"Prêts hypothécaires assurés au cours de la période selon la période d’amortissement (en années) à l'initiation (%)"},{"$f":"IFERROR(VLOOKUP(G807,Translation!$A:$C,3,FALSE),G807)","v":"0.5"},{"$f":"IFERROR(VLOOKUP(H807,Translation!$A:$C,3,FALSE),H807)","v":" > 5 <= 10"}]
[10,"T1 2018","ASSURANCE DE PORTEFEUILLE","> 5 <= 10",3.6472207119101312,"Prêts hypothécaires assurés au cours de la période selon la période d’amortissement (en années) à l'initiation (%)","3.6"," > 5 <= 10",{"$f":"IFERROR(VLOOKUP(A808,Translation!$A:$C,3,FALSE),A808)","v":10},{"$f":"IFERROR(VLOOKUP(B808,Translation!$A:$C,3,FALSE),B808)","v":"T1 2018"},{"$f":"IFERROR(VLOOKUP(C808,Translation!$A:$C,3,FALSE),C808)","v":"ASSURANCE DE PORTEFEUILLE"},{"$f":"IFERROR(VLOOKUP(D808,Translation!$A:$C,3,FALSE),D808)","v":"> 5 <= 10"},{"$f":"IFERROR(VLOOKUP(E808,Translation!$A:$C,3,FALSE),E808)","v":3.6472207119101312},{"$f":"IFERROR(VLOOKUP(F808,Translation!$A:$C,3,FALSE),F808)","v":"Prêts hypothécaires assurés au cours de la période selon la période d’amortissement (en années) à l'initiation (%)"},{"$f":"IFERROR(VLOOKUP(G808,Translation!$A:$C,3,FALSE),G808)","v":"3.6"},{"$f":"IFERROR(VLOOKUP(H808,Translation!$A:$C,3,FALSE),H808)","v":" > 5 <= 10"}]
[10,"Q2 2016","ASSURANCE DE PORTEFEUILLE","> 5 <= 10",0.73647673277615489,"Prêts hypothécaires assurés au cours de la période selon la période d’amortissement (en années) à l'initiation (%)","0.7"," > 5 <= 10",{"$f":"IFERROR(VLOOKUP(A809,Translation!$A:$C,3,FALSE),A809)","v":10},{"$f":"IFERROR(VLOOKUP(B809,Translation!$A:$C,3,FALSE),B809)","v":"Q2 2016"},{"$f":"IFERROR(VLOOKUP(C809,Translation!$A:$C,3,FALSE),C809)","v":"ASSURANCE DE PORTEFEUILLE"},{"$f":"IFERROR(VLOOKUP(D809,Translation!$A:$C,3,FALSE),D809)","v":"> 5 <= 10"},{"$f":"IFERROR(VLOOKUP(E809,Translation!$A:$C,3,FALSE),E809)","v":0.73647673277615489},{"$f":"IFERROR(VLOOKUP(F809,Translation!$A:$C,3,FALSE),F809)","v":"Prêts hypothécaires assurés au cours de la période selon la période d’amortissement (en années) à l'initiation (%)"},{"$f":"IFERROR(VLOOKUP(G809,Translation!$A:$C,3,FALSE),G809)","v":"0.7"},{"$f":"IFERROR(VLOOKUP(H809,Translation!$A:$C,3,FALSE),H809)","v":" > 5 <= 10"}]
[10,"T2 2017","ASSURANCE DE PORTEFEUILLE","> 5 <= 10",0.16938094854297067,"Prêts hypothécaires assurés au cours de la période selon la période d’amortissement (en années) à l'initiation (%)","0.2"," > 5 <= 10",{"$f":"IFERROR(VLOOKUP(A810,Translation!$A:$C,3,FALSE),A810)","v":10},{"$f":"IFERROR(VLOOKUP(B810,Translation!$A:$C,3,FALSE),B810)","v":"T2 2017"},{"$f":"IFERROR(VLOOKUP(C810,Translation!$A:$C,3,FALSE),C810)","v":"ASSURANCE DE PORTEFEUILLE"},{"$f":"IFERROR(VLOOKUP(D810,Translation!$A:$C,3,FALSE),D810)","v":"> 5 <= 10"},{"$f":"IFERROR(VLOOKUP(E810,Translation!$A:$C,3,FALSE),E810)","v":0.16938094854297067},{"$f":"IFERROR(VLOOKUP(F810,Translation!$A:$C,3,FALSE),F810)","v":"Prêts hypothécaires assurés au cours de la période selon la période d’amortissement (en années) à l'initiation (%)"},{"$f":"IFERROR(VLOOKUP(G810,Translation!$A:$C,3,FALSE),G810)","v":"0.2"},{"$f":"IFERROR(VLOOKUP(H810,Translation!$A:$C,3,FALSE),H810)","v":" > 5 <= 10"}]
[10,"Q3 2016","ASSURANCE DE PORTEFEUILLE","> 5 <= 10",0.573853601373148,"Prêts hypothécaires assurés au cours de la période selon la période d’amortissement (en années) à l'initiation (%)","0.6"," > 5 <= 10",{"$f":"IFERROR(VLOOKUP(A811,Translation!$A:$C,3,FALSE),A811)","v":10},{"$f":"IFERROR(VLOOKUP(B811,Translation!$A:$C,3,FALSE),B811)","v":"Q3 2016"},{"$f":"IFERROR(VLOOKUP(C811,Translation!$A:$C,3,FALSE),C811)","v":"ASSURANCE DE PORTEFEUILLE"},{"$f":"IFERROR(VLOOKUP(D811,Translation!$A:$C,3,FALSE),D811)","v":"> 5 <= 10"},{"$f":"IFERROR(VLOOKUP(E811,Translation!$A:$C,3,FALSE),E811)","v":0.573853601373148},{"$f":"IFERROR(VLOOKUP(F811,Translation!$A:$C,3,FALSE),F811)","v":"Prêts hypothécaires assurés au cours de la période selon la période d’amortissement (en années) à l'initiation (%)"},{"$f":"IFERROR(VLOOKUP(G811,Translation!$A:$C,3,FALSE),G811)","v":"0.6"},{"$f":"IFERROR(VLOOKUP(H811,Translation!$A:$C,3,FALSE),H811)","v":" > 5 <= 10"}]
[10,"T3 2017","ASSURANCE DE PORTEFEUILLE","> 5 <= 10",0.61247048488297284,"Prêts hypothécaires assurés au cours de la période selon la période d’amortissement (en années) à l'initiation (%)","0.6"," > 5 <= 10",{"$f":"IFERROR(VLOOKUP(A812,Translation!$A:$C,3,FALSE),A812)","v":10},{"$f":"IFERROR(VLOOKUP(B812,Translation!$A:$C,3,FALSE),B812)","v":"T3 2017"},{"$f":"IFERROR(VLOOKUP(C812,Translation!$A:$C,3,FALSE),C812)","v":"ASSURANCE DE PORTEFEUILLE"},{"$f":"IFERROR(VLOOKUP(D812,Translation!$A:$C,3,FALSE),D812)","v":"> 5 <= 10"},{"$f":"IFERROR(VLOOKUP(E812,Translation!$A:$C,3,FALSE),E812)","v":0.61247048488297284},{"$f":"IFERROR(VLOOKUP(F812,Translation!$A:$C,3,FALSE),F812)","v":"Prêts hypothécaires assurés au cours de la période selon la période d’amortissement (en années) à l'initiation (%)"},{"$f":"IFERROR(VLOOKUP(G812,Translation!$A:$C,3,FALSE),G812)","v":"0.6"},{"$f":"IFERROR(VLOOKUP(H812,Translation!$A:$C,3,FALSE),H812)","v":" > 5 <= 10"}]
[10,"Q4 2016","ASSURANCE DE PORTEFEUILLE","> 5 <= 10",0.70110071215502956,"Prêts hypothécaires assurés au cours de la période selon la période d’amortissement (en années) à l'initiation (%)","0.7"," > 5 <= 10",{"$f":"IFERROR(VLOOKUP(A813,Translation!$A:$C,3,FALSE),A813)","v":10},{"$f":"IFERROR(VLOOKUP(B813,Translation!$A:$C,3,FALSE),B813)","v":"Q4 2016"},{"$f":"IFERROR(VLOOKUP(C813,Translation!$A:$C,3,FALSE),C813)","v":"ASSURANCE DE PORTEFEUILLE"},{"$f":"IFERROR(VLOOKUP(D813,Translation!$A:$C,3,FALSE),D813)","v":"> 5 <= 10"},{"$f":"IFERROR(VLOOKUP(E813,Translation!$A:$C,3,FALSE),E813)","v":0.70110071215502956},{"$f":"IFERROR(VLOOKUP(F813,Translation!$A:$C,3,FALSE),F813)","v":"Prêts hypothécaires assurés au cours de la période selon la période d’amortissement (en années) à l'initiation (%)"},{"$f":"IFERROR(VLOOKUP(G813,Translation!$A:$C,3,FALSE),G813)","v":"0.7"},{"$f":"IFERROR(VLOOKUP(H813,Translation!$A:$C,3,FALSE),H813)","v":" > 5 <= 10"}]
[10,"T4 2017","ASSURANCE DE PORTEFEUILLE","> 5 <= 10",3.8662181115758942,"Prêts hypothécaires assurés au cours de la période selon la période d’amortissement (en années) à l'initiation (%)","3.9"," > 5 <= 10",{"$f":"IFERROR(VLOOKUP(A814,Translation!$A:$C,3,FALSE),A814)","v":10},{"$f":"IFERROR(VLOOKUP(B814,Translation!$A:$C,3,FALSE),B814)","v":"T4 2017"},{"$f":"IFERROR(VLOOKUP(C814,Translation!$A:$C,3,FALSE),C814)","v":"ASSURANCE DE PORTEFEUILLE"},{"$f":"IFERROR(VLOOKUP(D814,Translation!$A:$C,3,FALSE),D814)","v":"> 5 <= 10"},{"$f":"IFERROR(VLOOKUP(E814,Translation!$A:$C,3,FALSE),E814)","v":3.8662181115758942},{"$f":"IFERROR(VLOOKUP(F814,Translation!$A:$C,3,FALSE),F814)","v":"Prêts hypothécaires assurés au cours de la période selon la période d’amortissement (en années) à l'initiation (%)"},{"$f":"IFERROR(VLOOKUP(G814,Translation!$A:$C,3,FALSE),G814)","v":"3.9"},{"$f":"IFERROR(VLOOKUP(H814,Translation!$A:$C,3,FALSE),H814)","v":" > 5 <= 10"}]
[10,"T1 2017","ASSURANCE DE PORTEFEUILLE","> 10 <= 15",1.6205510569228945,"Prêts hypothécaires assurés au cours de la période selon la période d’amortissement (en années) à l'initiation (%)","1.6"," > 10 <= 15",{"$f":"IFERROR(VLOOKUP(A815,Translation!$A:$C,3,FALSE),A815)","v":10},{"$f":"IFERROR(VLOOKUP(B815,Translation!$A:$C,3,FALSE),B815)","v":"T1 2017"},{"$f":"IFERROR(VLOOKUP(C815,Translation!$A:$C,3,FALSE),C815)","v":"ASSURANCE DE PORTEFEUILLE"},{"$f":"IFERROR(VLOOKUP(D815,Translation!$A:$C,3,FALSE),D815)","v":"> 10 <= 15"},{"$f":"IFERROR(VLOOKUP(E815,Translation!$A:$C,3,FALSE),E815)","v":1.6205510569228945},{"$f":"IFERROR(VLOOKUP(F815,Translation!$A:$C,3,FALSE),F815)","v":"Prêts hypothécaires assurés au cours de la période selon la période d’amortissement (en années) à l'initiation (%)"},{"$f":"IFERROR(VLOOKUP(G815,Translation!$A:$C,3,FALSE),G815)","v":"1.6"},{"$f":"IFERROR(VLOOKUP(H815,Translation!$A:$C,3,FALSE),H815)","v":" > 10 <= 15"}]
[10,"T1 2018","ASSURANCE DE PORTEFEUILLE","> 10 <= 15",8.4660070348310441,"Prêts hypothécaires assurés au cours de la période selon la période d’amortissement (en années) à l'initiation (%)","8.5"," > 10 <= 15",{"$f":"IFERROR(VLOOKUP(A816,Translation!$A:$C,3,FALSE),A816)","v":10},{"$f":"IFERROR(VLOOKUP(B816,Translation!$A:$C,3,FALSE),B816)","v":"T1 2018"},{"$f":"IFERROR(VLOOKUP(C816,Translation!$A:$C,3,FALSE),C816)","v":"ASSURANCE DE PORTEFEUILLE"},{"$f":"IFERROR(VLOOKUP(D816,Translation!$A:$C,3,FALSE),D816)","v":"> 10 <= 15"},{"$f":"IFERROR(VLOOKUP(E816,Translation!$A:$C,3,FALSE),E816)","v":8.4660070348310441},{"$f":"IFERROR(VLOOKUP(F816,Translation!$A:$C,3,FALSE),F816)","v":"Prêts hypothécaires assurés au cours de la période selon la période d’amortissement (en années) à l'initiation (%)"},{"$f":"IFERROR(VLOOKUP(G816,Translation!$A:$C,3,FALSE),G816)","v":"8.5"},{"$f":"IFERROR(VLOOKUP(H816,Translation!$A:$C,3,FALSE),H816)","v":" > 10 <= 15"}]
[10,"Q2 2016","ASSURANCE DE PORTEFEUILLE","> 10 <= 15",2.0391091778337889,"Prêts hypothécaires assurés au cours de la période selon la période d’amortissement (en années) à l'initiation (%)","2.0"," > 10 <= 15",{"$f":"IFERROR(VLOOKUP(A817,Translation!$A:$C,3,FALSE),A817)","v":10},{"$f":"IFERROR(VLOOKUP(B817,Translation!$A:$C,3,FALSE),B817)","v":"Q2 2016"},{"$f":"IFERROR(VLOOKUP(C817,Translation!$A:$C,3,FALSE),C817)","v":"ASSURANCE DE PORTEFEUILLE"},{"$f":"IFERROR(VLOOKUP(D817,Translation!$A:$C,3,FALSE),D817)","v":"> 10 <= 15"},{"$f":"IFERROR(VLOOKUP(E817,Translation!$A:$C,3,FALSE),E817)","v":2.0391091778337889},{"$f":"IFERROR(VLOOKUP(F817,Translation!$A:$C,3,FALSE),F817)","v":"Prêts hypothécaires assurés au cours de la période selon la période d’amortissement (en années) à l'initiation (%)"},{"$f":"IFERROR(VLOOKUP(G817,Translation!$A:$C,3,FALSE),G817)","v":"2.0"},{"$f":"IFERROR(VLOOKUP(H817,Translation!$A:$C,3,FALSE),H817)","v":" > 10 <= 15"}]
[10,"T2 2017","ASSURANCE DE PORTEFEUILLE","> 10 <= 15",0.67321718106617923,"Prêts hypothécaires assurés au cours de la période selon la période d’amortissement (en années) à l'initiation (%)","0.7"," > 10 <= 15",{"$f":"IFERROR(VLOOKUP(A818,Translation!$A:$C,3,FALSE),A818)","v":10},{"$f":"IFERROR(VLOOKUP(B818,Translation!$A:$C,3,FALSE),B818)","v":"T2 2017"},{"$f":"IFERROR(VLOOKUP(C818,Translation!$A:$C,3,FALSE),C818)","v":"ASSURANCE DE PORTEFEUILLE"},{"$f":"IFERROR(VLOOKUP(D818,Translation!$A:$C,3,FALSE),D818)","v":"> 10 <= 15"},{"$f":"IFERROR(VLOOKUP(E818,Translation!$A:$C,3,FALSE),E818)","v":0.67321718106617923},{"$f":"IFERROR(VLOOKUP(F818,Translation!$A:$C,3,FALSE),F818)","v":"Prêts hypothécaires assurés au cours de la période selon la période d’amortissement (en années) à l'initiation (%)"},{"$f":"IFERROR(VLOOKUP(G818,Translation!$A:$C,3,FALSE),G818)","v":"0.7"},{"$f":"IFERROR(VLOOKUP(H818,Translation!$A:$C,3,FALSE),H818)","v":" > 10 <= 15"}]
[10,"Q3 2016","ASSURANCE DE PORTEFEUILLE","> 10 <= 15",1.9278031500006216,"Prêts hypothécaires assurés au cours de la période selon la période d’amortissement (en années) à l'initiation (%)","1.9"," > 10 <= 15",{"$f":"IFERROR(VLOOKUP(A819,Translation!$A:$C,3,FALSE),A819)","v":10},{"$f":"IFERROR(VLOOKUP(B819,Translation!$A:$C,3,FALSE),B819)","v":"Q3 2016"},{"$f":"IFERROR(VLOOKUP(C819,Translation!$A:$C,3,FALSE),C819)","v":"ASSURANCE DE PORTEFEUILLE"},{"$f":"IFERROR(VLOOKUP(D819,Translation!$A:$C,3,FALSE),D819)","v":"> 10 <= 15"},{"$f":"IFERROR(VLOOKUP(E819,Translation!$A:$C,3,FALSE),E819)","v":1.9278031500006216},{"$f":"IFERROR(VLOOKUP(F819,Translation!$A:$C,3,FALSE),F819)","v":"Prêts hypothécaires assurés au cours de la période selon la période d’amortissement (en années) à l'initiation (%)"},{"$f":"IFERROR(VLOOKUP(G819,Translation!$A:$C,3,FALSE),G819)","v":"1.9"},{"$f":"IFERROR(VLOOKUP(H819,Translation!$A:$C,3,FALSE),H819)","v":" > 10 <= 15"}]
[10,"T3 2017","ASSURANCE DE PORTEFEUILLE","> 10 <= 15",2.2117731849383819,"Prêts hypothécaires assurés au cours de la période selon la période d’amortissement (en années) à l'initiation (%)","2.2"," > 10 <= 15",{"$f":"IFERROR(VLOOKUP(A820,Translation!$A:$C,3,FALSE),A820)","v":10},{"$f":"IFERROR(VLOOKUP(B820,Translation!$A:$C,3,FALSE),B820)","v":"T3 2017"},{"$f":"IFERROR(VLOOKUP(C820,Translation!$A:$C,3,FALSE),C820)","v":"ASSURANCE DE PORTEFEUILLE"},{"$f":"IFERROR(VLOOKUP(D820,Translation!$A:$C,3,FALSE),D820)","v":"> 10 <= 15"},{"$f":"IFERROR(VLOOKUP(E820,Translation!$A:$C,3,FALSE),E820)","v":2.2117731849383819},{"$f":"IFERROR(VLOOKUP(F820,Translation!$A:$C,3,FALSE),F820)","v":"Prêts hypothécaires assurés au cours de la période selon la période d’amortissement (en années) à l'initiation (%)"},{"$f":"IFERROR(VLOOKUP(G820,Translation!$A:$C,3,FALSE),G820)","v":"2.2"},{"$f":"IFERROR(VLOOKUP(H820,Translation!$A:$C,3,FALSE),H820)","v":" > 10 <= 15"}]
[10,"Q4 2016","ASSURANCE DE PORTEFEUILLE","> 10 <= 15",1.717201031953338,"Prêts hypothécaires assurés au cours de la période selon la période d’amortissement (en années) à l'initiation (%)","1.7"," > 10 <= 15",{"$f":"IFERROR(VLOOKUP(A821,Translation!$A:$C,3,FALSE),A821)","v":10},{"$f":"IFERROR(VLOOKUP(B821,Translation!$A:$C,3,FALSE),B821)","v":"Q4 2016"},{"$f":"IFERROR(VLOOKUP(C821,Translation!$A:$C,3,FALSE),C821)","v":"ASSURANCE DE PORTEFEUILLE"},{"$f":"IFERROR(VLOOKUP(D821,Translation!$A:$C,3,FALSE),D821)","v":"> 10 <= 15"},{"$f":"IFERROR(VLOOKUP(E821,Translation!$A:$C,3,FALSE),E821)","v":1.717201031953338},{"$f":"IFERROR(VLOOKUP(F821,Translation!$A:$C,3,FALSE),F821)","v":"Prêts hypothécaires assurés au cours de la période selon la période d’amortissement (en années) à l'initiation (%)"},{"$f":"IFERROR(VLOOKUP(G821,Translation!$A:$C,3,FALSE),G821)","v":"1.7"},{"$f":"IFERROR(VLOOKUP(H821,Translation!$A:$C,3,FALSE),H821)","v":" > 10 <= 15"}]
[10,"T4 2017","ASSURANCE DE PORTEFEUILLE","> 10 <= 15",7.540757089258058,"Prêts hypothécaires assurés au cours de la période selon la période d’amortissement (en années) à l'initiation (%)","7.5"," > 10 <= 15",{"$f":"IFERROR(VLOOKUP(A822,Translation!$A:$C,3,FALSE),A822)","v":10},{"$f":"IFERROR(VLOOKUP(B822,Translation!$A:$C,3,FALSE),B822)","v":"T4 2017"},{"$f":"IFERROR(VLOOKUP(C822,Translation!$A:$C,3,FALSE),C822)","v":"ASSURANCE DE PORTEFEUILLE"},{"$f":"IFERROR(VLOOKUP(D822,Translation!$A:$C,3,FALSE),D822)","v":"> 10 <= 15"},{"$f":"IFERROR(VLOOKUP(E822,Translation!$A:$C,3,FALSE),E822)","v":7.540757089258058},{"$f":"IFERROR(VLOOKUP(F822,Translation!$A:$C,3,FALSE),F822)","v":"Prêts hypothécaires assurés au cours de la période selon la période d’amortissement (en années) à l'initiation (%)"},{"$f":"IFERROR(VLOOKUP(G822,Translation!$A:$C,3,FALSE),G822)","v":"7.5"},{"$f":"IFERROR(VLOOKUP(H822,Translation!$A:$C,3,FALSE),H822)","v":" > 10 <= 15"}]
[10,"T1 2017","ASSURANCE DE PORTEFEUILLE","> 15 <= 20",6.806567023895048,"Prêts hypothécaires assurés au cours de la période selon la période d’amortissement (en années) à l'initiation (%)","6.8"," > 15 <= 20",{"$f":"IFERROR(VLOOKUP(A823,Translation!$A:$C,3,FALSE),A823)","v":10},{"$f":"IFERROR(VLOOKUP(B823,Translation!$A:$C,3,FALSE),B823)","v":"T1 2017"},{"$f":"IFERROR(VLOOKUP(C823,Translation!$A:$C,3,FALSE),C823)","v":"ASSURANCE DE PORTEFEUILLE"},{"$f":"IFERROR(VLOOKUP(D823,Translation!$A:$C,3,FALSE),D823)","v":"> 15 <= 20"},{"$f":"IFERROR(VLOOKUP(E823,Translation!$A:$C,3,FALSE),E823)","v":6.806567023895048},{"$f":"IFERROR(VLOOKUP(F823,Translation!$A:$C,3,FALSE),F823)","v":"Prêts hypothécaires assurés au cours de la période selon la période d’amortissement (en années) à l'initiation (%)"},{"$f":"IFERROR(VLOOKUP(G823,Translation!$A:$C,3,FALSE),G823)","v":"6.8"},{"$f":"IFERROR(VLOOKUP(H823,Translation!$A:$C,3,FALSE),H823)","v":" > 15 <= 20"}]
[10,"T1 2018","ASSURANCE DE PORTEFEUILLE","> 15 <= 20",14.716749631331973,"Prêts hypothécaires assurés au cours de la période selon la période d’amortissement (en années) à l'initiation (%)","14.7"," > 15 <= 20",{"$f":"IFERROR(VLOOKUP(A824,Translation!$A:$C,3,FALSE),A824)","v":10},{"$f":"IFERROR(VLOOKUP(B824,Translation!$A:$C,3,FALSE),B824)","v":"T1 2018"},{"$f":"IFERROR(VLOOKUP(C824,Translation!$A:$C,3,FALSE),C824)","v":"ASSURANCE DE PORTEFEUILLE"},{"$f":"IFERROR(VLOOKUP(D824,Translation!$A:$C,3,FALSE),D824)","v":"> 15 <= 20"},{"$f":"IFERROR(VLOOKUP(E824,Translation!$A:$C,3,FALSE),E824)","v":14.716749631331973},{"$f":"IFERROR(VLOOKUP(F824,Translation!$A:$C,3,FALSE),F824)","v":"Prêts hypothécaires assurés au cours de la période selon la période d’amortissement (en années) à l'initiation (%)"},{"$f":"IFERROR(VLOOKUP(G824,Translation!$A:$C,3,FALSE),G824)","v":"14.7"},{"$f":"IFERROR(VLOOKUP(H824,Translation!$A:$C,3,FALSE),H824)","v":" > 15 <= 20"}]
[10,"Q2 2016","ASSURANCE DE PORTEFEUILLE","> 15 <= 20",8.6006398397522439,"Prêts hypothécaires assurés au cours de la période selon la période d’amortissement (en années) à l'initiation (%)","8.6"," > 15 <= 20",{"$f":"IFERROR(VLOOKUP(A825,Translation!$A:$C,3,FALSE),A825)","v":10},{"$f":"IFERROR(VLOOKUP(B825,Translation!$A:$C,3,FALSE),B825)","v":"Q2 2016"},{"$f":"IFERROR(VLOOKUP(C825,Translation!$A:$C,3,FALSE),C825)","v":"ASSURANCE DE PORTEFEUILLE"},{"$f":"IFERROR(VLOOKUP(D825,Translation!$A:$C,3,FALSE),D825)","v":"> 15 <= 20"},{"$f":"IFERROR(VLOOKUP(E825,Translation!$A:$C,3,FALSE),E825)","v":8.6006398397522439},{"$f":"IFERROR(VLOOKUP(F825,Translation!$A:$C,3,FALSE),F825)","v":"Prêts hypothécaires assurés au cours de la période selon la période d’amortissement (en années) à l'initiation (%)"},{"$f":"IFERROR(VLOOKUP(G825,Translation!$A:$C,3,FALSE),G825)","v":"8.6"},{"$f":"IFERROR(VLOOKUP(H825,Translation!$A:$C,3,FALSE),H825)","v":" > 15 <= 20"}]
[10,"T2 2017","ASSURANCE DE PORTEFEUILLE","> 15 <= 20",17.266612452652186,"Prêts hypothécaires assurés au cours de la période selon la période d’amortissement (en années) à l'initiation (%)","17.3"," > 15 <= 20",{"$f":"IFERROR(VLOOKUP(A826,Translation!$A:$C,3,FALSE),A826)","v":10},{"$f":"IFERROR(VLOOKUP(B826,Translation!$A:$C,3,FALSE),B826)","v":"T2 2017"},{"$f":"IFERROR(VLOOKUP(C826,Translation!$A:$C,3,FALSE),C826)","v":"ASSURANCE DE PORTEFEUILLE"},{"$f":"IFERROR(VLOOKUP(D826,Translation!$A:$C,3,FALSE),D826)","v":"> 15 <= 20"},{"$f":"IFERROR(VLOOKUP(E826,Translation!$A:$C,3,FALSE),E826)","v":17.266612452652186},{"$f":"IFERROR(VLOOKUP(F826,Translation!$A:$C,3,FALSE),F826)","v":"Prêts hypothécaires assurés au cours de la période selon la période d’amortissement (en années) à l'initiation (%)"},{"$f":"IFERROR(VLOOKUP(G826,Translation!$A:$C,3,FALSE),G826)","v":"17.3"},{"$f":"IFERROR(VLOOKUP(H826,Translation!$A:$C,3,FALSE),H826)","v":" > 15 <= 20"}]
[10,"Q3 2016","ASSURANCE DE PORTEFEUILLE","> 15 <= 20",9.1857879596108223,"Prêts hypothécaires assurés au cours de la période selon la période d’amortissement (en années) à l'initiation (%)","9.2"," > 15 <= 20",{"$f":"IFERROR(VLOOKUP(A827,Translation!$A:$C,3,FALSE),A827)","v":10},{"$f":"IFERROR(VLOOKUP(B827,Translation!$A:$C,3,FALSE),B827)","v":"Q3 2016"},{"$f":"IFERROR(VLOOKUP(C827,Translation!$A:$C,3,FALSE),C827)","v":"ASSURANCE DE PORTEFEUILLE"},{"$f":"IFERROR(VLOOKUP(D827,Translation!$A:$C,3,FALSE),D827)","v":"> 15 <= 20"},{"$f":"IFERROR(VLOOKUP(E827,Translation!$A:$C,3,FALSE),E827)","v":9.1857879596108223},{"$f":"IFERROR(VLOOKUP(F827,Translation!$A:$C,3,FALSE),F827)","v":"Prêts hypothécaires assurés au cours de la période selon la période d’amortissement (en années) à l'initiation (%)"},{"$f":"IFERROR(VLOOKUP(G827,Translation!$A:$C,3,FALSE),G827)","v":"9.2"},{"$f":"IFERROR(VLOOKUP(H827,Translation!$A:$C,3,FALSE),H827)","v":" > 15 <= 20"}]
[10,"T3 2017","ASSURANCE DE PORTEFEUILLE","> 15 <= 20",8.0458110402666723,"Prêts hypothécaires assurés au cours de la période selon la période d’amortissement (en années) à l'initiation (%)","8.0"," > 15 <= 20",{"$f":"IFERROR(VLOOKUP(A828,Translation!$A:$C,3,FALSE),A828)","v":10},{"$f":"IFERROR(VLOOKUP(B828,Translation!$A:$C,3,FALSE),B828)","v":"T3 2017"},{"$f":"IFERROR(VLOOKUP(C828,Translation!$A:$C,3,FALSE),C828)","v":"ASSURANCE DE PORTEFEUILLE"},{"$f":"IFERROR(VLOOKUP(D828,Translation!$A:$C,3,FALSE),D828)","v":"> 15 <= 20"},{"$f":"IFERROR(VLOOKUP(E828,Translation!$A:$C,3,FALSE),E828)","v":8.0458110402666723},{"$f":"IFERROR(VLOOKUP(F828,Translation!$A:$C,3,FALSE),F828)","v":"Prêts hypothécaires assurés au cours de la période selon la période d’amortissement (en années) à l'initiation (%)"},{"$f":"IFERROR(VLOOKUP(G828,Translation!$A:$C,3,FALSE),G828)","v":"8.0"},{"$f":"IFERROR(VLOOKUP(H828,Translation!$A:$C,3,FALSE),H828)","v":" > 15 <= 20"}]
[10,"Q4 2016","ASSURANCE DE PORTEFEUILLE","> 15 <= 20",13.561994016564512,"Prêts hypothécaires assurés au cours de la période selon la période d’amortissement (en années) à l'initiation (%)","13.6"," > 15 <= 20",{"$f":"IFERROR(VLOOKUP(A829,Translation!$A:$C,3,FALSE),A829)","v":10},{"$f":"IFERROR(VLOOKUP(B829,Translation!$A:$C,3,FALSE),B829)","v":"Q4 2016"},{"$f":"IFERROR(VLOOKUP(C829,Translation!$A:$C,3,FALSE),C829)","v":"ASSURANCE DE PORTEFEUILLE"},{"$f":"IFERROR(VLOOKUP(D829,Translation!$A:$C,3,FALSE),D829)","v":"> 15 <= 20"},{"$f":"IFERROR(VLOOKUP(E829,Translation!$A:$C,3,FALSE),E829)","v":13.561994016564512},{"$f":"IFERROR(VLOOKUP(F829,Translation!$A:$C,3,FALSE),F829)","v":"Prêts hypothécaires assurés au cours de la période selon la période d’amortissement (en années) à l'initiation (%)"},{"$f":"IFERROR(VLOOKUP(G829,Translation!$A:$C,3,FALSE),G829)","v":"13.6"},{"$f":"IFERROR(VLOOKUP(H829,Translation!$A:$C,3,FALSE),H829)","v":" > 15 <= 20"}]
[10,"T4 2017","ASSURANCE DE PORTEFEUILLE","> 15 <= 20",17.530145777089871,"Prêts hypothécaires assurés au cours de la période selon la période d’amortissement (en années) à l'initiation (%)","17.5"," > 15 <= 20",{"$f":"IFERROR(VLOOKUP(A830,Translation!$A:$C,3,FALSE),A830)","v":10},{"$f":"IFERROR(VLOOKUP(B830,Translation!$A:$C,3,FALSE),B830)","v":"T4 2017"},{"$f":"IFERROR(VLOOKUP(C830,Translation!$A:$C,3,FALSE),C830)","v":"ASSURANCE DE PORTEFEUILLE"},{"$f":"IFERROR(VLOOKUP(D830,Translation!$A:$C,3,FALSE),D830)","v":"> 15 <= 20"},{"$f":"IFERROR(VLOOKUP(E830,Translation!$A:$C,3,FALSE),E830)","v":17.530145777089871},{"$f":"IFERROR(VLOOKUP(F830,Translation!$A:$C,3,FALSE),F830)","v":"Prêts hypothécaires assurés au cours de la période selon la période d’amortissement (en années) à l'initiation (%)"},{"$f":"IFERROR(VLOOKUP(G830,Translation!$A:$C,3,FALSE),G830)","v":"17.5"},{"$f":"IFERROR(VLOOKUP(H830,Translation!$A:$C,3,FALSE),H830)","v":" > 15 <= 20"}]
[10,"T1 2017","ASSURANCE DE PORTEFEUILLE","> 20 <= 25",40.631481604289718,"Prêts hypothécaires assurés au cours de la période selon la période d’amortissement (en années) à l'initiation (%)","40.6"," > 20 <= 25",{"$f":"IFERROR(VLOOKUP(A831,Translation!$A:$C,3,FALSE),A831)","v":10},{"$f":"IFERROR(VLOOKUP(B831,Translation!$A:$C,3,FALSE),B831)","v":"T1 2017"},{"$f":"IFERROR(VLOOKUP(C831,Translation!$A:$C,3,FALSE),C831)","v":"ASSURANCE DE PORTEFEUILLE"},{"$f":"IFERROR(VLOOKUP(D831,Translation!$A:$C,3,FALSE),D831)","v":"> 20 <= 25"},{"$f":"IFERROR(VLOOKUP(E831,Translation!$A:$C,3,FALSE),E831)","v":40.631481604289718},{"$f":"IFERROR(VLOOKUP(F831,Translation!$A:$C,3,FALSE),F831)","v":"Prêts hypothécaires assurés au cours de la période selon la période d’amortissement (en années) à l'initiation (%)"},{"$f":"IFERROR(VLOOKUP(G831,Translation!$A:$C,3,FALSE),G831)","v":"40.6"},{"$f":"IFERROR(VLOOKUP(H831,Translation!$A:$C,3,FALSE),H831)","v":" > 20 <= 25"}]
[10,"T1 2018","ASSURANCE DE PORTEFEUILLE","> 20 <= 25",64.270302608084961,"Prêts hypothécaires assurés au cours de la période selon la période d’amortissement (en années) à l'initiation (%)","64.3"," > 20 <= 25",{"$f":"IFERROR(VLOOKUP(A832,Translation!$A:$C,3,FALSE),A832)","v":10},{"$f":"IFERROR(VLOOKUP(B832,Translation!$A:$C,3,FALSE),B832)","v":"T1 2018"},{"$f":"IFERROR(VLOOKUP(C832,Translation!$A:$C,3,FALSE),C832)","v":"ASSURANCE DE PORTEFEUILLE"},{"$f":"IFERROR(VLOOKUP(D832,Translation!$A:$C,3,FALSE),D832)","v":"> 20 <= 25"},{"$f":"IFERROR(VLOOKUP(E832,Translation!$A:$C,3,FALSE),E832)","v":64.270302608084961},{"$f":"IFERROR(VLOOKUP(F832,Translation!$A:$C,3,FALSE),F832)","v":"Prêts hypothécaires assurés au cours de la période selon la période d’amortissement (en années) à l'initiation (%)"},{"$f":"IFERROR(VLOOKUP(G832,Translation!$A:$C,3,FALSE),G832)","v":"64.3"},{"$f":"IFERROR(VLOOKUP(H832,Translation!$A:$C,3,FALSE),H832)","v":" > 20 <= 25"}]
[10,"Q2 2016","ASSURANCE DE PORTEFEUILLE","> 20 <= 25",30.738609092409561,"Prêts hypothécaires assurés au cours de la période selon la période d’amortissement (en années) à l'initiation (%)","30.7"," > 20 <= 25",{"$f":"IFERROR(VLOOKUP(A833,Translation!$A:$C,3,FALSE),A833)","v":10},{"$f":"IFERROR(VLOOKUP(B833,Translation!$A:$C,3,FALSE),B833)","v":"Q2 2016"},{"$f":"IFERROR(VLOOKUP(C833,Translation!$A:$C,3,FALSE),C833)","v":"ASSURANCE DE PORTEFEUILLE"},{"$f":"IFERROR(VLOOKUP(D833,Translation!$A:$C,3,FALSE),D833)","v":"> 20 <= 25"},{"$f":"IFERROR(VLOOKUP(E833,Translation!$A:$C,3,FALSE),E833)","v":30.738609092409561},{"$f":"IFERROR(VLOOKUP(F833,Translation!$A:$C,3,FALSE),F833)","v":"Prêts hypothécaires assurés au cours de la période selon la période d’amortissement (en années) à l'initiation (%)"},{"$f":"IFERROR(VLOOKUP(G833,Translation!$A:$C,3,FALSE),G833)","v":"30.7"},{"$f":"IFERROR(VLOOKUP(H833,Translation!$A:$C,3,FALSE),H833)","v":" > 20 <= 25"}]
[10,"T2 2017","ASSURANCE DE PORTEFEUILLE","> 20 <= 25",34.559803910514454,"Prêts hypothécaires assurés au cours de la période selon la période d’amortissement (en années) à l'initiation (%)","34.6"," > 20 <= 25",{"$f":"IFERROR(VLOOKUP(A834,Translation!$A:$C,3,FALSE),A834)","v":10},{"$f":"IFERROR(VLOOKUP(B834,Translation!$A:$C,3,FALSE),B834)","v":"T2 2017"},{"$f":"IFERROR(VLOOKUP(C834,Translation!$A:$C,3,FALSE),C834)","v":"ASSURANCE DE PORTEFEUILLE"},{"$f":"IFERROR(VLOOKUP(D834,Translation!$A:$C,3,FALSE),D834)","v":"> 20 <= 25"},{"$f":"IFERROR(VLOOKUP(E834,Translation!$A:$C,3,FALSE),E834)","v":34.559803910514454},{"$f":"IFERROR(VLOOKUP(F834,Translation!$A:$C,3,FALSE),F834)","v":"Prêts hypothécaires assurés au cours de la période selon la période d’amortissement (en années) à l'initiation (%)"},{"$f":"IFERROR(VLOOKUP(G834,Translation!$A:$C,3,FALSE),G834)","v":"34.6"},{"$f":"IFERROR(VLOOKUP(H834,Translation!$A:$C,3,FALSE),H834)","v":" > 20 <= 25"}]
[10,"Q3 2016","ASSURANCE DE PORTEFEUILLE","> 20 <= 25",29.144211773553003,"Prêts hypothécaires assurés au cours de la période selon la période d’amortissement (en années) à l'initiation (%)","29.1"," > 20 <= 25",{"$f":"IFERROR(VLOOKUP(A835,Translation!$A:$C,3,FALSE),A835)","v":10},{"$f":"IFERROR(VLOOKUP(B835,Translation!$A:$C,3,FALSE),B835)","v":"Q3 2016"},{"$f":"IFERROR(VLOOKUP(C835,Translation!$A:$C,3,FALSE),C835)","v":"ASSURANCE DE PORTEFEUILLE"},{"$f":"IFERROR(VLOOKUP(D835,Translation!$A:$C,3,FALSE),D835)","v":"> 20 <= 25"},{"$f":"IFERROR(VLOOKUP(E835,Translation!$A:$C,3,FALSE),E835)","v":29.144211773553003},{"$f":"IFERROR(VLOOKUP(F835,Translation!$A:$C,3,FALSE),F835)","v":"Prêts hypothécaires assurés au cours de la période selon la période d’amortissement (en années) à l'initiation (%)"},{"$f":"IFERROR(VLOOKUP(G835,Translation!$A:$C,3,FALSE),G835)","v":"29.1"},{"$f":"IFERROR(VLOOKUP(H835,Translation!$A:$C,3,FALSE),H835)","v":" > 20 <= 25"}]
[10,"T3 2017","ASSURANCE DE PORTEFEUILLE","> 20 <= 25",76.305449196726229,"Prêts hypothécaires assurés au cours de la période selon la période d’amortissement (en années) à l'initiation (%)","76.3"," > 20 <= 25",{"$f":"IFERROR(VLOOKUP(A836,Translation!$A:$C,3,FALSE),A836)","v":10},{"$f":"IFERROR(VLOOKUP(B836,Translation!$A:$C,3,FALSE),B836)","v":"T3 2017"},{"$f":"IFERROR(VLOOKUP(C836,Translation!$A:$C,3,FALSE),C836)","v":"ASSURANCE DE PORTEFEUILLE"},{"$f":"IFERROR(VLOOKUP(D836,Translation!$A:$C,3,FALSE),D836)","v":"> 20 <= 25"},{"$f":"IFERROR(VLOOKUP(E836,Translation!$A:$C,3,FALSE),E836)","v":76.305449196726229},{"$f":"IFERROR(VLOOKUP(F836,Translation!$A:$C,3,FALSE),F836)","v":"Prêts hypothécaires assurés au cours de la période selon la période d’amortissement (en années) à l'initiation (%)"},{"$f":"IFERROR(VLOOKUP(G836,Translation!$A:$C,3,FALSE),G836)","v":"76.3"},{"$f":"IFERROR(VLOOKUP(H836,Translation!$A:$C,3,FALSE),H836)","v":" > 20 <= 25"}]
[10,"Q4 2016","ASSURANCE DE PORTEFEUILLE","> 20 <= 25",37.161848276042555,"Prêts hypothécaires assurés au cours de la période selon la période d’amortissement (en années) à l'initiation (%)","37.2"," > 20 <= 25",{"$f":"IFERROR(VLOOKUP(A837,Translation!$A:$C,3,FALSE),A837)","v":10},{"$f":"IFERROR(VLOOKUP(B837,Translation!$A:$C,3,FALSE),B837)","v":"Q4 2016"},{"$f":"IFERROR(VLOOKUP(C837,Translation!$A:$C,3,FALSE),C837)","v":"ASSURANCE DE PORTEFEUILLE"},{"$f":"IFERROR(VLOOKUP(D837,Translation!$A:$C,3,FALSE),D837)","v":"> 20 <= 25"},{"$f":"IFERROR(VLOOKUP(E837,Translation!$A:$C,3,FALSE),E837)","v":37.161848276042555},{"$f":"IFERROR(VLOOKUP(F837,Translation!$A:$C,3,FALSE),F837)","v":"Prêts hypothécaires assurés au cours de la période selon la période d’amortissement (en années) à l'initiation (%)"},{"$f":"IFERROR(VLOOKUP(G837,Translation!$A:$C,3,FALSE),G837)","v":"37.2"},{"$f":"IFERROR(VLOOKUP(H837,Translation!$A:$C,3,FALSE),H837)","v":" > 20 <= 25"}]
[10,"T4 2017","ASSURANCE DE PORTEFEUILLE","> 20 <= 25",56.25467436149669,"Prêts hypothécaires assurés au cours de la période selon la période d’amortissement (en années) à l'initiation (%)","56.3"," > 20 <= 25",{"$f":"IFERROR(VLOOKUP(A838,Translation!$A:$C,3,FALSE),A838)","v":10},{"$f":"IFERROR(VLOOKUP(B838,Translation!$A:$C,3,FALSE),B838)","v":"T4 2017"},{"$f":"IFERROR(VLOOKUP(C838,Translation!$A:$C,3,FALSE),C838)","v":"ASSURANCE DE PORTEFEUILLE"},{"$f":"IFERROR(VLOOKUP(D838,Translation!$A:$C,3,FALSE),D838)","v":"> 20 <= 25"},{"$f":"IFERROR(VLOOKUP(E838,Translation!$A:$C,3,FALSE),E838)","v":56.25467436149669},{"$f":"IFERROR(VLOOKUP(F838,Translation!$A:$C,3,FALSE),F838)","v":"Prêts hypothécaires assurés au cours de la période selon la période d’amortissement (en années) à l'initiation (%)"},{"$f":"IFERROR(VLOOKUP(G838,Translation!$A:$C,3,FALSE),G838)","v":"56.3"},{"$f":"IFERROR(VLOOKUP(H838,Translation!$A:$C,3,FALSE),H838)","v":" > 20 <= 25"}]
[10,"T1 2017","ASSURANCE DE PORTEFEUILLE","> 25 <= 30",49.948823966356883,"Prêts hypothécaires assurés au cours de la période selon la période d’amortissement (en années) à l'initiation (%)","49.9"," > 25 <= 30",{"$f":"IFERROR(VLOOKUP(A839,Translation!$A:$C,3,FALSE),A839)","v":10},{"$f":"IFERROR(VLOOKUP(B839,Translation!$A:$C,3,FALSE),B839)","v":"T1 2017"},{"$f":"IFERROR(VLOOKUP(C839,Translation!$A:$C,3,FALSE),C839)","v":"ASSURANCE DE PORTEFEUILLE"},{"$f":"IFERROR(VLOOKUP(D839,Translation!$A:$C,3,FALSE),D839)","v":"> 25 <= 30"},{"$f":"IFERROR(VLOOKUP(E839,Translation!$A:$C,3,FALSE),E839)","v":49.948823966356883},{"$f":"IFERROR(VLOOKUP(F839,Translation!$A:$C,3,FALSE),F839)","v":"Prêts hypothécaires assurés au cours de la période selon la période d’amortissement (en années) à l'initiation (%)"},{"$f":"IFERROR(VLOOKUP(G839,Translation!$A:$C,3,FALSE),G839)","v":"49.9"},{"$f":"IFERROR(VLOOKUP(H839,Translation!$A:$C,3,FALSE),H839)","v":" > 25 <= 30"}]
[10,"T1 2018","ASSURANCE DE PORTEFEUILLE","> 25 <= 30",8.1357157106735816,"Prêts hypothécaires assurés au cours de la période selon la période d’amortissement (en années) à l'initiation (%)","8.1"," > 25 <= 30",{"$f":"IFERROR(VLOOKUP(A840,Translation!$A:$C,3,FALSE),A840)","v":10},{"$f":"IFERROR(VLOOKUP(B840,Translation!$A:$C,3,FALSE),B840)","v":"T1 2018"},{"$f":"IFERROR(VLOOKUP(C840,Translation!$A:$C,3,FALSE),C840)","v":"ASSURANCE DE PORTEFEUILLE"},{"$f":"IFERROR(VLOOKUP(D840,Translation!$A:$C,3,FALSE),D840)","v":"> 25 <= 30"},{"$f":"IFERROR(VLOOKUP(E840,Translation!$A:$C,3,FALSE),E840)","v":8.1357157106735816},{"$f":"IFERROR(VLOOKUP(F840,Translation!$A:$C,3,FALSE),F840)","v":"Prêts hypothécaires assurés au cours de la période selon la période d’amortissement (en années) à l'initiation (%)"},{"$f":"IFERROR(VLOOKUP(G840,Translation!$A:$C,3,FALSE),G840)","v":"8.1"},{"$f":"IFERROR(VLOOKUP(H840,Translation!$A:$C,3,FALSE),H840)","v":" > 25 <= 30"}]
[10,"Q2 2016","ASSURANCE DE PORTEFEUILLE","> 25 <= 30",54.353272706599242,"Prêts hypothécaires assurés au cours de la période selon la période d’amortissement (en années) à l'initiation (%)","54.4"," > 25 <= 30",{"$f":"IFERROR(VLOOKUP(A841,Translation!$A:$C,3,FALSE),A841)","v":10},{"$f":"IFERROR(VLOOKUP(B841,Translation!$A:$C,3,FALSE),B841)","v":"Q2 2016"},{"$f":"IFERROR(VLOOKUP(C841,Translation!$A:$C,3,FALSE),C841)","v":"ASSURANCE DE PORTEFEUILLE"},{"$f":"IFERROR(VLOOKUP(D841,Translation!$A:$C,3,FALSE),D841)","v":"> 25 <= 30"},{"$f":"IFERROR(VLOOKUP(E841,Translation!$A:$C,3,FALSE),E841)","v":54.353272706599242},{"$f":"IFERROR(VLOOKUP(F841,Translation!$A:$C,3,FALSE),F841)","v":"Prêts hypothécaires assurés au cours de la période selon la période d’amortissement (en années) à l'initiation (%)"},{"$f":"IFERROR(VLOOKUP(G841,Translation!$A:$C,3,FALSE),G841)","v":"54.4"},{"$f":"IFERROR(VLOOKUP(H841,Translation!$A:$C,3,FALSE),H841)","v":" > 25 <= 30"}]
[10,"T2 2017","ASSURANCE DE PORTEFEUILLE","> 25 <= 30",46.926023573215822,"Prêts hypothécaires assurés au cours de la période selon la période d’amortissement (en années) à l'initiation (%)","46.9"," > 25 <= 30",{"$f":"IFERROR(VLOOKUP(A842,Translation!$A:$C,3,FALSE),A842)","v":10},{"$f":"IFERROR(VLOOKUP(B842,Translation!$A:$C,3,FALSE),B842)","v":"T2 2017"},{"$f":"IFERROR(VLOOKUP(C842,Translation!$A:$C,3,FALSE),C842)","v":"ASSURANCE DE PORTEFEUILLE"},{"$f":"IFERROR(VLOOKUP(D842,Translation!$A:$C,3,FALSE),D842)","v":"> 25 <= 30"},{"$f":"IFERROR(VLOOKUP(E842,Translation!$A:$C,3,FALSE),E842)","v":46.926023573215822},{"$f":"IFERROR(VLOOKUP(F842,Translation!$A:$C,3,FALSE),F842)","v":"Prêts hypothécaires assurés au cours de la période selon la période d’amortissement (en années) à l'initiation (%)"},{"$f":"IFERROR(VLOOKUP(G842,Translation!$A:$C,3,FALSE),G842)","v":"46.9"},{"$f":"IFERROR(VLOOKUP(H842,Translation!$A:$C,3,FALSE),H842)","v":" > 25 <= 30"}]
[10,"Q3 2016","ASSURANCE DE PORTEFEUILLE","> 25 <= 30",55.250610490440387,"Prêts hypothécaires assurés au cours de la période selon la période d’amortissement (en années) à l'initiation (%)","55.3"," > 25 <= 30",{"$f":"IFERROR(VLOOKUP(A843,Translation!$A:$C,3,FALSE),A843)","v":10},{"$f":"IFERROR(VLOOKUP(B843,Translation!$A:$C,3,FALSE),B843)","v":"Q3 2016"},{"$f":"IFERROR(VLOOKUP(C843,Translation!$A:$C,3,FALSE),C843)","v":"ASSURANCE DE PORTEFEUILLE"},{"$f":"IFERROR(VLOOKUP(D843,Translation!$A:$C,3,FALSE),D843)","v":"> 25 <= 30"},{"$f":"IFERROR(VLOOKUP(E843,Translation!$A:$C,3,FALSE),E843)","v":55.250610490440387},{"$f":"IFERROR(VLOOKUP(F843,Translation!$A:$C,3,FALSE),F843)","v":"Prêts hypothécaires assurés au cours de la période selon la période d’amortissement (en années) à l'initiation (%)"},{"$f":"IFERROR(VLOOKUP(G843,Translation!$A:$C,3,FALSE),G843)","v":"55.3"},{"$f":"IFERROR(VLOOKUP(H843,Translation!$A:$C,3,FALSE),H843)","v":" > 25 <= 30"}]
[10,"T3 2017","ASSURANCE DE PORTEFEUILLE","> 25 <= 30",12.630455970756151,"Prêts hypothécaires assurés au cours de la période selon la période d’amortissement (en années) à l'initiation (%)","12.6"," > 25 <= 30",{"$f":"IFERROR(VLOOKUP(A844,Translation!$A:$C,3,FALSE),A844)","v":10},{"$f":"IFERROR(VLOOKUP(B844,Translation!$A:$C,3,FALSE),B844)","v":"T3 2017"},{"$f":"IFERROR(VLOOKUP(C844,Translation!$A:$C,3,FALSE),C844)","v":"ASSURANCE DE PORTEFEUILLE"},{"$f":"IFERROR(VLOOKUP(D844,Translation!$A:$C,3,FALSE),D844)","v":"> 25 <= 30"},{"$f":"IFERROR(VLOOKUP(E844,Translation!$A:$C,3,FALSE),E844)","v":12.630455970756151},{"$f":"IFERROR(VLOOKUP(F844,Translation!$A:$C,3,FALSE),F844)","v":"Prêts hypothécaires assurés au cours de la période selon la période d’amortissement (en années) à l'initiation (%)"},{"$f":"IFERROR(VLOOKUP(G844,Translation!$A:$C,3,FALSE),G844)","v":"12.6"},{"$f":"IFERROR(VLOOKUP(H844,Translation!$A:$C,3,FALSE),H844)","v":" > 25 <= 30"}]
[10,"Q4 2016","ASSURANCE DE PORTEFEUILLE","> 25 <= 30",45.075569614359374,"Prêts hypothécaires assurés au cours de la période selon la période d’amortissement (en années) à l'initiation (%)","45.1"," > 25 <= 30",{"$f":"IFERROR(VLOOKUP(A845,Translation!$A:$C,3,FALSE),A845)","v":10},{"$f":"IFERROR(VLOOKUP(B845,Translation!$A:$C,3,FALSE),B845)","v":"Q4 2016"},{"$f":"IFERROR(VLOOKUP(C845,Translation!$A:$C,3,FALSE),C845)","v":"ASSURANCE DE PORTEFEUILLE"},{"$f":"IFERROR(VLOOKUP(D845,Translation!$A:$C,3,FALSE),D845)","v":"> 25 <= 30"},{"$f":"IFERROR(VLOOKUP(E845,Translation!$A:$C,3,FALSE),E845)","v":45.075569614359374},{"$f":"IFERROR(VLOOKUP(F845,Translation!$A:$C,3,FALSE),F845)","v":"Prêts hypothécaires assurés au cours de la période selon la période d’amortissement (en années) à l'initiation (%)"},{"$f":"IFERROR(VLOOKUP(G845,Translation!$A:$C,3,FALSE),G845)","v":"45.1"},{"$f":"IFERROR(VLOOKUP(H845,Translation!$A:$C,3,FALSE),H845)","v":" > 25 <= 30"}]
[10,"T4 2017","ASSURANCE DE PORTEFEUILLE","> 25 <= 30",10.751500498870538,"Prêts hypothécaires assurés au cours de la période selon la période d’amortissement (en années) à l'initiation (%)","10.8"," > 25 <= 30",{"$f":"IFERROR(VLOOKUP(A846,Translation!$A:$C,3,FALSE),A846)","v":10},{"$f":"IFERROR(VLOOKUP(B846,Translation!$A:$C,3,FALSE),B846)","v":"T4 2017"},{"$f":"IFERROR(VLOOKUP(C846,Translation!$A:$C,3,FALSE),C846)","v":"ASSURANCE DE PORTEFEUILLE"},{"$f":"IFERROR(VLOOKUP(D846,Translation!$A:$C,3,FALSE),D846)","v":"> 25 <= 30"},{"$f":"IFERROR(VLOOKUP(E846,Translation!$A:$C,3,FALSE),E846)","v":10.751500498870538},{"$f":"IFERROR(VLOOKUP(F846,Translation!$A:$C,3,FALSE),F846)","v":"Prêts hypothécaires assurés au cours de la période selon la période d’amortissement (en années) à l'initiation (%)"},{"$f":"IFERROR(VLOOKUP(G846,Translation!$A:$C,3,FALSE),G846)","v":"10.8"},{"$f":"IFERROR(VLOOKUP(H846,Translation!$A:$C,3,FALSE),H846)","v":" > 25 <= 30"}]
[10,"T1 2017","ASSURANCE DE PORTEFEUILLE","> 30 <= 35",0.43972689528024594,"Prêts hypothécaires assurés au cours de la période selon la période d’amortissement (en années) à l'initiation (%)","0.4"," > 30 <= 35",{"$f":"IFERROR(VLOOKUP(A847,Translation!$A:$C,3,FALSE),A847)","v":10},{"$f":"IFERROR(VLOOKUP(B847,Translation!$A:$C,3,FALSE),B847)","v":"T1 2017"},{"$f":"IFERROR(VLOOKUP(C847,Translation!$A:$C,3,FALSE),C847)","v":"ASSURANCE DE PORTEFEUILLE"},{"$f":"IFERROR(VLOOKUP(D847,Translation!$A:$C,3,FALSE),D847)","v":"> 30 <= 35"},{"$f":"IFERROR(VLOOKUP(E847,Translation!$A:$C,3,FALSE),E847)","v":0.43972689528024594},{"$f":"IFERROR(VLOOKUP(F847,Translation!$A:$C,3,FALSE),F847)","v":"Prêts hypothécaires assurés au cours de la période selon la période d’amortissement (en années) à l'initiation (%)"},{"$f":"IFERROR(VLOOKUP(G847,Translation!$A:$C,3,FALSE),G847)","v":"0.4"},{"$f":"IFERROR(VLOOKUP(H847,Translation!$A:$C,3,FALSE),H847)","v":" > 30 <= 35"}]
[10,"T1 2018","ASSURANCE DE PORTEFEUILLE","> 30 <= 35",0.25567558682123831,"Prêts hypothécaires assurés au cours de la période selon la période d’amortissement (en années) à l'initiation (%)","0.3"," > 30 <= 35",{"$f":"IFERROR(VLOOKUP(A848,Translation!$A:$C,3,FALSE),A848)","v":10},{"$f":"IFERROR(VLOOKUP(B848,Translation!$A:$C,3,FALSE),B848)","v":"T1 2018"},{"$f":"IFERROR(VLOOKUP(C848,Translation!$A:$C,3,FALSE),C848)","v":"ASSURANCE DE PORTEFEUILLE"},{"$f":"IFERROR(VLOOKUP(D848,Translation!$A:$C,3,FALSE),D848)","v":"> 30 <= 35"},{"$f":"IFERROR(VLOOKUP(E848,Translation!$A:$C,3,FALSE),E848)","v":0.25567558682123831},{"$f":"IFERROR(VLOOKUP(F848,Translation!$A:$C,3,FALSE),F848)","v":"Prêts hypothécaires assurés au cours de la période selon la période d’amortissement (en années) à l'initiation (%)"},{"$f":"IFERROR(VLOOKUP(G848,Translation!$A:$C,3,FALSE),G848)","v":"0.3"},{"$f":"IFERROR(VLOOKUP(H848,Translation!$A:$C,3,FALSE),H848)","v":" > 30 <= 35"}]
[10,"Q2 2016","ASSURANCE DE PORTEFEUILLE","> 30 <= 35",3.2663546621281792,"Prêts hypothécaires assurés au cours de la période selon la période d’amortissement (en années) à l'initiation (%)","3.3"," > 30 <= 35",{"$f":"IFERROR(VLOOKUP(A849,Translation!$A:$C,3,FALSE),A849)","v":10},{"$f":"IFERROR(VLOOKUP(B849,Translation!$A:$C,3,FALSE),B849)","v":"Q2 2016"},{"$f":"IFERROR(VLOOKUP(C849,Translation!$A:$C,3,FALSE),C849)","v":"ASSURANCE DE PORTEFEUILLE"},{"$f":"IFERROR(VLOOKUP(D849,Translation!$A:$C,3,FALSE),D849)","v":"> 30 <= 35"},{"$f":"IFERROR(VLOOKUP(E849,Translation!$A:$C,3,FALSE),E849)","v":3.2663546621281792},{"$f":"IFERROR(VLOOKUP(F849,Translation!$A:$C,3,FALSE),F849)","v":"Prêts hypothécaires assurés au cours de la période selon la période d’amortissement (en années) à l'initiation (%)"},{"$f":"IFERROR(VLOOKUP(G849,Translation!$A:$C,3,FALSE),G849)","v":"3.3"},{"$f":"IFERROR(VLOOKUP(H849,Translation!$A:$C,3,FALSE),H849)","v":" > 30 <= 35"}]
[10,"T2 2017","ASSURANCE DE PORTEFEUILLE","> 30 <= 35",0.3717107591757795,"Prêts hypothécaires assurés au cours de la période selon la période d’amortissement (en années) à l'initiation (%)","0.4"," > 30 <= 35",{"$f":"IFERROR(VLOOKUP(A850,Translation!$A:$C,3,FALSE),A850)","v":10},{"$f":"IFERROR(VLOOKUP(B850,Translation!$A:$C,3,FALSE),B850)","v":"T2 2017"},{"$f":"IFERROR(VLOOKUP(C850,Translation!$A:$C,3,FALSE),C850)","v":"ASSURANCE DE PORTEFEUILLE"},{"$f":"IFERROR(VLOOKUP(D850,Translation!$A:$C,3,FALSE),D850)","v":"> 30 <= 35"},{"$f":"IFERROR(VLOOKUP(E850,Translation!$A:$C,3,FALSE),E850)","v":0.3717107591757795},{"$f":"IFERROR(VLOOKUP(F850,Translation!$A:$C,3,FALSE),F850)","v":"Prêts hypothécaires assurés au cours de la période selon la période d’amortissement (en années) à l'initiation (%)"},{"$f":"IFERROR(VLOOKUP(G850,Translation!$A:$C,3,FALSE),G850)","v":"0.4"},{"$f":"IFERROR(VLOOKUP(H850,Translation!$A:$C,3,FALSE),H850)","v":" > 30 <= 35"}]
[10,"Q3 2016","ASSURANCE DE PORTEFEUILLE","> 30 <= 35",3.8393355836639969,"Prêts hypothécaires assurés au cours de la période selon la période d’amortissement (en années) à l'initiation (%)","3.8"," > 30 <= 35",{"$f":"IFERROR(VLOOKUP(A851,Translation!$A:$C,3,FALSE),A851)","v":10},{"$f":"IFERROR(VLOOKUP(B851,Translation!$A:$C,3,FALSE),B851)","v":"Q3 2016"},{"$f":"IFERROR(VLOOKUP(C851,Translation!$A:$C,3,FALSE),C851)","v":"ASSURANCE DE PORTEFEUILLE"},{"$f":"IFERROR(VLOOKUP(D851,Translation!$A:$C,3,FALSE),D851)","v":"> 30 <= 35"},{"$f":"IFERROR(VLOOKUP(E851,Translation!$A:$C,3,FALSE),E851)","v":3.8393355836639969},{"$f":"IFERROR(VLOOKUP(F851,Translation!$A:$C,3,FALSE),F851)","v":"Prêts hypothécaires assurés au cours de la période selon la période d’amortissement (en années) à l'initiation (%)"},{"$f":"IFERROR(VLOOKUP(G851,Translation!$A:$C,3,FALSE),G851)","v":"3.8"},{"$f":"IFERROR(VLOOKUP(H851,Translation!$A:$C,3,FALSE),H851)","v":" > 30 <= 35"}]
[10,"T3 2017","ASSURANCE DE PORTEFEUILLE","> 30 <= 35",0.12925618353402121,"Prêts hypothécaires assurés au cours de la période selon la période d’amortissement (en années) à l'initiation (%)","0.1"," > 30 <= 35",{"$f":"IFERROR(VLOOKUP(A852,Translation!$A:$C,3,FALSE),A852)","v":10},{"$f":"IFERROR(VLOOKUP(B852,Translation!$A:$C,3,FALSE),B852)","v":"T3 2017"},{"$f":"IFERROR(VLOOKUP(C852,Translation!$A:$C,3,FALSE),C852)","v":"ASSURANCE DE PORTEFEUILLE"},{"$f":"IFERROR(VLOOKUP(D852,Translation!$A:$C,3,FALSE),D852)","v":"> 30 <= 35"},{"$f":"IFERROR(VLOOKUP(E852,Translation!$A:$C,3,FALSE),E852)","v":0.12925618353402121},{"$f":"IFERROR(VLOOKUP(F852,Translation!$A:$C,3,FALSE),F852)","v":"Prêts hypothécaires assurés au cours de la période selon la période d’amortissement (en années) à l'initiation (%)"},{"$f":"IFERROR(VLOOKUP(G852,Translation!$A:$C,3,FALSE),G852)","v":"0.1"},{"$f":"IFERROR(VLOOKUP(H852,Translation!$A:$C,3,FALSE),H852)","v":" > 30 <= 35"}]
[10,"Q4 2016","ASSURANCE DE PORTEFEUILLE","> 30 <= 35",1.7212239937678429,"Prêts hypothécaires assurés au cours de la période selon la période d’amortissement (en années) à l'initiation (%)","1.7"," > 30 <= 35",{"$f":"IFERROR(VLOOKUP(A853,Translation!$A:$C,3,FALSE),A853)","v":10},{"$f":"IFERROR(VLOOKUP(B853,Translation!$A:$C,3,FALSE),B853)","v":"Q4 2016"},{"$f":"IFERROR(VLOOKUP(C853,Translation!$A:$C,3,FALSE),C853)","v":"ASSURANCE DE PORTEFEUILLE"},{"$f":"IFERROR(VLOOKUP(D853,Translation!$A:$C,3,FALSE),D853)","v":"> 30 <= 35"},{"$f":"IFERROR(VLOOKUP(E853,Translation!$A:$C,3,FALSE),E853)","v":1.7212239937678429},{"$f":"IFERROR(VLOOKUP(F853,Translation!$A:$C,3,FALSE),F853)","v":"Prêts hypothécaires assurés au cours de la période selon la période d’amortissement (en années) à l'initiation (%)"},{"$f":"IFERROR(VLOOKUP(G853,Translation!$A:$C,3,FALSE),G853)","v":"1.7"},{"$f":"IFERROR(VLOOKUP(H853,Translation!$A:$C,3,FALSE),H853)","v":" > 30 <= 35"}]
[10,"T4 2017","ASSURANCE DE PORTEFEUILLE","> 30 <= 35",3.4144583985712438,"Prêts hypothécaires assurés au cours de la période selon la période d’amortissement (en années) à l'initiation (%)","3.4"," > 30 <= 35",{"$f":"IFERROR(VLOOKUP(A854,Translation!$A:$C,3,FALSE),A854)","v":10},{"$f":"IFERROR(VLOOKUP(B854,Translation!$A:$C,3,FALSE),B854)","v":"T4 2017"},{"$f":"IFERROR(VLOOKUP(C854,Translation!$A:$C,3,FALSE),C854)","v":"ASSURANCE DE PORTEFEUILLE"},{"$f":"IFERROR(VLOOKUP(D854,Translation!$A:$C,3,FALSE),D854)","v":"> 30 <= 35"},{"$f":"IFERROR(VLOOKUP(E854,Translation!$A:$C,3,FALSE),E854)","v":3.4144583985712438},{"$f":"IFERROR(VLOOKUP(F854,Translation!$A:$C,3,FALSE),F854)","v":"Prêts hypothécaires assurés au cours de la période selon la période d’amortissement (en années) à l'initiation (%)"},{"$f":"IFERROR(VLOOKUP(G854,Translation!$A:$C,3,FALSE),G854)","v":"3.4"},{"$f":"IFERROR(VLOOKUP(H854,Translation!$A:$C,3,FALSE),H854)","v":" > 30 <= 35"}]
[10,"Q2 2016","ASSURANCE DE PORTEFEUILLE","> 35",0.18878577673346439,"Prêts hypothécaires assurés au cours de la période selon la période d’amortissement (en années) à l'initiation (%)","0.2"," > 35",{"$f":"IFERROR(VLOOKUP(A855,Translation!$A:$C,3,FALSE),A855)","v":10},{"$f":"IFERROR(VLOOKUP(B855,Translation!$A:$C,3,FALSE),B855)","v":"Q2 2016"},{"$f":"IFERROR(VLOOKUP(C855,Translation!$A:$C,3,FALSE),C855)","v":"ASSURANCE DE PORTEFEUILLE"},{"$f":"IFERROR(VLOOKUP(D855,Translation!$A:$C,3,FALSE),D855)","v":"> 35"},{"$f":"IFERROR(VLOOKUP(E855,Translation!$A:$C,3,FALSE),E855)","v":0.18878577673346439},{"$f":"IFERROR(VLOOKUP(F855,Translation!$A:$C,3,FALSE),F855)","v":"Prêts hypothécaires assurés au cours de la période selon la période d’amortissement (en années) à l'initiation (%)"},{"$f":"IFERROR(VLOOKUP(G855,Translation!$A:$C,3,FALSE),G855)","v":"0.2"},{"$f":"IFERROR(VLOOKUP(H855,Translation!$A:$C,3,FALSE),H855)","v":" > 35"}]
[10,"Q4 2016","ASSURANCE DE PORTEFEUILLE","> 35",8.5021785029500887E-3,"Prêts hypothécaires assurés au cours de la période selon la période d’amortissement (en années) à l'initiation (%)","0.0"," > 35",{"$f":"IFERROR(VLOOKUP(A856,Translation!$A:$C,3,FALSE),A856)","v":10},{"$f":"IFERROR(VLOOKUP(B856,Translation!$A:$C,3,FALSE),B856)","v":"Q4 2016"},{"$f":"IFERROR(VLOOKUP(C856,Translation!$A:$C,3,FALSE),C856)","v":"ASSURANCE DE PORTEFEUILLE"},{"$f":"IFERROR(VLOOKUP(D856,Translation!$A:$C,3,FALSE),D856)","v":"> 35"},{"$f":"IFERROR(VLOOKUP(E856,Translation!$A:$C,3,FALSE),E856)","v":8.5021785029500887E-3},{"$f":"IFERROR(VLOOKUP(F856,Translation!$A:$C,3,FALSE),F856)","v":"Prêts hypothécaires assurés au cours de la période selon la période d’amortissement (en années) à l'initiation (%)"},{"$f":"IFERROR(VLOOKUP(G856,Translation!$A:$C,3,FALSE),G856)","v":"0.0"},{"$f":"IFERROR(VLOOKUP(H856,Translation!$A:$C,3,FALSE),H856)","v":" > 35"}]
[10,"T4 2017","ASSURANCE DE PORTEFEUILLE","> 35",0.24634381599406957,"Prêts hypothécaires assurés au cours de la période selon la période d’amortissement (en années) à l'initiation (%)","0.2"," > 35",{"$f":"IFERROR(VLOOKUP(A857,Translation!$A:$C,3,FALSE),A857)","v":10},{"$f":"IFERROR(VLOOKUP(B857,Translation!$A:$C,3,FALSE),B857)","v":"T4 2017"},{"$f":"IFERROR(VLOOKUP(C857,Translation!$A:$C,3,FALSE),C857)","v":"ASSURANCE DE PORTEFEUILLE"},{"$f":"IFERROR(VLOOKUP(D857,Translation!$A:$C,3,FALSE),D857)","v":"> 35"},{"$f":"IFERROR(VLOOKUP(E857,Translation!$A:$C,3,FALSE),E857)","v":0.24634381599406957},{"$f":"IFERROR(VLOOKUP(F857,Translation!$A:$C,3,FALSE),F857)","v":"Prêts hypothécaires assurés au cours de la période selon la période d’amortissement (en années) à l'initiation (%)"},{"$f":"IFERROR(VLOOKUP(G857,Translation!$A:$C,3,FALSE),G857)","v":"0.2"},{"$f":"IFERROR(VLOOKUP(H857,Translation!$A:$C,3,FALSE),H857)","v":" > 35"}]
[10,"T1 2017","ASSURANCE DE PORTEFEUILLE","Période d’amortissement moyenne",26.361994424273316,"Prêts hypothécaires assurés au cours de la période selon la période d’amortissement (en années) à l'initiation (%)","26.4","Période d’amortissement moyenne",{"$f":"IFERROR(VLOOKUP(A858,Translation!$A:$C,3,FALSE),A858)","v":10},{"$f":"IFERROR(VLOOKUP(B858,Translation!$A:$C,3,FALSE),B858)","v":"T1 2017"},{"$f":"IFERROR(VLOOKUP(C858,Translation!$A:$C,3,FALSE),C858)","v":"ASSURANCE DE PORTEFEUILLE"},{"$f":"IFERROR(VLOOKUP(D858,Translation!$A:$C,3,FALSE),D858)","v":"Période d’amortissement moyenne"},{"$f":"IFERROR(VLOOKUP(E858,Translation!$A:$C,3,FALSE),E858)","v":26.361994424273316},{"$f":"IFERROR(VLOOKUP(F858,Translation!$A:$C,3,FALSE),F858)","v":"Prêts hypothécaires assurés au cours de la période selon la période d’amortissement (en années) à l'initiation (%)"},{"$f":"IFERROR(VLOOKUP(G858,Translation!$A:$C,3,FALSE),G858)","v":"26.4"},{"$f":"IFERROR(VLOOKUP(H858,Translation!$A:$C,3,FALSE),H858)","v":"Période d’amortissement moyenne"}]
[10,"T1 2018","ASSURANCE DE PORTEFEUILLE","Période d’amortissement moyenne",21.630856815758889,"Prêts hypothécaires assurés au cours de la période selon la période d’amortissement (en années) à l'initiation (%)","21.6","Période d’amortissement moyenne",{"$f":"IFERROR(VLOOKUP(A859,Translation!$A:$C,3,FALSE),A859)","v":10},{"$f":"IFERROR(VLOOKUP(B859,Translation!$A:$C,3,FALSE),B859)","v":"T1 2018"},{"$f":"IFERROR(VLOOKUP(C859,Translation!$A:$C,3,FALSE),C859)","v":"ASSURANCE DE PORTEFEUILLE"},{"$f":"IFERROR(VLOOKUP(D859,Translation!$A:$C,3,FALSE),D859)","v":"Période d’amortissement moyenne"},{"$f":"IFERROR(VLOOKUP(E859,Translation!$A:$C,3,FALSE),E859)","v":21.630856815758889},{"$f":"IFERROR(VLOOKUP(F859,Translation!$A:$C,3,FALSE),F859)","v":"Prêts hypothécaires assurés au cours de la période selon la période d’amortissement (en années) à l'initiation (%)"},{"$f":"IFERROR(VLOOKUP(G859,Translation!$A:$C,3,FALSE),G859)","v":"21.6"},{"$f":"IFERROR(VLOOKUP(H859,Translation!$A:$C,3,FALSE),H859)","v":"Période d’amortissement moyenne"}]
[10,"Q2 2016","ASSURANCE DE PORTEFEUILLE","Période d’amortissement moyenne",26.292598647278904,"Prêts hypothécaires assurés au cours de la période selon la période d’amortissement (en années) à l'initiation (%)","26.3","Période d’amortissement moyenne",{"$f":"IFERROR(VLOOKUP(A860,Translation!$A:$C,3,FALSE),A860)","v":10},{"$f":"IFERROR(VLOOKUP(B860,Translation!$A:$C,3,FALSE),B860)","v":"Q2 2016"},{"$f":"IFERROR(VLOOKUP(C860,Translation!$A:$C,3,FALSE),C860)","v":"ASSURANCE DE PORTEFEUILLE"},{"$f":"IFERROR(VLOOKUP(D860,Translation!$A:$C,3,FALSE),D860)","v":"Période d’amortissement moyenne"},{"$f":"IFERROR(VLOOKUP(E860,Translation!$A:$C,3,FALSE),E860)","v":26.292598647278904},{"$f":"IFERROR(VLOOKUP(F860,Translation!$A:$C,3,FALSE),F860)","v":"Prêts hypothécaires assurés au cours de la période selon la période d’amortissement (en années) à l'initiation (%)"},{"$f":"IFERROR(VLOOKUP(G860,Translation!$A:$C,3,FALSE),G860)","v":"26.3"},{"$f":"IFERROR(VLOOKUP(H860,Translation!$A:$C,3,FALSE),H860)","v":"Période d’amortissement moyenne"}]
[10,"T2 2017","ASSURANCE DE PORTEFEUILLE","Période d’amortissement moyenne",24.745077957325918,"Prêts hypothécaires assurés au cours de la période selon la période d’amortissement (en années) à l'initiation (%)","24.7","Période d’amortissement moyenne",{"$f":"IFERROR(VLOOKUP(A861,Translation!$A:$C,3,FALSE),A861)","v":10},{"$f":"IFERROR(VLOOKUP(B861,Translation!$A:$C,3,FALSE),B861)","v":"T2 2017"},{"$f":"IFERROR(VLOOKUP(C861,Translation!$A:$C,3,FALSE),C861)","v":"ASSURANCE DE PORTEFEUILLE"},{"$f":"IFERROR(VLOOKUP(D861,Translation!$A:$C,3,FALSE),D861)","v":"Période d’amortissement moyenne"},{"$f":"IFERROR(VLOOKUP(E861,Translation!$A:$C,3,FALSE),E861)","v":24.745077957325918},{"$f":"IFERROR(VLOOKUP(F861,Translation!$A:$C,3,FALSE),F861)","v":"Prêts hypothécaires assurés au cours de la période selon la période d’amortissement (en années) à l'initiation (%)"},{"$f":"IFERROR(VLOOKUP(G861,Translation!$A:$C,3,FALSE),G861)","v":"24.7"},{"$f":"IFERROR(VLOOKUP(H861,Translation!$A:$C,3,FALSE),H861)","v":"Période d’amortissement moyenne"}]
[10,"Q3 2016","ASSURANCE DE PORTEFEUILLE","Période d’amortissement moyenne",26.632248916053221,"Prêts hypothécaires assurés au cours de la période selon la période d’amortissement (en années) à l'initiation (%)","26.6","Période d’amortissement moyenne",{"$f":"IFERROR(VLOOKUP(A862,Translation!$A:$C,3,FALSE),A862)","v":10},{"$f":"IFERROR(VLOOKUP(B862,Translation!$A:$C,3,FALSE),B862)","v":"Q3 2016"},{"$f":"IFERROR(VLOOKUP(C862,Translation!$A:$C,3,FALSE),C862)","v":"ASSURANCE DE PORTEFEUILLE"},{"$f":"IFERROR(VLOOKUP(D862,Translation!$A:$C,3,FALSE),D862)","v":"Période d’amortissement moyenne"},{"$f":"IFERROR(VLOOKUP(E862,Translation!$A:$C,3,FALSE),E862)","v":26.632248916053221},{"$f":"IFERROR(VLOOKUP(F862,Translation!$A:$C,3,FALSE),F862)","v":"Prêts hypothécaires assurés au cours de la période selon la période d’amortissement (en années) à l'initiation (%)"},{"$f":"IFERROR(VLOOKUP(G862,Translation!$A:$C,3,FALSE),G862)","v":"26.6"},{"$f":"IFERROR(VLOOKUP(H862,Translation!$A:$C,3,FALSE),H862)","v":"Période d’amortissement moyenne"}]
[10,"T3 2017","ASSURANCE DE PORTEFEUILLE","Période d’amortissement moyenne",23.856214186825142,"Prêts hypothécaires assurés au cours de la période selon la période d’amortissement (en années) à l'initiation (%)","23.9","Période d’amortissement moyenne",{"$f":"IFERROR(VLOOKUP(A863,Translation!$A:$C,3,FALSE),A863)","v":10},{"$f":"IFERROR(VLOOKUP(B863,Translation!$A:$C,3,FALSE),B863)","v":"T3 2017"},{"$f":"IFERROR(VLOOKUP(C863,Translation!$A:$C,3,FALSE),C863)","v":"ASSURANCE DE PORTEFEUILLE"},{"$f":"IFERROR(VLOOKUP(D863,Translation!$A:$C,3,FALSE),D863)","v":"Période d’amortissement moyenne"},{"$f":"IFERROR(VLOOKUP(E863,Translation!$A:$C,3,FALSE),E863)","v":23.856214186825142},{"$f":"IFERROR(VLOOKUP(F863,Translation!$A:$C,3,FALSE),F863)","v":"Prêts hypothécaires assurés au cours de la période selon la période d’amortissement (en années) à l'initiation (%)"},{"$f":"IFERROR(VLOOKUP(G863,Translation!$A:$C,3,FALSE),G863)","v":"23.9"},{"$f":"IFERROR(VLOOKUP(H863,Translation!$A:$C,3,FALSE),H863)","v":"Période d’amortissement moyenne"}]
[10,"Q4 2016","ASSURANCE DE PORTEFEUILLE","Période d’amortissement moyenne",25.219323780926594,"Prêts hypothécaires assurés au cours de la période selon la période d’amortissement (en années) à l'initiation (%)","25.2","Période d’amortissement moyenne",{"$f":"IFERROR(VLOOKUP(A864,Translation!$A:$C,3,FALSE),A864)","v":10},{"$f":"IFERROR(VLOOKUP(B864,Translation!$A:$C,3,FALSE),B864)","v":"Q4 2016"},{"$f":"IFERROR(VLOOKUP(C864,Translation!$A:$C,3,FALSE),C864)","v":"ASSURANCE DE PORTEFEUILLE"},{"$f":"IFERROR(VLOOKUP(D864,Translation!$A:$C,3,FALSE),D864)","v":"Période d’amortissement moyenne"},{"$f":"IFERROR(VLOOKUP(E864,Translation!$A:$C,3,FALSE),E864)","v":25.219323780926594},{"$f":"IFERROR(VLOOKUP(F864,Translation!$A:$C,3,FALSE),F864)","v":"Prêts hypothécaires assurés au cours de la période selon la période d’amortissement (en années) à l'initiation (%)"},{"$f":"IFERROR(VLOOKUP(G864,Translation!$A:$C,3,FALSE),G864)","v":"25.2"},{"$f":"IFERROR(VLOOKUP(H864,Translation!$A:$C,3,FALSE),H864)","v":"Période d’amortissement moyenne"}]
[10,"T4 2017","ASSURANCE DE PORTEFEUILLE","Période d’amortissement moyenne",22.171342096733785,"Prêts hypothécaires assurés au cours de la période selon la période d’amortissement (en années) à l'initiation (%)","22.2","Période d’amortissement moyenne",{"$f":"IFERROR(VLOOKUP(A865,Translation!$A:$C,3,FALSE),A865)","v":10},{"$f":"IFERROR(VLOOKUP(B865,Translation!$A:$C,3,FALSE),B865)","v":"T4 2017"},{"$f":"IFERROR(VLOOKUP(C865,Translation!$A:$C,3,FALSE),C865)","v":"ASSURANCE DE PORTEFEUILLE"},{"$f":"IFERROR(VLOOKUP(D865,Translation!$A:$C,3,FALSE),D865)","v":"Période d’amortissement moyenne"},{"$f":"IFERROR(VLOOKUP(E865,Translation!$A:$C,3,FALSE),E865)","v":22.171342096733785},{"$f":"IFERROR(VLOOKUP(F865,Translation!$A:$C,3,FALSE),F865)","v":"Prêts hypothécaires assurés au cours de la période selon la période d’amortissement (en années) à l'initiation (%)"},{"$f":"IFERROR(VLOOKUP(G865,Translation!$A:$C,3,FALSE),G865)","v":"22.2"},{"$f":"IFERROR(VLOOKUP(H865,Translation!$A:$C,3,FALSE),H865)","v":"Période d’amortissement moyenne"}]
[10,"T1 2017","ASSURANCE DE PORTEFEUILLE","Terre-Neuve-et-Labrador",25.051672755760329,"Période d’amortissement moyenne selon la province","25.1","Terre-Neuve-et-Labrador",{"$f":"IFERROR(VLOOKUP(A866,Translation!$A:$C,3,FALSE),A866)","v":10},{"$f":"IFERROR(VLOOKUP(B866,Translation!$A:$C,3,FALSE),B866)","v":"T1 2017"},{"$f":"IFERROR(VLOOKUP(C866,Translation!$A:$C,3,FALSE),C866)","v":"ASSURANCE DE PORTEFEUILLE"},{"$f":"IFERROR(VLOOKUP(D866,Translation!$A:$C,3,FALSE),D866)","v":"Terre-Neuve-et-Labrador"},{"$f":"IFERROR(VLOOKUP(E866,Translation!$A:$C,3,FALSE),E866)","v":25.051672755760329},{"$f":"IFERROR(VLOOKUP(F866,Translation!$A:$C,3,FALSE),F866)","v":"Période d’amortissement moyenne selon la province"},{"$f":"IFERROR(VLOOKUP(G866,Translation!$A:$C,3,FALSE),G866)","v":"25.1"},{"$f":"IFERROR(VLOOKUP(H866,Translation!$A:$C,3,FALSE),H866)","v":"Terre-Neuve-et-Labrador"}]
[10,"T1 2017","ASSURANCE DE PORTEFEUILLE","Île-du-Prince-Édouard",28.25,"Période d’amortissement moyenne selon la province","28.3","Île-du-Prince-Édouard",{"$f":"IFERROR(VLOOKUP(A867,Translation!$A:$C,3,FALSE),A867)","v":10},{"$f":"IFERROR(VLOOKUP(B867,Translation!$A:$C,3,FALSE),B867)","v":"T1 2017"},{"$f":"IFERROR(VLOOKUP(C867,Translation!$A:$C,3,FALSE),C867)","v":"ASSURANCE DE PORTEFEUILLE"},{"$f":"IFERROR(VLOOKUP(D867,Translation!$A:$C,3,FALSE),D867)","v":"Île-du-Prince-Édouard"},{"$f":"IFERROR(VLOOKUP(E867,Translation!$A:$C,3,FALSE),E867)","v":28.25},{"$f":"IFERROR(VLOOKUP(F867,Translation!$A:$C,3,FALSE),F867)","v":"Période d’amortissement moyenne selon la province"},{"$f":"IFERROR(VLOOKUP(G867,Translation!$A:$C,3,FALSE),G867)","v":"28.3"},{"$f":"IFERROR(VLOOKUP(H867,Translation!$A:$C,3,FALSE),H867)","v":"Île-du-Prince-Édouard"}]
[10,"T1 2017","ASSURANCE DE PORTEFEUILLE","Nouvelle-Écosse",23.181844888807912,"Période d’amortissement moyenne selon la province","23.2","Nouvelle-Écosse",{"$f":"IFERROR(VLOOKUP(A868,Translation!$A:$C,3,FALSE),A868)","v":10},{"$f":"IFERROR(VLOOKUP(B868,Translation!$A:$C,3,FALSE),B868)","v":"T1 2017"},{"$f":"IFERROR(VLOOKUP(C868,Translation!$A:$C,3,FALSE),C868)","v":"ASSURANCE DE PORTEFEUILLE"},{"$f":"IFERROR(VLOOKUP(D868,Translation!$A:$C,3,FALSE),D868)","v":"Nouvelle-Écosse"},{"$f":"IFERROR(VLOOKUP(E868,Translation!$A:$C,3,FALSE),E868)","v":23.181844888807912},{"$f":"IFERROR(VLOOKUP(F868,Translation!$A:$C,3,FALSE),F868)","v":"Période d’amortissement moyenne selon la province"},{"$f":"IFERROR(VLOOKUP(G868,Translation!$A:$C,3,FALSE),G868)","v":"23.2"},{"$f":"IFERROR(VLOOKUP(H868,Translation!$A:$C,3,FALSE),H868)","v":"Nouvelle-Écosse"}]
[10,"T1 2017","ASSURANCE DE PORTEFEUILLE","Nouveau-Brunswick",22.432456767280556,"Période d’amortissement moyenne selon la province","22.4","Nouveau-Brunswick",{"$f":"IFERROR(VLOOKUP(A869,Translation!$A:$C,3,FALSE),A869)","v":10},{"$f":"IFERROR(VLOOKUP(B869,Translation!$A:$C,3,FALSE),B869)","v":"T1 2017"},{"$f":"IFERROR(VLOOKUP(C869,Translation!$A:$C,3,FALSE),C869)","v":"ASSURANCE DE PORTEFEUILLE"},{"$f":"IFERROR(VLOOKUP(D869,Translation!$A:$C,3,FALSE),D869)","v":"Nouveau-Brunswick"},{"$f":"IFERROR(VLOOKUP(E869,Translation!$A:$C,3,FALSE),E869)","v":22.432456767280556},{"$f":"IFERROR(VLOOKUP(F869,Translation!$A:$C,3,FALSE),F869)","v":"Période d’amortissement moyenne selon la province"},{"$f":"IFERROR(VLOOKUP(G869,Translation!$A:$C,3,FALSE),G869)","v":"22.4"},{"$f":"IFERROR(VLOOKUP(H869,Translation!$A:$C,3,FALSE),H869)","v":"Nouveau-Brunswick"}]
[10,"T1 2017","ASSURANCE DE PORTEFEUILLE","Québec",25.402310909424113,"Période d’amortissement moyenne selon la province","25.4","Québec",{"$f":"IFERROR(VLOOKUP(A870,Translation!$A:$C,3,FALSE),A870)","v":10},{"$f":"IFERROR(VLOOKUP(B870,Translation!$A:$C,3,FALSE),B870)","v":"T1 2017"},{"$f":"IFERROR(VLOOKUP(C870,Translation!$A:$C,3,FALSE),C870)","v":"ASSURANCE DE PORTEFEUILLE"},{"$f":"IFERROR(VLOOKUP(D870,Translation!$A:$C,3,FALSE),D870)","v":"Québec"},{"$f":"IFERROR(VLOOKUP(E870,Translation!$A:$C,3,FALSE),E870)","v":25.402310909424113},{"$f":"IFERROR(VLOOKUP(F870,Translation!$A:$C,3,FALSE),F870)","v":"Période d’amortissement moyenne selon la province"},{"$f":"IFERROR(VLOOKUP(G870,Translation!$A:$C,3,FALSE),G870)","v":"25.4"},{"$f":"IFERROR(VLOOKUP(H870,Translation!$A:$C,3,FALSE),H870)","v":"Québec"}]
[10,"T1 2017","ASSURANCE DE PORTEFEUILLE","Ontario",26.821097885333181,"Période d’amortissement moyenne selon la province","26.8","Ontario",{"$f":"IFERROR(VLOOKUP(A871,Translation!$A:$C,3,FALSE),A871)","v":10},{"$f":"IFERROR(VLOOKUP(B871,Translation!$A:$C,3,FALSE),B871)","v":"T1 2017"},{"$f":"IFERROR(VLOOKUP(C871,Translation!$A:$C,3,FALSE),C871)","v":"ASSURANCE DE PORTEFEUILLE"},{"$f":"IFERROR(VLOOKUP(D871,Translation!$A:$C,3,FALSE),D871)","v":"Ontario"},{"$f":"IFERROR(VLOOKUP(E871,Translation!$A:$C,3,FALSE),E871)","v":26.821097885333181},{"$f":"IFERROR(VLOOKUP(F871,Translation!$A:$C,3,FALSE),F871)","v":"Période d’amortissement moyenne selon la province"},{"$f":"IFERROR(VLOOKUP(G871,Translation!$A:$C,3,FALSE),G871)","v":"26.8"},{"$f":"IFERROR(VLOOKUP(H871,Translation!$A:$C,3,FALSE),H871)","v":"Ontario"}]
[10,"T1 2017","ASSURANCE DE PORTEFEUILLE","Manitoba",27.781230911535161,"Période d’amortissement moyenne selon la province","27.8","Manitoba",{"$f":"IFERROR(VLOOKUP(A872,Translation!$A:$C,3,FALSE),A872)","v":10},{"$f":"IFERROR(VLOOKUP(B872,Translation!$A:$C,3,FALSE),B872)","v":"T1 2017"},{"$f":"IFERROR(VLOOKUP(C872,Translation!$A:$C,3,FALSE),C872)","v":"ASSURANCE DE PORTEFEUILLE"},{"$f":"IFERROR(VLOOKUP(D872,Translation!$A:$C,3,FALSE),D872)","v":"Manitoba"},{"$f":"IFERROR(VLOOKUP(E872,Translation!$A:$C,3,FALSE),E872)","v":27.781230911535161},{"$f":"IFERROR(VLOOKUP(F872,Translation!$A:$C,3,FALSE),F872)","v":"Période d’amortissement moyenne selon la province"},{"$f":"IFERROR(VLOOKUP(G872,Translation!$A:$C,3,FALSE),G872)","v":"27.8"},{"$f":"IFERROR(VLOOKUP(H872,Translation!$A:$C,3,FALSE),H872)","v":"Manitoba"}]
[10,"T1 2017","ASSURANCE DE PORTEFEUILLE","Saskatchewan",24.968840275810155,"Période d’amortissement moyenne selon la province","25.0","Saskatchewan",{"$f":"IFERROR(VLOOKUP(A873,Translation!$A:$C,3,FALSE),A873)","v":10},{"$f":"IFERROR(VLOOKUP(B873,Translation!$A:$C,3,FALSE),B873)","v":"T1 2017"},{"$f":"IFERROR(VLOOKUP(C873,Translation!$A:$C,3,FALSE),C873)","v":"ASSURANCE DE PORTEFEUILLE"},{"$f":"IFERROR(VLOOKUP(D873,Translation!$A:$C,3,FALSE),D873)","v":"Saskatchewan"},{"$f":"IFERROR(VLOOKUP(E873,Translation!$A:$C,3,FALSE),E873)","v":24.968840275810155},{"$f":"IFERROR(VLOOKUP(F873,Translation!$A:$C,3,FALSE),F873)","v":"Période d’amortissement moyenne selon la province"},{"$f":"IFERROR(VLOOKUP(G873,Translation!$A:$C,3,FALSE),G873)","v":"25.0"},{"$f":"IFERROR(VLOOKUP(H873,Translation!$A:$C,3,FALSE),H873)","v":"Saskatchewan"}]
[10,"T1 2017","ASSURANCE DE PORTEFEUILLE","Alberta",24.986420892628985,"Période d’amortissement moyenne selon la province","25.0","Alberta",{"$f":"IFERROR(VLOOKUP(A874,Translation!$A:$C,3,FALSE),A874)","v":10},{"$f":"IFERROR(VLOOKUP(B874,Translation!$A:$C,3,FALSE),B874)","v":"T1 2017"},{"$f":"IFERROR(VLOOKUP(C874,Translation!$A:$C,3,FALSE),C874)","v":"ASSURANCE DE PORTEFEUILLE"},{"$f":"IFERROR(VLOOKUP(D874,Translation!$A:$C,3,FALSE),D874)","v":"Alberta"},{"$f":"IFERROR(VLOOKUP(E874,Translation!$A:$C,3,FALSE),E874)","v":24.986420892628985},{"$f":"IFERROR(VLOOKUP(F874,Translation!$A:$C,3,FALSE),F874)","v":"Période d’amortissement moyenne selon la province"},{"$f":"IFERROR(VLOOKUP(G874,Translation!$A:$C,3,FALSE),G874)","v":"25.0"},{"$f":"IFERROR(VLOOKUP(H874,Translation!$A:$C,3,FALSE),H874)","v":"Alberta"}]
[10,"T1 2017","ASSURANCE DE PORTEFEUILLE","Colombie-Britannique",27.336799952483592,"Période d’amortissement moyenne selon la province","27.3","Colombie-Britannique",{"$f":"IFERROR(VLOOKUP(A875,Translation!$A:$C,3,FALSE),A875)","v":10},{"$f":"IFERROR(VLOOKUP(B875,Translation!$A:$C,3,FALSE),B875)","v":"T1 2017"},{"$f":"IFERROR(VLOOKUP(C875,Translation!$A:$C,3,FALSE),C875)","v":"ASSURANCE DE PORTEFEUILLE"},{"$f":"IFERROR(VLOOKUP(D875,Translation!$A:$C,3,FALSE),D875)","v":"Colombie-Britannique"},{"$f":"IFERROR(VLOOKUP(E875,Translation!$A:$C,3,FALSE),E875)","v":27.336799952483592},{"$f":"IFERROR(VLOOKUP(F875,Translation!$A:$C,3,FALSE),F875)","v":"Période d’amortissement moyenne selon la province"},{"$f":"IFERROR(VLOOKUP(G875,Translation!$A:$C,3,FALSE),G875)","v":"27.3"},{"$f":"IFERROR(VLOOKUP(H875,Translation!$A:$C,3,FALSE),H875)","v":"Colombie-Britannique"}]
[10,"T1 2018","ASSURANCE DE PORTEFEUILLE","Terre-Neuve-et-Labrador",22,"Période d’amortissement moyenne selon la province","22.0","Terre-Neuve-et-Labrador",{"$f":"IFERROR(VLOOKUP(A876,Translation!$A:$C,3,FALSE),A876)","v":10},{"$f":"IFERROR(VLOOKUP(B876,Translation!$A:$C,3,FALSE),B876)","v":"T1 2018"},{"$f":"IFERROR(VLOOKUP(C876,Translation!$A:$C,3,FALSE),C876)","v":"ASSURANCE DE PORTEFEUILLE"},{"$f":"IFERROR(VLOOKUP(D876,Translation!$A:$C,3,FALSE),D876)","v":"Terre-Neuve-et-Labrador"},{"$f":"IFERROR(VLOOKUP(E876,Translation!$A:$C,3,FALSE),E876)","v":22},{"$f":"IFERROR(VLOOKUP(F876,Translation!$A:$C,3,FALSE),F876)","v":"Période d’amortissement moyenne selon la province"},{"$f":"IFERROR(VLOOKUP(G876,Translation!$A:$C,3,FALSE),G876)","v":"22.0"},{"$f":"IFERROR(VLOOKUP(H876,Translation!$A:$C,3,FALSE),H876)","v":"Terre-Neuve-et-Labrador"}]
[10,"T1 2018","ASSURANCE DE PORTEFEUILLE","Nouvelle-Écosse",21.675363685448676,"Période d’amortissement moyenne selon la province","21.7","Nouvelle-Écosse",{"$f":"IFERROR(VLOOKUP(A877,Translation!$A:$C,3,FALSE),A877)","v":10},{"$f":"IFERROR(VLOOKUP(B877,Translation!$A:$C,3,FALSE),B877)","v":"T1 2018"},{"$f":"IFERROR(VLOOKUP(C877,Translation!$A:$C,3,FALSE),C877)","v":"ASSURANCE DE PORTEFEUILLE"},{"$f":"IFERROR(VLOOKUP(D877,Translation!$A:$C,3,FALSE),D877)","v":"Nouvelle-Écosse"},{"$f":"IFERROR(VLOOKUP(E877,Translation!$A:$C,3,FALSE),E877)","v":21.675363685448676},{"$f":"IFERROR(VLOOKUP(F877,Translation!$A:$C,3,FALSE),F877)","v":"Période d’amortissement moyenne selon la province"},{"$f":"IFERROR(VLOOKUP(G877,Translation!$A:$C,3,FALSE),G877)","v":"21.7"},{"$f":"IFERROR(VLOOKUP(H877,Translation!$A:$C,3,FALSE),H877)","v":"Nouvelle-Écosse"}]
[10,"T1 2018","ASSURANCE DE PORTEFEUILLE","Nouveau-Brunswick",18.437825544085126,"Période d’amortissement moyenne selon la province","18.4","Nouveau-Brunswick",{"$f":"IFERROR(VLOOKUP(A878,Translation!$A:$C,3,FALSE),A878)","v":10},{"$f":"IFERROR(VLOOKUP(B878,Translation!$A:$C,3,FALSE),B878)","v":"T1 2018"},{"$f":"IFERROR(VLOOKUP(C878,Translation!$A:$C,3,FALSE),C878)","v":"ASSURANCE DE PORTEFEUILLE"},{"$f":"IFERROR(VLOOKUP(D878,Translation!$A:$C,3,FALSE),D878)","v":"Nouveau-Brunswick"},{"$f":"IFERROR(VLOOKUP(E878,Translation!$A:$C,3,FALSE),E878)","v":18.437825544085126},{"$f":"IFERROR(VLOOKUP(F878,Translation!$A:$C,3,FALSE),F878)","v":"Période d’amortissement moyenne selon la province"},{"$f":"IFERROR(VLOOKUP(G878,Translation!$A:$C,3,FALSE),G878)","v":"18.4"},{"$f":"IFERROR(VLOOKUP(H878,Translation!$A:$C,3,FALSE),H878)","v":"Nouveau-Brunswick"}]
[10,"T1 2018","ASSURANCE DE PORTEFEUILLE","Québec",19.729575162302183,"Période d’amortissement moyenne selon la province","19.7","Québec",{"$f":"IFERROR(VLOOKUP(A879,Translation!$A:$C,3,FALSE),A879)","v":10},{"$f":"IFERROR(VLOOKUP(B879,Translation!$A:$C,3,FALSE),B879)","v":"T1 2018"},{"$f":"IFERROR(VLOOKUP(C879,Translation!$A:$C,3,FALSE),C879)","v":"ASSURANCE DE PORTEFEUILLE"},{"$f":"IFERROR(VLOOKUP(D879,Translation!$A:$C,3,FALSE),D879)","v":"Québec"},{"$f":"IFERROR(VLOOKUP(E879,Translation!$A:$C,3,FALSE),E879)","v":19.729575162302183},{"$f":"IFERROR(VLOOKUP(F879,Translation!$A:$C,3,FALSE),F879)","v":"Période d’amortissement moyenne selon la province"},{"$f":"IFERROR(VLOOKUP(G879,Translation!$A:$C,3,FALSE),G879)","v":"19.7"},{"$f":"IFERROR(VLOOKUP(H879,Translation!$A:$C,3,FALSE),H879)","v":"Québec"}]
[10,"T1 2018","ASSURANCE DE PORTEFEUILLE","Ontario",21.072709013549012,"Période d’amortissement moyenne selon la province","21.1","Ontario",{"$f":"IFERROR(VLOOKUP(A880,Translation!$A:$C,3,FALSE),A880)","v":10},{"$f":"IFERROR(VLOOKUP(B880,Translation!$A:$C,3,FALSE),B880)","v":"T1 2018"},{"$f":"IFERROR(VLOOKUP(C880,Translation!$A:$C,3,FALSE),C880)","v":"ASSURANCE DE PORTEFEUILLE"},{"$f":"IFERROR(VLOOKUP(D880,Translation!$A:$C,3,FALSE),D880)","v":"Ontario"},{"$f":"IFERROR(VLOOKUP(E880,Translation!$A:$C,3,FALSE),E880)","v":21.072709013549012},{"$f":"IFERROR(VLOOKUP(F880,Translation!$A:$C,3,FALSE),F880)","v":"Période d’amortissement moyenne selon la province"},{"$f":"IFERROR(VLOOKUP(G880,Translation!$A:$C,3,FALSE),G880)","v":"21.1"},{"$f":"IFERROR(VLOOKUP(H880,Translation!$A:$C,3,FALSE),H880)","v":"Ontario"}]
[10,"T1 2018","ASSURANCE DE PORTEFEUILLE","Manitoba",20.52281236541986,"Période d’amortissement moyenne selon la province","20.5","Manitoba",{"$f":"IFERROR(VLOOKUP(A881,Translation!$A:$C,3,FALSE),A881)","v":10},{"$f":"IFERROR(VLOOKUP(B881,Translation!$A:$C,3,FALSE),B881)","v":"T1 2018"},{"$f":"IFERROR(VLOOKUP(C881,Translation!$A:$C,3,FALSE),C881)","v":"ASSURANCE DE PORTEFEUILLE"},{"$f":"IFERROR(VLOOKUP(D881,Translation!$A:$C,3,FALSE),D881)","v":"Manitoba"},{"$f":"IFERROR(VLOOKUP(E881,Translation!$A:$C,3,FALSE),E881)","v":20.52281236541986},{"$f":"IFERROR(VLOOKUP(F881,Translation!$A:$C,3,FALSE),F881)","v":"Période d’amortissement moyenne selon la province"},{"$f":"IFERROR(VLOOKUP(G881,Translation!$A:$C,3,FALSE),G881)","v":"20.5"},{"$f":"IFERROR(VLOOKUP(H881,Translation!$A:$C,3,FALSE),H881)","v":"Manitoba"}]
[10,"T1 2018","ASSURANCE DE PORTEFEUILLE","Saskatchewan",20.535715623540295,"Période d’amortissement moyenne selon la province","20.5","Saskatchewan",{"$f":"IFERROR(VLOOKUP(A882,Translation!$A:$C,3,FALSE),A882)","v":10},{"$f":"IFERROR(VLOOKUP(B882,Translation!$A:$C,3,FALSE),B882)","v":"T1 2018"},{"$f":"IFERROR(VLOOKUP(C882,Translation!$A:$C,3,FALSE),C882)","v":"ASSURANCE DE PORTEFEUILLE"},{"$f":"IFERROR(VLOOKUP(D882,Translation!$A:$C,3,FALSE),D882)","v":"Saskatchewan"},{"$f":"IFERROR(VLOOKUP(E882,Translation!$A:$C,3,FALSE),E882)","v":20.535715623540295},{"$f":"IFERROR(VLOOKUP(F882,Translation!$A:$C,3,FALSE),F882)","v":"Période d’amortissement moyenne selon la province"},{"$f":"IFERROR(VLOOKUP(G882,Translation!$A:$C,3,FALSE),G882)","v":"20.5"},{"$f":"IFERROR(VLOOKUP(H882,Translation!$A:$C,3,FALSE),H882)","v":"Saskatchewan"}]
[10,"T1 2018","ASSURANCE DE PORTEFEUILLE","Alberta",20.837366275710423,"Période d’amortissement moyenne selon la province","20.8","Alberta",{"$f":"IFERROR(VLOOKUP(A883,Translation!$A:$C,3,FALSE),A883)","v":10},{"$f":"IFERROR(VLOOKUP(B883,Translation!$A:$C,3,FALSE),B883)","v":"T1 2018"},{"$f":"IFERROR(VLOOKUP(C883,Translation!$A:$C,3,FALSE),C883)","v":"ASSURANCE DE PORTEFEUILLE"},{"$f":"IFERROR(VLOOKUP(D883,Translation!$A:$C,3,FALSE),D883)","v":"Alberta"},{"$f":"IFERROR(VLOOKUP(E883,Translation!$A:$C,3,FALSE),E883)","v":20.837366275710423},{"$f":"IFERROR(VLOOKUP(F883,Translation!$A:$C,3,FALSE),F883)","v":"Période d’amortissement moyenne selon la province"},{"$f":"IFERROR(VLOOKUP(G883,Translation!$A:$C,3,FALSE),G883)","v":"20.8"},{"$f":"IFERROR(VLOOKUP(H883,Translation!$A:$C,3,FALSE),H883)","v":"Alberta"}]
[10,"T1 2018","ASSURANCE DE PORTEFEUILLE","Colombie-Britannique",23.211564721871841,"Période d’amortissement moyenne selon la province","23.2","Colombie-Britannique",{"$f":"IFERROR(VLOOKUP(A884,Translation!$A:$C,3,FALSE),A884)","v":10},{"$f":"IFERROR(VLOOKUP(B884,Translation!$A:$C,3,FALSE),B884)","v":"T1 2018"},{"$f":"IFERROR(VLOOKUP(C884,Translation!$A:$C,3,FALSE),C884)","v":"ASSURANCE DE PORTEFEUILLE"},{"$f":"IFERROR(VLOOKUP(D884,Translation!$A:$C,3,FALSE),D884)","v":"Colombie-Britannique"},{"$f":"IFERROR(VLOOKUP(E884,Translation!$A:$C,3,FALSE),E884)","v":23.211564721871841},{"$f":"IFERROR(VLOOKUP(F884,Translation!$A:$C,3,FALSE),F884)","v":"Période d’amortissement moyenne selon la province"},{"$f":"IFERROR(VLOOKUP(G884,Translation!$A:$C,3,FALSE),G884)","v":"23.2"},{"$f":"IFERROR(VLOOKUP(H884,Translation!$A:$C,3,FALSE),H884)","v":"Colombie-Britannique"}]
[10,"Q2 2016","ASSURANCE DE PORTEFEUILLE","Terre-Neuve-et-Labrador",24.126092899329876,"Période d’amortissement moyenne selon la province","24.1","Terre-Neuve-et-Labrador",{"$f":"IFERROR(VLOOKUP(A885,Translation!$A:$C,3,FALSE),A885)","v":10},{"$f":"IFERROR(VLOOKUP(B885,Translation!$A:$C,3,FALSE),B885)","v":"Q2 2016"},{"$f":"IFERROR(VLOOKUP(C885,Translation!$A:$C,3,FALSE),C885)","v":"ASSURANCE DE PORTEFEUILLE"},{"$f":"IFERROR(VLOOKUP(D885,Translation!$A:$C,3,FALSE),D885)","v":"Terre-Neuve-et-Labrador"},{"$f":"IFERROR(VLOOKUP(E885,Translation!$A:$C,3,FALSE),E885)","v":24.126092899329876},{"$f":"IFERROR(VLOOKUP(F885,Translation!$A:$C,3,FALSE),F885)","v":"Période d’amortissement moyenne selon la province"},{"$f":"IFERROR(VLOOKUP(G885,Translation!$A:$C,3,FALSE),G885)","v":"24.1"},{"$f":"IFERROR(VLOOKUP(H885,Translation!$A:$C,3,FALSE),H885)","v":"Terre-Neuve-et-Labrador"}]
[10,"Q2 2016","ASSURANCE DE PORTEFEUILLE","Île-du-Prince-Édouard",23.426824686118753,"Période d’amortissement moyenne selon la province","23.4","Île-du-Prince-Édouard",{"$f":"IFERROR(VLOOKUP(A886,Translation!$A:$C,3,FALSE),A886)","v":10},{"$f":"IFERROR(VLOOKUP(B886,Translation!$A:$C,3,FALSE),B886)","v":"Q2 2016"},{"$f":"IFERROR(VLOOKUP(C886,Translation!$A:$C,3,FALSE),C886)","v":"ASSURANCE DE PORTEFEUILLE"},{"$f":"IFERROR(VLOOKUP(D886,Translation!$A:$C,3,FALSE),D886)","v":"Île-du-Prince-Édouard"},{"$f":"IFERROR(VLOOKUP(E886,Translation!$A:$C,3,FALSE),E886)","v":23.426824686118753},{"$f":"IFERROR(VLOOKUP(F886,Translation!$A:$C,3,FALSE),F886)","v":"Période d’amortissement moyenne selon la province"},{"$f":"IFERROR(VLOOKUP(G886,Translation!$A:$C,3,FALSE),G886)","v":"23.4"},{"$f":"IFERROR(VLOOKUP(H886,Translation!$A:$C,3,FALSE),H886)","v":"Île-du-Prince-Édouard"}]
[10,"Q2 2016","ASSURANCE DE PORTEFEUILLE","Nouvelle-Écosse",23.870229671555855,"Période d’amortissement moyenne selon la province","23.9","Nouvelle-Écosse",{"$f":"IFERROR(VLOOKUP(A887,Translation!$A:$C,3,FALSE),A887)","v":10},{"$f":"IFERROR(VLOOKUP(B887,Translation!$A:$C,3,FALSE),B887)","v":"Q2 2016"},{"$f":"IFERROR(VLOOKUP(C887,Translation!$A:$C,3,FALSE),C887)","v":"ASSURANCE DE PORTEFEUILLE"},{"$f":"IFERROR(VLOOKUP(D887,Translation!$A:$C,3,FALSE),D887)","v":"Nouvelle-Écosse"},{"$f":"IFERROR(VLOOKUP(E887,Translation!$A:$C,3,FALSE),E887)","v":23.870229671555855},{"$f":"IFERROR(VLOOKUP(F887,Translation!$A:$C,3,FALSE),F887)","v":"Période d’amortissement moyenne selon la province"},{"$f":"IFERROR(VLOOKUP(G887,Translation!$A:$C,3,FALSE),G887)","v":"23.9"},{"$f":"IFERROR(VLOOKUP(H887,Translation!$A:$C,3,FALSE),H887)","v":"Nouvelle-Écosse"}]
[10,"Q2 2016","ASSURANCE DE PORTEFEUILLE","Nouveau-Brunswick",22.563063458838059,"Période d’amortissement moyenne selon la province","22.6","Nouveau-Brunswick",{"$f":"IFERROR(VLOOKUP(A888,Translation!$A:$C,3,FALSE),A888)","v":10},{"$f":"IFERROR(VLOOKUP(B888,Translation!$A:$C,3,FALSE),B888)","v":"Q2 2016"},{"$f":"IFERROR(VLOOKUP(C888,Translation!$A:$C,3,FALSE),C888)","v":"ASSURANCE DE PORTEFEUILLE"},{"$f":"IFERROR(VLOOKUP(D888,Translation!$A:$C,3,FALSE),D888)","v":"Nouveau-Brunswick"},{"$f":"IFERROR(VLOOKUP(E888,Translation!$A:$C,3,FALSE),E888)","v":22.563063458838059},{"$f":"IFERROR(VLOOKUP(F888,Translation!$A:$C,3,FALSE),F888)","v":"Période d’amortissement moyenne selon la province"},{"$f":"IFERROR(VLOOKUP(G888,Translation!$A:$C,3,FALSE),G888)","v":"22.6"},{"$f":"IFERROR(VLOOKUP(H888,Translation!$A:$C,3,FALSE),H888)","v":"Nouveau-Brunswick"}]
[10,"Q2 2016","ASSURANCE DE PORTEFEUILLE","Québec",25.181317611534759,"Période d’amortissement moyenne selon la province","25.2","Québec",{"$f":"IFERROR(VLOOKUP(A889,Translation!$A:$C,3,FALSE),A889)","v":10},{"$f":"IFERROR(VLOOKUP(B889,Translation!$A:$C,3,FALSE),B889)","v":"Q2 2016"},{"$f":"IFERROR(VLOOKUP(C889,Translation!$A:$C,3,FALSE),C889)","v":"ASSURANCE DE PORTEFEUILLE"},{"$f":"IFERROR(VLOOKUP(D889,Translation!$A:$C,3,FALSE),D889)","v":"Québec"},{"$f":"IFERROR(VLOOKUP(E889,Translation!$A:$C,3,FALSE),E889)","v":25.181317611534759},{"$f":"IFERROR(VLOOKUP(F889,Translation!$A:$C,3,FALSE),F889)","v":"Période d’amortissement moyenne selon la province"},{"$f":"IFERROR(VLOOKUP(G889,Translation!$A:$C,3,FALSE),G889)","v":"25.2"},{"$f":"IFERROR(VLOOKUP(H889,Translation!$A:$C,3,FALSE),H889)","v":"Québec"}]
[10,"Q2 2016","ASSURANCE DE PORTEFEUILLE","Ontario",26.553695602117877,"Période d’amortissement moyenne selon la province","26.6","Ontario",{"$f":"IFERROR(VLOOKUP(A890,Translation!$A:$C,3,FALSE),A890)","v":10},{"$f":"IFERROR(VLOOKUP(B890,Translation!$A:$C,3,FALSE),B890)","v":"Q2 2016"},{"$f":"IFERROR(VLOOKUP(C890,Translation!$A:$C,3,FALSE),C890)","v":"ASSURANCE DE PORTEFEUILLE"},{"$f":"IFERROR(VLOOKUP(D890,Translation!$A:$C,3,FALSE),D890)","v":"Ontario"},{"$f":"IFERROR(VLOOKUP(E890,Translation!$A:$C,3,FALSE),E890)","v":26.553695602117877},{"$f":"IFERROR(VLOOKUP(F890,Translation!$A:$C,3,FALSE),F890)","v":"Période d’amortissement moyenne selon la province"},{"$f":"IFERROR(VLOOKUP(G890,Translation!$A:$C,3,FALSE),G890)","v":"26.6"},{"$f":"IFERROR(VLOOKUP(H890,Translation!$A:$C,3,FALSE),H890)","v":"Ontario"}]
[10,"Q2 2016","ASSURANCE DE PORTEFEUILLE","Manitoba",24.88620552864516,"Période d’amortissement moyenne selon la province","24.9","Manitoba",{"$f":"IFERROR(VLOOKUP(A891,Translation!$A:$C,3,FALSE),A891)","v":10},{"$f":"IFERROR(VLOOKUP(B891,Translation!$A:$C,3,FALSE),B891)","v":"Q2 2016"},{"$f":"IFERROR(VLOOKUP(C891,Translation!$A:$C,3,FALSE),C891)","v":"ASSURANCE DE PORTEFEUILLE"},{"$f":"IFERROR(VLOOKUP(D891,Translation!$A:$C,3,FALSE),D891)","v":"Manitoba"},{"$f":"IFERROR(VLOOKUP(E891,Translation!$A:$C,3,FALSE),E891)","v":24.88620552864516},{"$f":"IFERROR(VLOOKUP(F891,Translation!$A:$C,3,FALSE),F891)","v":"Période d’amortissement moyenne selon la province"},{"$f":"IFERROR(VLOOKUP(G891,Translation!$A:$C,3,FALSE),G891)","v":"24.9"},{"$f":"IFERROR(VLOOKUP(H891,Translation!$A:$C,3,FALSE),H891)","v":"Manitoba"}]
[10,"Q2 2016","ASSURANCE DE PORTEFEUILLE","Saskatchewan",24.514165664804729,"Période d’amortissement moyenne selon la province","24.5","Saskatchewan",{"$f":"IFERROR(VLOOKUP(A892,Translation!$A:$C,3,FALSE),A892)","v":10},{"$f":"IFERROR(VLOOKUP(B892,Translation!$A:$C,3,FALSE),B892)","v":"Q2 2016"},{"$f":"IFERROR(VLOOKUP(C892,Translation!$A:$C,3,FALSE),C892)","v":"ASSURANCE DE PORTEFEUILLE"},{"$f":"IFERROR(VLOOKUP(D892,Translation!$A:$C,3,FALSE),D892)","v":"Saskatchewan"},{"$f":"IFERROR(VLOOKUP(E892,Translation!$A:$C,3,FALSE),E892)","v":24.514165664804729},{"$f":"IFERROR(VLOOKUP(F892,Translation!$A:$C,3,FALSE),F892)","v":"Période d’amortissement moyenne selon la province"},{"$f":"IFERROR(VLOOKUP(G892,Translation!$A:$C,3,FALSE),G892)","v":"24.5"},{"$f":"IFERROR(VLOOKUP(H892,Translation!$A:$C,3,FALSE),H892)","v":"Saskatchewan"}]
[10,"Q2 2016","ASSURANCE DE PORTEFEUILLE","Alberta",25.663240975950032,"Période d’amortissement moyenne selon la province","25.7","Alberta",{"$f":"IFERROR(VLOOKUP(A893,Translation!$A:$C,3,FALSE),A893)","v":10},{"$f":"IFERROR(VLOOKUP(B893,Translation!$A:$C,3,FALSE),B893)","v":"Q2 2016"},{"$f":"IFERROR(VLOOKUP(C893,Translation!$A:$C,3,FALSE),C893)","v":"ASSURANCE DE PORTEFEUILLE"},{"$f":"IFERROR(VLOOKUP(D893,Translation!$A:$C,3,FALSE),D893)","v":"Alberta"},{"$f":"IFERROR(VLOOKUP(E893,Translation!$A:$C,3,FALSE),E893)","v":25.663240975950032},{"$f":"IFERROR(VLOOKUP(F893,Translation!$A:$C,3,FALSE),F893)","v":"Période d’amortissement moyenne selon la province"},{"$f":"IFERROR(VLOOKUP(G893,Translation!$A:$C,3,FALSE),G893)","v":"25.7"},{"$f":"IFERROR(VLOOKUP(H893,Translation!$A:$C,3,FALSE),H893)","v":"Alberta"}]
[10,"Q2 2016","ASSURANCE DE PORTEFEUILLE","Colombie-Britannique",27.495039555830719,"Période d’amortissement moyenne selon la province","27.5","Colombie-Britannique",{"$f":"IFERROR(VLOOKUP(A894,Translation!$A:$C,3,FALSE),A894)","v":10},{"$f":"IFERROR(VLOOKUP(B894,Translation!$A:$C,3,FALSE),B894)","v":"Q2 2016"},{"$f":"IFERROR(VLOOKUP(C894,Translation!$A:$C,3,FALSE),C894)","v":"ASSURANCE DE PORTEFEUILLE"},{"$f":"IFERROR(VLOOKUP(D894,Translation!$A:$C,3,FALSE),D894)","v":"Colombie-Britannique"},{"$f":"IFERROR(VLOOKUP(E894,Translation!$A:$C,3,FALSE),E894)","v":27.495039555830719},{"$f":"IFERROR(VLOOKUP(F894,Translation!$A:$C,3,FALSE),F894)","v":"Période d’amortissement moyenne selon la province"},{"$f":"IFERROR(VLOOKUP(G894,Translation!$A:$C,3,FALSE),G894)","v":"27.5"},{"$f":"IFERROR(VLOOKUP(H894,Translation!$A:$C,3,FALSE),H894)","v":"Colombie-Britannique"}]
[10,"Q2 2016","ASSURANCE DE PORTEFEUILLE","Territoires",23.469777103650276,"Période d’amortissement moyenne selon la province","23.5","Territoires",{"$f":"IFERROR(VLOOKUP(A895,Translation!$A:$C,3,FALSE),A895)","v":10},{"$f":"IFERROR(VLOOKUP(B895,Translation!$A:$C,3,FALSE),B895)","v":"Q2 2016"},{"$f":"IFERROR(VLOOKUP(C895,Translation!$A:$C,3,FALSE),C895)","v":"ASSURANCE DE PORTEFEUILLE"},{"$f":"IFERROR(VLOOKUP(D895,Translation!$A:$C,3,FALSE),D895)","v":"Territoires"},{"$f":"IFERROR(VLOOKUP(E895,Translation!$A:$C,3,FALSE),E895)","v":23.469777103650276},{"$f":"IFERROR(VLOOKUP(F895,Translation!$A:$C,3,FALSE),F895)","v":"Période d’amortissement moyenne selon la province"},{"$f":"IFERROR(VLOOKUP(G895,Translation!$A:$C,3,FALSE),G895)","v":"23.5"},{"$f":"IFERROR(VLOOKUP(H895,Translation!$A:$C,3,FALSE),H895)","v":"Territoires"}]
[10,"T2 2017","ASSURANCE DE PORTEFEUILLE","Terre-Neuve-et-Labrador",25.655289894846376,"Période d’amortissement moyenne selon la province","25.7","Terre-Neuve-et-Labrador",{"$f":"IFERROR(VLOOKUP(A896,Translation!$A:$C,3,FALSE),A896)","v":10},{"$f":"IFERROR(VLOOKUP(B896,Translation!$A:$C,3,FALSE),B896)","v":"T2 2017"},{"$f":"IFERROR(VLOOKUP(C896,Translation!$A:$C,3,FALSE),C896)","v":"ASSURANCE DE PORTEFEUILLE"},{"$f":"IFERROR(VLOOKUP(D896,Translation!$A:$C,3,FALSE),D896)","v":"Terre-Neuve-et-Labrador"},{"$f":"IFERROR(VLOOKUP(E896,Translation!$A:$C,3,FALSE),E896)","v":25.655289894846376},{"$f":"IFERROR(VLOOKUP(F896,Translation!$A:$C,3,FALSE),F896)","v":"Période d’amortissement moyenne selon la province"},{"$f":"IFERROR(VLOOKUP(G896,Translation!$A:$C,3,FALSE),G896)","v":"25.7"},{"$f":"IFERROR(VLOOKUP(H896,Translation!$A:$C,3,FALSE),H896)","v":"Terre-Neuve-et-Labrador"}]
[10,"T2 2017","ASSURANCE DE PORTEFEUILLE","Île-du-Prince-Édouard",28.324502344579471,"Période d’amortissement moyenne selon la province","28.3","Île-du-Prince-Édouard",{"$f":"IFERROR(VLOOKUP(A897,Translation!$A:$C,3,FALSE),A897)","v":10},{"$f":"IFERROR(VLOOKUP(B897,Translation!$A:$C,3,FALSE),B897)","v":"T2 2017"},{"$f":"IFERROR(VLOOKUP(C897,Translation!$A:$C,3,FALSE),C897)","v":"ASSURANCE DE PORTEFEUILLE"},{"$f":"IFERROR(VLOOKUP(D897,Translation!$A:$C,3,FALSE),D897)","v":"Île-du-Prince-Édouard"},{"$f":"IFERROR(VLOOKUP(E897,Translation!$A:$C,3,FALSE),E897)","v":28.324502344579471},{"$f":"IFERROR(VLOOKUP(F897,Translation!$A:$C,3,FALSE),F897)","v":"Période d’amortissement moyenne selon la province"},{"$f":"IFERROR(VLOOKUP(G897,Translation!$A:$C,3,FALSE),G897)","v":"28.3"},{"$f":"IFERROR(VLOOKUP(H897,Translation!$A:$C,3,FALSE),H897)","v":"Île-du-Prince-Édouard"}]
[10,"T2 2017","ASSURANCE DE PORTEFEUILLE","Nouvelle-Écosse",25.022185352999657,"Période d’amortissement moyenne selon la province","25.0","Nouvelle-Écosse",{"$f":"IFERROR(VLOOKUP(A898,Translation!$A:$C,3,FALSE),A898)","v":10},{"$f":"IFERROR(VLOOKUP(B898,Translation!$A:$C,3,FALSE),B898)","v":"T2 2017"},{"$f":"IFERROR(VLOOKUP(C898,Translation!$A:$C,3,FALSE),C898)","v":"ASSURANCE DE PORTEFEUILLE"},{"$f":"IFERROR(VLOOKUP(D898,Translation!$A:$C,3,FALSE),D898)","v":"Nouvelle-Écosse"},{"$f":"IFERROR(VLOOKUP(E898,Translation!$A:$C,3,FALSE),E898)","v":25.022185352999657},{"$f":"IFERROR(VLOOKUP(F898,Translation!$A:$C,3,FALSE),F898)","v":"Période d’amortissement moyenne selon la province"},{"$f":"IFERROR(VLOOKUP(G898,Translation!$A:$C,3,FALSE),G898)","v":"25.0"},{"$f":"IFERROR(VLOOKUP(H898,Translation!$A:$C,3,FALSE),H898)","v":"Nouvelle-Écosse"}]
[10,"T2 2017","ASSURANCE DE PORTEFEUILLE","Nouveau-Brunswick",23.695691227252127,"Période d’amortissement moyenne selon la province","23.7","Nouveau-Brunswick",{"$f":"IFERROR(VLOOKUP(A899,Translation!$A:$C,3,FALSE),A899)","v":10},{"$f":"IFERROR(VLOOKUP(B899,Translation!$A:$C,3,FALSE),B899)","v":"T2 2017"},{"$f":"IFERROR(VLOOKUP(C899,Translation!$A:$C,3,FALSE),C899)","v":"ASSURANCE DE PORTEFEUILLE"},{"$f":"IFERROR(VLOOKUP(D899,Translation!$A:$C,3,FALSE),D899)","v":"Nouveau-Brunswick"},{"$f":"IFERROR(VLOOKUP(E899,Translation!$A:$C,3,FALSE),E899)","v":23.695691227252127},{"$f":"IFERROR(VLOOKUP(F899,Translation!$A:$C,3,FALSE),F899)","v":"Période d’amortissement moyenne selon la province"},{"$f":"IFERROR(VLOOKUP(G899,Translation!$A:$C,3,FALSE),G899)","v":"23.7"},{"$f":"IFERROR(VLOOKUP(H899,Translation!$A:$C,3,FALSE),H899)","v":"Nouveau-Brunswick"}]
[10,"T2 2017","ASSURANCE DE PORTEFEUILLE","Québec",20.988791061445237,"Période d’amortissement moyenne selon la province","21.0","Québec",{"$f":"IFERROR(VLOOKUP(A900,Translation!$A:$C,3,FALSE),A900)","v":10},{"$f":"IFERROR(VLOOKUP(B900,Translation!$A:$C,3,FALSE),B900)","v":"T2 2017"},{"$f":"IFERROR(VLOOKUP(C900,Translation!$A:$C,3,FALSE),C900)","v":"ASSURANCE DE PORTEFEUILLE"},{"$f":"IFERROR(VLOOKUP(D900,Translation!$A:$C,3,FALSE),D900)","v":"Québec"},{"$f":"IFERROR(VLOOKUP(E900,Translation!$A:$C,3,FALSE),E900)","v":20.988791061445237},{"$f":"IFERROR(VLOOKUP(F900,Translation!$A:$C,3,FALSE),F900)","v":"Période d’amortissement moyenne selon la province"},{"$f":"IFERROR(VLOOKUP(G900,Translation!$A:$C,3,FALSE),G900)","v":"21.0"},{"$f":"IFERROR(VLOOKUP(H900,Translation!$A:$C,3,FALSE),H900)","v":"Québec"}]
[10,"T2 2017","ASSURANCE DE PORTEFEUILLE","Ontario",27.398702304444239,"Période d’amortissement moyenne selon la province","27.4","Ontario",{"$f":"IFERROR(VLOOKUP(A901,Translation!$A:$C,3,FALSE),A901)","v":10},{"$f":"IFERROR(VLOOKUP(B901,Translation!$A:$C,3,FALSE),B901)","v":"T2 2017"},{"$f":"IFERROR(VLOOKUP(C901,Translation!$A:$C,3,FALSE),C901)","v":"ASSURANCE DE PORTEFEUILLE"},{"$f":"IFERROR(VLOOKUP(D901,Translation!$A:$C,3,FALSE),D901)","v":"Ontario"},{"$f":"IFERROR(VLOOKUP(E901,Translation!$A:$C,3,FALSE),E901)","v":27.398702304444239},{"$f":"IFERROR(VLOOKUP(F901,Translation!$A:$C,3,FALSE),F901)","v":"Période d’amortissement moyenne selon la province"},{"$f":"IFERROR(VLOOKUP(G901,Translation!$A:$C,3,FALSE),G901)","v":"27.4"},{"$f":"IFERROR(VLOOKUP(H901,Translation!$A:$C,3,FALSE),H901)","v":"Ontario"}]
[10,"T2 2017","ASSURANCE DE PORTEFEUILLE","Manitoba",25.506384530752158,"Période d’amortissement moyenne selon la province","25.5","Manitoba",{"$f":"IFERROR(VLOOKUP(A902,Translation!$A:$C,3,FALSE),A902)","v":10},{"$f":"IFERROR(VLOOKUP(B902,Translation!$A:$C,3,FALSE),B902)","v":"T2 2017"},{"$f":"IFERROR(VLOOKUP(C902,Translation!$A:$C,3,FALSE),C902)","v":"ASSURANCE DE PORTEFEUILLE"},{"$f":"IFERROR(VLOOKUP(D902,Translation!$A:$C,3,FALSE),D902)","v":"Manitoba"},{"$f":"IFERROR(VLOOKUP(E902,Translation!$A:$C,3,FALSE),E902)","v":25.506384530752158},{"$f":"IFERROR(VLOOKUP(F902,Translation!$A:$C,3,FALSE),F902)","v":"Période d’amortissement moyenne selon la province"},{"$f":"IFERROR(VLOOKUP(G902,Translation!$A:$C,3,FALSE),G902)","v":"25.5"},{"$f":"IFERROR(VLOOKUP(H902,Translation!$A:$C,3,FALSE),H902)","v":"Manitoba"}]
[10,"T2 2017","ASSURANCE DE PORTEFEUILLE","Saskatchewan",24.295142054579905,"Période d’amortissement moyenne selon la province","24.3","Saskatchewan",{"$f":"IFERROR(VLOOKUP(A903,Translation!$A:$C,3,FALSE),A903)","v":10},{"$f":"IFERROR(VLOOKUP(B903,Translation!$A:$C,3,FALSE),B903)","v":"T2 2017"},{"$f":"IFERROR(VLOOKUP(C903,Translation!$A:$C,3,FALSE),C903)","v":"ASSURANCE DE PORTEFEUILLE"},{"$f":"IFERROR(VLOOKUP(D903,Translation!$A:$C,3,FALSE),D903)","v":"Saskatchewan"},{"$f":"IFERROR(VLOOKUP(E903,Translation!$A:$C,3,FALSE),E903)","v":24.295142054579905},{"$f":"IFERROR(VLOOKUP(F903,Translation!$A:$C,3,FALSE),F903)","v":"Période d’amortissement moyenne selon la province"},{"$f":"IFERROR(VLOOKUP(G903,Translation!$A:$C,3,FALSE),G903)","v":"24.3"},{"$f":"IFERROR(VLOOKUP(H903,Translation!$A:$C,3,FALSE),H903)","v":"Saskatchewan"}]
[10,"T2 2017","ASSURANCE DE PORTEFEUILLE","Alberta",25.555346617362055,"Période d’amortissement moyenne selon la province","25.6","Alberta",{"$f":"IFERROR(VLOOKUP(A904,Translation!$A:$C,3,FALSE),A904)","v":10},{"$f":"IFERROR(VLOOKUP(B904,Translation!$A:$C,3,FALSE),B904)","v":"T2 2017"},{"$f":"IFERROR(VLOOKUP(C904,Translation!$A:$C,3,FALSE),C904)","v":"ASSURANCE DE PORTEFEUILLE"},{"$f":"IFERROR(VLOOKUP(D904,Translation!$A:$C,3,FALSE),D904)","v":"Alberta"},{"$f":"IFERROR(VLOOKUP(E904,Translation!$A:$C,3,FALSE),E904)","v":25.555346617362055},{"$f":"IFERROR(VLOOKUP(F904,Translation!$A:$C,3,FALSE),F904)","v":"Période d’amortissement moyenne selon la province"},{"$f":"IFERROR(VLOOKUP(G904,Translation!$A:$C,3,FALSE),G904)","v":"25.6"},{"$f":"IFERROR(VLOOKUP(H904,Translation!$A:$C,3,FALSE),H904)","v":"Alberta"}]
[10,"T2 2017","ASSURANCE DE PORTEFEUILLE","Colombie-Britannique",27.036148294855153,"Période d’amortissement moyenne selon la province","27.0","Colombie-Britannique",{"$f":"IFERROR(VLOOKUP(A905,Translation!$A:$C,3,FALSE),A905)","v":10},{"$f":"IFERROR(VLOOKUP(B905,Translation!$A:$C,3,FALSE),B905)","v":"T2 2017"},{"$f":"IFERROR(VLOOKUP(C905,Translation!$A:$C,3,FALSE),C905)","v":"ASSURANCE DE PORTEFEUILLE"},{"$f":"IFERROR(VLOOKUP(D905,Translation!$A:$C,3,FALSE),D905)","v":"Colombie-Britannique"},{"$f":"IFERROR(VLOOKUP(E905,Translation!$A:$C,3,FALSE),E905)","v":27.036148294855153},{"$f":"IFERROR(VLOOKUP(F905,Translation!$A:$C,3,FALSE),F905)","v":"Période d’amortissement moyenne selon la province"},{"$f":"IFERROR(VLOOKUP(G905,Translation!$A:$C,3,FALSE),G905)","v":"27.0"},{"$f":"IFERROR(VLOOKUP(H905,Translation!$A:$C,3,FALSE),H905)","v":"Colombie-Britannique"}]
[10,"Q3 2016","ASSURANCE DE PORTEFEUILLE","Terre-Neuve-et-Labrador",24.61962940936262,"Période d’amortissement moyenne selon la province","24.6","Terre-Neuve-et-Labrador",{"$f":"IFERROR(VLOOKUP(A906,Translation!$A:$C,3,FALSE),A906)","v":10},{"$f":"IFERROR(VLOOKUP(B906,Translation!$A:$C,3,FALSE),B906)","v":"Q3 2016"},{"$f":"IFERROR(VLOOKUP(C906,Translation!$A:$C,3,FALSE),C906)","v":"ASSURANCE DE PORTEFEUILLE"},{"$f":"IFERROR(VLOOKUP(D906,Translation!$A:$C,3,FALSE),D906)","v":"Terre-Neuve-et-Labrador"},{"$f":"IFERROR(VLOOKUP(E906,Translation!$A:$C,3,FALSE),E906)","v":24.61962940936262},{"$f":"IFERROR(VLOOKUP(F906,Translation!$A:$C,3,FALSE),F906)","v":"Période d’amortissement moyenne selon la province"},{"$f":"IFERROR(VLOOKUP(G906,Translation!$A:$C,3,FALSE),G906)","v":"24.6"},{"$f":"IFERROR(VLOOKUP(H906,Translation!$A:$C,3,FALSE),H906)","v":"Terre-Neuve-et-Labrador"}]
[10,"Q3 2016","ASSURANCE DE PORTEFEUILLE","Île-du-Prince-Édouard",23.16273954624338,"Période d’amortissement moyenne selon la province","23.2","Île-du-Prince-Édouard",{"$f":"IFERROR(VLOOKUP(A907,Translation!$A:$C,3,FALSE),A907)","v":10},{"$f":"IFERROR(VLOOKUP(B907,Translation!$A:$C,3,FALSE),B907)","v":"Q3 2016"},{"$f":"IFERROR(VLOOKUP(C907,Translation!$A:$C,3,FALSE),C907)","v":"ASSURANCE DE PORTEFEUILLE"},{"$f":"IFERROR(VLOOKUP(D907,Translation!$A:$C,3,FALSE),D907)","v":"Île-du-Prince-Édouard"},{"$f":"IFERROR(VLOOKUP(E907,Translation!$A:$C,3,FALSE),E907)","v":23.16273954624338},{"$f":"IFERROR(VLOOKUP(F907,Translation!$A:$C,3,FALSE),F907)","v":"Période d’amortissement moyenne selon la province"},{"$f":"IFERROR(VLOOKUP(G907,Translation!$A:$C,3,FALSE),G907)","v":"23.2"},{"$f":"IFERROR(VLOOKUP(H907,Translation!$A:$C,3,FALSE),H907)","v":"Île-du-Prince-Édouard"}]
[10,"Q3 2016","ASSURANCE DE PORTEFEUILLE","Nouvelle-Écosse",24.036955816179997,"Période d’amortissement moyenne selon la province","24.0","Nouvelle-Écosse",{"$f":"IFERROR(VLOOKUP(A908,Translation!$A:$C,3,FALSE),A908)","v":10},{"$f":"IFERROR(VLOOKUP(B908,Translation!$A:$C,3,FALSE),B908)","v":"Q3 2016"},{"$f":"IFERROR(VLOOKUP(C908,Translation!$A:$C,3,FALSE),C908)","v":"ASSURANCE DE PORTEFEUILLE"},{"$f":"IFERROR(VLOOKUP(D908,Translation!$A:$C,3,FALSE),D908)","v":"Nouvelle-Écosse"},{"$f":"IFERROR(VLOOKUP(E908,Translation!$A:$C,3,FALSE),E908)","v":24.036955816179997},{"$f":"IFERROR(VLOOKUP(F908,Translation!$A:$C,3,FALSE),F908)","v":"Période d’amortissement moyenne selon la province"},{"$f":"IFERROR(VLOOKUP(G908,Translation!$A:$C,3,FALSE),G908)","v":"24.0"},{"$f":"IFERROR(VLOOKUP(H908,Translation!$A:$C,3,FALSE),H908)","v":"Nouvelle-Écosse"}]
[10,"Q3 2016","ASSURANCE DE PORTEFEUILLE","Nouveau-Brunswick",22.975293305159809,"Période d’amortissement moyenne selon la province","23.0","Nouveau-Brunswick",{"$f":"IFERROR(VLOOKUP(A909,Translation!$A:$C,3,FALSE),A909)","v":10},{"$f":"IFERROR(VLOOKUP(B909,Translation!$A:$C,3,FALSE),B909)","v":"Q3 2016"},{"$f":"IFERROR(VLOOKUP(C909,Translation!$A:$C,3,FALSE),C909)","v":"ASSURANCE DE PORTEFEUILLE"},{"$f":"IFERROR(VLOOKUP(D909,Translation!$A:$C,3,FALSE),D909)","v":"Nouveau-Brunswick"},{"$f":"IFERROR(VLOOKUP(E909,Translation!$A:$C,3,FALSE),E909)","v":22.975293305159809},{"$f":"IFERROR(VLOOKUP(F909,Translation!$A:$C,3,FALSE),F909)","v":"Période d’amortissement moyenne selon la province"},{"$f":"IFERROR(VLOOKUP(G909,Translation!$A:$C,3,FALSE),G909)","v":"23.0"},{"$f":"IFERROR(VLOOKUP(H909,Translation!$A:$C,3,FALSE),H909)","v":"Nouveau-Brunswick"}]
[10,"Q3 2016","ASSURANCE DE PORTEFEUILLE","Québec",24.701505671323975,"Période d’amortissement moyenne selon la province","24.7","Québec",{"$f":"IFERROR(VLOOKUP(A910,Translation!$A:$C,3,FALSE),A910)","v":10},{"$f":"IFERROR(VLOOKUP(B910,Translation!$A:$C,3,FALSE),B910)","v":"Q3 2016"},{"$f":"IFERROR(VLOOKUP(C910,Translation!$A:$C,3,FALSE),C910)","v":"ASSURANCE DE PORTEFEUILLE"},{"$f":"IFERROR(VLOOKUP(D910,Translation!$A:$C,3,FALSE),D910)","v":"Québec"},{"$f":"IFERROR(VLOOKUP(E910,Translation!$A:$C,3,FALSE),E910)","v":24.701505671323975},{"$f":"IFERROR(VLOOKUP(F910,Translation!$A:$C,3,FALSE),F910)","v":"Période d’amortissement moyenne selon la province"},{"$f":"IFERROR(VLOOKUP(G910,Translation!$A:$C,3,FALSE),G910)","v":"24.7"},{"$f":"IFERROR(VLOOKUP(H910,Translation!$A:$C,3,FALSE),H910)","v":"Québec"}]
[10,"Q3 2016","ASSURANCE DE PORTEFEUILLE","Ontario",27.116043908210781,"Période d’amortissement moyenne selon la province","27.1","Ontario",{"$f":"IFERROR(VLOOKUP(A911,Translation!$A:$C,3,FALSE),A911)","v":10},{"$f":"IFERROR(VLOOKUP(B911,Translation!$A:$C,3,FALSE),B911)","v":"Q3 2016"},{"$f":"IFERROR(VLOOKUP(C911,Translation!$A:$C,3,FALSE),C911)","v":"ASSURANCE DE PORTEFEUILLE"},{"$f":"IFERROR(VLOOKUP(D911,Translation!$A:$C,3,FALSE),D911)","v":"Ontario"},{"$f":"IFERROR(VLOOKUP(E911,Translation!$A:$C,3,FALSE),E911)","v":27.116043908210781},{"$f":"IFERROR(VLOOKUP(F911,Translation!$A:$C,3,FALSE),F911)","v":"Période d’amortissement moyenne selon la province"},{"$f":"IFERROR(VLOOKUP(G911,Translation!$A:$C,3,FALSE),G911)","v":"27.1"},{"$f":"IFERROR(VLOOKUP(H911,Translation!$A:$C,3,FALSE),H911)","v":"Ontario"}]
[10,"Q3 2016","ASSURANCE DE PORTEFEUILLE","Manitoba",24.777639448334561,"Période d’amortissement moyenne selon la province","24.8","Manitoba",{"$f":"IFERROR(VLOOKUP(A912,Translation!$A:$C,3,FALSE),A912)","v":10},{"$f":"IFERROR(VLOOKUP(B912,Translation!$A:$C,3,FALSE),B912)","v":"Q3 2016"},{"$f":"IFERROR(VLOOKUP(C912,Translation!$A:$C,3,FALSE),C912)","v":"ASSURANCE DE PORTEFEUILLE"},{"$f":"IFERROR(VLOOKUP(D912,Translation!$A:$C,3,FALSE),D912)","v":"Manitoba"},{"$f":"IFERROR(VLOOKUP(E912,Translation!$A:$C,3,FALSE),E912)","v":24.777639448334561},{"$f":"IFERROR(VLOOKUP(F912,Translation!$A:$C,3,FALSE),F912)","v":"Période d’amortissement moyenne selon la province"},{"$f":"IFERROR(VLOOKUP(G912,Translation!$A:$C,3,FALSE),G912)","v":"24.8"},{"$f":"IFERROR(VLOOKUP(H912,Translation!$A:$C,3,FALSE),H912)","v":"Manitoba"}]
[10,"Q3 2016","ASSURANCE DE PORTEFEUILLE","Saskatchewan",24.639203687088457,"Période d’amortissement moyenne selon la province","24.6","Saskatchewan",{"$f":"IFERROR(VLOOKUP(A913,Translation!$A:$C,3,FALSE),A913)","v":10},{"$f":"IFERROR(VLOOKUP(B913,Translation!$A:$C,3,FALSE),B913)","v":"Q3 2016"},{"$f":"IFERROR(VLOOKUP(C913,Translation!$A:$C,3,FALSE),C913)","v":"ASSURANCE DE PORTEFEUILLE"},{"$f":"IFERROR(VLOOKUP(D913,Translation!$A:$C,3,FALSE),D913)","v":"Saskatchewan"},{"$f":"IFERROR(VLOOKUP(E913,Translation!$A:$C,3,FALSE),E913)","v":24.639203687088457},{"$f":"IFERROR(VLOOKUP(F913,Translation!$A:$C,3,FALSE),F913)","v":"Période d’amortissement moyenne selon la province"},{"$f":"IFERROR(VLOOKUP(G913,Translation!$A:$C,3,FALSE),G913)","v":"24.6"},{"$f":"IFERROR(VLOOKUP(H913,Translation!$A:$C,3,FALSE),H913)","v":"Saskatchewan"}]
[10,"Q3 2016","ASSURANCE DE PORTEFEUILLE","Alberta",25.248275233447959,"Période d’amortissement moyenne selon la province","25.2","Alberta",{"$f":"IFERROR(VLOOKUP(A914,Translation!$A:$C,3,FALSE),A914)","v":10},{"$f":"IFERROR(VLOOKUP(B914,Translation!$A:$C,3,FALSE),B914)","v":"Q3 2016"},{"$f":"IFERROR(VLOOKUP(C914,Translation!$A:$C,3,FALSE),C914)","v":"ASSURANCE DE PORTEFEUILLE"},{"$f":"IFERROR(VLOOKUP(D914,Translation!$A:$C,3,FALSE),D914)","v":"Alberta"},{"$f":"IFERROR(VLOOKUP(E914,Translation!$A:$C,3,FALSE),E914)","v":25.248275233447959},{"$f":"IFERROR(VLOOKUP(F914,Translation!$A:$C,3,FALSE),F914)","v":"Période d’amortissement moyenne selon la province"},{"$f":"IFERROR(VLOOKUP(G914,Translation!$A:$C,3,FALSE),G914)","v":"25.2"},{"$f":"IFERROR(VLOOKUP(H914,Translation!$A:$C,3,FALSE),H914)","v":"Alberta"}]
[10,"Q3 2016","ASSURANCE DE PORTEFEUILLE","Colombie-Britannique",27.675174007115313,"Période d’amortissement moyenne selon la province","27.7","Colombie-Britannique",{"$f":"IFERROR(VLOOKUP(A915,Translation!$A:$C,3,FALSE),A915)","v":10},{"$f":"IFERROR(VLOOKUP(B915,Translation!$A:$C,3,FALSE),B915)","v":"Q3 2016"},{"$f":"IFERROR(VLOOKUP(C915,Translation!$A:$C,3,FALSE),C915)","v":"ASSURANCE DE PORTEFEUILLE"},{"$f":"IFERROR(VLOOKUP(D915,Translation!$A:$C,3,FALSE),D915)","v":"Colombie-Britannique"},{"$f":"IFERROR(VLOOKUP(E915,Translation!$A:$C,3,FALSE),E915)","v":27.675174007115313},{"$f":"IFERROR(VLOOKUP(F915,Translation!$A:$C,3,FALSE),F915)","v":"Période d’amortissement moyenne selon la province"},{"$f":"IFERROR(VLOOKUP(G915,Translation!$A:$C,3,FALSE),G915)","v":"27.7"},{"$f":"IFERROR(VLOOKUP(H915,Translation!$A:$C,3,FALSE),H915)","v":"Colombie-Britannique"}]
[10,"Q3 2016","ASSURANCE DE PORTEFEUILLE","Territoires",24.07529084923614,"Période d’amortissement moyenne selon la province","24.1","Territoires",{"$f":"IFERROR(VLOOKUP(A916,Translation!$A:$C,3,FALSE),A916)","v":10},{"$f":"IFERROR(VLOOKUP(B916,Translation!$A:$C,3,FALSE),B916)","v":"Q3 2016"},{"$f":"IFERROR(VLOOKUP(C916,Translation!$A:$C,3,FALSE),C916)","v":"ASSURANCE DE PORTEFEUILLE"},{"$f":"IFERROR(VLOOKUP(D916,Translation!$A:$C,3,FALSE),D916)","v":"Territoires"},{"$f":"IFERROR(VLOOKUP(E916,Translation!$A:$C,3,FALSE),E916)","v":24.07529084923614},{"$f":"IFERROR(VLOOKUP(F916,Translation!$A:$C,3,FALSE),F916)","v":"Période d’amortissement moyenne selon la province"},{"$f":"IFERROR(VLOOKUP(G916,Translation!$A:$C,3,FALSE),G916)","v":"24.1"},{"$f":"IFERROR(VLOOKUP(H916,Translation!$A:$C,3,FALSE),H916)","v":"Territoires"}]
[10,"T3 2017","ASSURANCE DE PORTEFEUILLE","Terre-Neuve-et-Labrador",24.878853431096957,"Période d’amortissement moyenne selon la province","24.9","Terre-Neuve-et-Labrador",{"$f":"IFERROR(VLOOKUP(A917,Translation!$A:$C,3,FALSE),A917)","v":10},{"$f":"IFERROR(VLOOKUP(B917,Translation!$A:$C,3,FALSE),B917)","v":"T3 2017"},{"$f":"IFERROR(VLOOKUP(C917,Translation!$A:$C,3,FALSE),C917)","v":"ASSURANCE DE PORTEFEUILLE"},{"$f":"IFERROR(VLOOKUP(D917,Translation!$A:$C,3,FALSE),D917)","v":"Terre-Neuve-et-Labrador"},{"$f":"IFERROR(VLOOKUP(E917,Translation!$A:$C,3,FALSE),E917)","v":24.878853431096957},{"$f":"IFERROR(VLOOKUP(F917,Translation!$A:$C,3,FALSE),F917)","v":"Période d’amortissement moyenne selon la province"},{"$f":"IFERROR(VLOOKUP(G917,Translation!$A:$C,3,FALSE),G917)","v":"24.9"},{"$f":"IFERROR(VLOOKUP(H917,Translation!$A:$C,3,FALSE),H917)","v":"Terre-Neuve-et-Labrador"}]
[10,"T3 2017","ASSURANCE DE PORTEFEUILLE","Île-du-Prince-Édouard",24.916666666666671,"Période d’amortissement moyenne selon la province","24.9","Île-du-Prince-Édouard",{"$f":"IFERROR(VLOOKUP(A918,Translation!$A:$C,3,FALSE),A918)","v":10},{"$f":"IFERROR(VLOOKUP(B918,Translation!$A:$C,3,FALSE),B918)","v":"T3 2017"},{"$f":"IFERROR(VLOOKUP(C918,Translation!$A:$C,3,FALSE),C918)","v":"ASSURANCE DE PORTEFEUILLE"},{"$f":"IFERROR(VLOOKUP(D918,Translation!$A:$C,3,FALSE),D918)","v":"Île-du-Prince-Édouard"},{"$f":"IFERROR(VLOOKUP(E918,Translation!$A:$C,3,FALSE),E918)","v":24.916666666666671},{"$f":"IFERROR(VLOOKUP(F918,Translation!$A:$C,3,FALSE),F918)","v":"Période d’amortissement moyenne selon la province"},{"$f":"IFERROR(VLOOKUP(G918,Translation!$A:$C,3,FALSE),G918)","v":"24.9"},{"$f":"IFERROR(VLOOKUP(H918,Translation!$A:$C,3,FALSE),H918)","v":"Île-du-Prince-Édouard"}]
[10,"T3 2017","ASSURANCE DE PORTEFEUILLE","Nouvelle-Écosse",19.661290745472005,"Période d’amortissement moyenne selon la province","19.7","Nouvelle-Écosse",{"$f":"IFERROR(VLOOKUP(A919,Translation!$A:$C,3,FALSE),A919)","v":10},{"$f":"IFERROR(VLOOKUP(B919,Translation!$A:$C,3,FALSE),B919)","v":"T3 2017"},{"$f":"IFERROR(VLOOKUP(C919,Translation!$A:$C,3,FALSE),C919)","v":"ASSURANCE DE PORTEFEUILLE"},{"$f":"IFERROR(VLOOKUP(D919,Translation!$A:$C,3,FALSE),D919)","v":"Nouvelle-Écosse"},{"$f":"IFERROR(VLOOKUP(E919,Translation!$A:$C,3,FALSE),E919)","v":19.661290745472005},{"$f":"IFERROR(VLOOKUP(F919,Translation!$A:$C,3,FALSE),F919)","v":"Période d’amortissement moyenne selon la province"},{"$f":"IFERROR(VLOOKUP(G919,Translation!$A:$C,3,FALSE),G919)","v":"19.7"},{"$f":"IFERROR(VLOOKUP(H919,Translation!$A:$C,3,FALSE),H919)","v":"Nouvelle-Écosse"}]
[10,"T3 2017","ASSURANCE DE PORTEFEUILLE","Nouveau-Brunswick",24.916666666666671,"Période d’amortissement moyenne selon la province","24.9","Nouveau-Brunswick",{"$f":"IFERROR(VLOOKUP(A920,Translation!$A:$C,3,FALSE),A920)","v":10},{"$f":"IFERROR(VLOOKUP(B920,Translation!$A:$C,3,FALSE),B920)","v":"T3 2017"},{"$f":"IFERROR(VLOOKUP(C920,Translation!$A:$C,3,FALSE),C920)","v":"ASSURANCE DE PORTEFEUILLE"},{"$f":"IFERROR(VLOOKUP(D920,Translation!$A:$C,3,FALSE),D920)","v":"Nouveau-Brunswick"},{"$f":"IFERROR(VLOOKUP(E920,Translation!$A:$C,3,FALSE),E920)","v":24.916666666666671},{"$f":"IFERROR(VLOOKUP(F920,Translation!$A:$C,3,FALSE),F920)","v":"Période d’amortissement moyenne selon la province"},{"$f":"IFERROR(VLOOKUP(G920,Translation!$A:$C,3,FALSE),G920)","v":"24.9"},{"$f":"IFERROR(VLOOKUP(H920,Translation!$A:$C,3,FALSE),H920)","v":"Nouveau-Brunswick"}]
[10,"T3 2017","ASSURANCE DE PORTEFEUILLE","Québec",23.841200671560596,"Période d’amortissement moyenne selon la province","23.8","Québec",{"$f":"IFERROR(VLOOKUP(A921,Translation!$A:$C,3,FALSE),A921)","v":10},{"$f":"IFERROR(VLOOKUP(B921,Translation!$A:$C,3,FALSE),B921)","v":"T3 2017"},{"$f":"IFERROR(VLOOKUP(C921,Translation!$A:$C,3,FALSE),C921)","v":"ASSURANCE DE PORTEFEUILLE"},{"$f":"IFERROR(VLOOKUP(D921,Translation!$A:$C,3,FALSE),D921)","v":"Québec"},{"$f":"IFERROR(VLOOKUP(E921,Translation!$A:$C,3,FALSE),E921)","v":23.841200671560596},{"$f":"IFERROR(VLOOKUP(F921,Translation!$A:$C,3,FALSE),F921)","v":"Période d’amortissement moyenne selon la province"},{"$f":"IFERROR(VLOOKUP(G921,Translation!$A:$C,3,FALSE),G921)","v":"23.8"},{"$f":"IFERROR(VLOOKUP(H921,Translation!$A:$C,3,FALSE),H921)","v":"Québec"}]
[10,"T3 2017","ASSURANCE DE PORTEFEUILLE","Ontario",23.603290378528794,"Période d’amortissement moyenne selon la province","23.6","Ontario",{"$f":"IFERROR(VLOOKUP(A922,Translation!$A:$C,3,FALSE),A922)","v":10},{"$f":"IFERROR(VLOOKUP(B922,Translation!$A:$C,3,FALSE),B922)","v":"T3 2017"},{"$f":"IFERROR(VLOOKUP(C922,Translation!$A:$C,3,FALSE),C922)","v":"ASSURANCE DE PORTEFEUILLE"},{"$f":"IFERROR(VLOOKUP(D922,Translation!$A:$C,3,FALSE),D922)","v":"Ontario"},{"$f":"IFERROR(VLOOKUP(E922,Translation!$A:$C,3,FALSE),E922)","v":23.603290378528794},{"$f":"IFERROR(VLOOKUP(F922,Translation!$A:$C,3,FALSE),F922)","v":"Période d’amortissement moyenne selon la province"},{"$f":"IFERROR(VLOOKUP(G922,Translation!$A:$C,3,FALSE),G922)","v":"23.6"},{"$f":"IFERROR(VLOOKUP(H922,Translation!$A:$C,3,FALSE),H922)","v":"Ontario"}]
[10,"T3 2017","ASSURANCE DE PORTEFEUILLE","Manitoba",24.531166900294956,"Période d’amortissement moyenne selon la province","24.5","Manitoba",{"$f":"IFERROR(VLOOKUP(A923,Translation!$A:$C,3,FALSE),A923)","v":10},{"$f":"IFERROR(VLOOKUP(B923,Translation!$A:$C,3,FALSE),B923)","v":"T3 2017"},{"$f":"IFERROR(VLOOKUP(C923,Translation!$A:$C,3,FALSE),C923)","v":"ASSURANCE DE PORTEFEUILLE"},{"$f":"IFERROR(VLOOKUP(D923,Translation!$A:$C,3,FALSE),D923)","v":"Manitoba"},{"$f":"IFERROR(VLOOKUP(E923,Translation!$A:$C,3,FALSE),E923)","v":24.531166900294956},{"$f":"IFERROR(VLOOKUP(F923,Translation!$A:$C,3,FALSE),F923)","v":"Période d’amortissement moyenne selon la province"},{"$f":"IFERROR(VLOOKUP(G923,Translation!$A:$C,3,FALSE),G923)","v":"24.5"},{"$f":"IFERROR(VLOOKUP(H923,Translation!$A:$C,3,FALSE),H923)","v":"Manitoba"}]
[10,"T3 2017","ASSURANCE DE PORTEFEUILLE","Saskatchewan",24.50487554506282,"Période d’amortissement moyenne selon la province","24.5","Saskatchewan",{"$f":"IFERROR(VLOOKUP(A924,Translation!$A:$C,3,FALSE),A924)","v":10},{"$f":"IFERROR(VLOOKUP(B924,Translation!$A:$C,3,FALSE),B924)","v":"T3 2017"},{"$f":"IFERROR(VLOOKUP(C924,Translation!$A:$C,3,FALSE),C924)","v":"ASSURANCE DE PORTEFEUILLE"},{"$f":"IFERROR(VLOOKUP(D924,Translation!$A:$C,3,FALSE),D924)","v":"Saskatchewan"},{"$f":"IFERROR(VLOOKUP(E924,Translation!$A:$C,3,FALSE),E924)","v":24.50487554506282},{"$f":"IFERROR(VLOOKUP(F924,Translation!$A:$C,3,FALSE),F924)","v":"Période d’amortissement moyenne selon la province"},{"$f":"IFERROR(VLOOKUP(G924,Translation!$A:$C,3,FALSE),G924)","v":"24.5"},{"$f":"IFERROR(VLOOKUP(H924,Translation!$A:$C,3,FALSE),H924)","v":"Saskatchewan"}]
[10,"T3 2017","ASSURANCE DE PORTEFEUILLE","Alberta",24.421490055477339,"Période d’amortissement moyenne selon la province","24.4","Alberta",{"$f":"IFERROR(VLOOKUP(A925,Translation!$A:$C,3,FALSE),A925)","v":10},{"$f":"IFERROR(VLOOKUP(B925,Translation!$A:$C,3,FALSE),B925)","v":"T3 2017"},{"$f":"IFERROR(VLOOKUP(C925,Translation!$A:$C,3,FALSE),C925)","v":"ASSURANCE DE PORTEFEUILLE"},{"$f":"IFERROR(VLOOKUP(D925,Translation!$A:$C,3,FALSE),D925)","v":"Alberta"},{"$f":"IFERROR(VLOOKUP(E925,Translation!$A:$C,3,FALSE),E925)","v":24.421490055477339},{"$f":"IFERROR(VLOOKUP(F925,Translation!$A:$C,3,FALSE),F925)","v":"Période d’amortissement moyenne selon la province"},{"$f":"IFERROR(VLOOKUP(G925,Translation!$A:$C,3,FALSE),G925)","v":"24.4"},{"$f":"IFERROR(VLOOKUP(H925,Translation!$A:$C,3,FALSE),H925)","v":"Alberta"}]
[10,"T3 2017","ASSURANCE DE PORTEFEUILLE","Colombie-Britannique",25.240832848892243,"Période d’amortissement moyenne selon la province","25.2","Colombie-Britannique",{"$f":"IFERROR(VLOOKUP(A926,Translation!$A:$C,3,FALSE),A926)","v":10},{"$f":"IFERROR(VLOOKUP(B926,Translation!$A:$C,3,FALSE),B926)","v":"T3 2017"},{"$f":"IFERROR(VLOOKUP(C926,Translation!$A:$C,3,FALSE),C926)","v":"ASSURANCE DE PORTEFEUILLE"},{"$f":"IFERROR(VLOOKUP(D926,Translation!$A:$C,3,FALSE),D926)","v":"Colombie-Britannique"},{"$f":"IFERROR(VLOOKUP(E926,Translation!$A:$C,3,FALSE),E926)","v":25.240832848892243},{"$f":"IFERROR(VLOOKUP(F926,Translation!$A:$C,3,FALSE),F926)","v":"Période d’amortissement moyenne selon la province"},{"$f":"IFERROR(VLOOKUP(G926,Translation!$A:$C,3,FALSE),G926)","v":"25.2"},{"$f":"IFERROR(VLOOKUP(H926,Translation!$A:$C,3,FALSE),H926)","v":"Colombie-Britannique"}]
[10,"Q4 2016","ASSURANCE DE PORTEFEUILLE","Terre-Neuve-et-Labrador",24.181476441826359,"Période d’amortissement moyenne selon la province","24.2","Terre-Neuve-et-Labrador",{"$f":"IFERROR(VLOOKUP(A927,Translation!$A:$C,3,FALSE),A927)","v":10},{"$f":"IFERROR(VLOOKUP(B927,Translation!$A:$C,3,FALSE),B927)","v":"Q4 2016"},{"$f":"IFERROR(VLOOKUP(C927,Translation!$A:$C,3,FALSE),C927)","v":"ASSURANCE DE PORTEFEUILLE"},{"$f":"IFERROR(VLOOKUP(D927,Translation!$A:$C,3,FALSE),D927)","v":"Terre-Neuve-et-Labrador"},{"$f":"IFERROR(VLOOKUP(E927,Translation!$A:$C,3,FALSE),E927)","v":24.181476441826359},{"$f":"IFERROR(VLOOKUP(F927,Translation!$A:$C,3,FALSE),F927)","v":"Période d’amortissement moyenne selon la province"},{"$f":"IFERROR(VLOOKUP(G927,Translation!$A:$C,3,FALSE),G927)","v":"24.2"},{"$f":"IFERROR(VLOOKUP(H927,Translation!$A:$C,3,FALSE),H927)","v":"Terre-Neuve-et-Labrador"}]
[10,"Q4 2016","ASSURANCE DE PORTEFEUILLE","Île-du-Prince-Édouard",23.722929275612977,"Période d’amortissement moyenne selon la province","23.7","Île-du-Prince-Édouard",{"$f":"IFERROR(VLOOKUP(A928,Translation!$A:$C,3,FALSE),A928)","v":10},{"$f":"IFERROR(VLOOKUP(B928,Translation!$A:$C,3,FALSE),B928)","v":"Q4 2016"},{"$f":"IFERROR(VLOOKUP(C928,Translation!$A:$C,3,FALSE),C928)","v":"ASSURANCE DE PORTEFEUILLE"},{"$f":"IFERROR(VLOOKUP(D928,Translation!$A:$C,3,FALSE),D928)","v":"Île-du-Prince-Édouard"},{"$f":"IFERROR(VLOOKUP(E928,Translation!$A:$C,3,FALSE),E928)","v":23.722929275612977},{"$f":"IFERROR(VLOOKUP(F928,Translation!$A:$C,3,FALSE),F928)","v":"Période d’amortissement moyenne selon la province"},{"$f":"IFERROR(VLOOKUP(G928,Translation!$A:$C,3,FALSE),G928)","v":"23.7"},{"$f":"IFERROR(VLOOKUP(H928,Translation!$A:$C,3,FALSE),H928)","v":"Île-du-Prince-Édouard"}]
[10,"Q4 2016","ASSURANCE DE PORTEFEUILLE","Nouvelle-Écosse",24.619428101990657,"Période d’amortissement moyenne selon la province","24.6","Nouvelle-Écosse",{"$f":"IFERROR(VLOOKUP(A929,Translation!$A:$C,3,FALSE),A929)","v":10},{"$f":"IFERROR(VLOOKUP(B929,Translation!$A:$C,3,FALSE),B929)","v":"Q4 2016"},{"$f":"IFERROR(VLOOKUP(C929,Translation!$A:$C,3,FALSE),C929)","v":"ASSURANCE DE PORTEFEUILLE"},{"$f":"IFERROR(VLOOKUP(D929,Translation!$A:$C,3,FALSE),D929)","v":"Nouvelle-Écosse"},{"$f":"IFERROR(VLOOKUP(E929,Translation!$A:$C,3,FALSE),E929)","v":24.619428101990657},{"$f":"IFERROR(VLOOKUP(F929,Translation!$A:$C,3,FALSE),F929)","v":"Période d’amortissement moyenne selon la province"},{"$f":"IFERROR(VLOOKUP(G929,Translation!$A:$C,3,FALSE),G929)","v":"24.6"},{"$f":"IFERROR(VLOOKUP(H929,Translation!$A:$C,3,FALSE),H929)","v":"Nouvelle-Écosse"}]
[10,"Q4 2016","ASSURANCE DE PORTEFEUILLE","Nouveau-Brunswick",23.547229955635807,"Période d’amortissement moyenne selon la province","23.5","Nouveau-Brunswick",{"$f":"IFERROR(VLOOKUP(A930,Translation!$A:$C,3,FALSE),A930)","v":10},{"$f":"IFERROR(VLOOKUP(B930,Translation!$A:$C,3,FALSE),B930)","v":"Q4 2016"},{"$f":"IFERROR(VLOOKUP(C930,Translation!$A:$C,3,FALSE),C930)","v":"ASSURANCE DE PORTEFEUILLE"},{"$f":"IFERROR(VLOOKUP(D930,Translation!$A:$C,3,FALSE),D930)","v":"Nouveau-Brunswick"},{"$f":"IFERROR(VLOOKUP(E930,Translation!$A:$C,3,FALSE),E930)","v":23.547229955635807},{"$f":"IFERROR(VLOOKUP(F930,Translation!$A:$C,3,FALSE),F930)","v":"Période d’amortissement moyenne selon la province"},{"$f":"IFERROR(VLOOKUP(G930,Translation!$A:$C,3,FALSE),G930)","v":"23.5"},{"$f":"IFERROR(VLOOKUP(H930,Translation!$A:$C,3,FALSE),H930)","v":"Nouveau-Brunswick"}]
[10,"Q4 2016","ASSURANCE DE PORTEFEUILLE","Québec",22.692696795048757,"Période d’amortissement moyenne selon la province","22.7","Québec",{"$f":"IFERROR(VLOOKUP(A931,Translation!$A:$C,3,FALSE),A931)","v":10},{"$f":"IFERROR(VLOOKUP(B931,Translation!$A:$C,3,FALSE),B931)","v":"Q4 2016"},{"$f":"IFERROR(VLOOKUP(C931,Translation!$A:$C,3,FALSE),C931)","v":"ASSURANCE DE PORTEFEUILLE"},{"$f":"IFERROR(VLOOKUP(D931,Translation!$A:$C,3,FALSE),D931)","v":"Québec"},{"$f":"IFERROR(VLOOKUP(E931,Translation!$A:$C,3,FALSE),E931)","v":22.692696795048757},{"$f":"IFERROR(VLOOKUP(F931,Translation!$A:$C,3,FALSE),F931)","v":"Période d’amortissement moyenne selon la province"},{"$f":"IFERROR(VLOOKUP(G931,Translation!$A:$C,3,FALSE),G931)","v":"22.7"},{"$f":"IFERROR(VLOOKUP(H931,Translation!$A:$C,3,FALSE),H931)","v":"Québec"}]
[10,"Q4 2016","ASSURANCE DE PORTEFEUILLE","Ontario",26.724226205862102,"Période d’amortissement moyenne selon la province","26.7","Ontario",{"$f":"IFERROR(VLOOKUP(A932,Translation!$A:$C,3,FALSE),A932)","v":10},{"$f":"IFERROR(VLOOKUP(B932,Translation!$A:$C,3,FALSE),B932)","v":"Q4 2016"},{"$f":"IFERROR(VLOOKUP(C932,Translation!$A:$C,3,FALSE),C932)","v":"ASSURANCE DE PORTEFEUILLE"},{"$f":"IFERROR(VLOOKUP(D932,Translation!$A:$C,3,FALSE),D932)","v":"Ontario"},{"$f":"IFERROR(VLOOKUP(E932,Translation!$A:$C,3,FALSE),E932)","v":26.724226205862102},{"$f":"IFERROR(VLOOKUP(F932,Translation!$A:$C,3,FALSE),F932)","v":"Période d’amortissement moyenne selon la province"},{"$f":"IFERROR(VLOOKUP(G932,Translation!$A:$C,3,FALSE),G932)","v":"26.7"},{"$f":"IFERROR(VLOOKUP(H932,Translation!$A:$C,3,FALSE),H932)","v":"Ontario"}]
[10,"Q4 2016","ASSURANCE DE PORTEFEUILLE","Manitoba",24.851870295302206,"Période d’amortissement moyenne selon la province","24.9","Manitoba",{"$f":"IFERROR(VLOOKUP(A933,Translation!$A:$C,3,FALSE),A933)","v":10},{"$f":"IFERROR(VLOOKUP(B933,Translation!$A:$C,3,FALSE),B933)","v":"Q4 2016"},{"$f":"IFERROR(VLOOKUP(C933,Translation!$A:$C,3,FALSE),C933)","v":"ASSURANCE DE PORTEFEUILLE"},{"$f":"IFERROR(VLOOKUP(D933,Translation!$A:$C,3,FALSE),D933)","v":"Manitoba"},{"$f":"IFERROR(VLOOKUP(E933,Translation!$A:$C,3,FALSE),E933)","v":24.851870295302206},{"$f":"IFERROR(VLOOKUP(F933,Translation!$A:$C,3,FALSE),F933)","v":"Période d’amortissement moyenne selon la province"},{"$f":"IFERROR(VLOOKUP(G933,Translation!$A:$C,3,FALSE),G933)","v":"24.9"},{"$f":"IFERROR(VLOOKUP(H933,Translation!$A:$C,3,FALSE),H933)","v":"Manitoba"}]
[10,"Q4 2016","ASSURANCE DE PORTEFEUILLE","Saskatchewan",24.528382922870517,"Période d’amortissement moyenne selon la province","24.5","Saskatchewan",{"$f":"IFERROR(VLOOKUP(A934,Translation!$A:$C,3,FALSE),A934)","v":10},{"$f":"IFERROR(VLOOKUP(B934,Translation!$A:$C,3,FALSE),B934)","v":"Q4 2016"},{"$f":"IFERROR(VLOOKUP(C934,Translation!$A:$C,3,FALSE),C934)","v":"ASSURANCE DE PORTEFEUILLE"},{"$f":"IFERROR(VLOOKUP(D934,Translation!$A:$C,3,FALSE),D934)","v":"Saskatchewan"},{"$f":"IFERROR(VLOOKUP(E934,Translation!$A:$C,3,FALSE),E934)","v":24.528382922870517},{"$f":"IFERROR(VLOOKUP(F934,Translation!$A:$C,3,FALSE),F934)","v":"Période d’amortissement moyenne selon la province"},{"$f":"IFERROR(VLOOKUP(G934,Translation!$A:$C,3,FALSE),G934)","v":"24.5"},{"$f":"IFERROR(VLOOKUP(H934,Translation!$A:$C,3,FALSE),H934)","v":"Saskatchewan"}]
[10,"Q4 2016","ASSURANCE DE PORTEFEUILLE","Alberta",24.652483733030703,"Période d’amortissement moyenne selon la province","24.7","Alberta",{"$f":"IFERROR(VLOOKUP(A935,Translation!$A:$C,3,FALSE),A935)","v":10},{"$f":"IFERROR(VLOOKUP(B935,Translation!$A:$C,3,FALSE),B935)","v":"Q4 2016"},{"$f":"IFERROR(VLOOKUP(C935,Translation!$A:$C,3,FALSE),C935)","v":"ASSURANCE DE PORTEFEUILLE"},{"$f":"IFERROR(VLOOKUP(D935,Translation!$A:$C,3,FALSE),D935)","v":"Alberta"},{"$f":"IFERROR(VLOOKUP(E935,Translation!$A:$C,3,FALSE),E935)","v":24.652483733030703},{"$f":"IFERROR(VLOOKUP(F935,Translation!$A:$C,3,FALSE),F935)","v":"Période d’amortissement moyenne selon la province"},{"$f":"IFERROR(VLOOKUP(G935,Translation!$A:$C,3,FALSE),G935)","v":"24.7"},{"$f":"IFERROR(VLOOKUP(H935,Translation!$A:$C,3,FALSE),H935)","v":"Alberta"}]
[10,"Q4 2016","ASSURANCE DE PORTEFEUILLE","Colombie-Britannique",27.200886702008081,"Période d’amortissement moyenne selon la province","27.2","Colombie-Britannique",{"$f":"IFERROR(VLOOKUP(A936,Translation!$A:$C,3,FALSE),A936)","v":10},{"$f":"IFERROR(VLOOKUP(B936,Translation!$A:$C,3,FALSE),B936)","v":"Q4 2016"},{"$f":"IFERROR(VLOOKUP(C936,Translation!$A:$C,3,FALSE),C936)","v":"ASSURANCE DE PORTEFEUILLE"},{"$f":"IFERROR(VLOOKUP(D936,Translation!$A:$C,3,FALSE),D936)","v":"Colombie-Britannique"},{"$f":"IFERROR(VLOOKUP(E936,Translation!$A:$C,3,FALSE),E936)","v":27.200886702008081},{"$f":"IFERROR(VLOOKUP(F936,Translation!$A:$C,3,FALSE),F936)","v":"Période d’amortissement moyenne selon la province"},{"$f":"IFERROR(VLOOKUP(G936,Translation!$A:$C,3,FALSE),G936)","v":"27.2"},{"$f":"IFERROR(VLOOKUP(H936,Translation!$A:$C,3,FALSE),H936)","v":"Colombie-Britannique"}]
[10,"Q4 2016","ASSURANCE DE PORTEFEUILLE","Territoires",23.078294815272713,"Période d’amortissement moyenne selon la province","23.1","Territoires",{"$f":"IFERROR(VLOOKUP(A937,Translation!$A:$C,3,FALSE),A937)","v":10},{"$f":"IFERROR(VLOOKUP(B937,Translation!$A:$C,3,FALSE),B937)","v":"Q4 2016"},{"$f":"IFERROR(VLOOKUP(C937,Translation!$A:$C,3,FALSE),C937)","v":"ASSURANCE DE PORTEFEUILLE"},{"$f":"IFERROR(VLOOKUP(D937,Translation!$A:$C,3,FALSE),D937)","v":"Territoires"},{"$f":"IFERROR(VLOOKUP(E937,Translation!$A:$C,3,FALSE),E937)","v":23.078294815272713},{"$f":"IFERROR(VLOOKUP(F937,Translation!$A:$C,3,FALSE),F937)","v":"Période d’amortissement moyenne selon la province"},{"$f":"IFERROR(VLOOKUP(G937,Translation!$A:$C,3,FALSE),G937)","v":"23.1"},{"$f":"IFERROR(VLOOKUP(H937,Translation!$A:$C,3,FALSE),H937)","v":"Territoires"}]
[10,"T4 2017","ASSURANCE DE PORTEFEUILLE","Terre-Neuve-et-Labrador",21.676573357896224,"Période d’amortissement moyenne selon la province","21.7","Terre-Neuve-et-Labrador",{"$f":"IFERROR(VLOOKUP(A938,Translation!$A:$C,3,FALSE),A938)","v":10},{"$f":"IFERROR(VLOOKUP(B938,Translation!$A:$C,3,FALSE),B938)","v":"T4 2017"},{"$f":"IFERROR(VLOOKUP(C938,Translation!$A:$C,3,FALSE),C938)","v":"ASSURANCE DE PORTEFEUILLE"},{"$f":"IFERROR(VLOOKUP(D938,Translation!$A:$C,3,FALSE),D938)","v":"Terre-Neuve-et-Labrador"},{"$f":"IFERROR(VLOOKUP(E938,Translation!$A:$C,3,FALSE),E938)","v":21.676573357896224},{"$f":"IFERROR(VLOOKUP(F938,Translation!$A:$C,3,FALSE),F938)","v":"Période d’amortissement moyenne selon la province"},{"$f":"IFERROR(VLOOKUP(G938,Translation!$A:$C,3,FALSE),G938)","v":"21.7"},{"$f":"IFERROR(VLOOKUP(H938,Translation!$A:$C,3,FALSE),H938)","v":"Terre-Neuve-et-Labrador"}]
[10,"T4 2017","ASSURANCE DE PORTEFEUILLE","Île-du-Prince-Édouard",21.313131521580321,"Période d’amortissement moyenne selon la province","21.3","Île-du-Prince-Édouard",{"$f":"IFERROR(VLOOKUP(A939,Translation!$A:$C,3,FALSE),A939)","v":10},{"$f":"IFERROR(VLOOKUP(B939,Translation!$A:$C,3,FALSE),B939)","v":"T4 2017"},{"$f":"IFERROR(VLOOKUP(C939,Translation!$A:$C,3,FALSE),C939)","v":"ASSURANCE DE PORTEFEUILLE"},{"$f":"IFERROR(VLOOKUP(D939,Translation!$A:$C,3,FALSE),D939)","v":"Île-du-Prince-Édouard"},{"$f":"IFERROR(VLOOKUP(E939,Translation!$A:$C,3,FALSE),E939)","v":21.313131521580321},{"$f":"IFERROR(VLOOKUP(F939,Translation!$A:$C,3,FALSE),F939)","v":"Période d’amortissement moyenne selon la province"},{"$f":"IFERROR(VLOOKUP(G939,Translation!$A:$C,3,FALSE),G939)","v":"21.3"},{"$f":"IFERROR(VLOOKUP(H939,Translation!$A:$C,3,FALSE),H939)","v":"Île-du-Prince-Édouard"}]
[10,"T4 2017","ASSURANCE DE PORTEFEUILLE","Nouvelle-Écosse",21.555207063209497,"Période d’amortissement moyenne selon la province","21.6","Nouvelle-Écosse",{"$f":"IFERROR(VLOOKUP(A940,Translation!$A:$C,3,FALSE),A940)","v":10},{"$f":"IFERROR(VLOOKUP(B940,Translation!$A:$C,3,FALSE),B940)","v":"T4 2017"},{"$f":"IFERROR(VLOOKUP(C940,Translation!$A:$C,3,FALSE),C940)","v":"ASSURANCE DE PORTEFEUILLE"},{"$f":"IFERROR(VLOOKUP(D940,Translation!$A:$C,3,FALSE),D940)","v":"Nouvelle-Écosse"},{"$f":"IFERROR(VLOOKUP(E940,Translation!$A:$C,3,FALSE),E940)","v":21.555207063209497},{"$f":"IFERROR(VLOOKUP(F940,Translation!$A:$C,3,FALSE),F940)","v":"Période d’amortissement moyenne selon la province"},{"$f":"IFERROR(VLOOKUP(G940,Translation!$A:$C,3,FALSE),G940)","v":"21.6"},{"$f":"IFERROR(VLOOKUP(H940,Translation!$A:$C,3,FALSE),H940)","v":"Nouvelle-Écosse"}]
[10,"T4 2017","ASSURANCE DE PORTEFEUILLE","Nouveau-Brunswick",21.400694778727075,"Période d’amortissement moyenne selon la province","21.4","Nouveau-Brunswick",{"$f":"IFERROR(VLOOKUP(A941,Translation!$A:$C,3,FALSE),A941)","v":10},{"$f":"IFERROR(VLOOKUP(B941,Translation!$A:$C,3,FALSE),B941)","v":"T4 2017"},{"$f":"IFERROR(VLOOKUP(C941,Translation!$A:$C,3,FALSE),C941)","v":"ASSURANCE DE PORTEFEUILLE"},{"$f":"IFERROR(VLOOKUP(D941,Translation!$A:$C,3,FALSE),D941)","v":"Nouveau-Brunswick"},{"$f":"IFERROR(VLOOKUP(E941,Translation!$A:$C,3,FALSE),E941)","v":21.400694778727075},{"$f":"IFERROR(VLOOKUP(F941,Translation!$A:$C,3,FALSE),F941)","v":"Période d’amortissement moyenne selon la province"},{"$f":"IFERROR(VLOOKUP(G941,Translation!$A:$C,3,FALSE),G941)","v":"21.4"},{"$f":"IFERROR(VLOOKUP(H941,Translation!$A:$C,3,FALSE),H941)","v":"Nouveau-Brunswick"}]
[10,"T4 2017","ASSURANCE DE PORTEFEUILLE","Québec",22.505457648868248,"Période d’amortissement moyenne selon la province","22.5","Québec",{"$f":"IFERROR(VLOOKUP(A942,Translation!$A:$C,3,FALSE),A942)","v":10},{"$f":"IFERROR(VLOOKUP(B942,Translation!$A:$C,3,FALSE),B942)","v":"T4 2017"},{"$f":"IFERROR(VLOOKUP(C942,Translation!$A:$C,3,FALSE),C942)","v":"ASSURANCE DE PORTEFEUILLE"},{"$f":"IFERROR(VLOOKUP(D942,Translation!$A:$C,3,FALSE),D942)","v":"Québec"},{"$f":"IFERROR(VLOOKUP(E942,Translation!$A:$C,3,FALSE),E942)","v":22.505457648868248},{"$f":"IFERROR(VLOOKUP(F942,Translation!$A:$C,3,FALSE),F942)","v":"Période d’amortissement moyenne selon la province"},{"$f":"IFERROR(VLOOKUP(G942,Translation!$A:$C,3,FALSE),G942)","v":"22.5"},{"$f":"IFERROR(VLOOKUP(H942,Translation!$A:$C,3,FALSE),H942)","v":"Québec"}]
[10,"T4 2017","ASSURANCE DE PORTEFEUILLE","Ontario",21.333058977408712,"Période d’amortissement moyenne selon la province","21.3","Ontario",{"$f":"IFERROR(VLOOKUP(A943,Translation!$A:$C,3,FALSE),A943)","v":10},{"$f":"IFERROR(VLOOKUP(B943,Translation!$A:$C,3,FALSE),B943)","v":"T4 2017"},{"$f":"IFERROR(VLOOKUP(C943,Translation!$A:$C,3,FALSE),C943)","v":"ASSURANCE DE PORTEFEUILLE"},{"$f":"IFERROR(VLOOKUP(D943,Translation!$A:$C,3,FALSE),D943)","v":"Ontario"},{"$f":"IFERROR(VLOOKUP(E943,Translation!$A:$C,3,FALSE),E943)","v":21.333058977408712},{"$f":"IFERROR(VLOOKUP(F943,Translation!$A:$C,3,FALSE),F943)","v":"Période d’amortissement moyenne selon la province"},{"$f":"IFERROR(VLOOKUP(G943,Translation!$A:$C,3,FALSE),G943)","v":"21.3"},{"$f":"IFERROR(VLOOKUP(H943,Translation!$A:$C,3,FALSE),H943)","v":"Ontario"}]
[10,"T4 2017","ASSURANCE DE PORTEFEUILLE","Manitoba",22.549200270739004,"Période d’amortissement moyenne selon la province","22.5","Manitoba",{"$f":"IFERROR(VLOOKUP(A944,Translation!$A:$C,3,FALSE),A944)","v":10},{"$f":"IFERROR(VLOOKUP(B944,Translation!$A:$C,3,FALSE),B944)","v":"T4 2017"},{"$f":"IFERROR(VLOOKUP(C944,Translation!$A:$C,3,FALSE),C944)","v":"ASSURANCE DE PORTEFEUILLE"},{"$f":"IFERROR(VLOOKUP(D944,Translation!$A:$C,3,FALSE),D944)","v":"Manitoba"},{"$f":"IFERROR(VLOOKUP(E944,Translation!$A:$C,3,FALSE),E944)","v":22.549200270739004},{"$f":"IFERROR(VLOOKUP(F944,Translation!$A:$C,3,FALSE),F944)","v":"Période d’amortissement moyenne selon la province"},{"$f":"IFERROR(VLOOKUP(G944,Translation!$A:$C,3,FALSE),G944)","v":"22.5"},{"$f":"IFERROR(VLOOKUP(H944,Translation!$A:$C,3,FALSE),H944)","v":"Manitoba"}]
[10,"T4 2017","ASSURANCE DE PORTEFEUILLE","Saskatchewan",21.26823408218738,"Période d’amortissement moyenne selon la province","21.3","Saskatchewan",{"$f":"IFERROR(VLOOKUP(A945,Translation!$A:$C,3,FALSE),A945)","v":10},{"$f":"IFERROR(VLOOKUP(B945,Translation!$A:$C,3,FALSE),B945)","v":"T4 2017"},{"$f":"IFERROR(VLOOKUP(C945,Translation!$A:$C,3,FALSE),C945)","v":"ASSURANCE DE PORTEFEUILLE"},{"$f":"IFERROR(VLOOKUP(D945,Translation!$A:$C,3,FALSE),D945)","v":"Saskatchewan"},{"$f":"IFERROR(VLOOKUP(E945,Translation!$A:$C,3,FALSE),E945)","v":21.26823408218738},{"$f":"IFERROR(VLOOKUP(F945,Translation!$A:$C,3,FALSE),F945)","v":"Période d’amortissement moyenne selon la province"},{"$f":"IFERROR(VLOOKUP(G945,Translation!$A:$C,3,FALSE),G945)","v":"21.3"},{"$f":"IFERROR(VLOOKUP(H945,Translation!$A:$C,3,FALSE),H945)","v":"Saskatchewan"}]
[10,"T4 2017","ASSURANCE DE PORTEFEUILLE","Alberta",22.20973690011845,"Période d’amortissement moyenne selon la province","22.2","Alberta",{"$f":"IFERROR(VLOOKUP(A946,Translation!$A:$C,3,FALSE),A946)","v":10},{"$f":"IFERROR(VLOOKUP(B946,Translation!$A:$C,3,FALSE),B946)","v":"T4 2017"},{"$f":"IFERROR(VLOOKUP(C946,Translation!$A:$C,3,FALSE),C946)","v":"ASSURANCE DE PORTEFEUILLE"},{"$f":"IFERROR(VLOOKUP(D946,Translation!$A:$C,3,FALSE),D946)","v":"Alberta"},{"$f":"IFERROR(VLOOKUP(E946,Translation!$A:$C,3,FALSE),E946)","v":22.20973690011845},{"$f":"IFERROR(VLOOKUP(F946,Translation!$A:$C,3,FALSE),F946)","v":"Période d’amortissement moyenne selon la province"},{"$f":"IFERROR(VLOOKUP(G946,Translation!$A:$C,3,FALSE),G946)","v":"22.2"},{"$f":"IFERROR(VLOOKUP(H946,Translation!$A:$C,3,FALSE),H946)","v":"Alberta"}]
[10,"T4 2017","ASSURANCE DE PORTEFEUILLE","Colombie-Britannique",24.166976398031618,"Période d’amortissement moyenne selon la province","24.2","Colombie-Britannique",{"$f":"IFERROR(VLOOKUP(A947,Translation!$A:$C,3,FALSE),A947)","v":10},{"$f":"IFERROR(VLOOKUP(B947,Translation!$A:$C,3,FALSE),B947)","v":"T4 2017"},{"$f":"IFERROR(VLOOKUP(C947,Translation!$A:$C,3,FALSE),C947)","v":"ASSURANCE DE PORTEFEUILLE"},{"$f":"IFERROR(VLOOKUP(D947,Translation!$A:$C,3,FALSE),D947)","v":"Colombie-Britannique"},{"$f":"IFERROR(VLOOKUP(E947,Translation!$A:$C,3,FALSE),E947)","v":24.166976398031618},{"$f":"IFERROR(VLOOKUP(F947,Translation!$A:$C,3,FALSE),F947)","v":"Période d’amortissement moyenne selon la province"},{"$f":"IFERROR(VLOOKUP(G947,Translation!$A:$C,3,FALSE),G947)","v":"24.2"},{"$f":"IFERROR(VLOOKUP(H947,Translation!$A:$C,3,FALSE),H947)","v":"Colombie-Britannique"}]
[10,"T4 2017","ASSURANCE DE PORTEFEUILLE","Territoires",21.02847838213232,"Période d’amortissement moyenne selon la province","21.0","Territoires",{"$f":"IFERROR(VLOOKUP(A948,Translation!$A:$C,3,FALSE),A948)","v":10},{"$f":"IFERROR(VLOOKUP(B948,Translation!$A:$C,3,FALSE),B948)","v":"T4 2017"},{"$f":"IFERROR(VLOOKUP(C948,Translation!$A:$C,3,FALSE),C948)","v":"ASSURANCE DE PORTEFEUILLE"},{"$f":"IFERROR(VLOOKUP(D948,Translation!$A:$C,3,FALSE),D948)","v":"Territoires"},{"$f":"IFERROR(VLOOKUP(E948,Translation!$A:$C,3,FALSE),E948)","v":21.02847838213232},{"$f":"IFERROR(VLOOKUP(F948,Translation!$A:$C,3,FALSE),F948)","v":"Période d’amortissement moyenne selon la province"},{"$f":"IFERROR(VLOOKUP(G948,Translation!$A:$C,3,FALSE),G948)","v":"21.0"},{"$f":"IFERROR(VLOOKUP(H948,Translation!$A:$C,3,FALSE),H948)","v":"Territoires"}]
[28,"T1 2017","IMMEUBLES COLLECTIFS RÉSIDENTIELS","<= 5",2.3944394388549159E-2,"Prêts hypothécaires assurés au cours de la période selon la période d’amortissement (en années) à l'initiation (%)","0.0"," <= 5",{"$f":"IFERROR(VLOOKUP(A949,Translation!$A:$C,3,FALSE),A949)","v":28},{"$f":"IFERROR(VLOOKUP(B949,Translation!$A:$C,3,FALSE),B949)","v":"T1 2017"},{"$f":"IFERROR(VLOOKUP(C949,Translation!$A:$C,3,FALSE),C949)","v":"IMMEUBLES COLLECTIFS RÉSIDENTIELS"},{"$f":"IFERROR(VLOOKUP(D949,Translation!$A:$C,3,FALSE),D949)","v":"<= 5"},{"$f":"IFERROR(VLOOKUP(E949,Translation!$A:$C,3,FALSE),E949)","v":2.3944394388549159E-2},{"$f":"IFERROR(VLOOKUP(F949,Translation!$A:$C,3,FALSE),F949)","v":"Prêts hypothécaires assurés au cours de la période selon la période d’amortissement (en années) à l'initiation (%)"},{"$f":"IFERROR(VLOOKUP(G949,Translation!$A:$C,3,FALSE),G949)","v":"0.0"},{"$f":"IFERROR(VLOOKUP(H949,Translation!$A:$C,3,FALSE),H949)","v":" <= 5"}]
[28,"T1 2017","IMMEUBLES COLLECTIFS RÉSIDENTIELS","> 10 <= 15",2.1048426685457233,"Prêts hypothécaires assurés au cours de la période selon la période d’amortissement (en années) à l'initiation (%)","2.1"," > 10 <= 15",{"$f":"IFERROR(VLOOKUP(A950,Translation!$A:$C,3,FALSE),A950)","v":28},{"$f":"IFERROR(VLOOKUP(B950,Translation!$A:$C,3,FALSE),B950)","v":"T1 2017"},{"$f":"IFERROR(VLOOKUP(C950,Translation!$A:$C,3,FALSE),C950)","v":"IMMEUBLES COLLECTIFS RÉSIDENTIELS"},{"$f":"IFERROR(VLOOKUP(D950,Translation!$A:$C,3,FALSE),D950)","v":"> 10 <= 15"},{"$f":"IFERROR(VLOOKUP(E950,Translation!$A:$C,3,FALSE),E950)","v":2.1048426685457233},{"$f":"IFERROR(VLOOKUP(F950,Translation!$A:$C,3,FALSE),F950)","v":"Prêts hypothécaires assurés au cours de la période selon la période d’amortissement (en années) à l'initiation (%)"},{"$f":"IFERROR(VLOOKUP(G950,Translation!$A:$C,3,FALSE),G950)","v":"2.1"},{"$f":"IFERROR(VLOOKUP(H950,Translation!$A:$C,3,FALSE),H950)","v":" > 10 <= 15"}]
[28,"T1 2018","IMMEUBLES COLLECTIFS RÉSIDENTIELS","> 10 <= 15",4.0549675189754955E-2,"Prêts hypothécaires assurés au cours de la période selon la période d’amortissement (en années) à l'initiation (%)","0.0"," > 10 <= 15",{"$f":"IFERROR(VLOOKUP(A951,Translation!$A:$C,3,FALSE),A951)","v":28},{"$f":"IFERROR(VLOOKUP(B951,Translation!$A:$C,3,FALSE),B951)","v":"T1 2018"},{"$f":"IFERROR(VLOOKUP(C951,Translation!$A:$C,3,FALSE),C951)","v":"IMMEUBLES COLLECTIFS RÉSIDENTIELS"},{"$f":"IFERROR(VLOOKUP(D951,Translation!$A:$C,3,FALSE),D951)","v":"> 10 <= 15"},{"$f":"IFERROR(VLOOKUP(E951,Translation!$A:$C,3,FALSE),E951)","v":4.0549675189754955E-2},{"$f":"IFERROR(VLOOKUP(F951,Translation!$A:$C,3,FALSE),F951)","v":"Prêts hypothécaires assurés au cours de la période selon la période d’amortissement (en années) à l'initiation (%)"},{"$f":"IFERROR(VLOOKUP(G951,Translation!$A:$C,3,FALSE),G951)","v":"0.0"},{"$f":"IFERROR(VLOOKUP(H951,Translation!$A:$C,3,FALSE),H951)","v":" > 10 <= 15"}]
[28,"Q2 2016","IMMEUBLES COLLECTIFS RÉSIDENTIELS","> 10 <= 15",0.16919855833947217,"Prêts hypothécaires assurés au cours de la période selon la période d’amortissement (en années) à l'initiation (%)","0.2"," > 10 <= 15",{"$f":"IFERROR(VLOOKUP(A952,Translation!$A:$C,3,FALSE),A952)","v":28},{"$f":"IFERROR(VLOOKUP(B952,Translation!$A:$C,3,FALSE),B952)","v":"Q2 2016"},{"$f":"IFERROR(VLOOKUP(C952,Translation!$A:$C,3,FALSE),C952)","v":"IMMEUBLES COLLECTIFS RÉSIDENTIELS"},{"$f":"IFERROR(VLOOKUP(D952,Translation!$A:$C,3,FALSE),D952)","v":"> 10 <= 15"},{"$f":"IFERROR(VLOOKUP(E952,Translation!$A:$C,3,FALSE),E952)","v":0.16919855833947217},{"$f":"IFERROR(VLOOKUP(F952,Translation!$A:$C,3,FALSE),F952)","v":"Prêts hypothécaires assurés au cours de la période selon la période d’amortissement (en années) à l'initiation (%)"},{"$f":"IFERROR(VLOOKUP(G952,Translation!$A:$C,3,FALSE),G952)","v":"0.2"},{"$f":"IFERROR(VLOOKUP(H952,Translation!$A:$C,3,FALSE),H952)","v":" > 10 <= 15"}]
[28,"T2 2017","IMMEUBLES COLLECTIFS RÉSIDENTIELS","> 10 <= 15",1.9385616980009903,"Prêts hypothécaires assurés au cours de la période selon la période d’amortissement (en années) à l'initiation (%)","1.9"," > 10 <= 15",{"$f":"IFERROR(VLOOKUP(A953,Translation!$A:$C,3,FALSE),A953)","v":28},{"$f":"IFERROR(VLOOKUP(B953,Translation!$A:$C,3,FALSE),B953)","v":"T2 2017"},{"$f":"IFERROR(VLOOKUP(C953,Translation!$A:$C,3,FALSE),C953)","v":"IMMEUBLES COLLECTIFS RÉSIDENTIELS"},{"$f":"IFERROR(VLOOKUP(D953,Translation!$A:$C,3,FALSE),D953)","v":"> 10 <= 15"},{"$f":"IFERROR(VLOOKUP(E953,Translation!$A:$C,3,FALSE),E953)","v":1.9385616980009903},{"$f":"IFERROR(VLOOKUP(F953,Translation!$A:$C,3,FALSE),F953)","v":"Prêts hypothécaires assurés au cours de la période selon la période d’amortissement (en années) à l'initiation (%)"},{"$f":"IFERROR(VLOOKUP(G953,Translation!$A:$C,3,FALSE),G953)","v":"1.9"},{"$f":"IFERROR(VLOOKUP(H953,Translation!$A:$C,3,FALSE),H953)","v":" > 10 <= 15"}]
[28,"Q3 2016","IMMEUBLES COLLECTIFS RÉSIDENTIELS","> 10 <= 15",0.23563841422904103,"Prêts hypothécaires assurés au cours de la période selon la période d’amortissement (en années) à l'initiation (%)","0.2"," > 10 <= 15",{"$f":"IFERROR(VLOOKUP(A954,Translation!$A:$C,3,FALSE),A954)","v":28},{"$f":"IFERROR(VLOOKUP(B954,Translation!$A:$C,3,FALSE),B954)","v":"Q3 2016"},{"$f":"IFERROR(VLOOKUP(C954,Translation!$A:$C,3,FALSE),C954)","v":"IMMEUBLES COLLECTIFS RÉSIDENTIELS"},{"$f":"IFERROR(VLOOKUP(D954,Translation!$A:$C,3,FALSE),D954)","v":"> 10 <= 15"},{"$f":"IFERROR(VLOOKUP(E954,Translation!$A:$C,3,FALSE),E954)","v":0.23563841422904103},{"$f":"IFERROR(VLOOKUP(F954,Translation!$A:$C,3,FALSE),F954)","v":"Prêts hypothécaires assurés au cours de la période selon la période d’amortissement (en années) à l'initiation (%)"},{"$f":"IFERROR(VLOOKUP(G954,Translation!$A:$C,3,FALSE),G954)","v":"0.2"},{"$f":"IFERROR(VLOOKUP(H954,Translation!$A:$C,3,FALSE),H954)","v":" > 10 <= 15"}]
[28,"T3 2017","IMMEUBLES COLLECTIFS RÉSIDENTIELS","> 10 <= 15",0.31454691080077024,"Prêts hypothécaires assurés au cours de la période selon la période d’amortissement (en années) à l'initiation (%)","0.3"," > 10 <= 15",{"$f":"IFERROR(VLOOKUP(A955,Translation!$A:$C,3,FALSE),A955)","v":28},{"$f":"IFERROR(VLOOKUP(B955,Translation!$A:$C,3,FALSE),B955)","v":"T3 2017"},{"$f":"IFERROR(VLOOKUP(C955,Translation!$A:$C,3,FALSE),C955)","v":"IMMEUBLES COLLECTIFS RÉSIDENTIELS"},{"$f":"IFERROR(VLOOKUP(D955,Translation!$A:$C,3,FALSE),D955)","v":"> 10 <= 15"},{"$f":"IFERROR(VLOOKUP(E955,Translation!$A:$C,3,FALSE),E955)","v":0.31454691080077024},{"$f":"IFERROR(VLOOKUP(F955,Translation!$A:$C,3,FALSE),F955)","v":"Prêts hypothécaires assurés au cours de la période selon la période d’amortissement (en années) à l'initiation (%)"},{"$f":"IFERROR(VLOOKUP(G955,Translation!$A:$C,3,FALSE),G955)","v":"0.3"},{"$f":"IFERROR(VLOOKUP(H955,Translation!$A:$C,3,FALSE),H955)","v":" > 10 <= 15"}]
[28,"Q4 2016","IMMEUBLES COLLECTIFS RÉSIDENTIELS","> 10 <= 15",3.4381964551865676,"Prêts hypothécaires assurés au cours de la période selon la période d’amortissement (en années) à l'initiation (%)","3.4"," > 10 <= 15",{"$f":"IFERROR(VLOOKUP(A956,Translation!$A:$C,3,FALSE),A956)","v":28},{"$f":"IFERROR(VLOOKUP(B956,Translation!$A:$C,3,FALSE),B956)","v":"Q4 2016"},{"$f":"IFERROR(VLOOKUP(C956,Translation!$A:$C,3,FALSE),C956)","v":"IMMEUBLES COLLECTIFS RÉSIDENTIELS"},{"$f":"IFERROR(VLOOKUP(D956,Translation!$A:$C,3,FALSE),D956)","v":"> 10 <= 15"},{"$f":"IFERROR(VLOOKUP(E956,Translation!$A:$C,3,FALSE),E956)","v":3.4381964551865676},{"$f":"IFERROR(VLOOKUP(F956,Translation!$A:$C,3,FALSE),F956)","v":"Prêts hypothécaires assurés au cours de la période selon la période d’amortissement (en années) à l'initiation (%)"},{"$f":"IFERROR(VLOOKUP(G956,Translation!$A:$C,3,FALSE),G956)","v":"3.4"},{"$f":"IFERROR(VLOOKUP(H956,Translation!$A:$C,3,FALSE),H956)","v":" > 10 <= 15"}]
[28,"T4 2017","IMMEUBLES COLLECTIFS RÉSIDENTIELS","> 10 <= 15",1.3409042547140453,"Prêts hypothécaires assurés au cours de la période selon la période d’amortissement (en années) à l'initiation (%)","1.3"," > 10 <= 15",{"$f":"IFERROR(VLOOKUP(A957,Translation!$A:$C,3,FALSE),A957)","v":28},{"$f":"IFERROR(VLOOKUP(B957,Translation!$A:$C,3,FALSE),B957)","v":"T4 2017"},{"$f":"IFERROR(VLOOKUP(C957,Translation!$A:$C,3,FALSE),C957)","v":"IMMEUBLES COLLECTIFS RÉSIDENTIELS"},{"$f":"IFERROR(VLOOKUP(D957,Translation!$A:$C,3,FALSE),D957)","v":"> 10 <= 15"},{"$f":"IFERROR(VLOOKUP(E957,Translation!$A:$C,3,FALSE),E957)","v":1.3409042547140453},{"$f":"IFERROR(VLOOKUP(F957,Translation!$A:$C,3,FALSE),F957)","v":"Prêts hypothécaires assurés au cours de la période selon la période d’amortissement (en années) à l'initiation (%)"},{"$f":"IFERROR(VLOOKUP(G957,Translation!$A:$C,3,FALSE),G957)","v":"1.3"},{"$f":"IFERROR(VLOOKUP(H957,Translation!$A:$C,3,FALSE),H957)","v":" > 10 <= 15"}]
[28,"T1 2017","IMMEUBLES COLLECTIFS RÉSIDENTIELS","> 15 <= 20",4.7064756267845933,"Prêts hypothécaires assurés au cours de la période selon la période d’amortissement (en années) à l'initiation (%)","4.7"," > 15 <= 20",{"$f":"IFERROR(VLOOKUP(A958,Translation!$A:$C,3,FALSE),A958)","v":28},{"$f":"IFERROR(VLOOKUP(B958,Translation!$A:$C,3,FALSE),B958)","v":"T1 2017"},{"$f":"IFERROR(VLOOKUP(C958,Translation!$A:$C,3,FALSE),C958)","v":"IMMEUBLES COLLECTIFS RÉSIDENTIELS"},{"$f":"IFERROR(VLOOKUP(D958,Translation!$A:$C,3,FALSE),D958)","v":"> 15 <= 20"},{"$f":"IFERROR(VLOOKUP(E958,Translation!$A:$C,3,FALSE),E958)","v":4.7064756267845933},{"$f":"IFERROR(VLOOKUP(F958,Translation!$A:$C,3,FALSE),F958)","v":"Prêts hypothécaires assurés au cours de la période selon la période d’amortissement (en années) à l'initiation (%)"},{"$f":"IFERROR(VLOOKUP(G958,Translation!$A:$C,3,FALSE),G958)","v":"4.7"},{"$f":"IFERROR(VLOOKUP(H958,Translation!$A:$C,3,FALSE),H958)","v":" > 15 <= 20"}]
[28,"T1 2018","IMMEUBLES COLLECTIFS RÉSIDENTIELS","> 15 <= 20",0.96218030035583824,"Prêts hypothécaires assurés au cours de la période selon la période d’amortissement (en années) à l'initiation (%)","1.0"," > 15 <= 20",{"$f":"IFERROR(VLOOKUP(A959,Translation!$A:$C,3,FALSE),A959)","v":28},{"$f":"IFERROR(VLOOKUP(B959,Translation!$A:$C,3,FALSE),B959)","v":"T1 2018"},{"$f":"IFERROR(VLOOKUP(C959,Translation!$A:$C,3,FALSE),C959)","v":"IMMEUBLES COLLECTIFS RÉSIDENTIELS"},{"$f":"IFERROR(VLOOKUP(D959,Translation!$A:$C,3,FALSE),D959)","v":"> 15 <= 20"},{"$f":"IFERROR(VLOOKUP(E959,Translation!$A:$C,3,FALSE),E959)","v":0.96218030035583824},{"$f":"IFERROR(VLOOKUP(F959,Translation!$A:$C,3,FALSE),F959)","v":"Prêts hypothécaires assurés au cours de la période selon la période d’amortissement (en années) à l'initiation (%)"},{"$f":"IFERROR(VLOOKUP(G959,Translation!$A:$C,3,FALSE),G959)","v":"1.0"},{"$f":"IFERROR(VLOOKUP(H959,Translation!$A:$C,3,FALSE),H959)","v":" > 15 <= 20"}]
[28,"Q2 2016","IMMEUBLES COLLECTIFS RÉSIDENTIELS","> 15 <= 20",0.58635757088325779,"Prêts hypothécaires assurés au cours de la période selon la période d’amortissement (en années) à l'initiation (%)","0.6"," > 15 <= 20",{"$f":"IFERROR(VLOOKUP(A960,Translation!$A:$C,3,FALSE),A960)","v":28},{"$f":"IFERROR(VLOOKUP(B960,Translation!$A:$C,3,FALSE),B960)","v":"Q2 2016"},{"$f":"IFERROR(VLOOKUP(C960,Translation!$A:$C,3,FALSE),C960)","v":"IMMEUBLES COLLECTIFS RÉSIDENTIELS"},{"$f":"IFERROR(VLOOKUP(D960,Translation!$A:$C,3,FALSE),D960)","v":"> 15 <= 20"},{"$f":"IFERROR(VLOOKUP(E960,Translation!$A:$C,3,FALSE),E960)","v":0.58635757088325779},{"$f":"IFERROR(VLOOKUP(F960,Translation!$A:$C,3,FALSE),F960)","v":"Prêts hypothécaires assurés au cours de la période selon la période d’amortissement (en années) à l'initiation (%)"},{"$f":"IFERROR(VLOOKUP(G960,Translation!$A:$C,3,FALSE),G960)","v":"0.6"},{"$f":"IFERROR(VLOOKUP(H960,Translation!$A:$C,3,FALSE),H960)","v":" > 15 <= 20"}]
[28,"T2 2017","IMMEUBLES COLLECTIFS RÉSIDENTIELS","> 15 <= 20",1.5937259761150051,"Prêts hypothécaires assurés au cours de la période selon la période d’amortissement (en années) à l'initiation (%)","1.6"," > 15 <= 20",{"$f":"IFERROR(VLOOKUP(A961,Translation!$A:$C,3,FALSE),A961)","v":28},{"$f":"IFERROR(VLOOKUP(B961,Translation!$A:$C,3,FALSE),B961)","v":"T2 2017"},{"$f":"IFERROR(VLOOKUP(C961,Translation!$A:$C,3,FALSE),C961)","v":"IMMEUBLES COLLECTIFS RÉSIDENTIELS"},{"$f":"IFERROR(VLOOKUP(D961,Translation!$A:$C,3,FALSE),D961)","v":"> 15 <= 20"},{"$f":"IFERROR(VLOOKUP(E961,Translation!$A:$C,3,FALSE),E961)","v":1.5937259761150051},{"$f":"IFERROR(VLOOKUP(F961,Translation!$A:$C,3,FALSE),F961)","v":"Prêts hypothécaires assurés au cours de la période selon la période d’amortissement (en années) à l'initiation (%)"},{"$f":"IFERROR(VLOOKUP(G961,Translation!$A:$C,3,FALSE),G961)","v":"1.6"},{"$f":"IFERROR(VLOOKUP(H961,Translation!$A:$C,3,FALSE),H961)","v":" > 15 <= 20"}]
[28,"Q3 2016","IMMEUBLES COLLECTIFS RÉSIDENTIELS","> 15 <= 20",3.7174078783312927,"Prêts hypothécaires assurés au cours de la période selon la période d’amortissement (en années) à l'initiation (%)","3.7"," > 15 <= 20",{"$f":"IFERROR(VLOOKUP(A962,Translation!$A:$C,3,FALSE),A962)","v":28},{"$f":"IFERROR(VLOOKUP(B962,Translation!$A:$C,3,FALSE),B962)","v":"Q3 2016"},{"$f":"IFERROR(VLOOKUP(C962,Translation!$A:$C,3,FALSE),C962)","v":"IMMEUBLES COLLECTIFS RÉSIDENTIELS"},{"$f":"IFERROR(VLOOKUP(D962,Translation!$A:$C,3,FALSE),D962)","v":"> 15 <= 20"},{"$f":"IFERROR(VLOOKUP(E962,Translation!$A:$C,3,FALSE),E962)","v":3.7174078783312927},{"$f":"IFERROR(VLOOKUP(F962,Translation!$A:$C,3,FALSE),F962)","v":"Prêts hypothécaires assurés au cours de la période selon la période d’amortissement (en années) à l'initiation (%)"},{"$f":"IFERROR(VLOOKUP(G962,Translation!$A:$C,3,FALSE),G962)","v":"3.7"},{"$f":"IFERROR(VLOOKUP(H962,Translation!$A:$C,3,FALSE),H962)","v":" > 15 <= 20"}]
[28,"T3 2017","IMMEUBLES COLLECTIFS RÉSIDENTIELS","> 15 <= 20",1.1848172082016573,"Prêts hypothécaires assurés au cours de la période selon la période d’amortissement (en années) à l'initiation (%)","1.2"," > 15 <= 20",{"$f":"IFERROR(VLOOKUP(A963,Translation!$A:$C,3,FALSE),A963)","v":28},{"$f":"IFERROR(VLOOKUP(B963,Translation!$A:$C,3,FALSE),B963)","v":"T3 2017"},{"$f":"IFERROR(VLOOKUP(C963,Translation!$A:$C,3,FALSE),C963)","v":"IMMEUBLES COLLECTIFS RÉSIDENTIELS"},{"$f":"IFERROR(VLOOKUP(D963,Translation!$A:$C,3,FALSE),D963)","v":"> 15 <= 20"},{"$f":"IFERROR(VLOOKUP(E963,Translation!$A:$C,3,FALSE),E963)","v":1.1848172082016573},{"$f":"IFERROR(VLOOKUP(F963,Translation!$A:$C,3,FALSE),F963)","v":"Prêts hypothécaires assurés au cours de la période selon la période d’amortissement (en années) à l'initiation (%)"},{"$f":"IFERROR(VLOOKUP(G963,Translation!$A:$C,3,FALSE),G963)","v":"1.2"},{"$f":"IFERROR(VLOOKUP(H963,Translation!$A:$C,3,FALSE),H963)","v":" > 15 <= 20"}]
[28,"Q4 2016","IMMEUBLES COLLECTIFS RÉSIDENTIELS","> 15 <= 20",3.001991545353055,"Prêts hypothécaires assurés au cours de la période selon la période d’amortissement (en années) à l'initiation (%)","3.0"," > 15 <= 20",{"$f":"IFERROR(VLOOKUP(A964,Translation!$A:$C,3,FALSE),A964)","v":28},{"$f":"IFERROR(VLOOKUP(B964,Translation!$A:$C,3,FALSE),B964)","v":"Q4 2016"},{"$f":"IFERROR(VLOOKUP(C964,Translation!$A:$C,3,FALSE),C964)","v":"IMMEUBLES COLLECTIFS RÉSIDENTIELS"},{"$f":"IFERROR(VLOOKUP(D964,Translation!$A:$C,3,FALSE),D964)","v":"> 15 <= 20"},{"$f":"IFERROR(VLOOKUP(E964,Translation!$A:$C,3,FALSE),E964)","v":3.001991545353055},{"$f":"IFERROR(VLOOKUP(F964,Translation!$A:$C,3,FALSE),F964)","v":"Prêts hypothécaires assurés au cours de la période selon la période d’amortissement (en années) à l'initiation (%)"},{"$f":"IFERROR(VLOOKUP(G964,Translation!$A:$C,3,FALSE),G964)","v":"3.0"},{"$f":"IFERROR(VLOOKUP(H964,Translation!$A:$C,3,FALSE),H964)","v":" > 15 <= 20"}]
[28,"T4 2017","IMMEUBLES COLLECTIFS RÉSIDENTIELS","> 15 <= 20",3.939231384685387E-2,"Prêts hypothécaires assurés au cours de la période selon la période d’amortissement (en années) à l'initiation (%)","0.0"," > 15 <= 20",{"$f":"IFERROR(VLOOKUP(A965,Translation!$A:$C,3,FALSE),A965)","v":28},{"$f":"IFERROR(VLOOKUP(B965,Translation!$A:$C,3,FALSE),B965)","v":"T4 2017"},{"$f":"IFERROR(VLOOKUP(C965,Translation!$A:$C,3,FALSE),C965)","v":"IMMEUBLES COLLECTIFS RÉSIDENTIELS"},{"$f":"IFERROR(VLOOKUP(D965,Translation!$A:$C,3,FALSE),D965)","v":"> 15 <= 20"},{"$f":"IFERROR(VLOOKUP(E965,Translation!$A:$C,3,FALSE),E965)","v":3.939231384685387E-2},{"$f":"IFERROR(VLOOKUP(F965,Translation!$A:$C,3,FALSE),F965)","v":"Prêts hypothécaires assurés au cours de la période selon la période d’amortissement (en années) à l'initiation (%)"},{"$f":"IFERROR(VLOOKUP(G965,Translation!$A:$C,3,FALSE),G965)","v":"0.0"},{"$f":"IFERROR(VLOOKUP(H965,Translation!$A:$C,3,FALSE),H965)","v":" > 15 <= 20"}]
[28,"T1 2017","IMMEUBLES COLLECTIFS RÉSIDENTIELS","> 20 <= 25",38.294655111362275,"Prêts hypothécaires assurés au cours de la période selon la période d’amortissement (en années) à l'initiation (%)","38.3"," > 20 <= 25",{"$f":"IFERROR(VLOOKUP(A966,Translation!$A:$C,3,FALSE),A966)","v":28},{"$f":"IFERROR(VLOOKUP(B966,Translation!$A:$C,3,FALSE),B966)","v":"T1 2017"},{"$f":"IFERROR(VLOOKUP(C966,Translation!$A:$C,3,FALSE),C966)","v":"IMMEUBLES COLLECTIFS RÉSIDENTIELS"},{"$f":"IFERROR(VLOOKUP(D966,Translation!$A:$C,3,FALSE),D966)","v":"> 20 <= 25"},{"$f":"IFERROR(VLOOKUP(E966,Translation!$A:$C,3,FALSE),E966)","v":38.294655111362275},{"$f":"IFERROR(VLOOKUP(F966,Translation!$A:$C,3,FALSE),F966)","v":"Prêts hypothécaires assurés au cours de la période selon la période d’amortissement (en années) à l'initiation (%)"},{"$f":"IFERROR(VLOOKUP(G966,Translation!$A:$C,3,FALSE),G966)","v":"38.3"},{"$f":"IFERROR(VLOOKUP(H966,Translation!$A:$C,3,FALSE),H966)","v":" > 20 <= 25"}]
[28,"T1 2018","IMMEUBLES COLLECTIFS RÉSIDENTIELS","> 20 <= 25",27.856127031111505,"Prêts hypothécaires assurés au cours de la période selon la période d’amortissement (en années) à l'initiation (%)","27.9"," > 20 <= 25",{"$f":"IFERROR(VLOOKUP(A967,Translation!$A:$C,3,FALSE),A967)","v":28},{"$f":"IFERROR(VLOOKUP(B967,Translation!$A:$C,3,FALSE),B967)","v":"T1 2018"},{"$f":"IFERROR(VLOOKUP(C967,Translation!$A:$C,3,FALSE),C967)","v":"IMMEUBLES COLLECTIFS RÉSIDENTIELS"},{"$f":"IFERROR(VLOOKUP(D967,Translation!$A:$C,3,FALSE),D967)","v":"> 20 <= 25"},{"$f":"IFERROR(VLOOKUP(E967,Translation!$A:$C,3,FALSE),E967)","v":27.856127031111505},{"$f":"IFERROR(VLOOKUP(F967,Translation!$A:$C,3,FALSE),F967)","v":"Prêts hypothécaires assurés au cours de la période selon la période d’amortissement (en années) à l'initiation (%)"},{"$f":"IFERROR(VLOOKUP(G967,Translation!$A:$C,3,FALSE),G967)","v":"27.9"},{"$f":"IFERROR(VLOOKUP(H967,Translation!$A:$C,3,FALSE),H967)","v":" > 20 <= 25"}]
[28,"Q2 2016","IMMEUBLES COLLECTIFS RÉSIDENTIELS","> 20 <= 25",40.973042583587642,"Prêts hypothécaires assurés au cours de la période selon la période d’amortissement (en années) à l'initiation (%)","41.0"," > 20 <= 25",{"$f":"IFERROR(VLOOKUP(A968,Translation!$A:$C,3,FALSE),A968)","v":28},{"$f":"IFERROR(VLOOKUP(B968,Translation!$A:$C,3,FALSE),B968)","v":"Q2 2016"},{"$f":"IFERROR(VLOOKUP(C968,Translation!$A:$C,3,FALSE),C968)","v":"IMMEUBLES COLLECTIFS RÉSIDENTIELS"},{"$f":"IFERROR(VLOOKUP(D968,Translation!$A:$C,3,FALSE),D968)","v":"> 20 <= 25"},{"$f":"IFERROR(VLOOKUP(E968,Translation!$A:$C,3,FALSE),E968)","v":40.973042583587642},{"$f":"IFERROR(VLOOKUP(F968,Translation!$A:$C,3,FALSE),F968)","v":"Prêts hypothécaires assurés au cours de la période selon la période d’amortissement (en années) à l'initiation (%)"},{"$f":"IFERROR(VLOOKUP(G968,Translation!$A:$C,3,FALSE),G968)","v":"41.0"},{"$f":"IFERROR(VLOOKUP(H968,Translation!$A:$C,3,FALSE),H968)","v":" > 20 <= 25"}]
[28,"T2 2017","IMMEUBLES COLLECTIFS RÉSIDENTIELS","> 20 <= 25",32.61663134395441,"Prêts hypothécaires assurés au cours de la période selon la période d’amortissement (en années) à l'initiation (%)","32.6"," > 20 <= 25",{"$f":"IFERROR(VLOOKUP(A969,Translation!$A:$C,3,FALSE),A969)","v":28},{"$f":"IFERROR(VLOOKUP(B969,Translation!$A:$C,3,FALSE),B969)","v":"T2 2017"},{"$f":"IFERROR(VLOOKUP(C969,Translation!$A:$C,3,FALSE),C969)","v":"IMMEUBLES COLLECTIFS RÉSIDENTIELS"},{"$f":"IFERROR(VLOOKUP(D969,Translation!$A:$C,3,FALSE),D969)","v":"> 20 <= 25"},{"$f":"IFERROR(VLOOKUP(E969,Translation!$A:$C,3,FALSE),E969)","v":32.61663134395441},{"$f":"IFERROR(VLOOKUP(F969,Translation!$A:$C,3,FALSE),F969)","v":"Prêts hypothécaires assurés au cours de la période selon la période d’amortissement (en années) à l'initiation (%)"},{"$f":"IFERROR(VLOOKUP(G969,Translation!$A:$C,3,FALSE),G969)","v":"32.6"},{"$f":"IFERROR(VLOOKUP(H969,Translation!$A:$C,3,FALSE),H969)","v":" > 20 <= 25"}]
[28,"Q3 2016","IMMEUBLES COLLECTIFS RÉSIDENTIELS","> 20 <= 25",35.975982565515999,"Prêts hypothécaires assurés au cours de la période selon la période d’amortissement (en années) à l'initiation (%)","36.0"," > 20 <= 25",{"$f":"IFERROR(VLOOKUP(A970,Translation!$A:$C,3,FALSE),A970)","v":28},{"$f":"IFERROR(VLOOKUP(B970,Translation!$A:$C,3,FALSE),B970)","v":"Q3 2016"},{"$f":"IFERROR(VLOOKUP(C970,Translation!$A:$C,3,FALSE),C970)","v":"IMMEUBLES COLLECTIFS RÉSIDENTIELS"},{"$f":"IFERROR(VLOOKUP(D970,Translation!$A:$C,3,FALSE),D970)","v":"> 20 <= 25"},{"$f":"IFERROR(VLOOKUP(E970,Translation!$A:$C,3,FALSE),E970)","v":35.975982565515999},{"$f":"IFERROR(VLOOKUP(F970,Translation!$A:$C,3,FALSE),F970)","v":"Prêts hypothécaires assurés au cours de la période selon la période d’amortissement (en années) à l'initiation (%)"},{"$f":"IFERROR(VLOOKUP(G970,Translation!$A:$C,3,FALSE),G970)","v":"36.0"},{"$f":"IFERROR(VLOOKUP(H970,Translation!$A:$C,3,FALSE),H970)","v":" > 20 <= 25"}]
[28,"T3 2017","IMMEUBLES COLLECTIFS RÉSIDENTIELS","> 20 <= 25",29.106255063321303,"Prêts hypothécaires assurés au cours de la période selon la période d’amortissement (en années) à l'initiation (%)","29.1"," > 20 <= 25",{"$f":"IFERROR(VLOOKUP(A971,Translation!$A:$C,3,FALSE),A971)","v":28},{"$f":"IFERROR(VLOOKUP(B971,Translation!$A:$C,3,FALSE),B971)","v":"T3 2017"},{"$f":"IFERROR(VLOOKUP(C971,Translation!$A:$C,3,FALSE),C971)","v":"IMMEUBLES COLLECTIFS RÉSIDENTIELS"},{"$f":"IFERROR(VLOOKUP(D971,Translation!$A:$C,3,FALSE),D971)","v":"> 20 <= 25"},{"$f":"IFERROR(VLOOKUP(E971,Translation!$A:$C,3,FALSE),E971)","v":29.106255063321303},{"$f":"IFERROR(VLOOKUP(F971,Translation!$A:$C,3,FALSE),F971)","v":"Prêts hypothécaires assurés au cours de la période selon la période d’amortissement (en années) à l'initiation (%)"},{"$f":"IFERROR(VLOOKUP(G971,Translation!$A:$C,3,FALSE),G971)","v":"29.1"},{"$f":"IFERROR(VLOOKUP(H971,Translation!$A:$C,3,FALSE),H971)","v":" > 20 <= 25"}]
[28,"Q4 2016","IMMEUBLES COLLECTIFS RÉSIDENTIELS","> 20 <= 25",36.976683206161027,"Prêts hypothécaires assurés au cours de la période selon la période d’amortissement (en années) à l'initiation (%)","37.0"," > 20 <= 25",{"$f":"IFERROR(VLOOKUP(A972,Translation!$A:$C,3,FALSE),A972)","v":28},{"$f":"IFERROR(VLOOKUP(B972,Translation!$A:$C,3,FALSE),B972)","v":"Q4 2016"},{"$f":"IFERROR(VLOOKUP(C972,Translation!$A:$C,3,FALSE),C972)","v":"IMMEUBLES COLLECTIFS RÉSIDENTIELS"},{"$f":"IFERROR(VLOOKUP(D972,Translation!$A:$C,3,FALSE),D972)","v":"> 20 <= 25"},{"$f":"IFERROR(VLOOKUP(E972,Translation!$A:$C,3,FALSE),E972)","v":36.976683206161027},{"$f":"IFERROR(VLOOKUP(F972,Translation!$A:$C,3,FALSE),F972)","v":"Prêts hypothécaires assurés au cours de la période selon la période d’amortissement (en années) à l'initiation (%)"},{"$f":"IFERROR(VLOOKUP(G972,Translation!$A:$C,3,FALSE),G972)","v":"37.0"},{"$f":"IFERROR(VLOOKUP(H972,Translation!$A:$C,3,FALSE),H972)","v":" > 20 <= 25"}]
[28,"T4 2017","IMMEUBLES COLLECTIFS RÉSIDENTIELS","> 20 <= 25",25.119159580992765,"Prêts hypothécaires assurés au cours de la période selon la période d’amortissement (en années) à l'initiation (%)","25.1"," > 20 <= 25",{"$f":"IFERROR(VLOOKUP(A973,Translation!$A:$C,3,FALSE),A973)","v":28},{"$f":"IFERROR(VLOOKUP(B973,Translation!$A:$C,3,FALSE),B973)","v":"T4 2017"},{"$f":"IFERROR(VLOOKUP(C973,Translation!$A:$C,3,FALSE),C973)","v":"IMMEUBLES COLLECTIFS RÉSIDENTIELS"},{"$f":"IFERROR(VLOOKUP(D973,Translation!$A:$C,3,FALSE),D973)","v":"> 20 <= 25"},{"$f":"IFERROR(VLOOKUP(E973,Translation!$A:$C,3,FALSE),E973)","v":25.119159580992765},{"$f":"IFERROR(VLOOKUP(F973,Translation!$A:$C,3,FALSE),F973)","v":"Prêts hypothécaires assurés au cours de la période selon la période d’amortissement (en années) à l'initiation (%)"},{"$f":"IFERROR(VLOOKUP(G973,Translation!$A:$C,3,FALSE),G973)","v":"25.1"},{"$f":"IFERROR(VLOOKUP(H973,Translation!$A:$C,3,FALSE),H973)","v":" > 20 <= 25"}]
[28,"T1 2017","IMMEUBLES COLLECTIFS RÉSIDENTIELS","> 25 <= 30",34.130581220247777,"Prêts hypothécaires assurés au cours de la période selon la période d’amortissement (en années) à l'initiation (%)","34.1"," > 25 <= 30",{"$f":"IFERROR(VLOOKUP(A974,Translation!$A:$C,3,FALSE),A974)","v":28},{"$f":"IFERROR(VLOOKUP(B974,Translation!$A:$C,3,FALSE),B974)","v":"T1 2017"},{"$f":"IFERROR(VLOOKUP(C974,Translation!$A:$C,3,FALSE),C974)","v":"IMMEUBLES COLLECTIFS RÉSIDENTIELS"},{"$f":"IFERROR(VLOOKUP(D974,Translation!$A:$C,3,FALSE),D974)","v":"> 25 <= 30"},{"$f":"IFERROR(VLOOKUP(E974,Translation!$A:$C,3,FALSE),E974)","v":34.130581220247777},{"$f":"IFERROR(VLOOKUP(F974,Translation!$A:$C,3,FALSE),F974)","v":"Prêts hypothécaires assurés au cours de la période selon la période d’amortissement (en années) à l'initiation (%)"},{"$f":"IFERROR(VLOOKUP(G974,Translation!$A:$C,3,FALSE),G974)","v":"34.1"},{"$f":"IFERROR(VLOOKUP(H974,Translation!$A:$C,3,FALSE),H974)","v":" > 25 <= 30"}]
[28,"T1 2018","IMMEUBLES COLLECTIFS RÉSIDENTIELS","> 25 <= 30",40.112684191139849,"Prêts hypothécaires assurés au cours de la période selon la période d’amortissement (en années) à l'initiation (%)","40.1"," > 25 <= 30",{"$f":"IFERROR(VLOOKUP(A975,Translation!$A:$C,3,FALSE),A975)","v":28},{"$f":"IFERROR(VLOOKUP(B975,Translation!$A:$C,3,FALSE),B975)","v":"T1 2018"},{"$f":"IFERROR(VLOOKUP(C975,Translation!$A:$C,3,FALSE),C975)","v":"IMMEUBLES COLLECTIFS RÉSIDENTIELS"},{"$f":"IFERROR(VLOOKUP(D975,Translation!$A:$C,3,FALSE),D975)","v":"> 25 <= 30"},{"$f":"IFERROR(VLOOKUP(E975,Translation!$A:$C,3,FALSE),E975)","v":40.112684191139849},{"$f":"IFERROR(VLOOKUP(F975,Translation!$A:$C,3,FALSE),F975)","v":"Prêts hypothécaires assurés au cours de la période selon la période d’amortissement (en années) à l'initiation (%)"},{"$f":"IFERROR(VLOOKUP(G975,Translation!$A:$C,3,FALSE),G975)","v":"40.1"},{"$f":"IFERROR(VLOOKUP(H975,Translation!$A:$C,3,FALSE),H975)","v":" > 25 <= 30"}]
[28,"Q2 2016","IMMEUBLES COLLECTIFS RÉSIDENTIELS","> 25 <= 30",28.691954218896825,"Prêts hypothécaires assurés au cours de la période selon la période d’amortissement (en années) à l'initiation (%)","28.7"," > 25 <= 30",{"$f":"IFERROR(VLOOKUP(A976,Translation!$A:$C,3,FALSE),A976)","v":28},{"$f":"IFERROR(VLOOKUP(B976,Translation!$A:$C,3,FALSE),B976)","v":"Q2 2016"},{"$f":"IFERROR(VLOOKUP(C976,Translation!$A:$C,3,FALSE),C976)","v":"IMMEUBLES COLLECTIFS RÉSIDENTIELS"},{"$f":"IFERROR(VLOOKUP(D976,Translation!$A:$C,3,FALSE),D976)","v":"> 25 <= 30"},{"$f":"IFERROR(VLOOKUP(E976,Translation!$A:$C,3,FALSE),E976)","v":28.691954218896825},{"$f":"IFERROR(VLOOKUP(F976,Translation!$A:$C,3,FALSE),F976)","v":"Prêts hypothécaires assurés au cours de la période selon la période d’amortissement (en années) à l'initiation (%)"},{"$f":"IFERROR(VLOOKUP(G976,Translation!$A:$C,3,FALSE),G976)","v":"28.7"},{"$f":"IFERROR(VLOOKUP(H976,Translation!$A:$C,3,FALSE),H976)","v":" > 25 <= 30"}]
[28,"T2 2017","IMMEUBLES COLLECTIFS RÉSIDENTIELS","> 25 <= 30",33.539619987500153,"Prêts hypothécaires assurés au cours de la période selon la période d’amortissement (en années) à l'initiation (%)","33.5"," > 25 <= 30",{"$f":"IFERROR(VLOOKUP(A977,Translation!$A:$C,3,FALSE),A977)","v":28},{"$f":"IFERROR(VLOOKUP(B977,Translation!$A:$C,3,FALSE),B977)","v":"T2 2017"},{"$f":"IFERROR(VLOOKUP(C977,Translation!$A:$C,3,FALSE),C977)","v":"IMMEUBLES COLLECTIFS RÉSIDENTIELS"},{"$f":"IFERROR(VLOOKUP(D977,Translation!$A:$C,3,FALSE),D977)","v":"> 25 <= 30"},{"$f":"IFERROR(VLOOKUP(E977,Translation!$A:$C,3,FALSE),E977)","v":33.539619987500153},{"$f":"IFERROR(VLOOKUP(F977,Translation!$A:$C,3,FALSE),F977)","v":"Prêts hypothécaires assurés au cours de la période selon la période d’amortissement (en années) à l'initiation (%)"},{"$f":"IFERROR(VLOOKUP(G977,Translation!$A:$C,3,FALSE),G977)","v":"33.5"},{"$f":"IFERROR(VLOOKUP(H977,Translation!$A:$C,3,FALSE),H977)","v":" > 25 <= 30"}]
[28,"Q3 2016","IMMEUBLES COLLECTIFS RÉSIDENTIELS","> 25 <= 30",36.127985063937743,"Prêts hypothécaires assurés au cours de la période selon la période d’amortissement (en années) à l'initiation (%)","36.1"," > 25 <= 30",{"$f":"IFERROR(VLOOKUP(A978,Translation!$A:$C,3,FALSE),A978)","v":28},{"$f":"IFERROR(VLOOKUP(B978,Translation!$A:$C,3,FALSE),B978)","v":"Q3 2016"},{"$f":"IFERROR(VLOOKUP(C978,Translation!$A:$C,3,FALSE),C978)","v":"IMMEUBLES COLLECTIFS RÉSIDENTIELS"},{"$f":"IFERROR(VLOOKUP(D978,Translation!$A:$C,3,FALSE),D978)","v":"> 25 <= 30"},{"$f":"IFERROR(VLOOKUP(E978,Translation!$A:$C,3,FALSE),E978)","v":36.127985063937743},{"$f":"IFERROR(VLOOKUP(F978,Translation!$A:$C,3,FALSE),F978)","v":"Prêts hypothécaires assurés au cours de la période selon la période d’amortissement (en années) à l'initiation (%)"},{"$f":"IFERROR(VLOOKUP(G978,Translation!$A:$C,3,FALSE),G978)","v":"36.1"},{"$f":"IFERROR(VLOOKUP(H978,Translation!$A:$C,3,FALSE),H978)","v":" > 25 <= 30"}]
[28,"T3 2017","IMMEUBLES COLLECTIFS RÉSIDENTIELS","> 25 <= 30",36.324444396867683,"Prêts hypothécaires assurés au cours de la période selon la période d’amortissement (en années) à l'initiation (%)","36.3"," > 25 <= 30",{"$f":"IFERROR(VLOOKUP(A979,Translation!$A:$C,3,FALSE),A979)","v":28},{"$f":"IFERROR(VLOOKUP(B979,Translation!$A:$C,3,FALSE),B979)","v":"T3 2017"},{"$f":"IFERROR(VLOOKUP(C979,Translation!$A:$C,3,FALSE),C979)","v":"IMMEUBLES COLLECTIFS RÉSIDENTIELS"},{"$f":"IFERROR(VLOOKUP(D979,Translation!$A:$C,3,FALSE),D979)","v":"> 25 <= 30"},{"$f":"IFERROR(VLOOKUP(E979,Translation!$A:$C,3,FALSE),E979)","v":36.324444396867683},{"$f":"IFERROR(VLOOKUP(F979,Translation!$A:$C,3,FALSE),F979)","v":"Prêts hypothécaires assurés au cours de la période selon la période d’amortissement (en années) à l'initiation (%)"},{"$f":"IFERROR(VLOOKUP(G979,Translation!$A:$C,3,FALSE),G979)","v":"36.3"},{"$f":"IFERROR(VLOOKUP(H979,Translation!$A:$C,3,FALSE),H979)","v":" > 25 <= 30"}]
[28,"Q4 2016","IMMEUBLES COLLECTIFS RÉSIDENTIELS","> 25 <= 30",30.078016245000725,"Prêts hypothécaires assurés au cours de la période selon la période d’amortissement (en années) à l'initiation (%)","30.1"," > 25 <= 30",{"$f":"IFERROR(VLOOKUP(A980,Translation!$A:$C,3,FALSE),A980)","v":28},{"$f":"IFERROR(VLOOKUP(B980,Translation!$A:$C,3,FALSE),B980)","v":"Q4 2016"},{"$f":"IFERROR(VLOOKUP(C980,Translation!$A:$C,3,FALSE),C980)","v":"IMMEUBLES COLLECTIFS RÉSIDENTIELS"},{"$f":"IFERROR(VLOOKUP(D980,Translation!$A:$C,3,FALSE),D980)","v":"> 25 <= 30"},{"$f":"IFERROR(VLOOKUP(E980,Translation!$A:$C,3,FALSE),E980)","v":30.078016245000725},{"$f":"IFERROR(VLOOKUP(F980,Translation!$A:$C,3,FALSE),F980)","v":"Prêts hypothécaires assurés au cours de la période selon la période d’amortissement (en années) à l'initiation (%)"},{"$f":"IFERROR(VLOOKUP(G980,Translation!$A:$C,3,FALSE),G980)","v":"30.1"},{"$f":"IFERROR(VLOOKUP(H980,Translation!$A:$C,3,FALSE),H980)","v":" > 25 <= 30"}]
[28,"T4 2017","IMMEUBLES COLLECTIFS RÉSIDENTIELS","> 25 <= 30",33.785066904401198,"Prêts hypothécaires assurés au cours de la période selon la période d’amortissement (en années) à l'initiation (%)","33.8"," > 25 <= 30",{"$f":"IFERROR(VLOOKUP(A981,Translation!$A:$C,3,FALSE),A981)","v":28},{"$f":"IFERROR(VLOOKUP(B981,Translation!$A:$C,3,FALSE),B981)","v":"T4 2017"},{"$f":"IFERROR(VLOOKUP(C981,Translation!$A:$C,3,FALSE),C981)","v":"IMMEUBLES COLLECTIFS RÉSIDENTIELS"},{"$f":"IFERROR(VLOOKUP(D981,Translation!$A:$C,3,FALSE),D981)","v":"> 25 <= 30"},{"$f":"IFERROR(VLOOKUP(E981,Translation!$A:$C,3,FALSE),E981)","v":33.785066904401198},{"$f":"IFERROR(VLOOKUP(F981,Translation!$A:$C,3,FALSE),F981)","v":"Prêts hypothécaires assurés au cours de la période selon la période d’amortissement (en années) à l'initiation (%)"},{"$f":"IFERROR(VLOOKUP(G981,Translation!$A:$C,3,FALSE),G981)","v":"33.8"},{"$f":"IFERROR(VLOOKUP(H981,Translation!$A:$C,3,FALSE),H981)","v":" > 25 <= 30"}]
[28,"T1 2017","IMMEUBLES COLLECTIFS RÉSIDENTIELS","> 30 <= 35",15.428834215839071,"Prêts hypothécaires assurés au cours de la période selon la période d’amortissement (en années) à l'initiation (%)","15.4"," > 30 <= 35",{"$f":"IFERROR(VLOOKUP(A982,Translation!$A:$C,3,FALSE),A982)","v":28},{"$f":"IFERROR(VLOOKUP(B982,Translation!$A:$C,3,FALSE),B982)","v":"T1 2017"},{"$f":"IFERROR(VLOOKUP(C982,Translation!$A:$C,3,FALSE),C982)","v":"IMMEUBLES COLLECTIFS RÉSIDENTIELS"},{"$f":"IFERROR(VLOOKUP(D982,Translation!$A:$C,3,FALSE),D982)","v":"> 30 <= 35"},{"$f":"IFERROR(VLOOKUP(E982,Translation!$A:$C,3,FALSE),E982)","v":15.428834215839071},{"$f":"IFERROR(VLOOKUP(F982,Translation!$A:$C,3,FALSE),F982)","v":"Prêts hypothécaires assurés au cours de la période selon la période d’amortissement (en années) à l'initiation (%)"},{"$f":"IFERROR(VLOOKUP(G982,Translation!$A:$C,3,FALSE),G982)","v":"15.4"},{"$f":"IFERROR(VLOOKUP(H982,Translation!$A:$C,3,FALSE),H982)","v":" > 30 <= 35"}]
[28,"T1 2018","IMMEUBLES COLLECTIFS RÉSIDENTIELS","> 30 <= 35",14.8308672732459,"Prêts hypothécaires assurés au cours de la période selon la période d’amortissement (en années) à l'initiation (%)","14.8"," > 30 <= 35",{"$f":"IFERROR(VLOOKUP(A983,Translation!$A:$C,3,FALSE),A983)","v":28},{"$f":"IFERROR(VLOOKUP(B983,Translation!$A:$C,3,FALSE),B983)","v":"T1 2018"},{"$f":"IFERROR(VLOOKUP(C983,Translation!$A:$C,3,FALSE),C983)","v":"IMMEUBLES COLLECTIFS RÉSIDENTIELS"},{"$f":"IFERROR(VLOOKUP(D983,Translation!$A:$C,3,FALSE),D983)","v":"> 30 <= 35"},{"$f":"IFERROR(VLOOKUP(E983,Translation!$A:$C,3,FALSE),E983)","v":14.8308672732459},{"$f":"IFERROR(VLOOKUP(F983,Translation!$A:$C,3,FALSE),F983)","v":"Prêts hypothécaires assurés au cours de la période selon la période d’amortissement (en années) à l'initiation (%)"},{"$f":"IFERROR(VLOOKUP(G983,Translation!$A:$C,3,FALSE),G983)","v":"14.8"},{"$f":"IFERROR(VLOOKUP(H983,Translation!$A:$C,3,FALSE),H983)","v":" > 30 <= 35"}]
[28,"Q2 2016","IMMEUBLES COLLECTIFS RÉSIDENTIELS","> 30 <= 35",18.873797925065311,"Prêts hypothécaires assurés au cours de la période selon la période d’amortissement (en années) à l'initiation (%)","18.9"," > 30 <= 35",{"$f":"IFERROR(VLOOKUP(A984,Translation!$A:$C,3,FALSE),A984)","v":28},{"$f":"IFERROR(VLOOKUP(B984,Translation!$A:$C,3,FALSE),B984)","v":"Q2 2016"},{"$f":"IFERROR(VLOOKUP(C984,Translation!$A:$C,3,FALSE),C984)","v":"IMMEUBLES COLLECTIFS RÉSIDENTIELS"},{"$f":"IFERROR(VLOOKUP(D984,Translation!$A:$C,3,FALSE),D984)","v":"> 30 <= 35"},{"$f":"IFERROR(VLOOKUP(E984,Translation!$A:$C,3,FALSE),E984)","v":18.873797925065311},{"$f":"IFERROR(VLOOKUP(F984,Translation!$A:$C,3,FALSE),F984)","v":"Prêts hypothécaires assurés au cours de la période selon la période d’amortissement (en années) à l'initiation (%)"},{"$f":"IFERROR(VLOOKUP(G984,Translation!$A:$C,3,FALSE),G984)","v":"18.9"},{"$f":"IFERROR(VLOOKUP(H984,Translation!$A:$C,3,FALSE),H984)","v":" > 30 <= 35"}]
[28,"T2 2017","IMMEUBLES COLLECTIFS RÉSIDENTIELS","> 30 <= 35",20.261922336079294,"Prêts hypothécaires assurés au cours de la période selon la période d’amortissement (en années) à l'initiation (%)","20.3"," > 30 <= 35",{"$f":"IFERROR(VLOOKUP(A985,Translation!$A:$C,3,FALSE),A985)","v":28},{"$f":"IFERROR(VLOOKUP(B985,Translation!$A:$C,3,FALSE),B985)","v":"T2 2017"},{"$f":"IFERROR(VLOOKUP(C985,Translation!$A:$C,3,FALSE),C985)","v":"IMMEUBLES COLLECTIFS RÉSIDENTIELS"},{"$f":"IFERROR(VLOOKUP(D985,Translation!$A:$C,3,FALSE),D985)","v":"> 30 <= 35"},{"$f":"IFERROR(VLOOKUP(E985,Translation!$A:$C,3,FALSE),E985)","v":20.261922336079294},{"$f":"IFERROR(VLOOKUP(F985,Translation!$A:$C,3,FALSE),F985)","v":"Prêts hypothécaires assurés au cours de la période selon la période d’amortissement (en années) à l'initiation (%)"},{"$f":"IFERROR(VLOOKUP(G985,Translation!$A:$C,3,FALSE),G985)","v":"20.3"},{"$f":"IFERROR(VLOOKUP(H985,Translation!$A:$C,3,FALSE),H985)","v":" > 30 <= 35"}]
[28,"Q3 2016","IMMEUBLES COLLECTIFS RÉSIDENTIELS","> 30 <= 35",12.776166485789856,"Prêts hypothécaires assurés au cours de la période selon la période d’amortissement (en années) à l'initiation (%)","12.8"," > 30 <= 35",{"$f":"IFERROR(VLOOKUP(A986,Translation!$A:$C,3,FALSE),A986)","v":28},{"$f":"IFERROR(VLOOKUP(B986,Translation!$A:$C,3,FALSE),B986)","v":"Q3 2016"},{"$f":"IFERROR(VLOOKUP(C986,Translation!$A:$C,3,FALSE),C986)","v":"IMMEUBLES COLLECTIFS RÉSIDENTIELS"},{"$f":"IFERROR(VLOOKUP(D986,Translation!$A:$C,3,FALSE),D986)","v":"> 30 <= 35"},{"$f":"IFERROR(VLOOKUP(E986,Translation!$A:$C,3,FALSE),E986)","v":12.776166485789856},{"$f":"IFERROR(VLOOKUP(F986,Translation!$A:$C,3,FALSE),F986)","v":"Prêts hypothécaires assurés au cours de la période selon la période d’amortissement (en années) à l'initiation (%)"},{"$f":"IFERROR(VLOOKUP(G986,Translation!$A:$C,3,FALSE),G986)","v":"12.8"},{"$f":"IFERROR(VLOOKUP(H986,Translation!$A:$C,3,FALSE),H986)","v":" > 30 <= 35"}]
[28,"T3 2017","IMMEUBLES COLLECTIFS RÉSIDENTIELS","> 30 <= 35",22.245056710691376,"Prêts hypothécaires assurés au cours de la période selon la période d’amortissement (en années) à l'initiation (%)","22.2"," > 30 <= 35",{"$f":"IFERROR(VLOOKUP(A987,Translation!$A:$C,3,FALSE),A987)","v":28},{"$f":"IFERROR(VLOOKUP(B987,Translation!$A:$C,3,FALSE),B987)","v":"T3 2017"},{"$f":"IFERROR(VLOOKUP(C987,Translation!$A:$C,3,FALSE),C987)","v":"IMMEUBLES COLLECTIFS RÉSIDENTIELS"},{"$f":"IFERROR(VLOOKUP(D987,Translation!$A:$C,3,FALSE),D987)","v":"> 30 <= 35"},{"$f":"IFERROR(VLOOKUP(E987,Translation!$A:$C,3,FALSE),E987)","v":22.245056710691376},{"$f":"IFERROR(VLOOKUP(F987,Translation!$A:$C,3,FALSE),F987)","v":"Prêts hypothécaires assurés au cours de la période selon la période d’amortissement (en années) à l'initiation (%)"},{"$f":"IFERROR(VLOOKUP(G987,Translation!$A:$C,3,FALSE),G987)","v":"22.2"},{"$f":"IFERROR(VLOOKUP(H987,Translation!$A:$C,3,FALSE),H987)","v":" > 30 <= 35"}]
[28,"Q4 2016","IMMEUBLES COLLECTIFS RÉSIDENTIELS","> 30 <= 35",17.974893525603676,"Prêts hypothécaires assurés au cours de la période selon la période d’amortissement (en années) à l'initiation (%)","18.0"," > 30 <= 35",{"$f":"IFERROR(VLOOKUP(A988,Translation!$A:$C,3,FALSE),A988)","v":28},{"$f":"IFERROR(VLOOKUP(B988,Translation!$A:$C,3,FALSE),B988)","v":"Q4 2016"},{"$f":"IFERROR(VLOOKUP(C988,Translation!$A:$C,3,FALSE),C988)","v":"IMMEUBLES COLLECTIFS RÉSIDENTIELS"},{"$f":"IFERROR(VLOOKUP(D988,Translation!$A:$C,3,FALSE),D988)","v":"> 30 <= 35"},{"$f":"IFERROR(VLOOKUP(E988,Translation!$A:$C,3,FALSE),E988)","v":17.974893525603676},{"$f":"IFERROR(VLOOKUP(F988,Translation!$A:$C,3,FALSE),F988)","v":"Prêts hypothécaires assurés au cours de la période selon la période d’amortissement (en années) à l'initiation (%)"},{"$f":"IFERROR(VLOOKUP(G988,Translation!$A:$C,3,FALSE),G988)","v":"18.0"},{"$f":"IFERROR(VLOOKUP(H988,Translation!$A:$C,3,FALSE),H988)","v":" > 30 <= 35"}]
[28,"T4 2017","IMMEUBLES COLLECTIFS RÉSIDENTIELS","> 30 <= 35",14.642984303897988,"Prêts hypothécaires assurés au cours de la période selon la période d’amortissement (en années) à l'initiation (%)","14.6"," > 30 <= 35",{"$f":"IFERROR(VLOOKUP(A989,Translation!$A:$C,3,FALSE),A989)","v":28},{"$f":"IFERROR(VLOOKUP(B989,Translation!$A:$C,3,FALSE),B989)","v":"T4 2017"},{"$f":"IFERROR(VLOOKUP(C989,Translation!$A:$C,3,FALSE),C989)","v":"IMMEUBLES COLLECTIFS RÉSIDENTIELS"},{"$f":"IFERROR(VLOOKUP(D989,Translation!$A:$C,3,FALSE),D989)","v":"> 30 <= 35"},{"$f":"IFERROR(VLOOKUP(E989,Translation!$A:$C,3,FALSE),E989)","v":14.642984303897988},{"$f":"IFERROR(VLOOKUP(F989,Translation!$A:$C,3,FALSE),F989)","v":"Prêts hypothécaires assurés au cours de la période selon la période d’amortissement (en années) à l'initiation (%)"},{"$f":"IFERROR(VLOOKUP(G989,Translation!$A:$C,3,FALSE),G989)","v":"14.6"},{"$f":"IFERROR(VLOOKUP(H989,Translation!$A:$C,3,FALSE),H989)","v":" > 30 <= 35"}]
[28,"T1 2017","IMMEUBLES COLLECTIFS RÉSIDENTIELS","> 35",5.3106667628320157,"Prêts hypothécaires assurés au cours de la période selon la période d’amortissement (en années) à l'initiation (%)","5.3"," > 35",{"$f":"IFERROR(VLOOKUP(A990,Translation!$A:$C,3,FALSE),A990)","v":28},{"$f":"IFERROR(VLOOKUP(B990,Translation!$A:$C,3,FALSE),B990)","v":"T1 2017"},{"$f":"IFERROR(VLOOKUP(C990,Translation!$A:$C,3,FALSE),C990)","v":"IMMEUBLES COLLECTIFS RÉSIDENTIELS"},{"$f":"IFERROR(VLOOKUP(D990,Translation!$A:$C,3,FALSE),D990)","v":"> 35"},{"$f":"IFERROR(VLOOKUP(E990,Translation!$A:$C,3,FALSE),E990)","v":5.3106667628320157},{"$f":"IFERROR(VLOOKUP(F990,Translation!$A:$C,3,FALSE),F990)","v":"Prêts hypothécaires assurés au cours de la période selon la période d’amortissement (en années) à l'initiation (%)"},{"$f":"IFERROR(VLOOKUP(G990,Translation!$A:$C,3,FALSE),G990)","v":"5.3"},{"$f":"IFERROR(VLOOKUP(H990,Translation!$A:$C,3,FALSE),H990)","v":" > 35"}]
[28,"T1 2018","IMMEUBLES COLLECTIFS RÉSIDENTIELS","> 35",16.197591528957147,"Prêts hypothécaires assurés au cours de la période selon la période d’amortissement (en années) à l'initiation (%)","16.2"," > 35",{"$f":"IFERROR(VLOOKUP(A991,Translation!$A:$C,3,FALSE),A991)","v":28},{"$f":"IFERROR(VLOOKUP(B991,Translation!$A:$C,3,FALSE),B991)","v":"T1 2018"},{"$f":"IFERROR(VLOOKUP(C991,Translation!$A:$C,3,FALSE),C991)","v":"IMMEUBLES COLLECTIFS RÉSIDENTIELS"},{"$f":"IFERROR(VLOOKUP(D991,Translation!$A:$C,3,FALSE),D991)","v":"> 35"},{"$f":"IFERROR(VLOOKUP(E991,Translation!$A:$C,3,FALSE),E991)","v":16.197591528957147},{"$f":"IFERROR(VLOOKUP(F991,Translation!$A:$C,3,FALSE),F991)","v":"Prêts hypothécaires assurés au cours de la période selon la période d’amortissement (en années) à l'initiation (%)"},{"$f":"IFERROR(VLOOKUP(G991,Translation!$A:$C,3,FALSE),G991)","v":"16.2"},{"$f":"IFERROR(VLOOKUP(H991,Translation!$A:$C,3,FALSE),H991)","v":" > 35"}]
[28,"Q2 2016","IMMEUBLES COLLECTIFS RÉSIDENTIELS","> 35",10.70564914322749,"Prêts hypothécaires assurés au cours de la période selon la période d’amortissement (en années) à l'initiation (%)","10.7"," > 35",{"$f":"IFERROR(VLOOKUP(A992,Translation!$A:$C,3,FALSE),A992)","v":28},{"$f":"IFERROR(VLOOKUP(B992,Translation!$A:$C,3,FALSE),B992)","v":"Q2 2016"},{"$f":"IFERROR(VLOOKUP(C992,Translation!$A:$C,3,FALSE),C992)","v":"IMMEUBLES COLLECTIFS RÉSIDENTIELS"},{"$f":"IFERROR(VLOOKUP(D992,Translation!$A:$C,3,FALSE),D992)","v":"> 35"},{"$f":"IFERROR(VLOOKUP(E992,Translation!$A:$C,3,FALSE),E992)","v":10.70564914322749},{"$f":"IFERROR(VLOOKUP(F992,Translation!$A:$C,3,FALSE),F992)","v":"Prêts hypothécaires assurés au cours de la période selon la période d’amortissement (en années) à l'initiation (%)"},{"$f":"IFERROR(VLOOKUP(G992,Translation!$A:$C,3,FALSE),G992)","v":"10.7"},{"$f":"IFERROR(VLOOKUP(H992,Translation!$A:$C,3,FALSE),H992)","v":" > 35"}]
[28,"T2 2017","IMMEUBLES COLLECTIFS RÉSIDENTIELS","> 35",10.049538658350141,"Prêts hypothécaires assurés au cours de la période selon la période d’amortissement (en années) à l'initiation (%)","10.0"," > 35",{"$f":"IFERROR(VLOOKUP(A993,Translation!$A:$C,3,FALSE),A993)","v":28},{"$f":"IFERROR(VLOOKUP(B993,Translation!$A:$C,3,FALSE),B993)","v":"T2 2017"},{"$f":"IFERROR(VLOOKUP(C993,Translation!$A:$C,3,FALSE),C993)","v":"IMMEUBLES COLLECTIFS RÉSIDENTIELS"},{"$f":"IFERROR(VLOOKUP(D993,Translation!$A:$C,3,FALSE),D993)","v":"> 35"},{"$f":"IFERROR(VLOOKUP(E993,Translation!$A:$C,3,FALSE),E993)","v":10.049538658350141},{"$f":"IFERROR(VLOOKUP(F993,Translation!$A:$C,3,FALSE),F993)","v":"Prêts hypothécaires assurés au cours de la période selon la période d’amortissement (en années) à l'initiation (%)"},{"$f":"IFERROR(VLOOKUP(G993,Translation!$A:$C,3,FALSE),G993)","v":"10.0"},{"$f":"IFERROR(VLOOKUP(H993,Translation!$A:$C,3,FALSE),H993)","v":" > 35"}]
[28,"Q3 2016","IMMEUBLES COLLECTIFS RÉSIDENTIELS","> 35",11.166819592196047,"Prêts hypothécaires assurés au cours de la période selon la période d’amortissement (en années) à l'initiation (%)","11.2"," > 35",{"$f":"IFERROR(VLOOKUP(A994,Translation!$A:$C,3,FALSE),A994)","v":28},{"$f":"IFERROR(VLOOKUP(B994,Translation!$A:$C,3,FALSE),B994)","v":"Q3 2016"},{"$f":"IFERROR(VLOOKUP(C994,Translation!$A:$C,3,FALSE),C994)","v":"IMMEUBLES COLLECTIFS RÉSIDENTIELS"},{"$f":"IFERROR(VLOOKUP(D994,Translation!$A:$C,3,FALSE),D994)","v":"> 35"},{"$f":"IFERROR(VLOOKUP(E994,Translation!$A:$C,3,FALSE),E994)","v":11.166819592196047},{"$f":"IFERROR(VLOOKUP(F994,Translation!$A:$C,3,FALSE),F994)","v":"Prêts hypothécaires assurés au cours de la période selon la période d’amortissement (en années) à l'initiation (%)"},{"$f":"IFERROR(VLOOKUP(G994,Translation!$A:$C,3,FALSE),G994)","v":"11.2"},{"$f":"IFERROR(VLOOKUP(H994,Translation!$A:$C,3,FALSE),H994)","v":" > 35"}]
[28,"T3 2017","IMMEUBLES COLLECTIFS RÉSIDENTIELS","> 35",10.824879710117211,"Prêts hypothécaires assurés au cours de la période selon la période d’amortissement (en années) à l'initiation (%)","10.8"," > 35",{"$f":"IFERROR(VLOOKUP(A995,Translation!$A:$C,3,FALSE),A995)","v":28},{"$f":"IFERROR(VLOOKUP(B995,Translation!$A:$C,3,FALSE),B995)","v":"T3 2017"},{"$f":"IFERROR(VLOOKUP(C995,Translation!$A:$C,3,FALSE),C995)","v":"IMMEUBLES COLLECTIFS RÉSIDENTIELS"},{"$f":"IFERROR(VLOOKUP(D995,Translation!$A:$C,3,FALSE),D995)","v":"> 35"},{"$f":"IFERROR(VLOOKUP(E995,Translation!$A:$C,3,FALSE),E995)","v":10.824879710117211},{"$f":"IFERROR(VLOOKUP(F995,Translation!$A:$C,3,FALSE),F995)","v":"Prêts hypothécaires assurés au cours de la période selon la période d’amortissement (en années) à l'initiation (%)"},{"$f":"IFERROR(VLOOKUP(G995,Translation!$A:$C,3,FALSE),G995)","v":"10.8"},{"$f":"IFERROR(VLOOKUP(H995,Translation!$A:$C,3,FALSE),H995)","v":" > 35"}]
[28,"Q4 2016","IMMEUBLES COLLECTIFS RÉSIDENTIELS","> 35",8.5302190226949826,"Prêts hypothécaires assurés au cours de la période selon la période d’amortissement (en années) à l'initiation (%)","8.5"," > 35",{"$f":"IFERROR(VLOOKUP(A996,Translation!$A:$C,3,FALSE),A996)","v":28},{"$f":"IFERROR(VLOOKUP(B996,Translation!$A:$C,3,FALSE),B996)","v":"Q4 2016"},{"$f":"IFERROR(VLOOKUP(C996,Translation!$A:$C,3,FALSE),C996)","v":"IMMEUBLES COLLECTIFS RÉSIDENTIELS"},{"$f":"IFERROR(VLOOKUP(D996,Translation!$A:$C,3,FALSE),D996)","v":"> 35"},{"$f":"IFERROR(VLOOKUP(E996,Translation!$A:$C,3,FALSE),E996)","v":8.5302190226949826},{"$f":"IFERROR(VLOOKUP(F996,Translation!$A:$C,3,FALSE),F996)","v":"Prêts hypothécaires assurés au cours de la période selon la période d’amortissement (en années) à l'initiation (%)"},{"$f":"IFERROR(VLOOKUP(G996,Translation!$A:$C,3,FALSE),G996)","v":"8.5"},{"$f":"IFERROR(VLOOKUP(H996,Translation!$A:$C,3,FALSE),H996)","v":" > 35"}]
[28,"T4 2017","IMMEUBLES COLLECTIFS RÉSIDENTIELS","> 35",25.072492642147154,"Prêts hypothécaires assurés au cours de la période selon la période d’amortissement (en années) à l'initiation (%)","25.1"," > 35",{"$f":"IFERROR(VLOOKUP(A997,Translation!$A:$C,3,FALSE),A997)","v":28},{"$f":"IFERROR(VLOOKUP(B997,Translation!$A:$C,3,FALSE),B997)","v":"T4 2017"},{"$f":"IFERROR(VLOOKUP(C997,Translation!$A:$C,3,FALSE),C997)","v":"IMMEUBLES COLLECTIFS RÉSIDENTIELS"},{"$f":"IFERROR(VLOOKUP(D997,Translation!$A:$C,3,FALSE),D997)","v":"> 35"},{"$f":"IFERROR(VLOOKUP(E997,Translation!$A:$C,3,FALSE),E997)","v":25.072492642147154},{"$f":"IFERROR(VLOOKUP(F997,Translation!$A:$C,3,FALSE),F997)","v":"Prêts hypothécaires assurés au cours de la période selon la période d’amortissement (en années) à l'initiation (%)"},{"$f":"IFERROR(VLOOKUP(G997,Translation!$A:$C,3,FALSE),G997)","v":"25.1"},{"$f":"IFERROR(VLOOKUP(H997,Translation!$A:$C,3,FALSE),H997)","v":" > 35"}]
[28,"T1 2017","IMMEUBLES COLLECTIFS RÉSIDENTIELS","Période d’amortissement moyenne",28.480764508852243,"Prêts hypothécaires assurés au cours de la période selon la période d’amortissement (en années) à l'initiation (%)","28.5","Période d’amortissement moyenne",{"$f":"IFERROR(VLOOKUP(A998,Translation!$A:$C,3,FALSE),A998)","v":28},{"$f":"IFERROR(VLOOKUP(B998,Translation!$A:$C,3,FALSE),B998)","v":"T1 2017"},{"$f":"IFERROR(VLOOKUP(C998,Translation!$A:$C,3,FALSE),C998)","v":"IMMEUBLES COLLECTIFS RÉSIDENTIELS"},{"$f":"IFERROR(VLOOKUP(D998,Translation!$A:$C,3,FALSE),D998)","v":"Période d’amortissement moyenne"},{"$f":"IFERROR(VLOOKUP(E998,Translation!$A:$C,3,FALSE),E998)","v":28.480764508852243},{"$f":"IFERROR(VLOOKUP(F998,Translation!$A:$C,3,FALSE),F998)","v":"Prêts hypothécaires assurés au cours de la période selon la période d’amortissement (en années) à l'initiation (%)"},{"$f":"IFERROR(VLOOKUP(G998,Translation!$A:$C,3,FALSE),G998)","v":"28.5"},{"$f":"IFERROR(VLOOKUP(H998,Translation!$A:$C,3,FALSE),H998)","v":"Période d’amortissement moyenne"}]
[28,"T1 2018","IMMEUBLES COLLECTIFS RÉSIDENTIELS","Période d’amortissement moyenne",30.950324861103208,"Prêts hypothécaires assurés au cours de la période selon la période d’amortissement (en années) à l'initiation (%)","31.0","Période d’amortissement moyenne",{"$f":"IFERROR(VLOOKUP(A999,Translation!$A:$C,3,FALSE),A999)","v":28},{"$f":"IFERROR(VLOOKUP(B999,Translation!$A:$C,3,FALSE),B999)","v":"T1 2018"},{"$f":"IFERROR(VLOOKUP(C999,Translation!$A:$C,3,FALSE),C999)","v":"IMMEUBLES COLLECTIFS RÉSIDENTIELS"},{"$f":"IFERROR(VLOOKUP(D999,Translation!$A:$C,3,FALSE),D999)","v":"Période d’amortissement moyenne"},{"$f":"IFERROR(VLOOKUP(E999,Translation!$A:$C,3,FALSE),E999)","v":30.950324861103208},{"$f":"IFERROR(VLOOKUP(F999,Translation!$A:$C,3,FALSE),F999)","v":"Prêts hypothécaires assurés au cours de la période selon la période d’amortissement (en années) à l'initiation (%)"},{"$f":"IFERROR(VLOOKUP(G999,Translation!$A:$C,3,FALSE),G999)","v":"31.0"},{"$f":"IFERROR(VLOOKUP(H999,Translation!$A:$C,3,FALSE),H999)","v":"Période d’amortissement moyenne"}]
[28,"Q2 2016","IMMEUBLES COLLECTIFS RÉSIDENTIELS","Période d’amortissement moyenne",29.873715854275595,"Prêts hypothécaires assurés au cours de la période selon la période d’amortissement (en années) à l'initiation (%)","29.9","Période d’amortissement moyenne",{"$f":"IFERROR(VLOOKUP(A1000,Translation!$A:$C,3,FALSE),A1000)","v":28},{"$f":"IFERROR(VLOOKUP(B1000,Translation!$A:$C,3,FALSE),B1000)","v":"Q2 2016"},{"$f":"IFERROR(VLOOKUP(C1000,Translation!$A:$C,3,FALSE),C1000)","v":"IMMEUBLES COLLECTIFS RÉSIDENTIELS"},{"$f":"IFERROR(VLOOKUP(D1000,Translation!$A:$C,3,FALSE),D1000)","v":"Période d’amortissement moyenne"},{"$f":"IFERROR(VLOOKUP(E1000,Translation!$A:$C,3,FALSE),E1000)","v":29.873715854275595},{"$f":"IFERROR(VLOOKUP(F1000,Translation!$A:$C,3,FALSE),F1000)","v":"Prêts hypothécaires assurés au cours de la période selon la période d’amortissement (en années) à l'initiation (%)"},{"$f":"IFERROR(VLOOKUP(G1000,Translation!$A:$C,3,FALSE),G1000)","v":"29.9"},{"$f":"IFERROR(VLOOKUP(H1000,Translation!$A:$C,3,FALSE),H1000)","v":"Période d’amortissement moyenne"}]
[28,"T2 2017","IMMEUBLES COLLECTIFS RÉSIDENTIELS","Période d’amortissement moyenne",29.876481737029302,"Prêts hypothécaires assurés au cours de la période selon la période d’amortissement (en années) à l'initiation (%)","29.9","Période d’amortissement moyenne",{"$f":"IFERROR(VLOOKUP(A1001,Translation!$A:$C,3,FALSE),A1001)","v":28},{"$f":"IFERROR(VLOOKUP(B1001,Translation!$A:$C,3,FALSE),B1001)","v":"T2 2017"},{"$f":"IFERROR(VLOOKUP(C1001,Translation!$A:$C,3,FALSE),C1001)","v":"IMMEUBLES COLLECTIFS RÉSIDENTIELS"},{"$f":"IFERROR(VLOOKUP(D1001,Translation!$A:$C,3,FALSE),D1001)","v":"Période d’amortissement moyenne"},{"$f":"IFERROR(VLOOKUP(E1001,Translation!$A:$C,3,FALSE),E1001)","v":29.876481737029302},{"$f":"IFERROR(VLOOKUP(F1001,Translation!$A:$C,3,FALSE),F1001)","v":"Prêts hypothécaires assurés au cours de la période selon la période d’amortissement (en années) à l'initiation (%)"},{"$f":"IFERROR(VLOOKUP(G1001,Translation!$A:$C,3,FALSE),G1001)","v":"29.9"},{"$f":"IFERROR(VLOOKUP(H1001,Translation!$A:$C,3,FALSE),H1001)","v":"Période d’amortissement moyenne"}]
[28,"Q3 2016","IMMEUBLES COLLECTIFS RÉSIDENTIELS","Période d’amortissement moyenne",29.53229189378948,"Prêts hypothécaires assurés au cours de la période selon la période d’amortissement (en années) à l'initiation (%)","29.5","Période d’amortissement moyenne",{"$f":"IFERROR(VLOOKUP(A1002,Translation!$A:$C,3,FALSE),A1002)","v":28},{"$f":"IFERROR(VLOOKUP(B1002,Translation!$A:$C,3,FALSE),B1002)","v":"Q3 2016"},{"$f":"IFERROR(VLOOKUP(C1002,Translation!$A:$C,3,FALSE),C1002)","v":"IMMEUBLES COLLECTIFS RÉSIDENTIELS"},{"$f":"IFERROR(VLOOKUP(D1002,Translation!$A:$C,3,FALSE),D1002)","v":"Période d’amortissement moyenne"},{"$f":"IFERROR(VLOOKUP(E1002,Translation!$A:$C,3,FALSE),E1002)","v":29.53229189378948},{"$f":"IFERROR(VLOOKUP(F1002,Translation!$A:$C,3,FALSE),F1002)","v":"Prêts hypothécaires assurés au cours de la période selon la période d’amortissement (en années) à l'initiation (%)"},{"$f":"IFERROR(VLOOKUP(G1002,Translation!$A:$C,3,FALSE),G1002)","v":"29.5"},{"$f":"IFERROR(VLOOKUP(H1002,Translation!$A:$C,3,FALSE),H1002)","v":"Période d’amortissement moyenne"}]
[28,"T3 2017","IMMEUBLES COLLECTIFS RÉSIDENTIELS","Période d’amortissement moyenne",30.528218151630259,"Prêts hypothécaires assurés au cours de la période selon la période d’amortissement (en années) à l'initiation (%)","30.5","Période d’amortissement moyenne",{"$f":"IFERROR(VLOOKUP(A1003,Translation!$A:$C,3,FALSE),A1003)","v":28},{"$f":"IFERROR(VLOOKUP(B1003,Translation!$A:$C,3,FALSE),B1003)","v":"T3 2017"},{"$f":"IFERROR(VLOOKUP(C1003,Translation!$A:$C,3,FALSE),C1003)","v":"IMMEUBLES COLLECTIFS RÉSIDENTIELS"},{"$f":"IFERROR(VLOOKUP(D1003,Translation!$A:$C,3,FALSE),D1003)","v":"Période d’amortissement moyenne"},{"$f":"IFERROR(VLOOKUP(E1003,Translation!$A:$C,3,FALSE),E1003)","v":30.528218151630259},{"$f":"IFERROR(VLOOKUP(F1003,Translation!$A:$C,3,FALSE),F1003)","v":"Prêts hypothécaires assurés au cours de la période selon la période d’amortissement (en années) à l'initiation (%)"},{"$f":"IFERROR(VLOOKUP(G1003,Translation!$A:$C,3,FALSE),G1003)","v":"30.5"},{"$f":"IFERROR(VLOOKUP(H1003,Translation!$A:$C,3,FALSE),H1003)","v":"Période d’amortissement moyenne"}]
[28,"Q4 2016","IMMEUBLES COLLECTIFS RÉSIDENTIELS","Période d’amortissement moyenne",28.920670951953575,"Prêts hypothécaires assurés au cours de la période selon la période d’amortissement (en années) à l'initiation (%)","28.9","Période d’amortissement moyenne",{"$f":"IFERROR(VLOOKUP(A1004,Translation!$A:$C,3,FALSE),A1004)","v":28},{"$f":"IFERROR(VLOOKUP(B1004,Translation!$A:$C,3,FALSE),B1004)","v":"Q4 2016"},{"$f":"IFERROR(VLOOKUP(C1004,Translation!$A:$C,3,FALSE),C1004)","v":"IMMEUBLES COLLECTIFS RÉSIDENTIELS"},{"$f":"IFERROR(VLOOKUP(D1004,Translation!$A:$C,3,FALSE),D1004)","v":"Période d’amortissement moyenne"},{"$f":"IFERROR(VLOOKUP(E1004,Translation!$A:$C,3,FALSE),E1004)","v":28.920670951953575},{"$f":"IFERROR(VLOOKUP(F1004,Translation!$A:$C,3,FALSE),F1004)","v":"Prêts hypothécaires assurés au cours de la période selon la période d’amortissement (en années) à l'initiation (%)"},{"$f":"IFERROR(VLOOKUP(G1004,Translation!$A:$C,3,FALSE),G1004)","v":"28.9"},{"$f":"IFERROR(VLOOKUP(H1004,Translation!$A:$C,3,FALSE),H1004)","v":"Période d’amortissement moyenne"}]
[28,"T4 2017","IMMEUBLES COLLECTIFS RÉSIDENTIELS","Période d’amortissement moyenne",31.986517575908358,"Prêts hypothécaires assurés au cours de la période selon la période d’amortissement (en années) à l'initiation (%)","32.0","Période d’amortissement moyenne",{"$f":"IFERROR(VLOOKUP(A1005,Translation!$A:$C,3,FALSE),A1005)","v":28},{"$f":"IFERROR(VLOOKUP(B1005,Translation!$A:$C,3,FALSE),B1005)","v":"T4 2017"},{"$f":"IFERROR(VLOOKUP(C1005,Translation!$A:$C,3,FALSE),C1005)","v":"IMMEUBLES COLLECTIFS RÉSIDENTIELS"},{"$f":"IFERROR(VLOOKUP(D1005,Translation!$A:$C,3,FALSE),D1005)","v":"Période d’amortissement moyenne"},{"$f":"IFERROR(VLOOKUP(E1005,Translation!$A:$C,3,FALSE),E1005)","v":31.986517575908358},{"$f":"IFERROR(VLOOKUP(F1005,Translation!$A:$C,3,FALSE),F1005)","v":"Prêts hypothécaires assurés au cours de la période selon la période d’amortissement (en années) à l'initiation (%)"},{"$f":"IFERROR(VLOOKUP(G1005,Translation!$A:$C,3,FALSE),G1005)","v":"32.0"},{"$f":"IFERROR(VLOOKUP(H1005,Translation!$A:$C,3,FALSE),H1005)","v":"Période d’amortissement moyenne"}]
[28,"T1 2017","IMMEUBLES COLLECTIFS RÉSIDENTIELS","Île-du-Prince-Édouard",25,"Période d’amortissement moyenne selon la province","25.0","Île-du-Prince-Édouard",{"$f":"IFERROR(VLOOKUP(A1006,Translation!$A:$C,3,FALSE),A1006)","v":28},{"$f":"IFERROR(VLOOKUP(B1006,Translation!$A:$C,3,FALSE),B1006)","v":"T1 2017"},{"$f":"IFERROR(VLOOKUP(C1006,Translation!$A:$C,3,FALSE),C1006)","v":"IMMEUBLES COLLECTIFS RÉSIDENTIELS"},{"$f":"IFERROR(VLOOKUP(D1006,Translation!$A:$C,3,FALSE),D1006)","v":"Île-du-Prince-Édouard"},{"$f":"IFERROR(VLOOKUP(E1006,Translation!$A:$C,3,FALSE),E1006)","v":25},{"$f":"IFERROR(VLOOKUP(F1006,Translation!$A:$C,3,FALSE),F1006)","v":"Période d’amortissement moyenne selon la province"},{"$f":"IFERROR(VLOOKUP(G1006,Translation!$A:$C,3,FALSE),G1006)","v":"25.0"},{"$f":"IFERROR(VLOOKUP(H1006,Translation!$A:$C,3,FALSE),H1006)","v":"Île-du-Prince-Édouard"}]
[28,"T1 2017","IMMEUBLES COLLECTIFS RÉSIDENTIELS","Nouvelle-Écosse",25.535480103472032,"Période d’amortissement moyenne selon la province","25.5","Nouvelle-Écosse",{"$f":"IFERROR(VLOOKUP(A1007,Translation!$A:$C,3,FALSE),A1007)","v":28},{"$f":"IFERROR(VLOOKUP(B1007,Translation!$A:$C,3,FALSE),B1007)","v":"T1 2017"},{"$f":"IFERROR(VLOOKUP(C1007,Translation!$A:$C,3,FALSE),C1007)","v":"IMMEUBLES COLLECTIFS RÉSIDENTIELS"},{"$f":"IFERROR(VLOOKUP(D1007,Translation!$A:$C,3,FALSE),D1007)","v":"Nouvelle-Écosse"},{"$f":"IFERROR(VLOOKUP(E1007,Translation!$A:$C,3,FALSE),E1007)","v":25.535480103472032},{"$f":"IFERROR(VLOOKUP(F1007,Translation!$A:$C,3,FALSE),F1007)","v":"Période d’amortissement moyenne selon la province"},{"$f":"IFERROR(VLOOKUP(G1007,Translation!$A:$C,3,FALSE),G1007)","v":"25.5"},{"$f":"IFERROR(VLOOKUP(H1007,Translation!$A:$C,3,FALSE),H1007)","v":"Nouvelle-Écosse"}]
[28,"T1 2017","IMMEUBLES COLLECTIFS RÉSIDENTIELS","Nouveau-Brunswick",25.18801471163842,"Période d’amortissement moyenne selon la province","25.2","Nouveau-Brunswick",{"$f":"IFERROR(VLOOKUP(A1008,Translation!$A:$C,3,FALSE),A1008)","v":28},{"$f":"IFERROR(VLOOKUP(B1008,Translation!$A:$C,3,FALSE),B1008)","v":"T1 2017"},{"$f":"IFERROR(VLOOKUP(C1008,Translation!$A:$C,3,FALSE),C1008)","v":"IMMEUBLES COLLECTIFS RÉSIDENTIELS"},{"$f":"IFERROR(VLOOKUP(D1008,Translation!$A:$C,3,FALSE),D1008)","v":"Nouveau-Brunswick"},{"$f":"IFERROR(VLOOKUP(E1008,Translation!$A:$C,3,FALSE),E1008)","v":25.18801471163842},{"$f":"IFERROR(VLOOKUP(F1008,Translation!$A:$C,3,FALSE),F1008)","v":"Période d’amortissement moyenne selon la province"},{"$f":"IFERROR(VLOOKUP(G1008,Translation!$A:$C,3,FALSE),G1008)","v":"25.2"},{"$f":"IFERROR(VLOOKUP(H1008,Translation!$A:$C,3,FALSE),H1008)","v":"Nouveau-Brunswick"}]
[28,"T1 2017","IMMEUBLES COLLECTIFS RÉSIDENTIELS","Québec",28.701373714015649,"Période d’amortissement moyenne selon la province","28.7","Québec",{"$f":"IFERROR(VLOOKUP(A1009,Translation!$A:$C,3,FALSE),A1009)","v":28},{"$f":"IFERROR(VLOOKUP(B1009,Translation!$A:$C,3,FALSE),B1009)","v":"T1 2017"},{"$f":"IFERROR(VLOOKUP(C1009,Translation!$A:$C,3,FALSE),C1009)","v":"IMMEUBLES COLLECTIFS RÉSIDENTIELS"},{"$f":"IFERROR(VLOOKUP(D1009,Translation!$A:$C,3,FALSE),D1009)","v":"Québec"},{"$f":"IFERROR(VLOOKUP(E1009,Translation!$A:$C,3,FALSE),E1009)","v":28.701373714015649},{"$f":"IFERROR(VLOOKUP(F1009,Translation!$A:$C,3,FALSE),F1009)","v":"Période d’amortissement moyenne selon la province"},{"$f":"IFERROR(VLOOKUP(G1009,Translation!$A:$C,3,FALSE),G1009)","v":"28.7"},{"$f":"IFERROR(VLOOKUP(H1009,Translation!$A:$C,3,FALSE),H1009)","v":"Québec"}]
[28,"T1 2017","IMMEUBLES COLLECTIFS RÉSIDENTIELS","Ontario",27.370294977892087,"Période d’amortissement moyenne selon la province","27.4","Ontario",{"$f":"IFERROR(VLOOKUP(A1010,Translation!$A:$C,3,FALSE),A1010)","v":28},{"$f":"IFERROR(VLOOKUP(B1010,Translation!$A:$C,3,FALSE),B1010)","v":"T1 2017"},{"$f":"IFERROR(VLOOKUP(C1010,Translation!$A:$C,3,FALSE),C1010)","v":"IMMEUBLES COLLECTIFS RÉSIDENTIELS"},{"$f":"IFERROR(VLOOKUP(D1010,Translation!$A:$C,3,FALSE),D1010)","v":"Ontario"},{"$f":"IFERROR(VLOOKUP(E1010,Translation!$A:$C,3,FALSE),E1010)","v":27.370294977892087},{"$f":"IFERROR(VLOOKUP(F1010,Translation!$A:$C,3,FALSE),F1010)","v":"Période d’amortissement moyenne selon la province"},{"$f":"IFERROR(VLOOKUP(G1010,Translation!$A:$C,3,FALSE),G1010)","v":"27.4"},{"$f":"IFERROR(VLOOKUP(H1010,Translation!$A:$C,3,FALSE),H1010)","v":"Ontario"}]
[28,"T1 2017","IMMEUBLES COLLECTIFS RÉSIDENTIELS","Manitoba",32.090134663679784,"Période d’amortissement moyenne selon la province","32.1","Manitoba",{"$f":"IFERROR(VLOOKUP(A1011,Translation!$A:$C,3,FALSE),A1011)","v":28},{"$f":"IFERROR(VLOOKUP(B1011,Translation!$A:$C,3,FALSE),B1011)","v":"T1 2017"},{"$f":"IFERROR(VLOOKUP(C1011,Translation!$A:$C,3,FALSE),C1011)","v":"IMMEUBLES COLLECTIFS RÉSIDENTIELS"},{"$f":"IFERROR(VLOOKUP(D1011,Translation!$A:$C,3,FALSE),D1011)","v":"Manitoba"},{"$f":"IFERROR(VLOOKUP(E1011,Translation!$A:$C,3,FALSE),E1011)","v":32.090134663679784},{"$f":"IFERROR(VLOOKUP(F1011,Translation!$A:$C,3,FALSE),F1011)","v":"Période d’amortissement moyenne selon la province"},{"$f":"IFERROR(VLOOKUP(G1011,Translation!$A:$C,3,FALSE),G1011)","v":"32.1"},{"$f":"IFERROR(VLOOKUP(H1011,Translation!$A:$C,3,FALSE),H1011)","v":"Manitoba"}]
[28,"T1 2017","IMMEUBLES COLLECTIFS RÉSIDENTIELS","Saskatchewan",33.81941556206673,"Période d’amortissement moyenne selon la province","33.8","Saskatchewan",{"$f":"IFERROR(VLOOKUP(A1012,Translation!$A:$C,3,FALSE),A1012)","v":28},{"$f":"IFERROR(VLOOKUP(B1012,Translation!$A:$C,3,FALSE),B1012)","v":"T1 2017"},{"$f":"IFERROR(VLOOKUP(C1012,Translation!$A:$C,3,FALSE),C1012)","v":"IMMEUBLES COLLECTIFS RÉSIDENTIELS"},{"$f":"IFERROR(VLOOKUP(D1012,Translation!$A:$C,3,FALSE),D1012)","v":"Saskatchewan"},{"$f":"IFERROR(VLOOKUP(E1012,Translation!$A:$C,3,FALSE),E1012)","v":33.81941556206673},{"$f":"IFERROR(VLOOKUP(F1012,Translation!$A:$C,3,FALSE),F1012)","v":"Période d’amortissement moyenne selon la province"},{"$f":"IFERROR(VLOOKUP(G1012,Translation!$A:$C,3,FALSE),G1012)","v":"33.8"},{"$f":"IFERROR(VLOOKUP(H1012,Translation!$A:$C,3,FALSE),H1012)","v":"Saskatchewan"}]
[28,"T1 2017","IMMEUBLES COLLECTIFS RÉSIDENTIELS","Alberta",30.337795149984608,"Période d’amortissement moyenne selon la province","30.3","Alberta",{"$f":"IFERROR(VLOOKUP(A1013,Translation!$A:$C,3,FALSE),A1013)","v":28},{"$f":"IFERROR(VLOOKUP(B1013,Translation!$A:$C,3,FALSE),B1013)","v":"T1 2017"},{"$f":"IFERROR(VLOOKUP(C1013,Translation!$A:$C,3,FALSE),C1013)","v":"IMMEUBLES COLLECTIFS RÉSIDENTIELS"},{"$f":"IFERROR(VLOOKUP(D1013,Translation!$A:$C,3,FALSE),D1013)","v":"Alberta"},{"$f":"IFERROR(VLOOKUP(E1013,Translation!$A:$C,3,FALSE),E1013)","v":30.337795149984608},{"$f":"IFERROR(VLOOKUP(F1013,Translation!$A:$C,3,FALSE),F1013)","v":"Période d’amortissement moyenne selon la province"},{"$f":"IFERROR(VLOOKUP(G1013,Translation!$A:$C,3,FALSE),G1013)","v":"30.3"},{"$f":"IFERROR(VLOOKUP(H1013,Translation!$A:$C,3,FALSE),H1013)","v":"Alberta"}]
[28,"T1 2017","IMMEUBLES COLLECTIFS RÉSIDENTIELS","Colombie-Britannique",28.874790879555853,"Période d’amortissement moyenne selon la province","28.9","Colombie-Britannique",{"$f":"IFERROR(VLOOKUP(A1014,Translation!$A:$C,3,FALSE),A1014)","v":28},{"$f":"IFERROR(VLOOKUP(B1014,Translation!$A:$C,3,FALSE),B1014)","v":"T1 2017"},{"$f":"IFERROR(VLOOKUP(C1014,Translation!$A:$C,3,FALSE),C1014)","v":"IMMEUBLES COLLECTIFS RÉSIDENTIELS"},{"$f":"IFERROR(VLOOKUP(D1014,Translation!$A:$C,3,FALSE),D1014)","v":"Colombie-Britannique"},{"$f":"IFERROR(VLOOKUP(E1014,Translation!$A:$C,3,FALSE),E1014)","v":28.874790879555853},{"$f":"IFERROR(VLOOKUP(F1014,Translation!$A:$C,3,FALSE),F1014)","v":"Période d’amortissement moyenne selon la province"},{"$f":"IFERROR(VLOOKUP(G1014,Translation!$A:$C,3,FALSE),G1014)","v":"28.9"},{"$f":"IFERROR(VLOOKUP(H1014,Translation!$A:$C,3,FALSE),H1014)","v":"Colombie-Britannique"}]
[28,"T1 2017","IMMEUBLES COLLECTIFS RÉSIDENTIELS","Territoires",25,"Période d’amortissement moyenne selon la province","25.0","Territoires",{"$f":"IFERROR(VLOOKUP(A1015,Translation!$A:$C,3,FALSE),A1015)","v":28},{"$f":"IFERROR(VLOOKUP(B1015,Translation!$A:$C,3,FALSE),B1015)","v":"T1 2017"},{"$f":"IFERROR(VLOOKUP(C1015,Translation!$A:$C,3,FALSE),C1015)","v":"IMMEUBLES COLLECTIFS RÉSIDENTIELS"},{"$f":"IFERROR(VLOOKUP(D1015,Translation!$A:$C,3,FALSE),D1015)","v":"Territoires"},{"$f":"IFERROR(VLOOKUP(E1015,Translation!$A:$C,3,FALSE),E1015)","v":25},{"$f":"IFERROR(VLOOKUP(F1015,Translation!$A:$C,3,FALSE),F1015)","v":"Période d’amortissement moyenne selon la province"},{"$f":"IFERROR(VLOOKUP(G1015,Translation!$A:$C,3,FALSE),G1015)","v":"25.0"},{"$f":"IFERROR(VLOOKUP(H1015,Translation!$A:$C,3,FALSE),H1015)","v":"Territoires"}]
[28,"T1 2018","IMMEUBLES COLLECTIFS RÉSIDENTIELS","Terre-Neuve-et-Labrador",25,"Période d’amortissement moyenne selon la province","25.0","Terre-Neuve-et-Labrador",{"$f":"IFERROR(VLOOKUP(A1016,Translation!$A:$C,3,FALSE),A1016)","v":28},{"$f":"IFERROR(VLOOKUP(B1016,Translation!$A:$C,3,FALSE),B1016)","v":"T1 2018"},{"$f":"IFERROR(VLOOKUP(C1016,Translation!$A:$C,3,FALSE),C1016)","v":"IMMEUBLES COLLECTIFS RÉSIDENTIELS"},{"$f":"IFERROR(VLOOKUP(D1016,Translation!$A:$C,3,FALSE),D1016)","v":"Terre-Neuve-et-Labrador"},{"$f":"IFERROR(VLOOKUP(E1016,Translation!$A:$C,3,FALSE),E1016)","v":25},{"$f":"IFERROR(VLOOKUP(F1016,Translation!$A:$C,3,FALSE),F1016)","v":"Période d’amortissement moyenne selon la province"},{"$f":"IFERROR(VLOOKUP(G1016,Translation!$A:$C,3,FALSE),G1016)","v":"25.0"},{"$f":"IFERROR(VLOOKUP(H1016,Translation!$A:$C,3,FALSE),H1016)","v":"Terre-Neuve-et-Labrador"}]
[28,"T1 2018","IMMEUBLES COLLECTIFS RÉSIDENTIELS","Île-du-Prince-Édouard",27.345477450016094,"Période d’amortissement moyenne selon la province","27.3","Île-du-Prince-Édouard",{"$f":"IFERROR(VLOOKUP(A1017,Translation!$A:$C,3,FALSE),A1017)","v":28},{"$f":"IFERROR(VLOOKUP(B1017,Translation!$A:$C,3,FALSE),B1017)","v":"T1 2018"},{"$f":"IFERROR(VLOOKUP(C1017,Translation!$A:$C,3,FALSE),C1017)","v":"IMMEUBLES COLLECTIFS RÉSIDENTIELS"},{"$f":"IFERROR(VLOOKUP(D1017,Translation!$A:$C,3,FALSE),D1017)","v":"Île-du-Prince-Édouard"},{"$f":"IFERROR(VLOOKUP(E1017,Translation!$A:$C,3,FALSE),E1017)","v":27.345477450016094},{"$f":"IFERROR(VLOOKUP(F1017,Translation!$A:$C,3,FALSE),F1017)","v":"Période d’amortissement moyenne selon la province"},{"$f":"IFERROR(VLOOKUP(G1017,Translation!$A:$C,3,FALSE),G1017)","v":"27.3"},{"$f":"IFERROR(VLOOKUP(H1017,Translation!$A:$C,3,FALSE),H1017)","v":"Île-du-Prince-Édouard"}]
[28,"T1 2018","IMMEUBLES COLLECTIFS RÉSIDENTIELS","Nouvelle-Écosse",33.612315209858295,"Période d’amortissement moyenne selon la province","33.6","Nouvelle-Écosse",{"$f":"IFERROR(VLOOKUP(A1018,Translation!$A:$C,3,FALSE),A1018)","v":28},{"$f":"IFERROR(VLOOKUP(B1018,Translation!$A:$C,3,FALSE),B1018)","v":"T1 2018"},{"$f":"IFERROR(VLOOKUP(C1018,Translation!$A:$C,3,FALSE),C1018)","v":"IMMEUBLES COLLECTIFS RÉSIDENTIELS"},{"$f":"IFERROR(VLOOKUP(D1018,Translation!$A:$C,3,FALSE),D1018)","v":"Nouvelle-Écosse"},{"$f":"IFERROR(VLOOKUP(E1018,Translation!$A:$C,3,FALSE),E1018)","v":33.612315209858295},{"$f":"IFERROR(VLOOKUP(F1018,Translation!$A:$C,3,FALSE),F1018)","v":"Période d’amortissement moyenne selon la province"},{"$f":"IFERROR(VLOOKUP(G1018,Translation!$A:$C,3,FALSE),G1018)","v":"33.6"},{"$f":"IFERROR(VLOOKUP(H1018,Translation!$A:$C,3,FALSE),H1018)","v":"Nouvelle-Écosse"}]
[28,"T1 2018","IMMEUBLES COLLECTIFS RÉSIDENTIELS","Nouveau-Brunswick",34.363823701898987,"Période d’amortissement moyenne selon la province","34.4","Nouveau-Brunswick",{"$f":"IFERROR(VLOOKUP(A1019,Translation!$A:$C,3,FALSE),A1019)","v":28},{"$f":"IFERROR(VLOOKUP(B1019,Translation!$A:$C,3,FALSE),B1019)","v":"T1 2018"},{"$f":"IFERROR(VLOOKUP(C1019,Translation!$A:$C,3,FALSE),C1019)","v":"IMMEUBLES COLLECTIFS RÉSIDENTIELS"},{"$f":"IFERROR(VLOOKUP(D1019,Translation!$A:$C,3,FALSE),D1019)","v":"Nouveau-Brunswick"},{"$f":"IFERROR(VLOOKUP(E1019,Translation!$A:$C,3,FALSE),E1019)","v":34.363823701898987},{"$f":"IFERROR(VLOOKUP(F1019,Translation!$A:$C,3,FALSE),F1019)","v":"Période d’amortissement moyenne selon la province"},{"$f":"IFERROR(VLOOKUP(G1019,Translation!$A:$C,3,FALSE),G1019)","v":"34.4"},{"$f":"IFERROR(VLOOKUP(H1019,Translation!$A:$C,3,FALSE),H1019)","v":"Nouveau-Brunswick"}]
[28,"T1 2018","IMMEUBLES COLLECTIFS RÉSIDENTIELS","Québec",30.725331108750662,"Période d’amortissement moyenne selon la province","30.7","Québec",{"$f":"IFERROR(VLOOKUP(A1020,Translation!$A:$C,3,FALSE),A1020)","v":28},{"$f":"IFERROR(VLOOKUP(B1020,Translation!$A:$C,3,FALSE),B1020)","v":"T1 2018"},{"$f":"IFERROR(VLOOKUP(C1020,Translation!$A:$C,3,FALSE),C1020)","v":"IMMEUBLES COLLECTIFS RÉSIDENTIELS"},{"$f":"IFERROR(VLOOKUP(D1020,Translation!$A:$C,3,FALSE),D1020)","v":"Québec"},{"$f":"IFERROR(VLOOKUP(E1020,Translation!$A:$C,3,FALSE),E1020)","v":30.725331108750662},{"$f":"IFERROR(VLOOKUP(F1020,Translation!$A:$C,3,FALSE),F1020)","v":"Période d’amortissement moyenne selon la province"},{"$f":"IFERROR(VLOOKUP(G1020,Translation!$A:$C,3,FALSE),G1020)","v":"30.7"},{"$f":"IFERROR(VLOOKUP(H1020,Translation!$A:$C,3,FALSE),H1020)","v":"Québec"}]
[28,"T1 2018","IMMEUBLES COLLECTIFS RÉSIDENTIELS","Ontario",29.677717509624141,"Période d’amortissement moyenne selon la province","29.7","Ontario",{"$f":"IFERROR(VLOOKUP(A1021,Translation!$A:$C,3,FALSE),A1021)","v":28},{"$f":"IFERROR(VLOOKUP(B1021,Translation!$A:$C,3,FALSE),B1021)","v":"T1 2018"},{"$f":"IFERROR(VLOOKUP(C1021,Translation!$A:$C,3,FALSE),C1021)","v":"IMMEUBLES COLLECTIFS RÉSIDENTIELS"},{"$f":"IFERROR(VLOOKUP(D1021,Translation!$A:$C,3,FALSE),D1021)","v":"Ontario"},{"$f":"IFERROR(VLOOKUP(E1021,Translation!$A:$C,3,FALSE),E1021)","v":29.677717509624141},{"$f":"IFERROR(VLOOKUP(F1021,Translation!$A:$C,3,FALSE),F1021)","v":"Période d’amortissement moyenne selon la province"},{"$f":"IFERROR(VLOOKUP(G1021,Translation!$A:$C,3,FALSE),G1021)","v":"29.7"},{"$f":"IFERROR(VLOOKUP(H1021,Translation!$A:$C,3,FALSE),H1021)","v":"Ontario"}]
[28,"T1 2018","IMMEUBLES COLLECTIFS RÉSIDENTIELS","Manitoba",27.956523744519846,"Période d’amortissement moyenne selon la province","28.0","Manitoba",{"$f":"IFERROR(VLOOKUP(A1022,Translation!$A:$C,3,FALSE),A1022)","v":28},{"$f":"IFERROR(VLOOKUP(B1022,Translation!$A:$C,3,FALSE),B1022)","v":"T1 2018"},{"$f":"IFERROR(VLOOKUP(C1022,Translation!$A:$C,3,FALSE),C1022)","v":"IMMEUBLES COLLECTIFS RÉSIDENTIELS"},{"$f":"IFERROR(VLOOKUP(D1022,Translation!$A:$C,3,FALSE),D1022)","v":"Manitoba"},{"$f":"IFERROR(VLOOKUP(E1022,Translation!$A:$C,3,FALSE),E1022)","v":27.956523744519846},{"$f":"IFERROR(VLOOKUP(F1022,Translation!$A:$C,3,FALSE),F1022)","v":"Période d’amortissement moyenne selon la province"},{"$f":"IFERROR(VLOOKUP(G1022,Translation!$A:$C,3,FALSE),G1022)","v":"28.0"},{"$f":"IFERROR(VLOOKUP(H1022,Translation!$A:$C,3,FALSE),H1022)","v":"Manitoba"}]
[28,"T1 2018","IMMEUBLES COLLECTIFS RÉSIDENTIELS","Saskatchewan",26.048051938058158,"Période d’amortissement moyenne selon la province","26.0","Saskatchewan",{"$f":"IFERROR(VLOOKUP(A1023,Translation!$A:$C,3,FALSE),A1023)","v":28},{"$f":"IFERROR(VLOOKUP(B1023,Translation!$A:$C,3,FALSE),B1023)","v":"T1 2018"},{"$f":"IFERROR(VLOOKUP(C1023,Translation!$A:$C,3,FALSE),C1023)","v":"IMMEUBLES COLLECTIFS RÉSIDENTIELS"},{"$f":"IFERROR(VLOOKUP(D1023,Translation!$A:$C,3,FALSE),D1023)","v":"Saskatchewan"},{"$f":"IFERROR(VLOOKUP(E1023,Translation!$A:$C,3,FALSE),E1023)","v":26.048051938058158},{"$f":"IFERROR(VLOOKUP(F1023,Translation!$A:$C,3,FALSE),F1023)","v":"Période d’amortissement moyenne selon la province"},{"$f":"IFERROR(VLOOKUP(G1023,Translation!$A:$C,3,FALSE),G1023)","v":"26.0"},{"$f":"IFERROR(VLOOKUP(H1023,Translation!$A:$C,3,FALSE),H1023)","v":"Saskatchewan"}]
[28,"T1 2018","IMMEUBLES COLLECTIFS RÉSIDENTIELS","Alberta",31.34940182404462,"Période d’amortissement moyenne selon la province","31.3","Alberta",{"$f":"IFERROR(VLOOKUP(A1024,Translation!$A:$C,3,FALSE),A1024)","v":28},{"$f":"IFERROR(VLOOKUP(B1024,Translation!$A:$C,3,FALSE),B1024)","v":"T1 2018"},{"$f":"IFERROR(VLOOKUP(C1024,Translation!$A:$C,3,FALSE),C1024)","v":"IMMEUBLES COLLECTIFS RÉSIDENTIELS"},{"$f":"IFERROR(VLOOKUP(D1024,Translation!$A:$C,3,FALSE),D1024)","v":"Alberta"},{"$f":"IFERROR(VLOOKUP(E1024,Translation!$A:$C,3,FALSE),E1024)","v":31.34940182404462},{"$f":"IFERROR(VLOOKUP(F1024,Translation!$A:$C,3,FALSE),F1024)","v":"Période d’amortissement moyenne selon la province"},{"$f":"IFERROR(VLOOKUP(G1024,Translation!$A:$C,3,FALSE),G1024)","v":"31.3"},{"$f":"IFERROR(VLOOKUP(H1024,Translation!$A:$C,3,FALSE),H1024)","v":"Alberta"}]
[28,"T1 2018","IMMEUBLES COLLECTIFS RÉSIDENTIELS","Colombie-Britannique",34.684278359587495,"Période d’amortissement moyenne selon la province","34.7","Colombie-Britannique",{"$f":"IFERROR(VLOOKUP(A1025,Translation!$A:$C,3,FALSE),A1025)","v":28},{"$f":"IFERROR(VLOOKUP(B1025,Translation!$A:$C,3,FALSE),B1025)","v":"T1 2018"},{"$f":"IFERROR(VLOOKUP(C1025,Translation!$A:$C,3,FALSE),C1025)","v":"IMMEUBLES COLLECTIFS RÉSIDENTIELS"},{"$f":"IFERROR(VLOOKUP(D1025,Translation!$A:$C,3,FALSE),D1025)","v":"Colombie-Britannique"},{"$f":"IFERROR(VLOOKUP(E1025,Translation!$A:$C,3,FALSE),E1025)","v":34.684278359587495},{"$f":"IFERROR(VLOOKUP(F1025,Translation!$A:$C,3,FALSE),F1025)","v":"Période d’amortissement moyenne selon la province"},{"$f":"IFERROR(VLOOKUP(G1025,Translation!$A:$C,3,FALSE),G1025)","v":"34.7"},{"$f":"IFERROR(VLOOKUP(H1025,Translation!$A:$C,3,FALSE),H1025)","v":"Colombie-Britannique"}]
[28,"Q2 2016","IMMEUBLES COLLECTIFS RÉSIDENTIELS","Terre-Neuve-et-Labrador",25.373277326006555,"Période d’amortissement moyenne selon la province","25.4","Terre-Neuve-et-Labrador",{"$f":"IFERROR(VLOOKUP(A1026,Translation!$A:$C,3,FALSE),A1026)","v":28},{"$f":"IFERROR(VLOOKUP(B1026,Translation!$A:$C,3,FALSE),B1026)","v":"Q2 2016"},{"$f":"IFERROR(VLOOKUP(C1026,Translation!$A:$C,3,FALSE),C1026)","v":"IMMEUBLES COLLECTIFS RÉSIDENTIELS"},{"$f":"IFERROR(VLOOKUP(D1026,Translation!$A:$C,3,FALSE),D1026)","v":"Terre-Neuve-et-Labrador"},{"$f":"IFERROR(VLOOKUP(E1026,Translation!$A:$C,3,FALSE),E1026)","v":25.373277326006555},{"$f":"IFERROR(VLOOKUP(F1026,Translation!$A:$C,3,FALSE),F1026)","v":"Période d’amortissement moyenne selon la province"},{"$f":"IFERROR(VLOOKUP(G1026,Translation!$A:$C,3,FALSE),G1026)","v":"25.4"},{"$f":"IFERROR(VLOOKUP(H1026,Translation!$A:$C,3,FALSE),H1026)","v":"Terre-Neuve-et-Labrador"}]
[28,"Q2 2016","IMMEUBLES COLLECTIFS RÉSIDENTIELS","Île-du-Prince-Édouard",25,"Période d’amortissement moyenne selon la province","25.0","Île-du-Prince-Édouard",{"$f":"IFERROR(VLOOKUP(A1027,Translation!$A:$C,3,FALSE),A1027)","v":28},{"$f":"IFERROR(VLOOKUP(B1027,Translation!$A:$C,3,FALSE),B1027)","v":"Q2 2016"},{"$f":"IFERROR(VLOOKUP(C1027,Translation!$A:$C,3,FALSE),C1027)","v":"IMMEUBLES COLLECTIFS RÉSIDENTIELS"},{"$f":"IFERROR(VLOOKUP(D1027,Translation!$A:$C,3,FALSE),D1027)","v":"Île-du-Prince-Édouard"},{"$f":"IFERROR(VLOOKUP(E1027,Translation!$A:$C,3,FALSE),E1027)","v":25},{"$f":"IFERROR(VLOOKUP(F1027,Translation!$A:$C,3,FALSE),F1027)","v":"Période d’amortissement moyenne selon la province"},{"$f":"IFERROR(VLOOKUP(G1027,Translation!$A:$C,3,FALSE),G1027)","v":"25.0"},{"$f":"IFERROR(VLOOKUP(H1027,Translation!$A:$C,3,FALSE),H1027)","v":"Île-du-Prince-Édouard"}]
[28,"Q2 2016","IMMEUBLES COLLECTIFS RÉSIDENTIELS","Nouvelle-Écosse",34.591031575575393,"Période d’amortissement moyenne selon la province","34.6","Nouvelle-Écosse",{"$f":"IFERROR(VLOOKUP(A1028,Translation!$A:$C,3,FALSE),A1028)","v":28},{"$f":"IFERROR(VLOOKUP(B1028,Translation!$A:$C,3,FALSE),B1028)","v":"Q2 2016"},{"$f":"IFERROR(VLOOKUP(C1028,Translation!$A:$C,3,FALSE),C1028)","v":"IMMEUBLES COLLECTIFS RÉSIDENTIELS"},{"$f":"IFERROR(VLOOKUP(D1028,Translation!$A:$C,3,FALSE),D1028)","v":"Nouvelle-Écosse"},{"$f":"IFERROR(VLOOKUP(E1028,Translation!$A:$C,3,FALSE),E1028)","v":34.591031575575393},{"$f":"IFERROR(VLOOKUP(F1028,Translation!$A:$C,3,FALSE),F1028)","v":"Période d’amortissement moyenne selon la province"},{"$f":"IFERROR(VLOOKUP(G1028,Translation!$A:$C,3,FALSE),G1028)","v":"34.6"},{"$f":"IFERROR(VLOOKUP(H1028,Translation!$A:$C,3,FALSE),H1028)","v":"Nouvelle-Écosse"}]
[28,"Q2 2016","IMMEUBLES COLLECTIFS RÉSIDENTIELS","Nouveau-Brunswick",26.188609485135441,"Période d’amortissement moyenne selon la province","26.2","Nouveau-Brunswick",{"$f":"IFERROR(VLOOKUP(A1029,Translation!$A:$C,3,FALSE),A1029)","v":28},{"$f":"IFERROR(VLOOKUP(B1029,Translation!$A:$C,3,FALSE),B1029)","v":"Q2 2016"},{"$f":"IFERROR(VLOOKUP(C1029,Translation!$A:$C,3,FALSE),C1029)","v":"IMMEUBLES COLLECTIFS RÉSIDENTIELS"},{"$f":"IFERROR(VLOOKUP(D1029,Translation!$A:$C,3,FALSE),D1029)","v":"Nouveau-Brunswick"},{"$f":"IFERROR(VLOOKUP(E1029,Translation!$A:$C,3,FALSE),E1029)","v":26.188609485135441},{"$f":"IFERROR(VLOOKUP(F1029,Translation!$A:$C,3,FALSE),F1029)","v":"Période d’amortissement moyenne selon la province"},{"$f":"IFERROR(VLOOKUP(G1029,Translation!$A:$C,3,FALSE),G1029)","v":"26.2"},{"$f":"IFERROR(VLOOKUP(H1029,Translation!$A:$C,3,FALSE),H1029)","v":"Nouveau-Brunswick"}]
[28,"Q2 2016","IMMEUBLES COLLECTIFS RÉSIDENTIELS","Québec",31.041312619598514,"Période d’amortissement moyenne selon la province","31.0","Québec",{"$f":"IFERROR(VLOOKUP(A1030,Translation!$A:$C,3,FALSE),A1030)","v":28},{"$f":"IFERROR(VLOOKUP(B1030,Translation!$A:$C,3,FALSE),B1030)","v":"Q2 2016"},{"$f":"IFERROR(VLOOKUP(C1030,Translation!$A:$C,3,FALSE),C1030)","v":"IMMEUBLES COLLECTIFS RÉSIDENTIELS"},{"$f":"IFERROR(VLOOKUP(D1030,Translation!$A:$C,3,FALSE),D1030)","v":"Québec"},{"$f":"IFERROR(VLOOKUP(E1030,Translation!$A:$C,3,FALSE),E1030)","v":31.041312619598514},{"$f":"IFERROR(VLOOKUP(F1030,Translation!$A:$C,3,FALSE),F1030)","v":"Période d’amortissement moyenne selon la province"},{"$f":"IFERROR(VLOOKUP(G1030,Translation!$A:$C,3,FALSE),G1030)","v":"31.0"},{"$f":"IFERROR(VLOOKUP(H1030,Translation!$A:$C,3,FALSE),H1030)","v":"Québec"}]
[28,"Q2 2016","IMMEUBLES COLLECTIFS RÉSIDENTIELS","Ontario",28.277376144613992,"Période d’amortissement moyenne selon la province","28.3","Ontario",{"$f":"IFERROR(VLOOKUP(A1031,Translation!$A:$C,3,FALSE),A1031)","v":28},{"$f":"IFERROR(VLOOKUP(B1031,Translation!$A:$C,3,FALSE),B1031)","v":"Q2 2016"},{"$f":"IFERROR(VLOOKUP(C1031,Translation!$A:$C,3,FALSE),C1031)","v":"IMMEUBLES COLLECTIFS RÉSIDENTIELS"},{"$f":"IFERROR(VLOOKUP(D1031,Translation!$A:$C,3,FALSE),D1031)","v":"Ontario"},{"$f":"IFERROR(VLOOKUP(E1031,Translation!$A:$C,3,FALSE),E1031)","v":28.277376144613992},{"$f":"IFERROR(VLOOKUP(F1031,Translation!$A:$C,3,FALSE),F1031)","v":"Période d’amortissement moyenne selon la province"},{"$f":"IFERROR(VLOOKUP(G1031,Translation!$A:$C,3,FALSE),G1031)","v":"28.3"},{"$f":"IFERROR(VLOOKUP(H1031,Translation!$A:$C,3,FALSE),H1031)","v":"Ontario"}]
[28,"Q2 2016","IMMEUBLES COLLECTIFS RÉSIDENTIELS","Manitoba",27.931643259565551,"Période d’amortissement moyenne selon la province","27.9","Manitoba",{"$f":"IFERROR(VLOOKUP(A1032,Translation!$A:$C,3,FALSE),A1032)","v":28},{"$f":"IFERROR(VLOOKUP(B1032,Translation!$A:$C,3,FALSE),B1032)","v":"Q2 2016"},{"$f":"IFERROR(VLOOKUP(C1032,Translation!$A:$C,3,FALSE),C1032)","v":"IMMEUBLES COLLECTIFS RÉSIDENTIELS"},{"$f":"IFERROR(VLOOKUP(D1032,Translation!$A:$C,3,FALSE),D1032)","v":"Manitoba"},{"$f":"IFERROR(VLOOKUP(E1032,Translation!$A:$C,3,FALSE),E1032)","v":27.931643259565551},{"$f":"IFERROR(VLOOKUP(F1032,Translation!$A:$C,3,FALSE),F1032)","v":"Période d’amortissement moyenne selon la province"},{"$f":"IFERROR(VLOOKUP(G1032,Translation!$A:$C,3,FALSE),G1032)","v":"27.9"},{"$f":"IFERROR(VLOOKUP(H1032,Translation!$A:$C,3,FALSE),H1032)","v":"Manitoba"}]
[28,"Q2 2016","IMMEUBLES COLLECTIFS RÉSIDENTIELS","Saskatchewan",36.200550648821597,"Période d’amortissement moyenne selon la province","36.2","Saskatchewan",{"$f":"IFERROR(VLOOKUP(A1033,Translation!$A:$C,3,FALSE),A1033)","v":28},{"$f":"IFERROR(VLOOKUP(B1033,Translation!$A:$C,3,FALSE),B1033)","v":"Q2 2016"},{"$f":"IFERROR(VLOOKUP(C1033,Translation!$A:$C,3,FALSE),C1033)","v":"IMMEUBLES COLLECTIFS RÉSIDENTIELS"},{"$f":"IFERROR(VLOOKUP(D1033,Translation!$A:$C,3,FALSE),D1033)","v":"Saskatchewan"},{"$f":"IFERROR(VLOOKUP(E1033,Translation!$A:$C,3,FALSE),E1033)","v":36.200550648821597},{"$f":"IFERROR(VLOOKUP(F1033,Translation!$A:$C,3,FALSE),F1033)","v":"Période d’amortissement moyenne selon la province"},{"$f":"IFERROR(VLOOKUP(G1033,Translation!$A:$C,3,FALSE),G1033)","v":"36.2"},{"$f":"IFERROR(VLOOKUP(H1033,Translation!$A:$C,3,FALSE),H1033)","v":"Saskatchewan"}]
[28,"Q2 2016","IMMEUBLES COLLECTIFS RÉSIDENTIELS","Alberta",33.042460677577026,"Période d’amortissement moyenne selon la province","33.0","Alberta",{"$f":"IFERROR(VLOOKUP(A1034,Translation!$A:$C,3,FALSE),A1034)","v":28},{"$f":"IFERROR(VLOOKUP(B1034,Translation!$A:$C,3,FALSE),B1034)","v":"Q2 2016"},{"$f":"IFERROR(VLOOKUP(C1034,Translation!$A:$C,3,FALSE),C1034)","v":"IMMEUBLES COLLECTIFS RÉSIDENTIELS"},{"$f":"IFERROR(VLOOKUP(D1034,Translation!$A:$C,3,FALSE),D1034)","v":"Alberta"},{"$f":"IFERROR(VLOOKUP(E1034,Translation!$A:$C,3,FALSE),E1034)","v":33.042460677577026},{"$f":"IFERROR(VLOOKUP(F1034,Translation!$A:$C,3,FALSE),F1034)","v":"Période d’amortissement moyenne selon la province"},{"$f":"IFERROR(VLOOKUP(G1034,Translation!$A:$C,3,FALSE),G1034)","v":"33.0"},{"$f":"IFERROR(VLOOKUP(H1034,Translation!$A:$C,3,FALSE),H1034)","v":"Alberta"}]
[28,"Q2 2016","IMMEUBLES COLLECTIFS RÉSIDENTIELS","Colombie-Britannique",26.723671588196275,"Période d’amortissement moyenne selon la province","26.7","Colombie-Britannique",{"$f":"IFERROR(VLOOKUP(A1035,Translation!$A:$C,3,FALSE),A1035)","v":28},{"$f":"IFERROR(VLOOKUP(B1035,Translation!$A:$C,3,FALSE),B1035)","v":"Q2 2016"},{"$f":"IFERROR(VLOOKUP(C1035,Translation!$A:$C,3,FALSE),C1035)","v":"IMMEUBLES COLLECTIFS RÉSIDENTIELS"},{"$f":"IFERROR(VLOOKUP(D1035,Translation!$A:$C,3,FALSE),D1035)","v":"Colombie-Britannique"},{"$f":"IFERROR(VLOOKUP(E1035,Translation!$A:$C,3,FALSE),E1035)","v":26.723671588196275},{"$f":"IFERROR(VLOOKUP(F1035,Translation!$A:$C,3,FALSE),F1035)","v":"Période d’amortissement moyenne selon la province"},{"$f":"IFERROR(VLOOKUP(G1035,Translation!$A:$C,3,FALSE),G1035)","v":"26.7"},{"$f":"IFERROR(VLOOKUP(H1035,Translation!$A:$C,3,FALSE),H1035)","v":"Colombie-Britannique"}]
[28,"Q2 2016","IMMEUBLES COLLECTIFS RÉSIDENTIELS","Territoires",25,"Période d’amortissement moyenne selon la province","25.0","Territoires",{"$f":"IFERROR(VLOOKUP(A1036,Translation!$A:$C,3,FALSE),A1036)","v":28},{"$f":"IFERROR(VLOOKUP(B1036,Translation!$A:$C,3,FALSE),B1036)","v":"Q2 2016"},{"$f":"IFERROR(VLOOKUP(C1036,Translation!$A:$C,3,FALSE),C1036)","v":"IMMEUBLES COLLECTIFS RÉSIDENTIELS"},{"$f":"IFERROR(VLOOKUP(D1036,Translation!$A:$C,3,FALSE),D1036)","v":"Territoires"},{"$f":"IFERROR(VLOOKUP(E1036,Translation!$A:$C,3,FALSE),E1036)","v":25},{"$f":"IFERROR(VLOOKUP(F1036,Translation!$A:$C,3,FALSE),F1036)","v":"Période d’amortissement moyenne selon la province"},{"$f":"IFERROR(VLOOKUP(G1036,Translation!$A:$C,3,FALSE),G1036)","v":"25.0"},{"$f":"IFERROR(VLOOKUP(H1036,Translation!$A:$C,3,FALSE),H1036)","v":"Territoires"}]
[28,"T2 2017","IMMEUBLES COLLECTIFS RÉSIDENTIELS","Terre-Neuve-et-Labrador",25,"Période d’amortissement moyenne selon la province","25.0","Terre-Neuve-et-Labrador",{"$f":"IFERROR(VLOOKUP(A1037,Translation!$A:$C,3,FALSE),A1037)","v":28},{"$f":"IFERROR(VLOOKUP(B1037,Translation!$A:$C,3,FALSE),B1037)","v":"T2 2017"},{"$f":"IFERROR(VLOOKUP(C1037,Translation!$A:$C,3,FALSE),C1037)","v":"IMMEUBLES COLLECTIFS RÉSIDENTIELS"},{"$f":"IFERROR(VLOOKUP(D1037,Translation!$A:$C,3,FALSE),D1037)","v":"Terre-Neuve-et-Labrador"},{"$f":"IFERROR(VLOOKUP(E1037,Translation!$A:$C,3,FALSE),E1037)","v":25},{"$f":"IFERROR(VLOOKUP(F1037,Translation!$A:$C,3,FALSE),F1037)","v":"Période d’amortissement moyenne selon la province"},{"$f":"IFERROR(VLOOKUP(G1037,Translation!$A:$C,3,FALSE),G1037)","v":"25.0"},{"$f":"IFERROR(VLOOKUP(H1037,Translation!$A:$C,3,FALSE),H1037)","v":"Terre-Neuve-et-Labrador"}]
[28,"T2 2017","IMMEUBLES COLLECTIFS RÉSIDENTIELS","Île-du-Prince-Édouard",25,"Période d’amortissement moyenne selon la province","25.0","Île-du-Prince-Édouard",{"$f":"IFERROR(VLOOKUP(A1038,Translation!$A:$C,3,FALSE),A1038)","v":28},{"$f":"IFERROR(VLOOKUP(B1038,Translation!$A:$C,3,FALSE),B1038)","v":"T2 2017"},{"$f":"IFERROR(VLOOKUP(C1038,Translation!$A:$C,3,FALSE),C1038)","v":"IMMEUBLES COLLECTIFS RÉSIDENTIELS"},{"$f":"IFERROR(VLOOKUP(D1038,Translation!$A:$C,3,FALSE),D1038)","v":"Île-du-Prince-Édouard"},{"$f":"IFERROR(VLOOKUP(E1038,Translation!$A:$C,3,FALSE),E1038)","v":25},{"$f":"IFERROR(VLOOKUP(F1038,Translation!$A:$C,3,FALSE),F1038)","v":"Période d’amortissement moyenne selon la province"},{"$f":"IFERROR(VLOOKUP(G1038,Translation!$A:$C,3,FALSE),G1038)","v":"25.0"},{"$f":"IFERROR(VLOOKUP(H1038,Translation!$A:$C,3,FALSE),H1038)","v":"Île-du-Prince-Édouard"}]
[28,"T2 2017","IMMEUBLES COLLECTIFS RÉSIDENTIELS","Nouvelle-Écosse",28.072612514408323,"Période d’amortissement moyenne selon la province","28.1","Nouvelle-Écosse",{"$f":"IFERROR(VLOOKUP(A1039,Translation!$A:$C,3,FALSE),A1039)","v":28},{"$f":"IFERROR(VLOOKUP(B1039,Translation!$A:$C,3,FALSE),B1039)","v":"T2 2017"},{"$f":"IFERROR(VLOOKUP(C1039,Translation!$A:$C,3,FALSE),C1039)","v":"IMMEUBLES COLLECTIFS RÉSIDENTIELS"},{"$f":"IFERROR(VLOOKUP(D1039,Translation!$A:$C,3,FALSE),D1039)","v":"Nouvelle-Écosse"},{"$f":"IFERROR(VLOOKUP(E1039,Translation!$A:$C,3,FALSE),E1039)","v":28.072612514408323},{"$f":"IFERROR(VLOOKUP(F1039,Translation!$A:$C,3,FALSE),F1039)","v":"Période d’amortissement moyenne selon la province"},{"$f":"IFERROR(VLOOKUP(G1039,Translation!$A:$C,3,FALSE),G1039)","v":"28.1"},{"$f":"IFERROR(VLOOKUP(H1039,Translation!$A:$C,3,FALSE),H1039)","v":"Nouvelle-Écosse"}]
[28,"T2 2017","IMMEUBLES COLLECTIFS RÉSIDENTIELS","Nouveau-Brunswick",29.020328214167897,"Période d’amortissement moyenne selon la province","29.0","Nouveau-Brunswick",{"$f":"IFERROR(VLOOKUP(A1040,Translation!$A:$C,3,FALSE),A1040)","v":28},{"$f":"IFERROR(VLOOKUP(B1040,Translation!$A:$C,3,FALSE),B1040)","v":"T2 2017"},{"$f":"IFERROR(VLOOKUP(C1040,Translation!$A:$C,3,FALSE),C1040)","v":"IMMEUBLES COLLECTIFS RÉSIDENTIELS"},{"$f":"IFERROR(VLOOKUP(D1040,Translation!$A:$C,3,FALSE),D1040)","v":"Nouveau-Brunswick"},{"$f":"IFERROR(VLOOKUP(E1040,Translation!$A:$C,3,FALSE),E1040)","v":29.020328214167897},{"$f":"IFERROR(VLOOKUP(F1040,Translation!$A:$C,3,FALSE),F1040)","v":"Période d’amortissement moyenne selon la province"},{"$f":"IFERROR(VLOOKUP(G1040,Translation!$A:$C,3,FALSE),G1040)","v":"29.0"},{"$f":"IFERROR(VLOOKUP(H1040,Translation!$A:$C,3,FALSE),H1040)","v":"Nouveau-Brunswick"}]
[28,"T2 2017","IMMEUBLES COLLECTIFS RÉSIDENTIELS","Québec",29.605587022154431,"Période d’amortissement moyenne selon la province","29.6","Québec",{"$f":"IFERROR(VLOOKUP(A1041,Translation!$A:$C,3,FALSE),A1041)","v":28},{"$f":"IFERROR(VLOOKUP(B1041,Translation!$A:$C,3,FALSE),B1041)","v":"T2 2017"},{"$f":"IFERROR(VLOOKUP(C1041,Translation!$A:$C,3,FALSE),C1041)","v":"IMMEUBLES COLLECTIFS RÉSIDENTIELS"},{"$f":"IFERROR(VLOOKUP(D1041,Translation!$A:$C,3,FALSE),D1041)","v":"Québec"},{"$f":"IFERROR(VLOOKUP(E1041,Translation!$A:$C,3,FALSE),E1041)","v":29.605587022154431},{"$f":"IFERROR(VLOOKUP(F1041,Translation!$A:$C,3,FALSE),F1041)","v":"Période d’amortissement moyenne selon la province"},{"$f":"IFERROR(VLOOKUP(G1041,Translation!$A:$C,3,FALSE),G1041)","v":"29.6"},{"$f":"IFERROR(VLOOKUP(H1041,Translation!$A:$C,3,FALSE),H1041)","v":"Québec"}]
[28,"T2 2017","IMMEUBLES COLLECTIFS RÉSIDENTIELS","Ontario",28.674083994557854,"Période d’amortissement moyenne selon la province","28.7","Ontario",{"$f":"IFERROR(VLOOKUP(A1042,Translation!$A:$C,3,FALSE),A1042)","v":28},{"$f":"IFERROR(VLOOKUP(B1042,Translation!$A:$C,3,FALSE),B1042)","v":"T2 2017"},{"$f":"IFERROR(VLOOKUP(C1042,Translation!$A:$C,3,FALSE),C1042)","v":"IMMEUBLES COLLECTIFS RÉSIDENTIELS"},{"$f":"IFERROR(VLOOKUP(D1042,Translation!$A:$C,3,FALSE),D1042)","v":"Ontario"},{"$f":"IFERROR(VLOOKUP(E1042,Translation!$A:$C,3,FALSE),E1042)","v":28.674083994557854},{"$f":"IFERROR(VLOOKUP(F1042,Translation!$A:$C,3,FALSE),F1042)","v":"Période d’amortissement moyenne selon la province"},{"$f":"IFERROR(VLOOKUP(G1042,Translation!$A:$C,3,FALSE),G1042)","v":"28.7"},{"$f":"IFERROR(VLOOKUP(H1042,Translation!$A:$C,3,FALSE),H1042)","v":"Ontario"}]
[28,"T2 2017","IMMEUBLES COLLECTIFS RÉSIDENTIELS","Manitoba",26.287561375255695,"Période d’amortissement moyenne selon la province","26.3","Manitoba",{"$f":"IFERROR(VLOOKUP(A1043,Translation!$A:$C,3,FALSE),A1043)","v":28},{"$f":"IFERROR(VLOOKUP(B1043,Translation!$A:$C,3,FALSE),B1043)","v":"T2 2017"},{"$f":"IFERROR(VLOOKUP(C1043,Translation!$A:$C,3,FALSE),C1043)","v":"IMMEUBLES COLLECTIFS RÉSIDENTIELS"},{"$f":"IFERROR(VLOOKUP(D1043,Translation!$A:$C,3,FALSE),D1043)","v":"Manitoba"},{"$f":"IFERROR(VLOOKUP(E1043,Translation!$A:$C,3,FALSE),E1043)","v":26.287561375255695},{"$f":"IFERROR(VLOOKUP(F1043,Translation!$A:$C,3,FALSE),F1043)","v":"Période d’amortissement moyenne selon la province"},{"$f":"IFERROR(VLOOKUP(G1043,Translation!$A:$C,3,FALSE),G1043)","v":"26.3"},{"$f":"IFERROR(VLOOKUP(H1043,Translation!$A:$C,3,FALSE),H1043)","v":"Manitoba"}]
[28,"T2 2017","IMMEUBLES COLLECTIFS RÉSIDENTIELS","Saskatchewan",30.890582847291078,"Période d’amortissement moyenne selon la province","30.9","Saskatchewan",{"$f":"IFERROR(VLOOKUP(A1044,Translation!$A:$C,3,FALSE),A1044)","v":28},{"$f":"IFERROR(VLOOKUP(B1044,Translation!$A:$C,3,FALSE),B1044)","v":"T2 2017"},{"$f":"IFERROR(VLOOKUP(C1044,Translation!$A:$C,3,FALSE),C1044)","v":"IMMEUBLES COLLECTIFS RÉSIDENTIELS"},{"$f":"IFERROR(VLOOKUP(D1044,Translation!$A:$C,3,FALSE),D1044)","v":"Saskatchewan"},{"$f":"IFERROR(VLOOKUP(E1044,Translation!$A:$C,3,FALSE),E1044)","v":30.890582847291078},{"$f":"IFERROR(VLOOKUP(F1044,Translation!$A:$C,3,FALSE),F1044)","v":"Période d’amortissement moyenne selon la province"},{"$f":"IFERROR(VLOOKUP(G1044,Translation!$A:$C,3,FALSE),G1044)","v":"30.9"},{"$f":"IFERROR(VLOOKUP(H1044,Translation!$A:$C,3,FALSE),H1044)","v":"Saskatchewan"}]
[28,"T2 2017","IMMEUBLES COLLECTIFS RÉSIDENTIELS","Alberta",30.388346976343541,"Période d’amortissement moyenne selon la province","30.4","Alberta",{"$f":"IFERROR(VLOOKUP(A1045,Translation!$A:$C,3,FALSE),A1045)","v":28},{"$f":"IFERROR(VLOOKUP(B1045,Translation!$A:$C,3,FALSE),B1045)","v":"T2 2017"},{"$f":"IFERROR(VLOOKUP(C1045,Translation!$A:$C,3,FALSE),C1045)","v":"IMMEUBLES COLLECTIFS RÉSIDENTIELS"},{"$f":"IFERROR(VLOOKUP(D1045,Translation!$A:$C,3,FALSE),D1045)","v":"Alberta"},{"$f":"IFERROR(VLOOKUP(E1045,Translation!$A:$C,3,FALSE),E1045)","v":30.388346976343541},{"$f":"IFERROR(VLOOKUP(F1045,Translation!$A:$C,3,FALSE),F1045)","v":"Période d’amortissement moyenne selon la province"},{"$f":"IFERROR(VLOOKUP(G1045,Translation!$A:$C,3,FALSE),G1045)","v":"30.4"},{"$f":"IFERROR(VLOOKUP(H1045,Translation!$A:$C,3,FALSE),H1045)","v":"Alberta"}]
[28,"T2 2017","IMMEUBLES COLLECTIFS RÉSIDENTIELS","Colombie-Britannique",34.125600771747401,"Période d’amortissement moyenne selon la province","34.1","Colombie-Britannique",{"$f":"IFERROR(VLOOKUP(A1046,Translation!$A:$C,3,FALSE),A1046)","v":28},{"$f":"IFERROR(VLOOKUP(B1046,Translation!$A:$C,3,FALSE),B1046)","v":"T2 2017"},{"$f":"IFERROR(VLOOKUP(C1046,Translation!$A:$C,3,FALSE),C1046)","v":"IMMEUBLES COLLECTIFS RÉSIDENTIELS"},{"$f":"IFERROR(VLOOKUP(D1046,Translation!$A:$C,3,FALSE),D1046)","v":"Colombie-Britannique"},{"$f":"IFERROR(VLOOKUP(E1046,Translation!$A:$C,3,FALSE),E1046)","v":34.125600771747401},{"$f":"IFERROR(VLOOKUP(F1046,Translation!$A:$C,3,FALSE),F1046)","v":"Période d’amortissement moyenne selon la province"},{"$f":"IFERROR(VLOOKUP(G1046,Translation!$A:$C,3,FALSE),G1046)","v":"34.1"},{"$f":"IFERROR(VLOOKUP(H1046,Translation!$A:$C,3,FALSE),H1046)","v":"Colombie-Britannique"}]
[28,"T2 2017","IMMEUBLES COLLECTIFS RÉSIDENTIELS","Territoires",30,"Période d’amortissement moyenne selon la province","30.0","Territoires",{"$f":"IFERROR(VLOOKUP(A1047,Translation!$A:$C,3,FALSE),A1047)","v":28},{"$f":"IFERROR(VLOOKUP(B1047,Translation!$A:$C,3,FALSE),B1047)","v":"T2 2017"},{"$f":"IFERROR(VLOOKUP(C1047,Translation!$A:$C,3,FALSE),C1047)","v":"IMMEUBLES COLLECTIFS RÉSIDENTIELS"},{"$f":"IFERROR(VLOOKUP(D1047,Translation!$A:$C,3,FALSE),D1047)","v":"Territoires"},{"$f":"IFERROR(VLOOKUP(E1047,Translation!$A:$C,3,FALSE),E1047)","v":30},{"$f":"IFERROR(VLOOKUP(F1047,Translation!$A:$C,3,FALSE),F1047)","v":"Période d’amortissement moyenne selon la province"},{"$f":"IFERROR(VLOOKUP(G1047,Translation!$A:$C,3,FALSE),G1047)","v":"30.0"},{"$f":"IFERROR(VLOOKUP(H1047,Translation!$A:$C,3,FALSE),H1047)","v":"Territoires"}]
[28,"Q3 2016","IMMEUBLES COLLECTIFS RÉSIDENTIELS","Terre-Neuve-et-Labrador",25,"Période d’amortissement moyenne selon la province","25.0","Terre-Neuve-et-Labrador",{"$f":"IFERROR(VLOOKUP(A1048,Translation!$A:$C,3,FALSE),A1048)","v":28},{"$f":"IFERROR(VLOOKUP(B1048,Translation!$A:$C,3,FALSE),B1048)","v":"Q3 2016"},{"$f":"IFERROR(VLOOKUP(C1048,Translation!$A:$C,3,FALSE),C1048)","v":"IMMEUBLES COLLECTIFS RÉSIDENTIELS"},{"$f":"IFERROR(VLOOKUP(D1048,Translation!$A:$C,3,FALSE),D1048)","v":"Terre-Neuve-et-Labrador"},{"$f":"IFERROR(VLOOKUP(E1048,Translation!$A:$C,3,FALSE),E1048)","v":25},{"$f":"IFERROR(VLOOKUP(F1048,Translation!$A:$C,3,FALSE),F1048)","v":"Période d’amortissement moyenne selon la province"},{"$f":"IFERROR(VLOOKUP(G1048,Translation!$A:$C,3,FALSE),G1048)","v":"25.0"},{"$f":"IFERROR(VLOOKUP(H1048,Translation!$A:$C,3,FALSE),H1048)","v":"Terre-Neuve-et-Labrador"}]
[28,"Q3 2016","IMMEUBLES COLLECTIFS RÉSIDENTIELS","Île-du-Prince-Édouard",25,"Période d’amortissement moyenne selon la province","25.0","Île-du-Prince-Édouard",{"$f":"IFERROR(VLOOKUP(A1049,Translation!$A:$C,3,FALSE),A1049)","v":28},{"$f":"IFERROR(VLOOKUP(B1049,Translation!$A:$C,3,FALSE),B1049)","v":"Q3 2016"},{"$f":"IFERROR(VLOOKUP(C1049,Translation!$A:$C,3,FALSE),C1049)","v":"IMMEUBLES COLLECTIFS RÉSIDENTIELS"},{"$f":"IFERROR(VLOOKUP(D1049,Translation!$A:$C,3,FALSE),D1049)","v":"Île-du-Prince-Édouard"},{"$f":"IFERROR(VLOOKUP(E1049,Translation!$A:$C,3,FALSE),E1049)","v":25},{"$f":"IFERROR(VLOOKUP(F1049,Translation!$A:$C,3,FALSE),F1049)","v":"Période d’amortissement moyenne selon la province"},{"$f":"IFERROR(VLOOKUP(G1049,Translation!$A:$C,3,FALSE),G1049)","v":"25.0"},{"$f":"IFERROR(VLOOKUP(H1049,Translation!$A:$C,3,FALSE),H1049)","v":"Île-du-Prince-Édouard"}]
[28,"Q3 2016","IMMEUBLES COLLECTIFS RÉSIDENTIELS","Nouvelle-Écosse",30.672512835039207,"Période d’amortissement moyenne selon la province","30.7","Nouvelle-Écosse",{"$f":"IFERROR(VLOOKUP(A1050,Translation!$A:$C,3,FALSE),A1050)","v":28},{"$f":"IFERROR(VLOOKUP(B1050,Translation!$A:$C,3,FALSE),B1050)","v":"Q3 2016"},{"$f":"IFERROR(VLOOKUP(C1050,Translation!$A:$C,3,FALSE),C1050)","v":"IMMEUBLES COLLECTIFS RÉSIDENTIELS"},{"$f":"IFERROR(VLOOKUP(D1050,Translation!$A:$C,3,FALSE),D1050)","v":"Nouvelle-Écosse"},{"$f":"IFERROR(VLOOKUP(E1050,Translation!$A:$C,3,FALSE),E1050)","v":30.672512835039207},{"$f":"IFERROR(VLOOKUP(F1050,Translation!$A:$C,3,FALSE),F1050)","v":"Période d’amortissement moyenne selon la province"},{"$f":"IFERROR(VLOOKUP(G1050,Translation!$A:$C,3,FALSE),G1050)","v":"30.7"},{"$f":"IFERROR(VLOOKUP(H1050,Translation!$A:$C,3,FALSE),H1050)","v":"Nouvelle-Écosse"}]
[28,"Q3 2016","IMMEUBLES COLLECTIFS RÉSIDENTIELS","Nouveau-Brunswick",26.029067461067186,"Période d’amortissement moyenne selon la province","26.0","Nouveau-Brunswick",{"$f":"IFERROR(VLOOKUP(A1051,Translation!$A:$C,3,FALSE),A1051)","v":28},{"$f":"IFERROR(VLOOKUP(B1051,Translation!$A:$C,3,FALSE),B1051)","v":"Q3 2016"},{"$f":"IFERROR(VLOOKUP(C1051,Translation!$A:$C,3,FALSE),C1051)","v":"IMMEUBLES COLLECTIFS RÉSIDENTIELS"},{"$f":"IFERROR(VLOOKUP(D1051,Translation!$A:$C,3,FALSE),D1051)","v":"Nouveau-Brunswick"},{"$f":"IFERROR(VLOOKUP(E1051,Translation!$A:$C,3,FALSE),E1051)","v":26.029067461067186},{"$f":"IFERROR(VLOOKUP(F1051,Translation!$A:$C,3,FALSE),F1051)","v":"Période d’amortissement moyenne selon la province"},{"$f":"IFERROR(VLOOKUP(G1051,Translation!$A:$C,3,FALSE),G1051)","v":"26.0"},{"$f":"IFERROR(VLOOKUP(H1051,Translation!$A:$C,3,FALSE),H1051)","v":"Nouveau-Brunswick"}]
[28,"Q3 2016","IMMEUBLES COLLECTIFS RÉSIDENTIELS","Québec",30.704109902689609,"Période d’amortissement moyenne selon la province","30.7","Québec",{"$f":"IFERROR(VLOOKUP(A1052,Translation!$A:$C,3,FALSE),A1052)","v":28},{"$f":"IFERROR(VLOOKUP(B1052,Translation!$A:$C,3,FALSE),B1052)","v":"Q3 2016"},{"$f":"IFERROR(VLOOKUP(C1052,Translation!$A:$C,3,FALSE),C1052)","v":"IMMEUBLES COLLECTIFS RÉSIDENTIELS"},{"$f":"IFERROR(VLOOKUP(D1052,Translation!$A:$C,3,FALSE),D1052)","v":"Québec"},{"$f":"IFERROR(VLOOKUP(E1052,Translation!$A:$C,3,FALSE),E1052)","v":30.704109902689609},{"$f":"IFERROR(VLOOKUP(F1052,Translation!$A:$C,3,FALSE),F1052)","v":"Période d’amortissement moyenne selon la province"},{"$f":"IFERROR(VLOOKUP(G1052,Translation!$A:$C,3,FALSE),G1052)","v":"30.7"},{"$f":"IFERROR(VLOOKUP(H1052,Translation!$A:$C,3,FALSE),H1052)","v":"Québec"}]
[28,"Q3 2016","IMMEUBLES COLLECTIFS RÉSIDENTIELS","Ontario",27.928266778091313,"Période d’amortissement moyenne selon la province","27.9","Ontario",{"$f":"IFERROR(VLOOKUP(A1053,Translation!$A:$C,3,FALSE),A1053)","v":28},{"$f":"IFERROR(VLOOKUP(B1053,Translation!$A:$C,3,FALSE),B1053)","v":"Q3 2016"},{"$f":"IFERROR(VLOOKUP(C1053,Translation!$A:$C,3,FALSE),C1053)","v":"IMMEUBLES COLLECTIFS RÉSIDENTIELS"},{"$f":"IFERROR(VLOOKUP(D1053,Translation!$A:$C,3,FALSE),D1053)","v":"Ontario"},{"$f":"IFERROR(VLOOKUP(E1053,Translation!$A:$C,3,FALSE),E1053)","v":27.928266778091313},{"$f":"IFERROR(VLOOKUP(F1053,Translation!$A:$C,3,FALSE),F1053)","v":"Période d’amortissement moyenne selon la province"},{"$f":"IFERROR(VLOOKUP(G1053,Translation!$A:$C,3,FALSE),G1053)","v":"27.9"},{"$f":"IFERROR(VLOOKUP(H1053,Translation!$A:$C,3,FALSE),H1053)","v":"Ontario"}]
[28,"Q3 2016","IMMEUBLES COLLECTIFS RÉSIDENTIELS","Manitoba",25.549362820449247,"Période d’amortissement moyenne selon la province","25.5","Manitoba",{"$f":"IFERROR(VLOOKUP(A1054,Translation!$A:$C,3,FALSE),A1054)","v":28},{"$f":"IFERROR(VLOOKUP(B1054,Translation!$A:$C,3,FALSE),B1054)","v":"Q3 2016"},{"$f":"IFERROR(VLOOKUP(C1054,Translation!$A:$C,3,FALSE),C1054)","v":"IMMEUBLES COLLECTIFS RÉSIDENTIELS"},{"$f":"IFERROR(VLOOKUP(D1054,Translation!$A:$C,3,FALSE),D1054)","v":"Manitoba"},{"$f":"IFERROR(VLOOKUP(E1054,Translation!$A:$C,3,FALSE),E1054)","v":25.549362820449247},{"$f":"IFERROR(VLOOKUP(F1054,Translation!$A:$C,3,FALSE),F1054)","v":"Période d’amortissement moyenne selon la province"},{"$f":"IFERROR(VLOOKUP(G1054,Translation!$A:$C,3,FALSE),G1054)","v":"25.5"},{"$f":"IFERROR(VLOOKUP(H1054,Translation!$A:$C,3,FALSE),H1054)","v":"Manitoba"}]
[28,"Q3 2016","IMMEUBLES COLLECTIFS RÉSIDENTIELS","Saskatchewan",32.730523276848039,"Période d’amortissement moyenne selon la province","32.7","Saskatchewan",{"$f":"IFERROR(VLOOKUP(A1055,Translation!$A:$C,3,FALSE),A1055)","v":28},{"$f":"IFERROR(VLOOKUP(B1055,Translation!$A:$C,3,FALSE),B1055)","v":"Q3 2016"},{"$f":"IFERROR(VLOOKUP(C1055,Translation!$A:$C,3,FALSE),C1055)","v":"IMMEUBLES COLLECTIFS RÉSIDENTIELS"},{"$f":"IFERROR(VLOOKUP(D1055,Translation!$A:$C,3,FALSE),D1055)","v":"Saskatchewan"},{"$f":"IFERROR(VLOOKUP(E1055,Translation!$A:$C,3,FALSE),E1055)","v":32.730523276848039},{"$f":"IFERROR(VLOOKUP(F1055,Translation!$A:$C,3,FALSE),F1055)","v":"Période d’amortissement moyenne selon la province"},{"$f":"IFERROR(VLOOKUP(G1055,Translation!$A:$C,3,FALSE),G1055)","v":"32.7"},{"$f":"IFERROR(VLOOKUP(H1055,Translation!$A:$C,3,FALSE),H1055)","v":"Saskatchewan"}]
[28,"Q3 2016","IMMEUBLES COLLECTIFS RÉSIDENTIELS","Alberta",33.173206995342198,"Période d’amortissement moyenne selon la province","33.2","Alberta",{"$f":"IFERROR(VLOOKUP(A1056,Translation!$A:$C,3,FALSE),A1056)","v":28},{"$f":"IFERROR(VLOOKUP(B1056,Translation!$A:$C,3,FALSE),B1056)","v":"Q3 2016"},{"$f":"IFERROR(VLOOKUP(C1056,Translation!$A:$C,3,FALSE),C1056)","v":"IMMEUBLES COLLECTIFS RÉSIDENTIELS"},{"$f":"IFERROR(VLOOKUP(D1056,Translation!$A:$C,3,FALSE),D1056)","v":"Alberta"},{"$f":"IFERROR(VLOOKUP(E1056,Translation!$A:$C,3,FALSE),E1056)","v":33.173206995342198},{"$f":"IFERROR(VLOOKUP(F1056,Translation!$A:$C,3,FALSE),F1056)","v":"Période d’amortissement moyenne selon la province"},{"$f":"IFERROR(VLOOKUP(G1056,Translation!$A:$C,3,FALSE),G1056)","v":"33.2"},{"$f":"IFERROR(VLOOKUP(H1056,Translation!$A:$C,3,FALSE),H1056)","v":"Alberta"}]
[28,"Q3 2016","IMMEUBLES COLLECTIFS RÉSIDENTIELS","Colombie-Britannique",27.559701726494477,"Période d’amortissement moyenne selon la province","27.6","Colombie-Britannique",{"$f":"IFERROR(VLOOKUP(A1057,Translation!$A:$C,3,FALSE),A1057)","v":28},{"$f":"IFERROR(VLOOKUP(B1057,Translation!$A:$C,3,FALSE),B1057)","v":"Q3 2016"},{"$f":"IFERROR(VLOOKUP(C1057,Translation!$A:$C,3,FALSE),C1057)","v":"IMMEUBLES COLLECTIFS RÉSIDENTIELS"},{"$f":"IFERROR(VLOOKUP(D1057,Translation!$A:$C,3,FALSE),D1057)","v":"Colombie-Britannique"},{"$f":"IFERROR(VLOOKUP(E1057,Translation!$A:$C,3,FALSE),E1057)","v":27.559701726494477},{"$f":"IFERROR(VLOOKUP(F1057,Translation!$A:$C,3,FALSE),F1057)","v":"Période d’amortissement moyenne selon la province"},{"$f":"IFERROR(VLOOKUP(G1057,Translation!$A:$C,3,FALSE),G1057)","v":"27.6"},{"$f":"IFERROR(VLOOKUP(H1057,Translation!$A:$C,3,FALSE),H1057)","v":"Colombie-Britannique"}]
[28,"Q3 2016","IMMEUBLES COLLECTIFS RÉSIDENTIELS","Territoires",40,"Période d’amortissement moyenne selon la province","40.0","Territoires",{"$f":"IFERROR(VLOOKUP(A1058,Translation!$A:$C,3,FALSE),A1058)","v":28},{"$f":"IFERROR(VLOOKUP(B1058,Translation!$A:$C,3,FALSE),B1058)","v":"Q3 2016"},{"$f":"IFERROR(VLOOKUP(C1058,Translation!$A:$C,3,FALSE),C1058)","v":"IMMEUBLES COLLECTIFS RÉSIDENTIELS"},{"$f":"IFERROR(VLOOKUP(D1058,Translation!$A:$C,3,FALSE),D1058)","v":"Territoires"},{"$f":"IFERROR(VLOOKUP(E1058,Translation!$A:$C,3,FALSE),E1058)","v":40},{"$f":"IFERROR(VLOOKUP(F1058,Translation!$A:$C,3,FALSE),F1058)","v":"Période d’amortissement moyenne selon la province"},{"$f":"IFERROR(VLOOKUP(G1058,Translation!$A:$C,3,FALSE),G1058)","v":"40.0"},{"$f":"IFERROR(VLOOKUP(H1058,Translation!$A:$C,3,FALSE),H1058)","v":"Territoires"}]
[28,"T3 2017","IMMEUBLES COLLECTIFS RÉSIDENTIELS","Terre-Neuve-et-Labrador",25,"Période d’amortissement moyenne selon la province","25.0","Terre-Neuve-et-Labrador",{"$f":"IFERROR(VLOOKUP(A1059,Translation!$A:$C,3,FALSE),A1059)","v":28},{"$f":"IFERROR(VLOOKUP(B1059,Translation!$A:$C,3,FALSE),B1059)","v":"T3 2017"},{"$f":"IFERROR(VLOOKUP(C1059,Translation!$A:$C,3,FALSE),C1059)","v":"IMMEUBLES COLLECTIFS RÉSIDENTIELS"},{"$f":"IFERROR(VLOOKUP(D1059,Translation!$A:$C,3,FALSE),D1059)","v":"Terre-Neuve-et-Labrador"},{"$f":"IFERROR(VLOOKUP(E1059,Translation!$A:$C,3,FALSE),E1059)","v":25},{"$f":"IFERROR(VLOOKUP(F1059,Translation!$A:$C,3,FALSE),F1059)","v":"Période d’amortissement moyenne selon la province"},{"$f":"IFERROR(VLOOKUP(G1059,Translation!$A:$C,3,FALSE),G1059)","v":"25.0"},{"$f":"IFERROR(VLOOKUP(H1059,Translation!$A:$C,3,FALSE),H1059)","v":"Terre-Neuve-et-Labrador"}]
[28,"T3 2017","IMMEUBLES COLLECTIFS RÉSIDENTIELS","Île-du-Prince-Édouard",25,"Période d’amortissement moyenne selon la province","25.0","Île-du-Prince-Édouard",{"$f":"IFERROR(VLOOKUP(A1060,Translation!$A:$C,3,FALSE),A1060)","v":28},{"$f":"IFERROR(VLOOKUP(B1060,Translation!$A:$C,3,FALSE),B1060)","v":"T3 2017"},{"$f":"IFERROR(VLOOKUP(C1060,Translation!$A:$C,3,FALSE),C1060)","v":"IMMEUBLES COLLECTIFS RÉSIDENTIELS"},{"$f":"IFERROR(VLOOKUP(D1060,Translation!$A:$C,3,FALSE),D1060)","v":"Île-du-Prince-Édouard"},{"$f":"IFERROR(VLOOKUP(E1060,Translation!$A:$C,3,FALSE),E1060)","v":25},{"$f":"IFERROR(VLOOKUP(F1060,Translation!$A:$C,3,FALSE),F1060)","v":"Période d’amortissement moyenne selon la province"},{"$f":"IFERROR(VLOOKUP(G1060,Translation!$A:$C,3,FALSE),G1060)","v":"25.0"},{"$f":"IFERROR(VLOOKUP(H1060,Translation!$A:$C,3,FALSE),H1060)","v":"Île-du-Prince-Édouard"}]
[28,"T3 2017","IMMEUBLES COLLECTIFS RÉSIDENTIELS","Nouvelle-Écosse",26.848568418979998,"Période d’amortissement moyenne selon la province","26.8","Nouvelle-Écosse",{"$f":"IFERROR(VLOOKUP(A1061,Translation!$A:$C,3,FALSE),A1061)","v":28},{"$f":"IFERROR(VLOOKUP(B1061,Translation!$A:$C,3,FALSE),B1061)","v":"T3 2017"},{"$f":"IFERROR(VLOOKUP(C1061,Translation!$A:$C,3,FALSE),C1061)","v":"IMMEUBLES COLLECTIFS RÉSIDENTIELS"},{"$f":"IFERROR(VLOOKUP(D1061,Translation!$A:$C,3,FALSE),D1061)","v":"Nouvelle-Écosse"},{"$f":"IFERROR(VLOOKUP(E1061,Translation!$A:$C,3,FALSE),E1061)","v":26.848568418979998},{"$f":"IFERROR(VLOOKUP(F1061,Translation!$A:$C,3,FALSE),F1061)","v":"Période d’amortissement moyenne selon la province"},{"$f":"IFERROR(VLOOKUP(G1061,Translation!$A:$C,3,FALSE),G1061)","v":"26.8"},{"$f":"IFERROR(VLOOKUP(H1061,Translation!$A:$C,3,FALSE),H1061)","v":"Nouvelle-Écosse"}]
[28,"T3 2017","IMMEUBLES COLLECTIFS RÉSIDENTIELS","Nouveau-Brunswick",25,"Période d’amortissement moyenne selon la province","25.0","Nouveau-Brunswick",{"$f":"IFERROR(VLOOKUP(A1062,Translation!$A:$C,3,FALSE),A1062)","v":28},{"$f":"IFERROR(VLOOKUP(B1062,Translation!$A:$C,3,FALSE),B1062)","v":"T3 2017"},{"$f":"IFERROR(VLOOKUP(C1062,Translation!$A:$C,3,FALSE),C1062)","v":"IMMEUBLES COLLECTIFS RÉSIDENTIELS"},{"$f":"IFERROR(VLOOKUP(D1062,Translation!$A:$C,3,FALSE),D1062)","v":"Nouveau-Brunswick"},{"$f":"IFERROR(VLOOKUP(E1062,Translation!$A:$C,3,FALSE),E1062)","v":25},{"$f":"IFERROR(VLOOKUP(F1062,Translation!$A:$C,3,FALSE),F1062)","v":"Période d’amortissement moyenne selon la province"},{"$f":"IFERROR(VLOOKUP(G1062,Translation!$A:$C,3,FALSE),G1062)","v":"25.0"},{"$f":"IFERROR(VLOOKUP(H1062,Translation!$A:$C,3,FALSE),H1062)","v":"Nouveau-Brunswick"}]
[28,"T3 2017","IMMEUBLES COLLECTIFS RÉSIDENTIELS","Québec",31.418757051937192,"Période d’amortissement moyenne selon la province","31.4","Québec",{"$f":"IFERROR(VLOOKUP(A1063,Translation!$A:$C,3,FALSE),A1063)","v":28},{"$f":"IFERROR(VLOOKUP(B1063,Translation!$A:$C,3,FALSE),B1063)","v":"T3 2017"},{"$f":"IFERROR(VLOOKUP(C1063,Translation!$A:$C,3,FALSE),C1063)","v":"IMMEUBLES COLLECTIFS RÉSIDENTIELS"},{"$f":"IFERROR(VLOOKUP(D1063,Translation!$A:$C,3,FALSE),D1063)","v":"Québec"},{"$f":"IFERROR(VLOOKUP(E1063,Translation!$A:$C,3,FALSE),E1063)","v":31.418757051937192},{"$f":"IFERROR(VLOOKUP(F1063,Translation!$A:$C,3,FALSE),F1063)","v":"Période d’amortissement moyenne selon la province"},{"$f":"IFERROR(VLOOKUP(G1063,Translation!$A:$C,3,FALSE),G1063)","v":"31.4"},{"$f":"IFERROR(VLOOKUP(H1063,Translation!$A:$C,3,FALSE),H1063)","v":"Québec"}]
[28,"T3 2017","IMMEUBLES COLLECTIFS RÉSIDENTIELS","Ontario",30.705127723304553,"Période d’amortissement moyenne selon la province","30.7","Ontario",{"$f":"IFERROR(VLOOKUP(A1064,Translation!$A:$C,3,FALSE),A1064)","v":28},{"$f":"IFERROR(VLOOKUP(B1064,Translation!$A:$C,3,FALSE),B1064)","v":"T3 2017"},{"$f":"IFERROR(VLOOKUP(C1064,Translation!$A:$C,3,FALSE),C1064)","v":"IMMEUBLES COLLECTIFS RÉSIDENTIELS"},{"$f":"IFERROR(VLOOKUP(D1064,Translation!$A:$C,3,FALSE),D1064)","v":"Ontario"},{"$f":"IFERROR(VLOOKUP(E1064,Translation!$A:$C,3,FALSE),E1064)","v":30.705127723304553},{"$f":"IFERROR(VLOOKUP(F1064,Translation!$A:$C,3,FALSE),F1064)","v":"Période d’amortissement moyenne selon la province"},{"$f":"IFERROR(VLOOKUP(G1064,Translation!$A:$C,3,FALSE),G1064)","v":"30.7"},{"$f":"IFERROR(VLOOKUP(H1064,Translation!$A:$C,3,FALSE),H1064)","v":"Ontario"}]
[28,"T3 2017","IMMEUBLES COLLECTIFS RÉSIDENTIELS","Manitoba",32.343445974138803,"Période d’amortissement moyenne selon la province","32.3","Manitoba",{"$f":"IFERROR(VLOOKUP(A1065,Translation!$A:$C,3,FALSE),A1065)","v":28},{"$f":"IFERROR(VLOOKUP(B1065,Translation!$A:$C,3,FALSE),B1065)","v":"T3 2017"},{"$f":"IFERROR(VLOOKUP(C1065,Translation!$A:$C,3,FALSE),C1065)","v":"IMMEUBLES COLLECTIFS RÉSIDENTIELS"},{"$f":"IFERROR(VLOOKUP(D1065,Translation!$A:$C,3,FALSE),D1065)","v":"Manitoba"},{"$f":"IFERROR(VLOOKUP(E1065,Translation!$A:$C,3,FALSE),E1065)","v":32.343445974138803},{"$f":"IFERROR(VLOOKUP(F1065,Translation!$A:$C,3,FALSE),F1065)","v":"Période d’amortissement moyenne selon la province"},{"$f":"IFERROR(VLOOKUP(G1065,Translation!$A:$C,3,FALSE),G1065)","v":"32.3"},{"$f":"IFERROR(VLOOKUP(H1065,Translation!$A:$C,3,FALSE),H1065)","v":"Manitoba"}]
[28,"T3 2017","IMMEUBLES COLLECTIFS RÉSIDENTIELS","Saskatchewan",29.505861741311723,"Période d’amortissement moyenne selon la province","29.5","Saskatchewan",{"$f":"IFERROR(VLOOKUP(A1066,Translation!$A:$C,3,FALSE),A1066)","v":28},{"$f":"IFERROR(VLOOKUP(B1066,Translation!$A:$C,3,FALSE),B1066)","v":"T3 2017"},{"$f":"IFERROR(VLOOKUP(C1066,Translation!$A:$C,3,FALSE),C1066)","v":"IMMEUBLES COLLECTIFS RÉSIDENTIELS"},{"$f":"IFERROR(VLOOKUP(D1066,Translation!$A:$C,3,FALSE),D1066)","v":"Saskatchewan"},{"$f":"IFERROR(VLOOKUP(E1066,Translation!$A:$C,3,FALSE),E1066)","v":29.505861741311723},{"$f":"IFERROR(VLOOKUP(F1066,Translation!$A:$C,3,FALSE),F1066)","v":"Période d’amortissement moyenne selon la province"},{"$f":"IFERROR(VLOOKUP(G1066,Translation!$A:$C,3,FALSE),G1066)","v":"29.5"},{"$f":"IFERROR(VLOOKUP(H1066,Translation!$A:$C,3,FALSE),H1066)","v":"Saskatchewan"}]
[28,"T3 2017","IMMEUBLES COLLECTIFS RÉSIDENTIELS","Alberta",29.032081492941657,"Période d’amortissement moyenne selon la province","29.0","Alberta",{"$f":"IFERROR(VLOOKUP(A1067,Translation!$A:$C,3,FALSE),A1067)","v":28},{"$f":"IFERROR(VLOOKUP(B1067,Translation!$A:$C,3,FALSE),B1067)","v":"T3 2017"},{"$f":"IFERROR(VLOOKUP(C1067,Translation!$A:$C,3,FALSE),C1067)","v":"IMMEUBLES COLLECTIFS RÉSIDENTIELS"},{"$f":"IFERROR(VLOOKUP(D1067,Translation!$A:$C,3,FALSE),D1067)","v":"Alberta"},{"$f":"IFERROR(VLOOKUP(E1067,Translation!$A:$C,3,FALSE),E1067)","v":29.032081492941657},{"$f":"IFERROR(VLOOKUP(F1067,Translation!$A:$C,3,FALSE),F1067)","v":"Période d’amortissement moyenne selon la province"},{"$f":"IFERROR(VLOOKUP(G1067,Translation!$A:$C,3,FALSE),G1067)","v":"29.0"},{"$f":"IFERROR(VLOOKUP(H1067,Translation!$A:$C,3,FALSE),H1067)","v":"Alberta"}]
[28,"T3 2017","IMMEUBLES COLLECTIFS RÉSIDENTIELS","Colombie-Britannique",29.417637585872843,"Période d’amortissement moyenne selon la province","29.4","Colombie-Britannique",{"$f":"IFERROR(VLOOKUP(A1068,Translation!$A:$C,3,FALSE),A1068)","v":28},{"$f":"IFERROR(VLOOKUP(B1068,Translation!$A:$C,3,FALSE),B1068)","v":"T3 2017"},{"$f":"IFERROR(VLOOKUP(C1068,Translation!$A:$C,3,FALSE),C1068)","v":"IMMEUBLES COLLECTIFS RÉSIDENTIELS"},{"$f":"IFERROR(VLOOKUP(D1068,Translation!$A:$C,3,FALSE),D1068)","v":"Colombie-Britannique"},{"$f":"IFERROR(VLOOKUP(E1068,Translation!$A:$C,3,FALSE),E1068)","v":29.417637585872843},{"$f":"IFERROR(VLOOKUP(F1068,Translation!$A:$C,3,FALSE),F1068)","v":"Période d’amortissement moyenne selon la province"},{"$f":"IFERROR(VLOOKUP(G1068,Translation!$A:$C,3,FALSE),G1068)","v":"29.4"},{"$f":"IFERROR(VLOOKUP(H1068,Translation!$A:$C,3,FALSE),H1068)","v":"Colombie-Britannique"}]
[28,"T3 2017","IMMEUBLES COLLECTIFS RÉSIDENTIELS","Territoires",28.508501662203219,"Période d’amortissement moyenne selon la province","28.5","Territoires",{"$f":"IFERROR(VLOOKUP(A1069,Translation!$A:$C,3,FALSE),A1069)","v":28},{"$f":"IFERROR(VLOOKUP(B1069,Translation!$A:$C,3,FALSE),B1069)","v":"T3 2017"},{"$f":"IFERROR(VLOOKUP(C1069,Translation!$A:$C,3,FALSE),C1069)","v":"IMMEUBLES COLLECTIFS RÉSIDENTIELS"},{"$f":"IFERROR(VLOOKUP(D1069,Translation!$A:$C,3,FALSE),D1069)","v":"Territoires"},{"$f":"IFERROR(VLOOKUP(E1069,Translation!$A:$C,3,FALSE),E1069)","v":28.508501662203219},{"$f":"IFERROR(VLOOKUP(F1069,Translation!$A:$C,3,FALSE),F1069)","v":"Période d’amortissement moyenne selon la province"},{"$f":"IFERROR(VLOOKUP(G1069,Translation!$A:$C,3,FALSE),G1069)","v":"28.5"},{"$f":"IFERROR(VLOOKUP(H1069,Translation!$A:$C,3,FALSE),H1069)","v":"Territoires"}]
[28,"Q4 2016","IMMEUBLES COLLECTIFS RÉSIDENTIELS","Terre-Neuve-et-Labrador",24.999999999999996,"Période d’amortissement moyenne selon la province","25.0","Terre-Neuve-et-Labrador",{"$f":"IFERROR(VLOOKUP(A1070,Translation!$A:$C,3,FALSE),A1070)","v":28},{"$f":"IFERROR(VLOOKUP(B1070,Translation!$A:$C,3,FALSE),B1070)","v":"Q4 2016"},{"$f":"IFERROR(VLOOKUP(C1070,Translation!$A:$C,3,FALSE),C1070)","v":"IMMEUBLES COLLECTIFS RÉSIDENTIELS"},{"$f":"IFERROR(VLOOKUP(D1070,Translation!$A:$C,3,FALSE),D1070)","v":"Terre-Neuve-et-Labrador"},{"$f":"IFERROR(VLOOKUP(E1070,Translation!$A:$C,3,FALSE),E1070)","v":24.999999999999996},{"$f":"IFERROR(VLOOKUP(F1070,Translation!$A:$C,3,FALSE),F1070)","v":"Période d’amortissement moyenne selon la province"},{"$f":"IFERROR(VLOOKUP(G1070,Translation!$A:$C,3,FALSE),G1070)","v":"25.0"},{"$f":"IFERROR(VLOOKUP(H1070,Translation!$A:$C,3,FALSE),H1070)","v":"Terre-Neuve-et-Labrador"}]
[28,"Q4 2016","IMMEUBLES COLLECTIFS RÉSIDENTIELS","Île-du-Prince-Édouard",25,"Période d’amortissement moyenne selon la province","25.0","Île-du-Prince-Édouard",{"$f":"IFERROR(VLOOKUP(A1071,Translation!$A:$C,3,FALSE),A1071)","v":28},{"$f":"IFERROR(VLOOKUP(B1071,Translation!$A:$C,3,FALSE),B1071)","v":"Q4 2016"},{"$f":"IFERROR(VLOOKUP(C1071,Translation!$A:$C,3,FALSE),C1071)","v":"IMMEUBLES COLLECTIFS RÉSIDENTIELS"},{"$f":"IFERROR(VLOOKUP(D1071,Translation!$A:$C,3,FALSE),D1071)","v":"Île-du-Prince-Édouard"},{"$f":"IFERROR(VLOOKUP(E1071,Translation!$A:$C,3,FALSE),E1071)","v":25},{"$f":"IFERROR(VLOOKUP(F1071,Translation!$A:$C,3,FALSE),F1071)","v":"Période d’amortissement moyenne selon la province"},{"$f":"IFERROR(VLOOKUP(G1071,Translation!$A:$C,3,FALSE),G1071)","v":"25.0"},{"$f":"IFERROR(VLOOKUP(H1071,Translation!$A:$C,3,FALSE),H1071)","v":"Île-du-Prince-Édouard"}]
[28,"Q4 2016","IMMEUBLES COLLECTIFS RÉSIDENTIELS","Nouvelle-Écosse",25.302396088966702,"Période d’amortissement moyenne selon la province","25.3","Nouvelle-Écosse",{"$f":"IFERROR(VLOOKUP(A1072,Translation!$A:$C,3,FALSE),A1072)","v":28},{"$f":"IFERROR(VLOOKUP(B1072,Translation!$A:$C,3,FALSE),B1072)","v":"Q4 2016"},{"$f":"IFERROR(VLOOKUP(C1072,Translation!$A:$C,3,FALSE),C1072)","v":"IMMEUBLES COLLECTIFS RÉSIDENTIELS"},{"$f":"IFERROR(VLOOKUP(D1072,Translation!$A:$C,3,FALSE),D1072)","v":"Nouvelle-Écosse"},{"$f":"IFERROR(VLOOKUP(E1072,Translation!$A:$C,3,FALSE),E1072)","v":25.302396088966702},{"$f":"IFERROR(VLOOKUP(F1072,Translation!$A:$C,3,FALSE),F1072)","v":"Période d’amortissement moyenne selon la province"},{"$f":"IFERROR(VLOOKUP(G1072,Translation!$A:$C,3,FALSE),G1072)","v":"25.3"},{"$f":"IFERROR(VLOOKUP(H1072,Translation!$A:$C,3,FALSE),H1072)","v":"Nouvelle-Écosse"}]
[28,"Q4 2016","IMMEUBLES COLLECTIFS RÉSIDENTIELS","Nouveau-Brunswick",26.644125981530689,"Période d’amortissement moyenne selon la province","26.6","Nouveau-Brunswick",{"$f":"IFERROR(VLOOKUP(A1073,Translation!$A:$C,3,FALSE),A1073)","v":28},{"$f":"IFERROR(VLOOKUP(B1073,Translation!$A:$C,3,FALSE),B1073)","v":"Q4 2016"},{"$f":"IFERROR(VLOOKUP(C1073,Translation!$A:$C,3,FALSE),C1073)","v":"IMMEUBLES COLLECTIFS RÉSIDENTIELS"},{"$f":"IFERROR(VLOOKUP(D1073,Translation!$A:$C,3,FALSE),D1073)","v":"Nouveau-Brunswick"},{"$f":"IFERROR(VLOOKUP(E1073,Translation!$A:$C,3,FALSE),E1073)","v":26.644125981530689},{"$f":"IFERROR(VLOOKUP(F1073,Translation!$A:$C,3,FALSE),F1073)","v":"Période d’amortissement moyenne selon la province"},{"$f":"IFERROR(VLOOKUP(G1073,Translation!$A:$C,3,FALSE),G1073)","v":"26.6"},{"$f":"IFERROR(VLOOKUP(H1073,Translation!$A:$C,3,FALSE),H1073)","v":"Nouveau-Brunswick"}]
[28,"Q4 2016","IMMEUBLES COLLECTIFS RÉSIDENTIELS","Québec",28.307474205330443,"Période d’amortissement moyenne selon la province","28.3","Québec",{"$f":"IFERROR(VLOOKUP(A1074,Translation!$A:$C,3,FALSE),A1074)","v":28},{"$f":"IFERROR(VLOOKUP(B1074,Translation!$A:$C,3,FALSE),B1074)","v":"Q4 2016"},{"$f":"IFERROR(VLOOKUP(C1074,Translation!$A:$C,3,FALSE),C1074)","v":"IMMEUBLES COLLECTIFS RÉSIDENTIELS"},{"$f":"IFERROR(VLOOKUP(D1074,Translation!$A:$C,3,FALSE),D1074)","v":"Québec"},{"$f":"IFERROR(VLOOKUP(E1074,Translation!$A:$C,3,FALSE),E1074)","v":28.307474205330443},{"$f":"IFERROR(VLOOKUP(F1074,Translation!$A:$C,3,FALSE),F1074)","v":"Période d’amortissement moyenne selon la province"},{"$f":"IFERROR(VLOOKUP(G1074,Translation!$A:$C,3,FALSE),G1074)","v":"28.3"},{"$f":"IFERROR(VLOOKUP(H1074,Translation!$A:$C,3,FALSE),H1074)","v":"Québec"}]
[28,"Q4 2016","IMMEUBLES COLLECTIFS RÉSIDENTIELS","Ontario",27.384161423397632,"Période d’amortissement moyenne selon la province","27.4","Ontario",{"$f":"IFERROR(VLOOKUP(A1075,Translation!$A:$C,3,FALSE),A1075)","v":28},{"$f":"IFERROR(VLOOKUP(B1075,Translation!$A:$C,3,FALSE),B1075)","v":"Q4 2016"},{"$f":"IFERROR(VLOOKUP(C1075,Translation!$A:$C,3,FALSE),C1075)","v":"IMMEUBLES COLLECTIFS RÉSIDENTIELS"},{"$f":"IFERROR(VLOOKUP(D1075,Translation!$A:$C,3,FALSE),D1075)","v":"Ontario"},{"$f":"IFERROR(VLOOKUP(E1075,Translation!$A:$C,3,FALSE),E1075)","v":27.384161423397632},{"$f":"IFERROR(VLOOKUP(F1075,Translation!$A:$C,3,FALSE),F1075)","v":"Période d’amortissement moyenne selon la province"},{"$f":"IFERROR(VLOOKUP(G1075,Translation!$A:$C,3,FALSE),G1075)","v":"27.4"},{"$f":"IFERROR(VLOOKUP(H1075,Translation!$A:$C,3,FALSE),H1075)","v":"Ontario"}]
[28,"Q4 2016","IMMEUBLES COLLECTIFS RÉSIDENTIELS","Manitoba",33.375685777594441,"Période d’amortissement moyenne selon la province","33.4","Manitoba",{"$f":"IFERROR(VLOOKUP(A1076,Translation!$A:$C,3,FALSE),A1076)","v":28},{"$f":"IFERROR(VLOOKUP(B1076,Translation!$A:$C,3,FALSE),B1076)","v":"Q4 2016"},{"$f":"IFERROR(VLOOKUP(C1076,Translation!$A:$C,3,FALSE),C1076)","v":"IMMEUBLES COLLECTIFS RÉSIDENTIELS"},{"$f":"IFERROR(VLOOKUP(D1076,Translation!$A:$C,3,FALSE),D1076)","v":"Manitoba"},{"$f":"IFERROR(VLOOKUP(E1076,Translation!$A:$C,3,FALSE),E1076)","v":33.375685777594441},{"$f":"IFERROR(VLOOKUP(F1076,Translation!$A:$C,3,FALSE),F1076)","v":"Période d’amortissement moyenne selon la province"},{"$f":"IFERROR(VLOOKUP(G1076,Translation!$A:$C,3,FALSE),G1076)","v":"33.4"},{"$f":"IFERROR(VLOOKUP(H1076,Translation!$A:$C,3,FALSE),H1076)","v":"Manitoba"}]
[28,"Q4 2016","IMMEUBLES COLLECTIFS RÉSIDENTIELS","Saskatchewan",25,"Période d’amortissement moyenne selon la province","25.0","Saskatchewan",{"$f":"IFERROR(VLOOKUP(A1077,Translation!$A:$C,3,FALSE),A1077)","v":28},{"$f":"IFERROR(VLOOKUP(B1077,Translation!$A:$C,3,FALSE),B1077)","v":"Q4 2016"},{"$f":"IFERROR(VLOOKUP(C1077,Translation!$A:$C,3,FALSE),C1077)","v":"IMMEUBLES COLLECTIFS RÉSIDENTIELS"},{"$f":"IFERROR(VLOOKUP(D1077,Translation!$A:$C,3,FALSE),D1077)","v":"Saskatchewan"},{"$f":"IFERROR(VLOOKUP(E1077,Translation!$A:$C,3,FALSE),E1077)","v":25},{"$f":"IFERROR(VLOOKUP(F1077,Translation!$A:$C,3,FALSE),F1077)","v":"Période d’amortissement moyenne selon la province"},{"$f":"IFERROR(VLOOKUP(G1077,Translation!$A:$C,3,FALSE),G1077)","v":"25.0"},{"$f":"IFERROR(VLOOKUP(H1077,Translation!$A:$C,3,FALSE),H1077)","v":"Saskatchewan"}]
[28,"Q4 2016","IMMEUBLES COLLECTIFS RÉSIDENTIELS","Alberta",29.665254465182841,"Période d’amortissement moyenne selon la province","29.7","Alberta",{"$f":"IFERROR(VLOOKUP(A1078,Translation!$A:$C,3,FALSE),A1078)","v":28},{"$f":"IFERROR(VLOOKUP(B1078,Translation!$A:$C,3,FALSE),B1078)","v":"Q4 2016"},{"$f":"IFERROR(VLOOKUP(C1078,Translation!$A:$C,3,FALSE),C1078)","v":"IMMEUBLES COLLECTIFS RÉSIDENTIELS"},{"$f":"IFERROR(VLOOKUP(D1078,Translation!$A:$C,3,FALSE),D1078)","v":"Alberta"},{"$f":"IFERROR(VLOOKUP(E1078,Translation!$A:$C,3,FALSE),E1078)","v":29.665254465182841},{"$f":"IFERROR(VLOOKUP(F1078,Translation!$A:$C,3,FALSE),F1078)","v":"Période d’amortissement moyenne selon la province"},{"$f":"IFERROR(VLOOKUP(G1078,Translation!$A:$C,3,FALSE),G1078)","v":"29.7"},{"$f":"IFERROR(VLOOKUP(H1078,Translation!$A:$C,3,FALSE),H1078)","v":"Alberta"}]
[28,"Q4 2016","IMMEUBLES COLLECTIFS RÉSIDENTIELS","Colombie-Britannique",32.415731099971779,"Période d’amortissement moyenne selon la province","32.4","Colombie-Britannique",{"$f":"IFERROR(VLOOKUP(A1079,Translation!$A:$C,3,FALSE),A1079)","v":28},{"$f":"IFERROR(VLOOKUP(B1079,Translation!$A:$C,3,FALSE),B1079)","v":"Q4 2016"},{"$f":"IFERROR(VLOOKUP(C1079,Translation!$A:$C,3,FALSE),C1079)","v":"IMMEUBLES COLLECTIFS RÉSIDENTIELS"},{"$f":"IFERROR(VLOOKUP(D1079,Translation!$A:$C,3,FALSE),D1079)","v":"Colombie-Britannique"},{"$f":"IFERROR(VLOOKUP(E1079,Translation!$A:$C,3,FALSE),E1079)","v":32.415731099971779},{"$f":"IFERROR(VLOOKUP(F1079,Translation!$A:$C,3,FALSE),F1079)","v":"Période d’amortissement moyenne selon la province"},{"$f":"IFERROR(VLOOKUP(G1079,Translation!$A:$C,3,FALSE),G1079)","v":"32.4"},{"$f":"IFERROR(VLOOKUP(H1079,Translation!$A:$C,3,FALSE),H1079)","v":"Colombie-Britannique"}]
[28,"Q4 2016","IMMEUBLES COLLECTIFS RÉSIDENTIELS","Territoires",25,"Période d’amortissement moyenne selon la province","25.0","Territoires",{"$f":"IFERROR(VLOOKUP(A1080,Translation!$A:$C,3,FALSE),A1080)","v":28},{"$f":"IFERROR(VLOOKUP(B1080,Translation!$A:$C,3,FALSE),B1080)","v":"Q4 2016"},{"$f":"IFERROR(VLOOKUP(C1080,Translation!$A:$C,3,FALSE),C1080)","v":"IMMEUBLES COLLECTIFS RÉSIDENTIELS"},{"$f":"IFERROR(VLOOKUP(D1080,Translation!$A:$C,3,FALSE),D1080)","v":"Territoires"},{"$f":"IFERROR(VLOOKUP(E1080,Translation!$A:$C,3,FALSE),E1080)","v":25},{"$f":"IFERROR(VLOOKUP(F1080,Translation!$A:$C,3,FALSE),F1080)","v":"Période d’amortissement moyenne selon la province"},{"$f":"IFERROR(VLOOKUP(G1080,Translation!$A:$C,3,FALSE),G1080)","v":"25.0"},{"$f":"IFERROR(VLOOKUP(H1080,Translation!$A:$C,3,FALSE),H1080)","v":"Territoires"}]
[28,"T4 2017","IMMEUBLES COLLECTIFS RÉSIDENTIELS","Terre-Neuve-et-Labrador",25,"Période d’amortissement moyenne selon la province","25.0","Terre-Neuve-et-Labrador",{"$f":"IFERROR(VLOOKUP(A1081,Translation!$A:$C,3,FALSE),A1081)","v":28},{"$f":"IFERROR(VLOOKUP(B1081,Translation!$A:$C,3,FALSE),B1081)","v":"T4 2017"},{"$f":"IFERROR(VLOOKUP(C1081,Translation!$A:$C,3,FALSE),C1081)","v":"IMMEUBLES COLLECTIFS RÉSIDENTIELS"},{"$f":"IFERROR(VLOOKUP(D1081,Translation!$A:$C,3,FALSE),D1081)","v":"Terre-Neuve-et-Labrador"},{"$f":"IFERROR(VLOOKUP(E1081,Translation!$A:$C,3,FALSE),E1081)","v":25},{"$f":"IFERROR(VLOOKUP(F1081,Translation!$A:$C,3,FALSE),F1081)","v":"Période d’amortissement moyenne selon la province"},{"$f":"IFERROR(VLOOKUP(G1081,Translation!$A:$C,3,FALSE),G1081)","v":"25.0"},{"$f":"IFERROR(VLOOKUP(H1081,Translation!$A:$C,3,FALSE),H1081)","v":"Terre-Neuve-et-Labrador"}]
[28,"T4 2017","IMMEUBLES COLLECTIFS RÉSIDENTIELS","Île-du-Prince-Édouard",25.000000000000004,"Période d’amortissement moyenne selon la province","25.0","Île-du-Prince-Édouard",{"$f":"IFERROR(VLOOKUP(A1082,Translation!$A:$C,3,FALSE),A1082)","v":28},{"$f":"IFERROR(VLOOKUP(B1082,Translation!$A:$C,3,FALSE),B1082)","v":"T4 2017"},{"$f":"IFERROR(VLOOKUP(C1082,Translation!$A:$C,3,FALSE),C1082)","v":"IMMEUBLES COLLECTIFS RÉSIDENTIELS"},{"$f":"IFERROR(VLOOKUP(D1082,Translation!$A:$C,3,FALSE),D1082)","v":"Île-du-Prince-Édouard"},{"$f":"IFERROR(VLOOKUP(E1082,Translation!$A:$C,3,FALSE),E1082)","v":25.000000000000004},{"$f":"IFERROR(VLOOKUP(F1082,Translation!$A:$C,3,FALSE),F1082)","v":"Période d’amortissement moyenne selon la province"},{"$f":"IFERROR(VLOOKUP(G1082,Translation!$A:$C,3,FALSE),G1082)","v":"25.0"},{"$f":"IFERROR(VLOOKUP(H1082,Translation!$A:$C,3,FALSE),H1082)","v":"Île-du-Prince-Édouard"}]
[28,"T4 2017","IMMEUBLES COLLECTIFS RÉSIDENTIELS","Nouvelle-Écosse",28.753888455628928,"Période d’amortissement moyenne selon la province","28.8","Nouvelle-Écosse",{"$f":"IFERROR(VLOOKUP(A1083,Translation!$A:$C,3,FALSE),A1083)","v":28},{"$f":"IFERROR(VLOOKUP(B1083,Translation!$A:$C,3,FALSE),B1083)","v":"T4 2017"},{"$f":"IFERROR(VLOOKUP(C1083,Translation!$A:$C,3,FALSE),C1083)","v":"IMMEUBLES COLLECTIFS RÉSIDENTIELS"},{"$f":"IFERROR(VLOOKUP(D1083,Translation!$A:$C,3,FALSE),D1083)","v":"Nouvelle-Écosse"},{"$f":"IFERROR(VLOOKUP(E1083,Translation!$A:$C,3,FALSE),E1083)","v":28.753888455628928},{"$f":"IFERROR(VLOOKUP(F1083,Translation!$A:$C,3,FALSE),F1083)","v":"Période d’amortissement moyenne selon la province"},{"$f":"IFERROR(VLOOKUP(G1083,Translation!$A:$C,3,FALSE),G1083)","v":"28.8"},{"$f":"IFERROR(VLOOKUP(H1083,Translation!$A:$C,3,FALSE),H1083)","v":"Nouvelle-Écosse"}]
[28,"T4 2017","IMMEUBLES COLLECTIFS RÉSIDENTIELS","Nouveau-Brunswick",25,"Période d’amortissement moyenne selon la province","25.0","Nouveau-Brunswick",{"$f":"IFERROR(VLOOKUP(A1084,Translation!$A:$C,3,FALSE),A1084)","v":28},{"$f":"IFERROR(VLOOKUP(B1084,Translation!$A:$C,3,FALSE),B1084)","v":"T4 2017"},{"$f":"IFERROR(VLOOKUP(C1084,Translation!$A:$C,3,FALSE),C1084)","v":"IMMEUBLES COLLECTIFS RÉSIDENTIELS"},{"$f":"IFERROR(VLOOKUP(D1084,Translation!$A:$C,3,FALSE),D1084)","v":"Nouveau-Brunswick"},{"$f":"IFERROR(VLOOKUP(E1084,Translation!$A:$C,3,FALSE),E1084)","v":25},{"$f":"IFERROR(VLOOKUP(F1084,Translation!$A:$C,3,FALSE),F1084)","v":"Période d’amortissement moyenne selon la province"},{"$f":"IFERROR(VLOOKUP(G1084,Translation!$A:$C,3,FALSE),G1084)","v":"25.0"},{"$f":"IFERROR(VLOOKUP(H1084,Translation!$A:$C,3,FALSE),H1084)","v":"Nouveau-Brunswick"}]
[28,"T4 2017","IMMEUBLES COLLECTIFS RÉSIDENTIELS","Québec",29.693763108437,"Période d’amortissement moyenne selon la province","29.7","Québec",{"$f":"IFERROR(VLOOKUP(A1085,Translation!$A:$C,3,FALSE),A1085)","v":28},{"$f":"IFERROR(VLOOKUP(B1085,Translation!$A:$C,3,FALSE),B1085)","v":"T4 2017"},{"$f":"IFERROR(VLOOKUP(C1085,Translation!$A:$C,3,FALSE),C1085)","v":"IMMEUBLES COLLECTIFS RÉSIDENTIELS"},{"$f":"IFERROR(VLOOKUP(D1085,Translation!$A:$C,3,FALSE),D1085)","v":"Québec"},{"$f":"IFERROR(VLOOKUP(E1085,Translation!$A:$C,3,FALSE),E1085)","v":29.693763108437},{"$f":"IFERROR(VLOOKUP(F1085,Translation!$A:$C,3,FALSE),F1085)","v":"Période d’amortissement moyenne selon la province"},{"$f":"IFERROR(VLOOKUP(G1085,Translation!$A:$C,3,FALSE),G1085)","v":"29.7"},{"$f":"IFERROR(VLOOKUP(H1085,Translation!$A:$C,3,FALSE),H1085)","v":"Québec"}]
[28,"T4 2017","IMMEUBLES COLLECTIFS RÉSIDENTIELS","Ontario",32.117465513222662,"Période d’amortissement moyenne selon la province","32.1","Ontario",{"$f":"IFERROR(VLOOKUP(A1086,Translation!$A:$C,3,FALSE),A1086)","v":28},{"$f":"IFERROR(VLOOKUP(B1086,Translation!$A:$C,3,FALSE),B1086)","v":"T4 2017"},{"$f":"IFERROR(VLOOKUP(C1086,Translation!$A:$C,3,FALSE),C1086)","v":"IMMEUBLES COLLECTIFS RÉSIDENTIELS"},{"$f":"IFERROR(VLOOKUP(D1086,Translation!$A:$C,3,FALSE),D1086)","v":"Ontario"},{"$f":"IFERROR(VLOOKUP(E1086,Translation!$A:$C,3,FALSE),E1086)","v":32.117465513222662},{"$f":"IFERROR(VLOOKUP(F1086,Translation!$A:$C,3,FALSE),F1086)","v":"Période d’amortissement moyenne selon la province"},{"$f":"IFERROR(VLOOKUP(G1086,Translation!$A:$C,3,FALSE),G1086)","v":"32.1"},{"$f":"IFERROR(VLOOKUP(H1086,Translation!$A:$C,3,FALSE),H1086)","v":"Ontario"}]
[28,"T4 2017","IMMEUBLES COLLECTIFS RÉSIDENTIELS","Manitoba",33.278026231418259,"Période d’amortissement moyenne selon la province","33.3","Manitoba",{"$f":"IFERROR(VLOOKUP(A1087,Translation!$A:$C,3,FALSE),A1087)","v":28},{"$f":"IFERROR(VLOOKUP(B1087,Translation!$A:$C,3,FALSE),B1087)","v":"T4 2017"},{"$f":"IFERROR(VLOOKUP(C1087,Translation!$A:$C,3,FALSE),C1087)","v":"IMMEUBLES COLLECTIFS RÉSIDENTIELS"},{"$f":"IFERROR(VLOOKUP(D1087,Translation!$A:$C,3,FALSE),D1087)","v":"Manitoba"},{"$f":"IFERROR(VLOOKUP(E1087,Translation!$A:$C,3,FALSE),E1087)","v":33.278026231418259},{"$f":"IFERROR(VLOOKUP(F1087,Translation!$A:$C,3,FALSE),F1087)","v":"Période d’amortissement moyenne selon la province"},{"$f":"IFERROR(VLOOKUP(G1087,Translation!$A:$C,3,FALSE),G1087)","v":"33.3"},{"$f":"IFERROR(VLOOKUP(H1087,Translation!$A:$C,3,FALSE),H1087)","v":"Manitoba"}]
[28,"T4 2017","IMMEUBLES COLLECTIFS RÉSIDENTIELS","Saskatchewan",25.000000000000004,"Période d’amortissement moyenne selon la province","25.0","Saskatchewan",{"$f":"IFERROR(VLOOKUP(A1088,Translation!$A:$C,3,FALSE),A1088)","v":28},{"$f":"IFERROR(VLOOKUP(B1088,Translation!$A:$C,3,FALSE),B1088)","v":"T4 2017"},{"$f":"IFERROR(VLOOKUP(C1088,Translation!$A:$C,3,FALSE),C1088)","v":"IMMEUBLES COLLECTIFS RÉSIDENTIELS"},{"$f":"IFERROR(VLOOKUP(D1088,Translation!$A:$C,3,FALSE),D1088)","v":"Saskatchewan"},{"$f":"IFERROR(VLOOKUP(E1088,Translation!$A:$C,3,FALSE),E1088)","v":25.000000000000004},{"$f":"IFERROR(VLOOKUP(F1088,Translation!$A:$C,3,FALSE),F1088)","v":"Période d’amortissement moyenne selon la province"},{"$f":"IFERROR(VLOOKUP(G1088,Translation!$A:$C,3,FALSE),G1088)","v":"25.0"},{"$f":"IFERROR(VLOOKUP(H1088,Translation!$A:$C,3,FALSE),H1088)","v":"Saskatchewan"}]
[28,"T4 2017","IMMEUBLES COLLECTIFS RÉSIDENTIELS","Alberta",34.027216180714944,"Période d’amortissement moyenne selon la province","34.0","Alberta",{"$f":"IFERROR(VLOOKUP(A1089,Translation!$A:$C,3,FALSE),A1089)","v":28},{"$f":"IFERROR(VLOOKUP(B1089,Translation!$A:$C,3,FALSE),B1089)","v":"T4 2017"},{"$f":"IFERROR(VLOOKUP(C1089,Translation!$A:$C,3,FALSE),C1089)","v":"IMMEUBLES COLLECTIFS RÉSIDENTIELS"},{"$f":"IFERROR(VLOOKUP(D1089,Translation!$A:$C,3,FALSE),D1089)","v":"Alberta"},{"$f":"IFERROR(VLOOKUP(E1089,Translation!$A:$C,3,FALSE),E1089)","v":34.027216180714944},{"$f":"IFERROR(VLOOKUP(F1089,Translation!$A:$C,3,FALSE),F1089)","v":"Période d’amortissement moyenne selon la province"},{"$f":"IFERROR(VLOOKUP(G1089,Translation!$A:$C,3,FALSE),G1089)","v":"34.0"},{"$f":"IFERROR(VLOOKUP(H1089,Translation!$A:$C,3,FALSE),H1089)","v":"Alberta"}]
[28,"T4 2017","IMMEUBLES COLLECTIFS RÉSIDENTIELS","Colombie-Britannique",35.479183652127951,"Période d’amortissement moyenne selon la province","35.5","Colombie-Britannique",{"$f":"IFERROR(VLOOKUP(A1090,Translation!$A:$C,3,FALSE),A1090)","v":28},{"$f":"IFERROR(VLOOKUP(B1090,Translation!$A:$C,3,FALSE),B1090)","v":"T4 2017"},{"$f":"IFERROR(VLOOKUP(C1090,Translation!$A:$C,3,FALSE),C1090)","v":"IMMEUBLES COLLECTIFS RÉSIDENTIELS"},{"$f":"IFERROR(VLOOKUP(D1090,Translation!$A:$C,3,FALSE),D1090)","v":"Colombie-Britannique"},{"$f":"IFERROR(VLOOKUP(E1090,Translation!$A:$C,3,FALSE),E1090)","v":35.479183652127951},{"$f":"IFERROR(VLOOKUP(F1090,Translation!$A:$C,3,FALSE),F1090)","v":"Période d’amortissement moyenne selon la province"},{"$f":"IFERROR(VLOOKUP(G1090,Translation!$A:$C,3,FALSE),G1090)","v":"35.5"},{"$f":"IFERROR(VLOOKUP(H1090,Translation!$A:$C,3,FALSE),H1090)","v":"Colombie-Britannique"}]
[28,"T4 2017","IMMEUBLES COLLECTIFS RÉSIDENTIELS","Territoires",24.884431623189567,"Période d’amortissement moyenne selon la province","24.9","Territoires",{"$f":"IFERROR(VLOOKUP(A1091,Translation!$A:$C,3,FALSE),A1091)","v":28},{"$f":"IFERROR(VLOOKUP(B1091,Translation!$A:$C,3,FALSE),B1091)","v":"T4 2017"},{"$f":"IFERROR(VLOOKUP(C1091,Translation!$A:$C,3,FALSE),C1091)","v":"IMMEUBLES COLLECTIFS RÉSIDENTIELS"},{"$f":"IFERROR(VLOOKUP(D1091,Translation!$A:$C,3,FALSE),D1091)","v":"Territoires"},{"$f":"IFERROR(VLOOKUP(E1091,Translation!$A:$C,3,FALSE),E1091)","v":24.884431623189567},{"$f":"IFERROR(VLOOKUP(F1091,Translation!$A:$C,3,FALSE),F1091)","v":"Période d’amortissement moyenne selon la province"},{"$f":"IFERROR(VLOOKUP(G1091,Translation!$A:$C,3,FALSE),G1091)","v":"24.9"},{"$f":"IFERROR(VLOOKUP(H1091,Translation!$A:$C,3,FALSE),H1091)","v":"Territoires"}]
[13,"T1 2020","PROPRIÉTAIRES-OCCUPANTS, À L’UNITÉ","Aucun pointage de crédit",3.5115521348131992E-2,"Prêts hypothécaires assurés au cours de la période selon le pointage de crédit à l’initiation (%)","0.0","Aucun pointage de crédit",{"$f":"IFERROR(VLOOKUP(A1092,Translation!$A:$C,3,FALSE),A1092)","v":13},{"$f":"IFERROR(VLOOKUP(B1092,Translation!$A:$C,3,FALSE),B1092)","v":"T1 2020"},{"$f":"IFERROR(VLOOKUP(C1092,Translation!$A:$C,3,FALSE),C1092)","v":"PROPRIÉTAIRES-OCCUPANTS, À L’UNITÉ"},{"$f":"IFERROR(VLOOKUP(D1092,Translation!$A:$C,3,FALSE),D1092)","v":"Aucun pointage de crédit"},{"$f":"IFERROR(VLOOKUP(E1092,Translation!$A:$C,3,FALSE),E1092)","v":3.5115521348131992E-2},{"$f":"IFERROR(VLOOKUP(F1092,Translation!$A:$C,3,FALSE),F1092)","v":"Prêts hypothécaires assurés au cours de la période selon le pointage de crédit à l’initiation (%)"},{"$f":"IFERROR(VLOOKUP(G1092,Translation!$A:$C,3,FALSE),G1092)","v":"0.0"},{"$f":"IFERROR(VLOOKUP(H1092,Translation!$A:$C,3,FALSE),H1092)","v":"Aucun pointage de crédit"}]
[13,"Cumul 2019","PROPRIÉTAIRES-OCCUPANTS, À L’UNITÉ","Aucun pointage de crédit",2.461033501074537,"Prêts hypothécaires assurés au cours de la période selon le pointage de crédit à l’initiation (%)","2.5","Aucun pointage de crédit",{"$f":"IFERROR(VLOOKUP(A1093,Translation!$A:$C,3,FALSE),A1093)","v":13},{"$f":"IFERROR(VLOOKUP(B1093,Translation!$A:$C,3,FALSE),B1093)","v":"Cumul 2019"},{"$f":"IFERROR(VLOOKUP(C1093,Translation!$A:$C,3,FALSE),C1093)","v":"PROPRIÉTAIRES-OCCUPANTS, À L’UNITÉ"},{"$f":"IFERROR(VLOOKUP(D1093,Translation!$A:$C,3,FALSE),D1093)","v":"Aucun pointage de crédit"},{"$f":"IFERROR(VLOOKUP(E1093,Translation!$A:$C,3,FALSE),E1093)","v":2.461033501074537},{"$f":"IFERROR(VLOOKUP(F1093,Translation!$A:$C,3,FALSE),F1093)","v":"Prêts hypothécaires assurés au cours de la période selon le pointage de crédit à l’initiation (%)"},{"$f":"IFERROR(VLOOKUP(G1093,Translation!$A:$C,3,FALSE),G1093)","v":"2.5"},{"$f":"IFERROR(VLOOKUP(H1093,Translation!$A:$C,3,FALSE),H1093)","v":"Aucun pointage de crédit"}]
[13,"Cumul 2020","PROPRIÉTAIRES-OCCUPANTS, À L’UNITÉ","Aucun pointage de crédit",3.5115521348131992E-2,"Prêts hypothécaires assurés au cours de la période selon le pointage de crédit à l’initiation (%)","0.0","Aucun pointage de crédit",{"$f":"IFERROR(VLOOKUP(A1094,Translation!$A:$C,3,FALSE),A1094)","v":13},{"$f":"IFERROR(VLOOKUP(B1094,Translation!$A:$C,3,FALSE),B1094)","v":"Cumul 2020"},{"$f":"IFERROR(VLOOKUP(C1094,Translation!$A:$C,3,FALSE),C1094)","v":"PROPRIÉTAIRES-OCCUPANTS, À L’UNITÉ"},{"$f":"IFERROR(VLOOKUP(D1094,Translation!$A:$C,3,FALSE),D1094)","v":"Aucun pointage de crédit"},{"$f":"IFERROR(VLOOKUP(E1094,Translation!$A:$C,3,FALSE),E1094)","v":3.5115521348131992E-2},{"$f":"IFERROR(VLOOKUP(F1094,Translation!$A:$C,3,FALSE),F1094)","v":"Prêts hypothécaires assurés au cours de la période selon le pointage de crédit à l’initiation (%)"},{"$f":"IFERROR(VLOOKUP(G1094,Translation!$A:$C,3,FALSE),G1094)","v":"0.0"},{"$f":"IFERROR(VLOOKUP(H1094,Translation!$A:$C,3,FALSE),H1094)","v":"Aucun pointage de crédit"}]
[13,"T1 2020","PROPRIÉTAIRES-OCCUPANTS, À L’UNITÉ"," < 600",0.29050425933201257,"Prêts hypothécaires assurés au cours de la période selon le pointage de crédit à l’initiation (%)","0.3"," < 600",{"$f":"IFERROR(VLOOKUP(A1095,Translation!$A:$C,3,FALSE),A1095)","v":13},{"$f":"IFERROR(VLOOKUP(B1095,Translation!$A:$C,3,FALSE),B1095)","v":"T1 2020"},{"$f":"IFERROR(VLOOKUP(C1095,Translation!$A:$C,3,FALSE),C1095)","v":"PROPRIÉTAIRES-OCCUPANTS, À L’UNITÉ"},{"$f":"IFERROR(VLOOKUP(D1095,Translation!$A:$C,3,FALSE),D1095)","v":" < 600"},{"$f":"IFERROR(VLOOKUP(E1095,Translation!$A:$C,3,FALSE),E1095)","v":0.29050425933201257},{"$f":"IFERROR(VLOOKUP(F1095,Translation!$A:$C,3,FALSE),F1095)","v":"Prêts hypothécaires assurés au cours de la période selon le pointage de crédit à l’initiation (%)"},{"$f":"IFERROR(VLOOKUP(G1095,Translation!$A:$C,3,FALSE),G1095)","v":"0.3"},{"$f":"IFERROR(VLOOKUP(H1095,Translation!$A:$C,3,FALSE),H1095)","v":" < 600"}]
[13,"Cumul 2019","PROPRIÉTAIRES-OCCUPANTS, À L’UNITÉ","< 600",0.35247063498935305,"Prêts hypothécaires assurés au cours de la période selon le pointage de crédit à l’initiation (%)","0.4"," < 600",{"$f":"IFERROR(VLOOKUP(A1096,Translation!$A:$C,3,FALSE),A1096)","v":13},{"$f":"IFERROR(VLOOKUP(B1096,Translation!$A:$C,3,FALSE),B1096)","v":"Cumul 2019"},{"$f":"IFERROR(VLOOKUP(C1096,Translation!$A:$C,3,FALSE),C1096)","v":"PROPRIÉTAIRES-OCCUPANTS, À L’UNITÉ"},{"$f":"IFERROR(VLOOKUP(D1096,Translation!$A:$C,3,FALSE),D1096)","v":"< 600"},{"$f":"IFERROR(VLOOKUP(E1096,Translation!$A:$C,3,FALSE),E1096)","v":0.35247063498935305},{"$f":"IFERROR(VLOOKUP(F1096,Translation!$A:$C,3,FALSE),F1096)","v":"Prêts hypothécaires assurés au cours de la période selon le pointage de crédit à l’initiation (%)"},{"$f":"IFERROR(VLOOKUP(G1096,Translation!$A:$C,3,FALSE),G1096)","v":"0.4"},{"$f":"IFERROR(VLOOKUP(H1096,Translation!$A:$C,3,FALSE),H1096)","v":" < 600"}]
[13,"Cumul 2020","PROPRIÉTAIRES-OCCUPANTS, À L’UNITÉ"," < 600",0.29050425933201257,"Prêts hypothécaires assurés au cours de la période selon le pointage de crédit à l’initiation (%)","0.3"," < 600",{"$f":"IFERROR(VLOOKUP(A1097,Translation!$A:$C,3,FALSE),A1097)","v":13},{"$f":"IFERROR(VLOOKUP(B1097,Translation!$A:$C,3,FALSE),B1097)","v":"Cumul 2020"},{"$f":"IFERROR(VLOOKUP(C1097,Translation!$A:$C,3,FALSE),C1097)","v":"PROPRIÉTAIRES-OCCUPANTS, À L’UNITÉ"},{"$f":"IFERROR(VLOOKUP(D1097,Translation!$A:$C,3,FALSE),D1097)","v":" < 600"},{"$f":"IFERROR(VLOOKUP(E1097,Translation!$A:$C,3,FALSE),E1097)","v":0.29050425933201257},{"$f":"IFERROR(VLOOKUP(F1097,Translation!$A:$C,3,FALSE),F1097)","v":"Prêts hypothécaires assurés au cours de la période selon le pointage de crédit à l’initiation (%)"},{"$f":"IFERROR(VLOOKUP(G1097,Translation!$A:$C,3,FALSE),G1097)","v":"0.3"},{"$f":"IFERROR(VLOOKUP(H1097,Translation!$A:$C,3,FALSE),H1097)","v":" < 600"}]
[13,"T1 2020","PROPRIÉTAIRES-OCCUPANTS, À L’UNITÉ"," >= 600 < 680",5.5604128739539957,"Prêts hypothécaires assurés au cours de la période selon le pointage de crédit à l’initiation (%)","5.6"," >= 600 < 680",{"$f":"IFERROR(VLOOKUP(A1098,Translation!$A:$C,3,FALSE),A1098)","v":13},{"$f":"IFERROR(VLOOKUP(B1098,Translation!$A:$C,3,FALSE),B1098)","v":"T1 2020"},{"$f":"IFERROR(VLOOKUP(C1098,Translation!$A:$C,3,FALSE),C1098)","v":"PROPRIÉTAIRES-OCCUPANTS, À L’UNITÉ"},{"$f":"IFERROR(VLOOKUP(D1098,Translation!$A:$C,3,FALSE),D1098)","v":" >= 600 < 680"},{"$f":"IFERROR(VLOOKUP(E1098,Translation!$A:$C,3,FALSE),E1098)","v":5.5604128739539957},{"$f":"IFERROR(VLOOKUP(F1098,Translation!$A:$C,3,FALSE),F1098)","v":"Prêts hypothécaires assurés au cours de la période selon le pointage de crédit à l’initiation (%)"},{"$f":"IFERROR(VLOOKUP(G1098,Translation!$A:$C,3,FALSE),G1098)","v":"5.6"},{"$f":"IFERROR(VLOOKUP(H1098,Translation!$A:$C,3,FALSE),H1098)","v":" >= 600 < 680"}]
[13,"Cumul 2019","PROPRIÉTAIRES-OCCUPANTS, À L’UNITÉ",">= 600 < 680",5.4102971427249722,"Prêts hypothécaires assurés au cours de la période selon le pointage de crédit à l’initiation (%)","5.4"," >= 600 < 680",{"$f":"IFERROR(VLOOKUP(A1099,Translation!$A:$C,3,FALSE),A1099)","v":13},{"$f":"IFERROR(VLOOKUP(B1099,Translation!$A:$C,3,FALSE),B1099)","v":"Cumul 2019"},{"$f":"IFERROR(VLOOKUP(C1099,Translation!$A:$C,3,FALSE),C1099)","v":"PROPRIÉTAIRES-OCCUPANTS, À L’UNITÉ"},{"$f":"IFERROR(VLOOKUP(D1099,Translation!$A:$C,3,FALSE),D1099)","v":">= 600 < 680"},{"$f":"IFERROR(VLOOKUP(E1099,Translation!$A:$C,3,FALSE),E1099)","v":5.4102971427249722},{"$f":"IFERROR(VLOOKUP(F1099,Translation!$A:$C,3,FALSE),F1099)","v":"Prêts hypothécaires assurés au cours de la période selon le pointage de crédit à l’initiation (%)"},{"$f":"IFERROR(VLOOKUP(G1099,Translation!$A:$C,3,FALSE),G1099)","v":"5.4"},{"$f":"IFERROR(VLOOKUP(H1099,Translation!$A:$C,3,FALSE),H1099)","v":" >= 600 < 680"}]
[13,"Cumul 2020","PROPRIÉTAIRES-OCCUPANTS, À L’UNITÉ"," >= 600 < 680",5.5604128739539957,"Prêts hypothécaires assurés au cours de la période selon le pointage de crédit à l’initiation (%)","5.6"," >= 600 < 680",{"$f":"IFERROR(VLOOKUP(A1100,Translation!$A:$C,3,FALSE),A1100)","v":13},{"$f":"IFERROR(VLOOKUP(B1100,Translation!$A:$C,3,FALSE),B1100)","v":"Cumul 2020"},{"$f":"IFERROR(VLOOKUP(C1100,Translation!$A:$C,3,FALSE),C1100)","v":"PROPRIÉTAIRES-OCCUPANTS, À L’UNITÉ"},{"$f":"IFERROR(VLOOKUP(D1100,Translation!$A:$C,3,FALSE),D1100)","v":" >= 600 < 680"},{"$f":"IFERROR(VLOOKUP(E1100,Translation!$A:$C,3,FALSE),E1100)","v":5.5604128739539957},{"$f":"IFERROR(VLOOKUP(F1100,Translation!$A:$C,3,FALSE),F1100)","v":"Prêts hypothécaires assurés au cours de la période selon le pointage de crédit à l’initiation (%)"},{"$f":"IFERROR(VLOOKUP(G1100,Translation!$A:$C,3,FALSE),G1100)","v":"5.6"},{"$f":"IFERROR(VLOOKUP(H1100,Translation!$A:$C,3,FALSE),H1100)","v":" >= 600 < 680"}]
[13,"T1 2020","PROPRIÉTAIRES-OCCUPANTS, À L’UNITÉ"," >= 680 < 700",4.9012905390917592,"Prêts hypothécaires assurés au cours de la période selon le pointage de crédit à l’initiation (%)","4.9"," >= 680 < 700",{"$f":"IFERROR(VLOOKUP(A1101,Translation!$A:$C,3,FALSE),A1101)","v":13},{"$f":"IFERROR(VLOOKUP(B1101,Translation!$A:$C,3,FALSE),B1101)","v":"T1 2020"},{"$f":"IFERROR(VLOOKUP(C1101,Translation!$A:$C,3,FALSE),C1101)","v":"PROPRIÉTAIRES-OCCUPANTS, À L’UNITÉ"},{"$f":"IFERROR(VLOOKUP(D1101,Translation!$A:$C,3,FALSE),D1101)","v":" >= 680 < 700"},{"$f":"IFERROR(VLOOKUP(E1101,Translation!$A:$C,3,FALSE),E1101)","v":4.9012905390917592},{"$f":"IFERROR(VLOOKUP(F1101,Translation!$A:$C,3,FALSE),F1101)","v":"Prêts hypothécaires assurés au cours de la période selon le pointage de crédit à l’initiation (%)"},{"$f":"IFERROR(VLOOKUP(G1101,Translation!$A:$C,3,FALSE),G1101)","v":"4.9"},{"$f":"IFERROR(VLOOKUP(H1101,Translation!$A:$C,3,FALSE),H1101)","v":" >= 680 < 700"}]
[13,"Cumul 2019","PROPRIÉTAIRES-OCCUPANTS, À L’UNITÉ",">= 680 < 700",5.1367250001190419,"Prêts hypothécaires assurés au cours de la période selon le pointage de crédit à l’initiation (%)","5.1"," >= 680 < 700",{"$f":"IFERROR(VLOOKUP(A1102,Translation!$A:$C,3,FALSE),A1102)","v":13},{"$f":"IFERROR(VLOOKUP(B1102,Translation!$A:$C,3,FALSE),B1102)","v":"Cumul 2019"},{"$f":"IFERROR(VLOOKUP(C1102,Translation!$A:$C,3,FALSE),C1102)","v":"PROPRIÉTAIRES-OCCUPANTS, À L’UNITÉ"},{"$f":"IFERROR(VLOOKUP(D1102,Translation!$A:$C,3,FALSE),D1102)","v":">= 680 < 700"},{"$f":"IFERROR(VLOOKUP(E1102,Translation!$A:$C,3,FALSE),E1102)","v":5.1367250001190419},{"$f":"IFERROR(VLOOKUP(F1102,Translation!$A:$C,3,FALSE),F1102)","v":"Prêts hypothécaires assurés au cours de la période selon le pointage de crédit à l’initiation (%)"},{"$f":"IFERROR(VLOOKUP(G1102,Translation!$A:$C,3,FALSE),G1102)","v":"5.1"},{"$f":"IFERROR(VLOOKUP(H1102,Translation!$A:$C,3,FALSE),H1102)","v":" >= 680 < 700"}]
[13,"Cumul 2020","PROPRIÉTAIRES-OCCUPANTS, À L’UNITÉ"," >= 680 < 700",4.9012905390917592,"Prêts hypothécaires assurés au cours de la période selon le pointage de crédit à l’initiation (%)","4.9"," >= 680 < 700",{"$f":"IFERROR(VLOOKUP(A1103,Translation!$A:$C,3,FALSE),A1103)","v":13},{"$f":"IFERROR(VLOOKUP(B1103,Translation!$A:$C,3,FALSE),B1103)","v":"Cumul 2020"},{"$f":"IFERROR(VLOOKUP(C1103,Translation!$A:$C,3,FALSE),C1103)","v":"PROPRIÉTAIRES-OCCUPANTS, À L’UNITÉ"},{"$f":"IFERROR(VLOOKUP(D1103,Translation!$A:$C,3,FALSE),D1103)","v":" >= 680 < 700"},{"$f":"IFERROR(VLOOKUP(E1103,Translation!$A:$C,3,FALSE),E1103)","v":4.9012905390917592},{"$f":"IFERROR(VLOOKUP(F1103,Translation!$A:$C,3,FALSE),F1103)","v":"Prêts hypothécaires assurés au cours de la période selon le pointage de crédit à l’initiation (%)"},{"$f":"IFERROR(VLOOKUP(G1103,Translation!$A:$C,3,FALSE),G1103)","v":"4.9"},{"$f":"IFERROR(VLOOKUP(H1103,Translation!$A:$C,3,FALSE),H1103)","v":" >= 680 < 700"}]
[13,"T1 2020","PROPRIÉTAIRES-OCCUPANTS, À L’UNITÉ"," >= 700 < 750",26.525434224603639,"Prêts hypothécaires assurés au cours de la période selon le pointage de crédit à l’initiation (%)","26.5"," >= 700 < 750",{"$f":"IFERROR(VLOOKUP(A1104,Translation!$A:$C,3,FALSE),A1104)","v":13},{"$f":"IFERROR(VLOOKUP(B1104,Translation!$A:$C,3,FALSE),B1104)","v":"T1 2020"},{"$f":"IFERROR(VLOOKUP(C1104,Translation!$A:$C,3,FALSE),C1104)","v":"PROPRIÉTAIRES-OCCUPANTS, À L’UNITÉ"},{"$f":"IFERROR(VLOOKUP(D1104,Translation!$A:$C,3,FALSE),D1104)","v":" >= 700 < 750"},{"$f":"IFERROR(VLOOKUP(E1104,Translation!$A:$C,3,FALSE),E1104)","v":26.525434224603639},{"$f":"IFERROR(VLOOKUP(F1104,Translation!$A:$C,3,FALSE),F1104)","v":"Prêts hypothécaires assurés au cours de la période selon le pointage de crédit à l’initiation (%)"},{"$f":"IFERROR(VLOOKUP(G1104,Translation!$A:$C,3,FALSE),G1104)","v":"26.5"},{"$f":"IFERROR(VLOOKUP(H1104,Translation!$A:$C,3,FALSE),H1104)","v":" >= 700 < 750"}]
[13,"Cumul 2019","PROPRIÉTAIRES-OCCUPANTS, À L’UNITÉ",">= 700 < 750",26.567069862853103,"Prêts hypothécaires assurés au cours de la période selon le pointage de crédit à l’initiation (%)","26.6"," >= 700 < 750",{"$f":"IFERROR(VLOOKUP(A1105,Translation!$A:$C,3,FALSE),A1105)","v":13},{"$f":"IFERROR(VLOOKUP(B1105,Translation!$A:$C,3,FALSE),B1105)","v":"Cumul 2019"},{"$f":"IFERROR(VLOOKUP(C1105,Translation!$A:$C,3,FALSE),C1105)","v":"PROPRIÉTAIRES-OCCUPANTS, À L’UNITÉ"},{"$f":"IFERROR(VLOOKUP(D1105,Translation!$A:$C,3,FALSE),D1105)","v":">= 700 < 750"},{"$f":"IFERROR(VLOOKUP(E1105,Translation!$A:$C,3,FALSE),E1105)","v":26.567069862853103},{"$f":"IFERROR(VLOOKUP(F1105,Translation!$A:$C,3,FALSE),F1105)","v":"Prêts hypothécaires assurés au cours de la période selon le pointage de crédit à l’initiation (%)"},{"$f":"IFERROR(VLOOKUP(G1105,Translation!$A:$C,3,FALSE),G1105)","v":"26.6"},{"$f":"IFERROR(VLOOKUP(H1105,Translation!$A:$C,3,FALSE),H1105)","v":" >= 700 < 750"}]
[13,"Cumul 2020","PROPRIÉTAIRES-OCCUPANTS, À L’UNITÉ"," >= 700 < 750",26.525434224603639,"Prêts hypothécaires assurés au cours de la période selon le pointage de crédit à l’initiation (%)","26.5"," >= 700 < 750",{"$f":"IFERROR(VLOOKUP(A1106,Translation!$A:$C,3,FALSE),A1106)","v":13},{"$f":"IFERROR(VLOOKUP(B1106,Translation!$A:$C,3,FALSE),B1106)","v":"Cumul 2020"},{"$f":"IFERROR(VLOOKUP(C1106,Translation!$A:$C,3,FALSE),C1106)","v":"PROPRIÉTAIRES-OCCUPANTS, À L’UNITÉ"},{"$f":"IFERROR(VLOOKUP(D1106,Translation!$A:$C,3,FALSE),D1106)","v":" >= 700 < 750"},{"$f":"IFERROR(VLOOKUP(E1106,Translation!$A:$C,3,FALSE),E1106)","v":26.525434224603639},{"$f":"IFERROR(VLOOKUP(F1106,Translation!$A:$C,3,FALSE),F1106)","v":"Prêts hypothécaires assurés au cours de la période selon le pointage de crédit à l’initiation (%)"},{"$f":"IFERROR(VLOOKUP(G1106,Translation!$A:$C,3,FALSE),G1106)","v":"26.5"},{"$f":"IFERROR(VLOOKUP(H1106,Translation!$A:$C,3,FALSE),H1106)","v":" >= 700 < 750"}]
[13,"T1 2020","PROPRIÉTAIRES-OCCUPANTS, À L’UNITÉ"," >= 750 < 780",28.577610033846199,"Prêts hypothécaires assurés au cours de la période selon le pointage de crédit à l’initiation (%)","28.6"," >= 750 < 780",{"$f":"IFERROR(VLOOKUP(A1107,Translation!$A:$C,3,FALSE),A1107)","v":13},{"$f":"IFERROR(VLOOKUP(B1107,Translation!$A:$C,3,FALSE),B1107)","v":"T1 2020"},{"$f":"IFERROR(VLOOKUP(C1107,Translation!$A:$C,3,FALSE),C1107)","v":"PROPRIÉTAIRES-OCCUPANTS, À L’UNITÉ"},{"$f":"IFERROR(VLOOKUP(D1107,Translation!$A:$C,3,FALSE),D1107)","v":" >= 750 < 780"},{"$f":"IFERROR(VLOOKUP(E1107,Translation!$A:$C,3,FALSE),E1107)","v":28.577610033846199},{"$f":"IFERROR(VLOOKUP(F1107,Translation!$A:$C,3,FALSE),F1107)","v":"Prêts hypothécaires assurés au cours de la période selon le pointage de crédit à l’initiation (%)"},{"$f":"IFERROR(VLOOKUP(G1107,Translation!$A:$C,3,FALSE),G1107)","v":"28.6"},{"$f":"IFERROR(VLOOKUP(H1107,Translation!$A:$C,3,FALSE),H1107)","v":" >= 750 < 780"}]
[13,"Cumul 2019","PROPRIÉTAIRES-OCCUPANTS, À L’UNITÉ",">= 750 < 780",26.768746809342403,"Prêts hypothécaires assurés au cours de la période selon le pointage de crédit à l’initiation (%)","26.8"," >= 750 < 780",{"$f":"IFERROR(VLOOKUP(A1108,Translation!$A:$C,3,FALSE),A1108)","v":13},{"$f":"IFERROR(VLOOKUP(B1108,Translation!$A:$C,3,FALSE),B1108)","v":"Cumul 2019"},{"$f":"IFERROR(VLOOKUP(C1108,Translation!$A:$C,3,FALSE),C1108)","v":"PROPRIÉTAIRES-OCCUPANTS, À L’UNITÉ"},{"$f":"IFERROR(VLOOKUP(D1108,Translation!$A:$C,3,FALSE),D1108)","v":">= 750 < 780"},{"$f":"IFERROR(VLOOKUP(E1108,Translation!$A:$C,3,FALSE),E1108)","v":26.768746809342403},{"$f":"IFERROR(VLOOKUP(F1108,Translation!$A:$C,3,FALSE),F1108)","v":"Prêts hypothécaires assurés au cours de la période selon le pointage de crédit à l’initiation (%)"},{"$f":"IFERROR(VLOOKUP(G1108,Translation!$A:$C,3,FALSE),G1108)","v":"26.8"},{"$f":"IFERROR(VLOOKUP(H1108,Translation!$A:$C,3,FALSE),H1108)","v":" >= 750 < 780"}]
[13,"Cumul 2020","PROPRIÉTAIRES-OCCUPANTS, À L’UNITÉ"," >= 750 < 780",28.577610033846199,"Prêts hypothécaires assurés au cours de la période selon le pointage de crédit à l’initiation (%)","28.6"," >= 750 < 780",{"$f":"IFERROR(VLOOKUP(A1109,Translation!$A:$C,3,FALSE),A1109)","v":13},{"$f":"IFERROR(VLOOKUP(B1109,Translation!$A:$C,3,FALSE),B1109)","v":"Cumul 2020"},{"$f":"IFERROR(VLOOKUP(C1109,Translation!$A:$C,3,FALSE),C1109)","v":"PROPRIÉTAIRES-OCCUPANTS, À L’UNITÉ"},{"$f":"IFERROR(VLOOKUP(D1109,Translation!$A:$C,3,FALSE),D1109)","v":" >= 750 < 780"},{"$f":"IFERROR(VLOOKUP(E1109,Translation!$A:$C,3,FALSE),E1109)","v":28.577610033846199},{"$f":"IFERROR(VLOOKUP(F1109,Translation!$A:$C,3,FALSE),F1109)","v":"Prêts hypothécaires assurés au cours de la période selon le pointage de crédit à l’initiation (%)"},{"$f":"IFERROR(VLOOKUP(G1109,Translation!$A:$C,3,FALSE),G1109)","v":"28.6"},{"$f":"IFERROR(VLOOKUP(H1109,Translation!$A:$C,3,FALSE),H1109)","v":" >= 750 < 780"}]
[13,"T1 2020","PROPRIÉTAIRES-OCCUPANTS, À L’UNITÉ"," >= 780",34.109632547824248,"Prêts hypothécaires assurés au cours de la période selon le pointage de crédit à l’initiation (%)","34.1"," >= 780",{"$f":"IFERROR(VLOOKUP(A1110,Translation!$A:$C,3,FALSE),A1110)","v":13},{"$f":"IFERROR(VLOOKUP(B1110,Translation!$A:$C,3,FALSE),B1110)","v":"T1 2020"},{"$f":"IFERROR(VLOOKUP(C1110,Translation!$A:$C,3,FALSE),C1110)","v":"PROPRIÉTAIRES-OCCUPANTS, À L’UNITÉ"},{"$f":"IFERROR(VLOOKUP(D1110,Translation!$A:$C,3,FALSE),D1110)","v":" >= 780"},{"$f":"IFERROR(VLOOKUP(E1110,Translation!$A:$C,3,FALSE),E1110)","v":34.109632547824248},{"$f":"IFERROR(VLOOKUP(F1110,Translation!$A:$C,3,FALSE),F1110)","v":"Prêts hypothécaires assurés au cours de la période selon le pointage de crédit à l’initiation (%)"},{"$f":"IFERROR(VLOOKUP(G1110,Translation!$A:$C,3,FALSE),G1110)","v":"34.1"},{"$f":"IFERROR(VLOOKUP(H1110,Translation!$A:$C,3,FALSE),H1110)","v":" >= 780"}]
[13,"Cumul 2019","PROPRIÉTAIRES-OCCUPANTS, À L’UNITÉ",">= 780",33.303657048896568,"Prêts hypothécaires assurés au cours de la période selon le pointage de crédit à l’initiation (%)","33.3"," >= 780",{"$f":"IFERROR(VLOOKUP(A1111,Translation!$A:$C,3,FALSE),A1111)","v":13},{"$f":"IFERROR(VLOOKUP(B1111,Translation!$A:$C,3,FALSE),B1111)","v":"Cumul 2019"},{"$f":"IFERROR(VLOOKUP(C1111,Translation!$A:$C,3,FALSE),C1111)","v":"PROPRIÉTAIRES-OCCUPANTS, À L’UNITÉ"},{"$f":"IFERROR(VLOOKUP(D1111,Translation!$A:$C,3,FALSE),D1111)","v":">= 780"},{"$f":"IFERROR(VLOOKUP(E1111,Translation!$A:$C,3,FALSE),E1111)","v":33.303657048896568},{"$f":"IFERROR(VLOOKUP(F1111,Translation!$A:$C,3,FALSE),F1111)","v":"Prêts hypothécaires assurés au cours de la période selon le pointage de crédit à l’initiation (%)"},{"$f":"IFERROR(VLOOKUP(G1111,Translation!$A:$C,3,FALSE),G1111)","v":"33.3"},{"$f":"IFERROR(VLOOKUP(H1111,Translation!$A:$C,3,FALSE),H1111)","v":" >= 780"}]
[13,"Cumul 2020","PROPRIÉTAIRES-OCCUPANTS, À L’UNITÉ"," >= 780",34.109632547824248,"Prêts hypothécaires assurés au cours de la période selon le pointage de crédit à l’initiation (%)","34.1"," >= 780",{"$f":"IFERROR(VLOOKUP(A1112,Translation!$A:$C,3,FALSE),A1112)","v":13},{"$f":"IFERROR(VLOOKUP(B1112,Translation!$A:$C,3,FALSE),B1112)","v":"Cumul 2020"},{"$f":"IFERROR(VLOOKUP(C1112,Translation!$A:$C,3,FALSE),C1112)","v":"PROPRIÉTAIRES-OCCUPANTS, À L’UNITÉ"},{"$f":"IFERROR(VLOOKUP(D1112,Translation!$A:$C,3,FALSE),D1112)","v":" >= 780"},{"$f":"IFERROR(VLOOKUP(E1112,Translation!$A:$C,3,FALSE),E1112)","v":34.109632547824248},{"$f":"IFERROR(VLOOKUP(F1112,Translation!$A:$C,3,FALSE),F1112)","v":"Prêts hypothécaires assurés au cours de la période selon le pointage de crédit à l’initiation (%)"},{"$f":"IFERROR(VLOOKUP(G1112,Translation!$A:$C,3,FALSE),G1112)","v":"34.1"},{"$f":"IFERROR(VLOOKUP(H1112,Translation!$A:$C,3,FALSE),H1112)","v":" >= 780"}]
[13,"T1 2020","PROPRIÉTAIRES-OCCUPANTS, À L’UNITÉ","Pointage de crédit moyen à l'initiation ",756.18271306601116,"Prêts hypothécaires assurés au cours de la période selon le pointage de crédit à l’initiation (%)","756.2","Pointage de crédit moyen à l'initiation ",{"$f":"IFERROR(VLOOKUP(A1113,Translation!$A:$C,3,FALSE),A1113)","v":13},{"$f":"IFERROR(VLOOKUP(B1113,Translation!$A:$C,3,FALSE),B1113)","v":"T1 2020"},{"$f":"IFERROR(VLOOKUP(C1113,Translation!$A:$C,3,FALSE),C1113)","v":"PROPRIÉTAIRES-OCCUPANTS, À L’UNITÉ"},{"$f":"IFERROR(VLOOKUP(D1113,Translation!$A:$C,3,FALSE),D1113)","v":"Pointage de crédit moyen à l'initiation "},{"$f":"IFERROR(VLOOKUP(E1113,Translation!$A:$C,3,FALSE),E1113)","v":756.18271306601116},{"$f":"IFERROR(VLOOKUP(F1113,Translation!$A:$C,3,FALSE),F1113)","v":"Prêts hypothécaires assurés au cours de la période selon le pointage de crédit à l’initiation (%)"},{"$f":"IFERROR(VLOOKUP(G1113,Translation!$A:$C,3,FALSE),G1113)","v":"756.2"},{"$f":"IFERROR(VLOOKUP(H1113,Translation!$A:$C,3,FALSE),H1113)","v":"Pointage de crédit moyen à l'initiation "}]
[13,"Cumul 2019","PROPRIÉTAIRES-OCCUPANTS, À L’UNITÉ","Pointage de crédit moyen à l'initiation ",754.54874794205728,"Prêts hypothécaires assurés au cours de la période selon le pointage de crédit à l’initiation (%)","754.5","Pointage de crédit moyen à l'initiation ",{"$f":"IFERROR(VLOOKUP(A1114,Translation!$A:$C,3,FALSE),A1114)","v":13},{"$f":"IFERROR(VLOOKUP(B1114,Translation!$A:$C,3,FALSE),B1114)","v":"Cumul 2019"},{"$f":"IFERROR(VLOOKUP(C1114,Translation!$A:$C,3,FALSE),C1114)","v":"PROPRIÉTAIRES-OCCUPANTS, À L’UNITÉ"},{"$f":"IFERROR(VLOOKUP(D1114,Translation!$A:$C,3,FALSE),D1114)","v":"Pointage de crédit moyen à l'initiation "},{"$f":"IFERROR(VLOOKUP(E1114,Translation!$A:$C,3,FALSE),E1114)","v":754.54874794205728},{"$f":"IFERROR(VLOOKUP(F1114,Translation!$A:$C,3,FALSE),F1114)","v":"Prêts hypothécaires assurés au cours de la période selon le pointage de crédit à l’initiation (%)"},{"$f":"IFERROR(VLOOKUP(G1114,Translation!$A:$C,3,FALSE),G1114)","v":"754.5"},{"$f":"IFERROR(VLOOKUP(H1114,Translation!$A:$C,3,FALSE),H1114)","v":"Pointage de crédit moyen à l'initiation "}]
[13,"Cumul 2020","PROPRIÉTAIRES-OCCUPANTS, À L’UNITÉ","Pointage de crédit moyen à l'initiation ",756.18271306601116,"Prêts hypothécaires assurés au cours de la période selon le pointage de crédit à l’initiation (%)","756.2","Pointage de crédit moyen à l'initiation ",{"$f":"IFERROR(VLOOKUP(A1115,Translation!$A:$C,3,FALSE),A1115)","v":13},{"$f":"IFERROR(VLOOKUP(B1115,Translation!$A:$C,3,FALSE),B1115)","v":"Cumul 2020"},{"$f":"IFERROR(VLOOKUP(C1115,Translation!$A:$C,3,FALSE),C1115)","v":"PROPRIÉTAIRES-OCCUPANTS, À L’UNITÉ"},{"$f":"IFERROR(VLOOKUP(D1115,Translation!$A:$C,3,FALSE),D1115)","v":"Pointage de crédit moyen à l'initiation "},{"$f":"IFERROR(VLOOKUP(E1115,Translation!$A:$C,3,FALSE),E1115)","v":756.18271306601116},{"$f":"IFERROR(VLOOKUP(F1115,Translation!$A:$C,3,FALSE),F1115)","v":"Prêts hypothécaires assurés au cours de la période selon le pointage de crédit à l’initiation (%)"},{"$f":"IFERROR(VLOOKUP(G1115,Translation!$A:$C,3,FALSE),G1115)","v":"756.2"},{"$f":"IFERROR(VLOOKUP(H1115,Translation!$A:$C,3,FALSE),H1115)","v":"Pointage de crédit moyen à l'initiation "}]
[13,"T1 2020","PROPRIÉTAIRES-OCCUPANTS, À L’UNITÉ","Terre-Neuve-et-Labrador",749.73529067198979,"Prêts hypothécaires assurés au cours de la période selon le pointage de crédit à l’initiation (%)","749.7","Terre-Neuve-et-Labrador",{"$f":"IFERROR(VLOOKUP(A1116,Translation!$A:$C,3,FALSE),A1116)","v":13},{"$f":"IFERROR(VLOOKUP(B1116,Translation!$A:$C,3,FALSE),B1116)","v":"T1 2020"},{"$f":"IFERROR(VLOOKUP(C1116,Translation!$A:$C,3,FALSE),C1116)","v":"PROPRIÉTAIRES-OCCUPANTS, À L’UNITÉ"},{"$f":"IFERROR(VLOOKUP(D1116,Translation!$A:$C,3,FALSE),D1116)","v":"Terre-Neuve-et-Labrador"},{"$f":"IFERROR(VLOOKUP(E1116,Translation!$A:$C,3,FALSE),E1116)","v":749.73529067198979},{"$f":"IFERROR(VLOOKUP(F1116,Translation!$A:$C,3,FALSE),F1116)","v":"Prêts hypothécaires assurés au cours de la période selon le pointage de crédit à l’initiation (%)"},{"$f":"IFERROR(VLOOKUP(G1116,Translation!$A:$C,3,FALSE),G1116)","v":"749.7"},{"$f":"IFERROR(VLOOKUP(H1116,Translation!$A:$C,3,FALSE),H1116)","v":"Terre-Neuve-et-Labrador"}]
[13,"T1 2020","PROPRIÉTAIRES-OCCUPANTS, À L’UNITÉ","Île-du-Prince-Édouard",751.27102548337484,"Prêts hypothécaires assurés au cours de la période selon le pointage de crédit à l’initiation (%)","751.3","Île-du-Prince-Édouard",{"$f":"IFERROR(VLOOKUP(A1117,Translation!$A:$C,3,FALSE),A1117)","v":13},{"$f":"IFERROR(VLOOKUP(B1117,Translation!$A:$C,3,FALSE),B1117)","v":"T1 2020"},{"$f":"IFERROR(VLOOKUP(C1117,Translation!$A:$C,3,FALSE),C1117)","v":"PROPRIÉTAIRES-OCCUPANTS, À L’UNITÉ"},{"$f":"IFERROR(VLOOKUP(D1117,Translation!$A:$C,3,FALSE),D1117)","v":"Île-du-Prince-Édouard"},{"$f":"IFERROR(VLOOKUP(E1117,Translation!$A:$C,3,FALSE),E1117)","v":751.27102548337484},{"$f":"IFERROR(VLOOKUP(F1117,Translation!$A:$C,3,FALSE),F1117)","v":"Prêts hypothécaires assurés au cours de la période selon le pointage de crédit à l’initiation (%)"},{"$f":"IFERROR(VLOOKUP(G1117,Translation!$A:$C,3,FALSE),G1117)","v":"751.3"},{"$f":"IFERROR(VLOOKUP(H1117,Translation!$A:$C,3,FALSE),H1117)","v":"Île-du-Prince-Édouard"}]
[13,"T1 2020","PROPRIÉTAIRES-OCCUPANTS, À L’UNITÉ","Nouvelle-Écosse",749.17417476986532,"Prêts hypothécaires assurés au cours de la période selon le pointage de crédit à l’initiation (%)","749.2","Nouvelle-Écosse",{"$f":"IFERROR(VLOOKUP(A1118,Translation!$A:$C,3,FALSE),A1118)","v":13},{"$f":"IFERROR(VLOOKUP(B1118,Translation!$A:$C,3,FALSE),B1118)","v":"T1 2020"},{"$f":"IFERROR(VLOOKUP(C1118,Translation!$A:$C,3,FALSE),C1118)","v":"PROPRIÉTAIRES-OCCUPANTS, À L’UNITÉ"},{"$f":"IFERROR(VLOOKUP(D1118,Translation!$A:$C,3,FALSE),D1118)","v":"Nouvelle-Écosse"},{"$f":"IFERROR(VLOOKUP(E1118,Translation!$A:$C,3,FALSE),E1118)","v":749.17417476986532},{"$f":"IFERROR(VLOOKUP(F1118,Translation!$A:$C,3,FALSE),F1118)","v":"Prêts hypothécaires assurés au cours de la période selon le pointage de crédit à l’initiation (%)"},{"$f":"IFERROR(VLOOKUP(G1118,Translation!$A:$C,3,FALSE),G1118)","v":"749.2"},{"$f":"IFERROR(VLOOKUP(H1118,Translation!$A:$C,3,FALSE),H1118)","v":"Nouvelle-Écosse"}]
[13,"T1 2020","PROPRIÉTAIRES-OCCUPANTS, À L’UNITÉ","Nouveau-Brunswick",743.61237476497934,"Prêts hypothécaires assurés au cours de la période selon le pointage de crédit à l’initiation (%)","743.6","Nouveau-Brunswick",{"$f":"IFERROR(VLOOKUP(A1119,Translation!$A:$C,3,FALSE),A1119)","v":13},{"$f":"IFERROR(VLOOKUP(B1119,Translation!$A:$C,3,FALSE),B1119)","v":"T1 2020"},{"$f":"IFERROR(VLOOKUP(C1119,Translation!$A:$C,3,FALSE),C1119)","v":"PROPRIÉTAIRES-OCCUPANTS, À L’UNITÉ"},{"$f":"IFERROR(VLOOKUP(D1119,Translation!$A:$C,3,FALSE),D1119)","v":"Nouveau-Brunswick"},{"$f":"IFERROR(VLOOKUP(E1119,Translation!$A:$C,3,FALSE),E1119)","v":743.61237476497934},{"$f":"IFERROR(VLOOKUP(F1119,Translation!$A:$C,3,FALSE),F1119)","v":"Prêts hypothécaires assurés au cours de la période selon le pointage de crédit à l’initiation (%)"},{"$f":"IFERROR(VLOOKUP(G1119,Translation!$A:$C,3,FALSE),G1119)","v":"743.6"},{"$f":"IFERROR(VLOOKUP(H1119,Translation!$A:$C,3,FALSE),H1119)","v":"Nouveau-Brunswick"}]
[13,"T1 2020","PROPRIÉTAIRES-OCCUPANTS, À L’UNITÉ","Québec",756.71639667130944,"Prêts hypothécaires assurés au cours de la période selon le pointage de crédit à l’initiation (%)","756.7","Québec",{"$f":"IFERROR(VLOOKUP(A1120,Translation!$A:$C,3,FALSE),A1120)","v":13},{"$f":"IFERROR(VLOOKUP(B1120,Translation!$A:$C,3,FALSE),B1120)","v":"T1 2020"},{"$f":"IFERROR(VLOOKUP(C1120,Translation!$A:$C,3,FALSE),C1120)","v":"PROPRIÉTAIRES-OCCUPANTS, À L’UNITÉ"},{"$f":"IFERROR(VLOOKUP(D1120,Translation!$A:$C,3,FALSE),D1120)","v":"Québec"},{"$f":"IFERROR(VLOOKUP(E1120,Translation!$A:$C,3,FALSE),E1120)","v":756.71639667130944},{"$f":"IFERROR(VLOOKUP(F1120,Translation!$A:$C,3,FALSE),F1120)","v":"Prêts hypothécaires assurés au cours de la période selon le pointage de crédit à l’initiation (%)"},{"$f":"IFERROR(VLOOKUP(G1120,Translation!$A:$C,3,FALSE),G1120)","v":"756.7"},{"$f":"IFERROR(VLOOKUP(H1120,Translation!$A:$C,3,FALSE),H1120)","v":"Québec"}]
[13,"T1 2020","PROPRIÉTAIRES-OCCUPANTS, À L’UNITÉ","Ontario",761.33396087857795,"Prêts hypothécaires assurés au cours de la période selon le pointage de crédit à l’initiation (%)","761.3","Ontario",{"$f":"IFERROR(VLOOKUP(A1121,Translation!$A:$C,3,FALSE),A1121)","v":13},{"$f":"IFERROR(VLOOKUP(B1121,Translation!$A:$C,3,FALSE),B1121)","v":"T1 2020"},{"$f":"IFERROR(VLOOKUP(C1121,Translation!$A:$C,3,FALSE),C1121)","v":"PROPRIÉTAIRES-OCCUPANTS, À L’UNITÉ"},{"$f":"IFERROR(VLOOKUP(D1121,Translation!$A:$C,3,FALSE),D1121)","v":"Ontario"},{"$f":"IFERROR(VLOOKUP(E1121,Translation!$A:$C,3,FALSE),E1121)","v":761.33396087857795},{"$f":"IFERROR(VLOOKUP(F1121,Translation!$A:$C,3,FALSE),F1121)","v":"Prêts hypothécaires assurés au cours de la période selon le pointage de crédit à l’initiation (%)"},{"$f":"IFERROR(VLOOKUP(G1121,Translation!$A:$C,3,FALSE),G1121)","v":"761.3"},{"$f":"IFERROR(VLOOKUP(H1121,Translation!$A:$C,3,FALSE),H1121)","v":"Ontario"}]
[13,"T1 2020","PROPRIÉTAIRES-OCCUPANTS, À L’UNITÉ","Manitoba",753.05673469016187,"Prêts hypothécaires assurés au cours de la période selon le pointage de crédit à l’initiation (%)","753.1","Manitoba",{"$f":"IFERROR(VLOOKUP(A1122,Translation!$A:$C,3,FALSE),A1122)","v":13},{"$f":"IFERROR(VLOOKUP(B1122,Translation!$A:$C,3,FALSE),B1122)","v":"T1 2020"},{"$f":"IFERROR(VLOOKUP(C1122,Translation!$A:$C,3,FALSE),C1122)","v":"PROPRIÉTAIRES-OCCUPANTS, À L’UNITÉ"},{"$f":"IFERROR(VLOOKUP(D1122,Translation!$A:$C,3,FALSE),D1122)","v":"Manitoba"},{"$f":"IFERROR(VLOOKUP(E1122,Translation!$A:$C,3,FALSE),E1122)","v":753.05673469016187},{"$f":"IFERROR(VLOOKUP(F1122,Translation!$A:$C,3,FALSE),F1122)","v":"Prêts hypothécaires assurés au cours de la période selon le pointage de crédit à l’initiation (%)"},{"$f":"IFERROR(VLOOKUP(G1122,Translation!$A:$C,3,FALSE),G1122)","v":"753.1"},{"$f":"IFERROR(VLOOKUP(H1122,Translation!$A:$C,3,FALSE),H1122)","v":"Manitoba"}]
[13,"T1 2020","PROPRIÉTAIRES-OCCUPANTS, À L’UNITÉ","Saskatchewan",752.29758051783676,"Prêts hypothécaires assurés au cours de la période selon le pointage de crédit à l’initiation (%)","752.3","Saskatchewan",{"$f":"IFERROR(VLOOKUP(A1123,Translation!$A:$C,3,FALSE),A1123)","v":13},{"$f":"IFERROR(VLOOKUP(B1123,Translation!$A:$C,3,FALSE),B1123)","v":"T1 2020"},{"$f":"IFERROR(VLOOKUP(C1123,Translation!$A:$C,3,FALSE),C1123)","v":"PROPRIÉTAIRES-OCCUPANTS, À L’UNITÉ"},{"$f":"IFERROR(VLOOKUP(D1123,Translation!$A:$C,3,FALSE),D1123)","v":"Saskatchewan"},{"$f":"IFERROR(VLOOKUP(E1123,Translation!$A:$C,3,FALSE),E1123)","v":752.29758051783676},{"$f":"IFERROR(VLOOKUP(F1123,Translation!$A:$C,3,FALSE),F1123)","v":"Prêts hypothécaires assurés au cours de la période selon le pointage de crédit à l’initiation (%)"},{"$f":"IFERROR(VLOOKUP(G1123,Translation!$A:$C,3,FALSE),G1123)","v":"752.3"},{"$f":"IFERROR(VLOOKUP(H1123,Translation!$A:$C,3,FALSE),H1123)","v":"Saskatchewan"}]
[13,"T1 2020","PROPRIÉTAIRES-OCCUPANTS, À L’UNITÉ","Alberta",749.49107519756501,"Prêts hypothécaires assurés au cours de la période selon le pointage de crédit à l’initiation (%)","749.5","Alberta",{"$f":"IFERROR(VLOOKUP(A1124,Translation!$A:$C,3,FALSE),A1124)","v":13},{"$f":"IFERROR(VLOOKUP(B1124,Translation!$A:$C,3,FALSE),B1124)","v":"T1 2020"},{"$f":"IFERROR(VLOOKUP(C1124,Translation!$A:$C,3,FALSE),C1124)","v":"PROPRIÉTAIRES-OCCUPANTS, À L’UNITÉ"},{"$f":"IFERROR(VLOOKUP(D1124,Translation!$A:$C,3,FALSE),D1124)","v":"Alberta"},{"$f":"IFERROR(VLOOKUP(E1124,Translation!$A:$C,3,FALSE),E1124)","v":749.49107519756501},{"$f":"IFERROR(VLOOKUP(F1124,Translation!$A:$C,3,FALSE),F1124)","v":"Prêts hypothécaires assurés au cours de la période selon le pointage de crédit à l’initiation (%)"},{"$f":"IFERROR(VLOOKUP(G1124,Translation!$A:$C,3,FALSE),G1124)","v":"749.5"},{"$f":"IFERROR(VLOOKUP(H1124,Translation!$A:$C,3,FALSE),H1124)","v":"Alberta"}]
[13,"T1 2020","PROPRIÉTAIRES-OCCUPANTS, À L’UNITÉ","Colombie-Britannique",756.79361502831648,"Prêts hypothécaires assurés au cours de la période selon le pointage de crédit à l’initiation (%)","756.8","Colombie-Britannique",{"$f":"IFERROR(VLOOKUP(A1125,Translation!$A:$C,3,FALSE),A1125)","v":13},{"$f":"IFERROR(VLOOKUP(B1125,Translation!$A:$C,3,FALSE),B1125)","v":"T1 2020"},{"$f":"IFERROR(VLOOKUP(C1125,Translation!$A:$C,3,FALSE),C1125)","v":"PROPRIÉTAIRES-OCCUPANTS, À L’UNITÉ"},{"$f":"IFERROR(VLOOKUP(D1125,Translation!$A:$C,3,FALSE),D1125)","v":"Colombie-Britannique"},{"$f":"IFERROR(VLOOKUP(E1125,Translation!$A:$C,3,FALSE),E1125)","v":756.79361502831648},{"$f":"IFERROR(VLOOKUP(F1125,Translation!$A:$C,3,FALSE),F1125)","v":"Prêts hypothécaires assurés au cours de la période selon le pointage de crédit à l’initiation (%)"},{"$f":"IFERROR(VLOOKUP(G1125,Translation!$A:$C,3,FALSE),G1125)","v":"756.8"},{"$f":"IFERROR(VLOOKUP(H1125,Translation!$A:$C,3,FALSE),H1125)","v":"Colombie-Britannique"}]
[13,"T1 2020","PROPRIÉTAIRES-OCCUPANTS, À L’UNITÉ","Territoires",759.96658272370496,"Prêts hypothécaires assurés au cours de la période selon le pointage de crédit à l’initiation (%)","760.0","Territoires",{"$f":"IFERROR(VLOOKUP(A1126,Translation!$A:$C,3,FALSE),A1126)","v":13},{"$f":"IFERROR(VLOOKUP(B1126,Translation!$A:$C,3,FALSE),B1126)","v":"T1 2020"},{"$f":"IFERROR(VLOOKUP(C1126,Translation!$A:$C,3,FALSE),C1126)","v":"PROPRIÉTAIRES-OCCUPANTS, À L’UNITÉ"},{"$f":"IFERROR(VLOOKUP(D1126,Translation!$A:$C,3,FALSE),D1126)","v":"Territoires"},{"$f":"IFERROR(VLOOKUP(E1126,Translation!$A:$C,3,FALSE),E1126)","v":759.96658272370496},{"$f":"IFERROR(VLOOKUP(F1126,Translation!$A:$C,3,FALSE),F1126)","v":"Prêts hypothécaires assurés au cours de la période selon le pointage de crédit à l’initiation (%)"},{"$f":"IFERROR(VLOOKUP(G1126,Translation!$A:$C,3,FALSE),G1126)","v":"760.0"},{"$f":"IFERROR(VLOOKUP(H1126,Translation!$A:$C,3,FALSE),H1126)","v":"Territoires"}]
[13,"Cumul 2019","PROPRIÉTAIRES-OCCUPANTS, À L’UNITÉ","Terre-Neuve-et-Labrador",750.21550673110971,"Prêts hypothécaires assurés au cours de la période selon le pointage de crédit à l’initiation (%)","750.2","Terre-Neuve-et-Labrador",{"$f":"IFERROR(VLOOKUP(A1127,Translation!$A:$C,3,FALSE),A1127)","v":13},{"$f":"IFERROR(VLOOKUP(B1127,Translation!$A:$C,3,FALSE),B1127)","v":"Cumul 2019"},{"$f":"IFERROR(VLOOKUP(C1127,Translation!$A:$C,3,FALSE),C1127)","v":"PROPRIÉTAIRES-OCCUPANTS, À L’UNITÉ"},{"$f":"IFERROR(VLOOKUP(D1127,Translation!$A:$C,3,FALSE),D1127)","v":"Terre-Neuve-et-Labrador"},{"$f":"IFERROR(VLOOKUP(E1127,Translation!$A:$C,3,FALSE),E1127)","v":750.21550673110971},{"$f":"IFERROR(VLOOKUP(F1127,Translation!$A:$C,3,FALSE),F1127)","v":"Prêts hypothécaires assurés au cours de la période selon le pointage de crédit à l’initiation (%)"},{"$f":"IFERROR(VLOOKUP(G1127,Translation!$A:$C,3,FALSE),G1127)","v":"750.2"},{"$f":"IFERROR(VLOOKUP(H1127,Translation!$A:$C,3,FALSE),H1127)","v":"Terre-Neuve-et-Labrador"}]
[13,"Cumul 2019","PROPRIÉTAIRES-OCCUPANTS, À L’UNITÉ","Île-du-Prince-Édouard",761.54302377468196,"Prêts hypothécaires assurés au cours de la période selon le pointage de crédit à l’initiation (%)","761.5","Île-du-Prince-Édouard",{"$f":"IFERROR(VLOOKUP(A1128,Translation!$A:$C,3,FALSE),A1128)","v":13},{"$f":"IFERROR(VLOOKUP(B1128,Translation!$A:$C,3,FALSE),B1128)","v":"Cumul 2019"},{"$f":"IFERROR(VLOOKUP(C1128,Translation!$A:$C,3,FALSE),C1128)","v":"PROPRIÉTAIRES-OCCUPANTS, À L’UNITÉ"},{"$f":"IFERROR(VLOOKUP(D1128,Translation!$A:$C,3,FALSE),D1128)","v":"Île-du-Prince-Édouard"},{"$f":"IFERROR(VLOOKUP(E1128,Translation!$A:$C,3,FALSE),E1128)","v":761.54302377468196},{"$f":"IFERROR(VLOOKUP(F1128,Translation!$A:$C,3,FALSE),F1128)","v":"Prêts hypothécaires assurés au cours de la période selon le pointage de crédit à l’initiation (%)"},{"$f":"IFERROR(VLOOKUP(G1128,Translation!$A:$C,3,FALSE),G1128)","v":"761.5"},{"$f":"IFERROR(VLOOKUP(H1128,Translation!$A:$C,3,FALSE),H1128)","v":"Île-du-Prince-Édouard"}]
[13,"Cumul 2019","PROPRIÉTAIRES-OCCUPANTS, À L’UNITÉ","Nouvelle-Écosse",740.35321113506416,"Prêts hypothécaires assurés au cours de la période selon le pointage de crédit à l’initiation (%)","740.4","Nouvelle-Écosse",{"$f":"IFERROR(VLOOKUP(A1129,Translation!$A:$C,3,FALSE),A1129)","v":13},{"$f":"IFERROR(VLOOKUP(B1129,Translation!$A:$C,3,FALSE),B1129)","v":"Cumul 2019"},{"$f":"IFERROR(VLOOKUP(C1129,Translation!$A:$C,3,FALSE),C1129)","v":"PROPRIÉTAIRES-OCCUPANTS, À L’UNITÉ"},{"$f":"IFERROR(VLOOKUP(D1129,Translation!$A:$C,3,FALSE),D1129)","v":"Nouvelle-Écosse"},{"$f":"IFERROR(VLOOKUP(E1129,Translation!$A:$C,3,FALSE),E1129)","v":740.35321113506416},{"$f":"IFERROR(VLOOKUP(F1129,Translation!$A:$C,3,FALSE),F1129)","v":"Prêts hypothécaires assurés au cours de la période selon le pointage de crédit à l’initiation (%)"},{"$f":"IFERROR(VLOOKUP(G1129,Translation!$A:$C,3,FALSE),G1129)","v":"740.4"},{"$f":"IFERROR(VLOOKUP(H1129,Translation!$A:$C,3,FALSE),H1129)","v":"Nouvelle-Écosse"}]
[13,"Cumul 2019","PROPRIÉTAIRES-OCCUPANTS, À L’UNITÉ","Nouveau-Brunswick",737.57539188782687,"Prêts hypothécaires assurés au cours de la période selon le pointage de crédit à l’initiation (%)","737.6","Nouveau-Brunswick",{"$f":"IFERROR(VLOOKUP(A1130,Translation!$A:$C,3,FALSE),A1130)","v":13},{"$f":"IFERROR(VLOOKUP(B1130,Translation!$A:$C,3,FALSE),B1130)","v":"Cumul 2019"},{"$f":"IFERROR(VLOOKUP(C1130,Translation!$A:$C,3,FALSE),C1130)","v":"PROPRIÉTAIRES-OCCUPANTS, À L’UNITÉ"},{"$f":"IFERROR(VLOOKUP(D1130,Translation!$A:$C,3,FALSE),D1130)","v":"Nouveau-Brunswick"},{"$f":"IFERROR(VLOOKUP(E1130,Translation!$A:$C,3,FALSE),E1130)","v":737.57539188782687},{"$f":"IFERROR(VLOOKUP(F1130,Translation!$A:$C,3,FALSE),F1130)","v":"Prêts hypothécaires assurés au cours de la période selon le pointage de crédit à l’initiation (%)"},{"$f":"IFERROR(VLOOKUP(G1130,Translation!$A:$C,3,FALSE),G1130)","v":"737.6"},{"$f":"IFERROR(VLOOKUP(H1130,Translation!$A:$C,3,FALSE),H1130)","v":"Nouveau-Brunswick"}]
[13,"Cumul 2019","PROPRIÉTAIRES-OCCUPANTS, À L’UNITÉ","Québec",755.96288566957946,"Prêts hypothécaires assurés au cours de la période selon le pointage de crédit à l’initiation (%)","756.0","Québec",{"$f":"IFERROR(VLOOKUP(A1131,Translation!$A:$C,3,FALSE),A1131)","v":13},{"$f":"IFERROR(VLOOKUP(B1131,Translation!$A:$C,3,FALSE),B1131)","v":"Cumul 2019"},{"$f":"IFERROR(VLOOKUP(C1131,Translation!$A:$C,3,FALSE),C1131)","v":"PROPRIÉTAIRES-OCCUPANTS, À L’UNITÉ"},{"$f":"IFERROR(VLOOKUP(D1131,Translation!$A:$C,3,FALSE),D1131)","v":"Québec"},{"$f":"IFERROR(VLOOKUP(E1131,Translation!$A:$C,3,FALSE),E1131)","v":755.96288566957946},{"$f":"IFERROR(VLOOKUP(F1131,Translation!$A:$C,3,FALSE),F1131)","v":"Prêts hypothécaires assurés au cours de la période selon le pointage de crédit à l’initiation (%)"},{"$f":"IFERROR(VLOOKUP(G1131,Translation!$A:$C,3,FALSE),G1131)","v":"756.0"},{"$f":"IFERROR(VLOOKUP(H1131,Translation!$A:$C,3,FALSE),H1131)","v":"Québec"}]
[13,"Cumul 2019","PROPRIÉTAIRES-OCCUPANTS, À L’UNITÉ","Ontario",758.68180737175237,"Prêts hypothécaires assurés au cours de la période selon le pointage de crédit à l’initiation (%)","758.7","Ontario",{"$f":"IFERROR(VLOOKUP(A1132,Translation!$A:$C,3,FALSE),A1132)","v":13},{"$f":"IFERROR(VLOOKUP(B1132,Translation!$A:$C,3,FALSE),B1132)","v":"Cumul 2019"},{"$f":"IFERROR(VLOOKUP(C1132,Translation!$A:$C,3,FALSE),C1132)","v":"PROPRIÉTAIRES-OCCUPANTS, À L’UNITÉ"},{"$f":"IFERROR(VLOOKUP(D1132,Translation!$A:$C,3,FALSE),D1132)","v":"Ontario"},{"$f":"IFERROR(VLOOKUP(E1132,Translation!$A:$C,3,FALSE),E1132)","v":758.68180737175237},{"$f":"IFERROR(VLOOKUP(F1132,Translation!$A:$C,3,FALSE),F1132)","v":"Prêts hypothécaires assurés au cours de la période selon le pointage de crédit à l’initiation (%)"},{"$f":"IFERROR(VLOOKUP(G1132,Translation!$A:$C,3,FALSE),G1132)","v":"758.7"},{"$f":"IFERROR(VLOOKUP(H1132,Translation!$A:$C,3,FALSE),H1132)","v":"Ontario"}]
[13,"Cumul 2019","PROPRIÉTAIRES-OCCUPANTS, À L’UNITÉ","Manitoba",752.72506517544389,"Prêts hypothécaires assurés au cours de la période selon le pointage de crédit à l’initiation (%)","752.7","Manitoba",{"$f":"IFERROR(VLOOKUP(A1133,Translation!$A:$C,3,FALSE),A1133)","v":13},{"$f":"IFERROR(VLOOKUP(B1133,Translation!$A:$C,3,FALSE),B1133)","v":"Cumul 2019"},{"$f":"IFERROR(VLOOKUP(C1133,Translation!$A:$C,3,FALSE),C1133)","v":"PROPRIÉTAIRES-OCCUPANTS, À L’UNITÉ"},{"$f":"IFERROR(VLOOKUP(D1133,Translation!$A:$C,3,FALSE),D1133)","v":"Manitoba"},{"$f":"IFERROR(VLOOKUP(E1133,Translation!$A:$C,3,FALSE),E1133)","v":752.72506517544389},{"$f":"IFERROR(VLOOKUP(F1133,Translation!$A:$C,3,FALSE),F1133)","v":"Prêts hypothécaires assurés au cours de la période selon le pointage de crédit à l’initiation (%)"},{"$f":"IFERROR(VLOOKUP(G1133,Translation!$A:$C,3,FALSE),G1133)","v":"752.7"},{"$f":"IFERROR(VLOOKUP(H1133,Translation!$A:$C,3,FALSE),H1133)","v":"Manitoba"}]
[13,"Cumul 2019","PROPRIÉTAIRES-OCCUPANTS, À L’UNITÉ","Saskatchewan",753.05274914141296,"Prêts hypothécaires assurés au cours de la période selon le pointage de crédit à l’initiation (%)","753.1","Saskatchewan",{"$f":"IFERROR(VLOOKUP(A1134,Translation!$A:$C,3,FALSE),A1134)","v":13},{"$f":"IFERROR(VLOOKUP(B1134,Translation!$A:$C,3,FALSE),B1134)","v":"Cumul 2019"},{"$f":"IFERROR(VLOOKUP(C1134,Translation!$A:$C,3,FALSE),C1134)","v":"PROPRIÉTAIRES-OCCUPANTS, À L’UNITÉ"},{"$f":"IFERROR(VLOOKUP(D1134,Translation!$A:$C,3,FALSE),D1134)","v":"Saskatchewan"},{"$f":"IFERROR(VLOOKUP(E1134,Translation!$A:$C,3,FALSE),E1134)","v":753.05274914141296},{"$f":"IFERROR(VLOOKUP(F1134,Translation!$A:$C,3,FALSE),F1134)","v":"Prêts hypothécaires assurés au cours de la période selon le pointage de crédit à l’initiation (%)"},{"$f":"IFERROR(VLOOKUP(G1134,Translation!$A:$C,3,FALSE),G1134)","v":"753.1"},{"$f":"IFERROR(VLOOKUP(H1134,Translation!$A:$C,3,FALSE),H1134)","v":"Saskatchewan"}]
[13,"Cumul 2019","PROPRIÉTAIRES-OCCUPANTS, À L’UNITÉ","Alberta",747.10773154062019,"Prêts hypothécaires assurés au cours de la période selon le pointage de crédit à l’initiation (%)","747.1","Alberta",{"$f":"IFERROR(VLOOKUP(A1135,Translation!$A:$C,3,FALSE),A1135)","v":13},{"$f":"IFERROR(VLOOKUP(B1135,Translation!$A:$C,3,FALSE),B1135)","v":"Cumul 2019"},{"$f":"IFERROR(VLOOKUP(C1135,Translation!$A:$C,3,FALSE),C1135)","v":"PROPRIÉTAIRES-OCCUPANTS, À L’UNITÉ"},{"$f":"IFERROR(VLOOKUP(D1135,Translation!$A:$C,3,FALSE),D1135)","v":"Alberta"},{"$f":"IFERROR(VLOOKUP(E1135,Translation!$A:$C,3,FALSE),E1135)","v":747.10773154062019},{"$f":"IFERROR(VLOOKUP(F1135,Translation!$A:$C,3,FALSE),F1135)","v":"Prêts hypothécaires assurés au cours de la période selon le pointage de crédit à l’initiation (%)"},{"$f":"IFERROR(VLOOKUP(G1135,Translation!$A:$C,3,FALSE),G1135)","v":"747.1"},{"$f":"IFERROR(VLOOKUP(H1135,Translation!$A:$C,3,FALSE),H1135)","v":"Alberta"}]
[13,"Cumul 2019","PROPRIÉTAIRES-OCCUPANTS, À L’UNITÉ","Colombie-Britannique",758.38641620528517,"Prêts hypothécaires assurés au cours de la période selon le pointage de crédit à l’initiation (%)","758.4","Colombie-Britannique",{"$f":"IFERROR(VLOOKUP(A1136,Translation!$A:$C,3,FALSE),A1136)","v":13},{"$f":"IFERROR(VLOOKUP(B1136,Translation!$A:$C,3,FALSE),B1136)","v":"Cumul 2019"},{"$f":"IFERROR(VLOOKUP(C1136,Translation!$A:$C,3,FALSE),C1136)","v":"PROPRIÉTAIRES-OCCUPANTS, À L’UNITÉ"},{"$f":"IFERROR(VLOOKUP(D1136,Translation!$A:$C,3,FALSE),D1136)","v":"Colombie-Britannique"},{"$f":"IFERROR(VLOOKUP(E1136,Translation!$A:$C,3,FALSE),E1136)","v":758.38641620528517},{"$f":"IFERROR(VLOOKUP(F1136,Translation!$A:$C,3,FALSE),F1136)","v":"Prêts hypothécaires assurés au cours de la période selon le pointage de crédit à l’initiation (%)"},{"$f":"IFERROR(VLOOKUP(G1136,Translation!$A:$C,3,FALSE),G1136)","v":"758.4"},{"$f":"IFERROR(VLOOKUP(H1136,Translation!$A:$C,3,FALSE),H1136)","v":"Colombie-Britannique"}]
[13,"Cumul 2019","PROPRIÉTAIRES-OCCUPANTS, À L’UNITÉ","Territoires",748.17265756468294,"Prêts hypothécaires assurés au cours de la période selon le pointage de crédit à l’initiation (%)","748.2","Territoires",{"$f":"IFERROR(VLOOKUP(A1137,Translation!$A:$C,3,FALSE),A1137)","v":13},{"$f":"IFERROR(VLOOKUP(B1137,Translation!$A:$C,3,FALSE),B1137)","v":"Cumul 2019"},{"$f":"IFERROR(VLOOKUP(C1137,Translation!$A:$C,3,FALSE),C1137)","v":"PROPRIÉTAIRES-OCCUPANTS, À L’UNITÉ"},{"$f":"IFERROR(VLOOKUP(D1137,Translation!$A:$C,3,FALSE),D1137)","v":"Territoires"},{"$f":"IFERROR(VLOOKUP(E1137,Translation!$A:$C,3,FALSE),E1137)","v":748.17265756468294},{"$f":"IFERROR(VLOOKUP(F1137,Translation!$A:$C,3,FALSE),F1137)","v":"Prêts hypothécaires assurés au cours de la période selon le pointage de crédit à l’initiation (%)"},{"$f":"IFERROR(VLOOKUP(G1137,Translation!$A:$C,3,FALSE),G1137)","v":"748.2"},{"$f":"IFERROR(VLOOKUP(H1137,Translation!$A:$C,3,FALSE),H1137)","v":"Territoires"}]
[13,"Cumul 2020","PROPRIÉTAIRES-OCCUPANTS, À L’UNITÉ","Terre-Neuve-et-Labrador",749.73529067198979,"Prêts hypothécaires assurés au cours de la période selon le pointage de crédit à l’initiation (%)","749.7","Terre-Neuve-et-Labrador",{"$f":"IFERROR(VLOOKUP(A1138,Translation!$A:$C,3,FALSE),A1138)","v":13},{"$f":"IFERROR(VLOOKUP(B1138,Translation!$A:$C,3,FALSE),B1138)","v":"Cumul 2020"},{"$f":"IFERROR(VLOOKUP(C1138,Translation!$A:$C,3,FALSE),C1138)","v":"PROPRIÉTAIRES-OCCUPANTS, À L’UNITÉ"},{"$f":"IFERROR(VLOOKUP(D1138,Translation!$A:$C,3,FALSE),D1138)","v":"Terre-Neuve-et-Labrador"},{"$f":"IFERROR(VLOOKUP(E1138,Translation!$A:$C,3,FALSE),E1138)","v":749.73529067198979},{"$f":"IFERROR(VLOOKUP(F1138,Translation!$A:$C,3,FALSE),F1138)","v":"Prêts hypothécaires assurés au cours de la période selon le pointage de crédit à l’initiation (%)"},{"$f":"IFERROR(VLOOKUP(G1138,Translation!$A:$C,3,FALSE),G1138)","v":"749.7"},{"$f":"IFERROR(VLOOKUP(H1138,Translation!$A:$C,3,FALSE),H1138)","v":"Terre-Neuve-et-Labrador"}]
[13,"Cumul 2020","PROPRIÉTAIRES-OCCUPANTS, À L’UNITÉ","Île-du-Prince-Édouard",751.27102548337484,"Prêts hypothécaires assurés au cours de la période selon le pointage de crédit à l’initiation (%)","751.3","Île-du-Prince-Édouard",{"$f":"IFERROR(VLOOKUP(A1139,Translation!$A:$C,3,FALSE),A1139)","v":13},{"$f":"IFERROR(VLOOKUP(B1139,Translation!$A:$C,3,FALSE),B1139)","v":"Cumul 2020"},{"$f":"IFERROR(VLOOKUP(C1139,Translation!$A:$C,3,FALSE),C1139)","v":"PROPRIÉTAIRES-OCCUPANTS, À L’UNITÉ"},{"$f":"IFERROR(VLOOKUP(D1139,Translation!$A:$C,3,FALSE),D1139)","v":"Île-du-Prince-Édouard"},{"$f":"IFERROR(VLOOKUP(E1139,Translation!$A:$C,3,FALSE),E1139)","v":751.27102548337484},{"$f":"IFERROR(VLOOKUP(F1139,Translation!$A:$C,3,FALSE),F1139)","v":"Prêts hypothécaires assurés au cours de la période selon le pointage de crédit à l’initiation (%)"},{"$f":"IFERROR(VLOOKUP(G1139,Translation!$A:$C,3,FALSE),G1139)","v":"751.3"},{"$f":"IFERROR(VLOOKUP(H1139,Translation!$A:$C,3,FALSE),H1139)","v":"Île-du-Prince-Édouard"}]
[13,"Cumul 2020","PROPRIÉTAIRES-OCCUPANTS, À L’UNITÉ","Nouvelle-Écosse",749.17417476986532,"Prêts hypothécaires assurés au cours de la période selon le pointage de crédit à l’initiation (%)","749.2","Nouvelle-Écosse",{"$f":"IFERROR(VLOOKUP(A1140,Translation!$A:$C,3,FALSE),A1140)","v":13},{"$f":"IFERROR(VLOOKUP(B1140,Translation!$A:$C,3,FALSE),B1140)","v":"Cumul 2020"},{"$f":"IFERROR(VLOOKUP(C1140,Translation!$A:$C,3,FALSE),C1140)","v":"PROPRIÉTAIRES-OCCUPANTS, À L’UNITÉ"},{"$f":"IFERROR(VLOOKUP(D1140,Translation!$A:$C,3,FALSE),D1140)","v":"Nouvelle-Écosse"},{"$f":"IFERROR(VLOOKUP(E1140,Translation!$A:$C,3,FALSE),E1140)","v":749.17417476986532},{"$f":"IFERROR(VLOOKUP(F1140,Translation!$A:$C,3,FALSE),F1140)","v":"Prêts hypothécaires assurés au cours de la période selon le pointage de crédit à l’initiation (%)"},{"$f":"IFERROR(VLOOKUP(G1140,Translation!$A:$C,3,FALSE),G1140)","v":"749.2"},{"$f":"IFERROR(VLOOKUP(H1140,Translation!$A:$C,3,FALSE),H1140)","v":"Nouvelle-Écosse"}]
[13,"Cumul 2020","PROPRIÉTAIRES-OCCUPANTS, À L’UNITÉ","Nouveau-Brunswick",743.61237476497934,"Prêts hypothécaires assurés au cours de la période selon le pointage de crédit à l’initiation (%)","743.6","Nouveau-Brunswick",{"$f":"IFERROR(VLOOKUP(A1141,Translation!$A:$C,3,FALSE),A1141)","v":13},{"$f":"IFERROR(VLOOKUP(B1141,Translation!$A:$C,3,FALSE),B1141)","v":"Cumul 2020"},{"$f":"IFERROR(VLOOKUP(C1141,Translation!$A:$C,3,FALSE),C1141)","v":"PROPRIÉTAIRES-OCCUPANTS, À L’UNITÉ"},{"$f":"IFERROR(VLOOKUP(D1141,Translation!$A:$C,3,FALSE),D1141)","v":"Nouveau-Brunswick"},{"$f":"IFERROR(VLOOKUP(E1141,Translation!$A:$C,3,FALSE),E1141)","v":743.61237476497934},{"$f":"IFERROR(VLOOKUP(F1141,Translation!$A:$C,3,FALSE),F1141)","v":"Prêts hypothécaires assurés au cours de la période selon le pointage de crédit à l’initiation (%)"},{"$f":"IFERROR(VLOOKUP(G1141,Translation!$A:$C,3,FALSE),G1141)","v":"743.6"},{"$f":"IFERROR(VLOOKUP(H1141,Translation!$A:$C,3,FALSE),H1141)","v":"Nouveau-Brunswick"}]
[13,"Cumul 2020","PROPRIÉTAIRES-OCCUPANTS, À L’UNITÉ","Québec",756.71639667130944,"Prêts hypothécaires assurés au cours de la période selon le pointage de crédit à l’initiation (%)","756.7","Québec",{"$f":"IFERROR(VLOOKUP(A1142,Translation!$A:$C,3,FALSE),A1142)","v":13},{"$f":"IFERROR(VLOOKUP(B1142,Translation!$A:$C,3,FALSE),B1142)","v":"Cumul 2020"},{"$f":"IFERROR(VLOOKUP(C1142,Translation!$A:$C,3,FALSE),C1142)","v":"PROPRIÉTAIRES-OCCUPANTS, À L’UNITÉ"},{"$f":"IFERROR(VLOOKUP(D1142,Translation!$A:$C,3,FALSE),D1142)","v":"Québec"},{"$f":"IFERROR(VLOOKUP(E1142,Translation!$A:$C,3,FALSE),E1142)","v":756.71639667130944},{"$f":"IFERROR(VLOOKUP(F1142,Translation!$A:$C,3,FALSE),F1142)","v":"Prêts hypothécaires assurés au cours de la période selon le pointage de crédit à l’initiation (%)"},{"$f":"IFERROR(VLOOKUP(G1142,Translation!$A:$C,3,FALSE),G1142)","v":"756.7"},{"$f":"IFERROR(VLOOKUP(H1142,Translation!$A:$C,3,FALSE),H1142)","v":"Québec"}]
[13,"Cumul 2020","PROPRIÉTAIRES-OCCUPANTS, À L’UNITÉ","Ontario",761.33396087857795,"Prêts hypothécaires assurés au cours de la période selon le pointage de crédit à l’initiation (%)","761.3","Ontario",{"$f":"IFERROR(VLOOKUP(A1143,Translation!$A:$C,3,FALSE),A1143)","v":13},{"$f":"IFERROR(VLOOKUP(B1143,Translation!$A:$C,3,FALSE),B1143)","v":"Cumul 2020"},{"$f":"IFERROR(VLOOKUP(C1143,Translation!$A:$C,3,FALSE),C1143)","v":"PROPRIÉTAIRES-OCCUPANTS, À L’UNITÉ"},{"$f":"IFERROR(VLOOKUP(D1143,Translation!$A:$C,3,FALSE),D1143)","v":"Ontario"},{"$f":"IFERROR(VLOOKUP(E1143,Translation!$A:$C,3,FALSE),E1143)","v":761.33396087857795},{"$f":"IFERROR(VLOOKUP(F1143,Translation!$A:$C,3,FALSE),F1143)","v":"Prêts hypothécaires assurés au cours de la période selon le pointage de crédit à l’initiation (%)"},{"$f":"IFERROR(VLOOKUP(G1143,Translation!$A:$C,3,FALSE),G1143)","v":"761.3"},{"$f":"IFERROR(VLOOKUP(H1143,Translation!$A:$C,3,FALSE),H1143)","v":"Ontario"}]
[13,"Cumul 2020","PROPRIÉTAIRES-OCCUPANTS, À L’UNITÉ","Manitoba",753.05673469016187,"Prêts hypothécaires assurés au cours de la période selon le pointage de crédit à l’initiation (%)","753.1","Manitoba",{"$f":"IFERROR(VLOOKUP(A1144,Translation!$A:$C,3,FALSE),A1144)","v":13},{"$f":"IFERROR(VLOOKUP(B1144,Translation!$A:$C,3,FALSE),B1144)","v":"Cumul 2020"},{"$f":"IFERROR(VLOOKUP(C1144,Translation!$A:$C,3,FALSE),C1144)","v":"PROPRIÉTAIRES-OCCUPANTS, À L’UNITÉ"},{"$f":"IFERROR(VLOOKUP(D1144,Translation!$A:$C,3,FALSE),D1144)","v":"Manitoba"},{"$f":"IFERROR(VLOOKUP(E1144,Translation!$A:$C,3,FALSE),E1144)","v":753.05673469016187},{"$f":"IFERROR(VLOOKUP(F1144,Translation!$A:$C,3,FALSE),F1144)","v":"Prêts hypothécaires assurés au cours de la période selon le pointage de crédit à l’initiation (%)"},{"$f":"IFERROR(VLOOKUP(G1144,Translation!$A:$C,3,FALSE),G1144)","v":"753.1"},{"$f":"IFERROR(VLOOKUP(H1144,Translation!$A:$C,3,FALSE),H1144)","v":"Manitoba"}]
[13,"Cumul 2020","PROPRIÉTAIRES-OCCUPANTS, À L’UNITÉ","Saskatchewan",752.29758051783676,"Prêts hypothécaires assurés au cours de la période selon le pointage de crédit à l’initiation (%)","752.3","Saskatchewan",{"$f":"IFERROR(VLOOKUP(A1145,Translation!$A:$C,3,FALSE),A1145)","v":13},{"$f":"IFERROR(VLOOKUP(B1145,Translation!$A:$C,3,FALSE),B1145)","v":"Cumul 2020"},{"$f":"IFERROR(VLOOKUP(C1145,Translation!$A:$C,3,FALSE),C1145)","v":"PROPRIÉTAIRES-OCCUPANTS, À L’UNITÉ"},{"$f":"IFERROR(VLOOKUP(D1145,Translation!$A:$C,3,FALSE),D1145)","v":"Saskatchewan"},{"$f":"IFERROR(VLOOKUP(E1145,Translation!$A:$C,3,FALSE),E1145)","v":752.29758051783676},{"$f":"IFERROR(VLOOKUP(F1145,Translation!$A:$C,3,FALSE),F1145)","v":"Prêts hypothécaires assurés au cours de la période selon le pointage de crédit à l’initiation (%)"},{"$f":"IFERROR(VLOOKUP(G1145,Translation!$A:$C,3,FALSE),G1145)","v":"752.3"},{"$f":"IFERROR(VLOOKUP(H1145,Translation!$A:$C,3,FALSE),H1145)","v":"Saskatchewan"}]
[13,"Cumul 2020","PROPRIÉTAIRES-OCCUPANTS, À L’UNITÉ","Alberta",749.49107519756501,"Prêts hypothécaires assurés au cours de la période selon le pointage de crédit à l’initiation (%)","749.5","Alberta",{"$f":"IFERROR(VLOOKUP(A1146,Translation!$A:$C,3,FALSE),A1146)","v":13},{"$f":"IFERROR(VLOOKUP(B1146,Translation!$A:$C,3,FALSE),B1146)","v":"Cumul 2020"},{"$f":"IFERROR(VLOOKUP(C1146,Translation!$A:$C,3,FALSE),C1146)","v":"PROPRIÉTAIRES-OCCUPANTS, À L’UNITÉ"},{"$f":"IFERROR(VLOOKUP(D1146,Translation!$A:$C,3,FALSE),D1146)","v":"Alberta"},{"$f":"IFERROR(VLOOKUP(E1146,Translation!$A:$C,3,FALSE),E1146)","v":749.49107519756501},{"$f":"IFERROR(VLOOKUP(F1146,Translation!$A:$C,3,FALSE),F1146)","v":"Prêts hypothécaires assurés au cours de la période selon le pointage de crédit à l’initiation (%)"},{"$f":"IFERROR(VLOOKUP(G1146,Translation!$A:$C,3,FALSE),G1146)","v":"749.5"},{"$f":"IFERROR(VLOOKUP(H1146,Translation!$A:$C,3,FALSE),H1146)","v":"Alberta"}]
[13,"Cumul 2020","PROPRIÉTAIRES-OCCUPANTS, À L’UNITÉ","Colombie-Britannique",756.79361502831648,"Prêts hypothécaires assurés au cours de la période selon le pointage de crédit à l’initiation (%)","756.8","Colombie-Britannique",{"$f":"IFERROR(VLOOKUP(A1147,Translation!$A:$C,3,FALSE),A1147)","v":13},{"$f":"IFERROR(VLOOKUP(B1147,Translation!$A:$C,3,FALSE),B1147)","v":"Cumul 2020"},{"$f":"IFERROR(VLOOKUP(C1147,Translation!$A:$C,3,FALSE),C1147)","v":"PROPRIÉTAIRES-OCCUPANTS, À L’UNITÉ"},{"$f":"IFERROR(VLOOKUP(D1147,Translation!$A:$C,3,FALSE),D1147)","v":"Colombie-Britannique"},{"$f":"IFERROR(VLOOKUP(E1147,Translation!$A:$C,3,FALSE),E1147)","v":756.79361502831648},{"$f":"IFERROR(VLOOKUP(F1147,Translation!$A:$C,3,FALSE),F1147)","v":"Prêts hypothécaires assurés au cours de la période selon le pointage de crédit à l’initiation (%)"},{"$f":"IFERROR(VLOOKUP(G1147,Translation!$A:$C,3,FALSE),G1147)","v":"756.8"},{"$f":"IFERROR(VLOOKUP(H1147,Translation!$A:$C,3,FALSE),H1147)","v":"Colombie-Britannique"}]
[13,"Cumul 2020","PROPRIÉTAIRES-OCCUPANTS, À L’UNITÉ","Territoires",759.96658272370496,"Prêts hypothécaires assurés au cours de la période selon le pointage de crédit à l’initiation (%)","760.0","Territoires",{"$f":"IFERROR(VLOOKUP(A1148,Translation!$A:$C,3,FALSE),A1148)","v":13},{"$f":"IFERROR(VLOOKUP(B1148,Translation!$A:$C,3,FALSE),B1148)","v":"Cumul 2020"},{"$f":"IFERROR(VLOOKUP(C1148,Translation!$A:$C,3,FALSE),C1148)","v":"PROPRIÉTAIRES-OCCUPANTS, À L’UNITÉ"},{"$f":"IFERROR(VLOOKUP(D1148,Translation!$A:$C,3,FALSE),D1148)","v":"Territoires"},{"$f":"IFERROR(VLOOKUP(E1148,Translation!$A:$C,3,FALSE),E1148)","v":759.96658272370496},{"$f":"IFERROR(VLOOKUP(F1148,Translation!$A:$C,3,FALSE),F1148)","v":"Prêts hypothécaires assurés au cours de la période selon le pointage de crédit à l’initiation (%)"},{"$f":"IFERROR(VLOOKUP(G1148,Translation!$A:$C,3,FALSE),G1148)","v":"760.0"},{"$f":"IFERROR(VLOOKUP(H1148,Translation!$A:$C,3,FALSE),H1148)","v":"Territoires"}]
[13,"T1 2020","ASSURANCE DE PORTEFEUILLE","Aucun pointage de crédit",1.8608727110041499E-2,"Prêts hypothécaires assurés au cours de la période selon le pointage de crédit à l’initiation (%)","0.0","Aucun pointage de crédit",{"$f":"IFERROR(VLOOKUP(A1149,Translation!$A:$C,3,FALSE),A1149)","v":13},{"$f":"IFERROR(VLOOKUP(B1149,Translation!$A:$C,3,FALSE),B1149)","v":"T1 2020"},{"$f":"IFERROR(VLOOKUP(C1149,Translation!$A:$C,3,FALSE),C1149)","v":"ASSURANCE DE PORTEFEUILLE"},{"$f":"IFERROR(VLOOKUP(D1149,Translation!$A:$C,3,FALSE),D1149)","v":"Aucun pointage de crédit"},{"$f":"IFERROR(VLOOKUP(E1149,Translation!$A:$C,3,FALSE),E1149)","v":1.8608727110041499E-2},{"$f":"IFERROR(VLOOKUP(F1149,Translation!$A:$C,3,FALSE),F1149)","v":"Prêts hypothécaires assurés au cours de la période selon le pointage de crédit à l’initiation (%)"},{"$f":"IFERROR(VLOOKUP(G1149,Translation!$A:$C,3,FALSE),G1149)","v":"0.0"},{"$f":"IFERROR(VLOOKUP(H1149,Translation!$A:$C,3,FALSE),H1149)","v":"Aucun pointage de crédit"}]
[13,"Cumul 2019","ASSURANCE DE PORTEFEUILLE","Aucun pointage de crédit",1.191686364917658E-2,"Prêts hypothécaires assurés au cours de la période selon le pointage de crédit à l’initiation (%)","0.0","Aucun pointage de crédit",{"$f":"IFERROR(VLOOKUP(A1150,Translation!$A:$C,3,FALSE),A1150)","v":13},{"$f":"IFERROR(VLOOKUP(B1150,Translation!$A:$C,3,FALSE),B1150)","v":"Cumul 2019"},{"$f":"IFERROR(VLOOKUP(C1150,Translation!$A:$C,3,FALSE),C1150)","v":"ASSURANCE DE PORTEFEUILLE"},{"$f":"IFERROR(VLOOKUP(D1150,Translation!$A:$C,3,FALSE),D1150)","v":"Aucun pointage de crédit"},{"$f":"IFERROR(VLOOKUP(E1150,Translation!$A:$C,3,FALSE),E1150)","v":1.191686364917658E-2},{"$f":"IFERROR(VLOOKUP(F1150,Translation!$A:$C,3,FALSE),F1150)","v":"Prêts hypothécaires assurés au cours de la période selon le pointage de crédit à l’initiation (%)"},{"$f":"IFERROR(VLOOKUP(G1150,Translation!$A:$C,3,FALSE),G1150)","v":"0.0"},{"$f":"IFERROR(VLOOKUP(H1150,Translation!$A:$C,3,FALSE),H1150)","v":"Aucun pointage de crédit"}]
[13,"Cumul 2020","ASSURANCE DE PORTEFEUILLE","Aucun pointage de crédit",1.8608727110041499E-2,"Prêts hypothécaires assurés au cours de la période selon le pointage de crédit à l’initiation (%)","0.0","Aucun pointage de crédit",{"$f":"IFERROR(VLOOKUP(A1151,Translation!$A:$C,3,FALSE),A1151)","v":13},{"$f":"IFERROR(VLOOKUP(B1151,Translation!$A:$C,3,FALSE),B1151)","v":"Cumul 2020"},{"$f":"IFERROR(VLOOKUP(C1151,Translation!$A:$C,3,FALSE),C1151)","v":"ASSURANCE DE PORTEFEUILLE"},{"$f":"IFERROR(VLOOKUP(D1151,Translation!$A:$C,3,FALSE),D1151)","v":"Aucun pointage de crédit"},{"$f":"IFERROR(VLOOKUP(E1151,Translation!$A:$C,3,FALSE),E1151)","v":1.8608727110041499E-2},{"$f":"IFERROR(VLOOKUP(F1151,Translation!$A:$C,3,FALSE),F1151)","v":"Prêts hypothécaires assurés au cours de la période selon le pointage de crédit à l’initiation (%)"},{"$f":"IFERROR(VLOOKUP(G1151,Translation!$A:$C,3,FALSE),G1151)","v":"0.0"},{"$f":"IFERROR(VLOOKUP(H1151,Translation!$A:$C,3,FALSE),H1151)","v":"Aucun pointage de crédit"}]
[13,"T1 2020","ASSURANCE DE PORTEFEUILLE"," < 600",6.2577550573976001E-2,"Prêts hypothécaires assurés au cours de la période selon le pointage de crédit à l’initiation (%)","0.1"," < 600",{"$f":"IFERROR(VLOOKUP(A1152,Translation!$A:$C,3,FALSE),A1152)","v":13},{"$f":"IFERROR(VLOOKUP(B1152,Translation!$A:$C,3,FALSE),B1152)","v":"T1 2020"},{"$f":"IFERROR(VLOOKUP(C1152,Translation!$A:$C,3,FALSE),C1152)","v":"ASSURANCE DE PORTEFEUILLE"},{"$f":"IFERROR(VLOOKUP(D1152,Translation!$A:$C,3,FALSE),D1152)","v":" < 600"},{"$f":"IFERROR(VLOOKUP(E1152,Translation!$A:$C,3,FALSE),E1152)","v":6.2577550573976001E-2},{"$f":"IFERROR(VLOOKUP(F1152,Translation!$A:$C,3,FALSE),F1152)","v":"Prêts hypothécaires assurés au cours de la période selon le pointage de crédit à l’initiation (%)"},{"$f":"IFERROR(VLOOKUP(G1152,Translation!$A:$C,3,FALSE),G1152)","v":"0.1"},{"$f":"IFERROR(VLOOKUP(H1152,Translation!$A:$C,3,FALSE),H1152)","v":" < 600"}]
[13,"Cumul 2019","ASSURANCE DE PORTEFEUILLE","< 600",0.55269456548326412,"Prêts hypothécaires assurés au cours de la période selon le pointage de crédit à l’initiation (%)","0.6"," < 600",{"$f":"IFERROR(VLOOKUP(A1153,Translation!$A:$C,3,FALSE),A1153)","v":13},{"$f":"IFERROR(VLOOKUP(B1153,Translation!$A:$C,3,FALSE),B1153)","v":"Cumul 2019"},{"$f":"IFERROR(VLOOKUP(C1153,Translation!$A:$C,3,FALSE),C1153)","v":"ASSURANCE DE PORTEFEUILLE"},{"$f":"IFERROR(VLOOKUP(D1153,Translation!$A:$C,3,FALSE),D1153)","v":"< 600"},{"$f":"IFERROR(VLOOKUP(E1153,Translation!$A:$C,3,FALSE),E1153)","v":0.55269456548326412},{"$f":"IFERROR(VLOOKUP(F1153,Translation!$A:$C,3,FALSE),F1153)","v":"Prêts hypothécaires assurés au cours de la période selon le pointage de crédit à l’initiation (%)"},{"$f":"IFERROR(VLOOKUP(G1153,Translation!$A:$C,3,FALSE),G1153)","v":"0.6"},{"$f":"IFERROR(VLOOKUP(H1153,Translation!$A:$C,3,FALSE),H1153)","v":" < 600"}]
[13,"Cumul 2020","ASSURANCE DE PORTEFEUILLE"," < 600",6.2577550573976001E-2,"Prêts hypothécaires assurés au cours de la période selon le pointage de crédit à l’initiation (%)","0.1"," < 600",{"$f":"IFERROR(VLOOKUP(A1154,Translation!$A:$C,3,FALSE),A1154)","v":13},{"$f":"IFERROR(VLOOKUP(B1154,Translation!$A:$C,3,FALSE),B1154)","v":"Cumul 2020"},{"$f":"IFERROR(VLOOKUP(C1154,Translation!$A:$C,3,FALSE),C1154)","v":"ASSURANCE DE PORTEFEUILLE"},{"$f":"IFERROR(VLOOKUP(D1154,Translation!$A:$C,3,FALSE),D1154)","v":" < 600"},{"$f":"IFERROR(VLOOKUP(E1154,Translation!$A:$C,3,FALSE),E1154)","v":6.2577550573976001E-2},{"$f":"IFERROR(VLOOKUP(F1154,Translation!$A:$C,3,FALSE),F1154)","v":"Prêts hypothécaires assurés au cours de la période selon le pointage de crédit à l’initiation (%)"},{"$f":"IFERROR(VLOOKUP(G1154,Translation!$A:$C,3,FALSE),G1154)","v":"0.1"},{"$f":"IFERROR(VLOOKUP(H1154,Translation!$A:$C,3,FALSE),H1154)","v":" < 600"}]
[13,"T1 2020","ASSURANCE DE PORTEFEUILLE"," >= 600 < 680",2.0597321081412794,"Prêts hypothécaires assurés au cours de la période selon le pointage de crédit à l’initiation (%)","2.1"," >= 600 < 680",{"$f":"IFERROR(VLOOKUP(A1155,Translation!$A:$C,3,FALSE),A1155)","v":13},{"$f":"IFERROR(VLOOKUP(B1155,Translation!$A:$C,3,FALSE),B1155)","v":"T1 2020"},{"$f":"IFERROR(VLOOKUP(C1155,Translation!$A:$C,3,FALSE),C1155)","v":"ASSURANCE DE PORTEFEUILLE"},{"$f":"IFERROR(VLOOKUP(D1155,Translation!$A:$C,3,FALSE),D1155)","v":" >= 600 < 680"},{"$f":"IFERROR(VLOOKUP(E1155,Translation!$A:$C,3,FALSE),E1155)","v":2.0597321081412794},{"$f":"IFERROR(VLOOKUP(F1155,Translation!$A:$C,3,FALSE),F1155)","v":"Prêts hypothécaires assurés au cours de la période selon le pointage de crédit à l’initiation (%)"},{"$f":"IFERROR(VLOOKUP(G1155,Translation!$A:$C,3,FALSE),G1155)","v":"2.1"},{"$f":"IFERROR(VLOOKUP(H1155,Translation!$A:$C,3,FALSE),H1155)","v":" >= 600 < 680"}]
[13,"Cumul 2019","ASSURANCE DE PORTEFEUILLE",">= 600 < 680",5.9331733417711119,"Prêts hypothécaires assurés au cours de la période selon le pointage de crédit à l’initiation (%)","5.9"," >= 600 < 680",{"$f":"IFERROR(VLOOKUP(A1156,Translation!$A:$C,3,FALSE),A1156)","v":13},{"$f":"IFERROR(VLOOKUP(B1156,Translation!$A:$C,3,FALSE),B1156)","v":"Cumul 2019"},{"$f":"IFERROR(VLOOKUP(C1156,Translation!$A:$C,3,FALSE),C1156)","v":"ASSURANCE DE PORTEFEUILLE"},{"$f":"IFERROR(VLOOKUP(D1156,Translation!$A:$C,3,FALSE),D1156)","v":">= 600 < 680"},{"$f":"IFERROR(VLOOKUP(E1156,Translation!$A:$C,3,FALSE),E1156)","v":5.9331733417711119},{"$f":"IFERROR(VLOOKUP(F1156,Translation!$A:$C,3,FALSE),F1156)","v":"Prêts hypothécaires assurés au cours de la période selon le pointage de crédit à l’initiation (%)"},{"$f":"IFERROR(VLOOKUP(G1156,Translation!$A:$C,3,FALSE),G1156)","v":"5.9"},{"$f":"IFERROR(VLOOKUP(H1156,Translation!$A:$C,3,FALSE),H1156)","v":" >= 600 < 680"}]
[13,"Cumul 2020","ASSURANCE DE PORTEFEUILLE"," >= 600 < 680",2.0597321081412794,"Prêts hypothécaires assurés au cours de la période selon le pointage de crédit à l’initiation (%)","2.1"," >= 600 < 680",{"$f":"IFERROR(VLOOKUP(A1157,Translation!$A:$C,3,FALSE),A1157)","v":13},{"$f":"IFERROR(VLOOKUP(B1157,Translation!$A:$C,3,FALSE),B1157)","v":"Cumul 2020"},{"$f":"IFERROR(VLOOKUP(C1157,Translation!$A:$C,3,FALSE),C1157)","v":"ASSURANCE DE PORTEFEUILLE"},{"$f":"IFERROR(VLOOKUP(D1157,Translation!$A:$C,3,FALSE),D1157)","v":" >= 600 < 680"},{"$f":"IFERROR(VLOOKUP(E1157,Translation!$A:$C,3,FALSE),E1157)","v":2.0597321081412794},{"$f":"IFERROR(VLOOKUP(F1157,Translation!$A:$C,3,FALSE),F1157)","v":"Prêts hypothécaires assurés au cours de la période selon le pointage de crédit à l’initiation (%)"},{"$f":"IFERROR(VLOOKUP(G1157,Translation!$A:$C,3,FALSE),G1157)","v":"2.1"},{"$f":"IFERROR(VLOOKUP(H1157,Translation!$A:$C,3,FALSE),H1157)","v":" >= 600 < 680"}]
[13,"T1 2020","ASSURANCE DE PORTEFEUILLE"," >= 680 < 700",2.9287427241963906,"Prêts hypothécaires assurés au cours de la période selon le pointage de crédit à l’initiation (%)","2.9"," >= 680 < 700",{"$f":"IFERROR(VLOOKUP(A1158,Translation!$A:$C,3,FALSE),A1158)","v":13},{"$f":"IFERROR(VLOOKUP(B1158,Translation!$A:$C,3,FALSE),B1158)","v":"T1 2020"},{"$f":"IFERROR(VLOOKUP(C1158,Translation!$A:$C,3,FALSE),C1158)","v":"ASSURANCE DE PORTEFEUILLE"},{"$f":"IFERROR(VLOOKUP(D1158,Translation!$A:$C,3,FALSE),D1158)","v":" >= 680 < 700"},{"$f":"IFERROR(VLOOKUP(E1158,Translation!$A:$C,3,FALSE),E1158)","v":2.9287427241963906},{"$f":"IFERROR(VLOOKUP(F1158,Translation!$A:$C,3,FALSE),F1158)","v":"Prêts hypothécaires assurés au cours de la période selon le pointage de crédit à l’initiation (%)"},{"$f":"IFERROR(VLOOKUP(G1158,Translation!$A:$C,3,FALSE),G1158)","v":"2.9"},{"$f":"IFERROR(VLOOKUP(H1158,Translation!$A:$C,3,FALSE),H1158)","v":" >= 680 < 700"}]
[13,"Cumul 2019","ASSURANCE DE PORTEFEUILLE",">= 680 < 700",3.2526825349100328,"Prêts hypothécaires assurés au cours de la période selon le pointage de crédit à l’initiation (%)","3.3"," >= 680 < 700",{"$f":"IFERROR(VLOOKUP(A1159,Translation!$A:$C,3,FALSE),A1159)","v":13},{"$f":"IFERROR(VLOOKUP(B1159,Translation!$A:$C,3,FALSE),B1159)","v":"Cumul 2019"},{"$f":"IFERROR(VLOOKUP(C1159,Translation!$A:$C,3,FALSE),C1159)","v":"ASSURANCE DE PORTEFEUILLE"},{"$f":"IFERROR(VLOOKUP(D1159,Translation!$A:$C,3,FALSE),D1159)","v":">= 680 < 700"},{"$f":"IFERROR(VLOOKUP(E1159,Translation!$A:$C,3,FALSE),E1159)","v":3.2526825349100328},{"$f":"IFERROR(VLOOKUP(F1159,Translation!$A:$C,3,FALSE),F1159)","v":"Prêts hypothécaires assurés au cours de la période selon le pointage de crédit à l’initiation (%)"},{"$f":"IFERROR(VLOOKUP(G1159,Translation!$A:$C,3,FALSE),G1159)","v":"3.3"},{"$f":"IFERROR(VLOOKUP(H1159,Translation!$A:$C,3,FALSE),H1159)","v":" >= 680 < 700"}]
[13,"Cumul 2020","ASSURANCE DE PORTEFEUILLE"," >= 680 < 700",2.9287427241963906,"Prêts hypothécaires assurés au cours de la période selon le pointage de crédit à l’initiation (%)","2.9"," >= 680 < 700",{"$f":"IFERROR(VLOOKUP(A1160,Translation!$A:$C,3,FALSE),A1160)","v":13},{"$f":"IFERROR(VLOOKUP(B1160,Translation!$A:$C,3,FALSE),B1160)","v":"Cumul 2020"},{"$f":"IFERROR(VLOOKUP(C1160,Translation!$A:$C,3,FALSE),C1160)","v":"ASSURANCE DE PORTEFEUILLE"},{"$f":"IFERROR(VLOOKUP(D1160,Translation!$A:$C,3,FALSE),D1160)","v":" >= 680 < 700"},{"$f":"IFERROR(VLOOKUP(E1160,Translation!$A:$C,3,FALSE),E1160)","v":2.9287427241963906},{"$f":"IFERROR(VLOOKUP(F1160,Translation!$A:$C,3,FALSE),F1160)","v":"Prêts hypothécaires assurés au cours de la période selon le pointage de crédit à l’initiation (%)"},{"$f":"IFERROR(VLOOKUP(G1160,Translation!$A:$C,3,FALSE),G1160)","v":"2.9"},{"$f":"IFERROR(VLOOKUP(H1160,Translation!$A:$C,3,FALSE),H1160)","v":" >= 680 < 700"}]
[13,"T1 2020","ASSURANCE DE PORTEFEUILLE"," >= 700 < 750",17.84028293842383,"Prêts hypothécaires assurés au cours de la période selon le pointage de crédit à l’initiation (%)","17.8"," >= 700 < 750",{"$f":"IFERROR(VLOOKUP(A1161,Translation!$A:$C,3,FALSE),A1161)","v":13},{"$f":"IFERROR(VLOOKUP(B1161,Translation!$A:$C,3,FALSE),B1161)","v":"T1 2020"},{"$f":"IFERROR(VLOOKUP(C1161,Translation!$A:$C,3,FALSE),C1161)","v":"ASSURANCE DE PORTEFEUILLE"},{"$f":"IFERROR(VLOOKUP(D1161,Translation!$A:$C,3,FALSE),D1161)","v":" >= 700 < 750"},{"$f":"IFERROR(VLOOKUP(E1161,Translation!$A:$C,3,FALSE),E1161)","v":17.84028293842383},{"$f":"IFERROR(VLOOKUP(F1161,Translation!$A:$C,3,FALSE),F1161)","v":"Prêts hypothécaires assurés au cours de la période selon le pointage de crédit à l’initiation (%)"},{"$f":"IFERROR(VLOOKUP(G1161,Translation!$A:$C,3,FALSE),G1161)","v":"17.8"},{"$f":"IFERROR(VLOOKUP(H1161,Translation!$A:$C,3,FALSE),H1161)","v":" >= 700 < 750"}]
[13,"Cumul 2019","ASSURANCE DE PORTEFEUILLE",">= 700 < 750",18.239089401683596,"Prêts hypothécaires assurés au cours de la période selon le pointage de crédit à l’initiation (%)","18.2"," >= 700 < 750",{"$f":"IFERROR(VLOOKUP(A1162,Translation!$A:$C,3,FALSE),A1162)","v":13},{"$f":"IFERROR(VLOOKUP(B1162,Translation!$A:$C,3,FALSE),B1162)","v":"Cumul 2019"},{"$f":"IFERROR(VLOOKUP(C1162,Translation!$A:$C,3,FALSE),C1162)","v":"ASSURANCE DE PORTEFEUILLE"},{"$f":"IFERROR(VLOOKUP(D1162,Translation!$A:$C,3,FALSE),D1162)","v":">= 700 < 750"},{"$f":"IFERROR(VLOOKUP(E1162,Translation!$A:$C,3,FALSE),E1162)","v":18.239089401683596},{"$f":"IFERROR(VLOOKUP(F1162,Translation!$A:$C,3,FALSE),F1162)","v":"Prêts hypothécaires assurés au cours de la période selon le pointage de crédit à l’initiation (%)"},{"$f":"IFERROR(VLOOKUP(G1162,Translation!$A:$C,3,FALSE),G1162)","v":"18.2"},{"$f":"IFERROR(VLOOKUP(H1162,Translation!$A:$C,3,FALSE),H1162)","v":" >= 700 < 750"}]
[13,"Cumul 2020","ASSURANCE DE PORTEFEUILLE"," >= 700 < 750",17.84028293842383,"Prêts hypothécaires assurés au cours de la période selon le pointage de crédit à l’initiation (%)","17.8"," >= 700 < 750",{"$f":"IFERROR(VLOOKUP(A1163,Translation!$A:$C,3,FALSE),A1163)","v":13},{"$f":"IFERROR(VLOOKUP(B1163,Translation!$A:$C,3,FALSE),B1163)","v":"Cumul 2020"},{"$f":"IFERROR(VLOOKUP(C1163,Translation!$A:$C,3,FALSE),C1163)","v":"ASSURANCE DE PORTEFEUILLE"},{"$f":"IFERROR(VLOOKUP(D1163,Translation!$A:$C,3,FALSE),D1163)","v":" >= 700 < 750"},{"$f":"IFERROR(VLOOKUP(E1163,Translation!$A:$C,3,FALSE),E1163)","v":17.84028293842383},{"$f":"IFERROR(VLOOKUP(F1163,Translation!$A:$C,3,FALSE),F1163)","v":"Prêts hypothécaires assurés au cours de la période selon le pointage de crédit à l’initiation (%)"},{"$f":"IFERROR(VLOOKUP(G1163,Translation!$A:$C,3,FALSE),G1163)","v":"17.8"},{"$f":"IFERROR(VLOOKUP(H1163,Translation!$A:$C,3,FALSE),H1163)","v":" >= 700 < 750"}]
[13,"T1 2020","ASSURANCE DE PORTEFEUILLE"," >= 750 < 780",27.597792922335159,"Prêts hypothécaires assurés au cours de la période selon le pointage de crédit à l’initiation (%)","27.6"," >= 750 < 780",{"$f":"IFERROR(VLOOKUP(A1164,Translation!$A:$C,3,FALSE),A1164)","v":13},{"$f":"IFERROR(VLOOKUP(B1164,Translation!$A:$C,3,FALSE),B1164)","v":"T1 2020"},{"$f":"IFERROR(VLOOKUP(C1164,Translation!$A:$C,3,FALSE),C1164)","v":"ASSURANCE DE PORTEFEUILLE"},{"$f":"IFERROR(VLOOKUP(D1164,Translation!$A:$C,3,FALSE),D1164)","v":" >= 750 < 780"},{"$f":"IFERROR(VLOOKUP(E1164,Translation!$A:$C,3,FALSE),E1164)","v":27.597792922335159},{"$f":"IFERROR(VLOOKUP(F1164,Translation!$A:$C,3,FALSE),F1164)","v":"Prêts hypothécaires assurés au cours de la période selon le pointage de crédit à l’initiation (%)"},{"$f":"IFERROR(VLOOKUP(G1164,Translation!$A:$C,3,FALSE),G1164)","v":"27.6"},{"$f":"IFERROR(VLOOKUP(H1164,Translation!$A:$C,3,FALSE),H1164)","v":" >= 750 < 780"}]
[13,"Cumul 2019","ASSURANCE DE PORTEFEUILLE",">= 750 < 780",25.742982963301358,"Prêts hypothécaires assurés au cours de la période selon le pointage de crédit à l’initiation (%)","25.7"," >= 750 < 780",{"$f":"IFERROR(VLOOKUP(A1165,Translation!$A:$C,3,FALSE),A1165)","v":13},{"$f":"IFERROR(VLOOKUP(B1165,Translation!$A:$C,3,FALSE),B1165)","v":"Cumul 2019"},{"$f":"IFERROR(VLOOKUP(C1165,Translation!$A:$C,3,FALSE),C1165)","v":"ASSURANCE DE PORTEFEUILLE"},{"$f":"IFERROR(VLOOKUP(D1165,Translation!$A:$C,3,FALSE),D1165)","v":">= 750 < 780"},{"$f":"IFERROR(VLOOKUP(E1165,Translation!$A:$C,3,FALSE),E1165)","v":25.742982963301358},{"$f":"IFERROR(VLOOKUP(F1165,Translation!$A:$C,3,FALSE),F1165)","v":"Prêts hypothécaires assurés au cours de la période selon le pointage de crédit à l’initiation (%)"},{"$f":"IFERROR(VLOOKUP(G1165,Translation!$A:$C,3,FALSE),G1165)","v":"25.7"},{"$f":"IFERROR(VLOOKUP(H1165,Translation!$A:$C,3,FALSE),H1165)","v":" >= 750 < 780"}]
[13,"Cumul 2020","ASSURANCE DE PORTEFEUILLE"," >= 750 < 780",27.597792922335159,"Prêts hypothécaires assurés au cours de la période selon le pointage de crédit à l’initiation (%)","27.6"," >= 750 < 780",{"$f":"IFERROR(VLOOKUP(A1166,Translation!$A:$C,3,FALSE),A1166)","v":13},{"$f":"IFERROR(VLOOKUP(B1166,Translation!$A:$C,3,FALSE),B1166)","v":"Cumul 2020"},{"$f":"IFERROR(VLOOKUP(C1166,Translation!$A:$C,3,FALSE),C1166)","v":"ASSURANCE DE PORTEFEUILLE"},{"$f":"IFERROR(VLOOKUP(D1166,Translation!$A:$C,3,FALSE),D1166)","v":" >= 750 < 780"},{"$f":"IFERROR(VLOOKUP(E1166,Translation!$A:$C,3,FALSE),E1166)","v":27.597792922335159},{"$f":"IFERROR(VLOOKUP(F1166,Translation!$A:$C,3,FALSE),F1166)","v":"Prêts hypothécaires assurés au cours de la période selon le pointage de crédit à l’initiation (%)"},{"$f":"IFERROR(VLOOKUP(G1166,Translation!$A:$C,3,FALSE),G1166)","v":"27.6"},{"$f":"IFERROR(VLOOKUP(H1166,Translation!$A:$C,3,FALSE),H1166)","v":" >= 750 < 780"}]
[13,"T1 2020","ASSURANCE DE PORTEFEUILLE"," >= 780",49.492263029219323,"Prêts hypothécaires assurés au cours de la période selon le pointage de crédit à l’initiation (%)","49.5"," >= 780",{"$f":"IFERROR(VLOOKUP(A1167,Translation!$A:$C,3,FALSE),A1167)","v":13},{"$f":"IFERROR(VLOOKUP(B1167,Translation!$A:$C,3,FALSE),B1167)","v":"T1 2020"},{"$f":"IFERROR(VLOOKUP(C1167,Translation!$A:$C,3,FALSE),C1167)","v":"ASSURANCE DE PORTEFEUILLE"},{"$f":"IFERROR(VLOOKUP(D1167,Translation!$A:$C,3,FALSE),D1167)","v":" >= 780"},{"$f":"IFERROR(VLOOKUP(E1167,Translation!$A:$C,3,FALSE),E1167)","v":49.492263029219323},{"$f":"IFERROR(VLOOKUP(F1167,Translation!$A:$C,3,FALSE),F1167)","v":"Prêts hypothécaires assurés au cours de la période selon le pointage de crédit à l’initiation (%)"},{"$f":"IFERROR(VLOOKUP(G1167,Translation!$A:$C,3,FALSE),G1167)","v":"49.5"},{"$f":"IFERROR(VLOOKUP(H1167,Translation!$A:$C,3,FALSE),H1167)","v":" >= 780"}]
[13,"Cumul 2019","ASSURANCE DE PORTEFEUILLE",">= 780",46.267460329201469,"Prêts hypothécaires assurés au cours de la période selon le pointage de crédit à l’initiation (%)","46.3"," >= 780",{"$f":"IFERROR(VLOOKUP(A1168,Translation!$A:$C,3,FALSE),A1168)","v":13},{"$f":"IFERROR(VLOOKUP(B1168,Translation!$A:$C,3,FALSE),B1168)","v":"Cumul 2019"},{"$f":"IFERROR(VLOOKUP(C1168,Translation!$A:$C,3,FALSE),C1168)","v":"ASSURANCE DE PORTEFEUILLE"},{"$f":"IFERROR(VLOOKUP(D1168,Translation!$A:$C,3,FALSE),D1168)","v":">= 780"},{"$f":"IFERROR(VLOOKUP(E1168,Translation!$A:$C,3,FALSE),E1168)","v":46.267460329201469},{"$f":"IFERROR(VLOOKUP(F1168,Translation!$A:$C,3,FALSE),F1168)","v":"Prêts hypothécaires assurés au cours de la période selon le pointage de crédit à l’initiation (%)"},{"$f":"IFERROR(VLOOKUP(G1168,Translation!$A:$C,3,FALSE),G1168)","v":"46.3"},{"$f":"IFERROR(VLOOKUP(H1168,Translation!$A:$C,3,FALSE),H1168)","v":" >= 780"}]
[13,"Cumul 2020","ASSURANCE DE PORTEFEUILLE"," >= 780",49.492263029219323,"Prêts hypothécaires assurés au cours de la période selon le pointage de crédit à l’initiation (%)","49.5"," >= 780",{"$f":"IFERROR(VLOOKUP(A1169,Translation!$A:$C,3,FALSE),A1169)","v":13},{"$f":"IFERROR(VLOOKUP(B1169,Translation!$A:$C,3,FALSE),B1169)","v":"Cumul 2020"},{"$f":"IFERROR(VLOOKUP(C1169,Translation!$A:$C,3,FALSE),C1169)","v":"ASSURANCE DE PORTEFEUILLE"},{"$f":"IFERROR(VLOOKUP(D1169,Translation!$A:$C,3,FALSE),D1169)","v":" >= 780"},{"$f":"IFERROR(VLOOKUP(E1169,Translation!$A:$C,3,FALSE),E1169)","v":49.492263029219323},{"$f":"IFERROR(VLOOKUP(F1169,Translation!$A:$C,3,FALSE),F1169)","v":"Prêts hypothécaires assurés au cours de la période selon le pointage de crédit à l’initiation (%)"},{"$f":"IFERROR(VLOOKUP(G1169,Translation!$A:$C,3,FALSE),G1169)","v":"49.5"},{"$f":"IFERROR(VLOOKUP(H1169,Translation!$A:$C,3,FALSE),H1169)","v":" >= 780"}]
[13,"T1 2020","ASSURANCE DE PORTEFEUILLE","Pointage de crédit moyen à l'initiation ",771.77324505783156,"Prêts hypothécaires assurés au cours de la période selon le pointage de crédit à l’initiation (%)","771.8","Pointage de crédit moyen à l'initiation ",{"$f":"IFERROR(VLOOKUP(A1170,Translation!$A:$C,3,FALSE),A1170)","v":13},{"$f":"IFERROR(VLOOKUP(B1170,Translation!$A:$C,3,FALSE),B1170)","v":"T1 2020"},{"$f":"IFERROR(VLOOKUP(C1170,Translation!$A:$C,3,FALSE),C1170)","v":"ASSURANCE DE PORTEFEUILLE"},{"$f":"IFERROR(VLOOKUP(D1170,Translation!$A:$C,3,FALSE),D1170)","v":"Pointage de crédit moyen à l'initiation "},{"$f":"IFERROR(VLOOKUP(E1170,Translation!$A:$C,3,FALSE),E1170)","v":771.77324505783156},{"$f":"IFERROR(VLOOKUP(F1170,Translation!$A:$C,3,FALSE),F1170)","v":"Prêts hypothécaires assurés au cours de la période selon le pointage de crédit à l’initiation (%)"},{"$f":"IFERROR(VLOOKUP(G1170,Translation!$A:$C,3,FALSE),G1170)","v":"771.8"},{"$f":"IFERROR(VLOOKUP(H1170,Translation!$A:$C,3,FALSE),H1170)","v":"Pointage de crédit moyen à l'initiation "}]
[13,"Cumul 2019","ASSURANCE DE PORTEFEUILLE","Pointage de crédit moyen à l'initiation ",762.2032910710642,"Prêts hypothécaires assurés au cours de la période selon le pointage de crédit à l’initiation (%)","762.2","Pointage de crédit moyen à l'initiation ",{"$f":"IFERROR(VLOOKUP(A1171,Translation!$A:$C,3,FALSE),A1171)","v":13},{"$f":"IFERROR(VLOOKUP(B1171,Translation!$A:$C,3,FALSE),B1171)","v":"Cumul 2019"},{"$f":"IFERROR(VLOOKUP(C1171,Translation!$A:$C,3,FALSE),C1171)","v":"ASSURANCE DE PORTEFEUILLE"},{"$f":"IFERROR(VLOOKUP(D1171,Translation!$A:$C,3,FALSE),D1171)","v":"Pointage de crédit moyen à l'initiation "},{"$f":"IFERROR(VLOOKUP(E1171,Translation!$A:$C,3,FALSE),E1171)","v":762.2032910710642},{"$f":"IFERROR(VLOOKUP(F1171,Translation!$A:$C,3,FALSE),F1171)","v":"Prêts hypothécaires assurés au cours de la période selon le pointage de crédit à l’initiation (%)"},{"$f":"IFERROR(VLOOKUP(G1171,Translation!$A:$C,3,FALSE),G1171)","v":"762.2"},{"$f":"IFERROR(VLOOKUP(H1171,Translation!$A:$C,3,FALSE),H1171)","v":"Pointage de crédit moyen à l'initiation "}]
[13,"Cumul 2020","ASSURANCE DE PORTEFEUILLE","Pointage de crédit moyen à l'initiation ",771.77324505783156,"Prêts hypothécaires assurés au cours de la période selon le pointage de crédit à l’initiation (%)","771.8","Pointage de crédit moyen à l'initiation ",{"$f":"IFERROR(VLOOKUP(A1172,Translation!$A:$C,3,FALSE),A1172)","v":13},{"$f":"IFERROR(VLOOKUP(B1172,Translation!$A:$C,3,FALSE),B1172)","v":"Cumul 2020"},{"$f":"IFERROR(VLOOKUP(C1172,Translation!$A:$C,3,FALSE),C1172)","v":"ASSURANCE DE PORTEFEUILLE"},{"$f":"IFERROR(VLOOKUP(D1172,Translation!$A:$C,3,FALSE),D1172)","v":"Pointage de crédit moyen à l'initiation "},{"$f":"IFERROR(VLOOKUP(E1172,Translation!$A:$C,3,FALSE),E1172)","v":771.77324505783156},{"$f":"IFERROR(VLOOKUP(F1172,Translation!$A:$C,3,FALSE),F1172)","v":"Prêts hypothécaires assurés au cours de la période selon le pointage de crédit à l’initiation (%)"},{"$f":"IFERROR(VLOOKUP(G1172,Translation!$A:$C,3,FALSE),G1172)","v":"771.8"},{"$f":"IFERROR(VLOOKUP(H1172,Translation!$A:$C,3,FALSE),H1172)","v":"Pointage de crédit moyen à l'initiation "}]
[13,"T1 2020","ASSURANCE DE PORTEFEUILLE","Terre-Neuve-et-Labrador",763.12058786323917,"Prêts hypothécaires assurés au cours de la période selon le pointage de crédit à l’initiation (%)","763.1","Terre-Neuve-et-Labrador",{"$f":"IFERROR(VLOOKUP(A1173,Translation!$A:$C,3,FALSE),A1173)","v":13},{"$f":"IFERROR(VLOOKUP(B1173,Translation!$A:$C,3,FALSE),B1173)","v":"T1 2020"},{"$f":"IFERROR(VLOOKUP(C1173,Translation!$A:$C,3,FALSE),C1173)","v":"ASSURANCE DE PORTEFEUILLE"},{"$f":"IFERROR(VLOOKUP(D1173,Translation!$A:$C,3,FALSE),D1173)","v":"Terre-Neuve-et-Labrador"},{"$f":"IFERROR(VLOOKUP(E1173,Translation!$A:$C,3,FALSE),E1173)","v":763.12058786323917},{"$f":"IFERROR(VLOOKUP(F1173,Translation!$A:$C,3,FALSE),F1173)","v":"Prêts hypothécaires assurés au cours de la période selon le pointage de crédit à l’initiation (%)"},{"$f":"IFERROR(VLOOKUP(G1173,Translation!$A:$C,3,FALSE),G1173)","v":"763.1"},{"$f":"IFERROR(VLOOKUP(H1173,Translation!$A:$C,3,FALSE),H1173)","v":"Terre-Neuve-et-Labrador"}]
[13,"T1 2020","ASSURANCE DE PORTEFEUILLE","Nouvelle-Écosse",773.670453316004,"Prêts hypothécaires assurés au cours de la période selon le pointage de crédit à l’initiation (%)","773.7","Nouvelle-Écosse",{"$f":"IFERROR(VLOOKUP(A1174,Translation!$A:$C,3,FALSE),A1174)","v":13},{"$f":"IFERROR(VLOOKUP(B1174,Translation!$A:$C,3,FALSE),B1174)","v":"T1 2020"},{"$f":"IFERROR(VLOOKUP(C1174,Translation!$A:$C,3,FALSE),C1174)","v":"ASSURANCE DE PORTEFEUILLE"},{"$f":"IFERROR(VLOOKUP(D1174,Translation!$A:$C,3,FALSE),D1174)","v":"Nouvelle-Écosse"},{"$f":"IFERROR(VLOOKUP(E1174,Translation!$A:$C,3,FALSE),E1174)","v":773.670453316004},{"$f":"IFERROR(VLOOKUP(F1174,Translation!$A:$C,3,FALSE),F1174)","v":"Prêts hypothécaires assurés au cours de la période selon le pointage de crédit à l’initiation (%)"},{"$f":"IFERROR(VLOOKUP(G1174,Translation!$A:$C,3,FALSE),G1174)","v":"773.7"},{"$f":"IFERROR(VLOOKUP(H1174,Translation!$A:$C,3,FALSE),H1174)","v":"Nouvelle-Écosse"}]
[13,"T1 2020","ASSURANCE DE PORTEFEUILLE","Nouveau-Brunswick",761.48936439364559,"Prêts hypothécaires assurés au cours de la période selon le pointage de crédit à l’initiation (%)","761.5","Nouveau-Brunswick",{"$f":"IFERROR(VLOOKUP(A1175,Translation!$A:$C,3,FALSE),A1175)","v":13},{"$f":"IFERROR(VLOOKUP(B1175,Translation!$A:$C,3,FALSE),B1175)","v":"T1 2020"},{"$f":"IFERROR(VLOOKUP(C1175,Translation!$A:$C,3,FALSE),C1175)","v":"ASSURANCE DE PORTEFEUILLE"},{"$f":"IFERROR(VLOOKUP(D1175,Translation!$A:$C,3,FALSE),D1175)","v":"Nouveau-Brunswick"},{"$f":"IFERROR(VLOOKUP(E1175,Translation!$A:$C,3,FALSE),E1175)","v":761.48936439364559},{"$f":"IFERROR(VLOOKUP(F1175,Translation!$A:$C,3,FALSE),F1175)","v":"Prêts hypothécaires assurés au cours de la période selon le pointage de crédit à l’initiation (%)"},{"$f":"IFERROR(VLOOKUP(G1175,Translation!$A:$C,3,FALSE),G1175)","v":"761.5"},{"$f":"IFERROR(VLOOKUP(H1175,Translation!$A:$C,3,FALSE),H1175)","v":"Nouveau-Brunswick"}]
[13,"T1 2020","ASSURANCE DE PORTEFEUILLE","Québec",766.87406818904003,"Prêts hypothécaires assurés au cours de la période selon le pointage de crédit à l’initiation (%)","766.9","Québec",{"$f":"IFERROR(VLOOKUP(A1176,Translation!$A:$C,3,FALSE),A1176)","v":13},{"$f":"IFERROR(VLOOKUP(B1176,Translation!$A:$C,3,FALSE),B1176)","v":"T1 2020"},{"$f":"IFERROR(VLOOKUP(C1176,Translation!$A:$C,3,FALSE),C1176)","v":"ASSURANCE DE PORTEFEUILLE"},{"$f":"IFERROR(VLOOKUP(D1176,Translation!$A:$C,3,FALSE),D1176)","v":"Québec"},{"$f":"IFERROR(VLOOKUP(E1176,Translation!$A:$C,3,FALSE),E1176)","v":766.87406818904003},{"$f":"IFERROR(VLOOKUP(F1176,Translation!$A:$C,3,FALSE),F1176)","v":"Prêts hypothécaires assurés au cours de la période selon le pointage de crédit à l’initiation (%)"},{"$f":"IFERROR(VLOOKUP(G1176,Translation!$A:$C,3,FALSE),G1176)","v":"766.9"},{"$f":"IFERROR(VLOOKUP(H1176,Translation!$A:$C,3,FALSE),H1176)","v":"Québec"}]
[13,"T1 2020","ASSURANCE DE PORTEFEUILLE","Ontario",770.64510092559487,"Prêts hypothécaires assurés au cours de la période selon le pointage de crédit à l’initiation (%)","770.6","Ontario",{"$f":"IFERROR(VLOOKUP(A1177,Translation!$A:$C,3,FALSE),A1177)","v":13},{"$f":"IFERROR(VLOOKUP(B1177,Translation!$A:$C,3,FALSE),B1177)","v":"T1 2020"},{"$f":"IFERROR(VLOOKUP(C1177,Translation!$A:$C,3,FALSE),C1177)","v":"ASSURANCE DE PORTEFEUILLE"},{"$f":"IFERROR(VLOOKUP(D1177,Translation!$A:$C,3,FALSE),D1177)","v":"Ontario"},{"$f":"IFERROR(VLOOKUP(E1177,Translation!$A:$C,3,FALSE),E1177)","v":770.64510092559487},{"$f":"IFERROR(VLOOKUP(F1177,Translation!$A:$C,3,FALSE),F1177)","v":"Prêts hypothécaires assurés au cours de la période selon le pointage de crédit à l’initiation (%)"},{"$f":"IFERROR(VLOOKUP(G1177,Translation!$A:$C,3,FALSE),G1177)","v":"770.6"},{"$f":"IFERROR(VLOOKUP(H1177,Translation!$A:$C,3,FALSE),H1177)","v":"Ontario"}]
[13,"T1 2020","ASSURANCE DE PORTEFEUILLE","Manitoba",749.87456820308307,"Prêts hypothécaires assurés au cours de la période selon le pointage de crédit à l’initiation (%)","749.9","Manitoba",{"$f":"IFERROR(VLOOKUP(A1178,Translation!$A:$C,3,FALSE),A1178)","v":13},{"$f":"IFERROR(VLOOKUP(B1178,Translation!$A:$C,3,FALSE),B1178)","v":"T1 2020"},{"$f":"IFERROR(VLOOKUP(C1178,Translation!$A:$C,3,FALSE),C1178)","v":"ASSURANCE DE PORTEFEUILLE"},{"$f":"IFERROR(VLOOKUP(D1178,Translation!$A:$C,3,FALSE),D1178)","v":"Manitoba"},{"$f":"IFERROR(VLOOKUP(E1178,Translation!$A:$C,3,FALSE),E1178)","v":749.87456820308307},{"$f":"IFERROR(VLOOKUP(F1178,Translation!$A:$C,3,FALSE),F1178)","v":"Prêts hypothécaires assurés au cours de la période selon le pointage de crédit à l’initiation (%)"},{"$f":"IFERROR(VLOOKUP(G1178,Translation!$A:$C,3,FALSE),G1178)","v":"749.9"},{"$f":"IFERROR(VLOOKUP(H1178,Translation!$A:$C,3,FALSE),H1178)","v":"Manitoba"}]
[13,"T1 2020","ASSURANCE DE PORTEFEUILLE","Saskatchewan",779.08278181743651,"Prêts hypothécaires assurés au cours de la période selon le pointage de crédit à l’initiation (%)","779.1","Saskatchewan",{"$f":"IFERROR(VLOOKUP(A1179,Translation!$A:$C,3,FALSE),A1179)","v":13},{"$f":"IFERROR(VLOOKUP(B1179,Translation!$A:$C,3,FALSE),B1179)","v":"T1 2020"},{"$f":"IFERROR(VLOOKUP(C1179,Translation!$A:$C,3,FALSE),C1179)","v":"ASSURANCE DE PORTEFEUILLE"},{"$f":"IFERROR(VLOOKUP(D1179,Translation!$A:$C,3,FALSE),D1179)","v":"Saskatchewan"},{"$f":"IFERROR(VLOOKUP(E1179,Translation!$A:$C,3,FALSE),E1179)","v":779.08278181743651},{"$f":"IFERROR(VLOOKUP(F1179,Translation!$A:$C,3,FALSE),F1179)","v":"Prêts hypothécaires assurés au cours de la période selon le pointage de crédit à l’initiation (%)"},{"$f":"IFERROR(VLOOKUP(G1179,Translation!$A:$C,3,FALSE),G1179)","v":"779.1"},{"$f":"IFERROR(VLOOKUP(H1179,Translation!$A:$C,3,FALSE),H1179)","v":"Saskatchewan"}]
[13,"T1 2020","ASSURANCE DE PORTEFEUILLE","Alberta",774.67813589219008,"Prêts hypothécaires assurés au cours de la période selon le pointage de crédit à l’initiation (%)","774.7","Alberta",{"$f":"IFERROR(VLOOKUP(A1180,Translation!$A:$C,3,FALSE),A1180)","v":13},{"$f":"IFERROR(VLOOKUP(B1180,Translation!$A:$C,3,FALSE),B1180)","v":"T1 2020"},{"$f":"IFERROR(VLOOKUP(C1180,Translation!$A:$C,3,FALSE),C1180)","v":"ASSURANCE DE PORTEFEUILLE"},{"$f":"IFERROR(VLOOKUP(D1180,Translation!$A:$C,3,FALSE),D1180)","v":"Alberta"},{"$f":"IFERROR(VLOOKUP(E1180,Translation!$A:$C,3,FALSE),E1180)","v":774.67813589219008},{"$f":"IFERROR(VLOOKUP(F1180,Translation!$A:$C,3,FALSE),F1180)","v":"Prêts hypothécaires assurés au cours de la période selon le pointage de crédit à l’initiation (%)"},{"$f":"IFERROR(VLOOKUP(G1180,Translation!$A:$C,3,FALSE),G1180)","v":"774.7"},{"$f":"IFERROR(VLOOKUP(H1180,Translation!$A:$C,3,FALSE),H1180)","v":"Alberta"}]
[13,"T1 2020","ASSURANCE DE PORTEFEUILLE","Colombie-Britannique",774.61220332855021,"Prêts hypothécaires assurés au cours de la période selon le pointage de crédit à l’initiation (%)","774.6","Colombie-Britannique",{"$f":"IFERROR(VLOOKUP(A1181,Translation!$A:$C,3,FALSE),A1181)","v":13},{"$f":"IFERROR(VLOOKUP(B1181,Translation!$A:$C,3,FALSE),B1181)","v":"T1 2020"},{"$f":"IFERROR(VLOOKUP(C1181,Translation!$A:$C,3,FALSE),C1181)","v":"ASSURANCE DE PORTEFEUILLE"},{"$f":"IFERROR(VLOOKUP(D1181,Translation!$A:$C,3,FALSE),D1181)","v":"Colombie-Britannique"},{"$f":"IFERROR(VLOOKUP(E1181,Translation!$A:$C,3,FALSE),E1181)","v":774.61220332855021},{"$f":"IFERROR(VLOOKUP(F1181,Translation!$A:$C,3,FALSE),F1181)","v":"Prêts hypothécaires assurés au cours de la période selon le pointage de crédit à l’initiation (%)"},{"$f":"IFERROR(VLOOKUP(G1181,Translation!$A:$C,3,FALSE),G1181)","v":"774.6"},{"$f":"IFERROR(VLOOKUP(H1181,Translation!$A:$C,3,FALSE),H1181)","v":"Colombie-Britannique"}]
[13,"Cumul 2019","ASSURANCE DE PORTEFEUILLE","Terre-Neuve-et-Labrador",761.91972800376107,"Prêts hypothécaires assurés au cours de la période selon le pointage de crédit à l’initiation (%)","761.9","Terre-Neuve-et-Labrador",{"$f":"IFERROR(VLOOKUP(A1182,Translation!$A:$C,3,FALSE),A1182)","v":13},{"$f":"IFERROR(VLOOKUP(B1182,Translation!$A:$C,3,FALSE),B1182)","v":"Cumul 2019"},{"$f":"IFERROR(VLOOKUP(C1182,Translation!$A:$C,3,FALSE),C1182)","v":"ASSURANCE DE PORTEFEUILLE"},{"$f":"IFERROR(VLOOKUP(D1182,Translation!$A:$C,3,FALSE),D1182)","v":"Terre-Neuve-et-Labrador"},{"$f":"IFERROR(VLOOKUP(E1182,Translation!$A:$C,3,FALSE),E1182)","v":761.91972800376107},{"$f":"IFERROR(VLOOKUP(F1182,Translation!$A:$C,3,FALSE),F1182)","v":"Prêts hypothécaires assurés au cours de la période selon le pointage de crédit à l’initiation (%)"},{"$f":"IFERROR(VLOOKUP(G1182,Translation!$A:$C,3,FALSE),G1182)","v":"761.9"},{"$f":"IFERROR(VLOOKUP(H1182,Translation!$A:$C,3,FALSE),H1182)","v":"Terre-Neuve-et-Labrador"}]
[13,"Cumul 2019","ASSURANCE DE PORTEFEUILLE","Île-du-Prince-Édouard",740.81505628054595,"Prêts hypothécaires assurés au cours de la période selon le pointage de crédit à l’initiation (%)","740.8","Île-du-Prince-Édouard",{"$f":"IFERROR(VLOOKUP(A1183,Translation!$A:$C,3,FALSE),A1183)","v":13},{"$f":"IFERROR(VLOOKUP(B1183,Translation!$A:$C,3,FALSE),B1183)","v":"Cumul 2019"},{"$f":"IFERROR(VLOOKUP(C1183,Translation!$A:$C,3,FALSE),C1183)","v":"ASSURANCE DE PORTEFEUILLE"},{"$f":"IFERROR(VLOOKUP(D1183,Translation!$A:$C,3,FALSE),D1183)","v":"Île-du-Prince-Édouard"},{"$f":"IFERROR(VLOOKUP(E1183,Translation!$A:$C,3,FALSE),E1183)","v":740.81505628054595},{"$f":"IFERROR(VLOOKUP(F1183,Translation!$A:$C,3,FALSE),F1183)","v":"Prêts hypothécaires assurés au cours de la période selon le pointage de crédit à l’initiation (%)"},{"$f":"IFERROR(VLOOKUP(G1183,Translation!$A:$C,3,FALSE),G1183)","v":"740.8"},{"$f":"IFERROR(VLOOKUP(H1183,Translation!$A:$C,3,FALSE),H1183)","v":"Île-du-Prince-Édouard"}]
[13,"Cumul 2019","ASSURANCE DE PORTEFEUILLE","Nouvelle-Écosse",764.82666042953986,"Prêts hypothécaires assurés au cours de la période selon le pointage de crédit à l’initiation (%)","764.8","Nouvelle-Écosse",{"$f":"IFERROR(VLOOKUP(A1184,Translation!$A:$C,3,FALSE),A1184)","v":13},{"$f":"IFERROR(VLOOKUP(B1184,Translation!$A:$C,3,FALSE),B1184)","v":"Cumul 2019"},{"$f":"IFERROR(VLOOKUP(C1184,Translation!$A:$C,3,FALSE),C1184)","v":"ASSURANCE DE PORTEFEUILLE"},{"$f":"IFERROR(VLOOKUP(D1184,Translation!$A:$C,3,FALSE),D1184)","v":"Nouvelle-Écosse"},{"$f":"IFERROR(VLOOKUP(E1184,Translation!$A:$C,3,FALSE),E1184)","v":764.82666042953986},{"$f":"IFERROR(VLOOKUP(F1184,Translation!$A:$C,3,FALSE),F1184)","v":"Prêts hypothécaires assurés au cours de la période selon le pointage de crédit à l’initiation (%)"},{"$f":"IFERROR(VLOOKUP(G1184,Translation!$A:$C,3,FALSE),G1184)","v":"764.8"},{"$f":"IFERROR(VLOOKUP(H1184,Translation!$A:$C,3,FALSE),H1184)","v":"Nouvelle-Écosse"}]
[13,"Cumul 2019","ASSURANCE DE PORTEFEUILLE","Nouveau-Brunswick",734.89002373127505,"Prêts hypothécaires assurés au cours de la période selon le pointage de crédit à l’initiation (%)","734.9","Nouveau-Brunswick",{"$f":"IFERROR(VLOOKUP(A1185,Translation!$A:$C,3,FALSE),A1185)","v":13},{"$f":"IFERROR(VLOOKUP(B1185,Translation!$A:$C,3,FALSE),B1185)","v":"Cumul 2019"},{"$f":"IFERROR(VLOOKUP(C1185,Translation!$A:$C,3,FALSE),C1185)","v":"ASSURANCE DE PORTEFEUILLE"},{"$f":"IFERROR(VLOOKUP(D1185,Translation!$A:$C,3,FALSE),D1185)","v":"Nouveau-Brunswick"},{"$f":"IFERROR(VLOOKUP(E1185,Translation!$A:$C,3,FALSE),E1185)","v":734.89002373127505},{"$f":"IFERROR(VLOOKUP(F1185,Translation!$A:$C,3,FALSE),F1185)","v":"Prêts hypothécaires assurés au cours de la période selon le pointage de crédit à l’initiation (%)"},{"$f":"IFERROR(VLOOKUP(G1185,Translation!$A:$C,3,FALSE),G1185)","v":"734.9"},{"$f":"IFERROR(VLOOKUP(H1185,Translation!$A:$C,3,FALSE),H1185)","v":"Nouveau-Brunswick"}]
[13,"Cumul 2019","ASSURANCE DE PORTEFEUILLE","Québec",767.13200750319436,"Prêts hypothécaires assurés au cours de la période selon le pointage de crédit à l’initiation (%)","767.1","Québec",{"$f":"IFERROR(VLOOKUP(A1186,Translation!$A:$C,3,FALSE),A1186)","v":13},{"$f":"IFERROR(VLOOKUP(B1186,Translation!$A:$C,3,FALSE),B1186)","v":"Cumul 2019"},{"$f":"IFERROR(VLOOKUP(C1186,Translation!$A:$C,3,FALSE),C1186)","v":"ASSURANCE DE PORTEFEUILLE"},{"$f":"IFERROR(VLOOKUP(D1186,Translation!$A:$C,3,FALSE),D1186)","v":"Québec"},{"$f":"IFERROR(VLOOKUP(E1186,Translation!$A:$C,3,FALSE),E1186)","v":767.13200750319436},{"$f":"IFERROR(VLOOKUP(F1186,Translation!$A:$C,3,FALSE),F1186)","v":"Prêts hypothécaires assurés au cours de la période selon le pointage de crédit à l’initiation (%)"},{"$f":"IFERROR(VLOOKUP(G1186,Translation!$A:$C,3,FALSE),G1186)","v":"767.1"},{"$f":"IFERROR(VLOOKUP(H1186,Translation!$A:$C,3,FALSE),H1186)","v":"Québec"}]
[13,"Cumul 2019","ASSURANCE DE PORTEFEUILLE","Ontario",758.3108326970214,"Prêts hypothécaires assurés au cours de la période selon le pointage de crédit à l’initiation (%)","758.3","Ontario",{"$f":"IFERROR(VLOOKUP(A1187,Translation!$A:$C,3,FALSE),A1187)","v":13},{"$f":"IFERROR(VLOOKUP(B1187,Translation!$A:$C,3,FALSE),B1187)","v":"Cumul 2019"},{"$f":"IFERROR(VLOOKUP(C1187,Translation!$A:$C,3,FALSE),C1187)","v":"ASSURANCE DE PORTEFEUILLE"},{"$f":"IFERROR(VLOOKUP(D1187,Translation!$A:$C,3,FALSE),D1187)","v":"Ontario"},{"$f":"IFERROR(VLOOKUP(E1187,Translation!$A:$C,3,FALSE),E1187)","v":758.3108326970214},{"$f":"IFERROR(VLOOKUP(F1187,Translation!$A:$C,3,FALSE),F1187)","v":"Prêts hypothécaires assurés au cours de la période selon le pointage de crédit à l’initiation (%)"},{"$f":"IFERROR(VLOOKUP(G1187,Translation!$A:$C,3,FALSE),G1187)","v":"758.3"},{"$f":"IFERROR(VLOOKUP(H1187,Translation!$A:$C,3,FALSE),H1187)","v":"Ontario"}]
[13,"Cumul 2019","ASSURANCE DE PORTEFEUILLE","Manitoba",762.04230227427445,"Prêts hypothécaires assurés au cours de la période selon le pointage de crédit à l’initiation (%)","762.0","Manitoba",{"$f":"IFERROR(VLOOKUP(A1188,Translation!$A:$C,3,FALSE),A1188)","v":13},{"$f":"IFERROR(VLOOKUP(B1188,Translation!$A:$C,3,FALSE),B1188)","v":"Cumul 2019"},{"$f":"IFERROR(VLOOKUP(C1188,Translation!$A:$C,3,FALSE),C1188)","v":"ASSURANCE DE PORTEFEUILLE"},{"$f":"IFERROR(VLOOKUP(D1188,Translation!$A:$C,3,FALSE),D1188)","v":"Manitoba"},{"$f":"IFERROR(VLOOKUP(E1188,Translation!$A:$C,3,FALSE),E1188)","v":762.04230227427445},{"$f":"IFERROR(VLOOKUP(F1188,Translation!$A:$C,3,FALSE),F1188)","v":"Prêts hypothécaires assurés au cours de la période selon le pointage de crédit à l’initiation (%)"},{"$f":"IFERROR(VLOOKUP(G1188,Translation!$A:$C,3,FALSE),G1188)","v":"762.0"},{"$f":"IFERROR(VLOOKUP(H1188,Translation!$A:$C,3,FALSE),H1188)","v":"Manitoba"}]
[13,"Cumul 2019","ASSURANCE DE PORTEFEUILLE","Saskatchewan",765.20805801466236,"Prêts hypothécaires assurés au cours de la période selon le pointage de crédit à l’initiation (%)","765.2","Saskatchewan",{"$f":"IFERROR(VLOOKUP(A1189,Translation!$A:$C,3,FALSE),A1189)","v":13},{"$f":"IFERROR(VLOOKUP(B1189,Translation!$A:$C,3,FALSE),B1189)","v":"Cumul 2019"},{"$f":"IFERROR(VLOOKUP(C1189,Translation!$A:$C,3,FALSE),C1189)","v":"ASSURANCE DE PORTEFEUILLE"},{"$f":"IFERROR(VLOOKUP(D1189,Translation!$A:$C,3,FALSE),D1189)","v":"Saskatchewan"},{"$f":"IFERROR(VLOOKUP(E1189,Translation!$A:$C,3,FALSE),E1189)","v":765.20805801466236},{"$f":"IFERROR(VLOOKUP(F1189,Translation!$A:$C,3,FALSE),F1189)","v":"Prêts hypothécaires assurés au cours de la période selon le pointage de crédit à l’initiation (%)"},{"$f":"IFERROR(VLOOKUP(G1189,Translation!$A:$C,3,FALSE),G1189)","v":"765.2"},{"$f":"IFERROR(VLOOKUP(H1189,Translation!$A:$C,3,FALSE),H1189)","v":"Saskatchewan"}]
[13,"Cumul 2019","ASSURANCE DE PORTEFEUILLE","Alberta",764.74361158326099,"Prêts hypothécaires assurés au cours de la période selon le pointage de crédit à l’initiation (%)","764.7","Alberta",{"$f":"IFERROR(VLOOKUP(A1190,Translation!$A:$C,3,FALSE),A1190)","v":13},{"$f":"IFERROR(VLOOKUP(B1190,Translation!$A:$C,3,FALSE),B1190)","v":"Cumul 2019"},{"$f":"IFERROR(VLOOKUP(C1190,Translation!$A:$C,3,FALSE),C1190)","v":"ASSURANCE DE PORTEFEUILLE"},{"$f":"IFERROR(VLOOKUP(D1190,Translation!$A:$C,3,FALSE),D1190)","v":"Alberta"},{"$f":"IFERROR(VLOOKUP(E1190,Translation!$A:$C,3,FALSE),E1190)","v":764.74361158326099},{"$f":"IFERROR(VLOOKUP(F1190,Translation!$A:$C,3,FALSE),F1190)","v":"Prêts hypothécaires assurés au cours de la période selon le pointage de crédit à l’initiation (%)"},{"$f":"IFERROR(VLOOKUP(G1190,Translation!$A:$C,3,FALSE),G1190)","v":"764.7"},{"$f":"IFERROR(VLOOKUP(H1190,Translation!$A:$C,3,FALSE),H1190)","v":"Alberta"}]
[13,"Cumul 2019","ASSURANCE DE PORTEFEUILLE","Colombie-Britannique",773.19143069073061,"Prêts hypothécaires assurés au cours de la période selon le pointage de crédit à l’initiation (%)","773.2","Colombie-Britannique",{"$f":"IFERROR(VLOOKUP(A1191,Translation!$A:$C,3,FALSE),A1191)","v":13},{"$f":"IFERROR(VLOOKUP(B1191,Translation!$A:$C,3,FALSE),B1191)","v":"Cumul 2019"},{"$f":"IFERROR(VLOOKUP(C1191,Translation!$A:$C,3,FALSE),C1191)","v":"ASSURANCE DE PORTEFEUILLE"},{"$f":"IFERROR(VLOOKUP(D1191,Translation!$A:$C,3,FALSE),D1191)","v":"Colombie-Britannique"},{"$f":"IFERROR(VLOOKUP(E1191,Translation!$A:$C,3,FALSE),E1191)","v":773.19143069073061},{"$f":"IFERROR(VLOOKUP(F1191,Translation!$A:$C,3,FALSE),F1191)","v":"Prêts hypothécaires assurés au cours de la période selon le pointage de crédit à l’initiation (%)"},{"$f":"IFERROR(VLOOKUP(G1191,Translation!$A:$C,3,FALSE),G1191)","v":"773.2"},{"$f":"IFERROR(VLOOKUP(H1191,Translation!$A:$C,3,FALSE),H1191)","v":"Colombie-Britannique"}]
[13,"Cumul 2019","ASSURANCE DE PORTEFEUILLE","Territoires",813.99999999999989,"Prêts hypothécaires assurés au cours de la période selon le pointage de crédit à l’initiation (%)","814.0","Territoires",{"$f":"IFERROR(VLOOKUP(A1192,Translation!$A:$C,3,FALSE),A1192)","v":13},{"$f":"IFERROR(VLOOKUP(B1192,Translation!$A:$C,3,FALSE),B1192)","v":"Cumul 2019"},{"$f":"IFERROR(VLOOKUP(C1192,Translation!$A:$C,3,FALSE),C1192)","v":"ASSURANCE DE PORTEFEUILLE"},{"$f":"IFERROR(VLOOKUP(D1192,Translation!$A:$C,3,FALSE),D1192)","v":"Territoires"},{"$f":"IFERROR(VLOOKUP(E1192,Translation!$A:$C,3,FALSE),E1192)","v":813.99999999999989},{"$f":"IFERROR(VLOOKUP(F1192,Translation!$A:$C,3,FALSE),F1192)","v":"Prêts hypothécaires assurés au cours de la période selon le pointage de crédit à l’initiation (%)"},{"$f":"IFERROR(VLOOKUP(G1192,Translation!$A:$C,3,FALSE),G1192)","v":"814.0"},{"$f":"IFERROR(VLOOKUP(H1192,Translation!$A:$C,3,FALSE),H1192)","v":"Territoires"}]
[13,"Cumul 2020","ASSURANCE DE PORTEFEUILLE","Terre-Neuve-et-Labrador",763.12058786323917,"Prêts hypothécaires assurés au cours de la période selon le pointage de crédit à l’initiation (%)","763.1","Terre-Neuve-et-Labrador",{"$f":"IFERROR(VLOOKUP(A1193,Translation!$A:$C,3,FALSE),A1193)","v":13},{"$f":"IFERROR(VLOOKUP(B1193,Translation!$A:$C,3,FALSE),B1193)","v":"Cumul 2020"},{"$f":"IFERROR(VLOOKUP(C1193,Translation!$A:$C,3,FALSE),C1193)","v":"ASSURANCE DE PORTEFEUILLE"},{"$f":"IFERROR(VLOOKUP(D1193,Translation!$A:$C,3,FALSE),D1193)","v":"Terre-Neuve-et-Labrador"},{"$f":"IFERROR(VLOOKUP(E1193,Translation!$A:$C,3,FALSE),E1193)","v":763.12058786323917},{"$f":"IFERROR(VLOOKUP(F1193,Translation!$A:$C,3,FALSE),F1193)","v":"Prêts hypothécaires assurés au cours de la période selon le pointage de crédit à l’initiation (%)"},{"$f":"IFERROR(VLOOKUP(G1193,Translation!$A:$C,3,FALSE),G1193)","v":"763.1"},{"$f":"IFERROR(VLOOKUP(H1193,Translation!$A:$C,3,FALSE),H1193)","v":"Terre-Neuve-et-Labrador"}]
[13,"Cumul 2020","ASSURANCE DE PORTEFEUILLE","Nouvelle-Écosse",773.670453316004,"Prêts hypothécaires assurés au cours de la période selon le pointage de crédit à l’initiation (%)","773.7","Nouvelle-Écosse",{"$f":"IFERROR(VLOOKUP(A1194,Translation!$A:$C,3,FALSE),A1194)","v":13},{"$f":"IFERROR(VLOOKUP(B1194,Translation!$A:$C,3,FALSE),B1194)","v":"Cumul 2020"},{"$f":"IFERROR(VLOOKUP(C1194,Translation!$A:$C,3,FALSE),C1194)","v":"ASSURANCE DE PORTEFEUILLE"},{"$f":"IFERROR(VLOOKUP(D1194,Translation!$A:$C,3,FALSE),D1194)","v":"Nouvelle-Écosse"},{"$f":"IFERROR(VLOOKUP(E1194,Translation!$A:$C,3,FALSE),E1194)","v":773.670453316004},{"$f":"IFERROR(VLOOKUP(F1194,Translation!$A:$C,3,FALSE),F1194)","v":"Prêts hypothécaires assurés au cours de la période selon le pointage de crédit à l’initiation (%)"},{"$f":"IFERROR(VLOOKUP(G1194,Translation!$A:$C,3,FALSE),G1194)","v":"773.7"},{"$f":"IFERROR(VLOOKUP(H1194,Translation!$A:$C,3,FALSE),H1194)","v":"Nouvelle-Écosse"}]
[13,"Cumul 2020","ASSURANCE DE PORTEFEUILLE","Nouveau-Brunswick",761.48936439364559,"Prêts hypothécaires assurés au cours de la période selon le pointage de crédit à l’initiation (%)","761.5","Nouveau-Brunswick",{"$f":"IFERROR(VLOOKUP(A1195,Translation!$A:$C,3,FALSE),A1195)","v":13},{"$f":"IFERROR(VLOOKUP(B1195,Translation!$A:$C,3,FALSE),B1195)","v":"Cumul 2020"},{"$f":"IFERROR(VLOOKUP(C1195,Translation!$A:$C,3,FALSE),C1195)","v":"ASSURANCE DE PORTEFEUILLE"},{"$f":"IFERROR(VLOOKUP(D1195,Translation!$A:$C,3,FALSE),D1195)","v":"Nouveau-Brunswick"},{"$f":"IFERROR(VLOOKUP(E1195,Translation!$A:$C,3,FALSE),E1195)","v":761.48936439364559},{"$f":"IFERROR(VLOOKUP(F1195,Translation!$A:$C,3,FALSE),F1195)","v":"Prêts hypothécaires assurés au cours de la période selon le pointage de crédit à l’initiation (%)"},{"$f":"IFERROR(VLOOKUP(G1195,Translation!$A:$C,3,FALSE),G1195)","v":"761.5"},{"$f":"IFERROR(VLOOKUP(H1195,Translation!$A:$C,3,FALSE),H1195)","v":"Nouveau-Brunswick"}]
[13,"Cumul 2020","ASSURANCE DE PORTEFEUILLE","Québec",766.87406818904003,"Prêts hypothécaires assurés au cours de la période selon le pointage de crédit à l’initiation (%)","766.9","Québec",{"$f":"IFERROR(VLOOKUP(A1196,Translation!$A:$C,3,FALSE),A1196)","v":13},{"$f":"IFERROR(VLOOKUP(B1196,Translation!$A:$C,3,FALSE),B1196)","v":"Cumul 2020"},{"$f":"IFERROR(VLOOKUP(C1196,Translation!$A:$C,3,FALSE),C1196)","v":"ASSURANCE DE PORTEFEUILLE"},{"$f":"IFERROR(VLOOKUP(D1196,Translation!$A:$C,3,FALSE),D1196)","v":"Québec"},{"$f":"IFERROR(VLOOKUP(E1196,Translation!$A:$C,3,FALSE),E1196)","v":766.87406818904003},{"$f":"IFERROR(VLOOKUP(F1196,Translation!$A:$C,3,FALSE),F1196)","v":"Prêts hypothécaires assurés au cours de la période selon le pointage de crédit à l’initiation (%)"},{"$f":"IFERROR(VLOOKUP(G1196,Translation!$A:$C,3,FALSE),G1196)","v":"766.9"},{"$f":"IFERROR(VLOOKUP(H1196,Translation!$A:$C,3,FALSE),H1196)","v":"Québec"}]
[13,"Cumul 2020","ASSURANCE DE PORTEFEUILLE","Ontario",770.64510092559487,"Prêts hypothécaires assurés au cours de la période selon le pointage de crédit à l’initiation (%)","770.6","Ontario",{"$f":"IFERROR(VLOOKUP(A1197,Translation!$A:$C,3,FALSE),A1197)","v":13},{"$f":"IFERROR(VLOOKUP(B1197,Translation!$A:$C,3,FALSE),B1197)","v":"Cumul 2020"},{"$f":"IFERROR(VLOOKUP(C1197,Translation!$A:$C,3,FALSE),C1197)","v":"ASSURANCE DE PORTEFEUILLE"},{"$f":"IFERROR(VLOOKUP(D1197,Translation!$A:$C,3,FALSE),D1197)","v":"Ontario"},{"$f":"IFERROR(VLOOKUP(E1197,Translation!$A:$C,3,FALSE),E1197)","v":770.64510092559487},{"$f":"IFERROR(VLOOKUP(F1197,Translation!$A:$C,3,FALSE),F1197)","v":"Prêts hypothécaires assurés au cours de la période selon le pointage de crédit à l’initiation (%)"},{"$f":"IFERROR(VLOOKUP(G1197,Translation!$A:$C,3,FALSE),G1197)","v":"770.6"},{"$f":"IFERROR(VLOOKUP(H1197,Translation!$A:$C,3,FALSE),H1197)","v":"Ontario"}]
[13,"Cumul 2020","ASSURANCE DE PORTEFEUILLE","Manitoba",749.87456820308307,"Prêts hypothécaires assurés au cours de la période selon le pointage de crédit à l’initiation (%)","749.9","Manitoba",{"$f":"IFERROR(VLOOKUP(A1198,Translation!$A:$C,3,FALSE),A1198)","v":13},{"$f":"IFERROR(VLOOKUP(B1198,Translation!$A:$C,3,FALSE),B1198)","v":"Cumul 2020"},{"$f":"IFERROR(VLOOKUP(C1198,Translation!$A:$C,3,FALSE),C1198)","v":"ASSURANCE DE PORTEFEUILLE"},{"$f":"IFERROR(VLOOKUP(D1198,Translation!$A:$C,3,FALSE),D1198)","v":"Manitoba"},{"$f":"IFERROR(VLOOKUP(E1198,Translation!$A:$C,3,FALSE),E1198)","v":749.87456820308307},{"$f":"IFERROR(VLOOKUP(F1198,Translation!$A:$C,3,FALSE),F1198)","v":"Prêts hypothécaires assurés au cours de la période selon le pointage de crédit à l’initiation (%)"},{"$f":"IFERROR(VLOOKUP(G1198,Translation!$A:$C,3,FALSE),G1198)","v":"749.9"},{"$f":"IFERROR(VLOOKUP(H1198,Translation!$A:$C,3,FALSE),H1198)","v":"Manitoba"}]
[13,"Cumul 2020","ASSURANCE DE PORTEFEUILLE","Saskatchewan",779.08278181743651,"Prêts hypothécaires assurés au cours de la période selon le pointage de crédit à l’initiation (%)","779.1","Saskatchewan",{"$f":"IFERROR(VLOOKUP(A1199,Translation!$A:$C,3,FALSE),A1199)","v":13},{"$f":"IFERROR(VLOOKUP(B1199,Translation!$A:$C,3,FALSE),B1199)","v":"Cumul 2020"},{"$f":"IFERROR(VLOOKUP(C1199,Translation!$A:$C,3,FALSE),C1199)","v":"ASSURANCE DE PORTEFEUILLE"},{"$f":"IFERROR(VLOOKUP(D1199,Translation!$A:$C,3,FALSE),D1199)","v":"Saskatchewan"},{"$f":"IFERROR(VLOOKUP(E1199,Translation!$A:$C,3,FALSE),E1199)","v":779.08278181743651},{"$f":"IFERROR(VLOOKUP(F1199,Translation!$A:$C,3,FALSE),F1199)","v":"Prêts hypothécaires assurés au cours de la période selon le pointage de crédit à l’initiation (%)"},{"$f":"IFERROR(VLOOKUP(G1199,Translation!$A:$C,3,FALSE),G1199)","v":"779.1"},{"$f":"IFERROR(VLOOKUP(H1199,Translation!$A:$C,3,FALSE),H1199)","v":"Saskatchewan"}]
[13,"Cumul 2020","ASSURANCE DE PORTEFEUILLE","Alberta",774.67813589219008,"Prêts hypothécaires assurés au cours de la période selon le pointage de crédit à l’initiation (%)","774.7","Alberta",{"$f":"IFERROR(VLOOKUP(A1200,Translation!$A:$C,3,FALSE),A1200)","v":13},{"$f":"IFERROR(VLOOKUP(B1200,Translation!$A:$C,3,FALSE),B1200)","v":"Cumul 2020"},{"$f":"IFERROR(VLOOKUP(C1200,Translation!$A:$C,3,FALSE),C1200)","v":"ASSURANCE DE PORTEFEUILLE"},{"$f":"IFERROR(VLOOKUP(D1200,Translation!$A:$C,3,FALSE),D1200)","v":"Alberta"},{"$f":"IFERROR(VLOOKUP(E1200,Translation!$A:$C,3,FALSE),E1200)","v":774.67813589219008},{"$f":"IFERROR(VLOOKUP(F1200,Translation!$A:$C,3,FALSE),F1200)","v":"Prêts hypothécaires assurés au cours de la période selon le pointage de crédit à l’initiation (%)"},{"$f":"IFERROR(VLOOKUP(G1200,Translation!$A:$C,3,FALSE),G1200)","v":"774.7"},{"$f":"IFERROR(VLOOKUP(H1200,Translation!$A:$C,3,FALSE),H1200)","v":"Alberta"}]
[13,"Cumul 2020","ASSURANCE DE PORTEFEUILLE","Colombie-Britannique",774.61220332855021,"Prêts hypothécaires assurés au cours de la période selon le pointage de crédit à l’initiation (%)","774.6","Colombie-Britannique",{"$f":"IFERROR(VLOOKUP(A1201,Translation!$A:$C,3,FALSE),A1201)","v":13},{"$f":"IFERROR(VLOOKUP(B1201,Translation!$A:$C,3,FALSE),B1201)","v":"Cumul 2020"},{"$f":"IFERROR(VLOOKUP(C1201,Translation!$A:$C,3,FALSE),C1201)","v":"ASSURANCE DE PORTEFEUILLE"},{"$f":"IFERROR(VLOOKUP(D1201,Translation!$A:$C,3,FALSE),D1201)","v":"Colombie-Britannique"},{"$f":"IFERROR(VLOOKUP(E1201,Translation!$A:$C,3,FALSE),E1201)","v":774.61220332855021},{"$f":"IFERROR(VLOOKUP(F1201,Translation!$A:$C,3,FALSE),F1201)","v":"Prêts hypothécaires assurés au cours de la période selon le pointage de crédit à l’initiation (%)"},{"$f":"IFERROR(VLOOKUP(G1201,Translation!$A:$C,3,FALSE),G1201)","v":"774.6"},{"$f":"IFERROR(VLOOKUP(H1201,Translation!$A:$C,3,FALSE),H1201)","v":"Colombie-Britannique"}]
[13,"T4 2019","PROPRIÉTAIRES-OCCUPANTS, À L’UNITÉ","Aucun pointage de crédit",4.6074228726421203E-2,"Prêts hypothécaires assurés au cours de la période selon le pointage de crédit à l’initiation (%)","0.0","Aucun pointage de crédit",{"$f":"IFERROR(VLOOKUP(A1202,Translation!$A:$C,3,FALSE),A1202)","v":13},{"$f":"IFERROR(VLOOKUP(B1202,Translation!$A:$C,3,FALSE),B1202)","v":"T4 2019"},{"$f":"IFERROR(VLOOKUP(C1202,Translation!$A:$C,3,FALSE),C1202)","v":"PROPRIÉTAIRES-OCCUPANTS, À L’UNITÉ"},{"$f":"IFERROR(VLOOKUP(D1202,Translation!$A:$C,3,FALSE),D1202)","v":"Aucun pointage de crédit"},{"$f":"IFERROR(VLOOKUP(E1202,Translation!$A:$C,3,FALSE),E1202)","v":4.6074228726421203E-2},{"$f":"IFERROR(VLOOKUP(F1202,Translation!$A:$C,3,FALSE),F1202)","v":"Prêts hypothécaires assurés au cours de la période selon le pointage de crédit à l’initiation (%)"},{"$f":"IFERROR(VLOOKUP(G1202,Translation!$A:$C,3,FALSE),G1202)","v":"0.0"},{"$f":"IFERROR(VLOOKUP(H1202,Translation!$A:$C,3,FALSE),H1202)","v":"Aucun pointage de crédit"}]
[13,"Cumul 2018","PROPRIÉTAIRES-OCCUPANTS, À L’UNITÉ","Aucun pointage de crédit",3.5209171720262953E-3,"Prêts hypothécaires assurés au cours de la période selon le pointage de crédit à l’initiation (%)","0.0","Aucun pointage de crédit",{"$f":"IFERROR(VLOOKUP(A1203,Translation!$A:$C,3,FALSE),A1203)","v":13},{"$f":"IFERROR(VLOOKUP(B1203,Translation!$A:$C,3,FALSE),B1203)","v":"Cumul 2018"},{"$f":"IFERROR(VLOOKUP(C1203,Translation!$A:$C,3,FALSE),C1203)","v":"PROPRIÉTAIRES-OCCUPANTS, À L’UNITÉ"},{"$f":"IFERROR(VLOOKUP(D1203,Translation!$A:$C,3,FALSE),D1203)","v":"Aucun pointage de crédit"},{"$f":"IFERROR(VLOOKUP(E1203,Translation!$A:$C,3,FALSE),E1203)","v":3.5209171720262953E-3},{"$f":"IFERROR(VLOOKUP(F1203,Translation!$A:$C,3,FALSE),F1203)","v":"Prêts hypothécaires assurés au cours de la période selon le pointage de crédit à l’initiation (%)"},{"$f":"IFERROR(VLOOKUP(G1203,Translation!$A:$C,3,FALSE),G1203)","v":"0.0"},{"$f":"IFERROR(VLOOKUP(H1203,Translation!$A:$C,3,FALSE),H1203)","v":"Aucun pointage de crédit"}]
[13,"T4 2019","PROPRIÉTAIRES-OCCUPANTS, À L’UNITÉ","< 600",0.34135356141188916,"Prêts hypothécaires assurés au cours de la période selon le pointage de crédit à l’initiation (%)","0.3"," < 600",{"$f":"IFERROR(VLOOKUP(A1204,Translation!$A:$C,3,FALSE),A1204)","v":13},{"$f":"IFERROR(VLOOKUP(B1204,Translation!$A:$C,3,FALSE),B1204)","v":"T4 2019"},{"$f":"IFERROR(VLOOKUP(C1204,Translation!$A:$C,3,FALSE),C1204)","v":"PROPRIÉTAIRES-OCCUPANTS, À L’UNITÉ"},{"$f":"IFERROR(VLOOKUP(D1204,Translation!$A:$C,3,FALSE),D1204)","v":"< 600"},{"$f":"IFERROR(VLOOKUP(E1204,Translation!$A:$C,3,FALSE),E1204)","v":0.34135356141188916},{"$f":"IFERROR(VLOOKUP(F1204,Translation!$A:$C,3,FALSE),F1204)","v":"Prêts hypothécaires assurés au cours de la période selon le pointage de crédit à l’initiation (%)"},{"$f":"IFERROR(VLOOKUP(G1204,Translation!$A:$C,3,FALSE),G1204)","v":"0.3"},{"$f":"IFERROR(VLOOKUP(H1204,Translation!$A:$C,3,FALSE),H1204)","v":" < 600"}]
[13,"Cumul 2018","PROPRIÉTAIRES-OCCUPANTS, À L’UNITÉ","< 600",0.33260370475624568,"Prêts hypothécaires assurés au cours de la période selon le pointage de crédit à l’initiation (%)","0.3"," < 600",{"$f":"IFERROR(VLOOKUP(A1205,Translation!$A:$C,3,FALSE),A1205)","v":13},{"$f":"IFERROR(VLOOKUP(B1205,Translation!$A:$C,3,FALSE),B1205)","v":"Cumul 2018"},{"$f":"IFERROR(VLOOKUP(C1205,Translation!$A:$C,3,FALSE),C1205)","v":"PROPRIÉTAIRES-OCCUPANTS, À L’UNITÉ"},{"$f":"IFERROR(VLOOKUP(D1205,Translation!$A:$C,3,FALSE),D1205)","v":"< 600"},{"$f":"IFERROR(VLOOKUP(E1205,Translation!$A:$C,3,FALSE),E1205)","v":0.33260370475624568},{"$f":"IFERROR(VLOOKUP(F1205,Translation!$A:$C,3,FALSE),F1205)","v":"Prêts hypothécaires assurés au cours de la période selon le pointage de crédit à l’initiation (%)"},{"$f":"IFERROR(VLOOKUP(G1205,Translation!$A:$C,3,FALSE),G1205)","v":"0.3"},{"$f":"IFERROR(VLOOKUP(H1205,Translation!$A:$C,3,FALSE),H1205)","v":" < 600"}]
[13,"T4 2019","PROPRIÉTAIRES-OCCUPANTS, À L’UNITÉ",">= 600 < 680",4.8167690399245453,"Prêts hypothécaires assurés au cours de la période selon le pointage de crédit à l’initiation (%)","4.8"," >= 600 < 680",{"$f":"IFERROR(VLOOKUP(A1206,Translation!$A:$C,3,FALSE),A1206)","v":13},{"$f":"IFERROR(VLOOKUP(B1206,Translation!$A:$C,3,FALSE),B1206)","v":"T4 2019"},{"$f":"IFERROR(VLOOKUP(C1206,Translation!$A:$C,3,FALSE),C1206)","v":"PROPRIÉTAIRES-OCCUPANTS, À L’UNITÉ"},{"$f":"IFERROR(VLOOKUP(D1206,Translation!$A:$C,3,FALSE),D1206)","v":">= 600 < 680"},{"$f":"IFERROR(VLOOKUP(E1206,Translation!$A:$C,3,FALSE),E1206)","v":4.8167690399245453},{"$f":"IFERROR(VLOOKUP(F1206,Translation!$A:$C,3,FALSE),F1206)","v":"Prêts hypothécaires assurés au cours de la période selon le pointage de crédit à l’initiation (%)"},{"$f":"IFERROR(VLOOKUP(G1206,Translation!$A:$C,3,FALSE),G1206)","v":"4.8"},{"$f":"IFERROR(VLOOKUP(H1206,Translation!$A:$C,3,FALSE),H1206)","v":" >= 600 < 680"}]
[13,"Cumul 2018","PROPRIÉTAIRES-OCCUPANTS, À L’UNITÉ",">= 600 < 680",5.8810335201752846,"Prêts hypothécaires assurés au cours de la période selon le pointage de crédit à l’initiation (%)","5.9"," >= 600 < 680",{"$f":"IFERROR(VLOOKUP(A1207,Translation!$A:$C,3,FALSE),A1207)","v":13},{"$f":"IFERROR(VLOOKUP(B1207,Translation!$A:$C,3,FALSE),B1207)","v":"Cumul 2018"},{"$f":"IFERROR(VLOOKUP(C1207,Translation!$A:$C,3,FALSE),C1207)","v":"PROPRIÉTAIRES-OCCUPANTS, À L’UNITÉ"},{"$f":"IFERROR(VLOOKUP(D1207,Translation!$A:$C,3,FALSE),D1207)","v":">= 600 < 680"},{"$f":"IFERROR(VLOOKUP(E1207,Translation!$A:$C,3,FALSE),E1207)","v":5.8810335201752846},{"$f":"IFERROR(VLOOKUP(F1207,Translation!$A:$C,3,FALSE),F1207)","v":"Prêts hypothécaires assurés au cours de la période selon le pointage de crédit à l’initiation (%)"},{"$f":"IFERROR(VLOOKUP(G1207,Translation!$A:$C,3,FALSE),G1207)","v":"5.9"},{"$f":"IFERROR(VLOOKUP(H1207,Translation!$A:$C,3,FALSE),H1207)","v":" >= 600 < 680"}]
[13,"T4 2019","PROPRIÉTAIRES-OCCUPANTS, À L’UNITÉ",">= 680 < 700",5.3853755701330037,"Prêts hypothécaires assurés au cours de la période selon le pointage de crédit à l’initiation (%)","5.4"," >= 680 < 700",{"$f":"IFERROR(VLOOKUP(A1208,Translation!$A:$C,3,FALSE),A1208)","v":13},{"$f":"IFERROR(VLOOKUP(B1208,Translation!$A:$C,3,FALSE),B1208)","v":"T4 2019"},{"$f":"IFERROR(VLOOKUP(C1208,Translation!$A:$C,3,FALSE),C1208)","v":"PROPRIÉTAIRES-OCCUPANTS, À L’UNITÉ"},{"$f":"IFERROR(VLOOKUP(D1208,Translation!$A:$C,3,FALSE),D1208)","v":">= 680 < 700"},{"$f":"IFERROR(VLOOKUP(E1208,Translation!$A:$C,3,FALSE),E1208)","v":5.3853755701330037},{"$f":"IFERROR(VLOOKUP(F1208,Translation!$A:$C,3,FALSE),F1208)","v":"Prêts hypothécaires assurés au cours de la période selon le pointage de crédit à l’initiation (%)"},{"$f":"IFERROR(VLOOKUP(G1208,Translation!$A:$C,3,FALSE),G1208)","v":"5.4"},{"$f":"IFERROR(VLOOKUP(H1208,Translation!$A:$C,3,FALSE),H1208)","v":" >= 680 < 700"}]
[13,"Cumul 2018","PROPRIÉTAIRES-OCCUPANTS, À L’UNITÉ",">= 680 < 700",5.4326603907708524,"Prêts hypothécaires assurés au cours de la période selon le pointage de crédit à l’initiation (%)","5.4"," >= 680 < 700",{"$f":"IFERROR(VLOOKUP(A1209,Translation!$A:$C,3,FALSE),A1209)","v":13},{"$f":"IFERROR(VLOOKUP(B1209,Translation!$A:$C,3,FALSE),B1209)","v":"Cumul 2018"},{"$f":"IFERROR(VLOOKUP(C1209,Translation!$A:$C,3,FALSE),C1209)","v":"PROPRIÉTAIRES-OCCUPANTS, À L’UNITÉ"},{"$f":"IFERROR(VLOOKUP(D1209,Translation!$A:$C,3,FALSE),D1209)","v":">= 680 < 700"},{"$f":"IFERROR(VLOOKUP(E1209,Translation!$A:$C,3,FALSE),E1209)","v":5.4326603907708524},{"$f":"IFERROR(VLOOKUP(F1209,Translation!$A:$C,3,FALSE),F1209)","v":"Prêts hypothécaires assurés au cours de la période selon le pointage de crédit à l’initiation (%)"},{"$f":"IFERROR(VLOOKUP(G1209,Translation!$A:$C,3,FALSE),G1209)","v":"5.4"},{"$f":"IFERROR(VLOOKUP(H1209,Translation!$A:$C,3,FALSE),H1209)","v":" >= 680 < 700"}]
[13,"T4 2019","PROPRIÉTAIRES-OCCUPANTS, À L’UNITÉ",">= 700 < 750",26.52200024231464,"Prêts hypothécaires assurés au cours de la période selon le pointage de crédit à l’initiation (%)","26.5"," >= 700 < 750",{"$f":"IFERROR(VLOOKUP(A1210,Translation!$A:$C,3,FALSE),A1210)","v":13},{"$f":"IFERROR(VLOOKUP(B1210,Translation!$A:$C,3,FALSE),B1210)","v":"T4 2019"},{"$f":"IFERROR(VLOOKUP(C1210,Translation!$A:$C,3,FALSE),C1210)","v":"PROPRIÉTAIRES-OCCUPANTS, À L’UNITÉ"},{"$f":"IFERROR(VLOOKUP(D1210,Translation!$A:$C,3,FALSE),D1210)","v":">= 700 < 750"},{"$f":"IFERROR(VLOOKUP(E1210,Translation!$A:$C,3,FALSE),E1210)","v":26.52200024231464},{"$f":"IFERROR(VLOOKUP(F1210,Translation!$A:$C,3,FALSE),F1210)","v":"Prêts hypothécaires assurés au cours de la période selon le pointage de crédit à l’initiation (%)"},{"$f":"IFERROR(VLOOKUP(G1210,Translation!$A:$C,3,FALSE),G1210)","v":"26.5"},{"$f":"IFERROR(VLOOKUP(H1210,Translation!$A:$C,3,FALSE),H1210)","v":" >= 700 < 750"}]
[13,"Cumul 2018","PROPRIÉTAIRES-OCCUPANTS, À L’UNITÉ",">= 700 < 750",27.51086289546674,"Prêts hypothécaires assurés au cours de la période selon le pointage de crédit à l’initiation (%)","27.5"," >= 700 < 750",{"$f":"IFERROR(VLOOKUP(A1211,Translation!$A:$C,3,FALSE),A1211)","v":13},{"$f":"IFERROR(VLOOKUP(B1211,Translation!$A:$C,3,FALSE),B1211)","v":"Cumul 2018"},{"$f":"IFERROR(VLOOKUP(C1211,Translation!$A:$C,3,FALSE),C1211)","v":"PROPRIÉTAIRES-OCCUPANTS, À L’UNITÉ"},{"$f":"IFERROR(VLOOKUP(D1211,Translation!$A:$C,3,FALSE),D1211)","v":">= 700 < 750"},{"$f":"IFERROR(VLOOKUP(E1211,Translation!$A:$C,3,FALSE),E1211)","v":27.51086289546674},{"$f":"IFERROR(VLOOKUP(F1211,Translation!$A:$C,3,FALSE),F1211)","v":"Prêts hypothécaires assurés au cours de la période selon le pointage de crédit à l’initiation (%)"},{"$f":"IFERROR(VLOOKUP(G1211,Translation!$A:$C,3,FALSE),G1211)","v":"27.5"},{"$f":"IFERROR(VLOOKUP(H1211,Translation!$A:$C,3,FALSE),H1211)","v":" >= 700 < 750"}]
[13,"T4 2019","PROPRIÉTAIRES-OCCUPANTS, À L’UNITÉ",">= 750 < 780",28.023474761004255,"Prêts hypothécaires assurés au cours de la période selon le pointage de crédit à l’initiation (%)","28.0"," >= 750 < 780",{"$f":"IFERROR(VLOOKUP(A1212,Translation!$A:$C,3,FALSE),A1212)","v":13},{"$f":"IFERROR(VLOOKUP(B1212,Translation!$A:$C,3,FALSE),B1212)","v":"T4 2019"},{"$f":"IFERROR(VLOOKUP(C1212,Translation!$A:$C,3,FALSE),C1212)","v":"PROPRIÉTAIRES-OCCUPANTS, À L’UNITÉ"},{"$f":"IFERROR(VLOOKUP(D1212,Translation!$A:$C,3,FALSE),D1212)","v":">= 750 < 780"},{"$f":"IFERROR(VLOOKUP(E1212,Translation!$A:$C,3,FALSE),E1212)","v":28.023474761004255},{"$f":"IFERROR(VLOOKUP(F1212,Translation!$A:$C,3,FALSE),F1212)","v":"Prêts hypothécaires assurés au cours de la période selon le pointage de crédit à l’initiation (%)"},{"$f":"IFERROR(VLOOKUP(G1212,Translation!$A:$C,3,FALSE),G1212)","v":"28.0"},{"$f":"IFERROR(VLOOKUP(H1212,Translation!$A:$C,3,FALSE),H1212)","v":" >= 750 < 780"}]
[13,"Cumul 2018","PROPRIÉTAIRES-OCCUPANTS, À L’UNITÉ",">= 750 < 780",28.053906511902472,"Prêts hypothécaires assurés au cours de la période selon le pointage de crédit à l’initiation (%)","28.1"," >= 750 < 780",{"$f":"IFERROR(VLOOKUP(A1213,Translation!$A:$C,3,FALSE),A1213)","v":13},{"$f":"IFERROR(VLOOKUP(B1213,Translation!$A:$C,3,FALSE),B1213)","v":"Cumul 2018"},{"$f":"IFERROR(VLOOKUP(C1213,Translation!$A:$C,3,FALSE),C1213)","v":"PROPRIÉTAIRES-OCCUPANTS, À L’UNITÉ"},{"$f":"IFERROR(VLOOKUP(D1213,Translation!$A:$C,3,FALSE),D1213)","v":">= 750 < 780"},{"$f":"IFERROR(VLOOKUP(E1213,Translation!$A:$C,3,FALSE),E1213)","v":28.053906511902472},{"$f":"IFERROR(VLOOKUP(F1213,Translation!$A:$C,3,FALSE),F1213)","v":"Prêts hypothécaires assurés au cours de la période selon le pointage de crédit à l’initiation (%)"},{"$f":"IFERROR(VLOOKUP(G1213,Translation!$A:$C,3,FALSE),G1213)","v":"28.1"},{"$f":"IFERROR(VLOOKUP(H1213,Translation!$A:$C,3,FALSE),H1213)","v":" >= 750 < 780"}]
[13,"T4 2019","PROPRIÉTAIRES-OCCUPANTS, À L’UNITÉ",">= 780",34.864952596485253,"Prêts hypothécaires assurés au cours de la période selon le pointage de crédit à l’initiation (%)","34.9"," >= 780",{"$f":"IFERROR(VLOOKUP(A1214,Translation!$A:$C,3,FALSE),A1214)","v":13},{"$f":"IFERROR(VLOOKUP(B1214,Translation!$A:$C,3,FALSE),B1214)","v":"T4 2019"},{"$f":"IFERROR(VLOOKUP(C1214,Translation!$A:$C,3,FALSE),C1214)","v":"PROPRIÉTAIRES-OCCUPANTS, À L’UNITÉ"},{"$f":"IFERROR(VLOOKUP(D1214,Translation!$A:$C,3,FALSE),D1214)","v":">= 780"},{"$f":"IFERROR(VLOOKUP(E1214,Translation!$A:$C,3,FALSE),E1214)","v":34.864952596485253},{"$f":"IFERROR(VLOOKUP(F1214,Translation!$A:$C,3,FALSE),F1214)","v":"Prêts hypothécaires assurés au cours de la période selon le pointage de crédit à l’initiation (%)"},{"$f":"IFERROR(VLOOKUP(G1214,Translation!$A:$C,3,FALSE),G1214)","v":"34.9"},{"$f":"IFERROR(VLOOKUP(H1214,Translation!$A:$C,3,FALSE),H1214)","v":" >= 780"}]
[13,"Cumul 2018","PROPRIÉTAIRES-OCCUPANTS, À L’UNITÉ",">= 780",32.785412059756403,"Prêts hypothécaires assurés au cours de la période selon le pointage de crédit à l’initiation (%)","32.8"," >= 780",{"$f":"IFERROR(VLOOKUP(A1215,Translation!$A:$C,3,FALSE),A1215)","v":13},{"$f":"IFERROR(VLOOKUP(B1215,Translation!$A:$C,3,FALSE),B1215)","v":"Cumul 2018"},{"$f":"IFERROR(VLOOKUP(C1215,Translation!$A:$C,3,FALSE),C1215)","v":"PROPRIÉTAIRES-OCCUPANTS, À L’UNITÉ"},{"$f":"IFERROR(VLOOKUP(D1215,Translation!$A:$C,3,FALSE),D1215)","v":">= 780"},{"$f":"IFERROR(VLOOKUP(E1215,Translation!$A:$C,3,FALSE),E1215)","v":32.785412059756403},{"$f":"IFERROR(VLOOKUP(F1215,Translation!$A:$C,3,FALSE),F1215)","v":"Prêts hypothécaires assurés au cours de la période selon le pointage de crédit à l’initiation (%)"},{"$f":"IFERROR(VLOOKUP(G1215,Translation!$A:$C,3,FALSE),G1215)","v":"32.8"},{"$f":"IFERROR(VLOOKUP(H1215,Translation!$A:$C,3,FALSE),H1215)","v":" >= 780"}]
[13,"T4 2019","PROPRIÉTAIRES-OCCUPANTS, À L’UNITÉ","Pointage de crédit moyen à l'initiation ",756.33844797701101,"Prêts hypothécaires assurés au cours de la période selon le pointage de crédit à l’initiation (%)","756.3","Pointage de crédit moyen à l'initiation ",{"$f":"IFERROR(VLOOKUP(A1216,Translation!$A:$C,3,FALSE),A1216)","v":13},{"$f":"IFERROR(VLOOKUP(B1216,Translation!$A:$C,3,FALSE),B1216)","v":"T4 2019"},{"$f":"IFERROR(VLOOKUP(C1216,Translation!$A:$C,3,FALSE),C1216)","v":"PROPRIÉTAIRES-OCCUPANTS, À L’UNITÉ"},{"$f":"IFERROR(VLOOKUP(D1216,Translation!$A:$C,3,FALSE),D1216)","v":"Pointage de crédit moyen à l'initiation "},{"$f":"IFERROR(VLOOKUP(E1216,Translation!$A:$C,3,FALSE),E1216)","v":756.33844797701101},{"$f":"IFERROR(VLOOKUP(F1216,Translation!$A:$C,3,FALSE),F1216)","v":"Prêts hypothécaires assurés au cours de la période selon le pointage de crédit à l’initiation (%)"},{"$f":"IFERROR(VLOOKUP(G1216,Translation!$A:$C,3,FALSE),G1216)","v":"756.3"},{"$f":"IFERROR(VLOOKUP(H1216,Translation!$A:$C,3,FALSE),H1216)","v":"Pointage de crédit moyen à l'initiation "}]
[13,"Cumul 2018","PROPRIÉTAIRES-OCCUPANTS, À L’UNITÉ","Pointage de crédit moyen à l'initiation ",753.95307616659682,"Prêts hypothécaires assurés au cours de la période selon le pointage de crédit à l’initiation (%)","754.0","Pointage de crédit moyen à l'initiation ",{"$f":"IFERROR(VLOOKUP(A1217,Translation!$A:$C,3,FALSE),A1217)","v":13},{"$f":"IFERROR(VLOOKUP(B1217,Translation!$A:$C,3,FALSE),B1217)","v":"Cumul 2018"},{"$f":"IFERROR(VLOOKUP(C1217,Translation!$A:$C,3,FALSE),C1217)","v":"PROPRIÉTAIRES-OCCUPANTS, À L’UNITÉ"},{"$f":"IFERROR(VLOOKUP(D1217,Translation!$A:$C,3,FALSE),D1217)","v":"Pointage de crédit moyen à l'initiation "},{"$f":"IFERROR(VLOOKUP(E1217,Translation!$A:$C,3,FALSE),E1217)","v":753.95307616659682},{"$f":"IFERROR(VLOOKUP(F1217,Translation!$A:$C,3,FALSE),F1217)","v":"Prêts hypothécaires assurés au cours de la période selon le pointage de crédit à l’initiation (%)"},{"$f":"IFERROR(VLOOKUP(G1217,Translation!$A:$C,3,FALSE),G1217)","v":"754.0"},{"$f":"IFERROR(VLOOKUP(H1217,Translation!$A:$C,3,FALSE),H1217)","v":"Pointage de crédit moyen à l'initiation "}]
[13,"T4 2019","PROPRIÉTAIRES-OCCUPANTS, À L’UNITÉ","Terre-Neuve-et-Labrador",741.18507366828987,"Prêts hypothécaires assurés au cours de la période selon le pointage de crédit à l’initiation (%)","741.2","Terre-Neuve-et-Labrador",{"$f":"IFERROR(VLOOKUP(A1218,Translation!$A:$C,3,FALSE),A1218)","v":13},{"$f":"IFERROR(VLOOKUP(B1218,Translation!$A:$C,3,FALSE),B1218)","v":"T4 2019"},{"$f":"IFERROR(VLOOKUP(C1218,Translation!$A:$C,3,FALSE),C1218)","v":"PROPRIÉTAIRES-OCCUPANTS, À L’UNITÉ"},{"$f":"IFERROR(VLOOKUP(D1218,Translation!$A:$C,3,FALSE),D1218)","v":"Terre-Neuve-et-Labrador"},{"$f":"IFERROR(VLOOKUP(E1218,Translation!$A:$C,3,FALSE),E1218)","v":741.18507366828987},{"$f":"IFERROR(VLOOKUP(F1218,Translation!$A:$C,3,FALSE),F1218)","v":"Prêts hypothécaires assurés au cours de la période selon le pointage de crédit à l’initiation (%)"},{"$f":"IFERROR(VLOOKUP(G1218,Translation!$A:$C,3,FALSE),G1218)","v":"741.2"},{"$f":"IFERROR(VLOOKUP(H1218,Translation!$A:$C,3,FALSE),H1218)","v":"Terre-Neuve-et-Labrador"}]
[13,"T4 2019","PROPRIÉTAIRES-OCCUPANTS, À L’UNITÉ","Île-du-Prince-Édouard",742.65670282964402,"Prêts hypothécaires assurés au cours de la période selon le pointage de crédit à l’initiation (%)","742.7","Île-du-Prince-Édouard",{"$f":"IFERROR(VLOOKUP(A1219,Translation!$A:$C,3,FALSE),A1219)","v":13},{"$f":"IFERROR(VLOOKUP(B1219,Translation!$A:$C,3,FALSE),B1219)","v":"T4 2019"},{"$f":"IFERROR(VLOOKUP(C1219,Translation!$A:$C,3,FALSE),C1219)","v":"PROPRIÉTAIRES-OCCUPANTS, À L’UNITÉ"},{"$f":"IFERROR(VLOOKUP(D1219,Translation!$A:$C,3,FALSE),D1219)","v":"Île-du-Prince-Édouard"},{"$f":"IFERROR(VLOOKUP(E1219,Translation!$A:$C,3,FALSE),E1219)","v":742.65670282964402},{"$f":"IFERROR(VLOOKUP(F1219,Translation!$A:$C,3,FALSE),F1219)","v":"Prêts hypothécaires assurés au cours de la période selon le pointage de crédit à l’initiation (%)"},{"$f":"IFERROR(VLOOKUP(G1219,Translation!$A:$C,3,FALSE),G1219)","v":"742.7"},{"$f":"IFERROR(VLOOKUP(H1219,Translation!$A:$C,3,FALSE),H1219)","v":"Île-du-Prince-Édouard"}]
[13,"T4 2019","PROPRIÉTAIRES-OCCUPANTS, À L’UNITÉ","Nouvelle-Écosse",748.98618073552564,"Prêts hypothécaires assurés au cours de la période selon le pointage de crédit à l’initiation (%)","749.0","Nouvelle-Écosse",{"$f":"IFERROR(VLOOKUP(A1220,Translation!$A:$C,3,FALSE),A1220)","v":13},{"$f":"IFERROR(VLOOKUP(B1220,Translation!$A:$C,3,FALSE),B1220)","v":"T4 2019"},{"$f":"IFERROR(VLOOKUP(C1220,Translation!$A:$C,3,FALSE),C1220)","v":"PROPRIÉTAIRES-OCCUPANTS, À L’UNITÉ"},{"$f":"IFERROR(VLOOKUP(D1220,Translation!$A:$C,3,FALSE),D1220)","v":"Nouvelle-Écosse"},{"$f":"IFERROR(VLOOKUP(E1220,Translation!$A:$C,3,FALSE),E1220)","v":748.98618073552564},{"$f":"IFERROR(VLOOKUP(F1220,Translation!$A:$C,3,FALSE),F1220)","v":"Prêts hypothécaires assurés au cours de la période selon le pointage de crédit à l’initiation (%)"},{"$f":"IFERROR(VLOOKUP(G1220,Translation!$A:$C,3,FALSE),G1220)","v":"749.0"},{"$f":"IFERROR(VLOOKUP(H1220,Translation!$A:$C,3,FALSE),H1220)","v":"Nouvelle-Écosse"}]
[13,"T4 2019","PROPRIÉTAIRES-OCCUPANTS, À L’UNITÉ","Nouveau-Brunswick",745.18212547493317,"Prêts hypothécaires assurés au cours de la période selon le pointage de crédit à l’initiation (%)","745.2","Nouveau-Brunswick",{"$f":"IFERROR(VLOOKUP(A1221,Translation!$A:$C,3,FALSE),A1221)","v":13},{"$f":"IFERROR(VLOOKUP(B1221,Translation!$A:$C,3,FALSE),B1221)","v":"T4 2019"},{"$f":"IFERROR(VLOOKUP(C1221,Translation!$A:$C,3,FALSE),C1221)","v":"PROPRIÉTAIRES-OCCUPANTS, À L’UNITÉ"},{"$f":"IFERROR(VLOOKUP(D1221,Translation!$A:$C,3,FALSE),D1221)","v":"Nouveau-Brunswick"},{"$f":"IFERROR(VLOOKUP(E1221,Translation!$A:$C,3,FALSE),E1221)","v":745.18212547493317},{"$f":"IFERROR(VLOOKUP(F1221,Translation!$A:$C,3,FALSE),F1221)","v":"Prêts hypothécaires assurés au cours de la période selon le pointage de crédit à l’initiation (%)"},{"$f":"IFERROR(VLOOKUP(G1221,Translation!$A:$C,3,FALSE),G1221)","v":"745.2"},{"$f":"IFERROR(VLOOKUP(H1221,Translation!$A:$C,3,FALSE),H1221)","v":"Nouveau-Brunswick"}]
[13,"T4 2019","PROPRIÉTAIRES-OCCUPANTS, À L’UNITÉ","Québec",756.3380442152345,"Prêts hypothécaires assurés au cours de la période selon le pointage de crédit à l’initiation (%)","756.3","Québec",{"$f":"IFERROR(VLOOKUP(A1222,Translation!$A:$C,3,FALSE),A1222)","v":13},{"$f":"IFERROR(VLOOKUP(B1222,Translation!$A:$C,3,FALSE),B1222)","v":"T4 2019"},{"$f":"IFERROR(VLOOKUP(C1222,Translation!$A:$C,3,FALSE),C1222)","v":"PROPRIÉTAIRES-OCCUPANTS, À L’UNITÉ"},{"$f":"IFERROR(VLOOKUP(D1222,Translation!$A:$C,3,FALSE),D1222)","v":"Québec"},{"$f":"IFERROR(VLOOKUP(E1222,Translation!$A:$C,3,FALSE),E1222)","v":756.3380442152345},{"$f":"IFERROR(VLOOKUP(F1222,Translation!$A:$C,3,FALSE),F1222)","v":"Prêts hypothécaires assurés au cours de la période selon le pointage de crédit à l’initiation (%)"},{"$f":"IFERROR(VLOOKUP(G1222,Translation!$A:$C,3,FALSE),G1222)","v":"756.3"},{"$f":"IFERROR(VLOOKUP(H1222,Translation!$A:$C,3,FALSE),H1222)","v":"Québec"}]
[13,"T4 2019","PROPRIÉTAIRES-OCCUPANTS, À L’UNITÉ","Ontario",761.66478567563649,"Prêts hypothécaires assurés au cours de la période selon le pointage de crédit à l’initiation (%)","761.7","Ontario",{"$f":"IFERROR(VLOOKUP(A1223,Translation!$A:$C,3,FALSE),A1223)","v":13},{"$f":"IFERROR(VLOOKUP(B1223,Translation!$A:$C,3,FALSE),B1223)","v":"T4 2019"},{"$f":"IFERROR(VLOOKUP(C1223,Translation!$A:$C,3,FALSE),C1223)","v":"PROPRIÉTAIRES-OCCUPANTS, À L’UNITÉ"},{"$f":"IFERROR(VLOOKUP(D1223,Translation!$A:$C,3,FALSE),D1223)","v":"Ontario"},{"$f":"IFERROR(VLOOKUP(E1223,Translation!$A:$C,3,FALSE),E1223)","v":761.66478567563649},{"$f":"IFERROR(VLOOKUP(F1223,Translation!$A:$C,3,FALSE),F1223)","v":"Prêts hypothécaires assurés au cours de la période selon le pointage de crédit à l’initiation (%)"},{"$f":"IFERROR(VLOOKUP(G1223,Translation!$A:$C,3,FALSE),G1223)","v":"761.7"},{"$f":"IFERROR(VLOOKUP(H1223,Translation!$A:$C,3,FALSE),H1223)","v":"Ontario"}]
[13,"T4 2019","PROPRIÉTAIRES-OCCUPANTS, À L’UNITÉ","Manitoba",754.32399483063386,"Prêts hypothécaires assurés au cours de la période selon le pointage de crédit à l’initiation (%)","754.3","Manitoba",{"$f":"IFERROR(VLOOKUP(A1224,Translation!$A:$C,3,FALSE),A1224)","v":13},{"$f":"IFERROR(VLOOKUP(B1224,Translation!$A:$C,3,FALSE),B1224)","v":"T4 2019"},{"$f":"IFERROR(VLOOKUP(C1224,Translation!$A:$C,3,FALSE),C1224)","v":"PROPRIÉTAIRES-OCCUPANTS, À L’UNITÉ"},{"$f":"IFERROR(VLOOKUP(D1224,Translation!$A:$C,3,FALSE),D1224)","v":"Manitoba"},{"$f":"IFERROR(VLOOKUP(E1224,Translation!$A:$C,3,FALSE),E1224)","v":754.32399483063386},{"$f":"IFERROR(VLOOKUP(F1224,Translation!$A:$C,3,FALSE),F1224)","v":"Prêts hypothécaires assurés au cours de la période selon le pointage de crédit à l’initiation (%)"},{"$f":"IFERROR(VLOOKUP(G1224,Translation!$A:$C,3,FALSE),G1224)","v":"754.3"},{"$f":"IFERROR(VLOOKUP(H1224,Translation!$A:$C,3,FALSE),H1224)","v":"Manitoba"}]
[13,"T4 2019","PROPRIÉTAIRES-OCCUPANTS, À L’UNITÉ","Saskatchewan",752.54562061885053,"Prêts hypothécaires assurés au cours de la période selon le pointage de crédit à l’initiation (%)","752.5","Saskatchewan",{"$f":"IFERROR(VLOOKUP(A1225,Translation!$A:$C,3,FALSE),A1225)","v":13},{"$f":"IFERROR(VLOOKUP(B1225,Translation!$A:$C,3,FALSE),B1225)","v":"T4 2019"},{"$f":"IFERROR(VLOOKUP(C1225,Translation!$A:$C,3,FALSE),C1225)","v":"PROPRIÉTAIRES-OCCUPANTS, À L’UNITÉ"},{"$f":"IFERROR(VLOOKUP(D1225,Translation!$A:$C,3,FALSE),D1225)","v":"Saskatchewan"},{"$f":"IFERROR(VLOOKUP(E1225,Translation!$A:$C,3,FALSE),E1225)","v":752.54562061885053},{"$f":"IFERROR(VLOOKUP(F1225,Translation!$A:$C,3,FALSE),F1225)","v":"Prêts hypothécaires assurés au cours de la période selon le pointage de crédit à l’initiation (%)"},{"$f":"IFERROR(VLOOKUP(G1225,Translation!$A:$C,3,FALSE),G1225)","v":"752.5"},{"$f":"IFERROR(VLOOKUP(H1225,Translation!$A:$C,3,FALSE),H1225)","v":"Saskatchewan"}]
[13,"T4 2019","PROPRIÉTAIRES-OCCUPANTS, À L’UNITÉ","Alberta",750.02005795525918,"Prêts hypothécaires assurés au cours de la période selon le pointage de crédit à l’initiation (%)","750.0","Alberta",{"$f":"IFERROR(VLOOKUP(A1226,Translation!$A:$C,3,FALSE),A1226)","v":13},{"$f":"IFERROR(VLOOKUP(B1226,Translation!$A:$C,3,FALSE),B1226)","v":"T4 2019"},{"$f":"IFERROR(VLOOKUP(C1226,Translation!$A:$C,3,FALSE),C1226)","v":"PROPRIÉTAIRES-OCCUPANTS, À L’UNITÉ"},{"$f":"IFERROR(VLOOKUP(D1226,Translation!$A:$C,3,FALSE),D1226)","v":"Alberta"},{"$f":"IFERROR(VLOOKUP(E1226,Translation!$A:$C,3,FALSE),E1226)","v":750.02005795525918},{"$f":"IFERROR(VLOOKUP(F1226,Translation!$A:$C,3,FALSE),F1226)","v":"Prêts hypothécaires assurés au cours de la période selon le pointage de crédit à l’initiation (%)"},{"$f":"IFERROR(VLOOKUP(G1226,Translation!$A:$C,3,FALSE),G1226)","v":"750.0"},{"$f":"IFERROR(VLOOKUP(H1226,Translation!$A:$C,3,FALSE),H1226)","v":"Alberta"}]
[13,"T4 2019","PROPRIÉTAIRES-OCCUPANTS, À L’UNITÉ","Colombie-Britannique",757.62721647760691,"Prêts hypothécaires assurés au cours de la période selon le pointage de crédit à l’initiation (%)","757.6","Colombie-Britannique",{"$f":"IFERROR(VLOOKUP(A1227,Translation!$A:$C,3,FALSE),A1227)","v":13},{"$f":"IFERROR(VLOOKUP(B1227,Translation!$A:$C,3,FALSE),B1227)","v":"T4 2019"},{"$f":"IFERROR(VLOOKUP(C1227,Translation!$A:$C,3,FALSE),C1227)","v":"PROPRIÉTAIRES-OCCUPANTS, À L’UNITÉ"},{"$f":"IFERROR(VLOOKUP(D1227,Translation!$A:$C,3,FALSE),D1227)","v":"Colombie-Britannique"},{"$f":"IFERROR(VLOOKUP(E1227,Translation!$A:$C,3,FALSE),E1227)","v":757.62721647760691},{"$f":"IFERROR(VLOOKUP(F1227,Translation!$A:$C,3,FALSE),F1227)","v":"Prêts hypothécaires assurés au cours de la période selon le pointage de crédit à l’initiation (%)"},{"$f":"IFERROR(VLOOKUP(G1227,Translation!$A:$C,3,FALSE),G1227)","v":"757.6"},{"$f":"IFERROR(VLOOKUP(H1227,Translation!$A:$C,3,FALSE),H1227)","v":"Colombie-Britannique"}]
[13,"T4 2019","PROPRIÉTAIRES-OCCUPANTS, À L’UNITÉ","Territoires",726.32674910514629,"Prêts hypothécaires assurés au cours de la période selon le pointage de crédit à l’initiation (%)","726.3","Territoires",{"$f":"IFERROR(VLOOKUP(A1228,Translation!$A:$C,3,FALSE),A1228)","v":13},{"$f":"IFERROR(VLOOKUP(B1228,Translation!$A:$C,3,FALSE),B1228)","v":"T4 2019"},{"$f":"IFERROR(VLOOKUP(C1228,Translation!$A:$C,3,FALSE),C1228)","v":"PROPRIÉTAIRES-OCCUPANTS, À L’UNITÉ"},{"$f":"IFERROR(VLOOKUP(D1228,Translation!$A:$C,3,FALSE),D1228)","v":"Territoires"},{"$f":"IFERROR(VLOOKUP(E1228,Translation!$A:$C,3,FALSE),E1228)","v":726.32674910514629},{"$f":"IFERROR(VLOOKUP(F1228,Translation!$A:$C,3,FALSE),F1228)","v":"Prêts hypothécaires assurés au cours de la période selon le pointage de crédit à l’initiation (%)"},{"$f":"IFERROR(VLOOKUP(G1228,Translation!$A:$C,3,FALSE),G1228)","v":"726.3"},{"$f":"IFERROR(VLOOKUP(H1228,Translation!$A:$C,3,FALSE),H1228)","v":"Territoires"}]
[13,"Cumul 2018","PROPRIÉTAIRES-OCCUPANTS, À L’UNITÉ","Terre-Neuve-et-Labrador",742.16894035846258,"Prêts hypothécaires assurés au cours de la période selon le pointage de crédit à l’initiation (%)","742.2","Terre-Neuve-et-Labrador",{"$f":"IFERROR(VLOOKUP(A1229,Translation!$A:$C,3,FALSE),A1229)","v":13},{"$f":"IFERROR(VLOOKUP(B1229,Translation!$A:$C,3,FALSE),B1229)","v":"Cumul 2018"},{"$f":"IFERROR(VLOOKUP(C1229,Translation!$A:$C,3,FALSE),C1229)","v":"PROPRIÉTAIRES-OCCUPANTS, À L’UNITÉ"},{"$f":"IFERROR(VLOOKUP(D1229,Translation!$A:$C,3,FALSE),D1229)","v":"Terre-Neuve-et-Labrador"},{"$f":"IFERROR(VLOOKUP(E1229,Translation!$A:$C,3,FALSE),E1229)","v":742.16894035846258},{"$f":"IFERROR(VLOOKUP(F1229,Translation!$A:$C,3,FALSE),F1229)","v":"Prêts hypothécaires assurés au cours de la période selon le pointage de crédit à l’initiation (%)"},{"$f":"IFERROR(VLOOKUP(G1229,Translation!$A:$C,3,FALSE),G1229)","v":"742.2"},{"$f":"IFERROR(VLOOKUP(H1229,Translation!$A:$C,3,FALSE),H1229)","v":"Terre-Neuve-et-Labrador"}]
[13,"Cumul 2018","PROPRIÉTAIRES-OCCUPANTS, À L’UNITÉ","Île-du-Prince-Édouard",744.24101199581855,"Prêts hypothécaires assurés au cours de la période selon le pointage de crédit à l’initiation (%)","744.2","Île-du-Prince-Édouard",{"$f":"IFERROR(VLOOKUP(A1230,Translation!$A:$C,3,FALSE),A1230)","v":13},{"$f":"IFERROR(VLOOKUP(B1230,Translation!$A:$C,3,FALSE),B1230)","v":"Cumul 2018"},{"$f":"IFERROR(VLOOKUP(C1230,Translation!$A:$C,3,FALSE),C1230)","v":"PROPRIÉTAIRES-OCCUPANTS, À L’UNITÉ"},{"$f":"IFERROR(VLOOKUP(D1230,Translation!$A:$C,3,FALSE),D1230)","v":"Île-du-Prince-Édouard"},{"$f":"IFERROR(VLOOKUP(E1230,Translation!$A:$C,3,FALSE),E1230)","v":744.24101199581855},{"$f":"IFERROR(VLOOKUP(F1230,Translation!$A:$C,3,FALSE),F1230)","v":"Prêts hypothécaires assurés au cours de la période selon le pointage de crédit à l’initiation (%)"},{"$f":"IFERROR(VLOOKUP(G1230,Translation!$A:$C,3,FALSE),G1230)","v":"744.2"},{"$f":"IFERROR(VLOOKUP(H1230,Translation!$A:$C,3,FALSE),H1230)","v":"Île-du-Prince-Édouard"}]
[13,"Cumul 2018","PROPRIÉTAIRES-OCCUPANTS, À L’UNITÉ","Nouvelle-Écosse",744.99267237970719,"Prêts hypothécaires assurés au cours de la période selon le pointage de crédit à l’initiation (%)","745.0","Nouvelle-Écosse",{"$f":"IFERROR(VLOOKUP(A1231,Translation!$A:$C,3,FALSE),A1231)","v":13},{"$f":"IFERROR(VLOOKUP(B1231,Translation!$A:$C,3,FALSE),B1231)","v":"Cumul 2018"},{"$f":"IFERROR(VLOOKUP(C1231,Translation!$A:$C,3,FALSE),C1231)","v":"PROPRIÉTAIRES-OCCUPANTS, À L’UNITÉ"},{"$f":"IFERROR(VLOOKUP(D1231,Translation!$A:$C,3,FALSE),D1231)","v":"Nouvelle-Écosse"},{"$f":"IFERROR(VLOOKUP(E1231,Translation!$A:$C,3,FALSE),E1231)","v":744.99267237970719},{"$f":"IFERROR(VLOOKUP(F1231,Translation!$A:$C,3,FALSE),F1231)","v":"Prêts hypothécaires assurés au cours de la période selon le pointage de crédit à l’initiation (%)"},{"$f":"IFERROR(VLOOKUP(G1231,Translation!$A:$C,3,FALSE),G1231)","v":"745.0"},{"$f":"IFERROR(VLOOKUP(H1231,Translation!$A:$C,3,FALSE),H1231)","v":"Nouvelle-Écosse"}]
[13,"Cumul 2018","PROPRIÉTAIRES-OCCUPANTS, À L’UNITÉ","Nouveau-Brunswick",745.8956284239149,"Prêts hypothécaires assurés au cours de la période selon le pointage de crédit à l’initiation (%)","745.9","Nouveau-Brunswick",{"$f":"IFERROR(VLOOKUP(A1232,Translation!$A:$C,3,FALSE),A1232)","v":13},{"$f":"IFERROR(VLOOKUP(B1232,Translation!$A:$C,3,FALSE),B1232)","v":"Cumul 2018"},{"$f":"IFERROR(VLOOKUP(C1232,Translation!$A:$C,3,FALSE),C1232)","v":"PROPRIÉTAIRES-OCCUPANTS, À L’UNITÉ"},{"$f":"IFERROR(VLOOKUP(D1232,Translation!$A:$C,3,FALSE),D1232)","v":"Nouveau-Brunswick"},{"$f":"IFERROR(VLOOKUP(E1232,Translation!$A:$C,3,FALSE),E1232)","v":745.8956284239149},{"$f":"IFERROR(VLOOKUP(F1232,Translation!$A:$C,3,FALSE),F1232)","v":"Prêts hypothécaires assurés au cours de la période selon le pointage de crédit à l’initiation (%)"},{"$f":"IFERROR(VLOOKUP(G1232,Translation!$A:$C,3,FALSE),G1232)","v":"745.9"},{"$f":"IFERROR(VLOOKUP(H1232,Translation!$A:$C,3,FALSE),H1232)","v":"Nouveau-Brunswick"}]
[13,"Cumul 2018","PROPRIÉTAIRES-OCCUPANTS, À L’UNITÉ","Québec",755.42952866300766,"Prêts hypothécaires assurés au cours de la période selon le pointage de crédit à l’initiation (%)","755.4","Québec",{"$f":"IFERROR(VLOOKUP(A1233,Translation!$A:$C,3,FALSE),A1233)","v":13},{"$f":"IFERROR(VLOOKUP(B1233,Translation!$A:$C,3,FALSE),B1233)","v":"Cumul 2018"},{"$f":"IFERROR(VLOOKUP(C1233,Translation!$A:$C,3,FALSE),C1233)","v":"PROPRIÉTAIRES-OCCUPANTS, À L’UNITÉ"},{"$f":"IFERROR(VLOOKUP(D1233,Translation!$A:$C,3,FALSE),D1233)","v":"Québec"},{"$f":"IFERROR(VLOOKUP(E1233,Translation!$A:$C,3,FALSE),E1233)","v":755.42952866300766},{"$f":"IFERROR(VLOOKUP(F1233,Translation!$A:$C,3,FALSE),F1233)","v":"Prêts hypothécaires assurés au cours de la période selon le pointage de crédit à l’initiation (%)"},{"$f":"IFERROR(VLOOKUP(G1233,Translation!$A:$C,3,FALSE),G1233)","v":"755.4"},{"$f":"IFERROR(VLOOKUP(H1233,Translation!$A:$C,3,FALSE),H1233)","v":"Québec"}]
[13,"Cumul 2018","PROPRIÉTAIRES-OCCUPANTS, À L’UNITÉ","Ontario",758.48943059733131,"Prêts hypothécaires assurés au cours de la période selon le pointage de crédit à l’initiation (%)","758.5","Ontario",{"$f":"IFERROR(VLOOKUP(A1234,Translation!$A:$C,3,FALSE),A1234)","v":13},{"$f":"IFERROR(VLOOKUP(B1234,Translation!$A:$C,3,FALSE),B1234)","v":"Cumul 2018"},{"$f":"IFERROR(VLOOKUP(C1234,Translation!$A:$C,3,FALSE),C1234)","v":"PROPRIÉTAIRES-OCCUPANTS, À L’UNITÉ"},{"$f":"IFERROR(VLOOKUP(D1234,Translation!$A:$C,3,FALSE),D1234)","v":"Ontario"},{"$f":"IFERROR(VLOOKUP(E1234,Translation!$A:$C,3,FALSE),E1234)","v":758.48943059733131},{"$f":"IFERROR(VLOOKUP(F1234,Translation!$A:$C,3,FALSE),F1234)","v":"Prêts hypothécaires assurés au cours de la période selon le pointage de crédit à l’initiation (%)"},{"$f":"IFERROR(VLOOKUP(G1234,Translation!$A:$C,3,FALSE),G1234)","v":"758.5"},{"$f":"IFERROR(VLOOKUP(H1234,Translation!$A:$C,3,FALSE),H1234)","v":"Ontario"}]
[13,"Cumul 2018","PROPRIÉTAIRES-OCCUPANTS, À L’UNITÉ","Manitoba",751.08729488832898,"Prêts hypothécaires assurés au cours de la période selon le pointage de crédit à l’initiation (%)","751.1","Manitoba",{"$f":"IFERROR(VLOOKUP(A1235,Translation!$A:$C,3,FALSE),A1235)","v":13},{"$f":"IFERROR(VLOOKUP(B1235,Translation!$A:$C,3,FALSE),B1235)","v":"Cumul 2018"},{"$f":"IFERROR(VLOOKUP(C1235,Translation!$A:$C,3,FALSE),C1235)","v":"PROPRIÉTAIRES-OCCUPANTS, À L’UNITÉ"},{"$f":"IFERROR(VLOOKUP(D1235,Translation!$A:$C,3,FALSE),D1235)","v":"Manitoba"},{"$f":"IFERROR(VLOOKUP(E1235,Translation!$A:$C,3,FALSE),E1235)","v":751.08729488832898},{"$f":"IFERROR(VLOOKUP(F1235,Translation!$A:$C,3,FALSE),F1235)","v":"Prêts hypothécaires assurés au cours de la période selon le pointage de crédit à l’initiation (%)"},{"$f":"IFERROR(VLOOKUP(G1235,Translation!$A:$C,3,FALSE),G1235)","v":"751.1"},{"$f":"IFERROR(VLOOKUP(H1235,Translation!$A:$C,3,FALSE),H1235)","v":"Manitoba"}]
[13,"Cumul 2018","PROPRIÉTAIRES-OCCUPANTS, À L’UNITÉ","Saskatchewan",748.07406110139937,"Prêts hypothécaires assurés au cours de la période selon le pointage de crédit à l’initiation (%)","748.1","Saskatchewan",{"$f":"IFERROR(VLOOKUP(A1236,Translation!$A:$C,3,FALSE),A1236)","v":13},{"$f":"IFERROR(VLOOKUP(B1236,Translation!$A:$C,3,FALSE),B1236)","v":"Cumul 2018"},{"$f":"IFERROR(VLOOKUP(C1236,Translation!$A:$C,3,FALSE),C1236)","v":"PROPRIÉTAIRES-OCCUPANTS, À L’UNITÉ"},{"$f":"IFERROR(VLOOKUP(D1236,Translation!$A:$C,3,FALSE),D1236)","v":"Saskatchewan"},{"$f":"IFERROR(VLOOKUP(E1236,Translation!$A:$C,3,FALSE),E1236)","v":748.07406110139937},{"$f":"IFERROR(VLOOKUP(F1236,Translation!$A:$C,3,FALSE),F1236)","v":"Prêts hypothécaires assurés au cours de la période selon le pointage de crédit à l’initiation (%)"},{"$f":"IFERROR(VLOOKUP(G1236,Translation!$A:$C,3,FALSE),G1236)","v":"748.1"},{"$f":"IFERROR(VLOOKUP(H1236,Translation!$A:$C,3,FALSE),H1236)","v":"Saskatchewan"}]
[13,"Cumul 2018","PROPRIÉTAIRES-OCCUPANTS, À L’UNITÉ","Alberta",748.6223340111402,"Prêts hypothécaires assurés au cours de la période selon le pointage de crédit à l’initiation (%)","748.6","Alberta",{"$f":"IFERROR(VLOOKUP(A1237,Translation!$A:$C,3,FALSE),A1237)","v":13},{"$f":"IFERROR(VLOOKUP(B1237,Translation!$A:$C,3,FALSE),B1237)","v":"Cumul 2018"},{"$f":"IFERROR(VLOOKUP(C1237,Translation!$A:$C,3,FALSE),C1237)","v":"PROPRIÉTAIRES-OCCUPANTS, À L’UNITÉ"},{"$f":"IFERROR(VLOOKUP(D1237,Translation!$A:$C,3,FALSE),D1237)","v":"Alberta"},{"$f":"IFERROR(VLOOKUP(E1237,Translation!$A:$C,3,FALSE),E1237)","v":748.6223340111402},{"$f":"IFERROR(VLOOKUP(F1237,Translation!$A:$C,3,FALSE),F1237)","v":"Prêts hypothécaires assurés au cours de la période selon le pointage de crédit à l’initiation (%)"},{"$f":"IFERROR(VLOOKUP(G1237,Translation!$A:$C,3,FALSE),G1237)","v":"748.6"},{"$f":"IFERROR(VLOOKUP(H1237,Translation!$A:$C,3,FALSE),H1237)","v":"Alberta"}]
[13,"Cumul 2018","PROPRIÉTAIRES-OCCUPANTS, À L’UNITÉ","Colombie-Britannique",753.34114909768812,"Prêts hypothécaires assurés au cours de la période selon le pointage de crédit à l’initiation (%)","753.3","Colombie-Britannique",{"$f":"IFERROR(VLOOKUP(A1238,Translation!$A:$C,3,FALSE),A1238)","v":13},{"$f":"IFERROR(VLOOKUP(B1238,Translation!$A:$C,3,FALSE),B1238)","v":"Cumul 2018"},{"$f":"IFERROR(VLOOKUP(C1238,Translation!$A:$C,3,FALSE),C1238)","v":"PROPRIÉTAIRES-OCCUPANTS, À L’UNITÉ"},{"$f":"IFERROR(VLOOKUP(D1238,Translation!$A:$C,3,FALSE),D1238)","v":"Colombie-Britannique"},{"$f":"IFERROR(VLOOKUP(E1238,Translation!$A:$C,3,FALSE),E1238)","v":753.34114909768812},{"$f":"IFERROR(VLOOKUP(F1238,Translation!$A:$C,3,FALSE),F1238)","v":"Prêts hypothécaires assurés au cours de la période selon le pointage de crédit à l’initiation (%)"},{"$f":"IFERROR(VLOOKUP(G1238,Translation!$A:$C,3,FALSE),G1238)","v":"753.3"},{"$f":"IFERROR(VLOOKUP(H1238,Translation!$A:$C,3,FALSE),H1238)","v":"Colombie-Britannique"}]
[13,"Cumul 2018","PROPRIÉTAIRES-OCCUPANTS, À L’UNITÉ","Territoires",749.78111812803979,"Prêts hypothécaires assurés au cours de la période selon le pointage de crédit à l’initiation (%)","749.8","Territoires",{"$f":"IFERROR(VLOOKUP(A1239,Translation!$A:$C,3,FALSE),A1239)","v":13},{"$f":"IFERROR(VLOOKUP(B1239,Translation!$A:$C,3,FALSE),B1239)","v":"Cumul 2018"},{"$f":"IFERROR(VLOOKUP(C1239,Translation!$A:$C,3,FALSE),C1239)","v":"PROPRIÉTAIRES-OCCUPANTS, À L’UNITÉ"},{"$f":"IFERROR(VLOOKUP(D1239,Translation!$A:$C,3,FALSE),D1239)","v":"Territoires"},{"$f":"IFERROR(VLOOKUP(E1239,Translation!$A:$C,3,FALSE),E1239)","v":749.78111812803979},{"$f":"IFERROR(VLOOKUP(F1239,Translation!$A:$C,3,FALSE),F1239)","v":"Prêts hypothécaires assurés au cours de la période selon le pointage de crédit à l’initiation (%)"},{"$f":"IFERROR(VLOOKUP(G1239,Translation!$A:$C,3,FALSE),G1239)","v":"749.8"},{"$f":"IFERROR(VLOOKUP(H1239,Translation!$A:$C,3,FALSE),H1239)","v":"Territoires"}]
[13,"Cumul 2018","ASSURANCE DE PORTEFEUILLE","Aucun pointage de crédit",6.5005671635511894E-2,"Prêts hypothécaires assurés au cours de la période selon le pointage de crédit à l’initiation (%)","0.1","Aucun pointage de crédit",{"$f":"IFERROR(VLOOKUP(A1240,Translation!$A:$C,3,FALSE),A1240)","v":13},{"$f":"IFERROR(VLOOKUP(B1240,Translation!$A:$C,3,FALSE),B1240)","v":"Cumul 2018"},{"$f":"IFERROR(VLOOKUP(C1240,Translation!$A:$C,3,FALSE),C1240)","v":"ASSURANCE DE PORTEFEUILLE"},{"$f":"IFERROR(VLOOKUP(D1240,Translation!$A:$C,3,FALSE),D1240)","v":"Aucun pointage de crédit"},{"$f":"IFERROR(VLOOKUP(E1240,Translation!$A:$C,3,FALSE),E1240)","v":6.5005671635511894E-2},{"$f":"IFERROR(VLOOKUP(F1240,Translation!$A:$C,3,FALSE),F1240)","v":"Prêts hypothécaires assurés au cours de la période selon le pointage de crédit à l’initiation (%)"},{"$f":"IFERROR(VLOOKUP(G1240,Translation!$A:$C,3,FALSE),G1240)","v":"0.1"},{"$f":"IFERROR(VLOOKUP(H1240,Translation!$A:$C,3,FALSE),H1240)","v":"Aucun pointage de crédit"}]
[13,"Cumul 2018","ASSURANCE DE PORTEFEUILLE","< 600",9.7823508364909842E-2,"Prêts hypothécaires assurés au cours de la période selon le pointage de crédit à l’initiation (%)","0.1"," < 600",{"$f":"IFERROR(VLOOKUP(A1241,Translation!$A:$C,3,FALSE),A1241)","v":13},{"$f":"IFERROR(VLOOKUP(B1241,Translation!$A:$C,3,FALSE),B1241)","v":"Cumul 2018"},{"$f":"IFERROR(VLOOKUP(C1241,Translation!$A:$C,3,FALSE),C1241)","v":"ASSURANCE DE PORTEFEUILLE"},{"$f":"IFERROR(VLOOKUP(D1241,Translation!$A:$C,3,FALSE),D1241)","v":"< 600"},{"$f":"IFERROR(VLOOKUP(E1241,Translation!$A:$C,3,FALSE),E1241)","v":9.7823508364909842E-2},{"$f":"IFERROR(VLOOKUP(F1241,Translation!$A:$C,3,FALSE),F1241)","v":"Prêts hypothécaires assurés au cours de la période selon le pointage de crédit à l’initiation (%)"},{"$f":"IFERROR(VLOOKUP(G1241,Translation!$A:$C,3,FALSE),G1241)","v":"0.1"},{"$f":"IFERROR(VLOOKUP(H1241,Translation!$A:$C,3,FALSE),H1241)","v":" < 600"}]
[13,"T4 2019","ASSURANCE DE PORTEFEUILLE",">= 600 < 680",1.663212982265911,"Prêts hypothécaires assurés au cours de la période selon le pointage de crédit à l’initiation (%)","1.7"," >= 600 < 680",{"$f":"IFERROR(VLOOKUP(A1242,Translation!$A:$C,3,FALSE),A1242)","v":13},{"$f":"IFERROR(VLOOKUP(B1242,Translation!$A:$C,3,FALSE),B1242)","v":"T4 2019"},{"$f":"IFERROR(VLOOKUP(C1242,Translation!$A:$C,3,FALSE),C1242)","v":"ASSURANCE DE PORTEFEUILLE"},{"$f":"IFERROR(VLOOKUP(D1242,Translation!$A:$C,3,FALSE),D1242)","v":">= 600 < 680"},{"$f":"IFERROR(VLOOKUP(E1242,Translation!$A:$C,3,FALSE),E1242)","v":1.663212982265911},{"$f":"IFERROR(VLOOKUP(F1242,Translation!$A:$C,3,FALSE),F1242)","v":"Prêts hypothécaires assurés au cours de la période selon le pointage de crédit à l’initiation (%)"},{"$f":"IFERROR(VLOOKUP(G1242,Translation!$A:$C,3,FALSE),G1242)","v":"1.7"},{"$f":"IFERROR(VLOOKUP(H1242,Translation!$A:$C,3,FALSE),H1242)","v":" >= 600 < 680"}]
[13,"Cumul 2018","ASSURANCE DE PORTEFEUILLE",">= 600 < 680",3.0759682792218399,"Prêts hypothécaires assurés au cours de la période selon le pointage de crédit à l’initiation (%)","3.1"," >= 600 < 680",{"$f":"IFERROR(VLOOKUP(A1243,Translation!$A:$C,3,FALSE),A1243)","v":13},{"$f":"IFERROR(VLOOKUP(B1243,Translation!$A:$C,3,FALSE),B1243)","v":"Cumul 2018"},{"$f":"IFERROR(VLOOKUP(C1243,Translation!$A:$C,3,FALSE),C1243)","v":"ASSURANCE DE PORTEFEUILLE"},{"$f":"IFERROR(VLOOKUP(D1243,Translation!$A:$C,3,FALSE),D1243)","v":">= 600 < 680"},{"$f":"IFERROR(VLOOKUP(E1243,Translation!$A:$C,3,FALSE),E1243)","v":3.0759682792218399},{"$f":"IFERROR(VLOOKUP(F1243,Translation!$A:$C,3,FALSE),F1243)","v":"Prêts hypothécaires assurés au cours de la période selon le pointage de crédit à l’initiation (%)"},{"$f":"IFERROR(VLOOKUP(G1243,Translation!$A:$C,3,FALSE),G1243)","v":"3.1"},{"$f":"IFERROR(VLOOKUP(H1243,Translation!$A:$C,3,FALSE),H1243)","v":" >= 600 < 680"}]
[13,"T4 2019","ASSURANCE DE PORTEFEUILLE",">= 680 < 700",2.1981944601496974,"Prêts hypothécaires assurés au cours de la période selon le pointage de crédit à l’initiation (%)","2.2"," >= 680 < 700",{"$f":"IFERROR(VLOOKUP(A1244,Translation!$A:$C,3,FALSE),A1244)","v":13},{"$f":"IFERROR(VLOOKUP(B1244,Translation!$A:$C,3,FALSE),B1244)","v":"T4 2019"},{"$f":"IFERROR(VLOOKUP(C1244,Translation!$A:$C,3,FALSE),C1244)","v":"ASSURANCE DE PORTEFEUILLE"},{"$f":"IFERROR(VLOOKUP(D1244,Translation!$A:$C,3,FALSE),D1244)","v":">= 680 < 700"},{"$f":"IFERROR(VLOOKUP(E1244,Translation!$A:$C,3,FALSE),E1244)","v":2.1981944601496974},{"$f":"IFERROR(VLOOKUP(F1244,Translation!$A:$C,3,FALSE),F1244)","v":"Prêts hypothécaires assurés au cours de la période selon le pointage de crédit à l’initiation (%)"},{"$f":"IFERROR(VLOOKUP(G1244,Translation!$A:$C,3,FALSE),G1244)","v":"2.2"},{"$f":"IFERROR(VLOOKUP(H1244,Translation!$A:$C,3,FALSE),H1244)","v":" >= 680 < 700"}]
[13,"Cumul 2018","ASSURANCE DE PORTEFEUILLE",">= 680 < 700",2.8729210078702074,"Prêts hypothécaires assurés au cours de la période selon le pointage de crédit à l’initiation (%)","2.9"," >= 680 < 700",{"$f":"IFERROR(VLOOKUP(A1245,Translation!$A:$C,3,FALSE),A1245)","v":13},{"$f":"IFERROR(VLOOKUP(B1245,Translation!$A:$C,3,FALSE),B1245)","v":"Cumul 2018"},{"$f":"IFERROR(VLOOKUP(C1245,Translation!$A:$C,3,FALSE),C1245)","v":"ASSURANCE DE PORTEFEUILLE"},{"$f":"IFERROR(VLOOKUP(D1245,Translation!$A:$C,3,FALSE),D1245)","v":">= 680 < 700"},{"$f":"IFERROR(VLOOKUP(E1245,Translation!$A:$C,3,FALSE),E1245)","v":2.8729210078702074},{"$f":"IFERROR(VLOOKUP(F1245,Translation!$A:$C,3,FALSE),F1245)","v":"Prêts hypothécaires assurés au cours de la période selon le pointage de crédit à l’initiation (%)"},{"$f":"IFERROR(VLOOKUP(G1245,Translation!$A:$C,3,FALSE),G1245)","v":"2.9"},{"$f":"IFERROR(VLOOKUP(H1245,Translation!$A:$C,3,FALSE),H1245)","v":" >= 680 < 700"}]
[13,"T4 2019","ASSURANCE DE PORTEFEUILLE",">= 700 < 750",14.059061177139702,"Prêts hypothécaires assurés au cours de la période selon le pointage de crédit à l’initiation (%)","14.1"," >= 700 < 750",{"$f":"IFERROR(VLOOKUP(A1246,Translation!$A:$C,3,FALSE),A1246)","v":13},{"$f":"IFERROR(VLOOKUP(B1246,Translation!$A:$C,3,FALSE),B1246)","v":"T4 2019"},{"$f":"IFERROR(VLOOKUP(C1246,Translation!$A:$C,3,FALSE),C1246)","v":"ASSURANCE DE PORTEFEUILLE"},{"$f":"IFERROR(VLOOKUP(D1246,Translation!$A:$C,3,FALSE),D1246)","v":">= 700 < 750"},{"$f":"IFERROR(VLOOKUP(E1246,Translation!$A:$C,3,FALSE),E1246)","v":14.059061177139702},{"$f":"IFERROR(VLOOKUP(F1246,Translation!$A:$C,3,FALSE),F1246)","v":"Prêts hypothécaires assurés au cours de la période selon le pointage de crédit à l’initiation (%)"},{"$f":"IFERROR(VLOOKUP(G1246,Translation!$A:$C,3,FALSE),G1246)","v":"14.1"},{"$f":"IFERROR(VLOOKUP(H1246,Translation!$A:$C,3,FALSE),H1246)","v":" >= 700 < 750"}]
[13,"Cumul 2018","ASSURANCE DE PORTEFEUILLE",">= 700 < 750",18.063729174350989,"Prêts hypothécaires assurés au cours de la période selon le pointage de crédit à l’initiation (%)","18.1"," >= 700 < 750",{"$f":"IFERROR(VLOOKUP(A1247,Translation!$A:$C,3,FALSE),A1247)","v":13},{"$f":"IFERROR(VLOOKUP(B1247,Translation!$A:$C,3,FALSE),B1247)","v":"Cumul 2018"},{"$f":"IFERROR(VLOOKUP(C1247,Translation!$A:$C,3,FALSE),C1247)","v":"ASSURANCE DE PORTEFEUILLE"},{"$f":"IFERROR(VLOOKUP(D1247,Translation!$A:$C,3,FALSE),D1247)","v":">= 700 < 750"},{"$f":"IFERROR(VLOOKUP(E1247,Translation!$A:$C,3,FALSE),E1247)","v":18.063729174350989},{"$f":"IFERROR(VLOOKUP(F1247,Translation!$A:$C,3,FALSE),F1247)","v":"Prêts hypothécaires assurés au cours de la période selon le pointage de crédit à l’initiation (%)"},{"$f":"IFERROR(VLOOKUP(G1247,Translation!$A:$C,3,FALSE),G1247)","v":"18.1"},{"$f":"IFERROR(VLOOKUP(H1247,Translation!$A:$C,3,FALSE),H1247)","v":" >= 700 < 750"}]
[13,"T4 2019","ASSURANCE DE PORTEFEUILLE",">= 750 < 780",27.425842800122339,"Prêts hypothécaires assurés au cours de la période selon le pointage de crédit à l’initiation (%)","27.4"," >= 750 < 780",{"$f":"IFERROR(VLOOKUP(A1248,Translation!$A:$C,3,FALSE),A1248)","v":13},{"$f":"IFERROR(VLOOKUP(B1248,Translation!$A:$C,3,FALSE),B1248)","v":"T4 2019"},{"$f":"IFERROR(VLOOKUP(C1248,Translation!$A:$C,3,FALSE),C1248)","v":"ASSURANCE DE PORTEFEUILLE"},{"$f":"IFERROR(VLOOKUP(D1248,Translation!$A:$C,3,FALSE),D1248)","v":">= 750 < 780"},{"$f":"IFERROR(VLOOKUP(E1248,Translation!$A:$C,3,FALSE),E1248)","v":27.425842800122339},{"$f":"IFERROR(VLOOKUP(F1248,Translation!$A:$C,3,FALSE),F1248)","v":"Prêts hypothécaires assurés au cours de la période selon le pointage de crédit à l’initiation (%)"},{"$f":"IFERROR(VLOOKUP(G1248,Translation!$A:$C,3,FALSE),G1248)","v":"27.4"},{"$f":"IFERROR(VLOOKUP(H1248,Translation!$A:$C,3,FALSE),H1248)","v":" >= 750 < 780"}]
[13,"Cumul 2018","ASSURANCE DE PORTEFEUILLE",">= 750 < 780",27.22128069631809,"Prêts hypothécaires assurés au cours de la période selon le pointage de crédit à l’initiation (%)","27.2"," >= 750 < 780",{"$f":"IFERROR(VLOOKUP(A1249,Translation!$A:$C,3,FALSE),A1249)","v":13},{"$f":"IFERROR(VLOOKUP(B1249,Translation!$A:$C,3,FALSE),B1249)","v":"Cumul 2018"},{"$f":"IFERROR(VLOOKUP(C1249,Translation!$A:$C,3,FALSE),C1249)","v":"ASSURANCE DE PORTEFEUILLE"},{"$f":"IFERROR(VLOOKUP(D1249,Translation!$A:$C,3,FALSE),D1249)","v":">= 750 < 780"},{"$f":"IFERROR(VLOOKUP(E1249,Translation!$A:$C,3,FALSE),E1249)","v":27.22128069631809},{"$f":"IFERROR(VLOOKUP(F1249,Translation!$A:$C,3,FALSE),F1249)","v":"Prêts hypothécaires assurés au cours de la période selon le pointage de crédit à l’initiation (%)"},{"$f":"IFERROR(VLOOKUP(G1249,Translation!$A:$C,3,FALSE),G1249)","v":"27.2"},{"$f":"IFERROR(VLOOKUP(H1249,Translation!$A:$C,3,FALSE),H1249)","v":" >= 750 < 780"}]
[13,"T4 2019","ASSURANCE DE PORTEFEUILLE",">= 780",54.653688580322353,"Prêts hypothécaires assurés au cours de la période selon le pointage de crédit à l’initiation (%)","54.7"," >= 780",{"$f":"IFERROR(VLOOKUP(A1250,Translation!$A:$C,3,FALSE),A1250)","v":13},{"$f":"IFERROR(VLOOKUP(B1250,Translation!$A:$C,3,FALSE),B1250)","v":"T4 2019"},{"$f":"IFERROR(VLOOKUP(C1250,Translation!$A:$C,3,FALSE),C1250)","v":"ASSURANCE DE PORTEFEUILLE"},{"$f":"IFERROR(VLOOKUP(D1250,Translation!$A:$C,3,FALSE),D1250)","v":">= 780"},{"$f":"IFERROR(VLOOKUP(E1250,Translation!$A:$C,3,FALSE),E1250)","v":54.653688580322353},{"$f":"IFERROR(VLOOKUP(F1250,Translation!$A:$C,3,FALSE),F1250)","v":"Prêts hypothécaires assurés au cours de la période selon le pointage de crédit à l’initiation (%)"},{"$f":"IFERROR(VLOOKUP(G1250,Translation!$A:$C,3,FALSE),G1250)","v":"54.7"},{"$f":"IFERROR(VLOOKUP(H1250,Translation!$A:$C,3,FALSE),H1250)","v":" >= 780"}]
[13,"Cumul 2018","ASSURANCE DE PORTEFEUILLE",">= 780",48.60327166223847,"Prêts hypothécaires assurés au cours de la période selon le pointage de crédit à l’initiation (%)","48.6"," >= 780",{"$f":"IFERROR(VLOOKUP(A1251,Translation!$A:$C,3,FALSE),A1251)","v":13},{"$f":"IFERROR(VLOOKUP(B1251,Translation!$A:$C,3,FALSE),B1251)","v":"Cumul 2018"},{"$f":"IFERROR(VLOOKUP(C1251,Translation!$A:$C,3,FALSE),C1251)","v":"ASSURANCE DE PORTEFEUILLE"},{"$f":"IFERROR(VLOOKUP(D1251,Translation!$A:$C,3,FALSE),D1251)","v":">= 780"},{"$f":"IFERROR(VLOOKUP(E1251,Translation!$A:$C,3,FALSE),E1251)","v":48.60327166223847},{"$f":"IFERROR(VLOOKUP(F1251,Translation!$A:$C,3,FALSE),F1251)","v":"Prêts hypothécaires assurés au cours de la période selon le pointage de crédit à l’initiation (%)"},{"$f":"IFERROR(VLOOKUP(G1251,Translation!$A:$C,3,FALSE),G1251)","v":"48.6"},{"$f":"IFERROR(VLOOKUP(H1251,Translation!$A:$C,3,FALSE),H1251)","v":" >= 780"}]
[13,"T4 2019","ASSURANCE DE PORTEFEUILLE","Pointage de crédit moyen à l'initiation ",776.42083716483648,"Prêts hypothécaires assurés au cours de la période selon le pointage de crédit à l’initiation (%)","776.4","Pointage de crédit moyen à l'initiation ",{"$f":"IFERROR(VLOOKUP(A1252,Translation!$A:$C,3,FALSE),A1252)","v":13},{"$f":"IFERROR(VLOOKUP(B1252,Translation!$A:$C,3,FALSE),B1252)","v":"T4 2019"},{"$f":"IFERROR(VLOOKUP(C1252,Translation!$A:$C,3,FALSE),C1252)","v":"ASSURANCE DE PORTEFEUILLE"},{"$f":"IFERROR(VLOOKUP(D1252,Translation!$A:$C,3,FALSE),D1252)","v":"Pointage de crédit moyen à l'initiation "},{"$f":"IFERROR(VLOOKUP(E1252,Translation!$A:$C,3,FALSE),E1252)","v":776.42083716483648},{"$f":"IFERROR(VLOOKUP(F1252,Translation!$A:$C,3,FALSE),F1252)","v":"Prêts hypothécaires assurés au cours de la période selon le pointage de crédit à l’initiation (%)"},{"$f":"IFERROR(VLOOKUP(G1252,Translation!$A:$C,3,FALSE),G1252)","v":"776.4"},{"$f":"IFERROR(VLOOKUP(H1252,Translation!$A:$C,3,FALSE),H1252)","v":"Pointage de crédit moyen à l'initiation "}]
[13,"Cumul 2018","ASSURANCE DE PORTEFEUILLE","Pointage de crédit moyen à l'initiation ",770.44900341305311,"Prêts hypothécaires assurés au cours de la période selon le pointage de crédit à l’initiation (%)","770.4","Pointage de crédit moyen à l'initiation ",{"$f":"IFERROR(VLOOKUP(A1253,Translation!$A:$C,3,FALSE),A1253)","v":13},{"$f":"IFERROR(VLOOKUP(B1253,Translation!$A:$C,3,FALSE),B1253)","v":"Cumul 2018"},{"$f":"IFERROR(VLOOKUP(C1253,Translation!$A:$C,3,FALSE),C1253)","v":"ASSURANCE DE PORTEFEUILLE"},{"$f":"IFERROR(VLOOKUP(D1253,Translation!$A:$C,3,FALSE),D1253)","v":"Pointage de crédit moyen à l'initiation "},{"$f":"IFERROR(VLOOKUP(E1253,Translation!$A:$C,3,FALSE),E1253)","v":770.44900341305311},{"$f":"IFERROR(VLOOKUP(F1253,Translation!$A:$C,3,FALSE),F1253)","v":"Prêts hypothécaires assurés au cours de la période selon le pointage de crédit à l’initiation (%)"},{"$f":"IFERROR(VLOOKUP(G1253,Translation!$A:$C,3,FALSE),G1253)","v":"770.4"},{"$f":"IFERROR(VLOOKUP(H1253,Translation!$A:$C,3,FALSE),H1253)","v":"Pointage de crédit moyen à l'initiation "}]
[13,"T4 2019","ASSURANCE DE PORTEFEUILLE","Terre-Neuve-et-Labrador",781.55194644245125,"Prêts hypothécaires assurés au cours de la période selon le pointage de crédit à l’initiation (%)","781.6","Terre-Neuve-et-Labrador",{"$f":"IFERROR(VLOOKUP(A1254,Translation!$A:$C,3,FALSE),A1254)","v":13},{"$f":"IFERROR(VLOOKUP(B1254,Translation!$A:$C,3,FALSE),B1254)","v":"T4 2019"},{"$f":"IFERROR(VLOOKUP(C1254,Translation!$A:$C,3,FALSE),C1254)","v":"ASSURANCE DE PORTEFEUILLE"},{"$f":"IFERROR(VLOOKUP(D1254,Translation!$A:$C,3,FALSE),D1254)","v":"Terre-Neuve-et-Labrador"},{"$f":"IFERROR(VLOOKUP(E1254,Translation!$A:$C,3,FALSE),E1254)","v":781.55194644245125},{"$f":"IFERROR(VLOOKUP(F1254,Translation!$A:$C,3,FALSE),F1254)","v":"Prêts hypothécaires assurés au cours de la période selon le pointage de crédit à l’initiation (%)"},{"$f":"IFERROR(VLOOKUP(G1254,Translation!$A:$C,3,FALSE),G1254)","v":"781.6"},{"$f":"IFERROR(VLOOKUP(H1254,Translation!$A:$C,3,FALSE),H1254)","v":"Terre-Neuve-et-Labrador"}]
[13,"T4 2019","ASSURANCE DE PORTEFEUILLE","Île-du-Prince-Édouard",766.84547645986549,"Prêts hypothécaires assurés au cours de la période selon le pointage de crédit à l’initiation (%)","766.8","Île-du-Prince-Édouard",{"$f":"IFERROR(VLOOKUP(A1255,Translation!$A:$C,3,FALSE),A1255)","v":13},{"$f":"IFERROR(VLOOKUP(B1255,Translation!$A:$C,3,FALSE),B1255)","v":"T4 2019"},{"$f":"IFERROR(VLOOKUP(C1255,Translation!$A:$C,3,FALSE),C1255)","v":"ASSURANCE DE PORTEFEUILLE"},{"$f":"IFERROR(VLOOKUP(D1255,Translation!$A:$C,3,FALSE),D1255)","v":"Île-du-Prince-Édouard"},{"$f":"IFERROR(VLOOKUP(E1255,Translation!$A:$C,3,FALSE),E1255)","v":766.84547645986549},{"$f":"IFERROR(VLOOKUP(F1255,Translation!$A:$C,3,FALSE),F1255)","v":"Prêts hypothécaires assurés au cours de la période selon le pointage de crédit à l’initiation (%)"},{"$f":"IFERROR(VLOOKUP(G1255,Translation!$A:$C,3,FALSE),G1255)","v":"766.8"},{"$f":"IFERROR(VLOOKUP(H1255,Translation!$A:$C,3,FALSE),H1255)","v":"Île-du-Prince-Édouard"}]
[13,"T4 2019","ASSURANCE DE PORTEFEUILLE","Nouvelle-Écosse",772.53016341199645,"Prêts hypothécaires assurés au cours de la période selon le pointage de crédit à l’initiation (%)","772.5","Nouvelle-Écosse",{"$f":"IFERROR(VLOOKUP(A1256,Translation!$A:$C,3,FALSE),A1256)","v":13},{"$f":"IFERROR(VLOOKUP(B1256,Translation!$A:$C,3,FALSE),B1256)","v":"T4 2019"},{"$f":"IFERROR(VLOOKUP(C1256,Translation!$A:$C,3,FALSE),C1256)","v":"ASSURANCE DE PORTEFEUILLE"},{"$f":"IFERROR(VLOOKUP(D1256,Translation!$A:$C,3,FALSE),D1256)","v":"Nouvelle-Écosse"},{"$f":"IFERROR(VLOOKUP(E1256,Translation!$A:$C,3,FALSE),E1256)","v":772.53016341199645},{"$f":"IFERROR(VLOOKUP(F1256,Translation!$A:$C,3,FALSE),F1256)","v":"Prêts hypothécaires assurés au cours de la période selon le pointage de crédit à l’initiation (%)"},{"$f":"IFERROR(VLOOKUP(G1256,Translation!$A:$C,3,FALSE),G1256)","v":"772.5"},{"$f":"IFERROR(VLOOKUP(H1256,Translation!$A:$C,3,FALSE),H1256)","v":"Nouvelle-Écosse"}]
[13,"T4 2019","ASSURANCE DE PORTEFEUILLE","Nouveau-Brunswick",781.41748038776848,"Prêts hypothécaires assurés au cours de la période selon le pointage de crédit à l’initiation (%)","781.4","Nouveau-Brunswick",{"$f":"IFERROR(VLOOKUP(A1257,Translation!$A:$C,3,FALSE),A1257)","v":13},{"$f":"IFERROR(VLOOKUP(B1257,Translation!$A:$C,3,FALSE),B1257)","v":"T4 2019"},{"$f":"IFERROR(VLOOKUP(C1257,Translation!$A:$C,3,FALSE),C1257)","v":"ASSURANCE DE PORTEFEUILLE"},{"$f":"IFERROR(VLOOKUP(D1257,Translation!$A:$C,3,FALSE),D1257)","v":"Nouveau-Brunswick"},{"$f":"IFERROR(VLOOKUP(E1257,Translation!$A:$C,3,FALSE),E1257)","v":781.41748038776848},{"$f":"IFERROR(VLOOKUP(F1257,Translation!$A:$C,3,FALSE),F1257)","v":"Prêts hypothécaires assurés au cours de la période selon le pointage de crédit à l’initiation (%)"},{"$f":"IFERROR(VLOOKUP(G1257,Translation!$A:$C,3,FALSE),G1257)","v":"781.4"},{"$f":"IFERROR(VLOOKUP(H1257,Translation!$A:$C,3,FALSE),H1257)","v":"Nouveau-Brunswick"}]
[13,"T4 2019","ASSURANCE DE PORTEFEUILLE","Québec",777.45119257967679,"Prêts hypothécaires assurés au cours de la période selon le pointage de crédit à l’initiation (%)","777.5","Québec",{"$f":"IFERROR(VLOOKUP(A1258,Translation!$A:$C,3,FALSE),A1258)","v":13},{"$f":"IFERROR(VLOOKUP(B1258,Translation!$A:$C,3,FALSE),B1258)","v":"T4 2019"},{"$f":"IFERROR(VLOOKUP(C1258,Translation!$A:$C,3,FALSE),C1258)","v":"ASSURANCE DE PORTEFEUILLE"},{"$f":"IFERROR(VLOOKUP(D1258,Translation!$A:$C,3,FALSE),D1258)","v":"Québec"},{"$f":"IFERROR(VLOOKUP(E1258,Translation!$A:$C,3,FALSE),E1258)","v":777.45119257967679},{"$f":"IFERROR(VLOOKUP(F1258,Translation!$A:$C,3,FALSE),F1258)","v":"Prêts hypothécaires assurés au cours de la période selon le pointage de crédit à l’initiation (%)"},{"$f":"IFERROR(VLOOKUP(G1258,Translation!$A:$C,3,FALSE),G1258)","v":"777.5"},{"$f":"IFERROR(VLOOKUP(H1258,Translation!$A:$C,3,FALSE),H1258)","v":"Québec"}]
[13,"T4 2019","ASSURANCE DE PORTEFEUILLE","Ontario",775.81066127009979,"Prêts hypothécaires assurés au cours de la période selon le pointage de crédit à l’initiation (%)","775.8","Ontario",{"$f":"IFERROR(VLOOKUP(A1259,Translation!$A:$C,3,FALSE),A1259)","v":13},{"$f":"IFERROR(VLOOKUP(B1259,Translation!$A:$C,3,FALSE),B1259)","v":"T4 2019"},{"$f":"IFERROR(VLOOKUP(C1259,Translation!$A:$C,3,FALSE),C1259)","v":"ASSURANCE DE PORTEFEUILLE"},{"$f":"IFERROR(VLOOKUP(D1259,Translation!$A:$C,3,FALSE),D1259)","v":"Ontario"},{"$f":"IFERROR(VLOOKUP(E1259,Translation!$A:$C,3,FALSE),E1259)","v":775.81066127009979},{"$f":"IFERROR(VLOOKUP(F1259,Translation!$A:$C,3,FALSE),F1259)","v":"Prêts hypothécaires assurés au cours de la période selon le pointage de crédit à l’initiation (%)"},{"$f":"IFERROR(VLOOKUP(G1259,Translation!$A:$C,3,FALSE),G1259)","v":"775.8"},{"$f":"IFERROR(VLOOKUP(H1259,Translation!$A:$C,3,FALSE),H1259)","v":"Ontario"}]
[13,"T4 2019","ASSURANCE DE PORTEFEUILLE","Manitoba",782.3773276991742,"Prêts hypothécaires assurés au cours de la période selon le pointage de crédit à l’initiation (%)","782.4","Manitoba",{"$f":"IFERROR(VLOOKUP(A1260,Translation!$A:$C,3,FALSE),A1260)","v":13},{"$f":"IFERROR(VLOOKUP(B1260,Translation!$A:$C,3,FALSE),B1260)","v":"T4 2019"},{"$f":"IFERROR(VLOOKUP(C1260,Translation!$A:$C,3,FALSE),C1260)","v":"ASSURANCE DE PORTEFEUILLE"},{"$f":"IFERROR(VLOOKUP(D1260,Translation!$A:$C,3,FALSE),D1260)","v":"Manitoba"},{"$f":"IFERROR(VLOOKUP(E1260,Translation!$A:$C,3,FALSE),E1260)","v":782.3773276991742},{"$f":"IFERROR(VLOOKUP(F1260,Translation!$A:$C,3,FALSE),F1260)","v":"Prêts hypothécaires assurés au cours de la période selon le pointage de crédit à l’initiation (%)"},{"$f":"IFERROR(VLOOKUP(G1260,Translation!$A:$C,3,FALSE),G1260)","v":"782.4"},{"$f":"IFERROR(VLOOKUP(H1260,Translation!$A:$C,3,FALSE),H1260)","v":"Manitoba"}]
[13,"T4 2019","ASSURANCE DE PORTEFEUILLE","Saskatchewan",778.25331719682015,"Prêts hypothécaires assurés au cours de la période selon le pointage de crédit à l’initiation (%)","778.3","Saskatchewan",{"$f":"IFERROR(VLOOKUP(A1261,Translation!$A:$C,3,FALSE),A1261)","v":13},{"$f":"IFERROR(VLOOKUP(B1261,Translation!$A:$C,3,FALSE),B1261)","v":"T4 2019"},{"$f":"IFERROR(VLOOKUP(C1261,Translation!$A:$C,3,FALSE),C1261)","v":"ASSURANCE DE PORTEFEUILLE"},{"$f":"IFERROR(VLOOKUP(D1261,Translation!$A:$C,3,FALSE),D1261)","v":"Saskatchewan"},{"$f":"IFERROR(VLOOKUP(E1261,Translation!$A:$C,3,FALSE),E1261)","v":778.25331719682015},{"$f":"IFERROR(VLOOKUP(F1261,Translation!$A:$C,3,FALSE),F1261)","v":"Prêts hypothécaires assurés au cours de la période selon le pointage de crédit à l’initiation (%)"},{"$f":"IFERROR(VLOOKUP(G1261,Translation!$A:$C,3,FALSE),G1261)","v":"778.3"},{"$f":"IFERROR(VLOOKUP(H1261,Translation!$A:$C,3,FALSE),H1261)","v":"Saskatchewan"}]
[13,"T4 2019","ASSURANCE DE PORTEFEUILLE","Alberta",773.88009128197996,"Prêts hypothécaires assurés au cours de la période selon le pointage de crédit à l’initiation (%)","773.9","Alberta",{"$f":"IFERROR(VLOOKUP(A1262,Translation!$A:$C,3,FALSE),A1262)","v":13},{"$f":"IFERROR(VLOOKUP(B1262,Translation!$A:$C,3,FALSE),B1262)","v":"T4 2019"},{"$f":"IFERROR(VLOOKUP(C1262,Translation!$A:$C,3,FALSE),C1262)","v":"ASSURANCE DE PORTEFEUILLE"},{"$f":"IFERROR(VLOOKUP(D1262,Translation!$A:$C,3,FALSE),D1262)","v":"Alberta"},{"$f":"IFERROR(VLOOKUP(E1262,Translation!$A:$C,3,FALSE),E1262)","v":773.88009128197996},{"$f":"IFERROR(VLOOKUP(F1262,Translation!$A:$C,3,FALSE),F1262)","v":"Prêts hypothécaires assurés au cours de la période selon le pointage de crédit à l’initiation (%)"},{"$f":"IFERROR(VLOOKUP(G1262,Translation!$A:$C,3,FALSE),G1262)","v":"773.9"},{"$f":"IFERROR(VLOOKUP(H1262,Translation!$A:$C,3,FALSE),H1262)","v":"Alberta"}]
[13,"T4 2019","ASSURANCE DE PORTEFEUILLE","Colombie-Britannique",778.06574783841791,"Prêts hypothécaires assurés au cours de la période selon le pointage de crédit à l’initiation (%)","778.1","Colombie-Britannique",{"$f":"IFERROR(VLOOKUP(A1263,Translation!$A:$C,3,FALSE),A1263)","v":13},{"$f":"IFERROR(VLOOKUP(B1263,Translation!$A:$C,3,FALSE),B1263)","v":"T4 2019"},{"$f":"IFERROR(VLOOKUP(C1263,Translation!$A:$C,3,FALSE),C1263)","v":"ASSURANCE DE PORTEFEUILLE"},{"$f":"IFERROR(VLOOKUP(D1263,Translation!$A:$C,3,FALSE),D1263)","v":"Colombie-Britannique"},{"$f":"IFERROR(VLOOKUP(E1263,Translation!$A:$C,3,FALSE),E1263)","v":778.06574783841791},{"$f":"IFERROR(VLOOKUP(F1263,Translation!$A:$C,3,FALSE),F1263)","v":"Prêts hypothécaires assurés au cours de la période selon le pointage de crédit à l’initiation (%)"},{"$f":"IFERROR(VLOOKUP(G1263,Translation!$A:$C,3,FALSE),G1263)","v":"778.1"},{"$f":"IFERROR(VLOOKUP(H1263,Translation!$A:$C,3,FALSE),H1263)","v":"Colombie-Britannique"}]
[13,"T4 2019","ASSURANCE DE PORTEFEUILLE","Territoires",777.65897830987547,"Prêts hypothécaires assurés au cours de la période selon le pointage de crédit à l’initiation (%)","777.7","Territoires",{"$f":"IFERROR(VLOOKUP(A1264,Translation!$A:$C,3,FALSE),A1264)","v":13},{"$f":"IFERROR(VLOOKUP(B1264,Translation!$A:$C,3,FALSE),B1264)","v":"T4 2019"},{"$f":"IFERROR(VLOOKUP(C1264,Translation!$A:$C,3,FALSE),C1264)","v":"ASSURANCE DE PORTEFEUILLE"},{"$f":"IFERROR(VLOOKUP(D1264,Translation!$A:$C,3,FALSE),D1264)","v":"Territoires"},{"$f":"IFERROR(VLOOKUP(E1264,Translation!$A:$C,3,FALSE),E1264)","v":777.65897830987547},{"$f":"IFERROR(VLOOKUP(F1264,Translation!$A:$C,3,FALSE),F1264)","v":"Prêts hypothécaires assurés au cours de la période selon le pointage de crédit à l’initiation (%)"},{"$f":"IFERROR(VLOOKUP(G1264,Translation!$A:$C,3,FALSE),G1264)","v":"777.7"},{"$f":"IFERROR(VLOOKUP(H1264,Translation!$A:$C,3,FALSE),H1264)","v":"Territoires"}]
[13,"Cumul 2018","ASSURANCE DE PORTEFEUILLE","Terre-Neuve-et-Labrador",767.47948608029935,"Prêts hypothécaires assurés au cours de la période selon le pointage de crédit à l’initiation (%)","767.5","Terre-Neuve-et-Labrador",{"$f":"IFERROR(VLOOKUP(A1265,Translation!$A:$C,3,FALSE),A1265)","v":13},{"$f":"IFERROR(VLOOKUP(B1265,Translation!$A:$C,3,FALSE),B1265)","v":"Cumul 2018"},{"$f":"IFERROR(VLOOKUP(C1265,Translation!$A:$C,3,FALSE),C1265)","v":"ASSURANCE DE PORTEFEUILLE"},{"$f":"IFERROR(VLOOKUP(D1265,Translation!$A:$C,3,FALSE),D1265)","v":"Terre-Neuve-et-Labrador"},{"$f":"IFERROR(VLOOKUP(E1265,Translation!$A:$C,3,FALSE),E1265)","v":767.47948608029935},{"$f":"IFERROR(VLOOKUP(F1265,Translation!$A:$C,3,FALSE),F1265)","v":"Prêts hypothécaires assurés au cours de la période selon le pointage de crédit à l’initiation (%)"},{"$f":"IFERROR(VLOOKUP(G1265,Translation!$A:$C,3,FALSE),G1265)","v":"767.5"},{"$f":"IFERROR(VLOOKUP(H1265,Translation!$A:$C,3,FALSE),H1265)","v":"Terre-Neuve-et-Labrador"}]
[13,"Cumul 2018","ASSURANCE DE PORTEFEUILLE","Île-du-Prince-Édouard",749.25795387042149,"Prêts hypothécaires assurés au cours de la période selon le pointage de crédit à l’initiation (%)","749.3","Île-du-Prince-Édouard",{"$f":"IFERROR(VLOOKUP(A1266,Translation!$A:$C,3,FALSE),A1266)","v":13},{"$f":"IFERROR(VLOOKUP(B1266,Translation!$A:$C,3,FALSE),B1266)","v":"Cumul 2018"},{"$f":"IFERROR(VLOOKUP(C1266,Translation!$A:$C,3,FALSE),C1266)","v":"ASSURANCE DE PORTEFEUILLE"},{"$f":"IFERROR(VLOOKUP(D1266,Translation!$A:$C,3,FALSE),D1266)","v":"Île-du-Prince-Édouard"},{"$f":"IFERROR(VLOOKUP(E1266,Translation!$A:$C,3,FALSE),E1266)","v":749.25795387042149},{"$f":"IFERROR(VLOOKUP(F1266,Translation!$A:$C,3,FALSE),F1266)","v":"Prêts hypothécaires assurés au cours de la période selon le pointage de crédit à l’initiation (%)"},{"$f":"IFERROR(VLOOKUP(G1266,Translation!$A:$C,3,FALSE),G1266)","v":"749.3"},{"$f":"IFERROR(VLOOKUP(H1266,Translation!$A:$C,3,FALSE),H1266)","v":"Île-du-Prince-Édouard"}]
[13,"Cumul 2018","ASSURANCE DE PORTEFEUILLE","Nouvelle-Écosse",770.86891472835157,"Prêts hypothécaires assurés au cours de la période selon le pointage de crédit à l’initiation (%)","770.9","Nouvelle-Écosse",{"$f":"IFERROR(VLOOKUP(A1267,Translation!$A:$C,3,FALSE),A1267)","v":13},{"$f":"IFERROR(VLOOKUP(B1267,Translation!$A:$C,3,FALSE),B1267)","v":"Cumul 2018"},{"$f":"IFERROR(VLOOKUP(C1267,Translation!$A:$C,3,FALSE),C1267)","v":"ASSURANCE DE PORTEFEUILLE"},{"$f":"IFERROR(VLOOKUP(D1267,Translation!$A:$C,3,FALSE),D1267)","v":"Nouvelle-Écosse"},{"$f":"IFERROR(VLOOKUP(E1267,Translation!$A:$C,3,FALSE),E1267)","v":770.86891472835157},{"$f":"IFERROR(VLOOKUP(F1267,Translation!$A:$C,3,FALSE),F1267)","v":"Prêts hypothécaires assurés au cours de la période selon le pointage de crédit à l’initiation (%)"},{"$f":"IFERROR(VLOOKUP(G1267,Translation!$A:$C,3,FALSE),G1267)","v":"770.9"},{"$f":"IFERROR(VLOOKUP(H1267,Translation!$A:$C,3,FALSE),H1267)","v":"Nouvelle-Écosse"}]
[13,"Cumul 2018","ASSURANCE DE PORTEFEUILLE","Nouveau-Brunswick",758.60648616922754,"Prêts hypothécaires assurés au cours de la période selon le pointage de crédit à l’initiation (%)","758.6","Nouveau-Brunswick",{"$f":"IFERROR(VLOOKUP(A1268,Translation!$A:$C,3,FALSE),A1268)","v":13},{"$f":"IFERROR(VLOOKUP(B1268,Translation!$A:$C,3,FALSE),B1268)","v":"Cumul 2018"},{"$f":"IFERROR(VLOOKUP(C1268,Translation!$A:$C,3,FALSE),C1268)","v":"ASSURANCE DE PORTEFEUILLE"},{"$f":"IFERROR(VLOOKUP(D1268,Translation!$A:$C,3,FALSE),D1268)","v":"Nouveau-Brunswick"},{"$f":"IFERROR(VLOOKUP(E1268,Translation!$A:$C,3,FALSE),E1268)","v":758.60648616922754},{"$f":"IFERROR(VLOOKUP(F1268,Translation!$A:$C,3,FALSE),F1268)","v":"Prêts hypothécaires assurés au cours de la période selon le pointage de crédit à l’initiation (%)"},{"$f":"IFERROR(VLOOKUP(G1268,Translation!$A:$C,3,FALSE),G1268)","v":"758.6"},{"$f":"IFERROR(VLOOKUP(H1268,Translation!$A:$C,3,FALSE),H1268)","v":"Nouveau-Brunswick"}]
[13,"Cumul 2018","ASSURANCE DE PORTEFEUILLE","Québec",775.69586959391359,"Prêts hypothécaires assurés au cours de la période selon le pointage de crédit à l’initiation (%)","775.7","Québec",{"$f":"IFERROR(VLOOKUP(A1269,Translation!$A:$C,3,FALSE),A1269)","v":13},{"$f":"IFERROR(VLOOKUP(B1269,Translation!$A:$C,3,FALSE),B1269)","v":"Cumul 2018"},{"$f":"IFERROR(VLOOKUP(C1269,Translation!$A:$C,3,FALSE),C1269)","v":"ASSURANCE DE PORTEFEUILLE"},{"$f":"IFERROR(VLOOKUP(D1269,Translation!$A:$C,3,FALSE),D1269)","v":"Québec"},{"$f":"IFERROR(VLOOKUP(E1269,Translation!$A:$C,3,FALSE),E1269)","v":775.69586959391359},{"$f":"IFERROR(VLOOKUP(F1269,Translation!$A:$C,3,FALSE),F1269)","v":"Prêts hypothécaires assurés au cours de la période selon le pointage de crédit à l’initiation (%)"},{"$f":"IFERROR(VLOOKUP(G1269,Translation!$A:$C,3,FALSE),G1269)","v":"775.7"},{"$f":"IFERROR(VLOOKUP(H1269,Translation!$A:$C,3,FALSE),H1269)","v":"Québec"}]
[13,"Cumul 2018","ASSURANCE DE PORTEFEUILLE","Ontario",767.65044377485981,"Prêts hypothécaires assurés au cours de la période selon le pointage de crédit à l’initiation (%)","767.7","Ontario",{"$f":"IFERROR(VLOOKUP(A1270,Translation!$A:$C,3,FALSE),A1270)","v":13},{"$f":"IFERROR(VLOOKUP(B1270,Translation!$A:$C,3,FALSE),B1270)","v":"Cumul 2018"},{"$f":"IFERROR(VLOOKUP(C1270,Translation!$A:$C,3,FALSE),C1270)","v":"ASSURANCE DE PORTEFEUILLE"},{"$f":"IFERROR(VLOOKUP(D1270,Translation!$A:$C,3,FALSE),D1270)","v":"Ontario"},{"$f":"IFERROR(VLOOKUP(E1270,Translation!$A:$C,3,FALSE),E1270)","v":767.65044377485981},{"$f":"IFERROR(VLOOKUP(F1270,Translation!$A:$C,3,FALSE),F1270)","v":"Prêts hypothécaires assurés au cours de la période selon le pointage de crédit à l’initiation (%)"},{"$f":"IFERROR(VLOOKUP(G1270,Translation!$A:$C,3,FALSE),G1270)","v":"767.7"},{"$f":"IFERROR(VLOOKUP(H1270,Translation!$A:$C,3,FALSE),H1270)","v":"Ontario"}]
[13,"Cumul 2018","ASSURANCE DE PORTEFEUILLE","Manitoba",771.84909449553948,"Prêts hypothécaires assurés au cours de la période selon le pointage de crédit à l’initiation (%)","771.8","Manitoba",{"$f":"IFERROR(VLOOKUP(A1271,Translation!$A:$C,3,FALSE),A1271)","v":13},{"$f":"IFERROR(VLOOKUP(B1271,Translation!$A:$C,3,FALSE),B1271)","v":"Cumul 2018"},{"$f":"IFERROR(VLOOKUP(C1271,Translation!$A:$C,3,FALSE),C1271)","v":"ASSURANCE DE PORTEFEUILLE"},{"$f":"IFERROR(VLOOKUP(D1271,Translation!$A:$C,3,FALSE),D1271)","v":"Manitoba"},{"$f":"IFERROR(VLOOKUP(E1271,Translation!$A:$C,3,FALSE),E1271)","v":771.84909449553948},{"$f":"IFERROR(VLOOKUP(F1271,Translation!$A:$C,3,FALSE),F1271)","v":"Prêts hypothécaires assurés au cours de la période selon le pointage de crédit à l’initiation (%)"},{"$f":"IFERROR(VLOOKUP(G1271,Translation!$A:$C,3,FALSE),G1271)","v":"771.8"},{"$f":"IFERROR(VLOOKUP(H1271,Translation!$A:$C,3,FALSE),H1271)","v":"Manitoba"}]
[13,"Cumul 2018","ASSURANCE DE PORTEFEUILLE","Saskatchewan",774.14373550023299,"Prêts hypothécaires assurés au cours de la période selon le pointage de crédit à l’initiation (%)","774.1","Saskatchewan",{"$f":"IFERROR(VLOOKUP(A1272,Translation!$A:$C,3,FALSE),A1272)","v":13},{"$f":"IFERROR(VLOOKUP(B1272,Translation!$A:$C,3,FALSE),B1272)","v":"Cumul 2018"},{"$f":"IFERROR(VLOOKUP(C1272,Translation!$A:$C,3,FALSE),C1272)","v":"ASSURANCE DE PORTEFEUILLE"},{"$f":"IFERROR(VLOOKUP(D1272,Translation!$A:$C,3,FALSE),D1272)","v":"Saskatchewan"},{"$f":"IFERROR(VLOOKUP(E1272,Translation!$A:$C,3,FALSE),E1272)","v":774.14373550023299},{"$f":"IFERROR(VLOOKUP(F1272,Translation!$A:$C,3,FALSE),F1272)","v":"Prêts hypothécaires assurés au cours de la période selon le pointage de crédit à l’initiation (%)"},{"$f":"IFERROR(VLOOKUP(G1272,Translation!$A:$C,3,FALSE),G1272)","v":"774.1"},{"$f":"IFERROR(VLOOKUP(H1272,Translation!$A:$C,3,FALSE),H1272)","v":"Saskatchewan"}]
[13,"Cumul 2018","ASSURANCE DE PORTEFEUILLE","Alberta",773.33115709559456,"Prêts hypothécaires assurés au cours de la période selon le pointage de crédit à l’initiation (%)","773.3","Alberta",{"$f":"IFERROR(VLOOKUP(A1273,Translation!$A:$C,3,FALSE),A1273)","v":13},{"$f":"IFERROR(VLOOKUP(B1273,Translation!$A:$C,3,FALSE),B1273)","v":"Cumul 2018"},{"$f":"IFERROR(VLOOKUP(C1273,Translation!$A:$C,3,FALSE),C1273)","v":"ASSURANCE DE PORTEFEUILLE"},{"$f":"IFERROR(VLOOKUP(D1273,Translation!$A:$C,3,FALSE),D1273)","v":"Alberta"},{"$f":"IFERROR(VLOOKUP(E1273,Translation!$A:$C,3,FALSE),E1273)","v":773.33115709559456},{"$f":"IFERROR(VLOOKUP(F1273,Translation!$A:$C,3,FALSE),F1273)","v":"Prêts hypothécaires assurés au cours de la période selon le pointage de crédit à l’initiation (%)"},{"$f":"IFERROR(VLOOKUP(G1273,Translation!$A:$C,3,FALSE),G1273)","v":"773.3"},{"$f":"IFERROR(VLOOKUP(H1273,Translation!$A:$C,3,FALSE),H1273)","v":"Alberta"}]
[13,"Cumul 2018","ASSURANCE DE PORTEFEUILLE","Colombie-Britannique",773.73016453277205,"Prêts hypothécaires assurés au cours de la période selon le pointage de crédit à l’initiation (%)","773.7","Colombie-Britannique",{"$f":"IFERROR(VLOOKUP(A1274,Translation!$A:$C,3,FALSE),A1274)","v":13},{"$f":"IFERROR(VLOOKUP(B1274,Translation!$A:$C,3,FALSE),B1274)","v":"Cumul 2018"},{"$f":"IFERROR(VLOOKUP(C1274,Translation!$A:$C,3,FALSE),C1274)","v":"ASSURANCE DE PORTEFEUILLE"},{"$f":"IFERROR(VLOOKUP(D1274,Translation!$A:$C,3,FALSE),D1274)","v":"Colombie-Britannique"},{"$f":"IFERROR(VLOOKUP(E1274,Translation!$A:$C,3,FALSE),E1274)","v":773.73016453277205},{"$f":"IFERROR(VLOOKUP(F1274,Translation!$A:$C,3,FALSE),F1274)","v":"Prêts hypothécaires assurés au cours de la période selon le pointage de crédit à l’initiation (%)"},{"$f":"IFERROR(VLOOKUP(G1274,Translation!$A:$C,3,FALSE),G1274)","v":"773.7"},{"$f":"IFERROR(VLOOKUP(H1274,Translation!$A:$C,3,FALSE),H1274)","v":"Colombie-Britannique"}]
[13,"T3 2019","PROPRIÉTAIRES-OCCUPANTS, À L’UNITÉ","Aucun pointage de crédit",1.049253717717169E-2,"Prêts hypothécaires assurés au cours de la période selon le pointage de crédit à l’initiation (%)","0.0","Aucun pointage de crédit",{"$f":"IFERROR(VLOOKUP(A1275,Translation!$A:$C,3,FALSE),A1275)","v":13},{"$f":"IFERROR(VLOOKUP(B1275,Translation!$A:$C,3,FALSE),B1275)","v":"T3 2019"},{"$f":"IFERROR(VLOOKUP(C1275,Translation!$A:$C,3,FALSE),C1275)","v":"PROPRIÉTAIRES-OCCUPANTS, À L’UNITÉ"},{"$f":"IFERROR(VLOOKUP(D1275,Translation!$A:$C,3,FALSE),D1275)","v":"Aucun pointage de crédit"},{"$f":"IFERROR(VLOOKUP(E1275,Translation!$A:$C,3,FALSE),E1275)","v":1.049253717717169E-2},{"$f":"IFERROR(VLOOKUP(F1275,Translation!$A:$C,3,FALSE),F1275)","v":"Prêts hypothécaires assurés au cours de la période selon le pointage de crédit à l’initiation (%)"},{"$f":"IFERROR(VLOOKUP(G1275,Translation!$A:$C,3,FALSE),G1275)","v":"0.0"},{"$f":"IFERROR(VLOOKUP(H1275,Translation!$A:$C,3,FALSE),H1275)","v":"Aucun pointage de crédit"}]
[13,"T3 2019","PROPRIÉTAIRES-OCCUPANTS, À L’UNITÉ","< 600",0.33536424964793676,"Prêts hypothécaires assurés au cours de la période selon le pointage de crédit à l’initiation (%)","0.3"," < 600",{"$f":"IFERROR(VLOOKUP(A1276,Translation!$A:$C,3,FALSE),A1276)","v":13},{"$f":"IFERROR(VLOOKUP(B1276,Translation!$A:$C,3,FALSE),B1276)","v":"T3 2019"},{"$f":"IFERROR(VLOOKUP(C1276,Translation!$A:$C,3,FALSE),C1276)","v":"PROPRIÉTAIRES-OCCUPANTS, À L’UNITÉ"},{"$f":"IFERROR(VLOOKUP(D1276,Translation!$A:$C,3,FALSE),D1276)","v":"< 600"},{"$f":"IFERROR(VLOOKUP(E1276,Translation!$A:$C,3,FALSE),E1276)","v":0.33536424964793676},{"$f":"IFERROR(VLOOKUP(F1276,Translation!$A:$C,3,FALSE),F1276)","v":"Prêts hypothécaires assurés au cours de la période selon le pointage de crédit à l’initiation (%)"},{"$f":"IFERROR(VLOOKUP(G1276,Translation!$A:$C,3,FALSE),G1276)","v":"0.3"},{"$f":"IFERROR(VLOOKUP(H1276,Translation!$A:$C,3,FALSE),H1276)","v":" < 600"}]
[13,"T3 2019","PROPRIÉTAIRES-OCCUPANTS, À L’UNITÉ",">= 600 < 680",5.4882675232011806,"Prêts hypothécaires assurés au cours de la période selon le pointage de crédit à l’initiation (%)","5.5"," >= 600 < 680",{"$f":"IFERROR(VLOOKUP(A1277,Translation!$A:$C,3,FALSE),A1277)","v":13},{"$f":"IFERROR(VLOOKUP(B1277,Translation!$A:$C,3,FALSE),B1277)","v":"T3 2019"},{"$f":"IFERROR(VLOOKUP(C1277,Translation!$A:$C,3,FALSE),C1277)","v":"PROPRIÉTAIRES-OCCUPANTS, À L’UNITÉ"},{"$f":"IFERROR(VLOOKUP(D1277,Translation!$A:$C,3,FALSE),D1277)","v":">= 600 < 680"},{"$f":"IFERROR(VLOOKUP(E1277,Translation!$A:$C,3,FALSE),E1277)","v":5.4882675232011806},{"$f":"IFERROR(VLOOKUP(F1277,Translation!$A:$C,3,FALSE),F1277)","v":"Prêts hypothécaires assurés au cours de la période selon le pointage de crédit à l’initiation (%)"},{"$f":"IFERROR(VLOOKUP(G1277,Translation!$A:$C,3,FALSE),G1277)","v":"5.5"},{"$f":"IFERROR(VLOOKUP(H1277,Translation!$A:$C,3,FALSE),H1277)","v":" >= 600 < 680"}]
[13,"T3 2019","PROPRIÉTAIRES-OCCUPANTS, À L’UNITÉ",">= 680 < 700",5.1572348924779554,"Prêts hypothécaires assurés au cours de la période selon le pointage de crédit à l’initiation (%)","5.2"," >= 680 < 700",{"$f":"IFERROR(VLOOKUP(A1278,Translation!$A:$C,3,FALSE),A1278)","v":13},{"$f":"IFERROR(VLOOKUP(B1278,Translation!$A:$C,3,FALSE),B1278)","v":"T3 2019"},{"$f":"IFERROR(VLOOKUP(C1278,Translation!$A:$C,3,FALSE),C1278)","v":"PROPRIÉTAIRES-OCCUPANTS, À L’UNITÉ"},{"$f":"IFERROR(VLOOKUP(D1278,Translation!$A:$C,3,FALSE),D1278)","v":">= 680 < 700"},{"$f":"IFERROR(VLOOKUP(E1278,Translation!$A:$C,3,FALSE),E1278)","v":5.1572348924779554},{"$f":"IFERROR(VLOOKUP(F1278,Translation!$A:$C,3,FALSE),F1278)","v":"Prêts hypothécaires assurés au cours de la période selon le pointage de crédit à l’initiation (%)"},{"$f":"IFERROR(VLOOKUP(G1278,Translation!$A:$C,3,FALSE),G1278)","v":"5.2"},{"$f":"IFERROR(VLOOKUP(H1278,Translation!$A:$C,3,FALSE),H1278)","v":" >= 680 < 700"}]
[13,"T3 2019","PROPRIÉTAIRES-OCCUPANTS, À L’UNITÉ",">= 700 < 750",26.971358623495234,"Prêts hypothécaires assurés au cours de la période selon le pointage de crédit à l’initiation (%)","27.0"," >= 700 < 750",{"$f":"IFERROR(VLOOKUP(A1279,Translation!$A:$C,3,FALSE),A1279)","v":13},{"$f":"IFERROR(VLOOKUP(B1279,Translation!$A:$C,3,FALSE),B1279)","v":"T3 2019"},{"$f":"IFERROR(VLOOKUP(C1279,Translation!$A:$C,3,FALSE),C1279)","v":"PROPRIÉTAIRES-OCCUPANTS, À L’UNITÉ"},{"$f":"IFERROR(VLOOKUP(D1279,Translation!$A:$C,3,FALSE),D1279)","v":">= 700 < 750"},{"$f":"IFERROR(VLOOKUP(E1279,Translation!$A:$C,3,FALSE),E1279)","v":26.971358623495234},{"$f":"IFERROR(VLOOKUP(F1279,Translation!$A:$C,3,FALSE),F1279)","v":"Prêts hypothécaires assurés au cours de la période selon le pointage de crédit à l’initiation (%)"},{"$f":"IFERROR(VLOOKUP(G1279,Translation!$A:$C,3,FALSE),G1279)","v":"27.0"},{"$f":"IFERROR(VLOOKUP(H1279,Translation!$A:$C,3,FALSE),H1279)","v":" >= 700 < 750"}]
[13,"T3 2019","PROPRIÉTAIRES-OCCUPANTS, À L’UNITÉ",">= 750 < 780",27.522679691370705,"Prêts hypothécaires assurés au cours de la période selon le pointage de crédit à l’initiation (%)","27.5"," >= 750 < 780",{"$f":"IFERROR(VLOOKUP(A1280,Translation!$A:$C,3,FALSE),A1280)","v":13},{"$f":"IFERROR(VLOOKUP(B1280,Translation!$A:$C,3,FALSE),B1280)","v":"T3 2019"},{"$f":"IFERROR(VLOOKUP(C1280,Translation!$A:$C,3,FALSE),C1280)","v":"PROPRIÉTAIRES-OCCUPANTS, À L’UNITÉ"},{"$f":"IFERROR(VLOOKUP(D1280,Translation!$A:$C,3,FALSE),D1280)","v":">= 750 < 780"},{"$f":"IFERROR(VLOOKUP(E1280,Translation!$A:$C,3,FALSE),E1280)","v":27.522679691370705},{"$f":"IFERROR(VLOOKUP(F1280,Translation!$A:$C,3,FALSE),F1280)","v":"Prêts hypothécaires assurés au cours de la période selon le pointage de crédit à l’initiation (%)"},{"$f":"IFERROR(VLOOKUP(G1280,Translation!$A:$C,3,FALSE),G1280)","v":"27.5"},{"$f":"IFERROR(VLOOKUP(H1280,Translation!$A:$C,3,FALSE),H1280)","v":" >= 750 < 780"}]
[13,"T3 2019","PROPRIÉTAIRES-OCCUPANTS, À L’UNITÉ",">= 780",34.514602482629833,"Prêts hypothécaires assurés au cours de la période selon le pointage de crédit à l’initiation (%)","34.5"," >= 780",{"$f":"IFERROR(VLOOKUP(A1281,Translation!$A:$C,3,FALSE),A1281)","v":13},{"$f":"IFERROR(VLOOKUP(B1281,Translation!$A:$C,3,FALSE),B1281)","v":"T3 2019"},{"$f":"IFERROR(VLOOKUP(C1281,Translation!$A:$C,3,FALSE),C1281)","v":"PROPRIÉTAIRES-OCCUPANTS, À L’UNITÉ"},{"$f":"IFERROR(VLOOKUP(D1281,Translation!$A:$C,3,FALSE),D1281)","v":">= 780"},{"$f":"IFERROR(VLOOKUP(E1281,Translation!$A:$C,3,FALSE),E1281)","v":34.514602482629833},{"$f":"IFERROR(VLOOKUP(F1281,Translation!$A:$C,3,FALSE),F1281)","v":"Prêts hypothécaires assurés au cours de la période selon le pointage de crédit à l’initiation (%)"},{"$f":"IFERROR(VLOOKUP(G1281,Translation!$A:$C,3,FALSE),G1281)","v":"34.5"},{"$f":"IFERROR(VLOOKUP(H1281,Translation!$A:$C,3,FALSE),H1281)","v":" >= 780"}]
[13,"T3 2019","PROPRIÉTAIRES-OCCUPANTS, À L’UNITÉ","Pointage de crédit moyen à l'initiation ",755.9369513483133,"Prêts hypothécaires assurés au cours de la période selon le pointage de crédit à l’initiation (%)","755.9","Pointage de crédit moyen à l'initiation ",{"$f":"IFERROR(VLOOKUP(A1282,Translation!$A:$C,3,FALSE),A1282)","v":13},{"$f":"IFERROR(VLOOKUP(B1282,Translation!$A:$C,3,FALSE),B1282)","v":"T3 2019"},{"$f":"IFERROR(VLOOKUP(C1282,Translation!$A:$C,3,FALSE),C1282)","v":"PROPRIÉTAIRES-OCCUPANTS, À L’UNITÉ"},{"$f":"IFERROR(VLOOKUP(D1282,Translation!$A:$C,3,FALSE),D1282)","v":"Pointage de crédit moyen à l'initiation "},{"$f":"IFERROR(VLOOKUP(E1282,Translation!$A:$C,3,FALSE),E1282)","v":755.9369513483133},{"$f":"IFERROR(VLOOKUP(F1282,Translation!$A:$C,3,FALSE),F1282)","v":"Prêts hypothécaires assurés au cours de la période selon le pointage de crédit à l’initiation (%)"},{"$f":"IFERROR(VLOOKUP(G1282,Translation!$A:$C,3,FALSE),G1282)","v":"755.9"},{"$f":"IFERROR(VLOOKUP(H1282,Translation!$A:$C,3,FALSE),H1282)","v":"Pointage de crédit moyen à l'initiation "}]
[13,"T3 2019","PROPRIÉTAIRES-OCCUPANTS, À L’UNITÉ","Terre-Neuve-et-Labrador",751.46748907192818,"Prêts hypothécaires assurés au cours de la période selon le pointage de crédit à l’initiation (%)","751.5","Terre-Neuve-et-Labrador",{"$f":"IFERROR(VLOOKUP(A1283,Translation!$A:$C,3,FALSE),A1283)","v":13},{"$f":"IFERROR(VLOOKUP(B1283,Translation!$A:$C,3,FALSE),B1283)","v":"T3 2019"},{"$f":"IFERROR(VLOOKUP(C1283,Translation!$A:$C,3,FALSE),C1283)","v":"PROPRIÉTAIRES-OCCUPANTS, À L’UNITÉ"},{"$f":"IFERROR(VLOOKUP(D1283,Translation!$A:$C,3,FALSE),D1283)","v":"Terre-Neuve-et-Labrador"},{"$f":"IFERROR(VLOOKUP(E1283,Translation!$A:$C,3,FALSE),E1283)","v":751.46748907192818},{"$f":"IFERROR(VLOOKUP(F1283,Translation!$A:$C,3,FALSE),F1283)","v":"Prêts hypothécaires assurés au cours de la période selon le pointage de crédit à l’initiation (%)"},{"$f":"IFERROR(VLOOKUP(G1283,Translation!$A:$C,3,FALSE),G1283)","v":"751.5"},{"$f":"IFERROR(VLOOKUP(H1283,Translation!$A:$C,3,FALSE),H1283)","v":"Terre-Neuve-et-Labrador"}]
[13,"T3 2019","PROPRIÉTAIRES-OCCUPANTS, À L’UNITÉ","Île-du-Prince-Édouard",745.63623403847055,"Prêts hypothécaires assurés au cours de la période selon le pointage de crédit à l’initiation (%)","745.6","Île-du-Prince-Édouard",{"$f":"IFERROR(VLOOKUP(A1284,Translation!$A:$C,3,FALSE),A1284)","v":13},{"$f":"IFERROR(VLOOKUP(B1284,Translation!$A:$C,3,FALSE),B1284)","v":"T3 2019"},{"$f":"IFERROR(VLOOKUP(C1284,Translation!$A:$C,3,FALSE),C1284)","v":"PROPRIÉTAIRES-OCCUPANTS, À L’UNITÉ"},{"$f":"IFERROR(VLOOKUP(D1284,Translation!$A:$C,3,FALSE),D1284)","v":"Île-du-Prince-Édouard"},{"$f":"IFERROR(VLOOKUP(E1284,Translation!$A:$C,3,FALSE),E1284)","v":745.63623403847055},{"$f":"IFERROR(VLOOKUP(F1284,Translation!$A:$C,3,FALSE),F1284)","v":"Prêts hypothécaires assurés au cours de la période selon le pointage de crédit à l’initiation (%)"},{"$f":"IFERROR(VLOOKUP(G1284,Translation!$A:$C,3,FALSE),G1284)","v":"745.6"},{"$f":"IFERROR(VLOOKUP(H1284,Translation!$A:$C,3,FALSE),H1284)","v":"Île-du-Prince-Édouard"}]
[13,"T3 2019","PROPRIÉTAIRES-OCCUPANTS, À L’UNITÉ","Nouvelle-Écosse",747.09172704687126,"Prêts hypothécaires assurés au cours de la période selon le pointage de crédit à l’initiation (%)","747.1","Nouvelle-Écosse",{"$f":"IFERROR(VLOOKUP(A1285,Translation!$A:$C,3,FALSE),A1285)","v":13},{"$f":"IFERROR(VLOOKUP(B1285,Translation!$A:$C,3,FALSE),B1285)","v":"T3 2019"},{"$f":"IFERROR(VLOOKUP(C1285,Translation!$A:$C,3,FALSE),C1285)","v":"PROPRIÉTAIRES-OCCUPANTS, À L’UNITÉ"},{"$f":"IFERROR(VLOOKUP(D1285,Translation!$A:$C,3,FALSE),D1285)","v":"Nouvelle-Écosse"},{"$f":"IFERROR(VLOOKUP(E1285,Translation!$A:$C,3,FALSE),E1285)","v":747.09172704687126},{"$f":"IFERROR(VLOOKUP(F1285,Translation!$A:$C,3,FALSE),F1285)","v":"Prêts hypothécaires assurés au cours de la période selon le pointage de crédit à l’initiation (%)"},{"$f":"IFERROR(VLOOKUP(G1285,Translation!$A:$C,3,FALSE),G1285)","v":"747.1"},{"$f":"IFERROR(VLOOKUP(H1285,Translation!$A:$C,3,FALSE),H1285)","v":"Nouvelle-Écosse"}]
[13,"T3 2019","PROPRIÉTAIRES-OCCUPANTS, À L’UNITÉ","Nouveau-Brunswick",747.63371827803553,"Prêts hypothécaires assurés au cours de la période selon le pointage de crédit à l’initiation (%)","747.6","Nouveau-Brunswick",{"$f":"IFERROR(VLOOKUP(A1286,Translation!$A:$C,3,FALSE),A1286)","v":13},{"$f":"IFERROR(VLOOKUP(B1286,Translation!$A:$C,3,FALSE),B1286)","v":"T3 2019"},{"$f":"IFERROR(VLOOKUP(C1286,Translation!$A:$C,3,FALSE),C1286)","v":"PROPRIÉTAIRES-OCCUPANTS, À L’UNITÉ"},{"$f":"IFERROR(VLOOKUP(D1286,Translation!$A:$C,3,FALSE),D1286)","v":"Nouveau-Brunswick"},{"$f":"IFERROR(VLOOKUP(E1286,Translation!$A:$C,3,FALSE),E1286)","v":747.63371827803553},{"$f":"IFERROR(VLOOKUP(F1286,Translation!$A:$C,3,FALSE),F1286)","v":"Prêts hypothécaires assurés au cours de la période selon le pointage de crédit à l’initiation (%)"},{"$f":"IFERROR(VLOOKUP(G1286,Translation!$A:$C,3,FALSE),G1286)","v":"747.6"},{"$f":"IFERROR(VLOOKUP(H1286,Translation!$A:$C,3,FALSE),H1286)","v":"Nouveau-Brunswick"}]
[13,"T3 2019","PROPRIÉTAIRES-OCCUPANTS, À L’UNITÉ","Québec",755.93534090536707,"Prêts hypothécaires assurés au cours de la période selon le pointage de crédit à l’initiation (%)","755.9","Québec",{"$f":"IFERROR(VLOOKUP(A1287,Translation!$A:$C,3,FALSE),A1287)","v":13},{"$f":"IFERROR(VLOOKUP(B1287,Translation!$A:$C,3,FALSE),B1287)","v":"T3 2019"},{"$f":"IFERROR(VLOOKUP(C1287,Translation!$A:$C,3,FALSE),C1287)","v":"PROPRIÉTAIRES-OCCUPANTS, À L’UNITÉ"},{"$f":"IFERROR(VLOOKUP(D1287,Translation!$A:$C,3,FALSE),D1287)","v":"Québec"},{"$f":"IFERROR(VLOOKUP(E1287,Translation!$A:$C,3,FALSE),E1287)","v":755.93534090536707},{"$f":"IFERROR(VLOOKUP(F1287,Translation!$A:$C,3,FALSE),F1287)","v":"Prêts hypothécaires assurés au cours de la période selon le pointage de crédit à l’initiation (%)"},{"$f":"IFERROR(VLOOKUP(G1287,Translation!$A:$C,3,FALSE),G1287)","v":"755.9"},{"$f":"IFERROR(VLOOKUP(H1287,Translation!$A:$C,3,FALSE),H1287)","v":"Québec"}]
[13,"T3 2019","PROPRIÉTAIRES-OCCUPANTS, À L’UNITÉ","Ontario",759.49745541394475,"Prêts hypothécaires assurés au cours de la période selon le pointage de crédit à l’initiation (%)","759.5","Ontario",{"$f":"IFERROR(VLOOKUP(A1288,Translation!$A:$C,3,FALSE),A1288)","v":13},{"$f":"IFERROR(VLOOKUP(B1288,Translation!$A:$C,3,FALSE),B1288)","v":"T3 2019"},{"$f":"IFERROR(VLOOKUP(C1288,Translation!$A:$C,3,FALSE),C1288)","v":"PROPRIÉTAIRES-OCCUPANTS, À L’UNITÉ"},{"$f":"IFERROR(VLOOKUP(D1288,Translation!$A:$C,3,FALSE),D1288)","v":"Ontario"},{"$f":"IFERROR(VLOOKUP(E1288,Translation!$A:$C,3,FALSE),E1288)","v":759.49745541394475},{"$f":"IFERROR(VLOOKUP(F1288,Translation!$A:$C,3,FALSE),F1288)","v":"Prêts hypothécaires assurés au cours de la période selon le pointage de crédit à l’initiation (%)"},{"$f":"IFERROR(VLOOKUP(G1288,Translation!$A:$C,3,FALSE),G1288)","v":"759.5"},{"$f":"IFERROR(VLOOKUP(H1288,Translation!$A:$C,3,FALSE),H1288)","v":"Ontario"}]
[13,"T3 2019","PROPRIÉTAIRES-OCCUPANTS, À L’UNITÉ","Manitoba",753.31098239435437,"Prêts hypothécaires assurés au cours de la période selon le pointage de crédit à l’initiation (%)","753.3","Manitoba",{"$f":"IFERROR(VLOOKUP(A1289,Translation!$A:$C,3,FALSE),A1289)","v":13},{"$f":"IFERROR(VLOOKUP(B1289,Translation!$A:$C,3,FALSE),B1289)","v":"T3 2019"},{"$f":"IFERROR(VLOOKUP(C1289,Translation!$A:$C,3,FALSE),C1289)","v":"PROPRIÉTAIRES-OCCUPANTS, À L’UNITÉ"},{"$f":"IFERROR(VLOOKUP(D1289,Translation!$A:$C,3,FALSE),D1289)","v":"Manitoba"},{"$f":"IFERROR(VLOOKUP(E1289,Translation!$A:$C,3,FALSE),E1289)","v":753.31098239435437},{"$f":"IFERROR(VLOOKUP(F1289,Translation!$A:$C,3,FALSE),F1289)","v":"Prêts hypothécaires assurés au cours de la période selon le pointage de crédit à l’initiation (%)"},{"$f":"IFERROR(VLOOKUP(G1289,Translation!$A:$C,3,FALSE),G1289)","v":"753.3"},{"$f":"IFERROR(VLOOKUP(H1289,Translation!$A:$C,3,FALSE),H1289)","v":"Manitoba"}]
[13,"T3 2019","PROPRIÉTAIRES-OCCUPANTS, À L’UNITÉ","Saskatchewan",752.48602998692991,"Prêts hypothécaires assurés au cours de la période selon le pointage de crédit à l’initiation (%)","752.5","Saskatchewan",{"$f":"IFERROR(VLOOKUP(A1290,Translation!$A:$C,3,FALSE),A1290)","v":13},{"$f":"IFERROR(VLOOKUP(B1290,Translation!$A:$C,3,FALSE),B1290)","v":"T3 2019"},{"$f":"IFERROR(VLOOKUP(C1290,Translation!$A:$C,3,FALSE),C1290)","v":"PROPRIÉTAIRES-OCCUPANTS, À L’UNITÉ"},{"$f":"IFERROR(VLOOKUP(D1290,Translation!$A:$C,3,FALSE),D1290)","v":"Saskatchewan"},{"$f":"IFERROR(VLOOKUP(E1290,Translation!$A:$C,3,FALSE),E1290)","v":752.48602998692991},{"$f":"IFERROR(VLOOKUP(F1290,Translation!$A:$C,3,FALSE),F1290)","v":"Prêts hypothécaires assurés au cours de la période selon le pointage de crédit à l’initiation (%)"},{"$f":"IFERROR(VLOOKUP(G1290,Translation!$A:$C,3,FALSE),G1290)","v":"752.5"},{"$f":"IFERROR(VLOOKUP(H1290,Translation!$A:$C,3,FALSE),H1290)","v":"Saskatchewan"}]
[13,"T3 2019","PROPRIÉTAIRES-OCCUPANTS, À L’UNITÉ","Alberta",752.76045967531377,"Prêts hypothécaires assurés au cours de la période selon le pointage de crédit à l’initiation (%)","752.8","Alberta",{"$f":"IFERROR(VLOOKUP(A1291,Translation!$A:$C,3,FALSE),A1291)","v":13},{"$f":"IFERROR(VLOOKUP(B1291,Translation!$A:$C,3,FALSE),B1291)","v":"T3 2019"},{"$f":"IFERROR(VLOOKUP(C1291,Translation!$A:$C,3,FALSE),C1291)","v":"PROPRIÉTAIRES-OCCUPANTS, À L’UNITÉ"},{"$f":"IFERROR(VLOOKUP(D1291,Translation!$A:$C,3,FALSE),D1291)","v":"Alberta"},{"$f":"IFERROR(VLOOKUP(E1291,Translation!$A:$C,3,FALSE),E1291)","v":752.76045967531377},{"$f":"IFERROR(VLOOKUP(F1291,Translation!$A:$C,3,FALSE),F1291)","v":"Prêts hypothécaires assurés au cours de la période selon le pointage de crédit à l’initiation (%)"},{"$f":"IFERROR(VLOOKUP(G1291,Translation!$A:$C,3,FALSE),G1291)","v":"752.8"},{"$f":"IFERROR(VLOOKUP(H1291,Translation!$A:$C,3,FALSE),H1291)","v":"Alberta"}]
[13,"T3 2019","PROPRIÉTAIRES-OCCUPANTS, À L’UNITÉ","Colombie-Britannique",757.70264961584758,"Prêts hypothécaires assurés au cours de la période selon le pointage de crédit à l’initiation (%)","757.7","Colombie-Britannique",{"$f":"IFERROR(VLOOKUP(A1292,Translation!$A:$C,3,FALSE),A1292)","v":13},{"$f":"IFERROR(VLOOKUP(B1292,Translation!$A:$C,3,FALSE),B1292)","v":"T3 2019"},{"$f":"IFERROR(VLOOKUP(C1292,Translation!$A:$C,3,FALSE),C1292)","v":"PROPRIÉTAIRES-OCCUPANTS, À L’UNITÉ"},{"$f":"IFERROR(VLOOKUP(D1292,Translation!$A:$C,3,FALSE),D1292)","v":"Colombie-Britannique"},{"$f":"IFERROR(VLOOKUP(E1292,Translation!$A:$C,3,FALSE),E1292)","v":757.70264961584758},{"$f":"IFERROR(VLOOKUP(F1292,Translation!$A:$C,3,FALSE),F1292)","v":"Prêts hypothécaires assurés au cours de la période selon le pointage de crédit à l’initiation (%)"},{"$f":"IFERROR(VLOOKUP(G1292,Translation!$A:$C,3,FALSE),G1292)","v":"757.7"},{"$f":"IFERROR(VLOOKUP(H1292,Translation!$A:$C,3,FALSE),H1292)","v":"Colombie-Britannique"}]
[13,"T3 2019","PROPRIÉTAIRES-OCCUPANTS, À L’UNITÉ","Territoires",737.19208572069772,"Prêts hypothécaires assurés au cours de la période selon le pointage de crédit à l’initiation (%)","737.2","Territoires",{"$f":"IFERROR(VLOOKUP(A1293,Translation!$A:$C,3,FALSE),A1293)","v":13},{"$f":"IFERROR(VLOOKUP(B1293,Translation!$A:$C,3,FALSE),B1293)","v":"T3 2019"},{"$f":"IFERROR(VLOOKUP(C1293,Translation!$A:$C,3,FALSE),C1293)","v":"PROPRIÉTAIRES-OCCUPANTS, À L’UNITÉ"},{"$f":"IFERROR(VLOOKUP(D1293,Translation!$A:$C,3,FALSE),D1293)","v":"Territoires"},{"$f":"IFERROR(VLOOKUP(E1293,Translation!$A:$C,3,FALSE),E1293)","v":737.19208572069772},{"$f":"IFERROR(VLOOKUP(F1293,Translation!$A:$C,3,FALSE),F1293)","v":"Prêts hypothécaires assurés au cours de la période selon le pointage de crédit à l’initiation (%)"},{"$f":"IFERROR(VLOOKUP(G1293,Translation!$A:$C,3,FALSE),G1293)","v":"737.2"},{"$f":"IFERROR(VLOOKUP(H1293,Translation!$A:$C,3,FALSE),H1293)","v":"Territoires"}]
[13,"T3 2019","ASSURANCE DE PORTEFEUILLE","Aucun pointage de crédit",0.19164162589833561,"Prêts hypothécaires assurés au cours de la période selon le pointage de crédit à l’initiation (%)","0.2","Aucun pointage de crédit",{"$f":"IFERROR(VLOOKUP(A1294,Translation!$A:$C,3,FALSE),A1294)","v":13},{"$f":"IFERROR(VLOOKUP(B1294,Translation!$A:$C,3,FALSE),B1294)","v":"T3 2019"},{"$f":"IFERROR(VLOOKUP(C1294,Translation!$A:$C,3,FALSE),C1294)","v":"ASSURANCE DE PORTEFEUILLE"},{"$f":"IFERROR(VLOOKUP(D1294,Translation!$A:$C,3,FALSE),D1294)","v":"Aucun pointage de crédit"},{"$f":"IFERROR(VLOOKUP(E1294,Translation!$A:$C,3,FALSE),E1294)","v":0.19164162589833561},{"$f":"IFERROR(VLOOKUP(F1294,Translation!$A:$C,3,FALSE),F1294)","v":"Prêts hypothécaires assurés au cours de la période selon le pointage de crédit à l’initiation (%)"},{"$f":"IFERROR(VLOOKUP(G1294,Translation!$A:$C,3,FALSE),G1294)","v":"0.2"},{"$f":"IFERROR(VLOOKUP(H1294,Translation!$A:$C,3,FALSE),H1294)","v":"Aucun pointage de crédit"}]
[13,"T3 2019","ASSURANCE DE PORTEFEUILLE","< 600",0.18528882109666217,"Prêts hypothécaires assurés au cours de la période selon le pointage de crédit à l’initiation (%)","0.2"," < 600",{"$f":"IFERROR(VLOOKUP(A1295,Translation!$A:$C,3,FALSE),A1295)","v":13},{"$f":"IFERROR(VLOOKUP(B1295,Translation!$A:$C,3,FALSE),B1295)","v":"T3 2019"},{"$f":"IFERROR(VLOOKUP(C1295,Translation!$A:$C,3,FALSE),C1295)","v":"ASSURANCE DE PORTEFEUILLE"},{"$f":"IFERROR(VLOOKUP(D1295,Translation!$A:$C,3,FALSE),D1295)","v":"< 600"},{"$f":"IFERROR(VLOOKUP(E1295,Translation!$A:$C,3,FALSE),E1295)","v":0.18528882109666217},{"$f":"IFERROR(VLOOKUP(F1295,Translation!$A:$C,3,FALSE),F1295)","v":"Prêts hypothécaires assurés au cours de la période selon le pointage de crédit à l’initiation (%)"},{"$f":"IFERROR(VLOOKUP(G1295,Translation!$A:$C,3,FALSE),G1295)","v":"0.2"},{"$f":"IFERROR(VLOOKUP(H1295,Translation!$A:$C,3,FALSE),H1295)","v":" < 600"}]
[13,"T3 2019","ASSURANCE DE PORTEFEUILLE",">= 600 < 680",2.5744844052811597,"Prêts hypothécaires assurés au cours de la période selon le pointage de crédit à l’initiation (%)","2.6"," >= 600 < 680",{"$f":"IFERROR(VLOOKUP(A1296,Translation!$A:$C,3,FALSE),A1296)","v":13},{"$f":"IFERROR(VLOOKUP(B1296,Translation!$A:$C,3,FALSE),B1296)","v":"T3 2019"},{"$f":"IFERROR(VLOOKUP(C1296,Translation!$A:$C,3,FALSE),C1296)","v":"ASSURANCE DE PORTEFEUILLE"},{"$f":"IFERROR(VLOOKUP(D1296,Translation!$A:$C,3,FALSE),D1296)","v":">= 600 < 680"},{"$f":"IFERROR(VLOOKUP(E1296,Translation!$A:$C,3,FALSE),E1296)","v":2.5744844052811597},{"$f":"IFERROR(VLOOKUP(F1296,Translation!$A:$C,3,FALSE),F1296)","v":"Prêts hypothécaires assurés au cours de la période selon le pointage de crédit à l’initiation (%)"},{"$f":"IFERROR(VLOOKUP(G1296,Translation!$A:$C,3,FALSE),G1296)","v":"2.6"},{"$f":"IFERROR(VLOOKUP(H1296,Translation!$A:$C,3,FALSE),H1296)","v":" >= 600 < 680"}]
[13,"T3 2019","ASSURANCE DE PORTEFEUILLE",">= 680 < 700",2.8586658228734025,"Prêts hypothécaires assurés au cours de la période selon le pointage de crédit à l’initiation (%)","2.9"," >= 680 < 700",{"$f":"IFERROR(VLOOKUP(A1297,Translation!$A:$C,3,FALSE),A1297)","v":13},{"$f":"IFERROR(VLOOKUP(B1297,Translation!$A:$C,3,FALSE),B1297)","v":"T3 2019"},{"$f":"IFERROR(VLOOKUP(C1297,Translation!$A:$C,3,FALSE),C1297)","v":"ASSURANCE DE PORTEFEUILLE"},{"$f":"IFERROR(VLOOKUP(D1297,Translation!$A:$C,3,FALSE),D1297)","v":">= 680 < 700"},{"$f":"IFERROR(VLOOKUP(E1297,Translation!$A:$C,3,FALSE),E1297)","v":2.8586658228734025},{"$f":"IFERROR(VLOOKUP(F1297,Translation!$A:$C,3,FALSE),F1297)","v":"Prêts hypothécaires assurés au cours de la période selon le pointage de crédit à l’initiation (%)"},{"$f":"IFERROR(VLOOKUP(G1297,Translation!$A:$C,3,FALSE),G1297)","v":"2.9"},{"$f":"IFERROR(VLOOKUP(H1297,Translation!$A:$C,3,FALSE),H1297)","v":" >= 680 < 700"}]
[13,"T3 2019","ASSURANCE DE PORTEFEUILLE",">= 700 < 750",15.62787266208414,"Prêts hypothécaires assurés au cours de la période selon le pointage de crédit à l’initiation (%)","15.6"," >= 700 < 750",{"$f":"IFERROR(VLOOKUP(A1298,Translation!$A:$C,3,FALSE),A1298)","v":13},{"$f":"IFERROR(VLOOKUP(B1298,Translation!$A:$C,3,FALSE),B1298)","v":"T3 2019"},{"$f":"IFERROR(VLOOKUP(C1298,Translation!$A:$C,3,FALSE),C1298)","v":"ASSURANCE DE PORTEFEUILLE"},{"$f":"IFERROR(VLOOKUP(D1298,Translation!$A:$C,3,FALSE),D1298)","v":">= 700 < 750"},{"$f":"IFERROR(VLOOKUP(E1298,Translation!$A:$C,3,FALSE),E1298)","v":15.62787266208414},{"$f":"IFERROR(VLOOKUP(F1298,Translation!$A:$C,3,FALSE),F1298)","v":"Prêts hypothécaires assurés au cours de la période selon le pointage de crédit à l’initiation (%)"},{"$f":"IFERROR(VLOOKUP(G1298,Translation!$A:$C,3,FALSE),G1298)","v":"15.6"},{"$f":"IFERROR(VLOOKUP(H1298,Translation!$A:$C,3,FALSE),H1298)","v":" >= 700 < 750"}]
[13,"T3 2019","ASSURANCE DE PORTEFEUILLE",">= 750 < 780",26.380657607788965,"Prêts hypothécaires assurés au cours de la période selon le pointage de crédit à l’initiation (%)","26.4"," >= 750 < 780",{"$f":"IFERROR(VLOOKUP(A1299,Translation!$A:$C,3,FALSE),A1299)","v":13},{"$f":"IFERROR(VLOOKUP(B1299,Translation!$A:$C,3,FALSE),B1299)","v":"T3 2019"},{"$f":"IFERROR(VLOOKUP(C1299,Translation!$A:$C,3,FALSE),C1299)","v":"ASSURANCE DE PORTEFEUILLE"},{"$f":"IFERROR(VLOOKUP(D1299,Translation!$A:$C,3,FALSE),D1299)","v":">= 750 < 780"},{"$f":"IFERROR(VLOOKUP(E1299,Translation!$A:$C,3,FALSE),E1299)","v":26.380657607788965},{"$f":"IFERROR(VLOOKUP(F1299,Translation!$A:$C,3,FALSE),F1299)","v":"Prêts hypothécaires assurés au cours de la période selon le pointage de crédit à l’initiation (%)"},{"$f":"IFERROR(VLOOKUP(G1299,Translation!$A:$C,3,FALSE),G1299)","v":"26.4"},{"$f":"IFERROR(VLOOKUP(H1299,Translation!$A:$C,3,FALSE),H1299)","v":" >= 750 < 780"}]
[13,"T3 2019","ASSURANCE DE PORTEFEUILLE",">= 780",52.181389054977345,"Prêts hypothécaires assurés au cours de la période selon le pointage de crédit à l’initiation (%)","52.2"," >= 780",{"$f":"IFERROR(VLOOKUP(A1300,Translation!$A:$C,3,FALSE),A1300)","v":13},{"$f":"IFERROR(VLOOKUP(B1300,Translation!$A:$C,3,FALSE),B1300)","v":"T3 2019"},{"$f":"IFERROR(VLOOKUP(C1300,Translation!$A:$C,3,FALSE),C1300)","v":"ASSURANCE DE PORTEFEUILLE"},{"$f":"IFERROR(VLOOKUP(D1300,Translation!$A:$C,3,FALSE),D1300)","v":">= 780"},{"$f":"IFERROR(VLOOKUP(E1300,Translation!$A:$C,3,FALSE),E1300)","v":52.181389054977345},{"$f":"IFERROR(VLOOKUP(F1300,Translation!$A:$C,3,FALSE),F1300)","v":"Prêts hypothécaires assurés au cours de la période selon le pointage de crédit à l’initiation (%)"},{"$f":"IFERROR(VLOOKUP(G1300,Translation!$A:$C,3,FALSE),G1300)","v":"52.2"},{"$f":"IFERROR(VLOOKUP(H1300,Translation!$A:$C,3,FALSE),H1300)","v":" >= 780"}]
[13,"T3 2019","ASSURANCE DE PORTEFEUILLE","Pointage de crédit moyen à l'initiation ",771.70840664743707,"Prêts hypothécaires assurés au cours de la période selon le pointage de crédit à l’initiation (%)","771.7","Pointage de crédit moyen à l'initiation ",{"$f":"IFERROR(VLOOKUP(A1301,Translation!$A:$C,3,FALSE),A1301)","v":13},{"$f":"IFERROR(VLOOKUP(B1301,Translation!$A:$C,3,FALSE),B1301)","v":"T3 2019"},{"$f":"IFERROR(VLOOKUP(C1301,Translation!$A:$C,3,FALSE),C1301)","v":"ASSURANCE DE PORTEFEUILLE"},{"$f":"IFERROR(VLOOKUP(D1301,Translation!$A:$C,3,FALSE),D1301)","v":"Pointage de crédit moyen à l'initiation "},{"$f":"IFERROR(VLOOKUP(E1301,Translation!$A:$C,3,FALSE),E1301)","v":771.70840664743707},{"$f":"IFERROR(VLOOKUP(F1301,Translation!$A:$C,3,FALSE),F1301)","v":"Prêts hypothécaires assurés au cours de la période selon le pointage de crédit à l’initiation (%)"},{"$f":"IFERROR(VLOOKUP(G1301,Translation!$A:$C,3,FALSE),G1301)","v":"771.7"},{"$f":"IFERROR(VLOOKUP(H1301,Translation!$A:$C,3,FALSE),H1301)","v":"Pointage de crédit moyen à l'initiation "}]
[13,"T3 2019","ASSURANCE DE PORTEFEUILLE","Nouvelle-Écosse",771.71761991500284,"Prêts hypothécaires assurés au cours de la période selon le pointage de crédit à l’initiation (%)","771.7","Nouvelle-Écosse",{"$f":"IFERROR(VLOOKUP(A1302,Translation!$A:$C,3,FALSE),A1302)","v":13},{"$f":"IFERROR(VLOOKUP(B1302,Translation!$A:$C,3,FALSE),B1302)","v":"T3 2019"},{"$f":"IFERROR(VLOOKUP(C1302,Translation!$A:$C,3,FALSE),C1302)","v":"ASSURANCE DE PORTEFEUILLE"},{"$f":"IFERROR(VLOOKUP(D1302,Translation!$A:$C,3,FALSE),D1302)","v":"Nouvelle-Écosse"},{"$f":"IFERROR(VLOOKUP(E1302,Translation!$A:$C,3,FALSE),E1302)","v":771.71761991500284},{"$f":"IFERROR(VLOOKUP(F1302,Translation!$A:$C,3,FALSE),F1302)","v":"Prêts hypothécaires assurés au cours de la période selon le pointage de crédit à l’initiation (%)"},{"$f":"IFERROR(VLOOKUP(G1302,Translation!$A:$C,3,FALSE),G1302)","v":"771.7"},{"$f":"IFERROR(VLOOKUP(H1302,Translation!$A:$C,3,FALSE),H1302)","v":"Nouvelle-Écosse"}]
[13,"T3 2019","ASSURANCE DE PORTEFEUILLE","Nouveau-Brunswick",791.85572906000607,"Prêts hypothécaires assurés au cours de la période selon le pointage de crédit à l’initiation (%)","791.9","Nouveau-Brunswick",{"$f":"IFERROR(VLOOKUP(A1303,Translation!$A:$C,3,FALSE),A1303)","v":13},{"$f":"IFERROR(VLOOKUP(B1303,Translation!$A:$C,3,FALSE),B1303)","v":"T3 2019"},{"$f":"IFERROR(VLOOKUP(C1303,Translation!$A:$C,3,FALSE),C1303)","v":"ASSURANCE DE PORTEFEUILLE"},{"$f":"IFERROR(VLOOKUP(D1303,Translation!$A:$C,3,FALSE),D1303)","v":"Nouveau-Brunswick"},{"$f":"IFERROR(VLOOKUP(E1303,Translation!$A:$C,3,FALSE),E1303)","v":791.85572906000607},{"$f":"IFERROR(VLOOKUP(F1303,Translation!$A:$C,3,FALSE),F1303)","v":"Prêts hypothécaires assurés au cours de la période selon le pointage de crédit à l’initiation (%)"},{"$f":"IFERROR(VLOOKUP(G1303,Translation!$A:$C,3,FALSE),G1303)","v":"791.9"},{"$f":"IFERROR(VLOOKUP(H1303,Translation!$A:$C,3,FALSE),H1303)","v":"Nouveau-Brunswick"}]
[13,"T3 2019","ASSURANCE DE PORTEFEUILLE","Québec",767.63736582048045,"Prêts hypothécaires assurés au cours de la période selon le pointage de crédit à l’initiation (%)","767.6","Québec",{"$f":"IFERROR(VLOOKUP(A1304,Translation!$A:$C,3,FALSE),A1304)","v":13},{"$f":"IFERROR(VLOOKUP(B1304,Translation!$A:$C,3,FALSE),B1304)","v":"T3 2019"},{"$f":"IFERROR(VLOOKUP(C1304,Translation!$A:$C,3,FALSE),C1304)","v":"ASSURANCE DE PORTEFEUILLE"},{"$f":"IFERROR(VLOOKUP(D1304,Translation!$A:$C,3,FALSE),D1304)","v":"Québec"},{"$f":"IFERROR(VLOOKUP(E1304,Translation!$A:$C,3,FALSE),E1304)","v":767.63736582048045},{"$f":"IFERROR(VLOOKUP(F1304,Translation!$A:$C,3,FALSE),F1304)","v":"Prêts hypothécaires assurés au cours de la période selon le pointage de crédit à l’initiation (%)"},{"$f":"IFERROR(VLOOKUP(G1304,Translation!$A:$C,3,FALSE),G1304)","v":"767.6"},{"$f":"IFERROR(VLOOKUP(H1304,Translation!$A:$C,3,FALSE),H1304)","v":"Québec"}]
[13,"T3 2019","ASSURANCE DE PORTEFEUILLE","Ontario",771.73830604864349,"Prêts hypothécaires assurés au cours de la période selon le pointage de crédit à l’initiation (%)","771.7","Ontario",{"$f":"IFERROR(VLOOKUP(A1305,Translation!$A:$C,3,FALSE),A1305)","v":13},{"$f":"IFERROR(VLOOKUP(B1305,Translation!$A:$C,3,FALSE),B1305)","v":"T3 2019"},{"$f":"IFERROR(VLOOKUP(C1305,Translation!$A:$C,3,FALSE),C1305)","v":"ASSURANCE DE PORTEFEUILLE"},{"$f":"IFERROR(VLOOKUP(D1305,Translation!$A:$C,3,FALSE),D1305)","v":"Ontario"},{"$f":"IFERROR(VLOOKUP(E1305,Translation!$A:$C,3,FALSE),E1305)","v":771.73830604864349},{"$f":"IFERROR(VLOOKUP(F1305,Translation!$A:$C,3,FALSE),F1305)","v":"Prêts hypothécaires assurés au cours de la période selon le pointage de crédit à l’initiation (%)"},{"$f":"IFERROR(VLOOKUP(G1305,Translation!$A:$C,3,FALSE),G1305)","v":"771.7"},{"$f":"IFERROR(VLOOKUP(H1305,Translation!$A:$C,3,FALSE),H1305)","v":"Ontario"}]
[13,"T3 2019","ASSURANCE DE PORTEFEUILLE","Manitoba",780.36654449298351,"Prêts hypothécaires assurés au cours de la période selon le pointage de crédit à l’initiation (%)","780.4","Manitoba",{"$f":"IFERROR(VLOOKUP(A1306,Translation!$A:$C,3,FALSE),A1306)","v":13},{"$f":"IFERROR(VLOOKUP(B1306,Translation!$A:$C,3,FALSE),B1306)","v":"T3 2019"},{"$f":"IFERROR(VLOOKUP(C1306,Translation!$A:$C,3,FALSE),C1306)","v":"ASSURANCE DE PORTEFEUILLE"},{"$f":"IFERROR(VLOOKUP(D1306,Translation!$A:$C,3,FALSE),D1306)","v":"Manitoba"},{"$f":"IFERROR(VLOOKUP(E1306,Translation!$A:$C,3,FALSE),E1306)","v":780.36654449298351},{"$f":"IFERROR(VLOOKUP(F1306,Translation!$A:$C,3,FALSE),F1306)","v":"Prêts hypothécaires assurés au cours de la période selon le pointage de crédit à l’initiation (%)"},{"$f":"IFERROR(VLOOKUP(G1306,Translation!$A:$C,3,FALSE),G1306)","v":"780.4"},{"$f":"IFERROR(VLOOKUP(H1306,Translation!$A:$C,3,FALSE),H1306)","v":"Manitoba"}]
[13,"T3 2019","ASSURANCE DE PORTEFEUILLE","Saskatchewan",775.21893412370252,"Prêts hypothécaires assurés au cours de la période selon le pointage de crédit à l’initiation (%)","775.2","Saskatchewan",{"$f":"IFERROR(VLOOKUP(A1307,Translation!$A:$C,3,FALSE),A1307)","v":13},{"$f":"IFERROR(VLOOKUP(B1307,Translation!$A:$C,3,FALSE),B1307)","v":"T3 2019"},{"$f":"IFERROR(VLOOKUP(C1307,Translation!$A:$C,3,FALSE),C1307)","v":"ASSURANCE DE PORTEFEUILLE"},{"$f":"IFERROR(VLOOKUP(D1307,Translation!$A:$C,3,FALSE),D1307)","v":"Saskatchewan"},{"$f":"IFERROR(VLOOKUP(E1307,Translation!$A:$C,3,FALSE),E1307)","v":775.21893412370252},{"$f":"IFERROR(VLOOKUP(F1307,Translation!$A:$C,3,FALSE),F1307)","v":"Prêts hypothécaires assurés au cours de la période selon le pointage de crédit à l’initiation (%)"},{"$f":"IFERROR(VLOOKUP(G1307,Translation!$A:$C,3,FALSE),G1307)","v":"775.2"},{"$f":"IFERROR(VLOOKUP(H1307,Translation!$A:$C,3,FALSE),H1307)","v":"Saskatchewan"}]
[13,"T3 2019","ASSURANCE DE PORTEFEUILLE","Alberta",774.54802013365793,"Prêts hypothécaires assurés au cours de la période selon le pointage de crédit à l’initiation (%)","774.5","Alberta",{"$f":"IFERROR(VLOOKUP(A1308,Translation!$A:$C,3,FALSE),A1308)","v":13},{"$f":"IFERROR(VLOOKUP(B1308,Translation!$A:$C,3,FALSE),B1308)","v":"T3 2019"},{"$f":"IFERROR(VLOOKUP(C1308,Translation!$A:$C,3,FALSE),C1308)","v":"ASSURANCE DE PORTEFEUILLE"},{"$f":"IFERROR(VLOOKUP(D1308,Translation!$A:$C,3,FALSE),D1308)","v":"Alberta"},{"$f":"IFERROR(VLOOKUP(E1308,Translation!$A:$C,3,FALSE),E1308)","v":774.54802013365793},{"$f":"IFERROR(VLOOKUP(F1308,Translation!$A:$C,3,FALSE),F1308)","v":"Prêts hypothécaires assurés au cours de la période selon le pointage de crédit à l’initiation (%)"},{"$f":"IFERROR(VLOOKUP(G1308,Translation!$A:$C,3,FALSE),G1308)","v":"774.5"},{"$f":"IFERROR(VLOOKUP(H1308,Translation!$A:$C,3,FALSE),H1308)","v":"Alberta"}]
[13,"T3 2019","ASSURANCE DE PORTEFEUILLE","Colombie-Britannique",769.87967150262693,"Prêts hypothécaires assurés au cours de la période selon le pointage de crédit à l’initiation (%)","769.9","Colombie-Britannique",{"$f":"IFERROR(VLOOKUP(A1309,Translation!$A:$C,3,FALSE),A1309)","v":13},{"$f":"IFERROR(VLOOKUP(B1309,Translation!$A:$C,3,FALSE),B1309)","v":"T3 2019"},{"$f":"IFERROR(VLOOKUP(C1309,Translation!$A:$C,3,FALSE),C1309)","v":"ASSURANCE DE PORTEFEUILLE"},{"$f":"IFERROR(VLOOKUP(D1309,Translation!$A:$C,3,FALSE),D1309)","v":"Colombie-Britannique"},{"$f":"IFERROR(VLOOKUP(E1309,Translation!$A:$C,3,FALSE),E1309)","v":769.87967150262693},{"$f":"IFERROR(VLOOKUP(F1309,Translation!$A:$C,3,FALSE),F1309)","v":"Prêts hypothécaires assurés au cours de la période selon le pointage de crédit à l’initiation (%)"},{"$f":"IFERROR(VLOOKUP(G1309,Translation!$A:$C,3,FALSE),G1309)","v":"769.9"},{"$f":"IFERROR(VLOOKUP(H1309,Translation!$A:$C,3,FALSE),H1309)","v":"Colombie-Britannique"}]
[13,"T2 2019","PROPRIÉTAIRES-OCCUPANTS, À L’UNITÉ","Aucun pointage de crédit",0.22156909389990448,"Prêts hypothécaires assurés au cours de la période selon le pointage de crédit à l’initiation (%)","0.2","Aucun pointage de crédit",{"$f":"IFERROR(VLOOKUP(A1310,Translation!$A:$C,3,FALSE),A1310)","v":13},{"$f":"IFERROR(VLOOKUP(B1310,Translation!$A:$C,3,FALSE),B1310)","v":"T2 2019"},{"$f":"IFERROR(VLOOKUP(C1310,Translation!$A:$C,3,FALSE),C1310)","v":"PROPRIÉTAIRES-OCCUPANTS, À L’UNITÉ"},{"$f":"IFERROR(VLOOKUP(D1310,Translation!$A:$C,3,FALSE),D1310)","v":"Aucun pointage de crédit"},{"$f":"IFERROR(VLOOKUP(E1310,Translation!$A:$C,3,FALSE),E1310)","v":0.22156909389990448},{"$f":"IFERROR(VLOOKUP(F1310,Translation!$A:$C,3,FALSE),F1310)","v":"Prêts hypothécaires assurés au cours de la période selon le pointage de crédit à l’initiation (%)"},{"$f":"IFERROR(VLOOKUP(G1310,Translation!$A:$C,3,FALSE),G1310)","v":"0.2"},{"$f":"IFERROR(VLOOKUP(H1310,Translation!$A:$C,3,FALSE),H1310)","v":"Aucun pointage de crédit"}]
[13,"T2 2019","PROPRIÉTAIRES-OCCUPANTS, À L’UNITÉ","< 600",0.30539328759991691,"Prêts hypothécaires assurés au cours de la période selon le pointage de crédit à l’initiation (%)","0.3"," < 600",{"$f":"IFERROR(VLOOKUP(A1311,Translation!$A:$C,3,FALSE),A1311)","v":13},{"$f":"IFERROR(VLOOKUP(B1311,Translation!$A:$C,3,FALSE),B1311)","v":"T2 2019"},{"$f":"IFERROR(VLOOKUP(C1311,Translation!$A:$C,3,FALSE),C1311)","v":"PROPRIÉTAIRES-OCCUPANTS, À L’UNITÉ"},{"$f":"IFERROR(VLOOKUP(D1311,Translation!$A:$C,3,FALSE),D1311)","v":"< 600"},{"$f":"IFERROR(VLOOKUP(E1311,Translation!$A:$C,3,FALSE),E1311)","v":0.30539328759991691},{"$f":"IFERROR(VLOOKUP(F1311,Translation!$A:$C,3,FALSE),F1311)","v":"Prêts hypothécaires assurés au cours de la période selon le pointage de crédit à l’initiation (%)"},{"$f":"IFERROR(VLOOKUP(G1311,Translation!$A:$C,3,FALSE),G1311)","v":"0.3"},{"$f":"IFERROR(VLOOKUP(H1311,Translation!$A:$C,3,FALSE),H1311)","v":" < 600"}]
[13,"T2 2019","PROPRIÉTAIRES-OCCUPANTS, À L’UNITÉ",">= 600 < 680",5.5943601372404812,"Prêts hypothécaires assurés au cours de la période selon le pointage de crédit à l’initiation (%)","5.6"," >= 600 < 680",{"$f":"IFERROR(VLOOKUP(A1312,Translation!$A:$C,3,FALSE),A1312)","v":13},{"$f":"IFERROR(VLOOKUP(B1312,Translation!$A:$C,3,FALSE),B1312)","v":"T2 2019"},{"$f":"IFERROR(VLOOKUP(C1312,Translation!$A:$C,3,FALSE),C1312)","v":"PROPRIÉTAIRES-OCCUPANTS, À L’UNITÉ"},{"$f":"IFERROR(VLOOKUP(D1312,Translation!$A:$C,3,FALSE),D1312)","v":">= 600 < 680"},{"$f":"IFERROR(VLOOKUP(E1312,Translation!$A:$C,3,FALSE),E1312)","v":5.5943601372404812},{"$f":"IFERROR(VLOOKUP(F1312,Translation!$A:$C,3,FALSE),F1312)","v":"Prêts hypothécaires assurés au cours de la période selon le pointage de crédit à l’initiation (%)"},{"$f":"IFERROR(VLOOKUP(G1312,Translation!$A:$C,3,FALSE),G1312)","v":"5.6"},{"$f":"IFERROR(VLOOKUP(H1312,Translation!$A:$C,3,FALSE),H1312)","v":" >= 600 < 680"}]
[13,"T2 2019","PROPRIÉTAIRES-OCCUPANTS, À L’UNITÉ",">= 680 < 700",5.3895041394011409,"Prêts hypothécaires assurés au cours de la période selon le pointage de crédit à l’initiation (%)","5.4"," >= 680 < 700",{"$f":"IFERROR(VLOOKUP(A1313,Translation!$A:$C,3,FALSE),A1313)","v":13},{"$f":"IFERROR(VLOOKUP(B1313,Translation!$A:$C,3,FALSE),B1313)","v":"T2 2019"},{"$f":"IFERROR(VLOOKUP(C1313,Translation!$A:$C,3,FALSE),C1313)","v":"PROPRIÉTAIRES-OCCUPANTS, À L’UNITÉ"},{"$f":"IFERROR(VLOOKUP(D1313,Translation!$A:$C,3,FALSE),D1313)","v":">= 680 < 700"},{"$f":"IFERROR(VLOOKUP(E1313,Translation!$A:$C,3,FALSE),E1313)","v":5.3895041394011409},{"$f":"IFERROR(VLOOKUP(F1313,Translation!$A:$C,3,FALSE),F1313)","v":"Prêts hypothécaires assurés au cours de la période selon le pointage de crédit à l’initiation (%)"},{"$f":"IFERROR(VLOOKUP(G1313,Translation!$A:$C,3,FALSE),G1313)","v":"5.4"},{"$f":"IFERROR(VLOOKUP(H1313,Translation!$A:$C,3,FALSE),H1313)","v":" >= 680 < 700"}]
[13,"T2 2019","PROPRIÉTAIRES-OCCUPANTS, À L’UNITÉ",">= 700 < 750",26.776460389186006,"Prêts hypothécaires assurés au cours de la période selon le pointage de crédit à l’initiation (%)","26.8"," >= 700 < 750",{"$f":"IFERROR(VLOOKUP(A1314,Translation!$A:$C,3,FALSE),A1314)","v":13},{"$f":"IFERROR(VLOOKUP(B1314,Translation!$A:$C,3,FALSE),B1314)","v":"T2 2019"},{"$f":"IFERROR(VLOOKUP(C1314,Translation!$A:$C,3,FALSE),C1314)","v":"PROPRIÉTAIRES-OCCUPANTS, À L’UNITÉ"},{"$f":"IFERROR(VLOOKUP(D1314,Translation!$A:$C,3,FALSE),D1314)","v":">= 700 < 750"},{"$f":"IFERROR(VLOOKUP(E1314,Translation!$A:$C,3,FALSE),E1314)","v":26.776460389186006},{"$f":"IFERROR(VLOOKUP(F1314,Translation!$A:$C,3,FALSE),F1314)","v":"Prêts hypothécaires assurés au cours de la période selon le pointage de crédit à l’initiation (%)"},{"$f":"IFERROR(VLOOKUP(G1314,Translation!$A:$C,3,FALSE),G1314)","v":"26.8"},{"$f":"IFERROR(VLOOKUP(H1314,Translation!$A:$C,3,FALSE),H1314)","v":" >= 700 < 750"}]
[13,"T2 2019","PROPRIÉTAIRES-OCCUPANTS, À L’UNITÉ",">= 750 < 780",27.793200927436256,"Prêts hypothécaires assurés au cours de la période selon le pointage de crédit à l’initiation (%)","27.8"," >= 750 < 780",{"$f":"IFERROR(VLOOKUP(A1315,Translation!$A:$C,3,FALSE),A1315)","v":13},{"$f":"IFERROR(VLOOKUP(B1315,Translation!$A:$C,3,FALSE),B1315)","v":"T2 2019"},{"$f":"IFERROR(VLOOKUP(C1315,Translation!$A:$C,3,FALSE),C1315)","v":"PROPRIÉTAIRES-OCCUPANTS, À L’UNITÉ"},{"$f":"IFERROR(VLOOKUP(D1315,Translation!$A:$C,3,FALSE),D1315)","v":">= 750 < 780"},{"$f":"IFERROR(VLOOKUP(E1315,Translation!$A:$C,3,FALSE),E1315)","v":27.793200927436256},{"$f":"IFERROR(VLOOKUP(F1315,Translation!$A:$C,3,FALSE),F1315)","v":"Prêts hypothécaires assurés au cours de la période selon le pointage de crédit à l’initiation (%)"},{"$f":"IFERROR(VLOOKUP(G1315,Translation!$A:$C,3,FALSE),G1315)","v":"27.8"},{"$f":"IFERROR(VLOOKUP(H1315,Translation!$A:$C,3,FALSE),H1315)","v":" >= 750 < 780"}]
[13,"T2 2019","PROPRIÉTAIRES-OCCUPANTS, À L’UNITÉ",">= 780",33.91951202523628,"Prêts hypothécaires assurés au cours de la période selon le pointage de crédit à l’initiation (%)","33.9"," >= 780",{"$f":"IFERROR(VLOOKUP(A1316,Translation!$A:$C,3,FALSE),A1316)","v":13},{"$f":"IFERROR(VLOOKUP(B1316,Translation!$A:$C,3,FALSE),B1316)","v":"T2 2019"},{"$f":"IFERROR(VLOOKUP(C1316,Translation!$A:$C,3,FALSE),C1316)","v":"PROPRIÉTAIRES-OCCUPANTS, À L’UNITÉ"},{"$f":"IFERROR(VLOOKUP(D1316,Translation!$A:$C,3,FALSE),D1316)","v":">= 780"},{"$f":"IFERROR(VLOOKUP(E1316,Translation!$A:$C,3,FALSE),E1316)","v":33.91951202523628},{"$f":"IFERROR(VLOOKUP(F1316,Translation!$A:$C,3,FALSE),F1316)","v":"Prêts hypothécaires assurés au cours de la période selon le pointage de crédit à l’initiation (%)"},{"$f":"IFERROR(VLOOKUP(G1316,Translation!$A:$C,3,FALSE),G1316)","v":"33.9"},{"$f":"IFERROR(VLOOKUP(H1316,Translation!$A:$C,3,FALSE),H1316)","v":" >= 780"}]
[13,"T2 2019","PROPRIÉTAIRES-OCCUPANTS, À L’UNITÉ","Pointage de crédit moyen à l'initiation ",755.18236503524452,"Prêts hypothécaires assurés au cours de la période selon le pointage de crédit à l’initiation (%)","755.2","Pointage de crédit moyen à l'initiation ",{"$f":"IFERROR(VLOOKUP(A1317,Translation!$A:$C,3,FALSE),A1317)","v":13},{"$f":"IFERROR(VLOOKUP(B1317,Translation!$A:$C,3,FALSE),B1317)","v":"T2 2019"},{"$f":"IFERROR(VLOOKUP(C1317,Translation!$A:$C,3,FALSE),C1317)","v":"PROPRIÉTAIRES-OCCUPANTS, À L’UNITÉ"},{"$f":"IFERROR(VLOOKUP(D1317,Translation!$A:$C,3,FALSE),D1317)","v":"Pointage de crédit moyen à l'initiation "},{"$f":"IFERROR(VLOOKUP(E1317,Translation!$A:$C,3,FALSE),E1317)","v":755.18236503524452},{"$f":"IFERROR(VLOOKUP(F1317,Translation!$A:$C,3,FALSE),F1317)","v":"Prêts hypothécaires assurés au cours de la période selon le pointage de crédit à l’initiation (%)"},{"$f":"IFERROR(VLOOKUP(G1317,Translation!$A:$C,3,FALSE),G1317)","v":"755.2"},{"$f":"IFERROR(VLOOKUP(H1317,Translation!$A:$C,3,FALSE),H1317)","v":"Pointage de crédit moyen à l'initiation "}]
[13,"T2 2019","PROPRIÉTAIRES-OCCUPANTS, À L’UNITÉ","Terre-Neuve-et-Labrador",745.00473795906373,"Prêts hypothécaires assurés au cours de la période selon le pointage de crédit à l’initiation (%)","745.0","Terre-Neuve-et-Labrador",{"$f":"IFERROR(VLOOKUP(A1318,Translation!$A:$C,3,FALSE),A1318)","v":13},{"$f":"IFERROR(VLOOKUP(B1318,Translation!$A:$C,3,FALSE),B1318)","v":"T2 2019"},{"$f":"IFERROR(VLOOKUP(C1318,Translation!$A:$C,3,FALSE),C1318)","v":"PROPRIÉTAIRES-OCCUPANTS, À L’UNITÉ"},{"$f":"IFERROR(VLOOKUP(D1318,Translation!$A:$C,3,FALSE),D1318)","v":"Terre-Neuve-et-Labrador"},{"$f":"IFERROR(VLOOKUP(E1318,Translation!$A:$C,3,FALSE),E1318)","v":745.00473795906373},{"$f":"IFERROR(VLOOKUP(F1318,Translation!$A:$C,3,FALSE),F1318)","v":"Prêts hypothécaires assurés au cours de la période selon le pointage de crédit à l’initiation (%)"},{"$f":"IFERROR(VLOOKUP(G1318,Translation!$A:$C,3,FALSE),G1318)","v":"745.0"},{"$f":"IFERROR(VLOOKUP(H1318,Translation!$A:$C,3,FALSE),H1318)","v":"Terre-Neuve-et-Labrador"}]
[13,"T2 2019","PROPRIÉTAIRES-OCCUPANTS, À L’UNITÉ","Île-du-Prince-Édouard",732.57876084808197,"Prêts hypothécaires assurés au cours de la période selon le pointage de crédit à l’initiation (%)","732.6","Île-du-Prince-Édouard",{"$f":"IFERROR(VLOOKUP(A1319,Translation!$A:$C,3,FALSE),A1319)","v":13},{"$f":"IFERROR(VLOOKUP(B1319,Translation!$A:$C,3,FALSE),B1319)","v":"T2 2019"},{"$f":"IFERROR(VLOOKUP(C1319,Translation!$A:$C,3,FALSE),C1319)","v":"PROPRIÉTAIRES-OCCUPANTS, À L’UNITÉ"},{"$f":"IFERROR(VLOOKUP(D1319,Translation!$A:$C,3,FALSE),D1319)","v":"Île-du-Prince-Édouard"},{"$f":"IFERROR(VLOOKUP(E1319,Translation!$A:$C,3,FALSE),E1319)","v":732.57876084808197},{"$f":"IFERROR(VLOOKUP(F1319,Translation!$A:$C,3,FALSE),F1319)","v":"Prêts hypothécaires assurés au cours de la période selon le pointage de crédit à l’initiation (%)"},{"$f":"IFERROR(VLOOKUP(G1319,Translation!$A:$C,3,FALSE),G1319)","v":"732.6"},{"$f":"IFERROR(VLOOKUP(H1319,Translation!$A:$C,3,FALSE),H1319)","v":"Île-du-Prince-Édouard"}]
[13,"T2 2019","PROPRIÉTAIRES-OCCUPANTS, À L’UNITÉ","Nouvelle-Écosse",741.03806603532814,"Prêts hypothécaires assurés au cours de la période selon le pointage de crédit à l’initiation (%)","741.0","Nouvelle-Écosse",{"$f":"IFERROR(VLOOKUP(A1320,Translation!$A:$C,3,FALSE),A1320)","v":13},{"$f":"IFERROR(VLOOKUP(B1320,Translation!$A:$C,3,FALSE),B1320)","v":"T2 2019"},{"$f":"IFERROR(VLOOKUP(C1320,Translation!$A:$C,3,FALSE),C1320)","v":"PROPRIÉTAIRES-OCCUPANTS, À L’UNITÉ"},{"$f":"IFERROR(VLOOKUP(D1320,Translation!$A:$C,3,FALSE),D1320)","v":"Nouvelle-Écosse"},{"$f":"IFERROR(VLOOKUP(E1320,Translation!$A:$C,3,FALSE),E1320)","v":741.03806603532814},{"$f":"IFERROR(VLOOKUP(F1320,Translation!$A:$C,3,FALSE),F1320)","v":"Prêts hypothécaires assurés au cours de la période selon le pointage de crédit à l’initiation (%)"},{"$f":"IFERROR(VLOOKUP(G1320,Translation!$A:$C,3,FALSE),G1320)","v":"741.0"},{"$f":"IFERROR(VLOOKUP(H1320,Translation!$A:$C,3,FALSE),H1320)","v":"Nouvelle-Écosse"}]
[13,"T2 2019","PROPRIÉTAIRES-OCCUPANTS, À L’UNITÉ","Nouveau-Brunswick",745.47152795167915,"Prêts hypothécaires assurés au cours de la période selon le pointage de crédit à l’initiation (%)","745.5","Nouveau-Brunswick",{"$f":"IFERROR(VLOOKUP(A1321,Translation!$A:$C,3,FALSE),A1321)","v":13},{"$f":"IFERROR(VLOOKUP(B1321,Translation!$A:$C,3,FALSE),B1321)","v":"T2 2019"},{"$f":"IFERROR(VLOOKUP(C1321,Translation!$A:$C,3,FALSE),C1321)","v":"PROPRIÉTAIRES-OCCUPANTS, À L’UNITÉ"},{"$f":"IFERROR(VLOOKUP(D1321,Translation!$A:$C,3,FALSE),D1321)","v":"Nouveau-Brunswick"},{"$f":"IFERROR(VLOOKUP(E1321,Translation!$A:$C,3,FALSE),E1321)","v":745.47152795167915},{"$f":"IFERROR(VLOOKUP(F1321,Translation!$A:$C,3,FALSE),F1321)","v":"Prêts hypothécaires assurés au cours de la période selon le pointage de crédit à l’initiation (%)"},{"$f":"IFERROR(VLOOKUP(G1321,Translation!$A:$C,3,FALSE),G1321)","v":"745.5"},{"$f":"IFERROR(VLOOKUP(H1321,Translation!$A:$C,3,FALSE),H1321)","v":"Nouveau-Brunswick"}]
[13,"T2 2019","PROPRIÉTAIRES-OCCUPANTS, À L’UNITÉ","Québec",755.96807870754299,"Prêts hypothécaires assurés au cours de la période selon le pointage de crédit à l’initiation (%)","756.0","Québec",{"$f":"IFERROR(VLOOKUP(A1322,Translation!$A:$C,3,FALSE),A1322)","v":13},{"$f":"IFERROR(VLOOKUP(B1322,Translation!$A:$C,3,FALSE),B1322)","v":"T2 2019"},{"$f":"IFERROR(VLOOKUP(C1322,Translation!$A:$C,3,FALSE),C1322)","v":"PROPRIÉTAIRES-OCCUPANTS, À L’UNITÉ"},{"$f":"IFERROR(VLOOKUP(D1322,Translation!$A:$C,3,FALSE),D1322)","v":"Québec"},{"$f":"IFERROR(VLOOKUP(E1322,Translation!$A:$C,3,FALSE),E1322)","v":755.96807870754299},{"$f":"IFERROR(VLOOKUP(F1322,Translation!$A:$C,3,FALSE),F1322)","v":"Prêts hypothécaires assurés au cours de la période selon le pointage de crédit à l’initiation (%)"},{"$f":"IFERROR(VLOOKUP(G1322,Translation!$A:$C,3,FALSE),G1322)","v":"756.0"},{"$f":"IFERROR(VLOOKUP(H1322,Translation!$A:$C,3,FALSE),H1322)","v":"Québec"}]
[13,"T2 2019","PROPRIÉTAIRES-OCCUPANTS, À L’UNITÉ","Ontario",760.76647579189569,"Prêts hypothécaires assurés au cours de la période selon le pointage de crédit à l’initiation (%)","760.8","Ontario",{"$f":"IFERROR(VLOOKUP(A1323,Translation!$A:$C,3,FALSE),A1323)","v":13},{"$f":"IFERROR(VLOOKUP(B1323,Translation!$A:$C,3,FALSE),B1323)","v":"T2 2019"},{"$f":"IFERROR(VLOOKUP(C1323,Translation!$A:$C,3,FALSE),C1323)","v":"PROPRIÉTAIRES-OCCUPANTS, À L’UNITÉ"},{"$f":"IFERROR(VLOOKUP(D1323,Translation!$A:$C,3,FALSE),D1323)","v":"Ontario"},{"$f":"IFERROR(VLOOKUP(E1323,Translation!$A:$C,3,FALSE),E1323)","v":760.76647579189569},{"$f":"IFERROR(VLOOKUP(F1323,Translation!$A:$C,3,FALSE),F1323)","v":"Prêts hypothécaires assurés au cours de la période selon le pointage de crédit à l’initiation (%)"},{"$f":"IFERROR(VLOOKUP(G1323,Translation!$A:$C,3,FALSE),G1323)","v":"760.8"},{"$f":"IFERROR(VLOOKUP(H1323,Translation!$A:$C,3,FALSE),H1323)","v":"Ontario"}]
[13,"T2 2019","PROPRIÉTAIRES-OCCUPANTS, À L’UNITÉ","Manitoba",753.91033374946483,"Prêts hypothécaires assurés au cours de la période selon le pointage de crédit à l’initiation (%)","753.9","Manitoba",{"$f":"IFERROR(VLOOKUP(A1324,Translation!$A:$C,3,FALSE),A1324)","v":13},{"$f":"IFERROR(VLOOKUP(B1324,Translation!$A:$C,3,FALSE),B1324)","v":"T2 2019"},{"$f":"IFERROR(VLOOKUP(C1324,Translation!$A:$C,3,FALSE),C1324)","v":"PROPRIÉTAIRES-OCCUPANTS, À L’UNITÉ"},{"$f":"IFERROR(VLOOKUP(D1324,Translation!$A:$C,3,FALSE),D1324)","v":"Manitoba"},{"$f":"IFERROR(VLOOKUP(E1324,Translation!$A:$C,3,FALSE),E1324)","v":753.91033374946483},{"$f":"IFERROR(VLOOKUP(F1324,Translation!$A:$C,3,FALSE),F1324)","v":"Prêts hypothécaires assurés au cours de la période selon le pointage de crédit à l’initiation (%)"},{"$f":"IFERROR(VLOOKUP(G1324,Translation!$A:$C,3,FALSE),G1324)","v":"753.9"},{"$f":"IFERROR(VLOOKUP(H1324,Translation!$A:$C,3,FALSE),H1324)","v":"Manitoba"}]
[13,"T2 2019","PROPRIÉTAIRES-OCCUPANTS, À L’UNITÉ","Saskatchewan",752.22975819066357,"Prêts hypothécaires assurés au cours de la période selon le pointage de crédit à l’initiation (%)","752.2","Saskatchewan",{"$f":"IFERROR(VLOOKUP(A1325,Translation!$A:$C,3,FALSE),A1325)","v":13},{"$f":"IFERROR(VLOOKUP(B1325,Translation!$A:$C,3,FALSE),B1325)","v":"T2 2019"},{"$f":"IFERROR(VLOOKUP(C1325,Translation!$A:$C,3,FALSE),C1325)","v":"PROPRIÉTAIRES-OCCUPANTS, À L’UNITÉ"},{"$f":"IFERROR(VLOOKUP(D1325,Translation!$A:$C,3,FALSE),D1325)","v":"Saskatchewan"},{"$f":"IFERROR(VLOOKUP(E1325,Translation!$A:$C,3,FALSE),E1325)","v":752.22975819066357},{"$f":"IFERROR(VLOOKUP(F1325,Translation!$A:$C,3,FALSE),F1325)","v":"Prêts hypothécaires assurés au cours de la période selon le pointage de crédit à l’initiation (%)"},{"$f":"IFERROR(VLOOKUP(G1325,Translation!$A:$C,3,FALSE),G1325)","v":"752.2"},{"$f":"IFERROR(VLOOKUP(H1325,Translation!$A:$C,3,FALSE),H1325)","v":"Saskatchewan"}]
[13,"T2 2019","PROPRIÉTAIRES-OCCUPANTS, À L’UNITÉ","Alberta",749.13432364459322,"Prêts hypothécaires assurés au cours de la période selon le pointage de crédit à l’initiation (%)","749.1","Alberta",{"$f":"IFERROR(VLOOKUP(A1326,Translation!$A:$C,3,FALSE),A1326)","v":13},{"$f":"IFERROR(VLOOKUP(B1326,Translation!$A:$C,3,FALSE),B1326)","v":"T2 2019"},{"$f":"IFERROR(VLOOKUP(C1326,Translation!$A:$C,3,FALSE),C1326)","v":"PROPRIÉTAIRES-OCCUPANTS, À L’UNITÉ"},{"$f":"IFERROR(VLOOKUP(D1326,Translation!$A:$C,3,FALSE),D1326)","v":"Alberta"},{"$f":"IFERROR(VLOOKUP(E1326,Translation!$A:$C,3,FALSE),E1326)","v":749.13432364459322},{"$f":"IFERROR(VLOOKUP(F1326,Translation!$A:$C,3,FALSE),F1326)","v":"Prêts hypothécaires assurés au cours de la période selon le pointage de crédit à l’initiation (%)"},{"$f":"IFERROR(VLOOKUP(G1326,Translation!$A:$C,3,FALSE),G1326)","v":"749.1"},{"$f":"IFERROR(VLOOKUP(H1326,Translation!$A:$C,3,FALSE),H1326)","v":"Alberta"}]
[13,"T2 2019","PROPRIÉTAIRES-OCCUPANTS, À L’UNITÉ","Colombie-Britannique",753.61457167176945,"Prêts hypothécaires assurés au cours de la période selon le pointage de crédit à l’initiation (%)","753.6","Colombie-Britannique",{"$f":"IFERROR(VLOOKUP(A1327,Translation!$A:$C,3,FALSE),A1327)","v":13},{"$f":"IFERROR(VLOOKUP(B1327,Translation!$A:$C,3,FALSE),B1327)","v":"T2 2019"},{"$f":"IFERROR(VLOOKUP(C1327,Translation!$A:$C,3,FALSE),C1327)","v":"PROPRIÉTAIRES-OCCUPANTS, À L’UNITÉ"},{"$f":"IFERROR(VLOOKUP(D1327,Translation!$A:$C,3,FALSE),D1327)","v":"Colombie-Britannique"},{"$f":"IFERROR(VLOOKUP(E1327,Translation!$A:$C,3,FALSE),E1327)","v":753.61457167176945},{"$f":"IFERROR(VLOOKUP(F1327,Translation!$A:$C,3,FALSE),F1327)","v":"Prêts hypothécaires assurés au cours de la période selon le pointage de crédit à l’initiation (%)"},{"$f":"IFERROR(VLOOKUP(G1327,Translation!$A:$C,3,FALSE),G1327)","v":"753.6"},{"$f":"IFERROR(VLOOKUP(H1327,Translation!$A:$C,3,FALSE),H1327)","v":"Colombie-Britannique"}]
[13,"T2 2019","PROPRIÉTAIRES-OCCUPANTS, À L’UNITÉ","Territoires",753.5759312864385,"Prêts hypothécaires assurés au cours de la période selon le pointage de crédit à l’initiation (%)","753.6","Territoires",{"$f":"IFERROR(VLOOKUP(A1328,Translation!$A:$C,3,FALSE),A1328)","v":13},{"$f":"IFERROR(VLOOKUP(B1328,Translation!$A:$C,3,FALSE),B1328)","v":"T2 2019"},{"$f":"IFERROR(VLOOKUP(C1328,Translation!$A:$C,3,FALSE),C1328)","v":"PROPRIÉTAIRES-OCCUPANTS, À L’UNITÉ"},{"$f":"IFERROR(VLOOKUP(D1328,Translation!$A:$C,3,FALSE),D1328)","v":"Territoires"},{"$f":"IFERROR(VLOOKUP(E1328,Translation!$A:$C,3,FALSE),E1328)","v":753.5759312864385},{"$f":"IFERROR(VLOOKUP(F1328,Translation!$A:$C,3,FALSE),F1328)","v":"Prêts hypothécaires assurés au cours de la période selon le pointage de crédit à l’initiation (%)"},{"$f":"IFERROR(VLOOKUP(G1328,Translation!$A:$C,3,FALSE),G1328)","v":"753.6"},{"$f":"IFERROR(VLOOKUP(H1328,Translation!$A:$C,3,FALSE),H1328)","v":"Territoires"}]
[13,"T2 2019","ASSURANCE DE PORTEFEUILLE","Aucun pointage de crédit",2.4270369332083401E-3,"Prêts hypothécaires assurés au cours de la période selon le pointage de crédit à l’initiation (%)","0.0","Aucun pointage de crédit",{"$f":"IFERROR(VLOOKUP(A1329,Translation!$A:$C,3,FALSE),A1329)","v":13},{"$f":"IFERROR(VLOOKUP(B1329,Translation!$A:$C,3,FALSE),B1329)","v":"T2 2019"},{"$f":"IFERROR(VLOOKUP(C1329,Translation!$A:$C,3,FALSE),C1329)","v":"ASSURANCE DE PORTEFEUILLE"},{"$f":"IFERROR(VLOOKUP(D1329,Translation!$A:$C,3,FALSE),D1329)","v":"Aucun pointage de crédit"},{"$f":"IFERROR(VLOOKUP(E1329,Translation!$A:$C,3,FALSE),E1329)","v":2.4270369332083401E-3},{"$f":"IFERROR(VLOOKUP(F1329,Translation!$A:$C,3,FALSE),F1329)","v":"Prêts hypothécaires assurés au cours de la période selon le pointage de crédit à l’initiation (%)"},{"$f":"IFERROR(VLOOKUP(G1329,Translation!$A:$C,3,FALSE),G1329)","v":"0.0"},{"$f":"IFERROR(VLOOKUP(H1329,Translation!$A:$C,3,FALSE),H1329)","v":"Aucun pointage de crédit"}]
[13,"T2 2019","ASSURANCE DE PORTEFEUILLE","< 600",9.125018426729592E-2,"Prêts hypothécaires assurés au cours de la période selon le pointage de crédit à l’initiation (%)","0.1"," < 600",{"$f":"IFERROR(VLOOKUP(A1330,Translation!$A:$C,3,FALSE),A1330)","v":13},{"$f":"IFERROR(VLOOKUP(B1330,Translation!$A:$C,3,FALSE),B1330)","v":"T2 2019"},{"$f":"IFERROR(VLOOKUP(C1330,Translation!$A:$C,3,FALSE),C1330)","v":"ASSURANCE DE PORTEFEUILLE"},{"$f":"IFERROR(VLOOKUP(D1330,Translation!$A:$C,3,FALSE),D1330)","v":"< 600"},{"$f":"IFERROR(VLOOKUP(E1330,Translation!$A:$C,3,FALSE),E1330)","v":9.125018426729592E-2},{"$f":"IFERROR(VLOOKUP(F1330,Translation!$A:$C,3,FALSE),F1330)","v":"Prêts hypothécaires assurés au cours de la période selon le pointage de crédit à l’initiation (%)"},{"$f":"IFERROR(VLOOKUP(G1330,Translation!$A:$C,3,FALSE),G1330)","v":"0.1"},{"$f":"IFERROR(VLOOKUP(H1330,Translation!$A:$C,3,FALSE),H1330)","v":" < 600"}]
[13,"T2 2019","ASSURANCE DE PORTEFEUILLE",">= 600 < 680",1.761257548494406,"Prêts hypothécaires assurés au cours de la période selon le pointage de crédit à l’initiation (%)","1.8"," >= 600 < 680",{"$f":"IFERROR(VLOOKUP(A1331,Translation!$A:$C,3,FALSE),A1331)","v":13},{"$f":"IFERROR(VLOOKUP(B1331,Translation!$A:$C,3,FALSE),B1331)","v":"T2 2019"},{"$f":"IFERROR(VLOOKUP(C1331,Translation!$A:$C,3,FALSE),C1331)","v":"ASSURANCE DE PORTEFEUILLE"},{"$f":"IFERROR(VLOOKUP(D1331,Translation!$A:$C,3,FALSE),D1331)","v":">= 600 < 680"},{"$f":"IFERROR(VLOOKUP(E1331,Translation!$A:$C,3,FALSE),E1331)","v":1.761257548494406},{"$f":"IFERROR(VLOOKUP(F1331,Translation!$A:$C,3,FALSE),F1331)","v":"Prêts hypothécaires assurés au cours de la période selon le pointage de crédit à l’initiation (%)"},{"$f":"IFERROR(VLOOKUP(G1331,Translation!$A:$C,3,FALSE),G1331)","v":"1.8"},{"$f":"IFERROR(VLOOKUP(H1331,Translation!$A:$C,3,FALSE),H1331)","v":" >= 600 < 680"}]
[13,"T2 2019","ASSURANCE DE PORTEFEUILLE",">= 680 < 700",1.7910602177523014,"Prêts hypothécaires assurés au cours de la période selon le pointage de crédit à l’initiation (%)","1.8"," >= 680 < 700",{"$f":"IFERROR(VLOOKUP(A1332,Translation!$A:$C,3,FALSE),A1332)","v":13},{"$f":"IFERROR(VLOOKUP(B1332,Translation!$A:$C,3,FALSE),B1332)","v":"T2 2019"},{"$f":"IFERROR(VLOOKUP(C1332,Translation!$A:$C,3,FALSE),C1332)","v":"ASSURANCE DE PORTEFEUILLE"},{"$f":"IFERROR(VLOOKUP(D1332,Translation!$A:$C,3,FALSE),D1332)","v":">= 680 < 700"},{"$f":"IFERROR(VLOOKUP(E1332,Translation!$A:$C,3,FALSE),E1332)","v":1.7910602177523014},{"$f":"IFERROR(VLOOKUP(F1332,Translation!$A:$C,3,FALSE),F1332)","v":"Prêts hypothécaires assurés au cours de la période selon le pointage de crédit à l’initiation (%)"},{"$f":"IFERROR(VLOOKUP(G1332,Translation!$A:$C,3,FALSE),G1332)","v":"1.8"},{"$f":"IFERROR(VLOOKUP(H1332,Translation!$A:$C,3,FALSE),H1332)","v":" >= 680 < 700"}]
[13,"T2 2019","ASSURANCE DE PORTEFEUILLE",">= 700 < 750",15.73081052086607,"Prêts hypothécaires assurés au cours de la période selon le pointage de crédit à l’initiation (%)","15.7"," >= 700 < 750",{"$f":"IFERROR(VLOOKUP(A1333,Translation!$A:$C,3,FALSE),A1333)","v":13},{"$f":"IFERROR(VLOOKUP(B1333,Translation!$A:$C,3,FALSE),B1333)","v":"T2 2019"},{"$f":"IFERROR(VLOOKUP(C1333,Translation!$A:$C,3,FALSE),C1333)","v":"ASSURANCE DE PORTEFEUILLE"},{"$f":"IFERROR(VLOOKUP(D1333,Translation!$A:$C,3,FALSE),D1333)","v":">= 700 < 750"},{"$f":"IFERROR(VLOOKUP(E1333,Translation!$A:$C,3,FALSE),E1333)","v":15.73081052086607},{"$f":"IFERROR(VLOOKUP(F1333,Translation!$A:$C,3,FALSE),F1333)","v":"Prêts hypothécaires assurés au cours de la période selon le pointage de crédit à l’initiation (%)"},{"$f":"IFERROR(VLOOKUP(G1333,Translation!$A:$C,3,FALSE),G1333)","v":"15.7"},{"$f":"IFERROR(VLOOKUP(H1333,Translation!$A:$C,3,FALSE),H1333)","v":" >= 700 < 750"}]
[13,"T2 2019","ASSURANCE DE PORTEFEUILLE",">= 750 < 780",27.053552667084777,"Prêts hypothécaires assurés au cours de la période selon le pointage de crédit à l’initiation (%)","27.1"," >= 750 < 780",{"$f":"IFERROR(VLOOKUP(A1334,Translation!$A:$C,3,FALSE),A1334)","v":13},{"$f":"IFERROR(VLOOKUP(B1334,Translation!$A:$C,3,FALSE),B1334)","v":"T2 2019"},{"$f":"IFERROR(VLOOKUP(C1334,Translation!$A:$C,3,FALSE),C1334)","v":"ASSURANCE DE PORTEFEUILLE"},{"$f":"IFERROR(VLOOKUP(D1334,Translation!$A:$C,3,FALSE),D1334)","v":">= 750 < 780"},{"$f":"IFERROR(VLOOKUP(E1334,Translation!$A:$C,3,FALSE),E1334)","v":27.053552667084777},{"$f":"IFERROR(VLOOKUP(F1334,Translation!$A:$C,3,FALSE),F1334)","v":"Prêts hypothécaires assurés au cours de la période selon le pointage de crédit à l’initiation (%)"},{"$f":"IFERROR(VLOOKUP(G1334,Translation!$A:$C,3,FALSE),G1334)","v":"27.1"},{"$f":"IFERROR(VLOOKUP(H1334,Translation!$A:$C,3,FALSE),H1334)","v":" >= 750 < 780"}]
[13,"T2 2019","ASSURANCE DE PORTEFEUILLE",">= 780",53.569641824601938,"Prêts hypothécaires assurés au cours de la période selon le pointage de crédit à l’initiation (%)","53.6"," >= 780",{"$f":"IFERROR(VLOOKUP(A1335,Translation!$A:$C,3,FALSE),A1335)","v":13},{"$f":"IFERROR(VLOOKUP(B1335,Translation!$A:$C,3,FALSE),B1335)","v":"T2 2019"},{"$f":"IFERROR(VLOOKUP(C1335,Translation!$A:$C,3,FALSE),C1335)","v":"ASSURANCE DE PORTEFEUILLE"},{"$f":"IFERROR(VLOOKUP(D1335,Translation!$A:$C,3,FALSE),D1335)","v":">= 780"},{"$f":"IFERROR(VLOOKUP(E1335,Translation!$A:$C,3,FALSE),E1335)","v":53.569641824601938},{"$f":"IFERROR(VLOOKUP(F1335,Translation!$A:$C,3,FALSE),F1335)","v":"Prêts hypothécaires assurés au cours de la période selon le pointage de crédit à l’initiation (%)"},{"$f":"IFERROR(VLOOKUP(G1335,Translation!$A:$C,3,FALSE),G1335)","v":"53.6"},{"$f":"IFERROR(VLOOKUP(H1335,Translation!$A:$C,3,FALSE),H1335)","v":" >= 780"}]
[13,"T2 2019","ASSURANCE DE PORTEFEUILLE","Pointage de crédit moyen à l'initiation ",775.33660451207891,"Prêts hypothécaires assurés au cours de la période selon le pointage de crédit à l’initiation (%)","775.3","Pointage de crédit moyen à l'initiation ",{"$f":"IFERROR(VLOOKUP(A1336,Translation!$A:$C,3,FALSE),A1336)","v":13},{"$f":"IFERROR(VLOOKUP(B1336,Translation!$A:$C,3,FALSE),B1336)","v":"T2 2019"},{"$f":"IFERROR(VLOOKUP(C1336,Translation!$A:$C,3,FALSE),C1336)","v":"ASSURANCE DE PORTEFEUILLE"},{"$f":"IFERROR(VLOOKUP(D1336,Translation!$A:$C,3,FALSE),D1336)","v":"Pointage de crédit moyen à l'initiation "},{"$f":"IFERROR(VLOOKUP(E1336,Translation!$A:$C,3,FALSE),E1336)","v":775.33660451207891},{"$f":"IFERROR(VLOOKUP(F1336,Translation!$A:$C,3,FALSE),F1336)","v":"Prêts hypothécaires assurés au cours de la période selon le pointage de crédit à l’initiation (%)"},{"$f":"IFERROR(VLOOKUP(G1336,Translation!$A:$C,3,FALSE),G1336)","v":"775.3"},{"$f":"IFERROR(VLOOKUP(H1336,Translation!$A:$C,3,FALSE),H1336)","v":"Pointage de crédit moyen à l'initiation "}]
[13,"T2 2019","ASSURANCE DE PORTEFEUILLE","Terre-Neuve-et-Labrador",776.05340134261246,"Prêts hypothécaires assurés au cours de la période selon le pointage de crédit à l’initiation (%)","776.1","Terre-Neuve-et-Labrador",{"$f":"IFERROR(VLOOKUP(A1337,Translation!$A:$C,3,FALSE),A1337)","v":13},{"$f":"IFERROR(VLOOKUP(B1337,Translation!$A:$C,3,FALSE),B1337)","v":"T2 2019"},{"$f":"IFERROR(VLOOKUP(C1337,Translation!$A:$C,3,FALSE),C1337)","v":"ASSURANCE DE PORTEFEUILLE"},{"$f":"IFERROR(VLOOKUP(D1337,Translation!$A:$C,3,FALSE),D1337)","v":"Terre-Neuve-et-Labrador"},{"$f":"IFERROR(VLOOKUP(E1337,Translation!$A:$C,3,FALSE),E1337)","v":776.05340134261246},{"$f":"IFERROR(VLOOKUP(F1337,Translation!$A:$C,3,FALSE),F1337)","v":"Prêts hypothécaires assurés au cours de la période selon le pointage de crédit à l’initiation (%)"},{"$f":"IFERROR(VLOOKUP(G1337,Translation!$A:$C,3,FALSE),G1337)","v":"776.1"},{"$f":"IFERROR(VLOOKUP(H1337,Translation!$A:$C,3,FALSE),H1337)","v":"Terre-Neuve-et-Labrador"}]
[13,"T2 2019","ASSURANCE DE PORTEFEUILLE","Île-du-Prince-Édouard",789.72384371866315,"Prêts hypothécaires assurés au cours de la période selon le pointage de crédit à l’initiation (%)","789.7","Île-du-Prince-Édouard",{"$f":"IFERROR(VLOOKUP(A1338,Translation!$A:$C,3,FALSE),A1338)","v":13},{"$f":"IFERROR(VLOOKUP(B1338,Translation!$A:$C,3,FALSE),B1338)","v":"T2 2019"},{"$f":"IFERROR(VLOOKUP(C1338,Translation!$A:$C,3,FALSE),C1338)","v":"ASSURANCE DE PORTEFEUILLE"},{"$f":"IFERROR(VLOOKUP(D1338,Translation!$A:$C,3,FALSE),D1338)","v":"Île-du-Prince-Édouard"},{"$f":"IFERROR(VLOOKUP(E1338,Translation!$A:$C,3,FALSE),E1338)","v":789.72384371866315},{"$f":"IFERROR(VLOOKUP(F1338,Translation!$A:$C,3,FALSE),F1338)","v":"Prêts hypothécaires assurés au cours de la période selon le pointage de crédit à l’initiation (%)"},{"$f":"IFERROR(VLOOKUP(G1338,Translation!$A:$C,3,FALSE),G1338)","v":"789.7"},{"$f":"IFERROR(VLOOKUP(H1338,Translation!$A:$C,3,FALSE),H1338)","v":"Île-du-Prince-Édouard"}]
[13,"T2 2019","ASSURANCE DE PORTEFEUILLE","Nouvelle-Écosse",780.64210868482417,"Prêts hypothécaires assurés au cours de la période selon le pointage de crédit à l’initiation (%)","780.6","Nouvelle-Écosse",{"$f":"IFERROR(VLOOKUP(A1339,Translation!$A:$C,3,FALSE),A1339)","v":13},{"$f":"IFERROR(VLOOKUP(B1339,Translation!$A:$C,3,FALSE),B1339)","v":"T2 2019"},{"$f":"IFERROR(VLOOKUP(C1339,Translation!$A:$C,3,FALSE),C1339)","v":"ASSURANCE DE PORTEFEUILLE"},{"$f":"IFERROR(VLOOKUP(D1339,Translation!$A:$C,3,FALSE),D1339)","v":"Nouvelle-Écosse"},{"$f":"IFERROR(VLOOKUP(E1339,Translation!$A:$C,3,FALSE),E1339)","v":780.64210868482417},{"$f":"IFERROR(VLOOKUP(F1339,Translation!$A:$C,3,FALSE),F1339)","v":"Prêts hypothécaires assurés au cours de la période selon le pointage de crédit à l’initiation (%)"},{"$f":"IFERROR(VLOOKUP(G1339,Translation!$A:$C,3,FALSE),G1339)","v":"780.6"},{"$f":"IFERROR(VLOOKUP(H1339,Translation!$A:$C,3,FALSE),H1339)","v":"Nouvelle-Écosse"}]
[13,"T2 2019","ASSURANCE DE PORTEFEUILLE","Nouveau-Brunswick",781.84018720734684,"Prêts hypothécaires assurés au cours de la période selon le pointage de crédit à l’initiation (%)","781.8","Nouveau-Brunswick",{"$f":"IFERROR(VLOOKUP(A1340,Translation!$A:$C,3,FALSE),A1340)","v":13},{"$f":"IFERROR(VLOOKUP(B1340,Translation!$A:$C,3,FALSE),B1340)","v":"T2 2019"},{"$f":"IFERROR(VLOOKUP(C1340,Translation!$A:$C,3,FALSE),C1340)","v":"ASSURANCE DE PORTEFEUILLE"},{"$f":"IFERROR(VLOOKUP(D1340,Translation!$A:$C,3,FALSE),D1340)","v":"Nouveau-Brunswick"},{"$f":"IFERROR(VLOOKUP(E1340,Translation!$A:$C,3,FALSE),E1340)","v":781.84018720734684},{"$f":"IFERROR(VLOOKUP(F1340,Translation!$A:$C,3,FALSE),F1340)","v":"Prêts hypothécaires assurés au cours de la période selon le pointage de crédit à l’initiation (%)"},{"$f":"IFERROR(VLOOKUP(G1340,Translation!$A:$C,3,FALSE),G1340)","v":"781.8"},{"$f":"IFERROR(VLOOKUP(H1340,Translation!$A:$C,3,FALSE),H1340)","v":"Nouveau-Brunswick"}]
[13,"T2 2019","ASSURANCE DE PORTEFEUILLE","Québec",778.40411238286197,"Prêts hypothécaires assurés au cours de la période selon le pointage de crédit à l’initiation (%)","778.4","Québec",{"$f":"IFERROR(VLOOKUP(A1341,Translation!$A:$C,3,FALSE),A1341)","v":13},{"$f":"IFERROR(VLOOKUP(B1341,Translation!$A:$C,3,FALSE),B1341)","v":"T2 2019"},{"$f":"IFERROR(VLOOKUP(C1341,Translation!$A:$C,3,FALSE),C1341)","v":"ASSURANCE DE PORTEFEUILLE"},{"$f":"IFERROR(VLOOKUP(D1341,Translation!$A:$C,3,FALSE),D1341)","v":"Québec"},{"$f":"IFERROR(VLOOKUP(E1341,Translation!$A:$C,3,FALSE),E1341)","v":778.40411238286197},{"$f":"IFERROR(VLOOKUP(F1341,Translation!$A:$C,3,FALSE),F1341)","v":"Prêts hypothécaires assurés au cours de la période selon le pointage de crédit à l’initiation (%)"},{"$f":"IFERROR(VLOOKUP(G1341,Translation!$A:$C,3,FALSE),G1341)","v":"778.4"},{"$f":"IFERROR(VLOOKUP(H1341,Translation!$A:$C,3,FALSE),H1341)","v":"Québec"}]
[13,"T2 2019","ASSURANCE DE PORTEFEUILLE","Ontario",774.30452323661473,"Prêts hypothécaires assurés au cours de la période selon le pointage de crédit à l’initiation (%)","774.3","Ontario",{"$f":"IFERROR(VLOOKUP(A1342,Translation!$A:$C,3,FALSE),A1342)","v":13},{"$f":"IFERROR(VLOOKUP(B1342,Translation!$A:$C,3,FALSE),B1342)","v":"T2 2019"},{"$f":"IFERROR(VLOOKUP(C1342,Translation!$A:$C,3,FALSE),C1342)","v":"ASSURANCE DE PORTEFEUILLE"},{"$f":"IFERROR(VLOOKUP(D1342,Translation!$A:$C,3,FALSE),D1342)","v":"Ontario"},{"$f":"IFERROR(VLOOKUP(E1342,Translation!$A:$C,3,FALSE),E1342)","v":774.30452323661473},{"$f":"IFERROR(VLOOKUP(F1342,Translation!$A:$C,3,FALSE),F1342)","v":"Prêts hypothécaires assurés au cours de la période selon le pointage de crédit à l’initiation (%)"},{"$f":"IFERROR(VLOOKUP(G1342,Translation!$A:$C,3,FALSE),G1342)","v":"774.3"},{"$f":"IFERROR(VLOOKUP(H1342,Translation!$A:$C,3,FALSE),H1342)","v":"Ontario"}]
[13,"T2 2019","ASSURANCE DE PORTEFEUILLE","Manitoba",775.20274689647204,"Prêts hypothécaires assurés au cours de la période selon le pointage de crédit à l’initiation (%)","775.2","Manitoba",{"$f":"IFERROR(VLOOKUP(A1343,Translation!$A:$C,3,FALSE),A1343)","v":13},{"$f":"IFERROR(VLOOKUP(B1343,Translation!$A:$C,3,FALSE),B1343)","v":"T2 2019"},{"$f":"IFERROR(VLOOKUP(C1343,Translation!$A:$C,3,FALSE),C1343)","v":"ASSURANCE DE PORTEFEUILLE"},{"$f":"IFERROR(VLOOKUP(D1343,Translation!$A:$C,3,FALSE),D1343)","v":"Manitoba"},{"$f":"IFERROR(VLOOKUP(E1343,Translation!$A:$C,3,FALSE),E1343)","v":775.20274689647204},{"$f":"IFERROR(VLOOKUP(F1343,Translation!$A:$C,3,FALSE),F1343)","v":"Prêts hypothécaires assurés au cours de la période selon le pointage de crédit à l’initiation (%)"},{"$f":"IFERROR(VLOOKUP(G1343,Translation!$A:$C,3,FALSE),G1343)","v":"775.2"},{"$f":"IFERROR(VLOOKUP(H1343,Translation!$A:$C,3,FALSE),H1343)","v":"Manitoba"}]
[13,"T2 2019","ASSURANCE DE PORTEFEUILLE","Saskatchewan",780.47670805422842,"Prêts hypothécaires assurés au cours de la période selon le pointage de crédit à l’initiation (%)","780.5","Saskatchewan",{"$f":"IFERROR(VLOOKUP(A1344,Translation!$A:$C,3,FALSE),A1344)","v":13},{"$f":"IFERROR(VLOOKUP(B1344,Translation!$A:$C,3,FALSE),B1344)","v":"T2 2019"},{"$f":"IFERROR(VLOOKUP(C1344,Translation!$A:$C,3,FALSE),C1344)","v":"ASSURANCE DE PORTEFEUILLE"},{"$f":"IFERROR(VLOOKUP(D1344,Translation!$A:$C,3,FALSE),D1344)","v":"Saskatchewan"},{"$f":"IFERROR(VLOOKUP(E1344,Translation!$A:$C,3,FALSE),E1344)","v":780.47670805422842},{"$f":"IFERROR(VLOOKUP(F1344,Translation!$A:$C,3,FALSE),F1344)","v":"Prêts hypothécaires assurés au cours de la période selon le pointage de crédit à l’initiation (%)"},{"$f":"IFERROR(VLOOKUP(G1344,Translation!$A:$C,3,FALSE),G1344)","v":"780.5"},{"$f":"IFERROR(VLOOKUP(H1344,Translation!$A:$C,3,FALSE),H1344)","v":"Saskatchewan"}]
[13,"T2 2019","ASSURANCE DE PORTEFEUILLE","Alberta",775.30617039040851,"Prêts hypothécaires assurés au cours de la période selon le pointage de crédit à l’initiation (%)","775.3","Alberta",{"$f":"IFERROR(VLOOKUP(A1345,Translation!$A:$C,3,FALSE),A1345)","v":13},{"$f":"IFERROR(VLOOKUP(B1345,Translation!$A:$C,3,FALSE),B1345)","v":"T2 2019"},{"$f":"IFERROR(VLOOKUP(C1345,Translation!$A:$C,3,FALSE),C1345)","v":"ASSURANCE DE PORTEFEUILLE"},{"$f":"IFERROR(VLOOKUP(D1345,Translation!$A:$C,3,FALSE),D1345)","v":"Alberta"},{"$f":"IFERROR(VLOOKUP(E1345,Translation!$A:$C,3,FALSE),E1345)","v":775.30617039040851},{"$f":"IFERROR(VLOOKUP(F1345,Translation!$A:$C,3,FALSE),F1345)","v":"Prêts hypothécaires assurés au cours de la période selon le pointage de crédit à l’initiation (%)"},{"$f":"IFERROR(VLOOKUP(G1345,Translation!$A:$C,3,FALSE),G1345)","v":"775.3"},{"$f":"IFERROR(VLOOKUP(H1345,Translation!$A:$C,3,FALSE),H1345)","v":"Alberta"}]
[13,"T2 2019","ASSURANCE DE PORTEFEUILLE","Colombie-Britannique",774.58383607298299,"Prêts hypothécaires assurés au cours de la période selon le pointage de crédit à l’initiation (%)","774.6","Colombie-Britannique",{"$f":"IFERROR(VLOOKUP(A1346,Translation!$A:$C,3,FALSE),A1346)","v":13},{"$f":"IFERROR(VLOOKUP(B1346,Translation!$A:$C,3,FALSE),B1346)","v":"T2 2019"},{"$f":"IFERROR(VLOOKUP(C1346,Translation!$A:$C,3,FALSE),C1346)","v":"ASSURANCE DE PORTEFEUILLE"},{"$f":"IFERROR(VLOOKUP(D1346,Translation!$A:$C,3,FALSE),D1346)","v":"Colombie-Britannique"},{"$f":"IFERROR(VLOOKUP(E1346,Translation!$A:$C,3,FALSE),E1346)","v":774.58383607298299},{"$f":"IFERROR(VLOOKUP(F1346,Translation!$A:$C,3,FALSE),F1346)","v":"Prêts hypothécaires assurés au cours de la période selon le pointage de crédit à l’initiation (%)"},{"$f":"IFERROR(VLOOKUP(G1346,Translation!$A:$C,3,FALSE),G1346)","v":"774.6"},{"$f":"IFERROR(VLOOKUP(H1346,Translation!$A:$C,3,FALSE),H1346)","v":"Colombie-Britannique"}]
[13,"T1 2019","PROPRIÉTAIRES-OCCUPANTS, À L’UNITÉ","Aucun pointage de crédit",2.461033501074537,"Prêts hypothécaires assurés au cours de la période selon le pointage de crédit à l’initiation (%)","2.5","Aucun pointage de crédit",{"$f":"IFERROR(VLOOKUP(A1347,Translation!$A:$C,3,FALSE),A1347)","v":13},{"$f":"IFERROR(VLOOKUP(B1347,Translation!$A:$C,3,FALSE),B1347)","v":"T1 2019"},{"$f":"IFERROR(VLOOKUP(C1347,Translation!$A:$C,3,FALSE),C1347)","v":"PROPRIÉTAIRES-OCCUPANTS, À L’UNITÉ"},{"$f":"IFERROR(VLOOKUP(D1347,Translation!$A:$C,3,FALSE),D1347)","v":"Aucun pointage de crédit"},{"$f":"IFERROR(VLOOKUP(E1347,Translation!$A:$C,3,FALSE),E1347)","v":2.461033501074537},{"$f":"IFERROR(VLOOKUP(F1347,Translation!$A:$C,3,FALSE),F1347)","v":"Prêts hypothécaires assurés au cours de la période selon le pointage de crédit à l’initiation (%)"},{"$f":"IFERROR(VLOOKUP(G1347,Translation!$A:$C,3,FALSE),G1347)","v":"2.5"},{"$f":"IFERROR(VLOOKUP(H1347,Translation!$A:$C,3,FALSE),H1347)","v":"Aucun pointage de crédit"}]
[13,"T1 2019","PROPRIÉTAIRES-OCCUPANTS, À L’UNITÉ","< 600",0.35247063498935305,"Prêts hypothécaires assurés au cours de la période selon le pointage de crédit à l’initiation (%)","0.4"," < 600",{"$f":"IFERROR(VLOOKUP(A1348,Translation!$A:$C,3,FALSE),A1348)","v":13},{"$f":"IFERROR(VLOOKUP(B1348,Translation!$A:$C,3,FALSE),B1348)","v":"T1 2019"},{"$f":"IFERROR(VLOOKUP(C1348,Translation!$A:$C,3,FALSE),C1348)","v":"PROPRIÉTAIRES-OCCUPANTS, À L’UNITÉ"},{"$f":"IFERROR(VLOOKUP(D1348,Translation!$A:$C,3,FALSE),D1348)","v":"< 600"},{"$f":"IFERROR(VLOOKUP(E1348,Translation!$A:$C,3,FALSE),E1348)","v":0.35247063498935305},{"$f":"IFERROR(VLOOKUP(F1348,Translation!$A:$C,3,FALSE),F1348)","v":"Prêts hypothécaires assurés au cours de la période selon le pointage de crédit à l’initiation (%)"},{"$f":"IFERROR(VLOOKUP(G1348,Translation!$A:$C,3,FALSE),G1348)","v":"0.4"},{"$f":"IFERROR(VLOOKUP(H1348,Translation!$A:$C,3,FALSE),H1348)","v":" < 600"}]
[13,"T1 2019","PROPRIÉTAIRES-OCCUPANTS, À L’UNITÉ",">= 600 < 680",5.4102971427249722,"Prêts hypothécaires assurés au cours de la période selon le pointage de crédit à l’initiation (%)","5.4"," >= 600 < 680",{"$f":"IFERROR(VLOOKUP(A1349,Translation!$A:$C,3,FALSE),A1349)","v":13},{"$f":"IFERROR(VLOOKUP(B1349,Translation!$A:$C,3,FALSE),B1349)","v":"T1 2019"},{"$f":"IFERROR(VLOOKUP(C1349,Translation!$A:$C,3,FALSE),C1349)","v":"PROPRIÉTAIRES-OCCUPANTS, À L’UNITÉ"},{"$f":"IFERROR(VLOOKUP(D1349,Translation!$A:$C,3,FALSE),D1349)","v":">= 600 < 680"},{"$f":"IFERROR(VLOOKUP(E1349,Translation!$A:$C,3,FALSE),E1349)","v":5.4102971427249722},{"$f":"IFERROR(VLOOKUP(F1349,Translation!$A:$C,3,FALSE),F1349)","v":"Prêts hypothécaires assurés au cours de la période selon le pointage de crédit à l’initiation (%)"},{"$f":"IFERROR(VLOOKUP(G1349,Translation!$A:$C,3,FALSE),G1349)","v":"5.4"},{"$f":"IFERROR(VLOOKUP(H1349,Translation!$A:$C,3,FALSE),H1349)","v":" >= 600 < 680"}]
[13,"T1 2019","PROPRIÉTAIRES-OCCUPANTS, À L’UNITÉ",">= 680 < 700",5.1367250001190419,"Prêts hypothécaires assurés au cours de la période selon le pointage de crédit à l’initiation (%)","5.1"," >= 680 < 700",{"$f":"IFERROR(VLOOKUP(A1350,Translation!$A:$C,3,FALSE),A1350)","v":13},{"$f":"IFERROR(VLOOKUP(B1350,Translation!$A:$C,3,FALSE),B1350)","v":"T1 2019"},{"$f":"IFERROR(VLOOKUP(C1350,Translation!$A:$C,3,FALSE),C1350)","v":"PROPRIÉTAIRES-OCCUPANTS, À L’UNITÉ"},{"$f":"IFERROR(VLOOKUP(D1350,Translation!$A:$C,3,FALSE),D1350)","v":">= 680 < 700"},{"$f":"IFERROR(VLOOKUP(E1350,Translation!$A:$C,3,FALSE),E1350)","v":5.1367250001190419},{"$f":"IFERROR(VLOOKUP(F1350,Translation!$A:$C,3,FALSE),F1350)","v":"Prêts hypothécaires assurés au cours de la période selon le pointage de crédit à l’initiation (%)"},{"$f":"IFERROR(VLOOKUP(G1350,Translation!$A:$C,3,FALSE),G1350)","v":"5.1"},{"$f":"IFERROR(VLOOKUP(H1350,Translation!$A:$C,3,FALSE),H1350)","v":" >= 680 < 700"}]
[13,"T1 2019","PROPRIÉTAIRES-OCCUPANTS, À L’UNITÉ",">= 700 < 750",26.567069862853103,"Prêts hypothécaires assurés au cours de la période selon le pointage de crédit à l’initiation (%)","26.6"," >= 700 < 750",{"$f":"IFERROR(VLOOKUP(A1351,Translation!$A:$C,3,FALSE),A1351)","v":13},{"$f":"IFERROR(VLOOKUP(B1351,Translation!$A:$C,3,FALSE),B1351)","v":"T1 2019"},{"$f":"IFERROR(VLOOKUP(C1351,Translation!$A:$C,3,FALSE),C1351)","v":"PROPRIÉTAIRES-OCCUPANTS, À L’UNITÉ"},{"$f":"IFERROR(VLOOKUP(D1351,Translation!$A:$C,3,FALSE),D1351)","v":">= 700 < 750"},{"$f":"IFERROR(VLOOKUP(E1351,Translation!$A:$C,3,FALSE),E1351)","v":26.567069862853103},{"$f":"IFERROR(VLOOKUP(F1351,Translation!$A:$C,3,FALSE),F1351)","v":"Prêts hypothécaires assurés au cours de la période selon le pointage de crédit à l’initiation (%)"},{"$f":"IFERROR(VLOOKUP(G1351,Translation!$A:$C,3,FALSE),G1351)","v":"26.6"},{"$f":"IFERROR(VLOOKUP(H1351,Translation!$A:$C,3,FALSE),H1351)","v":" >= 700 < 750"}]
[13,"T1 2019","PROPRIÉTAIRES-OCCUPANTS, À L’UNITÉ",">= 750 < 780",26.768746809342403,"Prêts hypothécaires assurés au cours de la période selon le pointage de crédit à l’initiation (%)","26.8"," >= 750 < 780",{"$f":"IFERROR(VLOOKUP(A1352,Translation!$A:$C,3,FALSE),A1352)","v":13},{"$f":"IFERROR(VLOOKUP(B1352,Translation!$A:$C,3,FALSE),B1352)","v":"T1 2019"},{"$f":"IFERROR(VLOOKUP(C1352,Translation!$A:$C,3,FALSE),C1352)","v":"PROPRIÉTAIRES-OCCUPANTS, À L’UNITÉ"},{"$f":"IFERROR(VLOOKUP(D1352,Translation!$A:$C,3,FALSE),D1352)","v":">= 750 < 780"},{"$f":"IFERROR(VLOOKUP(E1352,Translation!$A:$C,3,FALSE),E1352)","v":26.768746809342403},{"$f":"IFERROR(VLOOKUP(F1352,Translation!$A:$C,3,FALSE),F1352)","v":"Prêts hypothécaires assurés au cours de la période selon le pointage de crédit à l’initiation (%)"},{"$f":"IFERROR(VLOOKUP(G1352,Translation!$A:$C,3,FALSE),G1352)","v":"26.8"},{"$f":"IFERROR(VLOOKUP(H1352,Translation!$A:$C,3,FALSE),H1352)","v":" >= 750 < 780"}]
[13,"T1 2019","PROPRIÉTAIRES-OCCUPANTS, À L’UNITÉ",">= 780",33.303657048896568,"Prêts hypothécaires assurés au cours de la période selon le pointage de crédit à l’initiation (%)","33.3"," >= 780",{"$f":"IFERROR(VLOOKUP(A1353,Translation!$A:$C,3,FALSE),A1353)","v":13},{"$f":"IFERROR(VLOOKUP(B1353,Translation!$A:$C,3,FALSE),B1353)","v":"T1 2019"},{"$f":"IFERROR(VLOOKUP(C1353,Translation!$A:$C,3,FALSE),C1353)","v":"PROPRIÉTAIRES-OCCUPANTS, À L’UNITÉ"},{"$f":"IFERROR(VLOOKUP(D1353,Translation!$A:$C,3,FALSE),D1353)","v":">= 780"},{"$f":"IFERROR(VLOOKUP(E1353,Translation!$A:$C,3,FALSE),E1353)","v":33.303657048896568},{"$f":"IFERROR(VLOOKUP(F1353,Translation!$A:$C,3,FALSE),F1353)","v":"Prêts hypothécaires assurés au cours de la période selon le pointage de crédit à l’initiation (%)"},{"$f":"IFERROR(VLOOKUP(G1353,Translation!$A:$C,3,FALSE),G1353)","v":"33.3"},{"$f":"IFERROR(VLOOKUP(H1353,Translation!$A:$C,3,FALSE),H1353)","v":" >= 780"}]
[13,"T1 2019","PROPRIÉTAIRES-OCCUPANTS, À L’UNITÉ","Pointage de crédit moyen à l'initiation ",754.54874794205728,"Prêts hypothécaires assurés au cours de la période selon le pointage de crédit à l’initiation (%)","754.5","Pointage de crédit moyen à l'initiation ",{"$f":"IFERROR(VLOOKUP(A1354,Translation!$A:$C,3,FALSE),A1354)","v":13},{"$f":"IFERROR(VLOOKUP(B1354,Translation!$A:$C,3,FALSE),B1354)","v":"T1 2019"},{"$f":"IFERROR(VLOOKUP(C1354,Translation!$A:$C,3,FALSE),C1354)","v":"PROPRIÉTAIRES-OCCUPANTS, À L’UNITÉ"},{"$f":"IFERROR(VLOOKUP(D1354,Translation!$A:$C,3,FALSE),D1354)","v":"Pointage de crédit moyen à l'initiation "},{"$f":"IFERROR(VLOOKUP(E1354,Translation!$A:$C,3,FALSE),E1354)","v":754.54874794205728},{"$f":"IFERROR(VLOOKUP(F1354,Translation!$A:$C,3,FALSE),F1354)","v":"Prêts hypothécaires assurés au cours de la période selon le pointage de crédit à l’initiation (%)"},{"$f":"IFERROR(VLOOKUP(G1354,Translation!$A:$C,3,FALSE),G1354)","v":"754.5"},{"$f":"IFERROR(VLOOKUP(H1354,Translation!$A:$C,3,FALSE),H1354)","v":"Pointage de crédit moyen à l'initiation "}]
[13,"T1 2019","PROPRIÉTAIRES-OCCUPANTS, À L’UNITÉ","Terre-Neuve-et-Labrador",750.21550673110971,"Prêts hypothécaires assurés au cours de la période selon le pointage de crédit à l’initiation (%)","750.2","Terre-Neuve-et-Labrador",{"$f":"IFERROR(VLOOKUP(A1355,Translation!$A:$C,3,FALSE),A1355)","v":13},{"$f":"IFERROR(VLOOKUP(B1355,Translation!$A:$C,3,FALSE),B1355)","v":"T1 2019"},{"$f":"IFERROR(VLOOKUP(C1355,Translation!$A:$C,3,FALSE),C1355)","v":"PROPRIÉTAIRES-OCCUPANTS, À L’UNITÉ"},{"$f":"IFERROR(VLOOKUP(D1355,Translation!$A:$C,3,FALSE),D1355)","v":"Terre-Neuve-et-Labrador"},{"$f":"IFERROR(VLOOKUP(E1355,Translation!$A:$C,3,FALSE),E1355)","v":750.21550673110971},{"$f":"IFERROR(VLOOKUP(F1355,Translation!$A:$C,3,FALSE),F1355)","v":"Prêts hypothécaires assurés au cours de la période selon le pointage de crédit à l’initiation (%)"},{"$f":"IFERROR(VLOOKUP(G1355,Translation!$A:$C,3,FALSE),G1355)","v":"750.2"},{"$f":"IFERROR(VLOOKUP(H1355,Translation!$A:$C,3,FALSE),H1355)","v":"Terre-Neuve-et-Labrador"}]
[13,"T1 2019","PROPRIÉTAIRES-OCCUPANTS, À L’UNITÉ","Île-du-Prince-Édouard",761.54302377468196,"Prêts hypothécaires assurés au cours de la période selon le pointage de crédit à l’initiation (%)","761.5","Île-du-Prince-Édouard",{"$f":"IFERROR(VLOOKUP(A1356,Translation!$A:$C,3,FALSE),A1356)","v":13},{"$f":"IFERROR(VLOOKUP(B1356,Translation!$A:$C,3,FALSE),B1356)","v":"T1 2019"},{"$f":"IFERROR(VLOOKUP(C1356,Translation!$A:$C,3,FALSE),C1356)","v":"PROPRIÉTAIRES-OCCUPANTS, À L’UNITÉ"},{"$f":"IFERROR(VLOOKUP(D1356,Translation!$A:$C,3,FALSE),D1356)","v":"Île-du-Prince-Édouard"},{"$f":"IFERROR(VLOOKUP(E1356,Translation!$A:$C,3,FALSE),E1356)","v":761.54302377468196},{"$f":"IFERROR(VLOOKUP(F1356,Translation!$A:$C,3,FALSE),F1356)","v":"Prêts hypothécaires assurés au cours de la période selon le pointage de crédit à l’initiation (%)"},{"$f":"IFERROR(VLOOKUP(G1356,Translation!$A:$C,3,FALSE),G1356)","v":"761.5"},{"$f":"IFERROR(VLOOKUP(H1356,Translation!$A:$C,3,FALSE),H1356)","v":"Île-du-Prince-Édouard"}]
[13,"T1 2019","PROPRIÉTAIRES-OCCUPANTS, À L’UNITÉ","Nouvelle-Écosse",740.35321113506416,"Prêts hypothécaires assurés au cours de la période selon le pointage de crédit à l’initiation (%)","740.4","Nouvelle-Écosse",{"$f":"IFERROR(VLOOKUP(A1357,Translation!$A:$C,3,FALSE),A1357)","v":13},{"$f":"IFERROR(VLOOKUP(B1357,Translation!$A:$C,3,FALSE),B1357)","v":"T1 2019"},{"$f":"IFERROR(VLOOKUP(C1357,Translation!$A:$C,3,FALSE),C1357)","v":"PROPRIÉTAIRES-OCCUPANTS, À L’UNITÉ"},{"$f":"IFERROR(VLOOKUP(D1357,Translation!$A:$C,3,FALSE),D1357)","v":"Nouvelle-Écosse"},{"$f":"IFERROR(VLOOKUP(E1357,Translation!$A:$C,3,FALSE),E1357)","v":740.35321113506416},{"$f":"IFERROR(VLOOKUP(F1357,Translation!$A:$C,3,FALSE),F1357)","v":"Prêts hypothécaires assurés au cours de la période selon le pointage de crédit à l’initiation (%)"},{"$f":"IFERROR(VLOOKUP(G1357,Translation!$A:$C,3,FALSE),G1357)","v":"740.4"},{"$f":"IFERROR(VLOOKUP(H1357,Translation!$A:$C,3,FALSE),H1357)","v":"Nouvelle-Écosse"}]
[13,"T1 2019","PROPRIÉTAIRES-OCCUPANTS, À L’UNITÉ","Nouveau-Brunswick",737.57539188782687,"Prêts hypothécaires assurés au cours de la période selon le pointage de crédit à l’initiation (%)","737.6","Nouveau-Brunswick",{"$f":"IFERROR(VLOOKUP(A1358,Translation!$A:$C,3,FALSE),A1358)","v":13},{"$f":"IFERROR(VLOOKUP(B1358,Translation!$A:$C,3,FALSE),B1358)","v":"T1 2019"},{"$f":"IFERROR(VLOOKUP(C1358,Translation!$A:$C,3,FALSE),C1358)","v":"PROPRIÉTAIRES-OCCUPANTS, À L’UNITÉ"},{"$f":"IFERROR(VLOOKUP(D1358,Translation!$A:$C,3,FALSE),D1358)","v":"Nouveau-Brunswick"},{"$f":"IFERROR(VLOOKUP(E1358,Translation!$A:$C,3,FALSE),E1358)","v":737.57539188782687},{"$f":"IFERROR(VLOOKUP(F1358,Translation!$A:$C,3,FALSE),F1358)","v":"Prêts hypothécaires assurés au cours de la période selon le pointage de crédit à l’initiation (%)"},{"$f":"IFERROR(VLOOKUP(G1358,Translation!$A:$C,3,FALSE),G1358)","v":"737.6"},{"$f":"IFERROR(VLOOKUP(H1358,Translation!$A:$C,3,FALSE),H1358)","v":"Nouveau-Brunswick"}]
[13,"T1 2019","PROPRIÉTAIRES-OCCUPANTS, À L’UNITÉ","Québec",755.96288566957946,"Prêts hypothécaires assurés au cours de la période selon le pointage de crédit à l’initiation (%)","756.0","Québec",{"$f":"IFERROR(VLOOKUP(A1359,Translation!$A:$C,3,FALSE),A1359)","v":13},{"$f":"IFERROR(VLOOKUP(B1359,Translation!$A:$C,3,FALSE),B1359)","v":"T1 2019"},{"$f":"IFERROR(VLOOKUP(C1359,Translation!$A:$C,3,FALSE),C1359)","v":"PROPRIÉTAIRES-OCCUPANTS, À L’UNITÉ"},{"$f":"IFERROR(VLOOKUP(D1359,Translation!$A:$C,3,FALSE),D1359)","v":"Québec"},{"$f":"IFERROR(VLOOKUP(E1359,Translation!$A:$C,3,FALSE),E1359)","v":755.96288566957946},{"$f":"IFERROR(VLOOKUP(F1359,Translation!$A:$C,3,FALSE),F1359)","v":"Prêts hypothécaires assurés au cours de la période selon le pointage de crédit à l’initiation (%)"},{"$f":"IFERROR(VLOOKUP(G1359,Translation!$A:$C,3,FALSE),G1359)","v":"756.0"},{"$f":"IFERROR(VLOOKUP(H1359,Translation!$A:$C,3,FALSE),H1359)","v":"Québec"}]
[13,"T1 2019","PROPRIÉTAIRES-OCCUPANTS, À L’UNITÉ","Ontario",758.68180737175237,"Prêts hypothécaires assurés au cours de la période selon le pointage de crédit à l’initiation (%)","758.7","Ontario",{"$f":"IFERROR(VLOOKUP(A1360,Translation!$A:$C,3,FALSE),A1360)","v":13},{"$f":"IFERROR(VLOOKUP(B1360,Translation!$A:$C,3,FALSE),B1360)","v":"T1 2019"},{"$f":"IFERROR(VLOOKUP(C1360,Translation!$A:$C,3,FALSE),C1360)","v":"PROPRIÉTAIRES-OCCUPANTS, À L’UNITÉ"},{"$f":"IFERROR(VLOOKUP(D1360,Translation!$A:$C,3,FALSE),D1360)","v":"Ontario"},{"$f":"IFERROR(VLOOKUP(E1360,Translation!$A:$C,3,FALSE),E1360)","v":758.68180737175237},{"$f":"IFERROR(VLOOKUP(F1360,Translation!$A:$C,3,FALSE),F1360)","v":"Prêts hypothécaires assurés au cours de la période selon le pointage de crédit à l’initiation (%)"},{"$f":"IFERROR(VLOOKUP(G1360,Translation!$A:$C,3,FALSE),G1360)","v":"758.7"},{"$f":"IFERROR(VLOOKUP(H1360,Translation!$A:$C,3,FALSE),H1360)","v":"Ontario"}]
[13,"T1 2019","PROPRIÉTAIRES-OCCUPANTS, À L’UNITÉ","Manitoba",752.72506517544389,"Prêts hypothécaires assurés au cours de la période selon le pointage de crédit à l’initiation (%)","752.7","Manitoba",{"$f":"IFERROR(VLOOKUP(A1361,Translation!$A:$C,3,FALSE),A1361)","v":13},{"$f":"IFERROR(VLOOKUP(B1361,Translation!$A:$C,3,FALSE),B1361)","v":"T1 2019"},{"$f":"IFERROR(VLOOKUP(C1361,Translation!$A:$C,3,FALSE),C1361)","v":"PROPRIÉTAIRES-OCCUPANTS, À L’UNITÉ"},{"$f":"IFERROR(VLOOKUP(D1361,Translation!$A:$C,3,FALSE),D1361)","v":"Manitoba"},{"$f":"IFERROR(VLOOKUP(E1361,Translation!$A:$C,3,FALSE),E1361)","v":752.72506517544389},{"$f":"IFERROR(VLOOKUP(F1361,Translation!$A:$C,3,FALSE),F1361)","v":"Prêts hypothécaires assurés au cours de la période selon le pointage de crédit à l’initiation (%)"},{"$f":"IFERROR(VLOOKUP(G1361,Translation!$A:$C,3,FALSE),G1361)","v":"752.7"},{"$f":"IFERROR(VLOOKUP(H1361,Translation!$A:$C,3,FALSE),H1361)","v":"Manitoba"}]
[13,"T1 2019","PROPRIÉTAIRES-OCCUPANTS, À L’UNITÉ","Saskatchewan",753.05274914141296,"Prêts hypothécaires assurés au cours de la période selon le pointage de crédit à l’initiation (%)","753.1","Saskatchewan",{"$f":"IFERROR(VLOOKUP(A1362,Translation!$A:$C,3,FALSE),A1362)","v":13},{"$f":"IFERROR(VLOOKUP(B1362,Translation!$A:$C,3,FALSE),B1362)","v":"T1 2019"},{"$f":"IFERROR(VLOOKUP(C1362,Translation!$A:$C,3,FALSE),C1362)","v":"PROPRIÉTAIRES-OCCUPANTS, À L’UNITÉ"},{"$f":"IFERROR(VLOOKUP(D1362,Translation!$A:$C,3,FALSE),D1362)","v":"Saskatchewan"},{"$f":"IFERROR(VLOOKUP(E1362,Translation!$A:$C,3,FALSE),E1362)","v":753.05274914141296},{"$f":"IFERROR(VLOOKUP(F1362,Translation!$A:$C,3,FALSE),F1362)","v":"Prêts hypothécaires assurés au cours de la période selon le pointage de crédit à l’initiation (%)"},{"$f":"IFERROR(VLOOKUP(G1362,Translation!$A:$C,3,FALSE),G1362)","v":"753.1"},{"$f":"IFERROR(VLOOKUP(H1362,Translation!$A:$C,3,FALSE),H1362)","v":"Saskatchewan"}]
[13,"T1 2019","PROPRIÉTAIRES-OCCUPANTS, À L’UNITÉ","Alberta",747.10773154062019,"Prêts hypothécaires assurés au cours de la période selon le pointage de crédit à l’initiation (%)","747.1","Alberta",{"$f":"IFERROR(VLOOKUP(A1363,Translation!$A:$C,3,FALSE),A1363)","v":13},{"$f":"IFERROR(VLOOKUP(B1363,Translation!$A:$C,3,FALSE),B1363)","v":"T1 2019"},{"$f":"IFERROR(VLOOKUP(C1363,Translation!$A:$C,3,FALSE),C1363)","v":"PROPRIÉTAIRES-OCCUPANTS, À L’UNITÉ"},{"$f":"IFERROR(VLOOKUP(D1363,Translation!$A:$C,3,FALSE),D1363)","v":"Alberta"},{"$f":"IFERROR(VLOOKUP(E1363,Translation!$A:$C,3,FALSE),E1363)","v":747.10773154062019},{"$f":"IFERROR(VLOOKUP(F1363,Translation!$A:$C,3,FALSE),F1363)","v":"Prêts hypothécaires assurés au cours de la période selon le pointage de crédit à l’initiation (%)"},{"$f":"IFERROR(VLOOKUP(G1363,Translation!$A:$C,3,FALSE),G1363)","v":"747.1"},{"$f":"IFERROR(VLOOKUP(H1363,Translation!$A:$C,3,FALSE),H1363)","v":"Alberta"}]
[13,"T1 2019","PROPRIÉTAIRES-OCCUPANTS, À L’UNITÉ","Colombie-Britannique",758.38641620528517,"Prêts hypothécaires assurés au cours de la période selon le pointage de crédit à l’initiation (%)","758.4","Colombie-Britannique",{"$f":"IFERROR(VLOOKUP(A1364,Translation!$A:$C,3,FALSE),A1364)","v":13},{"$f":"IFERROR(VLOOKUP(B1364,Translation!$A:$C,3,FALSE),B1364)","v":"T1 2019"},{"$f":"IFERROR(VLOOKUP(C1364,Translation!$A:$C,3,FALSE),C1364)","v":"PROPRIÉTAIRES-OCCUPANTS, À L’UNITÉ"},{"$f":"IFERROR(VLOOKUP(D1364,Translation!$A:$C,3,FALSE),D1364)","v":"Colombie-Britannique"},{"$f":"IFERROR(VLOOKUP(E1364,Translation!$A:$C,3,FALSE),E1364)","v":758.38641620528517},{"$f":"IFERROR(VLOOKUP(F1364,Translation!$A:$C,3,FALSE),F1364)","v":"Prêts hypothécaires assurés au cours de la période selon le pointage de crédit à l’initiation (%)"},{"$f":"IFERROR(VLOOKUP(G1364,Translation!$A:$C,3,FALSE),G1364)","v":"758.4"},{"$f":"IFERROR(VLOOKUP(H1364,Translation!$A:$C,3,FALSE),H1364)","v":"Colombie-Britannique"}]
[13,"T1 2019","PROPRIÉTAIRES-OCCUPANTS, À L’UNITÉ","Territoires",748.17265756468294,"Prêts hypothécaires assurés au cours de la période selon le pointage de crédit à l’initiation (%)","748.2","Territoires",{"$f":"IFERROR(VLOOKUP(A1365,Translation!$A:$C,3,FALSE),A1365)","v":13},{"$f":"IFERROR(VLOOKUP(B1365,Translation!$A:$C,3,FALSE),B1365)","v":"T1 2019"},{"$f":"IFERROR(VLOOKUP(C1365,Translation!$A:$C,3,FALSE),C1365)","v":"PROPRIÉTAIRES-OCCUPANTS, À L’UNITÉ"},{"$f":"IFERROR(VLOOKUP(D1365,Translation!$A:$C,3,FALSE),D1365)","v":"Territoires"},{"$f":"IFERROR(VLOOKUP(E1365,Translation!$A:$C,3,FALSE),E1365)","v":748.17265756468294},{"$f":"IFERROR(VLOOKUP(F1365,Translation!$A:$C,3,FALSE),F1365)","v":"Prêts hypothécaires assurés au cours de la période selon le pointage de crédit à l’initiation (%)"},{"$f":"IFERROR(VLOOKUP(G1365,Translation!$A:$C,3,FALSE),G1365)","v":"748.2"},{"$f":"IFERROR(VLOOKUP(H1365,Translation!$A:$C,3,FALSE),H1365)","v":"Territoires"}]
[13,"T1 2019","ASSURANCE DE PORTEFEUILLE","Aucun pointage de crédit",1.191686364917658E-2,"Prêts hypothécaires assurés au cours de la période selon le pointage de crédit à l’initiation (%)","0.0","Aucun pointage de crédit",{"$f":"IFERROR(VLOOKUP(A1366,Translation!$A:$C,3,FALSE),A1366)","v":13},{"$f":"IFERROR(VLOOKUP(B1366,Translation!$A:$C,3,FALSE),B1366)","v":"T1 2019"},{"$f":"IFERROR(VLOOKUP(C1366,Translation!$A:$C,3,FALSE),C1366)","v":"ASSURANCE DE PORTEFEUILLE"},{"$f":"IFERROR(VLOOKUP(D1366,Translation!$A:$C,3,FALSE),D1366)","v":"Aucun pointage de crédit"},{"$f":"IFERROR(VLOOKUP(E1366,Translation!$A:$C,3,FALSE),E1366)","v":1.191686364917658E-2},{"$f":"IFERROR(VLOOKUP(F1366,Translation!$A:$C,3,FALSE),F1366)","v":"Prêts hypothécaires assurés au cours de la période selon le pointage de crédit à l’initiation (%)"},{"$f":"IFERROR(VLOOKUP(G1366,Translation!$A:$C,3,FALSE),G1366)","v":"0.0"},{"$f":"IFERROR(VLOOKUP(H1366,Translation!$A:$C,3,FALSE),H1366)","v":"Aucun pointage de crédit"}]
[13,"T1 2019","ASSURANCE DE PORTEFEUILLE","< 600",0.55269456548326412,"Prêts hypothécaires assurés au cours de la période selon le pointage de crédit à l’initiation (%)","0.6"," < 600",{"$f":"IFERROR(VLOOKUP(A1367,Translation!$A:$C,3,FALSE),A1367)","v":13},{"$f":"IFERROR(VLOOKUP(B1367,Translation!$A:$C,3,FALSE),B1367)","v":"T1 2019"},{"$f":"IFERROR(VLOOKUP(C1367,Translation!$A:$C,3,FALSE),C1367)","v":"ASSURANCE DE PORTEFEUILLE"},{"$f":"IFERROR(VLOOKUP(D1367,Translation!$A:$C,3,FALSE),D1367)","v":"< 600"},{"$f":"IFERROR(VLOOKUP(E1367,Translation!$A:$C,3,FALSE),E1367)","v":0.55269456548326412},{"$f":"IFERROR(VLOOKUP(F1367,Translation!$A:$C,3,FALSE),F1367)","v":"Prêts hypothécaires assurés au cours de la période selon le pointage de crédit à l’initiation (%)"},{"$f":"IFERROR(VLOOKUP(G1367,Translation!$A:$C,3,FALSE),G1367)","v":"0.6"},{"$f":"IFERROR(VLOOKUP(H1367,Translation!$A:$C,3,FALSE),H1367)","v":" < 600"}]
[13,"T1 2019","ASSURANCE DE PORTEFEUILLE",">= 600 < 680",5.9331733417711119,"Prêts hypothécaires assurés au cours de la période selon le pointage de crédit à l’initiation (%)","5.9"," >= 600 < 680",{"$f":"IFERROR(VLOOKUP(A1368,Translation!$A:$C,3,FALSE),A1368)","v":13},{"$f":"IFERROR(VLOOKUP(B1368,Translation!$A:$C,3,FALSE),B1368)","v":"T1 2019"},{"$f":"IFERROR(VLOOKUP(C1368,Translation!$A:$C,3,FALSE),C1368)","v":"ASSURANCE DE PORTEFEUILLE"},{"$f":"IFERROR(VLOOKUP(D1368,Translation!$A:$C,3,FALSE),D1368)","v":">= 600 < 680"},{"$f":"IFERROR(VLOOKUP(E1368,Translation!$A:$C,3,FALSE),E1368)","v":5.9331733417711119},{"$f":"IFERROR(VLOOKUP(F1368,Translation!$A:$C,3,FALSE),F1368)","v":"Prêts hypothécaires assurés au cours de la période selon le pointage de crédit à l’initiation (%)"},{"$f":"IFERROR(VLOOKUP(G1368,Translation!$A:$C,3,FALSE),G1368)","v":"5.9"},{"$f":"IFERROR(VLOOKUP(H1368,Translation!$A:$C,3,FALSE),H1368)","v":" >= 600 < 680"}]
[13,"T1 2019","ASSURANCE DE PORTEFEUILLE",">= 680 < 700",3.2526825349100328,"Prêts hypothécaires assurés au cours de la période selon le pointage de crédit à l’initiation (%)","3.3"," >= 680 < 700",{"$f":"IFERROR(VLOOKUP(A1369,Translation!$A:$C,3,FALSE),A1369)","v":13},{"$f":"IFERROR(VLOOKUP(B1369,Translation!$A:$C,3,FALSE),B1369)","v":"T1 2019"},{"$f":"IFERROR(VLOOKUP(C1369,Translation!$A:$C,3,FALSE),C1369)","v":"ASSURANCE DE PORTEFEUILLE"},{"$f":"IFERROR(VLOOKUP(D1369,Translation!$A:$C,3,FALSE),D1369)","v":">= 680 < 700"},{"$f":"IFERROR(VLOOKUP(E1369,Translation!$A:$C,3,FALSE),E1369)","v":3.2526825349100328},{"$f":"IFERROR(VLOOKUP(F1369,Translation!$A:$C,3,FALSE),F1369)","v":"Prêts hypothécaires assurés au cours de la période selon le pointage de crédit à l’initiation (%)"},{"$f":"IFERROR(VLOOKUP(G1369,Translation!$A:$C,3,FALSE),G1369)","v":"3.3"},{"$f":"IFERROR(VLOOKUP(H1369,Translation!$A:$C,3,FALSE),H1369)","v":" >= 680 < 700"}]
[13,"T1 2019","ASSURANCE DE PORTEFEUILLE",">= 700 < 750",18.239089401683596,"Prêts hypothécaires assurés au cours de la période selon le pointage de crédit à l’initiation (%)","18.2"," >= 700 < 750",{"$f":"IFERROR(VLOOKUP(A1370,Translation!$A:$C,3,FALSE),A1370)","v":13},{"$f":"IFERROR(VLOOKUP(B1370,Translation!$A:$C,3,FALSE),B1370)","v":"T1 2019"},{"$f":"IFERROR(VLOOKUP(C1370,Translation!$A:$C,3,FALSE),C1370)","v":"ASSURANCE DE PORTEFEUILLE"},{"$f":"IFERROR(VLOOKUP(D1370,Translation!$A:$C,3,FALSE),D1370)","v":">= 700 < 750"},{"$f":"IFERROR(VLOOKUP(E1370,Translation!$A:$C,3,FALSE),E1370)","v":18.239089401683596},{"$f":"IFERROR(VLOOKUP(F1370,Translation!$A:$C,3,FALSE),F1370)","v":"Prêts hypothécaires assurés au cours de la période selon le pointage de crédit à l’initiation (%)"},{"$f":"IFERROR(VLOOKUP(G1370,Translation!$A:$C,3,FALSE),G1370)","v":"18.2"},{"$f":"IFERROR(VLOOKUP(H1370,Translation!$A:$C,3,FALSE),H1370)","v":" >= 700 < 750"}]
[13,"T1 2019","ASSURANCE DE PORTEFEUILLE",">= 750 < 780",25.742982963301358,"Prêts hypothécaires assurés au cours de la période selon le pointage de crédit à l’initiation (%)","25.7"," >= 750 < 780",{"$f":"IFERROR(VLOOKUP(A1371,Translation!$A:$C,3,FALSE),A1371)","v":13},{"$f":"IFERROR(VLOOKUP(B1371,Translation!$A:$C,3,FALSE),B1371)","v":"T1 2019"},{"$f":"IFERROR(VLOOKUP(C1371,Translation!$A:$C,3,FALSE),C1371)","v":"ASSURANCE DE PORTEFEUILLE"},{"$f":"IFERROR(VLOOKUP(D1371,Translation!$A:$C,3,FALSE),D1371)","v":">= 750 < 780"},{"$f":"IFERROR(VLOOKUP(E1371,Translation!$A:$C,3,FALSE),E1371)","v":25.742982963301358},{"$f":"IFERROR(VLOOKUP(F1371,Translation!$A:$C,3,FALSE),F1371)","v":"Prêts hypothécaires assurés au cours de la période selon le pointage de crédit à l’initiation (%)"},{"$f":"IFERROR(VLOOKUP(G1371,Translation!$A:$C,3,FALSE),G1371)","v":"25.7"},{"$f":"IFERROR(VLOOKUP(H1371,Translation!$A:$C,3,FALSE),H1371)","v":" >= 750 < 780"}]
[13,"T1 2019","ASSURANCE DE PORTEFEUILLE",">= 780",46.267460329201469,"Prêts hypothécaires assurés au cours de la période selon le pointage de crédit à l’initiation (%)","46.3"," >= 780",{"$f":"IFERROR(VLOOKUP(A1372,Translation!$A:$C,3,FALSE),A1372)","v":13},{"$f":"IFERROR(VLOOKUP(B1372,Translation!$A:$C,3,FALSE),B1372)","v":"T1 2019"},{"$f":"IFERROR(VLOOKUP(C1372,Translation!$A:$C,3,FALSE),C1372)","v":"ASSURANCE DE PORTEFEUILLE"},{"$f":"IFERROR(VLOOKUP(D1372,Translation!$A:$C,3,FALSE),D1372)","v":">= 780"},{"$f":"IFERROR(VLOOKUP(E1372,Translation!$A:$C,3,FALSE),E1372)","v":46.267460329201469},{"$f":"IFERROR(VLOOKUP(F1372,Translation!$A:$C,3,FALSE),F1372)","v":"Prêts hypothécaires assurés au cours de la période selon le pointage de crédit à l’initiation (%)"},{"$f":"IFERROR(VLOOKUP(G1372,Translation!$A:$C,3,FALSE),G1372)","v":"46.3"},{"$f":"IFERROR(VLOOKUP(H1372,Translation!$A:$C,3,FALSE),H1372)","v":" >= 780"}]
[13,"T1 2019","ASSURANCE DE PORTEFEUILLE","Pointage de crédit moyen à l'initiation ",762.2032910710642,"Prêts hypothécaires assurés au cours de la période selon le pointage de crédit à l’initiation (%)","762.2","Pointage de crédit moyen à l'initiation ",{"$f":"IFERROR(VLOOKUP(A1373,Translation!$A:$C,3,FALSE),A1373)","v":13},{"$f":"IFERROR(VLOOKUP(B1373,Translation!$A:$C,3,FALSE),B1373)","v":"T1 2019"},{"$f":"IFERROR(VLOOKUP(C1373,Translation!$A:$C,3,FALSE),C1373)","v":"ASSURANCE DE PORTEFEUILLE"},{"$f":"IFERROR(VLOOKUP(D1373,Translation!$A:$C,3,FALSE),D1373)","v":"Pointage de crédit moyen à l'initiation "},{"$f":"IFERROR(VLOOKUP(E1373,Translation!$A:$C,3,FALSE),E1373)","v":762.2032910710642},{"$f":"IFERROR(VLOOKUP(F1373,Translation!$A:$C,3,FALSE),F1373)","v":"Prêts hypothécaires assurés au cours de la période selon le pointage de crédit à l’initiation (%)"},{"$f":"IFERROR(VLOOKUP(G1373,Translation!$A:$C,3,FALSE),G1373)","v":"762.2"},{"$f":"IFERROR(VLOOKUP(H1373,Translation!$A:$C,3,FALSE),H1373)","v":"Pointage de crédit moyen à l'initiation "}]
[13,"T1 2019","ASSURANCE DE PORTEFEUILLE","Terre-Neuve-et-Labrador",761.91972800376107,"Prêts hypothécaires assurés au cours de la période selon le pointage de crédit à l’initiation (%)","761.9","Terre-Neuve-et-Labrador",{"$f":"IFERROR(VLOOKUP(A1374,Translation!$A:$C,3,FALSE),A1374)","v":13},{"$f":"IFERROR(VLOOKUP(B1374,Translation!$A:$C,3,FALSE),B1374)","v":"T1 2019"},{"$f":"IFERROR(VLOOKUP(C1374,Translation!$A:$C,3,FALSE),C1374)","v":"ASSURANCE DE PORTEFEUILLE"},{"$f":"IFERROR(VLOOKUP(D1374,Translation!$A:$C,3,FALSE),D1374)","v":"Terre-Neuve-et-Labrador"},{"$f":"IFERROR(VLOOKUP(E1374,Translation!$A:$C,3,FALSE),E1374)","v":761.91972800376107},{"$f":"IFERROR(VLOOKUP(F1374,Translation!$A:$C,3,FALSE),F1374)","v":"Prêts hypothécaires assurés au cours de la période selon le pointage de crédit à l’initiation (%)"},{"$f":"IFERROR(VLOOKUP(G1374,Translation!$A:$C,3,FALSE),G1374)","v":"761.9"},{"$f":"IFERROR(VLOOKUP(H1374,Translation!$A:$C,3,FALSE),H1374)","v":"Terre-Neuve-et-Labrador"}]
[13,"T1 2019","ASSURANCE DE PORTEFEUILLE","Île-du-Prince-Édouard",740.81505628054595,"Prêts hypothécaires assurés au cours de la période selon le pointage de crédit à l’initiation (%)","740.8","Île-du-Prince-Édouard",{"$f":"IFERROR(VLOOKUP(A1375,Translation!$A:$C,3,FALSE),A1375)","v":13},{"$f":"IFERROR(VLOOKUP(B1375,Translation!$A:$C,3,FALSE),B1375)","v":"T1 2019"},{"$f":"IFERROR(VLOOKUP(C1375,Translation!$A:$C,3,FALSE),C1375)","v":"ASSURANCE DE PORTEFEUILLE"},{"$f":"IFERROR(VLOOKUP(D1375,Translation!$A:$C,3,FALSE),D1375)","v":"Île-du-Prince-Édouard"},{"$f":"IFERROR(VLOOKUP(E1375,Translation!$A:$C,3,FALSE),E1375)","v":740.81505628054595},{"$f":"IFERROR(VLOOKUP(F1375,Translation!$A:$C,3,FALSE),F1375)","v":"Prêts hypothécaires assurés au cours de la période selon le pointage de crédit à l’initiation (%)"},{"$f":"IFERROR(VLOOKUP(G1375,Translation!$A:$C,3,FALSE),G1375)","v":"740.8"},{"$f":"IFERROR(VLOOKUP(H1375,Translation!$A:$C,3,FALSE),H1375)","v":"Île-du-Prince-Édouard"}]
[13,"T1 2019","ASSURANCE DE PORTEFEUILLE","Nouvelle-Écosse",764.82666042953986,"Prêts hypothécaires assurés au cours de la période selon le pointage de crédit à l’initiation (%)","764.8","Nouvelle-Écosse",{"$f":"IFERROR(VLOOKUP(A1376,Translation!$A:$C,3,FALSE),A1376)","v":13},{"$f":"IFERROR(VLOOKUP(B1376,Translation!$A:$C,3,FALSE),B1376)","v":"T1 2019"},{"$f":"IFERROR(VLOOKUP(C1376,Translation!$A:$C,3,FALSE),C1376)","v":"ASSURANCE DE PORTEFEUILLE"},{"$f":"IFERROR(VLOOKUP(D1376,Translation!$A:$C,3,FALSE),D1376)","v":"Nouvelle-Écosse"},{"$f":"IFERROR(VLOOKUP(E1376,Translation!$A:$C,3,FALSE),E1376)","v":764.82666042953986},{"$f":"IFERROR(VLOOKUP(F1376,Translation!$A:$C,3,FALSE),F1376)","v":"Prêts hypothécaires assurés au cours de la période selon le pointage de crédit à l’initiation (%)"},{"$f":"IFERROR(VLOOKUP(G1376,Translation!$A:$C,3,FALSE),G1376)","v":"764.8"},{"$f":"IFERROR(VLOOKUP(H1376,Translation!$A:$C,3,FALSE),H1376)","v":"Nouvelle-Écosse"}]
[13,"T1 2019","ASSURANCE DE PORTEFEUILLE","Nouveau-Brunswick",734.89002373127505,"Prêts hypothécaires assurés au cours de la période selon le pointage de crédit à l’initiation (%)","734.9","Nouveau-Brunswick",{"$f":"IFERROR(VLOOKUP(A1377,Translation!$A:$C,3,FALSE),A1377)","v":13},{"$f":"IFERROR(VLOOKUP(B1377,Translation!$A:$C,3,FALSE),B1377)","v":"T1 2019"},{"$f":"IFERROR(VLOOKUP(C1377,Translation!$A:$C,3,FALSE),C1377)","v":"ASSURANCE DE PORTEFEUILLE"},{"$f":"IFERROR(VLOOKUP(D1377,Translation!$A:$C,3,FALSE),D1377)","v":"Nouveau-Brunswick"},{"$f":"IFERROR(VLOOKUP(E1377,Translation!$A:$C,3,FALSE),E1377)","v":734.89002373127505},{"$f":"IFERROR(VLOOKUP(F1377,Translation!$A:$C,3,FALSE),F1377)","v":"Prêts hypothécaires assurés au cours de la période selon le pointage de crédit à l’initiation (%)"},{"$f":"IFERROR(VLOOKUP(G1377,Translation!$A:$C,3,FALSE),G1377)","v":"734.9"},{"$f":"IFERROR(VLOOKUP(H1377,Translation!$A:$C,3,FALSE),H1377)","v":"Nouveau-Brunswick"}]
[13,"T1 2019","ASSURANCE DE PORTEFEUILLE","Québec",767.13200750319436,"Prêts hypothécaires assurés au cours de la période selon le pointage de crédit à l’initiation (%)","767.1","Québec",{"$f":"IFERROR(VLOOKUP(A1378,Translation!$A:$C,3,FALSE),A1378)","v":13},{"$f":"IFERROR(VLOOKUP(B1378,Translation!$A:$C,3,FALSE),B1378)","v":"T1 2019"},{"$f":"IFERROR(VLOOKUP(C1378,Translation!$A:$C,3,FALSE),C1378)","v":"ASSURANCE DE PORTEFEUILLE"},{"$f":"IFERROR(VLOOKUP(D1378,Translation!$A:$C,3,FALSE),D1378)","v":"Québec"},{"$f":"IFERROR(VLOOKUP(E1378,Translation!$A:$C,3,FALSE),E1378)","v":767.13200750319436},{"$f":"IFERROR(VLOOKUP(F1378,Translation!$A:$C,3,FALSE),F1378)","v":"Prêts hypothécaires assurés au cours de la période selon le pointage de crédit à l’initiation (%)"},{"$f":"IFERROR(VLOOKUP(G1378,Translation!$A:$C,3,FALSE),G1378)","v":"767.1"},{"$f":"IFERROR(VLOOKUP(H1378,Translation!$A:$C,3,FALSE),H1378)","v":"Québec"}]
[13,"T1 2019","ASSURANCE DE PORTEFEUILLE","Ontario",758.3108326970214,"Prêts hypothécaires assurés au cours de la période selon le pointage de crédit à l’initiation (%)","758.3","Ontario",{"$f":"IFERROR(VLOOKUP(A1379,Translation!$A:$C,3,FALSE),A1379)","v":13},{"$f":"IFERROR(VLOOKUP(B1379,Translation!$A:$C,3,FALSE),B1379)","v":"T1 2019"},{"$f":"IFERROR(VLOOKUP(C1379,Translation!$A:$C,3,FALSE),C1379)","v":"ASSURANCE DE PORTEFEUILLE"},{"$f":"IFERROR(VLOOKUP(D1379,Translation!$A:$C,3,FALSE),D1379)","v":"Ontario"},{"$f":"IFERROR(VLOOKUP(E1379,Translation!$A:$C,3,FALSE),E1379)","v":758.3108326970214},{"$f":"IFERROR(VLOOKUP(F1379,Translation!$A:$C,3,FALSE),F1379)","v":"Prêts hypothécaires assurés au cours de la période selon le pointage de crédit à l’initiation (%)"},{"$f":"IFERROR(VLOOKUP(G1379,Translation!$A:$C,3,FALSE),G1379)","v":"758.3"},{"$f":"IFERROR(VLOOKUP(H1379,Translation!$A:$C,3,FALSE),H1379)","v":"Ontario"}]
[13,"T1 2019","ASSURANCE DE PORTEFEUILLE","Manitoba",762.04230227427445,"Prêts hypothécaires assurés au cours de la période selon le pointage de crédit à l’initiation (%)","762.0","Manitoba",{"$f":"IFERROR(VLOOKUP(A1380,Translation!$A:$C,3,FALSE),A1380)","v":13},{"$f":"IFERROR(VLOOKUP(B1380,Translation!$A:$C,3,FALSE),B1380)","v":"T1 2019"},{"$f":"IFERROR(VLOOKUP(C1380,Translation!$A:$C,3,FALSE),C1380)","v":"ASSURANCE DE PORTEFEUILLE"},{"$f":"IFERROR(VLOOKUP(D1380,Translation!$A:$C,3,FALSE),D1380)","v":"Manitoba"},{"$f":"IFERROR(VLOOKUP(E1380,Translation!$A:$C,3,FALSE),E1380)","v":762.04230227427445},{"$f":"IFERROR(VLOOKUP(F1380,Translation!$A:$C,3,FALSE),F1380)","v":"Prêts hypothécaires assurés au cours de la période selon le pointage de crédit à l’initiation (%)"},{"$f":"IFERROR(VLOOKUP(G1380,Translation!$A:$C,3,FALSE),G1380)","v":"762.0"},{"$f":"IFERROR(VLOOKUP(H1380,Translation!$A:$C,3,FALSE),H1380)","v":"Manitoba"}]
[13,"T1 2019","ASSURANCE DE PORTEFEUILLE","Saskatchewan",765.20805801466236,"Prêts hypothécaires assurés au cours de la période selon le pointage de crédit à l’initiation (%)","765.2","Saskatchewan",{"$f":"IFERROR(VLOOKUP(A1381,Translation!$A:$C,3,FALSE),A1381)","v":13},{"$f":"IFERROR(VLOOKUP(B1381,Translation!$A:$C,3,FALSE),B1381)","v":"T1 2019"},{"$f":"IFERROR(VLOOKUP(C1381,Translation!$A:$C,3,FALSE),C1381)","v":"ASSURANCE DE PORTEFEUILLE"},{"$f":"IFERROR(VLOOKUP(D1381,Translation!$A:$C,3,FALSE),D1381)","v":"Saskatchewan"},{"$f":"IFERROR(VLOOKUP(E1381,Translation!$A:$C,3,FALSE),E1381)","v":765.20805801466236},{"$f":"IFERROR(VLOOKUP(F1381,Translation!$A:$C,3,FALSE),F1381)","v":"Prêts hypothécaires assurés au cours de la période selon le pointage de crédit à l’initiation (%)"},{"$f":"IFERROR(VLOOKUP(G1381,Translation!$A:$C,3,FALSE),G1381)","v":"765.2"},{"$f":"IFERROR(VLOOKUP(H1381,Translation!$A:$C,3,FALSE),H1381)","v":"Saskatchewan"}]
[13,"T1 2019","ASSURANCE DE PORTEFEUILLE","Alberta",764.74361158326099,"Prêts hypothécaires assurés au cours de la période selon le pointage de crédit à l’initiation (%)","764.7","Alberta",{"$f":"IFERROR(VLOOKUP(A1382,Translation!$A:$C,3,FALSE),A1382)","v":13},{"$f":"IFERROR(VLOOKUP(B1382,Translation!$A:$C,3,FALSE),B1382)","v":"T1 2019"},{"$f":"IFERROR(VLOOKUP(C1382,Translation!$A:$C,3,FALSE),C1382)","v":"ASSURANCE DE PORTEFEUILLE"},{"$f":"IFERROR(VLOOKUP(D1382,Translation!$A:$C,3,FALSE),D1382)","v":"Alberta"},{"$f":"IFERROR(VLOOKUP(E1382,Translation!$A:$C,3,FALSE),E1382)","v":764.74361158326099},{"$f":"IFERROR(VLOOKUP(F1382,Translation!$A:$C,3,FALSE),F1382)","v":"Prêts hypothécaires assurés au cours de la période selon le pointage de crédit à l’initiation (%)"},{"$f":"IFERROR(VLOOKUP(G1382,Translation!$A:$C,3,FALSE),G1382)","v":"764.7"},{"$f":"IFERROR(VLOOKUP(H1382,Translation!$A:$C,3,FALSE),H1382)","v":"Alberta"}]
[13,"T1 2019","ASSURANCE DE PORTEFEUILLE","Colombie-Britannique",773.19143069073061,"Prêts hypothécaires assurés au cours de la période selon le pointage de crédit à l’initiation (%)","773.2","Colombie-Britannique",{"$f":"IFERROR(VLOOKUP(A1383,Translation!$A:$C,3,FALSE),A1383)","v":13},{"$f":"IFERROR(VLOOKUP(B1383,Translation!$A:$C,3,FALSE),B1383)","v":"T1 2019"},{"$f":"IFERROR(VLOOKUP(C1383,Translation!$A:$C,3,FALSE),C1383)","v":"ASSURANCE DE PORTEFEUILLE"},{"$f":"IFERROR(VLOOKUP(D1383,Translation!$A:$C,3,FALSE),D1383)","v":"Colombie-Britannique"},{"$f":"IFERROR(VLOOKUP(E1383,Translation!$A:$C,3,FALSE),E1383)","v":773.19143069073061},{"$f":"IFERROR(VLOOKUP(F1383,Translation!$A:$C,3,FALSE),F1383)","v":"Prêts hypothécaires assurés au cours de la période selon le pointage de crédit à l’initiation (%)"},{"$f":"IFERROR(VLOOKUP(G1383,Translation!$A:$C,3,FALSE),G1383)","v":"773.2"},{"$f":"IFERROR(VLOOKUP(H1383,Translation!$A:$C,3,FALSE),H1383)","v":"Colombie-Britannique"}]
[13,"T1 2019","ASSURANCE DE PORTEFEUILLE","Territoires",813.99999999999989,"Prêts hypothécaires assurés au cours de la période selon le pointage de crédit à l’initiation (%)","814.0","Territoires",{"$f":"IFERROR(VLOOKUP(A1384,Translation!$A:$C,3,FALSE),A1384)","v":13},{"$f":"IFERROR(VLOOKUP(B1384,Translation!$A:$C,3,FALSE),B1384)","v":"T1 2019"},{"$f":"IFERROR(VLOOKUP(C1384,Translation!$A:$C,3,FALSE),C1384)","v":"ASSURANCE DE PORTEFEUILLE"},{"$f":"IFERROR(VLOOKUP(D1384,Translation!$A:$C,3,FALSE),D1384)","v":"Territoires"},{"$f":"IFERROR(VLOOKUP(E1384,Translation!$A:$C,3,FALSE),E1384)","v":813.99999999999989},{"$f":"IFERROR(VLOOKUP(F1384,Translation!$A:$C,3,FALSE),F1384)","v":"Prêts hypothécaires assurés au cours de la période selon le pointage de crédit à l’initiation (%)"},{"$f":"IFERROR(VLOOKUP(G1384,Translation!$A:$C,3,FALSE),G1384)","v":"814.0"},{"$f":"IFERROR(VLOOKUP(H1384,Translation!$A:$C,3,FALSE),H1384)","v":"Territoires"}]
[13,"T4 2018","PROPRIÉTAIRES-OCCUPANTS, À L’UNITÉ","Aucun pointage de crédit",3.2593928831956471E-3,"Prêts hypothécaires assurés au cours de la période selon le pointage de crédit à l’initiation (%)","0.0","Aucun pointage de crédit",{"$f":"IFERROR(VLOOKUP(A1385,Translation!$A:$C,3,FALSE),A1385)","v":13},{"$f":"IFERROR(VLOOKUP(B1385,Translation!$A:$C,3,FALSE),B1385)","v":"T4 2018"},{"$f":"IFERROR(VLOOKUP(C1385,Translation!$A:$C,3,FALSE),C1385)","v":"PROPRIÉTAIRES-OCCUPANTS, À L’UNITÉ"},{"$f":"IFERROR(VLOOKUP(D1385,Translation!$A:$C,3,FALSE),D1385)","v":"Aucun pointage de crédit"},{"$f":"IFERROR(VLOOKUP(E1385,Translation!$A:$C,3,FALSE),E1385)","v":3.2593928831956471E-3},{"$f":"IFERROR(VLOOKUP(F1385,Translation!$A:$C,3,FALSE),F1385)","v":"Prêts hypothécaires assurés au cours de la période selon le pointage de crédit à l’initiation (%)"},{"$f":"IFERROR(VLOOKUP(G1385,Translation!$A:$C,3,FALSE),G1385)","v":"0.0"},{"$f":"IFERROR(VLOOKUP(H1385,Translation!$A:$C,3,FALSE),H1385)","v":"Aucun pointage de crédit"}]
[13,"Cumul 2017","PROPRIÉTAIRES-OCCUPANTS, À L’UNITÉ","Aucun pointage de crédit",1.3161005124068358E-2,"Prêts hypothécaires assurés au cours de la période selon le pointage de crédit à l’initiation (%)","0.0","Aucun pointage de crédit",{"$f":"IFERROR(VLOOKUP(A1386,Translation!$A:$C,3,FALSE),A1386)","v":13},{"$f":"IFERROR(VLOOKUP(B1386,Translation!$A:$C,3,FALSE),B1386)","v":"Cumul 2017"},{"$f":"IFERROR(VLOOKUP(C1386,Translation!$A:$C,3,FALSE),C1386)","v":"PROPRIÉTAIRES-OCCUPANTS, À L’UNITÉ"},{"$f":"IFERROR(VLOOKUP(D1386,Translation!$A:$C,3,FALSE),D1386)","v":"Aucun pointage de crédit"},{"$f":"IFERROR(VLOOKUP(E1386,Translation!$A:$C,3,FALSE),E1386)","v":1.3161005124068358E-2},{"$f":"IFERROR(VLOOKUP(F1386,Translation!$A:$C,3,FALSE),F1386)","v":"Prêts hypothécaires assurés au cours de la période selon le pointage de crédit à l’initiation (%)"},{"$f":"IFERROR(VLOOKUP(G1386,Translation!$A:$C,3,FALSE),G1386)","v":"0.0"},{"$f":"IFERROR(VLOOKUP(H1386,Translation!$A:$C,3,FALSE),H1386)","v":"Aucun pointage de crédit"}]
[13,"T4 2018","PROPRIÉTAIRES-OCCUPANTS, À L’UNITÉ","< 600",0.35164998308889478,"Prêts hypothécaires assurés au cours de la période selon le pointage de crédit à l’initiation (%)","0.4"," < 600",{"$f":"IFERROR(VLOOKUP(A1387,Translation!$A:$C,3,FALSE),A1387)","v":13},{"$f":"IFERROR(VLOOKUP(B1387,Translation!$A:$C,3,FALSE),B1387)","v":"T4 2018"},{"$f":"IFERROR(VLOOKUP(C1387,Translation!$A:$C,3,FALSE),C1387)","v":"PROPRIÉTAIRES-OCCUPANTS, À L’UNITÉ"},{"$f":"IFERROR(VLOOKUP(D1387,Translation!$A:$C,3,FALSE),D1387)","v":"< 600"},{"$f":"IFERROR(VLOOKUP(E1387,Translation!$A:$C,3,FALSE),E1387)","v":0.35164998308889478},{"$f":"IFERROR(VLOOKUP(F1387,Translation!$A:$C,3,FALSE),F1387)","v":"Prêts hypothécaires assurés au cours de la période selon le pointage de crédit à l’initiation (%)"},{"$f":"IFERROR(VLOOKUP(G1387,Translation!$A:$C,3,FALSE),G1387)","v":"0.4"},{"$f":"IFERROR(VLOOKUP(H1387,Translation!$A:$C,3,FALSE),H1387)","v":" < 600"}]
[13,"Cumul 2017","PROPRIÉTAIRES-OCCUPANTS, À L’UNITÉ","< 600",0.38817474423423448,"Prêts hypothécaires assurés au cours de la période selon le pointage de crédit à l’initiation (%)","0.4"," < 600",{"$f":"IFERROR(VLOOKUP(A1388,Translation!$A:$C,3,FALSE),A1388)","v":13},{"$f":"IFERROR(VLOOKUP(B1388,Translation!$A:$C,3,FALSE),B1388)","v":"Cumul 2017"},{"$f":"IFERROR(VLOOKUP(C1388,Translation!$A:$C,3,FALSE),C1388)","v":"PROPRIÉTAIRES-OCCUPANTS, À L’UNITÉ"},{"$f":"IFERROR(VLOOKUP(D1388,Translation!$A:$C,3,FALSE),D1388)","v":"< 600"},{"$f":"IFERROR(VLOOKUP(E1388,Translation!$A:$C,3,FALSE),E1388)","v":0.38817474423423448},{"$f":"IFERROR(VLOOKUP(F1388,Translation!$A:$C,3,FALSE),F1388)","v":"Prêts hypothécaires assurés au cours de la période selon le pointage de crédit à l’initiation (%)"},{"$f":"IFERROR(VLOOKUP(G1388,Translation!$A:$C,3,FALSE),G1388)","v":"0.4"},{"$f":"IFERROR(VLOOKUP(H1388,Translation!$A:$C,3,FALSE),H1388)","v":" < 600"}]
[13,"T4 2018","PROPRIÉTAIRES-OCCUPANTS, À L’UNITÉ",">= 600 < 680",5.7787147489350081,"Prêts hypothécaires assurés au cours de la période selon le pointage de crédit à l’initiation (%)","5.8"," >= 600 < 680",{"$f":"IFERROR(VLOOKUP(A1389,Translation!$A:$C,3,FALSE),A1389)","v":13},{"$f":"IFERROR(VLOOKUP(B1389,Translation!$A:$C,3,FALSE),B1389)","v":"T4 2018"},{"$f":"IFERROR(VLOOKUP(C1389,Translation!$A:$C,3,FALSE),C1389)","v":"PROPRIÉTAIRES-OCCUPANTS, À L’UNITÉ"},{"$f":"IFERROR(VLOOKUP(D1389,Translation!$A:$C,3,FALSE),D1389)","v":">= 600 < 680"},{"$f":"IFERROR(VLOOKUP(E1389,Translation!$A:$C,3,FALSE),E1389)","v":5.7787147489350081},{"$f":"IFERROR(VLOOKUP(F1389,Translation!$A:$C,3,FALSE),F1389)","v":"Prêts hypothécaires assurés au cours de la période selon le pointage de crédit à l’initiation (%)"},{"$f":"IFERROR(VLOOKUP(G1389,Translation!$A:$C,3,FALSE),G1389)","v":"5.8"},{"$f":"IFERROR(VLOOKUP(H1389,Translation!$A:$C,3,FALSE),H1389)","v":" >= 600 < 680"}]
[13,"Cumul 2017","PROPRIÉTAIRES-OCCUPANTS, À L’UNITÉ",">= 600 < 680",6.4943764209326016,"Prêts hypothécaires assurés au cours de la période selon le pointage de crédit à l’initiation (%)","6.5"," >= 600 < 680",{"$f":"IFERROR(VLOOKUP(A1390,Translation!$A:$C,3,FALSE),A1390)","v":13},{"$f":"IFERROR(VLOOKUP(B1390,Translation!$A:$C,3,FALSE),B1390)","v":"Cumul 2017"},{"$f":"IFERROR(VLOOKUP(C1390,Translation!$A:$C,3,FALSE),C1390)","v":"PROPRIÉTAIRES-OCCUPANTS, À L’UNITÉ"},{"$f":"IFERROR(VLOOKUP(D1390,Translation!$A:$C,3,FALSE),D1390)","v":">= 600 < 680"},{"$f":"IFERROR(VLOOKUP(E1390,Translation!$A:$C,3,FALSE),E1390)","v":6.4943764209326016},{"$f":"IFERROR(VLOOKUP(F1390,Translation!$A:$C,3,FALSE),F1390)","v":"Prêts hypothécaires assurés au cours de la période selon le pointage de crédit à l’initiation (%)"},{"$f":"IFERROR(VLOOKUP(G1390,Translation!$A:$C,3,FALSE),G1390)","v":"6.5"},{"$f":"IFERROR(VLOOKUP(H1390,Translation!$A:$C,3,FALSE),H1390)","v":" >= 600 < 680"}]
[13,"T4 2018","PROPRIÉTAIRES-OCCUPANTS, À L’UNITÉ",">= 680 < 700",5.43724537202415,"Prêts hypothécaires assurés au cours de la période selon le pointage de crédit à l’initiation (%)","5.4"," >= 680 < 700",{"$f":"IFERROR(VLOOKUP(A1391,Translation!$A:$C,3,FALSE),A1391)","v":13},{"$f":"IFERROR(VLOOKUP(B1391,Translation!$A:$C,3,FALSE),B1391)","v":"T4 2018"},{"$f":"IFERROR(VLOOKUP(C1391,Translation!$A:$C,3,FALSE),C1391)","v":"PROPRIÉTAIRES-OCCUPANTS, À L’UNITÉ"},{"$f":"IFERROR(VLOOKUP(D1391,Translation!$A:$C,3,FALSE),D1391)","v":">= 680 < 700"},{"$f":"IFERROR(VLOOKUP(E1391,Translation!$A:$C,3,FALSE),E1391)","v":5.43724537202415},{"$f":"IFERROR(VLOOKUP(F1391,Translation!$A:$C,3,FALSE),F1391)","v":"Prêts hypothécaires assurés au cours de la période selon le pointage de crédit à l’initiation (%)"},{"$f":"IFERROR(VLOOKUP(G1391,Translation!$A:$C,3,FALSE),G1391)","v":"5.4"},{"$f":"IFERROR(VLOOKUP(H1391,Translation!$A:$C,3,FALSE),H1391)","v":" >= 680 < 700"}]
[13,"Cumul 2017","PROPRIÉTAIRES-OCCUPANTS, À L’UNITÉ",">= 680 < 700",5.9193581648012801,"Prêts hypothécaires assurés au cours de la période selon le pointage de crédit à l’initiation (%)","5.9"," >= 680 < 700",{"$f":"IFERROR(VLOOKUP(A1392,Translation!$A:$C,3,FALSE),A1392)","v":13},{"$f":"IFERROR(VLOOKUP(B1392,Translation!$A:$C,3,FALSE),B1392)","v":"Cumul 2017"},{"$f":"IFERROR(VLOOKUP(C1392,Translation!$A:$C,3,FALSE),C1392)","v":"PROPRIÉTAIRES-OCCUPANTS, À L’UNITÉ"},{"$f":"IFERROR(VLOOKUP(D1392,Translation!$A:$C,3,FALSE),D1392)","v":">= 680 < 700"},{"$f":"IFERROR(VLOOKUP(E1392,Translation!$A:$C,3,FALSE),E1392)","v":5.9193581648012801},{"$f":"IFERROR(VLOOKUP(F1392,Translation!$A:$C,3,FALSE),F1392)","v":"Prêts hypothécaires assurés au cours de la période selon le pointage de crédit à l’initiation (%)"},{"$f":"IFERROR(VLOOKUP(G1392,Translation!$A:$C,3,FALSE),G1392)","v":"5.9"},{"$f":"IFERROR(VLOOKUP(H1392,Translation!$A:$C,3,FALSE),H1392)","v":" >= 680 < 700"}]
[13,"T4 2018","PROPRIÉTAIRES-OCCUPANTS, À L’UNITÉ",">= 700 < 750",26.913708543167569,"Prêts hypothécaires assurés au cours de la période selon le pointage de crédit à l’initiation (%)","26.9"," >= 700 < 750",{"$f":"IFERROR(VLOOKUP(A1393,Translation!$A:$C,3,FALSE),A1393)","v":13},{"$f":"IFERROR(VLOOKUP(B1393,Translation!$A:$C,3,FALSE),B1393)","v":"T4 2018"},{"$f":"IFERROR(VLOOKUP(C1393,Translation!$A:$C,3,FALSE),C1393)","v":"PROPRIÉTAIRES-OCCUPANTS, À L’UNITÉ"},{"$f":"IFERROR(VLOOKUP(D1393,Translation!$A:$C,3,FALSE),D1393)","v":">= 700 < 750"},{"$f":"IFERROR(VLOOKUP(E1393,Translation!$A:$C,3,FALSE),E1393)","v":26.913708543167569},{"$f":"IFERROR(VLOOKUP(F1393,Translation!$A:$C,3,FALSE),F1393)","v":"Prêts hypothécaires assurés au cours de la période selon le pointage de crédit à l’initiation (%)"},{"$f":"IFERROR(VLOOKUP(G1393,Translation!$A:$C,3,FALSE),G1393)","v":"26.9"},{"$f":"IFERROR(VLOOKUP(H1393,Translation!$A:$C,3,FALSE),H1393)","v":" >= 700 < 750"}]
[13,"Cumul 2017","PROPRIÉTAIRES-OCCUPANTS, À L’UNITÉ",">= 700 < 750",28.198036010590503,"Prêts hypothécaires assurés au cours de la période selon le pointage de crédit à l’initiation (%)","28.2"," >= 700 < 750",{"$f":"IFERROR(VLOOKUP(A1394,Translation!$A:$C,3,FALSE),A1394)","v":13},{"$f":"IFERROR(VLOOKUP(B1394,Translation!$A:$C,3,FALSE),B1394)","v":"Cumul 2017"},{"$f":"IFERROR(VLOOKUP(C1394,Translation!$A:$C,3,FALSE),C1394)","v":"PROPRIÉTAIRES-OCCUPANTS, À L’UNITÉ"},{"$f":"IFERROR(VLOOKUP(D1394,Translation!$A:$C,3,FALSE),D1394)","v":">= 700 < 750"},{"$f":"IFERROR(VLOOKUP(E1394,Translation!$A:$C,3,FALSE),E1394)","v":28.198036010590503},{"$f":"IFERROR(VLOOKUP(F1394,Translation!$A:$C,3,FALSE),F1394)","v":"Prêts hypothécaires assurés au cours de la période selon le pointage de crédit à l’initiation (%)"},{"$f":"IFERROR(VLOOKUP(G1394,Translation!$A:$C,3,FALSE),G1394)","v":"28.2"},{"$f":"IFERROR(VLOOKUP(H1394,Translation!$A:$C,3,FALSE),H1394)","v":" >= 700 < 750"}]
[13,"T4 2018","PROPRIÉTAIRES-OCCUPANTS, À L’UNITÉ",">= 750 < 780",28.204308117375241,"Prêts hypothécaires assurés au cours de la période selon le pointage de crédit à l’initiation (%)","28.2"," >= 750 < 780",{"$f":"IFERROR(VLOOKUP(A1395,Translation!$A:$C,3,FALSE),A1395)","v":13},{"$f":"IFERROR(VLOOKUP(B1395,Translation!$A:$C,3,FALSE),B1395)","v":"T4 2018"},{"$f":"IFERROR(VLOOKUP(C1395,Translation!$A:$C,3,FALSE),C1395)","v":"PROPRIÉTAIRES-OCCUPANTS, À L’UNITÉ"},{"$f":"IFERROR(VLOOKUP(D1395,Translation!$A:$C,3,FALSE),D1395)","v":">= 750 < 780"},{"$f":"IFERROR(VLOOKUP(E1395,Translation!$A:$C,3,FALSE),E1395)","v":28.204308117375241},{"$f":"IFERROR(VLOOKUP(F1395,Translation!$A:$C,3,FALSE),F1395)","v":"Prêts hypothécaires assurés au cours de la période selon le pointage de crédit à l’initiation (%)"},{"$f":"IFERROR(VLOOKUP(G1395,Translation!$A:$C,3,FALSE),G1395)","v":"28.2"},{"$f":"IFERROR(VLOOKUP(H1395,Translation!$A:$C,3,FALSE),H1395)","v":" >= 750 < 780"}]
[13,"Cumul 2017","PROPRIÉTAIRES-OCCUPANTS, À L’UNITÉ",">= 750 < 780",27.16240834247408,"Prêts hypothécaires assurés au cours de la période selon le pointage de crédit à l’initiation (%)","27.2"," >= 750 < 780",{"$f":"IFERROR(VLOOKUP(A1396,Translation!$A:$C,3,FALSE),A1396)","v":13},{"$f":"IFERROR(VLOOKUP(B1396,Translation!$A:$C,3,FALSE),B1396)","v":"Cumul 2017"},{"$f":"IFERROR(VLOOKUP(C1396,Translation!$A:$C,3,FALSE),C1396)","v":"PROPRIÉTAIRES-OCCUPANTS, À L’UNITÉ"},{"$f":"IFERROR(VLOOKUP(D1396,Translation!$A:$C,3,FALSE),D1396)","v":">= 750 < 780"},{"$f":"IFERROR(VLOOKUP(E1396,Translation!$A:$C,3,FALSE),E1396)","v":27.16240834247408},{"$f":"IFERROR(VLOOKUP(F1396,Translation!$A:$C,3,FALSE),F1396)","v":"Prêts hypothécaires assurés au cours de la période selon le pointage de crédit à l’initiation (%)"},{"$f":"IFERROR(VLOOKUP(G1396,Translation!$A:$C,3,FALSE),G1396)","v":"27.2"},{"$f":"IFERROR(VLOOKUP(H1396,Translation!$A:$C,3,FALSE),H1396)","v":" >= 750 < 780"}]
[13,"T4 2018","PROPRIÉTAIRES-OCCUPANTS, À L’UNITÉ",">= 780",33.311113842525977,"Prêts hypothécaires assurés au cours de la période selon le pointage de crédit à l’initiation (%)","33.3"," >= 780",{"$f":"IFERROR(VLOOKUP(A1397,Translation!$A:$C,3,FALSE),A1397)","v":13},{"$f":"IFERROR(VLOOKUP(B1397,Translation!$A:$C,3,FALSE),B1397)","v":"T4 2018"},{"$f":"IFERROR(VLOOKUP(C1397,Translation!$A:$C,3,FALSE),C1397)","v":"PROPRIÉTAIRES-OCCUPANTS, À L’UNITÉ"},{"$f":"IFERROR(VLOOKUP(D1397,Translation!$A:$C,3,FALSE),D1397)","v":">= 780"},{"$f":"IFERROR(VLOOKUP(E1397,Translation!$A:$C,3,FALSE),E1397)","v":33.311113842525977},{"$f":"IFERROR(VLOOKUP(F1397,Translation!$A:$C,3,FALSE),F1397)","v":"Prêts hypothécaires assurés au cours de la période selon le pointage de crédit à l’initiation (%)"},{"$f":"IFERROR(VLOOKUP(G1397,Translation!$A:$C,3,FALSE),G1397)","v":"33.3"},{"$f":"IFERROR(VLOOKUP(H1397,Translation!$A:$C,3,FALSE),H1397)","v":" >= 780"}]
[13,"Cumul 2017","PROPRIÉTAIRES-OCCUPANTS, À L’UNITÉ",">= 780",31.824485311843222,"Prêts hypothécaires assurés au cours de la période selon le pointage de crédit à l’initiation (%)","31.8"," >= 780",{"$f":"IFERROR(VLOOKUP(A1398,Translation!$A:$C,3,FALSE),A1398)","v":13},{"$f":"IFERROR(VLOOKUP(B1398,Translation!$A:$C,3,FALSE),B1398)","v":"Cumul 2017"},{"$f":"IFERROR(VLOOKUP(C1398,Translation!$A:$C,3,FALSE),C1398)","v":"PROPRIÉTAIRES-OCCUPANTS, À L’UNITÉ"},{"$f":"IFERROR(VLOOKUP(D1398,Translation!$A:$C,3,FALSE),D1398)","v":">= 780"},{"$f":"IFERROR(VLOOKUP(E1398,Translation!$A:$C,3,FALSE),E1398)","v":31.824485311843222},{"$f":"IFERROR(VLOOKUP(F1398,Translation!$A:$C,3,FALSE),F1398)","v":"Prêts hypothécaires assurés au cours de la période selon le pointage de crédit à l’initiation (%)"},{"$f":"IFERROR(VLOOKUP(G1398,Translation!$A:$C,3,FALSE),G1398)","v":"31.8"},{"$f":"IFERROR(VLOOKUP(H1398,Translation!$A:$C,3,FALSE),H1398)","v":" >= 780"}]
[13,"T4 2018","PROPRIÉTAIRES-OCCUPANTS, À L’UNITÉ","Pointage de crédit moyen à l'initiation ",754.56220337585341,"Prêts hypothécaires assurés au cours de la période selon le pointage de crédit à l’initiation (%)","754.6","Pointage de crédit moyen à l'initiation ",{"$f":"IFERROR(VLOOKUP(A1399,Translation!$A:$C,3,FALSE),A1399)","v":13},{"$f":"IFERROR(VLOOKUP(B1399,Translation!$A:$C,3,FALSE),B1399)","v":"T4 2018"},{"$f":"IFERROR(VLOOKUP(C1399,Translation!$A:$C,3,FALSE),C1399)","v":"PROPRIÉTAIRES-OCCUPANTS, À L’UNITÉ"},{"$f":"IFERROR(VLOOKUP(D1399,Translation!$A:$C,3,FALSE),D1399)","v":"Pointage de crédit moyen à l'initiation "},{"$f":"IFERROR(VLOOKUP(E1399,Translation!$A:$C,3,FALSE),E1399)","v":754.56220337585341},{"$f":"IFERROR(VLOOKUP(F1399,Translation!$A:$C,3,FALSE),F1399)","v":"Prêts hypothécaires assurés au cours de la période selon le pointage de crédit à l’initiation (%)"},{"$f":"IFERROR(VLOOKUP(G1399,Translation!$A:$C,3,FALSE),G1399)","v":"754.6"},{"$f":"IFERROR(VLOOKUP(H1399,Translation!$A:$C,3,FALSE),H1399)","v":"Pointage de crédit moyen à l'initiation "}]
[13,"Cumul 2017","PROPRIÉTAIRES-OCCUPANTS, À L’UNITÉ","Pointage de crédit moyen à l'initiation ",751.97527724708095,"Prêts hypothécaires assurés au cours de la période selon le pointage de crédit à l’initiation (%)","752.0","Pointage de crédit moyen à l'initiation ",{"$f":"IFERROR(VLOOKUP(A1400,Translation!$A:$C,3,FALSE),A1400)","v":13},{"$f":"IFERROR(VLOOKUP(B1400,Translation!$A:$C,3,FALSE),B1400)","v":"Cumul 2017"},{"$f":"IFERROR(VLOOKUP(C1400,Translation!$A:$C,3,FALSE),C1400)","v":"PROPRIÉTAIRES-OCCUPANTS, À L’UNITÉ"},{"$f":"IFERROR(VLOOKUP(D1400,Translation!$A:$C,3,FALSE),D1400)","v":"Pointage de crédit moyen à l'initiation "},{"$f":"IFERROR(VLOOKUP(E1400,Translation!$A:$C,3,FALSE),E1400)","v":751.97527724708095},{"$f":"IFERROR(VLOOKUP(F1400,Translation!$A:$C,3,FALSE),F1400)","v":"Prêts hypothécaires assurés au cours de la période selon le pointage de crédit à l’initiation (%)"},{"$f":"IFERROR(VLOOKUP(G1400,Translation!$A:$C,3,FALSE),G1400)","v":"752.0"},{"$f":"IFERROR(VLOOKUP(H1400,Translation!$A:$C,3,FALSE),H1400)","v":"Pointage de crédit moyen à l'initiation "}]
[13,"T4 2018","PROPRIÉTAIRES-OCCUPANTS, À L’UNITÉ","Terre-Neuve-et-Labrador",742.89291866349504,"Prêts hypothécaires assurés au cours de la période selon le pointage de crédit à l’initiation (%)","742.9","Terre-Neuve-et-Labrador",{"$f":"IFERROR(VLOOKUP(A1401,Translation!$A:$C,3,FALSE),A1401)","v":13},{"$f":"IFERROR(VLOOKUP(B1401,Translation!$A:$C,3,FALSE),B1401)","v":"T4 2018"},{"$f":"IFERROR(VLOOKUP(C1401,Translation!$A:$C,3,FALSE),C1401)","v":"PROPRIÉTAIRES-OCCUPANTS, À L’UNITÉ"},{"$f":"IFERROR(VLOOKUP(D1401,Translation!$A:$C,3,FALSE),D1401)","v":"Terre-Neuve-et-Labrador"},{"$f":"IFERROR(VLOOKUP(E1401,Translation!$A:$C,3,FALSE),E1401)","v":742.89291866349504},{"$f":"IFERROR(VLOOKUP(F1401,Translation!$A:$C,3,FALSE),F1401)","v":"Prêts hypothécaires assurés au cours de la période selon le pointage de crédit à l’initiation (%)"},{"$f":"IFERROR(VLOOKUP(G1401,Translation!$A:$C,3,FALSE),G1401)","v":"742.9"},{"$f":"IFERROR(VLOOKUP(H1401,Translation!$A:$C,3,FALSE),H1401)","v":"Terre-Neuve-et-Labrador"}]
[13,"T4 2018","PROPRIÉTAIRES-OCCUPANTS, À L’UNITÉ","Île-du-Prince-Édouard",743.25235038773985,"Prêts hypothécaires assurés au cours de la période selon le pointage de crédit à l’initiation (%)","743.3","Île-du-Prince-Édouard",{"$f":"IFERROR(VLOOKUP(A1402,Translation!$A:$C,3,FALSE),A1402)","v":13},{"$f":"IFERROR(VLOOKUP(B1402,Translation!$A:$C,3,FALSE),B1402)","v":"T4 2018"},{"$f":"IFERROR(VLOOKUP(C1402,Translation!$A:$C,3,FALSE),C1402)","v":"PROPRIÉTAIRES-OCCUPANTS, À L’UNITÉ"},{"$f":"IFERROR(VLOOKUP(D1402,Translation!$A:$C,3,FALSE),D1402)","v":"Île-du-Prince-Édouard"},{"$f":"IFERROR(VLOOKUP(E1402,Translation!$A:$C,3,FALSE),E1402)","v":743.25235038773985},{"$f":"IFERROR(VLOOKUP(F1402,Translation!$A:$C,3,FALSE),F1402)","v":"Prêts hypothécaires assurés au cours de la période selon le pointage de crédit à l’initiation (%)"},{"$f":"IFERROR(VLOOKUP(G1402,Translation!$A:$C,3,FALSE),G1402)","v":"743.3"},{"$f":"IFERROR(VLOOKUP(H1402,Translation!$A:$C,3,FALSE),H1402)","v":"Île-du-Prince-Édouard"}]
[13,"T4 2018","PROPRIÉTAIRES-OCCUPANTS, À L’UNITÉ","Nouvelle-Écosse",742.99641825820322,"Prêts hypothécaires assurés au cours de la période selon le pointage de crédit à l’initiation (%)","743.0","Nouvelle-Écosse",{"$f":"IFERROR(VLOOKUP(A1403,Translation!$A:$C,3,FALSE),A1403)","v":13},{"$f":"IFERROR(VLOOKUP(B1403,Translation!$A:$C,3,FALSE),B1403)","v":"T4 2018"},{"$f":"IFERROR(VLOOKUP(C1403,Translation!$A:$C,3,FALSE),C1403)","v":"PROPRIÉTAIRES-OCCUPANTS, À L’UNITÉ"},{"$f":"IFERROR(VLOOKUP(D1403,Translation!$A:$C,3,FALSE),D1403)","v":"Nouvelle-Écosse"},{"$f":"IFERROR(VLOOKUP(E1403,Translation!$A:$C,3,FALSE),E1403)","v":742.99641825820322},{"$f":"IFERROR(VLOOKUP(F1403,Translation!$A:$C,3,FALSE),F1403)","v":"Prêts hypothécaires assurés au cours de la période selon le pointage de crédit à l’initiation (%)"},{"$f":"IFERROR(VLOOKUP(G1403,Translation!$A:$C,3,FALSE),G1403)","v":"743.0"},{"$f":"IFERROR(VLOOKUP(H1403,Translation!$A:$C,3,FALSE),H1403)","v":"Nouvelle-Écosse"}]
[13,"T4 2018","PROPRIÉTAIRES-OCCUPANTS, À L’UNITÉ","Nouveau-Brunswick",747.52620832481102,"Prêts hypothécaires assurés au cours de la période selon le pointage de crédit à l’initiation (%)","747.5","Nouveau-Brunswick",{"$f":"IFERROR(VLOOKUP(A1404,Translation!$A:$C,3,FALSE),A1404)","v":13},{"$f":"IFERROR(VLOOKUP(B1404,Translation!$A:$C,3,FALSE),B1404)","v":"T4 2018"},{"$f":"IFERROR(VLOOKUP(C1404,Translation!$A:$C,3,FALSE),C1404)","v":"PROPRIÉTAIRES-OCCUPANTS, À L’UNITÉ"},{"$f":"IFERROR(VLOOKUP(D1404,Translation!$A:$C,3,FALSE),D1404)","v":"Nouveau-Brunswick"},{"$f":"IFERROR(VLOOKUP(E1404,Translation!$A:$C,3,FALSE),E1404)","v":747.52620832481102},{"$f":"IFERROR(VLOOKUP(F1404,Translation!$A:$C,3,FALSE),F1404)","v":"Prêts hypothécaires assurés au cours de la période selon le pointage de crédit à l’initiation (%)"},{"$f":"IFERROR(VLOOKUP(G1404,Translation!$A:$C,3,FALSE),G1404)","v":"747.5"},{"$f":"IFERROR(VLOOKUP(H1404,Translation!$A:$C,3,FALSE),H1404)","v":"Nouveau-Brunswick"}]
[13,"T4 2018","PROPRIÉTAIRES-OCCUPANTS, À L’UNITÉ","Québec",756.01274642446356,"Prêts hypothécaires assurés au cours de la période selon le pointage de crédit à l’initiation (%)","756.0","Québec",{"$f":"IFERROR(VLOOKUP(A1405,Translation!$A:$C,3,FALSE),A1405)","v":13},{"$f":"IFERROR(VLOOKUP(B1405,Translation!$A:$C,3,FALSE),B1405)","v":"T4 2018"},{"$f":"IFERROR(VLOOKUP(C1405,Translation!$A:$C,3,FALSE),C1405)","v":"PROPRIÉTAIRES-OCCUPANTS, À L’UNITÉ"},{"$f":"IFERROR(VLOOKUP(D1405,Translation!$A:$C,3,FALSE),D1405)","v":"Québec"},{"$f":"IFERROR(VLOOKUP(E1405,Translation!$A:$C,3,FALSE),E1405)","v":756.01274642446356},{"$f":"IFERROR(VLOOKUP(F1405,Translation!$A:$C,3,FALSE),F1405)","v":"Prêts hypothécaires assurés au cours de la période selon le pointage de crédit à l’initiation (%)"},{"$f":"IFERROR(VLOOKUP(G1405,Translation!$A:$C,3,FALSE),G1405)","v":"756.0"},{"$f":"IFERROR(VLOOKUP(H1405,Translation!$A:$C,3,FALSE),H1405)","v":"Québec"}]
[13,"T4 2018","PROPRIÉTAIRES-OCCUPANTS, À L’UNITÉ","Ontario",759.84929094977201,"Prêts hypothécaires assurés au cours de la période selon le pointage de crédit à l’initiation (%)","759.8","Ontario",{"$f":"IFERROR(VLOOKUP(A1406,Translation!$A:$C,3,FALSE),A1406)","v":13},{"$f":"IFERROR(VLOOKUP(B1406,Translation!$A:$C,3,FALSE),B1406)","v":"T4 2018"},{"$f":"IFERROR(VLOOKUP(C1406,Translation!$A:$C,3,FALSE),C1406)","v":"PROPRIÉTAIRES-OCCUPANTS, À L’UNITÉ"},{"$f":"IFERROR(VLOOKUP(D1406,Translation!$A:$C,3,FALSE),D1406)","v":"Ontario"},{"$f":"IFERROR(VLOOKUP(E1406,Translation!$A:$C,3,FALSE),E1406)","v":759.84929094977201},{"$f":"IFERROR(VLOOKUP(F1406,Translation!$A:$C,3,FALSE),F1406)","v":"Prêts hypothécaires assurés au cours de la période selon le pointage de crédit à l’initiation (%)"},{"$f":"IFERROR(VLOOKUP(G1406,Translation!$A:$C,3,FALSE),G1406)","v":"759.8"},{"$f":"IFERROR(VLOOKUP(H1406,Translation!$A:$C,3,FALSE),H1406)","v":"Ontario"}]
[13,"T4 2018","PROPRIÉTAIRES-OCCUPANTS, À L’UNITÉ","Manitoba",752.02608567600294,"Prêts hypothécaires assurés au cours de la période selon le pointage de crédit à l’initiation (%)","752.0","Manitoba",{"$f":"IFERROR(VLOOKUP(A1407,Translation!$A:$C,3,FALSE),A1407)","v":13},{"$f":"IFERROR(VLOOKUP(B1407,Translation!$A:$C,3,FALSE),B1407)","v":"T4 2018"},{"$f":"IFERROR(VLOOKUP(C1407,Translation!$A:$C,3,FALSE),C1407)","v":"PROPRIÉTAIRES-OCCUPANTS, À L’UNITÉ"},{"$f":"IFERROR(VLOOKUP(D1407,Translation!$A:$C,3,FALSE),D1407)","v":"Manitoba"},{"$f":"IFERROR(VLOOKUP(E1407,Translation!$A:$C,3,FALSE),E1407)","v":752.02608567600294},{"$f":"IFERROR(VLOOKUP(F1407,Translation!$A:$C,3,FALSE),F1407)","v":"Prêts hypothécaires assurés au cours de la période selon le pointage de crédit à l’initiation (%)"},{"$f":"IFERROR(VLOOKUP(G1407,Translation!$A:$C,3,FALSE),G1407)","v":"752.0"},{"$f":"IFERROR(VLOOKUP(H1407,Translation!$A:$C,3,FALSE),H1407)","v":"Manitoba"}]
[13,"T4 2018","PROPRIÉTAIRES-OCCUPANTS, À L’UNITÉ","Saskatchewan",742.0227212708071,"Prêts hypothécaires assurés au cours de la période selon le pointage de crédit à l’initiation (%)","742.0","Saskatchewan",{"$f":"IFERROR(VLOOKUP(A1408,Translation!$A:$C,3,FALSE),A1408)","v":13},{"$f":"IFERROR(VLOOKUP(B1408,Translation!$A:$C,3,FALSE),B1408)","v":"T4 2018"},{"$f":"IFERROR(VLOOKUP(C1408,Translation!$A:$C,3,FALSE),C1408)","v":"PROPRIÉTAIRES-OCCUPANTS, À L’UNITÉ"},{"$f":"IFERROR(VLOOKUP(D1408,Translation!$A:$C,3,FALSE),D1408)","v":"Saskatchewan"},{"$f":"IFERROR(VLOOKUP(E1408,Translation!$A:$C,3,FALSE),E1408)","v":742.0227212708071},{"$f":"IFERROR(VLOOKUP(F1408,Translation!$A:$C,3,FALSE),F1408)","v":"Prêts hypothécaires assurés au cours de la période selon le pointage de crédit à l’initiation (%)"},{"$f":"IFERROR(VLOOKUP(G1408,Translation!$A:$C,3,FALSE),G1408)","v":"742.0"},{"$f":"IFERROR(VLOOKUP(H1408,Translation!$A:$C,3,FALSE),H1408)","v":"Saskatchewan"}]
[13,"T4 2018","PROPRIÉTAIRES-OCCUPANTS, À L’UNITÉ","Alberta",749.10584102189921,"Prêts hypothécaires assurés au cours de la période selon le pointage de crédit à l’initiation (%)","749.1","Alberta",{"$f":"IFERROR(VLOOKUP(A1409,Translation!$A:$C,3,FALSE),A1409)","v":13},{"$f":"IFERROR(VLOOKUP(B1409,Translation!$A:$C,3,FALSE),B1409)","v":"T4 2018"},{"$f":"IFERROR(VLOOKUP(C1409,Translation!$A:$C,3,FALSE),C1409)","v":"PROPRIÉTAIRES-OCCUPANTS, À L’UNITÉ"},{"$f":"IFERROR(VLOOKUP(D1409,Translation!$A:$C,3,FALSE),D1409)","v":"Alberta"},{"$f":"IFERROR(VLOOKUP(E1409,Translation!$A:$C,3,FALSE),E1409)","v":749.10584102189921},{"$f":"IFERROR(VLOOKUP(F1409,Translation!$A:$C,3,FALSE),F1409)","v":"Prêts hypothécaires assurés au cours de la période selon le pointage de crédit à l’initiation (%)"},{"$f":"IFERROR(VLOOKUP(G1409,Translation!$A:$C,3,FALSE),G1409)","v":"749.1"},{"$f":"IFERROR(VLOOKUP(H1409,Translation!$A:$C,3,FALSE),H1409)","v":"Alberta"}]
[13,"T4 2018","PROPRIÉTAIRES-OCCUPANTS, À L’UNITÉ","Colombie-Britannique",753.25429900106724,"Prêts hypothécaires assurés au cours de la période selon le pointage de crédit à l’initiation (%)","753.3","Colombie-Britannique",{"$f":"IFERROR(VLOOKUP(A1410,Translation!$A:$C,3,FALSE),A1410)","v":13},{"$f":"IFERROR(VLOOKUP(B1410,Translation!$A:$C,3,FALSE),B1410)","v":"T4 2018"},{"$f":"IFERROR(VLOOKUP(C1410,Translation!$A:$C,3,FALSE),C1410)","v":"PROPRIÉTAIRES-OCCUPANTS, À L’UNITÉ"},{"$f":"IFERROR(VLOOKUP(D1410,Translation!$A:$C,3,FALSE),D1410)","v":"Colombie-Britannique"},{"$f":"IFERROR(VLOOKUP(E1410,Translation!$A:$C,3,FALSE),E1410)","v":753.25429900106724},{"$f":"IFERROR(VLOOKUP(F1410,Translation!$A:$C,3,FALSE),F1410)","v":"Prêts hypothécaires assurés au cours de la période selon le pointage de crédit à l’initiation (%)"},{"$f":"IFERROR(VLOOKUP(G1410,Translation!$A:$C,3,FALSE),G1410)","v":"753.3"},{"$f":"IFERROR(VLOOKUP(H1410,Translation!$A:$C,3,FALSE),H1410)","v":"Colombie-Britannique"}]
[13,"T4 2018","PROPRIÉTAIRES-OCCUPANTS, À L’UNITÉ","Territoires",759.04845136376844,"Prêts hypothécaires assurés au cours de la période selon le pointage de crédit à l’initiation (%)","759.0","Territoires",{"$f":"IFERROR(VLOOKUP(A1411,Translation!$A:$C,3,FALSE),A1411)","v":13},{"$f":"IFERROR(VLOOKUP(B1411,Translation!$A:$C,3,FALSE),B1411)","v":"T4 2018"},{"$f":"IFERROR(VLOOKUP(C1411,Translation!$A:$C,3,FALSE),C1411)","v":"PROPRIÉTAIRES-OCCUPANTS, À L’UNITÉ"},{"$f":"IFERROR(VLOOKUP(D1411,Translation!$A:$C,3,FALSE),D1411)","v":"Territoires"},{"$f":"IFERROR(VLOOKUP(E1411,Translation!$A:$C,3,FALSE),E1411)","v":759.04845136376844},{"$f":"IFERROR(VLOOKUP(F1411,Translation!$A:$C,3,FALSE),F1411)","v":"Prêts hypothécaires assurés au cours de la période selon le pointage de crédit à l’initiation (%)"},{"$f":"IFERROR(VLOOKUP(G1411,Translation!$A:$C,3,FALSE),G1411)","v":"759.0"},{"$f":"IFERROR(VLOOKUP(H1411,Translation!$A:$C,3,FALSE),H1411)","v":"Territoires"}]
[13,"Cumul 2017","PROPRIÉTAIRES-OCCUPANTS, À L’UNITÉ","Terre-Neuve-et-Labrador",743.37096765717263,"Prêts hypothécaires assurés au cours de la période selon le pointage de crédit à l’initiation (%)","743.4","Terre-Neuve-et-Labrador",{"$f":"IFERROR(VLOOKUP(A1412,Translation!$A:$C,3,FALSE),A1412)","v":13},{"$f":"IFERROR(VLOOKUP(B1412,Translation!$A:$C,3,FALSE),B1412)","v":"Cumul 2017"},{"$f":"IFERROR(VLOOKUP(C1412,Translation!$A:$C,3,FALSE),C1412)","v":"PROPRIÉTAIRES-OCCUPANTS, À L’UNITÉ"},{"$f":"IFERROR(VLOOKUP(D1412,Translation!$A:$C,3,FALSE),D1412)","v":"Terre-Neuve-et-Labrador"},{"$f":"IFERROR(VLOOKUP(E1412,Translation!$A:$C,3,FALSE),E1412)","v":743.37096765717263},{"$f":"IFERROR(VLOOKUP(F1412,Translation!$A:$C,3,FALSE),F1412)","v":"Prêts hypothécaires assurés au cours de la période selon le pointage de crédit à l’initiation (%)"},{"$f":"IFERROR(VLOOKUP(G1412,Translation!$A:$C,3,FALSE),G1412)","v":"743.4"},{"$f":"IFERROR(VLOOKUP(H1412,Translation!$A:$C,3,FALSE),H1412)","v":"Terre-Neuve-et-Labrador"}]
[13,"Cumul 2017","PROPRIÉTAIRES-OCCUPANTS, À L’UNITÉ","Île-du-Prince-Édouard",737.34086986797058,"Prêts hypothécaires assurés au cours de la période selon le pointage de crédit à l’initiation (%)","737.3","Île-du-Prince-Édouard",{"$f":"IFERROR(VLOOKUP(A1413,Translation!$A:$C,3,FALSE),A1413)","v":13},{"$f":"IFERROR(VLOOKUP(B1413,Translation!$A:$C,3,FALSE),B1413)","v":"Cumul 2017"},{"$f":"IFERROR(VLOOKUP(C1413,Translation!$A:$C,3,FALSE),C1413)","v":"PROPRIÉTAIRES-OCCUPANTS, À L’UNITÉ"},{"$f":"IFERROR(VLOOKUP(D1413,Translation!$A:$C,3,FALSE),D1413)","v":"Île-du-Prince-Édouard"},{"$f":"IFERROR(VLOOKUP(E1413,Translation!$A:$C,3,FALSE),E1413)","v":737.34086986797058},{"$f":"IFERROR(VLOOKUP(F1413,Translation!$A:$C,3,FALSE),F1413)","v":"Prêts hypothécaires assurés au cours de la période selon le pointage de crédit à l’initiation (%)"},{"$f":"IFERROR(VLOOKUP(G1413,Translation!$A:$C,3,FALSE),G1413)","v":"737.3"},{"$f":"IFERROR(VLOOKUP(H1413,Translation!$A:$C,3,FALSE),H1413)","v":"Île-du-Prince-Édouard"}]
[13,"Cumul 2017","PROPRIÉTAIRES-OCCUPANTS, À L’UNITÉ","Nouvelle-Écosse",741.21555681734083,"Prêts hypothécaires assurés au cours de la période selon le pointage de crédit à l’initiation (%)","741.2","Nouvelle-Écosse",{"$f":"IFERROR(VLOOKUP(A1414,Translation!$A:$C,3,FALSE),A1414)","v":13},{"$f":"IFERROR(VLOOKUP(B1414,Translation!$A:$C,3,FALSE),B1414)","v":"Cumul 2017"},{"$f":"IFERROR(VLOOKUP(C1414,Translation!$A:$C,3,FALSE),C1414)","v":"PROPRIÉTAIRES-OCCUPANTS, À L’UNITÉ"},{"$f":"IFERROR(VLOOKUP(D1414,Translation!$A:$C,3,FALSE),D1414)","v":"Nouvelle-Écosse"},{"$f":"IFERROR(VLOOKUP(E1414,Translation!$A:$C,3,FALSE),E1414)","v":741.21555681734083},{"$f":"IFERROR(VLOOKUP(F1414,Translation!$A:$C,3,FALSE),F1414)","v":"Prêts hypothécaires assurés au cours de la période selon le pointage de crédit à l’initiation (%)"},{"$f":"IFERROR(VLOOKUP(G1414,Translation!$A:$C,3,FALSE),G1414)","v":"741.2"},{"$f":"IFERROR(VLOOKUP(H1414,Translation!$A:$C,3,FALSE),H1414)","v":"Nouvelle-Écosse"}]
[13,"Cumul 2017","PROPRIÉTAIRES-OCCUPANTS, À L’UNITÉ","Nouveau-Brunswick",743.02999573551858,"Prêts hypothécaires assurés au cours de la période selon le pointage de crédit à l’initiation (%)","743.0","Nouveau-Brunswick",{"$f":"IFERROR(VLOOKUP(A1415,Translation!$A:$C,3,FALSE),A1415)","v":13},{"$f":"IFERROR(VLOOKUP(B1415,Translation!$A:$C,3,FALSE),B1415)","v":"Cumul 2017"},{"$f":"IFERROR(VLOOKUP(C1415,Translation!$A:$C,3,FALSE),C1415)","v":"PROPRIÉTAIRES-OCCUPANTS, À L’UNITÉ"},{"$f":"IFERROR(VLOOKUP(D1415,Translation!$A:$C,3,FALSE),D1415)","v":"Nouveau-Brunswick"},{"$f":"IFERROR(VLOOKUP(E1415,Translation!$A:$C,3,FALSE),E1415)","v":743.02999573551858},{"$f":"IFERROR(VLOOKUP(F1415,Translation!$A:$C,3,FALSE),F1415)","v":"Prêts hypothécaires assurés au cours de la période selon le pointage de crédit à l’initiation (%)"},{"$f":"IFERROR(VLOOKUP(G1415,Translation!$A:$C,3,FALSE),G1415)","v":"743.0"},{"$f":"IFERROR(VLOOKUP(H1415,Translation!$A:$C,3,FALSE),H1415)","v":"Nouveau-Brunswick"}]
[13,"Cumul 2017","PROPRIÉTAIRES-OCCUPANTS, À L’UNITÉ","Québec",754.49861033073296,"Prêts hypothécaires assurés au cours de la période selon le pointage de crédit à l’initiation (%)","754.5","Québec",{"$f":"IFERROR(VLOOKUP(A1416,Translation!$A:$C,3,FALSE),A1416)","v":13},{"$f":"IFERROR(VLOOKUP(B1416,Translation!$A:$C,3,FALSE),B1416)","v":"Cumul 2017"},{"$f":"IFERROR(VLOOKUP(C1416,Translation!$A:$C,3,FALSE),C1416)","v":"PROPRIÉTAIRES-OCCUPANTS, À L’UNITÉ"},{"$f":"IFERROR(VLOOKUP(D1416,Translation!$A:$C,3,FALSE),D1416)","v":"Québec"},{"$f":"IFERROR(VLOOKUP(E1416,Translation!$A:$C,3,FALSE),E1416)","v":754.49861033073296},{"$f":"IFERROR(VLOOKUP(F1416,Translation!$A:$C,3,FALSE),F1416)","v":"Prêts hypothécaires assurés au cours de la période selon le pointage de crédit à l’initiation (%)"},{"$f":"IFERROR(VLOOKUP(G1416,Translation!$A:$C,3,FALSE),G1416)","v":"754.5"},{"$f":"IFERROR(VLOOKUP(H1416,Translation!$A:$C,3,FALSE),H1416)","v":"Québec"}]
[13,"Cumul 2017","PROPRIÉTAIRES-OCCUPANTS, À L’UNITÉ","Ontario",755.83991477780989,"Prêts hypothécaires assurés au cours de la période selon le pointage de crédit à l’initiation (%)","755.8","Ontario",{"$f":"IFERROR(VLOOKUP(A1417,Translation!$A:$C,3,FALSE),A1417)","v":13},{"$f":"IFERROR(VLOOKUP(B1417,Translation!$A:$C,3,FALSE),B1417)","v":"Cumul 2017"},{"$f":"IFERROR(VLOOKUP(C1417,Translation!$A:$C,3,FALSE),C1417)","v":"PROPRIÉTAIRES-OCCUPANTS, À L’UNITÉ"},{"$f":"IFERROR(VLOOKUP(D1417,Translation!$A:$C,3,FALSE),D1417)","v":"Ontario"},{"$f":"IFERROR(VLOOKUP(E1417,Translation!$A:$C,3,FALSE),E1417)","v":755.83991477780989},{"$f":"IFERROR(VLOOKUP(F1417,Translation!$A:$C,3,FALSE),F1417)","v":"Prêts hypothécaires assurés au cours de la période selon le pointage de crédit à l’initiation (%)"},{"$f":"IFERROR(VLOOKUP(G1417,Translation!$A:$C,3,FALSE),G1417)","v":"755.8"},{"$f":"IFERROR(VLOOKUP(H1417,Translation!$A:$C,3,FALSE),H1417)","v":"Ontario"}]
[13,"Cumul 2017","PROPRIÉTAIRES-OCCUPANTS, À L’UNITÉ","Manitoba",749.18032176674228,"Prêts hypothécaires assurés au cours de la période selon le pointage de crédit à l’initiation (%)","749.2","Manitoba",{"$f":"IFERROR(VLOOKUP(A1418,Translation!$A:$C,3,FALSE),A1418)","v":13},{"$f":"IFERROR(VLOOKUP(B1418,Translation!$A:$C,3,FALSE),B1418)","v":"Cumul 2017"},{"$f":"IFERROR(VLOOKUP(C1418,Translation!$A:$C,3,FALSE),C1418)","v":"PROPRIÉTAIRES-OCCUPANTS, À L’UNITÉ"},{"$f":"IFERROR(VLOOKUP(D1418,Translation!$A:$C,3,FALSE),D1418)","v":"Manitoba"},{"$f":"IFERROR(VLOOKUP(E1418,Translation!$A:$C,3,FALSE),E1418)","v":749.18032176674228},{"$f":"IFERROR(VLOOKUP(F1418,Translation!$A:$C,3,FALSE),F1418)","v":"Prêts hypothécaires assurés au cours de la période selon le pointage de crédit à l’initiation (%)"},{"$f":"IFERROR(VLOOKUP(G1418,Translation!$A:$C,3,FALSE),G1418)","v":"749.2"},{"$f":"IFERROR(VLOOKUP(H1418,Translation!$A:$C,3,FALSE),H1418)","v":"Manitoba"}]
[13,"Cumul 2017","PROPRIÉTAIRES-OCCUPANTS, À L’UNITÉ","Saskatchewan",745.87488089433771,"Prêts hypothécaires assurés au cours de la période selon le pointage de crédit à l’initiation (%)","745.9","Saskatchewan",{"$f":"IFERROR(VLOOKUP(A1419,Translation!$A:$C,3,FALSE),A1419)","v":13},{"$f":"IFERROR(VLOOKUP(B1419,Translation!$A:$C,3,FALSE),B1419)","v":"Cumul 2017"},{"$f":"IFERROR(VLOOKUP(C1419,Translation!$A:$C,3,FALSE),C1419)","v":"PROPRIÉTAIRES-OCCUPANTS, À L’UNITÉ"},{"$f":"IFERROR(VLOOKUP(D1419,Translation!$A:$C,3,FALSE),D1419)","v":"Saskatchewan"},{"$f":"IFERROR(VLOOKUP(E1419,Translation!$A:$C,3,FALSE),E1419)","v":745.87488089433771},{"$f":"IFERROR(VLOOKUP(F1419,Translation!$A:$C,3,FALSE),F1419)","v":"Prêts hypothécaires assurés au cours de la période selon le pointage de crédit à l’initiation (%)"},{"$f":"IFERROR(VLOOKUP(G1419,Translation!$A:$C,3,FALSE),G1419)","v":"745.9"},{"$f":"IFERROR(VLOOKUP(H1419,Translation!$A:$C,3,FALSE),H1419)","v":"Saskatchewan"}]
[13,"Cumul 2017","PROPRIÉTAIRES-OCCUPANTS, À L’UNITÉ","Alberta",747.05979024377314,"Prêts hypothécaires assurés au cours de la période selon le pointage de crédit à l’initiation (%)","747.1","Alberta",{"$f":"IFERROR(VLOOKUP(A1420,Translation!$A:$C,3,FALSE),A1420)","v":13},{"$f":"IFERROR(VLOOKUP(B1420,Translation!$A:$C,3,FALSE),B1420)","v":"Cumul 2017"},{"$f":"IFERROR(VLOOKUP(C1420,Translation!$A:$C,3,FALSE),C1420)","v":"PROPRIÉTAIRES-OCCUPANTS, À L’UNITÉ"},{"$f":"IFERROR(VLOOKUP(D1420,Translation!$A:$C,3,FALSE),D1420)","v":"Alberta"},{"$f":"IFERROR(VLOOKUP(E1420,Translation!$A:$C,3,FALSE),E1420)","v":747.05979024377314},{"$f":"IFERROR(VLOOKUP(F1420,Translation!$A:$C,3,FALSE),F1420)","v":"Prêts hypothécaires assurés au cours de la période selon le pointage de crédit à l’initiation (%)"},{"$f":"IFERROR(VLOOKUP(G1420,Translation!$A:$C,3,FALSE),G1420)","v":"747.1"},{"$f":"IFERROR(VLOOKUP(H1420,Translation!$A:$C,3,FALSE),H1420)","v":"Alberta"}]
[13,"Cumul 2017","PROPRIÉTAIRES-OCCUPANTS, À L’UNITÉ","Colombie-Britannique",751.12377416474021,"Prêts hypothécaires assurés au cours de la période selon le pointage de crédit à l’initiation (%)","751.1","Colombie-Britannique",{"$f":"IFERROR(VLOOKUP(A1421,Translation!$A:$C,3,FALSE),A1421)","v":13},{"$f":"IFERROR(VLOOKUP(B1421,Translation!$A:$C,3,FALSE),B1421)","v":"Cumul 2017"},{"$f":"IFERROR(VLOOKUP(C1421,Translation!$A:$C,3,FALSE),C1421)","v":"PROPRIÉTAIRES-OCCUPANTS, À L’UNITÉ"},{"$f":"IFERROR(VLOOKUP(D1421,Translation!$A:$C,3,FALSE),D1421)","v":"Colombie-Britannique"},{"$f":"IFERROR(VLOOKUP(E1421,Translation!$A:$C,3,FALSE),E1421)","v":751.12377416474021},{"$f":"IFERROR(VLOOKUP(F1421,Translation!$A:$C,3,FALSE),F1421)","v":"Prêts hypothécaires assurés au cours de la période selon le pointage de crédit à l’initiation (%)"},{"$f":"IFERROR(VLOOKUP(G1421,Translation!$A:$C,3,FALSE),G1421)","v":"751.1"},{"$f":"IFERROR(VLOOKUP(H1421,Translation!$A:$C,3,FALSE),H1421)","v":"Colombie-Britannique"}]
[13,"Cumul 2017","PROPRIÉTAIRES-OCCUPANTS, À L’UNITÉ","Territoires",746.00671427496047,"Prêts hypothécaires assurés au cours de la période selon le pointage de crédit à l’initiation (%)","746.0","Territoires",{"$f":"IFERROR(VLOOKUP(A1422,Translation!$A:$C,3,FALSE),A1422)","v":13},{"$f":"IFERROR(VLOOKUP(B1422,Translation!$A:$C,3,FALSE),B1422)","v":"Cumul 2017"},{"$f":"IFERROR(VLOOKUP(C1422,Translation!$A:$C,3,FALSE),C1422)","v":"PROPRIÉTAIRES-OCCUPANTS, À L’UNITÉ"},{"$f":"IFERROR(VLOOKUP(D1422,Translation!$A:$C,3,FALSE),D1422)","v":"Territoires"},{"$f":"IFERROR(VLOOKUP(E1422,Translation!$A:$C,3,FALSE),E1422)","v":746.00671427496047},{"$f":"IFERROR(VLOOKUP(F1422,Translation!$A:$C,3,FALSE),F1422)","v":"Prêts hypothécaires assurés au cours de la période selon le pointage de crédit à l’initiation (%)"},{"$f":"IFERROR(VLOOKUP(G1422,Translation!$A:$C,3,FALSE),G1422)","v":"746.0"},{"$f":"IFERROR(VLOOKUP(H1422,Translation!$A:$C,3,FALSE),H1422)","v":"Territoires"}]
[13,"T4 2018","ASSURANCE DE PORTEFEUILLE","Aucun pointage de crédit",9.6493126081968139E-2,"Prêts hypothécaires assurés au cours de la période selon le pointage de crédit à l’initiation (%)","0.1","Aucun pointage de crédit",{"$f":"IFERROR(VLOOKUP(A1423,Translation!$A:$C,3,FALSE),A1423)","v":13},{"$f":"IFERROR(VLOOKUP(B1423,Translation!$A:$C,3,FALSE),B1423)","v":"T4 2018"},{"$f":"IFERROR(VLOOKUP(C1423,Translation!$A:$C,3,FALSE),C1423)","v":"ASSURANCE DE PORTEFEUILLE"},{"$f":"IFERROR(VLOOKUP(D1423,Translation!$A:$C,3,FALSE),D1423)","v":"Aucun pointage de crédit"},{"$f":"IFERROR(VLOOKUP(E1423,Translation!$A:$C,3,FALSE),E1423)","v":9.6493126081968139E-2},{"$f":"IFERROR(VLOOKUP(F1423,Translation!$A:$C,3,FALSE),F1423)","v":"Prêts hypothécaires assurés au cours de la période selon le pointage de crédit à l’initiation (%)"},{"$f":"IFERROR(VLOOKUP(G1423,Translation!$A:$C,3,FALSE),G1423)","v":"0.1"},{"$f":"IFERROR(VLOOKUP(H1423,Translation!$A:$C,3,FALSE),H1423)","v":"Aucun pointage de crédit"}]
[13,"Cumul 2017","ASSURANCE DE PORTEFEUILLE","Aucun pointage de crédit",9.8127807396582958E-2,"Prêts hypothécaires assurés au cours de la période selon le pointage de crédit à l’initiation (%)","0.1","Aucun pointage de crédit",{"$f":"IFERROR(VLOOKUP(A1424,Translation!$A:$C,3,FALSE),A1424)","v":13},{"$f":"IFERROR(VLOOKUP(B1424,Translation!$A:$C,3,FALSE),B1424)","v":"Cumul 2017"},{"$f":"IFERROR(VLOOKUP(C1424,Translation!$A:$C,3,FALSE),C1424)","v":"ASSURANCE DE PORTEFEUILLE"},{"$f":"IFERROR(VLOOKUP(D1424,Translation!$A:$C,3,FALSE),D1424)","v":"Aucun pointage de crédit"},{"$f":"IFERROR(VLOOKUP(E1424,Translation!$A:$C,3,FALSE),E1424)","v":9.8127807396582958E-2},{"$f":"IFERROR(VLOOKUP(F1424,Translation!$A:$C,3,FALSE),F1424)","v":"Prêts hypothécaires assurés au cours de la période selon le pointage de crédit à l’initiation (%)"},{"$f":"IFERROR(VLOOKUP(G1424,Translation!$A:$C,3,FALSE),G1424)","v":"0.1"},{"$f":"IFERROR(VLOOKUP(H1424,Translation!$A:$C,3,FALSE),H1424)","v":"Aucun pointage de crédit"}]
[13,"T4 2018","ASSURANCE DE PORTEFEUILLE","< 600",0.27368714288820845,"Prêts hypothécaires assurés au cours de la période selon le pointage de crédit à l’initiation (%)","0.3"," < 600",{"$f":"IFERROR(VLOOKUP(A1425,Translation!$A:$C,3,FALSE),A1425)","v":13},{"$f":"IFERROR(VLOOKUP(B1425,Translation!$A:$C,3,FALSE),B1425)","v":"T4 2018"},{"$f":"IFERROR(VLOOKUP(C1425,Translation!$A:$C,3,FALSE),C1425)","v":"ASSURANCE DE PORTEFEUILLE"},{"$f":"IFERROR(VLOOKUP(D1425,Translation!$A:$C,3,FALSE),D1425)","v":"< 600"},{"$f":"IFERROR(VLOOKUP(E1425,Translation!$A:$C,3,FALSE),E1425)","v":0.27368714288820845},{"$f":"IFERROR(VLOOKUP(F1425,Translation!$A:$C,3,FALSE),F1425)","v":"Prêts hypothécaires assurés au cours de la période selon le pointage de crédit à l’initiation (%)"},{"$f":"IFERROR(VLOOKUP(G1425,Translation!$A:$C,3,FALSE),G1425)","v":"0.3"},{"$f":"IFERROR(VLOOKUP(H1425,Translation!$A:$C,3,FALSE),H1425)","v":" < 600"}]
[13,"Cumul 2017","ASSURANCE DE PORTEFEUILLE","< 600",0.62609970231722112,"Prêts hypothécaires assurés au cours de la période selon le pointage de crédit à l’initiation (%)","0.6"," < 600",{"$f":"IFERROR(VLOOKUP(A1426,Translation!$A:$C,3,FALSE),A1426)","v":13},{"$f":"IFERROR(VLOOKUP(B1426,Translation!$A:$C,3,FALSE),B1426)","v":"Cumul 2017"},{"$f":"IFERROR(VLOOKUP(C1426,Translation!$A:$C,3,FALSE),C1426)","v":"ASSURANCE DE PORTEFEUILLE"},{"$f":"IFERROR(VLOOKUP(D1426,Translation!$A:$C,3,FALSE),D1426)","v":"< 600"},{"$f":"IFERROR(VLOOKUP(E1426,Translation!$A:$C,3,FALSE),E1426)","v":0.62609970231722112},{"$f":"IFERROR(VLOOKUP(F1426,Translation!$A:$C,3,FALSE),F1426)","v":"Prêts hypothécaires assurés au cours de la période selon le pointage de crédit à l’initiation (%)"},{"$f":"IFERROR(VLOOKUP(G1426,Translation!$A:$C,3,FALSE),G1426)","v":"0.6"},{"$f":"IFERROR(VLOOKUP(H1426,Translation!$A:$C,3,FALSE),H1426)","v":" < 600"}]
[13,"T4 2018","ASSURANCE DE PORTEFEUILLE",">= 600 < 680",3.0712700917511424,"Prêts hypothécaires assurés au cours de la période selon le pointage de crédit à l’initiation (%)","3.1"," >= 600 < 680",{"$f":"IFERROR(VLOOKUP(A1427,Translation!$A:$C,3,FALSE),A1427)","v":13},{"$f":"IFERROR(VLOOKUP(B1427,Translation!$A:$C,3,FALSE),B1427)","v":"T4 2018"},{"$f":"IFERROR(VLOOKUP(C1427,Translation!$A:$C,3,FALSE),C1427)","v":"ASSURANCE DE PORTEFEUILLE"},{"$f":"IFERROR(VLOOKUP(D1427,Translation!$A:$C,3,FALSE),D1427)","v":">= 600 < 680"},{"$f":"IFERROR(VLOOKUP(E1427,Translation!$A:$C,3,FALSE),E1427)","v":3.0712700917511424},{"$f":"IFERROR(VLOOKUP(F1427,Translation!$A:$C,3,FALSE),F1427)","v":"Prêts hypothécaires assurés au cours de la période selon le pointage de crédit à l’initiation (%)"},{"$f":"IFERROR(VLOOKUP(G1427,Translation!$A:$C,3,FALSE),G1427)","v":"3.1"},{"$f":"IFERROR(VLOOKUP(H1427,Translation!$A:$C,3,FALSE),H1427)","v":" >= 600 < 680"}]
[13,"Cumul 2017","ASSURANCE DE PORTEFEUILLE",">= 600 < 680",9.770730250585256,"Prêts hypothécaires assurés au cours de la période selon le pointage de crédit à l’initiation (%)","9.8"," >= 600 < 680",{"$f":"IFERROR(VLOOKUP(A1428,Translation!$A:$C,3,FALSE),A1428)","v":13},{"$f":"IFERROR(VLOOKUP(B1428,Translation!$A:$C,3,FALSE),B1428)","v":"Cumul 2017"},{"$f":"IFERROR(VLOOKUP(C1428,Translation!$A:$C,3,FALSE),C1428)","v":"ASSURANCE DE PORTEFEUILLE"},{"$f":"IFERROR(VLOOKUP(D1428,Translation!$A:$C,3,FALSE),D1428)","v":">= 600 < 680"},{"$f":"IFERROR(VLOOKUP(E1428,Translation!$A:$C,3,FALSE),E1428)","v":9.770730250585256},{"$f":"IFERROR(VLOOKUP(F1428,Translation!$A:$C,3,FALSE),F1428)","v":"Prêts hypothécaires assurés au cours de la période selon le pointage de crédit à l’initiation (%)"},{"$f":"IFERROR(VLOOKUP(G1428,Translation!$A:$C,3,FALSE),G1428)","v":"9.8"},{"$f":"IFERROR(VLOOKUP(H1428,Translation!$A:$C,3,FALSE),H1428)","v":" >= 600 < 680"}]
[13,"T4 2018","ASSURANCE DE PORTEFEUILLE",">= 680 < 700",2.7908993596325642,"Prêts hypothécaires assurés au cours de la période selon le pointage de crédit à l’initiation (%)","2.8"," >= 680 < 700",{"$f":"IFERROR(VLOOKUP(A1429,Translation!$A:$C,3,FALSE),A1429)","v":13},{"$f":"IFERROR(VLOOKUP(B1429,Translation!$A:$C,3,FALSE),B1429)","v":"T4 2018"},{"$f":"IFERROR(VLOOKUP(C1429,Translation!$A:$C,3,FALSE),C1429)","v":"ASSURANCE DE PORTEFEUILLE"},{"$f":"IFERROR(VLOOKUP(D1429,Translation!$A:$C,3,FALSE),D1429)","v":">= 680 < 700"},{"$f":"IFERROR(VLOOKUP(E1429,Translation!$A:$C,3,FALSE),E1429)","v":2.7908993596325642},{"$f":"IFERROR(VLOOKUP(F1429,Translation!$A:$C,3,FALSE),F1429)","v":"Prêts hypothécaires assurés au cours de la période selon le pointage de crédit à l’initiation (%)"},{"$f":"IFERROR(VLOOKUP(G1429,Translation!$A:$C,3,FALSE),G1429)","v":"2.8"},{"$f":"IFERROR(VLOOKUP(H1429,Translation!$A:$C,3,FALSE),H1429)","v":" >= 680 < 700"}]
[13,"Cumul 2017","ASSURANCE DE PORTEFEUILLE",">= 680 < 700",6.1795859056824876,"Prêts hypothécaires assurés au cours de la période selon le pointage de crédit à l’initiation (%)","6.2"," >= 680 < 700",{"$f":"IFERROR(VLOOKUP(A1430,Translation!$A:$C,3,FALSE),A1430)","v":13},{"$f":"IFERROR(VLOOKUP(B1430,Translation!$A:$C,3,FALSE),B1430)","v":"Cumul 2017"},{"$f":"IFERROR(VLOOKUP(C1430,Translation!$A:$C,3,FALSE),C1430)","v":"ASSURANCE DE PORTEFEUILLE"},{"$f":"IFERROR(VLOOKUP(D1430,Translation!$A:$C,3,FALSE),D1430)","v":">= 680 < 700"},{"$f":"IFERROR(VLOOKUP(E1430,Translation!$A:$C,3,FALSE),E1430)","v":6.1795859056824876},{"$f":"IFERROR(VLOOKUP(F1430,Translation!$A:$C,3,FALSE),F1430)","v":"Prêts hypothécaires assurés au cours de la période selon le pointage de crédit à l’initiation (%)"},{"$f":"IFERROR(VLOOKUP(G1430,Translation!$A:$C,3,FALSE),G1430)","v":"6.2"},{"$f":"IFERROR(VLOOKUP(H1430,Translation!$A:$C,3,FALSE),H1430)","v":" >= 680 < 700"}]
[13,"T4 2018","ASSURANCE DE PORTEFEUILLE",">= 700 < 750",17.983021402217979,"Prêts hypothécaires assurés au cours de la période selon le pointage de crédit à l’initiation (%)","18.0"," >= 700 < 750",{"$f":"IFERROR(VLOOKUP(A1431,Translation!$A:$C,3,FALSE),A1431)","v":13},{"$f":"IFERROR(VLOOKUP(B1431,Translation!$A:$C,3,FALSE),B1431)","v":"T4 2018"},{"$f":"IFERROR(VLOOKUP(C1431,Translation!$A:$C,3,FALSE),C1431)","v":"ASSURANCE DE PORTEFEUILLE"},{"$f":"IFERROR(VLOOKUP(D1431,Translation!$A:$C,3,FALSE),D1431)","v":">= 700 < 750"},{"$f":"IFERROR(VLOOKUP(E1431,Translation!$A:$C,3,FALSE),E1431)","v":17.983021402217979},{"$f":"IFERROR(VLOOKUP(F1431,Translation!$A:$C,3,FALSE),F1431)","v":"Prêts hypothécaires assurés au cours de la période selon le pointage de crédit à l’initiation (%)"},{"$f":"IFERROR(VLOOKUP(G1431,Translation!$A:$C,3,FALSE),G1431)","v":"18.0"},{"$f":"IFERROR(VLOOKUP(H1431,Translation!$A:$C,3,FALSE),H1431)","v":" >= 700 < 750"}]
[13,"Cumul 2017","ASSURANCE DE PORTEFEUILLE",">= 700 < 750",22.308775902212833,"Prêts hypothécaires assurés au cours de la période selon le pointage de crédit à l’initiation (%)","22.3"," >= 700 < 750",{"$f":"IFERROR(VLOOKUP(A1432,Translation!$A:$C,3,FALSE),A1432)","v":13},{"$f":"IFERROR(VLOOKUP(B1432,Translation!$A:$C,3,FALSE),B1432)","v":"Cumul 2017"},{"$f":"IFERROR(VLOOKUP(C1432,Translation!$A:$C,3,FALSE),C1432)","v":"ASSURANCE DE PORTEFEUILLE"},{"$f":"IFERROR(VLOOKUP(D1432,Translation!$A:$C,3,FALSE),D1432)","v":">= 700 < 750"},{"$f":"IFERROR(VLOOKUP(E1432,Translation!$A:$C,3,FALSE),E1432)","v":22.308775902212833},{"$f":"IFERROR(VLOOKUP(F1432,Translation!$A:$C,3,FALSE),F1432)","v":"Prêts hypothécaires assurés au cours de la période selon le pointage de crédit à l’initiation (%)"},{"$f":"IFERROR(VLOOKUP(G1432,Translation!$A:$C,3,FALSE),G1432)","v":"22.3"},{"$f":"IFERROR(VLOOKUP(H1432,Translation!$A:$C,3,FALSE),H1432)","v":" >= 700 < 750"}]
[13,"T4 2018","ASSURANCE DE PORTEFEUILLE",">= 750 < 780",28.50957612185562,"Prêts hypothécaires assurés au cours de la période selon le pointage de crédit à l’initiation (%)","28.5"," >= 750 < 780",{"$f":"IFERROR(VLOOKUP(A1433,Translation!$A:$C,3,FALSE),A1433)","v":13},{"$f":"IFERROR(VLOOKUP(B1433,Translation!$A:$C,3,FALSE),B1433)","v":"T4 2018"},{"$f":"IFERROR(VLOOKUP(C1433,Translation!$A:$C,3,FALSE),C1433)","v":"ASSURANCE DE PORTEFEUILLE"},{"$f":"IFERROR(VLOOKUP(D1433,Translation!$A:$C,3,FALSE),D1433)","v":">= 750 < 780"},{"$f":"IFERROR(VLOOKUP(E1433,Translation!$A:$C,3,FALSE),E1433)","v":28.50957612185562},{"$f":"IFERROR(VLOOKUP(F1433,Translation!$A:$C,3,FALSE),F1433)","v":"Prêts hypothécaires assurés au cours de la période selon le pointage de crédit à l’initiation (%)"},{"$f":"IFERROR(VLOOKUP(G1433,Translation!$A:$C,3,FALSE),G1433)","v":"28.5"},{"$f":"IFERROR(VLOOKUP(H1433,Translation!$A:$C,3,FALSE),H1433)","v":" >= 750 < 780"}]
[13,"Cumul 2017","ASSURANCE DE PORTEFEUILLE",">= 750 < 780",24.099033323057714,"Prêts hypothécaires assurés au cours de la période selon le pointage de crédit à l’initiation (%)","24.1"," >= 750 < 780",{"$f":"IFERROR(VLOOKUP(A1434,Translation!$A:$C,3,FALSE),A1434)","v":13},{"$f":"IFERROR(VLOOKUP(B1434,Translation!$A:$C,3,FALSE),B1434)","v":"Cumul 2017"},{"$f":"IFERROR(VLOOKUP(C1434,Translation!$A:$C,3,FALSE),C1434)","v":"ASSURANCE DE PORTEFEUILLE"},{"$f":"IFERROR(VLOOKUP(D1434,Translation!$A:$C,3,FALSE),D1434)","v":">= 750 < 780"},{"$f":"IFERROR(VLOOKUP(E1434,Translation!$A:$C,3,FALSE),E1434)","v":24.099033323057714},{"$f":"IFERROR(VLOOKUP(F1434,Translation!$A:$C,3,FALSE),F1434)","v":"Prêts hypothécaires assurés au cours de la période selon le pointage de crédit à l’initiation (%)"},{"$f":"IFERROR(VLOOKUP(G1434,Translation!$A:$C,3,FALSE),G1434)","v":"24.1"},{"$f":"IFERROR(VLOOKUP(H1434,Translation!$A:$C,3,FALSE),H1434)","v":" >= 750 < 780"}]
[13,"T4 2018","ASSURANCE DE PORTEFEUILLE",">= 780",47.27505275557251,"Prêts hypothécaires assurés au cours de la période selon le pointage de crédit à l’initiation (%)","47.3"," >= 780",{"$f":"IFERROR(VLOOKUP(A1435,Translation!$A:$C,3,FALSE),A1435)","v":13},{"$f":"IFERROR(VLOOKUP(B1435,Translation!$A:$C,3,FALSE),B1435)","v":"T4 2018"},{"$f":"IFERROR(VLOOKUP(C1435,Translation!$A:$C,3,FALSE),C1435)","v":"ASSURANCE DE PORTEFEUILLE"},{"$f":"IFERROR(VLOOKUP(D1435,Translation!$A:$C,3,FALSE),D1435)","v":">= 780"},{"$f":"IFERROR(VLOOKUP(E1435,Translation!$A:$C,3,FALSE),E1435)","v":47.27505275557251},{"$f":"IFERROR(VLOOKUP(F1435,Translation!$A:$C,3,FALSE),F1435)","v":"Prêts hypothécaires assurés au cours de la période selon le pointage de crédit à l’initiation (%)"},{"$f":"IFERROR(VLOOKUP(G1435,Translation!$A:$C,3,FALSE),G1435)","v":"47.3"},{"$f":"IFERROR(VLOOKUP(H1435,Translation!$A:$C,3,FALSE),H1435)","v":" >= 780"}]
[13,"Cumul 2017","ASSURANCE DE PORTEFEUILLE",">= 780",36.917647108747907,"Prêts hypothécaires assurés au cours de la période selon le pointage de crédit à l’initiation (%)","36.9"," >= 780",{"$f":"IFERROR(VLOOKUP(A1436,Translation!$A:$C,3,FALSE),A1436)","v":13},{"$f":"IFERROR(VLOOKUP(B1436,Translation!$A:$C,3,FALSE),B1436)","v":"Cumul 2017"},{"$f":"IFERROR(VLOOKUP(C1436,Translation!$A:$C,3,FALSE),C1436)","v":"ASSURANCE DE PORTEFEUILLE"},{"$f":"IFERROR(VLOOKUP(D1436,Translation!$A:$C,3,FALSE),D1436)","v":">= 780"},{"$f":"IFERROR(VLOOKUP(E1436,Translation!$A:$C,3,FALSE),E1436)","v":36.917647108747907},{"$f":"IFERROR(VLOOKUP(F1436,Translation!$A:$C,3,FALSE),F1436)","v":"Prêts hypothécaires assurés au cours de la période selon le pointage de crédit à l’initiation (%)"},{"$f":"IFERROR(VLOOKUP(G1436,Translation!$A:$C,3,FALSE),G1436)","v":"36.9"},{"$f":"IFERROR(VLOOKUP(H1436,Translation!$A:$C,3,FALSE),H1436)","v":" >= 780"}]
[13,"T4 2018","ASSURANCE DE PORTEFEUILLE","Pointage de crédit moyen à l'initiation ",769.13522286173247,"Prêts hypothécaires assurés au cours de la période selon le pointage de crédit à l’initiation (%)","769.1","Pointage de crédit moyen à l'initiation ",{"$f":"IFERROR(VLOOKUP(A1437,Translation!$A:$C,3,FALSE),A1437)","v":13},{"$f":"IFERROR(VLOOKUP(B1437,Translation!$A:$C,3,FALSE),B1437)","v":"T4 2018"},{"$f":"IFERROR(VLOOKUP(C1437,Translation!$A:$C,3,FALSE),C1437)","v":"ASSURANCE DE PORTEFEUILLE"},{"$f":"IFERROR(VLOOKUP(D1437,Translation!$A:$C,3,FALSE),D1437)","v":"Pointage de crédit moyen à l'initiation "},{"$f":"IFERROR(VLOOKUP(E1437,Translation!$A:$C,3,FALSE),E1437)","v":769.13522286173247},{"$f":"IFERROR(VLOOKUP(F1437,Translation!$A:$C,3,FALSE),F1437)","v":"Prêts hypothécaires assurés au cours de la période selon le pointage de crédit à l’initiation (%)"},{"$f":"IFERROR(VLOOKUP(G1437,Translation!$A:$C,3,FALSE),G1437)","v":"769.1"},{"$f":"IFERROR(VLOOKUP(H1437,Translation!$A:$C,3,FALSE),H1437)","v":"Pointage de crédit moyen à l'initiation "}]
[13,"Cumul 2017","ASSURANCE DE PORTEFEUILLE","Pointage de crédit moyen à l'initiation ",752.74744383863106,"Prêts hypothécaires assurés au cours de la période selon le pointage de crédit à l’initiation (%)","752.7","Pointage de crédit moyen à l'initiation ",{"$f":"IFERROR(VLOOKUP(A1438,Translation!$A:$C,3,FALSE),A1438)","v":13},{"$f":"IFERROR(VLOOKUP(B1438,Translation!$A:$C,3,FALSE),B1438)","v":"Cumul 2017"},{"$f":"IFERROR(VLOOKUP(C1438,Translation!$A:$C,3,FALSE),C1438)","v":"ASSURANCE DE PORTEFEUILLE"},{"$f":"IFERROR(VLOOKUP(D1438,Translation!$A:$C,3,FALSE),D1438)","v":"Pointage de crédit moyen à l'initiation "},{"$f":"IFERROR(VLOOKUP(E1438,Translation!$A:$C,3,FALSE),E1438)","v":752.74744383863106},{"$f":"IFERROR(VLOOKUP(F1438,Translation!$A:$C,3,FALSE),F1438)","v":"Prêts hypothécaires assurés au cours de la période selon le pointage de crédit à l’initiation (%)"},{"$f":"IFERROR(VLOOKUP(G1438,Translation!$A:$C,3,FALSE),G1438)","v":"752.7"},{"$f":"IFERROR(VLOOKUP(H1438,Translation!$A:$C,3,FALSE),H1438)","v":"Pointage de crédit moyen à l'initiation "}]
[13,"T4 2018","ASSURANCE DE PORTEFEUILLE","Terre-Neuve-et-Labrador",757.71631849992093,"Prêts hypothécaires assurés au cours de la période selon le pointage de crédit à l’initiation (%)","757.7","Terre-Neuve-et-Labrador",{"$f":"IFERROR(VLOOKUP(A1439,Translation!$A:$C,3,FALSE),A1439)","v":13},{"$f":"IFERROR(VLOOKUP(B1439,Translation!$A:$C,3,FALSE),B1439)","v":"T4 2018"},{"$f":"IFERROR(VLOOKUP(C1439,Translation!$A:$C,3,FALSE),C1439)","v":"ASSURANCE DE PORTEFEUILLE"},{"$f":"IFERROR(VLOOKUP(D1439,Translation!$A:$C,3,FALSE),D1439)","v":"Terre-Neuve-et-Labrador"},{"$f":"IFERROR(VLOOKUP(E1439,Translation!$A:$C,3,FALSE),E1439)","v":757.71631849992093},{"$f":"IFERROR(VLOOKUP(F1439,Translation!$A:$C,3,FALSE),F1439)","v":"Prêts hypothécaires assurés au cours de la période selon le pointage de crédit à l’initiation (%)"},{"$f":"IFERROR(VLOOKUP(G1439,Translation!$A:$C,3,FALSE),G1439)","v":"757.7"},{"$f":"IFERROR(VLOOKUP(H1439,Translation!$A:$C,3,FALSE),H1439)","v":"Terre-Neuve-et-Labrador"}]
[13,"T4 2018","ASSURANCE DE PORTEFEUILLE","Île-du-Prince-Édouard",719.35318033988096,"Prêts hypothécaires assurés au cours de la période selon le pointage de crédit à l’initiation (%)","719.4","Île-du-Prince-Édouard",{"$f":"IFERROR(VLOOKUP(A1440,Translation!$A:$C,3,FALSE),A1440)","v":13},{"$f":"IFERROR(VLOOKUP(B1440,Translation!$A:$C,3,FALSE),B1440)","v":"T4 2018"},{"$f":"IFERROR(VLOOKUP(C1440,Translation!$A:$C,3,FALSE),C1440)","v":"ASSURANCE DE PORTEFEUILLE"},{"$f":"IFERROR(VLOOKUP(D1440,Translation!$A:$C,3,FALSE),D1440)","v":"Île-du-Prince-Édouard"},{"$f":"IFERROR(VLOOKUP(E1440,Translation!$A:$C,3,FALSE),E1440)","v":719.35318033988096},{"$f":"IFERROR(VLOOKUP(F1440,Translation!$A:$C,3,FALSE),F1440)","v":"Prêts hypothécaires assurés au cours de la période selon le pointage de crédit à l’initiation (%)"},{"$f":"IFERROR(VLOOKUP(G1440,Translation!$A:$C,3,FALSE),G1440)","v":"719.4"},{"$f":"IFERROR(VLOOKUP(H1440,Translation!$A:$C,3,FALSE),H1440)","v":"Île-du-Prince-Édouard"}]
[13,"T4 2018","ASSURANCE DE PORTEFEUILLE","Nouvelle-Écosse",751.25240697494019,"Prêts hypothécaires assurés au cours de la période selon le pointage de crédit à l’initiation (%)","751.3","Nouvelle-Écosse",{"$f":"IFERROR(VLOOKUP(A1441,Translation!$A:$C,3,FALSE),A1441)","v":13},{"$f":"IFERROR(VLOOKUP(B1441,Translation!$A:$C,3,FALSE),B1441)","v":"T4 2018"},{"$f":"IFERROR(VLOOKUP(C1441,Translation!$A:$C,3,FALSE),C1441)","v":"ASSURANCE DE PORTEFEUILLE"},{"$f":"IFERROR(VLOOKUP(D1441,Translation!$A:$C,3,FALSE),D1441)","v":"Nouvelle-Écosse"},{"$f":"IFERROR(VLOOKUP(E1441,Translation!$A:$C,3,FALSE),E1441)","v":751.25240697494019},{"$f":"IFERROR(VLOOKUP(F1441,Translation!$A:$C,3,FALSE),F1441)","v":"Prêts hypothécaires assurés au cours de la période selon le pointage de crédit à l’initiation (%)"},{"$f":"IFERROR(VLOOKUP(G1441,Translation!$A:$C,3,FALSE),G1441)","v":"751.3"},{"$f":"IFERROR(VLOOKUP(H1441,Translation!$A:$C,3,FALSE),H1441)","v":"Nouvelle-Écosse"}]
[13,"T4 2018","ASSURANCE DE PORTEFEUILLE","Nouveau-Brunswick",732.06018684941773,"Prêts hypothécaires assurés au cours de la période selon le pointage de crédit à l’initiation (%)","732.1","Nouveau-Brunswick",{"$f":"IFERROR(VLOOKUP(A1442,Translation!$A:$C,3,FALSE),A1442)","v":13},{"$f":"IFERROR(VLOOKUP(B1442,Translation!$A:$C,3,FALSE),B1442)","v":"T4 2018"},{"$f":"IFERROR(VLOOKUP(C1442,Translation!$A:$C,3,FALSE),C1442)","v":"ASSURANCE DE PORTEFEUILLE"},{"$f":"IFERROR(VLOOKUP(D1442,Translation!$A:$C,3,FALSE),D1442)","v":"Nouveau-Brunswick"},{"$f":"IFERROR(VLOOKUP(E1442,Translation!$A:$C,3,FALSE),E1442)","v":732.06018684941773},{"$f":"IFERROR(VLOOKUP(F1442,Translation!$A:$C,3,FALSE),F1442)","v":"Prêts hypothécaires assurés au cours de la période selon le pointage de crédit à l’initiation (%)"},{"$f":"IFERROR(VLOOKUP(G1442,Translation!$A:$C,3,FALSE),G1442)","v":"732.1"},{"$f":"IFERROR(VLOOKUP(H1442,Translation!$A:$C,3,FALSE),H1442)","v":"Nouveau-Brunswick"}]
[13,"T4 2018","ASSURANCE DE PORTEFEUILLE","Québec",776.22465484990971,"Prêts hypothécaires assurés au cours de la période selon le pointage de crédit à l’initiation (%)","776.2","Québec",{"$f":"IFERROR(VLOOKUP(A1443,Translation!$A:$C,3,FALSE),A1443)","v":13},{"$f":"IFERROR(VLOOKUP(B1443,Translation!$A:$C,3,FALSE),B1443)","v":"T4 2018"},{"$f":"IFERROR(VLOOKUP(C1443,Translation!$A:$C,3,FALSE),C1443)","v":"ASSURANCE DE PORTEFEUILLE"},{"$f":"IFERROR(VLOOKUP(D1443,Translation!$A:$C,3,FALSE),D1443)","v":"Québec"},{"$f":"IFERROR(VLOOKUP(E1443,Translation!$A:$C,3,FALSE),E1443)","v":776.22465484990971},{"$f":"IFERROR(VLOOKUP(F1443,Translation!$A:$C,3,FALSE),F1443)","v":"Prêts hypothécaires assurés au cours de la période selon le pointage de crédit à l’initiation (%)"},{"$f":"IFERROR(VLOOKUP(G1443,Translation!$A:$C,3,FALSE),G1443)","v":"776.2"},{"$f":"IFERROR(VLOOKUP(H1443,Translation!$A:$C,3,FALSE),H1443)","v":"Québec"}]
[13,"T4 2018","ASSURANCE DE PORTEFEUILLE","Ontario",768.232694211384,"Prêts hypothécaires assurés au cours de la période selon le pointage de crédit à l’initiation (%)","768.2","Ontario",{"$f":"IFERROR(VLOOKUP(A1444,Translation!$A:$C,3,FALSE),A1444)","v":13},{"$f":"IFERROR(VLOOKUP(B1444,Translation!$A:$C,3,FALSE),B1444)","v":"T4 2018"},{"$f":"IFERROR(VLOOKUP(C1444,Translation!$A:$C,3,FALSE),C1444)","v":"ASSURANCE DE PORTEFEUILLE"},{"$f":"IFERROR(VLOOKUP(D1444,Translation!$A:$C,3,FALSE),D1444)","v":"Ontario"},{"$f":"IFERROR(VLOOKUP(E1444,Translation!$A:$C,3,FALSE),E1444)","v":768.232694211384},{"$f":"IFERROR(VLOOKUP(F1444,Translation!$A:$C,3,FALSE),F1444)","v":"Prêts hypothécaires assurés au cours de la période selon le pointage de crédit à l’initiation (%)"},{"$f":"IFERROR(VLOOKUP(G1444,Translation!$A:$C,3,FALSE),G1444)","v":"768.2"},{"$f":"IFERROR(VLOOKUP(H1444,Translation!$A:$C,3,FALSE),H1444)","v":"Ontario"}]
[13,"T4 2018","ASSURANCE DE PORTEFEUILLE","Manitoba",768.36431291904944,"Prêts hypothécaires assurés au cours de la période selon le pointage de crédit à l’initiation (%)","768.4","Manitoba",{"$f":"IFERROR(VLOOKUP(A1445,Translation!$A:$C,3,FALSE),A1445)","v":13},{"$f":"IFERROR(VLOOKUP(B1445,Translation!$A:$C,3,FALSE),B1445)","v":"T4 2018"},{"$f":"IFERROR(VLOOKUP(C1445,Translation!$A:$C,3,FALSE),C1445)","v":"ASSURANCE DE PORTEFEUILLE"},{"$f":"IFERROR(VLOOKUP(D1445,Translation!$A:$C,3,FALSE),D1445)","v":"Manitoba"},{"$f":"IFERROR(VLOOKUP(E1445,Translation!$A:$C,3,FALSE),E1445)","v":768.36431291904944},{"$f":"IFERROR(VLOOKUP(F1445,Translation!$A:$C,3,FALSE),F1445)","v":"Prêts hypothécaires assurés au cours de la période selon le pointage de crédit à l’initiation (%)"},{"$f":"IFERROR(VLOOKUP(G1445,Translation!$A:$C,3,FALSE),G1445)","v":"768.4"},{"$f":"IFERROR(VLOOKUP(H1445,Translation!$A:$C,3,FALSE),H1445)","v":"Manitoba"}]
[13,"T4 2018","ASSURANCE DE PORTEFEUILLE","Saskatchewan",768.30652136776257,"Prêts hypothécaires assurés au cours de la période selon le pointage de crédit à l’initiation (%)","768.3","Saskatchewan",{"$f":"IFERROR(VLOOKUP(A1446,Translation!$A:$C,3,FALSE),A1446)","v":13},{"$f":"IFERROR(VLOOKUP(B1446,Translation!$A:$C,3,FALSE),B1446)","v":"T4 2018"},{"$f":"IFERROR(VLOOKUP(C1446,Translation!$A:$C,3,FALSE),C1446)","v":"ASSURANCE DE PORTEFEUILLE"},{"$f":"IFERROR(VLOOKUP(D1446,Translation!$A:$C,3,FALSE),D1446)","v":"Saskatchewan"},{"$f":"IFERROR(VLOOKUP(E1446,Translation!$A:$C,3,FALSE),E1446)","v":768.30652136776257},{"$f":"IFERROR(VLOOKUP(F1446,Translation!$A:$C,3,FALSE),F1446)","v":"Prêts hypothécaires assurés au cours de la période selon le pointage de crédit à l’initiation (%)"},{"$f":"IFERROR(VLOOKUP(G1446,Translation!$A:$C,3,FALSE),G1446)","v":"768.3"},{"$f":"IFERROR(VLOOKUP(H1446,Translation!$A:$C,3,FALSE),H1446)","v":"Saskatchewan"}]
[13,"T4 2018","ASSURANCE DE PORTEFEUILLE","Alberta",765.25093177323595,"Prêts hypothécaires assurés au cours de la période selon le pointage de crédit à l’initiation (%)","765.3","Alberta",{"$f":"IFERROR(VLOOKUP(A1447,Translation!$A:$C,3,FALSE),A1447)","v":13},{"$f":"IFERROR(VLOOKUP(B1447,Translation!$A:$C,3,FALSE),B1447)","v":"T4 2018"},{"$f":"IFERROR(VLOOKUP(C1447,Translation!$A:$C,3,FALSE),C1447)","v":"ASSURANCE DE PORTEFEUILLE"},{"$f":"IFERROR(VLOOKUP(D1447,Translation!$A:$C,3,FALSE),D1447)","v":"Alberta"},{"$f":"IFERROR(VLOOKUP(E1447,Translation!$A:$C,3,FALSE),E1447)","v":765.25093177323595},{"$f":"IFERROR(VLOOKUP(F1447,Translation!$A:$C,3,FALSE),F1447)","v":"Prêts hypothécaires assurés au cours de la période selon le pointage de crédit à l’initiation (%)"},{"$f":"IFERROR(VLOOKUP(G1447,Translation!$A:$C,3,FALSE),G1447)","v":"765.3"},{"$f":"IFERROR(VLOOKUP(H1447,Translation!$A:$C,3,FALSE),H1447)","v":"Alberta"}]
[13,"T4 2018","ASSURANCE DE PORTEFEUILLE","Colombie-Britannique",772.44580907269471,"Prêts hypothécaires assurés au cours de la période selon le pointage de crédit à l’initiation (%)","772.4","Colombie-Britannique",{"$f":"IFERROR(VLOOKUP(A1448,Translation!$A:$C,3,FALSE),A1448)","v":13},{"$f":"IFERROR(VLOOKUP(B1448,Translation!$A:$C,3,FALSE),B1448)","v":"T4 2018"},{"$f":"IFERROR(VLOOKUP(C1448,Translation!$A:$C,3,FALSE),C1448)","v":"ASSURANCE DE PORTEFEUILLE"},{"$f":"IFERROR(VLOOKUP(D1448,Translation!$A:$C,3,FALSE),D1448)","v":"Colombie-Britannique"},{"$f":"IFERROR(VLOOKUP(E1448,Translation!$A:$C,3,FALSE),E1448)","v":772.44580907269471},{"$f":"IFERROR(VLOOKUP(F1448,Translation!$A:$C,3,FALSE),F1448)","v":"Prêts hypothécaires assurés au cours de la période selon le pointage de crédit à l’initiation (%)"},{"$f":"IFERROR(VLOOKUP(G1448,Translation!$A:$C,3,FALSE),G1448)","v":"772.4"},{"$f":"IFERROR(VLOOKUP(H1448,Translation!$A:$C,3,FALSE),H1448)","v":"Colombie-Britannique"}]
[13,"Cumul 2017","ASSURANCE DE PORTEFEUILLE","Terre-Neuve-et-Labrador",754.44870569686816,"Prêts hypothécaires assurés au cours de la période selon le pointage de crédit à l’initiation (%)","754.4","Terre-Neuve-et-Labrador",{"$f":"IFERROR(VLOOKUP(A1449,Translation!$A:$C,3,FALSE),A1449)","v":13},{"$f":"IFERROR(VLOOKUP(B1449,Translation!$A:$C,3,FALSE),B1449)","v":"Cumul 2017"},{"$f":"IFERROR(VLOOKUP(C1449,Translation!$A:$C,3,FALSE),C1449)","v":"ASSURANCE DE PORTEFEUILLE"},{"$f":"IFERROR(VLOOKUP(D1449,Translation!$A:$C,3,FALSE),D1449)","v":"Terre-Neuve-et-Labrador"},{"$f":"IFERROR(VLOOKUP(E1449,Translation!$A:$C,3,FALSE),E1449)","v":754.44870569686816},{"$f":"IFERROR(VLOOKUP(F1449,Translation!$A:$C,3,FALSE),F1449)","v":"Prêts hypothécaires assurés au cours de la période selon le pointage de crédit à l’initiation (%)"},{"$f":"IFERROR(VLOOKUP(G1449,Translation!$A:$C,3,FALSE),G1449)","v":"754.4"},{"$f":"IFERROR(VLOOKUP(H1449,Translation!$A:$C,3,FALSE),H1449)","v":"Terre-Neuve-et-Labrador"}]
[13,"Cumul 2017","ASSURANCE DE PORTEFEUILLE","Île-du-Prince-Édouard",755.02847616948122,"Prêts hypothécaires assurés au cours de la période selon le pointage de crédit à l’initiation (%)","755.0","Île-du-Prince-Édouard",{"$f":"IFERROR(VLOOKUP(A1450,Translation!$A:$C,3,FALSE),A1450)","v":13},{"$f":"IFERROR(VLOOKUP(B1450,Translation!$A:$C,3,FALSE),B1450)","v":"Cumul 2017"},{"$f":"IFERROR(VLOOKUP(C1450,Translation!$A:$C,3,FALSE),C1450)","v":"ASSURANCE DE PORTEFEUILLE"},{"$f":"IFERROR(VLOOKUP(D1450,Translation!$A:$C,3,FALSE),D1450)","v":"Île-du-Prince-Édouard"},{"$f":"IFERROR(VLOOKUP(E1450,Translation!$A:$C,3,FALSE),E1450)","v":755.02847616948122},{"$f":"IFERROR(VLOOKUP(F1450,Translation!$A:$C,3,FALSE),F1450)","v":"Prêts hypothécaires assurés au cours de la période selon le pointage de crédit à l’initiation (%)"},{"$f":"IFERROR(VLOOKUP(G1450,Translation!$A:$C,3,FALSE),G1450)","v":"755.0"},{"$f":"IFERROR(VLOOKUP(H1450,Translation!$A:$C,3,FALSE),H1450)","v":"Île-du-Prince-Édouard"}]
[13,"Cumul 2017","ASSURANCE DE PORTEFEUILLE","Nouvelle-Écosse",753.11694408463427,"Prêts hypothécaires assurés au cours de la période selon le pointage de crédit à l’initiation (%)","753.1","Nouvelle-Écosse",{"$f":"IFERROR(VLOOKUP(A1451,Translation!$A:$C,3,FALSE),A1451)","v":13},{"$f":"IFERROR(VLOOKUP(B1451,Translation!$A:$C,3,FALSE),B1451)","v":"Cumul 2017"},{"$f":"IFERROR(VLOOKUP(C1451,Translation!$A:$C,3,FALSE),C1451)","v":"ASSURANCE DE PORTEFEUILLE"},{"$f":"IFERROR(VLOOKUP(D1451,Translation!$A:$C,3,FALSE),D1451)","v":"Nouvelle-Écosse"},{"$f":"IFERROR(VLOOKUP(E1451,Translation!$A:$C,3,FALSE),E1451)","v":753.11694408463427},{"$f":"IFERROR(VLOOKUP(F1451,Translation!$A:$C,3,FALSE),F1451)","v":"Prêts hypothécaires assurés au cours de la période selon le pointage de crédit à l’initiation (%)"},{"$f":"IFERROR(VLOOKUP(G1451,Translation!$A:$C,3,FALSE),G1451)","v":"753.1"},{"$f":"IFERROR(VLOOKUP(H1451,Translation!$A:$C,3,FALSE),H1451)","v":"Nouvelle-Écosse"}]
[13,"Cumul 2017","ASSURANCE DE PORTEFEUILLE","Nouveau-Brunswick",758.57494570564643,"Prêts hypothécaires assurés au cours de la période selon le pointage de crédit à l’initiation (%)","758.6","Nouveau-Brunswick",{"$f":"IFERROR(VLOOKUP(A1452,Translation!$A:$C,3,FALSE),A1452)","v":13},{"$f":"IFERROR(VLOOKUP(B1452,Translation!$A:$C,3,FALSE),B1452)","v":"Cumul 2017"},{"$f":"IFERROR(VLOOKUP(C1452,Translation!$A:$C,3,FALSE),C1452)","v":"ASSURANCE DE PORTEFEUILLE"},{"$f":"IFERROR(VLOOKUP(D1452,Translation!$A:$C,3,FALSE),D1452)","v":"Nouveau-Brunswick"},{"$f":"IFERROR(VLOOKUP(E1452,Translation!$A:$C,3,FALSE),E1452)","v":758.57494570564643},{"$f":"IFERROR(VLOOKUP(F1452,Translation!$A:$C,3,FALSE),F1452)","v":"Prêts hypothécaires assurés au cours de la période selon le pointage de crédit à l’initiation (%)"},{"$f":"IFERROR(VLOOKUP(G1452,Translation!$A:$C,3,FALSE),G1452)","v":"758.6"},{"$f":"IFERROR(VLOOKUP(H1452,Translation!$A:$C,3,FALSE),H1452)","v":"Nouveau-Brunswick"}]
[13,"Cumul 2017","ASSURANCE DE PORTEFEUILLE","Québec",774.20434670897339,"Prêts hypothécaires assurés au cours de la période selon le pointage de crédit à l’initiation (%)","774.2","Québec",{"$f":"IFERROR(VLOOKUP(A1453,Translation!$A:$C,3,FALSE),A1453)","v":13},{"$f":"IFERROR(VLOOKUP(B1453,Translation!$A:$C,3,FALSE),B1453)","v":"Cumul 2017"},{"$f":"IFERROR(VLOOKUP(C1453,Translation!$A:$C,3,FALSE),C1453)","v":"ASSURANCE DE PORTEFEUILLE"},{"$f":"IFERROR(VLOOKUP(D1453,Translation!$A:$C,3,FALSE),D1453)","v":"Québec"},{"$f":"IFERROR(VLOOKUP(E1453,Translation!$A:$C,3,FALSE),E1453)","v":774.20434670897339},{"$f":"IFERROR(VLOOKUP(F1453,Translation!$A:$C,3,FALSE),F1453)","v":"Prêts hypothécaires assurés au cours de la période selon le pointage de crédit à l’initiation (%)"},{"$f":"IFERROR(VLOOKUP(G1453,Translation!$A:$C,3,FALSE),G1453)","v":"774.2"},{"$f":"IFERROR(VLOOKUP(H1453,Translation!$A:$C,3,FALSE),H1453)","v":"Québec"}]
[13,"Cumul 2017","ASSURANCE DE PORTEFEUILLE","Ontario",744.18696158398609,"Prêts hypothécaires assurés au cours de la période selon le pointage de crédit à l’initiation (%)","744.2","Ontario",{"$f":"IFERROR(VLOOKUP(A1454,Translation!$A:$C,3,FALSE),A1454)","v":13},{"$f":"IFERROR(VLOOKUP(B1454,Translation!$A:$C,3,FALSE),B1454)","v":"Cumul 2017"},{"$f":"IFERROR(VLOOKUP(C1454,Translation!$A:$C,3,FALSE),C1454)","v":"ASSURANCE DE PORTEFEUILLE"},{"$f":"IFERROR(VLOOKUP(D1454,Translation!$A:$C,3,FALSE),D1454)","v":"Ontario"},{"$f":"IFERROR(VLOOKUP(E1454,Translation!$A:$C,3,FALSE),E1454)","v":744.18696158398609},{"$f":"IFERROR(VLOOKUP(F1454,Translation!$A:$C,3,FALSE),F1454)","v":"Prêts hypothécaires assurés au cours de la période selon le pointage de crédit à l’initiation (%)"},{"$f":"IFERROR(VLOOKUP(G1454,Translation!$A:$C,3,FALSE),G1454)","v":"744.2"},{"$f":"IFERROR(VLOOKUP(H1454,Translation!$A:$C,3,FALSE),H1454)","v":"Ontario"}]
[13,"Cumul 2017","ASSURANCE DE PORTEFEUILLE","Manitoba",737.05670194882896,"Prêts hypothécaires assurés au cours de la période selon le pointage de crédit à l’initiation (%)","737.1","Manitoba",{"$f":"IFERROR(VLOOKUP(A1455,Translation!$A:$C,3,FALSE),A1455)","v":13},{"$f":"IFERROR(VLOOKUP(B1455,Translation!$A:$C,3,FALSE),B1455)","v":"Cumul 2017"},{"$f":"IFERROR(VLOOKUP(C1455,Translation!$A:$C,3,FALSE),C1455)","v":"ASSURANCE DE PORTEFEUILLE"},{"$f":"IFERROR(VLOOKUP(D1455,Translation!$A:$C,3,FALSE),D1455)","v":"Manitoba"},{"$f":"IFERROR(VLOOKUP(E1455,Translation!$A:$C,3,FALSE),E1455)","v":737.05670194882896},{"$f":"IFERROR(VLOOKUP(F1455,Translation!$A:$C,3,FALSE),F1455)","v":"Prêts hypothécaires assurés au cours de la période selon le pointage de crédit à l’initiation (%)"},{"$f":"IFERROR(VLOOKUP(G1455,Translation!$A:$C,3,FALSE),G1455)","v":"737.1"},{"$f":"IFERROR(VLOOKUP(H1455,Translation!$A:$C,3,FALSE),H1455)","v":"Manitoba"}]
[13,"Cumul 2017","ASSURANCE DE PORTEFEUILLE","Saskatchewan",760.98603826917054,"Prêts hypothécaires assurés au cours de la période selon le pointage de crédit à l’initiation (%)","761.0","Saskatchewan",{"$f":"IFERROR(VLOOKUP(A1456,Translation!$A:$C,3,FALSE),A1456)","v":13},{"$f":"IFERROR(VLOOKUP(B1456,Translation!$A:$C,3,FALSE),B1456)","v":"Cumul 2017"},{"$f":"IFERROR(VLOOKUP(C1456,Translation!$A:$C,3,FALSE),C1456)","v":"ASSURANCE DE PORTEFEUILLE"},{"$f":"IFERROR(VLOOKUP(D1456,Translation!$A:$C,3,FALSE),D1456)","v":"Saskatchewan"},{"$f":"IFERROR(VLOOKUP(E1456,Translation!$A:$C,3,FALSE),E1456)","v":760.98603826917054},{"$f":"IFERROR(VLOOKUP(F1456,Translation!$A:$C,3,FALSE),F1456)","v":"Prêts hypothécaires assurés au cours de la période selon le pointage de crédit à l’initiation (%)"},{"$f":"IFERROR(VLOOKUP(G1456,Translation!$A:$C,3,FALSE),G1456)","v":"761.0"},{"$f":"IFERROR(VLOOKUP(H1456,Translation!$A:$C,3,FALSE),H1456)","v":"Saskatchewan"}]
[13,"Cumul 2017","ASSURANCE DE PORTEFEUILLE","Alberta",745.23653611902091,"Prêts hypothécaires assurés au cours de la période selon le pointage de crédit à l’initiation (%)","745.2","Alberta",{"$f":"IFERROR(VLOOKUP(A1457,Translation!$A:$C,3,FALSE),A1457)","v":13},{"$f":"IFERROR(VLOOKUP(B1457,Translation!$A:$C,3,FALSE),B1457)","v":"Cumul 2017"},{"$f":"IFERROR(VLOOKUP(C1457,Translation!$A:$C,3,FALSE),C1457)","v":"ASSURANCE DE PORTEFEUILLE"},{"$f":"IFERROR(VLOOKUP(D1457,Translation!$A:$C,3,FALSE),D1457)","v":"Alberta"},{"$f":"IFERROR(VLOOKUP(E1457,Translation!$A:$C,3,FALSE),E1457)","v":745.23653611902091},{"$f":"IFERROR(VLOOKUP(F1457,Translation!$A:$C,3,FALSE),F1457)","v":"Prêts hypothécaires assurés au cours de la période selon le pointage de crédit à l’initiation (%)"},{"$f":"IFERROR(VLOOKUP(G1457,Translation!$A:$C,3,FALSE),G1457)","v":"745.2"},{"$f":"IFERROR(VLOOKUP(H1457,Translation!$A:$C,3,FALSE),H1457)","v":"Alberta"}]
[13,"Cumul 2017","ASSURANCE DE PORTEFEUILLE","Colombie-Britannique",760.66463984983693,"Prêts hypothécaires assurés au cours de la période selon le pointage de crédit à l’initiation (%)","760.7","Colombie-Britannique",{"$f":"IFERROR(VLOOKUP(A1458,Translation!$A:$C,3,FALSE),A1458)","v":13},{"$f":"IFERROR(VLOOKUP(B1458,Translation!$A:$C,3,FALSE),B1458)","v":"Cumul 2017"},{"$f":"IFERROR(VLOOKUP(C1458,Translation!$A:$C,3,FALSE),C1458)","v":"ASSURANCE DE PORTEFEUILLE"},{"$f":"IFERROR(VLOOKUP(D1458,Translation!$A:$C,3,FALSE),D1458)","v":"Colombie-Britannique"},{"$f":"IFERROR(VLOOKUP(E1458,Translation!$A:$C,3,FALSE),E1458)","v":760.66463984983693},{"$f":"IFERROR(VLOOKUP(F1458,Translation!$A:$C,3,FALSE),F1458)","v":"Prêts hypothécaires assurés au cours de la période selon le pointage de crédit à l’initiation (%)"},{"$f":"IFERROR(VLOOKUP(G1458,Translation!$A:$C,3,FALSE),G1458)","v":"760.7"},{"$f":"IFERROR(VLOOKUP(H1458,Translation!$A:$C,3,FALSE),H1458)","v":"Colombie-Britannique"}]
[13,"Cumul 2017","ASSURANCE DE PORTEFEUILLE","Territoires",755.25976272907099,"Prêts hypothécaires assurés au cours de la période selon le pointage de crédit à l’initiation (%)","755.3","Territoires",{"$f":"IFERROR(VLOOKUP(A1459,Translation!$A:$C,3,FALSE),A1459)","v":13},{"$f":"IFERROR(VLOOKUP(B1459,Translation!$A:$C,3,FALSE),B1459)","v":"Cumul 2017"},{"$f":"IFERROR(VLOOKUP(C1459,Translation!$A:$C,3,FALSE),C1459)","v":"ASSURANCE DE PORTEFEUILLE"},{"$f":"IFERROR(VLOOKUP(D1459,Translation!$A:$C,3,FALSE),D1459)","v":"Territoires"},{"$f":"IFERROR(VLOOKUP(E1459,Translation!$A:$C,3,FALSE),E1459)","v":755.25976272907099},{"$f":"IFERROR(VLOOKUP(F1459,Translation!$A:$C,3,FALSE),F1459)","v":"Prêts hypothécaires assurés au cours de la période selon le pointage de crédit à l’initiation (%)"},{"$f":"IFERROR(VLOOKUP(G1459,Translation!$A:$C,3,FALSE),G1459)","v":"755.3"},{"$f":"IFERROR(VLOOKUP(H1459,Translation!$A:$C,3,FALSE),H1459)","v":"Territoires"}]
[13,"T3 2018","PROPRIÉTAIRES-OCCUPANTS, À L’UNITÉ","Aucun pointage de crédit",5.3288953296902865E-3,"Prêts hypothécaires assurés au cours de la période selon le pointage de crédit à l’initiation (%)","0.0","Aucun pointage de crédit",{"$f":"IFERROR(VLOOKUP(A1460,Translation!$A:$C,3,FALSE),A1460)","v":13},{"$f":"IFERROR(VLOOKUP(B1460,Translation!$A:$C,3,FALSE),B1460)","v":"T3 2018"},{"$f":"IFERROR(VLOOKUP(C1460,Translation!$A:$C,3,FALSE),C1460)","v":"PROPRIÉTAIRES-OCCUPANTS, À L’UNITÉ"},{"$f":"IFERROR(VLOOKUP(D1460,Translation!$A:$C,3,FALSE),D1460)","v":"Aucun pointage de crédit"},{"$f":"IFERROR(VLOOKUP(E1460,Translation!$A:$C,3,FALSE),E1460)","v":5.3288953296902865E-3},{"$f":"IFERROR(VLOOKUP(F1460,Translation!$A:$C,3,FALSE),F1460)","v":"Prêts hypothécaires assurés au cours de la période selon le pointage de crédit à l’initiation (%)"},{"$f":"IFERROR(VLOOKUP(G1460,Translation!$A:$C,3,FALSE),G1460)","v":"0.0"},{"$f":"IFERROR(VLOOKUP(H1460,Translation!$A:$C,3,FALSE),H1460)","v":"Aucun pointage de crédit"}]
[13,"T3 2018","PROPRIÉTAIRES-OCCUPANTS, À L’UNITÉ","< 600",0.28387353824565142,"Prêts hypothécaires assurés au cours de la période selon le pointage de crédit à l’initiation (%)","0.3"," < 600",{"$f":"IFERROR(VLOOKUP(A1461,Translation!$A:$C,3,FALSE),A1461)","v":13},{"$f":"IFERROR(VLOOKUP(B1461,Translation!$A:$C,3,FALSE),B1461)","v":"T3 2018"},{"$f":"IFERROR(VLOOKUP(C1461,Translation!$A:$C,3,FALSE),C1461)","v":"PROPRIÉTAIRES-OCCUPANTS, À L’UNITÉ"},{"$f":"IFERROR(VLOOKUP(D1461,Translation!$A:$C,3,FALSE),D1461)","v":"< 600"},{"$f":"IFERROR(VLOOKUP(E1461,Translation!$A:$C,3,FALSE),E1461)","v":0.28387353824565142},{"$f":"IFERROR(VLOOKUP(F1461,Translation!$A:$C,3,FALSE),F1461)","v":"Prêts hypothécaires assurés au cours de la période selon le pointage de crédit à l’initiation (%)"},{"$f":"IFERROR(VLOOKUP(G1461,Translation!$A:$C,3,FALSE),G1461)","v":"0.3"},{"$f":"IFERROR(VLOOKUP(H1461,Translation!$A:$C,3,FALSE),H1461)","v":" < 600"}]
[13,"T3 2018","PROPRIÉTAIRES-OCCUPANTS, À L’UNITÉ",">= 600 < 680",5.8574792589980849,"Prêts hypothécaires assurés au cours de la période selon le pointage de crédit à l’initiation (%)","5.9"," >= 600 < 680",{"$f":"IFERROR(VLOOKUP(A1462,Translation!$A:$C,3,FALSE),A1462)","v":13},{"$f":"IFERROR(VLOOKUP(B1462,Translation!$A:$C,3,FALSE),B1462)","v":"T3 2018"},{"$f":"IFERROR(VLOOKUP(C1462,Translation!$A:$C,3,FALSE),C1462)","v":"PROPRIÉTAIRES-OCCUPANTS, À L’UNITÉ"},{"$f":"IFERROR(VLOOKUP(D1462,Translation!$A:$C,3,FALSE),D1462)","v":">= 600 < 680"},{"$f":"IFERROR(VLOOKUP(E1462,Translation!$A:$C,3,FALSE),E1462)","v":5.8574792589980849},{"$f":"IFERROR(VLOOKUP(F1462,Translation!$A:$C,3,FALSE),F1462)","v":"Prêts hypothécaires assurés au cours de la période selon le pointage de crédit à l’initiation (%)"},{"$f":"IFERROR(VLOOKUP(G1462,Translation!$A:$C,3,FALSE),G1462)","v":"5.9"},{"$f":"IFERROR(VLOOKUP(H1462,Translation!$A:$C,3,FALSE),H1462)","v":" >= 600 < 680"}]
[13,"T3 2018","PROPRIÉTAIRES-OCCUPANTS, À L’UNITÉ",">= 680 < 700",5.3989134911660397,"Prêts hypothécaires assurés au cours de la période selon le pointage de crédit à l’initiation (%)","5.4"," >= 680 < 700",{"$f":"IFERROR(VLOOKUP(A1463,Translation!$A:$C,3,FALSE),A1463)","v":13},{"$f":"IFERROR(VLOOKUP(B1463,Translation!$A:$C,3,FALSE),B1463)","v":"T3 2018"},{"$f":"IFERROR(VLOOKUP(C1463,Translation!$A:$C,3,FALSE),C1463)","v":"PROPRIÉTAIRES-OCCUPANTS, À L’UNITÉ"},{"$f":"IFERROR(VLOOKUP(D1463,Translation!$A:$C,3,FALSE),D1463)","v":">= 680 < 700"},{"$f":"IFERROR(VLOOKUP(E1463,Translation!$A:$C,3,FALSE),E1463)","v":5.3989134911660397},{"$f":"IFERROR(VLOOKUP(F1463,Translation!$A:$C,3,FALSE),F1463)","v":"Prêts hypothécaires assurés au cours de la période selon le pointage de crédit à l’initiation (%)"},{"$f":"IFERROR(VLOOKUP(G1463,Translation!$A:$C,3,FALSE),G1463)","v":"5.4"},{"$f":"IFERROR(VLOOKUP(H1463,Translation!$A:$C,3,FALSE),H1463)","v":" >= 680 < 700"}]
[13,"T3 2018","PROPRIÉTAIRES-OCCUPANTS, À L’UNITÉ",">= 700 < 750",27.530551450316462,"Prêts hypothécaires assurés au cours de la période selon le pointage de crédit à l’initiation (%)","27.5"," >= 700 < 750",{"$f":"IFERROR(VLOOKUP(A1464,Translation!$A:$C,3,FALSE),A1464)","v":13},{"$f":"IFERROR(VLOOKUP(B1464,Translation!$A:$C,3,FALSE),B1464)","v":"T3 2018"},{"$f":"IFERROR(VLOOKUP(C1464,Translation!$A:$C,3,FALSE),C1464)","v":"PROPRIÉTAIRES-OCCUPANTS, À L’UNITÉ"},{"$f":"IFERROR(VLOOKUP(D1464,Translation!$A:$C,3,FALSE),D1464)","v":">= 700 < 750"},{"$f":"IFERROR(VLOOKUP(E1464,Translation!$A:$C,3,FALSE),E1464)","v":27.530551450316462},{"$f":"IFERROR(VLOOKUP(F1464,Translation!$A:$C,3,FALSE),F1464)","v":"Prêts hypothécaires assurés au cours de la période selon le pointage de crédit à l’initiation (%)"},{"$f":"IFERROR(VLOOKUP(G1464,Translation!$A:$C,3,FALSE),G1464)","v":"27.5"},{"$f":"IFERROR(VLOOKUP(H1464,Translation!$A:$C,3,FALSE),H1464)","v":" >= 700 < 750"}]
[13,"T3 2018","PROPRIÉTAIRES-OCCUPANTS, À L’UNITÉ",">= 750 < 780",27.82801901352947,"Prêts hypothécaires assurés au cours de la période selon le pointage de crédit à l’initiation (%)","27.8"," >= 750 < 780",{"$f":"IFERROR(VLOOKUP(A1465,Translation!$A:$C,3,FALSE),A1465)","v":13},{"$f":"IFERROR(VLOOKUP(B1465,Translation!$A:$C,3,FALSE),B1465)","v":"T3 2018"},{"$f":"IFERROR(VLOOKUP(C1465,Translation!$A:$C,3,FALSE),C1465)","v":"PROPRIÉTAIRES-OCCUPANTS, À L’UNITÉ"},{"$f":"IFERROR(VLOOKUP(D1465,Translation!$A:$C,3,FALSE),D1465)","v":">= 750 < 780"},{"$f":"IFERROR(VLOOKUP(E1465,Translation!$A:$C,3,FALSE),E1465)","v":27.82801901352947},{"$f":"IFERROR(VLOOKUP(F1465,Translation!$A:$C,3,FALSE),F1465)","v":"Prêts hypothécaires assurés au cours de la période selon le pointage de crédit à l’initiation (%)"},{"$f":"IFERROR(VLOOKUP(G1465,Translation!$A:$C,3,FALSE),G1465)","v":"27.8"},{"$f":"IFERROR(VLOOKUP(H1465,Translation!$A:$C,3,FALSE),H1465)","v":" >= 750 < 780"}]
[13,"T3 2018","PROPRIÉTAIRES-OCCUPANTS, À L’UNITÉ",">= 780",33.095834352414606,"Prêts hypothécaires assurés au cours de la période selon le pointage de crédit à l’initiation (%)","33.1"," >= 780",{"$f":"IFERROR(VLOOKUP(A1466,Translation!$A:$C,3,FALSE),A1466)","v":13},{"$f":"IFERROR(VLOOKUP(B1466,Translation!$A:$C,3,FALSE),B1466)","v":"T3 2018"},{"$f":"IFERROR(VLOOKUP(C1466,Translation!$A:$C,3,FALSE),C1466)","v":"PROPRIÉTAIRES-OCCUPANTS, À L’UNITÉ"},{"$f":"IFERROR(VLOOKUP(D1466,Translation!$A:$C,3,FALSE),D1466)","v":">= 780"},{"$f":"IFERROR(VLOOKUP(E1466,Translation!$A:$C,3,FALSE),E1466)","v":33.095834352414606},{"$f":"IFERROR(VLOOKUP(F1466,Translation!$A:$C,3,FALSE),F1466)","v":"Prêts hypothécaires assurés au cours de la période selon le pointage de crédit à l’initiation (%)"},{"$f":"IFERROR(VLOOKUP(G1466,Translation!$A:$C,3,FALSE),G1466)","v":"33.1"},{"$f":"IFERROR(VLOOKUP(H1466,Translation!$A:$C,3,FALSE),H1466)","v":" >= 780"}]
[13,"T3 2018","PROPRIÉTAIRES-OCCUPANTS, À L’UNITÉ","Pointage de crédit moyen à l'initiation ",754.33509862778556,"Prêts hypothécaires assurés au cours de la période selon le pointage de crédit à l’initiation (%)","754.3","Pointage de crédit moyen à l'initiation ",{"$f":"IFERROR(VLOOKUP(A1467,Translation!$A:$C,3,FALSE),A1467)","v":13},{"$f":"IFERROR(VLOOKUP(B1467,Translation!$A:$C,3,FALSE),B1467)","v":"T3 2018"},{"$f":"IFERROR(VLOOKUP(C1467,Translation!$A:$C,3,FALSE),C1467)","v":"PROPRIÉTAIRES-OCCUPANTS, À L’UNITÉ"},{"$f":"IFERROR(VLOOKUP(D1467,Translation!$A:$C,3,FALSE),D1467)","v":"Pointage de crédit moyen à l'initiation "},{"$f":"IFERROR(VLOOKUP(E1467,Translation!$A:$C,3,FALSE),E1467)","v":754.33509862778556},{"$f":"IFERROR(VLOOKUP(F1467,Translation!$A:$C,3,FALSE),F1467)","v":"Prêts hypothécaires assurés au cours de la période selon le pointage de crédit à l’initiation (%)"},{"$f":"IFERROR(VLOOKUP(G1467,Translation!$A:$C,3,FALSE),G1467)","v":"754.3"},{"$f":"IFERROR(VLOOKUP(H1467,Translation!$A:$C,3,FALSE),H1467)","v":"Pointage de crédit moyen à l'initiation "}]
[13,"T3 2018","PROPRIÉTAIRES-OCCUPANTS, À L’UNITÉ","Terre-Neuve-et-Labrador",741.84769074748613,"Prêts hypothécaires assurés au cours de la période selon le pointage de crédit à l’initiation (%)","741.8","Terre-Neuve-et-Labrador",{"$f":"IFERROR(VLOOKUP(A1468,Translation!$A:$C,3,FALSE),A1468)","v":13},{"$f":"IFERROR(VLOOKUP(B1468,Translation!$A:$C,3,FALSE),B1468)","v":"T3 2018"},{"$f":"IFERROR(VLOOKUP(C1468,Translation!$A:$C,3,FALSE),C1468)","v":"PROPRIÉTAIRES-OCCUPANTS, À L’UNITÉ"},{"$f":"IFERROR(VLOOKUP(D1468,Translation!$A:$C,3,FALSE),D1468)","v":"Terre-Neuve-et-Labrador"},{"$f":"IFERROR(VLOOKUP(E1468,Translation!$A:$C,3,FALSE),E1468)","v":741.84769074748613},{"$f":"IFERROR(VLOOKUP(F1468,Translation!$A:$C,3,FALSE),F1468)","v":"Prêts hypothécaires assurés au cours de la période selon le pointage de crédit à l’initiation (%)"},{"$f":"IFERROR(VLOOKUP(G1468,Translation!$A:$C,3,FALSE),G1468)","v":"741.8"},{"$f":"IFERROR(VLOOKUP(H1468,Translation!$A:$C,3,FALSE),H1468)","v":"Terre-Neuve-et-Labrador"}]
[13,"T3 2018","PROPRIÉTAIRES-OCCUPANTS, À L’UNITÉ","Île-du-Prince-Édouard",747.82101634041317,"Prêts hypothécaires assurés au cours de la période selon le pointage de crédit à l’initiation (%)","747.8","Île-du-Prince-Édouard",{"$f":"IFERROR(VLOOKUP(A1469,Translation!$A:$C,3,FALSE),A1469)","v":13},{"$f":"IFERROR(VLOOKUP(B1469,Translation!$A:$C,3,FALSE),B1469)","v":"T3 2018"},{"$f":"IFERROR(VLOOKUP(C1469,Translation!$A:$C,3,FALSE),C1469)","v":"PROPRIÉTAIRES-OCCUPANTS, À L’UNITÉ"},{"$f":"IFERROR(VLOOKUP(D1469,Translation!$A:$C,3,FALSE),D1469)","v":"Île-du-Prince-Édouard"},{"$f":"IFERROR(VLOOKUP(E1469,Translation!$A:$C,3,FALSE),E1469)","v":747.82101634041317},{"$f":"IFERROR(VLOOKUP(F1469,Translation!$A:$C,3,FALSE),F1469)","v":"Prêts hypothécaires assurés au cours de la période selon le pointage de crédit à l’initiation (%)"},{"$f":"IFERROR(VLOOKUP(G1469,Translation!$A:$C,3,FALSE),G1469)","v":"747.8"},{"$f":"IFERROR(VLOOKUP(H1469,Translation!$A:$C,3,FALSE),H1469)","v":"Île-du-Prince-Édouard"}]
[13,"T3 2018","PROPRIÉTAIRES-OCCUPANTS, À L’UNITÉ","Nouvelle-Écosse",750.20771815446017,"Prêts hypothécaires assurés au cours de la période selon le pointage de crédit à l’initiation (%)","750.2","Nouvelle-Écosse",{"$f":"IFERROR(VLOOKUP(A1470,Translation!$A:$C,3,FALSE),A1470)","v":13},{"$f":"IFERROR(VLOOKUP(B1470,Translation!$A:$C,3,FALSE),B1470)","v":"T3 2018"},{"$f":"IFERROR(VLOOKUP(C1470,Translation!$A:$C,3,FALSE),C1470)","v":"PROPRIÉTAIRES-OCCUPANTS, À L’UNITÉ"},{"$f":"IFERROR(VLOOKUP(D1470,Translation!$A:$C,3,FALSE),D1470)","v":"Nouvelle-Écosse"},{"$f":"IFERROR(VLOOKUP(E1470,Translation!$A:$C,3,FALSE),E1470)","v":750.20771815446017},{"$f":"IFERROR(VLOOKUP(F1470,Translation!$A:$C,3,FALSE),F1470)","v":"Prêts hypothécaires assurés au cours de la période selon le pointage de crédit à l’initiation (%)"},{"$f":"IFERROR(VLOOKUP(G1470,Translation!$A:$C,3,FALSE),G1470)","v":"750.2"},{"$f":"IFERROR(VLOOKUP(H1470,Translation!$A:$C,3,FALSE),H1470)","v":"Nouvelle-Écosse"}]
[13,"T3 2018","PROPRIÉTAIRES-OCCUPANTS, À L’UNITÉ","Nouveau-Brunswick",749.21198439656848,"Prêts hypothécaires assurés au cours de la période selon le pointage de crédit à l’initiation (%)","749.2","Nouveau-Brunswick",{"$f":"IFERROR(VLOOKUP(A1471,Translation!$A:$C,3,FALSE),A1471)","v":13},{"$f":"IFERROR(VLOOKUP(B1471,Translation!$A:$C,3,FALSE),B1471)","v":"T3 2018"},{"$f":"IFERROR(VLOOKUP(C1471,Translation!$A:$C,3,FALSE),C1471)","v":"PROPRIÉTAIRES-OCCUPANTS, À L’UNITÉ"},{"$f":"IFERROR(VLOOKUP(D1471,Translation!$A:$C,3,FALSE),D1471)","v":"Nouveau-Brunswick"},{"$f":"IFERROR(VLOOKUP(E1471,Translation!$A:$C,3,FALSE),E1471)","v":749.21198439656848},{"$f":"IFERROR(VLOOKUP(F1471,Translation!$A:$C,3,FALSE),F1471)","v":"Prêts hypothécaires assurés au cours de la période selon le pointage de crédit à l’initiation (%)"},{"$f":"IFERROR(VLOOKUP(G1471,Translation!$A:$C,3,FALSE),G1471)","v":"749.2"},{"$f":"IFERROR(VLOOKUP(H1471,Translation!$A:$C,3,FALSE),H1471)","v":"Nouveau-Brunswick"}]
[13,"T3 2018","PROPRIÉTAIRES-OCCUPANTS, À L’UNITÉ","Québec",755.48758467987648,"Prêts hypothécaires assurés au cours de la période selon le pointage de crédit à l’initiation (%)","755.5","Québec",{"$f":"IFERROR(VLOOKUP(A1472,Translation!$A:$C,3,FALSE),A1472)","v":13},{"$f":"IFERROR(VLOOKUP(B1472,Translation!$A:$C,3,FALSE),B1472)","v":"T3 2018"},{"$f":"IFERROR(VLOOKUP(C1472,Translation!$A:$C,3,FALSE),C1472)","v":"PROPRIÉTAIRES-OCCUPANTS, À L’UNITÉ"},{"$f":"IFERROR(VLOOKUP(D1472,Translation!$A:$C,3,FALSE),D1472)","v":"Québec"},{"$f":"IFERROR(VLOOKUP(E1472,Translation!$A:$C,3,FALSE),E1472)","v":755.48758467987648},{"$f":"IFERROR(VLOOKUP(F1472,Translation!$A:$C,3,FALSE),F1472)","v":"Prêts hypothécaires assurés au cours de la période selon le pointage de crédit à l’initiation (%)"},{"$f":"IFERROR(VLOOKUP(G1472,Translation!$A:$C,3,FALSE),G1472)","v":"755.5"},{"$f":"IFERROR(VLOOKUP(H1472,Translation!$A:$C,3,FALSE),H1472)","v":"Québec"}]
[13,"T3 2018","PROPRIÉTAIRES-OCCUPANTS, À L’UNITÉ","Ontario",757.77845008450049,"Prêts hypothécaires assurés au cours de la période selon le pointage de crédit à l’initiation (%)","757.8","Ontario",{"$f":"IFERROR(VLOOKUP(A1473,Translation!$A:$C,3,FALSE),A1473)","v":13},{"$f":"IFERROR(VLOOKUP(B1473,Translation!$A:$C,3,FALSE),B1473)","v":"T3 2018"},{"$f":"IFERROR(VLOOKUP(C1473,Translation!$A:$C,3,FALSE),C1473)","v":"PROPRIÉTAIRES-OCCUPANTS, À L’UNITÉ"},{"$f":"IFERROR(VLOOKUP(D1473,Translation!$A:$C,3,FALSE),D1473)","v":"Ontario"},{"$f":"IFERROR(VLOOKUP(E1473,Translation!$A:$C,3,FALSE),E1473)","v":757.77845008450049},{"$f":"IFERROR(VLOOKUP(F1473,Translation!$A:$C,3,FALSE),F1473)","v":"Prêts hypothécaires assurés au cours de la période selon le pointage de crédit à l’initiation (%)"},{"$f":"IFERROR(VLOOKUP(G1473,Translation!$A:$C,3,FALSE),G1473)","v":"757.8"},{"$f":"IFERROR(VLOOKUP(H1473,Translation!$A:$C,3,FALSE),H1473)","v":"Ontario"}]
[13,"T3 2018","PROPRIÉTAIRES-OCCUPANTS, À L’UNITÉ","Manitoba",751.90771919241104,"Prêts hypothécaires assurés au cours de la période selon le pointage de crédit à l’initiation (%)","751.9","Manitoba",{"$f":"IFERROR(VLOOKUP(A1474,Translation!$A:$C,3,FALSE),A1474)","v":13},{"$f":"IFERROR(VLOOKUP(B1474,Translation!$A:$C,3,FALSE),B1474)","v":"T3 2018"},{"$f":"IFERROR(VLOOKUP(C1474,Translation!$A:$C,3,FALSE),C1474)","v":"PROPRIÉTAIRES-OCCUPANTS, À L’UNITÉ"},{"$f":"IFERROR(VLOOKUP(D1474,Translation!$A:$C,3,FALSE),D1474)","v":"Manitoba"},{"$f":"IFERROR(VLOOKUP(E1474,Translation!$A:$C,3,FALSE),E1474)","v":751.90771919241104},{"$f":"IFERROR(VLOOKUP(F1474,Translation!$A:$C,3,FALSE),F1474)","v":"Prêts hypothécaires assurés au cours de la période selon le pointage de crédit à l’initiation (%)"},{"$f":"IFERROR(VLOOKUP(G1474,Translation!$A:$C,3,FALSE),G1474)","v":"751.9"},{"$f":"IFERROR(VLOOKUP(H1474,Translation!$A:$C,3,FALSE),H1474)","v":"Manitoba"}]
[13,"T3 2018","PROPRIÉTAIRES-OCCUPANTS, À L’UNITÉ","Saskatchewan",752.27842005417892,"Prêts hypothécaires assurés au cours de la période selon le pointage de crédit à l’initiation (%)","752.3","Saskatchewan",{"$f":"IFERROR(VLOOKUP(A1475,Translation!$A:$C,3,FALSE),A1475)","v":13},{"$f":"IFERROR(VLOOKUP(B1475,Translation!$A:$C,3,FALSE),B1475)","v":"T3 2018"},{"$f":"IFERROR(VLOOKUP(C1475,Translation!$A:$C,3,FALSE),C1475)","v":"PROPRIÉTAIRES-OCCUPANTS, À L’UNITÉ"},{"$f":"IFERROR(VLOOKUP(D1475,Translation!$A:$C,3,FALSE),D1475)","v":"Saskatchewan"},{"$f":"IFERROR(VLOOKUP(E1475,Translation!$A:$C,3,FALSE),E1475)","v":752.27842005417892},{"$f":"IFERROR(VLOOKUP(F1475,Translation!$A:$C,3,FALSE),F1475)","v":"Prêts hypothécaires assurés au cours de la période selon le pointage de crédit à l’initiation (%)"},{"$f":"IFERROR(VLOOKUP(G1475,Translation!$A:$C,3,FALSE),G1475)","v":"752.3"},{"$f":"IFERROR(VLOOKUP(H1475,Translation!$A:$C,3,FALSE),H1475)","v":"Saskatchewan"}]
[13,"T3 2018","PROPRIÉTAIRES-OCCUPANTS, À L’UNITÉ","Alberta",749.84007533240674,"Prêts hypothécaires assurés au cours de la période selon le pointage de crédit à l’initiation (%)","749.8","Alberta",{"$f":"IFERROR(VLOOKUP(A1476,Translation!$A:$C,3,FALSE),A1476)","v":13},{"$f":"IFERROR(VLOOKUP(B1476,Translation!$A:$C,3,FALSE),B1476)","v":"T3 2018"},{"$f":"IFERROR(VLOOKUP(C1476,Translation!$A:$C,3,FALSE),C1476)","v":"PROPRIÉTAIRES-OCCUPANTS, À L’UNITÉ"},{"$f":"IFERROR(VLOOKUP(D1476,Translation!$A:$C,3,FALSE),D1476)","v":"Alberta"},{"$f":"IFERROR(VLOOKUP(E1476,Translation!$A:$C,3,FALSE),E1476)","v":749.84007533240674},{"$f":"IFERROR(VLOOKUP(F1476,Translation!$A:$C,3,FALSE),F1476)","v":"Prêts hypothécaires assurés au cours de la période selon le pointage de crédit à l’initiation (%)"},{"$f":"IFERROR(VLOOKUP(G1476,Translation!$A:$C,3,FALSE),G1476)","v":"749.8"},{"$f":"IFERROR(VLOOKUP(H1476,Translation!$A:$C,3,FALSE),H1476)","v":"Alberta"}]
[13,"T3 2018","PROPRIÉTAIRES-OCCUPANTS, À L’UNITÉ","Colombie-Britannique",754.74136513572512,"Prêts hypothécaires assurés au cours de la période selon le pointage de crédit à l’initiation (%)","754.7","Colombie-Britannique",{"$f":"IFERROR(VLOOKUP(A1477,Translation!$A:$C,3,FALSE),A1477)","v":13},{"$f":"IFERROR(VLOOKUP(B1477,Translation!$A:$C,3,FALSE),B1477)","v":"T3 2018"},{"$f":"IFERROR(VLOOKUP(C1477,Translation!$A:$C,3,FALSE),C1477)","v":"PROPRIÉTAIRES-OCCUPANTS, À L’UNITÉ"},{"$f":"IFERROR(VLOOKUP(D1477,Translation!$A:$C,3,FALSE),D1477)","v":"Colombie-Britannique"},{"$f":"IFERROR(VLOOKUP(E1477,Translation!$A:$C,3,FALSE),E1477)","v":754.74136513572512},{"$f":"IFERROR(VLOOKUP(F1477,Translation!$A:$C,3,FALSE),F1477)","v":"Prêts hypothécaires assurés au cours de la période selon le pointage de crédit à l’initiation (%)"},{"$f":"IFERROR(VLOOKUP(G1477,Translation!$A:$C,3,FALSE),G1477)","v":"754.7"},{"$f":"IFERROR(VLOOKUP(H1477,Translation!$A:$C,3,FALSE),H1477)","v":"Colombie-Britannique"}]
[13,"T3 2018","PROPRIÉTAIRES-OCCUPANTS, À L’UNITÉ","Territoires",747.24986715571504,"Prêts hypothécaires assurés au cours de la période selon le pointage de crédit à l’initiation (%)","747.2","Territoires",{"$f":"IFERROR(VLOOKUP(A1478,Translation!$A:$C,3,FALSE),A1478)","v":13},{"$f":"IFERROR(VLOOKUP(B1478,Translation!$A:$C,3,FALSE),B1478)","v":"T3 2018"},{"$f":"IFERROR(VLOOKUP(C1478,Translation!$A:$C,3,FALSE),C1478)","v":"PROPRIÉTAIRES-OCCUPANTS, À L’UNITÉ"},{"$f":"IFERROR(VLOOKUP(D1478,Translation!$A:$C,3,FALSE),D1478)","v":"Territoires"},{"$f":"IFERROR(VLOOKUP(E1478,Translation!$A:$C,3,FALSE),E1478)","v":747.24986715571504},{"$f":"IFERROR(VLOOKUP(F1478,Translation!$A:$C,3,FALSE),F1478)","v":"Prêts hypothécaires assurés au cours de la période selon le pointage de crédit à l’initiation (%)"},{"$f":"IFERROR(VLOOKUP(G1478,Translation!$A:$C,3,FALSE),G1478)","v":"747.2"},{"$f":"IFERROR(VLOOKUP(H1478,Translation!$A:$C,3,FALSE),H1478)","v":"Territoires"}]
[13,"T3 2018","ASSURANCE DE PORTEFEUILLE","Aucun pointage de crédit",8.253139799681776E-2,"Prêts hypothécaires assurés au cours de la période selon le pointage de crédit à l’initiation (%)","0.1","Aucun pointage de crédit",{"$f":"IFERROR(VLOOKUP(A1479,Translation!$A:$C,3,FALSE),A1479)","v":13},{"$f":"IFERROR(VLOOKUP(B1479,Translation!$A:$C,3,FALSE),B1479)","v":"T3 2018"},{"$f":"IFERROR(VLOOKUP(C1479,Translation!$A:$C,3,FALSE),C1479)","v":"ASSURANCE DE PORTEFEUILLE"},{"$f":"IFERROR(VLOOKUP(D1479,Translation!$A:$C,3,FALSE),D1479)","v":"Aucun pointage de crédit"},{"$f":"IFERROR(VLOOKUP(E1479,Translation!$A:$C,3,FALSE),E1479)","v":8.253139799681776E-2},{"$f":"IFERROR(VLOOKUP(F1479,Translation!$A:$C,3,FALSE),F1479)","v":"Prêts hypothécaires assurés au cours de la période selon le pointage de crédit à l’initiation (%)"},{"$f":"IFERROR(VLOOKUP(G1479,Translation!$A:$C,3,FALSE),G1479)","v":"0.1"},{"$f":"IFERROR(VLOOKUP(H1479,Translation!$A:$C,3,FALSE),H1479)","v":"Aucun pointage de crédit"}]
[13,"T3 2018","ASSURANCE DE PORTEFEUILLE","< 600",2.8424305890928422E-2,"Prêts hypothécaires assurés au cours de la période selon le pointage de crédit à l’initiation (%)","0.0"," < 600",{"$f":"IFERROR(VLOOKUP(A1480,Translation!$A:$C,3,FALSE),A1480)","v":13},{"$f":"IFERROR(VLOOKUP(B1480,Translation!$A:$C,3,FALSE),B1480)","v":"T3 2018"},{"$f":"IFERROR(VLOOKUP(C1480,Translation!$A:$C,3,FALSE),C1480)","v":"ASSURANCE DE PORTEFEUILLE"},{"$f":"IFERROR(VLOOKUP(D1480,Translation!$A:$C,3,FALSE),D1480)","v":"< 600"},{"$f":"IFERROR(VLOOKUP(E1480,Translation!$A:$C,3,FALSE),E1480)","v":2.8424305890928422E-2},{"$f":"IFERROR(VLOOKUP(F1480,Translation!$A:$C,3,FALSE),F1480)","v":"Prêts hypothécaires assurés au cours de la période selon le pointage de crédit à l’initiation (%)"},{"$f":"IFERROR(VLOOKUP(G1480,Translation!$A:$C,3,FALSE),G1480)","v":"0.0"},{"$f":"IFERROR(VLOOKUP(H1480,Translation!$A:$C,3,FALSE),H1480)","v":" < 600"}]
[13,"T3 2018","ASSURANCE DE PORTEFEUILLE",">= 600 < 680",3.1417231664564684,"Prêts hypothécaires assurés au cours de la période selon le pointage de crédit à l’initiation (%)","3.1"," >= 600 < 680",{"$f":"IFERROR(VLOOKUP(A1481,Translation!$A:$C,3,FALSE),A1481)","v":13},{"$f":"IFERROR(VLOOKUP(B1481,Translation!$A:$C,3,FALSE),B1481)","v":"T3 2018"},{"$f":"IFERROR(VLOOKUP(C1481,Translation!$A:$C,3,FALSE),C1481)","v":"ASSURANCE DE PORTEFEUILLE"},{"$f":"IFERROR(VLOOKUP(D1481,Translation!$A:$C,3,FALSE),D1481)","v":">= 600 < 680"},{"$f":"IFERROR(VLOOKUP(E1481,Translation!$A:$C,3,FALSE),E1481)","v":3.1417231664564684},{"$f":"IFERROR(VLOOKUP(F1481,Translation!$A:$C,3,FALSE),F1481)","v":"Prêts hypothécaires assurés au cours de la période selon le pointage de crédit à l’initiation (%)"},{"$f":"IFERROR(VLOOKUP(G1481,Translation!$A:$C,3,FALSE),G1481)","v":"3.1"},{"$f":"IFERROR(VLOOKUP(H1481,Translation!$A:$C,3,FALSE),H1481)","v":" >= 600 < 680"}]
[13,"T3 2018","ASSURANCE DE PORTEFEUILLE",">= 680 < 700",2.811846036615234,"Prêts hypothécaires assurés au cours de la période selon le pointage de crédit à l’initiation (%)","2.8"," >= 680 < 700",{"$f":"IFERROR(VLOOKUP(A1482,Translation!$A:$C,3,FALSE),A1482)","v":13},{"$f":"IFERROR(VLOOKUP(B1482,Translation!$A:$C,3,FALSE),B1482)","v":"T3 2018"},{"$f":"IFERROR(VLOOKUP(C1482,Translation!$A:$C,3,FALSE),C1482)","v":"ASSURANCE DE PORTEFEUILLE"},{"$f":"IFERROR(VLOOKUP(D1482,Translation!$A:$C,3,FALSE),D1482)","v":">= 680 < 700"},{"$f":"IFERROR(VLOOKUP(E1482,Translation!$A:$C,3,FALSE),E1482)","v":2.811846036615234},{"$f":"IFERROR(VLOOKUP(F1482,Translation!$A:$C,3,FALSE),F1482)","v":"Prêts hypothécaires assurés au cours de la période selon le pointage de crédit à l’initiation (%)"},{"$f":"IFERROR(VLOOKUP(G1482,Translation!$A:$C,3,FALSE),G1482)","v":"2.8"},{"$f":"IFERROR(VLOOKUP(H1482,Translation!$A:$C,3,FALSE),H1482)","v":" >= 680 < 700"}]
[13,"T3 2018","ASSURANCE DE PORTEFEUILLE",">= 700 < 750",17.566788872952571,"Prêts hypothécaires assurés au cours de la période selon le pointage de crédit à l’initiation (%)","17.6"," >= 700 < 750",{"$f":"IFERROR(VLOOKUP(A1483,Translation!$A:$C,3,FALSE),A1483)","v":13},{"$f":"IFERROR(VLOOKUP(B1483,Translation!$A:$C,3,FALSE),B1483)","v":"T3 2018"},{"$f":"IFERROR(VLOOKUP(C1483,Translation!$A:$C,3,FALSE),C1483)","v":"ASSURANCE DE PORTEFEUILLE"},{"$f":"IFERROR(VLOOKUP(D1483,Translation!$A:$C,3,FALSE),D1483)","v":">= 700 < 750"},{"$f":"IFERROR(VLOOKUP(E1483,Translation!$A:$C,3,FALSE),E1483)","v":17.566788872952571},{"$f":"IFERROR(VLOOKUP(F1483,Translation!$A:$C,3,FALSE),F1483)","v":"Prêts hypothécaires assurés au cours de la période selon le pointage de crédit à l’initiation (%)"},{"$f":"IFERROR(VLOOKUP(G1483,Translation!$A:$C,3,FALSE),G1483)","v":"17.6"},{"$f":"IFERROR(VLOOKUP(H1483,Translation!$A:$C,3,FALSE),H1483)","v":" >= 700 < 750"}]
[13,"T3 2018","ASSURANCE DE PORTEFEUILLE",">= 750 < 780",27.016049144893419,"Prêts hypothécaires assurés au cours de la période selon le pointage de crédit à l’initiation (%)","27.0"," >= 750 < 780",{"$f":"IFERROR(VLOOKUP(A1484,Translation!$A:$C,3,FALSE),A1484)","v":13},{"$f":"IFERROR(VLOOKUP(B1484,Translation!$A:$C,3,FALSE),B1484)","v":"T3 2018"},{"$f":"IFERROR(VLOOKUP(C1484,Translation!$A:$C,3,FALSE),C1484)","v":"ASSURANCE DE PORTEFEUILLE"},{"$f":"IFERROR(VLOOKUP(D1484,Translation!$A:$C,3,FALSE),D1484)","v":">= 750 < 780"},{"$f":"IFERROR(VLOOKUP(E1484,Translation!$A:$C,3,FALSE),E1484)","v":27.016049144893419},{"$f":"IFERROR(VLOOKUP(F1484,Translation!$A:$C,3,FALSE),F1484)","v":"Prêts hypothécaires assurés au cours de la période selon le pointage de crédit à l’initiation (%)"},{"$f":"IFERROR(VLOOKUP(G1484,Translation!$A:$C,3,FALSE),G1484)","v":"27.0"},{"$f":"IFERROR(VLOOKUP(H1484,Translation!$A:$C,3,FALSE),H1484)","v":" >= 750 < 780"}]
[13,"T3 2018","ASSURANCE DE PORTEFEUILLE",">= 780",49.352637075194565,"Prêts hypothécaires assurés au cours de la période selon le pointage de crédit à l’initiation (%)","49.4"," >= 780",{"$f":"IFERROR(VLOOKUP(A1485,Translation!$A:$C,3,FALSE),A1485)","v":13},{"$f":"IFERROR(VLOOKUP(B1485,Translation!$A:$C,3,FALSE),B1485)","v":"T3 2018"},{"$f":"IFERROR(VLOOKUP(C1485,Translation!$A:$C,3,FALSE),C1485)","v":"ASSURANCE DE PORTEFEUILLE"},{"$f":"IFERROR(VLOOKUP(D1485,Translation!$A:$C,3,FALSE),D1485)","v":">= 780"},{"$f":"IFERROR(VLOOKUP(E1485,Translation!$A:$C,3,FALSE),E1485)","v":49.352637075194565},{"$f":"IFERROR(VLOOKUP(F1485,Translation!$A:$C,3,FALSE),F1485)","v":"Prêts hypothécaires assurés au cours de la période selon le pointage de crédit à l’initiation (%)"},{"$f":"IFERROR(VLOOKUP(G1485,Translation!$A:$C,3,FALSE),G1485)","v":"49.4"},{"$f":"IFERROR(VLOOKUP(H1485,Translation!$A:$C,3,FALSE),H1485)","v":" >= 780"}]
[13,"T3 2018","ASSURANCE DE PORTEFEUILLE","Pointage de crédit moyen à l'initiation ",771.87213733036799,"Prêts hypothécaires assurés au cours de la période selon le pointage de crédit à l’initiation (%)","771.9","Pointage de crédit moyen à l'initiation ",{"$f":"IFERROR(VLOOKUP(A1486,Translation!$A:$C,3,FALSE),A1486)","v":13},{"$f":"IFERROR(VLOOKUP(B1486,Translation!$A:$C,3,FALSE),B1486)","v":"T3 2018"},{"$f":"IFERROR(VLOOKUP(C1486,Translation!$A:$C,3,FALSE),C1486)","v":"ASSURANCE DE PORTEFEUILLE"},{"$f":"IFERROR(VLOOKUP(D1486,Translation!$A:$C,3,FALSE),D1486)","v":"Pointage de crédit moyen à l'initiation "},{"$f":"IFERROR(VLOOKUP(E1486,Translation!$A:$C,3,FALSE),E1486)","v":771.87213733036799},{"$f":"IFERROR(VLOOKUP(F1486,Translation!$A:$C,3,FALSE),F1486)","v":"Prêts hypothécaires assurés au cours de la période selon le pointage de crédit à l’initiation (%)"},{"$f":"IFERROR(VLOOKUP(G1486,Translation!$A:$C,3,FALSE),G1486)","v":"771.9"},{"$f":"IFERROR(VLOOKUP(H1486,Translation!$A:$C,3,FALSE),H1486)","v":"Pointage de crédit moyen à l'initiation "}]
[13,"T3 2018","ASSURANCE DE PORTEFEUILLE","Terre-Neuve-et-Labrador",769.43173438849362,"Prêts hypothécaires assurés au cours de la période selon le pointage de crédit à l’initiation (%)","769.4","Terre-Neuve-et-Labrador",{"$f":"IFERROR(VLOOKUP(A1487,Translation!$A:$C,3,FALSE),A1487)","v":13},{"$f":"IFERROR(VLOOKUP(B1487,Translation!$A:$C,3,FALSE),B1487)","v":"T3 2018"},{"$f":"IFERROR(VLOOKUP(C1487,Translation!$A:$C,3,FALSE),C1487)","v":"ASSURANCE DE PORTEFEUILLE"},{"$f":"IFERROR(VLOOKUP(D1487,Translation!$A:$C,3,FALSE),D1487)","v":"Terre-Neuve-et-Labrador"},{"$f":"IFERROR(VLOOKUP(E1487,Translation!$A:$C,3,FALSE),E1487)","v":769.43173438849362},{"$f":"IFERROR(VLOOKUP(F1487,Translation!$A:$C,3,FALSE),F1487)","v":"Prêts hypothécaires assurés au cours de la période selon le pointage de crédit à l’initiation (%)"},{"$f":"IFERROR(VLOOKUP(G1487,Translation!$A:$C,3,FALSE),G1487)","v":"769.4"},{"$f":"IFERROR(VLOOKUP(H1487,Translation!$A:$C,3,FALSE),H1487)","v":"Terre-Neuve-et-Labrador"}]
[13,"T3 2018","ASSURANCE DE PORTEFEUILLE","Nouvelle-Écosse",778.71095967842052,"Prêts hypothécaires assurés au cours de la période selon le pointage de crédit à l’initiation (%)","778.7","Nouvelle-Écosse",{"$f":"IFERROR(VLOOKUP(A1488,Translation!$A:$C,3,FALSE),A1488)","v":13},{"$f":"IFERROR(VLOOKUP(B1488,Translation!$A:$C,3,FALSE),B1488)","v":"T3 2018"},{"$f":"IFERROR(VLOOKUP(C1488,Translation!$A:$C,3,FALSE),C1488)","v":"ASSURANCE DE PORTEFEUILLE"},{"$f":"IFERROR(VLOOKUP(D1488,Translation!$A:$C,3,FALSE),D1488)","v":"Nouvelle-Écosse"},{"$f":"IFERROR(VLOOKUP(E1488,Translation!$A:$C,3,FALSE),E1488)","v":778.71095967842052},{"$f":"IFERROR(VLOOKUP(F1488,Translation!$A:$C,3,FALSE),F1488)","v":"Prêts hypothécaires assurés au cours de la période selon le pointage de crédit à l’initiation (%)"},{"$f":"IFERROR(VLOOKUP(G1488,Translation!$A:$C,3,FALSE),G1488)","v":"778.7"},{"$f":"IFERROR(VLOOKUP(H1488,Translation!$A:$C,3,FALSE),H1488)","v":"Nouvelle-Écosse"}]
[13,"T3 2018","ASSURANCE DE PORTEFEUILLE","Nouveau-Brunswick",767.19724781544357,"Prêts hypothécaires assurés au cours de la période selon le pointage de crédit à l’initiation (%)","767.2","Nouveau-Brunswick",{"$f":"IFERROR(VLOOKUP(A1489,Translation!$A:$C,3,FALSE),A1489)","v":13},{"$f":"IFERROR(VLOOKUP(B1489,Translation!$A:$C,3,FALSE),B1489)","v":"T3 2018"},{"$f":"IFERROR(VLOOKUP(C1489,Translation!$A:$C,3,FALSE),C1489)","v":"ASSURANCE DE PORTEFEUILLE"},{"$f":"IFERROR(VLOOKUP(D1489,Translation!$A:$C,3,FALSE),D1489)","v":"Nouveau-Brunswick"},{"$f":"IFERROR(VLOOKUP(E1489,Translation!$A:$C,3,FALSE),E1489)","v":767.19724781544357},{"$f":"IFERROR(VLOOKUP(F1489,Translation!$A:$C,3,FALSE),F1489)","v":"Prêts hypothécaires assurés au cours de la période selon le pointage de crédit à l’initiation (%)"},{"$f":"IFERROR(VLOOKUP(G1489,Translation!$A:$C,3,FALSE),G1489)","v":"767.2"},{"$f":"IFERROR(VLOOKUP(H1489,Translation!$A:$C,3,FALSE),H1489)","v":"Nouveau-Brunswick"}]
[13,"T3 2018","ASSURANCE DE PORTEFEUILLE","Québec",771.84534202793611,"Prêts hypothécaires assurés au cours de la période selon le pointage de crédit à l’initiation (%)","771.8","Québec",{"$f":"IFERROR(VLOOKUP(A1490,Translation!$A:$C,3,FALSE),A1490)","v":13},{"$f":"IFERROR(VLOOKUP(B1490,Translation!$A:$C,3,FALSE),B1490)","v":"T3 2018"},{"$f":"IFERROR(VLOOKUP(C1490,Translation!$A:$C,3,FALSE),C1490)","v":"ASSURANCE DE PORTEFEUILLE"},{"$f":"IFERROR(VLOOKUP(D1490,Translation!$A:$C,3,FALSE),D1490)","v":"Québec"},{"$f":"IFERROR(VLOOKUP(E1490,Translation!$A:$C,3,FALSE),E1490)","v":771.84534202793611},{"$f":"IFERROR(VLOOKUP(F1490,Translation!$A:$C,3,FALSE),F1490)","v":"Prêts hypothécaires assurés au cours de la période selon le pointage de crédit à l’initiation (%)"},{"$f":"IFERROR(VLOOKUP(G1490,Translation!$A:$C,3,FALSE),G1490)","v":"771.8"},{"$f":"IFERROR(VLOOKUP(H1490,Translation!$A:$C,3,FALSE),H1490)","v":"Québec"}]
[13,"T3 2018","ASSURANCE DE PORTEFEUILLE","Ontario",770.38940891285085,"Prêts hypothécaires assurés au cours de la période selon le pointage de crédit à l’initiation (%)","770.4","Ontario",{"$f":"IFERROR(VLOOKUP(A1491,Translation!$A:$C,3,FALSE),A1491)","v":13},{"$f":"IFERROR(VLOOKUP(B1491,Translation!$A:$C,3,FALSE),B1491)","v":"T3 2018"},{"$f":"IFERROR(VLOOKUP(C1491,Translation!$A:$C,3,FALSE),C1491)","v":"ASSURANCE DE PORTEFEUILLE"},{"$f":"IFERROR(VLOOKUP(D1491,Translation!$A:$C,3,FALSE),D1491)","v":"Ontario"},{"$f":"IFERROR(VLOOKUP(E1491,Translation!$A:$C,3,FALSE),E1491)","v":770.38940891285085},{"$f":"IFERROR(VLOOKUP(F1491,Translation!$A:$C,3,FALSE),F1491)","v":"Prêts hypothécaires assurés au cours de la période selon le pointage de crédit à l’initiation (%)"},{"$f":"IFERROR(VLOOKUP(G1491,Translation!$A:$C,3,FALSE),G1491)","v":"770.4"},{"$f":"IFERROR(VLOOKUP(H1491,Translation!$A:$C,3,FALSE),H1491)","v":"Ontario"}]
[13,"T3 2018","ASSURANCE DE PORTEFEUILLE","Manitoba",775.09991817010621,"Prêts hypothécaires assurés au cours de la période selon le pointage de crédit à l’initiation (%)","775.1","Manitoba",{"$f":"IFERROR(VLOOKUP(A1492,Translation!$A:$C,3,FALSE),A1492)","v":13},{"$f":"IFERROR(VLOOKUP(B1492,Translation!$A:$C,3,FALSE),B1492)","v":"T3 2018"},{"$f":"IFERROR(VLOOKUP(C1492,Translation!$A:$C,3,FALSE),C1492)","v":"ASSURANCE DE PORTEFEUILLE"},{"$f":"IFERROR(VLOOKUP(D1492,Translation!$A:$C,3,FALSE),D1492)","v":"Manitoba"},{"$f":"IFERROR(VLOOKUP(E1492,Translation!$A:$C,3,FALSE),E1492)","v":775.09991817010621},{"$f":"IFERROR(VLOOKUP(F1492,Translation!$A:$C,3,FALSE),F1492)","v":"Prêts hypothécaires assurés au cours de la période selon le pointage de crédit à l’initiation (%)"},{"$f":"IFERROR(VLOOKUP(G1492,Translation!$A:$C,3,FALSE),G1492)","v":"775.1"},{"$f":"IFERROR(VLOOKUP(H1492,Translation!$A:$C,3,FALSE),H1492)","v":"Manitoba"}]
[13,"T3 2018","ASSURANCE DE PORTEFEUILLE","Saskatchewan",772.08667550987013,"Prêts hypothécaires assurés au cours de la période selon le pointage de crédit à l’initiation (%)","772.1","Saskatchewan",{"$f":"IFERROR(VLOOKUP(A1493,Translation!$A:$C,3,FALSE),A1493)","v":13},{"$f":"IFERROR(VLOOKUP(B1493,Translation!$A:$C,3,FALSE),B1493)","v":"T3 2018"},{"$f":"IFERROR(VLOOKUP(C1493,Translation!$A:$C,3,FALSE),C1493)","v":"ASSURANCE DE PORTEFEUILLE"},{"$f":"IFERROR(VLOOKUP(D1493,Translation!$A:$C,3,FALSE),D1493)","v":"Saskatchewan"},{"$f":"IFERROR(VLOOKUP(E1493,Translation!$A:$C,3,FALSE),E1493)","v":772.08667550987013},{"$f":"IFERROR(VLOOKUP(F1493,Translation!$A:$C,3,FALSE),F1493)","v":"Prêts hypothécaires assurés au cours de la période selon le pointage de crédit à l’initiation (%)"},{"$f":"IFERROR(VLOOKUP(G1493,Translation!$A:$C,3,FALSE),G1493)","v":"772.1"},{"$f":"IFERROR(VLOOKUP(H1493,Translation!$A:$C,3,FALSE),H1493)","v":"Saskatchewan"}]
[13,"T3 2018","ASSURANCE DE PORTEFEUILLE","Alberta",773.35268057705468,"Prêts hypothécaires assurés au cours de la période selon le pointage de crédit à l’initiation (%)","773.4","Alberta",{"$f":"IFERROR(VLOOKUP(A1494,Translation!$A:$C,3,FALSE),A1494)","v":13},{"$f":"IFERROR(VLOOKUP(B1494,Translation!$A:$C,3,FALSE),B1494)","v":"T3 2018"},{"$f":"IFERROR(VLOOKUP(C1494,Translation!$A:$C,3,FALSE),C1494)","v":"ASSURANCE DE PORTEFEUILLE"},{"$f":"IFERROR(VLOOKUP(D1494,Translation!$A:$C,3,FALSE),D1494)","v":"Alberta"},{"$f":"IFERROR(VLOOKUP(E1494,Translation!$A:$C,3,FALSE),E1494)","v":773.35268057705468},{"$f":"IFERROR(VLOOKUP(F1494,Translation!$A:$C,3,FALSE),F1494)","v":"Prêts hypothécaires assurés au cours de la période selon le pointage de crédit à l’initiation (%)"},{"$f":"IFERROR(VLOOKUP(G1494,Translation!$A:$C,3,FALSE),G1494)","v":"773.4"},{"$f":"IFERROR(VLOOKUP(H1494,Translation!$A:$C,3,FALSE),H1494)","v":"Alberta"}]
[13,"T3 2018","ASSURANCE DE PORTEFEUILLE","Colombie-Britannique",774.16600101887218,"Prêts hypothécaires assurés au cours de la période selon le pointage de crédit à l’initiation (%)","774.2","Colombie-Britannique",{"$f":"IFERROR(VLOOKUP(A1495,Translation!$A:$C,3,FALSE),A1495)","v":13},{"$f":"IFERROR(VLOOKUP(B1495,Translation!$A:$C,3,FALSE),B1495)","v":"T3 2018"},{"$f":"IFERROR(VLOOKUP(C1495,Translation!$A:$C,3,FALSE),C1495)","v":"ASSURANCE DE PORTEFEUILLE"},{"$f":"IFERROR(VLOOKUP(D1495,Translation!$A:$C,3,FALSE),D1495)","v":"Colombie-Britannique"},{"$f":"IFERROR(VLOOKUP(E1495,Translation!$A:$C,3,FALSE),E1495)","v":774.16600101887218},{"$f":"IFERROR(VLOOKUP(F1495,Translation!$A:$C,3,FALSE),F1495)","v":"Prêts hypothécaires assurés au cours de la période selon le pointage de crédit à l’initiation (%)"},{"$f":"IFERROR(VLOOKUP(G1495,Translation!$A:$C,3,FALSE),G1495)","v":"774.2"},{"$f":"IFERROR(VLOOKUP(H1495,Translation!$A:$C,3,FALSE),H1495)","v":"Colombie-Britannique"}]
[13,"T2 2018","PROPRIÉTAIRES-OCCUPANTS, À L’UNITÉ","Aucun pointage de crédit",6.8415445825257323E-4,"Prêts hypothécaires assurés au cours de la période selon le pointage de crédit à l’initiation (%)","0.0","Aucun pointage de crédit",{"$f":"IFERROR(VLOOKUP(A1496,Translation!$A:$C,3,FALSE),A1496)","v":13},{"$f":"IFERROR(VLOOKUP(B1496,Translation!$A:$C,3,FALSE),B1496)","v":"T2 2018"},{"$f":"IFERROR(VLOOKUP(C1496,Translation!$A:$C,3,FALSE),C1496)","v":"PROPRIÉTAIRES-OCCUPANTS, À L’UNITÉ"},{"$f":"IFERROR(VLOOKUP(D1496,Translation!$A:$C,3,FALSE),D1496)","v":"Aucun pointage de crédit"},{"$f":"IFERROR(VLOOKUP(E1496,Translation!$A:$C,3,FALSE),E1496)","v":6.8415445825257323E-4},{"$f":"IFERROR(VLOOKUP(F1496,Translation!$A:$C,3,FALSE),F1496)","v":"Prêts hypothécaires assurés au cours de la période selon le pointage de crédit à l’initiation (%)"},{"$f":"IFERROR(VLOOKUP(G1496,Translation!$A:$C,3,FALSE),G1496)","v":"0.0"},{"$f":"IFERROR(VLOOKUP(H1496,Translation!$A:$C,3,FALSE),H1496)","v":"Aucun pointage de crédit"}]
[13,"T2 2018","PROPRIÉTAIRES-OCCUPANTS, À L’UNITÉ","< 600",0.32262652214166776,"Prêts hypothécaires assurés au cours de la période selon le pointage de crédit à l’initiation (%)","0.3"," < 600",{"$f":"IFERROR(VLOOKUP(A1497,Translation!$A:$C,3,FALSE),A1497)","v":13},{"$f":"IFERROR(VLOOKUP(B1497,Translation!$A:$C,3,FALSE),B1497)","v":"T2 2018"},{"$f":"IFERROR(VLOOKUP(C1497,Translation!$A:$C,3,FALSE),C1497)","v":"PROPRIÉTAIRES-OCCUPANTS, À L’UNITÉ"},{"$f":"IFERROR(VLOOKUP(D1497,Translation!$A:$C,3,FALSE),D1497)","v":"< 600"},{"$f":"IFERROR(VLOOKUP(E1497,Translation!$A:$C,3,FALSE),E1497)","v":0.32262652214166776},{"$f":"IFERROR(VLOOKUP(F1497,Translation!$A:$C,3,FALSE),F1497)","v":"Prêts hypothécaires assurés au cours de la période selon le pointage de crédit à l’initiation (%)"},{"$f":"IFERROR(VLOOKUP(G1497,Translation!$A:$C,3,FALSE),G1497)","v":"0.3"},{"$f":"IFERROR(VLOOKUP(H1497,Translation!$A:$C,3,FALSE),H1497)","v":" < 600"}]
[13,"T2 2018","PROPRIÉTAIRES-OCCUPANTS, À L’UNITÉ",">= 600 < 680",5.5922847888207432,"Prêts hypothécaires assurés au cours de la période selon le pointage de crédit à l’initiation (%)","5.6"," >= 600 < 680",{"$f":"IFERROR(VLOOKUP(A1498,Translation!$A:$C,3,FALSE),A1498)","v":13},{"$f":"IFERROR(VLOOKUP(B1498,Translation!$A:$C,3,FALSE),B1498)","v":"T2 2018"},{"$f":"IFERROR(VLOOKUP(C1498,Translation!$A:$C,3,FALSE),C1498)","v":"PROPRIÉTAIRES-OCCUPANTS, À L’UNITÉ"},{"$f":"IFERROR(VLOOKUP(D1498,Translation!$A:$C,3,FALSE),D1498)","v":">= 600 < 680"},{"$f":"IFERROR(VLOOKUP(E1498,Translation!$A:$C,3,FALSE),E1498)","v":5.5922847888207432},{"$f":"IFERROR(VLOOKUP(F1498,Translation!$A:$C,3,FALSE),F1498)","v":"Prêts hypothécaires assurés au cours de la période selon le pointage de crédit à l’initiation (%)"},{"$f":"IFERROR(VLOOKUP(G1498,Translation!$A:$C,3,FALSE),G1498)","v":"5.6"},{"$f":"IFERROR(VLOOKUP(H1498,Translation!$A:$C,3,FALSE),H1498)","v":" >= 600 < 680"}]
[13,"T2 2018","PROPRIÉTAIRES-OCCUPANTS, À L’UNITÉ",">= 680 < 700",5.2120251351633842,"Prêts hypothécaires assurés au cours de la période selon le pointage de crédit à l’initiation (%)","5.2"," >= 680 < 700",{"$f":"IFERROR(VLOOKUP(A1499,Translation!$A:$C,3,FALSE),A1499)","v":13},{"$f":"IFERROR(VLOOKUP(B1499,Translation!$A:$C,3,FALSE),B1499)","v":"T2 2018"},{"$f":"IFERROR(VLOOKUP(C1499,Translation!$A:$C,3,FALSE),C1499)","v":"PROPRIÉTAIRES-OCCUPANTS, À L’UNITÉ"},{"$f":"IFERROR(VLOOKUP(D1499,Translation!$A:$C,3,FALSE),D1499)","v":">= 680 < 700"},{"$f":"IFERROR(VLOOKUP(E1499,Translation!$A:$C,3,FALSE),E1499)","v":5.2120251351633842},{"$f":"IFERROR(VLOOKUP(F1499,Translation!$A:$C,3,FALSE),F1499)","v":"Prêts hypothécaires assurés au cours de la période selon le pointage de crédit à l’initiation (%)"},{"$f":"IFERROR(VLOOKUP(G1499,Translation!$A:$C,3,FALSE),G1499)","v":"5.2"},{"$f":"IFERROR(VLOOKUP(H1499,Translation!$A:$C,3,FALSE),H1499)","v":" >= 680 < 700"}]
[13,"T2 2018","PROPRIÉTAIRES-OCCUPANTS, À L’UNITÉ",">= 700 < 750",27.482074654841878,"Prêts hypothécaires assurés au cours de la période selon le pointage de crédit à l’initiation (%)","27.5"," >= 700 < 750",{"$f":"IFERROR(VLOOKUP(A1500,Translation!$A:$C,3,FALSE),A1500)","v":13},{"$f":"IFERROR(VLOOKUP(B1500,Translation!$A:$C,3,FALSE),B1500)","v":"T2 2018"},{"$f":"IFERROR(VLOOKUP(C1500,Translation!$A:$C,3,FALSE),C1500)","v":"PROPRIÉTAIRES-OCCUPANTS, À L’UNITÉ"},{"$f":"IFERROR(VLOOKUP(D1500,Translation!$A:$C,3,FALSE),D1500)","v":">= 700 < 750"},{"$f":"IFERROR(VLOOKUP(E1500,Translation!$A:$C,3,FALSE),E1500)","v":27.482074654841878},{"$f":"IFERROR(VLOOKUP(F1500,Translation!$A:$C,3,FALSE),F1500)","v":"Prêts hypothécaires assurés au cours de la période selon le pointage de crédit à l’initiation (%)"},{"$f":"IFERROR(VLOOKUP(G1500,Translation!$A:$C,3,FALSE),G1500)","v":"27.5"},{"$f":"IFERROR(VLOOKUP(H1500,Translation!$A:$C,3,FALSE),H1500)","v":" >= 700 < 750"}]
[13,"T2 2018","PROPRIÉTAIRES-OCCUPANTS, À L’UNITÉ",">= 750 < 780",28.245026421975162,"Prêts hypothécaires assurés au cours de la période selon le pointage de crédit à l’initiation (%)","28.2"," >= 750 < 780",{"$f":"IFERROR(VLOOKUP(A1501,Translation!$A:$C,3,FALSE),A1501)","v":13},{"$f":"IFERROR(VLOOKUP(B1501,Translation!$A:$C,3,FALSE),B1501)","v":"T2 2018"},{"$f":"IFERROR(VLOOKUP(C1501,Translation!$A:$C,3,FALSE),C1501)","v":"PROPRIÉTAIRES-OCCUPANTS, À L’UNITÉ"},{"$f":"IFERROR(VLOOKUP(D1501,Translation!$A:$C,3,FALSE),D1501)","v":">= 750 < 780"},{"$f":"IFERROR(VLOOKUP(E1501,Translation!$A:$C,3,FALSE),E1501)","v":28.245026421975162},{"$f":"IFERROR(VLOOKUP(F1501,Translation!$A:$C,3,FALSE),F1501)","v":"Prêts hypothécaires assurés au cours de la période selon le pointage de crédit à l’initiation (%)"},{"$f":"IFERROR(VLOOKUP(G1501,Translation!$A:$C,3,FALSE),G1501)","v":"28.2"},{"$f":"IFERROR(VLOOKUP(H1501,Translation!$A:$C,3,FALSE),H1501)","v":" >= 750 < 780"}]
[13,"T2 2018","PROPRIÉTAIRES-OCCUPANTS, À L’UNITÉ",">= 780",33.145278322598905,"Prêts hypothécaires assurés au cours de la période selon le pointage de crédit à l’initiation (%)","33.1"," >= 780",{"$f":"IFERROR(VLOOKUP(A1502,Translation!$A:$C,3,FALSE),A1502)","v":13},{"$f":"IFERROR(VLOOKUP(B1502,Translation!$A:$C,3,FALSE),B1502)","v":"T2 2018"},{"$f":"IFERROR(VLOOKUP(C1502,Translation!$A:$C,3,FALSE),C1502)","v":"PROPRIÉTAIRES-OCCUPANTS, À L’UNITÉ"},{"$f":"IFERROR(VLOOKUP(D1502,Translation!$A:$C,3,FALSE),D1502)","v":">= 780"},{"$f":"IFERROR(VLOOKUP(E1502,Translation!$A:$C,3,FALSE),E1502)","v":33.145278322598905},{"$f":"IFERROR(VLOOKUP(F1502,Translation!$A:$C,3,FALSE),F1502)","v":"Prêts hypothécaires assurés au cours de la période selon le pointage de crédit à l’initiation (%)"},{"$f":"IFERROR(VLOOKUP(G1502,Translation!$A:$C,3,FALSE),G1502)","v":"33.1"},{"$f":"IFERROR(VLOOKUP(H1502,Translation!$A:$C,3,FALSE),H1502)","v":" >= 780"}]
[13,"T2 2018","PROPRIÉTAIRES-OCCUPANTS, À L’UNITÉ","Pointage de crédit moyen à l'initiation ",754.677433210083,"Prêts hypothécaires assurés au cours de la période selon le pointage de crédit à l’initiation (%)","754.7","Pointage de crédit moyen à l'initiation ",{"$f":"IFERROR(VLOOKUP(A1503,Translation!$A:$C,3,FALSE),A1503)","v":13},{"$f":"IFERROR(VLOOKUP(B1503,Translation!$A:$C,3,FALSE),B1503)","v":"T2 2018"},{"$f":"IFERROR(VLOOKUP(C1503,Translation!$A:$C,3,FALSE),C1503)","v":"PROPRIÉTAIRES-OCCUPANTS, À L’UNITÉ"},{"$f":"IFERROR(VLOOKUP(D1503,Translation!$A:$C,3,FALSE),D1503)","v":"Pointage de crédit moyen à l'initiation "},{"$f":"IFERROR(VLOOKUP(E1503,Translation!$A:$C,3,FALSE),E1503)","v":754.677433210083},{"$f":"IFERROR(VLOOKUP(F1503,Translation!$A:$C,3,FALSE),F1503)","v":"Prêts hypothécaires assurés au cours de la période selon le pointage de crédit à l’initiation (%)"},{"$f":"IFERROR(VLOOKUP(G1503,Translation!$A:$C,3,FALSE),G1503)","v":"754.7"},{"$f":"IFERROR(VLOOKUP(H1503,Translation!$A:$C,3,FALSE),H1503)","v":"Pointage de crédit moyen à l'initiation "}]
[13,"T2 2018","PROPRIÉTAIRES-OCCUPANTS, À L’UNITÉ","Terre-Neuve-et-Labrador",741.74030735067868,"Prêts hypothécaires assurés au cours de la période selon le pointage de crédit à l’initiation (%)","741.7","Terre-Neuve-et-Labrador",{"$f":"IFERROR(VLOOKUP(A1504,Translation!$A:$C,3,FALSE),A1504)","v":13},{"$f":"IFERROR(VLOOKUP(B1504,Translation!$A:$C,3,FALSE),B1504)","v":"T2 2018"},{"$f":"IFERROR(VLOOKUP(C1504,Translation!$A:$C,3,FALSE),C1504)","v":"PROPRIÉTAIRES-OCCUPANTS, À L’UNITÉ"},{"$f":"IFERROR(VLOOKUP(D1504,Translation!$A:$C,3,FALSE),D1504)","v":"Terre-Neuve-et-Labrador"},{"$f":"IFERROR(VLOOKUP(E1504,Translation!$A:$C,3,FALSE),E1504)","v":741.74030735067868},{"$f":"IFERROR(VLOOKUP(F1504,Translation!$A:$C,3,FALSE),F1504)","v":"Prêts hypothécaires assurés au cours de la période selon le pointage de crédit à l’initiation (%)"},{"$f":"IFERROR(VLOOKUP(G1504,Translation!$A:$C,3,FALSE),G1504)","v":"741.7"},{"$f":"IFERROR(VLOOKUP(H1504,Translation!$A:$C,3,FALSE),H1504)","v":"Terre-Neuve-et-Labrador"}]
[13,"T2 2018","PROPRIÉTAIRES-OCCUPANTS, À L’UNITÉ","Île-du-Prince-Édouard",743.06956105562142,"Prêts hypothécaires assurés au cours de la période selon le pointage de crédit à l’initiation (%)","743.1","Île-du-Prince-Édouard",{"$f":"IFERROR(VLOOKUP(A1505,Translation!$A:$C,3,FALSE),A1505)","v":13},{"$f":"IFERROR(VLOOKUP(B1505,Translation!$A:$C,3,FALSE),B1505)","v":"T2 2018"},{"$f":"IFERROR(VLOOKUP(C1505,Translation!$A:$C,3,FALSE),C1505)","v":"PROPRIÉTAIRES-OCCUPANTS, À L’UNITÉ"},{"$f":"IFERROR(VLOOKUP(D1505,Translation!$A:$C,3,FALSE),D1505)","v":"Île-du-Prince-Édouard"},{"$f":"IFERROR(VLOOKUP(E1505,Translation!$A:$C,3,FALSE),E1505)","v":743.06956105562142},{"$f":"IFERROR(VLOOKUP(F1505,Translation!$A:$C,3,FALSE),F1505)","v":"Prêts hypothécaires assurés au cours de la période selon le pointage de crédit à l’initiation (%)"},{"$f":"IFERROR(VLOOKUP(G1505,Translation!$A:$C,3,FALSE),G1505)","v":"743.1"},{"$f":"IFERROR(VLOOKUP(H1505,Translation!$A:$C,3,FALSE),H1505)","v":"Île-du-Prince-Édouard"}]
[13,"T2 2018","PROPRIÉTAIRES-OCCUPANTS, À L’UNITÉ","Nouvelle-Écosse",744.9943550123462,"Prêts hypothécaires assurés au cours de la période selon le pointage de crédit à l’initiation (%)","745.0","Nouvelle-Écosse",{"$f":"IFERROR(VLOOKUP(A1506,Translation!$A:$C,3,FALSE),A1506)","v":13},{"$f":"IFERROR(VLOOKUP(B1506,Translation!$A:$C,3,FALSE),B1506)","v":"T2 2018"},{"$f":"IFERROR(VLOOKUP(C1506,Translation!$A:$C,3,FALSE),C1506)","v":"PROPRIÉTAIRES-OCCUPANTS, À L’UNITÉ"},{"$f":"IFERROR(VLOOKUP(D1506,Translation!$A:$C,3,FALSE),D1506)","v":"Nouvelle-Écosse"},{"$f":"IFERROR(VLOOKUP(E1506,Translation!$A:$C,3,FALSE),E1506)","v":744.9943550123462},{"$f":"IFERROR(VLOOKUP(F1506,Translation!$A:$C,3,FALSE),F1506)","v":"Prêts hypothécaires assurés au cours de la période selon le pointage de crédit à l’initiation (%)"},{"$f":"IFERROR(VLOOKUP(G1506,Translation!$A:$C,3,FALSE),G1506)","v":"745.0"},{"$f":"IFERROR(VLOOKUP(H1506,Translation!$A:$C,3,FALSE),H1506)","v":"Nouvelle-Écosse"}]
[13,"T2 2018","PROPRIÉTAIRES-OCCUPANTS, À L’UNITÉ","Nouveau-Brunswick",742.95799482488064,"Prêts hypothécaires assurés au cours de la période selon le pointage de crédit à l’initiation (%)","743.0","Nouveau-Brunswick",{"$f":"IFERROR(VLOOKUP(A1507,Translation!$A:$C,3,FALSE),A1507)","v":13},{"$f":"IFERROR(VLOOKUP(B1507,Translation!$A:$C,3,FALSE),B1507)","v":"T2 2018"},{"$f":"IFERROR(VLOOKUP(C1507,Translation!$A:$C,3,FALSE),C1507)","v":"PROPRIÉTAIRES-OCCUPANTS, À L’UNITÉ"},{"$f":"IFERROR(VLOOKUP(D1507,Translation!$A:$C,3,FALSE),D1507)","v":"Nouveau-Brunswick"},{"$f":"IFERROR(VLOOKUP(E1507,Translation!$A:$C,3,FALSE),E1507)","v":742.95799482488064},{"$f":"IFERROR(VLOOKUP(F1507,Translation!$A:$C,3,FALSE),F1507)","v":"Prêts hypothécaires assurés au cours de la période selon le pointage de crédit à l’initiation (%)"},{"$f":"IFERROR(VLOOKUP(G1507,Translation!$A:$C,3,FALSE),G1507)","v":"743.0"},{"$f":"IFERROR(VLOOKUP(H1507,Translation!$A:$C,3,FALSE),H1507)","v":"Nouveau-Brunswick"}]
[13,"T2 2018","PROPRIÉTAIRES-OCCUPANTS, À L’UNITÉ","Québec",756.11490473414301,"Prêts hypothécaires assurés au cours de la période selon le pointage de crédit à l’initiation (%)","756.1","Québec",{"$f":"IFERROR(VLOOKUP(A1508,Translation!$A:$C,3,FALSE),A1508)","v":13},{"$f":"IFERROR(VLOOKUP(B1508,Translation!$A:$C,3,FALSE),B1508)","v":"T2 2018"},{"$f":"IFERROR(VLOOKUP(C1508,Translation!$A:$C,3,FALSE),C1508)","v":"PROPRIÉTAIRES-OCCUPANTS, À L’UNITÉ"},{"$f":"IFERROR(VLOOKUP(D1508,Translation!$A:$C,3,FALSE),D1508)","v":"Québec"},{"$f":"IFERROR(VLOOKUP(E1508,Translation!$A:$C,3,FALSE),E1508)","v":756.11490473414301},{"$f":"IFERROR(VLOOKUP(F1508,Translation!$A:$C,3,FALSE),F1508)","v":"Prêts hypothécaires assurés au cours de la période selon le pointage de crédit à l’initiation (%)"},{"$f":"IFERROR(VLOOKUP(G1508,Translation!$A:$C,3,FALSE),G1508)","v":"756.1"},{"$f":"IFERROR(VLOOKUP(H1508,Translation!$A:$C,3,FALSE),H1508)","v":"Québec"}]
[13,"T2 2018","PROPRIÉTAIRES-OCCUPANTS, À L’UNITÉ","Ontario",760.01715324830627,"Prêts hypothécaires assurés au cours de la période selon le pointage de crédit à l’initiation (%)","760.0","Ontario",{"$f":"IFERROR(VLOOKUP(A1509,Translation!$A:$C,3,FALSE),A1509)","v":13},{"$f":"IFERROR(VLOOKUP(B1509,Translation!$A:$C,3,FALSE),B1509)","v":"T2 2018"},{"$f":"IFERROR(VLOOKUP(C1509,Translation!$A:$C,3,FALSE),C1509)","v":"PROPRIÉTAIRES-OCCUPANTS, À L’UNITÉ"},{"$f":"IFERROR(VLOOKUP(D1509,Translation!$A:$C,3,FALSE),D1509)","v":"Ontario"},{"$f":"IFERROR(VLOOKUP(E1509,Translation!$A:$C,3,FALSE),E1509)","v":760.01715324830627},{"$f":"IFERROR(VLOOKUP(F1509,Translation!$A:$C,3,FALSE),F1509)","v":"Prêts hypothécaires assurés au cours de la période selon le pointage de crédit à l’initiation (%)"},{"$f":"IFERROR(VLOOKUP(G1509,Translation!$A:$C,3,FALSE),G1509)","v":"760.0"},{"$f":"IFERROR(VLOOKUP(H1509,Translation!$A:$C,3,FALSE),H1509)","v":"Ontario"}]
[13,"T2 2018","PROPRIÉTAIRES-OCCUPANTS, À L’UNITÉ","Manitoba",750.68648975402243,"Prêts hypothécaires assurés au cours de la période selon le pointage de crédit à l’initiation (%)","750.7","Manitoba",{"$f":"IFERROR(VLOOKUP(A1510,Translation!$A:$C,3,FALSE),A1510)","v":13},{"$f":"IFERROR(VLOOKUP(B1510,Translation!$A:$C,3,FALSE),B1510)","v":"T2 2018"},{"$f":"IFERROR(VLOOKUP(C1510,Translation!$A:$C,3,FALSE),C1510)","v":"PROPRIÉTAIRES-OCCUPANTS, À L’UNITÉ"},{"$f":"IFERROR(VLOOKUP(D1510,Translation!$A:$C,3,FALSE),D1510)","v":"Manitoba"},{"$f":"IFERROR(VLOOKUP(E1510,Translation!$A:$C,3,FALSE),E1510)","v":750.68648975402243},{"$f":"IFERROR(VLOOKUP(F1510,Translation!$A:$C,3,FALSE),F1510)","v":"Prêts hypothécaires assurés au cours de la période selon le pointage de crédit à l’initiation (%)"},{"$f":"IFERROR(VLOOKUP(G1510,Translation!$A:$C,3,FALSE),G1510)","v":"750.7"},{"$f":"IFERROR(VLOOKUP(H1510,Translation!$A:$C,3,FALSE),H1510)","v":"Manitoba"}]
[13,"T2 2018","PROPRIÉTAIRES-OCCUPANTS, À L’UNITÉ","Saskatchewan",750.7194045888541,"Prêts hypothécaires assurés au cours de la période selon le pointage de crédit à l’initiation (%)","750.7","Saskatchewan",{"$f":"IFERROR(VLOOKUP(A1511,Translation!$A:$C,3,FALSE),A1511)","v":13},{"$f":"IFERROR(VLOOKUP(B1511,Translation!$A:$C,3,FALSE),B1511)","v":"T2 2018"},{"$f":"IFERROR(VLOOKUP(C1511,Translation!$A:$C,3,FALSE),C1511)","v":"PROPRIÉTAIRES-OCCUPANTS, À L’UNITÉ"},{"$f":"IFERROR(VLOOKUP(D1511,Translation!$A:$C,3,FALSE),D1511)","v":"Saskatchewan"},{"$f":"IFERROR(VLOOKUP(E1511,Translation!$A:$C,3,FALSE),E1511)","v":750.7194045888541},{"$f":"IFERROR(VLOOKUP(F1511,Translation!$A:$C,3,FALSE),F1511)","v":"Prêts hypothécaires assurés au cours de la période selon le pointage de crédit à l’initiation (%)"},{"$f":"IFERROR(VLOOKUP(G1511,Translation!$A:$C,3,FALSE),G1511)","v":"750.7"},{"$f":"IFERROR(VLOOKUP(H1511,Translation!$A:$C,3,FALSE),H1511)","v":"Saskatchewan"}]
[13,"T2 2018","PROPRIÉTAIRES-OCCUPANTS, À L’UNITÉ","Alberta",748.07940134401645,"Prêts hypothécaires assurés au cours de la période selon le pointage de crédit à l’initiation (%)","748.1","Alberta",{"$f":"IFERROR(VLOOKUP(A1512,Translation!$A:$C,3,FALSE),A1512)","v":13},{"$f":"IFERROR(VLOOKUP(B1512,Translation!$A:$C,3,FALSE),B1512)","v":"T2 2018"},{"$f":"IFERROR(VLOOKUP(C1512,Translation!$A:$C,3,FALSE),C1512)","v":"PROPRIÉTAIRES-OCCUPANTS, À L’UNITÉ"},{"$f":"IFERROR(VLOOKUP(D1512,Translation!$A:$C,3,FALSE),D1512)","v":"Alberta"},{"$f":"IFERROR(VLOOKUP(E1512,Translation!$A:$C,3,FALSE),E1512)","v":748.07940134401645},{"$f":"IFERROR(VLOOKUP(F1512,Translation!$A:$C,3,FALSE),F1512)","v":"Prêts hypothécaires assurés au cours de la période selon le pointage de crédit à l’initiation (%)"},{"$f":"IFERROR(VLOOKUP(G1512,Translation!$A:$C,3,FALSE),G1512)","v":"748.1"},{"$f":"IFERROR(VLOOKUP(H1512,Translation!$A:$C,3,FALSE),H1512)","v":"Alberta"}]
[13,"T2 2018","PROPRIÉTAIRES-OCCUPANTS, À L’UNITÉ","Colombie-Britannique",752.89647412872171,"Prêts hypothécaires assurés au cours de la période selon le pointage de crédit à l’initiation (%)","752.9","Colombie-Britannique",{"$f":"IFERROR(VLOOKUP(A1513,Translation!$A:$C,3,FALSE),A1513)","v":13},{"$f":"IFERROR(VLOOKUP(B1513,Translation!$A:$C,3,FALSE),B1513)","v":"T2 2018"},{"$f":"IFERROR(VLOOKUP(C1513,Translation!$A:$C,3,FALSE),C1513)","v":"PROPRIÉTAIRES-OCCUPANTS, À L’UNITÉ"},{"$f":"IFERROR(VLOOKUP(D1513,Translation!$A:$C,3,FALSE),D1513)","v":"Colombie-Britannique"},{"$f":"IFERROR(VLOOKUP(E1513,Translation!$A:$C,3,FALSE),E1513)","v":752.89647412872171},{"$f":"IFERROR(VLOOKUP(F1513,Translation!$A:$C,3,FALSE),F1513)","v":"Prêts hypothécaires assurés au cours de la période selon le pointage de crédit à l’initiation (%)"},{"$f":"IFERROR(VLOOKUP(G1513,Translation!$A:$C,3,FALSE),G1513)","v":"752.9"},{"$f":"IFERROR(VLOOKUP(H1513,Translation!$A:$C,3,FALSE),H1513)","v":"Colombie-Britannique"}]
[13,"T2 2018","PROPRIÉTAIRES-OCCUPANTS, À L’UNITÉ","Territoires",750.098132479328,"Prêts hypothécaires assurés au cours de la période selon le pointage de crédit à l’initiation (%)","750.1","Territoires",{"$f":"IFERROR(VLOOKUP(A1514,Translation!$A:$C,3,FALSE),A1514)","v":13},{"$f":"IFERROR(VLOOKUP(B1514,Translation!$A:$C,3,FALSE),B1514)","v":"T2 2018"},{"$f":"IFERROR(VLOOKUP(C1514,Translation!$A:$C,3,FALSE),C1514)","v":"PROPRIÉTAIRES-OCCUPANTS, À L’UNITÉ"},{"$f":"IFERROR(VLOOKUP(D1514,Translation!$A:$C,3,FALSE),D1514)","v":"Territoires"},{"$f":"IFERROR(VLOOKUP(E1514,Translation!$A:$C,3,FALSE),E1514)","v":750.098132479328},{"$f":"IFERROR(VLOOKUP(F1514,Translation!$A:$C,3,FALSE),F1514)","v":"Prêts hypothécaires assurés au cours de la période selon le pointage de crédit à l’initiation (%)"},{"$f":"IFERROR(VLOOKUP(G1514,Translation!$A:$C,3,FALSE),G1514)","v":"750.1"},{"$f":"IFERROR(VLOOKUP(H1514,Translation!$A:$C,3,FALSE),H1514)","v":"Territoires"}]
[13,"T2 2018","ASSURANCE DE PORTEFEUILLE","Aucun pointage de crédit",4.4899649998948056E-2,"Prêts hypothécaires assurés au cours de la période selon le pointage de crédit à l’initiation (%)","0.0","Aucun pointage de crédit",{"$f":"IFERROR(VLOOKUP(A1515,Translation!$A:$C,3,FALSE),A1515)","v":13},{"$f":"IFERROR(VLOOKUP(B1515,Translation!$A:$C,3,FALSE),B1515)","v":"T2 2018"},{"$f":"IFERROR(VLOOKUP(C1515,Translation!$A:$C,3,FALSE),C1515)","v":"ASSURANCE DE PORTEFEUILLE"},{"$f":"IFERROR(VLOOKUP(D1515,Translation!$A:$C,3,FALSE),D1515)","v":"Aucun pointage de crédit"},{"$f":"IFERROR(VLOOKUP(E1515,Translation!$A:$C,3,FALSE),E1515)","v":4.4899649998948056E-2},{"$f":"IFERROR(VLOOKUP(F1515,Translation!$A:$C,3,FALSE),F1515)","v":"Prêts hypothécaires assurés au cours de la période selon le pointage de crédit à l’initiation (%)"},{"$f":"IFERROR(VLOOKUP(G1515,Translation!$A:$C,3,FALSE),G1515)","v":"0.0"},{"$f":"IFERROR(VLOOKUP(H1515,Translation!$A:$C,3,FALSE),H1515)","v":"Aucun pointage de crédit"}]
[13,"T2 2018","ASSURANCE DE PORTEFEUILLE","< 600",6.0285195164853235E-2,"Prêts hypothécaires assurés au cours de la période selon le pointage de crédit à l’initiation (%)","0.1"," < 600",{"$f":"IFERROR(VLOOKUP(A1516,Translation!$A:$C,3,FALSE),A1516)","v":13},{"$f":"IFERROR(VLOOKUP(B1516,Translation!$A:$C,3,FALSE),B1516)","v":"T2 2018"},{"$f":"IFERROR(VLOOKUP(C1516,Translation!$A:$C,3,FALSE),C1516)","v":"ASSURANCE DE PORTEFEUILLE"},{"$f":"IFERROR(VLOOKUP(D1516,Translation!$A:$C,3,FALSE),D1516)","v":"< 600"},{"$f":"IFERROR(VLOOKUP(E1516,Translation!$A:$C,3,FALSE),E1516)","v":6.0285195164853235E-2},{"$f":"IFERROR(VLOOKUP(F1516,Translation!$A:$C,3,FALSE),F1516)","v":"Prêts hypothécaires assurés au cours de la période selon le pointage de crédit à l’initiation (%)"},{"$f":"IFERROR(VLOOKUP(G1516,Translation!$A:$C,3,FALSE),G1516)","v":"0.1"},{"$f":"IFERROR(VLOOKUP(H1516,Translation!$A:$C,3,FALSE),H1516)","v":" < 600"}]
[13,"T2 2018","ASSURANCE DE PORTEFEUILLE",">= 600 < 680",3.3118533499187719,"Prêts hypothécaires assurés au cours de la période selon le pointage de crédit à l’initiation (%)","3.3"," >= 600 < 680",{"$f":"IFERROR(VLOOKUP(A1517,Translation!$A:$C,3,FALSE),A1517)","v":13},{"$f":"IFERROR(VLOOKUP(B1517,Translation!$A:$C,3,FALSE),B1517)","v":"T2 2018"},{"$f":"IFERROR(VLOOKUP(C1517,Translation!$A:$C,3,FALSE),C1517)","v":"ASSURANCE DE PORTEFEUILLE"},{"$f":"IFERROR(VLOOKUP(D1517,Translation!$A:$C,3,FALSE),D1517)","v":">= 600 < 680"},{"$f":"IFERROR(VLOOKUP(E1517,Translation!$A:$C,3,FALSE),E1517)","v":3.3118533499187719},{"$f":"IFERROR(VLOOKUP(F1517,Translation!$A:$C,3,FALSE),F1517)","v":"Prêts hypothécaires assurés au cours de la période selon le pointage de crédit à l’initiation (%)"},{"$f":"IFERROR(VLOOKUP(G1517,Translation!$A:$C,3,FALSE),G1517)","v":"3.3"},{"$f":"IFERROR(VLOOKUP(H1517,Translation!$A:$C,3,FALSE),H1517)","v":" >= 600 < 680"}]
[13,"T2 2018","ASSURANCE DE PORTEFEUILLE",">= 680 < 700",3.1054163238965322,"Prêts hypothécaires assurés au cours de la période selon le pointage de crédit à l’initiation (%)","3.1"," >= 680 < 700",{"$f":"IFERROR(VLOOKUP(A1518,Translation!$A:$C,3,FALSE),A1518)","v":13},{"$f":"IFERROR(VLOOKUP(B1518,Translation!$A:$C,3,FALSE),B1518)","v":"T2 2018"},{"$f":"IFERROR(VLOOKUP(C1518,Translation!$A:$C,3,FALSE),C1518)","v":"ASSURANCE DE PORTEFEUILLE"},{"$f":"IFERROR(VLOOKUP(D1518,Translation!$A:$C,3,FALSE),D1518)","v":">= 680 < 700"},{"$f":"IFERROR(VLOOKUP(E1518,Translation!$A:$C,3,FALSE),E1518)","v":3.1054163238965322},{"$f":"IFERROR(VLOOKUP(F1518,Translation!$A:$C,3,FALSE),F1518)","v":"Prêts hypothécaires assurés au cours de la période selon le pointage de crédit à l’initiation (%)"},{"$f":"IFERROR(VLOOKUP(G1518,Translation!$A:$C,3,FALSE),G1518)","v":"3.1"},{"$f":"IFERROR(VLOOKUP(H1518,Translation!$A:$C,3,FALSE),H1518)","v":" >= 680 < 700"}]
[13,"T2 2018","ASSURANCE DE PORTEFEUILLE",">= 700 < 750",18.717144127449032,"Prêts hypothécaires assurés au cours de la période selon le pointage de crédit à l’initiation (%)","18.7"," >= 700 < 750",{"$f":"IFERROR(VLOOKUP(A1519,Translation!$A:$C,3,FALSE),A1519)","v":13},{"$f":"IFERROR(VLOOKUP(B1519,Translation!$A:$C,3,FALSE),B1519)","v":"T2 2018"},{"$f":"IFERROR(VLOOKUP(C1519,Translation!$A:$C,3,FALSE),C1519)","v":"ASSURANCE DE PORTEFEUILLE"},{"$f":"IFERROR(VLOOKUP(D1519,Translation!$A:$C,3,FALSE),D1519)","v":">= 700 < 750"},{"$f":"IFERROR(VLOOKUP(E1519,Translation!$A:$C,3,FALSE),E1519)","v":18.717144127449032},{"$f":"IFERROR(VLOOKUP(F1519,Translation!$A:$C,3,FALSE),F1519)","v":"Prêts hypothécaires assurés au cours de la période selon le pointage de crédit à l’initiation (%)"},{"$f":"IFERROR(VLOOKUP(G1519,Translation!$A:$C,3,FALSE),G1519)","v":"18.7"},{"$f":"IFERROR(VLOOKUP(H1519,Translation!$A:$C,3,FALSE),H1519)","v":" >= 700 < 750"}]
[13,"T2 2018","ASSURANCE DE PORTEFEUILLE",">= 750 < 780",26.849494360664607,"Prêts hypothécaires assurés au cours de la période selon le pointage de crédit à l’initiation (%)","26.8"," >= 750 < 780",{"$f":"IFERROR(VLOOKUP(A1520,Translation!$A:$C,3,FALSE),A1520)","v":13},{"$f":"IFERROR(VLOOKUP(B1520,Translation!$A:$C,3,FALSE),B1520)","v":"T2 2018"},{"$f":"IFERROR(VLOOKUP(C1520,Translation!$A:$C,3,FALSE),C1520)","v":"ASSURANCE DE PORTEFEUILLE"},{"$f":"IFERROR(VLOOKUP(D1520,Translation!$A:$C,3,FALSE),D1520)","v":">= 750 < 780"},{"$f":"IFERROR(VLOOKUP(E1520,Translation!$A:$C,3,FALSE),E1520)","v":26.849494360664607},{"$f":"IFERROR(VLOOKUP(F1520,Translation!$A:$C,3,FALSE),F1520)","v":"Prêts hypothécaires assurés au cours de la période selon le pointage de crédit à l’initiation (%)"},{"$f":"IFERROR(VLOOKUP(G1520,Translation!$A:$C,3,FALSE),G1520)","v":"26.8"},{"$f":"IFERROR(VLOOKUP(H1520,Translation!$A:$C,3,FALSE),H1520)","v":" >= 750 < 780"}]
[13,"T2 2018","ASSURANCE DE PORTEFEUILLE",">= 780",47.910906992907265,"Prêts hypothécaires assurés au cours de la période selon le pointage de crédit à l’initiation (%)","47.9"," >= 780",{"$f":"IFERROR(VLOOKUP(A1521,Translation!$A:$C,3,FALSE),A1521)","v":13},{"$f":"IFERROR(VLOOKUP(B1521,Translation!$A:$C,3,FALSE),B1521)","v":"T2 2018"},{"$f":"IFERROR(VLOOKUP(C1521,Translation!$A:$C,3,FALSE),C1521)","v":"ASSURANCE DE PORTEFEUILLE"},{"$f":"IFERROR(VLOOKUP(D1521,Translation!$A:$C,3,FALSE),D1521)","v":">= 780"},{"$f":"IFERROR(VLOOKUP(E1521,Translation!$A:$C,3,FALSE),E1521)","v":47.910906992907265},{"$f":"IFERROR(VLOOKUP(F1521,Translation!$A:$C,3,FALSE),F1521)","v":"Prêts hypothécaires assurés au cours de la période selon le pointage de crédit à l’initiation (%)"},{"$f":"IFERROR(VLOOKUP(G1521,Translation!$A:$C,3,FALSE),G1521)","v":"47.9"},{"$f":"IFERROR(VLOOKUP(H1521,Translation!$A:$C,3,FALSE),H1521)","v":" >= 780"}]
[13,"T2 2018","ASSURANCE DE PORTEFEUILLE","Pointage de crédit moyen à l'initiation ",768.91269210369217,"Prêts hypothécaires assurés au cours de la période selon le pointage de crédit à l’initiation (%)","768.9","Pointage de crédit moyen à l'initiation ",{"$f":"IFERROR(VLOOKUP(A1522,Translation!$A:$C,3,FALSE),A1522)","v":13},{"$f":"IFERROR(VLOOKUP(B1522,Translation!$A:$C,3,FALSE),B1522)","v":"T2 2018"},{"$f":"IFERROR(VLOOKUP(C1522,Translation!$A:$C,3,FALSE),C1522)","v":"ASSURANCE DE PORTEFEUILLE"},{"$f":"IFERROR(VLOOKUP(D1522,Translation!$A:$C,3,FALSE),D1522)","v":"Pointage de crédit moyen à l'initiation "},{"$f":"IFERROR(VLOOKUP(E1522,Translation!$A:$C,3,FALSE),E1522)","v":768.91269210369217},{"$f":"IFERROR(VLOOKUP(F1522,Translation!$A:$C,3,FALSE),F1522)","v":"Prêts hypothécaires assurés au cours de la période selon le pointage de crédit à l’initiation (%)"},{"$f":"IFERROR(VLOOKUP(G1522,Translation!$A:$C,3,FALSE),G1522)","v":"768.9"},{"$f":"IFERROR(VLOOKUP(H1522,Translation!$A:$C,3,FALSE),H1522)","v":"Pointage de crédit moyen à l'initiation "}]
[13,"T2 2018","ASSURANCE DE PORTEFEUILLE","Terre-Neuve-et-Labrador",781.61551718449186,"Prêts hypothécaires assurés au cours de la période selon le pointage de crédit à l’initiation (%)","781.6","Terre-Neuve-et-Labrador",{"$f":"IFERROR(VLOOKUP(A1523,Translation!$A:$C,3,FALSE),A1523)","v":13},{"$f":"IFERROR(VLOOKUP(B1523,Translation!$A:$C,3,FALSE),B1523)","v":"T2 2018"},{"$f":"IFERROR(VLOOKUP(C1523,Translation!$A:$C,3,FALSE),C1523)","v":"ASSURANCE DE PORTEFEUILLE"},{"$f":"IFERROR(VLOOKUP(D1523,Translation!$A:$C,3,FALSE),D1523)","v":"Terre-Neuve-et-Labrador"},{"$f":"IFERROR(VLOOKUP(E1523,Translation!$A:$C,3,FALSE),E1523)","v":781.61551718449186},{"$f":"IFERROR(VLOOKUP(F1523,Translation!$A:$C,3,FALSE),F1523)","v":"Prêts hypothécaires assurés au cours de la période selon le pointage de crédit à l’initiation (%)"},{"$f":"IFERROR(VLOOKUP(G1523,Translation!$A:$C,3,FALSE),G1523)","v":"781.6"},{"$f":"IFERROR(VLOOKUP(H1523,Translation!$A:$C,3,FALSE),H1523)","v":"Terre-Neuve-et-Labrador"}]
[13,"T2 2018","ASSURANCE DE PORTEFEUILLE","Île-du-Prince-Édouard",760.24439626644516,"Prêts hypothécaires assurés au cours de la période selon le pointage de crédit à l’initiation (%)","760.2","Île-du-Prince-Édouard",{"$f":"IFERROR(VLOOKUP(A1524,Translation!$A:$C,3,FALSE),A1524)","v":13},{"$f":"IFERROR(VLOOKUP(B1524,Translation!$A:$C,3,FALSE),B1524)","v":"T2 2018"},{"$f":"IFERROR(VLOOKUP(C1524,Translation!$A:$C,3,FALSE),C1524)","v":"ASSURANCE DE PORTEFEUILLE"},{"$f":"IFERROR(VLOOKUP(D1524,Translation!$A:$C,3,FALSE),D1524)","v":"Île-du-Prince-Édouard"},{"$f":"IFERROR(VLOOKUP(E1524,Translation!$A:$C,3,FALSE),E1524)","v":760.24439626644516},{"$f":"IFERROR(VLOOKUP(F1524,Translation!$A:$C,3,FALSE),F1524)","v":"Prêts hypothécaires assurés au cours de la période selon le pointage de crédit à l’initiation (%)"},{"$f":"IFERROR(VLOOKUP(G1524,Translation!$A:$C,3,FALSE),G1524)","v":"760.2"},{"$f":"IFERROR(VLOOKUP(H1524,Translation!$A:$C,3,FALSE),H1524)","v":"Île-du-Prince-Édouard"}]
[13,"T2 2018","ASSURANCE DE PORTEFEUILLE","Nouvelle-Écosse",777.47520653902939,"Prêts hypothécaires assurés au cours de la période selon le pointage de crédit à l’initiation (%)","777.5","Nouvelle-Écosse",{"$f":"IFERROR(VLOOKUP(A1525,Translation!$A:$C,3,FALSE),A1525)","v":13},{"$f":"IFERROR(VLOOKUP(B1525,Translation!$A:$C,3,FALSE),B1525)","v":"T2 2018"},{"$f":"IFERROR(VLOOKUP(C1525,Translation!$A:$C,3,FALSE),C1525)","v":"ASSURANCE DE PORTEFEUILLE"},{"$f":"IFERROR(VLOOKUP(D1525,Translation!$A:$C,3,FALSE),D1525)","v":"Nouvelle-Écosse"},{"$f":"IFERROR(VLOOKUP(E1525,Translation!$A:$C,3,FALSE),E1525)","v":777.47520653902939},{"$f":"IFERROR(VLOOKUP(F1525,Translation!$A:$C,3,FALSE),F1525)","v":"Prêts hypothécaires assurés au cours de la période selon le pointage de crédit à l’initiation (%)"},{"$f":"IFERROR(VLOOKUP(G1525,Translation!$A:$C,3,FALSE),G1525)","v":"777.5"},{"$f":"IFERROR(VLOOKUP(H1525,Translation!$A:$C,3,FALSE),H1525)","v":"Nouvelle-Écosse"}]
[13,"T2 2018","ASSURANCE DE PORTEFEUILLE","Nouveau-Brunswick",780.79408833483023,"Prêts hypothécaires assurés au cours de la période selon le pointage de crédit à l’initiation (%)","780.8","Nouveau-Brunswick",{"$f":"IFERROR(VLOOKUP(A1526,Translation!$A:$C,3,FALSE),A1526)","v":13},{"$f":"IFERROR(VLOOKUP(B1526,Translation!$A:$C,3,FALSE),B1526)","v":"T2 2018"},{"$f":"IFERROR(VLOOKUP(C1526,Translation!$A:$C,3,FALSE),C1526)","v":"ASSURANCE DE PORTEFEUILLE"},{"$f":"IFERROR(VLOOKUP(D1526,Translation!$A:$C,3,FALSE),D1526)","v":"Nouveau-Brunswick"},{"$f":"IFERROR(VLOOKUP(E1526,Translation!$A:$C,3,FALSE),E1526)","v":780.79408833483023},{"$f":"IFERROR(VLOOKUP(F1526,Translation!$A:$C,3,FALSE),F1526)","v":"Prêts hypothécaires assurés au cours de la période selon le pointage de crédit à l’initiation (%)"},{"$f":"IFERROR(VLOOKUP(G1526,Translation!$A:$C,3,FALSE),G1526)","v":"780.8"},{"$f":"IFERROR(VLOOKUP(H1526,Translation!$A:$C,3,FALSE),H1526)","v":"Nouveau-Brunswick"}]
[13,"T2 2018","ASSURANCE DE PORTEFEUILLE","Québec",777.999585619301,"Prêts hypothécaires assurés au cours de la période selon le pointage de crédit à l’initiation (%)","778.0","Québec",{"$f":"IFERROR(VLOOKUP(A1527,Translation!$A:$C,3,FALSE),A1527)","v":13},{"$f":"IFERROR(VLOOKUP(B1527,Translation!$A:$C,3,FALSE),B1527)","v":"T2 2018"},{"$f":"IFERROR(VLOOKUP(C1527,Translation!$A:$C,3,FALSE),C1527)","v":"ASSURANCE DE PORTEFEUILLE"},{"$f":"IFERROR(VLOOKUP(D1527,Translation!$A:$C,3,FALSE),D1527)","v":"Québec"},{"$f":"IFERROR(VLOOKUP(E1527,Translation!$A:$C,3,FALSE),E1527)","v":777.999585619301},{"$f":"IFERROR(VLOOKUP(F1527,Translation!$A:$C,3,FALSE),F1527)","v":"Prêts hypothécaires assurés au cours de la période selon le pointage de crédit à l’initiation (%)"},{"$f":"IFERROR(VLOOKUP(G1527,Translation!$A:$C,3,FALSE),G1527)","v":"778.0"},{"$f":"IFERROR(VLOOKUP(H1527,Translation!$A:$C,3,FALSE),H1527)","v":"Québec"}]
[13,"T2 2018","ASSURANCE DE PORTEFEUILLE","Ontario",764.64520723621695,"Prêts hypothécaires assurés au cours de la période selon le pointage de crédit à l’initiation (%)","764.6","Ontario",{"$f":"IFERROR(VLOOKUP(A1528,Translation!$A:$C,3,FALSE),A1528)","v":13},{"$f":"IFERROR(VLOOKUP(B1528,Translation!$A:$C,3,FALSE),B1528)","v":"T2 2018"},{"$f":"IFERROR(VLOOKUP(C1528,Translation!$A:$C,3,FALSE),C1528)","v":"ASSURANCE DE PORTEFEUILLE"},{"$f":"IFERROR(VLOOKUP(D1528,Translation!$A:$C,3,FALSE),D1528)","v":"Ontario"},{"$f":"IFERROR(VLOOKUP(E1528,Translation!$A:$C,3,FALSE),E1528)","v":764.64520723621695},{"$f":"IFERROR(VLOOKUP(F1528,Translation!$A:$C,3,FALSE),F1528)","v":"Prêts hypothécaires assurés au cours de la période selon le pointage de crédit à l’initiation (%)"},{"$f":"IFERROR(VLOOKUP(G1528,Translation!$A:$C,3,FALSE),G1528)","v":"764.6"},{"$f":"IFERROR(VLOOKUP(H1528,Translation!$A:$C,3,FALSE),H1528)","v":"Ontario"}]
[13,"T2 2018","ASSURANCE DE PORTEFEUILLE","Manitoba",769.08359836599232,"Prêts hypothécaires assurés au cours de la période selon le pointage de crédit à l’initiation (%)","769.1","Manitoba",{"$f":"IFERROR(VLOOKUP(A1529,Translation!$A:$C,3,FALSE),A1529)","v":13},{"$f":"IFERROR(VLOOKUP(B1529,Translation!$A:$C,3,FALSE),B1529)","v":"T2 2018"},{"$f":"IFERROR(VLOOKUP(C1529,Translation!$A:$C,3,FALSE),C1529)","v":"ASSURANCE DE PORTEFEUILLE"},{"$f":"IFERROR(VLOOKUP(D1529,Translation!$A:$C,3,FALSE),D1529)","v":"Manitoba"},{"$f":"IFERROR(VLOOKUP(E1529,Translation!$A:$C,3,FALSE),E1529)","v":769.08359836599232},{"$f":"IFERROR(VLOOKUP(F1529,Translation!$A:$C,3,FALSE),F1529)","v":"Prêts hypothécaires assurés au cours de la période selon le pointage de crédit à l’initiation (%)"},{"$f":"IFERROR(VLOOKUP(G1529,Translation!$A:$C,3,FALSE),G1529)","v":"769.1"},{"$f":"IFERROR(VLOOKUP(H1529,Translation!$A:$C,3,FALSE),H1529)","v":"Manitoba"}]
[13,"T2 2018","ASSURANCE DE PORTEFEUILLE","Saskatchewan",778.5456295893789,"Prêts hypothécaires assurés au cours de la période selon le pointage de crédit à l’initiation (%)","778.5","Saskatchewan",{"$f":"IFERROR(VLOOKUP(A1530,Translation!$A:$C,3,FALSE),A1530)","v":13},{"$f":"IFERROR(VLOOKUP(B1530,Translation!$A:$C,3,FALSE),B1530)","v":"T2 2018"},{"$f":"IFERROR(VLOOKUP(C1530,Translation!$A:$C,3,FALSE),C1530)","v":"ASSURANCE DE PORTEFEUILLE"},{"$f":"IFERROR(VLOOKUP(D1530,Translation!$A:$C,3,FALSE),D1530)","v":"Saskatchewan"},{"$f":"IFERROR(VLOOKUP(E1530,Translation!$A:$C,3,FALSE),E1530)","v":778.5456295893789},{"$f":"IFERROR(VLOOKUP(F1530,Translation!$A:$C,3,FALSE),F1530)","v":"Prêts hypothécaires assurés au cours de la période selon le pointage de crédit à l’initiation (%)"},{"$f":"IFERROR(VLOOKUP(G1530,Translation!$A:$C,3,FALSE),G1530)","v":"778.5"},{"$f":"IFERROR(VLOOKUP(H1530,Translation!$A:$C,3,FALSE),H1530)","v":"Saskatchewan"}]
[13,"T2 2018","ASSURANCE DE PORTEFEUILLE","Alberta",779.8333912569725,"Prêts hypothécaires assurés au cours de la période selon le pointage de crédit à l’initiation (%)","779.8","Alberta",{"$f":"IFERROR(VLOOKUP(A1531,Translation!$A:$C,3,FALSE),A1531)","v":13},{"$f":"IFERROR(VLOOKUP(B1531,Translation!$A:$C,3,FALSE),B1531)","v":"T2 2018"},{"$f":"IFERROR(VLOOKUP(C1531,Translation!$A:$C,3,FALSE),C1531)","v":"ASSURANCE DE PORTEFEUILLE"},{"$f":"IFERROR(VLOOKUP(D1531,Translation!$A:$C,3,FALSE),D1531)","v":"Alberta"},{"$f":"IFERROR(VLOOKUP(E1531,Translation!$A:$C,3,FALSE),E1531)","v":779.8333912569725},{"$f":"IFERROR(VLOOKUP(F1531,Translation!$A:$C,3,FALSE),F1531)","v":"Prêts hypothécaires assurés au cours de la période selon le pointage de crédit à l’initiation (%)"},{"$f":"IFERROR(VLOOKUP(G1531,Translation!$A:$C,3,FALSE),G1531)","v":"779.8"},{"$f":"IFERROR(VLOOKUP(H1531,Translation!$A:$C,3,FALSE),H1531)","v":"Alberta"}]
[13,"T2 2018","ASSURANCE DE PORTEFEUILLE","Colombie-Britannique",774.85503168819275,"Prêts hypothécaires assurés au cours de la période selon le pointage de crédit à l’initiation (%)","774.9","Colombie-Britannique",{"$f":"IFERROR(VLOOKUP(A1532,Translation!$A:$C,3,FALSE),A1532)","v":13},{"$f":"IFERROR(VLOOKUP(B1532,Translation!$A:$C,3,FALSE),B1532)","v":"T2 2018"},{"$f":"IFERROR(VLOOKUP(C1532,Translation!$A:$C,3,FALSE),C1532)","v":"ASSURANCE DE PORTEFEUILLE"},{"$f":"IFERROR(VLOOKUP(D1532,Translation!$A:$C,3,FALSE),D1532)","v":"Colombie-Britannique"},{"$f":"IFERROR(VLOOKUP(E1532,Translation!$A:$C,3,FALSE),E1532)","v":774.85503168819275},{"$f":"IFERROR(VLOOKUP(F1532,Translation!$A:$C,3,FALSE),F1532)","v":"Prêts hypothécaires assurés au cours de la période selon le pointage de crédit à l’initiation (%)"},{"$f":"IFERROR(VLOOKUP(G1532,Translation!$A:$C,3,FALSE),G1532)","v":"774.9"},{"$f":"IFERROR(VLOOKUP(H1532,Translation!$A:$C,3,FALSE),H1532)","v":"Colombie-Britannique"}]
[13,"T1 2017","PROPRIÉTAIRES-OCCUPANTS, À L’UNITÉ","Aucun pointage de crédit",7.9017546207288993E-3,"Prêts hypothécaires assurés au cours de la période selon le pointage de crédit à l’initiation (%)","0.0","Aucun pointage de crédit",{"$f":"IFERROR(VLOOKUP(A1533,Translation!$A:$C,3,FALSE),A1533)","v":13},{"$f":"IFERROR(VLOOKUP(B1533,Translation!$A:$C,3,FALSE),B1533)","v":"T1 2017"},{"$f":"IFERROR(VLOOKUP(C1533,Translation!$A:$C,3,FALSE),C1533)","v":"PROPRIÉTAIRES-OCCUPANTS, À L’UNITÉ"},{"$f":"IFERROR(VLOOKUP(D1533,Translation!$A:$C,3,FALSE),D1533)","v":"Aucun pointage de crédit"},{"$f":"IFERROR(VLOOKUP(E1533,Translation!$A:$C,3,FALSE),E1533)","v":7.9017546207288993E-3},{"$f":"IFERROR(VLOOKUP(F1533,Translation!$A:$C,3,FALSE),F1533)","v":"Prêts hypothécaires assurés au cours de la période selon le pointage de crédit à l’initiation (%)"},{"$f":"IFERROR(VLOOKUP(G1533,Translation!$A:$C,3,FALSE),G1533)","v":"0.0"},{"$f":"IFERROR(VLOOKUP(H1533,Translation!$A:$C,3,FALSE),H1533)","v":"Aucun pointage de crédit"}]
[13,"T1 2018","PROPRIÉTAIRES-OCCUPANTS, À L’UNITÉ","Aucun pointage de crédit",6.1796026815698511E-3,"Prêts hypothécaires assurés au cours de la période selon le pointage de crédit à l’initiation (%)","0.0","Aucun pointage de crédit",{"$f":"IFERROR(VLOOKUP(A1534,Translation!$A:$C,3,FALSE),A1534)","v":13},{"$f":"IFERROR(VLOOKUP(B1534,Translation!$A:$C,3,FALSE),B1534)","v":"T1 2018"},{"$f":"IFERROR(VLOOKUP(C1534,Translation!$A:$C,3,FALSE),C1534)","v":"PROPRIÉTAIRES-OCCUPANTS, À L’UNITÉ"},{"$f":"IFERROR(VLOOKUP(D1534,Translation!$A:$C,3,FALSE),D1534)","v":"Aucun pointage de crédit"},{"$f":"IFERROR(VLOOKUP(E1534,Translation!$A:$C,3,FALSE),E1534)","v":6.1796026815698511E-3},{"$f":"IFERROR(VLOOKUP(F1534,Translation!$A:$C,3,FALSE),F1534)","v":"Prêts hypothécaires assurés au cours de la période selon le pointage de crédit à l’initiation (%)"},{"$f":"IFERROR(VLOOKUP(G1534,Translation!$A:$C,3,FALSE),G1534)","v":"0.0"},{"$f":"IFERROR(VLOOKUP(H1534,Translation!$A:$C,3,FALSE),H1534)","v":"Aucun pointage de crédit"}]
[13,"Q2 2016","PROPRIÉTAIRES-OCCUPANTS, À L’UNITÉ","Aucun pointage de crédit",3.740966789095941E-3,"Prêts hypothécaires assurés au cours de la période selon le pointage de crédit à l’initiation (%)","0.0","Aucun pointage de crédit",{"$f":"IFERROR(VLOOKUP(A1535,Translation!$A:$C,3,FALSE),A1535)","v":13},{"$f":"IFERROR(VLOOKUP(B1535,Translation!$A:$C,3,FALSE),B1535)","v":"Q2 2016"},{"$f":"IFERROR(VLOOKUP(C1535,Translation!$A:$C,3,FALSE),C1535)","v":"PROPRIÉTAIRES-OCCUPANTS, À L’UNITÉ"},{"$f":"IFERROR(VLOOKUP(D1535,Translation!$A:$C,3,FALSE),D1535)","v":"Aucun pointage de crédit"},{"$f":"IFERROR(VLOOKUP(E1535,Translation!$A:$C,3,FALSE),E1535)","v":3.740966789095941E-3},{"$f":"IFERROR(VLOOKUP(F1535,Translation!$A:$C,3,FALSE),F1535)","v":"Prêts hypothécaires assurés au cours de la période selon le pointage de crédit à l’initiation (%)"},{"$f":"IFERROR(VLOOKUP(G1535,Translation!$A:$C,3,FALSE),G1535)","v":"0.0"},{"$f":"IFERROR(VLOOKUP(H1535,Translation!$A:$C,3,FALSE),H1535)","v":"Aucun pointage de crédit"}]
[13,"T2 2017","PROPRIÉTAIRES-OCCUPANTS, À L’UNITÉ","Aucun pointage de crédit",2.1103881765296425E-2,"Prêts hypothécaires assurés au cours de la période selon le pointage de crédit à l’initiation (%)","0.0","Aucun pointage de crédit",{"$f":"IFERROR(VLOOKUP(A1536,Translation!$A:$C,3,FALSE),A1536)","v":13},{"$f":"IFERROR(VLOOKUP(B1536,Translation!$A:$C,3,FALSE),B1536)","v":"T2 2017"},{"$f":"IFERROR(VLOOKUP(C1536,Translation!$A:$C,3,FALSE),C1536)","v":"PROPRIÉTAIRES-OCCUPANTS, À L’UNITÉ"},{"$f":"IFERROR(VLOOKUP(D1536,Translation!$A:$C,3,FALSE),D1536)","v":"Aucun pointage de crédit"},{"$f":"IFERROR(VLOOKUP(E1536,Translation!$A:$C,3,FALSE),E1536)","v":2.1103881765296425E-2},{"$f":"IFERROR(VLOOKUP(F1536,Translation!$A:$C,3,FALSE),F1536)","v":"Prêts hypothécaires assurés au cours de la période selon le pointage de crédit à l’initiation (%)"},{"$f":"IFERROR(VLOOKUP(G1536,Translation!$A:$C,3,FALSE),G1536)","v":"0.0"},{"$f":"IFERROR(VLOOKUP(H1536,Translation!$A:$C,3,FALSE),H1536)","v":"Aucun pointage de crédit"}]
[13,"Q3 2016","PROPRIÉTAIRES-OCCUPANTS, À L’UNITÉ","Aucun pointage de crédit",9.0256597372799976E-3,"Prêts hypothécaires assurés au cours de la période selon le pointage de crédit à l’initiation (%)","0.0","Aucun pointage de crédit",{"$f":"IFERROR(VLOOKUP(A1537,Translation!$A:$C,3,FALSE),A1537)","v":13},{"$f":"IFERROR(VLOOKUP(B1537,Translation!$A:$C,3,FALSE),B1537)","v":"Q3 2016"},{"$f":"IFERROR(VLOOKUP(C1537,Translation!$A:$C,3,FALSE),C1537)","v":"PROPRIÉTAIRES-OCCUPANTS, À L’UNITÉ"},{"$f":"IFERROR(VLOOKUP(D1537,Translation!$A:$C,3,FALSE),D1537)","v":"Aucun pointage de crédit"},{"$f":"IFERROR(VLOOKUP(E1537,Translation!$A:$C,3,FALSE),E1537)","v":9.0256597372799976E-3},{"$f":"IFERROR(VLOOKUP(F1537,Translation!$A:$C,3,FALSE),F1537)","v":"Prêts hypothécaires assurés au cours de la période selon le pointage de crédit à l’initiation (%)"},{"$f":"IFERROR(VLOOKUP(G1537,Translation!$A:$C,3,FALSE),G1537)","v":"0.0"},{"$f":"IFERROR(VLOOKUP(H1537,Translation!$A:$C,3,FALSE),H1537)","v":"Aucun pointage de crédit"}]
[13,"T3 2017","PROPRIÉTAIRES-OCCUPANTS, À L’UNITÉ","Aucun pointage de crédit",9.6691289374103619E-3,"Prêts hypothécaires assurés au cours de la période selon le pointage de crédit à l’initiation (%)","0.0","Aucun pointage de crédit",{"$f":"IFERROR(VLOOKUP(A1538,Translation!$A:$C,3,FALSE),A1538)","v":13},{"$f":"IFERROR(VLOOKUP(B1538,Translation!$A:$C,3,FALSE),B1538)","v":"T3 2017"},{"$f":"IFERROR(VLOOKUP(C1538,Translation!$A:$C,3,FALSE),C1538)","v":"PROPRIÉTAIRES-OCCUPANTS, À L’UNITÉ"},{"$f":"IFERROR(VLOOKUP(D1538,Translation!$A:$C,3,FALSE),D1538)","v":"Aucun pointage de crédit"},{"$f":"IFERROR(VLOOKUP(E1538,Translation!$A:$C,3,FALSE),E1538)","v":9.6691289374103619E-3},{"$f":"IFERROR(VLOOKUP(F1538,Translation!$A:$C,3,FALSE),F1538)","v":"Prêts hypothécaires assurés au cours de la période selon le pointage de crédit à l’initiation (%)"},{"$f":"IFERROR(VLOOKUP(G1538,Translation!$A:$C,3,FALSE),G1538)","v":"0.0"},{"$f":"IFERROR(VLOOKUP(H1538,Translation!$A:$C,3,FALSE),H1538)","v":"Aucun pointage de crédit"}]
[13,"Q4 2016","PROPRIÉTAIRES-OCCUPANTS, À L’UNITÉ","Aucun pointage de crédit",6.5302037526856621E-3,"Prêts hypothécaires assurés au cours de la période selon le pointage de crédit à l’initiation (%)","0.0","Aucun pointage de crédit",{"$f":"IFERROR(VLOOKUP(A1539,Translation!$A:$C,3,FALSE),A1539)","v":13},{"$f":"IFERROR(VLOOKUP(B1539,Translation!$A:$C,3,FALSE),B1539)","v":"Q4 2016"},{"$f":"IFERROR(VLOOKUP(C1539,Translation!$A:$C,3,FALSE),C1539)","v":"PROPRIÉTAIRES-OCCUPANTS, À L’UNITÉ"},{"$f":"IFERROR(VLOOKUP(D1539,Translation!$A:$C,3,FALSE),D1539)","v":"Aucun pointage de crédit"},{"$f":"IFERROR(VLOOKUP(E1539,Translation!$A:$C,3,FALSE),E1539)","v":6.5302037526856621E-3},{"$f":"IFERROR(VLOOKUP(F1539,Translation!$A:$C,3,FALSE),F1539)","v":"Prêts hypothécaires assurés au cours de la période selon le pointage de crédit à l’initiation (%)"},{"$f":"IFERROR(VLOOKUP(G1539,Translation!$A:$C,3,FALSE),G1539)","v":"0.0"},{"$f":"IFERROR(VLOOKUP(H1539,Translation!$A:$C,3,FALSE),H1539)","v":"Aucun pointage de crédit"}]
[13,"T4 2017","PROPRIÉTAIRES-OCCUPANTS, À L’UNITÉ","Aucun pointage de crédit",1.0533598579552802E-2,"Prêts hypothécaires assurés au cours de la période selon le pointage de crédit à l’initiation (%)","0.0","Aucun pointage de crédit",{"$f":"IFERROR(VLOOKUP(A1540,Translation!$A:$C,3,FALSE),A1540)","v":13},{"$f":"IFERROR(VLOOKUP(B1540,Translation!$A:$C,3,FALSE),B1540)","v":"T4 2017"},{"$f":"IFERROR(VLOOKUP(C1540,Translation!$A:$C,3,FALSE),C1540)","v":"PROPRIÉTAIRES-OCCUPANTS, À L’UNITÉ"},{"$f":"IFERROR(VLOOKUP(D1540,Translation!$A:$C,3,FALSE),D1540)","v":"Aucun pointage de crédit"},{"$f":"IFERROR(VLOOKUP(E1540,Translation!$A:$C,3,FALSE),E1540)","v":1.0533598579552802E-2},{"$f":"IFERROR(VLOOKUP(F1540,Translation!$A:$C,3,FALSE),F1540)","v":"Prêts hypothécaires assurés au cours de la période selon le pointage de crédit à l’initiation (%)"},{"$f":"IFERROR(VLOOKUP(G1540,Translation!$A:$C,3,FALSE),G1540)","v":"0.0"},{"$f":"IFERROR(VLOOKUP(H1540,Translation!$A:$C,3,FALSE),H1540)","v":"Aucun pointage de crédit"}]
[13,"T1 2017","PROPRIÉTAIRES-OCCUPANTS, À L’UNITÉ","< 600",0.32410186309678762,"Prêts hypothécaires assurés au cours de la période selon le pointage de crédit à l’initiation (%)","0.3"," < 600",{"$f":"IFERROR(VLOOKUP(A1541,Translation!$A:$C,3,FALSE),A1541)","v":13},{"$f":"IFERROR(VLOOKUP(B1541,Translation!$A:$C,3,FALSE),B1541)","v":"T1 2017"},{"$f":"IFERROR(VLOOKUP(C1541,Translation!$A:$C,3,FALSE),C1541)","v":"PROPRIÉTAIRES-OCCUPANTS, À L’UNITÉ"},{"$f":"IFERROR(VLOOKUP(D1541,Translation!$A:$C,3,FALSE),D1541)","v":"< 600"},{"$f":"IFERROR(VLOOKUP(E1541,Translation!$A:$C,3,FALSE),E1541)","v":0.32410186309678762},{"$f":"IFERROR(VLOOKUP(F1541,Translation!$A:$C,3,FALSE),F1541)","v":"Prêts hypothécaires assurés au cours de la période selon le pointage de crédit à l’initiation (%)"},{"$f":"IFERROR(VLOOKUP(G1541,Translation!$A:$C,3,FALSE),G1541)","v":"0.3"},{"$f":"IFERROR(VLOOKUP(H1541,Translation!$A:$C,3,FALSE),H1541)","v":" < 600"}]
[13,"T1 2018","PROPRIÉTAIRES-OCCUPANTS, À L’UNITÉ","< 600",0.35036644167538317,"Prêts hypothécaires assurés au cours de la période selon le pointage de crédit à l’initiation (%)","0.4"," < 600",{"$f":"IFERROR(VLOOKUP(A1542,Translation!$A:$C,3,FALSE),A1542)","v":13},{"$f":"IFERROR(VLOOKUP(B1542,Translation!$A:$C,3,FALSE),B1542)","v":"T1 2018"},{"$f":"IFERROR(VLOOKUP(C1542,Translation!$A:$C,3,FALSE),C1542)","v":"PROPRIÉTAIRES-OCCUPANTS, À L’UNITÉ"},{"$f":"IFERROR(VLOOKUP(D1542,Translation!$A:$C,3,FALSE),D1542)","v":"< 600"},{"$f":"IFERROR(VLOOKUP(E1542,Translation!$A:$C,3,FALSE),E1542)","v":0.35036644167538317},{"$f":"IFERROR(VLOOKUP(F1542,Translation!$A:$C,3,FALSE),F1542)","v":"Prêts hypothécaires assurés au cours de la période selon le pointage de crédit à l’initiation (%)"},{"$f":"IFERROR(VLOOKUP(G1542,Translation!$A:$C,3,FALSE),G1542)","v":"0.4"},{"$f":"IFERROR(VLOOKUP(H1542,Translation!$A:$C,3,FALSE),H1542)","v":" < 600"}]
[13,"Q2 2016","PROPRIÉTAIRES-OCCUPANTS, À L’UNITÉ","< 600",0.12457600713595048,"Prêts hypothécaires assurés au cours de la période selon le pointage de crédit à l’initiation (%)","0.1"," < 600",{"$f":"IFERROR(VLOOKUP(A1543,Translation!$A:$C,3,FALSE),A1543)","v":13},{"$f":"IFERROR(VLOOKUP(B1543,Translation!$A:$C,3,FALSE),B1543)","v":"Q2 2016"},{"$f":"IFERROR(VLOOKUP(C1543,Translation!$A:$C,3,FALSE),C1543)","v":"PROPRIÉTAIRES-OCCUPANTS, À L’UNITÉ"},{"$f":"IFERROR(VLOOKUP(D1543,Translation!$A:$C,3,FALSE),D1543)","v":"< 600"},{"$f":"IFERROR(VLOOKUP(E1543,Translation!$A:$C,3,FALSE),E1543)","v":0.12457600713595048},{"$f":"IFERROR(VLOOKUP(F1543,Translation!$A:$C,3,FALSE),F1543)","v":"Prêts hypothécaires assurés au cours de la période selon le pointage de crédit à l’initiation (%)"},{"$f":"IFERROR(VLOOKUP(G1543,Translation!$A:$C,3,FALSE),G1543)","v":"0.1"},{"$f":"IFERROR(VLOOKUP(H1543,Translation!$A:$C,3,FALSE),H1543)","v":" < 600"}]
[13,"T2 2017","PROPRIÉTAIRES-OCCUPANTS, À L’UNITÉ","< 600",0.36964168821476751,"Prêts hypothécaires assurés au cours de la période selon le pointage de crédit à l’initiation (%)","0.4"," < 600",{"$f":"IFERROR(VLOOKUP(A1544,Translation!$A:$C,3,FALSE),A1544)","v":13},{"$f":"IFERROR(VLOOKUP(B1544,Translation!$A:$C,3,FALSE),B1544)","v":"T2 2017"},{"$f":"IFERROR(VLOOKUP(C1544,Translation!$A:$C,3,FALSE),C1544)","v":"PROPRIÉTAIRES-OCCUPANTS, À L’UNITÉ"},{"$f":"IFERROR(VLOOKUP(D1544,Translation!$A:$C,3,FALSE),D1544)","v":"< 600"},{"$f":"IFERROR(VLOOKUP(E1544,Translation!$A:$C,3,FALSE),E1544)","v":0.36964168821476751},{"$f":"IFERROR(VLOOKUP(F1544,Translation!$A:$C,3,FALSE),F1544)","v":"Prêts hypothécaires assurés au cours de la période selon le pointage de crédit à l’initiation (%)"},{"$f":"IFERROR(VLOOKUP(G1544,Translation!$A:$C,3,FALSE),G1544)","v":"0.4"},{"$f":"IFERROR(VLOOKUP(H1544,Translation!$A:$C,3,FALSE),H1544)","v":" < 600"}]
[13,"Q3 2016","PROPRIÉTAIRES-OCCUPANTS, À L’UNITÉ","< 600",9.2457999513910177E-2,"Prêts hypothécaires assurés au cours de la période selon le pointage de crédit à l’initiation (%)","0.1"," < 600",{"$f":"IFERROR(VLOOKUP(A1545,Translation!$A:$C,3,FALSE),A1545)","v":13},{"$f":"IFERROR(VLOOKUP(B1545,Translation!$A:$C,3,FALSE),B1545)","v":"Q3 2016"},{"$f":"IFERROR(VLOOKUP(C1545,Translation!$A:$C,3,FALSE),C1545)","v":"PROPRIÉTAIRES-OCCUPANTS, À L’UNITÉ"},{"$f":"IFERROR(VLOOKUP(D1545,Translation!$A:$C,3,FALSE),D1545)","v":"< 600"},{"$f":"IFERROR(VLOOKUP(E1545,Translation!$A:$C,3,FALSE),E1545)","v":9.2457999513910177E-2},{"$f":"IFERROR(VLOOKUP(F1545,Translation!$A:$C,3,FALSE),F1545)","v":"Prêts hypothécaires assurés au cours de la période selon le pointage de crédit à l’initiation (%)"},{"$f":"IFERROR(VLOOKUP(G1545,Translation!$A:$C,3,FALSE),G1545)","v":"0.1"},{"$f":"IFERROR(VLOOKUP(H1545,Translation!$A:$C,3,FALSE),H1545)","v":" < 600"}]
[13,"T3 2017","PROPRIÉTAIRES-OCCUPANTS, À L’UNITÉ","< 600",0.35885221611031426,"Prêts hypothécaires assurés au cours de la période selon le pointage de crédit à l’initiation (%)","0.4"," < 600",{"$f":"IFERROR(VLOOKUP(A1546,Translation!$A:$C,3,FALSE),A1546)","v":13},{"$f":"IFERROR(VLOOKUP(B1546,Translation!$A:$C,3,FALSE),B1546)","v":"T3 2017"},{"$f":"IFERROR(VLOOKUP(C1546,Translation!$A:$C,3,FALSE),C1546)","v":"PROPRIÉTAIRES-OCCUPANTS, À L’UNITÉ"},{"$f":"IFERROR(VLOOKUP(D1546,Translation!$A:$C,3,FALSE),D1546)","v":"< 600"},{"$f":"IFERROR(VLOOKUP(E1546,Translation!$A:$C,3,FALSE),E1546)","v":0.35885221611031426},{"$f":"IFERROR(VLOOKUP(F1546,Translation!$A:$C,3,FALSE),F1546)","v":"Prêts hypothécaires assurés au cours de la période selon le pointage de crédit à l’initiation (%)"},{"$f":"IFERROR(VLOOKUP(G1546,Translation!$A:$C,3,FALSE),G1546)","v":"0.4"},{"$f":"IFERROR(VLOOKUP(H1546,Translation!$A:$C,3,FALSE),H1546)","v":" < 600"}]
[13,"Q4 2016","PROPRIÉTAIRES-OCCUPANTS, À L’UNITÉ","< 600",0.16455608699715327,"Prêts hypothécaires assurés au cours de la période selon le pointage de crédit à l’initiation (%)","0.2"," < 600",{"$f":"IFERROR(VLOOKUP(A1547,Translation!$A:$C,3,FALSE),A1547)","v":13},{"$f":"IFERROR(VLOOKUP(B1547,Translation!$A:$C,3,FALSE),B1547)","v":"Q4 2016"},{"$f":"IFERROR(VLOOKUP(C1547,Translation!$A:$C,3,FALSE),C1547)","v":"PROPRIÉTAIRES-OCCUPANTS, À L’UNITÉ"},{"$f":"IFERROR(VLOOKUP(D1547,Translation!$A:$C,3,FALSE),D1547)","v":"< 600"},{"$f":"IFERROR(VLOOKUP(E1547,Translation!$A:$C,3,FALSE),E1547)","v":0.16455608699715327},{"$f":"IFERROR(VLOOKUP(F1547,Translation!$A:$C,3,FALSE),F1547)","v":"Prêts hypothécaires assurés au cours de la période selon le pointage de crédit à l’initiation (%)"},{"$f":"IFERROR(VLOOKUP(G1547,Translation!$A:$C,3,FALSE),G1547)","v":"0.2"},{"$f":"IFERROR(VLOOKUP(H1547,Translation!$A:$C,3,FALSE),H1547)","v":" < 600"}]
[13,"T4 2017","PROPRIÉTAIRES-OCCUPANTS, À L’UNITÉ","< 600",0.46783975784757376,"Prêts hypothécaires assurés au cours de la période selon le pointage de crédit à l’initiation (%)","0.5"," < 600",{"$f":"IFERROR(VLOOKUP(A1548,Translation!$A:$C,3,FALSE),A1548)","v":13},{"$f":"IFERROR(VLOOKUP(B1548,Translation!$A:$C,3,FALSE),B1548)","v":"T4 2017"},{"$f":"IFERROR(VLOOKUP(C1548,Translation!$A:$C,3,FALSE),C1548)","v":"PROPRIÉTAIRES-OCCUPANTS, À L’UNITÉ"},{"$f":"IFERROR(VLOOKUP(D1548,Translation!$A:$C,3,FALSE),D1548)","v":"< 600"},{"$f":"IFERROR(VLOOKUP(E1548,Translation!$A:$C,3,FALSE),E1548)","v":0.46783975784757376},{"$f":"IFERROR(VLOOKUP(F1548,Translation!$A:$C,3,FALSE),F1548)","v":"Prêts hypothécaires assurés au cours de la période selon le pointage de crédit à l’initiation (%)"},{"$f":"IFERROR(VLOOKUP(G1548,Translation!$A:$C,3,FALSE),G1548)","v":"0.5"},{"$f":"IFERROR(VLOOKUP(H1548,Translation!$A:$C,3,FALSE),H1548)","v":" < 600"}]
[13,"T1 2017","PROPRIÉTAIRES-OCCUPANTS, À L’UNITÉ",">= 600 < 680",7.3584402749450195,"Prêts hypothécaires assurés au cours de la période selon le pointage de crédit à l’initiation (%)","7.4"," >= 600 < 680",{"$f":"IFERROR(VLOOKUP(A1549,Translation!$A:$C,3,FALSE),A1549)","v":13},{"$f":"IFERROR(VLOOKUP(B1549,Translation!$A:$C,3,FALSE),B1549)","v":"T1 2017"},{"$f":"IFERROR(VLOOKUP(C1549,Translation!$A:$C,3,FALSE),C1549)","v":"PROPRIÉTAIRES-OCCUPANTS, À L’UNITÉ"},{"$f":"IFERROR(VLOOKUP(D1549,Translation!$A:$C,3,FALSE),D1549)","v":">= 600 < 680"},{"$f":"IFERROR(VLOOKUP(E1549,Translation!$A:$C,3,FALSE),E1549)","v":7.3584402749450195},{"$f":"IFERROR(VLOOKUP(F1549,Translation!$A:$C,3,FALSE),F1549)","v":"Prêts hypothécaires assurés au cours de la période selon le pointage de crédit à l’initiation (%)"},{"$f":"IFERROR(VLOOKUP(G1549,Translation!$A:$C,3,FALSE),G1549)","v":"7.4"},{"$f":"IFERROR(VLOOKUP(H1549,Translation!$A:$C,3,FALSE),H1549)","v":" >= 600 < 680"}]
[13,"T1 2018","PROPRIÉTAIRES-OCCUPANTS, À L’UNITÉ",">= 600 < 680",6.6019034858320147,"Prêts hypothécaires assurés au cours de la période selon le pointage de crédit à l’initiation (%)","6.6"," >= 600 < 680",{"$f":"IFERROR(VLOOKUP(A1550,Translation!$A:$C,3,FALSE),A1550)","v":13},{"$f":"IFERROR(VLOOKUP(B1550,Translation!$A:$C,3,FALSE),B1550)","v":"T1 2018"},{"$f":"IFERROR(VLOOKUP(C1550,Translation!$A:$C,3,FALSE),C1550)","v":"PROPRIÉTAIRES-OCCUPANTS, À L’UNITÉ"},{"$f":"IFERROR(VLOOKUP(D1550,Translation!$A:$C,3,FALSE),D1550)","v":">= 600 < 680"},{"$f":"IFERROR(VLOOKUP(E1550,Translation!$A:$C,3,FALSE),E1550)","v":6.6019034858320147},{"$f":"IFERROR(VLOOKUP(F1550,Translation!$A:$C,3,FALSE),F1550)","v":"Prêts hypothécaires assurés au cours de la période selon le pointage de crédit à l’initiation (%)"},{"$f":"IFERROR(VLOOKUP(G1550,Translation!$A:$C,3,FALSE),G1550)","v":"6.6"},{"$f":"IFERROR(VLOOKUP(H1550,Translation!$A:$C,3,FALSE),H1550)","v":" >= 600 < 680"}]
[13,"Q2 2016","PROPRIÉTAIRES-OCCUPANTS, À L’UNITÉ",">= 600 < 680",8.1330319845086354,"Prêts hypothécaires assurés au cours de la période selon le pointage de crédit à l’initiation (%)","8.1"," >= 600 < 680",{"$f":"IFERROR(VLOOKUP(A1551,Translation!$A:$C,3,FALSE),A1551)","v":13},{"$f":"IFERROR(VLOOKUP(B1551,Translation!$A:$C,3,FALSE),B1551)","v":"Q2 2016"},{"$f":"IFERROR(VLOOKUP(C1551,Translation!$A:$C,3,FALSE),C1551)","v":"PROPRIÉTAIRES-OCCUPANTS, À L’UNITÉ"},{"$f":"IFERROR(VLOOKUP(D1551,Translation!$A:$C,3,FALSE),D1551)","v":">= 600 < 680"},{"$f":"IFERROR(VLOOKUP(E1551,Translation!$A:$C,3,FALSE),E1551)","v":8.1330319845086354},{"$f":"IFERROR(VLOOKUP(F1551,Translation!$A:$C,3,FALSE),F1551)","v":"Prêts hypothécaires assurés au cours de la période selon le pointage de crédit à l’initiation (%)"},{"$f":"IFERROR(VLOOKUP(G1551,Translation!$A:$C,3,FALSE),G1551)","v":"8.1"},{"$f":"IFERROR(VLOOKUP(H1551,Translation!$A:$C,3,FALSE),H1551)","v":" >= 600 < 680"}]
[13,"T2 2017","PROPRIÉTAIRES-OCCUPANTS, À L’UNITÉ",">= 600 < 680",6.0891575312399597,"Prêts hypothécaires assurés au cours de la période selon le pointage de crédit à l’initiation (%)","6.1"," >= 600 < 680",{"$f":"IFERROR(VLOOKUP(A1552,Translation!$A:$C,3,FALSE),A1552)","v":13},{"$f":"IFERROR(VLOOKUP(B1552,Translation!$A:$C,3,FALSE),B1552)","v":"T2 2017"},{"$f":"IFERROR(VLOOKUP(C1552,Translation!$A:$C,3,FALSE),C1552)","v":"PROPRIÉTAIRES-OCCUPANTS, À L’UNITÉ"},{"$f":"IFERROR(VLOOKUP(D1552,Translation!$A:$C,3,FALSE),D1552)","v":">= 600 < 680"},{"$f":"IFERROR(VLOOKUP(E1552,Translation!$A:$C,3,FALSE),E1552)","v":6.0891575312399597},{"$f":"IFERROR(VLOOKUP(F1552,Translation!$A:$C,3,FALSE),F1552)","v":"Prêts hypothécaires assurés au cours de la période selon le pointage de crédit à l’initiation (%)"},{"$f":"IFERROR(VLOOKUP(G1552,Translation!$A:$C,3,FALSE),G1552)","v":"6.1"},{"$f":"IFERROR(VLOOKUP(H1552,Translation!$A:$C,3,FALSE),H1552)","v":" >= 600 < 680"}]
[13,"Q3 2016","PROPRIÉTAIRES-OCCUPANTS, À L’UNITÉ",">= 600 < 680",8.0784824040335028,"Prêts hypothécaires assurés au cours de la période selon le pointage de crédit à l’initiation (%)","8.1"," >= 600 < 680",{"$f":"IFERROR(VLOOKUP(A1553,Translation!$A:$C,3,FALSE),A1553)","v":13},{"$f":"IFERROR(VLOOKUP(B1553,Translation!$A:$C,3,FALSE),B1553)","v":"Q3 2016"},{"$f":"IFERROR(VLOOKUP(C1553,Translation!$A:$C,3,FALSE),C1553)","v":"PROPRIÉTAIRES-OCCUPANTS, À L’UNITÉ"},{"$f":"IFERROR(VLOOKUP(D1553,Translation!$A:$C,3,FALSE),D1553)","v":">= 600 < 680"},{"$f":"IFERROR(VLOOKUP(E1553,Translation!$A:$C,3,FALSE),E1553)","v":8.0784824040335028},{"$f":"IFERROR(VLOOKUP(F1553,Translation!$A:$C,3,FALSE),F1553)","v":"Prêts hypothécaires assurés au cours de la période selon le pointage de crédit à l’initiation (%)"},{"$f":"IFERROR(VLOOKUP(G1553,Translation!$A:$C,3,FALSE),G1553)","v":"8.1"},{"$f":"IFERROR(VLOOKUP(H1553,Translation!$A:$C,3,FALSE),H1553)","v":" >= 600 < 680"}]
[13,"T3 2017","PROPRIÉTAIRES-OCCUPANTS, À L’UNITÉ",">= 600 < 680",6.359736257222008,"Prêts hypothécaires assurés au cours de la période selon le pointage de crédit à l’initiation (%)","6.4"," >= 600 < 680",{"$f":"IFERROR(VLOOKUP(A1554,Translation!$A:$C,3,FALSE),A1554)","v":13},{"$f":"IFERROR(VLOOKUP(B1554,Translation!$A:$C,3,FALSE),B1554)","v":"T3 2017"},{"$f":"IFERROR(VLOOKUP(C1554,Translation!$A:$C,3,FALSE),C1554)","v":"PROPRIÉTAIRES-OCCUPANTS, À L’UNITÉ"},{"$f":"IFERROR(VLOOKUP(D1554,Translation!$A:$C,3,FALSE),D1554)","v":">= 600 < 680"},{"$f":"IFERROR(VLOOKUP(E1554,Translation!$A:$C,3,FALSE),E1554)","v":6.359736257222008},{"$f":"IFERROR(VLOOKUP(F1554,Translation!$A:$C,3,FALSE),F1554)","v":"Prêts hypothécaires assurés au cours de la période selon le pointage de crédit à l’initiation (%)"},{"$f":"IFERROR(VLOOKUP(G1554,Translation!$A:$C,3,FALSE),G1554)","v":"6.4"},{"$f":"IFERROR(VLOOKUP(H1554,Translation!$A:$C,3,FALSE),H1554)","v":" >= 600 < 680"}]
[13,"Q4 2016","PROPRIÉTAIRES-OCCUPANTS, À L’UNITÉ",">= 600 < 680",7.9027570294564349,"Prêts hypothécaires assurés au cours de la période selon le pointage de crédit à l’initiation (%)","7.9"," >= 600 < 680",{"$f":"IFERROR(VLOOKUP(A1555,Translation!$A:$C,3,FALSE),A1555)","v":13},{"$f":"IFERROR(VLOOKUP(B1555,Translation!$A:$C,3,FALSE),B1555)","v":"Q4 2016"},{"$f":"IFERROR(VLOOKUP(C1555,Translation!$A:$C,3,FALSE),C1555)","v":"PROPRIÉTAIRES-OCCUPANTS, À L’UNITÉ"},{"$f":"IFERROR(VLOOKUP(D1555,Translation!$A:$C,3,FALSE),D1555)","v":">= 600 < 680"},{"$f":"IFERROR(VLOOKUP(E1555,Translation!$A:$C,3,FALSE),E1555)","v":7.9027570294564349},{"$f":"IFERROR(VLOOKUP(F1555,Translation!$A:$C,3,FALSE),F1555)","v":"Prêts hypothécaires assurés au cours de la période selon le pointage de crédit à l’initiation (%)"},{"$f":"IFERROR(VLOOKUP(G1555,Translation!$A:$C,3,FALSE),G1555)","v":"7.9"},{"$f":"IFERROR(VLOOKUP(H1555,Translation!$A:$C,3,FALSE),H1555)","v":" >= 600 < 680"}]
[13,"T4 2017","PROPRIÉTAIRES-OCCUPANTS, À L’UNITÉ",">= 600 < 680",6.5496770179890671,"Prêts hypothécaires assurés au cours de la période selon le pointage de crédit à l’initiation (%)","6.5"," >= 600 < 680",{"$f":"IFERROR(VLOOKUP(A1556,Translation!$A:$C,3,FALSE),A1556)","v":13},{"$f":"IFERROR(VLOOKUP(B1556,Translation!$A:$C,3,FALSE),B1556)","v":"T4 2017"},{"$f":"IFERROR(VLOOKUP(C1556,Translation!$A:$C,3,FALSE),C1556)","v":"PROPRIÉTAIRES-OCCUPANTS, À L’UNITÉ"},{"$f":"IFERROR(VLOOKUP(D1556,Translation!$A:$C,3,FALSE),D1556)","v":">= 600 < 680"},{"$f":"IFERROR(VLOOKUP(E1556,Translation!$A:$C,3,FALSE),E1556)","v":6.5496770179890671},{"$f":"IFERROR(VLOOKUP(F1556,Translation!$A:$C,3,FALSE),F1556)","v":"Prêts hypothécaires assurés au cours de la période selon le pointage de crédit à l’initiation (%)"},{"$f":"IFERROR(VLOOKUP(G1556,Translation!$A:$C,3,FALSE),G1556)","v":"6.5"},{"$f":"IFERROR(VLOOKUP(H1556,Translation!$A:$C,3,FALSE),H1556)","v":" >= 600 < 680"}]
[13,"T1 2017","PROPRIÉTAIRES-OCCUPANTS, À L’UNITÉ",">= 680 < 700",5.9833107733339244,"Prêts hypothécaires assurés au cours de la période selon le pointage de crédit à l’initiation (%)","6.0"," >= 680 < 700",{"$f":"IFERROR(VLOOKUP(A1557,Translation!$A:$C,3,FALSE),A1557)","v":13},{"$f":"IFERROR(VLOOKUP(B1557,Translation!$A:$C,3,FALSE),B1557)","v":"T1 2017"},{"$f":"IFERROR(VLOOKUP(C1557,Translation!$A:$C,3,FALSE),C1557)","v":"PROPRIÉTAIRES-OCCUPANTS, À L’UNITÉ"},{"$f":"IFERROR(VLOOKUP(D1557,Translation!$A:$C,3,FALSE),D1557)","v":">= 680 < 700"},{"$f":"IFERROR(VLOOKUP(E1557,Translation!$A:$C,3,FALSE),E1557)","v":5.9833107733339244},{"$f":"IFERROR(VLOOKUP(F1557,Translation!$A:$C,3,FALSE),F1557)","v":"Prêts hypothécaires assurés au cours de la période selon le pointage de crédit à l’initiation (%)"},{"$f":"IFERROR(VLOOKUP(G1557,Translation!$A:$C,3,FALSE),G1557)","v":"6.0"},{"$f":"IFERROR(VLOOKUP(H1557,Translation!$A:$C,3,FALSE),H1557)","v":" >= 680 < 700"}]
[13,"T1 2018","PROPRIÉTAIRES-OCCUPANTS, À L’UNITÉ",">= 680 < 700",5.7037545960731348,"Prêts hypothécaires assurés au cours de la période selon le pointage de crédit à l’initiation (%)","5.7"," >= 680 < 700",{"$f":"IFERROR(VLOOKUP(A1558,Translation!$A:$C,3,FALSE),A1558)","v":13},{"$f":"IFERROR(VLOOKUP(B1558,Translation!$A:$C,3,FALSE),B1558)","v":"T1 2018"},{"$f":"IFERROR(VLOOKUP(C1558,Translation!$A:$C,3,FALSE),C1558)","v":"PROPRIÉTAIRES-OCCUPANTS, À L’UNITÉ"},{"$f":"IFERROR(VLOOKUP(D1558,Translation!$A:$C,3,FALSE),D1558)","v":">= 680 < 700"},{"$f":"IFERROR(VLOOKUP(E1558,Translation!$A:$C,3,FALSE),E1558)","v":5.7037545960731348},{"$f":"IFERROR(VLOOKUP(F1558,Translation!$A:$C,3,FALSE),F1558)","v":"Prêts hypothécaires assurés au cours de la période selon le pointage de crédit à l’initiation (%)"},{"$f":"IFERROR(VLOOKUP(G1558,Translation!$A:$C,3,FALSE),G1558)","v":"5.7"},{"$f":"IFERROR(VLOOKUP(H1558,Translation!$A:$C,3,FALSE),H1558)","v":" >= 680 < 700"}]
[13,"Q2 2016","PROPRIÉTAIRES-OCCUPANTS, À L’UNITÉ",">= 680 < 700",6.5833905512188862,"Prêts hypothécaires assurés au cours de la période selon le pointage de crédit à l’initiation (%)","6.6"," >= 680 < 700",{"$f":"IFERROR(VLOOKUP(A1559,Translation!$A:$C,3,FALSE),A1559)","v":13},{"$f":"IFERROR(VLOOKUP(B1559,Translation!$A:$C,3,FALSE),B1559)","v":"Q2 2016"},{"$f":"IFERROR(VLOOKUP(C1559,Translation!$A:$C,3,FALSE),C1559)","v":"PROPRIÉTAIRES-OCCUPANTS, À L’UNITÉ"},{"$f":"IFERROR(VLOOKUP(D1559,Translation!$A:$C,3,FALSE),D1559)","v":">= 680 < 700"},{"$f":"IFERROR(VLOOKUP(E1559,Translation!$A:$C,3,FALSE),E1559)","v":6.5833905512188862},{"$f":"IFERROR(VLOOKUP(F1559,Translation!$A:$C,3,FALSE),F1559)","v":"Prêts hypothécaires assurés au cours de la période selon le pointage de crédit à l’initiation (%)"},{"$f":"IFERROR(VLOOKUP(G1559,Translation!$A:$C,3,FALSE),G1559)","v":"6.6"},{"$f":"IFERROR(VLOOKUP(H1559,Translation!$A:$C,3,FALSE),H1559)","v":" >= 680 < 700"}]
[13,"T2 2017","PROPRIÉTAIRES-OCCUPANTS, À L’UNITÉ",">= 680 < 700",5.9984654428082917,"Prêts hypothécaires assurés au cours de la période selon le pointage de crédit à l’initiation (%)","6.0"," >= 680 < 700",{"$f":"IFERROR(VLOOKUP(A1560,Translation!$A:$C,3,FALSE),A1560)","v":13},{"$f":"IFERROR(VLOOKUP(B1560,Translation!$A:$C,3,FALSE),B1560)","v":"T2 2017"},{"$f":"IFERROR(VLOOKUP(C1560,Translation!$A:$C,3,FALSE),C1560)","v":"PROPRIÉTAIRES-OCCUPANTS, À L’UNITÉ"},{"$f":"IFERROR(VLOOKUP(D1560,Translation!$A:$C,3,FALSE),D1560)","v":">= 680 < 700"},{"$f":"IFERROR(VLOOKUP(E1560,Translation!$A:$C,3,FALSE),E1560)","v":5.9984654428082917},{"$f":"IFERROR(VLOOKUP(F1560,Translation!$A:$C,3,FALSE),F1560)","v":"Prêts hypothécaires assurés au cours de la période selon le pointage de crédit à l’initiation (%)"},{"$f":"IFERROR(VLOOKUP(G1560,Translation!$A:$C,3,FALSE),G1560)","v":"6.0"},{"$f":"IFERROR(VLOOKUP(H1560,Translation!$A:$C,3,FALSE),H1560)","v":" >= 680 < 700"}]
[13,"Q3 2016","PROPRIÉTAIRES-OCCUPANTS, À L’UNITÉ",">= 680 < 700",6.3960761197306688,"Prêts hypothécaires assurés au cours de la période selon le pointage de crédit à l’initiation (%)","6.4"," >= 680 < 700",{"$f":"IFERROR(VLOOKUP(A1561,Translation!$A:$C,3,FALSE),A1561)","v":13},{"$f":"IFERROR(VLOOKUP(B1561,Translation!$A:$C,3,FALSE),B1561)","v":"Q3 2016"},{"$f":"IFERROR(VLOOKUP(C1561,Translation!$A:$C,3,FALSE),C1561)","v":"PROPRIÉTAIRES-OCCUPANTS, À L’UNITÉ"},{"$f":"IFERROR(VLOOKUP(D1561,Translation!$A:$C,3,FALSE),D1561)","v":">= 680 < 700"},{"$f":"IFERROR(VLOOKUP(E1561,Translation!$A:$C,3,FALSE),E1561)","v":6.3960761197306688},{"$f":"IFERROR(VLOOKUP(F1561,Translation!$A:$C,3,FALSE),F1561)","v":"Prêts hypothécaires assurés au cours de la période selon le pointage de crédit à l’initiation (%)"},{"$f":"IFERROR(VLOOKUP(G1561,Translation!$A:$C,3,FALSE),G1561)","v":"6.4"},{"$f":"IFERROR(VLOOKUP(H1561,Translation!$A:$C,3,FALSE),H1561)","v":" >= 680 < 700"}]
[13,"T3 2017","PROPRIÉTAIRES-OCCUPANTS, À L’UNITÉ",">= 680 < 700",5.6963108486374177,"Prêts hypothécaires assurés au cours de la période selon le pointage de crédit à l’initiation (%)","5.7"," >= 680 < 700",{"$f":"IFERROR(VLOOKUP(A1562,Translation!$A:$C,3,FALSE),A1562)","v":13},{"$f":"IFERROR(VLOOKUP(B1562,Translation!$A:$C,3,FALSE),B1562)","v":"T3 2017"},{"$f":"IFERROR(VLOOKUP(C1562,Translation!$A:$C,3,FALSE),C1562)","v":"PROPRIÉTAIRES-OCCUPANTS, À L’UNITÉ"},{"$f":"IFERROR(VLOOKUP(D1562,Translation!$A:$C,3,FALSE),D1562)","v":">= 680 < 700"},{"$f":"IFERROR(VLOOKUP(E1562,Translation!$A:$C,3,FALSE),E1562)","v":5.6963108486374177},{"$f":"IFERROR(VLOOKUP(F1562,Translation!$A:$C,3,FALSE),F1562)","v":"Prêts hypothécaires assurés au cours de la période selon le pointage de crédit à l’initiation (%)"},{"$f":"IFERROR(VLOOKUP(G1562,Translation!$A:$C,3,FALSE),G1562)","v":"5.7"},{"$f":"IFERROR(VLOOKUP(H1562,Translation!$A:$C,3,FALSE),H1562)","v":" >= 680 < 700"}]
[13,"Q4 2016","PROPRIÉTAIRES-OCCUPANTS, À L’UNITÉ",">= 680 < 700",6.4541242275100696,"Prêts hypothécaires assurés au cours de la période selon le pointage de crédit à l’initiation (%)","6.5"," >= 680 < 700",{"$f":"IFERROR(VLOOKUP(A1563,Translation!$A:$C,3,FALSE),A1563)","v":13},{"$f":"IFERROR(VLOOKUP(B1563,Translation!$A:$C,3,FALSE),B1563)","v":"Q4 2016"},{"$f":"IFERROR(VLOOKUP(C1563,Translation!$A:$C,3,FALSE),C1563)","v":"PROPRIÉTAIRES-OCCUPANTS, À L’UNITÉ"},{"$f":"IFERROR(VLOOKUP(D1563,Translation!$A:$C,3,FALSE),D1563)","v":">= 680 < 700"},{"$f":"IFERROR(VLOOKUP(E1563,Translation!$A:$C,3,FALSE),E1563)","v":6.4541242275100696},{"$f":"IFERROR(VLOOKUP(F1563,Translation!$A:$C,3,FALSE),F1563)","v":"Prêts hypothécaires assurés au cours de la période selon le pointage de crédit à l’initiation (%)"},{"$f":"IFERROR(VLOOKUP(G1563,Translation!$A:$C,3,FALSE),G1563)","v":"6.5"},{"$f":"IFERROR(VLOOKUP(H1563,Translation!$A:$C,3,FALSE),H1563)","v":" >= 680 < 700"}]
[13,"T4 2017","PROPRIÉTAIRES-OCCUPANTS, À L’UNITÉ",">= 680 < 700",5.9352702343444079,"Prêts hypothécaires assurés au cours de la période selon le pointage de crédit à l’initiation (%)","5.9"," >= 680 < 700",{"$f":"IFERROR(VLOOKUP(A1564,Translation!$A:$C,3,FALSE),A1564)","v":13},{"$f":"IFERROR(VLOOKUP(B1564,Translation!$A:$C,3,FALSE),B1564)","v":"T4 2017"},{"$f":"IFERROR(VLOOKUP(C1564,Translation!$A:$C,3,FALSE),C1564)","v":"PROPRIÉTAIRES-OCCUPANTS, À L’UNITÉ"},{"$f":"IFERROR(VLOOKUP(D1564,Translation!$A:$C,3,FALSE),D1564)","v":">= 680 < 700"},{"$f":"IFERROR(VLOOKUP(E1564,Translation!$A:$C,3,FALSE),E1564)","v":5.9352702343444079},{"$f":"IFERROR(VLOOKUP(F1564,Translation!$A:$C,3,FALSE),F1564)","v":"Prêts hypothécaires assurés au cours de la période selon le pointage de crédit à l’initiation (%)"},{"$f":"IFERROR(VLOOKUP(G1564,Translation!$A:$C,3,FALSE),G1564)","v":"5.9"},{"$f":"IFERROR(VLOOKUP(H1564,Translation!$A:$C,3,FALSE),H1564)","v":" >= 680 < 700"}]
[13,"T1 2017","PROPRIÉTAIRES-OCCUPANTS, À L’UNITÉ",">= 700 < 750",29.109711497353995,"Prêts hypothécaires assurés au cours de la période selon le pointage de crédit à l’initiation (%)","29.1"," >= 700 < 750",{"$f":"IFERROR(VLOOKUP(A1565,Translation!$A:$C,3,FALSE),A1565)","v":13},{"$f":"IFERROR(VLOOKUP(B1565,Translation!$A:$C,3,FALSE),B1565)","v":"T1 2017"},{"$f":"IFERROR(VLOOKUP(C1565,Translation!$A:$C,3,FALSE),C1565)","v":"PROPRIÉTAIRES-OCCUPANTS, À L’UNITÉ"},{"$f":"IFERROR(VLOOKUP(D1565,Translation!$A:$C,3,FALSE),D1565)","v":">= 700 < 750"},{"$f":"IFERROR(VLOOKUP(E1565,Translation!$A:$C,3,FALSE),E1565)","v":29.109711497353995},{"$f":"IFERROR(VLOOKUP(F1565,Translation!$A:$C,3,FALSE),F1565)","v":"Prêts hypothécaires assurés au cours de la période selon le pointage de crédit à l’initiation (%)"},{"$f":"IFERROR(VLOOKUP(G1565,Translation!$A:$C,3,FALSE),G1565)","v":"29.1"},{"$f":"IFERROR(VLOOKUP(H1565,Translation!$A:$C,3,FALSE),H1565)","v":" >= 700 < 750"}]
[13,"T1 2018","PROPRIÉTAIRES-OCCUPANTS, À L’UNITÉ",">= 700 < 750",27.901479346558592,"Prêts hypothécaires assurés au cours de la période selon le pointage de crédit à l’initiation (%)","27.9"," >= 700 < 750",{"$f":"IFERROR(VLOOKUP(A1566,Translation!$A:$C,3,FALSE),A1566)","v":13},{"$f":"IFERROR(VLOOKUP(B1566,Translation!$A:$C,3,FALSE),B1566)","v":"T1 2018"},{"$f":"IFERROR(VLOOKUP(C1566,Translation!$A:$C,3,FALSE),C1566)","v":"PROPRIÉTAIRES-OCCUPANTS, À L’UNITÉ"},{"$f":"IFERROR(VLOOKUP(D1566,Translation!$A:$C,3,FALSE),D1566)","v":">= 700 < 750"},{"$f":"IFERROR(VLOOKUP(E1566,Translation!$A:$C,3,FALSE),E1566)","v":27.901479346558592},{"$f":"IFERROR(VLOOKUP(F1566,Translation!$A:$C,3,FALSE),F1566)","v":"Prêts hypothécaires assurés au cours de la période selon le pointage de crédit à l’initiation (%)"},{"$f":"IFERROR(VLOOKUP(G1566,Translation!$A:$C,3,FALSE),G1566)","v":"27.9"},{"$f":"IFERROR(VLOOKUP(H1566,Translation!$A:$C,3,FALSE),H1566)","v":" >= 700 < 750"}]
[13,"Q2 2016","PROPRIÉTAIRES-OCCUPANTS, À L’UNITÉ",">= 700 < 750",29.806490978514361,"Prêts hypothécaires assurés au cours de la période selon le pointage de crédit à l’initiation (%)","29.8"," >= 700 < 750",{"$f":"IFERROR(VLOOKUP(A1567,Translation!$A:$C,3,FALSE),A1567)","v":13},{"$f":"IFERROR(VLOOKUP(B1567,Translation!$A:$C,3,FALSE),B1567)","v":"Q2 2016"},{"$f":"IFERROR(VLOOKUP(C1567,Translation!$A:$C,3,FALSE),C1567)","v":"PROPRIÉTAIRES-OCCUPANTS, À L’UNITÉ"},{"$f":"IFERROR(VLOOKUP(D1567,Translation!$A:$C,3,FALSE),D1567)","v":">= 700 < 750"},{"$f":"IFERROR(VLOOKUP(E1567,Translation!$A:$C,3,FALSE),E1567)","v":29.806490978514361},{"$f":"IFERROR(VLOOKUP(F1567,Translation!$A:$C,3,FALSE),F1567)","v":"Prêts hypothécaires assurés au cours de la période selon le pointage de crédit à l’initiation (%)"},{"$f":"IFERROR(VLOOKUP(G1567,Translation!$A:$C,3,FALSE),G1567)","v":"29.8"},{"$f":"IFERROR(VLOOKUP(H1567,Translation!$A:$C,3,FALSE),H1567)","v":" >= 700 < 750"}]
[13,"T2 2017","PROPRIÉTAIRES-OCCUPANTS, À L’UNITÉ",">= 700 < 750",28.176375366681871,"Prêts hypothécaires assurés au cours de la période selon le pointage de crédit à l’initiation (%)","28.2"," >= 700 < 750",{"$f":"IFERROR(VLOOKUP(A1568,Translation!$A:$C,3,FALSE),A1568)","v":13},{"$f":"IFERROR(VLOOKUP(B1568,Translation!$A:$C,3,FALSE),B1568)","v":"T2 2017"},{"$f":"IFERROR(VLOOKUP(C1568,Translation!$A:$C,3,FALSE),C1568)","v":"PROPRIÉTAIRES-OCCUPANTS, À L’UNITÉ"},{"$f":"IFERROR(VLOOKUP(D1568,Translation!$A:$C,3,FALSE),D1568)","v":">= 700 < 750"},{"$f":"IFERROR(VLOOKUP(E1568,Translation!$A:$C,3,FALSE),E1568)","v":28.176375366681871},{"$f":"IFERROR(VLOOKUP(F1568,Translation!$A:$C,3,FALSE),F1568)","v":"Prêts hypothécaires assurés au cours de la période selon le pointage de crédit à l’initiation (%)"},{"$f":"IFERROR(VLOOKUP(G1568,Translation!$A:$C,3,FALSE),G1568)","v":"28.2"},{"$f":"IFERROR(VLOOKUP(H1568,Translation!$A:$C,3,FALSE),H1568)","v":" >= 700 < 750"}]
[13,"Q3 2016","PROPRIÉTAIRES-OCCUPANTS, À L’UNITÉ",">= 700 < 750",29.351050415727801,"Prêts hypothécaires assurés au cours de la période selon le pointage de crédit à l’initiation (%)","29.4"," >= 700 < 750",{"$f":"IFERROR(VLOOKUP(A1569,Translation!$A:$C,3,FALSE),A1569)","v":13},{"$f":"IFERROR(VLOOKUP(B1569,Translation!$A:$C,3,FALSE),B1569)","v":"Q3 2016"},{"$f":"IFERROR(VLOOKUP(C1569,Translation!$A:$C,3,FALSE),C1569)","v":"PROPRIÉTAIRES-OCCUPANTS, À L’UNITÉ"},{"$f":"IFERROR(VLOOKUP(D1569,Translation!$A:$C,3,FALSE),D1569)","v":">= 700 < 750"},{"$f":"IFERROR(VLOOKUP(E1569,Translation!$A:$C,3,FALSE),E1569)","v":29.351050415727801},{"$f":"IFERROR(VLOOKUP(F1569,Translation!$A:$C,3,FALSE),F1569)","v":"Prêts hypothécaires assurés au cours de la période selon le pointage de crédit à l’initiation (%)"},{"$f":"IFERROR(VLOOKUP(G1569,Translation!$A:$C,3,FALSE),G1569)","v":"29.4"},{"$f":"IFERROR(VLOOKUP(H1569,Translation!$A:$C,3,FALSE),H1569)","v":" >= 700 < 750"}]
[13,"T3 2017","PROPRIÉTAIRES-OCCUPANTS, À L’UNITÉ",">= 700 < 750",27.861736266734905,"Prêts hypothécaires assurés au cours de la période selon le pointage de crédit à l’initiation (%)","27.9"," >= 700 < 750",{"$f":"IFERROR(VLOOKUP(A1570,Translation!$A:$C,3,FALSE),A1570)","v":13},{"$f":"IFERROR(VLOOKUP(B1570,Translation!$A:$C,3,FALSE),B1570)","v":"T3 2017"},{"$f":"IFERROR(VLOOKUP(C1570,Translation!$A:$C,3,FALSE),C1570)","v":"PROPRIÉTAIRES-OCCUPANTS, À L’UNITÉ"},{"$f":"IFERROR(VLOOKUP(D1570,Translation!$A:$C,3,FALSE),D1570)","v":">= 700 < 750"},{"$f":"IFERROR(VLOOKUP(E1570,Translation!$A:$C,3,FALSE),E1570)","v":27.861736266734905},{"$f":"IFERROR(VLOOKUP(F1570,Translation!$A:$C,3,FALSE),F1570)","v":"Prêts hypothécaires assurés au cours de la période selon le pointage de crédit à l’initiation (%)"},{"$f":"IFERROR(VLOOKUP(G1570,Translation!$A:$C,3,FALSE),G1570)","v":"27.9"},{"$f":"IFERROR(VLOOKUP(H1570,Translation!$A:$C,3,FALSE),H1570)","v":" >= 700 < 750"}]
[13,"Q4 2016","PROPRIÉTAIRES-OCCUPANTS, À L’UNITÉ",">= 700 < 750",28.96880753647924,"Prêts hypothécaires assurés au cours de la période selon le pointage de crédit à l’initiation (%)","29.0"," >= 700 < 750",{"$f":"IFERROR(VLOOKUP(A1571,Translation!$A:$C,3,FALSE),A1571)","v":13},{"$f":"IFERROR(VLOOKUP(B1571,Translation!$A:$C,3,FALSE),B1571)","v":"Q4 2016"},{"$f":"IFERROR(VLOOKUP(C1571,Translation!$A:$C,3,FALSE),C1571)","v":"PROPRIÉTAIRES-OCCUPANTS, À L’UNITÉ"},{"$f":"IFERROR(VLOOKUP(D1571,Translation!$A:$C,3,FALSE),D1571)","v":">= 700 < 750"},{"$f":"IFERROR(VLOOKUP(E1571,Translation!$A:$C,3,FALSE),E1571)","v":28.96880753647924},{"$f":"IFERROR(VLOOKUP(F1571,Translation!$A:$C,3,FALSE),F1571)","v":"Prêts hypothécaires assurés au cours de la période selon le pointage de crédit à l’initiation (%)"},{"$f":"IFERROR(VLOOKUP(G1571,Translation!$A:$C,3,FALSE),G1571)","v":"29.0"},{"$f":"IFERROR(VLOOKUP(H1571,Translation!$A:$C,3,FALSE),H1571)","v":" >= 700 < 750"}]
[13,"T4 2017","PROPRIÉTAIRES-OCCUPANTS, À L’UNITÉ",">= 700 < 750",27.756503294641202,"Prêts hypothécaires assurés au cours de la période selon le pointage de crédit à l’initiation (%)","27.8"," >= 700 < 750",{"$f":"IFERROR(VLOOKUP(A1572,Translation!$A:$C,3,FALSE),A1572)","v":13},{"$f":"IFERROR(VLOOKUP(B1572,Translation!$A:$C,3,FALSE),B1572)","v":"T4 2017"},{"$f":"IFERROR(VLOOKUP(C1572,Translation!$A:$C,3,FALSE),C1572)","v":"PROPRIÉTAIRES-OCCUPANTS, À L’UNITÉ"},{"$f":"IFERROR(VLOOKUP(D1572,Translation!$A:$C,3,FALSE),D1572)","v":">= 700 < 750"},{"$f":"IFERROR(VLOOKUP(E1572,Translation!$A:$C,3,FALSE),E1572)","v":27.756503294641202},{"$f":"IFERROR(VLOOKUP(F1572,Translation!$A:$C,3,FALSE),F1572)","v":"Prêts hypothécaires assurés au cours de la période selon le pointage de crédit à l’initiation (%)"},{"$f":"IFERROR(VLOOKUP(G1572,Translation!$A:$C,3,FALSE),G1572)","v":"27.8"},{"$f":"IFERROR(VLOOKUP(H1572,Translation!$A:$C,3,FALSE),H1572)","v":" >= 700 < 750"}]
[13,"T1 2017","PROPRIÉTAIRES-OCCUPANTS, À L’UNITÉ",">= 750 < 780",26.54995446859084,"Prêts hypothécaires assurés au cours de la période selon le pointage de crédit à l’initiation (%)","26.5"," >= 750 < 780",{"$f":"IFERROR(VLOOKUP(A1573,Translation!$A:$C,3,FALSE),A1573)","v":13},{"$f":"IFERROR(VLOOKUP(B1573,Translation!$A:$C,3,FALSE),B1573)","v":"T1 2017"},{"$f":"IFERROR(VLOOKUP(C1573,Translation!$A:$C,3,FALSE),C1573)","v":"PROPRIÉTAIRES-OCCUPANTS, À L’UNITÉ"},{"$f":"IFERROR(VLOOKUP(D1573,Translation!$A:$C,3,FALSE),D1573)","v":">= 750 < 780"},{"$f":"IFERROR(VLOOKUP(E1573,Translation!$A:$C,3,FALSE),E1573)","v":26.54995446859084},{"$f":"IFERROR(VLOOKUP(F1573,Translation!$A:$C,3,FALSE),F1573)","v":"Prêts hypothécaires assurés au cours de la période selon le pointage de crédit à l’initiation (%)"},{"$f":"IFERROR(VLOOKUP(G1573,Translation!$A:$C,3,FALSE),G1573)","v":"26.5"},{"$f":"IFERROR(VLOOKUP(H1573,Translation!$A:$C,3,FALSE),H1573)","v":" >= 750 < 780"}]
[13,"T1 2018","PROPRIÉTAIRES-OCCUPANTS, À L’UNITÉ",">= 750 < 780",27.999537170495625,"Prêts hypothécaires assurés au cours de la période selon le pointage de crédit à l’initiation (%)","28.0"," >= 750 < 780",{"$f":"IFERROR(VLOOKUP(A1574,Translation!$A:$C,3,FALSE),A1574)","v":13},{"$f":"IFERROR(VLOOKUP(B1574,Translation!$A:$C,3,FALSE),B1574)","v":"T1 2018"},{"$f":"IFERROR(VLOOKUP(C1574,Translation!$A:$C,3,FALSE),C1574)","v":"PROPRIÉTAIRES-OCCUPANTS, À L’UNITÉ"},{"$f":"IFERROR(VLOOKUP(D1574,Translation!$A:$C,3,FALSE),D1574)","v":">= 750 < 780"},{"$f":"IFERROR(VLOOKUP(E1574,Translation!$A:$C,3,FALSE),E1574)","v":27.999537170495625},{"$f":"IFERROR(VLOOKUP(F1574,Translation!$A:$C,3,FALSE),F1574)","v":"Prêts hypothécaires assurés au cours de la période selon le pointage de crédit à l’initiation (%)"},{"$f":"IFERROR(VLOOKUP(G1574,Translation!$A:$C,3,FALSE),G1574)","v":"28.0"},{"$f":"IFERROR(VLOOKUP(H1574,Translation!$A:$C,3,FALSE),H1574)","v":" >= 750 < 780"}]
[13,"Q2 2016","PROPRIÉTAIRES-OCCUPANTS, À L’UNITÉ",">= 750 < 780",26.185232343802955,"Prêts hypothécaires assurés au cours de la période selon le pointage de crédit à l’initiation (%)","26.2"," >= 750 < 780",{"$f":"IFERROR(VLOOKUP(A1575,Translation!$A:$C,3,FALSE),A1575)","v":13},{"$f":"IFERROR(VLOOKUP(B1575,Translation!$A:$C,3,FALSE),B1575)","v":"Q2 2016"},{"$f":"IFERROR(VLOOKUP(C1575,Translation!$A:$C,3,FALSE),C1575)","v":"PROPRIÉTAIRES-OCCUPANTS, À L’UNITÉ"},{"$f":"IFERROR(VLOOKUP(D1575,Translation!$A:$C,3,FALSE),D1575)","v":">= 750 < 780"},{"$f":"IFERROR(VLOOKUP(E1575,Translation!$A:$C,3,FALSE),E1575)","v":26.185232343802955},{"$f":"IFERROR(VLOOKUP(F1575,Translation!$A:$C,3,FALSE),F1575)","v":"Prêts hypothécaires assurés au cours de la période selon le pointage de crédit à l’initiation (%)"},{"$f":"IFERROR(VLOOKUP(G1575,Translation!$A:$C,3,FALSE),G1575)","v":"26.2"},{"$f":"IFERROR(VLOOKUP(H1575,Translation!$A:$C,3,FALSE),H1575)","v":" >= 750 < 780"}]
[13,"T2 2017","PROPRIÉTAIRES-OCCUPANTS, À L’UNITÉ",">= 750 < 780",27.259234932910118,"Prêts hypothécaires assurés au cours de la période selon le pointage de crédit à l’initiation (%)","27.3"," >= 750 < 780",{"$f":"IFERROR(VLOOKUP(A1576,Translation!$A:$C,3,FALSE),A1576)","v":13},{"$f":"IFERROR(VLOOKUP(B1576,Translation!$A:$C,3,FALSE),B1576)","v":"T2 2017"},{"$f":"IFERROR(VLOOKUP(C1576,Translation!$A:$C,3,FALSE),C1576)","v":"PROPRIÉTAIRES-OCCUPANTS, À L’UNITÉ"},{"$f":"IFERROR(VLOOKUP(D1576,Translation!$A:$C,3,FALSE),D1576)","v":">= 750 < 780"},{"$f":"IFERROR(VLOOKUP(E1576,Translation!$A:$C,3,FALSE),E1576)","v":27.259234932910118},{"$f":"IFERROR(VLOOKUP(F1576,Translation!$A:$C,3,FALSE),F1576)","v":"Prêts hypothécaires assurés au cours de la période selon le pointage de crédit à l’initiation (%)"},{"$f":"IFERROR(VLOOKUP(G1576,Translation!$A:$C,3,FALSE),G1576)","v":"27.3"},{"$f":"IFERROR(VLOOKUP(H1576,Translation!$A:$C,3,FALSE),H1576)","v":" >= 750 < 780"}]
[13,"Q3 2016","PROPRIÉTAIRES-OCCUPANTS, À L’UNITÉ",">= 750 < 780",25.872877062765046,"Prêts hypothécaires assurés au cours de la période selon le pointage de crédit à l’initiation (%)","25.9"," >= 750 < 780",{"$f":"IFERROR(VLOOKUP(A1577,Translation!$A:$C,3,FALSE),A1577)","v":13},{"$f":"IFERROR(VLOOKUP(B1577,Translation!$A:$C,3,FALSE),B1577)","v":"Q3 2016"},{"$f":"IFERROR(VLOOKUP(C1577,Translation!$A:$C,3,FALSE),C1577)","v":"PROPRIÉTAIRES-OCCUPANTS, À L’UNITÉ"},{"$f":"IFERROR(VLOOKUP(D1577,Translation!$A:$C,3,FALSE),D1577)","v":">= 750 < 780"},{"$f":"IFERROR(VLOOKUP(E1577,Translation!$A:$C,3,FALSE),E1577)","v":25.872877062765046},{"$f":"IFERROR(VLOOKUP(F1577,Translation!$A:$C,3,FALSE),F1577)","v":"Prêts hypothécaires assurés au cours de la période selon le pointage de crédit à l’initiation (%)"},{"$f":"IFERROR(VLOOKUP(G1577,Translation!$A:$C,3,FALSE),G1577)","v":"25.9"},{"$f":"IFERROR(VLOOKUP(H1577,Translation!$A:$C,3,FALSE),H1577)","v":" >= 750 < 780"}]
[13,"T3 2017","PROPRIÉTAIRES-OCCUPANTS, À L’UNITÉ",">= 750 < 780",27.096775382257324,"Prêts hypothécaires assurés au cours de la période selon le pointage de crédit à l’initiation (%)","27.1"," >= 750 < 780",{"$f":"IFERROR(VLOOKUP(A1578,Translation!$A:$C,3,FALSE),A1578)","v":13},{"$f":"IFERROR(VLOOKUP(B1578,Translation!$A:$C,3,FALSE),B1578)","v":"T3 2017"},{"$f":"IFERROR(VLOOKUP(C1578,Translation!$A:$C,3,FALSE),C1578)","v":"PROPRIÉTAIRES-OCCUPANTS, À L’UNITÉ"},{"$f":"IFERROR(VLOOKUP(D1578,Translation!$A:$C,3,FALSE),D1578)","v":">= 750 < 780"},{"$f":"IFERROR(VLOOKUP(E1578,Translation!$A:$C,3,FALSE),E1578)","v":27.096775382257324},{"$f":"IFERROR(VLOOKUP(F1578,Translation!$A:$C,3,FALSE),F1578)","v":"Prêts hypothécaires assurés au cours de la période selon le pointage de crédit à l’initiation (%)"},{"$f":"IFERROR(VLOOKUP(G1578,Translation!$A:$C,3,FALSE),G1578)","v":"27.1"},{"$f":"IFERROR(VLOOKUP(H1578,Translation!$A:$C,3,FALSE),H1578)","v":" >= 750 < 780"}]
[13,"Q4 2016","PROPRIÉTAIRES-OCCUPANTS, À L’UNITÉ",">= 750 < 780",26.852973842364719,"Prêts hypothécaires assurés au cours de la période selon le pointage de crédit à l’initiation (%)","26.9"," >= 750 < 780",{"$f":"IFERROR(VLOOKUP(A1579,Translation!$A:$C,3,FALSE),A1579)","v":13},{"$f":"IFERROR(VLOOKUP(B1579,Translation!$A:$C,3,FALSE),B1579)","v":"Q4 2016"},{"$f":"IFERROR(VLOOKUP(C1579,Translation!$A:$C,3,FALSE),C1579)","v":"PROPRIÉTAIRES-OCCUPANTS, À L’UNITÉ"},{"$f":"IFERROR(VLOOKUP(D1579,Translation!$A:$C,3,FALSE),D1579)","v":">= 750 < 780"},{"$f":"IFERROR(VLOOKUP(E1579,Translation!$A:$C,3,FALSE),E1579)","v":26.852973842364719},{"$f":"IFERROR(VLOOKUP(F1579,Translation!$A:$C,3,FALSE),F1579)","v":"Prêts hypothécaires assurés au cours de la période selon le pointage de crédit à l’initiation (%)"},{"$f":"IFERROR(VLOOKUP(G1579,Translation!$A:$C,3,FALSE),G1579)","v":"26.9"},{"$f":"IFERROR(VLOOKUP(H1579,Translation!$A:$C,3,FALSE),H1579)","v":" >= 750 < 780"}]
[13,"T4 2017","PROPRIÉTAIRES-OCCUPANTS, À L’UNITÉ",">= 750 < 780",27.635648649403031,"Prêts hypothécaires assurés au cours de la période selon le pointage de crédit à l’initiation (%)","27.6"," >= 750 < 780",{"$f":"IFERROR(VLOOKUP(A1580,Translation!$A:$C,3,FALSE),A1580)","v":13},{"$f":"IFERROR(VLOOKUP(B1580,Translation!$A:$C,3,FALSE),B1580)","v":"T4 2017"},{"$f":"IFERROR(VLOOKUP(C1580,Translation!$A:$C,3,FALSE),C1580)","v":"PROPRIÉTAIRES-OCCUPANTS, À L’UNITÉ"},{"$f":"IFERROR(VLOOKUP(D1580,Translation!$A:$C,3,FALSE),D1580)","v":">= 750 < 780"},{"$f":"IFERROR(VLOOKUP(E1580,Translation!$A:$C,3,FALSE),E1580)","v":27.635648649403031},{"$f":"IFERROR(VLOOKUP(F1580,Translation!$A:$C,3,FALSE),F1580)","v":"Prêts hypothécaires assurés au cours de la période selon le pointage de crédit à l’initiation (%)"},{"$f":"IFERROR(VLOOKUP(G1580,Translation!$A:$C,3,FALSE),G1580)","v":"27.6"},{"$f":"IFERROR(VLOOKUP(H1580,Translation!$A:$C,3,FALSE),H1580)","v":" >= 750 < 780"}]
[13,"T1 2017","PROPRIÉTAIRES-OCCUPANTS, À L’UNITÉ",">= 780",30.666579368058741,"Prêts hypothécaires assurés au cours de la période selon le pointage de crédit à l’initiation (%)","30.7"," >= 780",{"$f":"IFERROR(VLOOKUP(A1581,Translation!$A:$C,3,FALSE),A1581)","v":13},{"$f":"IFERROR(VLOOKUP(B1581,Translation!$A:$C,3,FALSE),B1581)","v":"T1 2017"},{"$f":"IFERROR(VLOOKUP(C1581,Translation!$A:$C,3,FALSE),C1581)","v":"PROPRIÉTAIRES-OCCUPANTS, À L’UNITÉ"},{"$f":"IFERROR(VLOOKUP(D1581,Translation!$A:$C,3,FALSE),D1581)","v":">= 780"},{"$f":"IFERROR(VLOOKUP(E1581,Translation!$A:$C,3,FALSE),E1581)","v":30.666579368058741},{"$f":"IFERROR(VLOOKUP(F1581,Translation!$A:$C,3,FALSE),F1581)","v":"Prêts hypothécaires assurés au cours de la période selon le pointage de crédit à l’initiation (%)"},{"$f":"IFERROR(VLOOKUP(G1581,Translation!$A:$C,3,FALSE),G1581)","v":"30.7"},{"$f":"IFERROR(VLOOKUP(H1581,Translation!$A:$C,3,FALSE),H1581)","v":" >= 780"}]
[13,"T1 2018","PROPRIÉTAIRES-OCCUPANTS, À L’UNITÉ",">= 780",31.436779356683701,"Prêts hypothécaires assurés au cours de la période selon le pointage de crédit à l’initiation (%)","31.4"," >= 780",{"$f":"IFERROR(VLOOKUP(A1582,Translation!$A:$C,3,FALSE),A1582)","v":13},{"$f":"IFERROR(VLOOKUP(B1582,Translation!$A:$C,3,FALSE),B1582)","v":"T1 2018"},{"$f":"IFERROR(VLOOKUP(C1582,Translation!$A:$C,3,FALSE),C1582)","v":"PROPRIÉTAIRES-OCCUPANTS, À L’UNITÉ"},{"$f":"IFERROR(VLOOKUP(D1582,Translation!$A:$C,3,FALSE),D1582)","v":">= 780"},{"$f":"IFERROR(VLOOKUP(E1582,Translation!$A:$C,3,FALSE),E1582)","v":31.436779356683701},{"$f":"IFERROR(VLOOKUP(F1582,Translation!$A:$C,3,FALSE),F1582)","v":"Prêts hypothécaires assurés au cours de la période selon le pointage de crédit à l’initiation (%)"},{"$f":"IFERROR(VLOOKUP(G1582,Translation!$A:$C,3,FALSE),G1582)","v":"31.4"},{"$f":"IFERROR(VLOOKUP(H1582,Translation!$A:$C,3,FALSE),H1582)","v":" >= 780"}]
[13,"Q2 2016","PROPRIÉTAIRES-OCCUPANTS, À L’UNITÉ",">= 780",29.163537168030125,"Prêts hypothécaires assurés au cours de la période selon le pointage de crédit à l’initiation (%)","29.2"," >= 780",{"$f":"IFERROR(VLOOKUP(A1583,Translation!$A:$C,3,FALSE),A1583)","v":13},{"$f":"IFERROR(VLOOKUP(B1583,Translation!$A:$C,3,FALSE),B1583)","v":"Q2 2016"},{"$f":"IFERROR(VLOOKUP(C1583,Translation!$A:$C,3,FALSE),C1583)","v":"PROPRIÉTAIRES-OCCUPANTS, À L’UNITÉ"},{"$f":"IFERROR(VLOOKUP(D1583,Translation!$A:$C,3,FALSE),D1583)","v":">= 780"},{"$f":"IFERROR(VLOOKUP(E1583,Translation!$A:$C,3,FALSE),E1583)","v":29.163537168030125},{"$f":"IFERROR(VLOOKUP(F1583,Translation!$A:$C,3,FALSE),F1583)","v":"Prêts hypothécaires assurés au cours de la période selon le pointage de crédit à l’initiation (%)"},{"$f":"IFERROR(VLOOKUP(G1583,Translation!$A:$C,3,FALSE),G1583)","v":"29.2"},{"$f":"IFERROR(VLOOKUP(H1583,Translation!$A:$C,3,FALSE),H1583)","v":" >= 780"}]
[13,"T2 2017","PROPRIÉTAIRES-OCCUPANTS, À L’UNITÉ",">= 780",32.086021156379701,"Prêts hypothécaires assurés au cours de la période selon le pointage de crédit à l’initiation (%)","32.1"," >= 780",{"$f":"IFERROR(VLOOKUP(A1584,Translation!$A:$C,3,FALSE),A1584)","v":13},{"$f":"IFERROR(VLOOKUP(B1584,Translation!$A:$C,3,FALSE),B1584)","v":"T2 2017"},{"$f":"IFERROR(VLOOKUP(C1584,Translation!$A:$C,3,FALSE),C1584)","v":"PROPRIÉTAIRES-OCCUPANTS, À L’UNITÉ"},{"$f":"IFERROR(VLOOKUP(D1584,Translation!$A:$C,3,FALSE),D1584)","v":">= 780"},{"$f":"IFERROR(VLOOKUP(E1584,Translation!$A:$C,3,FALSE),E1584)","v":32.086021156379701},{"$f":"IFERROR(VLOOKUP(F1584,Translation!$A:$C,3,FALSE),F1584)","v":"Prêts hypothécaires assurés au cours de la période selon le pointage de crédit à l’initiation (%)"},{"$f":"IFERROR(VLOOKUP(G1584,Translation!$A:$C,3,FALSE),G1584)","v":"32.1"},{"$f":"IFERROR(VLOOKUP(H1584,Translation!$A:$C,3,FALSE),H1584)","v":" >= 780"}]
[13,"Q3 2016","PROPRIÉTAIRES-OCCUPANTS, À L’UNITÉ",">= 780",30.200030338491775,"Prêts hypothécaires assurés au cours de la période selon le pointage de crédit à l’initiation (%)","30.2"," >= 780",{"$f":"IFERROR(VLOOKUP(A1585,Translation!$A:$C,3,FALSE),A1585)","v":13},{"$f":"IFERROR(VLOOKUP(B1585,Translation!$A:$C,3,FALSE),B1585)","v":"Q3 2016"},{"$f":"IFERROR(VLOOKUP(C1585,Translation!$A:$C,3,FALSE),C1585)","v":"PROPRIÉTAIRES-OCCUPANTS, À L’UNITÉ"},{"$f":"IFERROR(VLOOKUP(D1585,Translation!$A:$C,3,FALSE),D1585)","v":">= 780"},{"$f":"IFERROR(VLOOKUP(E1585,Translation!$A:$C,3,FALSE),E1585)","v":30.200030338491775},{"$f":"IFERROR(VLOOKUP(F1585,Translation!$A:$C,3,FALSE),F1585)","v":"Prêts hypothécaires assurés au cours de la période selon le pointage de crédit à l’initiation (%)"},{"$f":"IFERROR(VLOOKUP(G1585,Translation!$A:$C,3,FALSE),G1585)","v":"30.2"},{"$f":"IFERROR(VLOOKUP(H1585,Translation!$A:$C,3,FALSE),H1585)","v":" >= 780"}]
[13,"T3 2017","PROPRIÉTAIRES-OCCUPANTS, À L’UNITÉ",">= 780",32.616919900100633,"Prêts hypothécaires assurés au cours de la période selon le pointage de crédit à l’initiation (%)","32.6"," >= 780",{"$f":"IFERROR(VLOOKUP(A1586,Translation!$A:$C,3,FALSE),A1586)","v":13},{"$f":"IFERROR(VLOOKUP(B1586,Translation!$A:$C,3,FALSE),B1586)","v":"T3 2017"},{"$f":"IFERROR(VLOOKUP(C1586,Translation!$A:$C,3,FALSE),C1586)","v":"PROPRIÉTAIRES-OCCUPANTS, À L’UNITÉ"},{"$f":"IFERROR(VLOOKUP(D1586,Translation!$A:$C,3,FALSE),D1586)","v":">= 780"},{"$f":"IFERROR(VLOOKUP(E1586,Translation!$A:$C,3,FALSE),E1586)","v":32.616919900100633},{"$f":"IFERROR(VLOOKUP(F1586,Translation!$A:$C,3,FALSE),F1586)","v":"Prêts hypothécaires assurés au cours de la période selon le pointage de crédit à l’initiation (%)"},{"$f":"IFERROR(VLOOKUP(G1586,Translation!$A:$C,3,FALSE),G1586)","v":"32.6"},{"$f":"IFERROR(VLOOKUP(H1586,Translation!$A:$C,3,FALSE),H1586)","v":" >= 780"}]
[13,"Q4 2016","PROPRIÉTAIRES-OCCUPANTS, À L’UNITÉ",">= 780",29.650251073439691,"Prêts hypothécaires assurés au cours de la période selon le pointage de crédit à l’initiation (%)","29.7"," >= 780",{"$f":"IFERROR(VLOOKUP(A1587,Translation!$A:$C,3,FALSE),A1587)","v":13},{"$f":"IFERROR(VLOOKUP(B1587,Translation!$A:$C,3,FALSE),B1587)","v":"Q4 2016"},{"$f":"IFERROR(VLOOKUP(C1587,Translation!$A:$C,3,FALSE),C1587)","v":"PROPRIÉTAIRES-OCCUPANTS, À L’UNITÉ"},{"$f":"IFERROR(VLOOKUP(D1587,Translation!$A:$C,3,FALSE),D1587)","v":">= 780"},{"$f":"IFERROR(VLOOKUP(E1587,Translation!$A:$C,3,FALSE),E1587)","v":29.650251073439691},{"$f":"IFERROR(VLOOKUP(F1587,Translation!$A:$C,3,FALSE),F1587)","v":"Prêts hypothécaires assurés au cours de la période selon le pointage de crédit à l’initiation (%)"},{"$f":"IFERROR(VLOOKUP(G1587,Translation!$A:$C,3,FALSE),G1587)","v":"29.7"},{"$f":"IFERROR(VLOOKUP(H1587,Translation!$A:$C,3,FALSE),H1587)","v":" >= 780"}]
[13,"T4 2017","PROPRIÉTAIRES-OCCUPANTS, À L’UNITÉ",">= 780",31.644527447195159,"Prêts hypothécaires assurés au cours de la période selon le pointage de crédit à l’initiation (%)","31.6"," >= 780",{"$f":"IFERROR(VLOOKUP(A1588,Translation!$A:$C,3,FALSE),A1588)","v":13},{"$f":"IFERROR(VLOOKUP(B1588,Translation!$A:$C,3,FALSE),B1588)","v":"T4 2017"},{"$f":"IFERROR(VLOOKUP(C1588,Translation!$A:$C,3,FALSE),C1588)","v":"PROPRIÉTAIRES-OCCUPANTS, À L’UNITÉ"},{"$f":"IFERROR(VLOOKUP(D1588,Translation!$A:$C,3,FALSE),D1588)","v":">= 780"},{"$f":"IFERROR(VLOOKUP(E1588,Translation!$A:$C,3,FALSE),E1588)","v":31.644527447195159},{"$f":"IFERROR(VLOOKUP(F1588,Translation!$A:$C,3,FALSE),F1588)","v":"Prêts hypothécaires assurés au cours de la période selon le pointage de crédit à l’initiation (%)"},{"$f":"IFERROR(VLOOKUP(G1588,Translation!$A:$C,3,FALSE),G1588)","v":"31.6"},{"$f":"IFERROR(VLOOKUP(H1588,Translation!$A:$C,3,FALSE),H1588)","v":" >= 780"}]
[13,"T1 2017","PROPRIÉTAIRES-OCCUPANTS, À L’UNITÉ","Pointage de crédit moyen à l'initiation ",750.51285382736114,"Prêts hypothécaires assurés au cours de la période selon le pointage de crédit à l’initiation (%)","750.5","Pointage de crédit moyen à l'initiation ",{"$f":"IFERROR(VLOOKUP(A1589,Translation!$A:$C,3,FALSE),A1589)","v":13},{"$f":"IFERROR(VLOOKUP(B1589,Translation!$A:$C,3,FALSE),B1589)","v":"T1 2017"},{"$f":"IFERROR(VLOOKUP(C1589,Translation!$A:$C,3,FALSE),C1589)","v":"PROPRIÉTAIRES-OCCUPANTS, À L’UNITÉ"},{"$f":"IFERROR(VLOOKUP(D1589,Translation!$A:$C,3,FALSE),D1589)","v":"Pointage de crédit moyen à l'initiation "},{"$f":"IFERROR(VLOOKUP(E1589,Translation!$A:$C,3,FALSE),E1589)","v":750.51285382736114},{"$f":"IFERROR(VLOOKUP(F1589,Translation!$A:$C,3,FALSE),F1589)","v":"Prêts hypothécaires assurés au cours de la période selon le pointage de crédit à l’initiation (%)"},{"$f":"IFERROR(VLOOKUP(G1589,Translation!$A:$C,3,FALSE),G1589)","v":"750.5"},{"$f":"IFERROR(VLOOKUP(H1589,Translation!$A:$C,3,FALSE),H1589)","v":"Pointage de crédit moyen à l'initiation "}]
[13,"T1 2018","PROPRIÉTAIRES-OCCUPANTS, À L’UNITÉ","Pointage de crédit moyen à l'initiation ",752.00111775299899,"Prêts hypothécaires assurés au cours de la période selon le pointage de crédit à l’initiation (%)","752.0","Pointage de crédit moyen à l'initiation ",{"$f":"IFERROR(VLOOKUP(A1590,Translation!$A:$C,3,FALSE),A1590)","v":13},{"$f":"IFERROR(VLOOKUP(B1590,Translation!$A:$C,3,FALSE),B1590)","v":"T1 2018"},{"$f":"IFERROR(VLOOKUP(C1590,Translation!$A:$C,3,FALSE),C1590)","v":"PROPRIÉTAIRES-OCCUPANTS, À L’UNITÉ"},{"$f":"IFERROR(VLOOKUP(D1590,Translation!$A:$C,3,FALSE),D1590)","v":"Pointage de crédit moyen à l'initiation "},{"$f":"IFERROR(VLOOKUP(E1590,Translation!$A:$C,3,FALSE),E1590)","v":752.00111775299899},{"$f":"IFERROR(VLOOKUP(F1590,Translation!$A:$C,3,FALSE),F1590)","v":"Prêts hypothécaires assurés au cours de la période selon le pointage de crédit à l’initiation (%)"},{"$f":"IFERROR(VLOOKUP(G1590,Translation!$A:$C,3,FALSE),G1590)","v":"752.0"},{"$f":"IFERROR(VLOOKUP(H1590,Translation!$A:$C,3,FALSE),H1590)","v":"Pointage de crédit moyen à l'initiation "}]
[13,"Q2 2016","PROPRIÉTAIRES-OCCUPANTS, À L’UNITÉ","Pointage de crédit moyen à l'initiation ",749.64695202690541,"Prêts hypothécaires assurés au cours de la période selon le pointage de crédit à l’initiation (%)","749.6","Pointage de crédit moyen à l'initiation ",{"$f":"IFERROR(VLOOKUP(A1591,Translation!$A:$C,3,FALSE),A1591)","v":13},{"$f":"IFERROR(VLOOKUP(B1591,Translation!$A:$C,3,FALSE),B1591)","v":"Q2 2016"},{"$f":"IFERROR(VLOOKUP(C1591,Translation!$A:$C,3,FALSE),C1591)","v":"PROPRIÉTAIRES-OCCUPANTS, À L’UNITÉ"},{"$f":"IFERROR(VLOOKUP(D1591,Translation!$A:$C,3,FALSE),D1591)","v":"Pointage de crédit moyen à l'initiation "},{"$f":"IFERROR(VLOOKUP(E1591,Translation!$A:$C,3,FALSE),E1591)","v":749.64695202690541},{"$f":"IFERROR(VLOOKUP(F1591,Translation!$A:$C,3,FALSE),F1591)","v":"Prêts hypothécaires assurés au cours de la période selon le pointage de crédit à l’initiation (%)"},{"$f":"IFERROR(VLOOKUP(G1591,Translation!$A:$C,3,FALSE),G1591)","v":"749.6"},{"$f":"IFERROR(VLOOKUP(H1591,Translation!$A:$C,3,FALSE),H1591)","v":"Pointage de crédit moyen à l'initiation "}]
[13,"T2 2017","PROPRIÉTAIRES-OCCUPANTS, À L’UNITÉ","Pointage de crédit moyen à l'initiation ",752.67199457107188,"Prêts hypothécaires assurés au cours de la période selon le pointage de crédit à l’initiation (%)","752.7","Pointage de crédit moyen à l'initiation ",{"$f":"IFERROR(VLOOKUP(A1592,Translation!$A:$C,3,FALSE),A1592)","v":13},{"$f":"IFERROR(VLOOKUP(B1592,Translation!$A:$C,3,FALSE),B1592)","v":"T2 2017"},{"$f":"IFERROR(VLOOKUP(C1592,Translation!$A:$C,3,FALSE),C1592)","v":"PROPRIÉTAIRES-OCCUPANTS, À L’UNITÉ"},{"$f":"IFERROR(VLOOKUP(D1592,Translation!$A:$C,3,FALSE),D1592)","v":"Pointage de crédit moyen à l'initiation "},{"$f":"IFERROR(VLOOKUP(E1592,Translation!$A:$C,3,FALSE),E1592)","v":752.67199457107188},{"$f":"IFERROR(VLOOKUP(F1592,Translation!$A:$C,3,FALSE),F1592)","v":"Prêts hypothécaires assurés au cours de la période selon le pointage de crédit à l’initiation (%)"},{"$f":"IFERROR(VLOOKUP(G1592,Translation!$A:$C,3,FALSE),G1592)","v":"752.7"},{"$f":"IFERROR(VLOOKUP(H1592,Translation!$A:$C,3,FALSE),H1592)","v":"Pointage de crédit moyen à l'initiation "}]
[13,"Q3 2016","PROPRIÉTAIRES-OCCUPANTS, À L’UNITÉ","Pointage de crédit moyen à l'initiation ",750.80219544539204,"Prêts hypothécaires assurés au cours de la période selon le pointage de crédit à l’initiation (%)","750.8","Pointage de crédit moyen à l'initiation ",{"$f":"IFERROR(VLOOKUP(A1593,Translation!$A:$C,3,FALSE),A1593)","v":13},{"$f":"IFERROR(VLOOKUP(B1593,Translation!$A:$C,3,FALSE),B1593)","v":"Q3 2016"},{"$f":"IFERROR(VLOOKUP(C1593,Translation!$A:$C,3,FALSE),C1593)","v":"PROPRIÉTAIRES-OCCUPANTS, À L’UNITÉ"},{"$f":"IFERROR(VLOOKUP(D1593,Translation!$A:$C,3,FALSE),D1593)","v":"Pointage de crédit moyen à l'initiation "},{"$f":"IFERROR(VLOOKUP(E1593,Translation!$A:$C,3,FALSE),E1593)","v":750.80219544539204},{"$f":"IFERROR(VLOOKUP(F1593,Translation!$A:$C,3,FALSE),F1593)","v":"Prêts hypothécaires assurés au cours de la période selon le pointage de crédit à l’initiation (%)"},{"$f":"IFERROR(VLOOKUP(G1593,Translation!$A:$C,3,FALSE),G1593)","v":"750.8"},{"$f":"IFERROR(VLOOKUP(H1593,Translation!$A:$C,3,FALSE),H1593)","v":"Pointage de crédit moyen à l'initiation "}]
[13,"T3 2017","PROPRIÉTAIRES-OCCUPANTS, À L’UNITÉ","Pointage de crédit moyen à l'initiation ",752.81225007243268,"Prêts hypothécaires assurés au cours de la période selon le pointage de crédit à l’initiation (%)","752.8","Pointage de crédit moyen à l'initiation ",{"$f":"IFERROR(VLOOKUP(A1594,Translation!$A:$C,3,FALSE),A1594)","v":13},{"$f":"IFERROR(VLOOKUP(B1594,Translation!$A:$C,3,FALSE),B1594)","v":"T3 2017"},{"$f":"IFERROR(VLOOKUP(C1594,Translation!$A:$C,3,FALSE),C1594)","v":"PROPRIÉTAIRES-OCCUPANTS, À L’UNITÉ"},{"$f":"IFERROR(VLOOKUP(D1594,Translation!$A:$C,3,FALSE),D1594)","v":"Pointage de crédit moyen à l'initiation "},{"$f":"IFERROR(VLOOKUP(E1594,Translation!$A:$C,3,FALSE),E1594)","v":752.81225007243268},{"$f":"IFERROR(VLOOKUP(F1594,Translation!$A:$C,3,FALSE),F1594)","v":"Prêts hypothécaires assurés au cours de la période selon le pointage de crédit à l’initiation (%)"},{"$f":"IFERROR(VLOOKUP(G1594,Translation!$A:$C,3,FALSE),G1594)","v":"752.8"},{"$f":"IFERROR(VLOOKUP(H1594,Translation!$A:$C,3,FALSE),H1594)","v":"Pointage de crédit moyen à l'initiation "}]
[13,"Q4 2016","PROPRIÉTAIRES-OCCUPANTS, À L’UNITÉ","Pointage de crédit moyen à l'initiation ",750.53718175865902,"Prêts hypothécaires assurés au cours de la période selon le pointage de crédit à l’initiation (%)","750.5","Pointage de crédit moyen à l'initiation ",{"$f":"IFERROR(VLOOKUP(A1595,Translation!$A:$C,3,FALSE),A1595)","v":13},{"$f":"IFERROR(VLOOKUP(B1595,Translation!$A:$C,3,FALSE),B1595)","v":"Q4 2016"},{"$f":"IFERROR(VLOOKUP(C1595,Translation!$A:$C,3,FALSE),C1595)","v":"PROPRIÉTAIRES-OCCUPANTS, À L’UNITÉ"},{"$f":"IFERROR(VLOOKUP(D1595,Translation!$A:$C,3,FALSE),D1595)","v":"Pointage de crédit moyen à l'initiation "},{"$f":"IFERROR(VLOOKUP(E1595,Translation!$A:$C,3,FALSE),E1595)","v":750.53718175865902},{"$f":"IFERROR(VLOOKUP(F1595,Translation!$A:$C,3,FALSE),F1595)","v":"Prêts hypothécaires assurés au cours de la période selon le pointage de crédit à l’initiation (%)"},{"$f":"IFERROR(VLOOKUP(G1595,Translation!$A:$C,3,FALSE),G1595)","v":"750.5"},{"$f":"IFERROR(VLOOKUP(H1595,Translation!$A:$C,3,FALSE),H1595)","v":"Pointage de crédit moyen à l'initiation "}]
[13,"T4 2017","PROPRIÉTAIRES-OCCUPANTS, À L’UNITÉ","Pointage de crédit moyen à l'initiation ",751.47071186724418,"Prêts hypothécaires assurés au cours de la période selon le pointage de crédit à l’initiation (%)","751.5","Pointage de crédit moyen à l'initiation ",{"$f":"IFERROR(VLOOKUP(A1596,Translation!$A:$C,3,FALSE),A1596)","v":13},{"$f":"IFERROR(VLOOKUP(B1596,Translation!$A:$C,3,FALSE),B1596)","v":"T4 2017"},{"$f":"IFERROR(VLOOKUP(C1596,Translation!$A:$C,3,FALSE),C1596)","v":"PROPRIÉTAIRES-OCCUPANTS, À L’UNITÉ"},{"$f":"IFERROR(VLOOKUP(D1596,Translation!$A:$C,3,FALSE),D1596)","v":"Pointage de crédit moyen à l'initiation "},{"$f":"IFERROR(VLOOKUP(E1596,Translation!$A:$C,3,FALSE),E1596)","v":751.47071186724418},{"$f":"IFERROR(VLOOKUP(F1596,Translation!$A:$C,3,FALSE),F1596)","v":"Prêts hypothécaires assurés au cours de la période selon le pointage de crédit à l’initiation (%)"},{"$f":"IFERROR(VLOOKUP(G1596,Translation!$A:$C,3,FALSE),G1596)","v":"751.5"},{"$f":"IFERROR(VLOOKUP(H1596,Translation!$A:$C,3,FALSE),H1596)","v":"Pointage de crédit moyen à l'initiation "}]
[13,"T1 2017","PROPRIÉTAIRES-OCCUPANTS, À L’UNITÉ","Terre-Neuve-et-Labrador",737.23241335506691,"Prêts hypothécaires assurés au cours de la période selon le pointage de crédit à l’initiation (%)","737.2","Terre-Neuve-et-Labrador",{"$f":"IFERROR(VLOOKUP(A1597,Translation!$A:$C,3,FALSE),A1597)","v":13},{"$f":"IFERROR(VLOOKUP(B1597,Translation!$A:$C,3,FALSE),B1597)","v":"T1 2017"},{"$f":"IFERROR(VLOOKUP(C1597,Translation!$A:$C,3,FALSE),C1597)","v":"PROPRIÉTAIRES-OCCUPANTS, À L’UNITÉ"},{"$f":"IFERROR(VLOOKUP(D1597,Translation!$A:$C,3,FALSE),D1597)","v":"Terre-Neuve-et-Labrador"},{"$f":"IFERROR(VLOOKUP(E1597,Translation!$A:$C,3,FALSE),E1597)","v":737.23241335506691},{"$f":"IFERROR(VLOOKUP(F1597,Translation!$A:$C,3,FALSE),F1597)","v":"Prêts hypothécaires assurés au cours de la période selon le pointage de crédit à l’initiation (%)"},{"$f":"IFERROR(VLOOKUP(G1597,Translation!$A:$C,3,FALSE),G1597)","v":"737.2"},{"$f":"IFERROR(VLOOKUP(H1597,Translation!$A:$C,3,FALSE),H1597)","v":"Terre-Neuve-et-Labrador"}]
[13,"T1 2017","PROPRIÉTAIRES-OCCUPANTS, À L’UNITÉ","Île-du-Prince-Édouard",742.2188445540952,"Prêts hypothécaires assurés au cours de la période selon le pointage de crédit à l’initiation (%)","742.2","Île-du-Prince-Édouard",{"$f":"IFERROR(VLOOKUP(A1598,Translation!$A:$C,3,FALSE),A1598)","v":13},{"$f":"IFERROR(VLOOKUP(B1598,Translation!$A:$C,3,FALSE),B1598)","v":"T1 2017"},{"$f":"IFERROR(VLOOKUP(C1598,Translation!$A:$C,3,FALSE),C1598)","v":"PROPRIÉTAIRES-OCCUPANTS, À L’UNITÉ"},{"$f":"IFERROR(VLOOKUP(D1598,Translation!$A:$C,3,FALSE),D1598)","v":"Île-du-Prince-Édouard"},{"$f":"IFERROR(VLOOKUP(E1598,Translation!$A:$C,3,FALSE),E1598)","v":742.2188445540952},{"$f":"IFERROR(VLOOKUP(F1598,Translation!$A:$C,3,FALSE),F1598)","v":"Prêts hypothécaires assurés au cours de la période selon le pointage de crédit à l’initiation (%)"},{"$f":"IFERROR(VLOOKUP(G1598,Translation!$A:$C,3,FALSE),G1598)","v":"742.2"},{"$f":"IFERROR(VLOOKUP(H1598,Translation!$A:$C,3,FALSE),H1598)","v":"Île-du-Prince-Édouard"}]
[13,"T1 2017","PROPRIÉTAIRES-OCCUPANTS, À L’UNITÉ","Nouvelle-Écosse",737.06473117519909,"Prêts hypothécaires assurés au cours de la période selon le pointage de crédit à l’initiation (%)","737.1","Nouvelle-Écosse",{"$f":"IFERROR(VLOOKUP(A1599,Translation!$A:$C,3,FALSE),A1599)","v":13},{"$f":"IFERROR(VLOOKUP(B1599,Translation!$A:$C,3,FALSE),B1599)","v":"T1 2017"},{"$f":"IFERROR(VLOOKUP(C1599,Translation!$A:$C,3,FALSE),C1599)","v":"PROPRIÉTAIRES-OCCUPANTS, À L’UNITÉ"},{"$f":"IFERROR(VLOOKUP(D1599,Translation!$A:$C,3,FALSE),D1599)","v":"Nouvelle-Écosse"},{"$f":"IFERROR(VLOOKUP(E1599,Translation!$A:$C,3,FALSE),E1599)","v":737.06473117519909},{"$f":"IFERROR(VLOOKUP(F1599,Translation!$A:$C,3,FALSE),F1599)","v":"Prêts hypothécaires assurés au cours de la période selon le pointage de crédit à l’initiation (%)"},{"$f":"IFERROR(VLOOKUP(G1599,Translation!$A:$C,3,FALSE),G1599)","v":"737.1"},{"$f":"IFERROR(VLOOKUP(H1599,Translation!$A:$C,3,FALSE),H1599)","v":"Nouvelle-Écosse"}]
[13,"T1 2017","PROPRIÉTAIRES-OCCUPANTS, À L’UNITÉ","Nouveau-Brunswick",741.43182134846995,"Prêts hypothécaires assurés au cours de la période selon le pointage de crédit à l’initiation (%)","741.4","Nouveau-Brunswick",{"$f":"IFERROR(VLOOKUP(A1600,Translation!$A:$C,3,FALSE),A1600)","v":13},{"$f":"IFERROR(VLOOKUP(B1600,Translation!$A:$C,3,FALSE),B1600)","v":"T1 2017"},{"$f":"IFERROR(VLOOKUP(C1600,Translation!$A:$C,3,FALSE),C1600)","v":"PROPRIÉTAIRES-OCCUPANTS, À L’UNITÉ"},{"$f":"IFERROR(VLOOKUP(D1600,Translation!$A:$C,3,FALSE),D1600)","v":"Nouveau-Brunswick"},{"$f":"IFERROR(VLOOKUP(E1600,Translation!$A:$C,3,FALSE),E1600)","v":741.43182134846995},{"$f":"IFERROR(VLOOKUP(F1600,Translation!$A:$C,3,FALSE),F1600)","v":"Prêts hypothécaires assurés au cours de la période selon le pointage de crédit à l’initiation (%)"},{"$f":"IFERROR(VLOOKUP(G1600,Translation!$A:$C,3,FALSE),G1600)","v":"741.4"},{"$f":"IFERROR(VLOOKUP(H1600,Translation!$A:$C,3,FALSE),H1600)","v":"Nouveau-Brunswick"}]
[13,"T1 2017","PROPRIÉTAIRES-OCCUPANTS, À L’UNITÉ","Québec",753.72046906532557,"Prêts hypothécaires assurés au cours de la période selon le pointage de crédit à l’initiation (%)","753.7","Québec",{"$f":"IFERROR(VLOOKUP(A1601,Translation!$A:$C,3,FALSE),A1601)","v":13},{"$f":"IFERROR(VLOOKUP(B1601,Translation!$A:$C,3,FALSE),B1601)","v":"T1 2017"},{"$f":"IFERROR(VLOOKUP(C1601,Translation!$A:$C,3,FALSE),C1601)","v":"PROPRIÉTAIRES-OCCUPANTS, À L’UNITÉ"},{"$f":"IFERROR(VLOOKUP(D1601,Translation!$A:$C,3,FALSE),D1601)","v":"Québec"},{"$f":"IFERROR(VLOOKUP(E1601,Translation!$A:$C,3,FALSE),E1601)","v":753.72046906532557},{"$f":"IFERROR(VLOOKUP(F1601,Translation!$A:$C,3,FALSE),F1601)","v":"Prêts hypothécaires assurés au cours de la période selon le pointage de crédit à l’initiation (%)"},{"$f":"IFERROR(VLOOKUP(G1601,Translation!$A:$C,3,FALSE),G1601)","v":"753.7"},{"$f":"IFERROR(VLOOKUP(H1601,Translation!$A:$C,3,FALSE),H1601)","v":"Québec"}]
[13,"T1 2017","PROPRIÉTAIRES-OCCUPANTS, À L’UNITÉ","Ontario",754.98443309469985,"Prêts hypothécaires assurés au cours de la période selon le pointage de crédit à l’initiation (%)","755.0","Ontario",{"$f":"IFERROR(VLOOKUP(A1602,Translation!$A:$C,3,FALSE),A1602)","v":13},{"$f":"IFERROR(VLOOKUP(B1602,Translation!$A:$C,3,FALSE),B1602)","v":"T1 2017"},{"$f":"IFERROR(VLOOKUP(C1602,Translation!$A:$C,3,FALSE),C1602)","v":"PROPRIÉTAIRES-OCCUPANTS, À L’UNITÉ"},{"$f":"IFERROR(VLOOKUP(D1602,Translation!$A:$C,3,FALSE),D1602)","v":"Ontario"},{"$f":"IFERROR(VLOOKUP(E1602,Translation!$A:$C,3,FALSE),E1602)","v":754.98443309469985},{"$f":"IFERROR(VLOOKUP(F1602,Translation!$A:$C,3,FALSE),F1602)","v":"Prêts hypothécaires assurés au cours de la période selon le pointage de crédit à l’initiation (%)"},{"$f":"IFERROR(VLOOKUP(G1602,Translation!$A:$C,3,FALSE),G1602)","v":"755.0"},{"$f":"IFERROR(VLOOKUP(H1602,Translation!$A:$C,3,FALSE),H1602)","v":"Ontario"}]
[13,"T1 2017","PROPRIÉTAIRES-OCCUPANTS, À L’UNITÉ","Manitoba",744.38980304389725,"Prêts hypothécaires assurés au cours de la période selon le pointage de crédit à l’initiation (%)","744.4","Manitoba",{"$f":"IFERROR(VLOOKUP(A1603,Translation!$A:$C,3,FALSE),A1603)","v":13},{"$f":"IFERROR(VLOOKUP(B1603,Translation!$A:$C,3,FALSE),B1603)","v":"T1 2017"},{"$f":"IFERROR(VLOOKUP(C1603,Translation!$A:$C,3,FALSE),C1603)","v":"PROPRIÉTAIRES-OCCUPANTS, À L’UNITÉ"},{"$f":"IFERROR(VLOOKUP(D1603,Translation!$A:$C,3,FALSE),D1603)","v":"Manitoba"},{"$f":"IFERROR(VLOOKUP(E1603,Translation!$A:$C,3,FALSE),E1603)","v":744.38980304389725},{"$f":"IFERROR(VLOOKUP(F1603,Translation!$A:$C,3,FALSE),F1603)","v":"Prêts hypothécaires assurés au cours de la période selon le pointage de crédit à l’initiation (%)"},{"$f":"IFERROR(VLOOKUP(G1603,Translation!$A:$C,3,FALSE),G1603)","v":"744.4"},{"$f":"IFERROR(VLOOKUP(H1603,Translation!$A:$C,3,FALSE),H1603)","v":"Manitoba"}]
[13,"T1 2017","PROPRIÉTAIRES-OCCUPANTS, À L’UNITÉ","Saskatchewan",744.56500239030811,"Prêts hypothécaires assurés au cours de la période selon le pointage de crédit à l’initiation (%)","744.6","Saskatchewan",{"$f":"IFERROR(VLOOKUP(A1604,Translation!$A:$C,3,FALSE),A1604)","v":13},{"$f":"IFERROR(VLOOKUP(B1604,Translation!$A:$C,3,FALSE),B1604)","v":"T1 2017"},{"$f":"IFERROR(VLOOKUP(C1604,Translation!$A:$C,3,FALSE),C1604)","v":"PROPRIÉTAIRES-OCCUPANTS, À L’UNITÉ"},{"$f":"IFERROR(VLOOKUP(D1604,Translation!$A:$C,3,FALSE),D1604)","v":"Saskatchewan"},{"$f":"IFERROR(VLOOKUP(E1604,Translation!$A:$C,3,FALSE),E1604)","v":744.56500239030811},{"$f":"IFERROR(VLOOKUP(F1604,Translation!$A:$C,3,FALSE),F1604)","v":"Prêts hypothécaires assurés au cours de la période selon le pointage de crédit à l’initiation (%)"},{"$f":"IFERROR(VLOOKUP(G1604,Translation!$A:$C,3,FALSE),G1604)","v":"744.6"},{"$f":"IFERROR(VLOOKUP(H1604,Translation!$A:$C,3,FALSE),H1604)","v":"Saskatchewan"}]
[13,"T1 2017","PROPRIÉTAIRES-OCCUPANTS, À L’UNITÉ","Alberta",745.04283564890011,"Prêts hypothécaires assurés au cours de la période selon le pointage de crédit à l’initiation (%)","745.0","Alberta",{"$f":"IFERROR(VLOOKUP(A1605,Translation!$A:$C,3,FALSE),A1605)","v":13},{"$f":"IFERROR(VLOOKUP(B1605,Translation!$A:$C,3,FALSE),B1605)","v":"T1 2017"},{"$f":"IFERROR(VLOOKUP(C1605,Translation!$A:$C,3,FALSE),C1605)","v":"PROPRIÉTAIRES-OCCUPANTS, À L’UNITÉ"},{"$f":"IFERROR(VLOOKUP(D1605,Translation!$A:$C,3,FALSE),D1605)","v":"Alberta"},{"$f":"IFERROR(VLOOKUP(E1605,Translation!$A:$C,3,FALSE),E1605)","v":745.04283564890011},{"$f":"IFERROR(VLOOKUP(F1605,Translation!$A:$C,3,FALSE),F1605)","v":"Prêts hypothécaires assurés au cours de la période selon le pointage de crédit à l’initiation (%)"},{"$f":"IFERROR(VLOOKUP(G1605,Translation!$A:$C,3,FALSE),G1605)","v":"745.0"},{"$f":"IFERROR(VLOOKUP(H1605,Translation!$A:$C,3,FALSE),H1605)","v":"Alberta"}]
[13,"T1 2017","PROPRIÉTAIRES-OCCUPANTS, À L’UNITÉ","Colombie-Britannique",750.62425581978528,"Prêts hypothécaires assurés au cours de la période selon le pointage de crédit à l’initiation (%)","750.6","Colombie-Britannique",{"$f":"IFERROR(VLOOKUP(A1606,Translation!$A:$C,3,FALSE),A1606)","v":13},{"$f":"IFERROR(VLOOKUP(B1606,Translation!$A:$C,3,FALSE),B1606)","v":"T1 2017"},{"$f":"IFERROR(VLOOKUP(C1606,Translation!$A:$C,3,FALSE),C1606)","v":"PROPRIÉTAIRES-OCCUPANTS, À L’UNITÉ"},{"$f":"IFERROR(VLOOKUP(D1606,Translation!$A:$C,3,FALSE),D1606)","v":"Colombie-Britannique"},{"$f":"IFERROR(VLOOKUP(E1606,Translation!$A:$C,3,FALSE),E1606)","v":750.62425581978528},{"$f":"IFERROR(VLOOKUP(F1606,Translation!$A:$C,3,FALSE),F1606)","v":"Prêts hypothécaires assurés au cours de la période selon le pointage de crédit à l’initiation (%)"},{"$f":"IFERROR(VLOOKUP(G1606,Translation!$A:$C,3,FALSE),G1606)","v":"750.6"},{"$f":"IFERROR(VLOOKUP(H1606,Translation!$A:$C,3,FALSE),H1606)","v":"Colombie-Britannique"}]
[13,"T1 2017","PROPRIÉTAIRES-OCCUPANTS, À L’UNITÉ","Territoires",749.32916150362109,"Prêts hypothécaires assurés au cours de la période selon le pointage de crédit à l’initiation (%)","749.3","Territoires",{"$f":"IFERROR(VLOOKUP(A1607,Translation!$A:$C,3,FALSE),A1607)","v":13},{"$f":"IFERROR(VLOOKUP(B1607,Translation!$A:$C,3,FALSE),B1607)","v":"T1 2017"},{"$f":"IFERROR(VLOOKUP(C1607,Translation!$A:$C,3,FALSE),C1607)","v":"PROPRIÉTAIRES-OCCUPANTS, À L’UNITÉ"},{"$f":"IFERROR(VLOOKUP(D1607,Translation!$A:$C,3,FALSE),D1607)","v":"Territoires"},{"$f":"IFERROR(VLOOKUP(E1607,Translation!$A:$C,3,FALSE),E1607)","v":749.32916150362109},{"$f":"IFERROR(VLOOKUP(F1607,Translation!$A:$C,3,FALSE),F1607)","v":"Prêts hypothécaires assurés au cours de la période selon le pointage de crédit à l’initiation (%)"},{"$f":"IFERROR(VLOOKUP(G1607,Translation!$A:$C,3,FALSE),G1607)","v":"749.3"},{"$f":"IFERROR(VLOOKUP(H1607,Translation!$A:$C,3,FALSE),H1607)","v":"Territoires"}]
[13,"T1 2018","PROPRIÉTAIRES-OCCUPANTS, À L’UNITÉ","Terre-Neuve-et-Labrador",745.4050022504174,"Prêts hypothécaires assurés au cours de la période selon le pointage de crédit à l’initiation (%)","745.4","Terre-Neuve-et-Labrador",{"$f":"IFERROR(VLOOKUP(A1608,Translation!$A:$C,3,FALSE),A1608)","v":13},{"$f":"IFERROR(VLOOKUP(B1608,Translation!$A:$C,3,FALSE),B1608)","v":"T1 2018"},{"$f":"IFERROR(VLOOKUP(C1608,Translation!$A:$C,3,FALSE),C1608)","v":"PROPRIÉTAIRES-OCCUPANTS, À L’UNITÉ"},{"$f":"IFERROR(VLOOKUP(D1608,Translation!$A:$C,3,FALSE),D1608)","v":"Terre-Neuve-et-Labrador"},{"$f":"IFERROR(VLOOKUP(E1608,Translation!$A:$C,3,FALSE),E1608)","v":745.4050022504174},{"$f":"IFERROR(VLOOKUP(F1608,Translation!$A:$C,3,FALSE),F1608)","v":"Prêts hypothécaires assurés au cours de la période selon le pointage de crédit à l’initiation (%)"},{"$f":"IFERROR(VLOOKUP(G1608,Translation!$A:$C,3,FALSE),G1608)","v":"745.4"},{"$f":"IFERROR(VLOOKUP(H1608,Translation!$A:$C,3,FALSE),H1608)","v":"Terre-Neuve-et-Labrador"}]
[13,"T1 2018","PROPRIÉTAIRES-OCCUPANTS, À L’UNITÉ","Île-du-Prince-Édouard",744.45546015473315,"Prêts hypothécaires assurés au cours de la période selon le pointage de crédit à l’initiation (%)","744.5","Île-du-Prince-Édouard",{"$f":"IFERROR(VLOOKUP(A1609,Translation!$A:$C,3,FALSE),A1609)","v":13},{"$f":"IFERROR(VLOOKUP(B1609,Translation!$A:$C,3,FALSE),B1609)","v":"T1 2018"},{"$f":"IFERROR(VLOOKUP(C1609,Translation!$A:$C,3,FALSE),C1609)","v":"PROPRIÉTAIRES-OCCUPANTS, À L’UNITÉ"},{"$f":"IFERROR(VLOOKUP(D1609,Translation!$A:$C,3,FALSE),D1609)","v":"Île-du-Prince-Édouard"},{"$f":"IFERROR(VLOOKUP(E1609,Translation!$A:$C,3,FALSE),E1609)","v":744.45546015473315},{"$f":"IFERROR(VLOOKUP(F1609,Translation!$A:$C,3,FALSE),F1609)","v":"Prêts hypothécaires assurés au cours de la période selon le pointage de crédit à l’initiation (%)"},{"$f":"IFERROR(VLOOKUP(G1609,Translation!$A:$C,3,FALSE),G1609)","v":"744.5"},{"$f":"IFERROR(VLOOKUP(H1609,Translation!$A:$C,3,FALSE),H1609)","v":"Île-du-Prince-Édouard"}]
[13,"T1 2018","PROPRIÉTAIRES-OCCUPANTS, À L’UNITÉ","Nouvelle-Écosse",738.47351813157502,"Prêts hypothécaires assurés au cours de la période selon le pointage de crédit à l’initiation (%)","738.5","Nouvelle-Écosse",{"$f":"IFERROR(VLOOKUP(A1610,Translation!$A:$C,3,FALSE),A1610)","v":13},{"$f":"IFERROR(VLOOKUP(B1610,Translation!$A:$C,3,FALSE),B1610)","v":"T1 2018"},{"$f":"IFERROR(VLOOKUP(C1610,Translation!$A:$C,3,FALSE),C1610)","v":"PROPRIÉTAIRES-OCCUPANTS, À L’UNITÉ"},{"$f":"IFERROR(VLOOKUP(D1610,Translation!$A:$C,3,FALSE),D1610)","v":"Nouvelle-Écosse"},{"$f":"IFERROR(VLOOKUP(E1610,Translation!$A:$C,3,FALSE),E1610)","v":738.47351813157502},{"$f":"IFERROR(VLOOKUP(F1610,Translation!$A:$C,3,FALSE),F1610)","v":"Prêts hypothécaires assurés au cours de la période selon le pointage de crédit à l’initiation (%)"},{"$f":"IFERROR(VLOOKUP(G1610,Translation!$A:$C,3,FALSE),G1610)","v":"738.5"},{"$f":"IFERROR(VLOOKUP(H1610,Translation!$A:$C,3,FALSE),H1610)","v":"Nouvelle-Écosse"}]
[13,"T1 2018","PROPRIÉTAIRES-OCCUPANTS, À L’UNITÉ","Nouveau-Brunswick",741.81918982458114,"Prêts hypothécaires assurés au cours de la période selon le pointage de crédit à l’initiation (%)","741.8","Nouveau-Brunswick",{"$f":"IFERROR(VLOOKUP(A1611,Translation!$A:$C,3,FALSE),A1611)","v":13},{"$f":"IFERROR(VLOOKUP(B1611,Translation!$A:$C,3,FALSE),B1611)","v":"T1 2018"},{"$f":"IFERROR(VLOOKUP(C1611,Translation!$A:$C,3,FALSE),C1611)","v":"PROPRIÉTAIRES-OCCUPANTS, À L’UNITÉ"},{"$f":"IFERROR(VLOOKUP(D1611,Translation!$A:$C,3,FALSE),D1611)","v":"Nouveau-Brunswick"},{"$f":"IFERROR(VLOOKUP(E1611,Translation!$A:$C,3,FALSE),E1611)","v":741.81918982458114},{"$f":"IFERROR(VLOOKUP(F1611,Translation!$A:$C,3,FALSE),F1611)","v":"Prêts hypothécaires assurés au cours de la période selon le pointage de crédit à l’initiation (%)"},{"$f":"IFERROR(VLOOKUP(G1611,Translation!$A:$C,3,FALSE),G1611)","v":"741.8"},{"$f":"IFERROR(VLOOKUP(H1611,Translation!$A:$C,3,FALSE),H1611)","v":"Nouveau-Brunswick"}]
[13,"T1 2018","PROPRIÉTAIRES-OCCUPANTS, À L’UNITÉ","Québec",754.8374183934493,"Prêts hypothécaires assurés au cours de la période selon le pointage de crédit à l’initiation (%)","754.8","Québec",{"$f":"IFERROR(VLOOKUP(A1612,Translation!$A:$C,3,FALSE),A1612)","v":13},{"$f":"IFERROR(VLOOKUP(B1612,Translation!$A:$C,3,FALSE),B1612)","v":"T1 2018"},{"$f":"IFERROR(VLOOKUP(C1612,Translation!$A:$C,3,FALSE),C1612)","v":"PROPRIÉTAIRES-OCCUPANTS, À L’UNITÉ"},{"$f":"IFERROR(VLOOKUP(D1612,Translation!$A:$C,3,FALSE),D1612)","v":"Québec"},{"$f":"IFERROR(VLOOKUP(E1612,Translation!$A:$C,3,FALSE),E1612)","v":754.8374183934493},{"$f":"IFERROR(VLOOKUP(F1612,Translation!$A:$C,3,FALSE),F1612)","v":"Prêts hypothécaires assurés au cours de la période selon le pointage de crédit à l’initiation (%)"},{"$f":"IFERROR(VLOOKUP(G1612,Translation!$A:$C,3,FALSE),G1612)","v":"754.8"},{"$f":"IFERROR(VLOOKUP(H1612,Translation!$A:$C,3,FALSE),H1612)","v":"Québec"}]
[13,"T1 2018","PROPRIÉTAIRES-OCCUPANTS, À L’UNITÉ","Ontario",755.5783809537088,"Prêts hypothécaires assurés au cours de la période selon le pointage de crédit à l’initiation (%)","755.6","Ontario",{"$f":"IFERROR(VLOOKUP(A1613,Translation!$A:$C,3,FALSE),A1613)","v":13},{"$f":"IFERROR(VLOOKUP(B1613,Translation!$A:$C,3,FALSE),B1613)","v":"T1 2018"},{"$f":"IFERROR(VLOOKUP(C1613,Translation!$A:$C,3,FALSE),C1613)","v":"PROPRIÉTAIRES-OCCUPANTS, À L’UNITÉ"},{"$f":"IFERROR(VLOOKUP(D1613,Translation!$A:$C,3,FALSE),D1613)","v":"Ontario"},{"$f":"IFERROR(VLOOKUP(E1613,Translation!$A:$C,3,FALSE),E1613)","v":755.5783809537088},{"$f":"IFERROR(VLOOKUP(F1613,Translation!$A:$C,3,FALSE),F1613)","v":"Prêts hypothécaires assurés au cours de la période selon le pointage de crédit à l’initiation (%)"},{"$f":"IFERROR(VLOOKUP(G1613,Translation!$A:$C,3,FALSE),G1613)","v":"755.6"},{"$f":"IFERROR(VLOOKUP(H1613,Translation!$A:$C,3,FALSE),H1613)","v":"Ontario"}]
[13,"T1 2018","PROPRIÉTAIRES-OCCUPANTS, À L’UNITÉ","Manitoba",750.65459829701888,"Prêts hypothécaires assurés au cours de la période selon le pointage de crédit à l’initiation (%)","750.7","Manitoba",{"$f":"IFERROR(VLOOKUP(A1614,Translation!$A:$C,3,FALSE),A1614)","v":13},{"$f":"IFERROR(VLOOKUP(B1614,Translation!$A:$C,3,FALSE),B1614)","v":"T1 2018"},{"$f":"IFERROR(VLOOKUP(C1614,Translation!$A:$C,3,FALSE),C1614)","v":"PROPRIÉTAIRES-OCCUPANTS, À L’UNITÉ"},{"$f":"IFERROR(VLOOKUP(D1614,Translation!$A:$C,3,FALSE),D1614)","v":"Manitoba"},{"$f":"IFERROR(VLOOKUP(E1614,Translation!$A:$C,3,FALSE),E1614)","v":750.65459829701888},{"$f":"IFERROR(VLOOKUP(F1614,Translation!$A:$C,3,FALSE),F1614)","v":"Prêts hypothécaires assurés au cours de la période selon le pointage de crédit à l’initiation (%)"},{"$f":"IFERROR(VLOOKUP(G1614,Translation!$A:$C,3,FALSE),G1614)","v":"750.7"},{"$f":"IFERROR(VLOOKUP(H1614,Translation!$A:$C,3,FALSE),H1614)","v":"Manitoba"}]
[13,"T1 2018","PROPRIÉTAIRES-OCCUPANTS, À L’UNITÉ","Saskatchewan",743.42477582409731,"Prêts hypothécaires assurés au cours de la période selon le pointage de crédit à l’initiation (%)","743.4","Saskatchewan",{"$f":"IFERROR(VLOOKUP(A1615,Translation!$A:$C,3,FALSE),A1615)","v":13},{"$f":"IFERROR(VLOOKUP(B1615,Translation!$A:$C,3,FALSE),B1615)","v":"T1 2018"},{"$f":"IFERROR(VLOOKUP(C1615,Translation!$A:$C,3,FALSE),C1615)","v":"PROPRIÉTAIRES-OCCUPANTS, À L’UNITÉ"},{"$f":"IFERROR(VLOOKUP(D1615,Translation!$A:$C,3,FALSE),D1615)","v":"Saskatchewan"},{"$f":"IFERROR(VLOOKUP(E1615,Translation!$A:$C,3,FALSE),E1615)","v":743.42477582409731},{"$f":"IFERROR(VLOOKUP(F1615,Translation!$A:$C,3,FALSE),F1615)","v":"Prêts hypothécaires assurés au cours de la période selon le pointage de crédit à l’initiation (%)"},{"$f":"IFERROR(VLOOKUP(G1615,Translation!$A:$C,3,FALSE),G1615)","v":"743.4"},{"$f":"IFERROR(VLOOKUP(H1615,Translation!$A:$C,3,FALSE),H1615)","v":"Saskatchewan"}]
[13,"T1 2018","PROPRIÉTAIRES-OCCUPANTS, À L’UNITÉ","Alberta",747.21832961960683,"Prêts hypothécaires assurés au cours de la période selon le pointage de crédit à l’initiation (%)","747.2","Alberta",{"$f":"IFERROR(VLOOKUP(A1616,Translation!$A:$C,3,FALSE),A1616)","v":13},{"$f":"IFERROR(VLOOKUP(B1616,Translation!$A:$C,3,FALSE),B1616)","v":"T1 2018"},{"$f":"IFERROR(VLOOKUP(C1616,Translation!$A:$C,3,FALSE),C1616)","v":"PROPRIÉTAIRES-OCCUPANTS, À L’UNITÉ"},{"$f":"IFERROR(VLOOKUP(D1616,Translation!$A:$C,3,FALSE),D1616)","v":"Alberta"},{"$f":"IFERROR(VLOOKUP(E1616,Translation!$A:$C,3,FALSE),E1616)","v":747.21832961960683},{"$f":"IFERROR(VLOOKUP(F1616,Translation!$A:$C,3,FALSE),F1616)","v":"Prêts hypothécaires assurés au cours de la période selon le pointage de crédit à l’initiation (%)"},{"$f":"IFERROR(VLOOKUP(G1616,Translation!$A:$C,3,FALSE),G1616)","v":"747.2"},{"$f":"IFERROR(VLOOKUP(H1616,Translation!$A:$C,3,FALSE),H1616)","v":"Alberta"}]
[13,"T1 2018","PROPRIÉTAIRES-OCCUPANTS, À L’UNITÉ","Colombie-Britannique",752.34796397156754,"Prêts hypothécaires assurés au cours de la période selon le pointage de crédit à l’initiation (%)","752.3","Colombie-Britannique",{"$f":"IFERROR(VLOOKUP(A1617,Translation!$A:$C,3,FALSE),A1617)","v":13},{"$f":"IFERROR(VLOOKUP(B1617,Translation!$A:$C,3,FALSE),B1617)","v":"T1 2018"},{"$f":"IFERROR(VLOOKUP(C1617,Translation!$A:$C,3,FALSE),C1617)","v":"PROPRIÉTAIRES-OCCUPANTS, À L’UNITÉ"},{"$f":"IFERROR(VLOOKUP(D1617,Translation!$A:$C,3,FALSE),D1617)","v":"Colombie-Britannique"},{"$f":"IFERROR(VLOOKUP(E1617,Translation!$A:$C,3,FALSE),E1617)","v":752.34796397156754},{"$f":"IFERROR(VLOOKUP(F1617,Translation!$A:$C,3,FALSE),F1617)","v":"Prêts hypothécaires assurés au cours de la période selon le pointage de crédit à l’initiation (%)"},{"$f":"IFERROR(VLOOKUP(G1617,Translation!$A:$C,3,FALSE),G1617)","v":"752.3"},{"$f":"IFERROR(VLOOKUP(H1617,Translation!$A:$C,3,FALSE),H1617)","v":"Colombie-Britannique"}]
[13,"T1 2018","PROPRIÉTAIRES-OCCUPANTS, À L’UNITÉ","Territoires",739.98265610963131,"Prêts hypothécaires assurés au cours de la période selon le pointage de crédit à l’initiation (%)","740.0","Territoires",{"$f":"IFERROR(VLOOKUP(A1618,Translation!$A:$C,3,FALSE),A1618)","v":13},{"$f":"IFERROR(VLOOKUP(B1618,Translation!$A:$C,3,FALSE),B1618)","v":"T1 2018"},{"$f":"IFERROR(VLOOKUP(C1618,Translation!$A:$C,3,FALSE),C1618)","v":"PROPRIÉTAIRES-OCCUPANTS, À L’UNITÉ"},{"$f":"IFERROR(VLOOKUP(D1618,Translation!$A:$C,3,FALSE),D1618)","v":"Territoires"},{"$f":"IFERROR(VLOOKUP(E1618,Translation!$A:$C,3,FALSE),E1618)","v":739.98265610963131},{"$f":"IFERROR(VLOOKUP(F1618,Translation!$A:$C,3,FALSE),F1618)","v":"Prêts hypothécaires assurés au cours de la période selon le pointage de crédit à l’initiation (%)"},{"$f":"IFERROR(VLOOKUP(G1618,Translation!$A:$C,3,FALSE),G1618)","v":"740.0"},{"$f":"IFERROR(VLOOKUP(H1618,Translation!$A:$C,3,FALSE),H1618)","v":"Territoires"}]
[13,"Q2 2016","PROPRIÉTAIRES-OCCUPANTS, À L’UNITÉ","Terre-Neuve-et-Labrador",740.32159238756731,"Prêts hypothécaires assurés au cours de la période selon le pointage de crédit à l’initiation (%)","740.3","Terre-Neuve-et-Labrador",{"$f":"IFERROR(VLOOKUP(A1619,Translation!$A:$C,3,FALSE),A1619)","v":13},{"$f":"IFERROR(VLOOKUP(B1619,Translation!$A:$C,3,FALSE),B1619)","v":"Q2 2016"},{"$f":"IFERROR(VLOOKUP(C1619,Translation!$A:$C,3,FALSE),C1619)","v":"PROPRIÉTAIRES-OCCUPANTS, À L’UNITÉ"},{"$f":"IFERROR(VLOOKUP(D1619,Translation!$A:$C,3,FALSE),D1619)","v":"Terre-Neuve-et-Labrador"},{"$f":"IFERROR(VLOOKUP(E1619,Translation!$A:$C,3,FALSE),E1619)","v":740.32159238756731},{"$f":"IFERROR(VLOOKUP(F1619,Translation!$A:$C,3,FALSE),F1619)","v":"Prêts hypothécaires assurés au cours de la période selon le pointage de crédit à l’initiation (%)"},{"$f":"IFERROR(VLOOKUP(G1619,Translation!$A:$C,3,FALSE),G1619)","v":"740.3"},{"$f":"IFERROR(VLOOKUP(H1619,Translation!$A:$C,3,FALSE),H1619)","v":"Terre-Neuve-et-Labrador"}]
[13,"Q2 2016","PROPRIÉTAIRES-OCCUPANTS, À L’UNITÉ","Île-du-Prince-Édouard",740.79056763449614,"Prêts hypothécaires assurés au cours de la période selon le pointage de crédit à l’initiation (%)","740.8","Île-du-Prince-Édouard",{"$f":"IFERROR(VLOOKUP(A1620,Translation!$A:$C,3,FALSE),A1620)","v":13},{"$f":"IFERROR(VLOOKUP(B1620,Translation!$A:$C,3,FALSE),B1620)","v":"Q2 2016"},{"$f":"IFERROR(VLOOKUP(C1620,Translation!$A:$C,3,FALSE),C1620)","v":"PROPRIÉTAIRES-OCCUPANTS, À L’UNITÉ"},{"$f":"IFERROR(VLOOKUP(D1620,Translation!$A:$C,3,FALSE),D1620)","v":"Île-du-Prince-Édouard"},{"$f":"IFERROR(VLOOKUP(E1620,Translation!$A:$C,3,FALSE),E1620)","v":740.79056763449614},{"$f":"IFERROR(VLOOKUP(F1620,Translation!$A:$C,3,FALSE),F1620)","v":"Prêts hypothécaires assurés au cours de la période selon le pointage de crédit à l’initiation (%)"},{"$f":"IFERROR(VLOOKUP(G1620,Translation!$A:$C,3,FALSE),G1620)","v":"740.8"},{"$f":"IFERROR(VLOOKUP(H1620,Translation!$A:$C,3,FALSE),H1620)","v":"Île-du-Prince-Édouard"}]
[13,"Q2 2016","PROPRIÉTAIRES-OCCUPANTS, À L’UNITÉ","Nouvelle-Écosse",741.87185306983611,"Prêts hypothécaires assurés au cours de la période selon le pointage de crédit à l’initiation (%)","741.9","Nouvelle-Écosse",{"$f":"IFERROR(VLOOKUP(A1621,Translation!$A:$C,3,FALSE),A1621)","v":13},{"$f":"IFERROR(VLOOKUP(B1621,Translation!$A:$C,3,FALSE),B1621)","v":"Q2 2016"},{"$f":"IFERROR(VLOOKUP(C1621,Translation!$A:$C,3,FALSE),C1621)","v":"PROPRIÉTAIRES-OCCUPANTS, À L’UNITÉ"},{"$f":"IFERROR(VLOOKUP(D1621,Translation!$A:$C,3,FALSE),D1621)","v":"Nouvelle-Écosse"},{"$f":"IFERROR(VLOOKUP(E1621,Translation!$A:$C,3,FALSE),E1621)","v":741.87185306983611},{"$f":"IFERROR(VLOOKUP(F1621,Translation!$A:$C,3,FALSE),F1621)","v":"Prêts hypothécaires assurés au cours de la période selon le pointage de crédit à l’initiation (%)"},{"$f":"IFERROR(VLOOKUP(G1621,Translation!$A:$C,3,FALSE),G1621)","v":"741.9"},{"$f":"IFERROR(VLOOKUP(H1621,Translation!$A:$C,3,FALSE),H1621)","v":"Nouvelle-Écosse"}]
[13,"Q2 2016","PROPRIÉTAIRES-OCCUPANTS, À L’UNITÉ","Nouveau-Brunswick",742.40516882474708,"Prêts hypothécaires assurés au cours de la période selon le pointage de crédit à l’initiation (%)","742.4","Nouveau-Brunswick",{"$f":"IFERROR(VLOOKUP(A1622,Translation!$A:$C,3,FALSE),A1622)","v":13},{"$f":"IFERROR(VLOOKUP(B1622,Translation!$A:$C,3,FALSE),B1622)","v":"Q2 2016"},{"$f":"IFERROR(VLOOKUP(C1622,Translation!$A:$C,3,FALSE),C1622)","v":"PROPRIÉTAIRES-OCCUPANTS, À L’UNITÉ"},{"$f":"IFERROR(VLOOKUP(D1622,Translation!$A:$C,3,FALSE),D1622)","v":"Nouveau-Brunswick"},{"$f":"IFERROR(VLOOKUP(E1622,Translation!$A:$C,3,FALSE),E1622)","v":742.40516882474708},{"$f":"IFERROR(VLOOKUP(F1622,Translation!$A:$C,3,FALSE),F1622)","v":"Prêts hypothécaires assurés au cours de la période selon le pointage de crédit à l’initiation (%)"},{"$f":"IFERROR(VLOOKUP(G1622,Translation!$A:$C,3,FALSE),G1622)","v":"742.4"},{"$f":"IFERROR(VLOOKUP(H1622,Translation!$A:$C,3,FALSE),H1622)","v":"Nouveau-Brunswick"}]
[13,"Q2 2016","PROPRIÉTAIRES-OCCUPANTS, À L’UNITÉ","Québec",752.98111406781595,"Prêts hypothécaires assurés au cours de la période selon le pointage de crédit à l’initiation (%)","753.0","Québec",{"$f":"IFERROR(VLOOKUP(A1623,Translation!$A:$C,3,FALSE),A1623)","v":13},{"$f":"IFERROR(VLOOKUP(B1623,Translation!$A:$C,3,FALSE),B1623)","v":"Q2 2016"},{"$f":"IFERROR(VLOOKUP(C1623,Translation!$A:$C,3,FALSE),C1623)","v":"PROPRIÉTAIRES-OCCUPANTS, À L’UNITÉ"},{"$f":"IFERROR(VLOOKUP(D1623,Translation!$A:$C,3,FALSE),D1623)","v":"Québec"},{"$f":"IFERROR(VLOOKUP(E1623,Translation!$A:$C,3,FALSE),E1623)","v":752.98111406781595},{"$f":"IFERROR(VLOOKUP(F1623,Translation!$A:$C,3,FALSE),F1623)","v":"Prêts hypothécaires assurés au cours de la période selon le pointage de crédit à l’initiation (%)"},{"$f":"IFERROR(VLOOKUP(G1623,Translation!$A:$C,3,FALSE),G1623)","v":"753.0"},{"$f":"IFERROR(VLOOKUP(H1623,Translation!$A:$C,3,FALSE),H1623)","v":"Québec"}]
[13,"Q2 2016","PROPRIÉTAIRES-OCCUPANTS, À L’UNITÉ","Ontario",751.62505672580482,"Prêts hypothécaires assurés au cours de la période selon le pointage de crédit à l’initiation (%)","751.6","Ontario",{"$f":"IFERROR(VLOOKUP(A1624,Translation!$A:$C,3,FALSE),A1624)","v":13},{"$f":"IFERROR(VLOOKUP(B1624,Translation!$A:$C,3,FALSE),B1624)","v":"Q2 2016"},{"$f":"IFERROR(VLOOKUP(C1624,Translation!$A:$C,3,FALSE),C1624)","v":"PROPRIÉTAIRES-OCCUPANTS, À L’UNITÉ"},{"$f":"IFERROR(VLOOKUP(D1624,Translation!$A:$C,3,FALSE),D1624)","v":"Ontario"},{"$f":"IFERROR(VLOOKUP(E1624,Translation!$A:$C,3,FALSE),E1624)","v":751.62505672580482},{"$f":"IFERROR(VLOOKUP(F1624,Translation!$A:$C,3,FALSE),F1624)","v":"Prêts hypothécaires assurés au cours de la période selon le pointage de crédit à l’initiation (%)"},{"$f":"IFERROR(VLOOKUP(G1624,Translation!$A:$C,3,FALSE),G1624)","v":"751.6"},{"$f":"IFERROR(VLOOKUP(H1624,Translation!$A:$C,3,FALSE),H1624)","v":"Ontario"}]
[13,"Q2 2016","PROPRIÉTAIRES-OCCUPANTS, À L’UNITÉ","Manitoba",750.67592308358508,"Prêts hypothécaires assurés au cours de la période selon le pointage de crédit à l’initiation (%)","750.7","Manitoba",{"$f":"IFERROR(VLOOKUP(A1625,Translation!$A:$C,3,FALSE),A1625)","v":13},{"$f":"IFERROR(VLOOKUP(B1625,Translation!$A:$C,3,FALSE),B1625)","v":"Q2 2016"},{"$f":"IFERROR(VLOOKUP(C1625,Translation!$A:$C,3,FALSE),C1625)","v":"PROPRIÉTAIRES-OCCUPANTS, À L’UNITÉ"},{"$f":"IFERROR(VLOOKUP(D1625,Translation!$A:$C,3,FALSE),D1625)","v":"Manitoba"},{"$f":"IFERROR(VLOOKUP(E1625,Translation!$A:$C,3,FALSE),E1625)","v":750.67592308358508},{"$f":"IFERROR(VLOOKUP(F1625,Translation!$A:$C,3,FALSE),F1625)","v":"Prêts hypothécaires assurés au cours de la période selon le pointage de crédit à l’initiation (%)"},{"$f":"IFERROR(VLOOKUP(G1625,Translation!$A:$C,3,FALSE),G1625)","v":"750.7"},{"$f":"IFERROR(VLOOKUP(H1625,Translation!$A:$C,3,FALSE),H1625)","v":"Manitoba"}]
[13,"Q2 2016","PROPRIÉTAIRES-OCCUPANTS, À L’UNITÉ","Saskatchewan",744.01356428487122,"Prêts hypothécaires assurés au cours de la période selon le pointage de crédit à l’initiation (%)","744.0","Saskatchewan",{"$f":"IFERROR(VLOOKUP(A1626,Translation!$A:$C,3,FALSE),A1626)","v":13},{"$f":"IFERROR(VLOOKUP(B1626,Translation!$A:$C,3,FALSE),B1626)","v":"Q2 2016"},{"$f":"IFERROR(VLOOKUP(C1626,Translation!$A:$C,3,FALSE),C1626)","v":"PROPRIÉTAIRES-OCCUPANTS, À L’UNITÉ"},{"$f":"IFERROR(VLOOKUP(D1626,Translation!$A:$C,3,FALSE),D1626)","v":"Saskatchewan"},{"$f":"IFERROR(VLOOKUP(E1626,Translation!$A:$C,3,FALSE),E1626)","v":744.01356428487122},{"$f":"IFERROR(VLOOKUP(F1626,Translation!$A:$C,3,FALSE),F1626)","v":"Prêts hypothécaires assurés au cours de la période selon le pointage de crédit à l’initiation (%)"},{"$f":"IFERROR(VLOOKUP(G1626,Translation!$A:$C,3,FALSE),G1626)","v":"744.0"},{"$f":"IFERROR(VLOOKUP(H1626,Translation!$A:$C,3,FALSE),H1626)","v":"Saskatchewan"}]
[13,"Q2 2016","PROPRIÉTAIRES-OCCUPANTS, À L’UNITÉ","Alberta",742.97501994282891,"Prêts hypothécaires assurés au cours de la période selon le pointage de crédit à l’initiation (%)","743.0","Alberta",{"$f":"IFERROR(VLOOKUP(A1627,Translation!$A:$C,3,FALSE),A1627)","v":13},{"$f":"IFERROR(VLOOKUP(B1627,Translation!$A:$C,3,FALSE),B1627)","v":"Q2 2016"},{"$f":"IFERROR(VLOOKUP(C1627,Translation!$A:$C,3,FALSE),C1627)","v":"PROPRIÉTAIRES-OCCUPANTS, À L’UNITÉ"},{"$f":"IFERROR(VLOOKUP(D1627,Translation!$A:$C,3,FALSE),D1627)","v":"Alberta"},{"$f":"IFERROR(VLOOKUP(E1627,Translation!$A:$C,3,FALSE),E1627)","v":742.97501994282891},{"$f":"IFERROR(VLOOKUP(F1627,Translation!$A:$C,3,FALSE),F1627)","v":"Prêts hypothécaires assurés au cours de la période selon le pointage de crédit à l’initiation (%)"},{"$f":"IFERROR(VLOOKUP(G1627,Translation!$A:$C,3,FALSE),G1627)","v":"743.0"},{"$f":"IFERROR(VLOOKUP(H1627,Translation!$A:$C,3,FALSE),H1627)","v":"Alberta"}]
[13,"Q2 2016","PROPRIÉTAIRES-OCCUPANTS, À L’UNITÉ","Colombie-Britannique",749.72111995634884,"Prêts hypothécaires assurés au cours de la période selon le pointage de crédit à l’initiation (%)","749.7","Colombie-Britannique",{"$f":"IFERROR(VLOOKUP(A1628,Translation!$A:$C,3,FALSE),A1628)","v":13},{"$f":"IFERROR(VLOOKUP(B1628,Translation!$A:$C,3,FALSE),B1628)","v":"Q2 2016"},{"$f":"IFERROR(VLOOKUP(C1628,Translation!$A:$C,3,FALSE),C1628)","v":"PROPRIÉTAIRES-OCCUPANTS, À L’UNITÉ"},{"$f":"IFERROR(VLOOKUP(D1628,Translation!$A:$C,3,FALSE),D1628)","v":"Colombie-Britannique"},{"$f":"IFERROR(VLOOKUP(E1628,Translation!$A:$C,3,FALSE),E1628)","v":749.72111995634884},{"$f":"IFERROR(VLOOKUP(F1628,Translation!$A:$C,3,FALSE),F1628)","v":"Prêts hypothécaires assurés au cours de la période selon le pointage de crédit à l’initiation (%)"},{"$f":"IFERROR(VLOOKUP(G1628,Translation!$A:$C,3,FALSE),G1628)","v":"749.7"},{"$f":"IFERROR(VLOOKUP(H1628,Translation!$A:$C,3,FALSE),H1628)","v":"Colombie-Britannique"}]
[13,"Q2 2016","PROPRIÉTAIRES-OCCUPANTS, À L’UNITÉ","Territoires",746.43900589807345,"Prêts hypothécaires assurés au cours de la période selon le pointage de crédit à l’initiation (%)","746.4","Territoires",{"$f":"IFERROR(VLOOKUP(A1629,Translation!$A:$C,3,FALSE),A1629)","v":13},{"$f":"IFERROR(VLOOKUP(B1629,Translation!$A:$C,3,FALSE),B1629)","v":"Q2 2016"},{"$f":"IFERROR(VLOOKUP(C1629,Translation!$A:$C,3,FALSE),C1629)","v":"PROPRIÉTAIRES-OCCUPANTS, À L’UNITÉ"},{"$f":"IFERROR(VLOOKUP(D1629,Translation!$A:$C,3,FALSE),D1629)","v":"Territoires"},{"$f":"IFERROR(VLOOKUP(E1629,Translation!$A:$C,3,FALSE),E1629)","v":746.43900589807345},{"$f":"IFERROR(VLOOKUP(F1629,Translation!$A:$C,3,FALSE),F1629)","v":"Prêts hypothécaires assurés au cours de la période selon le pointage de crédit à l’initiation (%)"},{"$f":"IFERROR(VLOOKUP(G1629,Translation!$A:$C,3,FALSE),G1629)","v":"746.4"},{"$f":"IFERROR(VLOOKUP(H1629,Translation!$A:$C,3,FALSE),H1629)","v":"Territoires"}]
[13,"T2 2017","PROPRIÉTAIRES-OCCUPANTS, À L’UNITÉ","Terre-Neuve-et-Labrador",746.66633501872639,"Prêts hypothécaires assurés au cours de la période selon le pointage de crédit à l’initiation (%)","746.7","Terre-Neuve-et-Labrador",{"$f":"IFERROR(VLOOKUP(A1630,Translation!$A:$C,3,FALSE),A1630)","v":13},{"$f":"IFERROR(VLOOKUP(B1630,Translation!$A:$C,3,FALSE),B1630)","v":"T2 2017"},{"$f":"IFERROR(VLOOKUP(C1630,Translation!$A:$C,3,FALSE),C1630)","v":"PROPRIÉTAIRES-OCCUPANTS, À L’UNITÉ"},{"$f":"IFERROR(VLOOKUP(D1630,Translation!$A:$C,3,FALSE),D1630)","v":"Terre-Neuve-et-Labrador"},{"$f":"IFERROR(VLOOKUP(E1630,Translation!$A:$C,3,FALSE),E1630)","v":746.66633501872639},{"$f":"IFERROR(VLOOKUP(F1630,Translation!$A:$C,3,FALSE),F1630)","v":"Prêts hypothécaires assurés au cours de la période selon le pointage de crédit à l’initiation (%)"},{"$f":"IFERROR(VLOOKUP(G1630,Translation!$A:$C,3,FALSE),G1630)","v":"746.7"},{"$f":"IFERROR(VLOOKUP(H1630,Translation!$A:$C,3,FALSE),H1630)","v":"Terre-Neuve-et-Labrador"}]
[13,"T2 2017","PROPRIÉTAIRES-OCCUPANTS, À L’UNITÉ","Île-du-Prince-Édouard",737.69777973536122,"Prêts hypothécaires assurés au cours de la période selon le pointage de crédit à l’initiation (%)","737.7","Île-du-Prince-Édouard",{"$f":"IFERROR(VLOOKUP(A1631,Translation!$A:$C,3,FALSE),A1631)","v":13},{"$f":"IFERROR(VLOOKUP(B1631,Translation!$A:$C,3,FALSE),B1631)","v":"T2 2017"},{"$f":"IFERROR(VLOOKUP(C1631,Translation!$A:$C,3,FALSE),C1631)","v":"PROPRIÉTAIRES-OCCUPANTS, À L’UNITÉ"},{"$f":"IFERROR(VLOOKUP(D1631,Translation!$A:$C,3,FALSE),D1631)","v":"Île-du-Prince-Édouard"},{"$f":"IFERROR(VLOOKUP(E1631,Translation!$A:$C,3,FALSE),E1631)","v":737.69777973536122},{"$f":"IFERROR(VLOOKUP(F1631,Translation!$A:$C,3,FALSE),F1631)","v":"Prêts hypothécaires assurés au cours de la période selon le pointage de crédit à l’initiation (%)"},{"$f":"IFERROR(VLOOKUP(G1631,Translation!$A:$C,3,FALSE),G1631)","v":"737.7"},{"$f":"IFERROR(VLOOKUP(H1631,Translation!$A:$C,3,FALSE),H1631)","v":"Île-du-Prince-Édouard"}]
[13,"T2 2017","PROPRIÉTAIRES-OCCUPANTS, À L’UNITÉ","Nouvelle-Écosse",743.2115157525302,"Prêts hypothécaires assurés au cours de la période selon le pointage de crédit à l’initiation (%)","743.2","Nouvelle-Écosse",{"$f":"IFERROR(VLOOKUP(A1632,Translation!$A:$C,3,FALSE),A1632)","v":13},{"$f":"IFERROR(VLOOKUP(B1632,Translation!$A:$C,3,FALSE),B1632)","v":"T2 2017"},{"$f":"IFERROR(VLOOKUP(C1632,Translation!$A:$C,3,FALSE),C1632)","v":"PROPRIÉTAIRES-OCCUPANTS, À L’UNITÉ"},{"$f":"IFERROR(VLOOKUP(D1632,Translation!$A:$C,3,FALSE),D1632)","v":"Nouvelle-Écosse"},{"$f":"IFERROR(VLOOKUP(E1632,Translation!$A:$C,3,FALSE),E1632)","v":743.2115157525302},{"$f":"IFERROR(VLOOKUP(F1632,Translation!$A:$C,3,FALSE),F1632)","v":"Prêts hypothécaires assurés au cours de la période selon le pointage de crédit à l’initiation (%)"},{"$f":"IFERROR(VLOOKUP(G1632,Translation!$A:$C,3,FALSE),G1632)","v":"743.2"},{"$f":"IFERROR(VLOOKUP(H1632,Translation!$A:$C,3,FALSE),H1632)","v":"Nouvelle-Écosse"}]
[13,"T2 2017","PROPRIÉTAIRES-OCCUPANTS, À L’UNITÉ","Nouveau-Brunswick",738.85022764168014,"Prêts hypothécaires assurés au cours de la période selon le pointage de crédit à l’initiation (%)","738.9","Nouveau-Brunswick",{"$f":"IFERROR(VLOOKUP(A1633,Translation!$A:$C,3,FALSE),A1633)","v":13},{"$f":"IFERROR(VLOOKUP(B1633,Translation!$A:$C,3,FALSE),B1633)","v":"T2 2017"},{"$f":"IFERROR(VLOOKUP(C1633,Translation!$A:$C,3,FALSE),C1633)","v":"PROPRIÉTAIRES-OCCUPANTS, À L’UNITÉ"},{"$f":"IFERROR(VLOOKUP(D1633,Translation!$A:$C,3,FALSE),D1633)","v":"Nouveau-Brunswick"},{"$f":"IFERROR(VLOOKUP(E1633,Translation!$A:$C,3,FALSE),E1633)","v":738.85022764168014},{"$f":"IFERROR(VLOOKUP(F1633,Translation!$A:$C,3,FALSE),F1633)","v":"Prêts hypothécaires assurés au cours de la période selon le pointage de crédit à l’initiation (%)"},{"$f":"IFERROR(VLOOKUP(G1633,Translation!$A:$C,3,FALSE),G1633)","v":"738.9"},{"$f":"IFERROR(VLOOKUP(H1633,Translation!$A:$C,3,FALSE),H1633)","v":"Nouveau-Brunswick"}]
[13,"T2 2017","PROPRIÉTAIRES-OCCUPANTS, À L’UNITÉ","Québec",755.20781084234818,"Prêts hypothécaires assurés au cours de la période selon le pointage de crédit à l’initiation (%)","755.2","Québec",{"$f":"IFERROR(VLOOKUP(A1634,Translation!$A:$C,3,FALSE),A1634)","v":13},{"$f":"IFERROR(VLOOKUP(B1634,Translation!$A:$C,3,FALSE),B1634)","v":"T2 2017"},{"$f":"IFERROR(VLOOKUP(C1634,Translation!$A:$C,3,FALSE),C1634)","v":"PROPRIÉTAIRES-OCCUPANTS, À L’UNITÉ"},{"$f":"IFERROR(VLOOKUP(D1634,Translation!$A:$C,3,FALSE),D1634)","v":"Québec"},{"$f":"IFERROR(VLOOKUP(E1634,Translation!$A:$C,3,FALSE),E1634)","v":755.20781084234818},{"$f":"IFERROR(VLOOKUP(F1634,Translation!$A:$C,3,FALSE),F1634)","v":"Prêts hypothécaires assurés au cours de la période selon le pointage de crédit à l’initiation (%)"},{"$f":"IFERROR(VLOOKUP(G1634,Translation!$A:$C,3,FALSE),G1634)","v":"755.2"},{"$f":"IFERROR(VLOOKUP(H1634,Translation!$A:$C,3,FALSE),H1634)","v":"Québec"}]
[13,"T2 2017","PROPRIÉTAIRES-OCCUPANTS, À L’UNITÉ","Ontario",756.82684101938014,"Prêts hypothécaires assurés au cours de la période selon le pointage de crédit à l’initiation (%)","756.8","Ontario",{"$f":"IFERROR(VLOOKUP(A1635,Translation!$A:$C,3,FALSE),A1635)","v":13},{"$f":"IFERROR(VLOOKUP(B1635,Translation!$A:$C,3,FALSE),B1635)","v":"T2 2017"},{"$f":"IFERROR(VLOOKUP(C1635,Translation!$A:$C,3,FALSE),C1635)","v":"PROPRIÉTAIRES-OCCUPANTS, À L’UNITÉ"},{"$f":"IFERROR(VLOOKUP(D1635,Translation!$A:$C,3,FALSE),D1635)","v":"Ontario"},{"$f":"IFERROR(VLOOKUP(E1635,Translation!$A:$C,3,FALSE),E1635)","v":756.82684101938014},{"$f":"IFERROR(VLOOKUP(F1635,Translation!$A:$C,3,FALSE),F1635)","v":"Prêts hypothécaires assurés au cours de la période selon le pointage de crédit à l’initiation (%)"},{"$f":"IFERROR(VLOOKUP(G1635,Translation!$A:$C,3,FALSE),G1635)","v":"756.8"},{"$f":"IFERROR(VLOOKUP(H1635,Translation!$A:$C,3,FALSE),H1635)","v":"Ontario"}]
[13,"T2 2017","PROPRIÉTAIRES-OCCUPANTS, À L’UNITÉ","Manitoba",748.38540907847187,"Prêts hypothécaires assurés au cours de la période selon le pointage de crédit à l’initiation (%)","748.4","Manitoba",{"$f":"IFERROR(VLOOKUP(A1636,Translation!$A:$C,3,FALSE),A1636)","v":13},{"$f":"IFERROR(VLOOKUP(B1636,Translation!$A:$C,3,FALSE),B1636)","v":"T2 2017"},{"$f":"IFERROR(VLOOKUP(C1636,Translation!$A:$C,3,FALSE),C1636)","v":"PROPRIÉTAIRES-OCCUPANTS, À L’UNITÉ"},{"$f":"IFERROR(VLOOKUP(D1636,Translation!$A:$C,3,FALSE),D1636)","v":"Manitoba"},{"$f":"IFERROR(VLOOKUP(E1636,Translation!$A:$C,3,FALSE),E1636)","v":748.38540907847187},{"$f":"IFERROR(VLOOKUP(F1636,Translation!$A:$C,3,FALSE),F1636)","v":"Prêts hypothécaires assurés au cours de la période selon le pointage de crédit à l’initiation (%)"},{"$f":"IFERROR(VLOOKUP(G1636,Translation!$A:$C,3,FALSE),G1636)","v":"748.4"},{"$f":"IFERROR(VLOOKUP(H1636,Translation!$A:$C,3,FALSE),H1636)","v":"Manitoba"}]
[13,"T2 2017","PROPRIÉTAIRES-OCCUPANTS, À L’UNITÉ","Saskatchewan",745.47556969759989,"Prêts hypothécaires assurés au cours de la période selon le pointage de crédit à l’initiation (%)","745.5","Saskatchewan",{"$f":"IFERROR(VLOOKUP(A1637,Translation!$A:$C,3,FALSE),A1637)","v":13},{"$f":"IFERROR(VLOOKUP(B1637,Translation!$A:$C,3,FALSE),B1637)","v":"T2 2017"},{"$f":"IFERROR(VLOOKUP(C1637,Translation!$A:$C,3,FALSE),C1637)","v":"PROPRIÉTAIRES-OCCUPANTS, À L’UNITÉ"},{"$f":"IFERROR(VLOOKUP(D1637,Translation!$A:$C,3,FALSE),D1637)","v":"Saskatchewan"},{"$f":"IFERROR(VLOOKUP(E1637,Translation!$A:$C,3,FALSE),E1637)","v":745.47556969759989},{"$f":"IFERROR(VLOOKUP(F1637,Translation!$A:$C,3,FALSE),F1637)","v":"Prêts hypothécaires assurés au cours de la période selon le pointage de crédit à l’initiation (%)"},{"$f":"IFERROR(VLOOKUP(G1637,Translation!$A:$C,3,FALSE),G1637)","v":"745.5"},{"$f":"IFERROR(VLOOKUP(H1637,Translation!$A:$C,3,FALSE),H1637)","v":"Saskatchewan"}]
[13,"T2 2017","PROPRIÉTAIRES-OCCUPANTS, À L’UNITÉ","Alberta",746.65534319108735,"Prêts hypothécaires assurés au cours de la période selon le pointage de crédit à l’initiation (%)","746.7","Alberta",{"$f":"IFERROR(VLOOKUP(A1638,Translation!$A:$C,3,FALSE),A1638)","v":13},{"$f":"IFERROR(VLOOKUP(B1638,Translation!$A:$C,3,FALSE),B1638)","v":"T2 2017"},{"$f":"IFERROR(VLOOKUP(C1638,Translation!$A:$C,3,FALSE),C1638)","v":"PROPRIÉTAIRES-OCCUPANTS, À L’UNITÉ"},{"$f":"IFERROR(VLOOKUP(D1638,Translation!$A:$C,3,FALSE),D1638)","v":"Alberta"},{"$f":"IFERROR(VLOOKUP(E1638,Translation!$A:$C,3,FALSE),E1638)","v":746.65534319108735},{"$f":"IFERROR(VLOOKUP(F1638,Translation!$A:$C,3,FALSE),F1638)","v":"Prêts hypothécaires assurés au cours de la période selon le pointage de crédit à l’initiation (%)"},{"$f":"IFERROR(VLOOKUP(G1638,Translation!$A:$C,3,FALSE),G1638)","v":"746.7"},{"$f":"IFERROR(VLOOKUP(H1638,Translation!$A:$C,3,FALSE),H1638)","v":"Alberta"}]
[13,"T2 2017","PROPRIÉTAIRES-OCCUPANTS, À L’UNITÉ","Colombie-Britannique",750.3515334595819,"Prêts hypothécaires assurés au cours de la période selon le pointage de crédit à l’initiation (%)","750.4","Colombie-Britannique",{"$f":"IFERROR(VLOOKUP(A1639,Translation!$A:$C,3,FALSE),A1639)","v":13},{"$f":"IFERROR(VLOOKUP(B1639,Translation!$A:$C,3,FALSE),B1639)","v":"T2 2017"},{"$f":"IFERROR(VLOOKUP(C1639,Translation!$A:$C,3,FALSE),C1639)","v":"PROPRIÉTAIRES-OCCUPANTS, À L’UNITÉ"},{"$f":"IFERROR(VLOOKUP(D1639,Translation!$A:$C,3,FALSE),D1639)","v":"Colombie-Britannique"},{"$f":"IFERROR(VLOOKUP(E1639,Translation!$A:$C,3,FALSE),E1639)","v":750.3515334595819},{"$f":"IFERROR(VLOOKUP(F1639,Translation!$A:$C,3,FALSE),F1639)","v":"Prêts hypothécaires assurés au cours de la période selon le pointage de crédit à l’initiation (%)"},{"$f":"IFERROR(VLOOKUP(G1639,Translation!$A:$C,3,FALSE),G1639)","v":"750.4"},{"$f":"IFERROR(VLOOKUP(H1639,Translation!$A:$C,3,FALSE),H1639)","v":"Colombie-Britannique"}]
[13,"T2 2017","PROPRIÉTAIRES-OCCUPANTS, À L’UNITÉ","Territoires",749.53754791851941,"Prêts hypothécaires assurés au cours de la période selon le pointage de crédit à l’initiation (%)","749.5","Territoires",{"$f":"IFERROR(VLOOKUP(A1640,Translation!$A:$C,3,FALSE),A1640)","v":13},{"$f":"IFERROR(VLOOKUP(B1640,Translation!$A:$C,3,FALSE),B1640)","v":"T2 2017"},{"$f":"IFERROR(VLOOKUP(C1640,Translation!$A:$C,3,FALSE),C1640)","v":"PROPRIÉTAIRES-OCCUPANTS, À L’UNITÉ"},{"$f":"IFERROR(VLOOKUP(D1640,Translation!$A:$C,3,FALSE),D1640)","v":"Territoires"},{"$f":"IFERROR(VLOOKUP(E1640,Translation!$A:$C,3,FALSE),E1640)","v":749.53754791851941},{"$f":"IFERROR(VLOOKUP(F1640,Translation!$A:$C,3,FALSE),F1640)","v":"Prêts hypothécaires assurés au cours de la période selon le pointage de crédit à l’initiation (%)"},{"$f":"IFERROR(VLOOKUP(G1640,Translation!$A:$C,3,FALSE),G1640)","v":"749.5"},{"$f":"IFERROR(VLOOKUP(H1640,Translation!$A:$C,3,FALSE),H1640)","v":"Territoires"}]
[13,"Q3 2016","PROPRIÉTAIRES-OCCUPANTS, À L’UNITÉ","Terre-Neuve-et-Labrador",740.40646448500638,"Prêts hypothécaires assurés au cours de la période selon le pointage de crédit à l’initiation (%)","740.4","Terre-Neuve-et-Labrador",{"$f":"IFERROR(VLOOKUP(A1641,Translation!$A:$C,3,FALSE),A1641)","v":13},{"$f":"IFERROR(VLOOKUP(B1641,Translation!$A:$C,3,FALSE),B1641)","v":"Q3 2016"},{"$f":"IFERROR(VLOOKUP(C1641,Translation!$A:$C,3,FALSE),C1641)","v":"PROPRIÉTAIRES-OCCUPANTS, À L’UNITÉ"},{"$f":"IFERROR(VLOOKUP(D1641,Translation!$A:$C,3,FALSE),D1641)","v":"Terre-Neuve-et-Labrador"},{"$f":"IFERROR(VLOOKUP(E1641,Translation!$A:$C,3,FALSE),E1641)","v":740.40646448500638},{"$f":"IFERROR(VLOOKUP(F1641,Translation!$A:$C,3,FALSE),F1641)","v":"Prêts hypothécaires assurés au cours de la période selon le pointage de crédit à l’initiation (%)"},{"$f":"IFERROR(VLOOKUP(G1641,Translation!$A:$C,3,FALSE),G1641)","v":"740.4"},{"$f":"IFERROR(VLOOKUP(H1641,Translation!$A:$C,3,FALSE),H1641)","v":"Terre-Neuve-et-Labrador"}]
[13,"Q3 2016","PROPRIÉTAIRES-OCCUPANTS, À L’UNITÉ","Île-du-Prince-Édouard",744.05127378304667,"Prêts hypothécaires assurés au cours de la période selon le pointage de crédit à l’initiation (%)","744.1","Île-du-Prince-Édouard",{"$f":"IFERROR(VLOOKUP(A1642,Translation!$A:$C,3,FALSE),A1642)","v":13},{"$f":"IFERROR(VLOOKUP(B1642,Translation!$A:$C,3,FALSE),B1642)","v":"Q3 2016"},{"$f":"IFERROR(VLOOKUP(C1642,Translation!$A:$C,3,FALSE),C1642)","v":"PROPRIÉTAIRES-OCCUPANTS, À L’UNITÉ"},{"$f":"IFERROR(VLOOKUP(D1642,Translation!$A:$C,3,FALSE),D1642)","v":"Île-du-Prince-Édouard"},{"$f":"IFERROR(VLOOKUP(E1642,Translation!$A:$C,3,FALSE),E1642)","v":744.05127378304667},{"$f":"IFERROR(VLOOKUP(F1642,Translation!$A:$C,3,FALSE),F1642)","v":"Prêts hypothécaires assurés au cours de la période selon le pointage de crédit à l’initiation (%)"},{"$f":"IFERROR(VLOOKUP(G1642,Translation!$A:$C,3,FALSE),G1642)","v":"744.1"},{"$f":"IFERROR(VLOOKUP(H1642,Translation!$A:$C,3,FALSE),H1642)","v":"Île-du-Prince-Édouard"}]
[13,"Q3 2016","PROPRIÉTAIRES-OCCUPANTS, À L’UNITÉ","Nouvelle-Écosse",743.80206131754255,"Prêts hypothécaires assurés au cours de la période selon le pointage de crédit à l’initiation (%)","743.8","Nouvelle-Écosse",{"$f":"IFERROR(VLOOKUP(A1643,Translation!$A:$C,3,FALSE),A1643)","v":13},{"$f":"IFERROR(VLOOKUP(B1643,Translation!$A:$C,3,FALSE),B1643)","v":"Q3 2016"},{"$f":"IFERROR(VLOOKUP(C1643,Translation!$A:$C,3,FALSE),C1643)","v":"PROPRIÉTAIRES-OCCUPANTS, À L’UNITÉ"},{"$f":"IFERROR(VLOOKUP(D1643,Translation!$A:$C,3,FALSE),D1643)","v":"Nouvelle-Écosse"},{"$f":"IFERROR(VLOOKUP(E1643,Translation!$A:$C,3,FALSE),E1643)","v":743.80206131754255},{"$f":"IFERROR(VLOOKUP(F1643,Translation!$A:$C,3,FALSE),F1643)","v":"Prêts hypothécaires assurés au cours de la période selon le pointage de crédit à l’initiation (%)"},{"$f":"IFERROR(VLOOKUP(G1643,Translation!$A:$C,3,FALSE),G1643)","v":"743.8"},{"$f":"IFERROR(VLOOKUP(H1643,Translation!$A:$C,3,FALSE),H1643)","v":"Nouvelle-Écosse"}]
[13,"Q3 2016","PROPRIÉTAIRES-OCCUPANTS, À L’UNITÉ","Nouveau-Brunswick",743.14795769221314,"Prêts hypothécaires assurés au cours de la période selon le pointage de crédit à l’initiation (%)","743.1","Nouveau-Brunswick",{"$f":"IFERROR(VLOOKUP(A1644,Translation!$A:$C,3,FALSE),A1644)","v":13},{"$f":"IFERROR(VLOOKUP(B1644,Translation!$A:$C,3,FALSE),B1644)","v":"Q3 2016"},{"$f":"IFERROR(VLOOKUP(C1644,Translation!$A:$C,3,FALSE),C1644)","v":"PROPRIÉTAIRES-OCCUPANTS, À L’UNITÉ"},{"$f":"IFERROR(VLOOKUP(D1644,Translation!$A:$C,3,FALSE),D1644)","v":"Nouveau-Brunswick"},{"$f":"IFERROR(VLOOKUP(E1644,Translation!$A:$C,3,FALSE),E1644)","v":743.14795769221314},{"$f":"IFERROR(VLOOKUP(F1644,Translation!$A:$C,3,FALSE),F1644)","v":"Prêts hypothécaires assurés au cours de la période selon le pointage de crédit à l’initiation (%)"},{"$f":"IFERROR(VLOOKUP(G1644,Translation!$A:$C,3,FALSE),G1644)","v":"743.1"},{"$f":"IFERROR(VLOOKUP(H1644,Translation!$A:$C,3,FALSE),H1644)","v":"Nouveau-Brunswick"}]
[13,"Q3 2016","PROPRIÉTAIRES-OCCUPANTS, À L’UNITÉ","Québec",752.28047228442426,"Prêts hypothécaires assurés au cours de la période selon le pointage de crédit à l’initiation (%)","752.3","Québec",{"$f":"IFERROR(VLOOKUP(A1645,Translation!$A:$C,3,FALSE),A1645)","v":13},{"$f":"IFERROR(VLOOKUP(B1645,Translation!$A:$C,3,FALSE),B1645)","v":"Q3 2016"},{"$f":"IFERROR(VLOOKUP(C1645,Translation!$A:$C,3,FALSE),C1645)","v":"PROPRIÉTAIRES-OCCUPANTS, À L’UNITÉ"},{"$f":"IFERROR(VLOOKUP(D1645,Translation!$A:$C,3,FALSE),D1645)","v":"Québec"},{"$f":"IFERROR(VLOOKUP(E1645,Translation!$A:$C,3,FALSE),E1645)","v":752.28047228442426},{"$f":"IFERROR(VLOOKUP(F1645,Translation!$A:$C,3,FALSE),F1645)","v":"Prêts hypothécaires assurés au cours de la période selon le pointage de crédit à l’initiation (%)"},{"$f":"IFERROR(VLOOKUP(G1645,Translation!$A:$C,3,FALSE),G1645)","v":"752.3"},{"$f":"IFERROR(VLOOKUP(H1645,Translation!$A:$C,3,FALSE),H1645)","v":"Québec"}]
[13,"Q3 2016","PROPRIÉTAIRES-OCCUPANTS, À L’UNITÉ","Ontario",754.04566957931104,"Prêts hypothécaires assurés au cours de la période selon le pointage de crédit à l’initiation (%)","754.0","Ontario",{"$f":"IFERROR(VLOOKUP(A1646,Translation!$A:$C,3,FALSE),A1646)","v":13},{"$f":"IFERROR(VLOOKUP(B1646,Translation!$A:$C,3,FALSE),B1646)","v":"Q3 2016"},{"$f":"IFERROR(VLOOKUP(C1646,Translation!$A:$C,3,FALSE),C1646)","v":"PROPRIÉTAIRES-OCCUPANTS, À L’UNITÉ"},{"$f":"IFERROR(VLOOKUP(D1646,Translation!$A:$C,3,FALSE),D1646)","v":"Ontario"},{"$f":"IFERROR(VLOOKUP(E1646,Translation!$A:$C,3,FALSE),E1646)","v":754.04566957931104},{"$f":"IFERROR(VLOOKUP(F1646,Translation!$A:$C,3,FALSE),F1646)","v":"Prêts hypothécaires assurés au cours de la période selon le pointage de crédit à l’initiation (%)"},{"$f":"IFERROR(VLOOKUP(G1646,Translation!$A:$C,3,FALSE),G1646)","v":"754.0"},{"$f":"IFERROR(VLOOKUP(H1646,Translation!$A:$C,3,FALSE),H1646)","v":"Ontario"}]
[13,"Q3 2016","PROPRIÉTAIRES-OCCUPANTS, À L’UNITÉ","Manitoba",750.25808380720684,"Prêts hypothécaires assurés au cours de la période selon le pointage de crédit à l’initiation (%)","750.3","Manitoba",{"$f":"IFERROR(VLOOKUP(A1647,Translation!$A:$C,3,FALSE),A1647)","v":13},{"$f":"IFERROR(VLOOKUP(B1647,Translation!$A:$C,3,FALSE),B1647)","v":"Q3 2016"},{"$f":"IFERROR(VLOOKUP(C1647,Translation!$A:$C,3,FALSE),C1647)","v":"PROPRIÉTAIRES-OCCUPANTS, À L’UNITÉ"},{"$f":"IFERROR(VLOOKUP(D1647,Translation!$A:$C,3,FALSE),D1647)","v":"Manitoba"},{"$f":"IFERROR(VLOOKUP(E1647,Translation!$A:$C,3,FALSE),E1647)","v":750.25808380720684},{"$f":"IFERROR(VLOOKUP(F1647,Translation!$A:$C,3,FALSE),F1647)","v":"Prêts hypothécaires assurés au cours de la période selon le pointage de crédit à l’initiation (%)"},{"$f":"IFERROR(VLOOKUP(G1647,Translation!$A:$C,3,FALSE),G1647)","v":"750.3"},{"$f":"IFERROR(VLOOKUP(H1647,Translation!$A:$C,3,FALSE),H1647)","v":"Manitoba"}]
[13,"Q3 2016","PROPRIÉTAIRES-OCCUPANTS, À L’UNITÉ","Saskatchewan",749.50704604148098,"Prêts hypothécaires assurés au cours de la période selon le pointage de crédit à l’initiation (%)","749.5","Saskatchewan",{"$f":"IFERROR(VLOOKUP(A1648,Translation!$A:$C,3,FALSE),A1648)","v":13},{"$f":"IFERROR(VLOOKUP(B1648,Translation!$A:$C,3,FALSE),B1648)","v":"Q3 2016"},{"$f":"IFERROR(VLOOKUP(C1648,Translation!$A:$C,3,FALSE),C1648)","v":"PROPRIÉTAIRES-OCCUPANTS, À L’UNITÉ"},{"$f":"IFERROR(VLOOKUP(D1648,Translation!$A:$C,3,FALSE),D1648)","v":"Saskatchewan"},{"$f":"IFERROR(VLOOKUP(E1648,Translation!$A:$C,3,FALSE),E1648)","v":749.50704604148098},{"$f":"IFERROR(VLOOKUP(F1648,Translation!$A:$C,3,FALSE),F1648)","v":"Prêts hypothécaires assurés au cours de la période selon le pointage de crédit à l’initiation (%)"},{"$f":"IFERROR(VLOOKUP(G1648,Translation!$A:$C,3,FALSE),G1648)","v":"749.5"},{"$f":"IFERROR(VLOOKUP(H1648,Translation!$A:$C,3,FALSE),H1648)","v":"Saskatchewan"}]
[13,"Q3 2016","PROPRIÉTAIRES-OCCUPANTS, À L’UNITÉ","Alberta",746.3662607007974,"Prêts hypothécaires assurés au cours de la période selon le pointage de crédit à l’initiation (%)","746.4","Alberta",{"$f":"IFERROR(VLOOKUP(A1649,Translation!$A:$C,3,FALSE),A1649)","v":13},{"$f":"IFERROR(VLOOKUP(B1649,Translation!$A:$C,3,FALSE),B1649)","v":"Q3 2016"},{"$f":"IFERROR(VLOOKUP(C1649,Translation!$A:$C,3,FALSE),C1649)","v":"PROPRIÉTAIRES-OCCUPANTS, À L’UNITÉ"},{"$f":"IFERROR(VLOOKUP(D1649,Translation!$A:$C,3,FALSE),D1649)","v":"Alberta"},{"$f":"IFERROR(VLOOKUP(E1649,Translation!$A:$C,3,FALSE),E1649)","v":746.3662607007974},{"$f":"IFERROR(VLOOKUP(F1649,Translation!$A:$C,3,FALSE),F1649)","v":"Prêts hypothécaires assurés au cours de la période selon le pointage de crédit à l’initiation (%)"},{"$f":"IFERROR(VLOOKUP(G1649,Translation!$A:$C,3,FALSE),G1649)","v":"746.4"},{"$f":"IFERROR(VLOOKUP(H1649,Translation!$A:$C,3,FALSE),H1649)","v":"Alberta"}]
[13,"Q3 2016","PROPRIÉTAIRES-OCCUPANTS, À L’UNITÉ","Colombie-Britannique",750.24776905986255,"Prêts hypothécaires assurés au cours de la période selon le pointage de crédit à l’initiation (%)","750.2","Colombie-Britannique",{"$f":"IFERROR(VLOOKUP(A1650,Translation!$A:$C,3,FALSE),A1650)","v":13},{"$f":"IFERROR(VLOOKUP(B1650,Translation!$A:$C,3,FALSE),B1650)","v":"Q3 2016"},{"$f":"IFERROR(VLOOKUP(C1650,Translation!$A:$C,3,FALSE),C1650)","v":"PROPRIÉTAIRES-OCCUPANTS, À L’UNITÉ"},{"$f":"IFERROR(VLOOKUP(D1650,Translation!$A:$C,3,FALSE),D1650)","v":"Colombie-Britannique"},{"$f":"IFERROR(VLOOKUP(E1650,Translation!$A:$C,3,FALSE),E1650)","v":750.24776905986255},{"$f":"IFERROR(VLOOKUP(F1650,Translation!$A:$C,3,FALSE),F1650)","v":"Prêts hypothécaires assurés au cours de la période selon le pointage de crédit à l’initiation (%)"},{"$f":"IFERROR(VLOOKUP(G1650,Translation!$A:$C,3,FALSE),G1650)","v":"750.2"},{"$f":"IFERROR(VLOOKUP(H1650,Translation!$A:$C,3,FALSE),H1650)","v":"Colombie-Britannique"}]
[13,"Q3 2016","PROPRIÉTAIRES-OCCUPANTS, À L’UNITÉ","Territoires",749.60024547510943,"Prêts hypothécaires assurés au cours de la période selon le pointage de crédit à l’initiation (%)","749.6","Territoires",{"$f":"IFERROR(VLOOKUP(A1651,Translation!$A:$C,3,FALSE),A1651)","v":13},{"$f":"IFERROR(VLOOKUP(B1651,Translation!$A:$C,3,FALSE),B1651)","v":"Q3 2016"},{"$f":"IFERROR(VLOOKUP(C1651,Translation!$A:$C,3,FALSE),C1651)","v":"PROPRIÉTAIRES-OCCUPANTS, À L’UNITÉ"},{"$f":"IFERROR(VLOOKUP(D1651,Translation!$A:$C,3,FALSE),D1651)","v":"Territoires"},{"$f":"IFERROR(VLOOKUP(E1651,Translation!$A:$C,3,FALSE),E1651)","v":749.60024547510943},{"$f":"IFERROR(VLOOKUP(F1651,Translation!$A:$C,3,FALSE),F1651)","v":"Prêts hypothécaires assurés au cours de la période selon le pointage de crédit à l’initiation (%)"},{"$f":"IFERROR(VLOOKUP(G1651,Translation!$A:$C,3,FALSE),G1651)","v":"749.6"},{"$f":"IFERROR(VLOOKUP(H1651,Translation!$A:$C,3,FALSE),H1651)","v":"Territoires"}]
[13,"T3 2017","PROPRIÉTAIRES-OCCUPANTS, À L’UNITÉ","Terre-Neuve-et-Labrador",749.81453413008603,"Prêts hypothécaires assurés au cours de la période selon le pointage de crédit à l’initiation (%)","749.8","Terre-Neuve-et-Labrador",{"$f":"IFERROR(VLOOKUP(A1652,Translation!$A:$C,3,FALSE),A1652)","v":13},{"$f":"IFERROR(VLOOKUP(B1652,Translation!$A:$C,3,FALSE),B1652)","v":"T3 2017"},{"$f":"IFERROR(VLOOKUP(C1652,Translation!$A:$C,3,FALSE),C1652)","v":"PROPRIÉTAIRES-OCCUPANTS, À L’UNITÉ"},{"$f":"IFERROR(VLOOKUP(D1652,Translation!$A:$C,3,FALSE),D1652)","v":"Terre-Neuve-et-Labrador"},{"$f":"IFERROR(VLOOKUP(E1652,Translation!$A:$C,3,FALSE),E1652)","v":749.81453413008603},{"$f":"IFERROR(VLOOKUP(F1652,Translation!$A:$C,3,FALSE),F1652)","v":"Prêts hypothécaires assurés au cours de la période selon le pointage de crédit à l’initiation (%)"},{"$f":"IFERROR(VLOOKUP(G1652,Translation!$A:$C,3,FALSE),G1652)","v":"749.8"},{"$f":"IFERROR(VLOOKUP(H1652,Translation!$A:$C,3,FALSE),H1652)","v":"Terre-Neuve-et-Labrador"}]
[13,"T3 2017","PROPRIÉTAIRES-OCCUPANTS, À L’UNITÉ","Île-du-Prince-Édouard",736.12050068307997,"Prêts hypothécaires assurés au cours de la période selon le pointage de crédit à l’initiation (%)","736.1","Île-du-Prince-Édouard",{"$f":"IFERROR(VLOOKUP(A1653,Translation!$A:$C,3,FALSE),A1653)","v":13},{"$f":"IFERROR(VLOOKUP(B1653,Translation!$A:$C,3,FALSE),B1653)","v":"T3 2017"},{"$f":"IFERROR(VLOOKUP(C1653,Translation!$A:$C,3,FALSE),C1653)","v":"PROPRIÉTAIRES-OCCUPANTS, À L’UNITÉ"},{"$f":"IFERROR(VLOOKUP(D1653,Translation!$A:$C,3,FALSE),D1653)","v":"Île-du-Prince-Édouard"},{"$f":"IFERROR(VLOOKUP(E1653,Translation!$A:$C,3,FALSE),E1653)","v":736.12050068307997},{"$f":"IFERROR(VLOOKUP(F1653,Translation!$A:$C,3,FALSE),F1653)","v":"Prêts hypothécaires assurés au cours de la période selon le pointage de crédit à l’initiation (%)"},{"$f":"IFERROR(VLOOKUP(G1653,Translation!$A:$C,3,FALSE),G1653)","v":"736.1"},{"$f":"IFERROR(VLOOKUP(H1653,Translation!$A:$C,3,FALSE),H1653)","v":"Île-du-Prince-Édouard"}]
[13,"T3 2017","PROPRIÉTAIRES-OCCUPANTS, À L’UNITÉ","Nouvelle-Écosse",742.44247964193596,"Prêts hypothécaires assurés au cours de la période selon le pointage de crédit à l’initiation (%)","742.4","Nouvelle-Écosse",{"$f":"IFERROR(VLOOKUP(A1654,Translation!$A:$C,3,FALSE),A1654)","v":13},{"$f":"IFERROR(VLOOKUP(B1654,Translation!$A:$C,3,FALSE),B1654)","v":"T3 2017"},{"$f":"IFERROR(VLOOKUP(C1654,Translation!$A:$C,3,FALSE),C1654)","v":"PROPRIÉTAIRES-OCCUPANTS, À L’UNITÉ"},{"$f":"IFERROR(VLOOKUP(D1654,Translation!$A:$C,3,FALSE),D1654)","v":"Nouvelle-Écosse"},{"$f":"IFERROR(VLOOKUP(E1654,Translation!$A:$C,3,FALSE),E1654)","v":742.44247964193596},{"$f":"IFERROR(VLOOKUP(F1654,Translation!$A:$C,3,FALSE),F1654)","v":"Prêts hypothécaires assurés au cours de la période selon le pointage de crédit à l’initiation (%)"},{"$f":"IFERROR(VLOOKUP(G1654,Translation!$A:$C,3,FALSE),G1654)","v":"742.4"},{"$f":"IFERROR(VLOOKUP(H1654,Translation!$A:$C,3,FALSE),H1654)","v":"Nouvelle-Écosse"}]
[13,"T3 2017","PROPRIÉTAIRES-OCCUPANTS, À L’UNITÉ","Nouveau-Brunswick",747.2950581746851,"Prêts hypothécaires assurés au cours de la période selon le pointage de crédit à l’initiation (%)","747.3","Nouveau-Brunswick",{"$f":"IFERROR(VLOOKUP(A1655,Translation!$A:$C,3,FALSE),A1655)","v":13},{"$f":"IFERROR(VLOOKUP(B1655,Translation!$A:$C,3,FALSE),B1655)","v":"T3 2017"},{"$f":"IFERROR(VLOOKUP(C1655,Translation!$A:$C,3,FALSE),C1655)","v":"PROPRIÉTAIRES-OCCUPANTS, À L’UNITÉ"},{"$f":"IFERROR(VLOOKUP(D1655,Translation!$A:$C,3,FALSE),D1655)","v":"Nouveau-Brunswick"},{"$f":"IFERROR(VLOOKUP(E1655,Translation!$A:$C,3,FALSE),E1655)","v":747.2950581746851},{"$f":"IFERROR(VLOOKUP(F1655,Translation!$A:$C,3,FALSE),F1655)","v":"Prêts hypothécaires assurés au cours de la période selon le pointage de crédit à l’initiation (%)"},{"$f":"IFERROR(VLOOKUP(G1655,Translation!$A:$C,3,FALSE),G1655)","v":"747.3"},{"$f":"IFERROR(VLOOKUP(H1655,Translation!$A:$C,3,FALSE),H1655)","v":"Nouveau-Brunswick"}]
[13,"T3 2017","PROPRIÉTAIRES-OCCUPANTS, À L’UNITÉ","Québec",754.5238546678155,"Prêts hypothécaires assurés au cours de la période selon le pointage de crédit à l’initiation (%)","754.5","Québec",{"$f":"IFERROR(VLOOKUP(A1656,Translation!$A:$C,3,FALSE),A1656)","v":13},{"$f":"IFERROR(VLOOKUP(B1656,Translation!$A:$C,3,FALSE),B1656)","v":"T3 2017"},{"$f":"IFERROR(VLOOKUP(C1656,Translation!$A:$C,3,FALSE),C1656)","v":"PROPRIÉTAIRES-OCCUPANTS, À L’UNITÉ"},{"$f":"IFERROR(VLOOKUP(D1656,Translation!$A:$C,3,FALSE),D1656)","v":"Québec"},{"$f":"IFERROR(VLOOKUP(E1656,Translation!$A:$C,3,FALSE),E1656)","v":754.5238546678155},{"$f":"IFERROR(VLOOKUP(F1656,Translation!$A:$C,3,FALSE),F1656)","v":"Prêts hypothécaires assurés au cours de la période selon le pointage de crédit à l’initiation (%)"},{"$f":"IFERROR(VLOOKUP(G1656,Translation!$A:$C,3,FALSE),G1656)","v":"754.5"},{"$f":"IFERROR(VLOOKUP(H1656,Translation!$A:$C,3,FALSE),H1656)","v":"Québec"}]
[13,"T3 2017","PROPRIÉTAIRES-OCCUPANTS, À L’UNITÉ","Ontario",755.42919858098139,"Prêts hypothécaires assurés au cours de la période selon le pointage de crédit à l’initiation (%)","755.4","Ontario",{"$f":"IFERROR(VLOOKUP(A1657,Translation!$A:$C,3,FALSE),A1657)","v":13},{"$f":"IFERROR(VLOOKUP(B1657,Translation!$A:$C,3,FALSE),B1657)","v":"T3 2017"},{"$f":"IFERROR(VLOOKUP(C1657,Translation!$A:$C,3,FALSE),C1657)","v":"PROPRIÉTAIRES-OCCUPANTS, À L’UNITÉ"},{"$f":"IFERROR(VLOOKUP(D1657,Translation!$A:$C,3,FALSE),D1657)","v":"Ontario"},{"$f":"IFERROR(VLOOKUP(E1657,Translation!$A:$C,3,FALSE),E1657)","v":755.42919858098139},{"$f":"IFERROR(VLOOKUP(F1657,Translation!$A:$C,3,FALSE),F1657)","v":"Prêts hypothécaires assurés au cours de la période selon le pointage de crédit à l’initiation (%)"},{"$f":"IFERROR(VLOOKUP(G1657,Translation!$A:$C,3,FALSE),G1657)","v":"755.4"},{"$f":"IFERROR(VLOOKUP(H1657,Translation!$A:$C,3,FALSE),H1657)","v":"Ontario"}]
[13,"T3 2017","PROPRIÉTAIRES-OCCUPANTS, À L’UNITÉ","Manitoba",752.41203725927051,"Prêts hypothécaires assurés au cours de la période selon le pointage de crédit à l’initiation (%)","752.4","Manitoba",{"$f":"IFERROR(VLOOKUP(A1658,Translation!$A:$C,3,FALSE),A1658)","v":13},{"$f":"IFERROR(VLOOKUP(B1658,Translation!$A:$C,3,FALSE),B1658)","v":"T3 2017"},{"$f":"IFERROR(VLOOKUP(C1658,Translation!$A:$C,3,FALSE),C1658)","v":"PROPRIÉTAIRES-OCCUPANTS, À L’UNITÉ"},{"$f":"IFERROR(VLOOKUP(D1658,Translation!$A:$C,3,FALSE),D1658)","v":"Manitoba"},{"$f":"IFERROR(VLOOKUP(E1658,Translation!$A:$C,3,FALSE),E1658)","v":752.41203725927051},{"$f":"IFERROR(VLOOKUP(F1658,Translation!$A:$C,3,FALSE),F1658)","v":"Prêts hypothécaires assurés au cours de la période selon le pointage de crédit à l’initiation (%)"},{"$f":"IFERROR(VLOOKUP(G1658,Translation!$A:$C,3,FALSE),G1658)","v":"752.4"},{"$f":"IFERROR(VLOOKUP(H1658,Translation!$A:$C,3,FALSE),H1658)","v":"Manitoba"}]
[13,"T3 2017","PROPRIÉTAIRES-OCCUPANTS, À L’UNITÉ","Saskatchewan",748.21085219070096,"Prêts hypothécaires assurés au cours de la période selon le pointage de crédit à l’initiation (%)","748.2","Saskatchewan",{"$f":"IFERROR(VLOOKUP(A1659,Translation!$A:$C,3,FALSE),A1659)","v":13},{"$f":"IFERROR(VLOOKUP(B1659,Translation!$A:$C,3,FALSE),B1659)","v":"T3 2017"},{"$f":"IFERROR(VLOOKUP(C1659,Translation!$A:$C,3,FALSE),C1659)","v":"PROPRIÉTAIRES-OCCUPANTS, À L’UNITÉ"},{"$f":"IFERROR(VLOOKUP(D1659,Translation!$A:$C,3,FALSE),D1659)","v":"Saskatchewan"},{"$f":"IFERROR(VLOOKUP(E1659,Translation!$A:$C,3,FALSE),E1659)","v":748.21085219070096},{"$f":"IFERROR(VLOOKUP(F1659,Translation!$A:$C,3,FALSE),F1659)","v":"Prêts hypothécaires assurés au cours de la période selon le pointage de crédit à l’initiation (%)"},{"$f":"IFERROR(VLOOKUP(G1659,Translation!$A:$C,3,FALSE),G1659)","v":"748.2"},{"$f":"IFERROR(VLOOKUP(H1659,Translation!$A:$C,3,FALSE),H1659)","v":"Saskatchewan"}]
[13,"T3 2017","PROPRIÉTAIRES-OCCUPANTS, À L’UNITÉ","Alberta",749.37846936281119,"Prêts hypothécaires assurés au cours de la période selon le pointage de crédit à l’initiation (%)","749.4","Alberta",{"$f":"IFERROR(VLOOKUP(A1660,Translation!$A:$C,3,FALSE),A1660)","v":13},{"$f":"IFERROR(VLOOKUP(B1660,Translation!$A:$C,3,FALSE),B1660)","v":"T3 2017"},{"$f":"IFERROR(VLOOKUP(C1660,Translation!$A:$C,3,FALSE),C1660)","v":"PROPRIÉTAIRES-OCCUPANTS, À L’UNITÉ"},{"$f":"IFERROR(VLOOKUP(D1660,Translation!$A:$C,3,FALSE),D1660)","v":"Alberta"},{"$f":"IFERROR(VLOOKUP(E1660,Translation!$A:$C,3,FALSE),E1660)","v":749.37846936281119},{"$f":"IFERROR(VLOOKUP(F1660,Translation!$A:$C,3,FALSE),F1660)","v":"Prêts hypothécaires assurés au cours de la période selon le pointage de crédit à l’initiation (%)"},{"$f":"IFERROR(VLOOKUP(G1660,Translation!$A:$C,3,FALSE),G1660)","v":"749.4"},{"$f":"IFERROR(VLOOKUP(H1660,Translation!$A:$C,3,FALSE),H1660)","v":"Alberta"}]
[13,"T3 2017","PROPRIÉTAIRES-OCCUPANTS, À L’UNITÉ","Colombie-Britannique",753.92672690012716,"Prêts hypothécaires assurés au cours de la période selon le pointage de crédit à l’initiation (%)","753.9","Colombie-Britannique",{"$f":"IFERROR(VLOOKUP(A1661,Translation!$A:$C,3,FALSE),A1661)","v":13},{"$f":"IFERROR(VLOOKUP(B1661,Translation!$A:$C,3,FALSE),B1661)","v":"T3 2017"},{"$f":"IFERROR(VLOOKUP(C1661,Translation!$A:$C,3,FALSE),C1661)","v":"PROPRIÉTAIRES-OCCUPANTS, À L’UNITÉ"},{"$f":"IFERROR(VLOOKUP(D1661,Translation!$A:$C,3,FALSE),D1661)","v":"Colombie-Britannique"},{"$f":"IFERROR(VLOOKUP(E1661,Translation!$A:$C,3,FALSE),E1661)","v":753.92672690012716},{"$f":"IFERROR(VLOOKUP(F1661,Translation!$A:$C,3,FALSE),F1661)","v":"Prêts hypothécaires assurés au cours de la période selon le pointage de crédit à l’initiation (%)"},{"$f":"IFERROR(VLOOKUP(G1661,Translation!$A:$C,3,FALSE),G1661)","v":"753.9"},{"$f":"IFERROR(VLOOKUP(H1661,Translation!$A:$C,3,FALSE),H1661)","v":"Colombie-Britannique"}]
[13,"T3 2017","PROPRIÉTAIRES-OCCUPANTS, À L’UNITÉ","Territoires",739.86055345326656,"Prêts hypothécaires assurés au cours de la période selon le pointage de crédit à l’initiation (%)","739.9","Territoires",{"$f":"IFERROR(VLOOKUP(A1662,Translation!$A:$C,3,FALSE),A1662)","v":13},{"$f":"IFERROR(VLOOKUP(B1662,Translation!$A:$C,3,FALSE),B1662)","v":"T3 2017"},{"$f":"IFERROR(VLOOKUP(C1662,Translation!$A:$C,3,FALSE),C1662)","v":"PROPRIÉTAIRES-OCCUPANTS, À L’UNITÉ"},{"$f":"IFERROR(VLOOKUP(D1662,Translation!$A:$C,3,FALSE),D1662)","v":"Territoires"},{"$f":"IFERROR(VLOOKUP(E1662,Translation!$A:$C,3,FALSE),E1662)","v":739.86055345326656},{"$f":"IFERROR(VLOOKUP(F1662,Translation!$A:$C,3,FALSE),F1662)","v":"Prêts hypothécaires assurés au cours de la période selon le pointage de crédit à l’initiation (%)"},{"$f":"IFERROR(VLOOKUP(G1662,Translation!$A:$C,3,FALSE),G1662)","v":"739.9"},{"$f":"IFERROR(VLOOKUP(H1662,Translation!$A:$C,3,FALSE),H1662)","v":"Territoires"}]
[13,"Q4 2016","PROPRIÉTAIRES-OCCUPANTS, À L’UNITÉ","Terre-Neuve-et-Labrador",738.06934579695621,"Prêts hypothécaires assurés au cours de la période selon le pointage de crédit à l’initiation (%)","738.1","Terre-Neuve-et-Labrador",{"$f":"IFERROR(VLOOKUP(A1663,Translation!$A:$C,3,FALSE),A1663)","v":13},{"$f":"IFERROR(VLOOKUP(B1663,Translation!$A:$C,3,FALSE),B1663)","v":"Q4 2016"},{"$f":"IFERROR(VLOOKUP(C1663,Translation!$A:$C,3,FALSE),C1663)","v":"PROPRIÉTAIRES-OCCUPANTS, À L’UNITÉ"},{"$f":"IFERROR(VLOOKUP(D1663,Translation!$A:$C,3,FALSE),D1663)","v":"Terre-Neuve-et-Labrador"},{"$f":"IFERROR(VLOOKUP(E1663,Translation!$A:$C,3,FALSE),E1663)","v":738.06934579695621},{"$f":"IFERROR(VLOOKUP(F1663,Translation!$A:$C,3,FALSE),F1663)","v":"Prêts hypothécaires assurés au cours de la période selon le pointage de crédit à l’initiation (%)"},{"$f":"IFERROR(VLOOKUP(G1663,Translation!$A:$C,3,FALSE),G1663)","v":"738.1"},{"$f":"IFERROR(VLOOKUP(H1663,Translation!$A:$C,3,FALSE),H1663)","v":"Terre-Neuve-et-Labrador"}]
[13,"Q4 2016","PROPRIÉTAIRES-OCCUPANTS, À L’UNITÉ","Île-du-Prince-Édouard",746.90776731897051,"Prêts hypothécaires assurés au cours de la période selon le pointage de crédit à l’initiation (%)","746.9","Île-du-Prince-Édouard",{"$f":"IFERROR(VLOOKUP(A1664,Translation!$A:$C,3,FALSE),A1664)","v":13},{"$f":"IFERROR(VLOOKUP(B1664,Translation!$A:$C,3,FALSE),B1664)","v":"Q4 2016"},{"$f":"IFERROR(VLOOKUP(C1664,Translation!$A:$C,3,FALSE),C1664)","v":"PROPRIÉTAIRES-OCCUPANTS, À L’UNITÉ"},{"$f":"IFERROR(VLOOKUP(D1664,Translation!$A:$C,3,FALSE),D1664)","v":"Île-du-Prince-Édouard"},{"$f":"IFERROR(VLOOKUP(E1664,Translation!$A:$C,3,FALSE),E1664)","v":746.90776731897051},{"$f":"IFERROR(VLOOKUP(F1664,Translation!$A:$C,3,FALSE),F1664)","v":"Prêts hypothécaires assurés au cours de la période selon le pointage de crédit à l’initiation (%)"},{"$f":"IFERROR(VLOOKUP(G1664,Translation!$A:$C,3,FALSE),G1664)","v":"746.9"},{"$f":"IFERROR(VLOOKUP(H1664,Translation!$A:$C,3,FALSE),H1664)","v":"Île-du-Prince-Édouard"}]
[13,"Q4 2016","PROPRIÉTAIRES-OCCUPANTS, À L’UNITÉ","Nouvelle-Écosse",741.90784287394513,"Prêts hypothécaires assurés au cours de la période selon le pointage de crédit à l’initiation (%)","741.9","Nouvelle-Écosse",{"$f":"IFERROR(VLOOKUP(A1665,Translation!$A:$C,3,FALSE),A1665)","v":13},{"$f":"IFERROR(VLOOKUP(B1665,Translation!$A:$C,3,FALSE),B1665)","v":"Q4 2016"},{"$f":"IFERROR(VLOOKUP(C1665,Translation!$A:$C,3,FALSE),C1665)","v":"PROPRIÉTAIRES-OCCUPANTS, À L’UNITÉ"},{"$f":"IFERROR(VLOOKUP(D1665,Translation!$A:$C,3,FALSE),D1665)","v":"Nouvelle-Écosse"},{"$f":"IFERROR(VLOOKUP(E1665,Translation!$A:$C,3,FALSE),E1665)","v":741.90784287394513},{"$f":"IFERROR(VLOOKUP(F1665,Translation!$A:$C,3,FALSE),F1665)","v":"Prêts hypothécaires assurés au cours de la période selon le pointage de crédit à l’initiation (%)"},{"$f":"IFERROR(VLOOKUP(G1665,Translation!$A:$C,3,FALSE),G1665)","v":"741.9"},{"$f":"IFERROR(VLOOKUP(H1665,Translation!$A:$C,3,FALSE),H1665)","v":"Nouvelle-Écosse"}]
[13,"Q4 2016","PROPRIÉTAIRES-OCCUPANTS, À L’UNITÉ","Nouveau-Brunswick",741.60744733377521,"Prêts hypothécaires assurés au cours de la période selon le pointage de crédit à l’initiation (%)","741.6","Nouveau-Brunswick",{"$f":"IFERROR(VLOOKUP(A1666,Translation!$A:$C,3,FALSE),A1666)","v":13},{"$f":"IFERROR(VLOOKUP(B1666,Translation!$A:$C,3,FALSE),B1666)","v":"Q4 2016"},{"$f":"IFERROR(VLOOKUP(C1666,Translation!$A:$C,3,FALSE),C1666)","v":"PROPRIÉTAIRES-OCCUPANTS, À L’UNITÉ"},{"$f":"IFERROR(VLOOKUP(D1666,Translation!$A:$C,3,FALSE),D1666)","v":"Nouveau-Brunswick"},{"$f":"IFERROR(VLOOKUP(E1666,Translation!$A:$C,3,FALSE),E1666)","v":741.60744733377521},{"$f":"IFERROR(VLOOKUP(F1666,Translation!$A:$C,3,FALSE),F1666)","v":"Prêts hypothécaires assurés au cours de la période selon le pointage de crédit à l’initiation (%)"},{"$f":"IFERROR(VLOOKUP(G1666,Translation!$A:$C,3,FALSE),G1666)","v":"741.6"},{"$f":"IFERROR(VLOOKUP(H1666,Translation!$A:$C,3,FALSE),H1666)","v":"Nouveau-Brunswick"}]
[13,"Q4 2016","PROPRIÉTAIRES-OCCUPANTS, À L’UNITÉ","Québec",752.3568751225381,"Prêts hypothécaires assurés au cours de la période selon le pointage de crédit à l’initiation (%)","752.4","Québec",{"$f":"IFERROR(VLOOKUP(A1667,Translation!$A:$C,3,FALSE),A1667)","v":13},{"$f":"IFERROR(VLOOKUP(B1667,Translation!$A:$C,3,FALSE),B1667)","v":"Q4 2016"},{"$f":"IFERROR(VLOOKUP(C1667,Translation!$A:$C,3,FALSE),C1667)","v":"PROPRIÉTAIRES-OCCUPANTS, À L’UNITÉ"},{"$f":"IFERROR(VLOOKUP(D1667,Translation!$A:$C,3,FALSE),D1667)","v":"Québec"},{"$f":"IFERROR(VLOOKUP(E1667,Translation!$A:$C,3,FALSE),E1667)","v":752.3568751225381},{"$f":"IFERROR(VLOOKUP(F1667,Translation!$A:$C,3,FALSE),F1667)","v":"Prêts hypothécaires assurés au cours de la période selon le pointage de crédit à l’initiation (%)"},{"$f":"IFERROR(VLOOKUP(G1667,Translation!$A:$C,3,FALSE),G1667)","v":"752.4"},{"$f":"IFERROR(VLOOKUP(H1667,Translation!$A:$C,3,FALSE),H1667)","v":"Québec"}]
[13,"Q4 2016","PROPRIÉTAIRES-OCCUPANTS, À L’UNITÉ","Ontario",753.62073276209821,"Prêts hypothécaires assurés au cours de la période selon le pointage de crédit à l’initiation (%)","753.6","Ontario",{"$f":"IFERROR(VLOOKUP(A1668,Translation!$A:$C,3,FALSE),A1668)","v":13},{"$f":"IFERROR(VLOOKUP(B1668,Translation!$A:$C,3,FALSE),B1668)","v":"Q4 2016"},{"$f":"IFERROR(VLOOKUP(C1668,Translation!$A:$C,3,FALSE),C1668)","v":"PROPRIÉTAIRES-OCCUPANTS, À L’UNITÉ"},{"$f":"IFERROR(VLOOKUP(D1668,Translation!$A:$C,3,FALSE),D1668)","v":"Ontario"},{"$f":"IFERROR(VLOOKUP(E1668,Translation!$A:$C,3,FALSE),E1668)","v":753.62073276209821},{"$f":"IFERROR(VLOOKUP(F1668,Translation!$A:$C,3,FALSE),F1668)","v":"Prêts hypothécaires assurés au cours de la période selon le pointage de crédit à l’initiation (%)"},{"$f":"IFERROR(VLOOKUP(G1668,Translation!$A:$C,3,FALSE),G1668)","v":"753.6"},{"$f":"IFERROR(VLOOKUP(H1668,Translation!$A:$C,3,FALSE),H1668)","v":"Ontario"}]
[13,"Q4 2016","PROPRIÉTAIRES-OCCUPANTS, À L’UNITÉ","Manitoba",748.47220547332017,"Prêts hypothécaires assurés au cours de la période selon le pointage de crédit à l’initiation (%)","748.5","Manitoba",{"$f":"IFERROR(VLOOKUP(A1669,Translation!$A:$C,3,FALSE),A1669)","v":13},{"$f":"IFERROR(VLOOKUP(B1669,Translation!$A:$C,3,FALSE),B1669)","v":"Q4 2016"},{"$f":"IFERROR(VLOOKUP(C1669,Translation!$A:$C,3,FALSE),C1669)","v":"PROPRIÉTAIRES-OCCUPANTS, À L’UNITÉ"},{"$f":"IFERROR(VLOOKUP(D1669,Translation!$A:$C,3,FALSE),D1669)","v":"Manitoba"},{"$f":"IFERROR(VLOOKUP(E1669,Translation!$A:$C,3,FALSE),E1669)","v":748.47220547332017},{"$f":"IFERROR(VLOOKUP(F1669,Translation!$A:$C,3,FALSE),F1669)","v":"Prêts hypothécaires assurés au cours de la période selon le pointage de crédit à l’initiation (%)"},{"$f":"IFERROR(VLOOKUP(G1669,Translation!$A:$C,3,FALSE),G1669)","v":"748.5"},{"$f":"IFERROR(VLOOKUP(H1669,Translation!$A:$C,3,FALSE),H1669)","v":"Manitoba"}]
[13,"Q4 2016","PROPRIÉTAIRES-OCCUPANTS, À L’UNITÉ","Saskatchewan",744.81433755296894,"Prêts hypothécaires assurés au cours de la période selon le pointage de crédit à l’initiation (%)","744.8","Saskatchewan",{"$f":"IFERROR(VLOOKUP(A1670,Translation!$A:$C,3,FALSE),A1670)","v":13},{"$f":"IFERROR(VLOOKUP(B1670,Translation!$A:$C,3,FALSE),B1670)","v":"Q4 2016"},{"$f":"IFERROR(VLOOKUP(C1670,Translation!$A:$C,3,FALSE),C1670)","v":"PROPRIÉTAIRES-OCCUPANTS, À L’UNITÉ"},{"$f":"IFERROR(VLOOKUP(D1670,Translation!$A:$C,3,FALSE),D1670)","v":"Saskatchewan"},{"$f":"IFERROR(VLOOKUP(E1670,Translation!$A:$C,3,FALSE),E1670)","v":744.81433755296894},{"$f":"IFERROR(VLOOKUP(F1670,Translation!$A:$C,3,FALSE),F1670)","v":"Prêts hypothécaires assurés au cours de la période selon le pointage de crédit à l’initiation (%)"},{"$f":"IFERROR(VLOOKUP(G1670,Translation!$A:$C,3,FALSE),G1670)","v":"744.8"},{"$f":"IFERROR(VLOOKUP(H1670,Translation!$A:$C,3,FALSE),H1670)","v":"Saskatchewan"}]
[13,"Q4 2016","PROPRIÉTAIRES-OCCUPANTS, À L’UNITÉ","Alberta",746.95988779646541,"Prêts hypothécaires assurés au cours de la période selon le pointage de crédit à l’initiation (%)","747.0","Alberta",{"$f":"IFERROR(VLOOKUP(A1671,Translation!$A:$C,3,FALSE),A1671)","v":13},{"$f":"IFERROR(VLOOKUP(B1671,Translation!$A:$C,3,FALSE),B1671)","v":"Q4 2016"},{"$f":"IFERROR(VLOOKUP(C1671,Translation!$A:$C,3,FALSE),C1671)","v":"PROPRIÉTAIRES-OCCUPANTS, À L’UNITÉ"},{"$f":"IFERROR(VLOOKUP(D1671,Translation!$A:$C,3,FALSE),D1671)","v":"Alberta"},{"$f":"IFERROR(VLOOKUP(E1671,Translation!$A:$C,3,FALSE),E1671)","v":746.95988779646541},{"$f":"IFERROR(VLOOKUP(F1671,Translation!$A:$C,3,FALSE),F1671)","v":"Prêts hypothécaires assurés au cours de la période selon le pointage de crédit à l’initiation (%)"},{"$f":"IFERROR(VLOOKUP(G1671,Translation!$A:$C,3,FALSE),G1671)","v":"747.0"},{"$f":"IFERROR(VLOOKUP(H1671,Translation!$A:$C,3,FALSE),H1671)","v":"Alberta"}]
[13,"Q4 2016","PROPRIÉTAIRES-OCCUPANTS, À L’UNITÉ","Colombie-Britannique",751.04650270417903,"Prêts hypothécaires assurés au cours de la période selon le pointage de crédit à l’initiation (%)","751.0","Colombie-Britannique",{"$f":"IFERROR(VLOOKUP(A1672,Translation!$A:$C,3,FALSE),A1672)","v":13},{"$f":"IFERROR(VLOOKUP(B1672,Translation!$A:$C,3,FALSE),B1672)","v":"Q4 2016"},{"$f":"IFERROR(VLOOKUP(C1672,Translation!$A:$C,3,FALSE),C1672)","v":"PROPRIÉTAIRES-OCCUPANTS, À L’UNITÉ"},{"$f":"IFERROR(VLOOKUP(D1672,Translation!$A:$C,3,FALSE),D1672)","v":"Colombie-Britannique"},{"$f":"IFERROR(VLOOKUP(E1672,Translation!$A:$C,3,FALSE),E1672)","v":751.04650270417903},{"$f":"IFERROR(VLOOKUP(F1672,Translation!$A:$C,3,FALSE),F1672)","v":"Prêts hypothécaires assurés au cours de la période selon le pointage de crédit à l’initiation (%)"},{"$f":"IFERROR(VLOOKUP(G1672,Translation!$A:$C,3,FALSE),G1672)","v":"751.0"},{"$f":"IFERROR(VLOOKUP(H1672,Translation!$A:$C,3,FALSE),H1672)","v":"Colombie-Britannique"}]
[13,"Q4 2016","PROPRIÉTAIRES-OCCUPANTS, À L’UNITÉ","Territoires",745.94660041134819,"Prêts hypothécaires assurés au cours de la période selon le pointage de crédit à l’initiation (%)","745.9","Territoires",{"$f":"IFERROR(VLOOKUP(A1673,Translation!$A:$C,3,FALSE),A1673)","v":13},{"$f":"IFERROR(VLOOKUP(B1673,Translation!$A:$C,3,FALSE),B1673)","v":"Q4 2016"},{"$f":"IFERROR(VLOOKUP(C1673,Translation!$A:$C,3,FALSE),C1673)","v":"PROPRIÉTAIRES-OCCUPANTS, À L’UNITÉ"},{"$f":"IFERROR(VLOOKUP(D1673,Translation!$A:$C,3,FALSE),D1673)","v":"Territoires"},{"$f":"IFERROR(VLOOKUP(E1673,Translation!$A:$C,3,FALSE),E1673)","v":745.94660041134819},{"$f":"IFERROR(VLOOKUP(F1673,Translation!$A:$C,3,FALSE),F1673)","v":"Prêts hypothécaires assurés au cours de la période selon le pointage de crédit à l’initiation (%)"},{"$f":"IFERROR(VLOOKUP(G1673,Translation!$A:$C,3,FALSE),G1673)","v":"745.9"},{"$f":"IFERROR(VLOOKUP(H1673,Translation!$A:$C,3,FALSE),H1673)","v":"Territoires"}]
[13,"T4 2017","PROPRIÉTAIRES-OCCUPANTS, À L’UNITÉ","Terre-Neuve-et-Labrador",737.41692326385453,"Prêts hypothécaires assurés au cours de la période selon le pointage de crédit à l’initiation (%)","737.4","Terre-Neuve-et-Labrador",{"$f":"IFERROR(VLOOKUP(A1674,Translation!$A:$C,3,FALSE),A1674)","v":13},{"$f":"IFERROR(VLOOKUP(B1674,Translation!$A:$C,3,FALSE),B1674)","v":"T4 2017"},{"$f":"IFERROR(VLOOKUP(C1674,Translation!$A:$C,3,FALSE),C1674)","v":"PROPRIÉTAIRES-OCCUPANTS, À L’UNITÉ"},{"$f":"IFERROR(VLOOKUP(D1674,Translation!$A:$C,3,FALSE),D1674)","v":"Terre-Neuve-et-Labrador"},{"$f":"IFERROR(VLOOKUP(E1674,Translation!$A:$C,3,FALSE),E1674)","v":737.41692326385453},{"$f":"IFERROR(VLOOKUP(F1674,Translation!$A:$C,3,FALSE),F1674)","v":"Prêts hypothécaires assurés au cours de la période selon le pointage de crédit à l’initiation (%)"},{"$f":"IFERROR(VLOOKUP(G1674,Translation!$A:$C,3,FALSE),G1674)","v":"737.4"},{"$f":"IFERROR(VLOOKUP(H1674,Translation!$A:$C,3,FALSE),H1674)","v":"Terre-Neuve-et-Labrador"}]
[13,"T4 2017","PROPRIÉTAIRES-OCCUPANTS, À L’UNITÉ","Île-du-Prince-Édouard",735.55151803192814,"Prêts hypothécaires assurés au cours de la période selon le pointage de crédit à l’initiation (%)","735.6","Île-du-Prince-Édouard",{"$f":"IFERROR(VLOOKUP(A1675,Translation!$A:$C,3,FALSE),A1675)","v":13},{"$f":"IFERROR(VLOOKUP(B1675,Translation!$A:$C,3,FALSE),B1675)","v":"T4 2017"},{"$f":"IFERROR(VLOOKUP(C1675,Translation!$A:$C,3,FALSE),C1675)","v":"PROPRIÉTAIRES-OCCUPANTS, À L’UNITÉ"},{"$f":"IFERROR(VLOOKUP(D1675,Translation!$A:$C,3,FALSE),D1675)","v":"Île-du-Prince-Édouard"},{"$f":"IFERROR(VLOOKUP(E1675,Translation!$A:$C,3,FALSE),E1675)","v":735.55151803192814},{"$f":"IFERROR(VLOOKUP(F1675,Translation!$A:$C,3,FALSE),F1675)","v":"Prêts hypothécaires assurés au cours de la période selon le pointage de crédit à l’initiation (%)"},{"$f":"IFERROR(VLOOKUP(G1675,Translation!$A:$C,3,FALSE),G1675)","v":"735.6"},{"$f":"IFERROR(VLOOKUP(H1675,Translation!$A:$C,3,FALSE),H1675)","v":"Île-du-Prince-Édouard"}]
[13,"T4 2017","PROPRIÉTAIRES-OCCUPANTS, À L’UNITÉ","Nouvelle-Écosse",741.88478896352751,"Prêts hypothécaires assurés au cours de la période selon le pointage de crédit à l’initiation (%)","741.9","Nouvelle-Écosse",{"$f":"IFERROR(VLOOKUP(A1676,Translation!$A:$C,3,FALSE),A1676)","v":13},{"$f":"IFERROR(VLOOKUP(B1676,Translation!$A:$C,3,FALSE),B1676)","v":"T4 2017"},{"$f":"IFERROR(VLOOKUP(C1676,Translation!$A:$C,3,FALSE),C1676)","v":"PROPRIÉTAIRES-OCCUPANTS, À L’UNITÉ"},{"$f":"IFERROR(VLOOKUP(D1676,Translation!$A:$C,3,FALSE),D1676)","v":"Nouvelle-Écosse"},{"$f":"IFERROR(VLOOKUP(E1676,Translation!$A:$C,3,FALSE),E1676)","v":741.88478896352751},{"$f":"IFERROR(VLOOKUP(F1676,Translation!$A:$C,3,FALSE),F1676)","v":"Prêts hypothécaires assurés au cours de la période selon le pointage de crédit à l’initiation (%)"},{"$f":"IFERROR(VLOOKUP(G1676,Translation!$A:$C,3,FALSE),G1676)","v":"741.9"},{"$f":"IFERROR(VLOOKUP(H1676,Translation!$A:$C,3,FALSE),H1676)","v":"Nouvelle-Écosse"}]
[13,"T4 2017","PROPRIÉTAIRES-OCCUPANTS, À L’UNITÉ","Nouveau-Brunswick",742.41302627562061,"Prêts hypothécaires assurés au cours de la période selon le pointage de crédit à l’initiation (%)","742.4","Nouveau-Brunswick",{"$f":"IFERROR(VLOOKUP(A1677,Translation!$A:$C,3,FALSE),A1677)","v":13},{"$f":"IFERROR(VLOOKUP(B1677,Translation!$A:$C,3,FALSE),B1677)","v":"T4 2017"},{"$f":"IFERROR(VLOOKUP(C1677,Translation!$A:$C,3,FALSE),C1677)","v":"PROPRIÉTAIRES-OCCUPANTS, À L’UNITÉ"},{"$f":"IFERROR(VLOOKUP(D1677,Translation!$A:$C,3,FALSE),D1677)","v":"Nouveau-Brunswick"},{"$f":"IFERROR(VLOOKUP(E1677,Translation!$A:$C,3,FALSE),E1677)","v":742.41302627562061},{"$f":"IFERROR(VLOOKUP(F1677,Translation!$A:$C,3,FALSE),F1677)","v":"Prêts hypothécaires assurés au cours de la période selon le pointage de crédit à l’initiation (%)"},{"$f":"IFERROR(VLOOKUP(G1677,Translation!$A:$C,3,FALSE),G1677)","v":"742.4"},{"$f":"IFERROR(VLOOKUP(H1677,Translation!$A:$C,3,FALSE),H1677)","v":"Nouveau-Brunswick"}]
[13,"T4 2017","PROPRIÉTAIRES-OCCUPANTS, À L’UNITÉ","Québec",755.01561272897106,"Prêts hypothécaires assurés au cours de la période selon le pointage de crédit à l’initiation (%)","755.0","Québec",{"$f":"IFERROR(VLOOKUP(A1678,Translation!$A:$C,3,FALSE),A1678)","v":13},{"$f":"IFERROR(VLOOKUP(B1678,Translation!$A:$C,3,FALSE),B1678)","v":"T4 2017"},{"$f":"IFERROR(VLOOKUP(C1678,Translation!$A:$C,3,FALSE),C1678)","v":"PROPRIÉTAIRES-OCCUPANTS, À L’UNITÉ"},{"$f":"IFERROR(VLOOKUP(D1678,Translation!$A:$C,3,FALSE),D1678)","v":"Québec"},{"$f":"IFERROR(VLOOKUP(E1678,Translation!$A:$C,3,FALSE),E1678)","v":755.01561272897106},{"$f":"IFERROR(VLOOKUP(F1678,Translation!$A:$C,3,FALSE),F1678)","v":"Prêts hypothécaires assurés au cours de la période selon le pointage de crédit à l’initiation (%)"},{"$f":"IFERROR(VLOOKUP(G1678,Translation!$A:$C,3,FALSE),G1678)","v":"755.0"},{"$f":"IFERROR(VLOOKUP(H1678,Translation!$A:$C,3,FALSE),H1678)","v":"Québec"}]
[13,"T4 2017","PROPRIÉTAIRES-OCCUPANTS, À L’UNITÉ","Ontario",755.88541229170448,"Prêts hypothécaires assurés au cours de la période selon le pointage de crédit à l’initiation (%)","755.9","Ontario",{"$f":"IFERROR(VLOOKUP(A1679,Translation!$A:$C,3,FALSE),A1679)","v":13},{"$f":"IFERROR(VLOOKUP(B1679,Translation!$A:$C,3,FALSE),B1679)","v":"T4 2017"},{"$f":"IFERROR(VLOOKUP(C1679,Translation!$A:$C,3,FALSE),C1679)","v":"PROPRIÉTAIRES-OCCUPANTS, À L’UNITÉ"},{"$f":"IFERROR(VLOOKUP(D1679,Translation!$A:$C,3,FALSE),D1679)","v":"Ontario"},{"$f":"IFERROR(VLOOKUP(E1679,Translation!$A:$C,3,FALSE),E1679)","v":755.88541229170448},{"$f":"IFERROR(VLOOKUP(F1679,Translation!$A:$C,3,FALSE),F1679)","v":"Prêts hypothécaires assurés au cours de la période selon le pointage de crédit à l’initiation (%)"},{"$f":"IFERROR(VLOOKUP(G1679,Translation!$A:$C,3,FALSE),G1679)","v":"755.9"},{"$f":"IFERROR(VLOOKUP(H1679,Translation!$A:$C,3,FALSE),H1679)","v":"Ontario"}]
[13,"T4 2017","PROPRIÉTAIRES-OCCUPANTS, À L’UNITÉ","Manitoba",747.54548811041525,"Prêts hypothécaires assurés au cours de la période selon le pointage de crédit à l’initiation (%)","747.5","Manitoba",{"$f":"IFERROR(VLOOKUP(A1680,Translation!$A:$C,3,FALSE),A1680)","v":13},{"$f":"IFERROR(VLOOKUP(B1680,Translation!$A:$C,3,FALSE),B1680)","v":"T4 2017"},{"$f":"IFERROR(VLOOKUP(C1680,Translation!$A:$C,3,FALSE),C1680)","v":"PROPRIÉTAIRES-OCCUPANTS, À L’UNITÉ"},{"$f":"IFERROR(VLOOKUP(D1680,Translation!$A:$C,3,FALSE),D1680)","v":"Manitoba"},{"$f":"IFERROR(VLOOKUP(E1680,Translation!$A:$C,3,FALSE),E1680)","v":747.54548811041525},{"$f":"IFERROR(VLOOKUP(F1680,Translation!$A:$C,3,FALSE),F1680)","v":"Prêts hypothécaires assurés au cours de la période selon le pointage de crédit à l’initiation (%)"},{"$f":"IFERROR(VLOOKUP(G1680,Translation!$A:$C,3,FALSE),G1680)","v":"747.5"},{"$f":"IFERROR(VLOOKUP(H1680,Translation!$A:$C,3,FALSE),H1680)","v":"Manitoba"}]
[13,"T4 2017","PROPRIÉTAIRES-OCCUPANTS, À L’UNITÉ","Saskatchewan",744.02400427983423,"Prêts hypothécaires assurés au cours de la période selon le pointage de crédit à l’initiation (%)","744.0","Saskatchewan",{"$f":"IFERROR(VLOOKUP(A1681,Translation!$A:$C,3,FALSE),A1681)","v":13},{"$f":"IFERROR(VLOOKUP(B1681,Translation!$A:$C,3,FALSE),B1681)","v":"T4 2017"},{"$f":"IFERROR(VLOOKUP(C1681,Translation!$A:$C,3,FALSE),C1681)","v":"PROPRIÉTAIRES-OCCUPANTS, À L’UNITÉ"},{"$f":"IFERROR(VLOOKUP(D1681,Translation!$A:$C,3,FALSE),D1681)","v":"Saskatchewan"},{"$f":"IFERROR(VLOOKUP(E1681,Translation!$A:$C,3,FALSE),E1681)","v":744.02400427983423},{"$f":"IFERROR(VLOOKUP(F1681,Translation!$A:$C,3,FALSE),F1681)","v":"Prêts hypothécaires assurés au cours de la période selon le pointage de crédit à l’initiation (%)"},{"$f":"IFERROR(VLOOKUP(G1681,Translation!$A:$C,3,FALSE),G1681)","v":"744.0"},{"$f":"IFERROR(VLOOKUP(H1681,Translation!$A:$C,3,FALSE),H1681)","v":"Saskatchewan"}]
[13,"T4 2017","PROPRIÉTAIRES-OCCUPANTS, À L’UNITÉ","Alberta",746.56352542928994,"Prêts hypothécaires assurés au cours de la période selon le pointage de crédit à l’initiation (%)","746.6","Alberta",{"$f":"IFERROR(VLOOKUP(A1682,Translation!$A:$C,3,FALSE),A1682)","v":13},{"$f":"IFERROR(VLOOKUP(B1682,Translation!$A:$C,3,FALSE),B1682)","v":"T4 2017"},{"$f":"IFERROR(VLOOKUP(C1682,Translation!$A:$C,3,FALSE),C1682)","v":"PROPRIÉTAIRES-OCCUPANTS, À L’UNITÉ"},{"$f":"IFERROR(VLOOKUP(D1682,Translation!$A:$C,3,FALSE),D1682)","v":"Alberta"},{"$f":"IFERROR(VLOOKUP(E1682,Translation!$A:$C,3,FALSE),E1682)","v":746.56352542928994},{"$f":"IFERROR(VLOOKUP(F1682,Translation!$A:$C,3,FALSE),F1682)","v":"Prêts hypothécaires assurés au cours de la période selon le pointage de crédit à l’initiation (%)"},{"$f":"IFERROR(VLOOKUP(G1682,Translation!$A:$C,3,FALSE),G1682)","v":"746.6"},{"$f":"IFERROR(VLOOKUP(H1682,Translation!$A:$C,3,FALSE),H1682)","v":"Alberta"}]
[13,"T4 2017","PROPRIÉTAIRES-OCCUPANTS, À L’UNITÉ","Colombie-Britannique",748.95006159477475,"Prêts hypothécaires assurés au cours de la période selon le pointage de crédit à l’initiation (%)","749.0","Colombie-Britannique",{"$f":"IFERROR(VLOOKUP(A1683,Translation!$A:$C,3,FALSE),A1683)","v":13},{"$f":"IFERROR(VLOOKUP(B1683,Translation!$A:$C,3,FALSE),B1683)","v":"T4 2017"},{"$f":"IFERROR(VLOOKUP(C1683,Translation!$A:$C,3,FALSE),C1683)","v":"PROPRIÉTAIRES-OCCUPANTS, À L’UNITÉ"},{"$f":"IFERROR(VLOOKUP(D1683,Translation!$A:$C,3,FALSE),D1683)","v":"Colombie-Britannique"},{"$f":"IFERROR(VLOOKUP(E1683,Translation!$A:$C,3,FALSE),E1683)","v":748.95006159477475},{"$f":"IFERROR(VLOOKUP(F1683,Translation!$A:$C,3,FALSE),F1683)","v":"Prêts hypothécaires assurés au cours de la période selon le pointage de crédit à l’initiation (%)"},{"$f":"IFERROR(VLOOKUP(G1683,Translation!$A:$C,3,FALSE),G1683)","v":"749.0"},{"$f":"IFERROR(VLOOKUP(H1683,Translation!$A:$C,3,FALSE),H1683)","v":"Colombie-Britannique"}]
[13,"T4 2017","PROPRIÉTAIRES-OCCUPANTS, À L’UNITÉ","Territoires",749.16903572334661,"Prêts hypothécaires assurés au cours de la période selon le pointage de crédit à l’initiation (%)","749.2","Territoires",{"$f":"IFERROR(VLOOKUP(A1684,Translation!$A:$C,3,FALSE),A1684)","v":13},{"$f":"IFERROR(VLOOKUP(B1684,Translation!$A:$C,3,FALSE),B1684)","v":"T4 2017"},{"$f":"IFERROR(VLOOKUP(C1684,Translation!$A:$C,3,FALSE),C1684)","v":"PROPRIÉTAIRES-OCCUPANTS, À L’UNITÉ"},{"$f":"IFERROR(VLOOKUP(D1684,Translation!$A:$C,3,FALSE),D1684)","v":"Territoires"},{"$f":"IFERROR(VLOOKUP(E1684,Translation!$A:$C,3,FALSE),E1684)","v":749.16903572334661},{"$f":"IFERROR(VLOOKUP(F1684,Translation!$A:$C,3,FALSE),F1684)","v":"Prêts hypothécaires assurés au cours de la période selon le pointage de crédit à l’initiation (%)"},{"$f":"IFERROR(VLOOKUP(G1684,Translation!$A:$C,3,FALSE),G1684)","v":"749.2"},{"$f":"IFERROR(VLOOKUP(H1684,Translation!$A:$C,3,FALSE),H1684)","v":"Territoires"}]
[13,"T1 2017","ASSURANCE DE PORTEFEUILLE","Aucun pointage de crédit",3.6836316805224631E-2,"Prêts hypothécaires assurés au cours de la période selon le pointage de crédit à l’initiation (%)","0.0","Aucun pointage de crédit",{"$f":"IFERROR(VLOOKUP(A1685,Translation!$A:$C,3,FALSE),A1685)","v":13},{"$f":"IFERROR(VLOOKUP(B1685,Translation!$A:$C,3,FALSE),B1685)","v":"T1 2017"},{"$f":"IFERROR(VLOOKUP(C1685,Translation!$A:$C,3,FALSE),C1685)","v":"ASSURANCE DE PORTEFEUILLE"},{"$f":"IFERROR(VLOOKUP(D1685,Translation!$A:$C,3,FALSE),D1685)","v":"Aucun pointage de crédit"},{"$f":"IFERROR(VLOOKUP(E1685,Translation!$A:$C,3,FALSE),E1685)","v":3.6836316805224631E-2},{"$f":"IFERROR(VLOOKUP(F1685,Translation!$A:$C,3,FALSE),F1685)","v":"Prêts hypothécaires assurés au cours de la période selon le pointage de crédit à l’initiation (%)"},{"$f":"IFERROR(VLOOKUP(G1685,Translation!$A:$C,3,FALSE),G1685)","v":"0.0"},{"$f":"IFERROR(VLOOKUP(H1685,Translation!$A:$C,3,FALSE),H1685)","v":"Aucun pointage de crédit"}]
[13,"Q2 2016","ASSURANCE DE PORTEFEUILLE","Aucun pointage de crédit",3.0991588644867576E-2,"Prêts hypothécaires assurés au cours de la période selon le pointage de crédit à l’initiation (%)","0.0","Aucun pointage de crédit",{"$f":"IFERROR(VLOOKUP(A1686,Translation!$A:$C,3,FALSE),A1686)","v":13},{"$f":"IFERROR(VLOOKUP(B1686,Translation!$A:$C,3,FALSE),B1686)","v":"Q2 2016"},{"$f":"IFERROR(VLOOKUP(C1686,Translation!$A:$C,3,FALSE),C1686)","v":"ASSURANCE DE PORTEFEUILLE"},{"$f":"IFERROR(VLOOKUP(D1686,Translation!$A:$C,3,FALSE),D1686)","v":"Aucun pointage de crédit"},{"$f":"IFERROR(VLOOKUP(E1686,Translation!$A:$C,3,FALSE),E1686)","v":3.0991588644867576E-2},{"$f":"IFERROR(VLOOKUP(F1686,Translation!$A:$C,3,FALSE),F1686)","v":"Prêts hypothécaires assurés au cours de la période selon le pointage de crédit à l’initiation (%)"},{"$f":"IFERROR(VLOOKUP(G1686,Translation!$A:$C,3,FALSE),G1686)","v":"0.0"},{"$f":"IFERROR(VLOOKUP(H1686,Translation!$A:$C,3,FALSE),H1686)","v":"Aucun pointage de crédit"}]
[13,"T2 2017","ASSURANCE DE PORTEFEUILLE","Aucun pointage de crédit",0.12486464406525782,"Prêts hypothécaires assurés au cours de la période selon le pointage de crédit à l’initiation (%)","0.1","Aucun pointage de crédit",{"$f":"IFERROR(VLOOKUP(A1687,Translation!$A:$C,3,FALSE),A1687)","v":13},{"$f":"IFERROR(VLOOKUP(B1687,Translation!$A:$C,3,FALSE),B1687)","v":"T2 2017"},{"$f":"IFERROR(VLOOKUP(C1687,Translation!$A:$C,3,FALSE),C1687)","v":"ASSURANCE DE PORTEFEUILLE"},{"$f":"IFERROR(VLOOKUP(D1687,Translation!$A:$C,3,FALSE),D1687)","v":"Aucun pointage de crédit"},{"$f":"IFERROR(VLOOKUP(E1687,Translation!$A:$C,3,FALSE),E1687)","v":0.12486464406525782},{"$f":"IFERROR(VLOOKUP(F1687,Translation!$A:$C,3,FALSE),F1687)","v":"Prêts hypothécaires assurés au cours de la période selon le pointage de crédit à l’initiation (%)"},{"$f":"IFERROR(VLOOKUP(G1687,Translation!$A:$C,3,FALSE),G1687)","v":"0.1"},{"$f":"IFERROR(VLOOKUP(H1687,Translation!$A:$C,3,FALSE),H1687)","v":"Aucun pointage de crédit"}]
[13,"Q3 2016","ASSURANCE DE PORTEFEUILLE","Aucun pointage de crédit",2.6090212504314633E-2,"Prêts hypothécaires assurés au cours de la période selon le pointage de crédit à l’initiation (%)","0.0","Aucun pointage de crédit",{"$f":"IFERROR(VLOOKUP(A1688,Translation!$A:$C,3,FALSE),A1688)","v":13},{"$f":"IFERROR(VLOOKUP(B1688,Translation!$A:$C,3,FALSE),B1688)","v":"Q3 2016"},{"$f":"IFERROR(VLOOKUP(C1688,Translation!$A:$C,3,FALSE),C1688)","v":"ASSURANCE DE PORTEFEUILLE"},{"$f":"IFERROR(VLOOKUP(D1688,Translation!$A:$C,3,FALSE),D1688)","v":"Aucun pointage de crédit"},{"$f":"IFERROR(VLOOKUP(E1688,Translation!$A:$C,3,FALSE),E1688)","v":2.6090212504314633E-2},{"$f":"IFERROR(VLOOKUP(F1688,Translation!$A:$C,3,FALSE),F1688)","v":"Prêts hypothécaires assurés au cours de la période selon le pointage de crédit à l’initiation (%)"},{"$f":"IFERROR(VLOOKUP(G1688,Translation!$A:$C,3,FALSE),G1688)","v":"0.0"},{"$f":"IFERROR(VLOOKUP(H1688,Translation!$A:$C,3,FALSE),H1688)","v":"Aucun pointage de crédit"}]
[13,"T3 2017","ASSURANCE DE PORTEFEUILLE","Aucun pointage de crédit",0.4593996997721968,"Prêts hypothécaires assurés au cours de la période selon le pointage de crédit à l’initiation (%)","0.5","Aucun pointage de crédit",{"$f":"IFERROR(VLOOKUP(A1689,Translation!$A:$C,3,FALSE),A1689)","v":13},{"$f":"IFERROR(VLOOKUP(B1689,Translation!$A:$C,3,FALSE),B1689)","v":"T3 2017"},{"$f":"IFERROR(VLOOKUP(C1689,Translation!$A:$C,3,FALSE),C1689)","v":"ASSURANCE DE PORTEFEUILLE"},{"$f":"IFERROR(VLOOKUP(D1689,Translation!$A:$C,3,FALSE),D1689)","v":"Aucun pointage de crédit"},{"$f":"IFERROR(VLOOKUP(E1689,Translation!$A:$C,3,FALSE),E1689)","v":0.4593996997721968},{"$f":"IFERROR(VLOOKUP(F1689,Translation!$A:$C,3,FALSE),F1689)","v":"Prêts hypothécaires assurés au cours de la période selon le pointage de crédit à l’initiation (%)"},{"$f":"IFERROR(VLOOKUP(G1689,Translation!$A:$C,3,FALSE),G1689)","v":"0.5"},{"$f":"IFERROR(VLOOKUP(H1689,Translation!$A:$C,3,FALSE),H1689)","v":"Aucun pointage de crédit"}]
[13,"Q4 2016","ASSURANCE DE PORTEFEUILLE","Aucun pointage de crédit",5.8823825371932224E-2,"Prêts hypothécaires assurés au cours de la période selon le pointage de crédit à l’initiation (%)","0.1","Aucun pointage de crédit",{"$f":"IFERROR(VLOOKUP(A1690,Translation!$A:$C,3,FALSE),A1690)","v":13},{"$f":"IFERROR(VLOOKUP(B1690,Translation!$A:$C,3,FALSE),B1690)","v":"Q4 2016"},{"$f":"IFERROR(VLOOKUP(C1690,Translation!$A:$C,3,FALSE),C1690)","v":"ASSURANCE DE PORTEFEUILLE"},{"$f":"IFERROR(VLOOKUP(D1690,Translation!$A:$C,3,FALSE),D1690)","v":"Aucun pointage de crédit"},{"$f":"IFERROR(VLOOKUP(E1690,Translation!$A:$C,3,FALSE),E1690)","v":5.8823825371932224E-2},{"$f":"IFERROR(VLOOKUP(F1690,Translation!$A:$C,3,FALSE),F1690)","v":"Prêts hypothécaires assurés au cours de la période selon le pointage de crédit à l’initiation (%)"},{"$f":"IFERROR(VLOOKUP(G1690,Translation!$A:$C,3,FALSE),G1690)","v":"0.1"},{"$f":"IFERROR(VLOOKUP(H1690,Translation!$A:$C,3,FALSE),H1690)","v":"Aucun pointage de crédit"}]
[13,"T1 2017","ASSURANCE DE PORTEFEUILLE","< 600",0.46559569298072545,"Prêts hypothécaires assurés au cours de la période selon le pointage de crédit à l’initiation (%)","0.5"," < 600",{"$f":"IFERROR(VLOOKUP(A1691,Translation!$A:$C,3,FALSE),A1691)","v":13},{"$f":"IFERROR(VLOOKUP(B1691,Translation!$A:$C,3,FALSE),B1691)","v":"T1 2017"},{"$f":"IFERROR(VLOOKUP(C1691,Translation!$A:$C,3,FALSE),C1691)","v":"ASSURANCE DE PORTEFEUILLE"},{"$f":"IFERROR(VLOOKUP(D1691,Translation!$A:$C,3,FALSE),D1691)","v":"< 600"},{"$f":"IFERROR(VLOOKUP(E1691,Translation!$A:$C,3,FALSE),E1691)","v":0.46559569298072545},{"$f":"IFERROR(VLOOKUP(F1691,Translation!$A:$C,3,FALSE),F1691)","v":"Prêts hypothécaires assurés au cours de la période selon le pointage de crédit à l’initiation (%)"},{"$f":"IFERROR(VLOOKUP(G1691,Translation!$A:$C,3,FALSE),G1691)","v":"0.5"},{"$f":"IFERROR(VLOOKUP(H1691,Translation!$A:$C,3,FALSE),H1691)","v":" < 600"}]
[13,"Q2 2016","ASSURANCE DE PORTEFEUILLE","< 600",0.29704353212549389,"Prêts hypothécaires assurés au cours de la période selon le pointage de crédit à l’initiation (%)","0.3"," < 600",{"$f":"IFERROR(VLOOKUP(A1692,Translation!$A:$C,3,FALSE),A1692)","v":13},{"$f":"IFERROR(VLOOKUP(B1692,Translation!$A:$C,3,FALSE),B1692)","v":"Q2 2016"},{"$f":"IFERROR(VLOOKUP(C1692,Translation!$A:$C,3,FALSE),C1692)","v":"ASSURANCE DE PORTEFEUILLE"},{"$f":"IFERROR(VLOOKUP(D1692,Translation!$A:$C,3,FALSE),D1692)","v":"< 600"},{"$f":"IFERROR(VLOOKUP(E1692,Translation!$A:$C,3,FALSE),E1692)","v":0.29704353212549389},{"$f":"IFERROR(VLOOKUP(F1692,Translation!$A:$C,3,FALSE),F1692)","v":"Prêts hypothécaires assurés au cours de la période selon le pointage de crédit à l’initiation (%)"},{"$f":"IFERROR(VLOOKUP(G1692,Translation!$A:$C,3,FALSE),G1692)","v":"0.3"},{"$f":"IFERROR(VLOOKUP(H1692,Translation!$A:$C,3,FALSE),H1692)","v":" < 600"}]
[13,"T2 2017","ASSURANCE DE PORTEFEUILLE","< 600",0.74952969685486304,"Prêts hypothécaires assurés au cours de la période selon le pointage de crédit à l’initiation (%)","0.7"," < 600",{"$f":"IFERROR(VLOOKUP(A1693,Translation!$A:$C,3,FALSE),A1693)","v":13},{"$f":"IFERROR(VLOOKUP(B1693,Translation!$A:$C,3,FALSE),B1693)","v":"T2 2017"},{"$f":"IFERROR(VLOOKUP(C1693,Translation!$A:$C,3,FALSE),C1693)","v":"ASSURANCE DE PORTEFEUILLE"},{"$f":"IFERROR(VLOOKUP(D1693,Translation!$A:$C,3,FALSE),D1693)","v":"< 600"},{"$f":"IFERROR(VLOOKUP(E1693,Translation!$A:$C,3,FALSE),E1693)","v":0.74952969685486304},{"$f":"IFERROR(VLOOKUP(F1693,Translation!$A:$C,3,FALSE),F1693)","v":"Prêts hypothécaires assurés au cours de la période selon le pointage de crédit à l’initiation (%)"},{"$f":"IFERROR(VLOOKUP(G1693,Translation!$A:$C,3,FALSE),G1693)","v":"0.7"},{"$f":"IFERROR(VLOOKUP(H1693,Translation!$A:$C,3,FALSE),H1693)","v":" < 600"}]
[13,"Q3 2016","ASSURANCE DE PORTEFEUILLE","< 600",0.28645712858358818,"Prêts hypothécaires assurés au cours de la période selon le pointage de crédit à l’initiation (%)","0.3"," < 600",{"$f":"IFERROR(VLOOKUP(A1694,Translation!$A:$C,3,FALSE),A1694)","v":13},{"$f":"IFERROR(VLOOKUP(B1694,Translation!$A:$C,3,FALSE),B1694)","v":"Q3 2016"},{"$f":"IFERROR(VLOOKUP(C1694,Translation!$A:$C,3,FALSE),C1694)","v":"ASSURANCE DE PORTEFEUILLE"},{"$f":"IFERROR(VLOOKUP(D1694,Translation!$A:$C,3,FALSE),D1694)","v":"< 600"},{"$f":"IFERROR(VLOOKUP(E1694,Translation!$A:$C,3,FALSE),E1694)","v":0.28645712858358818},{"$f":"IFERROR(VLOOKUP(F1694,Translation!$A:$C,3,FALSE),F1694)","v":"Prêts hypothécaires assurés au cours de la période selon le pointage de crédit à l’initiation (%)"},{"$f":"IFERROR(VLOOKUP(G1694,Translation!$A:$C,3,FALSE),G1694)","v":"0.3"},{"$f":"IFERROR(VLOOKUP(H1694,Translation!$A:$C,3,FALSE),H1694)","v":" < 600"}]
[13,"T3 2017","ASSURANCE DE PORTEFEUILLE","< 600",0.88208147503906942,"Prêts hypothécaires assurés au cours de la période selon le pointage de crédit à l’initiation (%)","0.9"," < 600",{"$f":"IFERROR(VLOOKUP(A1695,Translation!$A:$C,3,FALSE),A1695)","v":13},{"$f":"IFERROR(VLOOKUP(B1695,Translation!$A:$C,3,FALSE),B1695)","v":"T3 2017"},{"$f":"IFERROR(VLOOKUP(C1695,Translation!$A:$C,3,FALSE),C1695)","v":"ASSURANCE DE PORTEFEUILLE"},{"$f":"IFERROR(VLOOKUP(D1695,Translation!$A:$C,3,FALSE),D1695)","v":"< 600"},{"$f":"IFERROR(VLOOKUP(E1695,Translation!$A:$C,3,FALSE),E1695)","v":0.88208147503906942},{"$f":"IFERROR(VLOOKUP(F1695,Translation!$A:$C,3,FALSE),F1695)","v":"Prêts hypothécaires assurés au cours de la période selon le pointage de crédit à l’initiation (%)"},{"$f":"IFERROR(VLOOKUP(G1695,Translation!$A:$C,3,FALSE),G1695)","v":"0.9"},{"$f":"IFERROR(VLOOKUP(H1695,Translation!$A:$C,3,FALSE),H1695)","v":" < 600"}]
[13,"Q4 2016","ASSURANCE DE PORTEFEUILLE","< 600",0.39002864757467126,"Prêts hypothécaires assurés au cours de la période selon le pointage de crédit à l’initiation (%)","0.4"," < 600",{"$f":"IFERROR(VLOOKUP(A1696,Translation!$A:$C,3,FALSE),A1696)","v":13},{"$f":"IFERROR(VLOOKUP(B1696,Translation!$A:$C,3,FALSE),B1696)","v":"Q4 2016"},{"$f":"IFERROR(VLOOKUP(C1696,Translation!$A:$C,3,FALSE),C1696)","v":"ASSURANCE DE PORTEFEUILLE"},{"$f":"IFERROR(VLOOKUP(D1696,Translation!$A:$C,3,FALSE),D1696)","v":"< 600"},{"$f":"IFERROR(VLOOKUP(E1696,Translation!$A:$C,3,FALSE),E1696)","v":0.39002864757467126},{"$f":"IFERROR(VLOOKUP(F1696,Translation!$A:$C,3,FALSE),F1696)","v":"Prêts hypothécaires assurés au cours de la période selon le pointage de crédit à l’initiation (%)"},{"$f":"IFERROR(VLOOKUP(G1696,Translation!$A:$C,3,FALSE),G1696)","v":"0.4"},{"$f":"IFERROR(VLOOKUP(H1696,Translation!$A:$C,3,FALSE),H1696)","v":" < 600"}]
[13,"T4 2017","ASSURANCE DE PORTEFEUILLE","< 600",0.49541288247954679,"Prêts hypothécaires assurés au cours de la période selon le pointage de crédit à l’initiation (%)","0.5"," < 600",{"$f":"IFERROR(VLOOKUP(A1697,Translation!$A:$C,3,FALSE),A1697)","v":13},{"$f":"IFERROR(VLOOKUP(B1697,Translation!$A:$C,3,FALSE),B1697)","v":"T4 2017"},{"$f":"IFERROR(VLOOKUP(C1697,Translation!$A:$C,3,FALSE),C1697)","v":"ASSURANCE DE PORTEFEUILLE"},{"$f":"IFERROR(VLOOKUP(D1697,Translation!$A:$C,3,FALSE),D1697)","v":"< 600"},{"$f":"IFERROR(VLOOKUP(E1697,Translation!$A:$C,3,FALSE),E1697)","v":0.49541288247954679},{"$f":"IFERROR(VLOOKUP(F1697,Translation!$A:$C,3,FALSE),F1697)","v":"Prêts hypothécaires assurés au cours de la période selon le pointage de crédit à l’initiation (%)"},{"$f":"IFERROR(VLOOKUP(G1697,Translation!$A:$C,3,FALSE),G1697)","v":"0.5"},{"$f":"IFERROR(VLOOKUP(H1697,Translation!$A:$C,3,FALSE),H1697)","v":" < 600"}]
[13,"T1 2017","ASSURANCE DE PORTEFEUILLE",">= 600 < 680",6.0371285690357723,"Prêts hypothécaires assurés au cours de la période selon le pointage de crédit à l’initiation (%)","6.0"," >= 600 < 680",{"$f":"IFERROR(VLOOKUP(A1698,Translation!$A:$C,3,FALSE),A1698)","v":13},{"$f":"IFERROR(VLOOKUP(B1698,Translation!$A:$C,3,FALSE),B1698)","v":"T1 2017"},{"$f":"IFERROR(VLOOKUP(C1698,Translation!$A:$C,3,FALSE),C1698)","v":"ASSURANCE DE PORTEFEUILLE"},{"$f":"IFERROR(VLOOKUP(D1698,Translation!$A:$C,3,FALSE),D1698)","v":">= 600 < 680"},{"$f":"IFERROR(VLOOKUP(E1698,Translation!$A:$C,3,FALSE),E1698)","v":6.0371285690357723},{"$f":"IFERROR(VLOOKUP(F1698,Translation!$A:$C,3,FALSE),F1698)","v":"Prêts hypothécaires assurés au cours de la période selon le pointage de crédit à l’initiation (%)"},{"$f":"IFERROR(VLOOKUP(G1698,Translation!$A:$C,3,FALSE),G1698)","v":"6.0"},{"$f":"IFERROR(VLOOKUP(H1698,Translation!$A:$C,3,FALSE),H1698)","v":" >= 600 < 680"}]
[13,"T1 2018","ASSURANCE DE PORTEFEUILLE",">= 600 < 680",2.3635139401662144,"Prêts hypothécaires assurés au cours de la période selon le pointage de crédit à l’initiation (%)","2.4"," >= 600 < 680",{"$f":"IFERROR(VLOOKUP(A1699,Translation!$A:$C,3,FALSE),A1699)","v":13},{"$f":"IFERROR(VLOOKUP(B1699,Translation!$A:$C,3,FALSE),B1699)","v":"T1 2018"},{"$f":"IFERROR(VLOOKUP(C1699,Translation!$A:$C,3,FALSE),C1699)","v":"ASSURANCE DE PORTEFEUILLE"},{"$f":"IFERROR(VLOOKUP(D1699,Translation!$A:$C,3,FALSE),D1699)","v":">= 600 < 680"},{"$f":"IFERROR(VLOOKUP(E1699,Translation!$A:$C,3,FALSE),E1699)","v":2.3635139401662144},{"$f":"IFERROR(VLOOKUP(F1699,Translation!$A:$C,3,FALSE),F1699)","v":"Prêts hypothécaires assurés au cours de la période selon le pointage de crédit à l’initiation (%)"},{"$f":"IFERROR(VLOOKUP(G1699,Translation!$A:$C,3,FALSE),G1699)","v":"2.4"},{"$f":"IFERROR(VLOOKUP(H1699,Translation!$A:$C,3,FALSE),H1699)","v":" >= 600 < 680"}]
[13,"Q2 2016","ASSURANCE DE PORTEFEUILLE",">= 600 < 680",6.0935838065836094,"Prêts hypothécaires assurés au cours de la période selon le pointage de crédit à l’initiation (%)","6.1"," >= 600 < 680",{"$f":"IFERROR(VLOOKUP(A1700,Translation!$A:$C,3,FALSE),A1700)","v":13},{"$f":"IFERROR(VLOOKUP(B1700,Translation!$A:$C,3,FALSE),B1700)","v":"Q2 2016"},{"$f":"IFERROR(VLOOKUP(C1700,Translation!$A:$C,3,FALSE),C1700)","v":"ASSURANCE DE PORTEFEUILLE"},{"$f":"IFERROR(VLOOKUP(D1700,Translation!$A:$C,3,FALSE),D1700)","v":">= 600 < 680"},{"$f":"IFERROR(VLOOKUP(E1700,Translation!$A:$C,3,FALSE),E1700)","v":6.0935838065836094},{"$f":"IFERROR(VLOOKUP(F1700,Translation!$A:$C,3,FALSE),F1700)","v":"Prêts hypothécaires assurés au cours de la période selon le pointage de crédit à l’initiation (%)"},{"$f":"IFERROR(VLOOKUP(G1700,Translation!$A:$C,3,FALSE),G1700)","v":"6.1"},{"$f":"IFERROR(VLOOKUP(H1700,Translation!$A:$C,3,FALSE),H1700)","v":" >= 600 < 680"}]
[13,"T2 2017","ASSURANCE DE PORTEFEUILLE",">= 600 < 680",15.433510119245645,"Prêts hypothécaires assurés au cours de la période selon le pointage de crédit à l’initiation (%)","15.4"," >= 600 < 680",{"$f":"IFERROR(VLOOKUP(A1701,Translation!$A:$C,3,FALSE),A1701)","v":13},{"$f":"IFERROR(VLOOKUP(B1701,Translation!$A:$C,3,FALSE),B1701)","v":"T2 2017"},{"$f":"IFERROR(VLOOKUP(C1701,Translation!$A:$C,3,FALSE),C1701)","v":"ASSURANCE DE PORTEFEUILLE"},{"$f":"IFERROR(VLOOKUP(D1701,Translation!$A:$C,3,FALSE),D1701)","v":">= 600 < 680"},{"$f":"IFERROR(VLOOKUP(E1701,Translation!$A:$C,3,FALSE),E1701)","v":15.433510119245645},{"$f":"IFERROR(VLOOKUP(F1701,Translation!$A:$C,3,FALSE),F1701)","v":"Prêts hypothécaires assurés au cours de la période selon le pointage de crédit à l’initiation (%)"},{"$f":"IFERROR(VLOOKUP(G1701,Translation!$A:$C,3,FALSE),G1701)","v":"15.4"},{"$f":"IFERROR(VLOOKUP(H1701,Translation!$A:$C,3,FALSE),H1701)","v":" >= 600 < 680"}]
[13,"Q3 2016","ASSURANCE DE PORTEFEUILLE",">= 600 < 680",6.1231931470129881,"Prêts hypothécaires assurés au cours de la période selon le pointage de crédit à l’initiation (%)","6.1"," >= 600 < 680",{"$f":"IFERROR(VLOOKUP(A1702,Translation!$A:$C,3,FALSE),A1702)","v":13},{"$f":"IFERROR(VLOOKUP(B1702,Translation!$A:$C,3,FALSE),B1702)","v":"Q3 2016"},{"$f":"IFERROR(VLOOKUP(C1702,Translation!$A:$C,3,FALSE),C1702)","v":"ASSURANCE DE PORTEFEUILLE"},{"$f":"IFERROR(VLOOKUP(D1702,Translation!$A:$C,3,FALSE),D1702)","v":">= 600 < 680"},{"$f":"IFERROR(VLOOKUP(E1702,Translation!$A:$C,3,FALSE),E1702)","v":6.1231931470129881},{"$f":"IFERROR(VLOOKUP(F1702,Translation!$A:$C,3,FALSE),F1702)","v":"Prêts hypothécaires assurés au cours de la période selon le pointage de crédit à l’initiation (%)"},{"$f":"IFERROR(VLOOKUP(G1702,Translation!$A:$C,3,FALSE),G1702)","v":"6.1"},{"$f":"IFERROR(VLOOKUP(H1702,Translation!$A:$C,3,FALSE),H1702)","v":" >= 600 < 680"}]
[13,"T3 2017","ASSURANCE DE PORTEFEUILLE",">= 600 < 680",6.5031582233082883,"Prêts hypothécaires assurés au cours de la période selon le pointage de crédit à l’initiation (%)","6.5"," >= 600 < 680",{"$f":"IFERROR(VLOOKUP(A1703,Translation!$A:$C,3,FALSE),A1703)","v":13},{"$f":"IFERROR(VLOOKUP(B1703,Translation!$A:$C,3,FALSE),B1703)","v":"T3 2017"},{"$f":"IFERROR(VLOOKUP(C1703,Translation!$A:$C,3,FALSE),C1703)","v":"ASSURANCE DE PORTEFEUILLE"},{"$f":"IFERROR(VLOOKUP(D1703,Translation!$A:$C,3,FALSE),D1703)","v":">= 600 < 680"},{"$f":"IFERROR(VLOOKUP(E1703,Translation!$A:$C,3,FALSE),E1703)","v":6.5031582233082883},{"$f":"IFERROR(VLOOKUP(F1703,Translation!$A:$C,3,FALSE),F1703)","v":"Prêts hypothécaires assurés au cours de la période selon le pointage de crédit à l’initiation (%)"},{"$f":"IFERROR(VLOOKUP(G1703,Translation!$A:$C,3,FALSE),G1703)","v":"6.5"},{"$f":"IFERROR(VLOOKUP(H1703,Translation!$A:$C,3,FALSE),H1703)","v":" >= 600 < 680"}]
[13,"Q4 2016","ASSURANCE DE PORTEFEUILLE",">= 600 < 680",6.0565544595636522,"Prêts hypothécaires assurés au cours de la période selon le pointage de crédit à l’initiation (%)","6.1"," >= 600 < 680",{"$f":"IFERROR(VLOOKUP(A1704,Translation!$A:$C,3,FALSE),A1704)","v":13},{"$f":"IFERROR(VLOOKUP(B1704,Translation!$A:$C,3,FALSE),B1704)","v":"Q4 2016"},{"$f":"IFERROR(VLOOKUP(C1704,Translation!$A:$C,3,FALSE),C1704)","v":"ASSURANCE DE PORTEFEUILLE"},{"$f":"IFERROR(VLOOKUP(D1704,Translation!$A:$C,3,FALSE),D1704)","v":">= 600 < 680"},{"$f":"IFERROR(VLOOKUP(E1704,Translation!$A:$C,3,FALSE),E1704)","v":6.0565544595636522},{"$f":"IFERROR(VLOOKUP(F1704,Translation!$A:$C,3,FALSE),F1704)","v":"Prêts hypothécaires assurés au cours de la période selon le pointage de crédit à l’initiation (%)"},{"$f":"IFERROR(VLOOKUP(G1704,Translation!$A:$C,3,FALSE),G1704)","v":"6.1"},{"$f":"IFERROR(VLOOKUP(H1704,Translation!$A:$C,3,FALSE),H1704)","v":" >= 600 < 680"}]
[13,"T4 2017","ASSURANCE DE PORTEFEUILLE",">= 600 < 680",6.2606055060865584,"Prêts hypothécaires assurés au cours de la période selon le pointage de crédit à l’initiation (%)","6.3"," >= 600 < 680",{"$f":"IFERROR(VLOOKUP(A1705,Translation!$A:$C,3,FALSE),A1705)","v":13},{"$f":"IFERROR(VLOOKUP(B1705,Translation!$A:$C,3,FALSE),B1705)","v":"T4 2017"},{"$f":"IFERROR(VLOOKUP(C1705,Translation!$A:$C,3,FALSE),C1705)","v":"ASSURANCE DE PORTEFEUILLE"},{"$f":"IFERROR(VLOOKUP(D1705,Translation!$A:$C,3,FALSE),D1705)","v":">= 600 < 680"},{"$f":"IFERROR(VLOOKUP(E1705,Translation!$A:$C,3,FALSE),E1705)","v":6.2606055060865584},{"$f":"IFERROR(VLOOKUP(F1705,Translation!$A:$C,3,FALSE),F1705)","v":"Prêts hypothécaires assurés au cours de la période selon le pointage de crédit à l’initiation (%)"},{"$f":"IFERROR(VLOOKUP(G1705,Translation!$A:$C,3,FALSE),G1705)","v":"6.3"},{"$f":"IFERROR(VLOOKUP(H1705,Translation!$A:$C,3,FALSE),H1705)","v":" >= 600 < 680"}]
[13,"T1 2017","ASSURANCE DE PORTEFEUILLE",">= 680 < 700",4.9238361900969023,"Prêts hypothécaires assurés au cours de la période selon le pointage de crédit à l’initiation (%)","4.9"," >= 680 < 700",{"$f":"IFERROR(VLOOKUP(A1706,Translation!$A:$C,3,FALSE),A1706)","v":13},{"$f":"IFERROR(VLOOKUP(B1706,Translation!$A:$C,3,FALSE),B1706)","v":"T1 2017"},{"$f":"IFERROR(VLOOKUP(C1706,Translation!$A:$C,3,FALSE),C1706)","v":"ASSURANCE DE PORTEFEUILLE"},{"$f":"IFERROR(VLOOKUP(D1706,Translation!$A:$C,3,FALSE),D1706)","v":">= 680 < 700"},{"$f":"IFERROR(VLOOKUP(E1706,Translation!$A:$C,3,FALSE),E1706)","v":4.9238361900969023},{"$f":"IFERROR(VLOOKUP(F1706,Translation!$A:$C,3,FALSE),F1706)","v":"Prêts hypothécaires assurés au cours de la période selon le pointage de crédit à l’initiation (%)"},{"$f":"IFERROR(VLOOKUP(G1706,Translation!$A:$C,3,FALSE),G1706)","v":"4.9"},{"$f":"IFERROR(VLOOKUP(H1706,Translation!$A:$C,3,FALSE),H1706)","v":" >= 680 < 700"}]
[13,"T1 2018","ASSURANCE DE PORTEFEUILLE",">= 680 < 700",2.6631278918675618,"Prêts hypothécaires assurés au cours de la période selon le pointage de crédit à l’initiation (%)","2.7"," >= 680 < 700",{"$f":"IFERROR(VLOOKUP(A1707,Translation!$A:$C,3,FALSE),A1707)","v":13},{"$f":"IFERROR(VLOOKUP(B1707,Translation!$A:$C,3,FALSE),B1707)","v":"T1 2018"},{"$f":"IFERROR(VLOOKUP(C1707,Translation!$A:$C,3,FALSE),C1707)","v":"ASSURANCE DE PORTEFEUILLE"},{"$f":"IFERROR(VLOOKUP(D1707,Translation!$A:$C,3,FALSE),D1707)","v":">= 680 < 700"},{"$f":"IFERROR(VLOOKUP(E1707,Translation!$A:$C,3,FALSE),E1707)","v":2.6631278918675618},{"$f":"IFERROR(VLOOKUP(F1707,Translation!$A:$C,3,FALSE),F1707)","v":"Prêts hypothécaires assurés au cours de la période selon le pointage de crédit à l’initiation (%)"},{"$f":"IFERROR(VLOOKUP(G1707,Translation!$A:$C,3,FALSE),G1707)","v":"2.7"},{"$f":"IFERROR(VLOOKUP(H1707,Translation!$A:$C,3,FALSE),H1707)","v":" >= 680 < 700"}]
[13,"Q2 2016","ASSURANCE DE PORTEFEUILLE",">= 680 < 700",5.5853123234765194,"Prêts hypothécaires assurés au cours de la période selon le pointage de crédit à l’initiation (%)","5.6"," >= 680 < 700",{"$f":"IFERROR(VLOOKUP(A1708,Translation!$A:$C,3,FALSE),A1708)","v":13},{"$f":"IFERROR(VLOOKUP(B1708,Translation!$A:$C,3,FALSE),B1708)","v":"Q2 2016"},{"$f":"IFERROR(VLOOKUP(C1708,Translation!$A:$C,3,FALSE),C1708)","v":"ASSURANCE DE PORTEFEUILLE"},{"$f":"IFERROR(VLOOKUP(D1708,Translation!$A:$C,3,FALSE),D1708)","v":">= 680 < 700"},{"$f":"IFERROR(VLOOKUP(E1708,Translation!$A:$C,3,FALSE),E1708)","v":5.5853123234765194},{"$f":"IFERROR(VLOOKUP(F1708,Translation!$A:$C,3,FALSE),F1708)","v":"Prêts hypothécaires assurés au cours de la période selon le pointage de crédit à l’initiation (%)"},{"$f":"IFERROR(VLOOKUP(G1708,Translation!$A:$C,3,FALSE),G1708)","v":"5.6"},{"$f":"IFERROR(VLOOKUP(H1708,Translation!$A:$C,3,FALSE),H1708)","v":" >= 680 < 700"}]
[13,"T2 2017","ASSURANCE DE PORTEFEUILLE",">= 680 < 700",8.5696103026055805,"Prêts hypothécaires assurés au cours de la période selon le pointage de crédit à l’initiation (%)","8.6"," >= 680 < 700",{"$f":"IFERROR(VLOOKUP(A1709,Translation!$A:$C,3,FALSE),A1709)","v":13},{"$f":"IFERROR(VLOOKUP(B1709,Translation!$A:$C,3,FALSE),B1709)","v":"T2 2017"},{"$f":"IFERROR(VLOOKUP(C1709,Translation!$A:$C,3,FALSE),C1709)","v":"ASSURANCE DE PORTEFEUILLE"},{"$f":"IFERROR(VLOOKUP(D1709,Translation!$A:$C,3,FALSE),D1709)","v":">= 680 < 700"},{"$f":"IFERROR(VLOOKUP(E1709,Translation!$A:$C,3,FALSE),E1709)","v":8.5696103026055805},{"$f":"IFERROR(VLOOKUP(F1709,Translation!$A:$C,3,FALSE),F1709)","v":"Prêts hypothécaires assurés au cours de la période selon le pointage de crédit à l’initiation (%)"},{"$f":"IFERROR(VLOOKUP(G1709,Translation!$A:$C,3,FALSE),G1709)","v":"8.6"},{"$f":"IFERROR(VLOOKUP(H1709,Translation!$A:$C,3,FALSE),H1709)","v":" >= 680 < 700"}]
[13,"Q3 2016","ASSURANCE DE PORTEFEUILLE",">= 680 < 700",8.1143786960095223,"Prêts hypothécaires assurés au cours de la période selon le pointage de crédit à l’initiation (%)","8.1"," >= 680 < 700",{"$f":"IFERROR(VLOOKUP(A1710,Translation!$A:$C,3,FALSE),A1710)","v":13},{"$f":"IFERROR(VLOOKUP(B1710,Translation!$A:$C,3,FALSE),B1710)","v":"Q3 2016"},{"$f":"IFERROR(VLOOKUP(C1710,Translation!$A:$C,3,FALSE),C1710)","v":"ASSURANCE DE PORTEFEUILLE"},{"$f":"IFERROR(VLOOKUP(D1710,Translation!$A:$C,3,FALSE),D1710)","v":">= 680 < 700"},{"$f":"IFERROR(VLOOKUP(E1710,Translation!$A:$C,3,FALSE),E1710)","v":8.1143786960095223},{"$f":"IFERROR(VLOOKUP(F1710,Translation!$A:$C,3,FALSE),F1710)","v":"Prêts hypothécaires assurés au cours de la période selon le pointage de crédit à l’initiation (%)"},{"$f":"IFERROR(VLOOKUP(G1710,Translation!$A:$C,3,FALSE),G1710)","v":"8.1"},{"$f":"IFERROR(VLOOKUP(H1710,Translation!$A:$C,3,FALSE),H1710)","v":" >= 680 < 700"}]
[13,"T3 2017","ASSURANCE DE PORTEFEUILLE",">= 680 < 700",6.9748258860892083,"Prêts hypothécaires assurés au cours de la période selon le pointage de crédit à l’initiation (%)","7.0"," >= 680 < 700",{"$f":"IFERROR(VLOOKUP(A1711,Translation!$A:$C,3,FALSE),A1711)","v":13},{"$f":"IFERROR(VLOOKUP(B1711,Translation!$A:$C,3,FALSE),B1711)","v":"T3 2017"},{"$f":"IFERROR(VLOOKUP(C1711,Translation!$A:$C,3,FALSE),C1711)","v":"ASSURANCE DE PORTEFEUILLE"},{"$f":"IFERROR(VLOOKUP(D1711,Translation!$A:$C,3,FALSE),D1711)","v":">= 680 < 700"},{"$f":"IFERROR(VLOOKUP(E1711,Translation!$A:$C,3,FALSE),E1711)","v":6.9748258860892083},{"$f":"IFERROR(VLOOKUP(F1711,Translation!$A:$C,3,FALSE),F1711)","v":"Prêts hypothécaires assurés au cours de la période selon le pointage de crédit à l’initiation (%)"},{"$f":"IFERROR(VLOOKUP(G1711,Translation!$A:$C,3,FALSE),G1711)","v":"7.0"},{"$f":"IFERROR(VLOOKUP(H1711,Translation!$A:$C,3,FALSE),H1711)","v":" >= 680 < 700"}]
[13,"Q4 2016","ASSURANCE DE PORTEFEUILLE",">= 680 < 700",5.3077903417961716,"Prêts hypothécaires assurés au cours de la période selon le pointage de crédit à l’initiation (%)","5.3"," >= 680 < 700",{"$f":"IFERROR(VLOOKUP(A1712,Translation!$A:$C,3,FALSE),A1712)","v":13},{"$f":"IFERROR(VLOOKUP(B1712,Translation!$A:$C,3,FALSE),B1712)","v":"Q4 2016"},{"$f":"IFERROR(VLOOKUP(C1712,Translation!$A:$C,3,FALSE),C1712)","v":"ASSURANCE DE PORTEFEUILLE"},{"$f":"IFERROR(VLOOKUP(D1712,Translation!$A:$C,3,FALSE),D1712)","v":">= 680 < 700"},{"$f":"IFERROR(VLOOKUP(E1712,Translation!$A:$C,3,FALSE),E1712)","v":5.3077903417961716},{"$f":"IFERROR(VLOOKUP(F1712,Translation!$A:$C,3,FALSE),F1712)","v":"Prêts hypothécaires assurés au cours de la période selon le pointage de crédit à l’initiation (%)"},{"$f":"IFERROR(VLOOKUP(G1712,Translation!$A:$C,3,FALSE),G1712)","v":"5.3"},{"$f":"IFERROR(VLOOKUP(H1712,Translation!$A:$C,3,FALSE),H1712)","v":" >= 680 < 700"}]
[13,"T4 2017","ASSURANCE DE PORTEFEUILLE",">= 680 < 700",3.996002673289599,"Prêts hypothécaires assurés au cours de la période selon le pointage de crédit à l’initiation (%)","4.0"," >= 680 < 700",{"$f":"IFERROR(VLOOKUP(A1713,Translation!$A:$C,3,FALSE),A1713)","v":13},{"$f":"IFERROR(VLOOKUP(B1713,Translation!$A:$C,3,FALSE),B1713)","v":"T4 2017"},{"$f":"IFERROR(VLOOKUP(C1713,Translation!$A:$C,3,FALSE),C1713)","v":"ASSURANCE DE PORTEFEUILLE"},{"$f":"IFERROR(VLOOKUP(D1713,Translation!$A:$C,3,FALSE),D1713)","v":">= 680 < 700"},{"$f":"IFERROR(VLOOKUP(E1713,Translation!$A:$C,3,FALSE),E1713)","v":3.996002673289599},{"$f":"IFERROR(VLOOKUP(F1713,Translation!$A:$C,3,FALSE),F1713)","v":"Prêts hypothécaires assurés au cours de la période selon le pointage de crédit à l’initiation (%)"},{"$f":"IFERROR(VLOOKUP(G1713,Translation!$A:$C,3,FALSE),G1713)","v":"4.0"},{"$f":"IFERROR(VLOOKUP(H1713,Translation!$A:$C,3,FALSE),H1713)","v":" >= 680 < 700"}]
[13,"T1 2017","ASSURANCE DE PORTEFEUILLE",">= 700 < 750",27.218454846385473,"Prêts hypothécaires assurés au cours de la période selon le pointage de crédit à l’initiation (%)","27.2"," >= 700 < 750",{"$f":"IFERROR(VLOOKUP(A1714,Translation!$A:$C,3,FALSE),A1714)","v":13},{"$f":"IFERROR(VLOOKUP(B1714,Translation!$A:$C,3,FALSE),B1714)","v":"T1 2017"},{"$f":"IFERROR(VLOOKUP(C1714,Translation!$A:$C,3,FALSE),C1714)","v":"ASSURANCE DE PORTEFEUILLE"},{"$f":"IFERROR(VLOOKUP(D1714,Translation!$A:$C,3,FALSE),D1714)","v":">= 700 < 750"},{"$f":"IFERROR(VLOOKUP(E1714,Translation!$A:$C,3,FALSE),E1714)","v":27.218454846385473},{"$f":"IFERROR(VLOOKUP(F1714,Translation!$A:$C,3,FALSE),F1714)","v":"Prêts hypothécaires assurés au cours de la période selon le pointage de crédit à l’initiation (%)"},{"$f":"IFERROR(VLOOKUP(G1714,Translation!$A:$C,3,FALSE),G1714)","v":"27.2"},{"$f":"IFERROR(VLOOKUP(H1714,Translation!$A:$C,3,FALSE),H1714)","v":" >= 700 < 750"}]
[13,"T1 2018","ASSURANCE DE PORTEFEUILLE",">= 700 < 750",18.015462657670238,"Prêts hypothécaires assurés au cours de la période selon le pointage de crédit à l’initiation (%)","18.0"," >= 700 < 750",{"$f":"IFERROR(VLOOKUP(A1715,Translation!$A:$C,3,FALSE),A1715)","v":13},{"$f":"IFERROR(VLOOKUP(B1715,Translation!$A:$C,3,FALSE),B1715)","v":"T1 2018"},{"$f":"IFERROR(VLOOKUP(C1715,Translation!$A:$C,3,FALSE),C1715)","v":"ASSURANCE DE PORTEFEUILLE"},{"$f":"IFERROR(VLOOKUP(D1715,Translation!$A:$C,3,FALSE),D1715)","v":">= 700 < 750"},{"$f":"IFERROR(VLOOKUP(E1715,Translation!$A:$C,3,FALSE),E1715)","v":18.015462657670238},{"$f":"IFERROR(VLOOKUP(F1715,Translation!$A:$C,3,FALSE),F1715)","v":"Prêts hypothécaires assurés au cours de la période selon le pointage de crédit à l’initiation (%)"},{"$f":"IFERROR(VLOOKUP(G1715,Translation!$A:$C,3,FALSE),G1715)","v":"18.0"},{"$f":"IFERROR(VLOOKUP(H1715,Translation!$A:$C,3,FALSE),H1715)","v":" >= 700 < 750"}]
[13,"Q2 2016","ASSURANCE DE PORTEFEUILLE",">= 700 < 750",27.5006444767779,"Prêts hypothécaires assurés au cours de la période selon le pointage de crédit à l’initiation (%)","27.5"," >= 700 < 750",{"$f":"IFERROR(VLOOKUP(A1716,Translation!$A:$C,3,FALSE),A1716)","v":13},{"$f":"IFERROR(VLOOKUP(B1716,Translation!$A:$C,3,FALSE),B1716)","v":"Q2 2016"},{"$f":"IFERROR(VLOOKUP(C1716,Translation!$A:$C,3,FALSE),C1716)","v":"ASSURANCE DE PORTEFEUILLE"},{"$f":"IFERROR(VLOOKUP(D1716,Translation!$A:$C,3,FALSE),D1716)","v":">= 700 < 750"},{"$f":"IFERROR(VLOOKUP(E1716,Translation!$A:$C,3,FALSE),E1716)","v":27.5006444767779},{"$f":"IFERROR(VLOOKUP(F1716,Translation!$A:$C,3,FALSE),F1716)","v":"Prêts hypothécaires assurés au cours de la période selon le pointage de crédit à l’initiation (%)"},{"$f":"IFERROR(VLOOKUP(G1716,Translation!$A:$C,3,FALSE),G1716)","v":"27.5"},{"$f":"IFERROR(VLOOKUP(H1716,Translation!$A:$C,3,FALSE),H1716)","v":" >= 700 < 750"}]
[13,"T2 2017","ASSURANCE DE PORTEFEUILLE",">= 700 < 750",21.726234969170211,"Prêts hypothécaires assurés au cours de la période selon le pointage de crédit à l’initiation (%)","21.7"," >= 700 < 750",{"$f":"IFERROR(VLOOKUP(A1717,Translation!$A:$C,3,FALSE),A1717)","v":13},{"$f":"IFERROR(VLOOKUP(B1717,Translation!$A:$C,3,FALSE),B1717)","v":"T2 2017"},{"$f":"IFERROR(VLOOKUP(C1717,Translation!$A:$C,3,FALSE),C1717)","v":"ASSURANCE DE PORTEFEUILLE"},{"$f":"IFERROR(VLOOKUP(D1717,Translation!$A:$C,3,FALSE),D1717)","v":">= 700 < 750"},{"$f":"IFERROR(VLOOKUP(E1717,Translation!$A:$C,3,FALSE),E1717)","v":21.726234969170211},{"$f":"IFERROR(VLOOKUP(F1717,Translation!$A:$C,3,FALSE),F1717)","v":"Prêts hypothécaires assurés au cours de la période selon le pointage de crédit à l’initiation (%)"},{"$f":"IFERROR(VLOOKUP(G1717,Translation!$A:$C,3,FALSE),G1717)","v":"21.7"},{"$f":"IFERROR(VLOOKUP(H1717,Translation!$A:$C,3,FALSE),H1717)","v":" >= 700 < 750"}]
[13,"Q3 2016","ASSURANCE DE PORTEFEUILLE",">= 700 < 750",28.938739778437593,"Prêts hypothécaires assurés au cours de la période selon le pointage de crédit à l’initiation (%)","28.9"," >= 700 < 750",{"$f":"IFERROR(VLOOKUP(A1718,Translation!$A:$C,3,FALSE),A1718)","v":13},{"$f":"IFERROR(VLOOKUP(B1718,Translation!$A:$C,3,FALSE),B1718)","v":"Q3 2016"},{"$f":"IFERROR(VLOOKUP(C1718,Translation!$A:$C,3,FALSE),C1718)","v":"ASSURANCE DE PORTEFEUILLE"},{"$f":"IFERROR(VLOOKUP(D1718,Translation!$A:$C,3,FALSE),D1718)","v":">= 700 < 750"},{"$f":"IFERROR(VLOOKUP(E1718,Translation!$A:$C,3,FALSE),E1718)","v":28.938739778437593},{"$f":"IFERROR(VLOOKUP(F1718,Translation!$A:$C,3,FALSE),F1718)","v":"Prêts hypothécaires assurés au cours de la période selon le pointage de crédit à l’initiation (%)"},{"$f":"IFERROR(VLOOKUP(G1718,Translation!$A:$C,3,FALSE),G1718)","v":"28.9"},{"$f":"IFERROR(VLOOKUP(H1718,Translation!$A:$C,3,FALSE),H1718)","v":" >= 700 < 750"}]
[13,"T3 2017","ASSURANCE DE PORTEFEUILLE",">= 700 < 750",28.62936012965524,"Prêts hypothécaires assurés au cours de la période selon le pointage de crédit à l’initiation (%)","28.6"," >= 700 < 750",{"$f":"IFERROR(VLOOKUP(A1719,Translation!$A:$C,3,FALSE),A1719)","v":13},{"$f":"IFERROR(VLOOKUP(B1719,Translation!$A:$C,3,FALSE),B1719)","v":"T3 2017"},{"$f":"IFERROR(VLOOKUP(C1719,Translation!$A:$C,3,FALSE),C1719)","v":"ASSURANCE DE PORTEFEUILLE"},{"$f":"IFERROR(VLOOKUP(D1719,Translation!$A:$C,3,FALSE),D1719)","v":">= 700 < 750"},{"$f":"IFERROR(VLOOKUP(E1719,Translation!$A:$C,3,FALSE),E1719)","v":28.62936012965524},{"$f":"IFERROR(VLOOKUP(F1719,Translation!$A:$C,3,FALSE),F1719)","v":"Prêts hypothécaires assurés au cours de la période selon le pointage de crédit à l’initiation (%)"},{"$f":"IFERROR(VLOOKUP(G1719,Translation!$A:$C,3,FALSE),G1719)","v":"28.6"},{"$f":"IFERROR(VLOOKUP(H1719,Translation!$A:$C,3,FALSE),H1719)","v":" >= 700 < 750"}]
[13,"Q4 2016","ASSURANCE DE PORTEFEUILLE",">= 700 < 750",24.598466097585124,"Prêts hypothécaires assurés au cours de la période selon le pointage de crédit à l’initiation (%)","24.6"," >= 700 < 750",{"$f":"IFERROR(VLOOKUP(A1720,Translation!$A:$C,3,FALSE),A1720)","v":13},{"$f":"IFERROR(VLOOKUP(B1720,Translation!$A:$C,3,FALSE),B1720)","v":"Q4 2016"},{"$f":"IFERROR(VLOOKUP(C1720,Translation!$A:$C,3,FALSE),C1720)","v":"ASSURANCE DE PORTEFEUILLE"},{"$f":"IFERROR(VLOOKUP(D1720,Translation!$A:$C,3,FALSE),D1720)","v":">= 700 < 750"},{"$f":"IFERROR(VLOOKUP(E1720,Translation!$A:$C,3,FALSE),E1720)","v":24.598466097585124},{"$f":"IFERROR(VLOOKUP(F1720,Translation!$A:$C,3,FALSE),F1720)","v":"Prêts hypothécaires assurés au cours de la période selon le pointage de crédit à l’initiation (%)"},{"$f":"IFERROR(VLOOKUP(G1720,Translation!$A:$C,3,FALSE),G1720)","v":"24.6"},{"$f":"IFERROR(VLOOKUP(H1720,Translation!$A:$C,3,FALSE),H1720)","v":" >= 700 < 750"}]
[13,"T4 2017","ASSURANCE DE PORTEFEUILLE",">= 700 < 750",19.263441322327036,"Prêts hypothécaires assurés au cours de la période selon le pointage de crédit à l’initiation (%)","19.3"," >= 700 < 750",{"$f":"IFERROR(VLOOKUP(A1721,Translation!$A:$C,3,FALSE),A1721)","v":13},{"$f":"IFERROR(VLOOKUP(B1721,Translation!$A:$C,3,FALSE),B1721)","v":"T4 2017"},{"$f":"IFERROR(VLOOKUP(C1721,Translation!$A:$C,3,FALSE),C1721)","v":"ASSURANCE DE PORTEFEUILLE"},{"$f":"IFERROR(VLOOKUP(D1721,Translation!$A:$C,3,FALSE),D1721)","v":">= 700 < 750"},{"$f":"IFERROR(VLOOKUP(E1721,Translation!$A:$C,3,FALSE),E1721)","v":19.263441322327036},{"$f":"IFERROR(VLOOKUP(F1721,Translation!$A:$C,3,FALSE),F1721)","v":"Prêts hypothécaires assurés au cours de la période selon le pointage de crédit à l’initiation (%)"},{"$f":"IFERROR(VLOOKUP(G1721,Translation!$A:$C,3,FALSE),G1721)","v":"19.3"},{"$f":"IFERROR(VLOOKUP(H1721,Translation!$A:$C,3,FALSE),H1721)","v":" >= 700 < 750"}]
[13,"T1 2017","ASSURANCE DE PORTEFEUILLE",">= 750 < 780",27.159804942451295,"Prêts hypothécaires assurés au cours de la période selon le pointage de crédit à l’initiation (%)","27.2"," >= 750 < 780",{"$f":"IFERROR(VLOOKUP(A1722,Translation!$A:$C,3,FALSE),A1722)","v":13},{"$f":"IFERROR(VLOOKUP(B1722,Translation!$A:$C,3,FALSE),B1722)","v":"T1 2017"},{"$f":"IFERROR(VLOOKUP(C1722,Translation!$A:$C,3,FALSE),C1722)","v":"ASSURANCE DE PORTEFEUILLE"},{"$f":"IFERROR(VLOOKUP(D1722,Translation!$A:$C,3,FALSE),D1722)","v":">= 750 < 780"},{"$f":"IFERROR(VLOOKUP(E1722,Translation!$A:$C,3,FALSE),E1722)","v":27.159804942451295},{"$f":"IFERROR(VLOOKUP(F1722,Translation!$A:$C,3,FALSE),F1722)","v":"Prêts hypothécaires assurés au cours de la période selon le pointage de crédit à l’initiation (%)"},{"$f":"IFERROR(VLOOKUP(G1722,Translation!$A:$C,3,FALSE),G1722)","v":"27.2"},{"$f":"IFERROR(VLOOKUP(H1722,Translation!$A:$C,3,FALSE),H1722)","v":" >= 750 < 780"}]
[13,"T1 2018","ASSURANCE DE PORTEFEUILLE",">= 750 < 780",25.933874378709689,"Prêts hypothécaires assurés au cours de la période selon le pointage de crédit à l’initiation (%)","25.9"," >= 750 < 780",{"$f":"IFERROR(VLOOKUP(A1723,Translation!$A:$C,3,FALSE),A1723)","v":13},{"$f":"IFERROR(VLOOKUP(B1723,Translation!$A:$C,3,FALSE),B1723)","v":"T1 2018"},{"$f":"IFERROR(VLOOKUP(C1723,Translation!$A:$C,3,FALSE),C1723)","v":"ASSURANCE DE PORTEFEUILLE"},{"$f":"IFERROR(VLOOKUP(D1723,Translation!$A:$C,3,FALSE),D1723)","v":">= 750 < 780"},{"$f":"IFERROR(VLOOKUP(E1723,Translation!$A:$C,3,FALSE),E1723)","v":25.933874378709689},{"$f":"IFERROR(VLOOKUP(F1723,Translation!$A:$C,3,FALSE),F1723)","v":"Prêts hypothécaires assurés au cours de la période selon le pointage de crédit à l’initiation (%)"},{"$f":"IFERROR(VLOOKUP(G1723,Translation!$A:$C,3,FALSE),G1723)","v":"25.9"},{"$f":"IFERROR(VLOOKUP(H1723,Translation!$A:$C,3,FALSE),H1723)","v":" >= 750 < 780"}]
[13,"Q2 2016","ASSURANCE DE PORTEFEUILLE",">= 750 < 780",27.371062339830544,"Prêts hypothécaires assurés au cours de la période selon le pointage de crédit à l’initiation (%)","27.4"," >= 750 < 780",{"$f":"IFERROR(VLOOKUP(A1724,Translation!$A:$C,3,FALSE),A1724)","v":13},{"$f":"IFERROR(VLOOKUP(B1724,Translation!$A:$C,3,FALSE),B1724)","v":"Q2 2016"},{"$f":"IFERROR(VLOOKUP(C1724,Translation!$A:$C,3,FALSE),C1724)","v":"ASSURANCE DE PORTEFEUILLE"},{"$f":"IFERROR(VLOOKUP(D1724,Translation!$A:$C,3,FALSE),D1724)","v":">= 750 < 780"},{"$f":"IFERROR(VLOOKUP(E1724,Translation!$A:$C,3,FALSE),E1724)","v":27.371062339830544},{"$f":"IFERROR(VLOOKUP(F1724,Translation!$A:$C,3,FALSE),F1724)","v":"Prêts hypothécaires assurés au cours de la période selon le pointage de crédit à l’initiation (%)"},{"$f":"IFERROR(VLOOKUP(G1724,Translation!$A:$C,3,FALSE),G1724)","v":"27.4"},{"$f":"IFERROR(VLOOKUP(H1724,Translation!$A:$C,3,FALSE),H1724)","v":" >= 750 < 780"}]
[13,"T2 2017","ASSURANCE DE PORTEFEUILLE",">= 750 < 780",20.612289336849408,"Prêts hypothécaires assurés au cours de la période selon le pointage de crédit à l’initiation (%)","20.6"," >= 750 < 780",{"$f":"IFERROR(VLOOKUP(A1725,Translation!$A:$C,3,FALSE),A1725)","v":13},{"$f":"IFERROR(VLOOKUP(B1725,Translation!$A:$C,3,FALSE),B1725)","v":"T2 2017"},{"$f":"IFERROR(VLOOKUP(C1725,Translation!$A:$C,3,FALSE),C1725)","v":"ASSURANCE DE PORTEFEUILLE"},{"$f":"IFERROR(VLOOKUP(D1725,Translation!$A:$C,3,FALSE),D1725)","v":">= 750 < 780"},{"$f":"IFERROR(VLOOKUP(E1725,Translation!$A:$C,3,FALSE),E1725)","v":20.612289336849408},{"$f":"IFERROR(VLOOKUP(F1725,Translation!$A:$C,3,FALSE),F1725)","v":"Prêts hypothécaires assurés au cours de la période selon le pointage de crédit à l’initiation (%)"},{"$f":"IFERROR(VLOOKUP(G1725,Translation!$A:$C,3,FALSE),G1725)","v":"20.6"},{"$f":"IFERROR(VLOOKUP(H1725,Translation!$A:$C,3,FALSE),H1725)","v":" >= 750 < 780"}]
[13,"Q3 2016","ASSURANCE DE PORTEFEUILLE",">= 750 < 780",27.181909518026966,"Prêts hypothécaires assurés au cours de la période selon le pointage de crédit à l’initiation (%)","27.2"," >= 750 < 780",{"$f":"IFERROR(VLOOKUP(A1726,Translation!$A:$C,3,FALSE),A1726)","v":13},{"$f":"IFERROR(VLOOKUP(B1726,Translation!$A:$C,3,FALSE),B1726)","v":"Q3 2016"},{"$f":"IFERROR(VLOOKUP(C1726,Translation!$A:$C,3,FALSE),C1726)","v":"ASSURANCE DE PORTEFEUILLE"},{"$f":"IFERROR(VLOOKUP(D1726,Translation!$A:$C,3,FALSE),D1726)","v":">= 750 < 780"},{"$f":"IFERROR(VLOOKUP(E1726,Translation!$A:$C,3,FALSE),E1726)","v":27.181909518026966},{"$f":"IFERROR(VLOOKUP(F1726,Translation!$A:$C,3,FALSE),F1726)","v":"Prêts hypothécaires assurés au cours de la période selon le pointage de crédit à l’initiation (%)"},{"$f":"IFERROR(VLOOKUP(G1726,Translation!$A:$C,3,FALSE),G1726)","v":"27.2"},{"$f":"IFERROR(VLOOKUP(H1726,Translation!$A:$C,3,FALSE),H1726)","v":" >= 750 < 780"}]
[13,"T3 2017","ASSURANCE DE PORTEFEUILLE",">= 750 < 780",26.186316634233201,"Prêts hypothécaires assurés au cours de la période selon le pointage de crédit à l’initiation (%)","26.2"," >= 750 < 780",{"$f":"IFERROR(VLOOKUP(A1727,Translation!$A:$C,3,FALSE),A1727)","v":13},{"$f":"IFERROR(VLOOKUP(B1727,Translation!$A:$C,3,FALSE),B1727)","v":"T3 2017"},{"$f":"IFERROR(VLOOKUP(C1727,Translation!$A:$C,3,FALSE),C1727)","v":"ASSURANCE DE PORTEFEUILLE"},{"$f":"IFERROR(VLOOKUP(D1727,Translation!$A:$C,3,FALSE),D1727)","v":">= 750 < 780"},{"$f":"IFERROR(VLOOKUP(E1727,Translation!$A:$C,3,FALSE),E1727)","v":26.186316634233201},{"$f":"IFERROR(VLOOKUP(F1727,Translation!$A:$C,3,FALSE),F1727)","v":"Prêts hypothécaires assurés au cours de la période selon le pointage de crédit à l’initiation (%)"},{"$f":"IFERROR(VLOOKUP(G1727,Translation!$A:$C,3,FALSE),G1727)","v":"26.2"},{"$f":"IFERROR(VLOOKUP(H1727,Translation!$A:$C,3,FALSE),H1727)","v":" >= 750 < 780"}]
[13,"Q4 2016","ASSURANCE DE PORTEFEUILLE",">= 750 < 780",26.964198942998017,"Prêts hypothécaires assurés au cours de la période selon le pointage de crédit à l’initiation (%)","27.0"," >= 750 < 780",{"$f":"IFERROR(VLOOKUP(A1728,Translation!$A:$C,3,FALSE),A1728)","v":13},{"$f":"IFERROR(VLOOKUP(B1728,Translation!$A:$C,3,FALSE),B1728)","v":"Q4 2016"},{"$f":"IFERROR(VLOOKUP(C1728,Translation!$A:$C,3,FALSE),C1728)","v":"ASSURANCE DE PORTEFEUILLE"},{"$f":"IFERROR(VLOOKUP(D1728,Translation!$A:$C,3,FALSE),D1728)","v":">= 750 < 780"},{"$f":"IFERROR(VLOOKUP(E1728,Translation!$A:$C,3,FALSE),E1728)","v":26.964198942998017},{"$f":"IFERROR(VLOOKUP(F1728,Translation!$A:$C,3,FALSE),F1728)","v":"Prêts hypothécaires assurés au cours de la période selon le pointage de crédit à l’initiation (%)"},{"$f":"IFERROR(VLOOKUP(G1728,Translation!$A:$C,3,FALSE),G1728)","v":"27.0"},{"$f":"IFERROR(VLOOKUP(H1728,Translation!$A:$C,3,FALSE),H1728)","v":" >= 750 < 780"}]
[13,"T4 2017","ASSURANCE DE PORTEFEUILLE",">= 750 < 780",25.93235457675976,"Prêts hypothécaires assurés au cours de la période selon le pointage de crédit à l’initiation (%)","25.9"," >= 750 < 780",{"$f":"IFERROR(VLOOKUP(A1729,Translation!$A:$C,3,FALSE),A1729)","v":13},{"$f":"IFERROR(VLOOKUP(B1729,Translation!$A:$C,3,FALSE),B1729)","v":"T4 2017"},{"$f":"IFERROR(VLOOKUP(C1729,Translation!$A:$C,3,FALSE),C1729)","v":"ASSURANCE DE PORTEFEUILLE"},{"$f":"IFERROR(VLOOKUP(D1729,Translation!$A:$C,3,FALSE),D1729)","v":">= 750 < 780"},{"$f":"IFERROR(VLOOKUP(E1729,Translation!$A:$C,3,FALSE),E1729)","v":25.93235457675976},{"$f":"IFERROR(VLOOKUP(F1729,Translation!$A:$C,3,FALSE),F1729)","v":"Prêts hypothécaires assurés au cours de la période selon le pointage de crédit à l’initiation (%)"},{"$f":"IFERROR(VLOOKUP(G1729,Translation!$A:$C,3,FALSE),G1729)","v":"25.9"},{"$f":"IFERROR(VLOOKUP(H1729,Translation!$A:$C,3,FALSE),H1729)","v":" >= 750 < 780"}]
[13,"T1 2017","ASSURANCE DE PORTEFEUILLE",">= 780",34.158343442244622,"Prêts hypothécaires assurés au cours de la période selon le pointage de crédit à l’initiation (%)","34.2"," >= 780",{"$f":"IFERROR(VLOOKUP(A1730,Translation!$A:$C,3,FALSE),A1730)","v":13},{"$f":"IFERROR(VLOOKUP(B1730,Translation!$A:$C,3,FALSE),B1730)","v":"T1 2017"},{"$f":"IFERROR(VLOOKUP(C1730,Translation!$A:$C,3,FALSE),C1730)","v":"ASSURANCE DE PORTEFEUILLE"},{"$f":"IFERROR(VLOOKUP(D1730,Translation!$A:$C,3,FALSE),D1730)","v":">= 780"},{"$f":"IFERROR(VLOOKUP(E1730,Translation!$A:$C,3,FALSE),E1730)","v":34.158343442244622},{"$f":"IFERROR(VLOOKUP(F1730,Translation!$A:$C,3,FALSE),F1730)","v":"Prêts hypothécaires assurés au cours de la période selon le pointage de crédit à l’initiation (%)"},{"$f":"IFERROR(VLOOKUP(G1730,Translation!$A:$C,3,FALSE),G1730)","v":"34.2"},{"$f":"IFERROR(VLOOKUP(H1730,Translation!$A:$C,3,FALSE),H1730)","v":" >= 780"}]
[13,"T1 2018","ASSURANCE DE PORTEFEUILLE",">= 780",51.024021131586288,"Prêts hypothécaires assurés au cours de la période selon le pointage de crédit à l’initiation (%)","51.0"," >= 780",{"$f":"IFERROR(VLOOKUP(A1731,Translation!$A:$C,3,FALSE),A1731)","v":13},{"$f":"IFERROR(VLOOKUP(B1731,Translation!$A:$C,3,FALSE),B1731)","v":"T1 2018"},{"$f":"IFERROR(VLOOKUP(C1731,Translation!$A:$C,3,FALSE),C1731)","v":"ASSURANCE DE PORTEFEUILLE"},{"$f":"IFERROR(VLOOKUP(D1731,Translation!$A:$C,3,FALSE),D1731)","v":">= 780"},{"$f":"IFERROR(VLOOKUP(E1731,Translation!$A:$C,3,FALSE),E1731)","v":51.024021131586288},{"$f":"IFERROR(VLOOKUP(F1731,Translation!$A:$C,3,FALSE),F1731)","v":"Prêts hypothécaires assurés au cours de la période selon le pointage de crédit à l’initiation (%)"},{"$f":"IFERROR(VLOOKUP(G1731,Translation!$A:$C,3,FALSE),G1731)","v":"51.0"},{"$f":"IFERROR(VLOOKUP(H1731,Translation!$A:$C,3,FALSE),H1731)","v":" >= 780"}]
[13,"Q2 2016","ASSURANCE DE PORTEFEUILLE",">= 780",33.121361932561058,"Prêts hypothécaires assurés au cours de la période selon le pointage de crédit à l’initiation (%)","33.1"," >= 780",{"$f":"IFERROR(VLOOKUP(A1732,Translation!$A:$C,3,FALSE),A1732)","v":13},{"$f":"IFERROR(VLOOKUP(B1732,Translation!$A:$C,3,FALSE),B1732)","v":"Q2 2016"},{"$f":"IFERROR(VLOOKUP(C1732,Translation!$A:$C,3,FALSE),C1732)","v":"ASSURANCE DE PORTEFEUILLE"},{"$f":"IFERROR(VLOOKUP(D1732,Translation!$A:$C,3,FALSE),D1732)","v":">= 780"},{"$f":"IFERROR(VLOOKUP(E1732,Translation!$A:$C,3,FALSE),E1732)","v":33.121361932561058},{"$f":"IFERROR(VLOOKUP(F1732,Translation!$A:$C,3,FALSE),F1732)","v":"Prêts hypothécaires assurés au cours de la période selon le pointage de crédit à l’initiation (%)"},{"$f":"IFERROR(VLOOKUP(G1732,Translation!$A:$C,3,FALSE),G1732)","v":"33.1"},{"$f":"IFERROR(VLOOKUP(H1732,Translation!$A:$C,3,FALSE),H1732)","v":" >= 780"}]
[13,"T2 2017","ASSURANCE DE PORTEFEUILLE",">= 780",32.783960931209045,"Prêts hypothécaires assurés au cours de la période selon le pointage de crédit à l’initiation (%)","32.8"," >= 780",{"$f":"IFERROR(VLOOKUP(A1733,Translation!$A:$C,3,FALSE),A1733)","v":13},{"$f":"IFERROR(VLOOKUP(B1733,Translation!$A:$C,3,FALSE),B1733)","v":"T2 2017"},{"$f":"IFERROR(VLOOKUP(C1733,Translation!$A:$C,3,FALSE),C1733)","v":"ASSURANCE DE PORTEFEUILLE"},{"$f":"IFERROR(VLOOKUP(D1733,Translation!$A:$C,3,FALSE),D1733)","v":">= 780"},{"$f":"IFERROR(VLOOKUP(E1733,Translation!$A:$C,3,FALSE),E1733)","v":32.783960931209045},{"$f":"IFERROR(VLOOKUP(F1733,Translation!$A:$C,3,FALSE),F1733)","v":"Prêts hypothécaires assurés au cours de la période selon le pointage de crédit à l’initiation (%)"},{"$f":"IFERROR(VLOOKUP(G1733,Translation!$A:$C,3,FALSE),G1733)","v":"32.8"},{"$f":"IFERROR(VLOOKUP(H1733,Translation!$A:$C,3,FALSE),H1733)","v":" >= 780"}]
[13,"Q3 2016","ASSURANCE DE PORTEFEUILLE",">= 780",29.329231519425047,"Prêts hypothécaires assurés au cours de la période selon le pointage de crédit à l’initiation (%)","29.3"," >= 780",{"$f":"IFERROR(VLOOKUP(A1734,Translation!$A:$C,3,FALSE),A1734)","v":13},{"$f":"IFERROR(VLOOKUP(B1734,Translation!$A:$C,3,FALSE),B1734)","v":"Q3 2016"},{"$f":"IFERROR(VLOOKUP(C1734,Translation!$A:$C,3,FALSE),C1734)","v":"ASSURANCE DE PORTEFEUILLE"},{"$f":"IFERROR(VLOOKUP(D1734,Translation!$A:$C,3,FALSE),D1734)","v":">= 780"},{"$f":"IFERROR(VLOOKUP(E1734,Translation!$A:$C,3,FALSE),E1734)","v":29.329231519425047},{"$f":"IFERROR(VLOOKUP(F1734,Translation!$A:$C,3,FALSE),F1734)","v":"Prêts hypothécaires assurés au cours de la période selon le pointage de crédit à l’initiation (%)"},{"$f":"IFERROR(VLOOKUP(G1734,Translation!$A:$C,3,FALSE),G1734)","v":"29.3"},{"$f":"IFERROR(VLOOKUP(H1734,Translation!$A:$C,3,FALSE),H1734)","v":" >= 780"}]
[13,"T3 2017","ASSURANCE DE PORTEFEUILLE",">= 780",30.36485795190281,"Prêts hypothécaires assurés au cours de la période selon le pointage de crédit à l’initiation (%)","30.4"," >= 780",{"$f":"IFERROR(VLOOKUP(A1735,Translation!$A:$C,3,FALSE),A1735)","v":13},{"$f":"IFERROR(VLOOKUP(B1735,Translation!$A:$C,3,FALSE),B1735)","v":"T3 2017"},{"$f":"IFERROR(VLOOKUP(C1735,Translation!$A:$C,3,FALSE),C1735)","v":"ASSURANCE DE PORTEFEUILLE"},{"$f":"IFERROR(VLOOKUP(D1735,Translation!$A:$C,3,FALSE),D1735)","v":">= 780"},{"$f":"IFERROR(VLOOKUP(E1735,Translation!$A:$C,3,FALSE),E1735)","v":30.36485795190281},{"$f":"IFERROR(VLOOKUP(F1735,Translation!$A:$C,3,FALSE),F1735)","v":"Prêts hypothécaires assurés au cours de la période selon le pointage de crédit à l’initiation (%)"},{"$f":"IFERROR(VLOOKUP(G1735,Translation!$A:$C,3,FALSE),G1735)","v":"30.4"},{"$f":"IFERROR(VLOOKUP(H1735,Translation!$A:$C,3,FALSE),H1735)","v":" >= 780"}]
[13,"Q4 2016","ASSURANCE DE PORTEFEUILLE",">= 780",36.624137685110441,"Prêts hypothécaires assurés au cours de la période selon le pointage de crédit à l’initiation (%)","36.6"," >= 780",{"$f":"IFERROR(VLOOKUP(A1736,Translation!$A:$C,3,FALSE),A1736)","v":13},{"$f":"IFERROR(VLOOKUP(B1736,Translation!$A:$C,3,FALSE),B1736)","v":"Q4 2016"},{"$f":"IFERROR(VLOOKUP(C1736,Translation!$A:$C,3,FALSE),C1736)","v":"ASSURANCE DE PORTEFEUILLE"},{"$f":"IFERROR(VLOOKUP(D1736,Translation!$A:$C,3,FALSE),D1736)","v":">= 780"},{"$f":"IFERROR(VLOOKUP(E1736,Translation!$A:$C,3,FALSE),E1736)","v":36.624137685110441},{"$f":"IFERROR(VLOOKUP(F1736,Translation!$A:$C,3,FALSE),F1736)","v":"Prêts hypothécaires assurés au cours de la période selon le pointage de crédit à l’initiation (%)"},{"$f":"IFERROR(VLOOKUP(G1736,Translation!$A:$C,3,FALSE),G1736)","v":"36.6"},{"$f":"IFERROR(VLOOKUP(H1736,Translation!$A:$C,3,FALSE),H1736)","v":" >= 780"}]
[13,"T4 2017","ASSURANCE DE PORTEFEUILLE",">= 780",44.052183039057503,"Prêts hypothécaires assurés au cours de la période selon le pointage de crédit à l’initiation (%)","44.1"," >= 780",{"$f":"IFERROR(VLOOKUP(A1737,Translation!$A:$C,3,FALSE),A1737)","v":13},{"$f":"IFERROR(VLOOKUP(B1737,Translation!$A:$C,3,FALSE),B1737)","v":"T4 2017"},{"$f":"IFERROR(VLOOKUP(C1737,Translation!$A:$C,3,FALSE),C1737)","v":"ASSURANCE DE PORTEFEUILLE"},{"$f":"IFERROR(VLOOKUP(D1737,Translation!$A:$C,3,FALSE),D1737)","v":">= 780"},{"$f":"IFERROR(VLOOKUP(E1737,Translation!$A:$C,3,FALSE),E1737)","v":44.052183039057503},{"$f":"IFERROR(VLOOKUP(F1737,Translation!$A:$C,3,FALSE),F1737)","v":"Prêts hypothécaires assurés au cours de la période selon le pointage de crédit à l’initiation (%)"},{"$f":"IFERROR(VLOOKUP(G1737,Translation!$A:$C,3,FALSE),G1737)","v":"44.1"},{"$f":"IFERROR(VLOOKUP(H1737,Translation!$A:$C,3,FALSE),H1737)","v":" >= 780"}]
[13,"T1 2017","ASSURANCE DE PORTEFEUILLE","Pointage de crédit moyen à l'initiation ",754.4901839366355,"Prêts hypothécaires assurés au cours de la période selon le pointage de crédit à l’initiation (%)","754.5","Pointage de crédit moyen à l'initiation ",{"$f":"IFERROR(VLOOKUP(A1738,Translation!$A:$C,3,FALSE),A1738)","v":13},{"$f":"IFERROR(VLOOKUP(B1738,Translation!$A:$C,3,FALSE),B1738)","v":"T1 2017"},{"$f":"IFERROR(VLOOKUP(C1738,Translation!$A:$C,3,FALSE),C1738)","v":"ASSURANCE DE PORTEFEUILLE"},{"$f":"IFERROR(VLOOKUP(D1738,Translation!$A:$C,3,FALSE),D1738)","v":"Pointage de crédit moyen à l'initiation "},{"$f":"IFERROR(VLOOKUP(E1738,Translation!$A:$C,3,FALSE),E1738)","v":754.4901839366355},{"$f":"IFERROR(VLOOKUP(F1738,Translation!$A:$C,3,FALSE),F1738)","v":"Prêts hypothécaires assurés au cours de la période selon le pointage de crédit à l’initiation (%)"},{"$f":"IFERROR(VLOOKUP(G1738,Translation!$A:$C,3,FALSE),G1738)","v":"754.5"},{"$f":"IFERROR(VLOOKUP(H1738,Translation!$A:$C,3,FALSE),H1738)","v":"Pointage de crédit moyen à l'initiation "}]
[13,"T1 2018","ASSURANCE DE PORTEFEUILLE","Pointage de crédit moyen à l'initiation ",773.03476484701685,"Prêts hypothécaires assurés au cours de la période selon le pointage de crédit à l’initiation (%)","773.0","Pointage de crédit moyen à l'initiation ",{"$f":"IFERROR(VLOOKUP(A1739,Translation!$A:$C,3,FALSE),A1739)","v":13},{"$f":"IFERROR(VLOOKUP(B1739,Translation!$A:$C,3,FALSE),B1739)","v":"T1 2018"},{"$f":"IFERROR(VLOOKUP(C1739,Translation!$A:$C,3,FALSE),C1739)","v":"ASSURANCE DE PORTEFEUILLE"},{"$f":"IFERROR(VLOOKUP(D1739,Translation!$A:$C,3,FALSE),D1739)","v":"Pointage de crédit moyen à l'initiation "},{"$f":"IFERROR(VLOOKUP(E1739,Translation!$A:$C,3,FALSE),E1739)","v":773.03476484701685},{"$f":"IFERROR(VLOOKUP(F1739,Translation!$A:$C,3,FALSE),F1739)","v":"Prêts hypothécaires assurés au cours de la période selon le pointage de crédit à l’initiation (%)"},{"$f":"IFERROR(VLOOKUP(G1739,Translation!$A:$C,3,FALSE),G1739)","v":"773.0"},{"$f":"IFERROR(VLOOKUP(H1739,Translation!$A:$C,3,FALSE),H1739)","v":"Pointage de crédit moyen à l'initiation "}]
[13,"Q2 2016","ASSURANCE DE PORTEFEUILLE","Pointage de crédit moyen à l'initiation ",755.33027866054078,"Prêts hypothécaires assurés au cours de la période selon le pointage de crédit à l’initiation (%)","755.3","Pointage de crédit moyen à l'initiation ",{"$f":"IFERROR(VLOOKUP(A1740,Translation!$A:$C,3,FALSE),A1740)","v":13},{"$f":"IFERROR(VLOOKUP(B1740,Translation!$A:$C,3,FALSE),B1740)","v":"Q2 2016"},{"$f":"IFERROR(VLOOKUP(C1740,Translation!$A:$C,3,FALSE),C1740)","v":"ASSURANCE DE PORTEFEUILLE"},{"$f":"IFERROR(VLOOKUP(D1740,Translation!$A:$C,3,FALSE),D1740)","v":"Pointage de crédit moyen à l'initiation "},{"$f":"IFERROR(VLOOKUP(E1740,Translation!$A:$C,3,FALSE),E1740)","v":755.33027866054078},{"$f":"IFERROR(VLOOKUP(F1740,Translation!$A:$C,3,FALSE),F1740)","v":"Prêts hypothécaires assurés au cours de la période selon le pointage de crédit à l’initiation (%)"},{"$f":"IFERROR(VLOOKUP(G1740,Translation!$A:$C,3,FALSE),G1740)","v":"755.3"},{"$f":"IFERROR(VLOOKUP(H1740,Translation!$A:$C,3,FALSE),H1740)","v":"Pointage de crédit moyen à l'initiation "}]
[13,"T2 2017","ASSURANCE DE PORTEFEUILLE","Pointage de crédit moyen à l'initiation ",742.38339730150142,"Prêts hypothécaires assurés au cours de la période selon le pointage de crédit à l’initiation (%)","742.4","Pointage de crédit moyen à l'initiation ",{"$f":"IFERROR(VLOOKUP(A1741,Translation!$A:$C,3,FALSE),A1741)","v":13},{"$f":"IFERROR(VLOOKUP(B1741,Translation!$A:$C,3,FALSE),B1741)","v":"T2 2017"},{"$f":"IFERROR(VLOOKUP(C1741,Translation!$A:$C,3,FALSE),C1741)","v":"ASSURANCE DE PORTEFEUILLE"},{"$f":"IFERROR(VLOOKUP(D1741,Translation!$A:$C,3,FALSE),D1741)","v":"Pointage de crédit moyen à l'initiation "},{"$f":"IFERROR(VLOOKUP(E1741,Translation!$A:$C,3,FALSE),E1741)","v":742.38339730150142},{"$f":"IFERROR(VLOOKUP(F1741,Translation!$A:$C,3,FALSE),F1741)","v":"Prêts hypothécaires assurés au cours de la période selon le pointage de crédit à l’initiation (%)"},{"$f":"IFERROR(VLOOKUP(G1741,Translation!$A:$C,3,FALSE),G1741)","v":"742.4"},{"$f":"IFERROR(VLOOKUP(H1741,Translation!$A:$C,3,FALSE),H1741)","v":"Pointage de crédit moyen à l'initiation "}]
[13,"Q3 2016","ASSURANCE DE PORTEFEUILLE","Pointage de crédit moyen à l'initiation ",750.33040278119677,"Prêts hypothécaires assurés au cours de la période selon le pointage de crédit à l’initiation (%)","750.3","Pointage de crédit moyen à l'initiation ",{"$f":"IFERROR(VLOOKUP(A1742,Translation!$A:$C,3,FALSE),A1742)","v":13},{"$f":"IFERROR(VLOOKUP(B1742,Translation!$A:$C,3,FALSE),B1742)","v":"Q3 2016"},{"$f":"IFERROR(VLOOKUP(C1742,Translation!$A:$C,3,FALSE),C1742)","v":"ASSURANCE DE PORTEFEUILLE"},{"$f":"IFERROR(VLOOKUP(D1742,Translation!$A:$C,3,FALSE),D1742)","v":"Pointage de crédit moyen à l'initiation "},{"$f":"IFERROR(VLOOKUP(E1742,Translation!$A:$C,3,FALSE),E1742)","v":750.33040278119677},{"$f":"IFERROR(VLOOKUP(F1742,Translation!$A:$C,3,FALSE),F1742)","v":"Prêts hypothécaires assurés au cours de la période selon le pointage de crédit à l’initiation (%)"},{"$f":"IFERROR(VLOOKUP(G1742,Translation!$A:$C,3,FALSE),G1742)","v":"750.3"},{"$f":"IFERROR(VLOOKUP(H1742,Translation!$A:$C,3,FALSE),H1742)","v":"Pointage de crédit moyen à l'initiation "}]
[13,"T3 2017","ASSURANCE DE PORTEFEUILLE","Pointage de crédit moyen à l'initiation ",748.94126310317199,"Prêts hypothécaires assurés au cours de la période selon le pointage de crédit à l’initiation (%)","748.9","Pointage de crédit moyen à l'initiation ",{"$f":"IFERROR(VLOOKUP(A1743,Translation!$A:$C,3,FALSE),A1743)","v":13},{"$f":"IFERROR(VLOOKUP(B1743,Translation!$A:$C,3,FALSE),B1743)","v":"T3 2017"},{"$f":"IFERROR(VLOOKUP(C1743,Translation!$A:$C,3,FALSE),C1743)","v":"ASSURANCE DE PORTEFEUILLE"},{"$f":"IFERROR(VLOOKUP(D1743,Translation!$A:$C,3,FALSE),D1743)","v":"Pointage de crédit moyen à l'initiation "},{"$f":"IFERROR(VLOOKUP(E1743,Translation!$A:$C,3,FALSE),E1743)","v":748.94126310317199},{"$f":"IFERROR(VLOOKUP(F1743,Translation!$A:$C,3,FALSE),F1743)","v":"Prêts hypothécaires assurés au cours de la période selon le pointage de crédit à l’initiation (%)"},{"$f":"IFERROR(VLOOKUP(G1743,Translation!$A:$C,3,FALSE),G1743)","v":"748.9"},{"$f":"IFERROR(VLOOKUP(H1743,Translation!$A:$C,3,FALSE),H1743)","v":"Pointage de crédit moyen à l'initiation "}]
[13,"Q4 2016","ASSURANCE DE PORTEFEUILLE","Pointage de crédit moyen à l'initiation ",757.13145713492884,"Prêts hypothécaires assurés au cours de la période selon le pointage de crédit à l’initiation (%)","757.1","Pointage de crédit moyen à l'initiation ",{"$f":"IFERROR(VLOOKUP(A1744,Translation!$A:$C,3,FALSE),A1744)","v":13},{"$f":"IFERROR(VLOOKUP(B1744,Translation!$A:$C,3,FALSE),B1744)","v":"Q4 2016"},{"$f":"IFERROR(VLOOKUP(C1744,Translation!$A:$C,3,FALSE),C1744)","v":"ASSURANCE DE PORTEFEUILLE"},{"$f":"IFERROR(VLOOKUP(D1744,Translation!$A:$C,3,FALSE),D1744)","v":"Pointage de crédit moyen à l'initiation "},{"$f":"IFERROR(VLOOKUP(E1744,Translation!$A:$C,3,FALSE),E1744)","v":757.13145713492884},{"$f":"IFERROR(VLOOKUP(F1744,Translation!$A:$C,3,FALSE),F1744)","v":"Prêts hypothécaires assurés au cours de la période selon le pointage de crédit à l’initiation (%)"},{"$f":"IFERROR(VLOOKUP(G1744,Translation!$A:$C,3,FALSE),G1744)","v":"757.1"},{"$f":"IFERROR(VLOOKUP(H1744,Translation!$A:$C,3,FALSE),H1744)","v":"Pointage de crédit moyen à l'initiation "}]
[13,"T4 2017","ASSURANCE DE PORTEFEUILLE","Pointage de crédit moyen à l'initiation ",763.79017168742996,"Prêts hypothécaires assurés au cours de la période selon le pointage de crédit à l’initiation (%)","763.8","Pointage de crédit moyen à l'initiation ",{"$f":"IFERROR(VLOOKUP(A1745,Translation!$A:$C,3,FALSE),A1745)","v":13},{"$f":"IFERROR(VLOOKUP(B1745,Translation!$A:$C,3,FALSE),B1745)","v":"T4 2017"},{"$f":"IFERROR(VLOOKUP(C1745,Translation!$A:$C,3,FALSE),C1745)","v":"ASSURANCE DE PORTEFEUILLE"},{"$f":"IFERROR(VLOOKUP(D1745,Translation!$A:$C,3,FALSE),D1745)","v":"Pointage de crédit moyen à l'initiation "},{"$f":"IFERROR(VLOOKUP(E1745,Translation!$A:$C,3,FALSE),E1745)","v":763.79017168742996},{"$f":"IFERROR(VLOOKUP(F1745,Translation!$A:$C,3,FALSE),F1745)","v":"Prêts hypothécaires assurés au cours de la période selon le pointage de crédit à l’initiation (%)"},{"$f":"IFERROR(VLOOKUP(G1745,Translation!$A:$C,3,FALSE),G1745)","v":"763.8"},{"$f":"IFERROR(VLOOKUP(H1745,Translation!$A:$C,3,FALSE),H1745)","v":"Pointage de crédit moyen à l'initiation "}]
[13,"T1 2017","ASSURANCE DE PORTEFEUILLE","Terre-Neuve-et-Labrador",749.47256299396258,"Prêts hypothécaires assurés au cours de la période selon le pointage de crédit à l’initiation (%)","749.5","Terre-Neuve-et-Labrador",{"$f":"IFERROR(VLOOKUP(A1746,Translation!$A:$C,3,FALSE),A1746)","v":13},{"$f":"IFERROR(VLOOKUP(B1746,Translation!$A:$C,3,FALSE),B1746)","v":"T1 2017"},{"$f":"IFERROR(VLOOKUP(C1746,Translation!$A:$C,3,FALSE),C1746)","v":"ASSURANCE DE PORTEFEUILLE"},{"$f":"IFERROR(VLOOKUP(D1746,Translation!$A:$C,3,FALSE),D1746)","v":"Terre-Neuve-et-Labrador"},{"$f":"IFERROR(VLOOKUP(E1746,Translation!$A:$C,3,FALSE),E1746)","v":749.47256299396258},{"$f":"IFERROR(VLOOKUP(F1746,Translation!$A:$C,3,FALSE),F1746)","v":"Prêts hypothécaires assurés au cours de la période selon le pointage de crédit à l’initiation (%)"},{"$f":"IFERROR(VLOOKUP(G1746,Translation!$A:$C,3,FALSE),G1746)","v":"749.5"},{"$f":"IFERROR(VLOOKUP(H1746,Translation!$A:$C,3,FALSE),H1746)","v":"Terre-Neuve-et-Labrador"}]
[13,"T1 2017","ASSURANCE DE PORTEFEUILLE","Île-du-Prince-Édouard",726,"Prêts hypothécaires assurés au cours de la période selon le pointage de crédit à l’initiation (%)","726.0","Île-du-Prince-Édouard",{"$f":"IFERROR(VLOOKUP(A1747,Translation!$A:$C,3,FALSE),A1747)","v":13},{"$f":"IFERROR(VLOOKUP(B1747,Translation!$A:$C,3,FALSE),B1747)","v":"T1 2017"},{"$f":"IFERROR(VLOOKUP(C1747,Translation!$A:$C,3,FALSE),C1747)","v":"ASSURANCE DE PORTEFEUILLE"},{"$f":"IFERROR(VLOOKUP(D1747,Translation!$A:$C,3,FALSE),D1747)","v":"Île-du-Prince-Édouard"},{"$f":"IFERROR(VLOOKUP(E1747,Translation!$A:$C,3,FALSE),E1747)","v":726},{"$f":"IFERROR(VLOOKUP(F1747,Translation!$A:$C,3,FALSE),F1747)","v":"Prêts hypothécaires assurés au cours de la période selon le pointage de crédit à l’initiation (%)"},{"$f":"IFERROR(VLOOKUP(G1747,Translation!$A:$C,3,FALSE),G1747)","v":"726.0"},{"$f":"IFERROR(VLOOKUP(H1747,Translation!$A:$C,3,FALSE),H1747)","v":"Île-du-Prince-Édouard"}]
[13,"T1 2017","ASSURANCE DE PORTEFEUILLE","Nouvelle-Écosse",754.0904275621026,"Prêts hypothécaires assurés au cours de la période selon le pointage de crédit à l’initiation (%)","754.1","Nouvelle-Écosse",{"$f":"IFERROR(VLOOKUP(A1748,Translation!$A:$C,3,FALSE),A1748)","v":13},{"$f":"IFERROR(VLOOKUP(B1748,Translation!$A:$C,3,FALSE),B1748)","v":"T1 2017"},{"$f":"IFERROR(VLOOKUP(C1748,Translation!$A:$C,3,FALSE),C1748)","v":"ASSURANCE DE PORTEFEUILLE"},{"$f":"IFERROR(VLOOKUP(D1748,Translation!$A:$C,3,FALSE),D1748)","v":"Nouvelle-Écosse"},{"$f":"IFERROR(VLOOKUP(E1748,Translation!$A:$C,3,FALSE),E1748)","v":754.0904275621026},{"$f":"IFERROR(VLOOKUP(F1748,Translation!$A:$C,3,FALSE),F1748)","v":"Prêts hypothécaires assurés au cours de la période selon le pointage de crédit à l’initiation (%)"},{"$f":"IFERROR(VLOOKUP(G1748,Translation!$A:$C,3,FALSE),G1748)","v":"754.1"},{"$f":"IFERROR(VLOOKUP(H1748,Translation!$A:$C,3,FALSE),H1748)","v":"Nouvelle-Écosse"}]
[13,"T1 2017","ASSURANCE DE PORTEFEUILLE","Nouveau-Brunswick",770.03874289708256,"Prêts hypothécaires assurés au cours de la période selon le pointage de crédit à l’initiation (%)","770.0","Nouveau-Brunswick",{"$f":"IFERROR(VLOOKUP(A1749,Translation!$A:$C,3,FALSE),A1749)","v":13},{"$f":"IFERROR(VLOOKUP(B1749,Translation!$A:$C,3,FALSE),B1749)","v":"T1 2017"},{"$f":"IFERROR(VLOOKUP(C1749,Translation!$A:$C,3,FALSE),C1749)","v":"ASSURANCE DE PORTEFEUILLE"},{"$f":"IFERROR(VLOOKUP(D1749,Translation!$A:$C,3,FALSE),D1749)","v":"Nouveau-Brunswick"},{"$f":"IFERROR(VLOOKUP(E1749,Translation!$A:$C,3,FALSE),E1749)","v":770.03874289708256},{"$f":"IFERROR(VLOOKUP(F1749,Translation!$A:$C,3,FALSE),F1749)","v":"Prêts hypothécaires assurés au cours de la période selon le pointage de crédit à l’initiation (%)"},{"$f":"IFERROR(VLOOKUP(G1749,Translation!$A:$C,3,FALSE),G1749)","v":"770.0"},{"$f":"IFERROR(VLOOKUP(H1749,Translation!$A:$C,3,FALSE),H1749)","v":"Nouveau-Brunswick"}]
[13,"T1 2017","ASSURANCE DE PORTEFEUILLE","Québec",763.65994578072684,"Prêts hypothécaires assurés au cours de la période selon le pointage de crédit à l’initiation (%)","763.7","Québec",{"$f":"IFERROR(VLOOKUP(A1750,Translation!$A:$C,3,FALSE),A1750)","v":13},{"$f":"IFERROR(VLOOKUP(B1750,Translation!$A:$C,3,FALSE),B1750)","v":"T1 2017"},{"$f":"IFERROR(VLOOKUP(C1750,Translation!$A:$C,3,FALSE),C1750)","v":"ASSURANCE DE PORTEFEUILLE"},{"$f":"IFERROR(VLOOKUP(D1750,Translation!$A:$C,3,FALSE),D1750)","v":"Québec"},{"$f":"IFERROR(VLOOKUP(E1750,Translation!$A:$C,3,FALSE),E1750)","v":763.65994578072684},{"$f":"IFERROR(VLOOKUP(F1750,Translation!$A:$C,3,FALSE),F1750)","v":"Prêts hypothécaires assurés au cours de la période selon le pointage de crédit à l’initiation (%)"},{"$f":"IFERROR(VLOOKUP(G1750,Translation!$A:$C,3,FALSE),G1750)","v":"763.7"},{"$f":"IFERROR(VLOOKUP(H1750,Translation!$A:$C,3,FALSE),H1750)","v":"Québec"}]
[13,"T1 2017","ASSURANCE DE PORTEFEUILLE","Ontario",751.9221935654657,"Prêts hypothécaires assurés au cours de la période selon le pointage de crédit à l’initiation (%)","751.9","Ontario",{"$f":"IFERROR(VLOOKUP(A1751,Translation!$A:$C,3,FALSE),A1751)","v":13},{"$f":"IFERROR(VLOOKUP(B1751,Translation!$A:$C,3,FALSE),B1751)","v":"T1 2017"},{"$f":"IFERROR(VLOOKUP(C1751,Translation!$A:$C,3,FALSE),C1751)","v":"ASSURANCE DE PORTEFEUILLE"},{"$f":"IFERROR(VLOOKUP(D1751,Translation!$A:$C,3,FALSE),D1751)","v":"Ontario"},{"$f":"IFERROR(VLOOKUP(E1751,Translation!$A:$C,3,FALSE),E1751)","v":751.9221935654657},{"$f":"IFERROR(VLOOKUP(F1751,Translation!$A:$C,3,FALSE),F1751)","v":"Prêts hypothécaires assurés au cours de la période selon le pointage de crédit à l’initiation (%)"},{"$f":"IFERROR(VLOOKUP(G1751,Translation!$A:$C,3,FALSE),G1751)","v":"751.9"},{"$f":"IFERROR(VLOOKUP(H1751,Translation!$A:$C,3,FALSE),H1751)","v":"Ontario"}]
[13,"T1 2017","ASSURANCE DE PORTEFEUILLE","Manitoba",746.50475929536879,"Prêts hypothécaires assurés au cours de la période selon le pointage de crédit à l’initiation (%)","746.5","Manitoba",{"$f":"IFERROR(VLOOKUP(A1752,Translation!$A:$C,3,FALSE),A1752)","v":13},{"$f":"IFERROR(VLOOKUP(B1752,Translation!$A:$C,3,FALSE),B1752)","v":"T1 2017"},{"$f":"IFERROR(VLOOKUP(C1752,Translation!$A:$C,3,FALSE),C1752)","v":"ASSURANCE DE PORTEFEUILLE"},{"$f":"IFERROR(VLOOKUP(D1752,Translation!$A:$C,3,FALSE),D1752)","v":"Manitoba"},{"$f":"IFERROR(VLOOKUP(E1752,Translation!$A:$C,3,FALSE),E1752)","v":746.50475929536879},{"$f":"IFERROR(VLOOKUP(F1752,Translation!$A:$C,3,FALSE),F1752)","v":"Prêts hypothécaires assurés au cours de la période selon le pointage de crédit à l’initiation (%)"},{"$f":"IFERROR(VLOOKUP(G1752,Translation!$A:$C,3,FALSE),G1752)","v":"746.5"},{"$f":"IFERROR(VLOOKUP(H1752,Translation!$A:$C,3,FALSE),H1752)","v":"Manitoba"}]
[13,"T1 2017","ASSURANCE DE PORTEFEUILLE","Saskatchewan",765.93860693156353,"Prêts hypothécaires assurés au cours de la période selon le pointage de crédit à l’initiation (%)","765.9","Saskatchewan",{"$f":"IFERROR(VLOOKUP(A1753,Translation!$A:$C,3,FALSE),A1753)","v":13},{"$f":"IFERROR(VLOOKUP(B1753,Translation!$A:$C,3,FALSE),B1753)","v":"T1 2017"},{"$f":"IFERROR(VLOOKUP(C1753,Translation!$A:$C,3,FALSE),C1753)","v":"ASSURANCE DE PORTEFEUILLE"},{"$f":"IFERROR(VLOOKUP(D1753,Translation!$A:$C,3,FALSE),D1753)","v":"Saskatchewan"},{"$f":"IFERROR(VLOOKUP(E1753,Translation!$A:$C,3,FALSE),E1753)","v":765.93860693156353},{"$f":"IFERROR(VLOOKUP(F1753,Translation!$A:$C,3,FALSE),F1753)","v":"Prêts hypothécaires assurés au cours de la période selon le pointage de crédit à l’initiation (%)"},{"$f":"IFERROR(VLOOKUP(G1753,Translation!$A:$C,3,FALSE),G1753)","v":"765.9"},{"$f":"IFERROR(VLOOKUP(H1753,Translation!$A:$C,3,FALSE),H1753)","v":"Saskatchewan"}]
[13,"T1 2017","ASSURANCE DE PORTEFEUILLE","Alberta",751.46402596821986,"Prêts hypothécaires assurés au cours de la période selon le pointage de crédit à l’initiation (%)","751.5","Alberta",{"$f":"IFERROR(VLOOKUP(A1754,Translation!$A:$C,3,FALSE),A1754)","v":13},{"$f":"IFERROR(VLOOKUP(B1754,Translation!$A:$C,3,FALSE),B1754)","v":"T1 2017"},{"$f":"IFERROR(VLOOKUP(C1754,Translation!$A:$C,3,FALSE),C1754)","v":"ASSURANCE DE PORTEFEUILLE"},{"$f":"IFERROR(VLOOKUP(D1754,Translation!$A:$C,3,FALSE),D1754)","v":"Alberta"},{"$f":"IFERROR(VLOOKUP(E1754,Translation!$A:$C,3,FALSE),E1754)","v":751.46402596821986},{"$f":"IFERROR(VLOOKUP(F1754,Translation!$A:$C,3,FALSE),F1754)","v":"Prêts hypothécaires assurés au cours de la période selon le pointage de crédit à l’initiation (%)"},{"$f":"IFERROR(VLOOKUP(G1754,Translation!$A:$C,3,FALSE),G1754)","v":"751.5"},{"$f":"IFERROR(VLOOKUP(H1754,Translation!$A:$C,3,FALSE),H1754)","v":"Alberta"}]
[13,"T1 2017","ASSURANCE DE PORTEFEUILLE","Colombie-Britannique",766.33677800946111,"Prêts hypothécaires assurés au cours de la période selon le pointage de crédit à l’initiation (%)","766.3","Colombie-Britannique",{"$f":"IFERROR(VLOOKUP(A1755,Translation!$A:$C,3,FALSE),A1755)","v":13},{"$f":"IFERROR(VLOOKUP(B1755,Translation!$A:$C,3,FALSE),B1755)","v":"T1 2017"},{"$f":"IFERROR(VLOOKUP(C1755,Translation!$A:$C,3,FALSE),C1755)","v":"ASSURANCE DE PORTEFEUILLE"},{"$f":"IFERROR(VLOOKUP(D1755,Translation!$A:$C,3,FALSE),D1755)","v":"Colombie-Britannique"},{"$f":"IFERROR(VLOOKUP(E1755,Translation!$A:$C,3,FALSE),E1755)","v":766.33677800946111},{"$f":"IFERROR(VLOOKUP(F1755,Translation!$A:$C,3,FALSE),F1755)","v":"Prêts hypothécaires assurés au cours de la période selon le pointage de crédit à l’initiation (%)"},{"$f":"IFERROR(VLOOKUP(G1755,Translation!$A:$C,3,FALSE),G1755)","v":"766.3"},{"$f":"IFERROR(VLOOKUP(H1755,Translation!$A:$C,3,FALSE),H1755)","v":"Colombie-Britannique"}]
[13,"T1 2018","ASSURANCE DE PORTEFEUILLE","Terre-Neuve-et-Labrador",816,"Prêts hypothécaires assurés au cours de la période selon le pointage de crédit à l’initiation (%)","816.0","Terre-Neuve-et-Labrador",{"$f":"IFERROR(VLOOKUP(A1756,Translation!$A:$C,3,FALSE),A1756)","v":13},{"$f":"IFERROR(VLOOKUP(B1756,Translation!$A:$C,3,FALSE),B1756)","v":"T1 2018"},{"$f":"IFERROR(VLOOKUP(C1756,Translation!$A:$C,3,FALSE),C1756)","v":"ASSURANCE DE PORTEFEUILLE"},{"$f":"IFERROR(VLOOKUP(D1756,Translation!$A:$C,3,FALSE),D1756)","v":"Terre-Neuve-et-Labrador"},{"$f":"IFERROR(VLOOKUP(E1756,Translation!$A:$C,3,FALSE),E1756)","v":816},{"$f":"IFERROR(VLOOKUP(F1756,Translation!$A:$C,3,FALSE),F1756)","v":"Prêts hypothécaires assurés au cours de la période selon le pointage de crédit à l’initiation (%)"},{"$f":"IFERROR(VLOOKUP(G1756,Translation!$A:$C,3,FALSE),G1756)","v":"816.0"},{"$f":"IFERROR(VLOOKUP(H1756,Translation!$A:$C,3,FALSE),H1756)","v":"Terre-Neuve-et-Labrador"}]
[13,"T1 2018","ASSURANCE DE PORTEFEUILLE","Nouvelle-Écosse",777.56574250083315,"Prêts hypothécaires assurés au cours de la période selon le pointage de crédit à l’initiation (%)","777.6","Nouvelle-Écosse",{"$f":"IFERROR(VLOOKUP(A1757,Translation!$A:$C,3,FALSE),A1757)","v":13},{"$f":"IFERROR(VLOOKUP(B1757,Translation!$A:$C,3,FALSE),B1757)","v":"T1 2018"},{"$f":"IFERROR(VLOOKUP(C1757,Translation!$A:$C,3,FALSE),C1757)","v":"ASSURANCE DE PORTEFEUILLE"},{"$f":"IFERROR(VLOOKUP(D1757,Translation!$A:$C,3,FALSE),D1757)","v":"Nouvelle-Écosse"},{"$f":"IFERROR(VLOOKUP(E1757,Translation!$A:$C,3,FALSE),E1757)","v":777.56574250083315},{"$f":"IFERROR(VLOOKUP(F1757,Translation!$A:$C,3,FALSE),F1757)","v":"Prêts hypothécaires assurés au cours de la période selon le pointage de crédit à l’initiation (%)"},{"$f":"IFERROR(VLOOKUP(G1757,Translation!$A:$C,3,FALSE),G1757)","v":"777.6"},{"$f":"IFERROR(VLOOKUP(H1757,Translation!$A:$C,3,FALSE),H1757)","v":"Nouvelle-Écosse"}]
[13,"T1 2018","ASSURANCE DE PORTEFEUILLE","Nouveau-Brunswick",794.80435379278629,"Prêts hypothécaires assurés au cours de la période selon le pointage de crédit à l’initiation (%)","794.8","Nouveau-Brunswick",{"$f":"IFERROR(VLOOKUP(A1758,Translation!$A:$C,3,FALSE),A1758)","v":13},{"$f":"IFERROR(VLOOKUP(B1758,Translation!$A:$C,3,FALSE),B1758)","v":"T1 2018"},{"$f":"IFERROR(VLOOKUP(C1758,Translation!$A:$C,3,FALSE),C1758)","v":"ASSURANCE DE PORTEFEUILLE"},{"$f":"IFERROR(VLOOKUP(D1758,Translation!$A:$C,3,FALSE),D1758)","v":"Nouveau-Brunswick"},{"$f":"IFERROR(VLOOKUP(E1758,Translation!$A:$C,3,FALSE),E1758)","v":794.80435379278629},{"$f":"IFERROR(VLOOKUP(F1758,Translation!$A:$C,3,FALSE),F1758)","v":"Prêts hypothécaires assurés au cours de la période selon le pointage de crédit à l’initiation (%)"},{"$f":"IFERROR(VLOOKUP(G1758,Translation!$A:$C,3,FALSE),G1758)","v":"794.8"},{"$f":"IFERROR(VLOOKUP(H1758,Translation!$A:$C,3,FALSE),H1758)","v":"Nouveau-Brunswick"}]
[13,"T1 2018","ASSURANCE DE PORTEFEUILLE","Québec",781.92376012836689,"Prêts hypothécaires assurés au cours de la période selon le pointage de crédit à l’initiation (%)","781.9","Québec",{"$f":"IFERROR(VLOOKUP(A1759,Translation!$A:$C,3,FALSE),A1759)","v":13},{"$f":"IFERROR(VLOOKUP(B1759,Translation!$A:$C,3,FALSE),B1759)","v":"T1 2018"},{"$f":"IFERROR(VLOOKUP(C1759,Translation!$A:$C,3,FALSE),C1759)","v":"ASSURANCE DE PORTEFEUILLE"},{"$f":"IFERROR(VLOOKUP(D1759,Translation!$A:$C,3,FALSE),D1759)","v":"Québec"},{"$f":"IFERROR(VLOOKUP(E1759,Translation!$A:$C,3,FALSE),E1759)","v":781.92376012836689},{"$f":"IFERROR(VLOOKUP(F1759,Translation!$A:$C,3,FALSE),F1759)","v":"Prêts hypothécaires assurés au cours de la période selon le pointage de crédit à l’initiation (%)"},{"$f":"IFERROR(VLOOKUP(G1759,Translation!$A:$C,3,FALSE),G1759)","v":"781.9"},{"$f":"IFERROR(VLOOKUP(H1759,Translation!$A:$C,3,FALSE),H1759)","v":"Québec"}]
[13,"T1 2018","ASSURANCE DE PORTEFEUILLE","Ontario",768.09459309892111,"Prêts hypothécaires assurés au cours de la période selon le pointage de crédit à l’initiation (%)","768.1","Ontario",{"$f":"IFERROR(VLOOKUP(A1760,Translation!$A:$C,3,FALSE),A1760)","v":13},{"$f":"IFERROR(VLOOKUP(B1760,Translation!$A:$C,3,FALSE),B1760)","v":"T1 2018"},{"$f":"IFERROR(VLOOKUP(C1760,Translation!$A:$C,3,FALSE),C1760)","v":"ASSURANCE DE PORTEFEUILLE"},{"$f":"IFERROR(VLOOKUP(D1760,Translation!$A:$C,3,FALSE),D1760)","v":"Ontario"},{"$f":"IFERROR(VLOOKUP(E1760,Translation!$A:$C,3,FALSE),E1760)","v":768.09459309892111},{"$f":"IFERROR(VLOOKUP(F1760,Translation!$A:$C,3,FALSE),F1760)","v":"Prêts hypothécaires assurés au cours de la période selon le pointage de crédit à l’initiation (%)"},{"$f":"IFERROR(VLOOKUP(G1760,Translation!$A:$C,3,FALSE),G1760)","v":"768.1"},{"$f":"IFERROR(VLOOKUP(H1760,Translation!$A:$C,3,FALSE),H1760)","v":"Ontario"}]
[13,"T1 2018","ASSURANCE DE PORTEFEUILLE","Manitoba",776.85612719962501,"Prêts hypothécaires assurés au cours de la période selon le pointage de crédit à l’initiation (%)","776.9","Manitoba",{"$f":"IFERROR(VLOOKUP(A1761,Translation!$A:$C,3,FALSE),A1761)","v":13},{"$f":"IFERROR(VLOOKUP(B1761,Translation!$A:$C,3,FALSE),B1761)","v":"T1 2018"},{"$f":"IFERROR(VLOOKUP(C1761,Translation!$A:$C,3,FALSE),C1761)","v":"ASSURANCE DE PORTEFEUILLE"},{"$f":"IFERROR(VLOOKUP(D1761,Translation!$A:$C,3,FALSE),D1761)","v":"Manitoba"},{"$f":"IFERROR(VLOOKUP(E1761,Translation!$A:$C,3,FALSE),E1761)","v":776.85612719962501},{"$f":"IFERROR(VLOOKUP(F1761,Translation!$A:$C,3,FALSE),F1761)","v":"Prêts hypothécaires assurés au cours de la période selon le pointage de crédit à l’initiation (%)"},{"$f":"IFERROR(VLOOKUP(G1761,Translation!$A:$C,3,FALSE),G1761)","v":"776.9"},{"$f":"IFERROR(VLOOKUP(H1761,Translation!$A:$C,3,FALSE),H1761)","v":"Manitoba"}]
[13,"T1 2018","ASSURANCE DE PORTEFEUILLE","Saskatchewan",791.55694862641269,"Prêts hypothécaires assurés au cours de la période selon le pointage de crédit à l’initiation (%)","791.6","Saskatchewan",{"$f":"IFERROR(VLOOKUP(A1762,Translation!$A:$C,3,FALSE),A1762)","v":13},{"$f":"IFERROR(VLOOKUP(B1762,Translation!$A:$C,3,FALSE),B1762)","v":"T1 2018"},{"$f":"IFERROR(VLOOKUP(C1762,Translation!$A:$C,3,FALSE),C1762)","v":"ASSURANCE DE PORTEFEUILLE"},{"$f":"IFERROR(VLOOKUP(D1762,Translation!$A:$C,3,FALSE),D1762)","v":"Saskatchewan"},{"$f":"IFERROR(VLOOKUP(E1762,Translation!$A:$C,3,FALSE),E1762)","v":791.55694862641269},{"$f":"IFERROR(VLOOKUP(F1762,Translation!$A:$C,3,FALSE),F1762)","v":"Prêts hypothécaires assurés au cours de la période selon le pointage de crédit à l’initiation (%)"},{"$f":"IFERROR(VLOOKUP(G1762,Translation!$A:$C,3,FALSE),G1762)","v":"791.6"},{"$f":"IFERROR(VLOOKUP(H1762,Translation!$A:$C,3,FALSE),H1762)","v":"Saskatchewan"}]
[13,"T1 2018","ASSURANCE DE PORTEFEUILLE","Alberta",780.2054522825365,"Prêts hypothécaires assurés au cours de la période selon le pointage de crédit à l’initiation (%)","780.2","Alberta",{"$f":"IFERROR(VLOOKUP(A1763,Translation!$A:$C,3,FALSE),A1763)","v":13},{"$f":"IFERROR(VLOOKUP(B1763,Translation!$A:$C,3,FALSE),B1763)","v":"T1 2018"},{"$f":"IFERROR(VLOOKUP(C1763,Translation!$A:$C,3,FALSE),C1763)","v":"ASSURANCE DE PORTEFEUILLE"},{"$f":"IFERROR(VLOOKUP(D1763,Translation!$A:$C,3,FALSE),D1763)","v":"Alberta"},{"$f":"IFERROR(VLOOKUP(E1763,Translation!$A:$C,3,FALSE),E1763)","v":780.2054522825365},{"$f":"IFERROR(VLOOKUP(F1763,Translation!$A:$C,3,FALSE),F1763)","v":"Prêts hypothécaires assurés au cours de la période selon le pointage de crédit à l’initiation (%)"},{"$f":"IFERROR(VLOOKUP(G1763,Translation!$A:$C,3,FALSE),G1763)","v":"780.2"},{"$f":"IFERROR(VLOOKUP(H1763,Translation!$A:$C,3,FALSE),H1763)","v":"Alberta"}]
[13,"T1 2018","ASSURANCE DE PORTEFEUILLE","Colombie-Britannique",773.93098225230949,"Prêts hypothécaires assurés au cours de la période selon le pointage de crédit à l’initiation (%)","773.9","Colombie-Britannique",{"$f":"IFERROR(VLOOKUP(A1764,Translation!$A:$C,3,FALSE),A1764)","v":13},{"$f":"IFERROR(VLOOKUP(B1764,Translation!$A:$C,3,FALSE),B1764)","v":"T1 2018"},{"$f":"IFERROR(VLOOKUP(C1764,Translation!$A:$C,3,FALSE),C1764)","v":"ASSURANCE DE PORTEFEUILLE"},{"$f":"IFERROR(VLOOKUP(D1764,Translation!$A:$C,3,FALSE),D1764)","v":"Colombie-Britannique"},{"$f":"IFERROR(VLOOKUP(E1764,Translation!$A:$C,3,FALSE),E1764)","v":773.93098225230949},{"$f":"IFERROR(VLOOKUP(F1764,Translation!$A:$C,3,FALSE),F1764)","v":"Prêts hypothécaires assurés au cours de la période selon le pointage de crédit à l’initiation (%)"},{"$f":"IFERROR(VLOOKUP(G1764,Translation!$A:$C,3,FALSE),G1764)","v":"773.9"},{"$f":"IFERROR(VLOOKUP(H1764,Translation!$A:$C,3,FALSE),H1764)","v":"Colombie-Britannique"}]
[13,"Q2 2016","ASSURANCE DE PORTEFEUILLE","Terre-Neuve-et-Labrador",748.08188656156608,"Prêts hypothécaires assurés au cours de la période selon le pointage de crédit à l’initiation (%)","748.1","Terre-Neuve-et-Labrador",{"$f":"IFERROR(VLOOKUP(A1765,Translation!$A:$C,3,FALSE),A1765)","v":13},{"$f":"IFERROR(VLOOKUP(B1765,Translation!$A:$C,3,FALSE),B1765)","v":"Q2 2016"},{"$f":"IFERROR(VLOOKUP(C1765,Translation!$A:$C,3,FALSE),C1765)","v":"ASSURANCE DE PORTEFEUILLE"},{"$f":"IFERROR(VLOOKUP(D1765,Translation!$A:$C,3,FALSE),D1765)","v":"Terre-Neuve-et-Labrador"},{"$f":"IFERROR(VLOOKUP(E1765,Translation!$A:$C,3,FALSE),E1765)","v":748.08188656156608},{"$f":"IFERROR(VLOOKUP(F1765,Translation!$A:$C,3,FALSE),F1765)","v":"Prêts hypothécaires assurés au cours de la période selon le pointage de crédit à l’initiation (%)"},{"$f":"IFERROR(VLOOKUP(G1765,Translation!$A:$C,3,FALSE),G1765)","v":"748.1"},{"$f":"IFERROR(VLOOKUP(H1765,Translation!$A:$C,3,FALSE),H1765)","v":"Terre-Neuve-et-Labrador"}]
[13,"Q2 2016","ASSURANCE DE PORTEFEUILLE","Île-du-Prince-Édouard",751.7363624141002,"Prêts hypothécaires assurés au cours de la période selon le pointage de crédit à l’initiation (%)","751.7","Île-du-Prince-Édouard",{"$f":"IFERROR(VLOOKUP(A1766,Translation!$A:$C,3,FALSE),A1766)","v":13},{"$f":"IFERROR(VLOOKUP(B1766,Translation!$A:$C,3,FALSE),B1766)","v":"Q2 2016"},{"$f":"IFERROR(VLOOKUP(C1766,Translation!$A:$C,3,FALSE),C1766)","v":"ASSURANCE DE PORTEFEUILLE"},{"$f":"IFERROR(VLOOKUP(D1766,Translation!$A:$C,3,FALSE),D1766)","v":"Île-du-Prince-Édouard"},{"$f":"IFERROR(VLOOKUP(E1766,Translation!$A:$C,3,FALSE),E1766)","v":751.7363624141002},{"$f":"IFERROR(VLOOKUP(F1766,Translation!$A:$C,3,FALSE),F1766)","v":"Prêts hypothécaires assurés au cours de la période selon le pointage de crédit à l’initiation (%)"},{"$f":"IFERROR(VLOOKUP(G1766,Translation!$A:$C,3,FALSE),G1766)","v":"751.7"},{"$f":"IFERROR(VLOOKUP(H1766,Translation!$A:$C,3,FALSE),H1766)","v":"Île-du-Prince-Édouard"}]
[13,"Q2 2016","ASSURANCE DE PORTEFEUILLE","Nouvelle-Écosse",751.69679511177731,"Prêts hypothécaires assurés au cours de la période selon le pointage de crédit à l’initiation (%)","751.7","Nouvelle-Écosse",{"$f":"IFERROR(VLOOKUP(A1767,Translation!$A:$C,3,FALSE),A1767)","v":13},{"$f":"IFERROR(VLOOKUP(B1767,Translation!$A:$C,3,FALSE),B1767)","v":"Q2 2016"},{"$f":"IFERROR(VLOOKUP(C1767,Translation!$A:$C,3,FALSE),C1767)","v":"ASSURANCE DE PORTEFEUILLE"},{"$f":"IFERROR(VLOOKUP(D1767,Translation!$A:$C,3,FALSE),D1767)","v":"Nouvelle-Écosse"},{"$f":"IFERROR(VLOOKUP(E1767,Translation!$A:$C,3,FALSE),E1767)","v":751.69679511177731},{"$f":"IFERROR(VLOOKUP(F1767,Translation!$A:$C,3,FALSE),F1767)","v":"Prêts hypothécaires assurés au cours de la période selon le pointage de crédit à l’initiation (%)"},{"$f":"IFERROR(VLOOKUP(G1767,Translation!$A:$C,3,FALSE),G1767)","v":"751.7"},{"$f":"IFERROR(VLOOKUP(H1767,Translation!$A:$C,3,FALSE),H1767)","v":"Nouvelle-Écosse"}]
[13,"Q2 2016","ASSURANCE DE PORTEFEUILLE","Nouveau-Brunswick",743.82917924438095,"Prêts hypothécaires assurés au cours de la période selon le pointage de crédit à l’initiation (%)","743.8","Nouveau-Brunswick",{"$f":"IFERROR(VLOOKUP(A1768,Translation!$A:$C,3,FALSE),A1768)","v":13},{"$f":"IFERROR(VLOOKUP(B1768,Translation!$A:$C,3,FALSE),B1768)","v":"Q2 2016"},{"$f":"IFERROR(VLOOKUP(C1768,Translation!$A:$C,3,FALSE),C1768)","v":"ASSURANCE DE PORTEFEUILLE"},{"$f":"IFERROR(VLOOKUP(D1768,Translation!$A:$C,3,FALSE),D1768)","v":"Nouveau-Brunswick"},{"$f":"IFERROR(VLOOKUP(E1768,Translation!$A:$C,3,FALSE),E1768)","v":743.82917924438095},{"$f":"IFERROR(VLOOKUP(F1768,Translation!$A:$C,3,FALSE),F1768)","v":"Prêts hypothécaires assurés au cours de la période selon le pointage de crédit à l’initiation (%)"},{"$f":"IFERROR(VLOOKUP(G1768,Translation!$A:$C,3,FALSE),G1768)","v":"743.8"},{"$f":"IFERROR(VLOOKUP(H1768,Translation!$A:$C,3,FALSE),H1768)","v":"Nouveau-Brunswick"}]
[13,"Q2 2016","ASSURANCE DE PORTEFEUILLE","Québec",755.35872704498911,"Prêts hypothécaires assurés au cours de la période selon le pointage de crédit à l’initiation (%)","755.4","Québec",{"$f":"IFERROR(VLOOKUP(A1769,Translation!$A:$C,3,FALSE),A1769)","v":13},{"$f":"IFERROR(VLOOKUP(B1769,Translation!$A:$C,3,FALSE),B1769)","v":"Q2 2016"},{"$f":"IFERROR(VLOOKUP(C1769,Translation!$A:$C,3,FALSE),C1769)","v":"ASSURANCE DE PORTEFEUILLE"},{"$f":"IFERROR(VLOOKUP(D1769,Translation!$A:$C,3,FALSE),D1769)","v":"Québec"},{"$f":"IFERROR(VLOOKUP(E1769,Translation!$A:$C,3,FALSE),E1769)","v":755.35872704498911},{"$f":"IFERROR(VLOOKUP(F1769,Translation!$A:$C,3,FALSE),F1769)","v":"Prêts hypothécaires assurés au cours de la période selon le pointage de crédit à l’initiation (%)"},{"$f":"IFERROR(VLOOKUP(G1769,Translation!$A:$C,3,FALSE),G1769)","v":"755.4"},{"$f":"IFERROR(VLOOKUP(H1769,Translation!$A:$C,3,FALSE),H1769)","v":"Québec"}]
[13,"Q2 2016","ASSURANCE DE PORTEFEUILLE","Ontario",753.85836439574757,"Prêts hypothécaires assurés au cours de la période selon le pointage de crédit à l’initiation (%)","753.9","Ontario",{"$f":"IFERROR(VLOOKUP(A1770,Translation!$A:$C,3,FALSE),A1770)","v":13},{"$f":"IFERROR(VLOOKUP(B1770,Translation!$A:$C,3,FALSE),B1770)","v":"Q2 2016"},{"$f":"IFERROR(VLOOKUP(C1770,Translation!$A:$C,3,FALSE),C1770)","v":"ASSURANCE DE PORTEFEUILLE"},{"$f":"IFERROR(VLOOKUP(D1770,Translation!$A:$C,3,FALSE),D1770)","v":"Ontario"},{"$f":"IFERROR(VLOOKUP(E1770,Translation!$A:$C,3,FALSE),E1770)","v":753.85836439574757},{"$f":"IFERROR(VLOOKUP(F1770,Translation!$A:$C,3,FALSE),F1770)","v":"Prêts hypothécaires assurés au cours de la période selon le pointage de crédit à l’initiation (%)"},{"$f":"IFERROR(VLOOKUP(G1770,Translation!$A:$C,3,FALSE),G1770)","v":"753.9"},{"$f":"IFERROR(VLOOKUP(H1770,Translation!$A:$C,3,FALSE),H1770)","v":"Ontario"}]
[13,"Q2 2016","ASSURANCE DE PORTEFEUILLE","Manitoba",757.17737366629024,"Prêts hypothécaires assurés au cours de la période selon le pointage de crédit à l’initiation (%)","757.2","Manitoba",{"$f":"IFERROR(VLOOKUP(A1771,Translation!$A:$C,3,FALSE),A1771)","v":13},{"$f":"IFERROR(VLOOKUP(B1771,Translation!$A:$C,3,FALSE),B1771)","v":"Q2 2016"},{"$f":"IFERROR(VLOOKUP(C1771,Translation!$A:$C,3,FALSE),C1771)","v":"ASSURANCE DE PORTEFEUILLE"},{"$f":"IFERROR(VLOOKUP(D1771,Translation!$A:$C,3,FALSE),D1771)","v":"Manitoba"},{"$f":"IFERROR(VLOOKUP(E1771,Translation!$A:$C,3,FALSE),E1771)","v":757.17737366629024},{"$f":"IFERROR(VLOOKUP(F1771,Translation!$A:$C,3,FALSE),F1771)","v":"Prêts hypothécaires assurés au cours de la période selon le pointage de crédit à l’initiation (%)"},{"$f":"IFERROR(VLOOKUP(G1771,Translation!$A:$C,3,FALSE),G1771)","v":"757.2"},{"$f":"IFERROR(VLOOKUP(H1771,Translation!$A:$C,3,FALSE),H1771)","v":"Manitoba"}]
[13,"Q2 2016","ASSURANCE DE PORTEFEUILLE","Saskatchewan",750.24889232750434,"Prêts hypothécaires assurés au cours de la période selon le pointage de crédit à l’initiation (%)","750.2","Saskatchewan",{"$f":"IFERROR(VLOOKUP(A1772,Translation!$A:$C,3,FALSE),A1772)","v":13},{"$f":"IFERROR(VLOOKUP(B1772,Translation!$A:$C,3,FALSE),B1772)","v":"Q2 2016"},{"$f":"IFERROR(VLOOKUP(C1772,Translation!$A:$C,3,FALSE),C1772)","v":"ASSURANCE DE PORTEFEUILLE"},{"$f":"IFERROR(VLOOKUP(D1772,Translation!$A:$C,3,FALSE),D1772)","v":"Saskatchewan"},{"$f":"IFERROR(VLOOKUP(E1772,Translation!$A:$C,3,FALSE),E1772)","v":750.24889232750434},{"$f":"IFERROR(VLOOKUP(F1772,Translation!$A:$C,3,FALSE),F1772)","v":"Prêts hypothécaires assurés au cours de la période selon le pointage de crédit à l’initiation (%)"},{"$f":"IFERROR(VLOOKUP(G1772,Translation!$A:$C,3,FALSE),G1772)","v":"750.2"},{"$f":"IFERROR(VLOOKUP(H1772,Translation!$A:$C,3,FALSE),H1772)","v":"Saskatchewan"}]
[13,"Q2 2016","ASSURANCE DE PORTEFEUILLE","Alberta",757.45935666289051,"Prêts hypothécaires assurés au cours de la période selon le pointage de crédit à l’initiation (%)","757.5","Alberta",{"$f":"IFERROR(VLOOKUP(A1773,Translation!$A:$C,3,FALSE),A1773)","v":13},{"$f":"IFERROR(VLOOKUP(B1773,Translation!$A:$C,3,FALSE),B1773)","v":"Q2 2016"},{"$f":"IFERROR(VLOOKUP(C1773,Translation!$A:$C,3,FALSE),C1773)","v":"ASSURANCE DE PORTEFEUILLE"},{"$f":"IFERROR(VLOOKUP(D1773,Translation!$A:$C,3,FALSE),D1773)","v":"Alberta"},{"$f":"IFERROR(VLOOKUP(E1773,Translation!$A:$C,3,FALSE),E1773)","v":757.45935666289051},{"$f":"IFERROR(VLOOKUP(F1773,Translation!$A:$C,3,FALSE),F1773)","v":"Prêts hypothécaires assurés au cours de la période selon le pointage de crédit à l’initiation (%)"},{"$f":"IFERROR(VLOOKUP(G1773,Translation!$A:$C,3,FALSE),G1773)","v":"757.5"},{"$f":"IFERROR(VLOOKUP(H1773,Translation!$A:$C,3,FALSE),H1773)","v":"Alberta"}]
[13,"Q2 2016","ASSURANCE DE PORTEFEUILLE","Colombie-Britannique",758.963451554176,"Prêts hypothécaires assurés au cours de la période selon le pointage de crédit à l’initiation (%)","759.0","Colombie-Britannique",{"$f":"IFERROR(VLOOKUP(A1774,Translation!$A:$C,3,FALSE),A1774)","v":13},{"$f":"IFERROR(VLOOKUP(B1774,Translation!$A:$C,3,FALSE),B1774)","v":"Q2 2016"},{"$f":"IFERROR(VLOOKUP(C1774,Translation!$A:$C,3,FALSE),C1774)","v":"ASSURANCE DE PORTEFEUILLE"},{"$f":"IFERROR(VLOOKUP(D1774,Translation!$A:$C,3,FALSE),D1774)","v":"Colombie-Britannique"},{"$f":"IFERROR(VLOOKUP(E1774,Translation!$A:$C,3,FALSE),E1774)","v":758.963451554176},{"$f":"IFERROR(VLOOKUP(F1774,Translation!$A:$C,3,FALSE),F1774)","v":"Prêts hypothécaires assurés au cours de la période selon le pointage de crédit à l’initiation (%)"},{"$f":"IFERROR(VLOOKUP(G1774,Translation!$A:$C,3,FALSE),G1774)","v":"759.0"},{"$f":"IFERROR(VLOOKUP(H1774,Translation!$A:$C,3,FALSE),H1774)","v":"Colombie-Britannique"}]
[13,"Q2 2016","ASSURANCE DE PORTEFEUILLE","Territoires",756.01935955164799,"Prêts hypothécaires assurés au cours de la période selon le pointage de crédit à l’initiation (%)","756.0","Territoires",{"$f":"IFERROR(VLOOKUP(A1775,Translation!$A:$C,3,FALSE),A1775)","v":13},{"$f":"IFERROR(VLOOKUP(B1775,Translation!$A:$C,3,FALSE),B1775)","v":"Q2 2016"},{"$f":"IFERROR(VLOOKUP(C1775,Translation!$A:$C,3,FALSE),C1775)","v":"ASSURANCE DE PORTEFEUILLE"},{"$f":"IFERROR(VLOOKUP(D1775,Translation!$A:$C,3,FALSE),D1775)","v":"Territoires"},{"$f":"IFERROR(VLOOKUP(E1775,Translation!$A:$C,3,FALSE),E1775)","v":756.01935955164799},{"$f":"IFERROR(VLOOKUP(F1775,Translation!$A:$C,3,FALSE),F1775)","v":"Prêts hypothécaires assurés au cours de la période selon le pointage de crédit à l’initiation (%)"},{"$f":"IFERROR(VLOOKUP(G1775,Translation!$A:$C,3,FALSE),G1775)","v":"756.0"},{"$f":"IFERROR(VLOOKUP(H1775,Translation!$A:$C,3,FALSE),H1775)","v":"Territoires"}]
[13,"T2 2017","ASSURANCE DE PORTEFEUILLE","Terre-Neuve-et-Labrador",693.58265798891955,"Prêts hypothécaires assurés au cours de la période selon le pointage de crédit à l’initiation (%)","693.6","Terre-Neuve-et-Labrador",{"$f":"IFERROR(VLOOKUP(A1776,Translation!$A:$C,3,FALSE),A1776)","v":13},{"$f":"IFERROR(VLOOKUP(B1776,Translation!$A:$C,3,FALSE),B1776)","v":"T2 2017"},{"$f":"IFERROR(VLOOKUP(C1776,Translation!$A:$C,3,FALSE),C1776)","v":"ASSURANCE DE PORTEFEUILLE"},{"$f":"IFERROR(VLOOKUP(D1776,Translation!$A:$C,3,FALSE),D1776)","v":"Terre-Neuve-et-Labrador"},{"$f":"IFERROR(VLOOKUP(E1776,Translation!$A:$C,3,FALSE),E1776)","v":693.58265798891955},{"$f":"IFERROR(VLOOKUP(F1776,Translation!$A:$C,3,FALSE),F1776)","v":"Prêts hypothécaires assurés au cours de la période selon le pointage de crédit à l’initiation (%)"},{"$f":"IFERROR(VLOOKUP(G1776,Translation!$A:$C,3,FALSE),G1776)","v":"693.6"},{"$f":"IFERROR(VLOOKUP(H1776,Translation!$A:$C,3,FALSE),H1776)","v":"Terre-Neuve-et-Labrador"}]
[13,"T2 2017","ASSURANCE DE PORTEFEUILLE","Île-du-Prince-Édouard",662.5374940569227,"Prêts hypothécaires assurés au cours de la période selon le pointage de crédit à l’initiation (%)","662.5","Île-du-Prince-Édouard",{"$f":"IFERROR(VLOOKUP(A1777,Translation!$A:$C,3,FALSE),A1777)","v":13},{"$f":"IFERROR(VLOOKUP(B1777,Translation!$A:$C,3,FALSE),B1777)","v":"T2 2017"},{"$f":"IFERROR(VLOOKUP(C1777,Translation!$A:$C,3,FALSE),C1777)","v":"ASSURANCE DE PORTEFEUILLE"},{"$f":"IFERROR(VLOOKUP(D1777,Translation!$A:$C,3,FALSE),D1777)","v":"Île-du-Prince-Édouard"},{"$f":"IFERROR(VLOOKUP(E1777,Translation!$A:$C,3,FALSE),E1777)","v":662.5374940569227},{"$f":"IFERROR(VLOOKUP(F1777,Translation!$A:$C,3,FALSE),F1777)","v":"Prêts hypothécaires assurés au cours de la période selon le pointage de crédit à l’initiation (%)"},{"$f":"IFERROR(VLOOKUP(G1777,Translation!$A:$C,3,FALSE),G1777)","v":"662.5"},{"$f":"IFERROR(VLOOKUP(H1777,Translation!$A:$C,3,FALSE),H1777)","v":"Île-du-Prince-Édouard"}]
[13,"T2 2017","ASSURANCE DE PORTEFEUILLE","Nouvelle-Écosse",715.45724202830615,"Prêts hypothécaires assurés au cours de la période selon le pointage de crédit à l’initiation (%)","715.5","Nouvelle-Écosse",{"$f":"IFERROR(VLOOKUP(A1778,Translation!$A:$C,3,FALSE),A1778)","v":13},{"$f":"IFERROR(VLOOKUP(B1778,Translation!$A:$C,3,FALSE),B1778)","v":"T2 2017"},{"$f":"IFERROR(VLOOKUP(C1778,Translation!$A:$C,3,FALSE),C1778)","v":"ASSURANCE DE PORTEFEUILLE"},{"$f":"IFERROR(VLOOKUP(D1778,Translation!$A:$C,3,FALSE),D1778)","v":"Nouvelle-Écosse"},{"$f":"IFERROR(VLOOKUP(E1778,Translation!$A:$C,3,FALSE),E1778)","v":715.45724202830615},{"$f":"IFERROR(VLOOKUP(F1778,Translation!$A:$C,3,FALSE),F1778)","v":"Prêts hypothécaires assurés au cours de la période selon le pointage de crédit à l’initiation (%)"},{"$f":"IFERROR(VLOOKUP(G1778,Translation!$A:$C,3,FALSE),G1778)","v":"715.5"},{"$f":"IFERROR(VLOOKUP(H1778,Translation!$A:$C,3,FALSE),H1778)","v":"Nouvelle-Écosse"}]
[13,"T2 2017","ASSURANCE DE PORTEFEUILLE","Nouveau-Brunswick",711.09961845821044,"Prêts hypothécaires assurés au cours de la période selon le pointage de crédit à l’initiation (%)","711.1","Nouveau-Brunswick",{"$f":"IFERROR(VLOOKUP(A1779,Translation!$A:$C,3,FALSE),A1779)","v":13},{"$f":"IFERROR(VLOOKUP(B1779,Translation!$A:$C,3,FALSE),B1779)","v":"T2 2017"},{"$f":"IFERROR(VLOOKUP(C1779,Translation!$A:$C,3,FALSE),C1779)","v":"ASSURANCE DE PORTEFEUILLE"},{"$f":"IFERROR(VLOOKUP(D1779,Translation!$A:$C,3,FALSE),D1779)","v":"Nouveau-Brunswick"},{"$f":"IFERROR(VLOOKUP(E1779,Translation!$A:$C,3,FALSE),E1779)","v":711.09961845821044},{"$f":"IFERROR(VLOOKUP(F1779,Translation!$A:$C,3,FALSE),F1779)","v":"Prêts hypothécaires assurés au cours de la période selon le pointage de crédit à l’initiation (%)"},{"$f":"IFERROR(VLOOKUP(G1779,Translation!$A:$C,3,FALSE),G1779)","v":"711.1"},{"$f":"IFERROR(VLOOKUP(H1779,Translation!$A:$C,3,FALSE),H1779)","v":"Nouveau-Brunswick"}]
[13,"T2 2017","ASSURANCE DE PORTEFEUILLE","Québec",776.06827706875902,"Prêts hypothécaires assurés au cours de la période selon le pointage de crédit à l’initiation (%)","776.1","Québec",{"$f":"IFERROR(VLOOKUP(A1780,Translation!$A:$C,3,FALSE),A1780)","v":13},{"$f":"IFERROR(VLOOKUP(B1780,Translation!$A:$C,3,FALSE),B1780)","v":"T2 2017"},{"$f":"IFERROR(VLOOKUP(C1780,Translation!$A:$C,3,FALSE),C1780)","v":"ASSURANCE DE PORTEFEUILLE"},{"$f":"IFERROR(VLOOKUP(D1780,Translation!$A:$C,3,FALSE),D1780)","v":"Québec"},{"$f":"IFERROR(VLOOKUP(E1780,Translation!$A:$C,3,FALSE),E1780)","v":776.06827706875902},{"$f":"IFERROR(VLOOKUP(F1780,Translation!$A:$C,3,FALSE),F1780)","v":"Prêts hypothécaires assurés au cours de la période selon le pointage de crédit à l’initiation (%)"},{"$f":"IFERROR(VLOOKUP(G1780,Translation!$A:$C,3,FALSE),G1780)","v":"776.1"},{"$f":"IFERROR(VLOOKUP(H1780,Translation!$A:$C,3,FALSE),H1780)","v":"Québec"}]
[13,"T2 2017","ASSURANCE DE PORTEFEUILLE","Ontario",720.45801641559888,"Prêts hypothécaires assurés au cours de la période selon le pointage de crédit à l’initiation (%)","720.5","Ontario",{"$f":"IFERROR(VLOOKUP(A1781,Translation!$A:$C,3,FALSE),A1781)","v":13},{"$f":"IFERROR(VLOOKUP(B1781,Translation!$A:$C,3,FALSE),B1781)","v":"T2 2017"},{"$f":"IFERROR(VLOOKUP(C1781,Translation!$A:$C,3,FALSE),C1781)","v":"ASSURANCE DE PORTEFEUILLE"},{"$f":"IFERROR(VLOOKUP(D1781,Translation!$A:$C,3,FALSE),D1781)","v":"Ontario"},{"$f":"IFERROR(VLOOKUP(E1781,Translation!$A:$C,3,FALSE),E1781)","v":720.45801641559888},{"$f":"IFERROR(VLOOKUP(F1781,Translation!$A:$C,3,FALSE),F1781)","v":"Prêts hypothécaires assurés au cours de la période selon le pointage de crédit à l’initiation (%)"},{"$f":"IFERROR(VLOOKUP(G1781,Translation!$A:$C,3,FALSE),G1781)","v":"720.5"},{"$f":"IFERROR(VLOOKUP(H1781,Translation!$A:$C,3,FALSE),H1781)","v":"Ontario"}]
[13,"T2 2017","ASSURANCE DE PORTEFEUILLE","Manitoba",701.47466266214292,"Prêts hypothécaires assurés au cours de la période selon le pointage de crédit à l’initiation (%)","701.5","Manitoba",{"$f":"IFERROR(VLOOKUP(A1782,Translation!$A:$C,3,FALSE),A1782)","v":13},{"$f":"IFERROR(VLOOKUP(B1782,Translation!$A:$C,3,FALSE),B1782)","v":"T2 2017"},{"$f":"IFERROR(VLOOKUP(C1782,Translation!$A:$C,3,FALSE),C1782)","v":"ASSURANCE DE PORTEFEUILLE"},{"$f":"IFERROR(VLOOKUP(D1782,Translation!$A:$C,3,FALSE),D1782)","v":"Manitoba"},{"$f":"IFERROR(VLOOKUP(E1782,Translation!$A:$C,3,FALSE),E1782)","v":701.47466266214292},{"$f":"IFERROR(VLOOKUP(F1782,Translation!$A:$C,3,FALSE),F1782)","v":"Prêts hypothécaires assurés au cours de la période selon le pointage de crédit à l’initiation (%)"},{"$f":"IFERROR(VLOOKUP(G1782,Translation!$A:$C,3,FALSE),G1782)","v":"701.5"},{"$f":"IFERROR(VLOOKUP(H1782,Translation!$A:$C,3,FALSE),H1782)","v":"Manitoba"}]
[13,"T2 2017","ASSURANCE DE PORTEFEUILLE","Saskatchewan",738.45703395349244,"Prêts hypothécaires assurés au cours de la période selon le pointage de crédit à l’initiation (%)","738.5","Saskatchewan",{"$f":"IFERROR(VLOOKUP(A1783,Translation!$A:$C,3,FALSE),A1783)","v":13},{"$f":"IFERROR(VLOOKUP(B1783,Translation!$A:$C,3,FALSE),B1783)","v":"T2 2017"},{"$f":"IFERROR(VLOOKUP(C1783,Translation!$A:$C,3,FALSE),C1783)","v":"ASSURANCE DE PORTEFEUILLE"},{"$f":"IFERROR(VLOOKUP(D1783,Translation!$A:$C,3,FALSE),D1783)","v":"Saskatchewan"},{"$f":"IFERROR(VLOOKUP(E1783,Translation!$A:$C,3,FALSE),E1783)","v":738.45703395349244},{"$f":"IFERROR(VLOOKUP(F1783,Translation!$A:$C,3,FALSE),F1783)","v":"Prêts hypothécaires assurés au cours de la période selon le pointage de crédit à l’initiation (%)"},{"$f":"IFERROR(VLOOKUP(G1783,Translation!$A:$C,3,FALSE),G1783)","v":"738.5"},{"$f":"IFERROR(VLOOKUP(H1783,Translation!$A:$C,3,FALSE),H1783)","v":"Saskatchewan"}]
[13,"T2 2017","ASSURANCE DE PORTEFEUILLE","Alberta",724.50617035297682,"Prêts hypothécaires assurés au cours de la période selon le pointage de crédit à l’initiation (%)","724.5","Alberta",{"$f":"IFERROR(VLOOKUP(A1784,Translation!$A:$C,3,FALSE),A1784)","v":13},{"$f":"IFERROR(VLOOKUP(B1784,Translation!$A:$C,3,FALSE),B1784)","v":"T2 2017"},{"$f":"IFERROR(VLOOKUP(C1784,Translation!$A:$C,3,FALSE),C1784)","v":"ASSURANCE DE PORTEFEUILLE"},{"$f":"IFERROR(VLOOKUP(D1784,Translation!$A:$C,3,FALSE),D1784)","v":"Alberta"},{"$f":"IFERROR(VLOOKUP(E1784,Translation!$A:$C,3,FALSE),E1784)","v":724.50617035297682},{"$f":"IFERROR(VLOOKUP(F1784,Translation!$A:$C,3,FALSE),F1784)","v":"Prêts hypothécaires assurés au cours de la période selon le pointage de crédit à l’initiation (%)"},{"$f":"IFERROR(VLOOKUP(G1784,Translation!$A:$C,3,FALSE),G1784)","v":"724.5"},{"$f":"IFERROR(VLOOKUP(H1784,Translation!$A:$C,3,FALSE),H1784)","v":"Alberta"}]
[13,"T2 2017","ASSURANCE DE PORTEFEUILLE","Colombie-Britannique",731.02574004985252,"Prêts hypothécaires assurés au cours de la période selon le pointage de crédit à l’initiation (%)","731.0","Colombie-Britannique",{"$f":"IFERROR(VLOOKUP(A1785,Translation!$A:$C,3,FALSE),A1785)","v":13},{"$f":"IFERROR(VLOOKUP(B1785,Translation!$A:$C,3,FALSE),B1785)","v":"T2 2017"},{"$f":"IFERROR(VLOOKUP(C1785,Translation!$A:$C,3,FALSE),C1785)","v":"ASSURANCE DE PORTEFEUILLE"},{"$f":"IFERROR(VLOOKUP(D1785,Translation!$A:$C,3,FALSE),D1785)","v":"Colombie-Britannique"},{"$f":"IFERROR(VLOOKUP(E1785,Translation!$A:$C,3,FALSE),E1785)","v":731.02574004985252},{"$f":"IFERROR(VLOOKUP(F1785,Translation!$A:$C,3,FALSE),F1785)","v":"Prêts hypothécaires assurés au cours de la période selon le pointage de crédit à l’initiation (%)"},{"$f":"IFERROR(VLOOKUP(G1785,Translation!$A:$C,3,FALSE),G1785)","v":"731.0"},{"$f":"IFERROR(VLOOKUP(H1785,Translation!$A:$C,3,FALSE),H1785)","v":"Colombie-Britannique"}]
[13,"Q3 2016","ASSURANCE DE PORTEFEUILLE","Terre-Neuve-et-Labrador",735.65554980284287,"Prêts hypothécaires assurés au cours de la période selon le pointage de crédit à l’initiation (%)","735.7","Terre-Neuve-et-Labrador",{"$f":"IFERROR(VLOOKUP(A1786,Translation!$A:$C,3,FALSE),A1786)","v":13},{"$f":"IFERROR(VLOOKUP(B1786,Translation!$A:$C,3,FALSE),B1786)","v":"Q3 2016"},{"$f":"IFERROR(VLOOKUP(C1786,Translation!$A:$C,3,FALSE),C1786)","v":"ASSURANCE DE PORTEFEUILLE"},{"$f":"IFERROR(VLOOKUP(D1786,Translation!$A:$C,3,FALSE),D1786)","v":"Terre-Neuve-et-Labrador"},{"$f":"IFERROR(VLOOKUP(E1786,Translation!$A:$C,3,FALSE),E1786)","v":735.65554980284287},{"$f":"IFERROR(VLOOKUP(F1786,Translation!$A:$C,3,FALSE),F1786)","v":"Prêts hypothécaires assurés au cours de la période selon le pointage de crédit à l’initiation (%)"},{"$f":"IFERROR(VLOOKUP(G1786,Translation!$A:$C,3,FALSE),G1786)","v":"735.7"},{"$f":"IFERROR(VLOOKUP(H1786,Translation!$A:$C,3,FALSE),H1786)","v":"Terre-Neuve-et-Labrador"}]
[13,"Q3 2016","ASSURANCE DE PORTEFEUILLE","Île-du-Prince-Édouard",719.50028891737156,"Prêts hypothécaires assurés au cours de la période selon le pointage de crédit à l’initiation (%)","719.5","Île-du-Prince-Édouard",{"$f":"IFERROR(VLOOKUP(A1787,Translation!$A:$C,3,FALSE),A1787)","v":13},{"$f":"IFERROR(VLOOKUP(B1787,Translation!$A:$C,3,FALSE),B1787)","v":"Q3 2016"},{"$f":"IFERROR(VLOOKUP(C1787,Translation!$A:$C,3,FALSE),C1787)","v":"ASSURANCE DE PORTEFEUILLE"},{"$f":"IFERROR(VLOOKUP(D1787,Translation!$A:$C,3,FALSE),D1787)","v":"Île-du-Prince-Édouard"},{"$f":"IFERROR(VLOOKUP(E1787,Translation!$A:$C,3,FALSE),E1787)","v":719.50028891737156},{"$f":"IFERROR(VLOOKUP(F1787,Translation!$A:$C,3,FALSE),F1787)","v":"Prêts hypothécaires assurés au cours de la période selon le pointage de crédit à l’initiation (%)"},{"$f":"IFERROR(VLOOKUP(G1787,Translation!$A:$C,3,FALSE),G1787)","v":"719.5"},{"$f":"IFERROR(VLOOKUP(H1787,Translation!$A:$C,3,FALSE),H1787)","v":"Île-du-Prince-Édouard"}]
[13,"Q3 2016","ASSURANCE DE PORTEFEUILLE","Nouvelle-Écosse",745.86247105665279,"Prêts hypothécaires assurés au cours de la période selon le pointage de crédit à l’initiation (%)","745.9","Nouvelle-Écosse",{"$f":"IFERROR(VLOOKUP(A1788,Translation!$A:$C,3,FALSE),A1788)","v":13},{"$f":"IFERROR(VLOOKUP(B1788,Translation!$A:$C,3,FALSE),B1788)","v":"Q3 2016"},{"$f":"IFERROR(VLOOKUP(C1788,Translation!$A:$C,3,FALSE),C1788)","v":"ASSURANCE DE PORTEFEUILLE"},{"$f":"IFERROR(VLOOKUP(D1788,Translation!$A:$C,3,FALSE),D1788)","v":"Nouvelle-Écosse"},{"$f":"IFERROR(VLOOKUP(E1788,Translation!$A:$C,3,FALSE),E1788)","v":745.86247105665279},{"$f":"IFERROR(VLOOKUP(F1788,Translation!$A:$C,3,FALSE),F1788)","v":"Prêts hypothécaires assurés au cours de la période selon le pointage de crédit à l’initiation (%)"},{"$f":"IFERROR(VLOOKUP(G1788,Translation!$A:$C,3,FALSE),G1788)","v":"745.9"},{"$f":"IFERROR(VLOOKUP(H1788,Translation!$A:$C,3,FALSE),H1788)","v":"Nouvelle-Écosse"}]
[13,"Q3 2016","ASSURANCE DE PORTEFEUILLE","Nouveau-Brunswick",755.76260097423358,"Prêts hypothécaires assurés au cours de la période selon le pointage de crédit à l’initiation (%)","755.8","Nouveau-Brunswick",{"$f":"IFERROR(VLOOKUP(A1789,Translation!$A:$C,3,FALSE),A1789)","v":13},{"$f":"IFERROR(VLOOKUP(B1789,Translation!$A:$C,3,FALSE),B1789)","v":"Q3 2016"},{"$f":"IFERROR(VLOOKUP(C1789,Translation!$A:$C,3,FALSE),C1789)","v":"ASSURANCE DE PORTEFEUILLE"},{"$f":"IFERROR(VLOOKUP(D1789,Translation!$A:$C,3,FALSE),D1789)","v":"Nouveau-Brunswick"},{"$f":"IFERROR(VLOOKUP(E1789,Translation!$A:$C,3,FALSE),E1789)","v":755.76260097423358},{"$f":"IFERROR(VLOOKUP(F1789,Translation!$A:$C,3,FALSE),F1789)","v":"Prêts hypothécaires assurés au cours de la période selon le pointage de crédit à l’initiation (%)"},{"$f":"IFERROR(VLOOKUP(G1789,Translation!$A:$C,3,FALSE),G1789)","v":"755.8"},{"$f":"IFERROR(VLOOKUP(H1789,Translation!$A:$C,3,FALSE),H1789)","v":"Nouveau-Brunswick"}]
[13,"Q3 2016","ASSURANCE DE PORTEFEUILLE","Québec",756.57150596009092,"Prêts hypothécaires assurés au cours de la période selon le pointage de crédit à l’initiation (%)","756.6","Québec",{"$f":"IFERROR(VLOOKUP(A1790,Translation!$A:$C,3,FALSE),A1790)","v":13},{"$f":"IFERROR(VLOOKUP(B1790,Translation!$A:$C,3,FALSE),B1790)","v":"Q3 2016"},{"$f":"IFERROR(VLOOKUP(C1790,Translation!$A:$C,3,FALSE),C1790)","v":"ASSURANCE DE PORTEFEUILLE"},{"$f":"IFERROR(VLOOKUP(D1790,Translation!$A:$C,3,FALSE),D1790)","v":"Québec"},{"$f":"IFERROR(VLOOKUP(E1790,Translation!$A:$C,3,FALSE),E1790)","v":756.57150596009092},{"$f":"IFERROR(VLOOKUP(F1790,Translation!$A:$C,3,FALSE),F1790)","v":"Prêts hypothécaires assurés au cours de la période selon le pointage de crédit à l’initiation (%)"},{"$f":"IFERROR(VLOOKUP(G1790,Translation!$A:$C,3,FALSE),G1790)","v":"756.6"},{"$f":"IFERROR(VLOOKUP(H1790,Translation!$A:$C,3,FALSE),H1790)","v":"Québec"}]
[13,"Q3 2016","ASSURANCE DE PORTEFEUILLE","Ontario",747.05410083776349,"Prêts hypothécaires assurés au cours de la période selon le pointage de crédit à l’initiation (%)","747.1","Ontario",{"$f":"IFERROR(VLOOKUP(A1791,Translation!$A:$C,3,FALSE),A1791)","v":13},{"$f":"IFERROR(VLOOKUP(B1791,Translation!$A:$C,3,FALSE),B1791)","v":"Q3 2016"},{"$f":"IFERROR(VLOOKUP(C1791,Translation!$A:$C,3,FALSE),C1791)","v":"ASSURANCE DE PORTEFEUILLE"},{"$f":"IFERROR(VLOOKUP(D1791,Translation!$A:$C,3,FALSE),D1791)","v":"Ontario"},{"$f":"IFERROR(VLOOKUP(E1791,Translation!$A:$C,3,FALSE),E1791)","v":747.05410083776349},{"$f":"IFERROR(VLOOKUP(F1791,Translation!$A:$C,3,FALSE),F1791)","v":"Prêts hypothécaires assurés au cours de la période selon le pointage de crédit à l’initiation (%)"},{"$f":"IFERROR(VLOOKUP(G1791,Translation!$A:$C,3,FALSE),G1791)","v":"747.1"},{"$f":"IFERROR(VLOOKUP(H1791,Translation!$A:$C,3,FALSE),H1791)","v":"Ontario"}]
[13,"Q3 2016","ASSURANCE DE PORTEFEUILLE","Manitoba",759.49333523206622,"Prêts hypothécaires assurés au cours de la période selon le pointage de crédit à l’initiation (%)","759.5","Manitoba",{"$f":"IFERROR(VLOOKUP(A1792,Translation!$A:$C,3,FALSE),A1792)","v":13},{"$f":"IFERROR(VLOOKUP(B1792,Translation!$A:$C,3,FALSE),B1792)","v":"Q3 2016"},{"$f":"IFERROR(VLOOKUP(C1792,Translation!$A:$C,3,FALSE),C1792)","v":"ASSURANCE DE PORTEFEUILLE"},{"$f":"IFERROR(VLOOKUP(D1792,Translation!$A:$C,3,FALSE),D1792)","v":"Manitoba"},{"$f":"IFERROR(VLOOKUP(E1792,Translation!$A:$C,3,FALSE),E1792)","v":759.49333523206622},{"$f":"IFERROR(VLOOKUP(F1792,Translation!$A:$C,3,FALSE),F1792)","v":"Prêts hypothécaires assurés au cours de la période selon le pointage de crédit à l’initiation (%)"},{"$f":"IFERROR(VLOOKUP(G1792,Translation!$A:$C,3,FALSE),G1792)","v":"759.5"},{"$f":"IFERROR(VLOOKUP(H1792,Translation!$A:$C,3,FALSE),H1792)","v":"Manitoba"}]
[13,"Q3 2016","ASSURANCE DE PORTEFEUILLE","Saskatchewan",754.55729523427601,"Prêts hypothécaires assurés au cours de la période selon le pointage de crédit à l’initiation (%)","754.6","Saskatchewan",{"$f":"IFERROR(VLOOKUP(A1793,Translation!$A:$C,3,FALSE),A1793)","v":13},{"$f":"IFERROR(VLOOKUP(B1793,Translation!$A:$C,3,FALSE),B1793)","v":"Q3 2016"},{"$f":"IFERROR(VLOOKUP(C1793,Translation!$A:$C,3,FALSE),C1793)","v":"ASSURANCE DE PORTEFEUILLE"},{"$f":"IFERROR(VLOOKUP(D1793,Translation!$A:$C,3,FALSE),D1793)","v":"Saskatchewan"},{"$f":"IFERROR(VLOOKUP(E1793,Translation!$A:$C,3,FALSE),E1793)","v":754.55729523427601},{"$f":"IFERROR(VLOOKUP(F1793,Translation!$A:$C,3,FALSE),F1793)","v":"Prêts hypothécaires assurés au cours de la période selon le pointage de crédit à l’initiation (%)"},{"$f":"IFERROR(VLOOKUP(G1793,Translation!$A:$C,3,FALSE),G1793)","v":"754.6"},{"$f":"IFERROR(VLOOKUP(H1793,Translation!$A:$C,3,FALSE),H1793)","v":"Saskatchewan"}]
[13,"Q3 2016","ASSURANCE DE PORTEFEUILLE","Alberta",750.94619904826948,"Prêts hypothécaires assurés au cours de la période selon le pointage de crédit à l’initiation (%)","750.9","Alberta",{"$f":"IFERROR(VLOOKUP(A1794,Translation!$A:$C,3,FALSE),A1794)","v":13},{"$f":"IFERROR(VLOOKUP(B1794,Translation!$A:$C,3,FALSE),B1794)","v":"Q3 2016"},{"$f":"IFERROR(VLOOKUP(C1794,Translation!$A:$C,3,FALSE),C1794)","v":"ASSURANCE DE PORTEFEUILLE"},{"$f":"IFERROR(VLOOKUP(D1794,Translation!$A:$C,3,FALSE),D1794)","v":"Alberta"},{"$f":"IFERROR(VLOOKUP(E1794,Translation!$A:$C,3,FALSE),E1794)","v":750.94619904826948},{"$f":"IFERROR(VLOOKUP(F1794,Translation!$A:$C,3,FALSE),F1794)","v":"Prêts hypothécaires assurés au cours de la période selon le pointage de crédit à l’initiation (%)"},{"$f":"IFERROR(VLOOKUP(G1794,Translation!$A:$C,3,FALSE),G1794)","v":"750.9"},{"$f":"IFERROR(VLOOKUP(H1794,Translation!$A:$C,3,FALSE),H1794)","v":"Alberta"}]
[13,"Q3 2016","ASSURANCE DE PORTEFEUILLE","Colombie-Britannique",759.00353326964705,"Prêts hypothécaires assurés au cours de la période selon le pointage de crédit à l’initiation (%)","759.0","Colombie-Britannique",{"$f":"IFERROR(VLOOKUP(A1795,Translation!$A:$C,3,FALSE),A1795)","v":13},{"$f":"IFERROR(VLOOKUP(B1795,Translation!$A:$C,3,FALSE),B1795)","v":"Q3 2016"},{"$f":"IFERROR(VLOOKUP(C1795,Translation!$A:$C,3,FALSE),C1795)","v":"ASSURANCE DE PORTEFEUILLE"},{"$f":"IFERROR(VLOOKUP(D1795,Translation!$A:$C,3,FALSE),D1795)","v":"Colombie-Britannique"},{"$f":"IFERROR(VLOOKUP(E1795,Translation!$A:$C,3,FALSE),E1795)","v":759.00353326964705},{"$f":"IFERROR(VLOOKUP(F1795,Translation!$A:$C,3,FALSE),F1795)","v":"Prêts hypothécaires assurés au cours de la période selon le pointage de crédit à l’initiation (%)"},{"$f":"IFERROR(VLOOKUP(G1795,Translation!$A:$C,3,FALSE),G1795)","v":"759.0"},{"$f":"IFERROR(VLOOKUP(H1795,Translation!$A:$C,3,FALSE),H1795)","v":"Colombie-Britannique"}]
[13,"Q3 2016","ASSURANCE DE PORTEFEUILLE","Territoires",730.65777857484352,"Prêts hypothécaires assurés au cours de la période selon le pointage de crédit à l’initiation (%)","730.7","Territoires",{"$f":"IFERROR(VLOOKUP(A1796,Translation!$A:$C,3,FALSE),A1796)","v":13},{"$f":"IFERROR(VLOOKUP(B1796,Translation!$A:$C,3,FALSE),B1796)","v":"Q3 2016"},{"$f":"IFERROR(VLOOKUP(C1796,Translation!$A:$C,3,FALSE),C1796)","v":"ASSURANCE DE PORTEFEUILLE"},{"$f":"IFERROR(VLOOKUP(D1796,Translation!$A:$C,3,FALSE),D1796)","v":"Territoires"},{"$f":"IFERROR(VLOOKUP(E1796,Translation!$A:$C,3,FALSE),E1796)","v":730.65777857484352},{"$f":"IFERROR(VLOOKUP(F1796,Translation!$A:$C,3,FALSE),F1796)","v":"Prêts hypothécaires assurés au cours de la période selon le pointage de crédit à l’initiation (%)"},{"$f":"IFERROR(VLOOKUP(G1796,Translation!$A:$C,3,FALSE),G1796)","v":"730.7"},{"$f":"IFERROR(VLOOKUP(H1796,Translation!$A:$C,3,FALSE),H1796)","v":"Territoires"}]
[13,"T3 2017","ASSURANCE DE PORTEFEUILLE","Terre-Neuve-et-Labrador",689.06382402548445,"Prêts hypothécaires assurés au cours de la période selon le pointage de crédit à l’initiation (%)","689.1","Terre-Neuve-et-Labrador",{"$f":"IFERROR(VLOOKUP(A1797,Translation!$A:$C,3,FALSE),A1797)","v":13},{"$f":"IFERROR(VLOOKUP(B1797,Translation!$A:$C,3,FALSE),B1797)","v":"T3 2017"},{"$f":"IFERROR(VLOOKUP(C1797,Translation!$A:$C,3,FALSE),C1797)","v":"ASSURANCE DE PORTEFEUILLE"},{"$f":"IFERROR(VLOOKUP(D1797,Translation!$A:$C,3,FALSE),D1797)","v":"Terre-Neuve-et-Labrador"},{"$f":"IFERROR(VLOOKUP(E1797,Translation!$A:$C,3,FALSE),E1797)","v":689.06382402548445},{"$f":"IFERROR(VLOOKUP(F1797,Translation!$A:$C,3,FALSE),F1797)","v":"Prêts hypothécaires assurés au cours de la période selon le pointage de crédit à l’initiation (%)"},{"$f":"IFERROR(VLOOKUP(G1797,Translation!$A:$C,3,FALSE),G1797)","v":"689.1"},{"$f":"IFERROR(VLOOKUP(H1797,Translation!$A:$C,3,FALSE),H1797)","v":"Terre-Neuve-et-Labrador"}]
[13,"T3 2017","ASSURANCE DE PORTEFEUILLE","Île-du-Prince-Édouard",734,"Prêts hypothécaires assurés au cours de la période selon le pointage de crédit à l’initiation (%)","734.0","Île-du-Prince-Édouard",{"$f":"IFERROR(VLOOKUP(A1798,Translation!$A:$C,3,FALSE),A1798)","v":13},{"$f":"IFERROR(VLOOKUP(B1798,Translation!$A:$C,3,FALSE),B1798)","v":"T3 2017"},{"$f":"IFERROR(VLOOKUP(C1798,Translation!$A:$C,3,FALSE),C1798)","v":"ASSURANCE DE PORTEFEUILLE"},{"$f":"IFERROR(VLOOKUP(D1798,Translation!$A:$C,3,FALSE),D1798)","v":"Île-du-Prince-Édouard"},{"$f":"IFERROR(VLOOKUP(E1798,Translation!$A:$C,3,FALSE),E1798)","v":734},{"$f":"IFERROR(VLOOKUP(F1798,Translation!$A:$C,3,FALSE),F1798)","v":"Prêts hypothécaires assurés au cours de la période selon le pointage de crédit à l’initiation (%)"},{"$f":"IFERROR(VLOOKUP(G1798,Translation!$A:$C,3,FALSE),G1798)","v":"734.0"},{"$f":"IFERROR(VLOOKUP(H1798,Translation!$A:$C,3,FALSE),H1798)","v":"Île-du-Prince-Édouard"}]
[13,"T3 2017","ASSURANCE DE PORTEFEUILLE","Nouvelle-Écosse",753.1380387574286,"Prêts hypothécaires assurés au cours de la période selon le pointage de crédit à l’initiation (%)","753.1","Nouvelle-Écosse",{"$f":"IFERROR(VLOOKUP(A1799,Translation!$A:$C,3,FALSE),A1799)","v":13},{"$f":"IFERROR(VLOOKUP(B1799,Translation!$A:$C,3,FALSE),B1799)","v":"T3 2017"},{"$f":"IFERROR(VLOOKUP(C1799,Translation!$A:$C,3,FALSE),C1799)","v":"ASSURANCE DE PORTEFEUILLE"},{"$f":"IFERROR(VLOOKUP(D1799,Translation!$A:$C,3,FALSE),D1799)","v":"Nouvelle-Écosse"},{"$f":"IFERROR(VLOOKUP(E1799,Translation!$A:$C,3,FALSE),E1799)","v":753.1380387574286},{"$f":"IFERROR(VLOOKUP(F1799,Translation!$A:$C,3,FALSE),F1799)","v":"Prêts hypothécaires assurés au cours de la période selon le pointage de crédit à l’initiation (%)"},{"$f":"IFERROR(VLOOKUP(G1799,Translation!$A:$C,3,FALSE),G1799)","v":"753.1"},{"$f":"IFERROR(VLOOKUP(H1799,Translation!$A:$C,3,FALSE),H1799)","v":"Nouvelle-Écosse"}]
[13,"T3 2017","ASSURANCE DE PORTEFEUILLE","Nouveau-Brunswick",779,"Prêts hypothécaires assurés au cours de la période selon le pointage de crédit à l’initiation (%)","779.0","Nouveau-Brunswick",{"$f":"IFERROR(VLOOKUP(A1800,Translation!$A:$C,3,FALSE),A1800)","v":13},{"$f":"IFERROR(VLOOKUP(B1800,Translation!$A:$C,3,FALSE),B1800)","v":"T3 2017"},{"$f":"IFERROR(VLOOKUP(C1800,Translation!$A:$C,3,FALSE),C1800)","v":"ASSURANCE DE PORTEFEUILLE"},{"$f":"IFERROR(VLOOKUP(D1800,Translation!$A:$C,3,FALSE),D1800)","v":"Nouveau-Brunswick"},{"$f":"IFERROR(VLOOKUP(E1800,Translation!$A:$C,3,FALSE),E1800)","v":779},{"$f":"IFERROR(VLOOKUP(F1800,Translation!$A:$C,3,FALSE),F1800)","v":"Prêts hypothécaires assurés au cours de la période selon le pointage de crédit à l’initiation (%)"},{"$f":"IFERROR(VLOOKUP(G1800,Translation!$A:$C,3,FALSE),G1800)","v":"779.0"},{"$f":"IFERROR(VLOOKUP(H1800,Translation!$A:$C,3,FALSE),H1800)","v":"Nouveau-Brunswick"}]
[13,"T3 2017","ASSURANCE DE PORTEFEUILLE","Québec",774.28513247733292,"Prêts hypothécaires assurés au cours de la période selon le pointage de crédit à l’initiation (%)","774.3","Québec",{"$f":"IFERROR(VLOOKUP(A1801,Translation!$A:$C,3,FALSE),A1801)","v":13},{"$f":"IFERROR(VLOOKUP(B1801,Translation!$A:$C,3,FALSE),B1801)","v":"T3 2017"},{"$f":"IFERROR(VLOOKUP(C1801,Translation!$A:$C,3,FALSE),C1801)","v":"ASSURANCE DE PORTEFEUILLE"},{"$f":"IFERROR(VLOOKUP(D1801,Translation!$A:$C,3,FALSE),D1801)","v":"Québec"},{"$f":"IFERROR(VLOOKUP(E1801,Translation!$A:$C,3,FALSE),E1801)","v":774.28513247733292},{"$f":"IFERROR(VLOOKUP(F1801,Translation!$A:$C,3,FALSE),F1801)","v":"Prêts hypothécaires assurés au cours de la période selon le pointage de crédit à l’initiation (%)"},{"$f":"IFERROR(VLOOKUP(G1801,Translation!$A:$C,3,FALSE),G1801)","v":"774.3"},{"$f":"IFERROR(VLOOKUP(H1801,Translation!$A:$C,3,FALSE),H1801)","v":"Québec"}]
[13,"T3 2017","ASSURANCE DE PORTEFEUILLE","Ontario",747.83605387652517,"Prêts hypothécaires assurés au cours de la période selon le pointage de crédit à l’initiation (%)","747.8","Ontario",{"$f":"IFERROR(VLOOKUP(A1802,Translation!$A:$C,3,FALSE),A1802)","v":13},{"$f":"IFERROR(VLOOKUP(B1802,Translation!$A:$C,3,FALSE),B1802)","v":"T3 2017"},{"$f":"IFERROR(VLOOKUP(C1802,Translation!$A:$C,3,FALSE),C1802)","v":"ASSURANCE DE PORTEFEUILLE"},{"$f":"IFERROR(VLOOKUP(D1802,Translation!$A:$C,3,FALSE),D1802)","v":"Ontario"},{"$f":"IFERROR(VLOOKUP(E1802,Translation!$A:$C,3,FALSE),E1802)","v":747.83605387652517},{"$f":"IFERROR(VLOOKUP(F1802,Translation!$A:$C,3,FALSE),F1802)","v":"Prêts hypothécaires assurés au cours de la période selon le pointage de crédit à l’initiation (%)"},{"$f":"IFERROR(VLOOKUP(G1802,Translation!$A:$C,3,FALSE),G1802)","v":"747.8"},{"$f":"IFERROR(VLOOKUP(H1802,Translation!$A:$C,3,FALSE),H1802)","v":"Ontario"}]
[13,"T3 2017","ASSURANCE DE PORTEFEUILLE","Manitoba",768.43582458655374,"Prêts hypothécaires assurés au cours de la période selon le pointage de crédit à l’initiation (%)","768.4","Manitoba",{"$f":"IFERROR(VLOOKUP(A1803,Translation!$A:$C,3,FALSE),A1803)","v":13},{"$f":"IFERROR(VLOOKUP(B1803,Translation!$A:$C,3,FALSE),B1803)","v":"T3 2017"},{"$f":"IFERROR(VLOOKUP(C1803,Translation!$A:$C,3,FALSE),C1803)","v":"ASSURANCE DE PORTEFEUILLE"},{"$f":"IFERROR(VLOOKUP(D1803,Translation!$A:$C,3,FALSE),D1803)","v":"Manitoba"},{"$f":"IFERROR(VLOOKUP(E1803,Translation!$A:$C,3,FALSE),E1803)","v":768.43582458655374},{"$f":"IFERROR(VLOOKUP(F1803,Translation!$A:$C,3,FALSE),F1803)","v":"Prêts hypothécaires assurés au cours de la période selon le pointage de crédit à l’initiation (%)"},{"$f":"IFERROR(VLOOKUP(G1803,Translation!$A:$C,3,FALSE),G1803)","v":"768.4"},{"$f":"IFERROR(VLOOKUP(H1803,Translation!$A:$C,3,FALSE),H1803)","v":"Manitoba"}]
[13,"T3 2017","ASSURANCE DE PORTEFEUILLE","Saskatchewan",774.62489045383552,"Prêts hypothécaires assurés au cours de la période selon le pointage de crédit à l’initiation (%)","774.6","Saskatchewan",{"$f":"IFERROR(VLOOKUP(A1804,Translation!$A:$C,3,FALSE),A1804)","v":13},{"$f":"IFERROR(VLOOKUP(B1804,Translation!$A:$C,3,FALSE),B1804)","v":"T3 2017"},{"$f":"IFERROR(VLOOKUP(C1804,Translation!$A:$C,3,FALSE),C1804)","v":"ASSURANCE DE PORTEFEUILLE"},{"$f":"IFERROR(VLOOKUP(D1804,Translation!$A:$C,3,FALSE),D1804)","v":"Saskatchewan"},{"$f":"IFERROR(VLOOKUP(E1804,Translation!$A:$C,3,FALSE),E1804)","v":774.62489045383552},{"$f":"IFERROR(VLOOKUP(F1804,Translation!$A:$C,3,FALSE),F1804)","v":"Prêts hypothécaires assurés au cours de la période selon le pointage de crédit à l’initiation (%)"},{"$f":"IFERROR(VLOOKUP(G1804,Translation!$A:$C,3,FALSE),G1804)","v":"774.6"},{"$f":"IFERROR(VLOOKUP(H1804,Translation!$A:$C,3,FALSE),H1804)","v":"Saskatchewan"}]
[13,"T3 2017","ASSURANCE DE PORTEFEUILLE","Alberta",727.38230294013374,"Prêts hypothécaires assurés au cours de la période selon le pointage de crédit à l’initiation (%)","727.4","Alberta",{"$f":"IFERROR(VLOOKUP(A1805,Translation!$A:$C,3,FALSE),A1805)","v":13},{"$f":"IFERROR(VLOOKUP(B1805,Translation!$A:$C,3,FALSE),B1805)","v":"T3 2017"},{"$f":"IFERROR(VLOOKUP(C1805,Translation!$A:$C,3,FALSE),C1805)","v":"ASSURANCE DE PORTEFEUILLE"},{"$f":"IFERROR(VLOOKUP(D1805,Translation!$A:$C,3,FALSE),D1805)","v":"Alberta"},{"$f":"IFERROR(VLOOKUP(E1805,Translation!$A:$C,3,FALSE),E1805)","v":727.38230294013374},{"$f":"IFERROR(VLOOKUP(F1805,Translation!$A:$C,3,FALSE),F1805)","v":"Prêts hypothécaires assurés au cours de la période selon le pointage de crédit à l’initiation (%)"},{"$f":"IFERROR(VLOOKUP(G1805,Translation!$A:$C,3,FALSE),G1805)","v":"727.4"},{"$f":"IFERROR(VLOOKUP(H1805,Translation!$A:$C,3,FALSE),H1805)","v":"Alberta"}]
[13,"T3 2017","ASSURANCE DE PORTEFEUILLE","Colombie-Britannique",749.79472372979058,"Prêts hypothécaires assurés au cours de la période selon le pointage de crédit à l’initiation (%)","749.8","Colombie-Britannique",{"$f":"IFERROR(VLOOKUP(A1806,Translation!$A:$C,3,FALSE),A1806)","v":13},{"$f":"IFERROR(VLOOKUP(B1806,Translation!$A:$C,3,FALSE),B1806)","v":"T3 2017"},{"$f":"IFERROR(VLOOKUP(C1806,Translation!$A:$C,3,FALSE),C1806)","v":"ASSURANCE DE PORTEFEUILLE"},{"$f":"IFERROR(VLOOKUP(D1806,Translation!$A:$C,3,FALSE),D1806)","v":"Colombie-Britannique"},{"$f":"IFERROR(VLOOKUP(E1806,Translation!$A:$C,3,FALSE),E1806)","v":749.79472372979058},{"$f":"IFERROR(VLOOKUP(F1806,Translation!$A:$C,3,FALSE),F1806)","v":"Prêts hypothécaires assurés au cours de la période selon le pointage de crédit à l’initiation (%)"},{"$f":"IFERROR(VLOOKUP(G1806,Translation!$A:$C,3,FALSE),G1806)","v":"749.8"},{"$f":"IFERROR(VLOOKUP(H1806,Translation!$A:$C,3,FALSE),H1806)","v":"Colombie-Britannique"}]
[13,"Q4 2016","ASSURANCE DE PORTEFEUILLE","Terre-Neuve-et-Labrador",740.9820469240733,"Prêts hypothécaires assurés au cours de la période selon le pointage de crédit à l’initiation (%)","741.0","Terre-Neuve-et-Labrador",{"$f":"IFERROR(VLOOKUP(A1807,Translation!$A:$C,3,FALSE),A1807)","v":13},{"$f":"IFERROR(VLOOKUP(B1807,Translation!$A:$C,3,FALSE),B1807)","v":"Q4 2016"},{"$f":"IFERROR(VLOOKUP(C1807,Translation!$A:$C,3,FALSE),C1807)","v":"ASSURANCE DE PORTEFEUILLE"},{"$f":"IFERROR(VLOOKUP(D1807,Translation!$A:$C,3,FALSE),D1807)","v":"Terre-Neuve-et-Labrador"},{"$f":"IFERROR(VLOOKUP(E1807,Translation!$A:$C,3,FALSE),E1807)","v":740.9820469240733},{"$f":"IFERROR(VLOOKUP(F1807,Translation!$A:$C,3,FALSE),F1807)","v":"Prêts hypothécaires assurés au cours de la période selon le pointage de crédit à l’initiation (%)"},{"$f":"IFERROR(VLOOKUP(G1807,Translation!$A:$C,3,FALSE),G1807)","v":"741.0"},{"$f":"IFERROR(VLOOKUP(H1807,Translation!$A:$C,3,FALSE),H1807)","v":"Terre-Neuve-et-Labrador"}]
[13,"Q4 2016","ASSURANCE DE PORTEFEUILLE","Île-du-Prince-Édouard",746.32067757838513,"Prêts hypothécaires assurés au cours de la période selon le pointage de crédit à l’initiation (%)","746.3","Île-du-Prince-Édouard",{"$f":"IFERROR(VLOOKUP(A1808,Translation!$A:$C,3,FALSE),A1808)","v":13},{"$f":"IFERROR(VLOOKUP(B1808,Translation!$A:$C,3,FALSE),B1808)","v":"Q4 2016"},{"$f":"IFERROR(VLOOKUP(C1808,Translation!$A:$C,3,FALSE),C1808)","v":"ASSURANCE DE PORTEFEUILLE"},{"$f":"IFERROR(VLOOKUP(D1808,Translation!$A:$C,3,FALSE),D1808)","v":"Île-du-Prince-Édouard"},{"$f":"IFERROR(VLOOKUP(E1808,Translation!$A:$C,3,FALSE),E1808)","v":746.32067757838513},{"$f":"IFERROR(VLOOKUP(F1808,Translation!$A:$C,3,FALSE),F1808)","v":"Prêts hypothécaires assurés au cours de la période selon le pointage de crédit à l’initiation (%)"},{"$f":"IFERROR(VLOOKUP(G1808,Translation!$A:$C,3,FALSE),G1808)","v":"746.3"},{"$f":"IFERROR(VLOOKUP(H1808,Translation!$A:$C,3,FALSE),H1808)","v":"Île-du-Prince-Édouard"}]
[13,"Q4 2016","ASSURANCE DE PORTEFEUILLE","Nouvelle-Écosse",746.36523094919346,"Prêts hypothécaires assurés au cours de la période selon le pointage de crédit à l’initiation (%)","746.4","Nouvelle-Écosse",{"$f":"IFERROR(VLOOKUP(A1809,Translation!$A:$C,3,FALSE),A1809)","v":13},{"$f":"IFERROR(VLOOKUP(B1809,Translation!$A:$C,3,FALSE),B1809)","v":"Q4 2016"},{"$f":"IFERROR(VLOOKUP(C1809,Translation!$A:$C,3,FALSE),C1809)","v":"ASSURANCE DE PORTEFEUILLE"},{"$f":"IFERROR(VLOOKUP(D1809,Translation!$A:$C,3,FALSE),D1809)","v":"Nouvelle-Écosse"},{"$f":"IFERROR(VLOOKUP(E1809,Translation!$A:$C,3,FALSE),E1809)","v":746.36523094919346},{"$f":"IFERROR(VLOOKUP(F1809,Translation!$A:$C,3,FALSE),F1809)","v":"Prêts hypothécaires assurés au cours de la période selon le pointage de crédit à l’initiation (%)"},{"$f":"IFERROR(VLOOKUP(G1809,Translation!$A:$C,3,FALSE),G1809)","v":"746.4"},{"$f":"IFERROR(VLOOKUP(H1809,Translation!$A:$C,3,FALSE),H1809)","v":"Nouvelle-Écosse"}]
[13,"Q4 2016","ASSURANCE DE PORTEFEUILLE","Nouveau-Brunswick",744.38759212604509,"Prêts hypothécaires assurés au cours de la période selon le pointage de crédit à l’initiation (%)","744.4","Nouveau-Brunswick",{"$f":"IFERROR(VLOOKUP(A1810,Translation!$A:$C,3,FALSE),A1810)","v":13},{"$f":"IFERROR(VLOOKUP(B1810,Translation!$A:$C,3,FALSE),B1810)","v":"Q4 2016"},{"$f":"IFERROR(VLOOKUP(C1810,Translation!$A:$C,3,FALSE),C1810)","v":"ASSURANCE DE PORTEFEUILLE"},{"$f":"IFERROR(VLOOKUP(D1810,Translation!$A:$C,3,FALSE),D1810)","v":"Nouveau-Brunswick"},{"$f":"IFERROR(VLOOKUP(E1810,Translation!$A:$C,3,FALSE),E1810)","v":744.38759212604509},{"$f":"IFERROR(VLOOKUP(F1810,Translation!$A:$C,3,FALSE),F1810)","v":"Prêts hypothécaires assurés au cours de la période selon le pointage de crédit à l’initiation (%)"},{"$f":"IFERROR(VLOOKUP(G1810,Translation!$A:$C,3,FALSE),G1810)","v":"744.4"},{"$f":"IFERROR(VLOOKUP(H1810,Translation!$A:$C,3,FALSE),H1810)","v":"Nouveau-Brunswick"}]
[13,"Q4 2016","ASSURANCE DE PORTEFEUILLE","Québec",768.61826978189504,"Prêts hypothécaires assurés au cours de la période selon le pointage de crédit à l’initiation (%)","768.6","Québec",{"$f":"IFERROR(VLOOKUP(A1811,Translation!$A:$C,3,FALSE),A1811)","v":13},{"$f":"IFERROR(VLOOKUP(B1811,Translation!$A:$C,3,FALSE),B1811)","v":"Q4 2016"},{"$f":"IFERROR(VLOOKUP(C1811,Translation!$A:$C,3,FALSE),C1811)","v":"ASSURANCE DE PORTEFEUILLE"},{"$f":"IFERROR(VLOOKUP(D1811,Translation!$A:$C,3,FALSE),D1811)","v":"Québec"},{"$f":"IFERROR(VLOOKUP(E1811,Translation!$A:$C,3,FALSE),E1811)","v":768.61826978189504},{"$f":"IFERROR(VLOOKUP(F1811,Translation!$A:$C,3,FALSE),F1811)","v":"Prêts hypothécaires assurés au cours de la période selon le pointage de crédit à l’initiation (%)"},{"$f":"IFERROR(VLOOKUP(G1811,Translation!$A:$C,3,FALSE),G1811)","v":"768.6"},{"$f":"IFERROR(VLOOKUP(H1811,Translation!$A:$C,3,FALSE),H1811)","v":"Québec"}]
[13,"Q4 2016","ASSURANCE DE PORTEFEUILLE","Ontario",748.81796657695554,"Prêts hypothécaires assurés au cours de la période selon le pointage de crédit à l’initiation (%)","748.8","Ontario",{"$f":"IFERROR(VLOOKUP(A1812,Translation!$A:$C,3,FALSE),A1812)","v":13},{"$f":"IFERROR(VLOOKUP(B1812,Translation!$A:$C,3,FALSE),B1812)","v":"Q4 2016"},{"$f":"IFERROR(VLOOKUP(C1812,Translation!$A:$C,3,FALSE),C1812)","v":"ASSURANCE DE PORTEFEUILLE"},{"$f":"IFERROR(VLOOKUP(D1812,Translation!$A:$C,3,FALSE),D1812)","v":"Ontario"},{"$f":"IFERROR(VLOOKUP(E1812,Translation!$A:$C,3,FALSE),E1812)","v":748.81796657695554},{"$f":"IFERROR(VLOOKUP(F1812,Translation!$A:$C,3,FALSE),F1812)","v":"Prêts hypothécaires assurés au cours de la période selon le pointage de crédit à l’initiation (%)"},{"$f":"IFERROR(VLOOKUP(G1812,Translation!$A:$C,3,FALSE),G1812)","v":"748.8"},{"$f":"IFERROR(VLOOKUP(H1812,Translation!$A:$C,3,FALSE),H1812)","v":"Ontario"}]
[13,"Q4 2016","ASSURANCE DE PORTEFEUILLE","Manitoba",756.34324437078612,"Prêts hypothécaires assurés au cours de la période selon le pointage de crédit à l’initiation (%)","756.3","Manitoba",{"$f":"IFERROR(VLOOKUP(A1813,Translation!$A:$C,3,FALSE),A1813)","v":13},{"$f":"IFERROR(VLOOKUP(B1813,Translation!$A:$C,3,FALSE),B1813)","v":"Q4 2016"},{"$f":"IFERROR(VLOOKUP(C1813,Translation!$A:$C,3,FALSE),C1813)","v":"ASSURANCE DE PORTEFEUILLE"},{"$f":"IFERROR(VLOOKUP(D1813,Translation!$A:$C,3,FALSE),D1813)","v":"Manitoba"},{"$f":"IFERROR(VLOOKUP(E1813,Translation!$A:$C,3,FALSE),E1813)","v":756.34324437078612},{"$f":"IFERROR(VLOOKUP(F1813,Translation!$A:$C,3,FALSE),F1813)","v":"Prêts hypothécaires assurés au cours de la période selon le pointage de crédit à l’initiation (%)"},{"$f":"IFERROR(VLOOKUP(G1813,Translation!$A:$C,3,FALSE),G1813)","v":"756.3"},{"$f":"IFERROR(VLOOKUP(H1813,Translation!$A:$C,3,FALSE),H1813)","v":"Manitoba"}]
[13,"Q4 2016","ASSURANCE DE PORTEFEUILLE","Saskatchewan",757.63416694015916,"Prêts hypothécaires assurés au cours de la période selon le pointage de crédit à l’initiation (%)","757.6","Saskatchewan",{"$f":"IFERROR(VLOOKUP(A1814,Translation!$A:$C,3,FALSE),A1814)","v":13},{"$f":"IFERROR(VLOOKUP(B1814,Translation!$A:$C,3,FALSE),B1814)","v":"Q4 2016"},{"$f":"IFERROR(VLOOKUP(C1814,Translation!$A:$C,3,FALSE),C1814)","v":"ASSURANCE DE PORTEFEUILLE"},{"$f":"IFERROR(VLOOKUP(D1814,Translation!$A:$C,3,FALSE),D1814)","v":"Saskatchewan"},{"$f":"IFERROR(VLOOKUP(E1814,Translation!$A:$C,3,FALSE),E1814)","v":757.63416694015916},{"$f":"IFERROR(VLOOKUP(F1814,Translation!$A:$C,3,FALSE),F1814)","v":"Prêts hypothécaires assurés au cours de la période selon le pointage de crédit à l’initiation (%)"},{"$f":"IFERROR(VLOOKUP(G1814,Translation!$A:$C,3,FALSE),G1814)","v":"757.6"},{"$f":"IFERROR(VLOOKUP(H1814,Translation!$A:$C,3,FALSE),H1814)","v":"Saskatchewan"}]
[13,"Q4 2016","ASSURANCE DE PORTEFEUILLE","Alberta",752.08130937575504,"Prêts hypothécaires assurés au cours de la période selon le pointage de crédit à l’initiation (%)","752.1","Alberta",{"$f":"IFERROR(VLOOKUP(A1815,Translation!$A:$C,3,FALSE),A1815)","v":13},{"$f":"IFERROR(VLOOKUP(B1815,Translation!$A:$C,3,FALSE),B1815)","v":"Q4 2016"},{"$f":"IFERROR(VLOOKUP(C1815,Translation!$A:$C,3,FALSE),C1815)","v":"ASSURANCE DE PORTEFEUILLE"},{"$f":"IFERROR(VLOOKUP(D1815,Translation!$A:$C,3,FALSE),D1815)","v":"Alberta"},{"$f":"IFERROR(VLOOKUP(E1815,Translation!$A:$C,3,FALSE),E1815)","v":752.08130937575504},{"$f":"IFERROR(VLOOKUP(F1815,Translation!$A:$C,3,FALSE),F1815)","v":"Prêts hypothécaires assurés au cours de la période selon le pointage de crédit à l’initiation (%)"},{"$f":"IFERROR(VLOOKUP(G1815,Translation!$A:$C,3,FALSE),G1815)","v":"752.1"},{"$f":"IFERROR(VLOOKUP(H1815,Translation!$A:$C,3,FALSE),H1815)","v":"Alberta"}]
[13,"Q4 2016","ASSURANCE DE PORTEFEUILLE","Colombie-Britannique",754.50943447426107,"Prêts hypothécaires assurés au cours de la période selon le pointage de crédit à l’initiation (%)","754.5","Colombie-Britannique",{"$f":"IFERROR(VLOOKUP(A1816,Translation!$A:$C,3,FALSE),A1816)","v":13},{"$f":"IFERROR(VLOOKUP(B1816,Translation!$A:$C,3,FALSE),B1816)","v":"Q4 2016"},{"$f":"IFERROR(VLOOKUP(C1816,Translation!$A:$C,3,FALSE),C1816)","v":"ASSURANCE DE PORTEFEUILLE"},{"$f":"IFERROR(VLOOKUP(D1816,Translation!$A:$C,3,FALSE),D1816)","v":"Colombie-Britannique"},{"$f":"IFERROR(VLOOKUP(E1816,Translation!$A:$C,3,FALSE),E1816)","v":754.50943447426107},{"$f":"IFERROR(VLOOKUP(F1816,Translation!$A:$C,3,FALSE),F1816)","v":"Prêts hypothécaires assurés au cours de la période selon le pointage de crédit à l’initiation (%)"},{"$f":"IFERROR(VLOOKUP(G1816,Translation!$A:$C,3,FALSE),G1816)","v":"754.5"},{"$f":"IFERROR(VLOOKUP(H1816,Translation!$A:$C,3,FALSE),H1816)","v":"Colombie-Britannique"}]
[13,"Q4 2016","ASSURANCE DE PORTEFEUILLE","Territoires",802.35898397073265,"Prêts hypothécaires assurés au cours de la période selon le pointage de crédit à l’initiation (%)","802.4","Territoires",{"$f":"IFERROR(VLOOKUP(A1817,Translation!$A:$C,3,FALSE),A1817)","v":13},{"$f":"IFERROR(VLOOKUP(B1817,Translation!$A:$C,3,FALSE),B1817)","v":"Q4 2016"},{"$f":"IFERROR(VLOOKUP(C1817,Translation!$A:$C,3,FALSE),C1817)","v":"ASSURANCE DE PORTEFEUILLE"},{"$f":"IFERROR(VLOOKUP(D1817,Translation!$A:$C,3,FALSE),D1817)","v":"Territoires"},{"$f":"IFERROR(VLOOKUP(E1817,Translation!$A:$C,3,FALSE),E1817)","v":802.35898397073265},{"$f":"IFERROR(VLOOKUP(F1817,Translation!$A:$C,3,FALSE),F1817)","v":"Prêts hypothécaires assurés au cours de la période selon le pointage de crédit à l’initiation (%)"},{"$f":"IFERROR(VLOOKUP(G1817,Translation!$A:$C,3,FALSE),G1817)","v":"802.4"},{"$f":"IFERROR(VLOOKUP(H1817,Translation!$A:$C,3,FALSE),H1817)","v":"Territoires"}]
[13,"T4 2017","ASSURANCE DE PORTEFEUILLE","Terre-Neuve-et-Labrador",778.09947269397571,"Prêts hypothécaires assurés au cours de la période selon le pointage de crédit à l’initiation (%)","778.1","Terre-Neuve-et-Labrador",{"$f":"IFERROR(VLOOKUP(A1818,Translation!$A:$C,3,FALSE),A1818)","v":13},{"$f":"IFERROR(VLOOKUP(B1818,Translation!$A:$C,3,FALSE),B1818)","v":"T4 2017"},{"$f":"IFERROR(VLOOKUP(C1818,Translation!$A:$C,3,FALSE),C1818)","v":"ASSURANCE DE PORTEFEUILLE"},{"$f":"IFERROR(VLOOKUP(D1818,Translation!$A:$C,3,FALSE),D1818)","v":"Terre-Neuve-et-Labrador"},{"$f":"IFERROR(VLOOKUP(E1818,Translation!$A:$C,3,FALSE),E1818)","v":778.09947269397571},{"$f":"IFERROR(VLOOKUP(F1818,Translation!$A:$C,3,FALSE),F1818)","v":"Prêts hypothécaires assurés au cours de la période selon le pointage de crédit à l’initiation (%)"},{"$f":"IFERROR(VLOOKUP(G1818,Translation!$A:$C,3,FALSE),G1818)","v":"778.1"},{"$f":"IFERROR(VLOOKUP(H1818,Translation!$A:$C,3,FALSE),H1818)","v":"Terre-Neuve-et-Labrador"}]
[13,"T4 2017","ASSURANCE DE PORTEFEUILLE","Île-du-Prince-Édouard",800.23785471960628,"Prêts hypothécaires assurés au cours de la période selon le pointage de crédit à l’initiation (%)","800.2","Île-du-Prince-Édouard",{"$f":"IFERROR(VLOOKUP(A1819,Translation!$A:$C,3,FALSE),A1819)","v":13},{"$f":"IFERROR(VLOOKUP(B1819,Translation!$A:$C,3,FALSE),B1819)","v":"T4 2017"},{"$f":"IFERROR(VLOOKUP(C1819,Translation!$A:$C,3,FALSE),C1819)","v":"ASSURANCE DE PORTEFEUILLE"},{"$f":"IFERROR(VLOOKUP(D1819,Translation!$A:$C,3,FALSE),D1819)","v":"Île-du-Prince-Édouard"},{"$f":"IFERROR(VLOOKUP(E1819,Translation!$A:$C,3,FALSE),E1819)","v":800.23785471960628},{"$f":"IFERROR(VLOOKUP(F1819,Translation!$A:$C,3,FALSE),F1819)","v":"Prêts hypothécaires assurés au cours de la période selon le pointage de crédit à l’initiation (%)"},{"$f":"IFERROR(VLOOKUP(G1819,Translation!$A:$C,3,FALSE),G1819)","v":"800.2"},{"$f":"IFERROR(VLOOKUP(H1819,Translation!$A:$C,3,FALSE),H1819)","v":"Île-du-Prince-Édouard"}]
[13,"T4 2017","ASSURANCE DE PORTEFEUILLE","Nouvelle-Écosse",771.03926570731437,"Prêts hypothécaires assurés au cours de la période selon le pointage de crédit à l’initiation (%)","771.0","Nouvelle-Écosse",{"$f":"IFERROR(VLOOKUP(A1820,Translation!$A:$C,3,FALSE),A1820)","v":13},{"$f":"IFERROR(VLOOKUP(B1820,Translation!$A:$C,3,FALSE),B1820)","v":"T4 2017"},{"$f":"IFERROR(VLOOKUP(C1820,Translation!$A:$C,3,FALSE),C1820)","v":"ASSURANCE DE PORTEFEUILLE"},{"$f":"IFERROR(VLOOKUP(D1820,Translation!$A:$C,3,FALSE),D1820)","v":"Nouvelle-Écosse"},{"$f":"IFERROR(VLOOKUP(E1820,Translation!$A:$C,3,FALSE),E1820)","v":771.03926570731437},{"$f":"IFERROR(VLOOKUP(F1820,Translation!$A:$C,3,FALSE),F1820)","v":"Prêts hypothécaires assurés au cours de la période selon le pointage de crédit à l’initiation (%)"},{"$f":"IFERROR(VLOOKUP(G1820,Translation!$A:$C,3,FALSE),G1820)","v":"771.0"},{"$f":"IFERROR(VLOOKUP(H1820,Translation!$A:$C,3,FALSE),H1820)","v":"Nouvelle-Écosse"}]
[13,"T4 2017","ASSURANCE DE PORTEFEUILLE","Nouveau-Brunswick",768.561166852871,"Prêts hypothécaires assurés au cours de la période selon le pointage de crédit à l’initiation (%)","768.6","Nouveau-Brunswick",{"$f":"IFERROR(VLOOKUP(A1821,Translation!$A:$C,3,FALSE),A1821)","v":13},{"$f":"IFERROR(VLOOKUP(B1821,Translation!$A:$C,3,FALSE),B1821)","v":"T4 2017"},{"$f":"IFERROR(VLOOKUP(C1821,Translation!$A:$C,3,FALSE),C1821)","v":"ASSURANCE DE PORTEFEUILLE"},{"$f":"IFERROR(VLOOKUP(D1821,Translation!$A:$C,3,FALSE),D1821)","v":"Nouveau-Brunswick"},{"$f":"IFERROR(VLOOKUP(E1821,Translation!$A:$C,3,FALSE),E1821)","v":768.561166852871},{"$f":"IFERROR(VLOOKUP(F1821,Translation!$A:$C,3,FALSE),F1821)","v":"Prêts hypothécaires assurés au cours de la période selon le pointage de crédit à l’initiation (%)"},{"$f":"IFERROR(VLOOKUP(G1821,Translation!$A:$C,3,FALSE),G1821)","v":"768.6"},{"$f":"IFERROR(VLOOKUP(H1821,Translation!$A:$C,3,FALSE),H1821)","v":"Nouveau-Brunswick"}]
[13,"T4 2017","ASSURANCE DE PORTEFEUILLE","Québec",770.56405713685797,"Prêts hypothécaires assurés au cours de la période selon le pointage de crédit à l’initiation (%)","770.6","Québec",{"$f":"IFERROR(VLOOKUP(A1822,Translation!$A:$C,3,FALSE),A1822)","v":13},{"$f":"IFERROR(VLOOKUP(B1822,Translation!$A:$C,3,FALSE),B1822)","v":"T4 2017"},{"$f":"IFERROR(VLOOKUP(C1822,Translation!$A:$C,3,FALSE),C1822)","v":"ASSURANCE DE PORTEFEUILLE"},{"$f":"IFERROR(VLOOKUP(D1822,Translation!$A:$C,3,FALSE),D1822)","v":"Québec"},{"$f":"IFERROR(VLOOKUP(E1822,Translation!$A:$C,3,FALSE),E1822)","v":770.56405713685797},{"$f":"IFERROR(VLOOKUP(F1822,Translation!$A:$C,3,FALSE),F1822)","v":"Prêts hypothécaires assurés au cours de la période selon le pointage de crédit à l’initiation (%)"},{"$f":"IFERROR(VLOOKUP(G1822,Translation!$A:$C,3,FALSE),G1822)","v":"770.6"},{"$f":"IFERROR(VLOOKUP(H1822,Translation!$A:$C,3,FALSE),H1822)","v":"Québec"}]
[13,"T4 2017","ASSURANCE DE PORTEFEUILLE","Ontario",760.10684507176143,"Prêts hypothécaires assurés au cours de la période selon le pointage de crédit à l’initiation (%)","760.1","Ontario",{"$f":"IFERROR(VLOOKUP(A1823,Translation!$A:$C,3,FALSE),A1823)","v":13},{"$f":"IFERROR(VLOOKUP(B1823,Translation!$A:$C,3,FALSE),B1823)","v":"T4 2017"},{"$f":"IFERROR(VLOOKUP(C1823,Translation!$A:$C,3,FALSE),C1823)","v":"ASSURANCE DE PORTEFEUILLE"},{"$f":"IFERROR(VLOOKUP(D1823,Translation!$A:$C,3,FALSE),D1823)","v":"Ontario"},{"$f":"IFERROR(VLOOKUP(E1823,Translation!$A:$C,3,FALSE),E1823)","v":760.10684507176143},{"$f":"IFERROR(VLOOKUP(F1823,Translation!$A:$C,3,FALSE),F1823)","v":"Prêts hypothécaires assurés au cours de la période selon le pointage de crédit à l’initiation (%)"},{"$f":"IFERROR(VLOOKUP(G1823,Translation!$A:$C,3,FALSE),G1823)","v":"760.1"},{"$f":"IFERROR(VLOOKUP(H1823,Translation!$A:$C,3,FALSE),H1823)","v":"Ontario"}]
[13,"T4 2017","ASSURANCE DE PORTEFEUILLE","Manitoba",762.03738098499275,"Prêts hypothécaires assurés au cours de la période selon le pointage de crédit à l’initiation (%)","762.0","Manitoba",{"$f":"IFERROR(VLOOKUP(A1824,Translation!$A:$C,3,FALSE),A1824)","v":13},{"$f":"IFERROR(VLOOKUP(B1824,Translation!$A:$C,3,FALSE),B1824)","v":"T4 2017"},{"$f":"IFERROR(VLOOKUP(C1824,Translation!$A:$C,3,FALSE),C1824)","v":"ASSURANCE DE PORTEFEUILLE"},{"$f":"IFERROR(VLOOKUP(D1824,Translation!$A:$C,3,FALSE),D1824)","v":"Manitoba"},{"$f":"IFERROR(VLOOKUP(E1824,Translation!$A:$C,3,FALSE),E1824)","v":762.03738098499275},{"$f":"IFERROR(VLOOKUP(F1824,Translation!$A:$C,3,FALSE),F1824)","v":"Prêts hypothécaires assurés au cours de la période selon le pointage de crédit à l’initiation (%)"},{"$f":"IFERROR(VLOOKUP(G1824,Translation!$A:$C,3,FALSE),G1824)","v":"762.0"},{"$f":"IFERROR(VLOOKUP(H1824,Translation!$A:$C,3,FALSE),H1824)","v":"Manitoba"}]
[13,"T4 2017","ASSURANCE DE PORTEFEUILLE","Saskatchewan",770.85276426932796,"Prêts hypothécaires assurés au cours de la période selon le pointage de crédit à l’initiation (%)","770.9","Saskatchewan",{"$f":"IFERROR(VLOOKUP(A1825,Translation!$A:$C,3,FALSE),A1825)","v":13},{"$f":"IFERROR(VLOOKUP(B1825,Translation!$A:$C,3,FALSE),B1825)","v":"T4 2017"},{"$f":"IFERROR(VLOOKUP(C1825,Translation!$A:$C,3,FALSE),C1825)","v":"ASSURANCE DE PORTEFEUILLE"},{"$f":"IFERROR(VLOOKUP(D1825,Translation!$A:$C,3,FALSE),D1825)","v":"Saskatchewan"},{"$f":"IFERROR(VLOOKUP(E1825,Translation!$A:$C,3,FALSE),E1825)","v":770.85276426932796},{"$f":"IFERROR(VLOOKUP(F1825,Translation!$A:$C,3,FALSE),F1825)","v":"Prêts hypothécaires assurés au cours de la période selon le pointage de crédit à l’initiation (%)"},{"$f":"IFERROR(VLOOKUP(G1825,Translation!$A:$C,3,FALSE),G1825)","v":"770.9"},{"$f":"IFERROR(VLOOKUP(H1825,Translation!$A:$C,3,FALSE),H1825)","v":"Saskatchewan"}]
[13,"T4 2017","ASSURANCE DE PORTEFEUILLE","Alberta",762.25015332693886,"Prêts hypothécaires assurés au cours de la période selon le pointage de crédit à l’initiation (%)","762.3","Alberta",{"$f":"IFERROR(VLOOKUP(A1826,Translation!$A:$C,3,FALSE),A1826)","v":13},{"$f":"IFERROR(VLOOKUP(B1826,Translation!$A:$C,3,FALSE),B1826)","v":"T4 2017"},{"$f":"IFERROR(VLOOKUP(C1826,Translation!$A:$C,3,FALSE),C1826)","v":"ASSURANCE DE PORTEFEUILLE"},{"$f":"IFERROR(VLOOKUP(D1826,Translation!$A:$C,3,FALSE),D1826)","v":"Alberta"},{"$f":"IFERROR(VLOOKUP(E1826,Translation!$A:$C,3,FALSE),E1826)","v":762.25015332693886},{"$f":"IFERROR(VLOOKUP(F1826,Translation!$A:$C,3,FALSE),F1826)","v":"Prêts hypothécaires assurés au cours de la période selon le pointage de crédit à l’initiation (%)"},{"$f":"IFERROR(VLOOKUP(G1826,Translation!$A:$C,3,FALSE),G1826)","v":"762.3"},{"$f":"IFERROR(VLOOKUP(H1826,Translation!$A:$C,3,FALSE),H1826)","v":"Alberta"}]
[13,"T4 2017","ASSURANCE DE PORTEFEUILLE","Colombie-Britannique",769.1555117138189,"Prêts hypothécaires assurés au cours de la période selon le pointage de crédit à l’initiation (%)","769.2","Colombie-Britannique",{"$f":"IFERROR(VLOOKUP(A1827,Translation!$A:$C,3,FALSE),A1827)","v":13},{"$f":"IFERROR(VLOOKUP(B1827,Translation!$A:$C,3,FALSE),B1827)","v":"T4 2017"},{"$f":"IFERROR(VLOOKUP(C1827,Translation!$A:$C,3,FALSE),C1827)","v":"ASSURANCE DE PORTEFEUILLE"},{"$f":"IFERROR(VLOOKUP(D1827,Translation!$A:$C,3,FALSE),D1827)","v":"Colombie-Britannique"},{"$f":"IFERROR(VLOOKUP(E1827,Translation!$A:$C,3,FALSE),E1827)","v":769.1555117138189},{"$f":"IFERROR(VLOOKUP(F1827,Translation!$A:$C,3,FALSE),F1827)","v":"Prêts hypothécaires assurés au cours de la période selon le pointage de crédit à l’initiation (%)"},{"$f":"IFERROR(VLOOKUP(G1827,Translation!$A:$C,3,FALSE),G1827)","v":"769.2"},{"$f":"IFERROR(VLOOKUP(H1827,Translation!$A:$C,3,FALSE),H1827)","v":"Colombie-Britannique"}]
[13,"T4 2017","ASSURANCE DE PORTEFEUILLE","Territoires",755.25976272907099,"Prêts hypothécaires assurés au cours de la période selon le pointage de crédit à l’initiation (%)","755.3","Territoires",{"$f":"IFERROR(VLOOKUP(A1828,Translation!$A:$C,3,FALSE),A1828)","v":13},{"$f":"IFERROR(VLOOKUP(B1828,Translation!$A:$C,3,FALSE),B1828)","v":"T4 2017"},{"$f":"IFERROR(VLOOKUP(C1828,Translation!$A:$C,3,FALSE),C1828)","v":"ASSURANCE DE PORTEFEUILLE"},{"$f":"IFERROR(VLOOKUP(D1828,Translation!$A:$C,3,FALSE),D1828)","v":"Territoires"},{"$f":"IFERROR(VLOOKUP(E1828,Translation!$A:$C,3,FALSE),E1828)","v":755.25976272907099},{"$f":"IFERROR(VLOOKUP(F1828,Translation!$A:$C,3,FALSE),F1828)","v":"Prêts hypothécaires assurés au cours de la période selon le pointage de crédit à l’initiation (%)"},{"$f":"IFERROR(VLOOKUP(G1828,Translation!$A:$C,3,FALSE),G1828)","v":"755.3"},{"$f":"IFERROR(VLOOKUP(H1828,Translation!$A:$C,3,FALSE),H1828)","v":"Territoires"}]
[16,"T1 2020","PROPRIÉTAIRES-OCCUPANTS, À L’UNITÉ","Logement unifamilial",59.442237444758291,"Prêts hypothécaires assurés au cours de la période selon le type de logement (%)","59.4","Logement unifamilial",{"$f":"IFERROR(VLOOKUP(A1829,Translation!$A:$C,3,FALSE),A1829)","v":16},{"$f":"IFERROR(VLOOKUP(B1829,Translation!$A:$C,3,FALSE),B1829)","v":"T1 2020"},{"$f":"IFERROR(VLOOKUP(C1829,Translation!$A:$C,3,FALSE),C1829)","v":"PROPRIÉTAIRES-OCCUPANTS, À L’UNITÉ"},{"$f":"IFERROR(VLOOKUP(D1829,Translation!$A:$C,3,FALSE),D1829)","v":"Logement unifamilial"},{"$f":"IFERROR(VLOOKUP(E1829,Translation!$A:$C,3,FALSE),E1829)","v":59.442237444758291},{"$f":"IFERROR(VLOOKUP(F1829,Translation!$A:$C,3,FALSE),F1829)","v":"Prêts hypothécaires assurés au cours de la période selon le type de logement (%)"},{"$f":"IFERROR(VLOOKUP(G1829,Translation!$A:$C,3,FALSE),G1829)","v":"59.4"},{"$f":"IFERROR(VLOOKUP(H1829,Translation!$A:$C,3,FALSE),H1829)","v":"Logement unifamilial"}]
[16,"Cumul 2019","PROPRIÉTAIRES-OCCUPANTS, À L’UNITÉ","Logement unifamilial",60.530718924729598,"Prêts hypothécaires assurés au cours de la période selon le type de logement (%)","60.5","Logement unifamilial",{"$f":"IFERROR(VLOOKUP(A1830,Translation!$A:$C,3,FALSE),A1830)","v":16},{"$f":"IFERROR(VLOOKUP(B1830,Translation!$A:$C,3,FALSE),B1830)","v":"Cumul 2019"},{"$f":"IFERROR(VLOOKUP(C1830,Translation!$A:$C,3,FALSE),C1830)","v":"PROPRIÉTAIRES-OCCUPANTS, À L’UNITÉ"},{"$f":"IFERROR(VLOOKUP(D1830,Translation!$A:$C,3,FALSE),D1830)","v":"Logement unifamilial"},{"$f":"IFERROR(VLOOKUP(E1830,Translation!$A:$C,3,FALSE),E1830)","v":60.530718924729598},{"$f":"IFERROR(VLOOKUP(F1830,Translation!$A:$C,3,FALSE),F1830)","v":"Prêts hypothécaires assurés au cours de la période selon le type de logement (%)"},{"$f":"IFERROR(VLOOKUP(G1830,Translation!$A:$C,3,FALSE),G1830)","v":"60.5"},{"$f":"IFERROR(VLOOKUP(H1830,Translation!$A:$C,3,FALSE),H1830)","v":"Logement unifamilial"}]
[16,"Cumul 2020","PROPRIÉTAIRES-OCCUPANTS, À L’UNITÉ","Logement unifamilial",59.442237444758291,"Prêts hypothécaires assurés au cours de la période selon le type de logement (%)","59.4","Logement unifamilial",{"$f":"IFERROR(VLOOKUP(A1831,Translation!$A:$C,3,FALSE),A1831)","v":16},{"$f":"IFERROR(VLOOKUP(B1831,Translation!$A:$C,3,FALSE),B1831)","v":"Cumul 2020"},{"$f":"IFERROR(VLOOKUP(C1831,Translation!$A:$C,3,FALSE),C1831)","v":"PROPRIÉTAIRES-OCCUPANTS, À L’UNITÉ"},{"$f":"IFERROR(VLOOKUP(D1831,Translation!$A:$C,3,FALSE),D1831)","v":"Logement unifamilial"},{"$f":"IFERROR(VLOOKUP(E1831,Translation!$A:$C,3,FALSE),E1831)","v":59.442237444758291},{"$f":"IFERROR(VLOOKUP(F1831,Translation!$A:$C,3,FALSE),F1831)","v":"Prêts hypothécaires assurés au cours de la période selon le type de logement (%)"},{"$f":"IFERROR(VLOOKUP(G1831,Translation!$A:$C,3,FALSE),G1831)","v":"59.4"},{"$f":"IFERROR(VLOOKUP(H1831,Translation!$A:$C,3,FALSE),H1831)","v":"Logement unifamilial"}]
[16,"T1 2020","PROPRIÉTAIRES-OCCUPANTS, À L’UNITÉ","Maison en rangée",12.16651786200836,"Prêts hypothécaires assurés au cours de la période selon le type de logement (%)","12.2","Maison en rangée",{"$f":"IFERROR(VLOOKUP(A1832,Translation!$A:$C,3,FALSE),A1832)","v":16},{"$f":"IFERROR(VLOOKUP(B1832,Translation!$A:$C,3,FALSE),B1832)","v":"T1 2020"},{"$f":"IFERROR(VLOOKUP(C1832,Translation!$A:$C,3,FALSE),C1832)","v":"PROPRIÉTAIRES-OCCUPANTS, À L’UNITÉ"},{"$f":"IFERROR(VLOOKUP(D1832,Translation!$A:$C,3,FALSE),D1832)","v":"Maison en rangée"},{"$f":"IFERROR(VLOOKUP(E1832,Translation!$A:$C,3,FALSE),E1832)","v":12.16651786200836},{"$f":"IFERROR(VLOOKUP(F1832,Translation!$A:$C,3,FALSE),F1832)","v":"Prêts hypothécaires assurés au cours de la période selon le type de logement (%)"},{"$f":"IFERROR(VLOOKUP(G1832,Translation!$A:$C,3,FALSE),G1832)","v":"12.2"},{"$f":"IFERROR(VLOOKUP(H1832,Translation!$A:$C,3,FALSE),H1832)","v":"Maison en rangée"}]
[16,"Cumul 2019","PROPRIÉTAIRES-OCCUPANTS, À L’UNITÉ","Maison en rangée",11.680925087964919,"Prêts hypothécaires assurés au cours de la période selon le type de logement (%)","11.7","Maison en rangée",{"$f":"IFERROR(VLOOKUP(A1833,Translation!$A:$C,3,FALSE),A1833)","v":16},{"$f":"IFERROR(VLOOKUP(B1833,Translation!$A:$C,3,FALSE),B1833)","v":"Cumul 2019"},{"$f":"IFERROR(VLOOKUP(C1833,Translation!$A:$C,3,FALSE),C1833)","v":"PROPRIÉTAIRES-OCCUPANTS, À L’UNITÉ"},{"$f":"IFERROR(VLOOKUP(D1833,Translation!$A:$C,3,FALSE),D1833)","v":"Maison en rangée"},{"$f":"IFERROR(VLOOKUP(E1833,Translation!$A:$C,3,FALSE),E1833)","v":11.680925087964919},{"$f":"IFERROR(VLOOKUP(F1833,Translation!$A:$C,3,FALSE),F1833)","v":"Prêts hypothécaires assurés au cours de la période selon le type de logement (%)"},{"$f":"IFERROR(VLOOKUP(G1833,Translation!$A:$C,3,FALSE),G1833)","v":"11.7"},{"$f":"IFERROR(VLOOKUP(H1833,Translation!$A:$C,3,FALSE),H1833)","v":"Maison en rangée"}]
[16,"Cumul 2020","PROPRIÉTAIRES-OCCUPANTS, À L’UNITÉ","Maison en rangée",12.16651786200836,"Prêts hypothécaires assurés au cours de la période selon le type de logement (%)","12.2","Maison en rangée",{"$f":"IFERROR(VLOOKUP(A1834,Translation!$A:$C,3,FALSE),A1834)","v":16},{"$f":"IFERROR(VLOOKUP(B1834,Translation!$A:$C,3,FALSE),B1834)","v":"Cumul 2020"},{"$f":"IFERROR(VLOOKUP(C1834,Translation!$A:$C,3,FALSE),C1834)","v":"PROPRIÉTAIRES-OCCUPANTS, À L’UNITÉ"},{"$f":"IFERROR(VLOOKUP(D1834,Translation!$A:$C,3,FALSE),D1834)","v":"Maison en rangée"},{"$f":"IFERROR(VLOOKUP(E1834,Translation!$A:$C,3,FALSE),E1834)","v":12.16651786200836},{"$f":"IFERROR(VLOOKUP(F1834,Translation!$A:$C,3,FALSE),F1834)","v":"Prêts hypothécaires assurés au cours de la période selon le type de logement (%)"},{"$f":"IFERROR(VLOOKUP(G1834,Translation!$A:$C,3,FALSE),G1834)","v":"12.2"},{"$f":"IFERROR(VLOOKUP(H1834,Translation!$A:$C,3,FALSE),H1834)","v":"Maison en rangée"}]
[16,"T1 2020","PROPRIÉTAIRES-OCCUPANTS, À L’UNITÉ","Appartement",12.759134554110048,"Prêts hypothécaires assurés au cours de la période selon le type de logement (%)","12.8","Appartement",{"$f":"IFERROR(VLOOKUP(A1835,Translation!$A:$C,3,FALSE),A1835)","v":16},{"$f":"IFERROR(VLOOKUP(B1835,Translation!$A:$C,3,FALSE),B1835)","v":"T1 2020"},{"$f":"IFERROR(VLOOKUP(C1835,Translation!$A:$C,3,FALSE),C1835)","v":"PROPRIÉTAIRES-OCCUPANTS, À L’UNITÉ"},{"$f":"IFERROR(VLOOKUP(D1835,Translation!$A:$C,3,FALSE),D1835)","v":"Appartement"},{"$f":"IFERROR(VLOOKUP(E1835,Translation!$A:$C,3,FALSE),E1835)","v":12.759134554110048},{"$f":"IFERROR(VLOOKUP(F1835,Translation!$A:$C,3,FALSE),F1835)","v":"Prêts hypothécaires assurés au cours de la période selon le type de logement (%)"},{"$f":"IFERROR(VLOOKUP(G1835,Translation!$A:$C,3,FALSE),G1835)","v":"12.8"},{"$f":"IFERROR(VLOOKUP(H1835,Translation!$A:$C,3,FALSE),H1835)","v":"Appartement"}]
[16,"Cumul 2019","PROPRIÉTAIRES-OCCUPANTS, À L’UNITÉ","Appartement",12.306383296722164,"Prêts hypothécaires assurés au cours de la période selon le type de logement (%)","12.3","Appartement",{"$f":"IFERROR(VLOOKUP(A1836,Translation!$A:$C,3,FALSE),A1836)","v":16},{"$f":"IFERROR(VLOOKUP(B1836,Translation!$A:$C,3,FALSE),B1836)","v":"Cumul 2019"},{"$f":"IFERROR(VLOOKUP(C1836,Translation!$A:$C,3,FALSE),C1836)","v":"PROPRIÉTAIRES-OCCUPANTS, À L’UNITÉ"},{"$f":"IFERROR(VLOOKUP(D1836,Translation!$A:$C,3,FALSE),D1836)","v":"Appartement"},{"$f":"IFERROR(VLOOKUP(E1836,Translation!$A:$C,3,FALSE),E1836)","v":12.306383296722164},{"$f":"IFERROR(VLOOKUP(F1836,Translation!$A:$C,3,FALSE),F1836)","v":"Prêts hypothécaires assurés au cours de la période selon le type de logement (%)"},{"$f":"IFERROR(VLOOKUP(G1836,Translation!$A:$C,3,FALSE),G1836)","v":"12.3"},{"$f":"IFERROR(VLOOKUP(H1836,Translation!$A:$C,3,FALSE),H1836)","v":"Appartement"}]
[16,"Cumul 2020","PROPRIÉTAIRES-OCCUPANTS, À L’UNITÉ","Appartement",12.759134554110048,"Prêts hypothécaires assurés au cours de la période selon le type de logement (%)","12.8","Appartement",{"$f":"IFERROR(VLOOKUP(A1837,Translation!$A:$C,3,FALSE),A1837)","v":16},{"$f":"IFERROR(VLOOKUP(B1837,Translation!$A:$C,3,FALSE),B1837)","v":"Cumul 2020"},{"$f":"IFERROR(VLOOKUP(C1837,Translation!$A:$C,3,FALSE),C1837)","v":"PROPRIÉTAIRES-OCCUPANTS, À L’UNITÉ"},{"$f":"IFERROR(VLOOKUP(D1837,Translation!$A:$C,3,FALSE),D1837)","v":"Appartement"},{"$f":"IFERROR(VLOOKUP(E1837,Translation!$A:$C,3,FALSE),E1837)","v":12.759134554110048},{"$f":"IFERROR(VLOOKUP(F1837,Translation!$A:$C,3,FALSE),F1837)","v":"Prêts hypothécaires assurés au cours de la période selon le type de logement (%)"},{"$f":"IFERROR(VLOOKUP(G1837,Translation!$A:$C,3,FALSE),G1837)","v":"12.8"},{"$f":"IFERROR(VLOOKUP(H1837,Translation!$A:$C,3,FALSE),H1837)","v":"Appartement"}]
[16,"T1 2020","PROPRIÉTAIRES-OCCUPANTS, À L’UNITÉ","Jumelé",7.4502219570865185,"Prêts hypothécaires assurés au cours de la période selon le type de logement (%)","7.5","Jumelé",{"$f":"IFERROR(VLOOKUP(A1838,Translation!$A:$C,3,FALSE),A1838)","v":16},{"$f":"IFERROR(VLOOKUP(B1838,Translation!$A:$C,3,FALSE),B1838)","v":"T1 2020"},{"$f":"IFERROR(VLOOKUP(C1838,Translation!$A:$C,3,FALSE),C1838)","v":"PROPRIÉTAIRES-OCCUPANTS, À L’UNITÉ"},{"$f":"IFERROR(VLOOKUP(D1838,Translation!$A:$C,3,FALSE),D1838)","v":"Jumelé"},{"$f":"IFERROR(VLOOKUP(E1838,Translation!$A:$C,3,FALSE),E1838)","v":7.4502219570865185},{"$f":"IFERROR(VLOOKUP(F1838,Translation!$A:$C,3,FALSE),F1838)","v":"Prêts hypothécaires assurés au cours de la période selon le type de logement (%)"},{"$f":"IFERROR(VLOOKUP(G1838,Translation!$A:$C,3,FALSE),G1838)","v":"7.5"},{"$f":"IFERROR(VLOOKUP(H1838,Translation!$A:$C,3,FALSE),H1838)","v":"Jumelé"}]
[16,"Cumul 2019","PROPRIÉTAIRES-OCCUPANTS, À L’UNITÉ","Jumelé",7.7943501321951487,"Prêts hypothécaires assurés au cours de la période selon le type de logement (%)","7.8","Jumelé",{"$f":"IFERROR(VLOOKUP(A1839,Translation!$A:$C,3,FALSE),A1839)","v":16},{"$f":"IFERROR(VLOOKUP(B1839,Translation!$A:$C,3,FALSE),B1839)","v":"Cumul 2019"},{"$f":"IFERROR(VLOOKUP(C1839,Translation!$A:$C,3,FALSE),C1839)","v":"PROPRIÉTAIRES-OCCUPANTS, À L’UNITÉ"},{"$f":"IFERROR(VLOOKUP(D1839,Translation!$A:$C,3,FALSE),D1839)","v":"Jumelé"},{"$f":"IFERROR(VLOOKUP(E1839,Translation!$A:$C,3,FALSE),E1839)","v":7.7943501321951487},{"$f":"IFERROR(VLOOKUP(F1839,Translation!$A:$C,3,FALSE),F1839)","v":"Prêts hypothécaires assurés au cours de la période selon le type de logement (%)"},{"$f":"IFERROR(VLOOKUP(G1839,Translation!$A:$C,3,FALSE),G1839)","v":"7.8"},{"$f":"IFERROR(VLOOKUP(H1839,Translation!$A:$C,3,FALSE),H1839)","v":"Jumelé"}]
[16,"Cumul 2020","PROPRIÉTAIRES-OCCUPANTS, À L’UNITÉ","Jumelé",7.4502219570865185,"Prêts hypothécaires assurés au cours de la période selon le type de logement (%)","7.5","Jumelé",{"$f":"IFERROR(VLOOKUP(A1840,Translation!$A:$C,3,FALSE),A1840)","v":16},{"$f":"IFERROR(VLOOKUP(B1840,Translation!$A:$C,3,FALSE),B1840)","v":"Cumul 2020"},{"$f":"IFERROR(VLOOKUP(C1840,Translation!$A:$C,3,FALSE),C1840)","v":"PROPRIÉTAIRES-OCCUPANTS, À L’UNITÉ"},{"$f":"IFERROR(VLOOKUP(D1840,Translation!$A:$C,3,FALSE),D1840)","v":"Jumelé"},{"$f":"IFERROR(VLOOKUP(E1840,Translation!$A:$C,3,FALSE),E1840)","v":7.4502219570865185},{"$f":"IFERROR(VLOOKUP(F1840,Translation!$A:$C,3,FALSE),F1840)","v":"Prêts hypothécaires assurés au cours de la période selon le type de logement (%)"},{"$f":"IFERROR(VLOOKUP(G1840,Translation!$A:$C,3,FALSE),G1840)","v":"7.5"},{"$f":"IFERROR(VLOOKUP(H1840,Translation!$A:$C,3,FALSE),H1840)","v":"Jumelé"}]
[16,"T1 2020","PROPRIÉTAIRES-OCCUPANTS, À L’UNITÉ","Plex",5.0997774689337314,"Prêts hypothécaires assurés au cours de la période selon le type de logement (%)","5.1","Plex",{"$f":"IFERROR(VLOOKUP(A1841,Translation!$A:$C,3,FALSE),A1841)","v":16},{"$f":"IFERROR(VLOOKUP(B1841,Translation!$A:$C,3,FALSE),B1841)","v":"T1 2020"},{"$f":"IFERROR(VLOOKUP(C1841,Translation!$A:$C,3,FALSE),C1841)","v":"PROPRIÉTAIRES-OCCUPANTS, À L’UNITÉ"},{"$f":"IFERROR(VLOOKUP(D1841,Translation!$A:$C,3,FALSE),D1841)","v":"Plex"},{"$f":"IFERROR(VLOOKUP(E1841,Translation!$A:$C,3,FALSE),E1841)","v":5.0997774689337314},{"$f":"IFERROR(VLOOKUP(F1841,Translation!$A:$C,3,FALSE),F1841)","v":"Prêts hypothécaires assurés au cours de la période selon le type de logement (%)"},{"$f":"IFERROR(VLOOKUP(G1841,Translation!$A:$C,3,FALSE),G1841)","v":"5.1"},{"$f":"IFERROR(VLOOKUP(H1841,Translation!$A:$C,3,FALSE),H1841)","v":"Plex"}]
[16,"Cumul 2019","PROPRIÉTAIRES-OCCUPANTS, À L’UNITÉ","Plex",4.559844760089546,"Prêts hypothécaires assurés au cours de la période selon le type de logement (%)","4.6","Plex",{"$f":"IFERROR(VLOOKUP(A1842,Translation!$A:$C,3,FALSE),A1842)","v":16},{"$f":"IFERROR(VLOOKUP(B1842,Translation!$A:$C,3,FALSE),B1842)","v":"Cumul 2019"},{"$f":"IFERROR(VLOOKUP(C1842,Translation!$A:$C,3,FALSE),C1842)","v":"PROPRIÉTAIRES-OCCUPANTS, À L’UNITÉ"},{"$f":"IFERROR(VLOOKUP(D1842,Translation!$A:$C,3,FALSE),D1842)","v":"Plex"},{"$f":"IFERROR(VLOOKUP(E1842,Translation!$A:$C,3,FALSE),E1842)","v":4.559844760089546},{"$f":"IFERROR(VLOOKUP(F1842,Translation!$A:$C,3,FALSE),F1842)","v":"Prêts hypothécaires assurés au cours de la période selon le type de logement (%)"},{"$f":"IFERROR(VLOOKUP(G1842,Translation!$A:$C,3,FALSE),G1842)","v":"4.6"},{"$f":"IFERROR(VLOOKUP(H1842,Translation!$A:$C,3,FALSE),H1842)","v":"Plex"}]
[16,"Cumul 2020","PROPRIÉTAIRES-OCCUPANTS, À L’UNITÉ","Plex",5.0997774689337314,"Prêts hypothécaires assurés au cours de la période selon le type de logement (%)","5.1","Plex",{"$f":"IFERROR(VLOOKUP(A1843,Translation!$A:$C,3,FALSE),A1843)","v":16},{"$f":"IFERROR(VLOOKUP(B1843,Translation!$A:$C,3,FALSE),B1843)","v":"Cumul 2020"},{"$f":"IFERROR(VLOOKUP(C1843,Translation!$A:$C,3,FALSE),C1843)","v":"PROPRIÉTAIRES-OCCUPANTS, À L’UNITÉ"},{"$f":"IFERROR(VLOOKUP(D1843,Translation!$A:$C,3,FALSE),D1843)","v":"Plex"},{"$f":"IFERROR(VLOOKUP(E1843,Translation!$A:$C,3,FALSE),E1843)","v":5.0997774689337314},{"$f":"IFERROR(VLOOKUP(F1843,Translation!$A:$C,3,FALSE),F1843)","v":"Prêts hypothécaires assurés au cours de la période selon le type de logement (%)"},{"$f":"IFERROR(VLOOKUP(G1843,Translation!$A:$C,3,FALSE),G1843)","v":"5.1"},{"$f":"IFERROR(VLOOKUP(H1843,Translation!$A:$C,3,FALSE),H1843)","v":"Plex"}]
[16,"T1 2020","PROPRIÉTAIRES-OCCUPANTS, À L’UNITÉ","Autre",3.0821107131030825,"Prêts hypothécaires assurés au cours de la période selon le type de logement (%)","3.1","Autre",{"$f":"IFERROR(VLOOKUP(A1844,Translation!$A:$C,3,FALSE),A1844)","v":16},{"$f":"IFERROR(VLOOKUP(B1844,Translation!$A:$C,3,FALSE),B1844)","v":"T1 2020"},{"$f":"IFERROR(VLOOKUP(C1844,Translation!$A:$C,3,FALSE),C1844)","v":"PROPRIÉTAIRES-OCCUPANTS, À L’UNITÉ"},{"$f":"IFERROR(VLOOKUP(D1844,Translation!$A:$C,3,FALSE),D1844)","v":"Autre"},{"$f":"IFERROR(VLOOKUP(E1844,Translation!$A:$C,3,FALSE),E1844)","v":3.0821107131030825},{"$f":"IFERROR(VLOOKUP(F1844,Translation!$A:$C,3,FALSE),F1844)","v":"Prêts hypothécaires assurés au cours de la période selon le type de logement (%)"},{"$f":"IFERROR(VLOOKUP(G1844,Translation!$A:$C,3,FALSE),G1844)","v":"3.1"},{"$f":"IFERROR(VLOOKUP(H1844,Translation!$A:$C,3,FALSE),H1844)","v":"Autre"}]
[16,"Cumul 2019","PROPRIÉTAIRES-OCCUPANTS, À L’UNITÉ","Autre",3.127777798298637,"Prêts hypothécaires assurés au cours de la période selon le type de logement (%)","3.1","Autre",{"$f":"IFERROR(VLOOKUP(A1845,Translation!$A:$C,3,FALSE),A1845)","v":16},{"$f":"IFERROR(VLOOKUP(B1845,Translation!$A:$C,3,FALSE),B1845)","v":"Cumul 2019"},{"$f":"IFERROR(VLOOKUP(C1845,Translation!$A:$C,3,FALSE),C1845)","v":"PROPRIÉTAIRES-OCCUPANTS, À L’UNITÉ"},{"$f":"IFERROR(VLOOKUP(D1845,Translation!$A:$C,3,FALSE),D1845)","v":"Autre"},{"$f":"IFERROR(VLOOKUP(E1845,Translation!$A:$C,3,FALSE),E1845)","v":3.127777798298637},{"$f":"IFERROR(VLOOKUP(F1845,Translation!$A:$C,3,FALSE),F1845)","v":"Prêts hypothécaires assurés au cours de la période selon le type de logement (%)"},{"$f":"IFERROR(VLOOKUP(G1845,Translation!$A:$C,3,FALSE),G1845)","v":"3.1"},{"$f":"IFERROR(VLOOKUP(H1845,Translation!$A:$C,3,FALSE),H1845)","v":"Autre"}]
[16,"Cumul 2020","PROPRIÉTAIRES-OCCUPANTS, À L’UNITÉ","Autre",3.0821107131030825,"Prêts hypothécaires assurés au cours de la période selon le type de logement (%)","3.1","Autre",{"$f":"IFERROR(VLOOKUP(A1846,Translation!$A:$C,3,FALSE),A1846)","v":16},{"$f":"IFERROR(VLOOKUP(B1846,Translation!$A:$C,3,FALSE),B1846)","v":"Cumul 2020"},{"$f":"IFERROR(VLOOKUP(C1846,Translation!$A:$C,3,FALSE),C1846)","v":"PROPRIÉTAIRES-OCCUPANTS, À L’UNITÉ"},{"$f":"IFERROR(VLOOKUP(D1846,Translation!$A:$C,3,FALSE),D1846)","v":"Autre"},{"$f":"IFERROR(VLOOKUP(E1846,Translation!$A:$C,3,FALSE),E1846)","v":3.0821107131030825},{"$f":"IFERROR(VLOOKUP(F1846,Translation!$A:$C,3,FALSE),F1846)","v":"Prêts hypothécaires assurés au cours de la période selon le type de logement (%)"},{"$f":"IFERROR(VLOOKUP(G1846,Translation!$A:$C,3,FALSE),G1846)","v":"3.1"},{"$f":"IFERROR(VLOOKUP(H1846,Translation!$A:$C,3,FALSE),H1846)","v":"Autre"}]
[16,"T1 2020","ASSURANCE DE PORTEFEUILLE","Logement unifamilial",68.287596613291242,"Prêts hypothécaires assurés au cours de la période selon le type de logement (%)","68.3","Logement unifamilial",{"$f":"IFERROR(VLOOKUP(A1847,Translation!$A:$C,3,FALSE),A1847)","v":16},{"$f":"IFERROR(VLOOKUP(B1847,Translation!$A:$C,3,FALSE),B1847)","v":"T1 2020"},{"$f":"IFERROR(VLOOKUP(C1847,Translation!$A:$C,3,FALSE),C1847)","v":"ASSURANCE DE PORTEFEUILLE"},{"$f":"IFERROR(VLOOKUP(D1847,Translation!$A:$C,3,FALSE),D1847)","v":"Logement unifamilial"},{"$f":"IFERROR(VLOOKUP(E1847,Translation!$A:$C,3,FALSE),E1847)","v":68.287596613291242},{"$f":"IFERROR(VLOOKUP(F1847,Translation!$A:$C,3,FALSE),F1847)","v":"Prêts hypothécaires assurés au cours de la période selon le type de logement (%)"},{"$f":"IFERROR(VLOOKUP(G1847,Translation!$A:$C,3,FALSE),G1847)","v":"68.3"},{"$f":"IFERROR(VLOOKUP(H1847,Translation!$A:$C,3,FALSE),H1847)","v":"Logement unifamilial"}]
[16,"Cumul 2019","ASSURANCE DE PORTEFEUILLE","Logement unifamilial",72.266880996837216,"Prêts hypothécaires assurés au cours de la période selon le type de logement (%)","72.3","Logement unifamilial",{"$f":"IFERROR(VLOOKUP(A1848,Translation!$A:$C,3,FALSE),A1848)","v":16},{"$f":"IFERROR(VLOOKUP(B1848,Translation!$A:$C,3,FALSE),B1848)","v":"Cumul 2019"},{"$f":"IFERROR(VLOOKUP(C1848,Translation!$A:$C,3,FALSE),C1848)","v":"ASSURANCE DE PORTEFEUILLE"},{"$f":"IFERROR(VLOOKUP(D1848,Translation!$A:$C,3,FALSE),D1848)","v":"Logement unifamilial"},{"$f":"IFERROR(VLOOKUP(E1848,Translation!$A:$C,3,FALSE),E1848)","v":72.266880996837216},{"$f":"IFERROR(VLOOKUP(F1848,Translation!$A:$C,3,FALSE),F1848)","v":"Prêts hypothécaires assurés au cours de la période selon le type de logement (%)"},{"$f":"IFERROR(VLOOKUP(G1848,Translation!$A:$C,3,FALSE),G1848)","v":"72.3"},{"$f":"IFERROR(VLOOKUP(H1848,Translation!$A:$C,3,FALSE),H1848)","v":"Logement unifamilial"}]
[16,"Cumul 2020","ASSURANCE DE PORTEFEUILLE","Logement unifamilial",68.287596613291242,"Prêts hypothécaires assurés au cours de la période selon le type de logement (%)","68.3","Logement unifamilial",{"$f":"IFERROR(VLOOKUP(A1849,Translation!$A:$C,3,FALSE),A1849)","v":16},{"$f":"IFERROR(VLOOKUP(B1849,Translation!$A:$C,3,FALSE),B1849)","v":"Cumul 2020"},{"$f":"IFERROR(VLOOKUP(C1849,Translation!$A:$C,3,FALSE),C1849)","v":"ASSURANCE DE PORTEFEUILLE"},{"$f":"IFERROR(VLOOKUP(D1849,Translation!$A:$C,3,FALSE),D1849)","v":"Logement unifamilial"},{"$f":"IFERROR(VLOOKUP(E1849,Translation!$A:$C,3,FALSE),E1849)","v":68.287596613291242},{"$f":"IFERROR(VLOOKUP(F1849,Translation!$A:$C,3,FALSE),F1849)","v":"Prêts hypothécaires assurés au cours de la période selon le type de logement (%)"},{"$f":"IFERROR(VLOOKUP(G1849,Translation!$A:$C,3,FALSE),G1849)","v":"68.3"},{"$f":"IFERROR(VLOOKUP(H1849,Translation!$A:$C,3,FALSE),H1849)","v":"Logement unifamilial"}]
[16,"T1 2020","ASSURANCE DE PORTEFEUILLE","Maison en rangée",23.615360295936021,"Prêts hypothécaires assurés au cours de la période selon le type de logement (%)","23.6","Maison en rangée",{"$f":"IFERROR(VLOOKUP(A1850,Translation!$A:$C,3,FALSE),A1850)","v":16},{"$f":"IFERROR(VLOOKUP(B1850,Translation!$A:$C,3,FALSE),B1850)","v":"T1 2020"},{"$f":"IFERROR(VLOOKUP(C1850,Translation!$A:$C,3,FALSE),C1850)","v":"ASSURANCE DE PORTEFEUILLE"},{"$f":"IFERROR(VLOOKUP(D1850,Translation!$A:$C,3,FALSE),D1850)","v":"Maison en rangée"},{"$f":"IFERROR(VLOOKUP(E1850,Translation!$A:$C,3,FALSE),E1850)","v":23.615360295936021},{"$f":"IFERROR(VLOOKUP(F1850,Translation!$A:$C,3,FALSE),F1850)","v":"Prêts hypothécaires assurés au cours de la période selon le type de logement (%)"},{"$f":"IFERROR(VLOOKUP(G1850,Translation!$A:$C,3,FALSE),G1850)","v":"23.6"},{"$f":"IFERROR(VLOOKUP(H1850,Translation!$A:$C,3,FALSE),H1850)","v":"Maison en rangée"}]
[16,"Cumul 2019","ASSURANCE DE PORTEFEUILLE","Maison en rangée",10.016390354853412,"Prêts hypothécaires assurés au cours de la période selon le type de logement (%)","10.0","Maison en rangée",{"$f":"IFERROR(VLOOKUP(A1851,Translation!$A:$C,3,FALSE),A1851)","v":16},{"$f":"IFERROR(VLOOKUP(B1851,Translation!$A:$C,3,FALSE),B1851)","v":"Cumul 2019"},{"$f":"IFERROR(VLOOKUP(C1851,Translation!$A:$C,3,FALSE),C1851)","v":"ASSURANCE DE PORTEFEUILLE"},{"$f":"IFERROR(VLOOKUP(D1851,Translation!$A:$C,3,FALSE),D1851)","v":"Maison en rangée"},{"$f":"IFERROR(VLOOKUP(E1851,Translation!$A:$C,3,FALSE),E1851)","v":10.016390354853412},{"$f":"IFERROR(VLOOKUP(F1851,Translation!$A:$C,3,FALSE),F1851)","v":"Prêts hypothécaires assurés au cours de la période selon le type de logement (%)"},{"$f":"IFERROR(VLOOKUP(G1851,Translation!$A:$C,3,FALSE),G1851)","v":"10.0"},{"$f":"IFERROR(VLOOKUP(H1851,Translation!$A:$C,3,FALSE),H1851)","v":"Maison en rangée"}]
[16,"Cumul 2020","ASSURANCE DE PORTEFEUILLE","Maison en rangée",23.615360295936021,"Prêts hypothécaires assurés au cours de la période selon le type de logement (%)","23.6","Maison en rangée",{"$f":"IFERROR(VLOOKUP(A1852,Translation!$A:$C,3,FALSE),A1852)","v":16},{"$f":"IFERROR(VLOOKUP(B1852,Translation!$A:$C,3,FALSE),B1852)","v":"Cumul 2020"},{"$f":"IFERROR(VLOOKUP(C1852,Translation!$A:$C,3,FALSE),C1852)","v":"ASSURANCE DE PORTEFEUILLE"},{"$f":"IFERROR(VLOOKUP(D1852,Translation!$A:$C,3,FALSE),D1852)","v":"Maison en rangée"},{"$f":"IFERROR(VLOOKUP(E1852,Translation!$A:$C,3,FALSE),E1852)","v":23.615360295936021},{"$f":"IFERROR(VLOOKUP(F1852,Translation!$A:$C,3,FALSE),F1852)","v":"Prêts hypothécaires assurés au cours de la période selon le type de logement (%)"},{"$f":"IFERROR(VLOOKUP(G1852,Translation!$A:$C,3,FALSE),G1852)","v":"23.6"},{"$f":"IFERROR(VLOOKUP(H1852,Translation!$A:$C,3,FALSE),H1852)","v":"Maison en rangée"}]
[16,"T1 2020","ASSURANCE DE PORTEFEUILLE","Appartement",5.8334084406923852,"Prêts hypothécaires assurés au cours de la période selon le type de logement (%)","5.8","Appartement",{"$f":"IFERROR(VLOOKUP(A1853,Translation!$A:$C,3,FALSE),A1853)","v":16},{"$f":"IFERROR(VLOOKUP(B1853,Translation!$A:$C,3,FALSE),B1853)","v":"T1 2020"},{"$f":"IFERROR(VLOOKUP(C1853,Translation!$A:$C,3,FALSE),C1853)","v":"ASSURANCE DE PORTEFEUILLE"},{"$f":"IFERROR(VLOOKUP(D1853,Translation!$A:$C,3,FALSE),D1853)","v":"Appartement"},{"$f":"IFERROR(VLOOKUP(E1853,Translation!$A:$C,3,FALSE),E1853)","v":5.8334084406923852},{"$f":"IFERROR(VLOOKUP(F1853,Translation!$A:$C,3,FALSE),F1853)","v":"Prêts hypothécaires assurés au cours de la période selon le type de logement (%)"},{"$f":"IFERROR(VLOOKUP(G1853,Translation!$A:$C,3,FALSE),G1853)","v":"5.8"},{"$f":"IFERROR(VLOOKUP(H1853,Translation!$A:$C,3,FALSE),H1853)","v":"Appartement"}]
[16,"Cumul 2019","ASSURANCE DE PORTEFEUILLE","Appartement",10.474844995105842,"Prêts hypothécaires assurés au cours de la période selon le type de logement (%)","10.5","Appartement",{"$f":"IFERROR(VLOOKUP(A1854,Translation!$A:$C,3,FALSE),A1854)","v":16},{"$f":"IFERROR(VLOOKUP(B1854,Translation!$A:$C,3,FALSE),B1854)","v":"Cumul 2019"},{"$f":"IFERROR(VLOOKUP(C1854,Translation!$A:$C,3,FALSE),C1854)","v":"ASSURANCE DE PORTEFEUILLE"},{"$f":"IFERROR(VLOOKUP(D1854,Translation!$A:$C,3,FALSE),D1854)","v":"Appartement"},{"$f":"IFERROR(VLOOKUP(E1854,Translation!$A:$C,3,FALSE),E1854)","v":10.474844995105842},{"$f":"IFERROR(VLOOKUP(F1854,Translation!$A:$C,3,FALSE),F1854)","v":"Prêts hypothécaires assurés au cours de la période selon le type de logement (%)"},{"$f":"IFERROR(VLOOKUP(G1854,Translation!$A:$C,3,FALSE),G1854)","v":"10.5"},{"$f":"IFERROR(VLOOKUP(H1854,Translation!$A:$C,3,FALSE),H1854)","v":"Appartement"}]
[16,"Cumul 2020","ASSURANCE DE PORTEFEUILLE","Appartement",5.8334084406923852,"Prêts hypothécaires assurés au cours de la période selon le type de logement (%)","5.8","Appartement",{"$f":"IFERROR(VLOOKUP(A1855,Translation!$A:$C,3,FALSE),A1855)","v":16},{"$f":"IFERROR(VLOOKUP(B1855,Translation!$A:$C,3,FALSE),B1855)","v":"Cumul 2020"},{"$f":"IFERROR(VLOOKUP(C1855,Translation!$A:$C,3,FALSE),C1855)","v":"ASSURANCE DE PORTEFEUILLE"},{"$f":"IFERROR(VLOOKUP(D1855,Translation!$A:$C,3,FALSE),D1855)","v":"Appartement"},{"$f":"IFERROR(VLOOKUP(E1855,Translation!$A:$C,3,FALSE),E1855)","v":5.8334084406923852},{"$f":"IFERROR(VLOOKUP(F1855,Translation!$A:$C,3,FALSE),F1855)","v":"Prêts hypothécaires assurés au cours de la période selon le type de logement (%)"},{"$f":"IFERROR(VLOOKUP(G1855,Translation!$A:$C,3,FALSE),G1855)","v":"5.8"},{"$f":"IFERROR(VLOOKUP(H1855,Translation!$A:$C,3,FALSE),H1855)","v":"Appartement"}]
[16,"T1 2020","ASSURANCE DE PORTEFEUILLE","Jumelé",1.5184582384835263,"Prêts hypothécaires assurés au cours de la période selon le type de logement (%)","1.5","Jumelé",{"$f":"IFERROR(VLOOKUP(A1856,Translation!$A:$C,3,FALSE),A1856)","v":16},{"$f":"IFERROR(VLOOKUP(B1856,Translation!$A:$C,3,FALSE),B1856)","v":"T1 2020"},{"$f":"IFERROR(VLOOKUP(C1856,Translation!$A:$C,3,FALSE),C1856)","v":"ASSURANCE DE PORTEFEUILLE"},{"$f":"IFERROR(VLOOKUP(D1856,Translation!$A:$C,3,FALSE),D1856)","v":"Jumelé"},{"$f":"IFERROR(VLOOKUP(E1856,Translation!$A:$C,3,FALSE),E1856)","v":1.5184582384835263},{"$f":"IFERROR(VLOOKUP(F1856,Translation!$A:$C,3,FALSE),F1856)","v":"Prêts hypothécaires assurés au cours de la période selon le type de logement (%)"},{"$f":"IFERROR(VLOOKUP(G1856,Translation!$A:$C,3,FALSE),G1856)","v":"1.5"},{"$f":"IFERROR(VLOOKUP(H1856,Translation!$A:$C,3,FALSE),H1856)","v":"Jumelé"}]
[16,"Cumul 2019","ASSURANCE DE PORTEFEUILLE","Jumelé",6.1711831594049684,"Prêts hypothécaires assurés au cours de la période selon le type de logement (%)","6.2","Jumelé",{"$f":"IFERROR(VLOOKUP(A1857,Translation!$A:$C,3,FALSE),A1857)","v":16},{"$f":"IFERROR(VLOOKUP(B1857,Translation!$A:$C,3,FALSE),B1857)","v":"Cumul 2019"},{"$f":"IFERROR(VLOOKUP(C1857,Translation!$A:$C,3,FALSE),C1857)","v":"ASSURANCE DE PORTEFEUILLE"},{"$f":"IFERROR(VLOOKUP(D1857,Translation!$A:$C,3,FALSE),D1857)","v":"Jumelé"},{"$f":"IFERROR(VLOOKUP(E1857,Translation!$A:$C,3,FALSE),E1857)","v":6.1711831594049684},{"$f":"IFERROR(VLOOKUP(F1857,Translation!$A:$C,3,FALSE),F1857)","v":"Prêts hypothécaires assurés au cours de la période selon le type de logement (%)"},{"$f":"IFERROR(VLOOKUP(G1857,Translation!$A:$C,3,FALSE),G1857)","v":"6.2"},{"$f":"IFERROR(VLOOKUP(H1857,Translation!$A:$C,3,FALSE),H1857)","v":"Jumelé"}]
[16,"Cumul 2020","ASSURANCE DE PORTEFEUILLE","Jumelé",1.5184582384835263,"Prêts hypothécaires assurés au cours de la période selon le type de logement (%)","1.5","Jumelé",{"$f":"IFERROR(VLOOKUP(A1858,Translation!$A:$C,3,FALSE),A1858)","v":16},{"$f":"IFERROR(VLOOKUP(B1858,Translation!$A:$C,3,FALSE),B1858)","v":"Cumul 2020"},{"$f":"IFERROR(VLOOKUP(C1858,Translation!$A:$C,3,FALSE),C1858)","v":"ASSURANCE DE PORTEFEUILLE"},{"$f":"IFERROR(VLOOKUP(D1858,Translation!$A:$C,3,FALSE),D1858)","v":"Jumelé"},{"$f":"IFERROR(VLOOKUP(E1858,Translation!$A:$C,3,FALSE),E1858)","v":1.5184582384835263},{"$f":"IFERROR(VLOOKUP(F1858,Translation!$A:$C,3,FALSE),F1858)","v":"Prêts hypothécaires assurés au cours de la période selon le type de logement (%)"},{"$f":"IFERROR(VLOOKUP(G1858,Translation!$A:$C,3,FALSE),G1858)","v":"1.5"},{"$f":"IFERROR(VLOOKUP(H1858,Translation!$A:$C,3,FALSE),H1858)","v":"Jumelé"}]
[16,"T1 2020","ASSURANCE DE PORTEFEUILLE","Plex",0.61370279747189205,"Prêts hypothécaires assurés au cours de la période selon le type de logement (%)","0.6","Plex",{"$f":"IFERROR(VLOOKUP(A1859,Translation!$A:$C,3,FALSE),A1859)","v":16},{"$f":"IFERROR(VLOOKUP(B1859,Translation!$A:$C,3,FALSE),B1859)","v":"T1 2020"},{"$f":"IFERROR(VLOOKUP(C1859,Translation!$A:$C,3,FALSE),C1859)","v":"ASSURANCE DE PORTEFEUILLE"},{"$f":"IFERROR(VLOOKUP(D1859,Translation!$A:$C,3,FALSE),D1859)","v":"Plex"},{"$f":"IFERROR(VLOOKUP(E1859,Translation!$A:$C,3,FALSE),E1859)","v":0.61370279747189205},{"$f":"IFERROR(VLOOKUP(F1859,Translation!$A:$C,3,FALSE),F1859)","v":"Prêts hypothécaires assurés au cours de la période selon le type de logement (%)"},{"$f":"IFERROR(VLOOKUP(G1859,Translation!$A:$C,3,FALSE),G1859)","v":"0.6"},{"$f":"IFERROR(VLOOKUP(H1859,Translation!$A:$C,3,FALSE),H1859)","v":"Plex"}]
[16,"Cumul 2019","ASSURANCE DE PORTEFEUILLE","Plex",0.89566658277301148,"Prêts hypothécaires assurés au cours de la période selon le type de logement (%)","0.9","Plex",{"$f":"IFERROR(VLOOKUP(A1860,Translation!$A:$C,3,FALSE),A1860)","v":16},{"$f":"IFERROR(VLOOKUP(B1860,Translation!$A:$C,3,FALSE),B1860)","v":"Cumul 2019"},{"$f":"IFERROR(VLOOKUP(C1860,Translation!$A:$C,3,FALSE),C1860)","v":"ASSURANCE DE PORTEFEUILLE"},{"$f":"IFERROR(VLOOKUP(D1860,Translation!$A:$C,3,FALSE),D1860)","v":"Plex"},{"$f":"IFERROR(VLOOKUP(E1860,Translation!$A:$C,3,FALSE),E1860)","v":0.89566658277301148},{"$f":"IFERROR(VLOOKUP(F1860,Translation!$A:$C,3,FALSE),F1860)","v":"Prêts hypothécaires assurés au cours de la période selon le type de logement (%)"},{"$f":"IFERROR(VLOOKUP(G1860,Translation!$A:$C,3,FALSE),G1860)","v":"0.9"},{"$f":"IFERROR(VLOOKUP(H1860,Translation!$A:$C,3,FALSE),H1860)","v":"Plex"}]
[16,"Cumul 2020","ASSURANCE DE PORTEFEUILLE","Plex",0.61370279747189205,"Prêts hypothécaires assurés au cours de la période selon le type de logement (%)","0.6","Plex",{"$f":"IFERROR(VLOOKUP(A1861,Translation!$A:$C,3,FALSE),A1861)","v":16},{"$f":"IFERROR(VLOOKUP(B1861,Translation!$A:$C,3,FALSE),B1861)","v":"Cumul 2020"},{"$f":"IFERROR(VLOOKUP(C1861,Translation!$A:$C,3,FALSE),C1861)","v":"ASSURANCE DE PORTEFEUILLE"},{"$f":"IFERROR(VLOOKUP(D1861,Translation!$A:$C,3,FALSE),D1861)","v":"Plex"},{"$f":"IFERROR(VLOOKUP(E1861,Translation!$A:$C,3,FALSE),E1861)","v":0.61370279747189205},{"$f":"IFERROR(VLOOKUP(F1861,Translation!$A:$C,3,FALSE),F1861)","v":"Prêts hypothécaires assurés au cours de la période selon le type de logement (%)"},{"$f":"IFERROR(VLOOKUP(G1861,Translation!$A:$C,3,FALSE),G1861)","v":"0.6"},{"$f":"IFERROR(VLOOKUP(H1861,Translation!$A:$C,3,FALSE),H1861)","v":"Plex"}]
[16,"T1 2020","ASSURANCE DE PORTEFEUILLE","Autre",0.13147361412491729,"Prêts hypothécaires assurés au cours de la période selon le type de logement (%)","0.1","Autre",{"$f":"IFERROR(VLOOKUP(A1862,Translation!$A:$C,3,FALSE),A1862)","v":16},{"$f":"IFERROR(VLOOKUP(B1862,Translation!$A:$C,3,FALSE),B1862)","v":"T1 2020"},{"$f":"IFERROR(VLOOKUP(C1862,Translation!$A:$C,3,FALSE),C1862)","v":"ASSURANCE DE PORTEFEUILLE"},{"$f":"IFERROR(VLOOKUP(D1862,Translation!$A:$C,3,FALSE),D1862)","v":"Autre"},{"$f":"IFERROR(VLOOKUP(E1862,Translation!$A:$C,3,FALSE),E1862)","v":0.13147361412491729},{"$f":"IFERROR(VLOOKUP(F1862,Translation!$A:$C,3,FALSE),F1862)","v":"Prêts hypothécaires assurés au cours de la période selon le type de logement (%)"},{"$f":"IFERROR(VLOOKUP(G1862,Translation!$A:$C,3,FALSE),G1862)","v":"0.1"},{"$f":"IFERROR(VLOOKUP(H1862,Translation!$A:$C,3,FALSE),H1862)","v":"Autre"}]
[16,"Cumul 2019","ASSURANCE DE PORTEFEUILLE","Autre",0.17503391102557539,"Prêts hypothécaires assurés au cours de la période selon le type de logement (%)","0.2","Autre",{"$f":"IFERROR(VLOOKUP(A1863,Translation!$A:$C,3,FALSE),A1863)","v":16},{"$f":"IFERROR(VLOOKUP(B1863,Translation!$A:$C,3,FALSE),B1863)","v":"Cumul 2019"},{"$f":"IFERROR(VLOOKUP(C1863,Translation!$A:$C,3,FALSE),C1863)","v":"ASSURANCE DE PORTEFEUILLE"},{"$f":"IFERROR(VLOOKUP(D1863,Translation!$A:$C,3,FALSE),D1863)","v":"Autre"},{"$f":"IFERROR(VLOOKUP(E1863,Translation!$A:$C,3,FALSE),E1863)","v":0.17503391102557539},{"$f":"IFERROR(VLOOKUP(F1863,Translation!$A:$C,3,FALSE),F1863)","v":"Prêts hypothécaires assurés au cours de la période selon le type de logement (%)"},{"$f":"IFERROR(VLOOKUP(G1863,Translation!$A:$C,3,FALSE),G1863)","v":"0.2"},{"$f":"IFERROR(VLOOKUP(H1863,Translation!$A:$C,3,FALSE),H1863)","v":"Autre"}]
[16,"Cumul 2020","ASSURANCE DE PORTEFEUILLE","Autre",0.13147361412491729,"Prêts hypothécaires assurés au cours de la période selon le type de logement (%)","0.1","Autre",{"$f":"IFERROR(VLOOKUP(A1864,Translation!$A:$C,3,FALSE),A1864)","v":16},{"$f":"IFERROR(VLOOKUP(B1864,Translation!$A:$C,3,FALSE),B1864)","v":"Cumul 2020"},{"$f":"IFERROR(VLOOKUP(C1864,Translation!$A:$C,3,FALSE),C1864)","v":"ASSURANCE DE PORTEFEUILLE"},{"$f":"IFERROR(VLOOKUP(D1864,Translation!$A:$C,3,FALSE),D1864)","v":"Autre"},{"$f":"IFERROR(VLOOKUP(E1864,Translation!$A:$C,3,FALSE),E1864)","v":0.13147361412491729},{"$f":"IFERROR(VLOOKUP(F1864,Translation!$A:$C,3,FALSE),F1864)","v":"Prêts hypothécaires assurés au cours de la période selon le type de logement (%)"},{"$f":"IFERROR(VLOOKUP(G1864,Translation!$A:$C,3,FALSE),G1864)","v":"0.1"},{"$f":"IFERROR(VLOOKUP(H1864,Translation!$A:$C,3,FALSE),H1864)","v":"Autre"}]
[16,"T1 2020","PROPRIÉTAIRES-OCCUPANTS, À L’UNITÉ","Terre-Neuve-et-Labrador",80.653309502098011,"Prêts hypothécaires assurés au cours de la période selon le type de logement (%)","80.7","Terre-Neuve-et-Labrador",{"$f":"IFERROR(VLOOKUP(A1865,Translation!$A:$C,3,FALSE),A1865)","v":16},{"$f":"IFERROR(VLOOKUP(B1865,Translation!$A:$C,3,FALSE),B1865)","v":"T1 2020"},{"$f":"IFERROR(VLOOKUP(C1865,Translation!$A:$C,3,FALSE),C1865)","v":"PROPRIÉTAIRES-OCCUPANTS, À L’UNITÉ"},{"$f":"IFERROR(VLOOKUP(D1865,Translation!$A:$C,3,FALSE),D1865)","v":"Terre-Neuve-et-Labrador"},{"$f":"IFERROR(VLOOKUP(E1865,Translation!$A:$C,3,FALSE),E1865)","v":80.653309502098011},{"$f":"IFERROR(VLOOKUP(F1865,Translation!$A:$C,3,FALSE),F1865)","v":"Prêts hypothécaires assurés au cours de la période selon le type de logement (%)"},{"$f":"IFERROR(VLOOKUP(G1865,Translation!$A:$C,3,FALSE),G1865)","v":"80.7"},{"$f":"IFERROR(VLOOKUP(H1865,Translation!$A:$C,3,FALSE),H1865)","v":"Terre-Neuve-et-Labrador"}]
[16,"Cumul 2019","PROPRIÉTAIRES-OCCUPANTS, À L’UNITÉ","Terre-Neuve-et-Labrador",82.082294385906877,"Prêts hypothécaires assurés au cours de la période selon le type de logement (%)","82.1","Terre-Neuve-et-Labrador",{"$f":"IFERROR(VLOOKUP(A1866,Translation!$A:$C,3,FALSE),A1866)","v":16},{"$f":"IFERROR(VLOOKUP(B1866,Translation!$A:$C,3,FALSE),B1866)","v":"Cumul 2019"},{"$f":"IFERROR(VLOOKUP(C1866,Translation!$A:$C,3,FALSE),C1866)","v":"PROPRIÉTAIRES-OCCUPANTS, À L’UNITÉ"},{"$f":"IFERROR(VLOOKUP(D1866,Translation!$A:$C,3,FALSE),D1866)","v":"Terre-Neuve-et-Labrador"},{"$f":"IFERROR(VLOOKUP(E1866,Translation!$A:$C,3,FALSE),E1866)","v":82.082294385906877},{"$f":"IFERROR(VLOOKUP(F1866,Translation!$A:$C,3,FALSE),F1866)","v":"Prêts hypothécaires assurés au cours de la période selon le type de logement (%)"},{"$f":"IFERROR(VLOOKUP(G1866,Translation!$A:$C,3,FALSE),G1866)","v":"82.1"},{"$f":"IFERROR(VLOOKUP(H1866,Translation!$A:$C,3,FALSE),H1866)","v":"Terre-Neuve-et-Labrador"}]
[16,"Cumul 2020","PROPRIÉTAIRES-OCCUPANTS, À L’UNITÉ","Terre-Neuve-et-Labrador",80.653309502098011,"Prêts hypothécaires assurés au cours de la période selon le type de logement (%)","80.7","Terre-Neuve-et-Labrador",{"$f":"IFERROR(VLOOKUP(A1867,Translation!$A:$C,3,FALSE),A1867)","v":16},{"$f":"IFERROR(VLOOKUP(B1867,Translation!$A:$C,3,FALSE),B1867)","v":"Cumul 2020"},{"$f":"IFERROR(VLOOKUP(C1867,Translation!$A:$C,3,FALSE),C1867)","v":"PROPRIÉTAIRES-OCCUPANTS, À L’UNITÉ"},{"$f":"IFERROR(VLOOKUP(D1867,Translation!$A:$C,3,FALSE),D1867)","v":"Terre-Neuve-et-Labrador"},{"$f":"IFERROR(VLOOKUP(E1867,Translation!$A:$C,3,FALSE),E1867)","v":80.653309502098011},{"$f":"IFERROR(VLOOKUP(F1867,Translation!$A:$C,3,FALSE),F1867)","v":"Prêts hypothécaires assurés au cours de la période selon le type de logement (%)"},{"$f":"IFERROR(VLOOKUP(G1867,Translation!$A:$C,3,FALSE),G1867)","v":"80.7"},{"$f":"IFERROR(VLOOKUP(H1867,Translation!$A:$C,3,FALSE),H1867)","v":"Terre-Neuve-et-Labrador"}]
[16,"T1 2020","PROPRIÉTAIRES-OCCUPANTS, À L’UNITÉ","Île-du-Prince-Édouard",66.342069431467664,"Prêts hypothécaires assurés au cours de la période selon le type de logement (%)","66.3","Île-du-Prince-Édouard",{"$f":"IFERROR(VLOOKUP(A1868,Translation!$A:$C,3,FALSE),A1868)","v":16},{"$f":"IFERROR(VLOOKUP(B1868,Translation!$A:$C,3,FALSE),B1868)","v":"T1 2020"},{"$f":"IFERROR(VLOOKUP(C1868,Translation!$A:$C,3,FALSE),C1868)","v":"PROPRIÉTAIRES-OCCUPANTS, À L’UNITÉ"},{"$f":"IFERROR(VLOOKUP(D1868,Translation!$A:$C,3,FALSE),D1868)","v":"Île-du-Prince-Édouard"},{"$f":"IFERROR(VLOOKUP(E1868,Translation!$A:$C,3,FALSE),E1868)","v":66.342069431467664},{"$f":"IFERROR(VLOOKUP(F1868,Translation!$A:$C,3,FALSE),F1868)","v":"Prêts hypothécaires assurés au cours de la période selon le type de logement (%)"},{"$f":"IFERROR(VLOOKUP(G1868,Translation!$A:$C,3,FALSE),G1868)","v":"66.3"},{"$f":"IFERROR(VLOOKUP(H1868,Translation!$A:$C,3,FALSE),H1868)","v":"Île-du-Prince-Édouard"}]
[16,"Cumul 2019","PROPRIÉTAIRES-OCCUPANTS, À L’UNITÉ","Île-du-Prince-Édouard",79.913448652940247,"Prêts hypothécaires assurés au cours de la période selon le type de logement (%)","79.9","Île-du-Prince-Édouard",{"$f":"IFERROR(VLOOKUP(A1869,Translation!$A:$C,3,FALSE),A1869)","v":16},{"$f":"IFERROR(VLOOKUP(B1869,Translation!$A:$C,3,FALSE),B1869)","v":"Cumul 2019"},{"$f":"IFERROR(VLOOKUP(C1869,Translation!$A:$C,3,FALSE),C1869)","v":"PROPRIÉTAIRES-OCCUPANTS, À L’UNITÉ"},{"$f":"IFERROR(VLOOKUP(D1869,Translation!$A:$C,3,FALSE),D1869)","v":"Île-du-Prince-Édouard"},{"$f":"IFERROR(VLOOKUP(E1869,Translation!$A:$C,3,FALSE),E1869)","v":79.913448652940247},{"$f":"IFERROR(VLOOKUP(F1869,Translation!$A:$C,3,FALSE),F1869)","v":"Prêts hypothécaires assurés au cours de la période selon le type de logement (%)"},{"$f":"IFERROR(VLOOKUP(G1869,Translation!$A:$C,3,FALSE),G1869)","v":"79.9"},{"$f":"IFERROR(VLOOKUP(H1869,Translation!$A:$C,3,FALSE),H1869)","v":"Île-du-Prince-Édouard"}]
[16,"Cumul 2020","PROPRIÉTAIRES-OCCUPANTS, À L’UNITÉ","Île-du-Prince-Édouard",66.342069431467664,"Prêts hypothécaires assurés au cours de la période selon le type de logement (%)","66.3","Île-du-Prince-Édouard",{"$f":"IFERROR(VLOOKUP(A1870,Translation!$A:$C,3,FALSE),A1870)","v":16},{"$f":"IFERROR(VLOOKUP(B1870,Translation!$A:$C,3,FALSE),B1870)","v":"Cumul 2020"},{"$f":"IFERROR(VLOOKUP(C1870,Translation!$A:$C,3,FALSE),C1870)","v":"PROPRIÉTAIRES-OCCUPANTS, À L’UNITÉ"},{"$f":"IFERROR(VLOOKUP(D1870,Translation!$A:$C,3,FALSE),D1870)","v":"Île-du-Prince-Édouard"},{"$f":"IFERROR(VLOOKUP(E1870,Translation!$A:$C,3,FALSE),E1870)","v":66.342069431467664},{"$f":"IFERROR(VLOOKUP(F1870,Translation!$A:$C,3,FALSE),F1870)","v":"Prêts hypothécaires assurés au cours de la période selon le type de logement (%)"},{"$f":"IFERROR(VLOOKUP(G1870,Translation!$A:$C,3,FALSE),G1870)","v":"66.3"},{"$f":"IFERROR(VLOOKUP(H1870,Translation!$A:$C,3,FALSE),H1870)","v":"Île-du-Prince-Édouard"}]
[16,"T1 2020","PROPRIÉTAIRES-OCCUPANTS, À L’UNITÉ","Nouvelle-Écosse",74.173593100686787,"Prêts hypothécaires assurés au cours de la période selon le type de logement (%)","74.2","Nouvelle-Écosse",{"$f":"IFERROR(VLOOKUP(A1871,Translation!$A:$C,3,FALSE),A1871)","v":16},{"$f":"IFERROR(VLOOKUP(B1871,Translation!$A:$C,3,FALSE),B1871)","v":"T1 2020"},{"$f":"IFERROR(VLOOKUP(C1871,Translation!$A:$C,3,FALSE),C1871)","v":"PROPRIÉTAIRES-OCCUPANTS, À L’UNITÉ"},{"$f":"IFERROR(VLOOKUP(D1871,Translation!$A:$C,3,FALSE),D1871)","v":"Nouvelle-Écosse"},{"$f":"IFERROR(VLOOKUP(E1871,Translation!$A:$C,3,FALSE),E1871)","v":74.173593100686787},{"$f":"IFERROR(VLOOKUP(F1871,Translation!$A:$C,3,FALSE),F1871)","v":"Prêts hypothécaires assurés au cours de la période selon le type de logement (%)"},{"$f":"IFERROR(VLOOKUP(G1871,Translation!$A:$C,3,FALSE),G1871)","v":"74.2"},{"$f":"IFERROR(VLOOKUP(H1871,Translation!$A:$C,3,FALSE),H1871)","v":"Nouvelle-Écosse"}]
[16,"Cumul 2019","PROPRIÉTAIRES-OCCUPANTS, À L’UNITÉ","Nouvelle-Écosse",76.669034265228618,"Prêts hypothécaires assurés au cours de la période selon le type de logement (%)","76.7","Nouvelle-Écosse",{"$f":"IFERROR(VLOOKUP(A1872,Translation!$A:$C,3,FALSE),A1872)","v":16},{"$f":"IFERROR(VLOOKUP(B1872,Translation!$A:$C,3,FALSE),B1872)","v":"Cumul 2019"},{"$f":"IFERROR(VLOOKUP(C1872,Translation!$A:$C,3,FALSE),C1872)","v":"PROPRIÉTAIRES-OCCUPANTS, À L’UNITÉ"},{"$f":"IFERROR(VLOOKUP(D1872,Translation!$A:$C,3,FALSE),D1872)","v":"Nouvelle-Écosse"},{"$f":"IFERROR(VLOOKUP(E1872,Translation!$A:$C,3,FALSE),E1872)","v":76.669034265228618},{"$f":"IFERROR(VLOOKUP(F1872,Translation!$A:$C,3,FALSE),F1872)","v":"Prêts hypothécaires assurés au cours de la période selon le type de logement (%)"},{"$f":"IFERROR(VLOOKUP(G1872,Translation!$A:$C,3,FALSE),G1872)","v":"76.7"},{"$f":"IFERROR(VLOOKUP(H1872,Translation!$A:$C,3,FALSE),H1872)","v":"Nouvelle-Écosse"}]
[16,"Cumul 2020","PROPRIÉTAIRES-OCCUPANTS, À L’UNITÉ","Nouvelle-Écosse",74.173593100686787,"Prêts hypothécaires assurés au cours de la période selon le type de logement (%)","74.2","Nouvelle-Écosse",{"$f":"IFERROR(VLOOKUP(A1873,Translation!$A:$C,3,FALSE),A1873)","v":16},{"$f":"IFERROR(VLOOKUP(B1873,Translation!$A:$C,3,FALSE),B1873)","v":"Cumul 2020"},{"$f":"IFERROR(VLOOKUP(C1873,Translation!$A:$C,3,FALSE),C1873)","v":"PROPRIÉTAIRES-OCCUPANTS, À L’UNITÉ"},{"$f":"IFERROR(VLOOKUP(D1873,Translation!$A:$C,3,FALSE),D1873)","v":"Nouvelle-Écosse"},{"$f":"IFERROR(VLOOKUP(E1873,Translation!$A:$C,3,FALSE),E1873)","v":74.173593100686787},{"$f":"IFERROR(VLOOKUP(F1873,Translation!$A:$C,3,FALSE),F1873)","v":"Prêts hypothécaires assurés au cours de la période selon le type de logement (%)"},{"$f":"IFERROR(VLOOKUP(G1873,Translation!$A:$C,3,FALSE),G1873)","v":"74.2"},{"$f":"IFERROR(VLOOKUP(H1873,Translation!$A:$C,3,FALSE),H1873)","v":"Nouvelle-Écosse"}]
[16,"T1 2020","PROPRIÉTAIRES-OCCUPANTS, À L’UNITÉ","Nouveau-Brunswick",79.119934748877199,"Prêts hypothécaires assurés au cours de la période selon le type de logement (%)","79.1","Nouveau-Brunswick",{"$f":"IFERROR(VLOOKUP(A1874,Translation!$A:$C,3,FALSE),A1874)","v":16},{"$f":"IFERROR(VLOOKUP(B1874,Translation!$A:$C,3,FALSE),B1874)","v":"T1 2020"},{"$f":"IFERROR(VLOOKUP(C1874,Translation!$A:$C,3,FALSE),C1874)","v":"PROPRIÉTAIRES-OCCUPANTS, À L’UNITÉ"},{"$f":"IFERROR(VLOOKUP(D1874,Translation!$A:$C,3,FALSE),D1874)","v":"Nouveau-Brunswick"},{"$f":"IFERROR(VLOOKUP(E1874,Translation!$A:$C,3,FALSE),E1874)","v":79.119934748877199},{"$f":"IFERROR(VLOOKUP(F1874,Translation!$A:$C,3,FALSE),F1874)","v":"Prêts hypothécaires assurés au cours de la période selon le type de logement (%)"},{"$f":"IFERROR(VLOOKUP(G1874,Translation!$A:$C,3,FALSE),G1874)","v":"79.1"},{"$f":"IFERROR(VLOOKUP(H1874,Translation!$A:$C,3,FALSE),H1874)","v":"Nouveau-Brunswick"}]
[16,"Cumul 2019","PROPRIÉTAIRES-OCCUPANTS, À L’UNITÉ","Nouveau-Brunswick",82.428453241333614,"Prêts hypothécaires assurés au cours de la période selon le type de logement (%)","82.4","Nouveau-Brunswick",{"$f":"IFERROR(VLOOKUP(A1875,Translation!$A:$C,3,FALSE),A1875)","v":16},{"$f":"IFERROR(VLOOKUP(B1875,Translation!$A:$C,3,FALSE),B1875)","v":"Cumul 2019"},{"$f":"IFERROR(VLOOKUP(C1875,Translation!$A:$C,3,FALSE),C1875)","v":"PROPRIÉTAIRES-OCCUPANTS, À L’UNITÉ"},{"$f":"IFERROR(VLOOKUP(D1875,Translation!$A:$C,3,FALSE),D1875)","v":"Nouveau-Brunswick"},{"$f":"IFERROR(VLOOKUP(E1875,Translation!$A:$C,3,FALSE),E1875)","v":82.428453241333614},{"$f":"IFERROR(VLOOKUP(F1875,Translation!$A:$C,3,FALSE),F1875)","v":"Prêts hypothécaires assurés au cours de la période selon le type de logement (%)"},{"$f":"IFERROR(VLOOKUP(G1875,Translation!$A:$C,3,FALSE),G1875)","v":"82.4"},{"$f":"IFERROR(VLOOKUP(H1875,Translation!$A:$C,3,FALSE),H1875)","v":"Nouveau-Brunswick"}]
[16,"Cumul 2020","PROPRIÉTAIRES-OCCUPANTS, À L’UNITÉ","Nouveau-Brunswick",79.119934748877199,"Prêts hypothécaires assurés au cours de la période selon le type de logement (%)","79.1","Nouveau-Brunswick",{"$f":"IFERROR(VLOOKUP(A1876,Translation!$A:$C,3,FALSE),A1876)","v":16},{"$f":"IFERROR(VLOOKUP(B1876,Translation!$A:$C,3,FALSE),B1876)","v":"Cumul 2020"},{"$f":"IFERROR(VLOOKUP(C1876,Translation!$A:$C,3,FALSE),C1876)","v":"PROPRIÉTAIRES-OCCUPANTS, À L’UNITÉ"},{"$f":"IFERROR(VLOOKUP(D1876,Translation!$A:$C,3,FALSE),D1876)","v":"Nouveau-Brunswick"},{"$f":"IFERROR(VLOOKUP(E1876,Translation!$A:$C,3,FALSE),E1876)","v":79.119934748877199},{"$f":"IFERROR(VLOOKUP(F1876,Translation!$A:$C,3,FALSE),F1876)","v":"Prêts hypothécaires assurés au cours de la période selon le type de logement (%)"},{"$f":"IFERROR(VLOOKUP(G1876,Translation!$A:$C,3,FALSE),G1876)","v":"79.1"},{"$f":"IFERROR(VLOOKUP(H1876,Translation!$A:$C,3,FALSE),H1876)","v":"Nouveau-Brunswick"}]
[16,"T1 2020","PROPRIÉTAIRES-OCCUPANTS, À L’UNITÉ","Québec",56.870810681822498,"Prêts hypothécaires assurés au cours de la période selon le type de logement (%)","56.9","Québec",{"$f":"IFERROR(VLOOKUP(A1877,Translation!$A:$C,3,FALSE),A1877)","v":16},{"$f":"IFERROR(VLOOKUP(B1877,Translation!$A:$C,3,FALSE),B1877)","v":"T1 2020"},{"$f":"IFERROR(VLOOKUP(C1877,Translation!$A:$C,3,FALSE),C1877)","v":"PROPRIÉTAIRES-OCCUPANTS, À L’UNITÉ"},{"$f":"IFERROR(VLOOKUP(D1877,Translation!$A:$C,3,FALSE),D1877)","v":"Québec"},{"$f":"IFERROR(VLOOKUP(E1877,Translation!$A:$C,3,FALSE),E1877)","v":56.870810681822498},{"$f":"IFERROR(VLOOKUP(F1877,Translation!$A:$C,3,FALSE),F1877)","v":"Prêts hypothécaires assurés au cours de la période selon le type de logement (%)"},{"$f":"IFERROR(VLOOKUP(G1877,Translation!$A:$C,3,FALSE),G1877)","v":"56.9"},{"$f":"IFERROR(VLOOKUP(H1877,Translation!$A:$C,3,FALSE),H1877)","v":"Québec"}]
[16,"Cumul 2019","PROPRIÉTAIRES-OCCUPANTS, À L’UNITÉ","Québec",58.990069586279859,"Prêts hypothécaires assurés au cours de la période selon le type de logement (%)","59.0","Québec",{"$f":"IFERROR(VLOOKUP(A1878,Translation!$A:$C,3,FALSE),A1878)","v":16},{"$f":"IFERROR(VLOOKUP(B1878,Translation!$A:$C,3,FALSE),B1878)","v":"Cumul 2019"},{"$f":"IFERROR(VLOOKUP(C1878,Translation!$A:$C,3,FALSE),C1878)","v":"PROPRIÉTAIRES-OCCUPANTS, À L’UNITÉ"},{"$f":"IFERROR(VLOOKUP(D1878,Translation!$A:$C,3,FALSE),D1878)","v":"Québec"},{"$f":"IFERROR(VLOOKUP(E1878,Translation!$A:$C,3,FALSE),E1878)","v":58.990069586279859},{"$f":"IFERROR(VLOOKUP(F1878,Translation!$A:$C,3,FALSE),F1878)","v":"Prêts hypothécaires assurés au cours de la période selon le type de logement (%)"},{"$f":"IFERROR(VLOOKUP(G1878,Translation!$A:$C,3,FALSE),G1878)","v":"59.0"},{"$f":"IFERROR(VLOOKUP(H1878,Translation!$A:$C,3,FALSE),H1878)","v":"Québec"}]
[16,"Cumul 2020","PROPRIÉTAIRES-OCCUPANTS, À L’UNITÉ","Québec",56.870810681822498,"Prêts hypothécaires assurés au cours de la période selon le type de logement (%)","56.9","Québec",{"$f":"IFERROR(VLOOKUP(A1879,Translation!$A:$C,3,FALSE),A1879)","v":16},{"$f":"IFERROR(VLOOKUP(B1879,Translation!$A:$C,3,FALSE),B1879)","v":"Cumul 2020"},{"$f":"IFERROR(VLOOKUP(C1879,Translation!$A:$C,3,FALSE),C1879)","v":"PROPRIÉTAIRES-OCCUPANTS, À L’UNITÉ"},{"$f":"IFERROR(VLOOKUP(D1879,Translation!$A:$C,3,FALSE),D1879)","v":"Québec"},{"$f":"IFERROR(VLOOKUP(E1879,Translation!$A:$C,3,FALSE),E1879)","v":56.870810681822498},{"$f":"IFERROR(VLOOKUP(F1879,Translation!$A:$C,3,FALSE),F1879)","v":"Prêts hypothécaires assurés au cours de la période selon le type de logement (%)"},{"$f":"IFERROR(VLOOKUP(G1879,Translation!$A:$C,3,FALSE),G1879)","v":"56.9"},{"$f":"IFERROR(VLOOKUP(H1879,Translation!$A:$C,3,FALSE),H1879)","v":"Québec"}]
[16,"T1 2020","PROPRIÉTAIRES-OCCUPANTS, À L’UNITÉ","Ontario",51.482059728350045,"Prêts hypothécaires assurés au cours de la période selon le type de logement (%)","51.5","Ontario",{"$f":"IFERROR(VLOOKUP(A1880,Translation!$A:$C,3,FALSE),A1880)","v":16},{"$f":"IFERROR(VLOOKUP(B1880,Translation!$A:$C,3,FALSE),B1880)","v":"T1 2020"},{"$f":"IFERROR(VLOOKUP(C1880,Translation!$A:$C,3,FALSE),C1880)","v":"PROPRIÉTAIRES-OCCUPANTS, À L’UNITÉ"},{"$f":"IFERROR(VLOOKUP(D1880,Translation!$A:$C,3,FALSE),D1880)","v":"Ontario"},{"$f":"IFERROR(VLOOKUP(E1880,Translation!$A:$C,3,FALSE),E1880)","v":51.482059728350045},{"$f":"IFERROR(VLOOKUP(F1880,Translation!$A:$C,3,FALSE),F1880)","v":"Prêts hypothécaires assurés au cours de la période selon le type de logement (%)"},{"$f":"IFERROR(VLOOKUP(G1880,Translation!$A:$C,3,FALSE),G1880)","v":"51.5"},{"$f":"IFERROR(VLOOKUP(H1880,Translation!$A:$C,3,FALSE),H1880)","v":"Ontario"}]
[16,"Cumul 2019","PROPRIÉTAIRES-OCCUPANTS, À L’UNITÉ","Ontario",54.502143700076118,"Prêts hypothécaires assurés au cours de la période selon le type de logement (%)","54.5","Ontario",{"$f":"IFERROR(VLOOKUP(A1881,Translation!$A:$C,3,FALSE),A1881)","v":16},{"$f":"IFERROR(VLOOKUP(B1881,Translation!$A:$C,3,FALSE),B1881)","v":"Cumul 2019"},{"$f":"IFERROR(VLOOKUP(C1881,Translation!$A:$C,3,FALSE),C1881)","v":"PROPRIÉTAIRES-OCCUPANTS, À L’UNITÉ"},{"$f":"IFERROR(VLOOKUP(D1881,Translation!$A:$C,3,FALSE),D1881)","v":"Ontario"},{"$f":"IFERROR(VLOOKUP(E1881,Translation!$A:$C,3,FALSE),E1881)","v":54.502143700076118},{"$f":"IFERROR(VLOOKUP(F1881,Translation!$A:$C,3,FALSE),F1881)","v":"Prêts hypothécaires assurés au cours de la période selon le type de logement (%)"},{"$f":"IFERROR(VLOOKUP(G1881,Translation!$A:$C,3,FALSE),G1881)","v":"54.5"},{"$f":"IFERROR(VLOOKUP(H1881,Translation!$A:$C,3,FALSE),H1881)","v":"Ontario"}]
[16,"Cumul 2020","PROPRIÉTAIRES-OCCUPANTS, À L’UNITÉ","Ontario",51.482059728350045,"Prêts hypothécaires assurés au cours de la période selon le type de logement (%)","51.5","Ontario",{"$f":"IFERROR(VLOOKUP(A1882,Translation!$A:$C,3,FALSE),A1882)","v":16},{"$f":"IFERROR(VLOOKUP(B1882,Translation!$A:$C,3,FALSE),B1882)","v":"Cumul 2020"},{"$f":"IFERROR(VLOOKUP(C1882,Translation!$A:$C,3,FALSE),C1882)","v":"PROPRIÉTAIRES-OCCUPANTS, À L’UNITÉ"},{"$f":"IFERROR(VLOOKUP(D1882,Translation!$A:$C,3,FALSE),D1882)","v":"Ontario"},{"$f":"IFERROR(VLOOKUP(E1882,Translation!$A:$C,3,FALSE),E1882)","v":51.482059728350045},{"$f":"IFERROR(VLOOKUP(F1882,Translation!$A:$C,3,FALSE),F1882)","v":"Prêts hypothécaires assurés au cours de la période selon le type de logement (%)"},{"$f":"IFERROR(VLOOKUP(G1882,Translation!$A:$C,3,FALSE),G1882)","v":"51.5"},{"$f":"IFERROR(VLOOKUP(H1882,Translation!$A:$C,3,FALSE),H1882)","v":"Ontario"}]
[16,"T1 2020","PROPRIÉTAIRES-OCCUPANTS, À L’UNITÉ","Manitoba",86.066160102043497,"Prêts hypothécaires assurés au cours de la période selon le type de logement (%)","86.1","Manitoba",{"$f":"IFERROR(VLOOKUP(A1883,Translation!$A:$C,3,FALSE),A1883)","v":16},{"$f":"IFERROR(VLOOKUP(B1883,Translation!$A:$C,3,FALSE),B1883)","v":"T1 2020"},{"$f":"IFERROR(VLOOKUP(C1883,Translation!$A:$C,3,FALSE),C1883)","v":"PROPRIÉTAIRES-OCCUPANTS, À L’UNITÉ"},{"$f":"IFERROR(VLOOKUP(D1883,Translation!$A:$C,3,FALSE),D1883)","v":"Manitoba"},{"$f":"IFERROR(VLOOKUP(E1883,Translation!$A:$C,3,FALSE),E1883)","v":86.066160102043497},{"$f":"IFERROR(VLOOKUP(F1883,Translation!$A:$C,3,FALSE),F1883)","v":"Prêts hypothécaires assurés au cours de la période selon le type de logement (%)"},{"$f":"IFERROR(VLOOKUP(G1883,Translation!$A:$C,3,FALSE),G1883)","v":"86.1"},{"$f":"IFERROR(VLOOKUP(H1883,Translation!$A:$C,3,FALSE),H1883)","v":"Manitoba"}]
[16,"Cumul 2019","PROPRIÉTAIRES-OCCUPANTS, À L’UNITÉ","Manitoba",83.959335259021259,"Prêts hypothécaires assurés au cours de la période selon le type de logement (%)","84.0","Manitoba",{"$f":"IFERROR(VLOOKUP(A1884,Translation!$A:$C,3,FALSE),A1884)","v":16},{"$f":"IFERROR(VLOOKUP(B1884,Translation!$A:$C,3,FALSE),B1884)","v":"Cumul 2019"},{"$f":"IFERROR(VLOOKUP(C1884,Translation!$A:$C,3,FALSE),C1884)","v":"PROPRIÉTAIRES-OCCUPANTS, À L’UNITÉ"},{"$f":"IFERROR(VLOOKUP(D1884,Translation!$A:$C,3,FALSE),D1884)","v":"Manitoba"},{"$f":"IFERROR(VLOOKUP(E1884,Translation!$A:$C,3,FALSE),E1884)","v":83.959335259021259},{"$f":"IFERROR(VLOOKUP(F1884,Translation!$A:$C,3,FALSE),F1884)","v":"Prêts hypothécaires assurés au cours de la période selon le type de logement (%)"},{"$f":"IFERROR(VLOOKUP(G1884,Translation!$A:$C,3,FALSE),G1884)","v":"84.0"},{"$f":"IFERROR(VLOOKUP(H1884,Translation!$A:$C,3,FALSE),H1884)","v":"Manitoba"}]
[16,"Cumul 2020","PROPRIÉTAIRES-OCCUPANTS, À L’UNITÉ","Manitoba",86.066160102043497,"Prêts hypothécaires assurés au cours de la période selon le type de logement (%)","86.1","Manitoba",{"$f":"IFERROR(VLOOKUP(A1885,Translation!$A:$C,3,FALSE),A1885)","v":16},{"$f":"IFERROR(VLOOKUP(B1885,Translation!$A:$C,3,FALSE),B1885)","v":"Cumul 2020"},{"$f":"IFERROR(VLOOKUP(C1885,Translation!$A:$C,3,FALSE),C1885)","v":"PROPRIÉTAIRES-OCCUPANTS, À L’UNITÉ"},{"$f":"IFERROR(VLOOKUP(D1885,Translation!$A:$C,3,FALSE),D1885)","v":"Manitoba"},{"$f":"IFERROR(VLOOKUP(E1885,Translation!$A:$C,3,FALSE),E1885)","v":86.066160102043497},{"$f":"IFERROR(VLOOKUP(F1885,Translation!$A:$C,3,FALSE),F1885)","v":"Prêts hypothécaires assurés au cours de la période selon le type de logement (%)"},{"$f":"IFERROR(VLOOKUP(G1885,Translation!$A:$C,3,FALSE),G1885)","v":"86.1"},{"$f":"IFERROR(VLOOKUP(H1885,Translation!$A:$C,3,FALSE),H1885)","v":"Manitoba"}]
[16,"T1 2020","PROPRIÉTAIRES-OCCUPANTS, À L’UNITÉ","Saskatchewan",85.709054100300605,"Prêts hypothécaires assurés au cours de la période selon le type de logement (%)","85.7","Saskatchewan",{"$f":"IFERROR(VLOOKUP(A1886,Translation!$A:$C,3,FALSE),A1886)","v":16},{"$f":"IFERROR(VLOOKUP(B1886,Translation!$A:$C,3,FALSE),B1886)","v":"T1 2020"},{"$f":"IFERROR(VLOOKUP(C1886,Translation!$A:$C,3,FALSE),C1886)","v":"PROPRIÉTAIRES-OCCUPANTS, À L’UNITÉ"},{"$f":"IFERROR(VLOOKUP(D1886,Translation!$A:$C,3,FALSE),D1886)","v":"Saskatchewan"},{"$f":"IFERROR(VLOOKUP(E1886,Translation!$A:$C,3,FALSE),E1886)","v":85.709054100300605},{"$f":"IFERROR(VLOOKUP(F1886,Translation!$A:$C,3,FALSE),F1886)","v":"Prêts hypothécaires assurés au cours de la période selon le type de logement (%)"},{"$f":"IFERROR(VLOOKUP(G1886,Translation!$A:$C,3,FALSE),G1886)","v":"85.7"},{"$f":"IFERROR(VLOOKUP(H1886,Translation!$A:$C,3,FALSE),H1886)","v":"Saskatchewan"}]
[16,"Cumul 2019","PROPRIÉTAIRES-OCCUPANTS, À L’UNITÉ","Saskatchewan",85.042994229166084,"Prêts hypothécaires assurés au cours de la période selon le type de logement (%)","85.0","Saskatchewan",{"$f":"IFERROR(VLOOKUP(A1887,Translation!$A:$C,3,FALSE),A1887)","v":16},{"$f":"IFERROR(VLOOKUP(B1887,Translation!$A:$C,3,FALSE),B1887)","v":"Cumul 2019"},{"$f":"IFERROR(VLOOKUP(C1887,Translation!$A:$C,3,FALSE),C1887)","v":"PROPRIÉTAIRES-OCCUPANTS, À L’UNITÉ"},{"$f":"IFERROR(VLOOKUP(D1887,Translation!$A:$C,3,FALSE),D1887)","v":"Saskatchewan"},{"$f":"IFERROR(VLOOKUP(E1887,Translation!$A:$C,3,FALSE),E1887)","v":85.042994229166084},{"$f":"IFERROR(VLOOKUP(F1887,Translation!$A:$C,3,FALSE),F1887)","v":"Prêts hypothécaires assurés au cours de la période selon le type de logement (%)"},{"$f":"IFERROR(VLOOKUP(G1887,Translation!$A:$C,3,FALSE),G1887)","v":"85.0"},{"$f":"IFERROR(VLOOKUP(H1887,Translation!$A:$C,3,FALSE),H1887)","v":"Saskatchewan"}]
[16,"Cumul 2020","PROPRIÉTAIRES-OCCUPANTS, À L’UNITÉ","Saskatchewan",85.709054100300605,"Prêts hypothécaires assurés au cours de la période selon le type de logement (%)","85.7","Saskatchewan",{"$f":"IFERROR(VLOOKUP(A1888,Translation!$A:$C,3,FALSE),A1888)","v":16},{"$f":"IFERROR(VLOOKUP(B1888,Translation!$A:$C,3,FALSE),B1888)","v":"Cumul 2020"},{"$f":"IFERROR(VLOOKUP(C1888,Translation!$A:$C,3,FALSE),C1888)","v":"PROPRIÉTAIRES-OCCUPANTS, À L’UNITÉ"},{"$f":"IFERROR(VLOOKUP(D1888,Translation!$A:$C,3,FALSE),D1888)","v":"Saskatchewan"},{"$f":"IFERROR(VLOOKUP(E1888,Translation!$A:$C,3,FALSE),E1888)","v":85.709054100300605},{"$f":"IFERROR(VLOOKUP(F1888,Translation!$A:$C,3,FALSE),F1888)","v":"Prêts hypothécaires assurés au cours de la période selon le type de logement (%)"},{"$f":"IFERROR(VLOOKUP(G1888,Translation!$A:$C,3,FALSE),G1888)","v":"85.7"},{"$f":"IFERROR(VLOOKUP(H1888,Translation!$A:$C,3,FALSE),H1888)","v":"Saskatchewan"}]
[16,"T1 2020","PROPRIÉTAIRES-OCCUPANTS, À L’UNITÉ","Alberta",73.042982867513373,"Prêts hypothécaires assurés au cours de la période selon le type de logement (%)","73.0","Alberta",{"$f":"IFERROR(VLOOKUP(A1889,Translation!$A:$C,3,FALSE),A1889)","v":16},{"$f":"IFERROR(VLOOKUP(B1889,Translation!$A:$C,3,FALSE),B1889)","v":"T1 2020"},{"$f":"IFERROR(VLOOKUP(C1889,Translation!$A:$C,3,FALSE),C1889)","v":"PROPRIÉTAIRES-OCCUPANTS, À L’UNITÉ"},{"$f":"IFERROR(VLOOKUP(D1889,Translation!$A:$C,3,FALSE),D1889)","v":"Alberta"},{"$f":"IFERROR(VLOOKUP(E1889,Translation!$A:$C,3,FALSE),E1889)","v":73.042982867513373},{"$f":"IFERROR(VLOOKUP(F1889,Translation!$A:$C,3,FALSE),F1889)","v":"Prêts hypothécaires assurés au cours de la période selon le type de logement (%)"},{"$f":"IFERROR(VLOOKUP(G1889,Translation!$A:$C,3,FALSE),G1889)","v":"73.0"},{"$f":"IFERROR(VLOOKUP(H1889,Translation!$A:$C,3,FALSE),H1889)","v":"Alberta"}]
[16,"Cumul 2019","PROPRIÉTAIRES-OCCUPANTS, À L’UNITÉ","Alberta",69.205391523958809,"Prêts hypothécaires assurés au cours de la période selon le type de logement (%)","69.2","Alberta",{"$f":"IFERROR(VLOOKUP(A1890,Translation!$A:$C,3,FALSE),A1890)","v":16},{"$f":"IFERROR(VLOOKUP(B1890,Translation!$A:$C,3,FALSE),B1890)","v":"Cumul 2019"},{"$f":"IFERROR(VLOOKUP(C1890,Translation!$A:$C,3,FALSE),C1890)","v":"PROPRIÉTAIRES-OCCUPANTS, À L’UNITÉ"},{"$f":"IFERROR(VLOOKUP(D1890,Translation!$A:$C,3,FALSE),D1890)","v":"Alberta"},{"$f":"IFERROR(VLOOKUP(E1890,Translation!$A:$C,3,FALSE),E1890)","v":69.205391523958809},{"$f":"IFERROR(VLOOKUP(F1890,Translation!$A:$C,3,FALSE),F1890)","v":"Prêts hypothécaires assurés au cours de la période selon le type de logement (%)"},{"$f":"IFERROR(VLOOKUP(G1890,Translation!$A:$C,3,FALSE),G1890)","v":"69.2"},{"$f":"IFERROR(VLOOKUP(H1890,Translation!$A:$C,3,FALSE),H1890)","v":"Alberta"}]
[16,"Cumul 2020","PROPRIÉTAIRES-OCCUPANTS, À L’UNITÉ","Alberta",73.042982867513373,"Prêts hypothécaires assurés au cours de la période selon le type de logement (%)","73.0","Alberta",{"$f":"IFERROR(VLOOKUP(A1891,Translation!$A:$C,3,FALSE),A1891)","v":16},{"$f":"IFERROR(VLOOKUP(B1891,Translation!$A:$C,3,FALSE),B1891)","v":"Cumul 2020"},{"$f":"IFERROR(VLOOKUP(C1891,Translation!$A:$C,3,FALSE),C1891)","v":"PROPRIÉTAIRES-OCCUPANTS, À L’UNITÉ"},{"$f":"IFERROR(VLOOKUP(D1891,Translation!$A:$C,3,FALSE),D1891)","v":"Alberta"},{"$f":"IFERROR(VLOOKUP(E1891,Translation!$A:$C,3,FALSE),E1891)","v":73.042982867513373},{"$f":"IFERROR(VLOOKUP(F1891,Translation!$A:$C,3,FALSE),F1891)","v":"Prêts hypothécaires assurés au cours de la période selon le type de logement (%)"},{"$f":"IFERROR(VLOOKUP(G1891,Translation!$A:$C,3,FALSE),G1891)","v":"73.0"},{"$f":"IFERROR(VLOOKUP(H1891,Translation!$A:$C,3,FALSE),H1891)","v":"Alberta"}]
[16,"T1 2020","PROPRIÉTAIRES-OCCUPANTS, À L’UNITÉ","Colombie-Britannique",44.811217315355087,"Prêts hypothécaires assurés au cours de la période selon le type de logement (%)","44.8","Colombie-Britannique",{"$f":"IFERROR(VLOOKUP(A1892,Translation!$A:$C,3,FALSE),A1892)","v":16},{"$f":"IFERROR(VLOOKUP(B1892,Translation!$A:$C,3,FALSE),B1892)","v":"T1 2020"},{"$f":"IFERROR(VLOOKUP(C1892,Translation!$A:$C,3,FALSE),C1892)","v":"PROPRIÉTAIRES-OCCUPANTS, À L’UNITÉ"},{"$f":"IFERROR(VLOOKUP(D1892,Translation!$A:$C,3,FALSE),D1892)","v":"Colombie-Britannique"},{"$f":"IFERROR(VLOOKUP(E1892,Translation!$A:$C,3,FALSE),E1892)","v":44.811217315355087},{"$f":"IFERROR(VLOOKUP(F1892,Translation!$A:$C,3,FALSE),F1892)","v":"Prêts hypothécaires assurés au cours de la période selon le type de logement (%)"},{"$f":"IFERROR(VLOOKUP(G1892,Translation!$A:$C,3,FALSE),G1892)","v":"44.8"},{"$f":"IFERROR(VLOOKUP(H1892,Translation!$A:$C,3,FALSE),H1892)","v":"Colombie-Britannique"}]
[16,"Cumul 2019","PROPRIÉTAIRES-OCCUPANTS, À L’UNITÉ","Colombie-Britannique",44.351594978082595,"Prêts hypothécaires assurés au cours de la période selon le type de logement (%)","44.4","Colombie-Britannique",{"$f":"IFERROR(VLOOKUP(A1893,Translation!$A:$C,3,FALSE),A1893)","v":16},{"$f":"IFERROR(VLOOKUP(B1893,Translation!$A:$C,3,FALSE),B1893)","v":"Cumul 2019"},{"$f":"IFERROR(VLOOKUP(C1893,Translation!$A:$C,3,FALSE),C1893)","v":"PROPRIÉTAIRES-OCCUPANTS, À L’UNITÉ"},{"$f":"IFERROR(VLOOKUP(D1893,Translation!$A:$C,3,FALSE),D1893)","v":"Colombie-Britannique"},{"$f":"IFERROR(VLOOKUP(E1893,Translation!$A:$C,3,FALSE),E1893)","v":44.351594978082595},{"$f":"IFERROR(VLOOKUP(F1893,Translation!$A:$C,3,FALSE),F1893)","v":"Prêts hypothécaires assurés au cours de la période selon le type de logement (%)"},{"$f":"IFERROR(VLOOKUP(G1893,Translation!$A:$C,3,FALSE),G1893)","v":"44.4"},{"$f":"IFERROR(VLOOKUP(H1893,Translation!$A:$C,3,FALSE),H1893)","v":"Colombie-Britannique"}]
[16,"Cumul 2020","PROPRIÉTAIRES-OCCUPANTS, À L’UNITÉ","Colombie-Britannique",44.811217315355087,"Prêts hypothécaires assurés au cours de la période selon le type de logement (%)","44.8","Colombie-Britannique",{"$f":"IFERROR(VLOOKUP(A1894,Translation!$A:$C,3,FALSE),A1894)","v":16},{"$f":"IFERROR(VLOOKUP(B1894,Translation!$A:$C,3,FALSE),B1894)","v":"Cumul 2020"},{"$f":"IFERROR(VLOOKUP(C1894,Translation!$A:$C,3,FALSE),C1894)","v":"PROPRIÉTAIRES-OCCUPANTS, À L’UNITÉ"},{"$f":"IFERROR(VLOOKUP(D1894,Translation!$A:$C,3,FALSE),D1894)","v":"Colombie-Britannique"},{"$f":"IFERROR(VLOOKUP(E1894,Translation!$A:$C,3,FALSE),E1894)","v":44.811217315355087},{"$f":"IFERROR(VLOOKUP(F1894,Translation!$A:$C,3,FALSE),F1894)","v":"Prêts hypothécaires assurés au cours de la période selon le type de logement (%)"},{"$f":"IFERROR(VLOOKUP(G1894,Translation!$A:$C,3,FALSE),G1894)","v":"44.8"},{"$f":"IFERROR(VLOOKUP(H1894,Translation!$A:$C,3,FALSE),H1894)","v":"Colombie-Britannique"}]
[16,"T1 2020","PROPRIÉTAIRES-OCCUPANTS, À L’UNITÉ","Territoires",44.513861250209509,"Prêts hypothécaires assurés au cours de la période selon le type de logement (%)","44.5","Territoires",{"$f":"IFERROR(VLOOKUP(A1895,Translation!$A:$C,3,FALSE),A1895)","v":16},{"$f":"IFERROR(VLOOKUP(B1895,Translation!$A:$C,3,FALSE),B1895)","v":"T1 2020"},{"$f":"IFERROR(VLOOKUP(C1895,Translation!$A:$C,3,FALSE),C1895)","v":"PROPRIÉTAIRES-OCCUPANTS, À L’UNITÉ"},{"$f":"IFERROR(VLOOKUP(D1895,Translation!$A:$C,3,FALSE),D1895)","v":"Territoires"},{"$f":"IFERROR(VLOOKUP(E1895,Translation!$A:$C,3,FALSE),E1895)","v":44.513861250209509},{"$f":"IFERROR(VLOOKUP(F1895,Translation!$A:$C,3,FALSE),F1895)","v":"Prêts hypothécaires assurés au cours de la période selon le type de logement (%)"},{"$f":"IFERROR(VLOOKUP(G1895,Translation!$A:$C,3,FALSE),G1895)","v":"44.5"},{"$f":"IFERROR(VLOOKUP(H1895,Translation!$A:$C,3,FALSE),H1895)","v":"Territoires"}]
[16,"Cumul 2019","PROPRIÉTAIRES-OCCUPANTS, À L’UNITÉ","Territoires",55.645308071771083,"Prêts hypothécaires assurés au cours de la période selon le type de logement (%)","55.6","Territoires",{"$f":"IFERROR(VLOOKUP(A1896,Translation!$A:$C,3,FALSE),A1896)","v":16},{"$f":"IFERROR(VLOOKUP(B1896,Translation!$A:$C,3,FALSE),B1896)","v":"Cumul 2019"},{"$f":"IFERROR(VLOOKUP(C1896,Translation!$A:$C,3,FALSE),C1896)","v":"PROPRIÉTAIRES-OCCUPANTS, À L’UNITÉ"},{"$f":"IFERROR(VLOOKUP(D1896,Translation!$A:$C,3,FALSE),D1896)","v":"Territoires"},{"$f":"IFERROR(VLOOKUP(E1896,Translation!$A:$C,3,FALSE),E1896)","v":55.645308071771083},{"$f":"IFERROR(VLOOKUP(F1896,Translation!$A:$C,3,FALSE),F1896)","v":"Prêts hypothécaires assurés au cours de la période selon le type de logement (%)"},{"$f":"IFERROR(VLOOKUP(G1896,Translation!$A:$C,3,FALSE),G1896)","v":"55.6"},{"$f":"IFERROR(VLOOKUP(H1896,Translation!$A:$C,3,FALSE),H1896)","v":"Territoires"}]
[16,"Cumul 2020","PROPRIÉTAIRES-OCCUPANTS, À L’UNITÉ","Territoires",44.513861250209509,"Prêts hypothécaires assurés au cours de la période selon le type de logement (%)","44.5","Territoires",{"$f":"IFERROR(VLOOKUP(A1897,Translation!$A:$C,3,FALSE),A1897)","v":16},{"$f":"IFERROR(VLOOKUP(B1897,Translation!$A:$C,3,FALSE),B1897)","v":"Cumul 2020"},{"$f":"IFERROR(VLOOKUP(C1897,Translation!$A:$C,3,FALSE),C1897)","v":"PROPRIÉTAIRES-OCCUPANTS, À L’UNITÉ"},{"$f":"IFERROR(VLOOKUP(D1897,Translation!$A:$C,3,FALSE),D1897)","v":"Territoires"},{"$f":"IFERROR(VLOOKUP(E1897,Translation!$A:$C,3,FALSE),E1897)","v":44.513861250209509},{"$f":"IFERROR(VLOOKUP(F1897,Translation!$A:$C,3,FALSE),F1897)","v":"Prêts hypothécaires assurés au cours de la période selon le type de logement (%)"},{"$f":"IFERROR(VLOOKUP(G1897,Translation!$A:$C,3,FALSE),G1897)","v":"44.5"},{"$f":"IFERROR(VLOOKUP(H1897,Translation!$A:$C,3,FALSE),H1897)","v":"Territoires"}]
[16,"T1 2020","ASSURANCE DE PORTEFEUILLE","Terre-Neuve-et-Labrador",100,"Prêts hypothécaires assurés au cours de la période selon le type de logement (%)","100.0","Terre-Neuve-et-Labrador",{"$f":"IFERROR(VLOOKUP(A1898,Translation!$A:$C,3,FALSE),A1898)","v":16},{"$f":"IFERROR(VLOOKUP(B1898,Translation!$A:$C,3,FALSE),B1898)","v":"T1 2020"},{"$f":"IFERROR(VLOOKUP(C1898,Translation!$A:$C,3,FALSE),C1898)","v":"ASSURANCE DE PORTEFEUILLE"},{"$f":"IFERROR(VLOOKUP(D1898,Translation!$A:$C,3,FALSE),D1898)","v":"Terre-Neuve-et-Labrador"},{"$f":"IFERROR(VLOOKUP(E1898,Translation!$A:$C,3,FALSE),E1898)","v":100},{"$f":"IFERROR(VLOOKUP(F1898,Translation!$A:$C,3,FALSE),F1898)","v":"Prêts hypothécaires assurés au cours de la période selon le type de logement (%)"},{"$f":"IFERROR(VLOOKUP(G1898,Translation!$A:$C,3,FALSE),G1898)","v":"100.0"},{"$f":"IFERROR(VLOOKUP(H1898,Translation!$A:$C,3,FALSE),H1898)","v":"Terre-Neuve-et-Labrador"}]
[16,"Cumul 2019","ASSURANCE DE PORTEFEUILLE","Terre-Neuve-et-Labrador",97.086230376889219,"Prêts hypothécaires assurés au cours de la période selon le type de logement (%)","97.1","Terre-Neuve-et-Labrador",{"$f":"IFERROR(VLOOKUP(A1899,Translation!$A:$C,3,FALSE),A1899)","v":16},{"$f":"IFERROR(VLOOKUP(B1899,Translation!$A:$C,3,FALSE),B1899)","v":"Cumul 2019"},{"$f":"IFERROR(VLOOKUP(C1899,Translation!$A:$C,3,FALSE),C1899)","v":"ASSURANCE DE PORTEFEUILLE"},{"$f":"IFERROR(VLOOKUP(D1899,Translation!$A:$C,3,FALSE),D1899)","v":"Terre-Neuve-et-Labrador"},{"$f":"IFERROR(VLOOKUP(E1899,Translation!$A:$C,3,FALSE),E1899)","v":97.086230376889219},{"$f":"IFERROR(VLOOKUP(F1899,Translation!$A:$C,3,FALSE),F1899)","v":"Prêts hypothécaires assurés au cours de la période selon le type de logement (%)"},{"$f":"IFERROR(VLOOKUP(G1899,Translation!$A:$C,3,FALSE),G1899)","v":"97.1"},{"$f":"IFERROR(VLOOKUP(H1899,Translation!$A:$C,3,FALSE),H1899)","v":"Terre-Neuve-et-Labrador"}]
[16,"Cumul 2020","ASSURANCE DE PORTEFEUILLE","Terre-Neuve-et-Labrador",100,"Prêts hypothécaires assurés au cours de la période selon le type de logement (%)","100.0","Terre-Neuve-et-Labrador",{"$f":"IFERROR(VLOOKUP(A1900,Translation!$A:$C,3,FALSE),A1900)","v":16},{"$f":"IFERROR(VLOOKUP(B1900,Translation!$A:$C,3,FALSE),B1900)","v":"Cumul 2020"},{"$f":"IFERROR(VLOOKUP(C1900,Translation!$A:$C,3,FALSE),C1900)","v":"ASSURANCE DE PORTEFEUILLE"},{"$f":"IFERROR(VLOOKUP(D1900,Translation!$A:$C,3,FALSE),D1900)","v":"Terre-Neuve-et-Labrador"},{"$f":"IFERROR(VLOOKUP(E1900,Translation!$A:$C,3,FALSE),E1900)","v":100},{"$f":"IFERROR(VLOOKUP(F1900,Translation!$A:$C,3,FALSE),F1900)","v":"Prêts hypothécaires assurés au cours de la période selon le type de logement (%)"},{"$f":"IFERROR(VLOOKUP(G1900,Translation!$A:$C,3,FALSE),G1900)","v":"100.0"},{"$f":"IFERROR(VLOOKUP(H1900,Translation!$A:$C,3,FALSE),H1900)","v":"Terre-Neuve-et-Labrador"}]
[16,"Cumul 2019","ASSURANCE DE PORTEFEUILLE","Île-du-Prince-Édouard",100,"Prêts hypothécaires assurés au cours de la période selon le type de logement (%)","100.0","Île-du-Prince-Édouard",{"$f":"IFERROR(VLOOKUP(A1901,Translation!$A:$C,3,FALSE),A1901)","v":16},{"$f":"IFERROR(VLOOKUP(B1901,Translation!$A:$C,3,FALSE),B1901)","v":"Cumul 2019"},{"$f":"IFERROR(VLOOKUP(C1901,Translation!$A:$C,3,FALSE),C1901)","v":"ASSURANCE DE PORTEFEUILLE"},{"$f":"IFERROR(VLOOKUP(D1901,Translation!$A:$C,3,FALSE),D1901)","v":"Île-du-Prince-Édouard"},{"$f":"IFERROR(VLOOKUP(E1901,Translation!$A:$C,3,FALSE),E1901)","v":100},{"$f":"IFERROR(VLOOKUP(F1901,Translation!$A:$C,3,FALSE),F1901)","v":"Prêts hypothécaires assurés au cours de la période selon le type de logement (%)"},{"$f":"IFERROR(VLOOKUP(G1901,Translation!$A:$C,3,FALSE),G1901)","v":"100.0"},{"$f":"IFERROR(VLOOKUP(H1901,Translation!$A:$C,3,FALSE),H1901)","v":"Île-du-Prince-Édouard"}]
[16,"T1 2020","ASSURANCE DE PORTEFEUILLE","Nouvelle-Écosse",90.964102244613599,"Prêts hypothécaires assurés au cours de la période selon le type de logement (%)","91.0","Nouvelle-Écosse",{"$f":"IFERROR(VLOOKUP(A1902,Translation!$A:$C,3,FALSE),A1902)","v":16},{"$f":"IFERROR(VLOOKUP(B1902,Translation!$A:$C,3,FALSE),B1902)","v":"T1 2020"},{"$f":"IFERROR(VLOOKUP(C1902,Translation!$A:$C,3,FALSE),C1902)","v":"ASSURANCE DE PORTEFEUILLE"},{"$f":"IFERROR(VLOOKUP(D1902,Translation!$A:$C,3,FALSE),D1902)","v":"Nouvelle-Écosse"},{"$f":"IFERROR(VLOOKUP(E1902,Translation!$A:$C,3,FALSE),E1902)","v":90.964102244613599},{"$f":"IFERROR(VLOOKUP(F1902,Translation!$A:$C,3,FALSE),F1902)","v":"Prêts hypothécaires assurés au cours de la période selon le type de logement (%)"},{"$f":"IFERROR(VLOOKUP(G1902,Translation!$A:$C,3,FALSE),G1902)","v":"91.0"},{"$f":"IFERROR(VLOOKUP(H1902,Translation!$A:$C,3,FALSE),H1902)","v":"Nouvelle-Écosse"}]
[16,"Cumul 2019","ASSURANCE DE PORTEFEUILLE","Nouvelle-Écosse",91.182940128476318,"Prêts hypothécaires assurés au cours de la période selon le type de logement (%)","91.2","Nouvelle-Écosse",{"$f":"IFERROR(VLOOKUP(A1903,Translation!$A:$C,3,FALSE),A1903)","v":16},{"$f":"IFERROR(VLOOKUP(B1903,Translation!$A:$C,3,FALSE),B1903)","v":"Cumul 2019"},{"$f":"IFERROR(VLOOKUP(C1903,Translation!$A:$C,3,FALSE),C1903)","v":"ASSURANCE DE PORTEFEUILLE"},{"$f":"IFERROR(VLOOKUP(D1903,Translation!$A:$C,3,FALSE),D1903)","v":"Nouvelle-Écosse"},{"$f":"IFERROR(VLOOKUP(E1903,Translation!$A:$C,3,FALSE),E1903)","v":91.182940128476318},{"$f":"IFERROR(VLOOKUP(F1903,Translation!$A:$C,3,FALSE),F1903)","v":"Prêts hypothécaires assurés au cours de la période selon le type de logement (%)"},{"$f":"IFERROR(VLOOKUP(G1903,Translation!$A:$C,3,FALSE),G1903)","v":"91.2"},{"$f":"IFERROR(VLOOKUP(H1903,Translation!$A:$C,3,FALSE),H1903)","v":"Nouvelle-Écosse"}]
[16,"Cumul 2020","ASSURANCE DE PORTEFEUILLE","Nouvelle-Écosse",90.964102244613599,"Prêts hypothécaires assurés au cours de la période selon le type de logement (%)","91.0","Nouvelle-Écosse",{"$f":"IFERROR(VLOOKUP(A1904,Translation!$A:$C,3,FALSE),A1904)","v":16},{"$f":"IFERROR(VLOOKUP(B1904,Translation!$A:$C,3,FALSE),B1904)","v":"Cumul 2020"},{"$f":"IFERROR(VLOOKUP(C1904,Translation!$A:$C,3,FALSE),C1904)","v":"ASSURANCE DE PORTEFEUILLE"},{"$f":"IFERROR(VLOOKUP(D1904,Translation!$A:$C,3,FALSE),D1904)","v":"Nouvelle-Écosse"},{"$f":"IFERROR(VLOOKUP(E1904,Translation!$A:$C,3,FALSE),E1904)","v":90.964102244613599},{"$f":"IFERROR(VLOOKUP(F1904,Translation!$A:$C,3,FALSE),F1904)","v":"Prêts hypothécaires assurés au cours de la période selon le type de logement (%)"},{"$f":"IFERROR(VLOOKUP(G1904,Translation!$A:$C,3,FALSE),G1904)","v":"91.0"},{"$f":"IFERROR(VLOOKUP(H1904,Translation!$A:$C,3,FALSE),H1904)","v":"Nouvelle-Écosse"}]
[16,"T1 2020","ASSURANCE DE PORTEFEUILLE","Nouveau-Brunswick",90.911254638895613,"Prêts hypothécaires assurés au cours de la période selon le type de logement (%)","90.9","Nouveau-Brunswick",{"$f":"IFERROR(VLOOKUP(A1905,Translation!$A:$C,3,FALSE),A1905)","v":16},{"$f":"IFERROR(VLOOKUP(B1905,Translation!$A:$C,3,FALSE),B1905)","v":"T1 2020"},{"$f":"IFERROR(VLOOKUP(C1905,Translation!$A:$C,3,FALSE),C1905)","v":"ASSURANCE DE PORTEFEUILLE"},{"$f":"IFERROR(VLOOKUP(D1905,Translation!$A:$C,3,FALSE),D1905)","v":"Nouveau-Brunswick"},{"$f":"IFERROR(VLOOKUP(E1905,Translation!$A:$C,3,FALSE),E1905)","v":90.911254638895613},{"$f":"IFERROR(VLOOKUP(F1905,Translation!$A:$C,3,FALSE),F1905)","v":"Prêts hypothécaires assurés au cours de la période selon le type de logement (%)"},{"$f":"IFERROR(VLOOKUP(G1905,Translation!$A:$C,3,FALSE),G1905)","v":"90.9"},{"$f":"IFERROR(VLOOKUP(H1905,Translation!$A:$C,3,FALSE),H1905)","v":"Nouveau-Brunswick"}]
[16,"Cumul 2019","ASSURANCE DE PORTEFEUILLE","Nouveau-Brunswick",80.822292750098555,"Prêts hypothécaires assurés au cours de la période selon le type de logement (%)","80.8","Nouveau-Brunswick",{"$f":"IFERROR(VLOOKUP(A1906,Translation!$A:$C,3,FALSE),A1906)","v":16},{"$f":"IFERROR(VLOOKUP(B1906,Translation!$A:$C,3,FALSE),B1906)","v":"Cumul 2019"},{"$f":"IFERROR(VLOOKUP(C1906,Translation!$A:$C,3,FALSE),C1906)","v":"ASSURANCE DE PORTEFEUILLE"},{"$f":"IFERROR(VLOOKUP(D1906,Translation!$A:$C,3,FALSE),D1906)","v":"Nouveau-Brunswick"},{"$f":"IFERROR(VLOOKUP(E1906,Translation!$A:$C,3,FALSE),E1906)","v":80.822292750098555},{"$f":"IFERROR(VLOOKUP(F1906,Translation!$A:$C,3,FALSE),F1906)","v":"Prêts hypothécaires assurés au cours de la période selon le type de logement (%)"},{"$f":"IFERROR(VLOOKUP(G1906,Translation!$A:$C,3,FALSE),G1906)","v":"80.8"},{"$f":"IFERROR(VLOOKUP(H1906,Translation!$A:$C,3,FALSE),H1906)","v":"Nouveau-Brunswick"}]
[16,"Cumul 2020","ASSURANCE DE PORTEFEUILLE","Nouveau-Brunswick",90.911254638895613,"Prêts hypothécaires assurés au cours de la période selon le type de logement (%)","90.9","Nouveau-Brunswick",{"$f":"IFERROR(VLOOKUP(A1907,Translation!$A:$C,3,FALSE),A1907)","v":16},{"$f":"IFERROR(VLOOKUP(B1907,Translation!$A:$C,3,FALSE),B1907)","v":"Cumul 2020"},{"$f":"IFERROR(VLOOKUP(C1907,Translation!$A:$C,3,FALSE),C1907)","v":"ASSURANCE DE PORTEFEUILLE"},{"$f":"IFERROR(VLOOKUP(D1907,Translation!$A:$C,3,FALSE),D1907)","v":"Nouveau-Brunswick"},{"$f":"IFERROR(VLOOKUP(E1907,Translation!$A:$C,3,FALSE),E1907)","v":90.911254638895613},{"$f":"IFERROR(VLOOKUP(F1907,Translation!$A:$C,3,FALSE),F1907)","v":"Prêts hypothécaires assurés au cours de la période selon le type de logement (%)"},{"$f":"IFERROR(VLOOKUP(G1907,Translation!$A:$C,3,FALSE),G1907)","v":"90.9"},{"$f":"IFERROR(VLOOKUP(H1907,Translation!$A:$C,3,FALSE),H1907)","v":"Nouveau-Brunswick"}]
[16,"T1 2020","ASSURANCE DE PORTEFEUILLE","Québec",71.960102037978004,"Prêts hypothécaires assurés au cours de la période selon le type de logement (%)","72.0","Québec",{"$f":"IFERROR(VLOOKUP(A1908,Translation!$A:$C,3,FALSE),A1908)","v":16},{"$f":"IFERROR(VLOOKUP(B1908,Translation!$A:$C,3,FALSE),B1908)","v":"T1 2020"},{"$f":"IFERROR(VLOOKUP(C1908,Translation!$A:$C,3,FALSE),C1908)","v":"ASSURANCE DE PORTEFEUILLE"},{"$f":"IFERROR(VLOOKUP(D1908,Translation!$A:$C,3,FALSE),D1908)","v":"Québec"},{"$f":"IFERROR(VLOOKUP(E1908,Translation!$A:$C,3,FALSE),E1908)","v":71.960102037978004},{"$f":"IFERROR(VLOOKUP(F1908,Translation!$A:$C,3,FALSE),F1908)","v":"Prêts hypothécaires assurés au cours de la période selon le type de logement (%)"},{"$f":"IFERROR(VLOOKUP(G1908,Translation!$A:$C,3,FALSE),G1908)","v":"72.0"},{"$f":"IFERROR(VLOOKUP(H1908,Translation!$A:$C,3,FALSE),H1908)","v":"Québec"}]
[16,"Cumul 2019","ASSURANCE DE PORTEFEUILLE","Québec",68.546355051870066,"Prêts hypothécaires assurés au cours de la période selon le type de logement (%)","68.5","Québec",{"$f":"IFERROR(VLOOKUP(A1909,Translation!$A:$C,3,FALSE),A1909)","v":16},{"$f":"IFERROR(VLOOKUP(B1909,Translation!$A:$C,3,FALSE),B1909)","v":"Cumul 2019"},{"$f":"IFERROR(VLOOKUP(C1909,Translation!$A:$C,3,FALSE),C1909)","v":"ASSURANCE DE PORTEFEUILLE"},{"$f":"IFERROR(VLOOKUP(D1909,Translation!$A:$C,3,FALSE),D1909)","v":"Québec"},{"$f":"IFERROR(VLOOKUP(E1909,Translation!$A:$C,3,FALSE),E1909)","v":68.546355051870066},{"$f":"IFERROR(VLOOKUP(F1909,Translation!$A:$C,3,FALSE),F1909)","v":"Prêts hypothécaires assurés au cours de la période selon le type de logement (%)"},{"$f":"IFERROR(VLOOKUP(G1909,Translation!$A:$C,3,FALSE),G1909)","v":"68.5"},{"$f":"IFERROR(VLOOKUP(H1909,Translation!$A:$C,3,FALSE),H1909)","v":"Québec"}]
[16,"Cumul 2020","ASSURANCE DE PORTEFEUILLE","Québec",71.960102037978004,"Prêts hypothécaires assurés au cours de la période selon le type de logement (%)","72.0","Québec",{"$f":"IFERROR(VLOOKUP(A1910,Translation!$A:$C,3,FALSE),A1910)","v":16},{"$f":"IFERROR(VLOOKUP(B1910,Translation!$A:$C,3,FALSE),B1910)","v":"Cumul 2020"},{"$f":"IFERROR(VLOOKUP(C1910,Translation!$A:$C,3,FALSE),C1910)","v":"ASSURANCE DE PORTEFEUILLE"},{"$f":"IFERROR(VLOOKUP(D1910,Translation!$A:$C,3,FALSE),D1910)","v":"Québec"},{"$f":"IFERROR(VLOOKUP(E1910,Translation!$A:$C,3,FALSE),E1910)","v":71.960102037978004},{"$f":"IFERROR(VLOOKUP(F1910,Translation!$A:$C,3,FALSE),F1910)","v":"Prêts hypothécaires assurés au cours de la période selon le type de logement (%)"},{"$f":"IFERROR(VLOOKUP(G1910,Translation!$A:$C,3,FALSE),G1910)","v":"72.0"},{"$f":"IFERROR(VLOOKUP(H1910,Translation!$A:$C,3,FALSE),H1910)","v":"Québec"}]
[16,"T1 2020","ASSURANCE DE PORTEFEUILLE","Ontario",70.726709998099821,"Prêts hypothécaires assurés au cours de la période selon le type de logement (%)","70.7","Ontario",{"$f":"IFERROR(VLOOKUP(A1911,Translation!$A:$C,3,FALSE),A1911)","v":16},{"$f":"IFERROR(VLOOKUP(B1911,Translation!$A:$C,3,FALSE),B1911)","v":"T1 2020"},{"$f":"IFERROR(VLOOKUP(C1911,Translation!$A:$C,3,FALSE),C1911)","v":"ASSURANCE DE PORTEFEUILLE"},{"$f":"IFERROR(VLOOKUP(D1911,Translation!$A:$C,3,FALSE),D1911)","v":"Ontario"},{"$f":"IFERROR(VLOOKUP(E1911,Translation!$A:$C,3,FALSE),E1911)","v":70.726709998099821},{"$f":"IFERROR(VLOOKUP(F1911,Translation!$A:$C,3,FALSE),F1911)","v":"Prêts hypothécaires assurés au cours de la période selon le type de logement (%)"},{"$f":"IFERROR(VLOOKUP(G1911,Translation!$A:$C,3,FALSE),G1911)","v":"70.7"},{"$f":"IFERROR(VLOOKUP(H1911,Translation!$A:$C,3,FALSE),H1911)","v":"Ontario"}]
[16,"Cumul 2019","ASSURANCE DE PORTEFEUILLE","Ontario",70.539911636319019,"Prêts hypothécaires assurés au cours de la période selon le type de logement (%)","70.5","Ontario",{"$f":"IFERROR(VLOOKUP(A1912,Translation!$A:$C,3,FALSE),A1912)","v":16},{"$f":"IFERROR(VLOOKUP(B1912,Translation!$A:$C,3,FALSE),B1912)","v":"Cumul 2019"},{"$f":"IFERROR(VLOOKUP(C1912,Translation!$A:$C,3,FALSE),C1912)","v":"ASSURANCE DE PORTEFEUILLE"},{"$f":"IFERROR(VLOOKUP(D1912,Translation!$A:$C,3,FALSE),D1912)","v":"Ontario"},{"$f":"IFERROR(VLOOKUP(E1912,Translation!$A:$C,3,FALSE),E1912)","v":70.539911636319019},{"$f":"IFERROR(VLOOKUP(F1912,Translation!$A:$C,3,FALSE),F1912)","v":"Prêts hypothécaires assurés au cours de la période selon le type de logement (%)"},{"$f":"IFERROR(VLOOKUP(G1912,Translation!$A:$C,3,FALSE),G1912)","v":"70.5"},{"$f":"IFERROR(VLOOKUP(H1912,Translation!$A:$C,3,FALSE),H1912)","v":"Ontario"}]
[16,"Cumul 2020","ASSURANCE DE PORTEFEUILLE","Ontario",70.726709998099821,"Prêts hypothécaires assurés au cours de la période selon le type de logement (%)","70.7","Ontario",{"$f":"IFERROR(VLOOKUP(A1913,Translation!$A:$C,3,FALSE),A1913)","v":16},{"$f":"IFERROR(VLOOKUP(B1913,Translation!$A:$C,3,FALSE),B1913)","v":"Cumul 2020"},{"$f":"IFERROR(VLOOKUP(C1913,Translation!$A:$C,3,FALSE),C1913)","v":"ASSURANCE DE PORTEFEUILLE"},{"$f":"IFERROR(VLOOKUP(D1913,Translation!$A:$C,3,FALSE),D1913)","v":"Ontario"},{"$f":"IFERROR(VLOOKUP(E1913,Translation!$A:$C,3,FALSE),E1913)","v":70.726709998099821},{"$f":"IFERROR(VLOOKUP(F1913,Translation!$A:$C,3,FALSE),F1913)","v":"Prêts hypothécaires assurés au cours de la période selon le type de logement (%)"},{"$f":"IFERROR(VLOOKUP(G1913,Translation!$A:$C,3,FALSE),G1913)","v":"70.7"},{"$f":"IFERROR(VLOOKUP(H1913,Translation!$A:$C,3,FALSE),H1913)","v":"Ontario"}]
[16,"T1 2020","ASSURANCE DE PORTEFEUILLE","Manitoba",86.077622467980603,"Prêts hypothécaires assurés au cours de la période selon le type de logement (%)","86.1","Manitoba",{"$f":"IFERROR(VLOOKUP(A1914,Translation!$A:$C,3,FALSE),A1914)","v":16},{"$f":"IFERROR(VLOOKUP(B1914,Translation!$A:$C,3,FALSE),B1914)","v":"T1 2020"},{"$f":"IFERROR(VLOOKUP(C1914,Translation!$A:$C,3,FALSE),C1914)","v":"ASSURANCE DE PORTEFEUILLE"},{"$f":"IFERROR(VLOOKUP(D1914,Translation!$A:$C,3,FALSE),D1914)","v":"Manitoba"},{"$f":"IFERROR(VLOOKUP(E1914,Translation!$A:$C,3,FALSE),E1914)","v":86.077622467980603},{"$f":"IFERROR(VLOOKUP(F1914,Translation!$A:$C,3,FALSE),F1914)","v":"Prêts hypothécaires assurés au cours de la période selon le type de logement (%)"},{"$f":"IFERROR(VLOOKUP(G1914,Translation!$A:$C,3,FALSE),G1914)","v":"86.1"},{"$f":"IFERROR(VLOOKUP(H1914,Translation!$A:$C,3,FALSE),H1914)","v":"Manitoba"}]
[16,"Cumul 2019","ASSURANCE DE PORTEFEUILLE","Manitoba",82.300855943092884,"Prêts hypothécaires assurés au cours de la période selon le type de logement (%)","82.3","Manitoba",{"$f":"IFERROR(VLOOKUP(A1915,Translation!$A:$C,3,FALSE),A1915)","v":16},{"$f":"IFERROR(VLOOKUP(B1915,Translation!$A:$C,3,FALSE),B1915)","v":"Cumul 2019"},{"$f":"IFERROR(VLOOKUP(C1915,Translation!$A:$C,3,FALSE),C1915)","v":"ASSURANCE DE PORTEFEUILLE"},{"$f":"IFERROR(VLOOKUP(D1915,Translation!$A:$C,3,FALSE),D1915)","v":"Manitoba"},{"$f":"IFERROR(VLOOKUP(E1915,Translation!$A:$C,3,FALSE),E1915)","v":82.300855943092884},{"$f":"IFERROR(VLOOKUP(F1915,Translation!$A:$C,3,FALSE),F1915)","v":"Prêts hypothécaires assurés au cours de la période selon le type de logement (%)"},{"$f":"IFERROR(VLOOKUP(G1915,Translation!$A:$C,3,FALSE),G1915)","v":"82.3"},{"$f":"IFERROR(VLOOKUP(H1915,Translation!$A:$C,3,FALSE),H1915)","v":"Manitoba"}]
[16,"Cumul 2020","ASSURANCE DE PORTEFEUILLE","Manitoba",86.077622467980603,"Prêts hypothécaires assurés au cours de la période selon le type de logement (%)","86.1","Manitoba",{"$f":"IFERROR(VLOOKUP(A1916,Translation!$A:$C,3,FALSE),A1916)","v":16},{"$f":"IFERROR(VLOOKUP(B1916,Translation!$A:$C,3,FALSE),B1916)","v":"Cumul 2020"},{"$f":"IFERROR(VLOOKUP(C1916,Translation!$A:$C,3,FALSE),C1916)","v":"ASSURANCE DE PORTEFEUILLE"},{"$f":"IFERROR(VLOOKUP(D1916,Translation!$A:$C,3,FALSE),D1916)","v":"Manitoba"},{"$f":"IFERROR(VLOOKUP(E1916,Translation!$A:$C,3,FALSE),E1916)","v":86.077622467980603},{"$f":"IFERROR(VLOOKUP(F1916,Translation!$A:$C,3,FALSE),F1916)","v":"Prêts hypothécaires assurés au cours de la période selon le type de logement (%)"},{"$f":"IFERROR(VLOOKUP(G1916,Translation!$A:$C,3,FALSE),G1916)","v":"86.1"},{"$f":"IFERROR(VLOOKUP(H1916,Translation!$A:$C,3,FALSE),H1916)","v":"Manitoba"}]
[16,"T1 2020","ASSURANCE DE PORTEFEUILLE","Saskatchewan",88.223946429372617,"Prêts hypothécaires assurés au cours de la période selon le type de logement (%)","88.2","Saskatchewan",{"$f":"IFERROR(VLOOKUP(A1917,Translation!$A:$C,3,FALSE),A1917)","v":16},{"$f":"IFERROR(VLOOKUP(B1917,Translation!$A:$C,3,FALSE),B1917)","v":"T1 2020"},{"$f":"IFERROR(VLOOKUP(C1917,Translation!$A:$C,3,FALSE),C1917)","v":"ASSURANCE DE PORTEFEUILLE"},{"$f":"IFERROR(VLOOKUP(D1917,Translation!$A:$C,3,FALSE),D1917)","v":"Saskatchewan"},{"$f":"IFERROR(VLOOKUP(E1917,Translation!$A:$C,3,FALSE),E1917)","v":88.223946429372617},{"$f":"IFERROR(VLOOKUP(F1917,Translation!$A:$C,3,FALSE),F1917)","v":"Prêts hypothécaires assurés au cours de la période selon le type de logement (%)"},{"$f":"IFERROR(VLOOKUP(G1917,Translation!$A:$C,3,FALSE),G1917)","v":"88.2"},{"$f":"IFERROR(VLOOKUP(H1917,Translation!$A:$C,3,FALSE),H1917)","v":"Saskatchewan"}]
[16,"Cumul 2019","ASSURANCE DE PORTEFEUILLE","Saskatchewan",92.136769437842219,"Prêts hypothécaires assurés au cours de la période selon le type de logement (%)","92.1","Saskatchewan",{"$f":"IFERROR(VLOOKUP(A1918,Translation!$A:$C,3,FALSE),A1918)","v":16},{"$f":"IFERROR(VLOOKUP(B1918,Translation!$A:$C,3,FALSE),B1918)","v":"Cumul 2019"},{"$f":"IFERROR(VLOOKUP(C1918,Translation!$A:$C,3,FALSE),C1918)","v":"ASSURANCE DE PORTEFEUILLE"},{"$f":"IFERROR(VLOOKUP(D1918,Translation!$A:$C,3,FALSE),D1918)","v":"Saskatchewan"},{"$f":"IFERROR(VLOOKUP(E1918,Translation!$A:$C,3,FALSE),E1918)","v":92.136769437842219},{"$f":"IFERROR(VLOOKUP(F1918,Translation!$A:$C,3,FALSE),F1918)","v":"Prêts hypothécaires assurés au cours de la période selon le type de logement (%)"},{"$f":"IFERROR(VLOOKUP(G1918,Translation!$A:$C,3,FALSE),G1918)","v":"92.1"},{"$f":"IFERROR(VLOOKUP(H1918,Translation!$A:$C,3,FALSE),H1918)","v":"Saskatchewan"}]
[16,"Cumul 2020","ASSURANCE DE PORTEFEUILLE","Saskatchewan",88.223946429372617,"Prêts hypothécaires assurés au cours de la période selon le type de logement (%)","88.2","Saskatchewan",{"$f":"IFERROR(VLOOKUP(A1919,Translation!$A:$C,3,FALSE),A1919)","v":16},{"$f":"IFERROR(VLOOKUP(B1919,Translation!$A:$C,3,FALSE),B1919)","v":"Cumul 2020"},{"$f":"IFERROR(VLOOKUP(C1919,Translation!$A:$C,3,FALSE),C1919)","v":"ASSURANCE DE PORTEFEUILLE"},{"$f":"IFERROR(VLOOKUP(D1919,Translation!$A:$C,3,FALSE),D1919)","v":"Saskatchewan"},{"$f":"IFERROR(VLOOKUP(E1919,Translation!$A:$C,3,FALSE),E1919)","v":88.223946429372617},{"$f":"IFERROR(VLOOKUP(F1919,Translation!$A:$C,3,FALSE),F1919)","v":"Prêts hypothécaires assurés au cours de la période selon le type de logement (%)"},{"$f":"IFERROR(VLOOKUP(G1919,Translation!$A:$C,3,FALSE),G1919)","v":"88.2"},{"$f":"IFERROR(VLOOKUP(H1919,Translation!$A:$C,3,FALSE),H1919)","v":"Saskatchewan"}]
[16,"T1 2020","ASSURANCE DE PORTEFEUILLE","Alberta",84.110647039622734,"Prêts hypothécaires assurés au cours de la période selon le type de logement (%)","84.1","Alberta",{"$f":"IFERROR(VLOOKUP(A1920,Translation!$A:$C,3,FALSE),A1920)","v":16},{"$f":"IFERROR(VLOOKUP(B1920,Translation!$A:$C,3,FALSE),B1920)","v":"T1 2020"},{"$f":"IFERROR(VLOOKUP(C1920,Translation!$A:$C,3,FALSE),C1920)","v":"ASSURANCE DE PORTEFEUILLE"},{"$f":"IFERROR(VLOOKUP(D1920,Translation!$A:$C,3,FALSE),D1920)","v":"Alberta"},{"$f":"IFERROR(VLOOKUP(E1920,Translation!$A:$C,3,FALSE),E1920)","v":84.110647039622734},{"$f":"IFERROR(VLOOKUP(F1920,Translation!$A:$C,3,FALSE),F1920)","v":"Prêts hypothécaires assurés au cours de la période selon le type de logement (%)"},{"$f":"IFERROR(VLOOKUP(G1920,Translation!$A:$C,3,FALSE),G1920)","v":"84.1"},{"$f":"IFERROR(VLOOKUP(H1920,Translation!$A:$C,3,FALSE),H1920)","v":"Alberta"}]
[16,"Cumul 2019","ASSURANCE DE PORTEFEUILLE","Alberta",80.677534128511056,"Prêts hypothécaires assurés au cours de la période selon le type de logement (%)","80.7","Alberta",{"$f":"IFERROR(VLOOKUP(A1921,Translation!$A:$C,3,FALSE),A1921)","v":16},{"$f":"IFERROR(VLOOKUP(B1921,Translation!$A:$C,3,FALSE),B1921)","v":"Cumul 2019"},{"$f":"IFERROR(VLOOKUP(C1921,Translation!$A:$C,3,FALSE),C1921)","v":"ASSURANCE DE PORTEFEUILLE"},{"$f":"IFERROR(VLOOKUP(D1921,Translation!$A:$C,3,FALSE),D1921)","v":"Alberta"},{"$f":"IFERROR(VLOOKUP(E1921,Translation!$A:$C,3,FALSE),E1921)","v":80.677534128511056},{"$f":"IFERROR(VLOOKUP(F1921,Translation!$A:$C,3,FALSE),F1921)","v":"Prêts hypothécaires assurés au cours de la période selon le type de logement (%)"},{"$f":"IFERROR(VLOOKUP(G1921,Translation!$A:$C,3,FALSE),G1921)","v":"80.7"},{"$f":"IFERROR(VLOOKUP(H1921,Translation!$A:$C,3,FALSE),H1921)","v":"Alberta"}]
[16,"Cumul 2020","ASSURANCE DE PORTEFEUILLE","Alberta",84.110647039622734,"Prêts hypothécaires assurés au cours de la période selon le type de logement (%)","84.1","Alberta",{"$f":"IFERROR(VLOOKUP(A1922,Translation!$A:$C,3,FALSE),A1922)","v":16},{"$f":"IFERROR(VLOOKUP(B1922,Translation!$A:$C,3,FALSE),B1922)","v":"Cumul 2020"},{"$f":"IFERROR(VLOOKUP(C1922,Translation!$A:$C,3,FALSE),C1922)","v":"ASSURANCE DE PORTEFEUILLE"},{"$f":"IFERROR(VLOOKUP(D1922,Translation!$A:$C,3,FALSE),D1922)","v":"Alberta"},{"$f":"IFERROR(VLOOKUP(E1922,Translation!$A:$C,3,FALSE),E1922)","v":84.110647039622734},{"$f":"IFERROR(VLOOKUP(F1922,Translation!$A:$C,3,FALSE),F1922)","v":"Prêts hypothécaires assurés au cours de la période selon le type de logement (%)"},{"$f":"IFERROR(VLOOKUP(G1922,Translation!$A:$C,3,FALSE),G1922)","v":"84.1"},{"$f":"IFERROR(VLOOKUP(H1922,Translation!$A:$C,3,FALSE),H1922)","v":"Alberta"}]
[16,"T1 2020","ASSURANCE DE PORTEFEUILLE","Colombie-Britannique",51.827268840211367,"Prêts hypothécaires assurés au cours de la période selon le type de logement (%)","51.8","Colombie-Britannique",{"$f":"IFERROR(VLOOKUP(A1923,Translation!$A:$C,3,FALSE),A1923)","v":16},{"$f":"IFERROR(VLOOKUP(B1923,Translation!$A:$C,3,FALSE),B1923)","v":"T1 2020"},{"$f":"IFERROR(VLOOKUP(C1923,Translation!$A:$C,3,FALSE),C1923)","v":"ASSURANCE DE PORTEFEUILLE"},{"$f":"IFERROR(VLOOKUP(D1923,Translation!$A:$C,3,FALSE),D1923)","v":"Colombie-Britannique"},{"$f":"IFERROR(VLOOKUP(E1923,Translation!$A:$C,3,FALSE),E1923)","v":51.827268840211367},{"$f":"IFERROR(VLOOKUP(F1923,Translation!$A:$C,3,FALSE),F1923)","v":"Prêts hypothécaires assurés au cours de la période selon le type de logement (%)"},{"$f":"IFERROR(VLOOKUP(G1923,Translation!$A:$C,3,FALSE),G1923)","v":"51.8"},{"$f":"IFERROR(VLOOKUP(H1923,Translation!$A:$C,3,FALSE),H1923)","v":"Colombie-Britannique"}]
[16,"Cumul 2019","ASSURANCE DE PORTEFEUILLE","Colombie-Britannique",66.31224310964889,"Prêts hypothécaires assurés au cours de la période selon le type de logement (%)","66.3","Colombie-Britannique",{"$f":"IFERROR(VLOOKUP(A1924,Translation!$A:$C,3,FALSE),A1924)","v":16},{"$f":"IFERROR(VLOOKUP(B1924,Translation!$A:$C,3,FALSE),B1924)","v":"Cumul 2019"},{"$f":"IFERROR(VLOOKUP(C1924,Translation!$A:$C,3,FALSE),C1924)","v":"ASSURANCE DE PORTEFEUILLE"},{"$f":"IFERROR(VLOOKUP(D1924,Translation!$A:$C,3,FALSE),D1924)","v":"Colombie-Britannique"},{"$f":"IFERROR(VLOOKUP(E1924,Translation!$A:$C,3,FALSE),E1924)","v":66.31224310964889},{"$f":"IFERROR(VLOOKUP(F1924,Translation!$A:$C,3,FALSE),F1924)","v":"Prêts hypothécaires assurés au cours de la période selon le type de logement (%)"},{"$f":"IFERROR(VLOOKUP(G1924,Translation!$A:$C,3,FALSE),G1924)","v":"66.3"},{"$f":"IFERROR(VLOOKUP(H1924,Translation!$A:$C,3,FALSE),H1924)","v":"Colombie-Britannique"}]
[16,"Cumul 2020","ASSURANCE DE PORTEFEUILLE","Colombie-Britannique",51.827268840211367,"Prêts hypothécaires assurés au cours de la période selon le type de logement (%)","51.8","Colombie-Britannique",{"$f":"IFERROR(VLOOKUP(A1925,Translation!$A:$C,3,FALSE),A1925)","v":16},{"$f":"IFERROR(VLOOKUP(B1925,Translation!$A:$C,3,FALSE),B1925)","v":"Cumul 2020"},{"$f":"IFERROR(VLOOKUP(C1925,Translation!$A:$C,3,FALSE),C1925)","v":"ASSURANCE DE PORTEFEUILLE"},{"$f":"IFERROR(VLOOKUP(D1925,Translation!$A:$C,3,FALSE),D1925)","v":"Colombie-Britannique"},{"$f":"IFERROR(VLOOKUP(E1925,Translation!$A:$C,3,FALSE),E1925)","v":51.827268840211367},{"$f":"IFERROR(VLOOKUP(F1925,Translation!$A:$C,3,FALSE),F1925)","v":"Prêts hypothécaires assurés au cours de la période selon le type de logement (%)"},{"$f":"IFERROR(VLOOKUP(G1925,Translation!$A:$C,3,FALSE),G1925)","v":"51.8"},{"$f":"IFERROR(VLOOKUP(H1925,Translation!$A:$C,3,FALSE),H1925)","v":"Colombie-Britannique"}]
[29,"T1 2020","IMMEUBLES COLLECTIFS RÉSIDENTIELS","Appartement",92.229322554801783,"Prêts hypothécaires assurés au cours de la période selon le type de logement (%)","92.2","Appartement",{"$f":"IFERROR(VLOOKUP(A1926,Translation!$A:$C,3,FALSE),A1926)","v":29},{"$f":"IFERROR(VLOOKUP(B1926,Translation!$A:$C,3,FALSE),B1926)","v":"T1 2020"},{"$f":"IFERROR(VLOOKUP(C1926,Translation!$A:$C,3,FALSE),C1926)","v":"IMMEUBLES COLLECTIFS RÉSIDENTIELS"},{"$f":"IFERROR(VLOOKUP(D1926,Translation!$A:$C,3,FALSE),D1926)","v":"Appartement"},{"$f":"IFERROR(VLOOKUP(E1926,Translation!$A:$C,3,FALSE),E1926)","v":92.229322554801783},{"$f":"IFERROR(VLOOKUP(F1926,Translation!$A:$C,3,FALSE),F1926)","v":"Prêts hypothécaires assurés au cours de la période selon le type de logement (%)"},{"$f":"IFERROR(VLOOKUP(G1926,Translation!$A:$C,3,FALSE),G1926)","v":"92.2"},{"$f":"IFERROR(VLOOKUP(H1926,Translation!$A:$C,3,FALSE),H1926)","v":"Appartement"}]
[29,"Cumul 2019","IMMEUBLES COLLECTIFS RÉSIDENTIELS","Appartement",92.56494515715994,"Prêts hypothécaires assurés au cours de la période selon le type de logement (%)","92.6","Appartement",{"$f":"IFERROR(VLOOKUP(A1927,Translation!$A:$C,3,FALSE),A1927)","v":29},{"$f":"IFERROR(VLOOKUP(B1927,Translation!$A:$C,3,FALSE),B1927)","v":"Cumul 2019"},{"$f":"IFERROR(VLOOKUP(C1927,Translation!$A:$C,3,FALSE),C1927)","v":"IMMEUBLES COLLECTIFS RÉSIDENTIELS"},{"$f":"IFERROR(VLOOKUP(D1927,Translation!$A:$C,3,FALSE),D1927)","v":"Appartement"},{"$f":"IFERROR(VLOOKUP(E1927,Translation!$A:$C,3,FALSE),E1927)","v":92.56494515715994},{"$f":"IFERROR(VLOOKUP(F1927,Translation!$A:$C,3,FALSE),F1927)","v":"Prêts hypothécaires assurés au cours de la période selon le type de logement (%)"},{"$f":"IFERROR(VLOOKUP(G1927,Translation!$A:$C,3,FALSE),G1927)","v":"92.6"},{"$f":"IFERROR(VLOOKUP(H1927,Translation!$A:$C,3,FALSE),H1927)","v":"Appartement"}]
[29,"Cumul 2020","IMMEUBLES COLLECTIFS RÉSIDENTIELS","Appartement",92.229322554801783,"Prêts hypothécaires assurés au cours de la période selon le type de logement (%)","92.2","Appartement",{"$f":"IFERROR(VLOOKUP(A1928,Translation!$A:$C,3,FALSE),A1928)","v":29},{"$f":"IFERROR(VLOOKUP(B1928,Translation!$A:$C,3,FALSE),B1928)","v":"Cumul 2020"},{"$f":"IFERROR(VLOOKUP(C1928,Translation!$A:$C,3,FALSE),C1928)","v":"IMMEUBLES COLLECTIFS RÉSIDENTIELS"},{"$f":"IFERROR(VLOOKUP(D1928,Translation!$A:$C,3,FALSE),D1928)","v":"Appartement"},{"$f":"IFERROR(VLOOKUP(E1928,Translation!$A:$C,3,FALSE),E1928)","v":92.229322554801783},{"$f":"IFERROR(VLOOKUP(F1928,Translation!$A:$C,3,FALSE),F1928)","v":"Prêts hypothécaires assurés au cours de la période selon le type de logement (%)"},{"$f":"IFERROR(VLOOKUP(G1928,Translation!$A:$C,3,FALSE),G1928)","v":"92.2"},{"$f":"IFERROR(VLOOKUP(H1928,Translation!$A:$C,3,FALSE),H1928)","v":"Appartement"}]
[29,"T1 2020","IMMEUBLES COLLECTIFS RÉSIDENTIELS","Maison de retraite/de repos",2.8925311940473826,"Prêts hypothécaires assurés au cours de la période selon le type de logement (%)","2.9","Maison de retraite/de repos",{"$f":"IFERROR(VLOOKUP(A1929,Translation!$A:$C,3,FALSE),A1929)","v":29},{"$f":"IFERROR(VLOOKUP(B1929,Translation!$A:$C,3,FALSE),B1929)","v":"T1 2020"},{"$f":"IFERROR(VLOOKUP(C1929,Translation!$A:$C,3,FALSE),C1929)","v":"IMMEUBLES COLLECTIFS RÉSIDENTIELS"},{"$f":"IFERROR(VLOOKUP(D1929,Translation!$A:$C,3,FALSE),D1929)","v":"Maison de retraite/de repos"},{"$f":"IFERROR(VLOOKUP(E1929,Translation!$A:$C,3,FALSE),E1929)","v":2.8925311940473826},{"$f":"IFERROR(VLOOKUP(F1929,Translation!$A:$C,3,FALSE),F1929)","v":"Prêts hypothécaires assurés au cours de la période selon le type de logement (%)"},{"$f":"IFERROR(VLOOKUP(G1929,Translation!$A:$C,3,FALSE),G1929)","v":"2.9"},{"$f":"IFERROR(VLOOKUP(H1929,Translation!$A:$C,3,FALSE),H1929)","v":"Maison de retraite/de repos"}]
[29,"Cumul 2019","IMMEUBLES COLLECTIFS RÉSIDENTIELS","Maison de retraite/de repos",5.4785746331334968,"Prêts hypothécaires assurés au cours de la période selon le type de logement (%)","5.5","Maison de retraite/de repos",{"$f":"IFERROR(VLOOKUP(A1930,Translation!$A:$C,3,FALSE),A1930)","v":29},{"$f":"IFERROR(VLOOKUP(B1930,Translation!$A:$C,3,FALSE),B1930)","v":"Cumul 2019"},{"$f":"IFERROR(VLOOKUP(C1930,Translation!$A:$C,3,FALSE),C1930)","v":"IMMEUBLES COLLECTIFS RÉSIDENTIELS"},{"$f":"IFERROR(VLOOKUP(D1930,Translation!$A:$C,3,FALSE),D1930)","v":"Maison de retraite/de repos"},{"$f":"IFERROR(VLOOKUP(E1930,Translation!$A:$C,3,FALSE),E1930)","v":5.4785746331334968},{"$f":"IFERROR(VLOOKUP(F1930,Translation!$A:$C,3,FALSE),F1930)","v":"Prêts hypothécaires assurés au cours de la période selon le type de logement (%)"},{"$f":"IFERROR(VLOOKUP(G1930,Translation!$A:$C,3,FALSE),G1930)","v":"5.5"},{"$f":"IFERROR(VLOOKUP(H1930,Translation!$A:$C,3,FALSE),H1930)","v":"Maison de retraite/de repos"}]
[29,"Cumul 2020","IMMEUBLES COLLECTIFS RÉSIDENTIELS","Maison de retraite/de repos",2.8925311940473826,"Prêts hypothécaires assurés au cours de la période selon le type de logement (%)","2.9","Maison de retraite/de repos",{"$f":"IFERROR(VLOOKUP(A1931,Translation!$A:$C,3,FALSE),A1931)","v":29},{"$f":"IFERROR(VLOOKUP(B1931,Translation!$A:$C,3,FALSE),B1931)","v":"Cumul 2020"},{"$f":"IFERROR(VLOOKUP(C1931,Translation!$A:$C,3,FALSE),C1931)","v":"IMMEUBLES COLLECTIFS RÉSIDENTIELS"},{"$f":"IFERROR(VLOOKUP(D1931,Translation!$A:$C,3,FALSE),D1931)","v":"Maison de retraite/de repos"},{"$f":"IFERROR(VLOOKUP(E1931,Translation!$A:$C,3,FALSE),E1931)","v":2.8925311940473826},{"$f":"IFERROR(VLOOKUP(F1931,Translation!$A:$C,3,FALSE),F1931)","v":"Prêts hypothécaires assurés au cours de la période selon le type de logement (%)"},{"$f":"IFERROR(VLOOKUP(G1931,Translation!$A:$C,3,FALSE),G1931)","v":"2.9"},{"$f":"IFERROR(VLOOKUP(H1931,Translation!$A:$C,3,FALSE),H1931)","v":"Maison de retraite/de repos"}]
[29,"T1 2020","IMMEUBLES COLLECTIFS RÉSIDENTIELS","Autre",4.8781462511508735,"Prêts hypothécaires assurés au cours de la période selon le type de logement (%)","4.9","Autre",{"$f":"IFERROR(VLOOKUP(A1932,Translation!$A:$C,3,FALSE),A1932)","v":29},{"$f":"IFERROR(VLOOKUP(B1932,Translation!$A:$C,3,FALSE),B1932)","v":"T1 2020"},{"$f":"IFERROR(VLOOKUP(C1932,Translation!$A:$C,3,FALSE),C1932)","v":"IMMEUBLES COLLECTIFS RÉSIDENTIELS"},{"$f":"IFERROR(VLOOKUP(D1932,Translation!$A:$C,3,FALSE),D1932)","v":"Autre"},{"$f":"IFERROR(VLOOKUP(E1932,Translation!$A:$C,3,FALSE),E1932)","v":4.8781462511508735},{"$f":"IFERROR(VLOOKUP(F1932,Translation!$A:$C,3,FALSE),F1932)","v":"Prêts hypothécaires assurés au cours de la période selon le type de logement (%)"},{"$f":"IFERROR(VLOOKUP(G1932,Translation!$A:$C,3,FALSE),G1932)","v":"4.9"},{"$f":"IFERROR(VLOOKUP(H1932,Translation!$A:$C,3,FALSE),H1932)","v":"Autre"}]
[29,"Cumul 2019","IMMEUBLES COLLECTIFS RÉSIDENTIELS","Autre",1.9564802097065568,"Prêts hypothécaires assurés au cours de la période selon le type de logement (%)","2.0","Autre",{"$f":"IFERROR(VLOOKUP(A1933,Translation!$A:$C,3,FALSE),A1933)","v":29},{"$f":"IFERROR(VLOOKUP(B1933,Translation!$A:$C,3,FALSE),B1933)","v":"Cumul 2019"},{"$f":"IFERROR(VLOOKUP(C1933,Translation!$A:$C,3,FALSE),C1933)","v":"IMMEUBLES COLLECTIFS RÉSIDENTIELS"},{"$f":"IFERROR(VLOOKUP(D1933,Translation!$A:$C,3,FALSE),D1933)","v":"Autre"},{"$f":"IFERROR(VLOOKUP(E1933,Translation!$A:$C,3,FALSE),E1933)","v":1.9564802097065568},{"$f":"IFERROR(VLOOKUP(F1933,Translation!$A:$C,3,FALSE),F1933)","v":"Prêts hypothécaires assurés au cours de la période selon le type de logement (%)"},{"$f":"IFERROR(VLOOKUP(G1933,Translation!$A:$C,3,FALSE),G1933)","v":"2.0"},{"$f":"IFERROR(VLOOKUP(H1933,Translation!$A:$C,3,FALSE),H1933)","v":"Autre"}]
[29,"Cumul 2020","IMMEUBLES COLLECTIFS RÉSIDENTIELS","Autre",4.8781462511508735,"Prêts hypothécaires assurés au cours de la période selon le type de logement (%)","4.9","Autre",{"$f":"IFERROR(VLOOKUP(A1934,Translation!$A:$C,3,FALSE),A1934)","v":29},{"$f":"IFERROR(VLOOKUP(B1934,Translation!$A:$C,3,FALSE),B1934)","v":"Cumul 2020"},{"$f":"IFERROR(VLOOKUP(C1934,Translation!$A:$C,3,FALSE),C1934)","v":"IMMEUBLES COLLECTIFS RÉSIDENTIELS"},{"$f":"IFERROR(VLOOKUP(D1934,Translation!$A:$C,3,FALSE),D1934)","v":"Autre"},{"$f":"IFERROR(VLOOKUP(E1934,Translation!$A:$C,3,FALSE),E1934)","v":4.8781462511508735},{"$f":"IFERROR(VLOOKUP(F1934,Translation!$A:$C,3,FALSE),F1934)","v":"Prêts hypothécaires assurés au cours de la période selon le type de logement (%)"},{"$f":"IFERROR(VLOOKUP(G1934,Translation!$A:$C,3,FALSE),G1934)","v":"4.9"},{"$f":"IFERROR(VLOOKUP(H1934,Translation!$A:$C,3,FALSE),H1934)","v":"Autre"}]
[29,"T1 2020","IMMEUBLES COLLECTIFS RÉSIDENTIELS","Terre-Neuve-et-Labrador",94.757824238609757,"Prêts hypothécaires assurés au cours de la période selon le type de logement (%)","94.8","Terre-Neuve-et-Labrador",{"$f":"IFERROR(VLOOKUP(A1935,Translation!$A:$C,3,FALSE),A1935)","v":29},{"$f":"IFERROR(VLOOKUP(B1935,Translation!$A:$C,3,FALSE),B1935)","v":"T1 2020"},{"$f":"IFERROR(VLOOKUP(C1935,Translation!$A:$C,3,FALSE),C1935)","v":"IMMEUBLES COLLECTIFS RÉSIDENTIELS"},{"$f":"IFERROR(VLOOKUP(D1935,Translation!$A:$C,3,FALSE),D1935)","v":"Terre-Neuve-et-Labrador"},{"$f":"IFERROR(VLOOKUP(E1935,Translation!$A:$C,3,FALSE),E1935)","v":94.757824238609757},{"$f":"IFERROR(VLOOKUP(F1935,Translation!$A:$C,3,FALSE),F1935)","v":"Prêts hypothécaires assurés au cours de la période selon le type de logement (%)"},{"$f":"IFERROR(VLOOKUP(G1935,Translation!$A:$C,3,FALSE),G1935)","v":"94.8"},{"$f":"IFERROR(VLOOKUP(H1935,Translation!$A:$C,3,FALSE),H1935)","v":"Terre-Neuve-et-Labrador"}]
[29,"Cumul 2020","IMMEUBLES COLLECTIFS RÉSIDENTIELS","Terre-Neuve-et-Labrador",94.757824238609757,"Prêts hypothécaires assurés au cours de la période selon le type de logement (%)","94.8","Terre-Neuve-et-Labrador",{"$f":"IFERROR(VLOOKUP(A1936,Translation!$A:$C,3,FALSE),A1936)","v":29},{"$f":"IFERROR(VLOOKUP(B1936,Translation!$A:$C,3,FALSE),B1936)","v":"Cumul 2020"},{"$f":"IFERROR(VLOOKUP(C1936,Translation!$A:$C,3,FALSE),C1936)","v":"IMMEUBLES COLLECTIFS RÉSIDENTIELS"},{"$f":"IFERROR(VLOOKUP(D1936,Translation!$A:$C,3,FALSE),D1936)","v":"Terre-Neuve-et-Labrador"},{"$f":"IFERROR(VLOOKUP(E1936,Translation!$A:$C,3,FALSE),E1936)","v":94.757824238609757},{"$f":"IFERROR(VLOOKUP(F1936,Translation!$A:$C,3,FALSE),F1936)","v":"Prêts hypothécaires assurés au cours de la période selon le type de logement (%)"},{"$f":"IFERROR(VLOOKUP(G1936,Translation!$A:$C,3,FALSE),G1936)","v":"94.8"},{"$f":"IFERROR(VLOOKUP(H1936,Translation!$A:$C,3,FALSE),H1936)","v":"Terre-Neuve-et-Labrador"}]
[29,"T1 2020","IMMEUBLES COLLECTIFS RÉSIDENTIELS","Île-du-Prince-Édouard",100,"Prêts hypothécaires assurés au cours de la période selon le type de logement (%)","100.0","Île-du-Prince-Édouard",{"$f":"IFERROR(VLOOKUP(A1937,Translation!$A:$C,3,FALSE),A1937)","v":29},{"$f":"IFERROR(VLOOKUP(B1937,Translation!$A:$C,3,FALSE),B1937)","v":"T1 2020"},{"$f":"IFERROR(VLOOKUP(C1937,Translation!$A:$C,3,FALSE),C1937)","v":"IMMEUBLES COLLECTIFS RÉSIDENTIELS"},{"$f":"IFERROR(VLOOKUP(D1937,Translation!$A:$C,3,FALSE),D1937)","v":"Île-du-Prince-Édouard"},{"$f":"IFERROR(VLOOKUP(E1937,Translation!$A:$C,3,FALSE),E1937)","v":100},{"$f":"IFERROR(VLOOKUP(F1937,Translation!$A:$C,3,FALSE),F1937)","v":"Prêts hypothécaires assurés au cours de la période selon le type de logement (%)"},{"$f":"IFERROR(VLOOKUP(G1937,Translation!$A:$C,3,FALSE),G1937)","v":"100.0"},{"$f":"IFERROR(VLOOKUP(H1937,Translation!$A:$C,3,FALSE),H1937)","v":"Île-du-Prince-Édouard"}]
[29,"Cumul 2019","IMMEUBLES COLLECTIFS RÉSIDENTIELS","Île-du-Prince-Édouard",100,"Prêts hypothécaires assurés au cours de la période selon le type de logement (%)","100.0","Île-du-Prince-Édouard",{"$f":"IFERROR(VLOOKUP(A1938,Translation!$A:$C,3,FALSE),A1938)","v":29},{"$f":"IFERROR(VLOOKUP(B1938,Translation!$A:$C,3,FALSE),B1938)","v":"Cumul 2019"},{"$f":"IFERROR(VLOOKUP(C1938,Translation!$A:$C,3,FALSE),C1938)","v":"IMMEUBLES COLLECTIFS RÉSIDENTIELS"},{"$f":"IFERROR(VLOOKUP(D1938,Translation!$A:$C,3,FALSE),D1938)","v":"Île-du-Prince-Édouard"},{"$f":"IFERROR(VLOOKUP(E1938,Translation!$A:$C,3,FALSE),E1938)","v":100},{"$f":"IFERROR(VLOOKUP(F1938,Translation!$A:$C,3,FALSE),F1938)","v":"Prêts hypothécaires assurés au cours de la période selon le type de logement (%)"},{"$f":"IFERROR(VLOOKUP(G1938,Translation!$A:$C,3,FALSE),G1938)","v":"100.0"},{"$f":"IFERROR(VLOOKUP(H1938,Translation!$A:$C,3,FALSE),H1938)","v":"Île-du-Prince-Édouard"}]
[29,"Cumul 2020","IMMEUBLES COLLECTIFS RÉSIDENTIELS","Île-du-Prince-Édouard",100,"Prêts hypothécaires assurés au cours de la période selon le type de logement (%)","100.0","Île-du-Prince-Édouard",{"$f":"IFERROR(VLOOKUP(A1939,Translation!$A:$C,3,FALSE),A1939)","v":29},{"$f":"IFERROR(VLOOKUP(B1939,Translation!$A:$C,3,FALSE),B1939)","v":"Cumul 2020"},{"$f":"IFERROR(VLOOKUP(C1939,Translation!$A:$C,3,FALSE),C1939)","v":"IMMEUBLES COLLECTIFS RÉSIDENTIELS"},{"$f":"IFERROR(VLOOKUP(D1939,Translation!$A:$C,3,FALSE),D1939)","v":"Île-du-Prince-Édouard"},{"$f":"IFERROR(VLOOKUP(E1939,Translation!$A:$C,3,FALSE),E1939)","v":100},{"$f":"IFERROR(VLOOKUP(F1939,Translation!$A:$C,3,FALSE),F1939)","v":"Prêts hypothécaires assurés au cours de la période selon le type de logement (%)"},{"$f":"IFERROR(VLOOKUP(G1939,Translation!$A:$C,3,FALSE),G1939)","v":"100.0"},{"$f":"IFERROR(VLOOKUP(H1939,Translation!$A:$C,3,FALSE),H1939)","v":"Île-du-Prince-Édouard"}]
[29,"T1 2020","IMMEUBLES COLLECTIFS RÉSIDENTIELS","Nouvelle-Écosse",100,"Prêts hypothécaires assurés au cours de la période selon le type de logement (%)","100.0","Nouvelle-Écosse",{"$f":"IFERROR(VLOOKUP(A1940,Translation!$A:$C,3,FALSE),A1940)","v":29},{"$f":"IFERROR(VLOOKUP(B1940,Translation!$A:$C,3,FALSE),B1940)","v":"T1 2020"},{"$f":"IFERROR(VLOOKUP(C1940,Translation!$A:$C,3,FALSE),C1940)","v":"IMMEUBLES COLLECTIFS RÉSIDENTIELS"},{"$f":"IFERROR(VLOOKUP(D1940,Translation!$A:$C,3,FALSE),D1940)","v":"Nouvelle-Écosse"},{"$f":"IFERROR(VLOOKUP(E1940,Translation!$A:$C,3,FALSE),E1940)","v":100},{"$f":"IFERROR(VLOOKUP(F1940,Translation!$A:$C,3,FALSE),F1940)","v":"Prêts hypothécaires assurés au cours de la période selon le type de logement (%)"},{"$f":"IFERROR(VLOOKUP(G1940,Translation!$A:$C,3,FALSE),G1940)","v":"100.0"},{"$f":"IFERROR(VLOOKUP(H1940,Translation!$A:$C,3,FALSE),H1940)","v":"Nouvelle-Écosse"}]
[29,"Cumul 2019","IMMEUBLES COLLECTIFS RÉSIDENTIELS","Nouvelle-Écosse",100,"Prêts hypothécaires assurés au cours de la période selon le type de logement (%)","100.0","Nouvelle-Écosse",{"$f":"IFERROR(VLOOKUP(A1941,Translation!$A:$C,3,FALSE),A1941)","v":29},{"$f":"IFERROR(VLOOKUP(B1941,Translation!$A:$C,3,FALSE),B1941)","v":"Cumul 2019"},{"$f":"IFERROR(VLOOKUP(C1941,Translation!$A:$C,3,FALSE),C1941)","v":"IMMEUBLES COLLECTIFS RÉSIDENTIELS"},{"$f":"IFERROR(VLOOKUP(D1941,Translation!$A:$C,3,FALSE),D1941)","v":"Nouvelle-Écosse"},{"$f":"IFERROR(VLOOKUP(E1941,Translation!$A:$C,3,FALSE),E1941)","v":100},{"$f":"IFERROR(VLOOKUP(F1941,Translation!$A:$C,3,FALSE),F1941)","v":"Prêts hypothécaires assurés au cours de la période selon le type de logement (%)"},{"$f":"IFERROR(VLOOKUP(G1941,Translation!$A:$C,3,FALSE),G1941)","v":"100.0"},{"$f":"IFERROR(VLOOKUP(H1941,Translation!$A:$C,3,FALSE),H1941)","v":"Nouvelle-Écosse"}]
[29,"Cumul 2020","IMMEUBLES COLLECTIFS RÉSIDENTIELS","Nouvelle-Écosse",100,"Prêts hypothécaires assurés au cours de la période selon le type de logement (%)","100.0","Nouvelle-Écosse",{"$f":"IFERROR(VLOOKUP(A1942,Translation!$A:$C,3,FALSE),A1942)","v":29},{"$f":"IFERROR(VLOOKUP(B1942,Translation!$A:$C,3,FALSE),B1942)","v":"Cumul 2020"},{"$f":"IFERROR(VLOOKUP(C1942,Translation!$A:$C,3,FALSE),C1942)","v":"IMMEUBLES COLLECTIFS RÉSIDENTIELS"},{"$f":"IFERROR(VLOOKUP(D1942,Translation!$A:$C,3,FALSE),D1942)","v":"Nouvelle-Écosse"},{"$f":"IFERROR(VLOOKUP(E1942,Translation!$A:$C,3,FALSE),E1942)","v":100},{"$f":"IFERROR(VLOOKUP(F1942,Translation!$A:$C,3,FALSE),F1942)","v":"Prêts hypothécaires assurés au cours de la période selon le type de logement (%)"},{"$f":"IFERROR(VLOOKUP(G1942,Translation!$A:$C,3,FALSE),G1942)","v":"100.0"},{"$f":"IFERROR(VLOOKUP(H1942,Translation!$A:$C,3,FALSE),H1942)","v":"Nouvelle-Écosse"}]
[29,"T1 2020","IMMEUBLES COLLECTIFS RÉSIDENTIELS","Nouveau-Brunswick",86.378305066334491,"Prêts hypothécaires assurés au cours de la période selon le type de logement (%)","86.4","Nouveau-Brunswick",{"$f":"IFERROR(VLOOKUP(A1943,Translation!$A:$C,3,FALSE),A1943)","v":29},{"$f":"IFERROR(VLOOKUP(B1943,Translation!$A:$C,3,FALSE),B1943)","v":"T1 2020"},{"$f":"IFERROR(VLOOKUP(C1943,Translation!$A:$C,3,FALSE),C1943)","v":"IMMEUBLES COLLECTIFS RÉSIDENTIELS"},{"$f":"IFERROR(VLOOKUP(D1943,Translation!$A:$C,3,FALSE),D1943)","v":"Nouveau-Brunswick"},{"$f":"IFERROR(VLOOKUP(E1943,Translation!$A:$C,3,FALSE),E1943)","v":86.378305066334491},{"$f":"IFERROR(VLOOKUP(F1943,Translation!$A:$C,3,FALSE),F1943)","v":"Prêts hypothécaires assurés au cours de la période selon le type de logement (%)"},{"$f":"IFERROR(VLOOKUP(G1943,Translation!$A:$C,3,FALSE),G1943)","v":"86.4"},{"$f":"IFERROR(VLOOKUP(H1943,Translation!$A:$C,3,FALSE),H1943)","v":"Nouveau-Brunswick"}]
[29,"Cumul 2019","IMMEUBLES COLLECTIFS RÉSIDENTIELS","Nouveau-Brunswick",100,"Prêts hypothécaires assurés au cours de la période selon le type de logement (%)","100.0","Nouveau-Brunswick",{"$f":"IFERROR(VLOOKUP(A1944,Translation!$A:$C,3,FALSE),A1944)","v":29},{"$f":"IFERROR(VLOOKUP(B1944,Translation!$A:$C,3,FALSE),B1944)","v":"Cumul 2019"},{"$f":"IFERROR(VLOOKUP(C1944,Translation!$A:$C,3,FALSE),C1944)","v":"IMMEUBLES COLLECTIFS RÉSIDENTIELS"},{"$f":"IFERROR(VLOOKUP(D1944,Translation!$A:$C,3,FALSE),D1944)","v":"Nouveau-Brunswick"},{"$f":"IFERROR(VLOOKUP(E1944,Translation!$A:$C,3,FALSE),E1944)","v":100},{"$f":"IFERROR(VLOOKUP(F1944,Translation!$A:$C,3,FALSE),F1944)","v":"Prêts hypothécaires assurés au cours de la période selon le type de logement (%)"},{"$f":"IFERROR(VLOOKUP(G1944,Translation!$A:$C,3,FALSE),G1944)","v":"100.0"},{"$f":"IFERROR(VLOOKUP(H1944,Translation!$A:$C,3,FALSE),H1944)","v":"Nouveau-Brunswick"}]
[29,"Cumul 2020","IMMEUBLES COLLECTIFS RÉSIDENTIELS","Nouveau-Brunswick",86.378305066334491,"Prêts hypothécaires assurés au cours de la période selon le type de logement (%)","86.4","Nouveau-Brunswick",{"$f":"IFERROR(VLOOKUP(A1945,Translation!$A:$C,3,FALSE),A1945)","v":29},{"$f":"IFERROR(VLOOKUP(B1945,Translation!$A:$C,3,FALSE),B1945)","v":"Cumul 2020"},{"$f":"IFERROR(VLOOKUP(C1945,Translation!$A:$C,3,FALSE),C1945)","v":"IMMEUBLES COLLECTIFS RÉSIDENTIELS"},{"$f":"IFERROR(VLOOKUP(D1945,Translation!$A:$C,3,FALSE),D1945)","v":"Nouveau-Brunswick"},{"$f":"IFERROR(VLOOKUP(E1945,Translation!$A:$C,3,FALSE),E1945)","v":86.378305066334491},{"$f":"IFERROR(VLOOKUP(F1945,Translation!$A:$C,3,FALSE),F1945)","v":"Prêts hypothécaires assurés au cours de la période selon le type de logement (%)"},{"$f":"IFERROR(VLOOKUP(G1945,Translation!$A:$C,3,FALSE),G1945)","v":"86.4"},{"$f":"IFERROR(VLOOKUP(H1945,Translation!$A:$C,3,FALSE),H1945)","v":"Nouveau-Brunswick"}]
[29,"T1 2020","IMMEUBLES COLLECTIFS RÉSIDENTIELS","Québec",93.535329061276173,"Prêts hypothécaires assurés au cours de la période selon le type de logement (%)","93.5","Québec",{"$f":"IFERROR(VLOOKUP(A1946,Translation!$A:$C,3,FALSE),A1946)","v":29},{"$f":"IFERROR(VLOOKUP(B1946,Translation!$A:$C,3,FALSE),B1946)","v":"T1 2020"},{"$f":"IFERROR(VLOOKUP(C1946,Translation!$A:$C,3,FALSE),C1946)","v":"IMMEUBLES COLLECTIFS RÉSIDENTIELS"},{"$f":"IFERROR(VLOOKUP(D1946,Translation!$A:$C,3,FALSE),D1946)","v":"Québec"},{"$f":"IFERROR(VLOOKUP(E1946,Translation!$A:$C,3,FALSE),E1946)","v":93.535329061276173},{"$f":"IFERROR(VLOOKUP(F1946,Translation!$A:$C,3,FALSE),F1946)","v":"Prêts hypothécaires assurés au cours de la période selon le type de logement (%)"},{"$f":"IFERROR(VLOOKUP(G1946,Translation!$A:$C,3,FALSE),G1946)","v":"93.5"},{"$f":"IFERROR(VLOOKUP(H1946,Translation!$A:$C,3,FALSE),H1946)","v":"Québec"}]
[29,"Cumul 2019","IMMEUBLES COLLECTIFS RÉSIDENTIELS","Québec",89.027068068065063,"Prêts hypothécaires assurés au cours de la période selon le type de logement (%)","89.0","Québec",{"$f":"IFERROR(VLOOKUP(A1947,Translation!$A:$C,3,FALSE),A1947)","v":29},{"$f":"IFERROR(VLOOKUP(B1947,Translation!$A:$C,3,FALSE),B1947)","v":"Cumul 2019"},{"$f":"IFERROR(VLOOKUP(C1947,Translation!$A:$C,3,FALSE),C1947)","v":"IMMEUBLES COLLECTIFS RÉSIDENTIELS"},{"$f":"IFERROR(VLOOKUP(D1947,Translation!$A:$C,3,FALSE),D1947)","v":"Québec"},{"$f":"IFERROR(VLOOKUP(E1947,Translation!$A:$C,3,FALSE),E1947)","v":89.027068068065063},{"$f":"IFERROR(VLOOKUP(F1947,Translation!$A:$C,3,FALSE),F1947)","v":"Prêts hypothécaires assurés au cours de la période selon le type de logement (%)"},{"$f":"IFERROR(VLOOKUP(G1947,Translation!$A:$C,3,FALSE),G1947)","v":"89.0"},{"$f":"IFERROR(VLOOKUP(H1947,Translation!$A:$C,3,FALSE),H1947)","v":"Québec"}]
[29,"Cumul 2020","IMMEUBLES COLLECTIFS RÉSIDENTIELS","Québec",93.535329061276173,"Prêts hypothécaires assurés au cours de la période selon le type de logement (%)","93.5","Québec",{"$f":"IFERROR(VLOOKUP(A1948,Translation!$A:$C,3,FALSE),A1948)","v":29},{"$f":"IFERROR(VLOOKUP(B1948,Translation!$A:$C,3,FALSE),B1948)","v":"Cumul 2020"},{"$f":"IFERROR(VLOOKUP(C1948,Translation!$A:$C,3,FALSE),C1948)","v":"IMMEUBLES COLLECTIFS RÉSIDENTIELS"},{"$f":"IFERROR(VLOOKUP(D1948,Translation!$A:$C,3,FALSE),D1948)","v":"Québec"},{"$f":"IFERROR(VLOOKUP(E1948,Translation!$A:$C,3,FALSE),E1948)","v":93.535329061276173},{"$f":"IFERROR(VLOOKUP(F1948,Translation!$A:$C,3,FALSE),F1948)","v":"Prêts hypothécaires assurés au cours de la période selon le type de logement (%)"},{"$f":"IFERROR(VLOOKUP(G1948,Translation!$A:$C,3,FALSE),G1948)","v":"93.5"},{"$f":"IFERROR(VLOOKUP(H1948,Translation!$A:$C,3,FALSE),H1948)","v":"Québec"}]
[29,"T1 2020","IMMEUBLES COLLECTIFS RÉSIDENTIELS","Ontario",95.14595525776879,"Prêts hypothécaires assurés au cours de la période selon le type de logement (%)","95.1","Ontario",{"$f":"IFERROR(VLOOKUP(A1949,Translation!$A:$C,3,FALSE),A1949)","v":29},{"$f":"IFERROR(VLOOKUP(B1949,Translation!$A:$C,3,FALSE),B1949)","v":"T1 2020"},{"$f":"IFERROR(VLOOKUP(C1949,Translation!$A:$C,3,FALSE),C1949)","v":"IMMEUBLES COLLECTIFS RÉSIDENTIELS"},{"$f":"IFERROR(VLOOKUP(D1949,Translation!$A:$C,3,FALSE),D1949)","v":"Ontario"},{"$f":"IFERROR(VLOOKUP(E1949,Translation!$A:$C,3,FALSE),E1949)","v":95.14595525776879},{"$f":"IFERROR(VLOOKUP(F1949,Translation!$A:$C,3,FALSE),F1949)","v":"Prêts hypothécaires assurés au cours de la période selon le type de logement (%)"},{"$f":"IFERROR(VLOOKUP(G1949,Translation!$A:$C,3,FALSE),G1949)","v":"95.1"},{"$f":"IFERROR(VLOOKUP(H1949,Translation!$A:$C,3,FALSE),H1949)","v":"Ontario"}]
[29,"Cumul 2019","IMMEUBLES COLLECTIFS RÉSIDENTIELS","Ontario",95.190544099508671,"Prêts hypothécaires assurés au cours de la période selon le type de logement (%)","95.2","Ontario",{"$f":"IFERROR(VLOOKUP(A1950,Translation!$A:$C,3,FALSE),A1950)","v":29},{"$f":"IFERROR(VLOOKUP(B1950,Translation!$A:$C,3,FALSE),B1950)","v":"Cumul 2019"},{"$f":"IFERROR(VLOOKUP(C1950,Translation!$A:$C,3,FALSE),C1950)","v":"IMMEUBLES COLLECTIFS RÉSIDENTIELS"},{"$f":"IFERROR(VLOOKUP(D1950,Translation!$A:$C,3,FALSE),D1950)","v":"Ontario"},{"$f":"IFERROR(VLOOKUP(E1950,Translation!$A:$C,3,FALSE),E1950)","v":95.190544099508671},{"$f":"IFERROR(VLOOKUP(F1950,Translation!$A:$C,3,FALSE),F1950)","v":"Prêts hypothécaires assurés au cours de la période selon le type de logement (%)"},{"$f":"IFERROR(VLOOKUP(G1950,Translation!$A:$C,3,FALSE),G1950)","v":"95.2"},{"$f":"IFERROR(VLOOKUP(H1950,Translation!$A:$C,3,FALSE),H1950)","v":"Ontario"}]
[29,"Cumul 2020","IMMEUBLES COLLECTIFS RÉSIDENTIELS","Ontario",95.14595525776879,"Prêts hypothécaires assurés au cours de la période selon le type de logement (%)","95.1","Ontario",{"$f":"IFERROR(VLOOKUP(A1951,Translation!$A:$C,3,FALSE),A1951)","v":29},{"$f":"IFERROR(VLOOKUP(B1951,Translation!$A:$C,3,FALSE),B1951)","v":"Cumul 2020"},{"$f":"IFERROR(VLOOKUP(C1951,Translation!$A:$C,3,FALSE),C1951)","v":"IMMEUBLES COLLECTIFS RÉSIDENTIELS"},{"$f":"IFERROR(VLOOKUP(D1951,Translation!$A:$C,3,FALSE),D1951)","v":"Ontario"},{"$f":"IFERROR(VLOOKUP(E1951,Translation!$A:$C,3,FALSE),E1951)","v":95.14595525776879},{"$f":"IFERROR(VLOOKUP(F1951,Translation!$A:$C,3,FALSE),F1951)","v":"Prêts hypothécaires assurés au cours de la période selon le type de logement (%)"},{"$f":"IFERROR(VLOOKUP(G1951,Translation!$A:$C,3,FALSE),G1951)","v":"95.1"},{"$f":"IFERROR(VLOOKUP(H1951,Translation!$A:$C,3,FALSE),H1951)","v":"Ontario"}]
[29,"T1 2020","IMMEUBLES COLLECTIFS RÉSIDENTIELS","Manitoba",92.58536206400349,"Prêts hypothécaires assurés au cours de la période selon le type de logement (%)","92.6","Manitoba",{"$f":"IFERROR(VLOOKUP(A1952,Translation!$A:$C,3,FALSE),A1952)","v":29},{"$f":"IFERROR(VLOOKUP(B1952,Translation!$A:$C,3,FALSE),B1952)","v":"T1 2020"},{"$f":"IFERROR(VLOOKUP(C1952,Translation!$A:$C,3,FALSE),C1952)","v":"IMMEUBLES COLLECTIFS RÉSIDENTIELS"},{"$f":"IFERROR(VLOOKUP(D1952,Translation!$A:$C,3,FALSE),D1952)","v":"Manitoba"},{"$f":"IFERROR(VLOOKUP(E1952,Translation!$A:$C,3,FALSE),E1952)","v":92.58536206400349},{"$f":"IFERROR(VLOOKUP(F1952,Translation!$A:$C,3,FALSE),F1952)","v":"Prêts hypothécaires assurés au cours de la période selon le type de logement (%)"},{"$f":"IFERROR(VLOOKUP(G1952,Translation!$A:$C,3,FALSE),G1952)","v":"92.6"},{"$f":"IFERROR(VLOOKUP(H1952,Translation!$A:$C,3,FALSE),H1952)","v":"Manitoba"}]
[29,"Cumul 2019","IMMEUBLES COLLECTIFS RÉSIDENTIELS","Manitoba",89.409724219189613,"Prêts hypothécaires assurés au cours de la période selon le type de logement (%)","89.4","Manitoba",{"$f":"IFERROR(VLOOKUP(A1953,Translation!$A:$C,3,FALSE),A1953)","v":29},{"$f":"IFERROR(VLOOKUP(B1953,Translation!$A:$C,3,FALSE),B1953)","v":"Cumul 2019"},{"$f":"IFERROR(VLOOKUP(C1953,Translation!$A:$C,3,FALSE),C1953)","v":"IMMEUBLES COLLECTIFS RÉSIDENTIELS"},{"$f":"IFERROR(VLOOKUP(D1953,Translation!$A:$C,3,FALSE),D1953)","v":"Manitoba"},{"$f":"IFERROR(VLOOKUP(E1953,Translation!$A:$C,3,FALSE),E1953)","v":89.409724219189613},{"$f":"IFERROR(VLOOKUP(F1953,Translation!$A:$C,3,FALSE),F1953)","v":"Prêts hypothécaires assurés au cours de la période selon le type de logement (%)"},{"$f":"IFERROR(VLOOKUP(G1953,Translation!$A:$C,3,FALSE),G1953)","v":"89.4"},{"$f":"IFERROR(VLOOKUP(H1953,Translation!$A:$C,3,FALSE),H1953)","v":"Manitoba"}]
[29,"Cumul 2020","IMMEUBLES COLLECTIFS RÉSIDENTIELS","Manitoba",92.58536206400349,"Prêts hypothécaires assurés au cours de la période selon le type de logement (%)","92.6","Manitoba",{"$f":"IFERROR(VLOOKUP(A1954,Translation!$A:$C,3,FALSE),A1954)","v":29},{"$f":"IFERROR(VLOOKUP(B1954,Translation!$A:$C,3,FALSE),B1954)","v":"Cumul 2020"},{"$f":"IFERROR(VLOOKUP(C1954,Translation!$A:$C,3,FALSE),C1954)","v":"IMMEUBLES COLLECTIFS RÉSIDENTIELS"},{"$f":"IFERROR(VLOOKUP(D1954,Translation!$A:$C,3,FALSE),D1954)","v":"Manitoba"},{"$f":"IFERROR(VLOOKUP(E1954,Translation!$A:$C,3,FALSE),E1954)","v":92.58536206400349},{"$f":"IFERROR(VLOOKUP(F1954,Translation!$A:$C,3,FALSE),F1954)","v":"Prêts hypothécaires assurés au cours de la période selon le type de logement (%)"},{"$f":"IFERROR(VLOOKUP(G1954,Translation!$A:$C,3,FALSE),G1954)","v":"92.6"},{"$f":"IFERROR(VLOOKUP(H1954,Translation!$A:$C,3,FALSE),H1954)","v":"Manitoba"}]
[29,"T1 2020","IMMEUBLES COLLECTIFS RÉSIDENTIELS","Saskatchewan",63.534042542738611,"Prêts hypothécaires assurés au cours de la période selon le type de logement (%)","63.5","Saskatchewan",{"$f":"IFERROR(VLOOKUP(A1955,Translation!$A:$C,3,FALSE),A1955)","v":29},{"$f":"IFERROR(VLOOKUP(B1955,Translation!$A:$C,3,FALSE),B1955)","v":"T1 2020"},{"$f":"IFERROR(VLOOKUP(C1955,Translation!$A:$C,3,FALSE),C1955)","v":"IMMEUBLES COLLECTIFS RÉSIDENTIELS"},{"$f":"IFERROR(VLOOKUP(D1955,Translation!$A:$C,3,FALSE),D1955)","v":"Saskatchewan"},{"$f":"IFERROR(VLOOKUP(E1955,Translation!$A:$C,3,FALSE),E1955)","v":63.534042542738611},{"$f":"IFERROR(VLOOKUP(F1955,Translation!$A:$C,3,FALSE),F1955)","v":"Prêts hypothécaires assurés au cours de la période selon le type de logement (%)"},{"$f":"IFERROR(VLOOKUP(G1955,Translation!$A:$C,3,FALSE),G1955)","v":"63.5"},{"$f":"IFERROR(VLOOKUP(H1955,Translation!$A:$C,3,FALSE),H1955)","v":"Saskatchewan"}]
[29,"Cumul 2019","IMMEUBLES COLLECTIFS RÉSIDENTIELS","Saskatchewan",100,"Prêts hypothécaires assurés au cours de la période selon le type de logement (%)","100.0","Saskatchewan",{"$f":"IFERROR(VLOOKUP(A1956,Translation!$A:$C,3,FALSE),A1956)","v":29},{"$f":"IFERROR(VLOOKUP(B1956,Translation!$A:$C,3,FALSE),B1956)","v":"Cumul 2019"},{"$f":"IFERROR(VLOOKUP(C1956,Translation!$A:$C,3,FALSE),C1956)","v":"IMMEUBLES COLLECTIFS RÉSIDENTIELS"},{"$f":"IFERROR(VLOOKUP(D1956,Translation!$A:$C,3,FALSE),D1956)","v":"Saskatchewan"},{"$f":"IFERROR(VLOOKUP(E1956,Translation!$A:$C,3,FALSE),E1956)","v":100},{"$f":"IFERROR(VLOOKUP(F1956,Translation!$A:$C,3,FALSE),F1956)","v":"Prêts hypothécaires assurés au cours de la période selon le type de logement (%)"},{"$f":"IFERROR(VLOOKUP(G1956,Translation!$A:$C,3,FALSE),G1956)","v":"100.0"},{"$f":"IFERROR(VLOOKUP(H1956,Translation!$A:$C,3,FALSE),H1956)","v":"Saskatchewan"}]
[29,"Cumul 2020","IMMEUBLES COLLECTIFS RÉSIDENTIELS","Saskatchewan",63.534042542738611,"Prêts hypothécaires assurés au cours de la période selon le type de logement (%)","63.5","Saskatchewan",{"$f":"IFERROR(VLOOKUP(A1957,Translation!$A:$C,3,FALSE),A1957)","v":29},{"$f":"IFERROR(VLOOKUP(B1957,Translation!$A:$C,3,FALSE),B1957)","v":"Cumul 2020"},{"$f":"IFERROR(VLOOKUP(C1957,Translation!$A:$C,3,FALSE),C1957)","v":"IMMEUBLES COLLECTIFS RÉSIDENTIELS"},{"$f":"IFERROR(VLOOKUP(D1957,Translation!$A:$C,3,FALSE),D1957)","v":"Saskatchewan"},{"$f":"IFERROR(VLOOKUP(E1957,Translation!$A:$C,3,FALSE),E1957)","v":63.534042542738611},{"$f":"IFERROR(VLOOKUP(F1957,Translation!$A:$C,3,FALSE),F1957)","v":"Prêts hypothécaires assurés au cours de la période selon le type de logement (%)"},{"$f":"IFERROR(VLOOKUP(G1957,Translation!$A:$C,3,FALSE),G1957)","v":"63.5"},{"$f":"IFERROR(VLOOKUP(H1957,Translation!$A:$C,3,FALSE),H1957)","v":"Saskatchewan"}]
[29,"T1 2020","IMMEUBLES COLLECTIFS RÉSIDENTIELS","Alberta",84.817156562305385,"Prêts hypothécaires assurés au cours de la période selon le type de logement (%)","84.8","Alberta",{"$f":"IFERROR(VLOOKUP(A1958,Translation!$A:$C,3,FALSE),A1958)","v":29},{"$f":"IFERROR(VLOOKUP(B1958,Translation!$A:$C,3,FALSE),B1958)","v":"T1 2020"},{"$f":"IFERROR(VLOOKUP(C1958,Translation!$A:$C,3,FALSE),C1958)","v":"IMMEUBLES COLLECTIFS RÉSIDENTIELS"},{"$f":"IFERROR(VLOOKUP(D1958,Translation!$A:$C,3,FALSE),D1958)","v":"Alberta"},{"$f":"IFERROR(VLOOKUP(E1958,Translation!$A:$C,3,FALSE),E1958)","v":84.817156562305385},{"$f":"IFERROR(VLOOKUP(F1958,Translation!$A:$C,3,FALSE),F1958)","v":"Prêts hypothécaires assurés au cours de la période selon le type de logement (%)"},{"$f":"IFERROR(VLOOKUP(G1958,Translation!$A:$C,3,FALSE),G1958)","v":"84.8"},{"$f":"IFERROR(VLOOKUP(H1958,Translation!$A:$C,3,FALSE),H1958)","v":"Alberta"}]
[29,"Cumul 2019","IMMEUBLES COLLECTIFS RÉSIDENTIELS","Alberta",82.584517108290569,"Prêts hypothécaires assurés au cours de la période selon le type de logement (%)","82.6","Alberta",{"$f":"IFERROR(VLOOKUP(A1959,Translation!$A:$C,3,FALSE),A1959)","v":29},{"$f":"IFERROR(VLOOKUP(B1959,Translation!$A:$C,3,FALSE),B1959)","v":"Cumul 2019"},{"$f":"IFERROR(VLOOKUP(C1959,Translation!$A:$C,3,FALSE),C1959)","v":"IMMEUBLES COLLECTIFS RÉSIDENTIELS"},{"$f":"IFERROR(VLOOKUP(D1959,Translation!$A:$C,3,FALSE),D1959)","v":"Alberta"},{"$f":"IFERROR(VLOOKUP(E1959,Translation!$A:$C,3,FALSE),E1959)","v":82.584517108290569},{"$f":"IFERROR(VLOOKUP(F1959,Translation!$A:$C,3,FALSE),F1959)","v":"Prêts hypothécaires assurés au cours de la période selon le type de logement (%)"},{"$f":"IFERROR(VLOOKUP(G1959,Translation!$A:$C,3,FALSE),G1959)","v":"82.6"},{"$f":"IFERROR(VLOOKUP(H1959,Translation!$A:$C,3,FALSE),H1959)","v":"Alberta"}]
[29,"Cumul 2020","IMMEUBLES COLLECTIFS RÉSIDENTIELS","Alberta",84.817156562305385,"Prêts hypothécaires assurés au cours de la période selon le type de logement (%)","84.8","Alberta",{"$f":"IFERROR(VLOOKUP(A1960,Translation!$A:$C,3,FALSE),A1960)","v":29},{"$f":"IFERROR(VLOOKUP(B1960,Translation!$A:$C,3,FALSE),B1960)","v":"Cumul 2020"},{"$f":"IFERROR(VLOOKUP(C1960,Translation!$A:$C,3,FALSE),C1960)","v":"IMMEUBLES COLLECTIFS RÉSIDENTIELS"},{"$f":"IFERROR(VLOOKUP(D1960,Translation!$A:$C,3,FALSE),D1960)","v":"Alberta"},{"$f":"IFERROR(VLOOKUP(E1960,Translation!$A:$C,3,FALSE),E1960)","v":84.817156562305385},{"$f":"IFERROR(VLOOKUP(F1960,Translation!$A:$C,3,FALSE),F1960)","v":"Prêts hypothécaires assurés au cours de la période selon le type de logement (%)"},{"$f":"IFERROR(VLOOKUP(G1960,Translation!$A:$C,3,FALSE),G1960)","v":"84.8"},{"$f":"IFERROR(VLOOKUP(H1960,Translation!$A:$C,3,FALSE),H1960)","v":"Alberta"}]
[29,"T1 2020","IMMEUBLES COLLECTIFS RÉSIDENTIELS","Colombie-Britannique",88.188065953305511,"Prêts hypothécaires assurés au cours de la période selon le type de logement (%)","88.2","Colombie-Britannique",{"$f":"IFERROR(VLOOKUP(A1961,Translation!$A:$C,3,FALSE),A1961)","v":29},{"$f":"IFERROR(VLOOKUP(B1961,Translation!$A:$C,3,FALSE),B1961)","v":"T1 2020"},{"$f":"IFERROR(VLOOKUP(C1961,Translation!$A:$C,3,FALSE),C1961)","v":"IMMEUBLES COLLECTIFS RÉSIDENTIELS"},{"$f":"IFERROR(VLOOKUP(D1961,Translation!$A:$C,3,FALSE),D1961)","v":"Colombie-Britannique"},{"$f":"IFERROR(VLOOKUP(E1961,Translation!$A:$C,3,FALSE),E1961)","v":88.188065953305511},{"$f":"IFERROR(VLOOKUP(F1961,Translation!$A:$C,3,FALSE),F1961)","v":"Prêts hypothécaires assurés au cours de la période selon le type de logement (%)"},{"$f":"IFERROR(VLOOKUP(G1961,Translation!$A:$C,3,FALSE),G1961)","v":"88.2"},{"$f":"IFERROR(VLOOKUP(H1961,Translation!$A:$C,3,FALSE),H1961)","v":"Colombie-Britannique"}]
[29,"Cumul 2019","IMMEUBLES COLLECTIFS RÉSIDENTIELS","Colombie-Britannique",93.151430235479012,"Prêts hypothécaires assurés au cours de la période selon le type de logement (%)","93.2","Colombie-Britannique",{"$f":"IFERROR(VLOOKUP(A1962,Translation!$A:$C,3,FALSE),A1962)","v":29},{"$f":"IFERROR(VLOOKUP(B1962,Translation!$A:$C,3,FALSE),B1962)","v":"Cumul 2019"},{"$f":"IFERROR(VLOOKUP(C1962,Translation!$A:$C,3,FALSE),C1962)","v":"IMMEUBLES COLLECTIFS RÉSIDENTIELS"},{"$f":"IFERROR(VLOOKUP(D1962,Translation!$A:$C,3,FALSE),D1962)","v":"Colombie-Britannique"},{"$f":"IFERROR(VLOOKUP(E1962,Translation!$A:$C,3,FALSE),E1962)","v":93.151430235479012},{"$f":"IFERROR(VLOOKUP(F1962,Translation!$A:$C,3,FALSE),F1962)","v":"Prêts hypothécaires assurés au cours de la période selon le type de logement (%)"},{"$f":"IFERROR(VLOOKUP(G1962,Translation!$A:$C,3,FALSE),G1962)","v":"93.2"},{"$f":"IFERROR(VLOOKUP(H1962,Translation!$A:$C,3,FALSE),H1962)","v":"Colombie-Britannique"}]
[29,"Cumul 2020","IMMEUBLES COLLECTIFS RÉSIDENTIELS","Colombie-Britannique",88.188065953305511,"Prêts hypothécaires assurés au cours de la période selon le type de logement (%)","88.2","Colombie-Britannique",{"$f":"IFERROR(VLOOKUP(A1963,Translation!$A:$C,3,FALSE),A1963)","v":29},{"$f":"IFERROR(VLOOKUP(B1963,Translation!$A:$C,3,FALSE),B1963)","v":"Cumul 2020"},{"$f":"IFERROR(VLOOKUP(C1963,Translation!$A:$C,3,FALSE),C1963)","v":"IMMEUBLES COLLECTIFS RÉSIDENTIELS"},{"$f":"IFERROR(VLOOKUP(D1963,Translation!$A:$C,3,FALSE),D1963)","v":"Colombie-Britannique"},{"$f":"IFERROR(VLOOKUP(E1963,Translation!$A:$C,3,FALSE),E1963)","v":88.188065953305511},{"$f":"IFERROR(VLOOKUP(F1963,Translation!$A:$C,3,FALSE),F1963)","v":"Prêts hypothécaires assurés au cours de la période selon le type de logement (%)"},{"$f":"IFERROR(VLOOKUP(G1963,Translation!$A:$C,3,FALSE),G1963)","v":"88.2"},{"$f":"IFERROR(VLOOKUP(H1963,Translation!$A:$C,3,FALSE),H1963)","v":"Colombie-Britannique"}]
[29,"Cumul 2019","IMMEUBLES COLLECTIFS RÉSIDENTIELS","Territoires",100,"Prêts hypothécaires assurés au cours de la période selon le type de logement (%)","100.0","Territoires",{"$f":"IFERROR(VLOOKUP(A1964,Translation!$A:$C,3,FALSE),A1964)","v":29},{"$f":"IFERROR(VLOOKUP(B1964,Translation!$A:$C,3,FALSE),B1964)","v":"Cumul 2019"},{"$f":"IFERROR(VLOOKUP(C1964,Translation!$A:$C,3,FALSE),C1964)","v":"IMMEUBLES COLLECTIFS RÉSIDENTIELS"},{"$f":"IFERROR(VLOOKUP(D1964,Translation!$A:$C,3,FALSE),D1964)","v":"Territoires"},{"$f":"IFERROR(VLOOKUP(E1964,Translation!$A:$C,3,FALSE),E1964)","v":100},{"$f":"IFERROR(VLOOKUP(F1964,Translation!$A:$C,3,FALSE),F1964)","v":"Prêts hypothécaires assurés au cours de la période selon le type de logement (%)"},{"$f":"IFERROR(VLOOKUP(G1964,Translation!$A:$C,3,FALSE),G1964)","v":"100.0"},{"$f":"IFERROR(VLOOKUP(H1964,Translation!$A:$C,3,FALSE),H1964)","v":"Territoires"}]
[16,"T4 2019","PROPRIÉTAIRES-OCCUPANTS, À L’UNITÉ","Logement unifamilial",61.957639074485186,"Prêts hypothécaires assurés au cours de la période selon le type de logement (%)","62.0","Logement unifamilial",{"$f":"IFERROR(VLOOKUP(A1965,Translation!$A:$C,3,FALSE),A1965)","v":16},{"$f":"IFERROR(VLOOKUP(B1965,Translation!$A:$C,3,FALSE),B1965)","v":"T4 2019"},{"$f":"IFERROR(VLOOKUP(C1965,Translation!$A:$C,3,FALSE),C1965)","v":"PROPRIÉTAIRES-OCCUPANTS, À L’UNITÉ"},{"$f":"IFERROR(VLOOKUP(D1965,Translation!$A:$C,3,FALSE),D1965)","v":"Logement unifamilial"},{"$f":"IFERROR(VLOOKUP(E1965,Translation!$A:$C,3,FALSE),E1965)","v":61.957639074485186},{"$f":"IFERROR(VLOOKUP(F1965,Translation!$A:$C,3,FALSE),F1965)","v":"Prêts hypothécaires assurés au cours de la période selon le type de logement (%)"},{"$f":"IFERROR(VLOOKUP(G1965,Translation!$A:$C,3,FALSE),G1965)","v":"62.0"},{"$f":"IFERROR(VLOOKUP(H1965,Translation!$A:$C,3,FALSE),H1965)","v":"Logement unifamilial"}]
[16,"Cumul 2018","PROPRIÉTAIRES-OCCUPANTS, À L’UNITÉ","Logement unifamilial",63.806629370693607,"Prêts hypothécaires assurés au cours de la période selon le type de logement (%)","63.8","Logement unifamilial",{"$f":"IFERROR(VLOOKUP(A1966,Translation!$A:$C,3,FALSE),A1966)","v":16},{"$f":"IFERROR(VLOOKUP(B1966,Translation!$A:$C,3,FALSE),B1966)","v":"Cumul 2018"},{"$f":"IFERROR(VLOOKUP(C1966,Translation!$A:$C,3,FALSE),C1966)","v":"PROPRIÉTAIRES-OCCUPANTS, À L’UNITÉ"},{"$f":"IFERROR(VLOOKUP(D1966,Translation!$A:$C,3,FALSE),D1966)","v":"Logement unifamilial"},{"$f":"IFERROR(VLOOKUP(E1966,Translation!$A:$C,3,FALSE),E1966)","v":63.806629370693607},{"$f":"IFERROR(VLOOKUP(F1966,Translation!$A:$C,3,FALSE),F1966)","v":"Prêts hypothécaires assurés au cours de la période selon le type de logement (%)"},{"$f":"IFERROR(VLOOKUP(G1966,Translation!$A:$C,3,FALSE),G1966)","v":"63.8"},{"$f":"IFERROR(VLOOKUP(H1966,Translation!$A:$C,3,FALSE),H1966)","v":"Logement unifamilial"}]
[16,"T4 2019","PROPRIÉTAIRES-OCCUPANTS, À L’UNITÉ","Maison en rangée",11.454607298617043,"Prêts hypothécaires assurés au cours de la période selon le type de logement (%)","11.5","Maison en rangée",{"$f":"IFERROR(VLOOKUP(A1967,Translation!$A:$C,3,FALSE),A1967)","v":16},{"$f":"IFERROR(VLOOKUP(B1967,Translation!$A:$C,3,FALSE),B1967)","v":"T4 2019"},{"$f":"IFERROR(VLOOKUP(C1967,Translation!$A:$C,3,FALSE),C1967)","v":"PROPRIÉTAIRES-OCCUPANTS, À L’UNITÉ"},{"$f":"IFERROR(VLOOKUP(D1967,Translation!$A:$C,3,FALSE),D1967)","v":"Maison en rangée"},{"$f":"IFERROR(VLOOKUP(E1967,Translation!$A:$C,3,FALSE),E1967)","v":11.454607298617043},{"$f":"IFERROR(VLOOKUP(F1967,Translation!$A:$C,3,FALSE),F1967)","v":"Prêts hypothécaires assurés au cours de la période selon le type de logement (%)"},{"$f":"IFERROR(VLOOKUP(G1967,Translation!$A:$C,3,FALSE),G1967)","v":"11.5"},{"$f":"IFERROR(VLOOKUP(H1967,Translation!$A:$C,3,FALSE),H1967)","v":"Maison en rangée"}]
[16,"Cumul 2018","PROPRIÉTAIRES-OCCUPANTS, À L’UNITÉ","Maison en rangée",10.353456478788049,"Prêts hypothécaires assurés au cours de la période selon le type de logement (%)","10.4","Maison en rangée",{"$f":"IFERROR(VLOOKUP(A1968,Translation!$A:$C,3,FALSE),A1968)","v":16},{"$f":"IFERROR(VLOOKUP(B1968,Translation!$A:$C,3,FALSE),B1968)","v":"Cumul 2018"},{"$f":"IFERROR(VLOOKUP(C1968,Translation!$A:$C,3,FALSE),C1968)","v":"PROPRIÉTAIRES-OCCUPANTS, À L’UNITÉ"},{"$f":"IFERROR(VLOOKUP(D1968,Translation!$A:$C,3,FALSE),D1968)","v":"Maison en rangée"},{"$f":"IFERROR(VLOOKUP(E1968,Translation!$A:$C,3,FALSE),E1968)","v":10.353456478788049},{"$f":"IFERROR(VLOOKUP(F1968,Translation!$A:$C,3,FALSE),F1968)","v":"Prêts hypothécaires assurés au cours de la période selon le type de logement (%)"},{"$f":"IFERROR(VLOOKUP(G1968,Translation!$A:$C,3,FALSE),G1968)","v":"10.4"},{"$f":"IFERROR(VLOOKUP(H1968,Translation!$A:$C,3,FALSE),H1968)","v":"Maison en rangée"}]
[16,"T4 2019","PROPRIÉTAIRES-OCCUPANTS, À L’UNITÉ","Appartement",10.805505781425863,"Prêts hypothécaires assurés au cours de la période selon le type de logement (%)","10.8","Appartement",{"$f":"IFERROR(VLOOKUP(A1969,Translation!$A:$C,3,FALSE),A1969)","v":16},{"$f":"IFERROR(VLOOKUP(B1969,Translation!$A:$C,3,FALSE),B1969)","v":"T4 2019"},{"$f":"IFERROR(VLOOKUP(C1969,Translation!$A:$C,3,FALSE),C1969)","v":"PROPRIÉTAIRES-OCCUPANTS, À L’UNITÉ"},{"$f":"IFERROR(VLOOKUP(D1969,Translation!$A:$C,3,FALSE),D1969)","v":"Appartement"},{"$f":"IFERROR(VLOOKUP(E1969,Translation!$A:$C,3,FALSE),E1969)","v":10.805505781425863},{"$f":"IFERROR(VLOOKUP(F1969,Translation!$A:$C,3,FALSE),F1969)","v":"Prêts hypothécaires assurés au cours de la période selon le type de logement (%)"},{"$f":"IFERROR(VLOOKUP(G1969,Translation!$A:$C,3,FALSE),G1969)","v":"10.8"},{"$f":"IFERROR(VLOOKUP(H1969,Translation!$A:$C,3,FALSE),H1969)","v":"Appartement"}]
[16,"Cumul 2018","PROPRIÉTAIRES-OCCUPANTS, À L’UNITÉ","Appartement",10.562379398226998,"Prêts hypothécaires assurés au cours de la période selon le type de logement (%)","10.6","Appartement",{"$f":"IFERROR(VLOOKUP(A1970,Translation!$A:$C,3,FALSE),A1970)","v":16},{"$f":"IFERROR(VLOOKUP(B1970,Translation!$A:$C,3,FALSE),B1970)","v":"Cumul 2018"},{"$f":"IFERROR(VLOOKUP(C1970,Translation!$A:$C,3,FALSE),C1970)","v":"PROPRIÉTAIRES-OCCUPANTS, À L’UNITÉ"},{"$f":"IFERROR(VLOOKUP(D1970,Translation!$A:$C,3,FALSE),D1970)","v":"Appartement"},{"$f":"IFERROR(VLOOKUP(E1970,Translation!$A:$C,3,FALSE),E1970)","v":10.562379398226998},{"$f":"IFERROR(VLOOKUP(F1970,Translation!$A:$C,3,FALSE),F1970)","v":"Prêts hypothécaires assurés au cours de la période selon le type de logement (%)"},{"$f":"IFERROR(VLOOKUP(G1970,Translation!$A:$C,3,FALSE),G1970)","v":"10.6"},{"$f":"IFERROR(VLOOKUP(H1970,Translation!$A:$C,3,FALSE),H1970)","v":"Appartement"}]
[16,"T4 2019","PROPRIÉTAIRES-OCCUPANTS, À L’UNITÉ","Jumelé",7.5610113548557472,"Prêts hypothécaires assurés au cours de la période selon le type de logement (%)","7.6","Jumelé",{"$f":"IFERROR(VLOOKUP(A1971,Translation!$A:$C,3,FALSE),A1971)","v":16},{"$f":"IFERROR(VLOOKUP(B1971,Translation!$A:$C,3,FALSE),B1971)","v":"T4 2019"},{"$f":"IFERROR(VLOOKUP(C1971,Translation!$A:$C,3,FALSE),C1971)","v":"PROPRIÉTAIRES-OCCUPANTS, À L’UNITÉ"},{"$f":"IFERROR(VLOOKUP(D1971,Translation!$A:$C,3,FALSE),D1971)","v":"Jumelé"},{"$f":"IFERROR(VLOOKUP(E1971,Translation!$A:$C,3,FALSE),E1971)","v":7.5610113548557472},{"$f":"IFERROR(VLOOKUP(F1971,Translation!$A:$C,3,FALSE),F1971)","v":"Prêts hypothécaires assurés au cours de la période selon le type de logement (%)"},{"$f":"IFERROR(VLOOKUP(G1971,Translation!$A:$C,3,FALSE),G1971)","v":"7.6"},{"$f":"IFERROR(VLOOKUP(H1971,Translation!$A:$C,3,FALSE),H1971)","v":"Jumelé"}]
[16,"Cumul 2018","PROPRIÉTAIRES-OCCUPANTS, À L’UNITÉ","Jumelé",7.9234543784458644,"Prêts hypothécaires assurés au cours de la période selon le type de logement (%)","7.9","Jumelé",{"$f":"IFERROR(VLOOKUP(A1972,Translation!$A:$C,3,FALSE),A1972)","v":16},{"$f":"IFERROR(VLOOKUP(B1972,Translation!$A:$C,3,FALSE),B1972)","v":"Cumul 2018"},{"$f":"IFERROR(VLOOKUP(C1972,Translation!$A:$C,3,FALSE),C1972)","v":"PROPRIÉTAIRES-OCCUPANTS, À L’UNITÉ"},{"$f":"IFERROR(VLOOKUP(D1972,Translation!$A:$C,3,FALSE),D1972)","v":"Jumelé"},{"$f":"IFERROR(VLOOKUP(E1972,Translation!$A:$C,3,FALSE),E1972)","v":7.9234543784458644},{"$f":"IFERROR(VLOOKUP(F1972,Translation!$A:$C,3,FALSE),F1972)","v":"Prêts hypothécaires assurés au cours de la période selon le type de logement (%)"},{"$f":"IFERROR(VLOOKUP(G1972,Translation!$A:$C,3,FALSE),G1972)","v":"7.9"},{"$f":"IFERROR(VLOOKUP(H1972,Translation!$A:$C,3,FALSE),H1972)","v":"Jumelé"}]
[16,"T4 2019","PROPRIÉTAIRES-OCCUPANTS, À L’UNITÉ","Plex",5.04728662646066,"Prêts hypothécaires assurés au cours de la période selon le type de logement (%)","5.0","Plex",{"$f":"IFERROR(VLOOKUP(A1973,Translation!$A:$C,3,FALSE),A1973)","v":16},{"$f":"IFERROR(VLOOKUP(B1973,Translation!$A:$C,3,FALSE),B1973)","v":"T4 2019"},{"$f":"IFERROR(VLOOKUP(C1973,Translation!$A:$C,3,FALSE),C1973)","v":"PROPRIÉTAIRES-OCCUPANTS, À L’UNITÉ"},{"$f":"IFERROR(VLOOKUP(D1973,Translation!$A:$C,3,FALSE),D1973)","v":"Plex"},{"$f":"IFERROR(VLOOKUP(E1973,Translation!$A:$C,3,FALSE),E1973)","v":5.04728662646066},{"$f":"IFERROR(VLOOKUP(F1973,Translation!$A:$C,3,FALSE),F1973)","v":"Prêts hypothécaires assurés au cours de la période selon le type de logement (%)"},{"$f":"IFERROR(VLOOKUP(G1973,Translation!$A:$C,3,FALSE),G1973)","v":"5.0"},{"$f":"IFERROR(VLOOKUP(H1973,Translation!$A:$C,3,FALSE),H1973)","v":"Plex"}]
[16,"Cumul 2018","PROPRIÉTAIRES-OCCUPANTS, À L’UNITÉ","Plex",4.1932162100501493,"Prêts hypothécaires assurés au cours de la période selon le type de logement (%)","4.2","Plex",{"$f":"IFERROR(VLOOKUP(A1974,Translation!$A:$C,3,FALSE),A1974)","v":16},{"$f":"IFERROR(VLOOKUP(B1974,Translation!$A:$C,3,FALSE),B1974)","v":"Cumul 2018"},{"$f":"IFERROR(VLOOKUP(C1974,Translation!$A:$C,3,FALSE),C1974)","v":"PROPRIÉTAIRES-OCCUPANTS, À L’UNITÉ"},{"$f":"IFERROR(VLOOKUP(D1974,Translation!$A:$C,3,FALSE),D1974)","v":"Plex"},{"$f":"IFERROR(VLOOKUP(E1974,Translation!$A:$C,3,FALSE),E1974)","v":4.1932162100501493},{"$f":"IFERROR(VLOOKUP(F1974,Translation!$A:$C,3,FALSE),F1974)","v":"Prêts hypothécaires assurés au cours de la période selon le type de logement (%)"},{"$f":"IFERROR(VLOOKUP(G1974,Translation!$A:$C,3,FALSE),G1974)","v":"4.2"},{"$f":"IFERROR(VLOOKUP(H1974,Translation!$A:$C,3,FALSE),H1974)","v":"Plex"}]
[16,"T4 2019","PROPRIÉTAIRES-OCCUPANTS, À L’UNITÉ","Autre",3.1739498641555146,"Prêts hypothécaires assurés au cours de la période selon le type de logement (%)","3.2","Autre",{"$f":"IFERROR(VLOOKUP(A1975,Translation!$A:$C,3,FALSE),A1975)","v":16},{"$f":"IFERROR(VLOOKUP(B1975,Translation!$A:$C,3,FALSE),B1975)","v":"T4 2019"},{"$f":"IFERROR(VLOOKUP(C1975,Translation!$A:$C,3,FALSE),C1975)","v":"PROPRIÉTAIRES-OCCUPANTS, À L’UNITÉ"},{"$f":"IFERROR(VLOOKUP(D1975,Translation!$A:$C,3,FALSE),D1975)","v":"Autre"},{"$f":"IFERROR(VLOOKUP(E1975,Translation!$A:$C,3,FALSE),E1975)","v":3.1739498641555146},{"$f":"IFERROR(VLOOKUP(F1975,Translation!$A:$C,3,FALSE),F1975)","v":"Prêts hypothécaires assurés au cours de la période selon le type de logement (%)"},{"$f":"IFERROR(VLOOKUP(G1975,Translation!$A:$C,3,FALSE),G1975)","v":"3.2"},{"$f":"IFERROR(VLOOKUP(H1975,Translation!$A:$C,3,FALSE),H1975)","v":"Autre"}]
[16,"Cumul 2018","PROPRIÉTAIRES-OCCUPANTS, À L’UNITÉ","Autre",3.1608641637953259,"Prêts hypothécaires assurés au cours de la période selon le type de logement (%)","3.2","Autre",{"$f":"IFERROR(VLOOKUP(A1976,Translation!$A:$C,3,FALSE),A1976)","v":16},{"$f":"IFERROR(VLOOKUP(B1976,Translation!$A:$C,3,FALSE),B1976)","v":"Cumul 2018"},{"$f":"IFERROR(VLOOKUP(C1976,Translation!$A:$C,3,FALSE),C1976)","v":"PROPRIÉTAIRES-OCCUPANTS, À L’UNITÉ"},{"$f":"IFERROR(VLOOKUP(D1976,Translation!$A:$C,3,FALSE),D1976)","v":"Autre"},{"$f":"IFERROR(VLOOKUP(E1976,Translation!$A:$C,3,FALSE),E1976)","v":3.1608641637953259},{"$f":"IFERROR(VLOOKUP(F1976,Translation!$A:$C,3,FALSE),F1976)","v":"Prêts hypothécaires assurés au cours de la période selon le type de logement (%)"},{"$f":"IFERROR(VLOOKUP(G1976,Translation!$A:$C,3,FALSE),G1976)","v":"3.2"},{"$f":"IFERROR(VLOOKUP(H1976,Translation!$A:$C,3,FALSE),H1976)","v":"Autre"}]
[16,"T4 2019","ASSURANCE DE PORTEFEUILLE","Logement unifamilial",66.518307244520756,"Prêts hypothécaires assurés au cours de la période selon le type de logement (%)","66.5","Logement unifamilial",{"$f":"IFERROR(VLOOKUP(A1977,Translation!$A:$C,3,FALSE),A1977)","v":16},{"$f":"IFERROR(VLOOKUP(B1977,Translation!$A:$C,3,FALSE),B1977)","v":"T4 2019"},{"$f":"IFERROR(VLOOKUP(C1977,Translation!$A:$C,3,FALSE),C1977)","v":"ASSURANCE DE PORTEFEUILLE"},{"$f":"IFERROR(VLOOKUP(D1977,Translation!$A:$C,3,FALSE),D1977)","v":"Logement unifamilial"},{"$f":"IFERROR(VLOOKUP(E1977,Translation!$A:$C,3,FALSE),E1977)","v":66.518307244520756},{"$f":"IFERROR(VLOOKUP(F1977,Translation!$A:$C,3,FALSE),F1977)","v":"Prêts hypothécaires assurés au cours de la période selon le type de logement (%)"},{"$f":"IFERROR(VLOOKUP(G1977,Translation!$A:$C,3,FALSE),G1977)","v":"66.5"},{"$f":"IFERROR(VLOOKUP(H1977,Translation!$A:$C,3,FALSE),H1977)","v":"Logement unifamilial"}]
[16,"Cumul 2018","ASSURANCE DE PORTEFEUILLE","Logement unifamilial",73.937001506974411,"Prêts hypothécaires assurés au cours de la période selon le type de logement (%)","73.9","Logement unifamilial",{"$f":"IFERROR(VLOOKUP(A1978,Translation!$A:$C,3,FALSE),A1978)","v":16},{"$f":"IFERROR(VLOOKUP(B1978,Translation!$A:$C,3,FALSE),B1978)","v":"Cumul 2018"},{"$f":"IFERROR(VLOOKUP(C1978,Translation!$A:$C,3,FALSE),C1978)","v":"ASSURANCE DE PORTEFEUILLE"},{"$f":"IFERROR(VLOOKUP(D1978,Translation!$A:$C,3,FALSE),D1978)","v":"Logement unifamilial"},{"$f":"IFERROR(VLOOKUP(E1978,Translation!$A:$C,3,FALSE),E1978)","v":73.937001506974411},{"$f":"IFERROR(VLOOKUP(F1978,Translation!$A:$C,3,FALSE),F1978)","v":"Prêts hypothécaires assurés au cours de la période selon le type de logement (%)"},{"$f":"IFERROR(VLOOKUP(G1978,Translation!$A:$C,3,FALSE),G1978)","v":"73.9"},{"$f":"IFERROR(VLOOKUP(H1978,Translation!$A:$C,3,FALSE),H1978)","v":"Logement unifamilial"}]
[16,"T4 2019","ASSURANCE DE PORTEFEUILLE","Maison en rangée",13.511507731413699,"Prêts hypothécaires assurés au cours de la période selon le type de logement (%)","13.5","Maison en rangée",{"$f":"IFERROR(VLOOKUP(A1979,Translation!$A:$C,3,FALSE),A1979)","v":16},{"$f":"IFERROR(VLOOKUP(B1979,Translation!$A:$C,3,FALSE),B1979)","v":"T4 2019"},{"$f":"IFERROR(VLOOKUP(C1979,Translation!$A:$C,3,FALSE),C1979)","v":"ASSURANCE DE PORTEFEUILLE"},{"$f":"IFERROR(VLOOKUP(D1979,Translation!$A:$C,3,FALSE),D1979)","v":"Maison en rangée"},{"$f":"IFERROR(VLOOKUP(E1979,Translation!$A:$C,3,FALSE),E1979)","v":13.511507731413699},{"$f":"IFERROR(VLOOKUP(F1979,Translation!$A:$C,3,FALSE),F1979)","v":"Prêts hypothécaires assurés au cours de la période selon le type de logement (%)"},{"$f":"IFERROR(VLOOKUP(G1979,Translation!$A:$C,3,FALSE),G1979)","v":"13.5"},{"$f":"IFERROR(VLOOKUP(H1979,Translation!$A:$C,3,FALSE),H1979)","v":"Maison en rangée"}]
[16,"Cumul 2018","ASSURANCE DE PORTEFEUILLE","Maison en rangée",12.22629842985973,"Prêts hypothécaires assurés au cours de la période selon le type de logement (%)","12.2","Maison en rangée",{"$f":"IFERROR(VLOOKUP(A1980,Translation!$A:$C,3,FALSE),A1980)","v":16},{"$f":"IFERROR(VLOOKUP(B1980,Translation!$A:$C,3,FALSE),B1980)","v":"Cumul 2018"},{"$f":"IFERROR(VLOOKUP(C1980,Translation!$A:$C,3,FALSE),C1980)","v":"ASSURANCE DE PORTEFEUILLE"},{"$f":"IFERROR(VLOOKUP(D1980,Translation!$A:$C,3,FALSE),D1980)","v":"Maison en rangée"},{"$f":"IFERROR(VLOOKUP(E1980,Translation!$A:$C,3,FALSE),E1980)","v":12.22629842985973},{"$f":"IFERROR(VLOOKUP(F1980,Translation!$A:$C,3,FALSE),F1980)","v":"Prêts hypothécaires assurés au cours de la période selon le type de logement (%)"},{"$f":"IFERROR(VLOOKUP(G1980,Translation!$A:$C,3,FALSE),G1980)","v":"12.2"},{"$f":"IFERROR(VLOOKUP(H1980,Translation!$A:$C,3,FALSE),H1980)","v":"Maison en rangée"}]
[16,"T4 2019","ASSURANCE DE PORTEFEUILLE","Appartement",13.055515554489499,"Prêts hypothécaires assurés au cours de la période selon le type de logement (%)","13.1","Appartement",{"$f":"IFERROR(VLOOKUP(A1981,Translation!$A:$C,3,FALSE),A1981)","v":16},{"$f":"IFERROR(VLOOKUP(B1981,Translation!$A:$C,3,FALSE),B1981)","v":"T4 2019"},{"$f":"IFERROR(VLOOKUP(C1981,Translation!$A:$C,3,FALSE),C1981)","v":"ASSURANCE DE PORTEFEUILLE"},{"$f":"IFERROR(VLOOKUP(D1981,Translation!$A:$C,3,FALSE),D1981)","v":"Appartement"},{"$f":"IFERROR(VLOOKUP(E1981,Translation!$A:$C,3,FALSE),E1981)","v":13.055515554489499},{"$f":"IFERROR(VLOOKUP(F1981,Translation!$A:$C,3,FALSE),F1981)","v":"Prêts hypothécaires assurés au cours de la période selon le type de logement (%)"},{"$f":"IFERROR(VLOOKUP(G1981,Translation!$A:$C,3,FALSE),G1981)","v":"13.1"},{"$f":"IFERROR(VLOOKUP(H1981,Translation!$A:$C,3,FALSE),H1981)","v":"Appartement"}]
[16,"Cumul 2018","ASSURANCE DE PORTEFEUILLE","Appartement",8.1914617512942787,"Prêts hypothécaires assurés au cours de la période selon le type de logement (%)","8.2","Appartement",{"$f":"IFERROR(VLOOKUP(A1982,Translation!$A:$C,3,FALSE),A1982)","v":16},{"$f":"IFERROR(VLOOKUP(B1982,Translation!$A:$C,3,FALSE),B1982)","v":"Cumul 2018"},{"$f":"IFERROR(VLOOKUP(C1982,Translation!$A:$C,3,FALSE),C1982)","v":"ASSURANCE DE PORTEFEUILLE"},{"$f":"IFERROR(VLOOKUP(D1982,Translation!$A:$C,3,FALSE),D1982)","v":"Appartement"},{"$f":"IFERROR(VLOOKUP(E1982,Translation!$A:$C,3,FALSE),E1982)","v":8.1914617512942787},{"$f":"IFERROR(VLOOKUP(F1982,Translation!$A:$C,3,FALSE),F1982)","v":"Prêts hypothécaires assurés au cours de la période selon le type de logement (%)"},{"$f":"IFERROR(VLOOKUP(G1982,Translation!$A:$C,3,FALSE),G1982)","v":"8.2"},{"$f":"IFERROR(VLOOKUP(H1982,Translation!$A:$C,3,FALSE),H1982)","v":"Appartement"}]
[16,"T4 2019","ASSURANCE DE PORTEFEUILLE","Jumelé",4.8289216487907423,"Prêts hypothécaires assurés au cours de la période selon le type de logement (%)","4.8","Jumelé",{"$f":"IFERROR(VLOOKUP(A1983,Translation!$A:$C,3,FALSE),A1983)","v":16},{"$f":"IFERROR(VLOOKUP(B1983,Translation!$A:$C,3,FALSE),B1983)","v":"T4 2019"},{"$f":"IFERROR(VLOOKUP(C1983,Translation!$A:$C,3,FALSE),C1983)","v":"ASSURANCE DE PORTEFEUILLE"},{"$f":"IFERROR(VLOOKUP(D1983,Translation!$A:$C,3,FALSE),D1983)","v":"Jumelé"},{"$f":"IFERROR(VLOOKUP(E1983,Translation!$A:$C,3,FALSE),E1983)","v":4.8289216487907423},{"$f":"IFERROR(VLOOKUP(F1983,Translation!$A:$C,3,FALSE),F1983)","v":"Prêts hypothécaires assurés au cours de la période selon le type de logement (%)"},{"$f":"IFERROR(VLOOKUP(G1983,Translation!$A:$C,3,FALSE),G1983)","v":"4.8"},{"$f":"IFERROR(VLOOKUP(H1983,Translation!$A:$C,3,FALSE),H1983)","v":"Jumelé"}]
[16,"Cumul 2018","ASSURANCE DE PORTEFEUILLE","Jumelé",4.8572335706550511,"Prêts hypothécaires assurés au cours de la période selon le type de logement (%)","4.9","Jumelé",{"$f":"IFERROR(VLOOKUP(A1984,Translation!$A:$C,3,FALSE),A1984)","v":16},{"$f":"IFERROR(VLOOKUP(B1984,Translation!$A:$C,3,FALSE),B1984)","v":"Cumul 2018"},{"$f":"IFERROR(VLOOKUP(C1984,Translation!$A:$C,3,FALSE),C1984)","v":"ASSURANCE DE PORTEFEUILLE"},{"$f":"IFERROR(VLOOKUP(D1984,Translation!$A:$C,3,FALSE),D1984)","v":"Jumelé"},{"$f":"IFERROR(VLOOKUP(E1984,Translation!$A:$C,3,FALSE),E1984)","v":4.8572335706550511},{"$f":"IFERROR(VLOOKUP(F1984,Translation!$A:$C,3,FALSE),F1984)","v":"Prêts hypothécaires assurés au cours de la période selon le type de logement (%)"},{"$f":"IFERROR(VLOOKUP(G1984,Translation!$A:$C,3,FALSE),G1984)","v":"4.9"},{"$f":"IFERROR(VLOOKUP(H1984,Translation!$A:$C,3,FALSE),H1984)","v":"Jumelé"}]
[16,"T4 2019","ASSURANCE DE PORTEFEUILLE","Plex",2.0546669633327821,"Prêts hypothécaires assurés au cours de la période selon le type de logement (%)","2.1","Plex",{"$f":"IFERROR(VLOOKUP(A1985,Translation!$A:$C,3,FALSE),A1985)","v":16},{"$f":"IFERROR(VLOOKUP(B1985,Translation!$A:$C,3,FALSE),B1985)","v":"T4 2019"},{"$f":"IFERROR(VLOOKUP(C1985,Translation!$A:$C,3,FALSE),C1985)","v":"ASSURANCE DE PORTEFEUILLE"},{"$f":"IFERROR(VLOOKUP(D1985,Translation!$A:$C,3,FALSE),D1985)","v":"Plex"},{"$f":"IFERROR(VLOOKUP(E1985,Translation!$A:$C,3,FALSE),E1985)","v":2.0546669633327821},{"$f":"IFERROR(VLOOKUP(F1985,Translation!$A:$C,3,FALSE),F1985)","v":"Prêts hypothécaires assurés au cours de la période selon le type de logement (%)"},{"$f":"IFERROR(VLOOKUP(G1985,Translation!$A:$C,3,FALSE),G1985)","v":"2.1"},{"$f":"IFERROR(VLOOKUP(H1985,Translation!$A:$C,3,FALSE),H1985)","v":"Plex"}]
[16,"Cumul 2018","ASSURANCE DE PORTEFEUILLE","Plex",0.50103309640372928,"Prêts hypothécaires assurés au cours de la période selon le type de logement (%)","0.5","Plex",{"$f":"IFERROR(VLOOKUP(A1986,Translation!$A:$C,3,FALSE),A1986)","v":16},{"$f":"IFERROR(VLOOKUP(B1986,Translation!$A:$C,3,FALSE),B1986)","v":"Cumul 2018"},{"$f":"IFERROR(VLOOKUP(C1986,Translation!$A:$C,3,FALSE),C1986)","v":"ASSURANCE DE PORTEFEUILLE"},{"$f":"IFERROR(VLOOKUP(D1986,Translation!$A:$C,3,FALSE),D1986)","v":"Plex"},{"$f":"IFERROR(VLOOKUP(E1986,Translation!$A:$C,3,FALSE),E1986)","v":0.50103309640372928},{"$f":"IFERROR(VLOOKUP(F1986,Translation!$A:$C,3,FALSE),F1986)","v":"Prêts hypothécaires assurés au cours de la période selon le type de logement (%)"},{"$f":"IFERROR(VLOOKUP(G1986,Translation!$A:$C,3,FALSE),G1986)","v":"0.5"},{"$f":"IFERROR(VLOOKUP(H1986,Translation!$A:$C,3,FALSE),H1986)","v":"Plex"}]
[16,"T4 2019","ASSURANCE DE PORTEFEUILLE","Autre",3.1080857452512742E-2,"Prêts hypothécaires assurés au cours de la période selon le type de logement (%)","0.0","Autre",{"$f":"IFERROR(VLOOKUP(A1987,Translation!$A:$C,3,FALSE),A1987)","v":16},{"$f":"IFERROR(VLOOKUP(B1987,Translation!$A:$C,3,FALSE),B1987)","v":"T4 2019"},{"$f":"IFERROR(VLOOKUP(C1987,Translation!$A:$C,3,FALSE),C1987)","v":"ASSURANCE DE PORTEFEUILLE"},{"$f":"IFERROR(VLOOKUP(D1987,Translation!$A:$C,3,FALSE),D1987)","v":"Autre"},{"$f":"IFERROR(VLOOKUP(E1987,Translation!$A:$C,3,FALSE),E1987)","v":3.1080857452512742E-2},{"$f":"IFERROR(VLOOKUP(F1987,Translation!$A:$C,3,FALSE),F1987)","v":"Prêts hypothécaires assurés au cours de la période selon le type de logement (%)"},{"$f":"IFERROR(VLOOKUP(G1987,Translation!$A:$C,3,FALSE),G1987)","v":"0.0"},{"$f":"IFERROR(VLOOKUP(H1987,Translation!$A:$C,3,FALSE),H1987)","v":"Autre"}]
[16,"Cumul 2018","ASSURANCE DE PORTEFEUILLE","Autre",0.2869716448127812,"Prêts hypothécaires assurés au cours de la période selon le type de logement (%)","0.3","Autre",{"$f":"IFERROR(VLOOKUP(A1988,Translation!$A:$C,3,FALSE),A1988)","v":16},{"$f":"IFERROR(VLOOKUP(B1988,Translation!$A:$C,3,FALSE),B1988)","v":"Cumul 2018"},{"$f":"IFERROR(VLOOKUP(C1988,Translation!$A:$C,3,FALSE),C1988)","v":"ASSURANCE DE PORTEFEUILLE"},{"$f":"IFERROR(VLOOKUP(D1988,Translation!$A:$C,3,FALSE),D1988)","v":"Autre"},{"$f":"IFERROR(VLOOKUP(E1988,Translation!$A:$C,3,FALSE),E1988)","v":0.2869716448127812},{"$f":"IFERROR(VLOOKUP(F1988,Translation!$A:$C,3,FALSE),F1988)","v":"Prêts hypothécaires assurés au cours de la période selon le type de logement (%)"},{"$f":"IFERROR(VLOOKUP(G1988,Translation!$A:$C,3,FALSE),G1988)","v":"0.3"},{"$f":"IFERROR(VLOOKUP(H1988,Translation!$A:$C,3,FALSE),H1988)","v":"Autre"}]
[16,"T4 2019","PROPRIÉTAIRES-OCCUPANTS, À L’UNITÉ","Terre-Neuve-et-Labrador",83.755830161362297,"Prêts hypothécaires assurés au cours de la période selon le type de logement (%)","83.8","Terre-Neuve-et-Labrador",{"$f":"IFERROR(VLOOKUP(A1989,Translation!$A:$C,3,FALSE),A1989)","v":16},{"$f":"IFERROR(VLOOKUP(B1989,Translation!$A:$C,3,FALSE),B1989)","v":"T4 2019"},{"$f":"IFERROR(VLOOKUP(C1989,Translation!$A:$C,3,FALSE),C1989)","v":"PROPRIÉTAIRES-OCCUPANTS, À L’UNITÉ"},{"$f":"IFERROR(VLOOKUP(D1989,Translation!$A:$C,3,FALSE),D1989)","v":"Terre-Neuve-et-Labrador"},{"$f":"IFERROR(VLOOKUP(E1989,Translation!$A:$C,3,FALSE),E1989)","v":83.755830161362297},{"$f":"IFERROR(VLOOKUP(F1989,Translation!$A:$C,3,FALSE),F1989)","v":"Prêts hypothécaires assurés au cours de la période selon le type de logement (%)"},{"$f":"IFERROR(VLOOKUP(G1989,Translation!$A:$C,3,FALSE),G1989)","v":"83.8"},{"$f":"IFERROR(VLOOKUP(H1989,Translation!$A:$C,3,FALSE),H1989)","v":"Terre-Neuve-et-Labrador"}]
[16,"Cumul 2018","PROPRIÉTAIRES-OCCUPANTS, À L’UNITÉ","Terre-Neuve-et-Labrador",84.311101540483932,"Prêts hypothécaires assurés au cours de la période selon le type de logement (%)","84.3","Terre-Neuve-et-Labrador",{"$f":"IFERROR(VLOOKUP(A1990,Translation!$A:$C,3,FALSE),A1990)","v":16},{"$f":"IFERROR(VLOOKUP(B1990,Translation!$A:$C,3,FALSE),B1990)","v":"Cumul 2018"},{"$f":"IFERROR(VLOOKUP(C1990,Translation!$A:$C,3,FALSE),C1990)","v":"PROPRIÉTAIRES-OCCUPANTS, À L’UNITÉ"},{"$f":"IFERROR(VLOOKUP(D1990,Translation!$A:$C,3,FALSE),D1990)","v":"Terre-Neuve-et-Labrador"},{"$f":"IFERROR(VLOOKUP(E1990,Translation!$A:$C,3,FALSE),E1990)","v":84.311101540483932},{"$f":"IFERROR(VLOOKUP(F1990,Translation!$A:$C,3,FALSE),F1990)","v":"Prêts hypothécaires assurés au cours de la période selon le type de logement (%)"},{"$f":"IFERROR(VLOOKUP(G1990,Translation!$A:$C,3,FALSE),G1990)","v":"84.3"},{"$f":"IFERROR(VLOOKUP(H1990,Translation!$A:$C,3,FALSE),H1990)","v":"Terre-Neuve-et-Labrador"}]
[16,"T4 2019","PROPRIÉTAIRES-OCCUPANTS, À L’UNITÉ","Île-du-Prince-Édouard",66.199617288171723,"Prêts hypothécaires assurés au cours de la période selon le type de logement (%)","66.2","Île-du-Prince-Édouard",{"$f":"IFERROR(VLOOKUP(A1991,Translation!$A:$C,3,FALSE),A1991)","v":16},{"$f":"IFERROR(VLOOKUP(B1991,Translation!$A:$C,3,FALSE),B1991)","v":"T4 2019"},{"$f":"IFERROR(VLOOKUP(C1991,Translation!$A:$C,3,FALSE),C1991)","v":"PROPRIÉTAIRES-OCCUPANTS, À L’UNITÉ"},{"$f":"IFERROR(VLOOKUP(D1991,Translation!$A:$C,3,FALSE),D1991)","v":"Île-du-Prince-Édouard"},{"$f":"IFERROR(VLOOKUP(E1991,Translation!$A:$C,3,FALSE),E1991)","v":66.199617288171723},{"$f":"IFERROR(VLOOKUP(F1991,Translation!$A:$C,3,FALSE),F1991)","v":"Prêts hypothécaires assurés au cours de la période selon le type de logement (%)"},{"$f":"IFERROR(VLOOKUP(G1991,Translation!$A:$C,3,FALSE),G1991)","v":"66.2"},{"$f":"IFERROR(VLOOKUP(H1991,Translation!$A:$C,3,FALSE),H1991)","v":"Île-du-Prince-Édouard"}]
[16,"Cumul 2018","PROPRIÉTAIRES-OCCUPANTS, À L’UNITÉ","Île-du-Prince-Édouard",77.34081966756122,"Prêts hypothécaires assurés au cours de la période selon le type de logement (%)","77.3","Île-du-Prince-Édouard",{"$f":"IFERROR(VLOOKUP(A1992,Translation!$A:$C,3,FALSE),A1992)","v":16},{"$f":"IFERROR(VLOOKUP(B1992,Translation!$A:$C,3,FALSE),B1992)","v":"Cumul 2018"},{"$f":"IFERROR(VLOOKUP(C1992,Translation!$A:$C,3,FALSE),C1992)","v":"PROPRIÉTAIRES-OCCUPANTS, À L’UNITÉ"},{"$f":"IFERROR(VLOOKUP(D1992,Translation!$A:$C,3,FALSE),D1992)","v":"Île-du-Prince-Édouard"},{"$f":"IFERROR(VLOOKUP(E1992,Translation!$A:$C,3,FALSE),E1992)","v":77.34081966756122},{"$f":"IFERROR(VLOOKUP(F1992,Translation!$A:$C,3,FALSE),F1992)","v":"Prêts hypothécaires assurés au cours de la période selon le type de logement (%)"},{"$f":"IFERROR(VLOOKUP(G1992,Translation!$A:$C,3,FALSE),G1992)","v":"77.3"},{"$f":"IFERROR(VLOOKUP(H1992,Translation!$A:$C,3,FALSE),H1992)","v":"Île-du-Prince-Édouard"}]
[16,"T4 2019","PROPRIÉTAIRES-OCCUPANTS, À L’UNITÉ","Nouvelle-Écosse",78.784825761525994,"Prêts hypothécaires assurés au cours de la période selon le type de logement (%)","78.8","Nouvelle-Écosse",{"$f":"IFERROR(VLOOKUP(A1993,Translation!$A:$C,3,FALSE),A1993)","v":16},{"$f":"IFERROR(VLOOKUP(B1993,Translation!$A:$C,3,FALSE),B1993)","v":"T4 2019"},{"$f":"IFERROR(VLOOKUP(C1993,Translation!$A:$C,3,FALSE),C1993)","v":"PROPRIÉTAIRES-OCCUPANTS, À L’UNITÉ"},{"$f":"IFERROR(VLOOKUP(D1993,Translation!$A:$C,3,FALSE),D1993)","v":"Nouvelle-Écosse"},{"$f":"IFERROR(VLOOKUP(E1993,Translation!$A:$C,3,FALSE),E1993)","v":78.784825761525994},{"$f":"IFERROR(VLOOKUP(F1993,Translation!$A:$C,3,FALSE),F1993)","v":"Prêts hypothécaires assurés au cours de la période selon le type de logement (%)"},{"$f":"IFERROR(VLOOKUP(G1993,Translation!$A:$C,3,FALSE),G1993)","v":"78.8"},{"$f":"IFERROR(VLOOKUP(H1993,Translation!$A:$C,3,FALSE),H1993)","v":"Nouvelle-Écosse"}]
[16,"Cumul 2018","PROPRIÉTAIRES-OCCUPANTS, À L’UNITÉ","Nouvelle-Écosse",79.416503811549518,"Prêts hypothécaires assurés au cours de la période selon le type de logement (%)","79.4","Nouvelle-Écosse",{"$f":"IFERROR(VLOOKUP(A1994,Translation!$A:$C,3,FALSE),A1994)","v":16},{"$f":"IFERROR(VLOOKUP(B1994,Translation!$A:$C,3,FALSE),B1994)","v":"Cumul 2018"},{"$f":"IFERROR(VLOOKUP(C1994,Translation!$A:$C,3,FALSE),C1994)","v":"PROPRIÉTAIRES-OCCUPANTS, À L’UNITÉ"},{"$f":"IFERROR(VLOOKUP(D1994,Translation!$A:$C,3,FALSE),D1994)","v":"Nouvelle-Écosse"},{"$f":"IFERROR(VLOOKUP(E1994,Translation!$A:$C,3,FALSE),E1994)","v":79.416503811549518},{"$f":"IFERROR(VLOOKUP(F1994,Translation!$A:$C,3,FALSE),F1994)","v":"Prêts hypothécaires assurés au cours de la période selon le type de logement (%)"},{"$f":"IFERROR(VLOOKUP(G1994,Translation!$A:$C,3,FALSE),G1994)","v":"79.4"},{"$f":"IFERROR(VLOOKUP(H1994,Translation!$A:$C,3,FALSE),H1994)","v":"Nouvelle-Écosse"}]
[16,"T4 2019","PROPRIÉTAIRES-OCCUPANTS, À L’UNITÉ","Nouveau-Brunswick",81.364350045131985,"Prêts hypothécaires assurés au cours de la période selon le type de logement (%)","81.4","Nouveau-Brunswick",{"$f":"IFERROR(VLOOKUP(A1995,Translation!$A:$C,3,FALSE),A1995)","v":16},{"$f":"IFERROR(VLOOKUP(B1995,Translation!$A:$C,3,FALSE),B1995)","v":"T4 2019"},{"$f":"IFERROR(VLOOKUP(C1995,Translation!$A:$C,3,FALSE),C1995)","v":"PROPRIÉTAIRES-OCCUPANTS, À L’UNITÉ"},{"$f":"IFERROR(VLOOKUP(D1995,Translation!$A:$C,3,FALSE),D1995)","v":"Nouveau-Brunswick"},{"$f":"IFERROR(VLOOKUP(E1995,Translation!$A:$C,3,FALSE),E1995)","v":81.364350045131985},{"$f":"IFERROR(VLOOKUP(F1995,Translation!$A:$C,3,FALSE),F1995)","v":"Prêts hypothécaires assurés au cours de la période selon le type de logement (%)"},{"$f":"IFERROR(VLOOKUP(G1995,Translation!$A:$C,3,FALSE),G1995)","v":"81.4"},{"$f":"IFERROR(VLOOKUP(H1995,Translation!$A:$C,3,FALSE),H1995)","v":"Nouveau-Brunswick"}]
[16,"Cumul 2018","PROPRIÉTAIRES-OCCUPANTS, À L’UNITÉ","Nouveau-Brunswick",83.404968882748236,"Prêts hypothécaires assurés au cours de la période selon le type de logement (%)","83.4","Nouveau-Brunswick",{"$f":"IFERROR(VLOOKUP(A1996,Translation!$A:$C,3,FALSE),A1996)","v":16},{"$f":"IFERROR(VLOOKUP(B1996,Translation!$A:$C,3,FALSE),B1996)","v":"Cumul 2018"},{"$f":"IFERROR(VLOOKUP(C1996,Translation!$A:$C,3,FALSE),C1996)","v":"PROPRIÉTAIRES-OCCUPANTS, À L’UNITÉ"},{"$f":"IFERROR(VLOOKUP(D1996,Translation!$A:$C,3,FALSE),D1996)","v":"Nouveau-Brunswick"},{"$f":"IFERROR(VLOOKUP(E1996,Translation!$A:$C,3,FALSE),E1996)","v":83.404968882748236},{"$f":"IFERROR(VLOOKUP(F1996,Translation!$A:$C,3,FALSE),F1996)","v":"Prêts hypothécaires assurés au cours de la période selon le type de logement (%)"},{"$f":"IFERROR(VLOOKUP(G1996,Translation!$A:$C,3,FALSE),G1996)","v":"83.4"},{"$f":"IFERROR(VLOOKUP(H1996,Translation!$A:$C,3,FALSE),H1996)","v":"Nouveau-Brunswick"}]
[16,"T4 2019","PROPRIÉTAIRES-OCCUPANTS, À L’UNITÉ","Québec",57.269345954637394,"Prêts hypothécaires assurés au cours de la période selon le type de logement (%)","57.3","Québec",{"$f":"IFERROR(VLOOKUP(A1997,Translation!$A:$C,3,FALSE),A1997)","v":16},{"$f":"IFERROR(VLOOKUP(B1997,Translation!$A:$C,3,FALSE),B1997)","v":"T4 2019"},{"$f":"IFERROR(VLOOKUP(C1997,Translation!$A:$C,3,FALSE),C1997)","v":"PROPRIÉTAIRES-OCCUPANTS, À L’UNITÉ"},{"$f":"IFERROR(VLOOKUP(D1997,Translation!$A:$C,3,FALSE),D1997)","v":"Québec"},{"$f":"IFERROR(VLOOKUP(E1997,Translation!$A:$C,3,FALSE),E1997)","v":57.269345954637394},{"$f":"IFERROR(VLOOKUP(F1997,Translation!$A:$C,3,FALSE),F1997)","v":"Prêts hypothécaires assurés au cours de la période selon le type de logement (%)"},{"$f":"IFERROR(VLOOKUP(G1997,Translation!$A:$C,3,FALSE),G1997)","v":"57.3"},{"$f":"IFERROR(VLOOKUP(H1997,Translation!$A:$C,3,FALSE),H1997)","v":"Québec"}]
[16,"Cumul 2018","PROPRIÉTAIRES-OCCUPANTS, À L’UNITÉ","Québec",60.942249592342485,"Prêts hypothécaires assurés au cours de la période selon le type de logement (%)","60.9","Québec",{"$f":"IFERROR(VLOOKUP(A1998,Translation!$A:$C,3,FALSE),A1998)","v":16},{"$f":"IFERROR(VLOOKUP(B1998,Translation!$A:$C,3,FALSE),B1998)","v":"Cumul 2018"},{"$f":"IFERROR(VLOOKUP(C1998,Translation!$A:$C,3,FALSE),C1998)","v":"PROPRIÉTAIRES-OCCUPANTS, À L’UNITÉ"},{"$f":"IFERROR(VLOOKUP(D1998,Translation!$A:$C,3,FALSE),D1998)","v":"Québec"},{"$f":"IFERROR(VLOOKUP(E1998,Translation!$A:$C,3,FALSE),E1998)","v":60.942249592342485},{"$f":"IFERROR(VLOOKUP(F1998,Translation!$A:$C,3,FALSE),F1998)","v":"Prêts hypothécaires assurés au cours de la période selon le type de logement (%)"},{"$f":"IFERROR(VLOOKUP(G1998,Translation!$A:$C,3,FALSE),G1998)","v":"60.9"},{"$f":"IFERROR(VLOOKUP(H1998,Translation!$A:$C,3,FALSE),H1998)","v":"Québec"}]
[16,"T4 2019","PROPRIÉTAIRES-OCCUPANTS, À L’UNITÉ","Ontario",57.475300048282577,"Prêts hypothécaires assurés au cours de la période selon le type de logement (%)","57.5","Ontario",{"$f":"IFERROR(VLOOKUP(A1999,Translation!$A:$C,3,FALSE),A1999)","v":16},{"$f":"IFERROR(VLOOKUP(B1999,Translation!$A:$C,3,FALSE),B1999)","v":"T4 2019"},{"$f":"IFERROR(VLOOKUP(C1999,Translation!$A:$C,3,FALSE),C1999)","v":"PROPRIÉTAIRES-OCCUPANTS, À L’UNITÉ"},{"$f":"IFERROR(VLOOKUP(D1999,Translation!$A:$C,3,FALSE),D1999)","v":"Ontario"},{"$f":"IFERROR(VLOOKUP(E1999,Translation!$A:$C,3,FALSE),E1999)","v":57.475300048282577},{"$f":"IFERROR(VLOOKUP(F1999,Translation!$A:$C,3,FALSE),F1999)","v":"Prêts hypothécaires assurés au cours de la période selon le type de logement (%)"},{"$f":"IFERROR(VLOOKUP(G1999,Translation!$A:$C,3,FALSE),G1999)","v":"57.5"},{"$f":"IFERROR(VLOOKUP(H1999,Translation!$A:$C,3,FALSE),H1999)","v":"Ontario"}]
[16,"Cumul 2018","PROPRIÉTAIRES-OCCUPANTS, À L’UNITÉ","Ontario",58.619784763125551,"Prêts hypothécaires assurés au cours de la période selon le type de logement (%)","58.6","Ontario",{"$f":"IFERROR(VLOOKUP(A2000,Translation!$A:$C,3,FALSE),A2000)","v":16},{"$f":"IFERROR(VLOOKUP(B2000,Translation!$A:$C,3,FALSE),B2000)","v":"Cumul 2018"},{"$f":"IFERROR(VLOOKUP(C2000,Translation!$A:$C,3,FALSE),C2000)","v":"PROPRIÉTAIRES-OCCUPANTS, À L’UNITÉ"},{"$f":"IFERROR(VLOOKUP(D2000,Translation!$A:$C,3,FALSE),D2000)","v":"Ontario"},{"$f":"IFERROR(VLOOKUP(E2000,Translation!$A:$C,3,FALSE),E2000)","v":58.619784763125551},{"$f":"IFERROR(VLOOKUP(F2000,Translation!$A:$C,3,FALSE),F2000)","v":"Prêts hypothécaires assurés au cours de la période selon le type de logement (%)"},{"$f":"IFERROR(VLOOKUP(G2000,Translation!$A:$C,3,FALSE),G2000)","v":"58.6"},{"$f":"IFERROR(VLOOKUP(H2000,Translation!$A:$C,3,FALSE),H2000)","v":"Ontario"}]
[16,"Cumul 2018","PROPRIÉTAIRES-OCCUPANTS, À L’UNITÉ","Manitoba",85.52565134910374,"Prêts hypothécaires assurés au cours de la période selon le type de logement (%)","85.5","Manitoba",{"$f":"IFERROR(VLOOKUP(A2002,Translation!$A:$C,3,FALSE),A2002)","v":16},{"$f":"IFERROR(VLOOKUP(B2002,Translation!$A:$C,3,FALSE),B2002)","v":"Cumul 2018"},{"$f":"IFERROR(VLOOKUP(C2002,Translation!$A:$C,3,FALSE),C2002)","v":"PROPRIÉTAIRES-OCCUPANTS, À L’UNITÉ"},{"$f":"IFERROR(VLOOKUP(D2002,Translation!$A:$C,3,FALSE),D2002)","v":"Manitoba"},{"$f":"IFERROR(VLOOKUP(E2002,Translation!$A:$C,3,FALSE),E2002)","v":85.52565134910374},{"$f":"IFERROR(VLOOKUP(F2002,Translation!$A:$C,3,FALSE),F2002)","v":"Prêts hypothécaires assurés au cours de la période selon le type de logement (%)"},{"$f":"IFERROR(VLOOKUP(G2002,Translation!$A:$C,3,FALSE),G2002)","v":"85.5"},{"$f":"IFERROR(VLOOKUP(H2002,Translation!$A:$C,3,FALSE),H2002)","v":"Manitoba"}]
[16,"T4 2019","PROPRIÉTAIRES-OCCUPANTS, À L’UNITÉ","Saskatchewan",86.450964454444602,"Prêts hypothécaires assurés au cours de la période selon le type de logement (%)","86.5","Saskatchewan",{"$f":"IFERROR(VLOOKUP(A2003,Translation!$A:$C,3,FALSE),A2003)","v":16},{"$f":"IFERROR(VLOOKUP(B2003,Translation!$A:$C,3,FALSE),B2003)","v":"T4 2019"},{"$f":"IFERROR(VLOOKUP(C2003,Translation!$A:$C,3,FALSE),C2003)","v":"PROPRIÉTAIRES-OCCUPANTS, À L’UNITÉ"},{"$f":"IFERROR(VLOOKUP(D2003,Translation!$A:$C,3,FALSE),D2003)","v":"Saskatchewan"},{"$f":"IFERROR(VLOOKUP(E2003,Translation!$A:$C,3,FALSE),E2003)","v":86.450964454444602},{"$f":"IFERROR(VLOOKUP(F2003,Translation!$A:$C,3,FALSE),F2003)","v":"Prêts hypothécaires assurés au cours de la période selon le type de logement (%)"},{"$f":"IFERROR(VLOOKUP(G2003,Translation!$A:$C,3,FALSE),G2003)","v":"86.5"},{"$f":"IFERROR(VLOOKUP(H2003,Translation!$A:$C,3,FALSE),H2003)","v":"Saskatchewan"}]
[16,"Cumul 2018","PROPRIÉTAIRES-OCCUPANTS, À L’UNITÉ","Alberta",71.964060401985506,"Prêts hypothécaires assurés au cours de la période selon le type de logement (%)","72.0","Alberta",{"$f":"IFERROR(VLOOKUP(A2006,Translation!$A:$C,3,FALSE),A2006)","v":16},{"$f":"IFERROR(VLOOKUP(B2006,Translation!$A:$C,3,FALSE),B2006)","v":"Cumul 2018"},{"$f":"IFERROR(VLOOKUP(C2006,Translation!$A:$C,3,FALSE),C2006)","v":"PROPRIÉTAIRES-OCCUPANTS, À L’UNITÉ"},{"$f":"IFERROR(VLOOKUP(D2006,Translation!$A:$C,3,FALSE),D2006)","v":"Alberta"},{"$f":"IFERROR(VLOOKUP(E2006,Translation!$A:$C,3,FALSE),E2006)","v":71.964060401985506},{"$f":"IFERROR(VLOOKUP(F2006,Translation!$A:$C,3,FALSE),F2006)","v":"Prêts hypothécaires assurés au cours de la période selon le type de logement (%)"},{"$f":"IFERROR(VLOOKUP(G2006,Translation!$A:$C,3,FALSE),G2006)","v":"72.0"},{"$f":"IFERROR(VLOOKUP(H2006,Translation!$A:$C,3,FALSE),H2006)","v":"Alberta"}]
[16,"Cumul 2018","PROPRIÉTAIRES-OCCUPANTS, À L’UNITÉ","Colombie-Britannique",49.097667966113718,"Prêts hypothécaires assurés au cours de la période selon le type de logement (%)","49.1","Colombie-Britannique",{"$f":"IFERROR(VLOOKUP(A2008,Translation!$A:$C,3,FALSE),A2008)","v":16},{"$f":"IFERROR(VLOOKUP(B2008,Translation!$A:$C,3,FALSE),B2008)","v":"Cumul 2018"},{"$f":"IFERROR(VLOOKUP(C2008,Translation!$A:$C,3,FALSE),C2008)","v":"PROPRIÉTAIRES-OCCUPANTS, À L’UNITÉ"},{"$f":"IFERROR(VLOOKUP(D2008,Translation!$A:$C,3,FALSE),D2008)","v":"Colombie-Britannique"},{"$f":"IFERROR(VLOOKUP(E2008,Translation!$A:$C,3,FALSE),E2008)","v":49.097667966113718},{"$f":"IFERROR(VLOOKUP(F2008,Translation!$A:$C,3,FALSE),F2008)","v":"Prêts hypothécaires assurés au cours de la période selon le type de logement (%)"},{"$f":"IFERROR(VLOOKUP(G2008,Translation!$A:$C,3,FALSE),G2008)","v":"49.1"},{"$f":"IFERROR(VLOOKUP(H2008,Translation!$A:$C,3,FALSE),H2008)","v":"Colombie-Britannique"}]
[16,"T4 2019","ASSURANCE DE PORTEFEUILLE","Terre-Neuve-et-Labrador",93.458765104743364,"Prêts hypothécaires assurés au cours de la période selon le type de logement (%)","93.5","Terre-Neuve-et-Labrador",{"$f":"IFERROR(VLOOKUP(A2011,Translation!$A:$C,3,FALSE),A2011)","v":16},{"$f":"IFERROR(VLOOKUP(B2011,Translation!$A:$C,3,FALSE),B2011)","v":"T4 2019"},{"$f":"IFERROR(VLOOKUP(C2011,Translation!$A:$C,3,FALSE),C2011)","v":"ASSURANCE DE PORTEFEUILLE"},{"$f":"IFERROR(VLOOKUP(D2011,Translation!$A:$C,3,FALSE),D2011)","v":"Terre-Neuve-et-Labrador"},{"$f":"IFERROR(VLOOKUP(E2011,Translation!$A:$C,3,FALSE),E2011)","v":93.458765104743364},{"$f":"IFERROR(VLOOKUP(F2011,Translation!$A:$C,3,FALSE),F2011)","v":"Prêts hypothécaires assurés au cours de la période selon le type de logement (%)"},{"$f":"IFERROR(VLOOKUP(G2011,Translation!$A:$C,3,FALSE),G2011)","v":"93.5"},{"$f":"IFERROR(VLOOKUP(H2011,Translation!$A:$C,3,FALSE),H2011)","v":"Terre-Neuve-et-Labrador"}]
[16,"Cumul 2018","ASSURANCE DE PORTEFEUILLE","Île-du-Prince-Édouard",100,"Prêts hypothécaires assurés au cours de la période selon le type de logement (%)","100.0","Île-du-Prince-Édouard",{"$f":"IFERROR(VLOOKUP(A2014,Translation!$A:$C,3,FALSE),A2014)","v":16},{"$f":"IFERROR(VLOOKUP(B2014,Translation!$A:$C,3,FALSE),B2014)","v":"Cumul 2018"},{"$f":"IFERROR(VLOOKUP(C2014,Translation!$A:$C,3,FALSE),C2014)","v":"ASSURANCE DE PORTEFEUILLE"},{"$f":"IFERROR(VLOOKUP(D2014,Translation!$A:$C,3,FALSE),D2014)","v":"Île-du-Prince-Édouard"},{"$f":"IFERROR(VLOOKUP(E2014,Translation!$A:$C,3,FALSE),E2014)","v":100},{"$f":"IFERROR(VLOOKUP(F2014,Translation!$A:$C,3,FALSE),F2014)","v":"Prêts hypothécaires assurés au cours de la période selon le type de logement (%)"},{"$f":"IFERROR(VLOOKUP(G2014,Translation!$A:$C,3,FALSE),G2014)","v":"100.0"},{"$f":"IFERROR(VLOOKUP(H2014,Translation!$A:$C,3,FALSE),H2014)","v":"Île-du-Prince-Édouard"}]
[16,"Cumul 2018","ASSURANCE DE PORTEFEUILLE","Nouvelle-Écosse",87.475595812052347,"Prêts hypothécaires assurés au cours de la période selon le type de logement (%)","87.5","Nouvelle-Écosse",{"$f":"IFERROR(VLOOKUP(A2016,Translation!$A:$C,3,FALSE),A2016)","v":16},{"$f":"IFERROR(VLOOKUP(B2016,Translation!$A:$C,3,FALSE),B2016)","v":"Cumul 2018"},{"$f":"IFERROR(VLOOKUP(C2016,Translation!$A:$C,3,FALSE),C2016)","v":"ASSURANCE DE PORTEFEUILLE"},{"$f":"IFERROR(VLOOKUP(D2016,Translation!$A:$C,3,FALSE),D2016)","v":"Nouvelle-Écosse"},{"$f":"IFERROR(VLOOKUP(E2016,Translation!$A:$C,3,FALSE),E2016)","v":87.475595812052347},{"$f":"IFERROR(VLOOKUP(F2016,Translation!$A:$C,3,FALSE),F2016)","v":"Prêts hypothécaires assurés au cours de la période selon le type de logement (%)"},{"$f":"IFERROR(VLOOKUP(G2016,Translation!$A:$C,3,FALSE),G2016)","v":"87.5"},{"$f":"IFERROR(VLOOKUP(H2016,Translation!$A:$C,3,FALSE),H2016)","v":"Nouvelle-Écosse"}]
[16,"T4 2019","ASSURANCE DE PORTEFEUILLE","Nouveau-Brunswick",89.645359543841579,"Prêts hypothécaires assurés au cours de la période selon le type de logement (%)","89.6","Nouveau-Brunswick",{"$f":"IFERROR(VLOOKUP(A2017,Translation!$A:$C,3,FALSE),A2017)","v":16},{"$f":"IFERROR(VLOOKUP(B2017,Translation!$A:$C,3,FALSE),B2017)","v":"T4 2019"},{"$f":"IFERROR(VLOOKUP(C2017,Translation!$A:$C,3,FALSE),C2017)","v":"ASSURANCE DE PORTEFEUILLE"},{"$f":"IFERROR(VLOOKUP(D2017,Translation!$A:$C,3,FALSE),D2017)","v":"Nouveau-Brunswick"},{"$f":"IFERROR(VLOOKUP(E2017,Translation!$A:$C,3,FALSE),E2017)","v":89.645359543841579},{"$f":"IFERROR(VLOOKUP(F2017,Translation!$A:$C,3,FALSE),F2017)","v":"Prêts hypothécaires assurés au cours de la période selon le type de logement (%)"},{"$f":"IFERROR(VLOOKUP(G2017,Translation!$A:$C,3,FALSE),G2017)","v":"89.6"},{"$f":"IFERROR(VLOOKUP(H2017,Translation!$A:$C,3,FALSE),H2017)","v":"Nouveau-Brunswick"}]
[16,"T4 2019","ASSURANCE DE PORTEFEUILLE","Ontario",67.65715351956301,"Prêts hypothécaires assurés au cours de la période selon le type de logement (%)","67.7","Ontario",{"$f":"IFERROR(VLOOKUP(A2021,Translation!$A:$C,3,FALSE),A2021)","v":16},{"$f":"IFERROR(VLOOKUP(B2021,Translation!$A:$C,3,FALSE),B2021)","v":"T4 2019"},{"$f":"IFERROR(VLOOKUP(C2021,Translation!$A:$C,3,FALSE),C2021)","v":"ASSURANCE DE PORTEFEUILLE"},{"$f":"IFERROR(VLOOKUP(D2021,Translation!$A:$C,3,FALSE),D2021)","v":"Ontario"},{"$f":"IFERROR(VLOOKUP(E2021,Translation!$A:$C,3,FALSE),E2021)","v":67.65715351956301},{"$f":"IFERROR(VLOOKUP(F2021,Translation!$A:$C,3,FALSE),F2021)","v":"Prêts hypothécaires assurés au cours de la période selon le type de logement (%)"},{"$f":"IFERROR(VLOOKUP(G2021,Translation!$A:$C,3,FALSE),G2021)","v":"67.7"},{"$f":"IFERROR(VLOOKUP(H2021,Translation!$A:$C,3,FALSE),H2021)","v":"Ontario"}]
[16,"Cumul 2018","ASSURANCE DE PORTEFEUILLE","Ontario",74.487638505537603,"Prêts hypothécaires assurés au cours de la période selon le type de logement (%)","74.5","Ontario",{"$f":"IFERROR(VLOOKUP(A2022,Translation!$A:$C,3,FALSE),A2022)","v":16},{"$f":"IFERROR(VLOOKUP(B2022,Translation!$A:$C,3,FALSE),B2022)","v":"Cumul 2018"},{"$f":"IFERROR(VLOOKUP(C2022,Translation!$A:$C,3,FALSE),C2022)","v":"ASSURANCE DE PORTEFEUILLE"},{"$f":"IFERROR(VLOOKUP(D2022,Translation!$A:$C,3,FALSE),D2022)","v":"Ontario"},{"$f":"IFERROR(VLOOKUP(E2022,Translation!$A:$C,3,FALSE),E2022)","v":74.487638505537603},{"$f":"IFERROR(VLOOKUP(F2022,Translation!$A:$C,3,FALSE),F2022)","v":"Prêts hypothécaires assurés au cours de la période selon le type de logement (%)"},{"$f":"IFERROR(VLOOKUP(G2022,Translation!$A:$C,3,FALSE),G2022)","v":"74.5"},{"$f":"IFERROR(VLOOKUP(H2022,Translation!$A:$C,3,FALSE),H2022)","v":"Ontario"}]
[16,"T4 2019","ASSURANCE DE PORTEFEUILLE","Saskatchewan",89.413887456805284,"Prêts hypothécaires assurés au cours de la période selon le type de logement (%)","89.4","Saskatchewan",{"$f":"IFERROR(VLOOKUP(A2025,Translation!$A:$C,3,FALSE),A2025)","v":16},{"$f":"IFERROR(VLOOKUP(B2025,Translation!$A:$C,3,FALSE),B2025)","v":"T4 2019"},{"$f":"IFERROR(VLOOKUP(C2025,Translation!$A:$C,3,FALSE),C2025)","v":"ASSURANCE DE PORTEFEUILLE"},{"$f":"IFERROR(VLOOKUP(D2025,Translation!$A:$C,3,FALSE),D2025)","v":"Saskatchewan"},{"$f":"IFERROR(VLOOKUP(E2025,Translation!$A:$C,3,FALSE),E2025)","v":89.413887456805284},{"$f":"IFERROR(VLOOKUP(F2025,Translation!$A:$C,3,FALSE),F2025)","v":"Prêts hypothécaires assurés au cours de la période selon le type de logement (%)"},{"$f":"IFERROR(VLOOKUP(G2025,Translation!$A:$C,3,FALSE),G2025)","v":"89.4"},{"$f":"IFERROR(VLOOKUP(H2025,Translation!$A:$C,3,FALSE),H2025)","v":"Saskatchewan"}]
[16,"T4 2019","ASSURANCE DE PORTEFEUILLE","Alberta",75.468884984417798,"Prêts hypothécaires assurés au cours de la période selon le type de logement (%)","75.5","Alberta",{"$f":"IFERROR(VLOOKUP(A2027,Translation!$A:$C,3,FALSE),A2027)","v":16},{"$f":"IFERROR(VLOOKUP(B2027,Translation!$A:$C,3,FALSE),B2027)","v":"T4 2019"},{"$f":"IFERROR(VLOOKUP(C2027,Translation!$A:$C,3,FALSE),C2027)","v":"ASSURANCE DE PORTEFEUILLE"},{"$f":"IFERROR(VLOOKUP(D2027,Translation!$A:$C,3,FALSE),D2027)","v":"Alberta"},{"$f":"IFERROR(VLOOKUP(E2027,Translation!$A:$C,3,FALSE),E2027)","v":75.468884984417798},{"$f":"IFERROR(VLOOKUP(F2027,Translation!$A:$C,3,FALSE),F2027)","v":"Prêts hypothécaires assurés au cours de la période selon le type de logement (%)"},{"$f":"IFERROR(VLOOKUP(G2027,Translation!$A:$C,3,FALSE),G2027)","v":"75.5"},{"$f":"IFERROR(VLOOKUP(H2027,Translation!$A:$C,3,FALSE),H2027)","v":"Alberta"}]
[16,"T4 2019","ASSURANCE DE PORTEFEUILLE","Territoires",55.99215020168684,"Prêts hypothécaires assurés au cours de la période selon le type de logement (%)","56.0","Territoires",{"$f":"IFERROR(VLOOKUP(A2031,Translation!$A:$C,3,FALSE),A2031)","v":16},{"$f":"IFERROR(VLOOKUP(B2031,Translation!$A:$C,3,FALSE),B2031)","v":"T4 2019"},{"$f":"IFERROR(VLOOKUP(C2031,Translation!$A:$C,3,FALSE),C2031)","v":"ASSURANCE DE PORTEFEUILLE"},{"$f":"IFERROR(VLOOKUP(D2031,Translation!$A:$C,3,FALSE),D2031)","v":"Territoires"},{"$f":"IFERROR(VLOOKUP(E2031,Translation!$A:$C,3,FALSE),E2031)","v":55.99215020168684},{"$f":"IFERROR(VLOOKUP(F2031,Translation!$A:$C,3,FALSE),F2031)","v":"Prêts hypothécaires assurés au cours de la période selon le type de logement (%)"},{"$f":"IFERROR(VLOOKUP(G2031,Translation!$A:$C,3,FALSE),G2031)","v":"56.0"},{"$f":"IFERROR(VLOOKUP(H2031,Translation!$A:$C,3,FALSE),H2031)","v":"Territoires"}]
[29,"T4 2019","IMMEUBLES COLLECTIFS RÉSIDENTIELS","Appartement",93.801365974325407,"Prêts hypothécaires assurés au cours de la période selon le type de logement (%)","93.8","Appartement",{"$f":"IFERROR(VLOOKUP(A2032,Translation!$A:$C,3,FALSE),A2032)","v":29},{"$f":"IFERROR(VLOOKUP(B2032,Translation!$A:$C,3,FALSE),B2032)","v":"T4 2019"},{"$f":"IFERROR(VLOOKUP(C2032,Translation!$A:$C,3,FALSE),C2032)","v":"IMMEUBLES COLLECTIFS RÉSIDENTIELS"},{"$f":"IFERROR(VLOOKUP(D2032,Translation!$A:$C,3,FALSE),D2032)","v":"Appartement"},{"$f":"IFERROR(VLOOKUP(E2032,Translation!$A:$C,3,FALSE),E2032)","v":93.801365974325407},{"$f":"IFERROR(VLOOKUP(F2032,Translation!$A:$C,3,FALSE),F2032)","v":"Prêts hypothécaires assurés au cours de la période selon le type de logement (%)"},{"$f":"IFERROR(VLOOKUP(G2032,Translation!$A:$C,3,FALSE),G2032)","v":"93.8"},{"$f":"IFERROR(VLOOKUP(H2032,Translation!$A:$C,3,FALSE),H2032)","v":"Appartement"}]
[29,"Cumul 2018","IMMEUBLES COLLECTIFS RÉSIDENTIELS","Maison de retraite/de repos",10.508488067943908,"Prêts hypothécaires assurés au cours de la période selon le type de logement (%)","10.5","Maison de retraite/de repos",{"$f":"IFERROR(VLOOKUP(A2035,Translation!$A:$C,3,FALSE),A2035)","v":29},{"$f":"IFERROR(VLOOKUP(B2035,Translation!$A:$C,3,FALSE),B2035)","v":"Cumul 2018"},{"$f":"IFERROR(VLOOKUP(C2035,Translation!$A:$C,3,FALSE),C2035)","v":"IMMEUBLES COLLECTIFS RÉSIDENTIELS"},{"$f":"IFERROR(VLOOKUP(D2035,Translation!$A:$C,3,FALSE),D2035)","v":"Maison de retraite/de repos"},{"$f":"IFERROR(VLOOKUP(E2035,Translation!$A:$C,3,FALSE),E2035)","v":10.508488067943908},{"$f":"IFERROR(VLOOKUP(F2035,Translation!$A:$C,3,FALSE),F2035)","v":"Prêts hypothécaires assurés au cours de la période selon le type de logement (%)"},{"$f":"IFERROR(VLOOKUP(G2035,Translation!$A:$C,3,FALSE),G2035)","v":"10.5"},{"$f":"IFERROR(VLOOKUP(H2035,Translation!$A:$C,3,FALSE),H2035)","v":"Maison de retraite/de repos"}]
[29,"T4 2019","IMMEUBLES COLLECTIFS RÉSIDENTIELS","Autre",2.0275019763483013,"Prêts hypothécaires assurés au cours de la période selon le type de logement (%)","2.0","Autre",{"$f":"IFERROR(VLOOKUP(A2036,Translation!$A:$C,3,FALSE),A2036)","v":29},{"$f":"IFERROR(VLOOKUP(B2036,Translation!$A:$C,3,FALSE),B2036)","v":"T4 2019"},{"$f":"IFERROR(VLOOKUP(C2036,Translation!$A:$C,3,FALSE),C2036)","v":"IMMEUBLES COLLECTIFS RÉSIDENTIELS"},{"$f":"IFERROR(VLOOKUP(D2036,Translation!$A:$C,3,FALSE),D2036)","v":"Autre"},{"$f":"IFERROR(VLOOKUP(E2036,Translation!$A:$C,3,FALSE),E2036)","v":2.0275019763483013},{"$f":"IFERROR(VLOOKUP(F2036,Translation!$A:$C,3,FALSE),F2036)","v":"Prêts hypothécaires assurés au cours de la période selon le type de logement (%)"},{"$f":"IFERROR(VLOOKUP(G2036,Translation!$A:$C,3,FALSE),G2036)","v":"2.0"},{"$f":"IFERROR(VLOOKUP(H2036,Translation!$A:$C,3,FALSE),H2036)","v":"Autre"}]
[29,"T4 2019","IMMEUBLES COLLECTIFS RÉSIDENTIELS","Île-du-Prince-Édouard",100,"Prêts hypothécaires assurés au cours de la période selon le type de logement (%)","100.0","Île-du-Prince-Édouard",{"$f":"IFERROR(VLOOKUP(A2040,Translation!$A:$C,3,FALSE),A2040)","v":29},{"$f":"IFERROR(VLOOKUP(B2040,Translation!$A:$C,3,FALSE),B2040)","v":"T4 2019"},{"$f":"IFERROR(VLOOKUP(C2040,Translation!$A:$C,3,FALSE),C2040)","v":"IMMEUBLES COLLECTIFS RÉSIDENTIELS"},{"$f":"IFERROR(VLOOKUP(D2040,Translation!$A:$C,3,FALSE),D2040)","v":"Île-du-Prince-Édouard"},{"$f":"IFERROR(VLOOKUP(E2040,Translation!$A:$C,3,FALSE),E2040)","v":100},{"$f":"IFERROR(VLOOKUP(F2040,Translation!$A:$C,3,FALSE),F2040)","v":"Prêts hypothécaires assurés au cours de la période selon le type de logement (%)"},{"$f":"IFERROR(VLOOKUP(G2040,Translation!$A:$C,3,FALSE),G2040)","v":"100.0"},{"$f":"IFERROR(VLOOKUP(H2040,Translation!$A:$C,3,FALSE),H2040)","v":"Île-du-Prince-Édouard"}]
[29,"T4 2019","IMMEUBLES COLLECTIFS RÉSIDENTIELS","Nouvelle-Écosse",99.582706854581375,"Prêts hypothécaires assurés au cours de la période selon le type de logement (%)","99.6","Nouvelle-Écosse",{"$f":"IFERROR(VLOOKUP(A2042,Translation!$A:$C,3,FALSE),A2042)","v":29},{"$f":"IFERROR(VLOOKUP(B2042,Translation!$A:$C,3,FALSE),B2042)","v":"T4 2019"},{"$f":"IFERROR(VLOOKUP(C2042,Translation!$A:$C,3,FALSE),C2042)","v":"IMMEUBLES COLLECTIFS RÉSIDENTIELS"},{"$f":"IFERROR(VLOOKUP(D2042,Translation!$A:$C,3,FALSE),D2042)","v":"Nouvelle-Écosse"},{"$f":"IFERROR(VLOOKUP(E2042,Translation!$A:$C,3,FALSE),E2042)","v":99.582706854581375},{"$f":"IFERROR(VLOOKUP(F2042,Translation!$A:$C,3,FALSE),F2042)","v":"Prêts hypothécaires assurés au cours de la période selon le type de logement (%)"},{"$f":"IFERROR(VLOOKUP(G2042,Translation!$A:$C,3,FALSE),G2042)","v":"99.6"},{"$f":"IFERROR(VLOOKUP(H2042,Translation!$A:$C,3,FALSE),H2042)","v":"Nouvelle-Écosse"}]
[29,"Cumul 2018","IMMEUBLES COLLECTIFS RÉSIDENTIELS","Nouveau-Brunswick",96.577081561367237,"Prêts hypothécaires assurés au cours de la période selon le type de logement (%)","96.6","Nouveau-Brunswick",{"$f":"IFERROR(VLOOKUP(A2045,Translation!$A:$C,3,FALSE),A2045)","v":29},{"$f":"IFERROR(VLOOKUP(B2045,Translation!$A:$C,3,FALSE),B2045)","v":"Cumul 2018"},{"$f":"IFERROR(VLOOKUP(C2045,Translation!$A:$C,3,FALSE),C2045)","v":"IMMEUBLES COLLECTIFS RÉSIDENTIELS"},{"$f":"IFERROR(VLOOKUP(D2045,Translation!$A:$C,3,FALSE),D2045)","v":"Nouveau-Brunswick"},{"$f":"IFERROR(VLOOKUP(E2045,Translation!$A:$C,3,FALSE),E2045)","v":96.577081561367237},{"$f":"IFERROR(VLOOKUP(F2045,Translation!$A:$C,3,FALSE),F2045)","v":"Prêts hypothécaires assurés au cours de la période selon le type de logement (%)"},{"$f":"IFERROR(VLOOKUP(G2045,Translation!$A:$C,3,FALSE),G2045)","v":"96.6"},{"$f":"IFERROR(VLOOKUP(H2045,Translation!$A:$C,3,FALSE),H2045)","v":"Nouveau-Brunswick"}]
[29,"T4 2019","IMMEUBLES COLLECTIFS RÉSIDENTIELS","Québec",94.306606411975693,"Prêts hypothécaires assurés au cours de la période selon le type de logement (%)","94.3","Québec",{"$f":"IFERROR(VLOOKUP(A2046,Translation!$A:$C,3,FALSE),A2046)","v":29},{"$f":"IFERROR(VLOOKUP(B2046,Translation!$A:$C,3,FALSE),B2046)","v":"T4 2019"},{"$f":"IFERROR(VLOOKUP(C2046,Translation!$A:$C,3,FALSE),C2046)","v":"IMMEUBLES COLLECTIFS RÉSIDENTIELS"},{"$f":"IFERROR(VLOOKUP(D2046,Translation!$A:$C,3,FALSE),D2046)","v":"Québec"},{"$f":"IFERROR(VLOOKUP(E2046,Translation!$A:$C,3,FALSE),E2046)","v":94.306606411975693},{"$f":"IFERROR(VLOOKUP(F2046,Translation!$A:$C,3,FALSE),F2046)","v":"Prêts hypothécaires assurés au cours de la période selon le type de logement (%)"},{"$f":"IFERROR(VLOOKUP(G2046,Translation!$A:$C,3,FALSE),G2046)","v":"94.3"},{"$f":"IFERROR(VLOOKUP(H2046,Translation!$A:$C,3,FALSE),H2046)","v":"Québec"}]
[29,"T4 2019","IMMEUBLES COLLECTIFS RÉSIDENTIELS","Manitoba",73.081699421882391,"Prêts hypothécaires assurés au cours de la période selon le type de logement (%)","73.1","Manitoba",{"$f":"IFERROR(VLOOKUP(A2050,Translation!$A:$C,3,FALSE),A2050)","v":29},{"$f":"IFERROR(VLOOKUP(B2050,Translation!$A:$C,3,FALSE),B2050)","v":"T4 2019"},{"$f":"IFERROR(VLOOKUP(C2050,Translation!$A:$C,3,FALSE),C2050)","v":"IMMEUBLES COLLECTIFS RÉSIDENTIELS"},{"$f":"IFERROR(VLOOKUP(D2050,Translation!$A:$C,3,FALSE),D2050)","v":"Manitoba"},{"$f":"IFERROR(VLOOKUP(E2050,Translation!$A:$C,3,FALSE),E2050)","v":73.081699421882391},{"$f":"IFERROR(VLOOKUP(F2050,Translation!$A:$C,3,FALSE),F2050)","v":"Prêts hypothécaires assurés au cours de la période selon le type de logement (%)"},{"$f":"IFERROR(VLOOKUP(G2050,Translation!$A:$C,3,FALSE),G2050)","v":"73.1"},{"$f":"IFERROR(VLOOKUP(H2050,Translation!$A:$C,3,FALSE),H2050)","v":"Manitoba"}]
[29,"Cumul 2018","IMMEUBLES COLLECTIFS RÉSIDENTIELS","Manitoba",100,"Prêts hypothécaires assurés au cours de la période selon le type de logement (%)","100.0","Manitoba",{"$f":"IFERROR(VLOOKUP(A2051,Translation!$A:$C,3,FALSE),A2051)","v":29},{"$f":"IFERROR(VLOOKUP(B2051,Translation!$A:$C,3,FALSE),B2051)","v":"Cumul 2018"},{"$f":"IFERROR(VLOOKUP(C2051,Translation!$A:$C,3,FALSE),C2051)","v":"IMMEUBLES COLLECTIFS RÉSIDENTIELS"},{"$f":"IFERROR(VLOOKUP(D2051,Translation!$A:$C,3,FALSE),D2051)","v":"Manitoba"},{"$f":"IFERROR(VLOOKUP(E2051,Translation!$A:$C,3,FALSE),E2051)","v":100},{"$f":"IFERROR(VLOOKUP(F2051,Translation!$A:$C,3,FALSE),F2051)","v":"Prêts hypothécaires assurés au cours de la période selon le type de logement (%)"},{"$f":"IFERROR(VLOOKUP(G2051,Translation!$A:$C,3,FALSE),G2051)","v":"100.0"},{"$f":"IFERROR(VLOOKUP(H2051,Translation!$A:$C,3,FALSE),H2051)","v":"Manitoba"}]
[29,"Cumul 2018","IMMEUBLES COLLECTIFS RÉSIDENTIELS","Saskatchewan",94.915885252656878,"Prêts hypothécaires assurés au cours de la période selon le type de logement (%)","94.9","Saskatchewan",{"$f":"IFERROR(VLOOKUP(A2053,Translation!$A:$C,3,FALSE),A2053)","v":29},{"$f":"IFERROR(VLOOKUP(B2053,Translation!$A:$C,3,FALSE),B2053)","v":"Cumul 2018"},{"$f":"IFERROR(VLOOKUP(C2053,Translation!$A:$C,3,FALSE),C2053)","v":"IMMEUBLES COLLECTIFS RÉSIDENTIELS"},{"$f":"IFERROR(VLOOKUP(D2053,Translation!$A:$C,3,FALSE),D2053)","v":"Saskatchewan"},{"$f":"IFERROR(VLOOKUP(E2053,Translation!$A:$C,3,FALSE),E2053)","v":94.915885252656878},{"$f":"IFERROR(VLOOKUP(F2053,Translation!$A:$C,3,FALSE),F2053)","v":"Prêts hypothécaires assurés au cours de la période selon le type de logement (%)"},{"$f":"IFERROR(VLOOKUP(G2053,Translation!$A:$C,3,FALSE),G2053)","v":"94.9"},{"$f":"IFERROR(VLOOKUP(H2053,Translation!$A:$C,3,FALSE),H2053)","v":"Saskatchewan"}]
[29,"T4 2019","IMMEUBLES COLLECTIFS RÉSIDENTIELS","Colombie-Britannique",96.173295452569249,"Prêts hypothécaires assurés au cours de la période selon le type de logement (%)","96.2","Colombie-Britannique",{"$f":"IFERROR(VLOOKUP(A2056,Translation!$A:$C,3,FALSE),A2056)","v":29},{"$f":"IFERROR(VLOOKUP(B2056,Translation!$A:$C,3,FALSE),B2056)","v":"T4 2019"},{"$f":"IFERROR(VLOOKUP(C2056,Translation!$A:$C,3,FALSE),C2056)","v":"IMMEUBLES COLLECTIFS RÉSIDENTIELS"},{"$f":"IFERROR(VLOOKUP(D2056,Translation!$A:$C,3,FALSE),D2056)","v":"Colombie-Britannique"},{"$f":"IFERROR(VLOOKUP(E2056,Translation!$A:$C,3,FALSE),E2056)","v":96.173295452569249},{"$f":"IFERROR(VLOOKUP(F2056,Translation!$A:$C,3,FALSE),F2056)","v":"Prêts hypothécaires assurés au cours de la période selon le type de logement (%)"},{"$f":"IFERROR(VLOOKUP(G2056,Translation!$A:$C,3,FALSE),G2056)","v":"96.2"},{"$f":"IFERROR(VLOOKUP(H2056,Translation!$A:$C,3,FALSE),H2056)","v":"Colombie-Britannique"}]
[29,"Cumul 2018","IMMEUBLES COLLECTIFS RÉSIDENTIELS","Territoires",38.218638826769578,"Prêts hypothécaires assurés au cours de la période selon le type de logement (%)","38.2","Territoires",{"$f":"IFERROR(VLOOKUP(A2059,Translation!$A:$C,3,FALSE),A2059)","v":29},{"$f":"IFERROR(VLOOKUP(B2059,Translation!$A:$C,3,FALSE),B2059)","v":"Cumul 2018"},{"$f":"IFERROR(VLOOKUP(C2059,Translation!$A:$C,3,FALSE),C2059)","v":"IMMEUBLES COLLECTIFS RÉSIDENTIELS"},{"$f":"IFERROR(VLOOKUP(D2059,Translation!$A:$C,3,FALSE),D2059)","v":"Territoires"},{"$f":"IFERROR(VLOOKUP(E2059,Translation!$A:$C,3,FALSE),E2059)","v":38.218638826769578},{"$f":"IFERROR(VLOOKUP(F2059,Translation!$A:$C,3,FALSE),F2059)","v":"Prêts hypothécaires assurés au cours de la période selon le type de logement (%)"},{"$f":"IFERROR(VLOOKUP(G2059,Translation!$A:$C,3,FALSE),G2059)","v":"38.2"},{"$f":"IFERROR(VLOOKUP(H2059,Translation!$A:$C,3,FALSE),H2059)","v":"Territoires"}]
[16,"T3 2019","PROPRIÉTAIRES-OCCUPANTS, À L’UNITÉ","Maison en rangée",10.589133921119048,"Prêts hypothécaires assurés au cours de la période selon le type de logement (%)","10.6","Maison en rangée",{"$f":"IFERROR(VLOOKUP(A2061,Translation!$A:$C,3,FALSE),A2061)","v":16},{"$f":"IFERROR(VLOOKUP(B2061,Translation!$A:$C,3,FALSE),B2061)","v":"T3 2019"},{"$f":"IFERROR(VLOOKUP(C2061,Translation!$A:$C,3,FALSE),C2061)","v":"PROPRIÉTAIRES-OCCUPANTS, À L’UNITÉ"},{"$f":"IFERROR(VLOOKUP(D2061,Translation!$A:$C,3,FALSE),D2061)","v":"Maison en rangée"},{"$f":"IFERROR(VLOOKUP(E2061,Translation!$A:$C,3,FALSE),E2061)","v":10.589133921119048},{"$f":"IFERROR(VLOOKUP(F2061,Translation!$A:$C,3,FALSE),F2061)","v":"Prêts hypothécaires assurés au cours de la période selon le type de logement (%)"},{"$f":"IFERROR(VLOOKUP(G2061,Translation!$A:$C,3,FALSE),G2061)","v":"10.6"},{"$f":"IFERROR(VLOOKUP(H2061,Translation!$A:$C,3,FALSE),H2061)","v":"Maison en rangée"}]
[16,"T3 2019","PROPRIÉTAIRES-OCCUPANTS, À L’UNITÉ","Plex",3.6390001100508096,"Prêts hypothécaires assurés au cours de la période selon le type de logement (%)","3.6","Plex",{"$f":"IFERROR(VLOOKUP(A2064,Translation!$A:$C,3,FALSE),A2064)","v":16},{"$f":"IFERROR(VLOOKUP(B2064,Translation!$A:$C,3,FALSE),B2064)","v":"T3 2019"},{"$f":"IFERROR(VLOOKUP(C2064,Translation!$A:$C,3,FALSE),C2064)","v":"PROPRIÉTAIRES-OCCUPANTS, À L’UNITÉ"},{"$f":"IFERROR(VLOOKUP(D2064,Translation!$A:$C,3,FALSE),D2064)","v":"Plex"},{"$f":"IFERROR(VLOOKUP(E2064,Translation!$A:$C,3,FALSE),E2064)","v":3.6390001100508096},{"$f":"IFERROR(VLOOKUP(F2064,Translation!$A:$C,3,FALSE),F2064)","v":"Prêts hypothécaires assurés au cours de la période selon le type de logement (%)"},{"$f":"IFERROR(VLOOKUP(G2064,Translation!$A:$C,3,FALSE),G2064)","v":"3.6"},{"$f":"IFERROR(VLOOKUP(H2064,Translation!$A:$C,3,FALSE),H2064)","v":"Plex"}]
[16,"T3 2019","ASSURANCE DE PORTEFEUILLE","Maison en rangée",7.6029885491343361,"Prêts hypothécaires assurés au cours de la période selon le type de logement (%)","7.6","Maison en rangée",{"$f":"IFERROR(VLOOKUP(A2067,Translation!$A:$C,3,FALSE),A2067)","v":16},{"$f":"IFERROR(VLOOKUP(B2067,Translation!$A:$C,3,FALSE),B2067)","v":"T3 2019"},{"$f":"IFERROR(VLOOKUP(C2067,Translation!$A:$C,3,FALSE),C2067)","v":"ASSURANCE DE PORTEFEUILLE"},{"$f":"IFERROR(VLOOKUP(D2067,Translation!$A:$C,3,FALSE),D2067)","v":"Maison en rangée"},{"$f":"IFERROR(VLOOKUP(E2067,Translation!$A:$C,3,FALSE),E2067)","v":7.6029885491343361},{"$f":"IFERROR(VLOOKUP(F2067,Translation!$A:$C,3,FALSE),F2067)","v":"Prêts hypothécaires assurés au cours de la période selon le type de logement (%)"},{"$f":"IFERROR(VLOOKUP(G2067,Translation!$A:$C,3,FALSE),G2067)","v":"7.6"},{"$f":"IFERROR(VLOOKUP(H2067,Translation!$A:$C,3,FALSE),H2067)","v":"Maison en rangée"}]
[16,"T3 2019","ASSURANCE DE PORTEFEUILLE","Jumelé",7.0594142698813478,"Prêts hypothécaires assurés au cours de la période selon le type de logement (%)","7.1","Jumelé",{"$f":"IFERROR(VLOOKUP(A2069,Translation!$A:$C,3,FALSE),A2069)","v":16},{"$f":"IFERROR(VLOOKUP(B2069,Translation!$A:$C,3,FALSE),B2069)","v":"T3 2019"},{"$f":"IFERROR(VLOOKUP(C2069,Translation!$A:$C,3,FALSE),C2069)","v":"ASSURANCE DE PORTEFEUILLE"},{"$f":"IFERROR(VLOOKUP(D2069,Translation!$A:$C,3,FALSE),D2069)","v":"Jumelé"},{"$f":"IFERROR(VLOOKUP(E2069,Translation!$A:$C,3,FALSE),E2069)","v":7.0594142698813478},{"$f":"IFERROR(VLOOKUP(F2069,Translation!$A:$C,3,FALSE),F2069)","v":"Prêts hypothécaires assurés au cours de la période selon le type de logement (%)"},{"$f":"IFERROR(VLOOKUP(G2069,Translation!$A:$C,3,FALSE),G2069)","v":"7.1"},{"$f":"IFERROR(VLOOKUP(H2069,Translation!$A:$C,3,FALSE),H2069)","v":"Jumelé"}]
[16,"T3 2019","ASSURANCE DE PORTEFEUILLE","Plex",0.63815853012296087,"Prêts hypothécaires assurés au cours de la période selon le type de logement (%)","0.6","Plex",{"$f":"IFERROR(VLOOKUP(A2070,Translation!$A:$C,3,FALSE),A2070)","v":16},{"$f":"IFERROR(VLOOKUP(B2070,Translation!$A:$C,3,FALSE),B2070)","v":"T3 2019"},{"$f":"IFERROR(VLOOKUP(C2070,Translation!$A:$C,3,FALSE),C2070)","v":"ASSURANCE DE PORTEFEUILLE"},{"$f":"IFERROR(VLOOKUP(D2070,Translation!$A:$C,3,FALSE),D2070)","v":"Plex"},{"$f":"IFERROR(VLOOKUP(E2070,Translation!$A:$C,3,FALSE),E2070)","v":0.63815853012296087},{"$f":"IFERROR(VLOOKUP(F2070,Translation!$A:$C,3,FALSE),F2070)","v":"Prêts hypothécaires assurés au cours de la période selon le type de logement (%)"},{"$f":"IFERROR(VLOOKUP(G2070,Translation!$A:$C,3,FALSE),G2070)","v":"0.6"},{"$f":"IFERROR(VLOOKUP(H2070,Translation!$A:$C,3,FALSE),H2070)","v":"Plex"}]
[16,"T3 2019","PROPRIÉTAIRES-OCCUPANTS, À L’UNITÉ","Terre-Neuve-et-Labrador",83.558794354523741,"Prêts hypothécaires assurés au cours de la période selon le type de logement (%)","83.6","Terre-Neuve-et-Labrador",{"$f":"IFERROR(VLOOKUP(A2072,Translation!$A:$C,3,FALSE),A2072)","v":16},{"$f":"IFERROR(VLOOKUP(B2072,Translation!$A:$C,3,FALSE),B2072)","v":"T3 2019"},{"$f":"IFERROR(VLOOKUP(C2072,Translation!$A:$C,3,FALSE),C2072)","v":"PROPRIÉTAIRES-OCCUPANTS, À L’UNITÉ"},{"$f":"IFERROR(VLOOKUP(D2072,Translation!$A:$C,3,FALSE),D2072)","v":"Terre-Neuve-et-Labrador"},{"$f":"IFERROR(VLOOKUP(E2072,Translation!$A:$C,3,FALSE),E2072)","v":83.558794354523741},{"$f":"IFERROR(VLOOKUP(F2072,Translation!$A:$C,3,FALSE),F2072)","v":"Prêts hypothécaires assurés au cours de la période selon le type de logement (%)"},{"$f":"IFERROR(VLOOKUP(G2072,Translation!$A:$C,3,FALSE),G2072)","v":"83.6"},{"$f":"IFERROR(VLOOKUP(H2072,Translation!$A:$C,3,FALSE),H2072)","v":"Terre-Neuve-et-Labrador"}]
[16,"T3 2019","PROPRIÉTAIRES-OCCUPANTS, À L’UNITÉ","Nouveau-Brunswick",82.439889349350722,"Prêts hypothécaires assurés au cours de la période selon le type de logement (%)","82.4","Nouveau-Brunswick",{"$f":"IFERROR(VLOOKUP(A2075,Translation!$A:$C,3,FALSE),A2075)","v":16},{"$f":"IFERROR(VLOOKUP(B2075,Translation!$A:$C,3,FALSE),B2075)","v":"T3 2019"},{"$f":"IFERROR(VLOOKUP(C2075,Translation!$A:$C,3,FALSE),C2075)","v":"PROPRIÉTAIRES-OCCUPANTS, À L’UNITÉ"},{"$f":"IFERROR(VLOOKUP(D2075,Translation!$A:$C,3,FALSE),D2075)","v":"Nouveau-Brunswick"},{"$f":"IFERROR(VLOOKUP(E2075,Translation!$A:$C,3,FALSE),E2075)","v":82.439889349350722},{"$f":"IFERROR(VLOOKUP(F2075,Translation!$A:$C,3,FALSE),F2075)","v":"Prêts hypothécaires assurés au cours de la période selon le type de logement (%)"},{"$f":"IFERROR(VLOOKUP(G2075,Translation!$A:$C,3,FALSE),G2075)","v":"82.4"},{"$f":"IFERROR(VLOOKUP(H2075,Translation!$A:$C,3,FALSE),H2075)","v":"Nouveau-Brunswick"}]
[16,"T3 2019","PROPRIÉTAIRES-OCCUPANTS, À L’UNITÉ","Manitoba",86.532225405497613,"Prêts hypothécaires assurés au cours de la période selon le type de logement (%)","86.5","Manitoba",{"$f":"IFERROR(VLOOKUP(A2078,Translation!$A:$C,3,FALSE),A2078)","v":16},{"$f":"IFERROR(VLOOKUP(B2078,Translation!$A:$C,3,FALSE),B2078)","v":"T3 2019"},{"$f":"IFERROR(VLOOKUP(C2078,Translation!$A:$C,3,FALSE),C2078)","v":"PROPRIÉTAIRES-OCCUPANTS, À L’UNITÉ"},{"$f":"IFERROR(VLOOKUP(D2078,Translation!$A:$C,3,FALSE),D2078)","v":"Manitoba"},{"$f":"IFERROR(VLOOKUP(E2078,Translation!$A:$C,3,FALSE),E2078)","v":86.532225405497613},{"$f":"IFERROR(VLOOKUP(F2078,Translation!$A:$C,3,FALSE),F2078)","v":"Prêts hypothécaires assurés au cours de la période selon le type de logement (%)"},{"$f":"IFERROR(VLOOKUP(G2078,Translation!$A:$C,3,FALSE),G2078)","v":"86.5"},{"$f":"IFERROR(VLOOKUP(H2078,Translation!$A:$C,3,FALSE),H2078)","v":"Manitoba"}]
[16,"T3 2019","PROPRIÉTAIRES-OCCUPANTS, À L’UNITÉ","Alberta",73.411287399860555,"Prêts hypothécaires assurés au cours de la période selon le type de logement (%)","73.4","Alberta",{"$f":"IFERROR(VLOOKUP(A2080,Translation!$A:$C,3,FALSE),A2080)","v":16},{"$f":"IFERROR(VLOOKUP(B2080,Translation!$A:$C,3,FALSE),B2080)","v":"T3 2019"},{"$f":"IFERROR(VLOOKUP(C2080,Translation!$A:$C,3,FALSE),C2080)","v":"PROPRIÉTAIRES-OCCUPANTS, À L’UNITÉ"},{"$f":"IFERROR(VLOOKUP(D2080,Translation!$A:$C,3,FALSE),D2080)","v":"Alberta"},{"$f":"IFERROR(VLOOKUP(E2080,Translation!$A:$C,3,FALSE),E2080)","v":73.411287399860555},{"$f":"IFERROR(VLOOKUP(F2080,Translation!$A:$C,3,FALSE),F2080)","v":"Prêts hypothécaires assurés au cours de la période selon le type de logement (%)"},{"$f":"IFERROR(VLOOKUP(G2080,Translation!$A:$C,3,FALSE),G2080)","v":"73.4"},{"$f":"IFERROR(VLOOKUP(H2080,Translation!$A:$C,3,FALSE),H2080)","v":"Alberta"}]
[16,"T3 2019","ASSURANCE DE PORTEFEUILLE","Nouvelle-Écosse",92.869156636347654,"Prêts hypothécaires assurés au cours de la période selon le type de logement (%)","92.9","Nouvelle-Écosse",{"$f":"IFERROR(VLOOKUP(A2083,Translation!$A:$C,3,FALSE),A2083)","v":16},{"$f":"IFERROR(VLOOKUP(B2083,Translation!$A:$C,3,FALSE),B2083)","v":"T3 2019"},{"$f":"IFERROR(VLOOKUP(C2083,Translation!$A:$C,3,FALSE),C2083)","v":"ASSURANCE DE PORTEFEUILLE"},{"$f":"IFERROR(VLOOKUP(D2083,Translation!$A:$C,3,FALSE),D2083)","v":"Nouvelle-Écosse"},{"$f":"IFERROR(VLOOKUP(E2083,Translation!$A:$C,3,FALSE),E2083)","v":92.869156636347654},{"$f":"IFERROR(VLOOKUP(F2083,Translation!$A:$C,3,FALSE),F2083)","v":"Prêts hypothécaires assurés au cours de la période selon le type de logement (%)"},{"$f":"IFERROR(VLOOKUP(G2083,Translation!$A:$C,3,FALSE),G2083)","v":"92.9"},{"$f":"IFERROR(VLOOKUP(H2083,Translation!$A:$C,3,FALSE),H2083)","v":"Nouvelle-Écosse"}]
[16,"T3 2019","ASSURANCE DE PORTEFEUILLE","Ontario",73.020255798338113,"Prêts hypothécaires assurés au cours de la période selon le type de logement (%)","73.0","Ontario",{"$f":"IFERROR(VLOOKUP(A2086,Translation!$A:$C,3,FALSE),A2086)","v":16},{"$f":"IFERROR(VLOOKUP(B2086,Translation!$A:$C,3,FALSE),B2086)","v":"T3 2019"},{"$f":"IFERROR(VLOOKUP(C2086,Translation!$A:$C,3,FALSE),C2086)","v":"ASSURANCE DE PORTEFEUILLE"},{"$f":"IFERROR(VLOOKUP(D2086,Translation!$A:$C,3,FALSE),D2086)","v":"Ontario"},{"$f":"IFERROR(VLOOKUP(E2086,Translation!$A:$C,3,FALSE),E2086)","v":73.020255798338113},{"$f":"IFERROR(VLOOKUP(F2086,Translation!$A:$C,3,FALSE),F2086)","v":"Prêts hypothécaires assurés au cours de la période selon le type de logement (%)"},{"$f":"IFERROR(VLOOKUP(G2086,Translation!$A:$C,3,FALSE),G2086)","v":"73.0"},{"$f":"IFERROR(VLOOKUP(H2086,Translation!$A:$C,3,FALSE),H2086)","v":"Ontario"}]
[16,"T3 2019","ASSURANCE DE PORTEFEUILLE","Saskatchewan",95.881635720506878,"Prêts hypothécaires assurés au cours de la période selon le type de logement (%)","95.9","Saskatchewan",{"$f":"IFERROR(VLOOKUP(A2088,Translation!$A:$C,3,FALSE),A2088)","v":16},{"$f":"IFERROR(VLOOKUP(B2088,Translation!$A:$C,3,FALSE),B2088)","v":"T3 2019"},{"$f":"IFERROR(VLOOKUP(C2088,Translation!$A:$C,3,FALSE),C2088)","v":"ASSURANCE DE PORTEFEUILLE"},{"$f":"IFERROR(VLOOKUP(D2088,Translation!$A:$C,3,FALSE),D2088)","v":"Saskatchewan"},{"$f":"IFERROR(VLOOKUP(E2088,Translation!$A:$C,3,FALSE),E2088)","v":95.881635720506878},{"$f":"IFERROR(VLOOKUP(F2088,Translation!$A:$C,3,FALSE),F2088)","v":"Prêts hypothécaires assurés au cours de la période selon le type de logement (%)"},{"$f":"IFERROR(VLOOKUP(G2088,Translation!$A:$C,3,FALSE),G2088)","v":"95.9"},{"$f":"IFERROR(VLOOKUP(H2088,Translation!$A:$C,3,FALSE),H2088)","v":"Saskatchewan"}]
[16,"T3 2019","ASSURANCE DE PORTEFEUILLE","Alberta",85.483303027905222,"Prêts hypothécaires assurés au cours de la période selon le type de logement (%)","85.5","Alberta",{"$f":"IFERROR(VLOOKUP(A2089,Translation!$A:$C,3,FALSE),A2089)","v":16},{"$f":"IFERROR(VLOOKUP(B2089,Translation!$A:$C,3,FALSE),B2089)","v":"T3 2019"},{"$f":"IFERROR(VLOOKUP(C2089,Translation!$A:$C,3,FALSE),C2089)","v":"ASSURANCE DE PORTEFEUILLE"},{"$f":"IFERROR(VLOOKUP(D2089,Translation!$A:$C,3,FALSE),D2089)","v":"Alberta"},{"$f":"IFERROR(VLOOKUP(E2089,Translation!$A:$C,3,FALSE),E2089)","v":85.483303027905222},{"$f":"IFERROR(VLOOKUP(F2089,Translation!$A:$C,3,FALSE),F2089)","v":"Prêts hypothécaires assurés au cours de la période selon le type de logement (%)"},{"$f":"IFERROR(VLOOKUP(G2089,Translation!$A:$C,3,FALSE),G2089)","v":"85.5"},{"$f":"IFERROR(VLOOKUP(H2089,Translation!$A:$C,3,FALSE),H2089)","v":"Alberta"}]
[29,"T3 2019","IMMEUBLES COLLECTIFS RÉSIDENTIELS","Autre",6.2685323972161342,"Prêts hypothécaires assurés au cours de la période selon le type de logement (%)","6.3","Autre",{"$f":"IFERROR(VLOOKUP(A2093,Translation!$A:$C,3,FALSE),A2093)","v":29},{"$f":"IFERROR(VLOOKUP(B2093,Translation!$A:$C,3,FALSE),B2093)","v":"T3 2019"},{"$f":"IFERROR(VLOOKUP(C2093,Translation!$A:$C,3,FALSE),C2093)","v":"IMMEUBLES COLLECTIFS RÉSIDENTIELS"},{"$f":"IFERROR(VLOOKUP(D2093,Translation!$A:$C,3,FALSE),D2093)","v":"Autre"},{"$f":"IFERROR(VLOOKUP(E2093,Translation!$A:$C,3,FALSE),E2093)","v":6.2685323972161342},{"$f":"IFERROR(VLOOKUP(F2093,Translation!$A:$C,3,FALSE),F2093)","v":"Prêts hypothécaires assurés au cours de la période selon le type de logement (%)"},{"$f":"IFERROR(VLOOKUP(G2093,Translation!$A:$C,3,FALSE),G2093)","v":"6.3"},{"$f":"IFERROR(VLOOKUP(H2093,Translation!$A:$C,3,FALSE),H2093)","v":"Autre"}]
[29,"T3 2019","IMMEUBLES COLLECTIFS RÉSIDENTIELS","Île-du-Prince-Édouard",100,"Prêts hypothécaires assurés au cours de la période selon le type de logement (%)","100.0","Île-du-Prince-Édouard",{"$f":"IFERROR(VLOOKUP(A2094,Translation!$A:$C,3,FALSE),A2094)","v":29},{"$f":"IFERROR(VLOOKUP(B2094,Translation!$A:$C,3,FALSE),B2094)","v":"T3 2019"},{"$f":"IFERROR(VLOOKUP(C2094,Translation!$A:$C,3,FALSE),C2094)","v":"IMMEUBLES COLLECTIFS RÉSIDENTIELS"},{"$f":"IFERROR(VLOOKUP(D2094,Translation!$A:$C,3,FALSE),D2094)","v":"Île-du-Prince-Édouard"},{"$f":"IFERROR(VLOOKUP(E2094,Translation!$A:$C,3,FALSE),E2094)","v":100},{"$f":"IFERROR(VLOOKUP(F2094,Translation!$A:$C,3,FALSE),F2094)","v":"Prêts hypothécaires assurés au cours de la période selon le type de logement (%)"},{"$f":"IFERROR(VLOOKUP(G2094,Translation!$A:$C,3,FALSE),G2094)","v":"100.0"},{"$f":"IFERROR(VLOOKUP(H2094,Translation!$A:$C,3,FALSE),H2094)","v":"Île-du-Prince-Édouard"}]
[29,"T3 2019","IMMEUBLES COLLECTIFS RÉSIDENTIELS","Québec",85.971240568618143,"Prêts hypothécaires assurés au cours de la période selon le type de logement (%)","86.0","Québec",{"$f":"IFERROR(VLOOKUP(A2097,Translation!$A:$C,3,FALSE),A2097)","v":29},{"$f":"IFERROR(VLOOKUP(B2097,Translation!$A:$C,3,FALSE),B2097)","v":"T3 2019"},{"$f":"IFERROR(VLOOKUP(C2097,Translation!$A:$C,3,FALSE),C2097)","v":"IMMEUBLES COLLECTIFS RÉSIDENTIELS"},{"$f":"IFERROR(VLOOKUP(D2097,Translation!$A:$C,3,FALSE),D2097)","v":"Québec"},{"$f":"IFERROR(VLOOKUP(E2097,Translation!$A:$C,3,FALSE),E2097)","v":85.971240568618143},{"$f":"IFERROR(VLOOKUP(F2097,Translation!$A:$C,3,FALSE),F2097)","v":"Prêts hypothécaires assurés au cours de la période selon le type de logement (%)"},{"$f":"IFERROR(VLOOKUP(G2097,Translation!$A:$C,3,FALSE),G2097)","v":"86.0"},{"$f":"IFERROR(VLOOKUP(H2097,Translation!$A:$C,3,FALSE),H2097)","v":"Québec"}]
[29,"T3 2019","IMMEUBLES COLLECTIFS RÉSIDENTIELS","Manitoba",99.110650935753199,"Prêts hypothécaires assurés au cours de la période selon le type de logement (%)","99.1","Manitoba",{"$f":"IFERROR(VLOOKUP(A2099,Translation!$A:$C,3,FALSE),A2099)","v":29},{"$f":"IFERROR(VLOOKUP(B2099,Translation!$A:$C,3,FALSE),B2099)","v":"T3 2019"},{"$f":"IFERROR(VLOOKUP(C2099,Translation!$A:$C,3,FALSE),C2099)","v":"IMMEUBLES COLLECTIFS RÉSIDENTIELS"},{"$f":"IFERROR(VLOOKUP(D2099,Translation!$A:$C,3,FALSE),D2099)","v":"Manitoba"},{"$f":"IFERROR(VLOOKUP(E2099,Translation!$A:$C,3,FALSE),E2099)","v":99.110650935753199},{"$f":"IFERROR(VLOOKUP(F2099,Translation!$A:$C,3,FALSE),F2099)","v":"Prêts hypothécaires assurés au cours de la période selon le type de logement (%)"},{"$f":"IFERROR(VLOOKUP(G2099,Translation!$A:$C,3,FALSE),G2099)","v":"99.1"},{"$f":"IFERROR(VLOOKUP(H2099,Translation!$A:$C,3,FALSE),H2099)","v":"Manitoba"}]
[29,"T3 2019","IMMEUBLES COLLECTIFS RÉSIDENTIELS","Territoires",100,"Prêts hypothécaires assurés au cours de la période selon le type de logement (%)","100.0","Territoires",{"$f":"IFERROR(VLOOKUP(A2103,Translation!$A:$C,3,FALSE),A2103)","v":29},{"$f":"IFERROR(VLOOKUP(B2103,Translation!$A:$C,3,FALSE),B2103)","v":"T3 2019"},{"$f":"IFERROR(VLOOKUP(C2103,Translation!$A:$C,3,FALSE),C2103)","v":"IMMEUBLES COLLECTIFS RÉSIDENTIELS"},{"$f":"IFERROR(VLOOKUP(D2103,Translation!$A:$C,3,FALSE),D2103)","v":"Territoires"},{"$f":"IFERROR(VLOOKUP(E2103,Translation!$A:$C,3,FALSE),E2103)","v":100},{"$f":"IFERROR(VLOOKUP(F2103,Translation!$A:$C,3,FALSE),F2103)","v":"Prêts hypothécaires assurés au cours de la période selon le type de logement (%)"},{"$f":"IFERROR(VLOOKUP(G2103,Translation!$A:$C,3,FALSE),G2103)","v":"100.0"},{"$f":"IFERROR(VLOOKUP(H2103,Translation!$A:$C,3,FALSE),H2103)","v":"Territoires"}]
[16,"T2 2019","PROPRIÉTAIRES-OCCUPANTS, À L’UNITÉ","Logement unifamilial",63.517025144539346,"Prêts hypothécaires assurés au cours de la période selon le type de logement (%)","63.5","Logement unifamilial",{"$f":"IFERROR(VLOOKUP(A2104,Translation!$A:$C,3,FALSE),A2104)","v":16},{"$f":"IFERROR(VLOOKUP(B2104,Translation!$A:$C,3,FALSE),B2104)","v":"T2 2019"},{"$f":"IFERROR(VLOOKUP(C2104,Translation!$A:$C,3,FALSE),C2104)","v":"PROPRIÉTAIRES-OCCUPANTS, À L’UNITÉ"},{"$f":"IFERROR(VLOOKUP(D2104,Translation!$A:$C,3,FALSE),D2104)","v":"Logement unifamilial"},{"$f":"IFERROR(VLOOKUP(E2104,Translation!$A:$C,3,FALSE),E2104)","v":63.517025144539346},{"$f":"IFERROR(VLOOKUP(F2104,Translation!$A:$C,3,FALSE),F2104)","v":"Prêts hypothécaires assurés au cours de la période selon le type de logement (%)"},{"$f":"IFERROR(VLOOKUP(G2104,Translation!$A:$C,3,FALSE),G2104)","v":"63.5"},{"$f":"IFERROR(VLOOKUP(H2104,Translation!$A:$C,3,FALSE),H2104)","v":"Logement unifamilial"}]
[16,"T2 2019","PROPRIÉTAIRES-OCCUPANTS, À L’UNITÉ","Jumelé",8.40712397724959,"Prêts hypothécaires assurés au cours de la période selon le type de logement (%)","8.4","Jumelé",{"$f":"IFERROR(VLOOKUP(A2107,Translation!$A:$C,3,FALSE),A2107)","v":16},{"$f":"IFERROR(VLOOKUP(B2107,Translation!$A:$C,3,FALSE),B2107)","v":"T2 2019"},{"$f":"IFERROR(VLOOKUP(C2107,Translation!$A:$C,3,FALSE),C2107)","v":"PROPRIÉTAIRES-OCCUPANTS, À L’UNITÉ"},{"$f":"IFERROR(VLOOKUP(D2107,Translation!$A:$C,3,FALSE),D2107)","v":"Jumelé"},{"$f":"IFERROR(VLOOKUP(E2107,Translation!$A:$C,3,FALSE),E2107)","v":8.40712397724959},{"$f":"IFERROR(VLOOKUP(F2107,Translation!$A:$C,3,FALSE),F2107)","v":"Prêts hypothécaires assurés au cours de la période selon le type de logement (%)"},{"$f":"IFERROR(VLOOKUP(G2107,Translation!$A:$C,3,FALSE),G2107)","v":"8.4"},{"$f":"IFERROR(VLOOKUP(H2107,Translation!$A:$C,3,FALSE),H2107)","v":"Jumelé"}]
[16,"T2 2019","PROPRIÉTAIRES-OCCUPANTS, À L’UNITÉ","Plex",4.9672539940064073,"Prêts hypothécaires assurés au cours de la période selon le type de logement (%)","5.0","Plex",{"$f":"IFERROR(VLOOKUP(A2108,Translation!$A:$C,3,FALSE),A2108)","v":16},{"$f":"IFERROR(VLOOKUP(B2108,Translation!$A:$C,3,FALSE),B2108)","v":"T2 2019"},{"$f":"IFERROR(VLOOKUP(C2108,Translation!$A:$C,3,FALSE),C2108)","v":"PROPRIÉTAIRES-OCCUPANTS, À L’UNITÉ"},{"$f":"IFERROR(VLOOKUP(D2108,Translation!$A:$C,3,FALSE),D2108)","v":"Plex"},{"$f":"IFERROR(VLOOKUP(E2108,Translation!$A:$C,3,FALSE),E2108)","v":4.9672539940064073},{"$f":"IFERROR(VLOOKUP(F2108,Translation!$A:$C,3,FALSE),F2108)","v":"Prêts hypothécaires assurés au cours de la période selon le type de logement (%)"},{"$f":"IFERROR(VLOOKUP(G2108,Translation!$A:$C,3,FALSE),G2108)","v":"5.0"},{"$f":"IFERROR(VLOOKUP(H2108,Translation!$A:$C,3,FALSE),H2108)","v":"Plex"}]
[16,"T2 2019","ASSURANCE DE PORTEFEUILLE","Appartement",14.32652508861238,"Prêts hypothécaires assurés au cours de la période selon le type de logement (%)","14.3","Appartement",{"$f":"IFERROR(VLOOKUP(A2112,Translation!$A:$C,3,FALSE),A2112)","v":16},{"$f":"IFERROR(VLOOKUP(B2112,Translation!$A:$C,3,FALSE),B2112)","v":"T2 2019"},{"$f":"IFERROR(VLOOKUP(C2112,Translation!$A:$C,3,FALSE),C2112)","v":"ASSURANCE DE PORTEFEUILLE"},{"$f":"IFERROR(VLOOKUP(D2112,Translation!$A:$C,3,FALSE),D2112)","v":"Appartement"},{"$f":"IFERROR(VLOOKUP(E2112,Translation!$A:$C,3,FALSE),E2112)","v":14.32652508861238},{"$f":"IFERROR(VLOOKUP(F2112,Translation!$A:$C,3,FALSE),F2112)","v":"Prêts hypothécaires assurés au cours de la période selon le type de logement (%)"},{"$f":"IFERROR(VLOOKUP(G2112,Translation!$A:$C,3,FALSE),G2112)","v":"14.3"},{"$f":"IFERROR(VLOOKUP(H2112,Translation!$A:$C,3,FALSE),H2112)","v":"Appartement"}]
[16,"T2 2019","ASSURANCE DE PORTEFEUILLE","Jumelé",5.1480267242248843,"Prêts hypothécaires assurés au cours de la période selon le type de logement (%)","5.1","Jumelé",{"$f":"IFERROR(VLOOKUP(A2113,Translation!$A:$C,3,FALSE),A2113)","v":16},{"$f":"IFERROR(VLOOKUP(B2113,Translation!$A:$C,3,FALSE),B2113)","v":"T2 2019"},{"$f":"IFERROR(VLOOKUP(C2113,Translation!$A:$C,3,FALSE),C2113)","v":"ASSURANCE DE PORTEFEUILLE"},{"$f":"IFERROR(VLOOKUP(D2113,Translation!$A:$C,3,FALSE),D2113)","v":"Jumelé"},{"$f":"IFERROR(VLOOKUP(E2113,Translation!$A:$C,3,FALSE),E2113)","v":5.1480267242248843},{"$f":"IFERROR(VLOOKUP(F2113,Translation!$A:$C,3,FALSE),F2113)","v":"Prêts hypothécaires assurés au cours de la période selon le type de logement (%)"},{"$f":"IFERROR(VLOOKUP(G2113,Translation!$A:$C,3,FALSE),G2113)","v":"5.1"},{"$f":"IFERROR(VLOOKUP(H2113,Translation!$A:$C,3,FALSE),H2113)","v":"Jumelé"}]
[16,"T2 2019","PROPRIÉTAIRES-OCCUPANTS, À L’UNITÉ","Île-du-Prince-Édouard",79.312838052176943,"Prêts hypothécaires assurés au cours de la période selon le type de logement (%)","79.3","Île-du-Prince-Édouard",{"$f":"IFERROR(VLOOKUP(A2117,Translation!$A:$C,3,FALSE),A2117)","v":16},{"$f":"IFERROR(VLOOKUP(B2117,Translation!$A:$C,3,FALSE),B2117)","v":"T2 2019"},{"$f":"IFERROR(VLOOKUP(C2117,Translation!$A:$C,3,FALSE),C2117)","v":"PROPRIÉTAIRES-OCCUPANTS, À L’UNITÉ"},{"$f":"IFERROR(VLOOKUP(D2117,Translation!$A:$C,3,FALSE),D2117)","v":"Île-du-Prince-Édouard"},{"$f":"IFERROR(VLOOKUP(E2117,Translation!$A:$C,3,FALSE),E2117)","v":79.312838052176943},{"$f":"IFERROR(VLOOKUP(F2117,Translation!$A:$C,3,FALSE),F2117)","v":"Prêts hypothécaires assurés au cours de la période selon le type de logement (%)"},{"$f":"IFERROR(VLOOKUP(G2117,Translation!$A:$C,3,FALSE),G2117)","v":"79.3"},{"$f":"IFERROR(VLOOKUP(H2117,Translation!$A:$C,3,FALSE),H2117)","v":"Île-du-Prince-Édouard"}]
[16,"T2 2019","PROPRIÉTAIRES-OCCUPANTS, À L’UNITÉ","Nouvelle-Écosse",77.593194300606498,"Prêts hypothécaires assurés au cours de la période selon le type de logement (%)","77.6","Nouvelle-Écosse",{"$f":"IFERROR(VLOOKUP(A2118,Translation!$A:$C,3,FALSE),A2118)","v":16},{"$f":"IFERROR(VLOOKUP(B2118,Translation!$A:$C,3,FALSE),B2118)","v":"T2 2019"},{"$f":"IFERROR(VLOOKUP(C2118,Translation!$A:$C,3,FALSE),C2118)","v":"PROPRIÉTAIRES-OCCUPANTS, À L’UNITÉ"},{"$f":"IFERROR(VLOOKUP(D2118,Translation!$A:$C,3,FALSE),D2118)","v":"Nouvelle-Écosse"},{"$f":"IFERROR(VLOOKUP(E2118,Translation!$A:$C,3,FALSE),E2118)","v":77.593194300606498},{"$f":"IFERROR(VLOOKUP(F2118,Translation!$A:$C,3,FALSE),F2118)","v":"Prêts hypothécaires assurés au cours de la période selon le type de logement (%)"},{"$f":"IFERROR(VLOOKUP(G2118,Translation!$A:$C,3,FALSE),G2118)","v":"77.6"},{"$f":"IFERROR(VLOOKUP(H2118,Translation!$A:$C,3,FALSE),H2118)","v":"Nouvelle-Écosse"}]
[16,"T2 2019","PROPRIÉTAIRES-OCCUPANTS, À L’UNITÉ","Manitoba",85.757459404288355,"Prêts hypothécaires assurés au cours de la période selon le type de logement (%)","85.8","Manitoba",{"$f":"IFERROR(VLOOKUP(A2122,Translation!$A:$C,3,FALSE),A2122)","v":16},{"$f":"IFERROR(VLOOKUP(B2122,Translation!$A:$C,3,FALSE),B2122)","v":"T2 2019"},{"$f":"IFERROR(VLOOKUP(C2122,Translation!$A:$C,3,FALSE),C2122)","v":"PROPRIÉTAIRES-OCCUPANTS, À L’UNITÉ"},{"$f":"IFERROR(VLOOKUP(D2122,Translation!$A:$C,3,FALSE),D2122)","v":"Manitoba"},{"$f":"IFERROR(VLOOKUP(E2122,Translation!$A:$C,3,FALSE),E2122)","v":85.757459404288355},{"$f":"IFERROR(VLOOKUP(F2122,Translation!$A:$C,3,FALSE),F2122)","v":"Prêts hypothécaires assurés au cours de la période selon le type de logement (%)"},{"$f":"IFERROR(VLOOKUP(G2122,Translation!$A:$C,3,FALSE),G2122)","v":"85.8"},{"$f":"IFERROR(VLOOKUP(H2122,Translation!$A:$C,3,FALSE),H2122)","v":"Manitoba"}]
[16,"T2 2019","PROPRIÉTAIRES-OCCUPANTS, À L’UNITÉ","Saskatchewan",84.492642359006638,"Prêts hypothécaires assurés au cours de la période selon le type de logement (%)","84.5","Saskatchewan",{"$f":"IFERROR(VLOOKUP(A2123,Translation!$A:$C,3,FALSE),A2123)","v":16},{"$f":"IFERROR(VLOOKUP(B2123,Translation!$A:$C,3,FALSE),B2123)","v":"T2 2019"},{"$f":"IFERROR(VLOOKUP(C2123,Translation!$A:$C,3,FALSE),C2123)","v":"PROPRIÉTAIRES-OCCUPANTS, À L’UNITÉ"},{"$f":"IFERROR(VLOOKUP(D2123,Translation!$A:$C,3,FALSE),D2123)","v":"Saskatchewan"},{"$f":"IFERROR(VLOOKUP(E2123,Translation!$A:$C,3,FALSE),E2123)","v":84.492642359006638},{"$f":"IFERROR(VLOOKUP(F2123,Translation!$A:$C,3,FALSE),F2123)","v":"Prêts hypothécaires assurés au cours de la période selon le type de logement (%)"},{"$f":"IFERROR(VLOOKUP(G2123,Translation!$A:$C,3,FALSE),G2123)","v":"84.5"},{"$f":"IFERROR(VLOOKUP(H2123,Translation!$A:$C,3,FALSE),H2123)","v":"Saskatchewan"}]
[16,"T2 2019","ASSURANCE DE PORTEFEUILLE","Terre-Neuve-et-Labrador",89.925016851852902,"Prêts hypothécaires assurés au cours de la période selon le type de logement (%)","89.9","Terre-Neuve-et-Labrador",{"$f":"IFERROR(VLOOKUP(A2127,Translation!$A:$C,3,FALSE),A2127)","v":16},{"$f":"IFERROR(VLOOKUP(B2127,Translation!$A:$C,3,FALSE),B2127)","v":"T2 2019"},{"$f":"IFERROR(VLOOKUP(C2127,Translation!$A:$C,3,FALSE),C2127)","v":"ASSURANCE DE PORTEFEUILLE"},{"$f":"IFERROR(VLOOKUP(D2127,Translation!$A:$C,3,FALSE),D2127)","v":"Terre-Neuve-et-Labrador"},{"$f":"IFERROR(VLOOKUP(E2127,Translation!$A:$C,3,FALSE),E2127)","v":89.925016851852902},{"$f":"IFERROR(VLOOKUP(F2127,Translation!$A:$C,3,FALSE),F2127)","v":"Prêts hypothécaires assurés au cours de la période selon le type de logement (%)"},{"$f":"IFERROR(VLOOKUP(G2127,Translation!$A:$C,3,FALSE),G2127)","v":"89.9"},{"$f":"IFERROR(VLOOKUP(H2127,Translation!$A:$C,3,FALSE),H2127)","v":"Terre-Neuve-et-Labrador"}]
[16,"T2 2019","ASSURANCE DE PORTEFEUILLE","Île-du-Prince-Édouard",90.95030199437538,"Prêts hypothécaires assurés au cours de la période selon le type de logement (%)","91.0","Île-du-Prince-Édouard",{"$f":"IFERROR(VLOOKUP(A2128,Translation!$A:$C,3,FALSE),A2128)","v":16},{"$f":"IFERROR(VLOOKUP(B2128,Translation!$A:$C,3,FALSE),B2128)","v":"T2 2019"},{"$f":"IFERROR(VLOOKUP(C2128,Translation!$A:$C,3,FALSE),C2128)","v":"ASSURANCE DE PORTEFEUILLE"},{"$f":"IFERROR(VLOOKUP(D2128,Translation!$A:$C,3,FALSE),D2128)","v":"Île-du-Prince-Édouard"},{"$f":"IFERROR(VLOOKUP(E2128,Translation!$A:$C,3,FALSE),E2128)","v":90.95030199437538},{"$f":"IFERROR(VLOOKUP(F2128,Translation!$A:$C,3,FALSE),F2128)","v":"Prêts hypothécaires assurés au cours de la période selon le type de logement (%)"},{"$f":"IFERROR(VLOOKUP(G2128,Translation!$A:$C,3,FALSE),G2128)","v":"91.0"},{"$f":"IFERROR(VLOOKUP(H2128,Translation!$A:$C,3,FALSE),H2128)","v":"Île-du-Prince-Édouard"}]
[16,"T2 2019","ASSURANCE DE PORTEFEUILLE","Québec",53.644976701641689,"Prêts hypothécaires assurés au cours de la période selon le type de logement (%)","53.6","Québec",{"$f":"IFERROR(VLOOKUP(A2131,Translation!$A:$C,3,FALSE),A2131)","v":16},{"$f":"IFERROR(VLOOKUP(B2131,Translation!$A:$C,3,FALSE),B2131)","v":"T2 2019"},{"$f":"IFERROR(VLOOKUP(C2131,Translation!$A:$C,3,FALSE),C2131)","v":"ASSURANCE DE PORTEFEUILLE"},{"$f":"IFERROR(VLOOKUP(D2131,Translation!$A:$C,3,FALSE),D2131)","v":"Québec"},{"$f":"IFERROR(VLOOKUP(E2131,Translation!$A:$C,3,FALSE),E2131)","v":53.644976701641689},{"$f":"IFERROR(VLOOKUP(F2131,Translation!$A:$C,3,FALSE),F2131)","v":"Prêts hypothécaires assurés au cours de la période selon le type de logement (%)"},{"$f":"IFERROR(VLOOKUP(G2131,Translation!$A:$C,3,FALSE),G2131)","v":"53.6"},{"$f":"IFERROR(VLOOKUP(H2131,Translation!$A:$C,3,FALSE),H2131)","v":"Québec"}]
[16,"T2 2019","ASSURANCE DE PORTEFEUILLE","Manitoba",90.612066020544646,"Prêts hypothécaires assurés au cours de la période selon le type de logement (%)","90.6","Manitoba",{"$f":"IFERROR(VLOOKUP(A2133,Translation!$A:$C,3,FALSE),A2133)","v":16},{"$f":"IFERROR(VLOOKUP(B2133,Translation!$A:$C,3,FALSE),B2133)","v":"T2 2019"},{"$f":"IFERROR(VLOOKUP(C2133,Translation!$A:$C,3,FALSE),C2133)","v":"ASSURANCE DE PORTEFEUILLE"},{"$f":"IFERROR(VLOOKUP(D2133,Translation!$A:$C,3,FALSE),D2133)","v":"Manitoba"},{"$f":"IFERROR(VLOOKUP(E2133,Translation!$A:$C,3,FALSE),E2133)","v":90.612066020544646},{"$f":"IFERROR(VLOOKUP(F2133,Translation!$A:$C,3,FALSE),F2133)","v":"Prêts hypothécaires assurés au cours de la période selon le type de logement (%)"},{"$f":"IFERROR(VLOOKUP(G2133,Translation!$A:$C,3,FALSE),G2133)","v":"90.6"},{"$f":"IFERROR(VLOOKUP(H2133,Translation!$A:$C,3,FALSE),H2133)","v":"Manitoba"}]
[16,"T2 2019","ASSURANCE DE PORTEFEUILLE","Colombie-Britannique",59.291514585530258,"Prêts hypothécaires assurés au cours de la période selon le type de logement (%)","59.3","Colombie-Britannique",{"$f":"IFERROR(VLOOKUP(A2136,Translation!$A:$C,3,FALSE),A2136)","v":16},{"$f":"IFERROR(VLOOKUP(B2136,Translation!$A:$C,3,FALSE),B2136)","v":"T2 2019"},{"$f":"IFERROR(VLOOKUP(C2136,Translation!$A:$C,3,FALSE),C2136)","v":"ASSURANCE DE PORTEFEUILLE"},{"$f":"IFERROR(VLOOKUP(D2136,Translation!$A:$C,3,FALSE),D2136)","v":"Colombie-Britannique"},{"$f":"IFERROR(VLOOKUP(E2136,Translation!$A:$C,3,FALSE),E2136)","v":59.291514585530258},{"$f":"IFERROR(VLOOKUP(F2136,Translation!$A:$C,3,FALSE),F2136)","v":"Prêts hypothécaires assurés au cours de la période selon le type de logement (%)"},{"$f":"IFERROR(VLOOKUP(G2136,Translation!$A:$C,3,FALSE),G2136)","v":"59.3"},{"$f":"IFERROR(VLOOKUP(H2136,Translation!$A:$C,3,FALSE),H2136)","v":"Colombie-Britannique"}]
[29,"T2 2019","IMMEUBLES COLLECTIFS RÉSIDENTIELS","Maison de retraite/de repos",6.7836951026349208,"Prêts hypothécaires assurés au cours de la période selon le type de logement (%)","6.8","Maison de retraite/de repos",{"$f":"IFERROR(VLOOKUP(A2138,Translation!$A:$C,3,FALSE),A2138)","v":29},{"$f":"IFERROR(VLOOKUP(B2138,Translation!$A:$C,3,FALSE),B2138)","v":"T2 2019"},{"$f":"IFERROR(VLOOKUP(C2138,Translation!$A:$C,3,FALSE),C2138)","v":"IMMEUBLES COLLECTIFS RÉSIDENTIELS"},{"$f":"IFERROR(VLOOKUP(D2138,Translation!$A:$C,3,FALSE),D2138)","v":"Maison de retraite/de repos"},{"$f":"IFERROR(VLOOKUP(E2138,Translation!$A:$C,3,FALSE),E2138)","v":6.7836951026349208},{"$f":"IFERROR(VLOOKUP(F2138,Translation!$A:$C,3,FALSE),F2138)","v":"Prêts hypothécaires assurés au cours de la période selon le type de logement (%)"},{"$f":"IFERROR(VLOOKUP(G2138,Translation!$A:$C,3,FALSE),G2138)","v":"6.8"},{"$f":"IFERROR(VLOOKUP(H2138,Translation!$A:$C,3,FALSE),H2138)","v":"Maison de retraite/de repos"}]
[29,"T2 2019","IMMEUBLES COLLECTIFS RÉSIDENTIELS","Île-du-Prince-Édouard",100,"Prêts hypothécaires assurés au cours de la période selon le type de logement (%)","100.0","Île-du-Prince-Édouard",{"$f":"IFERROR(VLOOKUP(A2141,Translation!$A:$C,3,FALSE),A2141)","v":29},{"$f":"IFERROR(VLOOKUP(B2141,Translation!$A:$C,3,FALSE),B2141)","v":"T2 2019"},{"$f":"IFERROR(VLOOKUP(C2141,Translation!$A:$C,3,FALSE),C2141)","v":"IMMEUBLES COLLECTIFS RÉSIDENTIELS"},{"$f":"IFERROR(VLOOKUP(D2141,Translation!$A:$C,3,FALSE),D2141)","v":"Île-du-Prince-Édouard"},{"$f":"IFERROR(VLOOKUP(E2141,Translation!$A:$C,3,FALSE),E2141)","v":100},{"$f":"IFERROR(VLOOKUP(F2141,Translation!$A:$C,3,FALSE),F2141)","v":"Prêts hypothécaires assurés au cours de la période selon le type de logement (%)"},{"$f":"IFERROR(VLOOKUP(G2141,Translation!$A:$C,3,FALSE),G2141)","v":"100.0"},{"$f":"IFERROR(VLOOKUP(H2141,Translation!$A:$C,3,FALSE),H2141)","v":"Île-du-Prince-Édouard"}]
[29,"T2 2019","IMMEUBLES COLLECTIFS RÉSIDENTIELS","Nouvelle-Écosse",98.250581760617933,"Prêts hypothécaires assurés au cours de la période selon le type de logement (%)","98.3","Nouvelle-Écosse",{"$f":"IFERROR(VLOOKUP(A2142,Translation!$A:$C,3,FALSE),A2142)","v":29},{"$f":"IFERROR(VLOOKUP(B2142,Translation!$A:$C,3,FALSE),B2142)","v":"T2 2019"},{"$f":"IFERROR(VLOOKUP(C2142,Translation!$A:$C,3,FALSE),C2142)","v":"IMMEUBLES COLLECTIFS RÉSIDENTIELS"},{"$f":"IFERROR(VLOOKUP(D2142,Translation!$A:$C,3,FALSE),D2142)","v":"Nouvelle-Écosse"},{"$f":"IFERROR(VLOOKUP(E2142,Translation!$A:$C,3,FALSE),E2142)","v":98.250581760617933},{"$f":"IFERROR(VLOOKUP(F2142,Translation!$A:$C,3,FALSE),F2142)","v":"Prêts hypothécaires assurés au cours de la période selon le type de logement (%)"},{"$f":"IFERROR(VLOOKUP(G2142,Translation!$A:$C,3,FALSE),G2142)","v":"98.3"},{"$f":"IFERROR(VLOOKUP(H2142,Translation!$A:$C,3,FALSE),H2142)","v":"Nouvelle-Écosse"}]
[29,"T2 2019","IMMEUBLES COLLECTIFS RÉSIDENTIELS","Manitoba",100,"Prêts hypothécaires assurés au cours de la période selon le type de logement (%)","100.0","Manitoba",{"$f":"IFERROR(VLOOKUP(A2146,Translation!$A:$C,3,FALSE),A2146)","v":29},{"$f":"IFERROR(VLOOKUP(B2146,Translation!$A:$C,3,FALSE),B2146)","v":"T2 2019"},{"$f":"IFERROR(VLOOKUP(C2146,Translation!$A:$C,3,FALSE),C2146)","v":"IMMEUBLES COLLECTIFS RÉSIDENTIELS"},{"$f":"IFERROR(VLOOKUP(D2146,Translation!$A:$C,3,FALSE),D2146)","v":"Manitoba"},{"$f":"IFERROR(VLOOKUP(E2146,Translation!$A:$C,3,FALSE),E2146)","v":100},{"$f":"IFERROR(VLOOKUP(F2146,Translation!$A:$C,3,FALSE),F2146)","v":"Prêts hypothécaires assurés au cours de la période selon le type de logement (%)"},{"$f":"IFERROR(VLOOKUP(G2146,Translation!$A:$C,3,FALSE),G2146)","v":"100.0"},{"$f":"IFERROR(VLOOKUP(H2146,Translation!$A:$C,3,FALSE),H2146)","v":"Manitoba"}]
[29,"T2 2019","IMMEUBLES COLLECTIFS RÉSIDENTIELS","Saskatchewan",100,"Prêts hypothécaires assurés au cours de la période selon le type de logement (%)","100.0","Saskatchewan",{"$f":"IFERROR(VLOOKUP(A2147,Translation!$A:$C,3,FALSE),A2147)","v":29},{"$f":"IFERROR(VLOOKUP(B2147,Translation!$A:$C,3,FALSE),B2147)","v":"T2 2019"},{"$f":"IFERROR(VLOOKUP(C2147,Translation!$A:$C,3,FALSE),C2147)","v":"IMMEUBLES COLLECTIFS RÉSIDENTIELS"},{"$f":"IFERROR(VLOOKUP(D2147,Translation!$A:$C,3,FALSE),D2147)","v":"Saskatchewan"},{"$f":"IFERROR(VLOOKUP(E2147,Translation!$A:$C,3,FALSE),E2147)","v":100},{"$f":"IFERROR(VLOOKUP(F2147,Translation!$A:$C,3,FALSE),F2147)","v":"Prêts hypothécaires assurés au cours de la période selon le type de logement (%)"},{"$f":"IFERROR(VLOOKUP(G2147,Translation!$A:$C,3,FALSE),G2147)","v":"100.0"},{"$f":"IFERROR(VLOOKUP(H2147,Translation!$A:$C,3,FALSE),H2147)","v":"Saskatchewan"}]
[29,"T2 2019","IMMEUBLES COLLECTIFS RÉSIDENTIELS","Colombie-Britannique",98.364690733591104,"Prêts hypothécaires assurés au cours de la période selon le type de logement (%)","98.4","Colombie-Britannique",{"$f":"IFERROR(VLOOKUP(A2149,Translation!$A:$C,3,FALSE),A2149)","v":29},{"$f":"IFERROR(VLOOKUP(B2149,Translation!$A:$C,3,FALSE),B2149)","v":"T2 2019"},{"$f":"IFERROR(VLOOKUP(C2149,Translation!$A:$C,3,FALSE),C2149)","v":"IMMEUBLES COLLECTIFS RÉSIDENTIELS"},{"$f":"IFERROR(VLOOKUP(D2149,Translation!$A:$C,3,FALSE),D2149)","v":"Colombie-Britannique"},{"$f":"IFERROR(VLOOKUP(E2149,Translation!$A:$C,3,FALSE),E2149)","v":98.364690733591104},{"$f":"IFERROR(VLOOKUP(F2149,Translation!$A:$C,3,FALSE),F2149)","v":"Prêts hypothécaires assurés au cours de la période selon le type de logement (%)"},{"$f":"IFERROR(VLOOKUP(G2149,Translation!$A:$C,3,FALSE),G2149)","v":"98.4"},{"$f":"IFERROR(VLOOKUP(H2149,Translation!$A:$C,3,FALSE),H2149)","v":"Colombie-Britannique"}]
[16,"T1 2019","PROPRIÉTAIRES-OCCUPANTS, À L’UNITÉ","Appartement",12.306383296722164,"Prêts hypothécaires assurés au cours de la période selon le type de logement (%)","12.3","Appartement",{"$f":"IFERROR(VLOOKUP(A2152,Translation!$A:$C,3,FALSE),A2152)","v":16},{"$f":"IFERROR(VLOOKUP(B2152,Translation!$A:$C,3,FALSE),B2152)","v":"T1 2019"},{"$f":"IFERROR(VLOOKUP(C2152,Translation!$A:$C,3,FALSE),C2152)","v":"PROPRIÉTAIRES-OCCUPANTS, À L’UNITÉ"},{"$f":"IFERROR(VLOOKUP(D2152,Translation!$A:$C,3,FALSE),D2152)","v":"Appartement"},{"$f":"IFERROR(VLOOKUP(E2152,Translation!$A:$C,3,FALSE),E2152)","v":12.306383296722164},{"$f":"IFERROR(VLOOKUP(F2152,Translation!$A:$C,3,FALSE),F2152)","v":"Prêts hypothécaires assurés au cours de la période selon le type de logement (%)"},{"$f":"IFERROR(VLOOKUP(G2152,Translation!$A:$C,3,FALSE),G2152)","v":"12.3"},{"$f":"IFERROR(VLOOKUP(H2152,Translation!$A:$C,3,FALSE),H2152)","v":"Appartement"}]
[16,"T1 2019","PROPRIÉTAIRES-OCCUPANTS, À L’UNITÉ","Autre",3.127777798298637,"Prêts hypothécaires assurés au cours de la période selon le type de logement (%)","3.1","Autre",{"$f":"IFERROR(VLOOKUP(A2155,Translation!$A:$C,3,FALSE),A2155)","v":16},{"$f":"IFERROR(VLOOKUP(B2155,Translation!$A:$C,3,FALSE),B2155)","v":"T1 2019"},{"$f":"IFERROR(VLOOKUP(C2155,Translation!$A:$C,3,FALSE),C2155)","v":"PROPRIÉTAIRES-OCCUPANTS, À L’UNITÉ"},{"$f":"IFERROR(VLOOKUP(D2155,Translation!$A:$C,3,FALSE),D2155)","v":"Autre"},{"$f":"IFERROR(VLOOKUP(E2155,Translation!$A:$C,3,FALSE),E2155)","v":3.127777798298637},{"$f":"IFERROR(VLOOKUP(F2155,Translation!$A:$C,3,FALSE),F2155)","v":"Prêts hypothécaires assurés au cours de la période selon le type de logement (%)"},{"$f":"IFERROR(VLOOKUP(G2155,Translation!$A:$C,3,FALSE),G2155)","v":"3.1"},{"$f":"IFERROR(VLOOKUP(H2155,Translation!$A:$C,3,FALSE),H2155)","v":"Autre"}]
[16,"T1 2019","ASSURANCE DE PORTEFEUILLE","Maison en rangée",10.016390354853412,"Prêts hypothécaires assurés au cours de la période selon le type de logement (%)","10.0","Maison en rangée",{"$f":"IFERROR(VLOOKUP(A2157,Translation!$A:$C,3,FALSE),A2157)","v":16},{"$f":"IFERROR(VLOOKUP(B2157,Translation!$A:$C,3,FALSE),B2157)","v":"T1 2019"},{"$f":"IFERROR(VLOOKUP(C2157,Translation!$A:$C,3,FALSE),C2157)","v":"ASSURANCE DE PORTEFEUILLE"},{"$f":"IFERROR(VLOOKUP(D2157,Translation!$A:$C,3,FALSE),D2157)","v":"Maison en rangée"},{"$f":"IFERROR(VLOOKUP(E2157,Translation!$A:$C,3,FALSE),E2157)","v":10.016390354853412},{"$f":"IFERROR(VLOOKUP(F2157,Translation!$A:$C,3,FALSE),F2157)","v":"Prêts hypothécaires assurés au cours de la période selon le type de logement (%)"},{"$f":"IFERROR(VLOOKUP(G2157,Translation!$A:$C,3,FALSE),G2157)","v":"10.0"},{"$f":"IFERROR(VLOOKUP(H2157,Translation!$A:$C,3,FALSE),H2157)","v":"Maison en rangée"}]
[16,"T1 2019","ASSURANCE DE PORTEFEUILLE","Plex",0.89566658277301148,"Prêts hypothécaires assurés au cours de la période selon le type de logement (%)","0.9","Plex",{"$f":"IFERROR(VLOOKUP(A2160,Translation!$A:$C,3,FALSE),A2160)","v":16},{"$f":"IFERROR(VLOOKUP(B2160,Translation!$A:$C,3,FALSE),B2160)","v":"T1 2019"},{"$f":"IFERROR(VLOOKUP(C2160,Translation!$A:$C,3,FALSE),C2160)","v":"ASSURANCE DE PORTEFEUILLE"},{"$f":"IFERROR(VLOOKUP(D2160,Translation!$A:$C,3,FALSE),D2160)","v":"Plex"},{"$f":"IFERROR(VLOOKUP(E2160,Translation!$A:$C,3,FALSE),E2160)","v":0.89566658277301148},{"$f":"IFERROR(VLOOKUP(F2160,Translation!$A:$C,3,FALSE),F2160)","v":"Prêts hypothécaires assurés au cours de la période selon le type de logement (%)"},{"$f":"IFERROR(VLOOKUP(G2160,Translation!$A:$C,3,FALSE),G2160)","v":"0.9"},{"$f":"IFERROR(VLOOKUP(H2160,Translation!$A:$C,3,FALSE),H2160)","v":"Plex"}]
[16,"T1 2019","PROPRIÉTAIRES-OCCUPANTS, À L’UNITÉ","Île-du-Prince-Édouard",79.913448652940247,"Prêts hypothécaires assurés au cours de la période selon le type de logement (%)","79.9","Île-du-Prince-Édouard",{"$f":"IFERROR(VLOOKUP(A2163,Translation!$A:$C,3,FALSE),A2163)","v":16},{"$f":"IFERROR(VLOOKUP(B2163,Translation!$A:$C,3,FALSE),B2163)","v":"T1 2019"},{"$f":"IFERROR(VLOOKUP(C2163,Translation!$A:$C,3,FALSE),C2163)","v":"PROPRIÉTAIRES-OCCUPANTS, À L’UNITÉ"},{"$f":"IFERROR(VLOOKUP(D2163,Translation!$A:$C,3,FALSE),D2163)","v":"Île-du-Prince-Édouard"},{"$f":"IFERROR(VLOOKUP(E2163,Translation!$A:$C,3,FALSE),E2163)","v":79.913448652940247},{"$f":"IFERROR(VLOOKUP(F2163,Translation!$A:$C,3,FALSE),F2163)","v":"Prêts hypothécaires assurés au cours de la période selon le type de logement (%)"},{"$f":"IFERROR(VLOOKUP(G2163,Translation!$A:$C,3,FALSE),G2163)","v":"79.9"},{"$f":"IFERROR(VLOOKUP(H2163,Translation!$A:$C,3,FALSE),H2163)","v":"Île-du-Prince-Édouard"}]
[16,"T1 2019","PROPRIÉTAIRES-OCCUPANTS, À L’UNITÉ","Nouveau-Brunswick",82.428453241333614,"Prêts hypothécaires assurés au cours de la période selon le type de logement (%)","82.4","Nouveau-Brunswick",{"$f":"IFERROR(VLOOKUP(A2165,Translation!$A:$C,3,FALSE),A2165)","v":16},{"$f":"IFERROR(VLOOKUP(B2165,Translation!$A:$C,3,FALSE),B2165)","v":"T1 2019"},{"$f":"IFERROR(VLOOKUP(C2165,Translation!$A:$C,3,FALSE),C2165)","v":"PROPRIÉTAIRES-OCCUPANTS, À L’UNITÉ"},{"$f":"IFERROR(VLOOKUP(D2165,Translation!$A:$C,3,FALSE),D2165)","v":"Nouveau-Brunswick"},{"$f":"IFERROR(VLOOKUP(E2165,Translation!$A:$C,3,FALSE),E2165)","v":82.428453241333614},{"$f":"IFERROR(VLOOKUP(F2165,Translation!$A:$C,3,FALSE),F2165)","v":"Prêts hypothécaires assurés au cours de la période selon le type de logement (%)"},{"$f":"IFERROR(VLOOKUP(G2165,Translation!$A:$C,3,FALSE),G2165)","v":"82.4"},{"$f":"IFERROR(VLOOKUP(H2165,Translation!$A:$C,3,FALSE),H2165)","v":"Nouveau-Brunswick"}]
[16,"T1 2019","PROPRIÉTAIRES-OCCUPANTS, À L’UNITÉ","Québec",58.990069586279859,"Prêts hypothécaires assurés au cours de la période selon le type de logement (%)","59.0","Québec",{"$f":"IFERROR(VLOOKUP(A2166,Translation!$A:$C,3,FALSE),A2166)","v":16},{"$f":"IFERROR(VLOOKUP(B2166,Translation!$A:$C,3,FALSE),B2166)","v":"T1 2019"},{"$f":"IFERROR(VLOOKUP(C2166,Translation!$A:$C,3,FALSE),C2166)","v":"PROPRIÉTAIRES-OCCUPANTS, À L’UNITÉ"},{"$f":"IFERROR(VLOOKUP(D2166,Translation!$A:$C,3,FALSE),D2166)","v":"Québec"},{"$f":"IFERROR(VLOOKUP(E2166,Translation!$A:$C,3,FALSE),E2166)","v":58.990069586279859},{"$f":"IFERROR(VLOOKUP(F2166,Translation!$A:$C,3,FALSE),F2166)","v":"Prêts hypothécaires assurés au cours de la période selon le type de logement (%)"},{"$f":"IFERROR(VLOOKUP(G2166,Translation!$A:$C,3,FALSE),G2166)","v":"59.0"},{"$f":"IFERROR(VLOOKUP(H2166,Translation!$A:$C,3,FALSE),H2166)","v":"Québec"}]
[16,"T1 2019","PROPRIÉTAIRES-OCCUPANTS, À L’UNITÉ","Manitoba",83.959335259021259,"Prêts hypothécaires assurés au cours de la période selon le type de logement (%)","84.0","Manitoba",{"$f":"IFERROR(VLOOKUP(A2168,Translation!$A:$C,3,FALSE),A2168)","v":16},{"$f":"IFERROR(VLOOKUP(B2168,Translation!$A:$C,3,FALSE),B2168)","v":"T1 2019"},{"$f":"IFERROR(VLOOKUP(C2168,Translation!$A:$C,3,FALSE),C2168)","v":"PROPRIÉTAIRES-OCCUPANTS, À L’UNITÉ"},{"$f":"IFERROR(VLOOKUP(D2168,Translation!$A:$C,3,FALSE),D2168)","v":"Manitoba"},{"$f":"IFERROR(VLOOKUP(E2168,Translation!$A:$C,3,FALSE),E2168)","v":83.959335259021259},{"$f":"IFERROR(VLOOKUP(F2168,Translation!$A:$C,3,FALSE),F2168)","v":"Prêts hypothécaires assurés au cours de la période selon le type de logement (%)"},{"$f":"IFERROR(VLOOKUP(G2168,Translation!$A:$C,3,FALSE),G2168)","v":"84.0"},{"$f":"IFERROR(VLOOKUP(H2168,Translation!$A:$C,3,FALSE),H2168)","v":"Manitoba"}]
[16,"T1 2019","PROPRIÉTAIRES-OCCUPANTS, À L’UNITÉ","Colombie-Britannique",44.351594978082595,"Prêts hypothécaires assurés au cours de la période selon le type de logement (%)","44.4","Colombie-Britannique",{"$f":"IFERROR(VLOOKUP(A2171,Translation!$A:$C,3,FALSE),A2171)","v":16},{"$f":"IFERROR(VLOOKUP(B2171,Translation!$A:$C,3,FALSE),B2171)","v":"T1 2019"},{"$f":"IFERROR(VLOOKUP(C2171,Translation!$A:$C,3,FALSE),C2171)","v":"PROPRIÉTAIRES-OCCUPANTS, À L’UNITÉ"},{"$f":"IFERROR(VLOOKUP(D2171,Translation!$A:$C,3,FALSE),D2171)","v":"Colombie-Britannique"},{"$f":"IFERROR(VLOOKUP(E2171,Translation!$A:$C,3,FALSE),E2171)","v":44.351594978082595},{"$f":"IFERROR(VLOOKUP(F2171,Translation!$A:$C,3,FALSE),F2171)","v":"Prêts hypothécaires assurés au cours de la période selon le type de logement (%)"},{"$f":"IFERROR(VLOOKUP(G2171,Translation!$A:$C,3,FALSE),G2171)","v":"44.4"},{"$f":"IFERROR(VLOOKUP(H2171,Translation!$A:$C,3,FALSE),H2171)","v":"Colombie-Britannique"}]
[16,"T1 2019","ASSURANCE DE PORTEFEUILLE","Île-du-Prince-Édouard",100,"Prêts hypothécaires assurés au cours de la période selon le type de logement (%)","100.0","Île-du-Prince-Édouard",{"$f":"IFERROR(VLOOKUP(A2174,Translation!$A:$C,3,FALSE),A2174)","v":16},{"$f":"IFERROR(VLOOKUP(B2174,Translation!$A:$C,3,FALSE),B2174)","v":"T1 2019"},{"$f":"IFERROR(VLOOKUP(C2174,Translation!$A:$C,3,FALSE),C2174)","v":"ASSURANCE DE PORTEFEUILLE"},{"$f":"IFERROR(VLOOKUP(D2174,Translation!$A:$C,3,FALSE),D2174)","v":"Île-du-Prince-Édouard"},{"$f":"IFERROR(VLOOKUP(E2174,Translation!$A:$C,3,FALSE),E2174)","v":100},{"$f":"IFERROR(VLOOKUP(F2174,Translation!$A:$C,3,FALSE),F2174)","v":"Prêts hypothécaires assurés au cours de la période selon le type de logement (%)"},{"$f":"IFERROR(VLOOKUP(G2174,Translation!$A:$C,3,FALSE),G2174)","v":"100.0"},{"$f":"IFERROR(VLOOKUP(H2174,Translation!$A:$C,3,FALSE),H2174)","v":"Île-du-Prince-Édouard"}]
[16,"T1 2019","ASSURANCE DE PORTEFEUILLE","Nouveau-Brunswick",80.822292750098555,"Prêts hypothécaires assurés au cours de la période selon le type de logement (%)","80.8","Nouveau-Brunswick",{"$f":"IFERROR(VLOOKUP(A2176,Translation!$A:$C,3,FALSE),A2176)","v":16},{"$f":"IFERROR(VLOOKUP(B2176,Translation!$A:$C,3,FALSE),B2176)","v":"T1 2019"},{"$f":"IFERROR(VLOOKUP(C2176,Translation!$A:$C,3,FALSE),C2176)","v":"ASSURANCE DE PORTEFEUILLE"},{"$f":"IFERROR(VLOOKUP(D2176,Translation!$A:$C,3,FALSE),D2176)","v":"Nouveau-Brunswick"},{"$f":"IFERROR(VLOOKUP(E2176,Translation!$A:$C,3,FALSE),E2176)","v":80.822292750098555},{"$f":"IFERROR(VLOOKUP(F2176,Translation!$A:$C,3,FALSE),F2176)","v":"Prêts hypothécaires assurés au cours de la période selon le type de logement (%)"},{"$f":"IFERROR(VLOOKUP(G2176,Translation!$A:$C,3,FALSE),G2176)","v":"80.8"},{"$f":"IFERROR(VLOOKUP(H2176,Translation!$A:$C,3,FALSE),H2176)","v":"Nouveau-Brunswick"}]
[16,"T1 2019","ASSURANCE DE PORTEFEUILLE","Manitoba",82.300855943092884,"Prêts hypothécaires assurés au cours de la période selon le type de logement (%)","82.3","Manitoba",{"$f":"IFERROR(VLOOKUP(A2179,Translation!$A:$C,3,FALSE),A2179)","v":16},{"$f":"IFERROR(VLOOKUP(B2179,Translation!$A:$C,3,FALSE),B2179)","v":"T1 2019"},{"$f":"IFERROR(VLOOKUP(C2179,Translation!$A:$C,3,FALSE),C2179)","v":"ASSURANCE DE PORTEFEUILLE"},{"$f":"IFERROR(VLOOKUP(D2179,Translation!$A:$C,3,FALSE),D2179)","v":"Manitoba"},{"$f":"IFERROR(VLOOKUP(E2179,Translation!$A:$C,3,FALSE),E2179)","v":82.300855943092884},{"$f":"IFERROR(VLOOKUP(F2179,Translation!$A:$C,3,FALSE),F2179)","v":"Prêts hypothécaires assurés au cours de la période selon le type de logement (%)"},{"$f":"IFERROR(VLOOKUP(G2179,Translation!$A:$C,3,FALSE),G2179)","v":"82.3"},{"$f":"IFERROR(VLOOKUP(H2179,Translation!$A:$C,3,FALSE),H2179)","v":"Manitoba"}]
[16,"T1 2019","ASSURANCE DE PORTEFEUILLE","Colombie-Britannique",66.31224310964889,"Prêts hypothécaires assurés au cours de la période selon le type de logement (%)","66.3","Colombie-Britannique",{"$f":"IFERROR(VLOOKUP(A2182,Translation!$A:$C,3,FALSE),A2182)","v":16},{"$f":"IFERROR(VLOOKUP(B2182,Translation!$A:$C,3,FALSE),B2182)","v":"T1 2019"},{"$f":"IFERROR(VLOOKUP(C2182,Translation!$A:$C,3,FALSE),C2182)","v":"ASSURANCE DE PORTEFEUILLE"},{"$f":"IFERROR(VLOOKUP(D2182,Translation!$A:$C,3,FALSE),D2182)","v":"Colombie-Britannique"},{"$f":"IFERROR(VLOOKUP(E2182,Translation!$A:$C,3,FALSE),E2182)","v":66.31224310964889},{"$f":"IFERROR(VLOOKUP(F2182,Translation!$A:$C,3,FALSE),F2182)","v":"Prêts hypothécaires assurés au cours de la période selon le type de logement (%)"},{"$f":"IFERROR(VLOOKUP(G2182,Translation!$A:$C,3,FALSE),G2182)","v":"66.3"},{"$f":"IFERROR(VLOOKUP(H2182,Translation!$A:$C,3,FALSE),H2182)","v":"Colombie-Britannique"}]
[29,"T1 2019","IMMEUBLES COLLECTIFS RÉSIDENTIELS","Maison de retraite/de repos",5.4785746331334968,"Prêts hypothécaires assurés au cours de la période selon le type de logement (%)","5.5","Maison de retraite/de repos",{"$f":"IFERROR(VLOOKUP(A2184,Translation!$A:$C,3,FALSE),A2184)","v":29},{"$f":"IFERROR(VLOOKUP(B2184,Translation!$A:$C,3,FALSE),B2184)","v":"T1 2019"},{"$f":"IFERROR(VLOOKUP(C2184,Translation!$A:$C,3,FALSE),C2184)","v":"IMMEUBLES COLLECTIFS RÉSIDENTIELS"},{"$f":"IFERROR(VLOOKUP(D2184,Translation!$A:$C,3,FALSE),D2184)","v":"Maison de retraite/de repos"},{"$f":"IFERROR(VLOOKUP(E2184,Translation!$A:$C,3,FALSE),E2184)","v":5.4785746331334968},{"$f":"IFERROR(VLOOKUP(F2184,Translation!$A:$C,3,FALSE),F2184)","v":"Prêts hypothécaires assurés au cours de la période selon le type de logement (%)"},{"$f":"IFERROR(VLOOKUP(G2184,Translation!$A:$C,3,FALSE),G2184)","v":"5.5"},{"$f":"IFERROR(VLOOKUP(H2184,Translation!$A:$C,3,FALSE),H2184)","v":"Maison de retraite/de repos"}]
[29,"T1 2019","IMMEUBLES COLLECTIFS RÉSIDENTIELS","Autre",1.9564802097065568,"Prêts hypothécaires assurés au cours de la période selon le type de logement (%)","2.0","Autre",{"$f":"IFERROR(VLOOKUP(A2185,Translation!$A:$C,3,FALSE),A2185)","v":29},{"$f":"IFERROR(VLOOKUP(B2185,Translation!$A:$C,3,FALSE),B2185)","v":"T1 2019"},{"$f":"IFERROR(VLOOKUP(C2185,Translation!$A:$C,3,FALSE),C2185)","v":"IMMEUBLES COLLECTIFS RÉSIDENTIELS"},{"$f":"IFERROR(VLOOKUP(D2185,Translation!$A:$C,3,FALSE),D2185)","v":"Autre"},{"$f":"IFERROR(VLOOKUP(E2185,Translation!$A:$C,3,FALSE),E2185)","v":1.9564802097065568},{"$f":"IFERROR(VLOOKUP(F2185,Translation!$A:$C,3,FALSE),F2185)","v":"Prêts hypothécaires assurés au cours de la période selon le type de logement (%)"},{"$f":"IFERROR(VLOOKUP(G2185,Translation!$A:$C,3,FALSE),G2185)","v":"2.0"},{"$f":"IFERROR(VLOOKUP(H2185,Translation!$A:$C,3,FALSE),H2185)","v":"Autre"}]
[29,"T1 2019","IMMEUBLES COLLECTIFS RÉSIDENTIELS","Québec",89.027068068065063,"Prêts hypothécaires assurés au cours de la période selon le type de logement (%)","89.0","Québec",{"$f":"IFERROR(VLOOKUP(A2189,Translation!$A:$C,3,FALSE),A2189)","v":29},{"$f":"IFERROR(VLOOKUP(B2189,Translation!$A:$C,3,FALSE),B2189)","v":"T1 2019"},{"$f":"IFERROR(VLOOKUP(C2189,Translation!$A:$C,3,FALSE),C2189)","v":"IMMEUBLES COLLECTIFS RÉSIDENTIELS"},{"$f":"IFERROR(VLOOKUP(D2189,Translation!$A:$C,3,FALSE),D2189)","v":"Québec"},{"$f":"IFERROR(VLOOKUP(E2189,Translation!$A:$C,3,FALSE),E2189)","v":89.027068068065063},{"$f":"IFERROR(VLOOKUP(F2189,Translation!$A:$C,3,FALSE),F2189)","v":"Prêts hypothécaires assurés au cours de la période selon le type de logement (%)"},{"$f":"IFERROR(VLOOKUP(G2189,Translation!$A:$C,3,FALSE),G2189)","v":"89.0"},{"$f":"IFERROR(VLOOKUP(H2189,Translation!$A:$C,3,FALSE),H2189)","v":"Québec"}]
[29,"T1 2019","IMMEUBLES COLLECTIFS RÉSIDENTIELS","Ontario",95.190544099508671,"Prêts hypothécaires assurés au cours de la période selon le type de logement (%)","95.2","Ontario",{"$f":"IFERROR(VLOOKUP(A2190,Translation!$A:$C,3,FALSE),A2190)","v":29},{"$f":"IFERROR(VLOOKUP(B2190,Translation!$A:$C,3,FALSE),B2190)","v":"T1 2019"},{"$f":"IFERROR(VLOOKUP(C2190,Translation!$A:$C,3,FALSE),C2190)","v":"IMMEUBLES COLLECTIFS RÉSIDENTIELS"},{"$f":"IFERROR(VLOOKUP(D2190,Translation!$A:$C,3,FALSE),D2190)","v":"Ontario"},{"$f":"IFERROR(VLOOKUP(E2190,Translation!$A:$C,3,FALSE),E2190)","v":95.190544099508671},{"$f":"IFERROR(VLOOKUP(F2190,Translation!$A:$C,3,FALSE),F2190)","v":"Prêts hypothécaires assurés au cours de la période selon le type de logement (%)"},{"$f":"IFERROR(VLOOKUP(G2190,Translation!$A:$C,3,FALSE),G2190)","v":"95.2"},{"$f":"IFERROR(VLOOKUP(H2190,Translation!$A:$C,3,FALSE),H2190)","v":"Ontario"}]
[29,"T1 2019","IMMEUBLES COLLECTIFS RÉSIDENTIELS","Alberta",82.584517108290569,"Prêts hypothécaires assurés au cours de la période selon le type de logement (%)","82.6","Alberta",{"$f":"IFERROR(VLOOKUP(A2193,Translation!$A:$C,3,FALSE),A2193)","v":29},{"$f":"IFERROR(VLOOKUP(B2193,Translation!$A:$C,3,FALSE),B2193)","v":"T1 2019"},{"$f":"IFERROR(VLOOKUP(C2193,Translation!$A:$C,3,FALSE),C2193)","v":"IMMEUBLES COLLECTIFS RÉSIDENTIELS"},{"$f":"IFERROR(VLOOKUP(D2193,Translation!$A:$C,3,FALSE),D2193)","v":"Alberta"},{"$f":"IFERROR(VLOOKUP(E2193,Translation!$A:$C,3,FALSE),E2193)","v":82.584517108290569},{"$f":"IFERROR(VLOOKUP(F2193,Translation!$A:$C,3,FALSE),F2193)","v":"Prêts hypothécaires assurés au cours de la période selon le type de logement (%)"},{"$f":"IFERROR(VLOOKUP(G2193,Translation!$A:$C,3,FALSE),G2193)","v":"82.6"},{"$f":"IFERROR(VLOOKUP(H2193,Translation!$A:$C,3,FALSE),H2193)","v":"Alberta"}]
[29,"T1 2019","IMMEUBLES COLLECTIFS RÉSIDENTIELS","Territoires",100,"Prêts hypothécaires assurés au cours de la période selon le type de logement (%)","100.0","Territoires",{"$f":"IFERROR(VLOOKUP(A2195,Translation!$A:$C,3,FALSE),A2195)","v":29},{"$f":"IFERROR(VLOOKUP(B2195,Translation!$A:$C,3,FALSE),B2195)","v":"T1 2019"},{"$f":"IFERROR(VLOOKUP(C2195,Translation!$A:$C,3,FALSE),C2195)","v":"IMMEUBLES COLLECTIFS RÉSIDENTIELS"},{"$f":"IFERROR(VLOOKUP(D2195,Translation!$A:$C,3,FALSE),D2195)","v":"Territoires"},{"$f":"IFERROR(VLOOKUP(E2195,Translation!$A:$C,3,FALSE),E2195)","v":100},{"$f":"IFERROR(VLOOKUP(F2195,Translation!$A:$C,3,FALSE),F2195)","v":"Prêts hypothécaires assurés au cours de la période selon le type de logement (%)"},{"$f":"IFERROR(VLOOKUP(G2195,Translation!$A:$C,3,FALSE),G2195)","v":"100.0"},{"$f":"IFERROR(VLOOKUP(H2195,Translation!$A:$C,3,FALSE),H2195)","v":"Territoires"}]
[16,"Cumul 2017","PROPRIÉTAIRES-OCCUPANTS, À L’UNITÉ","Maison en rangée",10.616309002142463,"Prêts hypothécaires assurés au cours de la période selon le type de logement (%)","10.6","Maison en rangée",{"$f":"IFERROR(VLOOKUP(A2199,Translation!$A:$C,3,FALSE),A2199)","v":16},{"$f":"IFERROR(VLOOKUP(B2199,Translation!$A:$C,3,FALSE),B2199)","v":"Cumul 2017"},{"$f":"IFERROR(VLOOKUP(C2199,Translation!$A:$C,3,FALSE),C2199)","v":"PROPRIÉTAIRES-OCCUPANTS, À L’UNITÉ"},{"$f":"IFERROR(VLOOKUP(D2199,Translation!$A:$C,3,FALSE),D2199)","v":"Maison en rangée"},{"$f":"IFERROR(VLOOKUP(E2199,Translation!$A:$C,3,FALSE),E2199)","v":10.616309002142463},{"$f":"IFERROR(VLOOKUP(F2199,Translation!$A:$C,3,FALSE),F2199)","v":"Prêts hypothécaires assurés au cours de la période selon le type de logement (%)"},{"$f":"IFERROR(VLOOKUP(G2199,Translation!$A:$C,3,FALSE),G2199)","v":"10.6"},{"$f":"IFERROR(VLOOKUP(H2199,Translation!$A:$C,3,FALSE),H2199)","v":"Maison en rangée"}]
[16,"T4 2018","PROPRIÉTAIRES-OCCUPANTS, À L’UNITÉ","Appartement",10.004770548218213,"Prêts hypothécaires assurés au cours de la période selon le type de logement (%)","10.0","Appartement",{"$f":"IFERROR(VLOOKUP(A2200,Translation!$A:$C,3,FALSE),A2200)","v":16},{"$f":"IFERROR(VLOOKUP(B2200,Translation!$A:$C,3,FALSE),B2200)","v":"T4 2018"},{"$f":"IFERROR(VLOOKUP(C2200,Translation!$A:$C,3,FALSE),C2200)","v":"PROPRIÉTAIRES-OCCUPANTS, À L’UNITÉ"},{"$f":"IFERROR(VLOOKUP(D2200,Translation!$A:$C,3,FALSE),D2200)","v":"Appartement"},{"$f":"IFERROR(VLOOKUP(E2200,Translation!$A:$C,3,FALSE),E2200)","v":10.004770548218213},{"$f":"IFERROR(VLOOKUP(F2200,Translation!$A:$C,3,FALSE),F2200)","v":"Prêts hypothécaires assurés au cours de la période selon le type de logement (%)"},{"$f":"IFERROR(VLOOKUP(G2200,Translation!$A:$C,3,FALSE),G2200)","v":"10.0"},{"$f":"IFERROR(VLOOKUP(H2200,Translation!$A:$C,3,FALSE),H2200)","v":"Appartement"}]
[16,"Cumul 2017","PROPRIÉTAIRES-OCCUPANTS, À L’UNITÉ","Jumelé",7.6641122144763587,"Prêts hypothécaires assurés au cours de la période selon le type de logement (%)","7.7","Jumelé",{"$f":"IFERROR(VLOOKUP(A2203,Translation!$A:$C,3,FALSE),A2203)","v":16},{"$f":"IFERROR(VLOOKUP(B2203,Translation!$A:$C,3,FALSE),B2203)","v":"Cumul 2017"},{"$f":"IFERROR(VLOOKUP(C2203,Translation!$A:$C,3,FALSE),C2203)","v":"PROPRIÉTAIRES-OCCUPANTS, À L’UNITÉ"},{"$f":"IFERROR(VLOOKUP(D2203,Translation!$A:$C,3,FALSE),D2203)","v":"Jumelé"},{"$f":"IFERROR(VLOOKUP(E2203,Translation!$A:$C,3,FALSE),E2203)","v":7.6641122144763587},{"$f":"IFERROR(VLOOKUP(F2203,Translation!$A:$C,3,FALSE),F2203)","v":"Prêts hypothécaires assurés au cours de la période selon le type de logement (%)"},{"$f":"IFERROR(VLOOKUP(G2203,Translation!$A:$C,3,FALSE),G2203)","v":"7.7"},{"$f":"IFERROR(VLOOKUP(H2203,Translation!$A:$C,3,FALSE),H2203)","v":"Jumelé"}]
[16,"T4 2018","PROPRIÉTAIRES-OCCUPANTS, À L’UNITÉ","Plex",4.2382574261923027,"Prêts hypothécaires assurés au cours de la période selon le type de logement (%)","4.2","Plex",{"$f":"IFERROR(VLOOKUP(A2204,Translation!$A:$C,3,FALSE),A2204)","v":16},{"$f":"IFERROR(VLOOKUP(B2204,Translation!$A:$C,3,FALSE),B2204)","v":"T4 2018"},{"$f":"IFERROR(VLOOKUP(C2204,Translation!$A:$C,3,FALSE),C2204)","v":"PROPRIÉTAIRES-OCCUPANTS, À L’UNITÉ"},{"$f":"IFERROR(VLOOKUP(D2204,Translation!$A:$C,3,FALSE),D2204)","v":"Plex"},{"$f":"IFERROR(VLOOKUP(E2204,Translation!$A:$C,3,FALSE),E2204)","v":4.2382574261923027},{"$f":"IFERROR(VLOOKUP(F2204,Translation!$A:$C,3,FALSE),F2204)","v":"Prêts hypothécaires assurés au cours de la période selon le type de logement (%)"},{"$f":"IFERROR(VLOOKUP(G2204,Translation!$A:$C,3,FALSE),G2204)","v":"4.2"},{"$f":"IFERROR(VLOOKUP(H2204,Translation!$A:$C,3,FALSE),H2204)","v":"Plex"}]
[16,"T4 2018","ASSURANCE DE PORTEFEUILLE","Logement unifamilial",76.844121326150201,"Prêts hypothécaires assurés au cours de la période selon le type de logement (%)","76.8","Logement unifamilial",{"$f":"IFERROR(VLOOKUP(A2208,Translation!$A:$C,3,FALSE),A2208)","v":16},{"$f":"IFERROR(VLOOKUP(B2208,Translation!$A:$C,3,FALSE),B2208)","v":"T4 2018"},{"$f":"IFERROR(VLOOKUP(C2208,Translation!$A:$C,3,FALSE),C2208)","v":"ASSURANCE DE PORTEFEUILLE"},{"$f":"IFERROR(VLOOKUP(D2208,Translation!$A:$C,3,FALSE),D2208)","v":"Logement unifamilial"},{"$f":"IFERROR(VLOOKUP(E2208,Translation!$A:$C,3,FALSE),E2208)","v":76.844121326150201},{"$f":"IFERROR(VLOOKUP(F2208,Translation!$A:$C,3,FALSE),F2208)","v":"Prêts hypothécaires assurés au cours de la période selon le type de logement (%)"},{"$f":"IFERROR(VLOOKUP(G2208,Translation!$A:$C,3,FALSE),G2208)","v":"76.8"},{"$f":"IFERROR(VLOOKUP(H2208,Translation!$A:$C,3,FALSE),H2208)","v":"Logement unifamilial"}]
[16,"T4 2018","ASSURANCE DE PORTEFEUILLE","Maison en rangée",8.0118382628553224,"Prêts hypothécaires assurés au cours de la période selon le type de logement (%)","8.0","Maison en rangée",{"$f":"IFERROR(VLOOKUP(A2210,Translation!$A:$C,3,FALSE),A2210)","v":16},{"$f":"IFERROR(VLOOKUP(B2210,Translation!$A:$C,3,FALSE),B2210)","v":"T4 2018"},{"$f":"IFERROR(VLOOKUP(C2210,Translation!$A:$C,3,FALSE),C2210)","v":"ASSURANCE DE PORTEFEUILLE"},{"$f":"IFERROR(VLOOKUP(D2210,Translation!$A:$C,3,FALSE),D2210)","v":"Maison en rangée"},{"$f":"IFERROR(VLOOKUP(E2210,Translation!$A:$C,3,FALSE),E2210)","v":8.0118382628553224},{"$f":"IFERROR(VLOOKUP(F2210,Translation!$A:$C,3,FALSE),F2210)","v":"Prêts hypothécaires assurés au cours de la période selon le type de logement (%)"},{"$f":"IFERROR(VLOOKUP(G2210,Translation!$A:$C,3,FALSE),G2210)","v":"8.0"},{"$f":"IFERROR(VLOOKUP(H2210,Translation!$A:$C,3,FALSE),H2210)","v":"Maison en rangée"}]
[16,"Cumul 2017","ASSURANCE DE PORTEFEUILLE","Appartement",6.3482302657089997,"Prêts hypothécaires assurés au cours de la période selon le type de logement (%)","6.3","Appartement",{"$f":"IFERROR(VLOOKUP(A2213,Translation!$A:$C,3,FALSE),A2213)","v":16},{"$f":"IFERROR(VLOOKUP(B2213,Translation!$A:$C,3,FALSE),B2213)","v":"Cumul 2017"},{"$f":"IFERROR(VLOOKUP(C2213,Translation!$A:$C,3,FALSE),C2213)","v":"ASSURANCE DE PORTEFEUILLE"},{"$f":"IFERROR(VLOOKUP(D2213,Translation!$A:$C,3,FALSE),D2213)","v":"Appartement"},{"$f":"IFERROR(VLOOKUP(E2213,Translation!$A:$C,3,FALSE),E2213)","v":6.3482302657089997},{"$f":"IFERROR(VLOOKUP(F2213,Translation!$A:$C,3,FALSE),F2213)","v":"Prêts hypothécaires assurés au cours de la période selon le type de logement (%)"},{"$f":"IFERROR(VLOOKUP(G2213,Translation!$A:$C,3,FALSE),G2213)","v":"6.3"},{"$f":"IFERROR(VLOOKUP(H2213,Translation!$A:$C,3,FALSE),H2213)","v":"Appartement"}]
[16,"T4 2018","ASSURANCE DE PORTEFEUILLE","Jumelé",5.3497620677336721,"Prêts hypothécaires assurés au cours de la période selon le type de logement (%)","5.3","Jumelé",{"$f":"IFERROR(VLOOKUP(A2214,Translation!$A:$C,3,FALSE),A2214)","v":16},{"$f":"IFERROR(VLOOKUP(B2214,Translation!$A:$C,3,FALSE),B2214)","v":"T4 2018"},{"$f":"IFERROR(VLOOKUP(C2214,Translation!$A:$C,3,FALSE),C2214)","v":"ASSURANCE DE PORTEFEUILLE"},{"$f":"IFERROR(VLOOKUP(D2214,Translation!$A:$C,3,FALSE),D2214)","v":"Jumelé"},{"$f":"IFERROR(VLOOKUP(E2214,Translation!$A:$C,3,FALSE),E2214)","v":5.3497620677336721},{"$f":"IFERROR(VLOOKUP(F2214,Translation!$A:$C,3,FALSE),F2214)","v":"Prêts hypothécaires assurés au cours de la période selon le type de logement (%)"},{"$f":"IFERROR(VLOOKUP(G2214,Translation!$A:$C,3,FALSE),G2214)","v":"5.3"},{"$f":"IFERROR(VLOOKUP(H2214,Translation!$A:$C,3,FALSE),H2214)","v":"Jumelé"}]
[16,"T4 2018","ASSURANCE DE PORTEFEUILLE","Autre",0.72830345428661525,"Prêts hypothécaires assurés au cours de la période selon le type de logement (%)","0.7","Autre",{"$f":"IFERROR(VLOOKUP(A2218,Translation!$A:$C,3,FALSE),A2218)","v":16},{"$f":"IFERROR(VLOOKUP(B2218,Translation!$A:$C,3,FALSE),B2218)","v":"T4 2018"},{"$f":"IFERROR(VLOOKUP(C2218,Translation!$A:$C,3,FALSE),C2218)","v":"ASSURANCE DE PORTEFEUILLE"},{"$f":"IFERROR(VLOOKUP(D2218,Translation!$A:$C,3,FALSE),D2218)","v":"Autre"},{"$f":"IFERROR(VLOOKUP(E2218,Translation!$A:$C,3,FALSE),E2218)","v":0.72830345428661525},{"$f":"IFERROR(VLOOKUP(F2218,Translation!$A:$C,3,FALSE),F2218)","v":"Prêts hypothécaires assurés au cours de la période selon le type de logement (%)"},{"$f":"IFERROR(VLOOKUP(G2218,Translation!$A:$C,3,FALSE),G2218)","v":"0.7"},{"$f":"IFERROR(VLOOKUP(H2218,Translation!$A:$C,3,FALSE),H2218)","v":"Autre"}]
[16,"Cumul 2017","ASSURANCE DE PORTEFEUILLE","Autre",1.4678043659013749,"Prêts hypothécaires assurés au cours de la période selon le type de logement (%)","1.5","Autre",{"$f":"IFERROR(VLOOKUP(A2219,Translation!$A:$C,3,FALSE),A2219)","v":16},{"$f":"IFERROR(VLOOKUP(B2219,Translation!$A:$C,3,FALSE),B2219)","v":"Cumul 2017"},{"$f":"IFERROR(VLOOKUP(C2219,Translation!$A:$C,3,FALSE),C2219)","v":"ASSURANCE DE PORTEFEUILLE"},{"$f":"IFERROR(VLOOKUP(D2219,Translation!$A:$C,3,FALSE),D2219)","v":"Autre"},{"$f":"IFERROR(VLOOKUP(E2219,Translation!$A:$C,3,FALSE),E2219)","v":1.4678043659013749},{"$f":"IFERROR(VLOOKUP(F2219,Translation!$A:$C,3,FALSE),F2219)","v":"Prêts hypothécaires assurés au cours de la période selon le type de logement (%)"},{"$f":"IFERROR(VLOOKUP(G2219,Translation!$A:$C,3,FALSE),G2219)","v":"1.5"},{"$f":"IFERROR(VLOOKUP(H2219,Translation!$A:$C,3,FALSE),H2219)","v":"Autre"}]
[16,"Cumul 2017","PROPRIÉTAIRES-OCCUPANTS, À L’UNITÉ","Terre-Neuve-et-Labrador",84.688370101138659,"Prêts hypothécaires assurés au cours de la période selon le type de logement (%)","84.7","Terre-Neuve-et-Labrador",{"$f":"IFERROR(VLOOKUP(A2221,Translation!$A:$C,3,FALSE),A2221)","v":16},{"$f":"IFERROR(VLOOKUP(B2221,Translation!$A:$C,3,FALSE),B2221)","v":"Cumul 2017"},{"$f":"IFERROR(VLOOKUP(C2221,Translation!$A:$C,3,FALSE),C2221)","v":"PROPRIÉTAIRES-OCCUPANTS, À L’UNITÉ"},{"$f":"IFERROR(VLOOKUP(D2221,Translation!$A:$C,3,FALSE),D2221)","v":"Terre-Neuve-et-Labrador"},{"$f":"IFERROR(VLOOKUP(E2221,Translation!$A:$C,3,FALSE),E2221)","v":84.688370101138659},{"$f":"IFERROR(VLOOKUP(F2221,Translation!$A:$C,3,FALSE),F2221)","v":"Prêts hypothécaires assurés au cours de la période selon le type de logement (%)"},{"$f":"IFERROR(VLOOKUP(G2221,Translation!$A:$C,3,FALSE),G2221)","v":"84.7"},{"$f":"IFERROR(VLOOKUP(H2221,Translation!$A:$C,3,FALSE),H2221)","v":"Terre-Neuve-et-Labrador"}]
[16,"T4 2018","PROPRIÉTAIRES-OCCUPANTS, À L’UNITÉ","Nouvelle-Écosse",77.943227930942498,"Prêts hypothécaires assurés au cours de la période selon le type de logement (%)","77.9","Nouvelle-Écosse",{"$f":"IFERROR(VLOOKUP(A2224,Translation!$A:$C,3,FALSE),A2224)","v":16},{"$f":"IFERROR(VLOOKUP(B2224,Translation!$A:$C,3,FALSE),B2224)","v":"T4 2018"},{"$f":"IFERROR(VLOOKUP(C2224,Translation!$A:$C,3,FALSE),C2224)","v":"PROPRIÉTAIRES-OCCUPANTS, À L’UNITÉ"},{"$f":"IFERROR(VLOOKUP(D2224,Translation!$A:$C,3,FALSE),D2224)","v":"Nouvelle-Écosse"},{"$f":"IFERROR(VLOOKUP(E2224,Translation!$A:$C,3,FALSE),E2224)","v":77.943227930942498},{"$f":"IFERROR(VLOOKUP(F2224,Translation!$A:$C,3,FALSE),F2224)","v":"Prêts hypothécaires assurés au cours de la période selon le type de logement (%)"},{"$f":"IFERROR(VLOOKUP(G2224,Translation!$A:$C,3,FALSE),G2224)","v":"77.9"},{"$f":"IFERROR(VLOOKUP(H2224,Translation!$A:$C,3,FALSE),H2224)","v":"Nouvelle-Écosse"}]
[16,"Cumul 2017","PROPRIÉTAIRES-OCCUPANTS, À L’UNITÉ","Nouveau-Brunswick",83.626822740403341,"Prêts hypothécaires assurés au cours de la période selon le type de logement (%)","83.6","Nouveau-Brunswick",{"$f":"IFERROR(VLOOKUP(A2227,Translation!$A:$C,3,FALSE),A2227)","v":16},{"$f":"IFERROR(VLOOKUP(B2227,Translation!$A:$C,3,FALSE),B2227)","v":"Cumul 2017"},{"$f":"IFERROR(VLOOKUP(C2227,Translation!$A:$C,3,FALSE),C2227)","v":"PROPRIÉTAIRES-OCCUPANTS, À L’UNITÉ"},{"$f":"IFERROR(VLOOKUP(D2227,Translation!$A:$C,3,FALSE),D2227)","v":"Nouveau-Brunswick"},{"$f":"IFERROR(VLOOKUP(E2227,Translation!$A:$C,3,FALSE),E2227)","v":83.626822740403341},{"$f":"IFERROR(VLOOKUP(F2227,Translation!$A:$C,3,FALSE),F2227)","v":"Prêts hypothécaires assurés au cours de la période selon le type de logement (%)"},{"$f":"IFERROR(VLOOKUP(G2227,Translation!$A:$C,3,FALSE),G2227)","v":"83.6"},{"$f":"IFERROR(VLOOKUP(H2227,Translation!$A:$C,3,FALSE),H2227)","v":"Nouveau-Brunswick"}]
[16,"Cumul 2017","PROPRIÉTAIRES-OCCUPANTS, À L’UNITÉ","Québec",60.92801528917839,"Prêts hypothécaires assurés au cours de la période selon le type de logement (%)","60.9","Québec",{"$f":"IFERROR(VLOOKUP(A2229,Translation!$A:$C,3,FALSE),A2229)","v":16},{"$f":"IFERROR(VLOOKUP(B2229,Translation!$A:$C,3,FALSE),B2229)","v":"Cumul 2017"},{"$f":"IFERROR(VLOOKUP(C2229,Translation!$A:$C,3,FALSE),C2229)","v":"PROPRIÉTAIRES-OCCUPANTS, À L’UNITÉ"},{"$f":"IFERROR(VLOOKUP(D2229,Translation!$A:$C,3,FALSE),D2229)","v":"Québec"},{"$f":"IFERROR(VLOOKUP(E2229,Translation!$A:$C,3,FALSE),E2229)","v":60.92801528917839},{"$f":"IFERROR(VLOOKUP(F2229,Translation!$A:$C,3,FALSE),F2229)","v":"Prêts hypothécaires assurés au cours de la période selon le type de logement (%)"},{"$f":"IFERROR(VLOOKUP(G2229,Translation!$A:$C,3,FALSE),G2229)","v":"60.9"},{"$f":"IFERROR(VLOOKUP(H2229,Translation!$A:$C,3,FALSE),H2229)","v":"Québec"}]
[16,"T4 2018","PROPRIÉTAIRES-OCCUPANTS, À L’UNITÉ","Manitoba",86.038783101336662,"Prêts hypothécaires assurés au cours de la période selon le type de logement (%)","86.0","Manitoba",{"$f":"IFERROR(VLOOKUP(A2232,Translation!$A:$C,3,FALSE),A2232)","v":16},{"$f":"IFERROR(VLOOKUP(B2232,Translation!$A:$C,3,FALSE),B2232)","v":"T4 2018"},{"$f":"IFERROR(VLOOKUP(C2232,Translation!$A:$C,3,FALSE),C2232)","v":"PROPRIÉTAIRES-OCCUPANTS, À L’UNITÉ"},{"$f":"IFERROR(VLOOKUP(D2232,Translation!$A:$C,3,FALSE),D2232)","v":"Manitoba"},{"$f":"IFERROR(VLOOKUP(E2232,Translation!$A:$C,3,FALSE),E2232)","v":86.038783101336662},{"$f":"IFERROR(VLOOKUP(F2232,Translation!$A:$C,3,FALSE),F2232)","v":"Prêts hypothécaires assurés au cours de la période selon le type de logement (%)"},{"$f":"IFERROR(VLOOKUP(G2232,Translation!$A:$C,3,FALSE),G2232)","v":"86.0"},{"$f":"IFERROR(VLOOKUP(H2232,Translation!$A:$C,3,FALSE),H2232)","v":"Manitoba"}]
[16,"Cumul 2017","PROPRIÉTAIRES-OCCUPANTS, À L’UNITÉ","Saskatchewan",83.942596227369677,"Prêts hypothécaires assurés au cours de la période selon le type de logement (%)","83.9","Saskatchewan",{"$f":"IFERROR(VLOOKUP(A2235,Translation!$A:$C,3,FALSE),A2235)","v":16},{"$f":"IFERROR(VLOOKUP(B2235,Translation!$A:$C,3,FALSE),B2235)","v":"Cumul 2017"},{"$f":"IFERROR(VLOOKUP(C2235,Translation!$A:$C,3,FALSE),C2235)","v":"PROPRIÉTAIRES-OCCUPANTS, À L’UNITÉ"},{"$f":"IFERROR(VLOOKUP(D2235,Translation!$A:$C,3,FALSE),D2235)","v":"Saskatchewan"},{"$f":"IFERROR(VLOOKUP(E2235,Translation!$A:$C,3,FALSE),E2235)","v":83.942596227369677},{"$f":"IFERROR(VLOOKUP(F2235,Translation!$A:$C,3,FALSE),F2235)","v":"Prêts hypothécaires assurés au cours de la période selon le type de logement (%)"},{"$f":"IFERROR(VLOOKUP(G2235,Translation!$A:$C,3,FALSE),G2235)","v":"83.9"},{"$f":"IFERROR(VLOOKUP(H2235,Translation!$A:$C,3,FALSE),H2235)","v":"Saskatchewan"}]
[16,"Cumul 2017","PROPRIÉTAIRES-OCCUPANTS, À L’UNITÉ","Alberta",70.002760151997549,"Prêts hypothécaires assurés au cours de la période selon le type de logement (%)","70.0","Alberta",{"$f":"IFERROR(VLOOKUP(A2237,Translation!$A:$C,3,FALSE),A2237)","v":16},{"$f":"IFERROR(VLOOKUP(B2237,Translation!$A:$C,3,FALSE),B2237)","v":"Cumul 2017"},{"$f":"IFERROR(VLOOKUP(C2237,Translation!$A:$C,3,FALSE),C2237)","v":"PROPRIÉTAIRES-OCCUPANTS, À L’UNITÉ"},{"$f":"IFERROR(VLOOKUP(D2237,Translation!$A:$C,3,FALSE),D2237)","v":"Alberta"},{"$f":"IFERROR(VLOOKUP(E2237,Translation!$A:$C,3,FALSE),E2237)","v":70.002760151997549},{"$f":"IFERROR(VLOOKUP(F2237,Translation!$A:$C,3,FALSE),F2237)","v":"Prêts hypothécaires assurés au cours de la période selon le type de logement (%)"},{"$f":"IFERROR(VLOOKUP(G2237,Translation!$A:$C,3,FALSE),G2237)","v":"70.0"},{"$f":"IFERROR(VLOOKUP(H2237,Translation!$A:$C,3,FALSE),H2237)","v":"Alberta"}]
[16,"T4 2018","PROPRIÉTAIRES-OCCUPANTS, À L’UNITÉ","Colombie-Britannique",51.27146974098688,"Prêts hypothécaires assurés au cours de la période selon le type de logement (%)","51.3","Colombie-Britannique",{"$f":"IFERROR(VLOOKUP(A2238,Translation!$A:$C,3,FALSE),A2238)","v":16},{"$f":"IFERROR(VLOOKUP(B2238,Translation!$A:$C,3,FALSE),B2238)","v":"T4 2018"},{"$f":"IFERROR(VLOOKUP(C2238,Translation!$A:$C,3,FALSE),C2238)","v":"PROPRIÉTAIRES-OCCUPANTS, À L’UNITÉ"},{"$f":"IFERROR(VLOOKUP(D2238,Translation!$A:$C,3,FALSE),D2238)","v":"Colombie-Britannique"},{"$f":"IFERROR(VLOOKUP(E2238,Translation!$A:$C,3,FALSE),E2238)","v":51.27146974098688},{"$f":"IFERROR(VLOOKUP(F2238,Translation!$A:$C,3,FALSE),F2238)","v":"Prêts hypothécaires assurés au cours de la période selon le type de logement (%)"},{"$f":"IFERROR(VLOOKUP(G2238,Translation!$A:$C,3,FALSE),G2238)","v":"51.3"},{"$f":"IFERROR(VLOOKUP(H2238,Translation!$A:$C,3,FALSE),H2238)","v":"Colombie-Britannique"}]
[16,"T4 2018","PROPRIÉTAIRES-OCCUPANTS, À L’UNITÉ","Territoires",64.947015700172045,"Prêts hypothécaires assurés au cours de la période selon le type de logement (%)","64.9","Territoires",{"$f":"IFERROR(VLOOKUP(A2240,Translation!$A:$C,3,FALSE),A2240)","v":16},{"$f":"IFERROR(VLOOKUP(B2240,Translation!$A:$C,3,FALSE),B2240)","v":"T4 2018"},{"$f":"IFERROR(VLOOKUP(C2240,Translation!$A:$C,3,FALSE),C2240)","v":"PROPRIÉTAIRES-OCCUPANTS, À L’UNITÉ"},{"$f":"IFERROR(VLOOKUP(D2240,Translation!$A:$C,3,FALSE),D2240)","v":"Territoires"},{"$f":"IFERROR(VLOOKUP(E2240,Translation!$A:$C,3,FALSE),E2240)","v":64.947015700172045},{"$f":"IFERROR(VLOOKUP(F2240,Translation!$A:$C,3,FALSE),F2240)","v":"Prêts hypothécaires assurés au cours de la période selon le type de logement (%)"},{"$f":"IFERROR(VLOOKUP(G2240,Translation!$A:$C,3,FALSE),G2240)","v":"64.9"},{"$f":"IFERROR(VLOOKUP(H2240,Translation!$A:$C,3,FALSE),H2240)","v":"Territoires"}]
[16,"Cumul 2017","ASSURANCE DE PORTEFEUILLE","Terre-Neuve-et-Labrador",92.991303318755868,"Prêts hypothécaires assurés au cours de la période selon le type de logement (%)","93.0","Terre-Neuve-et-Labrador",{"$f":"IFERROR(VLOOKUP(A2243,Translation!$A:$C,3,FALSE),A2243)","v":16},{"$f":"IFERROR(VLOOKUP(B2243,Translation!$A:$C,3,FALSE),B2243)","v":"Cumul 2017"},{"$f":"IFERROR(VLOOKUP(C2243,Translation!$A:$C,3,FALSE),C2243)","v":"ASSURANCE DE PORTEFEUILLE"},{"$f":"IFERROR(VLOOKUP(D2243,Translation!$A:$C,3,FALSE),D2243)","v":"Terre-Neuve-et-Labrador"},{"$f":"IFERROR(VLOOKUP(E2243,Translation!$A:$C,3,FALSE),E2243)","v":92.991303318755868},{"$f":"IFERROR(VLOOKUP(F2243,Translation!$A:$C,3,FALSE),F2243)","v":"Prêts hypothécaires assurés au cours de la période selon le type de logement (%)"},{"$f":"IFERROR(VLOOKUP(G2243,Translation!$A:$C,3,FALSE),G2243)","v":"93.0"},{"$f":"IFERROR(VLOOKUP(H2243,Translation!$A:$C,3,FALSE),H2243)","v":"Terre-Neuve-et-Labrador"}]
[16,"Cumul 2017","ASSURANCE DE PORTEFEUILLE","Île-du-Prince-Édouard",94.140672128452167,"Prêts hypothécaires assurés au cours de la période selon le type de logement (%)","94.1","Île-du-Prince-Édouard",{"$f":"IFERROR(VLOOKUP(A2245,Translation!$A:$C,3,FALSE),A2245)","v":16},{"$f":"IFERROR(VLOOKUP(B2245,Translation!$A:$C,3,FALSE),B2245)","v":"Cumul 2017"},{"$f":"IFERROR(VLOOKUP(C2245,Translation!$A:$C,3,FALSE),C2245)","v":"ASSURANCE DE PORTEFEUILLE"},{"$f":"IFERROR(VLOOKUP(D2245,Translation!$A:$C,3,FALSE),D2245)","v":"Île-du-Prince-Édouard"},{"$f":"IFERROR(VLOOKUP(E2245,Translation!$A:$C,3,FALSE),E2245)","v":94.140672128452167},{"$f":"IFERROR(VLOOKUP(F2245,Translation!$A:$C,3,FALSE),F2245)","v":"Prêts hypothécaires assurés au cours de la période selon le type de logement (%)"},{"$f":"IFERROR(VLOOKUP(G2245,Translation!$A:$C,3,FALSE),G2245)","v":"94.1"},{"$f":"IFERROR(VLOOKUP(H2245,Translation!$A:$C,3,FALSE),H2245)","v":"Île-du-Prince-Édouard"}]
[16,"T4 2018","ASSURANCE DE PORTEFEUILLE","Nouveau-Brunswick",99.601303499265285,"Prêts hypothécaires assurés au cours de la période selon le type de logement (%)","99.6","Nouveau-Brunswick",{"$f":"IFERROR(VLOOKUP(A2248,Translation!$A:$C,3,FALSE),A2248)","v":16},{"$f":"IFERROR(VLOOKUP(B2248,Translation!$A:$C,3,FALSE),B2248)","v":"T4 2018"},{"$f":"IFERROR(VLOOKUP(C2248,Translation!$A:$C,3,FALSE),C2248)","v":"ASSURANCE DE PORTEFEUILLE"},{"$f":"IFERROR(VLOOKUP(D2248,Translation!$A:$C,3,FALSE),D2248)","v":"Nouveau-Brunswick"},{"$f":"IFERROR(VLOOKUP(E2248,Translation!$A:$C,3,FALSE),E2248)","v":99.601303499265285},{"$f":"IFERROR(VLOOKUP(F2248,Translation!$A:$C,3,FALSE),F2248)","v":"Prêts hypothécaires assurés au cours de la période selon le type de logement (%)"},{"$f":"IFERROR(VLOOKUP(G2248,Translation!$A:$C,3,FALSE),G2248)","v":"99.6"},{"$f":"IFERROR(VLOOKUP(H2248,Translation!$A:$C,3,FALSE),H2248)","v":"Nouveau-Brunswick"}]
[16,"Cumul 2017","ASSURANCE DE PORTEFEUILLE","Québec",88.292438258908675,"Prêts hypothécaires assurés au cours de la période selon le type de logement (%)","88.3","Québec",{"$f":"IFERROR(VLOOKUP(A2251,Translation!$A:$C,3,FALSE),A2251)","v":16},{"$f":"IFERROR(VLOOKUP(B2251,Translation!$A:$C,3,FALSE),B2251)","v":"Cumul 2017"},{"$f":"IFERROR(VLOOKUP(C2251,Translation!$A:$C,3,FALSE),C2251)","v":"ASSURANCE DE PORTEFEUILLE"},{"$f":"IFERROR(VLOOKUP(D2251,Translation!$A:$C,3,FALSE),D2251)","v":"Québec"},{"$f":"IFERROR(VLOOKUP(E2251,Translation!$A:$C,3,FALSE),E2251)","v":88.292438258908675},{"$f":"IFERROR(VLOOKUP(F2251,Translation!$A:$C,3,FALSE),F2251)","v":"Prêts hypothécaires assurés au cours de la période selon le type de logement (%)"},{"$f":"IFERROR(VLOOKUP(G2251,Translation!$A:$C,3,FALSE),G2251)","v":"88.3"},{"$f":"IFERROR(VLOOKUP(H2251,Translation!$A:$C,3,FALSE),H2251)","v":"Québec"}]
[16,"T4 2018","ASSURANCE DE PORTEFEUILLE","Manitoba",93.613788919040786,"Prêts hypothécaires assurés au cours de la période selon le type de logement (%)","93.6","Manitoba",{"$f":"IFERROR(VLOOKUP(A2254,Translation!$A:$C,3,FALSE),A2254)","v":16},{"$f":"IFERROR(VLOOKUP(B2254,Translation!$A:$C,3,FALSE),B2254)","v":"T4 2018"},{"$f":"IFERROR(VLOOKUP(C2254,Translation!$A:$C,3,FALSE),C2254)","v":"ASSURANCE DE PORTEFEUILLE"},{"$f":"IFERROR(VLOOKUP(D2254,Translation!$A:$C,3,FALSE),D2254)","v":"Manitoba"},{"$f":"IFERROR(VLOOKUP(E2254,Translation!$A:$C,3,FALSE),E2254)","v":93.613788919040786},{"$f":"IFERROR(VLOOKUP(F2254,Translation!$A:$C,3,FALSE),F2254)","v":"Prêts hypothécaires assurés au cours de la période selon le type de logement (%)"},{"$f":"IFERROR(VLOOKUP(G2254,Translation!$A:$C,3,FALSE),G2254)","v":"93.6"},{"$f":"IFERROR(VLOOKUP(H2254,Translation!$A:$C,3,FALSE),H2254)","v":"Manitoba"}]
[16,"T4 2018","ASSURANCE DE PORTEFEUILLE","Saskatchewan",93.877461387773437,"Prêts hypothécaires assurés au cours de la période selon le type de logement (%)","93.9","Saskatchewan",{"$f":"IFERROR(VLOOKUP(A2256,Translation!$A:$C,3,FALSE),A2256)","v":16},{"$f":"IFERROR(VLOOKUP(B2256,Translation!$A:$C,3,FALSE),B2256)","v":"T4 2018"},{"$f":"IFERROR(VLOOKUP(C2256,Translation!$A:$C,3,FALSE),C2256)","v":"ASSURANCE DE PORTEFEUILLE"},{"$f":"IFERROR(VLOOKUP(D2256,Translation!$A:$C,3,FALSE),D2256)","v":"Saskatchewan"},{"$f":"IFERROR(VLOOKUP(E2256,Translation!$A:$C,3,FALSE),E2256)","v":93.877461387773437},{"$f":"IFERROR(VLOOKUP(F2256,Translation!$A:$C,3,FALSE),F2256)","v":"Prêts hypothécaires assurés au cours de la période selon le type de logement (%)"},{"$f":"IFERROR(VLOOKUP(G2256,Translation!$A:$C,3,FALSE),G2256)","v":"93.9"},{"$f":"IFERROR(VLOOKUP(H2256,Translation!$A:$C,3,FALSE),H2256)","v":"Saskatchewan"}]
[16,"Cumul 2017","ASSURANCE DE PORTEFEUILLE","Alberta",83.313134364066187,"Prêts hypothécaires assurés au cours de la période selon le type de logement (%)","83.3","Alberta",{"$f":"IFERROR(VLOOKUP(A2259,Translation!$A:$C,3,FALSE),A2259)","v":16},{"$f":"IFERROR(VLOOKUP(B2259,Translation!$A:$C,3,FALSE),B2259)","v":"Cumul 2017"},{"$f":"IFERROR(VLOOKUP(C2259,Translation!$A:$C,3,FALSE),C2259)","v":"ASSURANCE DE PORTEFEUILLE"},{"$f":"IFERROR(VLOOKUP(D2259,Translation!$A:$C,3,FALSE),D2259)","v":"Alberta"},{"$f":"IFERROR(VLOOKUP(E2259,Translation!$A:$C,3,FALSE),E2259)","v":83.313134364066187},{"$f":"IFERROR(VLOOKUP(F2259,Translation!$A:$C,3,FALSE),F2259)","v":"Prêts hypothécaires assurés au cours de la période selon le type de logement (%)"},{"$f":"IFERROR(VLOOKUP(G2259,Translation!$A:$C,3,FALSE),G2259)","v":"83.3"},{"$f":"IFERROR(VLOOKUP(H2259,Translation!$A:$C,3,FALSE),H2259)","v":"Alberta"}]
[16,"Cumul 2017","ASSURANCE DE PORTEFEUILLE","Colombie-Britannique",63.502791522385138,"Prêts hypothécaires assurés au cours de la période selon le type de logement (%)","63.5","Colombie-Britannique",{"$f":"IFERROR(VLOOKUP(A2261,Translation!$A:$C,3,FALSE),A2261)","v":16},{"$f":"IFERROR(VLOOKUP(B2261,Translation!$A:$C,3,FALSE),B2261)","v":"Cumul 2017"},{"$f":"IFERROR(VLOOKUP(C2261,Translation!$A:$C,3,FALSE),C2261)","v":"ASSURANCE DE PORTEFEUILLE"},{"$f":"IFERROR(VLOOKUP(D2261,Translation!$A:$C,3,FALSE),D2261)","v":"Colombie-Britannique"},{"$f":"IFERROR(VLOOKUP(E2261,Translation!$A:$C,3,FALSE),E2261)","v":63.502791522385138},{"$f":"IFERROR(VLOOKUP(F2261,Translation!$A:$C,3,FALSE),F2261)","v":"Prêts hypothécaires assurés au cours de la période selon le type de logement (%)"},{"$f":"IFERROR(VLOOKUP(G2261,Translation!$A:$C,3,FALSE),G2261)","v":"63.5"},{"$f":"IFERROR(VLOOKUP(H2261,Translation!$A:$C,3,FALSE),H2261)","v":"Colombie-Britannique"}]
[16,"Cumul 2017","ASSURANCE DE PORTEFEUILLE","Territoires",60.598789652857114,"Prêts hypothécaires assurés au cours de la période selon le type de logement (%)","60.6","Territoires",{"$f":"IFERROR(VLOOKUP(A2262,Translation!$A:$C,3,FALSE),A2262)","v":16},{"$f":"IFERROR(VLOOKUP(B2262,Translation!$A:$C,3,FALSE),B2262)","v":"Cumul 2017"},{"$f":"IFERROR(VLOOKUP(C2262,Translation!$A:$C,3,FALSE),C2262)","v":"ASSURANCE DE PORTEFEUILLE"},{"$f":"IFERROR(VLOOKUP(D2262,Translation!$A:$C,3,FALSE),D2262)","v":"Territoires"},{"$f":"IFERROR(VLOOKUP(E2262,Translation!$A:$C,3,FALSE),E2262)","v":60.598789652857114},{"$f":"IFERROR(VLOOKUP(F2262,Translation!$A:$C,3,FALSE),F2262)","v":"Prêts hypothécaires assurés au cours de la période selon le type de logement (%)"},{"$f":"IFERROR(VLOOKUP(G2262,Translation!$A:$C,3,FALSE),G2262)","v":"60.6"},{"$f":"IFERROR(VLOOKUP(H2262,Translation!$A:$C,3,FALSE),H2262)","v":"Territoires"}]
[29,"T4 2018","IMMEUBLES COLLECTIFS RÉSIDENTIELS","Maison de retraite/de repos",9.8997638488089681,"Prêts hypothécaires assurés au cours de la période selon le type de logement (%)","9.9","Maison de retraite/de repos",{"$f":"IFERROR(VLOOKUP(A2265,Translation!$A:$C,3,FALSE),A2265)","v":29},{"$f":"IFERROR(VLOOKUP(B2265,Translation!$A:$C,3,FALSE),B2265)","v":"T4 2018"},{"$f":"IFERROR(VLOOKUP(C2265,Translation!$A:$C,3,FALSE),C2265)","v":"IMMEUBLES COLLECTIFS RÉSIDENTIELS"},{"$f":"IFERROR(VLOOKUP(D2265,Translation!$A:$C,3,FALSE),D2265)","v":"Maison de retraite/de repos"},{"$f":"IFERROR(VLOOKUP(E2265,Translation!$A:$C,3,FALSE),E2265)","v":9.8997638488089681},{"$f":"IFERROR(VLOOKUP(F2265,Translation!$A:$C,3,FALSE),F2265)","v":"Prêts hypothécaires assurés au cours de la période selon le type de logement (%)"},{"$f":"IFERROR(VLOOKUP(G2265,Translation!$A:$C,3,FALSE),G2265)","v":"9.9"},{"$f":"IFERROR(VLOOKUP(H2265,Translation!$A:$C,3,FALSE),H2265)","v":"Maison de retraite/de repos"}]
[29,"T4 2018","IMMEUBLES COLLECTIFS RÉSIDENTIELS","Autre",1.5166723433273941,"Prêts hypothécaires assurés au cours de la période selon le type de logement (%)","1.5","Autre",{"$f":"IFERROR(VLOOKUP(A2267,Translation!$A:$C,3,FALSE),A2267)","v":29},{"$f":"IFERROR(VLOOKUP(B2267,Translation!$A:$C,3,FALSE),B2267)","v":"T4 2018"},{"$f":"IFERROR(VLOOKUP(C2267,Translation!$A:$C,3,FALSE),C2267)","v":"IMMEUBLES COLLECTIFS RÉSIDENTIELS"},{"$f":"IFERROR(VLOOKUP(D2267,Translation!$A:$C,3,FALSE),D2267)","v":"Autre"},{"$f":"IFERROR(VLOOKUP(E2267,Translation!$A:$C,3,FALSE),E2267)","v":1.5166723433273941},{"$f":"IFERROR(VLOOKUP(F2267,Translation!$A:$C,3,FALSE),F2267)","v":"Prêts hypothécaires assurés au cours de la période selon le type de logement (%)"},{"$f":"IFERROR(VLOOKUP(G2267,Translation!$A:$C,3,FALSE),G2267)","v":"1.5"},{"$f":"IFERROR(VLOOKUP(H2267,Translation!$A:$C,3,FALSE),H2267)","v":"Autre"}]
[29,"T4 2018","IMMEUBLES COLLECTIFS RÉSIDENTIELS","Île-du-Prince-Édouard",100,"Prêts hypothécaires assurés au cours de la période selon le type de logement (%)","100.0","Île-du-Prince-Édouard",{"$f":"IFERROR(VLOOKUP(A2270,Translation!$A:$C,3,FALSE),A2270)","v":29},{"$f":"IFERROR(VLOOKUP(B2270,Translation!$A:$C,3,FALSE),B2270)","v":"T4 2018"},{"$f":"IFERROR(VLOOKUP(C2270,Translation!$A:$C,3,FALSE),C2270)","v":"IMMEUBLES COLLECTIFS RÉSIDENTIELS"},{"$f":"IFERROR(VLOOKUP(D2270,Translation!$A:$C,3,FALSE),D2270)","v":"Île-du-Prince-Édouard"},{"$f":"IFERROR(VLOOKUP(E2270,Translation!$A:$C,3,FALSE),E2270)","v":100},{"$f":"IFERROR(VLOOKUP(F2270,Translation!$A:$C,3,FALSE),F2270)","v":"Prêts hypothécaires assurés au cours de la période selon le type de logement (%)"},{"$f":"IFERROR(VLOOKUP(G2270,Translation!$A:$C,3,FALSE),G2270)","v":"100.0"},{"$f":"IFERROR(VLOOKUP(H2270,Translation!$A:$C,3,FALSE),H2270)","v":"Île-du-Prince-Édouard"}]
[29,"T4 2018","IMMEUBLES COLLECTIFS RÉSIDENTIELS","Nouvelle-Écosse",98.098873544988507,"Prêts hypothécaires assurés au cours de la période selon le type de logement (%)","98.1","Nouvelle-Écosse",{"$f":"IFERROR(VLOOKUP(A2272,Translation!$A:$C,3,FALSE),A2272)","v":29},{"$f":"IFERROR(VLOOKUP(B2272,Translation!$A:$C,3,FALSE),B2272)","v":"T4 2018"},{"$f":"IFERROR(VLOOKUP(C2272,Translation!$A:$C,3,FALSE),C2272)","v":"IMMEUBLES COLLECTIFS RÉSIDENTIELS"},{"$f":"IFERROR(VLOOKUP(D2272,Translation!$A:$C,3,FALSE),D2272)","v":"Nouvelle-Écosse"},{"$f":"IFERROR(VLOOKUP(E2272,Translation!$A:$C,3,FALSE),E2272)","v":98.098873544988507},{"$f":"IFERROR(VLOOKUP(F2272,Translation!$A:$C,3,FALSE),F2272)","v":"Prêts hypothécaires assurés au cours de la période selon le type de logement (%)"},{"$f":"IFERROR(VLOOKUP(G2272,Translation!$A:$C,3,FALSE),G2272)","v":"98.1"},{"$f":"IFERROR(VLOOKUP(H2272,Translation!$A:$C,3,FALSE),H2272)","v":"Nouvelle-Écosse"}]
[29,"Cumul 2017","IMMEUBLES COLLECTIFS RÉSIDENTIELS","Nouveau-Brunswick",96.638234334133614,"Prêts hypothécaires assurés au cours de la période selon le type de logement (%)","96.6","Nouveau-Brunswick",{"$f":"IFERROR(VLOOKUP(A2275,Translation!$A:$C,3,FALSE),A2275)","v":29},{"$f":"IFERROR(VLOOKUP(B2275,Translation!$A:$C,3,FALSE),B2275)","v":"Cumul 2017"},{"$f":"IFERROR(VLOOKUP(C2275,Translation!$A:$C,3,FALSE),C2275)","v":"IMMEUBLES COLLECTIFS RÉSIDENTIELS"},{"$f":"IFERROR(VLOOKUP(D2275,Translation!$A:$C,3,FALSE),D2275)","v":"Nouveau-Brunswick"},{"$f":"IFERROR(VLOOKUP(E2275,Translation!$A:$C,3,FALSE),E2275)","v":96.638234334133614},{"$f":"IFERROR(VLOOKUP(F2275,Translation!$A:$C,3,FALSE),F2275)","v":"Prêts hypothécaires assurés au cours de la période selon le type de logement (%)"},{"$f":"IFERROR(VLOOKUP(G2275,Translation!$A:$C,3,FALSE),G2275)","v":"96.6"},{"$f":"IFERROR(VLOOKUP(H2275,Translation!$A:$C,3,FALSE),H2275)","v":"Nouveau-Brunswick"}]
[29,"T4 2018","IMMEUBLES COLLECTIFS RÉSIDENTIELS","Ontario",91.139556422428157,"Prêts hypothécaires assurés au cours de la période selon le type de logement (%)","91.1","Ontario",{"$f":"IFERROR(VLOOKUP(A2278,Translation!$A:$C,3,FALSE),A2278)","v":29},{"$f":"IFERROR(VLOOKUP(B2278,Translation!$A:$C,3,FALSE),B2278)","v":"T4 2018"},{"$f":"IFERROR(VLOOKUP(C2278,Translation!$A:$C,3,FALSE),C2278)","v":"IMMEUBLES COLLECTIFS RÉSIDENTIELS"},{"$f":"IFERROR(VLOOKUP(D2278,Translation!$A:$C,3,FALSE),D2278)","v":"Ontario"},{"$f":"IFERROR(VLOOKUP(E2278,Translation!$A:$C,3,FALSE),E2278)","v":91.139556422428157},{"$f":"IFERROR(VLOOKUP(F2278,Translation!$A:$C,3,FALSE),F2278)","v":"Prêts hypothécaires assurés au cours de la période selon le type de logement (%)"},{"$f":"IFERROR(VLOOKUP(G2278,Translation!$A:$C,3,FALSE),G2278)","v":"91.1"},{"$f":"IFERROR(VLOOKUP(H2278,Translation!$A:$C,3,FALSE),H2278)","v":"Ontario"}]
[29,"T4 2018","IMMEUBLES COLLECTIFS RÉSIDENTIELS","Manitoba",100,"Prêts hypothécaires assurés au cours de la période selon le type de logement (%)","100.0","Manitoba",{"$f":"IFERROR(VLOOKUP(A2280,Translation!$A:$C,3,FALSE),A2280)","v":29},{"$f":"IFERROR(VLOOKUP(B2280,Translation!$A:$C,3,FALSE),B2280)","v":"T4 2018"},{"$f":"IFERROR(VLOOKUP(C2280,Translation!$A:$C,3,FALSE),C2280)","v":"IMMEUBLES COLLECTIFS RÉSIDENTIELS"},{"$f":"IFERROR(VLOOKUP(D2280,Translation!$A:$C,3,FALSE),D2280)","v":"Manitoba"},{"$f":"IFERROR(VLOOKUP(E2280,Translation!$A:$C,3,FALSE),E2280)","v":100},{"$f":"IFERROR(VLOOKUP(F2280,Translation!$A:$C,3,FALSE),F2280)","v":"Prêts hypothécaires assurés au cours de la période selon le type de logement (%)"},{"$f":"IFERROR(VLOOKUP(G2280,Translation!$A:$C,3,FALSE),G2280)","v":"100.0"},{"$f":"IFERROR(VLOOKUP(H2280,Translation!$A:$C,3,FALSE),H2280)","v":"Manitoba"}]
[29,"Cumul 2017","IMMEUBLES COLLECTIFS RÉSIDENTIELS","Manitoba",100,"Prêts hypothécaires assurés au cours de la période selon le type de logement (%)","100.0","Manitoba",{"$f":"IFERROR(VLOOKUP(A2281,Translation!$A:$C,3,FALSE),A2281)","v":29},{"$f":"IFERROR(VLOOKUP(B2281,Translation!$A:$C,3,FALSE),B2281)","v":"Cumul 2017"},{"$f":"IFERROR(VLOOKUP(C2281,Translation!$A:$C,3,FALSE),C2281)","v":"IMMEUBLES COLLECTIFS RÉSIDENTIELS"},{"$f":"IFERROR(VLOOKUP(D2281,Translation!$A:$C,3,FALSE),D2281)","v":"Manitoba"},{"$f":"IFERROR(VLOOKUP(E2281,Translation!$A:$C,3,FALSE),E2281)","v":100},{"$f":"IFERROR(VLOOKUP(F2281,Translation!$A:$C,3,FALSE),F2281)","v":"Prêts hypothécaires assurés au cours de la période selon le type de logement (%)"},{"$f":"IFERROR(VLOOKUP(G2281,Translation!$A:$C,3,FALSE),G2281)","v":"100.0"},{"$f":"IFERROR(VLOOKUP(H2281,Translation!$A:$C,3,FALSE),H2281)","v":"Manitoba"}]
[29,"Cumul 2017","IMMEUBLES COLLECTIFS RÉSIDENTIELS","Alberta",91.075481911420482,"Prêts hypothécaires assurés au cours de la période selon le type de logement (%)","91.1","Alberta",{"$f":"IFERROR(VLOOKUP(A2285,Translation!$A:$C,3,FALSE),A2285)","v":29},{"$f":"IFERROR(VLOOKUP(B2285,Translation!$A:$C,3,FALSE),B2285)","v":"Cumul 2017"},{"$f":"IFERROR(VLOOKUP(C2285,Translation!$A:$C,3,FALSE),C2285)","v":"IMMEUBLES COLLECTIFS RÉSIDENTIELS"},{"$f":"IFERROR(VLOOKUP(D2285,Translation!$A:$C,3,FALSE),D2285)","v":"Alberta"},{"$f":"IFERROR(VLOOKUP(E2285,Translation!$A:$C,3,FALSE),E2285)","v":91.075481911420482},{"$f":"IFERROR(VLOOKUP(F2285,Translation!$A:$C,3,FALSE),F2285)","v":"Prêts hypothécaires assurés au cours de la période selon le type de logement (%)"},{"$f":"IFERROR(VLOOKUP(G2285,Translation!$A:$C,3,FALSE),G2285)","v":"91.1"},{"$f":"IFERROR(VLOOKUP(H2285,Translation!$A:$C,3,FALSE),H2285)","v":"Alberta"}]
[29,"T4 2018","IMMEUBLES COLLECTIFS RÉSIDENTIELS","Colombie-Britannique",87.121502963963692,"Prêts hypothécaires assurés au cours de la période selon le type de logement (%)","87.1","Colombie-Britannique",{"$f":"IFERROR(VLOOKUP(A2286,Translation!$A:$C,3,FALSE),A2286)","v":29},{"$f":"IFERROR(VLOOKUP(B2286,Translation!$A:$C,3,FALSE),B2286)","v":"T4 2018"},{"$f":"IFERROR(VLOOKUP(C2286,Translation!$A:$C,3,FALSE),C2286)","v":"IMMEUBLES COLLECTIFS RÉSIDENTIELS"},{"$f":"IFERROR(VLOOKUP(D2286,Translation!$A:$C,3,FALSE),D2286)","v":"Colombie-Britannique"},{"$f":"IFERROR(VLOOKUP(E2286,Translation!$A:$C,3,FALSE),E2286)","v":87.121502963963692},{"$f":"IFERROR(VLOOKUP(F2286,Translation!$A:$C,3,FALSE),F2286)","v":"Prêts hypothécaires assurés au cours de la période selon le type de logement (%)"},{"$f":"IFERROR(VLOOKUP(G2286,Translation!$A:$C,3,FALSE),G2286)","v":"87.1"},{"$f":"IFERROR(VLOOKUP(H2286,Translation!$A:$C,3,FALSE),H2286)","v":"Colombie-Britannique"}]
[16,"T3 2018","PROPRIÉTAIRES-OCCUPANTS, À L’UNITÉ","Logement unifamilial",65.826591265341619,"Prêts hypothécaires assurés au cours de la période selon le type de logement (%)","65.8","Logement unifamilial",{"$f":"IFERROR(VLOOKUP(A2289,Translation!$A:$C,3,FALSE),A2289)","v":16},{"$f":"IFERROR(VLOOKUP(B2289,Translation!$A:$C,3,FALSE),B2289)","v":"T3 2018"},{"$f":"IFERROR(VLOOKUP(C2289,Translation!$A:$C,3,FALSE),C2289)","v":"PROPRIÉTAIRES-OCCUPANTS, À L’UNITÉ"},{"$f":"IFERROR(VLOOKUP(D2289,Translation!$A:$C,3,FALSE),D2289)","v":"Logement unifamilial"},{"$f":"IFERROR(VLOOKUP(E2289,Translation!$A:$C,3,FALSE),E2289)","v":65.826591265341619},{"$f":"IFERROR(VLOOKUP(F2289,Translation!$A:$C,3,FALSE),F2289)","v":"Prêts hypothécaires assurés au cours de la période selon le type de logement (%)"},{"$f":"IFERROR(VLOOKUP(G2289,Translation!$A:$C,3,FALSE),G2289)","v":"65.8"},{"$f":"IFERROR(VLOOKUP(H2289,Translation!$A:$C,3,FALSE),H2289)","v":"Logement unifamilial"}]
[16,"T3 2018","PROPRIÉTAIRES-OCCUPANTS, À L’UNITÉ","Appartement",9.8196009734337579,"Prêts hypothécaires assurés au cours de la période selon le type de logement (%)","9.8","Appartement",{"$f":"IFERROR(VLOOKUP(A2291,Translation!$A:$C,3,FALSE),A2291)","v":16},{"$f":"IFERROR(VLOOKUP(B2291,Translation!$A:$C,3,FALSE),B2291)","v":"T3 2018"},{"$f":"IFERROR(VLOOKUP(C2291,Translation!$A:$C,3,FALSE),C2291)","v":"PROPRIÉTAIRES-OCCUPANTS, À L’UNITÉ"},{"$f":"IFERROR(VLOOKUP(D2291,Translation!$A:$C,3,FALSE),D2291)","v":"Appartement"},{"$f":"IFERROR(VLOOKUP(E2291,Translation!$A:$C,3,FALSE),E2291)","v":9.8196009734337579},{"$f":"IFERROR(VLOOKUP(F2291,Translation!$A:$C,3,FALSE),F2291)","v":"Prêts hypothécaires assurés au cours de la période selon le type de logement (%)"},{"$f":"IFERROR(VLOOKUP(G2291,Translation!$A:$C,3,FALSE),G2291)","v":"9.8"},{"$f":"IFERROR(VLOOKUP(H2291,Translation!$A:$C,3,FALSE),H2291)","v":"Appartement"}]
[16,"T3 2018","ASSURANCE DE PORTEFEUILLE","Logement unifamilial",69.903740592195405,"Prêts hypothécaires assurés au cours de la période selon le type de logement (%)","69.9","Logement unifamilial",{"$f":"IFERROR(VLOOKUP(A2295,Translation!$A:$C,3,FALSE),A2295)","v":16},{"$f":"IFERROR(VLOOKUP(B2295,Translation!$A:$C,3,FALSE),B2295)","v":"T3 2018"},{"$f":"IFERROR(VLOOKUP(C2295,Translation!$A:$C,3,FALSE),C2295)","v":"ASSURANCE DE PORTEFEUILLE"},{"$f":"IFERROR(VLOOKUP(D2295,Translation!$A:$C,3,FALSE),D2295)","v":"Logement unifamilial"},{"$f":"IFERROR(VLOOKUP(E2295,Translation!$A:$C,3,FALSE),E2295)","v":69.903740592195405},{"$f":"IFERROR(VLOOKUP(F2295,Translation!$A:$C,3,FALSE),F2295)","v":"Prêts hypothécaires assurés au cours de la période selon le type de logement (%)"},{"$f":"IFERROR(VLOOKUP(G2295,Translation!$A:$C,3,FALSE),G2295)","v":"69.9"},{"$f":"IFERROR(VLOOKUP(H2295,Translation!$A:$C,3,FALSE),H2295)","v":"Logement unifamilial"}]
[16,"T3 2018","ASSURANCE DE PORTEFEUILLE","Maison en rangée",19.427073246606216,"Prêts hypothécaires assurés au cours de la période selon le type de logement (%)","19.4","Maison en rangée",{"$f":"IFERROR(VLOOKUP(A2296,Translation!$A:$C,3,FALSE),A2296)","v":16},{"$f":"IFERROR(VLOOKUP(B2296,Translation!$A:$C,3,FALSE),B2296)","v":"T3 2018"},{"$f":"IFERROR(VLOOKUP(C2296,Translation!$A:$C,3,FALSE),C2296)","v":"ASSURANCE DE PORTEFEUILLE"},{"$f":"IFERROR(VLOOKUP(D2296,Translation!$A:$C,3,FALSE),D2296)","v":"Maison en rangée"},{"$f":"IFERROR(VLOOKUP(E2296,Translation!$A:$C,3,FALSE),E2296)","v":19.427073246606216},{"$f":"IFERROR(VLOOKUP(F2296,Translation!$A:$C,3,FALSE),F2296)","v":"Prêts hypothécaires assurés au cours de la période selon le type de logement (%)"},{"$f":"IFERROR(VLOOKUP(G2296,Translation!$A:$C,3,FALSE),G2296)","v":"19.4"},{"$f":"IFERROR(VLOOKUP(H2296,Translation!$A:$C,3,FALSE),H2296)","v":"Maison en rangée"}]
[16,"T3 2018","ASSURANCE DE PORTEFEUILLE","Plex",0.50915058352963938,"Prêts hypothécaires assurés au cours de la période selon le type de logement (%)","0.5","Plex",{"$f":"IFERROR(VLOOKUP(A2299,Translation!$A:$C,3,FALSE),A2299)","v":16},{"$f":"IFERROR(VLOOKUP(B2299,Translation!$A:$C,3,FALSE),B2299)","v":"T3 2018"},{"$f":"IFERROR(VLOOKUP(C2299,Translation!$A:$C,3,FALSE),C2299)","v":"ASSURANCE DE PORTEFEUILLE"},{"$f":"IFERROR(VLOOKUP(D2299,Translation!$A:$C,3,FALSE),D2299)","v":"Plex"},{"$f":"IFERROR(VLOOKUP(E2299,Translation!$A:$C,3,FALSE),E2299)","v":0.50915058352963938},{"$f":"IFERROR(VLOOKUP(F2299,Translation!$A:$C,3,FALSE),F2299)","v":"Prêts hypothécaires assurés au cours de la période selon le type de logement (%)"},{"$f":"IFERROR(VLOOKUP(G2299,Translation!$A:$C,3,FALSE),G2299)","v":"0.5"},{"$f":"IFERROR(VLOOKUP(H2299,Translation!$A:$C,3,FALSE),H2299)","v":"Plex"}]
[16,"T3 2018","ASSURANCE DE PORTEFEUILLE","Autre",0.13894434317095031,"Prêts hypothécaires assurés au cours de la période selon le type de logement (%)","0.1","Autre",{"$f":"IFERROR(VLOOKUP(A2300,Translation!$A:$C,3,FALSE),A2300)","v":16},{"$f":"IFERROR(VLOOKUP(B2300,Translation!$A:$C,3,FALSE),B2300)","v":"T3 2018"},{"$f":"IFERROR(VLOOKUP(C2300,Translation!$A:$C,3,FALSE),C2300)","v":"ASSURANCE DE PORTEFEUILLE"},{"$f":"IFERROR(VLOOKUP(D2300,Translation!$A:$C,3,FALSE),D2300)","v":"Autre"},{"$f":"IFERROR(VLOOKUP(E2300,Translation!$A:$C,3,FALSE),E2300)","v":0.13894434317095031},{"$f":"IFERROR(VLOOKUP(F2300,Translation!$A:$C,3,FALSE),F2300)","v":"Prêts hypothécaires assurés au cours de la période selon le type de logement (%)"},{"$f":"IFERROR(VLOOKUP(G2300,Translation!$A:$C,3,FALSE),G2300)","v":"0.1"},{"$f":"IFERROR(VLOOKUP(H2300,Translation!$A:$C,3,FALSE),H2300)","v":"Autre"}]
[16,"T3 2018","PROPRIÉTAIRES-OCCUPANTS, À L’UNITÉ","Nouveau-Brunswick",83.569736488119119,"Prêts hypothécaires assurés au cours de la période selon le type de logement (%)","83.6","Nouveau-Brunswick",{"$f":"IFERROR(VLOOKUP(A2304,Translation!$A:$C,3,FALSE),A2304)","v":16},{"$f":"IFERROR(VLOOKUP(B2304,Translation!$A:$C,3,FALSE),B2304)","v":"T3 2018"},{"$f":"IFERROR(VLOOKUP(C2304,Translation!$A:$C,3,FALSE),C2304)","v":"PROPRIÉTAIRES-OCCUPANTS, À L’UNITÉ"},{"$f":"IFERROR(VLOOKUP(D2304,Translation!$A:$C,3,FALSE),D2304)","v":"Nouveau-Brunswick"},{"$f":"IFERROR(VLOOKUP(E2304,Translation!$A:$C,3,FALSE),E2304)","v":83.569736488119119},{"$f":"IFERROR(VLOOKUP(F2304,Translation!$A:$C,3,FALSE),F2304)","v":"Prêts hypothécaires assurés au cours de la période selon le type de logement (%)"},{"$f":"IFERROR(VLOOKUP(G2304,Translation!$A:$C,3,FALSE),G2304)","v":"83.6"},{"$f":"IFERROR(VLOOKUP(H2304,Translation!$A:$C,3,FALSE),H2304)","v":"Nouveau-Brunswick"}]
[16,"T3 2018","PROPRIÉTAIRES-OCCUPANTS, À L’UNITÉ","Ontario",61.097057525224216,"Prêts hypothécaires assurés au cours de la période selon le type de logement (%)","61.1","Ontario",{"$f":"IFERROR(VLOOKUP(A2306,Translation!$A:$C,3,FALSE),A2306)","v":16},{"$f":"IFERROR(VLOOKUP(B2306,Translation!$A:$C,3,FALSE),B2306)","v":"T3 2018"},{"$f":"IFERROR(VLOOKUP(C2306,Translation!$A:$C,3,FALSE),C2306)","v":"PROPRIÉTAIRES-OCCUPANTS, À L’UNITÉ"},{"$f":"IFERROR(VLOOKUP(D2306,Translation!$A:$C,3,FALSE),D2306)","v":"Ontario"},{"$f":"IFERROR(VLOOKUP(E2306,Translation!$A:$C,3,FALSE),E2306)","v":61.097057525224216},{"$f":"IFERROR(VLOOKUP(F2306,Translation!$A:$C,3,FALSE),F2306)","v":"Prêts hypothécaires assurés au cours de la période selon le type de logement (%)"},{"$f":"IFERROR(VLOOKUP(G2306,Translation!$A:$C,3,FALSE),G2306)","v":"61.1"},{"$f":"IFERROR(VLOOKUP(H2306,Translation!$A:$C,3,FALSE),H2306)","v":"Ontario"}]
[16,"T3 2018","PROPRIÉTAIRES-OCCUPANTS, À L’UNITÉ","Alberta",73.03049738486078,"Prêts hypothécaires assurés au cours de la période selon le type de logement (%)","73.0","Alberta",{"$f":"IFERROR(VLOOKUP(A2309,Translation!$A:$C,3,FALSE),A2309)","v":16},{"$f":"IFERROR(VLOOKUP(B2309,Translation!$A:$C,3,FALSE),B2309)","v":"T3 2018"},{"$f":"IFERROR(VLOOKUP(C2309,Translation!$A:$C,3,FALSE),C2309)","v":"PROPRIÉTAIRES-OCCUPANTS, À L’UNITÉ"},{"$f":"IFERROR(VLOOKUP(D2309,Translation!$A:$C,3,FALSE),D2309)","v":"Alberta"},{"$f":"IFERROR(VLOOKUP(E2309,Translation!$A:$C,3,FALSE),E2309)","v":73.03049738486078},{"$f":"IFERROR(VLOOKUP(F2309,Translation!$A:$C,3,FALSE),F2309)","v":"Prêts hypothécaires assurés au cours de la période selon le type de logement (%)"},{"$f":"IFERROR(VLOOKUP(G2309,Translation!$A:$C,3,FALSE),G2309)","v":"73.0"},{"$f":"IFERROR(VLOOKUP(H2309,Translation!$A:$C,3,FALSE),H2309)","v":"Alberta"}]
[16,"T3 2018","PROPRIÉTAIRES-OCCUPANTS, À L’UNITÉ","Colombie-Britannique",50.345205432085201,"Prêts hypothécaires assurés au cours de la période selon le type de logement (%)","50.3","Colombie-Britannique",{"$f":"IFERROR(VLOOKUP(A2310,Translation!$A:$C,3,FALSE),A2310)","v":16},{"$f":"IFERROR(VLOOKUP(B2310,Translation!$A:$C,3,FALSE),B2310)","v":"T3 2018"},{"$f":"IFERROR(VLOOKUP(C2310,Translation!$A:$C,3,FALSE),C2310)","v":"PROPRIÉTAIRES-OCCUPANTS, À L’UNITÉ"},{"$f":"IFERROR(VLOOKUP(D2310,Translation!$A:$C,3,FALSE),D2310)","v":"Colombie-Britannique"},{"$f":"IFERROR(VLOOKUP(E2310,Translation!$A:$C,3,FALSE),E2310)","v":50.345205432085201},{"$f":"IFERROR(VLOOKUP(F2310,Translation!$A:$C,3,FALSE),F2310)","v":"Prêts hypothécaires assurés au cours de la période selon le type de logement (%)"},{"$f":"IFERROR(VLOOKUP(G2310,Translation!$A:$C,3,FALSE),G2310)","v":"50.3"},{"$f":"IFERROR(VLOOKUP(H2310,Translation!$A:$C,3,FALSE),H2310)","v":"Colombie-Britannique"}]
[16,"T3 2018","ASSURANCE DE PORTEFEUILLE","Nouveau-Brunswick",97.113640453988381,"Prêts hypothécaires assurés au cours de la période selon le type de logement (%)","97.1","Nouveau-Brunswick",{"$f":"IFERROR(VLOOKUP(A2314,Translation!$A:$C,3,FALSE),A2314)","v":16},{"$f":"IFERROR(VLOOKUP(B2314,Translation!$A:$C,3,FALSE),B2314)","v":"T3 2018"},{"$f":"IFERROR(VLOOKUP(C2314,Translation!$A:$C,3,FALSE),C2314)","v":"ASSURANCE DE PORTEFEUILLE"},{"$f":"IFERROR(VLOOKUP(D2314,Translation!$A:$C,3,FALSE),D2314)","v":"Nouveau-Brunswick"},{"$f":"IFERROR(VLOOKUP(E2314,Translation!$A:$C,3,FALSE),E2314)","v":97.113640453988381},{"$f":"IFERROR(VLOOKUP(F2314,Translation!$A:$C,3,FALSE),F2314)","v":"Prêts hypothécaires assurés au cours de la période selon le type de logement (%)"},{"$f":"IFERROR(VLOOKUP(G2314,Translation!$A:$C,3,FALSE),G2314)","v":"97.1"},{"$f":"IFERROR(VLOOKUP(H2314,Translation!$A:$C,3,FALSE),H2314)","v":"Nouveau-Brunswick"}]
[16,"T3 2018","ASSURANCE DE PORTEFEUILLE","Québec",67.860770136242792,"Prêts hypothécaires assurés au cours de la période selon le type de logement (%)","67.9","Québec",{"$f":"IFERROR(VLOOKUP(A2315,Translation!$A:$C,3,FALSE),A2315)","v":16},{"$f":"IFERROR(VLOOKUP(B2315,Translation!$A:$C,3,FALSE),B2315)","v":"T3 2018"},{"$f":"IFERROR(VLOOKUP(C2315,Translation!$A:$C,3,FALSE),C2315)","v":"ASSURANCE DE PORTEFEUILLE"},{"$f":"IFERROR(VLOOKUP(D2315,Translation!$A:$C,3,FALSE),D2315)","v":"Québec"},{"$f":"IFERROR(VLOOKUP(E2315,Translation!$A:$C,3,FALSE),E2315)","v":67.860770136242792},{"$f":"IFERROR(VLOOKUP(F2315,Translation!$A:$C,3,FALSE),F2315)","v":"Prêts hypothécaires assurés au cours de la période selon le type de logement (%)"},{"$f":"IFERROR(VLOOKUP(G2315,Translation!$A:$C,3,FALSE),G2315)","v":"67.9"},{"$f":"IFERROR(VLOOKUP(H2315,Translation!$A:$C,3,FALSE),H2315)","v":"Québec"}]
[16,"T3 2018","ASSURANCE DE PORTEFEUILLE","Manitoba",91.658729400877036,"Prêts hypothécaires assurés au cours de la période selon le type de logement (%)","91.7","Manitoba",{"$f":"IFERROR(VLOOKUP(A2317,Translation!$A:$C,3,FALSE),A2317)","v":16},{"$f":"IFERROR(VLOOKUP(B2317,Translation!$A:$C,3,FALSE),B2317)","v":"T3 2018"},{"$f":"IFERROR(VLOOKUP(C2317,Translation!$A:$C,3,FALSE),C2317)","v":"ASSURANCE DE PORTEFEUILLE"},{"$f":"IFERROR(VLOOKUP(D2317,Translation!$A:$C,3,FALSE),D2317)","v":"Manitoba"},{"$f":"IFERROR(VLOOKUP(E2317,Translation!$A:$C,3,FALSE),E2317)","v":91.658729400877036},{"$f":"IFERROR(VLOOKUP(F2317,Translation!$A:$C,3,FALSE),F2317)","v":"Prêts hypothécaires assurés au cours de la période selon le type de logement (%)"},{"$f":"IFERROR(VLOOKUP(G2317,Translation!$A:$C,3,FALSE),G2317)","v":"91.7"},{"$f":"IFERROR(VLOOKUP(H2317,Translation!$A:$C,3,FALSE),H2317)","v":"Manitoba"}]
[16,"T3 2018","ASSURANCE DE PORTEFEUILLE","Colombie-Britannique",57.458575655831858,"Prêts hypothécaires assurés au cours de la période selon le type de logement (%)","57.5","Colombie-Britannique",{"$f":"IFERROR(VLOOKUP(A2320,Translation!$A:$C,3,FALSE),A2320)","v":16},{"$f":"IFERROR(VLOOKUP(B2320,Translation!$A:$C,3,FALSE),B2320)","v":"T3 2018"},{"$f":"IFERROR(VLOOKUP(C2320,Translation!$A:$C,3,FALSE),C2320)","v":"ASSURANCE DE PORTEFEUILLE"},{"$f":"IFERROR(VLOOKUP(D2320,Translation!$A:$C,3,FALSE),D2320)","v":"Colombie-Britannique"},{"$f":"IFERROR(VLOOKUP(E2320,Translation!$A:$C,3,FALSE),E2320)","v":57.458575655831858},{"$f":"IFERROR(VLOOKUP(F2320,Translation!$A:$C,3,FALSE),F2320)","v":"Prêts hypothécaires assurés au cours de la période selon le type de logement (%)"},{"$f":"IFERROR(VLOOKUP(G2320,Translation!$A:$C,3,FALSE),G2320)","v":"57.5"},{"$f":"IFERROR(VLOOKUP(H2320,Translation!$A:$C,3,FALSE),H2320)","v":"Colombie-Britannique"}]
[29,"T3 2018","IMMEUBLES COLLECTIFS RÉSIDENTIELS","Maison de retraite/de repos",10.44156098083506,"Prêts hypothécaires assurés au cours de la période selon le type de logement (%)","10.4","Maison de retraite/de repos",{"$f":"IFERROR(VLOOKUP(A2323,Translation!$A:$C,3,FALSE),A2323)","v":29},{"$f":"IFERROR(VLOOKUP(B2323,Translation!$A:$C,3,FALSE),B2323)","v":"T3 2018"},{"$f":"IFERROR(VLOOKUP(C2323,Translation!$A:$C,3,FALSE),C2323)","v":"IMMEUBLES COLLECTIFS RÉSIDENTIELS"},{"$f":"IFERROR(VLOOKUP(D2323,Translation!$A:$C,3,FALSE),D2323)","v":"Maison de retraite/de repos"},{"$f":"IFERROR(VLOOKUP(E2323,Translation!$A:$C,3,FALSE),E2323)","v":10.44156098083506},{"$f":"IFERROR(VLOOKUP(F2323,Translation!$A:$C,3,FALSE),F2323)","v":"Prêts hypothécaires assurés au cours de la période selon le type de logement (%)"},{"$f":"IFERROR(VLOOKUP(G2323,Translation!$A:$C,3,FALSE),G2323)","v":"10.4"},{"$f":"IFERROR(VLOOKUP(H2323,Translation!$A:$C,3,FALSE),H2323)","v":"Maison de retraite/de repos"}]
[29,"T3 2018","IMMEUBLES COLLECTIFS RÉSIDENTIELS","Terre-Neuve-et-Labrador",88.976813284852042,"Prêts hypothécaires assurés au cours de la période selon le type de logement (%)","89.0","Terre-Neuve-et-Labrador",{"$f":"IFERROR(VLOOKUP(A2325,Translation!$A:$C,3,FALSE),A2325)","v":29},{"$f":"IFERROR(VLOOKUP(B2325,Translation!$A:$C,3,FALSE),B2325)","v":"T3 2018"},{"$f":"IFERROR(VLOOKUP(C2325,Translation!$A:$C,3,FALSE),C2325)","v":"IMMEUBLES COLLECTIFS RÉSIDENTIELS"},{"$f":"IFERROR(VLOOKUP(D2325,Translation!$A:$C,3,FALSE),D2325)","v":"Terre-Neuve-et-Labrador"},{"$f":"IFERROR(VLOOKUP(E2325,Translation!$A:$C,3,FALSE),E2325)","v":88.976813284852042},{"$f":"IFERROR(VLOOKUP(F2325,Translation!$A:$C,3,FALSE),F2325)","v":"Prêts hypothécaires assurés au cours de la période selon le type de logement (%)"},{"$f":"IFERROR(VLOOKUP(G2325,Translation!$A:$C,3,FALSE),G2325)","v":"89.0"},{"$f":"IFERROR(VLOOKUP(H2325,Translation!$A:$C,3,FALSE),H2325)","v":"Terre-Neuve-et-Labrador"}]
[29,"T3 2018","IMMEUBLES COLLECTIFS RÉSIDENTIELS","Nouveau-Brunswick",86.611681706914311,"Prêts hypothécaires assurés au cours de la période selon le type de logement (%)","86.6","Nouveau-Brunswick",{"$f":"IFERROR(VLOOKUP(A2328,Translation!$A:$C,3,FALSE),A2328)","v":29},{"$f":"IFERROR(VLOOKUP(B2328,Translation!$A:$C,3,FALSE),B2328)","v":"T3 2018"},{"$f":"IFERROR(VLOOKUP(C2328,Translation!$A:$C,3,FALSE),C2328)","v":"IMMEUBLES COLLECTIFS RÉSIDENTIELS"},{"$f":"IFERROR(VLOOKUP(D2328,Translation!$A:$C,3,FALSE),D2328)","v":"Nouveau-Brunswick"},{"$f":"IFERROR(VLOOKUP(E2328,Translation!$A:$C,3,FALSE),E2328)","v":86.611681706914311},{"$f":"IFERROR(VLOOKUP(F2328,Translation!$A:$C,3,FALSE),F2328)","v":"Prêts hypothécaires assurés au cours de la période selon le type de logement (%)"},{"$f":"IFERROR(VLOOKUP(G2328,Translation!$A:$C,3,FALSE),G2328)","v":"86.6"},{"$f":"IFERROR(VLOOKUP(H2328,Translation!$A:$C,3,FALSE),H2328)","v":"Nouveau-Brunswick"}]
[29,"T3 2018","IMMEUBLES COLLECTIFS RÉSIDENTIELS","Québec",90.945914206310434,"Prêts hypothécaires assurés au cours de la période selon le type de logement (%)","90.9","Québec",{"$f":"IFERROR(VLOOKUP(A2329,Translation!$A:$C,3,FALSE),A2329)","v":29},{"$f":"IFERROR(VLOOKUP(B2329,Translation!$A:$C,3,FALSE),B2329)","v":"T3 2018"},{"$f":"IFERROR(VLOOKUP(C2329,Translation!$A:$C,3,FALSE),C2329)","v":"IMMEUBLES COLLECTIFS RÉSIDENTIELS"},{"$f":"IFERROR(VLOOKUP(D2329,Translation!$A:$C,3,FALSE),D2329)","v":"Québec"},{"$f":"IFERROR(VLOOKUP(E2329,Translation!$A:$C,3,FALSE),E2329)","v":90.945914206310434},{"$f":"IFERROR(VLOOKUP(F2329,Translation!$A:$C,3,FALSE),F2329)","v":"Prêts hypothécaires assurés au cours de la période selon le type de logement (%)"},{"$f":"IFERROR(VLOOKUP(G2329,Translation!$A:$C,3,FALSE),G2329)","v":"90.9"},{"$f":"IFERROR(VLOOKUP(H2329,Translation!$A:$C,3,FALSE),H2329)","v":"Québec"}]
[29,"T3 2018","IMMEUBLES COLLECTIFS RÉSIDENTIELS","Alberta",91.869174591659274,"Prêts hypothécaires assurés au cours de la période selon le type de logement (%)","91.9","Alberta",{"$f":"IFERROR(VLOOKUP(A2333,Translation!$A:$C,3,FALSE),A2333)","v":29},{"$f":"IFERROR(VLOOKUP(B2333,Translation!$A:$C,3,FALSE),B2333)","v":"T3 2018"},{"$f":"IFERROR(VLOOKUP(C2333,Translation!$A:$C,3,FALSE),C2333)","v":"IMMEUBLES COLLECTIFS RÉSIDENTIELS"},{"$f":"IFERROR(VLOOKUP(D2333,Translation!$A:$C,3,FALSE),D2333)","v":"Alberta"},{"$f":"IFERROR(VLOOKUP(E2333,Translation!$A:$C,3,FALSE),E2333)","v":91.869174591659274},{"$f":"IFERROR(VLOOKUP(F2333,Translation!$A:$C,3,FALSE),F2333)","v":"Prêts hypothécaires assurés au cours de la période selon le type de logement (%)"},{"$f":"IFERROR(VLOOKUP(G2333,Translation!$A:$C,3,FALSE),G2333)","v":"91.9"},{"$f":"IFERROR(VLOOKUP(H2333,Translation!$A:$C,3,FALSE),H2333)","v":"Alberta"}]
[29,"T3 2018","IMMEUBLES COLLECTIFS RÉSIDENTIELS","Colombie-Britannique",76.309792619261117,"Prêts hypothécaires assurés au cours de la période selon le type de logement (%)","76.3","Colombie-Britannique",{"$f":"IFERROR(VLOOKUP(A2334,Translation!$A:$C,3,FALSE),A2334)","v":29},{"$f":"IFERROR(VLOOKUP(B2334,Translation!$A:$C,3,FALSE),B2334)","v":"T3 2018"},{"$f":"IFERROR(VLOOKUP(C2334,Translation!$A:$C,3,FALSE),C2334)","v":"IMMEUBLES COLLECTIFS RÉSIDENTIELS"},{"$f":"IFERROR(VLOOKUP(D2334,Translation!$A:$C,3,FALSE),D2334)","v":"Colombie-Britannique"},{"$f":"IFERROR(VLOOKUP(E2334,Translation!$A:$C,3,FALSE),E2334)","v":76.309792619261117},{"$f":"IFERROR(VLOOKUP(F2334,Translation!$A:$C,3,FALSE),F2334)","v":"Prêts hypothécaires assurés au cours de la période selon le type de logement (%)"},{"$f":"IFERROR(VLOOKUP(G2334,Translation!$A:$C,3,FALSE),G2334)","v":"76.3"},{"$f":"IFERROR(VLOOKUP(H2334,Translation!$A:$C,3,FALSE),H2334)","v":"Colombie-Britannique"}]
[16,"T2 2018","PROPRIÉTAIRES-OCCUPANTS, À L’UNITÉ","Logement unifamilial",62.957602040956687,"Prêts hypothécaires assurés au cours de la période selon le type de logement (%)","63.0","Logement unifamilial",{"$f":"IFERROR(VLOOKUP(A2336,Translation!$A:$C,3,FALSE),A2336)","v":16},{"$f":"IFERROR(VLOOKUP(B2336,Translation!$A:$C,3,FALSE),B2336)","v":"T2 2018"},{"$f":"IFERROR(VLOOKUP(C2336,Translation!$A:$C,3,FALSE),C2336)","v":"PROPRIÉTAIRES-OCCUPANTS, À L’UNITÉ"},{"$f":"IFERROR(VLOOKUP(D2336,Translation!$A:$C,3,FALSE),D2336)","v":"Logement unifamilial"},{"$f":"IFERROR(VLOOKUP(E2336,Translation!$A:$C,3,FALSE),E2336)","v":62.957602040956687},{"$f":"IFERROR(VLOOKUP(F2336,Translation!$A:$C,3,FALSE),F2336)","v":"Prêts hypothécaires assurés au cours de la période selon le type de logement (%)"},{"$f":"IFERROR(VLOOKUP(G2336,Translation!$A:$C,3,FALSE),G2336)","v":"63.0"},{"$f":"IFERROR(VLOOKUP(H2336,Translation!$A:$C,3,FALSE),H2336)","v":"Logement unifamilial"}]
[16,"T2 2018","PROPRIÉTAIRES-OCCUPANTS, À L’UNITÉ","Jumelé",8.8701673466730426,"Prêts hypothécaires assurés au cours de la période selon le type de logement (%)","8.9","Jumelé",{"$f":"IFERROR(VLOOKUP(A2339,Translation!$A:$C,3,FALSE),A2339)","v":16},{"$f":"IFERROR(VLOOKUP(B2339,Translation!$A:$C,3,FALSE),B2339)","v":"T2 2018"},{"$f":"IFERROR(VLOOKUP(C2339,Translation!$A:$C,3,FALSE),C2339)","v":"PROPRIÉTAIRES-OCCUPANTS, À L’UNITÉ"},{"$f":"IFERROR(VLOOKUP(D2339,Translation!$A:$C,3,FALSE),D2339)","v":"Jumelé"},{"$f":"IFERROR(VLOOKUP(E2339,Translation!$A:$C,3,FALSE),E2339)","v":8.8701673466730426},{"$f":"IFERROR(VLOOKUP(F2339,Translation!$A:$C,3,FALSE),F2339)","v":"Prêts hypothécaires assurés au cours de la période selon le type de logement (%)"},{"$f":"IFERROR(VLOOKUP(G2339,Translation!$A:$C,3,FALSE),G2339)","v":"8.9"},{"$f":"IFERROR(VLOOKUP(H2339,Translation!$A:$C,3,FALSE),H2339)","v":"Jumelé"}]
[16,"T2 2018","ASSURANCE DE PORTEFEUILLE","Logement unifamilial",75.241226822413054,"Prêts hypothécaires assurés au cours de la période selon le type de logement (%)","75.2","Logement unifamilial",{"$f":"IFERROR(VLOOKUP(A2342,Translation!$A:$C,3,FALSE),A2342)","v":16},{"$f":"IFERROR(VLOOKUP(B2342,Translation!$A:$C,3,FALSE),B2342)","v":"T2 2018"},{"$f":"IFERROR(VLOOKUP(C2342,Translation!$A:$C,3,FALSE),C2342)","v":"ASSURANCE DE PORTEFEUILLE"},{"$f":"IFERROR(VLOOKUP(D2342,Translation!$A:$C,3,FALSE),D2342)","v":"Logement unifamilial"},{"$f":"IFERROR(VLOOKUP(E2342,Translation!$A:$C,3,FALSE),E2342)","v":75.241226822413054},{"$f":"IFERROR(VLOOKUP(F2342,Translation!$A:$C,3,FALSE),F2342)","v":"Prêts hypothécaires assurés au cours de la période selon le type de logement (%)"},{"$f":"IFERROR(VLOOKUP(G2342,Translation!$A:$C,3,FALSE),G2342)","v":"75.2"},{"$f":"IFERROR(VLOOKUP(H2342,Translation!$A:$C,3,FALSE),H2342)","v":"Logement unifamilial"}]
[16,"T2 2018","ASSURANCE DE PORTEFEUILLE","Appartement",9.0090022630205908,"Prêts hypothécaires assurés au cours de la période selon le type de logement (%)","9.0","Appartement",{"$f":"IFERROR(VLOOKUP(A2344,Translation!$A:$C,3,FALSE),A2344)","v":16},{"$f":"IFERROR(VLOOKUP(B2344,Translation!$A:$C,3,FALSE),B2344)","v":"T2 2018"},{"$f":"IFERROR(VLOOKUP(C2344,Translation!$A:$C,3,FALSE),C2344)","v":"ASSURANCE DE PORTEFEUILLE"},{"$f":"IFERROR(VLOOKUP(D2344,Translation!$A:$C,3,FALSE),D2344)","v":"Appartement"},{"$f":"IFERROR(VLOOKUP(E2344,Translation!$A:$C,3,FALSE),E2344)","v":9.0090022630205908},{"$f":"IFERROR(VLOOKUP(F2344,Translation!$A:$C,3,FALSE),F2344)","v":"Prêts hypothécaires assurés au cours de la période selon le type de logement (%)"},{"$f":"IFERROR(VLOOKUP(G2344,Translation!$A:$C,3,FALSE),G2344)","v":"9.0"},{"$f":"IFERROR(VLOOKUP(H2344,Translation!$A:$C,3,FALSE),H2344)","v":"Appartement"}]
[16,"T2 2018","ASSURANCE DE PORTEFEUILLE","Autre",4.5780054627012047E-2,"Prêts hypothécaires assurés au cours de la période selon le type de logement (%)","0.0","Autre",{"$f":"IFERROR(VLOOKUP(A2347,Translation!$A:$C,3,FALSE),A2347)","v":16},{"$f":"IFERROR(VLOOKUP(B2347,Translation!$A:$C,3,FALSE),B2347)","v":"T2 2018"},{"$f":"IFERROR(VLOOKUP(C2347,Translation!$A:$C,3,FALSE),C2347)","v":"ASSURANCE DE PORTEFEUILLE"},{"$f":"IFERROR(VLOOKUP(D2347,Translation!$A:$C,3,FALSE),D2347)","v":"Autre"},{"$f":"IFERROR(VLOOKUP(E2347,Translation!$A:$C,3,FALSE),E2347)","v":4.5780054627012047E-2},{"$f":"IFERROR(VLOOKUP(F2347,Translation!$A:$C,3,FALSE),F2347)","v":"Prêts hypothécaires assurés au cours de la période selon le type de logement (%)"},{"$f":"IFERROR(VLOOKUP(G2347,Translation!$A:$C,3,FALSE),G2347)","v":"0.0"},{"$f":"IFERROR(VLOOKUP(H2347,Translation!$A:$C,3,FALSE),H2347)","v":"Autre"}]
[16,"T2 2018","PROPRIÉTAIRES-OCCUPANTS, À L’UNITÉ","Nouvelle-Écosse",80.069995475604387,"Prêts hypothécaires assurés au cours de la période selon le type de logement (%)","80.1","Nouvelle-Écosse",{"$f":"IFERROR(VLOOKUP(A2350,Translation!$A:$C,3,FALSE),A2350)","v":16},{"$f":"IFERROR(VLOOKUP(B2350,Translation!$A:$C,3,FALSE),B2350)","v":"T2 2018"},{"$f":"IFERROR(VLOOKUP(C2350,Translation!$A:$C,3,FALSE),C2350)","v":"PROPRIÉTAIRES-OCCUPANTS, À L’UNITÉ"},{"$f":"IFERROR(VLOOKUP(D2350,Translation!$A:$C,3,FALSE),D2350)","v":"Nouvelle-Écosse"},{"$f":"IFERROR(VLOOKUP(E2350,Translation!$A:$C,3,FALSE),E2350)","v":80.069995475604387},{"$f":"IFERROR(VLOOKUP(F2350,Translation!$A:$C,3,FALSE),F2350)","v":"Prêts hypothécaires assurés au cours de la période selon le type de logement (%)"},{"$f":"IFERROR(VLOOKUP(G2350,Translation!$A:$C,3,FALSE),G2350)","v":"80.1"},{"$f":"IFERROR(VLOOKUP(H2350,Translation!$A:$C,3,FALSE),H2350)","v":"Nouvelle-Écosse"}]
[16,"T2 2018","PROPRIÉTAIRES-OCCUPANTS, À L’UNITÉ","Québec",61.625234541448144,"Prêts hypothécaires assurés au cours de la période selon le type de logement (%)","61.6","Québec",{"$f":"IFERROR(VLOOKUP(A2352,Translation!$A:$C,3,FALSE),A2352)","v":16},{"$f":"IFERROR(VLOOKUP(B2352,Translation!$A:$C,3,FALSE),B2352)","v":"T2 2018"},{"$f":"IFERROR(VLOOKUP(C2352,Translation!$A:$C,3,FALSE),C2352)","v":"PROPRIÉTAIRES-OCCUPANTS, À L’UNITÉ"},{"$f":"IFERROR(VLOOKUP(D2352,Translation!$A:$C,3,FALSE),D2352)","v":"Québec"},{"$f":"IFERROR(VLOOKUP(E2352,Translation!$A:$C,3,FALSE),E2352)","v":61.625234541448144},{"$f":"IFERROR(VLOOKUP(F2352,Translation!$A:$C,3,FALSE),F2352)","v":"Prêts hypothécaires assurés au cours de la période selon le type de logement (%)"},{"$f":"IFERROR(VLOOKUP(G2352,Translation!$A:$C,3,FALSE),G2352)","v":"61.6"},{"$f":"IFERROR(VLOOKUP(H2352,Translation!$A:$C,3,FALSE),H2352)","v":"Québec"}]
[16,"T2 2018","PROPRIÉTAIRES-OCCUPANTS, À L’UNITÉ","Ontario",57.126299485279887,"Prêts hypothécaires assurés au cours de la période selon le type de logement (%)","57.1","Ontario",{"$f":"IFERROR(VLOOKUP(A2353,Translation!$A:$C,3,FALSE),A2353)","v":16},{"$f":"IFERROR(VLOOKUP(B2353,Translation!$A:$C,3,FALSE),B2353)","v":"T2 2018"},{"$f":"IFERROR(VLOOKUP(C2353,Translation!$A:$C,3,FALSE),C2353)","v":"PROPRIÉTAIRES-OCCUPANTS, À L’UNITÉ"},{"$f":"IFERROR(VLOOKUP(D2353,Translation!$A:$C,3,FALSE),D2353)","v":"Ontario"},{"$f":"IFERROR(VLOOKUP(E2353,Translation!$A:$C,3,FALSE),E2353)","v":57.126299485279887},{"$f":"IFERROR(VLOOKUP(F2353,Translation!$A:$C,3,FALSE),F2353)","v":"Prêts hypothécaires assurés au cours de la période selon le type de logement (%)"},{"$f":"IFERROR(VLOOKUP(G2353,Translation!$A:$C,3,FALSE),G2353)","v":"57.1"},{"$f":"IFERROR(VLOOKUP(H2353,Translation!$A:$C,3,FALSE),H2353)","v":"Ontario"}]
[16,"T2 2018","PROPRIÉTAIRES-OCCUPANTS, À L’UNITÉ","Saskatchewan",85.56745800904369,"Prêts hypothécaires assurés au cours de la période selon le type de logement (%)","85.6","Saskatchewan",{"$f":"IFERROR(VLOOKUP(A2355,Translation!$A:$C,3,FALSE),A2355)","v":16},{"$f":"IFERROR(VLOOKUP(B2355,Translation!$A:$C,3,FALSE),B2355)","v":"T2 2018"},{"$f":"IFERROR(VLOOKUP(C2355,Translation!$A:$C,3,FALSE),C2355)","v":"PROPRIÉTAIRES-OCCUPANTS, À L’UNITÉ"},{"$f":"IFERROR(VLOOKUP(D2355,Translation!$A:$C,3,FALSE),D2355)","v":"Saskatchewan"},{"$f":"IFERROR(VLOOKUP(E2355,Translation!$A:$C,3,FALSE),E2355)","v":85.56745800904369},{"$f":"IFERROR(VLOOKUP(F2355,Translation!$A:$C,3,FALSE),F2355)","v":"Prêts hypothécaires assurés au cours de la période selon le type de logement (%)"},{"$f":"IFERROR(VLOOKUP(G2355,Translation!$A:$C,3,FALSE),G2355)","v":"85.6"},{"$f":"IFERROR(VLOOKUP(H2355,Translation!$A:$C,3,FALSE),H2355)","v":"Saskatchewan"}]
[16,"T2 2018","PROPRIÉTAIRES-OCCUPANTS, À L’UNITÉ","Territoires",45.986612527141638,"Prêts hypothécaires assurés au cours de la période selon le type de logement (%)","46.0","Territoires",{"$f":"IFERROR(VLOOKUP(A2358,Translation!$A:$C,3,FALSE),A2358)","v":16},{"$f":"IFERROR(VLOOKUP(B2358,Translation!$A:$C,3,FALSE),B2358)","v":"T2 2018"},{"$f":"IFERROR(VLOOKUP(C2358,Translation!$A:$C,3,FALSE),C2358)","v":"PROPRIÉTAIRES-OCCUPANTS, À L’UNITÉ"},{"$f":"IFERROR(VLOOKUP(D2358,Translation!$A:$C,3,FALSE),D2358)","v":"Territoires"},{"$f":"IFERROR(VLOOKUP(E2358,Translation!$A:$C,3,FALSE),E2358)","v":45.986612527141638},{"$f":"IFERROR(VLOOKUP(F2358,Translation!$A:$C,3,FALSE),F2358)","v":"Prêts hypothécaires assurés au cours de la période selon le type de logement (%)"},{"$f":"IFERROR(VLOOKUP(G2358,Translation!$A:$C,3,FALSE),G2358)","v":"46.0"},{"$f":"IFERROR(VLOOKUP(H2358,Translation!$A:$C,3,FALSE),H2358)","v":"Territoires"}]
[16,"T2 2018","ASSURANCE DE PORTEFEUILLE","Nouvelle-Écosse",85.902850374817206,"Prêts hypothécaires assurés au cours de la période selon le type de logement (%)","85.9","Nouvelle-Écosse",{"$f":"IFERROR(VLOOKUP(A2361,Translation!$A:$C,3,FALSE),A2361)","v":16},{"$f":"IFERROR(VLOOKUP(B2361,Translation!$A:$C,3,FALSE),B2361)","v":"T2 2018"},{"$f":"IFERROR(VLOOKUP(C2361,Translation!$A:$C,3,FALSE),C2361)","v":"ASSURANCE DE PORTEFEUILLE"},{"$f":"IFERROR(VLOOKUP(D2361,Translation!$A:$C,3,FALSE),D2361)","v":"Nouvelle-Écosse"},{"$f":"IFERROR(VLOOKUP(E2361,Translation!$A:$C,3,FALSE),E2361)","v":85.902850374817206},{"$f":"IFERROR(VLOOKUP(F2361,Translation!$A:$C,3,FALSE),F2361)","v":"Prêts hypothécaires assurés au cours de la période selon le type de logement (%)"},{"$f":"IFERROR(VLOOKUP(G2361,Translation!$A:$C,3,FALSE),G2361)","v":"85.9"},{"$f":"IFERROR(VLOOKUP(H2361,Translation!$A:$C,3,FALSE),H2361)","v":"Nouvelle-Écosse"}]
[16,"T2 2018","ASSURANCE DE PORTEFEUILLE","Québec",63.011088522496017,"Prêts hypothécaires assurés au cours de la période selon le type de logement (%)","63.0","Québec",{"$f":"IFERROR(VLOOKUP(A2363,Translation!$A:$C,3,FALSE),A2363)","v":16},{"$f":"IFERROR(VLOOKUP(B2363,Translation!$A:$C,3,FALSE),B2363)","v":"T2 2018"},{"$f":"IFERROR(VLOOKUP(C2363,Translation!$A:$C,3,FALSE),C2363)","v":"ASSURANCE DE PORTEFEUILLE"},{"$f":"IFERROR(VLOOKUP(D2363,Translation!$A:$C,3,FALSE),D2363)","v":"Québec"},{"$f":"IFERROR(VLOOKUP(E2363,Translation!$A:$C,3,FALSE),E2363)","v":63.011088522496017},{"$f":"IFERROR(VLOOKUP(F2363,Translation!$A:$C,3,FALSE),F2363)","v":"Prêts hypothécaires assurés au cours de la période selon le type de logement (%)"},{"$f":"IFERROR(VLOOKUP(G2363,Translation!$A:$C,3,FALSE),G2363)","v":"63.0"},{"$f":"IFERROR(VLOOKUP(H2363,Translation!$A:$C,3,FALSE),H2363)","v":"Québec"}]
[16,"T2 2018","ASSURANCE DE PORTEFEUILLE","Saskatchewan",88.107449569303611,"Prêts hypothécaires assurés au cours de la période selon le type de logement (%)","88.1","Saskatchewan",{"$f":"IFERROR(VLOOKUP(A2366,Translation!$A:$C,3,FALSE),A2366)","v":16},{"$f":"IFERROR(VLOOKUP(B2366,Translation!$A:$C,3,FALSE),B2366)","v":"T2 2018"},{"$f":"IFERROR(VLOOKUP(C2366,Translation!$A:$C,3,FALSE),C2366)","v":"ASSURANCE DE PORTEFEUILLE"},{"$f":"IFERROR(VLOOKUP(D2366,Translation!$A:$C,3,FALSE),D2366)","v":"Saskatchewan"},{"$f":"IFERROR(VLOOKUP(E2366,Translation!$A:$C,3,FALSE),E2366)","v":88.107449569303611},{"$f":"IFERROR(VLOOKUP(F2366,Translation!$A:$C,3,FALSE),F2366)","v":"Prêts hypothécaires assurés au cours de la période selon le type de logement (%)"},{"$f":"IFERROR(VLOOKUP(G2366,Translation!$A:$C,3,FALSE),G2366)","v":"88.1"},{"$f":"IFERROR(VLOOKUP(H2366,Translation!$A:$C,3,FALSE),H2366)","v":"Saskatchewan"}]
[16,"T2 2018","ASSURANCE DE PORTEFEUILLE","Territoires",45.986612527141638,"Prêts hypothécaires assurés au cours de la période selon le type de logement (%)","46.0","Territoires",{"$f":"IFERROR(VLOOKUP(A2369,Translation!$A:$C,3,FALSE),A2369)","v":16},{"$f":"IFERROR(VLOOKUP(B2369,Translation!$A:$C,3,FALSE),B2369)","v":"T2 2018"},{"$f":"IFERROR(VLOOKUP(C2369,Translation!$A:$C,3,FALSE),C2369)","v":"ASSURANCE DE PORTEFEUILLE"},{"$f":"IFERROR(VLOOKUP(D2369,Translation!$A:$C,3,FALSE),D2369)","v":"Territoires"},{"$f":"IFERROR(VLOOKUP(E2369,Translation!$A:$C,3,FALSE),E2369)","v":45.986612527141638},{"$f":"IFERROR(VLOOKUP(F2369,Translation!$A:$C,3,FALSE),F2369)","v":"Prêts hypothécaires assurés au cours de la période selon le type de logement (%)"},{"$f":"IFERROR(VLOOKUP(G2369,Translation!$A:$C,3,FALSE),G2369)","v":"46.0"},{"$f":"IFERROR(VLOOKUP(H2369,Translation!$A:$C,3,FALSE),H2369)","v":"Territoires"}]
[29,"T2 2018","IMMEUBLES COLLECTIFS RÉSIDENTIELS","Maison de retraite/de repos",11.894876461702452,"Prêts hypothécaires assurés au cours de la période selon le type de logement (%)","11.9","Maison de retraite/de repos",{"$f":"IFERROR(VLOOKUP(A2371,Translation!$A:$C,3,FALSE),A2371)","v":29},{"$f":"IFERROR(VLOOKUP(B2371,Translation!$A:$C,3,FALSE),B2371)","v":"T2 2018"},{"$f":"IFERROR(VLOOKUP(C2371,Translation!$A:$C,3,FALSE),C2371)","v":"IMMEUBLES COLLECTIFS RÉSIDENTIELS"},{"$f":"IFERROR(VLOOKUP(D2371,Translation!$A:$C,3,FALSE),D2371)","v":"Maison de retraite/de repos"},{"$f":"IFERROR(VLOOKUP(E2371,Translation!$A:$C,3,FALSE),E2371)","v":11.894876461702452},{"$f":"IFERROR(VLOOKUP(F2371,Translation!$A:$C,3,FALSE),F2371)","v":"Prêts hypothécaires assurés au cours de la période selon le type de logement (%)"},{"$f":"IFERROR(VLOOKUP(G2371,Translation!$A:$C,3,FALSE),G2371)","v":"11.9"},{"$f":"IFERROR(VLOOKUP(H2371,Translation!$A:$C,3,FALSE),H2371)","v":"Maison de retraite/de repos"}]
[29,"T2 2018","IMMEUBLES COLLECTIFS RÉSIDENTIELS","Autre",0.97517606730306483,"Prêts hypothécaires assurés au cours de la période selon le type de logement (%)","1.0","Autre",{"$f":"IFERROR(VLOOKUP(A2372,Translation!$A:$C,3,FALSE),A2372)","v":29},{"$f":"IFERROR(VLOOKUP(B2372,Translation!$A:$C,3,FALSE),B2372)","v":"T2 2018"},{"$f":"IFERROR(VLOOKUP(C2372,Translation!$A:$C,3,FALSE),C2372)","v":"IMMEUBLES COLLECTIFS RÉSIDENTIELS"},{"$f":"IFERROR(VLOOKUP(D2372,Translation!$A:$C,3,FALSE),D2372)","v":"Autre"},{"$f":"IFERROR(VLOOKUP(E2372,Translation!$A:$C,3,FALSE),E2372)","v":0.97517606730306483},{"$f":"IFERROR(VLOOKUP(F2372,Translation!$A:$C,3,FALSE),F2372)","v":"Prêts hypothécaires assurés au cours de la période selon le type de logement (%)"},{"$f":"IFERROR(VLOOKUP(G2372,Translation!$A:$C,3,FALSE),G2372)","v":"1.0"},{"$f":"IFERROR(VLOOKUP(H2372,Translation!$A:$C,3,FALSE),H2372)","v":"Autre"}]
[29,"T2 2018","IMMEUBLES COLLECTIFS RÉSIDENTIELS","Québec",96.177007344521243,"Prêts hypothécaires assurés au cours de la période selon le type de logement (%)","96.2","Québec",{"$f":"IFERROR(VLOOKUP(A2376,Translation!$A:$C,3,FALSE),A2376)","v":29},{"$f":"IFERROR(VLOOKUP(B2376,Translation!$A:$C,3,FALSE),B2376)","v":"T2 2018"},{"$f":"IFERROR(VLOOKUP(C2376,Translation!$A:$C,3,FALSE),C2376)","v":"IMMEUBLES COLLECTIFS RÉSIDENTIELS"},{"$f":"IFERROR(VLOOKUP(D2376,Translation!$A:$C,3,FALSE),D2376)","v":"Québec"},{"$f":"IFERROR(VLOOKUP(E2376,Translation!$A:$C,3,FALSE),E2376)","v":96.177007344521243},{"$f":"IFERROR(VLOOKUP(F2376,Translation!$A:$C,3,FALSE),F2376)","v":"Prêts hypothécaires assurés au cours de la période selon le type de logement (%)"},{"$f":"IFERROR(VLOOKUP(G2376,Translation!$A:$C,3,FALSE),G2376)","v":"96.2"},{"$f":"IFERROR(VLOOKUP(H2376,Translation!$A:$C,3,FALSE),H2376)","v":"Québec"}]
[29,"T2 2018","IMMEUBLES COLLECTIFS RÉSIDENTIELS","Ontario",78.197538173449573,"Prêts hypothécaires assurés au cours de la période selon le type de logement (%)","78.2","Ontario",{"$f":"IFERROR(VLOOKUP(A2377,Translation!$A:$C,3,FALSE),A2377)","v":29},{"$f":"IFERROR(VLOOKUP(B2377,Translation!$A:$C,3,FALSE),B2377)","v":"T2 2018"},{"$f":"IFERROR(VLOOKUP(C2377,Translation!$A:$C,3,FALSE),C2377)","v":"IMMEUBLES COLLECTIFS RÉSIDENTIELS"},{"$f":"IFERROR(VLOOKUP(D2377,Translation!$A:$C,3,FALSE),D2377)","v":"Ontario"},{"$f":"IFERROR(VLOOKUP(E2377,Translation!$A:$C,3,FALSE),E2377)","v":78.197538173449573},{"$f":"IFERROR(VLOOKUP(F2377,Translation!$A:$C,3,FALSE),F2377)","v":"Prêts hypothécaires assurés au cours de la période selon le type de logement (%)"},{"$f":"IFERROR(VLOOKUP(G2377,Translation!$A:$C,3,FALSE),G2377)","v":"78.2"},{"$f":"IFERROR(VLOOKUP(H2377,Translation!$A:$C,3,FALSE),H2377)","v":"Ontario"}]
[29,"T2 2018","IMMEUBLES COLLECTIFS RÉSIDENTIELS","Alberta",89.650701029805191,"Prêts hypothécaires assurés au cours de la période selon le type de logement (%)","89.7","Alberta",{"$f":"IFERROR(VLOOKUP(A2380,Translation!$A:$C,3,FALSE),A2380)","v":29},{"$f":"IFERROR(VLOOKUP(B2380,Translation!$A:$C,3,FALSE),B2380)","v":"T2 2018"},{"$f":"IFERROR(VLOOKUP(C2380,Translation!$A:$C,3,FALSE),C2380)","v":"IMMEUBLES COLLECTIFS RÉSIDENTIELS"},{"$f":"IFERROR(VLOOKUP(D2380,Translation!$A:$C,3,FALSE),D2380)","v":"Alberta"},{"$f":"IFERROR(VLOOKUP(E2380,Translation!$A:$C,3,FALSE),E2380)","v":89.650701029805191},{"$f":"IFERROR(VLOOKUP(F2380,Translation!$A:$C,3,FALSE),F2380)","v":"Prêts hypothécaires assurés au cours de la période selon le type de logement (%)"},{"$f":"IFERROR(VLOOKUP(G2380,Translation!$A:$C,3,FALSE),G2380)","v":"89.7"},{"$f":"IFERROR(VLOOKUP(H2380,Translation!$A:$C,3,FALSE),H2380)","v":"Alberta"}]
[16,"T1 2017","PROPRIÉTAIRES-OCCUPANTS, À L’UNITÉ","Logement unifamilial",61.290168732222099,"Prêts hypothécaires assurés au cours de la période selon le type de logement (%)","61.3","Logement unifamilial",{"$f":"IFERROR(VLOOKUP(A2382,Translation!$A:$C,3,FALSE),A2382)","v":16},{"$f":"IFERROR(VLOOKUP(B2382,Translation!$A:$C,3,FALSE),B2382)","v":"T1 2017"},{"$f":"IFERROR(VLOOKUP(C2382,Translation!$A:$C,3,FALSE),C2382)","v":"PROPRIÉTAIRES-OCCUPANTS, À L’UNITÉ"},{"$f":"IFERROR(VLOOKUP(D2382,Translation!$A:$C,3,FALSE),D2382)","v":"Logement unifamilial"},{"$f":"IFERROR(VLOOKUP(E2382,Translation!$A:$C,3,FALSE),E2382)","v":61.290168732222099},{"$f":"IFERROR(VLOOKUP(F2382,Translation!$A:$C,3,FALSE),F2382)","v":"Prêts hypothécaires assurés au cours de la période selon le type de logement (%)"},{"$f":"IFERROR(VLOOKUP(G2382,Translation!$A:$C,3,FALSE),G2382)","v":"61.3"},{"$f":"IFERROR(VLOOKUP(H2382,Translation!$A:$C,3,FALSE),H2382)","v":"Logement unifamilial"}]
[16,"Q3 2016","PROPRIÉTAIRES-OCCUPANTS, À L’UNITÉ","Logement unifamilial",65.86092617511791,"Prêts hypothécaires assurés au cours de la période selon le type de logement (%)","65.9","Logement unifamilial",{"$f":"IFERROR(VLOOKUP(A2386,Translation!$A:$C,3,FALSE),A2386)","v":16},{"$f":"IFERROR(VLOOKUP(B2386,Translation!$A:$C,3,FALSE),B2386)","v":"Q3 2016"},{"$f":"IFERROR(VLOOKUP(C2386,Translation!$A:$C,3,FALSE),C2386)","v":"PROPRIÉTAIRES-OCCUPANTS, À L’UNITÉ"},{"$f":"IFERROR(VLOOKUP(D2386,Translation!$A:$C,3,FALSE),D2386)","v":"Logement unifamilial"},{"$f":"IFERROR(VLOOKUP(E2386,Translation!$A:$C,3,FALSE),E2386)","v":65.86092617511791},{"$f":"IFERROR(VLOOKUP(F2386,Translation!$A:$C,3,FALSE),F2386)","v":"Prêts hypothécaires assurés au cours de la période selon le type de logement (%)"},{"$f":"IFERROR(VLOOKUP(G2386,Translation!$A:$C,3,FALSE),G2386)","v":"65.9"},{"$f":"IFERROR(VLOOKUP(H2386,Translation!$A:$C,3,FALSE),H2386)","v":"Logement unifamilial"}]
[16,"T3 2017","PROPRIÉTAIRES-OCCUPANTS, À L’UNITÉ","Logement unifamilial",64.600459067182797,"Prêts hypothécaires assurés au cours de la période selon le type de logement (%)","64.6","Logement unifamilial",{"$f":"IFERROR(VLOOKUP(A2387,Translation!$A:$C,3,FALSE),A2387)","v":16},{"$f":"IFERROR(VLOOKUP(B2387,Translation!$A:$C,3,FALSE),B2387)","v":"T3 2017"},{"$f":"IFERROR(VLOOKUP(C2387,Translation!$A:$C,3,FALSE),C2387)","v":"PROPRIÉTAIRES-OCCUPANTS, À L’UNITÉ"},{"$f":"IFERROR(VLOOKUP(D2387,Translation!$A:$C,3,FALSE),D2387)","v":"Logement unifamilial"},{"$f":"IFERROR(VLOOKUP(E2387,Translation!$A:$C,3,FALSE),E2387)","v":64.600459067182797},{"$f":"IFERROR(VLOOKUP(F2387,Translation!$A:$C,3,FALSE),F2387)","v":"Prêts hypothécaires assurés au cours de la période selon le type de logement (%)"},{"$f":"IFERROR(VLOOKUP(G2387,Translation!$A:$C,3,FALSE),G2387)","v":"64.6"},{"$f":"IFERROR(VLOOKUP(H2387,Translation!$A:$C,3,FALSE),H2387)","v":"Logement unifamilial"}]
[16,"T1 2017","PROPRIÉTAIRES-OCCUPANTS, À L’UNITÉ","Maison en rangée",11.600473362507588,"Prêts hypothécaires assurés au cours de la période selon le type de logement (%)","11.6","Maison en rangée",{"$f":"IFERROR(VLOOKUP(A2390,Translation!$A:$C,3,FALSE),A2390)","v":16},{"$f":"IFERROR(VLOOKUP(B2390,Translation!$A:$C,3,FALSE),B2390)","v":"T1 2017"},{"$f":"IFERROR(VLOOKUP(C2390,Translation!$A:$C,3,FALSE),C2390)","v":"PROPRIÉTAIRES-OCCUPANTS, À L’UNITÉ"},{"$f":"IFERROR(VLOOKUP(D2390,Translation!$A:$C,3,FALSE),D2390)","v":"Maison en rangée"},{"$f":"IFERROR(VLOOKUP(E2390,Translation!$A:$C,3,FALSE),E2390)","v":11.600473362507588},{"$f":"IFERROR(VLOOKUP(F2390,Translation!$A:$C,3,FALSE),F2390)","v":"Prêts hypothécaires assurés au cours de la période selon le type de logement (%)"},{"$f":"IFERROR(VLOOKUP(G2390,Translation!$A:$C,3,FALSE),G2390)","v":"11.6"},{"$f":"IFERROR(VLOOKUP(H2390,Translation!$A:$C,3,FALSE),H2390)","v":"Maison en rangée"}]
[16,"T1 2018","PROPRIÉTAIRES-OCCUPANTS, À L’UNITÉ","Maison en rangée",11.222541417996705,"Prêts hypothécaires assurés au cours de la période selon le type de logement (%)","11.2","Maison en rangée",{"$f":"IFERROR(VLOOKUP(A2391,Translation!$A:$C,3,FALSE),A2391)","v":16},{"$f":"IFERROR(VLOOKUP(B2391,Translation!$A:$C,3,FALSE),B2391)","v":"T1 2018"},{"$f":"IFERROR(VLOOKUP(C2391,Translation!$A:$C,3,FALSE),C2391)","v":"PROPRIÉTAIRES-OCCUPANTS, À L’UNITÉ"},{"$f":"IFERROR(VLOOKUP(D2391,Translation!$A:$C,3,FALSE),D2391)","v":"Maison en rangée"},{"$f":"IFERROR(VLOOKUP(E2391,Translation!$A:$C,3,FALSE),E2391)","v":11.222541417996705},{"$f":"IFERROR(VLOOKUP(F2391,Translation!$A:$C,3,FALSE),F2391)","v":"Prêts hypothécaires assurés au cours de la période selon le type de logement (%)"},{"$f":"IFERROR(VLOOKUP(G2391,Translation!$A:$C,3,FALSE),G2391)","v":"11.2"},{"$f":"IFERROR(VLOOKUP(H2391,Translation!$A:$C,3,FALSE),H2391)","v":"Maison en rangée"}]
[16,"T3 2017","PROPRIÉTAIRES-OCCUPANTS, À L’UNITÉ","Maison en rangée",11.140362874214903,"Prêts hypothécaires assurés au cours de la période selon le type de logement (%)","11.1","Maison en rangée",{"$f":"IFERROR(VLOOKUP(A2395,Translation!$A:$C,3,FALSE),A2395)","v":16},{"$f":"IFERROR(VLOOKUP(B2395,Translation!$A:$C,3,FALSE),B2395)","v":"T3 2017"},{"$f":"IFERROR(VLOOKUP(C2395,Translation!$A:$C,3,FALSE),C2395)","v":"PROPRIÉTAIRES-OCCUPANTS, À L’UNITÉ"},{"$f":"IFERROR(VLOOKUP(D2395,Translation!$A:$C,3,FALSE),D2395)","v":"Maison en rangée"},{"$f":"IFERROR(VLOOKUP(E2395,Translation!$A:$C,3,FALSE),E2395)","v":11.140362874214903},{"$f":"IFERROR(VLOOKUP(F2395,Translation!$A:$C,3,FALSE),F2395)","v":"Prêts hypothécaires assurés au cours de la période selon le type de logement (%)"},{"$f":"IFERROR(VLOOKUP(G2395,Translation!$A:$C,3,FALSE),G2395)","v":"11.1"},{"$f":"IFERROR(VLOOKUP(H2395,Translation!$A:$C,3,FALSE),H2395)","v":"Maison en rangée"}]
[16,"T4 2017","PROPRIÉTAIRES-OCCUPANTS, À L’UNITÉ","Maison en rangée",10.591359605440738,"Prêts hypothécaires assurés au cours de la période selon le type de logement (%)","10.6","Maison en rangée",{"$f":"IFERROR(VLOOKUP(A2397,Translation!$A:$C,3,FALSE),A2397)","v":16},{"$f":"IFERROR(VLOOKUP(B2397,Translation!$A:$C,3,FALSE),B2397)","v":"T4 2017"},{"$f":"IFERROR(VLOOKUP(C2397,Translation!$A:$C,3,FALSE),C2397)","v":"PROPRIÉTAIRES-OCCUPANTS, À L’UNITÉ"},{"$f":"IFERROR(VLOOKUP(D2397,Translation!$A:$C,3,FALSE),D2397)","v":"Maison en rangée"},{"$f":"IFERROR(VLOOKUP(E2397,Translation!$A:$C,3,FALSE),E2397)","v":10.591359605440738},{"$f":"IFERROR(VLOOKUP(F2397,Translation!$A:$C,3,FALSE),F2397)","v":"Prêts hypothécaires assurés au cours de la période selon le type de logement (%)"},{"$f":"IFERROR(VLOOKUP(G2397,Translation!$A:$C,3,FALSE),G2397)","v":"10.6"},{"$f":"IFERROR(VLOOKUP(H2397,Translation!$A:$C,3,FALSE),H2397)","v":"Maison en rangée"}]
[16,"Q2 2016","PROPRIÉTAIRES-OCCUPANTS, À L’UNITÉ","Appartement",10.699635641149738,"Prêts hypothécaires assurés au cours de la période selon le type de logement (%)","10.7","Appartement",{"$f":"IFERROR(VLOOKUP(A2400,Translation!$A:$C,3,FALSE),A2400)","v":16},{"$f":"IFERROR(VLOOKUP(B2400,Translation!$A:$C,3,FALSE),B2400)","v":"Q2 2016"},{"$f":"IFERROR(VLOOKUP(C2400,Translation!$A:$C,3,FALSE),C2400)","v":"PROPRIÉTAIRES-OCCUPANTS, À L’UNITÉ"},{"$f":"IFERROR(VLOOKUP(D2400,Translation!$A:$C,3,FALSE),D2400)","v":"Appartement"},{"$f":"IFERROR(VLOOKUP(E2400,Translation!$A:$C,3,FALSE),E2400)","v":10.699635641149738},{"$f":"IFERROR(VLOOKUP(F2400,Translation!$A:$C,3,FALSE),F2400)","v":"Prêts hypothécaires assurés au cours de la période selon le type de logement (%)"},{"$f":"IFERROR(VLOOKUP(G2400,Translation!$A:$C,3,FALSE),G2400)","v":"10.7"},{"$f":"IFERROR(VLOOKUP(H2400,Translation!$A:$C,3,FALSE),H2400)","v":"Appartement"}]
[16,"T2 2017","PROPRIÉTAIRES-OCCUPANTS, À L’UNITÉ","Appartement",11.571062875972675,"Prêts hypothécaires assurés au cours de la période selon le type de logement (%)","11.6","Appartement",{"$f":"IFERROR(VLOOKUP(A2401,Translation!$A:$C,3,FALSE),A2401)","v":16},{"$f":"IFERROR(VLOOKUP(B2401,Translation!$A:$C,3,FALSE),B2401)","v":"T2 2017"},{"$f":"IFERROR(VLOOKUP(C2401,Translation!$A:$C,3,FALSE),C2401)","v":"PROPRIÉTAIRES-OCCUPANTS, À L’UNITÉ"},{"$f":"IFERROR(VLOOKUP(D2401,Translation!$A:$C,3,FALSE),D2401)","v":"Appartement"},{"$f":"IFERROR(VLOOKUP(E2401,Translation!$A:$C,3,FALSE),E2401)","v":11.571062875972675},{"$f":"IFERROR(VLOOKUP(F2401,Translation!$A:$C,3,FALSE),F2401)","v":"Prêts hypothécaires assurés au cours de la période selon le type de logement (%)"},{"$f":"IFERROR(VLOOKUP(G2401,Translation!$A:$C,3,FALSE),G2401)","v":"11.6"},{"$f":"IFERROR(VLOOKUP(H2401,Translation!$A:$C,3,FALSE),H2401)","v":"Appartement"}]
[16,"T4 2017","PROPRIÉTAIRES-OCCUPANTS, À L’UNITÉ","Appartement",10.622001336219508,"Prêts hypothécaires assurés au cours de la période selon le type de logement (%)","10.6","Appartement",{"$f":"IFERROR(VLOOKUP(A2405,Translation!$A:$C,3,FALSE),A2405)","v":16},{"$f":"IFERROR(VLOOKUP(B2405,Translation!$A:$C,3,FALSE),B2405)","v":"T4 2017"},{"$f":"IFERROR(VLOOKUP(C2405,Translation!$A:$C,3,FALSE),C2405)","v":"PROPRIÉTAIRES-OCCUPANTS, À L’UNITÉ"},{"$f":"IFERROR(VLOOKUP(D2405,Translation!$A:$C,3,FALSE),D2405)","v":"Appartement"},{"$f":"IFERROR(VLOOKUP(E2405,Translation!$A:$C,3,FALSE),E2405)","v":10.622001336219508},{"$f":"IFERROR(VLOOKUP(F2405,Translation!$A:$C,3,FALSE),F2405)","v":"Prêts hypothécaires assurés au cours de la période selon le type de logement (%)"},{"$f":"IFERROR(VLOOKUP(G2405,Translation!$A:$C,3,FALSE),G2405)","v":"10.6"},{"$f":"IFERROR(VLOOKUP(H2405,Translation!$A:$C,3,FALSE),H2405)","v":"Appartement"}]
[16,"T1 2017","PROPRIÉTAIRES-OCCUPANTS, À L’UNITÉ","Jumelé",7.4598651829410318,"Prêts hypothécaires assurés au cours de la période selon le type de logement (%)","7.5","Jumelé",{"$f":"IFERROR(VLOOKUP(A2406,Translation!$A:$C,3,FALSE),A2406)","v":16},{"$f":"IFERROR(VLOOKUP(B2406,Translation!$A:$C,3,FALSE),B2406)","v":"T1 2017"},{"$f":"IFERROR(VLOOKUP(C2406,Translation!$A:$C,3,FALSE),C2406)","v":"PROPRIÉTAIRES-OCCUPANTS, À L’UNITÉ"},{"$f":"IFERROR(VLOOKUP(D2406,Translation!$A:$C,3,FALSE),D2406)","v":"Jumelé"},{"$f":"IFERROR(VLOOKUP(E2406,Translation!$A:$C,3,FALSE),E2406)","v":7.4598651829410318},{"$f":"IFERROR(VLOOKUP(F2406,Translation!$A:$C,3,FALSE),F2406)","v":"Prêts hypothécaires assurés au cours de la période selon le type de logement (%)"},{"$f":"IFERROR(VLOOKUP(G2406,Translation!$A:$C,3,FALSE),G2406)","v":"7.5"},{"$f":"IFERROR(VLOOKUP(H2406,Translation!$A:$C,3,FALSE),H2406)","v":"Jumelé"}]
[16,"Q3 2016","PROPRIÉTAIRES-OCCUPANTS, À L’UNITÉ","Jumelé",6.8166712083124716,"Prêts hypothécaires assurés au cours de la période selon le type de logement (%)","6.8","Jumelé",{"$f":"IFERROR(VLOOKUP(A2410,Translation!$A:$C,3,FALSE),A2410)","v":16},{"$f":"IFERROR(VLOOKUP(B2410,Translation!$A:$C,3,FALSE),B2410)","v":"Q3 2016"},{"$f":"IFERROR(VLOOKUP(C2410,Translation!$A:$C,3,FALSE),C2410)","v":"PROPRIÉTAIRES-OCCUPANTS, À L’UNITÉ"},{"$f":"IFERROR(VLOOKUP(D2410,Translation!$A:$C,3,FALSE),D2410)","v":"Jumelé"},{"$f":"IFERROR(VLOOKUP(E2410,Translation!$A:$C,3,FALSE),E2410)","v":6.8166712083124716},{"$f":"IFERROR(VLOOKUP(F2410,Translation!$A:$C,3,FALSE),F2410)","v":"Prêts hypothécaires assurés au cours de la période selon le type de logement (%)"},{"$f":"IFERROR(VLOOKUP(G2410,Translation!$A:$C,3,FALSE),G2410)","v":"6.8"},{"$f":"IFERROR(VLOOKUP(H2410,Translation!$A:$C,3,FALSE),H2410)","v":"Jumelé"}]
[16,"T3 2017","PROPRIÉTAIRES-OCCUPANTS, À L’UNITÉ","Jumelé",7.3944210480884189,"Prêts hypothécaires assurés au cours de la période selon le type de logement (%)","7.4","Jumelé",{"$f":"IFERROR(VLOOKUP(A2411,Translation!$A:$C,3,FALSE),A2411)","v":16},{"$f":"IFERROR(VLOOKUP(B2411,Translation!$A:$C,3,FALSE),B2411)","v":"T3 2017"},{"$f":"IFERROR(VLOOKUP(C2411,Translation!$A:$C,3,FALSE),C2411)","v":"PROPRIÉTAIRES-OCCUPANTS, À L’UNITÉ"},{"$f":"IFERROR(VLOOKUP(D2411,Translation!$A:$C,3,FALSE),D2411)","v":"Jumelé"},{"$f":"IFERROR(VLOOKUP(E2411,Translation!$A:$C,3,FALSE),E2411)","v":7.3944210480884189},{"$f":"IFERROR(VLOOKUP(F2411,Translation!$A:$C,3,FALSE),F2411)","v":"Prêts hypothécaires assurés au cours de la période selon le type de logement (%)"},{"$f":"IFERROR(VLOOKUP(G2411,Translation!$A:$C,3,FALSE),G2411)","v":"7.4"},{"$f":"IFERROR(VLOOKUP(H2411,Translation!$A:$C,3,FALSE),H2411)","v":"Jumelé"}]
[16,"T1 2017","PROPRIÉTAIRES-OCCUPANTS, À L’UNITÉ","Plex",4.6421915798944564,"Prêts hypothécaires assurés au cours de la période selon le type de logement (%)","4.6","Plex",{"$f":"IFERROR(VLOOKUP(A2414,Translation!$A:$C,3,FALSE),A2414)","v":16},{"$f":"IFERROR(VLOOKUP(B2414,Translation!$A:$C,3,FALSE),B2414)","v":"T1 2017"},{"$f":"IFERROR(VLOOKUP(C2414,Translation!$A:$C,3,FALSE),C2414)","v":"PROPRIÉTAIRES-OCCUPANTS, À L’UNITÉ"},{"$f":"IFERROR(VLOOKUP(D2414,Translation!$A:$C,3,FALSE),D2414)","v":"Plex"},{"$f":"IFERROR(VLOOKUP(E2414,Translation!$A:$C,3,FALSE),E2414)","v":4.6421915798944564},{"$f":"IFERROR(VLOOKUP(F2414,Translation!$A:$C,3,FALSE),F2414)","v":"Prêts hypothécaires assurés au cours de la période selon le type de logement (%)"},{"$f":"IFERROR(VLOOKUP(G2414,Translation!$A:$C,3,FALSE),G2414)","v":"4.6"},{"$f":"IFERROR(VLOOKUP(H2414,Translation!$A:$C,3,FALSE),H2414)","v":"Plex"}]
[16,"Q2 2016","PROPRIÉTAIRES-OCCUPANTS, À L’UNITÉ","Plex",4.8061533587757408,"Prêts hypothécaires assurés au cours de la période selon le type de logement (%)","4.8","Plex",{"$f":"IFERROR(VLOOKUP(A2416,Translation!$A:$C,3,FALSE),A2416)","v":16},{"$f":"IFERROR(VLOOKUP(B2416,Translation!$A:$C,3,FALSE),B2416)","v":"Q2 2016"},{"$f":"IFERROR(VLOOKUP(C2416,Translation!$A:$C,3,FALSE),C2416)","v":"PROPRIÉTAIRES-OCCUPANTS, À L’UNITÉ"},{"$f":"IFERROR(VLOOKUP(D2416,Translation!$A:$C,3,FALSE),D2416)","v":"Plex"},{"$f":"IFERROR(VLOOKUP(E2416,Translation!$A:$C,3,FALSE),E2416)","v":4.8061533587757408},{"$f":"IFERROR(VLOOKUP(F2416,Translation!$A:$C,3,FALSE),F2416)","v":"Prêts hypothécaires assurés au cours de la période selon le type de logement (%)"},{"$f":"IFERROR(VLOOKUP(G2416,Translation!$A:$C,3,FALSE),G2416)","v":"4.8"},{"$f":"IFERROR(VLOOKUP(H2416,Translation!$A:$C,3,FALSE),H2416)","v":"Plex"}]
[16,"T3 2017","PROPRIÉTAIRES-OCCUPANTS, À L’UNITÉ","Plex",3.5253900554979061,"Prêts hypothécaires assurés au cours de la période selon le type de logement (%)","3.5","Plex",{"$f":"IFERROR(VLOOKUP(A2419,Translation!$A:$C,3,FALSE),A2419)","v":16},{"$f":"IFERROR(VLOOKUP(B2419,Translation!$A:$C,3,FALSE),B2419)","v":"T3 2017"},{"$f":"IFERROR(VLOOKUP(C2419,Translation!$A:$C,3,FALSE),C2419)","v":"PROPRIÉTAIRES-OCCUPANTS, À L’UNITÉ"},{"$f":"IFERROR(VLOOKUP(D2419,Translation!$A:$C,3,FALSE),D2419)","v":"Plex"},{"$f":"IFERROR(VLOOKUP(E2419,Translation!$A:$C,3,FALSE),E2419)","v":3.5253900554979061},{"$f":"IFERROR(VLOOKUP(F2419,Translation!$A:$C,3,FALSE),F2419)","v":"Prêts hypothécaires assurés au cours de la période selon le type de logement (%)"},{"$f":"IFERROR(VLOOKUP(G2419,Translation!$A:$C,3,FALSE),G2419)","v":"3.5"},{"$f":"IFERROR(VLOOKUP(H2419,Translation!$A:$C,3,FALSE),H2419)","v":"Plex"}]
[16,"T4 2017","PROPRIÉTAIRES-OCCUPANTS, À L’UNITÉ","Plex",4.2921617550393432,"Prêts hypothécaires assurés au cours de la période selon le type de logement (%)","4.3","Plex",{"$f":"IFERROR(VLOOKUP(A2421,Translation!$A:$C,3,FALSE),A2421)","v":16},{"$f":"IFERROR(VLOOKUP(B2421,Translation!$A:$C,3,FALSE),B2421)","v":"T4 2017"},{"$f":"IFERROR(VLOOKUP(C2421,Translation!$A:$C,3,FALSE),C2421)","v":"PROPRIÉTAIRES-OCCUPANTS, À L’UNITÉ"},{"$f":"IFERROR(VLOOKUP(D2421,Translation!$A:$C,3,FALSE),D2421)","v":"Plex"},{"$f":"IFERROR(VLOOKUP(E2421,Translation!$A:$C,3,FALSE),E2421)","v":4.2921617550393432},{"$f":"IFERROR(VLOOKUP(F2421,Translation!$A:$C,3,FALSE),F2421)","v":"Prêts hypothécaires assurés au cours de la période selon le type de logement (%)"},{"$f":"IFERROR(VLOOKUP(G2421,Translation!$A:$C,3,FALSE),G2421)","v":"4.3"},{"$f":"IFERROR(VLOOKUP(H2421,Translation!$A:$C,3,FALSE),H2421)","v":"Plex"}]
[16,"Q2 2016","PROPRIÉTAIRES-OCCUPANTS, À L’UNITÉ","Autre",2.6779002867635344,"Prêts hypothécaires assurés au cours de la période selon le type de logement (%)","2.7","Autre",{"$f":"IFERROR(VLOOKUP(A2424,Translation!$A:$C,3,FALSE),A2424)","v":16},{"$f":"IFERROR(VLOOKUP(B2424,Translation!$A:$C,3,FALSE),B2424)","v":"Q2 2016"},{"$f":"IFERROR(VLOOKUP(C2424,Translation!$A:$C,3,FALSE),C2424)","v":"PROPRIÉTAIRES-OCCUPANTS, À L’UNITÉ"},{"$f":"IFERROR(VLOOKUP(D2424,Translation!$A:$C,3,FALSE),D2424)","v":"Autre"},{"$f":"IFERROR(VLOOKUP(E2424,Translation!$A:$C,3,FALSE),E2424)","v":2.6779002867635344},{"$f":"IFERROR(VLOOKUP(F2424,Translation!$A:$C,3,FALSE),F2424)","v":"Prêts hypothécaires assurés au cours de la période selon le type de logement (%)"},{"$f":"IFERROR(VLOOKUP(G2424,Translation!$A:$C,3,FALSE),G2424)","v":"2.7"},{"$f":"IFERROR(VLOOKUP(H2424,Translation!$A:$C,3,FALSE),H2424)","v":"Autre"}]
[16,"T2 2017","PROPRIÉTAIRES-OCCUPANTS, À L’UNITÉ","Autre",2.7980623529180102,"Prêts hypothécaires assurés au cours de la période selon le type de logement (%)","2.8","Autre",{"$f":"IFERROR(VLOOKUP(A2425,Translation!$A:$C,3,FALSE),A2425)","v":16},{"$f":"IFERROR(VLOOKUP(B2425,Translation!$A:$C,3,FALSE),B2425)","v":"T2 2017"},{"$f":"IFERROR(VLOOKUP(C2425,Translation!$A:$C,3,FALSE),C2425)","v":"PROPRIÉTAIRES-OCCUPANTS, À L’UNITÉ"},{"$f":"IFERROR(VLOOKUP(D2425,Translation!$A:$C,3,FALSE),D2425)","v":"Autre"},{"$f":"IFERROR(VLOOKUP(E2425,Translation!$A:$C,3,FALSE),E2425)","v":2.7980623529180102},{"$f":"IFERROR(VLOOKUP(F2425,Translation!$A:$C,3,FALSE),F2425)","v":"Prêts hypothécaires assurés au cours de la période selon le type de logement (%)"},{"$f":"IFERROR(VLOOKUP(G2425,Translation!$A:$C,3,FALSE),G2425)","v":"2.8"},{"$f":"IFERROR(VLOOKUP(H2425,Translation!$A:$C,3,FALSE),H2425)","v":"Autre"}]
[16,"T4 2017","PROPRIÉTAIRES-OCCUPANTS, À L’UNITÉ","Autre",3.4231713450835275,"Prêts hypothécaires assurés au cours de la période selon le type de logement (%)","3.4","Autre",{"$f":"IFERROR(VLOOKUP(A2429,Translation!$A:$C,3,FALSE),A2429)","v":16},{"$f":"IFERROR(VLOOKUP(B2429,Translation!$A:$C,3,FALSE),B2429)","v":"T4 2017"},{"$f":"IFERROR(VLOOKUP(C2429,Translation!$A:$C,3,FALSE),C2429)","v":"PROPRIÉTAIRES-OCCUPANTS, À L’UNITÉ"},{"$f":"IFERROR(VLOOKUP(D2429,Translation!$A:$C,3,FALSE),D2429)","v":"Autre"},{"$f":"IFERROR(VLOOKUP(E2429,Translation!$A:$C,3,FALSE),E2429)","v":3.4231713450835275},{"$f":"IFERROR(VLOOKUP(F2429,Translation!$A:$C,3,FALSE),F2429)","v":"Prêts hypothécaires assurés au cours de la période selon le type de logement (%)"},{"$f":"IFERROR(VLOOKUP(G2429,Translation!$A:$C,3,FALSE),G2429)","v":"3.4"},{"$f":"IFERROR(VLOOKUP(H2429,Translation!$A:$C,3,FALSE),H2429)","v":"Autre"}]
[16,"T1 2017","ASSURANCE DE PORTEFEUILLE","Logement unifamilial",76.938442961969315,"Prêts hypothécaires assurés au cours de la période selon le type de logement (%)","76.9","Logement unifamilial",{"$f":"IFERROR(VLOOKUP(A2430,Translation!$A:$C,3,FALSE),A2430)","v":16},{"$f":"IFERROR(VLOOKUP(B2430,Translation!$A:$C,3,FALSE),B2430)","v":"T1 2017"},{"$f":"IFERROR(VLOOKUP(C2430,Translation!$A:$C,3,FALSE),C2430)","v":"ASSURANCE DE PORTEFEUILLE"},{"$f":"IFERROR(VLOOKUP(D2430,Translation!$A:$C,3,FALSE),D2430)","v":"Logement unifamilial"},{"$f":"IFERROR(VLOOKUP(E2430,Translation!$A:$C,3,FALSE),E2430)","v":76.938442961969315},{"$f":"IFERROR(VLOOKUP(F2430,Translation!$A:$C,3,FALSE),F2430)","v":"Prêts hypothécaires assurés au cours de la période selon le type de logement (%)"},{"$f":"IFERROR(VLOOKUP(G2430,Translation!$A:$C,3,FALSE),G2430)","v":"76.9"},{"$f":"IFERROR(VLOOKUP(H2430,Translation!$A:$C,3,FALSE),H2430)","v":"Logement unifamilial"}]
[16,"Q2 2016","ASSURANCE DE PORTEFEUILLE","Logement unifamilial",76.818315509029617,"Prêts hypothécaires assurés au cours de la période selon le type de logement (%)","76.8","Logement unifamilial",{"$f":"IFERROR(VLOOKUP(A2432,Translation!$A:$C,3,FALSE),A2432)","v":16},{"$f":"IFERROR(VLOOKUP(B2432,Translation!$A:$C,3,FALSE),B2432)","v":"Q2 2016"},{"$f":"IFERROR(VLOOKUP(C2432,Translation!$A:$C,3,FALSE),C2432)","v":"ASSURANCE DE PORTEFEUILLE"},{"$f":"IFERROR(VLOOKUP(D2432,Translation!$A:$C,3,FALSE),D2432)","v":"Logement unifamilial"},{"$f":"IFERROR(VLOOKUP(E2432,Translation!$A:$C,3,FALSE),E2432)","v":76.818315509029617},{"$f":"IFERROR(VLOOKUP(F2432,Translation!$A:$C,3,FALSE),F2432)","v":"Prêts hypothécaires assurés au cours de la période selon le type de logement (%)"},{"$f":"IFERROR(VLOOKUP(G2432,Translation!$A:$C,3,FALSE),G2432)","v":"76.8"},{"$f":"IFERROR(VLOOKUP(H2432,Translation!$A:$C,3,FALSE),H2432)","v":"Logement unifamilial"}]
[16,"T3 2017","ASSURANCE DE PORTEFEUILLE","Logement unifamilial",72.346043603150733,"Prêts hypothécaires assurés au cours de la période selon le type de logement (%)","72.3","Logement unifamilial",{"$f":"IFERROR(VLOOKUP(A2435,Translation!$A:$C,3,FALSE),A2435)","v":16},{"$f":"IFERROR(VLOOKUP(B2435,Translation!$A:$C,3,FALSE),B2435)","v":"T3 2017"},{"$f":"IFERROR(VLOOKUP(C2435,Translation!$A:$C,3,FALSE),C2435)","v":"ASSURANCE DE PORTEFEUILLE"},{"$f":"IFERROR(VLOOKUP(D2435,Translation!$A:$C,3,FALSE),D2435)","v":"Logement unifamilial"},{"$f":"IFERROR(VLOOKUP(E2435,Translation!$A:$C,3,FALSE),E2435)","v":72.346043603150733},{"$f":"IFERROR(VLOOKUP(F2435,Translation!$A:$C,3,FALSE),F2435)","v":"Prêts hypothécaires assurés au cours de la période selon le type de logement (%)"},{"$f":"IFERROR(VLOOKUP(G2435,Translation!$A:$C,3,FALSE),G2435)","v":"72.3"},{"$f":"IFERROR(VLOOKUP(H2435,Translation!$A:$C,3,FALSE),H2435)","v":"Logement unifamilial"}]
[16,"T1 2017","ASSURANCE DE PORTEFEUILLE","Maison en rangée",8.3286481438425728,"Prêts hypothécaires assurés au cours de la période selon le type de logement (%)","8.3","Maison en rangée",{"$f":"IFERROR(VLOOKUP(A2438,Translation!$A:$C,3,FALSE),A2438)","v":16},{"$f":"IFERROR(VLOOKUP(B2438,Translation!$A:$C,3,FALSE),B2438)","v":"T1 2017"},{"$f":"IFERROR(VLOOKUP(C2438,Translation!$A:$C,3,FALSE),C2438)","v":"ASSURANCE DE PORTEFEUILLE"},{"$f":"IFERROR(VLOOKUP(D2438,Translation!$A:$C,3,FALSE),D2438)","v":"Maison en rangée"},{"$f":"IFERROR(VLOOKUP(E2438,Translation!$A:$C,3,FALSE),E2438)","v":8.3286481438425728},{"$f":"IFERROR(VLOOKUP(F2438,Translation!$A:$C,3,FALSE),F2438)","v":"Prêts hypothécaires assurés au cours de la période selon le type de logement (%)"},{"$f":"IFERROR(VLOOKUP(G2438,Translation!$A:$C,3,FALSE),G2438)","v":"8.3"},{"$f":"IFERROR(VLOOKUP(H2438,Translation!$A:$C,3,FALSE),H2438)","v":"Maison en rangée"}]
[16,"Q2 2016","ASSURANCE DE PORTEFEUILLE","Maison en rangée",6.8230599474077591,"Prêts hypothécaires assurés au cours de la période selon le type de logement (%)","6.8","Maison en rangée",{"$f":"IFERROR(VLOOKUP(A2440,Translation!$A:$C,3,FALSE),A2440)","v":16},{"$f":"IFERROR(VLOOKUP(B2440,Translation!$A:$C,3,FALSE),B2440)","v":"Q2 2016"},{"$f":"IFERROR(VLOOKUP(C2440,Translation!$A:$C,3,FALSE),C2440)","v":"ASSURANCE DE PORTEFEUILLE"},{"$f":"IFERROR(VLOOKUP(D2440,Translation!$A:$C,3,FALSE),D2440)","v":"Maison en rangée"},{"$f":"IFERROR(VLOOKUP(E2440,Translation!$A:$C,3,FALSE),E2440)","v":6.8230599474077591},{"$f":"IFERROR(VLOOKUP(F2440,Translation!$A:$C,3,FALSE),F2440)","v":"Prêts hypothécaires assurés au cours de la période selon le type de logement (%)"},{"$f":"IFERROR(VLOOKUP(G2440,Translation!$A:$C,3,FALSE),G2440)","v":"6.8"},{"$f":"IFERROR(VLOOKUP(H2440,Translation!$A:$C,3,FALSE),H2440)","v":"Maison en rangée"}]
[16,"T3 2017","ASSURANCE DE PORTEFEUILLE","Maison en rangée",9.1790528516331324,"Prêts hypothécaires assurés au cours de la période selon le type de logement (%)","9.2","Maison en rangée",{"$f":"IFERROR(VLOOKUP(A2443,Translation!$A:$C,3,FALSE),A2443)","v":16},{"$f":"IFERROR(VLOOKUP(B2443,Translation!$A:$C,3,FALSE),B2443)","v":"T3 2017"},{"$f":"IFERROR(VLOOKUP(C2443,Translation!$A:$C,3,FALSE),C2443)","v":"ASSURANCE DE PORTEFEUILLE"},{"$f":"IFERROR(VLOOKUP(D2443,Translation!$A:$C,3,FALSE),D2443)","v":"Maison en rangée"},{"$f":"IFERROR(VLOOKUP(E2443,Translation!$A:$C,3,FALSE),E2443)","v":9.1790528516331324},{"$f":"IFERROR(VLOOKUP(F2443,Translation!$A:$C,3,FALSE),F2443)","v":"Prêts hypothécaires assurés au cours de la période selon le type de logement (%)"},{"$f":"IFERROR(VLOOKUP(G2443,Translation!$A:$C,3,FALSE),G2443)","v":"9.2"},{"$f":"IFERROR(VLOOKUP(H2443,Translation!$A:$C,3,FALSE),H2443)","v":"Maison en rangée"}]
[16,"T1 2017","ASSURANCE DE PORTEFEUILLE","Appartement",6.8457458791913011,"Prêts hypothécaires assurés au cours de la période selon le type de logement (%)","6.8","Appartement",{"$f":"IFERROR(VLOOKUP(A2446,Translation!$A:$C,3,FALSE),A2446)","v":16},{"$f":"IFERROR(VLOOKUP(B2446,Translation!$A:$C,3,FALSE),B2446)","v":"T1 2017"},{"$f":"IFERROR(VLOOKUP(C2446,Translation!$A:$C,3,FALSE),C2446)","v":"ASSURANCE DE PORTEFEUILLE"},{"$f":"IFERROR(VLOOKUP(D2446,Translation!$A:$C,3,FALSE),D2446)","v":"Appartement"},{"$f":"IFERROR(VLOOKUP(E2446,Translation!$A:$C,3,FALSE),E2446)","v":6.8457458791913011},{"$f":"IFERROR(VLOOKUP(F2446,Translation!$A:$C,3,FALSE),F2446)","v":"Prêts hypothécaires assurés au cours de la période selon le type de logement (%)"},{"$f":"IFERROR(VLOOKUP(G2446,Translation!$A:$C,3,FALSE),G2446)","v":"6.8"},{"$f":"IFERROR(VLOOKUP(H2446,Translation!$A:$C,3,FALSE),H2446)","v":"Appartement"}]
[16,"Q2 2016","ASSURANCE DE PORTEFEUILLE","Appartement",8.4355142700407484,"Prêts hypothécaires assurés au cours de la période selon le type de logement (%)","8.4","Appartement",{"$f":"IFERROR(VLOOKUP(A2448,Translation!$A:$C,3,FALSE),A2448)","v":16},{"$f":"IFERROR(VLOOKUP(B2448,Translation!$A:$C,3,FALSE),B2448)","v":"Q2 2016"},{"$f":"IFERROR(VLOOKUP(C2448,Translation!$A:$C,3,FALSE),C2448)","v":"ASSURANCE DE PORTEFEUILLE"},{"$f":"IFERROR(VLOOKUP(D2448,Translation!$A:$C,3,FALSE),D2448)","v":"Appartement"},{"$f":"IFERROR(VLOOKUP(E2448,Translation!$A:$C,3,FALSE),E2448)","v":8.4355142700407484},{"$f":"IFERROR(VLOOKUP(F2448,Translation!$A:$C,3,FALSE),F2448)","v":"Prêts hypothécaires assurés au cours de la période selon le type de logement (%)"},{"$f":"IFERROR(VLOOKUP(G2448,Translation!$A:$C,3,FALSE),G2448)","v":"8.4"},{"$f":"IFERROR(VLOOKUP(H2448,Translation!$A:$C,3,FALSE),H2448)","v":"Appartement"}]
[16,"T2 2017","ASSURANCE DE PORTEFEUILLE","Appartement",6.9548114611500562,"Prêts hypothécaires assurés au cours de la période selon le type de logement (%)","7.0","Appartement",{"$f":"IFERROR(VLOOKUP(A2449,Translation!$A:$C,3,FALSE),A2449)","v":16},{"$f":"IFERROR(VLOOKUP(B2449,Translation!$A:$C,3,FALSE),B2449)","v":"T2 2017"},{"$f":"IFERROR(VLOOKUP(C2449,Translation!$A:$C,3,FALSE),C2449)","v":"ASSURANCE DE PORTEFEUILLE"},{"$f":"IFERROR(VLOOKUP(D2449,Translation!$A:$C,3,FALSE),D2449)","v":"Appartement"},{"$f":"IFERROR(VLOOKUP(E2449,Translation!$A:$C,3,FALSE),E2449)","v":6.9548114611500562},{"$f":"IFERROR(VLOOKUP(F2449,Translation!$A:$C,3,FALSE),F2449)","v":"Prêts hypothécaires assurés au cours de la période selon le type de logement (%)"},{"$f":"IFERROR(VLOOKUP(G2449,Translation!$A:$C,3,FALSE),G2449)","v":"7.0"},{"$f":"IFERROR(VLOOKUP(H2449,Translation!$A:$C,3,FALSE),H2449)","v":"Appartement"}]
[16,"T3 2017","ASSURANCE DE PORTEFEUILLE","Appartement",10.151238255980124,"Prêts hypothécaires assurés au cours de la période selon le type de logement (%)","10.2","Appartement",{"$f":"IFERROR(VLOOKUP(A2451,Translation!$A:$C,3,FALSE),A2451)","v":16},{"$f":"IFERROR(VLOOKUP(B2451,Translation!$A:$C,3,FALSE),B2451)","v":"T3 2017"},{"$f":"IFERROR(VLOOKUP(C2451,Translation!$A:$C,3,FALSE),C2451)","v":"ASSURANCE DE PORTEFEUILLE"},{"$f":"IFERROR(VLOOKUP(D2451,Translation!$A:$C,3,FALSE),D2451)","v":"Appartement"},{"$f":"IFERROR(VLOOKUP(E2451,Translation!$A:$C,3,FALSE),E2451)","v":10.151238255980124},{"$f":"IFERROR(VLOOKUP(F2451,Translation!$A:$C,3,FALSE),F2451)","v":"Prêts hypothécaires assurés au cours de la période selon le type de logement (%)"},{"$f":"IFERROR(VLOOKUP(G2451,Translation!$A:$C,3,FALSE),G2451)","v":"10.2"},{"$f":"IFERROR(VLOOKUP(H2451,Translation!$A:$C,3,FALSE),H2451)","v":"Appartement"}]
[16,"T1 2017","ASSURANCE DE PORTEFEUILLE","Jumelé",5.7443734039158878,"Prêts hypothécaires assurés au cours de la période selon le type de logement (%)","5.7","Jumelé",{"$f":"IFERROR(VLOOKUP(A2454,Translation!$A:$C,3,FALSE),A2454)","v":16},{"$f":"IFERROR(VLOOKUP(B2454,Translation!$A:$C,3,FALSE),B2454)","v":"T1 2017"},{"$f":"IFERROR(VLOOKUP(C2454,Translation!$A:$C,3,FALSE),C2454)","v":"ASSURANCE DE PORTEFEUILLE"},{"$f":"IFERROR(VLOOKUP(D2454,Translation!$A:$C,3,FALSE),D2454)","v":"Jumelé"},{"$f":"IFERROR(VLOOKUP(E2454,Translation!$A:$C,3,FALSE),E2454)","v":5.7443734039158878},{"$f":"IFERROR(VLOOKUP(F2454,Translation!$A:$C,3,FALSE),F2454)","v":"Prêts hypothécaires assurés au cours de la période selon le type de logement (%)"},{"$f":"IFERROR(VLOOKUP(G2454,Translation!$A:$C,3,FALSE),G2454)","v":"5.7"},{"$f":"IFERROR(VLOOKUP(H2454,Translation!$A:$C,3,FALSE),H2454)","v":"Jumelé"}]
[16,"T2 2017","ASSURANCE DE PORTEFEUILLE","Jumelé",5.6017799179640706,"Prêts hypothécaires assurés au cours de la période selon le type de logement (%)","5.6","Jumelé",{"$f":"IFERROR(VLOOKUP(A2457,Translation!$A:$C,3,FALSE),A2457)","v":16},{"$f":"IFERROR(VLOOKUP(B2457,Translation!$A:$C,3,FALSE),B2457)","v":"T2 2017"},{"$f":"IFERROR(VLOOKUP(C2457,Translation!$A:$C,3,FALSE),C2457)","v":"ASSURANCE DE PORTEFEUILLE"},{"$f":"IFERROR(VLOOKUP(D2457,Translation!$A:$C,3,FALSE),D2457)","v":"Jumelé"},{"$f":"IFERROR(VLOOKUP(E2457,Translation!$A:$C,3,FALSE),E2457)","v":5.6017799179640706},{"$f":"IFERROR(VLOOKUP(F2457,Translation!$A:$C,3,FALSE),F2457)","v":"Prêts hypothécaires assurés au cours de la période selon le type de logement (%)"},{"$f":"IFERROR(VLOOKUP(G2457,Translation!$A:$C,3,FALSE),G2457)","v":"5.6"},{"$f":"IFERROR(VLOOKUP(H2457,Translation!$A:$C,3,FALSE),H2457)","v":"Jumelé"}]
[16,"T3 2017","ASSURANCE DE PORTEFEUILLE","Jumelé",7.5186025336012223,"Prêts hypothécaires assurés au cours de la période selon le type de logement (%)","7.5","Jumelé",{"$f":"IFERROR(VLOOKUP(A2459,Translation!$A:$C,3,FALSE),A2459)","v":16},{"$f":"IFERROR(VLOOKUP(B2459,Translation!$A:$C,3,FALSE),B2459)","v":"T3 2017"},{"$f":"IFERROR(VLOOKUP(C2459,Translation!$A:$C,3,FALSE),C2459)","v":"ASSURANCE DE PORTEFEUILLE"},{"$f":"IFERROR(VLOOKUP(D2459,Translation!$A:$C,3,FALSE),D2459)","v":"Jumelé"},{"$f":"IFERROR(VLOOKUP(E2459,Translation!$A:$C,3,FALSE),E2459)","v":7.5186025336012223},{"$f":"IFERROR(VLOOKUP(F2459,Translation!$A:$C,3,FALSE),F2459)","v":"Prêts hypothécaires assurés au cours de la période selon le type de logement (%)"},{"$f":"IFERROR(VLOOKUP(G2459,Translation!$A:$C,3,FALSE),G2459)","v":"7.5"},{"$f":"IFERROR(VLOOKUP(H2459,Translation!$A:$C,3,FALSE),H2459)","v":"Jumelé"}]
[16,"T1 2017","ASSURANCE DE PORTEFEUILLE","Plex",2.061662300168734,"Prêts hypothécaires assurés au cours de la période selon le type de logement (%)","2.1","Plex",{"$f":"IFERROR(VLOOKUP(A2462,Translation!$A:$C,3,FALSE),A2462)","v":16},{"$f":"IFERROR(VLOOKUP(B2462,Translation!$A:$C,3,FALSE),B2462)","v":"T1 2017"},{"$f":"IFERROR(VLOOKUP(C2462,Translation!$A:$C,3,FALSE),C2462)","v":"ASSURANCE DE PORTEFEUILLE"},{"$f":"IFERROR(VLOOKUP(D2462,Translation!$A:$C,3,FALSE),D2462)","v":"Plex"},{"$f":"IFERROR(VLOOKUP(E2462,Translation!$A:$C,3,FALSE),E2462)","v":2.061662300168734},{"$f":"IFERROR(VLOOKUP(F2462,Translation!$A:$C,3,FALSE),F2462)","v":"Prêts hypothécaires assurés au cours de la période selon le type de logement (%)"},{"$f":"IFERROR(VLOOKUP(G2462,Translation!$A:$C,3,FALSE),G2462)","v":"2.1"},{"$f":"IFERROR(VLOOKUP(H2462,Translation!$A:$C,3,FALSE),H2462)","v":"Plex"}]
[16,"T2 2017","ASSURANCE DE PORTEFEUILLE","Plex",1.0345850581755374,"Prêts hypothécaires assurés au cours de la période selon le type de logement (%)","1.0","Plex",{"$f":"IFERROR(VLOOKUP(A2465,Translation!$A:$C,3,FALSE),A2465)","v":16},{"$f":"IFERROR(VLOOKUP(B2465,Translation!$A:$C,3,FALSE),B2465)","v":"T2 2017"},{"$f":"IFERROR(VLOOKUP(C2465,Translation!$A:$C,3,FALSE),C2465)","v":"ASSURANCE DE PORTEFEUILLE"},{"$f":"IFERROR(VLOOKUP(D2465,Translation!$A:$C,3,FALSE),D2465)","v":"Plex"},{"$f":"IFERROR(VLOOKUP(E2465,Translation!$A:$C,3,FALSE),E2465)","v":1.0345850581755374},{"$f":"IFERROR(VLOOKUP(F2465,Translation!$A:$C,3,FALSE),F2465)","v":"Prêts hypothécaires assurés au cours de la période selon le type de logement (%)"},{"$f":"IFERROR(VLOOKUP(G2465,Translation!$A:$C,3,FALSE),G2465)","v":"1.0"},{"$f":"IFERROR(VLOOKUP(H2465,Translation!$A:$C,3,FALSE),H2465)","v":"Plex"}]
[16,"T3 2017","ASSURANCE DE PORTEFEUILLE","Plex",0.56142894964921375,"Prêts hypothécaires assurés au cours de la période selon le type de logement (%)","0.6","Plex",{"$f":"IFERROR(VLOOKUP(A2467,Translation!$A:$C,3,FALSE),A2467)","v":16},{"$f":"IFERROR(VLOOKUP(B2467,Translation!$A:$C,3,FALSE),B2467)","v":"T3 2017"},{"$f":"IFERROR(VLOOKUP(C2467,Translation!$A:$C,3,FALSE),C2467)","v":"ASSURANCE DE PORTEFEUILLE"},{"$f":"IFERROR(VLOOKUP(D2467,Translation!$A:$C,3,FALSE),D2467)","v":"Plex"},{"$f":"IFERROR(VLOOKUP(E2467,Translation!$A:$C,3,FALSE),E2467)","v":0.56142894964921375},{"$f":"IFERROR(VLOOKUP(F2467,Translation!$A:$C,3,FALSE),F2467)","v":"Prêts hypothécaires assurés au cours de la période selon le type de logement (%)"},{"$f":"IFERROR(VLOOKUP(G2467,Translation!$A:$C,3,FALSE),G2467)","v":"0.6"},{"$f":"IFERROR(VLOOKUP(H2467,Translation!$A:$C,3,FALSE),H2467)","v":"Plex"}]
[16,"Q4 2016","ASSURANCE DE PORTEFEUILLE","Plex",5.0663755025798576,"Prêts hypothécaires assurés au cours de la période selon le type de logement (%)","5.1","Plex",{"$f":"IFERROR(VLOOKUP(A2468,Translation!$A:$C,3,FALSE),A2468)","v":16},{"$f":"IFERROR(VLOOKUP(B2468,Translation!$A:$C,3,FALSE),B2468)","v":"Q4 2016"},{"$f":"IFERROR(VLOOKUP(C2468,Translation!$A:$C,3,FALSE),C2468)","v":"ASSURANCE DE PORTEFEUILLE"},{"$f":"IFERROR(VLOOKUP(D2468,Translation!$A:$C,3,FALSE),D2468)","v":"Plex"},{"$f":"IFERROR(VLOOKUP(E2468,Translation!$A:$C,3,FALSE),E2468)","v":5.0663755025798576},{"$f":"IFERROR(VLOOKUP(F2468,Translation!$A:$C,3,FALSE),F2468)","v":"Prêts hypothécaires assurés au cours de la période selon le type de logement (%)"},{"$f":"IFERROR(VLOOKUP(G2468,Translation!$A:$C,3,FALSE),G2468)","v":"5.1"},{"$f":"IFERROR(VLOOKUP(H2468,Translation!$A:$C,3,FALSE),H2468)","v":"Plex"}]
[16,"Q2 2016","ASSURANCE DE PORTEFEUILLE","Autre",0.91563083635328613,"Prêts hypothécaires assurés au cours de la période selon le type de logement (%)","0.9","Autre",{"$f":"IFERROR(VLOOKUP(A2472,Translation!$A:$C,3,FALSE),A2472)","v":16},{"$f":"IFERROR(VLOOKUP(B2472,Translation!$A:$C,3,FALSE),B2472)","v":"Q2 2016"},{"$f":"IFERROR(VLOOKUP(C2472,Translation!$A:$C,3,FALSE),C2472)","v":"ASSURANCE DE PORTEFEUILLE"},{"$f":"IFERROR(VLOOKUP(D2472,Translation!$A:$C,3,FALSE),D2472)","v":"Autre"},{"$f":"IFERROR(VLOOKUP(E2472,Translation!$A:$C,3,FALSE),E2472)","v":0.91563083635328613},{"$f":"IFERROR(VLOOKUP(F2472,Translation!$A:$C,3,FALSE),F2472)","v":"Prêts hypothécaires assurés au cours de la période selon le type de logement (%)"},{"$f":"IFERROR(VLOOKUP(G2472,Translation!$A:$C,3,FALSE),G2472)","v":"0.9"},{"$f":"IFERROR(VLOOKUP(H2472,Translation!$A:$C,3,FALSE),H2472)","v":"Autre"}]
[16,"T2 2017","ASSURANCE DE PORTEFEUILLE","Autre",7.1572008748077773E-2,"Prêts hypothécaires assurés au cours de la période selon le type de logement (%)","0.1","Autre",{"$f":"IFERROR(VLOOKUP(A2473,Translation!$A:$C,3,FALSE),A2473)","v":16},{"$f":"IFERROR(VLOOKUP(B2473,Translation!$A:$C,3,FALSE),B2473)","v":"T2 2017"},{"$f":"IFERROR(VLOOKUP(C2473,Translation!$A:$C,3,FALSE),C2473)","v":"ASSURANCE DE PORTEFEUILLE"},{"$f":"IFERROR(VLOOKUP(D2473,Translation!$A:$C,3,FALSE),D2473)","v":"Autre"},{"$f":"IFERROR(VLOOKUP(E2473,Translation!$A:$C,3,FALSE),E2473)","v":7.1572008748077773E-2},{"$f":"IFERROR(VLOOKUP(F2473,Translation!$A:$C,3,FALSE),F2473)","v":"Prêts hypothécaires assurés au cours de la période selon le type de logement (%)"},{"$f":"IFERROR(VLOOKUP(G2473,Translation!$A:$C,3,FALSE),G2473)","v":"0.1"},{"$f":"IFERROR(VLOOKUP(H2473,Translation!$A:$C,3,FALSE),H2473)","v":"Autre"}]
[16,"Q4 2016","ASSURANCE DE PORTEFEUILLE","Autre",2.4658137696246558,"Prêts hypothécaires assurés au cours de la période selon le type de logement (%)","2.5","Autre",{"$f":"IFERROR(VLOOKUP(A2476,Translation!$A:$C,3,FALSE),A2476)","v":16},{"$f":"IFERROR(VLOOKUP(B2476,Translation!$A:$C,3,FALSE),B2476)","v":"Q4 2016"},{"$f":"IFERROR(VLOOKUP(C2476,Translation!$A:$C,3,FALSE),C2476)","v":"ASSURANCE DE PORTEFEUILLE"},{"$f":"IFERROR(VLOOKUP(D2476,Translation!$A:$C,3,FALSE),D2476)","v":"Autre"},{"$f":"IFERROR(VLOOKUP(E2476,Translation!$A:$C,3,FALSE),E2476)","v":2.4658137696246558},{"$f":"IFERROR(VLOOKUP(F2476,Translation!$A:$C,3,FALSE),F2476)","v":"Prêts hypothécaires assurés au cours de la période selon le type de logement (%)"},{"$f":"IFERROR(VLOOKUP(G2476,Translation!$A:$C,3,FALSE),G2476)","v":"2.5"},{"$f":"IFERROR(VLOOKUP(H2476,Translation!$A:$C,3,FALSE),H2476)","v":"Autre"}]
[16,"T1 2017","PROPRIÉTAIRES-OCCUPANTS, À L’UNITÉ","Terre-Neuve-et-Labrador",85.317843491302298,"Prêts hypothécaires assurés au cours de la période selon le type de logement (%)","85.3","Terre-Neuve-et-Labrador",{"$f":"IFERROR(VLOOKUP(A2478,Translation!$A:$C,3,FALSE),A2478)","v":16},{"$f":"IFERROR(VLOOKUP(B2478,Translation!$A:$C,3,FALSE),B2478)","v":"T1 2017"},{"$f":"IFERROR(VLOOKUP(C2478,Translation!$A:$C,3,FALSE),C2478)","v":"PROPRIÉTAIRES-OCCUPANTS, À L’UNITÉ"},{"$f":"IFERROR(VLOOKUP(D2478,Translation!$A:$C,3,FALSE),D2478)","v":"Terre-Neuve-et-Labrador"},{"$f":"IFERROR(VLOOKUP(E2478,Translation!$A:$C,3,FALSE),E2478)","v":85.317843491302298},{"$f":"IFERROR(VLOOKUP(F2478,Translation!$A:$C,3,FALSE),F2478)","v":"Prêts hypothécaires assurés au cours de la période selon le type de logement (%)"},{"$f":"IFERROR(VLOOKUP(G2478,Translation!$A:$C,3,FALSE),G2478)","v":"85.3"},{"$f":"IFERROR(VLOOKUP(H2478,Translation!$A:$C,3,FALSE),H2478)","v":"Terre-Neuve-et-Labrador"}]
[16,"Q3 2016","PROPRIÉTAIRES-OCCUPANTS, À L’UNITÉ","Terre-Neuve-et-Labrador",86.150361106496575,"Prêts hypothécaires assurés au cours de la période selon le type de logement (%)","86.2","Terre-Neuve-et-Labrador",{"$f":"IFERROR(VLOOKUP(A2482,Translation!$A:$C,3,FALSE),A2482)","v":16},{"$f":"IFERROR(VLOOKUP(B2482,Translation!$A:$C,3,FALSE),B2482)","v":"Q3 2016"},{"$f":"IFERROR(VLOOKUP(C2482,Translation!$A:$C,3,FALSE),C2482)","v":"PROPRIÉTAIRES-OCCUPANTS, À L’UNITÉ"},{"$f":"IFERROR(VLOOKUP(D2482,Translation!$A:$C,3,FALSE),D2482)","v":"Terre-Neuve-et-Labrador"},{"$f":"IFERROR(VLOOKUP(E2482,Translation!$A:$C,3,FALSE),E2482)","v":86.150361106496575},{"$f":"IFERROR(VLOOKUP(F2482,Translation!$A:$C,3,FALSE),F2482)","v":"Prêts hypothécaires assurés au cours de la période selon le type de logement (%)"},{"$f":"IFERROR(VLOOKUP(G2482,Translation!$A:$C,3,FALSE),G2482)","v":"86.2"},{"$f":"IFERROR(VLOOKUP(H2482,Translation!$A:$C,3,FALSE),H2482)","v":"Terre-Neuve-et-Labrador"}]
[16,"T3 2017","PROPRIÉTAIRES-OCCUPANTS, À L’UNITÉ","Terre-Neuve-et-Labrador",83.274934370862596,"Prêts hypothécaires assurés au cours de la période selon le type de logement (%)","83.3","Terre-Neuve-et-Labrador",{"$f":"IFERROR(VLOOKUP(A2483,Translation!$A:$C,3,FALSE),A2483)","v":16},{"$f":"IFERROR(VLOOKUP(B2483,Translation!$A:$C,3,FALSE),B2483)","v":"T3 2017"},{"$f":"IFERROR(VLOOKUP(C2483,Translation!$A:$C,3,FALSE),C2483)","v":"PROPRIÉTAIRES-OCCUPANTS, À L’UNITÉ"},{"$f":"IFERROR(VLOOKUP(D2483,Translation!$A:$C,3,FALSE),D2483)","v":"Terre-Neuve-et-Labrador"},{"$f":"IFERROR(VLOOKUP(E2483,Translation!$A:$C,3,FALSE),E2483)","v":83.274934370862596},{"$f":"IFERROR(VLOOKUP(F2483,Translation!$A:$C,3,FALSE),F2483)","v":"Prêts hypothécaires assurés au cours de la période selon le type de logement (%)"},{"$f":"IFERROR(VLOOKUP(G2483,Translation!$A:$C,3,FALSE),G2483)","v":"83.3"},{"$f":"IFERROR(VLOOKUP(H2483,Translation!$A:$C,3,FALSE),H2483)","v":"Terre-Neuve-et-Labrador"}]
[16,"T1 2017","PROPRIÉTAIRES-OCCUPANTS, À L’UNITÉ","Île-du-Prince-Édouard",79.528010217607743,"Prêts hypothécaires assurés au cours de la période selon le type de logement (%)","79.5","Île-du-Prince-Édouard",{"$f":"IFERROR(VLOOKUP(A2486,Translation!$A:$C,3,FALSE),A2486)","v":16},{"$f":"IFERROR(VLOOKUP(B2486,Translation!$A:$C,3,FALSE),B2486)","v":"T1 2017"},{"$f":"IFERROR(VLOOKUP(C2486,Translation!$A:$C,3,FALSE),C2486)","v":"PROPRIÉTAIRES-OCCUPANTS, À L’UNITÉ"},{"$f":"IFERROR(VLOOKUP(D2486,Translation!$A:$C,3,FALSE),D2486)","v":"Île-du-Prince-Édouard"},{"$f":"IFERROR(VLOOKUP(E2486,Translation!$A:$C,3,FALSE),E2486)","v":79.528010217607743},{"$f":"IFERROR(VLOOKUP(F2486,Translation!$A:$C,3,FALSE),F2486)","v":"Prêts hypothécaires assurés au cours de la période selon le type de logement (%)"},{"$f":"IFERROR(VLOOKUP(G2486,Translation!$A:$C,3,FALSE),G2486)","v":"79.5"},{"$f":"IFERROR(VLOOKUP(H2486,Translation!$A:$C,3,FALSE),H2486)","v":"Île-du-Prince-Édouard"}]
[16,"T1 2018","PROPRIÉTAIRES-OCCUPANTS, À L’UNITÉ","Île-du-Prince-Édouard",86.306138423426972,"Prêts hypothécaires assurés au cours de la période selon le type de logement (%)","86.3","Île-du-Prince-Édouard",{"$f":"IFERROR(VLOOKUP(A2487,Translation!$A:$C,3,FALSE),A2487)","v":16},{"$f":"IFERROR(VLOOKUP(B2487,Translation!$A:$C,3,FALSE),B2487)","v":"T1 2018"},{"$f":"IFERROR(VLOOKUP(C2487,Translation!$A:$C,3,FALSE),C2487)","v":"PROPRIÉTAIRES-OCCUPANTS, À L’UNITÉ"},{"$f":"IFERROR(VLOOKUP(D2487,Translation!$A:$C,3,FALSE),D2487)","v":"Île-du-Prince-Édouard"},{"$f":"IFERROR(VLOOKUP(E2487,Translation!$A:$C,3,FALSE),E2487)","v":86.306138423426972},{"$f":"IFERROR(VLOOKUP(F2487,Translation!$A:$C,3,FALSE),F2487)","v":"Prêts hypothécaires assurés au cours de la période selon le type de logement (%)"},{"$f":"IFERROR(VLOOKUP(G2487,Translation!$A:$C,3,FALSE),G2487)","v":"86.3"},{"$f":"IFERROR(VLOOKUP(H2487,Translation!$A:$C,3,FALSE),H2487)","v":"Île-du-Prince-Édouard"}]
[16,"T3 2017","PROPRIÉTAIRES-OCCUPANTS, À L’UNITÉ","Île-du-Prince-Édouard",74.259455457657936,"Prêts hypothécaires assurés au cours de la période selon le type de logement (%)","74.3","Île-du-Prince-Édouard",{"$f":"IFERROR(VLOOKUP(A2491,Translation!$A:$C,3,FALSE),A2491)","v":16},{"$f":"IFERROR(VLOOKUP(B2491,Translation!$A:$C,3,FALSE),B2491)","v":"T3 2017"},{"$f":"IFERROR(VLOOKUP(C2491,Translation!$A:$C,3,FALSE),C2491)","v":"PROPRIÉTAIRES-OCCUPANTS, À L’UNITÉ"},{"$f":"IFERROR(VLOOKUP(D2491,Translation!$A:$C,3,FALSE),D2491)","v":"Île-du-Prince-Édouard"},{"$f":"IFERROR(VLOOKUP(E2491,Translation!$A:$C,3,FALSE),E2491)","v":74.259455457657936},{"$f":"IFERROR(VLOOKUP(F2491,Translation!$A:$C,3,FALSE),F2491)","v":"Prêts hypothécaires assurés au cours de la période selon le type de logement (%)"},{"$f":"IFERROR(VLOOKUP(G2491,Translation!$A:$C,3,FALSE),G2491)","v":"74.3"},{"$f":"IFERROR(VLOOKUP(H2491,Translation!$A:$C,3,FALSE),H2491)","v":"Île-du-Prince-Édouard"}]
[16,"T4 2017","PROPRIÉTAIRES-OCCUPANTS, À L’UNITÉ","Île-du-Prince-Édouard",74.224829304304379,"Prêts hypothécaires assurés au cours de la période selon le type de logement (%)","74.2","Île-du-Prince-Édouard",{"$f":"IFERROR(VLOOKUP(A2493,Translation!$A:$C,3,FALSE),A2493)","v":16},{"$f":"IFERROR(VLOOKUP(B2493,Translation!$A:$C,3,FALSE),B2493)","v":"T4 2017"},{"$f":"IFERROR(VLOOKUP(C2493,Translation!$A:$C,3,FALSE),C2493)","v":"PROPRIÉTAIRES-OCCUPANTS, À L’UNITÉ"},{"$f":"IFERROR(VLOOKUP(D2493,Translation!$A:$C,3,FALSE),D2493)","v":"Île-du-Prince-Édouard"},{"$f":"IFERROR(VLOOKUP(E2493,Translation!$A:$C,3,FALSE),E2493)","v":74.224829304304379},{"$f":"IFERROR(VLOOKUP(F2493,Translation!$A:$C,3,FALSE),F2493)","v":"Prêts hypothécaires assurés au cours de la période selon le type de logement (%)"},{"$f":"IFERROR(VLOOKUP(G2493,Translation!$A:$C,3,FALSE),G2493)","v":"74.2"},{"$f":"IFERROR(VLOOKUP(H2493,Translation!$A:$C,3,FALSE),H2493)","v":"Île-du-Prince-Édouard"}]
[16,"Q2 2016","PROPRIÉTAIRES-OCCUPANTS, À L’UNITÉ","Nouvelle-Écosse",80.066449143889614,"Prêts hypothécaires assurés au cours de la période selon le type de logement (%)","80.1","Nouvelle-Écosse",{"$f":"IFERROR(VLOOKUP(A2496,Translation!$A:$C,3,FALSE),A2496)","v":16},{"$f":"IFERROR(VLOOKUP(B2496,Translation!$A:$C,3,FALSE),B2496)","v":"Q2 2016"},{"$f":"IFERROR(VLOOKUP(C2496,Translation!$A:$C,3,FALSE),C2496)","v":"PROPRIÉTAIRES-OCCUPANTS, À L’UNITÉ"},{"$f":"IFERROR(VLOOKUP(D2496,Translation!$A:$C,3,FALSE),D2496)","v":"Nouvelle-Écosse"},{"$f":"IFERROR(VLOOKUP(E2496,Translation!$A:$C,3,FALSE),E2496)","v":80.066449143889614},{"$f":"IFERROR(VLOOKUP(F2496,Translation!$A:$C,3,FALSE),F2496)","v":"Prêts hypothécaires assurés au cours de la période selon le type de logement (%)"},{"$f":"IFERROR(VLOOKUP(G2496,Translation!$A:$C,3,FALSE),G2496)","v":"80.1"},{"$f":"IFERROR(VLOOKUP(H2496,Translation!$A:$C,3,FALSE),H2496)","v":"Nouvelle-Écosse"}]
[16,"T2 2017","PROPRIÉTAIRES-OCCUPANTS, À L’UNITÉ","Nouvelle-Écosse",79.698103462933062,"Prêts hypothécaires assurés au cours de la période selon le type de logement (%)","79.7","Nouvelle-Écosse",{"$f":"IFERROR(VLOOKUP(A2497,Translation!$A:$C,3,FALSE),A2497)","v":16},{"$f":"IFERROR(VLOOKUP(B2497,Translation!$A:$C,3,FALSE),B2497)","v":"T2 2017"},{"$f":"IFERROR(VLOOKUP(C2497,Translation!$A:$C,3,FALSE),C2497)","v":"PROPRIÉTAIRES-OCCUPANTS, À L’UNITÉ"},{"$f":"IFERROR(VLOOKUP(D2497,Translation!$A:$C,3,FALSE),D2497)","v":"Nouvelle-Écosse"},{"$f":"IFERROR(VLOOKUP(E2497,Translation!$A:$C,3,FALSE),E2497)","v":79.698103462933062},{"$f":"IFERROR(VLOOKUP(F2497,Translation!$A:$C,3,FALSE),F2497)","v":"Prêts hypothécaires assurés au cours de la période selon le type de logement (%)"},{"$f":"IFERROR(VLOOKUP(G2497,Translation!$A:$C,3,FALSE),G2497)","v":"79.7"},{"$f":"IFERROR(VLOOKUP(H2497,Translation!$A:$C,3,FALSE),H2497)","v":"Nouvelle-Écosse"}]
[16,"T4 2017","PROPRIÉTAIRES-OCCUPANTS, À L’UNITÉ","Nouvelle-Écosse",80.256289364482399,"Prêts hypothécaires assurés au cours de la période selon le type de logement (%)","80.3","Nouvelle-Écosse",{"$f":"IFERROR(VLOOKUP(A2501,Translation!$A:$C,3,FALSE),A2501)","v":16},{"$f":"IFERROR(VLOOKUP(B2501,Translation!$A:$C,3,FALSE),B2501)","v":"T4 2017"},{"$f":"IFERROR(VLOOKUP(C2501,Translation!$A:$C,3,FALSE),C2501)","v":"PROPRIÉTAIRES-OCCUPANTS, À L’UNITÉ"},{"$f":"IFERROR(VLOOKUP(D2501,Translation!$A:$C,3,FALSE),D2501)","v":"Nouvelle-Écosse"},{"$f":"IFERROR(VLOOKUP(E2501,Translation!$A:$C,3,FALSE),E2501)","v":80.256289364482399},{"$f":"IFERROR(VLOOKUP(F2501,Translation!$A:$C,3,FALSE),F2501)","v":"Prêts hypothécaires assurés au cours de la période selon le type de logement (%)"},{"$f":"IFERROR(VLOOKUP(G2501,Translation!$A:$C,3,FALSE),G2501)","v":"80.3"},{"$f":"IFERROR(VLOOKUP(H2501,Translation!$A:$C,3,FALSE),H2501)","v":"Nouvelle-Écosse"}]
[16,"T1 2017","PROPRIÉTAIRES-OCCUPANTS, À L’UNITÉ","Nouveau-Brunswick",80.824861826187984,"Prêts hypothécaires assurés au cours de la période selon le type de logement (%)","80.8","Nouveau-Brunswick",{"$f":"IFERROR(VLOOKUP(A2502,Translation!$A:$C,3,FALSE),A2502)","v":16},{"$f":"IFERROR(VLOOKUP(B2502,Translation!$A:$C,3,FALSE),B2502)","v":"T1 2017"},{"$f":"IFERROR(VLOOKUP(C2502,Translation!$A:$C,3,FALSE),C2502)","v":"PROPRIÉTAIRES-OCCUPANTS, À L’UNITÉ"},{"$f":"IFERROR(VLOOKUP(D2502,Translation!$A:$C,3,FALSE),D2502)","v":"Nouveau-Brunswick"},{"$f":"IFERROR(VLOOKUP(E2502,Translation!$A:$C,3,FALSE),E2502)","v":80.824861826187984},{"$f":"IFERROR(VLOOKUP(F2502,Translation!$A:$C,3,FALSE),F2502)","v":"Prêts hypothécaires assurés au cours de la période selon le type de logement (%)"},{"$f":"IFERROR(VLOOKUP(G2502,Translation!$A:$C,3,FALSE),G2502)","v":"80.8"},{"$f":"IFERROR(VLOOKUP(H2502,Translation!$A:$C,3,FALSE),H2502)","v":"Nouveau-Brunswick"}]
[16,"Q2 2016","PROPRIÉTAIRES-OCCUPANTS, À L’UNITÉ","Nouveau-Brunswick",82.759544796747676,"Prêts hypothécaires assurés au cours de la période selon le type de logement (%)","82.8","Nouveau-Brunswick",{"$f":"IFERROR(VLOOKUP(A2504,Translation!$A:$C,3,FALSE),A2504)","v":16},{"$f":"IFERROR(VLOOKUP(B2504,Translation!$A:$C,3,FALSE),B2504)","v":"Q2 2016"},{"$f":"IFERROR(VLOOKUP(C2504,Translation!$A:$C,3,FALSE),C2504)","v":"PROPRIÉTAIRES-OCCUPANTS, À L’UNITÉ"},{"$f":"IFERROR(VLOOKUP(D2504,Translation!$A:$C,3,FALSE),D2504)","v":"Nouveau-Brunswick"},{"$f":"IFERROR(VLOOKUP(E2504,Translation!$A:$C,3,FALSE),E2504)","v":82.759544796747676},{"$f":"IFERROR(VLOOKUP(F2504,Translation!$A:$C,3,FALSE),F2504)","v":"Prêts hypothécaires assurés au cours de la période selon le type de logement (%)"},{"$f":"IFERROR(VLOOKUP(G2504,Translation!$A:$C,3,FALSE),G2504)","v":"82.8"},{"$f":"IFERROR(VLOOKUP(H2504,Translation!$A:$C,3,FALSE),H2504)","v":"Nouveau-Brunswick"}]
[16,"T3 2017","PROPRIÉTAIRES-OCCUPANTS, À L’UNITÉ","Nouveau-Brunswick",86.012530199438359,"Prêts hypothécaires assurés au cours de la période selon le type de logement (%)","86.0","Nouveau-Brunswick",{"$f":"IFERROR(VLOOKUP(A2507,Translation!$A:$C,3,FALSE),A2507)","v":16},{"$f":"IFERROR(VLOOKUP(B2507,Translation!$A:$C,3,FALSE),B2507)","v":"T3 2017"},{"$f":"IFERROR(VLOOKUP(C2507,Translation!$A:$C,3,FALSE),C2507)","v":"PROPRIÉTAIRES-OCCUPANTS, À L’UNITÉ"},{"$f":"IFERROR(VLOOKUP(D2507,Translation!$A:$C,3,FALSE),D2507)","v":"Nouveau-Brunswick"},{"$f":"IFERROR(VLOOKUP(E2507,Translation!$A:$C,3,FALSE),E2507)","v":86.012530199438359},{"$f":"IFERROR(VLOOKUP(F2507,Translation!$A:$C,3,FALSE),F2507)","v":"Prêts hypothécaires assurés au cours de la période selon le type de logement (%)"},{"$f":"IFERROR(VLOOKUP(G2507,Translation!$A:$C,3,FALSE),G2507)","v":"86.0"},{"$f":"IFERROR(VLOOKUP(H2507,Translation!$A:$C,3,FALSE),H2507)","v":"Nouveau-Brunswick"}]
[16,"T1 2017","PROPRIÉTAIRES-OCCUPANTS, À L’UNITÉ","Québec",58.176778244761834,"Prêts hypothécaires assurés au cours de la période selon le type de logement (%)","58.2","Québec",{"$f":"IFERROR(VLOOKUP(A2510,Translation!$A:$C,3,FALSE),A2510)","v":16},{"$f":"IFERROR(VLOOKUP(B2510,Translation!$A:$C,3,FALSE),B2510)","v":"T1 2017"},{"$f":"IFERROR(VLOOKUP(C2510,Translation!$A:$C,3,FALSE),C2510)","v":"PROPRIÉTAIRES-OCCUPANTS, À L’UNITÉ"},{"$f":"IFERROR(VLOOKUP(D2510,Translation!$A:$C,3,FALSE),D2510)","v":"Québec"},{"$f":"IFERROR(VLOOKUP(E2510,Translation!$A:$C,3,FALSE),E2510)","v":58.176778244761834},{"$f":"IFERROR(VLOOKUP(F2510,Translation!$A:$C,3,FALSE),F2510)","v":"Prêts hypothécaires assurés au cours de la période selon le type de logement (%)"},{"$f":"IFERROR(VLOOKUP(G2510,Translation!$A:$C,3,FALSE),G2510)","v":"58.2"},{"$f":"IFERROR(VLOOKUP(H2510,Translation!$A:$C,3,FALSE),H2510)","v":"Québec"}]
[16,"Q2 2016","PROPRIÉTAIRES-OCCUPANTS, À L’UNITÉ","Québec",62.412326002129646,"Prêts hypothécaires assurés au cours de la période selon le type de logement (%)","62.4","Québec",{"$f":"IFERROR(VLOOKUP(A2512,Translation!$A:$C,3,FALSE),A2512)","v":16},{"$f":"IFERROR(VLOOKUP(B2512,Translation!$A:$C,3,FALSE),B2512)","v":"Q2 2016"},{"$f":"IFERROR(VLOOKUP(C2512,Translation!$A:$C,3,FALSE),C2512)","v":"PROPRIÉTAIRES-OCCUPANTS, À L’UNITÉ"},{"$f":"IFERROR(VLOOKUP(D2512,Translation!$A:$C,3,FALSE),D2512)","v":"Québec"},{"$f":"IFERROR(VLOOKUP(E2512,Translation!$A:$C,3,FALSE),E2512)","v":62.412326002129646},{"$f":"IFERROR(VLOOKUP(F2512,Translation!$A:$C,3,FALSE),F2512)","v":"Prêts hypothécaires assurés au cours de la période selon le type de logement (%)"},{"$f":"IFERROR(VLOOKUP(G2512,Translation!$A:$C,3,FALSE),G2512)","v":"62.4"},{"$f":"IFERROR(VLOOKUP(H2512,Translation!$A:$C,3,FALSE),H2512)","v":"Québec"}]
[16,"T3 2017","PROPRIÉTAIRES-OCCUPANTS, À L’UNITÉ","Québec",61.418831893396785,"Prêts hypothécaires assurés au cours de la période selon le type de logement (%)","61.4","Québec",{"$f":"IFERROR(VLOOKUP(A2515,Translation!$A:$C,3,FALSE),A2515)","v":16},{"$f":"IFERROR(VLOOKUP(B2515,Translation!$A:$C,3,FALSE),B2515)","v":"T3 2017"},{"$f":"IFERROR(VLOOKUP(C2515,Translation!$A:$C,3,FALSE),C2515)","v":"PROPRIÉTAIRES-OCCUPANTS, À L’UNITÉ"},{"$f":"IFERROR(VLOOKUP(D2515,Translation!$A:$C,3,FALSE),D2515)","v":"Québec"},{"$f":"IFERROR(VLOOKUP(E2515,Translation!$A:$C,3,FALSE),E2515)","v":61.418831893396785},{"$f":"IFERROR(VLOOKUP(F2515,Translation!$A:$C,3,FALSE),F2515)","v":"Prêts hypothécaires assurés au cours de la période selon le type de logement (%)"},{"$f":"IFERROR(VLOOKUP(G2515,Translation!$A:$C,3,FALSE),G2515)","v":"61.4"},{"$f":"IFERROR(VLOOKUP(H2515,Translation!$A:$C,3,FALSE),H2515)","v":"Québec"}]
[16,"T1 2017","PROPRIÉTAIRES-OCCUPANTS, À L’UNITÉ","Ontario",56.160476946502513,"Prêts hypothécaires assurés au cours de la période selon le type de logement (%)","56.2","Ontario",{"$f":"IFERROR(VLOOKUP(A2518,Translation!$A:$C,3,FALSE),A2518)","v":16},{"$f":"IFERROR(VLOOKUP(B2518,Translation!$A:$C,3,FALSE),B2518)","v":"T1 2017"},{"$f":"IFERROR(VLOOKUP(C2518,Translation!$A:$C,3,FALSE),C2518)","v":"PROPRIÉTAIRES-OCCUPANTS, À L’UNITÉ"},{"$f":"IFERROR(VLOOKUP(D2518,Translation!$A:$C,3,FALSE),D2518)","v":"Ontario"},{"$f":"IFERROR(VLOOKUP(E2518,Translation!$A:$C,3,FALSE),E2518)","v":56.160476946502513},{"$f":"IFERROR(VLOOKUP(F2518,Translation!$A:$C,3,FALSE),F2518)","v":"Prêts hypothécaires assurés au cours de la période selon le type de logement (%)"},{"$f":"IFERROR(VLOOKUP(G2518,Translation!$A:$C,3,FALSE),G2518)","v":"56.2"},{"$f":"IFERROR(VLOOKUP(H2518,Translation!$A:$C,3,FALSE),H2518)","v":"Ontario"}]
[16,"Q2 2016","PROPRIÉTAIRES-OCCUPANTS, À L’UNITÉ","Ontario",62.278334018124568,"Prêts hypothécaires assurés au cours de la période selon le type de logement (%)","62.3","Ontario",{"$f":"IFERROR(VLOOKUP(A2520,Translation!$A:$C,3,FALSE),A2520)","v":16},{"$f":"IFERROR(VLOOKUP(B2520,Translation!$A:$C,3,FALSE),B2520)","v":"Q2 2016"},{"$f":"IFERROR(VLOOKUP(C2520,Translation!$A:$C,3,FALSE),C2520)","v":"PROPRIÉTAIRES-OCCUPANTS, À L’UNITÉ"},{"$f":"IFERROR(VLOOKUP(D2520,Translation!$A:$C,3,FALSE),D2520)","v":"Ontario"},{"$f":"IFERROR(VLOOKUP(E2520,Translation!$A:$C,3,FALSE),E2520)","v":62.278334018124568},{"$f":"IFERROR(VLOOKUP(F2520,Translation!$A:$C,3,FALSE),F2520)","v":"Prêts hypothécaires assurés au cours de la période selon le type de logement (%)"},{"$f":"IFERROR(VLOOKUP(G2520,Translation!$A:$C,3,FALSE),G2520)","v":"62.3"},{"$f":"IFERROR(VLOOKUP(H2520,Translation!$A:$C,3,FALSE),H2520)","v":"Ontario"}]
[16,"T2 2017","PROPRIÉTAIRES-OCCUPANTS, À L’UNITÉ","Ontario",56.694292782769999,"Prêts hypothécaires assurés au cours de la période selon le type de logement (%)","56.7","Ontario",{"$f":"IFERROR(VLOOKUP(A2521,Translation!$A:$C,3,FALSE),A2521)","v":16},{"$f":"IFERROR(VLOOKUP(B2521,Translation!$A:$C,3,FALSE),B2521)","v":"T2 2017"},{"$f":"IFERROR(VLOOKUP(C2521,Translation!$A:$C,3,FALSE),C2521)","v":"PROPRIÉTAIRES-OCCUPANTS, À L’UNITÉ"},{"$f":"IFERROR(VLOOKUP(D2521,Translation!$A:$C,3,FALSE),D2521)","v":"Ontario"},{"$f":"IFERROR(VLOOKUP(E2521,Translation!$A:$C,3,FALSE),E2521)","v":56.694292782769999},{"$f":"IFERROR(VLOOKUP(F2521,Translation!$A:$C,3,FALSE),F2521)","v":"Prêts hypothécaires assurés au cours de la période selon le type de logement (%)"},{"$f":"IFERROR(VLOOKUP(G2521,Translation!$A:$C,3,FALSE),G2521)","v":"56.7"},{"$f":"IFERROR(VLOOKUP(H2521,Translation!$A:$C,3,FALSE),H2521)","v":"Ontario"}]
[16,"T3 2017","PROPRIÉTAIRES-OCCUPANTS, À L’UNITÉ","Ontario",59.15342540598639,"Prêts hypothécaires assurés au cours de la période selon le type de logement (%)","59.2","Ontario",{"$f":"IFERROR(VLOOKUP(A2523,Translation!$A:$C,3,FALSE),A2523)","v":16},{"$f":"IFERROR(VLOOKUP(B2523,Translation!$A:$C,3,FALSE),B2523)","v":"T3 2017"},{"$f":"IFERROR(VLOOKUP(C2523,Translation!$A:$C,3,FALSE),C2523)","v":"PROPRIÉTAIRES-OCCUPANTS, À L’UNITÉ"},{"$f":"IFERROR(VLOOKUP(D2523,Translation!$A:$C,3,FALSE),D2523)","v":"Ontario"},{"$f":"IFERROR(VLOOKUP(E2523,Translation!$A:$C,3,FALSE),E2523)","v":59.15342540598639},{"$f":"IFERROR(VLOOKUP(F2523,Translation!$A:$C,3,FALSE),F2523)","v":"Prêts hypothécaires assurés au cours de la période selon le type de logement (%)"},{"$f":"IFERROR(VLOOKUP(G2523,Translation!$A:$C,3,FALSE),G2523)","v":"59.2"},{"$f":"IFERROR(VLOOKUP(H2523,Translation!$A:$C,3,FALSE),H2523)","v":"Ontario"}]
[16,"T1 2017","PROPRIÉTAIRES-OCCUPANTS, À L’UNITÉ","Manitoba",85.947553478613131,"Prêts hypothécaires assurés au cours de la période selon le type de logement (%)","85.9","Manitoba",{"$f":"IFERROR(VLOOKUP(A2526,Translation!$A:$C,3,FALSE),A2526)","v":16},{"$f":"IFERROR(VLOOKUP(B2526,Translation!$A:$C,3,FALSE),B2526)","v":"T1 2017"},{"$f":"IFERROR(VLOOKUP(C2526,Translation!$A:$C,3,FALSE),C2526)","v":"PROPRIÉTAIRES-OCCUPANTS, À L’UNITÉ"},{"$f":"IFERROR(VLOOKUP(D2526,Translation!$A:$C,3,FALSE),D2526)","v":"Manitoba"},{"$f":"IFERROR(VLOOKUP(E2526,Translation!$A:$C,3,FALSE),E2526)","v":85.947553478613131},{"$f":"IFERROR(VLOOKUP(F2526,Translation!$A:$C,3,FALSE),F2526)","v":"Prêts hypothécaires assurés au cours de la période selon le type de logement (%)"},{"$f":"IFERROR(VLOOKUP(G2526,Translation!$A:$C,3,FALSE),G2526)","v":"85.9"},{"$f":"IFERROR(VLOOKUP(H2526,Translation!$A:$C,3,FALSE),H2526)","v":"Manitoba"}]
[16,"T2 2017","PROPRIÉTAIRES-OCCUPANTS, À L’UNITÉ","Manitoba",84.347955847784291,"Prêts hypothécaires assurés au cours de la période selon le type de logement (%)","84.3","Manitoba",{"$f":"IFERROR(VLOOKUP(A2529,Translation!$A:$C,3,FALSE),A2529)","v":16},{"$f":"IFERROR(VLOOKUP(B2529,Translation!$A:$C,3,FALSE),B2529)","v":"T2 2017"},{"$f":"IFERROR(VLOOKUP(C2529,Translation!$A:$C,3,FALSE),C2529)","v":"PROPRIÉTAIRES-OCCUPANTS, À L’UNITÉ"},{"$f":"IFERROR(VLOOKUP(D2529,Translation!$A:$C,3,FALSE),D2529)","v":"Manitoba"},{"$f":"IFERROR(VLOOKUP(E2529,Translation!$A:$C,3,FALSE),E2529)","v":84.347955847784291},{"$f":"IFERROR(VLOOKUP(F2529,Translation!$A:$C,3,FALSE),F2529)","v":"Prêts hypothécaires assurés au cours de la période selon le type de logement (%)"},{"$f":"IFERROR(VLOOKUP(G2529,Translation!$A:$C,3,FALSE),G2529)","v":"84.3"},{"$f":"IFERROR(VLOOKUP(H2529,Translation!$A:$C,3,FALSE),H2529)","v":"Manitoba"}]
[16,"T3 2017","PROPRIÉTAIRES-OCCUPANTS, À L’UNITÉ","Manitoba",87.620384274552691,"Prêts hypothécaires assurés au cours de la période selon le type de logement (%)","87.6","Manitoba",{"$f":"IFERROR(VLOOKUP(A2531,Translation!$A:$C,3,FALSE),A2531)","v":16},{"$f":"IFERROR(VLOOKUP(B2531,Translation!$A:$C,3,FALSE),B2531)","v":"T3 2017"},{"$f":"IFERROR(VLOOKUP(C2531,Translation!$A:$C,3,FALSE),C2531)","v":"PROPRIÉTAIRES-OCCUPANTS, À L’UNITÉ"},{"$f":"IFERROR(VLOOKUP(D2531,Translation!$A:$C,3,FALSE),D2531)","v":"Manitoba"},{"$f":"IFERROR(VLOOKUP(E2531,Translation!$A:$C,3,FALSE),E2531)","v":87.620384274552691},{"$f":"IFERROR(VLOOKUP(F2531,Translation!$A:$C,3,FALSE),F2531)","v":"Prêts hypothécaires assurés au cours de la période selon le type de logement (%)"},{"$f":"IFERROR(VLOOKUP(G2531,Translation!$A:$C,3,FALSE),G2531)","v":"87.6"},{"$f":"IFERROR(VLOOKUP(H2531,Translation!$A:$C,3,FALSE),H2531)","v":"Manitoba"}]
[16,"T1 2017","PROPRIÉTAIRES-OCCUPANTS, À L’UNITÉ","Saskatchewan",80.890297145006201,"Prêts hypothécaires assurés au cours de la période selon le type de logement (%)","80.9","Saskatchewan",{"$f":"IFERROR(VLOOKUP(A2534,Translation!$A:$C,3,FALSE),A2534)","v":16},{"$f":"IFERROR(VLOOKUP(B2534,Translation!$A:$C,3,FALSE),B2534)","v":"T1 2017"},{"$f":"IFERROR(VLOOKUP(C2534,Translation!$A:$C,3,FALSE),C2534)","v":"PROPRIÉTAIRES-OCCUPANTS, À L’UNITÉ"},{"$f":"IFERROR(VLOOKUP(D2534,Translation!$A:$C,3,FALSE),D2534)","v":"Saskatchewan"},{"$f":"IFERROR(VLOOKUP(E2534,Translation!$A:$C,3,FALSE),E2534)","v":80.890297145006201},{"$f":"IFERROR(VLOOKUP(F2534,Translation!$A:$C,3,FALSE),F2534)","v":"Prêts hypothécaires assurés au cours de la période selon le type de logement (%)"},{"$f":"IFERROR(VLOOKUP(G2534,Translation!$A:$C,3,FALSE),G2534)","v":"80.9"},{"$f":"IFERROR(VLOOKUP(H2534,Translation!$A:$C,3,FALSE),H2534)","v":"Saskatchewan"}]
[16,"T2 2017","PROPRIÉTAIRES-OCCUPANTS, À L’UNITÉ","Saskatchewan",80.924052787375487,"Prêts hypothécaires assurés au cours de la période selon le type de logement (%)","80.9","Saskatchewan",{"$f":"IFERROR(VLOOKUP(A2537,Translation!$A:$C,3,FALSE),A2537)","v":16},{"$f":"IFERROR(VLOOKUP(B2537,Translation!$A:$C,3,FALSE),B2537)","v":"T2 2017"},{"$f":"IFERROR(VLOOKUP(C2537,Translation!$A:$C,3,FALSE),C2537)","v":"PROPRIÉTAIRES-OCCUPANTS, À L’UNITÉ"},{"$f":"IFERROR(VLOOKUP(D2537,Translation!$A:$C,3,FALSE),D2537)","v":"Saskatchewan"},{"$f":"IFERROR(VLOOKUP(E2537,Translation!$A:$C,3,FALSE),E2537)","v":80.924052787375487},{"$f":"IFERROR(VLOOKUP(F2537,Translation!$A:$C,3,FALSE),F2537)","v":"Prêts hypothécaires assurés au cours de la période selon le type de logement (%)"},{"$f":"IFERROR(VLOOKUP(G2537,Translation!$A:$C,3,FALSE),G2537)","v":"80.9"},{"$f":"IFERROR(VLOOKUP(H2537,Translation!$A:$C,3,FALSE),H2537)","v":"Saskatchewan"}]
[16,"T3 2017","PROPRIÉTAIRES-OCCUPANTS, À L’UNITÉ","Saskatchewan",86.400729646155369,"Prêts hypothécaires assurés au cours de la période selon le type de logement (%)","86.4","Saskatchewan",{"$f":"IFERROR(VLOOKUP(A2539,Translation!$A:$C,3,FALSE),A2539)","v":16},{"$f":"IFERROR(VLOOKUP(B2539,Translation!$A:$C,3,FALSE),B2539)","v":"T3 2017"},{"$f":"IFERROR(VLOOKUP(C2539,Translation!$A:$C,3,FALSE),C2539)","v":"PROPRIÉTAIRES-OCCUPANTS, À L’UNITÉ"},{"$f":"IFERROR(VLOOKUP(D2539,Translation!$A:$C,3,FALSE),D2539)","v":"Saskatchewan"},{"$f":"IFERROR(VLOOKUP(E2539,Translation!$A:$C,3,FALSE),E2539)","v":86.400729646155369},{"$f":"IFERROR(VLOOKUP(F2539,Translation!$A:$C,3,FALSE),F2539)","v":"Prêts hypothécaires assurés au cours de la période selon le type de logement (%)"},{"$f":"IFERROR(VLOOKUP(G2539,Translation!$A:$C,3,FALSE),G2539)","v":"86.4"},{"$f":"IFERROR(VLOOKUP(H2539,Translation!$A:$C,3,FALSE),H2539)","v":"Saskatchewan"}]
[16,"T1 2017","PROPRIÉTAIRES-OCCUPANTS, À L’UNITÉ","Alberta",66.674698132490278,"Prêts hypothécaires assurés au cours de la période selon le type de logement (%)","66.7","Alberta",{"$f":"IFERROR(VLOOKUP(A2542,Translation!$A:$C,3,FALSE),A2542)","v":16},{"$f":"IFERROR(VLOOKUP(B2542,Translation!$A:$C,3,FALSE),B2542)","v":"T1 2017"},{"$f":"IFERROR(VLOOKUP(C2542,Translation!$A:$C,3,FALSE),C2542)","v":"PROPRIÉTAIRES-OCCUPANTS, À L’UNITÉ"},{"$f":"IFERROR(VLOOKUP(D2542,Translation!$A:$C,3,FALSE),D2542)","v":"Alberta"},{"$f":"IFERROR(VLOOKUP(E2542,Translation!$A:$C,3,FALSE),E2542)","v":66.674698132490278},{"$f":"IFERROR(VLOOKUP(F2542,Translation!$A:$C,3,FALSE),F2542)","v":"Prêts hypothécaires assurés au cours de la période selon le type de logement (%)"},{"$f":"IFERROR(VLOOKUP(G2542,Translation!$A:$C,3,FALSE),G2542)","v":"66.7"},{"$f":"IFERROR(VLOOKUP(H2542,Translation!$A:$C,3,FALSE),H2542)","v":"Alberta"}]
[16,"Q2 2016","PROPRIÉTAIRES-OCCUPANTS, À L’UNITÉ","Alberta",70.726845744293456,"Prêts hypothécaires assurés au cours de la période selon le type de logement (%)","70.7","Alberta",{"$f":"IFERROR(VLOOKUP(A2544,Translation!$A:$C,3,FALSE),A2544)","v":16},{"$f":"IFERROR(VLOOKUP(B2544,Translation!$A:$C,3,FALSE),B2544)","v":"Q2 2016"},{"$f":"IFERROR(VLOOKUP(C2544,Translation!$A:$C,3,FALSE),C2544)","v":"PROPRIÉTAIRES-OCCUPANTS, À L’UNITÉ"},{"$f":"IFERROR(VLOOKUP(D2544,Translation!$A:$C,3,FALSE),D2544)","v":"Alberta"},{"$f":"IFERROR(VLOOKUP(E2544,Translation!$A:$C,3,FALSE),E2544)","v":70.726845744293456},{"$f":"IFERROR(VLOOKUP(F2544,Translation!$A:$C,3,FALSE),F2544)","v":"Prêts hypothécaires assurés au cours de la période selon le type de logement (%)"},{"$f":"IFERROR(VLOOKUP(G2544,Translation!$A:$C,3,FALSE),G2544)","v":"70.7"},{"$f":"IFERROR(VLOOKUP(H2544,Translation!$A:$C,3,FALSE),H2544)","v":"Alberta"}]
[16,"T2 2017","PROPRIÉTAIRES-OCCUPANTS, À L’UNITÉ","Alberta",69.692998911867946,"Prêts hypothécaires assurés au cours de la période selon le type de logement (%)","69.7","Alberta",{"$f":"IFERROR(VLOOKUP(A2545,Translation!$A:$C,3,FALSE),A2545)","v":16},{"$f":"IFERROR(VLOOKUP(B2545,Translation!$A:$C,3,FALSE),B2545)","v":"T2 2017"},{"$f":"IFERROR(VLOOKUP(C2545,Translation!$A:$C,3,FALSE),C2545)","v":"PROPRIÉTAIRES-OCCUPANTS, À L’UNITÉ"},{"$f":"IFERROR(VLOOKUP(D2545,Translation!$A:$C,3,FALSE),D2545)","v":"Alberta"},{"$f":"IFERROR(VLOOKUP(E2545,Translation!$A:$C,3,FALSE),E2545)","v":69.692998911867946},{"$f":"IFERROR(VLOOKUP(F2545,Translation!$A:$C,3,FALSE),F2545)","v":"Prêts hypothécaires assurés au cours de la période selon le type de logement (%)"},{"$f":"IFERROR(VLOOKUP(G2545,Translation!$A:$C,3,FALSE),G2545)","v":"69.7"},{"$f":"IFERROR(VLOOKUP(H2545,Translation!$A:$C,3,FALSE),H2545)","v":"Alberta"}]
[16,"Q4 2016","PROPRIÉTAIRES-OCCUPANTS, À L’UNITÉ","Alberta",69.355346717595438,"Prêts hypothécaires assurés au cours de la période selon le type de logement (%)","69.4","Alberta",{"$f":"IFERROR(VLOOKUP(A2548,Translation!$A:$C,3,FALSE),A2548)","v":16},{"$f":"IFERROR(VLOOKUP(B2548,Translation!$A:$C,3,FALSE),B2548)","v":"Q4 2016"},{"$f":"IFERROR(VLOOKUP(C2548,Translation!$A:$C,3,FALSE),C2548)","v":"PROPRIÉTAIRES-OCCUPANTS, À L’UNITÉ"},{"$f":"IFERROR(VLOOKUP(D2548,Translation!$A:$C,3,FALSE),D2548)","v":"Alberta"},{"$f":"IFERROR(VLOOKUP(E2548,Translation!$A:$C,3,FALSE),E2548)","v":69.355346717595438},{"$f":"IFERROR(VLOOKUP(F2548,Translation!$A:$C,3,FALSE),F2548)","v":"Prêts hypothécaires assurés au cours de la période selon le type de logement (%)"},{"$f":"IFERROR(VLOOKUP(G2548,Translation!$A:$C,3,FALSE),G2548)","v":"69.4"},{"$f":"IFERROR(VLOOKUP(H2548,Translation!$A:$C,3,FALSE),H2548)","v":"Alberta"}]
[16,"T1 2017","PROPRIÉTAIRES-OCCUPANTS, À L’UNITÉ","Colombie-Britannique",50.166786534353029,"Prêts hypothécaires assurés au cours de la période selon le type de logement (%)","50.2","Colombie-Britannique",{"$f":"IFERROR(VLOOKUP(A2550,Translation!$A:$C,3,FALSE),A2550)","v":16},{"$f":"IFERROR(VLOOKUP(B2550,Translation!$A:$C,3,FALSE),B2550)","v":"T1 2017"},{"$f":"IFERROR(VLOOKUP(C2550,Translation!$A:$C,3,FALSE),C2550)","v":"PROPRIÉTAIRES-OCCUPANTS, À L’UNITÉ"},{"$f":"IFERROR(VLOOKUP(D2550,Translation!$A:$C,3,FALSE),D2550)","v":"Colombie-Britannique"},{"$f":"IFERROR(VLOOKUP(E2550,Translation!$A:$C,3,FALSE),E2550)","v":50.166786534353029},{"$f":"IFERROR(VLOOKUP(F2550,Translation!$A:$C,3,FALSE),F2550)","v":"Prêts hypothécaires assurés au cours de la période selon le type de logement (%)"},{"$f":"IFERROR(VLOOKUP(G2550,Translation!$A:$C,3,FALSE),G2550)","v":"50.2"},{"$f":"IFERROR(VLOOKUP(H2550,Translation!$A:$C,3,FALSE),H2550)","v":"Colombie-Britannique"}]
[16,"T2 2017","PROPRIÉTAIRES-OCCUPANTS, À L’UNITÉ","Colombie-Britannique",50.297449796787362,"Prêts hypothécaires assurés au cours de la période selon le type de logement (%)","50.3","Colombie-Britannique",{"$f":"IFERROR(VLOOKUP(A2553,Translation!$A:$C,3,FALSE),A2553)","v":16},{"$f":"IFERROR(VLOOKUP(B2553,Translation!$A:$C,3,FALSE),B2553)","v":"T2 2017"},{"$f":"IFERROR(VLOOKUP(C2553,Translation!$A:$C,3,FALSE),C2553)","v":"PROPRIÉTAIRES-OCCUPANTS, À L’UNITÉ"},{"$f":"IFERROR(VLOOKUP(D2553,Translation!$A:$C,3,FALSE),D2553)","v":"Colombie-Britannique"},{"$f":"IFERROR(VLOOKUP(E2553,Translation!$A:$C,3,FALSE),E2553)","v":50.297449796787362},{"$f":"IFERROR(VLOOKUP(F2553,Translation!$A:$C,3,FALSE),F2553)","v":"Prêts hypothécaires assurés au cours de la période selon le type de logement (%)"},{"$f":"IFERROR(VLOOKUP(G2553,Translation!$A:$C,3,FALSE),G2553)","v":"50.3"},{"$f":"IFERROR(VLOOKUP(H2553,Translation!$A:$C,3,FALSE),H2553)","v":"Colombie-Britannique"}]
[16,"T3 2017","PROPRIÉTAIRES-OCCUPANTS, À L’UNITÉ","Colombie-Britannique",49.783959449309698,"Prêts hypothécaires assurés au cours de la période selon le type de logement (%)","49.8","Colombie-Britannique",{"$f":"IFERROR(VLOOKUP(A2555,Translation!$A:$C,3,FALSE),A2555)","v":16},{"$f":"IFERROR(VLOOKUP(B2555,Translation!$A:$C,3,FALSE),B2555)","v":"T3 2017"},{"$f":"IFERROR(VLOOKUP(C2555,Translation!$A:$C,3,FALSE),C2555)","v":"PROPRIÉTAIRES-OCCUPANTS, À L’UNITÉ"},{"$f":"IFERROR(VLOOKUP(D2555,Translation!$A:$C,3,FALSE),D2555)","v":"Colombie-Britannique"},{"$f":"IFERROR(VLOOKUP(E2555,Translation!$A:$C,3,FALSE),E2555)","v":49.783959449309698},{"$f":"IFERROR(VLOOKUP(F2555,Translation!$A:$C,3,FALSE),F2555)","v":"Prêts hypothécaires assurés au cours de la période selon le type de logement (%)"},{"$f":"IFERROR(VLOOKUP(G2555,Translation!$A:$C,3,FALSE),G2555)","v":"49.8"},{"$f":"IFERROR(VLOOKUP(H2555,Translation!$A:$C,3,FALSE),H2555)","v":"Colombie-Britannique"}]
[16,"T1 2017","PROPRIÉTAIRES-OCCUPANTS, À L’UNITÉ","Territoires",56.960109899479058,"Prêts hypothécaires assurés au cours de la période selon le type de logement (%)","57.0","Territoires",{"$f":"IFERROR(VLOOKUP(A2558,Translation!$A:$C,3,FALSE),A2558)","v":16},{"$f":"IFERROR(VLOOKUP(B2558,Translation!$A:$C,3,FALSE),B2558)","v":"T1 2017"},{"$f":"IFERROR(VLOOKUP(C2558,Translation!$A:$C,3,FALSE),C2558)","v":"PROPRIÉTAIRES-OCCUPANTS, À L’UNITÉ"},{"$f":"IFERROR(VLOOKUP(D2558,Translation!$A:$C,3,FALSE),D2558)","v":"Territoires"},{"$f":"IFERROR(VLOOKUP(E2558,Translation!$A:$C,3,FALSE),E2558)","v":56.960109899479058},{"$f":"IFERROR(VLOOKUP(F2558,Translation!$A:$C,3,FALSE),F2558)","v":"Prêts hypothécaires assurés au cours de la période selon le type de logement (%)"},{"$f":"IFERROR(VLOOKUP(G2558,Translation!$A:$C,3,FALSE),G2558)","v":"57.0"},{"$f":"IFERROR(VLOOKUP(H2558,Translation!$A:$C,3,FALSE),H2558)","v":"Territoires"}]
[16,"T2 2017","PROPRIÉTAIRES-OCCUPANTS, À L’UNITÉ","Territoires",48.796397930341598,"Prêts hypothécaires assurés au cours de la période selon le type de logement (%)","48.8","Territoires",{"$f":"IFERROR(VLOOKUP(A2561,Translation!$A:$C,3,FALSE),A2561)","v":16},{"$f":"IFERROR(VLOOKUP(B2561,Translation!$A:$C,3,FALSE),B2561)","v":"T2 2017"},{"$f":"IFERROR(VLOOKUP(C2561,Translation!$A:$C,3,FALSE),C2561)","v":"PROPRIÉTAIRES-OCCUPANTS, À L’UNITÉ"},{"$f":"IFERROR(VLOOKUP(D2561,Translation!$A:$C,3,FALSE),D2561)","v":"Territoires"},{"$f":"IFERROR(VLOOKUP(E2561,Translation!$A:$C,3,FALSE),E2561)","v":48.796397930341598},{"$f":"IFERROR(VLOOKUP(F2561,Translation!$A:$C,3,FALSE),F2561)","v":"Prêts hypothécaires assurés au cours de la période selon le type de logement (%)"},{"$f":"IFERROR(VLOOKUP(G2561,Translation!$A:$C,3,FALSE),G2561)","v":"48.8"},{"$f":"IFERROR(VLOOKUP(H2561,Translation!$A:$C,3,FALSE),H2561)","v":"Territoires"}]
[16,"T3 2017","PROPRIÉTAIRES-OCCUPANTS, À L’UNITÉ","Territoires",54.107489663348147,"Prêts hypothécaires assurés au cours de la période selon le type de logement (%)","54.1","Territoires",{"$f":"IFERROR(VLOOKUP(A2563,Translation!$A:$C,3,FALSE),A2563)","v":16},{"$f":"IFERROR(VLOOKUP(B2563,Translation!$A:$C,3,FALSE),B2563)","v":"T3 2017"},{"$f":"IFERROR(VLOOKUP(C2563,Translation!$A:$C,3,FALSE),C2563)","v":"PROPRIÉTAIRES-OCCUPANTS, À L’UNITÉ"},{"$f":"IFERROR(VLOOKUP(D2563,Translation!$A:$C,3,FALSE),D2563)","v":"Territoires"},{"$f":"IFERROR(VLOOKUP(E2563,Translation!$A:$C,3,FALSE),E2563)","v":54.107489663348147},{"$f":"IFERROR(VLOOKUP(F2563,Translation!$A:$C,3,FALSE),F2563)","v":"Prêts hypothécaires assurés au cours de la période selon le type de logement (%)"},{"$f":"IFERROR(VLOOKUP(G2563,Translation!$A:$C,3,FALSE),G2563)","v":"54.1"},{"$f":"IFERROR(VLOOKUP(H2563,Translation!$A:$C,3,FALSE),H2563)","v":"Territoires"}]
[16,"Q4 2016","PROPRIÉTAIRES-OCCUPANTS, À L’UNITÉ","Territoires",53.257488603075871,"Prêts hypothécaires assurés au cours de la période selon le type de logement (%)","53.3","Territoires",{"$f":"IFERROR(VLOOKUP(A2564,Translation!$A:$C,3,FALSE),A2564)","v":16},{"$f":"IFERROR(VLOOKUP(B2564,Translation!$A:$C,3,FALSE),B2564)","v":"Q4 2016"},{"$f":"IFERROR(VLOOKUP(C2564,Translation!$A:$C,3,FALSE),C2564)","v":"PROPRIÉTAIRES-OCCUPANTS, À L’UNITÉ"},{"$f":"IFERROR(VLOOKUP(D2564,Translation!$A:$C,3,FALSE),D2564)","v":"Territoires"},{"$f":"IFERROR(VLOOKUP(E2564,Translation!$A:$C,3,FALSE),E2564)","v":53.257488603075871},{"$f":"IFERROR(VLOOKUP(F2564,Translation!$A:$C,3,FALSE),F2564)","v":"Prêts hypothécaires assurés au cours de la période selon le type de logement (%)"},{"$f":"IFERROR(VLOOKUP(G2564,Translation!$A:$C,3,FALSE),G2564)","v":"53.3"},{"$f":"IFERROR(VLOOKUP(H2564,Translation!$A:$C,3,FALSE),H2564)","v":"Territoires"}]
[16,"Q2 2016","ASSURANCE DE PORTEFEUILLE","Terre-Neuve-et-Labrador",93.701618322677362,"Prêts hypothécaires assurés au cours de la période selon le type de logement (%)","93.7","Terre-Neuve-et-Labrador",{"$f":"IFERROR(VLOOKUP(A2568,Translation!$A:$C,3,FALSE),A2568)","v":16},{"$f":"IFERROR(VLOOKUP(B2568,Translation!$A:$C,3,FALSE),B2568)","v":"Q2 2016"},{"$f":"IFERROR(VLOOKUP(C2568,Translation!$A:$C,3,FALSE),C2568)","v":"ASSURANCE DE PORTEFEUILLE"},{"$f":"IFERROR(VLOOKUP(D2568,Translation!$A:$C,3,FALSE),D2568)","v":"Terre-Neuve-et-Labrador"},{"$f":"IFERROR(VLOOKUP(E2568,Translation!$A:$C,3,FALSE),E2568)","v":93.701618322677362},{"$f":"IFERROR(VLOOKUP(F2568,Translation!$A:$C,3,FALSE),F2568)","v":"Prêts hypothécaires assurés au cours de la période selon le type de logement (%)"},{"$f":"IFERROR(VLOOKUP(G2568,Translation!$A:$C,3,FALSE),G2568)","v":"93.7"},{"$f":"IFERROR(VLOOKUP(H2568,Translation!$A:$C,3,FALSE),H2568)","v":"Terre-Neuve-et-Labrador"}]
[16,"T2 2017","ASSURANCE DE PORTEFEUILLE","Terre-Neuve-et-Labrador",94.555290785949097,"Prêts hypothécaires assurés au cours de la période selon le type de logement (%)","94.6","Terre-Neuve-et-Labrador",{"$f":"IFERROR(VLOOKUP(A2569,Translation!$A:$C,3,FALSE),A2569)","v":16},{"$f":"IFERROR(VLOOKUP(B2569,Translation!$A:$C,3,FALSE),B2569)","v":"T2 2017"},{"$f":"IFERROR(VLOOKUP(C2569,Translation!$A:$C,3,FALSE),C2569)","v":"ASSURANCE DE PORTEFEUILLE"},{"$f":"IFERROR(VLOOKUP(D2569,Translation!$A:$C,3,FALSE),D2569)","v":"Terre-Neuve-et-Labrador"},{"$f":"IFERROR(VLOOKUP(E2569,Translation!$A:$C,3,FALSE),E2569)","v":94.555290785949097},{"$f":"IFERROR(VLOOKUP(F2569,Translation!$A:$C,3,FALSE),F2569)","v":"Prêts hypothécaires assurés au cours de la période selon le type de logement (%)"},{"$f":"IFERROR(VLOOKUP(G2569,Translation!$A:$C,3,FALSE),G2569)","v":"94.6"},{"$f":"IFERROR(VLOOKUP(H2569,Translation!$A:$C,3,FALSE),H2569)","v":"Terre-Neuve-et-Labrador"}]
[16,"Q4 2016","ASSURANCE DE PORTEFEUILLE","Terre-Neuve-et-Labrador",85.184378834850918,"Prêts hypothécaires assurés au cours de la période selon le type de logement (%)","85.2","Terre-Neuve-et-Labrador",{"$f":"IFERROR(VLOOKUP(A2572,Translation!$A:$C,3,FALSE),A2572)","v":16},{"$f":"IFERROR(VLOOKUP(B2572,Translation!$A:$C,3,FALSE),B2572)","v":"Q4 2016"},{"$f":"IFERROR(VLOOKUP(C2572,Translation!$A:$C,3,FALSE),C2572)","v":"ASSURANCE DE PORTEFEUILLE"},{"$f":"IFERROR(VLOOKUP(D2572,Translation!$A:$C,3,FALSE),D2572)","v":"Terre-Neuve-et-Labrador"},{"$f":"IFERROR(VLOOKUP(E2572,Translation!$A:$C,3,FALSE),E2572)","v":85.184378834850918},{"$f":"IFERROR(VLOOKUP(F2572,Translation!$A:$C,3,FALSE),F2572)","v":"Prêts hypothécaires assurés au cours de la période selon le type de logement (%)"},{"$f":"IFERROR(VLOOKUP(G2572,Translation!$A:$C,3,FALSE),G2572)","v":"85.2"},{"$f":"IFERROR(VLOOKUP(H2572,Translation!$A:$C,3,FALSE),H2572)","v":"Terre-Neuve-et-Labrador"}]
[16,"T1 2017","ASSURANCE DE PORTEFEUILLE","Île-du-Prince-Édouard",100,"Prêts hypothécaires assurés au cours de la période selon le type de logement (%)","100.0","Île-du-Prince-Édouard",{"$f":"IFERROR(VLOOKUP(A2574,Translation!$A:$C,3,FALSE),A2574)","v":16},{"$f":"IFERROR(VLOOKUP(B2574,Translation!$A:$C,3,FALSE),B2574)","v":"T1 2017"},{"$f":"IFERROR(VLOOKUP(C2574,Translation!$A:$C,3,FALSE),C2574)","v":"ASSURANCE DE PORTEFEUILLE"},{"$f":"IFERROR(VLOOKUP(D2574,Translation!$A:$C,3,FALSE),D2574)","v":"Île-du-Prince-Édouard"},{"$f":"IFERROR(VLOOKUP(E2574,Translation!$A:$C,3,FALSE),E2574)","v":100},{"$f":"IFERROR(VLOOKUP(F2574,Translation!$A:$C,3,FALSE),F2574)","v":"Prêts hypothécaires assurés au cours de la période selon le type de logement (%)"},{"$f":"IFERROR(VLOOKUP(G2574,Translation!$A:$C,3,FALSE),G2574)","v":"100.0"},{"$f":"IFERROR(VLOOKUP(H2574,Translation!$A:$C,3,FALSE),H2574)","v":"Île-du-Prince-Édouard"}]
[16,"T3 2017","ASSURANCE DE PORTEFEUILLE","Île-du-Prince-Édouard",100,"Prêts hypothécaires assurés au cours de la période selon le type de logement (%)","100.0","Île-du-Prince-Édouard",{"$f":"IFERROR(VLOOKUP(A2578,Translation!$A:$C,3,FALSE),A2578)","v":16},{"$f":"IFERROR(VLOOKUP(B2578,Translation!$A:$C,3,FALSE),B2578)","v":"T3 2017"},{"$f":"IFERROR(VLOOKUP(C2578,Translation!$A:$C,3,FALSE),C2578)","v":"ASSURANCE DE PORTEFEUILLE"},{"$f":"IFERROR(VLOOKUP(D2578,Translation!$A:$C,3,FALSE),D2578)","v":"Île-du-Prince-Édouard"},{"$f":"IFERROR(VLOOKUP(E2578,Translation!$A:$C,3,FALSE),E2578)","v":100},{"$f":"IFERROR(VLOOKUP(F2578,Translation!$A:$C,3,FALSE),F2578)","v":"Prêts hypothécaires assurés au cours de la période selon le type de logement (%)"},{"$f":"IFERROR(VLOOKUP(G2578,Translation!$A:$C,3,FALSE),G2578)","v":"100.0"},{"$f":"IFERROR(VLOOKUP(H2578,Translation!$A:$C,3,FALSE),H2578)","v":"Île-du-Prince-Édouard"}]
[16,"Q4 2016","ASSURANCE DE PORTEFEUILLE","Île-du-Prince-Édouard",87.769347924033582,"Prêts hypothécaires assurés au cours de la période selon le type de logement (%)","87.8","Île-du-Prince-Édouard",{"$f":"IFERROR(VLOOKUP(A2579,Translation!$A:$C,3,FALSE),A2579)","v":16},{"$f":"IFERROR(VLOOKUP(B2579,Translation!$A:$C,3,FALSE),B2579)","v":"Q4 2016"},{"$f":"IFERROR(VLOOKUP(C2579,Translation!$A:$C,3,FALSE),C2579)","v":"ASSURANCE DE PORTEFEUILLE"},{"$f":"IFERROR(VLOOKUP(D2579,Translation!$A:$C,3,FALSE),D2579)","v":"Île-du-Prince-Édouard"},{"$f":"IFERROR(VLOOKUP(E2579,Translation!$A:$C,3,FALSE),E2579)","v":87.769347924033582},{"$f":"IFERROR(VLOOKUP(F2579,Translation!$A:$C,3,FALSE),F2579)","v":"Prêts hypothécaires assurés au cours de la période selon le type de logement (%)"},{"$f":"IFERROR(VLOOKUP(G2579,Translation!$A:$C,3,FALSE),G2579)","v":"87.8"},{"$f":"IFERROR(VLOOKUP(H2579,Translation!$A:$C,3,FALSE),H2579)","v":"Île-du-Prince-Édouard"}]
[16,"T1 2018","ASSURANCE DE PORTEFEUILLE","Nouvelle-Écosse",88.98515605500279,"Prêts hypothécaires assurés au cours de la période selon le type de logement (%)","89.0","Nouvelle-Écosse",{"$f":"IFERROR(VLOOKUP(A2582,Translation!$A:$C,3,FALSE),A2582)","v":16},{"$f":"IFERROR(VLOOKUP(B2582,Translation!$A:$C,3,FALSE),B2582)","v":"T1 2018"},{"$f":"IFERROR(VLOOKUP(C2582,Translation!$A:$C,3,FALSE),C2582)","v":"ASSURANCE DE PORTEFEUILLE"},{"$f":"IFERROR(VLOOKUP(D2582,Translation!$A:$C,3,FALSE),D2582)","v":"Nouvelle-Écosse"},{"$f":"IFERROR(VLOOKUP(E2582,Translation!$A:$C,3,FALSE),E2582)","v":88.98515605500279},{"$f":"IFERROR(VLOOKUP(F2582,Translation!$A:$C,3,FALSE),F2582)","v":"Prêts hypothécaires assurés au cours de la période selon le type de logement (%)"},{"$f":"IFERROR(VLOOKUP(G2582,Translation!$A:$C,3,FALSE),G2582)","v":"89.0"},{"$f":"IFERROR(VLOOKUP(H2582,Translation!$A:$C,3,FALSE),H2582)","v":"Nouvelle-Écosse"}]
[16,"Q2 2016","ASSURANCE DE PORTEFEUILLE","Nouvelle-Écosse",92.568656540380246,"Prêts hypothécaires assurés au cours de la période selon le type de logement (%)","92.6","Nouvelle-Écosse",{"$f":"IFERROR(VLOOKUP(A2583,Translation!$A:$C,3,FALSE),A2583)","v":16},{"$f":"IFERROR(VLOOKUP(B2583,Translation!$A:$C,3,FALSE),B2583)","v":"Q2 2016"},{"$f":"IFERROR(VLOOKUP(C2583,Translation!$A:$C,3,FALSE),C2583)","v":"ASSURANCE DE PORTEFEUILLE"},{"$f":"IFERROR(VLOOKUP(D2583,Translation!$A:$C,3,FALSE),D2583)","v":"Nouvelle-Écosse"},{"$f":"IFERROR(VLOOKUP(E2583,Translation!$A:$C,3,FALSE),E2583)","v":92.568656540380246},{"$f":"IFERROR(VLOOKUP(F2583,Translation!$A:$C,3,FALSE),F2583)","v":"Prêts hypothécaires assurés au cours de la période selon le type de logement (%)"},{"$f":"IFERROR(VLOOKUP(G2583,Translation!$A:$C,3,FALSE),G2583)","v":"92.6"},{"$f":"IFERROR(VLOOKUP(H2583,Translation!$A:$C,3,FALSE),H2583)","v":"Nouvelle-Écosse"}]
[16,"Q4 2016","ASSURANCE DE PORTEFEUILLE","Nouvelle-Écosse",68.198738636371687,"Prêts hypothécaires assurés au cours de la période selon le type de logement (%)","68.2","Nouvelle-Écosse",{"$f":"IFERROR(VLOOKUP(A2587,Translation!$A:$C,3,FALSE),A2587)","v":16},{"$f":"IFERROR(VLOOKUP(B2587,Translation!$A:$C,3,FALSE),B2587)","v":"Q4 2016"},{"$f":"IFERROR(VLOOKUP(C2587,Translation!$A:$C,3,FALSE),C2587)","v":"ASSURANCE DE PORTEFEUILLE"},{"$f":"IFERROR(VLOOKUP(D2587,Translation!$A:$C,3,FALSE),D2587)","v":"Nouvelle-Écosse"},{"$f":"IFERROR(VLOOKUP(E2587,Translation!$A:$C,3,FALSE),E2587)","v":68.198738636371687},{"$f":"IFERROR(VLOOKUP(F2587,Translation!$A:$C,3,FALSE),F2587)","v":"Prêts hypothécaires assurés au cours de la période selon le type de logement (%)"},{"$f":"IFERROR(VLOOKUP(G2587,Translation!$A:$C,3,FALSE),G2587)","v":"68.2"},{"$f":"IFERROR(VLOOKUP(H2587,Translation!$A:$C,3,FALSE),H2587)","v":"Nouvelle-Écosse"}]
[16,"T1 2017","ASSURANCE DE PORTEFEUILLE","Nouveau-Brunswick",79.398573591167207,"Prêts hypothécaires assurés au cours de la période selon le type de logement (%)","79.4","Nouveau-Brunswick",{"$f":"IFERROR(VLOOKUP(A2589,Translation!$A:$C,3,FALSE),A2589)","v":16},{"$f":"IFERROR(VLOOKUP(B2589,Translation!$A:$C,3,FALSE),B2589)","v":"T1 2017"},{"$f":"IFERROR(VLOOKUP(C2589,Translation!$A:$C,3,FALSE),C2589)","v":"ASSURANCE DE PORTEFEUILLE"},{"$f":"IFERROR(VLOOKUP(D2589,Translation!$A:$C,3,FALSE),D2589)","v":"Nouveau-Brunswick"},{"$f":"IFERROR(VLOOKUP(E2589,Translation!$A:$C,3,FALSE),E2589)","v":79.398573591167207},{"$f":"IFERROR(VLOOKUP(F2589,Translation!$A:$C,3,FALSE),F2589)","v":"Prêts hypothécaires assurés au cours de la période selon le type de logement (%)"},{"$f":"IFERROR(VLOOKUP(G2589,Translation!$A:$C,3,FALSE),G2589)","v":"79.4"},{"$f":"IFERROR(VLOOKUP(H2589,Translation!$A:$C,3,FALSE),H2589)","v":"Nouveau-Brunswick"}]
[16,"T2 2017","ASSURANCE DE PORTEFEUILLE","Nouveau-Brunswick",81.345862068719057,"Prêts hypothécaires assurés au cours de la période selon le type de logement (%)","81.3","Nouveau-Brunswick",{"$f":"IFERROR(VLOOKUP(A2592,Translation!$A:$C,3,FALSE),A2592)","v":16},{"$f":"IFERROR(VLOOKUP(B2592,Translation!$A:$C,3,FALSE),B2592)","v":"T2 2017"},{"$f":"IFERROR(VLOOKUP(C2592,Translation!$A:$C,3,FALSE),C2592)","v":"ASSURANCE DE PORTEFEUILLE"},{"$f":"IFERROR(VLOOKUP(D2592,Translation!$A:$C,3,FALSE),D2592)","v":"Nouveau-Brunswick"},{"$f":"IFERROR(VLOOKUP(E2592,Translation!$A:$C,3,FALSE),E2592)","v":81.345862068719057},{"$f":"IFERROR(VLOOKUP(F2592,Translation!$A:$C,3,FALSE),F2592)","v":"Prêts hypothécaires assurés au cours de la période selon le type de logement (%)"},{"$f":"IFERROR(VLOOKUP(G2592,Translation!$A:$C,3,FALSE),G2592)","v":"81.3"},{"$f":"IFERROR(VLOOKUP(H2592,Translation!$A:$C,3,FALSE),H2592)","v":"Nouveau-Brunswick"}]
[16,"Q3 2016","ASSURANCE DE PORTEFEUILLE","Nouveau-Brunswick",97.998033109109031,"Prêts hypothécaires assurés au cours de la période selon le type de logement (%)","98.0","Nouveau-Brunswick",{"$f":"IFERROR(VLOOKUP(A2593,Translation!$A:$C,3,FALSE),A2593)","v":16},{"$f":"IFERROR(VLOOKUP(B2593,Translation!$A:$C,3,FALSE),B2593)","v":"Q3 2016"},{"$f":"IFERROR(VLOOKUP(C2593,Translation!$A:$C,3,FALSE),C2593)","v":"ASSURANCE DE PORTEFEUILLE"},{"$f":"IFERROR(VLOOKUP(D2593,Translation!$A:$C,3,FALSE),D2593)","v":"Nouveau-Brunswick"},{"$f":"IFERROR(VLOOKUP(E2593,Translation!$A:$C,3,FALSE),E2593)","v":97.998033109109031},{"$f":"IFERROR(VLOOKUP(F2593,Translation!$A:$C,3,FALSE),F2593)","v":"Prêts hypothécaires assurés au cours de la période selon le type de logement (%)"},{"$f":"IFERROR(VLOOKUP(G2593,Translation!$A:$C,3,FALSE),G2593)","v":"98.0"},{"$f":"IFERROR(VLOOKUP(H2593,Translation!$A:$C,3,FALSE),H2593)","v":"Nouveau-Brunswick"}]
[16,"T1 2017","ASSURANCE DE PORTEFEUILLE","Québec",80.643006309161251,"Prêts hypothécaires assurés au cours de la période selon le type de logement (%)","80.6","Québec",{"$f":"IFERROR(VLOOKUP(A2597,Translation!$A:$C,3,FALSE),A2597)","v":16},{"$f":"IFERROR(VLOOKUP(B2597,Translation!$A:$C,3,FALSE),B2597)","v":"T1 2017"},{"$f":"IFERROR(VLOOKUP(C2597,Translation!$A:$C,3,FALSE),C2597)","v":"ASSURANCE DE PORTEFEUILLE"},{"$f":"IFERROR(VLOOKUP(D2597,Translation!$A:$C,3,FALSE),D2597)","v":"Québec"},{"$f":"IFERROR(VLOOKUP(E2597,Translation!$A:$C,3,FALSE),E2597)","v":80.643006309161251},{"$f":"IFERROR(VLOOKUP(F2597,Translation!$A:$C,3,FALSE),F2597)","v":"Prêts hypothécaires assurés au cours de la période selon le type de logement (%)"},{"$f":"IFERROR(VLOOKUP(G2597,Translation!$A:$C,3,FALSE),G2597)","v":"80.6"},{"$f":"IFERROR(VLOOKUP(H2597,Translation!$A:$C,3,FALSE),H2597)","v":"Québec"}]
[16,"T1 2018","ASSURANCE DE PORTEFEUILLE","Québec",60.272962316143747,"Prêts hypothécaires assurés au cours de la période selon le type de logement (%)","60.3","Québec",{"$f":"IFERROR(VLOOKUP(A2598,Translation!$A:$C,3,FALSE),A2598)","v":16},{"$f":"IFERROR(VLOOKUP(B2598,Translation!$A:$C,3,FALSE),B2598)","v":"T1 2018"},{"$f":"IFERROR(VLOOKUP(C2598,Translation!$A:$C,3,FALSE),C2598)","v":"ASSURANCE DE PORTEFEUILLE"},{"$f":"IFERROR(VLOOKUP(D2598,Translation!$A:$C,3,FALSE),D2598)","v":"Québec"},{"$f":"IFERROR(VLOOKUP(E2598,Translation!$A:$C,3,FALSE),E2598)","v":60.272962316143747},{"$f":"IFERROR(VLOOKUP(F2598,Translation!$A:$C,3,FALSE),F2598)","v":"Prêts hypothécaires assurés au cours de la période selon le type de logement (%)"},{"$f":"IFERROR(VLOOKUP(G2598,Translation!$A:$C,3,FALSE),G2598)","v":"60.3"},{"$f":"IFERROR(VLOOKUP(H2598,Translation!$A:$C,3,FALSE),H2598)","v":"Québec"}]
[16,"T2 2017","ASSURANCE DE PORTEFEUILLE","Québec",95.909885514140399,"Prêts hypothécaires assurés au cours de la période selon le type de logement (%)","95.9","Québec",{"$f":"IFERROR(VLOOKUP(A2600,Translation!$A:$C,3,FALSE),A2600)","v":16},{"$f":"IFERROR(VLOOKUP(B2600,Translation!$A:$C,3,FALSE),B2600)","v":"T2 2017"},{"$f":"IFERROR(VLOOKUP(C2600,Translation!$A:$C,3,FALSE),C2600)","v":"ASSURANCE DE PORTEFEUILLE"},{"$f":"IFERROR(VLOOKUP(D2600,Translation!$A:$C,3,FALSE),D2600)","v":"Québec"},{"$f":"IFERROR(VLOOKUP(E2600,Translation!$A:$C,3,FALSE),E2600)","v":95.909885514140399},{"$f":"IFERROR(VLOOKUP(F2600,Translation!$A:$C,3,FALSE),F2600)","v":"Prêts hypothécaires assurés au cours de la période selon le type de logement (%)"},{"$f":"IFERROR(VLOOKUP(G2600,Translation!$A:$C,3,FALSE),G2600)","v":"95.9"},{"$f":"IFERROR(VLOOKUP(H2600,Translation!$A:$C,3,FALSE),H2600)","v":"Québec"}]
[16,"Q4 2016","ASSURANCE DE PORTEFEUILLE","Québec",68.438547288114918,"Prêts hypothécaires assurés au cours de la période selon le type de logement (%)","68.4","Québec",{"$f":"IFERROR(VLOOKUP(A2603,Translation!$A:$C,3,FALSE),A2603)","v":16},{"$f":"IFERROR(VLOOKUP(B2603,Translation!$A:$C,3,FALSE),B2603)","v":"Q4 2016"},{"$f":"IFERROR(VLOOKUP(C2603,Translation!$A:$C,3,FALSE),C2603)","v":"ASSURANCE DE PORTEFEUILLE"},{"$f":"IFERROR(VLOOKUP(D2603,Translation!$A:$C,3,FALSE),D2603)","v":"Québec"},{"$f":"IFERROR(VLOOKUP(E2603,Translation!$A:$C,3,FALSE),E2603)","v":68.438547288114918},{"$f":"IFERROR(VLOOKUP(F2603,Translation!$A:$C,3,FALSE),F2603)","v":"Prêts hypothécaires assurés au cours de la période selon le type de logement (%)"},{"$f":"IFERROR(VLOOKUP(G2603,Translation!$A:$C,3,FALSE),G2603)","v":"68.4"},{"$f":"IFERROR(VLOOKUP(H2603,Translation!$A:$C,3,FALSE),H2603)","v":"Québec"}]
[16,"T1 2018","ASSURANCE DE PORTEFEUILLE","Ontario",75.563561823695025,"Prêts hypothécaires assurés au cours de la période selon le type de logement (%)","75.6","Ontario",{"$f":"IFERROR(VLOOKUP(A2606,Translation!$A:$C,3,FALSE),A2606)","v":16},{"$f":"IFERROR(VLOOKUP(B2606,Translation!$A:$C,3,FALSE),B2606)","v":"T1 2018"},{"$f":"IFERROR(VLOOKUP(C2606,Translation!$A:$C,3,FALSE),C2606)","v":"ASSURANCE DE PORTEFEUILLE"},{"$f":"IFERROR(VLOOKUP(D2606,Translation!$A:$C,3,FALSE),D2606)","v":"Ontario"},{"$f":"IFERROR(VLOOKUP(E2606,Translation!$A:$C,3,FALSE),E2606)","v":75.563561823695025},{"$f":"IFERROR(VLOOKUP(F2606,Translation!$A:$C,3,FALSE),F2606)","v":"Prêts hypothécaires assurés au cours de la période selon le type de logement (%)"},{"$f":"IFERROR(VLOOKUP(G2606,Translation!$A:$C,3,FALSE),G2606)","v":"75.6"},{"$f":"IFERROR(VLOOKUP(H2606,Translation!$A:$C,3,FALSE),H2606)","v":"Ontario"}]
[16,"T2 2017","ASSURANCE DE PORTEFEUILLE","Ontario",65.953105064927982,"Prêts hypothécaires assurés au cours de la période selon le type de logement (%)","66.0","Ontario",{"$f":"IFERROR(VLOOKUP(A2608,Translation!$A:$C,3,FALSE),A2608)","v":16},{"$f":"IFERROR(VLOOKUP(B2608,Translation!$A:$C,3,FALSE),B2608)","v":"T2 2017"},{"$f":"IFERROR(VLOOKUP(C2608,Translation!$A:$C,3,FALSE),C2608)","v":"ASSURANCE DE PORTEFEUILLE"},{"$f":"IFERROR(VLOOKUP(D2608,Translation!$A:$C,3,FALSE),D2608)","v":"Ontario"},{"$f":"IFERROR(VLOOKUP(E2608,Translation!$A:$C,3,FALSE),E2608)","v":65.953105064927982},{"$f":"IFERROR(VLOOKUP(F2608,Translation!$A:$C,3,FALSE),F2608)","v":"Prêts hypothécaires assurés au cours de la période selon le type de logement (%)"},{"$f":"IFERROR(VLOOKUP(G2608,Translation!$A:$C,3,FALSE),G2608)","v":"66.0"},{"$f":"IFERROR(VLOOKUP(H2608,Translation!$A:$C,3,FALSE),H2608)","v":"Ontario"}]
[16,"Q4 2016","ASSURANCE DE PORTEFEUILLE","Ontario",75.113547044163525,"Prêts hypothécaires assurés au cours de la période selon le type de logement (%)","75.1","Ontario",{"$f":"IFERROR(VLOOKUP(A2611,Translation!$A:$C,3,FALSE),A2611)","v":16},{"$f":"IFERROR(VLOOKUP(B2611,Translation!$A:$C,3,FALSE),B2611)","v":"Q4 2016"},{"$f":"IFERROR(VLOOKUP(C2611,Translation!$A:$C,3,FALSE),C2611)","v":"ASSURANCE DE PORTEFEUILLE"},{"$f":"IFERROR(VLOOKUP(D2611,Translation!$A:$C,3,FALSE),D2611)","v":"Ontario"},{"$f":"IFERROR(VLOOKUP(E2611,Translation!$A:$C,3,FALSE),E2611)","v":75.113547044163525},{"$f":"IFERROR(VLOOKUP(F2611,Translation!$A:$C,3,FALSE),F2611)","v":"Prêts hypothécaires assurés au cours de la période selon le type de logement (%)"},{"$f":"IFERROR(VLOOKUP(G2611,Translation!$A:$C,3,FALSE),G2611)","v":"75.1"},{"$f":"IFERROR(VLOOKUP(H2611,Translation!$A:$C,3,FALSE),H2611)","v":"Ontario"}]
[16,"T1 2018","ASSURANCE DE PORTEFEUILLE","Manitoba",91.388274554666495,"Prêts hypothécaires assurés au cours de la période selon le type de logement (%)","91.4","Manitoba",{"$f":"IFERROR(VLOOKUP(A2614,Translation!$A:$C,3,FALSE),A2614)","v":16},{"$f":"IFERROR(VLOOKUP(B2614,Translation!$A:$C,3,FALSE),B2614)","v":"T1 2018"},{"$f":"IFERROR(VLOOKUP(C2614,Translation!$A:$C,3,FALSE),C2614)","v":"ASSURANCE DE PORTEFEUILLE"},{"$f":"IFERROR(VLOOKUP(D2614,Translation!$A:$C,3,FALSE),D2614)","v":"Manitoba"},{"$f":"IFERROR(VLOOKUP(E2614,Translation!$A:$C,3,FALSE),E2614)","v":91.388274554666495},{"$f":"IFERROR(VLOOKUP(F2614,Translation!$A:$C,3,FALSE),F2614)","v":"Prêts hypothécaires assurés au cours de la période selon le type de logement (%)"},{"$f":"IFERROR(VLOOKUP(G2614,Translation!$A:$C,3,FALSE),G2614)","v":"91.4"},{"$f":"IFERROR(VLOOKUP(H2614,Translation!$A:$C,3,FALSE),H2614)","v":"Manitoba"}]
[16,"T2 2017","ASSURANCE DE PORTEFEUILLE","Manitoba",90.271256883633981,"Prêts hypothécaires assurés au cours de la période selon le type de logement (%)","90.3","Manitoba",{"$f":"IFERROR(VLOOKUP(A2616,Translation!$A:$C,3,FALSE),A2616)","v":16},{"$f":"IFERROR(VLOOKUP(B2616,Translation!$A:$C,3,FALSE),B2616)","v":"T2 2017"},{"$f":"IFERROR(VLOOKUP(C2616,Translation!$A:$C,3,FALSE),C2616)","v":"ASSURANCE DE PORTEFEUILLE"},{"$f":"IFERROR(VLOOKUP(D2616,Translation!$A:$C,3,FALSE),D2616)","v":"Manitoba"},{"$f":"IFERROR(VLOOKUP(E2616,Translation!$A:$C,3,FALSE),E2616)","v":90.271256883633981},{"$f":"IFERROR(VLOOKUP(F2616,Translation!$A:$C,3,FALSE),F2616)","v":"Prêts hypothécaires assurés au cours de la période selon le type de logement (%)"},{"$f":"IFERROR(VLOOKUP(G2616,Translation!$A:$C,3,FALSE),G2616)","v":"90.3"},{"$f":"IFERROR(VLOOKUP(H2616,Translation!$A:$C,3,FALSE),H2616)","v":"Manitoba"}]
[16,"Q3 2016","ASSURANCE DE PORTEFEUILLE","Manitoba",92.982132620063126,"Prêts hypothécaires assurés au cours de la période selon le type de logement (%)","93.0","Manitoba",{"$f":"IFERROR(VLOOKUP(A2617,Translation!$A:$C,3,FALSE),A2617)","v":16},{"$f":"IFERROR(VLOOKUP(B2617,Translation!$A:$C,3,FALSE),B2617)","v":"Q3 2016"},{"$f":"IFERROR(VLOOKUP(C2617,Translation!$A:$C,3,FALSE),C2617)","v":"ASSURANCE DE PORTEFEUILLE"},{"$f":"IFERROR(VLOOKUP(D2617,Translation!$A:$C,3,FALSE),D2617)","v":"Manitoba"},{"$f":"IFERROR(VLOOKUP(E2617,Translation!$A:$C,3,FALSE),E2617)","v":92.982132620063126},{"$f":"IFERROR(VLOOKUP(F2617,Translation!$A:$C,3,FALSE),F2617)","v":"Prêts hypothécaires assurés au cours de la période selon le type de logement (%)"},{"$f":"IFERROR(VLOOKUP(G2617,Translation!$A:$C,3,FALSE),G2617)","v":"93.0"},{"$f":"IFERROR(VLOOKUP(H2617,Translation!$A:$C,3,FALSE),H2617)","v":"Manitoba"}]
[16,"Q4 2016","ASSURANCE DE PORTEFEUILLE","Manitoba",88.891402289189102,"Prêts hypothécaires assurés au cours de la période selon le type de logement (%)","88.9","Manitoba",{"$f":"IFERROR(VLOOKUP(A2619,Translation!$A:$C,3,FALSE),A2619)","v":16},{"$f":"IFERROR(VLOOKUP(B2619,Translation!$A:$C,3,FALSE),B2619)","v":"Q4 2016"},{"$f":"IFERROR(VLOOKUP(C2619,Translation!$A:$C,3,FALSE),C2619)","v":"ASSURANCE DE PORTEFEUILLE"},{"$f":"IFERROR(VLOOKUP(D2619,Translation!$A:$C,3,FALSE),D2619)","v":"Manitoba"},{"$f":"IFERROR(VLOOKUP(E2619,Translation!$A:$C,3,FALSE),E2619)","v":88.891402289189102},{"$f":"IFERROR(VLOOKUP(F2619,Translation!$A:$C,3,FALSE),F2619)","v":"Prêts hypothécaires assurés au cours de la période selon le type de logement (%)"},{"$f":"IFERROR(VLOOKUP(G2619,Translation!$A:$C,3,FALSE),G2619)","v":"88.9"},{"$f":"IFERROR(VLOOKUP(H2619,Translation!$A:$C,3,FALSE),H2619)","v":"Manitoba"}]
[16,"T1 2018","ASSURANCE DE PORTEFEUILLE","Saskatchewan",83.316887622472791,"Prêts hypothécaires assurés au cours de la période selon le type de logement (%)","83.3","Saskatchewan",{"$f":"IFERROR(VLOOKUP(A2622,Translation!$A:$C,3,FALSE),A2622)","v":16},{"$f":"IFERROR(VLOOKUP(B2622,Translation!$A:$C,3,FALSE),B2622)","v":"T1 2018"},{"$f":"IFERROR(VLOOKUP(C2622,Translation!$A:$C,3,FALSE),C2622)","v":"ASSURANCE DE PORTEFEUILLE"},{"$f":"IFERROR(VLOOKUP(D2622,Translation!$A:$C,3,FALSE),D2622)","v":"Saskatchewan"},{"$f":"IFERROR(VLOOKUP(E2622,Translation!$A:$C,3,FALSE),E2622)","v":83.316887622472791},{"$f":"IFERROR(VLOOKUP(F2622,Translation!$A:$C,3,FALSE),F2622)","v":"Prêts hypothécaires assurés au cours de la période selon le type de logement (%)"},{"$f":"IFERROR(VLOOKUP(G2622,Translation!$A:$C,3,FALSE),G2622)","v":"83.3"},{"$f":"IFERROR(VLOOKUP(H2622,Translation!$A:$C,3,FALSE),H2622)","v":"Saskatchewan"}]
[16,"Q3 2016","ASSURANCE DE PORTEFEUILLE","Saskatchewan",88.579622837182626,"Prêts hypothécaires assurés au cours de la période selon le type de logement (%)","88.6","Saskatchewan",{"$f":"IFERROR(VLOOKUP(A2625,Translation!$A:$C,3,FALSE),A2625)","v":16},{"$f":"IFERROR(VLOOKUP(B2625,Translation!$A:$C,3,FALSE),B2625)","v":"Q3 2016"},{"$f":"IFERROR(VLOOKUP(C2625,Translation!$A:$C,3,FALSE),C2625)","v":"ASSURANCE DE PORTEFEUILLE"},{"$f":"IFERROR(VLOOKUP(D2625,Translation!$A:$C,3,FALSE),D2625)","v":"Saskatchewan"},{"$f":"IFERROR(VLOOKUP(E2625,Translation!$A:$C,3,FALSE),E2625)","v":88.579622837182626},{"$f":"IFERROR(VLOOKUP(F2625,Translation!$A:$C,3,FALSE),F2625)","v":"Prêts hypothécaires assurés au cours de la période selon le type de logement (%)"},{"$f":"IFERROR(VLOOKUP(G2625,Translation!$A:$C,3,FALSE),G2625)","v":"88.6"},{"$f":"IFERROR(VLOOKUP(H2625,Translation!$A:$C,3,FALSE),H2625)","v":"Saskatchewan"}]
[16,"Q4 2016","ASSURANCE DE PORTEFEUILLE","Saskatchewan",91.405831180125119,"Prêts hypothécaires assurés au cours de la période selon le type de logement (%)","91.4","Saskatchewan",{"$f":"IFERROR(VLOOKUP(A2627,Translation!$A:$C,3,FALSE),A2627)","v":16},{"$f":"IFERROR(VLOOKUP(B2627,Translation!$A:$C,3,FALSE),B2627)","v":"Q4 2016"},{"$f":"IFERROR(VLOOKUP(C2627,Translation!$A:$C,3,FALSE),C2627)","v":"ASSURANCE DE PORTEFEUILLE"},{"$f":"IFERROR(VLOOKUP(D2627,Translation!$A:$C,3,FALSE),D2627)","v":"Saskatchewan"},{"$f":"IFERROR(VLOOKUP(E2627,Translation!$A:$C,3,FALSE),E2627)","v":91.405831180125119},{"$f":"IFERROR(VLOOKUP(F2627,Translation!$A:$C,3,FALSE),F2627)","v":"Prêts hypothécaires assurés au cours de la période selon le type de logement (%)"},{"$f":"IFERROR(VLOOKUP(G2627,Translation!$A:$C,3,FALSE),G2627)","v":"91.4"},{"$f":"IFERROR(VLOOKUP(H2627,Translation!$A:$C,3,FALSE),H2627)","v":"Saskatchewan"}]
[16,"T1 2018","ASSURANCE DE PORTEFEUILLE","Alberta",82.400020466739647,"Prêts hypothécaires assurés au cours de la période selon le type de logement (%)","82.4","Alberta",{"$f":"IFERROR(VLOOKUP(A2630,Translation!$A:$C,3,FALSE),A2630)","v":16},{"$f":"IFERROR(VLOOKUP(B2630,Translation!$A:$C,3,FALSE),B2630)","v":"T1 2018"},{"$f":"IFERROR(VLOOKUP(C2630,Translation!$A:$C,3,FALSE),C2630)","v":"ASSURANCE DE PORTEFEUILLE"},{"$f":"IFERROR(VLOOKUP(D2630,Translation!$A:$C,3,FALSE),D2630)","v":"Alberta"},{"$f":"IFERROR(VLOOKUP(E2630,Translation!$A:$C,3,FALSE),E2630)","v":82.400020466739647},{"$f":"IFERROR(VLOOKUP(F2630,Translation!$A:$C,3,FALSE),F2630)","v":"Prêts hypothécaires assurés au cours de la période selon le type de logement (%)"},{"$f":"IFERROR(VLOOKUP(G2630,Translation!$A:$C,3,FALSE),G2630)","v":"82.4"},{"$f":"IFERROR(VLOOKUP(H2630,Translation!$A:$C,3,FALSE),H2630)","v":"Alberta"}]
[16,"Q3 2016","ASSURANCE DE PORTEFEUILLE","Alberta",86.723997411550386,"Prêts hypothécaires assurés au cours de la période selon le type de logement (%)","86.7","Alberta",{"$f":"IFERROR(VLOOKUP(A2633,Translation!$A:$C,3,FALSE),A2633)","v":16},{"$f":"IFERROR(VLOOKUP(B2633,Translation!$A:$C,3,FALSE),B2633)","v":"Q3 2016"},{"$f":"IFERROR(VLOOKUP(C2633,Translation!$A:$C,3,FALSE),C2633)","v":"ASSURANCE DE PORTEFEUILLE"},{"$f":"IFERROR(VLOOKUP(D2633,Translation!$A:$C,3,FALSE),D2633)","v":"Alberta"},{"$f":"IFERROR(VLOOKUP(E2633,Translation!$A:$C,3,FALSE),E2633)","v":86.723997411550386},{"$f":"IFERROR(VLOOKUP(F2633,Translation!$A:$C,3,FALSE),F2633)","v":"Prêts hypothécaires assurés au cours de la période selon le type de logement (%)"},{"$f":"IFERROR(VLOOKUP(G2633,Translation!$A:$C,3,FALSE),G2633)","v":"86.7"},{"$f":"IFERROR(VLOOKUP(H2633,Translation!$A:$C,3,FALSE),H2633)","v":"Alberta"}]
[16,"Q4 2016","ASSURANCE DE PORTEFEUILLE","Alberta",80.644176359895482,"Prêts hypothécaires assurés au cours de la période selon le type de logement (%)","80.6","Alberta",{"$f":"IFERROR(VLOOKUP(A2635,Translation!$A:$C,3,FALSE),A2635)","v":16},{"$f":"IFERROR(VLOOKUP(B2635,Translation!$A:$C,3,FALSE),B2635)","v":"Q4 2016"},{"$f":"IFERROR(VLOOKUP(C2635,Translation!$A:$C,3,FALSE),C2635)","v":"ASSURANCE DE PORTEFEUILLE"},{"$f":"IFERROR(VLOOKUP(D2635,Translation!$A:$C,3,FALSE),D2635)","v":"Alberta"},{"$f":"IFERROR(VLOOKUP(E2635,Translation!$A:$C,3,FALSE),E2635)","v":80.644176359895482},{"$f":"IFERROR(VLOOKUP(F2635,Translation!$A:$C,3,FALSE),F2635)","v":"Prêts hypothécaires assurés au cours de la période selon le type de logement (%)"},{"$f":"IFERROR(VLOOKUP(G2635,Translation!$A:$C,3,FALSE),G2635)","v":"80.6"},{"$f":"IFERROR(VLOOKUP(H2635,Translation!$A:$C,3,FALSE),H2635)","v":"Alberta"}]
[16,"T4 2017","ASSURANCE DE PORTEFEUILLE","Alberta",81.780195274726012,"Prêts hypothécaires assurés au cours de la période selon le type de logement (%)","81.8","Alberta",{"$f":"IFERROR(VLOOKUP(A2636,Translation!$A:$C,3,FALSE),A2636)","v":16},{"$f":"IFERROR(VLOOKUP(B2636,Translation!$A:$C,3,FALSE),B2636)","v":"T4 2017"},{"$f":"IFERROR(VLOOKUP(C2636,Translation!$A:$C,3,FALSE),C2636)","v":"ASSURANCE DE PORTEFEUILLE"},{"$f":"IFERROR(VLOOKUP(D2636,Translation!$A:$C,3,FALSE),D2636)","v":"Alberta"},{"$f":"IFERROR(VLOOKUP(E2636,Translation!$A:$C,3,FALSE),E2636)","v":81.780195274726012},{"$f":"IFERROR(VLOOKUP(F2636,Translation!$A:$C,3,FALSE),F2636)","v":"Prêts hypothécaires assurés au cours de la période selon le type de logement (%)"},{"$f":"IFERROR(VLOOKUP(G2636,Translation!$A:$C,3,FALSE),G2636)","v":"81.8"},{"$f":"IFERROR(VLOOKUP(H2636,Translation!$A:$C,3,FALSE),H2636)","v":"Alberta"}]
[16,"T2 2017","ASSURANCE DE PORTEFEUILLE","Colombie-Britannique",64.579139244056947,"Prêts hypothécaires assurés au cours de la période selon le type de logement (%)","64.6","Colombie-Britannique",{"$f":"IFERROR(VLOOKUP(A2640,Translation!$A:$C,3,FALSE),A2640)","v":16},{"$f":"IFERROR(VLOOKUP(B2640,Translation!$A:$C,3,FALSE),B2640)","v":"T2 2017"},{"$f":"IFERROR(VLOOKUP(C2640,Translation!$A:$C,3,FALSE),C2640)","v":"ASSURANCE DE PORTEFEUILLE"},{"$f":"IFERROR(VLOOKUP(D2640,Translation!$A:$C,3,FALSE),D2640)","v":"Colombie-Britannique"},{"$f":"IFERROR(VLOOKUP(E2640,Translation!$A:$C,3,FALSE),E2640)","v":64.579139244056947},{"$f":"IFERROR(VLOOKUP(F2640,Translation!$A:$C,3,FALSE),F2640)","v":"Prêts hypothécaires assurés au cours de la période selon le type de logement (%)"},{"$f":"IFERROR(VLOOKUP(G2640,Translation!$A:$C,3,FALSE),G2640)","v":"64.6"},{"$f":"IFERROR(VLOOKUP(H2640,Translation!$A:$C,3,FALSE),H2640)","v":"Colombie-Britannique"}]
[16,"Q3 2016","ASSURANCE DE PORTEFEUILLE","Colombie-Britannique",70.077299560971312,"Prêts hypothécaires assurés au cours de la période selon le type de logement (%)","70.1","Colombie-Britannique",{"$f":"IFERROR(VLOOKUP(A2641,Translation!$A:$C,3,FALSE),A2641)","v":16},{"$f":"IFERROR(VLOOKUP(B2641,Translation!$A:$C,3,FALSE),B2641)","v":"Q3 2016"},{"$f":"IFERROR(VLOOKUP(C2641,Translation!$A:$C,3,FALSE),C2641)","v":"ASSURANCE DE PORTEFEUILLE"},{"$f":"IFERROR(VLOOKUP(D2641,Translation!$A:$C,3,FALSE),D2641)","v":"Colombie-Britannique"},{"$f":"IFERROR(VLOOKUP(E2641,Translation!$A:$C,3,FALSE),E2641)","v":70.077299560971312},{"$f":"IFERROR(VLOOKUP(F2641,Translation!$A:$C,3,FALSE),F2641)","v":"Prêts hypothécaires assurés au cours de la période selon le type de logement (%)"},{"$f":"IFERROR(VLOOKUP(G2641,Translation!$A:$C,3,FALSE),G2641)","v":"70.1"},{"$f":"IFERROR(VLOOKUP(H2641,Translation!$A:$C,3,FALSE),H2641)","v":"Colombie-Britannique"}]
[16,"T4 2017","ASSURANCE DE PORTEFEUILLE","Colombie-Britannique",62.449081608619778,"Prêts hypothécaires assurés au cours de la période selon le type de logement (%)","62.4","Colombie-Britannique",{"$f":"IFERROR(VLOOKUP(A2644,Translation!$A:$C,3,FALSE),A2644)","v":16},{"$f":"IFERROR(VLOOKUP(B2644,Translation!$A:$C,3,FALSE),B2644)","v":"T4 2017"},{"$f":"IFERROR(VLOOKUP(C2644,Translation!$A:$C,3,FALSE),C2644)","v":"ASSURANCE DE PORTEFEUILLE"},{"$f":"IFERROR(VLOOKUP(D2644,Translation!$A:$C,3,FALSE),D2644)","v":"Colombie-Britannique"},{"$f":"IFERROR(VLOOKUP(E2644,Translation!$A:$C,3,FALSE),E2644)","v":62.449081608619778},{"$f":"IFERROR(VLOOKUP(F2644,Translation!$A:$C,3,FALSE),F2644)","v":"Prêts hypothécaires assurés au cours de la période selon le type de logement (%)"},{"$f":"IFERROR(VLOOKUP(G2644,Translation!$A:$C,3,FALSE),G2644)","v":"62.4"},{"$f":"IFERROR(VLOOKUP(H2644,Translation!$A:$C,3,FALSE),H2644)","v":"Colombie-Britannique"}]
[16,"Q3 2016","ASSURANCE DE PORTEFEUILLE","Territoires",87.017148469560453,"Prêts hypothécaires assurés au cours de la période selon le type de logement (%)","87.0","Territoires",{"$f":"IFERROR(VLOOKUP(A2646,Translation!$A:$C,3,FALSE),A2646)","v":16},{"$f":"IFERROR(VLOOKUP(B2646,Translation!$A:$C,3,FALSE),B2646)","v":"Q3 2016"},{"$f":"IFERROR(VLOOKUP(C2646,Translation!$A:$C,3,FALSE),C2646)","v":"ASSURANCE DE PORTEFEUILLE"},{"$f":"IFERROR(VLOOKUP(D2646,Translation!$A:$C,3,FALSE),D2646)","v":"Territoires"},{"$f":"IFERROR(VLOOKUP(E2646,Translation!$A:$C,3,FALSE),E2646)","v":87.017148469560453},{"$f":"IFERROR(VLOOKUP(F2646,Translation!$A:$C,3,FALSE),F2646)","v":"Prêts hypothécaires assurés au cours de la période selon le type de logement (%)"},{"$f":"IFERROR(VLOOKUP(G2646,Translation!$A:$C,3,FALSE),G2646)","v":"87.0"},{"$f":"IFERROR(VLOOKUP(H2646,Translation!$A:$C,3,FALSE),H2646)","v":"Territoires"}]
[29,"T1 2017","IMMEUBLES COLLECTIFS RÉSIDENTIELS","Appartement",92.109481730160709,"Prêts hypothécaires assurés au cours de la période selon le type de logement (%)","92.1","Appartement",{"$f":"IFERROR(VLOOKUP(A2649,Translation!$A:$C,3,FALSE),A2649)","v":29},{"$f":"IFERROR(VLOOKUP(B2649,Translation!$A:$C,3,FALSE),B2649)","v":"T1 2017"},{"$f":"IFERROR(VLOOKUP(C2649,Translation!$A:$C,3,FALSE),C2649)","v":"IMMEUBLES COLLECTIFS RÉSIDENTIELS"},{"$f":"IFERROR(VLOOKUP(D2649,Translation!$A:$C,3,FALSE),D2649)","v":"Appartement"},{"$f":"IFERROR(VLOOKUP(E2649,Translation!$A:$C,3,FALSE),E2649)","v":92.109481730160709},{"$f":"IFERROR(VLOOKUP(F2649,Translation!$A:$C,3,FALSE),F2649)","v":"Prêts hypothécaires assurés au cours de la période selon le type de logement (%)"},{"$f":"IFERROR(VLOOKUP(G2649,Translation!$A:$C,3,FALSE),G2649)","v":"92.1"},{"$f":"IFERROR(VLOOKUP(H2649,Translation!$A:$C,3,FALSE),H2649)","v":"Appartement"}]
[29,"T2 2017","IMMEUBLES COLLECTIFS RÉSIDENTIELS","Appartement",82.239585629636977,"Prêts hypothécaires assurés au cours de la période selon le type de logement (%)","82.2","Appartement",{"$f":"IFERROR(VLOOKUP(A2652,Translation!$A:$C,3,FALSE),A2652)","v":29},{"$f":"IFERROR(VLOOKUP(B2652,Translation!$A:$C,3,FALSE),B2652)","v":"T2 2017"},{"$f":"IFERROR(VLOOKUP(C2652,Translation!$A:$C,3,FALSE),C2652)","v":"IMMEUBLES COLLECTIFS RÉSIDENTIELS"},{"$f":"IFERROR(VLOOKUP(D2652,Translation!$A:$C,3,FALSE),D2652)","v":"Appartement"},{"$f":"IFERROR(VLOOKUP(E2652,Translation!$A:$C,3,FALSE),E2652)","v":82.239585629636977},{"$f":"IFERROR(VLOOKUP(F2652,Translation!$A:$C,3,FALSE),F2652)","v":"Prêts hypothécaires assurés au cours de la période selon le type de logement (%)"},{"$f":"IFERROR(VLOOKUP(G2652,Translation!$A:$C,3,FALSE),G2652)","v":"82.2"},{"$f":"IFERROR(VLOOKUP(H2652,Translation!$A:$C,3,FALSE),H2652)","v":"Appartement"}]
[29,"T3 2017","IMMEUBLES COLLECTIFS RÉSIDENTIELS","Appartement",89.070263747703223,"Prêts hypothécaires assurés au cours de la période selon le type de logement (%)","89.1","Appartement",{"$f":"IFERROR(VLOOKUP(A2654,Translation!$A:$C,3,FALSE),A2654)","v":29},{"$f":"IFERROR(VLOOKUP(B2654,Translation!$A:$C,3,FALSE),B2654)","v":"T3 2017"},{"$f":"IFERROR(VLOOKUP(C2654,Translation!$A:$C,3,FALSE),C2654)","v":"IMMEUBLES COLLECTIFS RÉSIDENTIELS"},{"$f":"IFERROR(VLOOKUP(D2654,Translation!$A:$C,3,FALSE),D2654)","v":"Appartement"},{"$f":"IFERROR(VLOOKUP(E2654,Translation!$A:$C,3,FALSE),E2654)","v":89.070263747703223},{"$f":"IFERROR(VLOOKUP(F2654,Translation!$A:$C,3,FALSE),F2654)","v":"Prêts hypothécaires assurés au cours de la période selon le type de logement (%)"},{"$f":"IFERROR(VLOOKUP(G2654,Translation!$A:$C,3,FALSE),G2654)","v":"89.1"},{"$f":"IFERROR(VLOOKUP(H2654,Translation!$A:$C,3,FALSE),H2654)","v":"Appartement"}]
[29,"Q4 2016","IMMEUBLES COLLECTIFS RÉSIDENTIELS","Appartement",84.920196214651696,"Prêts hypothécaires assurés au cours de la période selon le type de logement (%)","84.9","Appartement",{"$f":"IFERROR(VLOOKUP(A2655,Translation!$A:$C,3,FALSE),A2655)","v":29},{"$f":"IFERROR(VLOOKUP(B2655,Translation!$A:$C,3,FALSE),B2655)","v":"Q4 2016"},{"$f":"IFERROR(VLOOKUP(C2655,Translation!$A:$C,3,FALSE),C2655)","v":"IMMEUBLES COLLECTIFS RÉSIDENTIELS"},{"$f":"IFERROR(VLOOKUP(D2655,Translation!$A:$C,3,FALSE),D2655)","v":"Appartement"},{"$f":"IFERROR(VLOOKUP(E2655,Translation!$A:$C,3,FALSE),E2655)","v":84.920196214651696},{"$f":"IFERROR(VLOOKUP(F2655,Translation!$A:$C,3,FALSE),F2655)","v":"Prêts hypothécaires assurés au cours de la période selon le type de logement (%)"},{"$f":"IFERROR(VLOOKUP(G2655,Translation!$A:$C,3,FALSE),G2655)","v":"84.9"},{"$f":"IFERROR(VLOOKUP(H2655,Translation!$A:$C,3,FALSE),H2655)","v":"Appartement"}]
[29,"Q2 2016","IMMEUBLES COLLECTIFS RÉSIDENTIELS","Maison de retraite/de repos",4.1257584579460636,"Prêts hypothécaires assurés au cours de la période selon le type de logement (%)","4.1","Maison de retraite/de repos",{"$f":"IFERROR(VLOOKUP(A2659,Translation!$A:$C,3,FALSE),A2659)","v":29},{"$f":"IFERROR(VLOOKUP(B2659,Translation!$A:$C,3,FALSE),B2659)","v":"Q2 2016"},{"$f":"IFERROR(VLOOKUP(C2659,Translation!$A:$C,3,FALSE),C2659)","v":"IMMEUBLES COLLECTIFS RÉSIDENTIELS"},{"$f":"IFERROR(VLOOKUP(D2659,Translation!$A:$C,3,FALSE),D2659)","v":"Maison de retraite/de repos"},{"$f":"IFERROR(VLOOKUP(E2659,Translation!$A:$C,3,FALSE),E2659)","v":4.1257584579460636},{"$f":"IFERROR(VLOOKUP(F2659,Translation!$A:$C,3,FALSE),F2659)","v":"Prêts hypothécaires assurés au cours de la période selon le type de logement (%)"},{"$f":"IFERROR(VLOOKUP(G2659,Translation!$A:$C,3,FALSE),G2659)","v":"4.1"},{"$f":"IFERROR(VLOOKUP(H2659,Translation!$A:$C,3,FALSE),H2659)","v":"Maison de retraite/de repos"}]
[29,"T2 2017","IMMEUBLES COLLECTIFS RÉSIDENTIELS","Maison de retraite/de repos",14.426767170144748,"Prêts hypothécaires assurés au cours de la période selon le type de logement (%)","14.4","Maison de retraite/de repos",{"$f":"IFERROR(VLOOKUP(A2660,Translation!$A:$C,3,FALSE),A2660)","v":29},{"$f":"IFERROR(VLOOKUP(B2660,Translation!$A:$C,3,FALSE),B2660)","v":"T2 2017"},{"$f":"IFERROR(VLOOKUP(C2660,Translation!$A:$C,3,FALSE),C2660)","v":"IMMEUBLES COLLECTIFS RÉSIDENTIELS"},{"$f":"IFERROR(VLOOKUP(D2660,Translation!$A:$C,3,FALSE),D2660)","v":"Maison de retraite/de repos"},{"$f":"IFERROR(VLOOKUP(E2660,Translation!$A:$C,3,FALSE),E2660)","v":14.426767170144748},{"$f":"IFERROR(VLOOKUP(F2660,Translation!$A:$C,3,FALSE),F2660)","v":"Prêts hypothécaires assurés au cours de la période selon le type de logement (%)"},{"$f":"IFERROR(VLOOKUP(G2660,Translation!$A:$C,3,FALSE),G2660)","v":"14.4"},{"$f":"IFERROR(VLOOKUP(H2660,Translation!$A:$C,3,FALSE),H2660)","v":"Maison de retraite/de repos"}]
[29,"Q4 2016","IMMEUBLES COLLECTIFS RÉSIDENTIELS","Maison de retraite/de repos",12.250132394501252,"Prêts hypothécaires assurés au cours de la période selon le type de logement (%)","12.3","Maison de retraite/de repos",{"$f":"IFERROR(VLOOKUP(A2663,Translation!$A:$C,3,FALSE),A2663)","v":29},{"$f":"IFERROR(VLOOKUP(B2663,Translation!$A:$C,3,FALSE),B2663)","v":"Q4 2016"},{"$f":"IFERROR(VLOOKUP(C2663,Translation!$A:$C,3,FALSE),C2663)","v":"IMMEUBLES COLLECTIFS RÉSIDENTIELS"},{"$f":"IFERROR(VLOOKUP(D2663,Translation!$A:$C,3,FALSE),D2663)","v":"Maison de retraite/de repos"},{"$f":"IFERROR(VLOOKUP(E2663,Translation!$A:$C,3,FALSE),E2663)","v":12.250132394501252},{"$f":"IFERROR(VLOOKUP(F2663,Translation!$A:$C,3,FALSE),F2663)","v":"Prêts hypothécaires assurés au cours de la période selon le type de logement (%)"},{"$f":"IFERROR(VLOOKUP(G2663,Translation!$A:$C,3,FALSE),G2663)","v":"12.3"},{"$f":"IFERROR(VLOOKUP(H2663,Translation!$A:$C,3,FALSE),H2663)","v":"Maison de retraite/de repos"}]
[29,"T1 2017","IMMEUBLES COLLECTIFS RÉSIDENTIELS","Autre",2.0928432347447705,"Prêts hypothécaires assurés au cours de la période selon le type de logement (%)","2.1","Autre",{"$f":"IFERROR(VLOOKUP(A2665,Translation!$A:$C,3,FALSE),A2665)","v":29},{"$f":"IFERROR(VLOOKUP(B2665,Translation!$A:$C,3,FALSE),B2665)","v":"T1 2017"},{"$f":"IFERROR(VLOOKUP(C2665,Translation!$A:$C,3,FALSE),C2665)","v":"IMMEUBLES COLLECTIFS RÉSIDENTIELS"},{"$f":"IFERROR(VLOOKUP(D2665,Translation!$A:$C,3,FALSE),D2665)","v":"Autre"},{"$f":"IFERROR(VLOOKUP(E2665,Translation!$A:$C,3,FALSE),E2665)","v":2.0928432347447705},{"$f":"IFERROR(VLOOKUP(F2665,Translation!$A:$C,3,FALSE),F2665)","v":"Prêts hypothécaires assurés au cours de la période selon le type de logement (%)"},{"$f":"IFERROR(VLOOKUP(G2665,Translation!$A:$C,3,FALSE),G2665)","v":"2.1"},{"$f":"IFERROR(VLOOKUP(H2665,Translation!$A:$C,3,FALSE),H2665)","v":"Autre"}]
[29,"Q3 2016","IMMEUBLES COLLECTIFS RÉSIDENTIELS","Autre",7.1696463897756644,"Prêts hypothécaires assurés au cours de la période selon le type de logement (%)","7.2","Autre",{"$f":"IFERROR(VLOOKUP(A2669,Translation!$A:$C,3,FALSE),A2669)","v":29},{"$f":"IFERROR(VLOOKUP(B2669,Translation!$A:$C,3,FALSE),B2669)","v":"Q3 2016"},{"$f":"IFERROR(VLOOKUP(C2669,Translation!$A:$C,3,FALSE),C2669)","v":"IMMEUBLES COLLECTIFS RÉSIDENTIELS"},{"$f":"IFERROR(VLOOKUP(D2669,Translation!$A:$C,3,FALSE),D2669)","v":"Autre"},{"$f":"IFERROR(VLOOKUP(E2669,Translation!$A:$C,3,FALSE),E2669)","v":7.1696463897756644},{"$f":"IFERROR(VLOOKUP(F2669,Translation!$A:$C,3,FALSE),F2669)","v":"Prêts hypothécaires assurés au cours de la période selon le type de logement (%)"},{"$f":"IFERROR(VLOOKUP(G2669,Translation!$A:$C,3,FALSE),G2669)","v":"7.2"},{"$f":"IFERROR(VLOOKUP(H2669,Translation!$A:$C,3,FALSE),H2669)","v":"Autre"}]
[29,"T3 2017","IMMEUBLES COLLECTIFS RÉSIDENTIELS","Autre",2.0003801019889353,"Prêts hypothécaires assurés au cours de la période selon le type de logement (%)","2.0","Autre",{"$f":"IFERROR(VLOOKUP(A2670,Translation!$A:$C,3,FALSE),A2670)","v":29},{"$f":"IFERROR(VLOOKUP(B2670,Translation!$A:$C,3,FALSE),B2670)","v":"T3 2017"},{"$f":"IFERROR(VLOOKUP(C2670,Translation!$A:$C,3,FALSE),C2670)","v":"IMMEUBLES COLLECTIFS RÉSIDENTIELS"},{"$f":"IFERROR(VLOOKUP(D2670,Translation!$A:$C,3,FALSE),D2670)","v":"Autre"},{"$f":"IFERROR(VLOOKUP(E2670,Translation!$A:$C,3,FALSE),E2670)","v":2.0003801019889353},{"$f":"IFERROR(VLOOKUP(F2670,Translation!$A:$C,3,FALSE),F2670)","v":"Prêts hypothécaires assurés au cours de la période selon le type de logement (%)"},{"$f":"IFERROR(VLOOKUP(G2670,Translation!$A:$C,3,FALSE),G2670)","v":"2.0"},{"$f":"IFERROR(VLOOKUP(H2670,Translation!$A:$C,3,FALSE),H2670)","v":"Autre"}]
[29,"T1 2018","IMMEUBLES COLLECTIFS RÉSIDENTIELS","Terre-Neuve-et-Labrador",18.437930531849364,"Prêts hypothécaires assurés au cours de la période selon le type de logement (%)","18.4","Terre-Neuve-et-Labrador",{"$f":"IFERROR(VLOOKUP(A2673,Translation!$A:$C,3,FALSE),A2673)","v":29},{"$f":"IFERROR(VLOOKUP(B2673,Translation!$A:$C,3,FALSE),B2673)","v":"T1 2018"},{"$f":"IFERROR(VLOOKUP(C2673,Translation!$A:$C,3,FALSE),C2673)","v":"IMMEUBLES COLLECTIFS RÉSIDENTIELS"},{"$f":"IFERROR(VLOOKUP(D2673,Translation!$A:$C,3,FALSE),D2673)","v":"Terre-Neuve-et-Labrador"},{"$f":"IFERROR(VLOOKUP(E2673,Translation!$A:$C,3,FALSE),E2673)","v":18.437930531849364},{"$f":"IFERROR(VLOOKUP(F2673,Translation!$A:$C,3,FALSE),F2673)","v":"Prêts hypothécaires assurés au cours de la période selon le type de logement (%)"},{"$f":"IFERROR(VLOOKUP(G2673,Translation!$A:$C,3,FALSE),G2673)","v":"18.4"},{"$f":"IFERROR(VLOOKUP(H2673,Translation!$A:$C,3,FALSE),H2673)","v":"Terre-Neuve-et-Labrador"}]
[29,"Q2 2016","IMMEUBLES COLLECTIFS RÉSIDENTIELS","Terre-Neuve-et-Labrador",92.53445347986893,"Prêts hypothécaires assurés au cours de la période selon le type de logement (%)","92.5","Terre-Neuve-et-Labrador",{"$f":"IFERROR(VLOOKUP(A2674,Translation!$A:$C,3,FALSE),A2674)","v":29},{"$f":"IFERROR(VLOOKUP(B2674,Translation!$A:$C,3,FALSE),B2674)","v":"Q2 2016"},{"$f":"IFERROR(VLOOKUP(C2674,Translation!$A:$C,3,FALSE),C2674)","v":"IMMEUBLES COLLECTIFS RÉSIDENTIELS"},{"$f":"IFERROR(VLOOKUP(D2674,Translation!$A:$C,3,FALSE),D2674)","v":"Terre-Neuve-et-Labrador"},{"$f":"IFERROR(VLOOKUP(E2674,Translation!$A:$C,3,FALSE),E2674)","v":92.53445347986893},{"$f":"IFERROR(VLOOKUP(F2674,Translation!$A:$C,3,FALSE),F2674)","v":"Prêts hypothécaires assurés au cours de la période selon le type de logement (%)"},{"$f":"IFERROR(VLOOKUP(G2674,Translation!$A:$C,3,FALSE),G2674)","v":"92.5"},{"$f":"IFERROR(VLOOKUP(H2674,Translation!$A:$C,3,FALSE),H2674)","v":"Terre-Neuve-et-Labrador"}]
[29,"T4 2017","IMMEUBLES COLLECTIFS RÉSIDENTIELS","Terre-Neuve-et-Labrador",100,"Prêts hypothécaires assurés au cours de la période selon le type de logement (%)","100.0","Terre-Neuve-et-Labrador",{"$f":"IFERROR(VLOOKUP(A2678,Translation!$A:$C,3,FALSE),A2678)","v":29},{"$f":"IFERROR(VLOOKUP(B2678,Translation!$A:$C,3,FALSE),B2678)","v":"T4 2017"},{"$f":"IFERROR(VLOOKUP(C2678,Translation!$A:$C,3,FALSE),C2678)","v":"IMMEUBLES COLLECTIFS RÉSIDENTIELS"},{"$f":"IFERROR(VLOOKUP(D2678,Translation!$A:$C,3,FALSE),D2678)","v":"Terre-Neuve-et-Labrador"},{"$f":"IFERROR(VLOOKUP(E2678,Translation!$A:$C,3,FALSE),E2678)","v":100},{"$f":"IFERROR(VLOOKUP(F2678,Translation!$A:$C,3,FALSE),F2678)","v":"Prêts hypothécaires assurés au cours de la période selon le type de logement (%)"},{"$f":"IFERROR(VLOOKUP(G2678,Translation!$A:$C,3,FALSE),G2678)","v":"100.0"},{"$f":"IFERROR(VLOOKUP(H2678,Translation!$A:$C,3,FALSE),H2678)","v":"Terre-Neuve-et-Labrador"}]
[29,"Q2 2016","IMMEUBLES COLLECTIFS RÉSIDENTIELS","Île-du-Prince-Édouard",100,"Prêts hypothécaires assurés au cours de la période selon le type de logement (%)","100.0","Île-du-Prince-Édouard",{"$f":"IFERROR(VLOOKUP(A2680,Translation!$A:$C,3,FALSE),A2680)","v":29},{"$f":"IFERROR(VLOOKUP(B2680,Translation!$A:$C,3,FALSE),B2680)","v":"Q2 2016"},{"$f":"IFERROR(VLOOKUP(C2680,Translation!$A:$C,3,FALSE),C2680)","v":"IMMEUBLES COLLECTIFS RÉSIDENTIELS"},{"$f":"IFERROR(VLOOKUP(D2680,Translation!$A:$C,3,FALSE),D2680)","v":"Île-du-Prince-Édouard"},{"$f":"IFERROR(VLOOKUP(E2680,Translation!$A:$C,3,FALSE),E2680)","v":100},{"$f":"IFERROR(VLOOKUP(F2680,Translation!$A:$C,3,FALSE),F2680)","v":"Prêts hypothécaires assurés au cours de la période selon le type de logement (%)"},{"$f":"IFERROR(VLOOKUP(G2680,Translation!$A:$C,3,FALSE),G2680)","v":"100.0"},{"$f":"IFERROR(VLOOKUP(H2680,Translation!$A:$C,3,FALSE),H2680)","v":"Île-du-Prince-Édouard"}]
[29,"T3 2017","IMMEUBLES COLLECTIFS RÉSIDENTIELS","Île-du-Prince-Édouard",100,"Prêts hypothécaires assurés au cours de la période selon le type de logement (%)","100.0","Île-du-Prince-Édouard",{"$f":"IFERROR(VLOOKUP(A2683,Translation!$A:$C,3,FALSE),A2683)","v":29},{"$f":"IFERROR(VLOOKUP(B2683,Translation!$A:$C,3,FALSE),B2683)","v":"T3 2017"},{"$f":"IFERROR(VLOOKUP(C2683,Translation!$A:$C,3,FALSE),C2683)","v":"IMMEUBLES COLLECTIFS RÉSIDENTIELS"},{"$f":"IFERROR(VLOOKUP(D2683,Translation!$A:$C,3,FALSE),D2683)","v":"Île-du-Prince-Édouard"},{"$f":"IFERROR(VLOOKUP(E2683,Translation!$A:$C,3,FALSE),E2683)","v":100},{"$f":"IFERROR(VLOOKUP(F2683,Translation!$A:$C,3,FALSE),F2683)","v":"Prêts hypothécaires assurés au cours de la période selon le type de logement (%)"},{"$f":"IFERROR(VLOOKUP(G2683,Translation!$A:$C,3,FALSE),G2683)","v":"100.0"},{"$f":"IFERROR(VLOOKUP(H2683,Translation!$A:$C,3,FALSE),H2683)","v":"Île-du-Prince-Édouard"}]
[29,"Q4 2016","IMMEUBLES COLLECTIFS RÉSIDENTIELS","Île-du-Prince-Édouard",100,"Prêts hypothécaires assurés au cours de la période selon le type de logement (%)","100.0","Île-du-Prince-Édouard",{"$f":"IFERROR(VLOOKUP(A2684,Translation!$A:$C,3,FALSE),A2684)","v":29},{"$f":"IFERROR(VLOOKUP(B2684,Translation!$A:$C,3,FALSE),B2684)","v":"Q4 2016"},{"$f":"IFERROR(VLOOKUP(C2684,Translation!$A:$C,3,FALSE),C2684)","v":"IMMEUBLES COLLECTIFS RÉSIDENTIELS"},{"$f":"IFERROR(VLOOKUP(D2684,Translation!$A:$C,3,FALSE),D2684)","v":"Île-du-Prince-Édouard"},{"$f":"IFERROR(VLOOKUP(E2684,Translation!$A:$C,3,FALSE),E2684)","v":100},{"$f":"IFERROR(VLOOKUP(F2684,Translation!$A:$C,3,FALSE),F2684)","v":"Prêts hypothécaires assurés au cours de la période selon le type de logement (%)"},{"$f":"IFERROR(VLOOKUP(G2684,Translation!$A:$C,3,FALSE),G2684)","v":"100.0"},{"$f":"IFERROR(VLOOKUP(H2684,Translation!$A:$C,3,FALSE),H2684)","v":"Île-du-Prince-Édouard"}]
[29,"Q2 2016","IMMEUBLES COLLECTIFS RÉSIDENTIELS","Nouvelle-Écosse",100,"Prêts hypothécaires assurés au cours de la période selon le type de logement (%)","100.0","Nouvelle-Écosse",{"$f":"IFERROR(VLOOKUP(A2688,Translation!$A:$C,3,FALSE),A2688)","v":29},{"$f":"IFERROR(VLOOKUP(B2688,Translation!$A:$C,3,FALSE),B2688)","v":"Q2 2016"},{"$f":"IFERROR(VLOOKUP(C2688,Translation!$A:$C,3,FALSE),C2688)","v":"IMMEUBLES COLLECTIFS RÉSIDENTIELS"},{"$f":"IFERROR(VLOOKUP(D2688,Translation!$A:$C,3,FALSE),D2688)","v":"Nouvelle-Écosse"},{"$f":"IFERROR(VLOOKUP(E2688,Translation!$A:$C,3,FALSE),E2688)","v":100},{"$f":"IFERROR(VLOOKUP(F2688,Translation!$A:$C,3,FALSE),F2688)","v":"Prêts hypothécaires assurés au cours de la période selon le type de logement (%)"},{"$f":"IFERROR(VLOOKUP(G2688,Translation!$A:$C,3,FALSE),G2688)","v":"100.0"},{"$f":"IFERROR(VLOOKUP(H2688,Translation!$A:$C,3,FALSE),H2688)","v":"Nouvelle-Écosse"}]
[29,"T2 2017","IMMEUBLES COLLECTIFS RÉSIDENTIELS","Nouvelle-Écosse",95.162517650149525,"Prêts hypothécaires assurés au cours de la période selon le type de logement (%)","95.2","Nouvelle-Écosse",{"$f":"IFERROR(VLOOKUP(A2689,Translation!$A:$C,3,FALSE),A2689)","v":29},{"$f":"IFERROR(VLOOKUP(B2689,Translation!$A:$C,3,FALSE),B2689)","v":"T2 2017"},{"$f":"IFERROR(VLOOKUP(C2689,Translation!$A:$C,3,FALSE),C2689)","v":"IMMEUBLES COLLECTIFS RÉSIDENTIELS"},{"$f":"IFERROR(VLOOKUP(D2689,Translation!$A:$C,3,FALSE),D2689)","v":"Nouvelle-Écosse"},{"$f":"IFERROR(VLOOKUP(E2689,Translation!$A:$C,3,FALSE),E2689)","v":95.162517650149525},{"$f":"IFERROR(VLOOKUP(F2689,Translation!$A:$C,3,FALSE),F2689)","v":"Prêts hypothécaires assurés au cours de la période selon le type de logement (%)"},{"$f":"IFERROR(VLOOKUP(G2689,Translation!$A:$C,3,FALSE),G2689)","v":"95.2"},{"$f":"IFERROR(VLOOKUP(H2689,Translation!$A:$C,3,FALSE),H2689)","v":"Nouvelle-Écosse"}]
[29,"T3 2017","IMMEUBLES COLLECTIFS RÉSIDENTIELS","Nouvelle-Écosse",95.779779517632377,"Prêts hypothécaires assurés au cours de la période selon le type de logement (%)","95.8","Nouvelle-Écosse",{"$f":"IFERROR(VLOOKUP(A2691,Translation!$A:$C,3,FALSE),A2691)","v":29},{"$f":"IFERROR(VLOOKUP(B2691,Translation!$A:$C,3,FALSE),B2691)","v":"T3 2017"},{"$f":"IFERROR(VLOOKUP(C2691,Translation!$A:$C,3,FALSE),C2691)","v":"IMMEUBLES COLLECTIFS RÉSIDENTIELS"},{"$f":"IFERROR(VLOOKUP(D2691,Translation!$A:$C,3,FALSE),D2691)","v":"Nouvelle-Écosse"},{"$f":"IFERROR(VLOOKUP(E2691,Translation!$A:$C,3,FALSE),E2691)","v":95.779779517632377},{"$f":"IFERROR(VLOOKUP(F2691,Translation!$A:$C,3,FALSE),F2691)","v":"Prêts hypothécaires assurés au cours de la période selon le type de logement (%)"},{"$f":"IFERROR(VLOOKUP(G2691,Translation!$A:$C,3,FALSE),G2691)","v":"95.8"},{"$f":"IFERROR(VLOOKUP(H2691,Translation!$A:$C,3,FALSE),H2691)","v":"Nouvelle-Écosse"}]
[29,"T1 2017","IMMEUBLES COLLECTIFS RÉSIDENTIELS","Nouveau-Brunswick",76.914013494070062,"Prêts hypothécaires assurés au cours de la période selon le type de logement (%)","76.9","Nouveau-Brunswick",{"$f":"IFERROR(VLOOKUP(A2694,Translation!$A:$C,3,FALSE),A2694)","v":29},{"$f":"IFERROR(VLOOKUP(B2694,Translation!$A:$C,3,FALSE),B2694)","v":"T1 2017"},{"$f":"IFERROR(VLOOKUP(C2694,Translation!$A:$C,3,FALSE),C2694)","v":"IMMEUBLES COLLECTIFS RÉSIDENTIELS"},{"$f":"IFERROR(VLOOKUP(D2694,Translation!$A:$C,3,FALSE),D2694)","v":"Nouveau-Brunswick"},{"$f":"IFERROR(VLOOKUP(E2694,Translation!$A:$C,3,FALSE),E2694)","v":76.914013494070062},{"$f":"IFERROR(VLOOKUP(F2694,Translation!$A:$C,3,FALSE),F2694)","v":"Prêts hypothécaires assurés au cours de la période selon le type de logement (%)"},{"$f":"IFERROR(VLOOKUP(G2694,Translation!$A:$C,3,FALSE),G2694)","v":"76.9"},{"$f":"IFERROR(VLOOKUP(H2694,Translation!$A:$C,3,FALSE),H2694)","v":"Nouveau-Brunswick"}]
[29,"T2 2017","IMMEUBLES COLLECTIFS RÉSIDENTIELS","Nouveau-Brunswick",100,"Prêts hypothécaires assurés au cours de la période selon le type de logement (%)","100.0","Nouveau-Brunswick",{"$f":"IFERROR(VLOOKUP(A2697,Translation!$A:$C,3,FALSE),A2697)","v":29},{"$f":"IFERROR(VLOOKUP(B2697,Translation!$A:$C,3,FALSE),B2697)","v":"T2 2017"},{"$f":"IFERROR(VLOOKUP(C2697,Translation!$A:$C,3,FALSE),C2697)","v":"IMMEUBLES COLLECTIFS RÉSIDENTIELS"},{"$f":"IFERROR(VLOOKUP(D2697,Translation!$A:$C,3,FALSE),D2697)","v":"Nouveau-Brunswick"},{"$f":"IFERROR(VLOOKUP(E2697,Translation!$A:$C,3,FALSE),E2697)","v":100},{"$f":"IFERROR(VLOOKUP(F2697,Translation!$A:$C,3,FALSE),F2697)","v":"Prêts hypothécaires assurés au cours de la période selon le type de logement (%)"},{"$f":"IFERROR(VLOOKUP(G2697,Translation!$A:$C,3,FALSE),G2697)","v":"100.0"},{"$f":"IFERROR(VLOOKUP(H2697,Translation!$A:$C,3,FALSE),H2697)","v":"Nouveau-Brunswick"}]
[29,"T3 2017","IMMEUBLES COLLECTIFS RÉSIDENTIELS","Nouveau-Brunswick",100,"Prêts hypothécaires assurés au cours de la période selon le type de logement (%)","100.0","Nouveau-Brunswick",{"$f":"IFERROR(VLOOKUP(A2699,Translation!$A:$C,3,FALSE),A2699)","v":29},{"$f":"IFERROR(VLOOKUP(B2699,Translation!$A:$C,3,FALSE),B2699)","v":"T3 2017"},{"$f":"IFERROR(VLOOKUP(C2699,Translation!$A:$C,3,FALSE),C2699)","v":"IMMEUBLES COLLECTIFS RÉSIDENTIELS"},{"$f":"IFERROR(VLOOKUP(D2699,Translation!$A:$C,3,FALSE),D2699)","v":"Nouveau-Brunswick"},{"$f":"IFERROR(VLOOKUP(E2699,Translation!$A:$C,3,FALSE),E2699)","v":100},{"$f":"IFERROR(VLOOKUP(F2699,Translation!$A:$C,3,FALSE),F2699)","v":"Prêts hypothécaires assurés au cours de la période selon le type de logement (%)"},{"$f":"IFERROR(VLOOKUP(G2699,Translation!$A:$C,3,FALSE),G2699)","v":"100.0"},{"$f":"IFERROR(VLOOKUP(H2699,Translation!$A:$C,3,FALSE),H2699)","v":"Nouveau-Brunswick"}]
[29,"T1 2017","IMMEUBLES COLLECTIFS RÉSIDENTIELS","Québec",93.045758013416176,"Prêts hypothécaires assurés au cours de la période selon le type de logement (%)","93.0","Québec",{"$f":"IFERROR(VLOOKUP(A2702,Translation!$A:$C,3,FALSE),A2702)","v":29},{"$f":"IFERROR(VLOOKUP(B2702,Translation!$A:$C,3,FALSE),B2702)","v":"T1 2017"},{"$f":"IFERROR(VLOOKUP(C2702,Translation!$A:$C,3,FALSE),C2702)","v":"IMMEUBLES COLLECTIFS RÉSIDENTIELS"},{"$f":"IFERROR(VLOOKUP(D2702,Translation!$A:$C,3,FALSE),D2702)","v":"Québec"},{"$f":"IFERROR(VLOOKUP(E2702,Translation!$A:$C,3,FALSE),E2702)","v":93.045758013416176},{"$f":"IFERROR(VLOOKUP(F2702,Translation!$A:$C,3,FALSE),F2702)","v":"Prêts hypothécaires assurés au cours de la période selon le type de logement (%)"},{"$f":"IFERROR(VLOOKUP(G2702,Translation!$A:$C,3,FALSE),G2702)","v":"93.0"},{"$f":"IFERROR(VLOOKUP(H2702,Translation!$A:$C,3,FALSE),H2702)","v":"Québec"}]
[29,"Q2 2016","IMMEUBLES COLLECTIFS RÉSIDENTIELS","Québec",82.675660721315325,"Prêts hypothécaires assurés au cours de la période selon le type de logement (%)","82.7","Québec",{"$f":"IFERROR(VLOOKUP(A2704,Translation!$A:$C,3,FALSE),A2704)","v":29},{"$f":"IFERROR(VLOOKUP(B2704,Translation!$A:$C,3,FALSE),B2704)","v":"Q2 2016"},{"$f":"IFERROR(VLOOKUP(C2704,Translation!$A:$C,3,FALSE),C2704)","v":"IMMEUBLES COLLECTIFS RÉSIDENTIELS"},{"$f":"IFERROR(VLOOKUP(D2704,Translation!$A:$C,3,FALSE),D2704)","v":"Québec"},{"$f":"IFERROR(VLOOKUP(E2704,Translation!$A:$C,3,FALSE),E2704)","v":82.675660721315325},{"$f":"IFERROR(VLOOKUP(F2704,Translation!$A:$C,3,FALSE),F2704)","v":"Prêts hypothécaires assurés au cours de la période selon le type de logement (%)"},{"$f":"IFERROR(VLOOKUP(G2704,Translation!$A:$C,3,FALSE),G2704)","v":"82.7"},{"$f":"IFERROR(VLOOKUP(H2704,Translation!$A:$C,3,FALSE),H2704)","v":"Québec"}]
[29,"T3 2017","IMMEUBLES COLLECTIFS RÉSIDENTIELS","Québec",85.782512551939007,"Prêts hypothécaires assurés au cours de la période selon le type de logement (%)","85.8","Québec",{"$f":"IFERROR(VLOOKUP(A2707,Translation!$A:$C,3,FALSE),A2707)","v":29},{"$f":"IFERROR(VLOOKUP(B2707,Translation!$A:$C,3,FALSE),B2707)","v":"T3 2017"},{"$f":"IFERROR(VLOOKUP(C2707,Translation!$A:$C,3,FALSE),C2707)","v":"IMMEUBLES COLLECTIFS RÉSIDENTIELS"},{"$f":"IFERROR(VLOOKUP(D2707,Translation!$A:$C,3,FALSE),D2707)","v":"Québec"},{"$f":"IFERROR(VLOOKUP(E2707,Translation!$A:$C,3,FALSE),E2707)","v":85.782512551939007},{"$f":"IFERROR(VLOOKUP(F2707,Translation!$A:$C,3,FALSE),F2707)","v":"Prêts hypothécaires assurés au cours de la période selon le type de logement (%)"},{"$f":"IFERROR(VLOOKUP(G2707,Translation!$A:$C,3,FALSE),G2707)","v":"85.8"},{"$f":"IFERROR(VLOOKUP(H2707,Translation!$A:$C,3,FALSE),H2707)","v":"Québec"}]
[29,"Q4 2016","IMMEUBLES COLLECTIFS RÉSIDENTIELS","Québec",75.940215266628442,"Prêts hypothécaires assurés au cours de la période selon le type de logement (%)","75.9","Québec",{"$f":"IFERROR(VLOOKUP(A2708,Translation!$A:$C,3,FALSE),A2708)","v":29},{"$f":"IFERROR(VLOOKUP(B2708,Translation!$A:$C,3,FALSE),B2708)","v":"Q4 2016"},{"$f":"IFERROR(VLOOKUP(C2708,Translation!$A:$C,3,FALSE),C2708)","v":"IMMEUBLES COLLECTIFS RÉSIDENTIELS"},{"$f":"IFERROR(VLOOKUP(D2708,Translation!$A:$C,3,FALSE),D2708)","v":"Québec"},{"$f":"IFERROR(VLOOKUP(E2708,Translation!$A:$C,3,FALSE),E2708)","v":75.940215266628442},{"$f":"IFERROR(VLOOKUP(F2708,Translation!$A:$C,3,FALSE),F2708)","v":"Prêts hypothécaires assurés au cours de la période selon le type de logement (%)"},{"$f":"IFERROR(VLOOKUP(G2708,Translation!$A:$C,3,FALSE),G2708)","v":"75.9"},{"$f":"IFERROR(VLOOKUP(H2708,Translation!$A:$C,3,FALSE),H2708)","v":"Québec"}]
[29,"T1 2017","IMMEUBLES COLLECTIFS RÉSIDENTIELS","Ontario",92.51478832610313,"Prêts hypothécaires assurés au cours de la période selon le type de logement (%)","92.5","Ontario",{"$f":"IFERROR(VLOOKUP(A2710,Translation!$A:$C,3,FALSE),A2710)","v":29},{"$f":"IFERROR(VLOOKUP(B2710,Translation!$A:$C,3,FALSE),B2710)","v":"T1 2017"},{"$f":"IFERROR(VLOOKUP(C2710,Translation!$A:$C,3,FALSE),C2710)","v":"IMMEUBLES COLLECTIFS RÉSIDENTIELS"},{"$f":"IFERROR(VLOOKUP(D2710,Translation!$A:$C,3,FALSE),D2710)","v":"Ontario"},{"$f":"IFERROR(VLOOKUP(E2710,Translation!$A:$C,3,FALSE),E2710)","v":92.51478832610313},{"$f":"IFERROR(VLOOKUP(F2710,Translation!$A:$C,3,FALSE),F2710)","v":"Prêts hypothécaires assurés au cours de la période selon le type de logement (%)"},{"$f":"IFERROR(VLOOKUP(G2710,Translation!$A:$C,3,FALSE),G2710)","v":"92.5"},{"$f":"IFERROR(VLOOKUP(H2710,Translation!$A:$C,3,FALSE),H2710)","v":"Ontario"}]
[29,"T2 2017","IMMEUBLES COLLECTIFS RÉSIDENTIELS","Ontario",80.976233315028821,"Prêts hypothécaires assurés au cours de la période selon le type de logement (%)","81.0","Ontario",{"$f":"IFERROR(VLOOKUP(A2713,Translation!$A:$C,3,FALSE),A2713)","v":29},{"$f":"IFERROR(VLOOKUP(B2713,Translation!$A:$C,3,FALSE),B2713)","v":"T2 2017"},{"$f":"IFERROR(VLOOKUP(C2713,Translation!$A:$C,3,FALSE),C2713)","v":"IMMEUBLES COLLECTIFS RÉSIDENTIELS"},{"$f":"IFERROR(VLOOKUP(D2713,Translation!$A:$C,3,FALSE),D2713)","v":"Ontario"},{"$f":"IFERROR(VLOOKUP(E2713,Translation!$A:$C,3,FALSE),E2713)","v":80.976233315028821},{"$f":"IFERROR(VLOOKUP(F2713,Translation!$A:$C,3,FALSE),F2713)","v":"Prêts hypothécaires assurés au cours de la période selon le type de logement (%)"},{"$f":"IFERROR(VLOOKUP(G2713,Translation!$A:$C,3,FALSE),G2713)","v":"81.0"},{"$f":"IFERROR(VLOOKUP(H2713,Translation!$A:$C,3,FALSE),H2713)","v":"Ontario"}]
[29,"T3 2017","IMMEUBLES COLLECTIFS RÉSIDENTIELS","Ontario",88.63287876215206,"Prêts hypothécaires assurés au cours de la période selon le type de logement (%)","88.6","Ontario",{"$f":"IFERROR(VLOOKUP(A2715,Translation!$A:$C,3,FALSE),A2715)","v":29},{"$f":"IFERROR(VLOOKUP(B2715,Translation!$A:$C,3,FALSE),B2715)","v":"T3 2017"},{"$f":"IFERROR(VLOOKUP(C2715,Translation!$A:$C,3,FALSE),C2715)","v":"IMMEUBLES COLLECTIFS RÉSIDENTIELS"},{"$f":"IFERROR(VLOOKUP(D2715,Translation!$A:$C,3,FALSE),D2715)","v":"Ontario"},{"$f":"IFERROR(VLOOKUP(E2715,Translation!$A:$C,3,FALSE),E2715)","v":88.63287876215206},{"$f":"IFERROR(VLOOKUP(F2715,Translation!$A:$C,3,FALSE),F2715)","v":"Prêts hypothécaires assurés au cours de la période selon le type de logement (%)"},{"$f":"IFERROR(VLOOKUP(G2715,Translation!$A:$C,3,FALSE),G2715)","v":"88.6"},{"$f":"IFERROR(VLOOKUP(H2715,Translation!$A:$C,3,FALSE),H2715)","v":"Ontario"}]
[29,"T1 2017","IMMEUBLES COLLECTIFS RÉSIDENTIELS","Manitoba",100,"Prêts hypothécaires assurés au cours de la période selon le type de logement (%)","100.0","Manitoba",{"$f":"IFERROR(VLOOKUP(A2718,Translation!$A:$C,3,FALSE),A2718)","v":29},{"$f":"IFERROR(VLOOKUP(B2718,Translation!$A:$C,3,FALSE),B2718)","v":"T1 2017"},{"$f":"IFERROR(VLOOKUP(C2718,Translation!$A:$C,3,FALSE),C2718)","v":"IMMEUBLES COLLECTIFS RÉSIDENTIELS"},{"$f":"IFERROR(VLOOKUP(D2718,Translation!$A:$C,3,FALSE),D2718)","v":"Manitoba"},{"$f":"IFERROR(VLOOKUP(E2718,Translation!$A:$C,3,FALSE),E2718)","v":100},{"$f":"IFERROR(VLOOKUP(F2718,Translation!$A:$C,3,FALSE),F2718)","v":"Prêts hypothécaires assurés au cours de la période selon le type de logement (%)"},{"$f":"IFERROR(VLOOKUP(G2718,Translation!$A:$C,3,FALSE),G2718)","v":"100.0"},{"$f":"IFERROR(VLOOKUP(H2718,Translation!$A:$C,3,FALSE),H2718)","v":"Manitoba"}]
[29,"T2 2017","IMMEUBLES COLLECTIFS RÉSIDENTIELS","Manitoba",100,"Prêts hypothécaires assurés au cours de la période selon le type de logement (%)","100.0","Manitoba",{"$f":"IFERROR(VLOOKUP(A2721,Translation!$A:$C,3,FALSE),A2721)","v":29},{"$f":"IFERROR(VLOOKUP(B2721,Translation!$A:$C,3,FALSE),B2721)","v":"T2 2017"},{"$f":"IFERROR(VLOOKUP(C2721,Translation!$A:$C,3,FALSE),C2721)","v":"IMMEUBLES COLLECTIFS RÉSIDENTIELS"},{"$f":"IFERROR(VLOOKUP(D2721,Translation!$A:$C,3,FALSE),D2721)","v":"Manitoba"},{"$f":"IFERROR(VLOOKUP(E2721,Translation!$A:$C,3,FALSE),E2721)","v":100},{"$f":"IFERROR(VLOOKUP(F2721,Translation!$A:$C,3,FALSE),F2721)","v":"Prêts hypothécaires assurés au cours de la période selon le type de logement (%)"},{"$f":"IFERROR(VLOOKUP(G2721,Translation!$A:$C,3,FALSE),G2721)","v":"100.0"},{"$f":"IFERROR(VLOOKUP(H2721,Translation!$A:$C,3,FALSE),H2721)","v":"Manitoba"}]
[29,"T3 2017","IMMEUBLES COLLECTIFS RÉSIDENTIELS","Manitoba",100,"Prêts hypothécaires assurés au cours de la période selon le type de logement (%)","100.0","Manitoba",{"$f":"IFERROR(VLOOKUP(A2723,Translation!$A:$C,3,FALSE),A2723)","v":29},{"$f":"IFERROR(VLOOKUP(B2723,Translation!$A:$C,3,FALSE),B2723)","v":"T3 2017"},{"$f":"IFERROR(VLOOKUP(C2723,Translation!$A:$C,3,FALSE),C2723)","v":"IMMEUBLES COLLECTIFS RÉSIDENTIELS"},{"$f":"IFERROR(VLOOKUP(D2723,Translation!$A:$C,3,FALSE),D2723)","v":"Manitoba"},{"$f":"IFERROR(VLOOKUP(E2723,Translation!$A:$C,3,FALSE),E2723)","v":100},{"$f":"IFERROR(VLOOKUP(F2723,Translation!$A:$C,3,FALSE),F2723)","v":"Prêts hypothécaires assurés au cours de la période selon le type de logement (%)"},{"$f":"IFERROR(VLOOKUP(G2723,Translation!$A:$C,3,FALSE),G2723)","v":"100.0"},{"$f":"IFERROR(VLOOKUP(H2723,Translation!$A:$C,3,FALSE),H2723)","v":"Manitoba"}]
[29,"T1 2017","IMMEUBLES COLLECTIFS RÉSIDENTIELS","Saskatchewan",100,"Prêts hypothécaires assurés au cours de la période selon le type de logement (%)","100.0","Saskatchewan",{"$f":"IFERROR(VLOOKUP(A2726,Translation!$A:$C,3,FALSE),A2726)","v":29},{"$f":"IFERROR(VLOOKUP(B2726,Translation!$A:$C,3,FALSE),B2726)","v":"T1 2017"},{"$f":"IFERROR(VLOOKUP(C2726,Translation!$A:$C,3,FALSE),C2726)","v":"IMMEUBLES COLLECTIFS RÉSIDENTIELS"},{"$f":"IFERROR(VLOOKUP(D2726,Translation!$A:$C,3,FALSE),D2726)","v":"Saskatchewan"},{"$f":"IFERROR(VLOOKUP(E2726,Translation!$A:$C,3,FALSE),E2726)","v":100},{"$f":"IFERROR(VLOOKUP(F2726,Translation!$A:$C,3,FALSE),F2726)","v":"Prêts hypothécaires assurés au cours de la période selon le type de logement (%)"},{"$f":"IFERROR(VLOOKUP(G2726,Translation!$A:$C,3,FALSE),G2726)","v":"100.0"},{"$f":"IFERROR(VLOOKUP(H2726,Translation!$A:$C,3,FALSE),H2726)","v":"Saskatchewan"}]
[29,"T2 2017","IMMEUBLES COLLECTIFS RÉSIDENTIELS","Saskatchewan",8.8656356881711744,"Prêts hypothécaires assurés au cours de la période selon le type de logement (%)","8.9","Saskatchewan",{"$f":"IFERROR(VLOOKUP(A2729,Translation!$A:$C,3,FALSE),A2729)","v":29},{"$f":"IFERROR(VLOOKUP(B2729,Translation!$A:$C,3,FALSE),B2729)","v":"T2 2017"},{"$f":"IFERROR(VLOOKUP(C2729,Translation!$A:$C,3,FALSE),C2729)","v":"IMMEUBLES COLLECTIFS RÉSIDENTIELS"},{"$f":"IFERROR(VLOOKUP(D2729,Translation!$A:$C,3,FALSE),D2729)","v":"Saskatchewan"},{"$f":"IFERROR(VLOOKUP(E2729,Translation!$A:$C,3,FALSE),E2729)","v":8.8656356881711744},{"$f":"IFERROR(VLOOKUP(F2729,Translation!$A:$C,3,FALSE),F2729)","v":"Prêts hypothécaires assurés au cours de la période selon le type de logement (%)"},{"$f":"IFERROR(VLOOKUP(G2729,Translation!$A:$C,3,FALSE),G2729)","v":"8.9"},{"$f":"IFERROR(VLOOKUP(H2729,Translation!$A:$C,3,FALSE),H2729)","v":"Saskatchewan"}]
[29,"T3 2017","IMMEUBLES COLLECTIFS RÉSIDENTIELS","Saskatchewan",100,"Prêts hypothécaires assurés au cours de la période selon le type de logement (%)","100.0","Saskatchewan",{"$f":"IFERROR(VLOOKUP(A2731,Translation!$A:$C,3,FALSE),A2731)","v":29},{"$f":"IFERROR(VLOOKUP(B2731,Translation!$A:$C,3,FALSE),B2731)","v":"T3 2017"},{"$f":"IFERROR(VLOOKUP(C2731,Translation!$A:$C,3,FALSE),C2731)","v":"IMMEUBLES COLLECTIFS RÉSIDENTIELS"},{"$f":"IFERROR(VLOOKUP(D2731,Translation!$A:$C,3,FALSE),D2731)","v":"Saskatchewan"},{"$f":"IFERROR(VLOOKUP(E2731,Translation!$A:$C,3,FALSE),E2731)","v":100},{"$f":"IFERROR(VLOOKUP(F2731,Translation!$A:$C,3,FALSE),F2731)","v":"Prêts hypothécaires assurés au cours de la période selon le type de logement (%)"},{"$f":"IFERROR(VLOOKUP(G2731,Translation!$A:$C,3,FALSE),G2731)","v":"100.0"},{"$f":"IFERROR(VLOOKUP(H2731,Translation!$A:$C,3,FALSE),H2731)","v":"Saskatchewan"}]
[29,"Q4 2016","IMMEUBLES COLLECTIFS RÉSIDENTIELS","Saskatchewan",100,"Prêts hypothécaires assurés au cours de la période selon le type de logement (%)","100.0","Saskatchewan",{"$f":"IFERROR(VLOOKUP(A2732,Translation!$A:$C,3,FALSE),A2732)","v":29},{"$f":"IFERROR(VLOOKUP(B2732,Translation!$A:$C,3,FALSE),B2732)","v":"Q4 2016"},{"$f":"IFERROR(VLOOKUP(C2732,Translation!$A:$C,3,FALSE),C2732)","v":"IMMEUBLES COLLECTIFS RÉSIDENTIELS"},{"$f":"IFERROR(VLOOKUP(D2732,Translation!$A:$C,3,FALSE),D2732)","v":"Saskatchewan"},{"$f":"IFERROR(VLOOKUP(E2732,Translation!$A:$C,3,FALSE),E2732)","v":100},{"$f":"IFERROR(VLOOKUP(F2732,Translation!$A:$C,3,FALSE),F2732)","v":"Prêts hypothécaires assurés au cours de la période selon le type de logement (%)"},{"$f":"IFERROR(VLOOKUP(G2732,Translation!$A:$C,3,FALSE),G2732)","v":"100.0"},{"$f":"IFERROR(VLOOKUP(H2732,Translation!$A:$C,3,FALSE),H2732)","v":"Saskatchewan"}]
[29,"T1 2017","IMMEUBLES COLLECTIFS RÉSIDENTIELS","Alberta",89.2449183612257,"Prêts hypothécaires assurés au cours de la période selon le type de logement (%)","89.2","Alberta",{"$f":"IFERROR(VLOOKUP(A2734,Translation!$A:$C,3,FALSE),A2734)","v":29},{"$f":"IFERROR(VLOOKUP(B2734,Translation!$A:$C,3,FALSE),B2734)","v":"T1 2017"},{"$f":"IFERROR(VLOOKUP(C2734,Translation!$A:$C,3,FALSE),C2734)","v":"IMMEUBLES COLLECTIFS RÉSIDENTIELS"},{"$f":"IFERROR(VLOOKUP(D2734,Translation!$A:$C,3,FALSE),D2734)","v":"Alberta"},{"$f":"IFERROR(VLOOKUP(E2734,Translation!$A:$C,3,FALSE),E2734)","v":89.2449183612257},{"$f":"IFERROR(VLOOKUP(F2734,Translation!$A:$C,3,FALSE),F2734)","v":"Prêts hypothécaires assurés au cours de la période selon le type de logement (%)"},{"$f":"IFERROR(VLOOKUP(G2734,Translation!$A:$C,3,FALSE),G2734)","v":"89.2"},{"$f":"IFERROR(VLOOKUP(H2734,Translation!$A:$C,3,FALSE),H2734)","v":"Alberta"}]
[29,"T2 2017","IMMEUBLES COLLECTIFS RÉSIDENTIELS","Alberta",79.964617210886601,"Prêts hypothécaires assurés au cours de la période selon le type de logement (%)","80.0","Alberta",{"$f":"IFERROR(VLOOKUP(A2737,Translation!$A:$C,3,FALSE),A2737)","v":29},{"$f":"IFERROR(VLOOKUP(B2737,Translation!$A:$C,3,FALSE),B2737)","v":"T2 2017"},{"$f":"IFERROR(VLOOKUP(C2737,Translation!$A:$C,3,FALSE),C2737)","v":"IMMEUBLES COLLECTIFS RÉSIDENTIELS"},{"$f":"IFERROR(VLOOKUP(D2737,Translation!$A:$C,3,FALSE),D2737)","v":"Alberta"},{"$f":"IFERROR(VLOOKUP(E2737,Translation!$A:$C,3,FALSE),E2737)","v":79.964617210886601},{"$f":"IFERROR(VLOOKUP(F2737,Translation!$A:$C,3,FALSE),F2737)","v":"Prêts hypothécaires assurés au cours de la période selon le type de logement (%)"},{"$f":"IFERROR(VLOOKUP(G2737,Translation!$A:$C,3,FALSE),G2737)","v":"80.0"},{"$f":"IFERROR(VLOOKUP(H2737,Translation!$A:$C,3,FALSE),H2737)","v":"Alberta"}]
[29,"Q4 2016","IMMEUBLES COLLECTIFS RÉSIDENTIELS","Alberta",82.729395082840881,"Prêts hypothécaires assurés au cours de la période selon le type de logement (%)","82.7","Alberta",{"$f":"IFERROR(VLOOKUP(A2740,Translation!$A:$C,3,FALSE),A2740)","v":29},{"$f":"IFERROR(VLOOKUP(B2740,Translation!$A:$C,3,FALSE),B2740)","v":"Q4 2016"},{"$f":"IFERROR(VLOOKUP(C2740,Translation!$A:$C,3,FALSE),C2740)","v":"IMMEUBLES COLLECTIFS RÉSIDENTIELS"},{"$f":"IFERROR(VLOOKUP(D2740,Translation!$A:$C,3,FALSE),D2740)","v":"Alberta"},{"$f":"IFERROR(VLOOKUP(E2740,Translation!$A:$C,3,FALSE),E2740)","v":82.729395082840881},{"$f":"IFERROR(VLOOKUP(F2740,Translation!$A:$C,3,FALSE),F2740)","v":"Prêts hypothécaires assurés au cours de la période selon le type de logement (%)"},{"$f":"IFERROR(VLOOKUP(G2740,Translation!$A:$C,3,FALSE),G2740)","v":"82.7"},{"$f":"IFERROR(VLOOKUP(H2740,Translation!$A:$C,3,FALSE),H2740)","v":"Alberta"}]
[29,"T1 2017","IMMEUBLES COLLECTIFS RÉSIDENTIELS","Colombie-Britannique",89.645688208544186,"Prêts hypothécaires assurés au cours de la période selon le type de logement (%)","89.6","Colombie-Britannique",{"$f":"IFERROR(VLOOKUP(A2742,Translation!$A:$C,3,FALSE),A2742)","v":29},{"$f":"IFERROR(VLOOKUP(B2742,Translation!$A:$C,3,FALSE),B2742)","v":"T1 2017"},{"$f":"IFERROR(VLOOKUP(C2742,Translation!$A:$C,3,FALSE),C2742)","v":"IMMEUBLES COLLECTIFS RÉSIDENTIELS"},{"$f":"IFERROR(VLOOKUP(D2742,Translation!$A:$C,3,FALSE),D2742)","v":"Colombie-Britannique"},{"$f":"IFERROR(VLOOKUP(E2742,Translation!$A:$C,3,FALSE),E2742)","v":89.645688208544186},{"$f":"IFERROR(VLOOKUP(F2742,Translation!$A:$C,3,FALSE),F2742)","v":"Prêts hypothécaires assurés au cours de la période selon le type de logement (%)"},{"$f":"IFERROR(VLOOKUP(G2742,Translation!$A:$C,3,FALSE),G2742)","v":"89.6"},{"$f":"IFERROR(VLOOKUP(H2742,Translation!$A:$C,3,FALSE),H2742)","v":"Colombie-Britannique"}]
[29,"T2 2017","IMMEUBLES COLLECTIFS RÉSIDENTIELS","Colombie-Britannique",89.620480208757812,"Prêts hypothécaires assurés au cours de la période selon le type de logement (%)","89.6","Colombie-Britannique",{"$f":"IFERROR(VLOOKUP(A2745,Translation!$A:$C,3,FALSE),A2745)","v":29},{"$f":"IFERROR(VLOOKUP(B2745,Translation!$A:$C,3,FALSE),B2745)","v":"T2 2017"},{"$f":"IFERROR(VLOOKUP(C2745,Translation!$A:$C,3,FALSE),C2745)","v":"IMMEUBLES COLLECTIFS RÉSIDENTIELS"},{"$f":"IFERROR(VLOOKUP(D2745,Translation!$A:$C,3,FALSE),D2745)","v":"Colombie-Britannique"},{"$f":"IFERROR(VLOOKUP(E2745,Translation!$A:$C,3,FALSE),E2745)","v":89.620480208757812},{"$f":"IFERROR(VLOOKUP(F2745,Translation!$A:$C,3,FALSE),F2745)","v":"Prêts hypothécaires assurés au cours de la période selon le type de logement (%)"},{"$f":"IFERROR(VLOOKUP(G2745,Translation!$A:$C,3,FALSE),G2745)","v":"89.6"},{"$f":"IFERROR(VLOOKUP(H2745,Translation!$A:$C,3,FALSE),H2745)","v":"Colombie-Britannique"}]
[29,"Q4 2016","IMMEUBLES COLLECTIFS RÉSIDENTIELS","Colombie-Britannique",94.985337387298372,"Prêts hypothécaires assurés au cours de la période selon le type de logement (%)","95.0","Colombie-Britannique",{"$f":"IFERROR(VLOOKUP(A2748,Translation!$A:$C,3,FALSE),A2748)","v":29},{"$f":"IFERROR(VLOOKUP(B2748,Translation!$A:$C,3,FALSE),B2748)","v":"Q4 2016"},{"$f":"IFERROR(VLOOKUP(C2748,Translation!$A:$C,3,FALSE),C2748)","v":"IMMEUBLES COLLECTIFS RÉSIDENTIELS"},{"$f":"IFERROR(VLOOKUP(D2748,Translation!$A:$C,3,FALSE),D2748)","v":"Colombie-Britannique"},{"$f":"IFERROR(VLOOKUP(E2748,Translation!$A:$C,3,FALSE),E2748)","v":94.985337387298372},{"$f":"IFERROR(VLOOKUP(F2748,Translation!$A:$C,3,FALSE),F2748)","v":"Prêts hypothécaires assurés au cours de la période selon le type de logement (%)"},{"$f":"IFERROR(VLOOKUP(G2748,Translation!$A:$C,3,FALSE),G2748)","v":"95.0"},{"$f":"IFERROR(VLOOKUP(H2748,Translation!$A:$C,3,FALSE),H2748)","v":"Colombie-Britannique"}]
[29,"T1 2017","IMMEUBLES COLLECTIFS RÉSIDENTIELS","Territoires",100,"Prêts hypothécaires assurés au cours de la période selon le type de logement (%)","100.0","Territoires",{"$f":"IFERROR(VLOOKUP(A2750,Translation!$A:$C,3,FALSE),A2750)","v":29},{"$f":"IFERROR(VLOOKUP(B2750,Translation!$A:$C,3,FALSE),B2750)","v":"T1 2017"},{"$f":"IFERROR(VLOOKUP(C2750,Translation!$A:$C,3,FALSE),C2750)","v":"IMMEUBLES COLLECTIFS RÉSIDENTIELS"},{"$f":"IFERROR(VLOOKUP(D2750,Translation!$A:$C,3,FALSE),D2750)","v":"Territoires"},{"$f":"IFERROR(VLOOKUP(E2750,Translation!$A:$C,3,FALSE),E2750)","v":100},{"$f":"IFERROR(VLOOKUP(F2750,Translation!$A:$C,3,FALSE),F2750)","v":"Prêts hypothécaires assurés au cours de la période selon le type de logement (%)"},{"$f":"IFERROR(VLOOKUP(G2750,Translation!$A:$C,3,FALSE),G2750)","v":"100.0"},{"$f":"IFERROR(VLOOKUP(H2750,Translation!$A:$C,3,FALSE),H2750)","v":"Territoires"}]
[29,"Q2 2016","IMMEUBLES COLLECTIFS RÉSIDENTIELS","Territoires",100,"Prêts hypothécaires assurés au cours de la période selon le type de logement (%)","100.0","Territoires",{"$f":"IFERROR(VLOOKUP(A2751,Translation!$A:$C,3,FALSE),A2751)","v":29},{"$f":"IFERROR(VLOOKUP(B2751,Translation!$A:$C,3,FALSE),B2751)","v":"Q2 2016"},{"$f":"IFERROR(VLOOKUP(C2751,Translation!$A:$C,3,FALSE),C2751)","v":"IMMEUBLES COLLECTIFS RÉSIDENTIELS"},{"$f":"IFERROR(VLOOKUP(D2751,Translation!$A:$C,3,FALSE),D2751)","v":"Territoires"},{"$f":"IFERROR(VLOOKUP(E2751,Translation!$A:$C,3,FALSE),E2751)","v":100},{"$f":"IFERROR(VLOOKUP(F2751,Translation!$A:$C,3,FALSE),F2751)","v":"Prêts hypothécaires assurés au cours de la période selon le type de logement (%)"},{"$f":"IFERROR(VLOOKUP(G2751,Translation!$A:$C,3,FALSE),G2751)","v":"100.0"},{"$f":"IFERROR(VLOOKUP(H2751,Translation!$A:$C,3,FALSE),H2751)","v":"Territoires"}]
[29,"Q4 2016","IMMEUBLES COLLECTIFS RÉSIDENTIELS","Territoires",100,"Prêts hypothécaires assurés au cours de la période selon le type de logement (%)","100.0","Territoires",{"$f":"IFERROR(VLOOKUP(A2755,Translation!$A:$C,3,FALSE),A2755)","v":29},{"$f":"IFERROR(VLOOKUP(B2755,Translation!$A:$C,3,FALSE),B2755)","v":"Q4 2016"},{"$f":"IFERROR(VLOOKUP(C2755,Translation!$A:$C,3,FALSE),C2755)","v":"IMMEUBLES COLLECTIFS RÉSIDENTIELS"},{"$f":"IFERROR(VLOOKUP(D2755,Translation!$A:$C,3,FALSE),D2755)","v":"Territoires"},{"$f":"IFERROR(VLOOKUP(E2755,Translation!$A:$C,3,FALSE),E2755)","v":100},{"$f":"IFERROR(VLOOKUP(F2755,Translation!$A:$C,3,FALSE),F2755)","v":"Prêts hypothécaires assurés au cours de la période selon le type de logement (%)"},{"$f":"IFERROR(VLOOKUP(G2755,Translation!$A:$C,3,FALSE),G2755)","v":"100.0"},{"$f":"IFERROR(VLOOKUP(H2755,Translation!$A:$C,3,FALSE),H2755)","v":"Territoires"}]
[29,"T4 2017","IMMEUBLES COLLECTIFS RÉSIDENTIELS","Territoires",100,"Prêts hypothécaires assurés au cours de la période selon le type de logement (%)","100.0","Territoires",{"$f":"IFERROR(VLOOKUP(A2756,Translation!$A:$C,3,FALSE),A2756)","v":29},{"$f":"IFERROR(VLOOKUP(B2756,Translation!$A:$C,3,FALSE),B2756)","v":"T4 2017"},{"$f":"IFERROR(VLOOKUP(C2756,Translation!$A:$C,3,FALSE),C2756)","v":"IMMEUBLES COLLECTIFS RÉSIDENTIELS"},{"$f":"IFERROR(VLOOKUP(D2756,Translation!$A:$C,3,FALSE),D2756)","v":"Territoires"},{"$f":"IFERROR(VLOOKUP(E2756,Translation!$A:$C,3,FALSE),E2756)","v":100},{"$f":"IFERROR(VLOOKUP(F2756,Translation!$A:$C,3,FALSE),F2756)","v":"Prêts hypothécaires assurés au cours de la période selon le type de logement (%)"},{"$f":"IFERROR(VLOOKUP(G2756,Translation!$A:$C,3,FALSE),G2756)","v":"100.0"},{"$f":"IFERROR(VLOOKUP(H2756,Translation!$A:$C,3,FALSE),H2756)","v":"Territoires"}]
[20,"Cumul 2020","PROPRIÉTAIRES-OCCUPANTS, À L’UNITÉ","Neuf",12.07900255070793,"Prêts hypothécaires assurés au cours de la période selon le type neuf/existant (%)","12.1","Neuf",{"$f":"IFERROR(VLOOKUP(A2759,Translation!$A:$C,3,FALSE),A2759)","v":20},{"$f":"IFERROR(VLOOKUP(B2759,Translation!$A:$C,3,FALSE),B2759)","v":"Cumul 2020"},{"$f":"IFERROR(VLOOKUP(C2759,Translation!$A:$C,3,FALSE),C2759)","v":"PROPRIÉTAIRES-OCCUPANTS, À L’UNITÉ"},{"$f":"IFERROR(VLOOKUP(D2759,Translation!$A:$C,3,FALSE),D2759)","v":"Neuf"},{"$f":"IFERROR(VLOOKUP(E2759,Translation!$A:$C,3,FALSE),E2759)","v":12.07900255070793},{"$f":"IFERROR(VLOOKUP(F2759,Translation!$A:$C,3,FALSE),F2759)","v":"Prêts hypothécaires assurés au cours de la période selon le type neuf/existant (%)"},{"$f":"IFERROR(VLOOKUP(G2759,Translation!$A:$C,3,FALSE),G2759)","v":"12.1"},{"$f":"IFERROR(VLOOKUP(H2759,Translation!$A:$C,3,FALSE),H2759)","v":"Neuf"}]
[20,"Cumul 2019","PROPRIÉTAIRES-OCCUPANTS, À L’UNITÉ","Existant",87.539143422671387,"Prêts hypothécaires assurés au cours de la période selon le type neuf/existant (%)","87.5","Existant",{"$f":"IFERROR(VLOOKUP(A2761,Translation!$A:$C,3,FALSE),A2761)","v":20},{"$f":"IFERROR(VLOOKUP(B2761,Translation!$A:$C,3,FALSE),B2761)","v":"Cumul 2019"},{"$f":"IFERROR(VLOOKUP(C2761,Translation!$A:$C,3,FALSE),C2761)","v":"PROPRIÉTAIRES-OCCUPANTS, À L’UNITÉ"},{"$f":"IFERROR(VLOOKUP(D2761,Translation!$A:$C,3,FALSE),D2761)","v":"Existant"},{"$f":"IFERROR(VLOOKUP(E2761,Translation!$A:$C,3,FALSE),E2761)","v":87.539143422671387},{"$f":"IFERROR(VLOOKUP(F2761,Translation!$A:$C,3,FALSE),F2761)","v":"Prêts hypothécaires assurés au cours de la période selon le type neuf/existant (%)"},{"$f":"IFERROR(VLOOKUP(G2761,Translation!$A:$C,3,FALSE),G2761)","v":"87.5"},{"$f":"IFERROR(VLOOKUP(H2761,Translation!$A:$C,3,FALSE),H2761)","v":"Existant"}]
[20,"Cumul 2020","PROPRIÉTAIRES-OCCUPANTS, À L’UNITÉ","Terre-Neuve-et-Labrador",90.329372389822154,"Prêts hypothécaires assurés au cours de la période selon le type neuf/existant (%)","90.3","Terre-Neuve-et-Labrador",{"$f":"IFERROR(VLOOKUP(A2765,Translation!$A:$C,3,FALSE),A2765)","v":20},{"$f":"IFERROR(VLOOKUP(B2765,Translation!$A:$C,3,FALSE),B2765)","v":"Cumul 2020"},{"$f":"IFERROR(VLOOKUP(C2765,Translation!$A:$C,3,FALSE),C2765)","v":"PROPRIÉTAIRES-OCCUPANTS, À L’UNITÉ"},{"$f":"IFERROR(VLOOKUP(D2765,Translation!$A:$C,3,FALSE),D2765)","v":"Terre-Neuve-et-Labrador"},{"$f":"IFERROR(VLOOKUP(E2765,Translation!$A:$C,3,FALSE),E2765)","v":90.329372389822154},{"$f":"IFERROR(VLOOKUP(F2765,Translation!$A:$C,3,FALSE),F2765)","v":"Prêts hypothécaires assurés au cours de la période selon le type neuf/existant (%)"},{"$f":"IFERROR(VLOOKUP(G2765,Translation!$A:$C,3,FALSE),G2765)","v":"90.3"},{"$f":"IFERROR(VLOOKUP(H2765,Translation!$A:$C,3,FALSE),H2765)","v":"Terre-Neuve-et-Labrador"}]
[20,"T1 2020","PROPRIÉTAIRES-OCCUPANTS, À L’UNITÉ","Île-du-Prince-Édouard",84.161034091188498,"Prêts hypothécaires assurés au cours de la période selon le type neuf/existant (%)","84.2","Île-du-Prince-Édouard",{"$f":"IFERROR(VLOOKUP(A2766,Translation!$A:$C,3,FALSE),A2766)","v":20},{"$f":"IFERROR(VLOOKUP(B2766,Translation!$A:$C,3,FALSE),B2766)","v":"T1 2020"},{"$f":"IFERROR(VLOOKUP(C2766,Translation!$A:$C,3,FALSE),C2766)","v":"PROPRIÉTAIRES-OCCUPANTS, À L’UNITÉ"},{"$f":"IFERROR(VLOOKUP(D2766,Translation!$A:$C,3,FALSE),D2766)","v":"Île-du-Prince-Édouard"},{"$f":"IFERROR(VLOOKUP(E2766,Translation!$A:$C,3,FALSE),E2766)","v":84.161034091188498},{"$f":"IFERROR(VLOOKUP(F2766,Translation!$A:$C,3,FALSE),F2766)","v":"Prêts hypothécaires assurés au cours de la période selon le type neuf/existant (%)"},{"$f":"IFERROR(VLOOKUP(G2766,Translation!$A:$C,3,FALSE),G2766)","v":"84.2"},{"$f":"IFERROR(VLOOKUP(H2766,Translation!$A:$C,3,FALSE),H2766)","v":"Île-du-Prince-Édouard"}]
[20,"T1 2020","PROPRIÉTAIRES-OCCUPANTS, À L’UNITÉ","Nouvelle-Écosse",87.454951447336612,"Prêts hypothécaires assurés au cours de la période selon le type neuf/existant (%)","87.5","Nouvelle-Écosse",{"$f":"IFERROR(VLOOKUP(A2769,Translation!$A:$C,3,FALSE),A2769)","v":20},{"$f":"IFERROR(VLOOKUP(B2769,Translation!$A:$C,3,FALSE),B2769)","v":"T1 2020"},{"$f":"IFERROR(VLOOKUP(C2769,Translation!$A:$C,3,FALSE),C2769)","v":"PROPRIÉTAIRES-OCCUPANTS, À L’UNITÉ"},{"$f":"IFERROR(VLOOKUP(D2769,Translation!$A:$C,3,FALSE),D2769)","v":"Nouvelle-Écosse"},{"$f":"IFERROR(VLOOKUP(E2769,Translation!$A:$C,3,FALSE),E2769)","v":87.454951447336612},{"$f":"IFERROR(VLOOKUP(F2769,Translation!$A:$C,3,FALSE),F2769)","v":"Prêts hypothécaires assurés au cours de la période selon le type neuf/existant (%)"},{"$f":"IFERROR(VLOOKUP(G2769,Translation!$A:$C,3,FALSE),G2769)","v":"87.5"},{"$f":"IFERROR(VLOOKUP(H2769,Translation!$A:$C,3,FALSE),H2769)","v":"Nouvelle-Écosse"}]
[20,"Cumul 2019","PROPRIÉTAIRES-OCCUPANTS, À L’UNITÉ","Nouvelle-Écosse",91.694546699607045,"Prêts hypothécaires assurés au cours de la période selon le type neuf/existant (%)","91.7","Nouvelle-Écosse",{"$f":"IFERROR(VLOOKUP(A2770,Translation!$A:$C,3,FALSE),A2770)","v":20},{"$f":"IFERROR(VLOOKUP(B2770,Translation!$A:$C,3,FALSE),B2770)","v":"Cumul 2019"},{"$f":"IFERROR(VLOOKUP(C2770,Translation!$A:$C,3,FALSE),C2770)","v":"PROPRIÉTAIRES-OCCUPANTS, À L’UNITÉ"},{"$f":"IFERROR(VLOOKUP(D2770,Translation!$A:$C,3,FALSE),D2770)","v":"Nouvelle-Écosse"},{"$f":"IFERROR(VLOOKUP(E2770,Translation!$A:$C,3,FALSE),E2770)","v":91.694546699607045},{"$f":"IFERROR(VLOOKUP(F2770,Translation!$A:$C,3,FALSE),F2770)","v":"Prêts hypothécaires assurés au cours de la période selon le type neuf/existant (%)"},{"$f":"IFERROR(VLOOKUP(G2770,Translation!$A:$C,3,FALSE),G2770)","v":"91.7"},{"$f":"IFERROR(VLOOKUP(H2770,Translation!$A:$C,3,FALSE),H2770)","v":"Nouvelle-Écosse"}]
[20,"Cumul 2020","PROPRIÉTAIRES-OCCUPANTS, À L’UNITÉ","Nouveau-Brunswick",94.1108940912805,"Prêts hypothécaires assurés au cours de la période selon le type neuf/existant (%)","94.1","Nouveau-Brunswick",{"$f":"IFERROR(VLOOKUP(A2774,Translation!$A:$C,3,FALSE),A2774)","v":20},{"$f":"IFERROR(VLOOKUP(B2774,Translation!$A:$C,3,FALSE),B2774)","v":"Cumul 2020"},{"$f":"IFERROR(VLOOKUP(C2774,Translation!$A:$C,3,FALSE),C2774)","v":"PROPRIÉTAIRES-OCCUPANTS, À L’UNITÉ"},{"$f":"IFERROR(VLOOKUP(D2774,Translation!$A:$C,3,FALSE),D2774)","v":"Nouveau-Brunswick"},{"$f":"IFERROR(VLOOKUP(E2774,Translation!$A:$C,3,FALSE),E2774)","v":94.1108940912805},{"$f":"IFERROR(VLOOKUP(F2774,Translation!$A:$C,3,FALSE),F2774)","v":"Prêts hypothécaires assurés au cours de la période selon le type neuf/existant (%)"},{"$f":"IFERROR(VLOOKUP(G2774,Translation!$A:$C,3,FALSE),G2774)","v":"94.1"},{"$f":"IFERROR(VLOOKUP(H2774,Translation!$A:$C,3,FALSE),H2774)","v":"Nouveau-Brunswick"}]
[20,"Cumul 2019","PROPRIÉTAIRES-OCCUPANTS, À L’UNITÉ","Québec",89.987706423214391,"Prêts hypothécaires assurés au cours de la période selon le type neuf/existant (%)","90.0","Québec",{"$f":"IFERROR(VLOOKUP(A2776,Translation!$A:$C,3,FALSE),A2776)","v":20},{"$f":"IFERROR(VLOOKUP(B2776,Translation!$A:$C,3,FALSE),B2776)","v":"Cumul 2019"},{"$f":"IFERROR(VLOOKUP(C2776,Translation!$A:$C,3,FALSE),C2776)","v":"PROPRIÉTAIRES-OCCUPANTS, À L’UNITÉ"},{"$f":"IFERROR(VLOOKUP(D2776,Translation!$A:$C,3,FALSE),D2776)","v":"Québec"},{"$f":"IFERROR(VLOOKUP(E2776,Translation!$A:$C,3,FALSE),E2776)","v":89.987706423214391},{"$f":"IFERROR(VLOOKUP(F2776,Translation!$A:$C,3,FALSE),F2776)","v":"Prêts hypothécaires assurés au cours de la période selon le type neuf/existant (%)"},{"$f":"IFERROR(VLOOKUP(G2776,Translation!$A:$C,3,FALSE),G2776)","v":"90.0"},{"$f":"IFERROR(VLOOKUP(H2776,Translation!$A:$C,3,FALSE),H2776)","v":"Québec"}]
[20,"Cumul 2019","PROPRIÉTAIRES-OCCUPANTS, À L’UNITÉ","Ontario",91.008815274241954,"Prêts hypothécaires assurés au cours de la période selon le type neuf/existant (%)","91.0","Ontario",{"$f":"IFERROR(VLOOKUP(A2779,Translation!$A:$C,3,FALSE),A2779)","v":20},{"$f":"IFERROR(VLOOKUP(B2779,Translation!$A:$C,3,FALSE),B2779)","v":"Cumul 2019"},{"$f":"IFERROR(VLOOKUP(C2779,Translation!$A:$C,3,FALSE),C2779)","v":"PROPRIÉTAIRES-OCCUPANTS, À L’UNITÉ"},{"$f":"IFERROR(VLOOKUP(D2779,Translation!$A:$C,3,FALSE),D2779)","v":"Ontario"},{"$f":"IFERROR(VLOOKUP(E2779,Translation!$A:$C,3,FALSE),E2779)","v":91.008815274241954},{"$f":"IFERROR(VLOOKUP(F2779,Translation!$A:$C,3,FALSE),F2779)","v":"Prêts hypothécaires assurés au cours de la période selon le type neuf/existant (%)"},{"$f":"IFERROR(VLOOKUP(G2779,Translation!$A:$C,3,FALSE),G2779)","v":"91.0"},{"$f":"IFERROR(VLOOKUP(H2779,Translation!$A:$C,3,FALSE),H2779)","v":"Ontario"}]
[20,"Cumul 2020","PROPRIÉTAIRES-OCCUPANTS, À L’UNITÉ","Ontario",90.282011870999114,"Prêts hypothécaires assurés au cours de la période selon le type neuf/existant (%)","90.3","Ontario",{"$f":"IFERROR(VLOOKUP(A2780,Translation!$A:$C,3,FALSE),A2780)","v":20},{"$f":"IFERROR(VLOOKUP(B2780,Translation!$A:$C,3,FALSE),B2780)","v":"Cumul 2020"},{"$f":"IFERROR(VLOOKUP(C2780,Translation!$A:$C,3,FALSE),C2780)","v":"PROPRIÉTAIRES-OCCUPANTS, À L’UNITÉ"},{"$f":"IFERROR(VLOOKUP(D2780,Translation!$A:$C,3,FALSE),D2780)","v":"Ontario"},{"$f":"IFERROR(VLOOKUP(E2780,Translation!$A:$C,3,FALSE),E2780)","v":90.282011870999114},{"$f":"IFERROR(VLOOKUP(F2780,Translation!$A:$C,3,FALSE),F2780)","v":"Prêts hypothécaires assurés au cours de la période selon le type neuf/existant (%)"},{"$f":"IFERROR(VLOOKUP(G2780,Translation!$A:$C,3,FALSE),G2780)","v":"90.3"},{"$f":"IFERROR(VLOOKUP(H2780,Translation!$A:$C,3,FALSE),H2780)","v":"Ontario"}]
[20,"T1 2020","PROPRIÉTAIRES-OCCUPANTS, À L’UNITÉ","Saskatchewan",95.893709110286693,"Prêts hypothécaires assurés au cours de la période selon le type neuf/existant (%)","95.9","Saskatchewan",{"$f":"IFERROR(VLOOKUP(A2784,Translation!$A:$C,3,FALSE),A2784)","v":20},{"$f":"IFERROR(VLOOKUP(B2784,Translation!$A:$C,3,FALSE),B2784)","v":"T1 2020"},{"$f":"IFERROR(VLOOKUP(C2784,Translation!$A:$C,3,FALSE),C2784)","v":"PROPRIÉTAIRES-OCCUPANTS, À L’UNITÉ"},{"$f":"IFERROR(VLOOKUP(D2784,Translation!$A:$C,3,FALSE),D2784)","v":"Saskatchewan"},{"$f":"IFERROR(VLOOKUP(E2784,Translation!$A:$C,3,FALSE),E2784)","v":95.893709110286693},{"$f":"IFERROR(VLOOKUP(F2784,Translation!$A:$C,3,FALSE),F2784)","v":"Prêts hypothécaires assurés au cours de la période selon le type neuf/existant (%)"},{"$f":"IFERROR(VLOOKUP(G2784,Translation!$A:$C,3,FALSE),G2784)","v":"95.9"},{"$f":"IFERROR(VLOOKUP(H2784,Translation!$A:$C,3,FALSE),H2784)","v":"Saskatchewan"}]
[20,"Cumul 2019","PROPRIÉTAIRES-OCCUPANTS, À L’UNITÉ","Saskatchewan",86.822095390684609,"Prêts hypothécaires assurés au cours de la période selon le type neuf/existant (%)","86.8","Saskatchewan",{"$f":"IFERROR(VLOOKUP(A2785,Translation!$A:$C,3,FALSE),A2785)","v":20},{"$f":"IFERROR(VLOOKUP(B2785,Translation!$A:$C,3,FALSE),B2785)","v":"Cumul 2019"},{"$f":"IFERROR(VLOOKUP(C2785,Translation!$A:$C,3,FALSE),C2785)","v":"PROPRIÉTAIRES-OCCUPANTS, À L’UNITÉ"},{"$f":"IFERROR(VLOOKUP(D2785,Translation!$A:$C,3,FALSE),D2785)","v":"Saskatchewan"},{"$f":"IFERROR(VLOOKUP(E2785,Translation!$A:$C,3,FALSE),E2785)","v":86.822095390684609},{"$f":"IFERROR(VLOOKUP(F2785,Translation!$A:$C,3,FALSE),F2785)","v":"Prêts hypothécaires assurés au cours de la période selon le type neuf/existant (%)"},{"$f":"IFERROR(VLOOKUP(G2785,Translation!$A:$C,3,FALSE),G2785)","v":"86.8"},{"$f":"IFERROR(VLOOKUP(H2785,Translation!$A:$C,3,FALSE),H2785)","v":"Saskatchewan"}]
[20,"T1 2020","PROPRIÉTAIRES-OCCUPANTS, À L’UNITÉ","Alberta",76.436319946311244,"Prêts hypothécaires assurés au cours de la période selon le type neuf/existant (%)","76.4","Alberta",{"$f":"IFERROR(VLOOKUP(A2787,Translation!$A:$C,3,FALSE),A2787)","v":20},{"$f":"IFERROR(VLOOKUP(B2787,Translation!$A:$C,3,FALSE),B2787)","v":"T1 2020"},{"$f":"IFERROR(VLOOKUP(C2787,Translation!$A:$C,3,FALSE),C2787)","v":"PROPRIÉTAIRES-OCCUPANTS, À L’UNITÉ"},{"$f":"IFERROR(VLOOKUP(D2787,Translation!$A:$C,3,FALSE),D2787)","v":"Alberta"},{"$f":"IFERROR(VLOOKUP(E2787,Translation!$A:$C,3,FALSE),E2787)","v":76.436319946311244},{"$f":"IFERROR(VLOOKUP(F2787,Translation!$A:$C,3,FALSE),F2787)","v":"Prêts hypothécaires assurés au cours de la période selon le type neuf/existant (%)"},{"$f":"IFERROR(VLOOKUP(G2787,Translation!$A:$C,3,FALSE),G2787)","v":"76.4"},{"$f":"IFERROR(VLOOKUP(H2787,Translation!$A:$C,3,FALSE),H2787)","v":"Alberta"}]
[20,"T1 2020","PROPRIÉTAIRES-OCCUPANTS, À L’UNITÉ","Colombie-Britannique",91.910548205746522,"Prêts hypothécaires assurés au cours de la période selon le type neuf/existant (%)","91.9","Colombie-Britannique",{"$f":"IFERROR(VLOOKUP(A2790,Translation!$A:$C,3,FALSE),A2790)","v":20},{"$f":"IFERROR(VLOOKUP(B2790,Translation!$A:$C,3,FALSE),B2790)","v":"T1 2020"},{"$f":"IFERROR(VLOOKUP(C2790,Translation!$A:$C,3,FALSE),C2790)","v":"PROPRIÉTAIRES-OCCUPANTS, À L’UNITÉ"},{"$f":"IFERROR(VLOOKUP(D2790,Translation!$A:$C,3,FALSE),D2790)","v":"Colombie-Britannique"},{"$f":"IFERROR(VLOOKUP(E2790,Translation!$A:$C,3,FALSE),E2790)","v":91.910548205746522},{"$f":"IFERROR(VLOOKUP(F2790,Translation!$A:$C,3,FALSE),F2790)","v":"Prêts hypothécaires assurés au cours de la période selon le type neuf/existant (%)"},{"$f":"IFERROR(VLOOKUP(G2790,Translation!$A:$C,3,FALSE),G2790)","v":"91.9"},{"$f":"IFERROR(VLOOKUP(H2790,Translation!$A:$C,3,FALSE),H2790)","v":"Colombie-Britannique"}]
[20,"T1 2020","PROPRIÉTAIRES-OCCUPANTS, À L’UNITÉ","Territoires",95.18570592058694,"Prêts hypothécaires assurés au cours de la période selon le type neuf/existant (%)","95.2","Territoires",{"$f":"IFERROR(VLOOKUP(A2793,Translation!$A:$C,3,FALSE),A2793)","v":20},{"$f":"IFERROR(VLOOKUP(B2793,Translation!$A:$C,3,FALSE),B2793)","v":"T1 2020"},{"$f":"IFERROR(VLOOKUP(C2793,Translation!$A:$C,3,FALSE),C2793)","v":"PROPRIÉTAIRES-OCCUPANTS, À L’UNITÉ"},{"$f":"IFERROR(VLOOKUP(D2793,Translation!$A:$C,3,FALSE),D2793)","v":"Territoires"},{"$f":"IFERROR(VLOOKUP(E2793,Translation!$A:$C,3,FALSE),E2793)","v":95.18570592058694},{"$f":"IFERROR(VLOOKUP(F2793,Translation!$A:$C,3,FALSE),F2793)","v":"Prêts hypothécaires assurés au cours de la période selon le type neuf/existant (%)"},{"$f":"IFERROR(VLOOKUP(G2793,Translation!$A:$C,3,FALSE),G2793)","v":"95.2"},{"$f":"IFERROR(VLOOKUP(H2793,Translation!$A:$C,3,FALSE),H2793)","v":"Territoires"}]
[20,"Cumul 2020","PROPRIÉTAIRES-OCCUPANTS, À L’UNITÉ","Territoires",95.18570592058694,"Prêts hypothécaires assurés au cours de la période selon le type neuf/existant (%)","95.2","Territoires",{"$f":"IFERROR(VLOOKUP(A2795,Translation!$A:$C,3,FALSE),A2795)","v":20},{"$f":"IFERROR(VLOOKUP(B2795,Translation!$A:$C,3,FALSE),B2795)","v":"Cumul 2020"},{"$f":"IFERROR(VLOOKUP(C2795,Translation!$A:$C,3,FALSE),C2795)","v":"PROPRIÉTAIRES-OCCUPANTS, À L’UNITÉ"},{"$f":"IFERROR(VLOOKUP(D2795,Translation!$A:$C,3,FALSE),D2795)","v":"Territoires"},{"$f":"IFERROR(VLOOKUP(E2795,Translation!$A:$C,3,FALSE),E2795)","v":95.18570592058694},{"$f":"IFERROR(VLOOKUP(F2795,Translation!$A:$C,3,FALSE),F2795)","v":"Prêts hypothécaires assurés au cours de la période selon le type neuf/existant (%)"},{"$f":"IFERROR(VLOOKUP(G2795,Translation!$A:$C,3,FALSE),G2795)","v":"95.2"},{"$f":"IFERROR(VLOOKUP(H2795,Translation!$A:$C,3,FALSE),H2795)","v":"Territoires"}]
[31,"Cumul 2020","IMMEUBLES COLLECTIFS RÉSIDENTIELS","Neuf",18.485340947626263,"Prêts hypothécaires assurés au cours de la période selon le type neuf/existant (%)","18.5","Neuf",{"$f":"IFERROR(VLOOKUP(A2798,Translation!$A:$C,3,FALSE),A2798)","v":31},{"$f":"IFERROR(VLOOKUP(B2798,Translation!$A:$C,3,FALSE),B2798)","v":"Cumul 2020"},{"$f":"IFERROR(VLOOKUP(C2798,Translation!$A:$C,3,FALSE),C2798)","v":"IMMEUBLES COLLECTIFS RÉSIDENTIELS"},{"$f":"IFERROR(VLOOKUP(D2798,Translation!$A:$C,3,FALSE),D2798)","v":"Neuf"},{"$f":"IFERROR(VLOOKUP(E2798,Translation!$A:$C,3,FALSE),E2798)","v":18.485340947626263},{"$f":"IFERROR(VLOOKUP(F2798,Translation!$A:$C,3,FALSE),F2798)","v":"Prêts hypothécaires assurés au cours de la période selon le type neuf/existant (%)"},{"$f":"IFERROR(VLOOKUP(G2798,Translation!$A:$C,3,FALSE),G2798)","v":"18.5"},{"$f":"IFERROR(VLOOKUP(H2798,Translation!$A:$C,3,FALSE),H2798)","v":"Neuf"}]
[31,"Cumul 2020","IMMEUBLES COLLECTIFS RÉSIDENTIELS","Existant",81.514659052373744,"Prêts hypothécaires assurés au cours de la période selon le type neuf/existant (%)","81.5","Existant",{"$f":"IFERROR(VLOOKUP(A2801,Translation!$A:$C,3,FALSE),A2801)","v":31},{"$f":"IFERROR(VLOOKUP(B2801,Translation!$A:$C,3,FALSE),B2801)","v":"Cumul 2020"},{"$f":"IFERROR(VLOOKUP(C2801,Translation!$A:$C,3,FALSE),C2801)","v":"IMMEUBLES COLLECTIFS RÉSIDENTIELS"},{"$f":"IFERROR(VLOOKUP(D2801,Translation!$A:$C,3,FALSE),D2801)","v":"Existant"},{"$f":"IFERROR(VLOOKUP(E2801,Translation!$A:$C,3,FALSE),E2801)","v":81.514659052373744},{"$f":"IFERROR(VLOOKUP(F2801,Translation!$A:$C,3,FALSE),F2801)","v":"Prêts hypothécaires assurés au cours de la période selon le type neuf/existant (%)"},{"$f":"IFERROR(VLOOKUP(G2801,Translation!$A:$C,3,FALSE),G2801)","v":"81.5"},{"$f":"IFERROR(VLOOKUP(H2801,Translation!$A:$C,3,FALSE),H2801)","v":"Existant"}]
[31,"Cumul 2020","IMMEUBLES COLLECTIFS RÉSIDENTIELS","Terre-Neuve-et-Labrador",94.757824238609757,"Prêts hypothécaires assurés au cours de la période selon le type neuf/existant (%)","94.8","Terre-Neuve-et-Labrador",{"$f":"IFERROR(VLOOKUP(A2803,Translation!$A:$C,3,FALSE),A2803)","v":31},{"$f":"IFERROR(VLOOKUP(B2803,Translation!$A:$C,3,FALSE),B2803)","v":"Cumul 2020"},{"$f":"IFERROR(VLOOKUP(C2803,Translation!$A:$C,3,FALSE),C2803)","v":"IMMEUBLES COLLECTIFS RÉSIDENTIELS"},{"$f":"IFERROR(VLOOKUP(D2803,Translation!$A:$C,3,FALSE),D2803)","v":"Terre-Neuve-et-Labrador"},{"$f":"IFERROR(VLOOKUP(E2803,Translation!$A:$C,3,FALSE),E2803)","v":94.757824238609757},{"$f":"IFERROR(VLOOKUP(F2803,Translation!$A:$C,3,FALSE),F2803)","v":"Prêts hypothécaires assurés au cours de la période selon le type neuf/existant (%)"},{"$f":"IFERROR(VLOOKUP(G2803,Translation!$A:$C,3,FALSE),G2803)","v":"94.8"},{"$f":"IFERROR(VLOOKUP(H2803,Translation!$A:$C,3,FALSE),H2803)","v":"Terre-Neuve-et-Labrador"}]
[31,"Cumul 2019","IMMEUBLES COLLECTIFS RÉSIDENTIELS","Île-du-Prince-Édouard",100,"Prêts hypothécaires assurés au cours de la période selon le type neuf/existant (%)","100.0","Île-du-Prince-Édouard",{"$f":"IFERROR(VLOOKUP(A2804,Translation!$A:$C,3,FALSE),A2804)","v":31},{"$f":"IFERROR(VLOOKUP(B2804,Translation!$A:$C,3,FALSE),B2804)","v":"Cumul 2019"},{"$f":"IFERROR(VLOOKUP(C2804,Translation!$A:$C,3,FALSE),C2804)","v":"IMMEUBLES COLLECTIFS RÉSIDENTIELS"},{"$f":"IFERROR(VLOOKUP(D2804,Translation!$A:$C,3,FALSE),D2804)","v":"Île-du-Prince-Édouard"},{"$f":"IFERROR(VLOOKUP(E2804,Translation!$A:$C,3,FALSE),E2804)","v":100},{"$f":"IFERROR(VLOOKUP(F2804,Translation!$A:$C,3,FALSE),F2804)","v":"Prêts hypothécaires assurés au cours de la période selon le type neuf/existant (%)"},{"$f":"IFERROR(VLOOKUP(G2804,Translation!$A:$C,3,FALSE),G2804)","v":"100.0"},{"$f":"IFERROR(VLOOKUP(H2804,Translation!$A:$C,3,FALSE),H2804)","v":"Île-du-Prince-Édouard"}]
[31,"Cumul 2019","IMMEUBLES COLLECTIFS RÉSIDENTIELS","Nouvelle-Écosse",46.621965750616205,"Prêts hypothécaires assurés au cours de la période selon le type neuf/existant (%)","46.6","Nouvelle-Écosse",{"$f":"IFERROR(VLOOKUP(A2806,Translation!$A:$C,3,FALSE),A2806)","v":31},{"$f":"IFERROR(VLOOKUP(B2806,Translation!$A:$C,3,FALSE),B2806)","v":"Cumul 2019"},{"$f":"IFERROR(VLOOKUP(C2806,Translation!$A:$C,3,FALSE),C2806)","v":"IMMEUBLES COLLECTIFS RÉSIDENTIELS"},{"$f":"IFERROR(VLOOKUP(D2806,Translation!$A:$C,3,FALSE),D2806)","v":"Nouvelle-Écosse"},{"$f":"IFERROR(VLOOKUP(E2806,Translation!$A:$C,3,FALSE),E2806)","v":46.621965750616205},{"$f":"IFERROR(VLOOKUP(F2806,Translation!$A:$C,3,FALSE),F2806)","v":"Prêts hypothécaires assurés au cours de la période selon le type neuf/existant (%)"},{"$f":"IFERROR(VLOOKUP(G2806,Translation!$A:$C,3,FALSE),G2806)","v":"46.6"},{"$f":"IFERROR(VLOOKUP(H2806,Translation!$A:$C,3,FALSE),H2806)","v":"Nouvelle-Écosse"}]
[31,"Cumul 2019","IMMEUBLES COLLECTIFS RÉSIDENTIELS","Nouveau-Brunswick",100,"Prêts hypothécaires assurés au cours de la période selon le type neuf/existant (%)","100.0","Nouveau-Brunswick",{"$f":"IFERROR(VLOOKUP(A2809,Translation!$A:$C,3,FALSE),A2809)","v":31},{"$f":"IFERROR(VLOOKUP(B2809,Translation!$A:$C,3,FALSE),B2809)","v":"Cumul 2019"},{"$f":"IFERROR(VLOOKUP(C2809,Translation!$A:$C,3,FALSE),C2809)","v":"IMMEUBLES COLLECTIFS RÉSIDENTIELS"},{"$f":"IFERROR(VLOOKUP(D2809,Translation!$A:$C,3,FALSE),D2809)","v":"Nouveau-Brunswick"},{"$f":"IFERROR(VLOOKUP(E2809,Translation!$A:$C,3,FALSE),E2809)","v":100},{"$f":"IFERROR(VLOOKUP(F2809,Translation!$A:$C,3,FALSE),F2809)","v":"Prêts hypothécaires assurés au cours de la période selon le type neuf/existant (%)"},{"$f":"IFERROR(VLOOKUP(G2809,Translation!$A:$C,3,FALSE),G2809)","v":"100.0"},{"$f":"IFERROR(VLOOKUP(H2809,Translation!$A:$C,3,FALSE),H2809)","v":"Nouveau-Brunswick"}]
[31,"Cumul 2019","IMMEUBLES COLLECTIFS RÉSIDENTIELS","Québec",80.839136096031226,"Prêts hypothécaires assurés au cours de la période selon le type neuf/existant (%)","80.8","Québec",{"$f":"IFERROR(VLOOKUP(A2812,Translation!$A:$C,3,FALSE),A2812)","v":31},{"$f":"IFERROR(VLOOKUP(B2812,Translation!$A:$C,3,FALSE),B2812)","v":"Cumul 2019"},{"$f":"IFERROR(VLOOKUP(C2812,Translation!$A:$C,3,FALSE),C2812)","v":"IMMEUBLES COLLECTIFS RÉSIDENTIELS"},{"$f":"IFERROR(VLOOKUP(D2812,Translation!$A:$C,3,FALSE),D2812)","v":"Québec"},{"$f":"IFERROR(VLOOKUP(E2812,Translation!$A:$C,3,FALSE),E2812)","v":80.839136096031226},{"$f":"IFERROR(VLOOKUP(F2812,Translation!$A:$C,3,FALSE),F2812)","v":"Prêts hypothécaires assurés au cours de la période selon le type neuf/existant (%)"},{"$f":"IFERROR(VLOOKUP(G2812,Translation!$A:$C,3,FALSE),G2812)","v":"80.8"},{"$f":"IFERROR(VLOOKUP(H2812,Translation!$A:$C,3,FALSE),H2812)","v":"Québec"}]
[31,"T1 2020","IMMEUBLES COLLECTIFS RÉSIDENTIELS","Ontario",72.439365155741029,"Prêts hypothécaires assurés au cours de la période selon le type neuf/existant (%)","72.4","Ontario",{"$f":"IFERROR(VLOOKUP(A2814,Translation!$A:$C,3,FALSE),A2814)","v":31},{"$f":"IFERROR(VLOOKUP(B2814,Translation!$A:$C,3,FALSE),B2814)","v":"T1 2020"},{"$f":"IFERROR(VLOOKUP(C2814,Translation!$A:$C,3,FALSE),C2814)","v":"IMMEUBLES COLLECTIFS RÉSIDENTIELS"},{"$f":"IFERROR(VLOOKUP(D2814,Translation!$A:$C,3,FALSE),D2814)","v":"Ontario"},{"$f":"IFERROR(VLOOKUP(E2814,Translation!$A:$C,3,FALSE),E2814)","v":72.439365155741029},{"$f":"IFERROR(VLOOKUP(F2814,Translation!$A:$C,3,FALSE),F2814)","v":"Prêts hypothécaires assurés au cours de la période selon le type neuf/existant (%)"},{"$f":"IFERROR(VLOOKUP(G2814,Translation!$A:$C,3,FALSE),G2814)","v":"72.4"},{"$f":"IFERROR(VLOOKUP(H2814,Translation!$A:$C,3,FALSE),H2814)","v":"Ontario"}]
[31,"T1 2020","IMMEUBLES COLLECTIFS RÉSIDENTIELS","Manitoba",64.31061835009649,"Prêts hypothécaires assurés au cours de la période selon le type neuf/existant (%)","64.3","Manitoba",{"$f":"IFERROR(VLOOKUP(A2817,Translation!$A:$C,3,FALSE),A2817)","v":31},{"$f":"IFERROR(VLOOKUP(B2817,Translation!$A:$C,3,FALSE),B2817)","v":"T1 2020"},{"$f":"IFERROR(VLOOKUP(C2817,Translation!$A:$C,3,FALSE),C2817)","v":"IMMEUBLES COLLECTIFS RÉSIDENTIELS"},{"$f":"IFERROR(VLOOKUP(D2817,Translation!$A:$C,3,FALSE),D2817)","v":"Manitoba"},{"$f":"IFERROR(VLOOKUP(E2817,Translation!$A:$C,3,FALSE),E2817)","v":64.31061835009649},{"$f":"IFERROR(VLOOKUP(F2817,Translation!$A:$C,3,FALSE),F2817)","v":"Prêts hypothécaires assurés au cours de la période selon le type neuf/existant (%)"},{"$f":"IFERROR(VLOOKUP(G2817,Translation!$A:$C,3,FALSE),G2817)","v":"64.3"},{"$f":"IFERROR(VLOOKUP(H2817,Translation!$A:$C,3,FALSE),H2817)","v":"Manitoba"}]
[31,"T1 2020","IMMEUBLES COLLECTIFS RÉSIDENTIELS","Saskatchewan",100,"Prêts hypothécaires assurés au cours de la période selon le type neuf/existant (%)","100.0","Saskatchewan",{"$f":"IFERROR(VLOOKUP(A2820,Translation!$A:$C,3,FALSE),A2820)","v":31},{"$f":"IFERROR(VLOOKUP(B2820,Translation!$A:$C,3,FALSE),B2820)","v":"T1 2020"},{"$f":"IFERROR(VLOOKUP(C2820,Translation!$A:$C,3,FALSE),C2820)","v":"IMMEUBLES COLLECTIFS RÉSIDENTIELS"},{"$f":"IFERROR(VLOOKUP(D2820,Translation!$A:$C,3,FALSE),D2820)","v":"Saskatchewan"},{"$f":"IFERROR(VLOOKUP(E2820,Translation!$A:$C,3,FALSE),E2820)","v":100},{"$f":"IFERROR(VLOOKUP(F2820,Translation!$A:$C,3,FALSE),F2820)","v":"Prêts hypothécaires assurés au cours de la période selon le type neuf/existant (%)"},{"$f":"IFERROR(VLOOKUP(G2820,Translation!$A:$C,3,FALSE),G2820)","v":"100.0"},{"$f":"IFERROR(VLOOKUP(H2820,Translation!$A:$C,3,FALSE),H2820)","v":"Saskatchewan"}]
[31,"Cumul 2020","IMMEUBLES COLLECTIFS RÉSIDENTIELS","Saskatchewan",100,"Prêts hypothécaires assurés au cours de la période selon le type neuf/existant (%)","100.0","Saskatchewan",{"$f":"IFERROR(VLOOKUP(A2822,Translation!$A:$C,3,FALSE),A2822)","v":31},{"$f":"IFERROR(VLOOKUP(B2822,Translation!$A:$C,3,FALSE),B2822)","v":"Cumul 2020"},{"$f":"IFERROR(VLOOKUP(C2822,Translation!$A:$C,3,FALSE),C2822)","v":"IMMEUBLES COLLECTIFS RÉSIDENTIELS"},{"$f":"IFERROR(VLOOKUP(D2822,Translation!$A:$C,3,FALSE),D2822)","v":"Saskatchewan"},{"$f":"IFERROR(VLOOKUP(E2822,Translation!$A:$C,3,FALSE),E2822)","v":100},{"$f":"IFERROR(VLOOKUP(F2822,Translation!$A:$C,3,FALSE),F2822)","v":"Prêts hypothécaires assurés au cours de la période selon le type neuf/existant (%)"},{"$f":"IFERROR(VLOOKUP(G2822,Translation!$A:$C,3,FALSE),G2822)","v":"100.0"},{"$f":"IFERROR(VLOOKUP(H2822,Translation!$A:$C,3,FALSE),H2822)","v":"Saskatchewan"}]
[31,"T1 2020","IMMEUBLES COLLECTIFS RÉSIDENTIELS","Alberta",85.460146085523306,"Prêts hypothécaires assurés au cours de la période selon le type neuf/existant (%)","85.5","Alberta",{"$f":"IFERROR(VLOOKUP(A2823,Translation!$A:$C,3,FALSE),A2823)","v":31},{"$f":"IFERROR(VLOOKUP(B2823,Translation!$A:$C,3,FALSE),B2823)","v":"T1 2020"},{"$f":"IFERROR(VLOOKUP(C2823,Translation!$A:$C,3,FALSE),C2823)","v":"IMMEUBLES COLLECTIFS RÉSIDENTIELS"},{"$f":"IFERROR(VLOOKUP(D2823,Translation!$A:$C,3,FALSE),D2823)","v":"Alberta"},{"$f":"IFERROR(VLOOKUP(E2823,Translation!$A:$C,3,FALSE),E2823)","v":85.460146085523306},{"$f":"IFERROR(VLOOKUP(F2823,Translation!$A:$C,3,FALSE),F2823)","v":"Prêts hypothécaires assurés au cours de la période selon le type neuf/existant (%)"},{"$f":"IFERROR(VLOOKUP(G2823,Translation!$A:$C,3,FALSE),G2823)","v":"85.5"},{"$f":"IFERROR(VLOOKUP(H2823,Translation!$A:$C,3,FALSE),H2823)","v":"Alberta"}]
[31,"Cumul 2019","IMMEUBLES COLLECTIFS RÉSIDENTIELS","Colombie-Britannique",85.334539905027484,"Prêts hypothécaires assurés au cours de la période selon le type neuf/existant (%)","85.3","Colombie-Britannique",{"$f":"IFERROR(VLOOKUP(A2827,Translation!$A:$C,3,FALSE),A2827)","v":31},{"$f":"IFERROR(VLOOKUP(B2827,Translation!$A:$C,3,FALSE),B2827)","v":"Cumul 2019"},{"$f":"IFERROR(VLOOKUP(C2827,Translation!$A:$C,3,FALSE),C2827)","v":"IMMEUBLES COLLECTIFS RÉSIDENTIELS"},{"$f":"IFERROR(VLOOKUP(D2827,Translation!$A:$C,3,FALSE),D2827)","v":"Colombie-Britannique"},{"$f":"IFERROR(VLOOKUP(E2827,Translation!$A:$C,3,FALSE),E2827)","v":85.334539905027484},{"$f":"IFERROR(VLOOKUP(F2827,Translation!$A:$C,3,FALSE),F2827)","v":"Prêts hypothécaires assurés au cours de la période selon le type neuf/existant (%)"},{"$f":"IFERROR(VLOOKUP(G2827,Translation!$A:$C,3,FALSE),G2827)","v":"85.3"},{"$f":"IFERROR(VLOOKUP(H2827,Translation!$A:$C,3,FALSE),H2827)","v":"Colombie-Britannique"}]
[31,"Cumul 2020","IMMEUBLES COLLECTIFS RÉSIDENTIELS","Colombie-Britannique",96.261511640082574,"Prêts hypothécaires assurés au cours de la période selon le type neuf/existant (%)","96.3","Colombie-Britannique",{"$f":"IFERROR(VLOOKUP(A2828,Translation!$A:$C,3,FALSE),A2828)","v":31},{"$f":"IFERROR(VLOOKUP(B2828,Translation!$A:$C,3,FALSE),B2828)","v":"Cumul 2020"},{"$f":"IFERROR(VLOOKUP(C2828,Translation!$A:$C,3,FALSE),C2828)","v":"IMMEUBLES COLLECTIFS RÉSIDENTIELS"},{"$f":"IFERROR(VLOOKUP(D2828,Translation!$A:$C,3,FALSE),D2828)","v":"Colombie-Britannique"},{"$f":"IFERROR(VLOOKUP(E2828,Translation!$A:$C,3,FALSE),E2828)","v":96.261511640082574},{"$f":"IFERROR(VLOOKUP(F2828,Translation!$A:$C,3,FALSE),F2828)","v":"Prêts hypothécaires assurés au cours de la période selon le type neuf/existant (%)"},{"$f":"IFERROR(VLOOKUP(G2828,Translation!$A:$C,3,FALSE),G2828)","v":"96.3"},{"$f":"IFERROR(VLOOKUP(H2828,Translation!$A:$C,3,FALSE),H2828)","v":"Colombie-Britannique"}]
[20,"Cumul 2018","PROPRIÉTAIRES-OCCUPANTS, À L’UNITÉ","Neuf",12.175074557236025,"Prêts hypothécaires assurés au cours de la période selon le type neuf/existant (%)","12.2","Neuf",{"$f":"IFERROR(VLOOKUP(A2831,Translation!$A:$C,3,FALSE),A2831)","v":20},{"$f":"IFERROR(VLOOKUP(B2831,Translation!$A:$C,3,FALSE),B2831)","v":"Cumul 2018"},{"$f":"IFERROR(VLOOKUP(C2831,Translation!$A:$C,3,FALSE),C2831)","v":"PROPRIÉTAIRES-OCCUPANTS, À L’UNITÉ"},{"$f":"IFERROR(VLOOKUP(D2831,Translation!$A:$C,3,FALSE),D2831)","v":"Neuf"},{"$f":"IFERROR(VLOOKUP(E2831,Translation!$A:$C,3,FALSE),E2831)","v":12.175074557236025},{"$f":"IFERROR(VLOOKUP(F2831,Translation!$A:$C,3,FALSE),F2831)","v":"Prêts hypothécaires assurés au cours de la période selon le type neuf/existant (%)"},{"$f":"IFERROR(VLOOKUP(G2831,Translation!$A:$C,3,FALSE),G2831)","v":"12.2"},{"$f":"IFERROR(VLOOKUP(H2831,Translation!$A:$C,3,FALSE),H2831)","v":"Neuf"}]
[20,"Cumul 2018","PROPRIÉTAIRES-OCCUPANTS, À L’UNITÉ","Existant",87.824925442763984,"Prêts hypothécaires assurés au cours de la période selon le type neuf/existant (%)","87.8","Existant",{"$f":"IFERROR(VLOOKUP(A2833,Translation!$A:$C,3,FALSE),A2833)","v":20},{"$f":"IFERROR(VLOOKUP(B2833,Translation!$A:$C,3,FALSE),B2833)","v":"Cumul 2018"},{"$f":"IFERROR(VLOOKUP(C2833,Translation!$A:$C,3,FALSE),C2833)","v":"PROPRIÉTAIRES-OCCUPANTS, À L’UNITÉ"},{"$f":"IFERROR(VLOOKUP(D2833,Translation!$A:$C,3,FALSE),D2833)","v":"Existant"},{"$f":"IFERROR(VLOOKUP(E2833,Translation!$A:$C,3,FALSE),E2833)","v":87.824925442763984},{"$f":"IFERROR(VLOOKUP(F2833,Translation!$A:$C,3,FALSE),F2833)","v":"Prêts hypothécaires assurés au cours de la période selon le type neuf/existant (%)"},{"$f":"IFERROR(VLOOKUP(G2833,Translation!$A:$C,3,FALSE),G2833)","v":"87.8"},{"$f":"IFERROR(VLOOKUP(H2833,Translation!$A:$C,3,FALSE),H2833)","v":"Existant"}]
[20,"T4 2019","PROPRIÉTAIRES-OCCUPANTS, À L’UNITÉ","Île-du-Prince-Édouard",77.313195833072285,"Prêts hypothécaires assurés au cours de la période selon le type neuf/existant (%)","77.3","Île-du-Prince-Édouard",{"$f":"IFERROR(VLOOKUP(A2836,Translation!$A:$C,3,FALSE),A2836)","v":20},{"$f":"IFERROR(VLOOKUP(B2836,Translation!$A:$C,3,FALSE),B2836)","v":"T4 2019"},{"$f":"IFERROR(VLOOKUP(C2836,Translation!$A:$C,3,FALSE),C2836)","v":"PROPRIÉTAIRES-OCCUPANTS, À L’UNITÉ"},{"$f":"IFERROR(VLOOKUP(D2836,Translation!$A:$C,3,FALSE),D2836)","v":"Île-du-Prince-Édouard"},{"$f":"IFERROR(VLOOKUP(E2836,Translation!$A:$C,3,FALSE),E2836)","v":77.313195833072285},{"$f":"IFERROR(VLOOKUP(F2836,Translation!$A:$C,3,FALSE),F2836)","v":"Prêts hypothécaires assurés au cours de la période selon le type neuf/existant (%)"},{"$f":"IFERROR(VLOOKUP(G2836,Translation!$A:$C,3,FALSE),G2836)","v":"77.3"},{"$f":"IFERROR(VLOOKUP(H2836,Translation!$A:$C,3,FALSE),H2836)","v":"Île-du-Prince-Édouard"}]
[20,"T4 2019","PROPRIÉTAIRES-OCCUPANTS, À L’UNITÉ","Nouvelle-Écosse",85.136648470070384,"Prêts hypothécaires assurés au cours de la période selon le type neuf/existant (%)","85.1","Nouvelle-Écosse",{"$f":"IFERROR(VLOOKUP(A2838,Translation!$A:$C,3,FALSE),A2838)","v":20},{"$f":"IFERROR(VLOOKUP(B2838,Translation!$A:$C,3,FALSE),B2838)","v":"T4 2019"},{"$f":"IFERROR(VLOOKUP(C2838,Translation!$A:$C,3,FALSE),C2838)","v":"PROPRIÉTAIRES-OCCUPANTS, À L’UNITÉ"},{"$f":"IFERROR(VLOOKUP(D2838,Translation!$A:$C,3,FALSE),D2838)","v":"Nouvelle-Écosse"},{"$f":"IFERROR(VLOOKUP(E2838,Translation!$A:$C,3,FALSE),E2838)","v":85.136648470070384},{"$f":"IFERROR(VLOOKUP(F2838,Translation!$A:$C,3,FALSE),F2838)","v":"Prêts hypothécaires assurés au cours de la période selon le type neuf/existant (%)"},{"$f":"IFERROR(VLOOKUP(G2838,Translation!$A:$C,3,FALSE),G2838)","v":"85.1"},{"$f":"IFERROR(VLOOKUP(H2838,Translation!$A:$C,3,FALSE),H2838)","v":"Nouvelle-Écosse"}]
[20,"Cumul 2018","PROPRIÉTAIRES-OCCUPANTS, À L’UNITÉ","Nouveau-Brunswick",90.080400163353133,"Prêts hypothécaires assurés au cours de la période selon le type neuf/existant (%)","90.1","Nouveau-Brunswick",{"$f":"IFERROR(VLOOKUP(A2841,Translation!$A:$C,3,FALSE),A2841)","v":20},{"$f":"IFERROR(VLOOKUP(B2841,Translation!$A:$C,3,FALSE),B2841)","v":"Cumul 2018"},{"$f":"IFERROR(VLOOKUP(C2841,Translation!$A:$C,3,FALSE),C2841)","v":"PROPRIÉTAIRES-OCCUPANTS, À L’UNITÉ"},{"$f":"IFERROR(VLOOKUP(D2841,Translation!$A:$C,3,FALSE),D2841)","v":"Nouveau-Brunswick"},{"$f":"IFERROR(VLOOKUP(E2841,Translation!$A:$C,3,FALSE),E2841)","v":90.080400163353133},{"$f":"IFERROR(VLOOKUP(F2841,Translation!$A:$C,3,FALSE),F2841)","v":"Prêts hypothécaires assurés au cours de la période selon le type neuf/existant (%)"},{"$f":"IFERROR(VLOOKUP(G2841,Translation!$A:$C,3,FALSE),G2841)","v":"90.1"},{"$f":"IFERROR(VLOOKUP(H2841,Translation!$A:$C,3,FALSE),H2841)","v":"Nouveau-Brunswick"}]
[20,"T4 2019","PROPRIÉTAIRES-OCCUPANTS, À L’UNITÉ","Québec",87.264962157389647,"Prêts hypothécaires assurés au cours de la période selon le type neuf/existant (%)","87.3","Québec",{"$f":"IFERROR(VLOOKUP(A2842,Translation!$A:$C,3,FALSE),A2842)","v":20},{"$f":"IFERROR(VLOOKUP(B2842,Translation!$A:$C,3,FALSE),B2842)","v":"T4 2019"},{"$f":"IFERROR(VLOOKUP(C2842,Translation!$A:$C,3,FALSE),C2842)","v":"PROPRIÉTAIRES-OCCUPANTS, À L’UNITÉ"},{"$f":"IFERROR(VLOOKUP(D2842,Translation!$A:$C,3,FALSE),D2842)","v":"Québec"},{"$f":"IFERROR(VLOOKUP(E2842,Translation!$A:$C,3,FALSE),E2842)","v":87.264962157389647},{"$f":"IFERROR(VLOOKUP(F2842,Translation!$A:$C,3,FALSE),F2842)","v":"Prêts hypothécaires assurés au cours de la période selon le type neuf/existant (%)"},{"$f":"IFERROR(VLOOKUP(G2842,Translation!$A:$C,3,FALSE),G2842)","v":"87.3"},{"$f":"IFERROR(VLOOKUP(H2842,Translation!$A:$C,3,FALSE),H2842)","v":"Québec"}]
[20,"T4 2019","PROPRIÉTAIRES-OCCUPANTS, À L’UNITÉ","Manitoba",83.766154341968985,"Prêts hypothécaires assurés au cours de la période selon le type neuf/existant (%)","83.8","Manitoba",{"$f":"IFERROR(VLOOKUP(A2846,Translation!$A:$C,3,FALSE),A2846)","v":20},{"$f":"IFERROR(VLOOKUP(B2846,Translation!$A:$C,3,FALSE),B2846)","v":"T4 2019"},{"$f":"IFERROR(VLOOKUP(C2846,Translation!$A:$C,3,FALSE),C2846)","v":"PROPRIÉTAIRES-OCCUPANTS, À L’UNITÉ"},{"$f":"IFERROR(VLOOKUP(D2846,Translation!$A:$C,3,FALSE),D2846)","v":"Manitoba"},{"$f":"IFERROR(VLOOKUP(E2846,Translation!$A:$C,3,FALSE),E2846)","v":83.766154341968985},{"$f":"IFERROR(VLOOKUP(F2846,Translation!$A:$C,3,FALSE),F2846)","v":"Prêts hypothécaires assurés au cours de la période selon le type neuf/existant (%)"},{"$f":"IFERROR(VLOOKUP(G2846,Translation!$A:$C,3,FALSE),G2846)","v":"83.8"},{"$f":"IFERROR(VLOOKUP(H2846,Translation!$A:$C,3,FALSE),H2846)","v":"Manitoba"}]
[20,"Cumul 2018","PROPRIÉTAIRES-OCCUPANTS, À L’UNITÉ","Manitoba",84.986046209045597,"Prêts hypothécaires assurés au cours de la période selon le type neuf/existant (%)","85.0","Manitoba",{"$f":"IFERROR(VLOOKUP(A2847,Translation!$A:$C,3,FALSE),A2847)","v":20},{"$f":"IFERROR(VLOOKUP(B2847,Translation!$A:$C,3,FALSE),B2847)","v":"Cumul 2018"},{"$f":"IFERROR(VLOOKUP(C2847,Translation!$A:$C,3,FALSE),C2847)","v":"PROPRIÉTAIRES-OCCUPANTS, À L’UNITÉ"},{"$f":"IFERROR(VLOOKUP(D2847,Translation!$A:$C,3,FALSE),D2847)","v":"Manitoba"},{"$f":"IFERROR(VLOOKUP(E2847,Translation!$A:$C,3,FALSE),E2847)","v":84.986046209045597},{"$f":"IFERROR(VLOOKUP(F2847,Translation!$A:$C,3,FALSE),F2847)","v":"Prêts hypothécaires assurés au cours de la période selon le type neuf/existant (%)"},{"$f":"IFERROR(VLOOKUP(G2847,Translation!$A:$C,3,FALSE),G2847)","v":"85.0"},{"$f":"IFERROR(VLOOKUP(H2847,Translation!$A:$C,3,FALSE),H2847)","v":"Manitoba"}]
[20,"Cumul 2018","PROPRIÉTAIRES-OCCUPANTS, À L’UNITÉ","Alberta",79.423786125752059,"Prêts hypothécaires assurés au cours de la période selon le type neuf/existant (%)","79.4","Alberta",{"$f":"IFERROR(VLOOKUP(A2851,Translation!$A:$C,3,FALSE),A2851)","v":20},{"$f":"IFERROR(VLOOKUP(B2851,Translation!$A:$C,3,FALSE),B2851)","v":"Cumul 2018"},{"$f":"IFERROR(VLOOKUP(C2851,Translation!$A:$C,3,FALSE),C2851)","v":"PROPRIÉTAIRES-OCCUPANTS, À L’UNITÉ"},{"$f":"IFERROR(VLOOKUP(D2851,Translation!$A:$C,3,FALSE),D2851)","v":"Alberta"},{"$f":"IFERROR(VLOOKUP(E2851,Translation!$A:$C,3,FALSE),E2851)","v":79.423786125752059},{"$f":"IFERROR(VLOOKUP(F2851,Translation!$A:$C,3,FALSE),F2851)","v":"Prêts hypothécaires assurés au cours de la période selon le type neuf/existant (%)"},{"$f":"IFERROR(VLOOKUP(G2851,Translation!$A:$C,3,FALSE),G2851)","v":"79.4"},{"$f":"IFERROR(VLOOKUP(H2851,Translation!$A:$C,3,FALSE),H2851)","v":"Alberta"}]
[20,"T4 2019","PROPRIÉTAIRES-OCCUPANTS, À L’UNITÉ","Colombie-Britannique",90.678301412500176,"Prêts hypothécaires assurés au cours de la période selon le type neuf/existant (%)","90.7","Colombie-Britannique",{"$f":"IFERROR(VLOOKUP(A2852,Translation!$A:$C,3,FALSE),A2852)","v":20},{"$f":"IFERROR(VLOOKUP(B2852,Translation!$A:$C,3,FALSE),B2852)","v":"T4 2019"},{"$f":"IFERROR(VLOOKUP(C2852,Translation!$A:$C,3,FALSE),C2852)","v":"PROPRIÉTAIRES-OCCUPANTS, À L’UNITÉ"},{"$f":"IFERROR(VLOOKUP(D2852,Translation!$A:$C,3,FALSE),D2852)","v":"Colombie-Britannique"},{"$f":"IFERROR(VLOOKUP(E2852,Translation!$A:$C,3,FALSE),E2852)","v":90.678301412500176},{"$f":"IFERROR(VLOOKUP(F2852,Translation!$A:$C,3,FALSE),F2852)","v":"Prêts hypothécaires assurés au cours de la période selon le type neuf/existant (%)"},{"$f":"IFERROR(VLOOKUP(G2852,Translation!$A:$C,3,FALSE),G2852)","v":"90.7"},{"$f":"IFERROR(VLOOKUP(H2852,Translation!$A:$C,3,FALSE),H2852)","v":"Colombie-Britannique"}]
[20,"Cumul 2018","PROPRIÉTAIRES-OCCUPANTS, À L’UNITÉ","Territoires",91.652149291312384,"Prêts hypothécaires assurés au cours de la période selon le type neuf/existant (%)","91.7","Territoires",{"$f":"IFERROR(VLOOKUP(A2855,Translation!$A:$C,3,FALSE),A2855)","v":20},{"$f":"IFERROR(VLOOKUP(B2855,Translation!$A:$C,3,FALSE),B2855)","v":"Cumul 2018"},{"$f":"IFERROR(VLOOKUP(C2855,Translation!$A:$C,3,FALSE),C2855)","v":"PROPRIÉTAIRES-OCCUPANTS, À L’UNITÉ"},{"$f":"IFERROR(VLOOKUP(D2855,Translation!$A:$C,3,FALSE),D2855)","v":"Territoires"},{"$f":"IFERROR(VLOOKUP(E2855,Translation!$A:$C,3,FALSE),E2855)","v":91.652149291312384},{"$f":"IFERROR(VLOOKUP(F2855,Translation!$A:$C,3,FALSE),F2855)","v":"Prêts hypothécaires assurés au cours de la période selon le type neuf/existant (%)"},{"$f":"IFERROR(VLOOKUP(G2855,Translation!$A:$C,3,FALSE),G2855)","v":"91.7"},{"$f":"IFERROR(VLOOKUP(H2855,Translation!$A:$C,3,FALSE),H2855)","v":"Territoires"}]
[31,"Cumul 2018","IMMEUBLES COLLECTIFS RÉSIDENTIELS","Neuf",20.905904466597789,"Prêts hypothécaires assurés au cours de la période selon le type neuf/existant (%)","20.9","Neuf",{"$f":"IFERROR(VLOOKUP(A2857,Translation!$A:$C,3,FALSE),A2857)","v":31},{"$f":"IFERROR(VLOOKUP(B2857,Translation!$A:$C,3,FALSE),B2857)","v":"Cumul 2018"},{"$f":"IFERROR(VLOOKUP(C2857,Translation!$A:$C,3,FALSE),C2857)","v":"IMMEUBLES COLLECTIFS RÉSIDENTIELS"},{"$f":"IFERROR(VLOOKUP(D2857,Translation!$A:$C,3,FALSE),D2857)","v":"Neuf"},{"$f":"IFERROR(VLOOKUP(E2857,Translation!$A:$C,3,FALSE),E2857)","v":20.905904466597789},{"$f":"IFERROR(VLOOKUP(F2857,Translation!$A:$C,3,FALSE),F2857)","v":"Prêts hypothécaires assurés au cours de la période selon le type neuf/existant (%)"},{"$f":"IFERROR(VLOOKUP(G2857,Translation!$A:$C,3,FALSE),G2857)","v":"20.9"},{"$f":"IFERROR(VLOOKUP(H2857,Translation!$A:$C,3,FALSE),H2857)","v":"Neuf"}]
[31,"Cumul 2018","IMMEUBLES COLLECTIFS RÉSIDENTIELS","Terre-Neuve-et-Labrador",34.432960666050072,"Prêts hypothécaires assurés au cours de la période selon le type neuf/existant (%)","34.4","Terre-Neuve-et-Labrador",{"$f":"IFERROR(VLOOKUP(A2861,Translation!$A:$C,3,FALSE),A2861)","v":31},{"$f":"IFERROR(VLOOKUP(B2861,Translation!$A:$C,3,FALSE),B2861)","v":"Cumul 2018"},{"$f":"IFERROR(VLOOKUP(C2861,Translation!$A:$C,3,FALSE),C2861)","v":"IMMEUBLES COLLECTIFS RÉSIDENTIELS"},{"$f":"IFERROR(VLOOKUP(D2861,Translation!$A:$C,3,FALSE),D2861)","v":"Terre-Neuve-et-Labrador"},{"$f":"IFERROR(VLOOKUP(E2861,Translation!$A:$C,3,FALSE),E2861)","v":34.432960666050072},{"$f":"IFERROR(VLOOKUP(F2861,Translation!$A:$C,3,FALSE),F2861)","v":"Prêts hypothécaires assurés au cours de la période selon le type neuf/existant (%)"},{"$f":"IFERROR(VLOOKUP(G2861,Translation!$A:$C,3,FALSE),G2861)","v":"34.4"},{"$f":"IFERROR(VLOOKUP(H2861,Translation!$A:$C,3,FALSE),H2861)","v":"Terre-Neuve-et-Labrador"}]
[31,"Cumul 2018","IMMEUBLES COLLECTIFS RÉSIDENTIELS","Île-du-Prince-Édouard",87.240985043113099,"Prêts hypothécaires assurés au cours de la période selon le type neuf/existant (%)","87.2","Île-du-Prince-Édouard",{"$f":"IFERROR(VLOOKUP(A2862,Translation!$A:$C,3,FALSE),A2862)","v":31},{"$f":"IFERROR(VLOOKUP(B2862,Translation!$A:$C,3,FALSE),B2862)","v":"Cumul 2018"},{"$f":"IFERROR(VLOOKUP(C2862,Translation!$A:$C,3,FALSE),C2862)","v":"IMMEUBLES COLLECTIFS RÉSIDENTIELS"},{"$f":"IFERROR(VLOOKUP(D2862,Translation!$A:$C,3,FALSE),D2862)","v":"Île-du-Prince-Édouard"},{"$f":"IFERROR(VLOOKUP(E2862,Translation!$A:$C,3,FALSE),E2862)","v":87.240985043113099},{"$f":"IFERROR(VLOOKUP(F2862,Translation!$A:$C,3,FALSE),F2862)","v":"Prêts hypothécaires assurés au cours de la période selon le type neuf/existant (%)"},{"$f":"IFERROR(VLOOKUP(G2862,Translation!$A:$C,3,FALSE),G2862)","v":"87.2"},{"$f":"IFERROR(VLOOKUP(H2862,Translation!$A:$C,3,FALSE),H2862)","v":"Île-du-Prince-Édouard"}]
[31,"T4 2019","IMMEUBLES COLLECTIFS RÉSIDENTIELS","Nouveau-Brunswick",74.55639197592302,"Prêts hypothécaires assurés au cours de la période selon le type neuf/existant (%)","74.6","Nouveau-Brunswick",{"$f":"IFERROR(VLOOKUP(A2865,Translation!$A:$C,3,FALSE),A2865)","v":31},{"$f":"IFERROR(VLOOKUP(B2865,Translation!$A:$C,3,FALSE),B2865)","v":"T4 2019"},{"$f":"IFERROR(VLOOKUP(C2865,Translation!$A:$C,3,FALSE),C2865)","v":"IMMEUBLES COLLECTIFS RÉSIDENTIELS"},{"$f":"IFERROR(VLOOKUP(D2865,Translation!$A:$C,3,FALSE),D2865)","v":"Nouveau-Brunswick"},{"$f":"IFERROR(VLOOKUP(E2865,Translation!$A:$C,3,FALSE),E2865)","v":74.55639197592302},{"$f":"IFERROR(VLOOKUP(F2865,Translation!$A:$C,3,FALSE),F2865)","v":"Prêts hypothécaires assurés au cours de la période selon le type neuf/existant (%)"},{"$f":"IFERROR(VLOOKUP(G2865,Translation!$A:$C,3,FALSE),G2865)","v":"74.6"},{"$f":"IFERROR(VLOOKUP(H2865,Translation!$A:$C,3,FALSE),H2865)","v":"Nouveau-Brunswick"}]
[31,"Cumul 2018","IMMEUBLES COLLECTIFS RÉSIDENTIELS","Nouveau-Brunswick",69.617032069096723,"Prêts hypothécaires assurés au cours de la période selon le type neuf/existant (%)","69.6","Nouveau-Brunswick",{"$f":"IFERROR(VLOOKUP(A2866,Translation!$A:$C,3,FALSE),A2866)","v":31},{"$f":"IFERROR(VLOOKUP(B2866,Translation!$A:$C,3,FALSE),B2866)","v":"Cumul 2018"},{"$f":"IFERROR(VLOOKUP(C2866,Translation!$A:$C,3,FALSE),C2866)","v":"IMMEUBLES COLLECTIFS RÉSIDENTIELS"},{"$f":"IFERROR(VLOOKUP(D2866,Translation!$A:$C,3,FALSE),D2866)","v":"Nouveau-Brunswick"},{"$f":"IFERROR(VLOOKUP(E2866,Translation!$A:$C,3,FALSE),E2866)","v":69.617032069096723},{"$f":"IFERROR(VLOOKUP(F2866,Translation!$A:$C,3,FALSE),F2866)","v":"Prêts hypothécaires assurés au cours de la période selon le type neuf/existant (%)"},{"$f":"IFERROR(VLOOKUP(G2866,Translation!$A:$C,3,FALSE),G2866)","v":"69.6"},{"$f":"IFERROR(VLOOKUP(H2866,Translation!$A:$C,3,FALSE),H2866)","v":"Nouveau-Brunswick"}]
[31,"Cumul 2018","IMMEUBLES COLLECTIFS RÉSIDENTIELS","Ontario",81.893609782123931,"Prêts hypothécaires assurés au cours de la période selon le type neuf/existant (%)","81.9","Ontario",{"$f":"IFERROR(VLOOKUP(A2870,Translation!$A:$C,3,FALSE),A2870)","v":31},{"$f":"IFERROR(VLOOKUP(B2870,Translation!$A:$C,3,FALSE),B2870)","v":"Cumul 2018"},{"$f":"IFERROR(VLOOKUP(C2870,Translation!$A:$C,3,FALSE),C2870)","v":"IMMEUBLES COLLECTIFS RÉSIDENTIELS"},{"$f":"IFERROR(VLOOKUP(D2870,Translation!$A:$C,3,FALSE),D2870)","v":"Ontario"},{"$f":"IFERROR(VLOOKUP(E2870,Translation!$A:$C,3,FALSE),E2870)","v":81.893609782123931},{"$f":"IFERROR(VLOOKUP(F2870,Translation!$A:$C,3,FALSE),F2870)","v":"Prêts hypothécaires assurés au cours de la période selon le type neuf/existant (%)"},{"$f":"IFERROR(VLOOKUP(G2870,Translation!$A:$C,3,FALSE),G2870)","v":"81.9"},{"$f":"IFERROR(VLOOKUP(H2870,Translation!$A:$C,3,FALSE),H2870)","v":"Ontario"}]
[31,"Cumul 2018","IMMEUBLES COLLECTIFS RÉSIDENTIELS","Manitoba",61.659617949357553,"Prêts hypothécaires assurés au cours de la période selon le type neuf/existant (%)","61.7","Manitoba",{"$f":"IFERROR(VLOOKUP(A2872,Translation!$A:$C,3,FALSE),A2872)","v":31},{"$f":"IFERROR(VLOOKUP(B2872,Translation!$A:$C,3,FALSE),B2872)","v":"Cumul 2018"},{"$f":"IFERROR(VLOOKUP(C2872,Translation!$A:$C,3,FALSE),C2872)","v":"IMMEUBLES COLLECTIFS RÉSIDENTIELS"},{"$f":"IFERROR(VLOOKUP(D2872,Translation!$A:$C,3,FALSE),D2872)","v":"Manitoba"},{"$f":"IFERROR(VLOOKUP(E2872,Translation!$A:$C,3,FALSE),E2872)","v":61.659617949357553},{"$f":"IFERROR(VLOOKUP(F2872,Translation!$A:$C,3,FALSE),F2872)","v":"Prêts hypothécaires assurés au cours de la période selon le type neuf/existant (%)"},{"$f":"IFERROR(VLOOKUP(G2872,Translation!$A:$C,3,FALSE),G2872)","v":"61.7"},{"$f":"IFERROR(VLOOKUP(H2872,Translation!$A:$C,3,FALSE),H2872)","v":"Manitoba"}]
[31,"T4 2019","IMMEUBLES COLLECTIFS RÉSIDENTIELS","Alberta",74.52450041553368,"Prêts hypothécaires assurés au cours de la période selon le type neuf/existant (%)","74.5","Alberta",{"$f":"IFERROR(VLOOKUP(A2875,Translation!$A:$C,3,FALSE),A2875)","v":31},{"$f":"IFERROR(VLOOKUP(B2875,Translation!$A:$C,3,FALSE),B2875)","v":"T4 2019"},{"$f":"IFERROR(VLOOKUP(C2875,Translation!$A:$C,3,FALSE),C2875)","v":"IMMEUBLES COLLECTIFS RÉSIDENTIELS"},{"$f":"IFERROR(VLOOKUP(D2875,Translation!$A:$C,3,FALSE),D2875)","v":"Alberta"},{"$f":"IFERROR(VLOOKUP(E2875,Translation!$A:$C,3,FALSE),E2875)","v":74.52450041553368},{"$f":"IFERROR(VLOOKUP(F2875,Translation!$A:$C,3,FALSE),F2875)","v":"Prêts hypothécaires assurés au cours de la période selon le type neuf/existant (%)"},{"$f":"IFERROR(VLOOKUP(G2875,Translation!$A:$C,3,FALSE),G2875)","v":"74.5"},{"$f":"IFERROR(VLOOKUP(H2875,Translation!$A:$C,3,FALSE),H2875)","v":"Alberta"}]
[31,"Cumul 2018","IMMEUBLES COLLECTIFS RÉSIDENTIELS","Alberta",69.598069210024363,"Prêts hypothécaires assurés au cours de la période selon le type neuf/existant (%)","69.6","Alberta",{"$f":"IFERROR(VLOOKUP(A2876,Translation!$A:$C,3,FALSE),A2876)","v":31},{"$f":"IFERROR(VLOOKUP(B2876,Translation!$A:$C,3,FALSE),B2876)","v":"Cumul 2018"},{"$f":"IFERROR(VLOOKUP(C2876,Translation!$A:$C,3,FALSE),C2876)","v":"IMMEUBLES COLLECTIFS RÉSIDENTIELS"},{"$f":"IFERROR(VLOOKUP(D2876,Translation!$A:$C,3,FALSE),D2876)","v":"Alberta"},{"$f":"IFERROR(VLOOKUP(E2876,Translation!$A:$C,3,FALSE),E2876)","v":69.598069210024363},{"$f":"IFERROR(VLOOKUP(F2876,Translation!$A:$C,3,FALSE),F2876)","v":"Prêts hypothécaires assurés au cours de la période selon le type neuf/existant (%)"},{"$f":"IFERROR(VLOOKUP(G2876,Translation!$A:$C,3,FALSE),G2876)","v":"69.6"},{"$f":"IFERROR(VLOOKUP(H2876,Translation!$A:$C,3,FALSE),H2876)","v":"Alberta"}]
[31,"Cumul 2018","IMMEUBLES COLLECTIFS RÉSIDENTIELS","Territoires",100,"Prêts hypothécaires assurés au cours de la période selon le type neuf/existant (%)","100.0","Territoires",{"$f":"IFERROR(VLOOKUP(A2880,Translation!$A:$C,3,FALSE),A2880)","v":31},{"$f":"IFERROR(VLOOKUP(B2880,Translation!$A:$C,3,FALSE),B2880)","v":"Cumul 2018"},{"$f":"IFERROR(VLOOKUP(C2880,Translation!$A:$C,3,FALSE),C2880)","v":"IMMEUBLES COLLECTIFS RÉSIDENTIELS"},{"$f":"IFERROR(VLOOKUP(D2880,Translation!$A:$C,3,FALSE),D2880)","v":"Territoires"},{"$f":"IFERROR(VLOOKUP(E2880,Translation!$A:$C,3,FALSE),E2880)","v":100},{"$f":"IFERROR(VLOOKUP(F2880,Translation!$A:$C,3,FALSE),F2880)","v":"Prêts hypothécaires assurés au cours de la période selon le type neuf/existant (%)"},{"$f":"IFERROR(VLOOKUP(G2880,Translation!$A:$C,3,FALSE),G2880)","v":"100.0"},{"$f":"IFERROR(VLOOKUP(H2880,Translation!$A:$C,3,FALSE),H2880)","v":"Territoires"}]
[20,"T3 2019","PROPRIÉTAIRES-OCCUPANTS, À L’UNITÉ","Neuf",9.8216991568991556,"Prêts hypothécaires assurés au cours de la période selon le type neuf/existant (%)","9.8","Neuf",{"$f":"IFERROR(VLOOKUP(A2881,Translation!$A:$C,3,FALSE),A2881)","v":20},{"$f":"IFERROR(VLOOKUP(B2881,Translation!$A:$C,3,FALSE),B2881)","v":"T3 2019"},{"$f":"IFERROR(VLOOKUP(C2881,Translation!$A:$C,3,FALSE),C2881)","v":"PROPRIÉTAIRES-OCCUPANTS, À L’UNITÉ"},{"$f":"IFERROR(VLOOKUP(D2881,Translation!$A:$C,3,FALSE),D2881)","v":"Neuf"},{"$f":"IFERROR(VLOOKUP(E2881,Translation!$A:$C,3,FALSE),E2881)","v":9.8216991568991556},{"$f":"IFERROR(VLOOKUP(F2881,Translation!$A:$C,3,FALSE),F2881)","v":"Prêts hypothécaires assurés au cours de la période selon le type neuf/existant (%)"},{"$f":"IFERROR(VLOOKUP(G2881,Translation!$A:$C,3,FALSE),G2881)","v":"9.8"},{"$f":"IFERROR(VLOOKUP(H2881,Translation!$A:$C,3,FALSE),H2881)","v":"Neuf"}]
[20,"T3 2019","PROPRIÉTAIRES-OCCUPANTS, À L’UNITÉ","Terre-Neuve-et-Labrador",93.937259760626105,"Prêts hypothécaires assurés au cours de la période selon le type neuf/existant (%)","93.9","Terre-Neuve-et-Labrador",{"$f":"IFERROR(VLOOKUP(A2883,Translation!$A:$C,3,FALSE),A2883)","v":20},{"$f":"IFERROR(VLOOKUP(B2883,Translation!$A:$C,3,FALSE),B2883)","v":"T3 2019"},{"$f":"IFERROR(VLOOKUP(C2883,Translation!$A:$C,3,FALSE),C2883)","v":"PROPRIÉTAIRES-OCCUPANTS, À L’UNITÉ"},{"$f":"IFERROR(VLOOKUP(D2883,Translation!$A:$C,3,FALSE),D2883)","v":"Terre-Neuve-et-Labrador"},{"$f":"IFERROR(VLOOKUP(E2883,Translation!$A:$C,3,FALSE),E2883)","v":93.937259760626105},{"$f":"IFERROR(VLOOKUP(F2883,Translation!$A:$C,3,FALSE),F2883)","v":"Prêts hypothécaires assurés au cours de la période selon le type neuf/existant (%)"},{"$f":"IFERROR(VLOOKUP(G2883,Translation!$A:$C,3,FALSE),G2883)","v":"93.9"},{"$f":"IFERROR(VLOOKUP(H2883,Translation!$A:$C,3,FALSE),H2883)","v":"Terre-Neuve-et-Labrador"}]
[20,"T3 2019","PROPRIÉTAIRES-OCCUPANTS, À L’UNITÉ","Nouveau-Brunswick",92.54464093399578,"Prêts hypothécaires assurés au cours de la période selon le type neuf/existant (%)","92.5","Nouveau-Brunswick",{"$f":"IFERROR(VLOOKUP(A2886,Translation!$A:$C,3,FALSE),A2886)","v":20},{"$f":"IFERROR(VLOOKUP(B2886,Translation!$A:$C,3,FALSE),B2886)","v":"T3 2019"},{"$f":"IFERROR(VLOOKUP(C2886,Translation!$A:$C,3,FALSE),C2886)","v":"PROPRIÉTAIRES-OCCUPANTS, À L’UNITÉ"},{"$f":"IFERROR(VLOOKUP(D2886,Translation!$A:$C,3,FALSE),D2886)","v":"Nouveau-Brunswick"},{"$f":"IFERROR(VLOOKUP(E2886,Translation!$A:$C,3,FALSE),E2886)","v":92.54464093399578},{"$f":"IFERROR(VLOOKUP(F2886,Translation!$A:$C,3,FALSE),F2886)","v":"Prêts hypothécaires assurés au cours de la période selon le type neuf/existant (%)"},{"$f":"IFERROR(VLOOKUP(G2886,Translation!$A:$C,3,FALSE),G2886)","v":"92.5"},{"$f":"IFERROR(VLOOKUP(H2886,Translation!$A:$C,3,FALSE),H2886)","v":"Nouveau-Brunswick"}]
[20,"T3 2019","PROPRIÉTAIRES-OCCUPANTS, À L’UNITÉ","Manitoba",86.671669795089187,"Prêts hypothécaires assurés au cours de la période selon le type neuf/existant (%)","86.7","Manitoba",{"$f":"IFERROR(VLOOKUP(A2889,Translation!$A:$C,3,FALSE),A2889)","v":20},{"$f":"IFERROR(VLOOKUP(B2889,Translation!$A:$C,3,FALSE),B2889)","v":"T3 2019"},{"$f":"IFERROR(VLOOKUP(C2889,Translation!$A:$C,3,FALSE),C2889)","v":"PROPRIÉTAIRES-OCCUPANTS, À L’UNITÉ"},{"$f":"IFERROR(VLOOKUP(D2889,Translation!$A:$C,3,FALSE),D2889)","v":"Manitoba"},{"$f":"IFERROR(VLOOKUP(E2889,Translation!$A:$C,3,FALSE),E2889)","v":86.671669795089187},{"$f":"IFERROR(VLOOKUP(F2889,Translation!$A:$C,3,FALSE),F2889)","v":"Prêts hypothécaires assurés au cours de la période selon le type neuf/existant (%)"},{"$f":"IFERROR(VLOOKUP(G2889,Translation!$A:$C,3,FALSE),G2889)","v":"86.7"},{"$f":"IFERROR(VLOOKUP(H2889,Translation!$A:$C,3,FALSE),H2889)","v":"Manitoba"}]
[20,"T3 2019","PROPRIÉTAIRES-OCCUPANTS, À L’UNITÉ","Alberta",83.024707006791004,"Prêts hypothécaires assurés au cours de la période selon le type neuf/existant (%)","83.0","Alberta",{"$f":"IFERROR(VLOOKUP(A2891,Translation!$A:$C,3,FALSE),A2891)","v":20},{"$f":"IFERROR(VLOOKUP(B2891,Translation!$A:$C,3,FALSE),B2891)","v":"T3 2019"},{"$f":"IFERROR(VLOOKUP(C2891,Translation!$A:$C,3,FALSE),C2891)","v":"PROPRIÉTAIRES-OCCUPANTS, À L’UNITÉ"},{"$f":"IFERROR(VLOOKUP(D2891,Translation!$A:$C,3,FALSE),D2891)","v":"Alberta"},{"$f":"IFERROR(VLOOKUP(E2891,Translation!$A:$C,3,FALSE),E2891)","v":83.024707006791004},{"$f":"IFERROR(VLOOKUP(F2891,Translation!$A:$C,3,FALSE),F2891)","v":"Prêts hypothécaires assurés au cours de la période selon le type neuf/existant (%)"},{"$f":"IFERROR(VLOOKUP(G2891,Translation!$A:$C,3,FALSE),G2891)","v":"83.0"},{"$f":"IFERROR(VLOOKUP(H2891,Translation!$A:$C,3,FALSE),H2891)","v":"Alberta"}]
[31,"T3 2019","IMMEUBLES COLLECTIFS RÉSIDENTIELS","Neuf",23.567387150793596,"Prêts hypothécaires assurés au cours de la période selon le type neuf/existant (%)","23.6","Neuf",{"$f":"IFERROR(VLOOKUP(A2894,Translation!$A:$C,3,FALSE),A2894)","v":31},{"$f":"IFERROR(VLOOKUP(B2894,Translation!$A:$C,3,FALSE),B2894)","v":"T3 2019"},{"$f":"IFERROR(VLOOKUP(C2894,Translation!$A:$C,3,FALSE),C2894)","v":"IMMEUBLES COLLECTIFS RÉSIDENTIELS"},{"$f":"IFERROR(VLOOKUP(D2894,Translation!$A:$C,3,FALSE),D2894)","v":"Neuf"},{"$f":"IFERROR(VLOOKUP(E2894,Translation!$A:$C,3,FALSE),E2894)","v":23.567387150793596},{"$f":"IFERROR(VLOOKUP(F2894,Translation!$A:$C,3,FALSE),F2894)","v":"Prêts hypothécaires assurés au cours de la période selon le type neuf/existant (%)"},{"$f":"IFERROR(VLOOKUP(G2894,Translation!$A:$C,3,FALSE),G2894)","v":"23.6"},{"$f":"IFERROR(VLOOKUP(H2894,Translation!$A:$C,3,FALSE),H2894)","v":"Neuf"}]
[31,"T3 2019","IMMEUBLES COLLECTIFS RÉSIDENTIELS","Nouvelle-Écosse",20.777452355080985,"Prêts hypothécaires assurés au cours de la période selon le type neuf/existant (%)","20.8","Nouvelle-Écosse",{"$f":"IFERROR(VLOOKUP(A2897,Translation!$A:$C,3,FALSE),A2897)","v":31},{"$f":"IFERROR(VLOOKUP(B2897,Translation!$A:$C,3,FALSE),B2897)","v":"T3 2019"},{"$f":"IFERROR(VLOOKUP(C2897,Translation!$A:$C,3,FALSE),C2897)","v":"IMMEUBLES COLLECTIFS RÉSIDENTIELS"},{"$f":"IFERROR(VLOOKUP(D2897,Translation!$A:$C,3,FALSE),D2897)","v":"Nouvelle-Écosse"},{"$f":"IFERROR(VLOOKUP(E2897,Translation!$A:$C,3,FALSE),E2897)","v":20.777452355080985},{"$f":"IFERROR(VLOOKUP(F2897,Translation!$A:$C,3,FALSE),F2897)","v":"Prêts hypothécaires assurés au cours de la période selon le type neuf/existant (%)"},{"$f":"IFERROR(VLOOKUP(G2897,Translation!$A:$C,3,FALSE),G2897)","v":"20.8"},{"$f":"IFERROR(VLOOKUP(H2897,Translation!$A:$C,3,FALSE),H2897)","v":"Nouvelle-Écosse"}]
[31,"T3 2019","IMMEUBLES COLLECTIFS RÉSIDENTIELS","Québec",96.379958746064474,"Prêts hypothécaires assurés au cours de la période selon le type neuf/existant (%)","96.4","Québec",{"$f":"IFERROR(VLOOKUP(A2899,Translation!$A:$C,3,FALSE),A2899)","v":31},{"$f":"IFERROR(VLOOKUP(B2899,Translation!$A:$C,3,FALSE),B2899)","v":"T3 2019"},{"$f":"IFERROR(VLOOKUP(C2899,Translation!$A:$C,3,FALSE),C2899)","v":"IMMEUBLES COLLECTIFS RÉSIDENTIELS"},{"$f":"IFERROR(VLOOKUP(D2899,Translation!$A:$C,3,FALSE),D2899)","v":"Québec"},{"$f":"IFERROR(VLOOKUP(E2899,Translation!$A:$C,3,FALSE),E2899)","v":96.379958746064474},{"$f":"IFERROR(VLOOKUP(F2899,Translation!$A:$C,3,FALSE),F2899)","v":"Prêts hypothécaires assurés au cours de la période selon le type neuf/existant (%)"},{"$f":"IFERROR(VLOOKUP(G2899,Translation!$A:$C,3,FALSE),G2899)","v":"96.4"},{"$f":"IFERROR(VLOOKUP(H2899,Translation!$A:$C,3,FALSE),H2899)","v":"Québec"}]
[31,"T3 2019","IMMEUBLES COLLECTIFS RÉSIDENTIELS","Ontario",73.614444044734682,"Prêts hypothécaires assurés au cours de la période selon le type neuf/existant (%)","73.6","Ontario",{"$f":"IFERROR(VLOOKUP(A2900,Translation!$A:$C,3,FALSE),A2900)","v":31},{"$f":"IFERROR(VLOOKUP(B2900,Translation!$A:$C,3,FALSE),B2900)","v":"T3 2019"},{"$f":"IFERROR(VLOOKUP(C2900,Translation!$A:$C,3,FALSE),C2900)","v":"IMMEUBLES COLLECTIFS RÉSIDENTIELS"},{"$f":"IFERROR(VLOOKUP(D2900,Translation!$A:$C,3,FALSE),D2900)","v":"Ontario"},{"$f":"IFERROR(VLOOKUP(E2900,Translation!$A:$C,3,FALSE),E2900)","v":73.614444044734682},{"$f":"IFERROR(VLOOKUP(F2900,Translation!$A:$C,3,FALSE),F2900)","v":"Prêts hypothécaires assurés au cours de la période selon le type neuf/existant (%)"},{"$f":"IFERROR(VLOOKUP(G2900,Translation!$A:$C,3,FALSE),G2900)","v":"73.6"},{"$f":"IFERROR(VLOOKUP(H2900,Translation!$A:$C,3,FALSE),H2900)","v":"Ontario"}]
[31,"T3 2019","IMMEUBLES COLLECTIFS RÉSIDENTIELS","Saskatchewan",100,"Prêts hypothécaires assurés au cours de la période selon le type neuf/existant (%)","100.0","Saskatchewan",{"$f":"IFERROR(VLOOKUP(A2902,Translation!$A:$C,3,FALSE),A2902)","v":31},{"$f":"IFERROR(VLOOKUP(B2902,Translation!$A:$C,3,FALSE),B2902)","v":"T3 2019"},{"$f":"IFERROR(VLOOKUP(C2902,Translation!$A:$C,3,FALSE),C2902)","v":"IMMEUBLES COLLECTIFS RÉSIDENTIELS"},{"$f":"IFERROR(VLOOKUP(D2902,Translation!$A:$C,3,FALSE),D2902)","v":"Saskatchewan"},{"$f":"IFERROR(VLOOKUP(E2902,Translation!$A:$C,3,FALSE),E2902)","v":100},{"$f":"IFERROR(VLOOKUP(F2902,Translation!$A:$C,3,FALSE),F2902)","v":"Prêts hypothécaires assurés au cours de la période selon le type neuf/existant (%)"},{"$f":"IFERROR(VLOOKUP(G2902,Translation!$A:$C,3,FALSE),G2902)","v":"100.0"},{"$f":"IFERROR(VLOOKUP(H2902,Translation!$A:$C,3,FALSE),H2902)","v":"Saskatchewan"}]
[31,"T3 2019","IMMEUBLES COLLECTIFS RÉSIDENTIELS","Territoires",100,"Prêts hypothécaires assurés au cours de la période selon le type neuf/existant (%)","100.0","Territoires",{"$f":"IFERROR(VLOOKUP(A2905,Translation!$A:$C,3,FALSE),A2905)","v":31},{"$f":"IFERROR(VLOOKUP(B2905,Translation!$A:$C,3,FALSE),B2905)","v":"T3 2019"},{"$f":"IFERROR(VLOOKUP(C2905,Translation!$A:$C,3,FALSE),C2905)","v":"IMMEUBLES COLLECTIFS RÉSIDENTIELS"},{"$f":"IFERROR(VLOOKUP(D2905,Translation!$A:$C,3,FALSE),D2905)","v":"Territoires"},{"$f":"IFERROR(VLOOKUP(E2905,Translation!$A:$C,3,FALSE),E2905)","v":100},{"$f":"IFERROR(VLOOKUP(F2905,Translation!$A:$C,3,FALSE),F2905)","v":"Prêts hypothécaires assurés au cours de la période selon le type neuf/existant (%)"},{"$f":"IFERROR(VLOOKUP(G2905,Translation!$A:$C,3,FALSE),G2905)","v":"100.0"},{"$f":"IFERROR(VLOOKUP(H2905,Translation!$A:$C,3,FALSE),H2905)","v":"Territoires"}]
[20,"T2 2019","PROPRIÉTAIRES-OCCUPANTS, À L’UNITÉ","Terre-Neuve-et-Labrador",93.026935191173621,"Prêts hypothécaires assurés au cours de la période selon le type neuf/existant (%)","93.0","Terre-Neuve-et-Labrador",{"$f":"IFERROR(VLOOKUP(A2908,Translation!$A:$C,3,FALSE),A2908)","v":20},{"$f":"IFERROR(VLOOKUP(B2908,Translation!$A:$C,3,FALSE),B2908)","v":"T2 2019"},{"$f":"IFERROR(VLOOKUP(C2908,Translation!$A:$C,3,FALSE),C2908)","v":"PROPRIÉTAIRES-OCCUPANTS, À L’UNITÉ"},{"$f":"IFERROR(VLOOKUP(D2908,Translation!$A:$C,3,FALSE),D2908)","v":"Terre-Neuve-et-Labrador"},{"$f":"IFERROR(VLOOKUP(E2908,Translation!$A:$C,3,FALSE),E2908)","v":93.026935191173621},{"$f":"IFERROR(VLOOKUP(F2908,Translation!$A:$C,3,FALSE),F2908)","v":"Prêts hypothécaires assurés au cours de la période selon le type neuf/existant (%)"},{"$f":"IFERROR(VLOOKUP(G2908,Translation!$A:$C,3,FALSE),G2908)","v":"93.0"},{"$f":"IFERROR(VLOOKUP(H2908,Translation!$A:$C,3,FALSE),H2908)","v":"Terre-Neuve-et-Labrador"}]
[20,"T2 2019","PROPRIÉTAIRES-OCCUPANTS, À L’UNITÉ","Nouvelle-Écosse",92.107495189289153,"Prêts hypothécaires assurés au cours de la période selon le type neuf/existant (%)","92.1","Nouvelle-Écosse",{"$f":"IFERROR(VLOOKUP(A2910,Translation!$A:$C,3,FALSE),A2910)","v":20},{"$f":"IFERROR(VLOOKUP(B2910,Translation!$A:$C,3,FALSE),B2910)","v":"T2 2019"},{"$f":"IFERROR(VLOOKUP(C2910,Translation!$A:$C,3,FALSE),C2910)","v":"PROPRIÉTAIRES-OCCUPANTS, À L’UNITÉ"},{"$f":"IFERROR(VLOOKUP(D2910,Translation!$A:$C,3,FALSE),D2910)","v":"Nouvelle-Écosse"},{"$f":"IFERROR(VLOOKUP(E2910,Translation!$A:$C,3,FALSE),E2910)","v":92.107495189289153},{"$f":"IFERROR(VLOOKUP(F2910,Translation!$A:$C,3,FALSE),F2910)","v":"Prêts hypothécaires assurés au cours de la période selon le type neuf/existant (%)"},{"$f":"IFERROR(VLOOKUP(G2910,Translation!$A:$C,3,FALSE),G2910)","v":"92.1"},{"$f":"IFERROR(VLOOKUP(H2910,Translation!$A:$C,3,FALSE),H2910)","v":"Nouvelle-Écosse"}]
[20,"T2 2019","PROPRIÉTAIRES-OCCUPANTS, À L’UNITÉ","Ontario",93.131797939367019,"Prêts hypothécaires assurés au cours de la période selon le type neuf/existant (%)","93.1","Ontario",{"$f":"IFERROR(VLOOKUP(A2913,Translation!$A:$C,3,FALSE),A2913)","v":20},{"$f":"IFERROR(VLOOKUP(B2913,Translation!$A:$C,3,FALSE),B2913)","v":"T2 2019"},{"$f":"IFERROR(VLOOKUP(C2913,Translation!$A:$C,3,FALSE),C2913)","v":"PROPRIÉTAIRES-OCCUPANTS, À L’UNITÉ"},{"$f":"IFERROR(VLOOKUP(D2913,Translation!$A:$C,3,FALSE),D2913)","v":"Ontario"},{"$f":"IFERROR(VLOOKUP(E2913,Translation!$A:$C,3,FALSE),E2913)","v":93.131797939367019},{"$f":"IFERROR(VLOOKUP(F2913,Translation!$A:$C,3,FALSE),F2913)","v":"Prêts hypothécaires assurés au cours de la période selon le type neuf/existant (%)"},{"$f":"IFERROR(VLOOKUP(G2913,Translation!$A:$C,3,FALSE),G2913)","v":"93.1"},{"$f":"IFERROR(VLOOKUP(H2913,Translation!$A:$C,3,FALSE),H2913)","v":"Ontario"}]
[20,"T2 2019","PROPRIÉTAIRES-OCCUPANTS, À L’UNITÉ","Alberta",80.997378691472051,"Prêts hypothécaires assurés au cours de la période selon le type neuf/existant (%)","81.0","Alberta",{"$f":"IFERROR(VLOOKUP(A2916,Translation!$A:$C,3,FALSE),A2916)","v":20},{"$f":"IFERROR(VLOOKUP(B2916,Translation!$A:$C,3,FALSE),B2916)","v":"T2 2019"},{"$f":"IFERROR(VLOOKUP(C2916,Translation!$A:$C,3,FALSE),C2916)","v":"PROPRIÉTAIRES-OCCUPANTS, À L’UNITÉ"},{"$f":"IFERROR(VLOOKUP(D2916,Translation!$A:$C,3,FALSE),D2916)","v":"Alberta"},{"$f":"IFERROR(VLOOKUP(E2916,Translation!$A:$C,3,FALSE),E2916)","v":80.997378691472051},{"$f":"IFERROR(VLOOKUP(F2916,Translation!$A:$C,3,FALSE),F2916)","v":"Prêts hypothécaires assurés au cours de la période selon le type neuf/existant (%)"},{"$f":"IFERROR(VLOOKUP(G2916,Translation!$A:$C,3,FALSE),G2916)","v":"81.0"},{"$f":"IFERROR(VLOOKUP(H2916,Translation!$A:$C,3,FALSE),H2916)","v":"Alberta"}]
[20,"T2 2019","PROPRIÉTAIRES-OCCUPANTS, À L’UNITÉ","Territoires",90.955531703424981,"Prêts hypothécaires assurés au cours de la période selon le type neuf/existant (%)","91.0","Territoires",{"$f":"IFERROR(VLOOKUP(A2918,Translation!$A:$C,3,FALSE),A2918)","v":20},{"$f":"IFERROR(VLOOKUP(B2918,Translation!$A:$C,3,FALSE),B2918)","v":"T2 2019"},{"$f":"IFERROR(VLOOKUP(C2918,Translation!$A:$C,3,FALSE),C2918)","v":"PROPRIÉTAIRES-OCCUPANTS, À L’UNITÉ"},{"$f":"IFERROR(VLOOKUP(D2918,Translation!$A:$C,3,FALSE),D2918)","v":"Territoires"},{"$f":"IFERROR(VLOOKUP(E2918,Translation!$A:$C,3,FALSE),E2918)","v":90.955531703424981},{"$f":"IFERROR(VLOOKUP(F2918,Translation!$A:$C,3,FALSE),F2918)","v":"Prêts hypothécaires assurés au cours de la période selon le type neuf/existant (%)"},{"$f":"IFERROR(VLOOKUP(G2918,Translation!$A:$C,3,FALSE),G2918)","v":"91.0"},{"$f":"IFERROR(VLOOKUP(H2918,Translation!$A:$C,3,FALSE),H2918)","v":"Territoires"}]
[31,"T2 2019","IMMEUBLES COLLECTIFS RÉSIDENTIELS","Neuf",17.621224592362267,"Prêts hypothécaires assurés au cours de la période selon le type neuf/existant (%)","17.6","Neuf",{"$f":"IFERROR(VLOOKUP(A2919,Translation!$A:$C,3,FALSE),A2919)","v":31},{"$f":"IFERROR(VLOOKUP(B2919,Translation!$A:$C,3,FALSE),B2919)","v":"T2 2019"},{"$f":"IFERROR(VLOOKUP(C2919,Translation!$A:$C,3,FALSE),C2919)","v":"IMMEUBLES COLLECTIFS RÉSIDENTIELS"},{"$f":"IFERROR(VLOOKUP(D2919,Translation!$A:$C,3,FALSE),D2919)","v":"Neuf"},{"$f":"IFERROR(VLOOKUP(E2919,Translation!$A:$C,3,FALSE),E2919)","v":17.621224592362267},{"$f":"IFERROR(VLOOKUP(F2919,Translation!$A:$C,3,FALSE),F2919)","v":"Prêts hypothécaires assurés au cours de la période selon le type neuf/existant (%)"},{"$f":"IFERROR(VLOOKUP(G2919,Translation!$A:$C,3,FALSE),G2919)","v":"17.6"},{"$f":"IFERROR(VLOOKUP(H2919,Translation!$A:$C,3,FALSE),H2919)","v":"Neuf"}]
[31,"T2 2019","IMMEUBLES COLLECTIFS RÉSIDENTIELS","Nouvelle-Écosse",31.473722029733107,"Prêts hypothécaires assurés au cours de la période selon le type neuf/existant (%)","31.5","Nouvelle-Écosse",{"$f":"IFERROR(VLOOKUP(A2923,Translation!$A:$C,3,FALSE),A2923)","v":31},{"$f":"IFERROR(VLOOKUP(B2923,Translation!$A:$C,3,FALSE),B2923)","v":"T2 2019"},{"$f":"IFERROR(VLOOKUP(C2923,Translation!$A:$C,3,FALSE),C2923)","v":"IMMEUBLES COLLECTIFS RÉSIDENTIELS"},{"$f":"IFERROR(VLOOKUP(D2923,Translation!$A:$C,3,FALSE),D2923)","v":"Nouvelle-Écosse"},{"$f":"IFERROR(VLOOKUP(E2923,Translation!$A:$C,3,FALSE),E2923)","v":31.473722029733107},{"$f":"IFERROR(VLOOKUP(F2923,Translation!$A:$C,3,FALSE),F2923)","v":"Prêts hypothécaires assurés au cours de la période selon le type neuf/existant (%)"},{"$f":"IFERROR(VLOOKUP(G2923,Translation!$A:$C,3,FALSE),G2923)","v":"31.5"},{"$f":"IFERROR(VLOOKUP(H2923,Translation!$A:$C,3,FALSE),H2923)","v":"Nouvelle-Écosse"}]
[31,"T2 2019","IMMEUBLES COLLECTIFS RÉSIDENTIELS","Nouveau-Brunswick",65.841292993260197,"Prêts hypothécaires assurés au cours de la période selon le type neuf/existant (%)","65.8","Nouveau-Brunswick",{"$f":"IFERROR(VLOOKUP(A2924,Translation!$A:$C,3,FALSE),A2924)","v":31},{"$f":"IFERROR(VLOOKUP(B2924,Translation!$A:$C,3,FALSE),B2924)","v":"T2 2019"},{"$f":"IFERROR(VLOOKUP(C2924,Translation!$A:$C,3,FALSE),C2924)","v":"IMMEUBLES COLLECTIFS RÉSIDENTIELS"},{"$f":"IFERROR(VLOOKUP(D2924,Translation!$A:$C,3,FALSE),D2924)","v":"Nouveau-Brunswick"},{"$f":"IFERROR(VLOOKUP(E2924,Translation!$A:$C,3,FALSE),E2924)","v":65.841292993260197},{"$f":"IFERROR(VLOOKUP(F2924,Translation!$A:$C,3,FALSE),F2924)","v":"Prêts hypothécaires assurés au cours de la période selon le type neuf/existant (%)"},{"$f":"IFERROR(VLOOKUP(G2924,Translation!$A:$C,3,FALSE),G2924)","v":"65.8"},{"$f":"IFERROR(VLOOKUP(H2924,Translation!$A:$C,3,FALSE),H2924)","v":"Nouveau-Brunswick"}]
[31,"T2 2019","IMMEUBLES COLLECTIFS RÉSIDENTIELS","Manitoba",84.355377613201284,"Prêts hypothécaires assurés au cours de la période selon le type neuf/existant (%)","84.4","Manitoba",{"$f":"IFERROR(VLOOKUP(A2927,Translation!$A:$C,3,FALSE),A2927)","v":31},{"$f":"IFERROR(VLOOKUP(B2927,Translation!$A:$C,3,FALSE),B2927)","v":"T2 2019"},{"$f":"IFERROR(VLOOKUP(C2927,Translation!$A:$C,3,FALSE),C2927)","v":"IMMEUBLES COLLECTIFS RÉSIDENTIELS"},{"$f":"IFERROR(VLOOKUP(D2927,Translation!$A:$C,3,FALSE),D2927)","v":"Manitoba"},{"$f":"IFERROR(VLOOKUP(E2927,Translation!$A:$C,3,FALSE),E2927)","v":84.355377613201284},{"$f":"IFERROR(VLOOKUP(F2927,Translation!$A:$C,3,FALSE),F2927)","v":"Prêts hypothécaires assurés au cours de la période selon le type neuf/existant (%)"},{"$f":"IFERROR(VLOOKUP(G2927,Translation!$A:$C,3,FALSE),G2927)","v":"84.4"},{"$f":"IFERROR(VLOOKUP(H2927,Translation!$A:$C,3,FALSE),H2927)","v":"Manitoba"}]
[31,"T2 2019","IMMEUBLES COLLECTIFS RÉSIDENTIELS","Alberta",67.098045698284238,"Prêts hypothécaires assurés au cours de la période selon le type neuf/existant (%)","67.1","Alberta",{"$f":"IFERROR(VLOOKUP(A2929,Translation!$A:$C,3,FALSE),A2929)","v":31},{"$f":"IFERROR(VLOOKUP(B2929,Translation!$A:$C,3,FALSE),B2929)","v":"T2 2019"},{"$f":"IFERROR(VLOOKUP(C2929,Translation!$A:$C,3,FALSE),C2929)","v":"IMMEUBLES COLLECTIFS RÉSIDENTIELS"},{"$f":"IFERROR(VLOOKUP(D2929,Translation!$A:$C,3,FALSE),D2929)","v":"Alberta"},{"$f":"IFERROR(VLOOKUP(E2929,Translation!$A:$C,3,FALSE),E2929)","v":67.098045698284238},{"$f":"IFERROR(VLOOKUP(F2929,Translation!$A:$C,3,FALSE),F2929)","v":"Prêts hypothécaires assurés au cours de la période selon le type neuf/existant (%)"},{"$f":"IFERROR(VLOOKUP(G2929,Translation!$A:$C,3,FALSE),G2929)","v":"67.1"},{"$f":"IFERROR(VLOOKUP(H2929,Translation!$A:$C,3,FALSE),H2929)","v":"Alberta"}]
[20,"T1 2019","PROPRIÉTAIRES-OCCUPANTS, À L’UNITÉ","Existant",87.539143422671387,"Prêts hypothécaires assurés au cours de la période selon le type neuf/existant (%)","87.5","Existant",{"$f":"IFERROR(VLOOKUP(A2933,Translation!$A:$C,3,FALSE),A2933)","v":20},{"$f":"IFERROR(VLOOKUP(B2933,Translation!$A:$C,3,FALSE),B2933)","v":"T1 2019"},{"$f":"IFERROR(VLOOKUP(C2933,Translation!$A:$C,3,FALSE),C2933)","v":"PROPRIÉTAIRES-OCCUPANTS, À L’UNITÉ"},{"$f":"IFERROR(VLOOKUP(D2933,Translation!$A:$C,3,FALSE),D2933)","v":"Existant"},{"$f":"IFERROR(VLOOKUP(E2933,Translation!$A:$C,3,FALSE),E2933)","v":87.539143422671387},{"$f":"IFERROR(VLOOKUP(F2933,Translation!$A:$C,3,FALSE),F2933)","v":"Prêts hypothécaires assurés au cours de la période selon le type neuf/existant (%)"},{"$f":"IFERROR(VLOOKUP(G2933,Translation!$A:$C,3,FALSE),G2933)","v":"87.5"},{"$f":"IFERROR(VLOOKUP(H2933,Translation!$A:$C,3,FALSE),H2933)","v":"Existant"}]
[20,"T1 2019","PROPRIÉTAIRES-OCCUPANTS, À L’UNITÉ","Terre-Neuve-et-Labrador",90.555538935603423,"Prêts hypothécaires assurés au cours de la période selon le type neuf/existant (%)","90.6","Terre-Neuve-et-Labrador",{"$f":"IFERROR(VLOOKUP(A2934,Translation!$A:$C,3,FALSE),A2934)","v":20},{"$f":"IFERROR(VLOOKUP(B2934,Translation!$A:$C,3,FALSE),B2934)","v":"T1 2019"},{"$f":"IFERROR(VLOOKUP(C2934,Translation!$A:$C,3,FALSE),C2934)","v":"PROPRIÉTAIRES-OCCUPANTS, À L’UNITÉ"},{"$f":"IFERROR(VLOOKUP(D2934,Translation!$A:$C,3,FALSE),D2934)","v":"Terre-Neuve-et-Labrador"},{"$f":"IFERROR(VLOOKUP(E2934,Translation!$A:$C,3,FALSE),E2934)","v":90.555538935603423},{"$f":"IFERROR(VLOOKUP(F2934,Translation!$A:$C,3,FALSE),F2934)","v":"Prêts hypothécaires assurés au cours de la période selon le type neuf/existant (%)"},{"$f":"IFERROR(VLOOKUP(G2934,Translation!$A:$C,3,FALSE),G2934)","v":"90.6"},{"$f":"IFERROR(VLOOKUP(H2934,Translation!$A:$C,3,FALSE),H2934)","v":"Terre-Neuve-et-Labrador"}]
[20,"T1 2019","PROPRIÉTAIRES-OCCUPANTS, À L’UNITÉ","Nouveau-Brunswick",92.261507567109675,"Prêts hypothécaires assurés au cours de la période selon le type neuf/existant (%)","92.3","Nouveau-Brunswick",{"$f":"IFERROR(VLOOKUP(A2937,Translation!$A:$C,3,FALSE),A2937)","v":20},{"$f":"IFERROR(VLOOKUP(B2937,Translation!$A:$C,3,FALSE),B2937)","v":"T1 2019"},{"$f":"IFERROR(VLOOKUP(C2937,Translation!$A:$C,3,FALSE),C2937)","v":"PROPRIÉTAIRES-OCCUPANTS, À L’UNITÉ"},{"$f":"IFERROR(VLOOKUP(D2937,Translation!$A:$C,3,FALSE),D2937)","v":"Nouveau-Brunswick"},{"$f":"IFERROR(VLOOKUP(E2937,Translation!$A:$C,3,FALSE),E2937)","v":92.261507567109675},{"$f":"IFERROR(VLOOKUP(F2937,Translation!$A:$C,3,FALSE),F2937)","v":"Prêts hypothécaires assurés au cours de la période selon le type neuf/existant (%)"},{"$f":"IFERROR(VLOOKUP(G2937,Translation!$A:$C,3,FALSE),G2937)","v":"92.3"},{"$f":"IFERROR(VLOOKUP(H2937,Translation!$A:$C,3,FALSE),H2937)","v":"Nouveau-Brunswick"}]
[20,"T1 2019","PROPRIÉTAIRES-OCCUPANTS, À L’UNITÉ","Québec",89.987706423214391,"Prêts hypothécaires assurés au cours de la période selon le type neuf/existant (%)","90.0","Québec",{"$f":"IFERROR(VLOOKUP(A2938,Translation!$A:$C,3,FALSE),A2938)","v":20},{"$f":"IFERROR(VLOOKUP(B2938,Translation!$A:$C,3,FALSE),B2938)","v":"T1 2019"},{"$f":"IFERROR(VLOOKUP(C2938,Translation!$A:$C,3,FALSE),C2938)","v":"PROPRIÉTAIRES-OCCUPANTS, À L’UNITÉ"},{"$f":"IFERROR(VLOOKUP(D2938,Translation!$A:$C,3,FALSE),D2938)","v":"Québec"},{"$f":"IFERROR(VLOOKUP(E2938,Translation!$A:$C,3,FALSE),E2938)","v":89.987706423214391},{"$f":"IFERROR(VLOOKUP(F2938,Translation!$A:$C,3,FALSE),F2938)","v":"Prêts hypothécaires assurés au cours de la période selon le type neuf/existant (%)"},{"$f":"IFERROR(VLOOKUP(G2938,Translation!$A:$C,3,FALSE),G2938)","v":"90.0"},{"$f":"IFERROR(VLOOKUP(H2938,Translation!$A:$C,3,FALSE),H2938)","v":"Québec"}]
[20,"T1 2019","PROPRIÉTAIRES-OCCUPANTS, À L’UNITÉ","Alberta",75.453670750168143,"Prêts hypothécaires assurés au cours de la période selon le type neuf/existant (%)","75.5","Alberta",{"$f":"IFERROR(VLOOKUP(A2942,Translation!$A:$C,3,FALSE),A2942)","v":20},{"$f":"IFERROR(VLOOKUP(B2942,Translation!$A:$C,3,FALSE),B2942)","v":"T1 2019"},{"$f":"IFERROR(VLOOKUP(C2942,Translation!$A:$C,3,FALSE),C2942)","v":"PROPRIÉTAIRES-OCCUPANTS, À L’UNITÉ"},{"$f":"IFERROR(VLOOKUP(D2942,Translation!$A:$C,3,FALSE),D2942)","v":"Alberta"},{"$f":"IFERROR(VLOOKUP(E2942,Translation!$A:$C,3,FALSE),E2942)","v":75.453670750168143},{"$f":"IFERROR(VLOOKUP(F2942,Translation!$A:$C,3,FALSE),F2942)","v":"Prêts hypothécaires assurés au cours de la période selon le type neuf/existant (%)"},{"$f":"IFERROR(VLOOKUP(G2942,Translation!$A:$C,3,FALSE),G2942)","v":"75.5"},{"$f":"IFERROR(VLOOKUP(H2942,Translation!$A:$C,3,FALSE),H2942)","v":"Alberta"}]
[20,"T1 2019","PROPRIÉTAIRES-OCCUPANTS, À L’UNITÉ","Territoires",88.348906571625989,"Prêts hypothécaires assurés au cours de la période selon le type neuf/existant (%)","88.3","Territoires",{"$f":"IFERROR(VLOOKUP(A2944,Translation!$A:$C,3,FALSE),A2944)","v":20},{"$f":"IFERROR(VLOOKUP(B2944,Translation!$A:$C,3,FALSE),B2944)","v":"T1 2019"},{"$f":"IFERROR(VLOOKUP(C2944,Translation!$A:$C,3,FALSE),C2944)","v":"PROPRIÉTAIRES-OCCUPANTS, À L’UNITÉ"},{"$f":"IFERROR(VLOOKUP(D2944,Translation!$A:$C,3,FALSE),D2944)","v":"Territoires"},{"$f":"IFERROR(VLOOKUP(E2944,Translation!$A:$C,3,FALSE),E2944)","v":88.348906571625989},{"$f":"IFERROR(VLOOKUP(F2944,Translation!$A:$C,3,FALSE),F2944)","v":"Prêts hypothécaires assurés au cours de la période selon le type neuf/existant (%)"},{"$f":"IFERROR(VLOOKUP(G2944,Translation!$A:$C,3,FALSE),G2944)","v":"88.3"},{"$f":"IFERROR(VLOOKUP(H2944,Translation!$A:$C,3,FALSE),H2944)","v":"Territoires"}]
[31,"T1 2019","IMMEUBLES COLLECTIFS RÉSIDENTIELS","Île-du-Prince-Édouard",100,"Prêts hypothécaires assurés au cours de la période selon le type neuf/existant (%)","100.0","Île-du-Prince-Édouard",{"$f":"IFERROR(VLOOKUP(A2947,Translation!$A:$C,3,FALSE),A2947)","v":31},{"$f":"IFERROR(VLOOKUP(B2947,Translation!$A:$C,3,FALSE),B2947)","v":"T1 2019"},{"$f":"IFERROR(VLOOKUP(C2947,Translation!$A:$C,3,FALSE),C2947)","v":"IMMEUBLES COLLECTIFS RÉSIDENTIELS"},{"$f":"IFERROR(VLOOKUP(D2947,Translation!$A:$C,3,FALSE),D2947)","v":"Île-du-Prince-Édouard"},{"$f":"IFERROR(VLOOKUP(E2947,Translation!$A:$C,3,FALSE),E2947)","v":100},{"$f":"IFERROR(VLOOKUP(F2947,Translation!$A:$C,3,FALSE),F2947)","v":"Prêts hypothécaires assurés au cours de la période selon le type neuf/existant (%)"},{"$f":"IFERROR(VLOOKUP(G2947,Translation!$A:$C,3,FALSE),G2947)","v":"100.0"},{"$f":"IFERROR(VLOOKUP(H2947,Translation!$A:$C,3,FALSE),H2947)","v":"Île-du-Prince-Édouard"}]
[31,"T1 2019","IMMEUBLES COLLECTIFS RÉSIDENTIELS","Nouvelle-Écosse",46.621965750616205,"Prêts hypothécaires assurés au cours de la période selon le type neuf/existant (%)","46.6","Nouvelle-Écosse",{"$f":"IFERROR(VLOOKUP(A2948,Translation!$A:$C,3,FALSE),A2948)","v":31},{"$f":"IFERROR(VLOOKUP(B2948,Translation!$A:$C,3,FALSE),B2948)","v":"T1 2019"},{"$f":"IFERROR(VLOOKUP(C2948,Translation!$A:$C,3,FALSE),C2948)","v":"IMMEUBLES COLLECTIFS RÉSIDENTIELS"},{"$f":"IFERROR(VLOOKUP(D2948,Translation!$A:$C,3,FALSE),D2948)","v":"Nouvelle-Écosse"},{"$f":"IFERROR(VLOOKUP(E2948,Translation!$A:$C,3,FALSE),E2948)","v":46.621965750616205},{"$f":"IFERROR(VLOOKUP(F2948,Translation!$A:$C,3,FALSE),F2948)","v":"Prêts hypothécaires assurés au cours de la période selon le type neuf/existant (%)"},{"$f":"IFERROR(VLOOKUP(G2948,Translation!$A:$C,3,FALSE),G2948)","v":"46.6"},{"$f":"IFERROR(VLOOKUP(H2948,Translation!$A:$C,3,FALSE),H2948)","v":"Nouvelle-Écosse"}]
[31,"T1 2019","IMMEUBLES COLLECTIFS RÉSIDENTIELS","Manitoba",94.576485633240765,"Prêts hypothécaires assurés au cours de la période selon le type neuf/existant (%)","94.6","Manitoba",{"$f":"IFERROR(VLOOKUP(A2952,Translation!$A:$C,3,FALSE),A2952)","v":31},{"$f":"IFERROR(VLOOKUP(B2952,Translation!$A:$C,3,FALSE),B2952)","v":"T1 2019"},{"$f":"IFERROR(VLOOKUP(C2952,Translation!$A:$C,3,FALSE),C2952)","v":"IMMEUBLES COLLECTIFS RÉSIDENTIELS"},{"$f":"IFERROR(VLOOKUP(D2952,Translation!$A:$C,3,FALSE),D2952)","v":"Manitoba"},{"$f":"IFERROR(VLOOKUP(E2952,Translation!$A:$C,3,FALSE),E2952)","v":94.576485633240765},{"$f":"IFERROR(VLOOKUP(F2952,Translation!$A:$C,3,FALSE),F2952)","v":"Prêts hypothécaires assurés au cours de la période selon le type neuf/existant (%)"},{"$f":"IFERROR(VLOOKUP(G2952,Translation!$A:$C,3,FALSE),G2952)","v":"94.6"},{"$f":"IFERROR(VLOOKUP(H2952,Translation!$A:$C,3,FALSE),H2952)","v":"Manitoba"}]
[31,"T1 2019","IMMEUBLES COLLECTIFS RÉSIDENTIELS","Saskatchewan",100,"Prêts hypothécaires assurés au cours de la période selon le type neuf/existant (%)","100.0","Saskatchewan",{"$f":"IFERROR(VLOOKUP(A2953,Translation!$A:$C,3,FALSE),A2953)","v":31},{"$f":"IFERROR(VLOOKUP(B2953,Translation!$A:$C,3,FALSE),B2953)","v":"T1 2019"},{"$f":"IFERROR(VLOOKUP(C2953,Translation!$A:$C,3,FALSE),C2953)","v":"IMMEUBLES COLLECTIFS RÉSIDENTIELS"},{"$f":"IFERROR(VLOOKUP(D2953,Translation!$A:$C,3,FALSE),D2953)","v":"Saskatchewan"},{"$f":"IFERROR(VLOOKUP(E2953,Translation!$A:$C,3,FALSE),E2953)","v":100},{"$f":"IFERROR(VLOOKUP(F2953,Translation!$A:$C,3,FALSE),F2953)","v":"Prêts hypothécaires assurés au cours de la période selon le type neuf/existant (%)"},{"$f":"IFERROR(VLOOKUP(G2953,Translation!$A:$C,3,FALSE),G2953)","v":"100.0"},{"$f":"IFERROR(VLOOKUP(H2953,Translation!$A:$C,3,FALSE),H2953)","v":"Saskatchewan"}]
[31,"T1 2019","IMMEUBLES COLLECTIFS RÉSIDENTIELS","Colombie-Britannique",85.334539905027484,"Prêts hypothécaires assurés au cours de la période selon le type neuf/existant (%)","85.3","Colombie-Britannique",{"$f":"IFERROR(VLOOKUP(A2955,Translation!$A:$C,3,FALSE),A2955)","v":31},{"$f":"IFERROR(VLOOKUP(B2955,Translation!$A:$C,3,FALSE),B2955)","v":"T1 2019"},{"$f":"IFERROR(VLOOKUP(C2955,Translation!$A:$C,3,FALSE),C2955)","v":"IMMEUBLES COLLECTIFS RÉSIDENTIELS"},{"$f":"IFERROR(VLOOKUP(D2955,Translation!$A:$C,3,FALSE),D2955)","v":"Colombie-Britannique"},{"$f":"IFERROR(VLOOKUP(E2955,Translation!$A:$C,3,FALSE),E2955)","v":85.334539905027484},{"$f":"IFERROR(VLOOKUP(F2955,Translation!$A:$C,3,FALSE),F2955)","v":"Prêts hypothécaires assurés au cours de la période selon le type neuf/existant (%)"},{"$f":"IFERROR(VLOOKUP(G2955,Translation!$A:$C,3,FALSE),G2955)","v":"85.3"},{"$f":"IFERROR(VLOOKUP(H2955,Translation!$A:$C,3,FALSE),H2955)","v":"Colombie-Britannique"}]
[20,"Cumul 2017","PROPRIÉTAIRES-OCCUPANTS, À L’UNITÉ","Neuf",13.784716184800097,"Prêts hypothécaires assurés au cours de la période selon le type neuf/existant (%)","13.8","Neuf",{"$f":"IFERROR(VLOOKUP(A2958,Translation!$A:$C,3,FALSE),A2958)","v":20},{"$f":"IFERROR(VLOOKUP(B2958,Translation!$A:$C,3,FALSE),B2958)","v":"Cumul 2017"},{"$f":"IFERROR(VLOOKUP(C2958,Translation!$A:$C,3,FALSE),C2958)","v":"PROPRIÉTAIRES-OCCUPANTS, À L’UNITÉ"},{"$f":"IFERROR(VLOOKUP(D2958,Translation!$A:$C,3,FALSE),D2958)","v":"Neuf"},{"$f":"IFERROR(VLOOKUP(E2958,Translation!$A:$C,3,FALSE),E2958)","v":13.784716184800097},{"$f":"IFERROR(VLOOKUP(F2958,Translation!$A:$C,3,FALSE),F2958)","v":"Prêts hypothécaires assurés au cours de la période selon le type neuf/existant (%)"},{"$f":"IFERROR(VLOOKUP(G2958,Translation!$A:$C,3,FALSE),G2958)","v":"13.8"},{"$f":"IFERROR(VLOOKUP(H2958,Translation!$A:$C,3,FALSE),H2958)","v":"Neuf"}]
[20,"T4 2018","PROPRIÉTAIRES-OCCUPANTS, À L’UNITÉ","Terre-Neuve-et-Labrador",86.570468916869487,"Prêts hypothécaires assurés au cours de la période selon le type neuf/existant (%)","86.6","Terre-Neuve-et-Labrador",{"$f":"IFERROR(VLOOKUP(A2961,Translation!$A:$C,3,FALSE),A2961)","v":20},{"$f":"IFERROR(VLOOKUP(B2961,Translation!$A:$C,3,FALSE),B2961)","v":"T4 2018"},{"$f":"IFERROR(VLOOKUP(C2961,Translation!$A:$C,3,FALSE),C2961)","v":"PROPRIÉTAIRES-OCCUPANTS, À L’UNITÉ"},{"$f":"IFERROR(VLOOKUP(D2961,Translation!$A:$C,3,FALSE),D2961)","v":"Terre-Neuve-et-Labrador"},{"$f":"IFERROR(VLOOKUP(E2961,Translation!$A:$C,3,FALSE),E2961)","v":86.570468916869487},{"$f":"IFERROR(VLOOKUP(F2961,Translation!$A:$C,3,FALSE),F2961)","v":"Prêts hypothécaires assurés au cours de la période selon le type neuf/existant (%)"},{"$f":"IFERROR(VLOOKUP(G2961,Translation!$A:$C,3,FALSE),G2961)","v":"86.6"},{"$f":"IFERROR(VLOOKUP(H2961,Translation!$A:$C,3,FALSE),H2961)","v":"Terre-Neuve-et-Labrador"}]
[20,"T4 2018","PROPRIÉTAIRES-OCCUPANTS, À L’UNITÉ","Île-du-Prince-Édouard",83.860494409106693,"Prêts hypothécaires assurés au cours de la période selon le type neuf/existant (%)","83.9","Île-du-Prince-Édouard",{"$f":"IFERROR(VLOOKUP(A2963,Translation!$A:$C,3,FALSE),A2963)","v":20},{"$f":"IFERROR(VLOOKUP(B2963,Translation!$A:$C,3,FALSE),B2963)","v":"T4 2018"},{"$f":"IFERROR(VLOOKUP(C2963,Translation!$A:$C,3,FALSE),C2963)","v":"PROPRIÉTAIRES-OCCUPANTS, À L’UNITÉ"},{"$f":"IFERROR(VLOOKUP(D2963,Translation!$A:$C,3,FALSE),D2963)","v":"Île-du-Prince-Édouard"},{"$f":"IFERROR(VLOOKUP(E2963,Translation!$A:$C,3,FALSE),E2963)","v":83.860494409106693},{"$f":"IFERROR(VLOOKUP(F2963,Translation!$A:$C,3,FALSE),F2963)","v":"Prêts hypothécaires assurés au cours de la période selon le type neuf/existant (%)"},{"$f":"IFERROR(VLOOKUP(G2963,Translation!$A:$C,3,FALSE),G2963)","v":"83.9"},{"$f":"IFERROR(VLOOKUP(H2963,Translation!$A:$C,3,FALSE),H2963)","v":"Île-du-Prince-Édouard"}]
[20,"Cumul 2017","PROPRIÉTAIRES-OCCUPANTS, À L’UNITÉ","Nouvelle-Écosse",89.428794347868191,"Prêts hypothécaires assurés au cours de la période selon le type neuf/existant (%)","89.4","Nouvelle-Écosse",{"$f":"IFERROR(VLOOKUP(A2966,Translation!$A:$C,3,FALSE),A2966)","v":20},{"$f":"IFERROR(VLOOKUP(B2966,Translation!$A:$C,3,FALSE),B2966)","v":"Cumul 2017"},{"$f":"IFERROR(VLOOKUP(C2966,Translation!$A:$C,3,FALSE),C2966)","v":"PROPRIÉTAIRES-OCCUPANTS, À L’UNITÉ"},{"$f":"IFERROR(VLOOKUP(D2966,Translation!$A:$C,3,FALSE),D2966)","v":"Nouvelle-Écosse"},{"$f":"IFERROR(VLOOKUP(E2966,Translation!$A:$C,3,FALSE),E2966)","v":89.428794347868191},{"$f":"IFERROR(VLOOKUP(F2966,Translation!$A:$C,3,FALSE),F2966)","v":"Prêts hypothécaires assurés au cours de la période selon le type neuf/existant (%)"},{"$f":"IFERROR(VLOOKUP(G2966,Translation!$A:$C,3,FALSE),G2966)","v":"89.4"},{"$f":"IFERROR(VLOOKUP(H2966,Translation!$A:$C,3,FALSE),H2966)","v":"Nouvelle-Écosse"}]
[20,"T4 2018","PROPRIÉTAIRES-OCCUPANTS, À L’UNITÉ","Nouveau-Brunswick",86.749359300333253,"Prêts hypothécaires assurés au cours de la période selon le type neuf/existant (%)","86.7","Nouveau-Brunswick",{"$f":"IFERROR(VLOOKUP(A2967,Translation!$A:$C,3,FALSE),A2967)","v":20},{"$f":"IFERROR(VLOOKUP(B2967,Translation!$A:$C,3,FALSE),B2967)","v":"T4 2018"},{"$f":"IFERROR(VLOOKUP(C2967,Translation!$A:$C,3,FALSE),C2967)","v":"PROPRIÉTAIRES-OCCUPANTS, À L’UNITÉ"},{"$f":"IFERROR(VLOOKUP(D2967,Translation!$A:$C,3,FALSE),D2967)","v":"Nouveau-Brunswick"},{"$f":"IFERROR(VLOOKUP(E2967,Translation!$A:$C,3,FALSE),E2967)","v":86.749359300333253},{"$f":"IFERROR(VLOOKUP(F2967,Translation!$A:$C,3,FALSE),F2967)","v":"Prêts hypothécaires assurés au cours de la période selon le type neuf/existant (%)"},{"$f":"IFERROR(VLOOKUP(G2967,Translation!$A:$C,3,FALSE),G2967)","v":"86.7"},{"$f":"IFERROR(VLOOKUP(H2967,Translation!$A:$C,3,FALSE),H2967)","v":"Nouveau-Brunswick"}]
[20,"T4 2018","PROPRIÉTAIRES-OCCUPANTS, À L’UNITÉ","Ontario",90.592591015145942,"Prêts hypothécaires assurés au cours de la période selon le type neuf/existant (%)","90.6","Ontario",{"$f":"IFERROR(VLOOKUP(A2971,Translation!$A:$C,3,FALSE),A2971)","v":20},{"$f":"IFERROR(VLOOKUP(B2971,Translation!$A:$C,3,FALSE),B2971)","v":"T4 2018"},{"$f":"IFERROR(VLOOKUP(C2971,Translation!$A:$C,3,FALSE),C2971)","v":"PROPRIÉTAIRES-OCCUPANTS, À L’UNITÉ"},{"$f":"IFERROR(VLOOKUP(D2971,Translation!$A:$C,3,FALSE),D2971)","v":"Ontario"},{"$f":"IFERROR(VLOOKUP(E2971,Translation!$A:$C,3,FALSE),E2971)","v":90.592591015145942},{"$f":"IFERROR(VLOOKUP(F2971,Translation!$A:$C,3,FALSE),F2971)","v":"Prêts hypothécaires assurés au cours de la période selon le type neuf/existant (%)"},{"$f":"IFERROR(VLOOKUP(G2971,Translation!$A:$C,3,FALSE),G2971)","v":"90.6"},{"$f":"IFERROR(VLOOKUP(H2971,Translation!$A:$C,3,FALSE),H2971)","v":"Ontario"}]
[20,"Cumul 2017","PROPRIÉTAIRES-OCCUPANTS, À L’UNITÉ","Ontario",89.855512614568894,"Prêts hypothécaires assurés au cours de la période selon le type neuf/existant (%)","89.9","Ontario",{"$f":"IFERROR(VLOOKUP(A2972,Translation!$A:$C,3,FALSE),A2972)","v":20},{"$f":"IFERROR(VLOOKUP(B2972,Translation!$A:$C,3,FALSE),B2972)","v":"Cumul 2017"},{"$f":"IFERROR(VLOOKUP(C2972,Translation!$A:$C,3,FALSE),C2972)","v":"PROPRIÉTAIRES-OCCUPANTS, À L’UNITÉ"},{"$f":"IFERROR(VLOOKUP(D2972,Translation!$A:$C,3,FALSE),D2972)","v":"Ontario"},{"$f":"IFERROR(VLOOKUP(E2972,Translation!$A:$C,3,FALSE),E2972)","v":89.855512614568894},{"$f":"IFERROR(VLOOKUP(F2972,Translation!$A:$C,3,FALSE),F2972)","v":"Prêts hypothécaires assurés au cours de la période selon le type neuf/existant (%)"},{"$f":"IFERROR(VLOOKUP(G2972,Translation!$A:$C,3,FALSE),G2972)","v":"89.9"},{"$f":"IFERROR(VLOOKUP(H2972,Translation!$A:$C,3,FALSE),H2972)","v":"Ontario"}]
[20,"Cumul 2017","PROPRIÉTAIRES-OCCUPANTS, À L’UNITÉ","Manitoba",85.023794785308851,"Prêts hypothécaires assurés au cours de la période selon le type neuf/existant (%)","85.0","Manitoba",{"$f":"IFERROR(VLOOKUP(A2974,Translation!$A:$C,3,FALSE),A2974)","v":20},{"$f":"IFERROR(VLOOKUP(B2974,Translation!$A:$C,3,FALSE),B2974)","v":"Cumul 2017"},{"$f":"IFERROR(VLOOKUP(C2974,Translation!$A:$C,3,FALSE),C2974)","v":"PROPRIÉTAIRES-OCCUPANTS, À L’UNITÉ"},{"$f":"IFERROR(VLOOKUP(D2974,Translation!$A:$C,3,FALSE),D2974)","v":"Manitoba"},{"$f":"IFERROR(VLOOKUP(E2974,Translation!$A:$C,3,FALSE),E2974)","v":85.023794785308851},{"$f":"IFERROR(VLOOKUP(F2974,Translation!$A:$C,3,FALSE),F2974)","v":"Prêts hypothécaires assurés au cours de la période selon le type neuf/existant (%)"},{"$f":"IFERROR(VLOOKUP(G2974,Translation!$A:$C,3,FALSE),G2974)","v":"85.0"},{"$f":"IFERROR(VLOOKUP(H2974,Translation!$A:$C,3,FALSE),H2974)","v":"Manitoba"}]
[20,"T4 2018","PROPRIÉTAIRES-OCCUPANTS, À L’UNITÉ","Alberta",75.987461237853623,"Prêts hypothécaires assurés au cours de la période selon le type neuf/existant (%)","76.0","Alberta",{"$f":"IFERROR(VLOOKUP(A2977,Translation!$A:$C,3,FALSE),A2977)","v":20},{"$f":"IFERROR(VLOOKUP(B2977,Translation!$A:$C,3,FALSE),B2977)","v":"T4 2018"},{"$f":"IFERROR(VLOOKUP(C2977,Translation!$A:$C,3,FALSE),C2977)","v":"PROPRIÉTAIRES-OCCUPANTS, À L’UNITÉ"},{"$f":"IFERROR(VLOOKUP(D2977,Translation!$A:$C,3,FALSE),D2977)","v":"Alberta"},{"$f":"IFERROR(VLOOKUP(E2977,Translation!$A:$C,3,FALSE),E2977)","v":75.987461237853623},{"$f":"IFERROR(VLOOKUP(F2977,Translation!$A:$C,3,FALSE),F2977)","v":"Prêts hypothécaires assurés au cours de la période selon le type neuf/existant (%)"},{"$f":"IFERROR(VLOOKUP(G2977,Translation!$A:$C,3,FALSE),G2977)","v":"76.0"},{"$f":"IFERROR(VLOOKUP(H2977,Translation!$A:$C,3,FALSE),H2977)","v":"Alberta"}]
[20,"Cumul 2017","PROPRIÉTAIRES-OCCUPANTS, À L’UNITÉ","Colombie-Britannique",90.233090975832354,"Prêts hypothécaires assurés au cours de la période selon le type neuf/existant (%)","90.2","Colombie-Britannique",{"$f":"IFERROR(VLOOKUP(A2980,Translation!$A:$C,3,FALSE),A2980)","v":20},{"$f":"IFERROR(VLOOKUP(B2980,Translation!$A:$C,3,FALSE),B2980)","v":"Cumul 2017"},{"$f":"IFERROR(VLOOKUP(C2980,Translation!$A:$C,3,FALSE),C2980)","v":"PROPRIÉTAIRES-OCCUPANTS, À L’UNITÉ"},{"$f":"IFERROR(VLOOKUP(D2980,Translation!$A:$C,3,FALSE),D2980)","v":"Colombie-Britannique"},{"$f":"IFERROR(VLOOKUP(E2980,Translation!$A:$C,3,FALSE),E2980)","v":90.233090975832354},{"$f":"IFERROR(VLOOKUP(F2980,Translation!$A:$C,3,FALSE),F2980)","v":"Prêts hypothécaires assurés au cours de la période selon le type neuf/existant (%)"},{"$f":"IFERROR(VLOOKUP(G2980,Translation!$A:$C,3,FALSE),G2980)","v":"90.2"},{"$f":"IFERROR(VLOOKUP(H2980,Translation!$A:$C,3,FALSE),H2980)","v":"Colombie-Britannique"}]
[20,"Cumul 2017","PROPRIÉTAIRES-OCCUPANTS, À L’UNITÉ","Territoires",89.60375222953482,"Prêts hypothécaires assurés au cours de la période selon le type neuf/existant (%)","89.6","Territoires",{"$f":"IFERROR(VLOOKUP(A2982,Translation!$A:$C,3,FALSE),A2982)","v":20},{"$f":"IFERROR(VLOOKUP(B2982,Translation!$A:$C,3,FALSE),B2982)","v":"Cumul 2017"},{"$f":"IFERROR(VLOOKUP(C2982,Translation!$A:$C,3,FALSE),C2982)","v":"PROPRIÉTAIRES-OCCUPANTS, À L’UNITÉ"},{"$f":"IFERROR(VLOOKUP(D2982,Translation!$A:$C,3,FALSE),D2982)","v":"Territoires"},{"$f":"IFERROR(VLOOKUP(E2982,Translation!$A:$C,3,FALSE),E2982)","v":89.60375222953482},{"$f":"IFERROR(VLOOKUP(F2982,Translation!$A:$C,3,FALSE),F2982)","v":"Prêts hypothécaires assurés au cours de la période selon le type neuf/existant (%)"},{"$f":"IFERROR(VLOOKUP(G2982,Translation!$A:$C,3,FALSE),G2982)","v":"89.6"},{"$f":"IFERROR(VLOOKUP(H2982,Translation!$A:$C,3,FALSE),H2982)","v":"Territoires"}]
[31,"T4 2018","IMMEUBLES COLLECTIFS RÉSIDENTIELS","Existant",80.590403871289652,"Prêts hypothécaires assurés au cours de la période selon le type neuf/existant (%)","80.6","Existant",{"$f":"IFERROR(VLOOKUP(A2985,Translation!$A:$C,3,FALSE),A2985)","v":31},{"$f":"IFERROR(VLOOKUP(B2985,Translation!$A:$C,3,FALSE),B2985)","v":"T4 2018"},{"$f":"IFERROR(VLOOKUP(C2985,Translation!$A:$C,3,FALSE),C2985)","v":"IMMEUBLES COLLECTIFS RÉSIDENTIELS"},{"$f":"IFERROR(VLOOKUP(D2985,Translation!$A:$C,3,FALSE),D2985)","v":"Existant"},{"$f":"IFERROR(VLOOKUP(E2985,Translation!$A:$C,3,FALSE),E2985)","v":80.590403871289652},{"$f":"IFERROR(VLOOKUP(F2985,Translation!$A:$C,3,FALSE),F2985)","v":"Prêts hypothécaires assurés au cours de la période selon le type neuf/existant (%)"},{"$f":"IFERROR(VLOOKUP(G2985,Translation!$A:$C,3,FALSE),G2985)","v":"80.6"},{"$f":"IFERROR(VLOOKUP(H2985,Translation!$A:$C,3,FALSE),H2985)","v":"Existant"}]
[31,"Cumul 2017","IMMEUBLES COLLECTIFS RÉSIDENTIELS","Terre-Neuve-et-Labrador",100,"Prêts hypothécaires assurés au cours de la période selon le type neuf/existant (%)","100.0","Terre-Neuve-et-Labrador",{"$f":"IFERROR(VLOOKUP(A2987,Translation!$A:$C,3,FALSE),A2987)","v":31},{"$f":"IFERROR(VLOOKUP(B2987,Translation!$A:$C,3,FALSE),B2987)","v":"Cumul 2017"},{"$f":"IFERROR(VLOOKUP(C2987,Translation!$A:$C,3,FALSE),C2987)","v":"IMMEUBLES COLLECTIFS RÉSIDENTIELS"},{"$f":"IFERROR(VLOOKUP(D2987,Translation!$A:$C,3,FALSE),D2987)","v":"Terre-Neuve-et-Labrador"},{"$f":"IFERROR(VLOOKUP(E2987,Translation!$A:$C,3,FALSE),E2987)","v":100},{"$f":"IFERROR(VLOOKUP(F2987,Translation!$A:$C,3,FALSE),F2987)","v":"Prêts hypothécaires assurés au cours de la période selon le type neuf/existant (%)"},{"$f":"IFERROR(VLOOKUP(G2987,Translation!$A:$C,3,FALSE),G2987)","v":"100.0"},{"$f":"IFERROR(VLOOKUP(H2987,Translation!$A:$C,3,FALSE),H2987)","v":"Terre-Neuve-et-Labrador"}]
[31,"T4 2018","IMMEUBLES COLLECTIFS RÉSIDENTIELS","Nouvelle-Écosse",38.753170182934944,"Prêts hypothécaires assurés au cours de la période selon le type neuf/existant (%)","38.8","Nouvelle-Écosse",{"$f":"IFERROR(VLOOKUP(A2990,Translation!$A:$C,3,FALSE),A2990)","v":31},{"$f":"IFERROR(VLOOKUP(B2990,Translation!$A:$C,3,FALSE),B2990)","v":"T4 2018"},{"$f":"IFERROR(VLOOKUP(C2990,Translation!$A:$C,3,FALSE),C2990)","v":"IMMEUBLES COLLECTIFS RÉSIDENTIELS"},{"$f":"IFERROR(VLOOKUP(D2990,Translation!$A:$C,3,FALSE),D2990)","v":"Nouvelle-Écosse"},{"$f":"IFERROR(VLOOKUP(E2990,Translation!$A:$C,3,FALSE),E2990)","v":38.753170182934944},{"$f":"IFERROR(VLOOKUP(F2990,Translation!$A:$C,3,FALSE),F2990)","v":"Prêts hypothécaires assurés au cours de la période selon le type neuf/existant (%)"},{"$f":"IFERROR(VLOOKUP(G2990,Translation!$A:$C,3,FALSE),G2990)","v":"38.8"},{"$f":"IFERROR(VLOOKUP(H2990,Translation!$A:$C,3,FALSE),H2990)","v":"Nouvelle-Écosse"}]
[31,"Cumul 2017","IMMEUBLES COLLECTIFS RÉSIDENTIELS","Nouvelle-Écosse",53.405589557679683,"Prêts hypothécaires assurés au cours de la période selon le type neuf/existant (%)","53.4","Nouvelle-Écosse",{"$f":"IFERROR(VLOOKUP(A2991,Translation!$A:$C,3,FALSE),A2991)","v":31},{"$f":"IFERROR(VLOOKUP(B2991,Translation!$A:$C,3,FALSE),B2991)","v":"Cumul 2017"},{"$f":"IFERROR(VLOOKUP(C2991,Translation!$A:$C,3,FALSE),C2991)","v":"IMMEUBLES COLLECTIFS RÉSIDENTIELS"},{"$f":"IFERROR(VLOOKUP(D2991,Translation!$A:$C,3,FALSE),D2991)","v":"Nouvelle-Écosse"},{"$f":"IFERROR(VLOOKUP(E2991,Translation!$A:$C,3,FALSE),E2991)","v":53.405589557679683},{"$f":"IFERROR(VLOOKUP(F2991,Translation!$A:$C,3,FALSE),F2991)","v":"Prêts hypothécaires assurés au cours de la période selon le type neuf/existant (%)"},{"$f":"IFERROR(VLOOKUP(G2991,Translation!$A:$C,3,FALSE),G2991)","v":"53.4"},{"$f":"IFERROR(VLOOKUP(H2991,Translation!$A:$C,3,FALSE),H2991)","v":"Nouvelle-Écosse"}]
[31,"Cumul 2017","IMMEUBLES COLLECTIFS RÉSIDENTIELS","Nouveau-Brunswick",79.01410298397218,"Prêts hypothécaires assurés au cours de la période selon le type neuf/existant (%)","79.0","Nouveau-Brunswick",{"$f":"IFERROR(VLOOKUP(A2993,Translation!$A:$C,3,FALSE),A2993)","v":31},{"$f":"IFERROR(VLOOKUP(B2993,Translation!$A:$C,3,FALSE),B2993)","v":"Cumul 2017"},{"$f":"IFERROR(VLOOKUP(C2993,Translation!$A:$C,3,FALSE),C2993)","v":"IMMEUBLES COLLECTIFS RÉSIDENTIELS"},{"$f":"IFERROR(VLOOKUP(D2993,Translation!$A:$C,3,FALSE),D2993)","v":"Nouveau-Brunswick"},{"$f":"IFERROR(VLOOKUP(E2993,Translation!$A:$C,3,FALSE),E2993)","v":79.01410298397218},{"$f":"IFERROR(VLOOKUP(F2993,Translation!$A:$C,3,FALSE),F2993)","v":"Prêts hypothécaires assurés au cours de la période selon le type neuf/existant (%)"},{"$f":"IFERROR(VLOOKUP(G2993,Translation!$A:$C,3,FALSE),G2993)","v":"79.0"},{"$f":"IFERROR(VLOOKUP(H2993,Translation!$A:$C,3,FALSE),H2993)","v":"Nouveau-Brunswick"}]
[31,"T4 2018","IMMEUBLES COLLECTIFS RÉSIDENTIELS","Ontario",76.653246398462684,"Prêts hypothécaires assurés au cours de la période selon le type neuf/existant (%)","76.7","Ontario",{"$f":"IFERROR(VLOOKUP(A2996,Translation!$A:$C,3,FALSE),A2996)","v":31},{"$f":"IFERROR(VLOOKUP(B2996,Translation!$A:$C,3,FALSE),B2996)","v":"T4 2018"},{"$f":"IFERROR(VLOOKUP(C2996,Translation!$A:$C,3,FALSE),C2996)","v":"IMMEUBLES COLLECTIFS RÉSIDENTIELS"},{"$f":"IFERROR(VLOOKUP(D2996,Translation!$A:$C,3,FALSE),D2996)","v":"Ontario"},{"$f":"IFERROR(VLOOKUP(E2996,Translation!$A:$C,3,FALSE),E2996)","v":76.653246398462684},{"$f":"IFERROR(VLOOKUP(F2996,Translation!$A:$C,3,FALSE),F2996)","v":"Prêts hypothécaires assurés au cours de la période selon le type neuf/existant (%)"},{"$f":"IFERROR(VLOOKUP(G2996,Translation!$A:$C,3,FALSE),G2996)","v":"76.7"},{"$f":"IFERROR(VLOOKUP(H2996,Translation!$A:$C,3,FALSE),H2996)","v":"Ontario"}]
[31,"T4 2018","IMMEUBLES COLLECTIFS RÉSIDENTIELS","Manitoba",76.890822084472987,"Prêts hypothécaires assurés au cours de la période selon le type neuf/existant (%)","76.9","Manitoba",{"$f":"IFERROR(VLOOKUP(A2998,Translation!$A:$C,3,FALSE),A2998)","v":31},{"$f":"IFERROR(VLOOKUP(B2998,Translation!$A:$C,3,FALSE),B2998)","v":"T4 2018"},{"$f":"IFERROR(VLOOKUP(C2998,Translation!$A:$C,3,FALSE),C2998)","v":"IMMEUBLES COLLECTIFS RÉSIDENTIELS"},{"$f":"IFERROR(VLOOKUP(D2998,Translation!$A:$C,3,FALSE),D2998)","v":"Manitoba"},{"$f":"IFERROR(VLOOKUP(E2998,Translation!$A:$C,3,FALSE),E2998)","v":76.890822084472987},{"$f":"IFERROR(VLOOKUP(F2998,Translation!$A:$C,3,FALSE),F2998)","v":"Prêts hypothécaires assurés au cours de la période selon le type neuf/existant (%)"},{"$f":"IFERROR(VLOOKUP(G2998,Translation!$A:$C,3,FALSE),G2998)","v":"76.9"},{"$f":"IFERROR(VLOOKUP(H2998,Translation!$A:$C,3,FALSE),H2998)","v":"Manitoba"}]
[31,"Cumul 2017","IMMEUBLES COLLECTIFS RÉSIDENTIELS","Saskatchewan",56.104257316202592,"Prêts hypothécaires assurés au cours de la période selon le type neuf/existant (%)","56.1","Saskatchewan",{"$f":"IFERROR(VLOOKUP(A3001,Translation!$A:$C,3,FALSE),A3001)","v":31},{"$f":"IFERROR(VLOOKUP(B3001,Translation!$A:$C,3,FALSE),B3001)","v":"Cumul 2017"},{"$f":"IFERROR(VLOOKUP(C3001,Translation!$A:$C,3,FALSE),C3001)","v":"IMMEUBLES COLLECTIFS RÉSIDENTIELS"},{"$f":"IFERROR(VLOOKUP(D3001,Translation!$A:$C,3,FALSE),D3001)","v":"Saskatchewan"},{"$f":"IFERROR(VLOOKUP(E3001,Translation!$A:$C,3,FALSE),E3001)","v":56.104257316202592},{"$f":"IFERROR(VLOOKUP(F3001,Translation!$A:$C,3,FALSE),F3001)","v":"Prêts hypothécaires assurés au cours de la période selon le type neuf/existant (%)"},{"$f":"IFERROR(VLOOKUP(G3001,Translation!$A:$C,3,FALSE),G3001)","v":"56.1"},{"$f":"IFERROR(VLOOKUP(H3001,Translation!$A:$C,3,FALSE),H3001)","v":"Saskatchewan"}]
[31,"T4 2018","IMMEUBLES COLLECTIFS RÉSIDENTIELS","Colombie-Britannique",88.6036661916133,"Prêts hypothécaires assurés au cours de la période selon le type neuf/existant (%)","88.6","Colombie-Britannique",{"$f":"IFERROR(VLOOKUP(A3004,Translation!$A:$C,3,FALSE),A3004)","v":31},{"$f":"IFERROR(VLOOKUP(B3004,Translation!$A:$C,3,FALSE),B3004)","v":"T4 2018"},{"$f":"IFERROR(VLOOKUP(C3004,Translation!$A:$C,3,FALSE),C3004)","v":"IMMEUBLES COLLECTIFS RÉSIDENTIELS"},{"$f":"IFERROR(VLOOKUP(D3004,Translation!$A:$C,3,FALSE),D3004)","v":"Colombie-Britannique"},{"$f":"IFERROR(VLOOKUP(E3004,Translation!$A:$C,3,FALSE),E3004)","v":88.6036661916133},{"$f":"IFERROR(VLOOKUP(F3004,Translation!$A:$C,3,FALSE),F3004)","v":"Prêts hypothécaires assurés au cours de la période selon le type neuf/existant (%)"},{"$f":"IFERROR(VLOOKUP(G3004,Translation!$A:$C,3,FALSE),G3004)","v":"88.6"},{"$f":"IFERROR(VLOOKUP(H3004,Translation!$A:$C,3,FALSE),H3004)","v":"Colombie-Britannique"}]
[31,"Cumul 2017","IMMEUBLES COLLECTIFS RÉSIDENTIELS","Territoires",100,"Prêts hypothécaires assurés au cours de la période selon le type neuf/existant (%)","100.0","Territoires",{"$f":"IFERROR(VLOOKUP(A3007,Translation!$A:$C,3,FALSE),A3007)","v":31},{"$f":"IFERROR(VLOOKUP(B3007,Translation!$A:$C,3,FALSE),B3007)","v":"Cumul 2017"},{"$f":"IFERROR(VLOOKUP(C3007,Translation!$A:$C,3,FALSE),C3007)","v":"IMMEUBLES COLLECTIFS RÉSIDENTIELS"},{"$f":"IFERROR(VLOOKUP(D3007,Translation!$A:$C,3,FALSE),D3007)","v":"Territoires"},{"$f":"IFERROR(VLOOKUP(E3007,Translation!$A:$C,3,FALSE),E3007)","v":100},{"$f":"IFERROR(VLOOKUP(F3007,Translation!$A:$C,3,FALSE),F3007)","v":"Prêts hypothécaires assurés au cours de la période selon le type neuf/existant (%)"},{"$f":"IFERROR(VLOOKUP(G3007,Translation!$A:$C,3,FALSE),G3007)","v":"100.0"},{"$f":"IFERROR(VLOOKUP(H3007,Translation!$A:$C,3,FALSE),H3007)","v":"Territoires"}]
[20,"T3 2018","PROPRIÉTAIRES-OCCUPANTS, À L’UNITÉ","Existant",88.856538062981485,"Prêts hypothécaires assurés au cours de la période selon le type neuf/existant (%)","88.9","Existant",{"$f":"IFERROR(VLOOKUP(A3009,Translation!$A:$C,3,FALSE),A3009)","v":20},{"$f":"IFERROR(VLOOKUP(B3009,Translation!$A:$C,3,FALSE),B3009)","v":"T3 2018"},{"$f":"IFERROR(VLOOKUP(C3009,Translation!$A:$C,3,FALSE),C3009)","v":"PROPRIÉTAIRES-OCCUPANTS, À L’UNITÉ"},{"$f":"IFERROR(VLOOKUP(D3009,Translation!$A:$C,3,FALSE),D3009)","v":"Existant"},{"$f":"IFERROR(VLOOKUP(E3009,Translation!$A:$C,3,FALSE),E3009)","v":88.856538062981485},{"$f":"IFERROR(VLOOKUP(F3009,Translation!$A:$C,3,FALSE),F3009)","v":"Prêts hypothécaires assurés au cours de la période selon le type neuf/existant (%)"},{"$f":"IFERROR(VLOOKUP(G3009,Translation!$A:$C,3,FALSE),G3009)","v":"88.9"},{"$f":"IFERROR(VLOOKUP(H3009,Translation!$A:$C,3,FALSE),H3009)","v":"Existant"}]
[20,"T3 2018","PROPRIÉTAIRES-OCCUPANTS, À L’UNITÉ","Nouvelle-Écosse",91.954611733346965,"Prêts hypothécaires assurés au cours de la période selon le type neuf/existant (%)","92.0","Nouvelle-Écosse",{"$f":"IFERROR(VLOOKUP(A3012,Translation!$A:$C,3,FALSE),A3012)","v":20},{"$f":"IFERROR(VLOOKUP(B3012,Translation!$A:$C,3,FALSE),B3012)","v":"T3 2018"},{"$f":"IFERROR(VLOOKUP(C3012,Translation!$A:$C,3,FALSE),C3012)","v":"PROPRIÉTAIRES-OCCUPANTS, À L’UNITÉ"},{"$f":"IFERROR(VLOOKUP(D3012,Translation!$A:$C,3,FALSE),D3012)","v":"Nouvelle-Écosse"},{"$f":"IFERROR(VLOOKUP(E3012,Translation!$A:$C,3,FALSE),E3012)","v":91.954611733346965},{"$f":"IFERROR(VLOOKUP(F3012,Translation!$A:$C,3,FALSE),F3012)","v":"Prêts hypothécaires assurés au cours de la période selon le type neuf/existant (%)"},{"$f":"IFERROR(VLOOKUP(G3012,Translation!$A:$C,3,FALSE),G3012)","v":"92.0"},{"$f":"IFERROR(VLOOKUP(H3012,Translation!$A:$C,3,FALSE),H3012)","v":"Nouvelle-Écosse"}]
[20,"T3 2018","PROPRIÉTAIRES-OCCUPANTS, À L’UNITÉ","Québec",86.274536869945649,"Prêts hypothécaires assurés au cours de la période selon le type neuf/existant (%)","86.3","Québec",{"$f":"IFERROR(VLOOKUP(A3014,Translation!$A:$C,3,FALSE),A3014)","v":20},{"$f":"IFERROR(VLOOKUP(B3014,Translation!$A:$C,3,FALSE),B3014)","v":"T3 2018"},{"$f":"IFERROR(VLOOKUP(C3014,Translation!$A:$C,3,FALSE),C3014)","v":"PROPRIÉTAIRES-OCCUPANTS, À L’UNITÉ"},{"$f":"IFERROR(VLOOKUP(D3014,Translation!$A:$C,3,FALSE),D3014)","v":"Québec"},{"$f":"IFERROR(VLOOKUP(E3014,Translation!$A:$C,3,FALSE),E3014)","v":86.274536869945649},{"$f":"IFERROR(VLOOKUP(F3014,Translation!$A:$C,3,FALSE),F3014)","v":"Prêts hypothécaires assurés au cours de la période selon le type neuf/existant (%)"},{"$f":"IFERROR(VLOOKUP(G3014,Translation!$A:$C,3,FALSE),G3014)","v":"86.3"},{"$f":"IFERROR(VLOOKUP(H3014,Translation!$A:$C,3,FALSE),H3014)","v":"Québec"}]
[20,"T3 2018","PROPRIÉTAIRES-OCCUPANTS, À L’UNITÉ","Ontario",92.960553309220074,"Prêts hypothécaires assurés au cours de la période selon le type neuf/existant (%)","93.0","Ontario",{"$f":"IFERROR(VLOOKUP(A3015,Translation!$A:$C,3,FALSE),A3015)","v":20},{"$f":"IFERROR(VLOOKUP(B3015,Translation!$A:$C,3,FALSE),B3015)","v":"T3 2018"},{"$f":"IFERROR(VLOOKUP(C3015,Translation!$A:$C,3,FALSE),C3015)","v":"PROPRIÉTAIRES-OCCUPANTS, À L’UNITÉ"},{"$f":"IFERROR(VLOOKUP(D3015,Translation!$A:$C,3,FALSE),D3015)","v":"Ontario"},{"$f":"IFERROR(VLOOKUP(E3015,Translation!$A:$C,3,FALSE),E3015)","v":92.960553309220074},{"$f":"IFERROR(VLOOKUP(F3015,Translation!$A:$C,3,FALSE),F3015)","v":"Prêts hypothécaires assurés au cours de la période selon le type neuf/existant (%)"},{"$f":"IFERROR(VLOOKUP(G3015,Translation!$A:$C,3,FALSE),G3015)","v":"93.0"},{"$f":"IFERROR(VLOOKUP(H3015,Translation!$A:$C,3,FALSE),H3015)","v":"Ontario"}]
[20,"T3 2018","PROPRIÉTAIRES-OCCUPANTS, À L’UNITÉ","Saskatchewan",89.754814443546479,"Prêts hypothécaires assurés au cours de la période selon le type neuf/existant (%)","89.8","Saskatchewan",{"$f":"IFERROR(VLOOKUP(A3017,Translation!$A:$C,3,FALSE),A3017)","v":20},{"$f":"IFERROR(VLOOKUP(B3017,Translation!$A:$C,3,FALSE),B3017)","v":"T3 2018"},{"$f":"IFERROR(VLOOKUP(C3017,Translation!$A:$C,3,FALSE),C3017)","v":"PROPRIÉTAIRES-OCCUPANTS, À L’UNITÉ"},{"$f":"IFERROR(VLOOKUP(D3017,Translation!$A:$C,3,FALSE),D3017)","v":"Saskatchewan"},{"$f":"IFERROR(VLOOKUP(E3017,Translation!$A:$C,3,FALSE),E3017)","v":89.754814443546479},{"$f":"IFERROR(VLOOKUP(F3017,Translation!$A:$C,3,FALSE),F3017)","v":"Prêts hypothécaires assurés au cours de la période selon le type neuf/existant (%)"},{"$f":"IFERROR(VLOOKUP(G3017,Translation!$A:$C,3,FALSE),G3017)","v":"89.8"},{"$f":"IFERROR(VLOOKUP(H3017,Translation!$A:$C,3,FALSE),H3017)","v":"Saskatchewan"}]
[20,"T3 2018","PROPRIÉTAIRES-OCCUPANTS, À L’UNITÉ","Territoires",90.131673018487845,"Prêts hypothécaires assurés au cours de la période selon le type neuf/existant (%)","90.1","Territoires",{"$f":"IFERROR(VLOOKUP(A3020,Translation!$A:$C,3,FALSE),A3020)","v":20},{"$f":"IFERROR(VLOOKUP(B3020,Translation!$A:$C,3,FALSE),B3020)","v":"T3 2018"},{"$f":"IFERROR(VLOOKUP(C3020,Translation!$A:$C,3,FALSE),C3020)","v":"PROPRIÉTAIRES-OCCUPANTS, À L’UNITÉ"},{"$f":"IFERROR(VLOOKUP(D3020,Translation!$A:$C,3,FALSE),D3020)","v":"Territoires"},{"$f":"IFERROR(VLOOKUP(E3020,Translation!$A:$C,3,FALSE),E3020)","v":90.131673018487845},{"$f":"IFERROR(VLOOKUP(F3020,Translation!$A:$C,3,FALSE),F3020)","v":"Prêts hypothécaires assurés au cours de la période selon le type neuf/existant (%)"},{"$f":"IFERROR(VLOOKUP(G3020,Translation!$A:$C,3,FALSE),G3020)","v":"90.1"},{"$f":"IFERROR(VLOOKUP(H3020,Translation!$A:$C,3,FALSE),H3020)","v":"Territoires"}]
[31,"T3 2018","IMMEUBLES COLLECTIFS RÉSIDENTIELS","Terre-Neuve-et-Labrador",42.449481887199056,"Prêts hypothécaires assurés au cours de la période selon le type neuf/existant (%)","42.4","Terre-Neuve-et-Labrador",{"$f":"IFERROR(VLOOKUP(A3023,Translation!$A:$C,3,FALSE),A3023)","v":31},{"$f":"IFERROR(VLOOKUP(B3023,Translation!$A:$C,3,FALSE),B3023)","v":"T3 2018"},{"$f":"IFERROR(VLOOKUP(C3023,Translation!$A:$C,3,FALSE),C3023)","v":"IMMEUBLES COLLECTIFS RÉSIDENTIELS"},{"$f":"IFERROR(VLOOKUP(D3023,Translation!$A:$C,3,FALSE),D3023)","v":"Terre-Neuve-et-Labrador"},{"$f":"IFERROR(VLOOKUP(E3023,Translation!$A:$C,3,FALSE),E3023)","v":42.449481887199056},{"$f":"IFERROR(VLOOKUP(F3023,Translation!$A:$C,3,FALSE),F3023)","v":"Prêts hypothécaires assurés au cours de la période selon le type neuf/existant (%)"},{"$f":"IFERROR(VLOOKUP(G3023,Translation!$A:$C,3,FALSE),G3023)","v":"42.4"},{"$f":"IFERROR(VLOOKUP(H3023,Translation!$A:$C,3,FALSE),H3023)","v":"Terre-Neuve-et-Labrador"}]
[31,"T3 2018","IMMEUBLES COLLECTIFS RÉSIDENTIELS","Nouvelle-Écosse",44.618452301169057,"Prêts hypothécaires assurés au cours de la période selon le type neuf/existant (%)","44.6","Nouvelle-Écosse",{"$f":"IFERROR(VLOOKUP(A3025,Translation!$A:$C,3,FALSE),A3025)","v":31},{"$f":"IFERROR(VLOOKUP(B3025,Translation!$A:$C,3,FALSE),B3025)","v":"T3 2018"},{"$f":"IFERROR(VLOOKUP(C3025,Translation!$A:$C,3,FALSE),C3025)","v":"IMMEUBLES COLLECTIFS RÉSIDENTIELS"},{"$f":"IFERROR(VLOOKUP(D3025,Translation!$A:$C,3,FALSE),D3025)","v":"Nouvelle-Écosse"},{"$f":"IFERROR(VLOOKUP(E3025,Translation!$A:$C,3,FALSE),E3025)","v":44.618452301169057},{"$f":"IFERROR(VLOOKUP(F3025,Translation!$A:$C,3,FALSE),F3025)","v":"Prêts hypothécaires assurés au cours de la période selon le type neuf/existant (%)"},{"$f":"IFERROR(VLOOKUP(G3025,Translation!$A:$C,3,FALSE),G3025)","v":"44.6"},{"$f":"IFERROR(VLOOKUP(H3025,Translation!$A:$C,3,FALSE),H3025)","v":"Nouvelle-Écosse"}]
[31,"T3 2018","IMMEUBLES COLLECTIFS RÉSIDENTIELS","Ontario",85.056686012623018,"Prêts hypothécaires assurés au cours de la période selon le type neuf/existant (%)","85.1","Ontario",{"$f":"IFERROR(VLOOKUP(A3028,Translation!$A:$C,3,FALSE),A3028)","v":31},{"$f":"IFERROR(VLOOKUP(B3028,Translation!$A:$C,3,FALSE),B3028)","v":"T3 2018"},{"$f":"IFERROR(VLOOKUP(C3028,Translation!$A:$C,3,FALSE),C3028)","v":"IMMEUBLES COLLECTIFS RÉSIDENTIELS"},{"$f":"IFERROR(VLOOKUP(D3028,Translation!$A:$C,3,FALSE),D3028)","v":"Ontario"},{"$f":"IFERROR(VLOOKUP(E3028,Translation!$A:$C,3,FALSE),E3028)","v":85.056686012623018},{"$f":"IFERROR(VLOOKUP(F3028,Translation!$A:$C,3,FALSE),F3028)","v":"Prêts hypothécaires assurés au cours de la période selon le type neuf/existant (%)"},{"$f":"IFERROR(VLOOKUP(G3028,Translation!$A:$C,3,FALSE),G3028)","v":"85.1"},{"$f":"IFERROR(VLOOKUP(H3028,Translation!$A:$C,3,FALSE),H3028)","v":"Ontario"}]
[31,"T3 2018","IMMEUBLES COLLECTIFS RÉSIDENTIELS","Alberta",55.553842486666966,"Prêts hypothécaires assurés au cours de la période selon le type neuf/existant (%)","55.6","Alberta",{"$f":"IFERROR(VLOOKUP(A3031,Translation!$A:$C,3,FALSE),A3031)","v":31},{"$f":"IFERROR(VLOOKUP(B3031,Translation!$A:$C,3,FALSE),B3031)","v":"T3 2018"},{"$f":"IFERROR(VLOOKUP(C3031,Translation!$A:$C,3,FALSE),C3031)","v":"IMMEUBLES COLLECTIFS RÉSIDENTIELS"},{"$f":"IFERROR(VLOOKUP(D3031,Translation!$A:$C,3,FALSE),D3031)","v":"Alberta"},{"$f":"IFERROR(VLOOKUP(E3031,Translation!$A:$C,3,FALSE),E3031)","v":55.553842486666966},{"$f":"IFERROR(VLOOKUP(F3031,Translation!$A:$C,3,FALSE),F3031)","v":"Prêts hypothécaires assurés au cours de la période selon le type neuf/existant (%)"},{"$f":"IFERROR(VLOOKUP(G3031,Translation!$A:$C,3,FALSE),G3031)","v":"55.6"},{"$f":"IFERROR(VLOOKUP(H3031,Translation!$A:$C,3,FALSE),H3031)","v":"Alberta"}]
[31,"T3 2018","IMMEUBLES COLLECTIFS RÉSIDENTIELS","Territoires",100,"Prêts hypothécaires assurés au cours de la période selon le type neuf/existant (%)","100.0","Territoires",{"$f":"IFERROR(VLOOKUP(A3033,Translation!$A:$C,3,FALSE),A3033)","v":31},{"$f":"IFERROR(VLOOKUP(B3033,Translation!$A:$C,3,FALSE),B3033)","v":"T3 2018"},{"$f":"IFERROR(VLOOKUP(C3033,Translation!$A:$C,3,FALSE),C3033)","v":"IMMEUBLES COLLECTIFS RÉSIDENTIELS"},{"$f":"IFERROR(VLOOKUP(D3033,Translation!$A:$C,3,FALSE),D3033)","v":"Territoires"},{"$f":"IFERROR(VLOOKUP(E3033,Translation!$A:$C,3,FALSE),E3033)","v":100},{"$f":"IFERROR(VLOOKUP(F3033,Translation!$A:$C,3,FALSE),F3033)","v":"Prêts hypothécaires assurés au cours de la période selon le type neuf/existant (%)"},{"$f":"IFERROR(VLOOKUP(G3033,Translation!$A:$C,3,FALSE),G3033)","v":"100.0"},{"$f":"IFERROR(VLOOKUP(H3033,Translation!$A:$C,3,FALSE),H3033)","v":"Territoires"}]
[20,"T2 2018","PROPRIÉTAIRES-OCCUPANTS, À L’UNITÉ","Neuf",11.46481327756409,"Prêts hypothécaires assurés au cours de la période selon le type neuf/existant (%)","11.5","Neuf",{"$f":"IFERROR(VLOOKUP(A3034,Translation!$A:$C,3,FALSE),A3034)","v":20},{"$f":"IFERROR(VLOOKUP(B3034,Translation!$A:$C,3,FALSE),B3034)","v":"T2 2018"},{"$f":"IFERROR(VLOOKUP(C3034,Translation!$A:$C,3,FALSE),C3034)","v":"PROPRIÉTAIRES-OCCUPANTS, À L’UNITÉ"},{"$f":"IFERROR(VLOOKUP(D3034,Translation!$A:$C,3,FALSE),D3034)","v":"Neuf"},{"$f":"IFERROR(VLOOKUP(E3034,Translation!$A:$C,3,FALSE),E3034)","v":11.46481327756409},{"$f":"IFERROR(VLOOKUP(F3034,Translation!$A:$C,3,FALSE),F3034)","v":"Prêts hypothécaires assurés au cours de la période selon le type neuf/existant (%)"},{"$f":"IFERROR(VLOOKUP(G3034,Translation!$A:$C,3,FALSE),G3034)","v":"11.5"},{"$f":"IFERROR(VLOOKUP(H3034,Translation!$A:$C,3,FALSE),H3034)","v":"Neuf"}]
[20,"T2 2018","PROPRIÉTAIRES-OCCUPANTS, À L’UNITÉ","Nouvelle-Écosse",92.421912206978874,"Prêts hypothécaires assurés au cours de la période selon le type neuf/existant (%)","92.4","Nouvelle-Écosse",{"$f":"IFERROR(VLOOKUP(A3038,Translation!$A:$C,3,FALSE),A3038)","v":20},{"$f":"IFERROR(VLOOKUP(B3038,Translation!$A:$C,3,FALSE),B3038)","v":"T2 2018"},{"$f":"IFERROR(VLOOKUP(C3038,Translation!$A:$C,3,FALSE),C3038)","v":"PROPRIÉTAIRES-OCCUPANTS, À L’UNITÉ"},{"$f":"IFERROR(VLOOKUP(D3038,Translation!$A:$C,3,FALSE),D3038)","v":"Nouvelle-Écosse"},{"$f":"IFERROR(VLOOKUP(E3038,Translation!$A:$C,3,FALSE),E3038)","v":92.421912206978874},{"$f":"IFERROR(VLOOKUP(F3038,Translation!$A:$C,3,FALSE),F3038)","v":"Prêts hypothécaires assurés au cours de la période selon le type neuf/existant (%)"},{"$f":"IFERROR(VLOOKUP(G3038,Translation!$A:$C,3,FALSE),G3038)","v":"92.4"},{"$f":"IFERROR(VLOOKUP(H3038,Translation!$A:$C,3,FALSE),H3038)","v":"Nouvelle-Écosse"}]
[20,"T2 2018","PROPRIÉTAIRES-OCCUPANTS, À L’UNITÉ","Nouveau-Brunswick",92.982128415184604,"Prêts hypothécaires assurés au cours de la période selon le type neuf/existant (%)","93.0","Nouveau-Brunswick",{"$f":"IFERROR(VLOOKUP(A3039,Translation!$A:$C,3,FALSE),A3039)","v":20},{"$f":"IFERROR(VLOOKUP(B3039,Translation!$A:$C,3,FALSE),B3039)","v":"T2 2018"},{"$f":"IFERROR(VLOOKUP(C3039,Translation!$A:$C,3,FALSE),C3039)","v":"PROPRIÉTAIRES-OCCUPANTS, À L’UNITÉ"},{"$f":"IFERROR(VLOOKUP(D3039,Translation!$A:$C,3,FALSE),D3039)","v":"Nouveau-Brunswick"},{"$f":"IFERROR(VLOOKUP(E3039,Translation!$A:$C,3,FALSE),E3039)","v":92.982128415184604},{"$f":"IFERROR(VLOOKUP(F3039,Translation!$A:$C,3,FALSE),F3039)","v":"Prêts hypothécaires assurés au cours de la période selon le type neuf/existant (%)"},{"$f":"IFERROR(VLOOKUP(G3039,Translation!$A:$C,3,FALSE),G3039)","v":"93.0"},{"$f":"IFERROR(VLOOKUP(H3039,Translation!$A:$C,3,FALSE),H3039)","v":"Nouveau-Brunswick"}]
[20,"T2 2018","PROPRIÉTAIRES-OCCUPANTS, À L’UNITÉ","Manitoba",83.684880571960107,"Prêts hypothécaires assurés au cours de la période selon le type neuf/existant (%)","83.7","Manitoba",{"$f":"IFERROR(VLOOKUP(A3042,Translation!$A:$C,3,FALSE),A3042)","v":20},{"$f":"IFERROR(VLOOKUP(B3042,Translation!$A:$C,3,FALSE),B3042)","v":"T2 2018"},{"$f":"IFERROR(VLOOKUP(C3042,Translation!$A:$C,3,FALSE),C3042)","v":"PROPRIÉTAIRES-OCCUPANTS, À L’UNITÉ"},{"$f":"IFERROR(VLOOKUP(D3042,Translation!$A:$C,3,FALSE),D3042)","v":"Manitoba"},{"$f":"IFERROR(VLOOKUP(E3042,Translation!$A:$C,3,FALSE),E3042)","v":83.684880571960107},{"$f":"IFERROR(VLOOKUP(F3042,Translation!$A:$C,3,FALSE),F3042)","v":"Prêts hypothécaires assurés au cours de la période selon le type neuf/existant (%)"},{"$f":"IFERROR(VLOOKUP(G3042,Translation!$A:$C,3,FALSE),G3042)","v":"83.7"},{"$f":"IFERROR(VLOOKUP(H3042,Translation!$A:$C,3,FALSE),H3042)","v":"Manitoba"}]
[20,"T2 2018","PROPRIÉTAIRES-OCCUPANTS, À L’UNITÉ","Alberta",80.655965551254042,"Prêts hypothécaires assurés au cours de la période selon le type neuf/existant (%)","80.7","Alberta",{"$f":"IFERROR(VLOOKUP(A3044,Translation!$A:$C,3,FALSE),A3044)","v":20},{"$f":"IFERROR(VLOOKUP(B3044,Translation!$A:$C,3,FALSE),B3044)","v":"T2 2018"},{"$f":"IFERROR(VLOOKUP(C3044,Translation!$A:$C,3,FALSE),C3044)","v":"PROPRIÉTAIRES-OCCUPANTS, À L’UNITÉ"},{"$f":"IFERROR(VLOOKUP(D3044,Translation!$A:$C,3,FALSE),D3044)","v":"Alberta"},{"$f":"IFERROR(VLOOKUP(E3044,Translation!$A:$C,3,FALSE),E3044)","v":80.655965551254042},{"$f":"IFERROR(VLOOKUP(F3044,Translation!$A:$C,3,FALSE),F3044)","v":"Prêts hypothécaires assurés au cours de la période selon le type neuf/existant (%)"},{"$f":"IFERROR(VLOOKUP(G3044,Translation!$A:$C,3,FALSE),G3044)","v":"80.7"},{"$f":"IFERROR(VLOOKUP(H3044,Translation!$A:$C,3,FALSE),H3044)","v":"Alberta"}]
[31,"T2 2018","IMMEUBLES COLLECTIFS RÉSIDENTIELS","Existant",83.757298903255489,"Prêts hypothécaires assurés au cours de la période selon le type neuf/existant (%)","83.8","Existant",{"$f":"IFERROR(VLOOKUP(A3048,Translation!$A:$C,3,FALSE),A3048)","v":31},{"$f":"IFERROR(VLOOKUP(B3048,Translation!$A:$C,3,FALSE),B3048)","v":"T2 2018"},{"$f":"IFERROR(VLOOKUP(C3048,Translation!$A:$C,3,FALSE),C3048)","v":"IMMEUBLES COLLECTIFS RÉSIDENTIELS"},{"$f":"IFERROR(VLOOKUP(D3048,Translation!$A:$C,3,FALSE),D3048)","v":"Existant"},{"$f":"IFERROR(VLOOKUP(E3048,Translation!$A:$C,3,FALSE),E3048)","v":83.757298903255489},{"$f":"IFERROR(VLOOKUP(F3048,Translation!$A:$C,3,FALSE),F3048)","v":"Prêts hypothécaires assurés au cours de la période selon le type neuf/existant (%)"},{"$f":"IFERROR(VLOOKUP(G3048,Translation!$A:$C,3,FALSE),G3048)","v":"83.8"},{"$f":"IFERROR(VLOOKUP(H3048,Translation!$A:$C,3,FALSE),H3048)","v":"Existant"}]
[31,"T2 2018","IMMEUBLES COLLECTIFS RÉSIDENTIELS","Île-du-Prince-Édouard",100,"Prêts hypothécaires assurés au cours de la période selon le type neuf/existant (%)","100.0","Île-du-Prince-Édouard",{"$f":"IFERROR(VLOOKUP(A3049,Translation!$A:$C,3,FALSE),A3049)","v":31},{"$f":"IFERROR(VLOOKUP(B3049,Translation!$A:$C,3,FALSE),B3049)","v":"T2 2018"},{"$f":"IFERROR(VLOOKUP(C3049,Translation!$A:$C,3,FALSE),C3049)","v":"IMMEUBLES COLLECTIFS RÉSIDENTIELS"},{"$f":"IFERROR(VLOOKUP(D3049,Translation!$A:$C,3,FALSE),D3049)","v":"Île-du-Prince-Édouard"},{"$f":"IFERROR(VLOOKUP(E3049,Translation!$A:$C,3,FALSE),E3049)","v":100},{"$f":"IFERROR(VLOOKUP(F3049,Translation!$A:$C,3,FALSE),F3049)","v":"Prêts hypothécaires assurés au cours de la période selon le type neuf/existant (%)"},{"$f":"IFERROR(VLOOKUP(G3049,Translation!$A:$C,3,FALSE),G3049)","v":"100.0"},{"$f":"IFERROR(VLOOKUP(H3049,Translation!$A:$C,3,FALSE),H3049)","v":"Île-du-Prince-Édouard"}]
[31,"T2 2018","IMMEUBLES COLLECTIFS RÉSIDENTIELS","Québec",92.223360475910624,"Prêts hypothécaires assurés au cours de la période selon le type neuf/existant (%)","92.2","Québec",{"$f":"IFERROR(VLOOKUP(A3052,Translation!$A:$C,3,FALSE),A3052)","v":31},{"$f":"IFERROR(VLOOKUP(B3052,Translation!$A:$C,3,FALSE),B3052)","v":"T2 2018"},{"$f":"IFERROR(VLOOKUP(C3052,Translation!$A:$C,3,FALSE),C3052)","v":"IMMEUBLES COLLECTIFS RÉSIDENTIELS"},{"$f":"IFERROR(VLOOKUP(D3052,Translation!$A:$C,3,FALSE),D3052)","v":"Québec"},{"$f":"IFERROR(VLOOKUP(E3052,Translation!$A:$C,3,FALSE),E3052)","v":92.223360475910624},{"$f":"IFERROR(VLOOKUP(F3052,Translation!$A:$C,3,FALSE),F3052)","v":"Prêts hypothécaires assurés au cours de la période selon le type neuf/existant (%)"},{"$f":"IFERROR(VLOOKUP(G3052,Translation!$A:$C,3,FALSE),G3052)","v":"92.2"},{"$f":"IFERROR(VLOOKUP(H3052,Translation!$A:$C,3,FALSE),H3052)","v":"Québec"}]
[31,"T2 2018","IMMEUBLES COLLECTIFS RÉSIDENTIELS","Ontario",87.6046682364329,"Prêts hypothécaires assurés au cours de la période selon le type neuf/existant (%)","87.6","Ontario",{"$f":"IFERROR(VLOOKUP(A3053,Translation!$A:$C,3,FALSE),A3053)","v":31},{"$f":"IFERROR(VLOOKUP(B3053,Translation!$A:$C,3,FALSE),B3053)","v":"T2 2018"},{"$f":"IFERROR(VLOOKUP(C3053,Translation!$A:$C,3,FALSE),C3053)","v":"IMMEUBLES COLLECTIFS RÉSIDENTIELS"},{"$f":"IFERROR(VLOOKUP(D3053,Translation!$A:$C,3,FALSE),D3053)","v":"Ontario"},{"$f":"IFERROR(VLOOKUP(E3053,Translation!$A:$C,3,FALSE),E3053)","v":87.6046682364329},{"$f":"IFERROR(VLOOKUP(F3053,Translation!$A:$C,3,FALSE),F3053)","v":"Prêts hypothécaires assurés au cours de la période selon le type neuf/existant (%)"},{"$f":"IFERROR(VLOOKUP(G3053,Translation!$A:$C,3,FALSE),G3053)","v":"87.6"},{"$f":"IFERROR(VLOOKUP(H3053,Translation!$A:$C,3,FALSE),H3053)","v":"Ontario"}]
[31,"T2 2018","IMMEUBLES COLLECTIFS RÉSIDENTIELS","Colombie-Britannique",95.331489986843579,"Prêts hypothécaires assurés au cours de la période selon le type neuf/existant (%)","95.3","Colombie-Britannique",{"$f":"IFERROR(VLOOKUP(A3057,Translation!$A:$C,3,FALSE),A3057)","v":31},{"$f":"IFERROR(VLOOKUP(B3057,Translation!$A:$C,3,FALSE),B3057)","v":"T2 2018"},{"$f":"IFERROR(VLOOKUP(C3057,Translation!$A:$C,3,FALSE),C3057)","v":"IMMEUBLES COLLECTIFS RÉSIDENTIELS"},{"$f":"IFERROR(VLOOKUP(D3057,Translation!$A:$C,3,FALSE),D3057)","v":"Colombie-Britannique"},{"$f":"IFERROR(VLOOKUP(E3057,Translation!$A:$C,3,FALSE),E3057)","v":95.331489986843579},{"$f":"IFERROR(VLOOKUP(F3057,Translation!$A:$C,3,FALSE),F3057)","v":"Prêts hypothécaires assurés au cours de la période selon le type neuf/existant (%)"},{"$f":"IFERROR(VLOOKUP(G3057,Translation!$A:$C,3,FALSE),G3057)","v":"95.3"},{"$f":"IFERROR(VLOOKUP(H3057,Translation!$A:$C,3,FALSE),H3057)","v":"Colombie-Britannique"}]
[20,"T1 2018","PROPRIÉTAIRES-OCCUPANTS, À L’UNITÉ","Neuf",13.460984959771633,"Prêts hypothécaires assurés au cours de la période selon le type neuf/existant (%)","13.5","Neuf",{"$f":"IFERROR(VLOOKUP(A3059,Translation!$A:$C,3,FALSE),A3059)","v":20},{"$f":"IFERROR(VLOOKUP(B3059,Translation!$A:$C,3,FALSE),B3059)","v":"T1 2018"},{"$f":"IFERROR(VLOOKUP(C3059,Translation!$A:$C,3,FALSE),C3059)","v":"PROPRIÉTAIRES-OCCUPANTS, À L’UNITÉ"},{"$f":"IFERROR(VLOOKUP(D3059,Translation!$A:$C,3,FALSE),D3059)","v":"Neuf"},{"$f":"IFERROR(VLOOKUP(E3059,Translation!$A:$C,3,FALSE),E3059)","v":13.460984959771633},{"$f":"IFERROR(VLOOKUP(F3059,Translation!$A:$C,3,FALSE),F3059)","v":"Prêts hypothécaires assurés au cours de la période selon le type neuf/existant (%)"},{"$f":"IFERROR(VLOOKUP(G3059,Translation!$A:$C,3,FALSE),G3059)","v":"13.5"},{"$f":"IFERROR(VLOOKUP(H3059,Translation!$A:$C,3,FALSE),H3059)","v":"Neuf"}]
[20,"Q3 2016","PROPRIÉTAIRES-OCCUPANTS, À L’UNITÉ","Neuf",12.089487259093922,"Prêts hypothécaires assurés au cours de la période selon le type neuf/existant (%)","12.1","Neuf",{"$f":"IFERROR(VLOOKUP(A3062,Translation!$A:$C,3,FALSE),A3062)","v":20},{"$f":"IFERROR(VLOOKUP(B3062,Translation!$A:$C,3,FALSE),B3062)","v":"Q3 2016"},{"$f":"IFERROR(VLOOKUP(C3062,Translation!$A:$C,3,FALSE),C3062)","v":"PROPRIÉTAIRES-OCCUPANTS, À L’UNITÉ"},{"$f":"IFERROR(VLOOKUP(D3062,Translation!$A:$C,3,FALSE),D3062)","v":"Neuf"},{"$f":"IFERROR(VLOOKUP(E3062,Translation!$A:$C,3,FALSE),E3062)","v":12.089487259093922},{"$f":"IFERROR(VLOOKUP(F3062,Translation!$A:$C,3,FALSE),F3062)","v":"Prêts hypothécaires assurés au cours de la période selon le type neuf/existant (%)"},{"$f":"IFERROR(VLOOKUP(G3062,Translation!$A:$C,3,FALSE),G3062)","v":"12.1"},{"$f":"IFERROR(VLOOKUP(H3062,Translation!$A:$C,3,FALSE),H3062)","v":"Neuf"}]
[20,"T3 2017","PROPRIÉTAIRES-OCCUPANTS, À L’UNITÉ","Neuf",12.430995099653238,"Prêts hypothécaires assurés au cours de la période selon le type neuf/existant (%)","12.4","Neuf",{"$f":"IFERROR(VLOOKUP(A3063,Translation!$A:$C,3,FALSE),A3063)","v":20},{"$f":"IFERROR(VLOOKUP(B3063,Translation!$A:$C,3,FALSE),B3063)","v":"T3 2017"},{"$f":"IFERROR(VLOOKUP(C3063,Translation!$A:$C,3,FALSE),C3063)","v":"PROPRIÉTAIRES-OCCUPANTS, À L’UNITÉ"},{"$f":"IFERROR(VLOOKUP(D3063,Translation!$A:$C,3,FALSE),D3063)","v":"Neuf"},{"$f":"IFERROR(VLOOKUP(E3063,Translation!$A:$C,3,FALSE),E3063)","v":12.430995099653238},{"$f":"IFERROR(VLOOKUP(F3063,Translation!$A:$C,3,FALSE),F3063)","v":"Prêts hypothécaires assurés au cours de la période selon le type neuf/existant (%)"},{"$f":"IFERROR(VLOOKUP(G3063,Translation!$A:$C,3,FALSE),G3063)","v":"12.4"},{"$f":"IFERROR(VLOOKUP(H3063,Translation!$A:$C,3,FALSE),H3063)","v":"Neuf"}]
[20,"T1 2018","PROPRIÉTAIRES-OCCUPANTS, À L’UNITÉ","Existant",86.539015040228378,"Prêts hypothécaires assurés au cours de la période selon le type neuf/existant (%)","86.5","Existant",{"$f":"IFERROR(VLOOKUP(A3067,Translation!$A:$C,3,FALSE),A3067)","v":20},{"$f":"IFERROR(VLOOKUP(B3067,Translation!$A:$C,3,FALSE),B3067)","v":"T1 2018"},{"$f":"IFERROR(VLOOKUP(C3067,Translation!$A:$C,3,FALSE),C3067)","v":"PROPRIÉTAIRES-OCCUPANTS, À L’UNITÉ"},{"$f":"IFERROR(VLOOKUP(D3067,Translation!$A:$C,3,FALSE),D3067)","v":"Existant"},{"$f":"IFERROR(VLOOKUP(E3067,Translation!$A:$C,3,FALSE),E3067)","v":86.539015040228378},{"$f":"IFERROR(VLOOKUP(F3067,Translation!$A:$C,3,FALSE),F3067)","v":"Prêts hypothécaires assurés au cours de la période selon le type neuf/existant (%)"},{"$f":"IFERROR(VLOOKUP(G3067,Translation!$A:$C,3,FALSE),G3067)","v":"86.5"},{"$f":"IFERROR(VLOOKUP(H3067,Translation!$A:$C,3,FALSE),H3067)","v":"Existant"}]
[20,"Q2 2016","PROPRIÉTAIRES-OCCUPANTS, À L’UNITÉ","Existant",87.726380483577131,"Prêts hypothécaires assurés au cours de la période selon le type neuf/existant (%)","87.7","Existant",{"$f":"IFERROR(VLOOKUP(A3068,Translation!$A:$C,3,FALSE),A3068)","v":20},{"$f":"IFERROR(VLOOKUP(B3068,Translation!$A:$C,3,FALSE),B3068)","v":"Q2 2016"},{"$f":"IFERROR(VLOOKUP(C3068,Translation!$A:$C,3,FALSE),C3068)","v":"PROPRIÉTAIRES-OCCUPANTS, À L’UNITÉ"},{"$f":"IFERROR(VLOOKUP(D3068,Translation!$A:$C,3,FALSE),D3068)","v":"Existant"},{"$f":"IFERROR(VLOOKUP(E3068,Translation!$A:$C,3,FALSE),E3068)","v":87.726380483577131},{"$f":"IFERROR(VLOOKUP(F3068,Translation!$A:$C,3,FALSE),F3068)","v":"Prêts hypothécaires assurés au cours de la période selon le type neuf/existant (%)"},{"$f":"IFERROR(VLOOKUP(G3068,Translation!$A:$C,3,FALSE),G3068)","v":"87.7"},{"$f":"IFERROR(VLOOKUP(H3068,Translation!$A:$C,3,FALSE),H3068)","v":"Existant"}]
[20,"Q3 2016","PROPRIÉTAIRES-OCCUPANTS, À L’UNITÉ","Existant",87.910512740906057,"Prêts hypothécaires assurés au cours de la période selon le type neuf/existant (%)","87.9","Existant",{"$f":"IFERROR(VLOOKUP(A3070,Translation!$A:$C,3,FALSE),A3070)","v":20},{"$f":"IFERROR(VLOOKUP(B3070,Translation!$A:$C,3,FALSE),B3070)","v":"Q3 2016"},{"$f":"IFERROR(VLOOKUP(C3070,Translation!$A:$C,3,FALSE),C3070)","v":"PROPRIÉTAIRES-OCCUPANTS, À L’UNITÉ"},{"$f":"IFERROR(VLOOKUP(D3070,Translation!$A:$C,3,FALSE),D3070)","v":"Existant"},{"$f":"IFERROR(VLOOKUP(E3070,Translation!$A:$C,3,FALSE),E3070)","v":87.910512740906057},{"$f":"IFERROR(VLOOKUP(F3070,Translation!$A:$C,3,FALSE),F3070)","v":"Prêts hypothécaires assurés au cours de la période selon le type neuf/existant (%)"},{"$f":"IFERROR(VLOOKUP(G3070,Translation!$A:$C,3,FALSE),G3070)","v":"87.9"},{"$f":"IFERROR(VLOOKUP(H3070,Translation!$A:$C,3,FALSE),H3070)","v":"Existant"}]
[20,"T4 2017","PROPRIÉTAIRES-OCCUPANTS, À L’UNITÉ","Existant",84.688552246473051,"Prêts hypothécaires assurés au cours de la période selon le type neuf/existant (%)","84.7","Existant",{"$f":"IFERROR(VLOOKUP(A3073,Translation!$A:$C,3,FALSE),A3073)","v":20},{"$f":"IFERROR(VLOOKUP(B3073,Translation!$A:$C,3,FALSE),B3073)","v":"T4 2017"},{"$f":"IFERROR(VLOOKUP(C3073,Translation!$A:$C,3,FALSE),C3073)","v":"PROPRIÉTAIRES-OCCUPANTS, À L’UNITÉ"},{"$f":"IFERROR(VLOOKUP(D3073,Translation!$A:$C,3,FALSE),D3073)","v":"Existant"},{"$f":"IFERROR(VLOOKUP(E3073,Translation!$A:$C,3,FALSE),E3073)","v":84.688552246473051},{"$f":"IFERROR(VLOOKUP(F3073,Translation!$A:$C,3,FALSE),F3073)","v":"Prêts hypothécaires assurés au cours de la période selon le type neuf/existant (%)"},{"$f":"IFERROR(VLOOKUP(G3073,Translation!$A:$C,3,FALSE),G3073)","v":"84.7"},{"$f":"IFERROR(VLOOKUP(H3073,Translation!$A:$C,3,FALSE),H3073)","v":"Existant"}]
[20,"Q2 2016","PROPRIÉTAIRES-OCCUPANTS, À L’UNITÉ","Terre-Neuve-et-Labrador",87.24693055111031,"Prêts hypothécaires assurés au cours de la période selon le type neuf/existant (%)","87.2","Terre-Neuve-et-Labrador",{"$f":"IFERROR(VLOOKUP(A3076,Translation!$A:$C,3,FALSE),A3076)","v":20},{"$f":"IFERROR(VLOOKUP(B3076,Translation!$A:$C,3,FALSE),B3076)","v":"Q2 2016"},{"$f":"IFERROR(VLOOKUP(C3076,Translation!$A:$C,3,FALSE),C3076)","v":"PROPRIÉTAIRES-OCCUPANTS, À L’UNITÉ"},{"$f":"IFERROR(VLOOKUP(D3076,Translation!$A:$C,3,FALSE),D3076)","v":"Terre-Neuve-et-Labrador"},{"$f":"IFERROR(VLOOKUP(E3076,Translation!$A:$C,3,FALSE),E3076)","v":87.24693055111031},{"$f":"IFERROR(VLOOKUP(F3076,Translation!$A:$C,3,FALSE),F3076)","v":"Prêts hypothécaires assurés au cours de la période selon le type neuf/existant (%)"},{"$f":"IFERROR(VLOOKUP(G3076,Translation!$A:$C,3,FALSE),G3076)","v":"87.2"},{"$f":"IFERROR(VLOOKUP(H3076,Translation!$A:$C,3,FALSE),H3076)","v":"Terre-Neuve-et-Labrador"}]
[20,"Q3 2016","PROPRIÉTAIRES-OCCUPANTS, À L’UNITÉ","Terre-Neuve-et-Labrador",87.636594187703139,"Prêts hypothécaires assurés au cours de la période selon le type neuf/existant (%)","87.6","Terre-Neuve-et-Labrador",{"$f":"IFERROR(VLOOKUP(A3078,Translation!$A:$C,3,FALSE),A3078)","v":20},{"$f":"IFERROR(VLOOKUP(B3078,Translation!$A:$C,3,FALSE),B3078)","v":"Q3 2016"},{"$f":"IFERROR(VLOOKUP(C3078,Translation!$A:$C,3,FALSE),C3078)","v":"PROPRIÉTAIRES-OCCUPANTS, À L’UNITÉ"},{"$f":"IFERROR(VLOOKUP(D3078,Translation!$A:$C,3,FALSE),D3078)","v":"Terre-Neuve-et-Labrador"},{"$f":"IFERROR(VLOOKUP(E3078,Translation!$A:$C,3,FALSE),E3078)","v":87.636594187703139},{"$f":"IFERROR(VLOOKUP(F3078,Translation!$A:$C,3,FALSE),F3078)","v":"Prêts hypothécaires assurés au cours de la période selon le type neuf/existant (%)"},{"$f":"IFERROR(VLOOKUP(G3078,Translation!$A:$C,3,FALSE),G3078)","v":"87.6"},{"$f":"IFERROR(VLOOKUP(H3078,Translation!$A:$C,3,FALSE),H3078)","v":"Terre-Neuve-et-Labrador"}]
[20,"T4 2017","PROPRIÉTAIRES-OCCUPANTS, À L’UNITÉ","Terre-Neuve-et-Labrador",82.607161627917989,"Prêts hypothécaires assurés au cours de la période selon le type neuf/existant (%)","82.6","Terre-Neuve-et-Labrador",{"$f":"IFERROR(VLOOKUP(A3081,Translation!$A:$C,3,FALSE),A3081)","v":20},{"$f":"IFERROR(VLOOKUP(B3081,Translation!$A:$C,3,FALSE),B3081)","v":"T4 2017"},{"$f":"IFERROR(VLOOKUP(C3081,Translation!$A:$C,3,FALSE),C3081)","v":"PROPRIÉTAIRES-OCCUPANTS, À L’UNITÉ"},{"$f":"IFERROR(VLOOKUP(D3081,Translation!$A:$C,3,FALSE),D3081)","v":"Terre-Neuve-et-Labrador"},{"$f":"IFERROR(VLOOKUP(E3081,Translation!$A:$C,3,FALSE),E3081)","v":82.607161627917989},{"$f":"IFERROR(VLOOKUP(F3081,Translation!$A:$C,3,FALSE),F3081)","v":"Prêts hypothécaires assurés au cours de la période selon le type neuf/existant (%)"},{"$f":"IFERROR(VLOOKUP(G3081,Translation!$A:$C,3,FALSE),G3081)","v":"82.6"},{"$f":"IFERROR(VLOOKUP(H3081,Translation!$A:$C,3,FALSE),H3081)","v":"Terre-Neuve-et-Labrador"}]
[20,"Q2 2016","PROPRIÉTAIRES-OCCUPANTS, À L’UNITÉ","Île-du-Prince-Édouard",92.835871271527026,"Prêts hypothécaires assurés au cours de la période selon le type neuf/existant (%)","92.8","Île-du-Prince-Édouard",{"$f":"IFERROR(VLOOKUP(A3084,Translation!$A:$C,3,FALSE),A3084)","v":20},{"$f":"IFERROR(VLOOKUP(B3084,Translation!$A:$C,3,FALSE),B3084)","v":"Q2 2016"},{"$f":"IFERROR(VLOOKUP(C3084,Translation!$A:$C,3,FALSE),C3084)","v":"PROPRIÉTAIRES-OCCUPANTS, À L’UNITÉ"},{"$f":"IFERROR(VLOOKUP(D3084,Translation!$A:$C,3,FALSE),D3084)","v":"Île-du-Prince-Édouard"},{"$f":"IFERROR(VLOOKUP(E3084,Translation!$A:$C,3,FALSE),E3084)","v":92.835871271527026},{"$f":"IFERROR(VLOOKUP(F3084,Translation!$A:$C,3,FALSE),F3084)","v":"Prêts hypothécaires assurés au cours de la période selon le type neuf/existant (%)"},{"$f":"IFERROR(VLOOKUP(G3084,Translation!$A:$C,3,FALSE),G3084)","v":"92.8"},{"$f":"IFERROR(VLOOKUP(H3084,Translation!$A:$C,3,FALSE),H3084)","v":"Île-du-Prince-Édouard"}]
[20,"Q3 2016","PROPRIÉTAIRES-OCCUPANTS, À L’UNITÉ","Île-du-Prince-Édouard",83.773929610677442,"Prêts hypothécaires assurés au cours de la période selon le type neuf/existant (%)","83.8","Île-du-Prince-Édouard",{"$f":"IFERROR(VLOOKUP(A3086,Translation!$A:$C,3,FALSE),A3086)","v":20},{"$f":"IFERROR(VLOOKUP(B3086,Translation!$A:$C,3,FALSE),B3086)","v":"Q3 2016"},{"$f":"IFERROR(VLOOKUP(C3086,Translation!$A:$C,3,FALSE),C3086)","v":"PROPRIÉTAIRES-OCCUPANTS, À L’UNITÉ"},{"$f":"IFERROR(VLOOKUP(D3086,Translation!$A:$C,3,FALSE),D3086)","v":"Île-du-Prince-Édouard"},{"$f":"IFERROR(VLOOKUP(E3086,Translation!$A:$C,3,FALSE),E3086)","v":83.773929610677442},{"$f":"IFERROR(VLOOKUP(F3086,Translation!$A:$C,3,FALSE),F3086)","v":"Prêts hypothécaires assurés au cours de la période selon le type neuf/existant (%)"},{"$f":"IFERROR(VLOOKUP(G3086,Translation!$A:$C,3,FALSE),G3086)","v":"83.8"},{"$f":"IFERROR(VLOOKUP(H3086,Translation!$A:$C,3,FALSE),H3086)","v":"Île-du-Prince-Édouard"}]
[20,"T3 2017","PROPRIÉTAIRES-OCCUPANTS, À L’UNITÉ","Île-du-Prince-Édouard",79.826398122298258,"Prêts hypothécaires assurés au cours de la période selon le type neuf/existant (%)","79.8","Île-du-Prince-Édouard",{"$f":"IFERROR(VLOOKUP(A3087,Translation!$A:$C,3,FALSE),A3087)","v":20},{"$f":"IFERROR(VLOOKUP(B3087,Translation!$A:$C,3,FALSE),B3087)","v":"T3 2017"},{"$f":"IFERROR(VLOOKUP(C3087,Translation!$A:$C,3,FALSE),C3087)","v":"PROPRIÉTAIRES-OCCUPANTS, À L’UNITÉ"},{"$f":"IFERROR(VLOOKUP(D3087,Translation!$A:$C,3,FALSE),D3087)","v":"Île-du-Prince-Édouard"},{"$f":"IFERROR(VLOOKUP(E3087,Translation!$A:$C,3,FALSE),E3087)","v":79.826398122298258},{"$f":"IFERROR(VLOOKUP(F3087,Translation!$A:$C,3,FALSE),F3087)","v":"Prêts hypothécaires assurés au cours de la période selon le type neuf/existant (%)"},{"$f":"IFERROR(VLOOKUP(G3087,Translation!$A:$C,3,FALSE),G3087)","v":"79.8"},{"$f":"IFERROR(VLOOKUP(H3087,Translation!$A:$C,3,FALSE),H3087)","v":"Île-du-Prince-Édouard"}]
[20,"T4 2017","PROPRIÉTAIRES-OCCUPANTS, À L’UNITÉ","Île-du-Prince-Édouard",71.905851108984749,"Prêts hypothécaires assurés au cours de la période selon le type neuf/existant (%)","71.9","Île-du-Prince-Édouard",{"$f":"IFERROR(VLOOKUP(A3089,Translation!$A:$C,3,FALSE),A3089)","v":20},{"$f":"IFERROR(VLOOKUP(B3089,Translation!$A:$C,3,FALSE),B3089)","v":"T4 2017"},{"$f":"IFERROR(VLOOKUP(C3089,Translation!$A:$C,3,FALSE),C3089)","v":"PROPRIÉTAIRES-OCCUPANTS, À L’UNITÉ"},{"$f":"IFERROR(VLOOKUP(D3089,Translation!$A:$C,3,FALSE),D3089)","v":"Île-du-Prince-Édouard"},{"$f":"IFERROR(VLOOKUP(E3089,Translation!$A:$C,3,FALSE),E3089)","v":71.905851108984749},{"$f":"IFERROR(VLOOKUP(F3089,Translation!$A:$C,3,FALSE),F3089)","v":"Prêts hypothécaires assurés au cours de la période selon le type neuf/existant (%)"},{"$f":"IFERROR(VLOOKUP(G3089,Translation!$A:$C,3,FALSE),G3089)","v":"71.9"},{"$f":"IFERROR(VLOOKUP(H3089,Translation!$A:$C,3,FALSE),H3089)","v":"Île-du-Prince-Édouard"}]
[20,"Q2 2016","PROPRIÉTAIRES-OCCUPANTS, À L’UNITÉ","Nouvelle-Écosse",92.976568432533028,"Prêts hypothécaires assurés au cours de la période selon le type neuf/existant (%)","93.0","Nouvelle-Écosse",{"$f":"IFERROR(VLOOKUP(A3092,Translation!$A:$C,3,FALSE),A3092)","v":20},{"$f":"IFERROR(VLOOKUP(B3092,Translation!$A:$C,3,FALSE),B3092)","v":"Q2 2016"},{"$f":"IFERROR(VLOOKUP(C3092,Translation!$A:$C,3,FALSE),C3092)","v":"PROPRIÉTAIRES-OCCUPANTS, À L’UNITÉ"},{"$f":"IFERROR(VLOOKUP(D3092,Translation!$A:$C,3,FALSE),D3092)","v":"Nouvelle-Écosse"},{"$f":"IFERROR(VLOOKUP(E3092,Translation!$A:$C,3,FALSE),E3092)","v":92.976568432533028},{"$f":"IFERROR(VLOOKUP(F3092,Translation!$A:$C,3,FALSE),F3092)","v":"Prêts hypothécaires assurés au cours de la période selon le type neuf/existant (%)"},{"$f":"IFERROR(VLOOKUP(G3092,Translation!$A:$C,3,FALSE),G3092)","v":"93.0"},{"$f":"IFERROR(VLOOKUP(H3092,Translation!$A:$C,3,FALSE),H3092)","v":"Nouvelle-Écosse"}]
[20,"T3 2017","PROPRIÉTAIRES-OCCUPANTS, À L’UNITÉ","Nouvelle-Écosse",90.431147649044064,"Prêts hypothécaires assurés au cours de la période selon le type neuf/existant (%)","90.4","Nouvelle-Écosse",{"$f":"IFERROR(VLOOKUP(A3095,Translation!$A:$C,3,FALSE),A3095)","v":20},{"$f":"IFERROR(VLOOKUP(B3095,Translation!$A:$C,3,FALSE),B3095)","v":"T3 2017"},{"$f":"IFERROR(VLOOKUP(C3095,Translation!$A:$C,3,FALSE),C3095)","v":"PROPRIÉTAIRES-OCCUPANTS, À L’UNITÉ"},{"$f":"IFERROR(VLOOKUP(D3095,Translation!$A:$C,3,FALSE),D3095)","v":"Nouvelle-Écosse"},{"$f":"IFERROR(VLOOKUP(E3095,Translation!$A:$C,3,FALSE),E3095)","v":90.431147649044064},{"$f":"IFERROR(VLOOKUP(F3095,Translation!$A:$C,3,FALSE),F3095)","v":"Prêts hypothécaires assurés au cours de la période selon le type neuf/existant (%)"},{"$f":"IFERROR(VLOOKUP(G3095,Translation!$A:$C,3,FALSE),G3095)","v":"90.4"},{"$f":"IFERROR(VLOOKUP(H3095,Translation!$A:$C,3,FALSE),H3095)","v":"Nouvelle-Écosse"}]
[20,"T4 2017","PROPRIÉTAIRES-OCCUPANTS, À L’UNITÉ","Nouvelle-Écosse",87.808424708125472,"Prêts hypothécaires assurés au cours de la période selon le type neuf/existant (%)","87.8","Nouvelle-Écosse",{"$f":"IFERROR(VLOOKUP(A3097,Translation!$A:$C,3,FALSE),A3097)","v":20},{"$f":"IFERROR(VLOOKUP(B3097,Translation!$A:$C,3,FALSE),B3097)","v":"T4 2017"},{"$f":"IFERROR(VLOOKUP(C3097,Translation!$A:$C,3,FALSE),C3097)","v":"PROPRIÉTAIRES-OCCUPANTS, À L’UNITÉ"},{"$f":"IFERROR(VLOOKUP(D3097,Translation!$A:$C,3,FALSE),D3097)","v":"Nouvelle-Écosse"},{"$f":"IFERROR(VLOOKUP(E3097,Translation!$A:$C,3,FALSE),E3097)","v":87.808424708125472},{"$f":"IFERROR(VLOOKUP(F3097,Translation!$A:$C,3,FALSE),F3097)","v":"Prêts hypothécaires assurés au cours de la période selon le type neuf/existant (%)"},{"$f":"IFERROR(VLOOKUP(G3097,Translation!$A:$C,3,FALSE),G3097)","v":"87.8"},{"$f":"IFERROR(VLOOKUP(H3097,Translation!$A:$C,3,FALSE),H3097)","v":"Nouvelle-Écosse"}]
[20,"Q2 2016","PROPRIÉTAIRES-OCCUPANTS, À L’UNITÉ","Nouveau-Brunswick",92.87448282168495,"Prêts hypothécaires assurés au cours de la période selon le type neuf/existant (%)","92.9","Nouveau-Brunswick",{"$f":"IFERROR(VLOOKUP(A3100,Translation!$A:$C,3,FALSE),A3100)","v":20},{"$f":"IFERROR(VLOOKUP(B3100,Translation!$A:$C,3,FALSE),B3100)","v":"Q2 2016"},{"$f":"IFERROR(VLOOKUP(C3100,Translation!$A:$C,3,FALSE),C3100)","v":"PROPRIÉTAIRES-OCCUPANTS, À L’UNITÉ"},{"$f":"IFERROR(VLOOKUP(D3100,Translation!$A:$C,3,FALSE),D3100)","v":"Nouveau-Brunswick"},{"$f":"IFERROR(VLOOKUP(E3100,Translation!$A:$C,3,FALSE),E3100)","v":92.87448282168495},{"$f":"IFERROR(VLOOKUP(F3100,Translation!$A:$C,3,FALSE),F3100)","v":"Prêts hypothécaires assurés au cours de la période selon le type neuf/existant (%)"},{"$f":"IFERROR(VLOOKUP(G3100,Translation!$A:$C,3,FALSE),G3100)","v":"92.9"},{"$f":"IFERROR(VLOOKUP(H3100,Translation!$A:$C,3,FALSE),H3100)","v":"Nouveau-Brunswick"}]
[20,"T3 2017","PROPRIÉTAIRES-OCCUPANTS, À L’UNITÉ","Nouveau-Brunswick",87.137265323130976,"Prêts hypothécaires assurés au cours de la période selon le type neuf/existant (%)","87.1","Nouveau-Brunswick",{"$f":"IFERROR(VLOOKUP(A3103,Translation!$A:$C,3,FALSE),A3103)","v":20},{"$f":"IFERROR(VLOOKUP(B3103,Translation!$A:$C,3,FALSE),B3103)","v":"T3 2017"},{"$f":"IFERROR(VLOOKUP(C3103,Translation!$A:$C,3,FALSE),C3103)","v":"PROPRIÉTAIRES-OCCUPANTS, À L’UNITÉ"},{"$f":"IFERROR(VLOOKUP(D3103,Translation!$A:$C,3,FALSE),D3103)","v":"Nouveau-Brunswick"},{"$f":"IFERROR(VLOOKUP(E3103,Translation!$A:$C,3,FALSE),E3103)","v":87.137265323130976},{"$f":"IFERROR(VLOOKUP(F3103,Translation!$A:$C,3,FALSE),F3103)","v":"Prêts hypothécaires assurés au cours de la période selon le type neuf/existant (%)"},{"$f":"IFERROR(VLOOKUP(G3103,Translation!$A:$C,3,FALSE),G3103)","v":"87.1"},{"$f":"IFERROR(VLOOKUP(H3103,Translation!$A:$C,3,FALSE),H3103)","v":"Nouveau-Brunswick"}]
[20,"T4 2017","PROPRIÉTAIRES-OCCUPANTS, À L’UNITÉ","Nouveau-Brunswick",88.179586604858386,"Prêts hypothécaires assurés au cours de la période selon le type neuf/existant (%)","88.2","Nouveau-Brunswick",{"$f":"IFERROR(VLOOKUP(A3105,Translation!$A:$C,3,FALSE),A3105)","v":20},{"$f":"IFERROR(VLOOKUP(B3105,Translation!$A:$C,3,FALSE),B3105)","v":"T4 2017"},{"$f":"IFERROR(VLOOKUP(C3105,Translation!$A:$C,3,FALSE),C3105)","v":"PROPRIÉTAIRES-OCCUPANTS, À L’UNITÉ"},{"$f":"IFERROR(VLOOKUP(D3105,Translation!$A:$C,3,FALSE),D3105)","v":"Nouveau-Brunswick"},{"$f":"IFERROR(VLOOKUP(E3105,Translation!$A:$C,3,FALSE),E3105)","v":88.179586604858386},{"$f":"IFERROR(VLOOKUP(F3105,Translation!$A:$C,3,FALSE),F3105)","v":"Prêts hypothécaires assurés au cours de la période selon le type neuf/existant (%)"},{"$f":"IFERROR(VLOOKUP(G3105,Translation!$A:$C,3,FALSE),G3105)","v":"88.2"},{"$f":"IFERROR(VLOOKUP(H3105,Translation!$A:$C,3,FALSE),H3105)","v":"Nouveau-Brunswick"}]
[20,"T1 2017","PROPRIÉTAIRES-OCCUPANTS, À L’UNITÉ","Québec",87.647919819234787,"Prêts hypothécaires assurés au cours de la période selon le type neuf/existant (%)","87.6","Québec",{"$f":"IFERROR(VLOOKUP(A3106,Translation!$A:$C,3,FALSE),A3106)","v":20},{"$f":"IFERROR(VLOOKUP(B3106,Translation!$A:$C,3,FALSE),B3106)","v":"T1 2017"},{"$f":"IFERROR(VLOOKUP(C3106,Translation!$A:$C,3,FALSE),C3106)","v":"PROPRIÉTAIRES-OCCUPANTS, À L’UNITÉ"},{"$f":"IFERROR(VLOOKUP(D3106,Translation!$A:$C,3,FALSE),D3106)","v":"Québec"},{"$f":"IFERROR(VLOOKUP(E3106,Translation!$A:$C,3,FALSE),E3106)","v":87.647919819234787},{"$f":"IFERROR(VLOOKUP(F3106,Translation!$A:$C,3,FALSE),F3106)","v":"Prêts hypothécaires assurés au cours de la période selon le type neuf/existant (%)"},{"$f":"IFERROR(VLOOKUP(G3106,Translation!$A:$C,3,FALSE),G3106)","v":"87.6"},{"$f":"IFERROR(VLOOKUP(H3106,Translation!$A:$C,3,FALSE),H3106)","v":"Québec"}]
[20,"Q3 2016","PROPRIÉTAIRES-OCCUPANTS, À L’UNITÉ","Québec",85.725361319542685,"Prêts hypothécaires assurés au cours de la période selon le type neuf/existant (%)","85.7","Québec",{"$f":"IFERROR(VLOOKUP(A3110,Translation!$A:$C,3,FALSE),A3110)","v":20},{"$f":"IFERROR(VLOOKUP(B3110,Translation!$A:$C,3,FALSE),B3110)","v":"Q3 2016"},{"$f":"IFERROR(VLOOKUP(C3110,Translation!$A:$C,3,FALSE),C3110)","v":"PROPRIÉTAIRES-OCCUPANTS, À L’UNITÉ"},{"$f":"IFERROR(VLOOKUP(D3110,Translation!$A:$C,3,FALSE),D3110)","v":"Québec"},{"$f":"IFERROR(VLOOKUP(E3110,Translation!$A:$C,3,FALSE),E3110)","v":85.725361319542685},{"$f":"IFERROR(VLOOKUP(F3110,Translation!$A:$C,3,FALSE),F3110)","v":"Prêts hypothécaires assurés au cours de la période selon le type neuf/existant (%)"},{"$f":"IFERROR(VLOOKUP(G3110,Translation!$A:$C,3,FALSE),G3110)","v":"85.7"},{"$f":"IFERROR(VLOOKUP(H3110,Translation!$A:$C,3,FALSE),H3110)","v":"Québec"}]
[20,"T3 2017","PROPRIÉTAIRES-OCCUPANTS, À L’UNITÉ","Québec",85.027946014415505,"Prêts hypothécaires assurés au cours de la période selon le type neuf/existant (%)","85.0","Québec",{"$f":"IFERROR(VLOOKUP(A3111,Translation!$A:$C,3,FALSE),A3111)","v":20},{"$f":"IFERROR(VLOOKUP(B3111,Translation!$A:$C,3,FALSE),B3111)","v":"T3 2017"},{"$f":"IFERROR(VLOOKUP(C3111,Translation!$A:$C,3,FALSE),C3111)","v":"PROPRIÉTAIRES-OCCUPANTS, À L’UNITÉ"},{"$f":"IFERROR(VLOOKUP(D3111,Translation!$A:$C,3,FALSE),D3111)","v":"Québec"},{"$f":"IFERROR(VLOOKUP(E3111,Translation!$A:$C,3,FALSE),E3111)","v":85.027946014415505},{"$f":"IFERROR(VLOOKUP(F3111,Translation!$A:$C,3,FALSE),F3111)","v":"Prêts hypothécaires assurés au cours de la période selon le type neuf/existant (%)"},{"$f":"IFERROR(VLOOKUP(G3111,Translation!$A:$C,3,FALSE),G3111)","v":"85.0"},{"$f":"IFERROR(VLOOKUP(H3111,Translation!$A:$C,3,FALSE),H3111)","v":"Québec"}]
[20,"T1 2017","PROPRIÉTAIRES-OCCUPANTS, À L’UNITÉ","Ontario",86.651006988752059,"Prêts hypothécaires assurés au cours de la période selon le type neuf/existant (%)","86.7","Ontario",{"$f":"IFERROR(VLOOKUP(A3114,Translation!$A:$C,3,FALSE),A3114)","v":20},{"$f":"IFERROR(VLOOKUP(B3114,Translation!$A:$C,3,FALSE),B3114)","v":"T1 2017"},{"$f":"IFERROR(VLOOKUP(C3114,Translation!$A:$C,3,FALSE),C3114)","v":"PROPRIÉTAIRES-OCCUPANTS, À L’UNITÉ"},{"$f":"IFERROR(VLOOKUP(D3114,Translation!$A:$C,3,FALSE),D3114)","v":"Ontario"},{"$f":"IFERROR(VLOOKUP(E3114,Translation!$A:$C,3,FALSE),E3114)","v":86.651006988752059},{"$f":"IFERROR(VLOOKUP(F3114,Translation!$A:$C,3,FALSE),F3114)","v":"Prêts hypothécaires assurés au cours de la période selon le type neuf/existant (%)"},{"$f":"IFERROR(VLOOKUP(G3114,Translation!$A:$C,3,FALSE),G3114)","v":"86.7"},{"$f":"IFERROR(VLOOKUP(H3114,Translation!$A:$C,3,FALSE),H3114)","v":"Ontario"}]
[20,"Q2 2016","PROPRIÉTAIRES-OCCUPANTS, À L’UNITÉ","Ontario",91.457373799346954,"Prêts hypothécaires assurés au cours de la période selon le type neuf/existant (%)","91.5","Ontario",{"$f":"IFERROR(VLOOKUP(A3116,Translation!$A:$C,3,FALSE),A3116)","v":20},{"$f":"IFERROR(VLOOKUP(B3116,Translation!$A:$C,3,FALSE),B3116)","v":"Q2 2016"},{"$f":"IFERROR(VLOOKUP(C3116,Translation!$A:$C,3,FALSE),C3116)","v":"PROPRIÉTAIRES-OCCUPANTS, À L’UNITÉ"},{"$f":"IFERROR(VLOOKUP(D3116,Translation!$A:$C,3,FALSE),D3116)","v":"Ontario"},{"$f":"IFERROR(VLOOKUP(E3116,Translation!$A:$C,3,FALSE),E3116)","v":91.457373799346954},{"$f":"IFERROR(VLOOKUP(F3116,Translation!$A:$C,3,FALSE),F3116)","v":"Prêts hypothécaires assurés au cours de la période selon le type neuf/existant (%)"},{"$f":"IFERROR(VLOOKUP(G3116,Translation!$A:$C,3,FALSE),G3116)","v":"91.5"},{"$f":"IFERROR(VLOOKUP(H3116,Translation!$A:$C,3,FALSE),H3116)","v":"Ontario"}]
[20,"T3 2017","PROPRIÉTAIRES-OCCUPANTS, À L’UNITÉ","Ontario",91.797490556369937,"Prêts hypothécaires assurés au cours de la période selon le type neuf/existant (%)","91.8","Ontario",{"$f":"IFERROR(VLOOKUP(A3119,Translation!$A:$C,3,FALSE),A3119)","v":20},{"$f":"IFERROR(VLOOKUP(B3119,Translation!$A:$C,3,FALSE),B3119)","v":"T3 2017"},{"$f":"IFERROR(VLOOKUP(C3119,Translation!$A:$C,3,FALSE),C3119)","v":"PROPRIÉTAIRES-OCCUPANTS, À L’UNITÉ"},{"$f":"IFERROR(VLOOKUP(D3119,Translation!$A:$C,3,FALSE),D3119)","v":"Ontario"},{"$f":"IFERROR(VLOOKUP(E3119,Translation!$A:$C,3,FALSE),E3119)","v":91.797490556369937},{"$f":"IFERROR(VLOOKUP(F3119,Translation!$A:$C,3,FALSE),F3119)","v":"Prêts hypothécaires assurés au cours de la période selon le type neuf/existant (%)"},{"$f":"IFERROR(VLOOKUP(G3119,Translation!$A:$C,3,FALSE),G3119)","v":"91.8"},{"$f":"IFERROR(VLOOKUP(H3119,Translation!$A:$C,3,FALSE),H3119)","v":"Ontario"}]
[20,"T4 2017","PROPRIÉTAIRES-OCCUPANTS, À L’UNITÉ","Ontario",89.07716389131555,"Prêts hypothécaires assurés au cours de la période selon le type neuf/existant (%)","89.1","Ontario",{"$f":"IFERROR(VLOOKUP(A3121,Translation!$A:$C,3,FALSE),A3121)","v":20},{"$f":"IFERROR(VLOOKUP(B3121,Translation!$A:$C,3,FALSE),B3121)","v":"T4 2017"},{"$f":"IFERROR(VLOOKUP(C3121,Translation!$A:$C,3,FALSE),C3121)","v":"PROPRIÉTAIRES-OCCUPANTS, À L’UNITÉ"},{"$f":"IFERROR(VLOOKUP(D3121,Translation!$A:$C,3,FALSE),D3121)","v":"Ontario"},{"$f":"IFERROR(VLOOKUP(E3121,Translation!$A:$C,3,FALSE),E3121)","v":89.07716389131555},{"$f":"IFERROR(VLOOKUP(F3121,Translation!$A:$C,3,FALSE),F3121)","v":"Prêts hypothécaires assurés au cours de la période selon le type neuf/existant (%)"},{"$f":"IFERROR(VLOOKUP(G3121,Translation!$A:$C,3,FALSE),G3121)","v":"89.1"},{"$f":"IFERROR(VLOOKUP(H3121,Translation!$A:$C,3,FALSE),H3121)","v":"Ontario"}]
[20,"Q2 2016","PROPRIÉTAIRES-OCCUPANTS, À L’UNITÉ","Manitoba",86.170556637261484,"Prêts hypothécaires assurés au cours de la période selon le type neuf/existant (%)","86.2","Manitoba",{"$f":"IFERROR(VLOOKUP(A3124,Translation!$A:$C,3,FALSE),A3124)","v":20},{"$f":"IFERROR(VLOOKUP(B3124,Translation!$A:$C,3,FALSE),B3124)","v":"Q2 2016"},{"$f":"IFERROR(VLOOKUP(C3124,Translation!$A:$C,3,FALSE),C3124)","v":"PROPRIÉTAIRES-OCCUPANTS, À L’UNITÉ"},{"$f":"IFERROR(VLOOKUP(D3124,Translation!$A:$C,3,FALSE),D3124)","v":"Manitoba"},{"$f":"IFERROR(VLOOKUP(E3124,Translation!$A:$C,3,FALSE),E3124)","v":86.170556637261484},{"$f":"IFERROR(VLOOKUP(F3124,Translation!$A:$C,3,FALSE),F3124)","v":"Prêts hypothécaires assurés au cours de la période selon le type neuf/existant (%)"},{"$f":"IFERROR(VLOOKUP(G3124,Translation!$A:$C,3,FALSE),G3124)","v":"86.2"},{"$f":"IFERROR(VLOOKUP(H3124,Translation!$A:$C,3,FALSE),H3124)","v":"Manitoba"}]
[20,"T2 2017","PROPRIÉTAIRES-OCCUPANTS, À L’UNITÉ","Manitoba",86.581428693446298,"Prêts hypothécaires assurés au cours de la période selon le type neuf/existant (%)","86.6","Manitoba",{"$f":"IFERROR(VLOOKUP(A3125,Translation!$A:$C,3,FALSE),A3125)","v":20},{"$f":"IFERROR(VLOOKUP(B3125,Translation!$A:$C,3,FALSE),B3125)","v":"T2 2017"},{"$f":"IFERROR(VLOOKUP(C3125,Translation!$A:$C,3,FALSE),C3125)","v":"PROPRIÉTAIRES-OCCUPANTS, À L’UNITÉ"},{"$f":"IFERROR(VLOOKUP(D3125,Translation!$A:$C,3,FALSE),D3125)","v":"Manitoba"},{"$f":"IFERROR(VLOOKUP(E3125,Translation!$A:$C,3,FALSE),E3125)","v":86.581428693446298},{"$f":"IFERROR(VLOOKUP(F3125,Translation!$A:$C,3,FALSE),F3125)","v":"Prêts hypothécaires assurés au cours de la période selon le type neuf/existant (%)"},{"$f":"IFERROR(VLOOKUP(G3125,Translation!$A:$C,3,FALSE),G3125)","v":"86.6"},{"$f":"IFERROR(VLOOKUP(H3125,Translation!$A:$C,3,FALSE),H3125)","v":"Manitoba"}]
[20,"T4 2017","PROPRIÉTAIRES-OCCUPANTS, À L’UNITÉ","Manitoba",82.147273381448059,"Prêts hypothécaires assurés au cours de la période selon le type neuf/existant (%)","82.1","Manitoba",{"$f":"IFERROR(VLOOKUP(A3129,Translation!$A:$C,3,FALSE),A3129)","v":20},{"$f":"IFERROR(VLOOKUP(B3129,Translation!$A:$C,3,FALSE),B3129)","v":"T4 2017"},{"$f":"IFERROR(VLOOKUP(C3129,Translation!$A:$C,3,FALSE),C3129)","v":"PROPRIÉTAIRES-OCCUPANTS, À L’UNITÉ"},{"$f":"IFERROR(VLOOKUP(D3129,Translation!$A:$C,3,FALSE),D3129)","v":"Manitoba"},{"$f":"IFERROR(VLOOKUP(E3129,Translation!$A:$C,3,FALSE),E3129)","v":82.147273381448059},{"$f":"IFERROR(VLOOKUP(F3129,Translation!$A:$C,3,FALSE),F3129)","v":"Prêts hypothécaires assurés au cours de la période selon le type neuf/existant (%)"},{"$f":"IFERROR(VLOOKUP(G3129,Translation!$A:$C,3,FALSE),G3129)","v":"82.1"},{"$f":"IFERROR(VLOOKUP(H3129,Translation!$A:$C,3,FALSE),H3129)","v":"Manitoba"}]
[20,"T1 2017","PROPRIÉTAIRES-OCCUPANTS, À L’UNITÉ","Saskatchewan",81.553982346548949,"Prêts hypothécaires assurés au cours de la période selon le type neuf/existant (%)","81.6","Saskatchewan",{"$f":"IFERROR(VLOOKUP(A3130,Translation!$A:$C,3,FALSE),A3130)","v":20},{"$f":"IFERROR(VLOOKUP(B3130,Translation!$A:$C,3,FALSE),B3130)","v":"T1 2017"},{"$f":"IFERROR(VLOOKUP(C3130,Translation!$A:$C,3,FALSE),C3130)","v":"PROPRIÉTAIRES-OCCUPANTS, À L’UNITÉ"},{"$f":"IFERROR(VLOOKUP(D3130,Translation!$A:$C,3,FALSE),D3130)","v":"Saskatchewan"},{"$f":"IFERROR(VLOOKUP(E3130,Translation!$A:$C,3,FALSE),E3130)","v":81.553982346548949},{"$f":"IFERROR(VLOOKUP(F3130,Translation!$A:$C,3,FALSE),F3130)","v":"Prêts hypothécaires assurés au cours de la période selon le type neuf/existant (%)"},{"$f":"IFERROR(VLOOKUP(G3130,Translation!$A:$C,3,FALSE),G3130)","v":"81.6"},{"$f":"IFERROR(VLOOKUP(H3130,Translation!$A:$C,3,FALSE),H3130)","v":"Saskatchewan"}]
[20,"Q3 2016","PROPRIÉTAIRES-OCCUPANTS, À L’UNITÉ","Saskatchewan",86.833001263484192,"Prêts hypothécaires assurés au cours de la période selon le type neuf/existant (%)","86.8","Saskatchewan",{"$f":"IFERROR(VLOOKUP(A3134,Translation!$A:$C,3,FALSE),A3134)","v":20},{"$f":"IFERROR(VLOOKUP(B3134,Translation!$A:$C,3,FALSE),B3134)","v":"Q3 2016"},{"$f":"IFERROR(VLOOKUP(C3134,Translation!$A:$C,3,FALSE),C3134)","v":"PROPRIÉTAIRES-OCCUPANTS, À L’UNITÉ"},{"$f":"IFERROR(VLOOKUP(D3134,Translation!$A:$C,3,FALSE),D3134)","v":"Saskatchewan"},{"$f":"IFERROR(VLOOKUP(E3134,Translation!$A:$C,3,FALSE),E3134)","v":86.833001263484192},{"$f":"IFERROR(VLOOKUP(F3134,Translation!$A:$C,3,FALSE),F3134)","v":"Prêts hypothécaires assurés au cours de la période selon le type neuf/existant (%)"},{"$f":"IFERROR(VLOOKUP(G3134,Translation!$A:$C,3,FALSE),G3134)","v":"86.8"},{"$f":"IFERROR(VLOOKUP(H3134,Translation!$A:$C,3,FALSE),H3134)","v":"Saskatchewan"}]
[20,"T3 2017","PROPRIÉTAIRES-OCCUPANTS, À L’UNITÉ","Saskatchewan",85.776892008774411,"Prêts hypothécaires assurés au cours de la période selon le type neuf/existant (%)","85.8","Saskatchewan",{"$f":"IFERROR(VLOOKUP(A3135,Translation!$A:$C,3,FALSE),A3135)","v":20},{"$f":"IFERROR(VLOOKUP(B3135,Translation!$A:$C,3,FALSE),B3135)","v":"T3 2017"},{"$f":"IFERROR(VLOOKUP(C3135,Translation!$A:$C,3,FALSE),C3135)","v":"PROPRIÉTAIRES-OCCUPANTS, À L’UNITÉ"},{"$f":"IFERROR(VLOOKUP(D3135,Translation!$A:$C,3,FALSE),D3135)","v":"Saskatchewan"},{"$f":"IFERROR(VLOOKUP(E3135,Translation!$A:$C,3,FALSE),E3135)","v":85.776892008774411},{"$f":"IFERROR(VLOOKUP(F3135,Translation!$A:$C,3,FALSE),F3135)","v":"Prêts hypothécaires assurés au cours de la période selon le type neuf/existant (%)"},{"$f":"IFERROR(VLOOKUP(G3135,Translation!$A:$C,3,FALSE),G3135)","v":"85.8"},{"$f":"IFERROR(VLOOKUP(H3135,Translation!$A:$C,3,FALSE),H3135)","v":"Saskatchewan"}]
[20,"T1 2018","PROPRIÉTAIRES-OCCUPANTS, À L’UNITÉ","Alberta",76.06181708985855,"Prêts hypothécaires assurés au cours de la période selon le type neuf/existant (%)","76.1","Alberta",{"$f":"IFERROR(VLOOKUP(A3139,Translation!$A:$C,3,FALSE),A3139)","v":20},{"$f":"IFERROR(VLOOKUP(B3139,Translation!$A:$C,3,FALSE),B3139)","v":"T1 2018"},{"$f":"IFERROR(VLOOKUP(C3139,Translation!$A:$C,3,FALSE),C3139)","v":"PROPRIÉTAIRES-OCCUPANTS, À L’UNITÉ"},{"$f":"IFERROR(VLOOKUP(D3139,Translation!$A:$C,3,FALSE),D3139)","v":"Alberta"},{"$f":"IFERROR(VLOOKUP(E3139,Translation!$A:$C,3,FALSE),E3139)","v":76.06181708985855},{"$f":"IFERROR(VLOOKUP(F3139,Translation!$A:$C,3,FALSE),F3139)","v":"Prêts hypothécaires assurés au cours de la période selon le type neuf/existant (%)"},{"$f":"IFERROR(VLOOKUP(G3139,Translation!$A:$C,3,FALSE),G3139)","v":"76.1"},{"$f":"IFERROR(VLOOKUP(H3139,Translation!$A:$C,3,FALSE),H3139)","v":"Alberta"}]
[20,"Q2 2016","PROPRIÉTAIRES-OCCUPANTS, À L’UNITÉ","Alberta",77.82599101402775,"Prêts hypothécaires assurés au cours de la période selon le type neuf/existant (%)","77.8","Alberta",{"$f":"IFERROR(VLOOKUP(A3140,Translation!$A:$C,3,FALSE),A3140)","v":20},{"$f":"IFERROR(VLOOKUP(B3140,Translation!$A:$C,3,FALSE),B3140)","v":"Q2 2016"},{"$f":"IFERROR(VLOOKUP(C3140,Translation!$A:$C,3,FALSE),C3140)","v":"PROPRIÉTAIRES-OCCUPANTS, À L’UNITÉ"},{"$f":"IFERROR(VLOOKUP(D3140,Translation!$A:$C,3,FALSE),D3140)","v":"Alberta"},{"$f":"IFERROR(VLOOKUP(E3140,Translation!$A:$C,3,FALSE),E3140)","v":77.82599101402775},{"$f":"IFERROR(VLOOKUP(F3140,Translation!$A:$C,3,FALSE),F3140)","v":"Prêts hypothécaires assurés au cours de la période selon le type neuf/existant (%)"},{"$f":"IFERROR(VLOOKUP(G3140,Translation!$A:$C,3,FALSE),G3140)","v":"77.8"},{"$f":"IFERROR(VLOOKUP(H3140,Translation!$A:$C,3,FALSE),H3140)","v":"Alberta"}]
[20,"Q4 2016","PROPRIÉTAIRES-OCCUPANTS, À L’UNITÉ","Alberta",73.447335691277701,"Prêts hypothécaires assurés au cours de la période selon le type neuf/existant (%)","73.4","Alberta",{"$f":"IFERROR(VLOOKUP(A3144,Translation!$A:$C,3,FALSE),A3144)","v":20},{"$f":"IFERROR(VLOOKUP(B3144,Translation!$A:$C,3,FALSE),B3144)","v":"Q4 2016"},{"$f":"IFERROR(VLOOKUP(C3144,Translation!$A:$C,3,FALSE),C3144)","v":"PROPRIÉTAIRES-OCCUPANTS, À L’UNITÉ"},{"$f":"IFERROR(VLOOKUP(D3144,Translation!$A:$C,3,FALSE),D3144)","v":"Alberta"},{"$f":"IFERROR(VLOOKUP(E3144,Translation!$A:$C,3,FALSE),E3144)","v":73.447335691277701},{"$f":"IFERROR(VLOOKUP(F3144,Translation!$A:$C,3,FALSE),F3144)","v":"Prêts hypothécaires assurés au cours de la période selon le type neuf/existant (%)"},{"$f":"IFERROR(VLOOKUP(G3144,Translation!$A:$C,3,FALSE),G3144)","v":"73.4"},{"$f":"IFERROR(VLOOKUP(H3144,Translation!$A:$C,3,FALSE),H3144)","v":"Alberta"}]
[20,"T4 2017","PROPRIÉTAIRES-OCCUPANTS, À L’UNITÉ","Alberta",73.485785558871186,"Prêts hypothécaires assurés au cours de la période selon le type neuf/existant (%)","73.5","Alberta",{"$f":"IFERROR(VLOOKUP(A3145,Translation!$A:$C,3,FALSE),A3145)","v":20},{"$f":"IFERROR(VLOOKUP(B3145,Translation!$A:$C,3,FALSE),B3145)","v":"T4 2017"},{"$f":"IFERROR(VLOOKUP(C3145,Translation!$A:$C,3,FALSE),C3145)","v":"PROPRIÉTAIRES-OCCUPANTS, À L’UNITÉ"},{"$f":"IFERROR(VLOOKUP(D3145,Translation!$A:$C,3,FALSE),D3145)","v":"Alberta"},{"$f":"IFERROR(VLOOKUP(E3145,Translation!$A:$C,3,FALSE),E3145)","v":73.485785558871186},{"$f":"IFERROR(VLOOKUP(F3145,Translation!$A:$C,3,FALSE),F3145)","v":"Prêts hypothécaires assurés au cours de la période selon le type neuf/existant (%)"},{"$f":"IFERROR(VLOOKUP(G3145,Translation!$A:$C,3,FALSE),G3145)","v":"73.5"},{"$f":"IFERROR(VLOOKUP(H3145,Translation!$A:$C,3,FALSE),H3145)","v":"Alberta"}]
[20,"Q2 2016","PROPRIÉTAIRES-OCCUPANTS, À L’UNITÉ","Colombie-Britannique",91.054183045239654,"Prêts hypothécaires assurés au cours de la période selon le type neuf/existant (%)","91.1","Colombie-Britannique",{"$f":"IFERROR(VLOOKUP(A3148,Translation!$A:$C,3,FALSE),A3148)","v":20},{"$f":"IFERROR(VLOOKUP(B3148,Translation!$A:$C,3,FALSE),B3148)","v":"Q2 2016"},{"$f":"IFERROR(VLOOKUP(C3148,Translation!$A:$C,3,FALSE),C3148)","v":"PROPRIÉTAIRES-OCCUPANTS, À L’UNITÉ"},{"$f":"IFERROR(VLOOKUP(D3148,Translation!$A:$C,3,FALSE),D3148)","v":"Colombie-Britannique"},{"$f":"IFERROR(VLOOKUP(E3148,Translation!$A:$C,3,FALSE),E3148)","v":91.054183045239654},{"$f":"IFERROR(VLOOKUP(F3148,Translation!$A:$C,3,FALSE),F3148)","v":"Prêts hypothécaires assurés au cours de la période selon le type neuf/existant (%)"},{"$f":"IFERROR(VLOOKUP(G3148,Translation!$A:$C,3,FALSE),G3148)","v":"91.1"},{"$f":"IFERROR(VLOOKUP(H3148,Translation!$A:$C,3,FALSE),H3148)","v":"Colombie-Britannique"}]
[20,"T2 2017","PROPRIÉTAIRES-OCCUPANTS, À L’UNITÉ","Colombie-Britannique",90.442485231763442,"Prêts hypothécaires assurés au cours de la période selon le type neuf/existant (%)","90.4","Colombie-Britannique",{"$f":"IFERROR(VLOOKUP(A3149,Translation!$A:$C,3,FALSE),A3149)","v":20},{"$f":"IFERROR(VLOOKUP(B3149,Translation!$A:$C,3,FALSE),B3149)","v":"T2 2017"},{"$f":"IFERROR(VLOOKUP(C3149,Translation!$A:$C,3,FALSE),C3149)","v":"PROPRIÉTAIRES-OCCUPANTS, À L’UNITÉ"},{"$f":"IFERROR(VLOOKUP(D3149,Translation!$A:$C,3,FALSE),D3149)","v":"Colombie-Britannique"},{"$f":"IFERROR(VLOOKUP(E3149,Translation!$A:$C,3,FALSE),E3149)","v":90.442485231763442},{"$f":"IFERROR(VLOOKUP(F3149,Translation!$A:$C,3,FALSE),F3149)","v":"Prêts hypothécaires assurés au cours de la période selon le type neuf/existant (%)"},{"$f":"IFERROR(VLOOKUP(G3149,Translation!$A:$C,3,FALSE),G3149)","v":"90.4"},{"$f":"IFERROR(VLOOKUP(H3149,Translation!$A:$C,3,FALSE),H3149)","v":"Colombie-Britannique"}]
[20,"T4 2017","PROPRIÉTAIRES-OCCUPANTS, À L’UNITÉ","Colombie-Britannique",91.693431482840126,"Prêts hypothécaires assurés au cours de la période selon le type neuf/existant (%)","91.7","Colombie-Britannique",{"$f":"IFERROR(VLOOKUP(A3153,Translation!$A:$C,3,FALSE),A3153)","v":20},{"$f":"IFERROR(VLOOKUP(B3153,Translation!$A:$C,3,FALSE),B3153)","v":"T4 2017"},{"$f":"IFERROR(VLOOKUP(C3153,Translation!$A:$C,3,FALSE),C3153)","v":"PROPRIÉTAIRES-OCCUPANTS, À L’UNITÉ"},{"$f":"IFERROR(VLOOKUP(D3153,Translation!$A:$C,3,FALSE),D3153)","v":"Colombie-Britannique"},{"$f":"IFERROR(VLOOKUP(E3153,Translation!$A:$C,3,FALSE),E3153)","v":91.693431482840126},{"$f":"IFERROR(VLOOKUP(F3153,Translation!$A:$C,3,FALSE),F3153)","v":"Prêts hypothécaires assurés au cours de la période selon le type neuf/existant (%)"},{"$f":"IFERROR(VLOOKUP(G3153,Translation!$A:$C,3,FALSE),G3153)","v":"91.7"},{"$f":"IFERROR(VLOOKUP(H3153,Translation!$A:$C,3,FALSE),H3153)","v":"Colombie-Britannique"}]
[20,"T1 2018","PROPRIÉTAIRES-OCCUPANTS, À L’UNITÉ","Territoires",92.87862747652008,"Prêts hypothécaires assurés au cours de la période selon le type neuf/existant (%)","92.9","Territoires",{"$f":"IFERROR(VLOOKUP(A3155,Translation!$A:$C,3,FALSE),A3155)","v":20},{"$f":"IFERROR(VLOOKUP(B3155,Translation!$A:$C,3,FALSE),B3155)","v":"T1 2018"},{"$f":"IFERROR(VLOOKUP(C3155,Translation!$A:$C,3,FALSE),C3155)","v":"PROPRIÉTAIRES-OCCUPANTS, À L’UNITÉ"},{"$f":"IFERROR(VLOOKUP(D3155,Translation!$A:$C,3,FALSE),D3155)","v":"Territoires"},{"$f":"IFERROR(VLOOKUP(E3155,Translation!$A:$C,3,FALSE),E3155)","v":92.87862747652008},{"$f":"IFERROR(VLOOKUP(F3155,Translation!$A:$C,3,FALSE),F3155)","v":"Prêts hypothécaires assurés au cours de la période selon le type neuf/existant (%)"},{"$f":"IFERROR(VLOOKUP(G3155,Translation!$A:$C,3,FALSE),G3155)","v":"92.9"},{"$f":"IFERROR(VLOOKUP(H3155,Translation!$A:$C,3,FALSE),H3155)","v":"Territoires"}]
[20,"Q3 2016","PROPRIÉTAIRES-OCCUPANTS, À L’UNITÉ","Territoires",92.377111912490221,"Prêts hypothécaires assurés au cours de la période selon le type neuf/existant (%)","92.4","Territoires",{"$f":"IFERROR(VLOOKUP(A3158,Translation!$A:$C,3,FALSE),A3158)","v":20},{"$f":"IFERROR(VLOOKUP(B3158,Translation!$A:$C,3,FALSE),B3158)","v":"Q3 2016"},{"$f":"IFERROR(VLOOKUP(C3158,Translation!$A:$C,3,FALSE),C3158)","v":"PROPRIÉTAIRES-OCCUPANTS, À L’UNITÉ"},{"$f":"IFERROR(VLOOKUP(D3158,Translation!$A:$C,3,FALSE),D3158)","v":"Territoires"},{"$f":"IFERROR(VLOOKUP(E3158,Translation!$A:$C,3,FALSE),E3158)","v":92.377111912490221},{"$f":"IFERROR(VLOOKUP(F3158,Translation!$A:$C,3,FALSE),F3158)","v":"Prêts hypothécaires assurés au cours de la période selon le type neuf/existant (%)"},{"$f":"IFERROR(VLOOKUP(G3158,Translation!$A:$C,3,FALSE),G3158)","v":"92.4"},{"$f":"IFERROR(VLOOKUP(H3158,Translation!$A:$C,3,FALSE),H3158)","v":"Territoires"}]
[20,"T3 2017","PROPRIÉTAIRES-OCCUPANTS, À L’UNITÉ","Territoires",91.533547712883774,"Prêts hypothécaires assurés au cours de la période selon le type neuf/existant (%)","91.5","Territoires",{"$f":"IFERROR(VLOOKUP(A3159,Translation!$A:$C,3,FALSE),A3159)","v":20},{"$f":"IFERROR(VLOOKUP(B3159,Translation!$A:$C,3,FALSE),B3159)","v":"T3 2017"},{"$f":"IFERROR(VLOOKUP(C3159,Translation!$A:$C,3,FALSE),C3159)","v":"PROPRIÉTAIRES-OCCUPANTS, À L’UNITÉ"},{"$f":"IFERROR(VLOOKUP(D3159,Translation!$A:$C,3,FALSE),D3159)","v":"Territoires"},{"$f":"IFERROR(VLOOKUP(E3159,Translation!$A:$C,3,FALSE),E3159)","v":91.533547712883774},{"$f":"IFERROR(VLOOKUP(F3159,Translation!$A:$C,3,FALSE),F3159)","v":"Prêts hypothécaires assurés au cours de la période selon le type neuf/existant (%)"},{"$f":"IFERROR(VLOOKUP(G3159,Translation!$A:$C,3,FALSE),G3159)","v":"91.5"},{"$f":"IFERROR(VLOOKUP(H3159,Translation!$A:$C,3,FALSE),H3159)","v":"Territoires"}]
[31,"T1 2018","IMMEUBLES COLLECTIFS RÉSIDENTIELS","Neuf",23.323852362434238,"Prêts hypothécaires assurés au cours de la période selon le type neuf/existant (%)","23.3","Neuf",{"$f":"IFERROR(VLOOKUP(A3163,Translation!$A:$C,3,FALSE),A3163)","v":31},{"$f":"IFERROR(VLOOKUP(B3163,Translation!$A:$C,3,FALSE),B3163)","v":"T1 2018"},{"$f":"IFERROR(VLOOKUP(C3163,Translation!$A:$C,3,FALSE),C3163)","v":"IMMEUBLES COLLECTIFS RÉSIDENTIELS"},{"$f":"IFERROR(VLOOKUP(D3163,Translation!$A:$C,3,FALSE),D3163)","v":"Neuf"},{"$f":"IFERROR(VLOOKUP(E3163,Translation!$A:$C,3,FALSE),E3163)","v":23.323852362434238},{"$f":"IFERROR(VLOOKUP(F3163,Translation!$A:$C,3,FALSE),F3163)","v":"Prêts hypothécaires assurés au cours de la période selon le type neuf/existant (%)"},{"$f":"IFERROR(VLOOKUP(G3163,Translation!$A:$C,3,FALSE),G3163)","v":"23.3"},{"$f":"IFERROR(VLOOKUP(H3163,Translation!$A:$C,3,FALSE),H3163)","v":"Neuf"}]
[31,"Q2 2016","IMMEUBLES COLLECTIFS RÉSIDENTIELS","Neuf",12.716226351670578,"Prêts hypothécaires assurés au cours de la période selon le type neuf/existant (%)","12.7","Neuf",{"$f":"IFERROR(VLOOKUP(A3164,Translation!$A:$C,3,FALSE),A3164)","v":31},{"$f":"IFERROR(VLOOKUP(B3164,Translation!$A:$C,3,FALSE),B3164)","v":"Q2 2016"},{"$f":"IFERROR(VLOOKUP(C3164,Translation!$A:$C,3,FALSE),C3164)","v":"IMMEUBLES COLLECTIFS RÉSIDENTIELS"},{"$f":"IFERROR(VLOOKUP(D3164,Translation!$A:$C,3,FALSE),D3164)","v":"Neuf"},{"$f":"IFERROR(VLOOKUP(E3164,Translation!$A:$C,3,FALSE),E3164)","v":12.716226351670578},{"$f":"IFERROR(VLOOKUP(F3164,Translation!$A:$C,3,FALSE),F3164)","v":"Prêts hypothécaires assurés au cours de la période selon le type neuf/existant (%)"},{"$f":"IFERROR(VLOOKUP(G3164,Translation!$A:$C,3,FALSE),G3164)","v":"12.7"},{"$f":"IFERROR(VLOOKUP(H3164,Translation!$A:$C,3,FALSE),H3164)","v":"Neuf"}]
[31,"Q3 2016","IMMEUBLES COLLECTIFS RÉSIDENTIELS","Neuf",13.567628964999844,"Prêts hypothécaires assurés au cours de la période selon le type neuf/existant (%)","13.6","Neuf",{"$f":"IFERROR(VLOOKUP(A3166,Translation!$A:$C,3,FALSE),A3166)","v":31},{"$f":"IFERROR(VLOOKUP(B3166,Translation!$A:$C,3,FALSE),B3166)","v":"Q3 2016"},{"$f":"IFERROR(VLOOKUP(C3166,Translation!$A:$C,3,FALSE),C3166)","v":"IMMEUBLES COLLECTIFS RÉSIDENTIELS"},{"$f":"IFERROR(VLOOKUP(D3166,Translation!$A:$C,3,FALSE),D3166)","v":"Neuf"},{"$f":"IFERROR(VLOOKUP(E3166,Translation!$A:$C,3,FALSE),E3166)","v":13.567628964999844},{"$f":"IFERROR(VLOOKUP(F3166,Translation!$A:$C,3,FALSE),F3166)","v":"Prêts hypothécaires assurés au cours de la période selon le type neuf/existant (%)"},{"$f":"IFERROR(VLOOKUP(G3166,Translation!$A:$C,3,FALSE),G3166)","v":"13.6"},{"$f":"IFERROR(VLOOKUP(H3166,Translation!$A:$C,3,FALSE),H3166)","v":"Neuf"}]
[31,"T4 2017","IMMEUBLES COLLECTIFS RÉSIDENTIELS","Neuf",22.141803893645861,"Prêts hypothécaires assurés au cours de la période selon le type neuf/existant (%)","22.1","Neuf",{"$f":"IFERROR(VLOOKUP(A3169,Translation!$A:$C,3,FALSE),A3169)","v":31},{"$f":"IFERROR(VLOOKUP(B3169,Translation!$A:$C,3,FALSE),B3169)","v":"T4 2017"},{"$f":"IFERROR(VLOOKUP(C3169,Translation!$A:$C,3,FALSE),C3169)","v":"IMMEUBLES COLLECTIFS RÉSIDENTIELS"},{"$f":"IFERROR(VLOOKUP(D3169,Translation!$A:$C,3,FALSE),D3169)","v":"Neuf"},{"$f":"IFERROR(VLOOKUP(E3169,Translation!$A:$C,3,FALSE),E3169)","v":22.141803893645861},{"$f":"IFERROR(VLOOKUP(F3169,Translation!$A:$C,3,FALSE),F3169)","v":"Prêts hypothécaires assurés au cours de la période selon le type neuf/existant (%)"},{"$f":"IFERROR(VLOOKUP(G3169,Translation!$A:$C,3,FALSE),G3169)","v":"22.1"},{"$f":"IFERROR(VLOOKUP(H3169,Translation!$A:$C,3,FALSE),H3169)","v":"Neuf"}]
[31,"Q2 2016","IMMEUBLES COLLECTIFS RÉSIDENTIELS","Existant",87.283773648329444,"Prêts hypothécaires assurés au cours de la période selon le type neuf/existant (%)","87.3","Existant",{"$f":"IFERROR(VLOOKUP(A3172,Translation!$A:$C,3,FALSE),A3172)","v":31},{"$f":"IFERROR(VLOOKUP(B3172,Translation!$A:$C,3,FALSE),B3172)","v":"Q2 2016"},{"$f":"IFERROR(VLOOKUP(C3172,Translation!$A:$C,3,FALSE),C3172)","v":"IMMEUBLES COLLECTIFS RÉSIDENTIELS"},{"$f":"IFERROR(VLOOKUP(D3172,Translation!$A:$C,3,FALSE),D3172)","v":"Existant"},{"$f":"IFERROR(VLOOKUP(E3172,Translation!$A:$C,3,FALSE),E3172)","v":87.283773648329444},{"$f":"IFERROR(VLOOKUP(F3172,Translation!$A:$C,3,FALSE),F3172)","v":"Prêts hypothécaires assurés au cours de la période selon le type neuf/existant (%)"},{"$f":"IFERROR(VLOOKUP(G3172,Translation!$A:$C,3,FALSE),G3172)","v":"87.3"},{"$f":"IFERROR(VLOOKUP(H3172,Translation!$A:$C,3,FALSE),H3172)","v":"Existant"}]
[31,"Q3 2016","IMMEUBLES COLLECTIFS RÉSIDENTIELS","Existant",86.432371035000145,"Prêts hypothécaires assurés au cours de la période selon le type neuf/existant (%)","86.4","Existant",{"$f":"IFERROR(VLOOKUP(A3174,Translation!$A:$C,3,FALSE),A3174)","v":31},{"$f":"IFERROR(VLOOKUP(B3174,Translation!$A:$C,3,FALSE),B3174)","v":"Q3 2016"},{"$f":"IFERROR(VLOOKUP(C3174,Translation!$A:$C,3,FALSE),C3174)","v":"IMMEUBLES COLLECTIFS RÉSIDENTIELS"},{"$f":"IFERROR(VLOOKUP(D3174,Translation!$A:$C,3,FALSE),D3174)","v":"Existant"},{"$f":"IFERROR(VLOOKUP(E3174,Translation!$A:$C,3,FALSE),E3174)","v":86.432371035000145},{"$f":"IFERROR(VLOOKUP(F3174,Translation!$A:$C,3,FALSE),F3174)","v":"Prêts hypothécaires assurés au cours de la période selon le type neuf/existant (%)"},{"$f":"IFERROR(VLOOKUP(G3174,Translation!$A:$C,3,FALSE),G3174)","v":"86.4"},{"$f":"IFERROR(VLOOKUP(H3174,Translation!$A:$C,3,FALSE),H3174)","v":"Existant"}]
[31,"T4 2017","IMMEUBLES COLLECTIFS RÉSIDENTIELS","Existant",77.858196106354143,"Prêts hypothécaires assurés au cours de la période selon le type neuf/existant (%)","77.9","Existant",{"$f":"IFERROR(VLOOKUP(A3177,Translation!$A:$C,3,FALSE),A3177)","v":31},{"$f":"IFERROR(VLOOKUP(B3177,Translation!$A:$C,3,FALSE),B3177)","v":"T4 2017"},{"$f":"IFERROR(VLOOKUP(C3177,Translation!$A:$C,3,FALSE),C3177)","v":"IMMEUBLES COLLECTIFS RÉSIDENTIELS"},{"$f":"IFERROR(VLOOKUP(D3177,Translation!$A:$C,3,FALSE),D3177)","v":"Existant"},{"$f":"IFERROR(VLOOKUP(E3177,Translation!$A:$C,3,FALSE),E3177)","v":77.858196106354143},{"$f":"IFERROR(VLOOKUP(F3177,Translation!$A:$C,3,FALSE),F3177)","v":"Prêts hypothécaires assurés au cours de la période selon le type neuf/existant (%)"},{"$f":"IFERROR(VLOOKUP(G3177,Translation!$A:$C,3,FALSE),G3177)","v":"77.9"},{"$f":"IFERROR(VLOOKUP(H3177,Translation!$A:$C,3,FALSE),H3177)","v":"Existant"}]
[31,"Q3 2016","IMMEUBLES COLLECTIFS RÉSIDENTIELS","Terre-Neuve-et-Labrador",70.307564312225693,"Prêts hypothécaires assurés au cours de la période selon le type neuf/existant (%)","70.3","Terre-Neuve-et-Labrador",{"$f":"IFERROR(VLOOKUP(A3180,Translation!$A:$C,3,FALSE),A3180)","v":31},{"$f":"IFERROR(VLOOKUP(B3180,Translation!$A:$C,3,FALSE),B3180)","v":"Q3 2016"},{"$f":"IFERROR(VLOOKUP(C3180,Translation!$A:$C,3,FALSE),C3180)","v":"IMMEUBLES COLLECTIFS RÉSIDENTIELS"},{"$f":"IFERROR(VLOOKUP(D3180,Translation!$A:$C,3,FALSE),D3180)","v":"Terre-Neuve-et-Labrador"},{"$f":"IFERROR(VLOOKUP(E3180,Translation!$A:$C,3,FALSE),E3180)","v":70.307564312225693},{"$f":"IFERROR(VLOOKUP(F3180,Translation!$A:$C,3,FALSE),F3180)","v":"Prêts hypothécaires assurés au cours de la période selon le type neuf/existant (%)"},{"$f":"IFERROR(VLOOKUP(G3180,Translation!$A:$C,3,FALSE),G3180)","v":"70.3"},{"$f":"IFERROR(VLOOKUP(H3180,Translation!$A:$C,3,FALSE),H3180)","v":"Terre-Neuve-et-Labrador"}]
[31,"Q4 2016","IMMEUBLES COLLECTIFS RÉSIDENTIELS","Terre-Neuve-et-Labrador",100,"Prêts hypothécaires assurés au cours de la période selon le type neuf/existant (%)","100.0","Terre-Neuve-et-Labrador",{"$f":"IFERROR(VLOOKUP(A3182,Translation!$A:$C,3,FALSE),A3182)","v":31},{"$f":"IFERROR(VLOOKUP(B3182,Translation!$A:$C,3,FALSE),B3182)","v":"Q4 2016"},{"$f":"IFERROR(VLOOKUP(C3182,Translation!$A:$C,3,FALSE),C3182)","v":"IMMEUBLES COLLECTIFS RÉSIDENTIELS"},{"$f":"IFERROR(VLOOKUP(D3182,Translation!$A:$C,3,FALSE),D3182)","v":"Terre-Neuve-et-Labrador"},{"$f":"IFERROR(VLOOKUP(E3182,Translation!$A:$C,3,FALSE),E3182)","v":100},{"$f":"IFERROR(VLOOKUP(F3182,Translation!$A:$C,3,FALSE),F3182)","v":"Prêts hypothécaires assurés au cours de la période selon le type neuf/existant (%)"},{"$f":"IFERROR(VLOOKUP(G3182,Translation!$A:$C,3,FALSE),G3182)","v":"100.0"},{"$f":"IFERROR(VLOOKUP(H3182,Translation!$A:$C,3,FALSE),H3182)","v":"Terre-Neuve-et-Labrador"}]
[31,"T4 2017","IMMEUBLES COLLECTIFS RÉSIDENTIELS","Terre-Neuve-et-Labrador",100,"Prêts hypothécaires assurés au cours de la période selon le type neuf/existant (%)","100.0","Terre-Neuve-et-Labrador",{"$f":"IFERROR(VLOOKUP(A3183,Translation!$A:$C,3,FALSE),A3183)","v":31},{"$f":"IFERROR(VLOOKUP(B3183,Translation!$A:$C,3,FALSE),B3183)","v":"T4 2017"},{"$f":"IFERROR(VLOOKUP(C3183,Translation!$A:$C,3,FALSE),C3183)","v":"IMMEUBLES COLLECTIFS RÉSIDENTIELS"},{"$f":"IFERROR(VLOOKUP(D3183,Translation!$A:$C,3,FALSE),D3183)","v":"Terre-Neuve-et-Labrador"},{"$f":"IFERROR(VLOOKUP(E3183,Translation!$A:$C,3,FALSE),E3183)","v":100},{"$f":"IFERROR(VLOOKUP(F3183,Translation!$A:$C,3,FALSE),F3183)","v":"Prêts hypothécaires assurés au cours de la période selon le type neuf/existant (%)"},{"$f":"IFERROR(VLOOKUP(G3183,Translation!$A:$C,3,FALSE),G3183)","v":"100.0"},{"$f":"IFERROR(VLOOKUP(H3183,Translation!$A:$C,3,FALSE),H3183)","v":"Terre-Neuve-et-Labrador"}]
[31,"T1 2018","IMMEUBLES COLLECTIFS RÉSIDENTIELS","Île-du-Prince-Édouard",53.090450999678062,"Prêts hypothécaires assurés au cours de la période selon le type neuf/existant (%)","53.1","Île-du-Prince-Édouard",{"$f":"IFERROR(VLOOKUP(A3185,Translation!$A:$C,3,FALSE),A3185)","v":31},{"$f":"IFERROR(VLOOKUP(B3185,Translation!$A:$C,3,FALSE),B3185)","v":"T1 2018"},{"$f":"IFERROR(VLOOKUP(C3185,Translation!$A:$C,3,FALSE),C3185)","v":"IMMEUBLES COLLECTIFS RÉSIDENTIELS"},{"$f":"IFERROR(VLOOKUP(D3185,Translation!$A:$C,3,FALSE),D3185)","v":"Île-du-Prince-Édouard"},{"$f":"IFERROR(VLOOKUP(E3185,Translation!$A:$C,3,FALSE),E3185)","v":53.090450999678062},{"$f":"IFERROR(VLOOKUP(F3185,Translation!$A:$C,3,FALSE),F3185)","v":"Prêts hypothécaires assurés au cours de la période selon le type neuf/existant (%)"},{"$f":"IFERROR(VLOOKUP(G3185,Translation!$A:$C,3,FALSE),G3185)","v":"53.1"},{"$f":"IFERROR(VLOOKUP(H3185,Translation!$A:$C,3,FALSE),H3185)","v":"Île-du-Prince-Édouard"}]
[31,"Q3 2016","IMMEUBLES COLLECTIFS RÉSIDENTIELS","Île-du-Prince-Édouard",36.463593649387775,"Prêts hypothécaires assurés au cours de la période selon le type neuf/existant (%)","36.5","Île-du-Prince-Édouard",{"$f":"IFERROR(VLOOKUP(A3188,Translation!$A:$C,3,FALSE),A3188)","v":31},{"$f":"IFERROR(VLOOKUP(B3188,Translation!$A:$C,3,FALSE),B3188)","v":"Q3 2016"},{"$f":"IFERROR(VLOOKUP(C3188,Translation!$A:$C,3,FALSE),C3188)","v":"IMMEUBLES COLLECTIFS RÉSIDENTIELS"},{"$f":"IFERROR(VLOOKUP(D3188,Translation!$A:$C,3,FALSE),D3188)","v":"Île-du-Prince-Édouard"},{"$f":"IFERROR(VLOOKUP(E3188,Translation!$A:$C,3,FALSE),E3188)","v":36.463593649387775},{"$f":"IFERROR(VLOOKUP(F3188,Translation!$A:$C,3,FALSE),F3188)","v":"Prêts hypothécaires assurés au cours de la période selon le type neuf/existant (%)"},{"$f":"IFERROR(VLOOKUP(G3188,Translation!$A:$C,3,FALSE),G3188)","v":"36.5"},{"$f":"IFERROR(VLOOKUP(H3188,Translation!$A:$C,3,FALSE),H3188)","v":"Île-du-Prince-Édouard"}]
[31,"T4 2017","IMMEUBLES COLLECTIFS RÉSIDENTIELS","Île-du-Prince-Édouard",100,"Prêts hypothécaires assurés au cours de la période selon le type neuf/existant (%)","100.0","Île-du-Prince-Édouard",{"$f":"IFERROR(VLOOKUP(A3191,Translation!$A:$C,3,FALSE),A3191)","v":31},{"$f":"IFERROR(VLOOKUP(B3191,Translation!$A:$C,3,FALSE),B3191)","v":"T4 2017"},{"$f":"IFERROR(VLOOKUP(C3191,Translation!$A:$C,3,FALSE),C3191)","v":"IMMEUBLES COLLECTIFS RÉSIDENTIELS"},{"$f":"IFERROR(VLOOKUP(D3191,Translation!$A:$C,3,FALSE),D3191)","v":"Île-du-Prince-Édouard"},{"$f":"IFERROR(VLOOKUP(E3191,Translation!$A:$C,3,FALSE),E3191)","v":100},{"$f":"IFERROR(VLOOKUP(F3191,Translation!$A:$C,3,FALSE),F3191)","v":"Prêts hypothécaires assurés au cours de la période selon le type neuf/existant (%)"},{"$f":"IFERROR(VLOOKUP(G3191,Translation!$A:$C,3,FALSE),G3191)","v":"100.0"},{"$f":"IFERROR(VLOOKUP(H3191,Translation!$A:$C,3,FALSE),H3191)","v":"Île-du-Prince-Édouard"}]
[31,"T1 2018","IMMEUBLES COLLECTIFS RÉSIDENTIELS","Nouvelle-Écosse",44.513469478383122,"Prêts hypothécaires assurés au cours de la période selon le type neuf/existant (%)","44.5","Nouvelle-Écosse",{"$f":"IFERROR(VLOOKUP(A3193,Translation!$A:$C,3,FALSE),A3193)","v":31},{"$f":"IFERROR(VLOOKUP(B3193,Translation!$A:$C,3,FALSE),B3193)","v":"T1 2018"},{"$f":"IFERROR(VLOOKUP(C3193,Translation!$A:$C,3,FALSE),C3193)","v":"IMMEUBLES COLLECTIFS RÉSIDENTIELS"},{"$f":"IFERROR(VLOOKUP(D3193,Translation!$A:$C,3,FALSE),D3193)","v":"Nouvelle-Écosse"},{"$f":"IFERROR(VLOOKUP(E3193,Translation!$A:$C,3,FALSE),E3193)","v":44.513469478383122},{"$f":"IFERROR(VLOOKUP(F3193,Translation!$A:$C,3,FALSE),F3193)","v":"Prêts hypothécaires assurés au cours de la période selon le type neuf/existant (%)"},{"$f":"IFERROR(VLOOKUP(G3193,Translation!$A:$C,3,FALSE),G3193)","v":"44.5"},{"$f":"IFERROR(VLOOKUP(H3193,Translation!$A:$C,3,FALSE),H3193)","v":"Nouvelle-Écosse"}]
[31,"Q3 2016","IMMEUBLES COLLECTIFS RÉSIDENTIELS","Nouvelle-Écosse",16.406273989852604,"Prêts hypothécaires assurés au cours de la période selon le type neuf/existant (%)","16.4","Nouvelle-Écosse",{"$f":"IFERROR(VLOOKUP(A3196,Translation!$A:$C,3,FALSE),A3196)","v":31},{"$f":"IFERROR(VLOOKUP(B3196,Translation!$A:$C,3,FALSE),B3196)","v":"Q3 2016"},{"$f":"IFERROR(VLOOKUP(C3196,Translation!$A:$C,3,FALSE),C3196)","v":"IMMEUBLES COLLECTIFS RÉSIDENTIELS"},{"$f":"IFERROR(VLOOKUP(D3196,Translation!$A:$C,3,FALSE),D3196)","v":"Nouvelle-Écosse"},{"$f":"IFERROR(VLOOKUP(E3196,Translation!$A:$C,3,FALSE),E3196)","v":16.406273989852604},{"$f":"IFERROR(VLOOKUP(F3196,Translation!$A:$C,3,FALSE),F3196)","v":"Prêts hypothécaires assurés au cours de la période selon le type neuf/existant (%)"},{"$f":"IFERROR(VLOOKUP(G3196,Translation!$A:$C,3,FALSE),G3196)","v":"16.4"},{"$f":"IFERROR(VLOOKUP(H3196,Translation!$A:$C,3,FALSE),H3196)","v":"Nouvelle-Écosse"}]
[31,"T4 2017","IMMEUBLES COLLECTIFS RÉSIDENTIELS","Nouvelle-Écosse",30.190617346299572,"Prêts hypothécaires assurés au cours de la période selon le type neuf/existant (%)","30.2","Nouvelle-Écosse",{"$f":"IFERROR(VLOOKUP(A3199,Translation!$A:$C,3,FALSE),A3199)","v":31},{"$f":"IFERROR(VLOOKUP(B3199,Translation!$A:$C,3,FALSE),B3199)","v":"T4 2017"},{"$f":"IFERROR(VLOOKUP(C3199,Translation!$A:$C,3,FALSE),C3199)","v":"IMMEUBLES COLLECTIFS RÉSIDENTIELS"},{"$f":"IFERROR(VLOOKUP(D3199,Translation!$A:$C,3,FALSE),D3199)","v":"Nouvelle-Écosse"},{"$f":"IFERROR(VLOOKUP(E3199,Translation!$A:$C,3,FALSE),E3199)","v":30.190617346299572},{"$f":"IFERROR(VLOOKUP(F3199,Translation!$A:$C,3,FALSE),F3199)","v":"Prêts hypothécaires assurés au cours de la période selon le type neuf/existant (%)"},{"$f":"IFERROR(VLOOKUP(G3199,Translation!$A:$C,3,FALSE),G3199)","v":"30.2"},{"$f":"IFERROR(VLOOKUP(H3199,Translation!$A:$C,3,FALSE),H3199)","v":"Nouvelle-Écosse"}]
[31,"T1 2018","IMMEUBLES COLLECTIFS RÉSIDENTIELS","Nouveau-Brunswick",97.584415915786877,"Prêts hypothécaires assurés au cours de la période selon le type neuf/existant (%)","97.6","Nouveau-Brunswick",{"$f":"IFERROR(VLOOKUP(A3201,Translation!$A:$C,3,FALSE),A3201)","v":31},{"$f":"IFERROR(VLOOKUP(B3201,Translation!$A:$C,3,FALSE),B3201)","v":"T1 2018"},{"$f":"IFERROR(VLOOKUP(C3201,Translation!$A:$C,3,FALSE),C3201)","v":"IMMEUBLES COLLECTIFS RÉSIDENTIELS"},{"$f":"IFERROR(VLOOKUP(D3201,Translation!$A:$C,3,FALSE),D3201)","v":"Nouveau-Brunswick"},{"$f":"IFERROR(VLOOKUP(E3201,Translation!$A:$C,3,FALSE),E3201)","v":97.584415915786877},{"$f":"IFERROR(VLOOKUP(F3201,Translation!$A:$C,3,FALSE),F3201)","v":"Prêts hypothécaires assurés au cours de la période selon le type neuf/existant (%)"},{"$f":"IFERROR(VLOOKUP(G3201,Translation!$A:$C,3,FALSE),G3201)","v":"97.6"},{"$f":"IFERROR(VLOOKUP(H3201,Translation!$A:$C,3,FALSE),H3201)","v":"Nouveau-Brunswick"}]
[31,"Q2 2016","IMMEUBLES COLLECTIFS RÉSIDENTIELS","Nouveau-Brunswick",76.2278102972911,"Prêts hypothécaires assurés au cours de la période selon le type neuf/existant (%)","76.2","Nouveau-Brunswick",{"$f":"IFERROR(VLOOKUP(A3202,Translation!$A:$C,3,FALSE),A3202)","v":31},{"$f":"IFERROR(VLOOKUP(B3202,Translation!$A:$C,3,FALSE),B3202)","v":"Q2 2016"},{"$f":"IFERROR(VLOOKUP(C3202,Translation!$A:$C,3,FALSE),C3202)","v":"IMMEUBLES COLLECTIFS RÉSIDENTIELS"},{"$f":"IFERROR(VLOOKUP(D3202,Translation!$A:$C,3,FALSE),D3202)","v":"Nouveau-Brunswick"},{"$f":"IFERROR(VLOOKUP(E3202,Translation!$A:$C,3,FALSE),E3202)","v":76.2278102972911},{"$f":"IFERROR(VLOOKUP(F3202,Translation!$A:$C,3,FALSE),F3202)","v":"Prêts hypothécaires assurés au cours de la période selon le type neuf/existant (%)"},{"$f":"IFERROR(VLOOKUP(G3202,Translation!$A:$C,3,FALSE),G3202)","v":"76.2"},{"$f":"IFERROR(VLOOKUP(H3202,Translation!$A:$C,3,FALSE),H3202)","v":"Nouveau-Brunswick"}]
[31,"Q4 2016","IMMEUBLES COLLECTIFS RÉSIDENTIELS","Nouveau-Brunswick",47.94825173776492,"Prêts hypothécaires assurés au cours de la période selon le type neuf/existant (%)","47.9","Nouveau-Brunswick",{"$f":"IFERROR(VLOOKUP(A3206,Translation!$A:$C,3,FALSE),A3206)","v":31},{"$f":"IFERROR(VLOOKUP(B3206,Translation!$A:$C,3,FALSE),B3206)","v":"Q4 2016"},{"$f":"IFERROR(VLOOKUP(C3206,Translation!$A:$C,3,FALSE),C3206)","v":"IMMEUBLES COLLECTIFS RÉSIDENTIELS"},{"$f":"IFERROR(VLOOKUP(D3206,Translation!$A:$C,3,FALSE),D3206)","v":"Nouveau-Brunswick"},{"$f":"IFERROR(VLOOKUP(E3206,Translation!$A:$C,3,FALSE),E3206)","v":47.94825173776492},{"$f":"IFERROR(VLOOKUP(F3206,Translation!$A:$C,3,FALSE),F3206)","v":"Prêts hypothécaires assurés au cours de la période selon le type neuf/existant (%)"},{"$f":"IFERROR(VLOOKUP(G3206,Translation!$A:$C,3,FALSE),G3206)","v":"47.9"},{"$f":"IFERROR(VLOOKUP(H3206,Translation!$A:$C,3,FALSE),H3206)","v":"Nouveau-Brunswick"}]
[31,"T4 2017","IMMEUBLES COLLECTIFS RÉSIDENTIELS","Nouveau-Brunswick",100,"Prêts hypothécaires assurés au cours de la période selon le type neuf/existant (%)","100.0","Nouveau-Brunswick",{"$f":"IFERROR(VLOOKUP(A3207,Translation!$A:$C,3,FALSE),A3207)","v":31},{"$f":"IFERROR(VLOOKUP(B3207,Translation!$A:$C,3,FALSE),B3207)","v":"T4 2017"},{"$f":"IFERROR(VLOOKUP(C3207,Translation!$A:$C,3,FALSE),C3207)","v":"IMMEUBLES COLLECTIFS RÉSIDENTIELS"},{"$f":"IFERROR(VLOOKUP(D3207,Translation!$A:$C,3,FALSE),D3207)","v":"Nouveau-Brunswick"},{"$f":"IFERROR(VLOOKUP(E3207,Translation!$A:$C,3,FALSE),E3207)","v":100},{"$f":"IFERROR(VLOOKUP(F3207,Translation!$A:$C,3,FALSE),F3207)","v":"Prêts hypothécaires assurés au cours de la période selon le type neuf/existant (%)"},{"$f":"IFERROR(VLOOKUP(G3207,Translation!$A:$C,3,FALSE),G3207)","v":"100.0"},{"$f":"IFERROR(VLOOKUP(H3207,Translation!$A:$C,3,FALSE),H3207)","v":"Nouveau-Brunswick"}]
[31,"Q2 2016","IMMEUBLES COLLECTIFS RÉSIDENTIELS","Québec",88.881890072324609,"Prêts hypothécaires assurés au cours de la période selon le type neuf/existant (%)","88.9","Québec",{"$f":"IFERROR(VLOOKUP(A3210,Translation!$A:$C,3,FALSE),A3210)","v":31},{"$f":"IFERROR(VLOOKUP(B3210,Translation!$A:$C,3,FALSE),B3210)","v":"Q2 2016"},{"$f":"IFERROR(VLOOKUP(C3210,Translation!$A:$C,3,FALSE),C3210)","v":"IMMEUBLES COLLECTIFS RÉSIDENTIELS"},{"$f":"IFERROR(VLOOKUP(D3210,Translation!$A:$C,3,FALSE),D3210)","v":"Québec"},{"$f":"IFERROR(VLOOKUP(E3210,Translation!$A:$C,3,FALSE),E3210)","v":88.881890072324609},{"$f":"IFERROR(VLOOKUP(F3210,Translation!$A:$C,3,FALSE),F3210)","v":"Prêts hypothécaires assurés au cours de la période selon le type neuf/existant (%)"},{"$f":"IFERROR(VLOOKUP(G3210,Translation!$A:$C,3,FALSE),G3210)","v":"88.9"},{"$f":"IFERROR(VLOOKUP(H3210,Translation!$A:$C,3,FALSE),H3210)","v":"Québec"}]
[31,"Q3 2016","IMMEUBLES COLLECTIFS RÉSIDENTIELS","Québec",84.317624304646586,"Prêts hypothécaires assurés au cours de la période selon le type neuf/existant (%)","84.3","Québec",{"$f":"IFERROR(VLOOKUP(A3212,Translation!$A:$C,3,FALSE),A3212)","v":31},{"$f":"IFERROR(VLOOKUP(B3212,Translation!$A:$C,3,FALSE),B3212)","v":"Q3 2016"},{"$f":"IFERROR(VLOOKUP(C3212,Translation!$A:$C,3,FALSE),C3212)","v":"IMMEUBLES COLLECTIFS RÉSIDENTIELS"},{"$f":"IFERROR(VLOOKUP(D3212,Translation!$A:$C,3,FALSE),D3212)","v":"Québec"},{"$f":"IFERROR(VLOOKUP(E3212,Translation!$A:$C,3,FALSE),E3212)","v":84.317624304646586},{"$f":"IFERROR(VLOOKUP(F3212,Translation!$A:$C,3,FALSE),F3212)","v":"Prêts hypothécaires assurés au cours de la période selon le type neuf/existant (%)"},{"$f":"IFERROR(VLOOKUP(G3212,Translation!$A:$C,3,FALSE),G3212)","v":"84.3"},{"$f":"IFERROR(VLOOKUP(H3212,Translation!$A:$C,3,FALSE),H3212)","v":"Québec"}]
[31,"T1 2017","IMMEUBLES COLLECTIFS RÉSIDENTIELS","Ontario",71.435780921833143,"Prêts hypothécaires assurés au cours de la période selon le type neuf/existant (%)","71.4","Ontario",{"$f":"IFERROR(VLOOKUP(A3216,Translation!$A:$C,3,FALSE),A3216)","v":31},{"$f":"IFERROR(VLOOKUP(B3216,Translation!$A:$C,3,FALSE),B3216)","v":"T1 2017"},{"$f":"IFERROR(VLOOKUP(C3216,Translation!$A:$C,3,FALSE),C3216)","v":"IMMEUBLES COLLECTIFS RÉSIDENTIELS"},{"$f":"IFERROR(VLOOKUP(D3216,Translation!$A:$C,3,FALSE),D3216)","v":"Ontario"},{"$f":"IFERROR(VLOOKUP(E3216,Translation!$A:$C,3,FALSE),E3216)","v":71.435780921833143},{"$f":"IFERROR(VLOOKUP(F3216,Translation!$A:$C,3,FALSE),F3216)","v":"Prêts hypothécaires assurés au cours de la période selon le type neuf/existant (%)"},{"$f":"IFERROR(VLOOKUP(G3216,Translation!$A:$C,3,FALSE),G3216)","v":"71.4"},{"$f":"IFERROR(VLOOKUP(H3216,Translation!$A:$C,3,FALSE),H3216)","v":"Ontario"}]
[31,"T1 2018","IMMEUBLES COLLECTIFS RÉSIDENTIELS","Ontario",79.594310624837888,"Prêts hypothécaires assurés au cours de la période selon le type neuf/existant (%)","79.6","Ontario",{"$f":"IFERROR(VLOOKUP(A3217,Translation!$A:$C,3,FALSE),A3217)","v":31},{"$f":"IFERROR(VLOOKUP(B3217,Translation!$A:$C,3,FALSE),B3217)","v":"T1 2018"},{"$f":"IFERROR(VLOOKUP(C3217,Translation!$A:$C,3,FALSE),C3217)","v":"IMMEUBLES COLLECTIFS RÉSIDENTIELS"},{"$f":"IFERROR(VLOOKUP(D3217,Translation!$A:$C,3,FALSE),D3217)","v":"Ontario"},{"$f":"IFERROR(VLOOKUP(E3217,Translation!$A:$C,3,FALSE),E3217)","v":79.594310624837888},{"$f":"IFERROR(VLOOKUP(F3217,Translation!$A:$C,3,FALSE),F3217)","v":"Prêts hypothécaires assurés au cours de la période selon le type neuf/existant (%)"},{"$f":"IFERROR(VLOOKUP(G3217,Translation!$A:$C,3,FALSE),G3217)","v":"79.6"},{"$f":"IFERROR(VLOOKUP(H3217,Translation!$A:$C,3,FALSE),H3217)","v":"Ontario"}]
[31,"Q3 2016","IMMEUBLES COLLECTIFS RÉSIDENTIELS","Ontario",99.524375249352644,"Prêts hypothécaires assurés au cours de la période selon le type neuf/existant (%)","99.5","Ontario",{"$f":"IFERROR(VLOOKUP(A3220,Translation!$A:$C,3,FALSE),A3220)","v":31},{"$f":"IFERROR(VLOOKUP(B3220,Translation!$A:$C,3,FALSE),B3220)","v":"Q3 2016"},{"$f":"IFERROR(VLOOKUP(C3220,Translation!$A:$C,3,FALSE),C3220)","v":"IMMEUBLES COLLECTIFS RÉSIDENTIELS"},{"$f":"IFERROR(VLOOKUP(D3220,Translation!$A:$C,3,FALSE),D3220)","v":"Ontario"},{"$f":"IFERROR(VLOOKUP(E3220,Translation!$A:$C,3,FALSE),E3220)","v":99.524375249352644},{"$f":"IFERROR(VLOOKUP(F3220,Translation!$A:$C,3,FALSE),F3220)","v":"Prêts hypothécaires assurés au cours de la période selon le type neuf/existant (%)"},{"$f":"IFERROR(VLOOKUP(G3220,Translation!$A:$C,3,FALSE),G3220)","v":"99.5"},{"$f":"IFERROR(VLOOKUP(H3220,Translation!$A:$C,3,FALSE),H3220)","v":"Ontario"}]
[31,"T3 2017","IMMEUBLES COLLECTIFS RÉSIDENTIELS","Ontario",97.116095565250745,"Prêts hypothécaires assurés au cours de la période selon le type neuf/existant (%)","97.1","Ontario",{"$f":"IFERROR(VLOOKUP(A3221,Translation!$A:$C,3,FALSE),A3221)","v":31},{"$f":"IFERROR(VLOOKUP(B3221,Translation!$A:$C,3,FALSE),B3221)","v":"T3 2017"},{"$f":"IFERROR(VLOOKUP(C3221,Translation!$A:$C,3,FALSE),C3221)","v":"IMMEUBLES COLLECTIFS RÉSIDENTIELS"},{"$f":"IFERROR(VLOOKUP(D3221,Translation!$A:$C,3,FALSE),D3221)","v":"Ontario"},{"$f":"IFERROR(VLOOKUP(E3221,Translation!$A:$C,3,FALSE),E3221)","v":97.116095565250745},{"$f":"IFERROR(VLOOKUP(F3221,Translation!$A:$C,3,FALSE),F3221)","v":"Prêts hypothécaires assurés au cours de la période selon le type neuf/existant (%)"},{"$f":"IFERROR(VLOOKUP(G3221,Translation!$A:$C,3,FALSE),G3221)","v":"97.1"},{"$f":"IFERROR(VLOOKUP(H3221,Translation!$A:$C,3,FALSE),H3221)","v":"Ontario"}]
[31,"T1 2018","IMMEUBLES COLLECTIFS RÉSIDENTIELS","Manitoba",56.037846058454313,"Prêts hypothécaires assurés au cours de la période selon le type neuf/existant (%)","56.0","Manitoba",{"$f":"IFERROR(VLOOKUP(A3225,Translation!$A:$C,3,FALSE),A3225)","v":31},{"$f":"IFERROR(VLOOKUP(B3225,Translation!$A:$C,3,FALSE),B3225)","v":"T1 2018"},{"$f":"IFERROR(VLOOKUP(C3225,Translation!$A:$C,3,FALSE),C3225)","v":"IMMEUBLES COLLECTIFS RÉSIDENTIELS"},{"$f":"IFERROR(VLOOKUP(D3225,Translation!$A:$C,3,FALSE),D3225)","v":"Manitoba"},{"$f":"IFERROR(VLOOKUP(E3225,Translation!$A:$C,3,FALSE),E3225)","v":56.037846058454313},{"$f":"IFERROR(VLOOKUP(F3225,Translation!$A:$C,3,FALSE),F3225)","v":"Prêts hypothécaires assurés au cours de la période selon le type neuf/existant (%)"},{"$f":"IFERROR(VLOOKUP(G3225,Translation!$A:$C,3,FALSE),G3225)","v":"56.0"},{"$f":"IFERROR(VLOOKUP(H3225,Translation!$A:$C,3,FALSE),H3225)","v":"Manitoba"}]
[31,"T2 2017","IMMEUBLES COLLECTIFS RÉSIDENTIELS","Manitoba",100,"Prêts hypothécaires assurés au cours de la période selon le type neuf/existant (%)","100.0","Manitoba",{"$f":"IFERROR(VLOOKUP(A3227,Translation!$A:$C,3,FALSE),A3227)","v":31},{"$f":"IFERROR(VLOOKUP(B3227,Translation!$A:$C,3,FALSE),B3227)","v":"T2 2017"},{"$f":"IFERROR(VLOOKUP(C3227,Translation!$A:$C,3,FALSE),C3227)","v":"IMMEUBLES COLLECTIFS RÉSIDENTIELS"},{"$f":"IFERROR(VLOOKUP(D3227,Translation!$A:$C,3,FALSE),D3227)","v":"Manitoba"},{"$f":"IFERROR(VLOOKUP(E3227,Translation!$A:$C,3,FALSE),E3227)","v":100},{"$f":"IFERROR(VLOOKUP(F3227,Translation!$A:$C,3,FALSE),F3227)","v":"Prêts hypothécaires assurés au cours de la période selon le type neuf/existant (%)"},{"$f":"IFERROR(VLOOKUP(G3227,Translation!$A:$C,3,FALSE),G3227)","v":"100.0"},{"$f":"IFERROR(VLOOKUP(H3227,Translation!$A:$C,3,FALSE),H3227)","v":"Manitoba"}]
[31,"Q4 2016","IMMEUBLES COLLECTIFS RÉSIDENTIELS","Manitoba",34.248986402995371,"Prêts hypothécaires assurés au cours de la période selon le type neuf/existant (%)","34.2","Manitoba",{"$f":"IFERROR(VLOOKUP(A3230,Translation!$A:$C,3,FALSE),A3230)","v":31},{"$f":"IFERROR(VLOOKUP(B3230,Translation!$A:$C,3,FALSE),B3230)","v":"Q4 2016"},{"$f":"IFERROR(VLOOKUP(C3230,Translation!$A:$C,3,FALSE),C3230)","v":"IMMEUBLES COLLECTIFS RÉSIDENTIELS"},{"$f":"IFERROR(VLOOKUP(D3230,Translation!$A:$C,3,FALSE),D3230)","v":"Manitoba"},{"$f":"IFERROR(VLOOKUP(E3230,Translation!$A:$C,3,FALSE),E3230)","v":34.248986402995371},{"$f":"IFERROR(VLOOKUP(F3230,Translation!$A:$C,3,FALSE),F3230)","v":"Prêts hypothécaires assurés au cours de la période selon le type neuf/existant (%)"},{"$f":"IFERROR(VLOOKUP(G3230,Translation!$A:$C,3,FALSE),G3230)","v":"34.2"},{"$f":"IFERROR(VLOOKUP(H3230,Translation!$A:$C,3,FALSE),H3230)","v":"Manitoba"}]
[31,"T4 2017","IMMEUBLES COLLECTIFS RÉSIDENTIELS","Manitoba",4.0299741364381969,"Prêts hypothécaires assurés au cours de la période selon le type neuf/existant (%)","4.0","Manitoba",{"$f":"IFERROR(VLOOKUP(A3231,Translation!$A:$C,3,FALSE),A3231)","v":31},{"$f":"IFERROR(VLOOKUP(B3231,Translation!$A:$C,3,FALSE),B3231)","v":"T4 2017"},{"$f":"IFERROR(VLOOKUP(C3231,Translation!$A:$C,3,FALSE),C3231)","v":"IMMEUBLES COLLECTIFS RÉSIDENTIELS"},{"$f":"IFERROR(VLOOKUP(D3231,Translation!$A:$C,3,FALSE),D3231)","v":"Manitoba"},{"$f":"IFERROR(VLOOKUP(E3231,Translation!$A:$C,3,FALSE),E3231)","v":4.0299741364381969},{"$f":"IFERROR(VLOOKUP(F3231,Translation!$A:$C,3,FALSE),F3231)","v":"Prêts hypothécaires assurés au cours de la période selon le type neuf/existant (%)"},{"$f":"IFERROR(VLOOKUP(G3231,Translation!$A:$C,3,FALSE),G3231)","v":"4.0"},{"$f":"IFERROR(VLOOKUP(H3231,Translation!$A:$C,3,FALSE),H3231)","v":"Manitoba"}]
[31,"T2 2017","IMMEUBLES COLLECTIFS RÉSIDENTIELS","Saskatchewan",100,"Prêts hypothécaires assurés au cours de la période selon le type neuf/existant (%)","100.0","Saskatchewan",{"$f":"IFERROR(VLOOKUP(A3235,Translation!$A:$C,3,FALSE),A3235)","v":31},{"$f":"IFERROR(VLOOKUP(B3235,Translation!$A:$C,3,FALSE),B3235)","v":"T2 2017"},{"$f":"IFERROR(VLOOKUP(C3235,Translation!$A:$C,3,FALSE),C3235)","v":"IMMEUBLES COLLECTIFS RÉSIDENTIELS"},{"$f":"IFERROR(VLOOKUP(D3235,Translation!$A:$C,3,FALSE),D3235)","v":"Saskatchewan"},{"$f":"IFERROR(VLOOKUP(E3235,Translation!$A:$C,3,FALSE),E3235)","v":100},{"$f":"IFERROR(VLOOKUP(F3235,Translation!$A:$C,3,FALSE),F3235)","v":"Prêts hypothécaires assurés au cours de la période selon le type neuf/existant (%)"},{"$f":"IFERROR(VLOOKUP(G3235,Translation!$A:$C,3,FALSE),G3235)","v":"100.0"},{"$f":"IFERROR(VLOOKUP(H3235,Translation!$A:$C,3,FALSE),H3235)","v":"Saskatchewan"}]
[31,"Q3 2016","IMMEUBLES COLLECTIFS RÉSIDENTIELS","Saskatchewan",100,"Prêts hypothécaires assurés au cours de la période selon le type neuf/existant (%)","100.0","Saskatchewan",{"$f":"IFERROR(VLOOKUP(A3236,Translation!$A:$C,3,FALSE),A3236)","v":31},{"$f":"IFERROR(VLOOKUP(B3236,Translation!$A:$C,3,FALSE),B3236)","v":"Q3 2016"},{"$f":"IFERROR(VLOOKUP(C3236,Translation!$A:$C,3,FALSE),C3236)","v":"IMMEUBLES COLLECTIFS RÉSIDENTIELS"},{"$f":"IFERROR(VLOOKUP(D3236,Translation!$A:$C,3,FALSE),D3236)","v":"Saskatchewan"},{"$f":"IFERROR(VLOOKUP(E3236,Translation!$A:$C,3,FALSE),E3236)","v":100},{"$f":"IFERROR(VLOOKUP(F3236,Translation!$A:$C,3,FALSE),F3236)","v":"Prêts hypothécaires assurés au cours de la période selon le type neuf/existant (%)"},{"$f":"IFERROR(VLOOKUP(G3236,Translation!$A:$C,3,FALSE),G3236)","v":"100.0"},{"$f":"IFERROR(VLOOKUP(H3236,Translation!$A:$C,3,FALSE),H3236)","v":"Saskatchewan"}]
[31,"Q4 2016","IMMEUBLES COLLECTIFS RÉSIDENTIELS","Saskatchewan",100,"Prêts hypothécaires assurés au cours de la période selon le type neuf/existant (%)","100.0","Saskatchewan",{"$f":"IFERROR(VLOOKUP(A3238,Translation!$A:$C,3,FALSE),A3238)","v":31},{"$f":"IFERROR(VLOOKUP(B3238,Translation!$A:$C,3,FALSE),B3238)","v":"Q4 2016"},{"$f":"IFERROR(VLOOKUP(C3238,Translation!$A:$C,3,FALSE),C3238)","v":"IMMEUBLES COLLECTIFS RÉSIDENTIELS"},{"$f":"IFERROR(VLOOKUP(D3238,Translation!$A:$C,3,FALSE),D3238)","v":"Saskatchewan"},{"$f":"IFERROR(VLOOKUP(E3238,Translation!$A:$C,3,FALSE),E3238)","v":100},{"$f":"IFERROR(VLOOKUP(F3238,Translation!$A:$C,3,FALSE),F3238)","v":"Prêts hypothécaires assurés au cours de la période selon le type neuf/existant (%)"},{"$f":"IFERROR(VLOOKUP(G3238,Translation!$A:$C,3,FALSE),G3238)","v":"100.0"},{"$f":"IFERROR(VLOOKUP(H3238,Translation!$A:$C,3,FALSE),H3238)","v":"Saskatchewan"}]
[31,"T1 2018","IMMEUBLES COLLECTIFS RÉSIDENTIELS","Alberta",83.086768283021087,"Prêts hypothécaires assurés au cours de la période selon le type neuf/existant (%)","83.1","Alberta",{"$f":"IFERROR(VLOOKUP(A3241,Translation!$A:$C,3,FALSE),A3241)","v":31},{"$f":"IFERROR(VLOOKUP(B3241,Translation!$A:$C,3,FALSE),B3241)","v":"T1 2018"},{"$f":"IFERROR(VLOOKUP(C3241,Translation!$A:$C,3,FALSE),C3241)","v":"IMMEUBLES COLLECTIFS RÉSIDENTIELS"},{"$f":"IFERROR(VLOOKUP(D3241,Translation!$A:$C,3,FALSE),D3241)","v":"Alberta"},{"$f":"IFERROR(VLOOKUP(E3241,Translation!$A:$C,3,FALSE),E3241)","v":83.086768283021087},{"$f":"IFERROR(VLOOKUP(F3241,Translation!$A:$C,3,FALSE),F3241)","v":"Prêts hypothécaires assurés au cours de la période selon le type neuf/existant (%)"},{"$f":"IFERROR(VLOOKUP(G3241,Translation!$A:$C,3,FALSE),G3241)","v":"83.1"},{"$f":"IFERROR(VLOOKUP(H3241,Translation!$A:$C,3,FALSE),H3241)","v":"Alberta"}]
[31,"Q3 2016","IMMEUBLES COLLECTIFS RÉSIDENTIELS","Alberta",88.380940233195801,"Prêts hypothécaires assurés au cours de la période selon le type neuf/existant (%)","88.4","Alberta",{"$f":"IFERROR(VLOOKUP(A3244,Translation!$A:$C,3,FALSE),A3244)","v":31},{"$f":"IFERROR(VLOOKUP(B3244,Translation!$A:$C,3,FALSE),B3244)","v":"Q3 2016"},{"$f":"IFERROR(VLOOKUP(C3244,Translation!$A:$C,3,FALSE),C3244)","v":"IMMEUBLES COLLECTIFS RÉSIDENTIELS"},{"$f":"IFERROR(VLOOKUP(D3244,Translation!$A:$C,3,FALSE),D3244)","v":"Alberta"},{"$f":"IFERROR(VLOOKUP(E3244,Translation!$A:$C,3,FALSE),E3244)","v":88.380940233195801},{"$f":"IFERROR(VLOOKUP(F3244,Translation!$A:$C,3,FALSE),F3244)","v":"Prêts hypothécaires assurés au cours de la période selon le type neuf/existant (%)"},{"$f":"IFERROR(VLOOKUP(G3244,Translation!$A:$C,3,FALSE),G3244)","v":"88.4"},{"$f":"IFERROR(VLOOKUP(H3244,Translation!$A:$C,3,FALSE),H3244)","v":"Alberta"}]
[31,"Q4 2016","IMMEUBLES COLLECTIFS RÉSIDENTIELS","Alberta",72.558076252975653,"Prêts hypothécaires assurés au cours de la période selon le type neuf/existant (%)","72.6","Alberta",{"$f":"IFERROR(VLOOKUP(A3246,Translation!$A:$C,3,FALSE),A3246)","v":31},{"$f":"IFERROR(VLOOKUP(B3246,Translation!$A:$C,3,FALSE),B3246)","v":"Q4 2016"},{"$f":"IFERROR(VLOOKUP(C3246,Translation!$A:$C,3,FALSE),C3246)","v":"IMMEUBLES COLLECTIFS RÉSIDENTIELS"},{"$f":"IFERROR(VLOOKUP(D3246,Translation!$A:$C,3,FALSE),D3246)","v":"Alberta"},{"$f":"IFERROR(VLOOKUP(E3246,Translation!$A:$C,3,FALSE),E3246)","v":72.558076252975653},{"$f":"IFERROR(VLOOKUP(F3246,Translation!$A:$C,3,FALSE),F3246)","v":"Prêts hypothécaires assurés au cours de la période selon le type neuf/existant (%)"},{"$f":"IFERROR(VLOOKUP(G3246,Translation!$A:$C,3,FALSE),G3246)","v":"72.6"},{"$f":"IFERROR(VLOOKUP(H3246,Translation!$A:$C,3,FALSE),H3246)","v":"Alberta"}]
[31,"T1 2018","IMMEUBLES COLLECTIFS RÉSIDENTIELS","Colombie-Britannique",47.764299149097354,"Prêts hypothécaires assurés au cours de la période selon le type neuf/existant (%)","47.8","Colombie-Britannique",{"$f":"IFERROR(VLOOKUP(A3249,Translation!$A:$C,3,FALSE),A3249)","v":31},{"$f":"IFERROR(VLOOKUP(B3249,Translation!$A:$C,3,FALSE),B3249)","v":"T1 2018"},{"$f":"IFERROR(VLOOKUP(C3249,Translation!$A:$C,3,FALSE),C3249)","v":"IMMEUBLES COLLECTIFS RÉSIDENTIELS"},{"$f":"IFERROR(VLOOKUP(D3249,Translation!$A:$C,3,FALSE),D3249)","v":"Colombie-Britannique"},{"$f":"IFERROR(VLOOKUP(E3249,Translation!$A:$C,3,FALSE),E3249)","v":47.764299149097354},{"$f":"IFERROR(VLOOKUP(F3249,Translation!$A:$C,3,FALSE),F3249)","v":"Prêts hypothécaires assurés au cours de la période selon le type neuf/existant (%)"},{"$f":"IFERROR(VLOOKUP(G3249,Translation!$A:$C,3,FALSE),G3249)","v":"47.8"},{"$f":"IFERROR(VLOOKUP(H3249,Translation!$A:$C,3,FALSE),H3249)","v":"Colombie-Britannique"}]
[31,"Q3 2016","IMMEUBLES COLLECTIFS RÉSIDENTIELS","Colombie-Britannique",81.806063748474244,"Prêts hypothécaires assurés au cours de la période selon le type neuf/existant (%)","81.8","Colombie-Britannique",{"$f":"IFERROR(VLOOKUP(A3252,Translation!$A:$C,3,FALSE),A3252)","v":31},{"$f":"IFERROR(VLOOKUP(B3252,Translation!$A:$C,3,FALSE),B3252)","v":"Q3 2016"},{"$f":"IFERROR(VLOOKUP(C3252,Translation!$A:$C,3,FALSE),C3252)","v":"IMMEUBLES COLLECTIFS RÉSIDENTIELS"},{"$f":"IFERROR(VLOOKUP(D3252,Translation!$A:$C,3,FALSE),D3252)","v":"Colombie-Britannique"},{"$f":"IFERROR(VLOOKUP(E3252,Translation!$A:$C,3,FALSE),E3252)","v":81.806063748474244},{"$f":"IFERROR(VLOOKUP(F3252,Translation!$A:$C,3,FALSE),F3252)","v":"Prêts hypothécaires assurés au cours de la période selon le type neuf/existant (%)"},{"$f":"IFERROR(VLOOKUP(G3252,Translation!$A:$C,3,FALSE),G3252)","v":"81.8"},{"$f":"IFERROR(VLOOKUP(H3252,Translation!$A:$C,3,FALSE),H3252)","v":"Colombie-Britannique"}]
[31,"Q4 2016","IMMEUBLES COLLECTIFS RÉSIDENTIELS","Colombie-Britannique",67.897378964065737,"Prêts hypothécaires assurés au cours de la période selon le type neuf/existant (%)","67.9","Colombie-Britannique",{"$f":"IFERROR(VLOOKUP(A3254,Translation!$A:$C,3,FALSE),A3254)","v":31},{"$f":"IFERROR(VLOOKUP(B3254,Translation!$A:$C,3,FALSE),B3254)","v":"Q4 2016"},{"$f":"IFERROR(VLOOKUP(C3254,Translation!$A:$C,3,FALSE),C3254)","v":"IMMEUBLES COLLECTIFS RÉSIDENTIELS"},{"$f":"IFERROR(VLOOKUP(D3254,Translation!$A:$C,3,FALSE),D3254)","v":"Colombie-Britannique"},{"$f":"IFERROR(VLOOKUP(E3254,Translation!$A:$C,3,FALSE),E3254)","v":67.897378964065737},{"$f":"IFERROR(VLOOKUP(F3254,Translation!$A:$C,3,FALSE),F3254)","v":"Prêts hypothécaires assurés au cours de la période selon le type neuf/existant (%)"},{"$f":"IFERROR(VLOOKUP(G3254,Translation!$A:$C,3,FALSE),G3254)","v":"67.9"},{"$f":"IFERROR(VLOOKUP(H3254,Translation!$A:$C,3,FALSE),H3254)","v":"Colombie-Britannique"}]
[31,"T4 2017","IMMEUBLES COLLECTIFS RÉSIDENTIELS","Colombie-Britannique",62.005356382698523,"Prêts hypothécaires assurés au cours de la période selon le type neuf/existant (%)","62.0","Colombie-Britannique",{"$f":"IFERROR(VLOOKUP(A3255,Translation!$A:$C,3,FALSE),A3255)","v":31},{"$f":"IFERROR(VLOOKUP(B3255,Translation!$A:$C,3,FALSE),B3255)","v":"T4 2017"},{"$f":"IFERROR(VLOOKUP(C3255,Translation!$A:$C,3,FALSE),C3255)","v":"IMMEUBLES COLLECTIFS RÉSIDENTIELS"},{"$f":"IFERROR(VLOOKUP(D3255,Translation!$A:$C,3,FALSE),D3255)","v":"Colombie-Britannique"},{"$f":"IFERROR(VLOOKUP(E3255,Translation!$A:$C,3,FALSE),E3255)","v":62.005356382698523},{"$f":"IFERROR(VLOOKUP(F3255,Translation!$A:$C,3,FALSE),F3255)","v":"Prêts hypothécaires assurés au cours de la période selon le type neuf/existant (%)"},{"$f":"IFERROR(VLOOKUP(G3255,Translation!$A:$C,3,FALSE),G3255)","v":"62.0"},{"$f":"IFERROR(VLOOKUP(H3255,Translation!$A:$C,3,FALSE),H3255)","v":"Colombie-Britannique"}]
[31,"Q2 2016","IMMEUBLES COLLECTIFS RÉSIDENTIELS","Territoires",100,"Prêts hypothécaires assurés au cours de la période selon le type neuf/existant (%)","100.0","Territoires",{"$f":"IFERROR(VLOOKUP(A3257,Translation!$A:$C,3,FALSE),A3257)","v":31},{"$f":"IFERROR(VLOOKUP(B3257,Translation!$A:$C,3,FALSE),B3257)","v":"Q2 2016"},{"$f":"IFERROR(VLOOKUP(C3257,Translation!$A:$C,3,FALSE),C3257)","v":"IMMEUBLES COLLECTIFS RÉSIDENTIELS"},{"$f":"IFERROR(VLOOKUP(D3257,Translation!$A:$C,3,FALSE),D3257)","v":"Territoires"},{"$f":"IFERROR(VLOOKUP(E3257,Translation!$A:$C,3,FALSE),E3257)","v":100},{"$f":"IFERROR(VLOOKUP(F3257,Translation!$A:$C,3,FALSE),F3257)","v":"Prêts hypothécaires assurés au cours de la période selon le type neuf/existant (%)"},{"$f":"IFERROR(VLOOKUP(G3257,Translation!$A:$C,3,FALSE),G3257)","v":"100.0"},{"$f":"IFERROR(VLOOKUP(H3257,Translation!$A:$C,3,FALSE),H3257)","v":"Territoires"}]
[31,"T3 2017","IMMEUBLES COLLECTIFS RÉSIDENTIELS","Territoires",100,"Prêts hypothécaires assurés au cours de la période selon le type neuf/existant (%)","100.0","Territoires",{"$f":"IFERROR(VLOOKUP(A3260,Translation!$A:$C,3,FALSE),A3260)","v":31},{"$f":"IFERROR(VLOOKUP(B3260,Translation!$A:$C,3,FALSE),B3260)","v":"T3 2017"},{"$f":"IFERROR(VLOOKUP(C3260,Translation!$A:$C,3,FALSE),C3260)","v":"IMMEUBLES COLLECTIFS RÉSIDENTIELS"},{"$f":"IFERROR(VLOOKUP(D3260,Translation!$A:$C,3,FALSE),D3260)","v":"Territoires"},{"$f":"IFERROR(VLOOKUP(E3260,Translation!$A:$C,3,FALSE),E3260)","v":100},{"$f":"IFERROR(VLOOKUP(F3260,Translation!$A:$C,3,FALSE),F3260)","v":"Prêts hypothécaires assurés au cours de la période selon le type neuf/existant (%)"},{"$f":"IFERROR(VLOOKUP(G3260,Translation!$A:$C,3,FALSE),G3260)","v":"100.0"},{"$f":"IFERROR(VLOOKUP(H3260,Translation!$A:$C,3,FALSE),H3260)","v":"Territoires"}]
[31,"T4 2017","IMMEUBLES COLLECTIFS RÉSIDENTIELS","Territoires",100,"Prêts hypothécaires assurés au cours de la période selon le type neuf/existant (%)","100.0","Territoires",{"$f":"IFERROR(VLOOKUP(A3262,Translation!$A:$C,3,FALSE),A3262)","v":31},{"$f":"IFERROR(VLOOKUP(B3262,Translation!$A:$C,3,FALSE),B3262)","v":"T4 2017"},{"$f":"IFERROR(VLOOKUP(C3262,Translation!$A:$C,3,FALSE),C3262)","v":"IMMEUBLES COLLECTIFS RÉSIDENTIELS"},{"$f":"IFERROR(VLOOKUP(D3262,Translation!$A:$C,3,FALSE),D3262)","v":"Territoires"},{"$f":"IFERROR(VLOOKUP(E3262,Translation!$A:$C,3,FALSE),E3262)","v":100},{"$f":"IFERROR(VLOOKUP(F3262,Translation!$A:$C,3,FALSE),F3262)","v":"Prêts hypothécaires assurés au cours de la période selon le type neuf/existant (%)"},{"$f":"IFERROR(VLOOKUP(G3262,Translation!$A:$C,3,FALSE),G3262)","v":"100.0"},{"$f":"IFERROR(VLOOKUP(H3262,Translation!$A:$C,3,FALSE),H3262)","v":"Territoires"}]
[22,"Cumul 2020","PROPRIÉTAIRES-OCCUPANTS, À L’UNITÉ","<= 30 %",56.685670001181293,"Prêts hypothécaires assurés au cours de la période selon le rapport d’amortissement brut de la dette (ABD) moyen des emprunteurs détenant un prêt assuré par la SCHL (%)","56.7"," <= 30 %",{"$f":"IFERROR(VLOOKUP(A3265,Translation!$A:$C,3,FALSE),A3265)","v":22},{"$f":"IFERROR(VLOOKUP(B3265,Translation!$A:$C,3,FALSE),B3265)","v":"Cumul 2020"},{"$f":"IFERROR(VLOOKUP(C3265,Translation!$A:$C,3,FALSE),C3265)","v":"PROPRIÉTAIRES-OCCUPANTS, À L’UNITÉ"},{"$f":"IFERROR(VLOOKUP(D3265,Translation!$A:$C,3,FALSE),D3265)","v":"<= 30 %"},{"$f":"IFERROR(VLOOKUP(E3265,Translation!$A:$C,3,FALSE),E3265)","v":56.685670001181293},{"$f":"IFERROR(VLOOKUP(F3265,Translation!$A:$C,3,FALSE),F3265)","v":"Prêts hypothécaires assurés au cours de la période selon le rapport d’amortissement brut de la dette (ABD) moyen des emprunteurs détenant un prêt assuré par la SCHL (%)"},{"$f":"IFERROR(VLOOKUP(G3265,Translation!$A:$C,3,FALSE),G3265)","v":"56.7"},{"$f":"IFERROR(VLOOKUP(H3265,Translation!$A:$C,3,FALSE),H3265)","v":" <= 30 %"}]
[22,"Cumul 2020","PROPRIÉTAIRES-OCCUPANTS, À L’UNITÉ","> 30 % <= 35 %",23.764345964190905,"Prêts hypothécaires assurés au cours de la période selon le rapport d’amortissement brut de la dette (ABD) moyen des emprunteurs détenant un prêt assuré par la SCHL (%)","23.8"," > 30 % <= 35 %",{"$f":"IFERROR(VLOOKUP(A3268,Translation!$A:$C,3,FALSE),A3268)","v":22},{"$f":"IFERROR(VLOOKUP(B3268,Translation!$A:$C,3,FALSE),B3268)","v":"Cumul 2020"},{"$f":"IFERROR(VLOOKUP(C3268,Translation!$A:$C,3,FALSE),C3268)","v":"PROPRIÉTAIRES-OCCUPANTS, À L’UNITÉ"},{"$f":"IFERROR(VLOOKUP(D3268,Translation!$A:$C,3,FALSE),D3268)","v":"> 30 % <= 35 %"},{"$f":"IFERROR(VLOOKUP(E3268,Translation!$A:$C,3,FALSE),E3268)","v":23.764345964190905},{"$f":"IFERROR(VLOOKUP(F3268,Translation!$A:$C,3,FALSE),F3268)","v":"Prêts hypothécaires assurés au cours de la période selon le rapport d’amortissement brut de la dette (ABD) moyen des emprunteurs détenant un prêt assuré par la SCHL (%)"},{"$f":"IFERROR(VLOOKUP(G3268,Translation!$A:$C,3,FALSE),G3268)","v":"23.8"},{"$f":"IFERROR(VLOOKUP(H3268,Translation!$A:$C,3,FALSE),H3268)","v":" > 30 % <= 35 %"}]
[22,"Cumul 2020","PROPRIÉTAIRES-OCCUPANTS, À L’UNITÉ","> 35 % <= 39 %",19.549984034627798,"Prêts hypothécaires assurés au cours de la période selon le rapport d’amortissement brut de la dette (ABD) moyen des emprunteurs détenant un prêt assuré par la SCHL (%)","19.5"," > 35 % <= 39 %",{"$f":"IFERROR(VLOOKUP(A3271,Translation!$A:$C,3,FALSE),A3271)","v":22},{"$f":"IFERROR(VLOOKUP(B3271,Translation!$A:$C,3,FALSE),B3271)","v":"Cumul 2020"},{"$f":"IFERROR(VLOOKUP(C3271,Translation!$A:$C,3,FALSE),C3271)","v":"PROPRIÉTAIRES-OCCUPANTS, À L’UNITÉ"},{"$f":"IFERROR(VLOOKUP(D3271,Translation!$A:$C,3,FALSE),D3271)","v":"> 35 % <= 39 %"},{"$f":"IFERROR(VLOOKUP(E3271,Translation!$A:$C,3,FALSE),E3271)","v":19.549984034627798},{"$f":"IFERROR(VLOOKUP(F3271,Translation!$A:$C,3,FALSE),F3271)","v":"Prêts hypothécaires assurés au cours de la période selon le rapport d’amortissement brut de la dette (ABD) moyen des emprunteurs détenant un prêt assuré par la SCHL (%)"},{"$f":"IFERROR(VLOOKUP(G3271,Translation!$A:$C,3,FALSE),G3271)","v":"19.5"},{"$f":"IFERROR(VLOOKUP(H3271,Translation!$A:$C,3,FALSE),H3271)","v":" > 35 % <= 39 %"}]
[22,"Cumul 2019","PROPRIÉTAIRES-OCCUPANTS, À L’UNITÉ","Rapport d'amortissement brut de la dette (ABD) moyen",27.666137550899201,"Prêts hypothécaires assurés au cours de la période selon le rapport d’amortissement brut de la dette (ABD) moyen des emprunteurs détenant un prêt assuré par la SCHL (%)","27.7","Rapport d'amortissement brut de la dette (ABD) moyen",{"$f":"IFERROR(VLOOKUP(A3273,Translation!$A:$C,3,FALSE),A3273)","v":22},{"$f":"IFERROR(VLOOKUP(B3273,Translation!$A:$C,3,FALSE),B3273)","v":"Cumul 2019"},{"$f":"IFERROR(VLOOKUP(C3273,Translation!$A:$C,3,FALSE),C3273)","v":"PROPRIÉTAIRES-OCCUPANTS, À L’UNITÉ"},{"$f":"IFERROR(VLOOKUP(D3273,Translation!$A:$C,3,FALSE),D3273)","v":"Rapport d'amortissement brut de la dette (ABD) moyen"},{"$f":"IFERROR(VLOOKUP(E3273,Translation!$A:$C,3,FALSE),E3273)","v":27.666137550899201},{"$f":"IFERROR(VLOOKUP(F3273,Translation!$A:$C,3,FALSE),F3273)","v":"Prêts hypothécaires assurés au cours de la période selon le rapport d’amortissement brut de la dette (ABD) moyen des emprunteurs détenant un prêt assuré par la SCHL (%)"},{"$f":"IFERROR(VLOOKUP(G3273,Translation!$A:$C,3,FALSE),G3273)","v":"27.7"},{"$f":"IFERROR(VLOOKUP(H3273,Translation!$A:$C,3,FALSE),H3273)","v":"Rapport d'amortissement brut de la dette (ABD) moyen"}]
[22,"T1 2020","PROPRIÉTAIRES-OCCUPANTS, À L’UNITÉ","Île-du-Prince-Édouard",24.984996638840599,"Prêts hypothécaires assurés au cours de la période selon le rapport d’amortissement brut de la dette (ABD) moyen des emprunteurs détenant un prêt assuré par la SCHL (%)","25.0","Île-du-Prince-Édouard",{"$f":"IFERROR(VLOOKUP(A3276,Translation!$A:$C,3,FALSE),A3276)","v":22},{"$f":"IFERROR(VLOOKUP(B3276,Translation!$A:$C,3,FALSE),B3276)","v":"T1 2020"},{"$f":"IFERROR(VLOOKUP(C3276,Translation!$A:$C,3,FALSE),C3276)","v":"PROPRIÉTAIRES-OCCUPANTS, À L’UNITÉ"},{"$f":"IFERROR(VLOOKUP(D3276,Translation!$A:$C,3,FALSE),D3276)","v":"Île-du-Prince-Édouard"},{"$f":"IFERROR(VLOOKUP(E3276,Translation!$A:$C,3,FALSE),E3276)","v":24.984996638840599},{"$f":"IFERROR(VLOOKUP(F3276,Translation!$A:$C,3,FALSE),F3276)","v":"Prêts hypothécaires assurés au cours de la période selon le rapport d’amortissement brut de la dette (ABD) moyen des emprunteurs détenant un prêt assuré par la SCHL (%)"},{"$f":"IFERROR(VLOOKUP(G3276,Translation!$A:$C,3,FALSE),G3276)","v":"25.0"},{"$f":"IFERROR(VLOOKUP(H3276,Translation!$A:$C,3,FALSE),H3276)","v":"Île-du-Prince-Édouard"}]
[22,"T1 2020","PROPRIÉTAIRES-OCCUPANTS, À L’UNITÉ","Nouveau-Brunswick",21.258173585036253,"Prêts hypothécaires assurés au cours de la période selon le rapport d’amortissement brut de la dette (ABD) moyen des emprunteurs détenant un prêt assuré par la SCHL (%)","21.3","Nouveau-Brunswick",{"$f":"IFERROR(VLOOKUP(A3278,Translation!$A:$C,3,FALSE),A3278)","v":22},{"$f":"IFERROR(VLOOKUP(B3278,Translation!$A:$C,3,FALSE),B3278)","v":"T1 2020"},{"$f":"IFERROR(VLOOKUP(C3278,Translation!$A:$C,3,FALSE),C3278)","v":"PROPRIÉTAIRES-OCCUPANTS, À L’UNITÉ"},{"$f":"IFERROR(VLOOKUP(D3278,Translation!$A:$C,3,FALSE),D3278)","v":"Nouveau-Brunswick"},{"$f":"IFERROR(VLOOKUP(E3278,Translation!$A:$C,3,FALSE),E3278)","v":21.258173585036253},{"$f":"IFERROR(VLOOKUP(F3278,Translation!$A:$C,3,FALSE),F3278)","v":"Prêts hypothécaires assurés au cours de la période selon le rapport d’amortissement brut de la dette (ABD) moyen des emprunteurs détenant un prêt assuré par la SCHL (%)"},{"$f":"IFERROR(VLOOKUP(G3278,Translation!$A:$C,3,FALSE),G3278)","v":"21.3"},{"$f":"IFERROR(VLOOKUP(H3278,Translation!$A:$C,3,FALSE),H3278)","v":"Nouveau-Brunswick"}]
[22,"T1 2020","PROPRIÉTAIRES-OCCUPANTS, À L’UNITÉ","Québec",25.935427116406245,"Prêts hypothécaires assurés au cours de la période selon le rapport d’amortissement brut de la dette (ABD) moyen des emprunteurs détenant un prêt assuré par la SCHL (%)","25.9","Québec",{"$f":"IFERROR(VLOOKUP(A3279,Translation!$A:$C,3,FALSE),A3279)","v":22},{"$f":"IFERROR(VLOOKUP(B3279,Translation!$A:$C,3,FALSE),B3279)","v":"T1 2020"},{"$f":"IFERROR(VLOOKUP(C3279,Translation!$A:$C,3,FALSE),C3279)","v":"PROPRIÉTAIRES-OCCUPANTS, À L’UNITÉ"},{"$f":"IFERROR(VLOOKUP(D3279,Translation!$A:$C,3,FALSE),D3279)","v":"Québec"},{"$f":"IFERROR(VLOOKUP(E3279,Translation!$A:$C,3,FALSE),E3279)","v":25.935427116406245},{"$f":"IFERROR(VLOOKUP(F3279,Translation!$A:$C,3,FALSE),F3279)","v":"Prêts hypothécaires assurés au cours de la période selon le rapport d’amortissement brut de la dette (ABD) moyen des emprunteurs détenant un prêt assuré par la SCHL (%)"},{"$f":"IFERROR(VLOOKUP(G3279,Translation!$A:$C,3,FALSE),G3279)","v":"25.9"},{"$f":"IFERROR(VLOOKUP(H3279,Translation!$A:$C,3,FALSE),H3279)","v":"Québec"}]
[22,"T1 2020","PROPRIÉTAIRES-OCCUPANTS, À L’UNITÉ","Manitoba",27.468572329986305,"Prêts hypothécaires assurés au cours de la période selon le rapport d’amortissement brut de la dette (ABD) moyen des emprunteurs détenant un prêt assuré par la SCHL (%)","27.5","Manitoba",{"$f":"IFERROR(VLOOKUP(A3281,Translation!$A:$C,3,FALSE),A3281)","v":22},{"$f":"IFERROR(VLOOKUP(B3281,Translation!$A:$C,3,FALSE),B3281)","v":"T1 2020"},{"$f":"IFERROR(VLOOKUP(C3281,Translation!$A:$C,3,FALSE),C3281)","v":"PROPRIÉTAIRES-OCCUPANTS, À L’UNITÉ"},{"$f":"IFERROR(VLOOKUP(D3281,Translation!$A:$C,3,FALSE),D3281)","v":"Manitoba"},{"$f":"IFERROR(VLOOKUP(E3281,Translation!$A:$C,3,FALSE),E3281)","v":27.468572329986305},{"$f":"IFERROR(VLOOKUP(F3281,Translation!$A:$C,3,FALSE),F3281)","v":"Prêts hypothécaires assurés au cours de la période selon le rapport d’amortissement brut de la dette (ABD) moyen des emprunteurs détenant un prêt assuré par la SCHL (%)"},{"$f":"IFERROR(VLOOKUP(G3281,Translation!$A:$C,3,FALSE),G3281)","v":"27.5"},{"$f":"IFERROR(VLOOKUP(H3281,Translation!$A:$C,3,FALSE),H3281)","v":"Manitoba"}]
[22,"T1 2020","PROPRIÉTAIRES-OCCUPANTS, À L’UNITÉ","Colombie-Britannique",30.088784728921759,"Prêts hypothécaires assurés au cours de la période selon le rapport d’amortissement brut de la dette (ABD) moyen des emprunteurs détenant un prêt assuré par la SCHL (%)","30.1","Colombie-Britannique",{"$f":"IFERROR(VLOOKUP(A3284,Translation!$A:$C,3,FALSE),A3284)","v":22},{"$f":"IFERROR(VLOOKUP(B3284,Translation!$A:$C,3,FALSE),B3284)","v":"T1 2020"},{"$f":"IFERROR(VLOOKUP(C3284,Translation!$A:$C,3,FALSE),C3284)","v":"PROPRIÉTAIRES-OCCUPANTS, À L’UNITÉ"},{"$f":"IFERROR(VLOOKUP(D3284,Translation!$A:$C,3,FALSE),D3284)","v":"Colombie-Britannique"},{"$f":"IFERROR(VLOOKUP(E3284,Translation!$A:$C,3,FALSE),E3284)","v":30.088784728921759},{"$f":"IFERROR(VLOOKUP(F3284,Translation!$A:$C,3,FALSE),F3284)","v":"Prêts hypothécaires assurés au cours de la période selon le rapport d’amortissement brut de la dette (ABD) moyen des emprunteurs détenant un prêt assuré par la SCHL (%)"},{"$f":"IFERROR(VLOOKUP(G3284,Translation!$A:$C,3,FALSE),G3284)","v":"30.1"},{"$f":"IFERROR(VLOOKUP(H3284,Translation!$A:$C,3,FALSE),H3284)","v":"Colombie-Britannique"}]
[22,"Cumul 2019","PROPRIÉTAIRES-OCCUPANTS, À L’UNITÉ","Île-du-Prince-Édouard",23.498614077717441,"Prêts hypothécaires assurés au cours de la période selon le rapport d’amortissement brut de la dette (ABD) moyen des emprunteurs détenant un prêt assuré par la SCHL (%)","23.5","Île-du-Prince-Édouard",{"$f":"IFERROR(VLOOKUP(A3287,Translation!$A:$C,3,FALSE),A3287)","v":22},{"$f":"IFERROR(VLOOKUP(B3287,Translation!$A:$C,3,FALSE),B3287)","v":"Cumul 2019"},{"$f":"IFERROR(VLOOKUP(C3287,Translation!$A:$C,3,FALSE),C3287)","v":"PROPRIÉTAIRES-OCCUPANTS, À L’UNITÉ"},{"$f":"IFERROR(VLOOKUP(D3287,Translation!$A:$C,3,FALSE),D3287)","v":"Île-du-Prince-Édouard"},{"$f":"IFERROR(VLOOKUP(E3287,Translation!$A:$C,3,FALSE),E3287)","v":23.498614077717441},{"$f":"IFERROR(VLOOKUP(F3287,Translation!$A:$C,3,FALSE),F3287)","v":"Prêts hypothécaires assurés au cours de la période selon le rapport d’amortissement brut de la dette (ABD) moyen des emprunteurs détenant un prêt assuré par la SCHL (%)"},{"$f":"IFERROR(VLOOKUP(G3287,Translation!$A:$C,3,FALSE),G3287)","v":"23.5"},{"$f":"IFERROR(VLOOKUP(H3287,Translation!$A:$C,3,FALSE),H3287)","v":"Île-du-Prince-Édouard"}]
[22,"Cumul 2019","PROPRIÉTAIRES-OCCUPANTS, À L’UNITÉ","Québec",25.79772503832746,"Prêts hypothécaires assurés au cours de la période selon le rapport d’amortissement brut de la dette (ABD) moyen des emprunteurs détenant un prêt assuré par la SCHL (%)","25.8","Québec",{"$f":"IFERROR(VLOOKUP(A3290,Translation!$A:$C,3,FALSE),A3290)","v":22},{"$f":"IFERROR(VLOOKUP(B3290,Translation!$A:$C,3,FALSE),B3290)","v":"Cumul 2019"},{"$f":"IFERROR(VLOOKUP(C3290,Translation!$A:$C,3,FALSE),C3290)","v":"PROPRIÉTAIRES-OCCUPANTS, À L’UNITÉ"},{"$f":"IFERROR(VLOOKUP(D3290,Translation!$A:$C,3,FALSE),D3290)","v":"Québec"},{"$f":"IFERROR(VLOOKUP(E3290,Translation!$A:$C,3,FALSE),E3290)","v":25.79772503832746},{"$f":"IFERROR(VLOOKUP(F3290,Translation!$A:$C,3,FALSE),F3290)","v":"Prêts hypothécaires assurés au cours de la période selon le rapport d’amortissement brut de la dette (ABD) moyen des emprunteurs détenant un prêt assuré par la SCHL (%)"},{"$f":"IFERROR(VLOOKUP(G3290,Translation!$A:$C,3,FALSE),G3290)","v":"25.8"},{"$f":"IFERROR(VLOOKUP(H3290,Translation!$A:$C,3,FALSE),H3290)","v":"Québec"}]
[22,"Cumul 2019","PROPRIÉTAIRES-OCCUPANTS, À L’UNITÉ","Manitoba",27.482824044558043,"Prêts hypothécaires assurés au cours de la période selon le rapport d’amortissement brut de la dette (ABD) moyen des emprunteurs détenant un prêt assuré par la SCHL (%)","27.5","Manitoba",{"$f":"IFERROR(VLOOKUP(A3292,Translation!$A:$C,3,FALSE),A3292)","v":22},{"$f":"IFERROR(VLOOKUP(B3292,Translation!$A:$C,3,FALSE),B3292)","v":"Cumul 2019"},{"$f":"IFERROR(VLOOKUP(C3292,Translation!$A:$C,3,FALSE),C3292)","v":"PROPRIÉTAIRES-OCCUPANTS, À L’UNITÉ"},{"$f":"IFERROR(VLOOKUP(D3292,Translation!$A:$C,3,FALSE),D3292)","v":"Manitoba"},{"$f":"IFERROR(VLOOKUP(E3292,Translation!$A:$C,3,FALSE),E3292)","v":27.482824044558043},{"$f":"IFERROR(VLOOKUP(F3292,Translation!$A:$C,3,FALSE),F3292)","v":"Prêts hypothécaires assurés au cours de la période selon le rapport d’amortissement brut de la dette (ABD) moyen des emprunteurs détenant un prêt assuré par la SCHL (%)"},{"$f":"IFERROR(VLOOKUP(G3292,Translation!$A:$C,3,FALSE),G3292)","v":"27.5"},{"$f":"IFERROR(VLOOKUP(H3292,Translation!$A:$C,3,FALSE),H3292)","v":"Manitoba"}]
[22,"Cumul 2019","PROPRIÉTAIRES-OCCUPANTS, À L’UNITÉ","Colombie-Britannique",29.68043145729504,"Prêts hypothécaires assurés au cours de la période selon le rapport d’amortissement brut de la dette (ABD) moyen des emprunteurs détenant un prêt assuré par la SCHL (%)","29.7","Colombie-Britannique",{"$f":"IFERROR(VLOOKUP(A3295,Translation!$A:$C,3,FALSE),A3295)","v":22},{"$f":"IFERROR(VLOOKUP(B3295,Translation!$A:$C,3,FALSE),B3295)","v":"Cumul 2019"},{"$f":"IFERROR(VLOOKUP(C3295,Translation!$A:$C,3,FALSE),C3295)","v":"PROPRIÉTAIRES-OCCUPANTS, À L’UNITÉ"},{"$f":"IFERROR(VLOOKUP(D3295,Translation!$A:$C,3,FALSE),D3295)","v":"Colombie-Britannique"},{"$f":"IFERROR(VLOOKUP(E3295,Translation!$A:$C,3,FALSE),E3295)","v":29.68043145729504},{"$f":"IFERROR(VLOOKUP(F3295,Translation!$A:$C,3,FALSE),F3295)","v":"Prêts hypothécaires assurés au cours de la période selon le rapport d’amortissement brut de la dette (ABD) moyen des emprunteurs détenant un prêt assuré par la SCHL (%)"},{"$f":"IFERROR(VLOOKUP(G3295,Translation!$A:$C,3,FALSE),G3295)","v":"29.7"},{"$f":"IFERROR(VLOOKUP(H3295,Translation!$A:$C,3,FALSE),H3295)","v":"Colombie-Britannique"}]
[22,"Cumul 2020","PROPRIÉTAIRES-OCCUPANTS, À L’UNITÉ","Terre-Neuve-et-Labrador",21.862060406235177,"Prêts hypothécaires assurés au cours de la période selon le rapport d’amortissement brut de la dette (ABD) moyen des emprunteurs détenant un prêt assuré par la SCHL (%)","21.9","Terre-Neuve-et-Labrador",{"$f":"IFERROR(VLOOKUP(A3297,Translation!$A:$C,3,FALSE),A3297)","v":22},{"$f":"IFERROR(VLOOKUP(B3297,Translation!$A:$C,3,FALSE),B3297)","v":"Cumul 2020"},{"$f":"IFERROR(VLOOKUP(C3297,Translation!$A:$C,3,FALSE),C3297)","v":"PROPRIÉTAIRES-OCCUPANTS, À L’UNITÉ"},{"$f":"IFERROR(VLOOKUP(D3297,Translation!$A:$C,3,FALSE),D3297)","v":"Terre-Neuve-et-Labrador"},{"$f":"IFERROR(VLOOKUP(E3297,Translation!$A:$C,3,FALSE),E3297)","v":21.862060406235177},{"$f":"IFERROR(VLOOKUP(F3297,Translation!$A:$C,3,FALSE),F3297)","v":"Prêts hypothécaires assurés au cours de la période selon le rapport d’amortissement brut de la dette (ABD) moyen des emprunteurs détenant un prêt assuré par la SCHL (%)"},{"$f":"IFERROR(VLOOKUP(G3297,Translation!$A:$C,3,FALSE),G3297)","v":"21.9"},{"$f":"IFERROR(VLOOKUP(H3297,Translation!$A:$C,3,FALSE),H3297)","v":"Terre-Neuve-et-Labrador"}]
[22,"Cumul 2020","PROPRIÉTAIRES-OCCUPANTS, À L’UNITÉ","Île-du-Prince-Édouard",24.984996638840599,"Prêts hypothécaires assurés au cours de la période selon le rapport d’amortissement brut de la dette (ABD) moyen des emprunteurs détenant un prêt assuré par la SCHL (%)","25.0","Île-du-Prince-Édouard",{"$f":"IFERROR(VLOOKUP(A3298,Translation!$A:$C,3,FALSE),A3298)","v":22},{"$f":"IFERROR(VLOOKUP(B3298,Translation!$A:$C,3,FALSE),B3298)","v":"Cumul 2020"},{"$f":"IFERROR(VLOOKUP(C3298,Translation!$A:$C,3,FALSE),C3298)","v":"PROPRIÉTAIRES-OCCUPANTS, À L’UNITÉ"},{"$f":"IFERROR(VLOOKUP(D3298,Translation!$A:$C,3,FALSE),D3298)","v":"Île-du-Prince-Édouard"},{"$f":"IFERROR(VLOOKUP(E3298,Translation!$A:$C,3,FALSE),E3298)","v":24.984996638840599},{"$f":"IFERROR(VLOOKUP(F3298,Translation!$A:$C,3,FALSE),F3298)","v":"Prêts hypothécaires assurés au cours de la période selon le rapport d’amortissement brut de la dette (ABD) moyen des emprunteurs détenant un prêt assuré par la SCHL (%)"},{"$f":"IFERROR(VLOOKUP(G3298,Translation!$A:$C,3,FALSE),G3298)","v":"25.0"},{"$f":"IFERROR(VLOOKUP(H3298,Translation!$A:$C,3,FALSE),H3298)","v":"Île-du-Prince-Édouard"}]
[22,"Cumul 2020","PROPRIÉTAIRES-OCCUPANTS, À L’UNITÉ","Québec",25.935427116406245,"Prêts hypothécaires assurés au cours de la période selon le rapport d’amortissement brut de la dette (ABD) moyen des emprunteurs détenant un prêt assuré par la SCHL (%)","25.9","Québec",{"$f":"IFERROR(VLOOKUP(A3301,Translation!$A:$C,3,FALSE),A3301)","v":22},{"$f":"IFERROR(VLOOKUP(B3301,Translation!$A:$C,3,FALSE),B3301)","v":"Cumul 2020"},{"$f":"IFERROR(VLOOKUP(C3301,Translation!$A:$C,3,FALSE),C3301)","v":"PROPRIÉTAIRES-OCCUPANTS, À L’UNITÉ"},{"$f":"IFERROR(VLOOKUP(D3301,Translation!$A:$C,3,FALSE),D3301)","v":"Québec"},{"$f":"IFERROR(VLOOKUP(E3301,Translation!$A:$C,3,FALSE),E3301)","v":25.935427116406245},{"$f":"IFERROR(VLOOKUP(F3301,Translation!$A:$C,3,FALSE),F3301)","v":"Prêts hypothécaires assurés au cours de la période selon le rapport d’amortissement brut de la dette (ABD) moyen des emprunteurs détenant un prêt assuré par la SCHL (%)"},{"$f":"IFERROR(VLOOKUP(G3301,Translation!$A:$C,3,FALSE),G3301)","v":"25.9"},{"$f":"IFERROR(VLOOKUP(H3301,Translation!$A:$C,3,FALSE),H3301)","v":"Québec"}]
[22,"Cumul 2020","PROPRIÉTAIRES-OCCUPANTS, À L’UNITÉ","Manitoba",27.468572329986305,"Prêts hypothécaires assurés au cours de la période selon le rapport d’amortissement brut de la dette (ABD) moyen des emprunteurs détenant un prêt assuré par la SCHL (%)","27.5","Manitoba",{"$f":"IFERROR(VLOOKUP(A3303,Translation!$A:$C,3,FALSE),A3303)","v":22},{"$f":"IFERROR(VLOOKUP(B3303,Translation!$A:$C,3,FALSE),B3303)","v":"Cumul 2020"},{"$f":"IFERROR(VLOOKUP(C3303,Translation!$A:$C,3,FALSE),C3303)","v":"PROPRIÉTAIRES-OCCUPANTS, À L’UNITÉ"},{"$f":"IFERROR(VLOOKUP(D3303,Translation!$A:$C,3,FALSE),D3303)","v":"Manitoba"},{"$f":"IFERROR(VLOOKUP(E3303,Translation!$A:$C,3,FALSE),E3303)","v":27.468572329986305},{"$f":"IFERROR(VLOOKUP(F3303,Translation!$A:$C,3,FALSE),F3303)","v":"Prêts hypothécaires assurés au cours de la période selon le rapport d’amortissement brut de la dette (ABD) moyen des emprunteurs détenant un prêt assuré par la SCHL (%)"},{"$f":"IFERROR(VLOOKUP(G3303,Translation!$A:$C,3,FALSE),G3303)","v":"27.5"},{"$f":"IFERROR(VLOOKUP(H3303,Translation!$A:$C,3,FALSE),H3303)","v":"Manitoba"}]
[22,"Cumul 2020","PROPRIÉTAIRES-OCCUPANTS, À L’UNITÉ","Colombie-Britannique",30.088784728921759,"Prêts hypothécaires assurés au cours de la période selon le rapport d’amortissement brut de la dette (ABD) moyen des emprunteurs détenant un prêt assuré par la SCHL (%)","30.1","Colombie-Britannique",{"$f":"IFERROR(VLOOKUP(A3306,Translation!$A:$C,3,FALSE),A3306)","v":22},{"$f":"IFERROR(VLOOKUP(B3306,Translation!$A:$C,3,FALSE),B3306)","v":"Cumul 2020"},{"$f":"IFERROR(VLOOKUP(C3306,Translation!$A:$C,3,FALSE),C3306)","v":"PROPRIÉTAIRES-OCCUPANTS, À L’UNITÉ"},{"$f":"IFERROR(VLOOKUP(D3306,Translation!$A:$C,3,FALSE),D3306)","v":"Colombie-Britannique"},{"$f":"IFERROR(VLOOKUP(E3306,Translation!$A:$C,3,FALSE),E3306)","v":30.088784728921759},{"$f":"IFERROR(VLOOKUP(F3306,Translation!$A:$C,3,FALSE),F3306)","v":"Prêts hypothécaires assurés au cours de la période selon le rapport d’amortissement brut de la dette (ABD) moyen des emprunteurs détenant un prêt assuré par la SCHL (%)"},{"$f":"IFERROR(VLOOKUP(G3306,Translation!$A:$C,3,FALSE),G3306)","v":"30.1"},{"$f":"IFERROR(VLOOKUP(H3306,Translation!$A:$C,3,FALSE),H3306)","v":"Colombie-Britannique"}]
[22,"T1 2020","PROPRIÉTAIRES-OCCUPANTS, À L’UNITÉ","<= 30 %",11.857978005223943,"Prêts hypothécaires assurés au cours de la période selon le rapport d’amortissement total de la dette (ATD) moyen des emprunteurs détenant un prêt assuré par la SCHL (%)","11.9"," <= 30 %",{"$f":"IFERROR(VLOOKUP(A3308,Translation!$A:$C,3,FALSE),A3308)","v":22},{"$f":"IFERROR(VLOOKUP(B3308,Translation!$A:$C,3,FALSE),B3308)","v":"T1 2020"},{"$f":"IFERROR(VLOOKUP(C3308,Translation!$A:$C,3,FALSE),C3308)","v":"PROPRIÉTAIRES-OCCUPANTS, À L’UNITÉ"},{"$f":"IFERROR(VLOOKUP(D3308,Translation!$A:$C,3,FALSE),D3308)","v":"<= 30 %"},{"$f":"IFERROR(VLOOKUP(E3308,Translation!$A:$C,3,FALSE),E3308)","v":11.857978005223943},{"$f":"IFERROR(VLOOKUP(F3308,Translation!$A:$C,3,FALSE),F3308)","v":"Prêts hypothécaires assurés au cours de la période selon le rapport d’amortissement total de la dette (ATD) moyen des emprunteurs détenant un prêt assuré par la SCHL (%)"},{"$f":"IFERROR(VLOOKUP(G3308,Translation!$A:$C,3,FALSE),G3308)","v":"11.9"},{"$f":"IFERROR(VLOOKUP(H3308,Translation!$A:$C,3,FALSE),H3308)","v":" <= 30 %"}]
[22,"T1 2020","PROPRIÉTAIRES-OCCUPANTS, À L’UNITÉ","> 30 % <= 35 %",16.779564156500197,"Prêts hypothécaires assurés au cours de la période selon le rapport d’amortissement total de la dette (ATD) moyen des emprunteurs détenant un prêt assuré par la SCHL (%)","16.8"," > 30 % <= 35 %",{"$f":"IFERROR(VLOOKUP(A3311,Translation!$A:$C,3,FALSE),A3311)","v":22},{"$f":"IFERROR(VLOOKUP(B3311,Translation!$A:$C,3,FALSE),B3311)","v":"T1 2020"},{"$f":"IFERROR(VLOOKUP(C3311,Translation!$A:$C,3,FALSE),C3311)","v":"PROPRIÉTAIRES-OCCUPANTS, À L’UNITÉ"},{"$f":"IFERROR(VLOOKUP(D3311,Translation!$A:$C,3,FALSE),D3311)","v":"> 30 % <= 35 %"},{"$f":"IFERROR(VLOOKUP(E3311,Translation!$A:$C,3,FALSE),E3311)","v":16.779564156500197},{"$f":"IFERROR(VLOOKUP(F3311,Translation!$A:$C,3,FALSE),F3311)","v":"Prêts hypothécaires assurés au cours de la période selon le rapport d’amortissement total de la dette (ATD) moyen des emprunteurs détenant un prêt assuré par la SCHL (%)"},{"$f":"IFERROR(VLOOKUP(G3311,Translation!$A:$C,3,FALSE),G3311)","v":"16.8"},{"$f":"IFERROR(VLOOKUP(H3311,Translation!$A:$C,3,FALSE),H3311)","v":" > 30 % <= 35 %"}]
[22,"T1 2020","PROPRIÉTAIRES-OCCUPANTS, À L’UNITÉ","> 35 % <= 40 %",32.312820497682694,"Prêts hypothécaires assurés au cours de la période selon le rapport d’amortissement total de la dette (ATD) moyen des emprunteurs détenant un prêt assuré par la SCHL (%)","32.3"," > 35 % <= 40 %",{"$f":"IFERROR(VLOOKUP(A3314,Translation!$A:$C,3,FALSE),A3314)","v":22},{"$f":"IFERROR(VLOOKUP(B3314,Translation!$A:$C,3,FALSE),B3314)","v":"T1 2020"},{"$f":"IFERROR(VLOOKUP(C3314,Translation!$A:$C,3,FALSE),C3314)","v":"PROPRIÉTAIRES-OCCUPANTS, À L’UNITÉ"},{"$f":"IFERROR(VLOOKUP(D3314,Translation!$A:$C,3,FALSE),D3314)","v":"> 35 % <= 40 %"},{"$f":"IFERROR(VLOOKUP(E3314,Translation!$A:$C,3,FALSE),E3314)","v":32.312820497682694},{"$f":"IFERROR(VLOOKUP(F3314,Translation!$A:$C,3,FALSE),F3314)","v":"Prêts hypothécaires assurés au cours de la période selon le rapport d’amortissement total de la dette (ATD) moyen des emprunteurs détenant un prêt assuré par la SCHL (%)"},{"$f":"IFERROR(VLOOKUP(G3314,Translation!$A:$C,3,FALSE),G3314)","v":"32.3"},{"$f":"IFERROR(VLOOKUP(H3314,Translation!$A:$C,3,FALSE),H3314)","v":" > 35 % <= 40 %"}]
[22,"Cumul 2020","PROPRIÉTAIRES-OCCUPANTS, À L’UNITÉ","> 35 % <= 40 %",32.312820497682694,"Prêts hypothécaires assurés au cours de la période selon le rapport d’amortissement total de la dette (ATD) moyen des emprunteurs détenant un prêt assuré par la SCHL (%)","32.3"," > 35 % <= 40 %",{"$f":"IFERROR(VLOOKUP(A3316,Translation!$A:$C,3,FALSE),A3316)","v":22},{"$f":"IFERROR(VLOOKUP(B3316,Translation!$A:$C,3,FALSE),B3316)","v":"Cumul 2020"},{"$f":"IFERROR(VLOOKUP(C3316,Translation!$A:$C,3,FALSE),C3316)","v":"PROPRIÉTAIRES-OCCUPANTS, À L’UNITÉ"},{"$f":"IFERROR(VLOOKUP(D3316,Translation!$A:$C,3,FALSE),D3316)","v":"> 35 % <= 40 %"},{"$f":"IFERROR(VLOOKUP(E3316,Translation!$A:$C,3,FALSE),E3316)","v":32.312820497682694},{"$f":"IFERROR(VLOOKUP(F3316,Translation!$A:$C,3,FALSE),F3316)","v":"Prêts hypothécaires assurés au cours de la période selon le rapport d’amortissement total de la dette (ATD) moyen des emprunteurs détenant un prêt assuré par la SCHL (%)"},{"$f":"IFERROR(VLOOKUP(G3316,Translation!$A:$C,3,FALSE),G3316)","v":"32.3"},{"$f":"IFERROR(VLOOKUP(H3316,Translation!$A:$C,3,FALSE),H3316)","v":" > 35 % <= 40 %"}]
[22,"T1 2020","PROPRIÉTAIRES-OCCUPANTS, À L’UNITÉ","> 40 % <= 44 %",39.049637340593151,"Prêts hypothécaires assurés au cours de la période selon le rapport d’amortissement total de la dette (ATD) moyen des emprunteurs détenant un prêt assuré par la SCHL (%)","39.0"," > 40 % <= 44 %",{"$f":"IFERROR(VLOOKUP(A3317,Translation!$A:$C,3,FALSE),A3317)","v":22},{"$f":"IFERROR(VLOOKUP(B3317,Translation!$A:$C,3,FALSE),B3317)","v":"T1 2020"},{"$f":"IFERROR(VLOOKUP(C3317,Translation!$A:$C,3,FALSE),C3317)","v":"PROPRIÉTAIRES-OCCUPANTS, À L’UNITÉ"},{"$f":"IFERROR(VLOOKUP(D3317,Translation!$A:$C,3,FALSE),D3317)","v":"> 40 % <= 44 %"},{"$f":"IFERROR(VLOOKUP(E3317,Translation!$A:$C,3,FALSE),E3317)","v":39.049637340593151},{"$f":"IFERROR(VLOOKUP(F3317,Translation!$A:$C,3,FALSE),F3317)","v":"Prêts hypothécaires assurés au cours de la période selon le rapport d’amortissement total de la dette (ATD) moyen des emprunteurs détenant un prêt assuré par la SCHL (%)"},{"$f":"IFERROR(VLOOKUP(G3317,Translation!$A:$C,3,FALSE),G3317)","v":"39.0"},{"$f":"IFERROR(VLOOKUP(H3317,Translation!$A:$C,3,FALSE),H3317)","v":" > 40 % <= 44 %"}]
[22,"Cumul 2019","PROPRIÉTAIRES-OCCUPANTS, À L’UNITÉ","Rapport d'amortissement total de la dette (ATD) moyen",37.163945863632378,"Prêts hypothécaires assurés au cours de la période selon le rapport d’amortissement total de la dette (ATD) moyen des emprunteurs détenant un prêt assuré par la SCHL (%)","37.2","Rapport d'amortissement total de la dette (ATD) moyen",{"$f":"IFERROR(VLOOKUP(A3321,Translation!$A:$C,3,FALSE),A3321)","v":22},{"$f":"IFERROR(VLOOKUP(B3321,Translation!$A:$C,3,FALSE),B3321)","v":"Cumul 2019"},{"$f":"IFERROR(VLOOKUP(C3321,Translation!$A:$C,3,FALSE),C3321)","v":"PROPRIÉTAIRES-OCCUPANTS, À L’UNITÉ"},{"$f":"IFERROR(VLOOKUP(D3321,Translation!$A:$C,3,FALSE),D3321)","v":"Rapport d'amortissement total de la dette (ATD) moyen"},{"$f":"IFERROR(VLOOKUP(E3321,Translation!$A:$C,3,FALSE),E3321)","v":37.163945863632378},{"$f":"IFERROR(VLOOKUP(F3321,Translation!$A:$C,3,FALSE),F3321)","v":"Prêts hypothécaires assurés au cours de la période selon le rapport d’amortissement total de la dette (ATD) moyen des emprunteurs détenant un prêt assuré par la SCHL (%)"},{"$f":"IFERROR(VLOOKUP(G3321,Translation!$A:$C,3,FALSE),G3321)","v":"37.2"},{"$f":"IFERROR(VLOOKUP(H3321,Translation!$A:$C,3,FALSE),H3321)","v":"Rapport d'amortissement total de la dette (ATD) moyen"}]
[22,"Cumul 2020","PROPRIÉTAIRES-OCCUPANTS, À L’UNITÉ","Rapport d'amortissement total de la dette (ATD) moyen",37.207235619016579,"Prêts hypothécaires assurés au cours de la période selon le rapport d’amortissement total de la dette (ATD) moyen des emprunteurs détenant un prêt assuré par la SCHL (%)","37.2","Rapport d'amortissement total de la dette (ATD) moyen",{"$f":"IFERROR(VLOOKUP(A3322,Translation!$A:$C,3,FALSE),A3322)","v":22},{"$f":"IFERROR(VLOOKUP(B3322,Translation!$A:$C,3,FALSE),B3322)","v":"Cumul 2020"},{"$f":"IFERROR(VLOOKUP(C3322,Translation!$A:$C,3,FALSE),C3322)","v":"PROPRIÉTAIRES-OCCUPANTS, À L’UNITÉ"},{"$f":"IFERROR(VLOOKUP(D3322,Translation!$A:$C,3,FALSE),D3322)","v":"Rapport d'amortissement total de la dette (ATD) moyen"},{"$f":"IFERROR(VLOOKUP(E3322,Translation!$A:$C,3,FALSE),E3322)","v":37.207235619016579},{"$f":"IFERROR(VLOOKUP(F3322,Translation!$A:$C,3,FALSE),F3322)","v":"Prêts hypothécaires assurés au cours de la période selon le rapport d’amortissement total de la dette (ATD) moyen des emprunteurs détenant un prêt assuré par la SCHL (%)"},{"$f":"IFERROR(VLOOKUP(G3322,Translation!$A:$C,3,FALSE),G3322)","v":"37.2"},{"$f":"IFERROR(VLOOKUP(H3322,Translation!$A:$C,3,FALSE),H3322)","v":"Rapport d'amortissement total de la dette (ATD) moyen"}]
[22,"T1 2020","PROPRIÉTAIRES-OCCUPANTS, À L’UNITÉ","Nouvelle-Écosse",35.576644725750505,"Prêts hypothécaires assurés au cours de la période selon le rapport d’amortissement total de la dette (ATD) moyen des emprunteurs détenant un prêt assuré par la SCHL (%)","35.6","Nouvelle-Écosse",{"$f":"IFERROR(VLOOKUP(A3325,Translation!$A:$C,3,FALSE),A3325)","v":22},{"$f":"IFERROR(VLOOKUP(B3325,Translation!$A:$C,3,FALSE),B3325)","v":"T1 2020"},{"$f":"IFERROR(VLOOKUP(C3325,Translation!$A:$C,3,FALSE),C3325)","v":"PROPRIÉTAIRES-OCCUPANTS, À L’UNITÉ"},{"$f":"IFERROR(VLOOKUP(D3325,Translation!$A:$C,3,FALSE),D3325)","v":"Nouvelle-Écosse"},{"$f":"IFERROR(VLOOKUP(E3325,Translation!$A:$C,3,FALSE),E3325)","v":35.576644725750505},{"$f":"IFERROR(VLOOKUP(F3325,Translation!$A:$C,3,FALSE),F3325)","v":"Prêts hypothécaires assurés au cours de la période selon le rapport d’amortissement total de la dette (ATD) moyen des emprunteurs détenant un prêt assuré par la SCHL (%)"},{"$f":"IFERROR(VLOOKUP(G3325,Translation!$A:$C,3,FALSE),G3325)","v":"35.6"},{"$f":"IFERROR(VLOOKUP(H3325,Translation!$A:$C,3,FALSE),H3325)","v":"Nouvelle-Écosse"}]
[22,"T1 2020","PROPRIÉTAIRES-OCCUPANTS, À L’UNITÉ","Québec",36.112729019468247,"Prêts hypothécaires assurés au cours de la période selon le rapport d’amortissement total de la dette (ATD) moyen des emprunteurs détenant un prêt assuré par la SCHL (%)","36.1","Québec",{"$f":"IFERROR(VLOOKUP(A3327,Translation!$A:$C,3,FALSE),A3327)","v":22},{"$f":"IFERROR(VLOOKUP(B3327,Translation!$A:$C,3,FALSE),B3327)","v":"T1 2020"},{"$f":"IFERROR(VLOOKUP(C3327,Translation!$A:$C,3,FALSE),C3327)","v":"PROPRIÉTAIRES-OCCUPANTS, À L’UNITÉ"},{"$f":"IFERROR(VLOOKUP(D3327,Translation!$A:$C,3,FALSE),D3327)","v":"Québec"},{"$f":"IFERROR(VLOOKUP(E3327,Translation!$A:$C,3,FALSE),E3327)","v":36.112729019468247},{"$f":"IFERROR(VLOOKUP(F3327,Translation!$A:$C,3,FALSE),F3327)","v":"Prêts hypothécaires assurés au cours de la période selon le rapport d’amortissement total de la dette (ATD) moyen des emprunteurs détenant un prêt assuré par la SCHL (%)"},{"$f":"IFERROR(VLOOKUP(G3327,Translation!$A:$C,3,FALSE),G3327)","v":"36.1"},{"$f":"IFERROR(VLOOKUP(H3327,Translation!$A:$C,3,FALSE),H3327)","v":"Québec"}]
[22,"T1 2020","PROPRIÉTAIRES-OCCUPANTS, À L’UNITÉ","Alberta",37.447770049926554,"Prêts hypothécaires assurés au cours de la période selon le rapport d’amortissement total de la dette (ATD) moyen des emprunteurs détenant un prêt assuré par la SCHL (%)","37.4","Alberta",{"$f":"IFERROR(VLOOKUP(A3331,Translation!$A:$C,3,FALSE),A3331)","v":22},{"$f":"IFERROR(VLOOKUP(B3331,Translation!$A:$C,3,FALSE),B3331)","v":"T1 2020"},{"$f":"IFERROR(VLOOKUP(C3331,Translation!$A:$C,3,FALSE),C3331)","v":"PROPRIÉTAIRES-OCCUPANTS, À L’UNITÉ"},{"$f":"IFERROR(VLOOKUP(D3331,Translation!$A:$C,3,FALSE),D3331)","v":"Alberta"},{"$f":"IFERROR(VLOOKUP(E3331,Translation!$A:$C,3,FALSE),E3331)","v":37.447770049926554},{"$f":"IFERROR(VLOOKUP(F3331,Translation!$A:$C,3,FALSE),F3331)","v":"Prêts hypothécaires assurés au cours de la période selon le rapport d’amortissement total de la dette (ATD) moyen des emprunteurs détenant un prêt assuré par la SCHL (%)"},{"$f":"IFERROR(VLOOKUP(G3331,Translation!$A:$C,3,FALSE),G3331)","v":"37.4"},{"$f":"IFERROR(VLOOKUP(H3331,Translation!$A:$C,3,FALSE),H3331)","v":"Alberta"}]
[22,"T1 2020","PROPRIÉTAIRES-OCCUPANTS, À L’UNITÉ","Colombie-Britannique",38.169527449944844,"Prêts hypothécaires assurés au cours de la période selon le rapport d’amortissement total de la dette (ATD) moyen des emprunteurs détenant un prêt assuré par la SCHL (%)","38.2","Colombie-Britannique",{"$f":"IFERROR(VLOOKUP(A3332,Translation!$A:$C,3,FALSE),A3332)","v":22},{"$f":"IFERROR(VLOOKUP(B3332,Translation!$A:$C,3,FALSE),B3332)","v":"T1 2020"},{"$f":"IFERROR(VLOOKUP(C3332,Translation!$A:$C,3,FALSE),C3332)","v":"PROPRIÉTAIRES-OCCUPANTS, À L’UNITÉ"},{"$f":"IFERROR(VLOOKUP(D3332,Translation!$A:$C,3,FALSE),D3332)","v":"Colombie-Britannique"},{"$f":"IFERROR(VLOOKUP(E3332,Translation!$A:$C,3,FALSE),E3332)","v":38.169527449944844},{"$f":"IFERROR(VLOOKUP(F3332,Translation!$A:$C,3,FALSE),F3332)","v":"Prêts hypothécaires assurés au cours de la période selon le rapport d’amortissement total de la dette (ATD) moyen des emprunteurs détenant un prêt assuré par la SCHL (%)"},{"$f":"IFERROR(VLOOKUP(G3332,Translation!$A:$C,3,FALSE),G3332)","v":"38.2"},{"$f":"IFERROR(VLOOKUP(H3332,Translation!$A:$C,3,FALSE),H3332)","v":"Colombie-Britannique"}]
[22,"Cumul 2019","PROPRIÉTAIRES-OCCUPANTS, À L’UNITÉ","Île-du-Prince-Édouard",35.539973273910519,"Prêts hypothécaires assurés au cours de la période selon le rapport d’amortissement total de la dette (ATD) moyen des emprunteurs détenant un prêt assuré par la SCHL (%)","35.5","Île-du-Prince-Édouard",{"$f":"IFERROR(VLOOKUP(A3335,Translation!$A:$C,3,FALSE),A3335)","v":22},{"$f":"IFERROR(VLOOKUP(B3335,Translation!$A:$C,3,FALSE),B3335)","v":"Cumul 2019"},{"$f":"IFERROR(VLOOKUP(C3335,Translation!$A:$C,3,FALSE),C3335)","v":"PROPRIÉTAIRES-OCCUPANTS, À L’UNITÉ"},{"$f":"IFERROR(VLOOKUP(D3335,Translation!$A:$C,3,FALSE),D3335)","v":"Île-du-Prince-Édouard"},{"$f":"IFERROR(VLOOKUP(E3335,Translation!$A:$C,3,FALSE),E3335)","v":35.539973273910519},{"$f":"IFERROR(VLOOKUP(F3335,Translation!$A:$C,3,FALSE),F3335)","v":"Prêts hypothécaires assurés au cours de la période selon le rapport d’amortissement total de la dette (ATD) moyen des emprunteurs détenant un prêt assuré par la SCHL (%)"},{"$f":"IFERROR(VLOOKUP(G3335,Translation!$A:$C,3,FALSE),G3335)","v":"35.5"},{"$f":"IFERROR(VLOOKUP(H3335,Translation!$A:$C,3,FALSE),H3335)","v":"Île-du-Prince-Édouard"}]
[22,"Cumul 2019","PROPRIÉTAIRES-OCCUPANTS, À L’UNITÉ","Nouvelle-Écosse",35.680394306134566,"Prêts hypothécaires assurés au cours de la période selon le rapport d’amortissement total de la dette (ATD) moyen des emprunteurs détenant un prêt assuré par la SCHL (%)","35.7","Nouvelle-Écosse",{"$f":"IFERROR(VLOOKUP(A3336,Translation!$A:$C,3,FALSE),A3336)","v":22},{"$f":"IFERROR(VLOOKUP(B3336,Translation!$A:$C,3,FALSE),B3336)","v":"Cumul 2019"},{"$f":"IFERROR(VLOOKUP(C3336,Translation!$A:$C,3,FALSE),C3336)","v":"PROPRIÉTAIRES-OCCUPANTS, À L’UNITÉ"},{"$f":"IFERROR(VLOOKUP(D3336,Translation!$A:$C,3,FALSE),D3336)","v":"Nouvelle-Écosse"},{"$f":"IFERROR(VLOOKUP(E3336,Translation!$A:$C,3,FALSE),E3336)","v":35.680394306134566},{"$f":"IFERROR(VLOOKUP(F3336,Translation!$A:$C,3,FALSE),F3336)","v":"Prêts hypothécaires assurés au cours de la période selon le rapport d’amortissement total de la dette (ATD) moyen des emprunteurs détenant un prêt assuré par la SCHL (%)"},{"$f":"IFERROR(VLOOKUP(G3336,Translation!$A:$C,3,FALSE),G3336)","v":"35.7"},{"$f":"IFERROR(VLOOKUP(H3336,Translation!$A:$C,3,FALSE),H3336)","v":"Nouvelle-Écosse"}]
[22,"Cumul 2019","PROPRIÉTAIRES-OCCUPANTS, À L’UNITÉ","Manitoba",36.679476984580269,"Prêts hypothécaires assurés au cours de la période selon le rapport d’amortissement total de la dette (ATD) moyen des emprunteurs détenant un prêt assuré par la SCHL (%)","36.7","Manitoba",{"$f":"IFERROR(VLOOKUP(A3340,Translation!$A:$C,3,FALSE),A3340)","v":22},{"$f":"IFERROR(VLOOKUP(B3340,Translation!$A:$C,3,FALSE),B3340)","v":"Cumul 2019"},{"$f":"IFERROR(VLOOKUP(C3340,Translation!$A:$C,3,FALSE),C3340)","v":"PROPRIÉTAIRES-OCCUPANTS, À L’UNITÉ"},{"$f":"IFERROR(VLOOKUP(D3340,Translation!$A:$C,3,FALSE),D3340)","v":"Manitoba"},{"$f":"IFERROR(VLOOKUP(E3340,Translation!$A:$C,3,FALSE),E3340)","v":36.679476984580269},{"$f":"IFERROR(VLOOKUP(F3340,Translation!$A:$C,3,FALSE),F3340)","v":"Prêts hypothécaires assurés au cours de la période selon le rapport d’amortissement total de la dette (ATD) moyen des emprunteurs détenant un prêt assuré par la SCHL (%)"},{"$f":"IFERROR(VLOOKUP(G3340,Translation!$A:$C,3,FALSE),G3340)","v":"36.7"},{"$f":"IFERROR(VLOOKUP(H3340,Translation!$A:$C,3,FALSE),H3340)","v":"Manitoba"}]
[22,"Cumul 2019","PROPRIÉTAIRES-OCCUPANTS, À L’UNITÉ","Alberta",37.421765638585008,"Prêts hypothécaires assurés au cours de la période selon le rapport d’amortissement total de la dette (ATD) moyen des emprunteurs détenant un prêt assuré par la SCHL (%)","37.4","Alberta",{"$f":"IFERROR(VLOOKUP(A3342,Translation!$A:$C,3,FALSE),A3342)","v":22},{"$f":"IFERROR(VLOOKUP(B3342,Translation!$A:$C,3,FALSE),B3342)","v":"Cumul 2019"},{"$f":"IFERROR(VLOOKUP(C3342,Translation!$A:$C,3,FALSE),C3342)","v":"PROPRIÉTAIRES-OCCUPANTS, À L’UNITÉ"},{"$f":"IFERROR(VLOOKUP(D3342,Translation!$A:$C,3,FALSE),D3342)","v":"Alberta"},{"$f":"IFERROR(VLOOKUP(E3342,Translation!$A:$C,3,FALSE),E3342)","v":37.421765638585008},{"$f":"IFERROR(VLOOKUP(F3342,Translation!$A:$C,3,FALSE),F3342)","v":"Prêts hypothécaires assurés au cours de la période selon le rapport d’amortissement total de la dette (ATD) moyen des emprunteurs détenant un prêt assuré par la SCHL (%)"},{"$f":"IFERROR(VLOOKUP(G3342,Translation!$A:$C,3,FALSE),G3342)","v":"37.4"},{"$f":"IFERROR(VLOOKUP(H3342,Translation!$A:$C,3,FALSE),H3342)","v":"Alberta"}]
[22,"Cumul 2020","PROPRIÉTAIRES-OCCUPANTS, À L’UNITÉ","Terre-Neuve-et-Labrador",35.974571352538085,"Prêts hypothécaires assurés au cours de la période selon le rapport d’amortissement total de la dette (ATD) moyen des emprunteurs détenant un prêt assuré par la SCHL (%)","36.0","Terre-Neuve-et-Labrador",{"$f":"IFERROR(VLOOKUP(A3345,Translation!$A:$C,3,FALSE),A3345)","v":22},{"$f":"IFERROR(VLOOKUP(B3345,Translation!$A:$C,3,FALSE),B3345)","v":"Cumul 2020"},{"$f":"IFERROR(VLOOKUP(C3345,Translation!$A:$C,3,FALSE),C3345)","v":"PROPRIÉTAIRES-OCCUPANTS, À L’UNITÉ"},{"$f":"IFERROR(VLOOKUP(D3345,Translation!$A:$C,3,FALSE),D3345)","v":"Terre-Neuve-et-Labrador"},{"$f":"IFERROR(VLOOKUP(E3345,Translation!$A:$C,3,FALSE),E3345)","v":35.974571352538085},{"$f":"IFERROR(VLOOKUP(F3345,Translation!$A:$C,3,FALSE),F3345)","v":"Prêts hypothécaires assurés au cours de la période selon le rapport d’amortissement total de la dette (ATD) moyen des emprunteurs détenant un prêt assuré par la SCHL (%)"},{"$f":"IFERROR(VLOOKUP(G3345,Translation!$A:$C,3,FALSE),G3345)","v":"36.0"},{"$f":"IFERROR(VLOOKUP(H3345,Translation!$A:$C,3,FALSE),H3345)","v":"Terre-Neuve-et-Labrador"}]
[22,"Cumul 2020","PROPRIÉTAIRES-OCCUPANTS, À L’UNITÉ","Île-du-Prince-Édouard",35.923600042695703,"Prêts hypothécaires assurés au cours de la période selon le rapport d’amortissement total de la dette (ATD) moyen des emprunteurs détenant un prêt assuré par la SCHL (%)","35.9","Île-du-Prince-Édouard",{"$f":"IFERROR(VLOOKUP(A3346,Translation!$A:$C,3,FALSE),A3346)","v":22},{"$f":"IFERROR(VLOOKUP(B3346,Translation!$A:$C,3,FALSE),B3346)","v":"Cumul 2020"},{"$f":"IFERROR(VLOOKUP(C3346,Translation!$A:$C,3,FALSE),C3346)","v":"PROPRIÉTAIRES-OCCUPANTS, À L’UNITÉ"},{"$f":"IFERROR(VLOOKUP(D3346,Translation!$A:$C,3,FALSE),D3346)","v":"Île-du-Prince-Édouard"},{"$f":"IFERROR(VLOOKUP(E3346,Translation!$A:$C,3,FALSE),E3346)","v":35.923600042695703},{"$f":"IFERROR(VLOOKUP(F3346,Translation!$A:$C,3,FALSE),F3346)","v":"Prêts hypothécaires assurés au cours de la période selon le rapport d’amortissement total de la dette (ATD) moyen des emprunteurs détenant un prêt assuré par la SCHL (%)"},{"$f":"IFERROR(VLOOKUP(G3346,Translation!$A:$C,3,FALSE),G3346)","v":"35.9"},{"$f":"IFERROR(VLOOKUP(H3346,Translation!$A:$C,3,FALSE),H3346)","v":"Île-du-Prince-Édouard"}]
[22,"Cumul 2020","PROPRIÉTAIRES-OCCUPANTS, À L’UNITÉ","Ontario",38.268194087003913,"Prêts hypothécaires assurés au cours de la période selon le rapport d’amortissement total de la dette (ATD) moyen des emprunteurs détenant un prêt assuré par la SCHL (%)","38.3","Ontario",{"$f":"IFERROR(VLOOKUP(A3350,Translation!$A:$C,3,FALSE),A3350)","v":22},{"$f":"IFERROR(VLOOKUP(B3350,Translation!$A:$C,3,FALSE),B3350)","v":"Cumul 2020"},{"$f":"IFERROR(VLOOKUP(C3350,Translation!$A:$C,3,FALSE),C3350)","v":"PROPRIÉTAIRES-OCCUPANTS, À L’UNITÉ"},{"$f":"IFERROR(VLOOKUP(D3350,Translation!$A:$C,3,FALSE),D3350)","v":"Ontario"},{"$f":"IFERROR(VLOOKUP(E3350,Translation!$A:$C,3,FALSE),E3350)","v":38.268194087003913},{"$f":"IFERROR(VLOOKUP(F3350,Translation!$A:$C,3,FALSE),F3350)","v":"Prêts hypothécaires assurés au cours de la période selon le rapport d’amortissement total de la dette (ATD) moyen des emprunteurs détenant un prêt assuré par la SCHL (%)"},{"$f":"IFERROR(VLOOKUP(G3350,Translation!$A:$C,3,FALSE),G3350)","v":"38.3"},{"$f":"IFERROR(VLOOKUP(H3350,Translation!$A:$C,3,FALSE),H3350)","v":"Ontario"}]
[22,"Cumul 2020","PROPRIÉTAIRES-OCCUPANTS, À L’UNITÉ","Manitoba",36.836304587763443,"Prêts hypothécaires assurés au cours de la période selon le rapport d’amortissement total de la dette (ATD) moyen des emprunteurs détenant un prêt assuré par la SCHL (%)","36.8","Manitoba",{"$f":"IFERROR(VLOOKUP(A3351,Translation!$A:$C,3,FALSE),A3351)","v":22},{"$f":"IFERROR(VLOOKUP(B3351,Translation!$A:$C,3,FALSE),B3351)","v":"Cumul 2020"},{"$f":"IFERROR(VLOOKUP(C3351,Translation!$A:$C,3,FALSE),C3351)","v":"PROPRIÉTAIRES-OCCUPANTS, À L’UNITÉ"},{"$f":"IFERROR(VLOOKUP(D3351,Translation!$A:$C,3,FALSE),D3351)","v":"Manitoba"},{"$f":"IFERROR(VLOOKUP(E3351,Translation!$A:$C,3,FALSE),E3351)","v":36.836304587763443},{"$f":"IFERROR(VLOOKUP(F3351,Translation!$A:$C,3,FALSE),F3351)","v":"Prêts hypothécaires assurés au cours de la période selon le rapport d’amortissement total de la dette (ATD) moyen des emprunteurs détenant un prêt assuré par la SCHL (%)"},{"$f":"IFERROR(VLOOKUP(G3351,Translation!$A:$C,3,FALSE),G3351)","v":"36.8"},{"$f":"IFERROR(VLOOKUP(H3351,Translation!$A:$C,3,FALSE),H3351)","v":"Manitoba"}]
[22,"Cumul 2020","PROPRIÉTAIRES-OCCUPANTS, À L’UNITÉ","Alberta",37.447770049926554,"Prêts hypothécaires assurés au cours de la période selon le rapport d’amortissement total de la dette (ATD) moyen des emprunteurs détenant un prêt assuré par la SCHL (%)","37.4","Alberta",{"$f":"IFERROR(VLOOKUP(A3353,Translation!$A:$C,3,FALSE),A3353)","v":22},{"$f":"IFERROR(VLOOKUP(B3353,Translation!$A:$C,3,FALSE),B3353)","v":"Cumul 2020"},{"$f":"IFERROR(VLOOKUP(C3353,Translation!$A:$C,3,FALSE),C3353)","v":"PROPRIÉTAIRES-OCCUPANTS, À L’UNITÉ"},{"$f":"IFERROR(VLOOKUP(D3353,Translation!$A:$C,3,FALSE),D3353)","v":"Alberta"},{"$f":"IFERROR(VLOOKUP(E3353,Translation!$A:$C,3,FALSE),E3353)","v":37.447770049926554},{"$f":"IFERROR(VLOOKUP(F3353,Translation!$A:$C,3,FALSE),F3353)","v":"Prêts hypothécaires assurés au cours de la période selon le rapport d’amortissement total de la dette (ATD) moyen des emprunteurs détenant un prêt assuré par la SCHL (%)"},{"$f":"IFERROR(VLOOKUP(G3353,Translation!$A:$C,3,FALSE),G3353)","v":"37.4"},{"$f":"IFERROR(VLOOKUP(H3353,Translation!$A:$C,3,FALSE),H3353)","v":"Alberta"}]
[22,"T4 2019","PROPRIÉTAIRES-OCCUPANTS, À L’UNITÉ","<= 30 %",56.403996457236957,"Prêts hypothécaires assurés au cours de la période selon le rapport d’amortissement brut de la dette (ABD) moyen des emprunteurs détenant un prêt assuré par la SCHL (%)","56.4"," <= 30 %",{"$f":"IFERROR(VLOOKUP(A3356,Translation!$A:$C,3,FALSE),A3356)","v":22},{"$f":"IFERROR(VLOOKUP(B3356,Translation!$A:$C,3,FALSE),B3356)","v":"T4 2019"},{"$f":"IFERROR(VLOOKUP(C3356,Translation!$A:$C,3,FALSE),C3356)","v":"PROPRIÉTAIRES-OCCUPANTS, À L’UNITÉ"},{"$f":"IFERROR(VLOOKUP(D3356,Translation!$A:$C,3,FALSE),D3356)","v":"<= 30 %"},{"$f":"IFERROR(VLOOKUP(E3356,Translation!$A:$C,3,FALSE),E3356)","v":56.403996457236957},{"$f":"IFERROR(VLOOKUP(F3356,Translation!$A:$C,3,FALSE),F3356)","v":"Prêts hypothécaires assurés au cours de la période selon le rapport d’amortissement brut de la dette (ABD) moyen des emprunteurs détenant un prêt assuré par la SCHL (%)"},{"$f":"IFERROR(VLOOKUP(G3356,Translation!$A:$C,3,FALSE),G3356)","v":"56.4"},{"$f":"IFERROR(VLOOKUP(H3356,Translation!$A:$C,3,FALSE),H3356)","v":" <= 30 %"}]
[22,"Cumul 2018","PROPRIÉTAIRES-OCCUPANTS, À L’UNITÉ","> 30 % <= 35 %",23.487470533532324,"Prêts hypothécaires assurés au cours de la période selon le rapport d’amortissement brut de la dette (ABD) moyen des emprunteurs détenant un prêt assuré par la SCHL (%)","23.5"," > 30 % <= 35 %",{"$f":"IFERROR(VLOOKUP(A3359,Translation!$A:$C,3,FALSE),A3359)","v":22},{"$f":"IFERROR(VLOOKUP(B3359,Translation!$A:$C,3,FALSE),B3359)","v":"Cumul 2018"},{"$f":"IFERROR(VLOOKUP(C3359,Translation!$A:$C,3,FALSE),C3359)","v":"PROPRIÉTAIRES-OCCUPANTS, À L’UNITÉ"},{"$f":"IFERROR(VLOOKUP(D3359,Translation!$A:$C,3,FALSE),D3359)","v":"> 30 % <= 35 %"},{"$f":"IFERROR(VLOOKUP(E3359,Translation!$A:$C,3,FALSE),E3359)","v":23.487470533532324},{"$f":"IFERROR(VLOOKUP(F3359,Translation!$A:$C,3,FALSE),F3359)","v":"Prêts hypothécaires assurés au cours de la période selon le rapport d’amortissement brut de la dette (ABD) moyen des emprunteurs détenant un prêt assuré par la SCHL (%)"},{"$f":"IFERROR(VLOOKUP(G3359,Translation!$A:$C,3,FALSE),G3359)","v":"23.5"},{"$f":"IFERROR(VLOOKUP(H3359,Translation!$A:$C,3,FALSE),H3359)","v":" > 30 % <= 35 %"}]
[22,"Cumul 2018","PROPRIÉTAIRES-OCCUPANTS, À L’UNITÉ","> 35 % <= 39 %",16.828957427676269,"Prêts hypothécaires assurés au cours de la période selon le rapport d’amortissement brut de la dette (ABD) moyen des emprunteurs détenant un prêt assuré par la SCHL (%)","16.8"," > 35 % <= 39 %",{"$f":"IFERROR(VLOOKUP(A3361,Translation!$A:$C,3,FALSE),A3361)","v":22},{"$f":"IFERROR(VLOOKUP(B3361,Translation!$A:$C,3,FALSE),B3361)","v":"Cumul 2018"},{"$f":"IFERROR(VLOOKUP(C3361,Translation!$A:$C,3,FALSE),C3361)","v":"PROPRIÉTAIRES-OCCUPANTS, À L’UNITÉ"},{"$f":"IFERROR(VLOOKUP(D3361,Translation!$A:$C,3,FALSE),D3361)","v":"> 35 % <= 39 %"},{"$f":"IFERROR(VLOOKUP(E3361,Translation!$A:$C,3,FALSE),E3361)","v":16.828957427676269},{"$f":"IFERROR(VLOOKUP(F3361,Translation!$A:$C,3,FALSE),F3361)","v":"Prêts hypothécaires assurés au cours de la période selon le rapport d’amortissement brut de la dette (ABD) moyen des emprunteurs détenant un prêt assuré par la SCHL (%)"},{"$f":"IFERROR(VLOOKUP(G3361,Translation!$A:$C,3,FALSE),G3361)","v":"16.8"},{"$f":"IFERROR(VLOOKUP(H3361,Translation!$A:$C,3,FALSE),H3361)","v":" > 35 % <= 39 %"}]
[22,"Cumul 2018","PROPRIÉTAIRES-OCCUPANTS, À L’UNITÉ","Rapport d'amortissement brut de la dette (ABD) moyen",27.318712428046538,"Prêts hypothécaires assurés au cours de la période selon le rapport d’amortissement brut de la dette (ABD) moyen des emprunteurs détenant un prêt assuré par la SCHL (%)","27.3","Rapport d'amortissement brut de la dette (ABD) moyen",{"$f":"IFERROR(VLOOKUP(A3364,Translation!$A:$C,3,FALSE),A3364)","v":22},{"$f":"IFERROR(VLOOKUP(B3364,Translation!$A:$C,3,FALSE),B3364)","v":"Cumul 2018"},{"$f":"IFERROR(VLOOKUP(C3364,Translation!$A:$C,3,FALSE),C3364)","v":"PROPRIÉTAIRES-OCCUPANTS, À L’UNITÉ"},{"$f":"IFERROR(VLOOKUP(D3364,Translation!$A:$C,3,FALSE),D3364)","v":"Rapport d'amortissement brut de la dette (ABD) moyen"},{"$f":"IFERROR(VLOOKUP(E3364,Translation!$A:$C,3,FALSE),E3364)","v":27.318712428046538},{"$f":"IFERROR(VLOOKUP(F3364,Translation!$A:$C,3,FALSE),F3364)","v":"Prêts hypothécaires assurés au cours de la période selon le rapport d’amortissement brut de la dette (ABD) moyen des emprunteurs détenant un prêt assuré par la SCHL (%)"},{"$f":"IFERROR(VLOOKUP(G3364,Translation!$A:$C,3,FALSE),G3364)","v":"27.3"},{"$f":"IFERROR(VLOOKUP(H3364,Translation!$A:$C,3,FALSE),H3364)","v":"Rapport d'amortissement brut de la dette (ABD) moyen"}]
[22,"T4 2019","PROPRIÉTAIRES-OCCUPANTS, À L’UNITÉ","Nouvelle-Écosse",22.938490255800485,"Prêts hypothécaires assurés au cours de la période selon le rapport d’amortissement brut de la dette (ABD) moyen des emprunteurs détenant un prêt assuré par la SCHL (%)","22.9","Nouvelle-Écosse",{"$f":"IFERROR(VLOOKUP(A3367,Translation!$A:$C,3,FALSE),A3367)","v":22},{"$f":"IFERROR(VLOOKUP(B3367,Translation!$A:$C,3,FALSE),B3367)","v":"T4 2019"},{"$f":"IFERROR(VLOOKUP(C3367,Translation!$A:$C,3,FALSE),C3367)","v":"PROPRIÉTAIRES-OCCUPANTS, À L’UNITÉ"},{"$f":"IFERROR(VLOOKUP(D3367,Translation!$A:$C,3,FALSE),D3367)","v":"Nouvelle-Écosse"},{"$f":"IFERROR(VLOOKUP(E3367,Translation!$A:$C,3,FALSE),E3367)","v":22.938490255800485},{"$f":"IFERROR(VLOOKUP(F3367,Translation!$A:$C,3,FALSE),F3367)","v":"Prêts hypothécaires assurés au cours de la période selon le rapport d’amortissement brut de la dette (ABD) moyen des emprunteurs détenant un prêt assuré par la SCHL (%)"},{"$f":"IFERROR(VLOOKUP(G3367,Translation!$A:$C,3,FALSE),G3367)","v":"22.9"},{"$f":"IFERROR(VLOOKUP(H3367,Translation!$A:$C,3,FALSE),H3367)","v":"Nouvelle-Écosse"}]
[22,"T4 2019","PROPRIÉTAIRES-OCCUPANTS, À L’UNITÉ","Québec",25.746222111553877,"Prêts hypothécaires assurés au cours de la période selon le rapport d’amortissement brut de la dette (ABD) moyen des emprunteurs détenant un prêt assuré par la SCHL (%)","25.7","Québec",{"$f":"IFERROR(VLOOKUP(A3369,Translation!$A:$C,3,FALSE),A3369)","v":22},{"$f":"IFERROR(VLOOKUP(B3369,Translation!$A:$C,3,FALSE),B3369)","v":"T4 2019"},{"$f":"IFERROR(VLOOKUP(C3369,Translation!$A:$C,3,FALSE),C3369)","v":"PROPRIÉTAIRES-OCCUPANTS, À L’UNITÉ"},{"$f":"IFERROR(VLOOKUP(D3369,Translation!$A:$C,3,FALSE),D3369)","v":"Québec"},{"$f":"IFERROR(VLOOKUP(E3369,Translation!$A:$C,3,FALSE),E3369)","v":25.746222111553877},{"$f":"IFERROR(VLOOKUP(F3369,Translation!$A:$C,3,FALSE),F3369)","v":"Prêts hypothécaires assurés au cours de la période selon le rapport d’amortissement brut de la dette (ABD) moyen des emprunteurs détenant un prêt assuré par la SCHL (%)"},{"$f":"IFERROR(VLOOKUP(G3369,Translation!$A:$C,3,FALSE),G3369)","v":"25.7"},{"$f":"IFERROR(VLOOKUP(H3369,Translation!$A:$C,3,FALSE),H3369)","v":"Québec"}]
[22,"T4 2019","PROPRIÉTAIRES-OCCUPANTS, À L’UNITÉ","Ontario",30.214185226980781,"Prêts hypothécaires assurés au cours de la période selon le rapport d’amortissement brut de la dette (ABD) moyen des emprunteurs détenant un prêt assuré par la SCHL (%)","30.2","Ontario",{"$f":"IFERROR(VLOOKUP(A3370,Translation!$A:$C,3,FALSE),A3370)","v":22},{"$f":"IFERROR(VLOOKUP(B3370,Translation!$A:$C,3,FALSE),B3370)","v":"T4 2019"},{"$f":"IFERROR(VLOOKUP(C3370,Translation!$A:$C,3,FALSE),C3370)","v":"PROPRIÉTAIRES-OCCUPANTS, À L’UNITÉ"},{"$f":"IFERROR(VLOOKUP(D3370,Translation!$A:$C,3,FALSE),D3370)","v":"Ontario"},{"$f":"IFERROR(VLOOKUP(E3370,Translation!$A:$C,3,FALSE),E3370)","v":30.214185226980781},{"$f":"IFERROR(VLOOKUP(F3370,Translation!$A:$C,3,FALSE),F3370)","v":"Prêts hypothécaires assurés au cours de la période selon le rapport d’amortissement brut de la dette (ABD) moyen des emprunteurs détenant un prêt assuré par la SCHL (%)"},{"$f":"IFERROR(VLOOKUP(G3370,Translation!$A:$C,3,FALSE),G3370)","v":"30.2"},{"$f":"IFERROR(VLOOKUP(H3370,Translation!$A:$C,3,FALSE),H3370)","v":"Ontario"}]
[22,"T4 2019","PROPRIÉTAIRES-OCCUPANTS, À L’UNITÉ","Saskatchewan",25.166913281789434,"Prêts hypothécaires assurés au cours de la période selon le rapport d’amortissement brut de la dette (ABD) moyen des emprunteurs détenant un prêt assuré par la SCHL (%)","25.2","Saskatchewan",{"$f":"IFERROR(VLOOKUP(A3372,Translation!$A:$C,3,FALSE),A3372)","v":22},{"$f":"IFERROR(VLOOKUP(B3372,Translation!$A:$C,3,FALSE),B3372)","v":"T4 2019"},{"$f":"IFERROR(VLOOKUP(C3372,Translation!$A:$C,3,FALSE),C3372)","v":"PROPRIÉTAIRES-OCCUPANTS, À L’UNITÉ"},{"$f":"IFERROR(VLOOKUP(D3372,Translation!$A:$C,3,FALSE),D3372)","v":"Saskatchewan"},{"$f":"IFERROR(VLOOKUP(E3372,Translation!$A:$C,3,FALSE),E3372)","v":25.166913281789434},{"$f":"IFERROR(VLOOKUP(F3372,Translation!$A:$C,3,FALSE),F3372)","v":"Prêts hypothécaires assurés au cours de la période selon le rapport d’amortissement brut de la dette (ABD) moyen des emprunteurs détenant un prêt assuré par la SCHL (%)"},{"$f":"IFERROR(VLOOKUP(G3372,Translation!$A:$C,3,FALSE),G3372)","v":"25.2"},{"$f":"IFERROR(VLOOKUP(H3372,Translation!$A:$C,3,FALSE),H3372)","v":"Saskatchewan"}]
[22,"T4 2019","PROPRIÉTAIRES-OCCUPANTS, À L’UNITÉ","Territoires",25.199257991461032,"Prêts hypothécaires assurés au cours de la période selon le rapport d’amortissement brut de la dette (ABD) moyen des emprunteurs détenant un prêt assuré par la SCHL (%)","25.2","Territoires",{"$f":"IFERROR(VLOOKUP(A3375,Translation!$A:$C,3,FALSE),A3375)","v":22},{"$f":"IFERROR(VLOOKUP(B3375,Translation!$A:$C,3,FALSE),B3375)","v":"T4 2019"},{"$f":"IFERROR(VLOOKUP(C3375,Translation!$A:$C,3,FALSE),C3375)","v":"PROPRIÉTAIRES-OCCUPANTS, À L’UNITÉ"},{"$f":"IFERROR(VLOOKUP(D3375,Translation!$A:$C,3,FALSE),D3375)","v":"Territoires"},{"$f":"IFERROR(VLOOKUP(E3375,Translation!$A:$C,3,FALSE),E3375)","v":25.199257991461032},{"$f":"IFERROR(VLOOKUP(F3375,Translation!$A:$C,3,FALSE),F3375)","v":"Prêts hypothécaires assurés au cours de la période selon le rapport d’amortissement brut de la dette (ABD) moyen des emprunteurs détenant un prêt assuré par la SCHL (%)"},{"$f":"IFERROR(VLOOKUP(G3375,Translation!$A:$C,3,FALSE),G3375)","v":"25.2"},{"$f":"IFERROR(VLOOKUP(H3375,Translation!$A:$C,3,FALSE),H3375)","v":"Territoires"}]
[22,"Cumul 2018","PROPRIÉTAIRES-OCCUPANTS, À L’UNITÉ","Nouvelle-Écosse",22.441901962001722,"Prêts hypothécaires assurés au cours de la période selon le rapport d’amortissement brut de la dette (ABD) moyen des emprunteurs détenant un prêt assuré par la SCHL (%)","22.4","Nouvelle-Écosse",{"$f":"IFERROR(VLOOKUP(A3378,Translation!$A:$C,3,FALSE),A3378)","v":22},{"$f":"IFERROR(VLOOKUP(B3378,Translation!$A:$C,3,FALSE),B3378)","v":"Cumul 2018"},{"$f":"IFERROR(VLOOKUP(C3378,Translation!$A:$C,3,FALSE),C3378)","v":"PROPRIÉTAIRES-OCCUPANTS, À L’UNITÉ"},{"$f":"IFERROR(VLOOKUP(D3378,Translation!$A:$C,3,FALSE),D3378)","v":"Nouvelle-Écosse"},{"$f":"IFERROR(VLOOKUP(E3378,Translation!$A:$C,3,FALSE),E3378)","v":22.441901962001722},{"$f":"IFERROR(VLOOKUP(F3378,Translation!$A:$C,3,FALSE),F3378)","v":"Prêts hypothécaires assurés au cours de la période selon le rapport d’amortissement brut de la dette (ABD) moyen des emprunteurs détenant un prêt assuré par la SCHL (%)"},{"$f":"IFERROR(VLOOKUP(G3378,Translation!$A:$C,3,FALSE),G3378)","v":"22.4"},{"$f":"IFERROR(VLOOKUP(H3378,Translation!$A:$C,3,FALSE),H3378)","v":"Nouvelle-Écosse"}]
[22,"Cumul 2018","PROPRIÉTAIRES-OCCUPANTS, À L’UNITÉ","Québec",25.870755333307279,"Prêts hypothécaires assurés au cours de la période selon le rapport d’amortissement brut de la dette (ABD) moyen des emprunteurs détenant un prêt assuré par la SCHL (%)","25.9","Québec",{"$f":"IFERROR(VLOOKUP(A3380,Translation!$A:$C,3,FALSE),A3380)","v":22},{"$f":"IFERROR(VLOOKUP(B3380,Translation!$A:$C,3,FALSE),B3380)","v":"Cumul 2018"},{"$f":"IFERROR(VLOOKUP(C3380,Translation!$A:$C,3,FALSE),C3380)","v":"PROPRIÉTAIRES-OCCUPANTS, À L’UNITÉ"},{"$f":"IFERROR(VLOOKUP(D3380,Translation!$A:$C,3,FALSE),D3380)","v":"Québec"},{"$f":"IFERROR(VLOOKUP(E3380,Translation!$A:$C,3,FALSE),E3380)","v":25.870755333307279},{"$f":"IFERROR(VLOOKUP(F3380,Translation!$A:$C,3,FALSE),F3380)","v":"Prêts hypothécaires assurés au cours de la période selon le rapport d’amortissement brut de la dette (ABD) moyen des emprunteurs détenant un prêt assuré par la SCHL (%)"},{"$f":"IFERROR(VLOOKUP(G3380,Translation!$A:$C,3,FALSE),G3380)","v":"25.9"},{"$f":"IFERROR(VLOOKUP(H3380,Translation!$A:$C,3,FALSE),H3380)","v":"Québec"}]
[22,"Cumul 2018","PROPRIÉTAIRES-OCCUPANTS, À L’UNITÉ","Saskatchewan",25.165669357851684,"Prêts hypothécaires assurés au cours de la période selon le rapport d’amortissement brut de la dette (ABD) moyen des emprunteurs détenant un prêt assuré par la SCHL (%)","25.2","Saskatchewan",{"$f":"IFERROR(VLOOKUP(A3383,Translation!$A:$C,3,FALSE),A3383)","v":22},{"$f":"IFERROR(VLOOKUP(B3383,Translation!$A:$C,3,FALSE),B3383)","v":"Cumul 2018"},{"$f":"IFERROR(VLOOKUP(C3383,Translation!$A:$C,3,FALSE),C3383)","v":"PROPRIÉTAIRES-OCCUPANTS, À L’UNITÉ"},{"$f":"IFERROR(VLOOKUP(D3383,Translation!$A:$C,3,FALSE),D3383)","v":"Saskatchewan"},{"$f":"IFERROR(VLOOKUP(E3383,Translation!$A:$C,3,FALSE),E3383)","v":25.165669357851684},{"$f":"IFERROR(VLOOKUP(F3383,Translation!$A:$C,3,FALSE),F3383)","v":"Prêts hypothécaires assurés au cours de la période selon le rapport d’amortissement brut de la dette (ABD) moyen des emprunteurs détenant un prêt assuré par la SCHL (%)"},{"$f":"IFERROR(VLOOKUP(G3383,Translation!$A:$C,3,FALSE),G3383)","v":"25.2"},{"$f":"IFERROR(VLOOKUP(H3383,Translation!$A:$C,3,FALSE),H3383)","v":"Saskatchewan"}]
[22,"Cumul 2018","PROPRIÉTAIRES-OCCUPANTS, À L’UNITÉ","Territoires",24.933309526551113,"Prêts hypothécaires assurés au cours de la période selon le rapport d’amortissement brut de la dette (ABD) moyen des emprunteurs détenant un prêt assuré par la SCHL (%)","24.9","Territoires",{"$f":"IFERROR(VLOOKUP(A3386,Translation!$A:$C,3,FALSE),A3386)","v":22},{"$f":"IFERROR(VLOOKUP(B3386,Translation!$A:$C,3,FALSE),B3386)","v":"Cumul 2018"},{"$f":"IFERROR(VLOOKUP(C3386,Translation!$A:$C,3,FALSE),C3386)","v":"PROPRIÉTAIRES-OCCUPANTS, À L’UNITÉ"},{"$f":"IFERROR(VLOOKUP(D3386,Translation!$A:$C,3,FALSE),D3386)","v":"Territoires"},{"$f":"IFERROR(VLOOKUP(E3386,Translation!$A:$C,3,FALSE),E3386)","v":24.933309526551113},{"$f":"IFERROR(VLOOKUP(F3386,Translation!$A:$C,3,FALSE),F3386)","v":"Prêts hypothécaires assurés au cours de la période selon le rapport d’amortissement brut de la dette (ABD) moyen des emprunteurs détenant un prêt assuré par la SCHL (%)"},{"$f":"IFERROR(VLOOKUP(G3386,Translation!$A:$C,3,FALSE),G3386)","v":"24.9"},{"$f":"IFERROR(VLOOKUP(H3386,Translation!$A:$C,3,FALSE),H3386)","v":"Territoires"}]
[22,"Cumul 2018","PROPRIÉTAIRES-OCCUPANTS, À L’UNITÉ","<= 30 %",12.286816196275241,"Prêts hypothécaires assurés au cours de la période selon le rapport d’amortissement total de la dette (ATD) moyen des emprunteurs détenant un prêt assuré par la SCHL (%)","12.3"," <= 30 %",{"$f":"IFERROR(VLOOKUP(A3388,Translation!$A:$C,3,FALSE),A3388)","v":22},{"$f":"IFERROR(VLOOKUP(B3388,Translation!$A:$C,3,FALSE),B3388)","v":"Cumul 2018"},{"$f":"IFERROR(VLOOKUP(C3388,Translation!$A:$C,3,FALSE),C3388)","v":"PROPRIÉTAIRES-OCCUPANTS, À L’UNITÉ"},{"$f":"IFERROR(VLOOKUP(D3388,Translation!$A:$C,3,FALSE),D3388)","v":"<= 30 %"},{"$f":"IFERROR(VLOOKUP(E3388,Translation!$A:$C,3,FALSE),E3388)","v":12.286816196275241},{"$f":"IFERROR(VLOOKUP(F3388,Translation!$A:$C,3,FALSE),F3388)","v":"Prêts hypothécaires assurés au cours de la période selon le rapport d’amortissement total de la dette (ATD) moyen des emprunteurs détenant un prêt assuré par la SCHL (%)"},{"$f":"IFERROR(VLOOKUP(G3388,Translation!$A:$C,3,FALSE),G3388)","v":"12.3"},{"$f":"IFERROR(VLOOKUP(H3388,Translation!$A:$C,3,FALSE),H3388)","v":" <= 30 %"}]
[22,"T4 2019","PROPRIÉTAIRES-OCCUPANTS, À L’UNITÉ","> 30 % <= 35 %",16.804842877002486,"Prêts hypothécaires assurés au cours de la période selon le rapport d’amortissement total de la dette (ATD) moyen des emprunteurs détenant un prêt assuré par la SCHL (%)","16.8"," > 30 % <= 35 %",{"$f":"IFERROR(VLOOKUP(A3389,Translation!$A:$C,3,FALSE),A3389)","v":22},{"$f":"IFERROR(VLOOKUP(B3389,Translation!$A:$C,3,FALSE),B3389)","v":"T4 2019"},{"$f":"IFERROR(VLOOKUP(C3389,Translation!$A:$C,3,FALSE),C3389)","v":"PROPRIÉTAIRES-OCCUPANTS, À L’UNITÉ"},{"$f":"IFERROR(VLOOKUP(D3389,Translation!$A:$C,3,FALSE),D3389)","v":"> 30 % <= 35 %"},{"$f":"IFERROR(VLOOKUP(E3389,Translation!$A:$C,3,FALSE),E3389)","v":16.804842877002486},{"$f":"IFERROR(VLOOKUP(F3389,Translation!$A:$C,3,FALSE),F3389)","v":"Prêts hypothécaires assurés au cours de la période selon le rapport d’amortissement total de la dette (ATD) moyen des emprunteurs détenant un prêt assuré par la SCHL (%)"},{"$f":"IFERROR(VLOOKUP(G3389,Translation!$A:$C,3,FALSE),G3389)","v":"16.8"},{"$f":"IFERROR(VLOOKUP(H3389,Translation!$A:$C,3,FALSE),H3389)","v":" > 30 % <= 35 %"}]
[22,"T4 2019","PROPRIÉTAIRES-OCCUPANTS, À L’UNITÉ","> 40 % <= 44 %",38.120594448754737,"Prêts hypothécaires assurés au cours de la période selon le rapport d’amortissement total de la dette (ATD) moyen des emprunteurs détenant un prêt assuré par la SCHL (%)","38.1"," > 40 % <= 44 %",{"$f":"IFERROR(VLOOKUP(A3393,Translation!$A:$C,3,FALSE),A3393)","v":22},{"$f":"IFERROR(VLOOKUP(B3393,Translation!$A:$C,3,FALSE),B3393)","v":"T4 2019"},{"$f":"IFERROR(VLOOKUP(C3393,Translation!$A:$C,3,FALSE),C3393)","v":"PROPRIÉTAIRES-OCCUPANTS, À L’UNITÉ"},{"$f":"IFERROR(VLOOKUP(D3393,Translation!$A:$C,3,FALSE),D3393)","v":"> 40 % <= 44 %"},{"$f":"IFERROR(VLOOKUP(E3393,Translation!$A:$C,3,FALSE),E3393)","v":38.120594448754737},{"$f":"IFERROR(VLOOKUP(F3393,Translation!$A:$C,3,FALSE),F3393)","v":"Prêts hypothécaires assurés au cours de la période selon le rapport d’amortissement total de la dette (ATD) moyen des emprunteurs détenant un prêt assuré par la SCHL (%)"},{"$f":"IFERROR(VLOOKUP(G3393,Translation!$A:$C,3,FALSE),G3393)","v":"38.1"},{"$f":"IFERROR(VLOOKUP(H3393,Translation!$A:$C,3,FALSE),H3393)","v":" > 40 % <= 44 %"}]
[22,"Cumul 2018","PROPRIÉTAIRES-OCCUPANTS, À L’UNITÉ","> 40 % <= 44 %",36.556053159193489,"Prêts hypothécaires assurés au cours de la période selon le rapport d’amortissement total de la dette (ATD) moyen des emprunteurs détenant un prêt assuré par la SCHL (%)","36.6"," > 40 % <= 44 %",{"$f":"IFERROR(VLOOKUP(A3394,Translation!$A:$C,3,FALSE),A3394)","v":22},{"$f":"IFERROR(VLOOKUP(B3394,Translation!$A:$C,3,FALSE),B3394)","v":"Cumul 2018"},{"$f":"IFERROR(VLOOKUP(C3394,Translation!$A:$C,3,FALSE),C3394)","v":"PROPRIÉTAIRES-OCCUPANTS, À L’UNITÉ"},{"$f":"IFERROR(VLOOKUP(D3394,Translation!$A:$C,3,FALSE),D3394)","v":"> 40 % <= 44 %"},{"$f":"IFERROR(VLOOKUP(E3394,Translation!$A:$C,3,FALSE),E3394)","v":36.556053159193489},{"$f":"IFERROR(VLOOKUP(F3394,Translation!$A:$C,3,FALSE),F3394)","v":"Prêts hypothécaires assurés au cours de la période selon le rapport d’amortissement total de la dette (ATD) moyen des emprunteurs détenant un prêt assuré par la SCHL (%)"},{"$f":"IFERROR(VLOOKUP(G3394,Translation!$A:$C,3,FALSE),G3394)","v":"36.6"},{"$f":"IFERROR(VLOOKUP(H3394,Translation!$A:$C,3,FALSE),H3394)","v":" > 40 % <= 44 %"}]
[22,"T4 2019","PROPRIÉTAIRES-OCCUPANTS, À L’UNITÉ","Terre-Neuve-et-Labrador",35.478376869013886,"Prêts hypothécaires assurés au cours de la période selon le rapport d’amortissement total de la dette (ATD) moyen des emprunteurs détenant un prêt assuré par la SCHL (%)","35.5","Terre-Neuve-et-Labrador",{"$f":"IFERROR(VLOOKUP(A3397,Translation!$A:$C,3,FALSE),A3397)","v":22},{"$f":"IFERROR(VLOOKUP(B3397,Translation!$A:$C,3,FALSE),B3397)","v":"T4 2019"},{"$f":"IFERROR(VLOOKUP(C3397,Translation!$A:$C,3,FALSE),C3397)","v":"PROPRIÉTAIRES-OCCUPANTS, À L’UNITÉ"},{"$f":"IFERROR(VLOOKUP(D3397,Translation!$A:$C,3,FALSE),D3397)","v":"Terre-Neuve-et-Labrador"},{"$f":"IFERROR(VLOOKUP(E3397,Translation!$A:$C,3,FALSE),E3397)","v":35.478376869013886},{"$f":"IFERROR(VLOOKUP(F3397,Translation!$A:$C,3,FALSE),F3397)","v":"Prêts hypothécaires assurés au cours de la période selon le rapport d’amortissement total de la dette (ATD) moyen des emprunteurs détenant un prêt assuré par la SCHL (%)"},{"$f":"IFERROR(VLOOKUP(G3397,Translation!$A:$C,3,FALSE),G3397)","v":"35.5"},{"$f":"IFERROR(VLOOKUP(H3397,Translation!$A:$C,3,FALSE),H3397)","v":"Terre-Neuve-et-Labrador"}]
[22,"T4 2019","PROPRIÉTAIRES-OCCUPANTS, À L’UNITÉ","Nouvelle-Écosse",35.660564387646644,"Prêts hypothécaires assurés au cours de la période selon le rapport d’amortissement total de la dette (ATD) moyen des emprunteurs détenant un prêt assuré par la SCHL (%)","35.7","Nouvelle-Écosse",{"$f":"IFERROR(VLOOKUP(A3399,Translation!$A:$C,3,FALSE),A3399)","v":22},{"$f":"IFERROR(VLOOKUP(B3399,Translation!$A:$C,3,FALSE),B3399)","v":"T4 2019"},{"$f":"IFERROR(VLOOKUP(C3399,Translation!$A:$C,3,FALSE),C3399)","v":"PROPRIÉTAIRES-OCCUPANTS, À L’UNITÉ"},{"$f":"IFERROR(VLOOKUP(D3399,Translation!$A:$C,3,FALSE),D3399)","v":"Nouvelle-Écosse"},{"$f":"IFERROR(VLOOKUP(E3399,Translation!$A:$C,3,FALSE),E3399)","v":35.660564387646644},{"$f":"IFERROR(VLOOKUP(F3399,Translation!$A:$C,3,FALSE),F3399)","v":"Prêts hypothécaires assurés au cours de la période selon le rapport d’amortissement total de la dette (ATD) moyen des emprunteurs détenant un prêt assuré par la SCHL (%)"},{"$f":"IFERROR(VLOOKUP(G3399,Translation!$A:$C,3,FALSE),G3399)","v":"35.7"},{"$f":"IFERROR(VLOOKUP(H3399,Translation!$A:$C,3,FALSE),H3399)","v":"Nouvelle-Écosse"}]
[22,"T4 2019","PROPRIÉTAIRES-OCCUPANTS, À L’UNITÉ","Manitoba",36.256262476720032,"Prêts hypothécaires assurés au cours de la période selon le rapport d’amortissement total de la dette (ATD) moyen des emprunteurs détenant un prêt assuré par la SCHL (%)","36.3","Manitoba",{"$f":"IFERROR(VLOOKUP(A3403,Translation!$A:$C,3,FALSE),A3403)","v":22},{"$f":"IFERROR(VLOOKUP(B3403,Translation!$A:$C,3,FALSE),B3403)","v":"T4 2019"},{"$f":"IFERROR(VLOOKUP(C3403,Translation!$A:$C,3,FALSE),C3403)","v":"PROPRIÉTAIRES-OCCUPANTS, À L’UNITÉ"},{"$f":"IFERROR(VLOOKUP(D3403,Translation!$A:$C,3,FALSE),D3403)","v":"Manitoba"},{"$f":"IFERROR(VLOOKUP(E3403,Translation!$A:$C,3,FALSE),E3403)","v":36.256262476720032},{"$f":"IFERROR(VLOOKUP(F3403,Translation!$A:$C,3,FALSE),F3403)","v":"Prêts hypothécaires assurés au cours de la période selon le rapport d’amortissement total de la dette (ATD) moyen des emprunteurs détenant un prêt assuré par la SCHL (%)"},{"$f":"IFERROR(VLOOKUP(G3403,Translation!$A:$C,3,FALSE),G3403)","v":"36.3"},{"$f":"IFERROR(VLOOKUP(H3403,Translation!$A:$C,3,FALSE),H3403)","v":"Manitoba"}]
[22,"T4 2019","PROPRIÉTAIRES-OCCUPANTS, À L’UNITÉ","Saskatchewan",36.708704894631317,"Prêts hypothécaires assurés au cours de la période selon le rapport d’amortissement total de la dette (ATD) moyen des emprunteurs détenant un prêt assuré par la SCHL (%)","36.7","Saskatchewan",{"$f":"IFERROR(VLOOKUP(A3404,Translation!$A:$C,3,FALSE),A3404)","v":22},{"$f":"IFERROR(VLOOKUP(B3404,Translation!$A:$C,3,FALSE),B3404)","v":"T4 2019"},{"$f":"IFERROR(VLOOKUP(C3404,Translation!$A:$C,3,FALSE),C3404)","v":"PROPRIÉTAIRES-OCCUPANTS, À L’UNITÉ"},{"$f":"IFERROR(VLOOKUP(D3404,Translation!$A:$C,3,FALSE),D3404)","v":"Saskatchewan"},{"$f":"IFERROR(VLOOKUP(E3404,Translation!$A:$C,3,FALSE),E3404)","v":36.708704894631317},{"$f":"IFERROR(VLOOKUP(F3404,Translation!$A:$C,3,FALSE),F3404)","v":"Prêts hypothécaires assurés au cours de la période selon le rapport d’amortissement total de la dette (ATD) moyen des emprunteurs détenant un prêt assuré par la SCHL (%)"},{"$f":"IFERROR(VLOOKUP(G3404,Translation!$A:$C,3,FALSE),G3404)","v":"36.7"},{"$f":"IFERROR(VLOOKUP(H3404,Translation!$A:$C,3,FALSE),H3404)","v":"Saskatchewan"}]
[22,"T4 2019","PROPRIÉTAIRES-OCCUPANTS, À L’UNITÉ","Territoires",35.972684724481397,"Prêts hypothécaires assurés au cours de la période selon le rapport d’amortissement total de la dette (ATD) moyen des emprunteurs détenant un prêt assuré par la SCHL (%)","36.0","Territoires",{"$f":"IFERROR(VLOOKUP(A3407,Translation!$A:$C,3,FALSE),A3407)","v":22},{"$f":"IFERROR(VLOOKUP(B3407,Translation!$A:$C,3,FALSE),B3407)","v":"T4 2019"},{"$f":"IFERROR(VLOOKUP(C3407,Translation!$A:$C,3,FALSE),C3407)","v":"PROPRIÉTAIRES-OCCUPANTS, À L’UNITÉ"},{"$f":"IFERROR(VLOOKUP(D3407,Translation!$A:$C,3,FALSE),D3407)","v":"Territoires"},{"$f":"IFERROR(VLOOKUP(E3407,Translation!$A:$C,3,FALSE),E3407)","v":35.972684724481397},{"$f":"IFERROR(VLOOKUP(F3407,Translation!$A:$C,3,FALSE),F3407)","v":"Prêts hypothécaires assurés au cours de la période selon le rapport d’amortissement total de la dette (ATD) moyen des emprunteurs détenant un prêt assuré par la SCHL (%)"},{"$f":"IFERROR(VLOOKUP(G3407,Translation!$A:$C,3,FALSE),G3407)","v":"36.0"},{"$f":"IFERROR(VLOOKUP(H3407,Translation!$A:$C,3,FALSE),H3407)","v":"Territoires"}]
[22,"Cumul 2018","PROPRIÉTAIRES-OCCUPANTS, À L’UNITÉ","Terre-Neuve-et-Labrador",36.265580096074864,"Prêts hypothécaires assurés au cours de la période selon le rapport d’amortissement total de la dette (ATD) moyen des emprunteurs détenant un prêt assuré par la SCHL (%)","36.3","Terre-Neuve-et-Labrador",{"$f":"IFERROR(VLOOKUP(A3408,Translation!$A:$C,3,FALSE),A3408)","v":22},{"$f":"IFERROR(VLOOKUP(B3408,Translation!$A:$C,3,FALSE),B3408)","v":"Cumul 2018"},{"$f":"IFERROR(VLOOKUP(C3408,Translation!$A:$C,3,FALSE),C3408)","v":"PROPRIÉTAIRES-OCCUPANTS, À L’UNITÉ"},{"$f":"IFERROR(VLOOKUP(D3408,Translation!$A:$C,3,FALSE),D3408)","v":"Terre-Neuve-et-Labrador"},{"$f":"IFERROR(VLOOKUP(E3408,Translation!$A:$C,3,FALSE),E3408)","v":36.265580096074864},{"$f":"IFERROR(VLOOKUP(F3408,Translation!$A:$C,3,FALSE),F3408)","v":"Prêts hypothécaires assurés au cours de la période selon le rapport d’amortissement total de la dette (ATD) moyen des emprunteurs détenant un prêt assuré par la SCHL (%)"},{"$f":"IFERROR(VLOOKUP(G3408,Translation!$A:$C,3,FALSE),G3408)","v":"36.3"},{"$f":"IFERROR(VLOOKUP(H3408,Translation!$A:$C,3,FALSE),H3408)","v":"Terre-Neuve-et-Labrador"}]
[22,"Cumul 2018","PROPRIÉTAIRES-OCCUPANTS, À L’UNITÉ","Québec",36.116582369492569,"Prêts hypothécaires assurés au cours de la période selon le rapport d’amortissement total de la dette (ATD) moyen des emprunteurs détenant un prêt assuré par la SCHL (%)","36.1","Québec",{"$f":"IFERROR(VLOOKUP(A3412,Translation!$A:$C,3,FALSE),A3412)","v":22},{"$f":"IFERROR(VLOOKUP(B3412,Translation!$A:$C,3,FALSE),B3412)","v":"Cumul 2018"},{"$f":"IFERROR(VLOOKUP(C3412,Translation!$A:$C,3,FALSE),C3412)","v":"PROPRIÉTAIRES-OCCUPANTS, À L’UNITÉ"},{"$f":"IFERROR(VLOOKUP(D3412,Translation!$A:$C,3,FALSE),D3412)","v":"Québec"},{"$f":"IFERROR(VLOOKUP(E3412,Translation!$A:$C,3,FALSE),E3412)","v":36.116582369492569},{"$f":"IFERROR(VLOOKUP(F3412,Translation!$A:$C,3,FALSE),F3412)","v":"Prêts hypothécaires assurés au cours de la période selon le rapport d’amortissement total de la dette (ATD) moyen des emprunteurs détenant un prêt assuré par la SCHL (%)"},{"$f":"IFERROR(VLOOKUP(G3412,Translation!$A:$C,3,FALSE),G3412)","v":"36.1"},{"$f":"IFERROR(VLOOKUP(H3412,Translation!$A:$C,3,FALSE),H3412)","v":"Québec"}]
[22,"Cumul 2018","PROPRIÉTAIRES-OCCUPANTS, À L’UNITÉ","Ontario",37.740817380411258,"Prêts hypothécaires assurés au cours de la période selon le rapport d’amortissement total de la dette (ATD) moyen des emprunteurs détenant un prêt assuré par la SCHL (%)","37.7","Ontario",{"$f":"IFERROR(VLOOKUP(A3413,Translation!$A:$C,3,FALSE),A3413)","v":22},{"$f":"IFERROR(VLOOKUP(B3413,Translation!$A:$C,3,FALSE),B3413)","v":"Cumul 2018"},{"$f":"IFERROR(VLOOKUP(C3413,Translation!$A:$C,3,FALSE),C3413)","v":"PROPRIÉTAIRES-OCCUPANTS, À L’UNITÉ"},{"$f":"IFERROR(VLOOKUP(D3413,Translation!$A:$C,3,FALSE),D3413)","v":"Ontario"},{"$f":"IFERROR(VLOOKUP(E3413,Translation!$A:$C,3,FALSE),E3413)","v":37.740817380411258},{"$f":"IFERROR(VLOOKUP(F3413,Translation!$A:$C,3,FALSE),F3413)","v":"Prêts hypothécaires assurés au cours de la période selon le rapport d’amortissement total de la dette (ATD) moyen des emprunteurs détenant un prêt assuré par la SCHL (%)"},{"$f":"IFERROR(VLOOKUP(G3413,Translation!$A:$C,3,FALSE),G3413)","v":"37.7"},{"$f":"IFERROR(VLOOKUP(H3413,Translation!$A:$C,3,FALSE),H3413)","v":"Ontario"}]
[22,"Cumul 2018","PROPRIÉTAIRES-OCCUPANTS, À L’UNITÉ","Colombie-Britannique",37.606898274910719,"Prêts hypothécaires assurés au cours de la période selon le rapport d’amortissement total de la dette (ATD) moyen des emprunteurs détenant un prêt assuré par la SCHL (%)","37.6","Colombie-Britannique",{"$f":"IFERROR(VLOOKUP(A3417,Translation!$A:$C,3,FALSE),A3417)","v":22},{"$f":"IFERROR(VLOOKUP(B3417,Translation!$A:$C,3,FALSE),B3417)","v":"Cumul 2018"},{"$f":"IFERROR(VLOOKUP(C3417,Translation!$A:$C,3,FALSE),C3417)","v":"PROPRIÉTAIRES-OCCUPANTS, À L’UNITÉ"},{"$f":"IFERROR(VLOOKUP(D3417,Translation!$A:$C,3,FALSE),D3417)","v":"Colombie-Britannique"},{"$f":"IFERROR(VLOOKUP(E3417,Translation!$A:$C,3,FALSE),E3417)","v":37.606898274910719},{"$f":"IFERROR(VLOOKUP(F3417,Translation!$A:$C,3,FALSE),F3417)","v":"Prêts hypothécaires assurés au cours de la période selon le rapport d’amortissement total de la dette (ATD) moyen des emprunteurs détenant un prêt assuré par la SCHL (%)"},{"$f":"IFERROR(VLOOKUP(G3417,Translation!$A:$C,3,FALSE),G3417)","v":"37.6"},{"$f":"IFERROR(VLOOKUP(H3417,Translation!$A:$C,3,FALSE),H3417)","v":"Colombie-Britannique"}]
[22,"Cumul 2018","PROPRIÉTAIRES-OCCUPANTS, À L’UNITÉ","Territoires",35.728258695477571,"Prêts hypothécaires assurés au cours de la période selon le rapport d’amortissement total de la dette (ATD) moyen des emprunteurs détenant un prêt assuré par la SCHL (%)","35.7","Territoires",{"$f":"IFERROR(VLOOKUP(A3418,Translation!$A:$C,3,FALSE),A3418)","v":22},{"$f":"IFERROR(VLOOKUP(B3418,Translation!$A:$C,3,FALSE),B3418)","v":"Cumul 2018"},{"$f":"IFERROR(VLOOKUP(C3418,Translation!$A:$C,3,FALSE),C3418)","v":"PROPRIÉTAIRES-OCCUPANTS, À L’UNITÉ"},{"$f":"IFERROR(VLOOKUP(D3418,Translation!$A:$C,3,FALSE),D3418)","v":"Territoires"},{"$f":"IFERROR(VLOOKUP(E3418,Translation!$A:$C,3,FALSE),E3418)","v":35.728258695477571},{"$f":"IFERROR(VLOOKUP(F3418,Translation!$A:$C,3,FALSE),F3418)","v":"Prêts hypothécaires assurés au cours de la période selon le rapport d’amortissement total de la dette (ATD) moyen des emprunteurs détenant un prêt assuré par la SCHL (%)"},{"$f":"IFERROR(VLOOKUP(G3418,Translation!$A:$C,3,FALSE),G3418)","v":"35.7"},{"$f":"IFERROR(VLOOKUP(H3418,Translation!$A:$C,3,FALSE),H3418)","v":"Territoires"}]
[22,"T3 2019","PROPRIÉTAIRES-OCCUPANTS, À L’UNITÉ","Rapport d'amortissement brut de la dette (ABD) moyen",27.635379269698316,"Prêts hypothécaires assurés au cours de la période selon le rapport d’amortissement brut de la dette (ABD) moyen des emprunteurs détenant un prêt assuré par la SCHL (%)","27.6","Rapport d'amortissement brut de la dette (ABD) moyen",{"$f":"IFERROR(VLOOKUP(A3422,Translation!$A:$C,3,FALSE),A3422)","v":22},{"$f":"IFERROR(VLOOKUP(B3422,Translation!$A:$C,3,FALSE),B3422)","v":"T3 2019"},{"$f":"IFERROR(VLOOKUP(C3422,Translation!$A:$C,3,FALSE),C3422)","v":"PROPRIÉTAIRES-OCCUPANTS, À L’UNITÉ"},{"$f":"IFERROR(VLOOKUP(D3422,Translation!$A:$C,3,FALSE),D3422)","v":"Rapport d'amortissement brut de la dette (ABD) moyen"},{"$f":"IFERROR(VLOOKUP(E3422,Translation!$A:$C,3,FALSE),E3422)","v":27.635379269698316},{"$f":"IFERROR(VLOOKUP(F3422,Translation!$A:$C,3,FALSE),F3422)","v":"Prêts hypothécaires assurés au cours de la période selon le rapport d’amortissement brut de la dette (ABD) moyen des emprunteurs détenant un prêt assuré par la SCHL (%)"},{"$f":"IFERROR(VLOOKUP(G3422,Translation!$A:$C,3,FALSE),G3422)","v":"27.6"},{"$f":"IFERROR(VLOOKUP(H3422,Translation!$A:$C,3,FALSE),H3422)","v":"Rapport d'amortissement brut de la dette (ABD) moyen"}]
[22,"T3 2019","PROPRIÉTAIRES-OCCUPANTS, À L’UNITÉ","Terre-Neuve-et-Labrador",21.694564639199111,"Prêts hypothécaires assurés au cours de la période selon le rapport d’amortissement brut de la dette (ABD) moyen des emprunteurs détenant un prêt assuré par la SCHL (%)","21.7","Terre-Neuve-et-Labrador",{"$f":"IFERROR(VLOOKUP(A3423,Translation!$A:$C,3,FALSE),A3423)","v":22},{"$f":"IFERROR(VLOOKUP(B3423,Translation!$A:$C,3,FALSE),B3423)","v":"T3 2019"},{"$f":"IFERROR(VLOOKUP(C3423,Translation!$A:$C,3,FALSE),C3423)","v":"PROPRIÉTAIRES-OCCUPANTS, À L’UNITÉ"},{"$f":"IFERROR(VLOOKUP(D3423,Translation!$A:$C,3,FALSE),D3423)","v":"Terre-Neuve-et-Labrador"},{"$f":"IFERROR(VLOOKUP(E3423,Translation!$A:$C,3,FALSE),E3423)","v":21.694564639199111},{"$f":"IFERROR(VLOOKUP(F3423,Translation!$A:$C,3,FALSE),F3423)","v":"Prêts hypothécaires assurés au cours de la période selon le rapport d’amortissement brut de la dette (ABD) moyen des emprunteurs détenant un prêt assuré par la SCHL (%)"},{"$f":"IFERROR(VLOOKUP(G3423,Translation!$A:$C,3,FALSE),G3423)","v":"21.7"},{"$f":"IFERROR(VLOOKUP(H3423,Translation!$A:$C,3,FALSE),H3423)","v":"Terre-Neuve-et-Labrador"}]
[22,"T3 2019","PROPRIÉTAIRES-OCCUPANTS, À L’UNITÉ","Québec",25.752923512317569,"Prêts hypothécaires assurés au cours de la période selon le rapport d’amortissement brut de la dette (ABD) moyen des emprunteurs détenant un prêt assuré par la SCHL (%)","25.8","Québec",{"$f":"IFERROR(VLOOKUP(A3427,Translation!$A:$C,3,FALSE),A3427)","v":22},{"$f":"IFERROR(VLOOKUP(B3427,Translation!$A:$C,3,FALSE),B3427)","v":"T3 2019"},{"$f":"IFERROR(VLOOKUP(C3427,Translation!$A:$C,3,FALSE),C3427)","v":"PROPRIÉTAIRES-OCCUPANTS, À L’UNITÉ"},{"$f":"IFERROR(VLOOKUP(D3427,Translation!$A:$C,3,FALSE),D3427)","v":"Québec"},{"$f":"IFERROR(VLOOKUP(E3427,Translation!$A:$C,3,FALSE),E3427)","v":25.752923512317569},{"$f":"IFERROR(VLOOKUP(F3427,Translation!$A:$C,3,FALSE),F3427)","v":"Prêts hypothécaires assurés au cours de la période selon le rapport d’amortissement brut de la dette (ABD) moyen des emprunteurs détenant un prêt assuré par la SCHL (%)"},{"$f":"IFERROR(VLOOKUP(G3427,Translation!$A:$C,3,FALSE),G3427)","v":"25.8"},{"$f":"IFERROR(VLOOKUP(H3427,Translation!$A:$C,3,FALSE),H3427)","v":"Québec"}]
[22,"T3 2019","PROPRIÉTAIRES-OCCUPANTS, À L’UNITÉ","Ontario",30.129202542843821,"Prêts hypothécaires assurés au cours de la période selon le rapport d’amortissement brut de la dette (ABD) moyen des emprunteurs détenant un prêt assuré par la SCHL (%)","30.1","Ontario",{"$f":"IFERROR(VLOOKUP(A3428,Translation!$A:$C,3,FALSE),A3428)","v":22},{"$f":"IFERROR(VLOOKUP(B3428,Translation!$A:$C,3,FALSE),B3428)","v":"T3 2019"},{"$f":"IFERROR(VLOOKUP(C3428,Translation!$A:$C,3,FALSE),C3428)","v":"PROPRIÉTAIRES-OCCUPANTS, À L’UNITÉ"},{"$f":"IFERROR(VLOOKUP(D3428,Translation!$A:$C,3,FALSE),D3428)","v":"Ontario"},{"$f":"IFERROR(VLOOKUP(E3428,Translation!$A:$C,3,FALSE),E3428)","v":30.129202542843821},{"$f":"IFERROR(VLOOKUP(F3428,Translation!$A:$C,3,FALSE),F3428)","v":"Prêts hypothécaires assurés au cours de la période selon le rapport d’amortissement brut de la dette (ABD) moyen des emprunteurs détenant un prêt assuré par la SCHL (%)"},{"$f":"IFERROR(VLOOKUP(G3428,Translation!$A:$C,3,FALSE),G3428)","v":"30.1"},{"$f":"IFERROR(VLOOKUP(H3428,Translation!$A:$C,3,FALSE),H3428)","v":"Ontario"}]
[22,"T3 2019","PROPRIÉTAIRES-OCCUPANTS, À L’UNITÉ","Alberta",27.06440996255078,"Prêts hypothécaires assurés au cours de la période selon le rapport d’amortissement brut de la dette (ABD) moyen des emprunteurs détenant un prêt assuré par la SCHL (%)","27.1","Alberta",{"$f":"IFERROR(VLOOKUP(A3431,Translation!$A:$C,3,FALSE),A3431)","v":22},{"$f":"IFERROR(VLOOKUP(B3431,Translation!$A:$C,3,FALSE),B3431)","v":"T3 2019"},{"$f":"IFERROR(VLOOKUP(C3431,Translation!$A:$C,3,FALSE),C3431)","v":"PROPRIÉTAIRES-OCCUPANTS, À L’UNITÉ"},{"$f":"IFERROR(VLOOKUP(D3431,Translation!$A:$C,3,FALSE),D3431)","v":"Alberta"},{"$f":"IFERROR(VLOOKUP(E3431,Translation!$A:$C,3,FALSE),E3431)","v":27.06440996255078},{"$f":"IFERROR(VLOOKUP(F3431,Translation!$A:$C,3,FALSE),F3431)","v":"Prêts hypothécaires assurés au cours de la période selon le rapport d’amortissement brut de la dette (ABD) moyen des emprunteurs détenant un prêt assuré par la SCHL (%)"},{"$f":"IFERROR(VLOOKUP(G3431,Translation!$A:$C,3,FALSE),G3431)","v":"27.1"},{"$f":"IFERROR(VLOOKUP(H3431,Translation!$A:$C,3,FALSE),H3431)","v":"Alberta"}]
[22,"T3 2019","PROPRIÉTAIRES-OCCUPANTS, À L’UNITÉ","Territoires",25.200278953687128,"Prêts hypothécaires assurés au cours de la période selon le rapport d’amortissement brut de la dette (ABD) moyen des emprunteurs détenant un prêt assuré par la SCHL (%)","25.2","Territoires",{"$f":"IFERROR(VLOOKUP(A3433,Translation!$A:$C,3,FALSE),A3433)","v":22},{"$f":"IFERROR(VLOOKUP(B3433,Translation!$A:$C,3,FALSE),B3433)","v":"T3 2019"},{"$f":"IFERROR(VLOOKUP(C3433,Translation!$A:$C,3,FALSE),C3433)","v":"PROPRIÉTAIRES-OCCUPANTS, À L’UNITÉ"},{"$f":"IFERROR(VLOOKUP(D3433,Translation!$A:$C,3,FALSE),D3433)","v":"Territoires"},{"$f":"IFERROR(VLOOKUP(E3433,Translation!$A:$C,3,FALSE),E3433)","v":25.200278953687128},{"$f":"IFERROR(VLOOKUP(F3433,Translation!$A:$C,3,FALSE),F3433)","v":"Prêts hypothécaires assurés au cours de la période selon le rapport d’amortissement brut de la dette (ABD) moyen des emprunteurs détenant un prêt assuré par la SCHL (%)"},{"$f":"IFERROR(VLOOKUP(G3433,Translation!$A:$C,3,FALSE),G3433)","v":"25.2"},{"$f":"IFERROR(VLOOKUP(H3433,Translation!$A:$C,3,FALSE),H3433)","v":"Territoires"}]
[22,"T3 2019","PROPRIÉTAIRES-OCCUPANTS, À L’UNITÉ","> 35 % <= 40 %",33.409949794515001,"Prêts hypothécaires assurés au cours de la période selon le rapport d’amortissement total de la dette (ATD) moyen des emprunteurs détenant un prêt assuré par la SCHL (%)","33.4"," > 35 % <= 40 %",{"$f":"IFERROR(VLOOKUP(A3436,Translation!$A:$C,3,FALSE),A3436)","v":22},{"$f":"IFERROR(VLOOKUP(B3436,Translation!$A:$C,3,FALSE),B3436)","v":"T3 2019"},{"$f":"IFERROR(VLOOKUP(C3436,Translation!$A:$C,3,FALSE),C3436)","v":"PROPRIÉTAIRES-OCCUPANTS, À L’UNITÉ"},{"$f":"IFERROR(VLOOKUP(D3436,Translation!$A:$C,3,FALSE),D3436)","v":"> 35 % <= 40 %"},{"$f":"IFERROR(VLOOKUP(E3436,Translation!$A:$C,3,FALSE),E3436)","v":33.409949794515001},{"$f":"IFERROR(VLOOKUP(F3436,Translation!$A:$C,3,FALSE),F3436)","v":"Prêts hypothécaires assurés au cours de la période selon le rapport d’amortissement total de la dette (ATD) moyen des emprunteurs détenant un prêt assuré par la SCHL (%)"},{"$f":"IFERROR(VLOOKUP(G3436,Translation!$A:$C,3,FALSE),G3436)","v":"33.4"},{"$f":"IFERROR(VLOOKUP(H3436,Translation!$A:$C,3,FALSE),H3436)","v":" > 35 % <= 40 %"}]
[22,"T3 2019","PROPRIÉTAIRES-OCCUPANTS, À L’UNITÉ","> 44 %",4.8513366326277665E-3,"Prêts hypothécaires assurés au cours de la période selon le rapport d’amortissement total de la dette (ATD) moyen des emprunteurs détenant un prêt assuré par la SCHL (%)","0.0"," > 44 %",{"$f":"IFERROR(VLOOKUP(A3438,Translation!$A:$C,3,FALSE),A3438)","v":22},{"$f":"IFERROR(VLOOKUP(B3438,Translation!$A:$C,3,FALSE),B3438)","v":"T3 2019"},{"$f":"IFERROR(VLOOKUP(C3438,Translation!$A:$C,3,FALSE),C3438)","v":"PROPRIÉTAIRES-OCCUPANTS, À L’UNITÉ"},{"$f":"IFERROR(VLOOKUP(D3438,Translation!$A:$C,3,FALSE),D3438)","v":"> 44 %"},{"$f":"IFERROR(VLOOKUP(E3438,Translation!$A:$C,3,FALSE),E3438)","v":4.8513366326277665E-3},{"$f":"IFERROR(VLOOKUP(F3438,Translation!$A:$C,3,FALSE),F3438)","v":"Prêts hypothécaires assurés au cours de la période selon le rapport d’amortissement total de la dette (ATD) moyen des emprunteurs détenant un prêt assuré par la SCHL (%)"},{"$f":"IFERROR(VLOOKUP(G3438,Translation!$A:$C,3,FALSE),G3438)","v":"0.0"},{"$f":"IFERROR(VLOOKUP(H3438,Translation!$A:$C,3,FALSE),H3438)","v":" > 44 %"}]
[22,"T3 2019","PROPRIÉTAIRES-OCCUPANTS, À L’UNITÉ","Île-du-Prince-Édouard",36.400253580920705,"Prêts hypothécaires assurés au cours de la période selon le rapport d’amortissement total de la dette (ATD) moyen des emprunteurs détenant un prêt assuré par la SCHL (%)","36.4","Île-du-Prince-Édouard",{"$f":"IFERROR(VLOOKUP(A3441,Translation!$A:$C,3,FALSE),A3441)","v":22},{"$f":"IFERROR(VLOOKUP(B3441,Translation!$A:$C,3,FALSE),B3441)","v":"T3 2019"},{"$f":"IFERROR(VLOOKUP(C3441,Translation!$A:$C,3,FALSE),C3441)","v":"PROPRIÉTAIRES-OCCUPANTS, À L’UNITÉ"},{"$f":"IFERROR(VLOOKUP(D3441,Translation!$A:$C,3,FALSE),D3441)","v":"Île-du-Prince-Édouard"},{"$f":"IFERROR(VLOOKUP(E3441,Translation!$A:$C,3,FALSE),E3441)","v":36.400253580920705},{"$f":"IFERROR(VLOOKUP(F3441,Translation!$A:$C,3,FALSE),F3441)","v":"Prêts hypothécaires assurés au cours de la période selon le rapport d’amortissement total de la dette (ATD) moyen des emprunteurs détenant un prêt assuré par la SCHL (%)"},{"$f":"IFERROR(VLOOKUP(G3441,Translation!$A:$C,3,FALSE),G3441)","v":"36.4"},{"$f":"IFERROR(VLOOKUP(H3441,Translation!$A:$C,3,FALSE),H3441)","v":"Île-du-Prince-Édouard"}]
[22,"T3 2019","PROPRIÉTAIRES-OCCUPANTS, À L’UNITÉ","Nouvelle-Écosse",35.783260009911473,"Prêts hypothécaires assurés au cours de la période selon le rapport d’amortissement total de la dette (ATD) moyen des emprunteurs détenant un prêt assuré par la SCHL (%)","35.8","Nouvelle-Écosse",{"$f":"IFERROR(VLOOKUP(A3442,Translation!$A:$C,3,FALSE),A3442)","v":22},{"$f":"IFERROR(VLOOKUP(B3442,Translation!$A:$C,3,FALSE),B3442)","v":"T3 2019"},{"$f":"IFERROR(VLOOKUP(C3442,Translation!$A:$C,3,FALSE),C3442)","v":"PROPRIÉTAIRES-OCCUPANTS, À L’UNITÉ"},{"$f":"IFERROR(VLOOKUP(D3442,Translation!$A:$C,3,FALSE),D3442)","v":"Nouvelle-Écosse"},{"$f":"IFERROR(VLOOKUP(E3442,Translation!$A:$C,3,FALSE),E3442)","v":35.783260009911473},{"$f":"IFERROR(VLOOKUP(F3442,Translation!$A:$C,3,FALSE),F3442)","v":"Prêts hypothécaires assurés au cours de la période selon le rapport d’amortissement total de la dette (ATD) moyen des emprunteurs détenant un prêt assuré par la SCHL (%)"},{"$f":"IFERROR(VLOOKUP(G3442,Translation!$A:$C,3,FALSE),G3442)","v":"35.8"},{"$f":"IFERROR(VLOOKUP(H3442,Translation!$A:$C,3,FALSE),H3442)","v":"Nouvelle-Écosse"}]
[22,"T3 2019","PROPRIÉTAIRES-OCCUPANTS, À L’UNITÉ","Manitoba",36.664022589258153,"Prêts hypothécaires assurés au cours de la période selon le rapport d’amortissement total de la dette (ATD) moyen des emprunteurs détenant un prêt assuré par la SCHL (%)","36.7","Manitoba",{"$f":"IFERROR(VLOOKUP(A3446,Translation!$A:$C,3,FALSE),A3446)","v":22},{"$f":"IFERROR(VLOOKUP(B3446,Translation!$A:$C,3,FALSE),B3446)","v":"T3 2019"},{"$f":"IFERROR(VLOOKUP(C3446,Translation!$A:$C,3,FALSE),C3446)","v":"PROPRIÉTAIRES-OCCUPANTS, À L’UNITÉ"},{"$f":"IFERROR(VLOOKUP(D3446,Translation!$A:$C,3,FALSE),D3446)","v":"Manitoba"},{"$f":"IFERROR(VLOOKUP(E3446,Translation!$A:$C,3,FALSE),E3446)","v":36.664022589258153},{"$f":"IFERROR(VLOOKUP(F3446,Translation!$A:$C,3,FALSE),F3446)","v":"Prêts hypothécaires assurés au cours de la période selon le rapport d’amortissement total de la dette (ATD) moyen des emprunteurs détenant un prêt assuré par la SCHL (%)"},{"$f":"IFERROR(VLOOKUP(G3446,Translation!$A:$C,3,FALSE),G3446)","v":"36.7"},{"$f":"IFERROR(VLOOKUP(H3446,Translation!$A:$C,3,FALSE),H3446)","v":"Manitoba"}]
[22,"T3 2019","PROPRIÉTAIRES-OCCUPANTS, À L’UNITÉ","Saskatchewan",36.653381927624373,"Prêts hypothécaires assurés au cours de la période selon le rapport d’amortissement total de la dette (ATD) moyen des emprunteurs détenant un prêt assuré par la SCHL (%)","36.7","Saskatchewan",{"$f":"IFERROR(VLOOKUP(A3447,Translation!$A:$C,3,FALSE),A3447)","v":22},{"$f":"IFERROR(VLOOKUP(B3447,Translation!$A:$C,3,FALSE),B3447)","v":"T3 2019"},{"$f":"IFERROR(VLOOKUP(C3447,Translation!$A:$C,3,FALSE),C3447)","v":"PROPRIÉTAIRES-OCCUPANTS, À L’UNITÉ"},{"$f":"IFERROR(VLOOKUP(D3447,Translation!$A:$C,3,FALSE),D3447)","v":"Saskatchewan"},{"$f":"IFERROR(VLOOKUP(E3447,Translation!$A:$C,3,FALSE),E3447)","v":36.653381927624373},{"$f":"IFERROR(VLOOKUP(F3447,Translation!$A:$C,3,FALSE),F3447)","v":"Prêts hypothécaires assurés au cours de la période selon le rapport d’amortissement total de la dette (ATD) moyen des emprunteurs détenant un prêt assuré par la SCHL (%)"},{"$f":"IFERROR(VLOOKUP(G3447,Translation!$A:$C,3,FALSE),G3447)","v":"36.7"},{"$f":"IFERROR(VLOOKUP(H3447,Translation!$A:$C,3,FALSE),H3447)","v":"Saskatchewan"}]
[22,"T3 2019","PROPRIÉTAIRES-OCCUPANTS, À L’UNITÉ","Colombie-Britannique",37.593757443305513,"Prêts hypothécaires assurés au cours de la période selon le rapport d’amortissement total de la dette (ATD) moyen des emprunteurs détenant un prêt assuré par la SCHL (%)","37.6","Colombie-Britannique",{"$f":"IFERROR(VLOOKUP(A3449,Translation!$A:$C,3,FALSE),A3449)","v":22},{"$f":"IFERROR(VLOOKUP(B3449,Translation!$A:$C,3,FALSE),B3449)","v":"T3 2019"},{"$f":"IFERROR(VLOOKUP(C3449,Translation!$A:$C,3,FALSE),C3449)","v":"PROPRIÉTAIRES-OCCUPANTS, À L’UNITÉ"},{"$f":"IFERROR(VLOOKUP(D3449,Translation!$A:$C,3,FALSE),D3449)","v":"Colombie-Britannique"},{"$f":"IFERROR(VLOOKUP(E3449,Translation!$A:$C,3,FALSE),E3449)","v":37.593757443305513},{"$f":"IFERROR(VLOOKUP(F3449,Translation!$A:$C,3,FALSE),F3449)","v":"Prêts hypothécaires assurés au cours de la période selon le rapport d’amortissement total de la dette (ATD) moyen des emprunteurs détenant un prêt assuré par la SCHL (%)"},{"$f":"IFERROR(VLOOKUP(G3449,Translation!$A:$C,3,FALSE),G3449)","v":"37.6"},{"$f":"IFERROR(VLOOKUP(H3449,Translation!$A:$C,3,FALSE),H3449)","v":"Colombie-Britannique"}]
[22,"T2 2019","PROPRIÉTAIRES-OCCUPANTS, À L’UNITÉ","> 30 % <= 35 %",22.30035703427286,"Prêts hypothécaires assurés au cours de la période selon le rapport d’amortissement brut de la dette (ABD) moyen des emprunteurs détenant un prêt assuré par la SCHL (%)","22.3"," > 30 % <= 35 %",{"$f":"IFERROR(VLOOKUP(A3452,Translation!$A:$C,3,FALSE),A3452)","v":22},{"$f":"IFERROR(VLOOKUP(B3452,Translation!$A:$C,3,FALSE),B3452)","v":"T2 2019"},{"$f":"IFERROR(VLOOKUP(C3452,Translation!$A:$C,3,FALSE),C3452)","v":"PROPRIÉTAIRES-OCCUPANTS, À L’UNITÉ"},{"$f":"IFERROR(VLOOKUP(D3452,Translation!$A:$C,3,FALSE),D3452)","v":"> 30 % <= 35 %"},{"$f":"IFERROR(VLOOKUP(E3452,Translation!$A:$C,3,FALSE),E3452)","v":22.30035703427286},{"$f":"IFERROR(VLOOKUP(F3452,Translation!$A:$C,3,FALSE),F3452)","v":"Prêts hypothécaires assurés au cours de la période selon le rapport d’amortissement brut de la dette (ABD) moyen des emprunteurs détenant un prêt assuré par la SCHL (%)"},{"$f":"IFERROR(VLOOKUP(G3452,Translation!$A:$C,3,FALSE),G3452)","v":"22.3"},{"$f":"IFERROR(VLOOKUP(H3452,Translation!$A:$C,3,FALSE),H3452)","v":" > 30 % <= 35 %"}]
[22,"T2 2019","PROPRIÉTAIRES-OCCUPANTS, À L’UNITÉ","Terre-Neuve-et-Labrador",21.979798466689203,"Prêts hypothécaires assurés au cours de la période selon le rapport d’amortissement brut de la dette (ABD) moyen des emprunteurs détenant un prêt assuré par la SCHL (%)","22.0","Terre-Neuve-et-Labrador",{"$f":"IFERROR(VLOOKUP(A3455,Translation!$A:$C,3,FALSE),A3455)","v":22},{"$f":"IFERROR(VLOOKUP(B3455,Translation!$A:$C,3,FALSE),B3455)","v":"T2 2019"},{"$f":"IFERROR(VLOOKUP(C3455,Translation!$A:$C,3,FALSE),C3455)","v":"PROPRIÉTAIRES-OCCUPANTS, À L’UNITÉ"},{"$f":"IFERROR(VLOOKUP(D3455,Translation!$A:$C,3,FALSE),D3455)","v":"Terre-Neuve-et-Labrador"},{"$f":"IFERROR(VLOOKUP(E3455,Translation!$A:$C,3,FALSE),E3455)","v":21.979798466689203},{"$f":"IFERROR(VLOOKUP(F3455,Translation!$A:$C,3,FALSE),F3455)","v":"Prêts hypothécaires assurés au cours de la période selon le rapport d’amortissement brut de la dette (ABD) moyen des emprunteurs détenant un prêt assuré par la SCHL (%)"},{"$f":"IFERROR(VLOOKUP(G3455,Translation!$A:$C,3,FALSE),G3455)","v":"22.0"},{"$f":"IFERROR(VLOOKUP(H3455,Translation!$A:$C,3,FALSE),H3455)","v":"Terre-Neuve-et-Labrador"}]
[22,"T2 2019","PROPRIÉTAIRES-OCCUPANTS, À L’UNITÉ","Nouvelle-Écosse",22.395858606631258,"Prêts hypothécaires assurés au cours de la période selon le rapport d’amortissement brut de la dette (ABD) moyen des emprunteurs détenant un prêt assuré par la SCHL (%)","22.4","Nouvelle-Écosse",{"$f":"IFERROR(VLOOKUP(A3457,Translation!$A:$C,3,FALSE),A3457)","v":22},{"$f":"IFERROR(VLOOKUP(B3457,Translation!$A:$C,3,FALSE),B3457)","v":"T2 2019"},{"$f":"IFERROR(VLOOKUP(C3457,Translation!$A:$C,3,FALSE),C3457)","v":"PROPRIÉTAIRES-OCCUPANTS, À L’UNITÉ"},{"$f":"IFERROR(VLOOKUP(D3457,Translation!$A:$C,3,FALSE),D3457)","v":"Nouvelle-Écosse"},{"$f":"IFERROR(VLOOKUP(E3457,Translation!$A:$C,3,FALSE),E3457)","v":22.395858606631258},{"$f":"IFERROR(VLOOKUP(F3457,Translation!$A:$C,3,FALSE),F3457)","v":"Prêts hypothécaires assurés au cours de la période selon le rapport d’amortissement brut de la dette (ABD) moyen des emprunteurs détenant un prêt assuré par la SCHL (%)"},{"$f":"IFERROR(VLOOKUP(G3457,Translation!$A:$C,3,FALSE),G3457)","v":"22.4"},{"$f":"IFERROR(VLOOKUP(H3457,Translation!$A:$C,3,FALSE),H3457)","v":"Nouvelle-Écosse"}]
[22,"T2 2019","PROPRIÉTAIRES-OCCUPANTS, À L’UNITÉ","Ontario",29.664204116298006,"Prêts hypothécaires assurés au cours de la période selon le rapport d’amortissement brut de la dette (ABD) moyen des emprunteurs détenant un prêt assuré par la SCHL (%)","29.7","Ontario",{"$f":"IFERROR(VLOOKUP(A3460,Translation!$A:$C,3,FALSE),A3460)","v":22},{"$f":"IFERROR(VLOOKUP(B3460,Translation!$A:$C,3,FALSE),B3460)","v":"T2 2019"},{"$f":"IFERROR(VLOOKUP(C3460,Translation!$A:$C,3,FALSE),C3460)","v":"PROPRIÉTAIRES-OCCUPANTS, À L’UNITÉ"},{"$f":"IFERROR(VLOOKUP(D3460,Translation!$A:$C,3,FALSE),D3460)","v":"Ontario"},{"$f":"IFERROR(VLOOKUP(E3460,Translation!$A:$C,3,FALSE),E3460)","v":29.664204116298006},{"$f":"IFERROR(VLOOKUP(F3460,Translation!$A:$C,3,FALSE),F3460)","v":"Prêts hypothécaires assurés au cours de la période selon le rapport d’amortissement brut de la dette (ABD) moyen des emprunteurs détenant un prêt assuré par la SCHL (%)"},{"$f":"IFERROR(VLOOKUP(G3460,Translation!$A:$C,3,FALSE),G3460)","v":"29.7"},{"$f":"IFERROR(VLOOKUP(H3460,Translation!$A:$C,3,FALSE),H3460)","v":"Ontario"}]
[22,"T2 2019","PROPRIÉTAIRES-OCCUPANTS, À L’UNITÉ","Alberta",27.03460807918928,"Prêts hypothécaires assurés au cours de la période selon le rapport d’amortissement brut de la dette (ABD) moyen des emprunteurs détenant un prêt assuré par la SCHL (%)","27.0","Alberta",{"$f":"IFERROR(VLOOKUP(A3463,Translation!$A:$C,3,FALSE),A3463)","v":22},{"$f":"IFERROR(VLOOKUP(B3463,Translation!$A:$C,3,FALSE),B3463)","v":"T2 2019"},{"$f":"IFERROR(VLOOKUP(C3463,Translation!$A:$C,3,FALSE),C3463)","v":"PROPRIÉTAIRES-OCCUPANTS, À L’UNITÉ"},{"$f":"IFERROR(VLOOKUP(D3463,Translation!$A:$C,3,FALSE),D3463)","v":"Alberta"},{"$f":"IFERROR(VLOOKUP(E3463,Translation!$A:$C,3,FALSE),E3463)","v":27.03460807918928},{"$f":"IFERROR(VLOOKUP(F3463,Translation!$A:$C,3,FALSE),F3463)","v":"Prêts hypothécaires assurés au cours de la période selon le rapport d’amortissement brut de la dette (ABD) moyen des emprunteurs détenant un prêt assuré par la SCHL (%)"},{"$f":"IFERROR(VLOOKUP(G3463,Translation!$A:$C,3,FALSE),G3463)","v":"27.0"},{"$f":"IFERROR(VLOOKUP(H3463,Translation!$A:$C,3,FALSE),H3463)","v":"Alberta"}]
[22,"T2 2019","PROPRIÉTAIRES-OCCUPANTS, À L’UNITÉ","Territoires",25.384364441691524,"Prêts hypothécaires assurés au cours de la période selon le rapport d’amortissement brut de la dette (ABD) moyen des emprunteurs détenant un prêt assuré par la SCHL (%)","25.4","Territoires",{"$f":"IFERROR(VLOOKUP(A3465,Translation!$A:$C,3,FALSE),A3465)","v":22},{"$f":"IFERROR(VLOOKUP(B3465,Translation!$A:$C,3,FALSE),B3465)","v":"T2 2019"},{"$f":"IFERROR(VLOOKUP(C3465,Translation!$A:$C,3,FALSE),C3465)","v":"PROPRIÉTAIRES-OCCUPANTS, À L’UNITÉ"},{"$f":"IFERROR(VLOOKUP(D3465,Translation!$A:$C,3,FALSE),D3465)","v":"Territoires"},{"$f":"IFERROR(VLOOKUP(E3465,Translation!$A:$C,3,FALSE),E3465)","v":25.384364441691524},{"$f":"IFERROR(VLOOKUP(F3465,Translation!$A:$C,3,FALSE),F3465)","v":"Prêts hypothécaires assurés au cours de la période selon le rapport d’amortissement brut de la dette (ABD) moyen des emprunteurs détenant un prêt assuré par la SCHL (%)"},{"$f":"IFERROR(VLOOKUP(G3465,Translation!$A:$C,3,FALSE),G3465)","v":"25.4"},{"$f":"IFERROR(VLOOKUP(H3465,Translation!$A:$C,3,FALSE),H3465)","v":"Territoires"}]
[22,"T2 2019","PROPRIÉTAIRES-OCCUPANTS, À L’UNITÉ","<= 30 %",13.544715711637329,"Prêts hypothécaires assurés au cours de la période selon le rapport d’amortissement total de la dette (ATD) moyen des emprunteurs détenant un prêt assuré par la SCHL (%)","13.5"," <= 30 %",{"$f":"IFERROR(VLOOKUP(A3466,Translation!$A:$C,3,FALSE),A3466)","v":22},{"$f":"IFERROR(VLOOKUP(B3466,Translation!$A:$C,3,FALSE),B3466)","v":"T2 2019"},{"$f":"IFERROR(VLOOKUP(C3466,Translation!$A:$C,3,FALSE),C3466)","v":"PROPRIÉTAIRES-OCCUPANTS, À L’UNITÉ"},{"$f":"IFERROR(VLOOKUP(D3466,Translation!$A:$C,3,FALSE),D3466)","v":"<= 30 %"},{"$f":"IFERROR(VLOOKUP(E3466,Translation!$A:$C,3,FALSE),E3466)","v":13.544715711637329},{"$f":"IFERROR(VLOOKUP(F3466,Translation!$A:$C,3,FALSE),F3466)","v":"Prêts hypothécaires assurés au cours de la période selon le rapport d’amortissement total de la dette (ATD) moyen des emprunteurs détenant un prêt assuré par la SCHL (%)"},{"$f":"IFERROR(VLOOKUP(G3466,Translation!$A:$C,3,FALSE),G3466)","v":"13.5"},{"$f":"IFERROR(VLOOKUP(H3466,Translation!$A:$C,3,FALSE),H3466)","v":" <= 30 %"}]
[22,"T2 2019","PROPRIÉTAIRES-OCCUPANTS, À L’UNITÉ","> 35 % <= 40 %",32.643374586554984,"Prêts hypothécaires assurés au cours de la période selon le rapport d’amortissement total de la dette (ATD) moyen des emprunteurs détenant un prêt assuré par la SCHL (%)","32.6"," > 35 % <= 40 %",{"$f":"IFERROR(VLOOKUP(A3468,Translation!$A:$C,3,FALSE),A3468)","v":22},{"$f":"IFERROR(VLOOKUP(B3468,Translation!$A:$C,3,FALSE),B3468)","v":"T2 2019"},{"$f":"IFERROR(VLOOKUP(C3468,Translation!$A:$C,3,FALSE),C3468)","v":"PROPRIÉTAIRES-OCCUPANTS, À L’UNITÉ"},{"$f":"IFERROR(VLOOKUP(D3468,Translation!$A:$C,3,FALSE),D3468)","v":"> 35 % <= 40 %"},{"$f":"IFERROR(VLOOKUP(E3468,Translation!$A:$C,3,FALSE),E3468)","v":32.643374586554984},{"$f":"IFERROR(VLOOKUP(F3468,Translation!$A:$C,3,FALSE),F3468)","v":"Prêts hypothécaires assurés au cours de la période selon le rapport d’amortissement total de la dette (ATD) moyen des emprunteurs détenant un prêt assuré par la SCHL (%)"},{"$f":"IFERROR(VLOOKUP(G3468,Translation!$A:$C,3,FALSE),G3468)","v":"32.6"},{"$f":"IFERROR(VLOOKUP(H3468,Translation!$A:$C,3,FALSE),H3468)","v":" > 35 % <= 40 %"}]
[22,"T2 2019","PROPRIÉTAIRES-OCCUPANTS, À L’UNITÉ","Terre-Neuve-et-Labrador",36.834426092889373,"Prêts hypothécaires assurés au cours de la période selon le rapport d’amortissement total de la dette (ATD) moyen des emprunteurs détenant un prêt assuré par la SCHL (%)","36.8","Terre-Neuve-et-Labrador",{"$f":"IFERROR(VLOOKUP(A3471,Translation!$A:$C,3,FALSE),A3471)","v":22},{"$f":"IFERROR(VLOOKUP(B3471,Translation!$A:$C,3,FALSE),B3471)","v":"T2 2019"},{"$f":"IFERROR(VLOOKUP(C3471,Translation!$A:$C,3,FALSE),C3471)","v":"PROPRIÉTAIRES-OCCUPANTS, À L’UNITÉ"},{"$f":"IFERROR(VLOOKUP(D3471,Translation!$A:$C,3,FALSE),D3471)","v":"Terre-Neuve-et-Labrador"},{"$f":"IFERROR(VLOOKUP(E3471,Translation!$A:$C,3,FALSE),E3471)","v":36.834426092889373},{"$f":"IFERROR(VLOOKUP(F3471,Translation!$A:$C,3,FALSE),F3471)","v":"Prêts hypothécaires assurés au cours de la période selon le rapport d’amortissement total de la dette (ATD) moyen des emprunteurs détenant un prêt assuré par la SCHL (%)"},{"$f":"IFERROR(VLOOKUP(G3471,Translation!$A:$C,3,FALSE),G3471)","v":"36.8"},{"$f":"IFERROR(VLOOKUP(H3471,Translation!$A:$C,3,FALSE),H3471)","v":"Terre-Neuve-et-Labrador"}]
[22,"T2 2019","PROPRIÉTAIRES-OCCUPANTS, À L’UNITÉ","Nouveau-Brunswick",35.021226492405056,"Prêts hypothécaires assurés au cours de la période selon le rapport d’amortissement total de la dette (ATD) moyen des emprunteurs détenant un prêt assuré par la SCHL (%)","35.0","Nouveau-Brunswick",{"$f":"IFERROR(VLOOKUP(A3474,Translation!$A:$C,3,FALSE),A3474)","v":22},{"$f":"IFERROR(VLOOKUP(B3474,Translation!$A:$C,3,FALSE),B3474)","v":"T2 2019"},{"$f":"IFERROR(VLOOKUP(C3474,Translation!$A:$C,3,FALSE),C3474)","v":"PROPRIÉTAIRES-OCCUPANTS, À L’UNITÉ"},{"$f":"IFERROR(VLOOKUP(D3474,Translation!$A:$C,3,FALSE),D3474)","v":"Nouveau-Brunswick"},{"$f":"IFERROR(VLOOKUP(E3474,Translation!$A:$C,3,FALSE),E3474)","v":35.021226492405056},{"$f":"IFERROR(VLOOKUP(F3474,Translation!$A:$C,3,FALSE),F3474)","v":"Prêts hypothécaires assurés au cours de la période selon le rapport d’amortissement total de la dette (ATD) moyen des emprunteurs détenant un prêt assuré par la SCHL (%)"},{"$f":"IFERROR(VLOOKUP(G3474,Translation!$A:$C,3,FALSE),G3474)","v":"35.0"},{"$f":"IFERROR(VLOOKUP(H3474,Translation!$A:$C,3,FALSE),H3474)","v":"Nouveau-Brunswick"}]
[22,"T2 2019","PROPRIÉTAIRES-OCCUPANTS, À L’UNITÉ","Ontario",37.74378369220949,"Prêts hypothécaires assurés au cours de la période selon le rapport d’amortissement total de la dette (ATD) moyen des emprunteurs détenant un prêt assuré par la SCHL (%)","37.7","Ontario",{"$f":"IFERROR(VLOOKUP(A3476,Translation!$A:$C,3,FALSE),A3476)","v":22},{"$f":"IFERROR(VLOOKUP(B3476,Translation!$A:$C,3,FALSE),B3476)","v":"T2 2019"},{"$f":"IFERROR(VLOOKUP(C3476,Translation!$A:$C,3,FALSE),C3476)","v":"PROPRIÉTAIRES-OCCUPANTS, À L’UNITÉ"},{"$f":"IFERROR(VLOOKUP(D3476,Translation!$A:$C,3,FALSE),D3476)","v":"Ontario"},{"$f":"IFERROR(VLOOKUP(E3476,Translation!$A:$C,3,FALSE),E3476)","v":37.74378369220949},{"$f":"IFERROR(VLOOKUP(F3476,Translation!$A:$C,3,FALSE),F3476)","v":"Prêts hypothécaires assurés au cours de la période selon le rapport d’amortissement total de la dette (ATD) moyen des emprunteurs détenant un prêt assuré par la SCHL (%)"},{"$f":"IFERROR(VLOOKUP(G3476,Translation!$A:$C,3,FALSE),G3476)","v":"37.7"},{"$f":"IFERROR(VLOOKUP(H3476,Translation!$A:$C,3,FALSE),H3476)","v":"Ontario"}]
[22,"T2 2019","PROPRIÉTAIRES-OCCUPANTS, À L’UNITÉ","Alberta",37.20381682109636,"Prêts hypothécaires assurés au cours de la période selon le rapport d’amortissement total de la dette (ATD) moyen des emprunteurs détenant un prêt assuré par la SCHL (%)","37.2","Alberta",{"$f":"IFERROR(VLOOKUP(A3479,Translation!$A:$C,3,FALSE),A3479)","v":22},{"$f":"IFERROR(VLOOKUP(B3479,Translation!$A:$C,3,FALSE),B3479)","v":"T2 2019"},{"$f":"IFERROR(VLOOKUP(C3479,Translation!$A:$C,3,FALSE),C3479)","v":"PROPRIÉTAIRES-OCCUPANTS, À L’UNITÉ"},{"$f":"IFERROR(VLOOKUP(D3479,Translation!$A:$C,3,FALSE),D3479)","v":"Alberta"},{"$f":"IFERROR(VLOOKUP(E3479,Translation!$A:$C,3,FALSE),E3479)","v":37.20381682109636},{"$f":"IFERROR(VLOOKUP(F3479,Translation!$A:$C,3,FALSE),F3479)","v":"Prêts hypothécaires assurés au cours de la période selon le rapport d’amortissement total de la dette (ATD) moyen des emprunteurs détenant un prêt assuré par la SCHL (%)"},{"$f":"IFERROR(VLOOKUP(G3479,Translation!$A:$C,3,FALSE),G3479)","v":"37.2"},{"$f":"IFERROR(VLOOKUP(H3479,Translation!$A:$C,3,FALSE),H3479)","v":"Alberta"}]
[22,"T1 2019","PROPRIÉTAIRES-OCCUPANTS, À L’UNITÉ","<= 30 %",56.753901699013298,"Prêts hypothécaires assurés au cours de la période selon le rapport d’amortissement brut de la dette (ABD) moyen des emprunteurs détenant un prêt assuré par la SCHL (%)","56.8"," <= 30 %",{"$f":"IFERROR(VLOOKUP(A3482,Translation!$A:$C,3,FALSE),A3482)","v":22},{"$f":"IFERROR(VLOOKUP(B3482,Translation!$A:$C,3,FALSE),B3482)","v":"T1 2019"},{"$f":"IFERROR(VLOOKUP(C3482,Translation!$A:$C,3,FALSE),C3482)","v":"PROPRIÉTAIRES-OCCUPANTS, À L’UNITÉ"},{"$f":"IFERROR(VLOOKUP(D3482,Translation!$A:$C,3,FALSE),D3482)","v":"<= 30 %"},{"$f":"IFERROR(VLOOKUP(E3482,Translation!$A:$C,3,FALSE),E3482)","v":56.753901699013298},{"$f":"IFERROR(VLOOKUP(F3482,Translation!$A:$C,3,FALSE),F3482)","v":"Prêts hypothécaires assurés au cours de la période selon le rapport d’amortissement brut de la dette (ABD) moyen des emprunteurs détenant un prêt assuré par la SCHL (%)"},{"$f":"IFERROR(VLOOKUP(G3482,Translation!$A:$C,3,FALSE),G3482)","v":"56.8"},{"$f":"IFERROR(VLOOKUP(H3482,Translation!$A:$C,3,FALSE),H3482)","v":" <= 30 %"}]
[22,"T1 2019","PROPRIÉTAIRES-OCCUPANTS, À L’UNITÉ","> 35 % <= 39 %",18.453443973841605,"Prêts hypothécaires assurés au cours de la période selon le rapport d’amortissement brut de la dette (ABD) moyen des emprunteurs détenant un prêt assuré par la SCHL (%)","18.5"," > 35 % <= 39 %",{"$f":"IFERROR(VLOOKUP(A3484,Translation!$A:$C,3,FALSE),A3484)","v":22},{"$f":"IFERROR(VLOOKUP(B3484,Translation!$A:$C,3,FALSE),B3484)","v":"T1 2019"},{"$f":"IFERROR(VLOOKUP(C3484,Translation!$A:$C,3,FALSE),C3484)","v":"PROPRIÉTAIRES-OCCUPANTS, À L’UNITÉ"},{"$f":"IFERROR(VLOOKUP(D3484,Translation!$A:$C,3,FALSE),D3484)","v":"> 35 % <= 39 %"},{"$f":"IFERROR(VLOOKUP(E3484,Translation!$A:$C,3,FALSE),E3484)","v":18.453443973841605},{"$f":"IFERROR(VLOOKUP(F3484,Translation!$A:$C,3,FALSE),F3484)","v":"Prêts hypothécaires assurés au cours de la période selon le rapport d’amortissement brut de la dette (ABD) moyen des emprunteurs détenant un prêt assuré par la SCHL (%)"},{"$f":"IFERROR(VLOOKUP(G3484,Translation!$A:$C,3,FALSE),G3484)","v":"18.5"},{"$f":"IFERROR(VLOOKUP(H3484,Translation!$A:$C,3,FALSE),H3484)","v":" > 35 % <= 39 %"}]
[22,"T1 2019","PROPRIÉTAIRES-OCCUPANTS, À L’UNITÉ","Rapport d'amortissement brut de la dette (ABD) moyen",27.666137550899201,"Prêts hypothécaires assurés au cours de la période selon le rapport d’amortissement brut de la dette (ABD) moyen des emprunteurs détenant un prêt assuré par la SCHL (%)","27.7","Rapport d'amortissement brut de la dette (ABD) moyen",{"$f":"IFERROR(VLOOKUP(A3485,Translation!$A:$C,3,FALSE),A3485)","v":22},{"$f":"IFERROR(VLOOKUP(B3485,Translation!$A:$C,3,FALSE),B3485)","v":"T1 2019"},{"$f":"IFERROR(VLOOKUP(C3485,Translation!$A:$C,3,FALSE),C3485)","v":"PROPRIÉTAIRES-OCCUPANTS, À L’UNITÉ"},{"$f":"IFERROR(VLOOKUP(D3485,Translation!$A:$C,3,FALSE),D3485)","v":"Rapport d'amortissement brut de la dette (ABD) moyen"},{"$f":"IFERROR(VLOOKUP(E3485,Translation!$A:$C,3,FALSE),E3485)","v":27.666137550899201},{"$f":"IFERROR(VLOOKUP(F3485,Translation!$A:$C,3,FALSE),F3485)","v":"Prêts hypothécaires assurés au cours de la période selon le rapport d’amortissement brut de la dette (ABD) moyen des emprunteurs détenant un prêt assuré par la SCHL (%)"},{"$f":"IFERROR(VLOOKUP(G3485,Translation!$A:$C,3,FALSE),G3485)","v":"27.7"},{"$f":"IFERROR(VLOOKUP(H3485,Translation!$A:$C,3,FALSE),H3485)","v":"Rapport d'amortissement brut de la dette (ABD) moyen"}]
[22,"T1 2019","PROPRIÉTAIRES-OCCUPANTS, À L’UNITÉ","Nouveau-Brunswick",21.228331781492475,"Prêts hypothécaires assurés au cours de la période selon le rapport d’amortissement brut de la dette (ABD) moyen des emprunteurs détenant un prêt assuré par la SCHL (%)","21.2","Nouveau-Brunswick",{"$f":"IFERROR(VLOOKUP(A3489,Translation!$A:$C,3,FALSE),A3489)","v":22},{"$f":"IFERROR(VLOOKUP(B3489,Translation!$A:$C,3,FALSE),B3489)","v":"T1 2019"},{"$f":"IFERROR(VLOOKUP(C3489,Translation!$A:$C,3,FALSE),C3489)","v":"PROPRIÉTAIRES-OCCUPANTS, À L’UNITÉ"},{"$f":"IFERROR(VLOOKUP(D3489,Translation!$A:$C,3,FALSE),D3489)","v":"Nouveau-Brunswick"},{"$f":"IFERROR(VLOOKUP(E3489,Translation!$A:$C,3,FALSE),E3489)","v":21.228331781492475},{"$f":"IFERROR(VLOOKUP(F3489,Translation!$A:$C,3,FALSE),F3489)","v":"Prêts hypothécaires assurés au cours de la période selon le rapport d’amortissement brut de la dette (ABD) moyen des emprunteurs détenant un prêt assuré par la SCHL (%)"},{"$f":"IFERROR(VLOOKUP(G3489,Translation!$A:$C,3,FALSE),G3489)","v":"21.2"},{"$f":"IFERROR(VLOOKUP(H3489,Translation!$A:$C,3,FALSE),H3489)","v":"Nouveau-Brunswick"}]
[22,"T1 2019","PROPRIÉTAIRES-OCCUPANTS, À L’UNITÉ","Québec",25.79772503832746,"Prêts hypothécaires assurés au cours de la période selon le rapport d’amortissement brut de la dette (ABD) moyen des emprunteurs détenant un prêt assuré par la SCHL (%)","25.8","Québec",{"$f":"IFERROR(VLOOKUP(A3490,Translation!$A:$C,3,FALSE),A3490)","v":22},{"$f":"IFERROR(VLOOKUP(B3490,Translation!$A:$C,3,FALSE),B3490)","v":"T1 2019"},{"$f":"IFERROR(VLOOKUP(C3490,Translation!$A:$C,3,FALSE),C3490)","v":"PROPRIÉTAIRES-OCCUPANTS, À L’UNITÉ"},{"$f":"IFERROR(VLOOKUP(D3490,Translation!$A:$C,3,FALSE),D3490)","v":"Québec"},{"$f":"IFERROR(VLOOKUP(E3490,Translation!$A:$C,3,FALSE),E3490)","v":25.79772503832746},{"$f":"IFERROR(VLOOKUP(F3490,Translation!$A:$C,3,FALSE),F3490)","v":"Prêts hypothécaires assurés au cours de la période selon le rapport d’amortissement brut de la dette (ABD) moyen des emprunteurs détenant un prêt assuré par la SCHL (%)"},{"$f":"IFERROR(VLOOKUP(G3490,Translation!$A:$C,3,FALSE),G3490)","v":"25.8"},{"$f":"IFERROR(VLOOKUP(H3490,Translation!$A:$C,3,FALSE),H3490)","v":"Québec"}]
[22,"T1 2019","PROPRIÉTAIRES-OCCUPANTS, À L’UNITÉ","Saskatchewan",24.813324816870804,"Prêts hypothécaires assurés au cours de la période selon le rapport d’amortissement brut de la dette (ABD) moyen des emprunteurs détenant un prêt assuré par la SCHL (%)","24.8","Saskatchewan",{"$f":"IFERROR(VLOOKUP(A3493,Translation!$A:$C,3,FALSE),A3493)","v":22},{"$f":"IFERROR(VLOOKUP(B3493,Translation!$A:$C,3,FALSE),B3493)","v":"T1 2019"},{"$f":"IFERROR(VLOOKUP(C3493,Translation!$A:$C,3,FALSE),C3493)","v":"PROPRIÉTAIRES-OCCUPANTS, À L’UNITÉ"},{"$f":"IFERROR(VLOOKUP(D3493,Translation!$A:$C,3,FALSE),D3493)","v":"Saskatchewan"},{"$f":"IFERROR(VLOOKUP(E3493,Translation!$A:$C,3,FALSE),E3493)","v":24.813324816870804},{"$f":"IFERROR(VLOOKUP(F3493,Translation!$A:$C,3,FALSE),F3493)","v":"Prêts hypothécaires assurés au cours de la période selon le rapport d’amortissement brut de la dette (ABD) moyen des emprunteurs détenant un prêt assuré par la SCHL (%)"},{"$f":"IFERROR(VLOOKUP(G3493,Translation!$A:$C,3,FALSE),G3493)","v":"24.8"},{"$f":"IFERROR(VLOOKUP(H3493,Translation!$A:$C,3,FALSE),H3493)","v":"Saskatchewan"}]
[22,"T1 2019","PROPRIÉTAIRES-OCCUPANTS, À L’UNITÉ","Colombie-Britannique",29.68043145729504,"Prêts hypothécaires assurés au cours de la période selon le rapport d’amortissement brut de la dette (ABD) moyen des emprunteurs détenant un prêt assuré par la SCHL (%)","29.7","Colombie-Britannique",{"$f":"IFERROR(VLOOKUP(A3495,Translation!$A:$C,3,FALSE),A3495)","v":22},{"$f":"IFERROR(VLOOKUP(B3495,Translation!$A:$C,3,FALSE),B3495)","v":"T1 2019"},{"$f":"IFERROR(VLOOKUP(C3495,Translation!$A:$C,3,FALSE),C3495)","v":"PROPRIÉTAIRES-OCCUPANTS, À L’UNITÉ"},{"$f":"IFERROR(VLOOKUP(D3495,Translation!$A:$C,3,FALSE),D3495)","v":"Colombie-Britannique"},{"$f":"IFERROR(VLOOKUP(E3495,Translation!$A:$C,3,FALSE),E3495)","v":29.68043145729504},{"$f":"IFERROR(VLOOKUP(F3495,Translation!$A:$C,3,FALSE),F3495)","v":"Prêts hypothécaires assurés au cours de la période selon le rapport d’amortissement brut de la dette (ABD) moyen des emprunteurs détenant un prêt assuré par la SCHL (%)"},{"$f":"IFERROR(VLOOKUP(G3495,Translation!$A:$C,3,FALSE),G3495)","v":"29.7"},{"$f":"IFERROR(VLOOKUP(H3495,Translation!$A:$C,3,FALSE),H3495)","v":"Colombie-Britannique"}]
[22,"T1 2019","PROPRIÉTAIRES-OCCUPANTS, À L’UNITÉ","> 35 % <= 40 %",34.2077957229912,"Prêts hypothécaires assurés au cours de la période selon le rapport d’amortissement total de la dette (ATD) moyen des emprunteurs détenant un prêt assuré par la SCHL (%)","34.2"," > 35 % <= 40 %",{"$f":"IFERROR(VLOOKUP(A3499,Translation!$A:$C,3,FALSE),A3499)","v":22},{"$f":"IFERROR(VLOOKUP(B3499,Translation!$A:$C,3,FALSE),B3499)","v":"T1 2019"},{"$f":"IFERROR(VLOOKUP(C3499,Translation!$A:$C,3,FALSE),C3499)","v":"PROPRIÉTAIRES-OCCUPANTS, À L’UNITÉ"},{"$f":"IFERROR(VLOOKUP(D3499,Translation!$A:$C,3,FALSE),D3499)","v":"> 35 % <= 40 %"},{"$f":"IFERROR(VLOOKUP(E3499,Translation!$A:$C,3,FALSE),E3499)","v":34.2077957229912},{"$f":"IFERROR(VLOOKUP(F3499,Translation!$A:$C,3,FALSE),F3499)","v":"Prêts hypothécaires assurés au cours de la période selon le rapport d’amortissement total de la dette (ATD) moyen des emprunteurs détenant un prêt assuré par la SCHL (%)"},{"$f":"IFERROR(VLOOKUP(G3499,Translation!$A:$C,3,FALSE),G3499)","v":"34.2"},{"$f":"IFERROR(VLOOKUP(H3499,Translation!$A:$C,3,FALSE),H3499)","v":" > 35 % <= 40 %"}]
[22,"T1 2019","PROPRIÉTAIRES-OCCUPANTS, À L’UNITÉ","> 40 % <= 44 %",37.576537763596093,"Prêts hypothécaires assurés au cours de la période selon le rapport d’amortissement total de la dette (ATD) moyen des emprunteurs détenant un prêt assuré par la SCHL (%)","37.6"," > 40 % <= 44 %",{"$f":"IFERROR(VLOOKUP(A3500,Translation!$A:$C,3,FALSE),A3500)","v":22},{"$f":"IFERROR(VLOOKUP(B3500,Translation!$A:$C,3,FALSE),B3500)","v":"T1 2019"},{"$f":"IFERROR(VLOOKUP(C3500,Translation!$A:$C,3,FALSE),C3500)","v":"PROPRIÉTAIRES-OCCUPANTS, À L’UNITÉ"},{"$f":"IFERROR(VLOOKUP(D3500,Translation!$A:$C,3,FALSE),D3500)","v":"> 40 % <= 44 %"},{"$f":"IFERROR(VLOOKUP(E3500,Translation!$A:$C,3,FALSE),E3500)","v":37.576537763596093},{"$f":"IFERROR(VLOOKUP(F3500,Translation!$A:$C,3,FALSE),F3500)","v":"Prêts hypothécaires assurés au cours de la période selon le rapport d’amortissement total de la dette (ATD) moyen des emprunteurs détenant un prêt assuré par la SCHL (%)"},{"$f":"IFERROR(VLOOKUP(G3500,Translation!$A:$C,3,FALSE),G3500)","v":"37.6"},{"$f":"IFERROR(VLOOKUP(H3500,Translation!$A:$C,3,FALSE),H3500)","v":" > 40 % <= 44 %"}]
[22,"T1 2019","PROPRIÉTAIRES-OCCUPANTS, À L’UNITÉ","Île-du-Prince-Édouard",35.539973273910519,"Prêts hypothécaires assurés au cours de la période selon le rapport d’amortissement total de la dette (ATD) moyen des emprunteurs détenant un prêt assuré par la SCHL (%)","35.5","Île-du-Prince-Édouard",{"$f":"IFERROR(VLOOKUP(A3503,Translation!$A:$C,3,FALSE),A3503)","v":22},{"$f":"IFERROR(VLOOKUP(B3503,Translation!$A:$C,3,FALSE),B3503)","v":"T1 2019"},{"$f":"IFERROR(VLOOKUP(C3503,Translation!$A:$C,3,FALSE),C3503)","v":"PROPRIÉTAIRES-OCCUPANTS, À L’UNITÉ"},{"$f":"IFERROR(VLOOKUP(D3503,Translation!$A:$C,3,FALSE),D3503)","v":"Île-du-Prince-Édouard"},{"$f":"IFERROR(VLOOKUP(E3503,Translation!$A:$C,3,FALSE),E3503)","v":35.539973273910519},{"$f":"IFERROR(VLOOKUP(F3503,Translation!$A:$C,3,FALSE),F3503)","v":"Prêts hypothécaires assurés au cours de la période selon le rapport d’amortissement total de la dette (ATD) moyen des emprunteurs détenant un prêt assuré par la SCHL (%)"},{"$f":"IFERROR(VLOOKUP(G3503,Translation!$A:$C,3,FALSE),G3503)","v":"35.5"},{"$f":"IFERROR(VLOOKUP(H3503,Translation!$A:$C,3,FALSE),H3503)","v":"Île-du-Prince-Édouard"}]
[22,"T1 2019","PROPRIÉTAIRES-OCCUPANTS, À L’UNITÉ","Nouvelle-Écosse",35.680394306134566,"Prêts hypothécaires assurés au cours de la période selon le rapport d’amortissement total de la dette (ATD) moyen des emprunteurs détenant un prêt assuré par la SCHL (%)","35.7","Nouvelle-Écosse",{"$f":"IFERROR(VLOOKUP(A3504,Translation!$A:$C,3,FALSE),A3504)","v":22},{"$f":"IFERROR(VLOOKUP(B3504,Translation!$A:$C,3,FALSE),B3504)","v":"T1 2019"},{"$f":"IFERROR(VLOOKUP(C3504,Translation!$A:$C,3,FALSE),C3504)","v":"PROPRIÉTAIRES-OCCUPANTS, À L’UNITÉ"},{"$f":"IFERROR(VLOOKUP(D3504,Translation!$A:$C,3,FALSE),D3504)","v":"Nouvelle-Écosse"},{"$f":"IFERROR(VLOOKUP(E3504,Translation!$A:$C,3,FALSE),E3504)","v":35.680394306134566},{"$f":"IFERROR(VLOOKUP(F3504,Translation!$A:$C,3,FALSE),F3504)","v":"Prêts hypothécaires assurés au cours de la période selon le rapport d’amortissement total de la dette (ATD) moyen des emprunteurs détenant un prêt assuré par la SCHL (%)"},{"$f":"IFERROR(VLOOKUP(G3504,Translation!$A:$C,3,FALSE),G3504)","v":"35.7"},{"$f":"IFERROR(VLOOKUP(H3504,Translation!$A:$C,3,FALSE),H3504)","v":"Nouvelle-Écosse"}]
[22,"T1 2019","PROPRIÉTAIRES-OCCUPANTS, À L’UNITÉ","Manitoba",36.679476984580269,"Prêts hypothécaires assurés au cours de la période selon le rapport d’amortissement total de la dette (ATD) moyen des emprunteurs détenant un prêt assuré par la SCHL (%)","36.7","Manitoba",{"$f":"IFERROR(VLOOKUP(A3508,Translation!$A:$C,3,FALSE),A3508)","v":22},{"$f":"IFERROR(VLOOKUP(B3508,Translation!$A:$C,3,FALSE),B3508)","v":"T1 2019"},{"$f":"IFERROR(VLOOKUP(C3508,Translation!$A:$C,3,FALSE),C3508)","v":"PROPRIÉTAIRES-OCCUPANTS, À L’UNITÉ"},{"$f":"IFERROR(VLOOKUP(D3508,Translation!$A:$C,3,FALSE),D3508)","v":"Manitoba"},{"$f":"IFERROR(VLOOKUP(E3508,Translation!$A:$C,3,FALSE),E3508)","v":36.679476984580269},{"$f":"IFERROR(VLOOKUP(F3508,Translation!$A:$C,3,FALSE),F3508)","v":"Prêts hypothécaires assurés au cours de la période selon le rapport d’amortissement total de la dette (ATD) moyen des emprunteurs détenant un prêt assuré par la SCHL (%)"},{"$f":"IFERROR(VLOOKUP(G3508,Translation!$A:$C,3,FALSE),G3508)","v":"36.7"},{"$f":"IFERROR(VLOOKUP(H3508,Translation!$A:$C,3,FALSE),H3508)","v":"Manitoba"}]
[22,"T1 2019","PROPRIÉTAIRES-OCCUPANTS, À L’UNITÉ","Alberta",37.421765638585008,"Prêts hypothécaires assurés au cours de la période selon le rapport d’amortissement total de la dette (ATD) moyen des emprunteurs détenant un prêt assuré par la SCHL (%)","37.4","Alberta",{"$f":"IFERROR(VLOOKUP(A3510,Translation!$A:$C,3,FALSE),A3510)","v":22},{"$f":"IFERROR(VLOOKUP(B3510,Translation!$A:$C,3,FALSE),B3510)","v":"T1 2019"},{"$f":"IFERROR(VLOOKUP(C3510,Translation!$A:$C,3,FALSE),C3510)","v":"PROPRIÉTAIRES-OCCUPANTS, À L’UNITÉ"},{"$f":"IFERROR(VLOOKUP(D3510,Translation!$A:$C,3,FALSE),D3510)","v":"Alberta"},{"$f":"IFERROR(VLOOKUP(E3510,Translation!$A:$C,3,FALSE),E3510)","v":37.421765638585008},{"$f":"IFERROR(VLOOKUP(F3510,Translation!$A:$C,3,FALSE),F3510)","v":"Prêts hypothécaires assurés au cours de la période selon le rapport d’amortissement total de la dette (ATD) moyen des emprunteurs détenant un prêt assuré par la SCHL (%)"},{"$f":"IFERROR(VLOOKUP(G3510,Translation!$A:$C,3,FALSE),G3510)","v":"37.4"},{"$f":"IFERROR(VLOOKUP(H3510,Translation!$A:$C,3,FALSE),H3510)","v":"Alberta"}]
[22,"T4 2018","PROPRIÉTAIRES-OCCUPANTS, À L’UNITÉ","<= 30 %",58.205238480241363,"Prêts hypothécaires assurés au cours de la période selon le rapport d’amortissement brut de la dette (ABD) moyen des emprunteurs détenant un prêt assuré par la SCHL (%)","58.2"," <= 30 %",{"$f":"IFERROR(VLOOKUP(A3513,Translation!$A:$C,3,FALSE),A3513)","v":22},{"$f":"IFERROR(VLOOKUP(B3513,Translation!$A:$C,3,FALSE),B3513)","v":"T4 2018"},{"$f":"IFERROR(VLOOKUP(C3513,Translation!$A:$C,3,FALSE),C3513)","v":"PROPRIÉTAIRES-OCCUPANTS, À L’UNITÉ"},{"$f":"IFERROR(VLOOKUP(D3513,Translation!$A:$C,3,FALSE),D3513)","v":"<= 30 %"},{"$f":"IFERROR(VLOOKUP(E3513,Translation!$A:$C,3,FALSE),E3513)","v":58.205238480241363},{"$f":"IFERROR(VLOOKUP(F3513,Translation!$A:$C,3,FALSE),F3513)","v":"Prêts hypothécaires assurés au cours de la période selon le rapport d’amortissement brut de la dette (ABD) moyen des emprunteurs détenant un prêt assuré par la SCHL (%)"},{"$f":"IFERROR(VLOOKUP(G3513,Translation!$A:$C,3,FALSE),G3513)","v":"58.2"},{"$f":"IFERROR(VLOOKUP(H3513,Translation!$A:$C,3,FALSE),H3513)","v":" <= 30 %"}]
[22,"Cumul 2017","PROPRIÉTAIRES-OCCUPANTS, À L’UNITÉ","<= 30 %",61.381332427416254,"Prêts hypothécaires assurés au cours de la période selon le rapport d’amortissement brut de la dette (ABD) moyen des emprunteurs détenant un prêt assuré par la SCHL (%)","61.4"," <= 30 %",{"$f":"IFERROR(VLOOKUP(A3514,Translation!$A:$C,3,FALSE),A3514)","v":22},{"$f":"IFERROR(VLOOKUP(B3514,Translation!$A:$C,3,FALSE),B3514)","v":"Cumul 2017"},{"$f":"IFERROR(VLOOKUP(C3514,Translation!$A:$C,3,FALSE),C3514)","v":"PROPRIÉTAIRES-OCCUPANTS, À L’UNITÉ"},{"$f":"IFERROR(VLOOKUP(D3514,Translation!$A:$C,3,FALSE),D3514)","v":"<= 30 %"},{"$f":"IFERROR(VLOOKUP(E3514,Translation!$A:$C,3,FALSE),E3514)","v":61.381332427416254},{"$f":"IFERROR(VLOOKUP(F3514,Translation!$A:$C,3,FALSE),F3514)","v":"Prêts hypothécaires assurés au cours de la période selon le rapport d’amortissement brut de la dette (ABD) moyen des emprunteurs détenant un prêt assuré par la SCHL (%)"},{"$f":"IFERROR(VLOOKUP(G3514,Translation!$A:$C,3,FALSE),G3514)","v":"61.4"},{"$f":"IFERROR(VLOOKUP(H3514,Translation!$A:$C,3,FALSE),H3514)","v":" <= 30 %"}]
[22,"Cumul 2017","PROPRIÉTAIRES-OCCUPANTS, À L’UNITÉ","> 35 % <= 39 %",15.063017371311899,"Prêts hypothécaires assurés au cours de la période selon le rapport d’amortissement brut de la dette (ABD) moyen des emprunteurs détenant un prêt assuré par la SCHL (%)","15.1"," > 35 % <= 39 %",{"$f":"IFERROR(VLOOKUP(A3518,Translation!$A:$C,3,FALSE),A3518)","v":22},{"$f":"IFERROR(VLOOKUP(B3518,Translation!$A:$C,3,FALSE),B3518)","v":"Cumul 2017"},{"$f":"IFERROR(VLOOKUP(C3518,Translation!$A:$C,3,FALSE),C3518)","v":"PROPRIÉTAIRES-OCCUPANTS, À L’UNITÉ"},{"$f":"IFERROR(VLOOKUP(D3518,Translation!$A:$C,3,FALSE),D3518)","v":"> 35 % <= 39 %"},{"$f":"IFERROR(VLOOKUP(E3518,Translation!$A:$C,3,FALSE),E3518)","v":15.063017371311899},{"$f":"IFERROR(VLOOKUP(F3518,Translation!$A:$C,3,FALSE),F3518)","v":"Prêts hypothécaires assurés au cours de la période selon le rapport d’amortissement brut de la dette (ABD) moyen des emprunteurs détenant un prêt assuré par la SCHL (%)"},{"$f":"IFERROR(VLOOKUP(G3518,Translation!$A:$C,3,FALSE),G3518)","v":"15.1"},{"$f":"IFERROR(VLOOKUP(H3518,Translation!$A:$C,3,FALSE),H3518)","v":" > 35 % <= 39 %"}]
[22,"Cumul 2017","PROPRIÉTAIRES-OCCUPANTS, À L’UNITÉ","> 39 %",2.7710132097045529E-3,"Prêts hypothécaires assurés au cours de la période selon le rapport d’amortissement brut de la dette (ABD) moyen des emprunteurs détenant un prêt assuré par la SCHL (%)","0.0"," > 39 %",{"$f":"IFERROR(VLOOKUP(A3519,Translation!$A:$C,3,FALSE),A3519)","v":22},{"$f":"IFERROR(VLOOKUP(B3519,Translation!$A:$C,3,FALSE),B3519)","v":"Cumul 2017"},{"$f":"IFERROR(VLOOKUP(C3519,Translation!$A:$C,3,FALSE),C3519)","v":"PROPRIÉTAIRES-OCCUPANTS, À L’UNITÉ"},{"$f":"IFERROR(VLOOKUP(D3519,Translation!$A:$C,3,FALSE),D3519)","v":"> 39 %"},{"$f":"IFERROR(VLOOKUP(E3519,Translation!$A:$C,3,FALSE),E3519)","v":2.7710132097045529E-3},{"$f":"IFERROR(VLOOKUP(F3519,Translation!$A:$C,3,FALSE),F3519)","v":"Prêts hypothécaires assurés au cours de la période selon le rapport d’amortissement brut de la dette (ABD) moyen des emprunteurs détenant un prêt assuré par la SCHL (%)"},{"$f":"IFERROR(VLOOKUP(G3519,Translation!$A:$C,3,FALSE),G3519)","v":"0.0"},{"$f":"IFERROR(VLOOKUP(H3519,Translation!$A:$C,3,FALSE),H3519)","v":" > 39 %"}]
[22,"Cumul 2017","PROPRIÉTAIRES-OCCUPANTS, À L’UNITÉ","Rapport d'amortissement brut de la dette (ABD) moyen",26.917120120638256,"Prêts hypothécaires assurés au cours de la période selon le rapport d’amortissement brut de la dette (ABD) moyen des emprunteurs détenant un prêt assuré par la SCHL (%)","26.9","Rapport d'amortissement brut de la dette (ABD) moyen",{"$f":"IFERROR(VLOOKUP(A3521,Translation!$A:$C,3,FALSE),A3521)","v":22},{"$f":"IFERROR(VLOOKUP(B3521,Translation!$A:$C,3,FALSE),B3521)","v":"Cumul 2017"},{"$f":"IFERROR(VLOOKUP(C3521,Translation!$A:$C,3,FALSE),C3521)","v":"PROPRIÉTAIRES-OCCUPANTS, À L’UNITÉ"},{"$f":"IFERROR(VLOOKUP(D3521,Translation!$A:$C,3,FALSE),D3521)","v":"Rapport d'amortissement brut de la dette (ABD) moyen"},{"$f":"IFERROR(VLOOKUP(E3521,Translation!$A:$C,3,FALSE),E3521)","v":26.917120120638256},{"$f":"IFERROR(VLOOKUP(F3521,Translation!$A:$C,3,FALSE),F3521)","v":"Prêts hypothécaires assurés au cours de la période selon le rapport d’amortissement brut de la dette (ABD) moyen des emprunteurs détenant un prêt assuré par la SCHL (%)"},{"$f":"IFERROR(VLOOKUP(G3521,Translation!$A:$C,3,FALSE),G3521)","v":"26.9"},{"$f":"IFERROR(VLOOKUP(H3521,Translation!$A:$C,3,FALSE),H3521)","v":"Rapport d'amortissement brut de la dette (ABD) moyen"}]
[22,"T4 2018","PROPRIÉTAIRES-OCCUPANTS, À L’UNITÉ","Nouvelle-Écosse",22.645023532916756,"Prêts hypothécaires assurés au cours de la période selon le rapport d’amortissement brut de la dette (ABD) moyen des emprunteurs détenant un prêt assuré par la SCHL (%)","22.6","Nouvelle-Écosse",{"$f":"IFERROR(VLOOKUP(A3524,Translation!$A:$C,3,FALSE),A3524)","v":22},{"$f":"IFERROR(VLOOKUP(B3524,Translation!$A:$C,3,FALSE),B3524)","v":"T4 2018"},{"$f":"IFERROR(VLOOKUP(C3524,Translation!$A:$C,3,FALSE),C3524)","v":"PROPRIÉTAIRES-OCCUPANTS, À L’UNITÉ"},{"$f":"IFERROR(VLOOKUP(D3524,Translation!$A:$C,3,FALSE),D3524)","v":"Nouvelle-Écosse"},{"$f":"IFERROR(VLOOKUP(E3524,Translation!$A:$C,3,FALSE),E3524)","v":22.645023532916756},{"$f":"IFERROR(VLOOKUP(F3524,Translation!$A:$C,3,FALSE),F3524)","v":"Prêts hypothécaires assurés au cours de la période selon le rapport d’amortissement brut de la dette (ABD) moyen des emprunteurs détenant un prêt assuré par la SCHL (%)"},{"$f":"IFERROR(VLOOKUP(G3524,Translation!$A:$C,3,FALSE),G3524)","v":"22.6"},{"$f":"IFERROR(VLOOKUP(H3524,Translation!$A:$C,3,FALSE),H3524)","v":"Nouvelle-Écosse"}]
[22,"T4 2018","PROPRIÉTAIRES-OCCUPANTS, À L’UNITÉ","Ontario",29.577794070816434,"Prêts hypothécaires assurés au cours de la période selon le rapport d’amortissement brut de la dette (ABD) moyen des emprunteurs détenant un prêt assuré par la SCHL (%)","29.6","Ontario",{"$f":"IFERROR(VLOOKUP(A3527,Translation!$A:$C,3,FALSE),A3527)","v":22},{"$f":"IFERROR(VLOOKUP(B3527,Translation!$A:$C,3,FALSE),B3527)","v":"T4 2018"},{"$f":"IFERROR(VLOOKUP(C3527,Translation!$A:$C,3,FALSE),C3527)","v":"PROPRIÉTAIRES-OCCUPANTS, À L’UNITÉ"},{"$f":"IFERROR(VLOOKUP(D3527,Translation!$A:$C,3,FALSE),D3527)","v":"Ontario"},{"$f":"IFERROR(VLOOKUP(E3527,Translation!$A:$C,3,FALSE),E3527)","v":29.577794070816434},{"$f":"IFERROR(VLOOKUP(F3527,Translation!$A:$C,3,FALSE),F3527)","v":"Prêts hypothécaires assurés au cours de la période selon le rapport d’amortissement brut de la dette (ABD) moyen des emprunteurs détenant un prêt assuré par la SCHL (%)"},{"$f":"IFERROR(VLOOKUP(G3527,Translation!$A:$C,3,FALSE),G3527)","v":"29.6"},{"$f":"IFERROR(VLOOKUP(H3527,Translation!$A:$C,3,FALSE),H3527)","v":"Ontario"}]
[22,"T4 2018","PROPRIÉTAIRES-OCCUPANTS, À L’UNITÉ","Saskatchewan",25.081242016782056,"Prêts hypothécaires assurés au cours de la période selon le rapport d’amortissement brut de la dette (ABD) moyen des emprunteurs détenant un prêt assuré par la SCHL (%)","25.1","Saskatchewan",{"$f":"IFERROR(VLOOKUP(A3529,Translation!$A:$C,3,FALSE),A3529)","v":22},{"$f":"IFERROR(VLOOKUP(B3529,Translation!$A:$C,3,FALSE),B3529)","v":"T4 2018"},{"$f":"IFERROR(VLOOKUP(C3529,Translation!$A:$C,3,FALSE),C3529)","v":"PROPRIÉTAIRES-OCCUPANTS, À L’UNITÉ"},{"$f":"IFERROR(VLOOKUP(D3529,Translation!$A:$C,3,FALSE),D3529)","v":"Saskatchewan"},{"$f":"IFERROR(VLOOKUP(E3529,Translation!$A:$C,3,FALSE),E3529)","v":25.081242016782056},{"$f":"IFERROR(VLOOKUP(F3529,Translation!$A:$C,3,FALSE),F3529)","v":"Prêts hypothécaires assurés au cours de la période selon le rapport d’amortissement brut de la dette (ABD) moyen des emprunteurs détenant un prêt assuré par la SCHL (%)"},{"$f":"IFERROR(VLOOKUP(G3529,Translation!$A:$C,3,FALSE),G3529)","v":"25.1"},{"$f":"IFERROR(VLOOKUP(H3529,Translation!$A:$C,3,FALSE),H3529)","v":"Saskatchewan"}]
[22,"T4 2018","PROPRIÉTAIRES-OCCUPANTS, À L’UNITÉ","Territoires",23.63693425173782,"Prêts hypothécaires assurés au cours de la période selon le rapport d’amortissement brut de la dette (ABD) moyen des emprunteurs détenant un prêt assuré par la SCHL (%)","23.6","Territoires",{"$f":"IFERROR(VLOOKUP(A3532,Translation!$A:$C,3,FALSE),A3532)","v":22},{"$f":"IFERROR(VLOOKUP(B3532,Translation!$A:$C,3,FALSE),B3532)","v":"T4 2018"},{"$f":"IFERROR(VLOOKUP(C3532,Translation!$A:$C,3,FALSE),C3532)","v":"PROPRIÉTAIRES-OCCUPANTS, À L’UNITÉ"},{"$f":"IFERROR(VLOOKUP(D3532,Translation!$A:$C,3,FALSE),D3532)","v":"Territoires"},{"$f":"IFERROR(VLOOKUP(E3532,Translation!$A:$C,3,FALSE),E3532)","v":23.63693425173782},{"$f":"IFERROR(VLOOKUP(F3532,Translation!$A:$C,3,FALSE),F3532)","v":"Prêts hypothécaires assurés au cours de la période selon le rapport d’amortissement brut de la dette (ABD) moyen des emprunteurs détenant un prêt assuré par la SCHL (%)"},{"$f":"IFERROR(VLOOKUP(G3532,Translation!$A:$C,3,FALSE),G3532)","v":"23.6"},{"$f":"IFERROR(VLOOKUP(H3532,Translation!$A:$C,3,FALSE),H3532)","v":"Territoires"}]
[22,"Cumul 2017","PROPRIÉTAIRES-OCCUPANTS, À L’UNITÉ","Nouvelle-Écosse",22.057422655253323,"Prêts hypothécaires assurés au cours de la période selon le rapport d’amortissement brut de la dette (ABD) moyen des emprunteurs détenant un prêt assuré par la SCHL (%)","22.1","Nouvelle-Écosse",{"$f":"IFERROR(VLOOKUP(A3535,Translation!$A:$C,3,FALSE),A3535)","v":22},{"$f":"IFERROR(VLOOKUP(B3535,Translation!$A:$C,3,FALSE),B3535)","v":"Cumul 2017"},{"$f":"IFERROR(VLOOKUP(C3535,Translation!$A:$C,3,FALSE),C3535)","v":"PROPRIÉTAIRES-OCCUPANTS, À L’UNITÉ"},{"$f":"IFERROR(VLOOKUP(D3535,Translation!$A:$C,3,FALSE),D3535)","v":"Nouvelle-Écosse"},{"$f":"IFERROR(VLOOKUP(E3535,Translation!$A:$C,3,FALSE),E3535)","v":22.057422655253323},{"$f":"IFERROR(VLOOKUP(F3535,Translation!$A:$C,3,FALSE),F3535)","v":"Prêts hypothécaires assurés au cours de la période selon le rapport d’amortissement brut de la dette (ABD) moyen des emprunteurs détenant un prêt assuré par la SCHL (%)"},{"$f":"IFERROR(VLOOKUP(G3535,Translation!$A:$C,3,FALSE),G3535)","v":"22.1"},{"$f":"IFERROR(VLOOKUP(H3535,Translation!$A:$C,3,FALSE),H3535)","v":"Nouvelle-Écosse"}]
[22,"Cumul 2017","PROPRIÉTAIRES-OCCUPANTS, À L’UNITÉ","Québec",25.322499265714526,"Prêts hypothécaires assurés au cours de la période selon le rapport d’amortissement brut de la dette (ABD) moyen des emprunteurs détenant un prêt assuré par la SCHL (%)","25.3","Québec",{"$f":"IFERROR(VLOOKUP(A3537,Translation!$A:$C,3,FALSE),A3537)","v":22},{"$f":"IFERROR(VLOOKUP(B3537,Translation!$A:$C,3,FALSE),B3537)","v":"Cumul 2017"},{"$f":"IFERROR(VLOOKUP(C3537,Translation!$A:$C,3,FALSE),C3537)","v":"PROPRIÉTAIRES-OCCUPANTS, À L’UNITÉ"},{"$f":"IFERROR(VLOOKUP(D3537,Translation!$A:$C,3,FALSE),D3537)","v":"Québec"},{"$f":"IFERROR(VLOOKUP(E3537,Translation!$A:$C,3,FALSE),E3537)","v":25.322499265714526},{"$f":"IFERROR(VLOOKUP(F3537,Translation!$A:$C,3,FALSE),F3537)","v":"Prêts hypothécaires assurés au cours de la période selon le rapport d’amortissement brut de la dette (ABD) moyen des emprunteurs détenant un prêt assuré par la SCHL (%)"},{"$f":"IFERROR(VLOOKUP(G3537,Translation!$A:$C,3,FALSE),G3537)","v":"25.3"},{"$f":"IFERROR(VLOOKUP(H3537,Translation!$A:$C,3,FALSE),H3537)","v":"Québec"}]
[22,"Cumul 2017","PROPRIÉTAIRES-OCCUPANTS, À L’UNITÉ","Ontario",28.932635273922848,"Prêts hypothécaires assurés au cours de la période selon le rapport d’amortissement brut de la dette (ABD) moyen des emprunteurs détenant un prêt assuré par la SCHL (%)","28.9","Ontario",{"$f":"IFERROR(VLOOKUP(A3538,Translation!$A:$C,3,FALSE),A3538)","v":22},{"$f":"IFERROR(VLOOKUP(B3538,Translation!$A:$C,3,FALSE),B3538)","v":"Cumul 2017"},{"$f":"IFERROR(VLOOKUP(C3538,Translation!$A:$C,3,FALSE),C3538)","v":"PROPRIÉTAIRES-OCCUPANTS, À L’UNITÉ"},{"$f":"IFERROR(VLOOKUP(D3538,Translation!$A:$C,3,FALSE),D3538)","v":"Ontario"},{"$f":"IFERROR(VLOOKUP(E3538,Translation!$A:$C,3,FALSE),E3538)","v":28.932635273922848},{"$f":"IFERROR(VLOOKUP(F3538,Translation!$A:$C,3,FALSE),F3538)","v":"Prêts hypothécaires assurés au cours de la période selon le rapport d’amortissement brut de la dette (ABD) moyen des emprunteurs détenant un prêt assuré par la SCHL (%)"},{"$f":"IFERROR(VLOOKUP(G3538,Translation!$A:$C,3,FALSE),G3538)","v":"28.9"},{"$f":"IFERROR(VLOOKUP(H3538,Translation!$A:$C,3,FALSE),H3538)","v":"Ontario"}]
[22,"Cumul 2017","PROPRIÉTAIRES-OCCUPANTS, À L’UNITÉ","Saskatchewan",24.596383207768607,"Prêts hypothécaires assurés au cours de la période selon le rapport d’amortissement brut de la dette (ABD) moyen des emprunteurs détenant un prêt assuré par la SCHL (%)","24.6","Saskatchewan",{"$f":"IFERROR(VLOOKUP(A3540,Translation!$A:$C,3,FALSE),A3540)","v":22},{"$f":"IFERROR(VLOOKUP(B3540,Translation!$A:$C,3,FALSE),B3540)","v":"Cumul 2017"},{"$f":"IFERROR(VLOOKUP(C3540,Translation!$A:$C,3,FALSE),C3540)","v":"PROPRIÉTAIRES-OCCUPANTS, À L’UNITÉ"},{"$f":"IFERROR(VLOOKUP(D3540,Translation!$A:$C,3,FALSE),D3540)","v":"Saskatchewan"},{"$f":"IFERROR(VLOOKUP(E3540,Translation!$A:$C,3,FALSE),E3540)","v":24.596383207768607},{"$f":"IFERROR(VLOOKUP(F3540,Translation!$A:$C,3,FALSE),F3540)","v":"Prêts hypothécaires assurés au cours de la période selon le rapport d’amortissement brut de la dette (ABD) moyen des emprunteurs détenant un prêt assuré par la SCHL (%)"},{"$f":"IFERROR(VLOOKUP(G3540,Translation!$A:$C,3,FALSE),G3540)","v":"24.6"},{"$f":"IFERROR(VLOOKUP(H3540,Translation!$A:$C,3,FALSE),H3540)","v":"Saskatchewan"}]
[22,"Cumul 2017","PROPRIÉTAIRES-OCCUPANTS, À L’UNITÉ","Territoires",24.464353787571408,"Prêts hypothécaires assurés au cours de la période selon le rapport d’amortissement brut de la dette (ABD) moyen des emprunteurs détenant un prêt assuré par la SCHL (%)","24.5","Territoires",{"$f":"IFERROR(VLOOKUP(A3543,Translation!$A:$C,3,FALSE),A3543)","v":22},{"$f":"IFERROR(VLOOKUP(B3543,Translation!$A:$C,3,FALSE),B3543)","v":"Cumul 2017"},{"$f":"IFERROR(VLOOKUP(C3543,Translation!$A:$C,3,FALSE),C3543)","v":"PROPRIÉTAIRES-OCCUPANTS, À L’UNITÉ"},{"$f":"IFERROR(VLOOKUP(D3543,Translation!$A:$C,3,FALSE),D3543)","v":"Territoires"},{"$f":"IFERROR(VLOOKUP(E3543,Translation!$A:$C,3,FALSE),E3543)","v":24.464353787571408},{"$f":"IFERROR(VLOOKUP(F3543,Translation!$A:$C,3,FALSE),F3543)","v":"Prêts hypothécaires assurés au cours de la période selon le rapport d’amortissement brut de la dette (ABD) moyen des emprunteurs détenant un prêt assuré par la SCHL (%)"},{"$f":"IFERROR(VLOOKUP(G3543,Translation!$A:$C,3,FALSE),G3543)","v":"24.5"},{"$f":"IFERROR(VLOOKUP(H3543,Translation!$A:$C,3,FALSE),H3543)","v":"Territoires"}]
[22,"Cumul 2017","PROPRIÉTAIRES-OCCUPANTS, À L’UNITÉ","<= 30 %",13.748883422577029,"Prêts hypothécaires assurés au cours de la période selon le rapport d’amortissement total de la dette (ATD) moyen des emprunteurs détenant un prêt assuré par la SCHL (%)","13.7"," <= 30 %",{"$f":"IFERROR(VLOOKUP(A3545,Translation!$A:$C,3,FALSE),A3545)","v":22},{"$f":"IFERROR(VLOOKUP(B3545,Translation!$A:$C,3,FALSE),B3545)","v":"Cumul 2017"},{"$f":"IFERROR(VLOOKUP(C3545,Translation!$A:$C,3,FALSE),C3545)","v":"PROPRIÉTAIRES-OCCUPANTS, À L’UNITÉ"},{"$f":"IFERROR(VLOOKUP(D3545,Translation!$A:$C,3,FALSE),D3545)","v":"<= 30 %"},{"$f":"IFERROR(VLOOKUP(E3545,Translation!$A:$C,3,FALSE),E3545)","v":13.748883422577029},{"$f":"IFERROR(VLOOKUP(F3545,Translation!$A:$C,3,FALSE),F3545)","v":"Prêts hypothécaires assurés au cours de la période selon le rapport d’amortissement total de la dette (ATD) moyen des emprunteurs détenant un prêt assuré par la SCHL (%)"},{"$f":"IFERROR(VLOOKUP(G3545,Translation!$A:$C,3,FALSE),G3545)","v":"13.7"},{"$f":"IFERROR(VLOOKUP(H3545,Translation!$A:$C,3,FALSE),H3545)","v":" <= 30 %"}]
[22,"T4 2018","PROPRIÉTAIRES-OCCUPANTS, À L’UNITÉ","> 35 % <= 40 %",33.485424866747337,"Prêts hypothécaires assurés au cours de la période selon le rapport d’amortissement total de la dette (ATD) moyen des emprunteurs détenant un prêt assuré par la SCHL (%)","33.5"," > 35 % <= 40 %",{"$f":"IFERROR(VLOOKUP(A3548,Translation!$A:$C,3,FALSE),A3548)","v":22},{"$f":"IFERROR(VLOOKUP(B3548,Translation!$A:$C,3,FALSE),B3548)","v":"T4 2018"},{"$f":"IFERROR(VLOOKUP(C3548,Translation!$A:$C,3,FALSE),C3548)","v":"PROPRIÉTAIRES-OCCUPANTS, À L’UNITÉ"},{"$f":"IFERROR(VLOOKUP(D3548,Translation!$A:$C,3,FALSE),D3548)","v":"> 35 % <= 40 %"},{"$f":"IFERROR(VLOOKUP(E3548,Translation!$A:$C,3,FALSE),E3548)","v":33.485424866747337},{"$f":"IFERROR(VLOOKUP(F3548,Translation!$A:$C,3,FALSE),F3548)","v":"Prêts hypothécaires assurés au cours de la période selon le rapport d’amortissement total de la dette (ATD) moyen des emprunteurs détenant un prêt assuré par la SCHL (%)"},{"$f":"IFERROR(VLOOKUP(G3548,Translation!$A:$C,3,FALSE),G3548)","v":"33.5"},{"$f":"IFERROR(VLOOKUP(H3548,Translation!$A:$C,3,FALSE),H3548)","v":" > 35 % <= 40 %"}]
[22,"Cumul 2017","PROPRIÉTAIRES-OCCUPANTS, À L’UNITÉ","> 40 % <= 44 %",34.177733622578167,"Prêts hypothécaires assurés au cours de la période selon le rapport d’amortissement total de la dette (ATD) moyen des emprunteurs détenant un prêt assuré par la SCHL (%)","34.2"," > 40 % <= 44 %",{"$f":"IFERROR(VLOOKUP(A3551,Translation!$A:$C,3,FALSE),A3551)","v":22},{"$f":"IFERROR(VLOOKUP(B3551,Translation!$A:$C,3,FALSE),B3551)","v":"Cumul 2017"},{"$f":"IFERROR(VLOOKUP(C3551,Translation!$A:$C,3,FALSE),C3551)","v":"PROPRIÉTAIRES-OCCUPANTS, À L’UNITÉ"},{"$f":"IFERROR(VLOOKUP(D3551,Translation!$A:$C,3,FALSE),D3551)","v":"> 40 % <= 44 %"},{"$f":"IFERROR(VLOOKUP(E3551,Translation!$A:$C,3,FALSE),E3551)","v":34.177733622578167},{"$f":"IFERROR(VLOOKUP(F3551,Translation!$A:$C,3,FALSE),F3551)","v":"Prêts hypothécaires assurés au cours de la période selon le rapport d’amortissement total de la dette (ATD) moyen des emprunteurs détenant un prêt assuré par la SCHL (%)"},{"$f":"IFERROR(VLOOKUP(G3551,Translation!$A:$C,3,FALSE),G3551)","v":"34.2"},{"$f":"IFERROR(VLOOKUP(H3551,Translation!$A:$C,3,FALSE),H3551)","v":" > 40 % <= 44 %"}]
[22,"Cumul 2017","PROPRIÉTAIRES-OCCUPANTS, À L’UNITÉ","Rapport d'amortissement total de la dette (ATD) moyen",36.636625926613775,"Prêts hypothécaires assurés au cours de la période selon le rapport d’amortissement total de la dette (ATD) moyen des emprunteurs détenant un prêt assuré par la SCHL (%)","36.6","Rapport d'amortissement total de la dette (ATD) moyen",{"$f":"IFERROR(VLOOKUP(A3554,Translation!$A:$C,3,FALSE),A3554)","v":22},{"$f":"IFERROR(VLOOKUP(B3554,Translation!$A:$C,3,FALSE),B3554)","v":"Cumul 2017"},{"$f":"IFERROR(VLOOKUP(C3554,Translation!$A:$C,3,FALSE),C3554)","v":"PROPRIÉTAIRES-OCCUPANTS, À L’UNITÉ"},{"$f":"IFERROR(VLOOKUP(D3554,Translation!$A:$C,3,FALSE),D3554)","v":"Rapport d'amortissement total de la dette (ATD) moyen"},{"$f":"IFERROR(VLOOKUP(E3554,Translation!$A:$C,3,FALSE),E3554)","v":36.636625926613775},{"$f":"IFERROR(VLOOKUP(F3554,Translation!$A:$C,3,FALSE),F3554)","v":"Prêts hypothécaires assurés au cours de la période selon le rapport d’amortissement total de la dette (ATD) moyen des emprunteurs détenant un prêt assuré par la SCHL (%)"},{"$f":"IFERROR(VLOOKUP(G3554,Translation!$A:$C,3,FALSE),G3554)","v":"36.6"},{"$f":"IFERROR(VLOOKUP(H3554,Translation!$A:$C,3,FALSE),H3554)","v":"Rapport d'amortissement total de la dette (ATD) moyen"}]
[22,"T4 2018","PROPRIÉTAIRES-OCCUPANTS, À L’UNITÉ","Île-du-Prince-Édouard",36.475240418283683,"Prêts hypothécaires assurés au cours de la période selon le rapport d’amortissement total de la dette (ATD) moyen des emprunteurs détenant un prêt assuré par la SCHL (%)","36.5","Île-du-Prince-Édouard",{"$f":"IFERROR(VLOOKUP(A3556,Translation!$A:$C,3,FALSE),A3556)","v":22},{"$f":"IFERROR(VLOOKUP(B3556,Translation!$A:$C,3,FALSE),B3556)","v":"T4 2018"},{"$f":"IFERROR(VLOOKUP(C3556,Translation!$A:$C,3,FALSE),C3556)","v":"PROPRIÉTAIRES-OCCUPANTS, À L’UNITÉ"},{"$f":"IFERROR(VLOOKUP(D3556,Translation!$A:$C,3,FALSE),D3556)","v":"Île-du-Prince-Édouard"},{"$f":"IFERROR(VLOOKUP(E3556,Translation!$A:$C,3,FALSE),E3556)","v":36.475240418283683},{"$f":"IFERROR(VLOOKUP(F3556,Translation!$A:$C,3,FALSE),F3556)","v":"Prêts hypothécaires assurés au cours de la période selon le rapport d’amortissement total de la dette (ATD) moyen des emprunteurs détenant un prêt assuré par la SCHL (%)"},{"$f":"IFERROR(VLOOKUP(G3556,Translation!$A:$C,3,FALSE),G3556)","v":"36.5"},{"$f":"IFERROR(VLOOKUP(H3556,Translation!$A:$C,3,FALSE),H3556)","v":"Île-du-Prince-Édouard"}]
[22,"T4 2018","PROPRIÉTAIRES-OCCUPANTS, À L’UNITÉ","Québec",36.322605296923683,"Prêts hypothécaires assurés au cours de la période selon le rapport d’amortissement total de la dette (ATD) moyen des emprunteurs détenant un prêt assuré par la SCHL (%)","36.3","Québec",{"$f":"IFERROR(VLOOKUP(A3559,Translation!$A:$C,3,FALSE),A3559)","v":22},{"$f":"IFERROR(VLOOKUP(B3559,Translation!$A:$C,3,FALSE),B3559)","v":"T4 2018"},{"$f":"IFERROR(VLOOKUP(C3559,Translation!$A:$C,3,FALSE),C3559)","v":"PROPRIÉTAIRES-OCCUPANTS, À L’UNITÉ"},{"$f":"IFERROR(VLOOKUP(D3559,Translation!$A:$C,3,FALSE),D3559)","v":"Québec"},{"$f":"IFERROR(VLOOKUP(E3559,Translation!$A:$C,3,FALSE),E3559)","v":36.322605296923683},{"$f":"IFERROR(VLOOKUP(F3559,Translation!$A:$C,3,FALSE),F3559)","v":"Prêts hypothécaires assurés au cours de la période selon le rapport d’amortissement total de la dette (ATD) moyen des emprunteurs détenant un prêt assuré par la SCHL (%)"},{"$f":"IFERROR(VLOOKUP(G3559,Translation!$A:$C,3,FALSE),G3559)","v":"36.3"},{"$f":"IFERROR(VLOOKUP(H3559,Translation!$A:$C,3,FALSE),H3559)","v":"Québec"}]
[22,"T4 2018","PROPRIÉTAIRES-OCCUPANTS, À L’UNITÉ","Manitoba",36.57699218288387,"Prêts hypothécaires assurés au cours de la période selon le rapport d’amortissement total de la dette (ATD) moyen des emprunteurs détenant un prêt assuré par la SCHL (%)","36.6","Manitoba",{"$f":"IFERROR(VLOOKUP(A3561,Translation!$A:$C,3,FALSE),A3561)","v":22},{"$f":"IFERROR(VLOOKUP(B3561,Translation!$A:$C,3,FALSE),B3561)","v":"T4 2018"},{"$f":"IFERROR(VLOOKUP(C3561,Translation!$A:$C,3,FALSE),C3561)","v":"PROPRIÉTAIRES-OCCUPANTS, À L’UNITÉ"},{"$f":"IFERROR(VLOOKUP(D3561,Translation!$A:$C,3,FALSE),D3561)","v":"Manitoba"},{"$f":"IFERROR(VLOOKUP(E3561,Translation!$A:$C,3,FALSE),E3561)","v":36.57699218288387},{"$f":"IFERROR(VLOOKUP(F3561,Translation!$A:$C,3,FALSE),F3561)","v":"Prêts hypothécaires assurés au cours de la période selon le rapport d’amortissement total de la dette (ATD) moyen des emprunteurs détenant un prêt assuré par la SCHL (%)"},{"$f":"IFERROR(VLOOKUP(G3561,Translation!$A:$C,3,FALSE),G3561)","v":"36.6"},{"$f":"IFERROR(VLOOKUP(H3561,Translation!$A:$C,3,FALSE),H3561)","v":"Manitoba"}]
[22,"T4 2018","PROPRIÉTAIRES-OCCUPANTS, À L’UNITÉ","Saskatchewan",36.306800132920969,"Prêts hypothécaires assurés au cours de la période selon le rapport d’amortissement total de la dette (ATD) moyen des emprunteurs détenant un prêt assuré par la SCHL (%)","36.3","Saskatchewan",{"$f":"IFERROR(VLOOKUP(A3562,Translation!$A:$C,3,FALSE),A3562)","v":22},{"$f":"IFERROR(VLOOKUP(B3562,Translation!$A:$C,3,FALSE),B3562)","v":"T4 2018"},{"$f":"IFERROR(VLOOKUP(C3562,Translation!$A:$C,3,FALSE),C3562)","v":"PROPRIÉTAIRES-OCCUPANTS, À L’UNITÉ"},{"$f":"IFERROR(VLOOKUP(D3562,Translation!$A:$C,3,FALSE),D3562)","v":"Saskatchewan"},{"$f":"IFERROR(VLOOKUP(E3562,Translation!$A:$C,3,FALSE),E3562)","v":36.306800132920969},{"$f":"IFERROR(VLOOKUP(F3562,Translation!$A:$C,3,FALSE),F3562)","v":"Prêts hypothécaires assurés au cours de la période selon le rapport d’amortissement total de la dette (ATD) moyen des emprunteurs détenant un prêt assuré par la SCHL (%)"},{"$f":"IFERROR(VLOOKUP(G3562,Translation!$A:$C,3,FALSE),G3562)","v":"36.3"},{"$f":"IFERROR(VLOOKUP(H3562,Translation!$A:$C,3,FALSE),H3562)","v":"Saskatchewan"}]
[22,"T4 2018","PROPRIÉTAIRES-OCCUPANTS, À L’UNITÉ","Territoires",35.740236548758347,"Prêts hypothécaires assurés au cours de la période selon le rapport d’amortissement total de la dette (ATD) moyen des emprunteurs détenant un prêt assuré par la SCHL (%)","35.7","Territoires",{"$f":"IFERROR(VLOOKUP(A3565,Translation!$A:$C,3,FALSE),A3565)","v":22},{"$f":"IFERROR(VLOOKUP(B3565,Translation!$A:$C,3,FALSE),B3565)","v":"T4 2018"},{"$f":"IFERROR(VLOOKUP(C3565,Translation!$A:$C,3,FALSE),C3565)","v":"PROPRIÉTAIRES-OCCUPANTS, À L’UNITÉ"},{"$f":"IFERROR(VLOOKUP(D3565,Translation!$A:$C,3,FALSE),D3565)","v":"Territoires"},{"$f":"IFERROR(VLOOKUP(E3565,Translation!$A:$C,3,FALSE),E3565)","v":35.740236548758347},{"$f":"IFERROR(VLOOKUP(F3565,Translation!$A:$C,3,FALSE),F3565)","v":"Prêts hypothécaires assurés au cours de la période selon le rapport d’amortissement total de la dette (ATD) moyen des emprunteurs détenant un prêt assuré par la SCHL (%)"},{"$f":"IFERROR(VLOOKUP(G3565,Translation!$A:$C,3,FALSE),G3565)","v":"35.7"},{"$f":"IFERROR(VLOOKUP(H3565,Translation!$A:$C,3,FALSE),H3565)","v":"Territoires"}]
[22,"Cumul 2017","PROPRIÉTAIRES-OCCUPANTS, À L’UNITÉ","Île-du-Prince-Édouard",35.201420113156033,"Prêts hypothécaires assurés au cours de la période selon le rapport d’amortissement total de la dette (ATD) moyen des emprunteurs détenant un prêt assuré par la SCHL (%)","35.2","Île-du-Prince-Édouard",{"$f":"IFERROR(VLOOKUP(A3567,Translation!$A:$C,3,FALSE),A3567)","v":22},{"$f":"IFERROR(VLOOKUP(B3567,Translation!$A:$C,3,FALSE),B3567)","v":"Cumul 2017"},{"$f":"IFERROR(VLOOKUP(C3567,Translation!$A:$C,3,FALSE),C3567)","v":"PROPRIÉTAIRES-OCCUPANTS, À L’UNITÉ"},{"$f":"IFERROR(VLOOKUP(D3567,Translation!$A:$C,3,FALSE),D3567)","v":"Île-du-Prince-Édouard"},{"$f":"IFERROR(VLOOKUP(E3567,Translation!$A:$C,3,FALSE),E3567)","v":35.201420113156033},{"$f":"IFERROR(VLOOKUP(F3567,Translation!$A:$C,3,FALSE),F3567)","v":"Prêts hypothécaires assurés au cours de la période selon le rapport d’amortissement total de la dette (ATD) moyen des emprunteurs détenant un prêt assuré par la SCHL (%)"},{"$f":"IFERROR(VLOOKUP(G3567,Translation!$A:$C,3,FALSE),G3567)","v":"35.2"},{"$f":"IFERROR(VLOOKUP(H3567,Translation!$A:$C,3,FALSE),H3567)","v":"Île-du-Prince-Édouard"}]
[22,"Cumul 2017","PROPRIÉTAIRES-OCCUPANTS, À L’UNITÉ","Québec",35.597765828881627,"Prêts hypothécaires assurés au cours de la période selon le rapport d’amortissement total de la dette (ATD) moyen des emprunteurs détenant un prêt assuré par la SCHL (%)","35.6","Québec",{"$f":"IFERROR(VLOOKUP(A3570,Translation!$A:$C,3,FALSE),A3570)","v":22},{"$f":"IFERROR(VLOOKUP(B3570,Translation!$A:$C,3,FALSE),B3570)","v":"Cumul 2017"},{"$f":"IFERROR(VLOOKUP(C3570,Translation!$A:$C,3,FALSE),C3570)","v":"PROPRIÉTAIRES-OCCUPANTS, À L’UNITÉ"},{"$f":"IFERROR(VLOOKUP(D3570,Translation!$A:$C,3,FALSE),D3570)","v":"Québec"},{"$f":"IFERROR(VLOOKUP(E3570,Translation!$A:$C,3,FALSE),E3570)","v":35.597765828881627},{"$f":"IFERROR(VLOOKUP(F3570,Translation!$A:$C,3,FALSE),F3570)","v":"Prêts hypothécaires assurés au cours de la période selon le rapport d’amortissement total de la dette (ATD) moyen des emprunteurs détenant un prêt assuré par la SCHL (%)"},{"$f":"IFERROR(VLOOKUP(G3570,Translation!$A:$C,3,FALSE),G3570)","v":"35.6"},{"$f":"IFERROR(VLOOKUP(H3570,Translation!$A:$C,3,FALSE),H3570)","v":"Québec"}]
[22,"Cumul 2017","PROPRIÉTAIRES-OCCUPANTS, À L’UNITÉ","Manitoba",35.990001753890162,"Prêts hypothécaires assurés au cours de la période selon le rapport d’amortissement total de la dette (ATD) moyen des emprunteurs détenant un prêt assuré par la SCHL (%)","36.0","Manitoba",{"$f":"IFERROR(VLOOKUP(A3572,Translation!$A:$C,3,FALSE),A3572)","v":22},{"$f":"IFERROR(VLOOKUP(B3572,Translation!$A:$C,3,FALSE),B3572)","v":"Cumul 2017"},{"$f":"IFERROR(VLOOKUP(C3572,Translation!$A:$C,3,FALSE),C3572)","v":"PROPRIÉTAIRES-OCCUPANTS, À L’UNITÉ"},{"$f":"IFERROR(VLOOKUP(D3572,Translation!$A:$C,3,FALSE),D3572)","v":"Manitoba"},{"$f":"IFERROR(VLOOKUP(E3572,Translation!$A:$C,3,FALSE),E3572)","v":35.990001753890162},{"$f":"IFERROR(VLOOKUP(F3572,Translation!$A:$C,3,FALSE),F3572)","v":"Prêts hypothécaires assurés au cours de la période selon le rapport d’amortissement total de la dette (ATD) moyen des emprunteurs détenant un prêt assuré par la SCHL (%)"},{"$f":"IFERROR(VLOOKUP(G3572,Translation!$A:$C,3,FALSE),G3572)","v":"36.0"},{"$f":"IFERROR(VLOOKUP(H3572,Translation!$A:$C,3,FALSE),H3572)","v":"Manitoba"}]
[22,"Cumul 2017","PROPRIÉTAIRES-OCCUPANTS, À L’UNITÉ","Colombie-Britannique",37.357956917133698,"Prêts hypothécaires assurés au cours de la période selon le rapport d’amortissement total de la dette (ATD) moyen des emprunteurs détenant un prêt assuré par la SCHL (%)","37.4","Colombie-Britannique",{"$f":"IFERROR(VLOOKUP(A3575,Translation!$A:$C,3,FALSE),A3575)","v":22},{"$f":"IFERROR(VLOOKUP(B3575,Translation!$A:$C,3,FALSE),B3575)","v":"Cumul 2017"},{"$f":"IFERROR(VLOOKUP(C3575,Translation!$A:$C,3,FALSE),C3575)","v":"PROPRIÉTAIRES-OCCUPANTS, À L’UNITÉ"},{"$f":"IFERROR(VLOOKUP(D3575,Translation!$A:$C,3,FALSE),D3575)","v":"Colombie-Britannique"},{"$f":"IFERROR(VLOOKUP(E3575,Translation!$A:$C,3,FALSE),E3575)","v":37.357956917133698},{"$f":"IFERROR(VLOOKUP(F3575,Translation!$A:$C,3,FALSE),F3575)","v":"Prêts hypothécaires assurés au cours de la période selon le rapport d’amortissement total de la dette (ATD) moyen des emprunteurs détenant un prêt assuré par la SCHL (%)"},{"$f":"IFERROR(VLOOKUP(G3575,Translation!$A:$C,3,FALSE),G3575)","v":"37.4"},{"$f":"IFERROR(VLOOKUP(H3575,Translation!$A:$C,3,FALSE),H3575)","v":"Colombie-Britannique"}]
[22,"T3 2018","PROPRIÉTAIRES-OCCUPANTS, À L’UNITÉ","> 30 % <= 35 %",23.743944396094889,"Prêts hypothécaires assurés au cours de la période selon le rapport d’amortissement brut de la dette (ABD) moyen des emprunteurs détenant un prêt assuré par la SCHL (%)","23.7"," > 30 % <= 35 %",{"$f":"IFERROR(VLOOKUP(A3578,Translation!$A:$C,3,FALSE),A3578)","v":22},{"$f":"IFERROR(VLOOKUP(B3578,Translation!$A:$C,3,FALSE),B3578)","v":"T3 2018"},{"$f":"IFERROR(VLOOKUP(C3578,Translation!$A:$C,3,FALSE),C3578)","v":"PROPRIÉTAIRES-OCCUPANTS, À L’UNITÉ"},{"$f":"IFERROR(VLOOKUP(D3578,Translation!$A:$C,3,FALSE),D3578)","v":"> 30 % <= 35 %"},{"$f":"IFERROR(VLOOKUP(E3578,Translation!$A:$C,3,FALSE),E3578)","v":23.743944396094889},{"$f":"IFERROR(VLOOKUP(F3578,Translation!$A:$C,3,FALSE),F3578)","v":"Prêts hypothécaires assurés au cours de la période selon le rapport d’amortissement brut de la dette (ABD) moyen des emprunteurs détenant un prêt assuré par la SCHL (%)"},{"$f":"IFERROR(VLOOKUP(G3578,Translation!$A:$C,3,FALSE),G3578)","v":"23.7"},{"$f":"IFERROR(VLOOKUP(H3578,Translation!$A:$C,3,FALSE),H3578)","v":" > 30 % <= 35 %"}]
[22,"T3 2018","PROPRIÉTAIRES-OCCUPANTS, À L’UNITÉ","Rapport d'amortissement brut de la dette (ABD) moyen",27.361392734328543,"Prêts hypothécaires assurés au cours de la période selon le rapport d’amortissement brut de la dette (ABD) moyen des emprunteurs détenant un prêt assuré par la SCHL (%)","27.4","Rapport d'amortissement brut de la dette (ABD) moyen",{"$f":"IFERROR(VLOOKUP(A3580,Translation!$A:$C,3,FALSE),A3580)","v":22},{"$f":"IFERROR(VLOOKUP(B3580,Translation!$A:$C,3,FALSE),B3580)","v":"T3 2018"},{"$f":"IFERROR(VLOOKUP(C3580,Translation!$A:$C,3,FALSE),C3580)","v":"PROPRIÉTAIRES-OCCUPANTS, À L’UNITÉ"},{"$f":"IFERROR(VLOOKUP(D3580,Translation!$A:$C,3,FALSE),D3580)","v":"Rapport d'amortissement brut de la dette (ABD) moyen"},{"$f":"IFERROR(VLOOKUP(E3580,Translation!$A:$C,3,FALSE),E3580)","v":27.361392734328543},{"$f":"IFERROR(VLOOKUP(F3580,Translation!$A:$C,3,FALSE),F3580)","v":"Prêts hypothécaires assurés au cours de la période selon le rapport d’amortissement brut de la dette (ABD) moyen des emprunteurs détenant un prêt assuré par la SCHL (%)"},{"$f":"IFERROR(VLOOKUP(G3580,Translation!$A:$C,3,FALSE),G3580)","v":"27.4"},{"$f":"IFERROR(VLOOKUP(H3580,Translation!$A:$C,3,FALSE),H3580)","v":"Rapport d'amortissement brut de la dette (ABD) moyen"}]
[22,"T3 2018","PROPRIÉTAIRES-OCCUPANTS, À L’UNITÉ","Terre-Neuve-et-Labrador",21.939961519154135,"Prêts hypothécaires assurés au cours de la période selon le rapport d’amortissement brut de la dette (ABD) moyen des emprunteurs détenant un prêt assuré par la SCHL (%)","21.9","Terre-Neuve-et-Labrador",{"$f":"IFERROR(VLOOKUP(A3581,Translation!$A:$C,3,FALSE),A3581)","v":22},{"$f":"IFERROR(VLOOKUP(B3581,Translation!$A:$C,3,FALSE),B3581)","v":"T3 2018"},{"$f":"IFERROR(VLOOKUP(C3581,Translation!$A:$C,3,FALSE),C3581)","v":"PROPRIÉTAIRES-OCCUPANTS, À L’UNITÉ"},{"$f":"IFERROR(VLOOKUP(D3581,Translation!$A:$C,3,FALSE),D3581)","v":"Terre-Neuve-et-Labrador"},{"$f":"IFERROR(VLOOKUP(E3581,Translation!$A:$C,3,FALSE),E3581)","v":21.939961519154135},{"$f":"IFERROR(VLOOKUP(F3581,Translation!$A:$C,3,FALSE),F3581)","v":"Prêts hypothécaires assurés au cours de la période selon le rapport d’amortissement brut de la dette (ABD) moyen des emprunteurs détenant un prêt assuré par la SCHL (%)"},{"$f":"IFERROR(VLOOKUP(G3581,Translation!$A:$C,3,FALSE),G3581)","v":"21.9"},{"$f":"IFERROR(VLOOKUP(H3581,Translation!$A:$C,3,FALSE),H3581)","v":"Terre-Neuve-et-Labrador"}]
[22,"T3 2018","PROPRIÉTAIRES-OCCUPANTS, À L’UNITÉ","Québec",25.916541320753751,"Prêts hypothécaires assurés au cours de la période selon le rapport d’amortissement brut de la dette (ABD) moyen des emprunteurs détenant un prêt assuré par la SCHL (%)","25.9","Québec",{"$f":"IFERROR(VLOOKUP(A3585,Translation!$A:$C,3,FALSE),A3585)","v":22},{"$f":"IFERROR(VLOOKUP(B3585,Translation!$A:$C,3,FALSE),B3585)","v":"T3 2018"},{"$f":"IFERROR(VLOOKUP(C3585,Translation!$A:$C,3,FALSE),C3585)","v":"PROPRIÉTAIRES-OCCUPANTS, À L’UNITÉ"},{"$f":"IFERROR(VLOOKUP(D3585,Translation!$A:$C,3,FALSE),D3585)","v":"Québec"},{"$f":"IFERROR(VLOOKUP(E3585,Translation!$A:$C,3,FALSE),E3585)","v":25.916541320753751},{"$f":"IFERROR(VLOOKUP(F3585,Translation!$A:$C,3,FALSE),F3585)","v":"Prêts hypothécaires assurés au cours de la période selon le rapport d’amortissement brut de la dette (ABD) moyen des emprunteurs détenant un prêt assuré par la SCHL (%)"},{"$f":"IFERROR(VLOOKUP(G3585,Translation!$A:$C,3,FALSE),G3585)","v":"25.9"},{"$f":"IFERROR(VLOOKUP(H3585,Translation!$A:$C,3,FALSE),H3585)","v":"Québec"}]
[22,"T3 2018","PROPRIÉTAIRES-OCCUPANTS, À L’UNITÉ","Ontario",29.226164227545631,"Prêts hypothécaires assurés au cours de la période selon le rapport d’amortissement brut de la dette (ABD) moyen des emprunteurs détenant un prêt assuré par la SCHL (%)","29.2","Ontario",{"$f":"IFERROR(VLOOKUP(A3586,Translation!$A:$C,3,FALSE),A3586)","v":22},{"$f":"IFERROR(VLOOKUP(B3586,Translation!$A:$C,3,FALSE),B3586)","v":"T3 2018"},{"$f":"IFERROR(VLOOKUP(C3586,Translation!$A:$C,3,FALSE),C3586)","v":"PROPRIÉTAIRES-OCCUPANTS, À L’UNITÉ"},{"$f":"IFERROR(VLOOKUP(D3586,Translation!$A:$C,3,FALSE),D3586)","v":"Ontario"},{"$f":"IFERROR(VLOOKUP(E3586,Translation!$A:$C,3,FALSE),E3586)","v":29.226164227545631},{"$f":"IFERROR(VLOOKUP(F3586,Translation!$A:$C,3,FALSE),F3586)","v":"Prêts hypothécaires assurés au cours de la période selon le rapport d’amortissement brut de la dette (ABD) moyen des emprunteurs détenant un prêt assuré par la SCHL (%)"},{"$f":"IFERROR(VLOOKUP(G3586,Translation!$A:$C,3,FALSE),G3586)","v":"29.2"},{"$f":"IFERROR(VLOOKUP(H3586,Translation!$A:$C,3,FALSE),H3586)","v":"Ontario"}]
[22,"T3 2018","PROPRIÉTAIRES-OCCUPANTS, À L’UNITÉ","Alberta",27.256291848243205,"Prêts hypothécaires assurés au cours de la période selon le rapport d’amortissement brut de la dette (ABD) moyen des emprunteurs détenant un prêt assuré par la SCHL (%)","27.3","Alberta",{"$f":"IFERROR(VLOOKUP(A3589,Translation!$A:$C,3,FALSE),A3589)","v":22},{"$f":"IFERROR(VLOOKUP(B3589,Translation!$A:$C,3,FALSE),B3589)","v":"T3 2018"},{"$f":"IFERROR(VLOOKUP(C3589,Translation!$A:$C,3,FALSE),C3589)","v":"PROPRIÉTAIRES-OCCUPANTS, À L’UNITÉ"},{"$f":"IFERROR(VLOOKUP(D3589,Translation!$A:$C,3,FALSE),D3589)","v":"Alberta"},{"$f":"IFERROR(VLOOKUP(E3589,Translation!$A:$C,3,FALSE),E3589)","v":27.256291848243205},{"$f":"IFERROR(VLOOKUP(F3589,Translation!$A:$C,3,FALSE),F3589)","v":"Prêts hypothécaires assurés au cours de la période selon le rapport d’amortissement brut de la dette (ABD) moyen des emprunteurs détenant un prêt assuré par la SCHL (%)"},{"$f":"IFERROR(VLOOKUP(G3589,Translation!$A:$C,3,FALSE),G3589)","v":"27.3"},{"$f":"IFERROR(VLOOKUP(H3589,Translation!$A:$C,3,FALSE),H3589)","v":"Alberta"}]
[22,"T3 2018","PROPRIÉTAIRES-OCCUPANTS, À L’UNITÉ","Territoires",25.210340262049808,"Prêts hypothécaires assurés au cours de la période selon le rapport d’amortissement brut de la dette (ABD) moyen des emprunteurs détenant un prêt assuré par la SCHL (%)","25.2","Territoires",{"$f":"IFERROR(VLOOKUP(A3591,Translation!$A:$C,3,FALSE),A3591)","v":22},{"$f":"IFERROR(VLOOKUP(B3591,Translation!$A:$C,3,FALSE),B3591)","v":"T3 2018"},{"$f":"IFERROR(VLOOKUP(C3591,Translation!$A:$C,3,FALSE),C3591)","v":"PROPRIÉTAIRES-OCCUPANTS, À L’UNITÉ"},{"$f":"IFERROR(VLOOKUP(D3591,Translation!$A:$C,3,FALSE),D3591)","v":"Territoires"},{"$f":"IFERROR(VLOOKUP(E3591,Translation!$A:$C,3,FALSE),E3591)","v":25.210340262049808},{"$f":"IFERROR(VLOOKUP(F3591,Translation!$A:$C,3,FALSE),F3591)","v":"Prêts hypothécaires assurés au cours de la période selon le rapport d’amortissement brut de la dette (ABD) moyen des emprunteurs détenant un prêt assuré par la SCHL (%)"},{"$f":"IFERROR(VLOOKUP(G3591,Translation!$A:$C,3,FALSE),G3591)","v":"25.2"},{"$f":"IFERROR(VLOOKUP(H3591,Translation!$A:$C,3,FALSE),H3591)","v":"Territoires"}]
[22,"T3 2018","PROPRIÉTAIRES-OCCUPANTS, À L’UNITÉ","> 40 % <= 44 %",36.681068437125496,"Prêts hypothécaires assurés au cours de la période selon le rapport d’amortissement total de la dette (ATD) moyen des emprunteurs détenant un prêt assuré par la SCHL (%)","36.7"," > 40 % <= 44 %",{"$f":"IFERROR(VLOOKUP(A3595,Translation!$A:$C,3,FALSE),A3595)","v":22},{"$f":"IFERROR(VLOOKUP(B3595,Translation!$A:$C,3,FALSE),B3595)","v":"T3 2018"},{"$f":"IFERROR(VLOOKUP(C3595,Translation!$A:$C,3,FALSE),C3595)","v":"PROPRIÉTAIRES-OCCUPANTS, À L’UNITÉ"},{"$f":"IFERROR(VLOOKUP(D3595,Translation!$A:$C,3,FALSE),D3595)","v":"> 40 % <= 44 %"},{"$f":"IFERROR(VLOOKUP(E3595,Translation!$A:$C,3,FALSE),E3595)","v":36.681068437125496},{"$f":"IFERROR(VLOOKUP(F3595,Translation!$A:$C,3,FALSE),F3595)","v":"Prêts hypothécaires assurés au cours de la période selon le rapport d’amortissement total de la dette (ATD) moyen des emprunteurs détenant un prêt assuré par la SCHL (%)"},{"$f":"IFERROR(VLOOKUP(G3595,Translation!$A:$C,3,FALSE),G3595)","v":"36.7"},{"$f":"IFERROR(VLOOKUP(H3595,Translation!$A:$C,3,FALSE),H3595)","v":" > 40 % <= 44 %"}]
[22,"T3 2018","PROPRIÉTAIRES-OCCUPANTS, À L’UNITÉ","Rapport d'amortissement total de la dette (ATD) moyen",36.996401824825512,"Prêts hypothécaires assurés au cours de la période selon le rapport d’amortissement total de la dette (ATD) moyen des emprunteurs détenant un prêt assuré par la SCHL (%)","37.0","Rapport d'amortissement total de la dette (ATD) moyen",{"$f":"IFERROR(VLOOKUP(A3596,Translation!$A:$C,3,FALSE),A3596)","v":22},{"$f":"IFERROR(VLOOKUP(B3596,Translation!$A:$C,3,FALSE),B3596)","v":"T3 2018"},{"$f":"IFERROR(VLOOKUP(C3596,Translation!$A:$C,3,FALSE),C3596)","v":"PROPRIÉTAIRES-OCCUPANTS, À L’UNITÉ"},{"$f":"IFERROR(VLOOKUP(D3596,Translation!$A:$C,3,FALSE),D3596)","v":"Rapport d'amortissement total de la dette (ATD) moyen"},{"$f":"IFERROR(VLOOKUP(E3596,Translation!$A:$C,3,FALSE),E3596)","v":36.996401824825512},{"$f":"IFERROR(VLOOKUP(F3596,Translation!$A:$C,3,FALSE),F3596)","v":"Prêts hypothécaires assurés au cours de la période selon le rapport d’amortissement total de la dette (ATD) moyen des emprunteurs détenant un prêt assuré par la SCHL (%)"},{"$f":"IFERROR(VLOOKUP(G3596,Translation!$A:$C,3,FALSE),G3596)","v":"37.0"},{"$f":"IFERROR(VLOOKUP(H3596,Translation!$A:$C,3,FALSE),H3596)","v":"Rapport d'amortissement total de la dette (ATD) moyen"}]
[22,"T3 2018","PROPRIÉTAIRES-OCCUPANTS, À L’UNITÉ","Nouvelle-Écosse",35.362318779773801,"Prêts hypothécaires assurés au cours de la période selon le rapport d’amortissement total de la dette (ATD) moyen des emprunteurs détenant un prêt assuré par la SCHL (%)","35.4","Nouvelle-Écosse",{"$f":"IFERROR(VLOOKUP(A3599,Translation!$A:$C,3,FALSE),A3599)","v":22},{"$f":"IFERROR(VLOOKUP(B3599,Translation!$A:$C,3,FALSE),B3599)","v":"T3 2018"},{"$f":"IFERROR(VLOOKUP(C3599,Translation!$A:$C,3,FALSE),C3599)","v":"PROPRIÉTAIRES-OCCUPANTS, À L’UNITÉ"},{"$f":"IFERROR(VLOOKUP(D3599,Translation!$A:$C,3,FALSE),D3599)","v":"Nouvelle-Écosse"},{"$f":"IFERROR(VLOOKUP(E3599,Translation!$A:$C,3,FALSE),E3599)","v":35.362318779773801},{"$f":"IFERROR(VLOOKUP(F3599,Translation!$A:$C,3,FALSE),F3599)","v":"Prêts hypothécaires assurés au cours de la période selon le rapport d’amortissement total de la dette (ATD) moyen des emprunteurs détenant un prêt assuré par la SCHL (%)"},{"$f":"IFERROR(VLOOKUP(G3599,Translation!$A:$C,3,FALSE),G3599)","v":"35.4"},{"$f":"IFERROR(VLOOKUP(H3599,Translation!$A:$C,3,FALSE),H3599)","v":"Nouvelle-Écosse"}]
[22,"T3 2018","PROPRIÉTAIRES-OCCUPANTS, À L’UNITÉ","Nouveau-Brunswick",34.799626974705205,"Prêts hypothécaires assurés au cours de la période selon le rapport d’amortissement total de la dette (ATD) moyen des emprunteurs détenant un prêt assuré par la SCHL (%)","34.8","Nouveau-Brunswick",{"$f":"IFERROR(VLOOKUP(A3600,Translation!$A:$C,3,FALSE),A3600)","v":22},{"$f":"IFERROR(VLOOKUP(B3600,Translation!$A:$C,3,FALSE),B3600)","v":"T3 2018"},{"$f":"IFERROR(VLOOKUP(C3600,Translation!$A:$C,3,FALSE),C3600)","v":"PROPRIÉTAIRES-OCCUPANTS, À L’UNITÉ"},{"$f":"IFERROR(VLOOKUP(D3600,Translation!$A:$C,3,FALSE),D3600)","v":"Nouveau-Brunswick"},{"$f":"IFERROR(VLOOKUP(E3600,Translation!$A:$C,3,FALSE),E3600)","v":34.799626974705205},{"$f":"IFERROR(VLOOKUP(F3600,Translation!$A:$C,3,FALSE),F3600)","v":"Prêts hypothécaires assurés au cours de la période selon le rapport d’amortissement total de la dette (ATD) moyen des emprunteurs détenant un prêt assuré par la SCHL (%)"},{"$f":"IFERROR(VLOOKUP(G3600,Translation!$A:$C,3,FALSE),G3600)","v":"34.8"},{"$f":"IFERROR(VLOOKUP(H3600,Translation!$A:$C,3,FALSE),H3600)","v":"Nouveau-Brunswick"}]
[22,"T3 2018","PROPRIÉTAIRES-OCCUPANTS, À L’UNITÉ","Saskatchewan",36.412640039182271,"Prêts hypothécaires assurés au cours de la période selon le rapport d’amortissement total de la dette (ATD) moyen des emprunteurs détenant un prêt assuré par la SCHL (%)","36.4","Saskatchewan",{"$f":"IFERROR(VLOOKUP(A3604,Translation!$A:$C,3,FALSE),A3604)","v":22},{"$f":"IFERROR(VLOOKUP(B3604,Translation!$A:$C,3,FALSE),B3604)","v":"T3 2018"},{"$f":"IFERROR(VLOOKUP(C3604,Translation!$A:$C,3,FALSE),C3604)","v":"PROPRIÉTAIRES-OCCUPANTS, À L’UNITÉ"},{"$f":"IFERROR(VLOOKUP(D3604,Translation!$A:$C,3,FALSE),D3604)","v":"Saskatchewan"},{"$f":"IFERROR(VLOOKUP(E3604,Translation!$A:$C,3,FALSE),E3604)","v":36.412640039182271},{"$f":"IFERROR(VLOOKUP(F3604,Translation!$A:$C,3,FALSE),F3604)","v":"Prêts hypothécaires assurés au cours de la période selon le rapport d’amortissement total de la dette (ATD) moyen des emprunteurs détenant un prêt assuré par la SCHL (%)"},{"$f":"IFERROR(VLOOKUP(G3604,Translation!$A:$C,3,FALSE),G3604)","v":"36.4"},{"$f":"IFERROR(VLOOKUP(H3604,Translation!$A:$C,3,FALSE),H3604)","v":"Saskatchewan"}]
[22,"T3 2018","PROPRIÉTAIRES-OCCUPANTS, À L’UNITÉ","Alberta",37.273819810451698,"Prêts hypothécaires assurés au cours de la période selon le rapport d’amortissement total de la dette (ATD) moyen des emprunteurs détenant un prêt assuré par la SCHL (%)","37.3","Alberta",{"$f":"IFERROR(VLOOKUP(A3605,Translation!$A:$C,3,FALSE),A3605)","v":22},{"$f":"IFERROR(VLOOKUP(B3605,Translation!$A:$C,3,FALSE),B3605)","v":"T3 2018"},{"$f":"IFERROR(VLOOKUP(C3605,Translation!$A:$C,3,FALSE),C3605)","v":"PROPRIÉTAIRES-OCCUPANTS, À L’UNITÉ"},{"$f":"IFERROR(VLOOKUP(D3605,Translation!$A:$C,3,FALSE),D3605)","v":"Alberta"},{"$f":"IFERROR(VLOOKUP(E3605,Translation!$A:$C,3,FALSE),E3605)","v":37.273819810451698},{"$f":"IFERROR(VLOOKUP(F3605,Translation!$A:$C,3,FALSE),F3605)","v":"Prêts hypothécaires assurés au cours de la période selon le rapport d’amortissement total de la dette (ATD) moyen des emprunteurs détenant un prêt assuré par la SCHL (%)"},{"$f":"IFERROR(VLOOKUP(G3605,Translation!$A:$C,3,FALSE),G3605)","v":"37.3"},{"$f":"IFERROR(VLOOKUP(H3605,Translation!$A:$C,3,FALSE),H3605)","v":"Alberta"}]
[22,"T2 2018","PROPRIÉTAIRES-OCCUPANTS, À L’UNITÉ","<= 30 %",62.124749569178348,"Prêts hypothécaires assurés au cours de la période selon le rapport d’amortissement brut de la dette (ABD) moyen des emprunteurs détenant un prêt assuré par la SCHL (%)","62.1"," <= 30 %",{"$f":"IFERROR(VLOOKUP(A3608,Translation!$A:$C,3,FALSE),A3608)","v":22},{"$f":"IFERROR(VLOOKUP(B3608,Translation!$A:$C,3,FALSE),B3608)","v":"T2 2018"},{"$f":"IFERROR(VLOOKUP(C3608,Translation!$A:$C,3,FALSE),C3608)","v":"PROPRIÉTAIRES-OCCUPANTS, À L’UNITÉ"},{"$f":"IFERROR(VLOOKUP(D3608,Translation!$A:$C,3,FALSE),D3608)","v":"<= 30 %"},{"$f":"IFERROR(VLOOKUP(E3608,Translation!$A:$C,3,FALSE),E3608)","v":62.124749569178348},{"$f":"IFERROR(VLOOKUP(F3608,Translation!$A:$C,3,FALSE),F3608)","v":"Prêts hypothécaires assurés au cours de la période selon le rapport d’amortissement brut de la dette (ABD) moyen des emprunteurs détenant un prêt assuré par la SCHL (%)"},{"$f":"IFERROR(VLOOKUP(G3608,Translation!$A:$C,3,FALSE),G3608)","v":"62.1"},{"$f":"IFERROR(VLOOKUP(H3608,Translation!$A:$C,3,FALSE),H3608)","v":" <= 30 %"}]
[22,"T2 2018","PROPRIÉTAIRES-OCCUPANTS, À L’UNITÉ","> 35 % <= 39 %",15.43026683765938,"Prêts hypothécaires assurés au cours de la période selon le rapport d’amortissement brut de la dette (ABD) moyen des emprunteurs détenant un prêt assuré par la SCHL (%)","15.4"," > 35 % <= 39 %",{"$f":"IFERROR(VLOOKUP(A3610,Translation!$A:$C,3,FALSE),A3610)","v":22},{"$f":"IFERROR(VLOOKUP(B3610,Translation!$A:$C,3,FALSE),B3610)","v":"T2 2018"},{"$f":"IFERROR(VLOOKUP(C3610,Translation!$A:$C,3,FALSE),C3610)","v":"PROPRIÉTAIRES-OCCUPANTS, À L’UNITÉ"},{"$f":"IFERROR(VLOOKUP(D3610,Translation!$A:$C,3,FALSE),D3610)","v":"> 35 % <= 39 %"},{"$f":"IFERROR(VLOOKUP(E3610,Translation!$A:$C,3,FALSE),E3610)","v":15.43026683765938},{"$f":"IFERROR(VLOOKUP(F3610,Translation!$A:$C,3,FALSE),F3610)","v":"Prêts hypothécaires assurés au cours de la période selon le rapport d’amortissement brut de la dette (ABD) moyen des emprunteurs détenant un prêt assuré par la SCHL (%)"},{"$f":"IFERROR(VLOOKUP(G3610,Translation!$A:$C,3,FALSE),G3610)","v":"15.4"},{"$f":"IFERROR(VLOOKUP(H3610,Translation!$A:$C,3,FALSE),H3610)","v":" > 35 % <= 39 %"}]
[22,"T2 2018","PROPRIÉTAIRES-OCCUPANTS, À L’UNITÉ","Île-du-Prince-Édouard",22.57208737960422,"Prêts hypothécaires assurés au cours de la période selon le rapport d’amortissement brut de la dette (ABD) moyen des emprunteurs détenant un prêt assuré par la SCHL (%)","22.6","Île-du-Prince-Édouard",{"$f":"IFERROR(VLOOKUP(A3614,Translation!$A:$C,3,FALSE),A3614)","v":22},{"$f":"IFERROR(VLOOKUP(B3614,Translation!$A:$C,3,FALSE),B3614)","v":"T2 2018"},{"$f":"IFERROR(VLOOKUP(C3614,Translation!$A:$C,3,FALSE),C3614)","v":"PROPRIÉTAIRES-OCCUPANTS, À L’UNITÉ"},{"$f":"IFERROR(VLOOKUP(D3614,Translation!$A:$C,3,FALSE),D3614)","v":"Île-du-Prince-Édouard"},{"$f":"IFERROR(VLOOKUP(E3614,Translation!$A:$C,3,FALSE),E3614)","v":22.57208737960422},{"$f":"IFERROR(VLOOKUP(F3614,Translation!$A:$C,3,FALSE),F3614)","v":"Prêts hypothécaires assurés au cours de la période selon le rapport d’amortissement brut de la dette (ABD) moyen des emprunteurs détenant un prêt assuré par la SCHL (%)"},{"$f":"IFERROR(VLOOKUP(G3614,Translation!$A:$C,3,FALSE),G3614)","v":"22.6"},{"$f":"IFERROR(VLOOKUP(H3614,Translation!$A:$C,3,FALSE),H3614)","v":"Île-du-Prince-Édouard"}]
[22,"T2 2018","PROPRIÉTAIRES-OCCUPANTS, À L’UNITÉ","Nouvelle-Écosse",22.443843963478859,"Prêts hypothécaires assurés au cours de la période selon le rapport d’amortissement brut de la dette (ABD) moyen des emprunteurs détenant un prêt assuré par la SCHL (%)","22.4","Nouvelle-Écosse",{"$f":"IFERROR(VLOOKUP(A3615,Translation!$A:$C,3,FALSE),A3615)","v":22},{"$f":"IFERROR(VLOOKUP(B3615,Translation!$A:$C,3,FALSE),B3615)","v":"T2 2018"},{"$f":"IFERROR(VLOOKUP(C3615,Translation!$A:$C,3,FALSE),C3615)","v":"PROPRIÉTAIRES-OCCUPANTS, À L’UNITÉ"},{"$f":"IFERROR(VLOOKUP(D3615,Translation!$A:$C,3,FALSE),D3615)","v":"Nouvelle-Écosse"},{"$f":"IFERROR(VLOOKUP(E3615,Translation!$A:$C,3,FALSE),E3615)","v":22.443843963478859},{"$f":"IFERROR(VLOOKUP(F3615,Translation!$A:$C,3,FALSE),F3615)","v":"Prêts hypothécaires assurés au cours de la période selon le rapport d’amortissement brut de la dette (ABD) moyen des emprunteurs détenant un prêt assuré par la SCHL (%)"},{"$f":"IFERROR(VLOOKUP(G3615,Translation!$A:$C,3,FALSE),G3615)","v":"22.4"},{"$f":"IFERROR(VLOOKUP(H3615,Translation!$A:$C,3,FALSE),H3615)","v":"Nouvelle-Écosse"}]
[22,"T2 2018","PROPRIÉTAIRES-OCCUPANTS, À L’UNITÉ","Ontario",29.288334553608504,"Prêts hypothécaires assurés au cours de la période selon le rapport d’amortissement brut de la dette (ABD) moyen des emprunteurs détenant un prêt assuré par la SCHL (%)","29.3","Ontario",{"$f":"IFERROR(VLOOKUP(A3618,Translation!$A:$C,3,FALSE),A3618)","v":22},{"$f":"IFERROR(VLOOKUP(B3618,Translation!$A:$C,3,FALSE),B3618)","v":"T2 2018"},{"$f":"IFERROR(VLOOKUP(C3618,Translation!$A:$C,3,FALSE),C3618)","v":"PROPRIÉTAIRES-OCCUPANTS, À L’UNITÉ"},{"$f":"IFERROR(VLOOKUP(D3618,Translation!$A:$C,3,FALSE),D3618)","v":"Ontario"},{"$f":"IFERROR(VLOOKUP(E3618,Translation!$A:$C,3,FALSE),E3618)","v":29.288334553608504},{"$f":"IFERROR(VLOOKUP(F3618,Translation!$A:$C,3,FALSE),F3618)","v":"Prêts hypothécaires assurés au cours de la période selon le rapport d’amortissement brut de la dette (ABD) moyen des emprunteurs détenant un prêt assuré par la SCHL (%)"},{"$f":"IFERROR(VLOOKUP(G3618,Translation!$A:$C,3,FALSE),G3618)","v":"29.3"},{"$f":"IFERROR(VLOOKUP(H3618,Translation!$A:$C,3,FALSE),H3618)","v":"Ontario"}]
[22,"T2 2018","PROPRIÉTAIRES-OCCUPANTS, À L’UNITÉ","Manitoba",26.374723579632313,"Prêts hypothécaires assurés au cours de la période selon le rapport d’amortissement brut de la dette (ABD) moyen des emprunteurs détenant un prêt assuré par la SCHL (%)","26.4","Manitoba",{"$f":"IFERROR(VLOOKUP(A3619,Translation!$A:$C,3,FALSE),A3619)","v":22},{"$f":"IFERROR(VLOOKUP(B3619,Translation!$A:$C,3,FALSE),B3619)","v":"T2 2018"},{"$f":"IFERROR(VLOOKUP(C3619,Translation!$A:$C,3,FALSE),C3619)","v":"PROPRIÉTAIRES-OCCUPANTS, À L’UNITÉ"},{"$f":"IFERROR(VLOOKUP(D3619,Translation!$A:$C,3,FALSE),D3619)","v":"Manitoba"},{"$f":"IFERROR(VLOOKUP(E3619,Translation!$A:$C,3,FALSE),E3619)","v":26.374723579632313},{"$f":"IFERROR(VLOOKUP(F3619,Translation!$A:$C,3,FALSE),F3619)","v":"Prêts hypothécaires assurés au cours de la période selon le rapport d’amortissement brut de la dette (ABD) moyen des emprunteurs détenant un prêt assuré par la SCHL (%)"},{"$f":"IFERROR(VLOOKUP(G3619,Translation!$A:$C,3,FALSE),G3619)","v":"26.4"},{"$f":"IFERROR(VLOOKUP(H3619,Translation!$A:$C,3,FALSE),H3619)","v":"Manitoba"}]
[22,"T2 2018","PROPRIÉTAIRES-OCCUPANTS, À L’UNITÉ","Territoires",24.742146943574621,"Prêts hypothécaires assurés au cours de la période selon le rapport d’amortissement brut de la dette (ABD) moyen des emprunteurs détenant un prêt assuré par la SCHL (%)","24.7","Territoires",{"$f":"IFERROR(VLOOKUP(A3623,Translation!$A:$C,3,FALSE),A3623)","v":22},{"$f":"IFERROR(VLOOKUP(B3623,Translation!$A:$C,3,FALSE),B3623)","v":"T2 2018"},{"$f":"IFERROR(VLOOKUP(C3623,Translation!$A:$C,3,FALSE),C3623)","v":"PROPRIÉTAIRES-OCCUPANTS, À L’UNITÉ"},{"$f":"IFERROR(VLOOKUP(D3623,Translation!$A:$C,3,FALSE),D3623)","v":"Territoires"},{"$f":"IFERROR(VLOOKUP(E3623,Translation!$A:$C,3,FALSE),E3623)","v":24.742146943574621},{"$f":"IFERROR(VLOOKUP(F3623,Translation!$A:$C,3,FALSE),F3623)","v":"Prêts hypothécaires assurés au cours de la période selon le rapport d’amortissement brut de la dette (ABD) moyen des emprunteurs détenant un prêt assuré par la SCHL (%)"},{"$f":"IFERROR(VLOOKUP(G3623,Translation!$A:$C,3,FALSE),G3623)","v":"24.7"},{"$f":"IFERROR(VLOOKUP(H3623,Translation!$A:$C,3,FALSE),H3623)","v":"Territoires"}]
[22,"T2 2018","PROPRIÉTAIRES-OCCUPANTS, À L’UNITÉ","> 30 % <= 35 %",18.033369869792313,"Prêts hypothécaires assurés au cours de la période selon le rapport d’amortissement total de la dette (ATD) moyen des emprunteurs détenant un prêt assuré par la SCHL (%)","18.0"," > 30 % <= 35 %",{"$f":"IFERROR(VLOOKUP(A3625,Translation!$A:$C,3,FALSE),A3625)","v":22},{"$f":"IFERROR(VLOOKUP(B3625,Translation!$A:$C,3,FALSE),B3625)","v":"T2 2018"},{"$f":"IFERROR(VLOOKUP(C3625,Translation!$A:$C,3,FALSE),C3625)","v":"PROPRIÉTAIRES-OCCUPANTS, À L’UNITÉ"},{"$f":"IFERROR(VLOOKUP(D3625,Translation!$A:$C,3,FALSE),D3625)","v":"> 30 % <= 35 %"},{"$f":"IFERROR(VLOOKUP(E3625,Translation!$A:$C,3,FALSE),E3625)","v":18.033369869792313},{"$f":"IFERROR(VLOOKUP(F3625,Translation!$A:$C,3,FALSE),F3625)","v":"Prêts hypothécaires assurés au cours de la période selon le rapport d’amortissement total de la dette (ATD) moyen des emprunteurs détenant un prêt assuré par la SCHL (%)"},{"$f":"IFERROR(VLOOKUP(G3625,Translation!$A:$C,3,FALSE),G3625)","v":"18.0"},{"$f":"IFERROR(VLOOKUP(H3625,Translation!$A:$C,3,FALSE),H3625)","v":" > 30 % <= 35 %"}]
[22,"T2 2018","PROPRIÉTAIRES-OCCUPANTS, À L’UNITÉ","Rapport d'amortissement total de la dette (ATD) moyen",36.749557699889998,"Prêts hypothécaires assurés au cours de la période selon le rapport d’amortissement total de la dette (ATD) moyen des emprunteurs détenant un prêt assuré par la SCHL (%)","36.7","Rapport d'amortissement total de la dette (ATD) moyen",{"$f":"IFERROR(VLOOKUP(A3628,Translation!$A:$C,3,FALSE),A3628)","v":22},{"$f":"IFERROR(VLOOKUP(B3628,Translation!$A:$C,3,FALSE),B3628)","v":"T2 2018"},{"$f":"IFERROR(VLOOKUP(C3628,Translation!$A:$C,3,FALSE),C3628)","v":"PROPRIÉTAIRES-OCCUPANTS, À L’UNITÉ"},{"$f":"IFERROR(VLOOKUP(D3628,Translation!$A:$C,3,FALSE),D3628)","v":"Rapport d'amortissement total de la dette (ATD) moyen"},{"$f":"IFERROR(VLOOKUP(E3628,Translation!$A:$C,3,FALSE),E3628)","v":36.749557699889998},{"$f":"IFERROR(VLOOKUP(F3628,Translation!$A:$C,3,FALSE),F3628)","v":"Prêts hypothécaires assurés au cours de la période selon le rapport d’amortissement total de la dette (ATD) moyen des emprunteurs détenant un prêt assuré par la SCHL (%)"},{"$f":"IFERROR(VLOOKUP(G3628,Translation!$A:$C,3,FALSE),G3628)","v":"36.7"},{"$f":"IFERROR(VLOOKUP(H3628,Translation!$A:$C,3,FALSE),H3628)","v":"Rapport d'amortissement total de la dette (ATD) moyen"}]
[22,"T2 2018","PROPRIÉTAIRES-OCCUPANTS, À L’UNITÉ","Terre-Neuve-et-Labrador",36.1674523510206,"Prêts hypothécaires assurés au cours de la période selon le rapport d’amortissement total de la dette (ATD) moyen des emprunteurs détenant un prêt assuré par la SCHL (%)","36.2","Terre-Neuve-et-Labrador",{"$f":"IFERROR(VLOOKUP(A3629,Translation!$A:$C,3,FALSE),A3629)","v":22},{"$f":"IFERROR(VLOOKUP(B3629,Translation!$A:$C,3,FALSE),B3629)","v":"T2 2018"},{"$f":"IFERROR(VLOOKUP(C3629,Translation!$A:$C,3,FALSE),C3629)","v":"PROPRIÉTAIRES-OCCUPANTS, À L’UNITÉ"},{"$f":"IFERROR(VLOOKUP(D3629,Translation!$A:$C,3,FALSE),D3629)","v":"Terre-Neuve-et-Labrador"},{"$f":"IFERROR(VLOOKUP(E3629,Translation!$A:$C,3,FALSE),E3629)","v":36.1674523510206},{"$f":"IFERROR(VLOOKUP(F3629,Translation!$A:$C,3,FALSE),F3629)","v":"Prêts hypothécaires assurés au cours de la période selon le rapport d’amortissement total de la dette (ATD) moyen des emprunteurs détenant un prêt assuré par la SCHL (%)"},{"$f":"IFERROR(VLOOKUP(G3629,Translation!$A:$C,3,FALSE),G3629)","v":"36.2"},{"$f":"IFERROR(VLOOKUP(H3629,Translation!$A:$C,3,FALSE),H3629)","v":"Terre-Neuve-et-Labrador"}]
[22,"T2 2018","PROPRIÉTAIRES-OCCUPANTS, À L’UNITÉ","Québec",36.006377355215669,"Prêts hypothécaires assurés au cours de la période selon le rapport d’amortissement total de la dette (ATD) moyen des emprunteurs détenant un prêt assuré par la SCHL (%)","36.0","Québec",{"$f":"IFERROR(VLOOKUP(A3633,Translation!$A:$C,3,FALSE),A3633)","v":22},{"$f":"IFERROR(VLOOKUP(B3633,Translation!$A:$C,3,FALSE),B3633)","v":"T2 2018"},{"$f":"IFERROR(VLOOKUP(C3633,Translation!$A:$C,3,FALSE),C3633)","v":"PROPRIÉTAIRES-OCCUPANTS, À L’UNITÉ"},{"$f":"IFERROR(VLOOKUP(D3633,Translation!$A:$C,3,FALSE),D3633)","v":"Québec"},{"$f":"IFERROR(VLOOKUP(E3633,Translation!$A:$C,3,FALSE),E3633)","v":36.006377355215669},{"$f":"IFERROR(VLOOKUP(F3633,Translation!$A:$C,3,FALSE),F3633)","v":"Prêts hypothécaires assurés au cours de la période selon le rapport d’amortissement total de la dette (ATD) moyen des emprunteurs détenant un prêt assuré par la SCHL (%)"},{"$f":"IFERROR(VLOOKUP(G3633,Translation!$A:$C,3,FALSE),G3633)","v":"36.0"},{"$f":"IFERROR(VLOOKUP(H3633,Translation!$A:$C,3,FALSE),H3633)","v":"Québec"}]
[22,"T2 2018","PROPRIÉTAIRES-OCCUPANTS, À L’UNITÉ","Ontario",37.595187217706915,"Prêts hypothécaires assurés au cours de la période selon le rapport d’amortissement total de la dette (ATD) moyen des emprunteurs détenant un prêt assuré par la SCHL (%)","37.6","Ontario",{"$f":"IFERROR(VLOOKUP(A3634,Translation!$A:$C,3,FALSE),A3634)","v":22},{"$f":"IFERROR(VLOOKUP(B3634,Translation!$A:$C,3,FALSE),B3634)","v":"T2 2018"},{"$f":"IFERROR(VLOOKUP(C3634,Translation!$A:$C,3,FALSE),C3634)","v":"PROPRIÉTAIRES-OCCUPANTS, À L’UNITÉ"},{"$f":"IFERROR(VLOOKUP(D3634,Translation!$A:$C,3,FALSE),D3634)","v":"Ontario"},{"$f":"IFERROR(VLOOKUP(E3634,Translation!$A:$C,3,FALSE),E3634)","v":37.595187217706915},{"$f":"IFERROR(VLOOKUP(F3634,Translation!$A:$C,3,FALSE),F3634)","v":"Prêts hypothécaires assurés au cours de la période selon le rapport d’amortissement total de la dette (ATD) moyen des emprunteurs détenant un prêt assuré par la SCHL (%)"},{"$f":"IFERROR(VLOOKUP(G3634,Translation!$A:$C,3,FALSE),G3634)","v":"37.6"},{"$f":"IFERROR(VLOOKUP(H3634,Translation!$A:$C,3,FALSE),H3634)","v":"Ontario"}]
[22,"T2 2018","PROPRIÉTAIRES-OCCUPANTS, À L’UNITÉ","Saskatchewan",36.203658776407345,"Prêts hypothécaires assurés au cours de la période selon le rapport d’amortissement total de la dette (ATD) moyen des emprunteurs détenant un prêt assuré par la SCHL (%)","36.2","Saskatchewan",{"$f":"IFERROR(VLOOKUP(A3636,Translation!$A:$C,3,FALSE),A3636)","v":22},{"$f":"IFERROR(VLOOKUP(B3636,Translation!$A:$C,3,FALSE),B3636)","v":"T2 2018"},{"$f":"IFERROR(VLOOKUP(C3636,Translation!$A:$C,3,FALSE),C3636)","v":"PROPRIÉTAIRES-OCCUPANTS, À L’UNITÉ"},{"$f":"IFERROR(VLOOKUP(D3636,Translation!$A:$C,3,FALSE),D3636)","v":"Saskatchewan"},{"$f":"IFERROR(VLOOKUP(E3636,Translation!$A:$C,3,FALSE),E3636)","v":36.203658776407345},{"$f":"IFERROR(VLOOKUP(F3636,Translation!$A:$C,3,FALSE),F3636)","v":"Prêts hypothécaires assurés au cours de la période selon le rapport d’amortissement total de la dette (ATD) moyen des emprunteurs détenant un prêt assuré par la SCHL (%)"},{"$f":"IFERROR(VLOOKUP(G3636,Translation!$A:$C,3,FALSE),G3636)","v":"36.2"},{"$f":"IFERROR(VLOOKUP(H3636,Translation!$A:$C,3,FALSE),H3636)","v":"Saskatchewan"}]
[22,"T2 2018","PROPRIÉTAIRES-OCCUPANTS, À L’UNITÉ","Territoires",35.276447300788149,"Prêts hypothécaires assurés au cours de la période selon le rapport d’amortissement total de la dette (ATD) moyen des emprunteurs détenant un prêt assuré par la SCHL (%)","35.3","Territoires",{"$f":"IFERROR(VLOOKUP(A3639,Translation!$A:$C,3,FALSE),A3639)","v":22},{"$f":"IFERROR(VLOOKUP(B3639,Translation!$A:$C,3,FALSE),B3639)","v":"T2 2018"},{"$f":"IFERROR(VLOOKUP(C3639,Translation!$A:$C,3,FALSE),C3639)","v":"PROPRIÉTAIRES-OCCUPANTS, À L’UNITÉ"},{"$f":"IFERROR(VLOOKUP(D3639,Translation!$A:$C,3,FALSE),D3639)","v":"Territoires"},{"$f":"IFERROR(VLOOKUP(E3639,Translation!$A:$C,3,FALSE),E3639)","v":35.276447300788149},{"$f":"IFERROR(VLOOKUP(F3639,Translation!$A:$C,3,FALSE),F3639)","v":"Prêts hypothécaires assurés au cours de la période selon le rapport d’amortissement total de la dette (ATD) moyen des emprunteurs détenant un prêt assuré par la SCHL (%)"},{"$f":"IFERROR(VLOOKUP(G3639,Translation!$A:$C,3,FALSE),G3639)","v":"35.3"},{"$f":"IFERROR(VLOOKUP(H3639,Translation!$A:$C,3,FALSE),H3639)","v":"Territoires"}]
[22,"Q2 2016","PROPRIÉTAIRES-OCCUPANTS, À L’UNITÉ","<= 30 %",70.151877210227681,"Prêts hypothécaires assurés au cours de la période selon le rapport d’amortissement brut de la dette (ABD) moyen des emprunteurs détenant un prêt assuré par la SCHL (%)","70.2"," <= 30 %",{"$f":"IFERROR(VLOOKUP(A3642,Translation!$A:$C,3,FALSE),A3642)","v":22},{"$f":"IFERROR(VLOOKUP(B3642,Translation!$A:$C,3,FALSE),B3642)","v":"Q2 2016"},{"$f":"IFERROR(VLOOKUP(C3642,Translation!$A:$C,3,FALSE),C3642)","v":"PROPRIÉTAIRES-OCCUPANTS, À L’UNITÉ"},{"$f":"IFERROR(VLOOKUP(D3642,Translation!$A:$C,3,FALSE),D3642)","v":"<= 30 %"},{"$f":"IFERROR(VLOOKUP(E3642,Translation!$A:$C,3,FALSE),E3642)","v":70.151877210227681},{"$f":"IFERROR(VLOOKUP(F3642,Translation!$A:$C,3,FALSE),F3642)","v":"Prêts hypothécaires assurés au cours de la période selon le rapport d’amortissement brut de la dette (ABD) moyen des emprunteurs détenant un prêt assuré par la SCHL (%)"},{"$f":"IFERROR(VLOOKUP(G3642,Translation!$A:$C,3,FALSE),G3642)","v":"70.2"},{"$f":"IFERROR(VLOOKUP(H3642,Translation!$A:$C,3,FALSE),H3642)","v":" <= 30 %"}]
[22,"Q3 2016","PROPRIÉTAIRES-OCCUPANTS, À L’UNITÉ","<= 30 %",67.784973695574763,"Prêts hypothécaires assurés au cours de la période selon le rapport d’amortissement brut de la dette (ABD) moyen des emprunteurs détenant un prêt assuré par la SCHL (%)","67.8"," <= 30 %",{"$f":"IFERROR(VLOOKUP(A3644,Translation!$A:$C,3,FALSE),A3644)","v":22},{"$f":"IFERROR(VLOOKUP(B3644,Translation!$A:$C,3,FALSE),B3644)","v":"Q3 2016"},{"$f":"IFERROR(VLOOKUP(C3644,Translation!$A:$C,3,FALSE),C3644)","v":"PROPRIÉTAIRES-OCCUPANTS, À L’UNITÉ"},{"$f":"IFERROR(VLOOKUP(D3644,Translation!$A:$C,3,FALSE),D3644)","v":"<= 30 %"},{"$f":"IFERROR(VLOOKUP(E3644,Translation!$A:$C,3,FALSE),E3644)","v":67.784973695574763},{"$f":"IFERROR(VLOOKUP(F3644,Translation!$A:$C,3,FALSE),F3644)","v":"Prêts hypothécaires assurés au cours de la période selon le rapport d’amortissement brut de la dette (ABD) moyen des emprunteurs détenant un prêt assuré par la SCHL (%)"},{"$f":"IFERROR(VLOOKUP(G3644,Translation!$A:$C,3,FALSE),G3644)","v":"67.8"},{"$f":"IFERROR(VLOOKUP(H3644,Translation!$A:$C,3,FALSE),H3644)","v":" <= 30 %"}]
[22,"T4 2017","PROPRIÉTAIRES-OCCUPANTS, À L’UNITÉ","<= 30 %",59.491035056469968,"Prêts hypothécaires assurés au cours de la période selon le rapport d’amortissement brut de la dette (ABD) moyen des emprunteurs détenant un prêt assuré par la SCHL (%)","59.5"," <= 30 %",{"$f":"IFERROR(VLOOKUP(A3647,Translation!$A:$C,3,FALSE),A3647)","v":22},{"$f":"IFERROR(VLOOKUP(B3647,Translation!$A:$C,3,FALSE),B3647)","v":"T4 2017"},{"$f":"IFERROR(VLOOKUP(C3647,Translation!$A:$C,3,FALSE),C3647)","v":"PROPRIÉTAIRES-OCCUPANTS, À L’UNITÉ"},{"$f":"IFERROR(VLOOKUP(D3647,Translation!$A:$C,3,FALSE),D3647)","v":"<= 30 %"},{"$f":"IFERROR(VLOOKUP(E3647,Translation!$A:$C,3,FALSE),E3647)","v":59.491035056469968},{"$f":"IFERROR(VLOOKUP(F3647,Translation!$A:$C,3,FALSE),F3647)","v":"Prêts hypothécaires assurés au cours de la période selon le rapport d’amortissement brut de la dette (ABD) moyen des emprunteurs détenant un prêt assuré par la SCHL (%)"},{"$f":"IFERROR(VLOOKUP(G3647,Translation!$A:$C,3,FALSE),G3647)","v":"59.5"},{"$f":"IFERROR(VLOOKUP(H3647,Translation!$A:$C,3,FALSE),H3647)","v":" <= 30 %"}]
[22,"Q2 2016","PROPRIÉTAIRES-OCCUPANTS, À L’UNITÉ","> 30 % <= 35 %",19.859492083606032,"Prêts hypothécaires assurés au cours de la période selon le rapport d’amortissement brut de la dette (ABD) moyen des emprunteurs détenant un prêt assuré par la SCHL (%)","19.9"," > 30 % <= 35 %",{"$f":"IFERROR(VLOOKUP(A3650,Translation!$A:$C,3,FALSE),A3650)","v":22},{"$f":"IFERROR(VLOOKUP(B3650,Translation!$A:$C,3,FALSE),B3650)","v":"Q2 2016"},{"$f":"IFERROR(VLOOKUP(C3650,Translation!$A:$C,3,FALSE),C3650)","v":"PROPRIÉTAIRES-OCCUPANTS, À L’UNITÉ"},{"$f":"IFERROR(VLOOKUP(D3650,Translation!$A:$C,3,FALSE),D3650)","v":"> 30 % <= 35 %"},{"$f":"IFERROR(VLOOKUP(E3650,Translation!$A:$C,3,FALSE),E3650)","v":19.859492083606032},{"$f":"IFERROR(VLOOKUP(F3650,Translation!$A:$C,3,FALSE),F3650)","v":"Prêts hypothécaires assurés au cours de la période selon le rapport d’amortissement brut de la dette (ABD) moyen des emprunteurs détenant un prêt assuré par la SCHL (%)"},{"$f":"IFERROR(VLOOKUP(G3650,Translation!$A:$C,3,FALSE),G3650)","v":"19.9"},{"$f":"IFERROR(VLOOKUP(H3650,Translation!$A:$C,3,FALSE),H3650)","v":" > 30 % <= 35 %"}]
[22,"Q3 2016","PROPRIÉTAIRES-OCCUPANTS, À L’UNITÉ","> 30 % <= 35 %",21.155385861728025,"Prêts hypothécaires assurés au cours de la période selon le rapport d’amortissement brut de la dette (ABD) moyen des emprunteurs détenant un prêt assuré par la SCHL (%)","21.2"," > 30 % <= 35 %",{"$f":"IFERROR(VLOOKUP(A3652,Translation!$A:$C,3,FALSE),A3652)","v":22},{"$f":"IFERROR(VLOOKUP(B3652,Translation!$A:$C,3,FALSE),B3652)","v":"Q3 2016"},{"$f":"IFERROR(VLOOKUP(C3652,Translation!$A:$C,3,FALSE),C3652)","v":"PROPRIÉTAIRES-OCCUPANTS, À L’UNITÉ"},{"$f":"IFERROR(VLOOKUP(D3652,Translation!$A:$C,3,FALSE),D3652)","v":"> 30 % <= 35 %"},{"$f":"IFERROR(VLOOKUP(E3652,Translation!$A:$C,3,FALSE),E3652)","v":21.155385861728025},{"$f":"IFERROR(VLOOKUP(F3652,Translation!$A:$C,3,FALSE),F3652)","v":"Prêts hypothécaires assurés au cours de la période selon le rapport d’amortissement brut de la dette (ABD) moyen des emprunteurs détenant un prêt assuré par la SCHL (%)"},{"$f":"IFERROR(VLOOKUP(G3652,Translation!$A:$C,3,FALSE),G3652)","v":"21.2"},{"$f":"IFERROR(VLOOKUP(H3652,Translation!$A:$C,3,FALSE),H3652)","v":" > 30 % <= 35 %"}]
[22,"T3 2017","PROPRIÉTAIRES-OCCUPANTS, À L’UNITÉ","> 30 % <= 35 %",23.41513366730274,"Prêts hypothécaires assurés au cours de la période selon le rapport d’amortissement brut de la dette (ABD) moyen des emprunteurs détenant un prêt assuré par la SCHL (%)","23.4"," > 30 % <= 35 %",{"$f":"IFERROR(VLOOKUP(A3653,Translation!$A:$C,3,FALSE),A3653)","v":22},{"$f":"IFERROR(VLOOKUP(B3653,Translation!$A:$C,3,FALSE),B3653)","v":"T3 2017"},{"$f":"IFERROR(VLOOKUP(C3653,Translation!$A:$C,3,FALSE),C3653)","v":"PROPRIÉTAIRES-OCCUPANTS, À L’UNITÉ"},{"$f":"IFERROR(VLOOKUP(D3653,Translation!$A:$C,3,FALSE),D3653)","v":"> 30 % <= 35 %"},{"$f":"IFERROR(VLOOKUP(E3653,Translation!$A:$C,3,FALSE),E3653)","v":23.41513366730274},{"$f":"IFERROR(VLOOKUP(F3653,Translation!$A:$C,3,FALSE),F3653)","v":"Prêts hypothécaires assurés au cours de la période selon le rapport d’amortissement brut de la dette (ABD) moyen des emprunteurs détenant un prêt assuré par la SCHL (%)"},{"$f":"IFERROR(VLOOKUP(G3653,Translation!$A:$C,3,FALSE),G3653)","v":"23.4"},{"$f":"IFERROR(VLOOKUP(H3653,Translation!$A:$C,3,FALSE),H3653)","v":" > 30 % <= 35 %"}]
[22,"T4 2017","PROPRIÉTAIRES-OCCUPANTS, À L’UNITÉ","> 30 % <= 35 %",24.486737505895839,"Prêts hypothécaires assurés au cours de la période selon le rapport d’amortissement brut de la dette (ABD) moyen des emprunteurs détenant un prêt assuré par la SCHL (%)","24.5"," > 30 % <= 35 %",{"$f":"IFERROR(VLOOKUP(A3655,Translation!$A:$C,3,FALSE),A3655)","v":22},{"$f":"IFERROR(VLOOKUP(B3655,Translation!$A:$C,3,FALSE),B3655)","v":"T4 2017"},{"$f":"IFERROR(VLOOKUP(C3655,Translation!$A:$C,3,FALSE),C3655)","v":"PROPRIÉTAIRES-OCCUPANTS, À L’UNITÉ"},{"$f":"IFERROR(VLOOKUP(D3655,Translation!$A:$C,3,FALSE),D3655)","v":"> 30 % <= 35 %"},{"$f":"IFERROR(VLOOKUP(E3655,Translation!$A:$C,3,FALSE),E3655)","v":24.486737505895839},{"$f":"IFERROR(VLOOKUP(F3655,Translation!$A:$C,3,FALSE),F3655)","v":"Prêts hypothécaires assurés au cours de la période selon le rapport d’amortissement brut de la dette (ABD) moyen des emprunteurs détenant un prêt assuré par la SCHL (%)"},{"$f":"IFERROR(VLOOKUP(G3655,Translation!$A:$C,3,FALSE),G3655)","v":"24.5"},{"$f":"IFERROR(VLOOKUP(H3655,Translation!$A:$C,3,FALSE),H3655)","v":" > 30 % <= 35 %"}]
[22,"Q2 2016","PROPRIÉTAIRES-OCCUPANTS, À L’UNITÉ","> 35 % <= 39 %",9.9886307061662976,"Prêts hypothécaires assurés au cours de la période selon le rapport d’amortissement brut de la dette (ABD) moyen des emprunteurs détenant un prêt assuré par la SCHL (%)","10.0"," > 35 % <= 39 %",{"$f":"IFERROR(VLOOKUP(A3658,Translation!$A:$C,3,FALSE),A3658)","v":22},{"$f":"IFERROR(VLOOKUP(B3658,Translation!$A:$C,3,FALSE),B3658)","v":"Q2 2016"},{"$f":"IFERROR(VLOOKUP(C3658,Translation!$A:$C,3,FALSE),C3658)","v":"PROPRIÉTAIRES-OCCUPANTS, À L’UNITÉ"},{"$f":"IFERROR(VLOOKUP(D3658,Translation!$A:$C,3,FALSE),D3658)","v":"> 35 % <= 39 %"},{"$f":"IFERROR(VLOOKUP(E3658,Translation!$A:$C,3,FALSE),E3658)","v":9.9886307061662976},{"$f":"IFERROR(VLOOKUP(F3658,Translation!$A:$C,3,FALSE),F3658)","v":"Prêts hypothécaires assurés au cours de la période selon le rapport d’amortissement brut de la dette (ABD) moyen des emprunteurs détenant un prêt assuré par la SCHL (%)"},{"$f":"IFERROR(VLOOKUP(G3658,Translation!$A:$C,3,FALSE),G3658)","v":"10.0"},{"$f":"IFERROR(VLOOKUP(H3658,Translation!$A:$C,3,FALSE),H3658)","v":" > 35 % <= 39 %"}]
[22,"T3 2017","PROPRIÉTAIRES-OCCUPANTS, À L’UNITÉ","> 35 % <= 39 %",15.859870457601739,"Prêts hypothécaires assurés au cours de la période selon le rapport d’amortissement brut de la dette (ABD) moyen des emprunteurs détenant un prêt assuré par la SCHL (%)","15.9"," > 35 % <= 39 %",{"$f":"IFERROR(VLOOKUP(A3661,Translation!$A:$C,3,FALSE),A3661)","v":22},{"$f":"IFERROR(VLOOKUP(B3661,Translation!$A:$C,3,FALSE),B3661)","v":"T3 2017"},{"$f":"IFERROR(VLOOKUP(C3661,Translation!$A:$C,3,FALSE),C3661)","v":"PROPRIÉTAIRES-OCCUPANTS, À L’UNITÉ"},{"$f":"IFERROR(VLOOKUP(D3661,Translation!$A:$C,3,FALSE),D3661)","v":"> 35 % <= 39 %"},{"$f":"IFERROR(VLOOKUP(E3661,Translation!$A:$C,3,FALSE),E3661)","v":15.859870457601739},{"$f":"IFERROR(VLOOKUP(F3661,Translation!$A:$C,3,FALSE),F3661)","v":"Prêts hypothécaires assurés au cours de la période selon le rapport d’amortissement brut de la dette (ABD) moyen des emprunteurs détenant un prêt assuré par la SCHL (%)"},{"$f":"IFERROR(VLOOKUP(G3661,Translation!$A:$C,3,FALSE),G3661)","v":"15.9"},{"$f":"IFERROR(VLOOKUP(H3661,Translation!$A:$C,3,FALSE),H3661)","v":" > 35 % <= 39 %"}]
[22,"T4 2017","PROPRIÉTAIRES-OCCUPANTS, À L’UNITÉ","> 35 % <= 39 %",16.015327747795411,"Prêts hypothécaires assurés au cours de la période selon le rapport d’amortissement brut de la dette (ABD) moyen des emprunteurs détenant un prêt assuré par la SCHL (%)","16.0"," > 35 % <= 39 %",{"$f":"IFERROR(VLOOKUP(A3663,Translation!$A:$C,3,FALSE),A3663)","v":22},{"$f":"IFERROR(VLOOKUP(B3663,Translation!$A:$C,3,FALSE),B3663)","v":"T4 2017"},{"$f":"IFERROR(VLOOKUP(C3663,Translation!$A:$C,3,FALSE),C3663)","v":"PROPRIÉTAIRES-OCCUPANTS, À L’UNITÉ"},{"$f":"IFERROR(VLOOKUP(D3663,Translation!$A:$C,3,FALSE),D3663)","v":"> 35 % <= 39 %"},{"$f":"IFERROR(VLOOKUP(E3663,Translation!$A:$C,3,FALSE),E3663)","v":16.015327747795411},{"$f":"IFERROR(VLOOKUP(F3663,Translation!$A:$C,3,FALSE),F3663)","v":"Prêts hypothécaires assurés au cours de la période selon le rapport d’amortissement brut de la dette (ABD) moyen des emprunteurs détenant un prêt assuré par la SCHL (%)"},{"$f":"IFERROR(VLOOKUP(G3663,Translation!$A:$C,3,FALSE),G3663)","v":"16.0"},{"$f":"IFERROR(VLOOKUP(H3663,Translation!$A:$C,3,FALSE),H3663)","v":" > 35 % <= 39 %"}]
[22,"Q4 2016","PROPRIÉTAIRES-OCCUPANTS, À L’UNITÉ","> 39 %",5.3170079787203412E-3,"Prêts hypothécaires assurés au cours de la période selon le rapport d’amortissement brut de la dette (ABD) moyen des emprunteurs détenant un prêt assuré par la SCHL (%)","0.0"," > 39 %",{"$f":"IFERROR(VLOOKUP(A3666,Translation!$A:$C,3,FALSE),A3666)","v":22},{"$f":"IFERROR(VLOOKUP(B3666,Translation!$A:$C,3,FALSE),B3666)","v":"Q4 2016"},{"$f":"IFERROR(VLOOKUP(C3666,Translation!$A:$C,3,FALSE),C3666)","v":"PROPRIÉTAIRES-OCCUPANTS, À L’UNITÉ"},{"$f":"IFERROR(VLOOKUP(D3666,Translation!$A:$C,3,FALSE),D3666)","v":"> 39 %"},{"$f":"IFERROR(VLOOKUP(E3666,Translation!$A:$C,3,FALSE),E3666)","v":5.3170079787203412E-3},{"$f":"IFERROR(VLOOKUP(F3666,Translation!$A:$C,3,FALSE),F3666)","v":"Prêts hypothécaires assurés au cours de la période selon le rapport d’amortissement brut de la dette (ABD) moyen des emprunteurs détenant un prêt assuré par la SCHL (%)"},{"$f":"IFERROR(VLOOKUP(G3666,Translation!$A:$C,3,FALSE),G3666)","v":"0.0"},{"$f":"IFERROR(VLOOKUP(H3666,Translation!$A:$C,3,FALSE),H3666)","v":" > 39 %"}]
[22,"T1 2018","PROPRIÉTAIRES-OCCUPANTS, À L’UNITÉ","Rapport d'amortissement brut de la dette (ABD) moyen",27.602809720735401,"Prêts hypothécaires assurés au cours de la période selon le rapport d’amortissement brut de la dette (ABD) moyen des emprunteurs détenant un prêt assuré par la SCHL (%)","27.6","Rapport d'amortissement brut de la dette (ABD) moyen",{"$f":"IFERROR(VLOOKUP(A3669,Translation!$A:$C,3,FALSE),A3669)","v":22},{"$f":"IFERROR(VLOOKUP(B3669,Translation!$A:$C,3,FALSE),B3669)","v":"T1 2018"},{"$f":"IFERROR(VLOOKUP(C3669,Translation!$A:$C,3,FALSE),C3669)","v":"PROPRIÉTAIRES-OCCUPANTS, À L’UNITÉ"},{"$f":"IFERROR(VLOOKUP(D3669,Translation!$A:$C,3,FALSE),D3669)","v":"Rapport d'amortissement brut de la dette (ABD) moyen"},{"$f":"IFERROR(VLOOKUP(E3669,Translation!$A:$C,3,FALSE),E3669)","v":27.602809720735401},{"$f":"IFERROR(VLOOKUP(F3669,Translation!$A:$C,3,FALSE),F3669)","v":"Prêts hypothécaires assurés au cours de la période selon le rapport d’amortissement brut de la dette (ABD) moyen des emprunteurs détenant un prêt assuré par la SCHL (%)"},{"$f":"IFERROR(VLOOKUP(G3669,Translation!$A:$C,3,FALSE),G3669)","v":"27.6"},{"$f":"IFERROR(VLOOKUP(H3669,Translation!$A:$C,3,FALSE),H3669)","v":"Rapport d'amortissement brut de la dette (ABD) moyen"}]
[22,"T2 2017","PROPRIÉTAIRES-OCCUPANTS, À L’UNITÉ","Rapport d'amortissement brut de la dette (ABD) moyen",26.615672708585329,"Prêts hypothécaires assurés au cours de la période selon le rapport d’amortissement brut de la dette (ABD) moyen des emprunteurs détenant un prêt assuré par la SCHL (%)","26.6","Rapport d'amortissement brut de la dette (ABD) moyen",{"$f":"IFERROR(VLOOKUP(A3671,Translation!$A:$C,3,FALSE),A3671)","v":22},{"$f":"IFERROR(VLOOKUP(B3671,Translation!$A:$C,3,FALSE),B3671)","v":"T2 2017"},{"$f":"IFERROR(VLOOKUP(C3671,Translation!$A:$C,3,FALSE),C3671)","v":"PROPRIÉTAIRES-OCCUPANTS, À L’UNITÉ"},{"$f":"IFERROR(VLOOKUP(D3671,Translation!$A:$C,3,FALSE),D3671)","v":"Rapport d'amortissement brut de la dette (ABD) moyen"},{"$f":"IFERROR(VLOOKUP(E3671,Translation!$A:$C,3,FALSE),E3671)","v":26.615672708585329},{"$f":"IFERROR(VLOOKUP(F3671,Translation!$A:$C,3,FALSE),F3671)","v":"Prêts hypothécaires assurés au cours de la période selon le rapport d’amortissement brut de la dette (ABD) moyen des emprunteurs détenant un prêt assuré par la SCHL (%)"},{"$f":"IFERROR(VLOOKUP(G3671,Translation!$A:$C,3,FALSE),G3671)","v":"26.6"},{"$f":"IFERROR(VLOOKUP(H3671,Translation!$A:$C,3,FALSE),H3671)","v":"Rapport d'amortissement brut de la dette (ABD) moyen"}]
[22,"Q3 2016","PROPRIÉTAIRES-OCCUPANTS, À L’UNITÉ","Rapport d'amortissement brut de la dette (ABD) moyen",25.651410145444199,"Prêts hypothécaires assurés au cours de la période selon le rapport d’amortissement brut de la dette (ABD) moyen des emprunteurs détenant un prêt assuré par la SCHL (%)","25.7","Rapport d'amortissement brut de la dette (ABD) moyen",{"$f":"IFERROR(VLOOKUP(A3672,Translation!$A:$C,3,FALSE),A3672)","v":22},{"$f":"IFERROR(VLOOKUP(B3672,Translation!$A:$C,3,FALSE),B3672)","v":"Q3 2016"},{"$f":"IFERROR(VLOOKUP(C3672,Translation!$A:$C,3,FALSE),C3672)","v":"PROPRIÉTAIRES-OCCUPANTS, À L’UNITÉ"},{"$f":"IFERROR(VLOOKUP(D3672,Translation!$A:$C,3,FALSE),D3672)","v":"Rapport d'amortissement brut de la dette (ABD) moyen"},{"$f":"IFERROR(VLOOKUP(E3672,Translation!$A:$C,3,FALSE),E3672)","v":25.651410145444199},{"$f":"IFERROR(VLOOKUP(F3672,Translation!$A:$C,3,FALSE),F3672)","v":"Prêts hypothécaires assurés au cours de la période selon le rapport d’amortissement brut de la dette (ABD) moyen des emprunteurs détenant un prêt assuré par la SCHL (%)"},{"$f":"IFERROR(VLOOKUP(G3672,Translation!$A:$C,3,FALSE),G3672)","v":"25.7"},{"$f":"IFERROR(VLOOKUP(H3672,Translation!$A:$C,3,FALSE),H3672)","v":"Rapport d'amortissement brut de la dette (ABD) moyen"}]
[22,"T1 2017","PROPRIÉTAIRES-OCCUPANTS, À L’UNITÉ","Terre-Neuve-et-Labrador",21.945416074773654,"Prêts hypothécaires assurés au cours de la période selon le rapport d’amortissement brut de la dette (ABD) moyen des emprunteurs détenant un prêt assuré par la SCHL (%)","21.9","Terre-Neuve-et-Labrador",{"$f":"IFERROR(VLOOKUP(A3676,Translation!$A:$C,3,FALSE),A3676)","v":22},{"$f":"IFERROR(VLOOKUP(B3676,Translation!$A:$C,3,FALSE),B3676)","v":"T1 2017"},{"$f":"IFERROR(VLOOKUP(C3676,Translation!$A:$C,3,FALSE),C3676)","v":"PROPRIÉTAIRES-OCCUPANTS, À L’UNITÉ"},{"$f":"IFERROR(VLOOKUP(D3676,Translation!$A:$C,3,FALSE),D3676)","v":"Terre-Neuve-et-Labrador"},{"$f":"IFERROR(VLOOKUP(E3676,Translation!$A:$C,3,FALSE),E3676)","v":21.945416074773654},{"$f":"IFERROR(VLOOKUP(F3676,Translation!$A:$C,3,FALSE),F3676)","v":"Prêts hypothécaires assurés au cours de la période selon le rapport d’amortissement brut de la dette (ABD) moyen des emprunteurs détenant un prêt assuré par la SCHL (%)"},{"$f":"IFERROR(VLOOKUP(G3676,Translation!$A:$C,3,FALSE),G3676)","v":"21.9"},{"$f":"IFERROR(VLOOKUP(H3676,Translation!$A:$C,3,FALSE),H3676)","v":"Terre-Neuve-et-Labrador"}]
[22,"T1 2017","PROPRIÉTAIRES-OCCUPANTS, À L’UNITÉ","Île-du-Prince-Édouard",21.403252699477971,"Prêts hypothécaires assurés au cours de la période selon le rapport d’amortissement brut de la dette (ABD) moyen des emprunteurs détenant un prêt assuré par la SCHL (%)","21.4","Île-du-Prince-Édouard",{"$f":"IFERROR(VLOOKUP(A3677,Translation!$A:$C,3,FALSE),A3677)","v":22},{"$f":"IFERROR(VLOOKUP(B3677,Translation!$A:$C,3,FALSE),B3677)","v":"T1 2017"},{"$f":"IFERROR(VLOOKUP(C3677,Translation!$A:$C,3,FALSE),C3677)","v":"PROPRIÉTAIRES-OCCUPANTS, À L’UNITÉ"},{"$f":"IFERROR(VLOOKUP(D3677,Translation!$A:$C,3,FALSE),D3677)","v":"Île-du-Prince-Édouard"},{"$f":"IFERROR(VLOOKUP(E3677,Translation!$A:$C,3,FALSE),E3677)","v":21.403252699477971},{"$f":"IFERROR(VLOOKUP(F3677,Translation!$A:$C,3,FALSE),F3677)","v":"Prêts hypothécaires assurés au cours de la période selon le rapport d’amortissement brut de la dette (ABD) moyen des emprunteurs détenant un prêt assuré par la SCHL (%)"},{"$f":"IFERROR(VLOOKUP(G3677,Translation!$A:$C,3,FALSE),G3677)","v":"21.4"},{"$f":"IFERROR(VLOOKUP(H3677,Translation!$A:$C,3,FALSE),H3677)","v":"Île-du-Prince-Édouard"}]
[22,"T1 2017","PROPRIÉTAIRES-OCCUPANTS, À L’UNITÉ","Québec",24.889078509476757,"Prêts hypothécaires assurés au cours de la période selon le rapport d’amortissement brut de la dette (ABD) moyen des emprunteurs détenant un prêt assuré par la SCHL (%)","24.9","Québec",{"$f":"IFERROR(VLOOKUP(A3680,Translation!$A:$C,3,FALSE),A3680)","v":22},{"$f":"IFERROR(VLOOKUP(B3680,Translation!$A:$C,3,FALSE),B3680)","v":"T1 2017"},{"$f":"IFERROR(VLOOKUP(C3680,Translation!$A:$C,3,FALSE),C3680)","v":"PROPRIÉTAIRES-OCCUPANTS, À L’UNITÉ"},{"$f":"IFERROR(VLOOKUP(D3680,Translation!$A:$C,3,FALSE),D3680)","v":"Québec"},{"$f":"IFERROR(VLOOKUP(E3680,Translation!$A:$C,3,FALSE),E3680)","v":24.889078509476757},{"$f":"IFERROR(VLOOKUP(F3680,Translation!$A:$C,3,FALSE),F3680)","v":"Prêts hypothécaires assurés au cours de la période selon le rapport d’amortissement brut de la dette (ABD) moyen des emprunteurs détenant un prêt assuré par la SCHL (%)"},{"$f":"IFERROR(VLOOKUP(G3680,Translation!$A:$C,3,FALSE),G3680)","v":"24.9"},{"$f":"IFERROR(VLOOKUP(H3680,Translation!$A:$C,3,FALSE),H3680)","v":"Québec"}]
[22,"T1 2017","PROPRIÉTAIRES-OCCUPANTS, À L’UNITÉ","Manitoba",26.406277626741257,"Prêts hypothécaires assurés au cours de la période selon le rapport d’amortissement brut de la dette (ABD) moyen des emprunteurs détenant un prêt assuré par la SCHL (%)","26.4","Manitoba",{"$f":"IFERROR(VLOOKUP(A3682,Translation!$A:$C,3,FALSE),A3682)","v":22},{"$f":"IFERROR(VLOOKUP(B3682,Translation!$A:$C,3,FALSE),B3682)","v":"T1 2017"},{"$f":"IFERROR(VLOOKUP(C3682,Translation!$A:$C,3,FALSE),C3682)","v":"PROPRIÉTAIRES-OCCUPANTS, À L’UNITÉ"},{"$f":"IFERROR(VLOOKUP(D3682,Translation!$A:$C,3,FALSE),D3682)","v":"Manitoba"},{"$f":"IFERROR(VLOOKUP(E3682,Translation!$A:$C,3,FALSE),E3682)","v":26.406277626741257},{"$f":"IFERROR(VLOOKUP(F3682,Translation!$A:$C,3,FALSE),F3682)","v":"Prêts hypothécaires assurés au cours de la période selon le rapport d’amortissement brut de la dette (ABD) moyen des emprunteurs détenant un prêt assuré par la SCHL (%)"},{"$f":"IFERROR(VLOOKUP(G3682,Translation!$A:$C,3,FALSE),G3682)","v":"26.4"},{"$f":"IFERROR(VLOOKUP(H3682,Translation!$A:$C,3,FALSE),H3682)","v":"Manitoba"}]
[22,"T1 2017","PROPRIÉTAIRES-OCCUPANTS, À L’UNITÉ","Territoires",24.427459435791476,"Prêts hypothécaires assurés au cours de la période selon le rapport d’amortissement brut de la dette (ABD) moyen des emprunteurs détenant un prêt assuré par la SCHL (%)","24.4","Territoires",{"$f":"IFERROR(VLOOKUP(A3686,Translation!$A:$C,3,FALSE),A3686)","v":22},{"$f":"IFERROR(VLOOKUP(B3686,Translation!$A:$C,3,FALSE),B3686)","v":"T1 2017"},{"$f":"IFERROR(VLOOKUP(C3686,Translation!$A:$C,3,FALSE),C3686)","v":"PROPRIÉTAIRES-OCCUPANTS, À L’UNITÉ"},{"$f":"IFERROR(VLOOKUP(D3686,Translation!$A:$C,3,FALSE),D3686)","v":"Territoires"},{"$f":"IFERROR(VLOOKUP(E3686,Translation!$A:$C,3,FALSE),E3686)","v":24.427459435791476},{"$f":"IFERROR(VLOOKUP(F3686,Translation!$A:$C,3,FALSE),F3686)","v":"Prêts hypothécaires assurés au cours de la période selon le rapport d’amortissement brut de la dette (ABD) moyen des emprunteurs détenant un prêt assuré par la SCHL (%)"},{"$f":"IFERROR(VLOOKUP(G3686,Translation!$A:$C,3,FALSE),G3686)","v":"24.4"},{"$f":"IFERROR(VLOOKUP(H3686,Translation!$A:$C,3,FALSE),H3686)","v":"Territoires"}]
[22,"T1 2018","PROPRIÉTAIRES-OCCUPANTS, À L’UNITÉ","Terre-Neuve-et-Labrador",22.140912307511957,"Prêts hypothécaires assurés au cours de la période selon le rapport d’amortissement brut de la dette (ABD) moyen des emprunteurs détenant un prêt assuré par la SCHL (%)","22.1","Terre-Neuve-et-Labrador",{"$f":"IFERROR(VLOOKUP(A3687,Translation!$A:$C,3,FALSE),A3687)","v":22},{"$f":"IFERROR(VLOOKUP(B3687,Translation!$A:$C,3,FALSE),B3687)","v":"T1 2018"},{"$f":"IFERROR(VLOOKUP(C3687,Translation!$A:$C,3,FALSE),C3687)","v":"PROPRIÉTAIRES-OCCUPANTS, À L’UNITÉ"},{"$f":"IFERROR(VLOOKUP(D3687,Translation!$A:$C,3,FALSE),D3687)","v":"Terre-Neuve-et-Labrador"},{"$f":"IFERROR(VLOOKUP(E3687,Translation!$A:$C,3,FALSE),E3687)","v":22.140912307511957},{"$f":"IFERROR(VLOOKUP(F3687,Translation!$A:$C,3,FALSE),F3687)","v":"Prêts hypothécaires assurés au cours de la période selon le rapport d’amortissement brut de la dette (ABD) moyen des emprunteurs détenant un prêt assuré par la SCHL (%)"},{"$f":"IFERROR(VLOOKUP(G3687,Translation!$A:$C,3,FALSE),G3687)","v":"22.1"},{"$f":"IFERROR(VLOOKUP(H3687,Translation!$A:$C,3,FALSE),H3687)","v":"Terre-Neuve-et-Labrador"}]
[22,"T1 2018","PROPRIÉTAIRES-OCCUPANTS, À L’UNITÉ","Nouveau-Brunswick",20.901294764425536,"Prêts hypothécaires assurés au cours de la période selon le rapport d’amortissement brut de la dette (ABD) moyen des emprunteurs détenant un prêt assuré par la SCHL (%)","20.9","Nouveau-Brunswick",{"$f":"IFERROR(VLOOKUP(A3690,Translation!$A:$C,3,FALSE),A3690)","v":22},{"$f":"IFERROR(VLOOKUP(B3690,Translation!$A:$C,3,FALSE),B3690)","v":"T1 2018"},{"$f":"IFERROR(VLOOKUP(C3690,Translation!$A:$C,3,FALSE),C3690)","v":"PROPRIÉTAIRES-OCCUPANTS, À L’UNITÉ"},{"$f":"IFERROR(VLOOKUP(D3690,Translation!$A:$C,3,FALSE),D3690)","v":"Nouveau-Brunswick"},{"$f":"IFERROR(VLOOKUP(E3690,Translation!$A:$C,3,FALSE),E3690)","v":20.901294764425536},{"$f":"IFERROR(VLOOKUP(F3690,Translation!$A:$C,3,FALSE),F3690)","v":"Prêts hypothécaires assurés au cours de la période selon le rapport d’amortissement brut de la dette (ABD) moyen des emprunteurs détenant un prêt assuré par la SCHL (%)"},{"$f":"IFERROR(VLOOKUP(G3690,Translation!$A:$C,3,FALSE),G3690)","v":"20.9"},{"$f":"IFERROR(VLOOKUP(H3690,Translation!$A:$C,3,FALSE),H3690)","v":"Nouveau-Brunswick"}]
[22,"T1 2018","PROPRIÉTAIRES-OCCUPANTS, À L’UNITÉ","Québec",25.777405555173793,"Prêts hypothécaires assurés au cours de la période selon le rapport d’amortissement brut de la dette (ABD) moyen des emprunteurs détenant un prêt assuré par la SCHL (%)","25.8","Québec",{"$f":"IFERROR(VLOOKUP(A3691,Translation!$A:$C,3,FALSE),A3691)","v":22},{"$f":"IFERROR(VLOOKUP(B3691,Translation!$A:$C,3,FALSE),B3691)","v":"T1 2018"},{"$f":"IFERROR(VLOOKUP(C3691,Translation!$A:$C,3,FALSE),C3691)","v":"PROPRIÉTAIRES-OCCUPANTS, À L’UNITÉ"},{"$f":"IFERROR(VLOOKUP(D3691,Translation!$A:$C,3,FALSE),D3691)","v":"Québec"},{"$f":"IFERROR(VLOOKUP(E3691,Translation!$A:$C,3,FALSE),E3691)","v":25.777405555173793},{"$f":"IFERROR(VLOOKUP(F3691,Translation!$A:$C,3,FALSE),F3691)","v":"Prêts hypothécaires assurés au cours de la période selon le rapport d’amortissement brut de la dette (ABD) moyen des emprunteurs détenant un prêt assuré par la SCHL (%)"},{"$f":"IFERROR(VLOOKUP(G3691,Translation!$A:$C,3,FALSE),G3691)","v":"25.8"},{"$f":"IFERROR(VLOOKUP(H3691,Translation!$A:$C,3,FALSE),H3691)","v":"Québec"}]
[22,"T1 2018","PROPRIÉTAIRES-OCCUPANTS, À L’UNITÉ","Alberta",27.745315265614945,"Prêts hypothécaires assurés au cours de la période selon le rapport d’amortissement brut de la dette (ABD) moyen des emprunteurs détenant un prêt assuré par la SCHL (%)","27.7","Alberta",{"$f":"IFERROR(VLOOKUP(A3695,Translation!$A:$C,3,FALSE),A3695)","v":22},{"$f":"IFERROR(VLOOKUP(B3695,Translation!$A:$C,3,FALSE),B3695)","v":"T1 2018"},{"$f":"IFERROR(VLOOKUP(C3695,Translation!$A:$C,3,FALSE),C3695)","v":"PROPRIÉTAIRES-OCCUPANTS, À L’UNITÉ"},{"$f":"IFERROR(VLOOKUP(D3695,Translation!$A:$C,3,FALSE),D3695)","v":"Alberta"},{"$f":"IFERROR(VLOOKUP(E3695,Translation!$A:$C,3,FALSE),E3695)","v":27.745315265614945},{"$f":"IFERROR(VLOOKUP(F3695,Translation!$A:$C,3,FALSE),F3695)","v":"Prêts hypothécaires assurés au cours de la période selon le rapport d’amortissement brut de la dette (ABD) moyen des emprunteurs détenant un prêt assuré par la SCHL (%)"},{"$f":"IFERROR(VLOOKUP(G3695,Translation!$A:$C,3,FALSE),G3695)","v":"27.7"},{"$f":"IFERROR(VLOOKUP(H3695,Translation!$A:$C,3,FALSE),H3695)","v":"Alberta"}]
[22,"T1 2018","PROPRIÉTAIRES-OCCUPANTS, À L’UNITÉ","Territoires",26.7747943993379,"Prêts hypothécaires assurés au cours de la période selon le rapport d’amortissement brut de la dette (ABD) moyen des emprunteurs détenant un prêt assuré par la SCHL (%)","26.8","Territoires",{"$f":"IFERROR(VLOOKUP(A3697,Translation!$A:$C,3,FALSE),A3697)","v":22},{"$f":"IFERROR(VLOOKUP(B3697,Translation!$A:$C,3,FALSE),B3697)","v":"T1 2018"},{"$f":"IFERROR(VLOOKUP(C3697,Translation!$A:$C,3,FALSE),C3697)","v":"PROPRIÉTAIRES-OCCUPANTS, À L’UNITÉ"},{"$f":"IFERROR(VLOOKUP(D3697,Translation!$A:$C,3,FALSE),D3697)","v":"Territoires"},{"$f":"IFERROR(VLOOKUP(E3697,Translation!$A:$C,3,FALSE),E3697)","v":26.7747943993379},{"$f":"IFERROR(VLOOKUP(F3697,Translation!$A:$C,3,FALSE),F3697)","v":"Prêts hypothécaires assurés au cours de la période selon le rapport d’amortissement brut de la dette (ABD) moyen des emprunteurs détenant un prêt assuré par la SCHL (%)"},{"$f":"IFERROR(VLOOKUP(G3697,Translation!$A:$C,3,FALSE),G3697)","v":"26.8"},{"$f":"IFERROR(VLOOKUP(H3697,Translation!$A:$C,3,FALSE),H3697)","v":"Territoires"}]
[22,"Q2 2016","PROPRIÉTAIRES-OCCUPANTS, À L’UNITÉ","Nouvelle-Écosse",20.388943190556056,"Prêts hypothécaires assurés au cours de la période selon le rapport d’amortissement brut de la dette (ABD) moyen des emprunteurs détenant un prêt assuré par la SCHL (%)","20.4","Nouvelle-Écosse",{"$f":"IFERROR(VLOOKUP(A3700,Translation!$A:$C,3,FALSE),A3700)","v":22},{"$f":"IFERROR(VLOOKUP(B3700,Translation!$A:$C,3,FALSE),B3700)","v":"Q2 2016"},{"$f":"IFERROR(VLOOKUP(C3700,Translation!$A:$C,3,FALSE),C3700)","v":"PROPRIÉTAIRES-OCCUPANTS, À L’UNITÉ"},{"$f":"IFERROR(VLOOKUP(D3700,Translation!$A:$C,3,FALSE),D3700)","v":"Nouvelle-Écosse"},{"$f":"IFERROR(VLOOKUP(E3700,Translation!$A:$C,3,FALSE),E3700)","v":20.388943190556056},{"$f":"IFERROR(VLOOKUP(F3700,Translation!$A:$C,3,FALSE),F3700)","v":"Prêts hypothécaires assurés au cours de la période selon le rapport d’amortissement brut de la dette (ABD) moyen des emprunteurs détenant un prêt assuré par la SCHL (%)"},{"$f":"IFERROR(VLOOKUP(G3700,Translation!$A:$C,3,FALSE),G3700)","v":"20.4"},{"$f":"IFERROR(VLOOKUP(H3700,Translation!$A:$C,3,FALSE),H3700)","v":"Nouvelle-Écosse"}]
[22,"Q2 2016","PROPRIÉTAIRES-OCCUPANTS, À L’UNITÉ","Nouveau-Brunswick",19.365788541534844,"Prêts hypothécaires assurés au cours de la période selon le rapport d’amortissement brut de la dette (ABD) moyen des emprunteurs détenant un prêt assuré par la SCHL (%)","19.4","Nouveau-Brunswick",{"$f":"IFERROR(VLOOKUP(A3701,Translation!$A:$C,3,FALSE),A3701)","v":22},{"$f":"IFERROR(VLOOKUP(B3701,Translation!$A:$C,3,FALSE),B3701)","v":"Q2 2016"},{"$f":"IFERROR(VLOOKUP(C3701,Translation!$A:$C,3,FALSE),C3701)","v":"PROPRIÉTAIRES-OCCUPANTS, À L’UNITÉ"},{"$f":"IFERROR(VLOOKUP(D3701,Translation!$A:$C,3,FALSE),D3701)","v":"Nouveau-Brunswick"},{"$f":"IFERROR(VLOOKUP(E3701,Translation!$A:$C,3,FALSE),E3701)","v":19.365788541534844},{"$f":"IFERROR(VLOOKUP(F3701,Translation!$A:$C,3,FALSE),F3701)","v":"Prêts hypothécaires assurés au cours de la période selon le rapport d’amortissement brut de la dette (ABD) moyen des emprunteurs détenant un prêt assuré par la SCHL (%)"},{"$f":"IFERROR(VLOOKUP(G3701,Translation!$A:$C,3,FALSE),G3701)","v":"19.4"},{"$f":"IFERROR(VLOOKUP(H3701,Translation!$A:$C,3,FALSE),H3701)","v":"Nouveau-Brunswick"}]
[22,"Q2 2016","PROPRIÉTAIRES-OCCUPANTS, À L’UNITÉ","Saskatchewan",23.431564165086556,"Prêts hypothécaires assurés au cours de la période selon le rapport d’amortissement brut de la dette (ABD) moyen des emprunteurs détenant un prêt assuré par la SCHL (%)","23.4","Saskatchewan",{"$f":"IFERROR(VLOOKUP(A3705,Translation!$A:$C,3,FALSE),A3705)","v":22},{"$f":"IFERROR(VLOOKUP(B3705,Translation!$A:$C,3,FALSE),B3705)","v":"Q2 2016"},{"$f":"IFERROR(VLOOKUP(C3705,Translation!$A:$C,3,FALSE),C3705)","v":"PROPRIÉTAIRES-OCCUPANTS, À L’UNITÉ"},{"$f":"IFERROR(VLOOKUP(D3705,Translation!$A:$C,3,FALSE),D3705)","v":"Saskatchewan"},{"$f":"IFERROR(VLOOKUP(E3705,Translation!$A:$C,3,FALSE),E3705)","v":23.431564165086556},{"$f":"IFERROR(VLOOKUP(F3705,Translation!$A:$C,3,FALSE),F3705)","v":"Prêts hypothécaires assurés au cours de la période selon le rapport d’amortissement brut de la dette (ABD) moyen des emprunteurs détenant un prêt assuré par la SCHL (%)"},{"$f":"IFERROR(VLOOKUP(G3705,Translation!$A:$C,3,FALSE),G3705)","v":"23.4"},{"$f":"IFERROR(VLOOKUP(H3705,Translation!$A:$C,3,FALSE),H3705)","v":"Saskatchewan"}]
[22,"Q2 2016","PROPRIÉTAIRES-OCCUPANTS, À L’UNITÉ","Alberta",25.572064638078185,"Prêts hypothécaires assurés au cours de la période selon le rapport d’amortissement brut de la dette (ABD) moyen des emprunteurs détenant un prêt assuré par la SCHL (%)","25.6","Alberta",{"$f":"IFERROR(VLOOKUP(A3706,Translation!$A:$C,3,FALSE),A3706)","v":22},{"$f":"IFERROR(VLOOKUP(B3706,Translation!$A:$C,3,FALSE),B3706)","v":"Q2 2016"},{"$f":"IFERROR(VLOOKUP(C3706,Translation!$A:$C,3,FALSE),C3706)","v":"PROPRIÉTAIRES-OCCUPANTS, À L’UNITÉ"},{"$f":"IFERROR(VLOOKUP(D3706,Translation!$A:$C,3,FALSE),D3706)","v":"Alberta"},{"$f":"IFERROR(VLOOKUP(E3706,Translation!$A:$C,3,FALSE),E3706)","v":25.572064638078185},{"$f":"IFERROR(VLOOKUP(F3706,Translation!$A:$C,3,FALSE),F3706)","v":"Prêts hypothécaires assurés au cours de la période selon le rapport d’amortissement brut de la dette (ABD) moyen des emprunteurs détenant un prêt assuré par la SCHL (%)"},{"$f":"IFERROR(VLOOKUP(G3706,Translation!$A:$C,3,FALSE),G3706)","v":"25.6"},{"$f":"IFERROR(VLOOKUP(H3706,Translation!$A:$C,3,FALSE),H3706)","v":"Alberta"}]
[22,"T2 2017","PROPRIÉTAIRES-OCCUPANTS, À L’UNITÉ","Île-du-Prince-Édouard",19.828975424566895,"Prêts hypothécaires assurés au cours de la période selon le rapport d’amortissement brut de la dette (ABD) moyen des emprunteurs détenant un prêt assuré par la SCHL (%)","19.8","Île-du-Prince-Édouard",{"$f":"IFERROR(VLOOKUP(A3710,Translation!$A:$C,3,FALSE),A3710)","v":22},{"$f":"IFERROR(VLOOKUP(B3710,Translation!$A:$C,3,FALSE),B3710)","v":"T2 2017"},{"$f":"IFERROR(VLOOKUP(C3710,Translation!$A:$C,3,FALSE),C3710)","v":"PROPRIÉTAIRES-OCCUPANTS, À L’UNITÉ"},{"$f":"IFERROR(VLOOKUP(D3710,Translation!$A:$C,3,FALSE),D3710)","v":"Île-du-Prince-Édouard"},{"$f":"IFERROR(VLOOKUP(E3710,Translation!$A:$C,3,FALSE),E3710)","v":19.828975424566895},{"$f":"IFERROR(VLOOKUP(F3710,Translation!$A:$C,3,FALSE),F3710)","v":"Prêts hypothécaires assurés au cours de la période selon le rapport d’amortissement brut de la dette (ABD) moyen des emprunteurs détenant un prêt assuré par la SCHL (%)"},{"$f":"IFERROR(VLOOKUP(G3710,Translation!$A:$C,3,FALSE),G3710)","v":"19.8"},{"$f":"IFERROR(VLOOKUP(H3710,Translation!$A:$C,3,FALSE),H3710)","v":"Île-du-Prince-Édouard"}]
[22,"T2 2017","PROPRIÉTAIRES-OCCUPANTS, À L’UNITÉ","Nouvelle-Écosse",22.32736834267622,"Prêts hypothécaires assurés au cours de la période selon le rapport d’amortissement brut de la dette (ABD) moyen des emprunteurs détenant un prêt assuré par la SCHL (%)","22.3","Nouvelle-Écosse",{"$f":"IFERROR(VLOOKUP(A3711,Translation!$A:$C,3,FALSE),A3711)","v":22},{"$f":"IFERROR(VLOOKUP(B3711,Translation!$A:$C,3,FALSE),B3711)","v":"T2 2017"},{"$f":"IFERROR(VLOOKUP(C3711,Translation!$A:$C,3,FALSE),C3711)","v":"PROPRIÉTAIRES-OCCUPANTS, À L’UNITÉ"},{"$f":"IFERROR(VLOOKUP(D3711,Translation!$A:$C,3,FALSE),D3711)","v":"Nouvelle-Écosse"},{"$f":"IFERROR(VLOOKUP(E3711,Translation!$A:$C,3,FALSE),E3711)","v":22.32736834267622},{"$f":"IFERROR(VLOOKUP(F3711,Translation!$A:$C,3,FALSE),F3711)","v":"Prêts hypothécaires assurés au cours de la période selon le rapport d’amortissement brut de la dette (ABD) moyen des emprunteurs détenant un prêt assuré par la SCHL (%)"},{"$f":"IFERROR(VLOOKUP(G3711,Translation!$A:$C,3,FALSE),G3711)","v":"22.3"},{"$f":"IFERROR(VLOOKUP(H3711,Translation!$A:$C,3,FALSE),H3711)","v":"Nouvelle-Écosse"}]
[22,"T2 2017","PROPRIÉTAIRES-OCCUPANTS, À L’UNITÉ","Ontario",28.831111274816895,"Prêts hypothécaires assurés au cours de la période selon le rapport d’amortissement brut de la dette (ABD) moyen des emprunteurs détenant un prêt assuré par la SCHL (%)","28.8","Ontario",{"$f":"IFERROR(VLOOKUP(A3714,Translation!$A:$C,3,FALSE),A3714)","v":22},{"$f":"IFERROR(VLOOKUP(B3714,Translation!$A:$C,3,FALSE),B3714)","v":"T2 2017"},{"$f":"IFERROR(VLOOKUP(C3714,Translation!$A:$C,3,FALSE),C3714)","v":"PROPRIÉTAIRES-OCCUPANTS, À L’UNITÉ"},{"$f":"IFERROR(VLOOKUP(D3714,Translation!$A:$C,3,FALSE),D3714)","v":"Ontario"},{"$f":"IFERROR(VLOOKUP(E3714,Translation!$A:$C,3,FALSE),E3714)","v":28.831111274816895},{"$f":"IFERROR(VLOOKUP(F3714,Translation!$A:$C,3,FALSE),F3714)","v":"Prêts hypothécaires assurés au cours de la période selon le rapport d’amortissement brut de la dette (ABD) moyen des emprunteurs détenant un prêt assuré par la SCHL (%)"},{"$f":"IFERROR(VLOOKUP(G3714,Translation!$A:$C,3,FALSE),G3714)","v":"28.8"},{"$f":"IFERROR(VLOOKUP(H3714,Translation!$A:$C,3,FALSE),H3714)","v":"Ontario"}]
[22,"T2 2017","PROPRIÉTAIRES-OCCUPANTS, À L’UNITÉ","Saskatchewan",24.92876339112312,"Prêts hypothécaires assurés au cours de la période selon le rapport d’amortissement brut de la dette (ABD) moyen des emprunteurs détenant un prêt assuré par la SCHL (%)","24.9","Saskatchewan",{"$f":"IFERROR(VLOOKUP(A3716,Translation!$A:$C,3,FALSE),A3716)","v":22},{"$f":"IFERROR(VLOOKUP(B3716,Translation!$A:$C,3,FALSE),B3716)","v":"T2 2017"},{"$f":"IFERROR(VLOOKUP(C3716,Translation!$A:$C,3,FALSE),C3716)","v":"PROPRIÉTAIRES-OCCUPANTS, À L’UNITÉ"},{"$f":"IFERROR(VLOOKUP(D3716,Translation!$A:$C,3,FALSE),D3716)","v":"Saskatchewan"},{"$f":"IFERROR(VLOOKUP(E3716,Translation!$A:$C,3,FALSE),E3716)","v":24.92876339112312},{"$f":"IFERROR(VLOOKUP(F3716,Translation!$A:$C,3,FALSE),F3716)","v":"Prêts hypothécaires assurés au cours de la période selon le rapport d’amortissement brut de la dette (ABD) moyen des emprunteurs détenant un prêt assuré par la SCHL (%)"},{"$f":"IFERROR(VLOOKUP(G3716,Translation!$A:$C,3,FALSE),G3716)","v":"24.9"},{"$f":"IFERROR(VLOOKUP(H3716,Translation!$A:$C,3,FALSE),H3716)","v":"Saskatchewan"}]
[22,"T2 2017","PROPRIÉTAIRES-OCCUPANTS, À L’UNITÉ","Territoires",24.225081181250321,"Prêts hypothécaires assurés au cours de la période selon le rapport d’amortissement brut de la dette (ABD) moyen des emprunteurs détenant un prêt assuré par la SCHL (%)","24.2","Territoires",{"$f":"IFERROR(VLOOKUP(A3719,Translation!$A:$C,3,FALSE),A3719)","v":22},{"$f":"IFERROR(VLOOKUP(B3719,Translation!$A:$C,3,FALSE),B3719)","v":"T2 2017"},{"$f":"IFERROR(VLOOKUP(C3719,Translation!$A:$C,3,FALSE),C3719)","v":"PROPRIÉTAIRES-OCCUPANTS, À L’UNITÉ"},{"$f":"IFERROR(VLOOKUP(D3719,Translation!$A:$C,3,FALSE),D3719)","v":"Territoires"},{"$f":"IFERROR(VLOOKUP(E3719,Translation!$A:$C,3,FALSE),E3719)","v":24.225081181250321},{"$f":"IFERROR(VLOOKUP(F3719,Translation!$A:$C,3,FALSE),F3719)","v":"Prêts hypothécaires assurés au cours de la période selon le rapport d’amortissement brut de la dette (ABD) moyen des emprunteurs détenant un prêt assuré par la SCHL (%)"},{"$f":"IFERROR(VLOOKUP(G3719,Translation!$A:$C,3,FALSE),G3719)","v":"24.2"},{"$f":"IFERROR(VLOOKUP(H3719,Translation!$A:$C,3,FALSE),H3719)","v":"Territoires"}]
[22,"Q3 2016","PROPRIÉTAIRES-OCCUPANTS, À L’UNITÉ","Île-du-Prince-Édouard",19.771228611915113,"Prêts hypothécaires assurés au cours de la période selon le rapport d’amortissement brut de la dette (ABD) moyen des emprunteurs détenant un prêt assuré par la SCHL (%)","19.8","Île-du-Prince-Édouard",{"$f":"IFERROR(VLOOKUP(A3721,Translation!$A:$C,3,FALSE),A3721)","v":22},{"$f":"IFERROR(VLOOKUP(B3721,Translation!$A:$C,3,FALSE),B3721)","v":"Q3 2016"},{"$f":"IFERROR(VLOOKUP(C3721,Translation!$A:$C,3,FALSE),C3721)","v":"PROPRIÉTAIRES-OCCUPANTS, À L’UNITÉ"},{"$f":"IFERROR(VLOOKUP(D3721,Translation!$A:$C,3,FALSE),D3721)","v":"Île-du-Prince-Édouard"},{"$f":"IFERROR(VLOOKUP(E3721,Translation!$A:$C,3,FALSE),E3721)","v":19.771228611915113},{"$f":"IFERROR(VLOOKUP(F3721,Translation!$A:$C,3,FALSE),F3721)","v":"Prêts hypothécaires assurés au cours de la période selon le rapport d’amortissement brut de la dette (ABD) moyen des emprunteurs détenant un prêt assuré par la SCHL (%)"},{"$f":"IFERROR(VLOOKUP(G3721,Translation!$A:$C,3,FALSE),G3721)","v":"19.8"},{"$f":"IFERROR(VLOOKUP(H3721,Translation!$A:$C,3,FALSE),H3721)","v":"Île-du-Prince-Édouard"}]
[22,"Q3 2016","PROPRIÉTAIRES-OCCUPANTS, À L’UNITÉ","Québec",24.079670450044802,"Prêts hypothécaires assurés au cours de la période selon le rapport d’amortissement brut de la dette (ABD) moyen des emprunteurs détenant un prêt assuré par la SCHL (%)","24.1","Québec",{"$f":"IFERROR(VLOOKUP(A3724,Translation!$A:$C,3,FALSE),A3724)","v":22},{"$f":"IFERROR(VLOOKUP(B3724,Translation!$A:$C,3,FALSE),B3724)","v":"Q3 2016"},{"$f":"IFERROR(VLOOKUP(C3724,Translation!$A:$C,3,FALSE),C3724)","v":"PROPRIÉTAIRES-OCCUPANTS, À L’UNITÉ"},{"$f":"IFERROR(VLOOKUP(D3724,Translation!$A:$C,3,FALSE),D3724)","v":"Québec"},{"$f":"IFERROR(VLOOKUP(E3724,Translation!$A:$C,3,FALSE),E3724)","v":24.079670450044802},{"$f":"IFERROR(VLOOKUP(F3724,Translation!$A:$C,3,FALSE),F3724)","v":"Prêts hypothécaires assurés au cours de la période selon le rapport d’amortissement brut de la dette (ABD) moyen des emprunteurs détenant un prêt assuré par la SCHL (%)"},{"$f":"IFERROR(VLOOKUP(G3724,Translation!$A:$C,3,FALSE),G3724)","v":"24.1"},{"$f":"IFERROR(VLOOKUP(H3724,Translation!$A:$C,3,FALSE),H3724)","v":"Québec"}]
[22,"Q3 2016","PROPRIÉTAIRES-OCCUPANTS, À L’UNITÉ","Ontario",27.364093325643832,"Prêts hypothécaires assurés au cours de la période selon le rapport d’amortissement brut de la dette (ABD) moyen des emprunteurs détenant un prêt assuré par la SCHL (%)","27.4","Ontario",{"$f":"IFERROR(VLOOKUP(A3725,Translation!$A:$C,3,FALSE),A3725)","v":22},{"$f":"IFERROR(VLOOKUP(B3725,Translation!$A:$C,3,FALSE),B3725)","v":"Q3 2016"},{"$f":"IFERROR(VLOOKUP(C3725,Translation!$A:$C,3,FALSE),C3725)","v":"PROPRIÉTAIRES-OCCUPANTS, À L’UNITÉ"},{"$f":"IFERROR(VLOOKUP(D3725,Translation!$A:$C,3,FALSE),D3725)","v":"Ontario"},{"$f":"IFERROR(VLOOKUP(E3725,Translation!$A:$C,3,FALSE),E3725)","v":27.364093325643832},{"$f":"IFERROR(VLOOKUP(F3725,Translation!$A:$C,3,FALSE),F3725)","v":"Prêts hypothécaires assurés au cours de la période selon le rapport d’amortissement brut de la dette (ABD) moyen des emprunteurs détenant un prêt assuré par la SCHL (%)"},{"$f":"IFERROR(VLOOKUP(G3725,Translation!$A:$C,3,FALSE),G3725)","v":"27.4"},{"$f":"IFERROR(VLOOKUP(H3725,Translation!$A:$C,3,FALSE),H3725)","v":"Ontario"}]
[22,"Q3 2016","PROPRIÉTAIRES-OCCUPANTS, À L’UNITÉ","Saskatchewan",23.410429057284393,"Prêts hypothécaires assurés au cours de la période selon le rapport d’amortissement brut de la dette (ABD) moyen des emprunteurs détenant un prêt assuré par la SCHL (%)","23.4","Saskatchewan",{"$f":"IFERROR(VLOOKUP(A3727,Translation!$A:$C,3,FALSE),A3727)","v":22},{"$f":"IFERROR(VLOOKUP(B3727,Translation!$A:$C,3,FALSE),B3727)","v":"Q3 2016"},{"$f":"IFERROR(VLOOKUP(C3727,Translation!$A:$C,3,FALSE),C3727)","v":"PROPRIÉTAIRES-OCCUPANTS, À L’UNITÉ"},{"$f":"IFERROR(VLOOKUP(D3727,Translation!$A:$C,3,FALSE),D3727)","v":"Saskatchewan"},{"$f":"IFERROR(VLOOKUP(E3727,Translation!$A:$C,3,FALSE),E3727)","v":23.410429057284393},{"$f":"IFERROR(VLOOKUP(F3727,Translation!$A:$C,3,FALSE),F3727)","v":"Prêts hypothécaires assurés au cours de la période selon le rapport d’amortissement brut de la dette (ABD) moyen des emprunteurs détenant un prêt assuré par la SCHL (%)"},{"$f":"IFERROR(VLOOKUP(G3727,Translation!$A:$C,3,FALSE),G3727)","v":"23.4"},{"$f":"IFERROR(VLOOKUP(H3727,Translation!$A:$C,3,FALSE),H3727)","v":"Saskatchewan"}]
[22,"Q3 2016","PROPRIÉTAIRES-OCCUPANTS, À L’UNITÉ","Territoires",22.710285775627689,"Prêts hypothécaires assurés au cours de la période selon le rapport d’amortissement brut de la dette (ABD) moyen des emprunteurs détenant un prêt assuré par la SCHL (%)","22.7","Territoires",{"$f":"IFERROR(VLOOKUP(A3730,Translation!$A:$C,3,FALSE),A3730)","v":22},{"$f":"IFERROR(VLOOKUP(B3730,Translation!$A:$C,3,FALSE),B3730)","v":"Q3 2016"},{"$f":"IFERROR(VLOOKUP(C3730,Translation!$A:$C,3,FALSE),C3730)","v":"PROPRIÉTAIRES-OCCUPANTS, À L’UNITÉ"},{"$f":"IFERROR(VLOOKUP(D3730,Translation!$A:$C,3,FALSE),D3730)","v":"Territoires"},{"$f":"IFERROR(VLOOKUP(E3730,Translation!$A:$C,3,FALSE),E3730)","v":22.710285775627689},{"$f":"IFERROR(VLOOKUP(F3730,Translation!$A:$C,3,FALSE),F3730)","v":"Prêts hypothécaires assurés au cours de la période selon le rapport d’amortissement brut de la dette (ABD) moyen des emprunteurs détenant un prêt assuré par la SCHL (%)"},{"$f":"IFERROR(VLOOKUP(G3730,Translation!$A:$C,3,FALSE),G3730)","v":"22.7"},{"$f":"IFERROR(VLOOKUP(H3730,Translation!$A:$C,3,FALSE),H3730)","v":"Territoires"}]
[22,"T3 2017","PROPRIÉTAIRES-OCCUPANTS, À L’UNITÉ","Île-du-Prince-Édouard",19.902684466050562,"Prêts hypothécaires assurés au cours de la période selon le rapport d’amortissement brut de la dette (ABD) moyen des emprunteurs détenant un prêt assuré par la SCHL (%)","19.9","Île-du-Prince-Édouard",{"$f":"IFERROR(VLOOKUP(A3732,Translation!$A:$C,3,FALSE),A3732)","v":22},{"$f":"IFERROR(VLOOKUP(B3732,Translation!$A:$C,3,FALSE),B3732)","v":"T3 2017"},{"$f":"IFERROR(VLOOKUP(C3732,Translation!$A:$C,3,FALSE),C3732)","v":"PROPRIÉTAIRES-OCCUPANTS, À L’UNITÉ"},{"$f":"IFERROR(VLOOKUP(D3732,Translation!$A:$C,3,FALSE),D3732)","v":"Île-du-Prince-Édouard"},{"$f":"IFERROR(VLOOKUP(E3732,Translation!$A:$C,3,FALSE),E3732)","v":19.902684466050562},{"$f":"IFERROR(VLOOKUP(F3732,Translation!$A:$C,3,FALSE),F3732)","v":"Prêts hypothécaires assurés au cours de la période selon le rapport d’amortissement brut de la dette (ABD) moyen des emprunteurs détenant un prêt assuré par la SCHL (%)"},{"$f":"IFERROR(VLOOKUP(G3732,Translation!$A:$C,3,FALSE),G3732)","v":"19.9"},{"$f":"IFERROR(VLOOKUP(H3732,Translation!$A:$C,3,FALSE),H3732)","v":"Île-du-Prince-Édouard"}]
[22,"T3 2017","PROPRIÉTAIRES-OCCUPANTS, À L’UNITÉ","Québec",25.440581610801168,"Prêts hypothécaires assurés au cours de la période selon le rapport d’amortissement brut de la dette (ABD) moyen des emprunteurs détenant un prêt assuré par la SCHL (%)","25.4","Québec",{"$f":"IFERROR(VLOOKUP(A3735,Translation!$A:$C,3,FALSE),A3735)","v":22},{"$f":"IFERROR(VLOOKUP(B3735,Translation!$A:$C,3,FALSE),B3735)","v":"T3 2017"},{"$f":"IFERROR(VLOOKUP(C3735,Translation!$A:$C,3,FALSE),C3735)","v":"PROPRIÉTAIRES-OCCUPANTS, À L’UNITÉ"},{"$f":"IFERROR(VLOOKUP(D3735,Translation!$A:$C,3,FALSE),D3735)","v":"Québec"},{"$f":"IFERROR(VLOOKUP(E3735,Translation!$A:$C,3,FALSE),E3735)","v":25.440581610801168},{"$f":"IFERROR(VLOOKUP(F3735,Translation!$A:$C,3,FALSE),F3735)","v":"Prêts hypothécaires assurés au cours de la période selon le rapport d’amortissement brut de la dette (ABD) moyen des emprunteurs détenant un prêt assuré par la SCHL (%)"},{"$f":"IFERROR(VLOOKUP(G3735,Translation!$A:$C,3,FALSE),G3735)","v":"25.4"},{"$f":"IFERROR(VLOOKUP(H3735,Translation!$A:$C,3,FALSE),H3735)","v":"Québec"}]
[22,"T3 2017","PROPRIÉTAIRES-OCCUPANTS, À L’UNITÉ","Saskatchewan",24.337397448800004,"Prêts hypothécaires assurés au cours de la période selon le rapport d’amortissement brut de la dette (ABD) moyen des emprunteurs détenant un prêt assuré par la SCHL (%)","24.3","Saskatchewan",{"$f":"IFERROR(VLOOKUP(A3738,Translation!$A:$C,3,FALSE),A3738)","v":22},{"$f":"IFERROR(VLOOKUP(B3738,Translation!$A:$C,3,FALSE),B3738)","v":"T3 2017"},{"$f":"IFERROR(VLOOKUP(C3738,Translation!$A:$C,3,FALSE),C3738)","v":"PROPRIÉTAIRES-OCCUPANTS, À L’UNITÉ"},{"$f":"IFERROR(VLOOKUP(D3738,Translation!$A:$C,3,FALSE),D3738)","v":"Saskatchewan"},{"$f":"IFERROR(VLOOKUP(E3738,Translation!$A:$C,3,FALSE),E3738)","v":24.337397448800004},{"$f":"IFERROR(VLOOKUP(F3738,Translation!$A:$C,3,FALSE),F3738)","v":"Prêts hypothécaires assurés au cours de la période selon le rapport d’amortissement brut de la dette (ABD) moyen des emprunteurs détenant un prêt assuré par la SCHL (%)"},{"$f":"IFERROR(VLOOKUP(G3738,Translation!$A:$C,3,FALSE),G3738)","v":"24.3"},{"$f":"IFERROR(VLOOKUP(H3738,Translation!$A:$C,3,FALSE),H3738)","v":"Saskatchewan"}]
[22,"T3 2017","PROPRIÉTAIRES-OCCUPANTS, À L’UNITÉ","Colombie-Britannique",28.521617174226478,"Prêts hypothécaires assurés au cours de la période selon le rapport d’amortissement brut de la dette (ABD) moyen des emprunteurs détenant un prêt assuré par la SCHL (%)","28.5","Colombie-Britannique",{"$f":"IFERROR(VLOOKUP(A3740,Translation!$A:$C,3,FALSE),A3740)","v":22},{"$f":"IFERROR(VLOOKUP(B3740,Translation!$A:$C,3,FALSE),B3740)","v":"T3 2017"},{"$f":"IFERROR(VLOOKUP(C3740,Translation!$A:$C,3,FALSE),C3740)","v":"PROPRIÉTAIRES-OCCUPANTS, À L’UNITÉ"},{"$f":"IFERROR(VLOOKUP(D3740,Translation!$A:$C,3,FALSE),D3740)","v":"Colombie-Britannique"},{"$f":"IFERROR(VLOOKUP(E3740,Translation!$A:$C,3,FALSE),E3740)","v":28.521617174226478},{"$f":"IFERROR(VLOOKUP(F3740,Translation!$A:$C,3,FALSE),F3740)","v":"Prêts hypothécaires assurés au cours de la période selon le rapport d’amortissement brut de la dette (ABD) moyen des emprunteurs détenant un prêt assuré par la SCHL (%)"},{"$f":"IFERROR(VLOOKUP(G3740,Translation!$A:$C,3,FALSE),G3740)","v":"28.5"},{"$f":"IFERROR(VLOOKUP(H3740,Translation!$A:$C,3,FALSE),H3740)","v":"Colombie-Britannique"}]
[22,"Q4 2016","PROPRIÉTAIRES-OCCUPANTS, À L’UNITÉ","Île-du-Prince-Édouard",19.996009476988757,"Prêts hypothécaires assurés au cours de la période selon le rapport d’amortissement brut de la dette (ABD) moyen des emprunteurs détenant un prêt assuré par la SCHL (%)","20.0","Île-du-Prince-Édouard",{"$f":"IFERROR(VLOOKUP(A3743,Translation!$A:$C,3,FALSE),A3743)","v":22},{"$f":"IFERROR(VLOOKUP(B3743,Translation!$A:$C,3,FALSE),B3743)","v":"Q4 2016"},{"$f":"IFERROR(VLOOKUP(C3743,Translation!$A:$C,3,FALSE),C3743)","v":"PROPRIÉTAIRES-OCCUPANTS, À L’UNITÉ"},{"$f":"IFERROR(VLOOKUP(D3743,Translation!$A:$C,3,FALSE),D3743)","v":"Île-du-Prince-Édouard"},{"$f":"IFERROR(VLOOKUP(E3743,Translation!$A:$C,3,FALSE),E3743)","v":19.996009476988757},{"$f":"IFERROR(VLOOKUP(F3743,Translation!$A:$C,3,FALSE),F3743)","v":"Prêts hypothécaires assurés au cours de la période selon le rapport d’amortissement brut de la dette (ABD) moyen des emprunteurs détenant un prêt assuré par la SCHL (%)"},{"$f":"IFERROR(VLOOKUP(G3743,Translation!$A:$C,3,FALSE),G3743)","v":"20.0"},{"$f":"IFERROR(VLOOKUP(H3743,Translation!$A:$C,3,FALSE),H3743)","v":"Île-du-Prince-Édouard"}]
[22,"Q4 2016","PROPRIÉTAIRES-OCCUPANTS, À L’UNITÉ","Québec",24.397892226203957,"Prêts hypothécaires assurés au cours de la période selon le rapport d’amortissement brut de la dette (ABD) moyen des emprunteurs détenant un prêt assuré par la SCHL (%)","24.4","Québec",{"$f":"IFERROR(VLOOKUP(A3746,Translation!$A:$C,3,FALSE),A3746)","v":22},{"$f":"IFERROR(VLOOKUP(B3746,Translation!$A:$C,3,FALSE),B3746)","v":"Q4 2016"},{"$f":"IFERROR(VLOOKUP(C3746,Translation!$A:$C,3,FALSE),C3746)","v":"PROPRIÉTAIRES-OCCUPANTS, À L’UNITÉ"},{"$f":"IFERROR(VLOOKUP(D3746,Translation!$A:$C,3,FALSE),D3746)","v":"Québec"},{"$f":"IFERROR(VLOOKUP(E3746,Translation!$A:$C,3,FALSE),E3746)","v":24.397892226203957},{"$f":"IFERROR(VLOOKUP(F3746,Translation!$A:$C,3,FALSE),F3746)","v":"Prêts hypothécaires assurés au cours de la période selon le rapport d’amortissement brut de la dette (ABD) moyen des emprunteurs détenant un prêt assuré par la SCHL (%)"},{"$f":"IFERROR(VLOOKUP(G3746,Translation!$A:$C,3,FALSE),G3746)","v":"24.4"},{"$f":"IFERROR(VLOOKUP(H3746,Translation!$A:$C,3,FALSE),H3746)","v":"Québec"}]
[22,"Q4 2016","PROPRIÉTAIRES-OCCUPANTS, À L’UNITÉ","Manitoba",25.365735664224445,"Prêts hypothécaires assurés au cours de la période selon le rapport d’amortissement brut de la dette (ABD) moyen des emprunteurs détenant un prêt assuré par la SCHL (%)","25.4","Manitoba",{"$f":"IFERROR(VLOOKUP(A3748,Translation!$A:$C,3,FALSE),A3748)","v":22},{"$f":"IFERROR(VLOOKUP(B3748,Translation!$A:$C,3,FALSE),B3748)","v":"Q4 2016"},{"$f":"IFERROR(VLOOKUP(C3748,Translation!$A:$C,3,FALSE),C3748)","v":"PROPRIÉTAIRES-OCCUPANTS, À L’UNITÉ"},{"$f":"IFERROR(VLOOKUP(D3748,Translation!$A:$C,3,FALSE),D3748)","v":"Manitoba"},{"$f":"IFERROR(VLOOKUP(E3748,Translation!$A:$C,3,FALSE),E3748)","v":25.365735664224445},{"$f":"IFERROR(VLOOKUP(F3748,Translation!$A:$C,3,FALSE),F3748)","v":"Prêts hypothécaires assurés au cours de la période selon le rapport d’amortissement brut de la dette (ABD) moyen des emprunteurs détenant un prêt assuré par la SCHL (%)"},{"$f":"IFERROR(VLOOKUP(G3748,Translation!$A:$C,3,FALSE),G3748)","v":"25.4"},{"$f":"IFERROR(VLOOKUP(H3748,Translation!$A:$C,3,FALSE),H3748)","v":"Manitoba"}]
[22,"Q4 2016","PROPRIÉTAIRES-OCCUPANTS, À L’UNITÉ","Saskatchewan",24.093786497868805,"Prêts hypothécaires assurés au cours de la période selon le rapport d’amortissement brut de la dette (ABD) moyen des emprunteurs détenant un prêt assuré par la SCHL (%)","24.1","Saskatchewan",{"$f":"IFERROR(VLOOKUP(A3749,Translation!$A:$C,3,FALSE),A3749)","v":22},{"$f":"IFERROR(VLOOKUP(B3749,Translation!$A:$C,3,FALSE),B3749)","v":"Q4 2016"},{"$f":"IFERROR(VLOOKUP(C3749,Translation!$A:$C,3,FALSE),C3749)","v":"PROPRIÉTAIRES-OCCUPANTS, À L’UNITÉ"},{"$f":"IFERROR(VLOOKUP(D3749,Translation!$A:$C,3,FALSE),D3749)","v":"Saskatchewan"},{"$f":"IFERROR(VLOOKUP(E3749,Translation!$A:$C,3,FALSE),E3749)","v":24.093786497868805},{"$f":"IFERROR(VLOOKUP(F3749,Translation!$A:$C,3,FALSE),F3749)","v":"Prêts hypothécaires assurés au cours de la période selon le rapport d’amortissement brut de la dette (ABD) moyen des emprunteurs détenant un prêt assuré par la SCHL (%)"},{"$f":"IFERROR(VLOOKUP(G3749,Translation!$A:$C,3,FALSE),G3749)","v":"24.1"},{"$f":"IFERROR(VLOOKUP(H3749,Translation!$A:$C,3,FALSE),H3749)","v":"Saskatchewan"}]
[22,"Q4 2016","PROPRIÉTAIRES-OCCUPANTS, À L’UNITÉ","Colombie-Britannique",27.164670382604957,"Prêts hypothécaires assurés au cours de la période selon le rapport d’amortissement brut de la dette (ABD) moyen des emprunteurs détenant un prêt assuré par la SCHL (%)","27.2","Colombie-Britannique",{"$f":"IFERROR(VLOOKUP(A3751,Translation!$A:$C,3,FALSE),A3751)","v":22},{"$f":"IFERROR(VLOOKUP(B3751,Translation!$A:$C,3,FALSE),B3751)","v":"Q4 2016"},{"$f":"IFERROR(VLOOKUP(C3751,Translation!$A:$C,3,FALSE),C3751)","v":"PROPRIÉTAIRES-OCCUPANTS, À L’UNITÉ"},{"$f":"IFERROR(VLOOKUP(D3751,Translation!$A:$C,3,FALSE),D3751)","v":"Colombie-Britannique"},{"$f":"IFERROR(VLOOKUP(E3751,Translation!$A:$C,3,FALSE),E3751)","v":27.164670382604957},{"$f":"IFERROR(VLOOKUP(F3751,Translation!$A:$C,3,FALSE),F3751)","v":"Prêts hypothécaires assurés au cours de la période selon le rapport d’amortissement brut de la dette (ABD) moyen des emprunteurs détenant un prêt assuré par la SCHL (%)"},{"$f":"IFERROR(VLOOKUP(G3751,Translation!$A:$C,3,FALSE),G3751)","v":"27.2"},{"$f":"IFERROR(VLOOKUP(H3751,Translation!$A:$C,3,FALSE),H3751)","v":"Colombie-Britannique"}]
[22,"T4 2017","PROPRIÉTAIRES-OCCUPANTS, À L’UNITÉ","Île-du-Prince-Édouard",20.876704850575297,"Prêts hypothécaires assurés au cours de la période selon le rapport d’amortissement brut de la dette (ABD) moyen des emprunteurs détenant un prêt assuré par la SCHL (%)","20.9","Île-du-Prince-Édouard",{"$f":"IFERROR(VLOOKUP(A3754,Translation!$A:$C,3,FALSE),A3754)","v":22},{"$f":"IFERROR(VLOOKUP(B3754,Translation!$A:$C,3,FALSE),B3754)","v":"T4 2017"},{"$f":"IFERROR(VLOOKUP(C3754,Translation!$A:$C,3,FALSE),C3754)","v":"PROPRIÉTAIRES-OCCUPANTS, À L’UNITÉ"},{"$f":"IFERROR(VLOOKUP(D3754,Translation!$A:$C,3,FALSE),D3754)","v":"Île-du-Prince-Édouard"},{"$f":"IFERROR(VLOOKUP(E3754,Translation!$A:$C,3,FALSE),E3754)","v":20.876704850575297},{"$f":"IFERROR(VLOOKUP(F3754,Translation!$A:$C,3,FALSE),F3754)","v":"Prêts hypothécaires assurés au cours de la période selon le rapport d’amortissement brut de la dette (ABD) moyen des emprunteurs détenant un prêt assuré par la SCHL (%)"},{"$f":"IFERROR(VLOOKUP(G3754,Translation!$A:$C,3,FALSE),G3754)","v":"20.9"},{"$f":"IFERROR(VLOOKUP(H3754,Translation!$A:$C,3,FALSE),H3754)","v":"Île-du-Prince-Édouard"}]
[22,"T4 2017","PROPRIÉTAIRES-OCCUPANTS, À L’UNITÉ","Québec",25.538884053064393,"Prêts hypothécaires assurés au cours de la période selon le rapport d’amortissement brut de la dette (ABD) moyen des emprunteurs détenant un prêt assuré par la SCHL (%)","25.5","Québec",{"$f":"IFERROR(VLOOKUP(A3757,Translation!$A:$C,3,FALSE),A3757)","v":22},{"$f":"IFERROR(VLOOKUP(B3757,Translation!$A:$C,3,FALSE),B3757)","v":"T4 2017"},{"$f":"IFERROR(VLOOKUP(C3757,Translation!$A:$C,3,FALSE),C3757)","v":"PROPRIÉTAIRES-OCCUPANTS, À L’UNITÉ"},{"$f":"IFERROR(VLOOKUP(D3757,Translation!$A:$C,3,FALSE),D3757)","v":"Québec"},{"$f":"IFERROR(VLOOKUP(E3757,Translation!$A:$C,3,FALSE),E3757)","v":25.538884053064393},{"$f":"IFERROR(VLOOKUP(F3757,Translation!$A:$C,3,FALSE),F3757)","v":"Prêts hypothécaires assurés au cours de la période selon le rapport d’amortissement brut de la dette (ABD) moyen des emprunteurs détenant un prêt assuré par la SCHL (%)"},{"$f":"IFERROR(VLOOKUP(G3757,Translation!$A:$C,3,FALSE),G3757)","v":"25.5"},{"$f":"IFERROR(VLOOKUP(H3757,Translation!$A:$C,3,FALSE),H3757)","v":"Québec"}]
[22,"T4 2017","PROPRIÉTAIRES-OCCUPANTS, À L’UNITÉ","Manitoba",27.008171276745419,"Prêts hypothécaires assurés au cours de la période selon le rapport d’amortissement brut de la dette (ABD) moyen des emprunteurs détenant un prêt assuré par la SCHL (%)","27.0","Manitoba",{"$f":"IFERROR(VLOOKUP(A3759,Translation!$A:$C,3,FALSE),A3759)","v":22},{"$f":"IFERROR(VLOOKUP(B3759,Translation!$A:$C,3,FALSE),B3759)","v":"T4 2017"},{"$f":"IFERROR(VLOOKUP(C3759,Translation!$A:$C,3,FALSE),C3759)","v":"PROPRIÉTAIRES-OCCUPANTS, À L’UNITÉ"},{"$f":"IFERROR(VLOOKUP(D3759,Translation!$A:$C,3,FALSE),D3759)","v":"Manitoba"},{"$f":"IFERROR(VLOOKUP(E3759,Translation!$A:$C,3,FALSE),E3759)","v":27.008171276745419},{"$f":"IFERROR(VLOOKUP(F3759,Translation!$A:$C,3,FALSE),F3759)","v":"Prêts hypothécaires assurés au cours de la période selon le rapport d’amortissement brut de la dette (ABD) moyen des emprunteurs détenant un prêt assuré par la SCHL (%)"},{"$f":"IFERROR(VLOOKUP(G3759,Translation!$A:$C,3,FALSE),G3759)","v":"27.0"},{"$f":"IFERROR(VLOOKUP(H3759,Translation!$A:$C,3,FALSE),H3759)","v":"Manitoba"}]
[22,"T4 2017","PROPRIÉTAIRES-OCCUPANTS, À L’UNITÉ","Colombie-Britannique",28.744611101156824,"Prêts hypothécaires assurés au cours de la période selon le rapport d’amortissement brut de la dette (ABD) moyen des emprunteurs détenant un prêt assuré par la SCHL (%)","28.7","Colombie-Britannique",{"$f":"IFERROR(VLOOKUP(A3762,Translation!$A:$C,3,FALSE),A3762)","v":22},{"$f":"IFERROR(VLOOKUP(B3762,Translation!$A:$C,3,FALSE),B3762)","v":"T4 2017"},{"$f":"IFERROR(VLOOKUP(C3762,Translation!$A:$C,3,FALSE),C3762)","v":"PROPRIÉTAIRES-OCCUPANTS, À L’UNITÉ"},{"$f":"IFERROR(VLOOKUP(D3762,Translation!$A:$C,3,FALSE),D3762)","v":"Colombie-Britannique"},{"$f":"IFERROR(VLOOKUP(E3762,Translation!$A:$C,3,FALSE),E3762)","v":28.744611101156824},{"$f":"IFERROR(VLOOKUP(F3762,Translation!$A:$C,3,FALSE),F3762)","v":"Prêts hypothécaires assurés au cours de la période selon le rapport d’amortissement brut de la dette (ABD) moyen des emprunteurs détenant un prêt assuré par la SCHL (%)"},{"$f":"IFERROR(VLOOKUP(G3762,Translation!$A:$C,3,FALSE),G3762)","v":"28.7"},{"$f":"IFERROR(VLOOKUP(H3762,Translation!$A:$C,3,FALSE),H3762)","v":"Colombie-Britannique"}]
[22,"T1 2018","PROPRIÉTAIRES-OCCUPANTS, À L’UNITÉ","<= 30 %",11.4167519543373,"Prêts hypothécaires assurés au cours de la période selon le rapport d’amortissement total de la dette (ATD) moyen des emprunteurs détenant un prêt assuré par la SCHL (%)","11.4"," <= 30 %",{"$f":"IFERROR(VLOOKUP(A3765,Translation!$A:$C,3,FALSE),A3765)","v":22},{"$f":"IFERROR(VLOOKUP(B3765,Translation!$A:$C,3,FALSE),B3765)","v":"T1 2018"},{"$f":"IFERROR(VLOOKUP(C3765,Translation!$A:$C,3,FALSE),C3765)","v":"PROPRIÉTAIRES-OCCUPANTS, À L’UNITÉ"},{"$f":"IFERROR(VLOOKUP(D3765,Translation!$A:$C,3,FALSE),D3765)","v":"<= 30 %"},{"$f":"IFERROR(VLOOKUP(E3765,Translation!$A:$C,3,FALSE),E3765)","v":11.4167519543373},{"$f":"IFERROR(VLOOKUP(F3765,Translation!$A:$C,3,FALSE),F3765)","v":"Prêts hypothécaires assurés au cours de la période selon le rapport d’amortissement total de la dette (ATD) moyen des emprunteurs détenant un prêt assuré par la SCHL (%)"},{"$f":"IFERROR(VLOOKUP(G3765,Translation!$A:$C,3,FALSE),G3765)","v":"11.4"},{"$f":"IFERROR(VLOOKUP(H3765,Translation!$A:$C,3,FALSE),H3765)","v":" <= 30 %"}]
[22,"T2 2017","PROPRIÉTAIRES-OCCUPANTS, À L’UNITÉ","<= 30 %",14.909490572631524,"Prêts hypothécaires assurés au cours de la période selon le rapport d’amortissement total de la dette (ATD) moyen des emprunteurs détenant un prêt assuré par la SCHL (%)","14.9"," <= 30 %",{"$f":"IFERROR(VLOOKUP(A3767,Translation!$A:$C,3,FALSE),A3767)","v":22},{"$f":"IFERROR(VLOOKUP(B3767,Translation!$A:$C,3,FALSE),B3767)","v":"T2 2017"},{"$f":"IFERROR(VLOOKUP(C3767,Translation!$A:$C,3,FALSE),C3767)","v":"PROPRIÉTAIRES-OCCUPANTS, À L’UNITÉ"},{"$f":"IFERROR(VLOOKUP(D3767,Translation!$A:$C,3,FALSE),D3767)","v":"<= 30 %"},{"$f":"IFERROR(VLOOKUP(E3767,Translation!$A:$C,3,FALSE),E3767)","v":14.909490572631524},{"$f":"IFERROR(VLOOKUP(F3767,Translation!$A:$C,3,FALSE),F3767)","v":"Prêts hypothécaires assurés au cours de la période selon le rapport d’amortissement total de la dette (ATD) moyen des emprunteurs détenant un prêt assuré par la SCHL (%)"},{"$f":"IFERROR(VLOOKUP(G3767,Translation!$A:$C,3,FALSE),G3767)","v":"14.9"},{"$f":"IFERROR(VLOOKUP(H3767,Translation!$A:$C,3,FALSE),H3767)","v":" <= 30 %"}]
[22,"Q3 2016","PROPRIÉTAIRES-OCCUPANTS, À L’UNITÉ","<= 30 %",17.241599817488549,"Prêts hypothécaires assurés au cours de la période selon le rapport d’amortissement total de la dette (ATD) moyen des emprunteurs détenant un prêt assuré par la SCHL (%)","17.2"," <= 30 %",{"$f":"IFERROR(VLOOKUP(A3768,Translation!$A:$C,3,FALSE),A3768)","v":22},{"$f":"IFERROR(VLOOKUP(B3768,Translation!$A:$C,3,FALSE),B3768)","v":"Q3 2016"},{"$f":"IFERROR(VLOOKUP(C3768,Translation!$A:$C,3,FALSE),C3768)","v":"PROPRIÉTAIRES-OCCUPANTS, À L’UNITÉ"},{"$f":"IFERROR(VLOOKUP(D3768,Translation!$A:$C,3,FALSE),D3768)","v":"<= 30 %"},{"$f":"IFERROR(VLOOKUP(E3768,Translation!$A:$C,3,FALSE),E3768)","v":17.241599817488549},{"$f":"IFERROR(VLOOKUP(F3768,Translation!$A:$C,3,FALSE),F3768)","v":"Prêts hypothécaires assurés au cours de la période selon le rapport d’amortissement total de la dette (ATD) moyen des emprunteurs détenant un prêt assuré par la SCHL (%)"},{"$f":"IFERROR(VLOOKUP(G3768,Translation!$A:$C,3,FALSE),G3768)","v":"17.2"},{"$f":"IFERROR(VLOOKUP(H3768,Translation!$A:$C,3,FALSE),H3768)","v":" <= 30 %"}]
[22,"T1 2017","PROPRIÉTAIRES-OCCUPANTS, À L’UNITÉ","> 30 % <= 35 %",18.743108546668321,"Prêts hypothécaires assurés au cours de la période selon le rapport d’amortissement total de la dette (ATD) moyen des emprunteurs détenant un prêt assuré par la SCHL (%)","18.7"," > 30 % <= 35 %",{"$f":"IFERROR(VLOOKUP(A3772,Translation!$A:$C,3,FALSE),A3772)","v":22},{"$f":"IFERROR(VLOOKUP(B3772,Translation!$A:$C,3,FALSE),B3772)","v":"T1 2017"},{"$f":"IFERROR(VLOOKUP(C3772,Translation!$A:$C,3,FALSE),C3772)","v":"PROPRIÉTAIRES-OCCUPANTS, À L’UNITÉ"},{"$f":"IFERROR(VLOOKUP(D3772,Translation!$A:$C,3,FALSE),D3772)","v":"> 30 % <= 35 %"},{"$f":"IFERROR(VLOOKUP(E3772,Translation!$A:$C,3,FALSE),E3772)","v":18.743108546668321},{"$f":"IFERROR(VLOOKUP(F3772,Translation!$A:$C,3,FALSE),F3772)","v":"Prêts hypothécaires assurés au cours de la période selon le rapport d’amortissement total de la dette (ATD) moyen des emprunteurs détenant un prêt assuré par la SCHL (%)"},{"$f":"IFERROR(VLOOKUP(G3772,Translation!$A:$C,3,FALSE),G3772)","v":"18.7"},{"$f":"IFERROR(VLOOKUP(H3772,Translation!$A:$C,3,FALSE),H3772)","v":" > 30 % <= 35 %"}]
[22,"T1 2018","PROPRIÉTAIRES-OCCUPANTS, À L’UNITÉ","> 30 % <= 35 %",17.46036735914052,"Prêts hypothécaires assurés au cours de la période selon le rapport d’amortissement total de la dette (ATD) moyen des emprunteurs détenant un prêt assuré par la SCHL (%)","17.5"," > 30 % <= 35 %",{"$f":"IFERROR(VLOOKUP(A3773,Translation!$A:$C,3,FALSE),A3773)","v":22},{"$f":"IFERROR(VLOOKUP(B3773,Translation!$A:$C,3,FALSE),B3773)","v":"T1 2018"},{"$f":"IFERROR(VLOOKUP(C3773,Translation!$A:$C,3,FALSE),C3773)","v":"PROPRIÉTAIRES-OCCUPANTS, À L’UNITÉ"},{"$f":"IFERROR(VLOOKUP(D3773,Translation!$A:$C,3,FALSE),D3773)","v":"> 30 % <= 35 %"},{"$f":"IFERROR(VLOOKUP(E3773,Translation!$A:$C,3,FALSE),E3773)","v":17.46036735914052},{"$f":"IFERROR(VLOOKUP(F3773,Translation!$A:$C,3,FALSE),F3773)","v":"Prêts hypothécaires assurés au cours de la période selon le rapport d’amortissement total de la dette (ATD) moyen des emprunteurs détenant un prêt assuré par la SCHL (%)"},{"$f":"IFERROR(VLOOKUP(G3773,Translation!$A:$C,3,FALSE),G3773)","v":"17.5"},{"$f":"IFERROR(VLOOKUP(H3773,Translation!$A:$C,3,FALSE),H3773)","v":" > 30 % <= 35 %"}]
[22,"Q3 2016","PROPRIÉTAIRES-OCCUPANTS, À L’UNITÉ","> 30 % <= 35 %",19.777131950048219,"Prêts hypothécaires assurés au cours de la période selon le rapport d’amortissement total de la dette (ATD) moyen des emprunteurs détenant un prêt assuré par la SCHL (%)","19.8"," > 30 % <= 35 %",{"$f":"IFERROR(VLOOKUP(A3776,Translation!$A:$C,3,FALSE),A3776)","v":22},{"$f":"IFERROR(VLOOKUP(B3776,Translation!$A:$C,3,FALSE),B3776)","v":"Q3 2016"},{"$f":"IFERROR(VLOOKUP(C3776,Translation!$A:$C,3,FALSE),C3776)","v":"PROPRIÉTAIRES-OCCUPANTS, À L’UNITÉ"},{"$f":"IFERROR(VLOOKUP(D3776,Translation!$A:$C,3,FALSE),D3776)","v":"> 30 % <= 35 %"},{"$f":"IFERROR(VLOOKUP(E3776,Translation!$A:$C,3,FALSE),E3776)","v":19.777131950048219},{"$f":"IFERROR(VLOOKUP(F3776,Translation!$A:$C,3,FALSE),F3776)","v":"Prêts hypothécaires assurés au cours de la période selon le rapport d’amortissement total de la dette (ATD) moyen des emprunteurs détenant un prêt assuré par la SCHL (%)"},{"$f":"IFERROR(VLOOKUP(G3776,Translation!$A:$C,3,FALSE),G3776)","v":"19.8"},{"$f":"IFERROR(VLOOKUP(H3776,Translation!$A:$C,3,FALSE),H3776)","v":" > 30 % <= 35 %"}]
[22,"Q4 2016","PROPRIÉTAIRES-OCCUPANTS, À L’UNITÉ","> 30 % <= 35 %",19.499765265345594,"Prêts hypothécaires assurés au cours de la période selon le rapport d’amortissement total de la dette (ATD) moyen des emprunteurs détenant un prêt assuré par la SCHL (%)","19.5"," > 30 % <= 35 %",{"$f":"IFERROR(VLOOKUP(A3778,Translation!$A:$C,3,FALSE),A3778)","v":22},{"$f":"IFERROR(VLOOKUP(B3778,Translation!$A:$C,3,FALSE),B3778)","v":"Q4 2016"},{"$f":"IFERROR(VLOOKUP(C3778,Translation!$A:$C,3,FALSE),C3778)","v":"PROPRIÉTAIRES-OCCUPANTS, À L’UNITÉ"},{"$f":"IFERROR(VLOOKUP(D3778,Translation!$A:$C,3,FALSE),D3778)","v":"> 30 % <= 35 %"},{"$f":"IFERROR(VLOOKUP(E3778,Translation!$A:$C,3,FALSE),E3778)","v":19.499765265345594},{"$f":"IFERROR(VLOOKUP(F3778,Translation!$A:$C,3,FALSE),F3778)","v":"Prêts hypothécaires assurés au cours de la période selon le rapport d’amortissement total de la dette (ATD) moyen des emprunteurs détenant un prêt assuré par la SCHL (%)"},{"$f":"IFERROR(VLOOKUP(G3778,Translation!$A:$C,3,FALSE),G3778)","v":"19.5"},{"$f":"IFERROR(VLOOKUP(H3778,Translation!$A:$C,3,FALSE),H3778)","v":" > 30 % <= 35 %"}]
[22,"Q2 2016","PROPRIÉTAIRES-OCCUPANTS, À L’UNITÉ","> 35 % <= 40 %",33.236452445006258,"Prêts hypothécaires assurés au cours de la période selon le rapport d’amortissement total de la dette (ATD) moyen des emprunteurs détenant un prêt assuré par la SCHL (%)","33.2"," > 35 % <= 40 %",{"$f":"IFERROR(VLOOKUP(A3782,Translation!$A:$C,3,FALSE),A3782)","v":22},{"$f":"IFERROR(VLOOKUP(B3782,Translation!$A:$C,3,FALSE),B3782)","v":"Q2 2016"},{"$f":"IFERROR(VLOOKUP(C3782,Translation!$A:$C,3,FALSE),C3782)","v":"PROPRIÉTAIRES-OCCUPANTS, À L’UNITÉ"},{"$f":"IFERROR(VLOOKUP(D3782,Translation!$A:$C,3,FALSE),D3782)","v":"> 35 % <= 40 %"},{"$f":"IFERROR(VLOOKUP(E3782,Translation!$A:$C,3,FALSE),E3782)","v":33.236452445006258},{"$f":"IFERROR(VLOOKUP(F3782,Translation!$A:$C,3,FALSE),F3782)","v":"Prêts hypothécaires assurés au cours de la période selon le rapport d’amortissement total de la dette (ATD) moyen des emprunteurs détenant un prêt assuré par la SCHL (%)"},{"$f":"IFERROR(VLOOKUP(G3782,Translation!$A:$C,3,FALSE),G3782)","v":"33.2"},{"$f":"IFERROR(VLOOKUP(H3782,Translation!$A:$C,3,FALSE),H3782)","v":" > 35 % <= 40 %"}]
[22,"T2 2017","PROPRIÉTAIRES-OCCUPANTS, À L’UNITÉ","> 35 % <= 40 %",33.747011797708261,"Prêts hypothécaires assurés au cours de la période selon le rapport d’amortissement total de la dette (ATD) moyen des emprunteurs détenant un prêt assuré par la SCHL (%)","33.7"," > 35 % <= 40 %",{"$f":"IFERROR(VLOOKUP(A3783,Translation!$A:$C,3,FALSE),A3783)","v":22},{"$f":"IFERROR(VLOOKUP(B3783,Translation!$A:$C,3,FALSE),B3783)","v":"T2 2017"},{"$f":"IFERROR(VLOOKUP(C3783,Translation!$A:$C,3,FALSE),C3783)","v":"PROPRIÉTAIRES-OCCUPANTS, À L’UNITÉ"},{"$f":"IFERROR(VLOOKUP(D3783,Translation!$A:$C,3,FALSE),D3783)","v":"> 35 % <= 40 %"},{"$f":"IFERROR(VLOOKUP(E3783,Translation!$A:$C,3,FALSE),E3783)","v":33.747011797708261},{"$f":"IFERROR(VLOOKUP(F3783,Translation!$A:$C,3,FALSE),F3783)","v":"Prêts hypothécaires assurés au cours de la période selon le rapport d’amortissement total de la dette (ATD) moyen des emprunteurs détenant un prêt assuré par la SCHL (%)"},{"$f":"IFERROR(VLOOKUP(G3783,Translation!$A:$C,3,FALSE),G3783)","v":"33.7"},{"$f":"IFERROR(VLOOKUP(H3783,Translation!$A:$C,3,FALSE),H3783)","v":" > 35 % <= 40 %"}]
[22,"Q4 2016","PROPRIÉTAIRES-OCCUPANTS, À L’UNITÉ","> 35 % <= 40 %",33.98959267227491,"Prêts hypothécaires assurés au cours de la période selon le rapport d’amortissement total de la dette (ATD) moyen des emprunteurs détenant un prêt assuré par la SCHL (%)","34.0"," > 35 % <= 40 %",{"$f":"IFERROR(VLOOKUP(A3786,Translation!$A:$C,3,FALSE),A3786)","v":22},{"$f":"IFERROR(VLOOKUP(B3786,Translation!$A:$C,3,FALSE),B3786)","v":"Q4 2016"},{"$f":"IFERROR(VLOOKUP(C3786,Translation!$A:$C,3,FALSE),C3786)","v":"PROPRIÉTAIRES-OCCUPANTS, À L’UNITÉ"},{"$f":"IFERROR(VLOOKUP(D3786,Translation!$A:$C,3,FALSE),D3786)","v":"> 35 % <= 40 %"},{"$f":"IFERROR(VLOOKUP(E3786,Translation!$A:$C,3,FALSE),E3786)","v":33.98959267227491},{"$f":"IFERROR(VLOOKUP(F3786,Translation!$A:$C,3,FALSE),F3786)","v":"Prêts hypothécaires assurés au cours de la période selon le rapport d’amortissement total de la dette (ATD) moyen des emprunteurs détenant un prêt assuré par la SCHL (%)"},{"$f":"IFERROR(VLOOKUP(G3786,Translation!$A:$C,3,FALSE),G3786)","v":"34.0"},{"$f":"IFERROR(VLOOKUP(H3786,Translation!$A:$C,3,FALSE),H3786)","v":" > 35 % <= 40 %"}]
[22,"T4 2017","PROPRIÉTAIRES-OCCUPANTS, À L’UNITÉ","> 35 % <= 40 %",33.482234244723401,"Prêts hypothécaires assurés au cours de la période selon le rapport d’amortissement total de la dette (ATD) moyen des emprunteurs détenant un prêt assuré par la SCHL (%)","33.5"," > 35 % <= 40 %",{"$f":"IFERROR(VLOOKUP(A3787,Translation!$A:$C,3,FALSE),A3787)","v":22},{"$f":"IFERROR(VLOOKUP(B3787,Translation!$A:$C,3,FALSE),B3787)","v":"T4 2017"},{"$f":"IFERROR(VLOOKUP(C3787,Translation!$A:$C,3,FALSE),C3787)","v":"PROPRIÉTAIRES-OCCUPANTS, À L’UNITÉ"},{"$f":"IFERROR(VLOOKUP(D3787,Translation!$A:$C,3,FALSE),D3787)","v":"> 35 % <= 40 %"},{"$f":"IFERROR(VLOOKUP(E3787,Translation!$A:$C,3,FALSE),E3787)","v":33.482234244723401},{"$f":"IFERROR(VLOOKUP(F3787,Translation!$A:$C,3,FALSE),F3787)","v":"Prêts hypothécaires assurés au cours de la période selon le rapport d’amortissement total de la dette (ATD) moyen des emprunteurs détenant un prêt assuré par la SCHL (%)"},{"$f":"IFERROR(VLOOKUP(G3787,Translation!$A:$C,3,FALSE),G3787)","v":"33.5"},{"$f":"IFERROR(VLOOKUP(H3787,Translation!$A:$C,3,FALSE),H3787)","v":" > 35 % <= 40 %"}]
[22,"T2 2017","PROPRIÉTAIRES-OCCUPANTS, À L’UNITÉ","> 40 % <= 44 %",32.624358042291803,"Prêts hypothécaires assurés au cours de la période selon le rapport d’amortissement total de la dette (ATD) moyen des emprunteurs détenant un prêt assuré par la SCHL (%)","32.6"," > 40 % <= 44 %",{"$f":"IFERROR(VLOOKUP(A3791,Translation!$A:$C,3,FALSE),A3791)","v":22},{"$f":"IFERROR(VLOOKUP(B3791,Translation!$A:$C,3,FALSE),B3791)","v":"T2 2017"},{"$f":"IFERROR(VLOOKUP(C3791,Translation!$A:$C,3,FALSE),C3791)","v":"PROPRIÉTAIRES-OCCUPANTS, À L’UNITÉ"},{"$f":"IFERROR(VLOOKUP(D3791,Translation!$A:$C,3,FALSE),D3791)","v":"> 40 % <= 44 %"},{"$f":"IFERROR(VLOOKUP(E3791,Translation!$A:$C,3,FALSE),E3791)","v":32.624358042291803},{"$f":"IFERROR(VLOOKUP(F3791,Translation!$A:$C,3,FALSE),F3791)","v":"Prêts hypothécaires assurés au cours de la période selon le rapport d’amortissement total de la dette (ATD) moyen des emprunteurs détenant un prêt assuré par la SCHL (%)"},{"$f":"IFERROR(VLOOKUP(G3791,Translation!$A:$C,3,FALSE),G3791)","v":"32.6"},{"$f":"IFERROR(VLOOKUP(H3791,Translation!$A:$C,3,FALSE),H3791)","v":" > 40 % <= 44 %"}]
[22,"T3 2017","PROPRIÉTAIRES-OCCUPANTS, À L’UNITÉ","> 40 % <= 44 %",34.915114010957815,"Prêts hypothécaires assurés au cours de la période selon le rapport d’amortissement total de la dette (ATD) moyen des emprunteurs détenant un prêt assuré par la SCHL (%)","34.9"," > 40 % <= 44 %",{"$f":"IFERROR(VLOOKUP(A3793,Translation!$A:$C,3,FALSE),A3793)","v":22},{"$f":"IFERROR(VLOOKUP(B3793,Translation!$A:$C,3,FALSE),B3793)","v":"T3 2017"},{"$f":"IFERROR(VLOOKUP(C3793,Translation!$A:$C,3,FALSE),C3793)","v":"PROPRIÉTAIRES-OCCUPANTS, À L’UNITÉ"},{"$f":"IFERROR(VLOOKUP(D3793,Translation!$A:$C,3,FALSE),D3793)","v":"> 40 % <= 44 %"},{"$f":"IFERROR(VLOOKUP(E3793,Translation!$A:$C,3,FALSE),E3793)","v":34.915114010957815},{"$f":"IFERROR(VLOOKUP(F3793,Translation!$A:$C,3,FALSE),F3793)","v":"Prêts hypothécaires assurés au cours de la période selon le rapport d’amortissement total de la dette (ATD) moyen des emprunteurs détenant un prêt assuré par la SCHL (%)"},{"$f":"IFERROR(VLOOKUP(G3793,Translation!$A:$C,3,FALSE),G3793)","v":"34.9"},{"$f":"IFERROR(VLOOKUP(H3793,Translation!$A:$C,3,FALSE),H3793)","v":" > 40 % <= 44 %"}]
[22,"T1 2017","PROPRIÉTAIRES-OCCUPANTS, À L’UNITÉ","> 44 %",7.5573191629022497E-3,"Prêts hypothécaires assurés au cours de la période selon le rapport d’amortissement total de la dette (ATD) moyen des emprunteurs détenant un prêt assuré par la SCHL (%)","0.0"," > 44 %",{"$f":"IFERROR(VLOOKUP(A3796,Translation!$A:$C,3,FALSE),A3796)","v":22},{"$f":"IFERROR(VLOOKUP(B3796,Translation!$A:$C,3,FALSE),B3796)","v":"T1 2017"},{"$f":"IFERROR(VLOOKUP(C3796,Translation!$A:$C,3,FALSE),C3796)","v":"PROPRIÉTAIRES-OCCUPANTS, À L’UNITÉ"},{"$f":"IFERROR(VLOOKUP(D3796,Translation!$A:$C,3,FALSE),D3796)","v":"> 44 %"},{"$f":"IFERROR(VLOOKUP(E3796,Translation!$A:$C,3,FALSE),E3796)","v":7.5573191629022497E-3},{"$f":"IFERROR(VLOOKUP(F3796,Translation!$A:$C,3,FALSE),F3796)","v":"Prêts hypothécaires assurés au cours de la période selon le rapport d’amortissement total de la dette (ATD) moyen des emprunteurs détenant un prêt assuré par la SCHL (%)"},{"$f":"IFERROR(VLOOKUP(G3796,Translation!$A:$C,3,FALSE),G3796)","v":"0.0"},{"$f":"IFERROR(VLOOKUP(H3796,Translation!$A:$C,3,FALSE),H3796)","v":" > 44 %"}]
[22,"Q2 2016","PROPRIÉTAIRES-OCCUPANTS, À L’UNITÉ","> 44 %",8.4105160784095773E-3,"Prêts hypothécaires assurés au cours de la période selon le rapport d’amortissement total de la dette (ATD) moyen des emprunteurs détenant un prêt assuré par la SCHL (%)","0.0"," > 44 %",{"$f":"IFERROR(VLOOKUP(A3797,Translation!$A:$C,3,FALSE),A3797)","v":22},{"$f":"IFERROR(VLOOKUP(B3797,Translation!$A:$C,3,FALSE),B3797)","v":"Q2 2016"},{"$f":"IFERROR(VLOOKUP(C3797,Translation!$A:$C,3,FALSE),C3797)","v":"PROPRIÉTAIRES-OCCUPANTS, À L’UNITÉ"},{"$f":"IFERROR(VLOOKUP(D3797,Translation!$A:$C,3,FALSE),D3797)","v":"> 44 %"},{"$f":"IFERROR(VLOOKUP(E3797,Translation!$A:$C,3,FALSE),E3797)","v":8.4105160784095773E-3},{"$f":"IFERROR(VLOOKUP(F3797,Translation!$A:$C,3,FALSE),F3797)","v":"Prêts hypothécaires assurés au cours de la période selon le rapport d’amortissement total de la dette (ATD) moyen des emprunteurs détenant un prêt assuré par la SCHL (%)"},{"$f":"IFERROR(VLOOKUP(G3797,Translation!$A:$C,3,FALSE),G3797)","v":"0.0"},{"$f":"IFERROR(VLOOKUP(H3797,Translation!$A:$C,3,FALSE),H3797)","v":" > 44 %"}]
[22,"T1 2017","PROPRIÉTAIRES-OCCUPANTS, À L’UNITÉ","Rapport d'amortissement total de la dette (ATD) moyen",36.621731170256496,"Prêts hypothécaires assurés au cours de la période selon le rapport d’amortissement total de la dette (ATD) moyen des emprunteurs détenant un prêt assuré par la SCHL (%)","36.6","Rapport d'amortissement total de la dette (ATD) moyen",{"$f":"IFERROR(VLOOKUP(A3801,Translation!$A:$C,3,FALSE),A3801)","v":22},{"$f":"IFERROR(VLOOKUP(B3801,Translation!$A:$C,3,FALSE),B3801)","v":"T1 2017"},{"$f":"IFERROR(VLOOKUP(C3801,Translation!$A:$C,3,FALSE),C3801)","v":"PROPRIÉTAIRES-OCCUPANTS, À L’UNITÉ"},{"$f":"IFERROR(VLOOKUP(D3801,Translation!$A:$C,3,FALSE),D3801)","v":"Rapport d'amortissement total de la dette (ATD) moyen"},{"$f":"IFERROR(VLOOKUP(E3801,Translation!$A:$C,3,FALSE),E3801)","v":36.621731170256496},{"$f":"IFERROR(VLOOKUP(F3801,Translation!$A:$C,3,FALSE),F3801)","v":"Prêts hypothécaires assurés au cours de la période selon le rapport d’amortissement total de la dette (ATD) moyen des emprunteurs détenant un prêt assuré par la SCHL (%)"},{"$f":"IFERROR(VLOOKUP(G3801,Translation!$A:$C,3,FALSE),G3801)","v":"36.6"},{"$f":"IFERROR(VLOOKUP(H3801,Translation!$A:$C,3,FALSE),H3801)","v":"Rapport d'amortissement total de la dette (ATD) moyen"}]
[22,"T1 2018","PROPRIÉTAIRES-OCCUPANTS, À L’UNITÉ","Rapport d'amortissement total de la dette (ATD) moyen",37.1053333650177,"Prêts hypothécaires assurés au cours de la période selon le rapport d’amortissement total de la dette (ATD) moyen des emprunteurs détenant un prêt assuré par la SCHL (%)","37.1","Rapport d'amortissement total de la dette (ATD) moyen",{"$f":"IFERROR(VLOOKUP(A3802,Translation!$A:$C,3,FALSE),A3802)","v":22},{"$f":"IFERROR(VLOOKUP(B3802,Translation!$A:$C,3,FALSE),B3802)","v":"T1 2018"},{"$f":"IFERROR(VLOOKUP(C3802,Translation!$A:$C,3,FALSE),C3802)","v":"PROPRIÉTAIRES-OCCUPANTS, À L’UNITÉ"},{"$f":"IFERROR(VLOOKUP(D3802,Translation!$A:$C,3,FALSE),D3802)","v":"Rapport d'amortissement total de la dette (ATD) moyen"},{"$f":"IFERROR(VLOOKUP(E3802,Translation!$A:$C,3,FALSE),E3802)","v":37.1053333650177},{"$f":"IFERROR(VLOOKUP(F3802,Translation!$A:$C,3,FALSE),F3802)","v":"Prêts hypothécaires assurés au cours de la période selon le rapport d’amortissement total de la dette (ATD) moyen des emprunteurs détenant un prêt assuré par la SCHL (%)"},{"$f":"IFERROR(VLOOKUP(G3802,Translation!$A:$C,3,FALSE),G3802)","v":"37.1"},{"$f":"IFERROR(VLOOKUP(H3802,Translation!$A:$C,3,FALSE),H3802)","v":"Rapport d'amortissement total de la dette (ATD) moyen"}]
[22,"T2 2017","PROPRIÉTAIRES-OCCUPANTS, À L’UNITÉ","Rapport d'amortissement total de la dette (ATD) moyen",36.398139164633129,"Prêts hypothécaires assurés au cours de la période selon le rapport d’amortissement total de la dette (ATD) moyen des emprunteurs détenant un prêt assuré par la SCHL (%)","36.4","Rapport d'amortissement total de la dette (ATD) moyen",{"$f":"IFERROR(VLOOKUP(A3804,Translation!$A:$C,3,FALSE),A3804)","v":22},{"$f":"IFERROR(VLOOKUP(B3804,Translation!$A:$C,3,FALSE),B3804)","v":"T2 2017"},{"$f":"IFERROR(VLOOKUP(C3804,Translation!$A:$C,3,FALSE),C3804)","v":"PROPRIÉTAIRES-OCCUPANTS, À L’UNITÉ"},{"$f":"IFERROR(VLOOKUP(D3804,Translation!$A:$C,3,FALSE),D3804)","v":"Rapport d'amortissement total de la dette (ATD) moyen"},{"$f":"IFERROR(VLOOKUP(E3804,Translation!$A:$C,3,FALSE),E3804)","v":36.398139164633129},{"$f":"IFERROR(VLOOKUP(F3804,Translation!$A:$C,3,FALSE),F3804)","v":"Prêts hypothécaires assurés au cours de la période selon le rapport d’amortissement total de la dette (ATD) moyen des emprunteurs détenant un prêt assuré par la SCHL (%)"},{"$f":"IFERROR(VLOOKUP(G3804,Translation!$A:$C,3,FALSE),G3804)","v":"36.4"},{"$f":"IFERROR(VLOOKUP(H3804,Translation!$A:$C,3,FALSE),H3804)","v":"Rapport d'amortissement total de la dette (ATD) moyen"}]
[22,"Q4 2016","PROPRIÉTAIRES-OCCUPANTS, À L’UNITÉ","Rapport d'amortissement total de la dette (ATD) moyen",36.107960706310685,"Prêts hypothécaires assurés au cours de la période selon le rapport d’amortissement total de la dette (ATD) moyen des emprunteurs détenant un prêt assuré par la SCHL (%)","36.1","Rapport d'amortissement total de la dette (ATD) moyen",{"$f":"IFERROR(VLOOKUP(A3807,Translation!$A:$C,3,FALSE),A3807)","v":22},{"$f":"IFERROR(VLOOKUP(B3807,Translation!$A:$C,3,FALSE),B3807)","v":"Q4 2016"},{"$f":"IFERROR(VLOOKUP(C3807,Translation!$A:$C,3,FALSE),C3807)","v":"PROPRIÉTAIRES-OCCUPANTS, À L’UNITÉ"},{"$f":"IFERROR(VLOOKUP(D3807,Translation!$A:$C,3,FALSE),D3807)","v":"Rapport d'amortissement total de la dette (ATD) moyen"},{"$f":"IFERROR(VLOOKUP(E3807,Translation!$A:$C,3,FALSE),E3807)","v":36.107960706310685},{"$f":"IFERROR(VLOOKUP(F3807,Translation!$A:$C,3,FALSE),F3807)","v":"Prêts hypothécaires assurés au cours de la période selon le rapport d’amortissement total de la dette (ATD) moyen des emprunteurs détenant un prêt assuré par la SCHL (%)"},{"$f":"IFERROR(VLOOKUP(G3807,Translation!$A:$C,3,FALSE),G3807)","v":"36.1"},{"$f":"IFERROR(VLOOKUP(H3807,Translation!$A:$C,3,FALSE),H3807)","v":"Rapport d'amortissement total de la dette (ATD) moyen"}]
[22,"T1 2017","PROPRIÉTAIRES-OCCUPANTS, À L’UNITÉ","Île-du-Prince-Édouard",35.149570466927244,"Prêts hypothécaires assurés au cours de la période selon le rapport d’amortissement total de la dette (ATD) moyen des emprunteurs détenant un prêt assuré par la SCHL (%)","35.1","Île-du-Prince-Édouard",{"$f":"IFERROR(VLOOKUP(A3810,Translation!$A:$C,3,FALSE),A3810)","v":22},{"$f":"IFERROR(VLOOKUP(B3810,Translation!$A:$C,3,FALSE),B3810)","v":"T1 2017"},{"$f":"IFERROR(VLOOKUP(C3810,Translation!$A:$C,3,FALSE),C3810)","v":"PROPRIÉTAIRES-OCCUPANTS, À L’UNITÉ"},{"$f":"IFERROR(VLOOKUP(D3810,Translation!$A:$C,3,FALSE),D3810)","v":"Île-du-Prince-Édouard"},{"$f":"IFERROR(VLOOKUP(E3810,Translation!$A:$C,3,FALSE),E3810)","v":35.149570466927244},{"$f":"IFERROR(VLOOKUP(F3810,Translation!$A:$C,3,FALSE),F3810)","v":"Prêts hypothécaires assurés au cours de la période selon le rapport d’amortissement total de la dette (ATD) moyen des emprunteurs détenant un prêt assuré par la SCHL (%)"},{"$f":"IFERROR(VLOOKUP(G3810,Translation!$A:$C,3,FALSE),G3810)","v":"35.1"},{"$f":"IFERROR(VLOOKUP(H3810,Translation!$A:$C,3,FALSE),H3810)","v":"Île-du-Prince-Édouard"}]
[22,"T1 2017","PROPRIÉTAIRES-OCCUPANTS, À L’UNITÉ","Nouveau-Brunswick",34.579865395296842,"Prêts hypothécaires assurés au cours de la période selon le rapport d’amortissement total de la dette (ATD) moyen des emprunteurs détenant un prêt assuré par la SCHL (%)","34.6","Nouveau-Brunswick",{"$f":"IFERROR(VLOOKUP(A3812,Translation!$A:$C,3,FALSE),A3812)","v":22},{"$f":"IFERROR(VLOOKUP(B3812,Translation!$A:$C,3,FALSE),B3812)","v":"T1 2017"},{"$f":"IFERROR(VLOOKUP(C3812,Translation!$A:$C,3,FALSE),C3812)","v":"PROPRIÉTAIRES-OCCUPANTS, À L’UNITÉ"},{"$f":"IFERROR(VLOOKUP(D3812,Translation!$A:$C,3,FALSE),D3812)","v":"Nouveau-Brunswick"},{"$f":"IFERROR(VLOOKUP(E3812,Translation!$A:$C,3,FALSE),E3812)","v":34.579865395296842},{"$f":"IFERROR(VLOOKUP(F3812,Translation!$A:$C,3,FALSE),F3812)","v":"Prêts hypothécaires assurés au cours de la période selon le rapport d’amortissement total de la dette (ATD) moyen des emprunteurs détenant un prêt assuré par la SCHL (%)"},{"$f":"IFERROR(VLOOKUP(G3812,Translation!$A:$C,3,FALSE),G3812)","v":"34.6"},{"$f":"IFERROR(VLOOKUP(H3812,Translation!$A:$C,3,FALSE),H3812)","v":"Nouveau-Brunswick"}]
[22,"T1 2017","PROPRIÉTAIRES-OCCUPANTS, À L’UNITÉ","Manitoba",36.092896796735502,"Prêts hypothécaires assurés au cours de la période selon le rapport d’amortissement total de la dette (ATD) moyen des emprunteurs détenant un prêt assuré par la SCHL (%)","36.1","Manitoba",{"$f":"IFERROR(VLOOKUP(A3815,Translation!$A:$C,3,FALSE),A3815)","v":22},{"$f":"IFERROR(VLOOKUP(B3815,Translation!$A:$C,3,FALSE),B3815)","v":"T1 2017"},{"$f":"IFERROR(VLOOKUP(C3815,Translation!$A:$C,3,FALSE),C3815)","v":"PROPRIÉTAIRES-OCCUPANTS, À L’UNITÉ"},{"$f":"IFERROR(VLOOKUP(D3815,Translation!$A:$C,3,FALSE),D3815)","v":"Manitoba"},{"$f":"IFERROR(VLOOKUP(E3815,Translation!$A:$C,3,FALSE),E3815)","v":36.092896796735502},{"$f":"IFERROR(VLOOKUP(F3815,Translation!$A:$C,3,FALSE),F3815)","v":"Prêts hypothécaires assurés au cours de la période selon le rapport d’amortissement total de la dette (ATD) moyen des emprunteurs détenant un prêt assuré par la SCHL (%)"},{"$f":"IFERROR(VLOOKUP(G3815,Translation!$A:$C,3,FALSE),G3815)","v":"36.1"},{"$f":"IFERROR(VLOOKUP(H3815,Translation!$A:$C,3,FALSE),H3815)","v":"Manitoba"}]
[22,"T1 2017","PROPRIÉTAIRES-OCCUPANTS, À L’UNITÉ","Colombie-Britannique",37.212520251049369,"Prêts hypothécaires assurés au cours de la période selon le rapport d’amortissement total de la dette (ATD) moyen des emprunteurs détenant un prêt assuré par la SCHL (%)","37.2","Colombie-Britannique",{"$f":"IFERROR(VLOOKUP(A3818,Translation!$A:$C,3,FALSE),A3818)","v":22},{"$f":"IFERROR(VLOOKUP(B3818,Translation!$A:$C,3,FALSE),B3818)","v":"T1 2017"},{"$f":"IFERROR(VLOOKUP(C3818,Translation!$A:$C,3,FALSE),C3818)","v":"PROPRIÉTAIRES-OCCUPANTS, À L’UNITÉ"},{"$f":"IFERROR(VLOOKUP(D3818,Translation!$A:$C,3,FALSE),D3818)","v":"Colombie-Britannique"},{"$f":"IFERROR(VLOOKUP(E3818,Translation!$A:$C,3,FALSE),E3818)","v":37.212520251049369},{"$f":"IFERROR(VLOOKUP(F3818,Translation!$A:$C,3,FALSE),F3818)","v":"Prêts hypothécaires assurés au cours de la période selon le rapport d’amortissement total de la dette (ATD) moyen des emprunteurs détenant un prêt assuré par la SCHL (%)"},{"$f":"IFERROR(VLOOKUP(G3818,Translation!$A:$C,3,FALSE),G3818)","v":"37.2"},{"$f":"IFERROR(VLOOKUP(H3818,Translation!$A:$C,3,FALSE),H3818)","v":"Colombie-Britannique"}]
[22,"T1 2018","PROPRIÉTAIRES-OCCUPANTS, À L’UNITÉ","Terre-Neuve-et-Labrador",36.780306092301608,"Prêts hypothécaires assurés au cours de la période selon le rapport d’amortissement total de la dette (ATD) moyen des emprunteurs détenant un prêt assuré par la SCHL (%)","36.8","Terre-Neuve-et-Labrador",{"$f":"IFERROR(VLOOKUP(A3820,Translation!$A:$C,3,FALSE),A3820)","v":22},{"$f":"IFERROR(VLOOKUP(B3820,Translation!$A:$C,3,FALSE),B3820)","v":"T1 2018"},{"$f":"IFERROR(VLOOKUP(C3820,Translation!$A:$C,3,FALSE),C3820)","v":"PROPRIÉTAIRES-OCCUPANTS, À L’UNITÉ"},{"$f":"IFERROR(VLOOKUP(D3820,Translation!$A:$C,3,FALSE),D3820)","v":"Terre-Neuve-et-Labrador"},{"$f":"IFERROR(VLOOKUP(E3820,Translation!$A:$C,3,FALSE),E3820)","v":36.780306092301608},{"$f":"IFERROR(VLOOKUP(F3820,Translation!$A:$C,3,FALSE),F3820)","v":"Prêts hypothécaires assurés au cours de la période selon le rapport d’amortissement total de la dette (ATD) moyen des emprunteurs détenant un prêt assuré par la SCHL (%)"},{"$f":"IFERROR(VLOOKUP(G3820,Translation!$A:$C,3,FALSE),G3820)","v":"36.8"},{"$f":"IFERROR(VLOOKUP(H3820,Translation!$A:$C,3,FALSE),H3820)","v":"Terre-Neuve-et-Labrador"}]
[22,"T1 2018","PROPRIÉTAIRES-OCCUPANTS, À L’UNITÉ","Île-du-Prince-Édouard",36.198804276131128,"Prêts hypothécaires assurés au cours de la période selon le rapport d’amortissement total de la dette (ATD) moyen des emprunteurs détenant un prêt assuré par la SCHL (%)","36.2","Île-du-Prince-Édouard",{"$f":"IFERROR(VLOOKUP(A3821,Translation!$A:$C,3,FALSE),A3821)","v":22},{"$f":"IFERROR(VLOOKUP(B3821,Translation!$A:$C,3,FALSE),B3821)","v":"T1 2018"},{"$f":"IFERROR(VLOOKUP(C3821,Translation!$A:$C,3,FALSE),C3821)","v":"PROPRIÉTAIRES-OCCUPANTS, À L’UNITÉ"},{"$f":"IFERROR(VLOOKUP(D3821,Translation!$A:$C,3,FALSE),D3821)","v":"Île-du-Prince-Édouard"},{"$f":"IFERROR(VLOOKUP(E3821,Translation!$A:$C,3,FALSE),E3821)","v":36.198804276131128},{"$f":"IFERROR(VLOOKUP(F3821,Translation!$A:$C,3,FALSE),F3821)","v":"Prêts hypothécaires assurés au cours de la période selon le rapport d’amortissement total de la dette (ATD) moyen des emprunteurs détenant un prêt assuré par la SCHL (%)"},{"$f":"IFERROR(VLOOKUP(G3821,Translation!$A:$C,3,FALSE),G3821)","v":"36.2"},{"$f":"IFERROR(VLOOKUP(H3821,Translation!$A:$C,3,FALSE),H3821)","v":"Île-du-Prince-Édouard"}]
[22,"T1 2018","PROPRIÉTAIRES-OCCUPANTS, À L’UNITÉ","Nouveau-Brunswick",34.68089388871676,"Prêts hypothécaires assurés au cours de la période selon le rapport d’amortissement total de la dette (ATD) moyen des emprunteurs détenant un prêt assuré par la SCHL (%)","34.7","Nouveau-Brunswick",{"$f":"IFERROR(VLOOKUP(A3823,Translation!$A:$C,3,FALSE),A3823)","v":22},{"$f":"IFERROR(VLOOKUP(B3823,Translation!$A:$C,3,FALSE),B3823)","v":"T1 2018"},{"$f":"IFERROR(VLOOKUP(C3823,Translation!$A:$C,3,FALSE),C3823)","v":"PROPRIÉTAIRES-OCCUPANTS, À L’UNITÉ"},{"$f":"IFERROR(VLOOKUP(D3823,Translation!$A:$C,3,FALSE),D3823)","v":"Nouveau-Brunswick"},{"$f":"IFERROR(VLOOKUP(E3823,Translation!$A:$C,3,FALSE),E3823)","v":34.68089388871676},{"$f":"IFERROR(VLOOKUP(F3823,Translation!$A:$C,3,FALSE),F3823)","v":"Prêts hypothécaires assurés au cours de la période selon le rapport d’amortissement total de la dette (ATD) moyen des emprunteurs détenant un prêt assuré par la SCHL (%)"},{"$f":"IFERROR(VLOOKUP(G3823,Translation!$A:$C,3,FALSE),G3823)","v":"34.7"},{"$f":"IFERROR(VLOOKUP(H3823,Translation!$A:$C,3,FALSE),H3823)","v":"Nouveau-Brunswick"}]
[22,"T1 2018","PROPRIÉTAIRES-OCCUPANTS, À L’UNITÉ","Manitoba",36.388538891165858,"Prêts hypothécaires assurés au cours de la période selon le rapport d’amortissement total de la dette (ATD) moyen des emprunteurs détenant un prêt assuré par la SCHL (%)","36.4","Manitoba",{"$f":"IFERROR(VLOOKUP(A3826,Translation!$A:$C,3,FALSE),A3826)","v":22},{"$f":"IFERROR(VLOOKUP(B3826,Translation!$A:$C,3,FALSE),B3826)","v":"T1 2018"},{"$f":"IFERROR(VLOOKUP(C3826,Translation!$A:$C,3,FALSE),C3826)","v":"PROPRIÉTAIRES-OCCUPANTS, À L’UNITÉ"},{"$f":"IFERROR(VLOOKUP(D3826,Translation!$A:$C,3,FALSE),D3826)","v":"Manitoba"},{"$f":"IFERROR(VLOOKUP(E3826,Translation!$A:$C,3,FALSE),E3826)","v":36.388538891165858},{"$f":"IFERROR(VLOOKUP(F3826,Translation!$A:$C,3,FALSE),F3826)","v":"Prêts hypothécaires assurés au cours de la période selon le rapport d’amortissement total de la dette (ATD) moyen des emprunteurs détenant un prêt assuré par la SCHL (%)"},{"$f":"IFERROR(VLOOKUP(G3826,Translation!$A:$C,3,FALSE),G3826)","v":"36.4"},{"$f":"IFERROR(VLOOKUP(H3826,Translation!$A:$C,3,FALSE),H3826)","v":"Manitoba"}]
[22,"T1 2018","PROPRIÉTAIRES-OCCUPANTS, À L’UNITÉ","Colombie-Britannique",37.913801069818447,"Prêts hypothécaires assurés au cours de la période selon le rapport d’amortissement total de la dette (ATD) moyen des emprunteurs détenant un prêt assuré par la SCHL (%)","37.9","Colombie-Britannique",{"$f":"IFERROR(VLOOKUP(A3829,Translation!$A:$C,3,FALSE),A3829)","v":22},{"$f":"IFERROR(VLOOKUP(B3829,Translation!$A:$C,3,FALSE),B3829)","v":"T1 2018"},{"$f":"IFERROR(VLOOKUP(C3829,Translation!$A:$C,3,FALSE),C3829)","v":"PROPRIÉTAIRES-OCCUPANTS, À L’UNITÉ"},{"$f":"IFERROR(VLOOKUP(D3829,Translation!$A:$C,3,FALSE),D3829)","v":"Colombie-Britannique"},{"$f":"IFERROR(VLOOKUP(E3829,Translation!$A:$C,3,FALSE),E3829)","v":37.913801069818447},{"$f":"IFERROR(VLOOKUP(F3829,Translation!$A:$C,3,FALSE),F3829)","v":"Prêts hypothécaires assurés au cours de la période selon le rapport d’amortissement total de la dette (ATD) moyen des emprunteurs détenant un prêt assuré par la SCHL (%)"},{"$f":"IFERROR(VLOOKUP(G3829,Translation!$A:$C,3,FALSE),G3829)","v":"37.9"},{"$f":"IFERROR(VLOOKUP(H3829,Translation!$A:$C,3,FALSE),H3829)","v":"Colombie-Britannique"}]
[22,"Q2 2016","PROPRIÉTAIRES-OCCUPANTS, À L’UNITÉ","Terre-Neuve-et-Labrador",35.508781978653445,"Prêts hypothécaires assurés au cours de la période selon le rapport d’amortissement total de la dette (ATD) moyen des emprunteurs détenant un prêt assuré par la SCHL (%)","35.5","Terre-Neuve-et-Labrador",{"$f":"IFERROR(VLOOKUP(A3831,Translation!$A:$C,3,FALSE),A3831)","v":22},{"$f":"IFERROR(VLOOKUP(B3831,Translation!$A:$C,3,FALSE),B3831)","v":"Q2 2016"},{"$f":"IFERROR(VLOOKUP(C3831,Translation!$A:$C,3,FALSE),C3831)","v":"PROPRIÉTAIRES-OCCUPANTS, À L’UNITÉ"},{"$f":"IFERROR(VLOOKUP(D3831,Translation!$A:$C,3,FALSE),D3831)","v":"Terre-Neuve-et-Labrador"},{"$f":"IFERROR(VLOOKUP(E3831,Translation!$A:$C,3,FALSE),E3831)","v":35.508781978653445},{"$f":"IFERROR(VLOOKUP(F3831,Translation!$A:$C,3,FALSE),F3831)","v":"Prêts hypothécaires assurés au cours de la période selon le rapport d’amortissement total de la dette (ATD) moyen des emprunteurs détenant un prêt assuré par la SCHL (%)"},{"$f":"IFERROR(VLOOKUP(G3831,Translation!$A:$C,3,FALSE),G3831)","v":"35.5"},{"$f":"IFERROR(VLOOKUP(H3831,Translation!$A:$C,3,FALSE),H3831)","v":"Terre-Neuve-et-Labrador"}]
[22,"Q2 2016","PROPRIÉTAIRES-OCCUPANTS, À L’UNITÉ","Nouveau-Brunswick",33.938910976507479,"Prêts hypothécaires assurés au cours de la période selon le rapport d’amortissement total de la dette (ATD) moyen des emprunteurs détenant un prêt assuré par la SCHL (%)","33.9","Nouveau-Brunswick",{"$f":"IFERROR(VLOOKUP(A3834,Translation!$A:$C,3,FALSE),A3834)","v":22},{"$f":"IFERROR(VLOOKUP(B3834,Translation!$A:$C,3,FALSE),B3834)","v":"Q2 2016"},{"$f":"IFERROR(VLOOKUP(C3834,Translation!$A:$C,3,FALSE),C3834)","v":"PROPRIÉTAIRES-OCCUPANTS, À L’UNITÉ"},{"$f":"IFERROR(VLOOKUP(D3834,Translation!$A:$C,3,FALSE),D3834)","v":"Nouveau-Brunswick"},{"$f":"IFERROR(VLOOKUP(E3834,Translation!$A:$C,3,FALSE),E3834)","v":33.938910976507479},{"$f":"IFERROR(VLOOKUP(F3834,Translation!$A:$C,3,FALSE),F3834)","v":"Prêts hypothécaires assurés au cours de la période selon le rapport d’amortissement total de la dette (ATD) moyen des emprunteurs détenant un prêt assuré par la SCHL (%)"},{"$f":"IFERROR(VLOOKUP(G3834,Translation!$A:$C,3,FALSE),G3834)","v":"33.9"},{"$f":"IFERROR(VLOOKUP(H3834,Translation!$A:$C,3,FALSE),H3834)","v":"Nouveau-Brunswick"}]
[22,"Q2 2016","PROPRIÉTAIRES-OCCUPANTS, À L’UNITÉ","Manitoba",35.220256361807223,"Prêts hypothécaires assurés au cours de la période selon le rapport d’amortissement total de la dette (ATD) moyen des emprunteurs détenant un prêt assuré par la SCHL (%)","35.2","Manitoba",{"$f":"IFERROR(VLOOKUP(A3837,Translation!$A:$C,3,FALSE),A3837)","v":22},{"$f":"IFERROR(VLOOKUP(B3837,Translation!$A:$C,3,FALSE),B3837)","v":"Q2 2016"},{"$f":"IFERROR(VLOOKUP(C3837,Translation!$A:$C,3,FALSE),C3837)","v":"PROPRIÉTAIRES-OCCUPANTS, À L’UNITÉ"},{"$f":"IFERROR(VLOOKUP(D3837,Translation!$A:$C,3,FALSE),D3837)","v":"Manitoba"},{"$f":"IFERROR(VLOOKUP(E3837,Translation!$A:$C,3,FALSE),E3837)","v":35.220256361807223},{"$f":"IFERROR(VLOOKUP(F3837,Translation!$A:$C,3,FALSE),F3837)","v":"Prêts hypothécaires assurés au cours de la période selon le rapport d’amortissement total de la dette (ATD) moyen des emprunteurs détenant un prêt assuré par la SCHL (%)"},{"$f":"IFERROR(VLOOKUP(G3837,Translation!$A:$C,3,FALSE),G3837)","v":"35.2"},{"$f":"IFERROR(VLOOKUP(H3837,Translation!$A:$C,3,FALSE),H3837)","v":"Manitoba"}]
[22,"Q2 2016","PROPRIÉTAIRES-OCCUPANTS, À L’UNITÉ","Alberta",36.296534006161778,"Prêts hypothécaires assurés au cours de la période selon le rapport d’amortissement total de la dette (ATD) moyen des emprunteurs détenant un prêt assuré par la SCHL (%)","36.3","Alberta",{"$f":"IFERROR(VLOOKUP(A3839,Translation!$A:$C,3,FALSE),A3839)","v":22},{"$f":"IFERROR(VLOOKUP(B3839,Translation!$A:$C,3,FALSE),B3839)","v":"Q2 2016"},{"$f":"IFERROR(VLOOKUP(C3839,Translation!$A:$C,3,FALSE),C3839)","v":"PROPRIÉTAIRES-OCCUPANTS, À L’UNITÉ"},{"$f":"IFERROR(VLOOKUP(D3839,Translation!$A:$C,3,FALSE),D3839)","v":"Alberta"},{"$f":"IFERROR(VLOOKUP(E3839,Translation!$A:$C,3,FALSE),E3839)","v":36.296534006161778},{"$f":"IFERROR(VLOOKUP(F3839,Translation!$A:$C,3,FALSE),F3839)","v":"Prêts hypothécaires assurés au cours de la période selon le rapport d’amortissement total de la dette (ATD) moyen des emprunteurs détenant un prêt assuré par la SCHL (%)"},{"$f":"IFERROR(VLOOKUP(G3839,Translation!$A:$C,3,FALSE),G3839)","v":"36.3"},{"$f":"IFERROR(VLOOKUP(H3839,Translation!$A:$C,3,FALSE),H3839)","v":"Alberta"}]
[22,"T2 2017","PROPRIÉTAIRES-OCCUPANTS, À L’UNITÉ","Terre-Neuve-et-Labrador",35.994573782517385,"Prêts hypothécaires assurés au cours de la période selon le rapport d’amortissement total de la dette (ATD) moyen des emprunteurs détenant un prêt assuré par la SCHL (%)","36.0","Terre-Neuve-et-Labrador",{"$f":"IFERROR(VLOOKUP(A3842,Translation!$A:$C,3,FALSE),A3842)","v":22},{"$f":"IFERROR(VLOOKUP(B3842,Translation!$A:$C,3,FALSE),B3842)","v":"T2 2017"},{"$f":"IFERROR(VLOOKUP(C3842,Translation!$A:$C,3,FALSE),C3842)","v":"PROPRIÉTAIRES-OCCUPANTS, À L’UNITÉ"},{"$f":"IFERROR(VLOOKUP(D3842,Translation!$A:$C,3,FALSE),D3842)","v":"Terre-Neuve-et-Labrador"},{"$f":"IFERROR(VLOOKUP(E3842,Translation!$A:$C,3,FALSE),E3842)","v":35.994573782517385},{"$f":"IFERROR(VLOOKUP(F3842,Translation!$A:$C,3,FALSE),F3842)","v":"Prêts hypothécaires assurés au cours de la période selon le rapport d’amortissement total de la dette (ATD) moyen des emprunteurs détenant un prêt assuré par la SCHL (%)"},{"$f":"IFERROR(VLOOKUP(G3842,Translation!$A:$C,3,FALSE),G3842)","v":"36.0"},{"$f":"IFERROR(VLOOKUP(H3842,Translation!$A:$C,3,FALSE),H3842)","v":"Terre-Neuve-et-Labrador"}]
[22,"T2 2017","PROPRIÉTAIRES-OCCUPANTS, À L’UNITÉ","Nouvelle-Écosse",35.480108992083274,"Prêts hypothécaires assurés au cours de la période selon le rapport d’amortissement total de la dette (ATD) moyen des emprunteurs détenant un prêt assuré par la SCHL (%)","35.5","Nouvelle-Écosse",{"$f":"IFERROR(VLOOKUP(A3844,Translation!$A:$C,3,FALSE),A3844)","v":22},{"$f":"IFERROR(VLOOKUP(B3844,Translation!$A:$C,3,FALSE),B3844)","v":"T2 2017"},{"$f":"IFERROR(VLOOKUP(C3844,Translation!$A:$C,3,FALSE),C3844)","v":"PROPRIÉTAIRES-OCCUPANTS, À L’UNITÉ"},{"$f":"IFERROR(VLOOKUP(D3844,Translation!$A:$C,3,FALSE),D3844)","v":"Nouvelle-Écosse"},{"$f":"IFERROR(VLOOKUP(E3844,Translation!$A:$C,3,FALSE),E3844)","v":35.480108992083274},{"$f":"IFERROR(VLOOKUP(F3844,Translation!$A:$C,3,FALSE),F3844)","v":"Prêts hypothécaires assurés au cours de la période selon le rapport d’amortissement total de la dette (ATD) moyen des emprunteurs détenant un prêt assuré par la SCHL (%)"},{"$f":"IFERROR(VLOOKUP(G3844,Translation!$A:$C,3,FALSE),G3844)","v":"35.5"},{"$f":"IFERROR(VLOOKUP(H3844,Translation!$A:$C,3,FALSE),H3844)","v":"Nouvelle-Écosse"}]
[22,"T2 2017","PROPRIÉTAIRES-OCCUPANTS, À L’UNITÉ","Nouveau-Brunswick",34.574723584419161,"Prêts hypothécaires assurés au cours de la période selon le rapport d’amortissement total de la dette (ATD) moyen des emprunteurs détenant un prêt assuré par la SCHL (%)","34.6","Nouveau-Brunswick",{"$f":"IFERROR(VLOOKUP(A3845,Translation!$A:$C,3,FALSE),A3845)","v":22},{"$f":"IFERROR(VLOOKUP(B3845,Translation!$A:$C,3,FALSE),B3845)","v":"T2 2017"},{"$f":"IFERROR(VLOOKUP(C3845,Translation!$A:$C,3,FALSE),C3845)","v":"PROPRIÉTAIRES-OCCUPANTS, À L’UNITÉ"},{"$f":"IFERROR(VLOOKUP(D3845,Translation!$A:$C,3,FALSE),D3845)","v":"Nouveau-Brunswick"},{"$f":"IFERROR(VLOOKUP(E3845,Translation!$A:$C,3,FALSE),E3845)","v":34.574723584419161},{"$f":"IFERROR(VLOOKUP(F3845,Translation!$A:$C,3,FALSE),F3845)","v":"Prêts hypothécaires assurés au cours de la période selon le rapport d’amortissement total de la dette (ATD) moyen des emprunteurs détenant un prêt assuré par la SCHL (%)"},{"$f":"IFERROR(VLOOKUP(G3845,Translation!$A:$C,3,FALSE),G3845)","v":"34.6"},{"$f":"IFERROR(VLOOKUP(H3845,Translation!$A:$C,3,FALSE),H3845)","v":"Nouveau-Brunswick"}]
[22,"T2 2017","PROPRIÉTAIRES-OCCUPANTS, À L’UNITÉ","Manitoba",35.90833639467084,"Prêts hypothécaires assurés au cours de la période selon le rapport d’amortissement total de la dette (ATD) moyen des emprunteurs détenant un prêt assuré par la SCHL (%)","35.9","Manitoba",{"$f":"IFERROR(VLOOKUP(A3848,Translation!$A:$C,3,FALSE),A3848)","v":22},{"$f":"IFERROR(VLOOKUP(B3848,Translation!$A:$C,3,FALSE),B3848)","v":"T2 2017"},{"$f":"IFERROR(VLOOKUP(C3848,Translation!$A:$C,3,FALSE),C3848)","v":"PROPRIÉTAIRES-OCCUPANTS, À L’UNITÉ"},{"$f":"IFERROR(VLOOKUP(D3848,Translation!$A:$C,3,FALSE),D3848)","v":"Manitoba"},{"$f":"IFERROR(VLOOKUP(E3848,Translation!$A:$C,3,FALSE),E3848)","v":35.90833639467084},{"$f":"IFERROR(VLOOKUP(F3848,Translation!$A:$C,3,FALSE),F3848)","v":"Prêts hypothécaires assurés au cours de la période selon le rapport d’amortissement total de la dette (ATD) moyen des emprunteurs détenant un prêt assuré par la SCHL (%)"},{"$f":"IFERROR(VLOOKUP(G3848,Translation!$A:$C,3,FALSE),G3848)","v":"35.9"},{"$f":"IFERROR(VLOOKUP(H3848,Translation!$A:$C,3,FALSE),H3848)","v":"Manitoba"}]
[22,"T2 2017","PROPRIÉTAIRES-OCCUPANTS, À L’UNITÉ","Alberta",37.055863789655149,"Prêts hypothécaires assurés au cours de la période selon le rapport d’amortissement total de la dette (ATD) moyen des emprunteurs détenant un prêt assuré par la SCHL (%)","37.1","Alberta",{"$f":"IFERROR(VLOOKUP(A3850,Translation!$A:$C,3,FALSE),A3850)","v":22},{"$f":"IFERROR(VLOOKUP(B3850,Translation!$A:$C,3,FALSE),B3850)","v":"T2 2017"},{"$f":"IFERROR(VLOOKUP(C3850,Translation!$A:$C,3,FALSE),C3850)","v":"PROPRIÉTAIRES-OCCUPANTS, À L’UNITÉ"},{"$f":"IFERROR(VLOOKUP(D3850,Translation!$A:$C,3,FALSE),D3850)","v":"Alberta"},{"$f":"IFERROR(VLOOKUP(E3850,Translation!$A:$C,3,FALSE),E3850)","v":37.055863789655149},{"$f":"IFERROR(VLOOKUP(F3850,Translation!$A:$C,3,FALSE),F3850)","v":"Prêts hypothécaires assurés au cours de la période selon le rapport d’amortissement total de la dette (ATD) moyen des emprunteurs détenant un prêt assuré par la SCHL (%)"},{"$f":"IFERROR(VLOOKUP(G3850,Translation!$A:$C,3,FALSE),G3850)","v":"37.1"},{"$f":"IFERROR(VLOOKUP(H3850,Translation!$A:$C,3,FALSE),H3850)","v":"Alberta"}]
[22,"Q3 2016","PROPRIÉTAIRES-OCCUPANTS, À L’UNITÉ","Terre-Neuve-et-Labrador",35.335494842094278,"Prêts hypothécaires assurés au cours de la période selon le rapport d’amortissement total de la dette (ATD) moyen des emprunteurs détenant un prêt assuré par la SCHL (%)","35.3","Terre-Neuve-et-Labrador",{"$f":"IFERROR(VLOOKUP(A3853,Translation!$A:$C,3,FALSE),A3853)","v":22},{"$f":"IFERROR(VLOOKUP(B3853,Translation!$A:$C,3,FALSE),B3853)","v":"Q3 2016"},{"$f":"IFERROR(VLOOKUP(C3853,Translation!$A:$C,3,FALSE),C3853)","v":"PROPRIÉTAIRES-OCCUPANTS, À L’UNITÉ"},{"$f":"IFERROR(VLOOKUP(D3853,Translation!$A:$C,3,FALSE),D3853)","v":"Terre-Neuve-et-Labrador"},{"$f":"IFERROR(VLOOKUP(E3853,Translation!$A:$C,3,FALSE),E3853)","v":35.335494842094278},{"$f":"IFERROR(VLOOKUP(F3853,Translation!$A:$C,3,FALSE),F3853)","v":"Prêts hypothécaires assurés au cours de la période selon le rapport d’amortissement total de la dette (ATD) moyen des emprunteurs détenant un prêt assuré par la SCHL (%)"},{"$f":"IFERROR(VLOOKUP(G3853,Translation!$A:$C,3,FALSE),G3853)","v":"35.3"},{"$f":"IFERROR(VLOOKUP(H3853,Translation!$A:$C,3,FALSE),H3853)","v":"Terre-Neuve-et-Labrador"}]
[22,"Q3 2016","PROPRIÉTAIRES-OCCUPANTS, À L’UNITÉ","Nouvelle-Écosse",34.343960081021976,"Prêts hypothécaires assurés au cours de la période selon le rapport d’amortissement total de la dette (ATD) moyen des emprunteurs détenant un prêt assuré par la SCHL (%)","34.3","Nouvelle-Écosse",{"$f":"IFERROR(VLOOKUP(A3855,Translation!$A:$C,3,FALSE),A3855)","v":22},{"$f":"IFERROR(VLOOKUP(B3855,Translation!$A:$C,3,FALSE),B3855)","v":"Q3 2016"},{"$f":"IFERROR(VLOOKUP(C3855,Translation!$A:$C,3,FALSE),C3855)","v":"PROPRIÉTAIRES-OCCUPANTS, À L’UNITÉ"},{"$f":"IFERROR(VLOOKUP(D3855,Translation!$A:$C,3,FALSE),D3855)","v":"Nouvelle-Écosse"},{"$f":"IFERROR(VLOOKUP(E3855,Translation!$A:$C,3,FALSE),E3855)","v":34.343960081021976},{"$f":"IFERROR(VLOOKUP(F3855,Translation!$A:$C,3,FALSE),F3855)","v":"Prêts hypothécaires assurés au cours de la période selon le rapport d’amortissement total de la dette (ATD) moyen des emprunteurs détenant un prêt assuré par la SCHL (%)"},{"$f":"IFERROR(VLOOKUP(G3855,Translation!$A:$C,3,FALSE),G3855)","v":"34.3"},{"$f":"IFERROR(VLOOKUP(H3855,Translation!$A:$C,3,FALSE),H3855)","v":"Nouvelle-Écosse"}]
[22,"Q3 2016","PROPRIÉTAIRES-OCCUPANTS, À L’UNITÉ","Ontario",36.372178111047809,"Prêts hypothécaires assurés au cours de la période selon le rapport d’amortissement total de la dette (ATD) moyen des emprunteurs détenant un prêt assuré par la SCHL (%)","36.4","Ontario",{"$f":"IFERROR(VLOOKUP(A3858,Translation!$A:$C,3,FALSE),A3858)","v":22},{"$f":"IFERROR(VLOOKUP(B3858,Translation!$A:$C,3,FALSE),B3858)","v":"Q3 2016"},{"$f":"IFERROR(VLOOKUP(C3858,Translation!$A:$C,3,FALSE),C3858)","v":"PROPRIÉTAIRES-OCCUPANTS, À L’UNITÉ"},{"$f":"IFERROR(VLOOKUP(D3858,Translation!$A:$C,3,FALSE),D3858)","v":"Ontario"},{"$f":"IFERROR(VLOOKUP(E3858,Translation!$A:$C,3,FALSE),E3858)","v":36.372178111047809},{"$f":"IFERROR(VLOOKUP(F3858,Translation!$A:$C,3,FALSE),F3858)","v":"Prêts hypothécaires assurés au cours de la période selon le rapport d’amortissement total de la dette (ATD) moyen des emprunteurs détenant un prêt assuré par la SCHL (%)"},{"$f":"IFERROR(VLOOKUP(G3858,Translation!$A:$C,3,FALSE),G3858)","v":"36.4"},{"$f":"IFERROR(VLOOKUP(H3858,Translation!$A:$C,3,FALSE),H3858)","v":"Ontario"}]
[22,"Q3 2016","PROPRIÉTAIRES-OCCUPANTS, À L’UNITÉ","Manitoba",35.058427296897122,"Prêts hypothécaires assurés au cours de la période selon le rapport d’amortissement total de la dette (ATD) moyen des emprunteurs détenant un prêt assuré par la SCHL (%)","35.1","Manitoba",{"$f":"IFERROR(VLOOKUP(A3859,Translation!$A:$C,3,FALSE),A3859)","v":22},{"$f":"IFERROR(VLOOKUP(B3859,Translation!$A:$C,3,FALSE),B3859)","v":"Q3 2016"},{"$f":"IFERROR(VLOOKUP(C3859,Translation!$A:$C,3,FALSE),C3859)","v":"PROPRIÉTAIRES-OCCUPANTS, À L’UNITÉ"},{"$f":"IFERROR(VLOOKUP(D3859,Translation!$A:$C,3,FALSE),D3859)","v":"Manitoba"},{"$f":"IFERROR(VLOOKUP(E3859,Translation!$A:$C,3,FALSE),E3859)","v":35.058427296897122},{"$f":"IFERROR(VLOOKUP(F3859,Translation!$A:$C,3,FALSE),F3859)","v":"Prêts hypothécaires assurés au cours de la période selon le rapport d’amortissement total de la dette (ATD) moyen des emprunteurs détenant un prêt assuré par la SCHL (%)"},{"$f":"IFERROR(VLOOKUP(G3859,Translation!$A:$C,3,FALSE),G3859)","v":"35.1"},{"$f":"IFERROR(VLOOKUP(H3859,Translation!$A:$C,3,FALSE),H3859)","v":"Manitoba"}]
[22,"Q3 2016","PROPRIÉTAIRES-OCCUPANTS, À L’UNITÉ","Territoires",35.090901699647375,"Prêts hypothécaires assurés au cours de la période selon le rapport d’amortissement total de la dette (ATD) moyen des emprunteurs détenant un prêt assuré par la SCHL (%)","35.1","Territoires",{"$f":"IFERROR(VLOOKUP(A3863,Translation!$A:$C,3,FALSE),A3863)","v":22},{"$f":"IFERROR(VLOOKUP(B3863,Translation!$A:$C,3,FALSE),B3863)","v":"Q3 2016"},{"$f":"IFERROR(VLOOKUP(C3863,Translation!$A:$C,3,FALSE),C3863)","v":"PROPRIÉTAIRES-OCCUPANTS, À L’UNITÉ"},{"$f":"IFERROR(VLOOKUP(D3863,Translation!$A:$C,3,FALSE),D3863)","v":"Territoires"},{"$f":"IFERROR(VLOOKUP(E3863,Translation!$A:$C,3,FALSE),E3863)","v":35.090901699647375},{"$f":"IFERROR(VLOOKUP(F3863,Translation!$A:$C,3,FALSE),F3863)","v":"Prêts hypothécaires assurés au cours de la période selon le rapport d’amortissement total de la dette (ATD) moyen des emprunteurs détenant un prêt assuré par la SCHL (%)"},{"$f":"IFERROR(VLOOKUP(G3863,Translation!$A:$C,3,FALSE),G3863)","v":"35.1"},{"$f":"IFERROR(VLOOKUP(H3863,Translation!$A:$C,3,FALSE),H3863)","v":"Territoires"}]
[22,"T3 2017","PROPRIÉTAIRES-OCCUPANTS, À L’UNITÉ","Terre-Neuve-et-Labrador",35.544218967596301,"Prêts hypothécaires assurés au cours de la période selon le rapport d’amortissement total de la dette (ATD) moyen des emprunteurs détenant un prêt assuré par la SCHL (%)","35.5","Terre-Neuve-et-Labrador",{"$f":"IFERROR(VLOOKUP(A3864,Translation!$A:$C,3,FALSE),A3864)","v":22},{"$f":"IFERROR(VLOOKUP(B3864,Translation!$A:$C,3,FALSE),B3864)","v":"T3 2017"},{"$f":"IFERROR(VLOOKUP(C3864,Translation!$A:$C,3,FALSE),C3864)","v":"PROPRIÉTAIRES-OCCUPANTS, À L’UNITÉ"},{"$f":"IFERROR(VLOOKUP(D3864,Translation!$A:$C,3,FALSE),D3864)","v":"Terre-Neuve-et-Labrador"},{"$f":"IFERROR(VLOOKUP(E3864,Translation!$A:$C,3,FALSE),E3864)","v":35.544218967596301},{"$f":"IFERROR(VLOOKUP(F3864,Translation!$A:$C,3,FALSE),F3864)","v":"Prêts hypothécaires assurés au cours de la période selon le rapport d’amortissement total de la dette (ATD) moyen des emprunteurs détenant un prêt assuré par la SCHL (%)"},{"$f":"IFERROR(VLOOKUP(G3864,Translation!$A:$C,3,FALSE),G3864)","v":"35.5"},{"$f":"IFERROR(VLOOKUP(H3864,Translation!$A:$C,3,FALSE),H3864)","v":"Terre-Neuve-et-Labrador"}]
[22,"T3 2017","PROPRIÉTAIRES-OCCUPANTS, À L’UNITÉ","Québec",35.691035260079801,"Prêts hypothécaires assurés au cours de la période selon le rapport d’amortissement total de la dette (ATD) moyen des emprunteurs détenant un prêt assuré par la SCHL (%)","35.7","Québec",{"$f":"IFERROR(VLOOKUP(A3868,Translation!$A:$C,3,FALSE),A3868)","v":22},{"$f":"IFERROR(VLOOKUP(B3868,Translation!$A:$C,3,FALSE),B3868)","v":"T3 2017"},{"$f":"IFERROR(VLOOKUP(C3868,Translation!$A:$C,3,FALSE),C3868)","v":"PROPRIÉTAIRES-OCCUPANTS, À L’UNITÉ"},{"$f":"IFERROR(VLOOKUP(D3868,Translation!$A:$C,3,FALSE),D3868)","v":"Québec"},{"$f":"IFERROR(VLOOKUP(E3868,Translation!$A:$C,3,FALSE),E3868)","v":35.691035260079801},{"$f":"IFERROR(VLOOKUP(F3868,Translation!$A:$C,3,FALSE),F3868)","v":"Prêts hypothécaires assurés au cours de la période selon le rapport d’amortissement total de la dette (ATD) moyen des emprunteurs détenant un prêt assuré par la SCHL (%)"},{"$f":"IFERROR(VLOOKUP(G3868,Translation!$A:$C,3,FALSE),G3868)","v":"35.7"},{"$f":"IFERROR(VLOOKUP(H3868,Translation!$A:$C,3,FALSE),H3868)","v":"Québec"}]
[22,"T3 2017","PROPRIÉTAIRES-OCCUPANTS, À L’UNITÉ","Ontario",37.411513252303827,"Prêts hypothécaires assurés au cours de la période selon le rapport d’amortissement total de la dette (ATD) moyen des emprunteurs détenant un prêt assuré par la SCHL (%)","37.4","Ontario",{"$f":"IFERROR(VLOOKUP(A3869,Translation!$A:$C,3,FALSE),A3869)","v":22},{"$f":"IFERROR(VLOOKUP(B3869,Translation!$A:$C,3,FALSE),B3869)","v":"T3 2017"},{"$f":"IFERROR(VLOOKUP(C3869,Translation!$A:$C,3,FALSE),C3869)","v":"PROPRIÉTAIRES-OCCUPANTS, À L’UNITÉ"},{"$f":"IFERROR(VLOOKUP(D3869,Translation!$A:$C,3,FALSE),D3869)","v":"Ontario"},{"$f":"IFERROR(VLOOKUP(E3869,Translation!$A:$C,3,FALSE),E3869)","v":37.411513252303827},{"$f":"IFERROR(VLOOKUP(F3869,Translation!$A:$C,3,FALSE),F3869)","v":"Prêts hypothécaires assurés au cours de la période selon le rapport d’amortissement total de la dette (ATD) moyen des emprunteurs détenant un prêt assuré par la SCHL (%)"},{"$f":"IFERROR(VLOOKUP(G3869,Translation!$A:$C,3,FALSE),G3869)","v":"37.4"},{"$f":"IFERROR(VLOOKUP(H3869,Translation!$A:$C,3,FALSE),H3869)","v":"Ontario"}]
[22,"T3 2017","PROPRIÉTAIRES-OCCUPANTS, À L’UNITÉ","Alberta",37.137509023436152,"Prêts hypothécaires assurés au cours de la période selon le rapport d’amortissement total de la dette (ATD) moyen des emprunteurs détenant un prêt assuré par la SCHL (%)","37.1","Alberta",{"$f":"IFERROR(VLOOKUP(A3872,Translation!$A:$C,3,FALSE),A3872)","v":22},{"$f":"IFERROR(VLOOKUP(B3872,Translation!$A:$C,3,FALSE),B3872)","v":"T3 2017"},{"$f":"IFERROR(VLOOKUP(C3872,Translation!$A:$C,3,FALSE),C3872)","v":"PROPRIÉTAIRES-OCCUPANTS, À L’UNITÉ"},{"$f":"IFERROR(VLOOKUP(D3872,Translation!$A:$C,3,FALSE),D3872)","v":"Alberta"},{"$f":"IFERROR(VLOOKUP(E3872,Translation!$A:$C,3,FALSE),E3872)","v":37.137509023436152},{"$f":"IFERROR(VLOOKUP(F3872,Translation!$A:$C,3,FALSE),F3872)","v":"Prêts hypothécaires assurés au cours de la période selon le rapport d’amortissement total de la dette (ATD) moyen des emprunteurs détenant un prêt assuré par la SCHL (%)"},{"$f":"IFERROR(VLOOKUP(G3872,Translation!$A:$C,3,FALSE),G3872)","v":"37.1"},{"$f":"IFERROR(VLOOKUP(H3872,Translation!$A:$C,3,FALSE),H3872)","v":"Alberta"}]
[22,"T3 2017","PROPRIÉTAIRES-OCCUPANTS, À L’UNITÉ","Territoires",35.058390021392825,"Prêts hypothécaires assurés au cours de la période selon le rapport d’amortissement total de la dette (ATD) moyen des emprunteurs détenant un prêt assuré par la SCHL (%)","35.1","Territoires",{"$f":"IFERROR(VLOOKUP(A3874,Translation!$A:$C,3,FALSE),A3874)","v":22},{"$f":"IFERROR(VLOOKUP(B3874,Translation!$A:$C,3,FALSE),B3874)","v":"T3 2017"},{"$f":"IFERROR(VLOOKUP(C3874,Translation!$A:$C,3,FALSE),C3874)","v":"PROPRIÉTAIRES-OCCUPANTS, À L’UNITÉ"},{"$f":"IFERROR(VLOOKUP(D3874,Translation!$A:$C,3,FALSE),D3874)","v":"Territoires"},{"$f":"IFERROR(VLOOKUP(E3874,Translation!$A:$C,3,FALSE),E3874)","v":35.058390021392825},{"$f":"IFERROR(VLOOKUP(F3874,Translation!$A:$C,3,FALSE),F3874)","v":"Prêts hypothécaires assurés au cours de la période selon le rapport d’amortissement total de la dette (ATD) moyen des emprunteurs détenant un prêt assuré par la SCHL (%)"},{"$f":"IFERROR(VLOOKUP(G3874,Translation!$A:$C,3,FALSE),G3874)","v":"35.1"},{"$f":"IFERROR(VLOOKUP(H3874,Translation!$A:$C,3,FALSE),H3874)","v":"Territoires"}]
[22,"Q4 2016","PROPRIÉTAIRES-OCCUPANTS, À L’UNITÉ","Nouveau-Brunswick",34.395079525265743,"Prêts hypothécaires assurés au cours de la période selon le rapport d’amortissement total de la dette (ATD) moyen des emprunteurs détenant un prêt assuré par la SCHL (%)","34.4","Nouveau-Brunswick",{"$f":"IFERROR(VLOOKUP(A3878,Translation!$A:$C,3,FALSE),A3878)","v":22},{"$f":"IFERROR(VLOOKUP(B3878,Translation!$A:$C,3,FALSE),B3878)","v":"Q4 2016"},{"$f":"IFERROR(VLOOKUP(C3878,Translation!$A:$C,3,FALSE),C3878)","v":"PROPRIÉTAIRES-OCCUPANTS, À L’UNITÉ"},{"$f":"IFERROR(VLOOKUP(D3878,Translation!$A:$C,3,FALSE),D3878)","v":"Nouveau-Brunswick"},{"$f":"IFERROR(VLOOKUP(E3878,Translation!$A:$C,3,FALSE),E3878)","v":34.395079525265743},{"$f":"IFERROR(VLOOKUP(F3878,Translation!$A:$C,3,FALSE),F3878)","v":"Prêts hypothécaires assurés au cours de la période selon le rapport d’amortissement total de la dette (ATD) moyen des emprunteurs détenant un prêt assuré par la SCHL (%)"},{"$f":"IFERROR(VLOOKUP(G3878,Translation!$A:$C,3,FALSE),G3878)","v":"34.4"},{"$f":"IFERROR(VLOOKUP(H3878,Translation!$A:$C,3,FALSE),H3878)","v":"Nouveau-Brunswick"}]
[22,"Q4 2016","PROPRIÉTAIRES-OCCUPANTS, À L’UNITÉ","Québec",35.170483197653802,"Prêts hypothécaires assurés au cours de la période selon le rapport d’amortissement total de la dette (ATD) moyen des emprunteurs détenant un prêt assuré par la SCHL (%)","35.2","Québec",{"$f":"IFERROR(VLOOKUP(A3879,Translation!$A:$C,3,FALSE),A3879)","v":22},{"$f":"IFERROR(VLOOKUP(B3879,Translation!$A:$C,3,FALSE),B3879)","v":"Q4 2016"},{"$f":"IFERROR(VLOOKUP(C3879,Translation!$A:$C,3,FALSE),C3879)","v":"PROPRIÉTAIRES-OCCUPANTS, À L’UNITÉ"},{"$f":"IFERROR(VLOOKUP(D3879,Translation!$A:$C,3,FALSE),D3879)","v":"Québec"},{"$f":"IFERROR(VLOOKUP(E3879,Translation!$A:$C,3,FALSE),E3879)","v":35.170483197653802},{"$f":"IFERROR(VLOOKUP(F3879,Translation!$A:$C,3,FALSE),F3879)","v":"Prêts hypothécaires assurés au cours de la période selon le rapport d’amortissement total de la dette (ATD) moyen des emprunteurs détenant un prêt assuré par la SCHL (%)"},{"$f":"IFERROR(VLOOKUP(G3879,Translation!$A:$C,3,FALSE),G3879)","v":"35.2"},{"$f":"IFERROR(VLOOKUP(H3879,Translation!$A:$C,3,FALSE),H3879)","v":"Québec"}]
[22,"Q4 2016","PROPRIÉTAIRES-OCCUPANTS, À L’UNITÉ","Saskatchewan",36.029881531758974,"Prêts hypothécaires assurés au cours de la période selon le rapport d’amortissement total de la dette (ATD) moyen des emprunteurs détenant un prêt assuré par la SCHL (%)","36.0","Saskatchewan",{"$f":"IFERROR(VLOOKUP(A3882,Translation!$A:$C,3,FALSE),A3882)","v":22},{"$f":"IFERROR(VLOOKUP(B3882,Translation!$A:$C,3,FALSE),B3882)","v":"Q4 2016"},{"$f":"IFERROR(VLOOKUP(C3882,Translation!$A:$C,3,FALSE),C3882)","v":"PROPRIÉTAIRES-OCCUPANTS, À L’UNITÉ"},{"$f":"IFERROR(VLOOKUP(D3882,Translation!$A:$C,3,FALSE),D3882)","v":"Saskatchewan"},{"$f":"IFERROR(VLOOKUP(E3882,Translation!$A:$C,3,FALSE),E3882)","v":36.029881531758974},{"$f":"IFERROR(VLOOKUP(F3882,Translation!$A:$C,3,FALSE),F3882)","v":"Prêts hypothécaires assurés au cours de la période selon le rapport d’amortissement total de la dette (ATD) moyen des emprunteurs détenant un prêt assuré par la SCHL (%)"},{"$f":"IFERROR(VLOOKUP(G3882,Translation!$A:$C,3,FALSE),G3882)","v":"36.0"},{"$f":"IFERROR(VLOOKUP(H3882,Translation!$A:$C,3,FALSE),H3882)","v":"Saskatchewan"}]
[22,"Q4 2016","PROPRIÉTAIRES-OCCUPANTS, À L’UNITÉ","Alberta",36.365341718118778,"Prêts hypothécaires assurés au cours de la période selon le rapport d’amortissement total de la dette (ATD) moyen des emprunteurs détenant un prêt assuré par la SCHL (%)","36.4","Alberta",{"$f":"IFERROR(VLOOKUP(A3883,Translation!$A:$C,3,FALSE),A3883)","v":22},{"$f":"IFERROR(VLOOKUP(B3883,Translation!$A:$C,3,FALSE),B3883)","v":"Q4 2016"},{"$f":"IFERROR(VLOOKUP(C3883,Translation!$A:$C,3,FALSE),C3883)","v":"PROPRIÉTAIRES-OCCUPANTS, À L’UNITÉ"},{"$f":"IFERROR(VLOOKUP(D3883,Translation!$A:$C,3,FALSE),D3883)","v":"Alberta"},{"$f":"IFERROR(VLOOKUP(E3883,Translation!$A:$C,3,FALSE),E3883)","v":36.365341718118778},{"$f":"IFERROR(VLOOKUP(F3883,Translation!$A:$C,3,FALSE),F3883)","v":"Prêts hypothécaires assurés au cours de la période selon le rapport d’amortissement total de la dette (ATD) moyen des emprunteurs détenant un prêt assuré par la SCHL (%)"},{"$f":"IFERROR(VLOOKUP(G3883,Translation!$A:$C,3,FALSE),G3883)","v":"36.4"},{"$f":"IFERROR(VLOOKUP(H3883,Translation!$A:$C,3,FALSE),H3883)","v":"Alberta"}]
[22,"T4 2017","PROPRIÉTAIRES-OCCUPANTS, À L’UNITÉ","Île-du-Prince-Édouard",36.242971596775057,"Prêts hypothécaires assurés au cours de la période selon le rapport d’amortissement total de la dette (ATD) moyen des emprunteurs détenant un prêt assuré par la SCHL (%)","36.2","Île-du-Prince-Édouard",{"$f":"IFERROR(VLOOKUP(A3887,Translation!$A:$C,3,FALSE),A3887)","v":22},{"$f":"IFERROR(VLOOKUP(B3887,Translation!$A:$C,3,FALSE),B3887)","v":"T4 2017"},{"$f":"IFERROR(VLOOKUP(C3887,Translation!$A:$C,3,FALSE),C3887)","v":"PROPRIÉTAIRES-OCCUPANTS, À L’UNITÉ"},{"$f":"IFERROR(VLOOKUP(D3887,Translation!$A:$C,3,FALSE),D3887)","v":"Île-du-Prince-Édouard"},{"$f":"IFERROR(VLOOKUP(E3887,Translation!$A:$C,3,FALSE),E3887)","v":36.242971596775057},{"$f":"IFERROR(VLOOKUP(F3887,Translation!$A:$C,3,FALSE),F3887)","v":"Prêts hypothécaires assurés au cours de la période selon le rapport d’amortissement total de la dette (ATD) moyen des emprunteurs détenant un prêt assuré par la SCHL (%)"},{"$f":"IFERROR(VLOOKUP(G3887,Translation!$A:$C,3,FALSE),G3887)","v":"36.2"},{"$f":"IFERROR(VLOOKUP(H3887,Translation!$A:$C,3,FALSE),H3887)","v":"Île-du-Prince-Édouard"}]
[22,"T4 2017","PROPRIÉTAIRES-OCCUPANTS, À L’UNITÉ","Nouveau-Brunswick",35.194472663901152,"Prêts hypothécaires assurés au cours de la période selon le rapport d’amortissement total de la dette (ATD) moyen des emprunteurs détenant un prêt assuré par la SCHL (%)","35.2","Nouveau-Brunswick",{"$f":"IFERROR(VLOOKUP(A3889,Translation!$A:$C,3,FALSE),A3889)","v":22},{"$f":"IFERROR(VLOOKUP(B3889,Translation!$A:$C,3,FALSE),B3889)","v":"T4 2017"},{"$f":"IFERROR(VLOOKUP(C3889,Translation!$A:$C,3,FALSE),C3889)","v":"PROPRIÉTAIRES-OCCUPANTS, À L’UNITÉ"},{"$f":"IFERROR(VLOOKUP(D3889,Translation!$A:$C,3,FALSE),D3889)","v":"Nouveau-Brunswick"},{"$f":"IFERROR(VLOOKUP(E3889,Translation!$A:$C,3,FALSE),E3889)","v":35.194472663901152},{"$f":"IFERROR(VLOOKUP(F3889,Translation!$A:$C,3,FALSE),F3889)","v":"Prêts hypothécaires assurés au cours de la période selon le rapport d’amortissement total de la dette (ATD) moyen des emprunteurs détenant un prêt assuré par la SCHL (%)"},{"$f":"IFERROR(VLOOKUP(G3889,Translation!$A:$C,3,FALSE),G3889)","v":"35.2"},{"$f":"IFERROR(VLOOKUP(H3889,Translation!$A:$C,3,FALSE),H3889)","v":"Nouveau-Brunswick"}]
[22,"T4 2017","PROPRIÉTAIRES-OCCUPANTS, À L’UNITÉ","Manitoba",36.223767221311931,"Prêts hypothécaires assurés au cours de la période selon le rapport d’amortissement total de la dette (ATD) moyen des emprunteurs détenant un prêt assuré par la SCHL (%)","36.2","Manitoba",{"$f":"IFERROR(VLOOKUP(A3892,Translation!$A:$C,3,FALSE),A3892)","v":22},{"$f":"IFERROR(VLOOKUP(B3892,Translation!$A:$C,3,FALSE),B3892)","v":"T4 2017"},{"$f":"IFERROR(VLOOKUP(C3892,Translation!$A:$C,3,FALSE),C3892)","v":"PROPRIÉTAIRES-OCCUPANTS, À L’UNITÉ"},{"$f":"IFERROR(VLOOKUP(D3892,Translation!$A:$C,3,FALSE),D3892)","v":"Manitoba"},{"$f":"IFERROR(VLOOKUP(E3892,Translation!$A:$C,3,FALSE),E3892)","v":36.223767221311931},{"$f":"IFERROR(VLOOKUP(F3892,Translation!$A:$C,3,FALSE),F3892)","v":"Prêts hypothécaires assurés au cours de la période selon le rapport d’amortissement total de la dette (ATD) moyen des emprunteurs détenant un prêt assuré par la SCHL (%)"},{"$f":"IFERROR(VLOOKUP(G3892,Translation!$A:$C,3,FALSE),G3892)","v":"36.2"},{"$f":"IFERROR(VLOOKUP(H3892,Translation!$A:$C,3,FALSE),H3892)","v":"Manitoba"}]
[22,"T4 2017","PROPRIÉTAIRES-OCCUPANTS, À L’UNITÉ","Saskatchewan",36.512465224710851,"Prêts hypothécaires assurés au cours de la période selon le rapport d’amortissement total de la dette (ATD) moyen des emprunteurs détenant un prêt assuré par la SCHL (%)","36.5","Saskatchewan",{"$f":"IFERROR(VLOOKUP(A3893,Translation!$A:$C,3,FALSE),A3893)","v":22},{"$f":"IFERROR(VLOOKUP(B3893,Translation!$A:$C,3,FALSE),B3893)","v":"T4 2017"},{"$f":"IFERROR(VLOOKUP(C3893,Translation!$A:$C,3,FALSE),C3893)","v":"PROPRIÉTAIRES-OCCUPANTS, À L’UNITÉ"},{"$f":"IFERROR(VLOOKUP(D3893,Translation!$A:$C,3,FALSE),D3893)","v":"Saskatchewan"},{"$f":"IFERROR(VLOOKUP(E3893,Translation!$A:$C,3,FALSE),E3893)","v":36.512465224710851},{"$f":"IFERROR(VLOOKUP(F3893,Translation!$A:$C,3,FALSE),F3893)","v":"Prêts hypothécaires assurés au cours de la période selon le rapport d’amortissement total de la dette (ATD) moyen des emprunteurs détenant un prêt assuré par la SCHL (%)"},{"$f":"IFERROR(VLOOKUP(G3893,Translation!$A:$C,3,FALSE),G3893)","v":"36.5"},{"$f":"IFERROR(VLOOKUP(H3893,Translation!$A:$C,3,FALSE),H3893)","v":"Saskatchewan"}]
[5,"T1 2020","PROPRIÉTAIRES-OCCUPANTS, À L’UNITÉ","Terre-Neuve-et-Labrador",0.89491214225477189,"Prêts hypothécaires assurés au cours de la période selon la province (%)","0.9","Terre-Neuve-et-Labrador",{"$f":"IFERROR(VLOOKUP(A3897,Translation!$A:$C,3,FALSE),A3897)","v":5},{"$f":"IFERROR(VLOOKUP(B3897,Translation!$A:$C,3,FALSE),B3897)","v":"T1 2020"},{"$f":"IFERROR(VLOOKUP(C3897,Translation!$A:$C,3,FALSE),C3897)","v":"PROPRIÉTAIRES-OCCUPANTS, À L’UNITÉ"},{"$f":"IFERROR(VLOOKUP(D3897,Translation!$A:$C,3,FALSE),D3897)","v":"Terre-Neuve-et-Labrador"},{"$f":"IFERROR(VLOOKUP(E3897,Translation!$A:$C,3,FALSE),E3897)","v":0.89491214225477189},{"$f":"IFERROR(VLOOKUP(F3897,Translation!$A:$C,3,FALSE),F3897)","v":"Prêts hypothécaires assurés au cours de la période selon la province (%)"},{"$f":"IFERROR(VLOOKUP(G3897,Translation!$A:$C,3,FALSE),G3897)","v":"0.9"},{"$f":"IFERROR(VLOOKUP(H3897,Translation!$A:$C,3,FALSE),H3897)","v":"Terre-Neuve-et-Labrador"}]
[5,"Cumul 2019","PROPRIÉTAIRES-OCCUPANTS, À L’UNITÉ","Terre-Neuve-et-Labrador",1.1491687184716348,"Prêts hypothécaires assurés au cours de la période selon la province (%)","1.1","Terre-Neuve-et-Labrador",{"$f":"IFERROR(VLOOKUP(A3898,Translation!$A:$C,3,FALSE),A3898)","v":5},{"$f":"IFERROR(VLOOKUP(B3898,Translation!$A:$C,3,FALSE),B3898)","v":"Cumul 2019"},{"$f":"IFERROR(VLOOKUP(C3898,Translation!$A:$C,3,FALSE),C3898)","v":"PROPRIÉTAIRES-OCCUPANTS, À L’UNITÉ"},{"$f":"IFERROR(VLOOKUP(D3898,Translation!$A:$C,3,FALSE),D3898)","v":"Terre-Neuve-et-Labrador"},{"$f":"IFERROR(VLOOKUP(E3898,Translation!$A:$C,3,FALSE),E3898)","v":1.1491687184716348},{"$f":"IFERROR(VLOOKUP(F3898,Translation!$A:$C,3,FALSE),F3898)","v":"Prêts hypothécaires assurés au cours de la période selon la province (%)"},{"$f":"IFERROR(VLOOKUP(G3898,Translation!$A:$C,3,FALSE),G3898)","v":"1.1"},{"$f":"IFERROR(VLOOKUP(H3898,Translation!$A:$C,3,FALSE),H3898)","v":"Terre-Neuve-et-Labrador"}]
[5,"T1 2020","PROPRIÉTAIRES-OCCUPANTS, À L’UNITÉ","Île-du-Prince-Édouard",0.4090740916064825,"Prêts hypothécaires assurés au cours de la période selon la province (%)","0.4","Île-du-Prince-Édouard",{"$f":"IFERROR(VLOOKUP(A3900,Translation!$A:$C,3,FALSE),A3900)","v":5},{"$f":"IFERROR(VLOOKUP(B3900,Translation!$A:$C,3,FALSE),B3900)","v":"T1 2020"},{"$f":"IFERROR(VLOOKUP(C3900,Translation!$A:$C,3,FALSE),C3900)","v":"PROPRIÉTAIRES-OCCUPANTS, À L’UNITÉ"},{"$f":"IFERROR(VLOOKUP(D3900,Translation!$A:$C,3,FALSE),D3900)","v":"Île-du-Prince-Édouard"},{"$f":"IFERROR(VLOOKUP(E3900,Translation!$A:$C,3,FALSE),E3900)","v":0.4090740916064825},{"$f":"IFERROR(VLOOKUP(F3900,Translation!$A:$C,3,FALSE),F3900)","v":"Prêts hypothécaires assurés au cours de la période selon la province (%)"},{"$f":"IFERROR(VLOOKUP(G3900,Translation!$A:$C,3,FALSE),G3900)","v":"0.4"},{"$f":"IFERROR(VLOOKUP(H3900,Translation!$A:$C,3,FALSE),H3900)","v":"Île-du-Prince-Édouard"}]
[5,"T1 2020","PROPRIÉTAIRES-OCCUPANTS, À L’UNITÉ","Nouvelle-Écosse",2.3588717204469054,"Prêts hypothécaires assurés au cours de la période selon la province (%)","2.4","Nouvelle-Écosse",{"$f":"IFERROR(VLOOKUP(A3903,Translation!$A:$C,3,FALSE),A3903)","v":5},{"$f":"IFERROR(VLOOKUP(B3903,Translation!$A:$C,3,FALSE),B3903)","v":"T1 2020"},{"$f":"IFERROR(VLOOKUP(C3903,Translation!$A:$C,3,FALSE),C3903)","v":"PROPRIÉTAIRES-OCCUPANTS, À L’UNITÉ"},{"$f":"IFERROR(VLOOKUP(D3903,Translation!$A:$C,3,FALSE),D3903)","v":"Nouvelle-Écosse"},{"$f":"IFERROR(VLOOKUP(E3903,Translation!$A:$C,3,FALSE),E3903)","v":2.3588717204469054},{"$f":"IFERROR(VLOOKUP(F3903,Translation!$A:$C,3,FALSE),F3903)","v":"Prêts hypothécaires assurés au cours de la période selon la province (%)"},{"$f":"IFERROR(VLOOKUP(G3903,Translation!$A:$C,3,FALSE),G3903)","v":"2.4"},{"$f":"IFERROR(VLOOKUP(H3903,Translation!$A:$C,3,FALSE),H3903)","v":"Nouvelle-Écosse"}]
[5,"T1 2020","PROPRIÉTAIRES-OCCUPANTS, À L’UNITÉ","Nouveau-Brunswick",1.926181530608112,"Prêts hypothécaires assurés au cours de la période selon la province (%)","1.9","Nouveau-Brunswick",{"$f":"IFERROR(VLOOKUP(A3906,Translation!$A:$C,3,FALSE),A3906)","v":5},{"$f":"IFERROR(VLOOKUP(B3906,Translation!$A:$C,3,FALSE),B3906)","v":"T1 2020"},{"$f":"IFERROR(VLOOKUP(C3906,Translation!$A:$C,3,FALSE),C3906)","v":"PROPRIÉTAIRES-OCCUPANTS, À L’UNITÉ"},{"$f":"IFERROR(VLOOKUP(D3906,Translation!$A:$C,3,FALSE),D3906)","v":"Nouveau-Brunswick"},{"$f":"IFERROR(VLOOKUP(E3906,Translation!$A:$C,3,FALSE),E3906)","v":1.926181530608112},{"$f":"IFERROR(VLOOKUP(F3906,Translation!$A:$C,3,FALSE),F3906)","v":"Prêts hypothécaires assurés au cours de la période selon la province (%)"},{"$f":"IFERROR(VLOOKUP(G3906,Translation!$A:$C,3,FALSE),G3906)","v":"1.9"},{"$f":"IFERROR(VLOOKUP(H3906,Translation!$A:$C,3,FALSE),H3906)","v":"Nouveau-Brunswick"}]
[5,"Cumul 2020","PROPRIÉTAIRES-OCCUPANTS, À L’UNITÉ","Nouveau-Brunswick",1.926181530608112,"Prêts hypothécaires assurés au cours de la période selon la province (%)","1.9","Nouveau-Brunswick",{"$f":"IFERROR(VLOOKUP(A3908,Translation!$A:$C,3,FALSE),A3908)","v":5},{"$f":"IFERROR(VLOOKUP(B3908,Translation!$A:$C,3,FALSE),B3908)","v":"Cumul 2020"},{"$f":"IFERROR(VLOOKUP(C3908,Translation!$A:$C,3,FALSE),C3908)","v":"PROPRIÉTAIRES-OCCUPANTS, À L’UNITÉ"},{"$f":"IFERROR(VLOOKUP(D3908,Translation!$A:$C,3,FALSE),D3908)","v":"Nouveau-Brunswick"},{"$f":"IFERROR(VLOOKUP(E3908,Translation!$A:$C,3,FALSE),E3908)","v":1.926181530608112},{"$f":"IFERROR(VLOOKUP(F3908,Translation!$A:$C,3,FALSE),F3908)","v":"Prêts hypothécaires assurés au cours de la période selon la province (%)"},{"$f":"IFERROR(VLOOKUP(G3908,Translation!$A:$C,3,FALSE),G3908)","v":"1.9"},{"$f":"IFERROR(VLOOKUP(H3908,Translation!$A:$C,3,FALSE),H3908)","v":"Nouveau-Brunswick"}]
[5,"Cumul 2020","PROPRIÉTAIRES-OCCUPANTS, À L’UNITÉ","Québec",29.496303675674611,"Prêts hypothécaires assurés au cours de la période selon la province (%)","29.5","Québec",{"$f":"IFERROR(VLOOKUP(A3911,Translation!$A:$C,3,FALSE),A3911)","v":5},{"$f":"IFERROR(VLOOKUP(B3911,Translation!$A:$C,3,FALSE),B3911)","v":"Cumul 2020"},{"$f":"IFERROR(VLOOKUP(C3911,Translation!$A:$C,3,FALSE),C3911)","v":"PROPRIÉTAIRES-OCCUPANTS, À L’UNITÉ"},{"$f":"IFERROR(VLOOKUP(D3911,Translation!$A:$C,3,FALSE),D3911)","v":"Québec"},{"$f":"IFERROR(VLOOKUP(E3911,Translation!$A:$C,3,FALSE),E3911)","v":29.496303675674611},{"$f":"IFERROR(VLOOKUP(F3911,Translation!$A:$C,3,FALSE),F3911)","v":"Prêts hypothécaires assurés au cours de la période selon la province (%)"},{"$f":"IFERROR(VLOOKUP(G3911,Translation!$A:$C,3,FALSE),G3911)","v":"29.5"},{"$f":"IFERROR(VLOOKUP(H3911,Translation!$A:$C,3,FALSE),H3911)","v":"Québec"}]
[5,"Cumul 2020","PROPRIÉTAIRES-OCCUPANTS, À L’UNITÉ","Ontario",30.109596954086879,"Prêts hypothécaires assurés au cours de la période selon la province (%)","30.1","Ontario",{"$f":"IFERROR(VLOOKUP(A3914,Translation!$A:$C,3,FALSE),A3914)","v":5},{"$f":"IFERROR(VLOOKUP(B3914,Translation!$A:$C,3,FALSE),B3914)","v":"Cumul 2020"},{"$f":"IFERROR(VLOOKUP(C3914,Translation!$A:$C,3,FALSE),C3914)","v":"PROPRIÉTAIRES-OCCUPANTS, À L’UNITÉ"},{"$f":"IFERROR(VLOOKUP(D3914,Translation!$A:$C,3,FALSE),D3914)","v":"Ontario"},{"$f":"IFERROR(VLOOKUP(E3914,Translation!$A:$C,3,FALSE),E3914)","v":30.109596954086879},{"$f":"IFERROR(VLOOKUP(F3914,Translation!$A:$C,3,FALSE),F3914)","v":"Prêts hypothécaires assurés au cours de la période selon la province (%)"},{"$f":"IFERROR(VLOOKUP(G3914,Translation!$A:$C,3,FALSE),G3914)","v":"30.1"},{"$f":"IFERROR(VLOOKUP(H3914,Translation!$A:$C,3,FALSE),H3914)","v":"Ontario"}]
[5,"Cumul 2019","PROPRIÉTAIRES-OCCUPANTS, À L’UNITÉ","Manitoba",3.68661038415524,"Prêts hypothécaires assurés au cours de la période selon la province (%)","3.7","Manitoba",{"$f":"IFERROR(VLOOKUP(A3916,Translation!$A:$C,3,FALSE),A3916)","v":5},{"$f":"IFERROR(VLOOKUP(B3916,Translation!$A:$C,3,FALSE),B3916)","v":"Cumul 2019"},{"$f":"IFERROR(VLOOKUP(C3916,Translation!$A:$C,3,FALSE),C3916)","v":"PROPRIÉTAIRES-OCCUPANTS, À L’UNITÉ"},{"$f":"IFERROR(VLOOKUP(D3916,Translation!$A:$C,3,FALSE),D3916)","v":"Manitoba"},{"$f":"IFERROR(VLOOKUP(E3916,Translation!$A:$C,3,FALSE),E3916)","v":3.68661038415524},{"$f":"IFERROR(VLOOKUP(F3916,Translation!$A:$C,3,FALSE),F3916)","v":"Prêts hypothécaires assurés au cours de la période selon la province (%)"},{"$f":"IFERROR(VLOOKUP(G3916,Translation!$A:$C,3,FALSE),G3916)","v":"3.7"},{"$f":"IFERROR(VLOOKUP(H3916,Translation!$A:$C,3,FALSE),H3916)","v":"Manitoba"}]
[5,"Cumul 2020","PROPRIÉTAIRES-OCCUPANTS, À L’UNITÉ","Manitoba",4.1961965659384628,"Prêts hypothécaires assurés au cours de la période selon la province (%)","4.2","Manitoba",{"$f":"IFERROR(VLOOKUP(A3917,Translation!$A:$C,3,FALSE),A3917)","v":5},{"$f":"IFERROR(VLOOKUP(B3917,Translation!$A:$C,3,FALSE),B3917)","v":"Cumul 2020"},{"$f":"IFERROR(VLOOKUP(C3917,Translation!$A:$C,3,FALSE),C3917)","v":"PROPRIÉTAIRES-OCCUPANTS, À L’UNITÉ"},{"$f":"IFERROR(VLOOKUP(D3917,Translation!$A:$C,3,FALSE),D3917)","v":"Manitoba"},{"$f":"IFERROR(VLOOKUP(E3917,Translation!$A:$C,3,FALSE),E3917)","v":4.1961965659384628},{"$f":"IFERROR(VLOOKUP(F3917,Translation!$A:$C,3,FALSE),F3917)","v":"Prêts hypothécaires assurés au cours de la période selon la province (%)"},{"$f":"IFERROR(VLOOKUP(G3917,Translation!$A:$C,3,FALSE),G3917)","v":"4.2"},{"$f":"IFERROR(VLOOKUP(H3917,Translation!$A:$C,3,FALSE),H3917)","v":"Manitoba"}]
[5,"Cumul 2019","PROPRIÉTAIRES-OCCUPANTS, À L’UNITÉ","Saskatchewan",2.7250238034651204,"Prêts hypothécaires assurés au cours de la période selon la province (%)","2.7","Saskatchewan",{"$f":"IFERROR(VLOOKUP(A3919,Translation!$A:$C,3,FALSE),A3919)","v":5},{"$f":"IFERROR(VLOOKUP(B3919,Translation!$A:$C,3,FALSE),B3919)","v":"Cumul 2019"},{"$f":"IFERROR(VLOOKUP(C3919,Translation!$A:$C,3,FALSE),C3919)","v":"PROPRIÉTAIRES-OCCUPANTS, À L’UNITÉ"},{"$f":"IFERROR(VLOOKUP(D3919,Translation!$A:$C,3,FALSE),D3919)","v":"Saskatchewan"},{"$f":"IFERROR(VLOOKUP(E3919,Translation!$A:$C,3,FALSE),E3919)","v":2.7250238034651204},{"$f":"IFERROR(VLOOKUP(F3919,Translation!$A:$C,3,FALSE),F3919)","v":"Prêts hypothécaires assurés au cours de la période selon la province (%)"},{"$f":"IFERROR(VLOOKUP(G3919,Translation!$A:$C,3,FALSE),G3919)","v":"2.7"},{"$f":"IFERROR(VLOOKUP(H3919,Translation!$A:$C,3,FALSE),H3919)","v":"Saskatchewan"}]
[5,"Cumul 2019","PROPRIÉTAIRES-OCCUPANTS, À L’UNITÉ","Alberta",17.27330900584322,"Prêts hypothécaires assurés au cours de la période selon la province (%)","17.3","Alberta",{"$f":"IFERROR(VLOOKUP(A3922,Translation!$A:$C,3,FALSE),A3922)","v":5},{"$f":"IFERROR(VLOOKUP(B3922,Translation!$A:$C,3,FALSE),B3922)","v":"Cumul 2019"},{"$f":"IFERROR(VLOOKUP(C3922,Translation!$A:$C,3,FALSE),C3922)","v":"PROPRIÉTAIRES-OCCUPANTS, À L’UNITÉ"},{"$f":"IFERROR(VLOOKUP(D3922,Translation!$A:$C,3,FALSE),D3922)","v":"Alberta"},{"$f":"IFERROR(VLOOKUP(E3922,Translation!$A:$C,3,FALSE),E3922)","v":17.27330900584322},{"$f":"IFERROR(VLOOKUP(F3922,Translation!$A:$C,3,FALSE),F3922)","v":"Prêts hypothécaires assurés au cours de la période selon la province (%)"},{"$f":"IFERROR(VLOOKUP(G3922,Translation!$A:$C,3,FALSE),G3922)","v":"17.3"},{"$f":"IFERROR(VLOOKUP(H3922,Translation!$A:$C,3,FALSE),H3922)","v":"Alberta"}]
[5,"Cumul 2019","PROPRIÉTAIRES-OCCUPANTS, À L’UNITÉ","Colombie-Britannique",10.70740238814667,"Prêts hypothécaires assurés au cours de la période selon la province (%)","10.7","Colombie-Britannique",{"$f":"IFERROR(VLOOKUP(A3925,Translation!$A:$C,3,FALSE),A3925)","v":5},{"$f":"IFERROR(VLOOKUP(B3925,Translation!$A:$C,3,FALSE),B3925)","v":"Cumul 2019"},{"$f":"IFERROR(VLOOKUP(C3925,Translation!$A:$C,3,FALSE),C3925)","v":"PROPRIÉTAIRES-OCCUPANTS, À L’UNITÉ"},{"$f":"IFERROR(VLOOKUP(D3925,Translation!$A:$C,3,FALSE),D3925)","v":"Colombie-Britannique"},{"$f":"IFERROR(VLOOKUP(E3925,Translation!$A:$C,3,FALSE),E3925)","v":10.70740238814667},{"$f":"IFERROR(VLOOKUP(F3925,Translation!$A:$C,3,FALSE),F3925)","v":"Prêts hypothécaires assurés au cours de la période selon la province (%)"},{"$f":"IFERROR(VLOOKUP(G3925,Translation!$A:$C,3,FALSE),G3925)","v":"10.7"},{"$f":"IFERROR(VLOOKUP(H3925,Translation!$A:$C,3,FALSE),H3925)","v":"Colombie-Britannique"}]
[5,"T1 2020","PROPRIÉTAIRES-OCCUPANTS, À L’UNITÉ","Territoires",0.50272384758260236,"Prêts hypothécaires assurés au cours de la période selon la province (%)","0.5","Territoires",{"$f":"IFERROR(VLOOKUP(A3927,Translation!$A:$C,3,FALSE),A3927)","v":5},{"$f":"IFERROR(VLOOKUP(B3927,Translation!$A:$C,3,FALSE),B3927)","v":"T1 2020"},{"$f":"IFERROR(VLOOKUP(C3927,Translation!$A:$C,3,FALSE),C3927)","v":"PROPRIÉTAIRES-OCCUPANTS, À L’UNITÉ"},{"$f":"IFERROR(VLOOKUP(D3927,Translation!$A:$C,3,FALSE),D3927)","v":"Territoires"},{"$f":"IFERROR(VLOOKUP(E3927,Translation!$A:$C,3,FALSE),E3927)","v":0.50272384758260236},{"$f":"IFERROR(VLOOKUP(F3927,Translation!$A:$C,3,FALSE),F3927)","v":"Prêts hypothécaires assurés au cours de la période selon la province (%)"},{"$f":"IFERROR(VLOOKUP(G3927,Translation!$A:$C,3,FALSE),G3927)","v":"0.5"},{"$f":"IFERROR(VLOOKUP(H3927,Translation!$A:$C,3,FALSE),H3927)","v":"Territoires"}]
[5,"T1 2020","ASSURANCE DE PORTEFEUILLE","Terre-Neuve-et-Labrador",0.13559436147055079,"Prêts hypothécaires assurés au cours de la période selon la province (%)","0.1","Terre-Neuve-et-Labrador",{"$f":"IFERROR(VLOOKUP(A3930,Translation!$A:$C,3,FALSE),A3930)","v":5},{"$f":"IFERROR(VLOOKUP(B3930,Translation!$A:$C,3,FALSE),B3930)","v":"T1 2020"},{"$f":"IFERROR(VLOOKUP(C3930,Translation!$A:$C,3,FALSE),C3930)","v":"ASSURANCE DE PORTEFEUILLE"},{"$f":"IFERROR(VLOOKUP(D3930,Translation!$A:$C,3,FALSE),D3930)","v":"Terre-Neuve-et-Labrador"},{"$f":"IFERROR(VLOOKUP(E3930,Translation!$A:$C,3,FALSE),E3930)","v":0.13559436147055079},{"$f":"IFERROR(VLOOKUP(F3930,Translation!$A:$C,3,FALSE),F3930)","v":"Prêts hypothécaires assurés au cours de la période selon la province (%)"},{"$f":"IFERROR(VLOOKUP(G3930,Translation!$A:$C,3,FALSE),G3930)","v":"0.1"},{"$f":"IFERROR(VLOOKUP(H3930,Translation!$A:$C,3,FALSE),H3930)","v":"Terre-Neuve-et-Labrador"}]
[5,"Cumul 2019","ASSURANCE DE PORTEFEUILLE","Île-du-Prince-Édouard",4.4625898313764498E-2,"Prêts hypothécaires assurés au cours de la période selon la province (%)","0.0","Île-du-Prince-Édouard",{"$f":"IFERROR(VLOOKUP(A3933,Translation!$A:$C,3,FALSE),A3933)","v":5},{"$f":"IFERROR(VLOOKUP(B3933,Translation!$A:$C,3,FALSE),B3933)","v":"Cumul 2019"},{"$f":"IFERROR(VLOOKUP(C3933,Translation!$A:$C,3,FALSE),C3933)","v":"ASSURANCE DE PORTEFEUILLE"},{"$f":"IFERROR(VLOOKUP(D3933,Translation!$A:$C,3,FALSE),D3933)","v":"Île-du-Prince-Édouard"},{"$f":"IFERROR(VLOOKUP(E3933,Translation!$A:$C,3,FALSE),E3933)","v":4.4625898313764498E-2},{"$f":"IFERROR(VLOOKUP(F3933,Translation!$A:$C,3,FALSE),F3933)","v":"Prêts hypothécaires assurés au cours de la période selon la province (%)"},{"$f":"IFERROR(VLOOKUP(G3933,Translation!$A:$C,3,FALSE),G3933)","v":"0.0"},{"$f":"IFERROR(VLOOKUP(H3933,Translation!$A:$C,3,FALSE),H3933)","v":"Île-du-Prince-Édouard"}]
[5,"Cumul 2019","ASSURANCE DE PORTEFEUILLE","Nouvelle-Écosse",0.91649732251807747,"Prêts hypothécaires assurés au cours de la période selon la province (%)","0.9","Nouvelle-Écosse",{"$f":"IFERROR(VLOOKUP(A3935,Translation!$A:$C,3,FALSE),A3935)","v":5},{"$f":"IFERROR(VLOOKUP(B3935,Translation!$A:$C,3,FALSE),B3935)","v":"Cumul 2019"},{"$f":"IFERROR(VLOOKUP(C3935,Translation!$A:$C,3,FALSE),C3935)","v":"ASSURANCE DE PORTEFEUILLE"},{"$f":"IFERROR(VLOOKUP(D3935,Translation!$A:$C,3,FALSE),D3935)","v":"Nouvelle-Écosse"},{"$f":"IFERROR(VLOOKUP(E3935,Translation!$A:$C,3,FALSE),E3935)","v":0.91649732251807747},{"$f":"IFERROR(VLOOKUP(F3935,Translation!$A:$C,3,FALSE),F3935)","v":"Prêts hypothécaires assurés au cours de la période selon la province (%)"},{"$f":"IFERROR(VLOOKUP(G3935,Translation!$A:$C,3,FALSE),G3935)","v":"0.9"},{"$f":"IFERROR(VLOOKUP(H3935,Translation!$A:$C,3,FALSE),H3935)","v":"Nouvelle-Écosse"}]
[5,"Cumul 2020","ASSURANCE DE PORTEFEUILLE","Nouvelle-Écosse",0.52414659564588484,"Prêts hypothécaires assurés au cours de la période selon la province (%)","0.5","Nouvelle-Écosse",{"$f":"IFERROR(VLOOKUP(A3936,Translation!$A:$C,3,FALSE),A3936)","v":5},{"$f":"IFERROR(VLOOKUP(B3936,Translation!$A:$C,3,FALSE),B3936)","v":"Cumul 2020"},{"$f":"IFERROR(VLOOKUP(C3936,Translation!$A:$C,3,FALSE),C3936)","v":"ASSURANCE DE PORTEFEUILLE"},{"$f":"IFERROR(VLOOKUP(D3936,Translation!$A:$C,3,FALSE),D3936)","v":"Nouvelle-Écosse"},{"$f":"IFERROR(VLOOKUP(E3936,Translation!$A:$C,3,FALSE),E3936)","v":0.52414659564588484},{"$f":"IFERROR(VLOOKUP(F3936,Translation!$A:$C,3,FALSE),F3936)","v":"Prêts hypothécaires assurés au cours de la période selon la province (%)"},{"$f":"IFERROR(VLOOKUP(G3936,Translation!$A:$C,3,FALSE),G3936)","v":"0.5"},{"$f":"IFERROR(VLOOKUP(H3936,Translation!$A:$C,3,FALSE),H3936)","v":"Nouvelle-Écosse"}]
[5,"Cumul 2019","ASSURANCE DE PORTEFEUILLE","Nouveau-Brunswick",0.28745716625634499,"Prêts hypothécaires assurés au cours de la période selon la province (%)","0.3","Nouveau-Brunswick",{"$f":"IFERROR(VLOOKUP(A3938,Translation!$A:$C,3,FALSE),A3938)","v":5},{"$f":"IFERROR(VLOOKUP(B3938,Translation!$A:$C,3,FALSE),B3938)","v":"Cumul 2019"},{"$f":"IFERROR(VLOOKUP(C3938,Translation!$A:$C,3,FALSE),C3938)","v":"ASSURANCE DE PORTEFEUILLE"},{"$f":"IFERROR(VLOOKUP(D3938,Translation!$A:$C,3,FALSE),D3938)","v":"Nouveau-Brunswick"},{"$f":"IFERROR(VLOOKUP(E3938,Translation!$A:$C,3,FALSE),E3938)","v":0.28745716625634499},{"$f":"IFERROR(VLOOKUP(F3938,Translation!$A:$C,3,FALSE),F3938)","v":"Prêts hypothécaires assurés au cours de la période selon la province (%)"},{"$f":"IFERROR(VLOOKUP(G3938,Translation!$A:$C,3,FALSE),G3938)","v":"0.3"},{"$f":"IFERROR(VLOOKUP(H3938,Translation!$A:$C,3,FALSE),H3938)","v":"Nouveau-Brunswick"}]
[5,"Cumul 2019","ASSURANCE DE PORTEFEUILLE","Québec",11.748974863149767,"Prêts hypothécaires assurés au cours de la période selon la province (%)","11.7","Québec",{"$f":"IFERROR(VLOOKUP(A3941,Translation!$A:$C,3,FALSE),A3941)","v":5},{"$f":"IFERROR(VLOOKUP(B3941,Translation!$A:$C,3,FALSE),B3941)","v":"Cumul 2019"},{"$f":"IFERROR(VLOOKUP(C3941,Translation!$A:$C,3,FALSE),C3941)","v":"ASSURANCE DE PORTEFEUILLE"},{"$f":"IFERROR(VLOOKUP(D3941,Translation!$A:$C,3,FALSE),D3941)","v":"Québec"},{"$f":"IFERROR(VLOOKUP(E3941,Translation!$A:$C,3,FALSE),E3941)","v":11.748974863149767},{"$f":"IFERROR(VLOOKUP(F3941,Translation!$A:$C,3,FALSE),F3941)","v":"Prêts hypothécaires assurés au cours de la période selon la province (%)"},{"$f":"IFERROR(VLOOKUP(G3941,Translation!$A:$C,3,FALSE),G3941)","v":"11.7"},{"$f":"IFERROR(VLOOKUP(H3941,Translation!$A:$C,3,FALSE),H3941)","v":"Québec"}]
[5,"Cumul 2019","ASSURANCE DE PORTEFEUILLE","Ontario",58.168703924163992,"Prêts hypothécaires assurés au cours de la période selon la province (%)","58.2","Ontario",{"$f":"IFERROR(VLOOKUP(A3944,Translation!$A:$C,3,FALSE),A3944)","v":5},{"$f":"IFERROR(VLOOKUP(B3944,Translation!$A:$C,3,FALSE),B3944)","v":"Cumul 2019"},{"$f":"IFERROR(VLOOKUP(C3944,Translation!$A:$C,3,FALSE),C3944)","v":"ASSURANCE DE PORTEFEUILLE"},{"$f":"IFERROR(VLOOKUP(D3944,Translation!$A:$C,3,FALSE),D3944)","v":"Ontario"},{"$f":"IFERROR(VLOOKUP(E3944,Translation!$A:$C,3,FALSE),E3944)","v":58.168703924163992},{"$f":"IFERROR(VLOOKUP(F3944,Translation!$A:$C,3,FALSE),F3944)","v":"Prêts hypothécaires assurés au cours de la période selon la province (%)"},{"$f":"IFERROR(VLOOKUP(G3944,Translation!$A:$C,3,FALSE),G3944)","v":"58.2"},{"$f":"IFERROR(VLOOKUP(H3944,Translation!$A:$C,3,FALSE),H3944)","v":"Ontario"}]
[5,"T1 2020","ASSURANCE DE PORTEFEUILLE","Manitoba",0.9864641736624179,"Prêts hypothécaires assurés au cours de la période selon la province (%)","1.0","Manitoba",{"$f":"IFERROR(VLOOKUP(A3946,Translation!$A:$C,3,FALSE),A3946)","v":5},{"$f":"IFERROR(VLOOKUP(B3946,Translation!$A:$C,3,FALSE),B3946)","v":"T1 2020"},{"$f":"IFERROR(VLOOKUP(C3946,Translation!$A:$C,3,FALSE),C3946)","v":"ASSURANCE DE PORTEFEUILLE"},{"$f":"IFERROR(VLOOKUP(D3946,Translation!$A:$C,3,FALSE),D3946)","v":"Manitoba"},{"$f":"IFERROR(VLOOKUP(E3946,Translation!$A:$C,3,FALSE),E3946)","v":0.9864641736624179},{"$f":"IFERROR(VLOOKUP(F3946,Translation!$A:$C,3,FALSE),F3946)","v":"Prêts hypothécaires assurés au cours de la période selon la province (%)"},{"$f":"IFERROR(VLOOKUP(G3946,Translation!$A:$C,3,FALSE),G3946)","v":"1.0"},{"$f":"IFERROR(VLOOKUP(H3946,Translation!$A:$C,3,FALSE),H3946)","v":"Manitoba"}]
[5,"T1 2020","ASSURANCE DE PORTEFEUILLE","Saskatchewan",1.764736463109241,"Prêts hypothécaires assurés au cours de la période selon la province (%)","1.8","Saskatchewan",{"$f":"IFERROR(VLOOKUP(A3949,Translation!$A:$C,3,FALSE),A3949)","v":5},{"$f":"IFERROR(VLOOKUP(B3949,Translation!$A:$C,3,FALSE),B3949)","v":"T1 2020"},{"$f":"IFERROR(VLOOKUP(C3949,Translation!$A:$C,3,FALSE),C3949)","v":"ASSURANCE DE PORTEFEUILLE"},{"$f":"IFERROR(VLOOKUP(D3949,Translation!$A:$C,3,FALSE),D3949)","v":"Saskatchewan"},{"$f":"IFERROR(VLOOKUP(E3949,Translation!$A:$C,3,FALSE),E3949)","v":1.764736463109241},{"$f":"IFERROR(VLOOKUP(F3949,Translation!$A:$C,3,FALSE),F3949)","v":"Prêts hypothécaires assurés au cours de la période selon la province (%)"},{"$f":"IFERROR(VLOOKUP(G3949,Translation!$A:$C,3,FALSE),G3949)","v":"1.8"},{"$f":"IFERROR(VLOOKUP(H3949,Translation!$A:$C,3,FALSE),H3949)","v":"Saskatchewan"}]
[5,"T1 2020","ASSURANCE DE PORTEFEUILLE","Alberta",10.845910662110732,"Prêts hypothécaires assurés au cours de la période selon la province (%)","10.8","Alberta",{"$f":"IFERROR(VLOOKUP(A3952,Translation!$A:$C,3,FALSE),A3952)","v":5},{"$f":"IFERROR(VLOOKUP(B3952,Translation!$A:$C,3,FALSE),B3952)","v":"T1 2020"},{"$f":"IFERROR(VLOOKUP(C3952,Translation!$A:$C,3,FALSE),C3952)","v":"ASSURANCE DE PORTEFEUILLE"},{"$f":"IFERROR(VLOOKUP(D3952,Translation!$A:$C,3,FALSE),D3952)","v":"Alberta"},{"$f":"IFERROR(VLOOKUP(E3952,Translation!$A:$C,3,FALSE),E3952)","v":10.845910662110732},{"$f":"IFERROR(VLOOKUP(F3952,Translation!$A:$C,3,FALSE),F3952)","v":"Prêts hypothécaires assurés au cours de la période selon la province (%)"},{"$f":"IFERROR(VLOOKUP(G3952,Translation!$A:$C,3,FALSE),G3952)","v":"10.8"},{"$f":"IFERROR(VLOOKUP(H3952,Translation!$A:$C,3,FALSE),H3952)","v":"Alberta"}]
[5,"Cumul 2020","ASSURANCE DE PORTEFEUILLE","Alberta",10.845910662110732,"Prêts hypothécaires assurés au cours de la période selon la province (%)","10.8","Alberta",{"$f":"IFERROR(VLOOKUP(A3954,Translation!$A:$C,3,FALSE),A3954)","v":5},{"$f":"IFERROR(VLOOKUP(B3954,Translation!$A:$C,3,FALSE),B3954)","v":"Cumul 2020"},{"$f":"IFERROR(VLOOKUP(C3954,Translation!$A:$C,3,FALSE),C3954)","v":"ASSURANCE DE PORTEFEUILLE"},{"$f":"IFERROR(VLOOKUP(D3954,Translation!$A:$C,3,FALSE),D3954)","v":"Alberta"},{"$f":"IFERROR(VLOOKUP(E3954,Translation!$A:$C,3,FALSE),E3954)","v":10.845910662110732},{"$f":"IFERROR(VLOOKUP(F3954,Translation!$A:$C,3,FALSE),F3954)","v":"Prêts hypothécaires assurés au cours de la période selon la province (%)"},{"$f":"IFERROR(VLOOKUP(G3954,Translation!$A:$C,3,FALSE),G3954)","v":"10.8"},{"$f":"IFERROR(VLOOKUP(H3954,Translation!$A:$C,3,FALSE),H3954)","v":"Alberta"}]
[5,"T1 2020","ASSURANCE DE PORTEFEUILLE","Colombie-Britannique",24.430376428494871,"Prêts hypothécaires assurés au cours de la période selon la province (%)","24.4","Colombie-Britannique",{"$f":"IFERROR(VLOOKUP(A3955,Translation!$A:$C,3,FALSE),A3955)","v":5},{"$f":"IFERROR(VLOOKUP(B3955,Translation!$A:$C,3,FALSE),B3955)","v":"T1 2020"},{"$f":"IFERROR(VLOOKUP(C3955,Translation!$A:$C,3,FALSE),C3955)","v":"ASSURANCE DE PORTEFEUILLE"},{"$f":"IFERROR(VLOOKUP(D3955,Translation!$A:$C,3,FALSE),D3955)","v":"Colombie-Britannique"},{"$f":"IFERROR(VLOOKUP(E3955,Translation!$A:$C,3,FALSE),E3955)","v":24.430376428494871},{"$f":"IFERROR(VLOOKUP(F3955,Translation!$A:$C,3,FALSE),F3955)","v":"Prêts hypothécaires assurés au cours de la période selon la province (%)"},{"$f":"IFERROR(VLOOKUP(G3955,Translation!$A:$C,3,FALSE),G3955)","v":"24.4"},{"$f":"IFERROR(VLOOKUP(H3955,Translation!$A:$C,3,FALSE),H3955)","v":"Colombie-Britannique"}]
[5,"T1 2020","IMMEUBLES COLLECTIFS RÉSIDENTIELS","Terre-Neuve-et-Labrador",0.23500300100420457,"Prêts hypothécaires assurés au cours de la période selon la province (%)","0.2","Terre-Neuve-et-Labrador",{"$f":"IFERROR(VLOOKUP(A3959,Translation!$A:$C,3,FALSE),A3959)","v":5},{"$f":"IFERROR(VLOOKUP(B3959,Translation!$A:$C,3,FALSE),B3959)","v":"T1 2020"},{"$f":"IFERROR(VLOOKUP(C3959,Translation!$A:$C,3,FALSE),C3959)","v":"IMMEUBLES COLLECTIFS RÉSIDENTIELS"},{"$f":"IFERROR(VLOOKUP(D3959,Translation!$A:$C,3,FALSE),D3959)","v":"Terre-Neuve-et-Labrador"},{"$f":"IFERROR(VLOOKUP(E3959,Translation!$A:$C,3,FALSE),E3959)","v":0.23500300100420457},{"$f":"IFERROR(VLOOKUP(F3959,Translation!$A:$C,3,FALSE),F3959)","v":"Prêts hypothécaires assurés au cours de la période selon la province (%)"},{"$f":"IFERROR(VLOOKUP(G3959,Translation!$A:$C,3,FALSE),G3959)","v":"0.2"},{"$f":"IFERROR(VLOOKUP(H3959,Translation!$A:$C,3,FALSE),H3959)","v":"Terre-Neuve-et-Labrador"}]
[5,"Cumul 2020","IMMEUBLES COLLECTIFS RÉSIDENTIELS","Terre-Neuve-et-Labrador",0.23500300100420457,"Prêts hypothécaires assurés au cours de la période selon la province (%)","0.2","Terre-Neuve-et-Labrador",{"$f":"IFERROR(VLOOKUP(A3960,Translation!$A:$C,3,FALSE),A3960)","v":5},{"$f":"IFERROR(VLOOKUP(B3960,Translation!$A:$C,3,FALSE),B3960)","v":"Cumul 2020"},{"$f":"IFERROR(VLOOKUP(C3960,Translation!$A:$C,3,FALSE),C3960)","v":"IMMEUBLES COLLECTIFS RÉSIDENTIELS"},{"$f":"IFERROR(VLOOKUP(D3960,Translation!$A:$C,3,FALSE),D3960)","v":"Terre-Neuve-et-Labrador"},{"$f":"IFERROR(VLOOKUP(E3960,Translation!$A:$C,3,FALSE),E3960)","v":0.23500300100420457},{"$f":"IFERROR(VLOOKUP(F3960,Translation!$A:$C,3,FALSE),F3960)","v":"Prêts hypothécaires assurés au cours de la période selon la province (%)"},{"$f":"IFERROR(VLOOKUP(G3960,Translation!$A:$C,3,FALSE),G3960)","v":"0.2"},{"$f":"IFERROR(VLOOKUP(H3960,Translation!$A:$C,3,FALSE),H3960)","v":"Terre-Neuve-et-Labrador"}]
[5,"Cumul 2020","IMMEUBLES COLLECTIFS RÉSIDENTIELS","Île-du-Prince-Édouard",3.8149580881644302E-2,"Prêts hypothécaires assurés au cours de la période selon la province (%)","0.0","Île-du-Prince-Édouard",{"$f":"IFERROR(VLOOKUP(A3963,Translation!$A:$C,3,FALSE),A3963)","v":5},{"$f":"IFERROR(VLOOKUP(B3963,Translation!$A:$C,3,FALSE),B3963)","v":"Cumul 2020"},{"$f":"IFERROR(VLOOKUP(C3963,Translation!$A:$C,3,FALSE),C3963)","v":"IMMEUBLES COLLECTIFS RÉSIDENTIELS"},{"$f":"IFERROR(VLOOKUP(D3963,Translation!$A:$C,3,FALSE),D3963)","v":"Île-du-Prince-Édouard"},{"$f":"IFERROR(VLOOKUP(E3963,Translation!$A:$C,3,FALSE),E3963)","v":3.8149580881644302E-2},{"$f":"IFERROR(VLOOKUP(F3963,Translation!$A:$C,3,FALSE),F3963)","v":"Prêts hypothécaires assurés au cours de la période selon la province (%)"},{"$f":"IFERROR(VLOOKUP(G3963,Translation!$A:$C,3,FALSE),G3963)","v":"0.0"},{"$f":"IFERROR(VLOOKUP(H3963,Translation!$A:$C,3,FALSE),H3963)","v":"Île-du-Prince-Édouard"}]
[5,"Cumul 2019","IMMEUBLES COLLECTIFS RÉSIDENTIELS","Nouvelle-Écosse",2.9690062596620845,"Prêts hypothécaires assurés au cours de la période selon la province (%)","3.0","Nouvelle-Écosse",{"$f":"IFERROR(VLOOKUP(A3965,Translation!$A:$C,3,FALSE),A3965)","v":5},{"$f":"IFERROR(VLOOKUP(B3965,Translation!$A:$C,3,FALSE),B3965)","v":"Cumul 2019"},{"$f":"IFERROR(VLOOKUP(C3965,Translation!$A:$C,3,FALSE),C3965)","v":"IMMEUBLES COLLECTIFS RÉSIDENTIELS"},{"$f":"IFERROR(VLOOKUP(D3965,Translation!$A:$C,3,FALSE),D3965)","v":"Nouvelle-Écosse"},{"$f":"IFERROR(VLOOKUP(E3965,Translation!$A:$C,3,FALSE),E3965)","v":2.9690062596620845},{"$f":"IFERROR(VLOOKUP(F3965,Translation!$A:$C,3,FALSE),F3965)","v":"Prêts hypothécaires assurés au cours de la période selon la province (%)"},{"$f":"IFERROR(VLOOKUP(G3965,Translation!$A:$C,3,FALSE),G3965)","v":"3.0"},{"$f":"IFERROR(VLOOKUP(H3965,Translation!$A:$C,3,FALSE),H3965)","v":"Nouvelle-Écosse"}]
[5,"Cumul 2020","IMMEUBLES COLLECTIFS RÉSIDENTIELS","Nouveau-Brunswick",1.4113700875221269,"Prêts hypothécaires assurés au cours de la période selon la province (%)","1.4","Nouveau-Brunswick",{"$f":"IFERROR(VLOOKUP(A3969,Translation!$A:$C,3,FALSE),A3969)","v":5},{"$f":"IFERROR(VLOOKUP(B3969,Translation!$A:$C,3,FALSE),B3969)","v":"Cumul 2020"},{"$f":"IFERROR(VLOOKUP(C3969,Translation!$A:$C,3,FALSE),C3969)","v":"IMMEUBLES COLLECTIFS RÉSIDENTIELS"},{"$f":"IFERROR(VLOOKUP(D3969,Translation!$A:$C,3,FALSE),D3969)","v":"Nouveau-Brunswick"},{"$f":"IFERROR(VLOOKUP(E3969,Translation!$A:$C,3,FALSE),E3969)","v":1.4113700875221269},{"$f":"IFERROR(VLOOKUP(F3969,Translation!$A:$C,3,FALSE),F3969)","v":"Prêts hypothécaires assurés au cours de la période selon la province (%)"},{"$f":"IFERROR(VLOOKUP(G3969,Translation!$A:$C,3,FALSE),G3969)","v":"1.4"},{"$f":"IFERROR(VLOOKUP(H3969,Translation!$A:$C,3,FALSE),H3969)","v":"Nouveau-Brunswick"}]
[5,"T1 2020","IMMEUBLES COLLECTIFS RÉSIDENTIELS","Québec",24.287243841457482,"Prêts hypothécaires assurés au cours de la période selon la province (%)","24.3","Québec",{"$f":"IFERROR(VLOOKUP(A3970,Translation!$A:$C,3,FALSE),A3970)","v":5},{"$f":"IFERROR(VLOOKUP(B3970,Translation!$A:$C,3,FALSE),B3970)","v":"T1 2020"},{"$f":"IFERROR(VLOOKUP(C3970,Translation!$A:$C,3,FALSE),C3970)","v":"IMMEUBLES COLLECTIFS RÉSIDENTIELS"},{"$f":"IFERROR(VLOOKUP(D3970,Translation!$A:$C,3,FALSE),D3970)","v":"Québec"},{"$f":"IFERROR(VLOOKUP(E3970,Translation!$A:$C,3,FALSE),E3970)","v":24.287243841457482},{"$f":"IFERROR(VLOOKUP(F3970,Translation!$A:$C,3,FALSE),F3970)","v":"Prêts hypothécaires assurés au cours de la période selon la province (%)"},{"$f":"IFERROR(VLOOKUP(G3970,Translation!$A:$C,3,FALSE),G3970)","v":"24.3"},{"$f":"IFERROR(VLOOKUP(H3970,Translation!$A:$C,3,FALSE),H3970)","v":"Québec"}]
[5,"T1 2020","IMMEUBLES COLLECTIFS RÉSIDENTIELS","Ontario",44.557420861517343,"Prêts hypothécaires assurés au cours de la période selon la province (%)","44.6","Ontario",{"$f":"IFERROR(VLOOKUP(A3973,Translation!$A:$C,3,FALSE),A3973)","v":5},{"$f":"IFERROR(VLOOKUP(B3973,Translation!$A:$C,3,FALSE),B3973)","v":"T1 2020"},{"$f":"IFERROR(VLOOKUP(C3973,Translation!$A:$C,3,FALSE),C3973)","v":"IMMEUBLES COLLECTIFS RÉSIDENTIELS"},{"$f":"IFERROR(VLOOKUP(D3973,Translation!$A:$C,3,FALSE),D3973)","v":"Ontario"},{"$f":"IFERROR(VLOOKUP(E3973,Translation!$A:$C,3,FALSE),E3973)","v":44.557420861517343},{"$f":"IFERROR(VLOOKUP(F3973,Translation!$A:$C,3,FALSE),F3973)","v":"Prêts hypothécaires assurés au cours de la période selon la province (%)"},{"$f":"IFERROR(VLOOKUP(G3973,Translation!$A:$C,3,FALSE),G3973)","v":"44.6"},{"$f":"IFERROR(VLOOKUP(H3973,Translation!$A:$C,3,FALSE),H3973)","v":"Ontario"}]
[5,"Cumul 2019","IMMEUBLES COLLECTIFS RÉSIDENTIELS","Ontario",44.910955175676605,"Prêts hypothécaires assurés au cours de la période selon la province (%)","44.9","Ontario",{"$f":"IFERROR(VLOOKUP(A3974,Translation!$A:$C,3,FALSE),A3974)","v":5},{"$f":"IFERROR(VLOOKUP(B3974,Translation!$A:$C,3,FALSE),B3974)","v":"Cumul 2019"},{"$f":"IFERROR(VLOOKUP(C3974,Translation!$A:$C,3,FALSE),C3974)","v":"IMMEUBLES COLLECTIFS RÉSIDENTIELS"},{"$f":"IFERROR(VLOOKUP(D3974,Translation!$A:$C,3,FALSE),D3974)","v":"Ontario"},{"$f":"IFERROR(VLOOKUP(E3974,Translation!$A:$C,3,FALSE),E3974)","v":44.910955175676605},{"$f":"IFERROR(VLOOKUP(F3974,Translation!$A:$C,3,FALSE),F3974)","v":"Prêts hypothécaires assurés au cours de la période selon la province (%)"},{"$f":"IFERROR(VLOOKUP(G3974,Translation!$A:$C,3,FALSE),G3974)","v":"44.9"},{"$f":"IFERROR(VLOOKUP(H3974,Translation!$A:$C,3,FALSE),H3974)","v":"Ontario"}]
[5,"Cumul 2020","IMMEUBLES COLLECTIFS RÉSIDENTIELS","Manitoba",4.3762169557722359,"Prêts hypothécaires assurés au cours de la période selon la province (%)","4.4","Manitoba",{"$f":"IFERROR(VLOOKUP(A3978,Translation!$A:$C,3,FALSE),A3978)","v":5},{"$f":"IFERROR(VLOOKUP(B3978,Translation!$A:$C,3,FALSE),B3978)","v":"Cumul 2020"},{"$f":"IFERROR(VLOOKUP(C3978,Translation!$A:$C,3,FALSE),C3978)","v":"IMMEUBLES COLLECTIFS RÉSIDENTIELS"},{"$f":"IFERROR(VLOOKUP(D3978,Translation!$A:$C,3,FALSE),D3978)","v":"Manitoba"},{"$f":"IFERROR(VLOOKUP(E3978,Translation!$A:$C,3,FALSE),E3978)","v":4.3762169557722359},{"$f":"IFERROR(VLOOKUP(F3978,Translation!$A:$C,3,FALSE),F3978)","v":"Prêts hypothécaires assurés au cours de la période selon la province (%)"},{"$f":"IFERROR(VLOOKUP(G3978,Translation!$A:$C,3,FALSE),G3978)","v":"4.4"},{"$f":"IFERROR(VLOOKUP(H3978,Translation!$A:$C,3,FALSE),H3978)","v":"Manitoba"}]
[5,"Cumul 2019","IMMEUBLES COLLECTIFS RÉSIDENTIELS","Saskatchewan",1.1671419770884304,"Prêts hypothécaires assurés au cours de la période selon la province (%)","1.2","Saskatchewan",{"$f":"IFERROR(VLOOKUP(A3980,Translation!$A:$C,3,FALSE),A3980)","v":5},{"$f":"IFERROR(VLOOKUP(B3980,Translation!$A:$C,3,FALSE),B3980)","v":"Cumul 2019"},{"$f":"IFERROR(VLOOKUP(C3980,Translation!$A:$C,3,FALSE),C3980)","v":"IMMEUBLES COLLECTIFS RÉSIDENTIELS"},{"$f":"IFERROR(VLOOKUP(D3980,Translation!$A:$C,3,FALSE),D3980)","v":"Saskatchewan"},{"$f":"IFERROR(VLOOKUP(E3980,Translation!$A:$C,3,FALSE),E3980)","v":1.1671419770884304},{"$f":"IFERROR(VLOOKUP(F3980,Translation!$A:$C,3,FALSE),F3980)","v":"Prêts hypothécaires assurés au cours de la période selon la province (%)"},{"$f":"IFERROR(VLOOKUP(G3980,Translation!$A:$C,3,FALSE),G3980)","v":"1.2"},{"$f":"IFERROR(VLOOKUP(H3980,Translation!$A:$C,3,FALSE),H3980)","v":"Saskatchewan"}]
[5,"Cumul 2019","IMMEUBLES COLLECTIFS RÉSIDENTIELS","Alberta",7.9355001723051393,"Prêts hypothécaires assurés au cours de la période selon la province (%)","7.9","Alberta",{"$f":"IFERROR(VLOOKUP(A3983,Translation!$A:$C,3,FALSE),A3983)","v":5},{"$f":"IFERROR(VLOOKUP(B3983,Translation!$A:$C,3,FALSE),B3983)","v":"Cumul 2019"},{"$f":"IFERROR(VLOOKUP(C3983,Translation!$A:$C,3,FALSE),C3983)","v":"IMMEUBLES COLLECTIFS RÉSIDENTIELS"},{"$f":"IFERROR(VLOOKUP(D3983,Translation!$A:$C,3,FALSE),D3983)","v":"Alberta"},{"$f":"IFERROR(VLOOKUP(E3983,Translation!$A:$C,3,FALSE),E3983)","v":7.9355001723051393},{"$f":"IFERROR(VLOOKUP(F3983,Translation!$A:$C,3,FALSE),F3983)","v":"Prêts hypothécaires assurés au cours de la période selon la province (%)"},{"$f":"IFERROR(VLOOKUP(G3983,Translation!$A:$C,3,FALSE),G3983)","v":"7.9"},{"$f":"IFERROR(VLOOKUP(H3983,Translation!$A:$C,3,FALSE),H3983)","v":"Alberta"}]
[5,"Cumul 2020","IMMEUBLES COLLECTIFS RÉSIDENTIELS","Alberta",8.8059190758830255,"Prêts hypothécaires assurés au cours de la période selon la province (%)","8.8","Alberta",{"$f":"IFERROR(VLOOKUP(A3984,Translation!$A:$C,3,FALSE),A3984)","v":5},{"$f":"IFERROR(VLOOKUP(B3984,Translation!$A:$C,3,FALSE),B3984)","v":"Cumul 2020"},{"$f":"IFERROR(VLOOKUP(C3984,Translation!$A:$C,3,FALSE),C3984)","v":"IMMEUBLES COLLECTIFS RÉSIDENTIELS"},{"$f":"IFERROR(VLOOKUP(D3984,Translation!$A:$C,3,FALSE),D3984)","v":"Alberta"},{"$f":"IFERROR(VLOOKUP(E3984,Translation!$A:$C,3,FALSE),E3984)","v":8.8059190758830255},{"$f":"IFERROR(VLOOKUP(F3984,Translation!$A:$C,3,FALSE),F3984)","v":"Prêts hypothécaires assurés au cours de la période selon la province (%)"},{"$f":"IFERROR(VLOOKUP(G3984,Translation!$A:$C,3,FALSE),G3984)","v":"8.8"},{"$f":"IFERROR(VLOOKUP(H3984,Translation!$A:$C,3,FALSE),H3984)","v":"Alberta"}]
[5,"Cumul 2019","IMMEUBLES COLLECTIFS RÉSIDENTIELS","Territoires",0.36582542607797569,"Prêts hypothécaires assurés au cours de la période selon la province (%)","0.4","Territoires",{"$f":"IFERROR(VLOOKUP(A3988,Translation!$A:$C,3,FALSE),A3988)","v":5},{"$f":"IFERROR(VLOOKUP(B3988,Translation!$A:$C,3,FALSE),B3988)","v":"Cumul 2019"},{"$f":"IFERROR(VLOOKUP(C3988,Translation!$A:$C,3,FALSE),C3988)","v":"IMMEUBLES COLLECTIFS RÉSIDENTIELS"},{"$f":"IFERROR(VLOOKUP(D3988,Translation!$A:$C,3,FALSE),D3988)","v":"Territoires"},{"$f":"IFERROR(VLOOKUP(E3988,Translation!$A:$C,3,FALSE),E3988)","v":0.36582542607797569},{"$f":"IFERROR(VLOOKUP(F3988,Translation!$A:$C,3,FALSE),F3988)","v":"Prêts hypothécaires assurés au cours de la période selon la province (%)"},{"$f":"IFERROR(VLOOKUP(G3988,Translation!$A:$C,3,FALSE),G3988)","v":"0.4"},{"$f":"IFERROR(VLOOKUP(H3988,Translation!$A:$C,3,FALSE),H3988)","v":"Territoires"}]
[5,"T4 2019","PROPRIÉTAIRES-OCCUPANTS, À L’UNITÉ","Terre-Neuve-et-Labrador",1.1749959752627277,"Prêts hypothécaires assurés au cours de la période selon la province (%)","1.2","Terre-Neuve-et-Labrador",{"$f":"IFERROR(VLOOKUP(A3989,Translation!$A:$C,3,FALSE),A3989)","v":5},{"$f":"IFERROR(VLOOKUP(B3989,Translation!$A:$C,3,FALSE),B3989)","v":"T4 2019"},{"$f":"IFERROR(VLOOKUP(C3989,Translation!$A:$C,3,FALSE),C3989)","v":"PROPRIÉTAIRES-OCCUPANTS, À L’UNITÉ"},{"$f":"IFERROR(VLOOKUP(D3989,Translation!$A:$C,3,FALSE),D3989)","v":"Terre-Neuve-et-Labrador"},{"$f":"IFERROR(VLOOKUP(E3989,Translation!$A:$C,3,FALSE),E3989)","v":1.1749959752627277},{"$f":"IFERROR(VLOOKUP(F3989,Translation!$A:$C,3,FALSE),F3989)","v":"Prêts hypothécaires assurés au cours de la période selon la province (%)"},{"$f":"IFERROR(VLOOKUP(G3989,Translation!$A:$C,3,FALSE),G3989)","v":"1.2"},{"$f":"IFERROR(VLOOKUP(H3989,Translation!$A:$C,3,FALSE),H3989)","v":"Terre-Neuve-et-Labrador"}]
[5,"T4 2019","PROPRIÉTAIRES-OCCUPANTS, À L’UNITÉ","Île-du-Prince-Édouard",0.4464617908486001,"Prêts hypothécaires assurés au cours de la période selon la province (%)","0.4","Île-du-Prince-Édouard",{"$f":"IFERROR(VLOOKUP(A3991,Translation!$A:$C,3,FALSE),A3991)","v":5},{"$f":"IFERROR(VLOOKUP(B3991,Translation!$A:$C,3,FALSE),B3991)","v":"T4 2019"},{"$f":"IFERROR(VLOOKUP(C3991,Translation!$A:$C,3,FALSE),C3991)","v":"PROPRIÉTAIRES-OCCUPANTS, À L’UNITÉ"},{"$f":"IFERROR(VLOOKUP(D3991,Translation!$A:$C,3,FALSE),D3991)","v":"Île-du-Prince-Édouard"},{"$f":"IFERROR(VLOOKUP(E3991,Translation!$A:$C,3,FALSE),E3991)","v":0.4464617908486001},{"$f":"IFERROR(VLOOKUP(F3991,Translation!$A:$C,3,FALSE),F3991)","v":"Prêts hypothécaires assurés au cours de la période selon la province (%)"},{"$f":"IFERROR(VLOOKUP(G3991,Translation!$A:$C,3,FALSE),G3991)","v":"0.4"},{"$f":"IFERROR(VLOOKUP(H3991,Translation!$A:$C,3,FALSE),H3991)","v":"Île-du-Prince-Édouard"}]
[5,"Cumul 2018","PROPRIÉTAIRES-OCCUPANTS, À L’UNITÉ","Nouvelle-Écosse",2.4120083992696504,"Prêts hypothécaires assurés au cours de la période selon la province (%)","2.4","Nouvelle-Écosse",{"$f":"IFERROR(VLOOKUP(A3994,Translation!$A:$C,3,FALSE),A3994)","v":5},{"$f":"IFERROR(VLOOKUP(B3994,Translation!$A:$C,3,FALSE),B3994)","v":"Cumul 2018"},{"$f":"IFERROR(VLOOKUP(C3994,Translation!$A:$C,3,FALSE),C3994)","v":"PROPRIÉTAIRES-OCCUPANTS, À L’UNITÉ"},{"$f":"IFERROR(VLOOKUP(D3994,Translation!$A:$C,3,FALSE),D3994)","v":"Nouvelle-Écosse"},{"$f":"IFERROR(VLOOKUP(E3994,Translation!$A:$C,3,FALSE),E3994)","v":2.4120083992696504},{"$f":"IFERROR(VLOOKUP(F3994,Translation!$A:$C,3,FALSE),F3994)","v":"Prêts hypothécaires assurés au cours de la période selon la province (%)"},{"$f":"IFERROR(VLOOKUP(G3994,Translation!$A:$C,3,FALSE),G3994)","v":"2.4"},{"$f":"IFERROR(VLOOKUP(H3994,Translation!$A:$C,3,FALSE),H3994)","v":"Nouvelle-Écosse"}]
[5,"T4 2019","PROPRIÉTAIRES-OCCUPANTS, À L’UNITÉ","Québec",26.618319239720208,"Prêts hypothécaires assurés au cours de la période selon la province (%)","26.6","Québec",{"$f":"IFERROR(VLOOKUP(A3997,Translation!$A:$C,3,FALSE),A3997)","v":5},{"$f":"IFERROR(VLOOKUP(B3997,Translation!$A:$C,3,FALSE),B3997)","v":"T4 2019"},{"$f":"IFERROR(VLOOKUP(C3997,Translation!$A:$C,3,FALSE),C3997)","v":"PROPRIÉTAIRES-OCCUPANTS, À L’UNITÉ"},{"$f":"IFERROR(VLOOKUP(D3997,Translation!$A:$C,3,FALSE),D3997)","v":"Québec"},{"$f":"IFERROR(VLOOKUP(E3997,Translation!$A:$C,3,FALSE),E3997)","v":26.618319239720208},{"$f":"IFERROR(VLOOKUP(F3997,Translation!$A:$C,3,FALSE),F3997)","v":"Prêts hypothécaires assurés au cours de la période selon la province (%)"},{"$f":"IFERROR(VLOOKUP(G3997,Translation!$A:$C,3,FALSE),G3997)","v":"26.6"},{"$f":"IFERROR(VLOOKUP(H3997,Translation!$A:$C,3,FALSE),H3997)","v":"Québec"}]
[5,"T4 2019","PROPRIÉTAIRES-OCCUPANTS, À L’UNITÉ","Ontario",34.385792799150394,"Prêts hypothécaires assurés au cours de la période selon la province (%)","34.4","Ontario",{"$f":"IFERROR(VLOOKUP(A3999,Translation!$A:$C,3,FALSE),A3999)","v":5},{"$f":"IFERROR(VLOOKUP(B3999,Translation!$A:$C,3,FALSE),B3999)","v":"T4 2019"},{"$f":"IFERROR(VLOOKUP(C3999,Translation!$A:$C,3,FALSE),C3999)","v":"PROPRIÉTAIRES-OCCUPANTS, À L’UNITÉ"},{"$f":"IFERROR(VLOOKUP(D3999,Translation!$A:$C,3,FALSE),D3999)","v":"Ontario"},{"$f":"IFERROR(VLOOKUP(E3999,Translation!$A:$C,3,FALSE),E3999)","v":34.385792799150394},{"$f":"IFERROR(VLOOKUP(F3999,Translation!$A:$C,3,FALSE),F3999)","v":"Prêts hypothécaires assurés au cours de la période selon la province (%)"},{"$f":"IFERROR(VLOOKUP(G3999,Translation!$A:$C,3,FALSE),G3999)","v":"34.4"},{"$f":"IFERROR(VLOOKUP(H3999,Translation!$A:$C,3,FALSE),H3999)","v":"Ontario"}]
[5,"Cumul 2018","PROPRIÉTAIRES-OCCUPANTS, À L’UNITÉ","Manitoba",4.0647964729367407,"Prêts hypothécaires assurés au cours de la période selon la province (%)","4.1","Manitoba",{"$f":"IFERROR(VLOOKUP(A4002,Translation!$A:$C,3,FALSE),A4002)","v":5},{"$f":"IFERROR(VLOOKUP(B4002,Translation!$A:$C,3,FALSE),B4002)","v":"Cumul 2018"},{"$f":"IFERROR(VLOOKUP(C4002,Translation!$A:$C,3,FALSE),C4002)","v":"PROPRIÉTAIRES-OCCUPANTS, À L’UNITÉ"},{"$f":"IFERROR(VLOOKUP(D4002,Translation!$A:$C,3,FALSE),D4002)","v":"Manitoba"},{"$f":"IFERROR(VLOOKUP(E4002,Translation!$A:$C,3,FALSE),E4002)","v":4.0647964729367407},{"$f":"IFERROR(VLOOKUP(F4002,Translation!$A:$C,3,FALSE),F4002)","v":"Prêts hypothécaires assurés au cours de la période selon la province (%)"},{"$f":"IFERROR(VLOOKUP(G4002,Translation!$A:$C,3,FALSE),G4002)","v":"4.1"},{"$f":"IFERROR(VLOOKUP(H4002,Translation!$A:$C,3,FALSE),H4002)","v":"Manitoba"}]
[5,"Cumul 2018","PROPRIÉTAIRES-OCCUPANTS, À L’UNITÉ","Saskatchewan",2.6821806278252502,"Prêts hypothécaires assurés au cours de la période selon la province (%)","2.7","Saskatchewan",{"$f":"IFERROR(VLOOKUP(A4004,Translation!$A:$C,3,FALSE),A4004)","v":5},{"$f":"IFERROR(VLOOKUP(B4004,Translation!$A:$C,3,FALSE),B4004)","v":"Cumul 2018"},{"$f":"IFERROR(VLOOKUP(C4004,Translation!$A:$C,3,FALSE),C4004)","v":"PROPRIÉTAIRES-OCCUPANTS, À L’UNITÉ"},{"$f":"IFERROR(VLOOKUP(D4004,Translation!$A:$C,3,FALSE),D4004)","v":"Saskatchewan"},{"$f":"IFERROR(VLOOKUP(E4004,Translation!$A:$C,3,FALSE),E4004)","v":2.6821806278252502},{"$f":"IFERROR(VLOOKUP(F4004,Translation!$A:$C,3,FALSE),F4004)","v":"Prêts hypothécaires assurés au cours de la période selon la province (%)"},{"$f":"IFERROR(VLOOKUP(G4004,Translation!$A:$C,3,FALSE),G4004)","v":"2.7"},{"$f":"IFERROR(VLOOKUP(H4004,Translation!$A:$C,3,FALSE),H4004)","v":"Saskatchewan"}]
[5,"T4 2019","PROPRIÉTAIRES-OCCUPANTS, À L’UNITÉ","Colombie-Britannique",10.372180179654881,"Prêts hypothécaires assurés au cours de la période selon la province (%)","10.4","Colombie-Britannique",{"$f":"IFERROR(VLOOKUP(A4007,Translation!$A:$C,3,FALSE),A4007)","v":5},{"$f":"IFERROR(VLOOKUP(B4007,Translation!$A:$C,3,FALSE),B4007)","v":"T4 2019"},{"$f":"IFERROR(VLOOKUP(C4007,Translation!$A:$C,3,FALSE),C4007)","v":"PROPRIÉTAIRES-OCCUPANTS, À L’UNITÉ"},{"$f":"IFERROR(VLOOKUP(D4007,Translation!$A:$C,3,FALSE),D4007)","v":"Colombie-Britannique"},{"$f":"IFERROR(VLOOKUP(E4007,Translation!$A:$C,3,FALSE),E4007)","v":10.372180179654881},{"$f":"IFERROR(VLOOKUP(F4007,Translation!$A:$C,3,FALSE),F4007)","v":"Prêts hypothécaires assurés au cours de la période selon la province (%)"},{"$f":"IFERROR(VLOOKUP(G4007,Translation!$A:$C,3,FALSE),G4007)","v":"10.4"},{"$f":"IFERROR(VLOOKUP(H4007,Translation!$A:$C,3,FALSE),H4007)","v":"Colombie-Britannique"}]
[5,"Cumul 2018","PROPRIÉTAIRES-OCCUPANTS, À L’UNITÉ","Colombie-Britannique",9.8486085521203766,"Prêts hypothécaires assurés au cours de la période selon la province (%)","9.8","Colombie-Britannique",{"$f":"IFERROR(VLOOKUP(A4008,Translation!$A:$C,3,FALSE),A4008)","v":5},{"$f":"IFERROR(VLOOKUP(B4008,Translation!$A:$C,3,FALSE),B4008)","v":"Cumul 2018"},{"$f":"IFERROR(VLOOKUP(C4008,Translation!$A:$C,3,FALSE),C4008)","v":"PROPRIÉTAIRES-OCCUPANTS, À L’UNITÉ"},{"$f":"IFERROR(VLOOKUP(D4008,Translation!$A:$C,3,FALSE),D4008)","v":"Colombie-Britannique"},{"$f":"IFERROR(VLOOKUP(E4008,Translation!$A:$C,3,FALSE),E4008)","v":9.8486085521203766},{"$f":"IFERROR(VLOOKUP(F4008,Translation!$A:$C,3,FALSE),F4008)","v":"Prêts hypothécaires assurés au cours de la période selon la province (%)"},{"$f":"IFERROR(VLOOKUP(G4008,Translation!$A:$C,3,FALSE),G4008)","v":"9.8"},{"$f":"IFERROR(VLOOKUP(H4008,Translation!$A:$C,3,FALSE),H4008)","v":"Colombie-Britannique"}]
[5,"Cumul 2018","PROPRIÉTAIRES-OCCUPANTS, À L’UNITÉ","Territoires",0.60350718459892327,"Prêts hypothécaires assurés au cours de la période selon la province (%)","0.6","Territoires",{"$f":"IFERROR(VLOOKUP(A4010,Translation!$A:$C,3,FALSE),A4010)","v":5},{"$f":"IFERROR(VLOOKUP(B4010,Translation!$A:$C,3,FALSE),B4010)","v":"Cumul 2018"},{"$f":"IFERROR(VLOOKUP(C4010,Translation!$A:$C,3,FALSE),C4010)","v":"PROPRIÉTAIRES-OCCUPANTS, À L’UNITÉ"},{"$f":"IFERROR(VLOOKUP(D4010,Translation!$A:$C,3,FALSE),D4010)","v":"Territoires"},{"$f":"IFERROR(VLOOKUP(E4010,Translation!$A:$C,3,FALSE),E4010)","v":0.60350718459892327},{"$f":"IFERROR(VLOOKUP(F4010,Translation!$A:$C,3,FALSE),F4010)","v":"Prêts hypothécaires assurés au cours de la période selon la province (%)"},{"$f":"IFERROR(VLOOKUP(G4010,Translation!$A:$C,3,FALSE),G4010)","v":"0.6"},{"$f":"IFERROR(VLOOKUP(H4010,Translation!$A:$C,3,FALSE),H4010)","v":"Territoires"}]
[5,"T4 2019","ASSURANCE DE PORTEFEUILLE","Île-du-Prince-Édouard",0.16275267947357749,"Prêts hypothécaires assurés au cours de la période selon la province (%)","0.2","Île-du-Prince-Édouard",{"$f":"IFERROR(VLOOKUP(A4013,Translation!$A:$C,3,FALSE),A4013)","v":5},{"$f":"IFERROR(VLOOKUP(B4013,Translation!$A:$C,3,FALSE),B4013)","v":"T4 2019"},{"$f":"IFERROR(VLOOKUP(C4013,Translation!$A:$C,3,FALSE),C4013)","v":"ASSURANCE DE PORTEFEUILLE"},{"$f":"IFERROR(VLOOKUP(D4013,Translation!$A:$C,3,FALSE),D4013)","v":"Île-du-Prince-Édouard"},{"$f":"IFERROR(VLOOKUP(E4013,Translation!$A:$C,3,FALSE),E4013)","v":0.16275267947357749},{"$f":"IFERROR(VLOOKUP(F4013,Translation!$A:$C,3,FALSE),F4013)","v":"Prêts hypothécaires assurés au cours de la période selon la province (%)"},{"$f":"IFERROR(VLOOKUP(G4013,Translation!$A:$C,3,FALSE),G4013)","v":"0.2"},{"$f":"IFERROR(VLOOKUP(H4013,Translation!$A:$C,3,FALSE),H4013)","v":"Île-du-Prince-Édouard"}]
[5,"T4 2019","ASSURANCE DE PORTEFEUILLE","Nouvelle-Écosse",1.7520481252253322,"Prêts hypothécaires assurés au cours de la période selon la province (%)","1.8","Nouvelle-Écosse",{"$f":"IFERROR(VLOOKUP(A4015,Translation!$A:$C,3,FALSE),A4015)","v":5},{"$f":"IFERROR(VLOOKUP(B4015,Translation!$A:$C,3,FALSE),B4015)","v":"T4 2019"},{"$f":"IFERROR(VLOOKUP(C4015,Translation!$A:$C,3,FALSE),C4015)","v":"ASSURANCE DE PORTEFEUILLE"},{"$f":"IFERROR(VLOOKUP(D4015,Translation!$A:$C,3,FALSE),D4015)","v":"Nouvelle-Écosse"},{"$f":"IFERROR(VLOOKUP(E4015,Translation!$A:$C,3,FALSE),E4015)","v":1.7520481252253322},{"$f":"IFERROR(VLOOKUP(F4015,Translation!$A:$C,3,FALSE),F4015)","v":"Prêts hypothécaires assurés au cours de la période selon la province (%)"},{"$f":"IFERROR(VLOOKUP(G4015,Translation!$A:$C,3,FALSE),G4015)","v":"1.8"},{"$f":"IFERROR(VLOOKUP(H4015,Translation!$A:$C,3,FALSE),H4015)","v":"Nouvelle-Écosse"}]
[5,"Cumul 2018","ASSURANCE DE PORTEFEUILLE","Nouveau-Brunswick",0.2118337327393234,"Prêts hypothécaires assurés au cours de la période selon la province (%)","0.2","Nouveau-Brunswick",{"$f":"IFERROR(VLOOKUP(A4018,Translation!$A:$C,3,FALSE),A4018)","v":5},{"$f":"IFERROR(VLOOKUP(B4018,Translation!$A:$C,3,FALSE),B4018)","v":"Cumul 2018"},{"$f":"IFERROR(VLOOKUP(C4018,Translation!$A:$C,3,FALSE),C4018)","v":"ASSURANCE DE PORTEFEUILLE"},{"$f":"IFERROR(VLOOKUP(D4018,Translation!$A:$C,3,FALSE),D4018)","v":"Nouveau-Brunswick"},{"$f":"IFERROR(VLOOKUP(E4018,Translation!$A:$C,3,FALSE),E4018)","v":0.2118337327393234},{"$f":"IFERROR(VLOOKUP(F4018,Translation!$A:$C,3,FALSE),F4018)","v":"Prêts hypothécaires assurés au cours de la période selon la province (%)"},{"$f":"IFERROR(VLOOKUP(G4018,Translation!$A:$C,3,FALSE),G4018)","v":"0.2"},{"$f":"IFERROR(VLOOKUP(H4018,Translation!$A:$C,3,FALSE),H4018)","v":"Nouveau-Brunswick"}]
[5,"T4 2019","ASSURANCE DE PORTEFEUILLE","Ontario",45.131434886288979,"Prêts hypothécaires assurés au cours de la période selon la province (%)","45.1","Ontario",{"$f":"IFERROR(VLOOKUP(A4021,Translation!$A:$C,3,FALSE),A4021)","v":5},{"$f":"IFERROR(VLOOKUP(B4021,Translation!$A:$C,3,FALSE),B4021)","v":"T4 2019"},{"$f":"IFERROR(VLOOKUP(C4021,Translation!$A:$C,3,FALSE),C4021)","v":"ASSURANCE DE PORTEFEUILLE"},{"$f":"IFERROR(VLOOKUP(D4021,Translation!$A:$C,3,FALSE),D4021)","v":"Ontario"},{"$f":"IFERROR(VLOOKUP(E4021,Translation!$A:$C,3,FALSE),E4021)","v":45.131434886288979},{"$f":"IFERROR(VLOOKUP(F4021,Translation!$A:$C,3,FALSE),F4021)","v":"Prêts hypothécaires assurés au cours de la période selon la province (%)"},{"$f":"IFERROR(VLOOKUP(G4021,Translation!$A:$C,3,FALSE),G4021)","v":"45.1"},{"$f":"IFERROR(VLOOKUP(H4021,Translation!$A:$C,3,FALSE),H4021)","v":"Ontario"}]
[5,"T4 2019","ASSURANCE DE PORTEFEUILLE","Manitoba",1.4838414209937529,"Prêts hypothécaires assurés au cours de la période selon la province (%)","1.5","Manitoba",{"$f":"IFERROR(VLOOKUP(A4023,Translation!$A:$C,3,FALSE),A4023)","v":5},{"$f":"IFERROR(VLOOKUP(B4023,Translation!$A:$C,3,FALSE),B4023)","v":"T4 2019"},{"$f":"IFERROR(VLOOKUP(C4023,Translation!$A:$C,3,FALSE),C4023)","v":"ASSURANCE DE PORTEFEUILLE"},{"$f":"IFERROR(VLOOKUP(D4023,Translation!$A:$C,3,FALSE),D4023)","v":"Manitoba"},{"$f":"IFERROR(VLOOKUP(E4023,Translation!$A:$C,3,FALSE),E4023)","v":1.4838414209937529},{"$f":"IFERROR(VLOOKUP(F4023,Translation!$A:$C,3,FALSE),F4023)","v":"Prêts hypothécaires assurés au cours de la période selon la province (%)"},{"$f":"IFERROR(VLOOKUP(G4023,Translation!$A:$C,3,FALSE),G4023)","v":"1.5"},{"$f":"IFERROR(VLOOKUP(H4023,Translation!$A:$C,3,FALSE),H4023)","v":"Manitoba"}]
[5,"Cumul 2018","ASSURANCE DE PORTEFEUILLE","Saskatchewan",2.4308246255484032,"Prêts hypothécaires assurés au cours de la période selon la province (%)","2.4","Saskatchewan",{"$f":"IFERROR(VLOOKUP(A4026,Translation!$A:$C,3,FALSE),A4026)","v":5},{"$f":"IFERROR(VLOOKUP(B4026,Translation!$A:$C,3,FALSE),B4026)","v":"Cumul 2018"},{"$f":"IFERROR(VLOOKUP(C4026,Translation!$A:$C,3,FALSE),C4026)","v":"ASSURANCE DE PORTEFEUILLE"},{"$f":"IFERROR(VLOOKUP(D4026,Translation!$A:$C,3,FALSE),D4026)","v":"Saskatchewan"},{"$f":"IFERROR(VLOOKUP(E4026,Translation!$A:$C,3,FALSE),E4026)","v":2.4308246255484032},{"$f":"IFERROR(VLOOKUP(F4026,Translation!$A:$C,3,FALSE),F4026)","v":"Prêts hypothécaires assurés au cours de la période selon la province (%)"},{"$f":"IFERROR(VLOOKUP(G4026,Translation!$A:$C,3,FALSE),G4026)","v":"2.4"},{"$f":"IFERROR(VLOOKUP(H4026,Translation!$A:$C,3,FALSE),H4026)","v":"Saskatchewan"}]
[5,"T4 2019","ASSURANCE DE PORTEFEUILLE","Colombie-Britannique",15.1501533807873,"Prêts hypothécaires assurés au cours de la période selon la province (%)","15.2","Colombie-Britannique",{"$f":"IFERROR(VLOOKUP(A4029,Translation!$A:$C,3,FALSE),A4029)","v":5},{"$f":"IFERROR(VLOOKUP(B4029,Translation!$A:$C,3,FALSE),B4029)","v":"T4 2019"},{"$f":"IFERROR(VLOOKUP(C4029,Translation!$A:$C,3,FALSE),C4029)","v":"ASSURANCE DE PORTEFEUILLE"},{"$f":"IFERROR(VLOOKUP(D4029,Translation!$A:$C,3,FALSE),D4029)","v":"Colombie-Britannique"},{"$f":"IFERROR(VLOOKUP(E4029,Translation!$A:$C,3,FALSE),E4029)","v":15.1501533807873},{"$f":"IFERROR(VLOOKUP(F4029,Translation!$A:$C,3,FALSE),F4029)","v":"Prêts hypothécaires assurés au cours de la période selon la province (%)"},{"$f":"IFERROR(VLOOKUP(G4029,Translation!$A:$C,3,FALSE),G4029)","v":"15.2"},{"$f":"IFERROR(VLOOKUP(H4029,Translation!$A:$C,3,FALSE),H4029)","v":"Colombie-Britannique"}]
[5,"T4 2019","ASSURANCE DE PORTEFEUILLE","Territoires",0.68111312496887699,"Prêts hypothécaires assurés au cours de la période selon la province (%)","0.7","Territoires",{"$f":"IFERROR(VLOOKUP(A4031,Translation!$A:$C,3,FALSE),A4031)","v":5},{"$f":"IFERROR(VLOOKUP(B4031,Translation!$A:$C,3,FALSE),B4031)","v":"T4 2019"},{"$f":"IFERROR(VLOOKUP(C4031,Translation!$A:$C,3,FALSE),C4031)","v":"ASSURANCE DE PORTEFEUILLE"},{"$f":"IFERROR(VLOOKUP(D4031,Translation!$A:$C,3,FALSE),D4031)","v":"Territoires"},{"$f":"IFERROR(VLOOKUP(E4031,Translation!$A:$C,3,FALSE),E4031)","v":0.68111312496887699},{"$f":"IFERROR(VLOOKUP(F4031,Translation!$A:$C,3,FALSE),F4031)","v":"Prêts hypothécaires assurés au cours de la période selon la province (%)"},{"$f":"IFERROR(VLOOKUP(G4031,Translation!$A:$C,3,FALSE),G4031)","v":"0.7"},{"$f":"IFERROR(VLOOKUP(H4031,Translation!$A:$C,3,FALSE),H4031)","v":"Territoires"}]
[5,"T4 2019","IMMEUBLES COLLECTIFS RÉSIDENTIELS","Terre-Neuve-et-Labrador",1.4131959539533402E-2,"Prêts hypothécaires assurés au cours de la période selon la province (%)","0.0","Terre-Neuve-et-Labrador",{"$f":"IFERROR(VLOOKUP(A4032,Translation!$A:$C,3,FALSE),A4032)","v":5},{"$f":"IFERROR(VLOOKUP(B4032,Translation!$A:$C,3,FALSE),B4032)","v":"T4 2019"},{"$f":"IFERROR(VLOOKUP(C4032,Translation!$A:$C,3,FALSE),C4032)","v":"IMMEUBLES COLLECTIFS RÉSIDENTIELS"},{"$f":"IFERROR(VLOOKUP(D4032,Translation!$A:$C,3,FALSE),D4032)","v":"Terre-Neuve-et-Labrador"},{"$f":"IFERROR(VLOOKUP(E4032,Translation!$A:$C,3,FALSE),E4032)","v":1.4131959539533402E-2},{"$f":"IFERROR(VLOOKUP(F4032,Translation!$A:$C,3,FALSE),F4032)","v":"Prêts hypothécaires assurés au cours de la période selon la province (%)"},{"$f":"IFERROR(VLOOKUP(G4032,Translation!$A:$C,3,FALSE),G4032)","v":"0.0"},{"$f":"IFERROR(VLOOKUP(H4032,Translation!$A:$C,3,FALSE),H4032)","v":"Terre-Neuve-et-Labrador"}]
[5,"T4 2019","IMMEUBLES COLLECTIFS RÉSIDENTIELS","Île-du-Prince-Édouard",0.66677589646041113,"Prêts hypothécaires assurés au cours de la période selon la province (%)","0.7","Île-du-Prince-Édouard",{"$f":"IFERROR(VLOOKUP(A4034,Translation!$A:$C,3,FALSE),A4034)","v":5},{"$f":"IFERROR(VLOOKUP(B4034,Translation!$A:$C,3,FALSE),B4034)","v":"T4 2019"},{"$f":"IFERROR(VLOOKUP(C4034,Translation!$A:$C,3,FALSE),C4034)","v":"IMMEUBLES COLLECTIFS RÉSIDENTIELS"},{"$f":"IFERROR(VLOOKUP(D4034,Translation!$A:$C,3,FALSE),D4034)","v":"Île-du-Prince-Édouard"},{"$f":"IFERROR(VLOOKUP(E4034,Translation!$A:$C,3,FALSE),E4034)","v":0.66677589646041113},{"$f":"IFERROR(VLOOKUP(F4034,Translation!$A:$C,3,FALSE),F4034)","v":"Prêts hypothécaires assurés au cours de la période selon la province (%)"},{"$f":"IFERROR(VLOOKUP(G4034,Translation!$A:$C,3,FALSE),G4034)","v":"0.7"},{"$f":"IFERROR(VLOOKUP(H4034,Translation!$A:$C,3,FALSE),H4034)","v":"Île-du-Prince-Édouard"}]
[5,"Cumul 2018","IMMEUBLES COLLECTIFS RÉSIDENTIELS","Nouvelle-Écosse",7.2561963002671268,"Prêts hypothécaires assurés au cours de la période selon la province (%)","7.3","Nouvelle-Écosse",{"$f":"IFERROR(VLOOKUP(A4037,Translation!$A:$C,3,FALSE),A4037)","v":5},{"$f":"IFERROR(VLOOKUP(B4037,Translation!$A:$C,3,FALSE),B4037)","v":"Cumul 2018"},{"$f":"IFERROR(VLOOKUP(C4037,Translation!$A:$C,3,FALSE),C4037)","v":"IMMEUBLES COLLECTIFS RÉSIDENTIELS"},{"$f":"IFERROR(VLOOKUP(D4037,Translation!$A:$C,3,FALSE),D4037)","v":"Nouvelle-Écosse"},{"$f":"IFERROR(VLOOKUP(E4037,Translation!$A:$C,3,FALSE),E4037)","v":7.2561963002671268},{"$f":"IFERROR(VLOOKUP(F4037,Translation!$A:$C,3,FALSE),F4037)","v":"Prêts hypothécaires assurés au cours de la période selon la province (%)"},{"$f":"IFERROR(VLOOKUP(G4037,Translation!$A:$C,3,FALSE),G4037)","v":"7.3"},{"$f":"IFERROR(VLOOKUP(H4037,Translation!$A:$C,3,FALSE),H4037)","v":"Nouvelle-Écosse"}]
[5,"T4 2019","IMMEUBLES COLLECTIFS RÉSIDENTIELS","Québec",22.305050295712348,"Prêts hypothécaires assurés au cours de la période selon la province (%)","22.3","Québec",{"$f":"IFERROR(VLOOKUP(A4040,Translation!$A:$C,3,FALSE),A4040)","v":5},{"$f":"IFERROR(VLOOKUP(B4040,Translation!$A:$C,3,FALSE),B4040)","v":"T4 2019"},{"$f":"IFERROR(VLOOKUP(C4040,Translation!$A:$C,3,FALSE),C4040)","v":"IMMEUBLES COLLECTIFS RÉSIDENTIELS"},{"$f":"IFERROR(VLOOKUP(D4040,Translation!$A:$C,3,FALSE),D4040)","v":"Québec"},{"$f":"IFERROR(VLOOKUP(E4040,Translation!$A:$C,3,FALSE),E4040)","v":22.305050295712348},{"$f":"IFERROR(VLOOKUP(F4040,Translation!$A:$C,3,FALSE),F4040)","v":"Prêts hypothécaires assurés au cours de la période selon la province (%)"},{"$f":"IFERROR(VLOOKUP(G4040,Translation!$A:$C,3,FALSE),G4040)","v":"22.3"},{"$f":"IFERROR(VLOOKUP(H4040,Translation!$A:$C,3,FALSE),H4040)","v":"Québec"}]
[5,"T4 2019","IMMEUBLES COLLECTIFS RÉSIDENTIELS","Ontario",46.111699419914245,"Prêts hypothécaires assurés au cours de la période selon la province (%)","46.1","Ontario",{"$f":"IFERROR(VLOOKUP(A4042,Translation!$A:$C,3,FALSE),A4042)","v":5},{"$f":"IFERROR(VLOOKUP(B4042,Translation!$A:$C,3,FALSE),B4042)","v":"T4 2019"},{"$f":"IFERROR(VLOOKUP(C4042,Translation!$A:$C,3,FALSE),C4042)","v":"IMMEUBLES COLLECTIFS RÉSIDENTIELS"},{"$f":"IFERROR(VLOOKUP(D4042,Translation!$A:$C,3,FALSE),D4042)","v":"Ontario"},{"$f":"IFERROR(VLOOKUP(E4042,Translation!$A:$C,3,FALSE),E4042)","v":46.111699419914245},{"$f":"IFERROR(VLOOKUP(F4042,Translation!$A:$C,3,FALSE),F4042)","v":"Prêts hypothécaires assurés au cours de la période selon la province (%)"},{"$f":"IFERROR(VLOOKUP(G4042,Translation!$A:$C,3,FALSE),G4042)","v":"46.1"},{"$f":"IFERROR(VLOOKUP(H4042,Translation!$A:$C,3,FALSE),H4042)","v":"Ontario"}]
[5,"Cumul 2018","IMMEUBLES COLLECTIFS RÉSIDENTIELS","Manitoba",3.0063681176850996,"Prêts hypothécaires assurés au cours de la période selon la province (%)","3.0","Manitoba",{"$f":"IFERROR(VLOOKUP(A4045,Translation!$A:$C,3,FALSE),A4045)","v":5},{"$f":"IFERROR(VLOOKUP(B4045,Translation!$A:$C,3,FALSE),B4045)","v":"Cumul 2018"},{"$f":"IFERROR(VLOOKUP(C4045,Translation!$A:$C,3,FALSE),C4045)","v":"IMMEUBLES COLLECTIFS RÉSIDENTIELS"},{"$f":"IFERROR(VLOOKUP(D4045,Translation!$A:$C,3,FALSE),D4045)","v":"Manitoba"},{"$f":"IFERROR(VLOOKUP(E4045,Translation!$A:$C,3,FALSE),E4045)","v":3.0063681176850996},{"$f":"IFERROR(VLOOKUP(F4045,Translation!$A:$C,3,FALSE),F4045)","v":"Prêts hypothécaires assurés au cours de la période selon la province (%)"},{"$f":"IFERROR(VLOOKUP(G4045,Translation!$A:$C,3,FALSE),G4045)","v":"3.0"},{"$f":"IFERROR(VLOOKUP(H4045,Translation!$A:$C,3,FALSE),H4045)","v":"Manitoba"}]
[5,"T4 2019","IMMEUBLES COLLECTIFS RÉSIDENTIELS","Alberta",8.5906411181552542,"Prêts hypothécaires assurés au cours de la période selon la province (%)","8.6","Alberta",{"$f":"IFERROR(VLOOKUP(A4048,Translation!$A:$C,3,FALSE),A4048)","v":5},{"$f":"IFERROR(VLOOKUP(B4048,Translation!$A:$C,3,FALSE),B4048)","v":"T4 2019"},{"$f":"IFERROR(VLOOKUP(C4048,Translation!$A:$C,3,FALSE),C4048)","v":"IMMEUBLES COLLECTIFS RÉSIDENTIELS"},{"$f":"IFERROR(VLOOKUP(D4048,Translation!$A:$C,3,FALSE),D4048)","v":"Alberta"},{"$f":"IFERROR(VLOOKUP(E4048,Translation!$A:$C,3,FALSE),E4048)","v":8.5906411181552542},{"$f":"IFERROR(VLOOKUP(F4048,Translation!$A:$C,3,FALSE),F4048)","v":"Prêts hypothécaires assurés au cours de la période selon la province (%)"},{"$f":"IFERROR(VLOOKUP(G4048,Translation!$A:$C,3,FALSE),G4048)","v":"8.6"},{"$f":"IFERROR(VLOOKUP(H4048,Translation!$A:$C,3,FALSE),H4048)","v":"Alberta"}]
[5,"T4 2019","IMMEUBLES COLLECTIFS RÉSIDENTIELS","Colombie-Britannique",10.804034893710552,"Prêts hypothécaires assurés au cours de la période selon la province (%)","10.8","Colombie-Britannique",{"$f":"IFERROR(VLOOKUP(A4050,Translation!$A:$C,3,FALSE),A4050)","v":5},{"$f":"IFERROR(VLOOKUP(B4050,Translation!$A:$C,3,FALSE),B4050)","v":"T4 2019"},{"$f":"IFERROR(VLOOKUP(C4050,Translation!$A:$C,3,FALSE),C4050)","v":"IMMEUBLES COLLECTIFS RÉSIDENTIELS"},{"$f":"IFERROR(VLOOKUP(D4050,Translation!$A:$C,3,FALSE),D4050)","v":"Colombie-Britannique"},{"$f":"IFERROR(VLOOKUP(E4050,Translation!$A:$C,3,FALSE),E4050)","v":10.804034893710552},{"$f":"IFERROR(VLOOKUP(F4050,Translation!$A:$C,3,FALSE),F4050)","v":"Prêts hypothécaires assurés au cours de la période selon la province (%)"},{"$f":"IFERROR(VLOOKUP(G4050,Translation!$A:$C,3,FALSE),G4050)","v":"10.8"},{"$f":"IFERROR(VLOOKUP(H4050,Translation!$A:$C,3,FALSE),H4050)","v":"Colombie-Britannique"}]
[5,"Cumul 2018","IMMEUBLES COLLECTIFS RÉSIDENTIELS","Colombie-Britannique",15.485079559819027,"Prêts hypothécaires assurés au cours de la période selon la province (%)","15.5","Colombie-Britannique",{"$f":"IFERROR(VLOOKUP(A4051,Translation!$A:$C,3,FALSE),A4051)","v":5},{"$f":"IFERROR(VLOOKUP(B4051,Translation!$A:$C,3,FALSE),B4051)","v":"Cumul 2018"},{"$f":"IFERROR(VLOOKUP(C4051,Translation!$A:$C,3,FALSE),C4051)","v":"IMMEUBLES COLLECTIFS RÉSIDENTIELS"},{"$f":"IFERROR(VLOOKUP(D4051,Translation!$A:$C,3,FALSE),D4051)","v":"Colombie-Britannique"},{"$f":"IFERROR(VLOOKUP(E4051,Translation!$A:$C,3,FALSE),E4051)","v":15.485079559819027},{"$f":"IFERROR(VLOOKUP(F4051,Translation!$A:$C,3,FALSE),F4051)","v":"Prêts hypothécaires assurés au cours de la période selon la province (%)"},{"$f":"IFERROR(VLOOKUP(G4051,Translation!$A:$C,3,FALSE),G4051)","v":"15.5"},{"$f":"IFERROR(VLOOKUP(H4051,Translation!$A:$C,3,FALSE),H4051)","v":"Colombie-Britannique"}]
[5,"T3 2019","PROPRIÉTAIRES-OCCUPANTS, À L’UNITÉ","Île-du-Prince-Édouard",0.42536753081958528,"Prêts hypothécaires assurés au cours de la période selon la province (%)","0.4","Île-du-Prince-Édouard",{"$f":"IFERROR(VLOOKUP(A4055,Translation!$A:$C,3,FALSE),A4055)","v":5},{"$f":"IFERROR(VLOOKUP(B4055,Translation!$A:$C,3,FALSE),B4055)","v":"T3 2019"},{"$f":"IFERROR(VLOOKUP(C4055,Translation!$A:$C,3,FALSE),C4055)","v":"PROPRIÉTAIRES-OCCUPANTS, À L’UNITÉ"},{"$f":"IFERROR(VLOOKUP(D4055,Translation!$A:$C,3,FALSE),D4055)","v":"Île-du-Prince-Édouard"},{"$f":"IFERROR(VLOOKUP(E4055,Translation!$A:$C,3,FALSE),E4055)","v":0.42536753081958528},{"$f":"IFERROR(VLOOKUP(F4055,Translation!$A:$C,3,FALSE),F4055)","v":"Prêts hypothécaires assurés au cours de la période selon la province (%)"},{"$f":"IFERROR(VLOOKUP(G4055,Translation!$A:$C,3,FALSE),G4055)","v":"0.4"},{"$f":"IFERROR(VLOOKUP(H4055,Translation!$A:$C,3,FALSE),H4055)","v":"Île-du-Prince-Édouard"}]
[5,"T3 2019","PROPRIÉTAIRES-OCCUPANTS, À L’UNITÉ","Nouvelle-Écosse",2.9549395090140695,"Prêts hypothécaires assurés au cours de la période selon la province (%)","3.0","Nouvelle-Écosse",{"$f":"IFERROR(VLOOKUP(A4056,Translation!$A:$C,3,FALSE),A4056)","v":5},{"$f":"IFERROR(VLOOKUP(B4056,Translation!$A:$C,3,FALSE),B4056)","v":"T3 2019"},{"$f":"IFERROR(VLOOKUP(C4056,Translation!$A:$C,3,FALSE),C4056)","v":"PROPRIÉTAIRES-OCCUPANTS, À L’UNITÉ"},{"$f":"IFERROR(VLOOKUP(D4056,Translation!$A:$C,3,FALSE),D4056)","v":"Nouvelle-Écosse"},{"$f":"IFERROR(VLOOKUP(E4056,Translation!$A:$C,3,FALSE),E4056)","v":2.9549395090140695},{"$f":"IFERROR(VLOOKUP(F4056,Translation!$A:$C,3,FALSE),F4056)","v":"Prêts hypothécaires assurés au cours de la période selon la province (%)"},{"$f":"IFERROR(VLOOKUP(G4056,Translation!$A:$C,3,FALSE),G4056)","v":"3.0"},{"$f":"IFERROR(VLOOKUP(H4056,Translation!$A:$C,3,FALSE),H4056)","v":"Nouvelle-Écosse"}]
[5,"T3 2019","PROPRIÉTAIRES-OCCUPANTS, À L’UNITÉ","Ontario",34.716678692221791,"Prêts hypothécaires assurés au cours de la période selon la province (%)","34.7","Ontario",{"$f":"IFERROR(VLOOKUP(A4059,Translation!$A:$C,3,FALSE),A4059)","v":5},{"$f":"IFERROR(VLOOKUP(B4059,Translation!$A:$C,3,FALSE),B4059)","v":"T3 2019"},{"$f":"IFERROR(VLOOKUP(C4059,Translation!$A:$C,3,FALSE),C4059)","v":"PROPRIÉTAIRES-OCCUPANTS, À L’UNITÉ"},{"$f":"IFERROR(VLOOKUP(D4059,Translation!$A:$C,3,FALSE),D4059)","v":"Ontario"},{"$f":"IFERROR(VLOOKUP(E4059,Translation!$A:$C,3,FALSE),E4059)","v":34.716678692221791},{"$f":"IFERROR(VLOOKUP(F4059,Translation!$A:$C,3,FALSE),F4059)","v":"Prêts hypothécaires assurés au cours de la période selon la province (%)"},{"$f":"IFERROR(VLOOKUP(G4059,Translation!$A:$C,3,FALSE),G4059)","v":"34.7"},{"$f":"IFERROR(VLOOKUP(H4059,Translation!$A:$C,3,FALSE),H4059)","v":"Ontario"}]
[5,"T3 2019","PROPRIÉTAIRES-OCCUPANTS, À L’UNITÉ","Saskatchewan",2.6590608201167072,"Prêts hypothécaires assurés au cours de la période selon la province (%)","2.7","Saskatchewan",{"$f":"IFERROR(VLOOKUP(A4061,Translation!$A:$C,3,FALSE),A4061)","v":5},{"$f":"IFERROR(VLOOKUP(B4061,Translation!$A:$C,3,FALSE),B4061)","v":"T3 2019"},{"$f":"IFERROR(VLOOKUP(C4061,Translation!$A:$C,3,FALSE),C4061)","v":"PROPRIÉTAIRES-OCCUPANTS, À L’UNITÉ"},{"$f":"IFERROR(VLOOKUP(D4061,Translation!$A:$C,3,FALSE),D4061)","v":"Saskatchewan"},{"$f":"IFERROR(VLOOKUP(E4061,Translation!$A:$C,3,FALSE),E4061)","v":2.6590608201167072},{"$f":"IFERROR(VLOOKUP(F4061,Translation!$A:$C,3,FALSE),F4061)","v":"Prêts hypothécaires assurés au cours de la période selon la province (%)"},{"$f":"IFERROR(VLOOKUP(G4061,Translation!$A:$C,3,FALSE),G4061)","v":"2.7"},{"$f":"IFERROR(VLOOKUP(H4061,Translation!$A:$C,3,FALSE),H4061)","v":"Saskatchewan"}]
[5,"T3 2019","ASSURANCE DE PORTEFEUILLE","Nouvelle-Écosse",0.60591432678803114,"Prêts hypothécaires assurés au cours de la période selon la province (%)","0.6","Nouvelle-Écosse",{"$f":"IFERROR(VLOOKUP(A4065,Translation!$A:$C,3,FALSE),A4065)","v":5},{"$f":"IFERROR(VLOOKUP(B4065,Translation!$A:$C,3,FALSE),B4065)","v":"T3 2019"},{"$f":"IFERROR(VLOOKUP(C4065,Translation!$A:$C,3,FALSE),C4065)","v":"ASSURANCE DE PORTEFEUILLE"},{"$f":"IFERROR(VLOOKUP(D4065,Translation!$A:$C,3,FALSE),D4065)","v":"Nouvelle-Écosse"},{"$f":"IFERROR(VLOOKUP(E4065,Translation!$A:$C,3,FALSE),E4065)","v":0.60591432678803114},{"$f":"IFERROR(VLOOKUP(F4065,Translation!$A:$C,3,FALSE),F4065)","v":"Prêts hypothécaires assurés au cours de la période selon la province (%)"},{"$f":"IFERROR(VLOOKUP(G4065,Translation!$A:$C,3,FALSE),G4065)","v":"0.6"},{"$f":"IFERROR(VLOOKUP(H4065,Translation!$A:$C,3,FALSE),H4065)","v":"Nouvelle-Écosse"}]
[5,"T3 2019","ASSURANCE DE PORTEFEUILLE","Nouveau-Brunswick",0.10877547985315741,"Prêts hypothécaires assurés au cours de la période selon la province (%)","0.1","Nouveau-Brunswick",{"$f":"IFERROR(VLOOKUP(A4066,Translation!$A:$C,3,FALSE),A4066)","v":5},{"$f":"IFERROR(VLOOKUP(B4066,Translation!$A:$C,3,FALSE),B4066)","v":"T3 2019"},{"$f":"IFERROR(VLOOKUP(C4066,Translation!$A:$C,3,FALSE),C4066)","v":"ASSURANCE DE PORTEFEUILLE"},{"$f":"IFERROR(VLOOKUP(D4066,Translation!$A:$C,3,FALSE),D4066)","v":"Nouveau-Brunswick"},{"$f":"IFERROR(VLOOKUP(E4066,Translation!$A:$C,3,FALSE),E4066)","v":0.10877547985315741},{"$f":"IFERROR(VLOOKUP(F4066,Translation!$A:$C,3,FALSE),F4066)","v":"Prêts hypothécaires assurés au cours de la période selon la province (%)"},{"$f":"IFERROR(VLOOKUP(G4066,Translation!$A:$C,3,FALSE),G4066)","v":"0.1"},{"$f":"IFERROR(VLOOKUP(H4066,Translation!$A:$C,3,FALSE),H4066)","v":"Nouveau-Brunswick"}]
[5,"T3 2019","ASSURANCE DE PORTEFEUILLE","Manitoba",1.7464992224836988,"Prêts hypothécaires assurés au cours de la période selon la province (%)","1.7","Manitoba",{"$f":"IFERROR(VLOOKUP(A4069,Translation!$A:$C,3,FALSE),A4069)","v":5},{"$f":"IFERROR(VLOOKUP(B4069,Translation!$A:$C,3,FALSE),B4069)","v":"T3 2019"},{"$f":"IFERROR(VLOOKUP(C4069,Translation!$A:$C,3,FALSE),C4069)","v":"ASSURANCE DE PORTEFEUILLE"},{"$f":"IFERROR(VLOOKUP(D4069,Translation!$A:$C,3,FALSE),D4069)","v":"Manitoba"},{"$f":"IFERROR(VLOOKUP(E4069,Translation!$A:$C,3,FALSE),E4069)","v":1.7464992224836988},{"$f":"IFERROR(VLOOKUP(F4069,Translation!$A:$C,3,FALSE),F4069)","v":"Prêts hypothécaires assurés au cours de la période selon la province (%)"},{"$f":"IFERROR(VLOOKUP(G4069,Translation!$A:$C,3,FALSE),G4069)","v":"1.7"},{"$f":"IFERROR(VLOOKUP(H4069,Translation!$A:$C,3,FALSE),H4069)","v":"Manitoba"}]
[5,"T3 2019","ASSURANCE DE PORTEFEUILLE","Saskatchewan",2.9945795398353319,"Prêts hypothécaires assurés au cours de la période selon la province (%)","3.0","Saskatchewan",{"$f":"IFERROR(VLOOKUP(A4070,Translation!$A:$C,3,FALSE),A4070)","v":5},{"$f":"IFERROR(VLOOKUP(B4070,Translation!$A:$C,3,FALSE),B4070)","v":"T3 2019"},{"$f":"IFERROR(VLOOKUP(C4070,Translation!$A:$C,3,FALSE),C4070)","v":"ASSURANCE DE PORTEFEUILLE"},{"$f":"IFERROR(VLOOKUP(D4070,Translation!$A:$C,3,FALSE),D4070)","v":"Saskatchewan"},{"$f":"IFERROR(VLOOKUP(E4070,Translation!$A:$C,3,FALSE),E4070)","v":2.9945795398353319},{"$f":"IFERROR(VLOOKUP(F4070,Translation!$A:$C,3,FALSE),F4070)","v":"Prêts hypothécaires assurés au cours de la période selon la province (%)"},{"$f":"IFERROR(VLOOKUP(G4070,Translation!$A:$C,3,FALSE),G4070)","v":"3.0"},{"$f":"IFERROR(VLOOKUP(H4070,Translation!$A:$C,3,FALSE),H4070)","v":"Saskatchewan"}]
[5,"T3 2019","IMMEUBLES COLLECTIFS RÉSIDENTIELS","Nouvelle-Écosse",3.6683761363246594,"Prêts hypothécaires assurés au cours de la période selon la province (%)","3.7","Nouvelle-Écosse",{"$f":"IFERROR(VLOOKUP(A4074,Translation!$A:$C,3,FALSE),A4074)","v":5},{"$f":"IFERROR(VLOOKUP(B4074,Translation!$A:$C,3,FALSE),B4074)","v":"T3 2019"},{"$f":"IFERROR(VLOOKUP(C4074,Translation!$A:$C,3,FALSE),C4074)","v":"IMMEUBLES COLLECTIFS RÉSIDENTIELS"},{"$f":"IFERROR(VLOOKUP(D4074,Translation!$A:$C,3,FALSE),D4074)","v":"Nouvelle-Écosse"},{"$f":"IFERROR(VLOOKUP(E4074,Translation!$A:$C,3,FALSE),E4074)","v":3.6683761363246594},{"$f":"IFERROR(VLOOKUP(F4074,Translation!$A:$C,3,FALSE),F4074)","v":"Prêts hypothécaires assurés au cours de la période selon la province (%)"},{"$f":"IFERROR(VLOOKUP(G4074,Translation!$A:$C,3,FALSE),G4074)","v":"3.7"},{"$f":"IFERROR(VLOOKUP(H4074,Translation!$A:$C,3,FALSE),H4074)","v":"Nouvelle-Écosse"}]
[5,"T3 2019","IMMEUBLES COLLECTIFS RÉSIDENTIELS","Québec",25.102224156897368,"Prêts hypothécaires assurés au cours de la période selon la province (%)","25.1","Québec",{"$f":"IFERROR(VLOOKUP(A4076,Translation!$A:$C,3,FALSE),A4076)","v":5},{"$f":"IFERROR(VLOOKUP(B4076,Translation!$A:$C,3,FALSE),B4076)","v":"T3 2019"},{"$f":"IFERROR(VLOOKUP(C4076,Translation!$A:$C,3,FALSE),C4076)","v":"IMMEUBLES COLLECTIFS RÉSIDENTIELS"},{"$f":"IFERROR(VLOOKUP(D4076,Translation!$A:$C,3,FALSE),D4076)","v":"Québec"},{"$f":"IFERROR(VLOOKUP(E4076,Translation!$A:$C,3,FALSE),E4076)","v":25.102224156897368},{"$f":"IFERROR(VLOOKUP(F4076,Translation!$A:$C,3,FALSE),F4076)","v":"Prêts hypothécaires assurés au cours de la période selon la province (%)"},{"$f":"IFERROR(VLOOKUP(G4076,Translation!$A:$C,3,FALSE),G4076)","v":"25.1"},{"$f":"IFERROR(VLOOKUP(H4076,Translation!$A:$C,3,FALSE),H4076)","v":"Québec"}]
[5,"T3 2019","IMMEUBLES COLLECTIFS RÉSIDENTIELS","Saskatchewan",0.20627971340200524,"Prêts hypothécaires assurés au cours de la période selon la province (%)","0.2","Saskatchewan",{"$f":"IFERROR(VLOOKUP(A4079,Translation!$A:$C,3,FALSE),A4079)","v":5},{"$f":"IFERROR(VLOOKUP(B4079,Translation!$A:$C,3,FALSE),B4079)","v":"T3 2019"},{"$f":"IFERROR(VLOOKUP(C4079,Translation!$A:$C,3,FALSE),C4079)","v":"IMMEUBLES COLLECTIFS RÉSIDENTIELS"},{"$f":"IFERROR(VLOOKUP(D4079,Translation!$A:$C,3,FALSE),D4079)","v":"Saskatchewan"},{"$f":"IFERROR(VLOOKUP(E4079,Translation!$A:$C,3,FALSE),E4079)","v":0.20627971340200524},{"$f":"IFERROR(VLOOKUP(F4079,Translation!$A:$C,3,FALSE),F4079)","v":"Prêts hypothécaires assurés au cours de la période selon la province (%)"},{"$f":"IFERROR(VLOOKUP(G4079,Translation!$A:$C,3,FALSE),G4079)","v":"0.2"},{"$f":"IFERROR(VLOOKUP(H4079,Translation!$A:$C,3,FALSE),H4079)","v":"Saskatchewan"}]
[5,"T3 2019","IMMEUBLES COLLECTIFS RÉSIDENTIELS","Alberta",4.7016128503853043,"Prêts hypothécaires assurés au cours de la période selon la province (%)","4.7","Alberta",{"$f":"IFERROR(VLOOKUP(A4080,Translation!$A:$C,3,FALSE),A4080)","v":5},{"$f":"IFERROR(VLOOKUP(B4080,Translation!$A:$C,3,FALSE),B4080)","v":"T3 2019"},{"$f":"IFERROR(VLOOKUP(C4080,Translation!$A:$C,3,FALSE),C4080)","v":"IMMEUBLES COLLECTIFS RÉSIDENTIELS"},{"$f":"IFERROR(VLOOKUP(D4080,Translation!$A:$C,3,FALSE),D4080)","v":"Alberta"},{"$f":"IFERROR(VLOOKUP(E4080,Translation!$A:$C,3,FALSE),E4080)","v":4.7016128503853043},{"$f":"IFERROR(VLOOKUP(F4080,Translation!$A:$C,3,FALSE),F4080)","v":"Prêts hypothécaires assurés au cours de la période selon la province (%)"},{"$f":"IFERROR(VLOOKUP(G4080,Translation!$A:$C,3,FALSE),G4080)","v":"4.7"},{"$f":"IFERROR(VLOOKUP(H4080,Translation!$A:$C,3,FALSE),H4080)","v":"Alberta"}]
[5,"T2 2019","PROPRIÉTAIRES-OCCUPANTS, À L’UNITÉ","Île-du-Prince-Édouard",0.3248869219155941,"Prêts hypothécaires assurés au cours de la période selon la province (%)","0.3","Île-du-Prince-Édouard",{"$f":"IFERROR(VLOOKUP(A4084,Translation!$A:$C,3,FALSE),A4084)","v":5},{"$f":"IFERROR(VLOOKUP(B4084,Translation!$A:$C,3,FALSE),B4084)","v":"T2 2019"},{"$f":"IFERROR(VLOOKUP(C4084,Translation!$A:$C,3,FALSE),C4084)","v":"PROPRIÉTAIRES-OCCUPANTS, À L’UNITÉ"},{"$f":"IFERROR(VLOOKUP(D4084,Translation!$A:$C,3,FALSE),D4084)","v":"Île-du-Prince-Édouard"},{"$f":"IFERROR(VLOOKUP(E4084,Translation!$A:$C,3,FALSE),E4084)","v":0.3248869219155941},{"$f":"IFERROR(VLOOKUP(F4084,Translation!$A:$C,3,FALSE),F4084)","v":"Prêts hypothécaires assurés au cours de la période selon la province (%)"},{"$f":"IFERROR(VLOOKUP(G4084,Translation!$A:$C,3,FALSE),G4084)","v":"0.3"},{"$f":"IFERROR(VLOOKUP(H4084,Translation!$A:$C,3,FALSE),H4084)","v":"Île-du-Prince-Édouard"}]
[5,"T2 2019","PROPRIÉTAIRES-OCCUPANTS, À L’UNITÉ","Nouvelle-Écosse",1.9903984376769099,"Prêts hypothécaires assurés au cours de la période selon la province (%)","2.0","Nouvelle-Écosse",{"$f":"IFERROR(VLOOKUP(A4085,Translation!$A:$C,3,FALSE),A4085)","v":5},{"$f":"IFERROR(VLOOKUP(B4085,Translation!$A:$C,3,FALSE),B4085)","v":"T2 2019"},{"$f":"IFERROR(VLOOKUP(C4085,Translation!$A:$C,3,FALSE),C4085)","v":"PROPRIÉTAIRES-OCCUPANTS, À L’UNITÉ"},{"$f":"IFERROR(VLOOKUP(D4085,Translation!$A:$C,3,FALSE),D4085)","v":"Nouvelle-Écosse"},{"$f":"IFERROR(VLOOKUP(E4085,Translation!$A:$C,3,FALSE),E4085)","v":1.9903984376769099},{"$f":"IFERROR(VLOOKUP(F4085,Translation!$A:$C,3,FALSE),F4085)","v":"Prêts hypothécaires assurés au cours de la période selon la province (%)"},{"$f":"IFERROR(VLOOKUP(G4085,Translation!$A:$C,3,FALSE),G4085)","v":"2.0"},{"$f":"IFERROR(VLOOKUP(H4085,Translation!$A:$C,3,FALSE),H4085)","v":"Nouvelle-Écosse"}]
[5,"T2 2019","PROPRIÉTAIRES-OCCUPANTS, À L’UNITÉ","Québec",43.128140674666305,"Prêts hypothécaires assurés au cours de la période selon la province (%)","43.1","Québec",{"$f":"IFERROR(VLOOKUP(A4087,Translation!$A:$C,3,FALSE),A4087)","v":5},{"$f":"IFERROR(VLOOKUP(B4087,Translation!$A:$C,3,FALSE),B4087)","v":"T2 2019"},{"$f":"IFERROR(VLOOKUP(C4087,Translation!$A:$C,3,FALSE),C4087)","v":"PROPRIÉTAIRES-OCCUPANTS, À L’UNITÉ"},{"$f":"IFERROR(VLOOKUP(D4087,Translation!$A:$C,3,FALSE),D4087)","v":"Québec"},{"$f":"IFERROR(VLOOKUP(E4087,Translation!$A:$C,3,FALSE),E4087)","v":43.128140674666305},{"$f":"IFERROR(VLOOKUP(F4087,Translation!$A:$C,3,FALSE),F4087)","v":"Prêts hypothécaires assurés au cours de la période selon la province (%)"},{"$f":"IFERROR(VLOOKUP(G4087,Translation!$A:$C,3,FALSE),G4087)","v":"43.1"},{"$f":"IFERROR(VLOOKUP(H4087,Translation!$A:$C,3,FALSE),H4087)","v":"Québec"}]
[5,"T2 2019","PROPRIÉTAIRES-OCCUPANTS, À L’UNITÉ","Saskatchewan",2.5921666710456424,"Prêts hypothécaires assurés au cours de la période selon la province (%)","2.6","Saskatchewan",{"$f":"IFERROR(VLOOKUP(A4090,Translation!$A:$C,3,FALSE),A4090)","v":5},{"$f":"IFERROR(VLOOKUP(B4090,Translation!$A:$C,3,FALSE),B4090)","v":"T2 2019"},{"$f":"IFERROR(VLOOKUP(C4090,Translation!$A:$C,3,FALSE),C4090)","v":"PROPRIÉTAIRES-OCCUPANTS, À L’UNITÉ"},{"$f":"IFERROR(VLOOKUP(D4090,Translation!$A:$C,3,FALSE),D4090)","v":"Saskatchewan"},{"$f":"IFERROR(VLOOKUP(E4090,Translation!$A:$C,3,FALSE),E4090)","v":2.5921666710456424},{"$f":"IFERROR(VLOOKUP(F4090,Translation!$A:$C,3,FALSE),F4090)","v":"Prêts hypothécaires assurés au cours de la période selon la province (%)"},{"$f":"IFERROR(VLOOKUP(G4090,Translation!$A:$C,3,FALSE),G4090)","v":"2.6"},{"$f":"IFERROR(VLOOKUP(H4090,Translation!$A:$C,3,FALSE),H4090)","v":"Saskatchewan"}]
[5,"T2 2019","PROPRIÉTAIRES-OCCUPANTS, À L’UNITÉ","Territoires",0.5571250697022625,"Prêts hypothécaires assurés au cours de la période selon la province (%)","0.6","Territoires",{"$f":"IFERROR(VLOOKUP(A4093,Translation!$A:$C,3,FALSE),A4093)","v":5},{"$f":"IFERROR(VLOOKUP(B4093,Translation!$A:$C,3,FALSE),B4093)","v":"T2 2019"},{"$f":"IFERROR(VLOOKUP(C4093,Translation!$A:$C,3,FALSE),C4093)","v":"PROPRIÉTAIRES-OCCUPANTS, À L’UNITÉ"},{"$f":"IFERROR(VLOOKUP(D4093,Translation!$A:$C,3,FALSE),D4093)","v":"Territoires"},{"$f":"IFERROR(VLOOKUP(E4093,Translation!$A:$C,3,FALSE),E4093)","v":0.5571250697022625},{"$f":"IFERROR(VLOOKUP(F4093,Translation!$A:$C,3,FALSE),F4093)","v":"Prêts hypothécaires assurés au cours de la période selon la province (%)"},{"$f":"IFERROR(VLOOKUP(G4093,Translation!$A:$C,3,FALSE),G4093)","v":"0.6"},{"$f":"IFERROR(VLOOKUP(H4093,Translation!$A:$C,3,FALSE),H4093)","v":"Territoires"}]
[5,"T2 2019","ASSURANCE DE PORTEFEUILLE","Île-du-Prince-Édouard",0.19934295252681763,"Prêts hypothécaires assurés au cours de la période selon la province (%)","0.2","Île-du-Prince-Édouard",{"$f":"IFERROR(VLOOKUP(A4095,Translation!$A:$C,3,FALSE),A4095)","v":5},{"$f":"IFERROR(VLOOKUP(B4095,Translation!$A:$C,3,FALSE),B4095)","v":"T2 2019"},{"$f":"IFERROR(VLOOKUP(C4095,Translation!$A:$C,3,FALSE),C4095)","v":"ASSURANCE DE PORTEFEUILLE"},{"$f":"IFERROR(VLOOKUP(D4095,Translation!$A:$C,3,FALSE),D4095)","v":"Île-du-Prince-Édouard"},{"$f":"IFERROR(VLOOKUP(E4095,Translation!$A:$C,3,FALSE),E4095)","v":0.19934295252681763},{"$f":"IFERROR(VLOOKUP(F4095,Translation!$A:$C,3,FALSE),F4095)","v":"Prêts hypothécaires assurés au cours de la période selon la province (%)"},{"$f":"IFERROR(VLOOKUP(G4095,Translation!$A:$C,3,FALSE),G4095)","v":"0.2"},{"$f":"IFERROR(VLOOKUP(H4095,Translation!$A:$C,3,FALSE),H4095)","v":"Île-du-Prince-Édouard"}]
[5,"T2 2019","ASSURANCE DE PORTEFEUILLE","Québec",12.50960378719507,"Prêts hypothécaires assurés au cours de la période selon la province (%)","12.5","Québec",{"$f":"IFERROR(VLOOKUP(A4098,Translation!$A:$C,3,FALSE),A4098)","v":5},{"$f":"IFERROR(VLOOKUP(B4098,Translation!$A:$C,3,FALSE),B4098)","v":"T2 2019"},{"$f":"IFERROR(VLOOKUP(C4098,Translation!$A:$C,3,FALSE),C4098)","v":"ASSURANCE DE PORTEFEUILLE"},{"$f":"IFERROR(VLOOKUP(D4098,Translation!$A:$C,3,FALSE),D4098)","v":"Québec"},{"$f":"IFERROR(VLOOKUP(E4098,Translation!$A:$C,3,FALSE),E4098)","v":12.50960378719507},{"$f":"IFERROR(VLOOKUP(F4098,Translation!$A:$C,3,FALSE),F4098)","v":"Prêts hypothécaires assurés au cours de la période selon la province (%)"},{"$f":"IFERROR(VLOOKUP(G4098,Translation!$A:$C,3,FALSE),G4098)","v":"12.5"},{"$f":"IFERROR(VLOOKUP(H4098,Translation!$A:$C,3,FALSE),H4098)","v":"Québec"}]
[5,"T2 2019","ASSURANCE DE PORTEFEUILLE","Saskatchewan",2.1315821155066312,"Prêts hypothécaires assurés au cours de la période selon la province (%)","2.1","Saskatchewan",{"$f":"IFERROR(VLOOKUP(A4101,Translation!$A:$C,3,FALSE),A4101)","v":5},{"$f":"IFERROR(VLOOKUP(B4101,Translation!$A:$C,3,FALSE),B4101)","v":"T2 2019"},{"$f":"IFERROR(VLOOKUP(C4101,Translation!$A:$C,3,FALSE),C4101)","v":"ASSURANCE DE PORTEFEUILLE"},{"$f":"IFERROR(VLOOKUP(D4101,Translation!$A:$C,3,FALSE),D4101)","v":"Saskatchewan"},{"$f":"IFERROR(VLOOKUP(E4101,Translation!$A:$C,3,FALSE),E4101)","v":2.1315821155066312},{"$f":"IFERROR(VLOOKUP(F4101,Translation!$A:$C,3,FALSE),F4101)","v":"Prêts hypothécaires assurés au cours de la période selon la province (%)"},{"$f":"IFERROR(VLOOKUP(G4101,Translation!$A:$C,3,FALSE),G4101)","v":"2.1"},{"$f":"IFERROR(VLOOKUP(H4101,Translation!$A:$C,3,FALSE),H4101)","v":"Saskatchewan"}]
[5,"T2 2019","ASSURANCE DE PORTEFEUILLE","Colombie-Britannique",17.258977447196667,"Prêts hypothécaires assurés au cours de la période selon la province (%)","17.3","Colombie-Britannique",{"$f":"IFERROR(VLOOKUP(A4103,Translation!$A:$C,3,FALSE),A4103)","v":5},{"$f":"IFERROR(VLOOKUP(B4103,Translation!$A:$C,3,FALSE),B4103)","v":"T2 2019"},{"$f":"IFERROR(VLOOKUP(C4103,Translation!$A:$C,3,FALSE),C4103)","v":"ASSURANCE DE PORTEFEUILLE"},{"$f":"IFERROR(VLOOKUP(D4103,Translation!$A:$C,3,FALSE),D4103)","v":"Colombie-Britannique"},{"$f":"IFERROR(VLOOKUP(E4103,Translation!$A:$C,3,FALSE),E4103)","v":17.258977447196667},{"$f":"IFERROR(VLOOKUP(F4103,Translation!$A:$C,3,FALSE),F4103)","v":"Prêts hypothécaires assurés au cours de la période selon la province (%)"},{"$f":"IFERROR(VLOOKUP(G4103,Translation!$A:$C,3,FALSE),G4103)","v":"17.3"},{"$f":"IFERROR(VLOOKUP(H4103,Translation!$A:$C,3,FALSE),H4103)","v":"Colombie-Britannique"}]
[5,"T2 2019","IMMEUBLES COLLECTIFS RÉSIDENTIELS","Terre-Neuve-et-Labrador",0.15905441377273499,"Prêts hypothécaires assurés au cours de la période selon la province (%)","0.2","Terre-Neuve-et-Labrador",{"$f":"IFERROR(VLOOKUP(A4104,Translation!$A:$C,3,FALSE),A4104)","v":5},{"$f":"IFERROR(VLOOKUP(B4104,Translation!$A:$C,3,FALSE),B4104)","v":"T2 2019"},{"$f":"IFERROR(VLOOKUP(C4104,Translation!$A:$C,3,FALSE),C4104)","v":"IMMEUBLES COLLECTIFS RÉSIDENTIELS"},{"$f":"IFERROR(VLOOKUP(D4104,Translation!$A:$C,3,FALSE),D4104)","v":"Terre-Neuve-et-Labrador"},{"$f":"IFERROR(VLOOKUP(E4104,Translation!$A:$C,3,FALSE),E4104)","v":0.15905441377273499},{"$f":"IFERROR(VLOOKUP(F4104,Translation!$A:$C,3,FALSE),F4104)","v":"Prêts hypothécaires assurés au cours de la période selon la province (%)"},{"$f":"IFERROR(VLOOKUP(G4104,Translation!$A:$C,3,FALSE),G4104)","v":"0.2"},{"$f":"IFERROR(VLOOKUP(H4104,Translation!$A:$C,3,FALSE),H4104)","v":"Terre-Neuve-et-Labrador"}]
[5,"T2 2019","IMMEUBLES COLLECTIFS RÉSIDENTIELS","Nouvelle-Écosse",5.9640325127221292,"Prêts hypothécaires assurés au cours de la période selon la province (%)","6.0","Nouvelle-Écosse",{"$f":"IFERROR(VLOOKUP(A4106,Translation!$A:$C,3,FALSE),A4106)","v":5},{"$f":"IFERROR(VLOOKUP(B4106,Translation!$A:$C,3,FALSE),B4106)","v":"T2 2019"},{"$f":"IFERROR(VLOOKUP(C4106,Translation!$A:$C,3,FALSE),C4106)","v":"IMMEUBLES COLLECTIFS RÉSIDENTIELS"},{"$f":"IFERROR(VLOOKUP(D4106,Translation!$A:$C,3,FALSE),D4106)","v":"Nouvelle-Écosse"},{"$f":"IFERROR(VLOOKUP(E4106,Translation!$A:$C,3,FALSE),E4106)","v":5.9640325127221292},{"$f":"IFERROR(VLOOKUP(F4106,Translation!$A:$C,3,FALSE),F4106)","v":"Prêts hypothécaires assurés au cours de la période selon la province (%)"},{"$f":"IFERROR(VLOOKUP(G4106,Translation!$A:$C,3,FALSE),G4106)","v":"6.0"},{"$f":"IFERROR(VLOOKUP(H4106,Translation!$A:$C,3,FALSE),H4106)","v":"Nouvelle-Écosse"}]
[5,"T2 2019","IMMEUBLES COLLECTIFS RÉSIDENTIELS","Ontario",29.06804967843922,"Prêts hypothécaires assurés au cours de la période selon la province (%)","29.1","Ontario",{"$f":"IFERROR(VLOOKUP(A4109,Translation!$A:$C,3,FALSE),A4109)","v":5},{"$f":"IFERROR(VLOOKUP(B4109,Translation!$A:$C,3,FALSE),B4109)","v":"T2 2019"},{"$f":"IFERROR(VLOOKUP(C4109,Translation!$A:$C,3,FALSE),C4109)","v":"IMMEUBLES COLLECTIFS RÉSIDENTIELS"},{"$f":"IFERROR(VLOOKUP(D4109,Translation!$A:$C,3,FALSE),D4109)","v":"Ontario"},{"$f":"IFERROR(VLOOKUP(E4109,Translation!$A:$C,3,FALSE),E4109)","v":29.06804967843922},{"$f":"IFERROR(VLOOKUP(F4109,Translation!$A:$C,3,FALSE),F4109)","v":"Prêts hypothécaires assurés au cours de la période selon la province (%)"},{"$f":"IFERROR(VLOOKUP(G4109,Translation!$A:$C,3,FALSE),G4109)","v":"29.1"},{"$f":"IFERROR(VLOOKUP(H4109,Translation!$A:$C,3,FALSE),H4109)","v":"Ontario"}]
[5,"T2 2019","IMMEUBLES COLLECTIFS RÉSIDENTIELS","Alberta",6.9780744360770797,"Prêts hypothécaires assurés au cours de la période selon la province (%)","7.0","Alberta",{"$f":"IFERROR(VLOOKUP(A4112,Translation!$A:$C,3,FALSE),A4112)","v":5},{"$f":"IFERROR(VLOOKUP(B4112,Translation!$A:$C,3,FALSE),B4112)","v":"T2 2019"},{"$f":"IFERROR(VLOOKUP(C4112,Translation!$A:$C,3,FALSE),C4112)","v":"IMMEUBLES COLLECTIFS RÉSIDENTIELS"},{"$f":"IFERROR(VLOOKUP(D4112,Translation!$A:$C,3,FALSE),D4112)","v":"Alberta"},{"$f":"IFERROR(VLOOKUP(E4112,Translation!$A:$C,3,FALSE),E4112)","v":6.9780744360770797},{"$f":"IFERROR(VLOOKUP(F4112,Translation!$A:$C,3,FALSE),F4112)","v":"Prêts hypothécaires assurés au cours de la période selon la province (%)"},{"$f":"IFERROR(VLOOKUP(G4112,Translation!$A:$C,3,FALSE),G4112)","v":"7.0"},{"$f":"IFERROR(VLOOKUP(H4112,Translation!$A:$C,3,FALSE),H4112)","v":"Alberta"}]
[5,"T2 2019","IMMEUBLES COLLECTIFS RÉSIDENTIELS","Territoires",0.34491940175930358,"Prêts hypothécaires assurés au cours de la période selon la province (%)","0.3","Territoires",{"$f":"IFERROR(VLOOKUP(A4114,Translation!$A:$C,3,FALSE),A4114)","v":5},{"$f":"IFERROR(VLOOKUP(B4114,Translation!$A:$C,3,FALSE),B4114)","v":"T2 2019"},{"$f":"IFERROR(VLOOKUP(C4114,Translation!$A:$C,3,FALSE),C4114)","v":"IMMEUBLES COLLECTIFS RÉSIDENTIELS"},{"$f":"IFERROR(VLOOKUP(D4114,Translation!$A:$C,3,FALSE),D4114)","v":"Territoires"},{"$f":"IFERROR(VLOOKUP(E4114,Translation!$A:$C,3,FALSE),E4114)","v":0.34491940175930358},{"$f":"IFERROR(VLOOKUP(F4114,Translation!$A:$C,3,FALSE),F4114)","v":"Prêts hypothécaires assurés au cours de la période selon la province (%)"},{"$f":"IFERROR(VLOOKUP(G4114,Translation!$A:$C,3,FALSE),G4114)","v":"0.3"},{"$f":"IFERROR(VLOOKUP(H4114,Translation!$A:$C,3,FALSE),H4114)","v":"Territoires"}]
[5,"T1 2019","PROPRIÉTAIRES-OCCUPANTS, À L’UNITÉ","Nouvelle-Écosse",2.3318964264057276,"Prêts hypothécaires assurés au cours de la période selon la province (%)","2.3","Nouvelle-Écosse",{"$f":"IFERROR(VLOOKUP(A4117,Translation!$A:$C,3,FALSE),A4117)","v":5},{"$f":"IFERROR(VLOOKUP(B4117,Translation!$A:$C,3,FALSE),B4117)","v":"T1 2019"},{"$f":"IFERROR(VLOOKUP(C4117,Translation!$A:$C,3,FALSE),C4117)","v":"PROPRIÉTAIRES-OCCUPANTS, À L’UNITÉ"},{"$f":"IFERROR(VLOOKUP(D4117,Translation!$A:$C,3,FALSE),D4117)","v":"Nouvelle-Écosse"},{"$f":"IFERROR(VLOOKUP(E4117,Translation!$A:$C,3,FALSE),E4117)","v":2.3318964264057276},{"$f":"IFERROR(VLOOKUP(F4117,Translation!$A:$C,3,FALSE),F4117)","v":"Prêts hypothécaires assurés au cours de la période selon la province (%)"},{"$f":"IFERROR(VLOOKUP(G4117,Translation!$A:$C,3,FALSE),G4117)","v":"2.3"},{"$f":"IFERROR(VLOOKUP(H4117,Translation!$A:$C,3,FALSE),H4117)","v":"Nouvelle-Écosse"}]
[5,"T1 2019","PROPRIÉTAIRES-OCCUPANTS, À L’UNITÉ","Ontario",33.050157915198497,"Prêts hypothécaires assurés au cours de la période selon la province (%)","33.1","Ontario",{"$f":"IFERROR(VLOOKUP(A4120,Translation!$A:$C,3,FALSE),A4120)","v":5},{"$f":"IFERROR(VLOOKUP(B4120,Translation!$A:$C,3,FALSE),B4120)","v":"T1 2019"},{"$f":"IFERROR(VLOOKUP(C4120,Translation!$A:$C,3,FALSE),C4120)","v":"PROPRIÉTAIRES-OCCUPANTS, À L’UNITÉ"},{"$f":"IFERROR(VLOOKUP(D4120,Translation!$A:$C,3,FALSE),D4120)","v":"Ontario"},{"$f":"IFERROR(VLOOKUP(E4120,Translation!$A:$C,3,FALSE),E4120)","v":33.050157915198497},{"$f":"IFERROR(VLOOKUP(F4120,Translation!$A:$C,3,FALSE),F4120)","v":"Prêts hypothécaires assurés au cours de la période selon la province (%)"},{"$f":"IFERROR(VLOOKUP(G4120,Translation!$A:$C,3,FALSE),G4120)","v":"33.1"},{"$f":"IFERROR(VLOOKUP(H4120,Translation!$A:$C,3,FALSE),H4120)","v":"Ontario"}]
[5,"T1 2019","PROPRIÉTAIRES-OCCUPANTS, À L’UNITÉ","Saskatchewan",2.7250238034651204,"Prêts hypothécaires assurés au cours de la période selon la province (%)","2.7","Saskatchewan",{"$f":"IFERROR(VLOOKUP(A4122,Translation!$A:$C,3,FALSE),A4122)","v":5},{"$f":"IFERROR(VLOOKUP(B4122,Translation!$A:$C,3,FALSE),B4122)","v":"T1 2019"},{"$f":"IFERROR(VLOOKUP(C4122,Translation!$A:$C,3,FALSE),C4122)","v":"PROPRIÉTAIRES-OCCUPANTS, À L’UNITÉ"},{"$f":"IFERROR(VLOOKUP(D4122,Translation!$A:$C,3,FALSE),D4122)","v":"Saskatchewan"},{"$f":"IFERROR(VLOOKUP(E4122,Translation!$A:$C,3,FALSE),E4122)","v":2.7250238034651204},{"$f":"IFERROR(VLOOKUP(F4122,Translation!$A:$C,3,FALSE),F4122)","v":"Prêts hypothécaires assurés au cours de la période selon la province (%)"},{"$f":"IFERROR(VLOOKUP(G4122,Translation!$A:$C,3,FALSE),G4122)","v":"2.7"},{"$f":"IFERROR(VLOOKUP(H4122,Translation!$A:$C,3,FALSE),H4122)","v":"Saskatchewan"}]
[5,"T1 2019","PROPRIÉTAIRES-OCCUPANTS, À L’UNITÉ","Alberta",17.27330900584322,"Prêts hypothécaires assurés au cours de la période selon la province (%)","17.3","Alberta",{"$f":"IFERROR(VLOOKUP(A4123,Translation!$A:$C,3,FALSE),A4123)","v":5},{"$f":"IFERROR(VLOOKUP(B4123,Translation!$A:$C,3,FALSE),B4123)","v":"T1 2019"},{"$f":"IFERROR(VLOOKUP(C4123,Translation!$A:$C,3,FALSE),C4123)","v":"PROPRIÉTAIRES-OCCUPANTS, À L’UNITÉ"},{"$f":"IFERROR(VLOOKUP(D4123,Translation!$A:$C,3,FALSE),D4123)","v":"Alberta"},{"$f":"IFERROR(VLOOKUP(E4123,Translation!$A:$C,3,FALSE),E4123)","v":17.27330900584322},{"$f":"IFERROR(VLOOKUP(F4123,Translation!$A:$C,3,FALSE),F4123)","v":"Prêts hypothécaires assurés au cours de la période selon la province (%)"},{"$f":"IFERROR(VLOOKUP(G4123,Translation!$A:$C,3,FALSE),G4123)","v":"17.3"},{"$f":"IFERROR(VLOOKUP(H4123,Translation!$A:$C,3,FALSE),H4123)","v":"Alberta"}]
[5,"T1 2019","ASSURANCE DE PORTEFEUILLE","Île-du-Prince-Édouard",4.4625898313764498E-2,"Prêts hypothécaires assurés au cours de la période selon la province (%)","0.0","Île-du-Prince-Édouard",{"$f":"IFERROR(VLOOKUP(A4127,Translation!$A:$C,3,FALSE),A4127)","v":5},{"$f":"IFERROR(VLOOKUP(B4127,Translation!$A:$C,3,FALSE),B4127)","v":"T1 2019"},{"$f":"IFERROR(VLOOKUP(C4127,Translation!$A:$C,3,FALSE),C4127)","v":"ASSURANCE DE PORTEFEUILLE"},{"$f":"IFERROR(VLOOKUP(D4127,Translation!$A:$C,3,FALSE),D4127)","v":"Île-du-Prince-Édouard"},{"$f":"IFERROR(VLOOKUP(E4127,Translation!$A:$C,3,FALSE),E4127)","v":4.4625898313764498E-2},{"$f":"IFERROR(VLOOKUP(F4127,Translation!$A:$C,3,FALSE),F4127)","v":"Prêts hypothécaires assurés au cours de la période selon la province (%)"},{"$f":"IFERROR(VLOOKUP(G4127,Translation!$A:$C,3,FALSE),G4127)","v":"0.0"},{"$f":"IFERROR(VLOOKUP(H4127,Translation!$A:$C,3,FALSE),H4127)","v":"Île-du-Prince-Édouard"}]
[5,"T1 2019","ASSURANCE DE PORTEFEUILLE","Nouvelle-Écosse",0.91649732251807747,"Prêts hypothécaires assurés au cours de la période selon la province (%)","0.9","Nouvelle-Écosse",{"$f":"IFERROR(VLOOKUP(A4128,Translation!$A:$C,3,FALSE),A4128)","v":5},{"$f":"IFERROR(VLOOKUP(B4128,Translation!$A:$C,3,FALSE),B4128)","v":"T1 2019"},{"$f":"IFERROR(VLOOKUP(C4128,Translation!$A:$C,3,FALSE),C4128)","v":"ASSURANCE DE PORTEFEUILLE"},{"$f":"IFERROR(VLOOKUP(D4128,Translation!$A:$C,3,FALSE),D4128)","v":"Nouvelle-Écosse"},{"$f":"IFERROR(VLOOKUP(E4128,Translation!$A:$C,3,FALSE),E4128)","v":0.91649732251807747},{"$f":"IFERROR(VLOOKUP(F4128,Translation!$A:$C,3,FALSE),F4128)","v":"Prêts hypothécaires assurés au cours de la période selon la province (%)"},{"$f":"IFERROR(VLOOKUP(G4128,Translation!$A:$C,3,FALSE),G4128)","v":"0.9"},{"$f":"IFERROR(VLOOKUP(H4128,Translation!$A:$C,3,FALSE),H4128)","v":"Nouvelle-Écosse"}]
[5,"T1 2019","ASSURANCE DE PORTEFEUILLE","Ontario",58.168703924163992,"Prêts hypothécaires assurés au cours de la période selon la province (%)","58.2","Ontario",{"$f":"IFERROR(VLOOKUP(A4131,Translation!$A:$C,3,FALSE),A4131)","v":5},{"$f":"IFERROR(VLOOKUP(B4131,Translation!$A:$C,3,FALSE),B4131)","v":"T1 2019"},{"$f":"IFERROR(VLOOKUP(C4131,Translation!$A:$C,3,FALSE),C4131)","v":"ASSURANCE DE PORTEFEUILLE"},{"$f":"IFERROR(VLOOKUP(D4131,Translation!$A:$C,3,FALSE),D4131)","v":"Ontario"},{"$f":"IFERROR(VLOOKUP(E4131,Translation!$A:$C,3,FALSE),E4131)","v":58.168703924163992},{"$f":"IFERROR(VLOOKUP(F4131,Translation!$A:$C,3,FALSE),F4131)","v":"Prêts hypothécaires assurés au cours de la période selon la province (%)"},{"$f":"IFERROR(VLOOKUP(G4131,Translation!$A:$C,3,FALSE),G4131)","v":"58.2"},{"$f":"IFERROR(VLOOKUP(H4131,Translation!$A:$C,3,FALSE),H4131)","v":"Ontario"}]
[5,"T1 2019","ASSURANCE DE PORTEFEUILLE","Saskatchewan",3.996024903446151,"Prêts hypothécaires assurés au cours de la période selon la province (%)","4.0","Saskatchewan",{"$f":"IFERROR(VLOOKUP(A4133,Translation!$A:$C,3,FALSE),A4133)","v":5},{"$f":"IFERROR(VLOOKUP(B4133,Translation!$A:$C,3,FALSE),B4133)","v":"T1 2019"},{"$f":"IFERROR(VLOOKUP(C4133,Translation!$A:$C,3,FALSE),C4133)","v":"ASSURANCE DE PORTEFEUILLE"},{"$f":"IFERROR(VLOOKUP(D4133,Translation!$A:$C,3,FALSE),D4133)","v":"Saskatchewan"},{"$f":"IFERROR(VLOOKUP(E4133,Translation!$A:$C,3,FALSE),E4133)","v":3.996024903446151},{"$f":"IFERROR(VLOOKUP(F4133,Translation!$A:$C,3,FALSE),F4133)","v":"Prêts hypothécaires assurés au cours de la période selon la province (%)"},{"$f":"IFERROR(VLOOKUP(G4133,Translation!$A:$C,3,FALSE),G4133)","v":"4.0"},{"$f":"IFERROR(VLOOKUP(H4133,Translation!$A:$C,3,FALSE),H4133)","v":"Saskatchewan"}]
[5,"T1 2019","ASSURANCE DE PORTEFEUILLE","Territoires",2.2429490856022128E-2,"Prêts hypothécaires assurés au cours de la période selon la province (%)","0.0","Territoires",{"$f":"IFERROR(VLOOKUP(A4136,Translation!$A:$C,3,FALSE),A4136)","v":5},{"$f":"IFERROR(VLOOKUP(B4136,Translation!$A:$C,3,FALSE),B4136)","v":"T1 2019"},{"$f":"IFERROR(VLOOKUP(C4136,Translation!$A:$C,3,FALSE),C4136)","v":"ASSURANCE DE PORTEFEUILLE"},{"$f":"IFERROR(VLOOKUP(D4136,Translation!$A:$C,3,FALSE),D4136)","v":"Territoires"},{"$f":"IFERROR(VLOOKUP(E4136,Translation!$A:$C,3,FALSE),E4136)","v":2.2429490856022128E-2},{"$f":"IFERROR(VLOOKUP(F4136,Translation!$A:$C,3,FALSE),F4136)","v":"Prêts hypothécaires assurés au cours de la période selon la province (%)"},{"$f":"IFERROR(VLOOKUP(G4136,Translation!$A:$C,3,FALSE),G4136)","v":"0.0"},{"$f":"IFERROR(VLOOKUP(H4136,Translation!$A:$C,3,FALSE),H4136)","v":"Territoires"}]
[5,"T1 2019","IMMEUBLES COLLECTIFS RÉSIDENTIELS","Nouvelle-Écosse",2.9690062596620845,"Prêts hypothécaires assurés au cours de la période selon la province (%)","3.0","Nouvelle-Écosse",{"$f":"IFERROR(VLOOKUP(A4138,Translation!$A:$C,3,FALSE),A4138)","v":5},{"$f":"IFERROR(VLOOKUP(B4138,Translation!$A:$C,3,FALSE),B4138)","v":"T1 2019"},{"$f":"IFERROR(VLOOKUP(C4138,Translation!$A:$C,3,FALSE),C4138)","v":"IMMEUBLES COLLECTIFS RÉSIDENTIELS"},{"$f":"IFERROR(VLOOKUP(D4138,Translation!$A:$C,3,FALSE),D4138)","v":"Nouvelle-Écosse"},{"$f":"IFERROR(VLOOKUP(E4138,Translation!$A:$C,3,FALSE),E4138)","v":2.9690062596620845},{"$f":"IFERROR(VLOOKUP(F4138,Translation!$A:$C,3,FALSE),F4138)","v":"Prêts hypothécaires assurés au cours de la période selon la province (%)"},{"$f":"IFERROR(VLOOKUP(G4138,Translation!$A:$C,3,FALSE),G4138)","v":"3.0"},{"$f":"IFERROR(VLOOKUP(H4138,Translation!$A:$C,3,FALSE),H4138)","v":"Nouvelle-Écosse"}]
[5,"T1 2019","IMMEUBLES COLLECTIFS RÉSIDENTIELS","Ontario",44.910955175676605,"Prêts hypothécaires assurés au cours de la période selon la province (%)","44.9","Ontario",{"$f":"IFERROR(VLOOKUP(A4141,Translation!$A:$C,3,FALSE),A4141)","v":5},{"$f":"IFERROR(VLOOKUP(B4141,Translation!$A:$C,3,FALSE),B4141)","v":"T1 2019"},{"$f":"IFERROR(VLOOKUP(C4141,Translation!$A:$C,3,FALSE),C4141)","v":"IMMEUBLES COLLECTIFS RÉSIDENTIELS"},{"$f":"IFERROR(VLOOKUP(D4141,Translation!$A:$C,3,FALSE),D4141)","v":"Ontario"},{"$f":"IFERROR(VLOOKUP(E4141,Translation!$A:$C,3,FALSE),E4141)","v":44.910955175676605},{"$f":"IFERROR(VLOOKUP(F4141,Translation!$A:$C,3,FALSE),F4141)","v":"Prêts hypothécaires assurés au cours de la période selon la province (%)"},{"$f":"IFERROR(VLOOKUP(G4141,Translation!$A:$C,3,FALSE),G4141)","v":"44.9"},{"$f":"IFERROR(VLOOKUP(H4141,Translation!$A:$C,3,FALSE),H4141)","v":"Ontario"}]
[5,"T1 2019","IMMEUBLES COLLECTIFS RÉSIDENTIELS","Manitoba",2.2517178512648464,"Prêts hypothécaires assurés au cours de la période selon la province (%)","2.3","Manitoba",{"$f":"IFERROR(VLOOKUP(A4142,Translation!$A:$C,3,FALSE),A4142)","v":5},{"$f":"IFERROR(VLOOKUP(B4142,Translation!$A:$C,3,FALSE),B4142)","v":"T1 2019"},{"$f":"IFERROR(VLOOKUP(C4142,Translation!$A:$C,3,FALSE),C4142)","v":"IMMEUBLES COLLECTIFS RÉSIDENTIELS"},{"$f":"IFERROR(VLOOKUP(D4142,Translation!$A:$C,3,FALSE),D4142)","v":"Manitoba"},{"$f":"IFERROR(VLOOKUP(E4142,Translation!$A:$C,3,FALSE),E4142)","v":2.2517178512648464},{"$f":"IFERROR(VLOOKUP(F4142,Translation!$A:$C,3,FALSE),F4142)","v":"Prêts hypothécaires assurés au cours de la période selon la province (%)"},{"$f":"IFERROR(VLOOKUP(G4142,Translation!$A:$C,3,FALSE),G4142)","v":"2.3"},{"$f":"IFERROR(VLOOKUP(H4142,Translation!$A:$C,3,FALSE),H4142)","v":"Manitoba"}]
[5,"T1 2019","IMMEUBLES COLLECTIFS RÉSIDENTIELS","Territoires",0.36582542607797569,"Prêts hypothécaires assurés au cours de la période selon la province (%)","0.4","Territoires",{"$f":"IFERROR(VLOOKUP(A4146,Translation!$A:$C,3,FALSE),A4146)","v":5},{"$f":"IFERROR(VLOOKUP(B4146,Translation!$A:$C,3,FALSE),B4146)","v":"T1 2019"},{"$f":"IFERROR(VLOOKUP(C4146,Translation!$A:$C,3,FALSE),C4146)","v":"IMMEUBLES COLLECTIFS RÉSIDENTIELS"},{"$f":"IFERROR(VLOOKUP(D4146,Translation!$A:$C,3,FALSE),D4146)","v":"Territoires"},{"$f":"IFERROR(VLOOKUP(E4146,Translation!$A:$C,3,FALSE),E4146)","v":0.36582542607797569},{"$f":"IFERROR(VLOOKUP(F4146,Translation!$A:$C,3,FALSE),F4146)","v":"Prêts hypothécaires assurés au cours de la période selon la province (%)"},{"$f":"IFERROR(VLOOKUP(G4146,Translation!$A:$C,3,FALSE),G4146)","v":"0.4"},{"$f":"IFERROR(VLOOKUP(H4146,Translation!$A:$C,3,FALSE),H4146)","v":"Territoires"}]
[5,"T4 2018","PROPRIÉTAIRES-OCCUPANTS, À L’UNITÉ","Terre-Neuve-et-Labrador",1.1795091446593216,"Prêts hypothécaires assurés au cours de la période selon la province (%)","1.2","Terre-Neuve-et-Labrador",{"$f":"IFERROR(VLOOKUP(A4147,Translation!$A:$C,3,FALSE),A4147)","v":5},{"$f":"IFERROR(VLOOKUP(B4147,Translation!$A:$C,3,FALSE),B4147)","v":"T4 2018"},{"$f":"IFERROR(VLOOKUP(C4147,Translation!$A:$C,3,FALSE),C4147)","v":"PROPRIÉTAIRES-OCCUPANTS, À L’UNITÉ"},{"$f":"IFERROR(VLOOKUP(D4147,Translation!$A:$C,3,FALSE),D4147)","v":"Terre-Neuve-et-Labrador"},{"$f":"IFERROR(VLOOKUP(E4147,Translation!$A:$C,3,FALSE),E4147)","v":1.1795091446593216},{"$f":"IFERROR(VLOOKUP(F4147,Translation!$A:$C,3,FALSE),F4147)","v":"Prêts hypothécaires assurés au cours de la période selon la province (%)"},{"$f":"IFERROR(VLOOKUP(G4147,Translation!$A:$C,3,FALSE),G4147)","v":"1.2"},{"$f":"IFERROR(VLOOKUP(H4147,Translation!$A:$C,3,FALSE),H4147)","v":"Terre-Neuve-et-Labrador"}]
[5,"T4 2018","PROPRIÉTAIRES-OCCUPANTS, À L’UNITÉ","Nouvelle-Écosse",2.3876041421715546,"Prêts hypothécaires assurés au cours de la période selon la province (%)","2.4","Nouvelle-Écosse",{"$f":"IFERROR(VLOOKUP(A4151,Translation!$A:$C,3,FALSE),A4151)","v":5},{"$f":"IFERROR(VLOOKUP(B4151,Translation!$A:$C,3,FALSE),B4151)","v":"T4 2018"},{"$f":"IFERROR(VLOOKUP(C4151,Translation!$A:$C,3,FALSE),C4151)","v":"PROPRIÉTAIRES-OCCUPANTS, À L’UNITÉ"},{"$f":"IFERROR(VLOOKUP(D4151,Translation!$A:$C,3,FALSE),D4151)","v":"Nouvelle-Écosse"},{"$f":"IFERROR(VLOOKUP(E4151,Translation!$A:$C,3,FALSE),E4151)","v":2.3876041421715546},{"$f":"IFERROR(VLOOKUP(F4151,Translation!$A:$C,3,FALSE),F4151)","v":"Prêts hypothécaires assurés au cours de la période selon la province (%)"},{"$f":"IFERROR(VLOOKUP(G4151,Translation!$A:$C,3,FALSE),G4151)","v":"2.4"},{"$f":"IFERROR(VLOOKUP(H4151,Translation!$A:$C,3,FALSE),H4151)","v":"Nouvelle-Écosse"}]
[5,"Cumul 2017","PROPRIÉTAIRES-OCCUPANTS, À L’UNITÉ","Nouvelle-Écosse",2.0203322967731432,"Prêts hypothécaires assurés au cours de la période selon la province (%)","2.0","Nouvelle-Écosse",{"$f":"IFERROR(VLOOKUP(A4152,Translation!$A:$C,3,FALSE),A4152)","v":5},{"$f":"IFERROR(VLOOKUP(B4152,Translation!$A:$C,3,FALSE),B4152)","v":"Cumul 2017"},{"$f":"IFERROR(VLOOKUP(C4152,Translation!$A:$C,3,FALSE),C4152)","v":"PROPRIÉTAIRES-OCCUPANTS, À L’UNITÉ"},{"$f":"IFERROR(VLOOKUP(D4152,Translation!$A:$C,3,FALSE),D4152)","v":"Nouvelle-Écosse"},{"$f":"IFERROR(VLOOKUP(E4152,Translation!$A:$C,3,FALSE),E4152)","v":2.0203322967731432},{"$f":"IFERROR(VLOOKUP(F4152,Translation!$A:$C,3,FALSE),F4152)","v":"Prêts hypothécaires assurés au cours de la période selon la province (%)"},{"$f":"IFERROR(VLOOKUP(G4152,Translation!$A:$C,3,FALSE),G4152)","v":"2.0"},{"$f":"IFERROR(VLOOKUP(H4152,Translation!$A:$C,3,FALSE),H4152)","v":"Nouvelle-Écosse"}]
[5,"Cumul 2017","PROPRIÉTAIRES-OCCUPANTS, À L’UNITÉ","Québec",26.400361724759563,"Prêts hypothécaires assurés au cours de la période selon la province (%)","26.4","Québec",{"$f":"IFERROR(VLOOKUP(A4156,Translation!$A:$C,3,FALSE),A4156)","v":5},{"$f":"IFERROR(VLOOKUP(B4156,Translation!$A:$C,3,FALSE),B4156)","v":"Cumul 2017"},{"$f":"IFERROR(VLOOKUP(C4156,Translation!$A:$C,3,FALSE),C4156)","v":"PROPRIÉTAIRES-OCCUPANTS, À L’UNITÉ"},{"$f":"IFERROR(VLOOKUP(D4156,Translation!$A:$C,3,FALSE),D4156)","v":"Québec"},{"$f":"IFERROR(VLOOKUP(E4156,Translation!$A:$C,3,FALSE),E4156)","v":26.400361724759563},{"$f":"IFERROR(VLOOKUP(F4156,Translation!$A:$C,3,FALSE),F4156)","v":"Prêts hypothécaires assurés au cours de la période selon la province (%)"},{"$f":"IFERROR(VLOOKUP(G4156,Translation!$A:$C,3,FALSE),G4156)","v":"26.4"},{"$f":"IFERROR(VLOOKUP(H4156,Translation!$A:$C,3,FALSE),H4156)","v":"Québec"}]
[5,"T4 2018","PROPRIÉTAIRES-OCCUPANTS, À L’UNITÉ","Ontario",33.728388662234572,"Prêts hypothécaires assurés au cours de la période selon la province (%)","33.7","Ontario",{"$f":"IFERROR(VLOOKUP(A4157,Translation!$A:$C,3,FALSE),A4157)","v":5},{"$f":"IFERROR(VLOOKUP(B4157,Translation!$A:$C,3,FALSE),B4157)","v":"T4 2018"},{"$f":"IFERROR(VLOOKUP(C4157,Translation!$A:$C,3,FALSE),C4157)","v":"PROPRIÉTAIRES-OCCUPANTS, À L’UNITÉ"},{"$f":"IFERROR(VLOOKUP(D4157,Translation!$A:$C,3,FALSE),D4157)","v":"Ontario"},{"$f":"IFERROR(VLOOKUP(E4157,Translation!$A:$C,3,FALSE),E4157)","v":33.728388662234572},{"$f":"IFERROR(VLOOKUP(F4157,Translation!$A:$C,3,FALSE),F4157)","v":"Prêts hypothécaires assurés au cours de la période selon la province (%)"},{"$f":"IFERROR(VLOOKUP(G4157,Translation!$A:$C,3,FALSE),G4157)","v":"33.7"},{"$f":"IFERROR(VLOOKUP(H4157,Translation!$A:$C,3,FALSE),H4157)","v":"Ontario"}]
[5,"T4 2018","PROPRIÉTAIRES-OCCUPANTS, À L’UNITÉ","Saskatchewan",2.6940890008978,"Prêts hypothécaires assurés au cours de la période selon la province (%)","2.7","Saskatchewan",{"$f":"IFERROR(VLOOKUP(A4161,Translation!$A:$C,3,FALSE),A4161)","v":5},{"$f":"IFERROR(VLOOKUP(B4161,Translation!$A:$C,3,FALSE),B4161)","v":"T4 2018"},{"$f":"IFERROR(VLOOKUP(C4161,Translation!$A:$C,3,FALSE),C4161)","v":"PROPRIÉTAIRES-OCCUPANTS, À L’UNITÉ"},{"$f":"IFERROR(VLOOKUP(D4161,Translation!$A:$C,3,FALSE),D4161)","v":"Saskatchewan"},{"$f":"IFERROR(VLOOKUP(E4161,Translation!$A:$C,3,FALSE),E4161)","v":2.6940890008978},{"$f":"IFERROR(VLOOKUP(F4161,Translation!$A:$C,3,FALSE),F4161)","v":"Prêts hypothécaires assurés au cours de la période selon la province (%)"},{"$f":"IFERROR(VLOOKUP(G4161,Translation!$A:$C,3,FALSE),G4161)","v":"2.7"},{"$f":"IFERROR(VLOOKUP(H4161,Translation!$A:$C,3,FALSE),H4161)","v":"Saskatchewan"}]
[5,"Cumul 2017","PROPRIÉTAIRES-OCCUPANTS, À L’UNITÉ","Saskatchewan",3.1345444730232179,"Prêts hypothécaires assurés au cours de la période selon la province (%)","3.1","Saskatchewan",{"$f":"IFERROR(VLOOKUP(A4162,Translation!$A:$C,3,FALSE),A4162)","v":5},{"$f":"IFERROR(VLOOKUP(B4162,Translation!$A:$C,3,FALSE),B4162)","v":"Cumul 2017"},{"$f":"IFERROR(VLOOKUP(C4162,Translation!$A:$C,3,FALSE),C4162)","v":"PROPRIÉTAIRES-OCCUPANTS, À L’UNITÉ"},{"$f":"IFERROR(VLOOKUP(D4162,Translation!$A:$C,3,FALSE),D4162)","v":"Saskatchewan"},{"$f":"IFERROR(VLOOKUP(E4162,Translation!$A:$C,3,FALSE),E4162)","v":3.1345444730232179},{"$f":"IFERROR(VLOOKUP(F4162,Translation!$A:$C,3,FALSE),F4162)","v":"Prêts hypothécaires assurés au cours de la période selon la province (%)"},{"$f":"IFERROR(VLOOKUP(G4162,Translation!$A:$C,3,FALSE),G4162)","v":"3.1"},{"$f":"IFERROR(VLOOKUP(H4162,Translation!$A:$C,3,FALSE),H4162)","v":"Saskatchewan"}]
[5,"T4 2018","PROPRIÉTAIRES-OCCUPANTS, À L’UNITÉ","Colombie-Britannique",10.520440834753304,"Prêts hypothécaires assurés au cours de la période selon la province (%)","10.5","Colombie-Britannique",{"$f":"IFERROR(VLOOKUP(A4165,Translation!$A:$C,3,FALSE),A4165)","v":5},{"$f":"IFERROR(VLOOKUP(B4165,Translation!$A:$C,3,FALSE),B4165)","v":"T4 2018"},{"$f":"IFERROR(VLOOKUP(C4165,Translation!$A:$C,3,FALSE),C4165)","v":"PROPRIÉTAIRES-OCCUPANTS, À L’UNITÉ"},{"$f":"IFERROR(VLOOKUP(D4165,Translation!$A:$C,3,FALSE),D4165)","v":"Colombie-Britannique"},{"$f":"IFERROR(VLOOKUP(E4165,Translation!$A:$C,3,FALSE),E4165)","v":10.520440834753304},{"$f":"IFERROR(VLOOKUP(F4165,Translation!$A:$C,3,FALSE),F4165)","v":"Prêts hypothécaires assurés au cours de la période selon la province (%)"},{"$f":"IFERROR(VLOOKUP(G4165,Translation!$A:$C,3,FALSE),G4165)","v":"10.5"},{"$f":"IFERROR(VLOOKUP(H4165,Translation!$A:$C,3,FALSE),H4165)","v":"Colombie-Britannique"}]
[5,"Cumul 2017","PROPRIÉTAIRES-OCCUPANTS, À L’UNITÉ","Colombie-Britannique",11.22098404560626,"Prêts hypothécaires assurés au cours de la période selon la province (%)","11.2","Colombie-Britannique",{"$f":"IFERROR(VLOOKUP(A4166,Translation!$A:$C,3,FALSE),A4166)","v":5},{"$f":"IFERROR(VLOOKUP(B4166,Translation!$A:$C,3,FALSE),B4166)","v":"Cumul 2017"},{"$f":"IFERROR(VLOOKUP(C4166,Translation!$A:$C,3,FALSE),C4166)","v":"PROPRIÉTAIRES-OCCUPANTS, À L’UNITÉ"},{"$f":"IFERROR(VLOOKUP(D4166,Translation!$A:$C,3,FALSE),D4166)","v":"Colombie-Britannique"},{"$f":"IFERROR(VLOOKUP(E4166,Translation!$A:$C,3,FALSE),E4166)","v":11.22098404560626},{"$f":"IFERROR(VLOOKUP(F4166,Translation!$A:$C,3,FALSE),F4166)","v":"Prêts hypothécaires assurés au cours de la période selon la province (%)"},{"$f":"IFERROR(VLOOKUP(G4166,Translation!$A:$C,3,FALSE),G4166)","v":"11.2"},{"$f":"IFERROR(VLOOKUP(H4166,Translation!$A:$C,3,FALSE),H4166)","v":"Colombie-Britannique"}]
[5,"Cumul 2017","ASSURANCE DE PORTEFEUILLE","Terre-Neuve-et-Labrador",0.31971399920393861,"Prêts hypothécaires assurés au cours de la période selon la province (%)","0.3","Terre-Neuve-et-Labrador",{"$f":"IFERROR(VLOOKUP(A4170,Translation!$A:$C,3,FALSE),A4170)","v":5},{"$f":"IFERROR(VLOOKUP(B4170,Translation!$A:$C,3,FALSE),B4170)","v":"Cumul 2017"},{"$f":"IFERROR(VLOOKUP(C4170,Translation!$A:$C,3,FALSE),C4170)","v":"ASSURANCE DE PORTEFEUILLE"},{"$f":"IFERROR(VLOOKUP(D4170,Translation!$A:$C,3,FALSE),D4170)","v":"Terre-Neuve-et-Labrador"},{"$f":"IFERROR(VLOOKUP(E4170,Translation!$A:$C,3,FALSE),E4170)","v":0.31971399920393861},{"$f":"IFERROR(VLOOKUP(F4170,Translation!$A:$C,3,FALSE),F4170)","v":"Prêts hypothécaires assurés au cours de la période selon la province (%)"},{"$f":"IFERROR(VLOOKUP(G4170,Translation!$A:$C,3,FALSE),G4170)","v":"0.3"},{"$f":"IFERROR(VLOOKUP(H4170,Translation!$A:$C,3,FALSE),H4170)","v":"Terre-Neuve-et-Labrador"}]
[5,"Cumul 2017","ASSURANCE DE PORTEFEUILLE","Île-du-Prince-Édouard",3.7531801087515845E-2,"Prêts hypothécaires assurés au cours de la période selon la province (%)","0.0","Île-du-Prince-Édouard",{"$f":"IFERROR(VLOOKUP(A4172,Translation!$A:$C,3,FALSE),A4172)","v":5},{"$f":"IFERROR(VLOOKUP(B4172,Translation!$A:$C,3,FALSE),B4172)","v":"Cumul 2017"},{"$f":"IFERROR(VLOOKUP(C4172,Translation!$A:$C,3,FALSE),C4172)","v":"ASSURANCE DE PORTEFEUILLE"},{"$f":"IFERROR(VLOOKUP(D4172,Translation!$A:$C,3,FALSE),D4172)","v":"Île-du-Prince-Édouard"},{"$f":"IFERROR(VLOOKUP(E4172,Translation!$A:$C,3,FALSE),E4172)","v":3.7531801087515845E-2},{"$f":"IFERROR(VLOOKUP(F4172,Translation!$A:$C,3,FALSE),F4172)","v":"Prêts hypothécaires assurés au cours de la période selon la province (%)"},{"$f":"IFERROR(VLOOKUP(G4172,Translation!$A:$C,3,FALSE),G4172)","v":"0.0"},{"$f":"IFERROR(VLOOKUP(H4172,Translation!$A:$C,3,FALSE),H4172)","v":"Île-du-Prince-Édouard"}]
[5,"T4 2018","ASSURANCE DE PORTEFEUILLE","Nouveau-Brunswick",0.28234749119150321,"Prêts hypothécaires assurés au cours de la période selon la province (%)","0.3","Nouveau-Brunswick",{"$f":"IFERROR(VLOOKUP(A4175,Translation!$A:$C,3,FALSE),A4175)","v":5},{"$f":"IFERROR(VLOOKUP(B4175,Translation!$A:$C,3,FALSE),B4175)","v":"T4 2018"},{"$f":"IFERROR(VLOOKUP(C4175,Translation!$A:$C,3,FALSE),C4175)","v":"ASSURANCE DE PORTEFEUILLE"},{"$f":"IFERROR(VLOOKUP(D4175,Translation!$A:$C,3,FALSE),D4175)","v":"Nouveau-Brunswick"},{"$f":"IFERROR(VLOOKUP(E4175,Translation!$A:$C,3,FALSE),E4175)","v":0.28234749119150321},{"$f":"IFERROR(VLOOKUP(F4175,Translation!$A:$C,3,FALSE),F4175)","v":"Prêts hypothécaires assurés au cours de la période selon la province (%)"},{"$f":"IFERROR(VLOOKUP(G4175,Translation!$A:$C,3,FALSE),G4175)","v":"0.3"},{"$f":"IFERROR(VLOOKUP(H4175,Translation!$A:$C,3,FALSE),H4175)","v":"Nouveau-Brunswick"}]
[5,"Cumul 2017","ASSURANCE DE PORTEFEUILLE","Nouveau-Brunswick",0.20876094855749841,"Prêts hypothécaires assurés au cours de la période selon la province (%)","0.2","Nouveau-Brunswick",{"$f":"IFERROR(VLOOKUP(A4176,Translation!$A:$C,3,FALSE),A4176)","v":5},{"$f":"IFERROR(VLOOKUP(B4176,Translation!$A:$C,3,FALSE),B4176)","v":"Cumul 2017"},{"$f":"IFERROR(VLOOKUP(C4176,Translation!$A:$C,3,FALSE),C4176)","v":"ASSURANCE DE PORTEFEUILLE"},{"$f":"IFERROR(VLOOKUP(D4176,Translation!$A:$C,3,FALSE),D4176)","v":"Nouveau-Brunswick"},{"$f":"IFERROR(VLOOKUP(E4176,Translation!$A:$C,3,FALSE),E4176)","v":0.20876094855749841},{"$f":"IFERROR(VLOOKUP(F4176,Translation!$A:$C,3,FALSE),F4176)","v":"Prêts hypothécaires assurés au cours de la période selon la province (%)"},{"$f":"IFERROR(VLOOKUP(G4176,Translation!$A:$C,3,FALSE),G4176)","v":"0.2"},{"$f":"IFERROR(VLOOKUP(H4176,Translation!$A:$C,3,FALSE),H4176)","v":"Nouveau-Brunswick"}]
[5,"Cumul 2017","ASSURANCE DE PORTEFEUILLE","Ontario",53.944557676736792,"Prêts hypothécaires assurés au cours de la période selon la province (%)","53.9","Ontario",{"$f":"IFERROR(VLOOKUP(A4180,Translation!$A:$C,3,FALSE),A4180)","v":5},{"$f":"IFERROR(VLOOKUP(B4180,Translation!$A:$C,3,FALSE),B4180)","v":"Cumul 2017"},{"$f":"IFERROR(VLOOKUP(C4180,Translation!$A:$C,3,FALSE),C4180)","v":"ASSURANCE DE PORTEFEUILLE"},{"$f":"IFERROR(VLOOKUP(D4180,Translation!$A:$C,3,FALSE),D4180)","v":"Ontario"},{"$f":"IFERROR(VLOOKUP(E4180,Translation!$A:$C,3,FALSE),E4180)","v":53.944557676736792},{"$f":"IFERROR(VLOOKUP(F4180,Translation!$A:$C,3,FALSE),F4180)","v":"Prêts hypothécaires assurés au cours de la période selon la province (%)"},{"$f":"IFERROR(VLOOKUP(G4180,Translation!$A:$C,3,FALSE),G4180)","v":"53.9"},{"$f":"IFERROR(VLOOKUP(H4180,Translation!$A:$C,3,FALSE),H4180)","v":"Ontario"}]
[5,"T4 2018","ASSURANCE DE PORTEFEUILLE","Manitoba",1.0639961758990601,"Prêts hypothécaires assurés au cours de la période selon la province (%)","1.1","Manitoba",{"$f":"IFERROR(VLOOKUP(A4181,Translation!$A:$C,3,FALSE),A4181)","v":5},{"$f":"IFERROR(VLOOKUP(B4181,Translation!$A:$C,3,FALSE),B4181)","v":"T4 2018"},{"$f":"IFERROR(VLOOKUP(C4181,Translation!$A:$C,3,FALSE),C4181)","v":"ASSURANCE DE PORTEFEUILLE"},{"$f":"IFERROR(VLOOKUP(D4181,Translation!$A:$C,3,FALSE),D4181)","v":"Manitoba"},{"$f":"IFERROR(VLOOKUP(E4181,Translation!$A:$C,3,FALSE),E4181)","v":1.0639961758990601},{"$f":"IFERROR(VLOOKUP(F4181,Translation!$A:$C,3,FALSE),F4181)","v":"Prêts hypothécaires assurés au cours de la période selon la province (%)"},{"$f":"IFERROR(VLOOKUP(G4181,Translation!$A:$C,3,FALSE),G4181)","v":"1.1"},{"$f":"IFERROR(VLOOKUP(H4181,Translation!$A:$C,3,FALSE),H4181)","v":"Manitoba"}]
[5,"T4 2018","ASSURANCE DE PORTEFEUILLE","Saskatchewan",3.744848307792715,"Prêts hypothécaires assurés au cours de la période selon la province (%)","3.7","Saskatchewan",{"$f":"IFERROR(VLOOKUP(A4183,Translation!$A:$C,3,FALSE),A4183)","v":5},{"$f":"IFERROR(VLOOKUP(B4183,Translation!$A:$C,3,FALSE),B4183)","v":"T4 2018"},{"$f":"IFERROR(VLOOKUP(C4183,Translation!$A:$C,3,FALSE),C4183)","v":"ASSURANCE DE PORTEFEUILLE"},{"$f":"IFERROR(VLOOKUP(D4183,Translation!$A:$C,3,FALSE),D4183)","v":"Saskatchewan"},{"$f":"IFERROR(VLOOKUP(E4183,Translation!$A:$C,3,FALSE),E4183)","v":3.744848307792715},{"$f":"IFERROR(VLOOKUP(F4183,Translation!$A:$C,3,FALSE),F4183)","v":"Prêts hypothécaires assurés au cours de la période selon la province (%)"},{"$f":"IFERROR(VLOOKUP(G4183,Translation!$A:$C,3,FALSE),G4183)","v":"3.7"},{"$f":"IFERROR(VLOOKUP(H4183,Translation!$A:$C,3,FALSE),H4183)","v":"Saskatchewan"}]
[5,"Cumul 2017","ASSURANCE DE PORTEFEUILLE","Alberta",9.969657697977258,"Prêts hypothécaires assurés au cours de la période selon la province (%)","10.0","Alberta",{"$f":"IFERROR(VLOOKUP(A4186,Translation!$A:$C,3,FALSE),A4186)","v":5},{"$f":"IFERROR(VLOOKUP(B4186,Translation!$A:$C,3,FALSE),B4186)","v":"Cumul 2017"},{"$f":"IFERROR(VLOOKUP(C4186,Translation!$A:$C,3,FALSE),C4186)","v":"ASSURANCE DE PORTEFEUILLE"},{"$f":"IFERROR(VLOOKUP(D4186,Translation!$A:$C,3,FALSE),D4186)","v":"Alberta"},{"$f":"IFERROR(VLOOKUP(E4186,Translation!$A:$C,3,FALSE),E4186)","v":9.969657697977258},{"$f":"IFERROR(VLOOKUP(F4186,Translation!$A:$C,3,FALSE),F4186)","v":"Prêts hypothécaires assurés au cours de la période selon la province (%)"},{"$f":"IFERROR(VLOOKUP(G4186,Translation!$A:$C,3,FALSE),G4186)","v":"10.0"},{"$f":"IFERROR(VLOOKUP(H4186,Translation!$A:$C,3,FALSE),H4186)","v":"Alberta"}]
[5,"Cumul 2017","ASSURANCE DE PORTEFEUILLE","Territoires",5.0512985573342224E-2,"Prêts hypothécaires assurés au cours de la période selon la province (%)","0.1","Territoires",{"$f":"IFERROR(VLOOKUP(A4189,Translation!$A:$C,3,FALSE),A4189)","v":5},{"$f":"IFERROR(VLOOKUP(B4189,Translation!$A:$C,3,FALSE),B4189)","v":"Cumul 2017"},{"$f":"IFERROR(VLOOKUP(C4189,Translation!$A:$C,3,FALSE),C4189)","v":"ASSURANCE DE PORTEFEUILLE"},{"$f":"IFERROR(VLOOKUP(D4189,Translation!$A:$C,3,FALSE),D4189)","v":"Territoires"},{"$f":"IFERROR(VLOOKUP(E4189,Translation!$A:$C,3,FALSE),E4189)","v":5.0512985573342224E-2},{"$f":"IFERROR(VLOOKUP(F4189,Translation!$A:$C,3,FALSE),F4189)","v":"Prêts hypothécaires assurés au cours de la période selon la province (%)"},{"$f":"IFERROR(VLOOKUP(G4189,Translation!$A:$C,3,FALSE),G4189)","v":"0.1"},{"$f":"IFERROR(VLOOKUP(H4189,Translation!$A:$C,3,FALSE),H4189)","v":"Territoires"}]
[5,"Cumul 2017","IMMEUBLES COLLECTIFS RÉSIDENTIELS","Terre-Neuve-et-Labrador",5.6827383702696278E-2,"Prêts hypothécaires assurés au cours de la période selon la province (%)","0.1","Terre-Neuve-et-Labrador",{"$f":"IFERROR(VLOOKUP(A4191,Translation!$A:$C,3,FALSE),A4191)","v":5},{"$f":"IFERROR(VLOOKUP(B4191,Translation!$A:$C,3,FALSE),B4191)","v":"Cumul 2017"},{"$f":"IFERROR(VLOOKUP(C4191,Translation!$A:$C,3,FALSE),C4191)","v":"IMMEUBLES COLLECTIFS RÉSIDENTIELS"},{"$f":"IFERROR(VLOOKUP(D4191,Translation!$A:$C,3,FALSE),D4191)","v":"Terre-Neuve-et-Labrador"},{"$f":"IFERROR(VLOOKUP(E4191,Translation!$A:$C,3,FALSE),E4191)","v":5.6827383702696278E-2},{"$f":"IFERROR(VLOOKUP(F4191,Translation!$A:$C,3,FALSE),F4191)","v":"Prêts hypothécaires assurés au cours de la période selon la province (%)"},{"$f":"IFERROR(VLOOKUP(G4191,Translation!$A:$C,3,FALSE),G4191)","v":"0.1"},{"$f":"IFERROR(VLOOKUP(H4191,Translation!$A:$C,3,FALSE),H4191)","v":"Terre-Neuve-et-Labrador"}]
[5,"T4 2018","IMMEUBLES COLLECTIFS RÉSIDENTIELS","Nouvelle-Écosse",5.7394988177067043,"Prêts hypothécaires assurés au cours de la période selon la province (%)","5.7","Nouvelle-Écosse",{"$f":"IFERROR(VLOOKUP(A4194,Translation!$A:$C,3,FALSE),A4194)","v":5},{"$f":"IFERROR(VLOOKUP(B4194,Translation!$A:$C,3,FALSE),B4194)","v":"T4 2018"},{"$f":"IFERROR(VLOOKUP(C4194,Translation!$A:$C,3,FALSE),C4194)","v":"IMMEUBLES COLLECTIFS RÉSIDENTIELS"},{"$f":"IFERROR(VLOOKUP(D4194,Translation!$A:$C,3,FALSE),D4194)","v":"Nouvelle-Écosse"},{"$f":"IFERROR(VLOOKUP(E4194,Translation!$A:$C,3,FALSE),E4194)","v":5.7394988177067043},{"$f":"IFERROR(VLOOKUP(F4194,Translation!$A:$C,3,FALSE),F4194)","v":"Prêts hypothécaires assurés au cours de la période selon la province (%)"},{"$f":"IFERROR(VLOOKUP(G4194,Translation!$A:$C,3,FALSE),G4194)","v":"5.7"},{"$f":"IFERROR(VLOOKUP(H4194,Translation!$A:$C,3,FALSE),H4194)","v":"Nouvelle-Écosse"}]
[5,"Cumul 2017","IMMEUBLES COLLECTIFS RÉSIDENTIELS","Nouveau-Brunswick",0.34547423044989278,"Prêts hypothécaires assurés au cours de la période selon la province (%)","0.3","Nouveau-Brunswick",{"$f":"IFERROR(VLOOKUP(A4197,Translation!$A:$C,3,FALSE),A4197)","v":5},{"$f":"IFERROR(VLOOKUP(B4197,Translation!$A:$C,3,FALSE),B4197)","v":"Cumul 2017"},{"$f":"IFERROR(VLOOKUP(C4197,Translation!$A:$C,3,FALSE),C4197)","v":"IMMEUBLES COLLECTIFS RÉSIDENTIELS"},{"$f":"IFERROR(VLOOKUP(D4197,Translation!$A:$C,3,FALSE),D4197)","v":"Nouveau-Brunswick"},{"$f":"IFERROR(VLOOKUP(E4197,Translation!$A:$C,3,FALSE),E4197)","v":0.34547423044989278},{"$f":"IFERROR(VLOOKUP(F4197,Translation!$A:$C,3,FALSE),F4197)","v":"Prêts hypothécaires assurés au cours de la période selon la province (%)"},{"$f":"IFERROR(VLOOKUP(G4197,Translation!$A:$C,3,FALSE),G4197)","v":"0.3"},{"$f":"IFERROR(VLOOKUP(H4197,Translation!$A:$C,3,FALSE),H4197)","v":"Nouveau-Brunswick"}]
[5,"Cumul 2017","IMMEUBLES COLLECTIFS RÉSIDENTIELS","Québec",33.424362773724219,"Prêts hypothécaires assurés au cours de la période selon la province (%)","33.4","Québec",{"$f":"IFERROR(VLOOKUP(A4199,Translation!$A:$C,3,FALSE),A4199)","v":5},{"$f":"IFERROR(VLOOKUP(B4199,Translation!$A:$C,3,FALSE),B4199)","v":"Cumul 2017"},{"$f":"IFERROR(VLOOKUP(C4199,Translation!$A:$C,3,FALSE),C4199)","v":"IMMEUBLES COLLECTIFS RÉSIDENTIELS"},{"$f":"IFERROR(VLOOKUP(D4199,Translation!$A:$C,3,FALSE),D4199)","v":"Québec"},{"$f":"IFERROR(VLOOKUP(E4199,Translation!$A:$C,3,FALSE),E4199)","v":33.424362773724219},{"$f":"IFERROR(VLOOKUP(F4199,Translation!$A:$C,3,FALSE),F4199)","v":"Prêts hypothécaires assurés au cours de la période selon la province (%)"},{"$f":"IFERROR(VLOOKUP(G4199,Translation!$A:$C,3,FALSE),G4199)","v":"33.4"},{"$f":"IFERROR(VLOOKUP(H4199,Translation!$A:$C,3,FALSE),H4199)","v":"Québec"}]
[5,"T4 2018","IMMEUBLES COLLECTIFS RÉSIDENTIELS","Ontario",35.13095753781294,"Prêts hypothécaires assurés au cours de la période selon la province (%)","35.1","Ontario",{"$f":"IFERROR(VLOOKUP(A4200,Translation!$A:$C,3,FALSE),A4200)","v":5},{"$f":"IFERROR(VLOOKUP(B4200,Translation!$A:$C,3,FALSE),B4200)","v":"T4 2018"},{"$f":"IFERROR(VLOOKUP(C4200,Translation!$A:$C,3,FALSE),C4200)","v":"IMMEUBLES COLLECTIFS RÉSIDENTIELS"},{"$f":"IFERROR(VLOOKUP(D4200,Translation!$A:$C,3,FALSE),D4200)","v":"Ontario"},{"$f":"IFERROR(VLOOKUP(E4200,Translation!$A:$C,3,FALSE),E4200)","v":35.13095753781294},{"$f":"IFERROR(VLOOKUP(F4200,Translation!$A:$C,3,FALSE),F4200)","v":"Prêts hypothécaires assurés au cours de la période selon la province (%)"},{"$f":"IFERROR(VLOOKUP(G4200,Translation!$A:$C,3,FALSE),G4200)","v":"35.1"},{"$f":"IFERROR(VLOOKUP(H4200,Translation!$A:$C,3,FALSE),H4200)","v":"Ontario"}]
[5,"T4 2018","IMMEUBLES COLLECTIFS RÉSIDENTIELS","Manitoba",3.198043578839441,"Prêts hypothécaires assurés au cours de la période selon la province (%)","3.2","Manitoba",{"$f":"IFERROR(VLOOKUP(A4202,Translation!$A:$C,3,FALSE),A4202)","v":5},{"$f":"IFERROR(VLOOKUP(B4202,Translation!$A:$C,3,FALSE),B4202)","v":"T4 2018"},{"$f":"IFERROR(VLOOKUP(C4202,Translation!$A:$C,3,FALSE),C4202)","v":"IMMEUBLES COLLECTIFS RÉSIDENTIELS"},{"$f":"IFERROR(VLOOKUP(D4202,Translation!$A:$C,3,FALSE),D4202)","v":"Manitoba"},{"$f":"IFERROR(VLOOKUP(E4202,Translation!$A:$C,3,FALSE),E4202)","v":3.198043578839441},{"$f":"IFERROR(VLOOKUP(F4202,Translation!$A:$C,3,FALSE),F4202)","v":"Prêts hypothécaires assurés au cours de la période selon la province (%)"},{"$f":"IFERROR(VLOOKUP(G4202,Translation!$A:$C,3,FALSE),G4202)","v":"3.2"},{"$f":"IFERROR(VLOOKUP(H4202,Translation!$A:$C,3,FALSE),H4202)","v":"Manitoba"}]
[5,"Cumul 2017","IMMEUBLES COLLECTIFS RÉSIDENTIELS","Saskatchewan",1.4669053617782897,"Prêts hypothécaires assurés au cours de la période selon la province (%)","1.5","Saskatchewan",{"$f":"IFERROR(VLOOKUP(A4205,Translation!$A:$C,3,FALSE),A4205)","v":5},{"$f":"IFERROR(VLOOKUP(B4205,Translation!$A:$C,3,FALSE),B4205)","v":"Cumul 2017"},{"$f":"IFERROR(VLOOKUP(C4205,Translation!$A:$C,3,FALSE),C4205)","v":"IMMEUBLES COLLECTIFS RÉSIDENTIELS"},{"$f":"IFERROR(VLOOKUP(D4205,Translation!$A:$C,3,FALSE),D4205)","v":"Saskatchewan"},{"$f":"IFERROR(VLOOKUP(E4205,Translation!$A:$C,3,FALSE),E4205)","v":1.4669053617782897},{"$f":"IFERROR(VLOOKUP(F4205,Translation!$A:$C,3,FALSE),F4205)","v":"Prêts hypothécaires assurés au cours de la période selon la province (%)"},{"$f":"IFERROR(VLOOKUP(G4205,Translation!$A:$C,3,FALSE),G4205)","v":"1.5"},{"$f":"IFERROR(VLOOKUP(H4205,Translation!$A:$C,3,FALSE),H4205)","v":"Saskatchewan"}]
[5,"T4 2018","IMMEUBLES COLLECTIFS RÉSIDENTIELS","Colombie-Britannique",15.84217814008535,"Prêts hypothécaires assurés au cours de la période selon la province (%)","15.8","Colombie-Britannique",{"$f":"IFERROR(VLOOKUP(A4208,Translation!$A:$C,3,FALSE),A4208)","v":5},{"$f":"IFERROR(VLOOKUP(B4208,Translation!$A:$C,3,FALSE),B4208)","v":"T4 2018"},{"$f":"IFERROR(VLOOKUP(C4208,Translation!$A:$C,3,FALSE),C4208)","v":"IMMEUBLES COLLECTIFS RÉSIDENTIELS"},{"$f":"IFERROR(VLOOKUP(D4208,Translation!$A:$C,3,FALSE),D4208)","v":"Colombie-Britannique"},{"$f":"IFERROR(VLOOKUP(E4208,Translation!$A:$C,3,FALSE),E4208)","v":15.84217814008535},{"$f":"IFERROR(VLOOKUP(F4208,Translation!$A:$C,3,FALSE),F4208)","v":"Prêts hypothécaires assurés au cours de la période selon la province (%)"},{"$f":"IFERROR(VLOOKUP(G4208,Translation!$A:$C,3,FALSE),G4208)","v":"15.8"},{"$f":"IFERROR(VLOOKUP(H4208,Translation!$A:$C,3,FALSE),H4208)","v":"Colombie-Britannique"}]
[5,"T4 2018","IMMEUBLES COLLECTIFS RÉSIDENTIELS","Territoires",0.29828356347514057,"Prêts hypothécaires assurés au cours de la période selon la province (%)","0.3","Territoires",{"$f":"IFERROR(VLOOKUP(A4210,Translation!$A:$C,3,FALSE),A4210)","v":5},{"$f":"IFERROR(VLOOKUP(B4210,Translation!$A:$C,3,FALSE),B4210)","v":"T4 2018"},{"$f":"IFERROR(VLOOKUP(C4210,Translation!$A:$C,3,FALSE),C4210)","v":"IMMEUBLES COLLECTIFS RÉSIDENTIELS"},{"$f":"IFERROR(VLOOKUP(D4210,Translation!$A:$C,3,FALSE),D4210)","v":"Territoires"},{"$f":"IFERROR(VLOOKUP(E4210,Translation!$A:$C,3,FALSE),E4210)","v":0.29828356347514057},{"$f":"IFERROR(VLOOKUP(F4210,Translation!$A:$C,3,FALSE),F4210)","v":"Prêts hypothécaires assurés au cours de la période selon la province (%)"},{"$f":"IFERROR(VLOOKUP(G4210,Translation!$A:$C,3,FALSE),G4210)","v":"0.3"},{"$f":"IFERROR(VLOOKUP(H4210,Translation!$A:$C,3,FALSE),H4210)","v":"Territoires"}]
[5,"T3 2018","PROPRIÉTAIRES-OCCUPANTS, À L’UNITÉ","Île-du-Prince-Édouard",0.4259080039243956,"Prêts hypothécaires assurés au cours de la période selon la province (%)","0.4","Île-du-Prince-Édouard",{"$f":"IFERROR(VLOOKUP(A4213,Translation!$A:$C,3,FALSE),A4213)","v":5},{"$f":"IFERROR(VLOOKUP(B4213,Translation!$A:$C,3,FALSE),B4213)","v":"T3 2018"},{"$f":"IFERROR(VLOOKUP(C4213,Translation!$A:$C,3,FALSE),C4213)","v":"PROPRIÉTAIRES-OCCUPANTS, À L’UNITÉ"},{"$f":"IFERROR(VLOOKUP(D4213,Translation!$A:$C,3,FALSE),D4213)","v":"Île-du-Prince-Édouard"},{"$f":"IFERROR(VLOOKUP(E4213,Translation!$A:$C,3,FALSE),E4213)","v":0.4259080039243956},{"$f":"IFERROR(VLOOKUP(F4213,Translation!$A:$C,3,FALSE),F4213)","v":"Prêts hypothécaires assurés au cours de la période selon la province (%)"},{"$f":"IFERROR(VLOOKUP(G4213,Translation!$A:$C,3,FALSE),G4213)","v":"0.4"},{"$f":"IFERROR(VLOOKUP(H4213,Translation!$A:$C,3,FALSE),H4213)","v":"Île-du-Prince-Édouard"}]
[5,"T3 2018","PROPRIÉTAIRES-OCCUPANTS, À L’UNITÉ","Québec",23.538000350300099,"Prêts hypothécaires assurés au cours de la période selon la province (%)","23.5","Québec",{"$f":"IFERROR(VLOOKUP(A4216,Translation!$A:$C,3,FALSE),A4216)","v":5},{"$f":"IFERROR(VLOOKUP(B4216,Translation!$A:$C,3,FALSE),B4216)","v":"T3 2018"},{"$f":"IFERROR(VLOOKUP(C4216,Translation!$A:$C,3,FALSE),C4216)","v":"PROPRIÉTAIRES-OCCUPANTS, À L’UNITÉ"},{"$f":"IFERROR(VLOOKUP(D4216,Translation!$A:$C,3,FALSE),D4216)","v":"Québec"},{"$f":"IFERROR(VLOOKUP(E4216,Translation!$A:$C,3,FALSE),E4216)","v":23.538000350300099},{"$f":"IFERROR(VLOOKUP(F4216,Translation!$A:$C,3,FALSE),F4216)","v":"Prêts hypothécaires assurés au cours de la période selon la province (%)"},{"$f":"IFERROR(VLOOKUP(G4216,Translation!$A:$C,3,FALSE),G4216)","v":"23.5"},{"$f":"IFERROR(VLOOKUP(H4216,Translation!$A:$C,3,FALSE),H4216)","v":"Québec"}]
[5,"T3 2018","PROPRIÉTAIRES-OCCUPANTS, À L’UNITÉ","Manitoba",4.8969913451631131,"Prêts hypothécaires assurés au cours de la période selon la province (%)","4.9","Manitoba",{"$f":"IFERROR(VLOOKUP(A4218,Translation!$A:$C,3,FALSE),A4218)","v":5},{"$f":"IFERROR(VLOOKUP(B4218,Translation!$A:$C,3,FALSE),B4218)","v":"T3 2018"},{"$f":"IFERROR(VLOOKUP(C4218,Translation!$A:$C,3,FALSE),C4218)","v":"PROPRIÉTAIRES-OCCUPANTS, À L’UNITÉ"},{"$f":"IFERROR(VLOOKUP(D4218,Translation!$A:$C,3,FALSE),D4218)","v":"Manitoba"},{"$f":"IFERROR(VLOOKUP(E4218,Translation!$A:$C,3,FALSE),E4218)","v":4.8969913451631131},{"$f":"IFERROR(VLOOKUP(F4218,Translation!$A:$C,3,FALSE),F4218)","v":"Prêts hypothécaires assurés au cours de la période selon la province (%)"},{"$f":"IFERROR(VLOOKUP(G4218,Translation!$A:$C,3,FALSE),G4218)","v":"4.9"},{"$f":"IFERROR(VLOOKUP(H4218,Translation!$A:$C,3,FALSE),H4218)","v":"Manitoba"}]
[5,"T3 2018","PROPRIÉTAIRES-OCCUPANTS, À L’UNITÉ","Saskatchewan",2.901539170447073,"Prêts hypothécaires assurés au cours de la période selon la province (%)","2.9","Saskatchewan",{"$f":"IFERROR(VLOOKUP(A4219,Translation!$A:$C,3,FALSE),A4219)","v":5},{"$f":"IFERROR(VLOOKUP(B4219,Translation!$A:$C,3,FALSE),B4219)","v":"T3 2018"},{"$f":"IFERROR(VLOOKUP(C4219,Translation!$A:$C,3,FALSE),C4219)","v":"PROPRIÉTAIRES-OCCUPANTS, À L’UNITÉ"},{"$f":"IFERROR(VLOOKUP(D4219,Translation!$A:$C,3,FALSE),D4219)","v":"Saskatchewan"},{"$f":"IFERROR(VLOOKUP(E4219,Translation!$A:$C,3,FALSE),E4219)","v":2.901539170447073},{"$f":"IFERROR(VLOOKUP(F4219,Translation!$A:$C,3,FALSE),F4219)","v":"Prêts hypothécaires assurés au cours de la période selon la province (%)"},{"$f":"IFERROR(VLOOKUP(G4219,Translation!$A:$C,3,FALSE),G4219)","v":"2.9"},{"$f":"IFERROR(VLOOKUP(H4219,Translation!$A:$C,3,FALSE),H4219)","v":"Saskatchewan"}]
[5,"T3 2018","ASSURANCE DE PORTEFEUILLE","Terre-Neuve-et-Labrador",0.31485155126275682,"Prêts hypothécaires assurés au cours de la période selon la province (%)","0.3","Terre-Neuve-et-Labrador",{"$f":"IFERROR(VLOOKUP(A4223,Translation!$A:$C,3,FALSE),A4223)","v":5},{"$f":"IFERROR(VLOOKUP(B4223,Translation!$A:$C,3,FALSE),B4223)","v":"T3 2018"},{"$f":"IFERROR(VLOOKUP(C4223,Translation!$A:$C,3,FALSE),C4223)","v":"ASSURANCE DE PORTEFEUILLE"},{"$f":"IFERROR(VLOOKUP(D4223,Translation!$A:$C,3,FALSE),D4223)","v":"Terre-Neuve-et-Labrador"},{"$f":"IFERROR(VLOOKUP(E4223,Translation!$A:$C,3,FALSE),E4223)","v":0.31485155126275682},{"$f":"IFERROR(VLOOKUP(F4223,Translation!$A:$C,3,FALSE),F4223)","v":"Prêts hypothécaires assurés au cours de la période selon la province (%)"},{"$f":"IFERROR(VLOOKUP(G4223,Translation!$A:$C,3,FALSE),G4223)","v":"0.3"},{"$f":"IFERROR(VLOOKUP(H4223,Translation!$A:$C,3,FALSE),H4223)","v":"Terre-Neuve-et-Labrador"}]
[5,"T3 2018","ASSURANCE DE PORTEFEUILLE","Nouvelle-Écosse",0.64045835484743852,"Prêts hypothécaires assurés au cours de la période selon la province (%)","0.6","Nouvelle-Écosse",{"$f":"IFERROR(VLOOKUP(A4224,Translation!$A:$C,3,FALSE),A4224)","v":5},{"$f":"IFERROR(VLOOKUP(B4224,Translation!$A:$C,3,FALSE),B4224)","v":"T3 2018"},{"$f":"IFERROR(VLOOKUP(C4224,Translation!$A:$C,3,FALSE),C4224)","v":"ASSURANCE DE PORTEFEUILLE"},{"$f":"IFERROR(VLOOKUP(D4224,Translation!$A:$C,3,FALSE),D4224)","v":"Nouvelle-Écosse"},{"$f":"IFERROR(VLOOKUP(E4224,Translation!$A:$C,3,FALSE),E4224)","v":0.64045835484743852},{"$f":"IFERROR(VLOOKUP(F4224,Translation!$A:$C,3,FALSE),F4224)","v":"Prêts hypothécaires assurés au cours de la période selon la province (%)"},{"$f":"IFERROR(VLOOKUP(G4224,Translation!$A:$C,3,FALSE),G4224)","v":"0.6"},{"$f":"IFERROR(VLOOKUP(H4224,Translation!$A:$C,3,FALSE),H4224)","v":"Nouvelle-Écosse"}]
[5,"T3 2018","ASSURANCE DE PORTEFEUILLE","Ontario",52.556014248738947,"Prêts hypothécaires assurés au cours de la période selon la province (%)","52.6","Ontario",{"$f":"IFERROR(VLOOKUP(A4227,Translation!$A:$C,3,FALSE),A4227)","v":5},{"$f":"IFERROR(VLOOKUP(B4227,Translation!$A:$C,3,FALSE),B4227)","v":"T3 2018"},{"$f":"IFERROR(VLOOKUP(C4227,Translation!$A:$C,3,FALSE),C4227)","v":"ASSURANCE DE PORTEFEUILLE"},{"$f":"IFERROR(VLOOKUP(D4227,Translation!$A:$C,3,FALSE),D4227)","v":"Ontario"},{"$f":"IFERROR(VLOOKUP(E4227,Translation!$A:$C,3,FALSE),E4227)","v":52.556014248738947},{"$f":"IFERROR(VLOOKUP(F4227,Translation!$A:$C,3,FALSE),F4227)","v":"Prêts hypothécaires assurés au cours de la période selon la province (%)"},{"$f":"IFERROR(VLOOKUP(G4227,Translation!$A:$C,3,FALSE),G4227)","v":"52.6"},{"$f":"IFERROR(VLOOKUP(H4227,Translation!$A:$C,3,FALSE),H4227)","v":"Ontario"}]
[5,"T3 2018","ASSURANCE DE PORTEFEUILLE","Saskatchewan",2.0768712340237725,"Prêts hypothécaires assurés au cours de la période selon la province (%)","2.1","Saskatchewan",{"$f":"IFERROR(VLOOKUP(A4229,Translation!$A:$C,3,FALSE),A4229)","v":5},{"$f":"IFERROR(VLOOKUP(B4229,Translation!$A:$C,3,FALSE),B4229)","v":"T3 2018"},{"$f":"IFERROR(VLOOKUP(C4229,Translation!$A:$C,3,FALSE),C4229)","v":"ASSURANCE DE PORTEFEUILLE"},{"$f":"IFERROR(VLOOKUP(D4229,Translation!$A:$C,3,FALSE),D4229)","v":"Saskatchewan"},{"$f":"IFERROR(VLOOKUP(E4229,Translation!$A:$C,3,FALSE),E4229)","v":2.0768712340237725},{"$f":"IFERROR(VLOOKUP(F4229,Translation!$A:$C,3,FALSE),F4229)","v":"Prêts hypothécaires assurés au cours de la période selon la province (%)"},{"$f":"IFERROR(VLOOKUP(G4229,Translation!$A:$C,3,FALSE),G4229)","v":"2.1"},{"$f":"IFERROR(VLOOKUP(H4229,Translation!$A:$C,3,FALSE),H4229)","v":"Saskatchewan"}]
[5,"T3 2018","IMMEUBLES COLLECTIFS RÉSIDENTIELS","Île-du-Prince-Édouard",0.33765391332454886,"Prêts hypothécaires assurés au cours de la période selon la province (%)","0.3","Île-du-Prince-Édouard",{"$f":"IFERROR(VLOOKUP(A4233,Translation!$A:$C,3,FALSE),A4233)","v":5},{"$f":"IFERROR(VLOOKUP(B4233,Translation!$A:$C,3,FALSE),B4233)","v":"T3 2018"},{"$f":"IFERROR(VLOOKUP(C4233,Translation!$A:$C,3,FALSE),C4233)","v":"IMMEUBLES COLLECTIFS RÉSIDENTIELS"},{"$f":"IFERROR(VLOOKUP(D4233,Translation!$A:$C,3,FALSE),D4233)","v":"Île-du-Prince-Édouard"},{"$f":"IFERROR(VLOOKUP(E4233,Translation!$A:$C,3,FALSE),E4233)","v":0.33765391332454886},{"$f":"IFERROR(VLOOKUP(F4233,Translation!$A:$C,3,FALSE),F4233)","v":"Prêts hypothécaires assurés au cours de la période selon la province (%)"},{"$f":"IFERROR(VLOOKUP(G4233,Translation!$A:$C,3,FALSE),G4233)","v":"0.3"},{"$f":"IFERROR(VLOOKUP(H4233,Translation!$A:$C,3,FALSE),H4233)","v":"Île-du-Prince-Édouard"}]
[5,"T3 2018","IMMEUBLES COLLECTIFS RÉSIDENTIELS","Nouvelle-Écosse",6.2283854654653696,"Prêts hypothécaires assurés au cours de la période selon la province (%)","6.2","Nouvelle-Écosse",{"$f":"IFERROR(VLOOKUP(A4234,Translation!$A:$C,3,FALSE),A4234)","v":5},{"$f":"IFERROR(VLOOKUP(B4234,Translation!$A:$C,3,FALSE),B4234)","v":"T3 2018"},{"$f":"IFERROR(VLOOKUP(C4234,Translation!$A:$C,3,FALSE),C4234)","v":"IMMEUBLES COLLECTIFS RÉSIDENTIELS"},{"$f":"IFERROR(VLOOKUP(D4234,Translation!$A:$C,3,FALSE),D4234)","v":"Nouvelle-Écosse"},{"$f":"IFERROR(VLOOKUP(E4234,Translation!$A:$C,3,FALSE),E4234)","v":6.2283854654653696},{"$f":"IFERROR(VLOOKUP(F4234,Translation!$A:$C,3,FALSE),F4234)","v":"Prêts hypothécaires assurés au cours de la période selon la province (%)"},{"$f":"IFERROR(VLOOKUP(G4234,Translation!$A:$C,3,FALSE),G4234)","v":"6.2"},{"$f":"IFERROR(VLOOKUP(H4234,Translation!$A:$C,3,FALSE),H4234)","v":"Nouvelle-Écosse"}]
[5,"T3 2018","IMMEUBLES COLLECTIFS RÉSIDENTIELS","Ontario",42.371384734379909,"Prêts hypothécaires assurés au cours de la période selon la province (%)","42.4","Ontario",{"$f":"IFERROR(VLOOKUP(A4237,Translation!$A:$C,3,FALSE),A4237)","v":5},{"$f":"IFERROR(VLOOKUP(B4237,Translation!$A:$C,3,FALSE),B4237)","v":"T3 2018"},{"$f":"IFERROR(VLOOKUP(C4237,Translation!$A:$C,3,FALSE),C4237)","v":"IMMEUBLES COLLECTIFS RÉSIDENTIELS"},{"$f":"IFERROR(VLOOKUP(D4237,Translation!$A:$C,3,FALSE),D4237)","v":"Ontario"},{"$f":"IFERROR(VLOOKUP(E4237,Translation!$A:$C,3,FALSE),E4237)","v":42.371384734379909},{"$f":"IFERROR(VLOOKUP(F4237,Translation!$A:$C,3,FALSE),F4237)","v":"Prêts hypothécaires assurés au cours de la période selon la province (%)"},{"$f":"IFERROR(VLOOKUP(G4237,Translation!$A:$C,3,FALSE),G4237)","v":"42.4"},{"$f":"IFERROR(VLOOKUP(H4237,Translation!$A:$C,3,FALSE),H4237)","v":"Ontario"}]
[5,"T3 2018","IMMEUBLES COLLECTIFS RÉSIDENTIELS","Manitoba",3.8351781180266351,"Prêts hypothécaires assurés au cours de la période selon la province (%)","3.8","Manitoba",{"$f":"IFERROR(VLOOKUP(A4238,Translation!$A:$C,3,FALSE),A4238)","v":5},{"$f":"IFERROR(VLOOKUP(B4238,Translation!$A:$C,3,FALSE),B4238)","v":"T3 2018"},{"$f":"IFERROR(VLOOKUP(C4238,Translation!$A:$C,3,FALSE),C4238)","v":"IMMEUBLES COLLECTIFS RÉSIDENTIELS"},{"$f":"IFERROR(VLOOKUP(D4238,Translation!$A:$C,3,FALSE),D4238)","v":"Manitoba"},{"$f":"IFERROR(VLOOKUP(E4238,Translation!$A:$C,3,FALSE),E4238)","v":3.8351781180266351},{"$f":"IFERROR(VLOOKUP(F4238,Translation!$A:$C,3,FALSE),F4238)","v":"Prêts hypothécaires assurés au cours de la période selon la province (%)"},{"$f":"IFERROR(VLOOKUP(G4238,Translation!$A:$C,3,FALSE),G4238)","v":"3.8"},{"$f":"IFERROR(VLOOKUP(H4238,Translation!$A:$C,3,FALSE),H4238)","v":"Manitoba"}]
[5,"T3 2018","IMMEUBLES COLLECTIFS RÉSIDENTIELS","Territoires",0.22796443596389024,"Prêts hypothécaires assurés au cours de la période selon la province (%)","0.2","Territoires",{"$f":"IFERROR(VLOOKUP(A4242,Translation!$A:$C,3,FALSE),A4242)","v":5},{"$f":"IFERROR(VLOOKUP(B4242,Translation!$A:$C,3,FALSE),B4242)","v":"T3 2018"},{"$f":"IFERROR(VLOOKUP(C4242,Translation!$A:$C,3,FALSE),C4242)","v":"IMMEUBLES COLLECTIFS RÉSIDENTIELS"},{"$f":"IFERROR(VLOOKUP(D4242,Translation!$A:$C,3,FALSE),D4242)","v":"Territoires"},{"$f":"IFERROR(VLOOKUP(E4242,Translation!$A:$C,3,FALSE),E4242)","v":0.22796443596389024},{"$f":"IFERROR(VLOOKUP(F4242,Translation!$A:$C,3,FALSE),F4242)","v":"Prêts hypothécaires assurés au cours de la période selon la province (%)"},{"$f":"IFERROR(VLOOKUP(G4242,Translation!$A:$C,3,FALSE),G4242)","v":"0.2"},{"$f":"IFERROR(VLOOKUP(H4242,Translation!$A:$C,3,FALSE),H4242)","v":"Territoires"}]
[5,"T2 2018","PROPRIÉTAIRES-OCCUPANTS, À L’UNITÉ","Terre-Neuve-et-Labrador",0.9731714290279182,"Prêts hypothécaires assurés au cours de la période selon la province (%)","1.0","Terre-Neuve-et-Labrador",{"$f":"IFERROR(VLOOKUP(A4243,Translation!$A:$C,3,FALSE),A4243)","v":5},{"$f":"IFERROR(VLOOKUP(B4243,Translation!$A:$C,3,FALSE),B4243)","v":"T2 2018"},{"$f":"IFERROR(VLOOKUP(C4243,Translation!$A:$C,3,FALSE),C4243)","v":"PROPRIÉTAIRES-OCCUPANTS, À L’UNITÉ"},{"$f":"IFERROR(VLOOKUP(D4243,Translation!$A:$C,3,FALSE),D4243)","v":"Terre-Neuve-et-Labrador"},{"$f":"IFERROR(VLOOKUP(E4243,Translation!$A:$C,3,FALSE),E4243)","v":0.9731714290279182},{"$f":"IFERROR(VLOOKUP(F4243,Translation!$A:$C,3,FALSE),F4243)","v":"Prêts hypothécaires assurés au cours de la période selon la province (%)"},{"$f":"IFERROR(VLOOKUP(G4243,Translation!$A:$C,3,FALSE),G4243)","v":"1.0"},{"$f":"IFERROR(VLOOKUP(H4243,Translation!$A:$C,3,FALSE),H4243)","v":"Terre-Neuve-et-Labrador"}]
[5,"T2 2018","PROPRIÉTAIRES-OCCUPANTS, À L’UNITÉ","Nouveau-Brunswick",1.7344004213725019,"Prêts hypothécaires assurés au cours de la période selon la province (%)","1.7","Nouveau-Brunswick",{"$f":"IFERROR(VLOOKUP(A4246,Translation!$A:$C,3,FALSE),A4246)","v":5},{"$f":"IFERROR(VLOOKUP(B4246,Translation!$A:$C,3,FALSE),B4246)","v":"T2 2018"},{"$f":"IFERROR(VLOOKUP(C4246,Translation!$A:$C,3,FALSE),C4246)","v":"PROPRIÉTAIRES-OCCUPANTS, À L’UNITÉ"},{"$f":"IFERROR(VLOOKUP(D4246,Translation!$A:$C,3,FALSE),D4246)","v":"Nouveau-Brunswick"},{"$f":"IFERROR(VLOOKUP(E4246,Translation!$A:$C,3,FALSE),E4246)","v":1.7344004213725019},{"$f":"IFERROR(VLOOKUP(F4246,Translation!$A:$C,3,FALSE),F4246)","v":"Prêts hypothécaires assurés au cours de la période selon la province (%)"},{"$f":"IFERROR(VLOOKUP(G4246,Translation!$A:$C,3,FALSE),G4246)","v":"1.7"},{"$f":"IFERROR(VLOOKUP(H4246,Translation!$A:$C,3,FALSE),H4246)","v":"Nouveau-Brunswick"}]
[5,"T2 2018","PROPRIÉTAIRES-OCCUPANTS, À L’UNITÉ","Ontario",25.772467793684225,"Prêts hypothécaires assurés au cours de la période selon la province (%)","25.8","Ontario",{"$f":"IFERROR(VLOOKUP(A4248,Translation!$A:$C,3,FALSE),A4248)","v":5},{"$f":"IFERROR(VLOOKUP(B4248,Translation!$A:$C,3,FALSE),B4248)","v":"T2 2018"},{"$f":"IFERROR(VLOOKUP(C4248,Translation!$A:$C,3,FALSE),C4248)","v":"PROPRIÉTAIRES-OCCUPANTS, À L’UNITÉ"},{"$f":"IFERROR(VLOOKUP(D4248,Translation!$A:$C,3,FALSE),D4248)","v":"Ontario"},{"$f":"IFERROR(VLOOKUP(E4248,Translation!$A:$C,3,FALSE),E4248)","v":25.772467793684225},{"$f":"IFERROR(VLOOKUP(F4248,Translation!$A:$C,3,FALSE),F4248)","v":"Prêts hypothécaires assurés au cours de la période selon la province (%)"},{"$f":"IFERROR(VLOOKUP(G4248,Translation!$A:$C,3,FALSE),G4248)","v":"25.8"},{"$f":"IFERROR(VLOOKUP(H4248,Translation!$A:$C,3,FALSE),H4248)","v":"Ontario"}]
[5,"T2 2018","PROPRIÉTAIRES-OCCUPANTS, À L’UNITÉ","Colombie-Britannique",8.5540119870714211,"Prêts hypothécaires assurés au cours de la période selon la province (%)","8.6","Colombie-Britannique",{"$f":"IFERROR(VLOOKUP(A4252,Translation!$A:$C,3,FALSE),A4252)","v":5},{"$f":"IFERROR(VLOOKUP(B4252,Translation!$A:$C,3,FALSE),B4252)","v":"T2 2018"},{"$f":"IFERROR(VLOOKUP(C4252,Translation!$A:$C,3,FALSE),C4252)","v":"PROPRIÉTAIRES-OCCUPANTS, À L’UNITÉ"},{"$f":"IFERROR(VLOOKUP(D4252,Translation!$A:$C,3,FALSE),D4252)","v":"Colombie-Britannique"},{"$f":"IFERROR(VLOOKUP(E4252,Translation!$A:$C,3,FALSE),E4252)","v":8.5540119870714211},{"$f":"IFERROR(VLOOKUP(F4252,Translation!$A:$C,3,FALSE),F4252)","v":"Prêts hypothécaires assurés au cours de la période selon la province (%)"},{"$f":"IFERROR(VLOOKUP(G4252,Translation!$A:$C,3,FALSE),G4252)","v":"8.6"},{"$f":"IFERROR(VLOOKUP(H4252,Translation!$A:$C,3,FALSE),H4252)","v":"Colombie-Britannique"}]
[5,"T2 2018","PROPRIÉTAIRES-OCCUPANTS, À L’UNITÉ","Territoires",0.4838589285737247,"Prêts hypothécaires assurés au cours de la période selon la province (%)","0.5","Territoires",{"$f":"IFERROR(VLOOKUP(A4253,Translation!$A:$C,3,FALSE),A4253)","v":5},{"$f":"IFERROR(VLOOKUP(B4253,Translation!$A:$C,3,FALSE),B4253)","v":"T2 2018"},{"$f":"IFERROR(VLOOKUP(C4253,Translation!$A:$C,3,FALSE),C4253)","v":"PROPRIÉTAIRES-OCCUPANTS, À L’UNITÉ"},{"$f":"IFERROR(VLOOKUP(D4253,Translation!$A:$C,3,FALSE),D4253)","v":"Territoires"},{"$f":"IFERROR(VLOOKUP(E4253,Translation!$A:$C,3,FALSE),E4253)","v":0.4838589285737247},{"$f":"IFERROR(VLOOKUP(F4253,Translation!$A:$C,3,FALSE),F4253)","v":"Prêts hypothécaires assurés au cours de la période selon la province (%)"},{"$f":"IFERROR(VLOOKUP(G4253,Translation!$A:$C,3,FALSE),G4253)","v":"0.5"},{"$f":"IFERROR(VLOOKUP(H4253,Translation!$A:$C,3,FALSE),H4253)","v":"Territoires"}]
[5,"T2 2018","ASSURANCE DE PORTEFEUILLE","Nouvelle-Écosse",0.41733928335909776,"Prêts hypothécaires assurés au cours de la période selon la province (%)","0.4","Nouvelle-Écosse",{"$f":"IFERROR(VLOOKUP(A4256,Translation!$A:$C,3,FALSE),A4256)","v":5},{"$f":"IFERROR(VLOOKUP(B4256,Translation!$A:$C,3,FALSE),B4256)","v":"T2 2018"},{"$f":"IFERROR(VLOOKUP(C4256,Translation!$A:$C,3,FALSE),C4256)","v":"ASSURANCE DE PORTEFEUILLE"},{"$f":"IFERROR(VLOOKUP(D4256,Translation!$A:$C,3,FALSE),D4256)","v":"Nouvelle-Écosse"},{"$f":"IFERROR(VLOOKUP(E4256,Translation!$A:$C,3,FALSE),E4256)","v":0.41733928335909776},{"$f":"IFERROR(VLOOKUP(F4256,Translation!$A:$C,3,FALSE),F4256)","v":"Prêts hypothécaires assurés au cours de la période selon la province (%)"},{"$f":"IFERROR(VLOOKUP(G4256,Translation!$A:$C,3,FALSE),G4256)","v":"0.4"},{"$f":"IFERROR(VLOOKUP(H4256,Translation!$A:$C,3,FALSE),H4256)","v":"Nouvelle-Écosse"}]
[5,"T2 2018","ASSURANCE DE PORTEFEUILLE","Nouveau-Brunswick",0.10838765475916992,"Prêts hypothécaires assurés au cours de la période selon la province (%)","0.1","Nouveau-Brunswick",{"$f":"IFERROR(VLOOKUP(A4257,Translation!$A:$C,3,FALSE),A4257)","v":5},{"$f":"IFERROR(VLOOKUP(B4257,Translation!$A:$C,3,FALSE),B4257)","v":"T2 2018"},{"$f":"IFERROR(VLOOKUP(C4257,Translation!$A:$C,3,FALSE),C4257)","v":"ASSURANCE DE PORTEFEUILLE"},{"$f":"IFERROR(VLOOKUP(D4257,Translation!$A:$C,3,FALSE),D4257)","v":"Nouveau-Brunswick"},{"$f":"IFERROR(VLOOKUP(E4257,Translation!$A:$C,3,FALSE),E4257)","v":0.10838765475916992},{"$f":"IFERROR(VLOOKUP(F4257,Translation!$A:$C,3,FALSE),F4257)","v":"Prêts hypothécaires assurés au cours de la période selon la province (%)"},{"$f":"IFERROR(VLOOKUP(G4257,Translation!$A:$C,3,FALSE),G4257)","v":"0.1"},{"$f":"IFERROR(VLOOKUP(H4257,Translation!$A:$C,3,FALSE),H4257)","v":"Nouveau-Brunswick"}]
[5,"T2 2018","ASSURANCE DE PORTEFEUILLE","Saskatchewan",1.7285598820017396,"Prêts hypothécaires assurés au cours de la période selon la province (%)","1.7","Saskatchewan",{"$f":"IFERROR(VLOOKUP(A4261,Translation!$A:$C,3,FALSE),A4261)","v":5},{"$f":"IFERROR(VLOOKUP(B4261,Translation!$A:$C,3,FALSE),B4261)","v":"T2 2018"},{"$f":"IFERROR(VLOOKUP(C4261,Translation!$A:$C,3,FALSE),C4261)","v":"ASSURANCE DE PORTEFEUILLE"},{"$f":"IFERROR(VLOOKUP(D4261,Translation!$A:$C,3,FALSE),D4261)","v":"Saskatchewan"},{"$f":"IFERROR(VLOOKUP(E4261,Translation!$A:$C,3,FALSE),E4261)","v":1.7285598820017396},{"$f":"IFERROR(VLOOKUP(F4261,Translation!$A:$C,3,FALSE),F4261)","v":"Prêts hypothécaires assurés au cours de la période selon la province (%)"},{"$f":"IFERROR(VLOOKUP(G4261,Translation!$A:$C,3,FALSE),G4261)","v":"1.7"},{"$f":"IFERROR(VLOOKUP(H4261,Translation!$A:$C,3,FALSE),H4261)","v":"Saskatchewan"}]
[5,"T2 2018","ASSURANCE DE PORTEFEUILLE","Colombie-Britannique",15.216808796271337,"Prêts hypothécaires assurés au cours de la période selon la province (%)","15.2","Colombie-Britannique",{"$f":"IFERROR(VLOOKUP(A4263,Translation!$A:$C,3,FALSE),A4263)","v":5},{"$f":"IFERROR(VLOOKUP(B4263,Translation!$A:$C,3,FALSE),B4263)","v":"T2 2018"},{"$f":"IFERROR(VLOOKUP(C4263,Translation!$A:$C,3,FALSE),C4263)","v":"ASSURANCE DE PORTEFEUILLE"},{"$f":"IFERROR(VLOOKUP(D4263,Translation!$A:$C,3,FALSE),D4263)","v":"Colombie-Britannique"},{"$f":"IFERROR(VLOOKUP(E4263,Translation!$A:$C,3,FALSE),E4263)","v":15.216808796271337},{"$f":"IFERROR(VLOOKUP(F4263,Translation!$A:$C,3,FALSE),F4263)","v":"Prêts hypothécaires assurés au cours de la période selon la province (%)"},{"$f":"IFERROR(VLOOKUP(G4263,Translation!$A:$C,3,FALSE),G4263)","v":"15.2"},{"$f":"IFERROR(VLOOKUP(H4263,Translation!$A:$C,3,FALSE),H4263)","v":"Colombie-Britannique"}]
[5,"T2 2018","IMMEUBLES COLLECTIFS RÉSIDENTIELS","Nouveau-Brunswick",0.5072690171178863,"Prêts hypothécaires assurés au cours de la période selon la province (%)","0.5","Nouveau-Brunswick",{"$f":"IFERROR(VLOOKUP(A4266,Translation!$A:$C,3,FALSE),A4266)","v":5},{"$f":"IFERROR(VLOOKUP(B4266,Translation!$A:$C,3,FALSE),B4266)","v":"T2 2018"},{"$f":"IFERROR(VLOOKUP(C4266,Translation!$A:$C,3,FALSE),C4266)","v":"IMMEUBLES COLLECTIFS RÉSIDENTIELS"},{"$f":"IFERROR(VLOOKUP(D4266,Translation!$A:$C,3,FALSE),D4266)","v":"Nouveau-Brunswick"},{"$f":"IFERROR(VLOOKUP(E4266,Translation!$A:$C,3,FALSE),E4266)","v":0.5072690171178863},{"$f":"IFERROR(VLOOKUP(F4266,Translation!$A:$C,3,FALSE),F4266)","v":"Prêts hypothécaires assurés au cours de la période selon la province (%)"},{"$f":"IFERROR(VLOOKUP(G4266,Translation!$A:$C,3,FALSE),G4266)","v":"0.5"},{"$f":"IFERROR(VLOOKUP(H4266,Translation!$A:$C,3,FALSE),H4266)","v":"Nouveau-Brunswick"}]
[5,"T2 2018","IMMEUBLES COLLECTIFS RÉSIDENTIELS","Québec",21.084770419893527,"Prêts hypothécaires assurés au cours de la période selon la province (%)","21.1","Québec",{"$f":"IFERROR(VLOOKUP(A4267,Translation!$A:$C,3,FALSE),A4267)","v":5},{"$f":"IFERROR(VLOOKUP(B4267,Translation!$A:$C,3,FALSE),B4267)","v":"T2 2018"},{"$f":"IFERROR(VLOOKUP(C4267,Translation!$A:$C,3,FALSE),C4267)","v":"IMMEUBLES COLLECTIFS RÉSIDENTIELS"},{"$f":"IFERROR(VLOOKUP(D4267,Translation!$A:$C,3,FALSE),D4267)","v":"Québec"},{"$f":"IFERROR(VLOOKUP(E4267,Translation!$A:$C,3,FALSE),E4267)","v":21.084770419893527},{"$f":"IFERROR(VLOOKUP(F4267,Translation!$A:$C,3,FALSE),F4267)","v":"Prêts hypothécaires assurés au cours de la période selon la province (%)"},{"$f":"IFERROR(VLOOKUP(G4267,Translation!$A:$C,3,FALSE),G4267)","v":"21.1"},{"$f":"IFERROR(VLOOKUP(H4267,Translation!$A:$C,3,FALSE),H4267)","v":"Québec"}]
[5,"T2 2018","IMMEUBLES COLLECTIFS RÉSIDENTIELS","Alberta",4.0763349251420644,"Prêts hypothécaires assurés au cours de la période selon la province (%)","4.1","Alberta",{"$f":"IFERROR(VLOOKUP(A4271,Translation!$A:$C,3,FALSE),A4271)","v":5},{"$f":"IFERROR(VLOOKUP(B4271,Translation!$A:$C,3,FALSE),B4271)","v":"T2 2018"},{"$f":"IFERROR(VLOOKUP(C4271,Translation!$A:$C,3,FALSE),C4271)","v":"IMMEUBLES COLLECTIFS RÉSIDENTIELS"},{"$f":"IFERROR(VLOOKUP(D4271,Translation!$A:$C,3,FALSE),D4271)","v":"Alberta"},{"$f":"IFERROR(VLOOKUP(E4271,Translation!$A:$C,3,FALSE),E4271)","v":4.0763349251420644},{"$f":"IFERROR(VLOOKUP(F4271,Translation!$A:$C,3,FALSE),F4271)","v":"Prêts hypothécaires assurés au cours de la période selon la province (%)"},{"$f":"IFERROR(VLOOKUP(G4271,Translation!$A:$C,3,FALSE),G4271)","v":"4.1"},{"$f":"IFERROR(VLOOKUP(H4271,Translation!$A:$C,3,FALSE),H4271)","v":"Alberta"}]
[5,"T2 2018","IMMEUBLES COLLECTIFS RÉSIDENTIELS","Colombie-Britannique",18.822572632282213,"Prêts hypothécaires assurés au cours de la période selon la province (%)","18.8","Colombie-Britannique",{"$f":"IFERROR(VLOOKUP(A4272,Translation!$A:$C,3,FALSE),A4272)","v":5},{"$f":"IFERROR(VLOOKUP(B4272,Translation!$A:$C,3,FALSE),B4272)","v":"T2 2018"},{"$f":"IFERROR(VLOOKUP(C4272,Translation!$A:$C,3,FALSE),C4272)","v":"IMMEUBLES COLLECTIFS RÉSIDENTIELS"},{"$f":"IFERROR(VLOOKUP(D4272,Translation!$A:$C,3,FALSE),D4272)","v":"Colombie-Britannique"},{"$f":"IFERROR(VLOOKUP(E4272,Translation!$A:$C,3,FALSE),E4272)","v":18.822572632282213},{"$f":"IFERROR(VLOOKUP(F4272,Translation!$A:$C,3,FALSE),F4272)","v":"Prêts hypothécaires assurés au cours de la période selon la province (%)"},{"$f":"IFERROR(VLOOKUP(G4272,Translation!$A:$C,3,FALSE),G4272)","v":"18.8"},{"$f":"IFERROR(VLOOKUP(H4272,Translation!$A:$C,3,FALSE),H4272)","v":"Colombie-Britannique"}]
[5,"T1 2018","PROPRIÉTAIRES-OCCUPANTS, À L’UNITÉ","Terre-Neuve-et-Labrador",1.2128113739962296,"Prêts hypothécaires assurés au cours de la période selon la province (%)","1.2","Terre-Neuve-et-Labrador",{"$f":"IFERROR(VLOOKUP(A4274,Translation!$A:$C,3,FALSE),A4274)","v":5},{"$f":"IFERROR(VLOOKUP(B4274,Translation!$A:$C,3,FALSE),B4274)","v":"T1 2018"},{"$f":"IFERROR(VLOOKUP(C4274,Translation!$A:$C,3,FALSE),C4274)","v":"PROPRIÉTAIRES-OCCUPANTS, À L’UNITÉ"},{"$f":"IFERROR(VLOOKUP(D4274,Translation!$A:$C,3,FALSE),D4274)","v":"Terre-Neuve-et-Labrador"},{"$f":"IFERROR(VLOOKUP(E4274,Translation!$A:$C,3,FALSE),E4274)","v":1.2128113739962296},{"$f":"IFERROR(VLOOKUP(F4274,Translation!$A:$C,3,FALSE),F4274)","v":"Prêts hypothécaires assurés au cours de la période selon la province (%)"},{"$f":"IFERROR(VLOOKUP(G4274,Translation!$A:$C,3,FALSE),G4274)","v":"1.2"},{"$f":"IFERROR(VLOOKUP(H4274,Translation!$A:$C,3,FALSE),H4274)","v":"Terre-Neuve-et-Labrador"}]
[5,"Q3 2016","PROPRIÉTAIRES-OCCUPANTS, À L’UNITÉ","Terre-Neuve-et-Labrador",1.3813159340886259,"Prêts hypothécaires assurés au cours de la période selon la province (%)","1.4","Terre-Neuve-et-Labrador",{"$f":"IFERROR(VLOOKUP(A4277,Translation!$A:$C,3,FALSE),A4277)","v":5},{"$f":"IFERROR(VLOOKUP(B4277,Translation!$A:$C,3,FALSE),B4277)","v":"Q3 2016"},{"$f":"IFERROR(VLOOKUP(C4277,Translation!$A:$C,3,FALSE),C4277)","v":"PROPRIÉTAIRES-OCCUPANTS, À L’UNITÉ"},{"$f":"IFERROR(VLOOKUP(D4277,Translation!$A:$C,3,FALSE),D4277)","v":"Terre-Neuve-et-Labrador"},{"$f":"IFERROR(VLOOKUP(E4277,Translation!$A:$C,3,FALSE),E4277)","v":1.3813159340886259},{"$f":"IFERROR(VLOOKUP(F4277,Translation!$A:$C,3,FALSE),F4277)","v":"Prêts hypothécaires assurés au cours de la période selon la province (%)"},{"$f":"IFERROR(VLOOKUP(G4277,Translation!$A:$C,3,FALSE),G4277)","v":"1.4"},{"$f":"IFERROR(VLOOKUP(H4277,Translation!$A:$C,3,FALSE),H4277)","v":"Terre-Neuve-et-Labrador"}]
[5,"T4 2017","PROPRIÉTAIRES-OCCUPANTS, À L’UNITÉ","Terre-Neuve-et-Labrador",1.5144276726529691,"Prêts hypothécaires assurés au cours de la période selon la province (%)","1.5","Terre-Neuve-et-Labrador",{"$f":"IFERROR(VLOOKUP(A4280,Translation!$A:$C,3,FALSE),A4280)","v":5},{"$f":"IFERROR(VLOOKUP(B4280,Translation!$A:$C,3,FALSE),B4280)","v":"T4 2017"},{"$f":"IFERROR(VLOOKUP(C4280,Translation!$A:$C,3,FALSE),C4280)","v":"PROPRIÉTAIRES-OCCUPANTS, À L’UNITÉ"},{"$f":"IFERROR(VLOOKUP(D4280,Translation!$A:$C,3,FALSE),D4280)","v":"Terre-Neuve-et-Labrador"},{"$f":"IFERROR(VLOOKUP(E4280,Translation!$A:$C,3,FALSE),E4280)","v":1.5144276726529691},{"$f":"IFERROR(VLOOKUP(F4280,Translation!$A:$C,3,FALSE),F4280)","v":"Prêts hypothécaires assurés au cours de la période selon la province (%)"},{"$f":"IFERROR(VLOOKUP(G4280,Translation!$A:$C,3,FALSE),G4280)","v":"1.5"},{"$f":"IFERROR(VLOOKUP(H4280,Translation!$A:$C,3,FALSE),H4280)","v":"Terre-Neuve-et-Labrador"}]
[5,"T1 2018","PROPRIÉTAIRES-OCCUPANTS, À L’UNITÉ","Île-du-Prince-Édouard",0.29350811778305369,"Prêts hypothécaires assurés au cours de la période selon la province (%)","0.3","Île-du-Prince-Édouard",{"$f":"IFERROR(VLOOKUP(A4282,Translation!$A:$C,3,FALSE),A4282)","v":5},{"$f":"IFERROR(VLOOKUP(B4282,Translation!$A:$C,3,FALSE),B4282)","v":"T1 2018"},{"$f":"IFERROR(VLOOKUP(C4282,Translation!$A:$C,3,FALSE),C4282)","v":"PROPRIÉTAIRES-OCCUPANTS, À L’UNITÉ"},{"$f":"IFERROR(VLOOKUP(D4282,Translation!$A:$C,3,FALSE),D4282)","v":"Île-du-Prince-Édouard"},{"$f":"IFERROR(VLOOKUP(E4282,Translation!$A:$C,3,FALSE),E4282)","v":0.29350811778305369},{"$f":"IFERROR(VLOOKUP(F4282,Translation!$A:$C,3,FALSE),F4282)","v":"Prêts hypothécaires assurés au cours de la période selon la province (%)"},{"$f":"IFERROR(VLOOKUP(G4282,Translation!$A:$C,3,FALSE),G4282)","v":"0.3"},{"$f":"IFERROR(VLOOKUP(H4282,Translation!$A:$C,3,FALSE),H4282)","v":"Île-du-Prince-Édouard"}]
[5,"Q3 2016","PROPRIÉTAIRES-OCCUPANTS, À L’UNITÉ","Île-du-Prince-Édouard",0.29181926906861555,"Prêts hypothécaires assurés au cours de la période selon la province (%)","0.3","Île-du-Prince-Édouard",{"$f":"IFERROR(VLOOKUP(A4285,Translation!$A:$C,3,FALSE),A4285)","v":5},{"$f":"IFERROR(VLOOKUP(B4285,Translation!$A:$C,3,FALSE),B4285)","v":"Q3 2016"},{"$f":"IFERROR(VLOOKUP(C4285,Translation!$A:$C,3,FALSE),C4285)","v":"PROPRIÉTAIRES-OCCUPANTS, À L’UNITÉ"},{"$f":"IFERROR(VLOOKUP(D4285,Translation!$A:$C,3,FALSE),D4285)","v":"Île-du-Prince-Édouard"},{"$f":"IFERROR(VLOOKUP(E4285,Translation!$A:$C,3,FALSE),E4285)","v":0.29181926906861555},{"$f":"IFERROR(VLOOKUP(F4285,Translation!$A:$C,3,FALSE),F4285)","v":"Prêts hypothécaires assurés au cours de la période selon la province (%)"},{"$f":"IFERROR(VLOOKUP(G4285,Translation!$A:$C,3,FALSE),G4285)","v":"0.3"},{"$f":"IFERROR(VLOOKUP(H4285,Translation!$A:$C,3,FALSE),H4285)","v":"Île-du-Prince-Édouard"}]
[5,"T4 2017","PROPRIÉTAIRES-OCCUPANTS, À L’UNITÉ","Île-du-Prince-Édouard",0.37469205351462009,"Prêts hypothécaires assurés au cours de la période selon la province (%)","0.4","Île-du-Prince-Édouard",{"$f":"IFERROR(VLOOKUP(A4288,Translation!$A:$C,3,FALSE),A4288)","v":5},{"$f":"IFERROR(VLOOKUP(B4288,Translation!$A:$C,3,FALSE),B4288)","v":"T4 2017"},{"$f":"IFERROR(VLOOKUP(C4288,Translation!$A:$C,3,FALSE),C4288)","v":"PROPRIÉTAIRES-OCCUPANTS, À L’UNITÉ"},{"$f":"IFERROR(VLOOKUP(D4288,Translation!$A:$C,3,FALSE),D4288)","v":"Île-du-Prince-Édouard"},{"$f":"IFERROR(VLOOKUP(E4288,Translation!$A:$C,3,FALSE),E4288)","v":0.37469205351462009},{"$f":"IFERROR(VLOOKUP(F4288,Translation!$A:$C,3,FALSE),F4288)","v":"Prêts hypothécaires assurés au cours de la période selon la province (%)"},{"$f":"IFERROR(VLOOKUP(G4288,Translation!$A:$C,3,FALSE),G4288)","v":"0.4"},{"$f":"IFERROR(VLOOKUP(H4288,Translation!$A:$C,3,FALSE),H4288)","v":"Île-du-Prince-Édouard"}]
[5,"T1 2018","PROPRIÉTAIRES-OCCUPANTS, À L’UNITÉ","Nouvelle-Écosse",2.2360407221902534,"Prêts hypothécaires assurés au cours de la période selon la province (%)","2.2","Nouvelle-Écosse",{"$f":"IFERROR(VLOOKUP(A4290,Translation!$A:$C,3,FALSE),A4290)","v":5},{"$f":"IFERROR(VLOOKUP(B4290,Translation!$A:$C,3,FALSE),B4290)","v":"T1 2018"},{"$f":"IFERROR(VLOOKUP(C4290,Translation!$A:$C,3,FALSE),C4290)","v":"PROPRIÉTAIRES-OCCUPANTS, À L’UNITÉ"},{"$f":"IFERROR(VLOOKUP(D4290,Translation!$A:$C,3,FALSE),D4290)","v":"Nouvelle-Écosse"},{"$f":"IFERROR(VLOOKUP(E4290,Translation!$A:$C,3,FALSE),E4290)","v":2.2360407221902534},{"$f":"IFERROR(VLOOKUP(F4290,Translation!$A:$C,3,FALSE),F4290)","v":"Prêts hypothécaires assurés au cours de la période selon la province (%)"},{"$f":"IFERROR(VLOOKUP(G4290,Translation!$A:$C,3,FALSE),G4290)","v":"2.2"},{"$f":"IFERROR(VLOOKUP(H4290,Translation!$A:$C,3,FALSE),H4290)","v":"Nouvelle-Écosse"}]
[5,"Q2 2016","PROPRIÉTAIRES-OCCUPANTS, À L’UNITÉ","Nouvelle-Écosse",1.477832698528782,"Prêts hypothécaires assurés au cours de la période selon la province (%)","1.5","Nouvelle-Écosse",{"$f":"IFERROR(VLOOKUP(A4291,Translation!$A:$C,3,FALSE),A4291)","v":5},{"$f":"IFERROR(VLOOKUP(B4291,Translation!$A:$C,3,FALSE),B4291)","v":"Q2 2016"},{"$f":"IFERROR(VLOOKUP(C4291,Translation!$A:$C,3,FALSE),C4291)","v":"PROPRIÉTAIRES-OCCUPANTS, À L’UNITÉ"},{"$f":"IFERROR(VLOOKUP(D4291,Translation!$A:$C,3,FALSE),D4291)","v":"Nouvelle-Écosse"},{"$f":"IFERROR(VLOOKUP(E4291,Translation!$A:$C,3,FALSE),E4291)","v":1.477832698528782},{"$f":"IFERROR(VLOOKUP(F4291,Translation!$A:$C,3,FALSE),F4291)","v":"Prêts hypothécaires assurés au cours de la période selon la province (%)"},{"$f":"IFERROR(VLOOKUP(G4291,Translation!$A:$C,3,FALSE),G4291)","v":"1.5"},{"$f":"IFERROR(VLOOKUP(H4291,Translation!$A:$C,3,FALSE),H4291)","v":"Nouvelle-Écosse"}]
[5,"Q3 2016","PROPRIÉTAIRES-OCCUPANTS, À L’UNITÉ","Nouvelle-Écosse",2.2185837053759379,"Prêts hypothécaires assurés au cours de la période selon la province (%)","2.2","Nouvelle-Écosse",{"$f":"IFERROR(VLOOKUP(A4293,Translation!$A:$C,3,FALSE),A4293)","v":5},{"$f":"IFERROR(VLOOKUP(B4293,Translation!$A:$C,3,FALSE),B4293)","v":"Q3 2016"},{"$f":"IFERROR(VLOOKUP(C4293,Translation!$A:$C,3,FALSE),C4293)","v":"PROPRIÉTAIRES-OCCUPANTS, À L’UNITÉ"},{"$f":"IFERROR(VLOOKUP(D4293,Translation!$A:$C,3,FALSE),D4293)","v":"Nouvelle-Écosse"},{"$f":"IFERROR(VLOOKUP(E4293,Translation!$A:$C,3,FALSE),E4293)","v":2.2185837053759379},{"$f":"IFERROR(VLOOKUP(F4293,Translation!$A:$C,3,FALSE),F4293)","v":"Prêts hypothécaires assurés au cours de la période selon la province (%)"},{"$f":"IFERROR(VLOOKUP(G4293,Translation!$A:$C,3,FALSE),G4293)","v":"2.2"},{"$f":"IFERROR(VLOOKUP(H4293,Translation!$A:$C,3,FALSE),H4293)","v":"Nouvelle-Écosse"}]
[5,"T4 2017","PROPRIÉTAIRES-OCCUPANTS, À L’UNITÉ","Nouvelle-Écosse",2.1534649992716139,"Prêts hypothécaires assurés au cours de la période selon la province (%)","2.2","Nouvelle-Écosse",{"$f":"IFERROR(VLOOKUP(A4296,Translation!$A:$C,3,FALSE),A4296)","v":5},{"$f":"IFERROR(VLOOKUP(B4296,Translation!$A:$C,3,FALSE),B4296)","v":"T4 2017"},{"$f":"IFERROR(VLOOKUP(C4296,Translation!$A:$C,3,FALSE),C4296)","v":"PROPRIÉTAIRES-OCCUPANTS, À L’UNITÉ"},{"$f":"IFERROR(VLOOKUP(D4296,Translation!$A:$C,3,FALSE),D4296)","v":"Nouvelle-Écosse"},{"$f":"IFERROR(VLOOKUP(E4296,Translation!$A:$C,3,FALSE),E4296)","v":2.1534649992716139},{"$f":"IFERROR(VLOOKUP(F4296,Translation!$A:$C,3,FALSE),F4296)","v":"Prêts hypothécaires assurés au cours de la période selon la province (%)"},{"$f":"IFERROR(VLOOKUP(G4296,Translation!$A:$C,3,FALSE),G4296)","v":"2.2"},{"$f":"IFERROR(VLOOKUP(H4296,Translation!$A:$C,3,FALSE),H4296)","v":"Nouvelle-Écosse"}]
[5,"T1 2018","PROPRIÉTAIRES-OCCUPANTS, À L’UNITÉ","Nouveau-Brunswick",1.6281039733718055,"Prêts hypothécaires assurés au cours de la période selon la province (%)","1.6","Nouveau-Brunswick",{"$f":"IFERROR(VLOOKUP(A4298,Translation!$A:$C,3,FALSE),A4298)","v":5},{"$f":"IFERROR(VLOOKUP(B4298,Translation!$A:$C,3,FALSE),B4298)","v":"T1 2018"},{"$f":"IFERROR(VLOOKUP(C4298,Translation!$A:$C,3,FALSE),C4298)","v":"PROPRIÉTAIRES-OCCUPANTS, À L’UNITÉ"},{"$f":"IFERROR(VLOOKUP(D4298,Translation!$A:$C,3,FALSE),D4298)","v":"Nouveau-Brunswick"},{"$f":"IFERROR(VLOOKUP(E4298,Translation!$A:$C,3,FALSE),E4298)","v":1.6281039733718055},{"$f":"IFERROR(VLOOKUP(F4298,Translation!$A:$C,3,FALSE),F4298)","v":"Prêts hypothécaires assurés au cours de la période selon la province (%)"},{"$f":"IFERROR(VLOOKUP(G4298,Translation!$A:$C,3,FALSE),G4298)","v":"1.6"},{"$f":"IFERROR(VLOOKUP(H4298,Translation!$A:$C,3,FALSE),H4298)","v":"Nouveau-Brunswick"}]
[5,"Q3 2016","PROPRIÉTAIRES-OCCUPANTS, À L’UNITÉ","Nouveau-Brunswick",1.7921490130676121,"Prêts hypothécaires assurés au cours de la période selon la province (%)","1.8","Nouveau-Brunswick",{"$f":"IFERROR(VLOOKUP(A4301,Translation!$A:$C,3,FALSE),A4301)","v":5},{"$f":"IFERROR(VLOOKUP(B4301,Translation!$A:$C,3,FALSE),B4301)","v":"Q3 2016"},{"$f":"IFERROR(VLOOKUP(C4301,Translation!$A:$C,3,FALSE),C4301)","v":"PROPRIÉTAIRES-OCCUPANTS, À L’UNITÉ"},{"$f":"IFERROR(VLOOKUP(D4301,Translation!$A:$C,3,FALSE),D4301)","v":"Nouveau-Brunswick"},{"$f":"IFERROR(VLOOKUP(E4301,Translation!$A:$C,3,FALSE),E4301)","v":1.7921490130676121},{"$f":"IFERROR(VLOOKUP(F4301,Translation!$A:$C,3,FALSE),F4301)","v":"Prêts hypothécaires assurés au cours de la période selon la province (%)"},{"$f":"IFERROR(VLOOKUP(G4301,Translation!$A:$C,3,FALSE),G4301)","v":"1.8"},{"$f":"IFERROR(VLOOKUP(H4301,Translation!$A:$C,3,FALSE),H4301)","v":"Nouveau-Brunswick"}]
[5,"T4 2017","PROPRIÉTAIRES-OCCUPANTS, À L’UNITÉ","Nouveau-Brunswick",2.0880209039613118,"Prêts hypothécaires assurés au cours de la période selon la province (%)","2.1","Nouveau-Brunswick",{"$f":"IFERROR(VLOOKUP(A4304,Translation!$A:$C,3,FALSE),A4304)","v":5},{"$f":"IFERROR(VLOOKUP(B4304,Translation!$A:$C,3,FALSE),B4304)","v":"T4 2017"},{"$f":"IFERROR(VLOOKUP(C4304,Translation!$A:$C,3,FALSE),C4304)","v":"PROPRIÉTAIRES-OCCUPANTS, À L’UNITÉ"},{"$f":"IFERROR(VLOOKUP(D4304,Translation!$A:$C,3,FALSE),D4304)","v":"Nouveau-Brunswick"},{"$f":"IFERROR(VLOOKUP(E4304,Translation!$A:$C,3,FALSE),E4304)","v":2.0880209039613118},{"$f":"IFERROR(VLOOKUP(F4304,Translation!$A:$C,3,FALSE),F4304)","v":"Prêts hypothécaires assurés au cours de la période selon la province (%)"},{"$f":"IFERROR(VLOOKUP(G4304,Translation!$A:$C,3,FALSE),G4304)","v":"2.1"},{"$f":"IFERROR(VLOOKUP(H4304,Translation!$A:$C,3,FALSE),H4304)","v":"Nouveau-Brunswick"}]
[5,"Q2 2016","PROPRIÉTAIRES-OCCUPANTS, À L’UNITÉ","Québec",33.208067319840254,"Prêts hypothécaires assurés au cours de la période selon la province (%)","33.2","Québec",{"$f":"IFERROR(VLOOKUP(A4307,Translation!$A:$C,3,FALSE),A4307)","v":5},{"$f":"IFERROR(VLOOKUP(B4307,Translation!$A:$C,3,FALSE),B4307)","v":"Q2 2016"},{"$f":"IFERROR(VLOOKUP(C4307,Translation!$A:$C,3,FALSE),C4307)","v":"PROPRIÉTAIRES-OCCUPANTS, À L’UNITÉ"},{"$f":"IFERROR(VLOOKUP(D4307,Translation!$A:$C,3,FALSE),D4307)","v":"Québec"},{"$f":"IFERROR(VLOOKUP(E4307,Translation!$A:$C,3,FALSE),E4307)","v":33.208067319840254},{"$f":"IFERROR(VLOOKUP(F4307,Translation!$A:$C,3,FALSE),F4307)","v":"Prêts hypothécaires assurés au cours de la période selon la province (%)"},{"$f":"IFERROR(VLOOKUP(G4307,Translation!$A:$C,3,FALSE),G4307)","v":"33.2"},{"$f":"IFERROR(VLOOKUP(H4307,Translation!$A:$C,3,FALSE),H4307)","v":"Québec"}]
[5,"Q3 2016","PROPRIÉTAIRES-OCCUPANTS, À L’UNITÉ","Québec",17.396212058360902,"Prêts hypothécaires assurés au cours de la période selon la province (%)","17.4","Québec",{"$f":"IFERROR(VLOOKUP(A4309,Translation!$A:$C,3,FALSE),A4309)","v":5},{"$f":"IFERROR(VLOOKUP(B4309,Translation!$A:$C,3,FALSE),B4309)","v":"Q3 2016"},{"$f":"IFERROR(VLOOKUP(C4309,Translation!$A:$C,3,FALSE),C4309)","v":"PROPRIÉTAIRES-OCCUPANTS, À L’UNITÉ"},{"$f":"IFERROR(VLOOKUP(D4309,Translation!$A:$C,3,FALSE),D4309)","v":"Québec"},{"$f":"IFERROR(VLOOKUP(E4309,Translation!$A:$C,3,FALSE),E4309)","v":17.396212058360902},{"$f":"IFERROR(VLOOKUP(F4309,Translation!$A:$C,3,FALSE),F4309)","v":"Prêts hypothécaires assurés au cours de la période selon la province (%)"},{"$f":"IFERROR(VLOOKUP(G4309,Translation!$A:$C,3,FALSE),G4309)","v":"17.4"},{"$f":"IFERROR(VLOOKUP(H4309,Translation!$A:$C,3,FALSE),H4309)","v":"Québec"}]
[5,"T4 2017","PROPRIÉTAIRES-OCCUPANTS, À L’UNITÉ","Québec",22.850256832156894,"Prêts hypothécaires assurés au cours de la période selon la province (%)","22.9","Québec",{"$f":"IFERROR(VLOOKUP(A4312,Translation!$A:$C,3,FALSE),A4312)","v":5},{"$f":"IFERROR(VLOOKUP(B4312,Translation!$A:$C,3,FALSE),B4312)","v":"T4 2017"},{"$f":"IFERROR(VLOOKUP(C4312,Translation!$A:$C,3,FALSE),C4312)","v":"PROPRIÉTAIRES-OCCUPANTS, À L’UNITÉ"},{"$f":"IFERROR(VLOOKUP(D4312,Translation!$A:$C,3,FALSE),D4312)","v":"Québec"},{"$f":"IFERROR(VLOOKUP(E4312,Translation!$A:$C,3,FALSE),E4312)","v":22.850256832156894},{"$f":"IFERROR(VLOOKUP(F4312,Translation!$A:$C,3,FALSE),F4312)","v":"Prêts hypothécaires assurés au cours de la période selon la province (%)"},{"$f":"IFERROR(VLOOKUP(G4312,Translation!$A:$C,3,FALSE),G4312)","v":"22.9"},{"$f":"IFERROR(VLOOKUP(H4312,Translation!$A:$C,3,FALSE),H4312)","v":"Québec"}]
[5,"T1 2018","PROPRIÉTAIRES-OCCUPANTS, À L’UNITÉ","Ontario",32.42055515572288,"Prêts hypothécaires assurés au cours de la période selon la province (%)","32.4","Ontario",{"$f":"IFERROR(VLOOKUP(A4314,Translation!$A:$C,3,FALSE),A4314)","v":5},{"$f":"IFERROR(VLOOKUP(B4314,Translation!$A:$C,3,FALSE),B4314)","v":"T1 2018"},{"$f":"IFERROR(VLOOKUP(C4314,Translation!$A:$C,3,FALSE),C4314)","v":"PROPRIÉTAIRES-OCCUPANTS, À L’UNITÉ"},{"$f":"IFERROR(VLOOKUP(D4314,Translation!$A:$C,3,FALSE),D4314)","v":"Ontario"},{"$f":"IFERROR(VLOOKUP(E4314,Translation!$A:$C,3,FALSE),E4314)","v":32.42055515572288},{"$f":"IFERROR(VLOOKUP(F4314,Translation!$A:$C,3,FALSE),F4314)","v":"Prêts hypothécaires assurés au cours de la période selon la province (%)"},{"$f":"IFERROR(VLOOKUP(G4314,Translation!$A:$C,3,FALSE),G4314)","v":"32.4"},{"$f":"IFERROR(VLOOKUP(H4314,Translation!$A:$C,3,FALSE),H4314)","v":"Ontario"}]
[5,"Q2 2016","PROPRIÉTAIRES-OCCUPANTS, À L’UNITÉ","Ontario",27.154178632390632,"Prêts hypothécaires assurés au cours de la période selon la province (%)","27.2","Ontario",{"$f":"IFERROR(VLOOKUP(A4315,Translation!$A:$C,3,FALSE),A4315)","v":5},{"$f":"IFERROR(VLOOKUP(B4315,Translation!$A:$C,3,FALSE),B4315)","v":"Q2 2016"},{"$f":"IFERROR(VLOOKUP(C4315,Translation!$A:$C,3,FALSE),C4315)","v":"PROPRIÉTAIRES-OCCUPANTS, À L’UNITÉ"},{"$f":"IFERROR(VLOOKUP(D4315,Translation!$A:$C,3,FALSE),D4315)","v":"Ontario"},{"$f":"IFERROR(VLOOKUP(E4315,Translation!$A:$C,3,FALSE),E4315)","v":27.154178632390632},{"$f":"IFERROR(VLOOKUP(F4315,Translation!$A:$C,3,FALSE),F4315)","v":"Prêts hypothécaires assurés au cours de la période selon la province (%)"},{"$f":"IFERROR(VLOOKUP(G4315,Translation!$A:$C,3,FALSE),G4315)","v":"27.2"},{"$f":"IFERROR(VLOOKUP(H4315,Translation!$A:$C,3,FALSE),H4315)","v":"Ontario"}]
[5,"Q3 2016","PROPRIÉTAIRES-OCCUPANTS, À L’UNITÉ","Ontario",36.386915338662142,"Prêts hypothécaires assurés au cours de la période selon la province (%)","36.4","Ontario",{"$f":"IFERROR(VLOOKUP(A4317,Translation!$A:$C,3,FALSE),A4317)","v":5},{"$f":"IFERROR(VLOOKUP(B4317,Translation!$A:$C,3,FALSE),B4317)","v":"Q3 2016"},{"$f":"IFERROR(VLOOKUP(C4317,Translation!$A:$C,3,FALSE),C4317)","v":"PROPRIÉTAIRES-OCCUPANTS, À L’UNITÉ"},{"$f":"IFERROR(VLOOKUP(D4317,Translation!$A:$C,3,FALSE),D4317)","v":"Ontario"},{"$f":"IFERROR(VLOOKUP(E4317,Translation!$A:$C,3,FALSE),E4317)","v":36.386915338662142},{"$f":"IFERROR(VLOOKUP(F4317,Translation!$A:$C,3,FALSE),F4317)","v":"Prêts hypothécaires assurés au cours de la période selon la province (%)"},{"$f":"IFERROR(VLOOKUP(G4317,Translation!$A:$C,3,FALSE),G4317)","v":"36.4"},{"$f":"IFERROR(VLOOKUP(H4317,Translation!$A:$C,3,FALSE),H4317)","v":"Ontario"}]
[5,"T4 2017","PROPRIÉTAIRES-OCCUPANTS, À L’UNITÉ","Ontario",33.057783376735642,"Prêts hypothécaires assurés au cours de la période selon la province (%)","33.1","Ontario",{"$f":"IFERROR(VLOOKUP(A4320,Translation!$A:$C,3,FALSE),A4320)","v":5},{"$f":"IFERROR(VLOOKUP(B4320,Translation!$A:$C,3,FALSE),B4320)","v":"T4 2017"},{"$f":"IFERROR(VLOOKUP(C4320,Translation!$A:$C,3,FALSE),C4320)","v":"PROPRIÉTAIRES-OCCUPANTS, À L’UNITÉ"},{"$f":"IFERROR(VLOOKUP(D4320,Translation!$A:$C,3,FALSE),D4320)","v":"Ontario"},{"$f":"IFERROR(VLOOKUP(E4320,Translation!$A:$C,3,FALSE),E4320)","v":33.057783376735642},{"$f":"IFERROR(VLOOKUP(F4320,Translation!$A:$C,3,FALSE),F4320)","v":"Prêts hypothécaires assurés au cours de la période selon la province (%)"},{"$f":"IFERROR(VLOOKUP(G4320,Translation!$A:$C,3,FALSE),G4320)","v":"33.1"},{"$f":"IFERROR(VLOOKUP(H4320,Translation!$A:$C,3,FALSE),H4320)","v":"Ontario"}]
[5,"Q2 2016","PROPRIÉTAIRES-OCCUPANTS, À L’UNITÉ","Manitoba",3.0140340304456941,"Prêts hypothécaires assurés au cours de la période selon la province (%)","3.0","Manitoba",{"$f":"IFERROR(VLOOKUP(A4323,Translation!$A:$C,3,FALSE),A4323)","v":5},{"$f":"IFERROR(VLOOKUP(B4323,Translation!$A:$C,3,FALSE),B4323)","v":"Q2 2016"},{"$f":"IFERROR(VLOOKUP(C4323,Translation!$A:$C,3,FALSE),C4323)","v":"PROPRIÉTAIRES-OCCUPANTS, À L’UNITÉ"},{"$f":"IFERROR(VLOOKUP(D4323,Translation!$A:$C,3,FALSE),D4323)","v":"Manitoba"},{"$f":"IFERROR(VLOOKUP(E4323,Translation!$A:$C,3,FALSE),E4323)","v":3.0140340304456941},{"$f":"IFERROR(VLOOKUP(F4323,Translation!$A:$C,3,FALSE),F4323)","v":"Prêts hypothécaires assurés au cours de la période selon la province (%)"},{"$f":"IFERROR(VLOOKUP(G4323,Translation!$A:$C,3,FALSE),G4323)","v":"3.0"},{"$f":"IFERROR(VLOOKUP(H4323,Translation!$A:$C,3,FALSE),H4323)","v":"Manitoba"}]
[5,"Q3 2016","PROPRIÉTAIRES-OCCUPANTS, À L’UNITÉ","Manitoba",4.6653432892519939,"Prêts hypothécaires assurés au cours de la période selon la province (%)","4.7","Manitoba",{"$f":"IFERROR(VLOOKUP(A4325,Translation!$A:$C,3,FALSE),A4325)","v":5},{"$f":"IFERROR(VLOOKUP(B4325,Translation!$A:$C,3,FALSE),B4325)","v":"Q3 2016"},{"$f":"IFERROR(VLOOKUP(C4325,Translation!$A:$C,3,FALSE),C4325)","v":"PROPRIÉTAIRES-OCCUPANTS, À L’UNITÉ"},{"$f":"IFERROR(VLOOKUP(D4325,Translation!$A:$C,3,FALSE),D4325)","v":"Manitoba"},{"$f":"IFERROR(VLOOKUP(E4325,Translation!$A:$C,3,FALSE),E4325)","v":4.6653432892519939},{"$f":"IFERROR(VLOOKUP(F4325,Translation!$A:$C,3,FALSE),F4325)","v":"Prêts hypothécaires assurés au cours de la période selon la province (%)"},{"$f":"IFERROR(VLOOKUP(G4325,Translation!$A:$C,3,FALSE),G4325)","v":"4.7"},{"$f":"IFERROR(VLOOKUP(H4325,Translation!$A:$C,3,FALSE),H4325)","v":"Manitoba"}]
[5,"T4 2017","PROPRIÉTAIRES-OCCUPANTS, À L’UNITÉ","Manitoba",4.568318661719788,"Prêts hypothécaires assurés au cours de la période selon la province (%)","4.6","Manitoba",{"$f":"IFERROR(VLOOKUP(A4328,Translation!$A:$C,3,FALSE),A4328)","v":5},{"$f":"IFERROR(VLOOKUP(B4328,Translation!$A:$C,3,FALSE),B4328)","v":"T4 2017"},{"$f":"IFERROR(VLOOKUP(C4328,Translation!$A:$C,3,FALSE),C4328)","v":"PROPRIÉTAIRES-OCCUPANTS, À L’UNITÉ"},{"$f":"IFERROR(VLOOKUP(D4328,Translation!$A:$C,3,FALSE),D4328)","v":"Manitoba"},{"$f":"IFERROR(VLOOKUP(E4328,Translation!$A:$C,3,FALSE),E4328)","v":4.568318661719788},{"$f":"IFERROR(VLOOKUP(F4328,Translation!$A:$C,3,FALSE),F4328)","v":"Prêts hypothécaires assurés au cours de la période selon la province (%)"},{"$f":"IFERROR(VLOOKUP(G4328,Translation!$A:$C,3,FALSE),G4328)","v":"4.6"},{"$f":"IFERROR(VLOOKUP(H4328,Translation!$A:$C,3,FALSE),H4328)","v":"Manitoba"}]
[5,"Q2 2016","PROPRIÉTAIRES-OCCUPANTS, À L’UNITÉ","Saskatchewan",2.8854452892018485,"Prêts hypothécaires assurés au cours de la période selon la province (%)","2.9","Saskatchewan",{"$f":"IFERROR(VLOOKUP(A4331,Translation!$A:$C,3,FALSE),A4331)","v":5},{"$f":"IFERROR(VLOOKUP(B4331,Translation!$A:$C,3,FALSE),B4331)","v":"Q2 2016"},{"$f":"IFERROR(VLOOKUP(C4331,Translation!$A:$C,3,FALSE),C4331)","v":"PROPRIÉTAIRES-OCCUPANTS, À L’UNITÉ"},{"$f":"IFERROR(VLOOKUP(D4331,Translation!$A:$C,3,FALSE),D4331)","v":"Saskatchewan"},{"$f":"IFERROR(VLOOKUP(E4331,Translation!$A:$C,3,FALSE),E4331)","v":2.8854452892018485},{"$f":"IFERROR(VLOOKUP(F4331,Translation!$A:$C,3,FALSE),F4331)","v":"Prêts hypothécaires assurés au cours de la période selon la province (%)"},{"$f":"IFERROR(VLOOKUP(G4331,Translation!$A:$C,3,FALSE),G4331)","v":"2.9"},{"$f":"IFERROR(VLOOKUP(H4331,Translation!$A:$C,3,FALSE),H4331)","v":"Saskatchewan"}]
[5,"Q3 2016","PROPRIÉTAIRES-OCCUPANTS, À L’UNITÉ","Saskatchewan",3.27870653578531,"Prêts hypothécaires assurés au cours de la période selon la province (%)","3.3","Saskatchewan",{"$f":"IFERROR(VLOOKUP(A4333,Translation!$A:$C,3,FALSE),A4333)","v":5},{"$f":"IFERROR(VLOOKUP(B4333,Translation!$A:$C,3,FALSE),B4333)","v":"Q3 2016"},{"$f":"IFERROR(VLOOKUP(C4333,Translation!$A:$C,3,FALSE),C4333)","v":"PROPRIÉTAIRES-OCCUPANTS, À L’UNITÉ"},{"$f":"IFERROR(VLOOKUP(D4333,Translation!$A:$C,3,FALSE),D4333)","v":"Saskatchewan"},{"$f":"IFERROR(VLOOKUP(E4333,Translation!$A:$C,3,FALSE),E4333)","v":3.27870653578531},{"$f":"IFERROR(VLOOKUP(F4333,Translation!$A:$C,3,FALSE),F4333)","v":"Prêts hypothécaires assurés au cours de la période selon la province (%)"},{"$f":"IFERROR(VLOOKUP(G4333,Translation!$A:$C,3,FALSE),G4333)","v":"3.3"},{"$f":"IFERROR(VLOOKUP(H4333,Translation!$A:$C,3,FALSE),H4333)","v":"Saskatchewan"}]
[5,"T3 2017","PROPRIÉTAIRES-OCCUPANTS, À L’UNITÉ","Saskatchewan",3.3092379463262169,"Prêts hypothécaires assurés au cours de la période selon la province (%)","3.3","Saskatchewan",{"$f":"IFERROR(VLOOKUP(A4334,Translation!$A:$C,3,FALSE),A4334)","v":5},{"$f":"IFERROR(VLOOKUP(B4334,Translation!$A:$C,3,FALSE),B4334)","v":"T3 2017"},{"$f":"IFERROR(VLOOKUP(C4334,Translation!$A:$C,3,FALSE),C4334)","v":"PROPRIÉTAIRES-OCCUPANTS, À L’UNITÉ"},{"$f":"IFERROR(VLOOKUP(D4334,Translation!$A:$C,3,FALSE),D4334)","v":"Saskatchewan"},{"$f":"IFERROR(VLOOKUP(E4334,Translation!$A:$C,3,FALSE),E4334)","v":3.3092379463262169},{"$f":"IFERROR(VLOOKUP(F4334,Translation!$A:$C,3,FALSE),F4334)","v":"Prêts hypothécaires assurés au cours de la période selon la province (%)"},{"$f":"IFERROR(VLOOKUP(G4334,Translation!$A:$C,3,FALSE),G4334)","v":"3.3"},{"$f":"IFERROR(VLOOKUP(H4334,Translation!$A:$C,3,FALSE),H4334)","v":"Saskatchewan"}]
[5,"T1 2018","PROPRIÉTAIRES-OCCUPANTS, À L’UNITÉ","Alberta",19.918617100058835,"Prêts hypothécaires assurés au cours de la période selon la province (%)","19.9","Alberta",{"$f":"IFERROR(VLOOKUP(A4338,Translation!$A:$C,3,FALSE),A4338)","v":5},{"$f":"IFERROR(VLOOKUP(B4338,Translation!$A:$C,3,FALSE),B4338)","v":"T1 2018"},{"$f":"IFERROR(VLOOKUP(C4338,Translation!$A:$C,3,FALSE),C4338)","v":"PROPRIÉTAIRES-OCCUPANTS, À L’UNITÉ"},{"$f":"IFERROR(VLOOKUP(D4338,Translation!$A:$C,3,FALSE),D4338)","v":"Alberta"},{"$f":"IFERROR(VLOOKUP(E4338,Translation!$A:$C,3,FALSE),E4338)","v":19.918617100058835},{"$f":"IFERROR(VLOOKUP(F4338,Translation!$A:$C,3,FALSE),F4338)","v":"Prêts hypothécaires assurés au cours de la période selon la province (%)"},{"$f":"IFERROR(VLOOKUP(G4338,Translation!$A:$C,3,FALSE),G4338)","v":"19.9"},{"$f":"IFERROR(VLOOKUP(H4338,Translation!$A:$C,3,FALSE),H4338)","v":"Alberta"}]
[5,"Q2 2016","PROPRIÉTAIRES-OCCUPANTS, À L’UNITÉ","Alberta",17.295555973675079,"Prêts hypothécaires assurés au cours de la période selon la province (%)","17.3","Alberta",{"$f":"IFERROR(VLOOKUP(A4339,Translation!$A:$C,3,FALSE),A4339)","v":5},{"$f":"IFERROR(VLOOKUP(B4339,Translation!$A:$C,3,FALSE),B4339)","v":"Q2 2016"},{"$f":"IFERROR(VLOOKUP(C4339,Translation!$A:$C,3,FALSE),C4339)","v":"PROPRIÉTAIRES-OCCUPANTS, À L’UNITÉ"},{"$f":"IFERROR(VLOOKUP(D4339,Translation!$A:$C,3,FALSE),D4339)","v":"Alberta"},{"$f":"IFERROR(VLOOKUP(E4339,Translation!$A:$C,3,FALSE),E4339)","v":17.295555973675079},{"$f":"IFERROR(VLOOKUP(F4339,Translation!$A:$C,3,FALSE),F4339)","v":"Prêts hypothécaires assurés au cours de la période selon la province (%)"},{"$f":"IFERROR(VLOOKUP(G4339,Translation!$A:$C,3,FALSE),G4339)","v":"17.3"},{"$f":"IFERROR(VLOOKUP(H4339,Translation!$A:$C,3,FALSE),H4339)","v":"Alberta"}]
[5,"T3 2017","PROPRIÉTAIRES-OCCUPANTS, À L’UNITÉ","Alberta",18.46611875268686,"Prêts hypothécaires assurés au cours de la période selon la province (%)","18.5","Alberta",{"$f":"IFERROR(VLOOKUP(A4342,Translation!$A:$C,3,FALSE),A4342)","v":5},{"$f":"IFERROR(VLOOKUP(B4342,Translation!$A:$C,3,FALSE),B4342)","v":"T3 2017"},{"$f":"IFERROR(VLOOKUP(C4342,Translation!$A:$C,3,FALSE),C4342)","v":"PROPRIÉTAIRES-OCCUPANTS, À L’UNITÉ"},{"$f":"IFERROR(VLOOKUP(D4342,Translation!$A:$C,3,FALSE),D4342)","v":"Alberta"},{"$f":"IFERROR(VLOOKUP(E4342,Translation!$A:$C,3,FALSE),E4342)","v":18.46611875268686},{"$f":"IFERROR(VLOOKUP(F4342,Translation!$A:$C,3,FALSE),F4342)","v":"Prêts hypothécaires assurés au cours de la période selon la province (%)"},{"$f":"IFERROR(VLOOKUP(G4342,Translation!$A:$C,3,FALSE),G4342)","v":"18.5"},{"$f":"IFERROR(VLOOKUP(H4342,Translation!$A:$C,3,FALSE),H4342)","v":"Alberta"}]
[5,"T4 2017","PROPRIÉTAIRES-OCCUPANTS, À L’UNITÉ","Alberta",17.919198957987561,"Prêts hypothécaires assurés au cours de la période selon la province (%)","17.9","Alberta",{"$f":"IFERROR(VLOOKUP(A4344,Translation!$A:$C,3,FALSE),A4344)","v":5},{"$f":"IFERROR(VLOOKUP(B4344,Translation!$A:$C,3,FALSE),B4344)","v":"T4 2017"},{"$f":"IFERROR(VLOOKUP(C4344,Translation!$A:$C,3,FALSE),C4344)","v":"PROPRIÉTAIRES-OCCUPANTS, À L’UNITÉ"},{"$f":"IFERROR(VLOOKUP(D4344,Translation!$A:$C,3,FALSE),D4344)","v":"Alberta"},{"$f":"IFERROR(VLOOKUP(E4344,Translation!$A:$C,3,FALSE),E4344)","v":17.919198957987561},{"$f":"IFERROR(VLOOKUP(F4344,Translation!$A:$C,3,FALSE),F4344)","v":"Prêts hypothécaires assurés au cours de la période selon la province (%)"},{"$f":"IFERROR(VLOOKUP(G4344,Translation!$A:$C,3,FALSE),G4344)","v":"17.9"},{"$f":"IFERROR(VLOOKUP(H4344,Translation!$A:$C,3,FALSE),H4344)","v":"Alberta"}]
[5,"T2 2017","PROPRIÉTAIRES-OCCUPANTS, À L’UNITÉ","Colombie-Britannique",9.6495072399574049,"Prêts hypothécaires assurés au cours de la période selon la province (%)","9.6","Colombie-Britannique",{"$f":"IFERROR(VLOOKUP(A4348,Translation!$A:$C,3,FALSE),A4348)","v":5},{"$f":"IFERROR(VLOOKUP(B4348,Translation!$A:$C,3,FALSE),B4348)","v":"T2 2017"},{"$f":"IFERROR(VLOOKUP(C4348,Translation!$A:$C,3,FALSE),C4348)","v":"PROPRIÉTAIRES-OCCUPANTS, À L’UNITÉ"},{"$f":"IFERROR(VLOOKUP(D4348,Translation!$A:$C,3,FALSE),D4348)","v":"Colombie-Britannique"},{"$f":"IFERROR(VLOOKUP(E4348,Translation!$A:$C,3,FALSE),E4348)","v":9.6495072399574049},{"$f":"IFERROR(VLOOKUP(F4348,Translation!$A:$C,3,FALSE),F4348)","v":"Prêts hypothécaires assurés au cours de la période selon la province (%)"},{"$f":"IFERROR(VLOOKUP(G4348,Translation!$A:$C,3,FALSE),G4348)","v":"9.6"},{"$f":"IFERROR(VLOOKUP(H4348,Translation!$A:$C,3,FALSE),H4348)","v":"Colombie-Britannique"}]
[5,"Q3 2016","PROPRIÉTAIRES-OCCUPANTS, À L’UNITÉ","Colombie-Britannique",13.156019064062402,"Prêts hypothécaires assurés au cours de la période selon la province (%)","13.2","Colombie-Britannique",{"$f":"IFERROR(VLOOKUP(A4349,Translation!$A:$C,3,FALSE),A4349)","v":5},{"$f":"IFERROR(VLOOKUP(B4349,Translation!$A:$C,3,FALSE),B4349)","v":"Q3 2016"},{"$f":"IFERROR(VLOOKUP(C4349,Translation!$A:$C,3,FALSE),C4349)","v":"PROPRIÉTAIRES-OCCUPANTS, À L’UNITÉ"},{"$f":"IFERROR(VLOOKUP(D4349,Translation!$A:$C,3,FALSE),D4349)","v":"Colombie-Britannique"},{"$f":"IFERROR(VLOOKUP(E4349,Translation!$A:$C,3,FALSE),E4349)","v":13.156019064062402},{"$f":"IFERROR(VLOOKUP(F4349,Translation!$A:$C,3,FALSE),F4349)","v":"Prêts hypothécaires assurés au cours de la période selon la province (%)"},{"$f":"IFERROR(VLOOKUP(G4349,Translation!$A:$C,3,FALSE),G4349)","v":"13.2"},{"$f":"IFERROR(VLOOKUP(H4349,Translation!$A:$C,3,FALSE),H4349)","v":"Colombie-Britannique"}]
[5,"T4 2017","PROPRIÉTAIRES-OCCUPANTS, À L’UNITÉ","Colombie-Britannique",11.669954661429969,"Prêts hypothécaires assurés au cours de la période selon la province (%)","11.7","Colombie-Britannique",{"$f":"IFERROR(VLOOKUP(A4352,Translation!$A:$C,3,FALSE),A4352)","v":5},{"$f":"IFERROR(VLOOKUP(B4352,Translation!$A:$C,3,FALSE),B4352)","v":"T4 2017"},{"$f":"IFERROR(VLOOKUP(C4352,Translation!$A:$C,3,FALSE),C4352)","v":"PROPRIÉTAIRES-OCCUPANTS, À L’UNITÉ"},{"$f":"IFERROR(VLOOKUP(D4352,Translation!$A:$C,3,FALSE),D4352)","v":"Colombie-Britannique"},{"$f":"IFERROR(VLOOKUP(E4352,Translation!$A:$C,3,FALSE),E4352)","v":11.669954661429969},{"$f":"IFERROR(VLOOKUP(F4352,Translation!$A:$C,3,FALSE),F4352)","v":"Prêts hypothécaires assurés au cours de la période selon la province (%)"},{"$f":"IFERROR(VLOOKUP(G4352,Translation!$A:$C,3,FALSE),G4352)","v":"11.7"},{"$f":"IFERROR(VLOOKUP(H4352,Translation!$A:$C,3,FALSE),H4352)","v":"Colombie-Britannique"}]
[5,"T1 2017","PROPRIÉTAIRES-OCCUPANTS, À L’UNITÉ","Territoires",0.7287531507155619,"Prêts hypothécaires assurés au cours de la période selon la province (%)","0.7","Territoires",{"$f":"IFERROR(VLOOKUP(A4353,Translation!$A:$C,3,FALSE),A4353)","v":5},{"$f":"IFERROR(VLOOKUP(B4353,Translation!$A:$C,3,FALSE),B4353)","v":"T1 2017"},{"$f":"IFERROR(VLOOKUP(C4353,Translation!$A:$C,3,FALSE),C4353)","v":"PROPRIÉTAIRES-OCCUPANTS, À L’UNITÉ"},{"$f":"IFERROR(VLOOKUP(D4353,Translation!$A:$C,3,FALSE),D4353)","v":"Territoires"},{"$f":"IFERROR(VLOOKUP(E4353,Translation!$A:$C,3,FALSE),E4353)","v":0.7287531507155619},{"$f":"IFERROR(VLOOKUP(F4353,Translation!$A:$C,3,FALSE),F4353)","v":"Prêts hypothécaires assurés au cours de la période selon la province (%)"},{"$f":"IFERROR(VLOOKUP(G4353,Translation!$A:$C,3,FALSE),G4353)","v":"0.7"},{"$f":"IFERROR(VLOOKUP(H4353,Translation!$A:$C,3,FALSE),H4353)","v":"Territoires"}]
[5,"Q3 2016","PROPRIÉTAIRES-OCCUPANTS, À L’UNITÉ","Territoires",0.65281633039866316,"Prêts hypothécaires assurés au cours de la période selon la province (%)","0.7","Territoires",{"$f":"IFERROR(VLOOKUP(A4357,Translation!$A:$C,3,FALSE),A4357)","v":5},{"$f":"IFERROR(VLOOKUP(B4357,Translation!$A:$C,3,FALSE),B4357)","v":"Q3 2016"},{"$f":"IFERROR(VLOOKUP(C4357,Translation!$A:$C,3,FALSE),C4357)","v":"PROPRIÉTAIRES-OCCUPANTS, À L’UNITÉ"},{"$f":"IFERROR(VLOOKUP(D4357,Translation!$A:$C,3,FALSE),D4357)","v":"Territoires"},{"$f":"IFERROR(VLOOKUP(E4357,Translation!$A:$C,3,FALSE),E4357)","v":0.65281633039866316},{"$f":"IFERROR(VLOOKUP(F4357,Translation!$A:$C,3,FALSE),F4357)","v":"Prêts hypothécaires assurés au cours de la période selon la province (%)"},{"$f":"IFERROR(VLOOKUP(G4357,Translation!$A:$C,3,FALSE),G4357)","v":"0.7"},{"$f":"IFERROR(VLOOKUP(H4357,Translation!$A:$C,3,FALSE),H4357)","v":"Territoires"}]
[5,"Q4 2016","PROPRIÉTAIRES-OCCUPANTS, À L’UNITÉ","Territoires",0.56118296552796643,"Prêts hypothécaires assurés au cours de la période selon la province (%)","0.6","Territoires",{"$f":"IFERROR(VLOOKUP(A4359,Translation!$A:$C,3,FALSE),A4359)","v":5},{"$f":"IFERROR(VLOOKUP(B4359,Translation!$A:$C,3,FALSE),B4359)","v":"Q4 2016"},{"$f":"IFERROR(VLOOKUP(C4359,Translation!$A:$C,3,FALSE),C4359)","v":"PROPRIÉTAIRES-OCCUPANTS, À L’UNITÉ"},{"$f":"IFERROR(VLOOKUP(D4359,Translation!$A:$C,3,FALSE),D4359)","v":"Territoires"},{"$f":"IFERROR(VLOOKUP(E4359,Translation!$A:$C,3,FALSE),E4359)","v":0.56118296552796643},{"$f":"IFERROR(VLOOKUP(F4359,Translation!$A:$C,3,FALSE),F4359)","v":"Prêts hypothécaires assurés au cours de la période selon la province (%)"},{"$f":"IFERROR(VLOOKUP(G4359,Translation!$A:$C,3,FALSE),G4359)","v":"0.6"},{"$f":"IFERROR(VLOOKUP(H4359,Translation!$A:$C,3,FALSE),H4359)","v":"Territoires"}]
[5,"T1 2018","ASSURANCE DE PORTEFEUILLE","Terre-Neuve-et-Labrador",2.3327278819387284E-2,"Prêts hypothécaires assurés au cours de la période selon la province (%)","0.0","Terre-Neuve-et-Labrador",{"$f":"IFERROR(VLOOKUP(A4362,Translation!$A:$C,3,FALSE),A4362)","v":5},{"$f":"IFERROR(VLOOKUP(B4362,Translation!$A:$C,3,FALSE),B4362)","v":"T1 2018"},{"$f":"IFERROR(VLOOKUP(C4362,Translation!$A:$C,3,FALSE),C4362)","v":"ASSURANCE DE PORTEFEUILLE"},{"$f":"IFERROR(VLOOKUP(D4362,Translation!$A:$C,3,FALSE),D4362)","v":"Terre-Neuve-et-Labrador"},{"$f":"IFERROR(VLOOKUP(E4362,Translation!$A:$C,3,FALSE),E4362)","v":2.3327278819387284E-2},{"$f":"IFERROR(VLOOKUP(F4362,Translation!$A:$C,3,FALSE),F4362)","v":"Prêts hypothécaires assurés au cours de la période selon la province (%)"},{"$f":"IFERROR(VLOOKUP(G4362,Translation!$A:$C,3,FALSE),G4362)","v":"0.0"},{"$f":"IFERROR(VLOOKUP(H4362,Translation!$A:$C,3,FALSE),H4362)","v":"Terre-Neuve-et-Labrador"}]
[5,"Q2 2016","ASSURANCE DE PORTEFEUILLE","Terre-Neuve-et-Labrador",1.1080970448157101,"Prêts hypothécaires assurés au cours de la période selon la province (%)","1.1","Terre-Neuve-et-Labrador",{"$f":"IFERROR(VLOOKUP(A4363,Translation!$A:$C,3,FALSE),A4363)","v":5},{"$f":"IFERROR(VLOOKUP(B4363,Translation!$A:$C,3,FALSE),B4363)","v":"Q2 2016"},{"$f":"IFERROR(VLOOKUP(C4363,Translation!$A:$C,3,FALSE),C4363)","v":"ASSURANCE DE PORTEFEUILLE"},{"$f":"IFERROR(VLOOKUP(D4363,Translation!$A:$C,3,FALSE),D4363)","v":"Terre-Neuve-et-Labrador"},{"$f":"IFERROR(VLOOKUP(E4363,Translation!$A:$C,3,FALSE),E4363)","v":1.1080970448157101},{"$f":"IFERROR(VLOOKUP(F4363,Translation!$A:$C,3,FALSE),F4363)","v":"Prêts hypothécaires assurés au cours de la période selon la province (%)"},{"$f":"IFERROR(VLOOKUP(G4363,Translation!$A:$C,3,FALSE),G4363)","v":"1.1"},{"$f":"IFERROR(VLOOKUP(H4363,Translation!$A:$C,3,FALSE),H4363)","v":"Terre-Neuve-et-Labrador"}]
[5,"Q4 2016","ASSURANCE DE PORTEFEUILLE","Terre-Neuve-et-Labrador",0.34778164885657792,"Prêts hypothécaires assurés au cours de la période selon la province (%)","0.3","Terre-Neuve-et-Labrador",{"$f":"IFERROR(VLOOKUP(A4367,Translation!$A:$C,3,FALSE),A4367)","v":5},{"$f":"IFERROR(VLOOKUP(B4367,Translation!$A:$C,3,FALSE),B4367)","v":"Q4 2016"},{"$f":"IFERROR(VLOOKUP(C4367,Translation!$A:$C,3,FALSE),C4367)","v":"ASSURANCE DE PORTEFEUILLE"},{"$f":"IFERROR(VLOOKUP(D4367,Translation!$A:$C,3,FALSE),D4367)","v":"Terre-Neuve-et-Labrador"},{"$f":"IFERROR(VLOOKUP(E4367,Translation!$A:$C,3,FALSE),E4367)","v":0.34778164885657792},{"$f":"IFERROR(VLOOKUP(F4367,Translation!$A:$C,3,FALSE),F4367)","v":"Prêts hypothécaires assurés au cours de la période selon la province (%)"},{"$f":"IFERROR(VLOOKUP(G4367,Translation!$A:$C,3,FALSE),G4367)","v":"0.3"},{"$f":"IFERROR(VLOOKUP(H4367,Translation!$A:$C,3,FALSE),H4367)","v":"Terre-Neuve-et-Labrador"}]
[5,"T4 2017","ASSURANCE DE PORTEFEUILLE","Terre-Neuve-et-Labrador",0.44166252315678362,"Prêts hypothécaires assurés au cours de la période selon la province (%)","0.4","Terre-Neuve-et-Labrador",{"$f":"IFERROR(VLOOKUP(A4368,Translation!$A:$C,3,FALSE),A4368)","v":5},{"$f":"IFERROR(VLOOKUP(B4368,Translation!$A:$C,3,FALSE),B4368)","v":"T4 2017"},{"$f":"IFERROR(VLOOKUP(C4368,Translation!$A:$C,3,FALSE),C4368)","v":"ASSURANCE DE PORTEFEUILLE"},{"$f":"IFERROR(VLOOKUP(D4368,Translation!$A:$C,3,FALSE),D4368)","v":"Terre-Neuve-et-Labrador"},{"$f":"IFERROR(VLOOKUP(E4368,Translation!$A:$C,3,FALSE),E4368)","v":0.44166252315678362},{"$f":"IFERROR(VLOOKUP(F4368,Translation!$A:$C,3,FALSE),F4368)","v":"Prêts hypothécaires assurés au cours de la période selon la province (%)"},{"$f":"IFERROR(VLOOKUP(G4368,Translation!$A:$C,3,FALSE),G4368)","v":"0.4"},{"$f":"IFERROR(VLOOKUP(H4368,Translation!$A:$C,3,FALSE),H4368)","v":"Terre-Neuve-et-Labrador"}]
[5,"Q2 2016","ASSURANCE DE PORTEFEUILLE","Île-du-Prince-Édouard",0.13464578900654353,"Prêts hypothécaires assurés au cours de la période selon la province (%)","0.1","Île-du-Prince-Édouard",{"$f":"IFERROR(VLOOKUP(A4370,Translation!$A:$C,3,FALSE),A4370)","v":5},{"$f":"IFERROR(VLOOKUP(B4370,Translation!$A:$C,3,FALSE),B4370)","v":"Q2 2016"},{"$f":"IFERROR(VLOOKUP(C4370,Translation!$A:$C,3,FALSE),C4370)","v":"ASSURANCE DE PORTEFEUILLE"},{"$f":"IFERROR(VLOOKUP(D4370,Translation!$A:$C,3,FALSE),D4370)","v":"Île-du-Prince-Édouard"},{"$f":"IFERROR(VLOOKUP(E4370,Translation!$A:$C,3,FALSE),E4370)","v":0.13464578900654353},{"$f":"IFERROR(VLOOKUP(F4370,Translation!$A:$C,3,FALSE),F4370)","v":"Prêts hypothécaires assurés au cours de la période selon la province (%)"},{"$f":"IFERROR(VLOOKUP(G4370,Translation!$A:$C,3,FALSE),G4370)","v":"0.1"},{"$f":"IFERROR(VLOOKUP(H4370,Translation!$A:$C,3,FALSE),H4370)","v":"Île-du-Prince-Édouard"}]
[5,"T3 2017","ASSURANCE DE PORTEFEUILLE","Île-du-Prince-Édouard",2.543500901931528E-2,"Prêts hypothécaires assurés au cours de la période selon la province (%)","0.0","Île-du-Prince-Édouard",{"$f":"IFERROR(VLOOKUP(A4373,Translation!$A:$C,3,FALSE),A4373)","v":5},{"$f":"IFERROR(VLOOKUP(B4373,Translation!$A:$C,3,FALSE),B4373)","v":"T3 2017"},{"$f":"IFERROR(VLOOKUP(C4373,Translation!$A:$C,3,FALSE),C4373)","v":"ASSURANCE DE PORTEFEUILLE"},{"$f":"IFERROR(VLOOKUP(D4373,Translation!$A:$C,3,FALSE),D4373)","v":"Île-du-Prince-Édouard"},{"$f":"IFERROR(VLOOKUP(E4373,Translation!$A:$C,3,FALSE),E4373)","v":2.543500901931528E-2},{"$f":"IFERROR(VLOOKUP(F4373,Translation!$A:$C,3,FALSE),F4373)","v":"Prêts hypothécaires assurés au cours de la période selon la province (%)"},{"$f":"IFERROR(VLOOKUP(G4373,Translation!$A:$C,3,FALSE),G4373)","v":"0.0"},{"$f":"IFERROR(VLOOKUP(H4373,Translation!$A:$C,3,FALSE),H4373)","v":"Île-du-Prince-Édouard"}]
[5,"T1 2017","ASSURANCE DE PORTEFEUILLE","Nouvelle-Écosse",0.25215738389902342,"Prêts hypothécaires assurés au cours de la période selon la province (%)","0.3","Nouvelle-Écosse",{"$f":"IFERROR(VLOOKUP(A4376,Translation!$A:$C,3,FALSE),A4376)","v":5},{"$f":"IFERROR(VLOOKUP(B4376,Translation!$A:$C,3,FALSE),B4376)","v":"T1 2017"},{"$f":"IFERROR(VLOOKUP(C4376,Translation!$A:$C,3,FALSE),C4376)","v":"ASSURANCE DE PORTEFEUILLE"},{"$f":"IFERROR(VLOOKUP(D4376,Translation!$A:$C,3,FALSE),D4376)","v":"Nouvelle-Écosse"},{"$f":"IFERROR(VLOOKUP(E4376,Translation!$A:$C,3,FALSE),E4376)","v":0.25215738389902342},{"$f":"IFERROR(VLOOKUP(F4376,Translation!$A:$C,3,FALSE),F4376)","v":"Prêts hypothécaires assurés au cours de la période selon la province (%)"},{"$f":"IFERROR(VLOOKUP(G4376,Translation!$A:$C,3,FALSE),G4376)","v":"0.3"},{"$f":"IFERROR(VLOOKUP(H4376,Translation!$A:$C,3,FALSE),H4376)","v":"Nouvelle-Écosse"}]
[5,"Q2 2016","ASSURANCE DE PORTEFEUILLE","Nouvelle-Écosse",1.462040598342728,"Prêts hypothécaires assurés au cours de la période selon la province (%)","1.5","Nouvelle-Écosse",{"$f":"IFERROR(VLOOKUP(A4378,Translation!$A:$C,3,FALSE),A4378)","v":5},{"$f":"IFERROR(VLOOKUP(B4378,Translation!$A:$C,3,FALSE),B4378)","v":"Q2 2016"},{"$f":"IFERROR(VLOOKUP(C4378,Translation!$A:$C,3,FALSE),C4378)","v":"ASSURANCE DE PORTEFEUILLE"},{"$f":"IFERROR(VLOOKUP(D4378,Translation!$A:$C,3,FALSE),D4378)","v":"Nouvelle-Écosse"},{"$f":"IFERROR(VLOOKUP(E4378,Translation!$A:$C,3,FALSE),E4378)","v":1.462040598342728},{"$f":"IFERROR(VLOOKUP(F4378,Translation!$A:$C,3,FALSE),F4378)","v":"Prêts hypothécaires assurés au cours de la période selon la province (%)"},{"$f":"IFERROR(VLOOKUP(G4378,Translation!$A:$C,3,FALSE),G4378)","v":"1.5"},{"$f":"IFERROR(VLOOKUP(H4378,Translation!$A:$C,3,FALSE),H4378)","v":"Nouvelle-Écosse"}]
[5,"T3 2017","ASSURANCE DE PORTEFEUILLE","Nouvelle-Écosse",0.10933479169239158,"Prêts hypothécaires assurés au cours de la période selon la province (%)","0.1","Nouvelle-Écosse",{"$f":"IFERROR(VLOOKUP(A4381,Translation!$A:$C,3,FALSE),A4381)","v":5},{"$f":"IFERROR(VLOOKUP(B4381,Translation!$A:$C,3,FALSE),B4381)","v":"T3 2017"},{"$f":"IFERROR(VLOOKUP(C4381,Translation!$A:$C,3,FALSE),C4381)","v":"ASSURANCE DE PORTEFEUILLE"},{"$f":"IFERROR(VLOOKUP(D4381,Translation!$A:$C,3,FALSE),D4381)","v":"Nouvelle-Écosse"},{"$f":"IFERROR(VLOOKUP(E4381,Translation!$A:$C,3,FALSE),E4381)","v":0.10933479169239158},{"$f":"IFERROR(VLOOKUP(F4381,Translation!$A:$C,3,FALSE),F4381)","v":"Prêts hypothécaires assurés au cours de la période selon la province (%)"},{"$f":"IFERROR(VLOOKUP(G4381,Translation!$A:$C,3,FALSE),G4381)","v":"0.1"},{"$f":"IFERROR(VLOOKUP(H4381,Translation!$A:$C,3,FALSE),H4381)","v":"Nouvelle-Écosse"}]
[5,"T1 2017","ASSURANCE DE PORTEFEUILLE","Nouveau-Brunswick",0.10691809927562398,"Prêts hypothécaires assurés au cours de la période selon la province (%)","0.1","Nouveau-Brunswick",{"$f":"IFERROR(VLOOKUP(A4384,Translation!$A:$C,3,FALSE),A4384)","v":5},{"$f":"IFERROR(VLOOKUP(B4384,Translation!$A:$C,3,FALSE),B4384)","v":"T1 2017"},{"$f":"IFERROR(VLOOKUP(C4384,Translation!$A:$C,3,FALSE),C4384)","v":"ASSURANCE DE PORTEFEUILLE"},{"$f":"IFERROR(VLOOKUP(D4384,Translation!$A:$C,3,FALSE),D4384)","v":"Nouveau-Brunswick"},{"$f":"IFERROR(VLOOKUP(E4384,Translation!$A:$C,3,FALSE),E4384)","v":0.10691809927562398},{"$f":"IFERROR(VLOOKUP(F4384,Translation!$A:$C,3,FALSE),F4384)","v":"Prêts hypothécaires assurés au cours de la période selon la province (%)"},{"$f":"IFERROR(VLOOKUP(G4384,Translation!$A:$C,3,FALSE),G4384)","v":"0.1"},{"$f":"IFERROR(VLOOKUP(H4384,Translation!$A:$C,3,FALSE),H4384)","v":"Nouveau-Brunswick"}]
[5,"Q2 2016","ASSURANCE DE PORTEFEUILLE","Nouveau-Brunswick",0.69412418013130883,"Prêts hypothécaires assurés au cours de la période selon la province (%)","0.7","Nouveau-Brunswick",{"$f":"IFERROR(VLOOKUP(A4386,Translation!$A:$C,3,FALSE),A4386)","v":5},{"$f":"IFERROR(VLOOKUP(B4386,Translation!$A:$C,3,FALSE),B4386)","v":"Q2 2016"},{"$f":"IFERROR(VLOOKUP(C4386,Translation!$A:$C,3,FALSE),C4386)","v":"ASSURANCE DE PORTEFEUILLE"},{"$f":"IFERROR(VLOOKUP(D4386,Translation!$A:$C,3,FALSE),D4386)","v":"Nouveau-Brunswick"},{"$f":"IFERROR(VLOOKUP(E4386,Translation!$A:$C,3,FALSE),E4386)","v":0.69412418013130883},{"$f":"IFERROR(VLOOKUP(F4386,Translation!$A:$C,3,FALSE),F4386)","v":"Prêts hypothécaires assurés au cours de la période selon la province (%)"},{"$f":"IFERROR(VLOOKUP(G4386,Translation!$A:$C,3,FALSE),G4386)","v":"0.7"},{"$f":"IFERROR(VLOOKUP(H4386,Translation!$A:$C,3,FALSE),H4386)","v":"Nouveau-Brunswick"}]
[5,"T2 2017","ASSURANCE DE PORTEFEUILLE","Nouveau-Brunswick",9.6717693437797181E-2,"Prêts hypothécaires assurés au cours de la période selon la province (%)","0.1","Nouveau-Brunswick",{"$f":"IFERROR(VLOOKUP(A4387,Translation!$A:$C,3,FALSE),A4387)","v":5},{"$f":"IFERROR(VLOOKUP(B4387,Translation!$A:$C,3,FALSE),B4387)","v":"T2 2017"},{"$f":"IFERROR(VLOOKUP(C4387,Translation!$A:$C,3,FALSE),C4387)","v":"ASSURANCE DE PORTEFEUILLE"},{"$f":"IFERROR(VLOOKUP(D4387,Translation!$A:$C,3,FALSE),D4387)","v":"Nouveau-Brunswick"},{"$f":"IFERROR(VLOOKUP(E4387,Translation!$A:$C,3,FALSE),E4387)","v":9.6717693437797181E-2},{"$f":"IFERROR(VLOOKUP(F4387,Translation!$A:$C,3,FALSE),F4387)","v":"Prêts hypothécaires assurés au cours de la période selon la province (%)"},{"$f":"IFERROR(VLOOKUP(G4387,Translation!$A:$C,3,FALSE),G4387)","v":"0.1"},{"$f":"IFERROR(VLOOKUP(H4387,Translation!$A:$C,3,FALSE),H4387)","v":"Nouveau-Brunswick"}]
[5,"T3 2017","ASSURANCE DE PORTEFEUILLE","Nouveau-Brunswick",2.3875164911747751E-2,"Prêts hypothécaires assurés au cours de la période selon la province (%)","0.0","Nouveau-Brunswick",{"$f":"IFERROR(VLOOKUP(A4389,Translation!$A:$C,3,FALSE),A4389)","v":5},{"$f":"IFERROR(VLOOKUP(B4389,Translation!$A:$C,3,FALSE),B4389)","v":"T3 2017"},{"$f":"IFERROR(VLOOKUP(C4389,Translation!$A:$C,3,FALSE),C4389)","v":"ASSURANCE DE PORTEFEUILLE"},{"$f":"IFERROR(VLOOKUP(D4389,Translation!$A:$C,3,FALSE),D4389)","v":"Nouveau-Brunswick"},{"$f":"IFERROR(VLOOKUP(E4389,Translation!$A:$C,3,FALSE),E4389)","v":2.3875164911747751E-2},{"$f":"IFERROR(VLOOKUP(F4389,Translation!$A:$C,3,FALSE),F4389)","v":"Prêts hypothécaires assurés au cours de la période selon la province (%)"},{"$f":"IFERROR(VLOOKUP(G4389,Translation!$A:$C,3,FALSE),G4389)","v":"0.0"},{"$f":"IFERROR(VLOOKUP(H4389,Translation!$A:$C,3,FALSE),H4389)","v":"Nouveau-Brunswick"}]
[5,"T1 2017","ASSURANCE DE PORTEFEUILLE","Québec",8.5000000625168219,"Prêts hypothécaires assurés au cours de la période selon la province (%)","8.5","Québec",{"$f":"IFERROR(VLOOKUP(A4392,Translation!$A:$C,3,FALSE),A4392)","v":5},{"$f":"IFERROR(VLOOKUP(B4392,Translation!$A:$C,3,FALSE),B4392)","v":"T1 2017"},{"$f":"IFERROR(VLOOKUP(C4392,Translation!$A:$C,3,FALSE),C4392)","v":"ASSURANCE DE PORTEFEUILLE"},{"$f":"IFERROR(VLOOKUP(D4392,Translation!$A:$C,3,FALSE),D4392)","v":"Québec"},{"$f":"IFERROR(VLOOKUP(E4392,Translation!$A:$C,3,FALSE),E4392)","v":8.5000000625168219},{"$f":"IFERROR(VLOOKUP(F4392,Translation!$A:$C,3,FALSE),F4392)","v":"Prêts hypothécaires assurés au cours de la période selon la province (%)"},{"$f":"IFERROR(VLOOKUP(G4392,Translation!$A:$C,3,FALSE),G4392)","v":"8.5"},{"$f":"IFERROR(VLOOKUP(H4392,Translation!$A:$C,3,FALSE),H4392)","v":"Québec"}]
[5,"T2 2017","ASSURANCE DE PORTEFEUILLE","Québec",37.690394366959929,"Prêts hypothécaires assurés au cours de la période selon la province (%)","37.7","Québec",{"$f":"IFERROR(VLOOKUP(A4395,Translation!$A:$C,3,FALSE),A4395)","v":5},{"$f":"IFERROR(VLOOKUP(B4395,Translation!$A:$C,3,FALSE),B4395)","v":"T2 2017"},{"$f":"IFERROR(VLOOKUP(C4395,Translation!$A:$C,3,FALSE),C4395)","v":"ASSURANCE DE PORTEFEUILLE"},{"$f":"IFERROR(VLOOKUP(D4395,Translation!$A:$C,3,FALSE),D4395)","v":"Québec"},{"$f":"IFERROR(VLOOKUP(E4395,Translation!$A:$C,3,FALSE),E4395)","v":37.690394366959929},{"$f":"IFERROR(VLOOKUP(F4395,Translation!$A:$C,3,FALSE),F4395)","v":"Prêts hypothécaires assurés au cours de la période selon la province (%)"},{"$f":"IFERROR(VLOOKUP(G4395,Translation!$A:$C,3,FALSE),G4395)","v":"37.7"},{"$f":"IFERROR(VLOOKUP(H4395,Translation!$A:$C,3,FALSE),H4395)","v":"Québec"}]
[5,"T3 2017","ASSURANCE DE PORTEFEUILLE","Québec",5.3284835920153695,"Prêts hypothécaires assurés au cours de la période selon la province (%)","5.3","Québec",{"$f":"IFERROR(VLOOKUP(A4397,Translation!$A:$C,3,FALSE),A4397)","v":5},{"$f":"IFERROR(VLOOKUP(B4397,Translation!$A:$C,3,FALSE),B4397)","v":"T3 2017"},{"$f":"IFERROR(VLOOKUP(C4397,Translation!$A:$C,3,FALSE),C4397)","v":"ASSURANCE DE PORTEFEUILLE"},{"$f":"IFERROR(VLOOKUP(D4397,Translation!$A:$C,3,FALSE),D4397)","v":"Québec"},{"$f":"IFERROR(VLOOKUP(E4397,Translation!$A:$C,3,FALSE),E4397)","v":5.3284835920153695},{"$f":"IFERROR(VLOOKUP(F4397,Translation!$A:$C,3,FALSE),F4397)","v":"Prêts hypothécaires assurés au cours de la période selon la province (%)"},{"$f":"IFERROR(VLOOKUP(G4397,Translation!$A:$C,3,FALSE),G4397)","v":"5.3"},{"$f":"IFERROR(VLOOKUP(H4397,Translation!$A:$C,3,FALSE),H4397)","v":"Québec"}]
[5,"T1 2017","ASSURANCE DE PORTEFEUILLE","Ontario",59.494281853207717,"Prêts hypothécaires assurés au cours de la période selon la province (%)","59.5","Ontario",{"$f":"IFERROR(VLOOKUP(A4400,Translation!$A:$C,3,FALSE),A4400)","v":5},{"$f":"IFERROR(VLOOKUP(B4400,Translation!$A:$C,3,FALSE),B4400)","v":"T1 2017"},{"$f":"IFERROR(VLOOKUP(C4400,Translation!$A:$C,3,FALSE),C4400)","v":"ASSURANCE DE PORTEFEUILLE"},{"$f":"IFERROR(VLOOKUP(D4400,Translation!$A:$C,3,FALSE),D4400)","v":"Ontario"},{"$f":"IFERROR(VLOOKUP(E4400,Translation!$A:$C,3,FALSE),E4400)","v":59.494281853207717},{"$f":"IFERROR(VLOOKUP(F4400,Translation!$A:$C,3,FALSE),F4400)","v":"Prêts hypothécaires assurés au cours de la période selon la province (%)"},{"$f":"IFERROR(VLOOKUP(G4400,Translation!$A:$C,3,FALSE),G4400)","v":"59.5"},{"$f":"IFERROR(VLOOKUP(H4400,Translation!$A:$C,3,FALSE),H4400)","v":"Ontario"}]
[5,"T2 2017","ASSURANCE DE PORTEFEUILLE","Ontario",45.611978455361367,"Prêts hypothécaires assurés au cours de la période selon la province (%)","45.6","Ontario",{"$f":"IFERROR(VLOOKUP(A4403,Translation!$A:$C,3,FALSE),A4403)","v":5},{"$f":"IFERROR(VLOOKUP(B4403,Translation!$A:$C,3,FALSE),B4403)","v":"T2 2017"},{"$f":"IFERROR(VLOOKUP(C4403,Translation!$A:$C,3,FALSE),C4403)","v":"ASSURANCE DE PORTEFEUILLE"},{"$f":"IFERROR(VLOOKUP(D4403,Translation!$A:$C,3,FALSE),D4403)","v":"Ontario"},{"$f":"IFERROR(VLOOKUP(E4403,Translation!$A:$C,3,FALSE),E4403)","v":45.611978455361367},{"$f":"IFERROR(VLOOKUP(F4403,Translation!$A:$C,3,FALSE),F4403)","v":"Prêts hypothécaires assurés au cours de la période selon la province (%)"},{"$f":"IFERROR(VLOOKUP(G4403,Translation!$A:$C,3,FALSE),G4403)","v":"45.6"},{"$f":"IFERROR(VLOOKUP(H4403,Translation!$A:$C,3,FALSE),H4403)","v":"Ontario"}]
[5,"T3 2017","ASSURANCE DE PORTEFEUILLE","Ontario",77.428259035317694,"Prêts hypothécaires assurés au cours de la période selon la province (%)","77.4","Ontario",{"$f":"IFERROR(VLOOKUP(A4405,Translation!$A:$C,3,FALSE),A4405)","v":5},{"$f":"IFERROR(VLOOKUP(B4405,Translation!$A:$C,3,FALSE),B4405)","v":"T3 2017"},{"$f":"IFERROR(VLOOKUP(C4405,Translation!$A:$C,3,FALSE),C4405)","v":"ASSURANCE DE PORTEFEUILLE"},{"$f":"IFERROR(VLOOKUP(D4405,Translation!$A:$C,3,FALSE),D4405)","v":"Ontario"},{"$f":"IFERROR(VLOOKUP(E4405,Translation!$A:$C,3,FALSE),E4405)","v":77.428259035317694},{"$f":"IFERROR(VLOOKUP(F4405,Translation!$A:$C,3,FALSE),F4405)","v":"Prêts hypothécaires assurés au cours de la période selon la province (%)"},{"$f":"IFERROR(VLOOKUP(G4405,Translation!$A:$C,3,FALSE),G4405)","v":"77.4"},{"$f":"IFERROR(VLOOKUP(H4405,Translation!$A:$C,3,FALSE),H4405)","v":"Ontario"}]
[5,"Q4 2016","ASSURANCE DE PORTEFEUILLE","Ontario",36.887280679466599,"Prêts hypothécaires assurés au cours de la période selon la province (%)","36.9","Ontario",{"$f":"IFERROR(VLOOKUP(A4406,Translation!$A:$C,3,FALSE),A4406)","v":5},{"$f":"IFERROR(VLOOKUP(B4406,Translation!$A:$C,3,FALSE),B4406)","v":"Q4 2016"},{"$f":"IFERROR(VLOOKUP(C4406,Translation!$A:$C,3,FALSE),C4406)","v":"ASSURANCE DE PORTEFEUILLE"},{"$f":"IFERROR(VLOOKUP(D4406,Translation!$A:$C,3,FALSE),D4406)","v":"Ontario"},{"$f":"IFERROR(VLOOKUP(E4406,Translation!$A:$C,3,FALSE),E4406)","v":36.887280679466599},{"$f":"IFERROR(VLOOKUP(F4406,Translation!$A:$C,3,FALSE),F4406)","v":"Prêts hypothécaires assurés au cours de la période selon la province (%)"},{"$f":"IFERROR(VLOOKUP(G4406,Translation!$A:$C,3,FALSE),G4406)","v":"36.9"},{"$f":"IFERROR(VLOOKUP(H4406,Translation!$A:$C,3,FALSE),H4406)","v":"Ontario"}]
[5,"Q2 2016","ASSURANCE DE PORTEFEUILLE","Manitoba",2.2749919180478058,"Prêts hypothécaires assurés au cours de la période selon la province (%)","2.3","Manitoba",{"$f":"IFERROR(VLOOKUP(A4410,Translation!$A:$C,3,FALSE),A4410)","v":5},{"$f":"IFERROR(VLOOKUP(B4410,Translation!$A:$C,3,FALSE),B4410)","v":"Q2 2016"},{"$f":"IFERROR(VLOOKUP(C4410,Translation!$A:$C,3,FALSE),C4410)","v":"ASSURANCE DE PORTEFEUILLE"},{"$f":"IFERROR(VLOOKUP(D4410,Translation!$A:$C,3,FALSE),D4410)","v":"Manitoba"},{"$f":"IFERROR(VLOOKUP(E4410,Translation!$A:$C,3,FALSE),E4410)","v":2.2749919180478058},{"$f":"IFERROR(VLOOKUP(F4410,Translation!$A:$C,3,FALSE),F4410)","v":"Prêts hypothécaires assurés au cours de la période selon la province (%)"},{"$f":"IFERROR(VLOOKUP(G4410,Translation!$A:$C,3,FALSE),G4410)","v":"2.3"},{"$f":"IFERROR(VLOOKUP(H4410,Translation!$A:$C,3,FALSE),H4410)","v":"Manitoba"}]
[5,"T2 2017","ASSURANCE DE PORTEFEUILLE","Manitoba",0.56035154260882181,"Prêts hypothécaires assurés au cours de la période selon la province (%)","0.6","Manitoba",{"$f":"IFERROR(VLOOKUP(A4411,Translation!$A:$C,3,FALSE),A4411)","v":5},{"$f":"IFERROR(VLOOKUP(B4411,Translation!$A:$C,3,FALSE),B4411)","v":"T2 2017"},{"$f":"IFERROR(VLOOKUP(C4411,Translation!$A:$C,3,FALSE),C4411)","v":"ASSURANCE DE PORTEFEUILLE"},{"$f":"IFERROR(VLOOKUP(D4411,Translation!$A:$C,3,FALSE),D4411)","v":"Manitoba"},{"$f":"IFERROR(VLOOKUP(E4411,Translation!$A:$C,3,FALSE),E4411)","v":0.56035154260882181},{"$f":"IFERROR(VLOOKUP(F4411,Translation!$A:$C,3,FALSE),F4411)","v":"Prêts hypothécaires assurés au cours de la période selon la province (%)"},{"$f":"IFERROR(VLOOKUP(G4411,Translation!$A:$C,3,FALSE),G4411)","v":"0.6"},{"$f":"IFERROR(VLOOKUP(H4411,Translation!$A:$C,3,FALSE),H4411)","v":"Manitoba"}]
[5,"Q4 2016","ASSURANCE DE PORTEFEUILLE","Manitoba",0.4232275953589843,"Prêts hypothécaires assurés au cours de la période selon la province (%)","0.4","Manitoba",{"$f":"IFERROR(VLOOKUP(A4414,Translation!$A:$C,3,FALSE),A4414)","v":5},{"$f":"IFERROR(VLOOKUP(B4414,Translation!$A:$C,3,FALSE),B4414)","v":"Q4 2016"},{"$f":"IFERROR(VLOOKUP(C4414,Translation!$A:$C,3,FALSE),C4414)","v":"ASSURANCE DE PORTEFEUILLE"},{"$f":"IFERROR(VLOOKUP(D4414,Translation!$A:$C,3,FALSE),D4414)","v":"Manitoba"},{"$f":"IFERROR(VLOOKUP(E4414,Translation!$A:$C,3,FALSE),E4414)","v":0.4232275953589843},{"$f":"IFERROR(VLOOKUP(F4414,Translation!$A:$C,3,FALSE),F4414)","v":"Prêts hypothécaires assurés au cours de la période selon la province (%)"},{"$f":"IFERROR(VLOOKUP(G4414,Translation!$A:$C,3,FALSE),G4414)","v":"0.4"},{"$f":"IFERROR(VLOOKUP(H4414,Translation!$A:$C,3,FALSE),H4414)","v":"Manitoba"}]
[5,"T1 2017","ASSURANCE DE PORTEFEUILLE","Saskatchewan",1.7049283992692188,"Prêts hypothécaires assurés au cours de la période selon la province (%)","1.7","Saskatchewan",{"$f":"IFERROR(VLOOKUP(A4416,Translation!$A:$C,3,FALSE),A4416)","v":5},{"$f":"IFERROR(VLOOKUP(B4416,Translation!$A:$C,3,FALSE),B4416)","v":"T1 2017"},{"$f":"IFERROR(VLOOKUP(C4416,Translation!$A:$C,3,FALSE),C4416)","v":"ASSURANCE DE PORTEFEUILLE"},{"$f":"IFERROR(VLOOKUP(D4416,Translation!$A:$C,3,FALSE),D4416)","v":"Saskatchewan"},{"$f":"IFERROR(VLOOKUP(E4416,Translation!$A:$C,3,FALSE),E4416)","v":1.7049283992692188},{"$f":"IFERROR(VLOOKUP(F4416,Translation!$A:$C,3,FALSE),F4416)","v":"Prêts hypothécaires assurés au cours de la période selon la province (%)"},{"$f":"IFERROR(VLOOKUP(G4416,Translation!$A:$C,3,FALSE),G4416)","v":"1.7"},{"$f":"IFERROR(VLOOKUP(H4416,Translation!$A:$C,3,FALSE),H4416)","v":"Saskatchewan"}]
[5,"Q3 2016","ASSURANCE DE PORTEFEUILLE","Saskatchewan",1.0016680640938953,"Prêts hypothécaires assurés au cours de la période selon la province (%)","1.0","Saskatchewan",{"$f":"IFERROR(VLOOKUP(A4420,Translation!$A:$C,3,FALSE),A4420)","v":5},{"$f":"IFERROR(VLOOKUP(B4420,Translation!$A:$C,3,FALSE),B4420)","v":"Q3 2016"},{"$f":"IFERROR(VLOOKUP(C4420,Translation!$A:$C,3,FALSE),C4420)","v":"ASSURANCE DE PORTEFEUILLE"},{"$f":"IFERROR(VLOOKUP(D4420,Translation!$A:$C,3,FALSE),D4420)","v":"Saskatchewan"},{"$f":"IFERROR(VLOOKUP(E4420,Translation!$A:$C,3,FALSE),E4420)","v":1.0016680640938953},{"$f":"IFERROR(VLOOKUP(F4420,Translation!$A:$C,3,FALSE),F4420)","v":"Prêts hypothécaires assurés au cours de la période selon la province (%)"},{"$f":"IFERROR(VLOOKUP(G4420,Translation!$A:$C,3,FALSE),G4420)","v":"1.0"},{"$f":"IFERROR(VLOOKUP(H4420,Translation!$A:$C,3,FALSE),H4420)","v":"Saskatchewan"}]
[5,"T3 2017","ASSURANCE DE PORTEFEUILLE","Saskatchewan",0.38106522400884002,"Prêts hypothécaires assurés au cours de la période selon la province (%)","0.4","Saskatchewan",{"$f":"IFERROR(VLOOKUP(A4421,Translation!$A:$C,3,FALSE),A4421)","v":5},{"$f":"IFERROR(VLOOKUP(B4421,Translation!$A:$C,3,FALSE),B4421)","v":"T3 2017"},{"$f":"IFERROR(VLOOKUP(C4421,Translation!$A:$C,3,FALSE),C4421)","v":"ASSURANCE DE PORTEFEUILLE"},{"$f":"IFERROR(VLOOKUP(D4421,Translation!$A:$C,3,FALSE),D4421)","v":"Saskatchewan"},{"$f":"IFERROR(VLOOKUP(E4421,Translation!$A:$C,3,FALSE),E4421)","v":0.38106522400884002},{"$f":"IFERROR(VLOOKUP(F4421,Translation!$A:$C,3,FALSE),F4421)","v":"Prêts hypothécaires assurés au cours de la période selon la province (%)"},{"$f":"IFERROR(VLOOKUP(G4421,Translation!$A:$C,3,FALSE),G4421)","v":"0.4"},{"$f":"IFERROR(VLOOKUP(H4421,Translation!$A:$C,3,FALSE),H4421)","v":"Saskatchewan"}]
[5,"T1 2017","ASSURANCE DE PORTEFEUILLE","Alberta",18.511106720104923,"Prêts hypothécaires assurés au cours de la période selon la province (%)","18.5","Alberta",{"$f":"IFERROR(VLOOKUP(A4424,Translation!$A:$C,3,FALSE),A4424)","v":5},{"$f":"IFERROR(VLOOKUP(B4424,Translation!$A:$C,3,FALSE),B4424)","v":"T1 2017"},{"$f":"IFERROR(VLOOKUP(C4424,Translation!$A:$C,3,FALSE),C4424)","v":"ASSURANCE DE PORTEFEUILLE"},{"$f":"IFERROR(VLOOKUP(D4424,Translation!$A:$C,3,FALSE),D4424)","v":"Alberta"},{"$f":"IFERROR(VLOOKUP(E4424,Translation!$A:$C,3,FALSE),E4424)","v":18.511106720104923},{"$f":"IFERROR(VLOOKUP(F4424,Translation!$A:$C,3,FALSE),F4424)","v":"Prêts hypothécaires assurés au cours de la période selon la province (%)"},{"$f":"IFERROR(VLOOKUP(G4424,Translation!$A:$C,3,FALSE),G4424)","v":"18.5"},{"$f":"IFERROR(VLOOKUP(H4424,Translation!$A:$C,3,FALSE),H4424)","v":"Alberta"}]
[5,"T1 2018","ASSURANCE DE PORTEFEUILLE","Alberta",11.151265568125501,"Prêts hypothécaires assurés au cours de la période selon la province (%)","11.2","Alberta",{"$f":"IFERROR(VLOOKUP(A4425,Translation!$A:$C,3,FALSE),A4425)","v":5},{"$f":"IFERROR(VLOOKUP(B4425,Translation!$A:$C,3,FALSE),B4425)","v":"T1 2018"},{"$f":"IFERROR(VLOOKUP(C4425,Translation!$A:$C,3,FALSE),C4425)","v":"ASSURANCE DE PORTEFEUILLE"},{"$f":"IFERROR(VLOOKUP(D4425,Translation!$A:$C,3,FALSE),D4425)","v":"Alberta"},{"$f":"IFERROR(VLOOKUP(E4425,Translation!$A:$C,3,FALSE),E4425)","v":11.151265568125501},{"$f":"IFERROR(VLOOKUP(F4425,Translation!$A:$C,3,FALSE),F4425)","v":"Prêts hypothécaires assurés au cours de la période selon la province (%)"},{"$f":"IFERROR(VLOOKUP(G4425,Translation!$A:$C,3,FALSE),G4425)","v":"11.2"},{"$f":"IFERROR(VLOOKUP(H4425,Translation!$A:$C,3,FALSE),H4425)","v":"Alberta"}]
[5,"T3 2017","ASSURANCE DE PORTEFEUILLE","Alberta",3.5744147512847726,"Prêts hypothécaires assurés au cours de la période selon la province (%)","3.6","Alberta",{"$f":"IFERROR(VLOOKUP(A4429,Translation!$A:$C,3,FALSE),A4429)","v":5},{"$f":"IFERROR(VLOOKUP(B4429,Translation!$A:$C,3,FALSE),B4429)","v":"T3 2017"},{"$f":"IFERROR(VLOOKUP(C4429,Translation!$A:$C,3,FALSE),C4429)","v":"ASSURANCE DE PORTEFEUILLE"},{"$f":"IFERROR(VLOOKUP(D4429,Translation!$A:$C,3,FALSE),D4429)","v":"Alberta"},{"$f":"IFERROR(VLOOKUP(E4429,Translation!$A:$C,3,FALSE),E4429)","v":3.5744147512847726},{"$f":"IFERROR(VLOOKUP(F4429,Translation!$A:$C,3,FALSE),F4429)","v":"Prêts hypothécaires assurés au cours de la période selon la province (%)"},{"$f":"IFERROR(VLOOKUP(G4429,Translation!$A:$C,3,FALSE),G4429)","v":"3.6"},{"$f":"IFERROR(VLOOKUP(H4429,Translation!$A:$C,3,FALSE),H4429)","v":"Alberta"}]
[5,"Q4 2016","ASSURANCE DE PORTEFEUILLE","Alberta",6.1133641954231637,"Prêts hypothécaires assurés au cours de la période selon la province (%)","6.1","Alberta",{"$f":"IFERROR(VLOOKUP(A4430,Translation!$A:$C,3,FALSE),A4430)","v":5},{"$f":"IFERROR(VLOOKUP(B4430,Translation!$A:$C,3,FALSE),B4430)","v":"Q4 2016"},{"$f":"IFERROR(VLOOKUP(C4430,Translation!$A:$C,3,FALSE),C4430)","v":"ASSURANCE DE PORTEFEUILLE"},{"$f":"IFERROR(VLOOKUP(D4430,Translation!$A:$C,3,FALSE),D4430)","v":"Alberta"},{"$f":"IFERROR(VLOOKUP(E4430,Translation!$A:$C,3,FALSE),E4430)","v":6.1133641954231637},{"$f":"IFERROR(VLOOKUP(F4430,Translation!$A:$C,3,FALSE),F4430)","v":"Prêts hypothécaires assurés au cours de la période selon la province (%)"},{"$f":"IFERROR(VLOOKUP(G4430,Translation!$A:$C,3,FALSE),G4430)","v":"6.1"},{"$f":"IFERROR(VLOOKUP(H4430,Translation!$A:$C,3,FALSE),H4430)","v":"Alberta"}]
[5,"Q2 2016","ASSURANCE DE PORTEFEUILLE","Colombie-Britannique",20.491309660675626,"Prêts hypothécaires assurés au cours de la période selon la province (%)","20.5","Colombie-Britannique",{"$f":"IFERROR(VLOOKUP(A4434,Translation!$A:$C,3,FALSE),A4434)","v":5},{"$f":"IFERROR(VLOOKUP(B4434,Translation!$A:$C,3,FALSE),B4434)","v":"Q2 2016"},{"$f":"IFERROR(VLOOKUP(C4434,Translation!$A:$C,3,FALSE),C4434)","v":"ASSURANCE DE PORTEFEUILLE"},{"$f":"IFERROR(VLOOKUP(D4434,Translation!$A:$C,3,FALSE),D4434)","v":"Colombie-Britannique"},{"$f":"IFERROR(VLOOKUP(E4434,Translation!$A:$C,3,FALSE),E4434)","v":20.491309660675626},{"$f":"IFERROR(VLOOKUP(F4434,Translation!$A:$C,3,FALSE),F4434)","v":"Prêts hypothécaires assurés au cours de la période selon la province (%)"},{"$f":"IFERROR(VLOOKUP(G4434,Translation!$A:$C,3,FALSE),G4434)","v":"20.5"},{"$f":"IFERROR(VLOOKUP(H4434,Translation!$A:$C,3,FALSE),H4434)","v":"Colombie-Britannique"}]
[5,"T2 2017","ASSURANCE DE PORTEFEUILLE","Colombie-Britannique",5.748565810921181,"Prêts hypothécaires assurés au cours de la période selon la province (%)","5.7","Colombie-Britannique",{"$f":"IFERROR(VLOOKUP(A4435,Translation!$A:$C,3,FALSE),A4435)","v":5},{"$f":"IFERROR(VLOOKUP(B4435,Translation!$A:$C,3,FALSE),B4435)","v":"T2 2017"},{"$f":"IFERROR(VLOOKUP(C4435,Translation!$A:$C,3,FALSE),C4435)","v":"ASSURANCE DE PORTEFEUILLE"},{"$f":"IFERROR(VLOOKUP(D4435,Translation!$A:$C,3,FALSE),D4435)","v":"Colombie-Britannique"},{"$f":"IFERROR(VLOOKUP(E4435,Translation!$A:$C,3,FALSE),E4435)","v":5.748565810921181},{"$f":"IFERROR(VLOOKUP(F4435,Translation!$A:$C,3,FALSE),F4435)","v":"Prêts hypothécaires assurés au cours de la période selon la province (%)"},{"$f":"IFERROR(VLOOKUP(G4435,Translation!$A:$C,3,FALSE),G4435)","v":"5.7"},{"$f":"IFERROR(VLOOKUP(H4435,Translation!$A:$C,3,FALSE),H4435)","v":"Colombie-Britannique"}]
[5,"T4 2017","ASSURANCE DE PORTEFEUILLE","Colombie-Britannique",22.182560422062057,"Prêts hypothécaires assurés au cours de la période selon la province (%)","22.2","Colombie-Britannique",{"$f":"IFERROR(VLOOKUP(A4439,Translation!$A:$C,3,FALSE),A4439)","v":5},{"$f":"IFERROR(VLOOKUP(B4439,Translation!$A:$C,3,FALSE),B4439)","v":"T4 2017"},{"$f":"IFERROR(VLOOKUP(C4439,Translation!$A:$C,3,FALSE),C4439)","v":"ASSURANCE DE PORTEFEUILLE"},{"$f":"IFERROR(VLOOKUP(D4439,Translation!$A:$C,3,FALSE),D4439)","v":"Colombie-Britannique"},{"$f":"IFERROR(VLOOKUP(E4439,Translation!$A:$C,3,FALSE),E4439)","v":22.182560422062057},{"$f":"IFERROR(VLOOKUP(F4439,Translation!$A:$C,3,FALSE),F4439)","v":"Prêts hypothécaires assurés au cours de la période selon la province (%)"},{"$f":"IFERROR(VLOOKUP(G4439,Translation!$A:$C,3,FALSE),G4439)","v":"22.2"},{"$f":"IFERROR(VLOOKUP(H4439,Translation!$A:$C,3,FALSE),H4439)","v":"Colombie-Britannique"}]
[5,"Q2 2016","ASSURANCE DE PORTEFEUILLE","Territoires",0.31010764286118647,"Prêts hypothécaires assurés au cours de la période selon la province (%)","0.3","Territoires",{"$f":"IFERROR(VLOOKUP(A4440,Translation!$A:$C,3,FALSE),A4440)","v":5},{"$f":"IFERROR(VLOOKUP(B4440,Translation!$A:$C,3,FALSE),B4440)","v":"Q2 2016"},{"$f":"IFERROR(VLOOKUP(C4440,Translation!$A:$C,3,FALSE),C4440)","v":"ASSURANCE DE PORTEFEUILLE"},{"$f":"IFERROR(VLOOKUP(D4440,Translation!$A:$C,3,FALSE),D4440)","v":"Territoires"},{"$f":"IFERROR(VLOOKUP(E4440,Translation!$A:$C,3,FALSE),E4440)","v":0.31010764286118647},{"$f":"IFERROR(VLOOKUP(F4440,Translation!$A:$C,3,FALSE),F4440)","v":"Prêts hypothécaires assurés au cours de la période selon la province (%)"},{"$f":"IFERROR(VLOOKUP(G4440,Translation!$A:$C,3,FALSE),G4440)","v":"0.3"},{"$f":"IFERROR(VLOOKUP(H4440,Translation!$A:$C,3,FALSE),H4440)","v":"Territoires"}]
[5,"T1 2018","IMMEUBLES COLLECTIFS RÉSIDENTIELS","Terre-Neuve-et-Labrador",0.19262499601587579,"Prêts hypothécaires assurés au cours de la période selon la province (%)","0.2","Terre-Neuve-et-Labrador",{"$f":"IFERROR(VLOOKUP(A4444,Translation!$A:$C,3,FALSE),A4444)","v":5},{"$f":"IFERROR(VLOOKUP(B4444,Translation!$A:$C,3,FALSE),B4444)","v":"T1 2018"},{"$f":"IFERROR(VLOOKUP(C4444,Translation!$A:$C,3,FALSE),C4444)","v":"IMMEUBLES COLLECTIFS RÉSIDENTIELS"},{"$f":"IFERROR(VLOOKUP(D4444,Translation!$A:$C,3,FALSE),D4444)","v":"Terre-Neuve-et-Labrador"},{"$f":"IFERROR(VLOOKUP(E4444,Translation!$A:$C,3,FALSE),E4444)","v":0.19262499601587579},{"$f":"IFERROR(VLOOKUP(F4444,Translation!$A:$C,3,FALSE),F4444)","v":"Prêts hypothécaires assurés au cours de la période selon la province (%)"},{"$f":"IFERROR(VLOOKUP(G4444,Translation!$A:$C,3,FALSE),G4444)","v":"0.2"},{"$f":"IFERROR(VLOOKUP(H4444,Translation!$A:$C,3,FALSE),H4444)","v":"Terre-Neuve-et-Labrador"}]
[5,"Q2 2016","IMMEUBLES COLLECTIFS RÉSIDENTIELS","Terre-Neuve-et-Labrador",0.35879382971051049,"Prêts hypothécaires assurés au cours de la période selon la province (%)","0.4","Terre-Neuve-et-Labrador",{"$f":"IFERROR(VLOOKUP(A4445,Translation!$A:$C,3,FALSE),A4445)","v":5},{"$f":"IFERROR(VLOOKUP(B4445,Translation!$A:$C,3,FALSE),B4445)","v":"Q2 2016"},{"$f":"IFERROR(VLOOKUP(C4445,Translation!$A:$C,3,FALSE),C4445)","v":"IMMEUBLES COLLECTIFS RÉSIDENTIELS"},{"$f":"IFERROR(VLOOKUP(D4445,Translation!$A:$C,3,FALSE),D4445)","v":"Terre-Neuve-et-Labrador"},{"$f":"IFERROR(VLOOKUP(E4445,Translation!$A:$C,3,FALSE),E4445)","v":0.35879382971051049},{"$f":"IFERROR(VLOOKUP(F4445,Translation!$A:$C,3,FALSE),F4445)","v":"Prêts hypothécaires assurés au cours de la période selon la province (%)"},{"$f":"IFERROR(VLOOKUP(G4445,Translation!$A:$C,3,FALSE),G4445)","v":"0.4"},{"$f":"IFERROR(VLOOKUP(H4445,Translation!$A:$C,3,FALSE),H4445)","v":"Terre-Neuve-et-Labrador"}]
[5,"T3 2017","IMMEUBLES COLLECTIFS RÉSIDENTIELS","Terre-Neuve-et-Labrador",4.0836188510726783E-2,"Prêts hypothécaires assurés au cours de la période selon la province (%)","0.0","Terre-Neuve-et-Labrador",{"$f":"IFERROR(VLOOKUP(A4448,Translation!$A:$C,3,FALSE),A4448)","v":5},{"$f":"IFERROR(VLOOKUP(B4448,Translation!$A:$C,3,FALSE),B4448)","v":"T3 2017"},{"$f":"IFERROR(VLOOKUP(C4448,Translation!$A:$C,3,FALSE),C4448)","v":"IMMEUBLES COLLECTIFS RÉSIDENTIELS"},{"$f":"IFERROR(VLOOKUP(D4448,Translation!$A:$C,3,FALSE),D4448)","v":"Terre-Neuve-et-Labrador"},{"$f":"IFERROR(VLOOKUP(E4448,Translation!$A:$C,3,FALSE),E4448)","v":4.0836188510726783E-2},{"$f":"IFERROR(VLOOKUP(F4448,Translation!$A:$C,3,FALSE),F4448)","v":"Prêts hypothécaires assurés au cours de la période selon la province (%)"},{"$f":"IFERROR(VLOOKUP(G4448,Translation!$A:$C,3,FALSE),G4448)","v":"0.0"},{"$f":"IFERROR(VLOOKUP(H4448,Translation!$A:$C,3,FALSE),H4448)","v":"Terre-Neuve-et-Labrador"}]
[5,"Q4 2016","IMMEUBLES COLLECTIFS RÉSIDENTIELS","Terre-Neuve-et-Labrador",4.7179357875837533E-2,"Prêts hypothécaires assurés au cours de la période selon la province (%)","0.0","Terre-Neuve-et-Labrador",{"$f":"IFERROR(VLOOKUP(A4449,Translation!$A:$C,3,FALSE),A4449)","v":5},{"$f":"IFERROR(VLOOKUP(B4449,Translation!$A:$C,3,FALSE),B4449)","v":"Q4 2016"},{"$f":"IFERROR(VLOOKUP(C4449,Translation!$A:$C,3,FALSE),C4449)","v":"IMMEUBLES COLLECTIFS RÉSIDENTIELS"},{"$f":"IFERROR(VLOOKUP(D4449,Translation!$A:$C,3,FALSE),D4449)","v":"Terre-Neuve-et-Labrador"},{"$f":"IFERROR(VLOOKUP(E4449,Translation!$A:$C,3,FALSE),E4449)","v":4.7179357875837533E-2},{"$f":"IFERROR(VLOOKUP(F4449,Translation!$A:$C,3,FALSE),F4449)","v":"Prêts hypothécaires assurés au cours de la période selon la province (%)"},{"$f":"IFERROR(VLOOKUP(G4449,Translation!$A:$C,3,FALSE),G4449)","v":"0.0"},{"$f":"IFERROR(VLOOKUP(H4449,Translation!$A:$C,3,FALSE),H4449)","v":"Terre-Neuve-et-Labrador"}]
[5,"Q2 2016","IMMEUBLES COLLECTIFS RÉSIDENTIELS","Île-du-Prince-Édouard",0.18009639860681365,"Prêts hypothécaires assurés au cours de la période selon la province (%)","0.2","Île-du-Prince-Édouard",{"$f":"IFERROR(VLOOKUP(A4453,Translation!$A:$C,3,FALSE),A4453)","v":5},{"$f":"IFERROR(VLOOKUP(B4453,Translation!$A:$C,3,FALSE),B4453)","v":"Q2 2016"},{"$f":"IFERROR(VLOOKUP(C4453,Translation!$A:$C,3,FALSE),C4453)","v":"IMMEUBLES COLLECTIFS RÉSIDENTIELS"},{"$f":"IFERROR(VLOOKUP(D4453,Translation!$A:$C,3,FALSE),D4453)","v":"Île-du-Prince-Édouard"},{"$f":"IFERROR(VLOOKUP(E4453,Translation!$A:$C,3,FALSE),E4453)","v":0.18009639860681365},{"$f":"IFERROR(VLOOKUP(F4453,Translation!$A:$C,3,FALSE),F4453)","v":"Prêts hypothécaires assurés au cours de la période selon la province (%)"},{"$f":"IFERROR(VLOOKUP(G4453,Translation!$A:$C,3,FALSE),G4453)","v":"0.2"},{"$f":"IFERROR(VLOOKUP(H4453,Translation!$A:$C,3,FALSE),H4453)","v":"Île-du-Prince-Édouard"}]
[5,"Q3 2016","IMMEUBLES COLLECTIFS RÉSIDENTIELS","Île-du-Prince-Édouard",0.35614397161124045,"Prêts hypothécaires assurés au cours de la période selon la province (%)","0.4","Île-du-Prince-Édouard",{"$f":"IFERROR(VLOOKUP(A4455,Translation!$A:$C,3,FALSE),A4455)","v":5},{"$f":"IFERROR(VLOOKUP(B4455,Translation!$A:$C,3,FALSE),B4455)","v":"Q3 2016"},{"$f":"IFERROR(VLOOKUP(C4455,Translation!$A:$C,3,FALSE),C4455)","v":"IMMEUBLES COLLECTIFS RÉSIDENTIELS"},{"$f":"IFERROR(VLOOKUP(D4455,Translation!$A:$C,3,FALSE),D4455)","v":"Île-du-Prince-Édouard"},{"$f":"IFERROR(VLOOKUP(E4455,Translation!$A:$C,3,FALSE),E4455)","v":0.35614397161124045},{"$f":"IFERROR(VLOOKUP(F4455,Translation!$A:$C,3,FALSE),F4455)","v":"Prêts hypothécaires assurés au cours de la période selon la province (%)"},{"$f":"IFERROR(VLOOKUP(G4455,Translation!$A:$C,3,FALSE),G4455)","v":"0.4"},{"$f":"IFERROR(VLOOKUP(H4455,Translation!$A:$C,3,FALSE),H4455)","v":"Île-du-Prince-Édouard"}]
[5,"T4 2017","IMMEUBLES COLLECTIFS RÉSIDENTIELS","Île-du-Prince-Édouard",1.6274659051477638E-2,"Prêts hypothécaires assurés au cours de la période selon la province (%)","0.0","Île-du-Prince-Édouard",{"$f":"IFERROR(VLOOKUP(A4458,Translation!$A:$C,3,FALSE),A4458)","v":5},{"$f":"IFERROR(VLOOKUP(B4458,Translation!$A:$C,3,FALSE),B4458)","v":"T4 2017"},{"$f":"IFERROR(VLOOKUP(C4458,Translation!$A:$C,3,FALSE),C4458)","v":"IMMEUBLES COLLECTIFS RÉSIDENTIELS"},{"$f":"IFERROR(VLOOKUP(D4458,Translation!$A:$C,3,FALSE),D4458)","v":"Île-du-Prince-Édouard"},{"$f":"IFERROR(VLOOKUP(E4458,Translation!$A:$C,3,FALSE),E4458)","v":1.6274659051477638E-2},{"$f":"IFERROR(VLOOKUP(F4458,Translation!$A:$C,3,FALSE),F4458)","v":"Prêts hypothécaires assurés au cours de la période selon la province (%)"},{"$f":"IFERROR(VLOOKUP(G4458,Translation!$A:$C,3,FALSE),G4458)","v":"0.0"},{"$f":"IFERROR(VLOOKUP(H4458,Translation!$A:$C,3,FALSE),H4458)","v":"Île-du-Prince-Édouard"}]
[5,"T1 2017","IMMEUBLES COLLECTIFS RÉSIDENTIELS","Nouvelle-Écosse",1.7181143783871888,"Prêts hypothécaires assurés au cours de la période selon la province (%)","1.7","Nouvelle-Écosse",{"$f":"IFERROR(VLOOKUP(A4459,Translation!$A:$C,3,FALSE),A4459)","v":5},{"$f":"IFERROR(VLOOKUP(B4459,Translation!$A:$C,3,FALSE),B4459)","v":"T1 2017"},{"$f":"IFERROR(VLOOKUP(C4459,Translation!$A:$C,3,FALSE),C4459)","v":"IMMEUBLES COLLECTIFS RÉSIDENTIELS"},{"$f":"IFERROR(VLOOKUP(D4459,Translation!$A:$C,3,FALSE),D4459)","v":"Nouvelle-Écosse"},{"$f":"IFERROR(VLOOKUP(E4459,Translation!$A:$C,3,FALSE),E4459)","v":1.7181143783871888},{"$f":"IFERROR(VLOOKUP(F4459,Translation!$A:$C,3,FALSE),F4459)","v":"Prêts hypothécaires assurés au cours de la période selon la province (%)"},{"$f":"IFERROR(VLOOKUP(G4459,Translation!$A:$C,3,FALSE),G4459)","v":"1.7"},{"$f":"IFERROR(VLOOKUP(H4459,Translation!$A:$C,3,FALSE),H4459)","v":"Nouvelle-Écosse"}]
[5,"Q3 2016","IMMEUBLES COLLECTIFS RÉSIDENTIELS","Nouvelle-Écosse",6.6373476962368176,"Prêts hypothécaires assurés au cours de la période selon la province (%)","6.6","Nouvelle-Écosse",{"$f":"IFERROR(VLOOKUP(A4463,Translation!$A:$C,3,FALSE),A4463)","v":5},{"$f":"IFERROR(VLOOKUP(B4463,Translation!$A:$C,3,FALSE),B4463)","v":"Q3 2016"},{"$f":"IFERROR(VLOOKUP(C4463,Translation!$A:$C,3,FALSE),C4463)","v":"IMMEUBLES COLLECTIFS RÉSIDENTIELS"},{"$f":"IFERROR(VLOOKUP(D4463,Translation!$A:$C,3,FALSE),D4463)","v":"Nouvelle-Écosse"},{"$f":"IFERROR(VLOOKUP(E4463,Translation!$A:$C,3,FALSE),E4463)","v":6.6373476962368176},{"$f":"IFERROR(VLOOKUP(F4463,Translation!$A:$C,3,FALSE),F4463)","v":"Prêts hypothécaires assurés au cours de la période selon la province (%)"},{"$f":"IFERROR(VLOOKUP(G4463,Translation!$A:$C,3,FALSE),G4463)","v":"6.6"},{"$f":"IFERROR(VLOOKUP(H4463,Translation!$A:$C,3,FALSE),H4463)","v":"Nouvelle-Écosse"}]
[5,"T3 2017","IMMEUBLES COLLECTIFS RÉSIDENTIELS","Nouvelle-Écosse",3.7446465953126959,"Prêts hypothécaires assurés au cours de la période selon la province (%)","3.7","Nouvelle-Écosse",{"$f":"IFERROR(VLOOKUP(A4464,Translation!$A:$C,3,FALSE),A4464)","v":5},{"$f":"IFERROR(VLOOKUP(B4464,Translation!$A:$C,3,FALSE),B4464)","v":"T3 2017"},{"$f":"IFERROR(VLOOKUP(C4464,Translation!$A:$C,3,FALSE),C4464)","v":"IMMEUBLES COLLECTIFS RÉSIDENTIELS"},{"$f":"IFERROR(VLOOKUP(D4464,Translation!$A:$C,3,FALSE),D4464)","v":"Nouvelle-Écosse"},{"$f":"IFERROR(VLOOKUP(E4464,Translation!$A:$C,3,FALSE),E4464)","v":3.7446465953126959},{"$f":"IFERROR(VLOOKUP(F4464,Translation!$A:$C,3,FALSE),F4464)","v":"Prêts hypothécaires assurés au cours de la période selon la province (%)"},{"$f":"IFERROR(VLOOKUP(G4464,Translation!$A:$C,3,FALSE),G4464)","v":"3.7"},{"$f":"IFERROR(VLOOKUP(H4464,Translation!$A:$C,3,FALSE),H4464)","v":"Nouvelle-Écosse"}]
[5,"T4 2017","IMMEUBLES COLLECTIFS RÉSIDENTIELS","Nouvelle-Écosse",2.5064495738148502,"Prêts hypothécaires assurés au cours de la période selon la province (%)","2.5","Nouvelle-Écosse",{"$f":"IFERROR(VLOOKUP(A4466,Translation!$A:$C,3,FALSE),A4466)","v":5},{"$f":"IFERROR(VLOOKUP(B4466,Translation!$A:$C,3,FALSE),B4466)","v":"T4 2017"},{"$f":"IFERROR(VLOOKUP(C4466,Translation!$A:$C,3,FALSE),C4466)","v":"IMMEUBLES COLLECTIFS RÉSIDENTIELS"},{"$f":"IFERROR(VLOOKUP(D4466,Translation!$A:$C,3,FALSE),D4466)","v":"Nouvelle-Écosse"},{"$f":"IFERROR(VLOOKUP(E4466,Translation!$A:$C,3,FALSE),E4466)","v":2.5064495738148502},{"$f":"IFERROR(VLOOKUP(F4466,Translation!$A:$C,3,FALSE),F4466)","v":"Prêts hypothécaires assurés au cours de la période selon la province (%)"},{"$f":"IFERROR(VLOOKUP(G4466,Translation!$A:$C,3,FALSE),G4466)","v":"2.5"},{"$f":"IFERROR(VLOOKUP(H4466,Translation!$A:$C,3,FALSE),H4466)","v":"Nouvelle-Écosse"}]
[5,"Q2 2016","IMMEUBLES COLLECTIFS RÉSIDENTIELS","Nouveau-Brunswick",1.1684609356179609,"Prêts hypothécaires assurés au cours de la période selon la province (%)","1.2","Nouveau-Brunswick",{"$f":"IFERROR(VLOOKUP(A4469,Translation!$A:$C,3,FALSE),A4469)","v":5},{"$f":"IFERROR(VLOOKUP(B4469,Translation!$A:$C,3,FALSE),B4469)","v":"Q2 2016"},{"$f":"IFERROR(VLOOKUP(C4469,Translation!$A:$C,3,FALSE),C4469)","v":"IMMEUBLES COLLECTIFS RÉSIDENTIELS"},{"$f":"IFERROR(VLOOKUP(D4469,Translation!$A:$C,3,FALSE),D4469)","v":"Nouveau-Brunswick"},{"$f":"IFERROR(VLOOKUP(E4469,Translation!$A:$C,3,FALSE),E4469)","v":1.1684609356179609},{"$f":"IFERROR(VLOOKUP(F4469,Translation!$A:$C,3,FALSE),F4469)","v":"Prêts hypothécaires assurés au cours de la période selon la province (%)"},{"$f":"IFERROR(VLOOKUP(G4469,Translation!$A:$C,3,FALSE),G4469)","v":"1.2"},{"$f":"IFERROR(VLOOKUP(H4469,Translation!$A:$C,3,FALSE),H4469)","v":"Nouveau-Brunswick"}]
[5,"T3 2017","IMMEUBLES COLLECTIFS RÉSIDENTIELS","Nouveau-Brunswick",0.71156397176802388,"Prêts hypothécaires assurés au cours de la période selon la province (%)","0.7","Nouveau-Brunswick",{"$f":"IFERROR(VLOOKUP(A4472,Translation!$A:$C,3,FALSE),A4472)","v":5},{"$f":"IFERROR(VLOOKUP(B4472,Translation!$A:$C,3,FALSE),B4472)","v":"T3 2017"},{"$f":"IFERROR(VLOOKUP(C4472,Translation!$A:$C,3,FALSE),C4472)","v":"IMMEUBLES COLLECTIFS RÉSIDENTIELS"},{"$f":"IFERROR(VLOOKUP(D4472,Translation!$A:$C,3,FALSE),D4472)","v":"Nouveau-Brunswick"},{"$f":"IFERROR(VLOOKUP(E4472,Translation!$A:$C,3,FALSE),E4472)","v":0.71156397176802388},{"$f":"IFERROR(VLOOKUP(F4472,Translation!$A:$C,3,FALSE),F4472)","v":"Prêts hypothécaires assurés au cours de la période selon la province (%)"},{"$f":"IFERROR(VLOOKUP(G4472,Translation!$A:$C,3,FALSE),G4472)","v":"0.7"},{"$f":"IFERROR(VLOOKUP(H4472,Translation!$A:$C,3,FALSE),H4472)","v":"Nouveau-Brunswick"}]
[5,"T4 2017","IMMEUBLES COLLECTIFS RÉSIDENTIELS","Nouveau-Brunswick",2.2289795314186202E-2,"Prêts hypothécaires assurés au cours de la période selon la province (%)","0.0","Nouveau-Brunswick",{"$f":"IFERROR(VLOOKUP(A4474,Translation!$A:$C,3,FALSE),A4474)","v":5},{"$f":"IFERROR(VLOOKUP(B4474,Translation!$A:$C,3,FALSE),B4474)","v":"T4 2017"},{"$f":"IFERROR(VLOOKUP(C4474,Translation!$A:$C,3,FALSE),C4474)","v":"IMMEUBLES COLLECTIFS RÉSIDENTIELS"},{"$f":"IFERROR(VLOOKUP(D4474,Translation!$A:$C,3,FALSE),D4474)","v":"Nouveau-Brunswick"},{"$f":"IFERROR(VLOOKUP(E4474,Translation!$A:$C,3,FALSE),E4474)","v":2.2289795314186202E-2},{"$f":"IFERROR(VLOOKUP(F4474,Translation!$A:$C,3,FALSE),F4474)","v":"Prêts hypothécaires assurés au cours de la période selon la province (%)"},{"$f":"IFERROR(VLOOKUP(G4474,Translation!$A:$C,3,FALSE),G4474)","v":"0.0"},{"$f":"IFERROR(VLOOKUP(H4474,Translation!$A:$C,3,FALSE),H4474)","v":"Nouveau-Brunswick"}]
[5,"Q2 2016","IMMEUBLES COLLECTIFS RÉSIDENTIELS","Québec",24.532248693054591,"Prêts hypothécaires assurés au cours de la période selon la province (%)","24.5","Québec",{"$f":"IFERROR(VLOOKUP(A4477,Translation!$A:$C,3,FALSE),A4477)","v":5},{"$f":"IFERROR(VLOOKUP(B4477,Translation!$A:$C,3,FALSE),B4477)","v":"Q2 2016"},{"$f":"IFERROR(VLOOKUP(C4477,Translation!$A:$C,3,FALSE),C4477)","v":"IMMEUBLES COLLECTIFS RÉSIDENTIELS"},{"$f":"IFERROR(VLOOKUP(D4477,Translation!$A:$C,3,FALSE),D4477)","v":"Québec"},{"$f":"IFERROR(VLOOKUP(E4477,Translation!$A:$C,3,FALSE),E4477)","v":24.532248693054591},{"$f":"IFERROR(VLOOKUP(F4477,Translation!$A:$C,3,FALSE),F4477)","v":"Prêts hypothécaires assurés au cours de la période selon la province (%)"},{"$f":"IFERROR(VLOOKUP(G4477,Translation!$A:$C,3,FALSE),G4477)","v":"24.5"},{"$f":"IFERROR(VLOOKUP(H4477,Translation!$A:$C,3,FALSE),H4477)","v":"Québec"}]
[5,"T3 2017","IMMEUBLES COLLECTIFS RÉSIDENTIELS","Québec",40.037643124704097,"Prêts hypothécaires assurés au cours de la période selon la province (%)","40.0","Québec",{"$f":"IFERROR(VLOOKUP(A4480,Translation!$A:$C,3,FALSE),A4480)","v":5},{"$f":"IFERROR(VLOOKUP(B4480,Translation!$A:$C,3,FALSE),B4480)","v":"T3 2017"},{"$f":"IFERROR(VLOOKUP(C4480,Translation!$A:$C,3,FALSE),C4480)","v":"IMMEUBLES COLLECTIFS RÉSIDENTIELS"},{"$f":"IFERROR(VLOOKUP(D4480,Translation!$A:$C,3,FALSE),D4480)","v":"Québec"},{"$f":"IFERROR(VLOOKUP(E4480,Translation!$A:$C,3,FALSE),E4480)","v":40.037643124704097},{"$f":"IFERROR(VLOOKUP(F4480,Translation!$A:$C,3,FALSE),F4480)","v":"Prêts hypothécaires assurés au cours de la période selon la province (%)"},{"$f":"IFERROR(VLOOKUP(G4480,Translation!$A:$C,3,FALSE),G4480)","v":"40.0"},{"$f":"IFERROR(VLOOKUP(H4480,Translation!$A:$C,3,FALSE),H4480)","v":"Québec"}]
[5,"T4 2017","IMMEUBLES COLLECTIFS RÉSIDENTIELS","Québec",26.520637185676911,"Prêts hypothécaires assurés au cours de la période selon la province (%)","26.5","Québec",{"$f":"IFERROR(VLOOKUP(A4482,Translation!$A:$C,3,FALSE),A4482)","v":5},{"$f":"IFERROR(VLOOKUP(B4482,Translation!$A:$C,3,FALSE),B4482)","v":"T4 2017"},{"$f":"IFERROR(VLOOKUP(C4482,Translation!$A:$C,3,FALSE),C4482)","v":"IMMEUBLES COLLECTIFS RÉSIDENTIELS"},{"$f":"IFERROR(VLOOKUP(D4482,Translation!$A:$C,3,FALSE),D4482)","v":"Québec"},{"$f":"IFERROR(VLOOKUP(E4482,Translation!$A:$C,3,FALSE),E4482)","v":26.520637185676911},{"$f":"IFERROR(VLOOKUP(F4482,Translation!$A:$C,3,FALSE),F4482)","v":"Prêts hypothécaires assurés au cours de la période selon la province (%)"},{"$f":"IFERROR(VLOOKUP(G4482,Translation!$A:$C,3,FALSE),G4482)","v":"26.5"},{"$f":"IFERROR(VLOOKUP(H4482,Translation!$A:$C,3,FALSE),H4482)","v":"Québec"}]
[5,"T1 2017","IMMEUBLES COLLECTIFS RÉSIDENTIELS","Ontario",37.835378650664602,"Prêts hypothécaires assurés au cours de la période selon la province (%)","37.8","Ontario",{"$f":"IFERROR(VLOOKUP(A4483,Translation!$A:$C,3,FALSE),A4483)","v":5},{"$f":"IFERROR(VLOOKUP(B4483,Translation!$A:$C,3,FALSE),B4483)","v":"T1 2017"},{"$f":"IFERROR(VLOOKUP(C4483,Translation!$A:$C,3,FALSE),C4483)","v":"IMMEUBLES COLLECTIFS RÉSIDENTIELS"},{"$f":"IFERROR(VLOOKUP(D4483,Translation!$A:$C,3,FALSE),D4483)","v":"Ontario"},{"$f":"IFERROR(VLOOKUP(E4483,Translation!$A:$C,3,FALSE),E4483)","v":37.835378650664602},{"$f":"IFERROR(VLOOKUP(F4483,Translation!$A:$C,3,FALSE),F4483)","v":"Prêts hypothécaires assurés au cours de la période selon la province (%)"},{"$f":"IFERROR(VLOOKUP(G4483,Translation!$A:$C,3,FALSE),G4483)","v":"37.8"},{"$f":"IFERROR(VLOOKUP(H4483,Translation!$A:$C,3,FALSE),H4483)","v":"Ontario"}]
[5,"Q2 2016","IMMEUBLES COLLECTIFS RÉSIDENTIELS","Ontario",39.884789393120109,"Prêts hypothécaires assurés au cours de la période selon la province (%)","39.9","Ontario",{"$f":"IFERROR(VLOOKUP(A4485,Translation!$A:$C,3,FALSE),A4485)","v":5},{"$f":"IFERROR(VLOOKUP(B4485,Translation!$A:$C,3,FALSE),B4485)","v":"Q2 2016"},{"$f":"IFERROR(VLOOKUP(C4485,Translation!$A:$C,3,FALSE),C4485)","v":"IMMEUBLES COLLECTIFS RÉSIDENTIELS"},{"$f":"IFERROR(VLOOKUP(D4485,Translation!$A:$C,3,FALSE),D4485)","v":"Ontario"},{"$f":"IFERROR(VLOOKUP(E4485,Translation!$A:$C,3,FALSE),E4485)","v":39.884789393120109},{"$f":"IFERROR(VLOOKUP(F4485,Translation!$A:$C,3,FALSE),F4485)","v":"Prêts hypothécaires assurés au cours de la période selon la province (%)"},{"$f":"IFERROR(VLOOKUP(G4485,Translation!$A:$C,3,FALSE),G4485)","v":"39.9"},{"$f":"IFERROR(VLOOKUP(H4485,Translation!$A:$C,3,FALSE),H4485)","v":"Ontario"}]
[5,"T3 2017","IMMEUBLES COLLECTIFS RÉSIDENTIELS","Ontario",33.539795287902194,"Prêts hypothécaires assurés au cours de la période selon la province (%)","33.5","Ontario",{"$f":"IFERROR(VLOOKUP(A4488,Translation!$A:$C,3,FALSE),A4488)","v":5},{"$f":"IFERROR(VLOOKUP(B4488,Translation!$A:$C,3,FALSE),B4488)","v":"T3 2017"},{"$f":"IFERROR(VLOOKUP(C4488,Translation!$A:$C,3,FALSE),C4488)","v":"IMMEUBLES COLLECTIFS RÉSIDENTIELS"},{"$f":"IFERROR(VLOOKUP(D4488,Translation!$A:$C,3,FALSE),D4488)","v":"Ontario"},{"$f":"IFERROR(VLOOKUP(E4488,Translation!$A:$C,3,FALSE),E4488)","v":33.539795287902194},{"$f":"IFERROR(VLOOKUP(F4488,Translation!$A:$C,3,FALSE),F4488)","v":"Prêts hypothécaires assurés au cours de la période selon la province (%)"},{"$f":"IFERROR(VLOOKUP(G4488,Translation!$A:$C,3,FALSE),G4488)","v":"33.5"},{"$f":"IFERROR(VLOOKUP(H4488,Translation!$A:$C,3,FALSE),H4488)","v":"Ontario"}]
[5,"T1 2017","IMMEUBLES COLLECTIFS RÉSIDENTIELS","Manitoba",2.0155124718130266,"Prêts hypothécaires assurés au cours de la période selon la province (%)","2.0","Manitoba",{"$f":"IFERROR(VLOOKUP(A4491,Translation!$A:$C,3,FALSE),A4491)","v":5},{"$f":"IFERROR(VLOOKUP(B4491,Translation!$A:$C,3,FALSE),B4491)","v":"T1 2017"},{"$f":"IFERROR(VLOOKUP(C4491,Translation!$A:$C,3,FALSE),C4491)","v":"IMMEUBLES COLLECTIFS RÉSIDENTIELS"},{"$f":"IFERROR(VLOOKUP(D4491,Translation!$A:$C,3,FALSE),D4491)","v":"Manitoba"},{"$f":"IFERROR(VLOOKUP(E4491,Translation!$A:$C,3,FALSE),E4491)","v":2.0155124718130266},{"$f":"IFERROR(VLOOKUP(F4491,Translation!$A:$C,3,FALSE),F4491)","v":"Prêts hypothécaires assurés au cours de la période selon la province (%)"},{"$f":"IFERROR(VLOOKUP(G4491,Translation!$A:$C,3,FALSE),G4491)","v":"2.0"},{"$f":"IFERROR(VLOOKUP(H4491,Translation!$A:$C,3,FALSE),H4491)","v":"Manitoba"}]
[5,"Q2 2016","IMMEUBLES COLLECTIFS RÉSIDENTIELS","Manitoba",1.4479010522675679,"Prêts hypothécaires assurés au cours de la période selon la province (%)","1.4","Manitoba",{"$f":"IFERROR(VLOOKUP(A4493,Translation!$A:$C,3,FALSE),A4493)","v":5},{"$f":"IFERROR(VLOOKUP(B4493,Translation!$A:$C,3,FALSE),B4493)","v":"Q2 2016"},{"$f":"IFERROR(VLOOKUP(C4493,Translation!$A:$C,3,FALSE),C4493)","v":"IMMEUBLES COLLECTIFS RÉSIDENTIELS"},{"$f":"IFERROR(VLOOKUP(D4493,Translation!$A:$C,3,FALSE),D4493)","v":"Manitoba"},{"$f":"IFERROR(VLOOKUP(E4493,Translation!$A:$C,3,FALSE),E4493)","v":1.4479010522675679},{"$f":"IFERROR(VLOOKUP(F4493,Translation!$A:$C,3,FALSE),F4493)","v":"Prêts hypothécaires assurés au cours de la période selon la province (%)"},{"$f":"IFERROR(VLOOKUP(G4493,Translation!$A:$C,3,FALSE),G4493)","v":"1.4"},{"$f":"IFERROR(VLOOKUP(H4493,Translation!$A:$C,3,FALSE),H4493)","v":"Manitoba"}]
[5,"T3 2017","IMMEUBLES COLLECTIFS RÉSIDENTIELS","Manitoba",1.2754524722613336,"Prêts hypothécaires assurés au cours de la période selon la province (%)","1.3","Manitoba",{"$f":"IFERROR(VLOOKUP(A4496,Translation!$A:$C,3,FALSE),A4496)","v":5},{"$f":"IFERROR(VLOOKUP(B4496,Translation!$A:$C,3,FALSE),B4496)","v":"T3 2017"},{"$f":"IFERROR(VLOOKUP(C4496,Translation!$A:$C,3,FALSE),C4496)","v":"IMMEUBLES COLLECTIFS RÉSIDENTIELS"},{"$f":"IFERROR(VLOOKUP(D4496,Translation!$A:$C,3,FALSE),D4496)","v":"Manitoba"},{"$f":"IFERROR(VLOOKUP(E4496,Translation!$A:$C,3,FALSE),E4496)","v":1.2754524722613336},{"$f":"IFERROR(VLOOKUP(F4496,Translation!$A:$C,3,FALSE),F4496)","v":"Prêts hypothécaires assurés au cours de la période selon la province (%)"},{"$f":"IFERROR(VLOOKUP(G4496,Translation!$A:$C,3,FALSE),G4496)","v":"1.3"},{"$f":"IFERROR(VLOOKUP(H4496,Translation!$A:$C,3,FALSE),H4496)","v":"Manitoba"}]
[5,"T1 2017","IMMEUBLES COLLECTIFS RÉSIDENTIELS","Saskatchewan",1.8230289862323903,"Prêts hypothécaires assurés au cours de la période selon la province (%)","1.8","Saskatchewan",{"$f":"IFERROR(VLOOKUP(A4499,Translation!$A:$C,3,FALSE),A4499)","v":5},{"$f":"IFERROR(VLOOKUP(B4499,Translation!$A:$C,3,FALSE),B4499)","v":"T1 2017"},{"$f":"IFERROR(VLOOKUP(C4499,Translation!$A:$C,3,FALSE),C4499)","v":"IMMEUBLES COLLECTIFS RÉSIDENTIELS"},{"$f":"IFERROR(VLOOKUP(D4499,Translation!$A:$C,3,FALSE),D4499)","v":"Saskatchewan"},{"$f":"IFERROR(VLOOKUP(E4499,Translation!$A:$C,3,FALSE),E4499)","v":1.8230289862323903},{"$f":"IFERROR(VLOOKUP(F4499,Translation!$A:$C,3,FALSE),F4499)","v":"Prêts hypothécaires assurés au cours de la période selon la province (%)"},{"$f":"IFERROR(VLOOKUP(G4499,Translation!$A:$C,3,FALSE),G4499)","v":"1.8"},{"$f":"IFERROR(VLOOKUP(H4499,Translation!$A:$C,3,FALSE),H4499)","v":"Saskatchewan"}]
[5,"Q2 2016","IMMEUBLES COLLECTIFS RÉSIDENTIELS","Saskatchewan",2.1202442039987353,"Prêts hypothécaires assurés au cours de la période selon la province (%)","2.1","Saskatchewan",{"$f":"IFERROR(VLOOKUP(A4501,Translation!$A:$C,3,FALSE),A4501)","v":5},{"$f":"IFERROR(VLOOKUP(B4501,Translation!$A:$C,3,FALSE),B4501)","v":"Q2 2016"},{"$f":"IFERROR(VLOOKUP(C4501,Translation!$A:$C,3,FALSE),C4501)","v":"IMMEUBLES COLLECTIFS RÉSIDENTIELS"},{"$f":"IFERROR(VLOOKUP(D4501,Translation!$A:$C,3,FALSE),D4501)","v":"Saskatchewan"},{"$f":"IFERROR(VLOOKUP(E4501,Translation!$A:$C,3,FALSE),E4501)","v":2.1202442039987353},{"$f":"IFERROR(VLOOKUP(F4501,Translation!$A:$C,3,FALSE),F4501)","v":"Prêts hypothécaires assurés au cours de la période selon la province (%)"},{"$f":"IFERROR(VLOOKUP(G4501,Translation!$A:$C,3,FALSE),G4501)","v":"2.1"},{"$f":"IFERROR(VLOOKUP(H4501,Translation!$A:$C,3,FALSE),H4501)","v":"Saskatchewan"}]
[5,"T2 2017","IMMEUBLES COLLECTIFS RÉSIDENTIELS","Saskatchewan",1.4642511467791461,"Prêts hypothécaires assurés au cours de la période selon la province (%)","1.5","Saskatchewan",{"$f":"IFERROR(VLOOKUP(A4502,Translation!$A:$C,3,FALSE),A4502)","v":5},{"$f":"IFERROR(VLOOKUP(B4502,Translation!$A:$C,3,FALSE),B4502)","v":"T2 2017"},{"$f":"IFERROR(VLOOKUP(C4502,Translation!$A:$C,3,FALSE),C4502)","v":"IMMEUBLES COLLECTIFS RÉSIDENTIELS"},{"$f":"IFERROR(VLOOKUP(D4502,Translation!$A:$C,3,FALSE),D4502)","v":"Saskatchewan"},{"$f":"IFERROR(VLOOKUP(E4502,Translation!$A:$C,3,FALSE),E4502)","v":1.4642511467791461},{"$f":"IFERROR(VLOOKUP(F4502,Translation!$A:$C,3,FALSE),F4502)","v":"Prêts hypothécaires assurés au cours de la période selon la province (%)"},{"$f":"IFERROR(VLOOKUP(G4502,Translation!$A:$C,3,FALSE),G4502)","v":"1.5"},{"$f":"IFERROR(VLOOKUP(H4502,Translation!$A:$C,3,FALSE),H4502)","v":"Saskatchewan"}]
[5,"T4 2017","IMMEUBLES COLLECTIFS RÉSIDENTIELS","Saskatchewan",0.94946183302082421,"Prêts hypothécaires assurés au cours de la période selon la province (%)","0.9","Saskatchewan",{"$f":"IFERROR(VLOOKUP(A4506,Translation!$A:$C,3,FALSE),A4506)","v":5},{"$f":"IFERROR(VLOOKUP(B4506,Translation!$A:$C,3,FALSE),B4506)","v":"T4 2017"},{"$f":"IFERROR(VLOOKUP(C4506,Translation!$A:$C,3,FALSE),C4506)","v":"IMMEUBLES COLLECTIFS RÉSIDENTIELS"},{"$f":"IFERROR(VLOOKUP(D4506,Translation!$A:$C,3,FALSE),D4506)","v":"Saskatchewan"},{"$f":"IFERROR(VLOOKUP(E4506,Translation!$A:$C,3,FALSE),E4506)","v":0.94946183302082421},{"$f":"IFERROR(VLOOKUP(F4506,Translation!$A:$C,3,FALSE),F4506)","v":"Prêts hypothécaires assurés au cours de la période selon la province (%)"},{"$f":"IFERROR(VLOOKUP(G4506,Translation!$A:$C,3,FALSE),G4506)","v":"0.9"},{"$f":"IFERROR(VLOOKUP(H4506,Translation!$A:$C,3,FALSE),H4506)","v":"Saskatchewan"}]
[5,"T1 2017","IMMEUBLES COLLECTIFS RÉSIDENTIELS","Alberta",10.376383992872112,"Prêts hypothécaires assurés au cours de la période selon la province (%)","10.4","Alberta",{"$f":"IFERROR(VLOOKUP(A4507,Translation!$A:$C,3,FALSE),A4507)","v":5},{"$f":"IFERROR(VLOOKUP(B4507,Translation!$A:$C,3,FALSE),B4507)","v":"T1 2017"},{"$f":"IFERROR(VLOOKUP(C4507,Translation!$A:$C,3,FALSE),C4507)","v":"IMMEUBLES COLLECTIFS RÉSIDENTIELS"},{"$f":"IFERROR(VLOOKUP(D4507,Translation!$A:$C,3,FALSE),D4507)","v":"Alberta"},{"$f":"IFERROR(VLOOKUP(E4507,Translation!$A:$C,3,FALSE),E4507)","v":10.376383992872112},{"$f":"IFERROR(VLOOKUP(F4507,Translation!$A:$C,3,FALSE),F4507)","v":"Prêts hypothécaires assurés au cours de la période selon la province (%)"},{"$f":"IFERROR(VLOOKUP(G4507,Translation!$A:$C,3,FALSE),G4507)","v":"10.4"},{"$f":"IFERROR(VLOOKUP(H4507,Translation!$A:$C,3,FALSE),H4507)","v":"Alberta"}]
[5,"T2 2017","IMMEUBLES COLLECTIFS RÉSIDENTIELS","Alberta",4.7767051946394679,"Prêts hypothécaires assurés au cours de la période selon la province (%)","4.8","Alberta",{"$f":"IFERROR(VLOOKUP(A4510,Translation!$A:$C,3,FALSE),A4510)","v":5},{"$f":"IFERROR(VLOOKUP(B4510,Translation!$A:$C,3,FALSE),B4510)","v":"T2 2017"},{"$f":"IFERROR(VLOOKUP(C4510,Translation!$A:$C,3,FALSE),C4510)","v":"IMMEUBLES COLLECTIFS RÉSIDENTIELS"},{"$f":"IFERROR(VLOOKUP(D4510,Translation!$A:$C,3,FALSE),D4510)","v":"Alberta"},{"$f":"IFERROR(VLOOKUP(E4510,Translation!$A:$C,3,FALSE),E4510)","v":4.7767051946394679},{"$f":"IFERROR(VLOOKUP(F4510,Translation!$A:$C,3,FALSE),F4510)","v":"Prêts hypothécaires assurés au cours de la période selon la province (%)"},{"$f":"IFERROR(VLOOKUP(G4510,Translation!$A:$C,3,FALSE),G4510)","v":"4.8"},{"$f":"IFERROR(VLOOKUP(H4510,Translation!$A:$C,3,FALSE),H4510)","v":"Alberta"}]
[5,"T3 2017","IMMEUBLES COLLECTIFS RÉSIDENTIELS","Alberta",5.814036501024634,"Prêts hypothécaires assurés au cours de la période selon la province (%)","5.8","Alberta",{"$f":"IFERROR(VLOOKUP(A4512,Translation!$A:$C,3,FALSE),A4512)","v":5},{"$f":"IFERROR(VLOOKUP(B4512,Translation!$A:$C,3,FALSE),B4512)","v":"T3 2017"},{"$f":"IFERROR(VLOOKUP(C4512,Translation!$A:$C,3,FALSE),C4512)","v":"IMMEUBLES COLLECTIFS RÉSIDENTIELS"},{"$f":"IFERROR(VLOOKUP(D4512,Translation!$A:$C,3,FALSE),D4512)","v":"Alberta"},{"$f":"IFERROR(VLOOKUP(E4512,Translation!$A:$C,3,FALSE),E4512)","v":5.814036501024634},{"$f":"IFERROR(VLOOKUP(F4512,Translation!$A:$C,3,FALSE),F4512)","v":"Prêts hypothécaires assurés au cours de la période selon la province (%)"},{"$f":"IFERROR(VLOOKUP(G4512,Translation!$A:$C,3,FALSE),G4512)","v":"5.8"},{"$f":"IFERROR(VLOOKUP(H4512,Translation!$A:$C,3,FALSE),H4512)","v":"Alberta"}]
[5,"T1 2018","IMMEUBLES COLLECTIFS RÉSIDENTIELS","Colombie-Britannique",11.783711418733713,"Prêts hypothécaires assurés au cours de la période selon la province (%)","11.8","Colombie-Britannique",{"$f":"IFERROR(VLOOKUP(A4516,Translation!$A:$C,3,FALSE),A4516)","v":5},{"$f":"IFERROR(VLOOKUP(B4516,Translation!$A:$C,3,FALSE),B4516)","v":"T1 2018"},{"$f":"IFERROR(VLOOKUP(C4516,Translation!$A:$C,3,FALSE),C4516)","v":"IMMEUBLES COLLECTIFS RÉSIDENTIELS"},{"$f":"IFERROR(VLOOKUP(D4516,Translation!$A:$C,3,FALSE),D4516)","v":"Colombie-Britannique"},{"$f":"IFERROR(VLOOKUP(E4516,Translation!$A:$C,3,FALSE),E4516)","v":11.783711418733713},{"$f":"IFERROR(VLOOKUP(F4516,Translation!$A:$C,3,FALSE),F4516)","v":"Prêts hypothécaires assurés au cours de la période selon la province (%)"},{"$f":"IFERROR(VLOOKUP(G4516,Translation!$A:$C,3,FALSE),G4516)","v":"11.8"},{"$f":"IFERROR(VLOOKUP(H4516,Translation!$A:$C,3,FALSE),H4516)","v":"Colombie-Britannique"}]
[5,"Q2 2016","IMMEUBLES COLLECTIFS RÉSIDENTIELS","Colombie-Britannique",11.711381408674816,"Prêts hypothécaires assurés au cours de la période selon la province (%)","11.7","Colombie-Britannique",{"$f":"IFERROR(VLOOKUP(A4517,Translation!$A:$C,3,FALSE),A4517)","v":5},{"$f":"IFERROR(VLOOKUP(B4517,Translation!$A:$C,3,FALSE),B4517)","v":"Q2 2016"},{"$f":"IFERROR(VLOOKUP(C4517,Translation!$A:$C,3,FALSE),C4517)","v":"IMMEUBLES COLLECTIFS RÉSIDENTIELS"},{"$f":"IFERROR(VLOOKUP(D4517,Translation!$A:$C,3,FALSE),D4517)","v":"Colombie-Britannique"},{"$f":"IFERROR(VLOOKUP(E4517,Translation!$A:$C,3,FALSE),E4517)","v":11.711381408674816},{"$f":"IFERROR(VLOOKUP(F4517,Translation!$A:$C,3,FALSE),F4517)","v":"Prêts hypothécaires assurés au cours de la période selon la province (%)"},{"$f":"IFERROR(VLOOKUP(G4517,Translation!$A:$C,3,FALSE),G4517)","v":"11.7"},{"$f":"IFERROR(VLOOKUP(H4517,Translation!$A:$C,3,FALSE),H4517)","v":"Colombie-Britannique"}]
[5,"T3 2017","IMMEUBLES COLLECTIFS RÉSIDENTIELS","Colombie-Britannique",12.561632876985415,"Prêts hypothécaires assurés au cours de la période selon la province (%)","12.6","Colombie-Britannique",{"$f":"IFERROR(VLOOKUP(A4520,Translation!$A:$C,3,FALSE),A4520)","v":5},{"$f":"IFERROR(VLOOKUP(B4520,Translation!$A:$C,3,FALSE),B4520)","v":"T3 2017"},{"$f":"IFERROR(VLOOKUP(C4520,Translation!$A:$C,3,FALSE),C4520)","v":"IMMEUBLES COLLECTIFS RÉSIDENTIELS"},{"$f":"IFERROR(VLOOKUP(D4520,Translation!$A:$C,3,FALSE),D4520)","v":"Colombie-Britannique"},{"$f":"IFERROR(VLOOKUP(E4520,Translation!$A:$C,3,FALSE),E4520)","v":12.561632876985415},{"$f":"IFERROR(VLOOKUP(F4520,Translation!$A:$C,3,FALSE),F4520)","v":"Prêts hypothécaires assurés au cours de la période selon la province (%)"},{"$f":"IFERROR(VLOOKUP(G4520,Translation!$A:$C,3,FALSE),G4520)","v":"12.6"},{"$f":"IFERROR(VLOOKUP(H4520,Translation!$A:$C,3,FALSE),H4520)","v":"Colombie-Britannique"}]
[5,"Q4 2016","IMMEUBLES COLLECTIFS RÉSIDENTIELS","Colombie-Britannique",20.659342780672965,"Prêts hypothécaires assurés au cours de la période selon la province (%)","20.7","Colombie-Britannique",{"$f":"IFERROR(VLOOKUP(A4521,Translation!$A:$C,3,FALSE),A4521)","v":5},{"$f":"IFERROR(VLOOKUP(B4521,Translation!$A:$C,3,FALSE),B4521)","v":"Q4 2016"},{"$f":"IFERROR(VLOOKUP(C4521,Translation!$A:$C,3,FALSE),C4521)","v":"IMMEUBLES COLLECTIFS RÉSIDENTIELS"},{"$f":"IFERROR(VLOOKUP(D4521,Translation!$A:$C,3,FALSE),D4521)","v":"Colombie-Britannique"},{"$f":"IFERROR(VLOOKUP(E4521,Translation!$A:$C,3,FALSE),E4521)","v":20.659342780672965},{"$f":"IFERROR(VLOOKUP(F4521,Translation!$A:$C,3,FALSE),F4521)","v":"Prêts hypothécaires assurés au cours de la période selon la province (%)"},{"$f":"IFERROR(VLOOKUP(G4521,Translation!$A:$C,3,FALSE),G4521)","v":"20.7"},{"$f":"IFERROR(VLOOKUP(H4521,Translation!$A:$C,3,FALSE),H4521)","v":"Colombie-Britannique"}]
[5,"T2 2017","IMMEUBLES COLLECTIFS RÉSIDENTIELS","Territoires",0.18582457943957231,"Prêts hypothécaires assurés au cours de la période selon la province (%)","0.2","Territoires",{"$f":"IFERROR(VLOOKUP(A4525,Translation!$A:$C,3,FALSE),A4525)","v":5},{"$f":"IFERROR(VLOOKUP(B4525,Translation!$A:$C,3,FALSE),B4525)","v":"T2 2017"},{"$f":"IFERROR(VLOOKUP(C4525,Translation!$A:$C,3,FALSE),C4525)","v":"IMMEUBLES COLLECTIFS RÉSIDENTIELS"},{"$f":"IFERROR(VLOOKUP(D4525,Translation!$A:$C,3,FALSE),D4525)","v":"Territoires"},{"$f":"IFERROR(VLOOKUP(E4525,Translation!$A:$C,3,FALSE),E4525)","v":0.18582457943957231},{"$f":"IFERROR(VLOOKUP(F4525,Translation!$A:$C,3,FALSE),F4525)","v":"Prêts hypothécaires assurés au cours de la période selon la province (%)"},{"$f":"IFERROR(VLOOKUP(G4525,Translation!$A:$C,3,FALSE),G4525)","v":"0.2"},{"$f":"IFERROR(VLOOKUP(H4525,Translation!$A:$C,3,FALSE),H4525)","v":"Territoires"}]
[5,"T3 2017","IMMEUBLES COLLECTIFS RÉSIDENTIELS","Territoires",0.24586386683549727,"Prêts hypothécaires assurés au cours de la période selon la province (%)","0.2","Territoires",{"$f":"IFERROR(VLOOKUP(A4527,Translation!$A:$C,3,FALSE),A4527)","v":5},{"$f":"IFERROR(VLOOKUP(B4527,Translation!$A:$C,3,FALSE),B4527)","v":"T3 2017"},{"$f":"IFERROR(VLOOKUP(C4527,Translation!$A:$C,3,FALSE),C4527)","v":"IMMEUBLES COLLECTIFS RÉSIDENTIELS"},{"$f":"IFERROR(VLOOKUP(D4527,Translation!$A:$C,3,FALSE),D4527)","v":"Territoires"},{"$f":"IFERROR(VLOOKUP(E4527,Translation!$A:$C,3,FALSE),E4527)","v":0.24586386683549727},{"$f":"IFERROR(VLOOKUP(F4527,Translation!$A:$C,3,FALSE),F4527)","v":"Prêts hypothécaires assurés au cours de la période selon la province (%)"},{"$f":"IFERROR(VLOOKUP(G4527,Translation!$A:$C,3,FALSE),G4527)","v":"0.2"},{"$f":"IFERROR(VLOOKUP(H4527,Translation!$A:$C,3,FALSE),H4527)","v":"Territoires"}]
[7,"T1 2020","PROPRIÉTAIRES-OCCUPANTS, À L’UNITÉ","<= 50 %",9.3025079030117933E-2,"Prêts hypothécaires assurés au cours de la période selon le rapport prêt-valeur (RPV) établi d’après la valeur initiale de la propriété (%)","0.1"," <= 50 %",{"$f":"IFERROR(VLOOKUP(A4530,Translation!$A:$C,3,FALSE),A4530)","v":7},{"$f":"IFERROR(VLOOKUP(B4530,Translation!$A:$C,3,FALSE),B4530)","v":"T1 2020"},{"$f":"IFERROR(VLOOKUP(C4530,Translation!$A:$C,3,FALSE),C4530)","v":"PROPRIÉTAIRES-OCCUPANTS, À L’UNITÉ"},{"$f":"IFERROR(VLOOKUP(D4530,Translation!$A:$C,3,FALSE),D4530)","v":"<= 50 %"},{"$f":"IFERROR(VLOOKUP(E4530,Translation!$A:$C,3,FALSE),E4530)","v":9.3025079030117933E-2},{"$f":"IFERROR(VLOOKUP(F4530,Translation!$A:$C,3,FALSE),F4530)","v":"Prêts hypothécaires assurés au cours de la période selon le rapport prêt-valeur (RPV) établi d’après la valeur initiale de la propriété (%)"},{"$f":"IFERROR(VLOOKUP(G4530,Translation!$A:$C,3,FALSE),G4530)","v":"0.1"},{"$f":"IFERROR(VLOOKUP(H4530,Translation!$A:$C,3,FALSE),H4530)","v":" <= 50 %"}]
[7,"Cumul 2019","PROPRIÉTAIRES-OCCUPANTS, À L’UNITÉ","<= 50 %",0.13310926627090611,"Prêts hypothécaires assurés au cours de la période selon le rapport prêt-valeur (RPV) établi d’après la valeur initiale de la propriété (%)","0.1"," <= 50 %",{"$f":"IFERROR(VLOOKUP(A4531,Translation!$A:$C,3,FALSE),A4531)","v":7},{"$f":"IFERROR(VLOOKUP(B4531,Translation!$A:$C,3,FALSE),B4531)","v":"Cumul 2019"},{"$f":"IFERROR(VLOOKUP(C4531,Translation!$A:$C,3,FALSE),C4531)","v":"PROPRIÉTAIRES-OCCUPANTS, À L’UNITÉ"},{"$f":"IFERROR(VLOOKUP(D4531,Translation!$A:$C,3,FALSE),D4531)","v":"<= 50 %"},{"$f":"IFERROR(VLOOKUP(E4531,Translation!$A:$C,3,FALSE),E4531)","v":0.13310926627090611},{"$f":"IFERROR(VLOOKUP(F4531,Translation!$A:$C,3,FALSE),F4531)","v":"Prêts hypothécaires assurés au cours de la période selon le rapport prêt-valeur (RPV) établi d’après la valeur initiale de la propriété (%)"},{"$f":"IFERROR(VLOOKUP(G4531,Translation!$A:$C,3,FALSE),G4531)","v":"0.1"},{"$f":"IFERROR(VLOOKUP(H4531,Translation!$A:$C,3,FALSE),H4531)","v":" <= 50 %"}]
[7,"Cumul 2020","PROPRIÉTAIRES-OCCUPANTS, À L’UNITÉ","> 50 % <= 55 %",3.054306421261609E-2,"Prêts hypothécaires assurés au cours de la période selon le rapport prêt-valeur (RPV) établi d’après la valeur initiale de la propriété (%)","0.0"," > 50 % <= 55 %",{"$f":"IFERROR(VLOOKUP(A4535,Translation!$A:$C,3,FALSE),A4535)","v":7},{"$f":"IFERROR(VLOOKUP(B4535,Translation!$A:$C,3,FALSE),B4535)","v":"Cumul 2020"},{"$f":"IFERROR(VLOOKUP(C4535,Translation!$A:$C,3,FALSE),C4535)","v":"PROPRIÉTAIRES-OCCUPANTS, À L’UNITÉ"},{"$f":"IFERROR(VLOOKUP(D4535,Translation!$A:$C,3,FALSE),D4535)","v":"> 50 % <= 55 %"},{"$f":"IFERROR(VLOOKUP(E4535,Translation!$A:$C,3,FALSE),E4535)","v":3.054306421261609E-2},{"$f":"IFERROR(VLOOKUP(F4535,Translation!$A:$C,3,FALSE),F4535)","v":"Prêts hypothécaires assurés au cours de la période selon le rapport prêt-valeur (RPV) établi d’après la valeur initiale de la propriété (%)"},{"$f":"IFERROR(VLOOKUP(G4535,Translation!$A:$C,3,FALSE),G4535)","v":"0.0"},{"$f":"IFERROR(VLOOKUP(H4535,Translation!$A:$C,3,FALSE),H4535)","v":" > 50 % <= 55 %"}]
[7,"T1 2020","PROPRIÉTAIRES-OCCUPANTS, À L’UNITÉ","> 55 % <= 60 %",2.8018472151629833E-2,"Prêts hypothécaires assurés au cours de la période selon le rapport prêt-valeur (RPV) établi d’après la valeur initiale de la propriété (%)","0.0"," > 55 % <= 60 %",{"$f":"IFERROR(VLOOKUP(A4536,Translation!$A:$C,3,FALSE),A4536)","v":7},{"$f":"IFERROR(VLOOKUP(B4536,Translation!$A:$C,3,FALSE),B4536)","v":"T1 2020"},{"$f":"IFERROR(VLOOKUP(C4536,Translation!$A:$C,3,FALSE),C4536)","v":"PROPRIÉTAIRES-OCCUPANTS, À L’UNITÉ"},{"$f":"IFERROR(VLOOKUP(D4536,Translation!$A:$C,3,FALSE),D4536)","v":"> 55 % <= 60 %"},{"$f":"IFERROR(VLOOKUP(E4536,Translation!$A:$C,3,FALSE),E4536)","v":2.8018472151629833E-2},{"$f":"IFERROR(VLOOKUP(F4536,Translation!$A:$C,3,FALSE),F4536)","v":"Prêts hypothécaires assurés au cours de la période selon le rapport prêt-valeur (RPV) établi d’après la valeur initiale de la propriété (%)"},{"$f":"IFERROR(VLOOKUP(G4536,Translation!$A:$C,3,FALSE),G4536)","v":"0.0"},{"$f":"IFERROR(VLOOKUP(H4536,Translation!$A:$C,3,FALSE),H4536)","v":" > 55 % <= 60 %"}]
[7,"Cumul 2020","PROPRIÉTAIRES-OCCUPANTS, À L’UNITÉ","> 55 % <= 60 %",2.8018472151629833E-2,"Prêts hypothécaires assurés au cours de la période selon le rapport prêt-valeur (RPV) établi d’après la valeur initiale de la propriété (%)","0.0"," > 55 % <= 60 %",{"$f":"IFERROR(VLOOKUP(A4538,Translation!$A:$C,3,FALSE),A4538)","v":7},{"$f":"IFERROR(VLOOKUP(B4538,Translation!$A:$C,3,FALSE),B4538)","v":"Cumul 2020"},{"$f":"IFERROR(VLOOKUP(C4538,Translation!$A:$C,3,FALSE),C4538)","v":"PROPRIÉTAIRES-OCCUPANTS, À L’UNITÉ"},{"$f":"IFERROR(VLOOKUP(D4538,Translation!$A:$C,3,FALSE),D4538)","v":"> 55 % <= 60 %"},{"$f":"IFERROR(VLOOKUP(E4538,Translation!$A:$C,3,FALSE),E4538)","v":2.8018472151629833E-2},{"$f":"IFERROR(VLOOKUP(F4538,Translation!$A:$C,3,FALSE),F4538)","v":"Prêts hypothécaires assurés au cours de la période selon le rapport prêt-valeur (RPV) établi d’après la valeur initiale de la propriété (%)"},{"$f":"IFERROR(VLOOKUP(G4538,Translation!$A:$C,3,FALSE),G4538)","v":"0.0"},{"$f":"IFERROR(VLOOKUP(H4538,Translation!$A:$C,3,FALSE),H4538)","v":" > 55 % <= 60 %"}]
[7,"Cumul 2020","PROPRIÉTAIRES-OCCUPANTS, À L’UNITÉ","> 60 % <= 65 %",0.102129010477302,"Prêts hypothécaires assurés au cours de la période selon le rapport prêt-valeur (RPV) établi d’après la valeur initiale de la propriété (%)","0.1"," > 60 % <= 65 %",{"$f":"IFERROR(VLOOKUP(A4541,Translation!$A:$C,3,FALSE),A4541)","v":7},{"$f":"IFERROR(VLOOKUP(B4541,Translation!$A:$C,3,FALSE),B4541)","v":"Cumul 2020"},{"$f":"IFERROR(VLOOKUP(C4541,Translation!$A:$C,3,FALSE),C4541)","v":"PROPRIÉTAIRES-OCCUPANTS, À L’UNITÉ"},{"$f":"IFERROR(VLOOKUP(D4541,Translation!$A:$C,3,FALSE),D4541)","v":"> 60 % <= 65 %"},{"$f":"IFERROR(VLOOKUP(E4541,Translation!$A:$C,3,FALSE),E4541)","v":0.102129010477302},{"$f":"IFERROR(VLOOKUP(F4541,Translation!$A:$C,3,FALSE),F4541)","v":"Prêts hypothécaires assurés au cours de la période selon le rapport prêt-valeur (RPV) établi d’après la valeur initiale de la propriété (%)"},{"$f":"IFERROR(VLOOKUP(G4541,Translation!$A:$C,3,FALSE),G4541)","v":"0.1"},{"$f":"IFERROR(VLOOKUP(H4541,Translation!$A:$C,3,FALSE),H4541)","v":" > 60 % <= 65 %"}]
[7,"Cumul 2020","PROPRIÉTAIRES-OCCUPANTS, À L’UNITÉ","> 65 % <= 70 %",4.8165666569782009E-2,"Prêts hypothécaires assurés au cours de la période selon le rapport prêt-valeur (RPV) établi d’après la valeur initiale de la propriété (%)","0.0"," > 65 % <= 70 %",{"$f":"IFERROR(VLOOKUP(A4544,Translation!$A:$C,3,FALSE),A4544)","v":7},{"$f":"IFERROR(VLOOKUP(B4544,Translation!$A:$C,3,FALSE),B4544)","v":"Cumul 2020"},{"$f":"IFERROR(VLOOKUP(C4544,Translation!$A:$C,3,FALSE),C4544)","v":"PROPRIÉTAIRES-OCCUPANTS, À L’UNITÉ"},{"$f":"IFERROR(VLOOKUP(D4544,Translation!$A:$C,3,FALSE),D4544)","v":"> 65 % <= 70 %"},{"$f":"IFERROR(VLOOKUP(E4544,Translation!$A:$C,3,FALSE),E4544)","v":4.8165666569782009E-2},{"$f":"IFERROR(VLOOKUP(F4544,Translation!$A:$C,3,FALSE),F4544)","v":"Prêts hypothécaires assurés au cours de la période selon le rapport prêt-valeur (RPV) établi d’après la valeur initiale de la propriété (%)"},{"$f":"IFERROR(VLOOKUP(G4544,Translation!$A:$C,3,FALSE),G4544)","v":"0.0"},{"$f":"IFERROR(VLOOKUP(H4544,Translation!$A:$C,3,FALSE),H4544)","v":" > 65 % <= 70 %"}]
[7,"Cumul 2019","PROPRIÉTAIRES-OCCUPANTS, À L’UNITÉ","> 70 % <= 75 %",0.19822019971379043,"Prêts hypothécaires assurés au cours de la période selon le rapport prêt-valeur (RPV) établi d’après la valeur initiale de la propriété (%)","0.2"," > 70 % <= 75 %",{"$f":"IFERROR(VLOOKUP(A4546,Translation!$A:$C,3,FALSE),A4546)","v":7},{"$f":"IFERROR(VLOOKUP(B4546,Translation!$A:$C,3,FALSE),B4546)","v":"Cumul 2019"},{"$f":"IFERROR(VLOOKUP(C4546,Translation!$A:$C,3,FALSE),C4546)","v":"PROPRIÉTAIRES-OCCUPANTS, À L’UNITÉ"},{"$f":"IFERROR(VLOOKUP(D4546,Translation!$A:$C,3,FALSE),D4546)","v":"> 70 % <= 75 %"},{"$f":"IFERROR(VLOOKUP(E4546,Translation!$A:$C,3,FALSE),E4546)","v":0.19822019971379043},{"$f":"IFERROR(VLOOKUP(F4546,Translation!$A:$C,3,FALSE),F4546)","v":"Prêts hypothécaires assurés au cours de la période selon le rapport prêt-valeur (RPV) établi d’après la valeur initiale de la propriété (%)"},{"$f":"IFERROR(VLOOKUP(G4546,Translation!$A:$C,3,FALSE),G4546)","v":"0.2"},{"$f":"IFERROR(VLOOKUP(H4546,Translation!$A:$C,3,FALSE),H4546)","v":" > 70 % <= 75 %"}]
[7,"Cumul 2019","PROPRIÉTAIRES-OCCUPANTS, À L’UNITÉ","> 75 % <= 80 %",0.85109428109452445,"Prêts hypothécaires assurés au cours de la période selon le rapport prêt-valeur (RPV) établi d’après la valeur initiale de la propriété (%)","0.9"," > 75 % <= 80 %",{"$f":"IFERROR(VLOOKUP(A4549,Translation!$A:$C,3,FALSE),A4549)","v":7},{"$f":"IFERROR(VLOOKUP(B4549,Translation!$A:$C,3,FALSE),B4549)","v":"Cumul 2019"},{"$f":"IFERROR(VLOOKUP(C4549,Translation!$A:$C,3,FALSE),C4549)","v":"PROPRIÉTAIRES-OCCUPANTS, À L’UNITÉ"},{"$f":"IFERROR(VLOOKUP(D4549,Translation!$A:$C,3,FALSE),D4549)","v":"> 75 % <= 80 %"},{"$f":"IFERROR(VLOOKUP(E4549,Translation!$A:$C,3,FALSE),E4549)","v":0.85109428109452445},{"$f":"IFERROR(VLOOKUP(F4549,Translation!$A:$C,3,FALSE),F4549)","v":"Prêts hypothécaires assurés au cours de la période selon le rapport prêt-valeur (RPV) établi d’après la valeur initiale de la propriété (%)"},{"$f":"IFERROR(VLOOKUP(G4549,Translation!$A:$C,3,FALSE),G4549)","v":"0.9"},{"$f":"IFERROR(VLOOKUP(H4549,Translation!$A:$C,3,FALSE),H4549)","v":" > 75 % <= 80 %"}]
[7,"Cumul 2019","PROPRIÉTAIRES-OCCUPANTS, À L’UNITÉ","> 80 % <= 85 %",4.9785134806263427,"Prêts hypothécaires assurés au cours de la période selon le rapport prêt-valeur (RPV) établi d’après la valeur initiale de la propriété (%)","5.0"," > 80 % <= 85 %",{"$f":"IFERROR(VLOOKUP(A4552,Translation!$A:$C,3,FALSE),A4552)","v":7},{"$f":"IFERROR(VLOOKUP(B4552,Translation!$A:$C,3,FALSE),B4552)","v":"Cumul 2019"},{"$f":"IFERROR(VLOOKUP(C4552,Translation!$A:$C,3,FALSE),C4552)","v":"PROPRIÉTAIRES-OCCUPANTS, À L’UNITÉ"},{"$f":"IFERROR(VLOOKUP(D4552,Translation!$A:$C,3,FALSE),D4552)","v":"> 80 % <= 85 %"},{"$f":"IFERROR(VLOOKUP(E4552,Translation!$A:$C,3,FALSE),E4552)","v":4.9785134806263427},{"$f":"IFERROR(VLOOKUP(F4552,Translation!$A:$C,3,FALSE),F4552)","v":"Prêts hypothécaires assurés au cours de la période selon le rapport prêt-valeur (RPV) établi d’après la valeur initiale de la propriété (%)"},{"$f":"IFERROR(VLOOKUP(G4552,Translation!$A:$C,3,FALSE),G4552)","v":"5.0"},{"$f":"IFERROR(VLOOKUP(H4552,Translation!$A:$C,3,FALSE),H4552)","v":" > 80 % <= 85 %"}]
[7,"T1 2020","PROPRIÉTAIRES-OCCUPANTS, À L’UNITÉ","> 85 % <= 90 %",28.311469497688226,"Prêts hypothécaires assurés au cours de la période selon le rapport prêt-valeur (RPV) établi d’après la valeur initiale de la propriété (%)","28.3"," > 85 % <= 90 %",{"$f":"IFERROR(VLOOKUP(A4554,Translation!$A:$C,3,FALSE),A4554)","v":7},{"$f":"IFERROR(VLOOKUP(B4554,Translation!$A:$C,3,FALSE),B4554)","v":"T1 2020"},{"$f":"IFERROR(VLOOKUP(C4554,Translation!$A:$C,3,FALSE),C4554)","v":"PROPRIÉTAIRES-OCCUPANTS, À L’UNITÉ"},{"$f":"IFERROR(VLOOKUP(D4554,Translation!$A:$C,3,FALSE),D4554)","v":"> 85 % <= 90 %"},{"$f":"IFERROR(VLOOKUP(E4554,Translation!$A:$C,3,FALSE),E4554)","v":28.311469497688226},{"$f":"IFERROR(VLOOKUP(F4554,Translation!$A:$C,3,FALSE),F4554)","v":"Prêts hypothécaires assurés au cours de la période selon le rapport prêt-valeur (RPV) établi d’après la valeur initiale de la propriété (%)"},{"$f":"IFERROR(VLOOKUP(G4554,Translation!$A:$C,3,FALSE),G4554)","v":"28.3"},{"$f":"IFERROR(VLOOKUP(H4554,Translation!$A:$C,3,FALSE),H4554)","v":" > 85 % <= 90 %"}]
[7,"Cumul 2019","PROPRIÉTAIRES-OCCUPANTS, À L’UNITÉ","> 85 % <= 90 %",26.211649612245804,"Prêts hypothécaires assurés au cours de la période selon le rapport prêt-valeur (RPV) établi d’après la valeur initiale de la propriété (%)","26.2"," > 85 % <= 90 %",{"$f":"IFERROR(VLOOKUP(A4555,Translation!$A:$C,3,FALSE),A4555)","v":7},{"$f":"IFERROR(VLOOKUP(B4555,Translation!$A:$C,3,FALSE),B4555)","v":"Cumul 2019"},{"$f":"IFERROR(VLOOKUP(C4555,Translation!$A:$C,3,FALSE),C4555)","v":"PROPRIÉTAIRES-OCCUPANTS, À L’UNITÉ"},{"$f":"IFERROR(VLOOKUP(D4555,Translation!$A:$C,3,FALSE),D4555)","v":"> 85 % <= 90 %"},{"$f":"IFERROR(VLOOKUP(E4555,Translation!$A:$C,3,FALSE),E4555)","v":26.211649612245804},{"$f":"IFERROR(VLOOKUP(F4555,Translation!$A:$C,3,FALSE),F4555)","v":"Prêts hypothécaires assurés au cours de la période selon le rapport prêt-valeur (RPV) établi d’après la valeur initiale de la propriété (%)"},{"$f":"IFERROR(VLOOKUP(G4555,Translation!$A:$C,3,FALSE),G4555)","v":"26.2"},{"$f":"IFERROR(VLOOKUP(H4555,Translation!$A:$C,3,FALSE),H4555)","v":" > 85 % <= 90 %"}]
[7,"T1 2020","PROPRIÉTAIRES-OCCUPANTS, À L’UNITÉ","> 90 % <= 95 %",64.725968656615223,"Prêts hypothécaires assurés au cours de la période selon le rapport prêt-valeur (RPV) établi d’après la valeur initiale de la propriété (%)","64.7"," > 90 % <= 95 %",{"$f":"IFERROR(VLOOKUP(A4557,Translation!$A:$C,3,FALSE),A4557)","v":7},{"$f":"IFERROR(VLOOKUP(B4557,Translation!$A:$C,3,FALSE),B4557)","v":"T1 2020"},{"$f":"IFERROR(VLOOKUP(C4557,Translation!$A:$C,3,FALSE),C4557)","v":"PROPRIÉTAIRES-OCCUPANTS, À L’UNITÉ"},{"$f":"IFERROR(VLOOKUP(D4557,Translation!$A:$C,3,FALSE),D4557)","v":"> 90 % <= 95 %"},{"$f":"IFERROR(VLOOKUP(E4557,Translation!$A:$C,3,FALSE),E4557)","v":64.725968656615223},{"$f":"IFERROR(VLOOKUP(F4557,Translation!$A:$C,3,FALSE),F4557)","v":"Prêts hypothécaires assurés au cours de la période selon le rapport prêt-valeur (RPV) établi d’après la valeur initiale de la propriété (%)"},{"$f":"IFERROR(VLOOKUP(G4557,Translation!$A:$C,3,FALSE),G4557)","v":"64.7"},{"$f":"IFERROR(VLOOKUP(H4557,Translation!$A:$C,3,FALSE),H4557)","v":" > 90 % <= 95 %"}]
[7,"T1 2020","PROPRIÉTAIRES-OCCUPANTS, À L’UNITÉ","Rapport prêt-valeur moyen ",92.248388192660641,"Prêts hypothécaires assurés au cours de la période selon le rapport prêt-valeur (RPV) établi d’après la valeur initiale de la propriété (%)","92.2","Rapport prêt-valeur moyen ",{"$f":"IFERROR(VLOOKUP(A4560,Translation!$A:$C,3,FALSE),A4560)","v":7},{"$f":"IFERROR(VLOOKUP(B4560,Translation!$A:$C,3,FALSE),B4560)","v":"T1 2020"},{"$f":"IFERROR(VLOOKUP(C4560,Translation!$A:$C,3,FALSE),C4560)","v":"PROPRIÉTAIRES-OCCUPANTS, À L’UNITÉ"},{"$f":"IFERROR(VLOOKUP(D4560,Translation!$A:$C,3,FALSE),D4560)","v":"Rapport prêt-valeur moyen "},{"$f":"IFERROR(VLOOKUP(E4560,Translation!$A:$C,3,FALSE),E4560)","v":92.248388192660641},{"$f":"IFERROR(VLOOKUP(F4560,Translation!$A:$C,3,FALSE),F4560)","v":"Prêts hypothécaires assurés au cours de la période selon le rapport prêt-valeur (RPV) établi d’après la valeur initiale de la propriété (%)"},{"$f":"IFERROR(VLOOKUP(G4560,Translation!$A:$C,3,FALSE),G4560)","v":"92.2"},{"$f":"IFERROR(VLOOKUP(H4560,Translation!$A:$C,3,FALSE),H4560)","v":"Rapport prêt-valeur moyen "}]
[7,"T1 2020","PROPRIÉTAIRES-OCCUPANTS, À L’UNITÉ","Avoir propre foncier moyen ",7.7516118073393745,"Prêts hypothécaires assurés au cours de la période selon le rapport prêt-valeur (RPV) établi d’après la valeur initiale de la propriété (%)","7.8","Avoir propre foncier moyen ",{"$f":"IFERROR(VLOOKUP(A4563,Translation!$A:$C,3,FALSE),A4563)","v":7},{"$f":"IFERROR(VLOOKUP(B4563,Translation!$A:$C,3,FALSE),B4563)","v":"T1 2020"},{"$f":"IFERROR(VLOOKUP(C4563,Translation!$A:$C,3,FALSE),C4563)","v":"PROPRIÉTAIRES-OCCUPANTS, À L’UNITÉ"},{"$f":"IFERROR(VLOOKUP(D4563,Translation!$A:$C,3,FALSE),D4563)","v":"Avoir propre foncier moyen "},{"$f":"IFERROR(VLOOKUP(E4563,Translation!$A:$C,3,FALSE),E4563)","v":7.7516118073393745},{"$f":"IFERROR(VLOOKUP(F4563,Translation!$A:$C,3,FALSE),F4563)","v":"Prêts hypothécaires assurés au cours de la période selon le rapport prêt-valeur (RPV) établi d’après la valeur initiale de la propriété (%)"},{"$f":"IFERROR(VLOOKUP(G4563,Translation!$A:$C,3,FALSE),G4563)","v":"7.8"},{"$f":"IFERROR(VLOOKUP(H4563,Translation!$A:$C,3,FALSE),H4563)","v":"Avoir propre foncier moyen "}]
[7,"Cumul 2020","PROPRIÉTAIRES-OCCUPANTS, À L’UNITÉ","Avoir propre foncier moyen ",7.7516118073393745,"Prêts hypothécaires assurés au cours de la période selon le rapport prêt-valeur (RPV) établi d’après la valeur initiale de la propriété (%)","7.8","Avoir propre foncier moyen ",{"$f":"IFERROR(VLOOKUP(A4565,Translation!$A:$C,3,FALSE),A4565)","v":7},{"$f":"IFERROR(VLOOKUP(B4565,Translation!$A:$C,3,FALSE),B4565)","v":"Cumul 2020"},{"$f":"IFERROR(VLOOKUP(C4565,Translation!$A:$C,3,FALSE),C4565)","v":"PROPRIÉTAIRES-OCCUPANTS, À L’UNITÉ"},{"$f":"IFERROR(VLOOKUP(D4565,Translation!$A:$C,3,FALSE),D4565)","v":"Avoir propre foncier moyen "},{"$f":"IFERROR(VLOOKUP(E4565,Translation!$A:$C,3,FALSE),E4565)","v":7.7516118073393745},{"$f":"IFERROR(VLOOKUP(F4565,Translation!$A:$C,3,FALSE),F4565)","v":"Prêts hypothécaires assurés au cours de la période selon le rapport prêt-valeur (RPV) établi d’après la valeur initiale de la propriété (%)"},{"$f":"IFERROR(VLOOKUP(G4565,Translation!$A:$C,3,FALSE),G4565)","v":"7.8"},{"$f":"IFERROR(VLOOKUP(H4565,Translation!$A:$C,3,FALSE),H4565)","v":"Avoir propre foncier moyen "}]
[7,"T1 2020","PROPRIÉTAIRES-OCCUPANTS, À L’UNITÉ","Nouvelle-Écosse",7.1619226986842097,"Avoir propre foncier moyen selon la province","7.2","Nouvelle-Écosse",{"$f":"IFERROR(VLOOKUP(A4568,Translation!$A:$C,3,FALSE),A4568)","v":7},{"$f":"IFERROR(VLOOKUP(B4568,Translation!$A:$C,3,FALSE),B4568)","v":"T1 2020"},{"$f":"IFERROR(VLOOKUP(C4568,Translation!$A:$C,3,FALSE),C4568)","v":"PROPRIÉTAIRES-OCCUPANTS, À L’UNITÉ"},{"$f":"IFERROR(VLOOKUP(D4568,Translation!$A:$C,3,FALSE),D4568)","v":"Nouvelle-Écosse"},{"$f":"IFERROR(VLOOKUP(E4568,Translation!$A:$C,3,FALSE),E4568)","v":7.1619226986842097},{"$f":"IFERROR(VLOOKUP(F4568,Translation!$A:$C,3,FALSE),F4568)","v":"Avoir propre foncier moyen selon la province"},{"$f":"IFERROR(VLOOKUP(G4568,Translation!$A:$C,3,FALSE),G4568)","v":"7.2"},{"$f":"IFERROR(VLOOKUP(H4568,Translation!$A:$C,3,FALSE),H4568)","v":"Nouvelle-Écosse"}]
[7,"T1 2020","PROPRIÉTAIRES-OCCUPANTS, À L’UNITÉ","Ontario",8.3190660843356454,"Avoir propre foncier moyen selon la province","8.3","Ontario",{"$f":"IFERROR(VLOOKUP(A4571,Translation!$A:$C,3,FALSE),A4571)","v":7},{"$f":"IFERROR(VLOOKUP(B4571,Translation!$A:$C,3,FALSE),B4571)","v":"T1 2020"},{"$f":"IFERROR(VLOOKUP(C4571,Translation!$A:$C,3,FALSE),C4571)","v":"PROPRIÉTAIRES-OCCUPANTS, À L’UNITÉ"},{"$f":"IFERROR(VLOOKUP(D4571,Translation!$A:$C,3,FALSE),D4571)","v":"Ontario"},{"$f":"IFERROR(VLOOKUP(E4571,Translation!$A:$C,3,FALSE),E4571)","v":8.3190660843356454},{"$f":"IFERROR(VLOOKUP(F4571,Translation!$A:$C,3,FALSE),F4571)","v":"Avoir propre foncier moyen selon la province"},{"$f":"IFERROR(VLOOKUP(G4571,Translation!$A:$C,3,FALSE),G4571)","v":"8.3"},{"$f":"IFERROR(VLOOKUP(H4571,Translation!$A:$C,3,FALSE),H4571)","v":"Ontario"}]
[7,"T1 2020","PROPRIÉTAIRES-OCCUPANTS, À L’UNITÉ","Saskatchewan",6.986808031023851,"Avoir propre foncier moyen selon la province","7.0","Saskatchewan",{"$f":"IFERROR(VLOOKUP(A4573,Translation!$A:$C,3,FALSE),A4573)","v":7},{"$f":"IFERROR(VLOOKUP(B4573,Translation!$A:$C,3,FALSE),B4573)","v":"T1 2020"},{"$f":"IFERROR(VLOOKUP(C4573,Translation!$A:$C,3,FALSE),C4573)","v":"PROPRIÉTAIRES-OCCUPANTS, À L’UNITÉ"},{"$f":"IFERROR(VLOOKUP(D4573,Translation!$A:$C,3,FALSE),D4573)","v":"Saskatchewan"},{"$f":"IFERROR(VLOOKUP(E4573,Translation!$A:$C,3,FALSE),E4573)","v":6.986808031023851},{"$f":"IFERROR(VLOOKUP(F4573,Translation!$A:$C,3,FALSE),F4573)","v":"Avoir propre foncier moyen selon la province"},{"$f":"IFERROR(VLOOKUP(G4573,Translation!$A:$C,3,FALSE),G4573)","v":"7.0"},{"$f":"IFERROR(VLOOKUP(H4573,Translation!$A:$C,3,FALSE),H4573)","v":"Saskatchewan"}]
[7,"T1 2020","PROPRIÉTAIRES-OCCUPANTS, À L’UNITÉ","Alberta",7.3941123203503887,"Avoir propre foncier moyen selon la province","7.4","Alberta",{"$f":"IFERROR(VLOOKUP(A4574,Translation!$A:$C,3,FALSE),A4574)","v":7},{"$f":"IFERROR(VLOOKUP(B4574,Translation!$A:$C,3,FALSE),B4574)","v":"T1 2020"},{"$f":"IFERROR(VLOOKUP(C4574,Translation!$A:$C,3,FALSE),C4574)","v":"PROPRIÉTAIRES-OCCUPANTS, À L’UNITÉ"},{"$f":"IFERROR(VLOOKUP(D4574,Translation!$A:$C,3,FALSE),D4574)","v":"Alberta"},{"$f":"IFERROR(VLOOKUP(E4574,Translation!$A:$C,3,FALSE),E4574)","v":7.3941123203503887},{"$f":"IFERROR(VLOOKUP(F4574,Translation!$A:$C,3,FALSE),F4574)","v":"Avoir propre foncier moyen selon la province"},{"$f":"IFERROR(VLOOKUP(G4574,Translation!$A:$C,3,FALSE),G4574)","v":"7.4"},{"$f":"IFERROR(VLOOKUP(H4574,Translation!$A:$C,3,FALSE),H4574)","v":"Alberta"}]
[7,"T1 2020","PROPRIÉTAIRES-OCCUPANTS, À L’UNITÉ","Territoires",7.5893733463531552,"Avoir propre foncier moyen selon la province","7.6","Territoires",{"$f":"IFERROR(VLOOKUP(A4576,Translation!$A:$C,3,FALSE),A4576)","v":7},{"$f":"IFERROR(VLOOKUP(B4576,Translation!$A:$C,3,FALSE),B4576)","v":"T1 2020"},{"$f":"IFERROR(VLOOKUP(C4576,Translation!$A:$C,3,FALSE),C4576)","v":"PROPRIÉTAIRES-OCCUPANTS, À L’UNITÉ"},{"$f":"IFERROR(VLOOKUP(D4576,Translation!$A:$C,3,FALSE),D4576)","v":"Territoires"},{"$f":"IFERROR(VLOOKUP(E4576,Translation!$A:$C,3,FALSE),E4576)","v":7.5893733463531552},{"$f":"IFERROR(VLOOKUP(F4576,Translation!$A:$C,3,FALSE),F4576)","v":"Avoir propre foncier moyen selon la province"},{"$f":"IFERROR(VLOOKUP(G4576,Translation!$A:$C,3,FALSE),G4576)","v":"7.6"},{"$f":"IFERROR(VLOOKUP(H4576,Translation!$A:$C,3,FALSE),H4576)","v":"Territoires"}]
[7,"Cumul 2019","PROPRIÉTAIRES-OCCUPANTS, À L’UNITÉ","Nouvelle-Écosse",6.9892060270426137,"Avoir propre foncier moyen selon la province","7.0","Nouvelle-Écosse",{"$f":"IFERROR(VLOOKUP(A4579,Translation!$A:$C,3,FALSE),A4579)","v":7},{"$f":"IFERROR(VLOOKUP(B4579,Translation!$A:$C,3,FALSE),B4579)","v":"Cumul 2019"},{"$f":"IFERROR(VLOOKUP(C4579,Translation!$A:$C,3,FALSE),C4579)","v":"PROPRIÉTAIRES-OCCUPANTS, À L’UNITÉ"},{"$f":"IFERROR(VLOOKUP(D4579,Translation!$A:$C,3,FALSE),D4579)","v":"Nouvelle-Écosse"},{"$f":"IFERROR(VLOOKUP(E4579,Translation!$A:$C,3,FALSE),E4579)","v":6.9892060270426137},{"$f":"IFERROR(VLOOKUP(F4579,Translation!$A:$C,3,FALSE),F4579)","v":"Avoir propre foncier moyen selon la province"},{"$f":"IFERROR(VLOOKUP(G4579,Translation!$A:$C,3,FALSE),G4579)","v":"7.0"},{"$f":"IFERROR(VLOOKUP(H4579,Translation!$A:$C,3,FALSE),H4579)","v":"Nouvelle-Écosse"}]
[7,"Cumul 2019","PROPRIÉTAIRES-OCCUPANTS, À L’UNITÉ","Québec",7.1780416166628518,"Avoir propre foncier moyen selon la province","7.2","Québec",{"$f":"IFERROR(VLOOKUP(A4581,Translation!$A:$C,3,FALSE),A4581)","v":7},{"$f":"IFERROR(VLOOKUP(B4581,Translation!$A:$C,3,FALSE),B4581)","v":"Cumul 2019"},{"$f":"IFERROR(VLOOKUP(C4581,Translation!$A:$C,3,FALSE),C4581)","v":"PROPRIÉTAIRES-OCCUPANTS, À L’UNITÉ"},{"$f":"IFERROR(VLOOKUP(D4581,Translation!$A:$C,3,FALSE),D4581)","v":"Québec"},{"$f":"IFERROR(VLOOKUP(E4581,Translation!$A:$C,3,FALSE),E4581)","v":7.1780416166628518},{"$f":"IFERROR(VLOOKUP(F4581,Translation!$A:$C,3,FALSE),F4581)","v":"Avoir propre foncier moyen selon la province"},{"$f":"IFERROR(VLOOKUP(G4581,Translation!$A:$C,3,FALSE),G4581)","v":"7.2"},{"$f":"IFERROR(VLOOKUP(H4581,Translation!$A:$C,3,FALSE),H4581)","v":"Québec"}]
[7,"Cumul 2019","PROPRIÉTAIRES-OCCUPANTS, À L’UNITÉ","Saskatchewan",6.7373368151768576,"Avoir propre foncier moyen selon la province","6.7","Saskatchewan",{"$f":"IFERROR(VLOOKUP(A4584,Translation!$A:$C,3,FALSE),A4584)","v":7},{"$f":"IFERROR(VLOOKUP(B4584,Translation!$A:$C,3,FALSE),B4584)","v":"Cumul 2019"},{"$f":"IFERROR(VLOOKUP(C4584,Translation!$A:$C,3,FALSE),C4584)","v":"PROPRIÉTAIRES-OCCUPANTS, À L’UNITÉ"},{"$f":"IFERROR(VLOOKUP(D4584,Translation!$A:$C,3,FALSE),D4584)","v":"Saskatchewan"},{"$f":"IFERROR(VLOOKUP(E4584,Translation!$A:$C,3,FALSE),E4584)","v":6.7373368151768576},{"$f":"IFERROR(VLOOKUP(F4584,Translation!$A:$C,3,FALSE),F4584)","v":"Avoir propre foncier moyen selon la province"},{"$f":"IFERROR(VLOOKUP(G4584,Translation!$A:$C,3,FALSE),G4584)","v":"6.7"},{"$f":"IFERROR(VLOOKUP(H4584,Translation!$A:$C,3,FALSE),H4584)","v":"Saskatchewan"}]
[7,"Cumul 2019","PROPRIÉTAIRES-OCCUPANTS, À L’UNITÉ","Territoires",8.7130818226341393,"Avoir propre foncier moyen selon la province","8.7","Territoires",{"$f":"IFERROR(VLOOKUP(A4587,Translation!$A:$C,3,FALSE),A4587)","v":7},{"$f":"IFERROR(VLOOKUP(B4587,Translation!$A:$C,3,FALSE),B4587)","v":"Cumul 2019"},{"$f":"IFERROR(VLOOKUP(C4587,Translation!$A:$C,3,FALSE),C4587)","v":"PROPRIÉTAIRES-OCCUPANTS, À L’UNITÉ"},{"$f":"IFERROR(VLOOKUP(D4587,Translation!$A:$C,3,FALSE),D4587)","v":"Territoires"},{"$f":"IFERROR(VLOOKUP(E4587,Translation!$A:$C,3,FALSE),E4587)","v":8.7130818226341393},{"$f":"IFERROR(VLOOKUP(F4587,Translation!$A:$C,3,FALSE),F4587)","v":"Avoir propre foncier moyen selon la province"},{"$f":"IFERROR(VLOOKUP(G4587,Translation!$A:$C,3,FALSE),G4587)","v":"8.7"},{"$f":"IFERROR(VLOOKUP(H4587,Translation!$A:$C,3,FALSE),H4587)","v":"Territoires"}]
[7,"Cumul 2020","PROPRIÉTAIRES-OCCUPANTS, À L’UNITÉ","Nouvelle-Écosse",7.1619226986842097,"Avoir propre foncier moyen selon la province","7.2","Nouvelle-Écosse",{"$f":"IFERROR(VLOOKUP(A4590,Translation!$A:$C,3,FALSE),A4590)","v":7},{"$f":"IFERROR(VLOOKUP(B4590,Translation!$A:$C,3,FALSE),B4590)","v":"Cumul 2020"},{"$f":"IFERROR(VLOOKUP(C4590,Translation!$A:$C,3,FALSE),C4590)","v":"PROPRIÉTAIRES-OCCUPANTS, À L’UNITÉ"},{"$f":"IFERROR(VLOOKUP(D4590,Translation!$A:$C,3,FALSE),D4590)","v":"Nouvelle-Écosse"},{"$f":"IFERROR(VLOOKUP(E4590,Translation!$A:$C,3,FALSE),E4590)","v":7.1619226986842097},{"$f":"IFERROR(VLOOKUP(F4590,Translation!$A:$C,3,FALSE),F4590)","v":"Avoir propre foncier moyen selon la province"},{"$f":"IFERROR(VLOOKUP(G4590,Translation!$A:$C,3,FALSE),G4590)","v":"7.2"},{"$f":"IFERROR(VLOOKUP(H4590,Translation!$A:$C,3,FALSE),H4590)","v":"Nouvelle-Écosse"}]
[7,"Cumul 2020","PROPRIÉTAIRES-OCCUPANTS, À L’UNITÉ","Québec",7.4024016442532012,"Avoir propre foncier moyen selon la province","7.4","Québec",{"$f":"IFERROR(VLOOKUP(A4592,Translation!$A:$C,3,FALSE),A4592)","v":7},{"$f":"IFERROR(VLOOKUP(B4592,Translation!$A:$C,3,FALSE),B4592)","v":"Cumul 2020"},{"$f":"IFERROR(VLOOKUP(C4592,Translation!$A:$C,3,FALSE),C4592)","v":"PROPRIÉTAIRES-OCCUPANTS, À L’UNITÉ"},{"$f":"IFERROR(VLOOKUP(D4592,Translation!$A:$C,3,FALSE),D4592)","v":"Québec"},{"$f":"IFERROR(VLOOKUP(E4592,Translation!$A:$C,3,FALSE),E4592)","v":7.4024016442532012},{"$f":"IFERROR(VLOOKUP(F4592,Translation!$A:$C,3,FALSE),F4592)","v":"Avoir propre foncier moyen selon la province"},{"$f":"IFERROR(VLOOKUP(G4592,Translation!$A:$C,3,FALSE),G4592)","v":"7.4"},{"$f":"IFERROR(VLOOKUP(H4592,Translation!$A:$C,3,FALSE),H4592)","v":"Québec"}]
[7,"Cumul 2020","PROPRIÉTAIRES-OCCUPANTS, À L’UNITÉ","Saskatchewan",6.986808031023851,"Avoir propre foncier moyen selon la province","7.0","Saskatchewan",{"$f":"IFERROR(VLOOKUP(A4595,Translation!$A:$C,3,FALSE),A4595)","v":7},{"$f":"IFERROR(VLOOKUP(B4595,Translation!$A:$C,3,FALSE),B4595)","v":"Cumul 2020"},{"$f":"IFERROR(VLOOKUP(C4595,Translation!$A:$C,3,FALSE),C4595)","v":"PROPRIÉTAIRES-OCCUPANTS, À L’UNITÉ"},{"$f":"IFERROR(VLOOKUP(D4595,Translation!$A:$C,3,FALSE),D4595)","v":"Saskatchewan"},{"$f":"IFERROR(VLOOKUP(E4595,Translation!$A:$C,3,FALSE),E4595)","v":6.986808031023851},{"$f":"IFERROR(VLOOKUP(F4595,Translation!$A:$C,3,FALSE),F4595)","v":"Avoir propre foncier moyen selon la province"},{"$f":"IFERROR(VLOOKUP(G4595,Translation!$A:$C,3,FALSE),G4595)","v":"7.0"},{"$f":"IFERROR(VLOOKUP(H4595,Translation!$A:$C,3,FALSE),H4595)","v":"Saskatchewan"}]
[7,"Cumul 2020","PROPRIÉTAIRES-OCCUPANTS, À L’UNITÉ","Colombie-Britannique",8.5002924194674865,"Avoir propre foncier moyen selon la province","8.5","Colombie-Britannique",{"$f":"IFERROR(VLOOKUP(A4597,Translation!$A:$C,3,FALSE),A4597)","v":7},{"$f":"IFERROR(VLOOKUP(B4597,Translation!$A:$C,3,FALSE),B4597)","v":"Cumul 2020"},{"$f":"IFERROR(VLOOKUP(C4597,Translation!$A:$C,3,FALSE),C4597)","v":"PROPRIÉTAIRES-OCCUPANTS, À L’UNITÉ"},{"$f":"IFERROR(VLOOKUP(D4597,Translation!$A:$C,3,FALSE),D4597)","v":"Colombie-Britannique"},{"$f":"IFERROR(VLOOKUP(E4597,Translation!$A:$C,3,FALSE),E4597)","v":8.5002924194674865},{"$f":"IFERROR(VLOOKUP(F4597,Translation!$A:$C,3,FALSE),F4597)","v":"Avoir propre foncier moyen selon la province"},{"$f":"IFERROR(VLOOKUP(G4597,Translation!$A:$C,3,FALSE),G4597)","v":"8.5"},{"$f":"IFERROR(VLOOKUP(H4597,Translation!$A:$C,3,FALSE),H4597)","v":"Colombie-Britannique"}]
[7,"Cumul 2020","PROPRIÉTAIRES-OCCUPANTS, À L’UNITÉ","Territoires",7.5893733463531552,"Avoir propre foncier moyen selon la province","7.6","Territoires",{"$f":"IFERROR(VLOOKUP(A4598,Translation!$A:$C,3,FALSE),A4598)","v":7},{"$f":"IFERROR(VLOOKUP(B4598,Translation!$A:$C,3,FALSE),B4598)","v":"Cumul 2020"},{"$f":"IFERROR(VLOOKUP(C4598,Translation!$A:$C,3,FALSE),C4598)","v":"PROPRIÉTAIRES-OCCUPANTS, À L’UNITÉ"},{"$f":"IFERROR(VLOOKUP(D4598,Translation!$A:$C,3,FALSE),D4598)","v":"Territoires"},{"$f":"IFERROR(VLOOKUP(E4598,Translation!$A:$C,3,FALSE),E4598)","v":7.5893733463531552},{"$f":"IFERROR(VLOOKUP(F4598,Translation!$A:$C,3,FALSE),F4598)","v":"Avoir propre foncier moyen selon la province"},{"$f":"IFERROR(VLOOKUP(G4598,Translation!$A:$C,3,FALSE),G4598)","v":"7.6"},{"$f":"IFERROR(VLOOKUP(H4598,Translation!$A:$C,3,FALSE),H4598)","v":"Territoires"}]
[7,"Cumul 2020","ASSURANCE DE PORTEFEUILLE","<= 50 %",19.531492932792361,"Prêts hypothécaires assurés au cours de la période selon le rapport prêt-valeur (RPV) établi d’après la valeur initiale de la propriété (%)","19.5"," <= 50 %",{"$f":"IFERROR(VLOOKUP(A4601,Translation!$A:$C,3,FALSE),A4601)","v":7},{"$f":"IFERROR(VLOOKUP(B4601,Translation!$A:$C,3,FALSE),B4601)","v":"Cumul 2020"},{"$f":"IFERROR(VLOOKUP(C4601,Translation!$A:$C,3,FALSE),C4601)","v":"ASSURANCE DE PORTEFEUILLE"},{"$f":"IFERROR(VLOOKUP(D4601,Translation!$A:$C,3,FALSE),D4601)","v":"<= 50 %"},{"$f":"IFERROR(VLOOKUP(E4601,Translation!$A:$C,3,FALSE),E4601)","v":19.531492932792361},{"$f":"IFERROR(VLOOKUP(F4601,Translation!$A:$C,3,FALSE),F4601)","v":"Prêts hypothécaires assurés au cours de la période selon le rapport prêt-valeur (RPV) établi d’après la valeur initiale de la propriété (%)"},{"$f":"IFERROR(VLOOKUP(G4601,Translation!$A:$C,3,FALSE),G4601)","v":"19.5"},{"$f":"IFERROR(VLOOKUP(H4601,Translation!$A:$C,3,FALSE),H4601)","v":" <= 50 %"}]
[7,"Cumul 2019","ASSURANCE DE PORTEFEUILLE","> 50 % <= 55 %",7.5597851188118579,"Prêts hypothécaires assurés au cours de la période selon le rapport prêt-valeur (RPV) établi d’après la valeur initiale de la propriété (%)","7.6"," > 50 % <= 55 %",{"$f":"IFERROR(VLOOKUP(A4603,Translation!$A:$C,3,FALSE),A4603)","v":7},{"$f":"IFERROR(VLOOKUP(B4603,Translation!$A:$C,3,FALSE),B4603)","v":"Cumul 2019"},{"$f":"IFERROR(VLOOKUP(C4603,Translation!$A:$C,3,FALSE),C4603)","v":"ASSURANCE DE PORTEFEUILLE"},{"$f":"IFERROR(VLOOKUP(D4603,Translation!$A:$C,3,FALSE),D4603)","v":"> 50 % <= 55 %"},{"$f":"IFERROR(VLOOKUP(E4603,Translation!$A:$C,3,FALSE),E4603)","v":7.5597851188118579},{"$f":"IFERROR(VLOOKUP(F4603,Translation!$A:$C,3,FALSE),F4603)","v":"Prêts hypothécaires assurés au cours de la période selon le rapport prêt-valeur (RPV) établi d’après la valeur initiale de la propriété (%)"},{"$f":"IFERROR(VLOOKUP(G4603,Translation!$A:$C,3,FALSE),G4603)","v":"7.6"},{"$f":"IFERROR(VLOOKUP(H4603,Translation!$A:$C,3,FALSE),H4603)","v":" > 50 % <= 55 %"}]
[7,"Cumul 2019","ASSURANCE DE PORTEFEUILLE","> 55 % <= 60 %",9.4626447822102318,"Prêts hypothécaires assurés au cours de la période selon le rapport prêt-valeur (RPV) établi d’après la valeur initiale de la propriété (%)","9.5"," > 55 % <= 60 %",{"$f":"IFERROR(VLOOKUP(A4606,Translation!$A:$C,3,FALSE),A4606)","v":7},{"$f":"IFERROR(VLOOKUP(B4606,Translation!$A:$C,3,FALSE),B4606)","v":"Cumul 2019"},{"$f":"IFERROR(VLOOKUP(C4606,Translation!$A:$C,3,FALSE),C4606)","v":"ASSURANCE DE PORTEFEUILLE"},{"$f":"IFERROR(VLOOKUP(D4606,Translation!$A:$C,3,FALSE),D4606)","v":"> 55 % <= 60 %"},{"$f":"IFERROR(VLOOKUP(E4606,Translation!$A:$C,3,FALSE),E4606)","v":9.4626447822102318},{"$f":"IFERROR(VLOOKUP(F4606,Translation!$A:$C,3,FALSE),F4606)","v":"Prêts hypothécaires assurés au cours de la période selon le rapport prêt-valeur (RPV) établi d’après la valeur initiale de la propriété (%)"},{"$f":"IFERROR(VLOOKUP(G4606,Translation!$A:$C,3,FALSE),G4606)","v":"9.5"},{"$f":"IFERROR(VLOOKUP(H4606,Translation!$A:$C,3,FALSE),H4606)","v":" > 55 % <= 60 %"}]
[7,"T1 2020","ASSURANCE DE PORTEFEUILLE","> 60 % <= 65 %",8.2295380697835689,"Prêts hypothécaires assurés au cours de la période selon le rapport prêt-valeur (RPV) établi d’après la valeur initiale de la propriété (%)","8.2"," > 60 % <= 65 %",{"$f":"IFERROR(VLOOKUP(A4608,Translation!$A:$C,3,FALSE),A4608)","v":7},{"$f":"IFERROR(VLOOKUP(B4608,Translation!$A:$C,3,FALSE),B4608)","v":"T1 2020"},{"$f":"IFERROR(VLOOKUP(C4608,Translation!$A:$C,3,FALSE),C4608)","v":"ASSURANCE DE PORTEFEUILLE"},{"$f":"IFERROR(VLOOKUP(D4608,Translation!$A:$C,3,FALSE),D4608)","v":"> 60 % <= 65 %"},{"$f":"IFERROR(VLOOKUP(E4608,Translation!$A:$C,3,FALSE),E4608)","v":8.2295380697835689},{"$f":"IFERROR(VLOOKUP(F4608,Translation!$A:$C,3,FALSE),F4608)","v":"Prêts hypothécaires assurés au cours de la période selon le rapport prêt-valeur (RPV) établi d’après la valeur initiale de la propriété (%)"},{"$f":"IFERROR(VLOOKUP(G4608,Translation!$A:$C,3,FALSE),G4608)","v":"8.2"},{"$f":"IFERROR(VLOOKUP(H4608,Translation!$A:$C,3,FALSE),H4608)","v":" > 60 % <= 65 %"}]
[7,"T1 2020","ASSURANCE DE PORTEFEUILLE","> 65 % <= 70 %",8.6932137450770881,"Prêts hypothécaires assurés au cours de la période selon le rapport prêt-valeur (RPV) établi d’après la valeur initiale de la propriété (%)","8.7"," > 65 % <= 70 %",{"$f":"IFERROR(VLOOKUP(A4611,Translation!$A:$C,3,FALSE),A4611)","v":7},{"$f":"IFERROR(VLOOKUP(B4611,Translation!$A:$C,3,FALSE),B4611)","v":"T1 2020"},{"$f":"IFERROR(VLOOKUP(C4611,Translation!$A:$C,3,FALSE),C4611)","v":"ASSURANCE DE PORTEFEUILLE"},{"$f":"IFERROR(VLOOKUP(D4611,Translation!$A:$C,3,FALSE),D4611)","v":"> 65 % <= 70 %"},{"$f":"IFERROR(VLOOKUP(E4611,Translation!$A:$C,3,FALSE),E4611)","v":8.6932137450770881},{"$f":"IFERROR(VLOOKUP(F4611,Translation!$A:$C,3,FALSE),F4611)","v":"Prêts hypothécaires assurés au cours de la période selon le rapport prêt-valeur (RPV) établi d’après la valeur initiale de la propriété (%)"},{"$f":"IFERROR(VLOOKUP(G4611,Translation!$A:$C,3,FALSE),G4611)","v":"8.7"},{"$f":"IFERROR(VLOOKUP(H4611,Translation!$A:$C,3,FALSE),H4611)","v":" > 65 % <= 70 %"}]
[7,"T1 2020","ASSURANCE DE PORTEFEUILLE","> 70 % <= 75 %",9.3705952312619196,"Prêts hypothécaires assurés au cours de la période selon le rapport prêt-valeur (RPV) établi d’après la valeur initiale de la propriété (%)","9.4"," > 70 % <= 75 %",{"$f":"IFERROR(VLOOKUP(A4614,Translation!$A:$C,3,FALSE),A4614)","v":7},{"$f":"IFERROR(VLOOKUP(B4614,Translation!$A:$C,3,FALSE),B4614)","v":"T1 2020"},{"$f":"IFERROR(VLOOKUP(C4614,Translation!$A:$C,3,FALSE),C4614)","v":"ASSURANCE DE PORTEFEUILLE"},{"$f":"IFERROR(VLOOKUP(D4614,Translation!$A:$C,3,FALSE),D4614)","v":"> 70 % <= 75 %"},{"$f":"IFERROR(VLOOKUP(E4614,Translation!$A:$C,3,FALSE),E4614)","v":9.3705952312619196},{"$f":"IFERROR(VLOOKUP(F4614,Translation!$A:$C,3,FALSE),F4614)","v":"Prêts hypothécaires assurés au cours de la période selon le rapport prêt-valeur (RPV) établi d’après la valeur initiale de la propriété (%)"},{"$f":"IFERROR(VLOOKUP(G4614,Translation!$A:$C,3,FALSE),G4614)","v":"9.4"},{"$f":"IFERROR(VLOOKUP(H4614,Translation!$A:$C,3,FALSE),H4614)","v":" > 70 % <= 75 %"}]
[7,"Cumul 2020","ASSURANCE DE PORTEFEUILLE","> 70 % <= 75 %",9.3705952312619196,"Prêts hypothécaires assurés au cours de la période selon le rapport prêt-valeur (RPV) établi d’après la valeur initiale de la propriété (%)","9.4"," > 70 % <= 75 %",{"$f":"IFERROR(VLOOKUP(A4616,Translation!$A:$C,3,FALSE),A4616)","v":7},{"$f":"IFERROR(VLOOKUP(B4616,Translation!$A:$C,3,FALSE),B4616)","v":"Cumul 2020"},{"$f":"IFERROR(VLOOKUP(C4616,Translation!$A:$C,3,FALSE),C4616)","v":"ASSURANCE DE PORTEFEUILLE"},{"$f":"IFERROR(VLOOKUP(D4616,Translation!$A:$C,3,FALSE),D4616)","v":"> 70 % <= 75 %"},{"$f":"IFERROR(VLOOKUP(E4616,Translation!$A:$C,3,FALSE),E4616)","v":9.3705952312619196},{"$f":"IFERROR(VLOOKUP(F4616,Translation!$A:$C,3,FALSE),F4616)","v":"Prêts hypothécaires assurés au cours de la période selon le rapport prêt-valeur (RPV) établi d’après la valeur initiale de la propriété (%)"},{"$f":"IFERROR(VLOOKUP(G4616,Translation!$A:$C,3,FALSE),G4616)","v":"9.4"},{"$f":"IFERROR(VLOOKUP(H4616,Translation!$A:$C,3,FALSE),H4616)","v":" > 70 % <= 75 %"}]
[7,"T1 2020","ASSURANCE DE PORTEFEUILLE","> 75 % <= 80 %",42.337234251739105,"Prêts hypothécaires assurés au cours de la période selon le rapport prêt-valeur (RPV) établi d’après la valeur initiale de la propriété (%)","42.3"," > 75 % <= 80 %",{"$f":"IFERROR(VLOOKUP(A4617,Translation!$A:$C,3,FALSE),A4617)","v":7},{"$f":"IFERROR(VLOOKUP(B4617,Translation!$A:$C,3,FALSE),B4617)","v":"T1 2020"},{"$f":"IFERROR(VLOOKUP(C4617,Translation!$A:$C,3,FALSE),C4617)","v":"ASSURANCE DE PORTEFEUILLE"},{"$f":"IFERROR(VLOOKUP(D4617,Translation!$A:$C,3,FALSE),D4617)","v":"> 75 % <= 80 %"},{"$f":"IFERROR(VLOOKUP(E4617,Translation!$A:$C,3,FALSE),E4617)","v":42.337234251739105},{"$f":"IFERROR(VLOOKUP(F4617,Translation!$A:$C,3,FALSE),F4617)","v":"Prêts hypothécaires assurés au cours de la période selon le rapport prêt-valeur (RPV) établi d’après la valeur initiale de la propriété (%)"},{"$f":"IFERROR(VLOOKUP(G4617,Translation!$A:$C,3,FALSE),G4617)","v":"42.3"},{"$f":"IFERROR(VLOOKUP(H4617,Translation!$A:$C,3,FALSE),H4617)","v":" > 75 % <= 80 %"}]
[7,"Cumul 2019","ASSURANCE DE PORTEFEUILLE","Rapport prêt-valeur moyen ",60.271436723747314,"Prêts hypothécaires assurés au cours de la période selon le rapport prêt-valeur (RPV) établi d’après la valeur initiale de la propriété (%)","60.3","Rapport prêt-valeur moyen ",{"$f":"IFERROR(VLOOKUP(A4621,Translation!$A:$C,3,FALSE),A4621)","v":7},{"$f":"IFERROR(VLOOKUP(B4621,Translation!$A:$C,3,FALSE),B4621)","v":"Cumul 2019"},{"$f":"IFERROR(VLOOKUP(C4621,Translation!$A:$C,3,FALSE),C4621)","v":"ASSURANCE DE PORTEFEUILLE"},{"$f":"IFERROR(VLOOKUP(D4621,Translation!$A:$C,3,FALSE),D4621)","v":"Rapport prêt-valeur moyen "},{"$f":"IFERROR(VLOOKUP(E4621,Translation!$A:$C,3,FALSE),E4621)","v":60.271436723747314},{"$f":"IFERROR(VLOOKUP(F4621,Translation!$A:$C,3,FALSE),F4621)","v":"Prêts hypothécaires assurés au cours de la période selon le rapport prêt-valeur (RPV) établi d’après la valeur initiale de la propriété (%)"},{"$f":"IFERROR(VLOOKUP(G4621,Translation!$A:$C,3,FALSE),G4621)","v":"60.3"},{"$f":"IFERROR(VLOOKUP(H4621,Translation!$A:$C,3,FALSE),H4621)","v":"Rapport prêt-valeur moyen "}]
[7,"Cumul 2020","ASSURANCE DE PORTEFEUILLE","Rapport prêt-valeur moyen ",64.874442585322356,"Prêts hypothécaires assurés au cours de la période selon le rapport prêt-valeur (RPV) établi d’après la valeur initiale de la propriété (%)","64.9","Rapport prêt-valeur moyen ",{"$f":"IFERROR(VLOOKUP(A4622,Translation!$A:$C,3,FALSE),A4622)","v":7},{"$f":"IFERROR(VLOOKUP(B4622,Translation!$A:$C,3,FALSE),B4622)","v":"Cumul 2020"},{"$f":"IFERROR(VLOOKUP(C4622,Translation!$A:$C,3,FALSE),C4622)","v":"ASSURANCE DE PORTEFEUILLE"},{"$f":"IFERROR(VLOOKUP(D4622,Translation!$A:$C,3,FALSE),D4622)","v":"Rapport prêt-valeur moyen "},{"$f":"IFERROR(VLOOKUP(E4622,Translation!$A:$C,3,FALSE),E4622)","v":64.874442585322356},{"$f":"IFERROR(VLOOKUP(F4622,Translation!$A:$C,3,FALSE),F4622)","v":"Prêts hypothécaires assurés au cours de la période selon le rapport prêt-valeur (RPV) établi d’après la valeur initiale de la propriété (%)"},{"$f":"IFERROR(VLOOKUP(G4622,Translation!$A:$C,3,FALSE),G4622)","v":"64.9"},{"$f":"IFERROR(VLOOKUP(H4622,Translation!$A:$C,3,FALSE),H4622)","v":"Rapport prêt-valeur moyen "}]
[7,"Cumul 2020","ASSURANCE DE PORTEFEUILLE","Avoir propre foncier moyen ",35.125557414677637,"Prêts hypothécaires assurés au cours de la période selon le rapport prêt-valeur (RPV) établi d’après la valeur initiale de la propriété (%)","35.1","Avoir propre foncier moyen ",{"$f":"IFERROR(VLOOKUP(A4625,Translation!$A:$C,3,FALSE),A4625)","v":7},{"$f":"IFERROR(VLOOKUP(B4625,Translation!$A:$C,3,FALSE),B4625)","v":"Cumul 2020"},{"$f":"IFERROR(VLOOKUP(C4625,Translation!$A:$C,3,FALSE),C4625)","v":"ASSURANCE DE PORTEFEUILLE"},{"$f":"IFERROR(VLOOKUP(D4625,Translation!$A:$C,3,FALSE),D4625)","v":"Avoir propre foncier moyen "},{"$f":"IFERROR(VLOOKUP(E4625,Translation!$A:$C,3,FALSE),E4625)","v":35.125557414677637},{"$f":"IFERROR(VLOOKUP(F4625,Translation!$A:$C,3,FALSE),F4625)","v":"Prêts hypothécaires assurés au cours de la période selon le rapport prêt-valeur (RPV) établi d’après la valeur initiale de la propriété (%)"},{"$f":"IFERROR(VLOOKUP(G4625,Translation!$A:$C,3,FALSE),G4625)","v":"35.1"},{"$f":"IFERROR(VLOOKUP(H4625,Translation!$A:$C,3,FALSE),H4625)","v":"Avoir propre foncier moyen "}]
[7,"T1 2020","ASSURANCE DE PORTEFEUILLE","Nouvelle-Écosse",34.464681658085397,"Avoir propre foncier moyen selon la province","34.5","Nouvelle-Écosse",{"$f":"IFERROR(VLOOKUP(A4627,Translation!$A:$C,3,FALSE),A4627)","v":7},{"$f":"IFERROR(VLOOKUP(B4627,Translation!$A:$C,3,FALSE),B4627)","v":"T1 2020"},{"$f":"IFERROR(VLOOKUP(C4627,Translation!$A:$C,3,FALSE),C4627)","v":"ASSURANCE DE PORTEFEUILLE"},{"$f":"IFERROR(VLOOKUP(D4627,Translation!$A:$C,3,FALSE),D4627)","v":"Nouvelle-Écosse"},{"$f":"IFERROR(VLOOKUP(E4627,Translation!$A:$C,3,FALSE),E4627)","v":34.464681658085397},{"$f":"IFERROR(VLOOKUP(F4627,Translation!$A:$C,3,FALSE),F4627)","v":"Avoir propre foncier moyen selon la province"},{"$f":"IFERROR(VLOOKUP(G4627,Translation!$A:$C,3,FALSE),G4627)","v":"34.5"},{"$f":"IFERROR(VLOOKUP(H4627,Translation!$A:$C,3,FALSE),H4627)","v":"Nouvelle-Écosse"}]
[7,"T1 2020","ASSURANCE DE PORTEFEUILLE","Manitoba",31.024903712421992,"Avoir propre foncier moyen selon la province","31.0","Manitoba",{"$f":"IFERROR(VLOOKUP(A4631,Translation!$A:$C,3,FALSE),A4631)","v":7},{"$f":"IFERROR(VLOOKUP(B4631,Translation!$A:$C,3,FALSE),B4631)","v":"T1 2020"},{"$f":"IFERROR(VLOOKUP(C4631,Translation!$A:$C,3,FALSE),C4631)","v":"ASSURANCE DE PORTEFEUILLE"},{"$f":"IFERROR(VLOOKUP(D4631,Translation!$A:$C,3,FALSE),D4631)","v":"Manitoba"},{"$f":"IFERROR(VLOOKUP(E4631,Translation!$A:$C,3,FALSE),E4631)","v":31.024903712421992},{"$f":"IFERROR(VLOOKUP(F4631,Translation!$A:$C,3,FALSE),F4631)","v":"Avoir propre foncier moyen selon la province"},{"$f":"IFERROR(VLOOKUP(G4631,Translation!$A:$C,3,FALSE),G4631)","v":"31.0"},{"$f":"IFERROR(VLOOKUP(H4631,Translation!$A:$C,3,FALSE),H4631)","v":"Manitoba"}]
[7,"T1 2020","ASSURANCE DE PORTEFEUILLE","Saskatchewan",33.880649368788376,"Avoir propre foncier moyen selon la province","33.9","Saskatchewan",{"$f":"IFERROR(VLOOKUP(A4632,Translation!$A:$C,3,FALSE),A4632)","v":7},{"$f":"IFERROR(VLOOKUP(B4632,Translation!$A:$C,3,FALSE),B4632)","v":"T1 2020"},{"$f":"IFERROR(VLOOKUP(C4632,Translation!$A:$C,3,FALSE),C4632)","v":"ASSURANCE DE PORTEFEUILLE"},{"$f":"IFERROR(VLOOKUP(D4632,Translation!$A:$C,3,FALSE),D4632)","v":"Saskatchewan"},{"$f":"IFERROR(VLOOKUP(E4632,Translation!$A:$C,3,FALSE),E4632)","v":33.880649368788376},{"$f":"IFERROR(VLOOKUP(F4632,Translation!$A:$C,3,FALSE),F4632)","v":"Avoir propre foncier moyen selon la province"},{"$f":"IFERROR(VLOOKUP(G4632,Translation!$A:$C,3,FALSE),G4632)","v":"33.9"},{"$f":"IFERROR(VLOOKUP(H4632,Translation!$A:$C,3,FALSE),H4632)","v":"Saskatchewan"}]
[7,"Cumul 2019","ASSURANCE DE PORTEFEUILLE","Terre-Neuve-et-Labrador",35.280379028946633,"Avoir propre foncier moyen selon la province","35.3","Terre-Neuve-et-Labrador",{"$f":"IFERROR(VLOOKUP(A4635,Translation!$A:$C,3,FALSE),A4635)","v":7},{"$f":"IFERROR(VLOOKUP(B4635,Translation!$A:$C,3,FALSE),B4635)","v":"Cumul 2019"},{"$f":"IFERROR(VLOOKUP(C4635,Translation!$A:$C,3,FALSE),C4635)","v":"ASSURANCE DE PORTEFEUILLE"},{"$f":"IFERROR(VLOOKUP(D4635,Translation!$A:$C,3,FALSE),D4635)","v":"Terre-Neuve-et-Labrador"},{"$f":"IFERROR(VLOOKUP(E4635,Translation!$A:$C,3,FALSE),E4635)","v":35.280379028946633},{"$f":"IFERROR(VLOOKUP(F4635,Translation!$A:$C,3,FALSE),F4635)","v":"Avoir propre foncier moyen selon la province"},{"$f":"IFERROR(VLOOKUP(G4635,Translation!$A:$C,3,FALSE),G4635)","v":"35.3"},{"$f":"IFERROR(VLOOKUP(H4635,Translation!$A:$C,3,FALSE),H4635)","v":"Terre-Neuve-et-Labrador"}]
[7,"Cumul 2019","ASSURANCE DE PORTEFEUILLE","Île-du-Prince-Édouard",43.611253901624465,"Avoir propre foncier moyen selon la province","43.6","Île-du-Prince-Édouard",{"$f":"IFERROR(VLOOKUP(A4636,Translation!$A:$C,3,FALSE),A4636)","v":7},{"$f":"IFERROR(VLOOKUP(B4636,Translation!$A:$C,3,FALSE),B4636)","v":"Cumul 2019"},{"$f":"IFERROR(VLOOKUP(C4636,Translation!$A:$C,3,FALSE),C4636)","v":"ASSURANCE DE PORTEFEUILLE"},{"$f":"IFERROR(VLOOKUP(D4636,Translation!$A:$C,3,FALSE),D4636)","v":"Île-du-Prince-Édouard"},{"$f":"IFERROR(VLOOKUP(E4636,Translation!$A:$C,3,FALSE),E4636)","v":43.611253901624465},{"$f":"IFERROR(VLOOKUP(F4636,Translation!$A:$C,3,FALSE),F4636)","v":"Avoir propre foncier moyen selon la province"},{"$f":"IFERROR(VLOOKUP(G4636,Translation!$A:$C,3,FALSE),G4636)","v":"43.6"},{"$f":"IFERROR(VLOOKUP(H4636,Translation!$A:$C,3,FALSE),H4636)","v":"Île-du-Prince-Édouard"}]
[7,"Cumul 2019","ASSURANCE DE PORTEFEUILLE","Ontario",40.173174464062647,"Avoir propre foncier moyen selon la province","40.2","Ontario",{"$f":"IFERROR(VLOOKUP(A4640,Translation!$A:$C,3,FALSE),A4640)","v":7},{"$f":"IFERROR(VLOOKUP(B4640,Translation!$A:$C,3,FALSE),B4640)","v":"Cumul 2019"},{"$f":"IFERROR(VLOOKUP(C4640,Translation!$A:$C,3,FALSE),C4640)","v":"ASSURANCE DE PORTEFEUILLE"},{"$f":"IFERROR(VLOOKUP(D4640,Translation!$A:$C,3,FALSE),D4640)","v":"Ontario"},{"$f":"IFERROR(VLOOKUP(E4640,Translation!$A:$C,3,FALSE),E4640)","v":40.173174464062647},{"$f":"IFERROR(VLOOKUP(F4640,Translation!$A:$C,3,FALSE),F4640)","v":"Avoir propre foncier moyen selon la province"},{"$f":"IFERROR(VLOOKUP(G4640,Translation!$A:$C,3,FALSE),G4640)","v":"40.2"},{"$f":"IFERROR(VLOOKUP(H4640,Translation!$A:$C,3,FALSE),H4640)","v":"Ontario"}]
[7,"Cumul 2019","ASSURANCE DE PORTEFEUILLE","Saskatchewan",36.837945598729192,"Avoir propre foncier moyen selon la province","36.8","Saskatchewan",{"$f":"IFERROR(VLOOKUP(A4642,Translation!$A:$C,3,FALSE),A4642)","v":7},{"$f":"IFERROR(VLOOKUP(B4642,Translation!$A:$C,3,FALSE),B4642)","v":"Cumul 2019"},{"$f":"IFERROR(VLOOKUP(C4642,Translation!$A:$C,3,FALSE),C4642)","v":"ASSURANCE DE PORTEFEUILLE"},{"$f":"IFERROR(VLOOKUP(D4642,Translation!$A:$C,3,FALSE),D4642)","v":"Saskatchewan"},{"$f":"IFERROR(VLOOKUP(E4642,Translation!$A:$C,3,FALSE),E4642)","v":36.837945598729192},{"$f":"IFERROR(VLOOKUP(F4642,Translation!$A:$C,3,FALSE),F4642)","v":"Avoir propre foncier moyen selon la province"},{"$f":"IFERROR(VLOOKUP(G4642,Translation!$A:$C,3,FALSE),G4642)","v":"36.8"},{"$f":"IFERROR(VLOOKUP(H4642,Translation!$A:$C,3,FALSE),H4642)","v":"Saskatchewan"}]
[7,"Cumul 2019","ASSURANCE DE PORTEFEUILLE","Territoires",34.710000000000008,"Avoir propre foncier moyen selon la province","34.7","Territoires",{"$f":"IFERROR(VLOOKUP(A4645,Translation!$A:$C,3,FALSE),A4645)","v":7},{"$f":"IFERROR(VLOOKUP(B4645,Translation!$A:$C,3,FALSE),B4645)","v":"Cumul 2019"},{"$f":"IFERROR(VLOOKUP(C4645,Translation!$A:$C,3,FALSE),C4645)","v":"ASSURANCE DE PORTEFEUILLE"},{"$f":"IFERROR(VLOOKUP(D4645,Translation!$A:$C,3,FALSE),D4645)","v":"Territoires"},{"$f":"IFERROR(VLOOKUP(E4645,Translation!$A:$C,3,FALSE),E4645)","v":34.710000000000008},{"$f":"IFERROR(VLOOKUP(F4645,Translation!$A:$C,3,FALSE),F4645)","v":"Avoir propre foncier moyen selon la province"},{"$f":"IFERROR(VLOOKUP(G4645,Translation!$A:$C,3,FALSE),G4645)","v":"34.7"},{"$f":"IFERROR(VLOOKUP(H4645,Translation!$A:$C,3,FALSE),H4645)","v":"Territoires"}]
[7,"Cumul 2020","ASSURANCE DE PORTEFEUILLE","Terre-Neuve-et-Labrador",36.499749485421809,"Avoir propre foncier moyen selon la province","36.5","Terre-Neuve-et-Labrador",{"$f":"IFERROR(VLOOKUP(A4646,Translation!$A:$C,3,FALSE),A4646)","v":7},{"$f":"IFERROR(VLOOKUP(B4646,Translation!$A:$C,3,FALSE),B4646)","v":"Cumul 2020"},{"$f":"IFERROR(VLOOKUP(C4646,Translation!$A:$C,3,FALSE),C4646)","v":"ASSURANCE DE PORTEFEUILLE"},{"$f":"IFERROR(VLOOKUP(D4646,Translation!$A:$C,3,FALSE),D4646)","v":"Terre-Neuve-et-Labrador"},{"$f":"IFERROR(VLOOKUP(E4646,Translation!$A:$C,3,FALSE),E4646)","v":36.499749485421809},{"$f":"IFERROR(VLOOKUP(F4646,Translation!$A:$C,3,FALSE),F4646)","v":"Avoir propre foncier moyen selon la province"},{"$f":"IFERROR(VLOOKUP(G4646,Translation!$A:$C,3,FALSE),G4646)","v":"36.5"},{"$f":"IFERROR(VLOOKUP(H4646,Translation!$A:$C,3,FALSE),H4646)","v":"Terre-Neuve-et-Labrador"}]
[7,"Cumul 2020","ASSURANCE DE PORTEFEUILLE","Ontario",33.986428929460374,"Avoir propre foncier moyen selon la province","34.0","Ontario",{"$f":"IFERROR(VLOOKUP(A4650,Translation!$A:$C,3,FALSE),A4650)","v":7},{"$f":"IFERROR(VLOOKUP(B4650,Translation!$A:$C,3,FALSE),B4650)","v":"Cumul 2020"},{"$f":"IFERROR(VLOOKUP(C4650,Translation!$A:$C,3,FALSE),C4650)","v":"ASSURANCE DE PORTEFEUILLE"},{"$f":"IFERROR(VLOOKUP(D4650,Translation!$A:$C,3,FALSE),D4650)","v":"Ontario"},{"$f":"IFERROR(VLOOKUP(E4650,Translation!$A:$C,3,FALSE),E4650)","v":33.986428929460374},{"$f":"IFERROR(VLOOKUP(F4650,Translation!$A:$C,3,FALSE),F4650)","v":"Avoir propre foncier moyen selon la province"},{"$f":"IFERROR(VLOOKUP(G4650,Translation!$A:$C,3,FALSE),G4650)","v":"34.0"},{"$f":"IFERROR(VLOOKUP(H4650,Translation!$A:$C,3,FALSE),H4650)","v":"Ontario"}]
[7,"Cumul 2020","ASSURANCE DE PORTEFEUILLE","Manitoba",31.024903712421992,"Avoir propre foncier moyen selon la province","31.0","Manitoba",{"$f":"IFERROR(VLOOKUP(A4651,Translation!$A:$C,3,FALSE),A4651)","v":7},{"$f":"IFERROR(VLOOKUP(B4651,Translation!$A:$C,3,FALSE),B4651)","v":"Cumul 2020"},{"$f":"IFERROR(VLOOKUP(C4651,Translation!$A:$C,3,FALSE),C4651)","v":"ASSURANCE DE PORTEFEUILLE"},{"$f":"IFERROR(VLOOKUP(D4651,Translation!$A:$C,3,FALSE),D4651)","v":"Manitoba"},{"$f":"IFERROR(VLOOKUP(E4651,Translation!$A:$C,3,FALSE),E4651)","v":31.024903712421992},{"$f":"IFERROR(VLOOKUP(F4651,Translation!$A:$C,3,FALSE),F4651)","v":"Avoir propre foncier moyen selon la province"},{"$f":"IFERROR(VLOOKUP(G4651,Translation!$A:$C,3,FALSE),G4651)","v":"31.0"},{"$f":"IFERROR(VLOOKUP(H4651,Translation!$A:$C,3,FALSE),H4651)","v":"Manitoba"}]
[7,"Cumul 2020","ASSURANCE DE PORTEFEUILLE","Alberta",32.174181535896601,"Avoir propre foncier moyen selon la province","32.2","Alberta",{"$f":"IFERROR(VLOOKUP(A4653,Translation!$A:$C,3,FALSE),A4653)","v":7},{"$f":"IFERROR(VLOOKUP(B4653,Translation!$A:$C,3,FALSE),B4653)","v":"Cumul 2020"},{"$f":"IFERROR(VLOOKUP(C4653,Translation!$A:$C,3,FALSE),C4653)","v":"ASSURANCE DE PORTEFEUILLE"},{"$f":"IFERROR(VLOOKUP(D4653,Translation!$A:$C,3,FALSE),D4653)","v":"Alberta"},{"$f":"IFERROR(VLOOKUP(E4653,Translation!$A:$C,3,FALSE),E4653)","v":32.174181535896601},{"$f":"IFERROR(VLOOKUP(F4653,Translation!$A:$C,3,FALSE),F4653)","v":"Avoir propre foncier moyen selon la province"},{"$f":"IFERROR(VLOOKUP(G4653,Translation!$A:$C,3,FALSE),G4653)","v":"32.2"},{"$f":"IFERROR(VLOOKUP(H4653,Translation!$A:$C,3,FALSE),H4653)","v":"Alberta"}]
[27,"Cumul 2019","IMMEUBLES COLLECTIFS RÉSIDENTIELS","<= 50 %",0.36542636404427192,"Prêts hypothécaires assurés au cours de la période selon le rapport prêt-valeur (RPV) établi d’après la valeur initiale de la propriété (%)","0.4"," <= 50 %",{"$f":"IFERROR(VLOOKUP(A4656,Translation!$A:$C,3,FALSE),A4656)","v":27},{"$f":"IFERROR(VLOOKUP(B4656,Translation!$A:$C,3,FALSE),B4656)","v":"Cumul 2019"},{"$f":"IFERROR(VLOOKUP(C4656,Translation!$A:$C,3,FALSE),C4656)","v":"IMMEUBLES COLLECTIFS RÉSIDENTIELS"},{"$f":"IFERROR(VLOOKUP(D4656,Translation!$A:$C,3,FALSE),D4656)","v":"<= 50 %"},{"$f":"IFERROR(VLOOKUP(E4656,Translation!$A:$C,3,FALSE),E4656)","v":0.36542636404427192},{"$f":"IFERROR(VLOOKUP(F4656,Translation!$A:$C,3,FALSE),F4656)","v":"Prêts hypothécaires assurés au cours de la période selon le rapport prêt-valeur (RPV) établi d’après la valeur initiale de la propriété (%)"},{"$f":"IFERROR(VLOOKUP(G4656,Translation!$A:$C,3,FALSE),G4656)","v":"0.4"},{"$f":"IFERROR(VLOOKUP(H4656,Translation!$A:$C,3,FALSE),H4656)","v":" <= 50 %"}]
[27,"Cumul 2019","IMMEUBLES COLLECTIFS RÉSIDENTIELS","> 50 % <= 55 %",0.82274635513614869,"Prêts hypothécaires assurés au cours de la période selon le rapport prêt-valeur (RPV) établi d’après la valeur initiale de la propriété (%)","0.8"," > 50 % <= 55 %",{"$f":"IFERROR(VLOOKUP(A4659,Translation!$A:$C,3,FALSE),A4659)","v":27},{"$f":"IFERROR(VLOOKUP(B4659,Translation!$A:$C,3,FALSE),B4659)","v":"Cumul 2019"},{"$f":"IFERROR(VLOOKUP(C4659,Translation!$A:$C,3,FALSE),C4659)","v":"IMMEUBLES COLLECTIFS RÉSIDENTIELS"},{"$f":"IFERROR(VLOOKUP(D4659,Translation!$A:$C,3,FALSE),D4659)","v":"> 50 % <= 55 %"},{"$f":"IFERROR(VLOOKUP(E4659,Translation!$A:$C,3,FALSE),E4659)","v":0.82274635513614869},{"$f":"IFERROR(VLOOKUP(F4659,Translation!$A:$C,3,FALSE),F4659)","v":"Prêts hypothécaires assurés au cours de la période selon le rapport prêt-valeur (RPV) établi d’après la valeur initiale de la propriété (%)"},{"$f":"IFERROR(VLOOKUP(G4659,Translation!$A:$C,3,FALSE),G4659)","v":"0.8"},{"$f":"IFERROR(VLOOKUP(H4659,Translation!$A:$C,3,FALSE),H4659)","v":" > 50 % <= 55 %"}]
[27,"T1 2020","IMMEUBLES COLLECTIFS RÉSIDENTIELS","> 55 % <= 60 %",1.521311742227166,"Prêts hypothécaires assurés au cours de la période selon le rapport prêt-valeur (RPV) établi d’après la valeur initiale de la propriété (%)","1.5"," > 55 % <= 60 %",{"$f":"IFERROR(VLOOKUP(A4661,Translation!$A:$C,3,FALSE),A4661)","v":27},{"$f":"IFERROR(VLOOKUP(B4661,Translation!$A:$C,3,FALSE),B4661)","v":"T1 2020"},{"$f":"IFERROR(VLOOKUP(C4661,Translation!$A:$C,3,FALSE),C4661)","v":"IMMEUBLES COLLECTIFS RÉSIDENTIELS"},{"$f":"IFERROR(VLOOKUP(D4661,Translation!$A:$C,3,FALSE),D4661)","v":"> 55 % <= 60 %"},{"$f":"IFERROR(VLOOKUP(E4661,Translation!$A:$C,3,FALSE),E4661)","v":1.521311742227166},{"$f":"IFERROR(VLOOKUP(F4661,Translation!$A:$C,3,FALSE),F4661)","v":"Prêts hypothécaires assurés au cours de la période selon le rapport prêt-valeur (RPV) établi d’après la valeur initiale de la propriété (%)"},{"$f":"IFERROR(VLOOKUP(G4661,Translation!$A:$C,3,FALSE),G4661)","v":"1.5"},{"$f":"IFERROR(VLOOKUP(H4661,Translation!$A:$C,3,FALSE),H4661)","v":" > 55 % <= 60 %"}]
[27,"T1 2020","IMMEUBLES COLLECTIFS RÉSIDENTIELS","> 60 % <= 65 %",11.38242840930786,"Prêts hypothécaires assurés au cours de la période selon le rapport prêt-valeur (RPV) établi d’après la valeur initiale de la propriété (%)","11.4"," > 60 % <= 65 %",{"$f":"IFERROR(VLOOKUP(A4664,Translation!$A:$C,3,FALSE),A4664)","v":27},{"$f":"IFERROR(VLOOKUP(B4664,Translation!$A:$C,3,FALSE),B4664)","v":"T1 2020"},{"$f":"IFERROR(VLOOKUP(C4664,Translation!$A:$C,3,FALSE),C4664)","v":"IMMEUBLES COLLECTIFS RÉSIDENTIELS"},{"$f":"IFERROR(VLOOKUP(D4664,Translation!$A:$C,3,FALSE),D4664)","v":"> 60 % <= 65 %"},{"$f":"IFERROR(VLOOKUP(E4664,Translation!$A:$C,3,FALSE),E4664)","v":11.38242840930786},{"$f":"IFERROR(VLOOKUP(F4664,Translation!$A:$C,3,FALSE),F4664)","v":"Prêts hypothécaires assurés au cours de la période selon le rapport prêt-valeur (RPV) établi d’après la valeur initiale de la propriété (%)"},{"$f":"IFERROR(VLOOKUP(G4664,Translation!$A:$C,3,FALSE),G4664)","v":"11.4"},{"$f":"IFERROR(VLOOKUP(H4664,Translation!$A:$C,3,FALSE),H4664)","v":" > 60 % <= 65 %"}]
[27,"T1 2020","IMMEUBLES COLLECTIFS RÉSIDENTIELS","> 65 % <= 70 %",4.8569222450830969,"Prêts hypothécaires assurés au cours de la période selon le rapport prêt-valeur (RPV) établi d’après la valeur initiale de la propriété (%)","4.9"," > 65 % <= 70 %",{"$f":"IFERROR(VLOOKUP(A4667,Translation!$A:$C,3,FALSE),A4667)","v":27},{"$f":"IFERROR(VLOOKUP(B4667,Translation!$A:$C,3,FALSE),B4667)","v":"T1 2020"},{"$f":"IFERROR(VLOOKUP(C4667,Translation!$A:$C,3,FALSE),C4667)","v":"IMMEUBLES COLLECTIFS RÉSIDENTIELS"},{"$f":"IFERROR(VLOOKUP(D4667,Translation!$A:$C,3,FALSE),D4667)","v":"> 65 % <= 70 %"},{"$f":"IFERROR(VLOOKUP(E4667,Translation!$A:$C,3,FALSE),E4667)","v":4.8569222450830969},{"$f":"IFERROR(VLOOKUP(F4667,Translation!$A:$C,3,FALSE),F4667)","v":"Prêts hypothécaires assurés au cours de la période selon le rapport prêt-valeur (RPV) établi d’après la valeur initiale de la propriété (%)"},{"$f":"IFERROR(VLOOKUP(G4667,Translation!$A:$C,3,FALSE),G4667)","v":"4.9"},{"$f":"IFERROR(VLOOKUP(H4667,Translation!$A:$C,3,FALSE),H4667)","v":" > 65 % <= 70 %"}]
[27,"Cumul 2020","IMMEUBLES COLLECTIFS RÉSIDENTIELS","> 65 % <= 70 %",4.8569222450830969,"Prêts hypothécaires assurés au cours de la période selon le rapport prêt-valeur (RPV) établi d’après la valeur initiale de la propriété (%)","4.9"," > 65 % <= 70 %",{"$f":"IFERROR(VLOOKUP(A4669,Translation!$A:$C,3,FALSE),A4669)","v":27},{"$f":"IFERROR(VLOOKUP(B4669,Translation!$A:$C,3,FALSE),B4669)","v":"Cumul 2020"},{"$f":"IFERROR(VLOOKUP(C4669,Translation!$A:$C,3,FALSE),C4669)","v":"IMMEUBLES COLLECTIFS RÉSIDENTIELS"},{"$f":"IFERROR(VLOOKUP(D4669,Translation!$A:$C,3,FALSE),D4669)","v":"> 65 % <= 70 %"},{"$f":"IFERROR(VLOOKUP(E4669,Translation!$A:$C,3,FALSE),E4669)","v":4.8569222450830969},{"$f":"IFERROR(VLOOKUP(F4669,Translation!$A:$C,3,FALSE),F4669)","v":"Prêts hypothécaires assurés au cours de la période selon le rapport prêt-valeur (RPV) établi d’après la valeur initiale de la propriété (%)"},{"$f":"IFERROR(VLOOKUP(G4669,Translation!$A:$C,3,FALSE),G4669)","v":"4.9"},{"$f":"IFERROR(VLOOKUP(H4669,Translation!$A:$C,3,FALSE),H4669)","v":" > 65 % <= 70 %"}]
[27,"T1 2020","IMMEUBLES COLLECTIFS RÉSIDENTIELS","> 70 % <= 75 %",24.578863914623184,"Prêts hypothécaires assurés au cours de la période selon le rapport prêt-valeur (RPV) établi d’après la valeur initiale de la propriété (%)","24.6"," > 70 % <= 75 %",{"$f":"IFERROR(VLOOKUP(A4670,Translation!$A:$C,3,FALSE),A4670)","v":27},{"$f":"IFERROR(VLOOKUP(B4670,Translation!$A:$C,3,FALSE),B4670)","v":"T1 2020"},{"$f":"IFERROR(VLOOKUP(C4670,Translation!$A:$C,3,FALSE),C4670)","v":"IMMEUBLES COLLECTIFS RÉSIDENTIELS"},{"$f":"IFERROR(VLOOKUP(D4670,Translation!$A:$C,3,FALSE),D4670)","v":"> 70 % <= 75 %"},{"$f":"IFERROR(VLOOKUP(E4670,Translation!$A:$C,3,FALSE),E4670)","v":24.578863914623184},{"$f":"IFERROR(VLOOKUP(F4670,Translation!$A:$C,3,FALSE),F4670)","v":"Prêts hypothécaires assurés au cours de la période selon le rapport prêt-valeur (RPV) établi d’après la valeur initiale de la propriété (%)"},{"$f":"IFERROR(VLOOKUP(G4670,Translation!$A:$C,3,FALSE),G4670)","v":"24.6"},{"$f":"IFERROR(VLOOKUP(H4670,Translation!$A:$C,3,FALSE),H4670)","v":" > 70 % <= 75 %"}]
[27,"Cumul 2020","IMMEUBLES COLLECTIFS RÉSIDENTIELS","> 70 % <= 75 %",24.578863914623184,"Prêts hypothécaires assurés au cours de la période selon le rapport prêt-valeur (RPV) établi d’après la valeur initiale de la propriété (%)","24.6"," > 70 % <= 75 %",{"$f":"IFERROR(VLOOKUP(A4672,Translation!$A:$C,3,FALSE),A4672)","v":27},{"$f":"IFERROR(VLOOKUP(B4672,Translation!$A:$C,3,FALSE),B4672)","v":"Cumul 2020"},{"$f":"IFERROR(VLOOKUP(C4672,Translation!$A:$C,3,FALSE),C4672)","v":"IMMEUBLES COLLECTIFS RÉSIDENTIELS"},{"$f":"IFERROR(VLOOKUP(D4672,Translation!$A:$C,3,FALSE),D4672)","v":"> 70 % <= 75 %"},{"$f":"IFERROR(VLOOKUP(E4672,Translation!$A:$C,3,FALSE),E4672)","v":24.578863914623184},{"$f":"IFERROR(VLOOKUP(F4672,Translation!$A:$C,3,FALSE),F4672)","v":"Prêts hypothécaires assurés au cours de la période selon le rapport prêt-valeur (RPV) établi d’après la valeur initiale de la propriété (%)"},{"$f":"IFERROR(VLOOKUP(G4672,Translation!$A:$C,3,FALSE),G4672)","v":"24.6"},{"$f":"IFERROR(VLOOKUP(H4672,Translation!$A:$C,3,FALSE),H4672)","v":" > 70 % <= 75 %"}]
[27,"Cumul 2020","IMMEUBLES COLLECTIFS RÉSIDENTIELS","> 75 % <= 80 %",15.550782076722053,"Prêts hypothécaires assurés au cours de la période selon le rapport prêt-valeur (RPV) établi d’après la valeur initiale de la propriété (%)","15.6"," > 75 % <= 80 %",{"$f":"IFERROR(VLOOKUP(A4675,Translation!$A:$C,3,FALSE),A4675)","v":27},{"$f":"IFERROR(VLOOKUP(B4675,Translation!$A:$C,3,FALSE),B4675)","v":"Cumul 2020"},{"$f":"IFERROR(VLOOKUP(C4675,Translation!$A:$C,3,FALSE),C4675)","v":"IMMEUBLES COLLECTIFS RÉSIDENTIELS"},{"$f":"IFERROR(VLOOKUP(D4675,Translation!$A:$C,3,FALSE),D4675)","v":"> 75 % <= 80 %"},{"$f":"IFERROR(VLOOKUP(E4675,Translation!$A:$C,3,FALSE),E4675)","v":15.550782076722053},{"$f":"IFERROR(VLOOKUP(F4675,Translation!$A:$C,3,FALSE),F4675)","v":"Prêts hypothécaires assurés au cours de la période selon le rapport prêt-valeur (RPV) établi d’après la valeur initiale de la propriété (%)"},{"$f":"IFERROR(VLOOKUP(G4675,Translation!$A:$C,3,FALSE),G4675)","v":"15.6"},{"$f":"IFERROR(VLOOKUP(H4675,Translation!$A:$C,3,FALSE),H4675)","v":" > 75 % <= 80 %"}]
[27,"Cumul 2020","IMMEUBLES COLLECTIFS RÉSIDENTIELS","> 80 % <= 85 %",25.480453166431296,"Prêts hypothécaires assurés au cours de la période selon le rapport prêt-valeur (RPV) établi d’après la valeur initiale de la propriété (%)","25.5"," > 80 % <= 85 %",{"$f":"IFERROR(VLOOKUP(A4678,Translation!$A:$C,3,FALSE),A4678)","v":27},{"$f":"IFERROR(VLOOKUP(B4678,Translation!$A:$C,3,FALSE),B4678)","v":"Cumul 2020"},{"$f":"IFERROR(VLOOKUP(C4678,Translation!$A:$C,3,FALSE),C4678)","v":"IMMEUBLES COLLECTIFS RÉSIDENTIELS"},{"$f":"IFERROR(VLOOKUP(D4678,Translation!$A:$C,3,FALSE),D4678)","v":"> 80 % <= 85 %"},{"$f":"IFERROR(VLOOKUP(E4678,Translation!$A:$C,3,FALSE),E4678)","v":25.480453166431296},{"$f":"IFERROR(VLOOKUP(F4678,Translation!$A:$C,3,FALSE),F4678)","v":"Prêts hypothécaires assurés au cours de la période selon le rapport prêt-valeur (RPV) établi d’après la valeur initiale de la propriété (%)"},{"$f":"IFERROR(VLOOKUP(G4678,Translation!$A:$C,3,FALSE),G4678)","v":"25.5"},{"$f":"IFERROR(VLOOKUP(H4678,Translation!$A:$C,3,FALSE),H4678)","v":" > 80 % <= 85 %"}]
[27,"Cumul 2019","IMMEUBLES COLLECTIFS RÉSIDENTIELS","> 85 % <= 90 %",0.6721439725321765,"Prêts hypothécaires assurés au cours de la période selon le rapport prêt-valeur (RPV) établi d’après la valeur initiale de la propriété (%)","0.7"," > 85 % <= 90 %",{"$f":"IFERROR(VLOOKUP(A4680,Translation!$A:$C,3,FALSE),A4680)","v":27},{"$f":"IFERROR(VLOOKUP(B4680,Translation!$A:$C,3,FALSE),B4680)","v":"Cumul 2019"},{"$f":"IFERROR(VLOOKUP(C4680,Translation!$A:$C,3,FALSE),C4680)","v":"IMMEUBLES COLLECTIFS RÉSIDENTIELS"},{"$f":"IFERROR(VLOOKUP(D4680,Translation!$A:$C,3,FALSE),D4680)","v":"> 85 % <= 90 %"},{"$f":"IFERROR(VLOOKUP(E4680,Translation!$A:$C,3,FALSE),E4680)","v":0.6721439725321765},{"$f":"IFERROR(VLOOKUP(F4680,Translation!$A:$C,3,FALSE),F4680)","v":"Prêts hypothécaires assurés au cours de la période selon le rapport prêt-valeur (RPV) établi d’après la valeur initiale de la propriété (%)"},{"$f":"IFERROR(VLOOKUP(G4680,Translation!$A:$C,3,FALSE),G4680)","v":"0.7"},{"$f":"IFERROR(VLOOKUP(H4680,Translation!$A:$C,3,FALSE),H4680)","v":" > 85 % <= 90 %"}]
[27,"Cumul 2019","IMMEUBLES COLLECTIFS RÉSIDENTIELS","> 90 % <= 95 %",2.3118993602092179,"Prêts hypothécaires assurés au cours de la période selon le rapport prêt-valeur (RPV) établi d’après la valeur initiale de la propriété (%)","2.3"," > 90 % <= 95 %",{"$f":"IFERROR(VLOOKUP(A4683,Translation!$A:$C,3,FALSE),A4683)","v":27},{"$f":"IFERROR(VLOOKUP(B4683,Translation!$A:$C,3,FALSE),B4683)","v":"Cumul 2019"},{"$f":"IFERROR(VLOOKUP(C4683,Translation!$A:$C,3,FALSE),C4683)","v":"IMMEUBLES COLLECTIFS RÉSIDENTIELS"},{"$f":"IFERROR(VLOOKUP(D4683,Translation!$A:$C,3,FALSE),D4683)","v":"> 90 % <= 95 %"},{"$f":"IFERROR(VLOOKUP(E4683,Translation!$A:$C,3,FALSE),E4683)","v":2.3118993602092179},{"$f":"IFERROR(VLOOKUP(F4683,Translation!$A:$C,3,FALSE),F4683)","v":"Prêts hypothécaires assurés au cours de la période selon le rapport prêt-valeur (RPV) établi d’après la valeur initiale de la propriété (%)"},{"$f":"IFERROR(VLOOKUP(G4683,Translation!$A:$C,3,FALSE),G4683)","v":"2.3"},{"$f":"IFERROR(VLOOKUP(H4683,Translation!$A:$C,3,FALSE),H4683)","v":" > 90 % <= 95 %"}]
[27,"Cumul 2019","IMMEUBLES COLLECTIFS RÉSIDENTIELS","> 95 %",0.48838175178190479,"Prêts hypothécaires assurés au cours de la période selon le rapport prêt-valeur (RPV) établi d’après la valeur initiale de la propriété (%)","0.5"," > 95 %",{"$f":"IFERROR(VLOOKUP(A4686,Translation!$A:$C,3,FALSE),A4686)","v":27},{"$f":"IFERROR(VLOOKUP(B4686,Translation!$A:$C,3,FALSE),B4686)","v":"Cumul 2019"},{"$f":"IFERROR(VLOOKUP(C4686,Translation!$A:$C,3,FALSE),C4686)","v":"IMMEUBLES COLLECTIFS RÉSIDENTIELS"},{"$f":"IFERROR(VLOOKUP(D4686,Translation!$A:$C,3,FALSE),D4686)","v":"> 95 %"},{"$f":"IFERROR(VLOOKUP(E4686,Translation!$A:$C,3,FALSE),E4686)","v":0.48838175178190479},{"$f":"IFERROR(VLOOKUP(F4686,Translation!$A:$C,3,FALSE),F4686)","v":"Prêts hypothécaires assurés au cours de la période selon le rapport prêt-valeur (RPV) établi d’après la valeur initiale de la propriété (%)"},{"$f":"IFERROR(VLOOKUP(G4686,Translation!$A:$C,3,FALSE),G4686)","v":"0.5"},{"$f":"IFERROR(VLOOKUP(H4686,Translation!$A:$C,3,FALSE),H4686)","v":" > 95 %"}]
[27,"T1 2020","IMMEUBLES COLLECTIFS RÉSIDENTIELS","Rapport prêt-valeur moyen ",75.758913605344674,"Prêts hypothécaires assurés au cours de la période selon le rapport prêt-valeur (RPV) établi d’après la valeur initiale de la propriété (%)","75.8","Rapport prêt-valeur moyen ",{"$f":"IFERROR(VLOOKUP(A4688,Translation!$A:$C,3,FALSE),A4688)","v":27},{"$f":"IFERROR(VLOOKUP(B4688,Translation!$A:$C,3,FALSE),B4688)","v":"T1 2020"},{"$f":"IFERROR(VLOOKUP(C4688,Translation!$A:$C,3,FALSE),C4688)","v":"IMMEUBLES COLLECTIFS RÉSIDENTIELS"},{"$f":"IFERROR(VLOOKUP(D4688,Translation!$A:$C,3,FALSE),D4688)","v":"Rapport prêt-valeur moyen "},{"$f":"IFERROR(VLOOKUP(E4688,Translation!$A:$C,3,FALSE),E4688)","v":75.758913605344674},{"$f":"IFERROR(VLOOKUP(F4688,Translation!$A:$C,3,FALSE),F4688)","v":"Prêts hypothécaires assurés au cours de la période selon le rapport prêt-valeur (RPV) établi d’après la valeur initiale de la propriété (%)"},{"$f":"IFERROR(VLOOKUP(G4688,Translation!$A:$C,3,FALSE),G4688)","v":"75.8"},{"$f":"IFERROR(VLOOKUP(H4688,Translation!$A:$C,3,FALSE),H4688)","v":"Rapport prêt-valeur moyen "}]
[27,"Cumul 2019","IMMEUBLES COLLECTIFS RÉSIDENTIELS","Rapport prêt-valeur moyen ",73.68425996802462,"Prêts hypothécaires assurés au cours de la période selon le rapport prêt-valeur (RPV) établi d’après la valeur initiale de la propriété (%)","73.7","Rapport prêt-valeur moyen ",{"$f":"IFERROR(VLOOKUP(A4689,Translation!$A:$C,3,FALSE),A4689)","v":27},{"$f":"IFERROR(VLOOKUP(B4689,Translation!$A:$C,3,FALSE),B4689)","v":"Cumul 2019"},{"$f":"IFERROR(VLOOKUP(C4689,Translation!$A:$C,3,FALSE),C4689)","v":"IMMEUBLES COLLECTIFS RÉSIDENTIELS"},{"$f":"IFERROR(VLOOKUP(D4689,Translation!$A:$C,3,FALSE),D4689)","v":"Rapport prêt-valeur moyen "},{"$f":"IFERROR(VLOOKUP(E4689,Translation!$A:$C,3,FALSE),E4689)","v":73.68425996802462},{"$f":"IFERROR(VLOOKUP(F4689,Translation!$A:$C,3,FALSE),F4689)","v":"Prêts hypothécaires assurés au cours de la période selon le rapport prêt-valeur (RPV) établi d’après la valeur initiale de la propriété (%)"},{"$f":"IFERROR(VLOOKUP(G4689,Translation!$A:$C,3,FALSE),G4689)","v":"73.7"},{"$f":"IFERROR(VLOOKUP(H4689,Translation!$A:$C,3,FALSE),H4689)","v":"Rapport prêt-valeur moyen "}]
[27,"Cumul 2020","IMMEUBLES COLLECTIFS RÉSIDENTIELS","Avoir propre foncier moyen ",24.241086394655344,"Prêts hypothécaires assurés au cours de la période selon le rapport prêt-valeur (RPV) établi d’après la valeur initiale de la propriété (%)","24.2","Avoir propre foncier moyen ",{"$f":"IFERROR(VLOOKUP(A4693,Translation!$A:$C,3,FALSE),A4693)","v":27},{"$f":"IFERROR(VLOOKUP(B4693,Translation!$A:$C,3,FALSE),B4693)","v":"Cumul 2020"},{"$f":"IFERROR(VLOOKUP(C4693,Translation!$A:$C,3,FALSE),C4693)","v":"IMMEUBLES COLLECTIFS RÉSIDENTIELS"},{"$f":"IFERROR(VLOOKUP(D4693,Translation!$A:$C,3,FALSE),D4693)","v":"Avoir propre foncier moyen "},{"$f":"IFERROR(VLOOKUP(E4693,Translation!$A:$C,3,FALSE),E4693)","v":24.241086394655344},{"$f":"IFERROR(VLOOKUP(F4693,Translation!$A:$C,3,FALSE),F4693)","v":"Prêts hypothécaires assurés au cours de la période selon le rapport prêt-valeur (RPV) établi d’après la valeur initiale de la propriété (%)"},{"$f":"IFERROR(VLOOKUP(G4693,Translation!$A:$C,3,FALSE),G4693)","v":"24.2"},{"$f":"IFERROR(VLOOKUP(H4693,Translation!$A:$C,3,FALSE),H4693)","v":"Avoir propre foncier moyen "}]
[27,"T1 2020","IMMEUBLES COLLECTIFS RÉSIDENTIELS","Terre-Neuve-et-Labrador",14.462346138265683,"Avoir propre foncier moyen selon la province","14.5","Terre-Neuve-et-Labrador",{"$f":"IFERROR(VLOOKUP(A4694,Translation!$A:$C,3,FALSE),A4694)","v":27},{"$f":"IFERROR(VLOOKUP(B4694,Translation!$A:$C,3,FALSE),B4694)","v":"T1 2020"},{"$f":"IFERROR(VLOOKUP(C4694,Translation!$A:$C,3,FALSE),C4694)","v":"IMMEUBLES COLLECTIFS RÉSIDENTIELS"},{"$f":"IFERROR(VLOOKUP(D4694,Translation!$A:$C,3,FALSE),D4694)","v":"Terre-Neuve-et-Labrador"},{"$f":"IFERROR(VLOOKUP(E4694,Translation!$A:$C,3,FALSE),E4694)","v":14.462346138265683},{"$f":"IFERROR(VLOOKUP(F4694,Translation!$A:$C,3,FALSE),F4694)","v":"Avoir propre foncier moyen selon la province"},{"$f":"IFERROR(VLOOKUP(G4694,Translation!$A:$C,3,FALSE),G4694)","v":"14.5"},{"$f":"IFERROR(VLOOKUP(H4694,Translation!$A:$C,3,FALSE),H4694)","v":"Terre-Neuve-et-Labrador"}]
[27,"T1 2020","IMMEUBLES COLLECTIFS RÉSIDENTIELS","Nouveau-Brunswick",5.0747005122174889,"Avoir propre foncier moyen selon la province","5.1","Nouveau-Brunswick",{"$f":"IFERROR(VLOOKUP(A4697,Translation!$A:$C,3,FALSE),A4697)","v":27},{"$f":"IFERROR(VLOOKUP(B4697,Translation!$A:$C,3,FALSE),B4697)","v":"T1 2020"},{"$f":"IFERROR(VLOOKUP(C4697,Translation!$A:$C,3,FALSE),C4697)","v":"IMMEUBLES COLLECTIFS RÉSIDENTIELS"},{"$f":"IFERROR(VLOOKUP(D4697,Translation!$A:$C,3,FALSE),D4697)","v":"Nouveau-Brunswick"},{"$f":"IFERROR(VLOOKUP(E4697,Translation!$A:$C,3,FALSE),E4697)","v":5.0747005122174889},{"$f":"IFERROR(VLOOKUP(F4697,Translation!$A:$C,3,FALSE),F4697)","v":"Avoir propre foncier moyen selon la province"},{"$f":"IFERROR(VLOOKUP(G4697,Translation!$A:$C,3,FALSE),G4697)","v":"5.1"},{"$f":"IFERROR(VLOOKUP(H4697,Translation!$A:$C,3,FALSE),H4697)","v":"Nouveau-Brunswick"}]
[27,"T1 2020","IMMEUBLES COLLECTIFS RÉSIDENTIELS","Ontario",26.881297802027007,"Avoir propre foncier moyen selon la province","26.9","Ontario",{"$f":"IFERROR(VLOOKUP(A4699,Translation!$A:$C,3,FALSE),A4699)","v":27},{"$f":"IFERROR(VLOOKUP(B4699,Translation!$A:$C,3,FALSE),B4699)","v":"T1 2020"},{"$f":"IFERROR(VLOOKUP(C4699,Translation!$A:$C,3,FALSE),C4699)","v":"IMMEUBLES COLLECTIFS RÉSIDENTIELS"},{"$f":"IFERROR(VLOOKUP(D4699,Translation!$A:$C,3,FALSE),D4699)","v":"Ontario"},{"$f":"IFERROR(VLOOKUP(E4699,Translation!$A:$C,3,FALSE),E4699)","v":26.881297802027007},{"$f":"IFERROR(VLOOKUP(F4699,Translation!$A:$C,3,FALSE),F4699)","v":"Avoir propre foncier moyen selon la province"},{"$f":"IFERROR(VLOOKUP(G4699,Translation!$A:$C,3,FALSE),G4699)","v":"26.9"},{"$f":"IFERROR(VLOOKUP(H4699,Translation!$A:$C,3,FALSE),H4699)","v":"Ontario"}]
[27,"T1 2020","IMMEUBLES COLLECTIFS RÉSIDENTIELS","Colombie-Britannique",26.375571850855639,"Avoir propre foncier moyen selon la province","26.4","Colombie-Britannique",{"$f":"IFERROR(VLOOKUP(A4703,Translation!$A:$C,3,FALSE),A4703)","v":27},{"$f":"IFERROR(VLOOKUP(B4703,Translation!$A:$C,3,FALSE),B4703)","v":"T1 2020"},{"$f":"IFERROR(VLOOKUP(C4703,Translation!$A:$C,3,FALSE),C4703)","v":"IMMEUBLES COLLECTIFS RÉSIDENTIELS"},{"$f":"IFERROR(VLOOKUP(D4703,Translation!$A:$C,3,FALSE),D4703)","v":"Colombie-Britannique"},{"$f":"IFERROR(VLOOKUP(E4703,Translation!$A:$C,3,FALSE),E4703)","v":26.375571850855639},{"$f":"IFERROR(VLOOKUP(F4703,Translation!$A:$C,3,FALSE),F4703)","v":"Avoir propre foncier moyen selon la province"},{"$f":"IFERROR(VLOOKUP(G4703,Translation!$A:$C,3,FALSE),G4703)","v":"26.4"},{"$f":"IFERROR(VLOOKUP(H4703,Translation!$A:$C,3,FALSE),H4703)","v":"Colombie-Britannique"}]
[27,"Cumul 2019","IMMEUBLES COLLECTIFS RÉSIDENTIELS","Île-du-Prince-Édouard",26.700377645395751,"Avoir propre foncier moyen selon la province","26.7","Île-du-Prince-Édouard",{"$f":"IFERROR(VLOOKUP(A4704,Translation!$A:$C,3,FALSE),A4704)","v":27},{"$f":"IFERROR(VLOOKUP(B4704,Translation!$A:$C,3,FALSE),B4704)","v":"Cumul 2019"},{"$f":"IFERROR(VLOOKUP(C4704,Translation!$A:$C,3,FALSE),C4704)","v":"IMMEUBLES COLLECTIFS RÉSIDENTIELS"},{"$f":"IFERROR(VLOOKUP(D4704,Translation!$A:$C,3,FALSE),D4704)","v":"Île-du-Prince-Édouard"},{"$f":"IFERROR(VLOOKUP(E4704,Translation!$A:$C,3,FALSE),E4704)","v":26.700377645395751},{"$f":"IFERROR(VLOOKUP(F4704,Translation!$A:$C,3,FALSE),F4704)","v":"Avoir propre foncier moyen selon la province"},{"$f":"IFERROR(VLOOKUP(G4704,Translation!$A:$C,3,FALSE),G4704)","v":"26.7"},{"$f":"IFERROR(VLOOKUP(H4704,Translation!$A:$C,3,FALSE),H4704)","v":"Île-du-Prince-Édouard"}]
[27,"Cumul 2019","IMMEUBLES COLLECTIFS RÉSIDENTIELS","Québec",21.173474509143311,"Avoir propre foncier moyen selon la province","21.2","Québec",{"$f":"IFERROR(VLOOKUP(A4707,Translation!$A:$C,3,FALSE),A4707)","v":27},{"$f":"IFERROR(VLOOKUP(B4707,Translation!$A:$C,3,FALSE),B4707)","v":"Cumul 2019"},{"$f":"IFERROR(VLOOKUP(C4707,Translation!$A:$C,3,FALSE),C4707)","v":"IMMEUBLES COLLECTIFS RÉSIDENTIELS"},{"$f":"IFERROR(VLOOKUP(D4707,Translation!$A:$C,3,FALSE),D4707)","v":"Québec"},{"$f":"IFERROR(VLOOKUP(E4707,Translation!$A:$C,3,FALSE),E4707)","v":21.173474509143311},{"$f":"IFERROR(VLOOKUP(F4707,Translation!$A:$C,3,FALSE),F4707)","v":"Avoir propre foncier moyen selon la province"},{"$f":"IFERROR(VLOOKUP(G4707,Translation!$A:$C,3,FALSE),G4707)","v":"21.2"},{"$f":"IFERROR(VLOOKUP(H4707,Translation!$A:$C,3,FALSE),H4707)","v":"Québec"}]
[27,"Cumul 2019","IMMEUBLES COLLECTIFS RÉSIDENTIELS","Ontario",27.966126617167351,"Avoir propre foncier moyen selon la province","28.0","Ontario",{"$f":"IFERROR(VLOOKUP(A4708,Translation!$A:$C,3,FALSE),A4708)","v":27},{"$f":"IFERROR(VLOOKUP(B4708,Translation!$A:$C,3,FALSE),B4708)","v":"Cumul 2019"},{"$f":"IFERROR(VLOOKUP(C4708,Translation!$A:$C,3,FALSE),C4708)","v":"IMMEUBLES COLLECTIFS RÉSIDENTIELS"},{"$f":"IFERROR(VLOOKUP(D4708,Translation!$A:$C,3,FALSE),D4708)","v":"Ontario"},{"$f":"IFERROR(VLOOKUP(E4708,Translation!$A:$C,3,FALSE),E4708)","v":27.966126617167351},{"$f":"IFERROR(VLOOKUP(F4708,Translation!$A:$C,3,FALSE),F4708)","v":"Avoir propre foncier moyen selon la province"},{"$f":"IFERROR(VLOOKUP(G4708,Translation!$A:$C,3,FALSE),G4708)","v":"28.0"},{"$f":"IFERROR(VLOOKUP(H4708,Translation!$A:$C,3,FALSE),H4708)","v":"Ontario"}]
[27,"Cumul 2019","IMMEUBLES COLLECTIFS RÉSIDENTIELS","Colombie-Britannique",28.57593510180212,"Avoir propre foncier moyen selon la province","28.6","Colombie-Britannique",{"$f":"IFERROR(VLOOKUP(A4712,Translation!$A:$C,3,FALSE),A4712)","v":27},{"$f":"IFERROR(VLOOKUP(B4712,Translation!$A:$C,3,FALSE),B4712)","v":"Cumul 2019"},{"$f":"IFERROR(VLOOKUP(C4712,Translation!$A:$C,3,FALSE),C4712)","v":"IMMEUBLES COLLECTIFS RÉSIDENTIELS"},{"$f":"IFERROR(VLOOKUP(D4712,Translation!$A:$C,3,FALSE),D4712)","v":"Colombie-Britannique"},{"$f":"IFERROR(VLOOKUP(E4712,Translation!$A:$C,3,FALSE),E4712)","v":28.57593510180212},{"$f":"IFERROR(VLOOKUP(F4712,Translation!$A:$C,3,FALSE),F4712)","v":"Avoir propre foncier moyen selon la province"},{"$f":"IFERROR(VLOOKUP(G4712,Translation!$A:$C,3,FALSE),G4712)","v":"28.6"},{"$f":"IFERROR(VLOOKUP(H4712,Translation!$A:$C,3,FALSE),H4712)","v":"Colombie-Britannique"}]
[27,"Cumul 2020","IMMEUBLES COLLECTIFS RÉSIDENTIELS","Terre-Neuve-et-Labrador",14.462346138265683,"Avoir propre foncier moyen selon la province","14.5","Terre-Neuve-et-Labrador",{"$f":"IFERROR(VLOOKUP(A4714,Translation!$A:$C,3,FALSE),A4714)","v":27},{"$f":"IFERROR(VLOOKUP(B4714,Translation!$A:$C,3,FALSE),B4714)","v":"Cumul 2020"},{"$f":"IFERROR(VLOOKUP(C4714,Translation!$A:$C,3,FALSE),C4714)","v":"IMMEUBLES COLLECTIFS RÉSIDENTIELS"},{"$f":"IFERROR(VLOOKUP(D4714,Translation!$A:$C,3,FALSE),D4714)","v":"Terre-Neuve-et-Labrador"},{"$f":"IFERROR(VLOOKUP(E4714,Translation!$A:$C,3,FALSE),E4714)","v":14.462346138265683},{"$f":"IFERROR(VLOOKUP(F4714,Translation!$A:$C,3,FALSE),F4714)","v":"Avoir propre foncier moyen selon la province"},{"$f":"IFERROR(VLOOKUP(G4714,Translation!$A:$C,3,FALSE),G4714)","v":"14.5"},{"$f":"IFERROR(VLOOKUP(H4714,Translation!$A:$C,3,FALSE),H4714)","v":"Terre-Neuve-et-Labrador"}]
[27,"Cumul 2020","IMMEUBLES COLLECTIFS RÉSIDENTIELS","Nouveau-Brunswick",5.0747005122174889,"Avoir propre foncier moyen selon la province","5.1","Nouveau-Brunswick",{"$f":"IFERROR(VLOOKUP(A4717,Translation!$A:$C,3,FALSE),A4717)","v":27},{"$f":"IFERROR(VLOOKUP(B4717,Translation!$A:$C,3,FALSE),B4717)","v":"Cumul 2020"},{"$f":"IFERROR(VLOOKUP(C4717,Translation!$A:$C,3,FALSE),C4717)","v":"IMMEUBLES COLLECTIFS RÉSIDENTIELS"},{"$f":"IFERROR(VLOOKUP(D4717,Translation!$A:$C,3,FALSE),D4717)","v":"Nouveau-Brunswick"},{"$f":"IFERROR(VLOOKUP(E4717,Translation!$A:$C,3,FALSE),E4717)","v":5.0747005122174889},{"$f":"IFERROR(VLOOKUP(F4717,Translation!$A:$C,3,FALSE),F4717)","v":"Avoir propre foncier moyen selon la province"},{"$f":"IFERROR(VLOOKUP(G4717,Translation!$A:$C,3,FALSE),G4717)","v":"5.1"},{"$f":"IFERROR(VLOOKUP(H4717,Translation!$A:$C,3,FALSE),H4717)","v":"Nouveau-Brunswick"}]
[27,"Cumul 2020","IMMEUBLES COLLECTIFS RÉSIDENTIELS","Québec",22.166802606355827,"Avoir propre foncier moyen selon la province","22.2","Québec",{"$f":"IFERROR(VLOOKUP(A4718,Translation!$A:$C,3,FALSE),A4718)","v":27},{"$f":"IFERROR(VLOOKUP(B4718,Translation!$A:$C,3,FALSE),B4718)","v":"Cumul 2020"},{"$f":"IFERROR(VLOOKUP(C4718,Translation!$A:$C,3,FALSE),C4718)","v":"IMMEUBLES COLLECTIFS RÉSIDENTIELS"},{"$f":"IFERROR(VLOOKUP(D4718,Translation!$A:$C,3,FALSE),D4718)","v":"Québec"},{"$f":"IFERROR(VLOOKUP(E4718,Translation!$A:$C,3,FALSE),E4718)","v":22.166802606355827},{"$f":"IFERROR(VLOOKUP(F4718,Translation!$A:$C,3,FALSE),F4718)","v":"Avoir propre foncier moyen selon la province"},{"$f":"IFERROR(VLOOKUP(G4718,Translation!$A:$C,3,FALSE),G4718)","v":"22.2"},{"$f":"IFERROR(VLOOKUP(H4718,Translation!$A:$C,3,FALSE),H4718)","v":"Québec"}]
[27,"Cumul 2020","IMMEUBLES COLLECTIFS RÉSIDENTIELS","Alberta",21.78036315036308,"Avoir propre foncier moyen selon la province","21.8","Alberta",{"$f":"IFERROR(VLOOKUP(A4722,Translation!$A:$C,3,FALSE),A4722)","v":27},{"$f":"IFERROR(VLOOKUP(B4722,Translation!$A:$C,3,FALSE),B4722)","v":"Cumul 2020"},{"$f":"IFERROR(VLOOKUP(C4722,Translation!$A:$C,3,FALSE),C4722)","v":"IMMEUBLES COLLECTIFS RÉSIDENTIELS"},{"$f":"IFERROR(VLOOKUP(D4722,Translation!$A:$C,3,FALSE),D4722)","v":"Alberta"},{"$f":"IFERROR(VLOOKUP(E4722,Translation!$A:$C,3,FALSE),E4722)","v":21.78036315036308},{"$f":"IFERROR(VLOOKUP(F4722,Translation!$A:$C,3,FALSE),F4722)","v":"Avoir propre foncier moyen selon la province"},{"$f":"IFERROR(VLOOKUP(G4722,Translation!$A:$C,3,FALSE),G4722)","v":"21.8"},{"$f":"IFERROR(VLOOKUP(H4722,Translation!$A:$C,3,FALSE),H4722)","v":"Alberta"}]
[27,"Cumul 2020","IMMEUBLES COLLECTIFS RÉSIDENTIELS","Colombie-Britannique",26.375571850855639,"Avoir propre foncier moyen selon la province","26.4","Colombie-Britannique",{"$f":"IFERROR(VLOOKUP(A4723,Translation!$A:$C,3,FALSE),A4723)","v":27},{"$f":"IFERROR(VLOOKUP(B4723,Translation!$A:$C,3,FALSE),B4723)","v":"Cumul 2020"},{"$f":"IFERROR(VLOOKUP(C4723,Translation!$A:$C,3,FALSE),C4723)","v":"IMMEUBLES COLLECTIFS RÉSIDENTIELS"},{"$f":"IFERROR(VLOOKUP(D4723,Translation!$A:$C,3,FALSE),D4723)","v":"Colombie-Britannique"},{"$f":"IFERROR(VLOOKUP(E4723,Translation!$A:$C,3,FALSE),E4723)","v":26.375571850855639},{"$f":"IFERROR(VLOOKUP(F4723,Translation!$A:$C,3,FALSE),F4723)","v":"Avoir propre foncier moyen selon la province"},{"$f":"IFERROR(VLOOKUP(G4723,Translation!$A:$C,3,FALSE),G4723)","v":"26.4"},{"$f":"IFERROR(VLOOKUP(H4723,Translation!$A:$C,3,FALSE),H4723)","v":"Colombie-Britannique"}]
[7,"Cumul 2018","PROPRIÉTAIRES-OCCUPANTS, À L’UNITÉ","> 50 % <= 55 %",5.9209963728206E-2,"Prêts hypothécaires assurés au cours de la période selon le rapport prêt-valeur (RPV) établi d’après la valeur initiale de la propriété (%)","0.1"," > 50 % <= 55 %",{"$f":"IFERROR(VLOOKUP(A4727,Translation!$A:$C,3,FALSE),A4727)","v":7},{"$f":"IFERROR(VLOOKUP(B4727,Translation!$A:$C,3,FALSE),B4727)","v":"Cumul 2018"},{"$f":"IFERROR(VLOOKUP(C4727,Translation!$A:$C,3,FALSE),C4727)","v":"PROPRIÉTAIRES-OCCUPANTS, À L’UNITÉ"},{"$f":"IFERROR(VLOOKUP(D4727,Translation!$A:$C,3,FALSE),D4727)","v":"> 50 % <= 55 %"},{"$f":"IFERROR(VLOOKUP(E4727,Translation!$A:$C,3,FALSE),E4727)","v":5.9209963728206E-2},{"$f":"IFERROR(VLOOKUP(F4727,Translation!$A:$C,3,FALSE),F4727)","v":"Prêts hypothécaires assurés au cours de la période selon le rapport prêt-valeur (RPV) établi d’après la valeur initiale de la propriété (%)"},{"$f":"IFERROR(VLOOKUP(G4727,Translation!$A:$C,3,FALSE),G4727)","v":"0.1"},{"$f":"IFERROR(VLOOKUP(H4727,Translation!$A:$C,3,FALSE),H4727)","v":" > 50 % <= 55 %"}]
[7,"T4 2019","PROPRIÉTAIRES-OCCUPANTS, À L’UNITÉ","> 55 % <= 60 %",3.5722358319727039E-2,"Prêts hypothécaires assurés au cours de la période selon le rapport prêt-valeur (RPV) établi d’après la valeur initiale de la propriété (%)","0.0"," > 55 % <= 60 %",{"$f":"IFERROR(VLOOKUP(A4728,Translation!$A:$C,3,FALSE),A4728)","v":7},{"$f":"IFERROR(VLOOKUP(B4728,Translation!$A:$C,3,FALSE),B4728)","v":"T4 2019"},{"$f":"IFERROR(VLOOKUP(C4728,Translation!$A:$C,3,FALSE),C4728)","v":"PROPRIÉTAIRES-OCCUPANTS, À L’UNITÉ"},{"$f":"IFERROR(VLOOKUP(D4728,Translation!$A:$C,3,FALSE),D4728)","v":"> 55 % <= 60 %"},{"$f":"IFERROR(VLOOKUP(E4728,Translation!$A:$C,3,FALSE),E4728)","v":3.5722358319727039E-2},{"$f":"IFERROR(VLOOKUP(F4728,Translation!$A:$C,3,FALSE),F4728)","v":"Prêts hypothécaires assurés au cours de la période selon le rapport prêt-valeur (RPV) établi d’après la valeur initiale de la propriété (%)"},{"$f":"IFERROR(VLOOKUP(G4728,Translation!$A:$C,3,FALSE),G4728)","v":"0.0"},{"$f":"IFERROR(VLOOKUP(H4728,Translation!$A:$C,3,FALSE),H4728)","v":" > 55 % <= 60 %"}]
[7,"Cumul 2018","PROPRIÉTAIRES-OCCUPANTS, À L’UNITÉ","> 60 % <= 65 %",0.13588484311028562,"Prêts hypothécaires assurés au cours de la période selon le rapport prêt-valeur (RPV) établi d’après la valeur initiale de la propriété (%)","0.1"," > 60 % <= 65 %",{"$f":"IFERROR(VLOOKUP(A4731,Translation!$A:$C,3,FALSE),A4731)","v":7},{"$f":"IFERROR(VLOOKUP(B4731,Translation!$A:$C,3,FALSE),B4731)","v":"Cumul 2018"},{"$f":"IFERROR(VLOOKUP(C4731,Translation!$A:$C,3,FALSE),C4731)","v":"PROPRIÉTAIRES-OCCUPANTS, À L’UNITÉ"},{"$f":"IFERROR(VLOOKUP(D4731,Translation!$A:$C,3,FALSE),D4731)","v":"> 60 % <= 65 %"},{"$f":"IFERROR(VLOOKUP(E4731,Translation!$A:$C,3,FALSE),E4731)","v":0.13588484311028562},{"$f":"IFERROR(VLOOKUP(F4731,Translation!$A:$C,3,FALSE),F4731)","v":"Prêts hypothécaires assurés au cours de la période selon le rapport prêt-valeur (RPV) établi d’après la valeur initiale de la propriété (%)"},{"$f":"IFERROR(VLOOKUP(G4731,Translation!$A:$C,3,FALSE),G4731)","v":"0.1"},{"$f":"IFERROR(VLOOKUP(H4731,Translation!$A:$C,3,FALSE),H4731)","v":" > 60 % <= 65 %"}]
[7,"Cumul 2018","PROPRIÉTAIRES-OCCUPANTS, À L’UNITÉ","> 65 % <= 70 %",9.620090453457078E-2,"Prêts hypothécaires assurés au cours de la période selon le rapport prêt-valeur (RPV) établi d’après la valeur initiale de la propriété (%)","0.1"," > 65 % <= 70 %",{"$f":"IFERROR(VLOOKUP(A4733,Translation!$A:$C,3,FALSE),A4733)","v":7},{"$f":"IFERROR(VLOOKUP(B4733,Translation!$A:$C,3,FALSE),B4733)","v":"Cumul 2018"},{"$f":"IFERROR(VLOOKUP(C4733,Translation!$A:$C,3,FALSE),C4733)","v":"PROPRIÉTAIRES-OCCUPANTS, À L’UNITÉ"},{"$f":"IFERROR(VLOOKUP(D4733,Translation!$A:$C,3,FALSE),D4733)","v":"> 65 % <= 70 %"},{"$f":"IFERROR(VLOOKUP(E4733,Translation!$A:$C,3,FALSE),E4733)","v":9.620090453457078E-2},{"$f":"IFERROR(VLOOKUP(F4733,Translation!$A:$C,3,FALSE),F4733)","v":"Prêts hypothécaires assurés au cours de la période selon le rapport prêt-valeur (RPV) établi d’après la valeur initiale de la propriété (%)"},{"$f":"IFERROR(VLOOKUP(G4733,Translation!$A:$C,3,FALSE),G4733)","v":"0.1"},{"$f":"IFERROR(VLOOKUP(H4733,Translation!$A:$C,3,FALSE),H4733)","v":" > 65 % <= 70 %"}]
[7,"T4 2019","PROPRIÉTAIRES-OCCUPANTS, À L’UNITÉ","> 75 % <= 80 %",0.5668961259271772,"Prêts hypothécaires assurés au cours de la période selon le rapport prêt-valeur (RPV) établi d’après la valeur initiale de la propriété (%)","0.6"," > 75 % <= 80 %",{"$f":"IFERROR(VLOOKUP(A4736,Translation!$A:$C,3,FALSE),A4736)","v":7},{"$f":"IFERROR(VLOOKUP(B4736,Translation!$A:$C,3,FALSE),B4736)","v":"T4 2019"},{"$f":"IFERROR(VLOOKUP(C4736,Translation!$A:$C,3,FALSE),C4736)","v":"PROPRIÉTAIRES-OCCUPANTS, À L’UNITÉ"},{"$f":"IFERROR(VLOOKUP(D4736,Translation!$A:$C,3,FALSE),D4736)","v":"> 75 % <= 80 %"},{"$f":"IFERROR(VLOOKUP(E4736,Translation!$A:$C,3,FALSE),E4736)","v":0.5668961259271772},{"$f":"IFERROR(VLOOKUP(F4736,Translation!$A:$C,3,FALSE),F4736)","v":"Prêts hypothécaires assurés au cours de la période selon le rapport prêt-valeur (RPV) établi d’après la valeur initiale de la propriété (%)"},{"$f":"IFERROR(VLOOKUP(G4736,Translation!$A:$C,3,FALSE),G4736)","v":"0.6"},{"$f":"IFERROR(VLOOKUP(H4736,Translation!$A:$C,3,FALSE),H4736)","v":" > 75 % <= 80 %"}]
[7,"T4 2019","PROPRIÉTAIRES-OCCUPANTS, À L’UNITÉ","> 80 % <= 85 %",5.1729188547899323,"Prêts hypothécaires assurés au cours de la période selon le rapport prêt-valeur (RPV) établi d’après la valeur initiale de la propriété (%)","5.2"," > 80 % <= 85 %",{"$f":"IFERROR(VLOOKUP(A4738,Translation!$A:$C,3,FALSE),A4738)","v":7},{"$f":"IFERROR(VLOOKUP(B4738,Translation!$A:$C,3,FALSE),B4738)","v":"T4 2019"},{"$f":"IFERROR(VLOOKUP(C4738,Translation!$A:$C,3,FALSE),C4738)","v":"PROPRIÉTAIRES-OCCUPANTS, À L’UNITÉ"},{"$f":"IFERROR(VLOOKUP(D4738,Translation!$A:$C,3,FALSE),D4738)","v":"> 80 % <= 85 %"},{"$f":"IFERROR(VLOOKUP(E4738,Translation!$A:$C,3,FALSE),E4738)","v":5.1729188547899323},{"$f":"IFERROR(VLOOKUP(F4738,Translation!$A:$C,3,FALSE),F4738)","v":"Prêts hypothécaires assurés au cours de la période selon le rapport prêt-valeur (RPV) établi d’après la valeur initiale de la propriété (%)"},{"$f":"IFERROR(VLOOKUP(G4738,Translation!$A:$C,3,FALSE),G4738)","v":"5.2"},{"$f":"IFERROR(VLOOKUP(H4738,Translation!$A:$C,3,FALSE),H4738)","v":" > 80 % <= 85 %"}]
[7,"Cumul 2018","PROPRIÉTAIRES-OCCUPANTS, À L’UNITÉ","> 85 % <= 90 %",26.023939134928327,"Prêts hypothécaires assurés au cours de la période selon le rapport prêt-valeur (RPV) établi d’après la valeur initiale de la propriété (%)","26.0"," > 85 % <= 90 %",{"$f":"IFERROR(VLOOKUP(A4741,Translation!$A:$C,3,FALSE),A4741)","v":7},{"$f":"IFERROR(VLOOKUP(B4741,Translation!$A:$C,3,FALSE),B4741)","v":"Cumul 2018"},{"$f":"IFERROR(VLOOKUP(C4741,Translation!$A:$C,3,FALSE),C4741)","v":"PROPRIÉTAIRES-OCCUPANTS, À L’UNITÉ"},{"$f":"IFERROR(VLOOKUP(D4741,Translation!$A:$C,3,FALSE),D4741)","v":"> 85 % <= 90 %"},{"$f":"IFERROR(VLOOKUP(E4741,Translation!$A:$C,3,FALSE),E4741)","v":26.023939134928327},{"$f":"IFERROR(VLOOKUP(F4741,Translation!$A:$C,3,FALSE),F4741)","v":"Prêts hypothécaires assurés au cours de la période selon le rapport prêt-valeur (RPV) établi d’après la valeur initiale de la propriété (%)"},{"$f":"IFERROR(VLOOKUP(G4741,Translation!$A:$C,3,FALSE),G4741)","v":"26.0"},{"$f":"IFERROR(VLOOKUP(H4741,Translation!$A:$C,3,FALSE),H4741)","v":" > 85 % <= 90 %"}]
[7,"T4 2019","PROPRIÉTAIRES-OCCUPANTS, À L’UNITÉ","> 90 % <= 95 %",66.195290560269981,"Prêts hypothécaires assurés au cours de la période selon le rapport prêt-valeur (RPV) établi d’après la valeur initiale de la propriété (%)","66.2"," > 90 % <= 95 %",{"$f":"IFERROR(VLOOKUP(A4742,Translation!$A:$C,3,FALSE),A4742)","v":7},{"$f":"IFERROR(VLOOKUP(B4742,Translation!$A:$C,3,FALSE),B4742)","v":"T4 2019"},{"$f":"IFERROR(VLOOKUP(C4742,Translation!$A:$C,3,FALSE),C4742)","v":"PROPRIÉTAIRES-OCCUPANTS, À L’UNITÉ"},{"$f":"IFERROR(VLOOKUP(D4742,Translation!$A:$C,3,FALSE),D4742)","v":"> 90 % <= 95 %"},{"$f":"IFERROR(VLOOKUP(E4742,Translation!$A:$C,3,FALSE),E4742)","v":66.195290560269981},{"$f":"IFERROR(VLOOKUP(F4742,Translation!$A:$C,3,FALSE),F4742)","v":"Prêts hypothécaires assurés au cours de la période selon le rapport prêt-valeur (RPV) établi d’après la valeur initiale de la propriété (%)"},{"$f":"IFERROR(VLOOKUP(G4742,Translation!$A:$C,3,FALSE),G4742)","v":"66.2"},{"$f":"IFERROR(VLOOKUP(H4742,Translation!$A:$C,3,FALSE),H4742)","v":" > 90 % <= 95 %"}]
[7,"T4 2019","PROPRIÉTAIRES-OCCUPANTS, À L’UNITÉ","Avoir propre foncier moyen ",7.6465572053244397,"Prêts hypothécaires assurés au cours de la période selon le rapport prêt-valeur (RPV) établi d’après la valeur initiale de la propriété (%)","7.6","Avoir propre foncier moyen ",{"$f":"IFERROR(VLOOKUP(A4746,Translation!$A:$C,3,FALSE),A4746)","v":7},{"$f":"IFERROR(VLOOKUP(B4746,Translation!$A:$C,3,FALSE),B4746)","v":"T4 2019"},{"$f":"IFERROR(VLOOKUP(C4746,Translation!$A:$C,3,FALSE),C4746)","v":"PROPRIÉTAIRES-OCCUPANTS, À L’UNITÉ"},{"$f":"IFERROR(VLOOKUP(D4746,Translation!$A:$C,3,FALSE),D4746)","v":"Avoir propre foncier moyen "},{"$f":"IFERROR(VLOOKUP(E4746,Translation!$A:$C,3,FALSE),E4746)","v":7.6465572053244397},{"$f":"IFERROR(VLOOKUP(F4746,Translation!$A:$C,3,FALSE),F4746)","v":"Prêts hypothécaires assurés au cours de la période selon le rapport prêt-valeur (RPV) établi d’après la valeur initiale de la propriété (%)"},{"$f":"IFERROR(VLOOKUP(G4746,Translation!$A:$C,3,FALSE),G4746)","v":"7.6"},{"$f":"IFERROR(VLOOKUP(H4746,Translation!$A:$C,3,FALSE),H4746)","v":"Avoir propre foncier moyen "}]
[7,"Cumul 2018","PROPRIÉTAIRES-OCCUPANTS, À L’UNITÉ","Avoir propre foncier moyen ",7.6579282746780688,"Prêts hypothécaires assurés au cours de la période selon le rapport prêt-valeur (RPV) établi d’après la valeur initiale de la propriété (%)","7.7","Avoir propre foncier moyen ",{"$f":"IFERROR(VLOOKUP(A4747,Translation!$A:$C,3,FALSE),A4747)","v":7},{"$f":"IFERROR(VLOOKUP(B4747,Translation!$A:$C,3,FALSE),B4747)","v":"Cumul 2018"},{"$f":"IFERROR(VLOOKUP(C4747,Translation!$A:$C,3,FALSE),C4747)","v":"PROPRIÉTAIRES-OCCUPANTS, À L’UNITÉ"},{"$f":"IFERROR(VLOOKUP(D4747,Translation!$A:$C,3,FALSE),D4747)","v":"Avoir propre foncier moyen "},{"$f":"IFERROR(VLOOKUP(E4747,Translation!$A:$C,3,FALSE),E4747)","v":7.6579282746780688},{"$f":"IFERROR(VLOOKUP(F4747,Translation!$A:$C,3,FALSE),F4747)","v":"Prêts hypothécaires assurés au cours de la période selon le rapport prêt-valeur (RPV) établi d’après la valeur initiale de la propriété (%)"},{"$f":"IFERROR(VLOOKUP(G4747,Translation!$A:$C,3,FALSE),G4747)","v":"7.7"},{"$f":"IFERROR(VLOOKUP(H4747,Translation!$A:$C,3,FALSE),H4747)","v":"Avoir propre foncier moyen "}]
[7,"T4 2019","PROPRIÉTAIRES-OCCUPANTS, À L’UNITÉ","Île-du-Prince-Édouard",7.2155268647969821,"Avoir propre foncier moyen selon la province","7.2","Île-du-Prince-Édouard",{"$f":"IFERROR(VLOOKUP(A4749,Translation!$A:$C,3,FALSE),A4749)","v":7},{"$f":"IFERROR(VLOOKUP(B4749,Translation!$A:$C,3,FALSE),B4749)","v":"T4 2019"},{"$f":"IFERROR(VLOOKUP(C4749,Translation!$A:$C,3,FALSE),C4749)","v":"PROPRIÉTAIRES-OCCUPANTS, À L’UNITÉ"},{"$f":"IFERROR(VLOOKUP(D4749,Translation!$A:$C,3,FALSE),D4749)","v":"Île-du-Prince-Édouard"},{"$f":"IFERROR(VLOOKUP(E4749,Translation!$A:$C,3,FALSE),E4749)","v":7.2155268647969821},{"$f":"IFERROR(VLOOKUP(F4749,Translation!$A:$C,3,FALSE),F4749)","v":"Avoir propre foncier moyen selon la province"},{"$f":"IFERROR(VLOOKUP(G4749,Translation!$A:$C,3,FALSE),G4749)","v":"7.2"},{"$f":"IFERROR(VLOOKUP(H4749,Translation!$A:$C,3,FALSE),H4749)","v":"Île-du-Prince-Édouard"}]
[7,"T4 2019","PROPRIÉTAIRES-OCCUPANTS, À L’UNITÉ","Québec",7.3123332919129505,"Avoir propre foncier moyen selon la province","7.3","Québec",{"$f":"IFERROR(VLOOKUP(A4752,Translation!$A:$C,3,FALSE),A4752)","v":7},{"$f":"IFERROR(VLOOKUP(B4752,Translation!$A:$C,3,FALSE),B4752)","v":"T4 2019"},{"$f":"IFERROR(VLOOKUP(C4752,Translation!$A:$C,3,FALSE),C4752)","v":"PROPRIÉTAIRES-OCCUPANTS, À L’UNITÉ"},{"$f":"IFERROR(VLOOKUP(D4752,Translation!$A:$C,3,FALSE),D4752)","v":"Québec"},{"$f":"IFERROR(VLOOKUP(E4752,Translation!$A:$C,3,FALSE),E4752)","v":7.3123332919129505},{"$f":"IFERROR(VLOOKUP(F4752,Translation!$A:$C,3,FALSE),F4752)","v":"Avoir propre foncier moyen selon la province"},{"$f":"IFERROR(VLOOKUP(G4752,Translation!$A:$C,3,FALSE),G4752)","v":"7.3"},{"$f":"IFERROR(VLOOKUP(H4752,Translation!$A:$C,3,FALSE),H4752)","v":"Québec"}]
[7,"T4 2019","PROPRIÉTAIRES-OCCUPANTS, À L’UNITÉ","Saskatchewan",6.7408407635482348,"Avoir propre foncier moyen selon la province","6.7","Saskatchewan",{"$f":"IFERROR(VLOOKUP(A4755,Translation!$A:$C,3,FALSE),A4755)","v":7},{"$f":"IFERROR(VLOOKUP(B4755,Translation!$A:$C,3,FALSE),B4755)","v":"T4 2019"},{"$f":"IFERROR(VLOOKUP(C4755,Translation!$A:$C,3,FALSE),C4755)","v":"PROPRIÉTAIRES-OCCUPANTS, À L’UNITÉ"},{"$f":"IFERROR(VLOOKUP(D4755,Translation!$A:$C,3,FALSE),D4755)","v":"Saskatchewan"},{"$f":"IFERROR(VLOOKUP(E4755,Translation!$A:$C,3,FALSE),E4755)","v":6.7408407635482348},{"$f":"IFERROR(VLOOKUP(F4755,Translation!$A:$C,3,FALSE),F4755)","v":"Avoir propre foncier moyen selon la province"},{"$f":"IFERROR(VLOOKUP(G4755,Translation!$A:$C,3,FALSE),G4755)","v":"6.7"},{"$f":"IFERROR(VLOOKUP(H4755,Translation!$A:$C,3,FALSE),H4755)","v":"Saskatchewan"}]
[7,"T4 2019","PROPRIÉTAIRES-OCCUPANTS, À L’UNITÉ","Colombie-Britannique",8.2916407453097207,"Avoir propre foncier moyen selon la province","8.3","Colombie-Britannique",{"$f":"IFERROR(VLOOKUP(A4757,Translation!$A:$C,3,FALSE),A4757)","v":7},{"$f":"IFERROR(VLOOKUP(B4757,Translation!$A:$C,3,FALSE),B4757)","v":"T4 2019"},{"$f":"IFERROR(VLOOKUP(C4757,Translation!$A:$C,3,FALSE),C4757)","v":"PROPRIÉTAIRES-OCCUPANTS, À L’UNITÉ"},{"$f":"IFERROR(VLOOKUP(D4757,Translation!$A:$C,3,FALSE),D4757)","v":"Colombie-Britannique"},{"$f":"IFERROR(VLOOKUP(E4757,Translation!$A:$C,3,FALSE),E4757)","v":8.2916407453097207},{"$f":"IFERROR(VLOOKUP(F4757,Translation!$A:$C,3,FALSE),F4757)","v":"Avoir propre foncier moyen selon la province"},{"$f":"IFERROR(VLOOKUP(G4757,Translation!$A:$C,3,FALSE),G4757)","v":"8.3"},{"$f":"IFERROR(VLOOKUP(H4757,Translation!$A:$C,3,FALSE),H4757)","v":"Colombie-Britannique"}]
[7,"Cumul 2018","PROPRIÉTAIRES-OCCUPANTS, À L’UNITÉ","Île-du-Prince-Édouard",7.3288066886938177,"Avoir propre foncier moyen selon la province","7.3","Île-du-Prince-Édouard",{"$f":"IFERROR(VLOOKUP(A4760,Translation!$A:$C,3,FALSE),A4760)","v":7},{"$f":"IFERROR(VLOOKUP(B4760,Translation!$A:$C,3,FALSE),B4760)","v":"Cumul 2018"},{"$f":"IFERROR(VLOOKUP(C4760,Translation!$A:$C,3,FALSE),C4760)","v":"PROPRIÉTAIRES-OCCUPANTS, À L’UNITÉ"},{"$f":"IFERROR(VLOOKUP(D4760,Translation!$A:$C,3,FALSE),D4760)","v":"Île-du-Prince-Édouard"},{"$f":"IFERROR(VLOOKUP(E4760,Translation!$A:$C,3,FALSE),E4760)","v":7.3288066886938177},{"$f":"IFERROR(VLOOKUP(F4760,Translation!$A:$C,3,FALSE),F4760)","v":"Avoir propre foncier moyen selon la province"},{"$f":"IFERROR(VLOOKUP(G4760,Translation!$A:$C,3,FALSE),G4760)","v":"7.3"},{"$f":"IFERROR(VLOOKUP(H4760,Translation!$A:$C,3,FALSE),H4760)","v":"Île-du-Prince-Édouard"}]
[7,"Cumul 2018","PROPRIÉTAIRES-OCCUPANTS, À L’UNITÉ","Québec",7.0493126863682258,"Avoir propre foncier moyen selon la province","7.0","Québec",{"$f":"IFERROR(VLOOKUP(A4763,Translation!$A:$C,3,FALSE),A4763)","v":7},{"$f":"IFERROR(VLOOKUP(B4763,Translation!$A:$C,3,FALSE),B4763)","v":"Cumul 2018"},{"$f":"IFERROR(VLOOKUP(C4763,Translation!$A:$C,3,FALSE),C4763)","v":"PROPRIÉTAIRES-OCCUPANTS, À L’UNITÉ"},{"$f":"IFERROR(VLOOKUP(D4763,Translation!$A:$C,3,FALSE),D4763)","v":"Québec"},{"$f":"IFERROR(VLOOKUP(E4763,Translation!$A:$C,3,FALSE),E4763)","v":7.0493126863682258},{"$f":"IFERROR(VLOOKUP(F4763,Translation!$A:$C,3,FALSE),F4763)","v":"Avoir propre foncier moyen selon la province"},{"$f":"IFERROR(VLOOKUP(G4763,Translation!$A:$C,3,FALSE),G4763)","v":"7.0"},{"$f":"IFERROR(VLOOKUP(H4763,Translation!$A:$C,3,FALSE),H4763)","v":"Québec"}]
[7,"Cumul 2018","PROPRIÉTAIRES-OCCUPANTS, À L’UNITÉ","Manitoba",6.5900858436855847,"Avoir propre foncier moyen selon la province","6.6","Manitoba",{"$f":"IFERROR(VLOOKUP(A4765,Translation!$A:$C,3,FALSE),A4765)","v":7},{"$f":"IFERROR(VLOOKUP(B4765,Translation!$A:$C,3,FALSE),B4765)","v":"Cumul 2018"},{"$f":"IFERROR(VLOOKUP(C4765,Translation!$A:$C,3,FALSE),C4765)","v":"PROPRIÉTAIRES-OCCUPANTS, À L’UNITÉ"},{"$f":"IFERROR(VLOOKUP(D4765,Translation!$A:$C,3,FALSE),D4765)","v":"Manitoba"},{"$f":"IFERROR(VLOOKUP(E4765,Translation!$A:$C,3,FALSE),E4765)","v":6.5900858436855847},{"$f":"IFERROR(VLOOKUP(F4765,Translation!$A:$C,3,FALSE),F4765)","v":"Avoir propre foncier moyen selon la province"},{"$f":"IFERROR(VLOOKUP(G4765,Translation!$A:$C,3,FALSE),G4765)","v":"6.6"},{"$f":"IFERROR(VLOOKUP(H4765,Translation!$A:$C,3,FALSE),H4765)","v":"Manitoba"}]
[7,"Cumul 2018","PROPRIÉTAIRES-OCCUPANTS, À L’UNITÉ","Saskatchewan",6.7112337557678359,"Avoir propre foncier moyen selon la province","6.7","Saskatchewan",{"$f":"IFERROR(VLOOKUP(A4766,Translation!$A:$C,3,FALSE),A4766)","v":7},{"$f":"IFERROR(VLOOKUP(B4766,Translation!$A:$C,3,FALSE),B4766)","v":"Cumul 2018"},{"$f":"IFERROR(VLOOKUP(C4766,Translation!$A:$C,3,FALSE),C4766)","v":"PROPRIÉTAIRES-OCCUPANTS, À L’UNITÉ"},{"$f":"IFERROR(VLOOKUP(D4766,Translation!$A:$C,3,FALSE),D4766)","v":"Saskatchewan"},{"$f":"IFERROR(VLOOKUP(E4766,Translation!$A:$C,3,FALSE),E4766)","v":6.7112337557678359},{"$f":"IFERROR(VLOOKUP(F4766,Translation!$A:$C,3,FALSE),F4766)","v":"Avoir propre foncier moyen selon la province"},{"$f":"IFERROR(VLOOKUP(G4766,Translation!$A:$C,3,FALSE),G4766)","v":"6.7"},{"$f":"IFERROR(VLOOKUP(H4766,Translation!$A:$C,3,FALSE),H4766)","v":"Saskatchewan"}]
[7,"Cumul 2018","PROPRIÉTAIRES-OCCUPANTS, À L’UNITÉ","Colombie-Britannique",8.827235126649045,"Avoir propre foncier moyen selon la province","8.8","Colombie-Britannique",{"$f":"IFERROR(VLOOKUP(A4768,Translation!$A:$C,3,FALSE),A4768)","v":7},{"$f":"IFERROR(VLOOKUP(B4768,Translation!$A:$C,3,FALSE),B4768)","v":"Cumul 2018"},{"$f":"IFERROR(VLOOKUP(C4768,Translation!$A:$C,3,FALSE),C4768)","v":"PROPRIÉTAIRES-OCCUPANTS, À L’UNITÉ"},{"$f":"IFERROR(VLOOKUP(D4768,Translation!$A:$C,3,FALSE),D4768)","v":"Colombie-Britannique"},{"$f":"IFERROR(VLOOKUP(E4768,Translation!$A:$C,3,FALSE),E4768)","v":8.827235126649045},{"$f":"IFERROR(VLOOKUP(F4768,Translation!$A:$C,3,FALSE),F4768)","v":"Avoir propre foncier moyen selon la province"},{"$f":"IFERROR(VLOOKUP(G4768,Translation!$A:$C,3,FALSE),G4768)","v":"8.8"},{"$f":"IFERROR(VLOOKUP(H4768,Translation!$A:$C,3,FALSE),H4768)","v":"Colombie-Britannique"}]
[7,"Cumul 2018","ASSURANCE DE PORTEFEUILLE","<= 50 %",27.370460958265721,"Prêts hypothécaires assurés au cours de la période selon le rapport prêt-valeur (RPV) établi d’après la valeur initiale de la propriété (%)","27.4"," <= 50 %",{"$f":"IFERROR(VLOOKUP(A4771,Translation!$A:$C,3,FALSE),A4771)","v":7},{"$f":"IFERROR(VLOOKUP(B4771,Translation!$A:$C,3,FALSE),B4771)","v":"Cumul 2018"},{"$f":"IFERROR(VLOOKUP(C4771,Translation!$A:$C,3,FALSE),C4771)","v":"ASSURANCE DE PORTEFEUILLE"},{"$f":"IFERROR(VLOOKUP(D4771,Translation!$A:$C,3,FALSE),D4771)","v":"<= 50 %"},{"$f":"IFERROR(VLOOKUP(E4771,Translation!$A:$C,3,FALSE),E4771)","v":27.370460958265721},{"$f":"IFERROR(VLOOKUP(F4771,Translation!$A:$C,3,FALSE),F4771)","v":"Prêts hypothécaires assurés au cours de la période selon le rapport prêt-valeur (RPV) établi d’après la valeur initiale de la propriété (%)"},{"$f":"IFERROR(VLOOKUP(G4771,Translation!$A:$C,3,FALSE),G4771)","v":"27.4"},{"$f":"IFERROR(VLOOKUP(H4771,Translation!$A:$C,3,FALSE),H4771)","v":" <= 50 %"}]
[7,"T4 2019","ASSURANCE DE PORTEFEUILLE","> 55 % <= 60 %",6.5129642719137948,"Prêts hypothécaires assurés au cours de la période selon le rapport prêt-valeur (RPV) établi d’après la valeur initiale de la propriété (%)","6.5"," > 55 % <= 60 %",{"$f":"IFERROR(VLOOKUP(A4774,Translation!$A:$C,3,FALSE),A4774)","v":7},{"$f":"IFERROR(VLOOKUP(B4774,Translation!$A:$C,3,FALSE),B4774)","v":"T4 2019"},{"$f":"IFERROR(VLOOKUP(C4774,Translation!$A:$C,3,FALSE),C4774)","v":"ASSURANCE DE PORTEFEUILLE"},{"$f":"IFERROR(VLOOKUP(D4774,Translation!$A:$C,3,FALSE),D4774)","v":"> 55 % <= 60 %"},{"$f":"IFERROR(VLOOKUP(E4774,Translation!$A:$C,3,FALSE),E4774)","v":6.5129642719137948},{"$f":"IFERROR(VLOOKUP(F4774,Translation!$A:$C,3,FALSE),F4774)","v":"Prêts hypothécaires assurés au cours de la période selon le rapport prêt-valeur (RPV) établi d’après la valeur initiale de la propriété (%)"},{"$f":"IFERROR(VLOOKUP(G4774,Translation!$A:$C,3,FALSE),G4774)","v":"6.5"},{"$f":"IFERROR(VLOOKUP(H4774,Translation!$A:$C,3,FALSE),H4774)","v":" > 55 % <= 60 %"}]
[7,"T4 2019","ASSURANCE DE PORTEFEUILLE","> 60 % <= 65 %",8.6389122903950817,"Prêts hypothécaires assurés au cours de la période selon le rapport prêt-valeur (RPV) établi d’après la valeur initiale de la propriété (%)","8.6"," > 60 % <= 65 %",{"$f":"IFERROR(VLOOKUP(A4776,Translation!$A:$C,3,FALSE),A4776)","v":7},{"$f":"IFERROR(VLOOKUP(B4776,Translation!$A:$C,3,FALSE),B4776)","v":"T4 2019"},{"$f":"IFERROR(VLOOKUP(C4776,Translation!$A:$C,3,FALSE),C4776)","v":"ASSURANCE DE PORTEFEUILLE"},{"$f":"IFERROR(VLOOKUP(D4776,Translation!$A:$C,3,FALSE),D4776)","v":"> 60 % <= 65 %"},{"$f":"IFERROR(VLOOKUP(E4776,Translation!$A:$C,3,FALSE),E4776)","v":8.6389122903950817},{"$f":"IFERROR(VLOOKUP(F4776,Translation!$A:$C,3,FALSE),F4776)","v":"Prêts hypothécaires assurés au cours de la période selon le rapport prêt-valeur (RPV) établi d’après la valeur initiale de la propriété (%)"},{"$f":"IFERROR(VLOOKUP(G4776,Translation!$A:$C,3,FALSE),G4776)","v":"8.6"},{"$f":"IFERROR(VLOOKUP(H4776,Translation!$A:$C,3,FALSE),H4776)","v":" > 60 % <= 65 %"}]
[7,"Cumul 2018","ASSURANCE DE PORTEFEUILLE","> 65 % <= 70 %",10.646584158118287,"Prêts hypothécaires assurés au cours de la période selon le rapport prêt-valeur (RPV) établi d’après la valeur initiale de la propriété (%)","10.6"," > 65 % <= 70 %",{"$f":"IFERROR(VLOOKUP(A4779,Translation!$A:$C,3,FALSE),A4779)","v":7},{"$f":"IFERROR(VLOOKUP(B4779,Translation!$A:$C,3,FALSE),B4779)","v":"Cumul 2018"},{"$f":"IFERROR(VLOOKUP(C4779,Translation!$A:$C,3,FALSE),C4779)","v":"ASSURANCE DE PORTEFEUILLE"},{"$f":"IFERROR(VLOOKUP(D4779,Translation!$A:$C,3,FALSE),D4779)","v":"> 65 % <= 70 %"},{"$f":"IFERROR(VLOOKUP(E4779,Translation!$A:$C,3,FALSE),E4779)","v":10.646584158118287},{"$f":"IFERROR(VLOOKUP(F4779,Translation!$A:$C,3,FALSE),F4779)","v":"Prêts hypothécaires assurés au cours de la période selon le rapport prêt-valeur (RPV) établi d’après la valeur initiale de la propriété (%)"},{"$f":"IFERROR(VLOOKUP(G4779,Translation!$A:$C,3,FALSE),G4779)","v":"10.6"},{"$f":"IFERROR(VLOOKUP(H4779,Translation!$A:$C,3,FALSE),H4779)","v":" > 65 % <= 70 %"}]
[7,"T4 2019","ASSURANCE DE PORTEFEUILLE","> 75 % <= 80 %",44.276861807822407,"Prêts hypothécaires assurés au cours de la période selon le rapport prêt-valeur (RPV) établi d’après la valeur initiale de la propriété (%)","44.3"," > 75 % <= 80 %",{"$f":"IFERROR(VLOOKUP(A4782,Translation!$A:$C,3,FALSE),A4782)","v":7},{"$f":"IFERROR(VLOOKUP(B4782,Translation!$A:$C,3,FALSE),B4782)","v":"T4 2019"},{"$f":"IFERROR(VLOOKUP(C4782,Translation!$A:$C,3,FALSE),C4782)","v":"ASSURANCE DE PORTEFEUILLE"},{"$f":"IFERROR(VLOOKUP(D4782,Translation!$A:$C,3,FALSE),D4782)","v":"> 75 % <= 80 %"},{"$f":"IFERROR(VLOOKUP(E4782,Translation!$A:$C,3,FALSE),E4782)","v":44.276861807822407},{"$f":"IFERROR(VLOOKUP(F4782,Translation!$A:$C,3,FALSE),F4782)","v":"Prêts hypothécaires assurés au cours de la période selon le rapport prêt-valeur (RPV) établi d’après la valeur initiale de la propriété (%)"},{"$f":"IFERROR(VLOOKUP(G4782,Translation!$A:$C,3,FALSE),G4782)","v":"44.3"},{"$f":"IFERROR(VLOOKUP(H4782,Translation!$A:$C,3,FALSE),H4782)","v":" > 75 % <= 80 %"}]
[7,"T4 2019","ASSURANCE DE PORTEFEUILLE","Rapport prêt-valeur moyen ",66.407285332123578,"Prêts hypothécaires assurés au cours de la période selon le rapport prêt-valeur (RPV) établi d’après la valeur initiale de la propriété (%)","66.4","Rapport prêt-valeur moyen ",{"$f":"IFERROR(VLOOKUP(A4784,Translation!$A:$C,3,FALSE),A4784)","v":7},{"$f":"IFERROR(VLOOKUP(B4784,Translation!$A:$C,3,FALSE),B4784)","v":"T4 2019"},{"$f":"IFERROR(VLOOKUP(C4784,Translation!$A:$C,3,FALSE),C4784)","v":"ASSURANCE DE PORTEFEUILLE"},{"$f":"IFERROR(VLOOKUP(D4784,Translation!$A:$C,3,FALSE),D4784)","v":"Rapport prêt-valeur moyen "},{"$f":"IFERROR(VLOOKUP(E4784,Translation!$A:$C,3,FALSE),E4784)","v":66.407285332123578},{"$f":"IFERROR(VLOOKUP(F4784,Translation!$A:$C,3,FALSE),F4784)","v":"Prêts hypothécaires assurés au cours de la période selon le rapport prêt-valeur (RPV) établi d’après la valeur initiale de la propriété (%)"},{"$f":"IFERROR(VLOOKUP(G4784,Translation!$A:$C,3,FALSE),G4784)","v":"66.4"},{"$f":"IFERROR(VLOOKUP(H4784,Translation!$A:$C,3,FALSE),H4784)","v":"Rapport prêt-valeur moyen "}]
[7,"Cumul 2018","ASSURANCE DE PORTEFEUILLE","Rapport prêt-valeur moyen ",59.554470496363649,"Prêts hypothécaires assurés au cours de la période selon le rapport prêt-valeur (RPV) établi d’après la valeur initiale de la propriété (%)","59.6","Rapport prêt-valeur moyen ",{"$f":"IFERROR(VLOOKUP(A4785,Translation!$A:$C,3,FALSE),A4785)","v":7},{"$f":"IFERROR(VLOOKUP(B4785,Translation!$A:$C,3,FALSE),B4785)","v":"Cumul 2018"},{"$f":"IFERROR(VLOOKUP(C4785,Translation!$A:$C,3,FALSE),C4785)","v":"ASSURANCE DE PORTEFEUILLE"},{"$f":"IFERROR(VLOOKUP(D4785,Translation!$A:$C,3,FALSE),D4785)","v":"Rapport prêt-valeur moyen "},{"$f":"IFERROR(VLOOKUP(E4785,Translation!$A:$C,3,FALSE),E4785)","v":59.554470496363649},{"$f":"IFERROR(VLOOKUP(F4785,Translation!$A:$C,3,FALSE),F4785)","v":"Prêts hypothécaires assurés au cours de la période selon le rapport prêt-valeur (RPV) établi d’après la valeur initiale de la propriété (%)"},{"$f":"IFERROR(VLOOKUP(G4785,Translation!$A:$C,3,FALSE),G4785)","v":"59.6"},{"$f":"IFERROR(VLOOKUP(H4785,Translation!$A:$C,3,FALSE),H4785)","v":"Rapport prêt-valeur moyen "}]
[7,"T4 2019","ASSURANCE DE PORTEFEUILLE","Île-du-Prince-Édouard",31.247854005379558,"Avoir propre foncier moyen selon la province","31.2","Île-du-Prince-Édouard",{"$f":"IFERROR(VLOOKUP(A4789,Translation!$A:$C,3,FALSE),A4789)","v":7},{"$f":"IFERROR(VLOOKUP(B4789,Translation!$A:$C,3,FALSE),B4789)","v":"T4 2019"},{"$f":"IFERROR(VLOOKUP(C4789,Translation!$A:$C,3,FALSE),C4789)","v":"ASSURANCE DE PORTEFEUILLE"},{"$f":"IFERROR(VLOOKUP(D4789,Translation!$A:$C,3,FALSE),D4789)","v":"Île-du-Prince-Édouard"},{"$f":"IFERROR(VLOOKUP(E4789,Translation!$A:$C,3,FALSE),E4789)","v":31.247854005379558},{"$f":"IFERROR(VLOOKUP(F4789,Translation!$A:$C,3,FALSE),F4789)","v":"Avoir propre foncier moyen selon la province"},{"$f":"IFERROR(VLOOKUP(G4789,Translation!$A:$C,3,FALSE),G4789)","v":"31.2"},{"$f":"IFERROR(VLOOKUP(H4789,Translation!$A:$C,3,FALSE),H4789)","v":"Île-du-Prince-Édouard"}]
[7,"T4 2019","ASSURANCE DE PORTEFEUILLE","Nouvelle-Écosse",28.722866419228023,"Avoir propre foncier moyen selon la province","28.7","Nouvelle-Écosse",{"$f":"IFERROR(VLOOKUP(A4790,Translation!$A:$C,3,FALSE),A4790)","v":7},{"$f":"IFERROR(VLOOKUP(B4790,Translation!$A:$C,3,FALSE),B4790)","v":"T4 2019"},{"$f":"IFERROR(VLOOKUP(C4790,Translation!$A:$C,3,FALSE),C4790)","v":"ASSURANCE DE PORTEFEUILLE"},{"$f":"IFERROR(VLOOKUP(D4790,Translation!$A:$C,3,FALSE),D4790)","v":"Nouvelle-Écosse"},{"$f":"IFERROR(VLOOKUP(E4790,Translation!$A:$C,3,FALSE),E4790)","v":28.722866419228023},{"$f":"IFERROR(VLOOKUP(F4790,Translation!$A:$C,3,FALSE),F4790)","v":"Avoir propre foncier moyen selon la province"},{"$f":"IFERROR(VLOOKUP(G4790,Translation!$A:$C,3,FALSE),G4790)","v":"28.7"},{"$f":"IFERROR(VLOOKUP(H4790,Translation!$A:$C,3,FALSE),H4790)","v":"Nouvelle-Écosse"}]
[7,"T4 2019","ASSURANCE DE PORTEFEUILLE","Ontario",34.79242328186011,"Avoir propre foncier moyen selon la province","34.8","Ontario",{"$f":"IFERROR(VLOOKUP(A4793,Translation!$A:$C,3,FALSE),A4793)","v":7},{"$f":"IFERROR(VLOOKUP(B4793,Translation!$A:$C,3,FALSE),B4793)","v":"T4 2019"},{"$f":"IFERROR(VLOOKUP(C4793,Translation!$A:$C,3,FALSE),C4793)","v":"ASSURANCE DE PORTEFEUILLE"},{"$f":"IFERROR(VLOOKUP(D4793,Translation!$A:$C,3,FALSE),D4793)","v":"Ontario"},{"$f":"IFERROR(VLOOKUP(E4793,Translation!$A:$C,3,FALSE),E4793)","v":34.79242328186011},{"$f":"IFERROR(VLOOKUP(F4793,Translation!$A:$C,3,FALSE),F4793)","v":"Avoir propre foncier moyen selon la province"},{"$f":"IFERROR(VLOOKUP(G4793,Translation!$A:$C,3,FALSE),G4793)","v":"34.8"},{"$f":"IFERROR(VLOOKUP(H4793,Translation!$A:$C,3,FALSE),H4793)","v":"Ontario"}]
[7,"T4 2019","ASSURANCE DE PORTEFEUILLE","Saskatchewan",33.419216269599161,"Avoir propre foncier moyen selon la province","33.4","Saskatchewan",{"$f":"IFERROR(VLOOKUP(A4795,Translation!$A:$C,3,FALSE),A4795)","v":7},{"$f":"IFERROR(VLOOKUP(B4795,Translation!$A:$C,3,FALSE),B4795)","v":"T4 2019"},{"$f":"IFERROR(VLOOKUP(C4795,Translation!$A:$C,3,FALSE),C4795)","v":"ASSURANCE DE PORTEFEUILLE"},{"$f":"IFERROR(VLOOKUP(D4795,Translation!$A:$C,3,FALSE),D4795)","v":"Saskatchewan"},{"$f":"IFERROR(VLOOKUP(E4795,Translation!$A:$C,3,FALSE),E4795)","v":33.419216269599161},{"$f":"IFERROR(VLOOKUP(F4795,Translation!$A:$C,3,FALSE),F4795)","v":"Avoir propre foncier moyen selon la province"},{"$f":"IFERROR(VLOOKUP(G4795,Translation!$A:$C,3,FALSE),G4795)","v":"33.4"},{"$f":"IFERROR(VLOOKUP(H4795,Translation!$A:$C,3,FALSE),H4795)","v":"Saskatchewan"}]
[7,"Cumul 2018","ASSURANCE DE PORTEFEUILLE","Terre-Neuve-et-Labrador",36.515808343576872,"Avoir propre foncier moyen selon la province","36.5","Terre-Neuve-et-Labrador",{"$f":"IFERROR(VLOOKUP(A4799,Translation!$A:$C,3,FALSE),A4799)","v":7},{"$f":"IFERROR(VLOOKUP(B4799,Translation!$A:$C,3,FALSE),B4799)","v":"Cumul 2018"},{"$f":"IFERROR(VLOOKUP(C4799,Translation!$A:$C,3,FALSE),C4799)","v":"ASSURANCE DE PORTEFEUILLE"},{"$f":"IFERROR(VLOOKUP(D4799,Translation!$A:$C,3,FALSE),D4799)","v":"Terre-Neuve-et-Labrador"},{"$f":"IFERROR(VLOOKUP(E4799,Translation!$A:$C,3,FALSE),E4799)","v":36.515808343576872},{"$f":"IFERROR(VLOOKUP(F4799,Translation!$A:$C,3,FALSE),F4799)","v":"Avoir propre foncier moyen selon la province"},{"$f":"IFERROR(VLOOKUP(G4799,Translation!$A:$C,3,FALSE),G4799)","v":"36.5"},{"$f":"IFERROR(VLOOKUP(H4799,Translation!$A:$C,3,FALSE),H4799)","v":"Terre-Neuve-et-Labrador"}]
[7,"Cumul 2018","ASSURANCE DE PORTEFEUILLE","Île-du-Prince-Édouard",33.690985625487158,"Avoir propre foncier moyen selon la province","33.7","Île-du-Prince-Édouard",{"$f":"IFERROR(VLOOKUP(A4800,Translation!$A:$C,3,FALSE),A4800)","v":7},{"$f":"IFERROR(VLOOKUP(B4800,Translation!$A:$C,3,FALSE),B4800)","v":"Cumul 2018"},{"$f":"IFERROR(VLOOKUP(C4800,Translation!$A:$C,3,FALSE),C4800)","v":"ASSURANCE DE PORTEFEUILLE"},{"$f":"IFERROR(VLOOKUP(D4800,Translation!$A:$C,3,FALSE),D4800)","v":"Île-du-Prince-Édouard"},{"$f":"IFERROR(VLOOKUP(E4800,Translation!$A:$C,3,FALSE),E4800)","v":33.690985625487158},{"$f":"IFERROR(VLOOKUP(F4800,Translation!$A:$C,3,FALSE),F4800)","v":"Avoir propre foncier moyen selon la province"},{"$f":"IFERROR(VLOOKUP(G4800,Translation!$A:$C,3,FALSE),G4800)","v":"33.7"},{"$f":"IFERROR(VLOOKUP(H4800,Translation!$A:$C,3,FALSE),H4800)","v":"Île-du-Prince-Édouard"}]
[7,"Cumul 2018","ASSURANCE DE PORTEFEUILLE","Québec",38.415380705793758,"Avoir propre foncier moyen selon la province","38.4","Québec",{"$f":"IFERROR(VLOOKUP(A4803,Translation!$A:$C,3,FALSE),A4803)","v":7},{"$f":"IFERROR(VLOOKUP(B4803,Translation!$A:$C,3,FALSE),B4803)","v":"Cumul 2018"},{"$f":"IFERROR(VLOOKUP(C4803,Translation!$A:$C,3,FALSE),C4803)","v":"ASSURANCE DE PORTEFEUILLE"},{"$f":"IFERROR(VLOOKUP(D4803,Translation!$A:$C,3,FALSE),D4803)","v":"Québec"},{"$f":"IFERROR(VLOOKUP(E4803,Translation!$A:$C,3,FALSE),E4803)","v":38.415380705793758},{"$f":"IFERROR(VLOOKUP(F4803,Translation!$A:$C,3,FALSE),F4803)","v":"Avoir propre foncier moyen selon la province"},{"$f":"IFERROR(VLOOKUP(G4803,Translation!$A:$C,3,FALSE),G4803)","v":"38.4"},{"$f":"IFERROR(VLOOKUP(H4803,Translation!$A:$C,3,FALSE),H4803)","v":"Québec"}]
[7,"Cumul 2018","ASSURANCE DE PORTEFEUILLE","Ontario",39.839281223604274,"Avoir propre foncier moyen selon la province","39.8","Ontario",{"$f":"IFERROR(VLOOKUP(A4804,Translation!$A:$C,3,FALSE),A4804)","v":7},{"$f":"IFERROR(VLOOKUP(B4804,Translation!$A:$C,3,FALSE),B4804)","v":"Cumul 2018"},{"$f":"IFERROR(VLOOKUP(C4804,Translation!$A:$C,3,FALSE),C4804)","v":"ASSURANCE DE PORTEFEUILLE"},{"$f":"IFERROR(VLOOKUP(D4804,Translation!$A:$C,3,FALSE),D4804)","v":"Ontario"},{"$f":"IFERROR(VLOOKUP(E4804,Translation!$A:$C,3,FALSE),E4804)","v":39.839281223604274},{"$f":"IFERROR(VLOOKUP(F4804,Translation!$A:$C,3,FALSE),F4804)","v":"Avoir propre foncier moyen selon la province"},{"$f":"IFERROR(VLOOKUP(G4804,Translation!$A:$C,3,FALSE),G4804)","v":"39.8"},{"$f":"IFERROR(VLOOKUP(H4804,Translation!$A:$C,3,FALSE),H4804)","v":"Ontario"}]
[7,"Cumul 2018","ASSURANCE DE PORTEFEUILLE","Colombie-Britannique",44.74563606526327,"Avoir propre foncier moyen selon la province","44.7","Colombie-Britannique",{"$f":"IFERROR(VLOOKUP(A4808,Translation!$A:$C,3,FALSE),A4808)","v":7},{"$f":"IFERROR(VLOOKUP(B4808,Translation!$A:$C,3,FALSE),B4808)","v":"Cumul 2018"},{"$f":"IFERROR(VLOOKUP(C4808,Translation!$A:$C,3,FALSE),C4808)","v":"ASSURANCE DE PORTEFEUILLE"},{"$f":"IFERROR(VLOOKUP(D4808,Translation!$A:$C,3,FALSE),D4808)","v":"Colombie-Britannique"},{"$f":"IFERROR(VLOOKUP(E4808,Translation!$A:$C,3,FALSE),E4808)","v":44.74563606526327},{"$f":"IFERROR(VLOOKUP(F4808,Translation!$A:$C,3,FALSE),F4808)","v":"Avoir propre foncier moyen selon la province"},{"$f":"IFERROR(VLOOKUP(G4808,Translation!$A:$C,3,FALSE),G4808)","v":"44.7"},{"$f":"IFERROR(VLOOKUP(H4808,Translation!$A:$C,3,FALSE),H4808)","v":"Colombie-Britannique"}]
[27,"Cumul 2018","IMMEUBLES COLLECTIFS RÉSIDENTIELS","<= 50 %",3.345172467219117,"Prêts hypothécaires assurés au cours de la période selon le rapport prêt-valeur (RPV) établi d’après la valeur initiale de la propriété (%)","3.3"," <= 50 %",{"$f":"IFERROR(VLOOKUP(A4810,Translation!$A:$C,3,FALSE),A4810)","v":27},{"$f":"IFERROR(VLOOKUP(B4810,Translation!$A:$C,3,FALSE),B4810)","v":"Cumul 2018"},{"$f":"IFERROR(VLOOKUP(C4810,Translation!$A:$C,3,FALSE),C4810)","v":"IMMEUBLES COLLECTIFS RÉSIDENTIELS"},{"$f":"IFERROR(VLOOKUP(D4810,Translation!$A:$C,3,FALSE),D4810)","v":"<= 50 %"},{"$f":"IFERROR(VLOOKUP(E4810,Translation!$A:$C,3,FALSE),E4810)","v":3.345172467219117},{"$f":"IFERROR(VLOOKUP(F4810,Translation!$A:$C,3,FALSE),F4810)","v":"Prêts hypothécaires assurés au cours de la période selon le rapport prêt-valeur (RPV) établi d’après la valeur initiale de la propriété (%)"},{"$f":"IFERROR(VLOOKUP(G4810,Translation!$A:$C,3,FALSE),G4810)","v":"3.3"},{"$f":"IFERROR(VLOOKUP(H4810,Translation!$A:$C,3,FALSE),H4810)","v":" <= 50 %"}]
[27,"T4 2019","IMMEUBLES COLLECTIFS RÉSIDENTIELS","> 55 % <= 60 %",1.8216819069159689,"Prêts hypothécaires assurés au cours de la période selon le rapport prêt-valeur (RPV) établi d’après la valeur initiale de la propriété (%)","1.8"," > 55 % <= 60 %",{"$f":"IFERROR(VLOOKUP(A4813,Translation!$A:$C,3,FALSE),A4813)","v":27},{"$f":"IFERROR(VLOOKUP(B4813,Translation!$A:$C,3,FALSE),B4813)","v":"T4 2019"},{"$f":"IFERROR(VLOOKUP(C4813,Translation!$A:$C,3,FALSE),C4813)","v":"IMMEUBLES COLLECTIFS RÉSIDENTIELS"},{"$f":"IFERROR(VLOOKUP(D4813,Translation!$A:$C,3,FALSE),D4813)","v":"> 55 % <= 60 %"},{"$f":"IFERROR(VLOOKUP(E4813,Translation!$A:$C,3,FALSE),E4813)","v":1.8216819069159689},{"$f":"IFERROR(VLOOKUP(F4813,Translation!$A:$C,3,FALSE),F4813)","v":"Prêts hypothécaires assurés au cours de la période selon le rapport prêt-valeur (RPV) établi d’après la valeur initiale de la propriété (%)"},{"$f":"IFERROR(VLOOKUP(G4813,Translation!$A:$C,3,FALSE),G4813)","v":"1.8"},{"$f":"IFERROR(VLOOKUP(H4813,Translation!$A:$C,3,FALSE),H4813)","v":" > 55 % <= 60 %"}]
[27,"Cumul 2018","IMMEUBLES COLLECTIFS RÉSIDENTIELS","> 55 % <= 60 %",2.513989106260238,"Prêts hypothécaires assurés au cours de la période selon le rapport prêt-valeur (RPV) établi d’après la valeur initiale de la propriété (%)","2.5"," > 55 % <= 60 %",{"$f":"IFERROR(VLOOKUP(A4814,Translation!$A:$C,3,FALSE),A4814)","v":27},{"$f":"IFERROR(VLOOKUP(B4814,Translation!$A:$C,3,FALSE),B4814)","v":"Cumul 2018"},{"$f":"IFERROR(VLOOKUP(C4814,Translation!$A:$C,3,FALSE),C4814)","v":"IMMEUBLES COLLECTIFS RÉSIDENTIELS"},{"$f":"IFERROR(VLOOKUP(D4814,Translation!$A:$C,3,FALSE),D4814)","v":"> 55 % <= 60 %"},{"$f":"IFERROR(VLOOKUP(E4814,Translation!$A:$C,3,FALSE),E4814)","v":2.513989106260238},{"$f":"IFERROR(VLOOKUP(F4814,Translation!$A:$C,3,FALSE),F4814)","v":"Prêts hypothécaires assurés au cours de la période selon le rapport prêt-valeur (RPV) établi d’après la valeur initiale de la propriété (%)"},{"$f":"IFERROR(VLOOKUP(G4814,Translation!$A:$C,3,FALSE),G4814)","v":"2.5"},{"$f":"IFERROR(VLOOKUP(H4814,Translation!$A:$C,3,FALSE),H4814)","v":" > 55 % <= 60 %"}]
[27,"Cumul 2018","IMMEUBLES COLLECTIFS RÉSIDENTIELS","> 65 % <= 70 %",5.9391592804881652,"Prêts hypothécaires assurés au cours de la période selon le rapport prêt-valeur (RPV) établi d’après la valeur initiale de la propriété (%)","5.9"," > 65 % <= 70 %",{"$f":"IFERROR(VLOOKUP(A4818,Translation!$A:$C,3,FALSE),A4818)","v":27},{"$f":"IFERROR(VLOOKUP(B4818,Translation!$A:$C,3,FALSE),B4818)","v":"Cumul 2018"},{"$f":"IFERROR(VLOOKUP(C4818,Translation!$A:$C,3,FALSE),C4818)","v":"IMMEUBLES COLLECTIFS RÉSIDENTIELS"},{"$f":"IFERROR(VLOOKUP(D4818,Translation!$A:$C,3,FALSE),D4818)","v":"> 65 % <= 70 %"},{"$f":"IFERROR(VLOOKUP(E4818,Translation!$A:$C,3,FALSE),E4818)","v":5.9391592804881652},{"$f":"IFERROR(VLOOKUP(F4818,Translation!$A:$C,3,FALSE),F4818)","v":"Prêts hypothécaires assurés au cours de la période selon le rapport prêt-valeur (RPV) établi d’après la valeur initiale de la propriété (%)"},{"$f":"IFERROR(VLOOKUP(G4818,Translation!$A:$C,3,FALSE),G4818)","v":"5.9"},{"$f":"IFERROR(VLOOKUP(H4818,Translation!$A:$C,3,FALSE),H4818)","v":" > 65 % <= 70 %"}]
[27,"T4 2019","IMMEUBLES COLLECTIFS RÉSIDENTIELS","> 70 % <= 75 %",15.777086043327484,"Prêts hypothécaires assurés au cours de la période selon le rapport prêt-valeur (RPV) établi d’après la valeur initiale de la propriété (%)","15.8"," > 70 % <= 75 %",{"$f":"IFERROR(VLOOKUP(A4819,Translation!$A:$C,3,FALSE),A4819)","v":27},{"$f":"IFERROR(VLOOKUP(B4819,Translation!$A:$C,3,FALSE),B4819)","v":"T4 2019"},{"$f":"IFERROR(VLOOKUP(C4819,Translation!$A:$C,3,FALSE),C4819)","v":"IMMEUBLES COLLECTIFS RÉSIDENTIELS"},{"$f":"IFERROR(VLOOKUP(D4819,Translation!$A:$C,3,FALSE),D4819)","v":"> 70 % <= 75 %"},{"$f":"IFERROR(VLOOKUP(E4819,Translation!$A:$C,3,FALSE),E4819)","v":15.777086043327484},{"$f":"IFERROR(VLOOKUP(F4819,Translation!$A:$C,3,FALSE),F4819)","v":"Prêts hypothécaires assurés au cours de la période selon le rapport prêt-valeur (RPV) établi d’après la valeur initiale de la propriété (%)"},{"$f":"IFERROR(VLOOKUP(G4819,Translation!$A:$C,3,FALSE),G4819)","v":"15.8"},{"$f":"IFERROR(VLOOKUP(H4819,Translation!$A:$C,3,FALSE),H4819)","v":" > 70 % <= 75 %"}]
[27,"T4 2019","IMMEUBLES COLLECTIFS RÉSIDENTIELS","> 75 % <= 80 %",7.4153936590728513,"Prêts hypothécaires assurés au cours de la période selon le rapport prêt-valeur (RPV) établi d’après la valeur initiale de la propriété (%)","7.4"," > 75 % <= 80 %",{"$f":"IFERROR(VLOOKUP(A4821,Translation!$A:$C,3,FALSE),A4821)","v":27},{"$f":"IFERROR(VLOOKUP(B4821,Translation!$A:$C,3,FALSE),B4821)","v":"T4 2019"},{"$f":"IFERROR(VLOOKUP(C4821,Translation!$A:$C,3,FALSE),C4821)","v":"IMMEUBLES COLLECTIFS RÉSIDENTIELS"},{"$f":"IFERROR(VLOOKUP(D4821,Translation!$A:$C,3,FALSE),D4821)","v":"> 75 % <= 80 %"},{"$f":"IFERROR(VLOOKUP(E4821,Translation!$A:$C,3,FALSE),E4821)","v":7.4153936590728513},{"$f":"IFERROR(VLOOKUP(F4821,Translation!$A:$C,3,FALSE),F4821)","v":"Prêts hypothécaires assurés au cours de la période selon le rapport prêt-valeur (RPV) établi d’après la valeur initiale de la propriété (%)"},{"$f":"IFERROR(VLOOKUP(G4821,Translation!$A:$C,3,FALSE),G4821)","v":"7.4"},{"$f":"IFERROR(VLOOKUP(H4821,Translation!$A:$C,3,FALSE),H4821)","v":" > 75 % <= 80 %"}]
[27,"Cumul 2018","IMMEUBLES COLLECTIFS RÉSIDENTIELS","> 80 % <= 85 %",25.582308705071686,"Prêts hypothécaires assurés au cours de la période selon le rapport prêt-valeur (RPV) établi d’après la valeur initiale de la propriété (%)","25.6"," > 80 % <= 85 %",{"$f":"IFERROR(VLOOKUP(A4824,Translation!$A:$C,3,FALSE),A4824)","v":27},{"$f":"IFERROR(VLOOKUP(B4824,Translation!$A:$C,3,FALSE),B4824)","v":"Cumul 2018"},{"$f":"IFERROR(VLOOKUP(C4824,Translation!$A:$C,3,FALSE),C4824)","v":"IMMEUBLES COLLECTIFS RÉSIDENTIELS"},{"$f":"IFERROR(VLOOKUP(D4824,Translation!$A:$C,3,FALSE),D4824)","v":"> 80 % <= 85 %"},{"$f":"IFERROR(VLOOKUP(E4824,Translation!$A:$C,3,FALSE),E4824)","v":25.582308705071686},{"$f":"IFERROR(VLOOKUP(F4824,Translation!$A:$C,3,FALSE),F4824)","v":"Prêts hypothécaires assurés au cours de la période selon le rapport prêt-valeur (RPV) établi d’après la valeur initiale de la propriété (%)"},{"$f":"IFERROR(VLOOKUP(G4824,Translation!$A:$C,3,FALSE),G4824)","v":"25.6"},{"$f":"IFERROR(VLOOKUP(H4824,Translation!$A:$C,3,FALSE),H4824)","v":" > 80 % <= 85 %"}]
[27,"T4 2019","IMMEUBLES COLLECTIFS RÉSIDENTIELS","> 90 % <= 95 %",2.7793250303955515,"Prêts hypothécaires assurés au cours de la période selon le rapport prêt-valeur (RPV) établi d’après la valeur initiale de la propriété (%)","2.8"," > 90 % <= 95 %",{"$f":"IFERROR(VLOOKUP(A4827,Translation!$A:$C,3,FALSE),A4827)","v":27},{"$f":"IFERROR(VLOOKUP(B4827,Translation!$A:$C,3,FALSE),B4827)","v":"T4 2019"},{"$f":"IFERROR(VLOOKUP(C4827,Translation!$A:$C,3,FALSE),C4827)","v":"IMMEUBLES COLLECTIFS RÉSIDENTIELS"},{"$f":"IFERROR(VLOOKUP(D4827,Translation!$A:$C,3,FALSE),D4827)","v":"> 90 % <= 95 %"},{"$f":"IFERROR(VLOOKUP(E4827,Translation!$A:$C,3,FALSE),E4827)","v":2.7793250303955515},{"$f":"IFERROR(VLOOKUP(F4827,Translation!$A:$C,3,FALSE),F4827)","v":"Prêts hypothécaires assurés au cours de la période selon le rapport prêt-valeur (RPV) établi d’après la valeur initiale de la propriété (%)"},{"$f":"IFERROR(VLOOKUP(G4827,Translation!$A:$C,3,FALSE),G4827)","v":"2.8"},{"$f":"IFERROR(VLOOKUP(H4827,Translation!$A:$C,3,FALSE),H4827)","v":" > 90 % <= 95 %"}]
[27,"T4 2019","IMMEUBLES COLLECTIFS RÉSIDENTIELS","> 95 %",9.5752261280309199,"Prêts hypothécaires assurés au cours de la période selon le rapport prêt-valeur (RPV) établi d’après la valeur initiale de la propriété (%)","9.6"," > 95 %",{"$f":"IFERROR(VLOOKUP(A4829,Translation!$A:$C,3,FALSE),A4829)","v":27},{"$f":"IFERROR(VLOOKUP(B4829,Translation!$A:$C,3,FALSE),B4829)","v":"T4 2019"},{"$f":"IFERROR(VLOOKUP(C4829,Translation!$A:$C,3,FALSE),C4829)","v":"IMMEUBLES COLLECTIFS RÉSIDENTIELS"},{"$f":"IFERROR(VLOOKUP(D4829,Translation!$A:$C,3,FALSE),D4829)","v":"> 95 %"},{"$f":"IFERROR(VLOOKUP(E4829,Translation!$A:$C,3,FALSE),E4829)","v":9.5752261280309199},{"$f":"IFERROR(VLOOKUP(F4829,Translation!$A:$C,3,FALSE),F4829)","v":"Prêts hypothécaires assurés au cours de la période selon le rapport prêt-valeur (RPV) établi d’après la valeur initiale de la propriété (%)"},{"$f":"IFERROR(VLOOKUP(G4829,Translation!$A:$C,3,FALSE),G4829)","v":"9.6"},{"$f":"IFERROR(VLOOKUP(H4829,Translation!$A:$C,3,FALSE),H4829)","v":" > 95 %"}]
[27,"Cumul 2018","IMMEUBLES COLLECTIFS RÉSIDENTIELS","Rapport prêt-valeur moyen ",73.878999778809856,"Prêts hypothécaires assurés au cours de la période selon le rapport prêt-valeur (RPV) établi d’après la valeur initiale de la propriété (%)","73.9","Rapport prêt-valeur moyen ",{"$f":"IFERROR(VLOOKUP(A4832,Translation!$A:$C,3,FALSE),A4832)","v":27},{"$f":"IFERROR(VLOOKUP(B4832,Translation!$A:$C,3,FALSE),B4832)","v":"Cumul 2018"},{"$f":"IFERROR(VLOOKUP(C4832,Translation!$A:$C,3,FALSE),C4832)","v":"IMMEUBLES COLLECTIFS RÉSIDENTIELS"},{"$f":"IFERROR(VLOOKUP(D4832,Translation!$A:$C,3,FALSE),D4832)","v":"Rapport prêt-valeur moyen "},{"$f":"IFERROR(VLOOKUP(E4832,Translation!$A:$C,3,FALSE),E4832)","v":73.878999778809856},{"$f":"IFERROR(VLOOKUP(F4832,Translation!$A:$C,3,FALSE),F4832)","v":"Prêts hypothécaires assurés au cours de la période selon le rapport prêt-valeur (RPV) établi d’après la valeur initiale de la propriété (%)"},{"$f":"IFERROR(VLOOKUP(G4832,Translation!$A:$C,3,FALSE),G4832)","v":"73.9"},{"$f":"IFERROR(VLOOKUP(H4832,Translation!$A:$C,3,FALSE),H4832)","v":"Rapport prêt-valeur moyen "}]
[27,"T4 2019","IMMEUBLES COLLECTIFS RÉSIDENTIELS","Terre-Neuve-et-Labrador",35,"Avoir propre foncier moyen selon la province","35.0","Terre-Neuve-et-Labrador",{"$f":"IFERROR(VLOOKUP(A4835,Translation!$A:$C,3,FALSE),A4835)","v":27},{"$f":"IFERROR(VLOOKUP(B4835,Translation!$A:$C,3,FALSE),B4835)","v":"T4 2019"},{"$f":"IFERROR(VLOOKUP(C4835,Translation!$A:$C,3,FALSE),C4835)","v":"IMMEUBLES COLLECTIFS RÉSIDENTIELS"},{"$f":"IFERROR(VLOOKUP(D4835,Translation!$A:$C,3,FALSE),D4835)","v":"Terre-Neuve-et-Labrador"},{"$f":"IFERROR(VLOOKUP(E4835,Translation!$A:$C,3,FALSE),E4835)","v":35},{"$f":"IFERROR(VLOOKUP(F4835,Translation!$A:$C,3,FALSE),F4835)","v":"Avoir propre foncier moyen selon la province"},{"$f":"IFERROR(VLOOKUP(G4835,Translation!$A:$C,3,FALSE),G4835)","v":"35.0"},{"$f":"IFERROR(VLOOKUP(H4835,Translation!$A:$C,3,FALSE),H4835)","v":"Terre-Neuve-et-Labrador"}]
[27,"T4 2019","IMMEUBLES COLLECTIFS RÉSIDENTIELS","Nouvelle-Écosse",21.977660668229522,"Avoir propre foncier moyen selon la province","22.0","Nouvelle-Écosse",{"$f":"IFERROR(VLOOKUP(A4837,Translation!$A:$C,3,FALSE),A4837)","v":27},{"$f":"IFERROR(VLOOKUP(B4837,Translation!$A:$C,3,FALSE),B4837)","v":"T4 2019"},{"$f":"IFERROR(VLOOKUP(C4837,Translation!$A:$C,3,FALSE),C4837)","v":"IMMEUBLES COLLECTIFS RÉSIDENTIELS"},{"$f":"IFERROR(VLOOKUP(D4837,Translation!$A:$C,3,FALSE),D4837)","v":"Nouvelle-Écosse"},{"$f":"IFERROR(VLOOKUP(E4837,Translation!$A:$C,3,FALSE),E4837)","v":21.977660668229522},{"$f":"IFERROR(VLOOKUP(F4837,Translation!$A:$C,3,FALSE),F4837)","v":"Avoir propre foncier moyen selon la province"},{"$f":"IFERROR(VLOOKUP(G4837,Translation!$A:$C,3,FALSE),G4837)","v":"22.0"},{"$f":"IFERROR(VLOOKUP(H4837,Translation!$A:$C,3,FALSE),H4837)","v":"Nouvelle-Écosse"}]
[27,"T4 2019","IMMEUBLES COLLECTIFS RÉSIDENTIELS","Nouveau-Brunswick",11.345035957901317,"Avoir propre foncier moyen selon la province","11.3","Nouveau-Brunswick",{"$f":"IFERROR(VLOOKUP(A4838,Translation!$A:$C,3,FALSE),A4838)","v":27},{"$f":"IFERROR(VLOOKUP(B4838,Translation!$A:$C,3,FALSE),B4838)","v":"T4 2019"},{"$f":"IFERROR(VLOOKUP(C4838,Translation!$A:$C,3,FALSE),C4838)","v":"IMMEUBLES COLLECTIFS RÉSIDENTIELS"},{"$f":"IFERROR(VLOOKUP(D4838,Translation!$A:$C,3,FALSE),D4838)","v":"Nouveau-Brunswick"},{"$f":"IFERROR(VLOOKUP(E4838,Translation!$A:$C,3,FALSE),E4838)","v":11.345035957901317},{"$f":"IFERROR(VLOOKUP(F4838,Translation!$A:$C,3,FALSE),F4838)","v":"Avoir propre foncier moyen selon la province"},{"$f":"IFERROR(VLOOKUP(G4838,Translation!$A:$C,3,FALSE),G4838)","v":"11.3"},{"$f":"IFERROR(VLOOKUP(H4838,Translation!$A:$C,3,FALSE),H4838)","v":"Nouveau-Brunswick"}]
[27,"T4 2019","IMMEUBLES COLLECTIFS RÉSIDENTIELS","Ontario",25.515799344343911,"Avoir propre foncier moyen selon la province","25.5","Ontario",{"$f":"IFERROR(VLOOKUP(A4840,Translation!$A:$C,3,FALSE),A4840)","v":27},{"$f":"IFERROR(VLOOKUP(B4840,Translation!$A:$C,3,FALSE),B4840)","v":"T4 2019"},{"$f":"IFERROR(VLOOKUP(C4840,Translation!$A:$C,3,FALSE),C4840)","v":"IMMEUBLES COLLECTIFS RÉSIDENTIELS"},{"$f":"IFERROR(VLOOKUP(D4840,Translation!$A:$C,3,FALSE),D4840)","v":"Ontario"},{"$f":"IFERROR(VLOOKUP(E4840,Translation!$A:$C,3,FALSE),E4840)","v":25.515799344343911},{"$f":"IFERROR(VLOOKUP(F4840,Translation!$A:$C,3,FALSE),F4840)","v":"Avoir propre foncier moyen selon la province"},{"$f":"IFERROR(VLOOKUP(G4840,Translation!$A:$C,3,FALSE),G4840)","v":"25.5"},{"$f":"IFERROR(VLOOKUP(H4840,Translation!$A:$C,3,FALSE),H4840)","v":"Ontario"}]
[27,"T4 2019","IMMEUBLES COLLECTIFS RÉSIDENTIELS","Alberta",27.957906857595113,"Avoir propre foncier moyen selon la province","28.0","Alberta",{"$f":"IFERROR(VLOOKUP(A4843,Translation!$A:$C,3,FALSE),A4843)","v":27},{"$f":"IFERROR(VLOOKUP(B4843,Translation!$A:$C,3,FALSE),B4843)","v":"T4 2019"},{"$f":"IFERROR(VLOOKUP(C4843,Translation!$A:$C,3,FALSE),C4843)","v":"IMMEUBLES COLLECTIFS RÉSIDENTIELS"},{"$f":"IFERROR(VLOOKUP(D4843,Translation!$A:$C,3,FALSE),D4843)","v":"Alberta"},{"$f":"IFERROR(VLOOKUP(E4843,Translation!$A:$C,3,FALSE),E4843)","v":27.957906857595113},{"$f":"IFERROR(VLOOKUP(F4843,Translation!$A:$C,3,FALSE),F4843)","v":"Avoir propre foncier moyen selon la province"},{"$f":"IFERROR(VLOOKUP(G4843,Translation!$A:$C,3,FALSE),G4843)","v":"28.0"},{"$f":"IFERROR(VLOOKUP(H4843,Translation!$A:$C,3,FALSE),H4843)","v":"Alberta"}]
[27,"Cumul 2018","IMMEUBLES COLLECTIFS RÉSIDENTIELS","Terre-Neuve-et-Labrador",22.774946765358354,"Avoir propre foncier moyen selon la province","22.8","Terre-Neuve-et-Labrador",{"$f":"IFERROR(VLOOKUP(A4846,Translation!$A:$C,3,FALSE),A4846)","v":27},{"$f":"IFERROR(VLOOKUP(B4846,Translation!$A:$C,3,FALSE),B4846)","v":"Cumul 2018"},{"$f":"IFERROR(VLOOKUP(C4846,Translation!$A:$C,3,FALSE),C4846)","v":"IMMEUBLES COLLECTIFS RÉSIDENTIELS"},{"$f":"IFERROR(VLOOKUP(D4846,Translation!$A:$C,3,FALSE),D4846)","v":"Terre-Neuve-et-Labrador"},{"$f":"IFERROR(VLOOKUP(E4846,Translation!$A:$C,3,FALSE),E4846)","v":22.774946765358354},{"$f":"IFERROR(VLOOKUP(F4846,Translation!$A:$C,3,FALSE),F4846)","v":"Avoir propre foncier moyen selon la province"},{"$f":"IFERROR(VLOOKUP(G4846,Translation!$A:$C,3,FALSE),G4846)","v":"22.8"},{"$f":"IFERROR(VLOOKUP(H4846,Translation!$A:$C,3,FALSE),H4846)","v":"Terre-Neuve-et-Labrador"}]
[27,"Cumul 2018","IMMEUBLES COLLECTIFS RÉSIDENTIELS","Nouvelle-Écosse",19.609857969137803,"Avoir propre foncier moyen selon la province","19.6","Nouvelle-Écosse",{"$f":"IFERROR(VLOOKUP(A4848,Translation!$A:$C,3,FALSE),A4848)","v":27},{"$f":"IFERROR(VLOOKUP(B4848,Translation!$A:$C,3,FALSE),B4848)","v":"Cumul 2018"},{"$f":"IFERROR(VLOOKUP(C4848,Translation!$A:$C,3,FALSE),C4848)","v":"IMMEUBLES COLLECTIFS RÉSIDENTIELS"},{"$f":"IFERROR(VLOOKUP(D4848,Translation!$A:$C,3,FALSE),D4848)","v":"Nouvelle-Écosse"},{"$f":"IFERROR(VLOOKUP(E4848,Translation!$A:$C,3,FALSE),E4848)","v":19.609857969137803},{"$f":"IFERROR(VLOOKUP(F4848,Translation!$A:$C,3,FALSE),F4848)","v":"Avoir propre foncier moyen selon la province"},{"$f":"IFERROR(VLOOKUP(G4848,Translation!$A:$C,3,FALSE),G4848)","v":"19.6"},{"$f":"IFERROR(VLOOKUP(H4848,Translation!$A:$C,3,FALSE),H4848)","v":"Nouvelle-Écosse"}]
[27,"Cumul 2018","IMMEUBLES COLLECTIFS RÉSIDENTIELS","Ontario",30.632036657026443,"Avoir propre foncier moyen selon la province","30.6","Ontario",{"$f":"IFERROR(VLOOKUP(A4851,Translation!$A:$C,3,FALSE),A4851)","v":27},{"$f":"IFERROR(VLOOKUP(B4851,Translation!$A:$C,3,FALSE),B4851)","v":"Cumul 2018"},{"$f":"IFERROR(VLOOKUP(C4851,Translation!$A:$C,3,FALSE),C4851)","v":"IMMEUBLES COLLECTIFS RÉSIDENTIELS"},{"$f":"IFERROR(VLOOKUP(D4851,Translation!$A:$C,3,FALSE),D4851)","v":"Ontario"},{"$f":"IFERROR(VLOOKUP(E4851,Translation!$A:$C,3,FALSE),E4851)","v":30.632036657026443},{"$f":"IFERROR(VLOOKUP(F4851,Translation!$A:$C,3,FALSE),F4851)","v":"Avoir propre foncier moyen selon la province"},{"$f":"IFERROR(VLOOKUP(G4851,Translation!$A:$C,3,FALSE),G4851)","v":"30.6"},{"$f":"IFERROR(VLOOKUP(H4851,Translation!$A:$C,3,FALSE),H4851)","v":"Ontario"}]
[27,"Cumul 2018","IMMEUBLES COLLECTIFS RÉSIDENTIELS","Alberta",25.994519138115681,"Avoir propre foncier moyen selon la province","26.0","Alberta",{"$f":"IFERROR(VLOOKUP(A4854,Translation!$A:$C,3,FALSE),A4854)","v":27},{"$f":"IFERROR(VLOOKUP(B4854,Translation!$A:$C,3,FALSE),B4854)","v":"Cumul 2018"},{"$f":"IFERROR(VLOOKUP(C4854,Translation!$A:$C,3,FALSE),C4854)","v":"IMMEUBLES COLLECTIFS RÉSIDENTIELS"},{"$f":"IFERROR(VLOOKUP(D4854,Translation!$A:$C,3,FALSE),D4854)","v":"Alberta"},{"$f":"IFERROR(VLOOKUP(E4854,Translation!$A:$C,3,FALSE),E4854)","v":25.994519138115681},{"$f":"IFERROR(VLOOKUP(F4854,Translation!$A:$C,3,FALSE),F4854)","v":"Avoir propre foncier moyen selon la province"},{"$f":"IFERROR(VLOOKUP(G4854,Translation!$A:$C,3,FALSE),G4854)","v":"26.0"},{"$f":"IFERROR(VLOOKUP(H4854,Translation!$A:$C,3,FALSE),H4854)","v":"Alberta"}]
[27,"Cumul 2018","IMMEUBLES COLLECTIFS RÉSIDENTIELS","Territoires",25.055178860332671,"Avoir propre foncier moyen selon la province","25.1","Territoires",{"$f":"IFERROR(VLOOKUP(A4856,Translation!$A:$C,3,FALSE),A4856)","v":27},{"$f":"IFERROR(VLOOKUP(B4856,Translation!$A:$C,3,FALSE),B4856)","v":"Cumul 2018"},{"$f":"IFERROR(VLOOKUP(C4856,Translation!$A:$C,3,FALSE),C4856)","v":"IMMEUBLES COLLECTIFS RÉSIDENTIELS"},{"$f":"IFERROR(VLOOKUP(D4856,Translation!$A:$C,3,FALSE),D4856)","v":"Territoires"},{"$f":"IFERROR(VLOOKUP(E4856,Translation!$A:$C,3,FALSE),E4856)","v":25.055178860332671},{"$f":"IFERROR(VLOOKUP(F4856,Translation!$A:$C,3,FALSE),F4856)","v":"Avoir propre foncier moyen selon la province"},{"$f":"IFERROR(VLOOKUP(G4856,Translation!$A:$C,3,FALSE),G4856)","v":"25.1"},{"$f":"IFERROR(VLOOKUP(H4856,Translation!$A:$C,3,FALSE),H4856)","v":"Territoires"}]
[7,"T3 2019","PROPRIÉTAIRES-OCCUPANTS, À L’UNITÉ","> 55 % <= 60 %",4.8455604768876719E-2,"Prêts hypothécaires assurés au cours de la période selon le rapport prêt-valeur (RPV) établi d’après la valeur initiale de la propriété (%)","0.0"," > 55 % <= 60 %",{"$f":"IFERROR(VLOOKUP(A4859,Translation!$A:$C,3,FALSE),A4859)","v":7},{"$f":"IFERROR(VLOOKUP(B4859,Translation!$A:$C,3,FALSE),B4859)","v":"T3 2019"},{"$f":"IFERROR(VLOOKUP(C4859,Translation!$A:$C,3,FALSE),C4859)","v":"PROPRIÉTAIRES-OCCUPANTS, À L’UNITÉ"},{"$f":"IFERROR(VLOOKUP(D4859,Translation!$A:$C,3,FALSE),D4859)","v":"> 55 % <= 60 %"},{"$f":"IFERROR(VLOOKUP(E4859,Translation!$A:$C,3,FALSE),E4859)","v":4.8455604768876719E-2},{"$f":"IFERROR(VLOOKUP(F4859,Translation!$A:$C,3,FALSE),F4859)","v":"Prêts hypothécaires assurés au cours de la période selon le rapport prêt-valeur (RPV) établi d’après la valeur initiale de la propriété (%)"},{"$f":"IFERROR(VLOOKUP(G4859,Translation!$A:$C,3,FALSE),G4859)","v":"0.0"},{"$f":"IFERROR(VLOOKUP(H4859,Translation!$A:$C,3,FALSE),H4859)","v":" > 55 % <= 60 %"}]
[7,"T3 2019","PROPRIÉTAIRES-OCCUPANTS, À L’UNITÉ","> 65 % <= 70 %",5.2060460875412509E-2,"Prêts hypothécaires assurés au cours de la période selon le rapport prêt-valeur (RPV) établi d’après la valeur initiale de la propriété (%)","0.1"," > 65 % <= 70 %",{"$f":"IFERROR(VLOOKUP(A4861,Translation!$A:$C,3,FALSE),A4861)","v":7},{"$f":"IFERROR(VLOOKUP(B4861,Translation!$A:$C,3,FALSE),B4861)","v":"T3 2019"},{"$f":"IFERROR(VLOOKUP(C4861,Translation!$A:$C,3,FALSE),C4861)","v":"PROPRIÉTAIRES-OCCUPANTS, À L’UNITÉ"},{"$f":"IFERROR(VLOOKUP(D4861,Translation!$A:$C,3,FALSE),D4861)","v":"> 65 % <= 70 %"},{"$f":"IFERROR(VLOOKUP(E4861,Translation!$A:$C,3,FALSE),E4861)","v":5.2060460875412509E-2},{"$f":"IFERROR(VLOOKUP(F4861,Translation!$A:$C,3,FALSE),F4861)","v":"Prêts hypothécaires assurés au cours de la période selon le rapport prêt-valeur (RPV) établi d’après la valeur initiale de la propriété (%)"},{"$f":"IFERROR(VLOOKUP(G4861,Translation!$A:$C,3,FALSE),G4861)","v":"0.1"},{"$f":"IFERROR(VLOOKUP(H4861,Translation!$A:$C,3,FALSE),H4861)","v":" > 65 % <= 70 %"}]
[7,"T3 2019","PROPRIÉTAIRES-OCCUPANTS, À L’UNITÉ","> 70 % <= 75 %",0.17602578029202118,"Prêts hypothécaires assurés au cours de la période selon le rapport prêt-valeur (RPV) établi d’après la valeur initiale de la propriété (%)","0.2"," > 70 % <= 75 %",{"$f":"IFERROR(VLOOKUP(A4862,Translation!$A:$C,3,FALSE),A4862)","v":7},{"$f":"IFERROR(VLOOKUP(B4862,Translation!$A:$C,3,FALSE),B4862)","v":"T3 2019"},{"$f":"IFERROR(VLOOKUP(C4862,Translation!$A:$C,3,FALSE),C4862)","v":"PROPRIÉTAIRES-OCCUPANTS, À L’UNITÉ"},{"$f":"IFERROR(VLOOKUP(D4862,Translation!$A:$C,3,FALSE),D4862)","v":"> 70 % <= 75 %"},{"$f":"IFERROR(VLOOKUP(E4862,Translation!$A:$C,3,FALSE),E4862)","v":0.17602578029202118},{"$f":"IFERROR(VLOOKUP(F4862,Translation!$A:$C,3,FALSE),F4862)","v":"Prêts hypothécaires assurés au cours de la période selon le rapport prêt-valeur (RPV) établi d’après la valeur initiale de la propriété (%)"},{"$f":"IFERROR(VLOOKUP(G4862,Translation!$A:$C,3,FALSE),G4862)","v":"0.2"},{"$f":"IFERROR(VLOOKUP(H4862,Translation!$A:$C,3,FALSE),H4862)","v":" > 70 % <= 75 %"}]
[7,"T3 2019","PROPRIÉTAIRES-OCCUPANTS, À L’UNITÉ","> 85 % <= 90 %",26.560546564805097,"Prêts hypothécaires assurés au cours de la période selon le rapport prêt-valeur (RPV) établi d’après la valeur initiale de la propriété (%)","26.6"," > 85 % <= 90 %",{"$f":"IFERROR(VLOOKUP(A4865,Translation!$A:$C,3,FALSE),A4865)","v":7},{"$f":"IFERROR(VLOOKUP(B4865,Translation!$A:$C,3,FALSE),B4865)","v":"T3 2019"},{"$f":"IFERROR(VLOOKUP(C4865,Translation!$A:$C,3,FALSE),C4865)","v":"PROPRIÉTAIRES-OCCUPANTS, À L’UNITÉ"},{"$f":"IFERROR(VLOOKUP(D4865,Translation!$A:$C,3,FALSE),D4865)","v":"> 85 % <= 90 %"},{"$f":"IFERROR(VLOOKUP(E4865,Translation!$A:$C,3,FALSE),E4865)","v":26.560546564805097},{"$f":"IFERROR(VLOOKUP(F4865,Translation!$A:$C,3,FALSE),F4865)","v":"Prêts hypothécaires assurés au cours de la période selon le rapport prêt-valeur (RPV) établi d’après la valeur initiale de la propriété (%)"},{"$f":"IFERROR(VLOOKUP(G4865,Translation!$A:$C,3,FALSE),G4865)","v":"26.6"},{"$f":"IFERROR(VLOOKUP(H4865,Translation!$A:$C,3,FALSE),H4865)","v":" > 85 % <= 90 %"}]
[7,"T3 2019","PROPRIÉTAIRES-OCCUPANTS, À L’UNITÉ","Rapport prêt-valeur moyen ",92.427540373313263,"Prêts hypothécaires assurés au cours de la période selon le rapport prêt-valeur (RPV) établi d’après la valeur initiale de la propriété (%)","92.4","Rapport prêt-valeur moyen ",{"$f":"IFERROR(VLOOKUP(A4867,Translation!$A:$C,3,FALSE),A4867)","v":7},{"$f":"IFERROR(VLOOKUP(B4867,Translation!$A:$C,3,FALSE),B4867)","v":"T3 2019"},{"$f":"IFERROR(VLOOKUP(C4867,Translation!$A:$C,3,FALSE),C4867)","v":"PROPRIÉTAIRES-OCCUPANTS, À L’UNITÉ"},{"$f":"IFERROR(VLOOKUP(D4867,Translation!$A:$C,3,FALSE),D4867)","v":"Rapport prêt-valeur moyen "},{"$f":"IFERROR(VLOOKUP(E4867,Translation!$A:$C,3,FALSE),E4867)","v":92.427540373313263},{"$f":"IFERROR(VLOOKUP(F4867,Translation!$A:$C,3,FALSE),F4867)","v":"Prêts hypothécaires assurés au cours de la période selon le rapport prêt-valeur (RPV) établi d’après la valeur initiale de la propriété (%)"},{"$f":"IFERROR(VLOOKUP(G4867,Translation!$A:$C,3,FALSE),G4867)","v":"92.4"},{"$f":"IFERROR(VLOOKUP(H4867,Translation!$A:$C,3,FALSE),H4867)","v":"Rapport prêt-valeur moyen "}]
[7,"T3 2019","PROPRIÉTAIRES-OCCUPANTS, À L’UNITÉ","Île-du-Prince-Édouard",7.9444067012919808,"Avoir propre foncier moyen selon la province","7.9","Île-du-Prince-Édouard",{"$f":"IFERROR(VLOOKUP(A4870,Translation!$A:$C,3,FALSE),A4870)","v":7},{"$f":"IFERROR(VLOOKUP(B4870,Translation!$A:$C,3,FALSE),B4870)","v":"T3 2019"},{"$f":"IFERROR(VLOOKUP(C4870,Translation!$A:$C,3,FALSE),C4870)","v":"PROPRIÉTAIRES-OCCUPANTS, À L’UNITÉ"},{"$f":"IFERROR(VLOOKUP(D4870,Translation!$A:$C,3,FALSE),D4870)","v":"Île-du-Prince-Édouard"},{"$f":"IFERROR(VLOOKUP(E4870,Translation!$A:$C,3,FALSE),E4870)","v":7.9444067012919808},{"$f":"IFERROR(VLOOKUP(F4870,Translation!$A:$C,3,FALSE),F4870)","v":"Avoir propre foncier moyen selon la province"},{"$f":"IFERROR(VLOOKUP(G4870,Translation!$A:$C,3,FALSE),G4870)","v":"7.9"},{"$f":"IFERROR(VLOOKUP(H4870,Translation!$A:$C,3,FALSE),H4870)","v":"Île-du-Prince-Édouard"}]
[7,"T3 2019","PROPRIÉTAIRES-OCCUPANTS, À L’UNITÉ","Nouveau-Brunswick",6.2880134764245224,"Avoir propre foncier moyen selon la province","6.3","Nouveau-Brunswick",{"$f":"IFERROR(VLOOKUP(A4872,Translation!$A:$C,3,FALSE),A4872)","v":7},{"$f":"IFERROR(VLOOKUP(B4872,Translation!$A:$C,3,FALSE),B4872)","v":"T3 2019"},{"$f":"IFERROR(VLOOKUP(C4872,Translation!$A:$C,3,FALSE),C4872)","v":"PROPRIÉTAIRES-OCCUPANTS, À L’UNITÉ"},{"$f":"IFERROR(VLOOKUP(D4872,Translation!$A:$C,3,FALSE),D4872)","v":"Nouveau-Brunswick"},{"$f":"IFERROR(VLOOKUP(E4872,Translation!$A:$C,3,FALSE),E4872)","v":6.2880134764245224},{"$f":"IFERROR(VLOOKUP(F4872,Translation!$A:$C,3,FALSE),F4872)","v":"Avoir propre foncier moyen selon la province"},{"$f":"IFERROR(VLOOKUP(G4872,Translation!$A:$C,3,FALSE),G4872)","v":"6.3"},{"$f":"IFERROR(VLOOKUP(H4872,Translation!$A:$C,3,FALSE),H4872)","v":"Nouveau-Brunswick"}]
[7,"T3 2019","PROPRIÉTAIRES-OCCUPANTS, À L’UNITÉ","Manitoba",6.5494918475790644,"Avoir propre foncier moyen selon la province","6.5","Manitoba",{"$f":"IFERROR(VLOOKUP(A4875,Translation!$A:$C,3,FALSE),A4875)","v":7},{"$f":"IFERROR(VLOOKUP(B4875,Translation!$A:$C,3,FALSE),B4875)","v":"T3 2019"},{"$f":"IFERROR(VLOOKUP(C4875,Translation!$A:$C,3,FALSE),C4875)","v":"PROPRIÉTAIRES-OCCUPANTS, À L’UNITÉ"},{"$f":"IFERROR(VLOOKUP(D4875,Translation!$A:$C,3,FALSE),D4875)","v":"Manitoba"},{"$f":"IFERROR(VLOOKUP(E4875,Translation!$A:$C,3,FALSE),E4875)","v":6.5494918475790644},{"$f":"IFERROR(VLOOKUP(F4875,Translation!$A:$C,3,FALSE),F4875)","v":"Avoir propre foncier moyen selon la province"},{"$f":"IFERROR(VLOOKUP(G4875,Translation!$A:$C,3,FALSE),G4875)","v":"6.5"},{"$f":"IFERROR(VLOOKUP(H4875,Translation!$A:$C,3,FALSE),H4875)","v":"Manitoba"}]
[7,"T3 2019","PROPRIÉTAIRES-OCCUPANTS, À L’UNITÉ","Colombie-Britannique",8.6565987623310434,"Avoir propre foncier moyen selon la province","8.7","Colombie-Britannique",{"$f":"IFERROR(VLOOKUP(A4878,Translation!$A:$C,3,FALSE),A4878)","v":7},{"$f":"IFERROR(VLOOKUP(B4878,Translation!$A:$C,3,FALSE),B4878)","v":"T3 2019"},{"$f":"IFERROR(VLOOKUP(C4878,Translation!$A:$C,3,FALSE),C4878)","v":"PROPRIÉTAIRES-OCCUPANTS, À L’UNITÉ"},{"$f":"IFERROR(VLOOKUP(D4878,Translation!$A:$C,3,FALSE),D4878)","v":"Colombie-Britannique"},{"$f":"IFERROR(VLOOKUP(E4878,Translation!$A:$C,3,FALSE),E4878)","v":8.6565987623310434},{"$f":"IFERROR(VLOOKUP(F4878,Translation!$A:$C,3,FALSE),F4878)","v":"Avoir propre foncier moyen selon la province"},{"$f":"IFERROR(VLOOKUP(G4878,Translation!$A:$C,3,FALSE),G4878)","v":"8.7"},{"$f":"IFERROR(VLOOKUP(H4878,Translation!$A:$C,3,FALSE),H4878)","v":"Colombie-Britannique"}]
[7,"T3 2019","ASSURANCE DE PORTEFEUILLE","<= 50 %",25.610197961840317,"Prêts hypothécaires assurés au cours de la période selon le rapport prêt-valeur (RPV) établi d’après la valeur initiale de la propriété (%)","25.6"," <= 50 %",{"$f":"IFERROR(VLOOKUP(A4880,Translation!$A:$C,3,FALSE),A4880)","v":7},{"$f":"IFERROR(VLOOKUP(B4880,Translation!$A:$C,3,FALSE),B4880)","v":"T3 2019"},{"$f":"IFERROR(VLOOKUP(C4880,Translation!$A:$C,3,FALSE),C4880)","v":"ASSURANCE DE PORTEFEUILLE"},{"$f":"IFERROR(VLOOKUP(D4880,Translation!$A:$C,3,FALSE),D4880)","v":"<= 50 %"},{"$f":"IFERROR(VLOOKUP(E4880,Translation!$A:$C,3,FALSE),E4880)","v":25.610197961840317},{"$f":"IFERROR(VLOOKUP(F4880,Translation!$A:$C,3,FALSE),F4880)","v":"Prêts hypothécaires assurés au cours de la période selon le rapport prêt-valeur (RPV) établi d’après la valeur initiale de la propriété (%)"},{"$f":"IFERROR(VLOOKUP(G4880,Translation!$A:$C,3,FALSE),G4880)","v":"25.6"},{"$f":"IFERROR(VLOOKUP(H4880,Translation!$A:$C,3,FALSE),H4880)","v":" <= 50 %"}]
[7,"T3 2019","ASSURANCE DE PORTEFEUILLE","> 50 % <= 55 %",6.8994354892871437,"Prêts hypothécaires assurés au cours de la période selon le rapport prêt-valeur (RPV) établi d’après la valeur initiale de la propriété (%)","6.9"," > 50 % <= 55 %",{"$f":"IFERROR(VLOOKUP(A4881,Translation!$A:$C,3,FALSE),A4881)","v":7},{"$f":"IFERROR(VLOOKUP(B4881,Translation!$A:$C,3,FALSE),B4881)","v":"T3 2019"},{"$f":"IFERROR(VLOOKUP(C4881,Translation!$A:$C,3,FALSE),C4881)","v":"ASSURANCE DE PORTEFEUILLE"},{"$f":"IFERROR(VLOOKUP(D4881,Translation!$A:$C,3,FALSE),D4881)","v":"> 50 % <= 55 %"},{"$f":"IFERROR(VLOOKUP(E4881,Translation!$A:$C,3,FALSE),E4881)","v":6.8994354892871437},{"$f":"IFERROR(VLOOKUP(F4881,Translation!$A:$C,3,FALSE),F4881)","v":"Prêts hypothécaires assurés au cours de la période selon le rapport prêt-valeur (RPV) établi d’après la valeur initiale de la propriété (%)"},{"$f":"IFERROR(VLOOKUP(G4881,Translation!$A:$C,3,FALSE),G4881)","v":"6.9"},{"$f":"IFERROR(VLOOKUP(H4881,Translation!$A:$C,3,FALSE),H4881)","v":" > 50 % <= 55 %"}]
[7,"T3 2019","ASSURANCE DE PORTEFEUILLE","> 65 % <= 70 %",12.380419837462812,"Prêts hypothécaires assurés au cours de la période selon le rapport prêt-valeur (RPV) établi d’après la valeur initiale de la propriété (%)","12.4"," > 65 % <= 70 %",{"$f":"IFERROR(VLOOKUP(A4884,Translation!$A:$C,3,FALSE),A4884)","v":7},{"$f":"IFERROR(VLOOKUP(B4884,Translation!$A:$C,3,FALSE),B4884)","v":"T3 2019"},{"$f":"IFERROR(VLOOKUP(C4884,Translation!$A:$C,3,FALSE),C4884)","v":"ASSURANCE DE PORTEFEUILLE"},{"$f":"IFERROR(VLOOKUP(D4884,Translation!$A:$C,3,FALSE),D4884)","v":"> 65 % <= 70 %"},{"$f":"IFERROR(VLOOKUP(E4884,Translation!$A:$C,3,FALSE),E4884)","v":12.380419837462812},{"$f":"IFERROR(VLOOKUP(F4884,Translation!$A:$C,3,FALSE),F4884)","v":"Prêts hypothécaires assurés au cours de la période selon le rapport prêt-valeur (RPV) établi d’après la valeur initiale de la propriété (%)"},{"$f":"IFERROR(VLOOKUP(G4884,Translation!$A:$C,3,FALSE),G4884)","v":"12.4"},{"$f":"IFERROR(VLOOKUP(H4884,Translation!$A:$C,3,FALSE),H4884)","v":" > 65 % <= 70 %"}]
[7,"T3 2019","ASSURANCE DE PORTEFEUILLE","> 75 % <= 80 %",21.416299955622705,"Prêts hypothécaires assurés au cours de la période selon le rapport prêt-valeur (RPV) établi d’après la valeur initiale de la propriété (%)","21.4"," > 75 % <= 80 %",{"$f":"IFERROR(VLOOKUP(A4886,Translation!$A:$C,3,FALSE),A4886)","v":7},{"$f":"IFERROR(VLOOKUP(B4886,Translation!$A:$C,3,FALSE),B4886)","v":"T3 2019"},{"$f":"IFERROR(VLOOKUP(C4886,Translation!$A:$C,3,FALSE),C4886)","v":"ASSURANCE DE PORTEFEUILLE"},{"$f":"IFERROR(VLOOKUP(D4886,Translation!$A:$C,3,FALSE),D4886)","v":"> 75 % <= 80 %"},{"$f":"IFERROR(VLOOKUP(E4886,Translation!$A:$C,3,FALSE),E4886)","v":21.416299955622705},{"$f":"IFERROR(VLOOKUP(F4886,Translation!$A:$C,3,FALSE),F4886)","v":"Prêts hypothécaires assurés au cours de la période selon le rapport prêt-valeur (RPV) établi d’après la valeur initiale de la propriété (%)"},{"$f":"IFERROR(VLOOKUP(G4886,Translation!$A:$C,3,FALSE),G4886)","v":"21.4"},{"$f":"IFERROR(VLOOKUP(H4886,Translation!$A:$C,3,FALSE),H4886)","v":" > 75 % <= 80 %"}]
[7,"T3 2019","ASSURANCE DE PORTEFEUILLE","Nouvelle-Écosse",38.764544567458302,"Avoir propre foncier moyen selon la province","38.8","Nouvelle-Écosse",{"$f":"IFERROR(VLOOKUP(A4889,Translation!$A:$C,3,FALSE),A4889)","v":7},{"$f":"IFERROR(VLOOKUP(B4889,Translation!$A:$C,3,FALSE),B4889)","v":"T3 2019"},{"$f":"IFERROR(VLOOKUP(C4889,Translation!$A:$C,3,FALSE),C4889)","v":"ASSURANCE DE PORTEFEUILLE"},{"$f":"IFERROR(VLOOKUP(D4889,Translation!$A:$C,3,FALSE),D4889)","v":"Nouvelle-Écosse"},{"$f":"IFERROR(VLOOKUP(E4889,Translation!$A:$C,3,FALSE),E4889)","v":38.764544567458302},{"$f":"IFERROR(VLOOKUP(F4889,Translation!$A:$C,3,FALSE),F4889)","v":"Avoir propre foncier moyen selon la province"},{"$f":"IFERROR(VLOOKUP(G4889,Translation!$A:$C,3,FALSE),G4889)","v":"38.8"},{"$f":"IFERROR(VLOOKUP(H4889,Translation!$A:$C,3,FALSE),H4889)","v":"Nouvelle-Écosse"}]
[7,"T3 2019","ASSURANCE DE PORTEFEUILLE","Québec",33.76078440223425,"Avoir propre foncier moyen selon la province","33.8","Québec",{"$f":"IFERROR(VLOOKUP(A4891,Translation!$A:$C,3,FALSE),A4891)","v":7},{"$f":"IFERROR(VLOOKUP(B4891,Translation!$A:$C,3,FALSE),B4891)","v":"T3 2019"},{"$f":"IFERROR(VLOOKUP(C4891,Translation!$A:$C,3,FALSE),C4891)","v":"ASSURANCE DE PORTEFEUILLE"},{"$f":"IFERROR(VLOOKUP(D4891,Translation!$A:$C,3,FALSE),D4891)","v":"Québec"},{"$f":"IFERROR(VLOOKUP(E4891,Translation!$A:$C,3,FALSE),E4891)","v":33.76078440223425},{"$f":"IFERROR(VLOOKUP(F4891,Translation!$A:$C,3,FALSE),F4891)","v":"Avoir propre foncier moyen selon la province"},{"$f":"IFERROR(VLOOKUP(G4891,Translation!$A:$C,3,FALSE),G4891)","v":"33.8"},{"$f":"IFERROR(VLOOKUP(H4891,Translation!$A:$C,3,FALSE),H4891)","v":"Québec"}]
[7,"T3 2019","ASSURANCE DE PORTEFEUILLE","Saskatchewan",40.277815617990797,"Avoir propre foncier moyen selon la province","40.3","Saskatchewan",{"$f":"IFERROR(VLOOKUP(A4894,Translation!$A:$C,3,FALSE),A4894)","v":7},{"$f":"IFERROR(VLOOKUP(B4894,Translation!$A:$C,3,FALSE),B4894)","v":"T3 2019"},{"$f":"IFERROR(VLOOKUP(C4894,Translation!$A:$C,3,FALSE),C4894)","v":"ASSURANCE DE PORTEFEUILLE"},{"$f":"IFERROR(VLOOKUP(D4894,Translation!$A:$C,3,FALSE),D4894)","v":"Saskatchewan"},{"$f":"IFERROR(VLOOKUP(E4894,Translation!$A:$C,3,FALSE),E4894)","v":40.277815617990797},{"$f":"IFERROR(VLOOKUP(F4894,Translation!$A:$C,3,FALSE),F4894)","v":"Avoir propre foncier moyen selon la province"},{"$f":"IFERROR(VLOOKUP(G4894,Translation!$A:$C,3,FALSE),G4894)","v":"40.3"},{"$f":"IFERROR(VLOOKUP(H4894,Translation!$A:$C,3,FALSE),H4894)","v":"Saskatchewan"}]
[7,"T3 2019","ASSURANCE DE PORTEFEUILLE","Alberta",34.172218220620302,"Avoir propre foncier moyen selon la province","34.2","Alberta",{"$f":"IFERROR(VLOOKUP(A4895,Translation!$A:$C,3,FALSE),A4895)","v":7},{"$f":"IFERROR(VLOOKUP(B4895,Translation!$A:$C,3,FALSE),B4895)","v":"T3 2019"},{"$f":"IFERROR(VLOOKUP(C4895,Translation!$A:$C,3,FALSE),C4895)","v":"ASSURANCE DE PORTEFEUILLE"},{"$f":"IFERROR(VLOOKUP(D4895,Translation!$A:$C,3,FALSE),D4895)","v":"Alberta"},{"$f":"IFERROR(VLOOKUP(E4895,Translation!$A:$C,3,FALSE),E4895)","v":34.172218220620302},{"$f":"IFERROR(VLOOKUP(F4895,Translation!$A:$C,3,FALSE),F4895)","v":"Avoir propre foncier moyen selon la province"},{"$f":"IFERROR(VLOOKUP(G4895,Translation!$A:$C,3,FALSE),G4895)","v":"34.2"},{"$f":"IFERROR(VLOOKUP(H4895,Translation!$A:$C,3,FALSE),H4895)","v":"Alberta"}]
[27,"T3 2019","IMMEUBLES COLLECTIFS RÉSIDENTIELS","> 55 % <= 60 %",1.8438044666139788,"Prêts hypothécaires assurés au cours de la période selon le rapport prêt-valeur (RPV) établi d’après la valeur initiale de la propriété (%)","1.8"," > 55 % <= 60 %",{"$f":"IFERROR(VLOOKUP(A4899,Translation!$A:$C,3,FALSE),A4899)","v":27},{"$f":"IFERROR(VLOOKUP(B4899,Translation!$A:$C,3,FALSE),B4899)","v":"T3 2019"},{"$f":"IFERROR(VLOOKUP(C4899,Translation!$A:$C,3,FALSE),C4899)","v":"IMMEUBLES COLLECTIFS RÉSIDENTIELS"},{"$f":"IFERROR(VLOOKUP(D4899,Translation!$A:$C,3,FALSE),D4899)","v":"> 55 % <= 60 %"},{"$f":"IFERROR(VLOOKUP(E4899,Translation!$A:$C,3,FALSE),E4899)","v":1.8438044666139788},{"$f":"IFERROR(VLOOKUP(F4899,Translation!$A:$C,3,FALSE),F4899)","v":"Prêts hypothécaires assurés au cours de la période selon le rapport prêt-valeur (RPV) établi d’après la valeur initiale de la propriété (%)"},{"$f":"IFERROR(VLOOKUP(G4899,Translation!$A:$C,3,FALSE),G4899)","v":"1.8"},{"$f":"IFERROR(VLOOKUP(H4899,Translation!$A:$C,3,FALSE),H4899)","v":" > 55 % <= 60 %"}]
[27,"T3 2019","IMMEUBLES COLLECTIFS RÉSIDENTIELS","> 60 % <= 65 %",21.836518461267502,"Prêts hypothécaires assurés au cours de la période selon le rapport prêt-valeur (RPV) établi d’après la valeur initiale de la propriété (%)","21.8"," > 60 % <= 65 %",{"$f":"IFERROR(VLOOKUP(A4900,Translation!$A:$C,3,FALSE),A4900)","v":27},{"$f":"IFERROR(VLOOKUP(B4900,Translation!$A:$C,3,FALSE),B4900)","v":"T3 2019"},{"$f":"IFERROR(VLOOKUP(C4900,Translation!$A:$C,3,FALSE),C4900)","v":"IMMEUBLES COLLECTIFS RÉSIDENTIELS"},{"$f":"IFERROR(VLOOKUP(D4900,Translation!$A:$C,3,FALSE),D4900)","v":"> 60 % <= 65 %"},{"$f":"IFERROR(VLOOKUP(E4900,Translation!$A:$C,3,FALSE),E4900)","v":21.836518461267502},{"$f":"IFERROR(VLOOKUP(F4900,Translation!$A:$C,3,FALSE),F4900)","v":"Prêts hypothécaires assurés au cours de la période selon le rapport prêt-valeur (RPV) établi d’après la valeur initiale de la propriété (%)"},{"$f":"IFERROR(VLOOKUP(G4900,Translation!$A:$C,3,FALSE),G4900)","v":"21.8"},{"$f":"IFERROR(VLOOKUP(H4900,Translation!$A:$C,3,FALSE),H4900)","v":" > 60 % <= 65 %"}]
[27,"T3 2019","IMMEUBLES COLLECTIFS RÉSIDENTIELS","> 80 % <= 85 %",28.085972801213504,"Prêts hypothécaires assurés au cours de la période selon le rapport prêt-valeur (RPV) établi d’après la valeur initiale de la propriété (%)","28.1"," > 80 % <= 85 %",{"$f":"IFERROR(VLOOKUP(A4904,Translation!$A:$C,3,FALSE),A4904)","v":27},{"$f":"IFERROR(VLOOKUP(B4904,Translation!$A:$C,3,FALSE),B4904)","v":"T3 2019"},{"$f":"IFERROR(VLOOKUP(C4904,Translation!$A:$C,3,FALSE),C4904)","v":"IMMEUBLES COLLECTIFS RÉSIDENTIELS"},{"$f":"IFERROR(VLOOKUP(D4904,Translation!$A:$C,3,FALSE),D4904)","v":"> 80 % <= 85 %"},{"$f":"IFERROR(VLOOKUP(E4904,Translation!$A:$C,3,FALSE),E4904)","v":28.085972801213504},{"$f":"IFERROR(VLOOKUP(F4904,Translation!$A:$C,3,FALSE),F4904)","v":"Prêts hypothécaires assurés au cours de la période selon le rapport prêt-valeur (RPV) établi d’après la valeur initiale de la propriété (%)"},{"$f":"IFERROR(VLOOKUP(G4904,Translation!$A:$C,3,FALSE),G4904)","v":"28.1"},{"$f":"IFERROR(VLOOKUP(H4904,Translation!$A:$C,3,FALSE),H4904)","v":" > 80 % <= 85 %"}]
[27,"T3 2019","IMMEUBLES COLLECTIFS RÉSIDENTIELS","> 85 % <= 90 %",1.1051491467582453,"Prêts hypothécaires assurés au cours de la période selon le rapport prêt-valeur (RPV) établi d’après la valeur initiale de la propriété (%)","1.1"," > 85 % <= 90 %",{"$f":"IFERROR(VLOOKUP(A4905,Translation!$A:$C,3,FALSE),A4905)","v":27},{"$f":"IFERROR(VLOOKUP(B4905,Translation!$A:$C,3,FALSE),B4905)","v":"T3 2019"},{"$f":"IFERROR(VLOOKUP(C4905,Translation!$A:$C,3,FALSE),C4905)","v":"IMMEUBLES COLLECTIFS RÉSIDENTIELS"},{"$f":"IFERROR(VLOOKUP(D4905,Translation!$A:$C,3,FALSE),D4905)","v":"> 85 % <= 90 %"},{"$f":"IFERROR(VLOOKUP(E4905,Translation!$A:$C,3,FALSE),E4905)","v":1.1051491467582453},{"$f":"IFERROR(VLOOKUP(F4905,Translation!$A:$C,3,FALSE),F4905)","v":"Prêts hypothécaires assurés au cours de la période selon le rapport prêt-valeur (RPV) établi d’après la valeur initiale de la propriété (%)"},{"$f":"IFERROR(VLOOKUP(G4905,Translation!$A:$C,3,FALSE),G4905)","v":"1.1"},{"$f":"IFERROR(VLOOKUP(H4905,Translation!$A:$C,3,FALSE),H4905)","v":" > 85 % <= 90 %"}]
[27,"T3 2019","IMMEUBLES COLLECTIFS RÉSIDENTIELS","Rapport prêt-valeur moyen ",75.706834310031738,"Prêts hypothécaires assurés au cours de la période selon le rapport prêt-valeur (RPV) établi d’après la valeur initiale de la propriété (%)","75.7","Rapport prêt-valeur moyen ",{"$f":"IFERROR(VLOOKUP(A4908,Translation!$A:$C,3,FALSE),A4908)","v":27},{"$f":"IFERROR(VLOOKUP(B4908,Translation!$A:$C,3,FALSE),B4908)","v":"T3 2019"},{"$f":"IFERROR(VLOOKUP(C4908,Translation!$A:$C,3,FALSE),C4908)","v":"IMMEUBLES COLLECTIFS RÉSIDENTIELS"},{"$f":"IFERROR(VLOOKUP(D4908,Translation!$A:$C,3,FALSE),D4908)","v":"Rapport prêt-valeur moyen "},{"$f":"IFERROR(VLOOKUP(E4908,Translation!$A:$C,3,FALSE),E4908)","v":75.706834310031738},{"$f":"IFERROR(VLOOKUP(F4908,Translation!$A:$C,3,FALSE),F4908)","v":"Prêts hypothécaires assurés au cours de la période selon le rapport prêt-valeur (RPV) établi d’après la valeur initiale de la propriété (%)"},{"$f":"IFERROR(VLOOKUP(G4908,Translation!$A:$C,3,FALSE),G4908)","v":"75.7"},{"$f":"IFERROR(VLOOKUP(H4908,Translation!$A:$C,3,FALSE),H4908)","v":"Rapport prêt-valeur moyen "}]
[27,"T3 2019","IMMEUBLES COLLECTIFS RÉSIDENTIELS","Île-du-Prince-Édouard",15,"Avoir propre foncier moyen selon la province","15.0","Île-du-Prince-Édouard",{"$f":"IFERROR(VLOOKUP(A4910,Translation!$A:$C,3,FALSE),A4910)","v":27},{"$f":"IFERROR(VLOOKUP(B4910,Translation!$A:$C,3,FALSE),B4910)","v":"T3 2019"},{"$f":"IFERROR(VLOOKUP(C4910,Translation!$A:$C,3,FALSE),C4910)","v":"IMMEUBLES COLLECTIFS RÉSIDENTIELS"},{"$f":"IFERROR(VLOOKUP(D4910,Translation!$A:$C,3,FALSE),D4910)","v":"Île-du-Prince-Édouard"},{"$f":"IFERROR(VLOOKUP(E4910,Translation!$A:$C,3,FALSE),E4910)","v":15},{"$f":"IFERROR(VLOOKUP(F4910,Translation!$A:$C,3,FALSE),F4910)","v":"Avoir propre foncier moyen selon la province"},{"$f":"IFERROR(VLOOKUP(G4910,Translation!$A:$C,3,FALSE),G4910)","v":"15.0"},{"$f":"IFERROR(VLOOKUP(H4910,Translation!$A:$C,3,FALSE),H4910)","v":"Île-du-Prince-Édouard"}]
[27,"T3 2019","IMMEUBLES COLLECTIFS RÉSIDENTIELS","Ontario",27.713241180743321,"Avoir propre foncier moyen selon la province","27.7","Ontario",{"$f":"IFERROR(VLOOKUP(A4914,Translation!$A:$C,3,FALSE),A4914)","v":27},{"$f":"IFERROR(VLOOKUP(B4914,Translation!$A:$C,3,FALSE),B4914)","v":"T3 2019"},{"$f":"IFERROR(VLOOKUP(C4914,Translation!$A:$C,3,FALSE),C4914)","v":"IMMEUBLES COLLECTIFS RÉSIDENTIELS"},{"$f":"IFERROR(VLOOKUP(D4914,Translation!$A:$C,3,FALSE),D4914)","v":"Ontario"},{"$f":"IFERROR(VLOOKUP(E4914,Translation!$A:$C,3,FALSE),E4914)","v":27.713241180743321},{"$f":"IFERROR(VLOOKUP(F4914,Translation!$A:$C,3,FALSE),F4914)","v":"Avoir propre foncier moyen selon la province"},{"$f":"IFERROR(VLOOKUP(G4914,Translation!$A:$C,3,FALSE),G4914)","v":"27.7"},{"$f":"IFERROR(VLOOKUP(H4914,Translation!$A:$C,3,FALSE),H4914)","v":"Ontario"}]
[27,"T3 2019","IMMEUBLES COLLECTIFS RÉSIDENTIELS","Manitoba",14.8390330789953,"Avoir propre foncier moyen selon la province","14.8","Manitoba",{"$f":"IFERROR(VLOOKUP(A4915,Translation!$A:$C,3,FALSE),A4915)","v":27},{"$f":"IFERROR(VLOOKUP(B4915,Translation!$A:$C,3,FALSE),B4915)","v":"T3 2019"},{"$f":"IFERROR(VLOOKUP(C4915,Translation!$A:$C,3,FALSE),C4915)","v":"IMMEUBLES COLLECTIFS RÉSIDENTIELS"},{"$f":"IFERROR(VLOOKUP(D4915,Translation!$A:$C,3,FALSE),D4915)","v":"Manitoba"},{"$f":"IFERROR(VLOOKUP(E4915,Translation!$A:$C,3,FALSE),E4915)","v":14.8390330789953},{"$f":"IFERROR(VLOOKUP(F4915,Translation!$A:$C,3,FALSE),F4915)","v":"Avoir propre foncier moyen selon la province"},{"$f":"IFERROR(VLOOKUP(G4915,Translation!$A:$C,3,FALSE),G4915)","v":"14.8"},{"$f":"IFERROR(VLOOKUP(H4915,Translation!$A:$C,3,FALSE),H4915)","v":"Manitoba"}]
[27,"T3 2019","IMMEUBLES COLLECTIFS RÉSIDENTIELS","Colombie-Britannique",23.562455963788601,"Avoir propre foncier moyen selon la province","23.6","Colombie-Britannique",{"$f":"IFERROR(VLOOKUP(A4918,Translation!$A:$C,3,FALSE),A4918)","v":27},{"$f":"IFERROR(VLOOKUP(B4918,Translation!$A:$C,3,FALSE),B4918)","v":"T3 2019"},{"$f":"IFERROR(VLOOKUP(C4918,Translation!$A:$C,3,FALSE),C4918)","v":"IMMEUBLES COLLECTIFS RÉSIDENTIELS"},{"$f":"IFERROR(VLOOKUP(D4918,Translation!$A:$C,3,FALSE),D4918)","v":"Colombie-Britannique"},{"$f":"IFERROR(VLOOKUP(E4918,Translation!$A:$C,3,FALSE),E4918)","v":23.562455963788601},{"$f":"IFERROR(VLOOKUP(F4918,Translation!$A:$C,3,FALSE),F4918)","v":"Avoir propre foncier moyen selon la province"},{"$f":"IFERROR(VLOOKUP(G4918,Translation!$A:$C,3,FALSE),G4918)","v":"23.6"},{"$f":"IFERROR(VLOOKUP(H4918,Translation!$A:$C,3,FALSE),H4918)","v":"Colombie-Britannique"}]
[27,"T3 2019","IMMEUBLES COLLECTIFS RÉSIDENTIELS","Territoires",29.341278402403752,"Avoir propre foncier moyen selon la province","29.3","Territoires",{"$f":"IFERROR(VLOOKUP(A4919,Translation!$A:$C,3,FALSE),A4919)","v":27},{"$f":"IFERROR(VLOOKUP(B4919,Translation!$A:$C,3,FALSE),B4919)","v":"T3 2019"},{"$f":"IFERROR(VLOOKUP(C4919,Translation!$A:$C,3,FALSE),C4919)","v":"IMMEUBLES COLLECTIFS RÉSIDENTIELS"},{"$f":"IFERROR(VLOOKUP(D4919,Translation!$A:$C,3,FALSE),D4919)","v":"Territoires"},{"$f":"IFERROR(VLOOKUP(E4919,Translation!$A:$C,3,FALSE),E4919)","v":29.341278402403752},{"$f":"IFERROR(VLOOKUP(F4919,Translation!$A:$C,3,FALSE),F4919)","v":"Avoir propre foncier moyen selon la province"},{"$f":"IFERROR(VLOOKUP(G4919,Translation!$A:$C,3,FALSE),G4919)","v":"29.3"},{"$f":"IFERROR(VLOOKUP(H4919,Translation!$A:$C,3,FALSE),H4919)","v":"Territoires"}]
[7,"T2 2019","PROPRIÉTAIRES-OCCUPANTS, À L’UNITÉ","> 60 % <= 65 %",0.1079383341577156,"Prêts hypothécaires assurés au cours de la période selon le rapport prêt-valeur (RPV) établi d’après la valeur initiale de la propriété (%)","0.1"," > 60 % <= 65 %",{"$f":"IFERROR(VLOOKUP(A4923,Translation!$A:$C,3,FALSE),A4923)","v":7},{"$f":"IFERROR(VLOOKUP(B4923,Translation!$A:$C,3,FALSE),B4923)","v":"T2 2019"},{"$f":"IFERROR(VLOOKUP(C4923,Translation!$A:$C,3,FALSE),C4923)","v":"PROPRIÉTAIRES-OCCUPANTS, À L’UNITÉ"},{"$f":"IFERROR(VLOOKUP(D4923,Translation!$A:$C,3,FALSE),D4923)","v":"> 60 % <= 65 %"},{"$f":"IFERROR(VLOOKUP(E4923,Translation!$A:$C,3,FALSE),E4923)","v":0.1079383341577156},{"$f":"IFERROR(VLOOKUP(F4923,Translation!$A:$C,3,FALSE),F4923)","v":"Prêts hypothécaires assurés au cours de la période selon le rapport prêt-valeur (RPV) établi d’après la valeur initiale de la propriété (%)"},{"$f":"IFERROR(VLOOKUP(G4923,Translation!$A:$C,3,FALSE),G4923)","v":"0.1"},{"$f":"IFERROR(VLOOKUP(H4923,Translation!$A:$C,3,FALSE),H4923)","v":" > 60 % <= 65 %"}]
[7,"T2 2019","PROPRIÉTAIRES-OCCUPANTS, À L’UNITÉ","> 70 % <= 75 %",0.14282221664359679,"Prêts hypothécaires assurés au cours de la période selon le rapport prêt-valeur (RPV) établi d’après la valeur initiale de la propriété (%)","0.1"," > 70 % <= 75 %",{"$f":"IFERROR(VLOOKUP(A4925,Translation!$A:$C,3,FALSE),A4925)","v":7},{"$f":"IFERROR(VLOOKUP(B4925,Translation!$A:$C,3,FALSE),B4925)","v":"T2 2019"},{"$f":"IFERROR(VLOOKUP(C4925,Translation!$A:$C,3,FALSE),C4925)","v":"PROPRIÉTAIRES-OCCUPANTS, À L’UNITÉ"},{"$f":"IFERROR(VLOOKUP(D4925,Translation!$A:$C,3,FALSE),D4925)","v":"> 70 % <= 75 %"},{"$f":"IFERROR(VLOOKUP(E4925,Translation!$A:$C,3,FALSE),E4925)","v":0.14282221664359679},{"$f":"IFERROR(VLOOKUP(F4925,Translation!$A:$C,3,FALSE),F4925)","v":"Prêts hypothécaires assurés au cours de la période selon le rapport prêt-valeur (RPV) établi d’après la valeur initiale de la propriété (%)"},{"$f":"IFERROR(VLOOKUP(G4925,Translation!$A:$C,3,FALSE),G4925)","v":"0.1"},{"$f":"IFERROR(VLOOKUP(H4925,Translation!$A:$C,3,FALSE),H4925)","v":" > 70 % <= 75 %"}]
[7,"T2 2019","PROPRIÉTAIRES-OCCUPANTS, À L’UNITÉ","> 85 % <= 90 %",24.409321928262639,"Prêts hypothécaires assurés au cours de la période selon le rapport prêt-valeur (RPV) établi d’après la valeur initiale de la propriété (%)","24.4"," > 85 % <= 90 %",{"$f":"IFERROR(VLOOKUP(A4928,Translation!$A:$C,3,FALSE),A4928)","v":7},{"$f":"IFERROR(VLOOKUP(B4928,Translation!$A:$C,3,FALSE),B4928)","v":"T2 2019"},{"$f":"IFERROR(VLOOKUP(C4928,Translation!$A:$C,3,FALSE),C4928)","v":"PROPRIÉTAIRES-OCCUPANTS, À L’UNITÉ"},{"$f":"IFERROR(VLOOKUP(D4928,Translation!$A:$C,3,FALSE),D4928)","v":"> 85 % <= 90 %"},{"$f":"IFERROR(VLOOKUP(E4928,Translation!$A:$C,3,FALSE),E4928)","v":24.409321928262639},{"$f":"IFERROR(VLOOKUP(F4928,Translation!$A:$C,3,FALSE),F4928)","v":"Prêts hypothécaires assurés au cours de la période selon le rapport prêt-valeur (RPV) établi d’après la valeur initiale de la propriété (%)"},{"$f":"IFERROR(VLOOKUP(G4928,Translation!$A:$C,3,FALSE),G4928)","v":"24.4"},{"$f":"IFERROR(VLOOKUP(H4928,Translation!$A:$C,3,FALSE),H4928)","v":" > 85 % <= 90 %"}]
[7,"T2 2019","PROPRIÉTAIRES-OCCUPANTS, À L’UNITÉ","> 90 % <= 95 %",70.525527398298394,"Prêts hypothécaires assurés au cours de la période selon le rapport prêt-valeur (RPV) établi d’après la valeur initiale de la propriété (%)","70.5"," > 90 % <= 95 %",{"$f":"IFERROR(VLOOKUP(A4929,Translation!$A:$C,3,FALSE),A4929)","v":7},{"$f":"IFERROR(VLOOKUP(B4929,Translation!$A:$C,3,FALSE),B4929)","v":"T2 2019"},{"$f":"IFERROR(VLOOKUP(C4929,Translation!$A:$C,3,FALSE),C4929)","v":"PROPRIÉTAIRES-OCCUPANTS, À L’UNITÉ"},{"$f":"IFERROR(VLOOKUP(D4929,Translation!$A:$C,3,FALSE),D4929)","v":"> 90 % <= 95 %"},{"$f":"IFERROR(VLOOKUP(E4929,Translation!$A:$C,3,FALSE),E4929)","v":70.525527398298394},{"$f":"IFERROR(VLOOKUP(F4929,Translation!$A:$C,3,FALSE),F4929)","v":"Prêts hypothécaires assurés au cours de la période selon le rapport prêt-valeur (RPV) établi d’après la valeur initiale de la propriété (%)"},{"$f":"IFERROR(VLOOKUP(G4929,Translation!$A:$C,3,FALSE),G4929)","v":"70.5"},{"$f":"IFERROR(VLOOKUP(H4929,Translation!$A:$C,3,FALSE),H4929)","v":" > 90 % <= 95 %"}]
[7,"T2 2019","PROPRIÉTAIRES-OCCUPANTS, À L’UNITÉ","Île-du-Prince-Édouard",7.0328967984656723,"Avoir propre foncier moyen selon la province","7.0","Île-du-Prince-Édouard",{"$f":"IFERROR(VLOOKUP(A4933,Translation!$A:$C,3,FALSE),A4933)","v":7},{"$f":"IFERROR(VLOOKUP(B4933,Translation!$A:$C,3,FALSE),B4933)","v":"T2 2019"},{"$f":"IFERROR(VLOOKUP(C4933,Translation!$A:$C,3,FALSE),C4933)","v":"PROPRIÉTAIRES-OCCUPANTS, À L’UNITÉ"},{"$f":"IFERROR(VLOOKUP(D4933,Translation!$A:$C,3,FALSE),D4933)","v":"Île-du-Prince-Édouard"},{"$f":"IFERROR(VLOOKUP(E4933,Translation!$A:$C,3,FALSE),E4933)","v":7.0328967984656723},{"$f":"IFERROR(VLOOKUP(F4933,Translation!$A:$C,3,FALSE),F4933)","v":"Avoir propre foncier moyen selon la province"},{"$f":"IFERROR(VLOOKUP(G4933,Translation!$A:$C,3,FALSE),G4933)","v":"7.0"},{"$f":"IFERROR(VLOOKUP(H4933,Translation!$A:$C,3,FALSE),H4933)","v":"Île-du-Prince-Édouard"}]
[7,"T2 2019","PROPRIÉTAIRES-OCCUPANTS, À L’UNITÉ","Nouvelle-Écosse",6.6372226762931215,"Avoir propre foncier moyen selon la province","6.6","Nouvelle-Écosse",{"$f":"IFERROR(VLOOKUP(A4934,Translation!$A:$C,3,FALSE),A4934)","v":7},{"$f":"IFERROR(VLOOKUP(B4934,Translation!$A:$C,3,FALSE),B4934)","v":"T2 2019"},{"$f":"IFERROR(VLOOKUP(C4934,Translation!$A:$C,3,FALSE),C4934)","v":"PROPRIÉTAIRES-OCCUPANTS, À L’UNITÉ"},{"$f":"IFERROR(VLOOKUP(D4934,Translation!$A:$C,3,FALSE),D4934)","v":"Nouvelle-Écosse"},{"$f":"IFERROR(VLOOKUP(E4934,Translation!$A:$C,3,FALSE),E4934)","v":6.6372226762931215},{"$f":"IFERROR(VLOOKUP(F4934,Translation!$A:$C,3,FALSE),F4934)","v":"Avoir propre foncier moyen selon la province"},{"$f":"IFERROR(VLOOKUP(G4934,Translation!$A:$C,3,FALSE),G4934)","v":"6.6"},{"$f":"IFERROR(VLOOKUP(H4934,Translation!$A:$C,3,FALSE),H4934)","v":"Nouvelle-Écosse"}]
[7,"T2 2019","PROPRIÉTAIRES-OCCUPANTS, À L’UNITÉ","Québec",6.8997497829799359,"Avoir propre foncier moyen selon la province","6.9","Québec",{"$f":"IFERROR(VLOOKUP(A4936,Translation!$A:$C,3,FALSE),A4936)","v":7},{"$f":"IFERROR(VLOOKUP(B4936,Translation!$A:$C,3,FALSE),B4936)","v":"T2 2019"},{"$f":"IFERROR(VLOOKUP(C4936,Translation!$A:$C,3,FALSE),C4936)","v":"PROPRIÉTAIRES-OCCUPANTS, À L’UNITÉ"},{"$f":"IFERROR(VLOOKUP(D4936,Translation!$A:$C,3,FALSE),D4936)","v":"Québec"},{"$f":"IFERROR(VLOOKUP(E4936,Translation!$A:$C,3,FALSE),E4936)","v":6.8997497829799359},{"$f":"IFERROR(VLOOKUP(F4936,Translation!$A:$C,3,FALSE),F4936)","v":"Avoir propre foncier moyen selon la province"},{"$f":"IFERROR(VLOOKUP(G4936,Translation!$A:$C,3,FALSE),G4936)","v":"6.9"},{"$f":"IFERROR(VLOOKUP(H4936,Translation!$A:$C,3,FALSE),H4936)","v":"Québec"}]
[7,"T2 2019","PROPRIÉTAIRES-OCCUPANTS, À L’UNITÉ","Saskatchewan",6.4815301623793307,"Avoir propre foncier moyen selon la province","6.5","Saskatchewan",{"$f":"IFERROR(VLOOKUP(A4939,Translation!$A:$C,3,FALSE),A4939)","v":7},{"$f":"IFERROR(VLOOKUP(B4939,Translation!$A:$C,3,FALSE),B4939)","v":"T2 2019"},{"$f":"IFERROR(VLOOKUP(C4939,Translation!$A:$C,3,FALSE),C4939)","v":"PROPRIÉTAIRES-OCCUPANTS, À L’UNITÉ"},{"$f":"IFERROR(VLOOKUP(D4939,Translation!$A:$C,3,FALSE),D4939)","v":"Saskatchewan"},{"$f":"IFERROR(VLOOKUP(E4939,Translation!$A:$C,3,FALSE),E4939)","v":6.4815301623793307},{"$f":"IFERROR(VLOOKUP(F4939,Translation!$A:$C,3,FALSE),F4939)","v":"Avoir propre foncier moyen selon la province"},{"$f":"IFERROR(VLOOKUP(G4939,Translation!$A:$C,3,FALSE),G4939)","v":"6.5"},{"$f":"IFERROR(VLOOKUP(H4939,Translation!$A:$C,3,FALSE),H4939)","v":"Saskatchewan"}]
[7,"T2 2019","PROPRIÉTAIRES-OCCUPANTS, À L’UNITÉ","Territoires",7.9903338233957024,"Avoir propre foncier moyen selon la province","8.0","Territoires",{"$f":"IFERROR(VLOOKUP(A4942,Translation!$A:$C,3,FALSE),A4942)","v":7},{"$f":"IFERROR(VLOOKUP(B4942,Translation!$A:$C,3,FALSE),B4942)","v":"T2 2019"},{"$f":"IFERROR(VLOOKUP(C4942,Translation!$A:$C,3,FALSE),C4942)","v":"PROPRIÉTAIRES-OCCUPANTS, À L’UNITÉ"},{"$f":"IFERROR(VLOOKUP(D4942,Translation!$A:$C,3,FALSE),D4942)","v":"Territoires"},{"$f":"IFERROR(VLOOKUP(E4942,Translation!$A:$C,3,FALSE),E4942)","v":7.9903338233957024},{"$f":"IFERROR(VLOOKUP(F4942,Translation!$A:$C,3,FALSE),F4942)","v":"Avoir propre foncier moyen selon la province"},{"$f":"IFERROR(VLOOKUP(G4942,Translation!$A:$C,3,FALSE),G4942)","v":"8.0"},{"$f":"IFERROR(VLOOKUP(H4942,Translation!$A:$C,3,FALSE),H4942)","v":"Territoires"}]
[7,"T2 2019","ASSURANCE DE PORTEFEUILLE","> 50 % <= 55 %",5.4329842068953802,"Prêts hypothécaires assurés au cours de la période selon le rapport prêt-valeur (RPV) établi d’après la valeur initiale de la propriété (%)","5.4"," > 50 % <= 55 %",{"$f":"IFERROR(VLOOKUP(A4944,Translation!$A:$C,3,FALSE),A4944)","v":7},{"$f":"IFERROR(VLOOKUP(B4944,Translation!$A:$C,3,FALSE),B4944)","v":"T2 2019"},{"$f":"IFERROR(VLOOKUP(C4944,Translation!$A:$C,3,FALSE),C4944)","v":"ASSURANCE DE PORTEFEUILLE"},{"$f":"IFERROR(VLOOKUP(D4944,Translation!$A:$C,3,FALSE),D4944)","v":"> 50 % <= 55 %"},{"$f":"IFERROR(VLOOKUP(E4944,Translation!$A:$C,3,FALSE),E4944)","v":5.4329842068953802},{"$f":"IFERROR(VLOOKUP(F4944,Translation!$A:$C,3,FALSE),F4944)","v":"Prêts hypothécaires assurés au cours de la période selon le rapport prêt-valeur (RPV) établi d’après la valeur initiale de la propriété (%)"},{"$f":"IFERROR(VLOOKUP(G4944,Translation!$A:$C,3,FALSE),G4944)","v":"5.4"},{"$f":"IFERROR(VLOOKUP(H4944,Translation!$A:$C,3,FALSE),H4944)","v":" > 50 % <= 55 %"}]
[7,"T2 2019","ASSURANCE DE PORTEFEUILLE","> 65 % <= 70 %",8.0240081640475189,"Prêts hypothécaires assurés au cours de la période selon le rapport prêt-valeur (RPV) établi d’après la valeur initiale de la propriété (%)","8.0"," > 65 % <= 70 %",{"$f":"IFERROR(VLOOKUP(A4947,Translation!$A:$C,3,FALSE),A4947)","v":7},{"$f":"IFERROR(VLOOKUP(B4947,Translation!$A:$C,3,FALSE),B4947)","v":"T2 2019"},{"$f":"IFERROR(VLOOKUP(C4947,Translation!$A:$C,3,FALSE),C4947)","v":"ASSURANCE DE PORTEFEUILLE"},{"$f":"IFERROR(VLOOKUP(D4947,Translation!$A:$C,3,FALSE),D4947)","v":"> 65 % <= 70 %"},{"$f":"IFERROR(VLOOKUP(E4947,Translation!$A:$C,3,FALSE),E4947)","v":8.0240081640475189},{"$f":"IFERROR(VLOOKUP(F4947,Translation!$A:$C,3,FALSE),F4947)","v":"Prêts hypothécaires assurés au cours de la période selon le rapport prêt-valeur (RPV) établi d’après la valeur initiale de la propriété (%)"},{"$f":"IFERROR(VLOOKUP(G4947,Translation!$A:$C,3,FALSE),G4947)","v":"8.0"},{"$f":"IFERROR(VLOOKUP(H4947,Translation!$A:$C,3,FALSE),H4947)","v":" > 65 % <= 70 %"}]
[7,"T2 2019","ASSURANCE DE PORTEFEUILLE","Rapport prêt-valeur moyen ",64.615233268501839,"Prêts hypothécaires assurés au cours de la période selon le rapport prêt-valeur (RPV) établi d’après la valeur initiale de la propriété (%)","64.6","Rapport prêt-valeur moyen ",{"$f":"IFERROR(VLOOKUP(A4950,Translation!$A:$C,3,FALSE),A4950)","v":7},{"$f":"IFERROR(VLOOKUP(B4950,Translation!$A:$C,3,FALSE),B4950)","v":"T2 2019"},{"$f":"IFERROR(VLOOKUP(C4950,Translation!$A:$C,3,FALSE),C4950)","v":"ASSURANCE DE PORTEFEUILLE"},{"$f":"IFERROR(VLOOKUP(D4950,Translation!$A:$C,3,FALSE),D4950)","v":"Rapport prêt-valeur moyen "},{"$f":"IFERROR(VLOOKUP(E4950,Translation!$A:$C,3,FALSE),E4950)","v":64.615233268501839},{"$f":"IFERROR(VLOOKUP(F4950,Translation!$A:$C,3,FALSE),F4950)","v":"Prêts hypothécaires assurés au cours de la période selon le rapport prêt-valeur (RPV) établi d’après la valeur initiale de la propriété (%)"},{"$f":"IFERROR(VLOOKUP(G4950,Translation!$A:$C,3,FALSE),G4950)","v":"64.6"},{"$f":"IFERROR(VLOOKUP(H4950,Translation!$A:$C,3,FALSE),H4950)","v":"Rapport prêt-valeur moyen "}]
[7,"T2 2019","ASSURANCE DE PORTEFEUILLE","Terre-Neuve-et-Labrador",28.616674438318512,"Avoir propre foncier moyen selon la province","28.6","Terre-Neuve-et-Labrador",{"$f":"IFERROR(VLOOKUP(A4952,Translation!$A:$C,3,FALSE),A4952)","v":7},{"$f":"IFERROR(VLOOKUP(B4952,Translation!$A:$C,3,FALSE),B4952)","v":"T2 2019"},{"$f":"IFERROR(VLOOKUP(C4952,Translation!$A:$C,3,FALSE),C4952)","v":"ASSURANCE DE PORTEFEUILLE"},{"$f":"IFERROR(VLOOKUP(D4952,Translation!$A:$C,3,FALSE),D4952)","v":"Terre-Neuve-et-Labrador"},{"$f":"IFERROR(VLOOKUP(E4952,Translation!$A:$C,3,FALSE),E4952)","v":28.616674438318512},{"$f":"IFERROR(VLOOKUP(F4952,Translation!$A:$C,3,FALSE),F4952)","v":"Avoir propre foncier moyen selon la province"},{"$f":"IFERROR(VLOOKUP(G4952,Translation!$A:$C,3,FALSE),G4952)","v":"28.6"},{"$f":"IFERROR(VLOOKUP(H4952,Translation!$A:$C,3,FALSE),H4952)","v":"Terre-Neuve-et-Labrador"}]
[7,"T2 2019","ASSURANCE DE PORTEFEUILLE","Île-du-Prince-Édouard",27.664498825215809,"Avoir propre foncier moyen selon la province","27.7","Île-du-Prince-Édouard",{"$f":"IFERROR(VLOOKUP(A4953,Translation!$A:$C,3,FALSE),A4953)","v":7},{"$f":"IFERROR(VLOOKUP(B4953,Translation!$A:$C,3,FALSE),B4953)","v":"T2 2019"},{"$f":"IFERROR(VLOOKUP(C4953,Translation!$A:$C,3,FALSE),C4953)","v":"ASSURANCE DE PORTEFEUILLE"},{"$f":"IFERROR(VLOOKUP(D4953,Translation!$A:$C,3,FALSE),D4953)","v":"Île-du-Prince-Édouard"},{"$f":"IFERROR(VLOOKUP(E4953,Translation!$A:$C,3,FALSE),E4953)","v":27.664498825215809},{"$f":"IFERROR(VLOOKUP(F4953,Translation!$A:$C,3,FALSE),F4953)","v":"Avoir propre foncier moyen selon la province"},{"$f":"IFERROR(VLOOKUP(G4953,Translation!$A:$C,3,FALSE),G4953)","v":"27.7"},{"$f":"IFERROR(VLOOKUP(H4953,Translation!$A:$C,3,FALSE),H4953)","v":"Île-du-Prince-Édouard"}]
[7,"T2 2019","ASSURANCE DE PORTEFEUILLE","Nouveau-Brunswick",26.54683552814863,"Avoir propre foncier moyen selon la province","26.5","Nouveau-Brunswick",{"$f":"IFERROR(VLOOKUP(A4955,Translation!$A:$C,3,FALSE),A4955)","v":7},{"$f":"IFERROR(VLOOKUP(B4955,Translation!$A:$C,3,FALSE),B4955)","v":"T2 2019"},{"$f":"IFERROR(VLOOKUP(C4955,Translation!$A:$C,3,FALSE),C4955)","v":"ASSURANCE DE PORTEFEUILLE"},{"$f":"IFERROR(VLOOKUP(D4955,Translation!$A:$C,3,FALSE),D4955)","v":"Nouveau-Brunswick"},{"$f":"IFERROR(VLOOKUP(E4955,Translation!$A:$C,3,FALSE),E4955)","v":26.54683552814863},{"$f":"IFERROR(VLOOKUP(F4955,Translation!$A:$C,3,FALSE),F4955)","v":"Avoir propre foncier moyen selon la province"},{"$f":"IFERROR(VLOOKUP(G4955,Translation!$A:$C,3,FALSE),G4955)","v":"26.5"},{"$f":"IFERROR(VLOOKUP(H4955,Translation!$A:$C,3,FALSE),H4955)","v":"Nouveau-Brunswick"}]
[7,"T2 2019","ASSURANCE DE PORTEFEUILLE","Manitoba",30.824236986998475,"Avoir propre foncier moyen selon la province","30.8","Manitoba",{"$f":"IFERROR(VLOOKUP(A4958,Translation!$A:$C,3,FALSE),A4958)","v":7},{"$f":"IFERROR(VLOOKUP(B4958,Translation!$A:$C,3,FALSE),B4958)","v":"T2 2019"},{"$f":"IFERROR(VLOOKUP(C4958,Translation!$A:$C,3,FALSE),C4958)","v":"ASSURANCE DE PORTEFEUILLE"},{"$f":"IFERROR(VLOOKUP(D4958,Translation!$A:$C,3,FALSE),D4958)","v":"Manitoba"},{"$f":"IFERROR(VLOOKUP(E4958,Translation!$A:$C,3,FALSE),E4958)","v":30.824236986998475},{"$f":"IFERROR(VLOOKUP(F4958,Translation!$A:$C,3,FALSE),F4958)","v":"Avoir propre foncier moyen selon la province"},{"$f":"IFERROR(VLOOKUP(G4958,Translation!$A:$C,3,FALSE),G4958)","v":"30.8"},{"$f":"IFERROR(VLOOKUP(H4958,Translation!$A:$C,3,FALSE),H4958)","v":"Manitoba"}]
[7,"T2 2019","ASSURANCE DE PORTEFEUILLE","Colombie-Britannique",42.316299640974883,"Avoir propre foncier moyen selon la province","42.3","Colombie-Britannique",{"$f":"IFERROR(VLOOKUP(A4961,Translation!$A:$C,3,FALSE),A4961)","v":7},{"$f":"IFERROR(VLOOKUP(B4961,Translation!$A:$C,3,FALSE),B4961)","v":"T2 2019"},{"$f":"IFERROR(VLOOKUP(C4961,Translation!$A:$C,3,FALSE),C4961)","v":"ASSURANCE DE PORTEFEUILLE"},{"$f":"IFERROR(VLOOKUP(D4961,Translation!$A:$C,3,FALSE),D4961)","v":"Colombie-Britannique"},{"$f":"IFERROR(VLOOKUP(E4961,Translation!$A:$C,3,FALSE),E4961)","v":42.316299640974883},{"$f":"IFERROR(VLOOKUP(F4961,Translation!$A:$C,3,FALSE),F4961)","v":"Avoir propre foncier moyen selon la province"},{"$f":"IFERROR(VLOOKUP(G4961,Translation!$A:$C,3,FALSE),G4961)","v":"42.3"},{"$f":"IFERROR(VLOOKUP(H4961,Translation!$A:$C,3,FALSE),H4961)","v":"Colombie-Britannique"}]
[27,"T2 2019","IMMEUBLES COLLECTIFS RÉSIDENTIELS","> 50 % <= 55 %",1.351736656865075,"Prêts hypothécaires assurés au cours de la période selon le rapport prêt-valeur (RPV) établi d’après la valeur initiale de la propriété (%)","1.4"," > 50 % <= 55 %",{"$f":"IFERROR(VLOOKUP(A4963,Translation!$A:$C,3,FALSE),A4963)","v":27},{"$f":"IFERROR(VLOOKUP(B4963,Translation!$A:$C,3,FALSE),B4963)","v":"T2 2019"},{"$f":"IFERROR(VLOOKUP(C4963,Translation!$A:$C,3,FALSE),C4963)","v":"IMMEUBLES COLLECTIFS RÉSIDENTIELS"},{"$f":"IFERROR(VLOOKUP(D4963,Translation!$A:$C,3,FALSE),D4963)","v":"> 50 % <= 55 %"},{"$f":"IFERROR(VLOOKUP(E4963,Translation!$A:$C,3,FALSE),E4963)","v":1.351736656865075},{"$f":"IFERROR(VLOOKUP(F4963,Translation!$A:$C,3,FALSE),F4963)","v":"Prêts hypothécaires assurés au cours de la période selon le rapport prêt-valeur (RPV) établi d’après la valeur initiale de la propriété (%)"},{"$f":"IFERROR(VLOOKUP(G4963,Translation!$A:$C,3,FALSE),G4963)","v":"1.4"},{"$f":"IFERROR(VLOOKUP(H4963,Translation!$A:$C,3,FALSE),H4963)","v":" > 50 % <= 55 %"}]
[27,"T2 2019","IMMEUBLES COLLECTIFS RÉSIDENTIELS","> 65 % <= 70 %",11.200377697630392,"Prêts hypothécaires assurés au cours de la période selon le rapport prêt-valeur (RPV) établi d’après la valeur initiale de la propriété (%)","11.2"," > 65 % <= 70 %",{"$f":"IFERROR(VLOOKUP(A4966,Translation!$A:$C,3,FALSE),A4966)","v":27},{"$f":"IFERROR(VLOOKUP(B4966,Translation!$A:$C,3,FALSE),B4966)","v":"T2 2019"},{"$f":"IFERROR(VLOOKUP(C4966,Translation!$A:$C,3,FALSE),C4966)","v":"IMMEUBLES COLLECTIFS RÉSIDENTIELS"},{"$f":"IFERROR(VLOOKUP(D4966,Translation!$A:$C,3,FALSE),D4966)","v":"> 65 % <= 70 %"},{"$f":"IFERROR(VLOOKUP(E4966,Translation!$A:$C,3,FALSE),E4966)","v":11.200377697630392},{"$f":"IFERROR(VLOOKUP(F4966,Translation!$A:$C,3,FALSE),F4966)","v":"Prêts hypothécaires assurés au cours de la période selon le rapport prêt-valeur (RPV) établi d’après la valeur initiale de la propriété (%)"},{"$f":"IFERROR(VLOOKUP(G4966,Translation!$A:$C,3,FALSE),G4966)","v":"11.2"},{"$f":"IFERROR(VLOOKUP(H4966,Translation!$A:$C,3,FALSE),H4966)","v":" > 65 % <= 70 %"}]
[27,"T2 2019","IMMEUBLES COLLECTIFS RÉSIDENTIELS","> 80 % <= 85 %",30.012038500518848,"Prêts hypothécaires assurés au cours de la période selon le rapport prêt-valeur (RPV) établi d’après la valeur initiale de la propriété (%)","30.0"," > 80 % <= 85 %",{"$f":"IFERROR(VLOOKUP(A4969,Translation!$A:$C,3,FALSE),A4969)","v":27},{"$f":"IFERROR(VLOOKUP(B4969,Translation!$A:$C,3,FALSE),B4969)","v":"T2 2019"},{"$f":"IFERROR(VLOOKUP(C4969,Translation!$A:$C,3,FALSE),C4969)","v":"IMMEUBLES COLLECTIFS RÉSIDENTIELS"},{"$f":"IFERROR(VLOOKUP(D4969,Translation!$A:$C,3,FALSE),D4969)","v":"> 80 % <= 85 %"},{"$f":"IFERROR(VLOOKUP(E4969,Translation!$A:$C,3,FALSE),E4969)","v":30.012038500518848},{"$f":"IFERROR(VLOOKUP(F4969,Translation!$A:$C,3,FALSE),F4969)","v":"Prêts hypothécaires assurés au cours de la période selon le rapport prêt-valeur (RPV) établi d’après la valeur initiale de la propriété (%)"},{"$f":"IFERROR(VLOOKUP(G4969,Translation!$A:$C,3,FALSE),G4969)","v":"30.0"},{"$f":"IFERROR(VLOOKUP(H4969,Translation!$A:$C,3,FALSE),H4969)","v":" > 80 % <= 85 %"}]
[27,"T2 2019","IMMEUBLES COLLECTIFS RÉSIDENTIELS","> 90 % <= 95 %",1.3467109647541644,"Prêts hypothécaires assurés au cours de la période selon le rapport prêt-valeur (RPV) établi d’après la valeur initiale de la propriété (%)","1.3"," > 90 % <= 95 %",{"$f":"IFERROR(VLOOKUP(A4971,Translation!$A:$C,3,FALSE),A4971)","v":27},{"$f":"IFERROR(VLOOKUP(B4971,Translation!$A:$C,3,FALSE),B4971)","v":"T2 2019"},{"$f":"IFERROR(VLOOKUP(C4971,Translation!$A:$C,3,FALSE),C4971)","v":"IMMEUBLES COLLECTIFS RÉSIDENTIELS"},{"$f":"IFERROR(VLOOKUP(D4971,Translation!$A:$C,3,FALSE),D4971)","v":"> 90 % <= 95 %"},{"$f":"IFERROR(VLOOKUP(E4971,Translation!$A:$C,3,FALSE),E4971)","v":1.3467109647541644},{"$f":"IFERROR(VLOOKUP(F4971,Translation!$A:$C,3,FALSE),F4971)","v":"Prêts hypothécaires assurés au cours de la période selon le rapport prêt-valeur (RPV) établi d’après la valeur initiale de la propriété (%)"},{"$f":"IFERROR(VLOOKUP(G4971,Translation!$A:$C,3,FALSE),G4971)","v":"1.3"},{"$f":"IFERROR(VLOOKUP(H4971,Translation!$A:$C,3,FALSE),H4971)","v":" > 90 % <= 95 %"}]
[27,"T2 2019","IMMEUBLES COLLECTIFS RÉSIDENTIELS","> 95 %",0.93768814408491596,"Prêts hypothécaires assurés au cours de la période selon le rapport prêt-valeur (RPV) établi d’après la valeur initiale de la propriété (%)","0.9"," > 95 %",{"$f":"IFERROR(VLOOKUP(A4972,Translation!$A:$C,3,FALSE),A4972)","v":27},{"$f":"IFERROR(VLOOKUP(B4972,Translation!$A:$C,3,FALSE),B4972)","v":"T2 2019"},{"$f":"IFERROR(VLOOKUP(C4972,Translation!$A:$C,3,FALSE),C4972)","v":"IMMEUBLES COLLECTIFS RÉSIDENTIELS"},{"$f":"IFERROR(VLOOKUP(D4972,Translation!$A:$C,3,FALSE),D4972)","v":"> 95 %"},{"$f":"IFERROR(VLOOKUP(E4972,Translation!$A:$C,3,FALSE),E4972)","v":0.93768814408491596},{"$f":"IFERROR(VLOOKUP(F4972,Translation!$A:$C,3,FALSE),F4972)","v":"Prêts hypothécaires assurés au cours de la période selon le rapport prêt-valeur (RPV) établi d’après la valeur initiale de la propriété (%)"},{"$f":"IFERROR(VLOOKUP(G4972,Translation!$A:$C,3,FALSE),G4972)","v":"0.9"},{"$f":"IFERROR(VLOOKUP(H4972,Translation!$A:$C,3,FALSE),H4972)","v":" > 95 %"}]
[27,"T2 2019","IMMEUBLES COLLECTIFS RÉSIDENTIELS","Île-du-Prince-Édouard",37.738543041770448,"Avoir propre foncier moyen selon la province","37.7","Île-du-Prince-Édouard",{"$f":"IFERROR(VLOOKUP(A4976,Translation!$A:$C,3,FALSE),A4976)","v":27},{"$f":"IFERROR(VLOOKUP(B4976,Translation!$A:$C,3,FALSE),B4976)","v":"T2 2019"},{"$f":"IFERROR(VLOOKUP(C4976,Translation!$A:$C,3,FALSE),C4976)","v":"IMMEUBLES COLLECTIFS RÉSIDENTIELS"},{"$f":"IFERROR(VLOOKUP(D4976,Translation!$A:$C,3,FALSE),D4976)","v":"Île-du-Prince-Édouard"},{"$f":"IFERROR(VLOOKUP(E4976,Translation!$A:$C,3,FALSE),E4976)","v":37.738543041770448},{"$f":"IFERROR(VLOOKUP(F4976,Translation!$A:$C,3,FALSE),F4976)","v":"Avoir propre foncier moyen selon la province"},{"$f":"IFERROR(VLOOKUP(G4976,Translation!$A:$C,3,FALSE),G4976)","v":"37.7"},{"$f":"IFERROR(VLOOKUP(H4976,Translation!$A:$C,3,FALSE),H4976)","v":"Île-du-Prince-Édouard"}]
[27,"T2 2019","IMMEUBLES COLLECTIFS RÉSIDENTIELS","Nouvelle-Écosse",23.343145254670581,"Avoir propre foncier moyen selon la province","23.3","Nouvelle-Écosse",{"$f":"IFERROR(VLOOKUP(A4977,Translation!$A:$C,3,FALSE),A4977)","v":27},{"$f":"IFERROR(VLOOKUP(B4977,Translation!$A:$C,3,FALSE),B4977)","v":"T2 2019"},{"$f":"IFERROR(VLOOKUP(C4977,Translation!$A:$C,3,FALSE),C4977)","v":"IMMEUBLES COLLECTIFS RÉSIDENTIELS"},{"$f":"IFERROR(VLOOKUP(D4977,Translation!$A:$C,3,FALSE),D4977)","v":"Nouvelle-Écosse"},{"$f":"IFERROR(VLOOKUP(E4977,Translation!$A:$C,3,FALSE),E4977)","v":23.343145254670581},{"$f":"IFERROR(VLOOKUP(F4977,Translation!$A:$C,3,FALSE),F4977)","v":"Avoir propre foncier moyen selon la province"},{"$f":"IFERROR(VLOOKUP(G4977,Translation!$A:$C,3,FALSE),G4977)","v":"23.3"},{"$f":"IFERROR(VLOOKUP(H4977,Translation!$A:$C,3,FALSE),H4977)","v":"Nouvelle-Écosse"}]
[27,"T2 2019","IMMEUBLES COLLECTIFS RÉSIDENTIELS","Ontario",29.357239404826711,"Avoir propre foncier moyen selon la province","29.4","Ontario",{"$f":"IFERROR(VLOOKUP(A4980,Translation!$A:$C,3,FALSE),A4980)","v":27},{"$f":"IFERROR(VLOOKUP(B4980,Translation!$A:$C,3,FALSE),B4980)","v":"T2 2019"},{"$f":"IFERROR(VLOOKUP(C4980,Translation!$A:$C,3,FALSE),C4980)","v":"IMMEUBLES COLLECTIFS RÉSIDENTIELS"},{"$f":"IFERROR(VLOOKUP(D4980,Translation!$A:$C,3,FALSE),D4980)","v":"Ontario"},{"$f":"IFERROR(VLOOKUP(E4980,Translation!$A:$C,3,FALSE),E4980)","v":29.357239404826711},{"$f":"IFERROR(VLOOKUP(F4980,Translation!$A:$C,3,FALSE),F4980)","v":"Avoir propre foncier moyen selon la province"},{"$f":"IFERROR(VLOOKUP(G4980,Translation!$A:$C,3,FALSE),G4980)","v":"29.4"},{"$f":"IFERROR(VLOOKUP(H4980,Translation!$A:$C,3,FALSE),H4980)","v":"Ontario"}]
[27,"T2 2019","IMMEUBLES COLLECTIFS RÉSIDENTIELS","Saskatchewan",18.2172323366343,"Avoir propre foncier moyen selon la province","18.2","Saskatchewan",{"$f":"IFERROR(VLOOKUP(A4982,Translation!$A:$C,3,FALSE),A4982)","v":27},{"$f":"IFERROR(VLOOKUP(B4982,Translation!$A:$C,3,FALSE),B4982)","v":"T2 2019"},{"$f":"IFERROR(VLOOKUP(C4982,Translation!$A:$C,3,FALSE),C4982)","v":"IMMEUBLES COLLECTIFS RÉSIDENTIELS"},{"$f":"IFERROR(VLOOKUP(D4982,Translation!$A:$C,3,FALSE),D4982)","v":"Saskatchewan"},{"$f":"IFERROR(VLOOKUP(E4982,Translation!$A:$C,3,FALSE),E4982)","v":18.2172323366343},{"$f":"IFERROR(VLOOKUP(F4982,Translation!$A:$C,3,FALSE),F4982)","v":"Avoir propre foncier moyen selon la province"},{"$f":"IFERROR(VLOOKUP(G4982,Translation!$A:$C,3,FALSE),G4982)","v":"18.2"},{"$f":"IFERROR(VLOOKUP(H4982,Translation!$A:$C,3,FALSE),H4982)","v":"Saskatchewan"}]
[7,"T1 2019","PROPRIÉTAIRES-OCCUPANTS, À L’UNITÉ","<= 50 %",0.13310926627090611,"Prêts hypothécaires assurés au cours de la période selon le rapport prêt-valeur (RPV) établi d’après la valeur initiale de la propriété (%)","0.1"," <= 50 %",{"$f":"IFERROR(VLOOKUP(A4986,Translation!$A:$C,3,FALSE),A4986)","v":7},{"$f":"IFERROR(VLOOKUP(B4986,Translation!$A:$C,3,FALSE),B4986)","v":"T1 2019"},{"$f":"IFERROR(VLOOKUP(C4986,Translation!$A:$C,3,FALSE),C4986)","v":"PROPRIÉTAIRES-OCCUPANTS, À L’UNITÉ"},{"$f":"IFERROR(VLOOKUP(D4986,Translation!$A:$C,3,FALSE),D4986)","v":"<= 50 %"},{"$f":"IFERROR(VLOOKUP(E4986,Translation!$A:$C,3,FALSE),E4986)","v":0.13310926627090611},{"$f":"IFERROR(VLOOKUP(F4986,Translation!$A:$C,3,FALSE),F4986)","v":"Prêts hypothécaires assurés au cours de la période selon le rapport prêt-valeur (RPV) établi d’après la valeur initiale de la propriété (%)"},{"$f":"IFERROR(VLOOKUP(G4986,Translation!$A:$C,3,FALSE),G4986)","v":"0.1"},{"$f":"IFERROR(VLOOKUP(H4986,Translation!$A:$C,3,FALSE),H4986)","v":" <= 50 %"}]
[7,"T1 2019","PROPRIÉTAIRES-OCCUPANTS, À L’UNITÉ","> 50 % <= 55 %",3.2634847862245173E-2,"Prêts hypothécaires assurés au cours de la période selon le rapport prêt-valeur (RPV) établi d’après la valeur initiale de la propriété (%)","0.0"," > 50 % <= 55 %",{"$f":"IFERROR(VLOOKUP(A4987,Translation!$A:$C,3,FALSE),A4987)","v":7},{"$f":"IFERROR(VLOOKUP(B4987,Translation!$A:$C,3,FALSE),B4987)","v":"T1 2019"},{"$f":"IFERROR(VLOOKUP(C4987,Translation!$A:$C,3,FALSE),C4987)","v":"PROPRIÉTAIRES-OCCUPANTS, À L’UNITÉ"},{"$f":"IFERROR(VLOOKUP(D4987,Translation!$A:$C,3,FALSE),D4987)","v":"> 50 % <= 55 %"},{"$f":"IFERROR(VLOOKUP(E4987,Translation!$A:$C,3,FALSE),E4987)","v":3.2634847862245173E-2},{"$f":"IFERROR(VLOOKUP(F4987,Translation!$A:$C,3,FALSE),F4987)","v":"Prêts hypothécaires assurés au cours de la période selon le rapport prêt-valeur (RPV) établi d’après la valeur initiale de la propriété (%)"},{"$f":"IFERROR(VLOOKUP(G4987,Translation!$A:$C,3,FALSE),G4987)","v":"0.0"},{"$f":"IFERROR(VLOOKUP(H4987,Translation!$A:$C,3,FALSE),H4987)","v":" > 50 % <= 55 %"}]
[7,"T1 2019","PROPRIÉTAIRES-OCCUPANTS, À L’UNITÉ","> 65 % <= 70 %",6.3330581956748275E-2,"Prêts hypothécaires assurés au cours de la période selon le rapport prêt-valeur (RPV) établi d’après la valeur initiale de la propriété (%)","0.1"," > 65 % <= 70 %",{"$f":"IFERROR(VLOOKUP(A4990,Translation!$A:$C,3,FALSE),A4990)","v":7},{"$f":"IFERROR(VLOOKUP(B4990,Translation!$A:$C,3,FALSE),B4990)","v":"T1 2019"},{"$f":"IFERROR(VLOOKUP(C4990,Translation!$A:$C,3,FALSE),C4990)","v":"PROPRIÉTAIRES-OCCUPANTS, À L’UNITÉ"},{"$f":"IFERROR(VLOOKUP(D4990,Translation!$A:$C,3,FALSE),D4990)","v":"> 65 % <= 70 %"},{"$f":"IFERROR(VLOOKUP(E4990,Translation!$A:$C,3,FALSE),E4990)","v":6.3330581956748275E-2},{"$f":"IFERROR(VLOOKUP(F4990,Translation!$A:$C,3,FALSE),F4990)","v":"Prêts hypothécaires assurés au cours de la période selon le rapport prêt-valeur (RPV) établi d’après la valeur initiale de la propriété (%)"},{"$f":"IFERROR(VLOOKUP(G4990,Translation!$A:$C,3,FALSE),G4990)","v":"0.1"},{"$f":"IFERROR(VLOOKUP(H4990,Translation!$A:$C,3,FALSE),H4990)","v":" > 65 % <= 70 %"}]
[7,"T1 2019","PROPRIÉTAIRES-OCCUPANTS, À L’UNITÉ","> 70 % <= 75 %",0.19822019971379043,"Prêts hypothécaires assurés au cours de la période selon le rapport prêt-valeur (RPV) établi d’après la valeur initiale de la propriété (%)","0.2"," > 70 % <= 75 %",{"$f":"IFERROR(VLOOKUP(A4991,Translation!$A:$C,3,FALSE),A4991)","v":7},{"$f":"IFERROR(VLOOKUP(B4991,Translation!$A:$C,3,FALSE),B4991)","v":"T1 2019"},{"$f":"IFERROR(VLOOKUP(C4991,Translation!$A:$C,3,FALSE),C4991)","v":"PROPRIÉTAIRES-OCCUPANTS, À L’UNITÉ"},{"$f":"IFERROR(VLOOKUP(D4991,Translation!$A:$C,3,FALSE),D4991)","v":"> 70 % <= 75 %"},{"$f":"IFERROR(VLOOKUP(E4991,Translation!$A:$C,3,FALSE),E4991)","v":0.19822019971379043},{"$f":"IFERROR(VLOOKUP(F4991,Translation!$A:$C,3,FALSE),F4991)","v":"Prêts hypothécaires assurés au cours de la période selon le rapport prêt-valeur (RPV) établi d’après la valeur initiale de la propriété (%)"},{"$f":"IFERROR(VLOOKUP(G4991,Translation!$A:$C,3,FALSE),G4991)","v":"0.2"},{"$f":"IFERROR(VLOOKUP(H4991,Translation!$A:$C,3,FALSE),H4991)","v":" > 70 % <= 75 %"}]
[7,"T1 2019","PROPRIÉTAIRES-OCCUPANTS, À L’UNITÉ","> 90 % <= 95 %",67.318852800299055,"Prêts hypothécaires assurés au cours de la période selon le rapport prêt-valeur (RPV) établi d’après la valeur initiale de la propriété (%)","67.3"," > 90 % <= 95 %",{"$f":"IFERROR(VLOOKUP(A4995,Translation!$A:$C,3,FALSE),A4995)","v":7},{"$f":"IFERROR(VLOOKUP(B4995,Translation!$A:$C,3,FALSE),B4995)","v":"T1 2019"},{"$f":"IFERROR(VLOOKUP(C4995,Translation!$A:$C,3,FALSE),C4995)","v":"PROPRIÉTAIRES-OCCUPANTS, À L’UNITÉ"},{"$f":"IFERROR(VLOOKUP(D4995,Translation!$A:$C,3,FALSE),D4995)","v":"> 90 % <= 95 %"},{"$f":"IFERROR(VLOOKUP(E4995,Translation!$A:$C,3,FALSE),E4995)","v":67.318852800299055},{"$f":"IFERROR(VLOOKUP(F4995,Translation!$A:$C,3,FALSE),F4995)","v":"Prêts hypothécaires assurés au cours de la période selon le rapport prêt-valeur (RPV) établi d’après la valeur initiale de la propriété (%)"},{"$f":"IFERROR(VLOOKUP(G4995,Translation!$A:$C,3,FALSE),G4995)","v":"67.3"},{"$f":"IFERROR(VLOOKUP(H4995,Translation!$A:$C,3,FALSE),H4995)","v":" > 90 % <= 95 %"}]
[7,"T1 2019","PROPRIÉTAIRES-OCCUPANTS, À L’UNITÉ","Avoir propre foncier moyen ",7.6475551866654143,"Prêts hypothécaires assurés au cours de la période selon le rapport prêt-valeur (RPV) établi d’après la valeur initiale de la propriété (%)","7.6","Avoir propre foncier moyen ",{"$f":"IFERROR(VLOOKUP(A4997,Translation!$A:$C,3,FALSE),A4997)","v":7},{"$f":"IFERROR(VLOOKUP(B4997,Translation!$A:$C,3,FALSE),B4997)","v":"T1 2019"},{"$f":"IFERROR(VLOOKUP(C4997,Translation!$A:$C,3,FALSE),C4997)","v":"PROPRIÉTAIRES-OCCUPANTS, À L’UNITÉ"},{"$f":"IFERROR(VLOOKUP(D4997,Translation!$A:$C,3,FALSE),D4997)","v":"Avoir propre foncier moyen "},{"$f":"IFERROR(VLOOKUP(E4997,Translation!$A:$C,3,FALSE),E4997)","v":7.6475551866654143},{"$f":"IFERROR(VLOOKUP(F4997,Translation!$A:$C,3,FALSE),F4997)","v":"Prêts hypothécaires assurés au cours de la période selon le rapport prêt-valeur (RPV) établi d’après la valeur initiale de la propriété (%)"},{"$f":"IFERROR(VLOOKUP(G4997,Translation!$A:$C,3,FALSE),G4997)","v":"7.6"},{"$f":"IFERROR(VLOOKUP(H4997,Translation!$A:$C,3,FALSE),H4997)","v":"Avoir propre foncier moyen "}]
[7,"T1 2019","PROPRIÉTAIRES-OCCUPANTS, À L’UNITÉ","Nouvelle-Écosse",6.9892060270426137,"Avoir propre foncier moyen selon la province","7.0","Nouvelle-Écosse",{"$f":"IFERROR(VLOOKUP(A5000,Translation!$A:$C,3,FALSE),A5000)","v":7},{"$f":"IFERROR(VLOOKUP(B5000,Translation!$A:$C,3,FALSE),B5000)","v":"T1 2019"},{"$f":"IFERROR(VLOOKUP(C5000,Translation!$A:$C,3,FALSE),C5000)","v":"PROPRIÉTAIRES-OCCUPANTS, À L’UNITÉ"},{"$f":"IFERROR(VLOOKUP(D5000,Translation!$A:$C,3,FALSE),D5000)","v":"Nouvelle-Écosse"},{"$f":"IFERROR(VLOOKUP(E5000,Translation!$A:$C,3,FALSE),E5000)","v":6.9892060270426137},{"$f":"IFERROR(VLOOKUP(F5000,Translation!$A:$C,3,FALSE),F5000)","v":"Avoir propre foncier moyen selon la province"},{"$f":"IFERROR(VLOOKUP(G5000,Translation!$A:$C,3,FALSE),G5000)","v":"7.0"},{"$f":"IFERROR(VLOOKUP(H5000,Translation!$A:$C,3,FALSE),H5000)","v":"Nouvelle-Écosse"}]
[7,"T1 2019","PROPRIÉTAIRES-OCCUPANTS, À L’UNITÉ","Nouveau-Brunswick",6.6355898616687767,"Avoir propre foncier moyen selon la province","6.6","Nouveau-Brunswick",{"$f":"IFERROR(VLOOKUP(A5001,Translation!$A:$C,3,FALSE),A5001)","v":7},{"$f":"IFERROR(VLOOKUP(B5001,Translation!$A:$C,3,FALSE),B5001)","v":"T1 2019"},{"$f":"IFERROR(VLOOKUP(C5001,Translation!$A:$C,3,FALSE),C5001)","v":"PROPRIÉTAIRES-OCCUPANTS, À L’UNITÉ"},{"$f":"IFERROR(VLOOKUP(D5001,Translation!$A:$C,3,FALSE),D5001)","v":"Nouveau-Brunswick"},{"$f":"IFERROR(VLOOKUP(E5001,Translation!$A:$C,3,FALSE),E5001)","v":6.6355898616687767},{"$f":"IFERROR(VLOOKUP(F5001,Translation!$A:$C,3,FALSE),F5001)","v":"Avoir propre foncier moyen selon la province"},{"$f":"IFERROR(VLOOKUP(G5001,Translation!$A:$C,3,FALSE),G5001)","v":"6.6"},{"$f":"IFERROR(VLOOKUP(H5001,Translation!$A:$C,3,FALSE),H5001)","v":"Nouveau-Brunswick"}]
[7,"T1 2019","PROPRIÉTAIRES-OCCUPANTS, À L’UNITÉ","Saskatchewan",6.7373368151768576,"Avoir propre foncier moyen selon la province","6.7","Saskatchewan",{"$f":"IFERROR(VLOOKUP(A5005,Translation!$A:$C,3,FALSE),A5005)","v":7},{"$f":"IFERROR(VLOOKUP(B5005,Translation!$A:$C,3,FALSE),B5005)","v":"T1 2019"},{"$f":"IFERROR(VLOOKUP(C5005,Translation!$A:$C,3,FALSE),C5005)","v":"PROPRIÉTAIRES-OCCUPANTS, À L’UNITÉ"},{"$f":"IFERROR(VLOOKUP(D5005,Translation!$A:$C,3,FALSE),D5005)","v":"Saskatchewan"},{"$f":"IFERROR(VLOOKUP(E5005,Translation!$A:$C,3,FALSE),E5005)","v":6.7373368151768576},{"$f":"IFERROR(VLOOKUP(F5005,Translation!$A:$C,3,FALSE),F5005)","v":"Avoir propre foncier moyen selon la province"},{"$f":"IFERROR(VLOOKUP(G5005,Translation!$A:$C,3,FALSE),G5005)","v":"6.7"},{"$f":"IFERROR(VLOOKUP(H5005,Translation!$A:$C,3,FALSE),H5005)","v":"Saskatchewan"}]
[7,"T1 2019","PROPRIÉTAIRES-OCCUPANTS, À L’UNITÉ","Alberta",6.9055332413161192,"Avoir propre foncier moyen selon la province","6.9","Alberta",{"$f":"IFERROR(VLOOKUP(A5006,Translation!$A:$C,3,FALSE),A5006)","v":7},{"$f":"IFERROR(VLOOKUP(B5006,Translation!$A:$C,3,FALSE),B5006)","v":"T1 2019"},{"$f":"IFERROR(VLOOKUP(C5006,Translation!$A:$C,3,FALSE),C5006)","v":"PROPRIÉTAIRES-OCCUPANTS, À L’UNITÉ"},{"$f":"IFERROR(VLOOKUP(D5006,Translation!$A:$C,3,FALSE),D5006)","v":"Alberta"},{"$f":"IFERROR(VLOOKUP(E5006,Translation!$A:$C,3,FALSE),E5006)","v":6.9055332413161192},{"$f":"IFERROR(VLOOKUP(F5006,Translation!$A:$C,3,FALSE),F5006)","v":"Avoir propre foncier moyen selon la province"},{"$f":"IFERROR(VLOOKUP(G5006,Translation!$A:$C,3,FALSE),G5006)","v":"6.9"},{"$f":"IFERROR(VLOOKUP(H5006,Translation!$A:$C,3,FALSE),H5006)","v":"Alberta"}]
[7,"T1 2019","ASSURANCE DE PORTEFEUILLE","> 50 % <= 55 %",7.5597851188118579,"Prêts hypothécaires assurés au cours de la période selon le rapport prêt-valeur (RPV) établi d’après la valeur initiale de la propriété (%)","7.6"," > 50 % <= 55 %",{"$f":"IFERROR(VLOOKUP(A5010,Translation!$A:$C,3,FALSE),A5010)","v":7},{"$f":"IFERROR(VLOOKUP(B5010,Translation!$A:$C,3,FALSE),B5010)","v":"T1 2019"},{"$f":"IFERROR(VLOOKUP(C5010,Translation!$A:$C,3,FALSE),C5010)","v":"ASSURANCE DE PORTEFEUILLE"},{"$f":"IFERROR(VLOOKUP(D5010,Translation!$A:$C,3,FALSE),D5010)","v":"> 50 % <= 55 %"},{"$f":"IFERROR(VLOOKUP(E5010,Translation!$A:$C,3,FALSE),E5010)","v":7.5597851188118579},{"$f":"IFERROR(VLOOKUP(F5010,Translation!$A:$C,3,FALSE),F5010)","v":"Prêts hypothécaires assurés au cours de la période selon le rapport prêt-valeur (RPV) établi d’après la valeur initiale de la propriété (%)"},{"$f":"IFERROR(VLOOKUP(G5010,Translation!$A:$C,3,FALSE),G5010)","v":"7.6"},{"$f":"IFERROR(VLOOKUP(H5010,Translation!$A:$C,3,FALSE),H5010)","v":" > 50 % <= 55 %"}]
[7,"T1 2019","ASSURANCE DE PORTEFEUILLE","> 55 % <= 60 %",9.4626447822102318,"Prêts hypothécaires assurés au cours de la période selon le rapport prêt-valeur (RPV) établi d’après la valeur initiale de la propriété (%)","9.5"," > 55 % <= 60 %",{"$f":"IFERROR(VLOOKUP(A5011,Translation!$A:$C,3,FALSE),A5011)","v":7},{"$f":"IFERROR(VLOOKUP(B5011,Translation!$A:$C,3,FALSE),B5011)","v":"T1 2019"},{"$f":"IFERROR(VLOOKUP(C5011,Translation!$A:$C,3,FALSE),C5011)","v":"ASSURANCE DE PORTEFEUILLE"},{"$f":"IFERROR(VLOOKUP(D5011,Translation!$A:$C,3,FALSE),D5011)","v":"> 55 % <= 60 %"},{"$f":"IFERROR(VLOOKUP(E5011,Translation!$A:$C,3,FALSE),E5011)","v":9.4626447822102318},{"$f":"IFERROR(VLOOKUP(F5011,Translation!$A:$C,3,FALSE),F5011)","v":"Prêts hypothécaires assurés au cours de la période selon le rapport prêt-valeur (RPV) établi d’après la valeur initiale de la propriété (%)"},{"$f":"IFERROR(VLOOKUP(G5011,Translation!$A:$C,3,FALSE),G5011)","v":"9.5"},{"$f":"IFERROR(VLOOKUP(H5011,Translation!$A:$C,3,FALSE),H5011)","v":" > 55 % <= 60 %"}]
[7,"T1 2019","ASSURANCE DE PORTEFEUILLE","> 70 % <= 75 %",8.8785889617176945,"Prêts hypothécaires assurés au cours de la période selon le rapport prêt-valeur (RPV) établi d’après la valeur initiale de la propriété (%)","8.9"," > 70 % <= 75 %",{"$f":"IFERROR(VLOOKUP(A5014,Translation!$A:$C,3,FALSE),A5014)","v":7},{"$f":"IFERROR(VLOOKUP(B5014,Translation!$A:$C,3,FALSE),B5014)","v":"T1 2019"},{"$f":"IFERROR(VLOOKUP(C5014,Translation!$A:$C,3,FALSE),C5014)","v":"ASSURANCE DE PORTEFEUILLE"},{"$f":"IFERROR(VLOOKUP(D5014,Translation!$A:$C,3,FALSE),D5014)","v":"> 70 % <= 75 %"},{"$f":"IFERROR(VLOOKUP(E5014,Translation!$A:$C,3,FALSE),E5014)","v":8.8785889617176945},{"$f":"IFERROR(VLOOKUP(F5014,Translation!$A:$C,3,FALSE),F5014)","v":"Prêts hypothécaires assurés au cours de la période selon le rapport prêt-valeur (RPV) établi d’après la valeur initiale de la propriété (%)"},{"$f":"IFERROR(VLOOKUP(G5014,Translation!$A:$C,3,FALSE),G5014)","v":"8.9"},{"$f":"IFERROR(VLOOKUP(H5014,Translation!$A:$C,3,FALSE),H5014)","v":" > 70 % <= 75 %"}]
[7,"T1 2019","ASSURANCE DE PORTEFEUILLE","Rapport prêt-valeur moyen ",60.271436723747314,"Prêts hypothécaires assurés au cours de la période selon le rapport prêt-valeur (RPV) établi d’après la valeur initiale de la propriété (%)","60.3","Rapport prêt-valeur moyen ",{"$f":"IFERROR(VLOOKUP(A5016,Translation!$A:$C,3,FALSE),A5016)","v":7},{"$f":"IFERROR(VLOOKUP(B5016,Translation!$A:$C,3,FALSE),B5016)","v":"T1 2019"},{"$f":"IFERROR(VLOOKUP(C5016,Translation!$A:$C,3,FALSE),C5016)","v":"ASSURANCE DE PORTEFEUILLE"},{"$f":"IFERROR(VLOOKUP(D5016,Translation!$A:$C,3,FALSE),D5016)","v":"Rapport prêt-valeur moyen "},{"$f":"IFERROR(VLOOKUP(E5016,Translation!$A:$C,3,FALSE),E5016)","v":60.271436723747314},{"$f":"IFERROR(VLOOKUP(F5016,Translation!$A:$C,3,FALSE),F5016)","v":"Prêts hypothécaires assurés au cours de la période selon le rapport prêt-valeur (RPV) établi d’après la valeur initiale de la propriété (%)"},{"$f":"IFERROR(VLOOKUP(G5016,Translation!$A:$C,3,FALSE),G5016)","v":"60.3"},{"$f":"IFERROR(VLOOKUP(H5016,Translation!$A:$C,3,FALSE),H5016)","v":"Rapport prêt-valeur moyen "}]
[7,"T1 2019","ASSURANCE DE PORTEFEUILLE","Île-du-Prince-Édouard",43.611253901624465,"Avoir propre foncier moyen selon la province","43.6","Île-du-Prince-Édouard",{"$f":"IFERROR(VLOOKUP(A5019,Translation!$A:$C,3,FALSE),A5019)","v":7},{"$f":"IFERROR(VLOOKUP(B5019,Translation!$A:$C,3,FALSE),B5019)","v":"T1 2019"},{"$f":"IFERROR(VLOOKUP(C5019,Translation!$A:$C,3,FALSE),C5019)","v":"ASSURANCE DE PORTEFEUILLE"},{"$f":"IFERROR(VLOOKUP(D5019,Translation!$A:$C,3,FALSE),D5019)","v":"Île-du-Prince-Édouard"},{"$f":"IFERROR(VLOOKUP(E5019,Translation!$A:$C,3,FALSE),E5019)","v":43.611253901624465},{"$f":"IFERROR(VLOOKUP(F5019,Translation!$A:$C,3,FALSE),F5019)","v":"Avoir propre foncier moyen selon la province"},{"$f":"IFERROR(VLOOKUP(G5019,Translation!$A:$C,3,FALSE),G5019)","v":"43.6"},{"$f":"IFERROR(VLOOKUP(H5019,Translation!$A:$C,3,FALSE),H5019)","v":"Île-du-Prince-Édouard"}]
[7,"T1 2019","ASSURANCE DE PORTEFEUILLE","Nouveau-Brunswick",32.890269232101275,"Avoir propre foncier moyen selon la province","32.9","Nouveau-Brunswick",{"$f":"IFERROR(VLOOKUP(A5021,Translation!$A:$C,3,FALSE),A5021)","v":7},{"$f":"IFERROR(VLOOKUP(B5021,Translation!$A:$C,3,FALSE),B5021)","v":"T1 2019"},{"$f":"IFERROR(VLOOKUP(C5021,Translation!$A:$C,3,FALSE),C5021)","v":"ASSURANCE DE PORTEFEUILLE"},{"$f":"IFERROR(VLOOKUP(D5021,Translation!$A:$C,3,FALSE),D5021)","v":"Nouveau-Brunswick"},{"$f":"IFERROR(VLOOKUP(E5021,Translation!$A:$C,3,FALSE),E5021)","v":32.890269232101275},{"$f":"IFERROR(VLOOKUP(F5021,Translation!$A:$C,3,FALSE),F5021)","v":"Avoir propre foncier moyen selon la province"},{"$f":"IFERROR(VLOOKUP(G5021,Translation!$A:$C,3,FALSE),G5021)","v":"32.9"},{"$f":"IFERROR(VLOOKUP(H5021,Translation!$A:$C,3,FALSE),H5021)","v":"Nouveau-Brunswick"}]
[7,"T1 2019","ASSURANCE DE PORTEFEUILLE","Manitoba",31.712642026225289,"Avoir propre foncier moyen selon la province","31.7","Manitoba",{"$f":"IFERROR(VLOOKUP(A5024,Translation!$A:$C,3,FALSE),A5024)","v":7},{"$f":"IFERROR(VLOOKUP(B5024,Translation!$A:$C,3,FALSE),B5024)","v":"T1 2019"},{"$f":"IFERROR(VLOOKUP(C5024,Translation!$A:$C,3,FALSE),C5024)","v":"ASSURANCE DE PORTEFEUILLE"},{"$f":"IFERROR(VLOOKUP(D5024,Translation!$A:$C,3,FALSE),D5024)","v":"Manitoba"},{"$f":"IFERROR(VLOOKUP(E5024,Translation!$A:$C,3,FALSE),E5024)","v":31.712642026225289},{"$f":"IFERROR(VLOOKUP(F5024,Translation!$A:$C,3,FALSE),F5024)","v":"Avoir propre foncier moyen selon la province"},{"$f":"IFERROR(VLOOKUP(G5024,Translation!$A:$C,3,FALSE),G5024)","v":"31.7"},{"$f":"IFERROR(VLOOKUP(H5024,Translation!$A:$C,3,FALSE),H5024)","v":"Manitoba"}]
[7,"T1 2019","ASSURANCE DE PORTEFEUILLE","Saskatchewan",36.837945598729192,"Avoir propre foncier moyen selon la province","36.8","Saskatchewan",{"$f":"IFERROR(VLOOKUP(A5025,Translation!$A:$C,3,FALSE),A5025)","v":7},{"$f":"IFERROR(VLOOKUP(B5025,Translation!$A:$C,3,FALSE),B5025)","v":"T1 2019"},{"$f":"IFERROR(VLOOKUP(C5025,Translation!$A:$C,3,FALSE),C5025)","v":"ASSURANCE DE PORTEFEUILLE"},{"$f":"IFERROR(VLOOKUP(D5025,Translation!$A:$C,3,FALSE),D5025)","v":"Saskatchewan"},{"$f":"IFERROR(VLOOKUP(E5025,Translation!$A:$C,3,FALSE),E5025)","v":36.837945598729192},{"$f":"IFERROR(VLOOKUP(F5025,Translation!$A:$C,3,FALSE),F5025)","v":"Avoir propre foncier moyen selon la province"},{"$f":"IFERROR(VLOOKUP(G5025,Translation!$A:$C,3,FALSE),G5025)","v":"36.8"},{"$f":"IFERROR(VLOOKUP(H5025,Translation!$A:$C,3,FALSE),H5025)","v":"Saskatchewan"}]
[7,"T1 2019","ASSURANCE DE PORTEFEUILLE","Colombie-Britannique",43.50006024392647,"Avoir propre foncier moyen selon la province","43.5","Colombie-Britannique",{"$f":"IFERROR(VLOOKUP(A5027,Translation!$A:$C,3,FALSE),A5027)","v":7},{"$f":"IFERROR(VLOOKUP(B5027,Translation!$A:$C,3,FALSE),B5027)","v":"T1 2019"},{"$f":"IFERROR(VLOOKUP(C5027,Translation!$A:$C,3,FALSE),C5027)","v":"ASSURANCE DE PORTEFEUILLE"},{"$f":"IFERROR(VLOOKUP(D5027,Translation!$A:$C,3,FALSE),D5027)","v":"Colombie-Britannique"},{"$f":"IFERROR(VLOOKUP(E5027,Translation!$A:$C,3,FALSE),E5027)","v":43.50006024392647},{"$f":"IFERROR(VLOOKUP(F5027,Translation!$A:$C,3,FALSE),F5027)","v":"Avoir propre foncier moyen selon la province"},{"$f":"IFERROR(VLOOKUP(G5027,Translation!$A:$C,3,FALSE),G5027)","v":"43.5"},{"$f":"IFERROR(VLOOKUP(H5027,Translation!$A:$C,3,FALSE),H5027)","v":"Colombie-Britannique"}]
[27,"T1 2019","IMMEUBLES COLLECTIFS RÉSIDENTIELS","> 50 % <= 55 %",0.82274635513614869,"Prêts hypothécaires assurés au cours de la période selon le rapport prêt-valeur (RPV) établi d’après la valeur initiale de la propriété (%)","0.8"," > 50 % <= 55 %",{"$f":"IFERROR(VLOOKUP(A5030,Translation!$A:$C,3,FALSE),A5030)","v":27},{"$f":"IFERROR(VLOOKUP(B5030,Translation!$A:$C,3,FALSE),B5030)","v":"T1 2019"},{"$f":"IFERROR(VLOOKUP(C5030,Translation!$A:$C,3,FALSE),C5030)","v":"IMMEUBLES COLLECTIFS RÉSIDENTIELS"},{"$f":"IFERROR(VLOOKUP(D5030,Translation!$A:$C,3,FALSE),D5030)","v":"> 50 % <= 55 %"},{"$f":"IFERROR(VLOOKUP(E5030,Translation!$A:$C,3,FALSE),E5030)","v":0.82274635513614869},{"$f":"IFERROR(VLOOKUP(F5030,Translation!$A:$C,3,FALSE),F5030)","v":"Prêts hypothécaires assurés au cours de la période selon le rapport prêt-valeur (RPV) établi d’après la valeur initiale de la propriété (%)"},{"$f":"IFERROR(VLOOKUP(G5030,Translation!$A:$C,3,FALSE),G5030)","v":"0.8"},{"$f":"IFERROR(VLOOKUP(H5030,Translation!$A:$C,3,FALSE),H5030)","v":" > 50 % <= 55 %"}]
[27,"T1 2019","IMMEUBLES COLLECTIFS RÉSIDENTIELS","> 60 % <= 65 %",29.955232500183339,"Prêts hypothécaires assurés au cours de la période selon le rapport prêt-valeur (RPV) établi d’après la valeur initiale de la propriété (%)","30.0"," > 60 % <= 65 %",{"$f":"IFERROR(VLOOKUP(A5032,Translation!$A:$C,3,FALSE),A5032)","v":27},{"$f":"IFERROR(VLOOKUP(B5032,Translation!$A:$C,3,FALSE),B5032)","v":"T1 2019"},{"$f":"IFERROR(VLOOKUP(C5032,Translation!$A:$C,3,FALSE),C5032)","v":"IMMEUBLES COLLECTIFS RÉSIDENTIELS"},{"$f":"IFERROR(VLOOKUP(D5032,Translation!$A:$C,3,FALSE),D5032)","v":"> 60 % <= 65 %"},{"$f":"IFERROR(VLOOKUP(E5032,Translation!$A:$C,3,FALSE),E5032)","v":29.955232500183339},{"$f":"IFERROR(VLOOKUP(F5032,Translation!$A:$C,3,FALSE),F5032)","v":"Prêts hypothécaires assurés au cours de la période selon le rapport prêt-valeur (RPV) établi d’après la valeur initiale de la propriété (%)"},{"$f":"IFERROR(VLOOKUP(G5032,Translation!$A:$C,3,FALSE),G5032)","v":"30.0"},{"$f":"IFERROR(VLOOKUP(H5032,Translation!$A:$C,3,FALSE),H5032)","v":" > 60 % <= 65 %"}]
[27,"T1 2019","IMMEUBLES COLLECTIFS RÉSIDENTIELS","> 75 % <= 80 %",7.690161701104488,"Prêts hypothécaires assurés au cours de la période selon le rapport prêt-valeur (RPV) établi d’après la valeur initiale de la propriété (%)","7.7"," > 75 % <= 80 %",{"$f":"IFERROR(VLOOKUP(A5035,Translation!$A:$C,3,FALSE),A5035)","v":27},{"$f":"IFERROR(VLOOKUP(B5035,Translation!$A:$C,3,FALSE),B5035)","v":"T1 2019"},{"$f":"IFERROR(VLOOKUP(C5035,Translation!$A:$C,3,FALSE),C5035)","v":"IMMEUBLES COLLECTIFS RÉSIDENTIELS"},{"$f":"IFERROR(VLOOKUP(D5035,Translation!$A:$C,3,FALSE),D5035)","v":"> 75 % <= 80 %"},{"$f":"IFERROR(VLOOKUP(E5035,Translation!$A:$C,3,FALSE),E5035)","v":7.690161701104488},{"$f":"IFERROR(VLOOKUP(F5035,Translation!$A:$C,3,FALSE),F5035)","v":"Prêts hypothécaires assurés au cours de la période selon le rapport prêt-valeur (RPV) établi d’après la valeur initiale de la propriété (%)"},{"$f":"IFERROR(VLOOKUP(G5035,Translation!$A:$C,3,FALSE),G5035)","v":"7.7"},{"$f":"IFERROR(VLOOKUP(H5035,Translation!$A:$C,3,FALSE),H5035)","v":" > 75 % <= 80 %"}]
[27,"T1 2019","IMMEUBLES COLLECTIFS RÉSIDENTIELS","> 90 % <= 95 %",2.3118993602092179,"Prêts hypothécaires assurés au cours de la période selon le rapport prêt-valeur (RPV) établi d’après la valeur initiale de la propriété (%)","2.3"," > 90 % <= 95 %",{"$f":"IFERROR(VLOOKUP(A5038,Translation!$A:$C,3,FALSE),A5038)","v":27},{"$f":"IFERROR(VLOOKUP(B5038,Translation!$A:$C,3,FALSE),B5038)","v":"T1 2019"},{"$f":"IFERROR(VLOOKUP(C5038,Translation!$A:$C,3,FALSE),C5038)","v":"IMMEUBLES COLLECTIFS RÉSIDENTIELS"},{"$f":"IFERROR(VLOOKUP(D5038,Translation!$A:$C,3,FALSE),D5038)","v":"> 90 % <= 95 %"},{"$f":"IFERROR(VLOOKUP(E5038,Translation!$A:$C,3,FALSE),E5038)","v":2.3118993602092179},{"$f":"IFERROR(VLOOKUP(F5038,Translation!$A:$C,3,FALSE),F5038)","v":"Prêts hypothécaires assurés au cours de la période selon le rapport prêt-valeur (RPV) établi d’après la valeur initiale de la propriété (%)"},{"$f":"IFERROR(VLOOKUP(G5038,Translation!$A:$C,3,FALSE),G5038)","v":"2.3"},{"$f":"IFERROR(VLOOKUP(H5038,Translation!$A:$C,3,FALSE),H5038)","v":" > 90 % <= 95 %"}]
[27,"T1 2019","IMMEUBLES COLLECTIFS RÉSIDENTIELS","Rapport prêt-valeur moyen ",73.68425996802462,"Prêts hypothécaires assurés au cours de la période selon le rapport prêt-valeur (RPV) établi d’après la valeur initiale de la propriété (%)","73.7","Rapport prêt-valeur moyen ",{"$f":"IFERROR(VLOOKUP(A5040,Translation!$A:$C,3,FALSE),A5040)","v":27},{"$f":"IFERROR(VLOOKUP(B5040,Translation!$A:$C,3,FALSE),B5040)","v":"T1 2019"},{"$f":"IFERROR(VLOOKUP(C5040,Translation!$A:$C,3,FALSE),C5040)","v":"IMMEUBLES COLLECTIFS RÉSIDENTIELS"},{"$f":"IFERROR(VLOOKUP(D5040,Translation!$A:$C,3,FALSE),D5040)","v":"Rapport prêt-valeur moyen "},{"$f":"IFERROR(VLOOKUP(E5040,Translation!$A:$C,3,FALSE),E5040)","v":73.68425996802462},{"$f":"IFERROR(VLOOKUP(F5040,Translation!$A:$C,3,FALSE),F5040)","v":"Prêts hypothécaires assurés au cours de la période selon le rapport prêt-valeur (RPV) établi d’après la valeur initiale de la propriété (%)"},{"$f":"IFERROR(VLOOKUP(G5040,Translation!$A:$C,3,FALSE),G5040)","v":"73.7"},{"$f":"IFERROR(VLOOKUP(H5040,Translation!$A:$C,3,FALSE),H5040)","v":"Rapport prêt-valeur moyen "}]
[27,"T1 2019","IMMEUBLES COLLECTIFS RÉSIDENTIELS","Nouvelle-Écosse",16.651864641708315,"Avoir propre foncier moyen selon la province","16.7","Nouvelle-Écosse",{"$f":"IFERROR(VLOOKUP(A5043,Translation!$A:$C,3,FALSE),A5043)","v":27},{"$f":"IFERROR(VLOOKUP(B5043,Translation!$A:$C,3,FALSE),B5043)","v":"T1 2019"},{"$f":"IFERROR(VLOOKUP(C5043,Translation!$A:$C,3,FALSE),C5043)","v":"IMMEUBLES COLLECTIFS RÉSIDENTIELS"},{"$f":"IFERROR(VLOOKUP(D5043,Translation!$A:$C,3,FALSE),D5043)","v":"Nouvelle-Écosse"},{"$f":"IFERROR(VLOOKUP(E5043,Translation!$A:$C,3,FALSE),E5043)","v":16.651864641708315},{"$f":"IFERROR(VLOOKUP(F5043,Translation!$A:$C,3,FALSE),F5043)","v":"Avoir propre foncier moyen selon la province"},{"$f":"IFERROR(VLOOKUP(G5043,Translation!$A:$C,3,FALSE),G5043)","v":"16.7"},{"$f":"IFERROR(VLOOKUP(H5043,Translation!$A:$C,3,FALSE),H5043)","v":"Nouvelle-Écosse"}]
[27,"T1 2019","IMMEUBLES COLLECTIFS RÉSIDENTIELS","Ontario",27.966126617167351,"Avoir propre foncier moyen selon la province","28.0","Ontario",{"$f":"IFERROR(VLOOKUP(A5046,Translation!$A:$C,3,FALSE),A5046)","v":27},{"$f":"IFERROR(VLOOKUP(B5046,Translation!$A:$C,3,FALSE),B5046)","v":"T1 2019"},{"$f":"IFERROR(VLOOKUP(C5046,Translation!$A:$C,3,FALSE),C5046)","v":"IMMEUBLES COLLECTIFS RÉSIDENTIELS"},{"$f":"IFERROR(VLOOKUP(D5046,Translation!$A:$C,3,FALSE),D5046)","v":"Ontario"},{"$f":"IFERROR(VLOOKUP(E5046,Translation!$A:$C,3,FALSE),E5046)","v":27.966126617167351},{"$f":"IFERROR(VLOOKUP(F5046,Translation!$A:$C,3,FALSE),F5046)","v":"Avoir propre foncier moyen selon la province"},{"$f":"IFERROR(VLOOKUP(G5046,Translation!$A:$C,3,FALSE),G5046)","v":"28.0"},{"$f":"IFERROR(VLOOKUP(H5046,Translation!$A:$C,3,FALSE),H5046)","v":"Ontario"}]
[27,"T1 2019","IMMEUBLES COLLECTIFS RÉSIDENTIELS","Saskatchewan",31.635035605724681,"Avoir propre foncier moyen selon la province","31.6","Saskatchewan",{"$f":"IFERROR(VLOOKUP(A5048,Translation!$A:$C,3,FALSE),A5048)","v":27},{"$f":"IFERROR(VLOOKUP(B5048,Translation!$A:$C,3,FALSE),B5048)","v":"T1 2019"},{"$f":"IFERROR(VLOOKUP(C5048,Translation!$A:$C,3,FALSE),C5048)","v":"IMMEUBLES COLLECTIFS RÉSIDENTIELS"},{"$f":"IFERROR(VLOOKUP(D5048,Translation!$A:$C,3,FALSE),D5048)","v":"Saskatchewan"},{"$f":"IFERROR(VLOOKUP(E5048,Translation!$A:$C,3,FALSE),E5048)","v":31.635035605724681},{"$f":"IFERROR(VLOOKUP(F5048,Translation!$A:$C,3,FALSE),F5048)","v":"Avoir propre foncier moyen selon la province"},{"$f":"IFERROR(VLOOKUP(G5048,Translation!$A:$C,3,FALSE),G5048)","v":"31.6"},{"$f":"IFERROR(VLOOKUP(H5048,Translation!$A:$C,3,FALSE),H5048)","v":"Saskatchewan"}]
[27,"T1 2019","IMMEUBLES COLLECTIFS RÉSIDENTIELS","Alberta",29.926394807232199,"Avoir propre foncier moyen selon la province","29.9","Alberta",{"$f":"IFERROR(VLOOKUP(A5049,Translation!$A:$C,3,FALSE),A5049)","v":27},{"$f":"IFERROR(VLOOKUP(B5049,Translation!$A:$C,3,FALSE),B5049)","v":"T1 2019"},{"$f":"IFERROR(VLOOKUP(C5049,Translation!$A:$C,3,FALSE),C5049)","v":"IMMEUBLES COLLECTIFS RÉSIDENTIELS"},{"$f":"IFERROR(VLOOKUP(D5049,Translation!$A:$C,3,FALSE),D5049)","v":"Alberta"},{"$f":"IFERROR(VLOOKUP(E5049,Translation!$A:$C,3,FALSE),E5049)","v":29.926394807232199},{"$f":"IFERROR(VLOOKUP(F5049,Translation!$A:$C,3,FALSE),F5049)","v":"Avoir propre foncier moyen selon la province"},{"$f":"IFERROR(VLOOKUP(G5049,Translation!$A:$C,3,FALSE),G5049)","v":"29.9"},{"$f":"IFERROR(VLOOKUP(H5049,Translation!$A:$C,3,FALSE),H5049)","v":"Alberta"}]
[27,"T1 2019","IMMEUBLES COLLECTIFS RÉSIDENTIELS","Territoires",25.340000000000003,"Avoir propre foncier moyen selon la province","25.3","Territoires",{"$f":"IFERROR(VLOOKUP(A5051,Translation!$A:$C,3,FALSE),A5051)","v":27},{"$f":"IFERROR(VLOOKUP(B5051,Translation!$A:$C,3,FALSE),B5051)","v":"T1 2019"},{"$f":"IFERROR(VLOOKUP(C5051,Translation!$A:$C,3,FALSE),C5051)","v":"IMMEUBLES COLLECTIFS RÉSIDENTIELS"},{"$f":"IFERROR(VLOOKUP(D5051,Translation!$A:$C,3,FALSE),D5051)","v":"Territoires"},{"$f":"IFERROR(VLOOKUP(E5051,Translation!$A:$C,3,FALSE),E5051)","v":25.340000000000003},{"$f":"IFERROR(VLOOKUP(F5051,Translation!$A:$C,3,FALSE),F5051)","v":"Avoir propre foncier moyen selon la province"},{"$f":"IFERROR(VLOOKUP(G5051,Translation!$A:$C,3,FALSE),G5051)","v":"25.3"},{"$f":"IFERROR(VLOOKUP(H5051,Translation!$A:$C,3,FALSE),H5051)","v":"Territoires"}]
[7,"T4 2018","PROPRIÉTAIRES-OCCUPANTS, À L’UNITÉ","> 50 % <= 55 %",5.3198650313802658E-2,"Prêts hypothécaires assurés au cours de la période selon le rapport prêt-valeur (RPV) établi d’après la valeur initiale de la propriété (%)","0.1"," > 50 % <= 55 %",{"$f":"IFERROR(VLOOKUP(A5054,Translation!$A:$C,3,FALSE),A5054)","v":7},{"$f":"IFERROR(VLOOKUP(B5054,Translation!$A:$C,3,FALSE),B5054)","v":"T4 2018"},{"$f":"IFERROR(VLOOKUP(C5054,Translation!$A:$C,3,FALSE),C5054)","v":"PROPRIÉTAIRES-OCCUPANTS, À L’UNITÉ"},{"$f":"IFERROR(VLOOKUP(D5054,Translation!$A:$C,3,FALSE),D5054)","v":"> 50 % <= 55 %"},{"$f":"IFERROR(VLOOKUP(E5054,Translation!$A:$C,3,FALSE),E5054)","v":5.3198650313802658E-2},{"$f":"IFERROR(VLOOKUP(F5054,Translation!$A:$C,3,FALSE),F5054)","v":"Prêts hypothécaires assurés au cours de la période selon le rapport prêt-valeur (RPV) établi d’après la valeur initiale de la propriété (%)"},{"$f":"IFERROR(VLOOKUP(G5054,Translation!$A:$C,3,FALSE),G5054)","v":"0.1"},{"$f":"IFERROR(VLOOKUP(H5054,Translation!$A:$C,3,FALSE),H5054)","v":" > 50 % <= 55 %"}]
[7,"Cumul 2017","PROPRIÉTAIRES-OCCUPANTS, À L’UNITÉ","> 55 % <= 60 %",6.2469656001413229E-2,"Prêts hypothécaires assurés au cours de la période selon le rapport prêt-valeur (RPV) établi d’après la valeur initiale de la propriété (%)","0.1"," > 55 % <= 60 %",{"$f":"IFERROR(VLOOKUP(A5057,Translation!$A:$C,3,FALSE),A5057)","v":7},{"$f":"IFERROR(VLOOKUP(B5057,Translation!$A:$C,3,FALSE),B5057)","v":"Cumul 2017"},{"$f":"IFERROR(VLOOKUP(C5057,Translation!$A:$C,3,FALSE),C5057)","v":"PROPRIÉTAIRES-OCCUPANTS, À L’UNITÉ"},{"$f":"IFERROR(VLOOKUP(D5057,Translation!$A:$C,3,FALSE),D5057)","v":"> 55 % <= 60 %"},{"$f":"IFERROR(VLOOKUP(E5057,Translation!$A:$C,3,FALSE),E5057)","v":6.2469656001413229E-2},{"$f":"IFERROR(VLOOKUP(F5057,Translation!$A:$C,3,FALSE),F5057)","v":"Prêts hypothécaires assurés au cours de la période selon le rapport prêt-valeur (RPV) établi d’après la valeur initiale de la propriété (%)"},{"$f":"IFERROR(VLOOKUP(G5057,Translation!$A:$C,3,FALSE),G5057)","v":"0.1"},{"$f":"IFERROR(VLOOKUP(H5057,Translation!$A:$C,3,FALSE),H5057)","v":" > 55 % <= 60 %"}]
[7,"Cumul 2017","PROPRIÉTAIRES-OCCUPANTS, À L’UNITÉ","> 60 % <= 65 %",0.1052381467408658,"Prêts hypothécaires assurés au cours de la période selon le rapport prêt-valeur (RPV) établi d’après la valeur initiale de la propriété (%)","0.1"," > 60 % <= 65 %",{"$f":"IFERROR(VLOOKUP(A5059,Translation!$A:$C,3,FALSE),A5059)","v":7},{"$f":"IFERROR(VLOOKUP(B5059,Translation!$A:$C,3,FALSE),B5059)","v":"Cumul 2017"},{"$f":"IFERROR(VLOOKUP(C5059,Translation!$A:$C,3,FALSE),C5059)","v":"PROPRIÉTAIRES-OCCUPANTS, À L’UNITÉ"},{"$f":"IFERROR(VLOOKUP(D5059,Translation!$A:$C,3,FALSE),D5059)","v":"> 60 % <= 65 %"},{"$f":"IFERROR(VLOOKUP(E5059,Translation!$A:$C,3,FALSE),E5059)","v":0.1052381467408658},{"$f":"IFERROR(VLOOKUP(F5059,Translation!$A:$C,3,FALSE),F5059)","v":"Prêts hypothécaires assurés au cours de la période selon le rapport prêt-valeur (RPV) établi d’après la valeur initiale de la propriété (%)"},{"$f":"IFERROR(VLOOKUP(G5059,Translation!$A:$C,3,FALSE),G5059)","v":"0.1"},{"$f":"IFERROR(VLOOKUP(H5059,Translation!$A:$C,3,FALSE),H5059)","v":" > 60 % <= 65 %"}]
[7,"T4 2018","PROPRIÉTAIRES-OCCUPANTS, À L’UNITÉ","> 70 % <= 75 %",0.20758167572783351,"Prêts hypothécaires assurés au cours de la période selon le rapport prêt-valeur (RPV) établi d’après la valeur initiale de la propriété (%)","0.2"," > 70 % <= 75 %",{"$f":"IFERROR(VLOOKUP(A5062,Translation!$A:$C,3,FALSE),A5062)","v":7},{"$f":"IFERROR(VLOOKUP(B5062,Translation!$A:$C,3,FALSE),B5062)","v":"T4 2018"},{"$f":"IFERROR(VLOOKUP(C5062,Translation!$A:$C,3,FALSE),C5062)","v":"PROPRIÉTAIRES-OCCUPANTS, À L’UNITÉ"},{"$f":"IFERROR(VLOOKUP(D5062,Translation!$A:$C,3,FALSE),D5062)","v":"> 70 % <= 75 %"},{"$f":"IFERROR(VLOOKUP(E5062,Translation!$A:$C,3,FALSE),E5062)","v":0.20758167572783351},{"$f":"IFERROR(VLOOKUP(F5062,Translation!$A:$C,3,FALSE),F5062)","v":"Prêts hypothécaires assurés au cours de la période selon le rapport prêt-valeur (RPV) établi d’après la valeur initiale de la propriété (%)"},{"$f":"IFERROR(VLOOKUP(G5062,Translation!$A:$C,3,FALSE),G5062)","v":"0.2"},{"$f":"IFERROR(VLOOKUP(H5062,Translation!$A:$C,3,FALSE),H5062)","v":" > 70 % <= 75 %"}]
[7,"Cumul 2017","PROPRIÉTAIRES-OCCUPANTS, À L’UNITÉ","> 75 % <= 80 %",1.1276330451562151,"Prêts hypothécaires assurés au cours de la période selon le rapport prêt-valeur (RPV) établi d’après la valeur initiale de la propriété (%)","1.1"," > 75 % <= 80 %",{"$f":"IFERROR(VLOOKUP(A5065,Translation!$A:$C,3,FALSE),A5065)","v":7},{"$f":"IFERROR(VLOOKUP(B5065,Translation!$A:$C,3,FALSE),B5065)","v":"Cumul 2017"},{"$f":"IFERROR(VLOOKUP(C5065,Translation!$A:$C,3,FALSE),C5065)","v":"PROPRIÉTAIRES-OCCUPANTS, À L’UNITÉ"},{"$f":"IFERROR(VLOOKUP(D5065,Translation!$A:$C,3,FALSE),D5065)","v":"> 75 % <= 80 %"},{"$f":"IFERROR(VLOOKUP(E5065,Translation!$A:$C,3,FALSE),E5065)","v":1.1276330451562151},{"$f":"IFERROR(VLOOKUP(F5065,Translation!$A:$C,3,FALSE),F5065)","v":"Prêts hypothécaires assurés au cours de la période selon le rapport prêt-valeur (RPV) établi d’après la valeur initiale de la propriété (%)"},{"$f":"IFERROR(VLOOKUP(G5065,Translation!$A:$C,3,FALSE),G5065)","v":"1.1"},{"$f":"IFERROR(VLOOKUP(H5065,Translation!$A:$C,3,FALSE),H5065)","v":" > 75 % <= 80 %"}]
[7,"Cumul 2017","PROPRIÉTAIRES-OCCUPANTS, À L’UNITÉ","> 80 % <= 85 %",4.2451426365813649,"Prêts hypothécaires assurés au cours de la période selon le rapport prêt-valeur (RPV) établi d’après la valeur initiale de la propriété (%)","4.2"," > 80 % <= 85 %",{"$f":"IFERROR(VLOOKUP(A5067,Translation!$A:$C,3,FALSE),A5067)","v":7},{"$f":"IFERROR(VLOOKUP(B5067,Translation!$A:$C,3,FALSE),B5067)","v":"Cumul 2017"},{"$f":"IFERROR(VLOOKUP(C5067,Translation!$A:$C,3,FALSE),C5067)","v":"PROPRIÉTAIRES-OCCUPANTS, À L’UNITÉ"},{"$f":"IFERROR(VLOOKUP(D5067,Translation!$A:$C,3,FALSE),D5067)","v":"> 80 % <= 85 %"},{"$f":"IFERROR(VLOOKUP(E5067,Translation!$A:$C,3,FALSE),E5067)","v":4.2451426365813649},{"$f":"IFERROR(VLOOKUP(F5067,Translation!$A:$C,3,FALSE),F5067)","v":"Prêts hypothécaires assurés au cours de la période selon le rapport prêt-valeur (RPV) établi d’après la valeur initiale de la propriété (%)"},{"$f":"IFERROR(VLOOKUP(G5067,Translation!$A:$C,3,FALSE),G5067)","v":"4.2"},{"$f":"IFERROR(VLOOKUP(H5067,Translation!$A:$C,3,FALSE),H5067)","v":" > 80 % <= 85 %"}]
[7,"T4 2018","PROPRIÉTAIRES-OCCUPANTS, À L’UNITÉ","> 85 % <= 90 %",26.430162277624472,"Prêts hypothécaires assurés au cours de la période selon le rapport prêt-valeur (RPV) établi d’après la valeur initiale de la propriété (%)","26.4"," > 85 % <= 90 %",{"$f":"IFERROR(VLOOKUP(A5068,Translation!$A:$C,3,FALSE),A5068)","v":7},{"$f":"IFERROR(VLOOKUP(B5068,Translation!$A:$C,3,FALSE),B5068)","v":"T4 2018"},{"$f":"IFERROR(VLOOKUP(C5068,Translation!$A:$C,3,FALSE),C5068)","v":"PROPRIÉTAIRES-OCCUPANTS, À L’UNITÉ"},{"$f":"IFERROR(VLOOKUP(D5068,Translation!$A:$C,3,FALSE),D5068)","v":"> 85 % <= 90 %"},{"$f":"IFERROR(VLOOKUP(E5068,Translation!$A:$C,3,FALSE),E5068)","v":26.430162277624472},{"$f":"IFERROR(VLOOKUP(F5068,Translation!$A:$C,3,FALSE),F5068)","v":"Prêts hypothécaires assurés au cours de la période selon le rapport prêt-valeur (RPV) établi d’après la valeur initiale de la propriété (%)"},{"$f":"IFERROR(VLOOKUP(G5068,Translation!$A:$C,3,FALSE),G5068)","v":"26.4"},{"$f":"IFERROR(VLOOKUP(H5068,Translation!$A:$C,3,FALSE),H5068)","v":" > 85 % <= 90 %"}]
[7,"T4 2018","PROPRIÉTAIRES-OCCUPANTS, À L’UNITÉ","Rapport prêt-valeur moyen ",92.334166910622884,"Prêts hypothécaires assurés au cours de la période selon le rapport prêt-valeur (RPV) établi d’après la valeur initiale de la propriété (%)","92.3","Rapport prêt-valeur moyen ",{"$f":"IFERROR(VLOOKUP(A5072,Translation!$A:$C,3,FALSE),A5072)","v":7},{"$f":"IFERROR(VLOOKUP(B5072,Translation!$A:$C,3,FALSE),B5072)","v":"T4 2018"},{"$f":"IFERROR(VLOOKUP(C5072,Translation!$A:$C,3,FALSE),C5072)","v":"PROPRIÉTAIRES-OCCUPANTS, À L’UNITÉ"},{"$f":"IFERROR(VLOOKUP(D5072,Translation!$A:$C,3,FALSE),D5072)","v":"Rapport prêt-valeur moyen "},{"$f":"IFERROR(VLOOKUP(E5072,Translation!$A:$C,3,FALSE),E5072)","v":92.334166910622884},{"$f":"IFERROR(VLOOKUP(F5072,Translation!$A:$C,3,FALSE),F5072)","v":"Prêts hypothécaires assurés au cours de la période selon le rapport prêt-valeur (RPV) établi d’après la valeur initiale de la propriété (%)"},{"$f":"IFERROR(VLOOKUP(G5072,Translation!$A:$C,3,FALSE),G5072)","v":"92.3"},{"$f":"IFERROR(VLOOKUP(H5072,Translation!$A:$C,3,FALSE),H5072)","v":"Rapport prêt-valeur moyen "}]
[7,"Cumul 2017","PROPRIÉTAIRES-OCCUPANTS, À L’UNITÉ","Rapport prêt-valeur moyen ",92.428378959470749,"Prêts hypothécaires assurés au cours de la période selon le rapport prêt-valeur (RPV) établi d’après la valeur initiale de la propriété (%)","92.4","Rapport prêt-valeur moyen ",{"$f":"IFERROR(VLOOKUP(A5073,Translation!$A:$C,3,FALSE),A5073)","v":7},{"$f":"IFERROR(VLOOKUP(B5073,Translation!$A:$C,3,FALSE),B5073)","v":"Cumul 2017"},{"$f":"IFERROR(VLOOKUP(C5073,Translation!$A:$C,3,FALSE),C5073)","v":"PROPRIÉTAIRES-OCCUPANTS, À L’UNITÉ"},{"$f":"IFERROR(VLOOKUP(D5073,Translation!$A:$C,3,FALSE),D5073)","v":"Rapport prêt-valeur moyen "},{"$f":"IFERROR(VLOOKUP(E5073,Translation!$A:$C,3,FALSE),E5073)","v":92.428378959470749},{"$f":"IFERROR(VLOOKUP(F5073,Translation!$A:$C,3,FALSE),F5073)","v":"Prêts hypothécaires assurés au cours de la période selon le rapport prêt-valeur (RPV) établi d’après la valeur initiale de la propriété (%)"},{"$f":"IFERROR(VLOOKUP(G5073,Translation!$A:$C,3,FALSE),G5073)","v":"92.4"},{"$f":"IFERROR(VLOOKUP(H5073,Translation!$A:$C,3,FALSE),H5073)","v":"Rapport prêt-valeur moyen "}]
[7,"T4 2018","PROPRIÉTAIRES-OCCUPANTS, À L’UNITÉ","Terre-Neuve-et-Labrador",6.4127227587881199,"Avoir propre foncier moyen selon la province","6.4","Terre-Neuve-et-Labrador",{"$f":"IFERROR(VLOOKUP(A5076,Translation!$A:$C,3,FALSE),A5076)","v":7},{"$f":"IFERROR(VLOOKUP(B5076,Translation!$A:$C,3,FALSE),B5076)","v":"T4 2018"},{"$f":"IFERROR(VLOOKUP(C5076,Translation!$A:$C,3,FALSE),C5076)","v":"PROPRIÉTAIRES-OCCUPANTS, À L’UNITÉ"},{"$f":"IFERROR(VLOOKUP(D5076,Translation!$A:$C,3,FALSE),D5076)","v":"Terre-Neuve-et-Labrador"},{"$f":"IFERROR(VLOOKUP(E5076,Translation!$A:$C,3,FALSE),E5076)","v":6.4127227587881199},{"$f":"IFERROR(VLOOKUP(F5076,Translation!$A:$C,3,FALSE),F5076)","v":"Avoir propre foncier moyen selon la province"},{"$f":"IFERROR(VLOOKUP(G5076,Translation!$A:$C,3,FALSE),G5076)","v":"6.4"},{"$f":"IFERROR(VLOOKUP(H5076,Translation!$A:$C,3,FALSE),H5076)","v":"Terre-Neuve-et-Labrador"}]
[7,"T4 2018","PROPRIÉTAIRES-OCCUPANTS, À L’UNITÉ","Nouvelle-Écosse",7.0339288037264396,"Avoir propre foncier moyen selon la province","7.0","Nouvelle-Écosse",{"$f":"IFERROR(VLOOKUP(A5078,Translation!$A:$C,3,FALSE),A5078)","v":7},{"$f":"IFERROR(VLOOKUP(B5078,Translation!$A:$C,3,FALSE),B5078)","v":"T4 2018"},{"$f":"IFERROR(VLOOKUP(C5078,Translation!$A:$C,3,FALSE),C5078)","v":"PROPRIÉTAIRES-OCCUPANTS, À L’UNITÉ"},{"$f":"IFERROR(VLOOKUP(D5078,Translation!$A:$C,3,FALSE),D5078)","v":"Nouvelle-Écosse"},{"$f":"IFERROR(VLOOKUP(E5078,Translation!$A:$C,3,FALSE),E5078)","v":7.0339288037264396},{"$f":"IFERROR(VLOOKUP(F5078,Translation!$A:$C,3,FALSE),F5078)","v":"Avoir propre foncier moyen selon la province"},{"$f":"IFERROR(VLOOKUP(G5078,Translation!$A:$C,3,FALSE),G5078)","v":"7.0"},{"$f":"IFERROR(VLOOKUP(H5078,Translation!$A:$C,3,FALSE),H5078)","v":"Nouvelle-Écosse"}]
[7,"T4 2018","PROPRIÉTAIRES-OCCUPANTS, À L’UNITÉ","Manitoba",6.4216221182988686,"Avoir propre foncier moyen selon la province","6.4","Manitoba",{"$f":"IFERROR(VLOOKUP(A5082,Translation!$A:$C,3,FALSE),A5082)","v":7},{"$f":"IFERROR(VLOOKUP(B5082,Translation!$A:$C,3,FALSE),B5082)","v":"T4 2018"},{"$f":"IFERROR(VLOOKUP(C5082,Translation!$A:$C,3,FALSE),C5082)","v":"PROPRIÉTAIRES-OCCUPANTS, À L’UNITÉ"},{"$f":"IFERROR(VLOOKUP(D5082,Translation!$A:$C,3,FALSE),D5082)","v":"Manitoba"},{"$f":"IFERROR(VLOOKUP(E5082,Translation!$A:$C,3,FALSE),E5082)","v":6.4216221182988686},{"$f":"IFERROR(VLOOKUP(F5082,Translation!$A:$C,3,FALSE),F5082)","v":"Avoir propre foncier moyen selon la province"},{"$f":"IFERROR(VLOOKUP(G5082,Translation!$A:$C,3,FALSE),G5082)","v":"6.4"},{"$f":"IFERROR(VLOOKUP(H5082,Translation!$A:$C,3,FALSE),H5082)","v":"Manitoba"}]
[7,"T4 2018","PROPRIÉTAIRES-OCCUPANTS, À L’UNITÉ","Saskatchewan",6.7423284398452816,"Avoir propre foncier moyen selon la province","6.7","Saskatchewan",{"$f":"IFERROR(VLOOKUP(A5083,Translation!$A:$C,3,FALSE),A5083)","v":7},{"$f":"IFERROR(VLOOKUP(B5083,Translation!$A:$C,3,FALSE),B5083)","v":"T4 2018"},{"$f":"IFERROR(VLOOKUP(C5083,Translation!$A:$C,3,FALSE),C5083)","v":"PROPRIÉTAIRES-OCCUPANTS, À L’UNITÉ"},{"$f":"IFERROR(VLOOKUP(D5083,Translation!$A:$C,3,FALSE),D5083)","v":"Saskatchewan"},{"$f":"IFERROR(VLOOKUP(E5083,Translation!$A:$C,3,FALSE),E5083)","v":6.7423284398452816},{"$f":"IFERROR(VLOOKUP(F5083,Translation!$A:$C,3,FALSE),F5083)","v":"Avoir propre foncier moyen selon la province"},{"$f":"IFERROR(VLOOKUP(G5083,Translation!$A:$C,3,FALSE),G5083)","v":"6.7"},{"$f":"IFERROR(VLOOKUP(H5083,Translation!$A:$C,3,FALSE),H5083)","v":"Saskatchewan"}]
[7,"T4 2018","PROPRIÉTAIRES-OCCUPANTS, À L’UNITÉ","Territoires",9.5196391398566238,"Avoir propre foncier moyen selon la province","9.5","Territoires",{"$f":"IFERROR(VLOOKUP(A5086,Translation!$A:$C,3,FALSE),A5086)","v":7},{"$f":"IFERROR(VLOOKUP(B5086,Translation!$A:$C,3,FALSE),B5086)","v":"T4 2018"},{"$f":"IFERROR(VLOOKUP(C5086,Translation!$A:$C,3,FALSE),C5086)","v":"PROPRIÉTAIRES-OCCUPANTS, À L’UNITÉ"},{"$f":"IFERROR(VLOOKUP(D5086,Translation!$A:$C,3,FALSE),D5086)","v":"Territoires"},{"$f":"IFERROR(VLOOKUP(E5086,Translation!$A:$C,3,FALSE),E5086)","v":9.5196391398566238},{"$f":"IFERROR(VLOOKUP(F5086,Translation!$A:$C,3,FALSE),F5086)","v":"Avoir propre foncier moyen selon la province"},{"$f":"IFERROR(VLOOKUP(G5086,Translation!$A:$C,3,FALSE),G5086)","v":"9.5"},{"$f":"IFERROR(VLOOKUP(H5086,Translation!$A:$C,3,FALSE),H5086)","v":"Territoires"}]
[7,"Cumul 2017","PROPRIÉTAIRES-OCCUPANTS, À L’UNITÉ","Terre-Neuve-et-Labrador",6.3572013421209155,"Avoir propre foncier moyen selon la province","6.4","Terre-Neuve-et-Labrador",{"$f":"IFERROR(VLOOKUP(A5087,Translation!$A:$C,3,FALSE),A5087)","v":7},{"$f":"IFERROR(VLOOKUP(B5087,Translation!$A:$C,3,FALSE),B5087)","v":"Cumul 2017"},{"$f":"IFERROR(VLOOKUP(C5087,Translation!$A:$C,3,FALSE),C5087)","v":"PROPRIÉTAIRES-OCCUPANTS, À L’UNITÉ"},{"$f":"IFERROR(VLOOKUP(D5087,Translation!$A:$C,3,FALSE),D5087)","v":"Terre-Neuve-et-Labrador"},{"$f":"IFERROR(VLOOKUP(E5087,Translation!$A:$C,3,FALSE),E5087)","v":6.3572013421209155},{"$f":"IFERROR(VLOOKUP(F5087,Translation!$A:$C,3,FALSE),F5087)","v":"Avoir propre foncier moyen selon la province"},{"$f":"IFERROR(VLOOKUP(G5087,Translation!$A:$C,3,FALSE),G5087)","v":"6.4"},{"$f":"IFERROR(VLOOKUP(H5087,Translation!$A:$C,3,FALSE),H5087)","v":"Terre-Neuve-et-Labrador"}]
[7,"Cumul 2017","PROPRIÉTAIRES-OCCUPANTS, À L’UNITÉ","Québec",7.1342924947729216,"Avoir propre foncier moyen selon la province","7.1","Québec",{"$f":"IFERROR(VLOOKUP(A5091,Translation!$A:$C,3,FALSE),A5091)","v":7},{"$f":"IFERROR(VLOOKUP(B5091,Translation!$A:$C,3,FALSE),B5091)","v":"Cumul 2017"},{"$f":"IFERROR(VLOOKUP(C5091,Translation!$A:$C,3,FALSE),C5091)","v":"PROPRIÉTAIRES-OCCUPANTS, À L’UNITÉ"},{"$f":"IFERROR(VLOOKUP(D5091,Translation!$A:$C,3,FALSE),D5091)","v":"Québec"},{"$f":"IFERROR(VLOOKUP(E5091,Translation!$A:$C,3,FALSE),E5091)","v":7.1342924947729216},{"$f":"IFERROR(VLOOKUP(F5091,Translation!$A:$C,3,FALSE),F5091)","v":"Avoir propre foncier moyen selon la province"},{"$f":"IFERROR(VLOOKUP(G5091,Translation!$A:$C,3,FALSE),G5091)","v":"7.1"},{"$f":"IFERROR(VLOOKUP(H5091,Translation!$A:$C,3,FALSE),H5091)","v":"Québec"}]
[7,"Cumul 2017","PROPRIÉTAIRES-OCCUPANTS, À L’UNITÉ","Manitoba",6.5764902892295822,"Avoir propre foncier moyen selon la province","6.6","Manitoba",{"$f":"IFERROR(VLOOKUP(A5093,Translation!$A:$C,3,FALSE),A5093)","v":7},{"$f":"IFERROR(VLOOKUP(B5093,Translation!$A:$C,3,FALSE),B5093)","v":"Cumul 2017"},{"$f":"IFERROR(VLOOKUP(C5093,Translation!$A:$C,3,FALSE),C5093)","v":"PROPRIÉTAIRES-OCCUPANTS, À L’UNITÉ"},{"$f":"IFERROR(VLOOKUP(D5093,Translation!$A:$C,3,FALSE),D5093)","v":"Manitoba"},{"$f":"IFERROR(VLOOKUP(E5093,Translation!$A:$C,3,FALSE),E5093)","v":6.5764902892295822},{"$f":"IFERROR(VLOOKUP(F5093,Translation!$A:$C,3,FALSE),F5093)","v":"Avoir propre foncier moyen selon la province"},{"$f":"IFERROR(VLOOKUP(G5093,Translation!$A:$C,3,FALSE),G5093)","v":"6.6"},{"$f":"IFERROR(VLOOKUP(H5093,Translation!$A:$C,3,FALSE),H5093)","v":"Manitoba"}]
[7,"Cumul 2017","PROPRIÉTAIRES-OCCUPANTS, À L’UNITÉ","Colombie-Britannique",8.5650737674806248,"Avoir propre foncier moyen selon la province","8.6","Colombie-Britannique",{"$f":"IFERROR(VLOOKUP(A5096,Translation!$A:$C,3,FALSE),A5096)","v":7},{"$f":"IFERROR(VLOOKUP(B5096,Translation!$A:$C,3,FALSE),B5096)","v":"Cumul 2017"},{"$f":"IFERROR(VLOOKUP(C5096,Translation!$A:$C,3,FALSE),C5096)","v":"PROPRIÉTAIRES-OCCUPANTS, À L’UNITÉ"},{"$f":"IFERROR(VLOOKUP(D5096,Translation!$A:$C,3,FALSE),D5096)","v":"Colombie-Britannique"},{"$f":"IFERROR(VLOOKUP(E5096,Translation!$A:$C,3,FALSE),E5096)","v":8.5650737674806248},{"$f":"IFERROR(VLOOKUP(F5096,Translation!$A:$C,3,FALSE),F5096)","v":"Avoir propre foncier moyen selon la province"},{"$f":"IFERROR(VLOOKUP(G5096,Translation!$A:$C,3,FALSE),G5096)","v":"8.6"},{"$f":"IFERROR(VLOOKUP(H5096,Translation!$A:$C,3,FALSE),H5096)","v":"Colombie-Britannique"}]
[7,"Cumul 2017","PROPRIÉTAIRES-OCCUPANTS, À L’UNITÉ","Territoires",8.0097670987301512,"Avoir propre foncier moyen selon la province","8.0","Territoires",{"$f":"IFERROR(VLOOKUP(A5097,Translation!$A:$C,3,FALSE),A5097)","v":7},{"$f":"IFERROR(VLOOKUP(B5097,Translation!$A:$C,3,FALSE),B5097)","v":"Cumul 2017"},{"$f":"IFERROR(VLOOKUP(C5097,Translation!$A:$C,3,FALSE),C5097)","v":"PROPRIÉTAIRES-OCCUPANTS, À L’UNITÉ"},{"$f":"IFERROR(VLOOKUP(D5097,Translation!$A:$C,3,FALSE),D5097)","v":"Territoires"},{"$f":"IFERROR(VLOOKUP(E5097,Translation!$A:$C,3,FALSE),E5097)","v":8.0097670987301512},{"$f":"IFERROR(VLOOKUP(F5097,Translation!$A:$C,3,FALSE),F5097)","v":"Avoir propre foncier moyen selon la province"},{"$f":"IFERROR(VLOOKUP(G5097,Translation!$A:$C,3,FALSE),G5097)","v":"8.0"},{"$f":"IFERROR(VLOOKUP(H5097,Translation!$A:$C,3,FALSE),H5097)","v":"Territoires"}]
[7,"Cumul 2017","ASSURANCE DE PORTEFEUILLE","> 50 % <= 55 %",5.6980589764846643,"Prêts hypothécaires assurés au cours de la période selon le rapport prêt-valeur (RPV) établi d’après la valeur initiale de la propriété (%)","5.7"," > 50 % <= 55 %",{"$f":"IFERROR(VLOOKUP(A5101,Translation!$A:$C,3,FALSE),A5101)","v":7},{"$f":"IFERROR(VLOOKUP(B5101,Translation!$A:$C,3,FALSE),B5101)","v":"Cumul 2017"},{"$f":"IFERROR(VLOOKUP(C5101,Translation!$A:$C,3,FALSE),C5101)","v":"ASSURANCE DE PORTEFEUILLE"},{"$f":"IFERROR(VLOOKUP(D5101,Translation!$A:$C,3,FALSE),D5101)","v":"> 50 % <= 55 %"},{"$f":"IFERROR(VLOOKUP(E5101,Translation!$A:$C,3,FALSE),E5101)","v":5.6980589764846643},{"$f":"IFERROR(VLOOKUP(F5101,Translation!$A:$C,3,FALSE),F5101)","v":"Prêts hypothécaires assurés au cours de la période selon le rapport prêt-valeur (RPV) établi d’après la valeur initiale de la propriété (%)"},{"$f":"IFERROR(VLOOKUP(G5101,Translation!$A:$C,3,FALSE),G5101)","v":"5.7"},{"$f":"IFERROR(VLOOKUP(H5101,Translation!$A:$C,3,FALSE),H5101)","v":" > 50 % <= 55 %"}]
[7,"T4 2018","ASSURANCE DE PORTEFEUILLE","> 55 % <= 60 %",8.0945048145965863,"Prêts hypothécaires assurés au cours de la période selon le rapport prêt-valeur (RPV) établi d’après la valeur initiale de la propriété (%)","8.1"," > 55 % <= 60 %",{"$f":"IFERROR(VLOOKUP(A5102,Translation!$A:$C,3,FALSE),A5102)","v":7},{"$f":"IFERROR(VLOOKUP(B5102,Translation!$A:$C,3,FALSE),B5102)","v":"T4 2018"},{"$f":"IFERROR(VLOOKUP(C5102,Translation!$A:$C,3,FALSE),C5102)","v":"ASSURANCE DE PORTEFEUILLE"},{"$f":"IFERROR(VLOOKUP(D5102,Translation!$A:$C,3,FALSE),D5102)","v":"> 55 % <= 60 %"},{"$f":"IFERROR(VLOOKUP(E5102,Translation!$A:$C,3,FALSE),E5102)","v":8.0945048145965863},{"$f":"IFERROR(VLOOKUP(F5102,Translation!$A:$C,3,FALSE),F5102)","v":"Prêts hypothécaires assurés au cours de la période selon le rapport prêt-valeur (RPV) établi d’après la valeur initiale de la propriété (%)"},{"$f":"IFERROR(VLOOKUP(G5102,Translation!$A:$C,3,FALSE),G5102)","v":"8.1"},{"$f":"IFERROR(VLOOKUP(H5102,Translation!$A:$C,3,FALSE),H5102)","v":" > 55 % <= 60 %"}]
[7,"T4 2018","ASSURANCE DE PORTEFEUILLE","> 60 % <= 65 %",11.95175888099617,"Prêts hypothécaires assurés au cours de la période selon le rapport prêt-valeur (RPV) établi d’après la valeur initiale de la propriété (%)","12.0"," > 60 % <= 65 %",{"$f":"IFERROR(VLOOKUP(A5104,Translation!$A:$C,3,FALSE),A5104)","v":7},{"$f":"IFERROR(VLOOKUP(B5104,Translation!$A:$C,3,FALSE),B5104)","v":"T4 2018"},{"$f":"IFERROR(VLOOKUP(C5104,Translation!$A:$C,3,FALSE),C5104)","v":"ASSURANCE DE PORTEFEUILLE"},{"$f":"IFERROR(VLOOKUP(D5104,Translation!$A:$C,3,FALSE),D5104)","v":"> 60 % <= 65 %"},{"$f":"IFERROR(VLOOKUP(E5104,Translation!$A:$C,3,FALSE),E5104)","v":11.95175888099617},{"$f":"IFERROR(VLOOKUP(F5104,Translation!$A:$C,3,FALSE),F5104)","v":"Prêts hypothécaires assurés au cours de la période selon le rapport prêt-valeur (RPV) établi d’après la valeur initiale de la propriété (%)"},{"$f":"IFERROR(VLOOKUP(G5104,Translation!$A:$C,3,FALSE),G5104)","v":"12.0"},{"$f":"IFERROR(VLOOKUP(H5104,Translation!$A:$C,3,FALSE),H5104)","v":" > 60 % <= 65 %"}]
[7,"Cumul 2017","ASSURANCE DE PORTEFEUILLE","> 65 % <= 70 %",11.669078975362879,"Prêts hypothécaires assurés au cours de la période selon le rapport prêt-valeur (RPV) établi d’après la valeur initiale de la propriété (%)","11.7"," > 65 % <= 70 %",{"$f":"IFERROR(VLOOKUP(A5107,Translation!$A:$C,3,FALSE),A5107)","v":7},{"$f":"IFERROR(VLOOKUP(B5107,Translation!$A:$C,3,FALSE),B5107)","v":"Cumul 2017"},{"$f":"IFERROR(VLOOKUP(C5107,Translation!$A:$C,3,FALSE),C5107)","v":"ASSURANCE DE PORTEFEUILLE"},{"$f":"IFERROR(VLOOKUP(D5107,Translation!$A:$C,3,FALSE),D5107)","v":"> 65 % <= 70 %"},{"$f":"IFERROR(VLOOKUP(E5107,Translation!$A:$C,3,FALSE),E5107)","v":11.669078975362879},{"$f":"IFERROR(VLOOKUP(F5107,Translation!$A:$C,3,FALSE),F5107)","v":"Prêts hypothécaires assurés au cours de la période selon le rapport prêt-valeur (RPV) établi d’après la valeur initiale de la propriété (%)"},{"$f":"IFERROR(VLOOKUP(G5107,Translation!$A:$C,3,FALSE),G5107)","v":"11.7"},{"$f":"IFERROR(VLOOKUP(H5107,Translation!$A:$C,3,FALSE),H5107)","v":" > 65 % <= 70 %"}]
[7,"T4 2018","ASSURANCE DE PORTEFEUILLE","> 75 % <= 80 %",27.370226051063657,"Prêts hypothécaires assurés au cours de la période selon le rapport prêt-valeur (RPV) établi d’après la valeur initiale de la propriété (%)","27.4"," > 75 % <= 80 %",{"$f":"IFERROR(VLOOKUP(A5110,Translation!$A:$C,3,FALSE),A5110)","v":7},{"$f":"IFERROR(VLOOKUP(B5110,Translation!$A:$C,3,FALSE),B5110)","v":"T4 2018"},{"$f":"IFERROR(VLOOKUP(C5110,Translation!$A:$C,3,FALSE),C5110)","v":"ASSURANCE DE PORTEFEUILLE"},{"$f":"IFERROR(VLOOKUP(D5110,Translation!$A:$C,3,FALSE),D5110)","v":"> 75 % <= 80 %"},{"$f":"IFERROR(VLOOKUP(E5110,Translation!$A:$C,3,FALSE),E5110)","v":27.370226051063657},{"$f":"IFERROR(VLOOKUP(F5110,Translation!$A:$C,3,FALSE),F5110)","v":"Prêts hypothécaires assurés au cours de la période selon le rapport prêt-valeur (RPV) établi d’après la valeur initiale de la propriété (%)"},{"$f":"IFERROR(VLOOKUP(G5110,Translation!$A:$C,3,FALSE),G5110)","v":"27.4"},{"$f":"IFERROR(VLOOKUP(H5110,Translation!$A:$C,3,FALSE),H5110)","v":" > 75 % <= 80 %"}]
[7,"T4 2018","ASSURANCE DE PORTEFEUILLE","Rapport prêt-valeur moyen ",61.453598957386987,"Prêts hypothécaires assurés au cours de la période selon le rapport prêt-valeur (RPV) établi d’après la valeur initiale de la propriété (%)","61.5","Rapport prêt-valeur moyen ",{"$f":"IFERROR(VLOOKUP(A5112,Translation!$A:$C,3,FALSE),A5112)","v":7},{"$f":"IFERROR(VLOOKUP(B5112,Translation!$A:$C,3,FALSE),B5112)","v":"T4 2018"},{"$f":"IFERROR(VLOOKUP(C5112,Translation!$A:$C,3,FALSE),C5112)","v":"ASSURANCE DE PORTEFEUILLE"},{"$f":"IFERROR(VLOOKUP(D5112,Translation!$A:$C,3,FALSE),D5112)","v":"Rapport prêt-valeur moyen "},{"$f":"IFERROR(VLOOKUP(E5112,Translation!$A:$C,3,FALSE),E5112)","v":61.453598957386987},{"$f":"IFERROR(VLOOKUP(F5112,Translation!$A:$C,3,FALSE),F5112)","v":"Prêts hypothécaires assurés au cours de la période selon le rapport prêt-valeur (RPV) établi d’après la valeur initiale de la propriété (%)"},{"$f":"IFERROR(VLOOKUP(G5112,Translation!$A:$C,3,FALSE),G5112)","v":"61.5"},{"$f":"IFERROR(VLOOKUP(H5112,Translation!$A:$C,3,FALSE),H5112)","v":"Rapport prêt-valeur moyen "}]
[7,"Cumul 2017","ASSURANCE DE PORTEFEUILLE","Avoir propre foncier moyen ",35.315986257047882,"Prêts hypothécaires assurés au cours de la période selon le rapport prêt-valeur (RPV) établi d’après la valeur initiale de la propriété (%)","35.3","Avoir propre foncier moyen ",{"$f":"IFERROR(VLOOKUP(A5115,Translation!$A:$C,3,FALSE),A5115)","v":7},{"$f":"IFERROR(VLOOKUP(B5115,Translation!$A:$C,3,FALSE),B5115)","v":"Cumul 2017"},{"$f":"IFERROR(VLOOKUP(C5115,Translation!$A:$C,3,FALSE),C5115)","v":"ASSURANCE DE PORTEFEUILLE"},{"$f":"IFERROR(VLOOKUP(D5115,Translation!$A:$C,3,FALSE),D5115)","v":"Avoir propre foncier moyen "},{"$f":"IFERROR(VLOOKUP(E5115,Translation!$A:$C,3,FALSE),E5115)","v":35.315986257047882},{"$f":"IFERROR(VLOOKUP(F5115,Translation!$A:$C,3,FALSE),F5115)","v":"Prêts hypothécaires assurés au cours de la période selon le rapport prêt-valeur (RPV) établi d’après la valeur initiale de la propriété (%)"},{"$f":"IFERROR(VLOOKUP(G5115,Translation!$A:$C,3,FALSE),G5115)","v":"35.3"},{"$f":"IFERROR(VLOOKUP(H5115,Translation!$A:$C,3,FALSE),H5115)","v":"Avoir propre foncier moyen "}]
[7,"T4 2018","ASSURANCE DE PORTEFEUILLE","Nouvelle-Écosse",38.493225288389475,"Avoir propre foncier moyen selon la province","38.5","Nouvelle-Écosse",{"$f":"IFERROR(VLOOKUP(A5118,Translation!$A:$C,3,FALSE),A5118)","v":7},{"$f":"IFERROR(VLOOKUP(B5118,Translation!$A:$C,3,FALSE),B5118)","v":"T4 2018"},{"$f":"IFERROR(VLOOKUP(C5118,Translation!$A:$C,3,FALSE),C5118)","v":"ASSURANCE DE PORTEFEUILLE"},{"$f":"IFERROR(VLOOKUP(D5118,Translation!$A:$C,3,FALSE),D5118)","v":"Nouvelle-Écosse"},{"$f":"IFERROR(VLOOKUP(E5118,Translation!$A:$C,3,FALSE),E5118)","v":38.493225288389475},{"$f":"IFERROR(VLOOKUP(F5118,Translation!$A:$C,3,FALSE),F5118)","v":"Avoir propre foncier moyen selon la province"},{"$f":"IFERROR(VLOOKUP(G5118,Translation!$A:$C,3,FALSE),G5118)","v":"38.5"},{"$f":"IFERROR(VLOOKUP(H5118,Translation!$A:$C,3,FALSE),H5118)","v":"Nouvelle-Écosse"}]
[7,"T4 2018","ASSURANCE DE PORTEFEUILLE","Québec",33.324602211381901,"Avoir propre foncier moyen selon la province","33.3","Québec",{"$f":"IFERROR(VLOOKUP(A5120,Translation!$A:$C,3,FALSE),A5120)","v":7},{"$f":"IFERROR(VLOOKUP(B5120,Translation!$A:$C,3,FALSE),B5120)","v":"T4 2018"},{"$f":"IFERROR(VLOOKUP(C5120,Translation!$A:$C,3,FALSE),C5120)","v":"ASSURANCE DE PORTEFEUILLE"},{"$f":"IFERROR(VLOOKUP(D5120,Translation!$A:$C,3,FALSE),D5120)","v":"Québec"},{"$f":"IFERROR(VLOOKUP(E5120,Translation!$A:$C,3,FALSE),E5120)","v":33.324602211381901},{"$f":"IFERROR(VLOOKUP(F5120,Translation!$A:$C,3,FALSE),F5120)","v":"Avoir propre foncier moyen selon la province"},{"$f":"IFERROR(VLOOKUP(G5120,Translation!$A:$C,3,FALSE),G5120)","v":"33.3"},{"$f":"IFERROR(VLOOKUP(H5120,Translation!$A:$C,3,FALSE),H5120)","v":"Québec"}]
[7,"T4 2018","ASSURANCE DE PORTEFEUILLE","Ontario",38.452781176966795,"Avoir propre foncier moyen selon la province","38.5","Ontario",{"$f":"IFERROR(VLOOKUP(A5121,Translation!$A:$C,3,FALSE),A5121)","v":7},{"$f":"IFERROR(VLOOKUP(B5121,Translation!$A:$C,3,FALSE),B5121)","v":"T4 2018"},{"$f":"IFERROR(VLOOKUP(C5121,Translation!$A:$C,3,FALSE),C5121)","v":"ASSURANCE DE PORTEFEUILLE"},{"$f":"IFERROR(VLOOKUP(D5121,Translation!$A:$C,3,FALSE),D5121)","v":"Ontario"},{"$f":"IFERROR(VLOOKUP(E5121,Translation!$A:$C,3,FALSE),E5121)","v":38.452781176966795},{"$f":"IFERROR(VLOOKUP(F5121,Translation!$A:$C,3,FALSE),F5121)","v":"Avoir propre foncier moyen selon la province"},{"$f":"IFERROR(VLOOKUP(G5121,Translation!$A:$C,3,FALSE),G5121)","v":"38.5"},{"$f":"IFERROR(VLOOKUP(H5121,Translation!$A:$C,3,FALSE),H5121)","v":"Ontario"}]
[7,"T4 2018","ASSURANCE DE PORTEFEUILLE","Saskatchewan",36.257683044694659,"Avoir propre foncier moyen selon la province","36.3","Saskatchewan",{"$f":"IFERROR(VLOOKUP(A5123,Translation!$A:$C,3,FALSE),A5123)","v":7},{"$f":"IFERROR(VLOOKUP(B5123,Translation!$A:$C,3,FALSE),B5123)","v":"T4 2018"},{"$f":"IFERROR(VLOOKUP(C5123,Translation!$A:$C,3,FALSE),C5123)","v":"ASSURANCE DE PORTEFEUILLE"},{"$f":"IFERROR(VLOOKUP(D5123,Translation!$A:$C,3,FALSE),D5123)","v":"Saskatchewan"},{"$f":"IFERROR(VLOOKUP(E5123,Translation!$A:$C,3,FALSE),E5123)","v":36.257683044694659},{"$f":"IFERROR(VLOOKUP(F5123,Translation!$A:$C,3,FALSE),F5123)","v":"Avoir propre foncier moyen selon la province"},{"$f":"IFERROR(VLOOKUP(G5123,Translation!$A:$C,3,FALSE),G5123)","v":"36.3"},{"$f":"IFERROR(VLOOKUP(H5123,Translation!$A:$C,3,FALSE),H5123)","v":"Saskatchewan"}]
[7,"Cumul 2017","ASSURANCE DE PORTEFEUILLE","Terre-Neuve-et-Labrador",30.591844318569432,"Avoir propre foncier moyen selon la province","30.6","Terre-Neuve-et-Labrador",{"$f":"IFERROR(VLOOKUP(A5126,Translation!$A:$C,3,FALSE),A5126)","v":7},{"$f":"IFERROR(VLOOKUP(B5126,Translation!$A:$C,3,FALSE),B5126)","v":"Cumul 2017"},{"$f":"IFERROR(VLOOKUP(C5126,Translation!$A:$C,3,FALSE),C5126)","v":"ASSURANCE DE PORTEFEUILLE"},{"$f":"IFERROR(VLOOKUP(D5126,Translation!$A:$C,3,FALSE),D5126)","v":"Terre-Neuve-et-Labrador"},{"$f":"IFERROR(VLOOKUP(E5126,Translation!$A:$C,3,FALSE),E5126)","v":30.591844318569432},{"$f":"IFERROR(VLOOKUP(F5126,Translation!$A:$C,3,FALSE),F5126)","v":"Avoir propre foncier moyen selon la province"},{"$f":"IFERROR(VLOOKUP(G5126,Translation!$A:$C,3,FALSE),G5126)","v":"30.6"},{"$f":"IFERROR(VLOOKUP(H5126,Translation!$A:$C,3,FALSE),H5126)","v":"Terre-Neuve-et-Labrador"}]
[7,"Cumul 2017","ASSURANCE DE PORTEFEUILLE","Nouveau-Brunswick",30.171126809022944,"Avoir propre foncier moyen selon la province","30.2","Nouveau-Brunswick",{"$f":"IFERROR(VLOOKUP(A5129,Translation!$A:$C,3,FALSE),A5129)","v":7},{"$f":"IFERROR(VLOOKUP(B5129,Translation!$A:$C,3,FALSE),B5129)","v":"Cumul 2017"},{"$f":"IFERROR(VLOOKUP(C5129,Translation!$A:$C,3,FALSE),C5129)","v":"ASSURANCE DE PORTEFEUILLE"},{"$f":"IFERROR(VLOOKUP(D5129,Translation!$A:$C,3,FALSE),D5129)","v":"Nouveau-Brunswick"},{"$f":"IFERROR(VLOOKUP(E5129,Translation!$A:$C,3,FALSE),E5129)","v":30.171126809022944},{"$f":"IFERROR(VLOOKUP(F5129,Translation!$A:$C,3,FALSE),F5129)","v":"Avoir propre foncier moyen selon la province"},{"$f":"IFERROR(VLOOKUP(G5129,Translation!$A:$C,3,FALSE),G5129)","v":"30.2"},{"$f":"IFERROR(VLOOKUP(H5129,Translation!$A:$C,3,FALSE),H5129)","v":"Nouveau-Brunswick"}]
[7,"Cumul 2017","ASSURANCE DE PORTEFEUILLE","Ontario",33.268464797873143,"Avoir propre foncier moyen selon la province","33.3","Ontario",{"$f":"IFERROR(VLOOKUP(A5131,Translation!$A:$C,3,FALSE),A5131)","v":7},{"$f":"IFERROR(VLOOKUP(B5131,Translation!$A:$C,3,FALSE),B5131)","v":"Cumul 2017"},{"$f":"IFERROR(VLOOKUP(C5131,Translation!$A:$C,3,FALSE),C5131)","v":"ASSURANCE DE PORTEFEUILLE"},{"$f":"IFERROR(VLOOKUP(D5131,Translation!$A:$C,3,FALSE),D5131)","v":"Ontario"},{"$f":"IFERROR(VLOOKUP(E5131,Translation!$A:$C,3,FALSE),E5131)","v":33.268464797873143},{"$f":"IFERROR(VLOOKUP(F5131,Translation!$A:$C,3,FALSE),F5131)","v":"Avoir propre foncier moyen selon la province"},{"$f":"IFERROR(VLOOKUP(G5131,Translation!$A:$C,3,FALSE),G5131)","v":"33.3"},{"$f":"IFERROR(VLOOKUP(H5131,Translation!$A:$C,3,FALSE),H5131)","v":"Ontario"}]
[7,"Cumul 2017","ASSURANCE DE PORTEFEUILLE","Alberta",32.658140215954795,"Avoir propre foncier moyen selon la province","32.7","Alberta",{"$f":"IFERROR(VLOOKUP(A5134,Translation!$A:$C,3,FALSE),A5134)","v":7},{"$f":"IFERROR(VLOOKUP(B5134,Translation!$A:$C,3,FALSE),B5134)","v":"Cumul 2017"},{"$f":"IFERROR(VLOOKUP(C5134,Translation!$A:$C,3,FALSE),C5134)","v":"ASSURANCE DE PORTEFEUILLE"},{"$f":"IFERROR(VLOOKUP(D5134,Translation!$A:$C,3,FALSE),D5134)","v":"Alberta"},{"$f":"IFERROR(VLOOKUP(E5134,Translation!$A:$C,3,FALSE),E5134)","v":32.658140215954795},{"$f":"IFERROR(VLOOKUP(F5134,Translation!$A:$C,3,FALSE),F5134)","v":"Avoir propre foncier moyen selon la province"},{"$f":"IFERROR(VLOOKUP(G5134,Translation!$A:$C,3,FALSE),G5134)","v":"32.7"},{"$f":"IFERROR(VLOOKUP(H5134,Translation!$A:$C,3,FALSE),H5134)","v":"Alberta"}]
[27,"T4 2018","IMMEUBLES COLLECTIFS RÉSIDENTIELS","<= 50 %",1.5221092719496081,"Prêts hypothécaires assurés au cours de la période selon le rapport prêt-valeur (RPV) établi d’après la valeur initiale de la propriété (%)","1.5"," <= 50 %",{"$f":"IFERROR(VLOOKUP(A5137,Translation!$A:$C,3,FALSE),A5137)","v":27},{"$f":"IFERROR(VLOOKUP(B5137,Translation!$A:$C,3,FALSE),B5137)","v":"T4 2018"},{"$f":"IFERROR(VLOOKUP(C5137,Translation!$A:$C,3,FALSE),C5137)","v":"IMMEUBLES COLLECTIFS RÉSIDENTIELS"},{"$f":"IFERROR(VLOOKUP(D5137,Translation!$A:$C,3,FALSE),D5137)","v":"<= 50 %"},{"$f":"IFERROR(VLOOKUP(E5137,Translation!$A:$C,3,FALSE),E5137)","v":1.5221092719496081},{"$f":"IFERROR(VLOOKUP(F5137,Translation!$A:$C,3,FALSE),F5137)","v":"Prêts hypothécaires assurés au cours de la période selon le rapport prêt-valeur (RPV) établi d’après la valeur initiale de la propriété (%)"},{"$f":"IFERROR(VLOOKUP(G5137,Translation!$A:$C,3,FALSE),G5137)","v":"1.5"},{"$f":"IFERROR(VLOOKUP(H5137,Translation!$A:$C,3,FALSE),H5137)","v":" <= 50 %"}]
[27,"T4 2018","IMMEUBLES COLLECTIFS RÉSIDENTIELS","> 50 % <= 55 %",0.94800632104364768,"Prêts hypothécaires assurés au cours de la période selon le rapport prêt-valeur (RPV) établi d’après la valeur initiale de la propriété (%)","0.9"," > 50 % <= 55 %",{"$f":"IFERROR(VLOOKUP(A5139,Translation!$A:$C,3,FALSE),A5139)","v":27},{"$f":"IFERROR(VLOOKUP(B5139,Translation!$A:$C,3,FALSE),B5139)","v":"T4 2018"},{"$f":"IFERROR(VLOOKUP(C5139,Translation!$A:$C,3,FALSE),C5139)","v":"IMMEUBLES COLLECTIFS RÉSIDENTIELS"},{"$f":"IFERROR(VLOOKUP(D5139,Translation!$A:$C,3,FALSE),D5139)","v":"> 50 % <= 55 %"},{"$f":"IFERROR(VLOOKUP(E5139,Translation!$A:$C,3,FALSE),E5139)","v":0.94800632104364768},{"$f":"IFERROR(VLOOKUP(F5139,Translation!$A:$C,3,FALSE),F5139)","v":"Prêts hypothécaires assurés au cours de la période selon le rapport prêt-valeur (RPV) établi d’après la valeur initiale de la propriété (%)"},{"$f":"IFERROR(VLOOKUP(G5139,Translation!$A:$C,3,FALSE),G5139)","v":"0.9"},{"$f":"IFERROR(VLOOKUP(H5139,Translation!$A:$C,3,FALSE),H5139)","v":" > 50 % <= 55 %"}]
[27,"Cumul 2017","IMMEUBLES COLLECTIFS RÉSIDENTIELS","> 55 % <= 60 %",10.10893455599075,"Prêts hypothécaires assurés au cours de la période selon le rapport prêt-valeur (RPV) établi d’après la valeur initiale de la propriété (%)","10.1"," > 55 % <= 60 %",{"$f":"IFERROR(VLOOKUP(A5142,Translation!$A:$C,3,FALSE),A5142)","v":27},{"$f":"IFERROR(VLOOKUP(B5142,Translation!$A:$C,3,FALSE),B5142)","v":"Cumul 2017"},{"$f":"IFERROR(VLOOKUP(C5142,Translation!$A:$C,3,FALSE),C5142)","v":"IMMEUBLES COLLECTIFS RÉSIDENTIELS"},{"$f":"IFERROR(VLOOKUP(D5142,Translation!$A:$C,3,FALSE),D5142)","v":"> 55 % <= 60 %"},{"$f":"IFERROR(VLOOKUP(E5142,Translation!$A:$C,3,FALSE),E5142)","v":10.10893455599075},{"$f":"IFERROR(VLOOKUP(F5142,Translation!$A:$C,3,FALSE),F5142)","v":"Prêts hypothécaires assurés au cours de la période selon le rapport prêt-valeur (RPV) établi d’après la valeur initiale de la propriété (%)"},{"$f":"IFERROR(VLOOKUP(G5142,Translation!$A:$C,3,FALSE),G5142)","v":"10.1"},{"$f":"IFERROR(VLOOKUP(H5142,Translation!$A:$C,3,FALSE),H5142)","v":" > 55 % <= 60 %"}]
[27,"Cumul 2017","IMMEUBLES COLLECTIFS RÉSIDENTIELS","> 60 % <= 65 %",10.487129866732165,"Prêts hypothécaires assurés au cours de la période selon le rapport prêt-valeur (RPV) établi d’après la valeur initiale de la propriété (%)","10.5"," > 60 % <= 65 %",{"$f":"IFERROR(VLOOKUP(A5144,Translation!$A:$C,3,FALSE),A5144)","v":27},{"$f":"IFERROR(VLOOKUP(B5144,Translation!$A:$C,3,FALSE),B5144)","v":"Cumul 2017"},{"$f":"IFERROR(VLOOKUP(C5144,Translation!$A:$C,3,FALSE),C5144)","v":"IMMEUBLES COLLECTIFS RÉSIDENTIELS"},{"$f":"IFERROR(VLOOKUP(D5144,Translation!$A:$C,3,FALSE),D5144)","v":"> 60 % <= 65 %"},{"$f":"IFERROR(VLOOKUP(E5144,Translation!$A:$C,3,FALSE),E5144)","v":10.487129866732165},{"$f":"IFERROR(VLOOKUP(F5144,Translation!$A:$C,3,FALSE),F5144)","v":"Prêts hypothécaires assurés au cours de la période selon le rapport prêt-valeur (RPV) établi d’après la valeur initiale de la propriété (%)"},{"$f":"IFERROR(VLOOKUP(G5144,Translation!$A:$C,3,FALSE),G5144)","v":"10.5"},{"$f":"IFERROR(VLOOKUP(H5144,Translation!$A:$C,3,FALSE),H5144)","v":" > 60 % <= 65 %"}]
[27,"T4 2018","IMMEUBLES COLLECTIFS RÉSIDENTIELS","> 65 % <= 70 %",5.9878877974485594,"Prêts hypothécaires assurés au cours de la période selon le rapport prêt-valeur (RPV) établi d’après la valeur initiale de la propriété (%)","6.0"," > 65 % <= 70 %",{"$f":"IFERROR(VLOOKUP(A5145,Translation!$A:$C,3,FALSE),A5145)","v":27},{"$f":"IFERROR(VLOOKUP(B5145,Translation!$A:$C,3,FALSE),B5145)","v":"T4 2018"},{"$f":"IFERROR(VLOOKUP(C5145,Translation!$A:$C,3,FALSE),C5145)","v":"IMMEUBLES COLLECTIFS RÉSIDENTIELS"},{"$f":"IFERROR(VLOOKUP(D5145,Translation!$A:$C,3,FALSE),D5145)","v":"> 65 % <= 70 %"},{"$f":"IFERROR(VLOOKUP(E5145,Translation!$A:$C,3,FALSE),E5145)","v":5.9878877974485594},{"$f":"IFERROR(VLOOKUP(F5145,Translation!$A:$C,3,FALSE),F5145)","v":"Prêts hypothécaires assurés au cours de la période selon le rapport prêt-valeur (RPV) établi d’après la valeur initiale de la propriété (%)"},{"$f":"IFERROR(VLOOKUP(G5145,Translation!$A:$C,3,FALSE),G5145)","v":"6.0"},{"$f":"IFERROR(VLOOKUP(H5145,Translation!$A:$C,3,FALSE),H5145)","v":" > 65 % <= 70 %"}]
[27,"Cumul 2017","IMMEUBLES COLLECTIFS RÉSIDENTIELS","> 70 % <= 75 %",36.837808107954928,"Prêts hypothécaires assurés au cours de la période selon le rapport prêt-valeur (RPV) établi d’après la valeur initiale de la propriété (%)","36.8"," > 70 % <= 75 %",{"$f":"IFERROR(VLOOKUP(A5148,Translation!$A:$C,3,FALSE),A5148)","v":27},{"$f":"IFERROR(VLOOKUP(B5148,Translation!$A:$C,3,FALSE),B5148)","v":"Cumul 2017"},{"$f":"IFERROR(VLOOKUP(C5148,Translation!$A:$C,3,FALSE),C5148)","v":"IMMEUBLES COLLECTIFS RÉSIDENTIELS"},{"$f":"IFERROR(VLOOKUP(D5148,Translation!$A:$C,3,FALSE),D5148)","v":"> 70 % <= 75 %"},{"$f":"IFERROR(VLOOKUP(E5148,Translation!$A:$C,3,FALSE),E5148)","v":36.837808107954928},{"$f":"IFERROR(VLOOKUP(F5148,Translation!$A:$C,3,FALSE),F5148)","v":"Prêts hypothécaires assurés au cours de la période selon le rapport prêt-valeur (RPV) établi d’après la valeur initiale de la propriété (%)"},{"$f":"IFERROR(VLOOKUP(G5148,Translation!$A:$C,3,FALSE),G5148)","v":"36.8"},{"$f":"IFERROR(VLOOKUP(H5148,Translation!$A:$C,3,FALSE),H5148)","v":" > 70 % <= 75 %"}]
[27,"Cumul 2017","IMMEUBLES COLLECTIFS RÉSIDENTIELS","> 75 % <= 80 %",4.3018151216888469,"Prêts hypothécaires assurés au cours de la période selon le rapport prêt-valeur (RPV) établi d’après la valeur initiale de la propriété (%)","4.3"," > 75 % <= 80 %",{"$f":"IFERROR(VLOOKUP(A5150,Translation!$A:$C,3,FALSE),A5150)","v":27},{"$f":"IFERROR(VLOOKUP(B5150,Translation!$A:$C,3,FALSE),B5150)","v":"Cumul 2017"},{"$f":"IFERROR(VLOOKUP(C5150,Translation!$A:$C,3,FALSE),C5150)","v":"IMMEUBLES COLLECTIFS RÉSIDENTIELS"},{"$f":"IFERROR(VLOOKUP(D5150,Translation!$A:$C,3,FALSE),D5150)","v":"> 75 % <= 80 %"},{"$f":"IFERROR(VLOOKUP(E5150,Translation!$A:$C,3,FALSE),E5150)","v":4.3018151216888469},{"$f":"IFERROR(VLOOKUP(F5150,Translation!$A:$C,3,FALSE),F5150)","v":"Prêts hypothécaires assurés au cours de la période selon le rapport prêt-valeur (RPV) établi d’après la valeur initiale de la propriété (%)"},{"$f":"IFERROR(VLOOKUP(G5150,Translation!$A:$C,3,FALSE),G5150)","v":"4.3"},{"$f":"IFERROR(VLOOKUP(H5150,Translation!$A:$C,3,FALSE),H5150)","v":" > 75 % <= 80 %"}]
[27,"T4 2018","IMMEUBLES COLLECTIFS RÉSIDENTIELS","> 90 % <= 95 %",3.5356968415252918,"Prêts hypothécaires assurés au cours de la période selon le rapport prêt-valeur (RPV) établi d’après la valeur initiale de la propriété (%)","3.5"," > 90 % <= 95 %",{"$f":"IFERROR(VLOOKUP(A5153,Translation!$A:$C,3,FALSE),A5153)","v":27},{"$f":"IFERROR(VLOOKUP(B5153,Translation!$A:$C,3,FALSE),B5153)","v":"T4 2018"},{"$f":"IFERROR(VLOOKUP(C5153,Translation!$A:$C,3,FALSE),C5153)","v":"IMMEUBLES COLLECTIFS RÉSIDENTIELS"},{"$f":"IFERROR(VLOOKUP(D5153,Translation!$A:$C,3,FALSE),D5153)","v":"> 90 % <= 95 %"},{"$f":"IFERROR(VLOOKUP(E5153,Translation!$A:$C,3,FALSE),E5153)","v":3.5356968415252918},{"$f":"IFERROR(VLOOKUP(F5153,Translation!$A:$C,3,FALSE),F5153)","v":"Prêts hypothécaires assurés au cours de la période selon le rapport prêt-valeur (RPV) établi d’après la valeur initiale de la propriété (%)"},{"$f":"IFERROR(VLOOKUP(G5153,Translation!$A:$C,3,FALSE),G5153)","v":"3.5"},{"$f":"IFERROR(VLOOKUP(H5153,Translation!$A:$C,3,FALSE),H5153)","v":" > 90 % <= 95 %"}]
[27,"T4 2018","IMMEUBLES COLLECTIFS RÉSIDENTIELS","> 95 %",1.7352722065050683,"Prêts hypothécaires assurés au cours de la période selon le rapport prêt-valeur (RPV) établi d’après la valeur initiale de la propriété (%)","1.7"," > 95 %",{"$f":"IFERROR(VLOOKUP(A5155,Translation!$A:$C,3,FALSE),A5155)","v":27},{"$f":"IFERROR(VLOOKUP(B5155,Translation!$A:$C,3,FALSE),B5155)","v":"T4 2018"},{"$f":"IFERROR(VLOOKUP(C5155,Translation!$A:$C,3,FALSE),C5155)","v":"IMMEUBLES COLLECTIFS RÉSIDENTIELS"},{"$f":"IFERROR(VLOOKUP(D5155,Translation!$A:$C,3,FALSE),D5155)","v":"> 95 %"},{"$f":"IFERROR(VLOOKUP(E5155,Translation!$A:$C,3,FALSE),E5155)","v":1.7352722065050683},{"$f":"IFERROR(VLOOKUP(F5155,Translation!$A:$C,3,FALSE),F5155)","v":"Prêts hypothécaires assurés au cours de la période selon le rapport prêt-valeur (RPV) établi d’après la valeur initiale de la propriété (%)"},{"$f":"IFERROR(VLOOKUP(G5155,Translation!$A:$C,3,FALSE),G5155)","v":"1.7"},{"$f":"IFERROR(VLOOKUP(H5155,Translation!$A:$C,3,FALSE),H5155)","v":" > 95 %"}]
[27,"Cumul 2017","IMMEUBLES COLLECTIFS RÉSIDENTIELS","Rapport prêt-valeur moyen ",73.03556136674689,"Prêts hypothécaires assurés au cours de la période selon le rapport prêt-valeur (RPV) établi d’après la valeur initiale de la propriété (%)","73.0","Rapport prêt-valeur moyen ",{"$f":"IFERROR(VLOOKUP(A5158,Translation!$A:$C,3,FALSE),A5158)","v":27},{"$f":"IFERROR(VLOOKUP(B5158,Translation!$A:$C,3,FALSE),B5158)","v":"Cumul 2017"},{"$f":"IFERROR(VLOOKUP(C5158,Translation!$A:$C,3,FALSE),C5158)","v":"IMMEUBLES COLLECTIFS RÉSIDENTIELS"},{"$f":"IFERROR(VLOOKUP(D5158,Translation!$A:$C,3,FALSE),D5158)","v":"Rapport prêt-valeur moyen "},{"$f":"IFERROR(VLOOKUP(E5158,Translation!$A:$C,3,FALSE),E5158)","v":73.03556136674689},{"$f":"IFERROR(VLOOKUP(F5158,Translation!$A:$C,3,FALSE),F5158)","v":"Prêts hypothécaires assurés au cours de la période selon le rapport prêt-valeur (RPV) établi d’après la valeur initiale de la propriété (%)"},{"$f":"IFERROR(VLOOKUP(G5158,Translation!$A:$C,3,FALSE),G5158)","v":"73.0"},{"$f":"IFERROR(VLOOKUP(H5158,Translation!$A:$C,3,FALSE),H5158)","v":"Rapport prêt-valeur moyen "}]
[27,"T4 2018","IMMEUBLES COLLECTIFS RÉSIDENTIELS","Avoir propre foncier moyen ",25.061430504482004,"Prêts hypothécaires assurés au cours de la période selon le rapport prêt-valeur (RPV) établi d’après la valeur initiale de la propriété (%)","25.1","Avoir propre foncier moyen ",{"$f":"IFERROR(VLOOKUP(A5159,Translation!$A:$C,3,FALSE),A5159)","v":27},{"$f":"IFERROR(VLOOKUP(B5159,Translation!$A:$C,3,FALSE),B5159)","v":"T4 2018"},{"$f":"IFERROR(VLOOKUP(C5159,Translation!$A:$C,3,FALSE),C5159)","v":"IMMEUBLES COLLECTIFS RÉSIDENTIELS"},{"$f":"IFERROR(VLOOKUP(D5159,Translation!$A:$C,3,FALSE),D5159)","v":"Avoir propre foncier moyen "},{"$f":"IFERROR(VLOOKUP(E5159,Translation!$A:$C,3,FALSE),E5159)","v":25.061430504482004},{"$f":"IFERROR(VLOOKUP(F5159,Translation!$A:$C,3,FALSE),F5159)","v":"Prêts hypothécaires assurés au cours de la période selon le rapport prêt-valeur (RPV) établi d’après la valeur initiale de la propriété (%)"},{"$f":"IFERROR(VLOOKUP(G5159,Translation!$A:$C,3,FALSE),G5159)","v":"25.1"},{"$f":"IFERROR(VLOOKUP(H5159,Translation!$A:$C,3,FALSE),H5159)","v":"Avoir propre foncier moyen "}]
[27,"T4 2018","IMMEUBLES COLLECTIFS RÉSIDENTIELS","Nouvelle-Écosse",16.091577149633597,"Avoir propre foncier moyen selon la province","16.1","Nouvelle-Écosse",{"$f":"IFERROR(VLOOKUP(A5163,Translation!$A:$C,3,FALSE),A5163)","v":27},{"$f":"IFERROR(VLOOKUP(B5163,Translation!$A:$C,3,FALSE),B5163)","v":"T4 2018"},{"$f":"IFERROR(VLOOKUP(C5163,Translation!$A:$C,3,FALSE),C5163)","v":"IMMEUBLES COLLECTIFS RÉSIDENTIELS"},{"$f":"IFERROR(VLOOKUP(D5163,Translation!$A:$C,3,FALSE),D5163)","v":"Nouvelle-Écosse"},{"$f":"IFERROR(VLOOKUP(E5163,Translation!$A:$C,3,FALSE),E5163)","v":16.091577149633597},{"$f":"IFERROR(VLOOKUP(F5163,Translation!$A:$C,3,FALSE),F5163)","v":"Avoir propre foncier moyen selon la province"},{"$f":"IFERROR(VLOOKUP(G5163,Translation!$A:$C,3,FALSE),G5163)","v":"16.1"},{"$f":"IFERROR(VLOOKUP(H5163,Translation!$A:$C,3,FALSE),H5163)","v":"Nouvelle-Écosse"}]
[27,"T4 2018","IMMEUBLES COLLECTIFS RÉSIDENTIELS","Nouveau-Brunswick",18.104210973066483,"Avoir propre foncier moyen selon la province","18.1","Nouveau-Brunswick",{"$f":"IFERROR(VLOOKUP(A5164,Translation!$A:$C,3,FALSE),A5164)","v":27},{"$f":"IFERROR(VLOOKUP(B5164,Translation!$A:$C,3,FALSE),B5164)","v":"T4 2018"},{"$f":"IFERROR(VLOOKUP(C5164,Translation!$A:$C,3,FALSE),C5164)","v":"IMMEUBLES COLLECTIFS RÉSIDENTIELS"},{"$f":"IFERROR(VLOOKUP(D5164,Translation!$A:$C,3,FALSE),D5164)","v":"Nouveau-Brunswick"},{"$f":"IFERROR(VLOOKUP(E5164,Translation!$A:$C,3,FALSE),E5164)","v":18.104210973066483},{"$f":"IFERROR(VLOOKUP(F5164,Translation!$A:$C,3,FALSE),F5164)","v":"Avoir propre foncier moyen selon la province"},{"$f":"IFERROR(VLOOKUP(G5164,Translation!$A:$C,3,FALSE),G5164)","v":"18.1"},{"$f":"IFERROR(VLOOKUP(H5164,Translation!$A:$C,3,FALSE),H5164)","v":"Nouveau-Brunswick"}]
[27,"T4 2018","IMMEUBLES COLLECTIFS RÉSIDENTIELS","Saskatchewan",19.946597034329272,"Avoir propre foncier moyen selon la province","19.9","Saskatchewan",{"$f":"IFERROR(VLOOKUP(A5168,Translation!$A:$C,3,FALSE),A5168)","v":27},{"$f":"IFERROR(VLOOKUP(B5168,Translation!$A:$C,3,FALSE),B5168)","v":"T4 2018"},{"$f":"IFERROR(VLOOKUP(C5168,Translation!$A:$C,3,FALSE),C5168)","v":"IMMEUBLES COLLECTIFS RÉSIDENTIELS"},{"$f":"IFERROR(VLOOKUP(D5168,Translation!$A:$C,3,FALSE),D5168)","v":"Saskatchewan"},{"$f":"IFERROR(VLOOKUP(E5168,Translation!$A:$C,3,FALSE),E5168)","v":19.946597034329272},{"$f":"IFERROR(VLOOKUP(F5168,Translation!$A:$C,3,FALSE),F5168)","v":"Avoir propre foncier moyen selon la province"},{"$f":"IFERROR(VLOOKUP(G5168,Translation!$A:$C,3,FALSE),G5168)","v":"19.9"},{"$f":"IFERROR(VLOOKUP(H5168,Translation!$A:$C,3,FALSE),H5168)","v":"Saskatchewan"}]
[27,"T4 2018","IMMEUBLES COLLECTIFS RÉSIDENTIELS","Alberta",24.778995833578847,"Avoir propre foncier moyen selon la province","24.8","Alberta",{"$f":"IFERROR(VLOOKUP(A5169,Translation!$A:$C,3,FALSE),A5169)","v":27},{"$f":"IFERROR(VLOOKUP(B5169,Translation!$A:$C,3,FALSE),B5169)","v":"T4 2018"},{"$f":"IFERROR(VLOOKUP(C5169,Translation!$A:$C,3,FALSE),C5169)","v":"IMMEUBLES COLLECTIFS RÉSIDENTIELS"},{"$f":"IFERROR(VLOOKUP(D5169,Translation!$A:$C,3,FALSE),D5169)","v":"Alberta"},{"$f":"IFERROR(VLOOKUP(E5169,Translation!$A:$C,3,FALSE),E5169)","v":24.778995833578847},{"$f":"IFERROR(VLOOKUP(F5169,Translation!$A:$C,3,FALSE),F5169)","v":"Avoir propre foncier moyen selon la province"},{"$f":"IFERROR(VLOOKUP(G5169,Translation!$A:$C,3,FALSE),G5169)","v":"24.8"},{"$f":"IFERROR(VLOOKUP(H5169,Translation!$A:$C,3,FALSE),H5169)","v":"Alberta"}]
[27,"Cumul 2017","IMMEUBLES COLLECTIFS RÉSIDENTIELS","Terre-Neuve-et-Labrador",20.923934087217944,"Avoir propre foncier moyen selon la province","20.9","Terre-Neuve-et-Labrador",{"$f":"IFERROR(VLOOKUP(A5172,Translation!$A:$C,3,FALSE),A5172)","v":27},{"$f":"IFERROR(VLOOKUP(B5172,Translation!$A:$C,3,FALSE),B5172)","v":"Cumul 2017"},{"$f":"IFERROR(VLOOKUP(C5172,Translation!$A:$C,3,FALSE),C5172)","v":"IMMEUBLES COLLECTIFS RÉSIDENTIELS"},{"$f":"IFERROR(VLOOKUP(D5172,Translation!$A:$C,3,FALSE),D5172)","v":"Terre-Neuve-et-Labrador"},{"$f":"IFERROR(VLOOKUP(E5172,Translation!$A:$C,3,FALSE),E5172)","v":20.923934087217944},{"$f":"IFERROR(VLOOKUP(F5172,Translation!$A:$C,3,FALSE),F5172)","v":"Avoir propre foncier moyen selon la province"},{"$f":"IFERROR(VLOOKUP(G5172,Translation!$A:$C,3,FALSE),G5172)","v":"20.9"},{"$f":"IFERROR(VLOOKUP(H5172,Translation!$A:$C,3,FALSE),H5172)","v":"Terre-Neuve-et-Labrador"}]
[27,"Cumul 2017","IMMEUBLES COLLECTIFS RÉSIDENTIELS","Nouvelle-Écosse",21.221277472596775,"Avoir propre foncier moyen selon la province","21.2","Nouvelle-Écosse",{"$f":"IFERROR(VLOOKUP(A5174,Translation!$A:$C,3,FALSE),A5174)","v":27},{"$f":"IFERROR(VLOOKUP(B5174,Translation!$A:$C,3,FALSE),B5174)","v":"Cumul 2017"},{"$f":"IFERROR(VLOOKUP(C5174,Translation!$A:$C,3,FALSE),C5174)","v":"IMMEUBLES COLLECTIFS RÉSIDENTIELS"},{"$f":"IFERROR(VLOOKUP(D5174,Translation!$A:$C,3,FALSE),D5174)","v":"Nouvelle-Écosse"},{"$f":"IFERROR(VLOOKUP(E5174,Translation!$A:$C,3,FALSE),E5174)","v":21.221277472596775},{"$f":"IFERROR(VLOOKUP(F5174,Translation!$A:$C,3,FALSE),F5174)","v":"Avoir propre foncier moyen selon la province"},{"$f":"IFERROR(VLOOKUP(G5174,Translation!$A:$C,3,FALSE),G5174)","v":"21.2"},{"$f":"IFERROR(VLOOKUP(H5174,Translation!$A:$C,3,FALSE),H5174)","v":"Nouvelle-Écosse"}]
[27,"Cumul 2017","IMMEUBLES COLLECTIFS RÉSIDENTIELS","Manitoba",25.537458573382157,"Avoir propre foncier moyen selon la province","25.5","Manitoba",{"$f":"IFERROR(VLOOKUP(A5178,Translation!$A:$C,3,FALSE),A5178)","v":27},{"$f":"IFERROR(VLOOKUP(B5178,Translation!$A:$C,3,FALSE),B5178)","v":"Cumul 2017"},{"$f":"IFERROR(VLOOKUP(C5178,Translation!$A:$C,3,FALSE),C5178)","v":"IMMEUBLES COLLECTIFS RÉSIDENTIELS"},{"$f":"IFERROR(VLOOKUP(D5178,Translation!$A:$C,3,FALSE),D5178)","v":"Manitoba"},{"$f":"IFERROR(VLOOKUP(E5178,Translation!$A:$C,3,FALSE),E5178)","v":25.537458573382157},{"$f":"IFERROR(VLOOKUP(F5178,Translation!$A:$C,3,FALSE),F5178)","v":"Avoir propre foncier moyen selon la province"},{"$f":"IFERROR(VLOOKUP(G5178,Translation!$A:$C,3,FALSE),G5178)","v":"25.5"},{"$f":"IFERROR(VLOOKUP(H5178,Translation!$A:$C,3,FALSE),H5178)","v":"Manitoba"}]
[27,"Cumul 2017","IMMEUBLES COLLECTIFS RÉSIDENTIELS","Saskatchewan",24.116918581864457,"Avoir propre foncier moyen selon la province","24.1","Saskatchewan",{"$f":"IFERROR(VLOOKUP(A5179,Translation!$A:$C,3,FALSE),A5179)","v":27},{"$f":"IFERROR(VLOOKUP(B5179,Translation!$A:$C,3,FALSE),B5179)","v":"Cumul 2017"},{"$f":"IFERROR(VLOOKUP(C5179,Translation!$A:$C,3,FALSE),C5179)","v":"IMMEUBLES COLLECTIFS RÉSIDENTIELS"},{"$f":"IFERROR(VLOOKUP(D5179,Translation!$A:$C,3,FALSE),D5179)","v":"Saskatchewan"},{"$f":"IFERROR(VLOOKUP(E5179,Translation!$A:$C,3,FALSE),E5179)","v":24.116918581864457},{"$f":"IFERROR(VLOOKUP(F5179,Translation!$A:$C,3,FALSE),F5179)","v":"Avoir propre foncier moyen selon la province"},{"$f":"IFERROR(VLOOKUP(G5179,Translation!$A:$C,3,FALSE),G5179)","v":"24.1"},{"$f":"IFERROR(VLOOKUP(H5179,Translation!$A:$C,3,FALSE),H5179)","v":"Saskatchewan"}]
[27,"Cumul 2017","IMMEUBLES COLLECTIFS RÉSIDENTIELS","Territoires",22.789568316634369,"Avoir propre foncier moyen selon la province","22.8","Territoires",{"$f":"IFERROR(VLOOKUP(A5182,Translation!$A:$C,3,FALSE),A5182)","v":27},{"$f":"IFERROR(VLOOKUP(B5182,Translation!$A:$C,3,FALSE),B5182)","v":"Cumul 2017"},{"$f":"IFERROR(VLOOKUP(C5182,Translation!$A:$C,3,FALSE),C5182)","v":"IMMEUBLES COLLECTIFS RÉSIDENTIELS"},{"$f":"IFERROR(VLOOKUP(D5182,Translation!$A:$C,3,FALSE),D5182)","v":"Territoires"},{"$f":"IFERROR(VLOOKUP(E5182,Translation!$A:$C,3,FALSE),E5182)","v":22.789568316634369},{"$f":"IFERROR(VLOOKUP(F5182,Translation!$A:$C,3,FALSE),F5182)","v":"Avoir propre foncier moyen selon la province"},{"$f":"IFERROR(VLOOKUP(G5182,Translation!$A:$C,3,FALSE),G5182)","v":"22.8"},{"$f":"IFERROR(VLOOKUP(H5182,Translation!$A:$C,3,FALSE),H5182)","v":"Territoires"}]
[7,"T3 2018","PROPRIÉTAIRES-OCCUPANTS, À L’UNITÉ","<= 50 %",0.13575900839186544,"Prêts hypothécaires assurés au cours de la période selon le rapport prêt-valeur (RPV) établi d’après la valeur initiale de la propriété (%)","0.1"," <= 50 %",{"$f":"IFERROR(VLOOKUP(A5183,Translation!$A:$C,3,FALSE),A5183)","v":7},{"$f":"IFERROR(VLOOKUP(B5183,Translation!$A:$C,3,FALSE),B5183)","v":"T3 2018"},{"$f":"IFERROR(VLOOKUP(C5183,Translation!$A:$C,3,FALSE),C5183)","v":"PROPRIÉTAIRES-OCCUPANTS, À L’UNITÉ"},{"$f":"IFERROR(VLOOKUP(D5183,Translation!$A:$C,3,FALSE),D5183)","v":"<= 50 %"},{"$f":"IFERROR(VLOOKUP(E5183,Translation!$A:$C,3,FALSE),E5183)","v":0.13575900839186544},{"$f":"IFERROR(VLOOKUP(F5183,Translation!$A:$C,3,FALSE),F5183)","v":"Prêts hypothécaires assurés au cours de la période selon le rapport prêt-valeur (RPV) établi d’après la valeur initiale de la propriété (%)"},{"$f":"IFERROR(VLOOKUP(G5183,Translation!$A:$C,3,FALSE),G5183)","v":"0.1"},{"$f":"IFERROR(VLOOKUP(H5183,Translation!$A:$C,3,FALSE),H5183)","v":" <= 50 %"}]
[7,"T3 2018","PROPRIÉTAIRES-OCCUPANTS, À L’UNITÉ","> 65 % <= 70 %",0.10063741655309857,"Prêts hypothécaires assurés au cours de la période selon le rapport prêt-valeur (RPV) établi d’après la valeur initiale de la propriété (%)","0.1"," > 65 % <= 70 %",{"$f":"IFERROR(VLOOKUP(A5187,Translation!$A:$C,3,FALSE),A5187)","v":7},{"$f":"IFERROR(VLOOKUP(B5187,Translation!$A:$C,3,FALSE),B5187)","v":"T3 2018"},{"$f":"IFERROR(VLOOKUP(C5187,Translation!$A:$C,3,FALSE),C5187)","v":"PROPRIÉTAIRES-OCCUPANTS, À L’UNITÉ"},{"$f":"IFERROR(VLOOKUP(D5187,Translation!$A:$C,3,FALSE),D5187)","v":"> 65 % <= 70 %"},{"$f":"IFERROR(VLOOKUP(E5187,Translation!$A:$C,3,FALSE),E5187)","v":0.10063741655309857},{"$f":"IFERROR(VLOOKUP(F5187,Translation!$A:$C,3,FALSE),F5187)","v":"Prêts hypothécaires assurés au cours de la période selon le rapport prêt-valeur (RPV) établi d’après la valeur initiale de la propriété (%)"},{"$f":"IFERROR(VLOOKUP(G5187,Translation!$A:$C,3,FALSE),G5187)","v":"0.1"},{"$f":"IFERROR(VLOOKUP(H5187,Translation!$A:$C,3,FALSE),H5187)","v":" > 65 % <= 70 %"}]
[7,"T3 2018","PROPRIÉTAIRES-OCCUPANTS, À L’UNITÉ","> 75 % <= 80 %",0.90368194203106866,"Prêts hypothécaires assurés au cours de la période selon le rapport prêt-valeur (RPV) établi d’après la valeur initiale de la propriété (%)","0.9"," > 75 % <= 80 %",{"$f":"IFERROR(VLOOKUP(A5189,Translation!$A:$C,3,FALSE),A5189)","v":7},{"$f":"IFERROR(VLOOKUP(B5189,Translation!$A:$C,3,FALSE),B5189)","v":"T3 2018"},{"$f":"IFERROR(VLOOKUP(C5189,Translation!$A:$C,3,FALSE),C5189)","v":"PROPRIÉTAIRES-OCCUPANTS, À L’UNITÉ"},{"$f":"IFERROR(VLOOKUP(D5189,Translation!$A:$C,3,FALSE),D5189)","v":"> 75 % <= 80 %"},{"$f":"IFERROR(VLOOKUP(E5189,Translation!$A:$C,3,FALSE),E5189)","v":0.90368194203106866},{"$f":"IFERROR(VLOOKUP(F5189,Translation!$A:$C,3,FALSE),F5189)","v":"Prêts hypothécaires assurés au cours de la période selon le rapport prêt-valeur (RPV) établi d’après la valeur initiale de la propriété (%)"},{"$f":"IFERROR(VLOOKUP(G5189,Translation!$A:$C,3,FALSE),G5189)","v":"0.9"},{"$f":"IFERROR(VLOOKUP(H5189,Translation!$A:$C,3,FALSE),H5189)","v":" > 75 % <= 80 %"}]
[7,"T3 2018","PROPRIÉTAIRES-OCCUPANTS, À L’UNITÉ","> 90 % <= 95 %",66.665679854305836,"Prêts hypothécaires assurés au cours de la période selon le rapport prêt-valeur (RPV) établi d’après la valeur initiale de la propriété (%)","66.7"," > 90 % <= 95 %",{"$f":"IFERROR(VLOOKUP(A5192,Translation!$A:$C,3,FALSE),A5192)","v":7},{"$f":"IFERROR(VLOOKUP(B5192,Translation!$A:$C,3,FALSE),B5192)","v":"T3 2018"},{"$f":"IFERROR(VLOOKUP(C5192,Translation!$A:$C,3,FALSE),C5192)","v":"PROPRIÉTAIRES-OCCUPANTS, À L’UNITÉ"},{"$f":"IFERROR(VLOOKUP(D5192,Translation!$A:$C,3,FALSE),D5192)","v":"> 90 % <= 95 %"},{"$f":"IFERROR(VLOOKUP(E5192,Translation!$A:$C,3,FALSE),E5192)","v":66.665679854305836},{"$f":"IFERROR(VLOOKUP(F5192,Translation!$A:$C,3,FALSE),F5192)","v":"Prêts hypothécaires assurés au cours de la période selon le rapport prêt-valeur (RPV) établi d’après la valeur initiale de la propriété (%)"},{"$f":"IFERROR(VLOOKUP(G5192,Translation!$A:$C,3,FALSE),G5192)","v":"66.7"},{"$f":"IFERROR(VLOOKUP(H5192,Translation!$A:$C,3,FALSE),H5192)","v":" > 90 % <= 95 %"}]
[7,"T3 2018","PROPRIÉTAIRES-OCCUPANTS, À L’UNITÉ","Rapport prêt-valeur moyen ",92.28697989704898,"Prêts hypothécaires assurés au cours de la période selon le rapport prêt-valeur (RPV) établi d’après la valeur initiale de la propriété (%)","92.3","Rapport prêt-valeur moyen ",{"$f":"IFERROR(VLOOKUP(A5193,Translation!$A:$C,3,FALSE),A5193)","v":7},{"$f":"IFERROR(VLOOKUP(B5193,Translation!$A:$C,3,FALSE),B5193)","v":"T3 2018"},{"$f":"IFERROR(VLOOKUP(C5193,Translation!$A:$C,3,FALSE),C5193)","v":"PROPRIÉTAIRES-OCCUPANTS, À L’UNITÉ"},{"$f":"IFERROR(VLOOKUP(D5193,Translation!$A:$C,3,FALSE),D5193)","v":"Rapport prêt-valeur moyen "},{"$f":"IFERROR(VLOOKUP(E5193,Translation!$A:$C,3,FALSE),E5193)","v":92.28697989704898},{"$f":"IFERROR(VLOOKUP(F5193,Translation!$A:$C,3,FALSE),F5193)","v":"Prêts hypothécaires assurés au cours de la période selon le rapport prêt-valeur (RPV) établi d’après la valeur initiale de la propriété (%)"},{"$f":"IFERROR(VLOOKUP(G5193,Translation!$A:$C,3,FALSE),G5193)","v":"92.3"},{"$f":"IFERROR(VLOOKUP(H5193,Translation!$A:$C,3,FALSE),H5193)","v":"Rapport prêt-valeur moyen "}]
[7,"T3 2018","PROPRIÉTAIRES-OCCUPANTS, À L’UNITÉ","Nouvelle-Écosse",7.1294529810511884,"Avoir propre foncier moyen selon la province","7.1","Nouvelle-Écosse",{"$f":"IFERROR(VLOOKUP(A5197,Translation!$A:$C,3,FALSE),A5197)","v":7},{"$f":"IFERROR(VLOOKUP(B5197,Translation!$A:$C,3,FALSE),B5197)","v":"T3 2018"},{"$f":"IFERROR(VLOOKUP(C5197,Translation!$A:$C,3,FALSE),C5197)","v":"PROPRIÉTAIRES-OCCUPANTS, À L’UNITÉ"},{"$f":"IFERROR(VLOOKUP(D5197,Translation!$A:$C,3,FALSE),D5197)","v":"Nouvelle-Écosse"},{"$f":"IFERROR(VLOOKUP(E5197,Translation!$A:$C,3,FALSE),E5197)","v":7.1294529810511884},{"$f":"IFERROR(VLOOKUP(F5197,Translation!$A:$C,3,FALSE),F5197)","v":"Avoir propre foncier moyen selon la province"},{"$f":"IFERROR(VLOOKUP(G5197,Translation!$A:$C,3,FALSE),G5197)","v":"7.1"},{"$f":"IFERROR(VLOOKUP(H5197,Translation!$A:$C,3,FALSE),H5197)","v":"Nouvelle-Écosse"}]
[7,"T3 2018","PROPRIÉTAIRES-OCCUPANTS, À L’UNITÉ","Nouveau-Brunswick",6.5539956262709902,"Avoir propre foncier moyen selon la province","6.6","Nouveau-Brunswick",{"$f":"IFERROR(VLOOKUP(A5198,Translation!$A:$C,3,FALSE),A5198)","v":7},{"$f":"IFERROR(VLOOKUP(B5198,Translation!$A:$C,3,FALSE),B5198)","v":"T3 2018"},{"$f":"IFERROR(VLOOKUP(C5198,Translation!$A:$C,3,FALSE),C5198)","v":"PROPRIÉTAIRES-OCCUPANTS, À L’UNITÉ"},{"$f":"IFERROR(VLOOKUP(D5198,Translation!$A:$C,3,FALSE),D5198)","v":"Nouveau-Brunswick"},{"$f":"IFERROR(VLOOKUP(E5198,Translation!$A:$C,3,FALSE),E5198)","v":6.5539956262709902},{"$f":"IFERROR(VLOOKUP(F5198,Translation!$A:$C,3,FALSE),F5198)","v":"Avoir propre foncier moyen selon la province"},{"$f":"IFERROR(VLOOKUP(G5198,Translation!$A:$C,3,FALSE),G5198)","v":"6.6"},{"$f":"IFERROR(VLOOKUP(H5198,Translation!$A:$C,3,FALSE),H5198)","v":"Nouveau-Brunswick"}]
[7,"T3 2018","PROPRIÉTAIRES-OCCUPANTS, À L’UNITÉ","Manitoba",6.7039663686580164,"Avoir propre foncier moyen selon la province","6.7","Manitoba",{"$f":"IFERROR(VLOOKUP(A5201,Translation!$A:$C,3,FALSE),A5201)","v":7},{"$f":"IFERROR(VLOOKUP(B5201,Translation!$A:$C,3,FALSE),B5201)","v":"T3 2018"},{"$f":"IFERROR(VLOOKUP(C5201,Translation!$A:$C,3,FALSE),C5201)","v":"PROPRIÉTAIRES-OCCUPANTS, À L’UNITÉ"},{"$f":"IFERROR(VLOOKUP(D5201,Translation!$A:$C,3,FALSE),D5201)","v":"Manitoba"},{"$f":"IFERROR(VLOOKUP(E5201,Translation!$A:$C,3,FALSE),E5201)","v":6.7039663686580164},{"$f":"IFERROR(VLOOKUP(F5201,Translation!$A:$C,3,FALSE),F5201)","v":"Avoir propre foncier moyen selon la province"},{"$f":"IFERROR(VLOOKUP(G5201,Translation!$A:$C,3,FALSE),G5201)","v":"6.7"},{"$f":"IFERROR(VLOOKUP(H5201,Translation!$A:$C,3,FALSE),H5201)","v":"Manitoba"}]
[7,"T3 2018","PROPRIÉTAIRES-OCCUPANTS, À L’UNITÉ","Saskatchewan",6.6972632406866071,"Avoir propre foncier moyen selon la province","6.7","Saskatchewan",{"$f":"IFERROR(VLOOKUP(A5202,Translation!$A:$C,3,FALSE),A5202)","v":7},{"$f":"IFERROR(VLOOKUP(B5202,Translation!$A:$C,3,FALSE),B5202)","v":"T3 2018"},{"$f":"IFERROR(VLOOKUP(C5202,Translation!$A:$C,3,FALSE),C5202)","v":"PROPRIÉTAIRES-OCCUPANTS, À L’UNITÉ"},{"$f":"IFERROR(VLOOKUP(D5202,Translation!$A:$C,3,FALSE),D5202)","v":"Saskatchewan"},{"$f":"IFERROR(VLOOKUP(E5202,Translation!$A:$C,3,FALSE),E5202)","v":6.6972632406866071},{"$f":"IFERROR(VLOOKUP(F5202,Translation!$A:$C,3,FALSE),F5202)","v":"Avoir propre foncier moyen selon la province"},{"$f":"IFERROR(VLOOKUP(G5202,Translation!$A:$C,3,FALSE),G5202)","v":"6.7"},{"$f":"IFERROR(VLOOKUP(H5202,Translation!$A:$C,3,FALSE),H5202)","v":"Saskatchewan"}]
[7,"T3 2018","ASSURANCE DE PORTEFEUILLE","<= 50 %",29.259882886292775,"Prêts hypothécaires assurés au cours de la période selon le rapport prêt-valeur (RPV) établi d’après la valeur initiale de la propriété (%)","29.3"," <= 50 %",{"$f":"IFERROR(VLOOKUP(A5206,Translation!$A:$C,3,FALSE),A5206)","v":7},{"$f":"IFERROR(VLOOKUP(B5206,Translation!$A:$C,3,FALSE),B5206)","v":"T3 2018"},{"$f":"IFERROR(VLOOKUP(C5206,Translation!$A:$C,3,FALSE),C5206)","v":"ASSURANCE DE PORTEFEUILLE"},{"$f":"IFERROR(VLOOKUP(D5206,Translation!$A:$C,3,FALSE),D5206)","v":"<= 50 %"},{"$f":"IFERROR(VLOOKUP(E5206,Translation!$A:$C,3,FALSE),E5206)","v":29.259882886292775},{"$f":"IFERROR(VLOOKUP(F5206,Translation!$A:$C,3,FALSE),F5206)","v":"Prêts hypothécaires assurés au cours de la période selon le rapport prêt-valeur (RPV) établi d’après la valeur initiale de la propriété (%)"},{"$f":"IFERROR(VLOOKUP(G5206,Translation!$A:$C,3,FALSE),G5206)","v":"29.3"},{"$f":"IFERROR(VLOOKUP(H5206,Translation!$A:$C,3,FALSE),H5206)","v":" <= 50 %"}]
[7,"T3 2018","ASSURANCE DE PORTEFEUILLE","> 55 % <= 60 %",10.071593122494701,"Prêts hypothécaires assurés au cours de la période selon le rapport prêt-valeur (RPV) établi d’après la valeur initiale de la propriété (%)","10.1"," > 55 % <= 60 %",{"$f":"IFERROR(VLOOKUP(A5208,Translation!$A:$C,3,FALSE),A5208)","v":7},{"$f":"IFERROR(VLOOKUP(B5208,Translation!$A:$C,3,FALSE),B5208)","v":"T3 2018"},{"$f":"IFERROR(VLOOKUP(C5208,Translation!$A:$C,3,FALSE),C5208)","v":"ASSURANCE DE PORTEFEUILLE"},{"$f":"IFERROR(VLOOKUP(D5208,Translation!$A:$C,3,FALSE),D5208)","v":"> 55 % <= 60 %"},{"$f":"IFERROR(VLOOKUP(E5208,Translation!$A:$C,3,FALSE),E5208)","v":10.071593122494701},{"$f":"IFERROR(VLOOKUP(F5208,Translation!$A:$C,3,FALSE),F5208)","v":"Prêts hypothécaires assurés au cours de la période selon le rapport prêt-valeur (RPV) établi d’après la valeur initiale de la propriété (%)"},{"$f":"IFERROR(VLOOKUP(G5208,Translation!$A:$C,3,FALSE),G5208)","v":"10.1"},{"$f":"IFERROR(VLOOKUP(H5208,Translation!$A:$C,3,FALSE),H5208)","v":" > 55 % <= 60 %"}]
[7,"T3 2018","ASSURANCE DE PORTEFEUILLE","> 70 % <= 75 %",12.10429142513231,"Prêts hypothécaires assurés au cours de la période selon le rapport prêt-valeur (RPV) établi d’après la valeur initiale de la propriété (%)","12.1"," > 70 % <= 75 %",{"$f":"IFERROR(VLOOKUP(A5211,Translation!$A:$C,3,FALSE),A5211)","v":7},{"$f":"IFERROR(VLOOKUP(B5211,Translation!$A:$C,3,FALSE),B5211)","v":"T3 2018"},{"$f":"IFERROR(VLOOKUP(C5211,Translation!$A:$C,3,FALSE),C5211)","v":"ASSURANCE DE PORTEFEUILLE"},{"$f":"IFERROR(VLOOKUP(D5211,Translation!$A:$C,3,FALSE),D5211)","v":"> 70 % <= 75 %"},{"$f":"IFERROR(VLOOKUP(E5211,Translation!$A:$C,3,FALSE),E5211)","v":12.10429142513231},{"$f":"IFERROR(VLOOKUP(F5211,Translation!$A:$C,3,FALSE),F5211)","v":"Prêts hypothécaires assurés au cours de la période selon le rapport prêt-valeur (RPV) établi d’après la valeur initiale de la propriété (%)"},{"$f":"IFERROR(VLOOKUP(G5211,Translation!$A:$C,3,FALSE),G5211)","v":"12.1"},{"$f":"IFERROR(VLOOKUP(H5211,Translation!$A:$C,3,FALSE),H5211)","v":" > 70 % <= 75 %"}]
[7,"T3 2018","ASSURANCE DE PORTEFEUILLE","> 75 % <= 80 %",14.530624216401877,"Prêts hypothécaires assurés au cours de la période selon le rapport prêt-valeur (RPV) établi d’après la valeur initiale de la propriété (%)","14.5"," > 75 % <= 80 %",{"$f":"IFERROR(VLOOKUP(A5212,Translation!$A:$C,3,FALSE),A5212)","v":7},{"$f":"IFERROR(VLOOKUP(B5212,Translation!$A:$C,3,FALSE),B5212)","v":"T3 2018"},{"$f":"IFERROR(VLOOKUP(C5212,Translation!$A:$C,3,FALSE),C5212)","v":"ASSURANCE DE PORTEFEUILLE"},{"$f":"IFERROR(VLOOKUP(D5212,Translation!$A:$C,3,FALSE),D5212)","v":"> 75 % <= 80 %"},{"$f":"IFERROR(VLOOKUP(E5212,Translation!$A:$C,3,FALSE),E5212)","v":14.530624216401877},{"$f":"IFERROR(VLOOKUP(F5212,Translation!$A:$C,3,FALSE),F5212)","v":"Prêts hypothécaires assurés au cours de la période selon le rapport prêt-valeur (RPV) établi d’après la valeur initiale de la propriété (%)"},{"$f":"IFERROR(VLOOKUP(G5212,Translation!$A:$C,3,FALSE),G5212)","v":"14.5"},{"$f":"IFERROR(VLOOKUP(H5212,Translation!$A:$C,3,FALSE),H5212)","v":" > 75 % <= 80 %"}]
[7,"T3 2018","ASSURANCE DE PORTEFEUILLE","Nouvelle-Écosse",39.566756805891558,"Avoir propre foncier moyen selon la province","39.6","Nouvelle-Écosse",{"$f":"IFERROR(VLOOKUP(A5216,Translation!$A:$C,3,FALSE),A5216)","v":7},{"$f":"IFERROR(VLOOKUP(B5216,Translation!$A:$C,3,FALSE),B5216)","v":"T3 2018"},{"$f":"IFERROR(VLOOKUP(C5216,Translation!$A:$C,3,FALSE),C5216)","v":"ASSURANCE DE PORTEFEUILLE"},{"$f":"IFERROR(VLOOKUP(D5216,Translation!$A:$C,3,FALSE),D5216)","v":"Nouvelle-Écosse"},{"$f":"IFERROR(VLOOKUP(E5216,Translation!$A:$C,3,FALSE),E5216)","v":39.566756805891558},{"$f":"IFERROR(VLOOKUP(F5216,Translation!$A:$C,3,FALSE),F5216)","v":"Avoir propre foncier moyen selon la province"},{"$f":"IFERROR(VLOOKUP(G5216,Translation!$A:$C,3,FALSE),G5216)","v":"39.6"},{"$f":"IFERROR(VLOOKUP(H5216,Translation!$A:$C,3,FALSE),H5216)","v":"Nouvelle-Écosse"}]
[7,"T3 2018","ASSURANCE DE PORTEFEUILLE","Nouveau-Brunswick",41.894811736459474,"Avoir propre foncier moyen selon la province","41.9","Nouveau-Brunswick",{"$f":"IFERROR(VLOOKUP(A5217,Translation!$A:$C,3,FALSE),A5217)","v":7},{"$f":"IFERROR(VLOOKUP(B5217,Translation!$A:$C,3,FALSE),B5217)","v":"T3 2018"},{"$f":"IFERROR(VLOOKUP(C5217,Translation!$A:$C,3,FALSE),C5217)","v":"ASSURANCE DE PORTEFEUILLE"},{"$f":"IFERROR(VLOOKUP(D5217,Translation!$A:$C,3,FALSE),D5217)","v":"Nouveau-Brunswick"},{"$f":"IFERROR(VLOOKUP(E5217,Translation!$A:$C,3,FALSE),E5217)","v":41.894811736459474},{"$f":"IFERROR(VLOOKUP(F5217,Translation!$A:$C,3,FALSE),F5217)","v":"Avoir propre foncier moyen selon la province"},{"$f":"IFERROR(VLOOKUP(G5217,Translation!$A:$C,3,FALSE),G5217)","v":"41.9"},{"$f":"IFERROR(VLOOKUP(H5217,Translation!$A:$C,3,FALSE),H5217)","v":"Nouveau-Brunswick"}]
[7,"T3 2018","ASSURANCE DE PORTEFEUILLE","Ontario",41.250126655690671,"Avoir propre foncier moyen selon la province","41.3","Ontario",{"$f":"IFERROR(VLOOKUP(A5219,Translation!$A:$C,3,FALSE),A5219)","v":7},{"$f":"IFERROR(VLOOKUP(B5219,Translation!$A:$C,3,FALSE),B5219)","v":"T3 2018"},{"$f":"IFERROR(VLOOKUP(C5219,Translation!$A:$C,3,FALSE),C5219)","v":"ASSURANCE DE PORTEFEUILLE"},{"$f":"IFERROR(VLOOKUP(D5219,Translation!$A:$C,3,FALSE),D5219)","v":"Ontario"},{"$f":"IFERROR(VLOOKUP(E5219,Translation!$A:$C,3,FALSE),E5219)","v":41.250126655690671},{"$f":"IFERROR(VLOOKUP(F5219,Translation!$A:$C,3,FALSE),F5219)","v":"Avoir propre foncier moyen selon la province"},{"$f":"IFERROR(VLOOKUP(G5219,Translation!$A:$C,3,FALSE),G5219)","v":"41.3"},{"$f":"IFERROR(VLOOKUP(H5219,Translation!$A:$C,3,FALSE),H5219)","v":"Ontario"}]
[7,"T3 2018","ASSURANCE DE PORTEFEUILLE","Alberta",38.672721758136198,"Avoir propre foncier moyen selon la province","38.7","Alberta",{"$f":"IFERROR(VLOOKUP(A5222,Translation!$A:$C,3,FALSE),A5222)","v":7},{"$f":"IFERROR(VLOOKUP(B5222,Translation!$A:$C,3,FALSE),B5222)","v":"T3 2018"},{"$f":"IFERROR(VLOOKUP(C5222,Translation!$A:$C,3,FALSE),C5222)","v":"ASSURANCE DE PORTEFEUILLE"},{"$f":"IFERROR(VLOOKUP(D5222,Translation!$A:$C,3,FALSE),D5222)","v":"Alberta"},{"$f":"IFERROR(VLOOKUP(E5222,Translation!$A:$C,3,FALSE),E5222)","v":38.672721758136198},{"$f":"IFERROR(VLOOKUP(F5222,Translation!$A:$C,3,FALSE),F5222)","v":"Avoir propre foncier moyen selon la province"},{"$f":"IFERROR(VLOOKUP(G5222,Translation!$A:$C,3,FALSE),G5222)","v":"38.7"},{"$f":"IFERROR(VLOOKUP(H5222,Translation!$A:$C,3,FALSE),H5222)","v":"Alberta"}]
[27,"T3 2018","IMMEUBLES COLLECTIFS RÉSIDENTIELS","> 50 % <= 55 %",1.2395409775136459,"Prêts hypothécaires assurés au cours de la période selon le rapport prêt-valeur (RPV) établi d’après la valeur initiale de la propriété (%)","1.2"," > 50 % <= 55 %",{"$f":"IFERROR(VLOOKUP(A5225,Translation!$A:$C,3,FALSE),A5225)","v":27},{"$f":"IFERROR(VLOOKUP(B5225,Translation!$A:$C,3,FALSE),B5225)","v":"T3 2018"},{"$f":"IFERROR(VLOOKUP(C5225,Translation!$A:$C,3,FALSE),C5225)","v":"IMMEUBLES COLLECTIFS RÉSIDENTIELS"},{"$f":"IFERROR(VLOOKUP(D5225,Translation!$A:$C,3,FALSE),D5225)","v":"> 50 % <= 55 %"},{"$f":"IFERROR(VLOOKUP(E5225,Translation!$A:$C,3,FALSE),E5225)","v":1.2395409775136459},{"$f":"IFERROR(VLOOKUP(F5225,Translation!$A:$C,3,FALSE),F5225)","v":"Prêts hypothécaires assurés au cours de la période selon le rapport prêt-valeur (RPV) établi d’après la valeur initiale de la propriété (%)"},{"$f":"IFERROR(VLOOKUP(G5225,Translation!$A:$C,3,FALSE),G5225)","v":"1.2"},{"$f":"IFERROR(VLOOKUP(H5225,Translation!$A:$C,3,FALSE),H5225)","v":" > 50 % <= 55 %"}]
[27,"T3 2018","IMMEUBLES COLLECTIFS RÉSIDENTIELS","> 60 % <= 65 %",21.149889889097832,"Prêts hypothécaires assurés au cours de la période selon le rapport prêt-valeur (RPV) établi d’après la valeur initiale de la propriété (%)","21.1"," > 60 % <= 65 %",{"$f":"IFERROR(VLOOKUP(A5227,Translation!$A:$C,3,FALSE),A5227)","v":27},{"$f":"IFERROR(VLOOKUP(B5227,Translation!$A:$C,3,FALSE),B5227)","v":"T3 2018"},{"$f":"IFERROR(VLOOKUP(C5227,Translation!$A:$C,3,FALSE),C5227)","v":"IMMEUBLES COLLECTIFS RÉSIDENTIELS"},{"$f":"IFERROR(VLOOKUP(D5227,Translation!$A:$C,3,FALSE),D5227)","v":"> 60 % <= 65 %"},{"$f":"IFERROR(VLOOKUP(E5227,Translation!$A:$C,3,FALSE),E5227)","v":21.149889889097832},{"$f":"IFERROR(VLOOKUP(F5227,Translation!$A:$C,3,FALSE),F5227)","v":"Prêts hypothécaires assurés au cours de la période selon le rapport prêt-valeur (RPV) établi d’après la valeur initiale de la propriété (%)"},{"$f":"IFERROR(VLOOKUP(G5227,Translation!$A:$C,3,FALSE),G5227)","v":"21.1"},{"$f":"IFERROR(VLOOKUP(H5227,Translation!$A:$C,3,FALSE),H5227)","v":" > 60 % <= 65 %"}]
[27,"T3 2018","IMMEUBLES COLLECTIFS RÉSIDENTIELS","> 75 % <= 80 %",7.5335973528774547,"Prêts hypothécaires assurés au cours de la période selon le rapport prêt-valeur (RPV) établi d’après la valeur initiale de la propriété (%)","7.5"," > 75 % <= 80 %",{"$f":"IFERROR(VLOOKUP(A5230,Translation!$A:$C,3,FALSE),A5230)","v":27},{"$f":"IFERROR(VLOOKUP(B5230,Translation!$A:$C,3,FALSE),B5230)","v":"T3 2018"},{"$f":"IFERROR(VLOOKUP(C5230,Translation!$A:$C,3,FALSE),C5230)","v":"IMMEUBLES COLLECTIFS RÉSIDENTIELS"},{"$f":"IFERROR(VLOOKUP(D5230,Translation!$A:$C,3,FALSE),D5230)","v":"> 75 % <= 80 %"},{"$f":"IFERROR(VLOOKUP(E5230,Translation!$A:$C,3,FALSE),E5230)","v":7.5335973528774547},{"$f":"IFERROR(VLOOKUP(F5230,Translation!$A:$C,3,FALSE),F5230)","v":"Prêts hypothécaires assurés au cours de la période selon le rapport prêt-valeur (RPV) établi d’après la valeur initiale de la propriété (%)"},{"$f":"IFERROR(VLOOKUP(G5230,Translation!$A:$C,3,FALSE),G5230)","v":"7.5"},{"$f":"IFERROR(VLOOKUP(H5230,Translation!$A:$C,3,FALSE),H5230)","v":" > 75 % <= 80 %"}]
[27,"T3 2018","IMMEUBLES COLLECTIFS RÉSIDENTIELS","> 90 % <= 95 %",1.8822902219738995,"Prêts hypothécaires assurés au cours de la période selon le rapport prêt-valeur (RPV) établi d’après la valeur initiale de la propriété (%)","1.9"," > 90 % <= 95 %",{"$f":"IFERROR(VLOOKUP(A5233,Translation!$A:$C,3,FALSE),A5233)","v":27},{"$f":"IFERROR(VLOOKUP(B5233,Translation!$A:$C,3,FALSE),B5233)","v":"T3 2018"},{"$f":"IFERROR(VLOOKUP(C5233,Translation!$A:$C,3,FALSE),C5233)","v":"IMMEUBLES COLLECTIFS RÉSIDENTIELS"},{"$f":"IFERROR(VLOOKUP(D5233,Translation!$A:$C,3,FALSE),D5233)","v":"> 90 % <= 95 %"},{"$f":"IFERROR(VLOOKUP(E5233,Translation!$A:$C,3,FALSE),E5233)","v":1.8822902219738995},{"$f":"IFERROR(VLOOKUP(F5233,Translation!$A:$C,3,FALSE),F5233)","v":"Prêts hypothécaires assurés au cours de la période selon le rapport prêt-valeur (RPV) établi d’après la valeur initiale de la propriété (%)"},{"$f":"IFERROR(VLOOKUP(G5233,Translation!$A:$C,3,FALSE),G5233)","v":"1.9"},{"$f":"IFERROR(VLOOKUP(H5233,Translation!$A:$C,3,FALSE),H5233)","v":" > 90 % <= 95 %"}]
[27,"T3 2018","IMMEUBLES COLLECTIFS RÉSIDENTIELS","Rapport prêt-valeur moyen ",73.802692371796283,"Prêts hypothécaires assurés au cours de la période selon le rapport prêt-valeur (RPV) établi d’après la valeur initiale de la propriété (%)","73.8","Rapport prêt-valeur moyen ",{"$f":"IFERROR(VLOOKUP(A5235,Translation!$A:$C,3,FALSE),A5235)","v":27},{"$f":"IFERROR(VLOOKUP(B5235,Translation!$A:$C,3,FALSE),B5235)","v":"T3 2018"},{"$f":"IFERROR(VLOOKUP(C5235,Translation!$A:$C,3,FALSE),C5235)","v":"IMMEUBLES COLLECTIFS RÉSIDENTIELS"},{"$f":"IFERROR(VLOOKUP(D5235,Translation!$A:$C,3,FALSE),D5235)","v":"Rapport prêt-valeur moyen "},{"$f":"IFERROR(VLOOKUP(E5235,Translation!$A:$C,3,FALSE),E5235)","v":73.802692371796283},{"$f":"IFERROR(VLOOKUP(F5235,Translation!$A:$C,3,FALSE),F5235)","v":"Prêts hypothécaires assurés au cours de la période selon le rapport prêt-valeur (RPV) établi d’après la valeur initiale de la propriété (%)"},{"$f":"IFERROR(VLOOKUP(G5235,Translation!$A:$C,3,FALSE),G5235)","v":"73.8"},{"$f":"IFERROR(VLOOKUP(H5235,Translation!$A:$C,3,FALSE),H5235)","v":"Rapport prêt-valeur moyen "}]
[27,"T3 2018","IMMEUBLES COLLECTIFS RÉSIDENTIELS","Avoir propre foncier moyen ",26.197307628203717,"Prêts hypothécaires assurés au cours de la période selon le rapport prêt-valeur (RPV) établi d’après la valeur initiale de la propriété (%)","26.2","Avoir propre foncier moyen ",{"$f":"IFERROR(VLOOKUP(A5236,Translation!$A:$C,3,FALSE),A5236)","v":27},{"$f":"IFERROR(VLOOKUP(B5236,Translation!$A:$C,3,FALSE),B5236)","v":"T3 2018"},{"$f":"IFERROR(VLOOKUP(C5236,Translation!$A:$C,3,FALSE),C5236)","v":"IMMEUBLES COLLECTIFS RÉSIDENTIELS"},{"$f":"IFERROR(VLOOKUP(D5236,Translation!$A:$C,3,FALSE),D5236)","v":"Avoir propre foncier moyen "},{"$f":"IFERROR(VLOOKUP(E5236,Translation!$A:$C,3,FALSE),E5236)","v":26.197307628203717},{"$f":"IFERROR(VLOOKUP(F5236,Translation!$A:$C,3,FALSE),F5236)","v":"Prêts hypothécaires assurés au cours de la période selon le rapport prêt-valeur (RPV) établi d’après la valeur initiale de la propriété (%)"},{"$f":"IFERROR(VLOOKUP(G5236,Translation!$A:$C,3,FALSE),G5236)","v":"26.2"},{"$f":"IFERROR(VLOOKUP(H5236,Translation!$A:$C,3,FALSE),H5236)","v":"Avoir propre foncier moyen "}]
[27,"T3 2018","IMMEUBLES COLLECTIFS RÉSIDENTIELS","Île-du-Prince-Édouard",23.110367520063765,"Avoir propre foncier moyen selon la province","23.1","Île-du-Prince-Édouard",{"$f":"IFERROR(VLOOKUP(A5238,Translation!$A:$C,3,FALSE),A5238)","v":27},{"$f":"IFERROR(VLOOKUP(B5238,Translation!$A:$C,3,FALSE),B5238)","v":"T3 2018"},{"$f":"IFERROR(VLOOKUP(C5238,Translation!$A:$C,3,FALSE),C5238)","v":"IMMEUBLES COLLECTIFS RÉSIDENTIELS"},{"$f":"IFERROR(VLOOKUP(D5238,Translation!$A:$C,3,FALSE),D5238)","v":"Île-du-Prince-Édouard"},{"$f":"IFERROR(VLOOKUP(E5238,Translation!$A:$C,3,FALSE),E5238)","v":23.110367520063765},{"$f":"IFERROR(VLOOKUP(F5238,Translation!$A:$C,3,FALSE),F5238)","v":"Avoir propre foncier moyen selon la province"},{"$f":"IFERROR(VLOOKUP(G5238,Translation!$A:$C,3,FALSE),G5238)","v":"23.1"},{"$f":"IFERROR(VLOOKUP(H5238,Translation!$A:$C,3,FALSE),H5238)","v":"Île-du-Prince-Édouard"}]
[27,"T3 2018","IMMEUBLES COLLECTIFS RÉSIDENTIELS","Québec",21.877214286040836,"Avoir propre foncier moyen selon la province","21.9","Québec",{"$f":"IFERROR(VLOOKUP(A5241,Translation!$A:$C,3,FALSE),A5241)","v":27},{"$f":"IFERROR(VLOOKUP(B5241,Translation!$A:$C,3,FALSE),B5241)","v":"T3 2018"},{"$f":"IFERROR(VLOOKUP(C5241,Translation!$A:$C,3,FALSE),C5241)","v":"IMMEUBLES COLLECTIFS RÉSIDENTIELS"},{"$f":"IFERROR(VLOOKUP(D5241,Translation!$A:$C,3,FALSE),D5241)","v":"Québec"},{"$f":"IFERROR(VLOOKUP(E5241,Translation!$A:$C,3,FALSE),E5241)","v":21.877214286040836},{"$f":"IFERROR(VLOOKUP(F5241,Translation!$A:$C,3,FALSE),F5241)","v":"Avoir propre foncier moyen selon la province"},{"$f":"IFERROR(VLOOKUP(G5241,Translation!$A:$C,3,FALSE),G5241)","v":"21.9"},{"$f":"IFERROR(VLOOKUP(H5241,Translation!$A:$C,3,FALSE),H5241)","v":"Québec"}]
[27,"T3 2018","IMMEUBLES COLLECTIFS RÉSIDENTIELS","Saskatchewan",22.19112910852348,"Avoir propre foncier moyen selon la province","22.2","Saskatchewan",{"$f":"IFERROR(VLOOKUP(A5244,Translation!$A:$C,3,FALSE),A5244)","v":27},{"$f":"IFERROR(VLOOKUP(B5244,Translation!$A:$C,3,FALSE),B5244)","v":"T3 2018"},{"$f":"IFERROR(VLOOKUP(C5244,Translation!$A:$C,3,FALSE),C5244)","v":"IMMEUBLES COLLECTIFS RÉSIDENTIELS"},{"$f":"IFERROR(VLOOKUP(D5244,Translation!$A:$C,3,FALSE),D5244)","v":"Saskatchewan"},{"$f":"IFERROR(VLOOKUP(E5244,Translation!$A:$C,3,FALSE),E5244)","v":22.19112910852348},{"$f":"IFERROR(VLOOKUP(F5244,Translation!$A:$C,3,FALSE),F5244)","v":"Avoir propre foncier moyen selon la province"},{"$f":"IFERROR(VLOOKUP(G5244,Translation!$A:$C,3,FALSE),G5244)","v":"22.2"},{"$f":"IFERROR(VLOOKUP(H5244,Translation!$A:$C,3,FALSE),H5244)","v":"Saskatchewan"}]
[27,"T3 2018","IMMEUBLES COLLECTIFS RÉSIDENTIELS","Colombie-Britannique",25.282344483315704,"Avoir propre foncier moyen selon la province","25.3","Colombie-Britannique",{"$f":"IFERROR(VLOOKUP(A5246,Translation!$A:$C,3,FALSE),A5246)","v":27},{"$f":"IFERROR(VLOOKUP(B5246,Translation!$A:$C,3,FALSE),B5246)","v":"T3 2018"},{"$f":"IFERROR(VLOOKUP(C5246,Translation!$A:$C,3,FALSE),C5246)","v":"IMMEUBLES COLLECTIFS RÉSIDENTIELS"},{"$f":"IFERROR(VLOOKUP(D5246,Translation!$A:$C,3,FALSE),D5246)","v":"Colombie-Britannique"},{"$f":"IFERROR(VLOOKUP(E5246,Translation!$A:$C,3,FALSE),E5246)","v":25.282344483315704},{"$f":"IFERROR(VLOOKUP(F5246,Translation!$A:$C,3,FALSE),F5246)","v":"Avoir propre foncier moyen selon la province"},{"$f":"IFERROR(VLOOKUP(G5246,Translation!$A:$C,3,FALSE),G5246)","v":"25.3"},{"$f":"IFERROR(VLOOKUP(H5246,Translation!$A:$C,3,FALSE),H5246)","v":"Colombie-Britannique"}]
[7,"T2 2018","PROPRIÉTAIRES-OCCUPANTS, À L’UNITÉ","> 50 % <= 55 %",6.1576251696459645E-2,"Prêts hypothécaires assurés au cours de la période selon le rapport prêt-valeur (RPV) établi d’après la valeur initiale de la propriété (%)","0.1"," > 50 % <= 55 %",{"$f":"IFERROR(VLOOKUP(A5249,Translation!$A:$C,3,FALSE),A5249)","v":7},{"$f":"IFERROR(VLOOKUP(B5249,Translation!$A:$C,3,FALSE),B5249)","v":"T2 2018"},{"$f":"IFERROR(VLOOKUP(C5249,Translation!$A:$C,3,FALSE),C5249)","v":"PROPRIÉTAIRES-OCCUPANTS, À L’UNITÉ"},{"$f":"IFERROR(VLOOKUP(D5249,Translation!$A:$C,3,FALSE),D5249)","v":"> 50 % <= 55 %"},{"$f":"IFERROR(VLOOKUP(E5249,Translation!$A:$C,3,FALSE),E5249)","v":6.1576251696459645E-2},{"$f":"IFERROR(VLOOKUP(F5249,Translation!$A:$C,3,FALSE),F5249)","v":"Prêts hypothécaires assurés au cours de la période selon le rapport prêt-valeur (RPV) établi d’après la valeur initiale de la propriété (%)"},{"$f":"IFERROR(VLOOKUP(G5249,Translation!$A:$C,3,FALSE),G5249)","v":"0.1"},{"$f":"IFERROR(VLOOKUP(H5249,Translation!$A:$C,3,FALSE),H5249)","v":" > 50 % <= 55 %"}]
[7,"T2 2018","PROPRIÉTAIRES-OCCUPANTS, À L’UNITÉ","> 65 % <= 70 %",9.6347361956179114E-2,"Prêts hypothécaires assurés au cours de la période selon le rapport prêt-valeur (RPV) établi d’après la valeur initiale de la propriété (%)","0.1"," > 65 % <= 70 %",{"$f":"IFERROR(VLOOKUP(A5252,Translation!$A:$C,3,FALSE),A5252)","v":7},{"$f":"IFERROR(VLOOKUP(B5252,Translation!$A:$C,3,FALSE),B5252)","v":"T2 2018"},{"$f":"IFERROR(VLOOKUP(C5252,Translation!$A:$C,3,FALSE),C5252)","v":"PROPRIÉTAIRES-OCCUPANTS, À L’UNITÉ"},{"$f":"IFERROR(VLOOKUP(D5252,Translation!$A:$C,3,FALSE),D5252)","v":"> 65 % <= 70 %"},{"$f":"IFERROR(VLOOKUP(E5252,Translation!$A:$C,3,FALSE),E5252)","v":9.6347361956179114E-2},{"$f":"IFERROR(VLOOKUP(F5252,Translation!$A:$C,3,FALSE),F5252)","v":"Prêts hypothécaires assurés au cours de la période selon le rapport prêt-valeur (RPV) établi d’après la valeur initiale de la propriété (%)"},{"$f":"IFERROR(VLOOKUP(G5252,Translation!$A:$C,3,FALSE),G5252)","v":"0.1"},{"$f":"IFERROR(VLOOKUP(H5252,Translation!$A:$C,3,FALSE),H5252)","v":" > 65 % <= 70 %"}]
[7,"T2 2018","PROPRIÉTAIRES-OCCUPANTS, À L’UNITÉ","> 75 % <= 80 %",1.0761654419125848,"Prêts hypothécaires assurés au cours de la période selon le rapport prêt-valeur (RPV) établi d’après la valeur initiale de la propriété (%)","1.1"," > 75 % <= 80 %",{"$f":"IFERROR(VLOOKUP(A5254,Translation!$A:$C,3,FALSE),A5254)","v":7},{"$f":"IFERROR(VLOOKUP(B5254,Translation!$A:$C,3,FALSE),B5254)","v":"T2 2018"},{"$f":"IFERROR(VLOOKUP(C5254,Translation!$A:$C,3,FALSE),C5254)","v":"PROPRIÉTAIRES-OCCUPANTS, À L’UNITÉ"},{"$f":"IFERROR(VLOOKUP(D5254,Translation!$A:$C,3,FALSE),D5254)","v":"> 75 % <= 80 %"},{"$f":"IFERROR(VLOOKUP(E5254,Translation!$A:$C,3,FALSE),E5254)","v":1.0761654419125848},{"$f":"IFERROR(VLOOKUP(F5254,Translation!$A:$C,3,FALSE),F5254)","v":"Prêts hypothécaires assurés au cours de la période selon le rapport prêt-valeur (RPV) établi d’après la valeur initiale de la propriété (%)"},{"$f":"IFERROR(VLOOKUP(G5254,Translation!$A:$C,3,FALSE),G5254)","v":"1.1"},{"$f":"IFERROR(VLOOKUP(H5254,Translation!$A:$C,3,FALSE),H5254)","v":" > 75 % <= 80 %"}]
[7,"T2 2018","PROPRIÉTAIRES-OCCUPANTS, À L’UNITÉ","> 80 % <= 85 %",4.4860715640113282,"Prêts hypothécaires assurés au cours de la période selon le rapport prêt-valeur (RPV) établi d’après la valeur initiale de la propriété (%)","4.5"," > 80 % <= 85 %",{"$f":"IFERROR(VLOOKUP(A5255,Translation!$A:$C,3,FALSE),A5255)","v":7},{"$f":"IFERROR(VLOOKUP(B5255,Translation!$A:$C,3,FALSE),B5255)","v":"T2 2018"},{"$f":"IFERROR(VLOOKUP(C5255,Translation!$A:$C,3,FALSE),C5255)","v":"PROPRIÉTAIRES-OCCUPANTS, À L’UNITÉ"},{"$f":"IFERROR(VLOOKUP(D5255,Translation!$A:$C,3,FALSE),D5255)","v":"> 80 % <= 85 %"},{"$f":"IFERROR(VLOOKUP(E5255,Translation!$A:$C,3,FALSE),E5255)","v":4.4860715640113282},{"$f":"IFERROR(VLOOKUP(F5255,Translation!$A:$C,3,FALSE),F5255)","v":"Prêts hypothécaires assurés au cours de la période selon le rapport prêt-valeur (RPV) établi d’après la valeur initiale de la propriété (%)"},{"$f":"IFERROR(VLOOKUP(G5255,Translation!$A:$C,3,FALSE),G5255)","v":"4.5"},{"$f":"IFERROR(VLOOKUP(H5255,Translation!$A:$C,3,FALSE),H5255)","v":" > 80 % <= 85 %"}]
[7,"T2 2018","PROPRIÉTAIRES-OCCUPANTS, À L’UNITÉ","Avoir propre foncier moyen ",7.5424597626134355,"Prêts hypothécaires assurés au cours de la période selon le rapport prêt-valeur (RPV) établi d’après la valeur initiale de la propriété (%)","7.5","Avoir propre foncier moyen ",{"$f":"IFERROR(VLOOKUP(A5259,Translation!$A:$C,3,FALSE),A5259)","v":7},{"$f":"IFERROR(VLOOKUP(B5259,Translation!$A:$C,3,FALSE),B5259)","v":"T2 2018"},{"$f":"IFERROR(VLOOKUP(C5259,Translation!$A:$C,3,FALSE),C5259)","v":"PROPRIÉTAIRES-OCCUPANTS, À L’UNITÉ"},{"$f":"IFERROR(VLOOKUP(D5259,Translation!$A:$C,3,FALSE),D5259)","v":"Avoir propre foncier moyen "},{"$f":"IFERROR(VLOOKUP(E5259,Translation!$A:$C,3,FALSE),E5259)","v":7.5424597626134355},{"$f":"IFERROR(VLOOKUP(F5259,Translation!$A:$C,3,FALSE),F5259)","v":"Prêts hypothécaires assurés au cours de la période selon le rapport prêt-valeur (RPV) établi d’après la valeur initiale de la propriété (%)"},{"$f":"IFERROR(VLOOKUP(G5259,Translation!$A:$C,3,FALSE),G5259)","v":"7.5"},{"$f":"IFERROR(VLOOKUP(H5259,Translation!$A:$C,3,FALSE),H5259)","v":"Avoir propre foncier moyen "}]
[7,"T2 2018","PROPRIÉTAIRES-OCCUPANTS, À L’UNITÉ","Terre-Neuve-et-Labrador",6.5089694539042284,"Avoir propre foncier moyen selon la province","6.5","Terre-Neuve-et-Labrador",{"$f":"IFERROR(VLOOKUP(A5260,Translation!$A:$C,3,FALSE),A5260)","v":7},{"$f":"IFERROR(VLOOKUP(B5260,Translation!$A:$C,3,FALSE),B5260)","v":"T2 2018"},{"$f":"IFERROR(VLOOKUP(C5260,Translation!$A:$C,3,FALSE),C5260)","v":"PROPRIÉTAIRES-OCCUPANTS, À L’UNITÉ"},{"$f":"IFERROR(VLOOKUP(D5260,Translation!$A:$C,3,FALSE),D5260)","v":"Terre-Neuve-et-Labrador"},{"$f":"IFERROR(VLOOKUP(E5260,Translation!$A:$C,3,FALSE),E5260)","v":6.5089694539042284},{"$f":"IFERROR(VLOOKUP(F5260,Translation!$A:$C,3,FALSE),F5260)","v":"Avoir propre foncier moyen selon la province"},{"$f":"IFERROR(VLOOKUP(G5260,Translation!$A:$C,3,FALSE),G5260)","v":"6.5"},{"$f":"IFERROR(VLOOKUP(H5260,Translation!$A:$C,3,FALSE),H5260)","v":"Terre-Neuve-et-Labrador"}]
[7,"T2 2018","PROPRIÉTAIRES-OCCUPANTS, À L’UNITÉ","Nouveau-Brunswick",6.0545812257536653,"Avoir propre foncier moyen selon la province","6.1","Nouveau-Brunswick",{"$f":"IFERROR(VLOOKUP(A5263,Translation!$A:$C,3,FALSE),A5263)","v":7},{"$f":"IFERROR(VLOOKUP(B5263,Translation!$A:$C,3,FALSE),B5263)","v":"T2 2018"},{"$f":"IFERROR(VLOOKUP(C5263,Translation!$A:$C,3,FALSE),C5263)","v":"PROPRIÉTAIRES-OCCUPANTS, À L’UNITÉ"},{"$f":"IFERROR(VLOOKUP(D5263,Translation!$A:$C,3,FALSE),D5263)","v":"Nouveau-Brunswick"},{"$f":"IFERROR(VLOOKUP(E5263,Translation!$A:$C,3,FALSE),E5263)","v":6.0545812257536653},{"$f":"IFERROR(VLOOKUP(F5263,Translation!$A:$C,3,FALSE),F5263)","v":"Avoir propre foncier moyen selon la province"},{"$f":"IFERROR(VLOOKUP(G5263,Translation!$A:$C,3,FALSE),G5263)","v":"6.1"},{"$f":"IFERROR(VLOOKUP(H5263,Translation!$A:$C,3,FALSE),H5263)","v":"Nouveau-Brunswick"}]
[7,"T2 2018","PROPRIÉTAIRES-OCCUPANTS, À L’UNITÉ","Ontario",8.8046567546790708,"Avoir propre foncier moyen selon la province","8.8","Ontario",{"$f":"IFERROR(VLOOKUP(A5265,Translation!$A:$C,3,FALSE),A5265)","v":7},{"$f":"IFERROR(VLOOKUP(B5265,Translation!$A:$C,3,FALSE),B5265)","v":"T2 2018"},{"$f":"IFERROR(VLOOKUP(C5265,Translation!$A:$C,3,FALSE),C5265)","v":"PROPRIÉTAIRES-OCCUPANTS, À L’UNITÉ"},{"$f":"IFERROR(VLOOKUP(D5265,Translation!$A:$C,3,FALSE),D5265)","v":"Ontario"},{"$f":"IFERROR(VLOOKUP(E5265,Translation!$A:$C,3,FALSE),E5265)","v":8.8046567546790708},{"$f":"IFERROR(VLOOKUP(F5265,Translation!$A:$C,3,FALSE),F5265)","v":"Avoir propre foncier moyen selon la province"},{"$f":"IFERROR(VLOOKUP(G5265,Translation!$A:$C,3,FALSE),G5265)","v":"8.8"},{"$f":"IFERROR(VLOOKUP(H5265,Translation!$A:$C,3,FALSE),H5265)","v":"Ontario"}]
[7,"T2 2018","PROPRIÉTAIRES-OCCUPANTS, À L’UNITÉ","Colombie-Britannique",8.7846397644161112,"Avoir propre foncier moyen selon la province","8.8","Colombie-Britannique",{"$f":"IFERROR(VLOOKUP(A5269,Translation!$A:$C,3,FALSE),A5269)","v":7},{"$f":"IFERROR(VLOOKUP(B5269,Translation!$A:$C,3,FALSE),B5269)","v":"T2 2018"},{"$f":"IFERROR(VLOOKUP(C5269,Translation!$A:$C,3,FALSE),C5269)","v":"PROPRIÉTAIRES-OCCUPANTS, À L’UNITÉ"},{"$f":"IFERROR(VLOOKUP(D5269,Translation!$A:$C,3,FALSE),D5269)","v":"Colombie-Britannique"},{"$f":"IFERROR(VLOOKUP(E5269,Translation!$A:$C,3,FALSE),E5269)","v":8.7846397644161112},{"$f":"IFERROR(VLOOKUP(F5269,Translation!$A:$C,3,FALSE),F5269)","v":"Avoir propre foncier moyen selon la province"},{"$f":"IFERROR(VLOOKUP(G5269,Translation!$A:$C,3,FALSE),G5269)","v":"8.8"},{"$f":"IFERROR(VLOOKUP(H5269,Translation!$A:$C,3,FALSE),H5269)","v":"Colombie-Britannique"}]
[7,"T2 2018","PROPRIÉTAIRES-OCCUPANTS, À L’UNITÉ","Territoires",8.55262943952836,"Avoir propre foncier moyen selon la province","8.6","Territoires",{"$f":"IFERROR(VLOOKUP(A5270,Translation!$A:$C,3,FALSE),A5270)","v":7},{"$f":"IFERROR(VLOOKUP(B5270,Translation!$A:$C,3,FALSE),B5270)","v":"T2 2018"},{"$f":"IFERROR(VLOOKUP(C5270,Translation!$A:$C,3,FALSE),C5270)","v":"PROPRIÉTAIRES-OCCUPANTS, À L’UNITÉ"},{"$f":"IFERROR(VLOOKUP(D5270,Translation!$A:$C,3,FALSE),D5270)","v":"Territoires"},{"$f":"IFERROR(VLOOKUP(E5270,Translation!$A:$C,3,FALSE),E5270)","v":8.55262943952836},{"$f":"IFERROR(VLOOKUP(F5270,Translation!$A:$C,3,FALSE),F5270)","v":"Avoir propre foncier moyen selon la province"},{"$f":"IFERROR(VLOOKUP(G5270,Translation!$A:$C,3,FALSE),G5270)","v":"8.6"},{"$f":"IFERROR(VLOOKUP(H5270,Translation!$A:$C,3,FALSE),H5270)","v":"Territoires"}]
[7,"T2 2018","ASSURANCE DE PORTEFEUILLE","> 55 % <= 60 %",9.0507844067715553,"Prêts hypothécaires assurés au cours de la période selon le rapport prêt-valeur (RPV) établi d’après la valeur initiale de la propriété (%)","9.1"," > 55 % <= 60 %",{"$f":"IFERROR(VLOOKUP(A5273,Translation!$A:$C,3,FALSE),A5273)","v":7},{"$f":"IFERROR(VLOOKUP(B5273,Translation!$A:$C,3,FALSE),B5273)","v":"T2 2018"},{"$f":"IFERROR(VLOOKUP(C5273,Translation!$A:$C,3,FALSE),C5273)","v":"ASSURANCE DE PORTEFEUILLE"},{"$f":"IFERROR(VLOOKUP(D5273,Translation!$A:$C,3,FALSE),D5273)","v":"> 55 % <= 60 %"},{"$f":"IFERROR(VLOOKUP(E5273,Translation!$A:$C,3,FALSE),E5273)","v":9.0507844067715553},{"$f":"IFERROR(VLOOKUP(F5273,Translation!$A:$C,3,FALSE),F5273)","v":"Prêts hypothécaires assurés au cours de la période selon le rapport prêt-valeur (RPV) établi d’après la valeur initiale de la propriété (%)"},{"$f":"IFERROR(VLOOKUP(G5273,Translation!$A:$C,3,FALSE),G5273)","v":"9.1"},{"$f":"IFERROR(VLOOKUP(H5273,Translation!$A:$C,3,FALSE),H5273)","v":" > 55 % <= 60 %"}]
[7,"T2 2018","ASSURANCE DE PORTEFEUILLE","> 60 % <= 65 %",13.399279374998169,"Prêts hypothécaires assurés au cours de la période selon le rapport prêt-valeur (RPV) établi d’après la valeur initiale de la propriété (%)","13.4"," > 60 % <= 65 %",{"$f":"IFERROR(VLOOKUP(A5274,Translation!$A:$C,3,FALSE),A5274)","v":7},{"$f":"IFERROR(VLOOKUP(B5274,Translation!$A:$C,3,FALSE),B5274)","v":"T2 2018"},{"$f":"IFERROR(VLOOKUP(C5274,Translation!$A:$C,3,FALSE),C5274)","v":"ASSURANCE DE PORTEFEUILLE"},{"$f":"IFERROR(VLOOKUP(D5274,Translation!$A:$C,3,FALSE),D5274)","v":"> 60 % <= 65 %"},{"$f":"IFERROR(VLOOKUP(E5274,Translation!$A:$C,3,FALSE),E5274)","v":13.399279374998169},{"$f":"IFERROR(VLOOKUP(F5274,Translation!$A:$C,3,FALSE),F5274)","v":"Prêts hypothécaires assurés au cours de la période selon le rapport prêt-valeur (RPV) établi d’après la valeur initiale de la propriété (%)"},{"$f":"IFERROR(VLOOKUP(G5274,Translation!$A:$C,3,FALSE),G5274)","v":"13.4"},{"$f":"IFERROR(VLOOKUP(H5274,Translation!$A:$C,3,FALSE),H5274)","v":" > 60 % <= 65 %"}]
[7,"T2 2018","ASSURANCE DE PORTEFEUILLE","Rapport prêt-valeur moyen ",60.163006601607037,"Prêts hypothécaires assurés au cours de la période selon le rapport prêt-valeur (RPV) établi d’après la valeur initiale de la propriété (%)","60.2","Rapport prêt-valeur moyen ",{"$f":"IFERROR(VLOOKUP(A5278,Translation!$A:$C,3,FALSE),A5278)","v":7},{"$f":"IFERROR(VLOOKUP(B5278,Translation!$A:$C,3,FALSE),B5278)","v":"T2 2018"},{"$f":"IFERROR(VLOOKUP(C5278,Translation!$A:$C,3,FALSE),C5278)","v":"ASSURANCE DE PORTEFEUILLE"},{"$f":"IFERROR(VLOOKUP(D5278,Translation!$A:$C,3,FALSE),D5278)","v":"Rapport prêt-valeur moyen "},{"$f":"IFERROR(VLOOKUP(E5278,Translation!$A:$C,3,FALSE),E5278)","v":60.163006601607037},{"$f":"IFERROR(VLOOKUP(F5278,Translation!$A:$C,3,FALSE),F5278)","v":"Prêts hypothécaires assurés au cours de la période selon le rapport prêt-valeur (RPV) établi d’après la valeur initiale de la propriété (%)"},{"$f":"IFERROR(VLOOKUP(G5278,Translation!$A:$C,3,FALSE),G5278)","v":"60.2"},{"$f":"IFERROR(VLOOKUP(H5278,Translation!$A:$C,3,FALSE),H5278)","v":"Rapport prêt-valeur moyen "}]
[7,"T2 2018","ASSURANCE DE PORTEFEUILLE","Terre-Neuve-et-Labrador",37.940874514977779,"Avoir propre foncier moyen selon la province","37.9","Terre-Neuve-et-Labrador",{"$f":"IFERROR(VLOOKUP(A5280,Translation!$A:$C,3,FALSE),A5280)","v":7},{"$f":"IFERROR(VLOOKUP(B5280,Translation!$A:$C,3,FALSE),B5280)","v":"T2 2018"},{"$f":"IFERROR(VLOOKUP(C5280,Translation!$A:$C,3,FALSE),C5280)","v":"ASSURANCE DE PORTEFEUILLE"},{"$f":"IFERROR(VLOOKUP(D5280,Translation!$A:$C,3,FALSE),D5280)","v":"Terre-Neuve-et-Labrador"},{"$f":"IFERROR(VLOOKUP(E5280,Translation!$A:$C,3,FALSE),E5280)","v":37.940874514977779},{"$f":"IFERROR(VLOOKUP(F5280,Translation!$A:$C,3,FALSE),F5280)","v":"Avoir propre foncier moyen selon la province"},{"$f":"IFERROR(VLOOKUP(G5280,Translation!$A:$C,3,FALSE),G5280)","v":"37.9"},{"$f":"IFERROR(VLOOKUP(H5280,Translation!$A:$C,3,FALSE),H5280)","v":"Terre-Neuve-et-Labrador"}]
[7,"T2 2018","ASSURANCE DE PORTEFEUILLE","Nouveau-Brunswick",25.732357550252196,"Avoir propre foncier moyen selon la province","25.7","Nouveau-Brunswick",{"$f":"IFERROR(VLOOKUP(A5283,Translation!$A:$C,3,FALSE),A5283)","v":7},{"$f":"IFERROR(VLOOKUP(B5283,Translation!$A:$C,3,FALSE),B5283)","v":"T2 2018"},{"$f":"IFERROR(VLOOKUP(C5283,Translation!$A:$C,3,FALSE),C5283)","v":"ASSURANCE DE PORTEFEUILLE"},{"$f":"IFERROR(VLOOKUP(D5283,Translation!$A:$C,3,FALSE),D5283)","v":"Nouveau-Brunswick"},{"$f":"IFERROR(VLOOKUP(E5283,Translation!$A:$C,3,FALSE),E5283)","v":25.732357550252196},{"$f":"IFERROR(VLOOKUP(F5283,Translation!$A:$C,3,FALSE),F5283)","v":"Avoir propre foncier moyen selon la province"},{"$f":"IFERROR(VLOOKUP(G5283,Translation!$A:$C,3,FALSE),G5283)","v":"25.7"},{"$f":"IFERROR(VLOOKUP(H5283,Translation!$A:$C,3,FALSE),H5283)","v":"Nouveau-Brunswick"}]
[7,"T2 2018","ASSURANCE DE PORTEFEUILLE","Québec",38.774853353213601,"Avoir propre foncier moyen selon la province","38.8","Québec",{"$f":"IFERROR(VLOOKUP(A5284,Translation!$A:$C,3,FALSE),A5284)","v":7},{"$f":"IFERROR(VLOOKUP(B5284,Translation!$A:$C,3,FALSE),B5284)","v":"T2 2018"},{"$f":"IFERROR(VLOOKUP(C5284,Translation!$A:$C,3,FALSE),C5284)","v":"ASSURANCE DE PORTEFEUILLE"},{"$f":"IFERROR(VLOOKUP(D5284,Translation!$A:$C,3,FALSE),D5284)","v":"Québec"},{"$f":"IFERROR(VLOOKUP(E5284,Translation!$A:$C,3,FALSE),E5284)","v":38.774853353213601},{"$f":"IFERROR(VLOOKUP(F5284,Translation!$A:$C,3,FALSE),F5284)","v":"Avoir propre foncier moyen selon la province"},{"$f":"IFERROR(VLOOKUP(G5284,Translation!$A:$C,3,FALSE),G5284)","v":"38.8"},{"$f":"IFERROR(VLOOKUP(H5284,Translation!$A:$C,3,FALSE),H5284)","v":"Québec"}]
[7,"T2 2018","ASSURANCE DE PORTEFEUILLE","Alberta",39.33103406449397,"Avoir propre foncier moyen selon la province","39.3","Alberta",{"$f":"IFERROR(VLOOKUP(A5288,Translation!$A:$C,3,FALSE),A5288)","v":7},{"$f":"IFERROR(VLOOKUP(B5288,Translation!$A:$C,3,FALSE),B5288)","v":"T2 2018"},{"$f":"IFERROR(VLOOKUP(C5288,Translation!$A:$C,3,FALSE),C5288)","v":"ASSURANCE DE PORTEFEUILLE"},{"$f":"IFERROR(VLOOKUP(D5288,Translation!$A:$C,3,FALSE),D5288)","v":"Alberta"},{"$f":"IFERROR(VLOOKUP(E5288,Translation!$A:$C,3,FALSE),E5288)","v":39.33103406449397},{"$f":"IFERROR(VLOOKUP(F5288,Translation!$A:$C,3,FALSE),F5288)","v":"Avoir propre foncier moyen selon la province"},{"$f":"IFERROR(VLOOKUP(G5288,Translation!$A:$C,3,FALSE),G5288)","v":"39.3"},{"$f":"IFERROR(VLOOKUP(H5288,Translation!$A:$C,3,FALSE),H5288)","v":"Alberta"}]
[7,"T2 2018","ASSURANCE DE PORTEFEUILLE","Colombie-Britannique",44.8325826987748,"Avoir propre foncier moyen selon la province","44.8","Colombie-Britannique",{"$f":"IFERROR(VLOOKUP(A5289,Translation!$A:$C,3,FALSE),A5289)","v":7},{"$f":"IFERROR(VLOOKUP(B5289,Translation!$A:$C,3,FALSE),B5289)","v":"T2 2018"},{"$f":"IFERROR(VLOOKUP(C5289,Translation!$A:$C,3,FALSE),C5289)","v":"ASSURANCE DE PORTEFEUILLE"},{"$f":"IFERROR(VLOOKUP(D5289,Translation!$A:$C,3,FALSE),D5289)","v":"Colombie-Britannique"},{"$f":"IFERROR(VLOOKUP(E5289,Translation!$A:$C,3,FALSE),E5289)","v":44.8325826987748},{"$f":"IFERROR(VLOOKUP(F5289,Translation!$A:$C,3,FALSE),F5289)","v":"Avoir propre foncier moyen selon la province"},{"$f":"IFERROR(VLOOKUP(G5289,Translation!$A:$C,3,FALSE),G5289)","v":"44.8"},{"$f":"IFERROR(VLOOKUP(H5289,Translation!$A:$C,3,FALSE),H5289)","v":"Colombie-Britannique"}]
[27,"T2 2018","IMMEUBLES COLLECTIFS RÉSIDENTIELS","> 50 % <= 55 %",0.64601772589023221,"Prêts hypothécaires assurés au cours de la période selon le rapport prêt-valeur (RPV) établi d’après la valeur initiale de la propriété (%)","0.6"," > 50 % <= 55 %",{"$f":"IFERROR(VLOOKUP(A5291,Translation!$A:$C,3,FALSE),A5291)","v":27},{"$f":"IFERROR(VLOOKUP(B5291,Translation!$A:$C,3,FALSE),B5291)","v":"T2 2018"},{"$f":"IFERROR(VLOOKUP(C5291,Translation!$A:$C,3,FALSE),C5291)","v":"IMMEUBLES COLLECTIFS RÉSIDENTIELS"},{"$f":"IFERROR(VLOOKUP(D5291,Translation!$A:$C,3,FALSE),D5291)","v":"> 50 % <= 55 %"},{"$f":"IFERROR(VLOOKUP(E5291,Translation!$A:$C,3,FALSE),E5291)","v":0.64601772589023221},{"$f":"IFERROR(VLOOKUP(F5291,Translation!$A:$C,3,FALSE),F5291)","v":"Prêts hypothécaires assurés au cours de la période selon le rapport prêt-valeur (RPV) établi d’après la valeur initiale de la propriété (%)"},{"$f":"IFERROR(VLOOKUP(G5291,Translation!$A:$C,3,FALSE),G5291)","v":"0.6"},{"$f":"IFERROR(VLOOKUP(H5291,Translation!$A:$C,3,FALSE),H5291)","v":" > 50 % <= 55 %"}]
[27,"T2 2018","IMMEUBLES COLLECTIFS RÉSIDENTIELS","> 65 % <= 70 %",5.934891871400878,"Prêts hypothécaires assurés au cours de la période selon le rapport prêt-valeur (RPV) établi d’après la valeur initiale de la propriété (%)","5.9"," > 65 % <= 70 %",{"$f":"IFERROR(VLOOKUP(A5294,Translation!$A:$C,3,FALSE),A5294)","v":27},{"$f":"IFERROR(VLOOKUP(B5294,Translation!$A:$C,3,FALSE),B5294)","v":"T2 2018"},{"$f":"IFERROR(VLOOKUP(C5294,Translation!$A:$C,3,FALSE),C5294)","v":"IMMEUBLES COLLECTIFS RÉSIDENTIELS"},{"$f":"IFERROR(VLOOKUP(D5294,Translation!$A:$C,3,FALSE),D5294)","v":"> 65 % <= 70 %"},{"$f":"IFERROR(VLOOKUP(E5294,Translation!$A:$C,3,FALSE),E5294)","v":5.934891871400878},{"$f":"IFERROR(VLOOKUP(F5294,Translation!$A:$C,3,FALSE),F5294)","v":"Prêts hypothécaires assurés au cours de la période selon le rapport prêt-valeur (RPV) établi d’après la valeur initiale de la propriété (%)"},{"$f":"IFERROR(VLOOKUP(G5294,Translation!$A:$C,3,FALSE),G5294)","v":"5.9"},{"$f":"IFERROR(VLOOKUP(H5294,Translation!$A:$C,3,FALSE),H5294)","v":" > 65 % <= 70 %"}]
[27,"T2 2018","IMMEUBLES COLLECTIFS RÉSIDENTIELS","> 80 % <= 85 %",30.62434739282034,"Prêts hypothécaires assurés au cours de la période selon le rapport prêt-valeur (RPV) établi d’après la valeur initiale de la propriété (%)","30.6"," > 80 % <= 85 %",{"$f":"IFERROR(VLOOKUP(A5297,Translation!$A:$C,3,FALSE),A5297)","v":27},{"$f":"IFERROR(VLOOKUP(B5297,Translation!$A:$C,3,FALSE),B5297)","v":"T2 2018"},{"$f":"IFERROR(VLOOKUP(C5297,Translation!$A:$C,3,FALSE),C5297)","v":"IMMEUBLES COLLECTIFS RÉSIDENTIELS"},{"$f":"IFERROR(VLOOKUP(D5297,Translation!$A:$C,3,FALSE),D5297)","v":"> 80 % <= 85 %"},{"$f":"IFERROR(VLOOKUP(E5297,Translation!$A:$C,3,FALSE),E5297)","v":30.62434739282034},{"$f":"IFERROR(VLOOKUP(F5297,Translation!$A:$C,3,FALSE),F5297)","v":"Prêts hypothécaires assurés au cours de la période selon le rapport prêt-valeur (RPV) établi d’après la valeur initiale de la propriété (%)"},{"$f":"IFERROR(VLOOKUP(G5297,Translation!$A:$C,3,FALSE),G5297)","v":"30.6"},{"$f":"IFERROR(VLOOKUP(H5297,Translation!$A:$C,3,FALSE),H5297)","v":" > 80 % <= 85 %"}]
[27,"T2 2018","IMMEUBLES COLLECTIFS RÉSIDENTIELS","Rapport prêt-valeur moyen ",74.271814933838755,"Prêts hypothécaires assurés au cours de la période selon le rapport prêt-valeur (RPV) établi d’après la valeur initiale de la propriété (%)","74.3","Rapport prêt-valeur moyen ",{"$f":"IFERROR(VLOOKUP(A5299,Translation!$A:$C,3,FALSE),A5299)","v":27},{"$f":"IFERROR(VLOOKUP(B5299,Translation!$A:$C,3,FALSE),B5299)","v":"T2 2018"},{"$f":"IFERROR(VLOOKUP(C5299,Translation!$A:$C,3,FALSE),C5299)","v":"IMMEUBLES COLLECTIFS RÉSIDENTIELS"},{"$f":"IFERROR(VLOOKUP(D5299,Translation!$A:$C,3,FALSE),D5299)","v":"Rapport prêt-valeur moyen "},{"$f":"IFERROR(VLOOKUP(E5299,Translation!$A:$C,3,FALSE),E5299)","v":74.271814933838755},{"$f":"IFERROR(VLOOKUP(F5299,Translation!$A:$C,3,FALSE),F5299)","v":"Prêts hypothécaires assurés au cours de la période selon le rapport prêt-valeur (RPV) établi d’après la valeur initiale de la propriété (%)"},{"$f":"IFERROR(VLOOKUP(G5299,Translation!$A:$C,3,FALSE),G5299)","v":"74.3"},{"$f":"IFERROR(VLOOKUP(H5299,Translation!$A:$C,3,FALSE),H5299)","v":"Rapport prêt-valeur moyen "}]
[27,"T2 2018","IMMEUBLES COLLECTIFS RÉSIDENTIELS","Nouvelle-Écosse",23.96284828941528,"Avoir propre foncier moyen selon la province","24.0","Nouvelle-Écosse",{"$f":"IFERROR(VLOOKUP(A5302,Translation!$A:$C,3,FALSE),A5302)","v":27},{"$f":"IFERROR(VLOOKUP(B5302,Translation!$A:$C,3,FALSE),B5302)","v":"T2 2018"},{"$f":"IFERROR(VLOOKUP(C5302,Translation!$A:$C,3,FALSE),C5302)","v":"IMMEUBLES COLLECTIFS RÉSIDENTIELS"},{"$f":"IFERROR(VLOOKUP(D5302,Translation!$A:$C,3,FALSE),D5302)","v":"Nouvelle-Écosse"},{"$f":"IFERROR(VLOOKUP(E5302,Translation!$A:$C,3,FALSE),E5302)","v":23.96284828941528},{"$f":"IFERROR(VLOOKUP(F5302,Translation!$A:$C,3,FALSE),F5302)","v":"Avoir propre foncier moyen selon la province"},{"$f":"IFERROR(VLOOKUP(G5302,Translation!$A:$C,3,FALSE),G5302)","v":"24.0"},{"$f":"IFERROR(VLOOKUP(H5302,Translation!$A:$C,3,FALSE),H5302)","v":"Nouvelle-Écosse"}]
[27,"T2 2018","IMMEUBLES COLLECTIFS RÉSIDENTIELS","Québec",20.930449181641336,"Avoir propre foncier moyen selon la province","20.9","Québec",{"$f":"IFERROR(VLOOKUP(A5304,Translation!$A:$C,3,FALSE),A5304)","v":27},{"$f":"IFERROR(VLOOKUP(B5304,Translation!$A:$C,3,FALSE),B5304)","v":"T2 2018"},{"$f":"IFERROR(VLOOKUP(C5304,Translation!$A:$C,3,FALSE),C5304)","v":"IMMEUBLES COLLECTIFS RÉSIDENTIELS"},{"$f":"IFERROR(VLOOKUP(D5304,Translation!$A:$C,3,FALSE),D5304)","v":"Québec"},{"$f":"IFERROR(VLOOKUP(E5304,Translation!$A:$C,3,FALSE),E5304)","v":20.930449181641336},{"$f":"IFERROR(VLOOKUP(F5304,Translation!$A:$C,3,FALSE),F5304)","v":"Avoir propre foncier moyen selon la province"},{"$f":"IFERROR(VLOOKUP(G5304,Translation!$A:$C,3,FALSE),G5304)","v":"20.9"},{"$f":"IFERROR(VLOOKUP(H5304,Translation!$A:$C,3,FALSE),H5304)","v":"Québec"}]
[27,"T2 2018","IMMEUBLES COLLECTIFS RÉSIDENTIELS","Saskatchewan",20.277246924984645,"Avoir propre foncier moyen selon la province","20.3","Saskatchewan",{"$f":"IFERROR(VLOOKUP(A5307,Translation!$A:$C,3,FALSE),A5307)","v":27},{"$f":"IFERROR(VLOOKUP(B5307,Translation!$A:$C,3,FALSE),B5307)","v":"T2 2018"},{"$f":"IFERROR(VLOOKUP(C5307,Translation!$A:$C,3,FALSE),C5307)","v":"IMMEUBLES COLLECTIFS RÉSIDENTIELS"},{"$f":"IFERROR(VLOOKUP(D5307,Translation!$A:$C,3,FALSE),D5307)","v":"Saskatchewan"},{"$f":"IFERROR(VLOOKUP(E5307,Translation!$A:$C,3,FALSE),E5307)","v":20.277246924984645},{"$f":"IFERROR(VLOOKUP(F5307,Translation!$A:$C,3,FALSE),F5307)","v":"Avoir propre foncier moyen selon la province"},{"$f":"IFERROR(VLOOKUP(G5307,Translation!$A:$C,3,FALSE),G5307)","v":"20.3"},{"$f":"IFERROR(VLOOKUP(H5307,Translation!$A:$C,3,FALSE),H5307)","v":"Saskatchewan"}]
[27,"T2 2018","IMMEUBLES COLLECTIFS RÉSIDENTIELS","Alberta",22.349449024310712,"Avoir propre foncier moyen selon la province","22.3","Alberta",{"$f":"IFERROR(VLOOKUP(A5308,Translation!$A:$C,3,FALSE),A5308)","v":27},{"$f":"IFERROR(VLOOKUP(B5308,Translation!$A:$C,3,FALSE),B5308)","v":"T2 2018"},{"$f":"IFERROR(VLOOKUP(C5308,Translation!$A:$C,3,FALSE),C5308)","v":"IMMEUBLES COLLECTIFS RÉSIDENTIELS"},{"$f":"IFERROR(VLOOKUP(D5308,Translation!$A:$C,3,FALSE),D5308)","v":"Alberta"},{"$f":"IFERROR(VLOOKUP(E5308,Translation!$A:$C,3,FALSE),E5308)","v":22.349449024310712},{"$f":"IFERROR(VLOOKUP(F5308,Translation!$A:$C,3,FALSE),F5308)","v":"Avoir propre foncier moyen selon la province"},{"$f":"IFERROR(VLOOKUP(G5308,Translation!$A:$C,3,FALSE),G5308)","v":"22.3"},{"$f":"IFERROR(VLOOKUP(H5308,Translation!$A:$C,3,FALSE),H5308)","v":"Alberta"}]
[7,"T1 2017","PROPRIÉTAIRES-OCCUPANTS, À L’UNITÉ","<= 50 %",0.12829559926201839,"Prêts hypothécaires assurés au cours de la période selon le rapport prêt-valeur (RPV) établi d’après la valeur initiale de la propriété (%)","0.1"," <= 50 %",{"$f":"IFERROR(VLOOKUP(A5310,Translation!$A:$C,3,FALSE),A5310)","v":7},{"$f":"IFERROR(VLOOKUP(B5310,Translation!$A:$C,3,FALSE),B5310)","v":"T1 2017"},{"$f":"IFERROR(VLOOKUP(C5310,Translation!$A:$C,3,FALSE),C5310)","v":"PROPRIÉTAIRES-OCCUPANTS, À L’UNITÉ"},{"$f":"IFERROR(VLOOKUP(D5310,Translation!$A:$C,3,FALSE),D5310)","v":"<= 50 %"},{"$f":"IFERROR(VLOOKUP(E5310,Translation!$A:$C,3,FALSE),E5310)","v":0.12829559926201839},{"$f":"IFERROR(VLOOKUP(F5310,Translation!$A:$C,3,FALSE),F5310)","v":"Prêts hypothécaires assurés au cours de la période selon le rapport prêt-valeur (RPV) établi d’après la valeur initiale de la propriété (%)"},{"$f":"IFERROR(VLOOKUP(G5310,Translation!$A:$C,3,FALSE),G5310)","v":"0.1"},{"$f":"IFERROR(VLOOKUP(H5310,Translation!$A:$C,3,FALSE),H5310)","v":" <= 50 %"}]
[7,"T2 2017","PROPRIÉTAIRES-OCCUPANTS, À L’UNITÉ","<= 50 %",0.12429741863741917,"Prêts hypothécaires assurés au cours de la période selon le rapport prêt-valeur (RPV) établi d’après la valeur initiale de la propriété (%)","0.1"," <= 50 %",{"$f":"IFERROR(VLOOKUP(A5313,Translation!$A:$C,3,FALSE),A5313)","v":7},{"$f":"IFERROR(VLOOKUP(B5313,Translation!$A:$C,3,FALSE),B5313)","v":"T2 2017"},{"$f":"IFERROR(VLOOKUP(C5313,Translation!$A:$C,3,FALSE),C5313)","v":"PROPRIÉTAIRES-OCCUPANTS, À L’UNITÉ"},{"$f":"IFERROR(VLOOKUP(D5313,Translation!$A:$C,3,FALSE),D5313)","v":"<= 50 %"},{"$f":"IFERROR(VLOOKUP(E5313,Translation!$A:$C,3,FALSE),E5313)","v":0.12429741863741917},{"$f":"IFERROR(VLOOKUP(F5313,Translation!$A:$C,3,FALSE),F5313)","v":"Prêts hypothécaires assurés au cours de la période selon le rapport prêt-valeur (RPV) établi d’après la valeur initiale de la propriété (%)"},{"$f":"IFERROR(VLOOKUP(G5313,Translation!$A:$C,3,FALSE),G5313)","v":"0.1"},{"$f":"IFERROR(VLOOKUP(H5313,Translation!$A:$C,3,FALSE),H5313)","v":" <= 50 %"}]
[7,"T3 2017","PROPRIÉTAIRES-OCCUPANTS, À L’UNITÉ","<= 50 %",0.13235314809807816,"Prêts hypothécaires assurés au cours de la période selon le rapport prêt-valeur (RPV) établi d’après la valeur initiale de la propriété (%)","0.1"," <= 50 %",{"$f":"IFERROR(VLOOKUP(A5315,Translation!$A:$C,3,FALSE),A5315)","v":7},{"$f":"IFERROR(VLOOKUP(B5315,Translation!$A:$C,3,FALSE),B5315)","v":"T3 2017"},{"$f":"IFERROR(VLOOKUP(C5315,Translation!$A:$C,3,FALSE),C5315)","v":"PROPRIÉTAIRES-OCCUPANTS, À L’UNITÉ"},{"$f":"IFERROR(VLOOKUP(D5315,Translation!$A:$C,3,FALSE),D5315)","v":"<= 50 %"},{"$f":"IFERROR(VLOOKUP(E5315,Translation!$A:$C,3,FALSE),E5315)","v":0.13235314809807816},{"$f":"IFERROR(VLOOKUP(F5315,Translation!$A:$C,3,FALSE),F5315)","v":"Prêts hypothécaires assurés au cours de la période selon le rapport prêt-valeur (RPV) établi d’après la valeur initiale de la propriété (%)"},{"$f":"IFERROR(VLOOKUP(G5315,Translation!$A:$C,3,FALSE),G5315)","v":"0.1"},{"$f":"IFERROR(VLOOKUP(H5315,Translation!$A:$C,3,FALSE),H5315)","v":" <= 50 %"}]
[7,"T1 2017","PROPRIÉTAIRES-OCCUPANTS, À L’UNITÉ","> 50 % <= 55 %",4.990206868036532E-2,"Prêts hypothécaires assurés au cours de la période selon le rapport prêt-valeur (RPV) établi d’après la valeur initiale de la propriété (%)","0.0"," > 50 % <= 55 %",{"$f":"IFERROR(VLOOKUP(A5318,Translation!$A:$C,3,FALSE),A5318)","v":7},{"$f":"IFERROR(VLOOKUP(B5318,Translation!$A:$C,3,FALSE),B5318)","v":"T1 2017"},{"$f":"IFERROR(VLOOKUP(C5318,Translation!$A:$C,3,FALSE),C5318)","v":"PROPRIÉTAIRES-OCCUPANTS, À L’UNITÉ"},{"$f":"IFERROR(VLOOKUP(D5318,Translation!$A:$C,3,FALSE),D5318)","v":"> 50 % <= 55 %"},{"$f":"IFERROR(VLOOKUP(E5318,Translation!$A:$C,3,FALSE),E5318)","v":4.990206868036532E-2},{"$f":"IFERROR(VLOOKUP(F5318,Translation!$A:$C,3,FALSE),F5318)","v":"Prêts hypothécaires assurés au cours de la période selon le rapport prêt-valeur (RPV) établi d’après la valeur initiale de la propriété (%)"},{"$f":"IFERROR(VLOOKUP(G5318,Translation!$A:$C,3,FALSE),G5318)","v":"0.0"},{"$f":"IFERROR(VLOOKUP(H5318,Translation!$A:$C,3,FALSE),H5318)","v":" > 50 % <= 55 %"}]
[7,"T2 2017","PROPRIÉTAIRES-OCCUPANTS, À L’UNITÉ","> 50 % <= 55 %",5.6040300555495838E-2,"Prêts hypothécaires assurés au cours de la période selon le rapport prêt-valeur (RPV) établi d’après la valeur initiale de la propriété (%)","0.1"," > 50 % <= 55 %",{"$f":"IFERROR(VLOOKUP(A5321,Translation!$A:$C,3,FALSE),A5321)","v":7},{"$f":"IFERROR(VLOOKUP(B5321,Translation!$A:$C,3,FALSE),B5321)","v":"T2 2017"},{"$f":"IFERROR(VLOOKUP(C5321,Translation!$A:$C,3,FALSE),C5321)","v":"PROPRIÉTAIRES-OCCUPANTS, À L’UNITÉ"},{"$f":"IFERROR(VLOOKUP(D5321,Translation!$A:$C,3,FALSE),D5321)","v":"> 50 % <= 55 %"},{"$f":"IFERROR(VLOOKUP(E5321,Translation!$A:$C,3,FALSE),E5321)","v":5.6040300555495838E-2},{"$f":"IFERROR(VLOOKUP(F5321,Translation!$A:$C,3,FALSE),F5321)","v":"Prêts hypothécaires assurés au cours de la période selon le rapport prêt-valeur (RPV) établi d’après la valeur initiale de la propriété (%)"},{"$f":"IFERROR(VLOOKUP(G5321,Translation!$A:$C,3,FALSE),G5321)","v":"0.1"},{"$f":"IFERROR(VLOOKUP(H5321,Translation!$A:$C,3,FALSE),H5321)","v":" > 50 % <= 55 %"}]
[7,"Q4 2016","PROPRIÉTAIRES-OCCUPANTS, À L’UNITÉ","> 50 % <= 55 %",7.6007329138457827E-2,"Prêts hypothécaires assurés au cours de la période selon le rapport prêt-valeur (RPV) établi d’après la valeur initiale de la propriété (%)","0.1"," > 50 % <= 55 %",{"$f":"IFERROR(VLOOKUP(A5324,Translation!$A:$C,3,FALSE),A5324)","v":7},{"$f":"IFERROR(VLOOKUP(B5324,Translation!$A:$C,3,FALSE),B5324)","v":"Q4 2016"},{"$f":"IFERROR(VLOOKUP(C5324,Translation!$A:$C,3,FALSE),C5324)","v":"PROPRIÉTAIRES-OCCUPANTS, À L’UNITÉ"},{"$f":"IFERROR(VLOOKUP(D5324,Translation!$A:$C,3,FALSE),D5324)","v":"> 50 % <= 55 %"},{"$f":"IFERROR(VLOOKUP(E5324,Translation!$A:$C,3,FALSE),E5324)","v":7.6007329138457827E-2},{"$f":"IFERROR(VLOOKUP(F5324,Translation!$A:$C,3,FALSE),F5324)","v":"Prêts hypothécaires assurés au cours de la période selon le rapport prêt-valeur (RPV) établi d’après la valeur initiale de la propriété (%)"},{"$f":"IFERROR(VLOOKUP(G5324,Translation!$A:$C,3,FALSE),G5324)","v":"0.1"},{"$f":"IFERROR(VLOOKUP(H5324,Translation!$A:$C,3,FALSE),H5324)","v":" > 50 % <= 55 %"}]
[7,"T1 2017","PROPRIÉTAIRES-OCCUPANTS, À L’UNITÉ","> 55 % <= 60 %",7.1228226663798036E-2,"Prêts hypothécaires assurés au cours de la période selon le rapport prêt-valeur (RPV) établi d’après la valeur initiale de la propriété (%)","0.1"," > 55 % <= 60 %",{"$f":"IFERROR(VLOOKUP(A5326,Translation!$A:$C,3,FALSE),A5326)","v":7},{"$f":"IFERROR(VLOOKUP(B5326,Translation!$A:$C,3,FALSE),B5326)","v":"T1 2017"},{"$f":"IFERROR(VLOOKUP(C5326,Translation!$A:$C,3,FALSE),C5326)","v":"PROPRIÉTAIRES-OCCUPANTS, À L’UNITÉ"},{"$f":"IFERROR(VLOOKUP(D5326,Translation!$A:$C,3,FALSE),D5326)","v":"> 55 % <= 60 %"},{"$f":"IFERROR(VLOOKUP(E5326,Translation!$A:$C,3,FALSE),E5326)","v":7.1228226663798036E-2},{"$f":"IFERROR(VLOOKUP(F5326,Translation!$A:$C,3,FALSE),F5326)","v":"Prêts hypothécaires assurés au cours de la période selon le rapport prêt-valeur (RPV) établi d’après la valeur initiale de la propriété (%)"},{"$f":"IFERROR(VLOOKUP(G5326,Translation!$A:$C,3,FALSE),G5326)","v":"0.1"},{"$f":"IFERROR(VLOOKUP(H5326,Translation!$A:$C,3,FALSE),H5326)","v":" > 55 % <= 60 %"}]
[7,"T2 2017","PROPRIÉTAIRES-OCCUPANTS, À L’UNITÉ","> 55 % <= 60 %",5.8075837005491598E-2,"Prêts hypothécaires assurés au cours de la période selon le rapport prêt-valeur (RPV) établi d’après la valeur initiale de la propriété (%)","0.1"," > 55 % <= 60 %",{"$f":"IFERROR(VLOOKUP(A5329,Translation!$A:$C,3,FALSE),A5329)","v":7},{"$f":"IFERROR(VLOOKUP(B5329,Translation!$A:$C,3,FALSE),B5329)","v":"T2 2017"},{"$f":"IFERROR(VLOOKUP(C5329,Translation!$A:$C,3,FALSE),C5329)","v":"PROPRIÉTAIRES-OCCUPANTS, À L’UNITÉ"},{"$f":"IFERROR(VLOOKUP(D5329,Translation!$A:$C,3,FALSE),D5329)","v":"> 55 % <= 60 %"},{"$f":"IFERROR(VLOOKUP(E5329,Translation!$A:$C,3,FALSE),E5329)","v":5.8075837005491598E-2},{"$f":"IFERROR(VLOOKUP(F5329,Translation!$A:$C,3,FALSE),F5329)","v":"Prêts hypothécaires assurés au cours de la période selon le rapport prêt-valeur (RPV) établi d’après la valeur initiale de la propriété (%)"},{"$f":"IFERROR(VLOOKUP(G5329,Translation!$A:$C,3,FALSE),G5329)","v":"0.1"},{"$f":"IFERROR(VLOOKUP(H5329,Translation!$A:$C,3,FALSE),H5329)","v":" > 55 % <= 60 %"}]
[7,"T3 2017","PROPRIÉTAIRES-OCCUPANTS, À L’UNITÉ","> 55 % <= 60 %",6.7843479010440105E-2,"Prêts hypothécaires assurés au cours de la période selon le rapport prêt-valeur (RPV) établi d’après la valeur initiale de la propriété (%)","0.1"," > 55 % <= 60 %",{"$f":"IFERROR(VLOOKUP(A5331,Translation!$A:$C,3,FALSE),A5331)","v":7},{"$f":"IFERROR(VLOOKUP(B5331,Translation!$A:$C,3,FALSE),B5331)","v":"T3 2017"},{"$f":"IFERROR(VLOOKUP(C5331,Translation!$A:$C,3,FALSE),C5331)","v":"PROPRIÉTAIRES-OCCUPANTS, À L’UNITÉ"},{"$f":"IFERROR(VLOOKUP(D5331,Translation!$A:$C,3,FALSE),D5331)","v":"> 55 % <= 60 %"},{"$f":"IFERROR(VLOOKUP(E5331,Translation!$A:$C,3,FALSE),E5331)","v":6.7843479010440105E-2},{"$f":"IFERROR(VLOOKUP(F5331,Translation!$A:$C,3,FALSE),F5331)","v":"Prêts hypothécaires assurés au cours de la période selon le rapport prêt-valeur (RPV) établi d’après la valeur initiale de la propriété (%)"},{"$f":"IFERROR(VLOOKUP(G5331,Translation!$A:$C,3,FALSE),G5331)","v":"0.1"},{"$f":"IFERROR(VLOOKUP(H5331,Translation!$A:$C,3,FALSE),H5331)","v":" > 55 % <= 60 %"}]
[7,"Q4 2016","PROPRIÉTAIRES-OCCUPANTS, À L’UNITÉ","> 55 % <= 60 %",0.12672164635545224,"Prêts hypothécaires assurés au cours de la période selon le rapport prêt-valeur (RPV) établi d’après la valeur initiale de la propriété (%)","0.1"," > 55 % <= 60 %",{"$f":"IFERROR(VLOOKUP(A5332,Translation!$A:$C,3,FALSE),A5332)","v":7},{"$f":"IFERROR(VLOOKUP(B5332,Translation!$A:$C,3,FALSE),B5332)","v":"Q4 2016"},{"$f":"IFERROR(VLOOKUP(C5332,Translation!$A:$C,3,FALSE),C5332)","v":"PROPRIÉTAIRES-OCCUPANTS, À L’UNITÉ"},{"$f":"IFERROR(VLOOKUP(D5332,Translation!$A:$C,3,FALSE),D5332)","v":"> 55 % <= 60 %"},{"$f":"IFERROR(VLOOKUP(E5332,Translation!$A:$C,3,FALSE),E5332)","v":0.12672164635545224},{"$f":"IFERROR(VLOOKUP(F5332,Translation!$A:$C,3,FALSE),F5332)","v":"Prêts hypothécaires assurés au cours de la période selon le rapport prêt-valeur (RPV) établi d’après la valeur initiale de la propriété (%)"},{"$f":"IFERROR(VLOOKUP(G5332,Translation!$A:$C,3,FALSE),G5332)","v":"0.1"},{"$f":"IFERROR(VLOOKUP(H5332,Translation!$A:$C,3,FALSE),H5332)","v":" > 55 % <= 60 %"}]
[7,"T1 2017","PROPRIÉTAIRES-OCCUPANTS, À L’UNITÉ","> 60 % <= 65 %",0.11520044967377439,"Prêts hypothécaires assurés au cours de la période selon le rapport prêt-valeur (RPV) établi d’après la valeur initiale de la propriété (%)","0.1"," > 60 % <= 65 %",{"$f":"IFERROR(VLOOKUP(A5334,Translation!$A:$C,3,FALSE),A5334)","v":7},{"$f":"IFERROR(VLOOKUP(B5334,Translation!$A:$C,3,FALSE),B5334)","v":"T1 2017"},{"$f":"IFERROR(VLOOKUP(C5334,Translation!$A:$C,3,FALSE),C5334)","v":"PROPRIÉTAIRES-OCCUPANTS, À L’UNITÉ"},{"$f":"IFERROR(VLOOKUP(D5334,Translation!$A:$C,3,FALSE),D5334)","v":"> 60 % <= 65 %"},{"$f":"IFERROR(VLOOKUP(E5334,Translation!$A:$C,3,FALSE),E5334)","v":0.11520044967377439},{"$f":"IFERROR(VLOOKUP(F5334,Translation!$A:$C,3,FALSE),F5334)","v":"Prêts hypothécaires assurés au cours de la période selon le rapport prêt-valeur (RPV) établi d’après la valeur initiale de la propriété (%)"},{"$f":"IFERROR(VLOOKUP(G5334,Translation!$A:$C,3,FALSE),G5334)","v":"0.1"},{"$f":"IFERROR(VLOOKUP(H5334,Translation!$A:$C,3,FALSE),H5334)","v":" > 60 % <= 65 %"}]
[7,"T2 2017","PROPRIÉTAIRES-OCCUPANTS, À L’UNITÉ","> 60 % <= 65 %",0.10053735390874687,"Prêts hypothécaires assurés au cours de la période selon le rapport prêt-valeur (RPV) établi d’après la valeur initiale de la propriété (%)","0.1"," > 60 % <= 65 %",{"$f":"IFERROR(VLOOKUP(A5337,Translation!$A:$C,3,FALSE),A5337)","v":7},{"$f":"IFERROR(VLOOKUP(B5337,Translation!$A:$C,3,FALSE),B5337)","v":"T2 2017"},{"$f":"IFERROR(VLOOKUP(C5337,Translation!$A:$C,3,FALSE),C5337)","v":"PROPRIÉTAIRES-OCCUPANTS, À L’UNITÉ"},{"$f":"IFERROR(VLOOKUP(D5337,Translation!$A:$C,3,FALSE),D5337)","v":"> 60 % <= 65 %"},{"$f":"IFERROR(VLOOKUP(E5337,Translation!$A:$C,3,FALSE),E5337)","v":0.10053735390874687},{"$f":"IFERROR(VLOOKUP(F5337,Translation!$A:$C,3,FALSE),F5337)","v":"Prêts hypothécaires assurés au cours de la période selon le rapport prêt-valeur (RPV) établi d’après la valeur initiale de la propriété (%)"},{"$f":"IFERROR(VLOOKUP(G5337,Translation!$A:$C,3,FALSE),G5337)","v":"0.1"},{"$f":"IFERROR(VLOOKUP(H5337,Translation!$A:$C,3,FALSE),H5337)","v":" > 60 % <= 65 %"}]
[7,"Q4 2016","PROPRIÉTAIRES-OCCUPANTS, À L’UNITÉ","> 60 % <= 65 %",0.19711968714748179,"Prêts hypothécaires assurés au cours de la période selon le rapport prêt-valeur (RPV) établi d’après la valeur initiale de la propriété (%)","0.2"," > 60 % <= 65 %",{"$f":"IFERROR(VLOOKUP(A5340,Translation!$A:$C,3,FALSE),A5340)","v":7},{"$f":"IFERROR(VLOOKUP(B5340,Translation!$A:$C,3,FALSE),B5340)","v":"Q4 2016"},{"$f":"IFERROR(VLOOKUP(C5340,Translation!$A:$C,3,FALSE),C5340)","v":"PROPRIÉTAIRES-OCCUPANTS, À L’UNITÉ"},{"$f":"IFERROR(VLOOKUP(D5340,Translation!$A:$C,3,FALSE),D5340)","v":"> 60 % <= 65 %"},{"$f":"IFERROR(VLOOKUP(E5340,Translation!$A:$C,3,FALSE),E5340)","v":0.19711968714748179},{"$f":"IFERROR(VLOOKUP(F5340,Translation!$A:$C,3,FALSE),F5340)","v":"Prêts hypothécaires assurés au cours de la période selon le rapport prêt-valeur (RPV) établi d’après la valeur initiale de la propriété (%)"},{"$f":"IFERROR(VLOOKUP(G5340,Translation!$A:$C,3,FALSE),G5340)","v":"0.2"},{"$f":"IFERROR(VLOOKUP(H5340,Translation!$A:$C,3,FALSE),H5340)","v":" > 60 % <= 65 %"}]
[7,"T1 2017","PROPRIÉTAIRES-OCCUPANTS, À L’UNITÉ","> 65 % <= 70 %",0.10932158750808312,"Prêts hypothécaires assurés au cours de la période selon le rapport prêt-valeur (RPV) établi d’après la valeur initiale de la propriété (%)","0.1"," > 65 % <= 70 %",{"$f":"IFERROR(VLOOKUP(A5342,Translation!$A:$C,3,FALSE),A5342)","v":7},{"$f":"IFERROR(VLOOKUP(B5342,Translation!$A:$C,3,FALSE),B5342)","v":"T1 2017"},{"$f":"IFERROR(VLOOKUP(C5342,Translation!$A:$C,3,FALSE),C5342)","v":"PROPRIÉTAIRES-OCCUPANTS, À L’UNITÉ"},{"$f":"IFERROR(VLOOKUP(D5342,Translation!$A:$C,3,FALSE),D5342)","v":"> 65 % <= 70 %"},{"$f":"IFERROR(VLOOKUP(E5342,Translation!$A:$C,3,FALSE),E5342)","v":0.10932158750808312},{"$f":"IFERROR(VLOOKUP(F5342,Translation!$A:$C,3,FALSE),F5342)","v":"Prêts hypothécaires assurés au cours de la période selon le rapport prêt-valeur (RPV) établi d’après la valeur initiale de la propriété (%)"},{"$f":"IFERROR(VLOOKUP(G5342,Translation!$A:$C,3,FALSE),G5342)","v":"0.1"},{"$f":"IFERROR(VLOOKUP(H5342,Translation!$A:$C,3,FALSE),H5342)","v":" > 65 % <= 70 %"}]
[7,"T2 2017","PROPRIÉTAIRES-OCCUPANTS, À L’UNITÉ","> 65 % <= 70 %",0.11305692756704797,"Prêts hypothécaires assurés au cours de la période selon le rapport prêt-valeur (RPV) établi d’après la valeur initiale de la propriété (%)","0.1"," > 65 % <= 70 %",{"$f":"IFERROR(VLOOKUP(A5345,Translation!$A:$C,3,FALSE),A5345)","v":7},{"$f":"IFERROR(VLOOKUP(B5345,Translation!$A:$C,3,FALSE),B5345)","v":"T2 2017"},{"$f":"IFERROR(VLOOKUP(C5345,Translation!$A:$C,3,FALSE),C5345)","v":"PROPRIÉTAIRES-OCCUPANTS, À L’UNITÉ"},{"$f":"IFERROR(VLOOKUP(D5345,Translation!$A:$C,3,FALSE),D5345)","v":"> 65 % <= 70 %"},{"$f":"IFERROR(VLOOKUP(E5345,Translation!$A:$C,3,FALSE),E5345)","v":0.11305692756704797},{"$f":"IFERROR(VLOOKUP(F5345,Translation!$A:$C,3,FALSE),F5345)","v":"Prêts hypothécaires assurés au cours de la période selon le rapport prêt-valeur (RPV) établi d’après la valeur initiale de la propriété (%)"},{"$f":"IFERROR(VLOOKUP(G5345,Translation!$A:$C,3,FALSE),G5345)","v":"0.1"},{"$f":"IFERROR(VLOOKUP(H5345,Translation!$A:$C,3,FALSE),H5345)","v":" > 65 % <= 70 %"}]
[7,"Q4 2016","PROPRIÉTAIRES-OCCUPANTS, À L’UNITÉ","> 65 % <= 70 %",0.17813578817585035,"Prêts hypothécaires assurés au cours de la période selon le rapport prêt-valeur (RPV) établi d’après la valeur initiale de la propriété (%)","0.2"," > 65 % <= 70 %",{"$f":"IFERROR(VLOOKUP(A5348,Translation!$A:$C,3,FALSE),A5348)","v":7},{"$f":"IFERROR(VLOOKUP(B5348,Translation!$A:$C,3,FALSE),B5348)","v":"Q4 2016"},{"$f":"IFERROR(VLOOKUP(C5348,Translation!$A:$C,3,FALSE),C5348)","v":"PROPRIÉTAIRES-OCCUPANTS, À L’UNITÉ"},{"$f":"IFERROR(VLOOKUP(D5348,Translation!$A:$C,3,FALSE),D5348)","v":"> 65 % <= 70 %"},{"$f":"IFERROR(VLOOKUP(E5348,Translation!$A:$C,3,FALSE),E5348)","v":0.17813578817585035},{"$f":"IFERROR(VLOOKUP(F5348,Translation!$A:$C,3,FALSE),F5348)","v":"Prêts hypothécaires assurés au cours de la période selon le rapport prêt-valeur (RPV) établi d’après la valeur initiale de la propriété (%)"},{"$f":"IFERROR(VLOOKUP(G5348,Translation!$A:$C,3,FALSE),G5348)","v":"0.2"},{"$f":"IFERROR(VLOOKUP(H5348,Translation!$A:$C,3,FALSE),H5348)","v":" > 65 % <= 70 %"}]
[7,"T1 2017","PROPRIÉTAIRES-OCCUPANTS, À L’UNITÉ","> 70 % <= 75 %",0.37059812892090965,"Prêts hypothécaires assurés au cours de la période selon le rapport prêt-valeur (RPV) établi d’après la valeur initiale de la propriété (%)","0.4"," > 70 % <= 75 %",{"$f":"IFERROR(VLOOKUP(A5350,Translation!$A:$C,3,FALSE),A5350)","v":7},{"$f":"IFERROR(VLOOKUP(B5350,Translation!$A:$C,3,FALSE),B5350)","v":"T1 2017"},{"$f":"IFERROR(VLOOKUP(C5350,Translation!$A:$C,3,FALSE),C5350)","v":"PROPRIÉTAIRES-OCCUPANTS, À L’UNITÉ"},{"$f":"IFERROR(VLOOKUP(D5350,Translation!$A:$C,3,FALSE),D5350)","v":"> 70 % <= 75 %"},{"$f":"IFERROR(VLOOKUP(E5350,Translation!$A:$C,3,FALSE),E5350)","v":0.37059812892090965},{"$f":"IFERROR(VLOOKUP(F5350,Translation!$A:$C,3,FALSE),F5350)","v":"Prêts hypothécaires assurés au cours de la période selon le rapport prêt-valeur (RPV) établi d’après la valeur initiale de la propriété (%)"},{"$f":"IFERROR(VLOOKUP(G5350,Translation!$A:$C,3,FALSE),G5350)","v":"0.4"},{"$f":"IFERROR(VLOOKUP(H5350,Translation!$A:$C,3,FALSE),H5350)","v":" > 70 % <= 75 %"}]
[7,"T1 2018","PROPRIÉTAIRES-OCCUPANTS, À L’UNITÉ","> 70 % <= 75 %",0.25940169946361352,"Prêts hypothécaires assurés au cours de la période selon le rapport prêt-valeur (RPV) établi d’après la valeur initiale de la propriété (%)","0.3"," > 70 % <= 75 %",{"$f":"IFERROR(VLOOKUP(A5351,Translation!$A:$C,3,FALSE),A5351)","v":7},{"$f":"IFERROR(VLOOKUP(B5351,Translation!$A:$C,3,FALSE),B5351)","v":"T1 2018"},{"$f":"IFERROR(VLOOKUP(C5351,Translation!$A:$C,3,FALSE),C5351)","v":"PROPRIÉTAIRES-OCCUPANTS, À L’UNITÉ"},{"$f":"IFERROR(VLOOKUP(D5351,Translation!$A:$C,3,FALSE),D5351)","v":"> 70 % <= 75 %"},{"$f":"IFERROR(VLOOKUP(E5351,Translation!$A:$C,3,FALSE),E5351)","v":0.25940169946361352},{"$f":"IFERROR(VLOOKUP(F5351,Translation!$A:$C,3,FALSE),F5351)","v":"Prêts hypothécaires assurés au cours de la période selon le rapport prêt-valeur (RPV) établi d’après la valeur initiale de la propriété (%)"},{"$f":"IFERROR(VLOOKUP(G5351,Translation!$A:$C,3,FALSE),G5351)","v":"0.3"},{"$f":"IFERROR(VLOOKUP(H5351,Translation!$A:$C,3,FALSE),H5351)","v":" > 70 % <= 75 %"}]
[7,"T3 2017","PROPRIÉTAIRES-OCCUPANTS, À L’UNITÉ","> 70 % <= 75 %",0.24683671869261797,"Prêts hypothécaires assurés au cours de la période selon le rapport prêt-valeur (RPV) établi d’après la valeur initiale de la propriété (%)","0.2"," > 70 % <= 75 %",{"$f":"IFERROR(VLOOKUP(A5355,Translation!$A:$C,3,FALSE),A5355)","v":7},{"$f":"IFERROR(VLOOKUP(B5355,Translation!$A:$C,3,FALSE),B5355)","v":"T3 2017"},{"$f":"IFERROR(VLOOKUP(C5355,Translation!$A:$C,3,FALSE),C5355)","v":"PROPRIÉTAIRES-OCCUPANTS, À L’UNITÉ"},{"$f":"IFERROR(VLOOKUP(D5355,Translation!$A:$C,3,FALSE),D5355)","v":"> 70 % <= 75 %"},{"$f":"IFERROR(VLOOKUP(E5355,Translation!$A:$C,3,FALSE),E5355)","v":0.24683671869261797},{"$f":"IFERROR(VLOOKUP(F5355,Translation!$A:$C,3,FALSE),F5355)","v":"Prêts hypothécaires assurés au cours de la période selon le rapport prêt-valeur (RPV) établi d’après la valeur initiale de la propriété (%)"},{"$f":"IFERROR(VLOOKUP(G5355,Translation!$A:$C,3,FALSE),G5355)","v":"0.2"},{"$f":"IFERROR(VLOOKUP(H5355,Translation!$A:$C,3,FALSE),H5355)","v":" > 70 % <= 75 %"}]
[7,"Q4 2016","PROPRIÉTAIRES-OCCUPANTS, À L’UNITÉ","> 70 % <= 75 %",0.50475978885257533,"Prêts hypothécaires assurés au cours de la période selon le rapport prêt-valeur (RPV) établi d’après la valeur initiale de la propriété (%)","0.5"," > 70 % <= 75 %",{"$f":"IFERROR(VLOOKUP(A5356,Translation!$A:$C,3,FALSE),A5356)","v":7},{"$f":"IFERROR(VLOOKUP(B5356,Translation!$A:$C,3,FALSE),B5356)","v":"Q4 2016"},{"$f":"IFERROR(VLOOKUP(C5356,Translation!$A:$C,3,FALSE),C5356)","v":"PROPRIÉTAIRES-OCCUPANTS, À L’UNITÉ"},{"$f":"IFERROR(VLOOKUP(D5356,Translation!$A:$C,3,FALSE),D5356)","v":"> 70 % <= 75 %"},{"$f":"IFERROR(VLOOKUP(E5356,Translation!$A:$C,3,FALSE),E5356)","v":0.50475978885257533},{"$f":"IFERROR(VLOOKUP(F5356,Translation!$A:$C,3,FALSE),F5356)","v":"Prêts hypothécaires assurés au cours de la période selon le rapport prêt-valeur (RPV) établi d’après la valeur initiale de la propriété (%)"},{"$f":"IFERROR(VLOOKUP(G5356,Translation!$A:$C,3,FALSE),G5356)","v":"0.5"},{"$f":"IFERROR(VLOOKUP(H5356,Translation!$A:$C,3,FALSE),H5356)","v":" > 70 % <= 75 %"}]
[7,"T1 2018","PROPRIÉTAIRES-OCCUPANTS, À L’UNITÉ","> 75 % <= 80 %",1.0167724236635507,"Prêts hypothécaires assurés au cours de la période selon le rapport prêt-valeur (RPV) établi d’après la valeur initiale de la propriété (%)","1.0"," > 75 % <= 80 %",{"$f":"IFERROR(VLOOKUP(A5359,Translation!$A:$C,3,FALSE),A5359)","v":7},{"$f":"IFERROR(VLOOKUP(B5359,Translation!$A:$C,3,FALSE),B5359)","v":"T1 2018"},{"$f":"IFERROR(VLOOKUP(C5359,Translation!$A:$C,3,FALSE),C5359)","v":"PROPRIÉTAIRES-OCCUPANTS, À L’UNITÉ"},{"$f":"IFERROR(VLOOKUP(D5359,Translation!$A:$C,3,FALSE),D5359)","v":"> 75 % <= 80 %"},{"$f":"IFERROR(VLOOKUP(E5359,Translation!$A:$C,3,FALSE),E5359)","v":1.0167724236635507},{"$f":"IFERROR(VLOOKUP(F5359,Translation!$A:$C,3,FALSE),F5359)","v":"Prêts hypothécaires assurés au cours de la période selon le rapport prêt-valeur (RPV) établi d’après la valeur initiale de la propriété (%)"},{"$f":"IFERROR(VLOOKUP(G5359,Translation!$A:$C,3,FALSE),G5359)","v":"1.0"},{"$f":"IFERROR(VLOOKUP(H5359,Translation!$A:$C,3,FALSE),H5359)","v":" > 75 % <= 80 %"}]
[7,"T2 2017","PROPRIÉTAIRES-OCCUPANTS, À L’UNITÉ","> 75 % <= 80 %",1.0936558964187133,"Prêts hypothécaires assurés au cours de la période selon le rapport prêt-valeur (RPV) établi d’après la valeur initiale de la propriété (%)","1.1"," > 75 % <= 80 %",{"$f":"IFERROR(VLOOKUP(A5361,Translation!$A:$C,3,FALSE),A5361)","v":7},{"$f":"IFERROR(VLOOKUP(B5361,Translation!$A:$C,3,FALSE),B5361)","v":"T2 2017"},{"$f":"IFERROR(VLOOKUP(C5361,Translation!$A:$C,3,FALSE),C5361)","v":"PROPRIÉTAIRES-OCCUPANTS, À L’UNITÉ"},{"$f":"IFERROR(VLOOKUP(D5361,Translation!$A:$C,3,FALSE),D5361)","v":"> 75 % <= 80 %"},{"$f":"IFERROR(VLOOKUP(E5361,Translation!$A:$C,3,FALSE),E5361)","v":1.0936558964187133},{"$f":"IFERROR(VLOOKUP(F5361,Translation!$A:$C,3,FALSE),F5361)","v":"Prêts hypothécaires assurés au cours de la période selon le rapport prêt-valeur (RPV) établi d’après la valeur initiale de la propriété (%)"},{"$f":"IFERROR(VLOOKUP(G5361,Translation!$A:$C,3,FALSE),G5361)","v":"1.1"},{"$f":"IFERROR(VLOOKUP(H5361,Translation!$A:$C,3,FALSE),H5361)","v":" > 75 % <= 80 %"}]
[7,"T4 2017","PROPRIÉTAIRES-OCCUPANTS, À L’UNITÉ","> 75 % <= 80 %",0.81369030075760818,"Prêts hypothécaires assurés au cours de la période selon le rapport prêt-valeur (RPV) établi d’après la valeur initiale de la propriété (%)","0.8"," > 75 % <= 80 %",{"$f":"IFERROR(VLOOKUP(A5365,Translation!$A:$C,3,FALSE),A5365)","v":7},{"$f":"IFERROR(VLOOKUP(B5365,Translation!$A:$C,3,FALSE),B5365)","v":"T4 2017"},{"$f":"IFERROR(VLOOKUP(C5365,Translation!$A:$C,3,FALSE),C5365)","v":"PROPRIÉTAIRES-OCCUPANTS, À L’UNITÉ"},{"$f":"IFERROR(VLOOKUP(D5365,Translation!$A:$C,3,FALSE),D5365)","v":"> 75 % <= 80 %"},{"$f":"IFERROR(VLOOKUP(E5365,Translation!$A:$C,3,FALSE),E5365)","v":0.81369030075760818},{"$f":"IFERROR(VLOOKUP(F5365,Translation!$A:$C,3,FALSE),F5365)","v":"Prêts hypothécaires assurés au cours de la période selon le rapport prêt-valeur (RPV) établi d’après la valeur initiale de la propriété (%)"},{"$f":"IFERROR(VLOOKUP(G5365,Translation!$A:$C,3,FALSE),G5365)","v":"0.8"},{"$f":"IFERROR(VLOOKUP(H5365,Translation!$A:$C,3,FALSE),H5365)","v":" > 75 % <= 80 %"}]
[7,"T1 2017","PROPRIÉTAIRES-OCCUPANTS, À L’UNITÉ","> 80 % <= 85 %",4.7129606612513193,"Prêts hypothécaires assurés au cours de la période selon le rapport prêt-valeur (RPV) établi d’après la valeur initiale de la propriété (%)","4.7"," > 80 % <= 85 %",{"$f":"IFERROR(VLOOKUP(A5366,Translation!$A:$C,3,FALSE),A5366)","v":7},{"$f":"IFERROR(VLOOKUP(B5366,Translation!$A:$C,3,FALSE),B5366)","v":"T1 2017"},{"$f":"IFERROR(VLOOKUP(C5366,Translation!$A:$C,3,FALSE),C5366)","v":"PROPRIÉTAIRES-OCCUPANTS, À L’UNITÉ"},{"$f":"IFERROR(VLOOKUP(D5366,Translation!$A:$C,3,FALSE),D5366)","v":"> 80 % <= 85 %"},{"$f":"IFERROR(VLOOKUP(E5366,Translation!$A:$C,3,FALSE),E5366)","v":4.7129606612513193},{"$f":"IFERROR(VLOOKUP(F5366,Translation!$A:$C,3,FALSE),F5366)","v":"Prêts hypothécaires assurés au cours de la période selon le rapport prêt-valeur (RPV) établi d’après la valeur initiale de la propriété (%)"},{"$f":"IFERROR(VLOOKUP(G5366,Translation!$A:$C,3,FALSE),G5366)","v":"4.7"},{"$f":"IFERROR(VLOOKUP(H5366,Translation!$A:$C,3,FALSE),H5366)","v":" > 80 % <= 85 %"}]
[7,"T2 2017","PROPRIÉTAIRES-OCCUPANTS, À L’UNITÉ","> 80 % <= 85 %",4.1155715811520928,"Prêts hypothécaires assurés au cours de la période selon le rapport prêt-valeur (RPV) établi d’après la valeur initiale de la propriété (%)","4.1"," > 80 % <= 85 %",{"$f":"IFERROR(VLOOKUP(A5369,Translation!$A:$C,3,FALSE),A5369)","v":7},{"$f":"IFERROR(VLOOKUP(B5369,Translation!$A:$C,3,FALSE),B5369)","v":"T2 2017"},{"$f":"IFERROR(VLOOKUP(C5369,Translation!$A:$C,3,FALSE),C5369)","v":"PROPRIÉTAIRES-OCCUPANTS, À L’UNITÉ"},{"$f":"IFERROR(VLOOKUP(D5369,Translation!$A:$C,3,FALSE),D5369)","v":"> 80 % <= 85 %"},{"$f":"IFERROR(VLOOKUP(E5369,Translation!$A:$C,3,FALSE),E5369)","v":4.1155715811520928},{"$f":"IFERROR(VLOOKUP(F5369,Translation!$A:$C,3,FALSE),F5369)","v":"Prêts hypothécaires assurés au cours de la période selon le rapport prêt-valeur (RPV) établi d’après la valeur initiale de la propriété (%)"},{"$f":"IFERROR(VLOOKUP(G5369,Translation!$A:$C,3,FALSE),G5369)","v":"4.1"},{"$f":"IFERROR(VLOOKUP(H5369,Translation!$A:$C,3,FALSE),H5369)","v":" > 80 % <= 85 %"}]
[7,"Q3 2016","PROPRIÉTAIRES-OCCUPANTS, À L’UNITÉ","> 80 % <= 85 %",4.2017339012492068,"Prêts hypothécaires assurés au cours de la période selon le rapport prêt-valeur (RPV) établi d’après la valeur initiale de la propriété (%)","4.2"," > 80 % <= 85 %",{"$f":"IFERROR(VLOOKUP(A5370,Translation!$A:$C,3,FALSE),A5370)","v":7},{"$f":"IFERROR(VLOOKUP(B5370,Translation!$A:$C,3,FALSE),B5370)","v":"Q3 2016"},{"$f":"IFERROR(VLOOKUP(C5370,Translation!$A:$C,3,FALSE),C5370)","v":"PROPRIÉTAIRES-OCCUPANTS, À L’UNITÉ"},{"$f":"IFERROR(VLOOKUP(D5370,Translation!$A:$C,3,FALSE),D5370)","v":"> 80 % <= 85 %"},{"$f":"IFERROR(VLOOKUP(E5370,Translation!$A:$C,3,FALSE),E5370)","v":4.2017339012492068},{"$f":"IFERROR(VLOOKUP(F5370,Translation!$A:$C,3,FALSE),F5370)","v":"Prêts hypothécaires assurés au cours de la période selon le rapport prêt-valeur (RPV) établi d’après la valeur initiale de la propriété (%)"},{"$f":"IFERROR(VLOOKUP(G5370,Translation!$A:$C,3,FALSE),G5370)","v":"4.2"},{"$f":"IFERROR(VLOOKUP(H5370,Translation!$A:$C,3,FALSE),H5370)","v":" > 80 % <= 85 %"}]
[7,"T1 2017","PROPRIÉTAIRES-OCCUPANTS, À L’UNITÉ","> 85 % <= 90 %",25.962378244551314,"Prêts hypothécaires assurés au cours de la période selon le rapport prêt-valeur (RPV) établi d’après la valeur initiale de la propriété (%)","26.0"," > 85 % <= 90 %",{"$f":"IFERROR(VLOOKUP(A5374,Translation!$A:$C,3,FALSE),A5374)","v":7},{"$f":"IFERROR(VLOOKUP(B5374,Translation!$A:$C,3,FALSE),B5374)","v":"T1 2017"},{"$f":"IFERROR(VLOOKUP(C5374,Translation!$A:$C,3,FALSE),C5374)","v":"PROPRIÉTAIRES-OCCUPANTS, À L’UNITÉ"},{"$f":"IFERROR(VLOOKUP(D5374,Translation!$A:$C,3,FALSE),D5374)","v":"> 85 % <= 90 %"},{"$f":"IFERROR(VLOOKUP(E5374,Translation!$A:$C,3,FALSE),E5374)","v":25.962378244551314},{"$f":"IFERROR(VLOOKUP(F5374,Translation!$A:$C,3,FALSE),F5374)","v":"Prêts hypothécaires assurés au cours de la période selon le rapport prêt-valeur (RPV) établi d’après la valeur initiale de la propriété (%)"},{"$f":"IFERROR(VLOOKUP(G5374,Translation!$A:$C,3,FALSE),G5374)","v":"26.0"},{"$f":"IFERROR(VLOOKUP(H5374,Translation!$A:$C,3,FALSE),H5374)","v":" > 85 % <= 90 %"}]
[7,"Q2 2016","PROPRIÉTAIRES-OCCUPANTS, À L’UNITÉ","> 85 % <= 90 %",22.776402521333079,"Prêts hypothécaires assurés au cours de la période selon le rapport prêt-valeur (RPV) établi d’après la valeur initiale de la propriété (%)","22.8"," > 85 % <= 90 %",{"$f":"IFERROR(VLOOKUP(A5376,Translation!$A:$C,3,FALSE),A5376)","v":7},{"$f":"IFERROR(VLOOKUP(B5376,Translation!$A:$C,3,FALSE),B5376)","v":"Q2 2016"},{"$f":"IFERROR(VLOOKUP(C5376,Translation!$A:$C,3,FALSE),C5376)","v":"PROPRIÉTAIRES-OCCUPANTS, À L’UNITÉ"},{"$f":"IFERROR(VLOOKUP(D5376,Translation!$A:$C,3,FALSE),D5376)","v":"> 85 % <= 90 %"},{"$f":"IFERROR(VLOOKUP(E5376,Translation!$A:$C,3,FALSE),E5376)","v":22.776402521333079},{"$f":"IFERROR(VLOOKUP(F5376,Translation!$A:$C,3,FALSE),F5376)","v":"Prêts hypothécaires assurés au cours de la période selon le rapport prêt-valeur (RPV) établi d’après la valeur initiale de la propriété (%)"},{"$f":"IFERROR(VLOOKUP(G5376,Translation!$A:$C,3,FALSE),G5376)","v":"22.8"},{"$f":"IFERROR(VLOOKUP(H5376,Translation!$A:$C,3,FALSE),H5376)","v":" > 85 % <= 90 %"}]
[7,"T3 2017","PROPRIÉTAIRES-OCCUPANTS, À L’UNITÉ","> 85 % <= 90 %",26.578712171511501,"Prêts hypothécaires assurés au cours de la période selon le rapport prêt-valeur (RPV) établi d’après la valeur initiale de la propriété (%)","26.6"," > 85 % <= 90 %",{"$f":"IFERROR(VLOOKUP(A5379,Translation!$A:$C,3,FALSE),A5379)","v":7},{"$f":"IFERROR(VLOOKUP(B5379,Translation!$A:$C,3,FALSE),B5379)","v":"T3 2017"},{"$f":"IFERROR(VLOOKUP(C5379,Translation!$A:$C,3,FALSE),C5379)","v":"PROPRIÉTAIRES-OCCUPANTS, À L’UNITÉ"},{"$f":"IFERROR(VLOOKUP(D5379,Translation!$A:$C,3,FALSE),D5379)","v":"> 85 % <= 90 %"},{"$f":"IFERROR(VLOOKUP(E5379,Translation!$A:$C,3,FALSE),E5379)","v":26.578712171511501},{"$f":"IFERROR(VLOOKUP(F5379,Translation!$A:$C,3,FALSE),F5379)","v":"Prêts hypothécaires assurés au cours de la période selon le rapport prêt-valeur (RPV) établi d’après la valeur initiale de la propriété (%)"},{"$f":"IFERROR(VLOOKUP(G5379,Translation!$A:$C,3,FALSE),G5379)","v":"26.6"},{"$f":"IFERROR(VLOOKUP(H5379,Translation!$A:$C,3,FALSE),H5379)","v":" > 85 % <= 90 %"}]
[7,"Q4 2016","PROPRIÉTAIRES-OCCUPANTS, À L’UNITÉ","> 85 % <= 90 %",24.905899406762419,"Prêts hypothécaires assurés au cours de la période selon le rapport prêt-valeur (RPV) établi d’après la valeur initiale de la propriété (%)","24.9"," > 85 % <= 90 %",{"$f":"IFERROR(VLOOKUP(A5380,Translation!$A:$C,3,FALSE),A5380)","v":7},{"$f":"IFERROR(VLOOKUP(B5380,Translation!$A:$C,3,FALSE),B5380)","v":"Q4 2016"},{"$f":"IFERROR(VLOOKUP(C5380,Translation!$A:$C,3,FALSE),C5380)","v":"PROPRIÉTAIRES-OCCUPANTS, À L’UNITÉ"},{"$f":"IFERROR(VLOOKUP(D5380,Translation!$A:$C,3,FALSE),D5380)","v":"> 85 % <= 90 %"},{"$f":"IFERROR(VLOOKUP(E5380,Translation!$A:$C,3,FALSE),E5380)","v":24.905899406762419},{"$f":"IFERROR(VLOOKUP(F5380,Translation!$A:$C,3,FALSE),F5380)","v":"Prêts hypothécaires assurés au cours de la période selon le rapport prêt-valeur (RPV) établi d’après la valeur initiale de la propriété (%)"},{"$f":"IFERROR(VLOOKUP(G5380,Translation!$A:$C,3,FALSE),G5380)","v":"24.9"},{"$f":"IFERROR(VLOOKUP(H5380,Translation!$A:$C,3,FALSE),H5380)","v":" > 85 % <= 90 %"}]
[7,"Q2 2016","PROPRIÉTAIRES-OCCUPANTS, À L’UNITÉ","> 90 % <= 95 %",70.165686842457717,"Prêts hypothécaires assurés au cours de la période selon le rapport prêt-valeur (RPV) établi d’après la valeur initiale de la propriété (%)","70.2"," > 90 % <= 95 %",{"$f":"IFERROR(VLOOKUP(A5384,Translation!$A:$C,3,FALSE),A5384)","v":7},{"$f":"IFERROR(VLOOKUP(B5384,Translation!$A:$C,3,FALSE),B5384)","v":"Q2 2016"},{"$f":"IFERROR(VLOOKUP(C5384,Translation!$A:$C,3,FALSE),C5384)","v":"PROPRIÉTAIRES-OCCUPANTS, À L’UNITÉ"},{"$f":"IFERROR(VLOOKUP(D5384,Translation!$A:$C,3,FALSE),D5384)","v":"> 90 % <= 95 %"},{"$f":"IFERROR(VLOOKUP(E5384,Translation!$A:$C,3,FALSE),E5384)","v":70.165686842457717},{"$f":"IFERROR(VLOOKUP(F5384,Translation!$A:$C,3,FALSE),F5384)","v":"Prêts hypothécaires assurés au cours de la période selon le rapport prêt-valeur (RPV) établi d’après la valeur initiale de la propriété (%)"},{"$f":"IFERROR(VLOOKUP(G5384,Translation!$A:$C,3,FALSE),G5384)","v":"70.2"},{"$f":"IFERROR(VLOOKUP(H5384,Translation!$A:$C,3,FALSE),H5384)","v":" > 90 % <= 95 %"}]
[7,"T2 2017","PROPRIÉTAIRES-OCCUPANTS, À L’UNITÉ","> 90 % <= 95 %",68.820595277808891,"Prêts hypothécaires assurés au cours de la période selon le rapport prêt-valeur (RPV) établi d’après la valeur initiale de la propriété (%)","68.8"," > 90 % <= 95 %",{"$f":"IFERROR(VLOOKUP(A5385,Translation!$A:$C,3,FALSE),A5385)","v":7},{"$f":"IFERROR(VLOOKUP(B5385,Translation!$A:$C,3,FALSE),B5385)","v":"T2 2017"},{"$f":"IFERROR(VLOOKUP(C5385,Translation!$A:$C,3,FALSE),C5385)","v":"PROPRIÉTAIRES-OCCUPANTS, À L’UNITÉ"},{"$f":"IFERROR(VLOOKUP(D5385,Translation!$A:$C,3,FALSE),D5385)","v":"> 90 % <= 95 %"},{"$f":"IFERROR(VLOOKUP(E5385,Translation!$A:$C,3,FALSE),E5385)","v":68.820595277808891},{"$f":"IFERROR(VLOOKUP(F5385,Translation!$A:$C,3,FALSE),F5385)","v":"Prêts hypothécaires assurés au cours de la période selon le rapport prêt-valeur (RPV) établi d’après la valeur initiale de la propriété (%)"},{"$f":"IFERROR(VLOOKUP(G5385,Translation!$A:$C,3,FALSE),G5385)","v":"68.8"},{"$f":"IFERROR(VLOOKUP(H5385,Translation!$A:$C,3,FALSE),H5385)","v":" > 90 % <= 95 %"}]
[7,"T3 2017","PROPRIÉTAIRES-OCCUPANTS, À L’UNITÉ","> 90 % <= 95 %",67.681881406016359,"Prêts hypothécaires assurés au cours de la période selon le rapport prêt-valeur (RPV) établi d’après la valeur initiale de la propriété (%)","67.7"," > 90 % <= 95 %",{"$f":"IFERROR(VLOOKUP(A5387,Translation!$A:$C,3,FALSE),A5387)","v":7},{"$f":"IFERROR(VLOOKUP(B5387,Translation!$A:$C,3,FALSE),B5387)","v":"T3 2017"},{"$f":"IFERROR(VLOOKUP(C5387,Translation!$A:$C,3,FALSE),C5387)","v":"PROPRIÉTAIRES-OCCUPANTS, À L’UNITÉ"},{"$f":"IFERROR(VLOOKUP(D5387,Translation!$A:$C,3,FALSE),D5387)","v":"> 90 % <= 95 %"},{"$f":"IFERROR(VLOOKUP(E5387,Translation!$A:$C,3,FALSE),E5387)","v":67.681881406016359},{"$f":"IFERROR(VLOOKUP(F5387,Translation!$A:$C,3,FALSE),F5387)","v":"Prêts hypothécaires assurés au cours de la période selon le rapport prêt-valeur (RPV) établi d’après la valeur initiale de la propriété (%)"},{"$f":"IFERROR(VLOOKUP(G5387,Translation!$A:$C,3,FALSE),G5387)","v":"67.7"},{"$f":"IFERROR(VLOOKUP(H5387,Translation!$A:$C,3,FALSE),H5387)","v":" > 90 % <= 95 %"}]
[7,"T1 2017","PROPRIÉTAIRES-OCCUPANTS, À L’UNITÉ","Rapport prêt-valeur moyen ",92.251662395755773,"Prêts hypothécaires assurés au cours de la période selon le rapport prêt-valeur (RPV) établi d’après la valeur initiale de la propriété (%)","92.3","Rapport prêt-valeur moyen ",{"$f":"IFERROR(VLOOKUP(A5390,Translation!$A:$C,3,FALSE),A5390)","v":7},{"$f":"IFERROR(VLOOKUP(B5390,Translation!$A:$C,3,FALSE),B5390)","v":"T1 2017"},{"$f":"IFERROR(VLOOKUP(C5390,Translation!$A:$C,3,FALSE),C5390)","v":"PROPRIÉTAIRES-OCCUPANTS, À L’UNITÉ"},{"$f":"IFERROR(VLOOKUP(D5390,Translation!$A:$C,3,FALSE),D5390)","v":"Rapport prêt-valeur moyen "},{"$f":"IFERROR(VLOOKUP(E5390,Translation!$A:$C,3,FALSE),E5390)","v":92.251662395755773},{"$f":"IFERROR(VLOOKUP(F5390,Translation!$A:$C,3,FALSE),F5390)","v":"Prêts hypothécaires assurés au cours de la période selon le rapport prêt-valeur (RPV) établi d’après la valeur initiale de la propriété (%)"},{"$f":"IFERROR(VLOOKUP(G5390,Translation!$A:$C,3,FALSE),G5390)","v":"92.3"},{"$f":"IFERROR(VLOOKUP(H5390,Translation!$A:$C,3,FALSE),H5390)","v":"Rapport prêt-valeur moyen "}]
[7,"T2 2017","PROPRIÉTAIRES-OCCUPANTS, À L’UNITÉ","Rapport prêt-valeur moyen ",92.526569070741829,"Prêts hypothécaires assurés au cours de la période selon le rapport prêt-valeur (RPV) établi d’après la valeur initiale de la propriété (%)","92.5","Rapport prêt-valeur moyen ",{"$f":"IFERROR(VLOOKUP(A5393,Translation!$A:$C,3,FALSE),A5393)","v":7},{"$f":"IFERROR(VLOOKUP(B5393,Translation!$A:$C,3,FALSE),B5393)","v":"T2 2017"},{"$f":"IFERROR(VLOOKUP(C5393,Translation!$A:$C,3,FALSE),C5393)","v":"PROPRIÉTAIRES-OCCUPANTS, À L’UNITÉ"},{"$f":"IFERROR(VLOOKUP(D5393,Translation!$A:$C,3,FALSE),D5393)","v":"Rapport prêt-valeur moyen "},{"$f":"IFERROR(VLOOKUP(E5393,Translation!$A:$C,3,FALSE),E5393)","v":92.526569070741829},{"$f":"IFERROR(VLOOKUP(F5393,Translation!$A:$C,3,FALSE),F5393)","v":"Prêts hypothécaires assurés au cours de la période selon le rapport prêt-valeur (RPV) établi d’après la valeur initiale de la propriété (%)"},{"$f":"IFERROR(VLOOKUP(G5393,Translation!$A:$C,3,FALSE),G5393)","v":"92.5"},{"$f":"IFERROR(VLOOKUP(H5393,Translation!$A:$C,3,FALSE),H5393)","v":"Rapport prêt-valeur moyen "}]
[7,"T3 2017","PROPRIÉTAIRES-OCCUPANTS, À L’UNITÉ","Rapport prêt-valeur moyen ",92.434287083966112,"Prêts hypothécaires assurés au cours de la période selon le rapport prêt-valeur (RPV) établi d’après la valeur initiale de la propriété (%)","92.4","Rapport prêt-valeur moyen ",{"$f":"IFERROR(VLOOKUP(A5395,Translation!$A:$C,3,FALSE),A5395)","v":7},{"$f":"IFERROR(VLOOKUP(B5395,Translation!$A:$C,3,FALSE),B5395)","v":"T3 2017"},{"$f":"IFERROR(VLOOKUP(C5395,Translation!$A:$C,3,FALSE),C5395)","v":"PROPRIÉTAIRES-OCCUPANTS, À L’UNITÉ"},{"$f":"IFERROR(VLOOKUP(D5395,Translation!$A:$C,3,FALSE),D5395)","v":"Rapport prêt-valeur moyen "},{"$f":"IFERROR(VLOOKUP(E5395,Translation!$A:$C,3,FALSE),E5395)","v":92.434287083966112},{"$f":"IFERROR(VLOOKUP(F5395,Translation!$A:$C,3,FALSE),F5395)","v":"Prêts hypothécaires assurés au cours de la période selon le rapport prêt-valeur (RPV) établi d’après la valeur initiale de la propriété (%)"},{"$f":"IFERROR(VLOOKUP(G5395,Translation!$A:$C,3,FALSE),G5395)","v":"92.4"},{"$f":"IFERROR(VLOOKUP(H5395,Translation!$A:$C,3,FALSE),H5395)","v":"Rapport prêt-valeur moyen "}]
[7,"T1 2017","PROPRIÉTAIRES-OCCUPANTS, À L’UNITÉ","Avoir propre foncier moyen ",7.748337604244214,"Prêts hypothécaires assurés au cours de la période selon le rapport prêt-valeur (RPV) établi d’après la valeur initiale de la propriété (%)","7.7","Avoir propre foncier moyen ",{"$f":"IFERROR(VLOOKUP(A5398,Translation!$A:$C,3,FALSE),A5398)","v":7},{"$f":"IFERROR(VLOOKUP(B5398,Translation!$A:$C,3,FALSE),B5398)","v":"T1 2017"},{"$f":"IFERROR(VLOOKUP(C5398,Translation!$A:$C,3,FALSE),C5398)","v":"PROPRIÉTAIRES-OCCUPANTS, À L’UNITÉ"},{"$f":"IFERROR(VLOOKUP(D5398,Translation!$A:$C,3,FALSE),D5398)","v":"Avoir propre foncier moyen "},{"$f":"IFERROR(VLOOKUP(E5398,Translation!$A:$C,3,FALSE),E5398)","v":7.748337604244214},{"$f":"IFERROR(VLOOKUP(F5398,Translation!$A:$C,3,FALSE),F5398)","v":"Prêts hypothécaires assurés au cours de la période selon le rapport prêt-valeur (RPV) établi d’après la valeur initiale de la propriété (%)"},{"$f":"IFERROR(VLOOKUP(G5398,Translation!$A:$C,3,FALSE),G5398)","v":"7.7"},{"$f":"IFERROR(VLOOKUP(H5398,Translation!$A:$C,3,FALSE),H5398)","v":"Avoir propre foncier moyen "}]
[7,"T2 2017","PROPRIÉTAIRES-OCCUPANTS, À L’UNITÉ","Avoir propre foncier moyen ",7.473430929258174,"Prêts hypothécaires assurés au cours de la période selon le rapport prêt-valeur (RPV) établi d’après la valeur initiale de la propriété (%)","7.5","Avoir propre foncier moyen ",{"$f":"IFERROR(VLOOKUP(A5401,Translation!$A:$C,3,FALSE),A5401)","v":7},{"$f":"IFERROR(VLOOKUP(B5401,Translation!$A:$C,3,FALSE),B5401)","v":"T2 2017"},{"$f":"IFERROR(VLOOKUP(C5401,Translation!$A:$C,3,FALSE),C5401)","v":"PROPRIÉTAIRES-OCCUPANTS, À L’UNITÉ"},{"$f":"IFERROR(VLOOKUP(D5401,Translation!$A:$C,3,FALSE),D5401)","v":"Avoir propre foncier moyen "},{"$f":"IFERROR(VLOOKUP(E5401,Translation!$A:$C,3,FALSE),E5401)","v":7.473430929258174},{"$f":"IFERROR(VLOOKUP(F5401,Translation!$A:$C,3,FALSE),F5401)","v":"Prêts hypothécaires assurés au cours de la période selon le rapport prêt-valeur (RPV) établi d’après la valeur initiale de la propriété (%)"},{"$f":"IFERROR(VLOOKUP(G5401,Translation!$A:$C,3,FALSE),G5401)","v":"7.5"},{"$f":"IFERROR(VLOOKUP(H5401,Translation!$A:$C,3,FALSE),H5401)","v":"Avoir propre foncier moyen "}]
[7,"T3 2017","PROPRIÉTAIRES-OCCUPANTS, À L’UNITÉ","Avoir propre foncier moyen ",7.5657129160338608,"Prêts hypothécaires assurés au cours de la période selon le rapport prêt-valeur (RPV) établi d’après la valeur initiale de la propriété (%)","7.6","Avoir propre foncier moyen ",{"$f":"IFERROR(VLOOKUP(A5403,Translation!$A:$C,3,FALSE),A5403)","v":7},{"$f":"IFERROR(VLOOKUP(B5403,Translation!$A:$C,3,FALSE),B5403)","v":"T3 2017"},{"$f":"IFERROR(VLOOKUP(C5403,Translation!$A:$C,3,FALSE),C5403)","v":"PROPRIÉTAIRES-OCCUPANTS, À L’UNITÉ"},{"$f":"IFERROR(VLOOKUP(D5403,Translation!$A:$C,3,FALSE),D5403)","v":"Avoir propre foncier moyen "},{"$f":"IFERROR(VLOOKUP(E5403,Translation!$A:$C,3,FALSE),E5403)","v":7.5657129160338608},{"$f":"IFERROR(VLOOKUP(F5403,Translation!$A:$C,3,FALSE),F5403)","v":"Prêts hypothécaires assurés au cours de la période selon le rapport prêt-valeur (RPV) établi d’après la valeur initiale de la propriété (%)"},{"$f":"IFERROR(VLOOKUP(G5403,Translation!$A:$C,3,FALSE),G5403)","v":"7.6"},{"$f":"IFERROR(VLOOKUP(H5403,Translation!$A:$C,3,FALSE),H5403)","v":"Avoir propre foncier moyen "}]
[7,"Q4 2016","PROPRIÉTAIRES-OCCUPANTS, À L’UNITÉ","Avoir propre foncier moyen ",7.8702422054153924,"Prêts hypothécaires assurés au cours de la période selon le rapport prêt-valeur (RPV) établi d’après la valeur initiale de la propriété (%)","7.9","Avoir propre foncier moyen ",{"$f":"IFERROR(VLOOKUP(A5404,Translation!$A:$C,3,FALSE),A5404)","v":7},{"$f":"IFERROR(VLOOKUP(B5404,Translation!$A:$C,3,FALSE),B5404)","v":"Q4 2016"},{"$f":"IFERROR(VLOOKUP(C5404,Translation!$A:$C,3,FALSE),C5404)","v":"PROPRIÉTAIRES-OCCUPANTS, À L’UNITÉ"},{"$f":"IFERROR(VLOOKUP(D5404,Translation!$A:$C,3,FALSE),D5404)","v":"Avoir propre foncier moyen "},{"$f":"IFERROR(VLOOKUP(E5404,Translation!$A:$C,3,FALSE),E5404)","v":7.8702422054153924},{"$f":"IFERROR(VLOOKUP(F5404,Translation!$A:$C,3,FALSE),F5404)","v":"Prêts hypothécaires assurés au cours de la période selon le rapport prêt-valeur (RPV) établi d’après la valeur initiale de la propriété (%)"},{"$f":"IFERROR(VLOOKUP(G5404,Translation!$A:$C,3,FALSE),G5404)","v":"7.9"},{"$f":"IFERROR(VLOOKUP(H5404,Translation!$A:$C,3,FALSE),H5404)","v":"Avoir propre foncier moyen "}]
[7,"T1 2017","PROPRIÉTAIRES-OCCUPANTS, À L’UNITÉ","Terre-Neuve-et-Labrador",7.0388176094238002,"Avoir propre foncier moyen selon la province","7.0","Terre-Neuve-et-Labrador",{"$f":"IFERROR(VLOOKUP(A5406,Translation!$A:$C,3,FALSE),A5406)","v":7},{"$f":"IFERROR(VLOOKUP(B5406,Translation!$A:$C,3,FALSE),B5406)","v":"T1 2017"},{"$f":"IFERROR(VLOOKUP(C5406,Translation!$A:$C,3,FALSE),C5406)","v":"PROPRIÉTAIRES-OCCUPANTS, À L’UNITÉ"},{"$f":"IFERROR(VLOOKUP(D5406,Translation!$A:$C,3,FALSE),D5406)","v":"Terre-Neuve-et-Labrador"},{"$f":"IFERROR(VLOOKUP(E5406,Translation!$A:$C,3,FALSE),E5406)","v":7.0388176094238002},{"$f":"IFERROR(VLOOKUP(F5406,Translation!$A:$C,3,FALSE),F5406)","v":"Avoir propre foncier moyen selon la province"},{"$f":"IFERROR(VLOOKUP(G5406,Translation!$A:$C,3,FALSE),G5406)","v":"7.0"},{"$f":"IFERROR(VLOOKUP(H5406,Translation!$A:$C,3,FALSE),H5406)","v":"Terre-Neuve-et-Labrador"}]
[7,"T1 2017","PROPRIÉTAIRES-OCCUPANTS, À L’UNITÉ","Nouveau-Brunswick",6.83292919278772,"Avoir propre foncier moyen selon la province","6.8","Nouveau-Brunswick",{"$f":"IFERROR(VLOOKUP(A5409,Translation!$A:$C,3,FALSE),A5409)","v":7},{"$f":"IFERROR(VLOOKUP(B5409,Translation!$A:$C,3,FALSE),B5409)","v":"T1 2017"},{"$f":"IFERROR(VLOOKUP(C5409,Translation!$A:$C,3,FALSE),C5409)","v":"PROPRIÉTAIRES-OCCUPANTS, À L’UNITÉ"},{"$f":"IFERROR(VLOOKUP(D5409,Translation!$A:$C,3,FALSE),D5409)","v":"Nouveau-Brunswick"},{"$f":"IFERROR(VLOOKUP(E5409,Translation!$A:$C,3,FALSE),E5409)","v":6.83292919278772},{"$f":"IFERROR(VLOOKUP(F5409,Translation!$A:$C,3,FALSE),F5409)","v":"Avoir propre foncier moyen selon la province"},{"$f":"IFERROR(VLOOKUP(G5409,Translation!$A:$C,3,FALSE),G5409)","v":"6.8"},{"$f":"IFERROR(VLOOKUP(H5409,Translation!$A:$C,3,FALSE),H5409)","v":"Nouveau-Brunswick"}]
[7,"T1 2017","PROPRIÉTAIRES-OCCUPANTS, À L’UNITÉ","Manitoba",6.6088080293896212,"Avoir propre foncier moyen selon la province","6.6","Manitoba",{"$f":"IFERROR(VLOOKUP(A5412,Translation!$A:$C,3,FALSE),A5412)","v":7},{"$f":"IFERROR(VLOOKUP(B5412,Translation!$A:$C,3,FALSE),B5412)","v":"T1 2017"},{"$f":"IFERROR(VLOOKUP(C5412,Translation!$A:$C,3,FALSE),C5412)","v":"PROPRIÉTAIRES-OCCUPANTS, À L’UNITÉ"},{"$f":"IFERROR(VLOOKUP(D5412,Translation!$A:$C,3,FALSE),D5412)","v":"Manitoba"},{"$f":"IFERROR(VLOOKUP(E5412,Translation!$A:$C,3,FALSE),E5412)","v":6.6088080293896212},{"$f":"IFERROR(VLOOKUP(F5412,Translation!$A:$C,3,FALSE),F5412)","v":"Avoir propre foncier moyen selon la province"},{"$f":"IFERROR(VLOOKUP(G5412,Translation!$A:$C,3,FALSE),G5412)","v":"6.6"},{"$f":"IFERROR(VLOOKUP(H5412,Translation!$A:$C,3,FALSE),H5412)","v":"Manitoba"}]
[7,"T1 2017","PROPRIÉTAIRES-OCCUPANTS, À L’UNITÉ","Alberta",7.0710880271851542,"Avoir propre foncier moyen selon la province","7.1","Alberta",{"$f":"IFERROR(VLOOKUP(A5414,Translation!$A:$C,3,FALSE),A5414)","v":7},{"$f":"IFERROR(VLOOKUP(B5414,Translation!$A:$C,3,FALSE),B5414)","v":"T1 2017"},{"$f":"IFERROR(VLOOKUP(C5414,Translation!$A:$C,3,FALSE),C5414)","v":"PROPRIÉTAIRES-OCCUPANTS, À L’UNITÉ"},{"$f":"IFERROR(VLOOKUP(D5414,Translation!$A:$C,3,FALSE),D5414)","v":"Alberta"},{"$f":"IFERROR(VLOOKUP(E5414,Translation!$A:$C,3,FALSE),E5414)","v":7.0710880271851542},{"$f":"IFERROR(VLOOKUP(F5414,Translation!$A:$C,3,FALSE),F5414)","v":"Avoir propre foncier moyen selon la province"},{"$f":"IFERROR(VLOOKUP(G5414,Translation!$A:$C,3,FALSE),G5414)","v":"7.1"},{"$f":"IFERROR(VLOOKUP(H5414,Translation!$A:$C,3,FALSE),H5414)","v":"Alberta"}]
[7,"T1 2018","PROPRIÉTAIRES-OCCUPANTS, À L’UNITÉ","Terre-Neuve-et-Labrador",6.8920864242291353,"Avoir propre foncier moyen selon la province","6.9","Terre-Neuve-et-Labrador",{"$f":"IFERROR(VLOOKUP(A5417,Translation!$A:$C,3,FALSE),A5417)","v":7},{"$f":"IFERROR(VLOOKUP(B5417,Translation!$A:$C,3,FALSE),B5417)","v":"T1 2018"},{"$f":"IFERROR(VLOOKUP(C5417,Translation!$A:$C,3,FALSE),C5417)","v":"PROPRIÉTAIRES-OCCUPANTS, À L’UNITÉ"},{"$f":"IFERROR(VLOOKUP(D5417,Translation!$A:$C,3,FALSE),D5417)","v":"Terre-Neuve-et-Labrador"},{"$f":"IFERROR(VLOOKUP(E5417,Translation!$A:$C,3,FALSE),E5417)","v":6.8920864242291353},{"$f":"IFERROR(VLOOKUP(F5417,Translation!$A:$C,3,FALSE),F5417)","v":"Avoir propre foncier moyen selon la province"},{"$f":"IFERROR(VLOOKUP(G5417,Translation!$A:$C,3,FALSE),G5417)","v":"6.9"},{"$f":"IFERROR(VLOOKUP(H5417,Translation!$A:$C,3,FALSE),H5417)","v":"Terre-Neuve-et-Labrador"}]
[7,"T1 2018","PROPRIÉTAIRES-OCCUPANTS, À L’UNITÉ","Nouveau-Brunswick",6.3823352201191028,"Avoir propre foncier moyen selon la province","6.4","Nouveau-Brunswick",{"$f":"IFERROR(VLOOKUP(A5420,Translation!$A:$C,3,FALSE),A5420)","v":7},{"$f":"IFERROR(VLOOKUP(B5420,Translation!$A:$C,3,FALSE),B5420)","v":"T1 2018"},{"$f":"IFERROR(VLOOKUP(C5420,Translation!$A:$C,3,FALSE),C5420)","v":"PROPRIÉTAIRES-OCCUPANTS, À L’UNITÉ"},{"$f":"IFERROR(VLOOKUP(D5420,Translation!$A:$C,3,FALSE),D5420)","v":"Nouveau-Brunswick"},{"$f":"IFERROR(VLOOKUP(E5420,Translation!$A:$C,3,FALSE),E5420)","v":6.3823352201191028},{"$f":"IFERROR(VLOOKUP(F5420,Translation!$A:$C,3,FALSE),F5420)","v":"Avoir propre foncier moyen selon la province"},{"$f":"IFERROR(VLOOKUP(G5420,Translation!$A:$C,3,FALSE),G5420)","v":"6.4"},{"$f":"IFERROR(VLOOKUP(H5420,Translation!$A:$C,3,FALSE),H5420)","v":"Nouveau-Brunswick"}]
[7,"T1 2018","PROPRIÉTAIRES-OCCUPANTS, À L’UNITÉ","Ontario",8.8515979142428876,"Avoir propre foncier moyen selon la province","8.9","Ontario",{"$f":"IFERROR(VLOOKUP(A5422,Translation!$A:$C,3,FALSE),A5422)","v":7},{"$f":"IFERROR(VLOOKUP(B5422,Translation!$A:$C,3,FALSE),B5422)","v":"T1 2018"},{"$f":"IFERROR(VLOOKUP(C5422,Translation!$A:$C,3,FALSE),C5422)","v":"PROPRIÉTAIRES-OCCUPANTS, À L’UNITÉ"},{"$f":"IFERROR(VLOOKUP(D5422,Translation!$A:$C,3,FALSE),D5422)","v":"Ontario"},{"$f":"IFERROR(VLOOKUP(E5422,Translation!$A:$C,3,FALSE),E5422)","v":8.8515979142428876},{"$f":"IFERROR(VLOOKUP(F5422,Translation!$A:$C,3,FALSE),F5422)","v":"Avoir propre foncier moyen selon la province"},{"$f":"IFERROR(VLOOKUP(G5422,Translation!$A:$C,3,FALSE),G5422)","v":"8.9"},{"$f":"IFERROR(VLOOKUP(H5422,Translation!$A:$C,3,FALSE),H5422)","v":"Ontario"}]
[7,"T1 2018","PROPRIÉTAIRES-OCCUPANTS, À L’UNITÉ","Manitoba",6.6277540164725908,"Avoir propre foncier moyen selon la province","6.6","Manitoba",{"$f":"IFERROR(VLOOKUP(A5423,Translation!$A:$C,3,FALSE),A5423)","v":7},{"$f":"IFERROR(VLOOKUP(B5423,Translation!$A:$C,3,FALSE),B5423)","v":"T1 2018"},{"$f":"IFERROR(VLOOKUP(C5423,Translation!$A:$C,3,FALSE),C5423)","v":"PROPRIÉTAIRES-OCCUPANTS, À L’UNITÉ"},{"$f":"IFERROR(VLOOKUP(D5423,Translation!$A:$C,3,FALSE),D5423)","v":"Manitoba"},{"$f":"IFERROR(VLOOKUP(E5423,Translation!$A:$C,3,FALSE),E5423)","v":6.6277540164725908},{"$f":"IFERROR(VLOOKUP(F5423,Translation!$A:$C,3,FALSE),F5423)","v":"Avoir propre foncier moyen selon la province"},{"$f":"IFERROR(VLOOKUP(G5423,Translation!$A:$C,3,FALSE),G5423)","v":"6.6"},{"$f":"IFERROR(VLOOKUP(H5423,Translation!$A:$C,3,FALSE),H5423)","v":"Manitoba"}]
[7,"T1 2018","PROPRIÉTAIRES-OCCUPANTS, À L’UNITÉ","Territoires",8.1747760186767682,"Avoir propre foncier moyen selon la province","8.2","Territoires",{"$f":"IFERROR(VLOOKUP(A5427,Translation!$A:$C,3,FALSE),A5427)","v":7},{"$f":"IFERROR(VLOOKUP(B5427,Translation!$A:$C,3,FALSE),B5427)","v":"T1 2018"},{"$f":"IFERROR(VLOOKUP(C5427,Translation!$A:$C,3,FALSE),C5427)","v":"PROPRIÉTAIRES-OCCUPANTS, À L’UNITÉ"},{"$f":"IFERROR(VLOOKUP(D5427,Translation!$A:$C,3,FALSE),D5427)","v":"Territoires"},{"$f":"IFERROR(VLOOKUP(E5427,Translation!$A:$C,3,FALSE),E5427)","v":8.1747760186767682},{"$f":"IFERROR(VLOOKUP(F5427,Translation!$A:$C,3,FALSE),F5427)","v":"Avoir propre foncier moyen selon la province"},{"$f":"IFERROR(VLOOKUP(G5427,Translation!$A:$C,3,FALSE),G5427)","v":"8.2"},{"$f":"IFERROR(VLOOKUP(H5427,Translation!$A:$C,3,FALSE),H5427)","v":"Territoires"}]
[7,"Q2 2016","PROPRIÉTAIRES-OCCUPANTS, À L’UNITÉ","Terre-Neuve-et-Labrador",7.7100928645903055,"Avoir propre foncier moyen selon la province","7.7","Terre-Neuve-et-Labrador",{"$f":"IFERROR(VLOOKUP(A5428,Translation!$A:$C,3,FALSE),A5428)","v":7},{"$f":"IFERROR(VLOOKUP(B5428,Translation!$A:$C,3,FALSE),B5428)","v":"Q2 2016"},{"$f":"IFERROR(VLOOKUP(C5428,Translation!$A:$C,3,FALSE),C5428)","v":"PROPRIÉTAIRES-OCCUPANTS, À L’UNITÉ"},{"$f":"IFERROR(VLOOKUP(D5428,Translation!$A:$C,3,FALSE),D5428)","v":"Terre-Neuve-et-Labrador"},{"$f":"IFERROR(VLOOKUP(E5428,Translation!$A:$C,3,FALSE),E5428)","v":7.7100928645903055},{"$f":"IFERROR(VLOOKUP(F5428,Translation!$A:$C,3,FALSE),F5428)","v":"Avoir propre foncier moyen selon la province"},{"$f":"IFERROR(VLOOKUP(G5428,Translation!$A:$C,3,FALSE),G5428)","v":"7.7"},{"$f":"IFERROR(VLOOKUP(H5428,Translation!$A:$C,3,FALSE),H5428)","v":"Terre-Neuve-et-Labrador"}]
[7,"Q2 2016","PROPRIÉTAIRES-OCCUPANTS, À L’UNITÉ","Nouveau-Brunswick",8.068680405789209,"Avoir propre foncier moyen selon la province","8.1","Nouveau-Brunswick",{"$f":"IFERROR(VLOOKUP(A5431,Translation!$A:$C,3,FALSE),A5431)","v":7},{"$f":"IFERROR(VLOOKUP(B5431,Translation!$A:$C,3,FALSE),B5431)","v":"Q2 2016"},{"$f":"IFERROR(VLOOKUP(C5431,Translation!$A:$C,3,FALSE),C5431)","v":"PROPRIÉTAIRES-OCCUPANTS, À L’UNITÉ"},{"$f":"IFERROR(VLOOKUP(D5431,Translation!$A:$C,3,FALSE),D5431)","v":"Nouveau-Brunswick"},{"$f":"IFERROR(VLOOKUP(E5431,Translation!$A:$C,3,FALSE),E5431)","v":8.068680405789209},{"$f":"IFERROR(VLOOKUP(F5431,Translation!$A:$C,3,FALSE),F5431)","v":"Avoir propre foncier moyen selon la province"},{"$f":"IFERROR(VLOOKUP(G5431,Translation!$A:$C,3,FALSE),G5431)","v":"8.1"},{"$f":"IFERROR(VLOOKUP(H5431,Translation!$A:$C,3,FALSE),H5431)","v":"Nouveau-Brunswick"}]
[7,"Q2 2016","PROPRIÉTAIRES-OCCUPANTS, À L’UNITÉ","Ontario",7.9871291960359372,"Avoir propre foncier moyen selon la province","8.0","Ontario",{"$f":"IFERROR(VLOOKUP(A5433,Translation!$A:$C,3,FALSE),A5433)","v":7},{"$f":"IFERROR(VLOOKUP(B5433,Translation!$A:$C,3,FALSE),B5433)","v":"Q2 2016"},{"$f":"IFERROR(VLOOKUP(C5433,Translation!$A:$C,3,FALSE),C5433)","v":"PROPRIÉTAIRES-OCCUPANTS, À L’UNITÉ"},{"$f":"IFERROR(VLOOKUP(D5433,Translation!$A:$C,3,FALSE),D5433)","v":"Ontario"},{"$f":"IFERROR(VLOOKUP(E5433,Translation!$A:$C,3,FALSE),E5433)","v":7.9871291960359372},{"$f":"IFERROR(VLOOKUP(F5433,Translation!$A:$C,3,FALSE),F5433)","v":"Avoir propre foncier moyen selon la province"},{"$f":"IFERROR(VLOOKUP(G5433,Translation!$A:$C,3,FALSE),G5433)","v":"8.0"},{"$f":"IFERROR(VLOOKUP(H5433,Translation!$A:$C,3,FALSE),H5433)","v":"Ontario"}]
[7,"Q2 2016","PROPRIÉTAIRES-OCCUPANTS, À L’UNITÉ","Alberta",7.0112616499338394,"Avoir propre foncier moyen selon la province","7.0","Alberta",{"$f":"IFERROR(VLOOKUP(A5436,Translation!$A:$C,3,FALSE),A5436)","v":7},{"$f":"IFERROR(VLOOKUP(B5436,Translation!$A:$C,3,FALSE),B5436)","v":"Q2 2016"},{"$f":"IFERROR(VLOOKUP(C5436,Translation!$A:$C,3,FALSE),C5436)","v":"PROPRIÉTAIRES-OCCUPANTS, À L’UNITÉ"},{"$f":"IFERROR(VLOOKUP(D5436,Translation!$A:$C,3,FALSE),D5436)","v":"Alberta"},{"$f":"IFERROR(VLOOKUP(E5436,Translation!$A:$C,3,FALSE),E5436)","v":7.0112616499338394},{"$f":"IFERROR(VLOOKUP(F5436,Translation!$A:$C,3,FALSE),F5436)","v":"Avoir propre foncier moyen selon la province"},{"$f":"IFERROR(VLOOKUP(G5436,Translation!$A:$C,3,FALSE),G5436)","v":"7.0"},{"$f":"IFERROR(VLOOKUP(H5436,Translation!$A:$C,3,FALSE),H5436)","v":"Alberta"}]
[7,"Q2 2016","PROPRIÉTAIRES-OCCUPANTS, À L’UNITÉ","Territoires",9.4504506193638615,"Avoir propre foncier moyen selon la province","9.5","Territoires",{"$f":"IFERROR(VLOOKUP(A5438,Translation!$A:$C,3,FALSE),A5438)","v":7},{"$f":"IFERROR(VLOOKUP(B5438,Translation!$A:$C,3,FALSE),B5438)","v":"Q2 2016"},{"$f":"IFERROR(VLOOKUP(C5438,Translation!$A:$C,3,FALSE),C5438)","v":"PROPRIÉTAIRES-OCCUPANTS, À L’UNITÉ"},{"$f":"IFERROR(VLOOKUP(D5438,Translation!$A:$C,3,FALSE),D5438)","v":"Territoires"},{"$f":"IFERROR(VLOOKUP(E5438,Translation!$A:$C,3,FALSE),E5438)","v":9.4504506193638615},{"$f":"IFERROR(VLOOKUP(F5438,Translation!$A:$C,3,FALSE),F5438)","v":"Avoir propre foncier moyen selon la province"},{"$f":"IFERROR(VLOOKUP(G5438,Translation!$A:$C,3,FALSE),G5438)","v":"9.5"},{"$f":"IFERROR(VLOOKUP(H5438,Translation!$A:$C,3,FALSE),H5438)","v":"Territoires"}]
[7,"T2 2017","PROPRIÉTAIRES-OCCUPANTS, À L’UNITÉ","Nouvelle-Écosse",6.5227505198878228,"Avoir propre foncier moyen selon la province","6.5","Nouvelle-Écosse",{"$f":"IFERROR(VLOOKUP(A5441,Translation!$A:$C,3,FALSE),A5441)","v":7},{"$f":"IFERROR(VLOOKUP(B5441,Translation!$A:$C,3,FALSE),B5441)","v":"T2 2017"},{"$f":"IFERROR(VLOOKUP(C5441,Translation!$A:$C,3,FALSE),C5441)","v":"PROPRIÉTAIRES-OCCUPANTS, À L’UNITÉ"},{"$f":"IFERROR(VLOOKUP(D5441,Translation!$A:$C,3,FALSE),D5441)","v":"Nouvelle-Écosse"},{"$f":"IFERROR(VLOOKUP(E5441,Translation!$A:$C,3,FALSE),E5441)","v":6.5227505198878228},{"$f":"IFERROR(VLOOKUP(F5441,Translation!$A:$C,3,FALSE),F5441)","v":"Avoir propre foncier moyen selon la province"},{"$f":"IFERROR(VLOOKUP(G5441,Translation!$A:$C,3,FALSE),G5441)","v":"6.5"},{"$f":"IFERROR(VLOOKUP(H5441,Translation!$A:$C,3,FALSE),H5441)","v":"Nouvelle-Écosse"}]
[7,"T2 2017","PROPRIÉTAIRES-OCCUPANTS, À L’UNITÉ","Nouveau-Brunswick",6.0562653521190555,"Avoir propre foncier moyen selon la province","6.1","Nouveau-Brunswick",{"$f":"IFERROR(VLOOKUP(A5442,Translation!$A:$C,3,FALSE),A5442)","v":7},{"$f":"IFERROR(VLOOKUP(B5442,Translation!$A:$C,3,FALSE),B5442)","v":"T2 2017"},{"$f":"IFERROR(VLOOKUP(C5442,Translation!$A:$C,3,FALSE),C5442)","v":"PROPRIÉTAIRES-OCCUPANTS, À L’UNITÉ"},{"$f":"IFERROR(VLOOKUP(D5442,Translation!$A:$C,3,FALSE),D5442)","v":"Nouveau-Brunswick"},{"$f":"IFERROR(VLOOKUP(E5442,Translation!$A:$C,3,FALSE),E5442)","v":6.0562653521190555},{"$f":"IFERROR(VLOOKUP(F5442,Translation!$A:$C,3,FALSE),F5442)","v":"Avoir propre foncier moyen selon la province"},{"$f":"IFERROR(VLOOKUP(G5442,Translation!$A:$C,3,FALSE),G5442)","v":"6.1"},{"$f":"IFERROR(VLOOKUP(H5442,Translation!$A:$C,3,FALSE),H5442)","v":"Nouveau-Brunswick"}]
[7,"T2 2017","PROPRIÉTAIRES-OCCUPANTS, À L’UNITÉ","Saskatchewan",6.9014117584005117,"Avoir propre foncier moyen selon la province","6.9","Saskatchewan",{"$f":"IFERROR(VLOOKUP(A5446,Translation!$A:$C,3,FALSE),A5446)","v":7},{"$f":"IFERROR(VLOOKUP(B5446,Translation!$A:$C,3,FALSE),B5446)","v":"T2 2017"},{"$f":"IFERROR(VLOOKUP(C5446,Translation!$A:$C,3,FALSE),C5446)","v":"PROPRIÉTAIRES-OCCUPANTS, À L’UNITÉ"},{"$f":"IFERROR(VLOOKUP(D5446,Translation!$A:$C,3,FALSE),D5446)","v":"Saskatchewan"},{"$f":"IFERROR(VLOOKUP(E5446,Translation!$A:$C,3,FALSE),E5446)","v":6.9014117584005117},{"$f":"IFERROR(VLOOKUP(F5446,Translation!$A:$C,3,FALSE),F5446)","v":"Avoir propre foncier moyen selon la province"},{"$f":"IFERROR(VLOOKUP(G5446,Translation!$A:$C,3,FALSE),G5446)","v":"6.9"},{"$f":"IFERROR(VLOOKUP(H5446,Translation!$A:$C,3,FALSE),H5446)","v":"Saskatchewan"}]
[7,"T2 2017","PROPRIÉTAIRES-OCCUPANTS, À L’UNITÉ","Alberta",7.1387702292114597,"Avoir propre foncier moyen selon la province","7.1","Alberta",{"$f":"IFERROR(VLOOKUP(A5447,Translation!$A:$C,3,FALSE),A5447)","v":7},{"$f":"IFERROR(VLOOKUP(B5447,Translation!$A:$C,3,FALSE),B5447)","v":"T2 2017"},{"$f":"IFERROR(VLOOKUP(C5447,Translation!$A:$C,3,FALSE),C5447)","v":"PROPRIÉTAIRES-OCCUPANTS, À L’UNITÉ"},{"$f":"IFERROR(VLOOKUP(D5447,Translation!$A:$C,3,FALSE),D5447)","v":"Alberta"},{"$f":"IFERROR(VLOOKUP(E5447,Translation!$A:$C,3,FALSE),E5447)","v":7.1387702292114597},{"$f":"IFERROR(VLOOKUP(F5447,Translation!$A:$C,3,FALSE),F5447)","v":"Avoir propre foncier moyen selon la province"},{"$f":"IFERROR(VLOOKUP(G5447,Translation!$A:$C,3,FALSE),G5447)","v":"7.1"},{"$f":"IFERROR(VLOOKUP(H5447,Translation!$A:$C,3,FALSE),H5447)","v":"Alberta"}]
[7,"Q3 2016","PROPRIÉTAIRES-OCCUPANTS, À L’UNITÉ","Île-du-Prince-Édouard",7.3825151736300514,"Avoir propre foncier moyen selon la province","7.4","Île-du-Prince-Édouard",{"$f":"IFERROR(VLOOKUP(A5451,Translation!$A:$C,3,FALSE),A5451)","v":7},{"$f":"IFERROR(VLOOKUP(B5451,Translation!$A:$C,3,FALSE),B5451)","v":"Q3 2016"},{"$f":"IFERROR(VLOOKUP(C5451,Translation!$A:$C,3,FALSE),C5451)","v":"PROPRIÉTAIRES-OCCUPANTS, À L’UNITÉ"},{"$f":"IFERROR(VLOOKUP(D5451,Translation!$A:$C,3,FALSE),D5451)","v":"Île-du-Prince-Édouard"},{"$f":"IFERROR(VLOOKUP(E5451,Translation!$A:$C,3,FALSE),E5451)","v":7.3825151736300514},{"$f":"IFERROR(VLOOKUP(F5451,Translation!$A:$C,3,FALSE),F5451)","v":"Avoir propre foncier moyen selon la province"},{"$f":"IFERROR(VLOOKUP(G5451,Translation!$A:$C,3,FALSE),G5451)","v":"7.4"},{"$f":"IFERROR(VLOOKUP(H5451,Translation!$A:$C,3,FALSE),H5451)","v":"Île-du-Prince-Édouard"}]
[7,"Q3 2016","PROPRIÉTAIRES-OCCUPANTS, À L’UNITÉ","Nouvelle-Écosse",7.638025105192157,"Avoir propre foncier moyen selon la province","7.6","Nouvelle-Écosse",{"$f":"IFERROR(VLOOKUP(A5452,Translation!$A:$C,3,FALSE),A5452)","v":7},{"$f":"IFERROR(VLOOKUP(B5452,Translation!$A:$C,3,FALSE),B5452)","v":"Q3 2016"},{"$f":"IFERROR(VLOOKUP(C5452,Translation!$A:$C,3,FALSE),C5452)","v":"PROPRIÉTAIRES-OCCUPANTS, À L’UNITÉ"},{"$f":"IFERROR(VLOOKUP(D5452,Translation!$A:$C,3,FALSE),D5452)","v":"Nouvelle-Écosse"},{"$f":"IFERROR(VLOOKUP(E5452,Translation!$A:$C,3,FALSE),E5452)","v":7.638025105192157},{"$f":"IFERROR(VLOOKUP(F5452,Translation!$A:$C,3,FALSE),F5452)","v":"Avoir propre foncier moyen selon la province"},{"$f":"IFERROR(VLOOKUP(G5452,Translation!$A:$C,3,FALSE),G5452)","v":"7.6"},{"$f":"IFERROR(VLOOKUP(H5452,Translation!$A:$C,3,FALSE),H5452)","v":"Nouvelle-Écosse"}]
[7,"Q3 2016","PROPRIÉTAIRES-OCCUPANTS, À L’UNITÉ","Manitoba",6.7619570144244241,"Avoir propre foncier moyen selon la province","6.8","Manitoba",{"$f":"IFERROR(VLOOKUP(A5456,Translation!$A:$C,3,FALSE),A5456)","v":7},{"$f":"IFERROR(VLOOKUP(B5456,Translation!$A:$C,3,FALSE),B5456)","v":"Q3 2016"},{"$f":"IFERROR(VLOOKUP(C5456,Translation!$A:$C,3,FALSE),C5456)","v":"PROPRIÉTAIRES-OCCUPANTS, À L’UNITÉ"},{"$f":"IFERROR(VLOOKUP(D5456,Translation!$A:$C,3,FALSE),D5456)","v":"Manitoba"},{"$f":"IFERROR(VLOOKUP(E5456,Translation!$A:$C,3,FALSE),E5456)","v":6.7619570144244241},{"$f":"IFERROR(VLOOKUP(F5456,Translation!$A:$C,3,FALSE),F5456)","v":"Avoir propre foncier moyen selon la province"},{"$f":"IFERROR(VLOOKUP(G5456,Translation!$A:$C,3,FALSE),G5456)","v":"6.8"},{"$f":"IFERROR(VLOOKUP(H5456,Translation!$A:$C,3,FALSE),H5456)","v":"Manitoba"}]
[7,"Q3 2016","PROPRIÉTAIRES-OCCUPANTS, À L’UNITÉ","Saskatchewan",7.1462305767120844,"Avoir propre foncier moyen selon la province","7.1","Saskatchewan",{"$f":"IFERROR(VLOOKUP(A5457,Translation!$A:$C,3,FALSE),A5457)","v":7},{"$f":"IFERROR(VLOOKUP(B5457,Translation!$A:$C,3,FALSE),B5457)","v":"Q3 2016"},{"$f":"IFERROR(VLOOKUP(C5457,Translation!$A:$C,3,FALSE),C5457)","v":"PROPRIÉTAIRES-OCCUPANTS, À L’UNITÉ"},{"$f":"IFERROR(VLOOKUP(D5457,Translation!$A:$C,3,FALSE),D5457)","v":"Saskatchewan"},{"$f":"IFERROR(VLOOKUP(E5457,Translation!$A:$C,3,FALSE),E5457)","v":7.1462305767120844},{"$f":"IFERROR(VLOOKUP(F5457,Translation!$A:$C,3,FALSE),F5457)","v":"Avoir propre foncier moyen selon la province"},{"$f":"IFERROR(VLOOKUP(G5457,Translation!$A:$C,3,FALSE),G5457)","v":"7.1"},{"$f":"IFERROR(VLOOKUP(H5457,Translation!$A:$C,3,FALSE),H5457)","v":"Saskatchewan"}]
[7,"T3 2017","PROPRIÉTAIRES-OCCUPANTS, À L’UNITÉ","Terre-Neuve-et-Labrador",6.297657319446869,"Avoir propre foncier moyen selon la province","6.3","Terre-Neuve-et-Labrador",{"$f":"IFERROR(VLOOKUP(A5461,Translation!$A:$C,3,FALSE),A5461)","v":7},{"$f":"IFERROR(VLOOKUP(B5461,Translation!$A:$C,3,FALSE),B5461)","v":"T3 2017"},{"$f":"IFERROR(VLOOKUP(C5461,Translation!$A:$C,3,FALSE),C5461)","v":"PROPRIÉTAIRES-OCCUPANTS, À L’UNITÉ"},{"$f":"IFERROR(VLOOKUP(D5461,Translation!$A:$C,3,FALSE),D5461)","v":"Terre-Neuve-et-Labrador"},{"$f":"IFERROR(VLOOKUP(E5461,Translation!$A:$C,3,FALSE),E5461)","v":6.297657319446869},{"$f":"IFERROR(VLOOKUP(F5461,Translation!$A:$C,3,FALSE),F5461)","v":"Avoir propre foncier moyen selon la province"},{"$f":"IFERROR(VLOOKUP(G5461,Translation!$A:$C,3,FALSE),G5461)","v":"6.3"},{"$f":"IFERROR(VLOOKUP(H5461,Translation!$A:$C,3,FALSE),H5461)","v":"Terre-Neuve-et-Labrador"}]
[7,"T3 2017","PROPRIÉTAIRES-OCCUPANTS, À L’UNITÉ","Île-du-Prince-Édouard",6.8670082491592401,"Avoir propre foncier moyen selon la province","6.9","Île-du-Prince-Édouard",{"$f":"IFERROR(VLOOKUP(A5462,Translation!$A:$C,3,FALSE),A5462)","v":7},{"$f":"IFERROR(VLOOKUP(B5462,Translation!$A:$C,3,FALSE),B5462)","v":"T3 2017"},{"$f":"IFERROR(VLOOKUP(C5462,Translation!$A:$C,3,FALSE),C5462)","v":"PROPRIÉTAIRES-OCCUPANTS, À L’UNITÉ"},{"$f":"IFERROR(VLOOKUP(D5462,Translation!$A:$C,3,FALSE),D5462)","v":"Île-du-Prince-Édouard"},{"$f":"IFERROR(VLOOKUP(E5462,Translation!$A:$C,3,FALSE),E5462)","v":6.8670082491592401},{"$f":"IFERROR(VLOOKUP(F5462,Translation!$A:$C,3,FALSE),F5462)","v":"Avoir propre foncier moyen selon la province"},{"$f":"IFERROR(VLOOKUP(G5462,Translation!$A:$C,3,FALSE),G5462)","v":"6.9"},{"$f":"IFERROR(VLOOKUP(H5462,Translation!$A:$C,3,FALSE),H5462)","v":"Île-du-Prince-Édouard"}]
[7,"T3 2017","PROPRIÉTAIRES-OCCUPANTS, À L’UNITÉ","Québec",7.1292778193431579,"Avoir propre foncier moyen selon la province","7.1","Québec",{"$f":"IFERROR(VLOOKUP(A5465,Translation!$A:$C,3,FALSE),A5465)","v":7},{"$f":"IFERROR(VLOOKUP(B5465,Translation!$A:$C,3,FALSE),B5465)","v":"T3 2017"},{"$f":"IFERROR(VLOOKUP(C5465,Translation!$A:$C,3,FALSE),C5465)","v":"PROPRIÉTAIRES-OCCUPANTS, À L’UNITÉ"},{"$f":"IFERROR(VLOOKUP(D5465,Translation!$A:$C,3,FALSE),D5465)","v":"Québec"},{"$f":"IFERROR(VLOOKUP(E5465,Translation!$A:$C,3,FALSE),E5465)","v":7.1292778193431579},{"$f":"IFERROR(VLOOKUP(F5465,Translation!$A:$C,3,FALSE),F5465)","v":"Avoir propre foncier moyen selon la province"},{"$f":"IFERROR(VLOOKUP(G5465,Translation!$A:$C,3,FALSE),G5465)","v":"7.1"},{"$f":"IFERROR(VLOOKUP(H5465,Translation!$A:$C,3,FALSE),H5465)","v":"Québec"}]
[7,"T3 2017","PROPRIÉTAIRES-OCCUPANTS, À L’UNITÉ","Ontario",8.1185557929066601,"Avoir propre foncier moyen selon la province","8.1","Ontario",{"$f":"IFERROR(VLOOKUP(A5466,Translation!$A:$C,3,FALSE),A5466)","v":7},{"$f":"IFERROR(VLOOKUP(B5466,Translation!$A:$C,3,FALSE),B5466)","v":"T3 2017"},{"$f":"IFERROR(VLOOKUP(C5466,Translation!$A:$C,3,FALSE),C5466)","v":"PROPRIÉTAIRES-OCCUPANTS, À L’UNITÉ"},{"$f":"IFERROR(VLOOKUP(D5466,Translation!$A:$C,3,FALSE),D5466)","v":"Ontario"},{"$f":"IFERROR(VLOOKUP(E5466,Translation!$A:$C,3,FALSE),E5466)","v":8.1185557929066601},{"$f":"IFERROR(VLOOKUP(F5466,Translation!$A:$C,3,FALSE),F5466)","v":"Avoir propre foncier moyen selon la province"},{"$f":"IFERROR(VLOOKUP(G5466,Translation!$A:$C,3,FALSE),G5466)","v":"8.1"},{"$f":"IFERROR(VLOOKUP(H5466,Translation!$A:$C,3,FALSE),H5466)","v":"Ontario"}]
[7,"T3 2017","PROPRIÉTAIRES-OCCUPANTS, À L’UNITÉ","Colombie-Britannique",8.6499465733718637,"Avoir propre foncier moyen selon la province","8.6","Colombie-Britannique",{"$f":"IFERROR(VLOOKUP(A5470,Translation!$A:$C,3,FALSE),A5470)","v":7},{"$f":"IFERROR(VLOOKUP(B5470,Translation!$A:$C,3,FALSE),B5470)","v":"T3 2017"},{"$f":"IFERROR(VLOOKUP(C5470,Translation!$A:$C,3,FALSE),C5470)","v":"PROPRIÉTAIRES-OCCUPANTS, À L’UNITÉ"},{"$f":"IFERROR(VLOOKUP(D5470,Translation!$A:$C,3,FALSE),D5470)","v":"Colombie-Britannique"},{"$f":"IFERROR(VLOOKUP(E5470,Translation!$A:$C,3,FALSE),E5470)","v":8.6499465733718637},{"$f":"IFERROR(VLOOKUP(F5470,Translation!$A:$C,3,FALSE),F5470)","v":"Avoir propre foncier moyen selon la province"},{"$f":"IFERROR(VLOOKUP(G5470,Translation!$A:$C,3,FALSE),G5470)","v":"8.6"},{"$f":"IFERROR(VLOOKUP(H5470,Translation!$A:$C,3,FALSE),H5470)","v":"Colombie-Britannique"}]
[7,"Q4 2016","PROPRIÉTAIRES-OCCUPANTS, À L’UNITÉ","Terre-Neuve-et-Labrador",7.9233940053568945,"Avoir propre foncier moyen selon la province","7.9","Terre-Neuve-et-Labrador",{"$f":"IFERROR(VLOOKUP(A5472,Translation!$A:$C,3,FALSE),A5472)","v":7},{"$f":"IFERROR(VLOOKUP(B5472,Translation!$A:$C,3,FALSE),B5472)","v":"Q4 2016"},{"$f":"IFERROR(VLOOKUP(C5472,Translation!$A:$C,3,FALSE),C5472)","v":"PROPRIÉTAIRES-OCCUPANTS, À L’UNITÉ"},{"$f":"IFERROR(VLOOKUP(D5472,Translation!$A:$C,3,FALSE),D5472)","v":"Terre-Neuve-et-Labrador"},{"$f":"IFERROR(VLOOKUP(E5472,Translation!$A:$C,3,FALSE),E5472)","v":7.9233940053568945},{"$f":"IFERROR(VLOOKUP(F5472,Translation!$A:$C,3,FALSE),F5472)","v":"Avoir propre foncier moyen selon la province"},{"$f":"IFERROR(VLOOKUP(G5472,Translation!$A:$C,3,FALSE),G5472)","v":"7.9"},{"$f":"IFERROR(VLOOKUP(H5472,Translation!$A:$C,3,FALSE),H5472)","v":"Terre-Neuve-et-Labrador"}]
[7,"Q4 2016","PROPRIÉTAIRES-OCCUPANTS, À L’UNITÉ","Nouveau-Brunswick",7.7018883281609485,"Avoir propre foncier moyen selon la province","7.7","Nouveau-Brunswick",{"$f":"IFERROR(VLOOKUP(A5475,Translation!$A:$C,3,FALSE),A5475)","v":7},{"$f":"IFERROR(VLOOKUP(B5475,Translation!$A:$C,3,FALSE),B5475)","v":"Q4 2016"},{"$f":"IFERROR(VLOOKUP(C5475,Translation!$A:$C,3,FALSE),C5475)","v":"PROPRIÉTAIRES-OCCUPANTS, À L’UNITÉ"},{"$f":"IFERROR(VLOOKUP(D5475,Translation!$A:$C,3,FALSE),D5475)","v":"Nouveau-Brunswick"},{"$f":"IFERROR(VLOOKUP(E5475,Translation!$A:$C,3,FALSE),E5475)","v":7.7018883281609485},{"$f":"IFERROR(VLOOKUP(F5475,Translation!$A:$C,3,FALSE),F5475)","v":"Avoir propre foncier moyen selon la province"},{"$f":"IFERROR(VLOOKUP(G5475,Translation!$A:$C,3,FALSE),G5475)","v":"7.7"},{"$f":"IFERROR(VLOOKUP(H5475,Translation!$A:$C,3,FALSE),H5475)","v":"Nouveau-Brunswick"}]
[7,"Q4 2016","PROPRIÉTAIRES-OCCUPANTS, À L’UNITÉ","Québec",7.9552870598716652,"Avoir propre foncier moyen selon la province","8.0","Québec",{"$f":"IFERROR(VLOOKUP(A5476,Translation!$A:$C,3,FALSE),A5476)","v":7},{"$f":"IFERROR(VLOOKUP(B5476,Translation!$A:$C,3,FALSE),B5476)","v":"Q4 2016"},{"$f":"IFERROR(VLOOKUP(C5476,Translation!$A:$C,3,FALSE),C5476)","v":"PROPRIÉTAIRES-OCCUPANTS, À L’UNITÉ"},{"$f":"IFERROR(VLOOKUP(D5476,Translation!$A:$C,3,FALSE),D5476)","v":"Québec"},{"$f":"IFERROR(VLOOKUP(E5476,Translation!$A:$C,3,FALSE),E5476)","v":7.9552870598716652},{"$f":"IFERROR(VLOOKUP(F5476,Translation!$A:$C,3,FALSE),F5476)","v":"Avoir propre foncier moyen selon la province"},{"$f":"IFERROR(VLOOKUP(G5476,Translation!$A:$C,3,FALSE),G5476)","v":"8.0"},{"$f":"IFERROR(VLOOKUP(H5476,Translation!$A:$C,3,FALSE),H5476)","v":"Québec"}]
[7,"Q4 2016","PROPRIÉTAIRES-OCCUPANTS, À L’UNITÉ","Alberta",7.1584181161516396,"Avoir propre foncier moyen selon la province","7.2","Alberta",{"$f":"IFERROR(VLOOKUP(A5480,Translation!$A:$C,3,FALSE),A5480)","v":7},{"$f":"IFERROR(VLOOKUP(B5480,Translation!$A:$C,3,FALSE),B5480)","v":"Q4 2016"},{"$f":"IFERROR(VLOOKUP(C5480,Translation!$A:$C,3,FALSE),C5480)","v":"PROPRIÉTAIRES-OCCUPANTS, À L’UNITÉ"},{"$f":"IFERROR(VLOOKUP(D5480,Translation!$A:$C,3,FALSE),D5480)","v":"Alberta"},{"$f":"IFERROR(VLOOKUP(E5480,Translation!$A:$C,3,FALSE),E5480)","v":7.1584181161516396},{"$f":"IFERROR(VLOOKUP(F5480,Translation!$A:$C,3,FALSE),F5480)","v":"Avoir propre foncier moyen selon la province"},{"$f":"IFERROR(VLOOKUP(G5480,Translation!$A:$C,3,FALSE),G5480)","v":"7.2"},{"$f":"IFERROR(VLOOKUP(H5480,Translation!$A:$C,3,FALSE),H5480)","v":"Alberta"}]
[7,"Q4 2016","PROPRIÉTAIRES-OCCUPANTS, À L’UNITÉ","Colombie-Britannique",8.510800291553906,"Avoir propre foncier moyen selon la province","8.5","Colombie-Britannique",{"$f":"IFERROR(VLOOKUP(A5481,Translation!$A:$C,3,FALSE),A5481)","v":7},{"$f":"IFERROR(VLOOKUP(B5481,Translation!$A:$C,3,FALSE),B5481)","v":"Q4 2016"},{"$f":"IFERROR(VLOOKUP(C5481,Translation!$A:$C,3,FALSE),C5481)","v":"PROPRIÉTAIRES-OCCUPANTS, À L’UNITÉ"},{"$f":"IFERROR(VLOOKUP(D5481,Translation!$A:$C,3,FALSE),D5481)","v":"Colombie-Britannique"},{"$f":"IFERROR(VLOOKUP(E5481,Translation!$A:$C,3,FALSE),E5481)","v":8.510800291553906},{"$f":"IFERROR(VLOOKUP(F5481,Translation!$A:$C,3,FALSE),F5481)","v":"Avoir propre foncier moyen selon la province"},{"$f":"IFERROR(VLOOKUP(G5481,Translation!$A:$C,3,FALSE),G5481)","v":"8.5"},{"$f":"IFERROR(VLOOKUP(H5481,Translation!$A:$C,3,FALSE),H5481)","v":"Colombie-Britannique"}]
[7,"T4 2017","PROPRIÉTAIRES-OCCUPANTS, À L’UNITÉ","Terre-Neuve-et-Labrador",6.1793709123660108,"Avoir propre foncier moyen selon la province","6.2","Terre-Neuve-et-Labrador",{"$f":"IFERROR(VLOOKUP(A5483,Translation!$A:$C,3,FALSE),A5483)","v":7},{"$f":"IFERROR(VLOOKUP(B5483,Translation!$A:$C,3,FALSE),B5483)","v":"T4 2017"},{"$f":"IFERROR(VLOOKUP(C5483,Translation!$A:$C,3,FALSE),C5483)","v":"PROPRIÉTAIRES-OCCUPANTS, À L’UNITÉ"},{"$f":"IFERROR(VLOOKUP(D5483,Translation!$A:$C,3,FALSE),D5483)","v":"Terre-Neuve-et-Labrador"},{"$f":"IFERROR(VLOOKUP(E5483,Translation!$A:$C,3,FALSE),E5483)","v":6.1793709123660108},{"$f":"IFERROR(VLOOKUP(F5483,Translation!$A:$C,3,FALSE),F5483)","v":"Avoir propre foncier moyen selon la province"},{"$f":"IFERROR(VLOOKUP(G5483,Translation!$A:$C,3,FALSE),G5483)","v":"6.2"},{"$f":"IFERROR(VLOOKUP(H5483,Translation!$A:$C,3,FALSE),H5483)","v":"Terre-Neuve-et-Labrador"}]
[7,"T4 2017","PROPRIÉTAIRES-OCCUPANTS, À L’UNITÉ","Nouveau-Brunswick",6.3951369299478511,"Avoir propre foncier moyen selon la province","6.4","Nouveau-Brunswick",{"$f":"IFERROR(VLOOKUP(A5486,Translation!$A:$C,3,FALSE),A5486)","v":7},{"$f":"IFERROR(VLOOKUP(B5486,Translation!$A:$C,3,FALSE),B5486)","v":"T4 2017"},{"$f":"IFERROR(VLOOKUP(C5486,Translation!$A:$C,3,FALSE),C5486)","v":"PROPRIÉTAIRES-OCCUPANTS, À L’UNITÉ"},{"$f":"IFERROR(VLOOKUP(D5486,Translation!$A:$C,3,FALSE),D5486)","v":"Nouveau-Brunswick"},{"$f":"IFERROR(VLOOKUP(E5486,Translation!$A:$C,3,FALSE),E5486)","v":6.3951369299478511},{"$f":"IFERROR(VLOOKUP(F5486,Translation!$A:$C,3,FALSE),F5486)","v":"Avoir propre foncier moyen selon la province"},{"$f":"IFERROR(VLOOKUP(G5486,Translation!$A:$C,3,FALSE),G5486)","v":"6.4"},{"$f":"IFERROR(VLOOKUP(H5486,Translation!$A:$C,3,FALSE),H5486)","v":"Nouveau-Brunswick"}]
[7,"T4 2017","PROPRIÉTAIRES-OCCUPANTS, À L’UNITÉ","Manitoba",6.586285878005766,"Avoir propre foncier moyen selon la province","6.6","Manitoba",{"$f":"IFERROR(VLOOKUP(A5489,Translation!$A:$C,3,FALSE),A5489)","v":7},{"$f":"IFERROR(VLOOKUP(B5489,Translation!$A:$C,3,FALSE),B5489)","v":"T4 2017"},{"$f":"IFERROR(VLOOKUP(C5489,Translation!$A:$C,3,FALSE),C5489)","v":"PROPRIÉTAIRES-OCCUPANTS, À L’UNITÉ"},{"$f":"IFERROR(VLOOKUP(D5489,Translation!$A:$C,3,FALSE),D5489)","v":"Manitoba"},{"$f":"IFERROR(VLOOKUP(E5489,Translation!$A:$C,3,FALSE),E5489)","v":6.586285878005766},{"$f":"IFERROR(VLOOKUP(F5489,Translation!$A:$C,3,FALSE),F5489)","v":"Avoir propre foncier moyen selon la province"},{"$f":"IFERROR(VLOOKUP(G5489,Translation!$A:$C,3,FALSE),G5489)","v":"6.6"},{"$f":"IFERROR(VLOOKUP(H5489,Translation!$A:$C,3,FALSE),H5489)","v":"Manitoba"}]
[7,"T4 2017","PROPRIÉTAIRES-OCCUPANTS, À L’UNITÉ","Alberta",7.1947879265535892,"Avoir propre foncier moyen selon la province","7.2","Alberta",{"$f":"IFERROR(VLOOKUP(A5491,Translation!$A:$C,3,FALSE),A5491)","v":7},{"$f":"IFERROR(VLOOKUP(B5491,Translation!$A:$C,3,FALSE),B5491)","v":"T4 2017"},{"$f":"IFERROR(VLOOKUP(C5491,Translation!$A:$C,3,FALSE),C5491)","v":"PROPRIÉTAIRES-OCCUPANTS, À L’UNITÉ"},{"$f":"IFERROR(VLOOKUP(D5491,Translation!$A:$C,3,FALSE),D5491)","v":"Alberta"},{"$f":"IFERROR(VLOOKUP(E5491,Translation!$A:$C,3,FALSE),E5491)","v":7.1947879265535892},{"$f":"IFERROR(VLOOKUP(F5491,Translation!$A:$C,3,FALSE),F5491)","v":"Avoir propre foncier moyen selon la province"},{"$f":"IFERROR(VLOOKUP(G5491,Translation!$A:$C,3,FALSE),G5491)","v":"7.2"},{"$f":"IFERROR(VLOOKUP(H5491,Translation!$A:$C,3,FALSE),H5491)","v":"Alberta"}]
[7,"T1 2017","ASSURANCE DE PORTEFEUILLE","<= 50 %",11.297778884408379,"Prêts hypothécaires assurés au cours de la période selon le rapport prêt-valeur (RPV) établi d’après la valeur initiale de la propriété (%)","11.3"," <= 50 %",{"$f":"IFERROR(VLOOKUP(A5494,Translation!$A:$C,3,FALSE),A5494)","v":7},{"$f":"IFERROR(VLOOKUP(B5494,Translation!$A:$C,3,FALSE),B5494)","v":"T1 2017"},{"$f":"IFERROR(VLOOKUP(C5494,Translation!$A:$C,3,FALSE),C5494)","v":"ASSURANCE DE PORTEFEUILLE"},{"$f":"IFERROR(VLOOKUP(D5494,Translation!$A:$C,3,FALSE),D5494)","v":"<= 50 %"},{"$f":"IFERROR(VLOOKUP(E5494,Translation!$A:$C,3,FALSE),E5494)","v":11.297778884408379},{"$f":"IFERROR(VLOOKUP(F5494,Translation!$A:$C,3,FALSE),F5494)","v":"Prêts hypothécaires assurés au cours de la période selon le rapport prêt-valeur (RPV) établi d’après la valeur initiale de la propriété (%)"},{"$f":"IFERROR(VLOOKUP(G5494,Translation!$A:$C,3,FALSE),G5494)","v":"11.3"},{"$f":"IFERROR(VLOOKUP(H5494,Translation!$A:$C,3,FALSE),H5494)","v":" <= 50 %"}]
[7,"T2 2017","ASSURANCE DE PORTEFEUILLE","<= 50 %",15.984999414981052,"Prêts hypothécaires assurés au cours de la période selon le rapport prêt-valeur (RPV) établi d’après la valeur initiale de la propriété (%)","16.0"," <= 50 %",{"$f":"IFERROR(VLOOKUP(A5497,Translation!$A:$C,3,FALSE),A5497)","v":7},{"$f":"IFERROR(VLOOKUP(B5497,Translation!$A:$C,3,FALSE),B5497)","v":"T2 2017"},{"$f":"IFERROR(VLOOKUP(C5497,Translation!$A:$C,3,FALSE),C5497)","v":"ASSURANCE DE PORTEFEUILLE"},{"$f":"IFERROR(VLOOKUP(D5497,Translation!$A:$C,3,FALSE),D5497)","v":"<= 50 %"},{"$f":"IFERROR(VLOOKUP(E5497,Translation!$A:$C,3,FALSE),E5497)","v":15.984999414981052},{"$f":"IFERROR(VLOOKUP(F5497,Translation!$A:$C,3,FALSE),F5497)","v":"Prêts hypothécaires assurés au cours de la période selon le rapport prêt-valeur (RPV) établi d’après la valeur initiale de la propriété (%)"},{"$f":"IFERROR(VLOOKUP(G5497,Translation!$A:$C,3,FALSE),G5497)","v":"16.0"},{"$f":"IFERROR(VLOOKUP(H5497,Translation!$A:$C,3,FALSE),H5497)","v":" <= 50 %"}]
[7,"T3 2017","ASSURANCE DE PORTEFEUILLE","<= 50 %",9.7799401470601897,"Prêts hypothécaires assurés au cours de la période selon le rapport prêt-valeur (RPV) établi d’après la valeur initiale de la propriété (%)","9.8"," <= 50 %",{"$f":"IFERROR(VLOOKUP(A5499,Translation!$A:$C,3,FALSE),A5499)","v":7},{"$f":"IFERROR(VLOOKUP(B5499,Translation!$A:$C,3,FALSE),B5499)","v":"T3 2017"},{"$f":"IFERROR(VLOOKUP(C5499,Translation!$A:$C,3,FALSE),C5499)","v":"ASSURANCE DE PORTEFEUILLE"},{"$f":"IFERROR(VLOOKUP(D5499,Translation!$A:$C,3,FALSE),D5499)","v":"<= 50 %"},{"$f":"IFERROR(VLOOKUP(E5499,Translation!$A:$C,3,FALSE),E5499)","v":9.7799401470601897},{"$f":"IFERROR(VLOOKUP(F5499,Translation!$A:$C,3,FALSE),F5499)","v":"Prêts hypothécaires assurés au cours de la période selon le rapport prêt-valeur (RPV) établi d’après la valeur initiale de la propriété (%)"},{"$f":"IFERROR(VLOOKUP(G5499,Translation!$A:$C,3,FALSE),G5499)","v":"9.8"},{"$f":"IFERROR(VLOOKUP(H5499,Translation!$A:$C,3,FALSE),H5499)","v":" <= 50 %"}]
[7,"Q4 2016","ASSURANCE DE PORTEFEUILLE","<= 50 %",14.05497414120239,"Prêts hypothécaires assurés au cours de la période selon le rapport prêt-valeur (RPV) établi d’après la valeur initiale de la propriété (%)","14.1"," <= 50 %",{"$f":"IFERROR(VLOOKUP(A5500,Translation!$A:$C,3,FALSE),A5500)","v":7},{"$f":"IFERROR(VLOOKUP(B5500,Translation!$A:$C,3,FALSE),B5500)","v":"Q4 2016"},{"$f":"IFERROR(VLOOKUP(C5500,Translation!$A:$C,3,FALSE),C5500)","v":"ASSURANCE DE PORTEFEUILLE"},{"$f":"IFERROR(VLOOKUP(D5500,Translation!$A:$C,3,FALSE),D5500)","v":"<= 50 %"},{"$f":"IFERROR(VLOOKUP(E5500,Translation!$A:$C,3,FALSE),E5500)","v":14.05497414120239},{"$f":"IFERROR(VLOOKUP(F5500,Translation!$A:$C,3,FALSE),F5500)","v":"Prêts hypothécaires assurés au cours de la période selon le rapport prêt-valeur (RPV) établi d’après la valeur initiale de la propriété (%)"},{"$f":"IFERROR(VLOOKUP(G5500,Translation!$A:$C,3,FALSE),G5500)","v":"14.1"},{"$f":"IFERROR(VLOOKUP(H5500,Translation!$A:$C,3,FALSE),H5500)","v":" <= 50 %"}]
[7,"T1 2017","ASSURANCE DE PORTEFEUILLE","> 50 % <= 55 %",4.3372009677306593,"Prêts hypothécaires assurés au cours de la période selon le rapport prêt-valeur (RPV) établi d’après la valeur initiale de la propriété (%)","4.3"," > 50 % <= 55 %",{"$f":"IFERROR(VLOOKUP(A5502,Translation!$A:$C,3,FALSE),A5502)","v":7},{"$f":"IFERROR(VLOOKUP(B5502,Translation!$A:$C,3,FALSE),B5502)","v":"T1 2017"},{"$f":"IFERROR(VLOOKUP(C5502,Translation!$A:$C,3,FALSE),C5502)","v":"ASSURANCE DE PORTEFEUILLE"},{"$f":"IFERROR(VLOOKUP(D5502,Translation!$A:$C,3,FALSE),D5502)","v":"> 50 % <= 55 %"},{"$f":"IFERROR(VLOOKUP(E5502,Translation!$A:$C,3,FALSE),E5502)","v":4.3372009677306593},{"$f":"IFERROR(VLOOKUP(F5502,Translation!$A:$C,3,FALSE),F5502)","v":"Prêts hypothécaires assurés au cours de la période selon le rapport prêt-valeur (RPV) établi d’après la valeur initiale de la propriété (%)"},{"$f":"IFERROR(VLOOKUP(G5502,Translation!$A:$C,3,FALSE),G5502)","v":"4.3"},{"$f":"IFERROR(VLOOKUP(H5502,Translation!$A:$C,3,FALSE),H5502)","v":" > 50 % <= 55 %"}]
[7,"T2 2017","ASSURANCE DE PORTEFEUILLE","> 50 % <= 55 %",5.1312868717903406,"Prêts hypothécaires assurés au cours de la période selon le rapport prêt-valeur (RPV) établi d’après la valeur initiale de la propriété (%)","5.1"," > 50 % <= 55 %",{"$f":"IFERROR(VLOOKUP(A5505,Translation!$A:$C,3,FALSE),A5505)","v":7},{"$f":"IFERROR(VLOOKUP(B5505,Translation!$A:$C,3,FALSE),B5505)","v":"T2 2017"},{"$f":"IFERROR(VLOOKUP(C5505,Translation!$A:$C,3,FALSE),C5505)","v":"ASSURANCE DE PORTEFEUILLE"},{"$f":"IFERROR(VLOOKUP(D5505,Translation!$A:$C,3,FALSE),D5505)","v":"> 50 % <= 55 %"},{"$f":"IFERROR(VLOOKUP(E5505,Translation!$A:$C,3,FALSE),E5505)","v":5.1312868717903406},{"$f":"IFERROR(VLOOKUP(F5505,Translation!$A:$C,3,FALSE),F5505)","v":"Prêts hypothécaires assurés au cours de la période selon le rapport prêt-valeur (RPV) établi d’après la valeur initiale de la propriété (%)"},{"$f":"IFERROR(VLOOKUP(G5505,Translation!$A:$C,3,FALSE),G5505)","v":"5.1"},{"$f":"IFERROR(VLOOKUP(H5505,Translation!$A:$C,3,FALSE),H5505)","v":" > 50 % <= 55 %"}]
[7,"Q4 2016","ASSURANCE DE PORTEFEUILLE","> 50 % <= 55 %",4.9906379982878004,"Prêts hypothécaires assurés au cours de la période selon le rapport prêt-valeur (RPV) établi d’après la valeur initiale de la propriété (%)","5.0"," > 50 % <= 55 %",{"$f":"IFERROR(VLOOKUP(A5508,Translation!$A:$C,3,FALSE),A5508)","v":7},{"$f":"IFERROR(VLOOKUP(B5508,Translation!$A:$C,3,FALSE),B5508)","v":"Q4 2016"},{"$f":"IFERROR(VLOOKUP(C5508,Translation!$A:$C,3,FALSE),C5508)","v":"ASSURANCE DE PORTEFEUILLE"},{"$f":"IFERROR(VLOOKUP(D5508,Translation!$A:$C,3,FALSE),D5508)","v":"> 50 % <= 55 %"},{"$f":"IFERROR(VLOOKUP(E5508,Translation!$A:$C,3,FALSE),E5508)","v":4.9906379982878004},{"$f":"IFERROR(VLOOKUP(F5508,Translation!$A:$C,3,FALSE),F5508)","v":"Prêts hypothécaires assurés au cours de la période selon le rapport prêt-valeur (RPV) établi d’après la valeur initiale de la propriété (%)"},{"$f":"IFERROR(VLOOKUP(G5508,Translation!$A:$C,3,FALSE),G5508)","v":"5.0"},{"$f":"IFERROR(VLOOKUP(H5508,Translation!$A:$C,3,FALSE),H5508)","v":" > 50 % <= 55 %"}]
[7,"T1 2017","ASSURANCE DE PORTEFEUILLE","> 55 % <= 60 %",5.9114562941099313,"Prêts hypothécaires assurés au cours de la période selon le rapport prêt-valeur (RPV) établi d’après la valeur initiale de la propriété (%)","5.9"," > 55 % <= 60 %",{"$f":"IFERROR(VLOOKUP(A5510,Translation!$A:$C,3,FALSE),A5510)","v":7},{"$f":"IFERROR(VLOOKUP(B5510,Translation!$A:$C,3,FALSE),B5510)","v":"T1 2017"},{"$f":"IFERROR(VLOOKUP(C5510,Translation!$A:$C,3,FALSE),C5510)","v":"ASSURANCE DE PORTEFEUILLE"},{"$f":"IFERROR(VLOOKUP(D5510,Translation!$A:$C,3,FALSE),D5510)","v":"> 55 % <= 60 %"},{"$f":"IFERROR(VLOOKUP(E5510,Translation!$A:$C,3,FALSE),E5510)","v":5.9114562941099313},{"$f":"IFERROR(VLOOKUP(F5510,Translation!$A:$C,3,FALSE),F5510)","v":"Prêts hypothécaires assurés au cours de la période selon le rapport prêt-valeur (RPV) établi d’après la valeur initiale de la propriété (%)"},{"$f":"IFERROR(VLOOKUP(G5510,Translation!$A:$C,3,FALSE),G5510)","v":"5.9"},{"$f":"IFERROR(VLOOKUP(H5510,Translation!$A:$C,3,FALSE),H5510)","v":" > 55 % <= 60 %"}]
[7,"T2 2017","ASSURANCE DE PORTEFEUILLE","> 55 % <= 60 %",7.3824711560997489,"Prêts hypothécaires assurés au cours de la période selon le rapport prêt-valeur (RPV) établi d’après la valeur initiale de la propriété (%)","7.4"," > 55 % <= 60 %",{"$f":"IFERROR(VLOOKUP(A5513,Translation!$A:$C,3,FALSE),A5513)","v":7},{"$f":"IFERROR(VLOOKUP(B5513,Translation!$A:$C,3,FALSE),B5513)","v":"T2 2017"},{"$f":"IFERROR(VLOOKUP(C5513,Translation!$A:$C,3,FALSE),C5513)","v":"ASSURANCE DE PORTEFEUILLE"},{"$f":"IFERROR(VLOOKUP(D5513,Translation!$A:$C,3,FALSE),D5513)","v":"> 55 % <= 60 %"},{"$f":"IFERROR(VLOOKUP(E5513,Translation!$A:$C,3,FALSE),E5513)","v":7.3824711560997489},{"$f":"IFERROR(VLOOKUP(F5513,Translation!$A:$C,3,FALSE),F5513)","v":"Prêts hypothécaires assurés au cours de la période selon le rapport prêt-valeur (RPV) établi d’après la valeur initiale de la propriété (%)"},{"$f":"IFERROR(VLOOKUP(G5513,Translation!$A:$C,3,FALSE),G5513)","v":"7.4"},{"$f":"IFERROR(VLOOKUP(H5513,Translation!$A:$C,3,FALSE),H5513)","v":" > 55 % <= 60 %"}]
[7,"Q4 2016","ASSURANCE DE PORTEFEUILLE","> 55 % <= 60 %",6.9474618546930964,"Prêts hypothécaires assurés au cours de la période selon le rapport prêt-valeur (RPV) établi d’après la valeur initiale de la propriété (%)","6.9"," > 55 % <= 60 %",{"$f":"IFERROR(VLOOKUP(A5516,Translation!$A:$C,3,FALSE),A5516)","v":7},{"$f":"IFERROR(VLOOKUP(B5516,Translation!$A:$C,3,FALSE),B5516)","v":"Q4 2016"},{"$f":"IFERROR(VLOOKUP(C5516,Translation!$A:$C,3,FALSE),C5516)","v":"ASSURANCE DE PORTEFEUILLE"},{"$f":"IFERROR(VLOOKUP(D5516,Translation!$A:$C,3,FALSE),D5516)","v":"> 55 % <= 60 %"},{"$f":"IFERROR(VLOOKUP(E5516,Translation!$A:$C,3,FALSE),E5516)","v":6.9474618546930964},{"$f":"IFERROR(VLOOKUP(F5516,Translation!$A:$C,3,FALSE),F5516)","v":"Prêts hypothécaires assurés au cours de la période selon le rapport prêt-valeur (RPV) établi d’après la valeur initiale de la propriété (%)"},{"$f":"IFERROR(VLOOKUP(G5516,Translation!$A:$C,3,FALSE),G5516)","v":"6.9"},{"$f":"IFERROR(VLOOKUP(H5516,Translation!$A:$C,3,FALSE),H5516)","v":" > 55 % <= 60 %"}]
[7,"T1 2017","ASSURANCE DE PORTEFEUILLE","> 60 % <= 65 %",8.2862607708756713,"Prêts hypothécaires assurés au cours de la période selon le rapport prêt-valeur (RPV) établi d’après la valeur initiale de la propriété (%)","8.3"," > 60 % <= 65 %",{"$f":"IFERROR(VLOOKUP(A5518,Translation!$A:$C,3,FALSE),A5518)","v":7},{"$f":"IFERROR(VLOOKUP(B5518,Translation!$A:$C,3,FALSE),B5518)","v":"T1 2017"},{"$f":"IFERROR(VLOOKUP(C5518,Translation!$A:$C,3,FALSE),C5518)","v":"ASSURANCE DE PORTEFEUILLE"},{"$f":"IFERROR(VLOOKUP(D5518,Translation!$A:$C,3,FALSE),D5518)","v":"> 60 % <= 65 %"},{"$f":"IFERROR(VLOOKUP(E5518,Translation!$A:$C,3,FALSE),E5518)","v":8.2862607708756713},{"$f":"IFERROR(VLOOKUP(F5518,Translation!$A:$C,3,FALSE),F5518)","v":"Prêts hypothécaires assurés au cours de la période selon le rapport prêt-valeur (RPV) établi d’après la valeur initiale de la propriété (%)"},{"$f":"IFERROR(VLOOKUP(G5518,Translation!$A:$C,3,FALSE),G5518)","v":"8.3"},{"$f":"IFERROR(VLOOKUP(H5518,Translation!$A:$C,3,FALSE),H5518)","v":" > 60 % <= 65 %"}]
[7,"T1 2018","ASSURANCE DE PORTEFEUILLE","> 60 % <= 65 %",10.490840701185144,"Prêts hypothécaires assurés au cours de la période selon le rapport prêt-valeur (RPV) établi d’après la valeur initiale de la propriété (%)","10.5"," > 60 % <= 65 %",{"$f":"IFERROR(VLOOKUP(A5519,Translation!$A:$C,3,FALSE),A5519)","v":7},{"$f":"IFERROR(VLOOKUP(B5519,Translation!$A:$C,3,FALSE),B5519)","v":"T1 2018"},{"$f":"IFERROR(VLOOKUP(C5519,Translation!$A:$C,3,FALSE),C5519)","v":"ASSURANCE DE PORTEFEUILLE"},{"$f":"IFERROR(VLOOKUP(D5519,Translation!$A:$C,3,FALSE),D5519)","v":"> 60 % <= 65 %"},{"$f":"IFERROR(VLOOKUP(E5519,Translation!$A:$C,3,FALSE),E5519)","v":10.490840701185144},{"$f":"IFERROR(VLOOKUP(F5519,Translation!$A:$C,3,FALSE),F5519)","v":"Prêts hypothécaires assurés au cours de la période selon le rapport prêt-valeur (RPV) établi d’après la valeur initiale de la propriété (%)"},{"$f":"IFERROR(VLOOKUP(G5519,Translation!$A:$C,3,FALSE),G5519)","v":"10.5"},{"$f":"IFERROR(VLOOKUP(H5519,Translation!$A:$C,3,FALSE),H5519)","v":" > 60 % <= 65 %"}]
[7,"T2 2017","ASSURANCE DE PORTEFEUILLE","> 60 % <= 65 %",10.476550068841002,"Prêts hypothécaires assurés au cours de la période selon le rapport prêt-valeur (RPV) établi d’après la valeur initiale de la propriété (%)","10.5"," > 60 % <= 65 %",{"$f":"IFERROR(VLOOKUP(A5521,Translation!$A:$C,3,FALSE),A5521)","v":7},{"$f":"IFERROR(VLOOKUP(B5521,Translation!$A:$C,3,FALSE),B5521)","v":"T2 2017"},{"$f":"IFERROR(VLOOKUP(C5521,Translation!$A:$C,3,FALSE),C5521)","v":"ASSURANCE DE PORTEFEUILLE"},{"$f":"IFERROR(VLOOKUP(D5521,Translation!$A:$C,3,FALSE),D5521)","v":"> 60 % <= 65 %"},{"$f":"IFERROR(VLOOKUP(E5521,Translation!$A:$C,3,FALSE),E5521)","v":10.476550068841002},{"$f":"IFERROR(VLOOKUP(F5521,Translation!$A:$C,3,FALSE),F5521)","v":"Prêts hypothécaires assurés au cours de la période selon le rapport prêt-valeur (RPV) établi d’après la valeur initiale de la propriété (%)"},{"$f":"IFERROR(VLOOKUP(G5521,Translation!$A:$C,3,FALSE),G5521)","v":"10.5"},{"$f":"IFERROR(VLOOKUP(H5521,Translation!$A:$C,3,FALSE),H5521)","v":" > 60 % <= 65 %"}]
[7,"Q4 2016","ASSURANCE DE PORTEFEUILLE","> 60 % <= 65 %",9.2915827731991545,"Prêts hypothécaires assurés au cours de la période selon le rapport prêt-valeur (RPV) établi d’après la valeur initiale de la propriété (%)","9.3"," > 60 % <= 65 %",{"$f":"IFERROR(VLOOKUP(A5524,Translation!$A:$C,3,FALSE),A5524)","v":7},{"$f":"IFERROR(VLOOKUP(B5524,Translation!$A:$C,3,FALSE),B5524)","v":"Q4 2016"},{"$f":"IFERROR(VLOOKUP(C5524,Translation!$A:$C,3,FALSE),C5524)","v":"ASSURANCE DE PORTEFEUILLE"},{"$f":"IFERROR(VLOOKUP(D5524,Translation!$A:$C,3,FALSE),D5524)","v":"> 60 % <= 65 %"},{"$f":"IFERROR(VLOOKUP(E5524,Translation!$A:$C,3,FALSE),E5524)","v":9.2915827731991545},{"$f":"IFERROR(VLOOKUP(F5524,Translation!$A:$C,3,FALSE),F5524)","v":"Prêts hypothécaires assurés au cours de la période selon le rapport prêt-valeur (RPV) établi d’après la valeur initiale de la propriété (%)"},{"$f":"IFERROR(VLOOKUP(G5524,Translation!$A:$C,3,FALSE),G5524)","v":"9.3"},{"$f":"IFERROR(VLOOKUP(H5524,Translation!$A:$C,3,FALSE),H5524)","v":" > 60 % <= 65 %"}]
[7,"T1 2018","ASSURANCE DE PORTEFEUILLE","> 65 % <= 70 %",8.1882227420295717,"Prêts hypothécaires assurés au cours de la période selon le rapport prêt-valeur (RPV) établi d’après la valeur initiale de la propriété (%)","8.2"," > 65 % <= 70 %",{"$f":"IFERROR(VLOOKUP(A5527,Translation!$A:$C,3,FALSE),A5527)","v":7},{"$f":"IFERROR(VLOOKUP(B5527,Translation!$A:$C,3,FALSE),B5527)","v":"T1 2018"},{"$f":"IFERROR(VLOOKUP(C5527,Translation!$A:$C,3,FALSE),C5527)","v":"ASSURANCE DE PORTEFEUILLE"},{"$f":"IFERROR(VLOOKUP(D5527,Translation!$A:$C,3,FALSE),D5527)","v":"> 65 % <= 70 %"},{"$f":"IFERROR(VLOOKUP(E5527,Translation!$A:$C,3,FALSE),E5527)","v":8.1882227420295717},{"$f":"IFERROR(VLOOKUP(F5527,Translation!$A:$C,3,FALSE),F5527)","v":"Prêts hypothécaires assurés au cours de la période selon le rapport prêt-valeur (RPV) établi d’après la valeur initiale de la propriété (%)"},{"$f":"IFERROR(VLOOKUP(G5527,Translation!$A:$C,3,FALSE),G5527)","v":"8.2"},{"$f":"IFERROR(VLOOKUP(H5527,Translation!$A:$C,3,FALSE),H5527)","v":" > 65 % <= 70 %"}]
[7,"T2 2017","ASSURANCE DE PORTEFEUILLE","> 65 % <= 70 %",14.951863518012669,"Prêts hypothécaires assurés au cours de la période selon le rapport prêt-valeur (RPV) établi d’après la valeur initiale de la propriété (%)","15.0"," > 65 % <= 70 %",{"$f":"IFERROR(VLOOKUP(A5529,Translation!$A:$C,3,FALSE),A5529)","v":7},{"$f":"IFERROR(VLOOKUP(B5529,Translation!$A:$C,3,FALSE),B5529)","v":"T2 2017"},{"$f":"IFERROR(VLOOKUP(C5529,Translation!$A:$C,3,FALSE),C5529)","v":"ASSURANCE DE PORTEFEUILLE"},{"$f":"IFERROR(VLOOKUP(D5529,Translation!$A:$C,3,FALSE),D5529)","v":"> 65 % <= 70 %"},{"$f":"IFERROR(VLOOKUP(E5529,Translation!$A:$C,3,FALSE),E5529)","v":14.951863518012669},{"$f":"IFERROR(VLOOKUP(F5529,Translation!$A:$C,3,FALSE),F5529)","v":"Prêts hypothécaires assurés au cours de la période selon le rapport prêt-valeur (RPV) établi d’après la valeur initiale de la propriété (%)"},{"$f":"IFERROR(VLOOKUP(G5529,Translation!$A:$C,3,FALSE),G5529)","v":"15.0"},{"$f":"IFERROR(VLOOKUP(H5529,Translation!$A:$C,3,FALSE),H5529)","v":" > 65 % <= 70 %"}]
[7,"Q4 2016","ASSURANCE DE PORTEFEUILLE","> 65 % <= 70 %",10.436982974108057,"Prêts hypothécaires assurés au cours de la période selon le rapport prêt-valeur (RPV) établi d’après la valeur initiale de la propriété (%)","10.4"," > 65 % <= 70 %",{"$f":"IFERROR(VLOOKUP(A5532,Translation!$A:$C,3,FALSE),A5532)","v":7},{"$f":"IFERROR(VLOOKUP(B5532,Translation!$A:$C,3,FALSE),B5532)","v":"Q4 2016"},{"$f":"IFERROR(VLOOKUP(C5532,Translation!$A:$C,3,FALSE),C5532)","v":"ASSURANCE DE PORTEFEUILLE"},{"$f":"IFERROR(VLOOKUP(D5532,Translation!$A:$C,3,FALSE),D5532)","v":"> 65 % <= 70 %"},{"$f":"IFERROR(VLOOKUP(E5532,Translation!$A:$C,3,FALSE),E5532)","v":10.436982974108057},{"$f":"IFERROR(VLOOKUP(F5532,Translation!$A:$C,3,FALSE),F5532)","v":"Prêts hypothécaires assurés au cours de la période selon le rapport prêt-valeur (RPV) établi d’après la valeur initiale de la propriété (%)"},{"$f":"IFERROR(VLOOKUP(G5532,Translation!$A:$C,3,FALSE),G5532)","v":"10.4"},{"$f":"IFERROR(VLOOKUP(H5532,Translation!$A:$C,3,FALSE),H5532)","v":" > 65 % <= 70 %"}]
[7,"T1 2018","ASSURANCE DE PORTEFEUILLE","> 70 % <= 75 %",9.2138647274062162,"Prêts hypothécaires assurés au cours de la période selon le rapport prêt-valeur (RPV) établi d’après la valeur initiale de la propriété (%)","9.2"," > 70 % <= 75 %",{"$f":"IFERROR(VLOOKUP(A5535,Translation!$A:$C,3,FALSE),A5535)","v":7},{"$f":"IFERROR(VLOOKUP(B5535,Translation!$A:$C,3,FALSE),B5535)","v":"T1 2018"},{"$f":"IFERROR(VLOOKUP(C5535,Translation!$A:$C,3,FALSE),C5535)","v":"ASSURANCE DE PORTEFEUILLE"},{"$f":"IFERROR(VLOOKUP(D5535,Translation!$A:$C,3,FALSE),D5535)","v":"> 70 % <= 75 %"},{"$f":"IFERROR(VLOOKUP(E5535,Translation!$A:$C,3,FALSE),E5535)","v":9.2138647274062162},{"$f":"IFERROR(VLOOKUP(F5535,Translation!$A:$C,3,FALSE),F5535)","v":"Prêts hypothécaires assurés au cours de la période selon le rapport prêt-valeur (RPV) établi d’après la valeur initiale de la propriété (%)"},{"$f":"IFERROR(VLOOKUP(G5535,Translation!$A:$C,3,FALSE),G5535)","v":"9.2"},{"$f":"IFERROR(VLOOKUP(H5535,Translation!$A:$C,3,FALSE),H5535)","v":" > 70 % <= 75 %"}]
[7,"T2 2017","ASSURANCE DE PORTEFEUILLE","> 70 % <= 75 %",22.289816231674376,"Prêts hypothécaires assurés au cours de la période selon le rapport prêt-valeur (RPV) établi d’après la valeur initiale de la propriété (%)","22.3"," > 70 % <= 75 %",{"$f":"IFERROR(VLOOKUP(A5537,Translation!$A:$C,3,FALSE),A5537)","v":7},{"$f":"IFERROR(VLOOKUP(B5537,Translation!$A:$C,3,FALSE),B5537)","v":"T2 2017"},{"$f":"IFERROR(VLOOKUP(C5537,Translation!$A:$C,3,FALSE),C5537)","v":"ASSURANCE DE PORTEFEUILLE"},{"$f":"IFERROR(VLOOKUP(D5537,Translation!$A:$C,3,FALSE),D5537)","v":"> 70 % <= 75 %"},{"$f":"IFERROR(VLOOKUP(E5537,Translation!$A:$C,3,FALSE),E5537)","v":22.289816231674376},{"$f":"IFERROR(VLOOKUP(F5537,Translation!$A:$C,3,FALSE),F5537)","v":"Prêts hypothécaires assurés au cours de la période selon le rapport prêt-valeur (RPV) établi d’après la valeur initiale de la propriété (%)"},{"$f":"IFERROR(VLOOKUP(G5537,Translation!$A:$C,3,FALSE),G5537)","v":"22.3"},{"$f":"IFERROR(VLOOKUP(H5537,Translation!$A:$C,3,FALSE),H5537)","v":" > 70 % <= 75 %"}]
[7,"Q3 2016","ASSURANCE DE PORTEFEUILLE","> 70 % <= 75 %",13.699664841066916,"Prêts hypothécaires assurés au cours de la période selon le rapport prêt-valeur (RPV) établi d’après la valeur initiale de la propriété (%)","13.7"," > 70 % <= 75 %",{"$f":"IFERROR(VLOOKUP(A5538,Translation!$A:$C,3,FALSE),A5538)","v":7},{"$f":"IFERROR(VLOOKUP(B5538,Translation!$A:$C,3,FALSE),B5538)","v":"Q3 2016"},{"$f":"IFERROR(VLOOKUP(C5538,Translation!$A:$C,3,FALSE),C5538)","v":"ASSURANCE DE PORTEFEUILLE"},{"$f":"IFERROR(VLOOKUP(D5538,Translation!$A:$C,3,FALSE),D5538)","v":"> 70 % <= 75 %"},{"$f":"IFERROR(VLOOKUP(E5538,Translation!$A:$C,3,FALSE),E5538)","v":13.699664841066916},{"$f":"IFERROR(VLOOKUP(F5538,Translation!$A:$C,3,FALSE),F5538)","v":"Prêts hypothécaires assurés au cours de la période selon le rapport prêt-valeur (RPV) établi d’après la valeur initiale de la propriété (%)"},{"$f":"IFERROR(VLOOKUP(G5538,Translation!$A:$C,3,FALSE),G5538)","v":"13.7"},{"$f":"IFERROR(VLOOKUP(H5538,Translation!$A:$C,3,FALSE),H5538)","v":" > 70 % <= 75 %"}]
[7,"T1 2017","ASSURANCE DE PORTEFEUILLE","> 75 % <= 80 %",47.915100356462176,"Prêts hypothécaires assurés au cours de la période selon le rapport prêt-valeur (RPV) établi d’après la valeur initiale de la propriété (%)","47.9"," > 75 % <= 80 %",{"$f":"IFERROR(VLOOKUP(A5542,Translation!$A:$C,3,FALSE),A5542)","v":7},{"$f":"IFERROR(VLOOKUP(B5542,Translation!$A:$C,3,FALSE),B5542)","v":"T1 2017"},{"$f":"IFERROR(VLOOKUP(C5542,Translation!$A:$C,3,FALSE),C5542)","v":"ASSURANCE DE PORTEFEUILLE"},{"$f":"IFERROR(VLOOKUP(D5542,Translation!$A:$C,3,FALSE),D5542)","v":"> 75 % <= 80 %"},{"$f":"IFERROR(VLOOKUP(E5542,Translation!$A:$C,3,FALSE),E5542)","v":47.915100356462176},{"$f":"IFERROR(VLOOKUP(F5542,Translation!$A:$C,3,FALSE),F5542)","v":"Prêts hypothécaires assurés au cours de la période selon le rapport prêt-valeur (RPV) établi d’après la valeur initiale de la propriété (%)"},{"$f":"IFERROR(VLOOKUP(G5542,Translation!$A:$C,3,FALSE),G5542)","v":"47.9"},{"$f":"IFERROR(VLOOKUP(H5542,Translation!$A:$C,3,FALSE),H5542)","v":" > 75 % <= 80 %"}]
[7,"T1 2018","ASSURANCE DE PORTEFEUILLE","> 75 % <= 80 %",21.408070421711678,"Prêts hypothécaires assurés au cours de la période selon le rapport prêt-valeur (RPV) établi d’après la valeur initiale de la propriété (%)","21.4"," > 75 % <= 80 %",{"$f":"IFERROR(VLOOKUP(A5543,Translation!$A:$C,3,FALSE),A5543)","v":7},{"$f":"IFERROR(VLOOKUP(B5543,Translation!$A:$C,3,FALSE),B5543)","v":"T1 2018"},{"$f":"IFERROR(VLOOKUP(C5543,Translation!$A:$C,3,FALSE),C5543)","v":"ASSURANCE DE PORTEFEUILLE"},{"$f":"IFERROR(VLOOKUP(D5543,Translation!$A:$C,3,FALSE),D5543)","v":"> 75 % <= 80 %"},{"$f":"IFERROR(VLOOKUP(E5543,Translation!$A:$C,3,FALSE),E5543)","v":21.408070421711678},{"$f":"IFERROR(VLOOKUP(F5543,Translation!$A:$C,3,FALSE),F5543)","v":"Prêts hypothécaires assurés au cours de la période selon le rapport prêt-valeur (RPV) établi d’après la valeur initiale de la propriété (%)"},{"$f":"IFERROR(VLOOKUP(G5543,Translation!$A:$C,3,FALSE),G5543)","v":"21.4"},{"$f":"IFERROR(VLOOKUP(H5543,Translation!$A:$C,3,FALSE),H5543)","v":" > 75 % <= 80 %"}]
[7,"Q3 2016","ASSURANCE DE PORTEFEUILLE","> 75 % <= 80 %",54.813291872143886,"Prêts hypothécaires assurés au cours de la période selon le rapport prêt-valeur (RPV) établi d’après la valeur initiale de la propriété (%)","54.8"," > 75 % <= 80 %",{"$f":"IFERROR(VLOOKUP(A5546,Translation!$A:$C,3,FALSE),A5546)","v":7},{"$f":"IFERROR(VLOOKUP(B5546,Translation!$A:$C,3,FALSE),B5546)","v":"Q3 2016"},{"$f":"IFERROR(VLOOKUP(C5546,Translation!$A:$C,3,FALSE),C5546)","v":"ASSURANCE DE PORTEFEUILLE"},{"$f":"IFERROR(VLOOKUP(D5546,Translation!$A:$C,3,FALSE),D5546)","v":"> 75 % <= 80 %"},{"$f":"IFERROR(VLOOKUP(E5546,Translation!$A:$C,3,FALSE),E5546)","v":54.813291872143886},{"$f":"IFERROR(VLOOKUP(F5546,Translation!$A:$C,3,FALSE),F5546)","v":"Prêts hypothécaires assurés au cours de la période selon le rapport prêt-valeur (RPV) établi d’après la valeur initiale de la propriété (%)"},{"$f":"IFERROR(VLOOKUP(G5546,Translation!$A:$C,3,FALSE),G5546)","v":"54.8"},{"$f":"IFERROR(VLOOKUP(H5546,Translation!$A:$C,3,FALSE),H5546)","v":" > 75 % <= 80 %"}]
[7,"Q4 2016","ASSURANCE DE PORTEFEUILLE","> 75 % <= 80 %",39.281586613031664,"Prêts hypothécaires assurés au cours de la période selon le rapport prêt-valeur (RPV) établi d’après la valeur initiale de la propriété (%)","39.3"," > 75 % <= 80 %",{"$f":"IFERROR(VLOOKUP(A5548,Translation!$A:$C,3,FALSE),A5548)","v":7},{"$f":"IFERROR(VLOOKUP(B5548,Translation!$A:$C,3,FALSE),B5548)","v":"Q4 2016"},{"$f":"IFERROR(VLOOKUP(C5548,Translation!$A:$C,3,FALSE),C5548)","v":"ASSURANCE DE PORTEFEUILLE"},{"$f":"IFERROR(VLOOKUP(D5548,Translation!$A:$C,3,FALSE),D5548)","v":"> 75 % <= 80 %"},{"$f":"IFERROR(VLOOKUP(E5548,Translation!$A:$C,3,FALSE),E5548)","v":39.281586613031664},{"$f":"IFERROR(VLOOKUP(F5548,Translation!$A:$C,3,FALSE),F5548)","v":"Prêts hypothécaires assurés au cours de la période selon le rapport prêt-valeur (RPV) établi d’après la valeur initiale de la propriété (%)"},{"$f":"IFERROR(VLOOKUP(G5548,Translation!$A:$C,3,FALSE),G5548)","v":"39.3"},{"$f":"IFERROR(VLOOKUP(H5548,Translation!$A:$C,3,FALSE),H5548)","v":" > 75 % <= 80 %"}]
[7,"Q2 2016","ASSURANCE DE PORTEFEUILLE","Rapport prêt-valeur moyen ",70.960656301917993,"Prêts hypothécaires assurés au cours de la période selon le rapport prêt-valeur (RPV) établi d’après la valeur initiale de la propriété (%)","71.0","Rapport prêt-valeur moyen ",{"$f":"IFERROR(VLOOKUP(A5552,Translation!$A:$C,3,FALSE),A5552)","v":7},{"$f":"IFERROR(VLOOKUP(B5552,Translation!$A:$C,3,FALSE),B5552)","v":"Q2 2016"},{"$f":"IFERROR(VLOOKUP(C5552,Translation!$A:$C,3,FALSE),C5552)","v":"ASSURANCE DE PORTEFEUILLE"},{"$f":"IFERROR(VLOOKUP(D5552,Translation!$A:$C,3,FALSE),D5552)","v":"Rapport prêt-valeur moyen "},{"$f":"IFERROR(VLOOKUP(E5552,Translation!$A:$C,3,FALSE),E5552)","v":70.960656301917993},{"$f":"IFERROR(VLOOKUP(F5552,Translation!$A:$C,3,FALSE),F5552)","v":"Prêts hypothécaires assurés au cours de la période selon le rapport prêt-valeur (RPV) établi d’après la valeur initiale de la propriété (%)"},{"$f":"IFERROR(VLOOKUP(G5552,Translation!$A:$C,3,FALSE),G5552)","v":"71.0"},{"$f":"IFERROR(VLOOKUP(H5552,Translation!$A:$C,3,FALSE),H5552)","v":"Rapport prêt-valeur moyen "}]
[7,"T2 2017","ASSURANCE DE PORTEFEUILLE","Rapport prêt-valeur moyen ",64.500299401739397,"Prêts hypothécaires assurés au cours de la période selon le rapport prêt-valeur (RPV) établi d’après la valeur initiale de la propriété (%)","64.5","Rapport prêt-valeur moyen ",{"$f":"IFERROR(VLOOKUP(A5553,Translation!$A:$C,3,FALSE),A5553)","v":7},{"$f":"IFERROR(VLOOKUP(B5553,Translation!$A:$C,3,FALSE),B5553)","v":"T2 2017"},{"$f":"IFERROR(VLOOKUP(C5553,Translation!$A:$C,3,FALSE),C5553)","v":"ASSURANCE DE PORTEFEUILLE"},{"$f":"IFERROR(VLOOKUP(D5553,Translation!$A:$C,3,FALSE),D5553)","v":"Rapport prêt-valeur moyen "},{"$f":"IFERROR(VLOOKUP(E5553,Translation!$A:$C,3,FALSE),E5553)","v":64.500299401739397},{"$f":"IFERROR(VLOOKUP(F5553,Translation!$A:$C,3,FALSE),F5553)","v":"Prêts hypothécaires assurés au cours de la période selon le rapport prêt-valeur (RPV) établi d’après la valeur initiale de la propriété (%)"},{"$f":"IFERROR(VLOOKUP(G5553,Translation!$A:$C,3,FALSE),G5553)","v":"64.5"},{"$f":"IFERROR(VLOOKUP(H5553,Translation!$A:$C,3,FALSE),H5553)","v":"Rapport prêt-valeur moyen "}]
[7,"Q4 2016","ASSURANCE DE PORTEFEUILLE","Rapport prêt-valeur moyen ",66.801191925011651,"Prêts hypothécaires assurés au cours de la période selon le rapport prêt-valeur (RPV) établi d’après la valeur initiale de la propriété (%)","66.8","Rapport prêt-valeur moyen ",{"$f":"IFERROR(VLOOKUP(A5556,Translation!$A:$C,3,FALSE),A5556)","v":7},{"$f":"IFERROR(VLOOKUP(B5556,Translation!$A:$C,3,FALSE),B5556)","v":"Q4 2016"},{"$f":"IFERROR(VLOOKUP(C5556,Translation!$A:$C,3,FALSE),C5556)","v":"ASSURANCE DE PORTEFEUILLE"},{"$f":"IFERROR(VLOOKUP(D5556,Translation!$A:$C,3,FALSE),D5556)","v":"Rapport prêt-valeur moyen "},{"$f":"IFERROR(VLOOKUP(E5556,Translation!$A:$C,3,FALSE),E5556)","v":66.801191925011651},{"$f":"IFERROR(VLOOKUP(F5556,Translation!$A:$C,3,FALSE),F5556)","v":"Prêts hypothécaires assurés au cours de la période selon le rapport prêt-valeur (RPV) établi d’après la valeur initiale de la propriété (%)"},{"$f":"IFERROR(VLOOKUP(G5556,Translation!$A:$C,3,FALSE),G5556)","v":"66.8"},{"$f":"IFERROR(VLOOKUP(H5556,Translation!$A:$C,3,FALSE),H5556)","v":"Rapport prêt-valeur moyen "}]
[7,"T4 2017","ASSURANCE DE PORTEFEUILLE","Rapport prêt-valeur moyen ",62.011452528912358,"Prêts hypothécaires assurés au cours de la période selon le rapport prêt-valeur (RPV) établi d’après la valeur initiale de la propriété (%)","62.0","Rapport prêt-valeur moyen ",{"$f":"IFERROR(VLOOKUP(A5557,Translation!$A:$C,3,FALSE),A5557)","v":7},{"$f":"IFERROR(VLOOKUP(B5557,Translation!$A:$C,3,FALSE),B5557)","v":"T4 2017"},{"$f":"IFERROR(VLOOKUP(C5557,Translation!$A:$C,3,FALSE),C5557)","v":"ASSURANCE DE PORTEFEUILLE"},{"$f":"IFERROR(VLOOKUP(D5557,Translation!$A:$C,3,FALSE),D5557)","v":"Rapport prêt-valeur moyen "},{"$f":"IFERROR(VLOOKUP(E5557,Translation!$A:$C,3,FALSE),E5557)","v":62.011452528912358},{"$f":"IFERROR(VLOOKUP(F5557,Translation!$A:$C,3,FALSE),F5557)","v":"Prêts hypothécaires assurés au cours de la période selon le rapport prêt-valeur (RPV) établi d’après la valeur initiale de la propriété (%)"},{"$f":"IFERROR(VLOOKUP(G5557,Translation!$A:$C,3,FALSE),G5557)","v":"62.0"},{"$f":"IFERROR(VLOOKUP(H5557,Translation!$A:$C,3,FALSE),H5557)","v":"Rapport prêt-valeur moyen "}]
[7,"T2 2017","ASSURANCE DE PORTEFEUILLE","Avoir propre foncier moyen ",35.499700598260617,"Prêts hypothécaires assurés au cours de la période selon le rapport prêt-valeur (RPV) établi d’après la valeur initiale de la propriété (%)","35.5","Avoir propre foncier moyen ",{"$f":"IFERROR(VLOOKUP(A5561,Translation!$A:$C,3,FALSE),A5561)","v":7},{"$f":"IFERROR(VLOOKUP(B5561,Translation!$A:$C,3,FALSE),B5561)","v":"T2 2017"},{"$f":"IFERROR(VLOOKUP(C5561,Translation!$A:$C,3,FALSE),C5561)","v":"ASSURANCE DE PORTEFEUILLE"},{"$f":"IFERROR(VLOOKUP(D5561,Translation!$A:$C,3,FALSE),D5561)","v":"Avoir propre foncier moyen "},{"$f":"IFERROR(VLOOKUP(E5561,Translation!$A:$C,3,FALSE),E5561)","v":35.499700598260617},{"$f":"IFERROR(VLOOKUP(F5561,Translation!$A:$C,3,FALSE),F5561)","v":"Prêts hypothécaires assurés au cours de la période selon le rapport prêt-valeur (RPV) établi d’après la valeur initiale de la propriété (%)"},{"$f":"IFERROR(VLOOKUP(G5561,Translation!$A:$C,3,FALSE),G5561)","v":"35.5"},{"$f":"IFERROR(VLOOKUP(H5561,Translation!$A:$C,3,FALSE),H5561)","v":"Avoir propre foncier moyen "}]
[7,"T3 2017","ASSURANCE DE PORTEFEUILLE","Avoir propre foncier moyen ",30.479500203027047,"Prêts hypothécaires assurés au cours de la période selon le rapport prêt-valeur (RPV) établi d’après la valeur initiale de la propriété (%)","30.5","Avoir propre foncier moyen ",{"$f":"IFERROR(VLOOKUP(A5563,Translation!$A:$C,3,FALSE),A5563)","v":7},{"$f":"IFERROR(VLOOKUP(B5563,Translation!$A:$C,3,FALSE),B5563)","v":"T3 2017"},{"$f":"IFERROR(VLOOKUP(C5563,Translation!$A:$C,3,FALSE),C5563)","v":"ASSURANCE DE PORTEFEUILLE"},{"$f":"IFERROR(VLOOKUP(D5563,Translation!$A:$C,3,FALSE),D5563)","v":"Avoir propre foncier moyen "},{"$f":"IFERROR(VLOOKUP(E5563,Translation!$A:$C,3,FALSE),E5563)","v":30.479500203027047},{"$f":"IFERROR(VLOOKUP(F5563,Translation!$A:$C,3,FALSE),F5563)","v":"Prêts hypothécaires assurés au cours de la période selon le rapport prêt-valeur (RPV) établi d’après la valeur initiale de la propriété (%)"},{"$f":"IFERROR(VLOOKUP(G5563,Translation!$A:$C,3,FALSE),G5563)","v":"30.5"},{"$f":"IFERROR(VLOOKUP(H5563,Translation!$A:$C,3,FALSE),H5563)","v":"Avoir propre foncier moyen "}]
[7,"T1 2017","ASSURANCE DE PORTEFEUILLE","Terre-Neuve-et-Labrador",27.176335765623399,"Avoir propre foncier moyen selon la province","27.2","Terre-Neuve-et-Labrador",{"$f":"IFERROR(VLOOKUP(A5566,Translation!$A:$C,3,FALSE),A5566)","v":7},{"$f":"IFERROR(VLOOKUP(B5566,Translation!$A:$C,3,FALSE),B5566)","v":"T1 2017"},{"$f":"IFERROR(VLOOKUP(C5566,Translation!$A:$C,3,FALSE),C5566)","v":"ASSURANCE DE PORTEFEUILLE"},{"$f":"IFERROR(VLOOKUP(D5566,Translation!$A:$C,3,FALSE),D5566)","v":"Terre-Neuve-et-Labrador"},{"$f":"IFERROR(VLOOKUP(E5566,Translation!$A:$C,3,FALSE),E5566)","v":27.176335765623399},{"$f":"IFERROR(VLOOKUP(F5566,Translation!$A:$C,3,FALSE),F5566)","v":"Avoir propre foncier moyen selon la province"},{"$f":"IFERROR(VLOOKUP(G5566,Translation!$A:$C,3,FALSE),G5566)","v":"27.2"},{"$f":"IFERROR(VLOOKUP(H5566,Translation!$A:$C,3,FALSE),H5566)","v":"Terre-Neuve-et-Labrador"}]
[7,"T1 2017","ASSURANCE DE PORTEFEUILLE","Île-du-Prince-Édouard",24.760000000000005,"Avoir propre foncier moyen selon la province","24.8","Île-du-Prince-Édouard",{"$f":"IFERROR(VLOOKUP(A5567,Translation!$A:$C,3,FALSE),A5567)","v":7},{"$f":"IFERROR(VLOOKUP(B5567,Translation!$A:$C,3,FALSE),B5567)","v":"T1 2017"},{"$f":"IFERROR(VLOOKUP(C5567,Translation!$A:$C,3,FALSE),C5567)","v":"ASSURANCE DE PORTEFEUILLE"},{"$f":"IFERROR(VLOOKUP(D5567,Translation!$A:$C,3,FALSE),D5567)","v":"Île-du-Prince-Édouard"},{"$f":"IFERROR(VLOOKUP(E5567,Translation!$A:$C,3,FALSE),E5567)","v":24.760000000000005},{"$f":"IFERROR(VLOOKUP(F5567,Translation!$A:$C,3,FALSE),F5567)","v":"Avoir propre foncier moyen selon la province"},{"$f":"IFERROR(VLOOKUP(G5567,Translation!$A:$C,3,FALSE),G5567)","v":"24.8"},{"$f":"IFERROR(VLOOKUP(H5567,Translation!$A:$C,3,FALSE),H5567)","v":"Île-du-Prince-Édouard"}]
[7,"T1 2017","ASSURANCE DE PORTEFEUILLE","Ontario",30.483466595409592,"Avoir propre foncier moyen selon la province","30.5","Ontario",{"$f":"IFERROR(VLOOKUP(A5571,Translation!$A:$C,3,FALSE),A5571)","v":7},{"$f":"IFERROR(VLOOKUP(B5571,Translation!$A:$C,3,FALSE),B5571)","v":"T1 2017"},{"$f":"IFERROR(VLOOKUP(C5571,Translation!$A:$C,3,FALSE),C5571)","v":"ASSURANCE DE PORTEFEUILLE"},{"$f":"IFERROR(VLOOKUP(D5571,Translation!$A:$C,3,FALSE),D5571)","v":"Ontario"},{"$f":"IFERROR(VLOOKUP(E5571,Translation!$A:$C,3,FALSE),E5571)","v":30.483466595409592},{"$f":"IFERROR(VLOOKUP(F5571,Translation!$A:$C,3,FALSE),F5571)","v":"Avoir propre foncier moyen selon la province"},{"$f":"IFERROR(VLOOKUP(G5571,Translation!$A:$C,3,FALSE),G5571)","v":"30.5"},{"$f":"IFERROR(VLOOKUP(H5571,Translation!$A:$C,3,FALSE),H5571)","v":"Ontario"}]
[7,"T1 2017","ASSURANCE DE PORTEFEUILLE","Manitoba",29.825565022091403,"Avoir propre foncier moyen selon la province","29.8","Manitoba",{"$f":"IFERROR(VLOOKUP(A5572,Translation!$A:$C,3,FALSE),A5572)","v":7},{"$f":"IFERROR(VLOOKUP(B5572,Translation!$A:$C,3,FALSE),B5572)","v":"T1 2017"},{"$f":"IFERROR(VLOOKUP(C5572,Translation!$A:$C,3,FALSE),C5572)","v":"ASSURANCE DE PORTEFEUILLE"},{"$f":"IFERROR(VLOOKUP(D5572,Translation!$A:$C,3,FALSE),D5572)","v":"Manitoba"},{"$f":"IFERROR(VLOOKUP(E5572,Translation!$A:$C,3,FALSE),E5572)","v":29.825565022091403},{"$f":"IFERROR(VLOOKUP(F5572,Translation!$A:$C,3,FALSE),F5572)","v":"Avoir propre foncier moyen selon la province"},{"$f":"IFERROR(VLOOKUP(G5572,Translation!$A:$C,3,FALSE),G5572)","v":"29.8"},{"$f":"IFERROR(VLOOKUP(H5572,Translation!$A:$C,3,FALSE),H5572)","v":"Manitoba"}]
[7,"T1 2017","ASSURANCE DE PORTEFEUILLE","Alberta",32.272116211272341,"Avoir propre foncier moyen selon la province","32.3","Alberta",{"$f":"IFERROR(VLOOKUP(A5574,Translation!$A:$C,3,FALSE),A5574)","v":7},{"$f":"IFERROR(VLOOKUP(B5574,Translation!$A:$C,3,FALSE),B5574)","v":"T1 2017"},{"$f":"IFERROR(VLOOKUP(C5574,Translation!$A:$C,3,FALSE),C5574)","v":"ASSURANCE DE PORTEFEUILLE"},{"$f":"IFERROR(VLOOKUP(D5574,Translation!$A:$C,3,FALSE),D5574)","v":"Alberta"},{"$f":"IFERROR(VLOOKUP(E5574,Translation!$A:$C,3,FALSE),E5574)","v":32.272116211272341},{"$f":"IFERROR(VLOOKUP(F5574,Translation!$A:$C,3,FALSE),F5574)","v":"Avoir propre foncier moyen selon la province"},{"$f":"IFERROR(VLOOKUP(G5574,Translation!$A:$C,3,FALSE),G5574)","v":"32.3"},{"$f":"IFERROR(VLOOKUP(H5574,Translation!$A:$C,3,FALSE),H5574)","v":"Alberta"}]
[7,"T1 2018","ASSURANCE DE PORTEFEUILLE","Nouvelle-Écosse",39.312449464727649,"Avoir propre foncier moyen selon la province","39.3","Nouvelle-Écosse",{"$f":"IFERROR(VLOOKUP(A5577,Translation!$A:$C,3,FALSE),A5577)","v":7},{"$f":"IFERROR(VLOOKUP(B5577,Translation!$A:$C,3,FALSE),B5577)","v":"T1 2018"},{"$f":"IFERROR(VLOOKUP(C5577,Translation!$A:$C,3,FALSE),C5577)","v":"ASSURANCE DE PORTEFEUILLE"},{"$f":"IFERROR(VLOOKUP(D5577,Translation!$A:$C,3,FALSE),D5577)","v":"Nouvelle-Écosse"},{"$f":"IFERROR(VLOOKUP(E5577,Translation!$A:$C,3,FALSE),E5577)","v":39.312449464727649},{"$f":"IFERROR(VLOOKUP(F5577,Translation!$A:$C,3,FALSE),F5577)","v":"Avoir propre foncier moyen selon la province"},{"$f":"IFERROR(VLOOKUP(G5577,Translation!$A:$C,3,FALSE),G5577)","v":"39.3"},{"$f":"IFERROR(VLOOKUP(H5577,Translation!$A:$C,3,FALSE),H5577)","v":"Nouvelle-Écosse"}]
[7,"T1 2018","ASSURANCE DE PORTEFEUILLE","Ontario",41.217426861480426,"Avoir propre foncier moyen selon la province","41.2","Ontario",{"$f":"IFERROR(VLOOKUP(A5580,Translation!$A:$C,3,FALSE),A5580)","v":7},{"$f":"IFERROR(VLOOKUP(B5580,Translation!$A:$C,3,FALSE),B5580)","v":"T1 2018"},{"$f":"IFERROR(VLOOKUP(C5580,Translation!$A:$C,3,FALSE),C5580)","v":"ASSURANCE DE PORTEFEUILLE"},{"$f":"IFERROR(VLOOKUP(D5580,Translation!$A:$C,3,FALSE),D5580)","v":"Ontario"},{"$f":"IFERROR(VLOOKUP(E5580,Translation!$A:$C,3,FALSE),E5580)","v":41.217426861480426},{"$f":"IFERROR(VLOOKUP(F5580,Translation!$A:$C,3,FALSE),F5580)","v":"Avoir propre foncier moyen selon la province"},{"$f":"IFERROR(VLOOKUP(G5580,Translation!$A:$C,3,FALSE),G5580)","v":"41.2"},{"$f":"IFERROR(VLOOKUP(H5580,Translation!$A:$C,3,FALSE),H5580)","v":"Ontario"}]
[7,"T1 2018","ASSURANCE DE PORTEFEUILLE","Saskatchewan",38.999308226758785,"Avoir propre foncier moyen selon la province","39.0","Saskatchewan",{"$f":"IFERROR(VLOOKUP(A5582,Translation!$A:$C,3,FALSE),A5582)","v":7},{"$f":"IFERROR(VLOOKUP(B5582,Translation!$A:$C,3,FALSE),B5582)","v":"T1 2018"},{"$f":"IFERROR(VLOOKUP(C5582,Translation!$A:$C,3,FALSE),C5582)","v":"ASSURANCE DE PORTEFEUILLE"},{"$f":"IFERROR(VLOOKUP(D5582,Translation!$A:$C,3,FALSE),D5582)","v":"Saskatchewan"},{"$f":"IFERROR(VLOOKUP(E5582,Translation!$A:$C,3,FALSE),E5582)","v":38.999308226758785},{"$f":"IFERROR(VLOOKUP(F5582,Translation!$A:$C,3,FALSE),F5582)","v":"Avoir propre foncier moyen selon la province"},{"$f":"IFERROR(VLOOKUP(G5582,Translation!$A:$C,3,FALSE),G5582)","v":"39.0"},{"$f":"IFERROR(VLOOKUP(H5582,Translation!$A:$C,3,FALSE),H5582)","v":"Saskatchewan"}]
[7,"Q2 2016","ASSURANCE DE PORTEFEUILLE","Terre-Neuve-et-Labrador",26.270372180091563,"Avoir propre foncier moyen selon la province","26.3","Terre-Neuve-et-Labrador",{"$f":"IFERROR(VLOOKUP(A5585,Translation!$A:$C,3,FALSE),A5585)","v":7},{"$f":"IFERROR(VLOOKUP(B5585,Translation!$A:$C,3,FALSE),B5585)","v":"Q2 2016"},{"$f":"IFERROR(VLOOKUP(C5585,Translation!$A:$C,3,FALSE),C5585)","v":"ASSURANCE DE PORTEFEUILLE"},{"$f":"IFERROR(VLOOKUP(D5585,Translation!$A:$C,3,FALSE),D5585)","v":"Terre-Neuve-et-Labrador"},{"$f":"IFERROR(VLOOKUP(E5585,Translation!$A:$C,3,FALSE),E5585)","v":26.270372180091563},{"$f":"IFERROR(VLOOKUP(F5585,Translation!$A:$C,3,FALSE),F5585)","v":"Avoir propre foncier moyen selon la province"},{"$f":"IFERROR(VLOOKUP(G5585,Translation!$A:$C,3,FALSE),G5585)","v":"26.3"},{"$f":"IFERROR(VLOOKUP(H5585,Translation!$A:$C,3,FALSE),H5585)","v":"Terre-Neuve-et-Labrador"}]
[7,"Q2 2016","ASSURANCE DE PORTEFEUILLE","Nouveau-Brunswick",26.408765596989721,"Avoir propre foncier moyen selon la province","26.4","Nouveau-Brunswick",{"$f":"IFERROR(VLOOKUP(A5588,Translation!$A:$C,3,FALSE),A5588)","v":7},{"$f":"IFERROR(VLOOKUP(B5588,Translation!$A:$C,3,FALSE),B5588)","v":"Q2 2016"},{"$f":"IFERROR(VLOOKUP(C5588,Translation!$A:$C,3,FALSE),C5588)","v":"ASSURANCE DE PORTEFEUILLE"},{"$f":"IFERROR(VLOOKUP(D5588,Translation!$A:$C,3,FALSE),D5588)","v":"Nouveau-Brunswick"},{"$f":"IFERROR(VLOOKUP(E5588,Translation!$A:$C,3,FALSE),E5588)","v":26.408765596989721},{"$f":"IFERROR(VLOOKUP(F5588,Translation!$A:$C,3,FALSE),F5588)","v":"Avoir propre foncier moyen selon la province"},{"$f":"IFERROR(VLOOKUP(G5588,Translation!$A:$C,3,FALSE),G5588)","v":"26.4"},{"$f":"IFERROR(VLOOKUP(H5588,Translation!$A:$C,3,FALSE),H5588)","v":"Nouveau-Brunswick"}]
[7,"Q2 2016","ASSURANCE DE PORTEFEUILLE","Ontario",28.404214880659321,"Avoir propre foncier moyen selon la province","28.4","Ontario",{"$f":"IFERROR(VLOOKUP(A5590,Translation!$A:$C,3,FALSE),A5590)","v":7},{"$f":"IFERROR(VLOOKUP(B5590,Translation!$A:$C,3,FALSE),B5590)","v":"Q2 2016"},{"$f":"IFERROR(VLOOKUP(C5590,Translation!$A:$C,3,FALSE),C5590)","v":"ASSURANCE DE PORTEFEUILLE"},{"$f":"IFERROR(VLOOKUP(D5590,Translation!$A:$C,3,FALSE),D5590)","v":"Ontario"},{"$f":"IFERROR(VLOOKUP(E5590,Translation!$A:$C,3,FALSE),E5590)","v":28.404214880659321},{"$f":"IFERROR(VLOOKUP(F5590,Translation!$A:$C,3,FALSE),F5590)","v":"Avoir propre foncier moyen selon la province"},{"$f":"IFERROR(VLOOKUP(G5590,Translation!$A:$C,3,FALSE),G5590)","v":"28.4"},{"$f":"IFERROR(VLOOKUP(H5590,Translation!$A:$C,3,FALSE),H5590)","v":"Ontario"}]
[7,"Q2 2016","ASSURANCE DE PORTEFEUILLE","Manitoba",25.923472671254501,"Avoir propre foncier moyen selon la province","25.9","Manitoba",{"$f":"IFERROR(VLOOKUP(A5591,Translation!$A:$C,3,FALSE),A5591)","v":7},{"$f":"IFERROR(VLOOKUP(B5591,Translation!$A:$C,3,FALSE),B5591)","v":"Q2 2016"},{"$f":"IFERROR(VLOOKUP(C5591,Translation!$A:$C,3,FALSE),C5591)","v":"ASSURANCE DE PORTEFEUILLE"},{"$f":"IFERROR(VLOOKUP(D5591,Translation!$A:$C,3,FALSE),D5591)","v":"Manitoba"},{"$f":"IFERROR(VLOOKUP(E5591,Translation!$A:$C,3,FALSE),E5591)","v":25.923472671254501},{"$f":"IFERROR(VLOOKUP(F5591,Translation!$A:$C,3,FALSE),F5591)","v":"Avoir propre foncier moyen selon la province"},{"$f":"IFERROR(VLOOKUP(G5591,Translation!$A:$C,3,FALSE),G5591)","v":"25.9"},{"$f":"IFERROR(VLOOKUP(H5591,Translation!$A:$C,3,FALSE),H5591)","v":"Manitoba"}]
[7,"Q2 2016","ASSURANCE DE PORTEFEUILLE","Alberta",27.898518125288724,"Avoir propre foncier moyen selon la province","27.9","Alberta",{"$f":"IFERROR(VLOOKUP(A5593,Translation!$A:$C,3,FALSE),A5593)","v":7},{"$f":"IFERROR(VLOOKUP(B5593,Translation!$A:$C,3,FALSE),B5593)","v":"Q2 2016"},{"$f":"IFERROR(VLOOKUP(C5593,Translation!$A:$C,3,FALSE),C5593)","v":"ASSURANCE DE PORTEFEUILLE"},{"$f":"IFERROR(VLOOKUP(D5593,Translation!$A:$C,3,FALSE),D5593)","v":"Alberta"},{"$f":"IFERROR(VLOOKUP(E5593,Translation!$A:$C,3,FALSE),E5593)","v":27.898518125288724},{"$f":"IFERROR(VLOOKUP(F5593,Translation!$A:$C,3,FALSE),F5593)","v":"Avoir propre foncier moyen selon la province"},{"$f":"IFERROR(VLOOKUP(G5593,Translation!$A:$C,3,FALSE),G5593)","v":"27.9"},{"$f":"IFERROR(VLOOKUP(H5593,Translation!$A:$C,3,FALSE),H5593)","v":"Alberta"}]
[7,"T2 2017","ASSURANCE DE PORTEFEUILLE","Terre-Neuve-et-Labrador",30.827418842777799,"Avoir propre foncier moyen selon la province","30.8","Terre-Neuve-et-Labrador",{"$f":"IFERROR(VLOOKUP(A5596,Translation!$A:$C,3,FALSE),A5596)","v":7},{"$f":"IFERROR(VLOOKUP(B5596,Translation!$A:$C,3,FALSE),B5596)","v":"T2 2017"},{"$f":"IFERROR(VLOOKUP(C5596,Translation!$A:$C,3,FALSE),C5596)","v":"ASSURANCE DE PORTEFEUILLE"},{"$f":"IFERROR(VLOOKUP(D5596,Translation!$A:$C,3,FALSE),D5596)","v":"Terre-Neuve-et-Labrador"},{"$f":"IFERROR(VLOOKUP(E5596,Translation!$A:$C,3,FALSE),E5596)","v":30.827418842777799},{"$f":"IFERROR(VLOOKUP(F5596,Translation!$A:$C,3,FALSE),F5596)","v":"Avoir propre foncier moyen selon la province"},{"$f":"IFERROR(VLOOKUP(G5596,Translation!$A:$C,3,FALSE),G5596)","v":"30.8"},{"$f":"IFERROR(VLOOKUP(H5596,Translation!$A:$C,3,FALSE),H5596)","v":"Terre-Neuve-et-Labrador"}]
[7,"T2 2017","ASSURANCE DE PORTEFEUILLE","Nouvelle-Écosse",28.279634572495876,"Avoir propre foncier moyen selon la province","28.3","Nouvelle-Écosse",{"$f":"IFERROR(VLOOKUP(A5598,Translation!$A:$C,3,FALSE),A5598)","v":7},{"$f":"IFERROR(VLOOKUP(B5598,Translation!$A:$C,3,FALSE),B5598)","v":"T2 2017"},{"$f":"IFERROR(VLOOKUP(C5598,Translation!$A:$C,3,FALSE),C5598)","v":"ASSURANCE DE PORTEFEUILLE"},{"$f":"IFERROR(VLOOKUP(D5598,Translation!$A:$C,3,FALSE),D5598)","v":"Nouvelle-Écosse"},{"$f":"IFERROR(VLOOKUP(E5598,Translation!$A:$C,3,FALSE),E5598)","v":28.279634572495876},{"$f":"IFERROR(VLOOKUP(F5598,Translation!$A:$C,3,FALSE),F5598)","v":"Avoir propre foncier moyen selon la province"},{"$f":"IFERROR(VLOOKUP(G5598,Translation!$A:$C,3,FALSE),G5598)","v":"28.3"},{"$f":"IFERROR(VLOOKUP(H5598,Translation!$A:$C,3,FALSE),H5598)","v":"Nouvelle-Écosse"}]
[7,"T2 2017","ASSURANCE DE PORTEFEUILLE","Ontario",31.015336249458048,"Avoir propre foncier moyen selon la province","31.0","Ontario",{"$f":"IFERROR(VLOOKUP(A5601,Translation!$A:$C,3,FALSE),A5601)","v":7},{"$f":"IFERROR(VLOOKUP(B5601,Translation!$A:$C,3,FALSE),B5601)","v":"T2 2017"},{"$f":"IFERROR(VLOOKUP(C5601,Translation!$A:$C,3,FALSE),C5601)","v":"ASSURANCE DE PORTEFEUILLE"},{"$f":"IFERROR(VLOOKUP(D5601,Translation!$A:$C,3,FALSE),D5601)","v":"Ontario"},{"$f":"IFERROR(VLOOKUP(E5601,Translation!$A:$C,3,FALSE),E5601)","v":31.015336249458048},{"$f":"IFERROR(VLOOKUP(F5601,Translation!$A:$C,3,FALSE),F5601)","v":"Avoir propre foncier moyen selon la province"},{"$f":"IFERROR(VLOOKUP(G5601,Translation!$A:$C,3,FALSE),G5601)","v":"31.0"},{"$f":"IFERROR(VLOOKUP(H5601,Translation!$A:$C,3,FALSE),H5601)","v":"Ontario"}]
[7,"T2 2017","ASSURANCE DE PORTEFEUILLE","Alberta",31.563154266555639,"Avoir propre foncier moyen selon la province","31.6","Alberta",{"$f":"IFERROR(VLOOKUP(A5604,Translation!$A:$C,3,FALSE),A5604)","v":7},{"$f":"IFERROR(VLOOKUP(B5604,Translation!$A:$C,3,FALSE),B5604)","v":"T2 2017"},{"$f":"IFERROR(VLOOKUP(C5604,Translation!$A:$C,3,FALSE),C5604)","v":"ASSURANCE DE PORTEFEUILLE"},{"$f":"IFERROR(VLOOKUP(D5604,Translation!$A:$C,3,FALSE),D5604)","v":"Alberta"},{"$f":"IFERROR(VLOOKUP(E5604,Translation!$A:$C,3,FALSE),E5604)","v":31.563154266555639},{"$f":"IFERROR(VLOOKUP(F5604,Translation!$A:$C,3,FALSE),F5604)","v":"Avoir propre foncier moyen selon la province"},{"$f":"IFERROR(VLOOKUP(G5604,Translation!$A:$C,3,FALSE),G5604)","v":"31.6"},{"$f":"IFERROR(VLOOKUP(H5604,Translation!$A:$C,3,FALSE),H5604)","v":"Alberta"}]
[7,"Q3 2016","ASSURANCE DE PORTEFEUILLE","Île-du-Prince-Édouard",26.740564560851311,"Avoir propre foncier moyen selon la province","26.7","Île-du-Prince-Édouard",{"$f":"IFERROR(VLOOKUP(A5607,Translation!$A:$C,3,FALSE),A5607)","v":7},{"$f":"IFERROR(VLOOKUP(B5607,Translation!$A:$C,3,FALSE),B5607)","v":"Q3 2016"},{"$f":"IFERROR(VLOOKUP(C5607,Translation!$A:$C,3,FALSE),C5607)","v":"ASSURANCE DE PORTEFEUILLE"},{"$f":"IFERROR(VLOOKUP(D5607,Translation!$A:$C,3,FALSE),D5607)","v":"Île-du-Prince-Édouard"},{"$f":"IFERROR(VLOOKUP(E5607,Translation!$A:$C,3,FALSE),E5607)","v":26.740564560851311},{"$f":"IFERROR(VLOOKUP(F5607,Translation!$A:$C,3,FALSE),F5607)","v":"Avoir propre foncier moyen selon la province"},{"$f":"IFERROR(VLOOKUP(G5607,Translation!$A:$C,3,FALSE),G5607)","v":"26.7"},{"$f":"IFERROR(VLOOKUP(H5607,Translation!$A:$C,3,FALSE),H5607)","v":"Île-du-Prince-Édouard"}]
[7,"Q3 2016","ASSURANCE DE PORTEFEUILLE","Nouveau-Brunswick",25.125877232197055,"Avoir propre foncier moyen selon la province","25.1","Nouveau-Brunswick",{"$f":"IFERROR(VLOOKUP(A5609,Translation!$A:$C,3,FALSE),A5609)","v":7},{"$f":"IFERROR(VLOOKUP(B5609,Translation!$A:$C,3,FALSE),B5609)","v":"Q3 2016"},{"$f":"IFERROR(VLOOKUP(C5609,Translation!$A:$C,3,FALSE),C5609)","v":"ASSURANCE DE PORTEFEUILLE"},{"$f":"IFERROR(VLOOKUP(D5609,Translation!$A:$C,3,FALSE),D5609)","v":"Nouveau-Brunswick"},{"$f":"IFERROR(VLOOKUP(E5609,Translation!$A:$C,3,FALSE),E5609)","v":25.125877232197055},{"$f":"IFERROR(VLOOKUP(F5609,Translation!$A:$C,3,FALSE),F5609)","v":"Avoir propre foncier moyen selon la province"},{"$f":"IFERROR(VLOOKUP(G5609,Translation!$A:$C,3,FALSE),G5609)","v":"25.1"},{"$f":"IFERROR(VLOOKUP(H5609,Translation!$A:$C,3,FALSE),H5609)","v":"Nouveau-Brunswick"}]
[7,"Q3 2016","ASSURANCE DE PORTEFEUILLE","Manitoba",24.504503827834878,"Avoir propre foncier moyen selon la province","24.5","Manitoba",{"$f":"IFERROR(VLOOKUP(A5612,Translation!$A:$C,3,FALSE),A5612)","v":7},{"$f":"IFERROR(VLOOKUP(B5612,Translation!$A:$C,3,FALSE),B5612)","v":"Q3 2016"},{"$f":"IFERROR(VLOOKUP(C5612,Translation!$A:$C,3,FALSE),C5612)","v":"ASSURANCE DE PORTEFEUILLE"},{"$f":"IFERROR(VLOOKUP(D5612,Translation!$A:$C,3,FALSE),D5612)","v":"Manitoba"},{"$f":"IFERROR(VLOOKUP(E5612,Translation!$A:$C,3,FALSE),E5612)","v":24.504503827834878},{"$f":"IFERROR(VLOOKUP(F5612,Translation!$A:$C,3,FALSE),F5612)","v":"Avoir propre foncier moyen selon la province"},{"$f":"IFERROR(VLOOKUP(G5612,Translation!$A:$C,3,FALSE),G5612)","v":"24.5"},{"$f":"IFERROR(VLOOKUP(H5612,Translation!$A:$C,3,FALSE),H5612)","v":"Manitoba"}]
[7,"Q3 2016","ASSURANCE DE PORTEFEUILLE","Alberta",29.144861329548441,"Avoir propre foncier moyen selon la province","29.1","Alberta",{"$f":"IFERROR(VLOOKUP(A5614,Translation!$A:$C,3,FALSE),A5614)","v":7},{"$f":"IFERROR(VLOOKUP(B5614,Translation!$A:$C,3,FALSE),B5614)","v":"Q3 2016"},{"$f":"IFERROR(VLOOKUP(C5614,Translation!$A:$C,3,FALSE),C5614)","v":"ASSURANCE DE PORTEFEUILLE"},{"$f":"IFERROR(VLOOKUP(D5614,Translation!$A:$C,3,FALSE),D5614)","v":"Alberta"},{"$f":"IFERROR(VLOOKUP(E5614,Translation!$A:$C,3,FALSE),E5614)","v":29.144861329548441},{"$f":"IFERROR(VLOOKUP(F5614,Translation!$A:$C,3,FALSE),F5614)","v":"Avoir propre foncier moyen selon la province"},{"$f":"IFERROR(VLOOKUP(G5614,Translation!$A:$C,3,FALSE),G5614)","v":"29.1"},{"$f":"IFERROR(VLOOKUP(H5614,Translation!$A:$C,3,FALSE),H5614)","v":"Alberta"}]
[7,"Q3 2016","ASSURANCE DE PORTEFEUILLE","Colombie-Britannique",31.678428728845752,"Avoir propre foncier moyen selon la province","31.7","Colombie-Britannique",{"$f":"IFERROR(VLOOKUP(A5615,Translation!$A:$C,3,FALSE),A5615)","v":7},{"$f":"IFERROR(VLOOKUP(B5615,Translation!$A:$C,3,FALSE),B5615)","v":"Q3 2016"},{"$f":"IFERROR(VLOOKUP(C5615,Translation!$A:$C,3,FALSE),C5615)","v":"ASSURANCE DE PORTEFEUILLE"},{"$f":"IFERROR(VLOOKUP(D5615,Translation!$A:$C,3,FALSE),D5615)","v":"Colombie-Britannique"},{"$f":"IFERROR(VLOOKUP(E5615,Translation!$A:$C,3,FALSE),E5615)","v":31.678428728845752},{"$f":"IFERROR(VLOOKUP(F5615,Translation!$A:$C,3,FALSE),F5615)","v":"Avoir propre foncier moyen selon la province"},{"$f":"IFERROR(VLOOKUP(G5615,Translation!$A:$C,3,FALSE),G5615)","v":"31.7"},{"$f":"IFERROR(VLOOKUP(H5615,Translation!$A:$C,3,FALSE),H5615)","v":"Colombie-Britannique"}]
[7,"T3 2017","ASSURANCE DE PORTEFEUILLE","Île-du-Prince-Édouard",20,"Avoir propre foncier moyen selon la province","20.0","Île-du-Prince-Édouard",{"$f":"IFERROR(VLOOKUP(A5618,Translation!$A:$C,3,FALSE),A5618)","v":7},{"$f":"IFERROR(VLOOKUP(B5618,Translation!$A:$C,3,FALSE),B5618)","v":"T3 2017"},{"$f":"IFERROR(VLOOKUP(C5618,Translation!$A:$C,3,FALSE),C5618)","v":"ASSURANCE DE PORTEFEUILLE"},{"$f":"IFERROR(VLOOKUP(D5618,Translation!$A:$C,3,FALSE),D5618)","v":"Île-du-Prince-Édouard"},{"$f":"IFERROR(VLOOKUP(E5618,Translation!$A:$C,3,FALSE),E5618)","v":20},{"$f":"IFERROR(VLOOKUP(F5618,Translation!$A:$C,3,FALSE),F5618)","v":"Avoir propre foncier moyen selon la province"},{"$f":"IFERROR(VLOOKUP(G5618,Translation!$A:$C,3,FALSE),G5618)","v":"20.0"},{"$f":"IFERROR(VLOOKUP(H5618,Translation!$A:$C,3,FALSE),H5618)","v":"Île-du-Prince-Édouard"}]
[7,"T3 2017","ASSURANCE DE PORTEFEUILLE","Nouveau-Brunswick",20,"Avoir propre foncier moyen selon la province","20.0","Nouveau-Brunswick",{"$f":"IFERROR(VLOOKUP(A5620,Translation!$A:$C,3,FALSE),A5620)","v":7},{"$f":"IFERROR(VLOOKUP(B5620,Translation!$A:$C,3,FALSE),B5620)","v":"T3 2017"},{"$f":"IFERROR(VLOOKUP(C5620,Translation!$A:$C,3,FALSE),C5620)","v":"ASSURANCE DE PORTEFEUILLE"},{"$f":"IFERROR(VLOOKUP(D5620,Translation!$A:$C,3,FALSE),D5620)","v":"Nouveau-Brunswick"},{"$f":"IFERROR(VLOOKUP(E5620,Translation!$A:$C,3,FALSE),E5620)","v":20},{"$f":"IFERROR(VLOOKUP(F5620,Translation!$A:$C,3,FALSE),F5620)","v":"Avoir propre foncier moyen selon la province"},{"$f":"IFERROR(VLOOKUP(G5620,Translation!$A:$C,3,FALSE),G5620)","v":"20.0"},{"$f":"IFERROR(VLOOKUP(H5620,Translation!$A:$C,3,FALSE),H5620)","v":"Nouveau-Brunswick"}]
[7,"T3 2017","ASSURANCE DE PORTEFEUILLE","Manitoba",26.479292428248275,"Avoir propre foncier moyen selon la province","26.5","Manitoba",{"$f":"IFERROR(VLOOKUP(A5623,Translation!$A:$C,3,FALSE),A5623)","v":7},{"$f":"IFERROR(VLOOKUP(B5623,Translation!$A:$C,3,FALSE),B5623)","v":"T3 2017"},{"$f":"IFERROR(VLOOKUP(C5623,Translation!$A:$C,3,FALSE),C5623)","v":"ASSURANCE DE PORTEFEUILLE"},{"$f":"IFERROR(VLOOKUP(D5623,Translation!$A:$C,3,FALSE),D5623)","v":"Manitoba"},{"$f":"IFERROR(VLOOKUP(E5623,Translation!$A:$C,3,FALSE),E5623)","v":26.479292428248275},{"$f":"IFERROR(VLOOKUP(F5623,Translation!$A:$C,3,FALSE),F5623)","v":"Avoir propre foncier moyen selon la province"},{"$f":"IFERROR(VLOOKUP(G5623,Translation!$A:$C,3,FALSE),G5623)","v":"26.5"},{"$f":"IFERROR(VLOOKUP(H5623,Translation!$A:$C,3,FALSE),H5623)","v":"Manitoba"}]
[7,"T3 2017","ASSURANCE DE PORTEFEUILLE","Alberta",30.808989843385369,"Avoir propre foncier moyen selon la province","30.8","Alberta",{"$f":"IFERROR(VLOOKUP(A5625,Translation!$A:$C,3,FALSE),A5625)","v":7},{"$f":"IFERROR(VLOOKUP(B5625,Translation!$A:$C,3,FALSE),B5625)","v":"T3 2017"},{"$f":"IFERROR(VLOOKUP(C5625,Translation!$A:$C,3,FALSE),C5625)","v":"ASSURANCE DE PORTEFEUILLE"},{"$f":"IFERROR(VLOOKUP(D5625,Translation!$A:$C,3,FALSE),D5625)","v":"Alberta"},{"$f":"IFERROR(VLOOKUP(E5625,Translation!$A:$C,3,FALSE),E5625)","v":30.808989843385369},{"$f":"IFERROR(VLOOKUP(F5625,Translation!$A:$C,3,FALSE),F5625)","v":"Avoir propre foncier moyen selon la province"},{"$f":"IFERROR(VLOOKUP(G5625,Translation!$A:$C,3,FALSE),G5625)","v":"30.8"},{"$f":"IFERROR(VLOOKUP(H5625,Translation!$A:$C,3,FALSE),H5625)","v":"Alberta"}]
[7,"Q4 2016","ASSURANCE DE PORTEFEUILLE","Île-du-Prince-Édouard",29.353247399401255,"Avoir propre foncier moyen selon la province","29.4","Île-du-Prince-Édouard",{"$f":"IFERROR(VLOOKUP(A5628,Translation!$A:$C,3,FALSE),A5628)","v":7},{"$f":"IFERROR(VLOOKUP(B5628,Translation!$A:$C,3,FALSE),B5628)","v":"Q4 2016"},{"$f":"IFERROR(VLOOKUP(C5628,Translation!$A:$C,3,FALSE),C5628)","v":"ASSURANCE DE PORTEFEUILLE"},{"$f":"IFERROR(VLOOKUP(D5628,Translation!$A:$C,3,FALSE),D5628)","v":"Île-du-Prince-Édouard"},{"$f":"IFERROR(VLOOKUP(E5628,Translation!$A:$C,3,FALSE),E5628)","v":29.353247399401255},{"$f":"IFERROR(VLOOKUP(F5628,Translation!$A:$C,3,FALSE),F5628)","v":"Avoir propre foncier moyen selon la province"},{"$f":"IFERROR(VLOOKUP(G5628,Translation!$A:$C,3,FALSE),G5628)","v":"29.4"},{"$f":"IFERROR(VLOOKUP(H5628,Translation!$A:$C,3,FALSE),H5628)","v":"Île-du-Prince-Édouard"}]
[7,"Q4 2016","ASSURANCE DE PORTEFEUILLE","Québec",34.182876862091724,"Avoir propre foncier moyen selon la province","34.2","Québec",{"$f":"IFERROR(VLOOKUP(A5631,Translation!$A:$C,3,FALSE),A5631)","v":7},{"$f":"IFERROR(VLOOKUP(B5631,Translation!$A:$C,3,FALSE),B5631)","v":"Q4 2016"},{"$f":"IFERROR(VLOOKUP(C5631,Translation!$A:$C,3,FALSE),C5631)","v":"ASSURANCE DE PORTEFEUILLE"},{"$f":"IFERROR(VLOOKUP(D5631,Translation!$A:$C,3,FALSE),D5631)","v":"Québec"},{"$f":"IFERROR(VLOOKUP(E5631,Translation!$A:$C,3,FALSE),E5631)","v":34.182876862091724},{"$f":"IFERROR(VLOOKUP(F5631,Translation!$A:$C,3,FALSE),F5631)","v":"Avoir propre foncier moyen selon la province"},{"$f":"IFERROR(VLOOKUP(G5631,Translation!$A:$C,3,FALSE),G5631)","v":"34.2"},{"$f":"IFERROR(VLOOKUP(H5631,Translation!$A:$C,3,FALSE),H5631)","v":"Québec"}]
[7,"Q4 2016","ASSURANCE DE PORTEFEUILLE","Manitoba",28.980329392342185,"Avoir propre foncier moyen selon la province","29.0","Manitoba",{"$f":"IFERROR(VLOOKUP(A5633,Translation!$A:$C,3,FALSE),A5633)","v":7},{"$f":"IFERROR(VLOOKUP(B5633,Translation!$A:$C,3,FALSE),B5633)","v":"Q4 2016"},{"$f":"IFERROR(VLOOKUP(C5633,Translation!$A:$C,3,FALSE),C5633)","v":"ASSURANCE DE PORTEFEUILLE"},{"$f":"IFERROR(VLOOKUP(D5633,Translation!$A:$C,3,FALSE),D5633)","v":"Manitoba"},{"$f":"IFERROR(VLOOKUP(E5633,Translation!$A:$C,3,FALSE),E5633)","v":28.980329392342185},{"$f":"IFERROR(VLOOKUP(F5633,Translation!$A:$C,3,FALSE),F5633)","v":"Avoir propre foncier moyen selon la province"},{"$f":"IFERROR(VLOOKUP(G5633,Translation!$A:$C,3,FALSE),G5633)","v":"29.0"},{"$f":"IFERROR(VLOOKUP(H5633,Translation!$A:$C,3,FALSE),H5633)","v":"Manitoba"}]
[7,"Q4 2016","ASSURANCE DE PORTEFEUILLE","Saskatchewan",27.560139071191205,"Avoir propre foncier moyen selon la province","27.6","Saskatchewan",{"$f":"IFERROR(VLOOKUP(A5634,Translation!$A:$C,3,FALSE),A5634)","v":7},{"$f":"IFERROR(VLOOKUP(B5634,Translation!$A:$C,3,FALSE),B5634)","v":"Q4 2016"},{"$f":"IFERROR(VLOOKUP(C5634,Translation!$A:$C,3,FALSE),C5634)","v":"ASSURANCE DE PORTEFEUILLE"},{"$f":"IFERROR(VLOOKUP(D5634,Translation!$A:$C,3,FALSE),D5634)","v":"Saskatchewan"},{"$f":"IFERROR(VLOOKUP(E5634,Translation!$A:$C,3,FALSE),E5634)","v":27.560139071191205},{"$f":"IFERROR(VLOOKUP(F5634,Translation!$A:$C,3,FALSE),F5634)","v":"Avoir propre foncier moyen selon la province"},{"$f":"IFERROR(VLOOKUP(G5634,Translation!$A:$C,3,FALSE),G5634)","v":"27.6"},{"$f":"IFERROR(VLOOKUP(H5634,Translation!$A:$C,3,FALSE),H5634)","v":"Saskatchewan"}]
[7,"T4 2017","ASSURANCE DE PORTEFEUILLE","Terre-Neuve-et-Labrador",33.046689853274863,"Avoir propre foncier moyen selon la province","33.0","Terre-Neuve-et-Labrador",{"$f":"IFERROR(VLOOKUP(A5638,Translation!$A:$C,3,FALSE),A5638)","v":7},{"$f":"IFERROR(VLOOKUP(B5638,Translation!$A:$C,3,FALSE),B5638)","v":"T4 2017"},{"$f":"IFERROR(VLOOKUP(C5638,Translation!$A:$C,3,FALSE),C5638)","v":"ASSURANCE DE PORTEFEUILLE"},{"$f":"IFERROR(VLOOKUP(D5638,Translation!$A:$C,3,FALSE),D5638)","v":"Terre-Neuve-et-Labrador"},{"$f":"IFERROR(VLOOKUP(E5638,Translation!$A:$C,3,FALSE),E5638)","v":33.046689853274863},{"$f":"IFERROR(VLOOKUP(F5638,Translation!$A:$C,3,FALSE),F5638)","v":"Avoir propre foncier moyen selon la province"},{"$f":"IFERROR(VLOOKUP(G5638,Translation!$A:$C,3,FALSE),G5638)","v":"33.0"},{"$f":"IFERROR(VLOOKUP(H5638,Translation!$A:$C,3,FALSE),H5638)","v":"Terre-Neuve-et-Labrador"}]
[7,"T4 2017","ASSURANCE DE PORTEFEUILLE","Île-du-Prince-Édouard",33.770252330524393,"Avoir propre foncier moyen selon la province","33.8","Île-du-Prince-Édouard",{"$f":"IFERROR(VLOOKUP(A5639,Translation!$A:$C,3,FALSE),A5639)","v":7},{"$f":"IFERROR(VLOOKUP(B5639,Translation!$A:$C,3,FALSE),B5639)","v":"T4 2017"},{"$f":"IFERROR(VLOOKUP(C5639,Translation!$A:$C,3,FALSE),C5639)","v":"ASSURANCE DE PORTEFEUILLE"},{"$f":"IFERROR(VLOOKUP(D5639,Translation!$A:$C,3,FALSE),D5639)","v":"Île-du-Prince-Édouard"},{"$f":"IFERROR(VLOOKUP(E5639,Translation!$A:$C,3,FALSE),E5639)","v":33.770252330524393},{"$f":"IFERROR(VLOOKUP(F5639,Translation!$A:$C,3,FALSE),F5639)","v":"Avoir propre foncier moyen selon la province"},{"$f":"IFERROR(VLOOKUP(G5639,Translation!$A:$C,3,FALSE),G5639)","v":"33.8"},{"$f":"IFERROR(VLOOKUP(H5639,Translation!$A:$C,3,FALSE),H5639)","v":"Île-du-Prince-Édouard"}]
[7,"T4 2017","ASSURANCE DE PORTEFEUILLE","Québec",34.465816428498897,"Avoir propre foncier moyen selon la province","34.5","Québec",{"$f":"IFERROR(VLOOKUP(A5642,Translation!$A:$C,3,FALSE),A5642)","v":7},{"$f":"IFERROR(VLOOKUP(B5642,Translation!$A:$C,3,FALSE),B5642)","v":"T4 2017"},{"$f":"IFERROR(VLOOKUP(C5642,Translation!$A:$C,3,FALSE),C5642)","v":"ASSURANCE DE PORTEFEUILLE"},{"$f":"IFERROR(VLOOKUP(D5642,Translation!$A:$C,3,FALSE),D5642)","v":"Québec"},{"$f":"IFERROR(VLOOKUP(E5642,Translation!$A:$C,3,FALSE),E5642)","v":34.465816428498897},{"$f":"IFERROR(VLOOKUP(F5642,Translation!$A:$C,3,FALSE),F5642)","v":"Avoir propre foncier moyen selon la province"},{"$f":"IFERROR(VLOOKUP(G5642,Translation!$A:$C,3,FALSE),G5642)","v":"34.5"},{"$f":"IFERROR(VLOOKUP(H5642,Translation!$A:$C,3,FALSE),H5642)","v":"Québec"}]
[7,"T4 2017","ASSURANCE DE PORTEFEUILLE","Manitoba",33.760015274841976,"Avoir propre foncier moyen selon la province","33.8","Manitoba",{"$f":"IFERROR(VLOOKUP(A5644,Translation!$A:$C,3,FALSE),A5644)","v":7},{"$f":"IFERROR(VLOOKUP(B5644,Translation!$A:$C,3,FALSE),B5644)","v":"T4 2017"},{"$f":"IFERROR(VLOOKUP(C5644,Translation!$A:$C,3,FALSE),C5644)","v":"ASSURANCE DE PORTEFEUILLE"},{"$f":"IFERROR(VLOOKUP(D5644,Translation!$A:$C,3,FALSE),D5644)","v":"Manitoba"},{"$f":"IFERROR(VLOOKUP(E5644,Translation!$A:$C,3,FALSE),E5644)","v":33.760015274841976},{"$f":"IFERROR(VLOOKUP(F5644,Translation!$A:$C,3,FALSE),F5644)","v":"Avoir propre foncier moyen selon la province"},{"$f":"IFERROR(VLOOKUP(G5644,Translation!$A:$C,3,FALSE),G5644)","v":"33.8"},{"$f":"IFERROR(VLOOKUP(H5644,Translation!$A:$C,3,FALSE),H5644)","v":"Manitoba"}]
[7,"T4 2017","ASSURANCE DE PORTEFEUILLE","Territoires",42.429770646966801,"Avoir propre foncier moyen selon la province","42.4","Territoires",{"$f":"IFERROR(VLOOKUP(A5648,Translation!$A:$C,3,FALSE),A5648)","v":7},{"$f":"IFERROR(VLOOKUP(B5648,Translation!$A:$C,3,FALSE),B5648)","v":"T4 2017"},{"$f":"IFERROR(VLOOKUP(C5648,Translation!$A:$C,3,FALSE),C5648)","v":"ASSURANCE DE PORTEFEUILLE"},{"$f":"IFERROR(VLOOKUP(D5648,Translation!$A:$C,3,FALSE),D5648)","v":"Territoires"},{"$f":"IFERROR(VLOOKUP(E5648,Translation!$A:$C,3,FALSE),E5648)","v":42.429770646966801},{"$f":"IFERROR(VLOOKUP(F5648,Translation!$A:$C,3,FALSE),F5648)","v":"Avoir propre foncier moyen selon la province"},{"$f":"IFERROR(VLOOKUP(G5648,Translation!$A:$C,3,FALSE),G5648)","v":"42.4"},{"$f":"IFERROR(VLOOKUP(H5648,Translation!$A:$C,3,FALSE),H5648)","v":"Territoires"}]
[27,"T1 2017","IMMEUBLES COLLECTIFS RÉSIDENTIELS","<= 50 %",3.9847103416486056,"Prêts hypothécaires assurés au cours de la période selon le rapport prêt-valeur (RPV) établi d’après la valeur initiale de la propriété (%)","4.0"," <= 50 %",{"$f":"IFERROR(VLOOKUP(A5649,Translation!$A:$C,3,FALSE),A5649)","v":27},{"$f":"IFERROR(VLOOKUP(B5649,Translation!$A:$C,3,FALSE),B5649)","v":"T1 2017"},{"$f":"IFERROR(VLOOKUP(C5649,Translation!$A:$C,3,FALSE),C5649)","v":"IMMEUBLES COLLECTIFS RÉSIDENTIELS"},{"$f":"IFERROR(VLOOKUP(D5649,Translation!$A:$C,3,FALSE),D5649)","v":"<= 50 %"},{"$f":"IFERROR(VLOOKUP(E5649,Translation!$A:$C,3,FALSE),E5649)","v":3.9847103416486056},{"$f":"IFERROR(VLOOKUP(F5649,Translation!$A:$C,3,FALSE),F5649)","v":"Prêts hypothécaires assurés au cours de la période selon le rapport prêt-valeur (RPV) établi d’après la valeur initiale de la propriété (%)"},{"$f":"IFERROR(VLOOKUP(G5649,Translation!$A:$C,3,FALSE),G5649)","v":"4.0"},{"$f":"IFERROR(VLOOKUP(H5649,Translation!$A:$C,3,FALSE),H5649)","v":" <= 50 %"}]
[27,"T2 2017","IMMEUBLES COLLECTIFS RÉSIDENTIELS","<= 50 %",3.5442511053359222,"Prêts hypothécaires assurés au cours de la période selon le rapport prêt-valeur (RPV) établi d’après la valeur initiale de la propriété (%)","3.5"," <= 50 %",{"$f":"IFERROR(VLOOKUP(A5652,Translation!$A:$C,3,FALSE),A5652)","v":27},{"$f":"IFERROR(VLOOKUP(B5652,Translation!$A:$C,3,FALSE),B5652)","v":"T2 2017"},{"$f":"IFERROR(VLOOKUP(C5652,Translation!$A:$C,3,FALSE),C5652)","v":"IMMEUBLES COLLECTIFS RÉSIDENTIELS"},{"$f":"IFERROR(VLOOKUP(D5652,Translation!$A:$C,3,FALSE),D5652)","v":"<= 50 %"},{"$f":"IFERROR(VLOOKUP(E5652,Translation!$A:$C,3,FALSE),E5652)","v":3.5442511053359222},{"$f":"IFERROR(VLOOKUP(F5652,Translation!$A:$C,3,FALSE),F5652)","v":"Prêts hypothécaires assurés au cours de la période selon le rapport prêt-valeur (RPV) établi d’après la valeur initiale de la propriété (%)"},{"$f":"IFERROR(VLOOKUP(G5652,Translation!$A:$C,3,FALSE),G5652)","v":"3.5"},{"$f":"IFERROR(VLOOKUP(H5652,Translation!$A:$C,3,FALSE),H5652)","v":" <= 50 %"}]
[27,"Q3 2016","IMMEUBLES COLLECTIFS RÉSIDENTIELS","<= 50 %",1.4856883640590948,"Prêts hypothécaires assurés au cours de la période selon le rapport prêt-valeur (RPV) établi d’après la valeur initiale de la propriété (%)","1.5"," <= 50 %",{"$f":"IFERROR(VLOOKUP(A5653,Translation!$A:$C,3,FALSE),A5653)","v":27},{"$f":"IFERROR(VLOOKUP(B5653,Translation!$A:$C,3,FALSE),B5653)","v":"Q3 2016"},{"$f":"IFERROR(VLOOKUP(C5653,Translation!$A:$C,3,FALSE),C5653)","v":"IMMEUBLES COLLECTIFS RÉSIDENTIELS"},{"$f":"IFERROR(VLOOKUP(D5653,Translation!$A:$C,3,FALSE),D5653)","v":"<= 50 %"},{"$f":"IFERROR(VLOOKUP(E5653,Translation!$A:$C,3,FALSE),E5653)","v":1.4856883640590948},{"$f":"IFERROR(VLOOKUP(F5653,Translation!$A:$C,3,FALSE),F5653)","v":"Prêts hypothécaires assurés au cours de la période selon le rapport prêt-valeur (RPV) établi d’après la valeur initiale de la propriété (%)"},{"$f":"IFERROR(VLOOKUP(G5653,Translation!$A:$C,3,FALSE),G5653)","v":"1.5"},{"$f":"IFERROR(VLOOKUP(H5653,Translation!$A:$C,3,FALSE),H5653)","v":" <= 50 %"}]
[27,"T1 2017","IMMEUBLES COLLECTIFS RÉSIDENTIELS","> 50 % <= 55 %",1.3112165740566604,"Prêts hypothécaires assurés au cours de la période selon le rapport prêt-valeur (RPV) établi d’après la valeur initiale de la propriété (%)","1.3"," > 50 % <= 55 %",{"$f":"IFERROR(VLOOKUP(A5657,Translation!$A:$C,3,FALSE),A5657)","v":27},{"$f":"IFERROR(VLOOKUP(B5657,Translation!$A:$C,3,FALSE),B5657)","v":"T1 2017"},{"$f":"IFERROR(VLOOKUP(C5657,Translation!$A:$C,3,FALSE),C5657)","v":"IMMEUBLES COLLECTIFS RÉSIDENTIELS"},{"$f":"IFERROR(VLOOKUP(D5657,Translation!$A:$C,3,FALSE),D5657)","v":"> 50 % <= 55 %"},{"$f":"IFERROR(VLOOKUP(E5657,Translation!$A:$C,3,FALSE),E5657)","v":1.3112165740566604},{"$f":"IFERROR(VLOOKUP(F5657,Translation!$A:$C,3,FALSE),F5657)","v":"Prêts hypothécaires assurés au cours de la période selon le rapport prêt-valeur (RPV) établi d’après la valeur initiale de la propriété (%)"},{"$f":"IFERROR(VLOOKUP(G5657,Translation!$A:$C,3,FALSE),G5657)","v":"1.3"},{"$f":"IFERROR(VLOOKUP(H5657,Translation!$A:$C,3,FALSE),H5657)","v":" > 50 % <= 55 %"}]
[27,"Q2 2016","IMMEUBLES COLLECTIFS RÉSIDENTIELS","> 50 % <= 55 %",0.65828943079814295,"Prêts hypothécaires assurés au cours de la période selon le rapport prêt-valeur (RPV) établi d’après la valeur initiale de la propriété (%)","0.7"," > 50 % <= 55 %",{"$f":"IFERROR(VLOOKUP(A5659,Translation!$A:$C,3,FALSE),A5659)","v":27},{"$f":"IFERROR(VLOOKUP(B5659,Translation!$A:$C,3,FALSE),B5659)","v":"Q2 2016"},{"$f":"IFERROR(VLOOKUP(C5659,Translation!$A:$C,3,FALSE),C5659)","v":"IMMEUBLES COLLECTIFS RÉSIDENTIELS"},{"$f":"IFERROR(VLOOKUP(D5659,Translation!$A:$C,3,FALSE),D5659)","v":"> 50 % <= 55 %"},{"$f":"IFERROR(VLOOKUP(E5659,Translation!$A:$C,3,FALSE),E5659)","v":0.65828943079814295},{"$f":"IFERROR(VLOOKUP(F5659,Translation!$A:$C,3,FALSE),F5659)","v":"Prêts hypothécaires assurés au cours de la période selon le rapport prêt-valeur (RPV) établi d’après la valeur initiale de la propriété (%)"},{"$f":"IFERROR(VLOOKUP(G5659,Translation!$A:$C,3,FALSE),G5659)","v":"0.7"},{"$f":"IFERROR(VLOOKUP(H5659,Translation!$A:$C,3,FALSE),H5659)","v":" > 50 % <= 55 %"}]
[27,"T3 2017","IMMEUBLES COLLECTIFS RÉSIDENTIELS","> 50 % <= 55 %",2.5664009028312655,"Prêts hypothécaires assurés au cours de la période selon le rapport prêt-valeur (RPV) établi d’après la valeur initiale de la propriété (%)","2.6"," > 50 % <= 55 %",{"$f":"IFERROR(VLOOKUP(A5662,Translation!$A:$C,3,FALSE),A5662)","v":27},{"$f":"IFERROR(VLOOKUP(B5662,Translation!$A:$C,3,FALSE),B5662)","v":"T3 2017"},{"$f":"IFERROR(VLOOKUP(C5662,Translation!$A:$C,3,FALSE),C5662)","v":"IMMEUBLES COLLECTIFS RÉSIDENTIELS"},{"$f":"IFERROR(VLOOKUP(D5662,Translation!$A:$C,3,FALSE),D5662)","v":"> 50 % <= 55 %"},{"$f":"IFERROR(VLOOKUP(E5662,Translation!$A:$C,3,FALSE),E5662)","v":2.5664009028312655},{"$f":"IFERROR(VLOOKUP(F5662,Translation!$A:$C,3,FALSE),F5662)","v":"Prêts hypothécaires assurés au cours de la période selon le rapport prêt-valeur (RPV) établi d’après la valeur initiale de la propriété (%)"},{"$f":"IFERROR(VLOOKUP(G5662,Translation!$A:$C,3,FALSE),G5662)","v":"2.6"},{"$f":"IFERROR(VLOOKUP(H5662,Translation!$A:$C,3,FALSE),H5662)","v":" > 50 % <= 55 %"}]
[27,"Q4 2016","IMMEUBLES COLLECTIFS RÉSIDENTIELS","> 50 % <= 55 %",2.2538673903166817,"Prêts hypothécaires assurés au cours de la période selon le rapport prêt-valeur (RPV) établi d’après la valeur initiale de la propriété (%)","2.3"," > 50 % <= 55 %",{"$f":"IFERROR(VLOOKUP(A5663,Translation!$A:$C,3,FALSE),A5663)","v":27},{"$f":"IFERROR(VLOOKUP(B5663,Translation!$A:$C,3,FALSE),B5663)","v":"Q4 2016"},{"$f":"IFERROR(VLOOKUP(C5663,Translation!$A:$C,3,FALSE),C5663)","v":"IMMEUBLES COLLECTIFS RÉSIDENTIELS"},{"$f":"IFERROR(VLOOKUP(D5663,Translation!$A:$C,3,FALSE),D5663)","v":"> 50 % <= 55 %"},{"$f":"IFERROR(VLOOKUP(E5663,Translation!$A:$C,3,FALSE),E5663)","v":2.2538673903166817},{"$f":"IFERROR(VLOOKUP(F5663,Translation!$A:$C,3,FALSE),F5663)","v":"Prêts hypothécaires assurés au cours de la période selon le rapport prêt-valeur (RPV) établi d’après la valeur initiale de la propriété (%)"},{"$f":"IFERROR(VLOOKUP(G5663,Translation!$A:$C,3,FALSE),G5663)","v":"2.3"},{"$f":"IFERROR(VLOOKUP(H5663,Translation!$A:$C,3,FALSE),H5663)","v":" > 50 % <= 55 %"}]
[27,"Q2 2016","IMMEUBLES COLLECTIFS RÉSIDENTIELS","> 55 % <= 60 %",17.349453657342188,"Prêts hypothécaires assurés au cours de la période selon le rapport prêt-valeur (RPV) établi d’après la valeur initiale de la propriété (%)","17.3"," > 55 % <= 60 %",{"$f":"IFERROR(VLOOKUP(A5667,Translation!$A:$C,3,FALSE),A5667)","v":27},{"$f":"IFERROR(VLOOKUP(B5667,Translation!$A:$C,3,FALSE),B5667)","v":"Q2 2016"},{"$f":"IFERROR(VLOOKUP(C5667,Translation!$A:$C,3,FALSE),C5667)","v":"IMMEUBLES COLLECTIFS RÉSIDENTIELS"},{"$f":"IFERROR(VLOOKUP(D5667,Translation!$A:$C,3,FALSE),D5667)","v":"> 55 % <= 60 %"},{"$f":"IFERROR(VLOOKUP(E5667,Translation!$A:$C,3,FALSE),E5667)","v":17.349453657342188},{"$f":"IFERROR(VLOOKUP(F5667,Translation!$A:$C,3,FALSE),F5667)","v":"Prêts hypothécaires assurés au cours de la période selon le rapport prêt-valeur (RPV) établi d’après la valeur initiale de la propriété (%)"},{"$f":"IFERROR(VLOOKUP(G5667,Translation!$A:$C,3,FALSE),G5667)","v":"17.3"},{"$f":"IFERROR(VLOOKUP(H5667,Translation!$A:$C,3,FALSE),H5667)","v":" > 55 % <= 60 %"}]
[27,"T2 2017","IMMEUBLES COLLECTIFS RÉSIDENTIELS","> 55 % <= 60 %",13.492784876390065,"Prêts hypothécaires assurés au cours de la période selon le rapport prêt-valeur (RPV) établi d’après la valeur initiale de la propriété (%)","13.5"," > 55 % <= 60 %",{"$f":"IFERROR(VLOOKUP(A5668,Translation!$A:$C,3,FALSE),A5668)","v":27},{"$f":"IFERROR(VLOOKUP(B5668,Translation!$A:$C,3,FALSE),B5668)","v":"T2 2017"},{"$f":"IFERROR(VLOOKUP(C5668,Translation!$A:$C,3,FALSE),C5668)","v":"IMMEUBLES COLLECTIFS RÉSIDENTIELS"},{"$f":"IFERROR(VLOOKUP(D5668,Translation!$A:$C,3,FALSE),D5668)","v":"> 55 % <= 60 %"},{"$f":"IFERROR(VLOOKUP(E5668,Translation!$A:$C,3,FALSE),E5668)","v":13.492784876390065},{"$f":"IFERROR(VLOOKUP(F5668,Translation!$A:$C,3,FALSE),F5668)","v":"Prêts hypothécaires assurés au cours de la période selon le rapport prêt-valeur (RPV) établi d’après la valeur initiale de la propriété (%)"},{"$f":"IFERROR(VLOOKUP(G5668,Translation!$A:$C,3,FALSE),G5668)","v":"13.5"},{"$f":"IFERROR(VLOOKUP(H5668,Translation!$A:$C,3,FALSE),H5668)","v":" > 55 % <= 60 %"}]
[27,"T3 2017","IMMEUBLES COLLECTIFS RÉSIDENTIELS","> 55 % <= 60 %",6.2539410722609858,"Prêts hypothécaires assurés au cours de la période selon le rapport prêt-valeur (RPV) établi d’après la valeur initiale de la propriété (%)","6.3"," > 55 % <= 60 %",{"$f":"IFERROR(VLOOKUP(A5670,Translation!$A:$C,3,FALSE),A5670)","v":27},{"$f":"IFERROR(VLOOKUP(B5670,Translation!$A:$C,3,FALSE),B5670)","v":"T3 2017"},{"$f":"IFERROR(VLOOKUP(C5670,Translation!$A:$C,3,FALSE),C5670)","v":"IMMEUBLES COLLECTIFS RÉSIDENTIELS"},{"$f":"IFERROR(VLOOKUP(D5670,Translation!$A:$C,3,FALSE),D5670)","v":"> 55 % <= 60 %"},{"$f":"IFERROR(VLOOKUP(E5670,Translation!$A:$C,3,FALSE),E5670)","v":6.2539410722609858},{"$f":"IFERROR(VLOOKUP(F5670,Translation!$A:$C,3,FALSE),F5670)","v":"Prêts hypothécaires assurés au cours de la période selon le rapport prêt-valeur (RPV) établi d’après la valeur initiale de la propriété (%)"},{"$f":"IFERROR(VLOOKUP(G5670,Translation!$A:$C,3,FALSE),G5670)","v":"6.3"},{"$f":"IFERROR(VLOOKUP(H5670,Translation!$A:$C,3,FALSE),H5670)","v":" > 55 % <= 60 %"}]
[27,"T1 2017","IMMEUBLES COLLECTIFS RÉSIDENTIELS","> 60 % <= 65 %",8.226777298042018,"Prêts hypothécaires assurés au cours de la période selon le rapport prêt-valeur (RPV) établi d’après la valeur initiale de la propriété (%)","8.2"," > 60 % <= 65 %",{"$f":"IFERROR(VLOOKUP(A5673,Translation!$A:$C,3,FALSE),A5673)","v":27},{"$f":"IFERROR(VLOOKUP(B5673,Translation!$A:$C,3,FALSE),B5673)","v":"T1 2017"},{"$f":"IFERROR(VLOOKUP(C5673,Translation!$A:$C,3,FALSE),C5673)","v":"IMMEUBLES COLLECTIFS RÉSIDENTIELS"},{"$f":"IFERROR(VLOOKUP(D5673,Translation!$A:$C,3,FALSE),D5673)","v":"> 60 % <= 65 %"},{"$f":"IFERROR(VLOOKUP(E5673,Translation!$A:$C,3,FALSE),E5673)","v":8.226777298042018},{"$f":"IFERROR(VLOOKUP(F5673,Translation!$A:$C,3,FALSE),F5673)","v":"Prêts hypothécaires assurés au cours de la période selon le rapport prêt-valeur (RPV) établi d’après la valeur initiale de la propriété (%)"},{"$f":"IFERROR(VLOOKUP(G5673,Translation!$A:$C,3,FALSE),G5673)","v":"8.2"},{"$f":"IFERROR(VLOOKUP(H5673,Translation!$A:$C,3,FALSE),H5673)","v":" > 60 % <= 65 %"}]
[27,"T2 2017","IMMEUBLES COLLECTIFS RÉSIDENTIELS","> 60 % <= 65 %",4.9877724477995029,"Prêts hypothécaires assurés au cours de la période selon le rapport prêt-valeur (RPV) établi d’après la valeur initiale de la propriété (%)","5.0"," > 60 % <= 65 %",{"$f":"IFERROR(VLOOKUP(A5676,Translation!$A:$C,3,FALSE),A5676)","v":27},{"$f":"IFERROR(VLOOKUP(B5676,Translation!$A:$C,3,FALSE),B5676)","v":"T2 2017"},{"$f":"IFERROR(VLOOKUP(C5676,Translation!$A:$C,3,FALSE),C5676)","v":"IMMEUBLES COLLECTIFS RÉSIDENTIELS"},{"$f":"IFERROR(VLOOKUP(D5676,Translation!$A:$C,3,FALSE),D5676)","v":"> 60 % <= 65 %"},{"$f":"IFERROR(VLOOKUP(E5676,Translation!$A:$C,3,FALSE),E5676)","v":4.9877724477995029},{"$f":"IFERROR(VLOOKUP(F5676,Translation!$A:$C,3,FALSE),F5676)","v":"Prêts hypothécaires assurés au cours de la période selon le rapport prêt-valeur (RPV) établi d’après la valeur initiale de la propriété (%)"},{"$f":"IFERROR(VLOOKUP(G5676,Translation!$A:$C,3,FALSE),G5676)","v":"5.0"},{"$f":"IFERROR(VLOOKUP(H5676,Translation!$A:$C,3,FALSE),H5676)","v":" > 60 % <= 65 %"}]
[27,"T3 2017","IMMEUBLES COLLECTIFS RÉSIDENTIELS","> 60 % <= 65 %",9.5661572940932622,"Prêts hypothécaires assurés au cours de la période selon le rapport prêt-valeur (RPV) établi d’après la valeur initiale de la propriété (%)","9.6"," > 60 % <= 65 %",{"$f":"IFERROR(VLOOKUP(A5678,Translation!$A:$C,3,FALSE),A5678)","v":27},{"$f":"IFERROR(VLOOKUP(B5678,Translation!$A:$C,3,FALSE),B5678)","v":"T3 2017"},{"$f":"IFERROR(VLOOKUP(C5678,Translation!$A:$C,3,FALSE),C5678)","v":"IMMEUBLES COLLECTIFS RÉSIDENTIELS"},{"$f":"IFERROR(VLOOKUP(D5678,Translation!$A:$C,3,FALSE),D5678)","v":"> 60 % <= 65 %"},{"$f":"IFERROR(VLOOKUP(E5678,Translation!$A:$C,3,FALSE),E5678)","v":9.5661572940932622},{"$f":"IFERROR(VLOOKUP(F5678,Translation!$A:$C,3,FALSE),F5678)","v":"Prêts hypothécaires assurés au cours de la période selon le rapport prêt-valeur (RPV) établi d’après la valeur initiale de la propriété (%)"},{"$f":"IFERROR(VLOOKUP(G5678,Translation!$A:$C,3,FALSE),G5678)","v":"9.6"},{"$f":"IFERROR(VLOOKUP(H5678,Translation!$A:$C,3,FALSE),H5678)","v":" > 60 % <= 65 %"}]
[27,"T1 2017","IMMEUBLES COLLECTIFS RÉSIDENTIELS","> 65 % <= 70 %",13.35575867460253,"Prêts hypothécaires assurés au cours de la période selon le rapport prêt-valeur (RPV) établi d’après la valeur initiale de la propriété (%)","13.4"," > 65 % <= 70 %",{"$f":"IFERROR(VLOOKUP(A5681,Translation!$A:$C,3,FALSE),A5681)","v":27},{"$f":"IFERROR(VLOOKUP(B5681,Translation!$A:$C,3,FALSE),B5681)","v":"T1 2017"},{"$f":"IFERROR(VLOOKUP(C5681,Translation!$A:$C,3,FALSE),C5681)","v":"IMMEUBLES COLLECTIFS RÉSIDENTIELS"},{"$f":"IFERROR(VLOOKUP(D5681,Translation!$A:$C,3,FALSE),D5681)","v":"> 65 % <= 70 %"},{"$f":"IFERROR(VLOOKUP(E5681,Translation!$A:$C,3,FALSE),E5681)","v":13.35575867460253},{"$f":"IFERROR(VLOOKUP(F5681,Translation!$A:$C,3,FALSE),F5681)","v":"Prêts hypothécaires assurés au cours de la période selon le rapport prêt-valeur (RPV) établi d’après la valeur initiale de la propriété (%)"},{"$f":"IFERROR(VLOOKUP(G5681,Translation!$A:$C,3,FALSE),G5681)","v":"13.4"},{"$f":"IFERROR(VLOOKUP(H5681,Translation!$A:$C,3,FALSE),H5681)","v":" > 65 % <= 70 %"}]
[27,"T2 2017","IMMEUBLES COLLECTIFS RÉSIDENTIELS","> 65 % <= 70 %",6.3733410869455955,"Prêts hypothécaires assurés au cours de la période selon le rapport prêt-valeur (RPV) établi d’après la valeur initiale de la propriété (%)","6.4"," > 65 % <= 70 %",{"$f":"IFERROR(VLOOKUP(A5684,Translation!$A:$C,3,FALSE),A5684)","v":27},{"$f":"IFERROR(VLOOKUP(B5684,Translation!$A:$C,3,FALSE),B5684)","v":"T2 2017"},{"$f":"IFERROR(VLOOKUP(C5684,Translation!$A:$C,3,FALSE),C5684)","v":"IMMEUBLES COLLECTIFS RÉSIDENTIELS"},{"$f":"IFERROR(VLOOKUP(D5684,Translation!$A:$C,3,FALSE),D5684)","v":"> 65 % <= 70 %"},{"$f":"IFERROR(VLOOKUP(E5684,Translation!$A:$C,3,FALSE),E5684)","v":6.3733410869455955},{"$f":"IFERROR(VLOOKUP(F5684,Translation!$A:$C,3,FALSE),F5684)","v":"Prêts hypothécaires assurés au cours de la période selon le rapport prêt-valeur (RPV) établi d’après la valeur initiale de la propriété (%)"},{"$f":"IFERROR(VLOOKUP(G5684,Translation!$A:$C,3,FALSE),G5684)","v":"6.4"},{"$f":"IFERROR(VLOOKUP(H5684,Translation!$A:$C,3,FALSE),H5684)","v":" > 65 % <= 70 %"}]
[27,"T3 2017","IMMEUBLES COLLECTIFS RÉSIDENTIELS","> 65 % <= 70 %",2.6129982223430832,"Prêts hypothécaires assurés au cours de la période selon le rapport prêt-valeur (RPV) établi d’après la valeur initiale de la propriété (%)","2.6"," > 65 % <= 70 %",{"$f":"IFERROR(VLOOKUP(A5686,Translation!$A:$C,3,FALSE),A5686)","v":27},{"$f":"IFERROR(VLOOKUP(B5686,Translation!$A:$C,3,FALSE),B5686)","v":"T3 2017"},{"$f":"IFERROR(VLOOKUP(C5686,Translation!$A:$C,3,FALSE),C5686)","v":"IMMEUBLES COLLECTIFS RÉSIDENTIELS"},{"$f":"IFERROR(VLOOKUP(D5686,Translation!$A:$C,3,FALSE),D5686)","v":"> 65 % <= 70 %"},{"$f":"IFERROR(VLOOKUP(E5686,Translation!$A:$C,3,FALSE),E5686)","v":2.6129982223430832},{"$f":"IFERROR(VLOOKUP(F5686,Translation!$A:$C,3,FALSE),F5686)","v":"Prêts hypothécaires assurés au cours de la période selon le rapport prêt-valeur (RPV) établi d’après la valeur initiale de la propriété (%)"},{"$f":"IFERROR(VLOOKUP(G5686,Translation!$A:$C,3,FALSE),G5686)","v":"2.6"},{"$f":"IFERROR(VLOOKUP(H5686,Translation!$A:$C,3,FALSE),H5686)","v":" > 65 % <= 70 %"}]
[27,"Q4 2016","IMMEUBLES COLLECTIFS RÉSIDENTIELS","> 65 % <= 70 %",6.8248179653492302,"Prêts hypothécaires assurés au cours de la période selon le rapport prêt-valeur (RPV) établi d’après la valeur initiale de la propriété (%)","6.8"," > 65 % <= 70 %",{"$f":"IFERROR(VLOOKUP(A5687,Translation!$A:$C,3,FALSE),A5687)","v":27},{"$f":"IFERROR(VLOOKUP(B5687,Translation!$A:$C,3,FALSE),B5687)","v":"Q4 2016"},{"$f":"IFERROR(VLOOKUP(C5687,Translation!$A:$C,3,FALSE),C5687)","v":"IMMEUBLES COLLECTIFS RÉSIDENTIELS"},{"$f":"IFERROR(VLOOKUP(D5687,Translation!$A:$C,3,FALSE),D5687)","v":"> 65 % <= 70 %"},{"$f":"IFERROR(VLOOKUP(E5687,Translation!$A:$C,3,FALSE),E5687)","v":6.8248179653492302},{"$f":"IFERROR(VLOOKUP(F5687,Translation!$A:$C,3,FALSE),F5687)","v":"Prêts hypothécaires assurés au cours de la période selon le rapport prêt-valeur (RPV) établi d’après la valeur initiale de la propriété (%)"},{"$f":"IFERROR(VLOOKUP(G5687,Translation!$A:$C,3,FALSE),G5687)","v":"6.8"},{"$f":"IFERROR(VLOOKUP(H5687,Translation!$A:$C,3,FALSE),H5687)","v":" > 65 % <= 70 %"}]
[27,"T1 2017","IMMEUBLES COLLECTIFS RÉSIDENTIELS","> 70 % <= 75 %",27.622024219486043,"Prêts hypothécaires assurés au cours de la période selon le rapport prêt-valeur (RPV) établi d’après la valeur initiale de la propriété (%)","27.6"," > 70 % <= 75 %",{"$f":"IFERROR(VLOOKUP(A5689,Translation!$A:$C,3,FALSE),A5689)","v":27},{"$f":"IFERROR(VLOOKUP(B5689,Translation!$A:$C,3,FALSE),B5689)","v":"T1 2017"},{"$f":"IFERROR(VLOOKUP(C5689,Translation!$A:$C,3,FALSE),C5689)","v":"IMMEUBLES COLLECTIFS RÉSIDENTIELS"},{"$f":"IFERROR(VLOOKUP(D5689,Translation!$A:$C,3,FALSE),D5689)","v":"> 70 % <= 75 %"},{"$f":"IFERROR(VLOOKUP(E5689,Translation!$A:$C,3,FALSE),E5689)","v":27.622024219486043},{"$f":"IFERROR(VLOOKUP(F5689,Translation!$A:$C,3,FALSE),F5689)","v":"Prêts hypothécaires assurés au cours de la période selon le rapport prêt-valeur (RPV) établi d’après la valeur initiale de la propriété (%)"},{"$f":"IFERROR(VLOOKUP(G5689,Translation!$A:$C,3,FALSE),G5689)","v":"27.6"},{"$f":"IFERROR(VLOOKUP(H5689,Translation!$A:$C,3,FALSE),H5689)","v":" > 70 % <= 75 %"}]
[27,"T2 2017","IMMEUBLES COLLECTIFS RÉSIDENTIELS","> 70 % <= 75 %",45.46962277786001,"Prêts hypothécaires assurés au cours de la période selon le rapport prêt-valeur (RPV) établi d’après la valeur initiale de la propriété (%)","45.5"," > 70 % <= 75 %",{"$f":"IFERROR(VLOOKUP(A5692,Translation!$A:$C,3,FALSE),A5692)","v":27},{"$f":"IFERROR(VLOOKUP(B5692,Translation!$A:$C,3,FALSE),B5692)","v":"T2 2017"},{"$f":"IFERROR(VLOOKUP(C5692,Translation!$A:$C,3,FALSE),C5692)","v":"IMMEUBLES COLLECTIFS RÉSIDENTIELS"},{"$f":"IFERROR(VLOOKUP(D5692,Translation!$A:$C,3,FALSE),D5692)","v":"> 70 % <= 75 %"},{"$f":"IFERROR(VLOOKUP(E5692,Translation!$A:$C,3,FALSE),E5692)","v":45.46962277786001},{"$f":"IFERROR(VLOOKUP(F5692,Translation!$A:$C,3,FALSE),F5692)","v":"Prêts hypothécaires assurés au cours de la période selon le rapport prêt-valeur (RPV) établi d’après la valeur initiale de la propriété (%)"},{"$f":"IFERROR(VLOOKUP(G5692,Translation!$A:$C,3,FALSE),G5692)","v":"45.5"},{"$f":"IFERROR(VLOOKUP(H5692,Translation!$A:$C,3,FALSE),H5692)","v":" > 70 % <= 75 %"}]
[27,"Q4 2016","IMMEUBLES COLLECTIFS RÉSIDENTIELS","> 70 % <= 75 %",37.259602639287138,"Prêts hypothécaires assurés au cours de la période selon le rapport prêt-valeur (RPV) établi d’après la valeur initiale de la propriété (%)","37.3"," > 70 % <= 75 %",{"$f":"IFERROR(VLOOKUP(A5695,Translation!$A:$C,3,FALSE),A5695)","v":27},{"$f":"IFERROR(VLOOKUP(B5695,Translation!$A:$C,3,FALSE),B5695)","v":"Q4 2016"},{"$f":"IFERROR(VLOOKUP(C5695,Translation!$A:$C,3,FALSE),C5695)","v":"IMMEUBLES COLLECTIFS RÉSIDENTIELS"},{"$f":"IFERROR(VLOOKUP(D5695,Translation!$A:$C,3,FALSE),D5695)","v":"> 70 % <= 75 %"},{"$f":"IFERROR(VLOOKUP(E5695,Translation!$A:$C,3,FALSE),E5695)","v":37.259602639287138},{"$f":"IFERROR(VLOOKUP(F5695,Translation!$A:$C,3,FALSE),F5695)","v":"Prêts hypothécaires assurés au cours de la période selon le rapport prêt-valeur (RPV) établi d’après la valeur initiale de la propriété (%)"},{"$f":"IFERROR(VLOOKUP(G5695,Translation!$A:$C,3,FALSE),G5695)","v":"37.3"},{"$f":"IFERROR(VLOOKUP(H5695,Translation!$A:$C,3,FALSE),H5695)","v":" > 70 % <= 75 %"}]
[27,"T1 2017","IMMEUBLES COLLECTIFS RÉSIDENTIELS","> 75 % <= 80 %",3.1192460092694119,"Prêts hypothécaires assurés au cours de la période selon le rapport prêt-valeur (RPV) établi d’après la valeur initiale de la propriété (%)","3.1"," > 75 % <= 80 %",{"$f":"IFERROR(VLOOKUP(A5697,Translation!$A:$C,3,FALSE),A5697)","v":27},{"$f":"IFERROR(VLOOKUP(B5697,Translation!$A:$C,3,FALSE),B5697)","v":"T1 2017"},{"$f":"IFERROR(VLOOKUP(C5697,Translation!$A:$C,3,FALSE),C5697)","v":"IMMEUBLES COLLECTIFS RÉSIDENTIELS"},{"$f":"IFERROR(VLOOKUP(D5697,Translation!$A:$C,3,FALSE),D5697)","v":"> 75 % <= 80 %"},{"$f":"IFERROR(VLOOKUP(E5697,Translation!$A:$C,3,FALSE),E5697)","v":3.1192460092694119},{"$f":"IFERROR(VLOOKUP(F5697,Translation!$A:$C,3,FALSE),F5697)","v":"Prêts hypothécaires assurés au cours de la période selon le rapport prêt-valeur (RPV) établi d’après la valeur initiale de la propriété (%)"},{"$f":"IFERROR(VLOOKUP(G5697,Translation!$A:$C,3,FALSE),G5697)","v":"3.1"},{"$f":"IFERROR(VLOOKUP(H5697,Translation!$A:$C,3,FALSE),H5697)","v":" > 75 % <= 80 %"}]
[27,"T2 2017","IMMEUBLES COLLECTIFS RÉSIDENTIELS","> 75 % <= 80 %",3.4297287908344742,"Prêts hypothécaires assurés au cours de la période selon le rapport prêt-valeur (RPV) établi d’après la valeur initiale de la propriété (%)","3.4"," > 75 % <= 80 %",{"$f":"IFERROR(VLOOKUP(A5700,Translation!$A:$C,3,FALSE),A5700)","v":27},{"$f":"IFERROR(VLOOKUP(B5700,Translation!$A:$C,3,FALSE),B5700)","v":"T2 2017"},{"$f":"IFERROR(VLOOKUP(C5700,Translation!$A:$C,3,FALSE),C5700)","v":"IMMEUBLES COLLECTIFS RÉSIDENTIELS"},{"$f":"IFERROR(VLOOKUP(D5700,Translation!$A:$C,3,FALSE),D5700)","v":"> 75 % <= 80 %"},{"$f":"IFERROR(VLOOKUP(E5700,Translation!$A:$C,3,FALSE),E5700)","v":3.4297287908344742},{"$f":"IFERROR(VLOOKUP(F5700,Translation!$A:$C,3,FALSE),F5700)","v":"Prêts hypothécaires assurés au cours de la période selon le rapport prêt-valeur (RPV) établi d’après la valeur initiale de la propriété (%)"},{"$f":"IFERROR(VLOOKUP(G5700,Translation!$A:$C,3,FALSE),G5700)","v":"3.4"},{"$f":"IFERROR(VLOOKUP(H5700,Translation!$A:$C,3,FALSE),H5700)","v":" > 75 % <= 80 %"}]
[27,"Q4 2016","IMMEUBLES COLLECTIFS RÉSIDENTIELS","> 75 % <= 80 %",2.6629520902874861,"Prêts hypothécaires assurés au cours de la période selon le rapport prêt-valeur (RPV) établi d’après la valeur initiale de la propriété (%)","2.7"," > 75 % <= 80 %",{"$f":"IFERROR(VLOOKUP(A5703,Translation!$A:$C,3,FALSE),A5703)","v":27},{"$f":"IFERROR(VLOOKUP(B5703,Translation!$A:$C,3,FALSE),B5703)","v":"Q4 2016"},{"$f":"IFERROR(VLOOKUP(C5703,Translation!$A:$C,3,FALSE),C5703)","v":"IMMEUBLES COLLECTIFS RÉSIDENTIELS"},{"$f":"IFERROR(VLOOKUP(D5703,Translation!$A:$C,3,FALSE),D5703)","v":"> 75 % <= 80 %"},{"$f":"IFERROR(VLOOKUP(E5703,Translation!$A:$C,3,FALSE),E5703)","v":2.6629520902874861},{"$f":"IFERROR(VLOOKUP(F5703,Translation!$A:$C,3,FALSE),F5703)","v":"Prêts hypothécaires assurés au cours de la période selon le rapport prêt-valeur (RPV) établi d’après la valeur initiale de la propriété (%)"},{"$f":"IFERROR(VLOOKUP(G5703,Translation!$A:$C,3,FALSE),G5703)","v":"2.7"},{"$f":"IFERROR(VLOOKUP(H5703,Translation!$A:$C,3,FALSE),H5703)","v":" > 75 % <= 80 %"}]
[27,"T1 2017","IMMEUBLES COLLECTIFS RÉSIDENTIELS","> 80 % <= 85 %",24.801324577922284,"Prêts hypothécaires assurés au cours de la période selon le rapport prêt-valeur (RPV) établi d’après la valeur initiale de la propriété (%)","24.8"," > 80 % <= 85 %",{"$f":"IFERROR(VLOOKUP(A5705,Translation!$A:$C,3,FALSE),A5705)","v":27},{"$f":"IFERROR(VLOOKUP(B5705,Translation!$A:$C,3,FALSE),B5705)","v":"T1 2017"},{"$f":"IFERROR(VLOOKUP(C5705,Translation!$A:$C,3,FALSE),C5705)","v":"IMMEUBLES COLLECTIFS RÉSIDENTIELS"},{"$f":"IFERROR(VLOOKUP(D5705,Translation!$A:$C,3,FALSE),D5705)","v":"> 80 % <= 85 %"},{"$f":"IFERROR(VLOOKUP(E5705,Translation!$A:$C,3,FALSE),E5705)","v":24.801324577922284},{"$f":"IFERROR(VLOOKUP(F5705,Translation!$A:$C,3,FALSE),F5705)","v":"Prêts hypothécaires assurés au cours de la période selon le rapport prêt-valeur (RPV) établi d’après la valeur initiale de la propriété (%)"},{"$f":"IFERROR(VLOOKUP(G5705,Translation!$A:$C,3,FALSE),G5705)","v":"24.8"},{"$f":"IFERROR(VLOOKUP(H5705,Translation!$A:$C,3,FALSE),H5705)","v":" > 80 % <= 85 %"}]
[27,"T1 2018","IMMEUBLES COLLECTIFS RÉSIDENTIELS","> 80 % <= 85 %",22.464098996789172,"Prêts hypothécaires assurés au cours de la période selon le rapport prêt-valeur (RPV) établi d’après la valeur initiale de la propriété (%)","22.5"," > 80 % <= 85 %",{"$f":"IFERROR(VLOOKUP(A5706,Translation!$A:$C,3,FALSE),A5706)","v":27},{"$f":"IFERROR(VLOOKUP(B5706,Translation!$A:$C,3,FALSE),B5706)","v":"T1 2018"},{"$f":"IFERROR(VLOOKUP(C5706,Translation!$A:$C,3,FALSE),C5706)","v":"IMMEUBLES COLLECTIFS RÉSIDENTIELS"},{"$f":"IFERROR(VLOOKUP(D5706,Translation!$A:$C,3,FALSE),D5706)","v":"> 80 % <= 85 %"},{"$f":"IFERROR(VLOOKUP(E5706,Translation!$A:$C,3,FALSE),E5706)","v":22.464098996789172},{"$f":"IFERROR(VLOOKUP(F5706,Translation!$A:$C,3,FALSE),F5706)","v":"Prêts hypothécaires assurés au cours de la période selon le rapport prêt-valeur (RPV) établi d’après la valeur initiale de la propriété (%)"},{"$f":"IFERROR(VLOOKUP(G5706,Translation!$A:$C,3,FALSE),G5706)","v":"22.5"},{"$f":"IFERROR(VLOOKUP(H5706,Translation!$A:$C,3,FALSE),H5706)","v":" > 80 % <= 85 %"}]
[27,"T3 2017","IMMEUBLES COLLECTIFS RÉSIDENTIELS","> 80 % <= 85 %",29.943817255319399,"Prêts hypothécaires assurés au cours de la période selon le rapport prêt-valeur (RPV) établi d’après la valeur initiale de la propriété (%)","29.9"," > 80 % <= 85 %",{"$f":"IFERROR(VLOOKUP(A5710,Translation!$A:$C,3,FALSE),A5710)","v":27},{"$f":"IFERROR(VLOOKUP(B5710,Translation!$A:$C,3,FALSE),B5710)","v":"T3 2017"},{"$f":"IFERROR(VLOOKUP(C5710,Translation!$A:$C,3,FALSE),C5710)","v":"IMMEUBLES COLLECTIFS RÉSIDENTIELS"},{"$f":"IFERROR(VLOOKUP(D5710,Translation!$A:$C,3,FALSE),D5710)","v":"> 80 % <= 85 %"},{"$f":"IFERROR(VLOOKUP(E5710,Translation!$A:$C,3,FALSE),E5710)","v":29.943817255319399},{"$f":"IFERROR(VLOOKUP(F5710,Translation!$A:$C,3,FALSE),F5710)","v":"Prêts hypothécaires assurés au cours de la période selon le rapport prêt-valeur (RPV) établi d’après la valeur initiale de la propriété (%)"},{"$f":"IFERROR(VLOOKUP(G5710,Translation!$A:$C,3,FALSE),G5710)","v":"29.9"},{"$f":"IFERROR(VLOOKUP(H5710,Translation!$A:$C,3,FALSE),H5710)","v":" > 80 % <= 85 %"}]
[27,"Q4 2016","IMMEUBLES COLLECTIFS RÉSIDENTIELS","> 80 % <= 85 %",26.467423021401139,"Prêts hypothécaires assurés au cours de la période selon le rapport prêt-valeur (RPV) établi d’après la valeur initiale de la propriété (%)","26.5"," > 80 % <= 85 %",{"$f":"IFERROR(VLOOKUP(A5711,Translation!$A:$C,3,FALSE),A5711)","v":27},{"$f":"IFERROR(VLOOKUP(B5711,Translation!$A:$C,3,FALSE),B5711)","v":"Q4 2016"},{"$f":"IFERROR(VLOOKUP(C5711,Translation!$A:$C,3,FALSE),C5711)","v":"IMMEUBLES COLLECTIFS RÉSIDENTIELS"},{"$f":"IFERROR(VLOOKUP(D5711,Translation!$A:$C,3,FALSE),D5711)","v":"> 80 % <= 85 %"},{"$f":"IFERROR(VLOOKUP(E5711,Translation!$A:$C,3,FALSE),E5711)","v":26.467423021401139},{"$f":"IFERROR(VLOOKUP(F5711,Translation!$A:$C,3,FALSE),F5711)","v":"Prêts hypothécaires assurés au cours de la période selon le rapport prêt-valeur (RPV) établi d’après la valeur initiale de la propriété (%)"},{"$f":"IFERROR(VLOOKUP(G5711,Translation!$A:$C,3,FALSE),G5711)","v":"26.5"},{"$f":"IFERROR(VLOOKUP(H5711,Translation!$A:$C,3,FALSE),H5711)","v":" > 80 % <= 85 %"}]
[27,"Q4 2016","IMMEUBLES COLLECTIFS RÉSIDENTIELS","> 85 % <= 90 %",5.6036782158572121E-2,"Prêts hypothécaires assurés au cours de la période selon le rapport prêt-valeur (RPV) établi d’après la valeur initiale de la propriété (%)","0.1"," > 85 % <= 90 %",{"$f":"IFERROR(VLOOKUP(A5714,Translation!$A:$C,3,FALSE),A5714)","v":27},{"$f":"IFERROR(VLOOKUP(B5714,Translation!$A:$C,3,FALSE),B5714)","v":"Q4 2016"},{"$f":"IFERROR(VLOOKUP(C5714,Translation!$A:$C,3,FALSE),C5714)","v":"IMMEUBLES COLLECTIFS RÉSIDENTIELS"},{"$f":"IFERROR(VLOOKUP(D5714,Translation!$A:$C,3,FALSE),D5714)","v":"> 85 % <= 90 %"},{"$f":"IFERROR(VLOOKUP(E5714,Translation!$A:$C,3,FALSE),E5714)","v":5.6036782158572121E-2},{"$f":"IFERROR(VLOOKUP(F5714,Translation!$A:$C,3,FALSE),F5714)","v":"Prêts hypothécaires assurés au cours de la période selon le rapport prêt-valeur (RPV) établi d’après la valeur initiale de la propriété (%)"},{"$f":"IFERROR(VLOOKUP(G5714,Translation!$A:$C,3,FALSE),G5714)","v":"0.1"},{"$f":"IFERROR(VLOOKUP(H5714,Translation!$A:$C,3,FALSE),H5714)","v":" > 85 % <= 90 %"}]
[27,"Q2 2016","IMMEUBLES COLLECTIFS RÉSIDENTIELS","> 90 % <= 95 %",2.4253913185495999,"Prêts hypothécaires assurés au cours de la période selon le rapport prêt-valeur (RPV) établi d’après la valeur initiale de la propriété (%)","2.4"," > 90 % <= 95 %",{"$f":"IFERROR(VLOOKUP(A5716,Translation!$A:$C,3,FALSE),A5716)","v":27},{"$f":"IFERROR(VLOOKUP(B5716,Translation!$A:$C,3,FALSE),B5716)","v":"Q2 2016"},{"$f":"IFERROR(VLOOKUP(C5716,Translation!$A:$C,3,FALSE),C5716)","v":"IMMEUBLES COLLECTIFS RÉSIDENTIELS"},{"$f":"IFERROR(VLOOKUP(D5716,Translation!$A:$C,3,FALSE),D5716)","v":"> 90 % <= 95 %"},{"$f":"IFERROR(VLOOKUP(E5716,Translation!$A:$C,3,FALSE),E5716)","v":2.4253913185495999},{"$f":"IFERROR(VLOOKUP(F5716,Translation!$A:$C,3,FALSE),F5716)","v":"Prêts hypothécaires assurés au cours de la période selon le rapport prêt-valeur (RPV) établi d’après la valeur initiale de la propriété (%)"},{"$f":"IFERROR(VLOOKUP(G5716,Translation!$A:$C,3,FALSE),G5716)","v":"2.4"},{"$f":"IFERROR(VLOOKUP(H5716,Translation!$A:$C,3,FALSE),H5716)","v":" > 90 % <= 95 %"}]
[27,"Q4 2016","IMMEUBLES COLLECTIFS RÉSIDENTIELS","> 90 % <= 95 %",1.1564465035800999,"Prêts hypothécaires assurés au cours de la période selon le rapport prêt-valeur (RPV) établi d’après la valeur initiale de la propriété (%)","1.2"," > 90 % <= 95 %",{"$f":"IFERROR(VLOOKUP(A5720,Translation!$A:$C,3,FALSE),A5720)","v":27},{"$f":"IFERROR(VLOOKUP(B5720,Translation!$A:$C,3,FALSE),B5720)","v":"Q4 2016"},{"$f":"IFERROR(VLOOKUP(C5720,Translation!$A:$C,3,FALSE),C5720)","v":"IMMEUBLES COLLECTIFS RÉSIDENTIELS"},{"$f":"IFERROR(VLOOKUP(D5720,Translation!$A:$C,3,FALSE),D5720)","v":"> 90 % <= 95 %"},{"$f":"IFERROR(VLOOKUP(E5720,Translation!$A:$C,3,FALSE),E5720)","v":1.1564465035800999},{"$f":"IFERROR(VLOOKUP(F5720,Translation!$A:$C,3,FALSE),F5720)","v":"Prêts hypothécaires assurés au cours de la période selon le rapport prêt-valeur (RPV) établi d’après la valeur initiale de la propriété (%)"},{"$f":"IFERROR(VLOOKUP(G5720,Translation!$A:$C,3,FALSE),G5720)","v":"1.2"},{"$f":"IFERROR(VLOOKUP(H5720,Translation!$A:$C,3,FALSE),H5720)","v":" > 90 % <= 95 %"}]
[27,"T1 2017","IMMEUBLES COLLECTIFS RÉSIDENTIELS","> 95 %",0.16941392822940107,"Prêts hypothécaires assurés au cours de la période selon le rapport prêt-valeur (RPV) établi d’après la valeur initiale de la propriété (%)","0.2"," > 95 %",{"$f":"IFERROR(VLOOKUP(A5721,Translation!$A:$C,3,FALSE),A5721)","v":27},{"$f":"IFERROR(VLOOKUP(B5721,Translation!$A:$C,3,FALSE),B5721)","v":"T1 2017"},{"$f":"IFERROR(VLOOKUP(C5721,Translation!$A:$C,3,FALSE),C5721)","v":"IMMEUBLES COLLECTIFS RÉSIDENTIELS"},{"$f":"IFERROR(VLOOKUP(D5721,Translation!$A:$C,3,FALSE),D5721)","v":"> 95 %"},{"$f":"IFERROR(VLOOKUP(E5721,Translation!$A:$C,3,FALSE),E5721)","v":0.16941392822940107},{"$f":"IFERROR(VLOOKUP(F5721,Translation!$A:$C,3,FALSE),F5721)","v":"Prêts hypothécaires assurés au cours de la période selon le rapport prêt-valeur (RPV) établi d’après la valeur initiale de la propriété (%)"},{"$f":"IFERROR(VLOOKUP(G5721,Translation!$A:$C,3,FALSE),G5721)","v":"0.2"},{"$f":"IFERROR(VLOOKUP(H5721,Translation!$A:$C,3,FALSE),H5721)","v":" > 95 %"}]
[27,"T4 2017","IMMEUBLES COLLECTIFS RÉSIDENTIELS","> 95 %",3.6677296631850007,"Prêts hypothécaires assurés au cours de la période selon le rapport prêt-valeur (RPV) établi d’après la valeur initiale de la propriété (%)","3.7"," > 95 %",{"$f":"IFERROR(VLOOKUP(A5724,Translation!$A:$C,3,FALSE),A5724)","v":27},{"$f":"IFERROR(VLOOKUP(B5724,Translation!$A:$C,3,FALSE),B5724)","v":"T4 2017"},{"$f":"IFERROR(VLOOKUP(C5724,Translation!$A:$C,3,FALSE),C5724)","v":"IMMEUBLES COLLECTIFS RÉSIDENTIELS"},{"$f":"IFERROR(VLOOKUP(D5724,Translation!$A:$C,3,FALSE),D5724)","v":"> 95 %"},{"$f":"IFERROR(VLOOKUP(E5724,Translation!$A:$C,3,FALSE),E5724)","v":3.6677296631850007},{"$f":"IFERROR(VLOOKUP(F5724,Translation!$A:$C,3,FALSE),F5724)","v":"Prêts hypothécaires assurés au cours de la période selon le rapport prêt-valeur (RPV) établi d’après la valeur initiale de la propriété (%)"},{"$f":"IFERROR(VLOOKUP(G5724,Translation!$A:$C,3,FALSE),G5724)","v":"3.7"},{"$f":"IFERROR(VLOOKUP(H5724,Translation!$A:$C,3,FALSE),H5724)","v":" > 95 %"}]
[27,"T1 2017","IMMEUBLES COLLECTIFS RÉSIDENTIELS","Rapport prêt-valeur moyen ",71.297297042408715,"Prêts hypothécaires assurés au cours de la période selon le rapport prêt-valeur (RPV) établi d’après la valeur initiale de la propriété (%)","71.3","Rapport prêt-valeur moyen ",{"$f":"IFERROR(VLOOKUP(A5725,Translation!$A:$C,3,FALSE),A5725)","v":27},{"$f":"IFERROR(VLOOKUP(B5725,Translation!$A:$C,3,FALSE),B5725)","v":"T1 2017"},{"$f":"IFERROR(VLOOKUP(C5725,Translation!$A:$C,3,FALSE),C5725)","v":"IMMEUBLES COLLECTIFS RÉSIDENTIELS"},{"$f":"IFERROR(VLOOKUP(D5725,Translation!$A:$C,3,FALSE),D5725)","v":"Rapport prêt-valeur moyen "},{"$f":"IFERROR(VLOOKUP(E5725,Translation!$A:$C,3,FALSE),E5725)","v":71.297297042408715},{"$f":"IFERROR(VLOOKUP(F5725,Translation!$A:$C,3,FALSE),F5725)","v":"Prêts hypothécaires assurés au cours de la période selon le rapport prêt-valeur (RPV) établi d’après la valeur initiale de la propriété (%)"},{"$f":"IFERROR(VLOOKUP(G5725,Translation!$A:$C,3,FALSE),G5725)","v":"71.3"},{"$f":"IFERROR(VLOOKUP(H5725,Translation!$A:$C,3,FALSE),H5725)","v":"Rapport prêt-valeur moyen "}]
[27,"Q3 2016","IMMEUBLES COLLECTIFS RÉSIDENTIELS","Rapport prêt-valeur moyen ",74.012001029098684,"Prêts hypothécaires assurés au cours de la période selon le rapport prêt-valeur (RPV) établi d’après la valeur initiale de la propriété (%)","74.0","Rapport prêt-valeur moyen ",{"$f":"IFERROR(VLOOKUP(A5729,Translation!$A:$C,3,FALSE),A5729)","v":27},{"$f":"IFERROR(VLOOKUP(B5729,Translation!$A:$C,3,FALSE),B5729)","v":"Q3 2016"},{"$f":"IFERROR(VLOOKUP(C5729,Translation!$A:$C,3,FALSE),C5729)","v":"IMMEUBLES COLLECTIFS RÉSIDENTIELS"},{"$f":"IFERROR(VLOOKUP(D5729,Translation!$A:$C,3,FALSE),D5729)","v":"Rapport prêt-valeur moyen "},{"$f":"IFERROR(VLOOKUP(E5729,Translation!$A:$C,3,FALSE),E5729)","v":74.012001029098684},{"$f":"IFERROR(VLOOKUP(F5729,Translation!$A:$C,3,FALSE),F5729)","v":"Prêts hypothécaires assurés au cours de la période selon le rapport prêt-valeur (RPV) établi d’après la valeur initiale de la propriété (%)"},{"$f":"IFERROR(VLOOKUP(G5729,Translation!$A:$C,3,FALSE),G5729)","v":"74.0"},{"$f":"IFERROR(VLOOKUP(H5729,Translation!$A:$C,3,FALSE),H5729)","v":"Rapport prêt-valeur moyen "}]
[27,"T3 2017","IMMEUBLES COLLECTIFS RÉSIDENTIELS","Rapport prêt-valeur moyen ",73.543262393276379,"Prêts hypothécaires assurés au cours de la période selon le rapport prêt-valeur (RPV) établi d’après la valeur initiale de la propriété (%)","73.5","Rapport prêt-valeur moyen ",{"$f":"IFERROR(VLOOKUP(A5730,Translation!$A:$C,3,FALSE),A5730)","v":27},{"$f":"IFERROR(VLOOKUP(B5730,Translation!$A:$C,3,FALSE),B5730)","v":"T3 2017"},{"$f":"IFERROR(VLOOKUP(C5730,Translation!$A:$C,3,FALSE),C5730)","v":"IMMEUBLES COLLECTIFS RÉSIDENTIELS"},{"$f":"IFERROR(VLOOKUP(D5730,Translation!$A:$C,3,FALSE),D5730)","v":"Rapport prêt-valeur moyen "},{"$f":"IFERROR(VLOOKUP(E5730,Translation!$A:$C,3,FALSE),E5730)","v":73.543262393276379},{"$f":"IFERROR(VLOOKUP(F5730,Translation!$A:$C,3,FALSE),F5730)","v":"Prêts hypothécaires assurés au cours de la période selon le rapport prêt-valeur (RPV) établi d’après la valeur initiale de la propriété (%)"},{"$f":"IFERROR(VLOOKUP(G5730,Translation!$A:$C,3,FALSE),G5730)","v":"73.5"},{"$f":"IFERROR(VLOOKUP(H5730,Translation!$A:$C,3,FALSE),H5730)","v":"Rapport prêt-valeur moyen "}]
[27,"T1 2018","IMMEUBLES COLLECTIFS RÉSIDENTIELS","Avoir propre foncier moyen ",28.029926536842542,"Prêts hypothécaires assurés au cours de la période selon le rapport prêt-valeur (RPV) établi d’après la valeur initiale de la propriété (%)","28.0","Avoir propre foncier moyen ",{"$f":"IFERROR(VLOOKUP(A5734,Translation!$A:$C,3,FALSE),A5734)","v":27},{"$f":"IFERROR(VLOOKUP(B5734,Translation!$A:$C,3,FALSE),B5734)","v":"T1 2018"},{"$f":"IFERROR(VLOOKUP(C5734,Translation!$A:$C,3,FALSE),C5734)","v":"IMMEUBLES COLLECTIFS RÉSIDENTIELS"},{"$f":"IFERROR(VLOOKUP(D5734,Translation!$A:$C,3,FALSE),D5734)","v":"Avoir propre foncier moyen "},{"$f":"IFERROR(VLOOKUP(E5734,Translation!$A:$C,3,FALSE),E5734)","v":28.029926536842542},{"$f":"IFERROR(VLOOKUP(F5734,Translation!$A:$C,3,FALSE),F5734)","v":"Prêts hypothécaires assurés au cours de la période selon le rapport prêt-valeur (RPV) établi d’après la valeur initiale de la propriété (%)"},{"$f":"IFERROR(VLOOKUP(G5734,Translation!$A:$C,3,FALSE),G5734)","v":"28.0"},{"$f":"IFERROR(VLOOKUP(H5734,Translation!$A:$C,3,FALSE),H5734)","v":"Avoir propre foncier moyen "}]
[27,"Q2 2016","IMMEUBLES COLLECTIFS RÉSIDENTIELS","Avoir propre foncier moyen ",26.929230174212243,"Prêts hypothécaires assurés au cours de la période selon le rapport prêt-valeur (RPV) établi d’après la valeur initiale de la propriété (%)","26.9","Avoir propre foncier moyen ",{"$f":"IFERROR(VLOOKUP(A5735,Translation!$A:$C,3,FALSE),A5735)","v":27},{"$f":"IFERROR(VLOOKUP(B5735,Translation!$A:$C,3,FALSE),B5735)","v":"Q2 2016"},{"$f":"IFERROR(VLOOKUP(C5735,Translation!$A:$C,3,FALSE),C5735)","v":"IMMEUBLES COLLECTIFS RÉSIDENTIELS"},{"$f":"IFERROR(VLOOKUP(D5735,Translation!$A:$C,3,FALSE),D5735)","v":"Avoir propre foncier moyen "},{"$f":"IFERROR(VLOOKUP(E5735,Translation!$A:$C,3,FALSE),E5735)","v":26.929230174212243},{"$f":"IFERROR(VLOOKUP(F5735,Translation!$A:$C,3,FALSE),F5735)","v":"Prêts hypothécaires assurés au cours de la période selon le rapport prêt-valeur (RPV) établi d’après la valeur initiale de la propriété (%)"},{"$f":"IFERROR(VLOOKUP(G5735,Translation!$A:$C,3,FALSE),G5735)","v":"26.9"},{"$f":"IFERROR(VLOOKUP(H5735,Translation!$A:$C,3,FALSE),H5735)","v":"Avoir propre foncier moyen "}]
[27,"Q4 2016","IMMEUBLES COLLECTIFS RÉSIDENTIELS","Avoir propre foncier moyen ",27.180212626560799,"Prêts hypothécaires assurés au cours de la période selon le rapport prêt-valeur (RPV) établi d’après la valeur initiale de la propriété (%)","27.2","Avoir propre foncier moyen ",{"$f":"IFERROR(VLOOKUP(A5739,Translation!$A:$C,3,FALSE),A5739)","v":27},{"$f":"IFERROR(VLOOKUP(B5739,Translation!$A:$C,3,FALSE),B5739)","v":"Q4 2016"},{"$f":"IFERROR(VLOOKUP(C5739,Translation!$A:$C,3,FALSE),C5739)","v":"IMMEUBLES COLLECTIFS RÉSIDENTIELS"},{"$f":"IFERROR(VLOOKUP(D5739,Translation!$A:$C,3,FALSE),D5739)","v":"Avoir propre foncier moyen "},{"$f":"IFERROR(VLOOKUP(E5739,Translation!$A:$C,3,FALSE),E5739)","v":27.180212626560799},{"$f":"IFERROR(VLOOKUP(F5739,Translation!$A:$C,3,FALSE),F5739)","v":"Prêts hypothécaires assurés au cours de la période selon le rapport prêt-valeur (RPV) établi d’après la valeur initiale de la propriété (%)"},{"$f":"IFERROR(VLOOKUP(G5739,Translation!$A:$C,3,FALSE),G5739)","v":"27.2"},{"$f":"IFERROR(VLOOKUP(H5739,Translation!$A:$C,3,FALSE),H5739)","v":"Avoir propre foncier moyen "}]
[27,"T4 2017","IMMEUBLES COLLECTIFS RÉSIDENTIELS","Avoir propre foncier moyen ",25.005684560834844,"Prêts hypothécaires assurés au cours de la période selon le rapport prêt-valeur (RPV) établi d’après la valeur initiale de la propriété (%)","25.0","Avoir propre foncier moyen ",{"$f":"IFERROR(VLOOKUP(A5740,Translation!$A:$C,3,FALSE),A5740)","v":27},{"$f":"IFERROR(VLOOKUP(B5740,Translation!$A:$C,3,FALSE),B5740)","v":"T4 2017"},{"$f":"IFERROR(VLOOKUP(C5740,Translation!$A:$C,3,FALSE),C5740)","v":"IMMEUBLES COLLECTIFS RÉSIDENTIELS"},{"$f":"IFERROR(VLOOKUP(D5740,Translation!$A:$C,3,FALSE),D5740)","v":"Avoir propre foncier moyen "},{"$f":"IFERROR(VLOOKUP(E5740,Translation!$A:$C,3,FALSE),E5740)","v":25.005684560834844},{"$f":"IFERROR(VLOOKUP(F5740,Translation!$A:$C,3,FALSE),F5740)","v":"Prêts hypothécaires assurés au cours de la période selon le rapport prêt-valeur (RPV) établi d’après la valeur initiale de la propriété (%)"},{"$f":"IFERROR(VLOOKUP(G5740,Translation!$A:$C,3,FALSE),G5740)","v":"25.0"},{"$f":"IFERROR(VLOOKUP(H5740,Translation!$A:$C,3,FALSE),H5740)","v":"Avoir propre foncier moyen "}]
[27,"T1 2017","IMMEUBLES COLLECTIFS RÉSIDENTIELS","Québec",24.064025000166289,"Avoir propre foncier moyen selon la province","24.1","Québec",{"$f":"IFERROR(VLOOKUP(A5744,Translation!$A:$C,3,FALSE),A5744)","v":27},{"$f":"IFERROR(VLOOKUP(B5744,Translation!$A:$C,3,FALSE),B5744)","v":"T1 2017"},{"$f":"IFERROR(VLOOKUP(C5744,Translation!$A:$C,3,FALSE),C5744)","v":"IMMEUBLES COLLECTIFS RÉSIDENTIELS"},{"$f":"IFERROR(VLOOKUP(D5744,Translation!$A:$C,3,FALSE),D5744)","v":"Québec"},{"$f":"IFERROR(VLOOKUP(E5744,Translation!$A:$C,3,FALSE),E5744)","v":24.064025000166289},{"$f":"IFERROR(VLOOKUP(F5744,Translation!$A:$C,3,FALSE),F5744)","v":"Avoir propre foncier moyen selon la province"},{"$f":"IFERROR(VLOOKUP(G5744,Translation!$A:$C,3,FALSE),G5744)","v":"24.1"},{"$f":"IFERROR(VLOOKUP(H5744,Translation!$A:$C,3,FALSE),H5744)","v":"Québec"}]
[27,"T1 2017","IMMEUBLES COLLECTIFS RÉSIDENTIELS","Ontario",31.770745652887449,"Avoir propre foncier moyen selon la province","31.8","Ontario",{"$f":"IFERROR(VLOOKUP(A5745,Translation!$A:$C,3,FALSE),A5745)","v":27},{"$f":"IFERROR(VLOOKUP(B5745,Translation!$A:$C,3,FALSE),B5745)","v":"T1 2017"},{"$f":"IFERROR(VLOOKUP(C5745,Translation!$A:$C,3,FALSE),C5745)","v":"IMMEUBLES COLLECTIFS RÉSIDENTIELS"},{"$f":"IFERROR(VLOOKUP(D5745,Translation!$A:$C,3,FALSE),D5745)","v":"Ontario"},{"$f":"IFERROR(VLOOKUP(E5745,Translation!$A:$C,3,FALSE),E5745)","v":31.770745652887449},{"$f":"IFERROR(VLOOKUP(F5745,Translation!$A:$C,3,FALSE),F5745)","v":"Avoir propre foncier moyen selon la province"},{"$f":"IFERROR(VLOOKUP(G5745,Translation!$A:$C,3,FALSE),G5745)","v":"31.8"},{"$f":"IFERROR(VLOOKUP(H5745,Translation!$A:$C,3,FALSE),H5745)","v":"Ontario"}]
[27,"T1 2017","IMMEUBLES COLLECTIFS RÉSIDENTIELS","Alberta",32.354284703335445,"Avoir propre foncier moyen selon la province","32.4","Alberta",{"$f":"IFERROR(VLOOKUP(A5748,Translation!$A:$C,3,FALSE),A5748)","v":27},{"$f":"IFERROR(VLOOKUP(B5748,Translation!$A:$C,3,FALSE),B5748)","v":"T1 2017"},{"$f":"IFERROR(VLOOKUP(C5748,Translation!$A:$C,3,FALSE),C5748)","v":"IMMEUBLES COLLECTIFS RÉSIDENTIELS"},{"$f":"IFERROR(VLOOKUP(D5748,Translation!$A:$C,3,FALSE),D5748)","v":"Alberta"},{"$f":"IFERROR(VLOOKUP(E5748,Translation!$A:$C,3,FALSE),E5748)","v":32.354284703335445},{"$f":"IFERROR(VLOOKUP(F5748,Translation!$A:$C,3,FALSE),F5748)","v":"Avoir propre foncier moyen selon la province"},{"$f":"IFERROR(VLOOKUP(G5748,Translation!$A:$C,3,FALSE),G5748)","v":"32.4"},{"$f":"IFERROR(VLOOKUP(H5748,Translation!$A:$C,3,FALSE),H5748)","v":"Alberta"}]
[27,"T1 2017","IMMEUBLES COLLECTIFS RÉSIDENTIELS","Territoires",24.999999999999982,"Avoir propre foncier moyen selon la province","25.0","Territoires",{"$f":"IFERROR(VLOOKUP(A5750,Translation!$A:$C,3,FALSE),A5750)","v":27},{"$f":"IFERROR(VLOOKUP(B5750,Translation!$A:$C,3,FALSE),B5750)","v":"T1 2017"},{"$f":"IFERROR(VLOOKUP(C5750,Translation!$A:$C,3,FALSE),C5750)","v":"IMMEUBLES COLLECTIFS RÉSIDENTIELS"},{"$f":"IFERROR(VLOOKUP(D5750,Translation!$A:$C,3,FALSE),D5750)","v":"Territoires"},{"$f":"IFERROR(VLOOKUP(E5750,Translation!$A:$C,3,FALSE),E5750)","v":24.999999999999982},{"$f":"IFERROR(VLOOKUP(F5750,Translation!$A:$C,3,FALSE),F5750)","v":"Avoir propre foncier moyen selon la province"},{"$f":"IFERROR(VLOOKUP(G5750,Translation!$A:$C,3,FALSE),G5750)","v":"25.0"},{"$f":"IFERROR(VLOOKUP(H5750,Translation!$A:$C,3,FALSE),H5750)","v":"Territoires"}]
[27,"T1 2018","IMMEUBLES COLLECTIFS RÉSIDENTIELS","Nouvelle-Écosse",19.231293265503677,"Avoir propre foncier moyen selon la province","19.2","Nouvelle-Écosse",{"$f":"IFERROR(VLOOKUP(A5753,Translation!$A:$C,3,FALSE),A5753)","v":27},{"$f":"IFERROR(VLOOKUP(B5753,Translation!$A:$C,3,FALSE),B5753)","v":"T1 2018"},{"$f":"IFERROR(VLOOKUP(C5753,Translation!$A:$C,3,FALSE),C5753)","v":"IMMEUBLES COLLECTIFS RÉSIDENTIELS"},{"$f":"IFERROR(VLOOKUP(D5753,Translation!$A:$C,3,FALSE),D5753)","v":"Nouvelle-Écosse"},{"$f":"IFERROR(VLOOKUP(E5753,Translation!$A:$C,3,FALSE),E5753)","v":19.231293265503677},{"$f":"IFERROR(VLOOKUP(F5753,Translation!$A:$C,3,FALSE),F5753)","v":"Avoir propre foncier moyen selon la province"},{"$f":"IFERROR(VLOOKUP(G5753,Translation!$A:$C,3,FALSE),G5753)","v":"19.2"},{"$f":"IFERROR(VLOOKUP(H5753,Translation!$A:$C,3,FALSE),H5753)","v":"Nouvelle-Écosse"}]
[27,"T1 2018","IMMEUBLES COLLECTIFS RÉSIDENTIELS","Québec",23.213271970004861,"Avoir propre foncier moyen selon la province","23.2","Québec",{"$f":"IFERROR(VLOOKUP(A5755,Translation!$A:$C,3,FALSE),A5755)","v":27},{"$f":"IFERROR(VLOOKUP(B5755,Translation!$A:$C,3,FALSE),B5755)","v":"T1 2018"},{"$f":"IFERROR(VLOOKUP(C5755,Translation!$A:$C,3,FALSE),C5755)","v":"IMMEUBLES COLLECTIFS RÉSIDENTIELS"},{"$f":"IFERROR(VLOOKUP(D5755,Translation!$A:$C,3,FALSE),D5755)","v":"Québec"},{"$f":"IFERROR(VLOOKUP(E5755,Translation!$A:$C,3,FALSE),E5755)","v":23.213271970004861},{"$f":"IFERROR(VLOOKUP(F5755,Translation!$A:$C,3,FALSE),F5755)","v":"Avoir propre foncier moyen selon la province"},{"$f":"IFERROR(VLOOKUP(G5755,Translation!$A:$C,3,FALSE),G5755)","v":"23.2"},{"$f":"IFERROR(VLOOKUP(H5755,Translation!$A:$C,3,FALSE),H5755)","v":"Québec"}]
[27,"T1 2018","IMMEUBLES COLLECTIFS RÉSIDENTIELS","Saskatchewan",31.604578259355019,"Avoir propre foncier moyen selon la province","31.6","Saskatchewan",{"$f":"IFERROR(VLOOKUP(A5758,Translation!$A:$C,3,FALSE),A5758)","v":27},{"$f":"IFERROR(VLOOKUP(B5758,Translation!$A:$C,3,FALSE),B5758)","v":"T1 2018"},{"$f":"IFERROR(VLOOKUP(C5758,Translation!$A:$C,3,FALSE),C5758)","v":"IMMEUBLES COLLECTIFS RÉSIDENTIELS"},{"$f":"IFERROR(VLOOKUP(D5758,Translation!$A:$C,3,FALSE),D5758)","v":"Saskatchewan"},{"$f":"IFERROR(VLOOKUP(E5758,Translation!$A:$C,3,FALSE),E5758)","v":31.604578259355019},{"$f":"IFERROR(VLOOKUP(F5758,Translation!$A:$C,3,FALSE),F5758)","v":"Avoir propre foncier moyen selon la province"},{"$f":"IFERROR(VLOOKUP(G5758,Translation!$A:$C,3,FALSE),G5758)","v":"31.6"},{"$f":"IFERROR(VLOOKUP(H5758,Translation!$A:$C,3,FALSE),H5758)","v":"Saskatchewan"}]
[27,"T1 2018","IMMEUBLES COLLECTIFS RÉSIDENTIELS","Alberta",28.120242992510743,"Avoir propre foncier moyen selon la province","28.1","Alberta",{"$f":"IFERROR(VLOOKUP(A5759,Translation!$A:$C,3,FALSE),A5759)","v":27},{"$f":"IFERROR(VLOOKUP(B5759,Translation!$A:$C,3,FALSE),B5759)","v":"T1 2018"},{"$f":"IFERROR(VLOOKUP(C5759,Translation!$A:$C,3,FALSE),C5759)","v":"IMMEUBLES COLLECTIFS RÉSIDENTIELS"},{"$f":"IFERROR(VLOOKUP(D5759,Translation!$A:$C,3,FALSE),D5759)","v":"Alberta"},{"$f":"IFERROR(VLOOKUP(E5759,Translation!$A:$C,3,FALSE),E5759)","v":28.120242992510743},{"$f":"IFERROR(VLOOKUP(F5759,Translation!$A:$C,3,FALSE),F5759)","v":"Avoir propre foncier moyen selon la province"},{"$f":"IFERROR(VLOOKUP(G5759,Translation!$A:$C,3,FALSE),G5759)","v":"28.1"},{"$f":"IFERROR(VLOOKUP(H5759,Translation!$A:$C,3,FALSE),H5759)","v":"Alberta"}]
[27,"Q2 2016","IMMEUBLES COLLECTIFS RÉSIDENTIELS","Nouvelle-Écosse",30.443181690822133,"Avoir propre foncier moyen selon la province","30.4","Nouvelle-Écosse",{"$f":"IFERROR(VLOOKUP(A5763,Translation!$A:$C,3,FALSE),A5763)","v":27},{"$f":"IFERROR(VLOOKUP(B5763,Translation!$A:$C,3,FALSE),B5763)","v":"Q2 2016"},{"$f":"IFERROR(VLOOKUP(C5763,Translation!$A:$C,3,FALSE),C5763)","v":"IMMEUBLES COLLECTIFS RÉSIDENTIELS"},{"$f":"IFERROR(VLOOKUP(D5763,Translation!$A:$C,3,FALSE),D5763)","v":"Nouvelle-Écosse"},{"$f":"IFERROR(VLOOKUP(E5763,Translation!$A:$C,3,FALSE),E5763)","v":30.443181690822133},{"$f":"IFERROR(VLOOKUP(F5763,Translation!$A:$C,3,FALSE),F5763)","v":"Avoir propre foncier moyen selon la province"},{"$f":"IFERROR(VLOOKUP(G5763,Translation!$A:$C,3,FALSE),G5763)","v":"30.4"},{"$f":"IFERROR(VLOOKUP(H5763,Translation!$A:$C,3,FALSE),H5763)","v":"Nouvelle-Écosse"}]
[27,"Q2 2016","IMMEUBLES COLLECTIFS RÉSIDENTIELS","Nouveau-Brunswick",21.853054988518263,"Avoir propre foncier moyen selon la province","21.9","Nouveau-Brunswick",{"$f":"IFERROR(VLOOKUP(A5764,Translation!$A:$C,3,FALSE),A5764)","v":27},{"$f":"IFERROR(VLOOKUP(B5764,Translation!$A:$C,3,FALSE),B5764)","v":"Q2 2016"},{"$f":"IFERROR(VLOOKUP(C5764,Translation!$A:$C,3,FALSE),C5764)","v":"IMMEUBLES COLLECTIFS RÉSIDENTIELS"},{"$f":"IFERROR(VLOOKUP(D5764,Translation!$A:$C,3,FALSE),D5764)","v":"Nouveau-Brunswick"},{"$f":"IFERROR(VLOOKUP(E5764,Translation!$A:$C,3,FALSE),E5764)","v":21.853054988518263},{"$f":"IFERROR(VLOOKUP(F5764,Translation!$A:$C,3,FALSE),F5764)","v":"Avoir propre foncier moyen selon la province"},{"$f":"IFERROR(VLOOKUP(G5764,Translation!$A:$C,3,FALSE),G5764)","v":"21.9"},{"$f":"IFERROR(VLOOKUP(H5764,Translation!$A:$C,3,FALSE),H5764)","v":"Nouveau-Brunswick"}]
[27,"Q2 2016","IMMEUBLES COLLECTIFS RÉSIDENTIELS","Ontario",28.525993693987601,"Avoir propre foncier moyen selon la province","28.5","Ontario",{"$f":"IFERROR(VLOOKUP(A5766,Translation!$A:$C,3,FALSE),A5766)","v":27},{"$f":"IFERROR(VLOOKUP(B5766,Translation!$A:$C,3,FALSE),B5766)","v":"Q2 2016"},{"$f":"IFERROR(VLOOKUP(C5766,Translation!$A:$C,3,FALSE),C5766)","v":"IMMEUBLES COLLECTIFS RÉSIDENTIELS"},{"$f":"IFERROR(VLOOKUP(D5766,Translation!$A:$C,3,FALSE),D5766)","v":"Ontario"},{"$f":"IFERROR(VLOOKUP(E5766,Translation!$A:$C,3,FALSE),E5766)","v":28.525993693987601},{"$f":"IFERROR(VLOOKUP(F5766,Translation!$A:$C,3,FALSE),F5766)","v":"Avoir propre foncier moyen selon la province"},{"$f":"IFERROR(VLOOKUP(G5766,Translation!$A:$C,3,FALSE),G5766)","v":"28.5"},{"$f":"IFERROR(VLOOKUP(H5766,Translation!$A:$C,3,FALSE),H5766)","v":"Ontario"}]
[27,"Q2 2016","IMMEUBLES COLLECTIFS RÉSIDENTIELS","Alberta",26.657742813098938,"Avoir propre foncier moyen selon la province","26.7","Alberta",{"$f":"IFERROR(VLOOKUP(A5769,Translation!$A:$C,3,FALSE),A5769)","v":27},{"$f":"IFERROR(VLOOKUP(B5769,Translation!$A:$C,3,FALSE),B5769)","v":"Q2 2016"},{"$f":"IFERROR(VLOOKUP(C5769,Translation!$A:$C,3,FALSE),C5769)","v":"IMMEUBLES COLLECTIFS RÉSIDENTIELS"},{"$f":"IFERROR(VLOOKUP(D5769,Translation!$A:$C,3,FALSE),D5769)","v":"Alberta"},{"$f":"IFERROR(VLOOKUP(E5769,Translation!$A:$C,3,FALSE),E5769)","v":26.657742813098938},{"$f":"IFERROR(VLOOKUP(F5769,Translation!$A:$C,3,FALSE),F5769)","v":"Avoir propre foncier moyen selon la province"},{"$f":"IFERROR(VLOOKUP(G5769,Translation!$A:$C,3,FALSE),G5769)","v":"26.7"},{"$f":"IFERROR(VLOOKUP(H5769,Translation!$A:$C,3,FALSE),H5769)","v":"Alberta"}]
[27,"T2 2017","IMMEUBLES COLLECTIFS RÉSIDENTIELS","Terre-Neuve-et-Labrador",15,"Avoir propre foncier moyen selon la province","15.0","Terre-Neuve-et-Labrador",{"$f":"IFERROR(VLOOKUP(A5772,Translation!$A:$C,3,FALSE),A5772)","v":27},{"$f":"IFERROR(VLOOKUP(B5772,Translation!$A:$C,3,FALSE),B5772)","v":"T2 2017"},{"$f":"IFERROR(VLOOKUP(C5772,Translation!$A:$C,3,FALSE),C5772)","v":"IMMEUBLES COLLECTIFS RÉSIDENTIELS"},{"$f":"IFERROR(VLOOKUP(D5772,Translation!$A:$C,3,FALSE),D5772)","v":"Terre-Neuve-et-Labrador"},{"$f":"IFERROR(VLOOKUP(E5772,Translation!$A:$C,3,FALSE),E5772)","v":15},{"$f":"IFERROR(VLOOKUP(F5772,Translation!$A:$C,3,FALSE),F5772)","v":"Avoir propre foncier moyen selon la province"},{"$f":"IFERROR(VLOOKUP(G5772,Translation!$A:$C,3,FALSE),G5772)","v":"15.0"},{"$f":"IFERROR(VLOOKUP(H5772,Translation!$A:$C,3,FALSE),H5772)","v":"Terre-Neuve-et-Labrador"}]
[27,"T2 2017","IMMEUBLES COLLECTIFS RÉSIDENTIELS","Nouvelle-Écosse",19.133721477884905,"Avoir propre foncier moyen selon la province","19.1","Nouvelle-Écosse",{"$f":"IFERROR(VLOOKUP(A5774,Translation!$A:$C,3,FALSE),A5774)","v":27},{"$f":"IFERROR(VLOOKUP(B5774,Translation!$A:$C,3,FALSE),B5774)","v":"T2 2017"},{"$f":"IFERROR(VLOOKUP(C5774,Translation!$A:$C,3,FALSE),C5774)","v":"IMMEUBLES COLLECTIFS RÉSIDENTIELS"},{"$f":"IFERROR(VLOOKUP(D5774,Translation!$A:$C,3,FALSE),D5774)","v":"Nouvelle-Écosse"},{"$f":"IFERROR(VLOOKUP(E5774,Translation!$A:$C,3,FALSE),E5774)","v":19.133721477884905},{"$f":"IFERROR(VLOOKUP(F5774,Translation!$A:$C,3,FALSE),F5774)","v":"Avoir propre foncier moyen selon la province"},{"$f":"IFERROR(VLOOKUP(G5774,Translation!$A:$C,3,FALSE),G5774)","v":"19.1"},{"$f":"IFERROR(VLOOKUP(H5774,Translation!$A:$C,3,FALSE),H5774)","v":"Nouvelle-Écosse"}]
[27,"T2 2017","IMMEUBLES COLLECTIFS RÉSIDENTIELS","Ontario",33.096598499794887,"Avoir propre foncier moyen selon la province","33.1","Ontario",{"$f":"IFERROR(VLOOKUP(A5777,Translation!$A:$C,3,FALSE),A5777)","v":27},{"$f":"IFERROR(VLOOKUP(B5777,Translation!$A:$C,3,FALSE),B5777)","v":"T2 2017"},{"$f":"IFERROR(VLOOKUP(C5777,Translation!$A:$C,3,FALSE),C5777)","v":"IMMEUBLES COLLECTIFS RÉSIDENTIELS"},{"$f":"IFERROR(VLOOKUP(D5777,Translation!$A:$C,3,FALSE),D5777)","v":"Ontario"},{"$f":"IFERROR(VLOOKUP(E5777,Translation!$A:$C,3,FALSE),E5777)","v":33.096598499794887},{"$f":"IFERROR(VLOOKUP(F5777,Translation!$A:$C,3,FALSE),F5777)","v":"Avoir propre foncier moyen selon la province"},{"$f":"IFERROR(VLOOKUP(G5777,Translation!$A:$C,3,FALSE),G5777)","v":"33.1"},{"$f":"IFERROR(VLOOKUP(H5777,Translation!$A:$C,3,FALSE),H5777)","v":"Ontario"}]
[27,"T2 2017","IMMEUBLES COLLECTIFS RÉSIDENTIELS","Alberta",25.513813661218659,"Avoir propre foncier moyen selon la province","25.5","Alberta",{"$f":"IFERROR(VLOOKUP(A5780,Translation!$A:$C,3,FALSE),A5780)","v":27},{"$f":"IFERROR(VLOOKUP(B5780,Translation!$A:$C,3,FALSE),B5780)","v":"T2 2017"},{"$f":"IFERROR(VLOOKUP(C5780,Translation!$A:$C,3,FALSE),C5780)","v":"IMMEUBLES COLLECTIFS RÉSIDENTIELS"},{"$f":"IFERROR(VLOOKUP(D5780,Translation!$A:$C,3,FALSE),D5780)","v":"Alberta"},{"$f":"IFERROR(VLOOKUP(E5780,Translation!$A:$C,3,FALSE),E5780)","v":25.513813661218659},{"$f":"IFERROR(VLOOKUP(F5780,Translation!$A:$C,3,FALSE),F5780)","v":"Avoir propre foncier moyen selon la province"},{"$f":"IFERROR(VLOOKUP(G5780,Translation!$A:$C,3,FALSE),G5780)","v":"25.5"},{"$f":"IFERROR(VLOOKUP(H5780,Translation!$A:$C,3,FALSE),H5780)","v":"Alberta"}]
[27,"T2 2017","IMMEUBLES COLLECTIFS RÉSIDENTIELS","Territoires",25,"Avoir propre foncier moyen selon la province","25.0","Territoires",{"$f":"IFERROR(VLOOKUP(A5782,Translation!$A:$C,3,FALSE),A5782)","v":27},{"$f":"IFERROR(VLOOKUP(B5782,Translation!$A:$C,3,FALSE),B5782)","v":"T2 2017"},{"$f":"IFERROR(VLOOKUP(C5782,Translation!$A:$C,3,FALSE),C5782)","v":"IMMEUBLES COLLECTIFS RÉSIDENTIELS"},{"$f":"IFERROR(VLOOKUP(D5782,Translation!$A:$C,3,FALSE),D5782)","v":"Territoires"},{"$f":"IFERROR(VLOOKUP(E5782,Translation!$A:$C,3,FALSE),E5782)","v":25},{"$f":"IFERROR(VLOOKUP(F5782,Translation!$A:$C,3,FALSE),F5782)","v":"Avoir propre foncier moyen selon la province"},{"$f":"IFERROR(VLOOKUP(G5782,Translation!$A:$C,3,FALSE),G5782)","v":"25.0"},{"$f":"IFERROR(VLOOKUP(H5782,Translation!$A:$C,3,FALSE),H5782)","v":"Territoires"}]
[27,"Q3 2016","IMMEUBLES COLLECTIFS RÉSIDENTIELS","Terre-Neuve-et-Labrador",27.200209484464079,"Avoir propre foncier moyen selon la province","27.2","Terre-Neuve-et-Labrador",{"$f":"IFERROR(VLOOKUP(A5783,Translation!$A:$C,3,FALSE),A5783)","v":27},{"$f":"IFERROR(VLOOKUP(B5783,Translation!$A:$C,3,FALSE),B5783)","v":"Q3 2016"},{"$f":"IFERROR(VLOOKUP(C5783,Translation!$A:$C,3,FALSE),C5783)","v":"IMMEUBLES COLLECTIFS RÉSIDENTIELS"},{"$f":"IFERROR(VLOOKUP(D5783,Translation!$A:$C,3,FALSE),D5783)","v":"Terre-Neuve-et-Labrador"},{"$f":"IFERROR(VLOOKUP(E5783,Translation!$A:$C,3,FALSE),E5783)","v":27.200209484464079},{"$f":"IFERROR(VLOOKUP(F5783,Translation!$A:$C,3,FALSE),F5783)","v":"Avoir propre foncier moyen selon la province"},{"$f":"IFERROR(VLOOKUP(G5783,Translation!$A:$C,3,FALSE),G5783)","v":"27.2"},{"$f":"IFERROR(VLOOKUP(H5783,Translation!$A:$C,3,FALSE),H5783)","v":"Terre-Neuve-et-Labrador"}]
[27,"Q3 2016","IMMEUBLES COLLECTIFS RÉSIDENTIELS","Nouvelle-Écosse",18.605458049118877,"Avoir propre foncier moyen selon la province","18.6","Nouvelle-Écosse",{"$f":"IFERROR(VLOOKUP(A5785,Translation!$A:$C,3,FALSE),A5785)","v":27},{"$f":"IFERROR(VLOOKUP(B5785,Translation!$A:$C,3,FALSE),B5785)","v":"Q3 2016"},{"$f":"IFERROR(VLOOKUP(C5785,Translation!$A:$C,3,FALSE),C5785)","v":"IMMEUBLES COLLECTIFS RÉSIDENTIELS"},{"$f":"IFERROR(VLOOKUP(D5785,Translation!$A:$C,3,FALSE),D5785)","v":"Nouvelle-Écosse"},{"$f":"IFERROR(VLOOKUP(E5785,Translation!$A:$C,3,FALSE),E5785)","v":18.605458049118877},{"$f":"IFERROR(VLOOKUP(F5785,Translation!$A:$C,3,FALSE),F5785)","v":"Avoir propre foncier moyen selon la province"},{"$f":"IFERROR(VLOOKUP(G5785,Translation!$A:$C,3,FALSE),G5785)","v":"18.6"},{"$f":"IFERROR(VLOOKUP(H5785,Translation!$A:$C,3,FALSE),H5785)","v":"Nouvelle-Écosse"}]
[27,"Q3 2016","IMMEUBLES COLLECTIFS RÉSIDENTIELS","Ontario",29.936224136640089,"Avoir propre foncier moyen selon la province","29.9","Ontario",{"$f":"IFERROR(VLOOKUP(A5788,Translation!$A:$C,3,FALSE),A5788)","v":27},{"$f":"IFERROR(VLOOKUP(B5788,Translation!$A:$C,3,FALSE),B5788)","v":"Q3 2016"},{"$f":"IFERROR(VLOOKUP(C5788,Translation!$A:$C,3,FALSE),C5788)","v":"IMMEUBLES COLLECTIFS RÉSIDENTIELS"},{"$f":"IFERROR(VLOOKUP(D5788,Translation!$A:$C,3,FALSE),D5788)","v":"Ontario"},{"$f":"IFERROR(VLOOKUP(E5788,Translation!$A:$C,3,FALSE),E5788)","v":29.936224136640089},{"$f":"IFERROR(VLOOKUP(F5788,Translation!$A:$C,3,FALSE),F5788)","v":"Avoir propre foncier moyen selon la province"},{"$f":"IFERROR(VLOOKUP(G5788,Translation!$A:$C,3,FALSE),G5788)","v":"29.9"},{"$f":"IFERROR(VLOOKUP(H5788,Translation!$A:$C,3,FALSE),H5788)","v":"Ontario"}]
[27,"Q3 2016","IMMEUBLES COLLECTIFS RÉSIDENTIELS","Alberta",27.982226949611302,"Avoir propre foncier moyen selon la province","28.0","Alberta",{"$f":"IFERROR(VLOOKUP(A5791,Translation!$A:$C,3,FALSE),A5791)","v":27},{"$f":"IFERROR(VLOOKUP(B5791,Translation!$A:$C,3,FALSE),B5791)","v":"Q3 2016"},{"$f":"IFERROR(VLOOKUP(C5791,Translation!$A:$C,3,FALSE),C5791)","v":"IMMEUBLES COLLECTIFS RÉSIDENTIELS"},{"$f":"IFERROR(VLOOKUP(D5791,Translation!$A:$C,3,FALSE),D5791)","v":"Alberta"},{"$f":"IFERROR(VLOOKUP(E5791,Translation!$A:$C,3,FALSE),E5791)","v":27.982226949611302},{"$f":"IFERROR(VLOOKUP(F5791,Translation!$A:$C,3,FALSE),F5791)","v":"Avoir propre foncier moyen selon la province"},{"$f":"IFERROR(VLOOKUP(G5791,Translation!$A:$C,3,FALSE),G5791)","v":"28.0"},{"$f":"IFERROR(VLOOKUP(H5791,Translation!$A:$C,3,FALSE),H5791)","v":"Alberta"}]
[27,"Q3 2016","IMMEUBLES COLLECTIFS RÉSIDENTIELS","Territoires",25,"Avoir propre foncier moyen selon la province","25.0","Territoires",{"$f":"IFERROR(VLOOKUP(A5793,Translation!$A:$C,3,FALSE),A5793)","v":27},{"$f":"IFERROR(VLOOKUP(B5793,Translation!$A:$C,3,FALSE),B5793)","v":"Q3 2016"},{"$f":"IFERROR(VLOOKUP(C5793,Translation!$A:$C,3,FALSE),C5793)","v":"IMMEUBLES COLLECTIFS RÉSIDENTIELS"},{"$f":"IFERROR(VLOOKUP(D5793,Translation!$A:$C,3,FALSE),D5793)","v":"Territoires"},{"$f":"IFERROR(VLOOKUP(E5793,Translation!$A:$C,3,FALSE),E5793)","v":25},{"$f":"IFERROR(VLOOKUP(F5793,Translation!$A:$C,3,FALSE),F5793)","v":"Avoir propre foncier moyen selon la province"},{"$f":"IFERROR(VLOOKUP(G5793,Translation!$A:$C,3,FALSE),G5793)","v":"25.0"},{"$f":"IFERROR(VLOOKUP(H5793,Translation!$A:$C,3,FALSE),H5793)","v":"Territoires"}]
[27,"T3 2017","IMMEUBLES COLLECTIFS RÉSIDENTIELS","Nouvelle-Écosse",24.114702171098756,"Avoir propre foncier moyen selon la province","24.1","Nouvelle-Écosse",{"$f":"IFERROR(VLOOKUP(A5796,Translation!$A:$C,3,FALSE),A5796)","v":27},{"$f":"IFERROR(VLOOKUP(B5796,Translation!$A:$C,3,FALSE),B5796)","v":"T3 2017"},{"$f":"IFERROR(VLOOKUP(C5796,Translation!$A:$C,3,FALSE),C5796)","v":"IMMEUBLES COLLECTIFS RÉSIDENTIELS"},{"$f":"IFERROR(VLOOKUP(D5796,Translation!$A:$C,3,FALSE),D5796)","v":"Nouvelle-Écosse"},{"$f":"IFERROR(VLOOKUP(E5796,Translation!$A:$C,3,FALSE),E5796)","v":24.114702171098756},{"$f":"IFERROR(VLOOKUP(F5796,Translation!$A:$C,3,FALSE),F5796)","v":"Avoir propre foncier moyen selon la province"},{"$f":"IFERROR(VLOOKUP(G5796,Translation!$A:$C,3,FALSE),G5796)","v":"24.1"},{"$f":"IFERROR(VLOOKUP(H5796,Translation!$A:$C,3,FALSE),H5796)","v":"Nouvelle-Écosse"}]
[27,"T3 2017","IMMEUBLES COLLECTIFS RÉSIDENTIELS","Ontario",30.642630033699572,"Avoir propre foncier moyen selon la province","30.6","Ontario",{"$f":"IFERROR(VLOOKUP(A5799,Translation!$A:$C,3,FALSE),A5799)","v":27},{"$f":"IFERROR(VLOOKUP(B5799,Translation!$A:$C,3,FALSE),B5799)","v":"T3 2017"},{"$f":"IFERROR(VLOOKUP(C5799,Translation!$A:$C,3,FALSE),C5799)","v":"IMMEUBLES COLLECTIFS RÉSIDENTIELS"},{"$f":"IFERROR(VLOOKUP(D5799,Translation!$A:$C,3,FALSE),D5799)","v":"Ontario"},{"$f":"IFERROR(VLOOKUP(E5799,Translation!$A:$C,3,FALSE),E5799)","v":30.642630033699572},{"$f":"IFERROR(VLOOKUP(F5799,Translation!$A:$C,3,FALSE),F5799)","v":"Avoir propre foncier moyen selon la province"},{"$f":"IFERROR(VLOOKUP(G5799,Translation!$A:$C,3,FALSE),G5799)","v":"30.6"},{"$f":"IFERROR(VLOOKUP(H5799,Translation!$A:$C,3,FALSE),H5799)","v":"Ontario"}]
[27,"T3 2017","IMMEUBLES COLLECTIFS RÉSIDENTIELS","Saskatchewan",23.710430903729328,"Avoir propre foncier moyen selon la province","23.7","Saskatchewan",{"$f":"IFERROR(VLOOKUP(A5801,Translation!$A:$C,3,FALSE),A5801)","v":27},{"$f":"IFERROR(VLOOKUP(B5801,Translation!$A:$C,3,FALSE),B5801)","v":"T3 2017"},{"$f":"IFERROR(VLOOKUP(C5801,Translation!$A:$C,3,FALSE),C5801)","v":"IMMEUBLES COLLECTIFS RÉSIDENTIELS"},{"$f":"IFERROR(VLOOKUP(D5801,Translation!$A:$C,3,FALSE),D5801)","v":"Saskatchewan"},{"$f":"IFERROR(VLOOKUP(E5801,Translation!$A:$C,3,FALSE),E5801)","v":23.710430903729328},{"$f":"IFERROR(VLOOKUP(F5801,Translation!$A:$C,3,FALSE),F5801)","v":"Avoir propre foncier moyen selon la province"},{"$f":"IFERROR(VLOOKUP(G5801,Translation!$A:$C,3,FALSE),G5801)","v":"23.7"},{"$f":"IFERROR(VLOOKUP(H5801,Translation!$A:$C,3,FALSE),H5801)","v":"Saskatchewan"}]
[27,"T3 2017","IMMEUBLES COLLECTIFS RÉSIDENTIELS","Alberta",26.808117480019071,"Avoir propre foncier moyen selon la province","26.8","Alberta",{"$f":"IFERROR(VLOOKUP(A5802,Translation!$A:$C,3,FALSE),A5802)","v":27},{"$f":"IFERROR(VLOOKUP(B5802,Translation!$A:$C,3,FALSE),B5802)","v":"T3 2017"},{"$f":"IFERROR(VLOOKUP(C5802,Translation!$A:$C,3,FALSE),C5802)","v":"IMMEUBLES COLLECTIFS RÉSIDENTIELS"},{"$f":"IFERROR(VLOOKUP(D5802,Translation!$A:$C,3,FALSE),D5802)","v":"Alberta"},{"$f":"IFERROR(VLOOKUP(E5802,Translation!$A:$C,3,FALSE),E5802)","v":26.808117480019071},{"$f":"IFERROR(VLOOKUP(F5802,Translation!$A:$C,3,FALSE),F5802)","v":"Avoir propre foncier moyen selon la province"},{"$f":"IFERROR(VLOOKUP(G5802,Translation!$A:$C,3,FALSE),G5802)","v":"26.8"},{"$f":"IFERROR(VLOOKUP(H5802,Translation!$A:$C,3,FALSE),H5802)","v":"Alberta"}]
[27,"Q4 2016","IMMEUBLES COLLECTIFS RÉSIDENTIELS","Île-du-Prince-Édouard",20.842150510345025,"Avoir propre foncier moyen selon la province","20.8","Île-du-Prince-Édouard",{"$f":"IFERROR(VLOOKUP(A5806,Translation!$A:$C,3,FALSE),A5806)","v":27},{"$f":"IFERROR(VLOOKUP(B5806,Translation!$A:$C,3,FALSE),B5806)","v":"Q4 2016"},{"$f":"IFERROR(VLOOKUP(C5806,Translation!$A:$C,3,FALSE),C5806)","v":"IMMEUBLES COLLECTIFS RÉSIDENTIELS"},{"$f":"IFERROR(VLOOKUP(D5806,Translation!$A:$C,3,FALSE),D5806)","v":"Île-du-Prince-Édouard"},{"$f":"IFERROR(VLOOKUP(E5806,Translation!$A:$C,3,FALSE),E5806)","v":20.842150510345025},{"$f":"IFERROR(VLOOKUP(F5806,Translation!$A:$C,3,FALSE),F5806)","v":"Avoir propre foncier moyen selon la province"},{"$f":"IFERROR(VLOOKUP(G5806,Translation!$A:$C,3,FALSE),G5806)","v":"20.8"},{"$f":"IFERROR(VLOOKUP(H5806,Translation!$A:$C,3,FALSE),H5806)","v":"Île-du-Prince-Édouard"}]
[27,"Q4 2016","IMMEUBLES COLLECTIFS RÉSIDENTIELS","Nouvelle-Écosse",28.557217270293755,"Avoir propre foncier moyen selon la province","28.6","Nouvelle-Écosse",{"$f":"IFERROR(VLOOKUP(A5807,Translation!$A:$C,3,FALSE),A5807)","v":27},{"$f":"IFERROR(VLOOKUP(B5807,Translation!$A:$C,3,FALSE),B5807)","v":"Q4 2016"},{"$f":"IFERROR(VLOOKUP(C5807,Translation!$A:$C,3,FALSE),C5807)","v":"IMMEUBLES COLLECTIFS RÉSIDENTIELS"},{"$f":"IFERROR(VLOOKUP(D5807,Translation!$A:$C,3,FALSE),D5807)","v":"Nouvelle-Écosse"},{"$f":"IFERROR(VLOOKUP(E5807,Translation!$A:$C,3,FALSE),E5807)","v":28.557217270293755},{"$f":"IFERROR(VLOOKUP(F5807,Translation!$A:$C,3,FALSE),F5807)","v":"Avoir propre foncier moyen selon la province"},{"$f":"IFERROR(VLOOKUP(G5807,Translation!$A:$C,3,FALSE),G5807)","v":"28.6"},{"$f":"IFERROR(VLOOKUP(H5807,Translation!$A:$C,3,FALSE),H5807)","v":"Nouvelle-Écosse"}]
[27,"Q4 2016","IMMEUBLES COLLECTIFS RÉSIDENTIELS","Ontario",34.257371897814153,"Avoir propre foncier moyen selon la province","34.3","Ontario",{"$f":"IFERROR(VLOOKUP(A5810,Translation!$A:$C,3,FALSE),A5810)","v":27},{"$f":"IFERROR(VLOOKUP(B5810,Translation!$A:$C,3,FALSE),B5810)","v":"Q4 2016"},{"$f":"IFERROR(VLOOKUP(C5810,Translation!$A:$C,3,FALSE),C5810)","v":"IMMEUBLES COLLECTIFS RÉSIDENTIELS"},{"$f":"IFERROR(VLOOKUP(D5810,Translation!$A:$C,3,FALSE),D5810)","v":"Ontario"},{"$f":"IFERROR(VLOOKUP(E5810,Translation!$A:$C,3,FALSE),E5810)","v":34.257371897814153},{"$f":"IFERROR(VLOOKUP(F5810,Translation!$A:$C,3,FALSE),F5810)","v":"Avoir propre foncier moyen selon la province"},{"$f":"IFERROR(VLOOKUP(G5810,Translation!$A:$C,3,FALSE),G5810)","v":"34.3"},{"$f":"IFERROR(VLOOKUP(H5810,Translation!$A:$C,3,FALSE),H5810)","v":"Ontario"}]
[27,"Q4 2016","IMMEUBLES COLLECTIFS RÉSIDENTIELS","Saskatchewan",25,"Avoir propre foncier moyen selon la province","25.0","Saskatchewan",{"$f":"IFERROR(VLOOKUP(A5812,Translation!$A:$C,3,FALSE),A5812)","v":27},{"$f":"IFERROR(VLOOKUP(B5812,Translation!$A:$C,3,FALSE),B5812)","v":"Q4 2016"},{"$f":"IFERROR(VLOOKUP(C5812,Translation!$A:$C,3,FALSE),C5812)","v":"IMMEUBLES COLLECTIFS RÉSIDENTIELS"},{"$f":"IFERROR(VLOOKUP(D5812,Translation!$A:$C,3,FALSE),D5812)","v":"Saskatchewan"},{"$f":"IFERROR(VLOOKUP(E5812,Translation!$A:$C,3,FALSE),E5812)","v":25},{"$f":"IFERROR(VLOOKUP(F5812,Translation!$A:$C,3,FALSE),F5812)","v":"Avoir propre foncier moyen selon la province"},{"$f":"IFERROR(VLOOKUP(G5812,Translation!$A:$C,3,FALSE),G5812)","v":"25.0"},{"$f":"IFERROR(VLOOKUP(H5812,Translation!$A:$C,3,FALSE),H5812)","v":"Saskatchewan"}]
[27,"T4 2017","IMMEUBLES COLLECTIFS RÉSIDENTIELS","Terre-Neuve-et-Labrador",25,"Avoir propre foncier moyen selon la province","25.0","Terre-Neuve-et-Labrador",{"$f":"IFERROR(VLOOKUP(A5816,Translation!$A:$C,3,FALSE),A5816)","v":27},{"$f":"IFERROR(VLOOKUP(B5816,Translation!$A:$C,3,FALSE),B5816)","v":"T4 2017"},{"$f":"IFERROR(VLOOKUP(C5816,Translation!$A:$C,3,FALSE),C5816)","v":"IMMEUBLES COLLECTIFS RÉSIDENTIELS"},{"$f":"IFERROR(VLOOKUP(D5816,Translation!$A:$C,3,FALSE),D5816)","v":"Terre-Neuve-et-Labrador"},{"$f":"IFERROR(VLOOKUP(E5816,Translation!$A:$C,3,FALSE),E5816)","v":25},{"$f":"IFERROR(VLOOKUP(F5816,Translation!$A:$C,3,FALSE),F5816)","v":"Avoir propre foncier moyen selon la province"},{"$f":"IFERROR(VLOOKUP(G5816,Translation!$A:$C,3,FALSE),G5816)","v":"25.0"},{"$f":"IFERROR(VLOOKUP(H5816,Translation!$A:$C,3,FALSE),H5816)","v":"Terre-Neuve-et-Labrador"}]
[27,"T4 2017","IMMEUBLES COLLECTIFS RÉSIDENTIELS","Île-du-Prince-Édouard",23.244064198017441,"Avoir propre foncier moyen selon la province","23.2","Île-du-Prince-Édouard",{"$f":"IFERROR(VLOOKUP(A5817,Translation!$A:$C,3,FALSE),A5817)","v":27},{"$f":"IFERROR(VLOOKUP(B5817,Translation!$A:$C,3,FALSE),B5817)","v":"T4 2017"},{"$f":"IFERROR(VLOOKUP(C5817,Translation!$A:$C,3,FALSE),C5817)","v":"IMMEUBLES COLLECTIFS RÉSIDENTIELS"},{"$f":"IFERROR(VLOOKUP(D5817,Translation!$A:$C,3,FALSE),D5817)","v":"Île-du-Prince-Édouard"},{"$f":"IFERROR(VLOOKUP(E5817,Translation!$A:$C,3,FALSE),E5817)","v":23.244064198017441},{"$f":"IFERROR(VLOOKUP(F5817,Translation!$A:$C,3,FALSE),F5817)","v":"Avoir propre foncier moyen selon la province"},{"$f":"IFERROR(VLOOKUP(G5817,Translation!$A:$C,3,FALSE),G5817)","v":"23.2"},{"$f":"IFERROR(VLOOKUP(H5817,Translation!$A:$C,3,FALSE),H5817)","v":"Île-du-Prince-Édouard"}]
[27,"T4 2017","IMMEUBLES COLLECTIFS RÉSIDENTIELS","Québec",22.843840333400578,"Avoir propre foncier moyen selon la province","22.8","Québec",{"$f":"IFERROR(VLOOKUP(A5820,Translation!$A:$C,3,FALSE),A5820)","v":27},{"$f":"IFERROR(VLOOKUP(B5820,Translation!$A:$C,3,FALSE),B5820)","v":"T4 2017"},{"$f":"IFERROR(VLOOKUP(C5820,Translation!$A:$C,3,FALSE),C5820)","v":"IMMEUBLES COLLECTIFS RÉSIDENTIELS"},{"$f":"IFERROR(VLOOKUP(D5820,Translation!$A:$C,3,FALSE),D5820)","v":"Québec"},{"$f":"IFERROR(VLOOKUP(E5820,Translation!$A:$C,3,FALSE),E5820)","v":22.843840333400578},{"$f":"IFERROR(VLOOKUP(F5820,Translation!$A:$C,3,FALSE),F5820)","v":"Avoir propre foncier moyen selon la province"},{"$f":"IFERROR(VLOOKUP(G5820,Translation!$A:$C,3,FALSE),G5820)","v":"22.8"},{"$f":"IFERROR(VLOOKUP(H5820,Translation!$A:$C,3,FALSE),H5820)","v":"Québec"}]
[27,"T4 2017","IMMEUBLES COLLECTIFS RÉSIDENTIELS","Ontario",25.745033719737677,"Avoir propre foncier moyen selon la province","25.7","Ontario",{"$f":"IFERROR(VLOOKUP(A5821,Translation!$A:$C,3,FALSE),A5821)","v":27},{"$f":"IFERROR(VLOOKUP(B5821,Translation!$A:$C,3,FALSE),B5821)","v":"T4 2017"},{"$f":"IFERROR(VLOOKUP(C5821,Translation!$A:$C,3,FALSE),C5821)","v":"IMMEUBLES COLLECTIFS RÉSIDENTIELS"},{"$f":"IFERROR(VLOOKUP(D5821,Translation!$A:$C,3,FALSE),D5821)","v":"Ontario"},{"$f":"IFERROR(VLOOKUP(E5821,Translation!$A:$C,3,FALSE),E5821)","v":25.745033719737677},{"$f":"IFERROR(VLOOKUP(F5821,Translation!$A:$C,3,FALSE),F5821)","v":"Avoir propre foncier moyen selon la province"},{"$f":"IFERROR(VLOOKUP(G5821,Translation!$A:$C,3,FALSE),G5821)","v":"25.7"},{"$f":"IFERROR(VLOOKUP(H5821,Translation!$A:$C,3,FALSE),H5821)","v":"Ontario"}]
[27,"T4 2017","IMMEUBLES COLLECTIFS RÉSIDENTIELS","Colombie-Britannique",27.097816473596755,"Avoir propre foncier moyen selon la province","27.1","Colombie-Britannique",{"$f":"IFERROR(VLOOKUP(A5825,Translation!$A:$C,3,FALSE),A5825)","v":27},{"$f":"IFERROR(VLOOKUP(B5825,Translation!$A:$C,3,FALSE),B5825)","v":"T4 2017"},{"$f":"IFERROR(VLOOKUP(C5825,Translation!$A:$C,3,FALSE),C5825)","v":"IMMEUBLES COLLECTIFS RÉSIDENTIELS"},{"$f":"IFERROR(VLOOKUP(D5825,Translation!$A:$C,3,FALSE),D5825)","v":"Colombie-Britannique"},{"$f":"IFERROR(VLOOKUP(E5825,Translation!$A:$C,3,FALSE),E5825)","v":27.097816473596755},{"$f":"IFERROR(VLOOKUP(F5825,Translation!$A:$C,3,FALSE),F5825)","v":"Avoir propre foncier moyen selon la province"},{"$f":"IFERROR(VLOOKUP(G5825,Translation!$A:$C,3,FALSE),G5825)","v":"27.1"},{"$f":"IFERROR(VLOOKUP(H5825,Translation!$A:$C,3,FALSE),H5825)","v":"Colombie-Britannique"}]
[15,"T1 2020","PROPRIÉTAIRES-OCCUPANTS, À L’UNITÉ","Plus de 850 000 $ à 1 000 000 $",0.87217043941411443,"Prêts hypothécaires assurés au cours de la période selon le prix d'achat (%)","0.9","Plus de 850 000 $ à 1 000 000 $",{"$f":"IFERROR(VLOOKUP(A5827,Translation!$A:$C,3,FALSE),A5827)","v":15},{"$f":"IFERROR(VLOOKUP(B5827,Translation!$A:$C,3,FALSE),B5827)","v":"T1 2020"},{"$f":"IFERROR(VLOOKUP(C5827,Translation!$A:$C,3,FALSE),C5827)","v":"PROPRIÉTAIRES-OCCUPANTS, À L’UNITÉ"},{"$f":"IFERROR(VLOOKUP(D5827,Translation!$A:$C,3,FALSE),D5827)","v":"Plus de 850 000 $ à 1 000 000 $"},{"$f":"IFERROR(VLOOKUP(E5827,Translation!$A:$C,3,FALSE),E5827)","v":0.87217043941411443},{"$f":"IFERROR(VLOOKUP(F5827,Translation!$A:$C,3,FALSE),F5827)","v":"Prêts hypothécaires assurés au cours de la période selon le prix d'achat (%)"},{"$f":"IFERROR(VLOOKUP(G5827,Translation!$A:$C,3,FALSE),G5827)","v":"0.9"},{"$f":"IFERROR(VLOOKUP(H5827,Translation!$A:$C,3,FALSE),H5827)","v":"Plus de 850 000 $ à 1 000 000 $"}]
[15,"T1 2020","PROPRIÉTAIRES-OCCUPANTS, À L’UNITÉ","Plus de 600 000 $ à 850 000 $",6.1384820239680407,"Prêts hypothécaires assurés au cours de la période selon le prix d'achat (%)","6.1","Plus de 600 000 $ à 850 000 $",{"$f":"IFERROR(VLOOKUP(A5830,Translation!$A:$C,3,FALSE),A5830)","v":15},{"$f":"IFERROR(VLOOKUP(B5830,Translation!$A:$C,3,FALSE),B5830)","v":"T1 2020"},{"$f":"IFERROR(VLOOKUP(C5830,Translation!$A:$C,3,FALSE),C5830)","v":"PROPRIÉTAIRES-OCCUPANTS, À L’UNITÉ"},{"$f":"IFERROR(VLOOKUP(D5830,Translation!$A:$C,3,FALSE),D5830)","v":"Plus de 600 000 $ à 850 000 $"},{"$f":"IFERROR(VLOOKUP(E5830,Translation!$A:$C,3,FALSE),E5830)","v":6.1384820239680407},{"$f":"IFERROR(VLOOKUP(F5830,Translation!$A:$C,3,FALSE),F5830)","v":"Prêts hypothécaires assurés au cours de la période selon le prix d'achat (%)"},{"$f":"IFERROR(VLOOKUP(G5830,Translation!$A:$C,3,FALSE),G5830)","v":"6.1"},{"$f":"IFERROR(VLOOKUP(H5830,Translation!$A:$C,3,FALSE),H5830)","v":"Plus de 600 000 $ à 850 000 $"}]
[15,"Cumul 2019","PROPRIÉTAIRES-OCCUPANTS, À L’UNITÉ","Plus de 600 000 $ à 850 000 $",5.4647562819497448,"Prêts hypothécaires assurés au cours de la période selon le prix d'achat (%)","5.5","Plus de 600 000 $ à 850 000 $",{"$f":"IFERROR(VLOOKUP(A5831,Translation!$A:$C,3,FALSE),A5831)","v":15},{"$f":"IFERROR(VLOOKUP(B5831,Translation!$A:$C,3,FALSE),B5831)","v":"Cumul 2019"},{"$f":"IFERROR(VLOOKUP(C5831,Translation!$A:$C,3,FALSE),C5831)","v":"PROPRIÉTAIRES-OCCUPANTS, À L’UNITÉ"},{"$f":"IFERROR(VLOOKUP(D5831,Translation!$A:$C,3,FALSE),D5831)","v":"Plus de 600 000 $ à 850 000 $"},{"$f":"IFERROR(VLOOKUP(E5831,Translation!$A:$C,3,FALSE),E5831)","v":5.4647562819497448},{"$f":"IFERROR(VLOOKUP(F5831,Translation!$A:$C,3,FALSE),F5831)","v":"Prêts hypothécaires assurés au cours de la période selon le prix d'achat (%)"},{"$f":"IFERROR(VLOOKUP(G5831,Translation!$A:$C,3,FALSE),G5831)","v":"5.5"},{"$f":"IFERROR(VLOOKUP(H5831,Translation!$A:$C,3,FALSE),H5831)","v":"Plus de 600 000 $ à 850 000 $"}]
[15,"Cumul 2020","PROPRIÉTAIRES-OCCUPANTS, À L’UNITÉ","Plus de 500 000 $ à 600 000 $",6.8708388814913484,"Prêts hypothécaires assurés au cours de la période selon le prix d'achat (%)","6.9","Plus de 500 000 $ à 600 000 $",{"$f":"IFERROR(VLOOKUP(A5835,Translation!$A:$C,3,FALSE),A5835)","v":15},{"$f":"IFERROR(VLOOKUP(B5835,Translation!$A:$C,3,FALSE),B5835)","v":"Cumul 2020"},{"$f":"IFERROR(VLOOKUP(C5835,Translation!$A:$C,3,FALSE),C5835)","v":"PROPRIÉTAIRES-OCCUPANTS, À L’UNITÉ"},{"$f":"IFERROR(VLOOKUP(D5835,Translation!$A:$C,3,FALSE),D5835)","v":"Plus de 500 000 $ à 600 000 $"},{"$f":"IFERROR(VLOOKUP(E5835,Translation!$A:$C,3,FALSE),E5835)","v":6.8708388814913484},{"$f":"IFERROR(VLOOKUP(F5835,Translation!$A:$C,3,FALSE),F5835)","v":"Prêts hypothécaires assurés au cours de la période selon le prix d'achat (%)"},{"$f":"IFERROR(VLOOKUP(G5835,Translation!$A:$C,3,FALSE),G5835)","v":"6.9"},{"$f":"IFERROR(VLOOKUP(H5835,Translation!$A:$C,3,FALSE),H5835)","v":"Plus de 500 000 $ à 600 000 $"}]
[15,"T1 2020","PROPRIÉTAIRES-OCCUPANTS, À L’UNITÉ","Plus de 400 000 $ à 500 000 $",12.729693741677764,"Prêts hypothécaires assurés au cours de la période selon le prix d'achat (%)","12.7","Plus de 400 000 $ à 500 000 $",{"$f":"IFERROR(VLOOKUP(A5836,Translation!$A:$C,3,FALSE),A5836)","v":15},{"$f":"IFERROR(VLOOKUP(B5836,Translation!$A:$C,3,FALSE),B5836)","v":"T1 2020"},{"$f":"IFERROR(VLOOKUP(C5836,Translation!$A:$C,3,FALSE),C5836)","v":"PROPRIÉTAIRES-OCCUPANTS, À L’UNITÉ"},{"$f":"IFERROR(VLOOKUP(D5836,Translation!$A:$C,3,FALSE),D5836)","v":"Plus de 400 000 $ à 500 000 $"},{"$f":"IFERROR(VLOOKUP(E5836,Translation!$A:$C,3,FALSE),E5836)","v":12.729693741677764},{"$f":"IFERROR(VLOOKUP(F5836,Translation!$A:$C,3,FALSE),F5836)","v":"Prêts hypothécaires assurés au cours de la période selon le prix d'achat (%)"},{"$f":"IFERROR(VLOOKUP(G5836,Translation!$A:$C,3,FALSE),G5836)","v":"12.7"},{"$f":"IFERROR(VLOOKUP(H5836,Translation!$A:$C,3,FALSE),H5836)","v":"Plus de 400 000 $ à 500 000 $"}]
[15,"T1 2020","PROPRIÉTAIRES-OCCUPANTS, À L’UNITÉ","Plus de 300 000 $ à 400 000 $",18.928095872170434,"Prêts hypothécaires assurés au cours de la période selon le prix d'achat (%)","18.9","Plus de 300 000 $ à 400 000 $",{"$f":"IFERROR(VLOOKUP(A5839,Translation!$A:$C,3,FALSE),A5839)","v":15},{"$f":"IFERROR(VLOOKUP(B5839,Translation!$A:$C,3,FALSE),B5839)","v":"T1 2020"},{"$f":"IFERROR(VLOOKUP(C5839,Translation!$A:$C,3,FALSE),C5839)","v":"PROPRIÉTAIRES-OCCUPANTS, À L’UNITÉ"},{"$f":"IFERROR(VLOOKUP(D5839,Translation!$A:$C,3,FALSE),D5839)","v":"Plus de 300 000 $ à 400 000 $"},{"$f":"IFERROR(VLOOKUP(E5839,Translation!$A:$C,3,FALSE),E5839)","v":18.928095872170434},{"$f":"IFERROR(VLOOKUP(F5839,Translation!$A:$C,3,FALSE),F5839)","v":"Prêts hypothécaires assurés au cours de la période selon le prix d'achat (%)"},{"$f":"IFERROR(VLOOKUP(G5839,Translation!$A:$C,3,FALSE),G5839)","v":"18.9"},{"$f":"IFERROR(VLOOKUP(H5839,Translation!$A:$C,3,FALSE),H5839)","v":"Plus de 300 000 $ à 400 000 $"}]
[15,"Cumul 2019","PROPRIÉTAIRES-OCCUPANTS, À L’UNITÉ","Plus de 300 000 $ à 400 000 $",19.634242926056597,"Prêts hypothécaires assurés au cours de la période selon le prix d'achat (%)","19.6","Plus de 300 000 $ à 400 000 $",{"$f":"IFERROR(VLOOKUP(A5840,Translation!$A:$C,3,FALSE),A5840)","v":15},{"$f":"IFERROR(VLOOKUP(B5840,Translation!$A:$C,3,FALSE),B5840)","v":"Cumul 2019"},{"$f":"IFERROR(VLOOKUP(C5840,Translation!$A:$C,3,FALSE),C5840)","v":"PROPRIÉTAIRES-OCCUPANTS, À L’UNITÉ"},{"$f":"IFERROR(VLOOKUP(D5840,Translation!$A:$C,3,FALSE),D5840)","v":"Plus de 300 000 $ à 400 000 $"},{"$f":"IFERROR(VLOOKUP(E5840,Translation!$A:$C,3,FALSE),E5840)","v":19.634242926056597},{"$f":"IFERROR(VLOOKUP(F5840,Translation!$A:$C,3,FALSE),F5840)","v":"Prêts hypothécaires assurés au cours de la période selon le prix d'achat (%)"},{"$f":"IFERROR(VLOOKUP(G5840,Translation!$A:$C,3,FALSE),G5840)","v":"19.6"},{"$f":"IFERROR(VLOOKUP(H5840,Translation!$A:$C,3,FALSE),H5840)","v":"Plus de 300 000 $ à 400 000 $"}]
[15,"Cumul 2020","PROPRIÉTAIRES-OCCUPANTS, À L’UNITÉ","Plus de 200 000 $ à 300 000 $",25.286284953395473,"Prêts hypothécaires assurés au cours de la période selon le prix d'achat (%)","25.3","Plus de 200 000 $ à 300 000 $",{"$f":"IFERROR(VLOOKUP(A5844,Translation!$A:$C,3,FALSE),A5844)","v":15},{"$f":"IFERROR(VLOOKUP(B5844,Translation!$A:$C,3,FALSE),B5844)","v":"Cumul 2020"},{"$f":"IFERROR(VLOOKUP(C5844,Translation!$A:$C,3,FALSE),C5844)","v":"PROPRIÉTAIRES-OCCUPANTS, À L’UNITÉ"},{"$f":"IFERROR(VLOOKUP(D5844,Translation!$A:$C,3,FALSE),D5844)","v":"Plus de 200 000 $ à 300 000 $"},{"$f":"IFERROR(VLOOKUP(E5844,Translation!$A:$C,3,FALSE),E5844)","v":25.286284953395473},{"$f":"IFERROR(VLOOKUP(F5844,Translation!$A:$C,3,FALSE),F5844)","v":"Prêts hypothécaires assurés au cours de la période selon le prix d'achat (%)"},{"$f":"IFERROR(VLOOKUP(G5844,Translation!$A:$C,3,FALSE),G5844)","v":"25.3"},{"$f":"IFERROR(VLOOKUP(H5844,Translation!$A:$C,3,FALSE),H5844)","v":"Plus de 200 000 $ à 300 000 $"}]
[15,"Cumul 2019","PROPRIÉTAIRES-OCCUPANTS, À L’UNITÉ","200 000 $ ou moins",30.966952264381888,"Prêts hypothécaires assurés au cours de la période selon le prix d'achat (%)","31.0","200 000 $ ou moins",{"$f":"IFERROR(VLOOKUP(A5846,Translation!$A:$C,3,FALSE),A5846)","v":15},{"$f":"IFERROR(VLOOKUP(B5846,Translation!$A:$C,3,FALSE),B5846)","v":"Cumul 2019"},{"$f":"IFERROR(VLOOKUP(C5846,Translation!$A:$C,3,FALSE),C5846)","v":"PROPRIÉTAIRES-OCCUPANTS, À L’UNITÉ"},{"$f":"IFERROR(VLOOKUP(D5846,Translation!$A:$C,3,FALSE),D5846)","v":"200 000 $ ou moins"},{"$f":"IFERROR(VLOOKUP(E5846,Translation!$A:$C,3,FALSE),E5846)","v":30.966952264381888},{"$f":"IFERROR(VLOOKUP(F5846,Translation!$A:$C,3,FALSE),F5846)","v":"Prêts hypothécaires assurés au cours de la période selon le prix d'achat (%)"},{"$f":"IFERROR(VLOOKUP(G5846,Translation!$A:$C,3,FALSE),G5846)","v":"31.0"},{"$f":"IFERROR(VLOOKUP(H5846,Translation!$A:$C,3,FALSE),H5846)","v":"200 000 $ ou moins"}]
[15,"Cumul 2019","PROPRIÉTAIRES-OCCUPANTS, À L’UNITÉ","Prix d'achat moyen ($)",284164.39020519861,"Prêts hypothécaires assurés au cours de la période selon le prix d'achat (%)","284164.4","Prix d'achat moyen ($)",{"$f":"IFERROR(VLOOKUP(A5849,Translation!$A:$C,3,FALSE),A5849)","v":15},{"$f":"IFERROR(VLOOKUP(B5849,Translation!$A:$C,3,FALSE),B5849)","v":"Cumul 2019"},{"$f":"IFERROR(VLOOKUP(C5849,Translation!$A:$C,3,FALSE),C5849)","v":"PROPRIÉTAIRES-OCCUPANTS, À L’UNITÉ"},{"$f":"IFERROR(VLOOKUP(D5849,Translation!$A:$C,3,FALSE),D5849)","v":"Prix d'achat moyen ($)"},{"$f":"IFERROR(VLOOKUP(E5849,Translation!$A:$C,3,FALSE),E5849)","v":284164.39020519861},{"$f":"IFERROR(VLOOKUP(F5849,Translation!$A:$C,3,FALSE),F5849)","v":"Prêts hypothécaires assurés au cours de la période selon le prix d'achat (%)"},{"$f":"IFERROR(VLOOKUP(G5849,Translation!$A:$C,3,FALSE),G5849)","v":"284164.4"},{"$f":"IFERROR(VLOOKUP(H5849,Translation!$A:$C,3,FALSE),H5849)","v":"Prix d'achat moyen ($)"}]
[15,"Cumul 2020","PROPRIÉTAIRES-OCCUPANTS, À L’UNITÉ","Prix d'achat moyen ($)",293514.73868375499,"Prêts hypothécaires assurés au cours de la période selon le prix d'achat (%)","293514.7","Prix d'achat moyen ($)",{"$f":"IFERROR(VLOOKUP(A5850,Translation!$A:$C,3,FALSE),A5850)","v":15},{"$f":"IFERROR(VLOOKUP(B5850,Translation!$A:$C,3,FALSE),B5850)","v":"Cumul 2020"},{"$f":"IFERROR(VLOOKUP(C5850,Translation!$A:$C,3,FALSE),C5850)","v":"PROPRIÉTAIRES-OCCUPANTS, À L’UNITÉ"},{"$f":"IFERROR(VLOOKUP(D5850,Translation!$A:$C,3,FALSE),D5850)","v":"Prix d'achat moyen ($)"},{"$f":"IFERROR(VLOOKUP(E5850,Translation!$A:$C,3,FALSE),E5850)","v":293514.73868375499},{"$f":"IFERROR(VLOOKUP(F5850,Translation!$A:$C,3,FALSE),F5850)","v":"Prêts hypothécaires assurés au cours de la période selon le prix d'achat (%)"},{"$f":"IFERROR(VLOOKUP(G5850,Translation!$A:$C,3,FALSE),G5850)","v":"293514.7"},{"$f":"IFERROR(VLOOKUP(H5850,Translation!$A:$C,3,FALSE),H5850)","v":"Prix d'achat moyen ($)"}]
[15,"T1 2020","PROPRIÉTAIRES-OCCUPANTS, À L’UNITÉ","Nouveau-Brunswick",151862.89878402901,"Prêts hypothécaires assurés au cours de la période selon le prix d'achat (%)","151862.9","Nouveau-Brunswick",{"$f":"IFERROR(VLOOKUP(A5854,Translation!$A:$C,3,FALSE),A5854)","v":15},{"$f":"IFERROR(VLOOKUP(B5854,Translation!$A:$C,3,FALSE),B5854)","v":"T1 2020"},{"$f":"IFERROR(VLOOKUP(C5854,Translation!$A:$C,3,FALSE),C5854)","v":"PROPRIÉTAIRES-OCCUPANTS, À L’UNITÉ"},{"$f":"IFERROR(VLOOKUP(D5854,Translation!$A:$C,3,FALSE),D5854)","v":"Nouveau-Brunswick"},{"$f":"IFERROR(VLOOKUP(E5854,Translation!$A:$C,3,FALSE),E5854)","v":151862.89878402901},{"$f":"IFERROR(VLOOKUP(F5854,Translation!$A:$C,3,FALSE),F5854)","v":"Prêts hypothécaires assurés au cours de la période selon le prix d'achat (%)"},{"$f":"IFERROR(VLOOKUP(G5854,Translation!$A:$C,3,FALSE),G5854)","v":"151862.9"},{"$f":"IFERROR(VLOOKUP(H5854,Translation!$A:$C,3,FALSE),H5854)","v":"Nouveau-Brunswick"}]
[15,"T1 2020","PROPRIÉTAIRES-OCCUPANTS, À L’UNITÉ","Québec",224936.91260295379,"Prêts hypothécaires assurés au cours de la période selon le prix d'achat (%)","224936.9","Québec",{"$f":"IFERROR(VLOOKUP(A5855,Translation!$A:$C,3,FALSE),A5855)","v":15},{"$f":"IFERROR(VLOOKUP(B5855,Translation!$A:$C,3,FALSE),B5855)","v":"T1 2020"},{"$f":"IFERROR(VLOOKUP(C5855,Translation!$A:$C,3,FALSE),C5855)","v":"PROPRIÉTAIRES-OCCUPANTS, À L’UNITÉ"},{"$f":"IFERROR(VLOOKUP(D5855,Translation!$A:$C,3,FALSE),D5855)","v":"Québec"},{"$f":"IFERROR(VLOOKUP(E5855,Translation!$A:$C,3,FALSE),E5855)","v":224936.91260295379},{"$f":"IFERROR(VLOOKUP(F5855,Translation!$A:$C,3,FALSE),F5855)","v":"Prêts hypothécaires assurés au cours de la période selon le prix d'achat (%)"},{"$f":"IFERROR(VLOOKUP(G5855,Translation!$A:$C,3,FALSE),G5855)","v":"224936.9"},{"$f":"IFERROR(VLOOKUP(H5855,Translation!$A:$C,3,FALSE),H5855)","v":"Québec"}]
[15,"T1 2020","PROPRIÉTAIRES-OCCUPANTS, À L’UNITÉ","Manitoba",254823.43708333329,"Prêts hypothécaires assurés au cours de la période selon le prix d'achat (%)","254823.4","Manitoba",{"$f":"IFERROR(VLOOKUP(A5857,Translation!$A:$C,3,FALSE),A5857)","v":15},{"$f":"IFERROR(VLOOKUP(B5857,Translation!$A:$C,3,FALSE),B5857)","v":"T1 2020"},{"$f":"IFERROR(VLOOKUP(C5857,Translation!$A:$C,3,FALSE),C5857)","v":"PROPRIÉTAIRES-OCCUPANTS, À L’UNITÉ"},{"$f":"IFERROR(VLOOKUP(D5857,Translation!$A:$C,3,FALSE),D5857)","v":"Manitoba"},{"$f":"IFERROR(VLOOKUP(E5857,Translation!$A:$C,3,FALSE),E5857)","v":254823.43708333329},{"$f":"IFERROR(VLOOKUP(F5857,Translation!$A:$C,3,FALSE),F5857)","v":"Prêts hypothécaires assurés au cours de la période selon le prix d'achat (%)"},{"$f":"IFERROR(VLOOKUP(G5857,Translation!$A:$C,3,FALSE),G5857)","v":"254823.4"},{"$f":"IFERROR(VLOOKUP(H5857,Translation!$A:$C,3,FALSE),H5857)","v":"Manitoba"}]
[15,"T1 2020","PROPRIÉTAIRES-OCCUPANTS, À L’UNITÉ","Colombie-Britannique",392097.30567255965,"Prêts hypothécaires assurés au cours de la période selon le prix d'achat (%)","392097.3","Colombie-Britannique",{"$f":"IFERROR(VLOOKUP(A5860,Translation!$A:$C,3,FALSE),A5860)","v":15},{"$f":"IFERROR(VLOOKUP(B5860,Translation!$A:$C,3,FALSE),B5860)","v":"T1 2020"},{"$f":"IFERROR(VLOOKUP(C5860,Translation!$A:$C,3,FALSE),C5860)","v":"PROPRIÉTAIRES-OCCUPANTS, À L’UNITÉ"},{"$f":"IFERROR(VLOOKUP(D5860,Translation!$A:$C,3,FALSE),D5860)","v":"Colombie-Britannique"},{"$f":"IFERROR(VLOOKUP(E5860,Translation!$A:$C,3,FALSE),E5860)","v":392097.30567255965},{"$f":"IFERROR(VLOOKUP(F5860,Translation!$A:$C,3,FALSE),F5860)","v":"Prêts hypothécaires assurés au cours de la période selon le prix d'achat (%)"},{"$f":"IFERROR(VLOOKUP(G5860,Translation!$A:$C,3,FALSE),G5860)","v":"392097.3"},{"$f":"IFERROR(VLOOKUP(H5860,Translation!$A:$C,3,FALSE),H5860)","v":"Colombie-Britannique"}]
[15,"Cumul 2019","PROPRIÉTAIRES-OCCUPANTS, À L’UNITÉ","Île-du-Prince-Édouard",171346.37279411763,"Prêts hypothécaires assurés au cours de la période selon le prix d'achat (%)","171346.4","Île-du-Prince-Édouard",{"$f":"IFERROR(VLOOKUP(A5863,Translation!$A:$C,3,FALSE),A5863)","v":15},{"$f":"IFERROR(VLOOKUP(B5863,Translation!$A:$C,3,FALSE),B5863)","v":"Cumul 2019"},{"$f":"IFERROR(VLOOKUP(C5863,Translation!$A:$C,3,FALSE),C5863)","v":"PROPRIÉTAIRES-OCCUPANTS, À L’UNITÉ"},{"$f":"IFERROR(VLOOKUP(D5863,Translation!$A:$C,3,FALSE),D5863)","v":"Île-du-Prince-Édouard"},{"$f":"IFERROR(VLOOKUP(E5863,Translation!$A:$C,3,FALSE),E5863)","v":171346.37279411763},{"$f":"IFERROR(VLOOKUP(F5863,Translation!$A:$C,3,FALSE),F5863)","v":"Prêts hypothécaires assurés au cours de la période selon le prix d'achat (%)"},{"$f":"IFERROR(VLOOKUP(G5863,Translation!$A:$C,3,FALSE),G5863)","v":"171346.4"},{"$f":"IFERROR(VLOOKUP(H5863,Translation!$A:$C,3,FALSE),H5863)","v":"Île-du-Prince-Édouard"}]
[15,"Cumul 2019","PROPRIÉTAIRES-OCCUPANTS, À L’UNITÉ","Nouveau-Brunswick",147485.81534322817,"Prêts hypothécaires assurés au cours de la période selon le prix d'achat (%)","147485.8","Nouveau-Brunswick",{"$f":"IFERROR(VLOOKUP(A5865,Translation!$A:$C,3,FALSE),A5865)","v":15},{"$f":"IFERROR(VLOOKUP(B5865,Translation!$A:$C,3,FALSE),B5865)","v":"Cumul 2019"},{"$f":"IFERROR(VLOOKUP(C5865,Translation!$A:$C,3,FALSE),C5865)","v":"PROPRIÉTAIRES-OCCUPANTS, À L’UNITÉ"},{"$f":"IFERROR(VLOOKUP(D5865,Translation!$A:$C,3,FALSE),D5865)","v":"Nouveau-Brunswick"},{"$f":"IFERROR(VLOOKUP(E5865,Translation!$A:$C,3,FALSE),E5865)","v":147485.81534322817},{"$f":"IFERROR(VLOOKUP(F5865,Translation!$A:$C,3,FALSE),F5865)","v":"Prêts hypothécaires assurés au cours de la période selon le prix d'achat (%)"},{"$f":"IFERROR(VLOOKUP(G5865,Translation!$A:$C,3,FALSE),G5865)","v":"147485.8"},{"$f":"IFERROR(VLOOKUP(H5865,Translation!$A:$C,3,FALSE),H5865)","v":"Nouveau-Brunswick"}]
[15,"Cumul 2019","PROPRIÉTAIRES-OCCUPANTS, À L’UNITÉ","Manitoba",243071.35035653657,"Prêts hypothécaires assurés au cours de la période selon le prix d'achat (%)","243071.4","Manitoba",{"$f":"IFERROR(VLOOKUP(A5868,Translation!$A:$C,3,FALSE),A5868)","v":15},{"$f":"IFERROR(VLOOKUP(B5868,Translation!$A:$C,3,FALSE),B5868)","v":"Cumul 2019"},{"$f":"IFERROR(VLOOKUP(C5868,Translation!$A:$C,3,FALSE),C5868)","v":"PROPRIÉTAIRES-OCCUPANTS, À L’UNITÉ"},{"$f":"IFERROR(VLOOKUP(D5868,Translation!$A:$C,3,FALSE),D5868)","v":"Manitoba"},{"$f":"IFERROR(VLOOKUP(E5868,Translation!$A:$C,3,FALSE),E5868)","v":243071.35035653657},{"$f":"IFERROR(VLOOKUP(F5868,Translation!$A:$C,3,FALSE),F5868)","v":"Prêts hypothécaires assurés au cours de la période selon le prix d'achat (%)"},{"$f":"IFERROR(VLOOKUP(G5868,Translation!$A:$C,3,FALSE),G5868)","v":"243071.4"},{"$f":"IFERROR(VLOOKUP(H5868,Translation!$A:$C,3,FALSE),H5868)","v":"Manitoba"}]
[15,"Cumul 2019","PROPRIÉTAIRES-OCCUPANTS, À L’UNITÉ","Colombie-Britannique",366616.84799319721,"Prêts hypothécaires assurés au cours de la période selon le prix d'achat (%)","366616.8","Colombie-Britannique",{"$f":"IFERROR(VLOOKUP(A5871,Translation!$A:$C,3,FALSE),A5871)","v":15},{"$f":"IFERROR(VLOOKUP(B5871,Translation!$A:$C,3,FALSE),B5871)","v":"Cumul 2019"},{"$f":"IFERROR(VLOOKUP(C5871,Translation!$A:$C,3,FALSE),C5871)","v":"PROPRIÉTAIRES-OCCUPANTS, À L’UNITÉ"},{"$f":"IFERROR(VLOOKUP(D5871,Translation!$A:$C,3,FALSE),D5871)","v":"Colombie-Britannique"},{"$f":"IFERROR(VLOOKUP(E5871,Translation!$A:$C,3,FALSE),E5871)","v":366616.84799319721},{"$f":"IFERROR(VLOOKUP(F5871,Translation!$A:$C,3,FALSE),F5871)","v":"Prêts hypothécaires assurés au cours de la période selon le prix d'achat (%)"},{"$f":"IFERROR(VLOOKUP(G5871,Translation!$A:$C,3,FALSE),G5871)","v":"366616.8"},{"$f":"IFERROR(VLOOKUP(H5871,Translation!$A:$C,3,FALSE),H5871)","v":"Colombie-Britannique"}]
[15,"Cumul 2020","PROPRIÉTAIRES-OCCUPANTS, À L’UNITÉ","Terre-Neuve-et-Labrador",218571.38711864408,"Prêts hypothécaires assurés au cours de la période selon le prix d'achat (%)","218571.4","Terre-Neuve-et-Labrador",{"$f":"IFERROR(VLOOKUP(A5873,Translation!$A:$C,3,FALSE),A5873)","v":15},{"$f":"IFERROR(VLOOKUP(B5873,Translation!$A:$C,3,FALSE),B5873)","v":"Cumul 2020"},{"$f":"IFERROR(VLOOKUP(C5873,Translation!$A:$C,3,FALSE),C5873)","v":"PROPRIÉTAIRES-OCCUPANTS, À L’UNITÉ"},{"$f":"IFERROR(VLOOKUP(D5873,Translation!$A:$C,3,FALSE),D5873)","v":"Terre-Neuve-et-Labrador"},{"$f":"IFERROR(VLOOKUP(E5873,Translation!$A:$C,3,FALSE),E5873)","v":218571.38711864408},{"$f":"IFERROR(VLOOKUP(F5873,Translation!$A:$C,3,FALSE),F5873)","v":"Prêts hypothécaires assurés au cours de la période selon le prix d'achat (%)"},{"$f":"IFERROR(VLOOKUP(G5873,Translation!$A:$C,3,FALSE),G5873)","v":"218571.4"},{"$f":"IFERROR(VLOOKUP(H5873,Translation!$A:$C,3,FALSE),H5873)","v":"Terre-Neuve-et-Labrador"}]
[15,"Cumul 2020","PROPRIÉTAIRES-OCCUPANTS, À L’UNITÉ","Île-du-Prince-Édouard",202155.70744444444,"Prêts hypothécaires assurés au cours de la période selon le prix d'achat (%)","202155.7","Île-du-Prince-Édouard",{"$f":"IFERROR(VLOOKUP(A5874,Translation!$A:$C,3,FALSE),A5874)","v":15},{"$f":"IFERROR(VLOOKUP(B5874,Translation!$A:$C,3,FALSE),B5874)","v":"Cumul 2020"},{"$f":"IFERROR(VLOOKUP(C5874,Translation!$A:$C,3,FALSE),C5874)","v":"PROPRIÉTAIRES-OCCUPANTS, À L’UNITÉ"},{"$f":"IFERROR(VLOOKUP(D5874,Translation!$A:$C,3,FALSE),D5874)","v":"Île-du-Prince-Édouard"},{"$f":"IFERROR(VLOOKUP(E5874,Translation!$A:$C,3,FALSE),E5874)","v":202155.70744444444},{"$f":"IFERROR(VLOOKUP(F5874,Translation!$A:$C,3,FALSE),F5874)","v":"Prêts hypothécaires assurés au cours de la période selon le prix d'achat (%)"},{"$f":"IFERROR(VLOOKUP(G5874,Translation!$A:$C,3,FALSE),G5874)","v":"202155.7"},{"$f":"IFERROR(VLOOKUP(H5874,Translation!$A:$C,3,FALSE),H5874)","v":"Île-du-Prince-Édouard"}]
[15,"Cumul 2020","PROPRIÉTAIRES-OCCUPANTS, À L’UNITÉ","Nouveau-Brunswick",151862.89878402901,"Prêts hypothécaires assurés au cours de la période selon le prix d'achat (%)","151862.9","Nouveau-Brunswick",{"$f":"IFERROR(VLOOKUP(A5876,Translation!$A:$C,3,FALSE),A5876)","v":15},{"$f":"IFERROR(VLOOKUP(B5876,Translation!$A:$C,3,FALSE),B5876)","v":"Cumul 2020"},{"$f":"IFERROR(VLOOKUP(C5876,Translation!$A:$C,3,FALSE),C5876)","v":"PROPRIÉTAIRES-OCCUPANTS, À L’UNITÉ"},{"$f":"IFERROR(VLOOKUP(D5876,Translation!$A:$C,3,FALSE),D5876)","v":"Nouveau-Brunswick"},{"$f":"IFERROR(VLOOKUP(E5876,Translation!$A:$C,3,FALSE),E5876)","v":151862.89878402901},{"$f":"IFERROR(VLOOKUP(F5876,Translation!$A:$C,3,FALSE),F5876)","v":"Prêts hypothécaires assurés au cours de la période selon le prix d'achat (%)"},{"$f":"IFERROR(VLOOKUP(G5876,Translation!$A:$C,3,FALSE),G5876)","v":"151862.9"},{"$f":"IFERROR(VLOOKUP(H5876,Translation!$A:$C,3,FALSE),H5876)","v":"Nouveau-Brunswick"}]
[15,"Cumul 2020","PROPRIÉTAIRES-OCCUPANTS, À L’UNITÉ","Manitoba",254823.43708333329,"Prêts hypothécaires assurés au cours de la période selon le prix d'achat (%)","254823.4","Manitoba",{"$f":"IFERROR(VLOOKUP(A5879,Translation!$A:$C,3,FALSE),A5879)","v":15},{"$f":"IFERROR(VLOOKUP(B5879,Translation!$A:$C,3,FALSE),B5879)","v":"Cumul 2020"},{"$f":"IFERROR(VLOOKUP(C5879,Translation!$A:$C,3,FALSE),C5879)","v":"PROPRIÉTAIRES-OCCUPANTS, À L’UNITÉ"},{"$f":"IFERROR(VLOOKUP(D5879,Translation!$A:$C,3,FALSE),D5879)","v":"Manitoba"},{"$f":"IFERROR(VLOOKUP(E5879,Translation!$A:$C,3,FALSE),E5879)","v":254823.43708333329},{"$f":"IFERROR(VLOOKUP(F5879,Translation!$A:$C,3,FALSE),F5879)","v":"Prêts hypothécaires assurés au cours de la période selon le prix d'achat (%)"},{"$f":"IFERROR(VLOOKUP(G5879,Translation!$A:$C,3,FALSE),G5879)","v":"254823.4"},{"$f":"IFERROR(VLOOKUP(H5879,Translation!$A:$C,3,FALSE),H5879)","v":"Manitoba"}]
[15,"Cumul 2020","PROPRIÉTAIRES-OCCUPANTS, À L’UNITÉ","Colombie-Britannique",392097.30567255965,"Prêts hypothécaires assurés au cours de la période selon le prix d'achat (%)","392097.3","Colombie-Britannique",{"$f":"IFERROR(VLOOKUP(A5882,Translation!$A:$C,3,FALSE),A5882)","v":15},{"$f":"IFERROR(VLOOKUP(B5882,Translation!$A:$C,3,FALSE),B5882)","v":"Cumul 2020"},{"$f":"IFERROR(VLOOKUP(C5882,Translation!$A:$C,3,FALSE),C5882)","v":"PROPRIÉTAIRES-OCCUPANTS, À L’UNITÉ"},{"$f":"IFERROR(VLOOKUP(D5882,Translation!$A:$C,3,FALSE),D5882)","v":"Colombie-Britannique"},{"$f":"IFERROR(VLOOKUP(E5882,Translation!$A:$C,3,FALSE),E5882)","v":392097.30567255965},{"$f":"IFERROR(VLOOKUP(F5882,Translation!$A:$C,3,FALSE),F5882)","v":"Prêts hypothécaires assurés au cours de la période selon le prix d'achat (%)"},{"$f":"IFERROR(VLOOKUP(G5882,Translation!$A:$C,3,FALSE),G5882)","v":"392097.3"},{"$f":"IFERROR(VLOOKUP(H5882,Translation!$A:$C,3,FALSE),H5882)","v":"Colombie-Britannique"}]
[15,"T4 2019","PROPRIÉTAIRES-OCCUPANTS, À L’UNITÉ","Plus de 850 000 $ à 1 000 000 $",0.69722711973072615,"Prêts hypothécaires assurés au cours de la période selon le prix d'achat (%)","0.7","Plus de 850 000 $ à 1 000 000 $",{"$f":"IFERROR(VLOOKUP(A5884,Translation!$A:$C,3,FALSE),A5884)","v":15},{"$f":"IFERROR(VLOOKUP(B5884,Translation!$A:$C,3,FALSE),B5884)","v":"T4 2019"},{"$f":"IFERROR(VLOOKUP(C5884,Translation!$A:$C,3,FALSE),C5884)","v":"PROPRIÉTAIRES-OCCUPANTS, À L’UNITÉ"},{"$f":"IFERROR(VLOOKUP(D5884,Translation!$A:$C,3,FALSE),D5884)","v":"Plus de 850 000 $ à 1 000 000 $"},{"$f":"IFERROR(VLOOKUP(E5884,Translation!$A:$C,3,FALSE),E5884)","v":0.69722711973072615},{"$f":"IFERROR(VLOOKUP(F5884,Translation!$A:$C,3,FALSE),F5884)","v":"Prêts hypothécaires assurés au cours de la période selon le prix d'achat (%)"},{"$f":"IFERROR(VLOOKUP(G5884,Translation!$A:$C,3,FALSE),G5884)","v":"0.7"},{"$f":"IFERROR(VLOOKUP(H5884,Translation!$A:$C,3,FALSE),H5884)","v":"Plus de 850 000 $ à 1 000 000 $"}]
[15,"Cumul 2018","PROPRIÉTAIRES-OCCUPANTS, À L’UNITÉ","Plus de 600 000 $ à 850 000 $",4.5067750158115629,"Prêts hypothécaires assurés au cours de la période selon le prix d'achat (%)","4.5","Plus de 600 000 $ à 850 000 $",{"$f":"IFERROR(VLOOKUP(A5887,Translation!$A:$C,3,FALSE),A5887)","v":15},{"$f":"IFERROR(VLOOKUP(B5887,Translation!$A:$C,3,FALSE),B5887)","v":"Cumul 2018"},{"$f":"IFERROR(VLOOKUP(C5887,Translation!$A:$C,3,FALSE),C5887)","v":"PROPRIÉTAIRES-OCCUPANTS, À L’UNITÉ"},{"$f":"IFERROR(VLOOKUP(D5887,Translation!$A:$C,3,FALSE),D5887)","v":"Plus de 600 000 $ à 850 000 $"},{"$f":"IFERROR(VLOOKUP(E5887,Translation!$A:$C,3,FALSE),E5887)","v":4.5067750158115629},{"$f":"IFERROR(VLOOKUP(F5887,Translation!$A:$C,3,FALSE),F5887)","v":"Prêts hypothécaires assurés au cours de la période selon le prix d'achat (%)"},{"$f":"IFERROR(VLOOKUP(G5887,Translation!$A:$C,3,FALSE),G5887)","v":"4.5"},{"$f":"IFERROR(VLOOKUP(H5887,Translation!$A:$C,3,FALSE),H5887)","v":"Plus de 600 000 $ à 850 000 $"}]
[15,"T4 2019","PROPRIÉTAIRES-OCCUPANTS, À L’UNITÉ","Plus de 400 000 $ à 500 000 $",11.941016188491748,"Prêts hypothécaires assurés au cours de la période selon le prix d'achat (%)","11.9","Plus de 400 000 $ à 500 000 $",{"$f":"IFERROR(VLOOKUP(A5890,Translation!$A:$C,3,FALSE),A5890)","v":15},{"$f":"IFERROR(VLOOKUP(B5890,Translation!$A:$C,3,FALSE),B5890)","v":"T4 2019"},{"$f":"IFERROR(VLOOKUP(C5890,Translation!$A:$C,3,FALSE),C5890)","v":"PROPRIÉTAIRES-OCCUPANTS, À L’UNITÉ"},{"$f":"IFERROR(VLOOKUP(D5890,Translation!$A:$C,3,FALSE),D5890)","v":"Plus de 400 000 $ à 500 000 $"},{"$f":"IFERROR(VLOOKUP(E5890,Translation!$A:$C,3,FALSE),E5890)","v":11.941016188491748},{"$f":"IFERROR(VLOOKUP(F5890,Translation!$A:$C,3,FALSE),F5890)","v":"Prêts hypothécaires assurés au cours de la période selon le prix d'achat (%)"},{"$f":"IFERROR(VLOOKUP(G5890,Translation!$A:$C,3,FALSE),G5890)","v":"11.9"},{"$f":"IFERROR(VLOOKUP(H5890,Translation!$A:$C,3,FALSE),H5890)","v":"Plus de 400 000 $ à 500 000 $"}]
[15,"T4 2019","PROPRIÉTAIRES-OCCUPANTS, À L’UNITÉ","Plus de 300 000 $ à 400 000 $",19.317999679435804,"Prêts hypothécaires assurés au cours de la période selon le prix d'achat (%)","19.3","Plus de 300 000 $ à 400 000 $",{"$f":"IFERROR(VLOOKUP(A5892,Translation!$A:$C,3,FALSE),A5892)","v":15},{"$f":"IFERROR(VLOOKUP(B5892,Translation!$A:$C,3,FALSE),B5892)","v":"T4 2019"},{"$f":"IFERROR(VLOOKUP(C5892,Translation!$A:$C,3,FALSE),C5892)","v":"PROPRIÉTAIRES-OCCUPANTS, À L’UNITÉ"},{"$f":"IFERROR(VLOOKUP(D5892,Translation!$A:$C,3,FALSE),D5892)","v":"Plus de 300 000 $ à 400 000 $"},{"$f":"IFERROR(VLOOKUP(E5892,Translation!$A:$C,3,FALSE),E5892)","v":19.317999679435804},{"$f":"IFERROR(VLOOKUP(F5892,Translation!$A:$C,3,FALSE),F5892)","v":"Prêts hypothécaires assurés au cours de la période selon le prix d'achat (%)"},{"$f":"IFERROR(VLOOKUP(G5892,Translation!$A:$C,3,FALSE),G5892)","v":"19.3"},{"$f":"IFERROR(VLOOKUP(H5892,Translation!$A:$C,3,FALSE),H5892)","v":"Plus de 300 000 $ à 400 000 $"}]
[15,"Cumul 2018","PROPRIÉTAIRES-OCCUPANTS, À L’UNITÉ","Plus de 200 000 $ à 300 000 $",27.989343963815475,"Prêts hypothécaires assurés au cours de la période selon le prix d'achat (%)","28.0","Plus de 200 000 $ à 300 000 $",{"$f":"IFERROR(VLOOKUP(A5895,Translation!$A:$C,3,FALSE),A5895)","v":15},{"$f":"IFERROR(VLOOKUP(B5895,Translation!$A:$C,3,FALSE),B5895)","v":"Cumul 2018"},{"$f":"IFERROR(VLOOKUP(C5895,Translation!$A:$C,3,FALSE),C5895)","v":"PROPRIÉTAIRES-OCCUPANTS, À L’UNITÉ"},{"$f":"IFERROR(VLOOKUP(D5895,Translation!$A:$C,3,FALSE),D5895)","v":"Plus de 200 000 $ à 300 000 $"},{"$f":"IFERROR(VLOOKUP(E5895,Translation!$A:$C,3,FALSE),E5895)","v":27.989343963815475},{"$f":"IFERROR(VLOOKUP(F5895,Translation!$A:$C,3,FALSE),F5895)","v":"Prêts hypothécaires assurés au cours de la période selon le prix d'achat (%)"},{"$f":"IFERROR(VLOOKUP(G5895,Translation!$A:$C,3,FALSE),G5895)","v":"28.0"},{"$f":"IFERROR(VLOOKUP(H5895,Translation!$A:$C,3,FALSE),H5895)","v":"Plus de 200 000 $ à 300 000 $"}]
[15,"Cumul 2018","PROPRIÉTAIRES-OCCUPANTS, À L’UNITÉ","200 000 $ ou moins",31.665293136822743,"Prêts hypothécaires assurés au cours de la période selon le prix d'achat (%)","31.7","200 000 $ ou moins",{"$f":"IFERROR(VLOOKUP(A5897,Translation!$A:$C,3,FALSE),A5897)","v":15},{"$f":"IFERROR(VLOOKUP(B5897,Translation!$A:$C,3,FALSE),B5897)","v":"Cumul 2018"},{"$f":"IFERROR(VLOOKUP(C5897,Translation!$A:$C,3,FALSE),C5897)","v":"PROPRIÉTAIRES-OCCUPANTS, À L’UNITÉ"},{"$f":"IFERROR(VLOOKUP(D5897,Translation!$A:$C,3,FALSE),D5897)","v":"200 000 $ ou moins"},{"$f":"IFERROR(VLOOKUP(E5897,Translation!$A:$C,3,FALSE),E5897)","v":31.665293136822743},{"$f":"IFERROR(VLOOKUP(F5897,Translation!$A:$C,3,FALSE),F5897)","v":"Prêts hypothécaires assurés au cours de la période selon le prix d'achat (%)"},{"$f":"IFERROR(VLOOKUP(G5897,Translation!$A:$C,3,FALSE),G5897)","v":"31.7"},{"$f":"IFERROR(VLOOKUP(H5897,Translation!$A:$C,3,FALSE),H5897)","v":"200 000 $ ou moins"}]
[15,"T4 2019","PROPRIÉTAIRES-OCCUPANTS, À L’UNITÉ","Prix d'achat moyen ($)",292063.28484492714,"Prêts hypothécaires assurés au cours de la période selon le prix d'achat (%)","292063.3","Prix d'achat moyen ($)",{"$f":"IFERROR(VLOOKUP(A5898,Translation!$A:$C,3,FALSE),A5898)","v":15},{"$f":"IFERROR(VLOOKUP(B5898,Translation!$A:$C,3,FALSE),B5898)","v":"T4 2019"},{"$f":"IFERROR(VLOOKUP(C5898,Translation!$A:$C,3,FALSE),C5898)","v":"PROPRIÉTAIRES-OCCUPANTS, À L’UNITÉ"},{"$f":"IFERROR(VLOOKUP(D5898,Translation!$A:$C,3,FALSE),D5898)","v":"Prix d'achat moyen ($)"},{"$f":"IFERROR(VLOOKUP(E5898,Translation!$A:$C,3,FALSE),E5898)","v":292063.28484492714},{"$f":"IFERROR(VLOOKUP(F5898,Translation!$A:$C,3,FALSE),F5898)","v":"Prêts hypothécaires assurés au cours de la période selon le prix d'achat (%)"},{"$f":"IFERROR(VLOOKUP(G5898,Translation!$A:$C,3,FALSE),G5898)","v":"292063.3"},{"$f":"IFERROR(VLOOKUP(H5898,Translation!$A:$C,3,FALSE),H5898)","v":"Prix d'achat moyen ($)"}]
[15,"T4 2019","PROPRIÉTAIRES-OCCUPANTS, À L’UNITÉ","Île-du-Prince-Édouard",190467.55558823529,"Prêts hypothécaires assurés au cours de la période selon le prix d'achat (%)","190467.6","Île-du-Prince-Édouard",{"$f":"IFERROR(VLOOKUP(A5901,Translation!$A:$C,3,FALSE),A5901)","v":15},{"$f":"IFERROR(VLOOKUP(B5901,Translation!$A:$C,3,FALSE),B5901)","v":"T4 2019"},{"$f":"IFERROR(VLOOKUP(C5901,Translation!$A:$C,3,FALSE),C5901)","v":"PROPRIÉTAIRES-OCCUPANTS, À L’UNITÉ"},{"$f":"IFERROR(VLOOKUP(D5901,Translation!$A:$C,3,FALSE),D5901)","v":"Île-du-Prince-Édouard"},{"$f":"IFERROR(VLOOKUP(E5901,Translation!$A:$C,3,FALSE),E5901)","v":190467.55558823529},{"$f":"IFERROR(VLOOKUP(F5901,Translation!$A:$C,3,FALSE),F5901)","v":"Prêts hypothécaires assurés au cours de la période selon le prix d'achat (%)"},{"$f":"IFERROR(VLOOKUP(G5901,Translation!$A:$C,3,FALSE),G5901)","v":"190467.6"},{"$f":"IFERROR(VLOOKUP(H5901,Translation!$A:$C,3,FALSE),H5901)","v":"Île-du-Prince-Édouard"}]
[15,"T4 2019","PROPRIÉTAIRES-OCCUPANTS, À L’UNITÉ","Nouveau-Brunswick",154213.96527722763,"Prêts hypothécaires assurés au cours de la période selon le prix d'achat (%)","154214.0","Nouveau-Brunswick",{"$f":"IFERROR(VLOOKUP(A5903,Translation!$A:$C,3,FALSE),A5903)","v":15},{"$f":"IFERROR(VLOOKUP(B5903,Translation!$A:$C,3,FALSE),B5903)","v":"T4 2019"},{"$f":"IFERROR(VLOOKUP(C5903,Translation!$A:$C,3,FALSE),C5903)","v":"PROPRIÉTAIRES-OCCUPANTS, À L’UNITÉ"},{"$f":"IFERROR(VLOOKUP(D5903,Translation!$A:$C,3,FALSE),D5903)","v":"Nouveau-Brunswick"},{"$f":"IFERROR(VLOOKUP(E5903,Translation!$A:$C,3,FALSE),E5903)","v":154213.96527722763},{"$f":"IFERROR(VLOOKUP(F5903,Translation!$A:$C,3,FALSE),F5903)","v":"Prêts hypothécaires assurés au cours de la période selon le prix d'achat (%)"},{"$f":"IFERROR(VLOOKUP(G5903,Translation!$A:$C,3,FALSE),G5903)","v":"154214.0"},{"$f":"IFERROR(VLOOKUP(H5903,Translation!$A:$C,3,FALSE),H5903)","v":"Nouveau-Brunswick"}]
[15,"T4 2019","PROPRIÉTAIRES-OCCUPANTS, À L’UNITÉ","Manitoba",259634.17026037423,"Prêts hypothécaires assurés au cours de la période selon le prix d'achat (%)","259634.2","Manitoba",{"$f":"IFERROR(VLOOKUP(A5906,Translation!$A:$C,3,FALSE),A5906)","v":15},{"$f":"IFERROR(VLOOKUP(B5906,Translation!$A:$C,3,FALSE),B5906)","v":"T4 2019"},{"$f":"IFERROR(VLOOKUP(C5906,Translation!$A:$C,3,FALSE),C5906)","v":"PROPRIÉTAIRES-OCCUPANTS, À L’UNITÉ"},{"$f":"IFERROR(VLOOKUP(D5906,Translation!$A:$C,3,FALSE),D5906)","v":"Manitoba"},{"$f":"IFERROR(VLOOKUP(E5906,Translation!$A:$C,3,FALSE),E5906)","v":259634.17026037423},{"$f":"IFERROR(VLOOKUP(F5906,Translation!$A:$C,3,FALSE),F5906)","v":"Prêts hypothécaires assurés au cours de la période selon le prix d'achat (%)"},{"$f":"IFERROR(VLOOKUP(G5906,Translation!$A:$C,3,FALSE),G5906)","v":"259634.2"},{"$f":"IFERROR(VLOOKUP(H5906,Translation!$A:$C,3,FALSE),H5906)","v":"Manitoba"}]
[15,"T4 2019","PROPRIÉTAIRES-OCCUPANTS, À L’UNITÉ","Alberta",324595.79579926794,"Prêts hypothécaires assurés au cours de la période selon le prix d'achat (%)","324595.8","Alberta",{"$f":"IFERROR(VLOOKUP(A5908,Translation!$A:$C,3,FALSE),A5908)","v":15},{"$f":"IFERROR(VLOOKUP(B5908,Translation!$A:$C,3,FALSE),B5908)","v":"T4 2019"},{"$f":"IFERROR(VLOOKUP(C5908,Translation!$A:$C,3,FALSE),C5908)","v":"PROPRIÉTAIRES-OCCUPANTS, À L’UNITÉ"},{"$f":"IFERROR(VLOOKUP(D5908,Translation!$A:$C,3,FALSE),D5908)","v":"Alberta"},{"$f":"IFERROR(VLOOKUP(E5908,Translation!$A:$C,3,FALSE),E5908)","v":324595.79579926794},{"$f":"IFERROR(VLOOKUP(F5908,Translation!$A:$C,3,FALSE),F5908)","v":"Prêts hypothécaires assurés au cours de la période selon le prix d'achat (%)"},{"$f":"IFERROR(VLOOKUP(G5908,Translation!$A:$C,3,FALSE),G5908)","v":"324595.8"},{"$f":"IFERROR(VLOOKUP(H5908,Translation!$A:$C,3,FALSE),H5908)","v":"Alberta"}]
[15,"Cumul 2018","PROPRIÉTAIRES-OCCUPANTS, À L’UNITÉ","Terre-Neuve-et-Labrador",209929.36438365193,"Prêts hypothécaires assurés au cours de la période selon le prix d'achat (%)","209929.4","Terre-Neuve-et-Labrador",{"$f":"IFERROR(VLOOKUP(A5911,Translation!$A:$C,3,FALSE),A5911)","v":15},{"$f":"IFERROR(VLOOKUP(B5911,Translation!$A:$C,3,FALSE),B5911)","v":"Cumul 2018"},{"$f":"IFERROR(VLOOKUP(C5911,Translation!$A:$C,3,FALSE),C5911)","v":"PROPRIÉTAIRES-OCCUPANTS, À L’UNITÉ"},{"$f":"IFERROR(VLOOKUP(D5911,Translation!$A:$C,3,FALSE),D5911)","v":"Terre-Neuve-et-Labrador"},{"$f":"IFERROR(VLOOKUP(E5911,Translation!$A:$C,3,FALSE),E5911)","v":209929.36438365193},{"$f":"IFERROR(VLOOKUP(F5911,Translation!$A:$C,3,FALSE),F5911)","v":"Prêts hypothécaires assurés au cours de la période selon le prix d'achat (%)"},{"$f":"IFERROR(VLOOKUP(G5911,Translation!$A:$C,3,FALSE),G5911)","v":"209929.4"},{"$f":"IFERROR(VLOOKUP(H5911,Translation!$A:$C,3,FALSE),H5911)","v":"Terre-Neuve-et-Labrador"}]
[15,"Cumul 2018","PROPRIÉTAIRES-OCCUPANTS, À L’UNITÉ","Nouveau-Brunswick",148906.63523969939,"Prêts hypothécaires assurés au cours de la période selon le prix d'achat (%)","148906.6","Nouveau-Brunswick",{"$f":"IFERROR(VLOOKUP(A5914,Translation!$A:$C,3,FALSE),A5914)","v":15},{"$f":"IFERROR(VLOOKUP(B5914,Translation!$A:$C,3,FALSE),B5914)","v":"Cumul 2018"},{"$f":"IFERROR(VLOOKUP(C5914,Translation!$A:$C,3,FALSE),C5914)","v":"PROPRIÉTAIRES-OCCUPANTS, À L’UNITÉ"},{"$f":"IFERROR(VLOOKUP(D5914,Translation!$A:$C,3,FALSE),D5914)","v":"Nouveau-Brunswick"},{"$f":"IFERROR(VLOOKUP(E5914,Translation!$A:$C,3,FALSE),E5914)","v":148906.63523969939},{"$f":"IFERROR(VLOOKUP(F5914,Translation!$A:$C,3,FALSE),F5914)","v":"Prêts hypothécaires assurés au cours de la période selon le prix d'achat (%)"},{"$f":"IFERROR(VLOOKUP(G5914,Translation!$A:$C,3,FALSE),G5914)","v":"148906.6"},{"$f":"IFERROR(VLOOKUP(H5914,Translation!$A:$C,3,FALSE),H5914)","v":"Nouveau-Brunswick"}]
[15,"Cumul 2018","PROPRIÉTAIRES-OCCUPANTS, À L’UNITÉ","Ontario",365437.62071062473,"Prêts hypothécaires assurés au cours de la période selon le prix d'achat (%)","365437.6","Ontario",{"$f":"IFERROR(VLOOKUP(A5916,Translation!$A:$C,3,FALSE),A5916)","v":15},{"$f":"IFERROR(VLOOKUP(B5916,Translation!$A:$C,3,FALSE),B5916)","v":"Cumul 2018"},{"$f":"IFERROR(VLOOKUP(C5916,Translation!$A:$C,3,FALSE),C5916)","v":"PROPRIÉTAIRES-OCCUPANTS, À L’UNITÉ"},{"$f":"IFERROR(VLOOKUP(D5916,Translation!$A:$C,3,FALSE),D5916)","v":"Ontario"},{"$f":"IFERROR(VLOOKUP(E5916,Translation!$A:$C,3,FALSE),E5916)","v":365437.62071062473},{"$f":"IFERROR(VLOOKUP(F5916,Translation!$A:$C,3,FALSE),F5916)","v":"Prêts hypothécaires assurés au cours de la période selon le prix d'achat (%)"},{"$f":"IFERROR(VLOOKUP(G5916,Translation!$A:$C,3,FALSE),G5916)","v":"365437.6"},{"$f":"IFERROR(VLOOKUP(H5916,Translation!$A:$C,3,FALSE),H5916)","v":"Ontario"}]
[15,"Cumul 2018","PROPRIÉTAIRES-OCCUPANTS, À L’UNITÉ","Manitoba",248400.6007156632,"Prêts hypothécaires assurés au cours de la période selon le prix d'achat (%)","248400.6","Manitoba",{"$f":"IFERROR(VLOOKUP(A5917,Translation!$A:$C,3,FALSE),A5917)","v":15},{"$f":"IFERROR(VLOOKUP(B5917,Translation!$A:$C,3,FALSE),B5917)","v":"Cumul 2018"},{"$f":"IFERROR(VLOOKUP(C5917,Translation!$A:$C,3,FALSE),C5917)","v":"PROPRIÉTAIRES-OCCUPANTS, À L’UNITÉ"},{"$f":"IFERROR(VLOOKUP(D5917,Translation!$A:$C,3,FALSE),D5917)","v":"Manitoba"},{"$f":"IFERROR(VLOOKUP(E5917,Translation!$A:$C,3,FALSE),E5917)","v":248400.6007156632},{"$f":"IFERROR(VLOOKUP(F5917,Translation!$A:$C,3,FALSE),F5917)","v":"Prêts hypothécaires assurés au cours de la période selon le prix d'achat (%)"},{"$f":"IFERROR(VLOOKUP(G5917,Translation!$A:$C,3,FALSE),G5917)","v":"248400.6"},{"$f":"IFERROR(VLOOKUP(H5917,Translation!$A:$C,3,FALSE),H5917)","v":"Manitoba"}]
[15,"Cumul 2018","PROPRIÉTAIRES-OCCUPANTS, À L’UNITÉ","Territoires",349483.06958904117,"Prêts hypothécaires assurés au cours de la période selon le prix d'achat (%)","349483.1","Territoires",{"$f":"IFERROR(VLOOKUP(A5921,Translation!$A:$C,3,FALSE),A5921)","v":15},{"$f":"IFERROR(VLOOKUP(B5921,Translation!$A:$C,3,FALSE),B5921)","v":"Cumul 2018"},{"$f":"IFERROR(VLOOKUP(C5921,Translation!$A:$C,3,FALSE),C5921)","v":"PROPRIÉTAIRES-OCCUPANTS, À L’UNITÉ"},{"$f":"IFERROR(VLOOKUP(D5921,Translation!$A:$C,3,FALSE),D5921)","v":"Territoires"},{"$f":"IFERROR(VLOOKUP(E5921,Translation!$A:$C,3,FALSE),E5921)","v":349483.06958904117},{"$f":"IFERROR(VLOOKUP(F5921,Translation!$A:$C,3,FALSE),F5921)","v":"Prêts hypothécaires assurés au cours de la période selon le prix d'achat (%)"},{"$f":"IFERROR(VLOOKUP(G5921,Translation!$A:$C,3,FALSE),G5921)","v":"349483.1"},{"$f":"IFERROR(VLOOKUP(H5921,Translation!$A:$C,3,FALSE),H5921)","v":"Territoires"}]
[15,"T3 2019","PROPRIÉTAIRES-OCCUPANTS, À L’UNITÉ","Plus de 850 000 $ à 1 000 000 $",0.70496171619388115,"Prêts hypothécaires assurés au cours de la période selon le prix d'achat (%)","0.7","Plus de 850 000 $ à 1 000 000 $",{"$f":"IFERROR(VLOOKUP(A5922,Translation!$A:$C,3,FALSE),A5922)","v":15},{"$f":"IFERROR(VLOOKUP(B5922,Translation!$A:$C,3,FALSE),B5922)","v":"T3 2019"},{"$f":"IFERROR(VLOOKUP(C5922,Translation!$A:$C,3,FALSE),C5922)","v":"PROPRIÉTAIRES-OCCUPANTS, À L’UNITÉ"},{"$f":"IFERROR(VLOOKUP(D5922,Translation!$A:$C,3,FALSE),D5922)","v":"Plus de 850 000 $ à 1 000 000 $"},{"$f":"IFERROR(VLOOKUP(E5922,Translation!$A:$C,3,FALSE),E5922)","v":0.70496171619388115},{"$f":"IFERROR(VLOOKUP(F5922,Translation!$A:$C,3,FALSE),F5922)","v":"Prêts hypothécaires assurés au cours de la période selon le prix d'achat (%)"},{"$f":"IFERROR(VLOOKUP(G5922,Translation!$A:$C,3,FALSE),G5922)","v":"0.7"},{"$f":"IFERROR(VLOOKUP(H5922,Translation!$A:$C,3,FALSE),H5922)","v":"Plus de 850 000 $ à 1 000 000 $"}]
[15,"T3 2019","PROPRIÉTAIRES-OCCUPANTS, À L’UNITÉ","Plus de 400 000 $ à 500 000 $",11.502006948426484,"Prêts hypothécaires assurés au cours de la période selon le prix d'achat (%)","11.5","Plus de 400 000 $ à 500 000 $",{"$f":"IFERROR(VLOOKUP(A5925,Translation!$A:$C,3,FALSE),A5925)","v":15},{"$f":"IFERROR(VLOOKUP(B5925,Translation!$A:$C,3,FALSE),B5925)","v":"T3 2019"},{"$f":"IFERROR(VLOOKUP(C5925,Translation!$A:$C,3,FALSE),C5925)","v":"PROPRIÉTAIRES-OCCUPANTS, À L’UNITÉ"},{"$f":"IFERROR(VLOOKUP(D5925,Translation!$A:$C,3,FALSE),D5925)","v":"Plus de 400 000 $ à 500 000 $"},{"$f":"IFERROR(VLOOKUP(E5925,Translation!$A:$C,3,FALSE),E5925)","v":11.502006948426484},{"$f":"IFERROR(VLOOKUP(F5925,Translation!$A:$C,3,FALSE),F5925)","v":"Prêts hypothécaires assurés au cours de la période selon le prix d'achat (%)"},{"$f":"IFERROR(VLOOKUP(G5925,Translation!$A:$C,3,FALSE),G5925)","v":"11.5"},{"$f":"IFERROR(VLOOKUP(H5925,Translation!$A:$C,3,FALSE),H5925)","v":"Plus de 400 000 $ à 500 000 $"}]
[15,"T3 2019","PROPRIÉTAIRES-OCCUPANTS, À L’UNITÉ","Plus de 200 000 $ à 300 000 $",25.736162174924942,"Prêts hypothécaires assurés au cours de la période selon le prix d'achat (%)","25.7","Plus de 200 000 $ à 300 000 $",{"$f":"IFERROR(VLOOKUP(A5927,Translation!$A:$C,3,FALSE),A5927)","v":15},{"$f":"IFERROR(VLOOKUP(B5927,Translation!$A:$C,3,FALSE),B5927)","v":"T3 2019"},{"$f":"IFERROR(VLOOKUP(C5927,Translation!$A:$C,3,FALSE),C5927)","v":"PROPRIÉTAIRES-OCCUPANTS, À L’UNITÉ"},{"$f":"IFERROR(VLOOKUP(D5927,Translation!$A:$C,3,FALSE),D5927)","v":"Plus de 200 000 $ à 300 000 $"},{"$f":"IFERROR(VLOOKUP(E5927,Translation!$A:$C,3,FALSE),E5927)","v":25.736162174924942},{"$f":"IFERROR(VLOOKUP(F5927,Translation!$A:$C,3,FALSE),F5927)","v":"Prêts hypothécaires assurés au cours de la période selon le prix d'achat (%)"},{"$f":"IFERROR(VLOOKUP(G5927,Translation!$A:$C,3,FALSE),G5927)","v":"25.7"},{"$f":"IFERROR(VLOOKUP(H5927,Translation!$A:$C,3,FALSE),H5927)","v":"Plus de 200 000 $ à 300 000 $"}]
[15,"T3 2019","PROPRIÉTAIRES-OCCUPANTS, À L’UNITÉ","Île-du-Prince-Édouard",193553.23621761656,"Prêts hypothécaires assurés au cours de la période selon le prix d'achat (%)","193553.2","Île-du-Prince-Édouard",{"$f":"IFERROR(VLOOKUP(A5931,Translation!$A:$C,3,FALSE),A5931)","v":15},{"$f":"IFERROR(VLOOKUP(B5931,Translation!$A:$C,3,FALSE),B5931)","v":"T3 2019"},{"$f":"IFERROR(VLOOKUP(C5931,Translation!$A:$C,3,FALSE),C5931)","v":"PROPRIÉTAIRES-OCCUPANTS, À L’UNITÉ"},{"$f":"IFERROR(VLOOKUP(D5931,Translation!$A:$C,3,FALSE),D5931)","v":"Île-du-Prince-Édouard"},{"$f":"IFERROR(VLOOKUP(E5931,Translation!$A:$C,3,FALSE),E5931)","v":193553.23621761656},{"$f":"IFERROR(VLOOKUP(F5931,Translation!$A:$C,3,FALSE),F5931)","v":"Prêts hypothécaires assurés au cours de la période selon le prix d'achat (%)"},{"$f":"IFERROR(VLOOKUP(G5931,Translation!$A:$C,3,FALSE),G5931)","v":"193553.2"},{"$f":"IFERROR(VLOOKUP(H5931,Translation!$A:$C,3,FALSE),H5931)","v":"Île-du-Prince-Édouard"}]
[15,"T3 2019","PROPRIÉTAIRES-OCCUPANTS, À L’UNITÉ","Nouvelle-Écosse",196798.35037779497,"Prêts hypothécaires assurés au cours de la période selon le prix d'achat (%)","196798.4","Nouvelle-Écosse",{"$f":"IFERROR(VLOOKUP(A5932,Translation!$A:$C,3,FALSE),A5932)","v":15},{"$f":"IFERROR(VLOOKUP(B5932,Translation!$A:$C,3,FALSE),B5932)","v":"T3 2019"},{"$f":"IFERROR(VLOOKUP(C5932,Translation!$A:$C,3,FALSE),C5932)","v":"PROPRIÉTAIRES-OCCUPANTS, À L’UNITÉ"},{"$f":"IFERROR(VLOOKUP(D5932,Translation!$A:$C,3,FALSE),D5932)","v":"Nouvelle-Écosse"},{"$f":"IFERROR(VLOOKUP(E5932,Translation!$A:$C,3,FALSE),E5932)","v":196798.35037779497},{"$f":"IFERROR(VLOOKUP(F5932,Translation!$A:$C,3,FALSE),F5932)","v":"Prêts hypothécaires assurés au cours de la période selon le prix d'achat (%)"},{"$f":"IFERROR(VLOOKUP(G5932,Translation!$A:$C,3,FALSE),G5932)","v":"196798.4"},{"$f":"IFERROR(VLOOKUP(H5932,Translation!$A:$C,3,FALSE),H5932)","v":"Nouvelle-Écosse"}]
[15,"T3 2019","PROPRIÉTAIRES-OCCUPANTS, À L’UNITÉ","Ontario",399371.26382245449,"Prêts hypothécaires assurés au cours de la période selon le prix d'achat (%)","399371.3","Ontario",{"$f":"IFERROR(VLOOKUP(A5935,Translation!$A:$C,3,FALSE),A5935)","v":15},{"$f":"IFERROR(VLOOKUP(B5935,Translation!$A:$C,3,FALSE),B5935)","v":"T3 2019"},{"$f":"IFERROR(VLOOKUP(C5935,Translation!$A:$C,3,FALSE),C5935)","v":"PROPRIÉTAIRES-OCCUPANTS, À L’UNITÉ"},{"$f":"IFERROR(VLOOKUP(D5935,Translation!$A:$C,3,FALSE),D5935)","v":"Ontario"},{"$f":"IFERROR(VLOOKUP(E5935,Translation!$A:$C,3,FALSE),E5935)","v":399371.26382245449},{"$f":"IFERROR(VLOOKUP(F5935,Translation!$A:$C,3,FALSE),F5935)","v":"Prêts hypothécaires assurés au cours de la période selon le prix d'achat (%)"},{"$f":"IFERROR(VLOOKUP(G5935,Translation!$A:$C,3,FALSE),G5935)","v":"399371.3"},{"$f":"IFERROR(VLOOKUP(H5935,Translation!$A:$C,3,FALSE),H5935)","v":"Ontario"}]
[15,"T3 2019","PROPRIÉTAIRES-OCCUPANTS, À L’UNITÉ","Manitoba",260198.77011487304,"Prêts hypothécaires assurés au cours de la période selon le prix d'achat (%)","260198.8","Manitoba",{"$f":"IFERROR(VLOOKUP(A5936,Translation!$A:$C,3,FALSE),A5936)","v":15},{"$f":"IFERROR(VLOOKUP(B5936,Translation!$A:$C,3,FALSE),B5936)","v":"T3 2019"},{"$f":"IFERROR(VLOOKUP(C5936,Translation!$A:$C,3,FALSE),C5936)","v":"PROPRIÉTAIRES-OCCUPANTS, À L’UNITÉ"},{"$f":"IFERROR(VLOOKUP(D5936,Translation!$A:$C,3,FALSE),D5936)","v":"Manitoba"},{"$f":"IFERROR(VLOOKUP(E5936,Translation!$A:$C,3,FALSE),E5936)","v":260198.77011487304},{"$f":"IFERROR(VLOOKUP(F5936,Translation!$A:$C,3,FALSE),F5936)","v":"Prêts hypothécaires assurés au cours de la période selon le prix d'achat (%)"},{"$f":"IFERROR(VLOOKUP(G5936,Translation!$A:$C,3,FALSE),G5936)","v":"260198.8"},{"$f":"IFERROR(VLOOKUP(H5936,Translation!$A:$C,3,FALSE),H5936)","v":"Manitoba"}]
[15,"T3 2019","PROPRIÉTAIRES-OCCUPANTS, À L’UNITÉ","Territoires",360299.48824858753,"Prêts hypothécaires assurés au cours de la période selon le prix d'achat (%)","360299.5","Territoires",{"$f":"IFERROR(VLOOKUP(A5940,Translation!$A:$C,3,FALSE),A5940)","v":15},{"$f":"IFERROR(VLOOKUP(B5940,Translation!$A:$C,3,FALSE),B5940)","v":"T3 2019"},{"$f":"IFERROR(VLOOKUP(C5940,Translation!$A:$C,3,FALSE),C5940)","v":"PROPRIÉTAIRES-OCCUPANTS, À L’UNITÉ"},{"$f":"IFERROR(VLOOKUP(D5940,Translation!$A:$C,3,FALSE),D5940)","v":"Territoires"},{"$f":"IFERROR(VLOOKUP(E5940,Translation!$A:$C,3,FALSE),E5940)","v":360299.48824858753},{"$f":"IFERROR(VLOOKUP(F5940,Translation!$A:$C,3,FALSE),F5940)","v":"Prêts hypothécaires assurés au cours de la période selon le prix d'achat (%)"},{"$f":"IFERROR(VLOOKUP(G5940,Translation!$A:$C,3,FALSE),G5940)","v":"360299.5"},{"$f":"IFERROR(VLOOKUP(H5940,Translation!$A:$C,3,FALSE),H5940)","v":"Territoires"}]
[15,"T2 2019","PROPRIÉTAIRES-OCCUPANTS, À L’UNITÉ","Plus de 600 000 $ à 850 000 $",3.9830210959691055,"Prêts hypothécaires assurés au cours de la période selon le prix d'achat (%)","4.0","Plus de 600 000 $ à 850 000 $",{"$f":"IFERROR(VLOOKUP(A5942,Translation!$A:$C,3,FALSE),A5942)","v":15},{"$f":"IFERROR(VLOOKUP(B5942,Translation!$A:$C,3,FALSE),B5942)","v":"T2 2019"},{"$f":"IFERROR(VLOOKUP(C5942,Translation!$A:$C,3,FALSE),C5942)","v":"PROPRIÉTAIRES-OCCUPANTS, À L’UNITÉ"},{"$f":"IFERROR(VLOOKUP(D5942,Translation!$A:$C,3,FALSE),D5942)","v":"Plus de 600 000 $ à 850 000 $"},{"$f":"IFERROR(VLOOKUP(E5942,Translation!$A:$C,3,FALSE),E5942)","v":3.9830210959691055},{"$f":"IFERROR(VLOOKUP(F5942,Translation!$A:$C,3,FALSE),F5942)","v":"Prêts hypothécaires assurés au cours de la période selon le prix d'achat (%)"},{"$f":"IFERROR(VLOOKUP(G5942,Translation!$A:$C,3,FALSE),G5942)","v":"4.0"},{"$f":"IFERROR(VLOOKUP(H5942,Translation!$A:$C,3,FALSE),H5942)","v":"Plus de 600 000 $ à 850 000 $"}]
[15,"T2 2019","PROPRIÉTAIRES-OCCUPANTS, À L’UNITÉ","Plus de 300 000 $ à 400 000 $",18.590623304503236,"Prêts hypothécaires assurés au cours de la période selon le prix d'achat (%)","18.6","Plus de 300 000 $ à 400 000 $",{"$f":"IFERROR(VLOOKUP(A5945,Translation!$A:$C,3,FALSE),A5945)","v":15},{"$f":"IFERROR(VLOOKUP(B5945,Translation!$A:$C,3,FALSE),B5945)","v":"T2 2019"},{"$f":"IFERROR(VLOOKUP(C5945,Translation!$A:$C,3,FALSE),C5945)","v":"PROPRIÉTAIRES-OCCUPANTS, À L’UNITÉ"},{"$f":"IFERROR(VLOOKUP(D5945,Translation!$A:$C,3,FALSE),D5945)","v":"Plus de 300 000 $ à 400 000 $"},{"$f":"IFERROR(VLOOKUP(E5945,Translation!$A:$C,3,FALSE),E5945)","v":18.590623304503236},{"$f":"IFERROR(VLOOKUP(F5945,Translation!$A:$C,3,FALSE),F5945)","v":"Prêts hypothécaires assurés au cours de la période selon le prix d'achat (%)"},{"$f":"IFERROR(VLOOKUP(G5945,Translation!$A:$C,3,FALSE),G5945)","v":"18.6"},{"$f":"IFERROR(VLOOKUP(H5945,Translation!$A:$C,3,FALSE),H5945)","v":"Plus de 300 000 $ à 400 000 $"}]
[15,"T2 2019","PROPRIÉTAIRES-OCCUPANTS, À L’UNITÉ","Plus de 200 000 $ à 300 000 $",29.837551463313439,"Prêts hypothécaires assurés au cours de la période selon le prix d'achat (%)","29.8","Plus de 200 000 $ à 300 000 $",{"$f":"IFERROR(VLOOKUP(A5946,Translation!$A:$C,3,FALSE),A5946)","v":15},{"$f":"IFERROR(VLOOKUP(B5946,Translation!$A:$C,3,FALSE),B5946)","v":"T2 2019"},{"$f":"IFERROR(VLOOKUP(C5946,Translation!$A:$C,3,FALSE),C5946)","v":"PROPRIÉTAIRES-OCCUPANTS, À L’UNITÉ"},{"$f":"IFERROR(VLOOKUP(D5946,Translation!$A:$C,3,FALSE),D5946)","v":"Plus de 200 000 $ à 300 000 $"},{"$f":"IFERROR(VLOOKUP(E5946,Translation!$A:$C,3,FALSE),E5946)","v":29.837551463313439},{"$f":"IFERROR(VLOOKUP(F5946,Translation!$A:$C,3,FALSE),F5946)","v":"Prêts hypothécaires assurés au cours de la période selon le prix d'achat (%)"},{"$f":"IFERROR(VLOOKUP(G5946,Translation!$A:$C,3,FALSE),G5946)","v":"29.8"},{"$f":"IFERROR(VLOOKUP(H5946,Translation!$A:$C,3,FALSE),H5946)","v":"Plus de 200 000 $ à 300 000 $"}]
[15,"T2 2019","PROPRIÉTAIRES-OCCUPANTS, À L’UNITÉ","Île-du-Prince-Édouard",174585.32909677419,"Prêts hypothécaires assurés au cours de la période selon le prix d'achat (%)","174585.3","Île-du-Prince-Édouard",{"$f":"IFERROR(VLOOKUP(A5950,Translation!$A:$C,3,FALSE),A5950)","v":15},{"$f":"IFERROR(VLOOKUP(B5950,Translation!$A:$C,3,FALSE),B5950)","v":"T2 2019"},{"$f":"IFERROR(VLOOKUP(C5950,Translation!$A:$C,3,FALSE),C5950)","v":"PROPRIÉTAIRES-OCCUPANTS, À L’UNITÉ"},{"$f":"IFERROR(VLOOKUP(D5950,Translation!$A:$C,3,FALSE),D5950)","v":"Île-du-Prince-Édouard"},{"$f":"IFERROR(VLOOKUP(E5950,Translation!$A:$C,3,FALSE),E5950)","v":174585.32909677419},{"$f":"IFERROR(VLOOKUP(F5950,Translation!$A:$C,3,FALSE),F5950)","v":"Prêts hypothécaires assurés au cours de la période selon le prix d'achat (%)"},{"$f":"IFERROR(VLOOKUP(G5950,Translation!$A:$C,3,FALSE),G5950)","v":"174585.3"},{"$f":"IFERROR(VLOOKUP(H5950,Translation!$A:$C,3,FALSE),H5950)","v":"Île-du-Prince-Édouard"}]
[15,"T2 2019","PROPRIÉTAIRES-OCCUPANTS, À L’UNITÉ","Nouvelle-Écosse",183054.11877076412,"Prêts hypothécaires assurés au cours de la période selon le prix d'achat (%)","183054.1","Nouvelle-Écosse",{"$f":"IFERROR(VLOOKUP(A5951,Translation!$A:$C,3,FALSE),A5951)","v":15},{"$f":"IFERROR(VLOOKUP(B5951,Translation!$A:$C,3,FALSE),B5951)","v":"T2 2019"},{"$f":"IFERROR(VLOOKUP(C5951,Translation!$A:$C,3,FALSE),C5951)","v":"PROPRIÉTAIRES-OCCUPANTS, À L’UNITÉ"},{"$f":"IFERROR(VLOOKUP(D5951,Translation!$A:$C,3,FALSE),D5951)","v":"Nouvelle-Écosse"},{"$f":"IFERROR(VLOOKUP(E5951,Translation!$A:$C,3,FALSE),E5951)","v":183054.11877076412},{"$f":"IFERROR(VLOOKUP(F5951,Translation!$A:$C,3,FALSE),F5951)","v":"Prêts hypothécaires assurés au cours de la période selon le prix d'achat (%)"},{"$f":"IFERROR(VLOOKUP(G5951,Translation!$A:$C,3,FALSE),G5951)","v":"183054.1"},{"$f":"IFERROR(VLOOKUP(H5951,Translation!$A:$C,3,FALSE),H5951)","v":"Nouvelle-Écosse"}]
[15,"T2 2019","PROPRIÉTAIRES-OCCUPANTS, À L’UNITÉ","Québec",222034.03772437287,"Prêts hypothécaires assurés au cours de la période selon le prix d'achat (%)","222034.0","Québec",{"$f":"IFERROR(VLOOKUP(A5953,Translation!$A:$C,3,FALSE),A5953)","v":15},{"$f":"IFERROR(VLOOKUP(B5953,Translation!$A:$C,3,FALSE),B5953)","v":"T2 2019"},{"$f":"IFERROR(VLOOKUP(C5953,Translation!$A:$C,3,FALSE),C5953)","v":"PROPRIÉTAIRES-OCCUPANTS, À L’UNITÉ"},{"$f":"IFERROR(VLOOKUP(D5953,Translation!$A:$C,3,FALSE),D5953)","v":"Québec"},{"$f":"IFERROR(VLOOKUP(E5953,Translation!$A:$C,3,FALSE),E5953)","v":222034.03772437287},{"$f":"IFERROR(VLOOKUP(F5953,Translation!$A:$C,3,FALSE),F5953)","v":"Prêts hypothécaires assurés au cours de la période selon le prix d'achat (%)"},{"$f":"IFERROR(VLOOKUP(G5953,Translation!$A:$C,3,FALSE),G5953)","v":"222034.0"},{"$f":"IFERROR(VLOOKUP(H5953,Translation!$A:$C,3,FALSE),H5953)","v":"Québec"}]
[15,"T2 2019","PROPRIÉTAIRES-OCCUPANTS, À L’UNITÉ","Saskatchewan",240054.26735722276,"Prêts hypothécaires assurés au cours de la période selon le prix d'achat (%)","240054.3","Saskatchewan",{"$f":"IFERROR(VLOOKUP(A5956,Translation!$A:$C,3,FALSE),A5956)","v":15},{"$f":"IFERROR(VLOOKUP(B5956,Translation!$A:$C,3,FALSE),B5956)","v":"T2 2019"},{"$f":"IFERROR(VLOOKUP(C5956,Translation!$A:$C,3,FALSE),C5956)","v":"PROPRIÉTAIRES-OCCUPANTS, À L’UNITÉ"},{"$f":"IFERROR(VLOOKUP(D5956,Translation!$A:$C,3,FALSE),D5956)","v":"Saskatchewan"},{"$f":"IFERROR(VLOOKUP(E5956,Translation!$A:$C,3,FALSE),E5956)","v":240054.26735722276},{"$f":"IFERROR(VLOOKUP(F5956,Translation!$A:$C,3,FALSE),F5956)","v":"Prêts hypothécaires assurés au cours de la période selon le prix d'achat (%)"},{"$f":"IFERROR(VLOOKUP(G5956,Translation!$A:$C,3,FALSE),G5956)","v":"240054.3"},{"$f":"IFERROR(VLOOKUP(H5956,Translation!$A:$C,3,FALSE),H5956)","v":"Saskatchewan"}]
[15,"T2 2019","PROPRIÉTAIRES-OCCUPANTS, À L’UNITÉ","Territoires",358961.83083969483,"Prêts hypothécaires assurés au cours de la période selon le prix d'achat (%)","358961.8","Territoires",{"$f":"IFERROR(VLOOKUP(A5959,Translation!$A:$C,3,FALSE),A5959)","v":15},{"$f":"IFERROR(VLOOKUP(B5959,Translation!$A:$C,3,FALSE),B5959)","v":"T2 2019"},{"$f":"IFERROR(VLOOKUP(C5959,Translation!$A:$C,3,FALSE),C5959)","v":"PROPRIÉTAIRES-OCCUPANTS, À L’UNITÉ"},{"$f":"IFERROR(VLOOKUP(D5959,Translation!$A:$C,3,FALSE),D5959)","v":"Territoires"},{"$f":"IFERROR(VLOOKUP(E5959,Translation!$A:$C,3,FALSE),E5959)","v":358961.83083969483},{"$f":"IFERROR(VLOOKUP(F5959,Translation!$A:$C,3,FALSE),F5959)","v":"Prêts hypothécaires assurés au cours de la période selon le prix d'achat (%)"},{"$f":"IFERROR(VLOOKUP(G5959,Translation!$A:$C,3,FALSE),G5959)","v":"358961.8"},{"$f":"IFERROR(VLOOKUP(H5959,Translation!$A:$C,3,FALSE),H5959)","v":"Territoires"}]
[15,"T1 2019","PROPRIÉTAIRES-OCCUPANTS, À L’UNITÉ","Plus de 600 000 $ à 850 000 $",5.4647562819497448,"Prêts hypothécaires assurés au cours de la période selon le prix d'achat (%)","5.5","Plus de 600 000 $ à 850 000 $",{"$f":"IFERROR(VLOOKUP(A5961,Translation!$A:$C,3,FALSE),A5961)","v":15},{"$f":"IFERROR(VLOOKUP(B5961,Translation!$A:$C,3,FALSE),B5961)","v":"T1 2019"},{"$f":"IFERROR(VLOOKUP(C5961,Translation!$A:$C,3,FALSE),C5961)","v":"PROPRIÉTAIRES-OCCUPANTS, À L’UNITÉ"},{"$f":"IFERROR(VLOOKUP(D5961,Translation!$A:$C,3,FALSE),D5961)","v":"Plus de 600 000 $ à 850 000 $"},{"$f":"IFERROR(VLOOKUP(E5961,Translation!$A:$C,3,FALSE),E5961)","v":5.4647562819497448},{"$f":"IFERROR(VLOOKUP(F5961,Translation!$A:$C,3,FALSE),F5961)","v":"Prêts hypothécaires assurés au cours de la période selon le prix d'achat (%)"},{"$f":"IFERROR(VLOOKUP(G5961,Translation!$A:$C,3,FALSE),G5961)","v":"5.5"},{"$f":"IFERROR(VLOOKUP(H5961,Translation!$A:$C,3,FALSE),H5961)","v":"Plus de 600 000 $ à 850 000 $"}]
[15,"T1 2019","PROPRIÉTAIRES-OCCUPANTS, À L’UNITÉ","Plus de 300 000 $ à 400 000 $",19.634242926056597,"Prêts hypothécaires assurés au cours de la période selon le prix d'achat (%)","19.6","Plus de 300 000 $ à 400 000 $",{"$f":"IFERROR(VLOOKUP(A5964,Translation!$A:$C,3,FALSE),A5964)","v":15},{"$f":"IFERROR(VLOOKUP(B5964,Translation!$A:$C,3,FALSE),B5964)","v":"T1 2019"},{"$f":"IFERROR(VLOOKUP(C5964,Translation!$A:$C,3,FALSE),C5964)","v":"PROPRIÉTAIRES-OCCUPANTS, À L’UNITÉ"},{"$f":"IFERROR(VLOOKUP(D5964,Translation!$A:$C,3,FALSE),D5964)","v":"Plus de 300 000 $ à 400 000 $"},{"$f":"IFERROR(VLOOKUP(E5964,Translation!$A:$C,3,FALSE),E5964)","v":19.634242926056597},{"$f":"IFERROR(VLOOKUP(F5964,Translation!$A:$C,3,FALSE),F5964)","v":"Prêts hypothécaires assurés au cours de la période selon le prix d'achat (%)"},{"$f":"IFERROR(VLOOKUP(G5964,Translation!$A:$C,3,FALSE),G5964)","v":"19.6"},{"$f":"IFERROR(VLOOKUP(H5964,Translation!$A:$C,3,FALSE),H5964)","v":"Plus de 300 000 $ à 400 000 $"}]
[15,"T1 2019","PROPRIÉTAIRES-OCCUPANTS, À L’UNITÉ","Prix d'achat moyen ($)",284164.39020519861,"Prêts hypothécaires assurés au cours de la période selon le prix d'achat (%)","284164.4","Prix d'achat moyen ($)",{"$f":"IFERROR(VLOOKUP(A5967,Translation!$A:$C,3,FALSE),A5967)","v":15},{"$f":"IFERROR(VLOOKUP(B5967,Translation!$A:$C,3,FALSE),B5967)","v":"T1 2019"},{"$f":"IFERROR(VLOOKUP(C5967,Translation!$A:$C,3,FALSE),C5967)","v":"PROPRIÉTAIRES-OCCUPANTS, À L’UNITÉ"},{"$f":"IFERROR(VLOOKUP(D5967,Translation!$A:$C,3,FALSE),D5967)","v":"Prix d'achat moyen ($)"},{"$f":"IFERROR(VLOOKUP(E5967,Translation!$A:$C,3,FALSE),E5967)","v":284164.39020519861},{"$f":"IFERROR(VLOOKUP(F5967,Translation!$A:$C,3,FALSE),F5967)","v":"Prêts hypothécaires assurés au cours de la période selon le prix d'achat (%)"},{"$f":"IFERROR(VLOOKUP(G5967,Translation!$A:$C,3,FALSE),G5967)","v":"284164.4"},{"$f":"IFERROR(VLOOKUP(H5967,Translation!$A:$C,3,FALSE),H5967)","v":"Prix d'achat moyen ($)"}]
[15,"T1 2019","PROPRIÉTAIRES-OCCUPANTS, À L’UNITÉ","Île-du-Prince-Édouard",171346.37279411763,"Prêts hypothécaires assurés au cours de la période selon le prix d'achat (%)","171346.4","Île-du-Prince-Édouard",{"$f":"IFERROR(VLOOKUP(A5969,Translation!$A:$C,3,FALSE),A5969)","v":15},{"$f":"IFERROR(VLOOKUP(B5969,Translation!$A:$C,3,FALSE),B5969)","v":"T1 2019"},{"$f":"IFERROR(VLOOKUP(C5969,Translation!$A:$C,3,FALSE),C5969)","v":"PROPRIÉTAIRES-OCCUPANTS, À L’UNITÉ"},{"$f":"IFERROR(VLOOKUP(D5969,Translation!$A:$C,3,FALSE),D5969)","v":"Île-du-Prince-Édouard"},{"$f":"IFERROR(VLOOKUP(E5969,Translation!$A:$C,3,FALSE),E5969)","v":171346.37279411763},{"$f":"IFERROR(VLOOKUP(F5969,Translation!$A:$C,3,FALSE),F5969)","v":"Prêts hypothécaires assurés au cours de la période selon le prix d'achat (%)"},{"$f":"IFERROR(VLOOKUP(G5969,Translation!$A:$C,3,FALSE),G5969)","v":"171346.4"},{"$f":"IFERROR(VLOOKUP(H5969,Translation!$A:$C,3,FALSE),H5969)","v":"Île-du-Prince-Édouard"}]
[15,"T1 2019","PROPRIÉTAIRES-OCCUPANTS, À L’UNITÉ","Nouvelle-Écosse",177266.1523883495,"Prêts hypothécaires assurés au cours de la période selon le prix d'achat (%)","177266.2","Nouvelle-Écosse",{"$f":"IFERROR(VLOOKUP(A5970,Translation!$A:$C,3,FALSE),A5970)","v":15},{"$f":"IFERROR(VLOOKUP(B5970,Translation!$A:$C,3,FALSE),B5970)","v":"T1 2019"},{"$f":"IFERROR(VLOOKUP(C5970,Translation!$A:$C,3,FALSE),C5970)","v":"PROPRIÉTAIRES-OCCUPANTS, À L’UNITÉ"},{"$f":"IFERROR(VLOOKUP(D5970,Translation!$A:$C,3,FALSE),D5970)","v":"Nouvelle-Écosse"},{"$f":"IFERROR(VLOOKUP(E5970,Translation!$A:$C,3,FALSE),E5970)","v":177266.1523883495},{"$f":"IFERROR(VLOOKUP(F5970,Translation!$A:$C,3,FALSE),F5970)","v":"Prêts hypothécaires assurés au cours de la période selon le prix d'achat (%)"},{"$f":"IFERROR(VLOOKUP(G5970,Translation!$A:$C,3,FALSE),G5970)","v":"177266.2"},{"$f":"IFERROR(VLOOKUP(H5970,Translation!$A:$C,3,FALSE),H5970)","v":"Nouvelle-Écosse"}]
[15,"T1 2019","PROPRIÉTAIRES-OCCUPANTS, À L’UNITÉ","Québec",213288.34494907499,"Prêts hypothécaires assurés au cours de la période selon le prix d'achat (%)","213288.3","Québec",{"$f":"IFERROR(VLOOKUP(A5972,Translation!$A:$C,3,FALSE),A5972)","v":15},{"$f":"IFERROR(VLOOKUP(B5972,Translation!$A:$C,3,FALSE),B5972)","v":"T1 2019"},{"$f":"IFERROR(VLOOKUP(C5972,Translation!$A:$C,3,FALSE),C5972)","v":"PROPRIÉTAIRES-OCCUPANTS, À L’UNITÉ"},{"$f":"IFERROR(VLOOKUP(D5972,Translation!$A:$C,3,FALSE),D5972)","v":"Québec"},{"$f":"IFERROR(VLOOKUP(E5972,Translation!$A:$C,3,FALSE),E5972)","v":213288.34494907499},{"$f":"IFERROR(VLOOKUP(F5972,Translation!$A:$C,3,FALSE),F5972)","v":"Prêts hypothécaires assurés au cours de la période selon le prix d'achat (%)"},{"$f":"IFERROR(VLOOKUP(G5972,Translation!$A:$C,3,FALSE),G5972)","v":"213288.3"},{"$f":"IFERROR(VLOOKUP(H5972,Translation!$A:$C,3,FALSE),H5972)","v":"Québec"}]
[15,"T1 2019","PROPRIÉTAIRES-OCCUPANTS, À L’UNITÉ","Saskatchewan",250141.17077647059,"Prêts hypothécaires assurés au cours de la période selon le prix d'achat (%)","250141.2","Saskatchewan",{"$f":"IFERROR(VLOOKUP(A5975,Translation!$A:$C,3,FALSE),A5975)","v":15},{"$f":"IFERROR(VLOOKUP(B5975,Translation!$A:$C,3,FALSE),B5975)","v":"T1 2019"},{"$f":"IFERROR(VLOOKUP(C5975,Translation!$A:$C,3,FALSE),C5975)","v":"PROPRIÉTAIRES-OCCUPANTS, À L’UNITÉ"},{"$f":"IFERROR(VLOOKUP(D5975,Translation!$A:$C,3,FALSE),D5975)","v":"Saskatchewan"},{"$f":"IFERROR(VLOOKUP(E5975,Translation!$A:$C,3,FALSE),E5975)","v":250141.17077647059},{"$f":"IFERROR(VLOOKUP(F5975,Translation!$A:$C,3,FALSE),F5975)","v":"Prêts hypothécaires assurés au cours de la période selon le prix d'achat (%)"},{"$f":"IFERROR(VLOOKUP(G5975,Translation!$A:$C,3,FALSE),G5975)","v":"250141.2"},{"$f":"IFERROR(VLOOKUP(H5975,Translation!$A:$C,3,FALSE),H5975)","v":"Saskatchewan"}]
[15,"T1 2019","PROPRIÉTAIRES-OCCUPANTS, À L’UNITÉ","Territoires",335579.7183098591,"Prêts hypothécaires assurés au cours de la période selon le prix d'achat (%)","335579.7","Territoires",{"$f":"IFERROR(VLOOKUP(A5978,Translation!$A:$C,3,FALSE),A5978)","v":15},{"$f":"IFERROR(VLOOKUP(B5978,Translation!$A:$C,3,FALSE),B5978)","v":"T1 2019"},{"$f":"IFERROR(VLOOKUP(C5978,Translation!$A:$C,3,FALSE),C5978)","v":"PROPRIÉTAIRES-OCCUPANTS, À L’UNITÉ"},{"$f":"IFERROR(VLOOKUP(D5978,Translation!$A:$C,3,FALSE),D5978)","v":"Territoires"},{"$f":"IFERROR(VLOOKUP(E5978,Translation!$A:$C,3,FALSE),E5978)","v":335579.7183098591},{"$f":"IFERROR(VLOOKUP(F5978,Translation!$A:$C,3,FALSE),F5978)","v":"Prêts hypothécaires assurés au cours de la période selon le prix d'achat (%)"},{"$f":"IFERROR(VLOOKUP(G5978,Translation!$A:$C,3,FALSE),G5978)","v":"335579.7"},{"$f":"IFERROR(VLOOKUP(H5978,Translation!$A:$C,3,FALSE),H5978)","v":"Territoires"}]
[15,"Cumul 2017","PROPRIÉTAIRES-OCCUPANTS, À L’UNITÉ","Plus de 850 000 $ à 1 000 000 $",0.46230283492600494,"Prêts hypothécaires assurés au cours de la période selon le prix d'achat (%)","0.5","Plus de 850 000 $ à 1 000 000 $",{"$f":"IFERROR(VLOOKUP(A5980,Translation!$A:$C,3,FALSE),A5980)","v":15},{"$f":"IFERROR(VLOOKUP(B5980,Translation!$A:$C,3,FALSE),B5980)","v":"Cumul 2017"},{"$f":"IFERROR(VLOOKUP(C5980,Translation!$A:$C,3,FALSE),C5980)","v":"PROPRIÉTAIRES-OCCUPANTS, À L’UNITÉ"},{"$f":"IFERROR(VLOOKUP(D5980,Translation!$A:$C,3,FALSE),D5980)","v":"Plus de 850 000 $ à 1 000 000 $"},{"$f":"IFERROR(VLOOKUP(E5980,Translation!$A:$C,3,FALSE),E5980)","v":0.46230283492600494},{"$f":"IFERROR(VLOOKUP(F5980,Translation!$A:$C,3,FALSE),F5980)","v":"Prêts hypothécaires assurés au cours de la période selon le prix d'achat (%)"},{"$f":"IFERROR(VLOOKUP(G5980,Translation!$A:$C,3,FALSE),G5980)","v":"0.5"},{"$f":"IFERROR(VLOOKUP(H5980,Translation!$A:$C,3,FALSE),H5980)","v":"Plus de 850 000 $ à 1 000 000 $"}]
[15,"T4 2018","PROPRIÉTAIRES-OCCUPANTS, À L’UNITÉ","Plus de 500 000 $ à 600 000 $",5.7227532662687297,"Prêts hypothécaires assurés au cours de la période selon le prix d'achat (%)","5.7","Plus de 500 000 $ à 600 000 $",{"$f":"IFERROR(VLOOKUP(A5983,Translation!$A:$C,3,FALSE),A5983)","v":15},{"$f":"IFERROR(VLOOKUP(B5983,Translation!$A:$C,3,FALSE),B5983)","v":"T4 2018"},{"$f":"IFERROR(VLOOKUP(C5983,Translation!$A:$C,3,FALSE),C5983)","v":"PROPRIÉTAIRES-OCCUPANTS, À L’UNITÉ"},{"$f":"IFERROR(VLOOKUP(D5983,Translation!$A:$C,3,FALSE),D5983)","v":"Plus de 500 000 $ à 600 000 $"},{"$f":"IFERROR(VLOOKUP(E5983,Translation!$A:$C,3,FALSE),E5983)","v":5.7227532662687297},{"$f":"IFERROR(VLOOKUP(F5983,Translation!$A:$C,3,FALSE),F5983)","v":"Prêts hypothécaires assurés au cours de la période selon le prix d'achat (%)"},{"$f":"IFERROR(VLOOKUP(G5983,Translation!$A:$C,3,FALSE),G5983)","v":"5.7"},{"$f":"IFERROR(VLOOKUP(H5983,Translation!$A:$C,3,FALSE),H5983)","v":"Plus de 500 000 $ à 600 000 $"}]
[15,"Cumul 2017","PROPRIÉTAIRES-OCCUPANTS, À L’UNITÉ","Plus de 400 000 $ à 500 000 $",10.133465588550475,"Prêts hypothécaires assurés au cours de la période selon le prix d'achat (%)","10.1","Plus de 400 000 $ à 500 000 $",{"$f":"IFERROR(VLOOKUP(A5986,Translation!$A:$C,3,FALSE),A5986)","v":15},{"$f":"IFERROR(VLOOKUP(B5986,Translation!$A:$C,3,FALSE),B5986)","v":"Cumul 2017"},{"$f":"IFERROR(VLOOKUP(C5986,Translation!$A:$C,3,FALSE),C5986)","v":"PROPRIÉTAIRES-OCCUPANTS, À L’UNITÉ"},{"$f":"IFERROR(VLOOKUP(D5986,Translation!$A:$C,3,FALSE),D5986)","v":"Plus de 400 000 $ à 500 000 $"},{"$f":"IFERROR(VLOOKUP(E5986,Translation!$A:$C,3,FALSE),E5986)","v":10.133465588550475},{"$f":"IFERROR(VLOOKUP(F5986,Translation!$A:$C,3,FALSE),F5986)","v":"Prêts hypothécaires assurés au cours de la période selon le prix d'achat (%)"},{"$f":"IFERROR(VLOOKUP(G5986,Translation!$A:$C,3,FALSE),G5986)","v":"10.1"},{"$f":"IFERROR(VLOOKUP(H5986,Translation!$A:$C,3,FALSE),H5986)","v":"Plus de 400 000 $ à 500 000 $"}]
[15,"Cumul 2017","PROPRIÉTAIRES-OCCUPANTS, À L’UNITÉ","Plus de 300 000 $ à 400 000 $",19.984412777979504,"Prêts hypothécaires assurés au cours de la période selon le prix d'achat (%)","20.0","Plus de 300 000 $ à 400 000 $",{"$f":"IFERROR(VLOOKUP(A5988,Translation!$A:$C,3,FALSE),A5988)","v":15},{"$f":"IFERROR(VLOOKUP(B5988,Translation!$A:$C,3,FALSE),B5988)","v":"Cumul 2017"},{"$f":"IFERROR(VLOOKUP(C5988,Translation!$A:$C,3,FALSE),C5988)","v":"PROPRIÉTAIRES-OCCUPANTS, À L’UNITÉ"},{"$f":"IFERROR(VLOOKUP(D5988,Translation!$A:$C,3,FALSE),D5988)","v":"Plus de 300 000 $ à 400 000 $"},{"$f":"IFERROR(VLOOKUP(E5988,Translation!$A:$C,3,FALSE),E5988)","v":19.984412777979504},{"$f":"IFERROR(VLOOKUP(F5988,Translation!$A:$C,3,FALSE),F5988)","v":"Prêts hypothécaires assurés au cours de la période selon le prix d'achat (%)"},{"$f":"IFERROR(VLOOKUP(G5988,Translation!$A:$C,3,FALSE),G5988)","v":"20.0"},{"$f":"IFERROR(VLOOKUP(H5988,Translation!$A:$C,3,FALSE),H5988)","v":"Plus de 300 000 $ à 400 000 $"}]
[15,"T4 2018","PROPRIÉTAIRES-OCCUPANTS, À L’UNITÉ","Plus de 200 000 $ à 300 000 $",26.188587886630216,"Prêts hypothécaires assurés au cours de la période selon le prix d'achat (%)","26.2","Plus de 200 000 $ à 300 000 $",{"$f":"IFERROR(VLOOKUP(A5989,Translation!$A:$C,3,FALSE),A5989)","v":15},{"$f":"IFERROR(VLOOKUP(B5989,Translation!$A:$C,3,FALSE),B5989)","v":"T4 2018"},{"$f":"IFERROR(VLOOKUP(C5989,Translation!$A:$C,3,FALSE),C5989)","v":"PROPRIÉTAIRES-OCCUPANTS, À L’UNITÉ"},{"$f":"IFERROR(VLOOKUP(D5989,Translation!$A:$C,3,FALSE),D5989)","v":"Plus de 200 000 $ à 300 000 $"},{"$f":"IFERROR(VLOOKUP(E5989,Translation!$A:$C,3,FALSE),E5989)","v":26.188587886630216},{"$f":"IFERROR(VLOOKUP(F5989,Translation!$A:$C,3,FALSE),F5989)","v":"Prêts hypothécaires assurés au cours de la période selon le prix d'achat (%)"},{"$f":"IFERROR(VLOOKUP(G5989,Translation!$A:$C,3,FALSE),G5989)","v":"26.2"},{"$f":"IFERROR(VLOOKUP(H5989,Translation!$A:$C,3,FALSE),H5989)","v":"Plus de 200 000 $ à 300 000 $"}]
[15,"T4 2018","PROPRIÉTAIRES-OCCUPANTS, À L’UNITÉ","Prix d'achat moyen ($)",281423.37679383904,"Prêts hypothécaires assurés au cours de la période selon le prix d'achat (%)","281423.4","Prix d'achat moyen ($)",{"$f":"IFERROR(VLOOKUP(A5993,Translation!$A:$C,3,FALSE),A5993)","v":15},{"$f":"IFERROR(VLOOKUP(B5993,Translation!$A:$C,3,FALSE),B5993)","v":"T4 2018"},{"$f":"IFERROR(VLOOKUP(C5993,Translation!$A:$C,3,FALSE),C5993)","v":"PROPRIÉTAIRES-OCCUPANTS, À L’UNITÉ"},{"$f":"IFERROR(VLOOKUP(D5993,Translation!$A:$C,3,FALSE),D5993)","v":"Prix d'achat moyen ($)"},{"$f":"IFERROR(VLOOKUP(E5993,Translation!$A:$C,3,FALSE),E5993)","v":281423.37679383904},{"$f":"IFERROR(VLOOKUP(F5993,Translation!$A:$C,3,FALSE),F5993)","v":"Prêts hypothécaires assurés au cours de la période selon le prix d'achat (%)"},{"$f":"IFERROR(VLOOKUP(G5993,Translation!$A:$C,3,FALSE),G5993)","v":"281423.4"},{"$f":"IFERROR(VLOOKUP(H5993,Translation!$A:$C,3,FALSE),H5993)","v":"Prix d'achat moyen ($)"}]
[15,"Cumul 2017","PROPRIÉTAIRES-OCCUPANTS, À L’UNITÉ","Prix d'achat moyen ($)",274668.9285900644,"Prêts hypothécaires assurés au cours de la période selon le prix d'achat (%)","274668.9","Prix d'achat moyen ($)",{"$f":"IFERROR(VLOOKUP(A5994,Translation!$A:$C,3,FALSE),A5994)","v":15},{"$f":"IFERROR(VLOOKUP(B5994,Translation!$A:$C,3,FALSE),B5994)","v":"Cumul 2017"},{"$f":"IFERROR(VLOOKUP(C5994,Translation!$A:$C,3,FALSE),C5994)","v":"PROPRIÉTAIRES-OCCUPANTS, À L’UNITÉ"},{"$f":"IFERROR(VLOOKUP(D5994,Translation!$A:$C,3,FALSE),D5994)","v":"Prix d'achat moyen ($)"},{"$f":"IFERROR(VLOOKUP(E5994,Translation!$A:$C,3,FALSE),E5994)","v":274668.9285900644},{"$f":"IFERROR(VLOOKUP(F5994,Translation!$A:$C,3,FALSE),F5994)","v":"Prêts hypothécaires assurés au cours de la période selon le prix d'achat (%)"},{"$f":"IFERROR(VLOOKUP(G5994,Translation!$A:$C,3,FALSE),G5994)","v":"274668.9"},{"$f":"IFERROR(VLOOKUP(H5994,Translation!$A:$C,3,FALSE),H5994)","v":"Prix d'achat moyen ($)"}]
[15,"T4 2018","PROPRIÉTAIRES-OCCUPANTS, À L’UNITÉ","Nouvelle-Écosse",180334.04471251412,"Prêts hypothécaires assurés au cours de la période selon le prix d'achat (%)","180334.0","Nouvelle-Écosse",{"$f":"IFERROR(VLOOKUP(A5997,Translation!$A:$C,3,FALSE),A5997)","v":15},{"$f":"IFERROR(VLOOKUP(B5997,Translation!$A:$C,3,FALSE),B5997)","v":"T4 2018"},{"$f":"IFERROR(VLOOKUP(C5997,Translation!$A:$C,3,FALSE),C5997)","v":"PROPRIÉTAIRES-OCCUPANTS, À L’UNITÉ"},{"$f":"IFERROR(VLOOKUP(D5997,Translation!$A:$C,3,FALSE),D5997)","v":"Nouvelle-Écosse"},{"$f":"IFERROR(VLOOKUP(E5997,Translation!$A:$C,3,FALSE),E5997)","v":180334.04471251412},{"$f":"IFERROR(VLOOKUP(F5997,Translation!$A:$C,3,FALSE),F5997)","v":"Prêts hypothécaires assurés au cours de la période selon le prix d'achat (%)"},{"$f":"IFERROR(VLOOKUP(G5997,Translation!$A:$C,3,FALSE),G5997)","v":"180334.0"},{"$f":"IFERROR(VLOOKUP(H5997,Translation!$A:$C,3,FALSE),H5997)","v":"Nouvelle-Écosse"}]
[15,"T4 2018","PROPRIÉTAIRES-OCCUPANTS, À L’UNITÉ","Québec",212290.17032266501,"Prêts hypothécaires assurés au cours de la période selon le prix d'achat (%)","212290.2","Québec",{"$f":"IFERROR(VLOOKUP(A5999,Translation!$A:$C,3,FALSE),A5999)","v":15},{"$f":"IFERROR(VLOOKUP(B5999,Translation!$A:$C,3,FALSE),B5999)","v":"T4 2018"},{"$f":"IFERROR(VLOOKUP(C5999,Translation!$A:$C,3,FALSE),C5999)","v":"PROPRIÉTAIRES-OCCUPANTS, À L’UNITÉ"},{"$f":"IFERROR(VLOOKUP(D5999,Translation!$A:$C,3,FALSE),D5999)","v":"Québec"},{"$f":"IFERROR(VLOOKUP(E5999,Translation!$A:$C,3,FALSE),E5999)","v":212290.17032266501},{"$f":"IFERROR(VLOOKUP(F5999,Translation!$A:$C,3,FALSE),F5999)","v":"Prêts hypothécaires assurés au cours de la période selon le prix d'achat (%)"},{"$f":"IFERROR(VLOOKUP(G5999,Translation!$A:$C,3,FALSE),G5999)","v":"212290.2"},{"$f":"IFERROR(VLOOKUP(H5999,Translation!$A:$C,3,FALSE),H5999)","v":"Québec"}]
[15,"T4 2018","PROPRIÉTAIRES-OCCUPANTS, À L’UNITÉ","Alberta",329488.36858447455,"Prêts hypothécaires assurés au cours de la période selon le prix d'achat (%)","329488.4","Alberta",{"$f":"IFERROR(VLOOKUP(A6003,Translation!$A:$C,3,FALSE),A6003)","v":15},{"$f":"IFERROR(VLOOKUP(B6003,Translation!$A:$C,3,FALSE),B6003)","v":"T4 2018"},{"$f":"IFERROR(VLOOKUP(C6003,Translation!$A:$C,3,FALSE),C6003)","v":"PROPRIÉTAIRES-OCCUPANTS, À L’UNITÉ"},{"$f":"IFERROR(VLOOKUP(D6003,Translation!$A:$C,3,FALSE),D6003)","v":"Alberta"},{"$f":"IFERROR(VLOOKUP(E6003,Translation!$A:$C,3,FALSE),E6003)","v":329488.36858447455},{"$f":"IFERROR(VLOOKUP(F6003,Translation!$A:$C,3,FALSE),F6003)","v":"Prêts hypothécaires assurés au cours de la période selon le prix d'achat (%)"},{"$f":"IFERROR(VLOOKUP(G6003,Translation!$A:$C,3,FALSE),G6003)","v":"329488.4"},{"$f":"IFERROR(VLOOKUP(H6003,Translation!$A:$C,3,FALSE),H6003)","v":"Alberta"}]
[15,"T4 2018","PROPRIÉTAIRES-OCCUPANTS, À L’UNITÉ","Colombie-Britannique",351160.2053621778,"Prêts hypothécaires assurés au cours de la période selon le prix d'achat (%)","351160.2","Colombie-Britannique",{"$f":"IFERROR(VLOOKUP(A6004,Translation!$A:$C,3,FALSE),A6004)","v":15},{"$f":"IFERROR(VLOOKUP(B6004,Translation!$A:$C,3,FALSE),B6004)","v":"T4 2018"},{"$f":"IFERROR(VLOOKUP(C6004,Translation!$A:$C,3,FALSE),C6004)","v":"PROPRIÉTAIRES-OCCUPANTS, À L’UNITÉ"},{"$f":"IFERROR(VLOOKUP(D6004,Translation!$A:$C,3,FALSE),D6004)","v":"Colombie-Britannique"},{"$f":"IFERROR(VLOOKUP(E6004,Translation!$A:$C,3,FALSE),E6004)","v":351160.2053621778},{"$f":"IFERROR(VLOOKUP(F6004,Translation!$A:$C,3,FALSE),F6004)","v":"Prêts hypothécaires assurés au cours de la période selon le prix d'achat (%)"},{"$f":"IFERROR(VLOOKUP(G6004,Translation!$A:$C,3,FALSE),G6004)","v":"351160.2"},{"$f":"IFERROR(VLOOKUP(H6004,Translation!$A:$C,3,FALSE),H6004)","v":"Colombie-Britannique"}]
[15,"Cumul 2017","PROPRIÉTAIRES-OCCUPANTS, À L’UNITÉ","Île-du-Prince-Édouard",162686.74194736843,"Prêts hypothécaires assurés au cours de la période selon le prix d'achat (%)","162686.7","Île-du-Prince-Édouard",{"$f":"IFERROR(VLOOKUP(A6007,Translation!$A:$C,3,FALSE),A6007)","v":15},{"$f":"IFERROR(VLOOKUP(B6007,Translation!$A:$C,3,FALSE),B6007)","v":"Cumul 2017"},{"$f":"IFERROR(VLOOKUP(C6007,Translation!$A:$C,3,FALSE),C6007)","v":"PROPRIÉTAIRES-OCCUPANTS, À L’UNITÉ"},{"$f":"IFERROR(VLOOKUP(D6007,Translation!$A:$C,3,FALSE),D6007)","v":"Île-du-Prince-Édouard"},{"$f":"IFERROR(VLOOKUP(E6007,Translation!$A:$C,3,FALSE),E6007)","v":162686.74194736843},{"$f":"IFERROR(VLOOKUP(F6007,Translation!$A:$C,3,FALSE),F6007)","v":"Prêts hypothécaires assurés au cours de la période selon le prix d'achat (%)"},{"$f":"IFERROR(VLOOKUP(G6007,Translation!$A:$C,3,FALSE),G6007)","v":"162686.7"},{"$f":"IFERROR(VLOOKUP(H6007,Translation!$A:$C,3,FALSE),H6007)","v":"Île-du-Prince-Édouard"}]
[15,"Cumul 2017","PROPRIÉTAIRES-OCCUPANTS, À L’UNITÉ","Nouvelle-Écosse",178969.17209174842,"Prêts hypothécaires assurés au cours de la période selon le prix d'achat (%)","178969.2","Nouvelle-Écosse",{"$f":"IFERROR(VLOOKUP(A6008,Translation!$A:$C,3,FALSE),A6008)","v":15},{"$f":"IFERROR(VLOOKUP(B6008,Translation!$A:$C,3,FALSE),B6008)","v":"Cumul 2017"},{"$f":"IFERROR(VLOOKUP(C6008,Translation!$A:$C,3,FALSE),C6008)","v":"PROPRIÉTAIRES-OCCUPANTS, À L’UNITÉ"},{"$f":"IFERROR(VLOOKUP(D6008,Translation!$A:$C,3,FALSE),D6008)","v":"Nouvelle-Écosse"},{"$f":"IFERROR(VLOOKUP(E6008,Translation!$A:$C,3,FALSE),E6008)","v":178969.17209174842},{"$f":"IFERROR(VLOOKUP(F6008,Translation!$A:$C,3,FALSE),F6008)","v":"Prêts hypothécaires assurés au cours de la période selon le prix d'achat (%)"},{"$f":"IFERROR(VLOOKUP(G6008,Translation!$A:$C,3,FALSE),G6008)","v":"178969.2"},{"$f":"IFERROR(VLOOKUP(H6008,Translation!$A:$C,3,FALSE),H6008)","v":"Nouvelle-Écosse"}]
[15,"Cumul 2017","PROPRIÉTAIRES-OCCUPANTS, À L’UNITÉ","Manitoba",247604.66218107805,"Prêts hypothécaires assurés au cours de la période selon le prix d'achat (%)","247604.7","Manitoba",{"$f":"IFERROR(VLOOKUP(A6012,Translation!$A:$C,3,FALSE),A6012)","v":15},{"$f":"IFERROR(VLOOKUP(B6012,Translation!$A:$C,3,FALSE),B6012)","v":"Cumul 2017"},{"$f":"IFERROR(VLOOKUP(C6012,Translation!$A:$C,3,FALSE),C6012)","v":"PROPRIÉTAIRES-OCCUPANTS, À L’UNITÉ"},{"$f":"IFERROR(VLOOKUP(D6012,Translation!$A:$C,3,FALSE),D6012)","v":"Manitoba"},{"$f":"IFERROR(VLOOKUP(E6012,Translation!$A:$C,3,FALSE),E6012)","v":247604.66218107805},{"$f":"IFERROR(VLOOKUP(F6012,Translation!$A:$C,3,FALSE),F6012)","v":"Prêts hypothécaires assurés au cours de la période selon le prix d'achat (%)"},{"$f":"IFERROR(VLOOKUP(G6012,Translation!$A:$C,3,FALSE),G6012)","v":"247604.7"},{"$f":"IFERROR(VLOOKUP(H6012,Translation!$A:$C,3,FALSE),H6012)","v":"Manitoba"}]
[15,"Cumul 2017","PROPRIÉTAIRES-OCCUPANTS, À L’UNITÉ","Alberta",341174.16943838145,"Prêts hypothécaires assurés au cours de la période selon le prix d'achat (%)","341174.2","Alberta",{"$f":"IFERROR(VLOOKUP(A6014,Translation!$A:$C,3,FALSE),A6014)","v":15},{"$f":"IFERROR(VLOOKUP(B6014,Translation!$A:$C,3,FALSE),B6014)","v":"Cumul 2017"},{"$f":"IFERROR(VLOOKUP(C6014,Translation!$A:$C,3,FALSE),C6014)","v":"PROPRIÉTAIRES-OCCUPANTS, À L’UNITÉ"},{"$f":"IFERROR(VLOOKUP(D6014,Translation!$A:$C,3,FALSE),D6014)","v":"Alberta"},{"$f":"IFERROR(VLOOKUP(E6014,Translation!$A:$C,3,FALSE),E6014)","v":341174.16943838145},{"$f":"IFERROR(VLOOKUP(F6014,Translation!$A:$C,3,FALSE),F6014)","v":"Prêts hypothécaires assurés au cours de la période selon le prix d'achat (%)"},{"$f":"IFERROR(VLOOKUP(G6014,Translation!$A:$C,3,FALSE),G6014)","v":"341174.2"},{"$f":"IFERROR(VLOOKUP(H6014,Translation!$A:$C,3,FALSE),H6014)","v":"Alberta"}]
[15,"T3 2018","PROPRIÉTAIRES-OCCUPANTS, À L’UNITÉ","Plus de 850 000 $ à 1 000 000 $",0.60389248088220815,"Prêts hypothécaires assurés au cours de la période selon le prix d'achat (%)","0.6","Plus de 850 000 $ à 1 000 000 $",{"$f":"IFERROR(VLOOKUP(A6017,Translation!$A:$C,3,FALSE),A6017)","v":15},{"$f":"IFERROR(VLOOKUP(B6017,Translation!$A:$C,3,FALSE),B6017)","v":"T3 2018"},{"$f":"IFERROR(VLOOKUP(C6017,Translation!$A:$C,3,FALSE),C6017)","v":"PROPRIÉTAIRES-OCCUPANTS, À L’UNITÉ"},{"$f":"IFERROR(VLOOKUP(D6017,Translation!$A:$C,3,FALSE),D6017)","v":"Plus de 850 000 $ à 1 000 000 $"},{"$f":"IFERROR(VLOOKUP(E6017,Translation!$A:$C,3,FALSE),E6017)","v":0.60389248088220815},{"$f":"IFERROR(VLOOKUP(F6017,Translation!$A:$C,3,FALSE),F6017)","v":"Prêts hypothécaires assurés au cours de la période selon le prix d'achat (%)"},{"$f":"IFERROR(VLOOKUP(G6017,Translation!$A:$C,3,FALSE),G6017)","v":"0.6"},{"$f":"IFERROR(VLOOKUP(H6017,Translation!$A:$C,3,FALSE),H6017)","v":"Plus de 850 000 $ à 1 000 000 $"}]
[15,"T3 2018","PROPRIÉTAIRES-OCCUPANTS, À L’UNITÉ","Plus de 600 000 $ à 850 000 $",4.6637566050740089,"Prêts hypothécaires assurés au cours de la période selon le prix d'achat (%)","4.7","Plus de 600 000 $ à 850 000 $",{"$f":"IFERROR(VLOOKUP(A6018,Translation!$A:$C,3,FALSE),A6018)","v":15},{"$f":"IFERROR(VLOOKUP(B6018,Translation!$A:$C,3,FALSE),B6018)","v":"T3 2018"},{"$f":"IFERROR(VLOOKUP(C6018,Translation!$A:$C,3,FALSE),C6018)","v":"PROPRIÉTAIRES-OCCUPANTS, À L’UNITÉ"},{"$f":"IFERROR(VLOOKUP(D6018,Translation!$A:$C,3,FALSE),D6018)","v":"Plus de 600 000 $ à 850 000 $"},{"$f":"IFERROR(VLOOKUP(E6018,Translation!$A:$C,3,FALSE),E6018)","v":4.6637566050740089},{"$f":"IFERROR(VLOOKUP(F6018,Translation!$A:$C,3,FALSE),F6018)","v":"Prêts hypothécaires assurés au cours de la période selon le prix d'achat (%)"},{"$f":"IFERROR(VLOOKUP(G6018,Translation!$A:$C,3,FALSE),G6018)","v":"4.7"},{"$f":"IFERROR(VLOOKUP(H6018,Translation!$A:$C,3,FALSE),H6018)","v":"Plus de 600 000 $ à 850 000 $"}]
[15,"T3 2018","PROPRIÉTAIRES-OCCUPANTS, À L’UNITÉ","Plus de 200 000 $ à 300 000 $",27.316288686862048,"Prêts hypothécaires assurés au cours de la période selon le prix d'achat (%)","27.3","Plus de 200 000 $ à 300 000 $",{"$f":"IFERROR(VLOOKUP(A6022,Translation!$A:$C,3,FALSE),A6022)","v":15},{"$f":"IFERROR(VLOOKUP(B6022,Translation!$A:$C,3,FALSE),B6022)","v":"T3 2018"},{"$f":"IFERROR(VLOOKUP(C6022,Translation!$A:$C,3,FALSE),C6022)","v":"PROPRIÉTAIRES-OCCUPANTS, À L’UNITÉ"},{"$f":"IFERROR(VLOOKUP(D6022,Translation!$A:$C,3,FALSE),D6022)","v":"Plus de 200 000 $ à 300 000 $"},{"$f":"IFERROR(VLOOKUP(E6022,Translation!$A:$C,3,FALSE),E6022)","v":27.316288686862048},{"$f":"IFERROR(VLOOKUP(F6022,Translation!$A:$C,3,FALSE),F6022)","v":"Prêts hypothécaires assurés au cours de la période selon le prix d'achat (%)"},{"$f":"IFERROR(VLOOKUP(G6022,Translation!$A:$C,3,FALSE),G6022)","v":"27.3"},{"$f":"IFERROR(VLOOKUP(H6022,Translation!$A:$C,3,FALSE),H6022)","v":"Plus de 200 000 $ à 300 000 $"}]
[15,"T3 2018","PROPRIÉTAIRES-OCCUPANTS, À L’UNITÉ","200 000 $ ou moins",30.677081623945657,"Prêts hypothécaires assurés au cours de la période selon le prix d'achat (%)","30.7","200 000 $ ou moins",{"$f":"IFERROR(VLOOKUP(A6023,Translation!$A:$C,3,FALSE),A6023)","v":15},{"$f":"IFERROR(VLOOKUP(B6023,Translation!$A:$C,3,FALSE),B6023)","v":"T3 2018"},{"$f":"IFERROR(VLOOKUP(C6023,Translation!$A:$C,3,FALSE),C6023)","v":"PROPRIÉTAIRES-OCCUPANTS, À L’UNITÉ"},{"$f":"IFERROR(VLOOKUP(D6023,Translation!$A:$C,3,FALSE),D6023)","v":"200 000 $ ou moins"},{"$f":"IFERROR(VLOOKUP(E6023,Translation!$A:$C,3,FALSE),E6023)","v":30.677081623945657},{"$f":"IFERROR(VLOOKUP(F6023,Translation!$A:$C,3,FALSE),F6023)","v":"Prêts hypothécaires assurés au cours de la période selon le prix d'achat (%)"},{"$f":"IFERROR(VLOOKUP(G6023,Translation!$A:$C,3,FALSE),G6023)","v":"30.7"},{"$f":"IFERROR(VLOOKUP(H6023,Translation!$A:$C,3,FALSE),H6023)","v":"200 000 $ ou moins"}]
[15,"T3 2018","PROPRIÉTAIRES-OCCUPANTS, À L’UNITÉ","Nouvelle-Écosse",188699.71481927711,"Prêts hypothécaires assurés au cours de la période selon le prix d'achat (%)","188699.7","Nouvelle-Écosse",{"$f":"IFERROR(VLOOKUP(A6027,Translation!$A:$C,3,FALSE),A6027)","v":15},{"$f":"IFERROR(VLOOKUP(B6027,Translation!$A:$C,3,FALSE),B6027)","v":"T3 2018"},{"$f":"IFERROR(VLOOKUP(C6027,Translation!$A:$C,3,FALSE),C6027)","v":"PROPRIÉTAIRES-OCCUPANTS, À L’UNITÉ"},{"$f":"IFERROR(VLOOKUP(D6027,Translation!$A:$C,3,FALSE),D6027)","v":"Nouvelle-Écosse"},{"$f":"IFERROR(VLOOKUP(E6027,Translation!$A:$C,3,FALSE),E6027)","v":188699.71481927711},{"$f":"IFERROR(VLOOKUP(F6027,Translation!$A:$C,3,FALSE),F6027)","v":"Prêts hypothécaires assurés au cours de la période selon le prix d'achat (%)"},{"$f":"IFERROR(VLOOKUP(G6027,Translation!$A:$C,3,FALSE),G6027)","v":"188699.7"},{"$f":"IFERROR(VLOOKUP(H6027,Translation!$A:$C,3,FALSE),H6027)","v":"Nouvelle-Écosse"}]
[15,"T3 2018","PROPRIÉTAIRES-OCCUPANTS, À L’UNITÉ","Nouveau-Brunswick",152157.47037995153,"Prêts hypothécaires assurés au cours de la période selon le prix d'achat (%)","152157.5","Nouveau-Brunswick",{"$f":"IFERROR(VLOOKUP(A6028,Translation!$A:$C,3,FALSE),A6028)","v":15},{"$f":"IFERROR(VLOOKUP(B6028,Translation!$A:$C,3,FALSE),B6028)","v":"T3 2018"},{"$f":"IFERROR(VLOOKUP(C6028,Translation!$A:$C,3,FALSE),C6028)","v":"PROPRIÉTAIRES-OCCUPANTS, À L’UNITÉ"},{"$f":"IFERROR(VLOOKUP(D6028,Translation!$A:$C,3,FALSE),D6028)","v":"Nouveau-Brunswick"},{"$f":"IFERROR(VLOOKUP(E6028,Translation!$A:$C,3,FALSE),E6028)","v":152157.47037995153},{"$f":"IFERROR(VLOOKUP(F6028,Translation!$A:$C,3,FALSE),F6028)","v":"Prêts hypothécaires assurés au cours de la période selon le prix d'achat (%)"},{"$f":"IFERROR(VLOOKUP(G6028,Translation!$A:$C,3,FALSE),G6028)","v":"152157.5"},{"$f":"IFERROR(VLOOKUP(H6028,Translation!$A:$C,3,FALSE),H6028)","v":"Nouveau-Brunswick"}]
[15,"T3 2018","PROPRIÉTAIRES-OCCUPANTS, À L’UNITÉ","Manitoba",253994.15274772039,"Prêts hypothécaires assurés au cours de la période selon le prix d'achat (%)","253994.2","Manitoba",{"$f":"IFERROR(VLOOKUP(A6031,Translation!$A:$C,3,FALSE),A6031)","v":15},{"$f":"IFERROR(VLOOKUP(B6031,Translation!$A:$C,3,FALSE),B6031)","v":"T3 2018"},{"$f":"IFERROR(VLOOKUP(C6031,Translation!$A:$C,3,FALSE),C6031)","v":"PROPRIÉTAIRES-OCCUPANTS, À L’UNITÉ"},{"$f":"IFERROR(VLOOKUP(D6031,Translation!$A:$C,3,FALSE),D6031)","v":"Manitoba"},{"$f":"IFERROR(VLOOKUP(E6031,Translation!$A:$C,3,FALSE),E6031)","v":253994.15274772039},{"$f":"IFERROR(VLOOKUP(F6031,Translation!$A:$C,3,FALSE),F6031)","v":"Prêts hypothécaires assurés au cours de la période selon le prix d'achat (%)"},{"$f":"IFERROR(VLOOKUP(G6031,Translation!$A:$C,3,FALSE),G6031)","v":"253994.2"},{"$f":"IFERROR(VLOOKUP(H6031,Translation!$A:$C,3,FALSE),H6031)","v":"Manitoba"}]
[15,"T3 2018","PROPRIÉTAIRES-OCCUPANTS, À L’UNITÉ","Alberta",335044.22795533395,"Prêts hypothécaires assurés au cours de la période selon le prix d'achat (%)","335044.2","Alberta",{"$f":"IFERROR(VLOOKUP(A6033,Translation!$A:$C,3,FALSE),A6033)","v":15},{"$f":"IFERROR(VLOOKUP(B6033,Translation!$A:$C,3,FALSE),B6033)","v":"T3 2018"},{"$f":"IFERROR(VLOOKUP(C6033,Translation!$A:$C,3,FALSE),C6033)","v":"PROPRIÉTAIRES-OCCUPANTS, À L’UNITÉ"},{"$f":"IFERROR(VLOOKUP(D6033,Translation!$A:$C,3,FALSE),D6033)","v":"Alberta"},{"$f":"IFERROR(VLOOKUP(E6033,Translation!$A:$C,3,FALSE),E6033)","v":335044.22795533395},{"$f":"IFERROR(VLOOKUP(F6033,Translation!$A:$C,3,FALSE),F6033)","v":"Prêts hypothécaires assurés au cours de la période selon le prix d'achat (%)"},{"$f":"IFERROR(VLOOKUP(G6033,Translation!$A:$C,3,FALSE),G6033)","v":"335044.2"},{"$f":"IFERROR(VLOOKUP(H6033,Translation!$A:$C,3,FALSE),H6033)","v":"Alberta"}]
[15,"T2 2018","PROPRIÉTAIRES-OCCUPANTS, À L’UNITÉ","Plus de 850 000 $ à 1 000 000 $",0.41079812206572786,"Prêts hypothécaires assurés au cours de la période selon le prix d'achat (%)","0.4","Plus de 850 000 $ à 1 000 000 $",{"$f":"IFERROR(VLOOKUP(A6036,Translation!$A:$C,3,FALSE),A6036)","v":15},{"$f":"IFERROR(VLOOKUP(B6036,Translation!$A:$C,3,FALSE),B6036)","v":"T2 2018"},{"$f":"IFERROR(VLOOKUP(C6036,Translation!$A:$C,3,FALSE),C6036)","v":"PROPRIÉTAIRES-OCCUPANTS, À L’UNITÉ"},{"$f":"IFERROR(VLOOKUP(D6036,Translation!$A:$C,3,FALSE),D6036)","v":"Plus de 850 000 $ à 1 000 000 $"},{"$f":"IFERROR(VLOOKUP(E6036,Translation!$A:$C,3,FALSE),E6036)","v":0.41079812206572786},{"$f":"IFERROR(VLOOKUP(F6036,Translation!$A:$C,3,FALSE),F6036)","v":"Prêts hypothécaires assurés au cours de la période selon le prix d'achat (%)"},{"$f":"IFERROR(VLOOKUP(G6036,Translation!$A:$C,3,FALSE),G6036)","v":"0.4"},{"$f":"IFERROR(VLOOKUP(H6036,Translation!$A:$C,3,FALSE),H6036)","v":"Plus de 850 000 $ à 1 000 000 $"}]
[15,"T2 2018","PROPRIÉTAIRES-OCCUPANTS, À L’UNITÉ","Plus de 500 000 $ à 600 000 $",4.269366197183099,"Prêts hypothécaires assurés au cours de la période selon le prix d'achat (%)","4.3","Plus de 500 000 $ à 600 000 $",{"$f":"IFERROR(VLOOKUP(A6038,Translation!$A:$C,3,FALSE),A6038)","v":15},{"$f":"IFERROR(VLOOKUP(B6038,Translation!$A:$C,3,FALSE),B6038)","v":"T2 2018"},{"$f":"IFERROR(VLOOKUP(C6038,Translation!$A:$C,3,FALSE),C6038)","v":"PROPRIÉTAIRES-OCCUPANTS, À L’UNITÉ"},{"$f":"IFERROR(VLOOKUP(D6038,Translation!$A:$C,3,FALSE),D6038)","v":"Plus de 500 000 $ à 600 000 $"},{"$f":"IFERROR(VLOOKUP(E6038,Translation!$A:$C,3,FALSE),E6038)","v":4.269366197183099},{"$f":"IFERROR(VLOOKUP(F6038,Translation!$A:$C,3,FALSE),F6038)","v":"Prêts hypothécaires assurés au cours de la période selon le prix d'achat (%)"},{"$f":"IFERROR(VLOOKUP(G6038,Translation!$A:$C,3,FALSE),G6038)","v":"4.3"},{"$f":"IFERROR(VLOOKUP(H6038,Translation!$A:$C,3,FALSE),H6038)","v":"Plus de 500 000 $ à 600 000 $"}]
[15,"T2 2018","PROPRIÉTAIRES-OCCUPANTS, À L’UNITÉ","Plus de 200 000 $ à 300 000 $",30.293427230046952,"Prêts hypothécaires assurés au cours de la période selon le prix d'achat (%)","30.3","Plus de 200 000 $ à 300 000 $",{"$f":"IFERROR(VLOOKUP(A6041,Translation!$A:$C,3,FALSE),A6041)","v":15},{"$f":"IFERROR(VLOOKUP(B6041,Translation!$A:$C,3,FALSE),B6041)","v":"T2 2018"},{"$f":"IFERROR(VLOOKUP(C6041,Translation!$A:$C,3,FALSE),C6041)","v":"PROPRIÉTAIRES-OCCUPANTS, À L’UNITÉ"},{"$f":"IFERROR(VLOOKUP(D6041,Translation!$A:$C,3,FALSE),D6041)","v":"Plus de 200 000 $ à 300 000 $"},{"$f":"IFERROR(VLOOKUP(E6041,Translation!$A:$C,3,FALSE),E6041)","v":30.293427230046952},{"$f":"IFERROR(VLOOKUP(F6041,Translation!$A:$C,3,FALSE),F6041)","v":"Prêts hypothécaires assurés au cours de la période selon le prix d'achat (%)"},{"$f":"IFERROR(VLOOKUP(G6041,Translation!$A:$C,3,FALSE),G6041)","v":"30.3"},{"$f":"IFERROR(VLOOKUP(H6041,Translation!$A:$C,3,FALSE),H6041)","v":"Plus de 200 000 $ à 300 000 $"}]
[15,"T2 2018","PROPRIÉTAIRES-OCCUPANTS, À L’UNITÉ","200 000 $ ou moins",32.943075117370881,"Prêts hypothécaires assurés au cours de la période selon le prix d'achat (%)","32.9","200 000 $ ou moins",{"$f":"IFERROR(VLOOKUP(A6042,Translation!$A:$C,3,FALSE),A6042)","v":15},{"$f":"IFERROR(VLOOKUP(B6042,Translation!$A:$C,3,FALSE),B6042)","v":"T2 2018"},{"$f":"IFERROR(VLOOKUP(C6042,Translation!$A:$C,3,FALSE),C6042)","v":"PROPRIÉTAIRES-OCCUPANTS, À L’UNITÉ"},{"$f":"IFERROR(VLOOKUP(D6042,Translation!$A:$C,3,FALSE),D6042)","v":"200 000 $ ou moins"},{"$f":"IFERROR(VLOOKUP(E6042,Translation!$A:$C,3,FALSE),E6042)","v":32.943075117370881},{"$f":"IFERROR(VLOOKUP(F6042,Translation!$A:$C,3,FALSE),F6042)","v":"Prêts hypothécaires assurés au cours de la période selon le prix d'achat (%)"},{"$f":"IFERROR(VLOOKUP(G6042,Translation!$A:$C,3,FALSE),G6042)","v":"32.9"},{"$f":"IFERROR(VLOOKUP(H6042,Translation!$A:$C,3,FALSE),H6042)","v":"200 000 $ ou moins"}]
[15,"T2 2018","PROPRIÉTAIRES-OCCUPANTS, À L’UNITÉ","Nouvelle-Écosse",182976.26804216873,"Prêts hypothécaires assurés au cours de la période selon le prix d'achat (%)","182976.3","Nouvelle-Écosse",{"$f":"IFERROR(VLOOKUP(A6046,Translation!$A:$C,3,FALSE),A6046)","v":15},{"$f":"IFERROR(VLOOKUP(B6046,Translation!$A:$C,3,FALSE),B6046)","v":"T2 2018"},{"$f":"IFERROR(VLOOKUP(C6046,Translation!$A:$C,3,FALSE),C6046)","v":"PROPRIÉTAIRES-OCCUPANTS, À L’UNITÉ"},{"$f":"IFERROR(VLOOKUP(D6046,Translation!$A:$C,3,FALSE),D6046)","v":"Nouvelle-Écosse"},{"$f":"IFERROR(VLOOKUP(E6046,Translation!$A:$C,3,FALSE),E6046)","v":182976.26804216873},{"$f":"IFERROR(VLOOKUP(F6046,Translation!$A:$C,3,FALSE),F6046)","v":"Prêts hypothécaires assurés au cours de la période selon le prix d'achat (%)"},{"$f":"IFERROR(VLOOKUP(G6046,Translation!$A:$C,3,FALSE),G6046)","v":"182976.3"},{"$f":"IFERROR(VLOOKUP(H6046,Translation!$A:$C,3,FALSE),H6046)","v":"Nouvelle-Écosse"}]
[15,"T2 2018","PROPRIÉTAIRES-OCCUPANTS, À L’UNITÉ","Nouveau-Brunswick",144244.08321495328,"Prêts hypothécaires assurés au cours de la période selon le prix d'achat (%)","144244.1","Nouveau-Brunswick",{"$f":"IFERROR(VLOOKUP(A6047,Translation!$A:$C,3,FALSE),A6047)","v":15},{"$f":"IFERROR(VLOOKUP(B6047,Translation!$A:$C,3,FALSE),B6047)","v":"T2 2018"},{"$f":"IFERROR(VLOOKUP(C6047,Translation!$A:$C,3,FALSE),C6047)","v":"PROPRIÉTAIRES-OCCUPANTS, À L’UNITÉ"},{"$f":"IFERROR(VLOOKUP(D6047,Translation!$A:$C,3,FALSE),D6047)","v":"Nouveau-Brunswick"},{"$f":"IFERROR(VLOOKUP(E6047,Translation!$A:$C,3,FALSE),E6047)","v":144244.08321495328},{"$f":"IFERROR(VLOOKUP(F6047,Translation!$A:$C,3,FALSE),F6047)","v":"Prêts hypothécaires assurés au cours de la période selon le prix d'achat (%)"},{"$f":"IFERROR(VLOOKUP(G6047,Translation!$A:$C,3,FALSE),G6047)","v":"144244.1"},{"$f":"IFERROR(VLOOKUP(H6047,Translation!$A:$C,3,FALSE),H6047)","v":"Nouveau-Brunswick"}]
[15,"T2 2018","PROPRIÉTAIRES-OCCUPANTS, À L’UNITÉ","Ontario",362073.42739423655,"Prêts hypothécaires assurés au cours de la période selon le prix d'achat (%)","362073.4","Ontario",{"$f":"IFERROR(VLOOKUP(A6049,Translation!$A:$C,3,FALSE),A6049)","v":15},{"$f":"IFERROR(VLOOKUP(B6049,Translation!$A:$C,3,FALSE),B6049)","v":"T2 2018"},{"$f":"IFERROR(VLOOKUP(C6049,Translation!$A:$C,3,FALSE),C6049)","v":"PROPRIÉTAIRES-OCCUPANTS, À L’UNITÉ"},{"$f":"IFERROR(VLOOKUP(D6049,Translation!$A:$C,3,FALSE),D6049)","v":"Ontario"},{"$f":"IFERROR(VLOOKUP(E6049,Translation!$A:$C,3,FALSE),E6049)","v":362073.42739423655},{"$f":"IFERROR(VLOOKUP(F6049,Translation!$A:$C,3,FALSE),F6049)","v":"Prêts hypothécaires assurés au cours de la période selon le prix d'achat (%)"},{"$f":"IFERROR(VLOOKUP(G6049,Translation!$A:$C,3,FALSE),G6049)","v":"362073.4"},{"$f":"IFERROR(VLOOKUP(H6049,Translation!$A:$C,3,FALSE),H6049)","v":"Ontario"}]
[15,"T2 2018","PROPRIÉTAIRES-OCCUPANTS, À L’UNITÉ","Alberta",331007.89234492806,"Prêts hypothécaires assurés au cours de la période selon le prix d'achat (%)","331007.9","Alberta",{"$f":"IFERROR(VLOOKUP(A6052,Translation!$A:$C,3,FALSE),A6052)","v":15},{"$f":"IFERROR(VLOOKUP(B6052,Translation!$A:$C,3,FALSE),B6052)","v":"T2 2018"},{"$f":"IFERROR(VLOOKUP(C6052,Translation!$A:$C,3,FALSE),C6052)","v":"PROPRIÉTAIRES-OCCUPANTS, À L’UNITÉ"},{"$f":"IFERROR(VLOOKUP(D6052,Translation!$A:$C,3,FALSE),D6052)","v":"Alberta"},{"$f":"IFERROR(VLOOKUP(E6052,Translation!$A:$C,3,FALSE),E6052)","v":331007.89234492806},{"$f":"IFERROR(VLOOKUP(F6052,Translation!$A:$C,3,FALSE),F6052)","v":"Prêts hypothécaires assurés au cours de la période selon le prix d'achat (%)"},{"$f":"IFERROR(VLOOKUP(G6052,Translation!$A:$C,3,FALSE),G6052)","v":"331007.9"},{"$f":"IFERROR(VLOOKUP(H6052,Translation!$A:$C,3,FALSE),H6052)","v":"Alberta"}]
[15,"T1 2017","PROPRIÉTAIRES-OCCUPANTS, À L’UNITÉ","Plus de 850 000 $ à 1 000 000 $",0.50377833753148604,"Prêts hypothécaires assurés au cours de la période selon le prix d'achat (%)","0.5","Plus de 850 000 $ à 1 000 000 $",{"$f":"IFERROR(VLOOKUP(A6055,Translation!$A:$C,3,FALSE),A6055)","v":15},{"$f":"IFERROR(VLOOKUP(B6055,Translation!$A:$C,3,FALSE),B6055)","v":"T1 2017"},{"$f":"IFERROR(VLOOKUP(C6055,Translation!$A:$C,3,FALSE),C6055)","v":"PROPRIÉTAIRES-OCCUPANTS, À L’UNITÉ"},{"$f":"IFERROR(VLOOKUP(D6055,Translation!$A:$C,3,FALSE),D6055)","v":"Plus de 850 000 $ à 1 000 000 $"},{"$f":"IFERROR(VLOOKUP(E6055,Translation!$A:$C,3,FALSE),E6055)","v":0.50377833753148604},{"$f":"IFERROR(VLOOKUP(F6055,Translation!$A:$C,3,FALSE),F6055)","v":"Prêts hypothécaires assurés au cours de la période selon le prix d'achat (%)"},{"$f":"IFERROR(VLOOKUP(G6055,Translation!$A:$C,3,FALSE),G6055)","v":"0.5"},{"$f":"IFERROR(VLOOKUP(H6055,Translation!$A:$C,3,FALSE),H6055)","v":"Plus de 850 000 $ à 1 000 000 $"}]
[15,"Q2 2016","PROPRIÉTAIRES-OCCUPANTS, À L’UNITÉ","Plus de 850 000 $ à 1 000 000 $",0.33589251439539342,"Prêts hypothécaires assurés au cours de la période selon le prix d'achat (%)","0.3","Plus de 850 000 $ à 1 000 000 $",{"$f":"IFERROR(VLOOKUP(A6057,Translation!$A:$C,3,FALSE),A6057)","v":15},{"$f":"IFERROR(VLOOKUP(B6057,Translation!$A:$C,3,FALSE),B6057)","v":"Q2 2016"},{"$f":"IFERROR(VLOOKUP(C6057,Translation!$A:$C,3,FALSE),C6057)","v":"PROPRIÉTAIRES-OCCUPANTS, À L’UNITÉ"},{"$f":"IFERROR(VLOOKUP(D6057,Translation!$A:$C,3,FALSE),D6057)","v":"Plus de 850 000 $ à 1 000 000 $"},{"$f":"IFERROR(VLOOKUP(E6057,Translation!$A:$C,3,FALSE),E6057)","v":0.33589251439539342},{"$f":"IFERROR(VLOOKUP(F6057,Translation!$A:$C,3,FALSE),F6057)","v":"Prêts hypothécaires assurés au cours de la période selon le prix d'achat (%)"},{"$f":"IFERROR(VLOOKUP(G6057,Translation!$A:$C,3,FALSE),G6057)","v":"0.3"},{"$f":"IFERROR(VLOOKUP(H6057,Translation!$A:$C,3,FALSE),H6057)","v":"Plus de 850 000 $ à 1 000 000 $"}]
[15,"T3 2017","PROPRIÉTAIRES-OCCUPANTS, À L’UNITÉ","Plus de 850 000 $ à 1 000 000 $",0.49153468050245774,"Prêts hypothécaires assurés au cours de la période selon le prix d'achat (%)","0.5","Plus de 850 000 $ à 1 000 000 $",{"$f":"IFERROR(VLOOKUP(A6060,Translation!$A:$C,3,FALSE),A6060)","v":15},{"$f":"IFERROR(VLOOKUP(B6060,Translation!$A:$C,3,FALSE),B6060)","v":"T3 2017"},{"$f":"IFERROR(VLOOKUP(C6060,Translation!$A:$C,3,FALSE),C6060)","v":"PROPRIÉTAIRES-OCCUPANTS, À L’UNITÉ"},{"$f":"IFERROR(VLOOKUP(D6060,Translation!$A:$C,3,FALSE),D6060)","v":"Plus de 850 000 $ à 1 000 000 $"},{"$f":"IFERROR(VLOOKUP(E6060,Translation!$A:$C,3,FALSE),E6060)","v":0.49153468050245774},{"$f":"IFERROR(VLOOKUP(F6060,Translation!$A:$C,3,FALSE),F6060)","v":"Prêts hypothécaires assurés au cours de la période selon le prix d'achat (%)"},{"$f":"IFERROR(VLOOKUP(G6060,Translation!$A:$C,3,FALSE),G6060)","v":"0.5"},{"$f":"IFERROR(VLOOKUP(H6060,Translation!$A:$C,3,FALSE),H6060)","v":"Plus de 850 000 $ à 1 000 000 $"}]
[15,"T1 2017","PROPRIÉTAIRES-OCCUPANTS, À L’UNITÉ","Plus de 600 000 $ à 850 000 $",4.0849852152009642,"Prêts hypothécaires assurés au cours de la période selon le prix d'achat (%)","4.1","Plus de 600 000 $ à 850 000 $",{"$f":"IFERROR(VLOOKUP(A6063,Translation!$A:$C,3,FALSE),A6063)","v":15},{"$f":"IFERROR(VLOOKUP(B6063,Translation!$A:$C,3,FALSE),B6063)","v":"T1 2017"},{"$f":"IFERROR(VLOOKUP(C6063,Translation!$A:$C,3,FALSE),C6063)","v":"PROPRIÉTAIRES-OCCUPANTS, À L’UNITÉ"},{"$f":"IFERROR(VLOOKUP(D6063,Translation!$A:$C,3,FALSE),D6063)","v":"Plus de 600 000 $ à 850 000 $"},{"$f":"IFERROR(VLOOKUP(E6063,Translation!$A:$C,3,FALSE),E6063)","v":4.0849852152009642},{"$f":"IFERROR(VLOOKUP(F6063,Translation!$A:$C,3,FALSE),F6063)","v":"Prêts hypothécaires assurés au cours de la période selon le prix d'achat (%)"},{"$f":"IFERROR(VLOOKUP(G6063,Translation!$A:$C,3,FALSE),G6063)","v":"4.1"},{"$f":"IFERROR(VLOOKUP(H6063,Translation!$A:$C,3,FALSE),H6063)","v":"Plus de 600 000 $ à 850 000 $"}]
[15,"Q2 2016","PROPRIÉTAIRES-OCCUPANTS, À L’UNITÉ","Plus de 600 000 $ à 850 000 $",3.062292793578782,"Prêts hypothécaires assurés au cours de la période selon le prix d'achat (%)","3.1","Plus de 600 000 $ à 850 000 $",{"$f":"IFERROR(VLOOKUP(A6065,Translation!$A:$C,3,FALSE),A6065)","v":15},{"$f":"IFERROR(VLOOKUP(B6065,Translation!$A:$C,3,FALSE),B6065)","v":"Q2 2016"},{"$f":"IFERROR(VLOOKUP(C6065,Translation!$A:$C,3,FALSE),C6065)","v":"PROPRIÉTAIRES-OCCUPANTS, À L’UNITÉ"},{"$f":"IFERROR(VLOOKUP(D6065,Translation!$A:$C,3,FALSE),D6065)","v":"Plus de 600 000 $ à 850 000 $"},{"$f":"IFERROR(VLOOKUP(E6065,Translation!$A:$C,3,FALSE),E6065)","v":3.062292793578782},{"$f":"IFERROR(VLOOKUP(F6065,Translation!$A:$C,3,FALSE),F6065)","v":"Prêts hypothécaires assurés au cours de la période selon le prix d'achat (%)"},{"$f":"IFERROR(VLOOKUP(G6065,Translation!$A:$C,3,FALSE),G6065)","v":"3.1"},{"$f":"IFERROR(VLOOKUP(H6065,Translation!$A:$C,3,FALSE),H6065)","v":"Plus de 600 000 $ à 850 000 $"}]
[15,"T2 2017","PROPRIÉTAIRES-OCCUPANTS, À L’UNITÉ","Plus de 600 000 $ à 850 000 $",3.6080093460483056,"Prêts hypothécaires assurés au cours de la période selon le prix d'achat (%)","3.6","Plus de 600 000 $ à 850 000 $",{"$f":"IFERROR(VLOOKUP(A6066,Translation!$A:$C,3,FALSE),A6066)","v":15},{"$f":"IFERROR(VLOOKUP(B6066,Translation!$A:$C,3,FALSE),B6066)","v":"T2 2017"},{"$f":"IFERROR(VLOOKUP(C6066,Translation!$A:$C,3,FALSE),C6066)","v":"PROPRIÉTAIRES-OCCUPANTS, À L’UNITÉ"},{"$f":"IFERROR(VLOOKUP(D6066,Translation!$A:$C,3,FALSE),D6066)","v":"Plus de 600 000 $ à 850 000 $"},{"$f":"IFERROR(VLOOKUP(E6066,Translation!$A:$C,3,FALSE),E6066)","v":3.6080093460483056},{"$f":"IFERROR(VLOOKUP(F6066,Translation!$A:$C,3,FALSE),F6066)","v":"Prêts hypothécaires assurés au cours de la période selon le prix d'achat (%)"},{"$f":"IFERROR(VLOOKUP(G6066,Translation!$A:$C,3,FALSE),G6066)","v":"3.6"},{"$f":"IFERROR(VLOOKUP(H6066,Translation!$A:$C,3,FALSE),H6066)","v":"Plus de 600 000 $ à 850 000 $"}]
[15,"T3 2017","PROPRIÉTAIRES-OCCUPANTS, À L’UNITÉ","Plus de 600 000 $ à 850 000 $",4.684750288245648,"Prêts hypothécaires assurés au cours de la période selon le prix d'achat (%)","4.7","Plus de 600 000 $ à 850 000 $",{"$f":"IFERROR(VLOOKUP(A6068,Translation!$A:$C,3,FALSE),A6068)","v":15},{"$f":"IFERROR(VLOOKUP(B6068,Translation!$A:$C,3,FALSE),B6068)","v":"T3 2017"},{"$f":"IFERROR(VLOOKUP(C6068,Translation!$A:$C,3,FALSE),C6068)","v":"PROPRIÉTAIRES-OCCUPANTS, À L’UNITÉ"},{"$f":"IFERROR(VLOOKUP(D6068,Translation!$A:$C,3,FALSE),D6068)","v":"Plus de 600 000 $ à 850 000 $"},{"$f":"IFERROR(VLOOKUP(E6068,Translation!$A:$C,3,FALSE),E6068)","v":4.684750288245648},{"$f":"IFERROR(VLOOKUP(F6068,Translation!$A:$C,3,FALSE),F6068)","v":"Prêts hypothécaires assurés au cours de la période selon le prix d'achat (%)"},{"$f":"IFERROR(VLOOKUP(G6068,Translation!$A:$C,3,FALSE),G6068)","v":"4.7"},{"$f":"IFERROR(VLOOKUP(H6068,Translation!$A:$C,3,FALSE),H6068)","v":"Plus de 600 000 $ à 850 000 $"}]
[15,"T1 2017","PROPRIÉTAIRES-OCCUPANTS, À L’UNITÉ","Plus de 500 000 $ à 600 000 $",5.6565545942394051,"Prêts hypothécaires assurés au cours de la période selon le prix d'achat (%)","5.7","Plus de 500 000 $ à 600 000 $",{"$f":"IFERROR(VLOOKUP(A6071,Translation!$A:$C,3,FALSE),A6071)","v":15},{"$f":"IFERROR(VLOOKUP(B6071,Translation!$A:$C,3,FALSE),B6071)","v":"T1 2017"},{"$f":"IFERROR(VLOOKUP(C6071,Translation!$A:$C,3,FALSE),C6071)","v":"PROPRIÉTAIRES-OCCUPANTS, À L’UNITÉ"},{"$f":"IFERROR(VLOOKUP(D6071,Translation!$A:$C,3,FALSE),D6071)","v":"Plus de 500 000 $ à 600 000 $"},{"$f":"IFERROR(VLOOKUP(E6071,Translation!$A:$C,3,FALSE),E6071)","v":5.6565545942394051},{"$f":"IFERROR(VLOOKUP(F6071,Translation!$A:$C,3,FALSE),F6071)","v":"Prêts hypothécaires assurés au cours de la période selon le prix d'achat (%)"},{"$f":"IFERROR(VLOOKUP(G6071,Translation!$A:$C,3,FALSE),G6071)","v":"5.7"},{"$f":"IFERROR(VLOOKUP(H6071,Translation!$A:$C,3,FALSE),H6071)","v":"Plus de 500 000 $ à 600 000 $"}]
[15,"T2 2017","PROPRIÉTAIRES-OCCUPANTS, À L’UNITÉ","Plus de 500 000 $ à 600 000 $",4.4665416904393176,"Prêts hypothécaires assurés au cours de la période selon le prix d'achat (%)","4.5","Plus de 500 000 $ à 600 000 $",{"$f":"IFERROR(VLOOKUP(A6074,Translation!$A:$C,3,FALSE),A6074)","v":15},{"$f":"IFERROR(VLOOKUP(B6074,Translation!$A:$C,3,FALSE),B6074)","v":"T2 2017"},{"$f":"IFERROR(VLOOKUP(C6074,Translation!$A:$C,3,FALSE),C6074)","v":"PROPRIÉTAIRES-OCCUPANTS, À L’UNITÉ"},{"$f":"IFERROR(VLOOKUP(D6074,Translation!$A:$C,3,FALSE),D6074)","v":"Plus de 500 000 $ à 600 000 $"},{"$f":"IFERROR(VLOOKUP(E6074,Translation!$A:$C,3,FALSE),E6074)","v":4.4665416904393176},{"$f":"IFERROR(VLOOKUP(F6074,Translation!$A:$C,3,FALSE),F6074)","v":"Prêts hypothécaires assurés au cours de la période selon le prix d'achat (%)"},{"$f":"IFERROR(VLOOKUP(G6074,Translation!$A:$C,3,FALSE),G6074)","v":"4.5"},{"$f":"IFERROR(VLOOKUP(H6074,Translation!$A:$C,3,FALSE),H6074)","v":"Plus de 500 000 $ à 600 000 $"}]
[15,"T3 2017","PROPRIÉTAIRES-OCCUPANTS, À L’UNITÉ","Plus de 500 000 $ à 600 000 $",5.1641483099702654,"Prêts hypothécaires assurés au cours de la période selon le prix d'achat (%)","5.2","Plus de 500 000 $ à 600 000 $",{"$f":"IFERROR(VLOOKUP(A6076,Translation!$A:$C,3,FALSE),A6076)","v":15},{"$f":"IFERROR(VLOOKUP(B6076,Translation!$A:$C,3,FALSE),B6076)","v":"T3 2017"},{"$f":"IFERROR(VLOOKUP(C6076,Translation!$A:$C,3,FALSE),C6076)","v":"PROPRIÉTAIRES-OCCUPANTS, À L’UNITÉ"},{"$f":"IFERROR(VLOOKUP(D6076,Translation!$A:$C,3,FALSE),D6076)","v":"Plus de 500 000 $ à 600 000 $"},{"$f":"IFERROR(VLOOKUP(E6076,Translation!$A:$C,3,FALSE),E6076)","v":5.1641483099702654},{"$f":"IFERROR(VLOOKUP(F6076,Translation!$A:$C,3,FALSE),F6076)","v":"Prêts hypothécaires assurés au cours de la période selon le prix d'achat (%)"},{"$f":"IFERROR(VLOOKUP(G6076,Translation!$A:$C,3,FALSE),G6076)","v":"5.2"},{"$f":"IFERROR(VLOOKUP(H6076,Translation!$A:$C,3,FALSE),H6076)","v":"Plus de 500 000 $ à 600 000 $"}]
[15,"T1 2017","PROPRIÉTAIRES-OCCUPANTS, À L’UNITÉ","Plus de 400 000 $ à 500 000 $",10.562917533676487,"Prêts hypothécaires assurés au cours de la période selon le prix d'achat (%)","10.6","Plus de 400 000 $ à 500 000 $",{"$f":"IFERROR(VLOOKUP(A6079,Translation!$A:$C,3,FALSE),A6079)","v":15},{"$f":"IFERROR(VLOOKUP(B6079,Translation!$A:$C,3,FALSE),B6079)","v":"T1 2017"},{"$f":"IFERROR(VLOOKUP(C6079,Translation!$A:$C,3,FALSE),C6079)","v":"PROPRIÉTAIRES-OCCUPANTS, À L’UNITÉ"},{"$f":"IFERROR(VLOOKUP(D6079,Translation!$A:$C,3,FALSE),D6079)","v":"Plus de 400 000 $ à 500 000 $"},{"$f":"IFERROR(VLOOKUP(E6079,Translation!$A:$C,3,FALSE),E6079)","v":10.562917533676487},{"$f":"IFERROR(VLOOKUP(F6079,Translation!$A:$C,3,FALSE),F6079)","v":"Prêts hypothécaires assurés au cours de la période selon le prix d'achat (%)"},{"$f":"IFERROR(VLOOKUP(G6079,Translation!$A:$C,3,FALSE),G6079)","v":"10.6"},{"$f":"IFERROR(VLOOKUP(H6079,Translation!$A:$C,3,FALSE),H6079)","v":"Plus de 400 000 $ à 500 000 $"}]
[15,"T2 2017","PROPRIÉTAIRES-OCCUPANTS, À L’UNITÉ","Plus de 400 000 $ à 500 000 $",8.9792702475072659,"Prêts hypothécaires assurés au cours de la période selon le prix d'achat (%)","9.0","Plus de 400 000 $ à 500 000 $",{"$f":"IFERROR(VLOOKUP(A6082,Translation!$A:$C,3,FALSE),A6082)","v":15},{"$f":"IFERROR(VLOOKUP(B6082,Translation!$A:$C,3,FALSE),B6082)","v":"T2 2017"},{"$f":"IFERROR(VLOOKUP(C6082,Translation!$A:$C,3,FALSE),C6082)","v":"PROPRIÉTAIRES-OCCUPANTS, À L’UNITÉ"},{"$f":"IFERROR(VLOOKUP(D6082,Translation!$A:$C,3,FALSE),D6082)","v":"Plus de 400 000 $ à 500 000 $"},{"$f":"IFERROR(VLOOKUP(E6082,Translation!$A:$C,3,FALSE),E6082)","v":8.9792702475072659},{"$f":"IFERROR(VLOOKUP(F6082,Translation!$A:$C,3,FALSE),F6082)","v":"Prêts hypothécaires assurés au cours de la période selon le prix d'achat (%)"},{"$f":"IFERROR(VLOOKUP(G6082,Translation!$A:$C,3,FALSE),G6082)","v":"9.0"},{"$f":"IFERROR(VLOOKUP(H6082,Translation!$A:$C,3,FALSE),H6082)","v":"Plus de 400 000 $ à 500 000 $"}]
[15,"T3 2017","PROPRIÉTAIRES-OCCUPANTS, À L’UNITÉ","Plus de 400 000 $ à 500 000 $",10.640815583469871,"Prêts hypothécaires assurés au cours de la période selon le prix d'achat (%)","10.6","Plus de 400 000 $ à 500 000 $",{"$f":"IFERROR(VLOOKUP(A6084,Translation!$A:$C,3,FALSE),A6084)","v":15},{"$f":"IFERROR(VLOOKUP(B6084,Translation!$A:$C,3,FALSE),B6084)","v":"T3 2017"},{"$f":"IFERROR(VLOOKUP(C6084,Translation!$A:$C,3,FALSE),C6084)","v":"PROPRIÉTAIRES-OCCUPANTS, À L’UNITÉ"},{"$f":"IFERROR(VLOOKUP(D6084,Translation!$A:$C,3,FALSE),D6084)","v":"Plus de 400 000 $ à 500 000 $"},{"$f":"IFERROR(VLOOKUP(E6084,Translation!$A:$C,3,FALSE),E6084)","v":10.640815583469871},{"$f":"IFERROR(VLOOKUP(F6084,Translation!$A:$C,3,FALSE),F6084)","v":"Prêts hypothécaires assurés au cours de la période selon le prix d'achat (%)"},{"$f":"IFERROR(VLOOKUP(G6084,Translation!$A:$C,3,FALSE),G6084)","v":"10.6"},{"$f":"IFERROR(VLOOKUP(H6084,Translation!$A:$C,3,FALSE),H6084)","v":"Plus de 400 000 $ à 500 000 $"}]
[15,"Q4 2016","PROPRIÉTAIRES-OCCUPANTS, À L’UNITÉ","Plus de 400 000 $ à 500 000 $",11.070177557676049,"Prêts hypothécaires assurés au cours de la période selon le prix d'achat (%)","11.1","Plus de 400 000 $ à 500 000 $",{"$f":"IFERROR(VLOOKUP(A6085,Translation!$A:$C,3,FALSE),A6085)","v":15},{"$f":"IFERROR(VLOOKUP(B6085,Translation!$A:$C,3,FALSE),B6085)","v":"Q4 2016"},{"$f":"IFERROR(VLOOKUP(C6085,Translation!$A:$C,3,FALSE),C6085)","v":"PROPRIÉTAIRES-OCCUPANTS, À L’UNITÉ"},{"$f":"IFERROR(VLOOKUP(D6085,Translation!$A:$C,3,FALSE),D6085)","v":"Plus de 400 000 $ à 500 000 $"},{"$f":"IFERROR(VLOOKUP(E6085,Translation!$A:$C,3,FALSE),E6085)","v":11.070177557676049},{"$f":"IFERROR(VLOOKUP(F6085,Translation!$A:$C,3,FALSE),F6085)","v":"Prêts hypothécaires assurés au cours de la période selon le prix d'achat (%)"},{"$f":"IFERROR(VLOOKUP(G6085,Translation!$A:$C,3,FALSE),G6085)","v":"11.1"},{"$f":"IFERROR(VLOOKUP(H6085,Translation!$A:$C,3,FALSE),H6085)","v":"Plus de 400 000 $ à 500 000 $"}]
[15,"Q2 2016","PROPRIÉTAIRES-OCCUPANTS, À L’UNITÉ","Plus de 300 000 $ à 400 000 $",18.929942418426101,"Prêts hypothécaires assurés au cours de la période selon le prix d'achat (%)","18.9","Plus de 300 000 $ à 400 000 $",{"$f":"IFERROR(VLOOKUP(A6089,Translation!$A:$C,3,FALSE),A6089)","v":15},{"$f":"IFERROR(VLOOKUP(B6089,Translation!$A:$C,3,FALSE),B6089)","v":"Q2 2016"},{"$f":"IFERROR(VLOOKUP(C6089,Translation!$A:$C,3,FALSE),C6089)","v":"PROPRIÉTAIRES-OCCUPANTS, À L’UNITÉ"},{"$f":"IFERROR(VLOOKUP(D6089,Translation!$A:$C,3,FALSE),D6089)","v":"Plus de 300 000 $ à 400 000 $"},{"$f":"IFERROR(VLOOKUP(E6089,Translation!$A:$C,3,FALSE),E6089)","v":18.929942418426101},{"$f":"IFERROR(VLOOKUP(F6089,Translation!$A:$C,3,FALSE),F6089)","v":"Prêts hypothécaires assurés au cours de la période selon le prix d'achat (%)"},{"$f":"IFERROR(VLOOKUP(G6089,Translation!$A:$C,3,FALSE),G6089)","v":"18.9"},{"$f":"IFERROR(VLOOKUP(H6089,Translation!$A:$C,3,FALSE),H6089)","v":"Plus de 300 000 $ à 400 000 $"}]
[15,"T2 2017","PROPRIÉTAIRES-OCCUPANTS, À L’UNITÉ","Plus de 300 000 $ à 400 000 $",18.909446572662809,"Prêts hypothécaires assurés au cours de la période selon le prix d'achat (%)","18.9","Plus de 300 000 $ à 400 000 $",{"$f":"IFERROR(VLOOKUP(A6090,Translation!$A:$C,3,FALSE),A6090)","v":15},{"$f":"IFERROR(VLOOKUP(B6090,Translation!$A:$C,3,FALSE),B6090)","v":"T2 2017"},{"$f":"IFERROR(VLOOKUP(C6090,Translation!$A:$C,3,FALSE),C6090)","v":"PROPRIÉTAIRES-OCCUPANTS, À L’UNITÉ"},{"$f":"IFERROR(VLOOKUP(D6090,Translation!$A:$C,3,FALSE),D6090)","v":"Plus de 300 000 $ à 400 000 $"},{"$f":"IFERROR(VLOOKUP(E6090,Translation!$A:$C,3,FALSE),E6090)","v":18.909446572662809},{"$f":"IFERROR(VLOOKUP(F6090,Translation!$A:$C,3,FALSE),F6090)","v":"Prêts hypothécaires assurés au cours de la période selon le prix d'achat (%)"},{"$f":"IFERROR(VLOOKUP(G6090,Translation!$A:$C,3,FALSE),G6090)","v":"18.9"},{"$f":"IFERROR(VLOOKUP(H6090,Translation!$A:$C,3,FALSE),H6090)","v":"Plus de 300 000 $ à 400 000 $"}]
[15,"Q4 2016","PROPRIÉTAIRES-OCCUPANTS, À L’UNITÉ","Plus de 300 000 $ à 400 000 $",20.989853847082976,"Prêts hypothécaires assurés au cours de la période selon le prix d'achat (%)","21.0","Plus de 300 000 $ à 400 000 $",{"$f":"IFERROR(VLOOKUP(A6093,Translation!$A:$C,3,FALSE),A6093)","v":15},{"$f":"IFERROR(VLOOKUP(B6093,Translation!$A:$C,3,FALSE),B6093)","v":"Q4 2016"},{"$f":"IFERROR(VLOOKUP(C6093,Translation!$A:$C,3,FALSE),C6093)","v":"PROPRIÉTAIRES-OCCUPANTS, À L’UNITÉ"},{"$f":"IFERROR(VLOOKUP(D6093,Translation!$A:$C,3,FALSE),D6093)","v":"Plus de 300 000 $ à 400 000 $"},{"$f":"IFERROR(VLOOKUP(E6093,Translation!$A:$C,3,FALSE),E6093)","v":20.989853847082976},{"$f":"IFERROR(VLOOKUP(F6093,Translation!$A:$C,3,FALSE),F6093)","v":"Prêts hypothécaires assurés au cours de la période selon le prix d'achat (%)"},{"$f":"IFERROR(VLOOKUP(G6093,Translation!$A:$C,3,FALSE),G6093)","v":"21.0"},{"$f":"IFERROR(VLOOKUP(H6093,Translation!$A:$C,3,FALSE),H6093)","v":"Plus de 300 000 $ à 400 000 $"}]
[15,"T1 2017","PROPRIÉTAIRES-OCCUPANTS, À L’UNITÉ","Plus de 200 000 $ à 300 000 $",27.549008870879419,"Prêts hypothécaires assurés au cours de la période selon le prix d'achat (%)","27.5","Plus de 200 000 $ à 300 000 $",{"$f":"IFERROR(VLOOKUP(A6095,Translation!$A:$C,3,FALSE),A6095)","v":15},{"$f":"IFERROR(VLOOKUP(B6095,Translation!$A:$C,3,FALSE),B6095)","v":"T1 2017"},{"$f":"IFERROR(VLOOKUP(C6095,Translation!$A:$C,3,FALSE),C6095)","v":"PROPRIÉTAIRES-OCCUPANTS, À L’UNITÉ"},{"$f":"IFERROR(VLOOKUP(D6095,Translation!$A:$C,3,FALSE),D6095)","v":"Plus de 200 000 $ à 300 000 $"},{"$f":"IFERROR(VLOOKUP(E6095,Translation!$A:$C,3,FALSE),E6095)","v":27.549008870879419},{"$f":"IFERROR(VLOOKUP(F6095,Translation!$A:$C,3,FALSE),F6095)","v":"Prêts hypothécaires assurés au cours de la période selon le prix d'achat (%)"},{"$f":"IFERROR(VLOOKUP(G6095,Translation!$A:$C,3,FALSE),G6095)","v":"27.5"},{"$f":"IFERROR(VLOOKUP(H6095,Translation!$A:$C,3,FALSE),H6095)","v":"Plus de 200 000 $ à 300 000 $"}]
[15,"Q3 2016","PROPRIÉTAIRES-OCCUPANTS, À L’UNITÉ","Plus de 200 000 $ à 300 000 $",28.416381153854996,"Prêts hypothécaires assurés au cours de la période selon le prix d'achat (%)","28.4","Plus de 200 000 $ à 300 000 $",{"$f":"IFERROR(VLOOKUP(A6099,Translation!$A:$C,3,FALSE),A6099)","v":15},{"$f":"IFERROR(VLOOKUP(B6099,Translation!$A:$C,3,FALSE),B6099)","v":"Q3 2016"},{"$f":"IFERROR(VLOOKUP(C6099,Translation!$A:$C,3,FALSE),C6099)","v":"PROPRIÉTAIRES-OCCUPANTS, À L’UNITÉ"},{"$f":"IFERROR(VLOOKUP(D6099,Translation!$A:$C,3,FALSE),D6099)","v":"Plus de 200 000 $ à 300 000 $"},{"$f":"IFERROR(VLOOKUP(E6099,Translation!$A:$C,3,FALSE),E6099)","v":28.416381153854996},{"$f":"IFERROR(VLOOKUP(F6099,Translation!$A:$C,3,FALSE),F6099)","v":"Prêts hypothécaires assurés au cours de la période selon le prix d'achat (%)"},{"$f":"IFERROR(VLOOKUP(G6099,Translation!$A:$C,3,FALSE),G6099)","v":"28.4"},{"$f":"IFERROR(VLOOKUP(H6099,Translation!$A:$C,3,FALSE),H6099)","v":"Plus de 200 000 $ à 300 000 $"}]
[15,"T3 2017","PROPRIÉTAIRES-OCCUPANTS, À L’UNITÉ","Plus de 200 000 $ à 300 000 $",28.090296741307121,"Prêts hypothécaires assurés au cours de la période selon le prix d'achat (%)","28.1","Plus de 200 000 $ à 300 000 $",{"$f":"IFERROR(VLOOKUP(A6100,Translation!$A:$C,3,FALSE),A6100)","v":15},{"$f":"IFERROR(VLOOKUP(B6100,Translation!$A:$C,3,FALSE),B6100)","v":"T3 2017"},{"$f":"IFERROR(VLOOKUP(C6100,Translation!$A:$C,3,FALSE),C6100)","v":"PROPRIÉTAIRES-OCCUPANTS, À L’UNITÉ"},{"$f":"IFERROR(VLOOKUP(D6100,Translation!$A:$C,3,FALSE),D6100)","v":"Plus de 200 000 $ à 300 000 $"},{"$f":"IFERROR(VLOOKUP(E6100,Translation!$A:$C,3,FALSE),E6100)","v":28.090296741307121},{"$f":"IFERROR(VLOOKUP(F6100,Translation!$A:$C,3,FALSE),F6100)","v":"Prêts hypothécaires assurés au cours de la période selon le prix d'achat (%)"},{"$f":"IFERROR(VLOOKUP(G6100,Translation!$A:$C,3,FALSE),G6100)","v":"28.1"},{"$f":"IFERROR(VLOOKUP(H6100,Translation!$A:$C,3,FALSE),H6100)","v":"Plus de 200 000 $ à 300 000 $"}]
[15,"T1 2017","PROPRIÉTAIRES-OCCUPANTS, À L’UNITÉ","200 000 $ ou moins",30.390975796736395,"Prêts hypothécaires assurés au cours de la période selon le prix d'achat (%)","30.4","200 000 $ ou moins",{"$f":"IFERROR(VLOOKUP(A6103,Translation!$A:$C,3,FALSE),A6103)","v":15},{"$f":"IFERROR(VLOOKUP(B6103,Translation!$A:$C,3,FALSE),B6103)","v":"T1 2017"},{"$f":"IFERROR(VLOOKUP(C6103,Translation!$A:$C,3,FALSE),C6103)","v":"PROPRIÉTAIRES-OCCUPANTS, À L’UNITÉ"},{"$f":"IFERROR(VLOOKUP(D6103,Translation!$A:$C,3,FALSE),D6103)","v":"200 000 $ ou moins"},{"$f":"IFERROR(VLOOKUP(E6103,Translation!$A:$C,3,FALSE),E6103)","v":30.390975796736395},{"$f":"IFERROR(VLOOKUP(F6103,Translation!$A:$C,3,FALSE),F6103)","v":"Prêts hypothécaires assurés au cours de la période selon le prix d'achat (%)"},{"$f":"IFERROR(VLOOKUP(G6103,Translation!$A:$C,3,FALSE),G6103)","v":"30.4"},{"$f":"IFERROR(VLOOKUP(H6103,Translation!$A:$C,3,FALSE),H6103)","v":"200 000 $ ou moins"}]
[15,"T1 2018","PROPRIÉTAIRES-OCCUPANTS, À L’UNITÉ","200 000 $ ou moins",30.643841651456992,"Prêts hypothécaires assurés au cours de la période selon le prix d'achat (%)","30.6","200 000 $ ou moins",{"$f":"IFERROR(VLOOKUP(A6104,Translation!$A:$C,3,FALSE),A6104)","v":15},{"$f":"IFERROR(VLOOKUP(B6104,Translation!$A:$C,3,FALSE),B6104)","v":"T1 2018"},{"$f":"IFERROR(VLOOKUP(C6104,Translation!$A:$C,3,FALSE),C6104)","v":"PROPRIÉTAIRES-OCCUPANTS, À L’UNITÉ"},{"$f":"IFERROR(VLOOKUP(D6104,Translation!$A:$C,3,FALSE),D6104)","v":"200 000 $ ou moins"},{"$f":"IFERROR(VLOOKUP(E6104,Translation!$A:$C,3,FALSE),E6104)","v":30.643841651456992},{"$f":"IFERROR(VLOOKUP(F6104,Translation!$A:$C,3,FALSE),F6104)","v":"Prêts hypothécaires assurés au cours de la période selon le prix d'achat (%)"},{"$f":"IFERROR(VLOOKUP(G6104,Translation!$A:$C,3,FALSE),G6104)","v":"30.6"},{"$f":"IFERROR(VLOOKUP(H6104,Translation!$A:$C,3,FALSE),H6104)","v":"200 000 $ ou moins"}]
[15,"T3 2017","PROPRIÉTAIRES-OCCUPANTS, À L’UNITÉ","200 000 $ ou moins",30.387159415013048,"Prêts hypothécaires assurés au cours de la période selon le prix d'achat (%)","30.4","200 000 $ ou moins",{"$f":"IFERROR(VLOOKUP(A6108,Translation!$A:$C,3,FALSE),A6108)","v":15},{"$f":"IFERROR(VLOOKUP(B6108,Translation!$A:$C,3,FALSE),B6108)","v":"T3 2017"},{"$f":"IFERROR(VLOOKUP(C6108,Translation!$A:$C,3,FALSE),C6108)","v":"PROPRIÉTAIRES-OCCUPANTS, À L’UNITÉ"},{"$f":"IFERROR(VLOOKUP(D6108,Translation!$A:$C,3,FALSE),D6108)","v":"200 000 $ ou moins"},{"$f":"IFERROR(VLOOKUP(E6108,Translation!$A:$C,3,FALSE),E6108)","v":30.387159415013048},{"$f":"IFERROR(VLOOKUP(F6108,Translation!$A:$C,3,FALSE),F6108)","v":"Prêts hypothécaires assurés au cours de la période selon le prix d'achat (%)"},{"$f":"IFERROR(VLOOKUP(G6108,Translation!$A:$C,3,FALSE),G6108)","v":"30.4"},{"$f":"IFERROR(VLOOKUP(H6108,Translation!$A:$C,3,FALSE),H6108)","v":"200 000 $ ou moins"}]
[15,"T4 2017","PROPRIÉTAIRES-OCCUPANTS, À L’UNITÉ","200 000 $ ou moins",32.128240109140513,"Prêts hypothécaires assurés au cours de la période selon le prix d'achat (%)","32.1","200 000 $ ou moins",{"$f":"IFERROR(VLOOKUP(A6110,Translation!$A:$C,3,FALSE),A6110)","v":15},{"$f":"IFERROR(VLOOKUP(B6110,Translation!$A:$C,3,FALSE),B6110)","v":"T4 2017"},{"$f":"IFERROR(VLOOKUP(C6110,Translation!$A:$C,3,FALSE),C6110)","v":"PROPRIÉTAIRES-OCCUPANTS, À L’UNITÉ"},{"$f":"IFERROR(VLOOKUP(D6110,Translation!$A:$C,3,FALSE),D6110)","v":"200 000 $ ou moins"},{"$f":"IFERROR(VLOOKUP(E6110,Translation!$A:$C,3,FALSE),E6110)","v":32.128240109140513},{"$f":"IFERROR(VLOOKUP(F6110,Translation!$A:$C,3,FALSE),F6110)","v":"Prêts hypothécaires assurés au cours de la période selon le prix d'achat (%)"},{"$f":"IFERROR(VLOOKUP(G6110,Translation!$A:$C,3,FALSE),G6110)","v":"32.1"},{"$f":"IFERROR(VLOOKUP(H6110,Translation!$A:$C,3,FALSE),H6110)","v":"200 000 $ ou moins"}]
[15,"Q2 2016","PROPRIÉTAIRES-OCCUPANTS, À L’UNITÉ","Prix d'achat moyen ($)",262497.21876352263,"Prêts hypothécaires assurés au cours de la période selon le prix d'achat (%)","262497.2","Prix d'achat moyen ($)",{"$f":"IFERROR(VLOOKUP(A6113,Translation!$A:$C,3,FALSE),A6113)","v":15},{"$f":"IFERROR(VLOOKUP(B6113,Translation!$A:$C,3,FALSE),B6113)","v":"Q2 2016"},{"$f":"IFERROR(VLOOKUP(C6113,Translation!$A:$C,3,FALSE),C6113)","v":"PROPRIÉTAIRES-OCCUPANTS, À L’UNITÉ"},{"$f":"IFERROR(VLOOKUP(D6113,Translation!$A:$C,3,FALSE),D6113)","v":"Prix d'achat moyen ($)"},{"$f":"IFERROR(VLOOKUP(E6113,Translation!$A:$C,3,FALSE),E6113)","v":262497.21876352263},{"$f":"IFERROR(VLOOKUP(F6113,Translation!$A:$C,3,FALSE),F6113)","v":"Prêts hypothécaires assurés au cours de la période selon le prix d'achat (%)"},{"$f":"IFERROR(VLOOKUP(G6113,Translation!$A:$C,3,FALSE),G6113)","v":"262497.2"},{"$f":"IFERROR(VLOOKUP(H6113,Translation!$A:$C,3,FALSE),H6113)","v":"Prix d'achat moyen ($)"}]
[15,"T2 2017","PROPRIÉTAIRES-OCCUPANTS, À L’UNITÉ","Prix d'achat moyen ($)",264540.90224305168,"Prêts hypothécaires assurés au cours de la période selon le prix d'achat (%)","264540.9","Prix d'achat moyen ($)",{"$f":"IFERROR(VLOOKUP(A6114,Translation!$A:$C,3,FALSE),A6114)","v":15},{"$f":"IFERROR(VLOOKUP(B6114,Translation!$A:$C,3,FALSE),B6114)","v":"T2 2017"},{"$f":"IFERROR(VLOOKUP(C6114,Translation!$A:$C,3,FALSE),C6114)","v":"PROPRIÉTAIRES-OCCUPANTS, À L’UNITÉ"},{"$f":"IFERROR(VLOOKUP(D6114,Translation!$A:$C,3,FALSE),D6114)","v":"Prix d'achat moyen ($)"},{"$f":"IFERROR(VLOOKUP(E6114,Translation!$A:$C,3,FALSE),E6114)","v":264540.90224305168},{"$f":"IFERROR(VLOOKUP(F6114,Translation!$A:$C,3,FALSE),F6114)","v":"Prêts hypothécaires assurés au cours de la période selon le prix d'achat (%)"},{"$f":"IFERROR(VLOOKUP(G6114,Translation!$A:$C,3,FALSE),G6114)","v":"264540.9"},{"$f":"IFERROR(VLOOKUP(H6114,Translation!$A:$C,3,FALSE),H6114)","v":"Prix d'achat moyen ($)"}]
[15,"T4 2017","PROPRIÉTAIRES-OCCUPANTS, À L’UNITÉ","Prix d'achat moyen ($)",276098.53192921879,"Prêts hypothécaires assurés au cours de la période selon le prix d'achat (%)","276098.5","Prix d'achat moyen ($)",{"$f":"IFERROR(VLOOKUP(A6118,Translation!$A:$C,3,FALSE),A6118)","v":15},{"$f":"IFERROR(VLOOKUP(B6118,Translation!$A:$C,3,FALSE),B6118)","v":"T4 2017"},{"$f":"IFERROR(VLOOKUP(C6118,Translation!$A:$C,3,FALSE),C6118)","v":"PROPRIÉTAIRES-OCCUPANTS, À L’UNITÉ"},{"$f":"IFERROR(VLOOKUP(D6118,Translation!$A:$C,3,FALSE),D6118)","v":"Prix d'achat moyen ($)"},{"$f":"IFERROR(VLOOKUP(E6118,Translation!$A:$C,3,FALSE),E6118)","v":276098.53192921879},{"$f":"IFERROR(VLOOKUP(F6118,Translation!$A:$C,3,FALSE),F6118)","v":"Prêts hypothécaires assurés au cours de la période selon le prix d'achat (%)"},{"$f":"IFERROR(VLOOKUP(G6118,Translation!$A:$C,3,FALSE),G6118)","v":"276098.5"},{"$f":"IFERROR(VLOOKUP(H6118,Translation!$A:$C,3,FALSE),H6118)","v":"Prix d'achat moyen ($)"}]
[15,"T1 2017","PROPRIÉTAIRES-OCCUPANTS, À L’UNITÉ","Terre-Neuve-et-Labrador",225530.48166051661,"Prêts hypothécaires assurés au cours de la période selon le prix d'achat (%)","225530.5","Terre-Neuve-et-Labrador",{"$f":"IFERROR(VLOOKUP(A6119,Translation!$A:$C,3,FALSE),A6119)","v":15},{"$f":"IFERROR(VLOOKUP(B6119,Translation!$A:$C,3,FALSE),B6119)","v":"T1 2017"},{"$f":"IFERROR(VLOOKUP(C6119,Translation!$A:$C,3,FALSE),C6119)","v":"PROPRIÉTAIRES-OCCUPANTS, À L’UNITÉ"},{"$f":"IFERROR(VLOOKUP(D6119,Translation!$A:$C,3,FALSE),D6119)","v":"Terre-Neuve-et-Labrador"},{"$f":"IFERROR(VLOOKUP(E6119,Translation!$A:$C,3,FALSE),E6119)","v":225530.48166051661},{"$f":"IFERROR(VLOOKUP(F6119,Translation!$A:$C,3,FALSE),F6119)","v":"Prêts hypothécaires assurés au cours de la période selon le prix d'achat (%)"},{"$f":"IFERROR(VLOOKUP(G6119,Translation!$A:$C,3,FALSE),G6119)","v":"225530.5"},{"$f":"IFERROR(VLOOKUP(H6119,Translation!$A:$C,3,FALSE),H6119)","v":"Terre-Neuve-et-Labrador"}]
[15,"T1 2017","PROPRIÉTAIRES-OCCUPANTS, À L’UNITÉ","Nouvelle-Écosse",176384.97617107941,"Prêts hypothécaires assurés au cours de la période selon le prix d'achat (%)","176385.0","Nouvelle-Écosse",{"$f":"IFERROR(VLOOKUP(A6121,Translation!$A:$C,3,FALSE),A6121)","v":15},{"$f":"IFERROR(VLOOKUP(B6121,Translation!$A:$C,3,FALSE),B6121)","v":"T1 2017"},{"$f":"IFERROR(VLOOKUP(C6121,Translation!$A:$C,3,FALSE),C6121)","v":"PROPRIÉTAIRES-OCCUPANTS, À L’UNITÉ"},{"$f":"IFERROR(VLOOKUP(D6121,Translation!$A:$C,3,FALSE),D6121)","v":"Nouvelle-Écosse"},{"$f":"IFERROR(VLOOKUP(E6121,Translation!$A:$C,3,FALSE),E6121)","v":176384.97617107941},{"$f":"IFERROR(VLOOKUP(F6121,Translation!$A:$C,3,FALSE),F6121)","v":"Prêts hypothécaires assurés au cours de la période selon le prix d'achat (%)"},{"$f":"IFERROR(VLOOKUP(G6121,Translation!$A:$C,3,FALSE),G6121)","v":"176385.0"},{"$f":"IFERROR(VLOOKUP(H6121,Translation!$A:$C,3,FALSE),H6121)","v":"Nouvelle-Écosse"}]
[15,"T1 2017","PROPRIÉTAIRES-OCCUPANTS, À L’UNITÉ","Ontario",344373.14494673099,"Prêts hypothécaires assurés au cours de la période selon le prix d'achat (%)","344373.1","Ontario",{"$f":"IFERROR(VLOOKUP(A6124,Translation!$A:$C,3,FALSE),A6124)","v":15},{"$f":"IFERROR(VLOOKUP(B6124,Translation!$A:$C,3,FALSE),B6124)","v":"T1 2017"},{"$f":"IFERROR(VLOOKUP(C6124,Translation!$A:$C,3,FALSE),C6124)","v":"PROPRIÉTAIRES-OCCUPANTS, À L’UNITÉ"},{"$f":"IFERROR(VLOOKUP(D6124,Translation!$A:$C,3,FALSE),D6124)","v":"Ontario"},{"$f":"IFERROR(VLOOKUP(E6124,Translation!$A:$C,3,FALSE),E6124)","v":344373.14494673099},{"$f":"IFERROR(VLOOKUP(F6124,Translation!$A:$C,3,FALSE),F6124)","v":"Prêts hypothécaires assurés au cours de la période selon le prix d'achat (%)"},{"$f":"IFERROR(VLOOKUP(G6124,Translation!$A:$C,3,FALSE),G6124)","v":"344373.1"},{"$f":"IFERROR(VLOOKUP(H6124,Translation!$A:$C,3,FALSE),H6124)","v":"Ontario"}]
[15,"T1 2017","PROPRIÉTAIRES-OCCUPANTS, À L’UNITÉ","Alberta",338967.3671973095,"Prêts hypothécaires assurés au cours de la période selon le prix d'achat (%)","338967.4","Alberta",{"$f":"IFERROR(VLOOKUP(A6127,Translation!$A:$C,3,FALSE),A6127)","v":15},{"$f":"IFERROR(VLOOKUP(B6127,Translation!$A:$C,3,FALSE),B6127)","v":"T1 2017"},{"$f":"IFERROR(VLOOKUP(C6127,Translation!$A:$C,3,FALSE),C6127)","v":"PROPRIÉTAIRES-OCCUPANTS, À L’UNITÉ"},{"$f":"IFERROR(VLOOKUP(D6127,Translation!$A:$C,3,FALSE),D6127)","v":"Alberta"},{"$f":"IFERROR(VLOOKUP(E6127,Translation!$A:$C,3,FALSE),E6127)","v":338967.3671973095},{"$f":"IFERROR(VLOOKUP(F6127,Translation!$A:$C,3,FALSE),F6127)","v":"Prêts hypothécaires assurés au cours de la période selon le prix d'achat (%)"},{"$f":"IFERROR(VLOOKUP(G6127,Translation!$A:$C,3,FALSE),G6127)","v":"338967.4"},{"$f":"IFERROR(VLOOKUP(H6127,Translation!$A:$C,3,FALSE),H6127)","v":"Alberta"}]
[15,"T1 2017","PROPRIÉTAIRES-OCCUPANTS, À L’UNITÉ","Territoires",329136.30444444442,"Prêts hypothécaires assurés au cours de la période selon le prix d'achat (%)","329136.3","Territoires",{"$f":"IFERROR(VLOOKUP(A6129,Translation!$A:$C,3,FALSE),A6129)","v":15},{"$f":"IFERROR(VLOOKUP(B6129,Translation!$A:$C,3,FALSE),B6129)","v":"T1 2017"},{"$f":"IFERROR(VLOOKUP(C6129,Translation!$A:$C,3,FALSE),C6129)","v":"PROPRIÉTAIRES-OCCUPANTS, À L’UNITÉ"},{"$f":"IFERROR(VLOOKUP(D6129,Translation!$A:$C,3,FALSE),D6129)","v":"Territoires"},{"$f":"IFERROR(VLOOKUP(E6129,Translation!$A:$C,3,FALSE),E6129)","v":329136.30444444442},{"$f":"IFERROR(VLOOKUP(F6129,Translation!$A:$C,3,FALSE),F6129)","v":"Prêts hypothécaires assurés au cours de la période selon le prix d'achat (%)"},{"$f":"IFERROR(VLOOKUP(G6129,Translation!$A:$C,3,FALSE),G6129)","v":"329136.3"},{"$f":"IFERROR(VLOOKUP(H6129,Translation!$A:$C,3,FALSE),H6129)","v":"Territoires"}]
[15,"T1 2018","PROPRIÉTAIRES-OCCUPANTS, À L’UNITÉ","Nouvelle-Écosse",181825.24735294119,"Prêts hypothécaires assurés au cours de la période selon le prix d'achat (%)","181825.2","Nouvelle-Écosse",{"$f":"IFERROR(VLOOKUP(A6132,Translation!$A:$C,3,FALSE),A6132)","v":15},{"$f":"IFERROR(VLOOKUP(B6132,Translation!$A:$C,3,FALSE),B6132)","v":"T1 2018"},{"$f":"IFERROR(VLOOKUP(C6132,Translation!$A:$C,3,FALSE),C6132)","v":"PROPRIÉTAIRES-OCCUPANTS, À L’UNITÉ"},{"$f":"IFERROR(VLOOKUP(D6132,Translation!$A:$C,3,FALSE),D6132)","v":"Nouvelle-Écosse"},{"$f":"IFERROR(VLOOKUP(E6132,Translation!$A:$C,3,FALSE),E6132)","v":181825.24735294119},{"$f":"IFERROR(VLOOKUP(F6132,Translation!$A:$C,3,FALSE),F6132)","v":"Prêts hypothécaires assurés au cours de la période selon le prix d'achat (%)"},{"$f":"IFERROR(VLOOKUP(G6132,Translation!$A:$C,3,FALSE),G6132)","v":"181825.2"},{"$f":"IFERROR(VLOOKUP(H6132,Translation!$A:$C,3,FALSE),H6132)","v":"Nouvelle-Écosse"}]
[15,"T1 2018","PROPRIÉTAIRES-OCCUPANTS, À L’UNITÉ","Ontario",366253.6288513515,"Prêts hypothécaires assurés au cours de la période selon le prix d'achat (%)","366253.6","Ontario",{"$f":"IFERROR(VLOOKUP(A6135,Translation!$A:$C,3,FALSE),A6135)","v":15},{"$f":"IFERROR(VLOOKUP(B6135,Translation!$A:$C,3,FALSE),B6135)","v":"T1 2018"},{"$f":"IFERROR(VLOOKUP(C6135,Translation!$A:$C,3,FALSE),C6135)","v":"PROPRIÉTAIRES-OCCUPANTS, À L’UNITÉ"},{"$f":"IFERROR(VLOOKUP(D6135,Translation!$A:$C,3,FALSE),D6135)","v":"Ontario"},{"$f":"IFERROR(VLOOKUP(E6135,Translation!$A:$C,3,FALSE),E6135)","v":366253.6288513515},{"$f":"IFERROR(VLOOKUP(F6135,Translation!$A:$C,3,FALSE),F6135)","v":"Prêts hypothécaires assurés au cours de la période selon le prix d'achat (%)"},{"$f":"IFERROR(VLOOKUP(G6135,Translation!$A:$C,3,FALSE),G6135)","v":"366253.6"},{"$f":"IFERROR(VLOOKUP(H6135,Translation!$A:$C,3,FALSE),H6135)","v":"Ontario"}]
[15,"T1 2018","PROPRIÉTAIRES-OCCUPANTS, À L’UNITÉ","Saskatchewan",238547.78144712432,"Prêts hypothécaires assurés au cours de la période selon le prix d'achat (%)","238547.8","Saskatchewan",{"$f":"IFERROR(VLOOKUP(A6137,Translation!$A:$C,3,FALSE),A6137)","v":15},{"$f":"IFERROR(VLOOKUP(B6137,Translation!$A:$C,3,FALSE),B6137)","v":"T1 2018"},{"$f":"IFERROR(VLOOKUP(C6137,Translation!$A:$C,3,FALSE),C6137)","v":"PROPRIÉTAIRES-OCCUPANTS, À L’UNITÉ"},{"$f":"IFERROR(VLOOKUP(D6137,Translation!$A:$C,3,FALSE),D6137)","v":"Saskatchewan"},{"$f":"IFERROR(VLOOKUP(E6137,Translation!$A:$C,3,FALSE),E6137)","v":238547.78144712432},{"$f":"IFERROR(VLOOKUP(F6137,Translation!$A:$C,3,FALSE),F6137)","v":"Prêts hypothécaires assurés au cours de la période selon le prix d'achat (%)"},{"$f":"IFERROR(VLOOKUP(G6137,Translation!$A:$C,3,FALSE),G6137)","v":"238547.8"},{"$f":"IFERROR(VLOOKUP(H6137,Translation!$A:$C,3,FALSE),H6137)","v":"Saskatchewan"}]
[15,"T1 2018","PROPRIÉTAIRES-OCCUPANTS, À L’UNITÉ","Alberta",337316.79384321207,"Prêts hypothécaires assurés au cours de la période selon le prix d'achat (%)","337316.8","Alberta",{"$f":"IFERROR(VLOOKUP(A6138,Translation!$A:$C,3,FALSE),A6138)","v":15},{"$f":"IFERROR(VLOOKUP(B6138,Translation!$A:$C,3,FALSE),B6138)","v":"T1 2018"},{"$f":"IFERROR(VLOOKUP(C6138,Translation!$A:$C,3,FALSE),C6138)","v":"PROPRIÉTAIRES-OCCUPANTS, À L’UNITÉ"},{"$f":"IFERROR(VLOOKUP(D6138,Translation!$A:$C,3,FALSE),D6138)","v":"Alberta"},{"$f":"IFERROR(VLOOKUP(E6138,Translation!$A:$C,3,FALSE),E6138)","v":337316.79384321207},{"$f":"IFERROR(VLOOKUP(F6138,Translation!$A:$C,3,FALSE),F6138)","v":"Prêts hypothécaires assurés au cours de la période selon le prix d'achat (%)"},{"$f":"IFERROR(VLOOKUP(G6138,Translation!$A:$C,3,FALSE),G6138)","v":"337316.8"},{"$f":"IFERROR(VLOOKUP(H6138,Translation!$A:$C,3,FALSE),H6138)","v":"Alberta"}]
[15,"T1 2018","PROPRIÉTAIRES-OCCUPANTS, À L’UNITÉ","Territoires",317991.88259740255,"Prêts hypothécaires assurés au cours de la période selon le prix d'achat (%)","317991.9","Territoires",{"$f":"IFERROR(VLOOKUP(A6140,Translation!$A:$C,3,FALSE),A6140)","v":15},{"$f":"IFERROR(VLOOKUP(B6140,Translation!$A:$C,3,FALSE),B6140)","v":"T1 2018"},{"$f":"IFERROR(VLOOKUP(C6140,Translation!$A:$C,3,FALSE),C6140)","v":"PROPRIÉTAIRES-OCCUPANTS, À L’UNITÉ"},{"$f":"IFERROR(VLOOKUP(D6140,Translation!$A:$C,3,FALSE),D6140)","v":"Territoires"},{"$f":"IFERROR(VLOOKUP(E6140,Translation!$A:$C,3,FALSE),E6140)","v":317991.88259740255},{"$f":"IFERROR(VLOOKUP(F6140,Translation!$A:$C,3,FALSE),F6140)","v":"Prêts hypothécaires assurés au cours de la période selon le prix d'achat (%)"},{"$f":"IFERROR(VLOOKUP(G6140,Translation!$A:$C,3,FALSE),G6140)","v":"317991.9"},{"$f":"IFERROR(VLOOKUP(H6140,Translation!$A:$C,3,FALSE),H6140)","v":"Territoires"}]
[15,"Q2 2016","PROPRIÉTAIRES-OCCUPANTS, À L’UNITÉ","Nouvelle-Écosse",169963.04407294822,"Prêts hypothécaires assurés au cours de la période selon le prix d'achat (%)","169963.0","Nouvelle-Écosse",{"$f":"IFERROR(VLOOKUP(A6143,Translation!$A:$C,3,FALSE),A6143)","v":15},{"$f":"IFERROR(VLOOKUP(B6143,Translation!$A:$C,3,FALSE),B6143)","v":"Q2 2016"},{"$f":"IFERROR(VLOOKUP(C6143,Translation!$A:$C,3,FALSE),C6143)","v":"PROPRIÉTAIRES-OCCUPANTS, À L’UNITÉ"},{"$f":"IFERROR(VLOOKUP(D6143,Translation!$A:$C,3,FALSE),D6143)","v":"Nouvelle-Écosse"},{"$f":"IFERROR(VLOOKUP(E6143,Translation!$A:$C,3,FALSE),E6143)","v":169963.04407294822},{"$f":"IFERROR(VLOOKUP(F6143,Translation!$A:$C,3,FALSE),F6143)","v":"Prêts hypothécaires assurés au cours de la période selon le prix d'achat (%)"},{"$f":"IFERROR(VLOOKUP(G6143,Translation!$A:$C,3,FALSE),G6143)","v":"169963.0"},{"$f":"IFERROR(VLOOKUP(H6143,Translation!$A:$C,3,FALSE),H6143)","v":"Nouvelle-Écosse"}]
[15,"Q2 2016","PROPRIÉTAIRES-OCCUPANTS, À L’UNITÉ","Ontario",314559.67911694758,"Prêts hypothécaires assurés au cours de la période selon le prix d'achat (%)","314559.7","Ontario",{"$f":"IFERROR(VLOOKUP(A6146,Translation!$A:$C,3,FALSE),A6146)","v":15},{"$f":"IFERROR(VLOOKUP(B6146,Translation!$A:$C,3,FALSE),B6146)","v":"Q2 2016"},{"$f":"IFERROR(VLOOKUP(C6146,Translation!$A:$C,3,FALSE),C6146)","v":"PROPRIÉTAIRES-OCCUPANTS, À L’UNITÉ"},{"$f":"IFERROR(VLOOKUP(D6146,Translation!$A:$C,3,FALSE),D6146)","v":"Ontario"},{"$f":"IFERROR(VLOOKUP(E6146,Translation!$A:$C,3,FALSE),E6146)","v":314559.67911694758},{"$f":"IFERROR(VLOOKUP(F6146,Translation!$A:$C,3,FALSE),F6146)","v":"Prêts hypothécaires assurés au cours de la période selon le prix d'achat (%)"},{"$f":"IFERROR(VLOOKUP(G6146,Translation!$A:$C,3,FALSE),G6146)","v":"314559.7"},{"$f":"IFERROR(VLOOKUP(H6146,Translation!$A:$C,3,FALSE),H6146)","v":"Ontario"}]
[15,"Q2 2016","PROPRIÉTAIRES-OCCUPANTS, À L’UNITÉ","Saskatchewan",256074.79789670673,"Prêts hypothécaires assurés au cours de la période selon le prix d'achat (%)","256074.8","Saskatchewan",{"$f":"IFERROR(VLOOKUP(A6148,Translation!$A:$C,3,FALSE),A6148)","v":15},{"$f":"IFERROR(VLOOKUP(B6148,Translation!$A:$C,3,FALSE),B6148)","v":"Q2 2016"},{"$f":"IFERROR(VLOOKUP(C6148,Translation!$A:$C,3,FALSE),C6148)","v":"PROPRIÉTAIRES-OCCUPANTS, À L’UNITÉ"},{"$f":"IFERROR(VLOOKUP(D6148,Translation!$A:$C,3,FALSE),D6148)","v":"Saskatchewan"},{"$f":"IFERROR(VLOOKUP(E6148,Translation!$A:$C,3,FALSE),E6148)","v":256074.79789670673},{"$f":"IFERROR(VLOOKUP(F6148,Translation!$A:$C,3,FALSE),F6148)","v":"Prêts hypothécaires assurés au cours de la période selon le prix d'achat (%)"},{"$f":"IFERROR(VLOOKUP(G6148,Translation!$A:$C,3,FALSE),G6148)","v":"256074.8"},{"$f":"IFERROR(VLOOKUP(H6148,Translation!$A:$C,3,FALSE),H6148)","v":"Saskatchewan"}]
[15,"Q2 2016","PROPRIÉTAIRES-OCCUPANTS, À L’UNITÉ","Territoires",344329.97781609191,"Prêts hypothécaires assurés au cours de la période selon le prix d'achat (%)","344330.0","Territoires",{"$f":"IFERROR(VLOOKUP(A6151,Translation!$A:$C,3,FALSE),A6151)","v":15},{"$f":"IFERROR(VLOOKUP(B6151,Translation!$A:$C,3,FALSE),B6151)","v":"Q2 2016"},{"$f":"IFERROR(VLOOKUP(C6151,Translation!$A:$C,3,FALSE),C6151)","v":"PROPRIÉTAIRES-OCCUPANTS, À L’UNITÉ"},{"$f":"IFERROR(VLOOKUP(D6151,Translation!$A:$C,3,FALSE),D6151)","v":"Territoires"},{"$f":"IFERROR(VLOOKUP(E6151,Translation!$A:$C,3,FALSE),E6151)","v":344329.97781609191},{"$f":"IFERROR(VLOOKUP(F6151,Translation!$A:$C,3,FALSE),F6151)","v":"Prêts hypothécaires assurés au cours de la période selon le prix d'achat (%)"},{"$f":"IFERROR(VLOOKUP(G6151,Translation!$A:$C,3,FALSE),G6151)","v":"344330.0"},{"$f":"IFERROR(VLOOKUP(H6151,Translation!$A:$C,3,FALSE),H6151)","v":"Territoires"}]
[15,"T2 2017","PROPRIÉTAIRES-OCCUPANTS, À L’UNITÉ","Nouvelle-Écosse",180688.87306997745,"Prêts hypothécaires assurés au cours de la période selon le prix d'achat (%)","180688.9","Nouvelle-Écosse",{"$f":"IFERROR(VLOOKUP(A6154,Translation!$A:$C,3,FALSE),A6154)","v":15},{"$f":"IFERROR(VLOOKUP(B6154,Translation!$A:$C,3,FALSE),B6154)","v":"T2 2017"},{"$f":"IFERROR(VLOOKUP(C6154,Translation!$A:$C,3,FALSE),C6154)","v":"PROPRIÉTAIRES-OCCUPANTS, À L’UNITÉ"},{"$f":"IFERROR(VLOOKUP(D6154,Translation!$A:$C,3,FALSE),D6154)","v":"Nouvelle-Écosse"},{"$f":"IFERROR(VLOOKUP(E6154,Translation!$A:$C,3,FALSE),E6154)","v":180688.87306997745},{"$f":"IFERROR(VLOOKUP(F6154,Translation!$A:$C,3,FALSE),F6154)","v":"Prêts hypothécaires assurés au cours de la période selon le prix d'achat (%)"},{"$f":"IFERROR(VLOOKUP(G6154,Translation!$A:$C,3,FALSE),G6154)","v":"180688.9"},{"$f":"IFERROR(VLOOKUP(H6154,Translation!$A:$C,3,FALSE),H6154)","v":"Nouvelle-Écosse"}]
[15,"T2 2017","PROPRIÉTAIRES-OCCUPANTS, À L’UNITÉ","Québec",211043.1173735816,"Prêts hypothécaires assurés au cours de la période selon le prix d'achat (%)","211043.1","Québec",{"$f":"IFERROR(VLOOKUP(A6156,Translation!$A:$C,3,FALSE),A6156)","v":15},{"$f":"IFERROR(VLOOKUP(B6156,Translation!$A:$C,3,FALSE),B6156)","v":"T2 2017"},{"$f":"IFERROR(VLOOKUP(C6156,Translation!$A:$C,3,FALSE),C6156)","v":"PROPRIÉTAIRES-OCCUPANTS, À L’UNITÉ"},{"$f":"IFERROR(VLOOKUP(D6156,Translation!$A:$C,3,FALSE),D6156)","v":"Québec"},{"$f":"IFERROR(VLOOKUP(E6156,Translation!$A:$C,3,FALSE),E6156)","v":211043.1173735816},{"$f":"IFERROR(VLOOKUP(F6156,Translation!$A:$C,3,FALSE),F6156)","v":"Prêts hypothécaires assurés au cours de la période selon le prix d'achat (%)"},{"$f":"IFERROR(VLOOKUP(G6156,Translation!$A:$C,3,FALSE),G6156)","v":"211043.1"},{"$f":"IFERROR(VLOOKUP(H6156,Translation!$A:$C,3,FALSE),H6156)","v":"Québec"}]
[15,"T2 2017","PROPRIÉTAIRES-OCCUPANTS, À L’UNITÉ","Ontario",345519.5726343015,"Prêts hypothécaires assurés au cours de la période selon le prix d'achat (%)","345519.6","Ontario",{"$f":"IFERROR(VLOOKUP(A6157,Translation!$A:$C,3,FALSE),A6157)","v":15},{"$f":"IFERROR(VLOOKUP(B6157,Translation!$A:$C,3,FALSE),B6157)","v":"T2 2017"},{"$f":"IFERROR(VLOOKUP(C6157,Translation!$A:$C,3,FALSE),C6157)","v":"PROPRIÉTAIRES-OCCUPANTS, À L’UNITÉ"},{"$f":"IFERROR(VLOOKUP(D6157,Translation!$A:$C,3,FALSE),D6157)","v":"Ontario"},{"$f":"IFERROR(VLOOKUP(E6157,Translation!$A:$C,3,FALSE),E6157)","v":345519.5726343015},{"$f":"IFERROR(VLOOKUP(F6157,Translation!$A:$C,3,FALSE),F6157)","v":"Prêts hypothécaires assurés au cours de la période selon le prix d'achat (%)"},{"$f":"IFERROR(VLOOKUP(G6157,Translation!$A:$C,3,FALSE),G6157)","v":"345519.6"},{"$f":"IFERROR(VLOOKUP(H6157,Translation!$A:$C,3,FALSE),H6157)","v":"Ontario"}]
[15,"T2 2017","PROPRIÉTAIRES-OCCUPANTS, À L’UNITÉ","Saskatchewan",258444.94784200392,"Prêts hypothécaires assurés au cours de la période selon le prix d'achat (%)","258444.9","Saskatchewan",{"$f":"IFERROR(VLOOKUP(A6159,Translation!$A:$C,3,FALSE),A6159)","v":15},{"$f":"IFERROR(VLOOKUP(B6159,Translation!$A:$C,3,FALSE),B6159)","v":"T2 2017"},{"$f":"IFERROR(VLOOKUP(C6159,Translation!$A:$C,3,FALSE),C6159)","v":"PROPRIÉTAIRES-OCCUPANTS, À L’UNITÉ"},{"$f":"IFERROR(VLOOKUP(D6159,Translation!$A:$C,3,FALSE),D6159)","v":"Saskatchewan"},{"$f":"IFERROR(VLOOKUP(E6159,Translation!$A:$C,3,FALSE),E6159)","v":258444.94784200392},{"$f":"IFERROR(VLOOKUP(F6159,Translation!$A:$C,3,FALSE),F6159)","v":"Prêts hypothécaires assurés au cours de la période selon le prix d'achat (%)"},{"$f":"IFERROR(VLOOKUP(G6159,Translation!$A:$C,3,FALSE),G6159)","v":"258444.9"},{"$f":"IFERROR(VLOOKUP(H6159,Translation!$A:$C,3,FALSE),H6159)","v":"Saskatchewan"}]
[15,"T2 2017","PROPRIÉTAIRES-OCCUPANTS, À L’UNITÉ","Territoires",322989.39496688725,"Prêts hypothécaires assurés au cours de la période selon le prix d'achat (%)","322989.4","Territoires",{"$f":"IFERROR(VLOOKUP(A6162,Translation!$A:$C,3,FALSE),A6162)","v":15},{"$f":"IFERROR(VLOOKUP(B6162,Translation!$A:$C,3,FALSE),B6162)","v":"T2 2017"},{"$f":"IFERROR(VLOOKUP(C6162,Translation!$A:$C,3,FALSE),C6162)","v":"PROPRIÉTAIRES-OCCUPANTS, À L’UNITÉ"},{"$f":"IFERROR(VLOOKUP(D6162,Translation!$A:$C,3,FALSE),D6162)","v":"Territoires"},{"$f":"IFERROR(VLOOKUP(E6162,Translation!$A:$C,3,FALSE),E6162)","v":322989.39496688725},{"$f":"IFERROR(VLOOKUP(F6162,Translation!$A:$C,3,FALSE),F6162)","v":"Prêts hypothécaires assurés au cours de la période selon le prix d'achat (%)"},{"$f":"IFERROR(VLOOKUP(G6162,Translation!$A:$C,3,FALSE),G6162)","v":"322989.4"},{"$f":"IFERROR(VLOOKUP(H6162,Translation!$A:$C,3,FALSE),H6162)","v":"Territoires"}]
[15,"Q3 2016","PROPRIÉTAIRES-OCCUPANTS, À L’UNITÉ","Nouvelle-Écosse",185483.591308017,"Prêts hypothécaires assurés au cours de la période selon le prix d'achat (%)","185483.6","Nouvelle-Écosse",{"$f":"IFERROR(VLOOKUP(A6165,Translation!$A:$C,3,FALSE),A6165)","v":15},{"$f":"IFERROR(VLOOKUP(B6165,Translation!$A:$C,3,FALSE),B6165)","v":"Q3 2016"},{"$f":"IFERROR(VLOOKUP(C6165,Translation!$A:$C,3,FALSE),C6165)","v":"PROPRIÉTAIRES-OCCUPANTS, À L’UNITÉ"},{"$f":"IFERROR(VLOOKUP(D6165,Translation!$A:$C,3,FALSE),D6165)","v":"Nouvelle-Écosse"},{"$f":"IFERROR(VLOOKUP(E6165,Translation!$A:$C,3,FALSE),E6165)","v":185483.591308017},{"$f":"IFERROR(VLOOKUP(F6165,Translation!$A:$C,3,FALSE),F6165)","v":"Prêts hypothécaires assurés au cours de la période selon le prix d'achat (%)"},{"$f":"IFERROR(VLOOKUP(G6165,Translation!$A:$C,3,FALSE),G6165)","v":"185483.6"},{"$f":"IFERROR(VLOOKUP(H6165,Translation!$A:$C,3,FALSE),H6165)","v":"Nouvelle-Écosse"}]
[15,"Q3 2016","PROPRIÉTAIRES-OCCUPANTS, À L’UNITÉ","Québec",202866.45328879057,"Prêts hypothécaires assurés au cours de la période selon le prix d'achat (%)","202866.5","Québec",{"$f":"IFERROR(VLOOKUP(A6167,Translation!$A:$C,3,FALSE),A6167)","v":15},{"$f":"IFERROR(VLOOKUP(B6167,Translation!$A:$C,3,FALSE),B6167)","v":"Q3 2016"},{"$f":"IFERROR(VLOOKUP(C6167,Translation!$A:$C,3,FALSE),C6167)","v":"PROPRIÉTAIRES-OCCUPANTS, À L’UNITÉ"},{"$f":"IFERROR(VLOOKUP(D6167,Translation!$A:$C,3,FALSE),D6167)","v":"Québec"},{"$f":"IFERROR(VLOOKUP(E6167,Translation!$A:$C,3,FALSE),E6167)","v":202866.45328879057},{"$f":"IFERROR(VLOOKUP(F6167,Translation!$A:$C,3,FALSE),F6167)","v":"Prêts hypothécaires assurés au cours de la période selon le prix d'achat (%)"},{"$f":"IFERROR(VLOOKUP(G6167,Translation!$A:$C,3,FALSE),G6167)","v":"202866.5"},{"$f":"IFERROR(VLOOKUP(H6167,Translation!$A:$C,3,FALSE),H6167)","v":"Québec"}]
[15,"Q3 2016","PROPRIÉTAIRES-OCCUPANTS, À L’UNITÉ","Saskatchewan",265732.74941292871,"Prêts hypothécaires assurés au cours de la période selon le prix d'achat (%)","265732.7","Saskatchewan",{"$f":"IFERROR(VLOOKUP(A6170,Translation!$A:$C,3,FALSE),A6170)","v":15},{"$f":"IFERROR(VLOOKUP(B6170,Translation!$A:$C,3,FALSE),B6170)","v":"Q3 2016"},{"$f":"IFERROR(VLOOKUP(C6170,Translation!$A:$C,3,FALSE),C6170)","v":"PROPRIÉTAIRES-OCCUPANTS, À L’UNITÉ"},{"$f":"IFERROR(VLOOKUP(D6170,Translation!$A:$C,3,FALSE),D6170)","v":"Saskatchewan"},{"$f":"IFERROR(VLOOKUP(E6170,Translation!$A:$C,3,FALSE),E6170)","v":265732.74941292871},{"$f":"IFERROR(VLOOKUP(F6170,Translation!$A:$C,3,FALSE),F6170)","v":"Prêts hypothécaires assurés au cours de la période selon le prix d'achat (%)"},{"$f":"IFERROR(VLOOKUP(G6170,Translation!$A:$C,3,FALSE),G6170)","v":"265732.7"},{"$f":"IFERROR(VLOOKUP(H6170,Translation!$A:$C,3,FALSE),H6170)","v":"Saskatchewan"}]
[15,"Q3 2016","PROPRIÉTAIRES-OCCUPANTS, À L’UNITÉ","Territoires",343188.86620689655,"Prêts hypothécaires assurés au cours de la période selon le prix d'achat (%)","343188.9","Territoires",{"$f":"IFERROR(VLOOKUP(A6173,Translation!$A:$C,3,FALSE),A6173)","v":15},{"$f":"IFERROR(VLOOKUP(B6173,Translation!$A:$C,3,FALSE),B6173)","v":"Q3 2016"},{"$f":"IFERROR(VLOOKUP(C6173,Translation!$A:$C,3,FALSE),C6173)","v":"PROPRIÉTAIRES-OCCUPANTS, À L’UNITÉ"},{"$f":"IFERROR(VLOOKUP(D6173,Translation!$A:$C,3,FALSE),D6173)","v":"Territoires"},{"$f":"IFERROR(VLOOKUP(E6173,Translation!$A:$C,3,FALSE),E6173)","v":343188.86620689655},{"$f":"IFERROR(VLOOKUP(F6173,Translation!$A:$C,3,FALSE),F6173)","v":"Prêts hypothécaires assurés au cours de la période selon le prix d'achat (%)"},{"$f":"IFERROR(VLOOKUP(G6173,Translation!$A:$C,3,FALSE),G6173)","v":"343188.9"},{"$f":"IFERROR(VLOOKUP(H6173,Translation!$A:$C,3,FALSE),H6173)","v":"Territoires"}]
[15,"T3 2017","PROPRIÉTAIRES-OCCUPANTS, À L’UNITÉ","Île-du-Prince-Édouard",155514.33043478263,"Prêts hypothécaires assurés au cours de la période selon le prix d'achat (%)","155514.3","Île-du-Prince-Édouard",{"$f":"IFERROR(VLOOKUP(A6175,Translation!$A:$C,3,FALSE),A6175)","v":15},{"$f":"IFERROR(VLOOKUP(B6175,Translation!$A:$C,3,FALSE),B6175)","v":"T3 2017"},{"$f":"IFERROR(VLOOKUP(C6175,Translation!$A:$C,3,FALSE),C6175)","v":"PROPRIÉTAIRES-OCCUPANTS, À L’UNITÉ"},{"$f":"IFERROR(VLOOKUP(D6175,Translation!$A:$C,3,FALSE),D6175)","v":"Île-du-Prince-Édouard"},{"$f":"IFERROR(VLOOKUP(E6175,Translation!$A:$C,3,FALSE),E6175)","v":155514.33043478263},{"$f":"IFERROR(VLOOKUP(F6175,Translation!$A:$C,3,FALSE),F6175)","v":"Prêts hypothécaires assurés au cours de la période selon le prix d'achat (%)"},{"$f":"IFERROR(VLOOKUP(G6175,Translation!$A:$C,3,FALSE),G6175)","v":"155514.3"},{"$f":"IFERROR(VLOOKUP(H6175,Translation!$A:$C,3,FALSE),H6175)","v":"Île-du-Prince-Édouard"}]
[15,"T3 2017","PROPRIÉTAIRES-OCCUPANTS, À L’UNITÉ","Nouvelle-Écosse",183809.68517380764,"Prêts hypothécaires assurés au cours de la période selon le prix d'achat (%)","183809.7","Nouvelle-Écosse",{"$f":"IFERROR(VLOOKUP(A6176,Translation!$A:$C,3,FALSE),A6176)","v":15},{"$f":"IFERROR(VLOOKUP(B6176,Translation!$A:$C,3,FALSE),B6176)","v":"T3 2017"},{"$f":"IFERROR(VLOOKUP(C6176,Translation!$A:$C,3,FALSE),C6176)","v":"PROPRIÉTAIRES-OCCUPANTS, À L’UNITÉ"},{"$f":"IFERROR(VLOOKUP(D6176,Translation!$A:$C,3,FALSE),D6176)","v":"Nouvelle-Écosse"},{"$f":"IFERROR(VLOOKUP(E6176,Translation!$A:$C,3,FALSE),E6176)","v":183809.68517380764},{"$f":"IFERROR(VLOOKUP(F6176,Translation!$A:$C,3,FALSE),F6176)","v":"Prêts hypothécaires assurés au cours de la période selon le prix d'achat (%)"},{"$f":"IFERROR(VLOOKUP(G6176,Translation!$A:$C,3,FALSE),G6176)","v":"183809.7"},{"$f":"IFERROR(VLOOKUP(H6176,Translation!$A:$C,3,FALSE),H6176)","v":"Nouvelle-Écosse"}]
[15,"T3 2017","PROPRIÉTAIRES-OCCUPANTS, À L’UNITÉ","Manitoba",253896.70745474499,"Prêts hypothécaires assurés au cours de la période selon le prix d'achat (%)","253896.7","Manitoba",{"$f":"IFERROR(VLOOKUP(A6180,Translation!$A:$C,3,FALSE),A6180)","v":15},{"$f":"IFERROR(VLOOKUP(B6180,Translation!$A:$C,3,FALSE),B6180)","v":"T3 2017"},{"$f":"IFERROR(VLOOKUP(C6180,Translation!$A:$C,3,FALSE),C6180)","v":"PROPRIÉTAIRES-OCCUPANTS, À L’UNITÉ"},{"$f":"IFERROR(VLOOKUP(D6180,Translation!$A:$C,3,FALSE),D6180)","v":"Manitoba"},{"$f":"IFERROR(VLOOKUP(E6180,Translation!$A:$C,3,FALSE),E6180)","v":253896.70745474499},{"$f":"IFERROR(VLOOKUP(F6180,Translation!$A:$C,3,FALSE),F6180)","v":"Prêts hypothécaires assurés au cours de la période selon le prix d'achat (%)"},{"$f":"IFERROR(VLOOKUP(G6180,Translation!$A:$C,3,FALSE),G6180)","v":"253896.7"},{"$f":"IFERROR(VLOOKUP(H6180,Translation!$A:$C,3,FALSE),H6180)","v":"Manitoba"}]
[15,"T3 2017","PROPRIÉTAIRES-OCCUPANTS, À L’UNITÉ","Saskatchewan",261108.55875962359,"Prêts hypothécaires assurés au cours de la période selon le prix d'achat (%)","261108.6","Saskatchewan",{"$f":"IFERROR(VLOOKUP(A6181,Translation!$A:$C,3,FALSE),A6181)","v":15},{"$f":"IFERROR(VLOOKUP(B6181,Translation!$A:$C,3,FALSE),B6181)","v":"T3 2017"},{"$f":"IFERROR(VLOOKUP(C6181,Translation!$A:$C,3,FALSE),C6181)","v":"PROPRIÉTAIRES-OCCUPANTS, À L’UNITÉ"},{"$f":"IFERROR(VLOOKUP(D6181,Translation!$A:$C,3,FALSE),D6181)","v":"Saskatchewan"},{"$f":"IFERROR(VLOOKUP(E6181,Translation!$A:$C,3,FALSE),E6181)","v":261108.55875962359},{"$f":"IFERROR(VLOOKUP(F6181,Translation!$A:$C,3,FALSE),F6181)","v":"Prêts hypothécaires assurés au cours de la période selon le prix d'achat (%)"},{"$f":"IFERROR(VLOOKUP(G6181,Translation!$A:$C,3,FALSE),G6181)","v":"261108.6"},{"$f":"IFERROR(VLOOKUP(H6181,Translation!$A:$C,3,FALSE),H6181)","v":"Saskatchewan"}]
[15,"T3 2017","PROPRIÉTAIRES-OCCUPANTS, À L’UNITÉ","Territoires",333204.25908163254,"Prêts hypothécaires assurés au cours de la période selon le prix d'achat (%)","333204.3","Territoires",{"$f":"IFERROR(VLOOKUP(A6184,Translation!$A:$C,3,FALSE),A6184)","v":15},{"$f":"IFERROR(VLOOKUP(B6184,Translation!$A:$C,3,FALSE),B6184)","v":"T3 2017"},{"$f":"IFERROR(VLOOKUP(C6184,Translation!$A:$C,3,FALSE),C6184)","v":"PROPRIÉTAIRES-OCCUPANTS, À L’UNITÉ"},{"$f":"IFERROR(VLOOKUP(D6184,Translation!$A:$C,3,FALSE),D6184)","v":"Territoires"},{"$f":"IFERROR(VLOOKUP(E6184,Translation!$A:$C,3,FALSE),E6184)","v":333204.25908163254},{"$f":"IFERROR(VLOOKUP(F6184,Translation!$A:$C,3,FALSE),F6184)","v":"Prêts hypothécaires assurés au cours de la période selon le prix d'achat (%)"},{"$f":"IFERROR(VLOOKUP(G6184,Translation!$A:$C,3,FALSE),G6184)","v":"333204.3"},{"$f":"IFERROR(VLOOKUP(H6184,Translation!$A:$C,3,FALSE),H6184)","v":"Territoires"}]
[15,"Q4 2016","PROPRIÉTAIRES-OCCUPANTS, À L’UNITÉ","Île-du-Prince-Édouard",150868.4413366337,"Prêts hypothécaires assurés au cours de la période selon le prix d'achat (%)","150868.4","Île-du-Prince-Édouard",{"$f":"IFERROR(VLOOKUP(A6186,Translation!$A:$C,3,FALSE),A6186)","v":15},{"$f":"IFERROR(VLOOKUP(B6186,Translation!$A:$C,3,FALSE),B6186)","v":"Q4 2016"},{"$f":"IFERROR(VLOOKUP(C6186,Translation!$A:$C,3,FALSE),C6186)","v":"PROPRIÉTAIRES-OCCUPANTS, À L’UNITÉ"},{"$f":"IFERROR(VLOOKUP(D6186,Translation!$A:$C,3,FALSE),D6186)","v":"Île-du-Prince-Édouard"},{"$f":"IFERROR(VLOOKUP(E6186,Translation!$A:$C,3,FALSE),E6186)","v":150868.4413366337},{"$f":"IFERROR(VLOOKUP(F6186,Translation!$A:$C,3,FALSE),F6186)","v":"Prêts hypothécaires assurés au cours de la période selon le prix d'achat (%)"},{"$f":"IFERROR(VLOOKUP(G6186,Translation!$A:$C,3,FALSE),G6186)","v":"150868.4"},{"$f":"IFERROR(VLOOKUP(H6186,Translation!$A:$C,3,FALSE),H6186)","v":"Île-du-Prince-Édouard"}]
[15,"Q4 2016","PROPRIÉTAIRES-OCCUPANTS, À L’UNITÉ","Québec",198633.29560297952,"Prêts hypothécaires assurés au cours de la période selon le prix d'achat (%)","198633.3","Québec",{"$f":"IFERROR(VLOOKUP(A6189,Translation!$A:$C,3,FALSE),A6189)","v":15},{"$f":"IFERROR(VLOOKUP(B6189,Translation!$A:$C,3,FALSE),B6189)","v":"Q4 2016"},{"$f":"IFERROR(VLOOKUP(C6189,Translation!$A:$C,3,FALSE),C6189)","v":"PROPRIÉTAIRES-OCCUPANTS, À L’UNITÉ"},{"$f":"IFERROR(VLOOKUP(D6189,Translation!$A:$C,3,FALSE),D6189)","v":"Québec"},{"$f":"IFERROR(VLOOKUP(E6189,Translation!$A:$C,3,FALSE),E6189)","v":198633.29560297952},{"$f":"IFERROR(VLOOKUP(F6189,Translation!$A:$C,3,FALSE),F6189)","v":"Prêts hypothécaires assurés au cours de la période selon le prix d'achat (%)"},{"$f":"IFERROR(VLOOKUP(G6189,Translation!$A:$C,3,FALSE),G6189)","v":"198633.3"},{"$f":"IFERROR(VLOOKUP(H6189,Translation!$A:$C,3,FALSE),H6189)","v":"Québec"}]
[15,"Q4 2016","PROPRIÉTAIRES-OCCUPANTS, À L’UNITÉ","Manitoba",243691.91232587065,"Prêts hypothécaires assurés au cours de la période selon le prix d'achat (%)","243691.9","Manitoba",{"$f":"IFERROR(VLOOKUP(A6191,Translation!$A:$C,3,FALSE),A6191)","v":15},{"$f":"IFERROR(VLOOKUP(B6191,Translation!$A:$C,3,FALSE),B6191)","v":"Q4 2016"},{"$f":"IFERROR(VLOOKUP(C6191,Translation!$A:$C,3,FALSE),C6191)","v":"PROPRIÉTAIRES-OCCUPANTS, À L’UNITÉ"},{"$f":"IFERROR(VLOOKUP(D6191,Translation!$A:$C,3,FALSE),D6191)","v":"Manitoba"},{"$f":"IFERROR(VLOOKUP(E6191,Translation!$A:$C,3,FALSE),E6191)","v":243691.91232587065},{"$f":"IFERROR(VLOOKUP(F6191,Translation!$A:$C,3,FALSE),F6191)","v":"Prêts hypothécaires assurés au cours de la période selon le prix d'achat (%)"},{"$f":"IFERROR(VLOOKUP(G6191,Translation!$A:$C,3,FALSE),G6191)","v":"243691.9"},{"$f":"IFERROR(VLOOKUP(H6191,Translation!$A:$C,3,FALSE),H6191)","v":"Manitoba"}]
[15,"Q4 2016","PROPRIÉTAIRES-OCCUPANTS, À L’UNITÉ","Colombie-Britannique",331410.28907788714,"Prêts hypothécaires assurés au cours de la période selon le prix d'achat (%)","331410.3","Colombie-Britannique",{"$f":"IFERROR(VLOOKUP(A6194,Translation!$A:$C,3,FALSE),A6194)","v":15},{"$f":"IFERROR(VLOOKUP(B6194,Translation!$A:$C,3,FALSE),B6194)","v":"Q4 2016"},{"$f":"IFERROR(VLOOKUP(C6194,Translation!$A:$C,3,FALSE),C6194)","v":"PROPRIÉTAIRES-OCCUPANTS, À L’UNITÉ"},{"$f":"IFERROR(VLOOKUP(D6194,Translation!$A:$C,3,FALSE),D6194)","v":"Colombie-Britannique"},{"$f":"IFERROR(VLOOKUP(E6194,Translation!$A:$C,3,FALSE),E6194)","v":331410.28907788714},{"$f":"IFERROR(VLOOKUP(F6194,Translation!$A:$C,3,FALSE),F6194)","v":"Prêts hypothécaires assurés au cours de la période selon le prix d'achat (%)"},{"$f":"IFERROR(VLOOKUP(G6194,Translation!$A:$C,3,FALSE),G6194)","v":"331410.3"},{"$f":"IFERROR(VLOOKUP(H6194,Translation!$A:$C,3,FALSE),H6194)","v":"Colombie-Britannique"}]
[15,"Q4 2016","PROPRIÉTAIRES-OCCUPANTS, À L’UNITÉ","Territoires",327115.50131034479,"Prêts hypothécaires assurés au cours de la période selon le prix d'achat (%)","327115.5","Territoires",{"$f":"IFERROR(VLOOKUP(A6195,Translation!$A:$C,3,FALSE),A6195)","v":15},{"$f":"IFERROR(VLOOKUP(B6195,Translation!$A:$C,3,FALSE),B6195)","v":"Q4 2016"},{"$f":"IFERROR(VLOOKUP(C6195,Translation!$A:$C,3,FALSE),C6195)","v":"PROPRIÉTAIRES-OCCUPANTS, À L’UNITÉ"},{"$f":"IFERROR(VLOOKUP(D6195,Translation!$A:$C,3,FALSE),D6195)","v":"Territoires"},{"$f":"IFERROR(VLOOKUP(E6195,Translation!$A:$C,3,FALSE),E6195)","v":327115.50131034479},{"$f":"IFERROR(VLOOKUP(F6195,Translation!$A:$C,3,FALSE),F6195)","v":"Prêts hypothécaires assurés au cours de la période selon le prix d'achat (%)"},{"$f":"IFERROR(VLOOKUP(G6195,Translation!$A:$C,3,FALSE),G6195)","v":"327115.5"},{"$f":"IFERROR(VLOOKUP(H6195,Translation!$A:$C,3,FALSE),H6195)","v":"Territoires"}]
[15,"T4 2017","PROPRIÉTAIRES-OCCUPANTS, À L’UNITÉ","Nouveau-Brunswick",141595.88727727736,"Prêts hypothécaires assurés au cours de la période selon le prix d'achat (%)","141595.9","Nouveau-Brunswick",{"$f":"IFERROR(VLOOKUP(A6199,Translation!$A:$C,3,FALSE),A6199)","v":15},{"$f":"IFERROR(VLOOKUP(B6199,Translation!$A:$C,3,FALSE),B6199)","v":"T4 2017"},{"$f":"IFERROR(VLOOKUP(C6199,Translation!$A:$C,3,FALSE),C6199)","v":"PROPRIÉTAIRES-OCCUPANTS, À L’UNITÉ"},{"$f":"IFERROR(VLOOKUP(D6199,Translation!$A:$C,3,FALSE),D6199)","v":"Nouveau-Brunswick"},{"$f":"IFERROR(VLOOKUP(E6199,Translation!$A:$C,3,FALSE),E6199)","v":141595.88727727736},{"$f":"IFERROR(VLOOKUP(F6199,Translation!$A:$C,3,FALSE),F6199)","v":"Prêts hypothécaires assurés au cours de la période selon le prix d'achat (%)"},{"$f":"IFERROR(VLOOKUP(G6199,Translation!$A:$C,3,FALSE),G6199)","v":"141595.9"},{"$f":"IFERROR(VLOOKUP(H6199,Translation!$A:$C,3,FALSE),H6199)","v":"Nouveau-Brunswick"}]
[15,"T4 2017","PROPRIÉTAIRES-OCCUPANTS, À L’UNITÉ","Québec",206570.60550244289,"Prêts hypothécaires assurés au cours de la période selon le prix d'achat (%)","206570.6","Québec",{"$f":"IFERROR(VLOOKUP(A6200,Translation!$A:$C,3,FALSE),A6200)","v":15},{"$f":"IFERROR(VLOOKUP(B6200,Translation!$A:$C,3,FALSE),B6200)","v":"T4 2017"},{"$f":"IFERROR(VLOOKUP(C6200,Translation!$A:$C,3,FALSE),C6200)","v":"PROPRIÉTAIRES-OCCUPANTS, À L’UNITÉ"},{"$f":"IFERROR(VLOOKUP(D6200,Translation!$A:$C,3,FALSE),D6200)","v":"Québec"},{"$f":"IFERROR(VLOOKUP(E6200,Translation!$A:$C,3,FALSE),E6200)","v":206570.60550244289},{"$f":"IFERROR(VLOOKUP(F6200,Translation!$A:$C,3,FALSE),F6200)","v":"Prêts hypothécaires assurés au cours de la période selon le prix d'achat (%)"},{"$f":"IFERROR(VLOOKUP(G6200,Translation!$A:$C,3,FALSE),G6200)","v":"206570.6"},{"$f":"IFERROR(VLOOKUP(H6200,Translation!$A:$C,3,FALSE),H6200)","v":"Québec"}]
[15,"T4 2017","PROPRIÉTAIRES-OCCUPANTS, À L’UNITÉ","Alberta",341000.29680655902,"Prêts hypothécaires assurés au cours de la période selon le prix d'achat (%)","341000.3","Alberta",{"$f":"IFERROR(VLOOKUP(A6204,Translation!$A:$C,3,FALSE),A6204)","v":15},{"$f":"IFERROR(VLOOKUP(B6204,Translation!$A:$C,3,FALSE),B6204)","v":"T4 2017"},{"$f":"IFERROR(VLOOKUP(C6204,Translation!$A:$C,3,FALSE),C6204)","v":"PROPRIÉTAIRES-OCCUPANTS, À L’UNITÉ"},{"$f":"IFERROR(VLOOKUP(D6204,Translation!$A:$C,3,FALSE),D6204)","v":"Alberta"},{"$f":"IFERROR(VLOOKUP(E6204,Translation!$A:$C,3,FALSE),E6204)","v":341000.29680655902},{"$f":"IFERROR(VLOOKUP(F6204,Translation!$A:$C,3,FALSE),F6204)","v":"Prêts hypothécaires assurés au cours de la période selon le prix d'achat (%)"},{"$f":"IFERROR(VLOOKUP(G6204,Translation!$A:$C,3,FALSE),G6204)","v":"341000.3"},{"$f":"IFERROR(VLOOKUP(H6204,Translation!$A:$C,3,FALSE),H6204)","v":"Alberta"}]
[15,"T4 2017","PROPRIÉTAIRES-OCCUPANTS, À L’UNITÉ","Colombie-Britannique",342109.52987426665,"Prêts hypothécaires assurés au cours de la période selon le prix d'achat (%)","342109.5","Colombie-Britannique",{"$f":"IFERROR(VLOOKUP(A6205,Translation!$A:$C,3,FALSE),A6205)","v":15},{"$f":"IFERROR(VLOOKUP(B6205,Translation!$A:$C,3,FALSE),B6205)","v":"T4 2017"},{"$f":"IFERROR(VLOOKUP(C6205,Translation!$A:$C,3,FALSE),C6205)","v":"PROPRIÉTAIRES-OCCUPANTS, À L’UNITÉ"},{"$f":"IFERROR(VLOOKUP(D6205,Translation!$A:$C,3,FALSE),D6205)","v":"Colombie-Britannique"},{"$f":"IFERROR(VLOOKUP(E6205,Translation!$A:$C,3,FALSE),E6205)","v":342109.52987426665},{"$f":"IFERROR(VLOOKUP(F6205,Translation!$A:$C,3,FALSE),F6205)","v":"Prêts hypothécaires assurés au cours de la période selon le prix d'achat (%)"},{"$f":"IFERROR(VLOOKUP(G6205,Translation!$A:$C,3,FALSE),G6205)","v":"342109.5"},{"$f":"IFERROR(VLOOKUP(H6205,Translation!$A:$C,3,FALSE),H6205)","v":"Colombie-Britannique"}]
[18,"Cumul 2019","PROPRIÉTAIRES-OCCUPANTS, À L’UNITÉ","Rural",12.977758583459297,"Prêts hypothécaires assurés au cours de la période selon le milieu urbain/rural (%)","13.0","Rural",{"$f":"IFERROR(VLOOKUP(A6208,Translation!$A:$C,3,FALSE),A6208)","v":18},{"$f":"IFERROR(VLOOKUP(B6208,Translation!$A:$C,3,FALSE),B6208)","v":"Cumul 2019"},{"$f":"IFERROR(VLOOKUP(C6208,Translation!$A:$C,3,FALSE),C6208)","v":"PROPRIÉTAIRES-OCCUPANTS, À L’UNITÉ"},{"$f":"IFERROR(VLOOKUP(D6208,Translation!$A:$C,3,FALSE),D6208)","v":"Rural"},{"$f":"IFERROR(VLOOKUP(E6208,Translation!$A:$C,3,FALSE),E6208)","v":12.977758583459297},{"$f":"IFERROR(VLOOKUP(F6208,Translation!$A:$C,3,FALSE),F6208)","v":"Prêts hypothécaires assurés au cours de la période selon le milieu urbain/rural (%)"},{"$f":"IFERROR(VLOOKUP(G6208,Translation!$A:$C,3,FALSE),G6208)","v":"13.0"},{"$f":"IFERROR(VLOOKUP(H6208,Translation!$A:$C,3,FALSE),H6208)","v":"Rural"}]
[18,"T1 2020","PROPRIÉTAIRES-OCCUPANTS, À L’UNITÉ","Urbain",86.986620515210021,"Prêts hypothécaires assurés au cours de la période selon le milieu urbain/rural (%)","87.0","Urbain",{"$f":"IFERROR(VLOOKUP(A6210,Translation!$A:$C,3,FALSE),A6210)","v":18},{"$f":"IFERROR(VLOOKUP(B6210,Translation!$A:$C,3,FALSE),B6210)","v":"T1 2020"},{"$f":"IFERROR(VLOOKUP(C6210,Translation!$A:$C,3,FALSE),C6210)","v":"PROPRIÉTAIRES-OCCUPANTS, À L’UNITÉ"},{"$f":"IFERROR(VLOOKUP(D6210,Translation!$A:$C,3,FALSE),D6210)","v":"Urbain"},{"$f":"IFERROR(VLOOKUP(E6210,Translation!$A:$C,3,FALSE),E6210)","v":86.986620515210021},{"$f":"IFERROR(VLOOKUP(F6210,Translation!$A:$C,3,FALSE),F6210)","v":"Prêts hypothécaires assurés au cours de la période selon le milieu urbain/rural (%)"},{"$f":"IFERROR(VLOOKUP(G6210,Translation!$A:$C,3,FALSE),G6210)","v":"87.0"},{"$f":"IFERROR(VLOOKUP(H6210,Translation!$A:$C,3,FALSE),H6210)","v":"Urbain"}]
[18,"Cumul 2019","ASSURANCE DE PORTEFEUILLE","Rural",5.8431728731456252,"Prêts hypothécaires assurés au cours de la période selon le milieu urbain/rural (%)","5.8","Rural",{"$f":"IFERROR(VLOOKUP(A6214,Translation!$A:$C,3,FALSE),A6214)","v":18},{"$f":"IFERROR(VLOOKUP(B6214,Translation!$A:$C,3,FALSE),B6214)","v":"Cumul 2019"},{"$f":"IFERROR(VLOOKUP(C6214,Translation!$A:$C,3,FALSE),C6214)","v":"ASSURANCE DE PORTEFEUILLE"},{"$f":"IFERROR(VLOOKUP(D6214,Translation!$A:$C,3,FALSE),D6214)","v":"Rural"},{"$f":"IFERROR(VLOOKUP(E6214,Translation!$A:$C,3,FALSE),E6214)","v":5.8431728731456252},{"$f":"IFERROR(VLOOKUP(F6214,Translation!$A:$C,3,FALSE),F6214)","v":"Prêts hypothécaires assurés au cours de la période selon le milieu urbain/rural (%)"},{"$f":"IFERROR(VLOOKUP(G6214,Translation!$A:$C,3,FALSE),G6214)","v":"5.8"},{"$f":"IFERROR(VLOOKUP(H6214,Translation!$A:$C,3,FALSE),H6214)","v":"Rural"}]
[18,"Cumul 2020","ASSURANCE DE PORTEFEUILLE","Rural",3.6238749407863575,"Prêts hypothécaires assurés au cours de la période selon le milieu urbain/rural (%)","3.6","Rural",{"$f":"IFERROR(VLOOKUP(A6215,Translation!$A:$C,3,FALSE),A6215)","v":18},{"$f":"IFERROR(VLOOKUP(B6215,Translation!$A:$C,3,FALSE),B6215)","v":"Cumul 2020"},{"$f":"IFERROR(VLOOKUP(C6215,Translation!$A:$C,3,FALSE),C6215)","v":"ASSURANCE DE PORTEFEUILLE"},{"$f":"IFERROR(VLOOKUP(D6215,Translation!$A:$C,3,FALSE),D6215)","v":"Rural"},{"$f":"IFERROR(VLOOKUP(E6215,Translation!$A:$C,3,FALSE),E6215)","v":3.6238749407863575},{"$f":"IFERROR(VLOOKUP(F6215,Translation!$A:$C,3,FALSE),F6215)","v":"Prêts hypothécaires assurés au cours de la période selon le milieu urbain/rural (%)"},{"$f":"IFERROR(VLOOKUP(G6215,Translation!$A:$C,3,FALSE),G6215)","v":"3.6"},{"$f":"IFERROR(VLOOKUP(H6215,Translation!$A:$C,3,FALSE),H6215)","v":"Rural"}]
[18,"Cumul 2020","ASSURANCE DE PORTEFEUILLE","Urbain",96.376125059213635,"Prêts hypothécaires assurés au cours de la période selon le milieu urbain/rural (%)","96.4","Urbain",{"$f":"IFERROR(VLOOKUP(A6218,Translation!$A:$C,3,FALSE),A6218)","v":18},{"$f":"IFERROR(VLOOKUP(B6218,Translation!$A:$C,3,FALSE),B6218)","v":"Cumul 2020"},{"$f":"IFERROR(VLOOKUP(C6218,Translation!$A:$C,3,FALSE),C6218)","v":"ASSURANCE DE PORTEFEUILLE"},{"$f":"IFERROR(VLOOKUP(D6218,Translation!$A:$C,3,FALSE),D6218)","v":"Urbain"},{"$f":"IFERROR(VLOOKUP(E6218,Translation!$A:$C,3,FALSE),E6218)","v":96.376125059213635},{"$f":"IFERROR(VLOOKUP(F6218,Translation!$A:$C,3,FALSE),F6218)","v":"Prêts hypothécaires assurés au cours de la période selon le milieu urbain/rural (%)"},{"$f":"IFERROR(VLOOKUP(G6218,Translation!$A:$C,3,FALSE),G6218)","v":"96.4"},{"$f":"IFERROR(VLOOKUP(H6218,Translation!$A:$C,3,FALSE),H6218)","v":"Urbain"}]
[18,"T1 2020","PROPRIÉTAIRES-OCCUPANTS, À L’UNITÉ","Terre-Neuve-et-Labrador",77.401129943502809,"Prêts hypothécaires assurés au cours de la période selon le milieu urbain/rural (%)","77.4","Terre-Neuve-et-Labrador",{"$f":"IFERROR(VLOOKUP(A6219,Translation!$A:$C,3,FALSE),A6219)","v":18},{"$f":"IFERROR(VLOOKUP(B6219,Translation!$A:$C,3,FALSE),B6219)","v":"T1 2020"},{"$f":"IFERROR(VLOOKUP(C6219,Translation!$A:$C,3,FALSE),C6219)","v":"PROPRIÉTAIRES-OCCUPANTS, À L’UNITÉ"},{"$f":"IFERROR(VLOOKUP(D6219,Translation!$A:$C,3,FALSE),D6219)","v":"Terre-Neuve-et-Labrador"},{"$f":"IFERROR(VLOOKUP(E6219,Translation!$A:$C,3,FALSE),E6219)","v":77.401129943502809},{"$f":"IFERROR(VLOOKUP(F6219,Translation!$A:$C,3,FALSE),F6219)","v":"Prêts hypothécaires assurés au cours de la période selon le milieu urbain/rural (%)"},{"$f":"IFERROR(VLOOKUP(G6219,Translation!$A:$C,3,FALSE),G6219)","v":"77.4"},{"$f":"IFERROR(VLOOKUP(H6219,Translation!$A:$C,3,FALSE),H6219)","v":"Terre-Neuve-et-Labrador"}]
[18,"Cumul 2019","PROPRIÉTAIRES-OCCUPANTS, À L’UNITÉ","Île-du-Prince-Édouard",60.294117647058819,"Prêts hypothécaires assurés au cours de la période selon le milieu urbain/rural (%)","60.3","Île-du-Prince-Édouard",{"$f":"IFERROR(VLOOKUP(A6223,Translation!$A:$C,3,FALSE),A6223)","v":18},{"$f":"IFERROR(VLOOKUP(B6223,Translation!$A:$C,3,FALSE),B6223)","v":"Cumul 2019"},{"$f":"IFERROR(VLOOKUP(C6223,Translation!$A:$C,3,FALSE),C6223)","v":"PROPRIÉTAIRES-OCCUPANTS, À L’UNITÉ"},{"$f":"IFERROR(VLOOKUP(D6223,Translation!$A:$C,3,FALSE),D6223)","v":"Île-du-Prince-Édouard"},{"$f":"IFERROR(VLOOKUP(E6223,Translation!$A:$C,3,FALSE),E6223)","v":60.294117647058819},{"$f":"IFERROR(VLOOKUP(F6223,Translation!$A:$C,3,FALSE),F6223)","v":"Prêts hypothécaires assurés au cours de la période selon le milieu urbain/rural (%)"},{"$f":"IFERROR(VLOOKUP(G6223,Translation!$A:$C,3,FALSE),G6223)","v":"60.3"},{"$f":"IFERROR(VLOOKUP(H6223,Translation!$A:$C,3,FALSE),H6223)","v":"Île-du-Prince-Édouard"}]
[18,"T1 2020","PROPRIÉTAIRES-OCCUPANTS, À L’UNITÉ","Nouvelle-Écosse",87.193973634651613,"Prêts hypothécaires assurés au cours de la période selon le milieu urbain/rural (%)","87.2","Nouvelle-Écosse",{"$f":"IFERROR(VLOOKUP(A6225,Translation!$A:$C,3,FALSE),A6225)","v":18},{"$f":"IFERROR(VLOOKUP(B6225,Translation!$A:$C,3,FALSE),B6225)","v":"T1 2020"},{"$f":"IFERROR(VLOOKUP(C6225,Translation!$A:$C,3,FALSE),C6225)","v":"PROPRIÉTAIRES-OCCUPANTS, À L’UNITÉ"},{"$f":"IFERROR(VLOOKUP(D6225,Translation!$A:$C,3,FALSE),D6225)","v":"Nouvelle-Écosse"},{"$f":"IFERROR(VLOOKUP(E6225,Translation!$A:$C,3,FALSE),E6225)","v":87.193973634651613},{"$f":"IFERROR(VLOOKUP(F6225,Translation!$A:$C,3,FALSE),F6225)","v":"Prêts hypothécaires assurés au cours de la période selon le milieu urbain/rural (%)"},{"$f":"IFERROR(VLOOKUP(G6225,Translation!$A:$C,3,FALSE),G6225)","v":"87.2"},{"$f":"IFERROR(VLOOKUP(H6225,Translation!$A:$C,3,FALSE),H6225)","v":"Nouvelle-Écosse"}]
[18,"T1 2020","PROPRIÉTAIRES-OCCUPANTS, À L’UNITÉ","Nouveau-Brunswick",71.143375680580746,"Prêts hypothécaires assurés au cours de la période selon le milieu urbain/rural (%)","71.1","Nouveau-Brunswick",{"$f":"IFERROR(VLOOKUP(A6228,Translation!$A:$C,3,FALSE),A6228)","v":18},{"$f":"IFERROR(VLOOKUP(B6228,Translation!$A:$C,3,FALSE),B6228)","v":"T1 2020"},{"$f":"IFERROR(VLOOKUP(C6228,Translation!$A:$C,3,FALSE),C6228)","v":"PROPRIÉTAIRES-OCCUPANTS, À L’UNITÉ"},{"$f":"IFERROR(VLOOKUP(D6228,Translation!$A:$C,3,FALSE),D6228)","v":"Nouveau-Brunswick"},{"$f":"IFERROR(VLOOKUP(E6228,Translation!$A:$C,3,FALSE),E6228)","v":71.143375680580746},{"$f":"IFERROR(VLOOKUP(F6228,Translation!$A:$C,3,FALSE),F6228)","v":"Prêts hypothécaires assurés au cours de la période selon le milieu urbain/rural (%)"},{"$f":"IFERROR(VLOOKUP(G6228,Translation!$A:$C,3,FALSE),G6228)","v":"71.1"},{"$f":"IFERROR(VLOOKUP(H6228,Translation!$A:$C,3,FALSE),H6228)","v":"Nouveau-Brunswick"}]
[18,"Cumul 2019","PROPRIÉTAIRES-OCCUPANTS, À L’UNITÉ","Nouveau-Brunswick",77.736549165120607,"Prêts hypothécaires assurés au cours de la période selon le milieu urbain/rural (%)","77.7","Nouveau-Brunswick",{"$f":"IFERROR(VLOOKUP(A6229,Translation!$A:$C,3,FALSE),A6229)","v":18},{"$f":"IFERROR(VLOOKUP(B6229,Translation!$A:$C,3,FALSE),B6229)","v":"Cumul 2019"},{"$f":"IFERROR(VLOOKUP(C6229,Translation!$A:$C,3,FALSE),C6229)","v":"PROPRIÉTAIRES-OCCUPANTS, À L’UNITÉ"},{"$f":"IFERROR(VLOOKUP(D6229,Translation!$A:$C,3,FALSE),D6229)","v":"Nouveau-Brunswick"},{"$f":"IFERROR(VLOOKUP(E6229,Translation!$A:$C,3,FALSE),E6229)","v":77.736549165120607},{"$f":"IFERROR(VLOOKUP(F6229,Translation!$A:$C,3,FALSE),F6229)","v":"Prêts hypothécaires assurés au cours de la période selon le milieu urbain/rural (%)"},{"$f":"IFERROR(VLOOKUP(G6229,Translation!$A:$C,3,FALSE),G6229)","v":"77.7"},{"$f":"IFERROR(VLOOKUP(H6229,Translation!$A:$C,3,FALSE),H6229)","v":"Nouveau-Brunswick"}]
[18,"Cumul 2020","PROPRIÉTAIRES-OCCUPANTS, À L’UNITÉ","Québec",84.639443961772358,"Prêts hypothécaires assurés au cours de la période selon le milieu urbain/rural (%)","84.6","Québec",{"$f":"IFERROR(VLOOKUP(A6233,Translation!$A:$C,3,FALSE),A6233)","v":18},{"$f":"IFERROR(VLOOKUP(B6233,Translation!$A:$C,3,FALSE),B6233)","v":"Cumul 2020"},{"$f":"IFERROR(VLOOKUP(C6233,Translation!$A:$C,3,FALSE),C6233)","v":"PROPRIÉTAIRES-OCCUPANTS, À L’UNITÉ"},{"$f":"IFERROR(VLOOKUP(D6233,Translation!$A:$C,3,FALSE),D6233)","v":"Québec"},{"$f":"IFERROR(VLOOKUP(E6233,Translation!$A:$C,3,FALSE),E6233)","v":84.639443961772358},{"$f":"IFERROR(VLOOKUP(F6233,Translation!$A:$C,3,FALSE),F6233)","v":"Prêts hypothécaires assurés au cours de la période selon le milieu urbain/rural (%)"},{"$f":"IFERROR(VLOOKUP(G6233,Translation!$A:$C,3,FALSE),G6233)","v":"84.6"},{"$f":"IFERROR(VLOOKUP(H6233,Translation!$A:$C,3,FALSE),H6233)","v":"Québec"}]
[18,"T1 2020","PROPRIÉTAIRES-OCCUPANTS, À L’UNITÉ","Ontario",92.226368159203986,"Prêts hypothécaires assurés au cours de la période selon le milieu urbain/rural (%)","92.2","Ontario",{"$f":"IFERROR(VLOOKUP(A6234,Translation!$A:$C,3,FALSE),A6234)","v":18},{"$f":"IFERROR(VLOOKUP(B6234,Translation!$A:$C,3,FALSE),B6234)","v":"T1 2020"},{"$f":"IFERROR(VLOOKUP(C6234,Translation!$A:$C,3,FALSE),C6234)","v":"PROPRIÉTAIRES-OCCUPANTS, À L’UNITÉ"},{"$f":"IFERROR(VLOOKUP(D6234,Translation!$A:$C,3,FALSE),D6234)","v":"Ontario"},{"$f":"IFERROR(VLOOKUP(E6234,Translation!$A:$C,3,FALSE),E6234)","v":92.226368159203986},{"$f":"IFERROR(VLOOKUP(F6234,Translation!$A:$C,3,FALSE),F6234)","v":"Prêts hypothécaires assurés au cours de la période selon le milieu urbain/rural (%)"},{"$f":"IFERROR(VLOOKUP(G6234,Translation!$A:$C,3,FALSE),G6234)","v":"92.2"},{"$f":"IFERROR(VLOOKUP(H6234,Translation!$A:$C,3,FALSE),H6234)","v":"Ontario"}]
[18,"Cumul 2020","PROPRIÉTAIRES-OCCUPANTS, À L’UNITÉ","Ontario",92.226368159203986,"Prêts hypothécaires assurés au cours de la période selon le milieu urbain/rural (%)","92.2","Ontario",{"$f":"IFERROR(VLOOKUP(A6236,Translation!$A:$C,3,FALSE),A6236)","v":18},{"$f":"IFERROR(VLOOKUP(B6236,Translation!$A:$C,3,FALSE),B6236)","v":"Cumul 2020"},{"$f":"IFERROR(VLOOKUP(C6236,Translation!$A:$C,3,FALSE),C6236)","v":"PROPRIÉTAIRES-OCCUPANTS, À L’UNITÉ"},{"$f":"IFERROR(VLOOKUP(D6236,Translation!$A:$C,3,FALSE),D6236)","v":"Ontario"},{"$f":"IFERROR(VLOOKUP(E6236,Translation!$A:$C,3,FALSE),E6236)","v":92.226368159203986},{"$f":"IFERROR(VLOOKUP(F6236,Translation!$A:$C,3,FALSE),F6236)","v":"Prêts hypothécaires assurés au cours de la période selon le milieu urbain/rural (%)"},{"$f":"IFERROR(VLOOKUP(G6236,Translation!$A:$C,3,FALSE),G6236)","v":"92.2"},{"$f":"IFERROR(VLOOKUP(H6236,Translation!$A:$C,3,FALSE),H6236)","v":"Ontario"}]
[18,"Cumul 2020","PROPRIÉTAIRES-OCCUPANTS, À L’UNITÉ","Manitoba",83.75,"Prêts hypothécaires assurés au cours de la période selon le milieu urbain/rural (%)","83.8","Manitoba",{"$f":"IFERROR(VLOOKUP(A6239,Translation!$A:$C,3,FALSE),A6239)","v":18},{"$f":"IFERROR(VLOOKUP(B6239,Translation!$A:$C,3,FALSE),B6239)","v":"Cumul 2020"},{"$f":"IFERROR(VLOOKUP(C6239,Translation!$A:$C,3,FALSE),C6239)","v":"PROPRIÉTAIRES-OCCUPANTS, À L’UNITÉ"},{"$f":"IFERROR(VLOOKUP(D6239,Translation!$A:$C,3,FALSE),D6239)","v":"Manitoba"},{"$f":"IFERROR(VLOOKUP(E6239,Translation!$A:$C,3,FALSE),E6239)","v":83.75},{"$f":"IFERROR(VLOOKUP(F6239,Translation!$A:$C,3,FALSE),F6239)","v":"Prêts hypothécaires assurés au cours de la période selon le milieu urbain/rural (%)"},{"$f":"IFERROR(VLOOKUP(G6239,Translation!$A:$C,3,FALSE),G6239)","v":"83.8"},{"$f":"IFERROR(VLOOKUP(H6239,Translation!$A:$C,3,FALSE),H6239)","v":"Manitoba"}]
[18,"Cumul 2020","PROPRIÉTAIRES-OCCUPANTS, À L’UNITÉ","Saskatchewan",77.551020408163268,"Prêts hypothécaires assurés au cours de la période selon le milieu urbain/rural (%)","77.6","Saskatchewan",{"$f":"IFERROR(VLOOKUP(A6242,Translation!$A:$C,3,FALSE),A6242)","v":18},{"$f":"IFERROR(VLOOKUP(B6242,Translation!$A:$C,3,FALSE),B6242)","v":"Cumul 2020"},{"$f":"IFERROR(VLOOKUP(C6242,Translation!$A:$C,3,FALSE),C6242)","v":"PROPRIÉTAIRES-OCCUPANTS, À L’UNITÉ"},{"$f":"IFERROR(VLOOKUP(D6242,Translation!$A:$C,3,FALSE),D6242)","v":"Saskatchewan"},{"$f":"IFERROR(VLOOKUP(E6242,Translation!$A:$C,3,FALSE),E6242)","v":77.551020408163268},{"$f":"IFERROR(VLOOKUP(F6242,Translation!$A:$C,3,FALSE),F6242)","v":"Prêts hypothécaires assurés au cours de la période selon le milieu urbain/rural (%)"},{"$f":"IFERROR(VLOOKUP(G6242,Translation!$A:$C,3,FALSE),G6242)","v":"77.6"},{"$f":"IFERROR(VLOOKUP(H6242,Translation!$A:$C,3,FALSE),H6242)","v":"Saskatchewan"}]
[18,"Cumul 2019","PROPRIÉTAIRES-OCCUPANTS, À L’UNITÉ","Alberta",93.862640038967356,"Prêts hypothécaires assurés au cours de la période selon le milieu urbain/rural (%)","93.9","Alberta",{"$f":"IFERROR(VLOOKUP(A6244,Translation!$A:$C,3,FALSE),A6244)","v":18},{"$f":"IFERROR(VLOOKUP(B6244,Translation!$A:$C,3,FALSE),B6244)","v":"Cumul 2019"},{"$f":"IFERROR(VLOOKUP(C6244,Translation!$A:$C,3,FALSE),C6244)","v":"PROPRIÉTAIRES-OCCUPANTS, À L’UNITÉ"},{"$f":"IFERROR(VLOOKUP(D6244,Translation!$A:$C,3,FALSE),D6244)","v":"Alberta"},{"$f":"IFERROR(VLOOKUP(E6244,Translation!$A:$C,3,FALSE),E6244)","v":93.862640038967356},{"$f":"IFERROR(VLOOKUP(F6244,Translation!$A:$C,3,FALSE),F6244)","v":"Prêts hypothécaires assurés au cours de la période selon le milieu urbain/rural (%)"},{"$f":"IFERROR(VLOOKUP(G6244,Translation!$A:$C,3,FALSE),G6244)","v":"93.9"},{"$f":"IFERROR(VLOOKUP(H6244,Translation!$A:$C,3,FALSE),H6244)","v":"Alberta"}]
[18,"Cumul 2019","PROPRIÉTAIRES-OCCUPANTS, À L’UNITÉ","Colombie-Britannique",89.124893797791003,"Prêts hypothécaires assurés au cours de la période selon le milieu urbain/rural (%)","89.1","Colombie-Britannique",{"$f":"IFERROR(VLOOKUP(A6247,Translation!$A:$C,3,FALSE),A6247)","v":18},{"$f":"IFERROR(VLOOKUP(B6247,Translation!$A:$C,3,FALSE),B6247)","v":"Cumul 2019"},{"$f":"IFERROR(VLOOKUP(C6247,Translation!$A:$C,3,FALSE),C6247)","v":"PROPRIÉTAIRES-OCCUPANTS, À L’UNITÉ"},{"$f":"IFERROR(VLOOKUP(D6247,Translation!$A:$C,3,FALSE),D6247)","v":"Colombie-Britannique"},{"$f":"IFERROR(VLOOKUP(E6247,Translation!$A:$C,3,FALSE),E6247)","v":89.124893797791003},{"$f":"IFERROR(VLOOKUP(F6247,Translation!$A:$C,3,FALSE),F6247)","v":"Prêts hypothécaires assurés au cours de la période selon le milieu urbain/rural (%)"},{"$f":"IFERROR(VLOOKUP(G6247,Translation!$A:$C,3,FALSE),G6247)","v":"89.1"},{"$f":"IFERROR(VLOOKUP(H6247,Translation!$A:$C,3,FALSE),H6247)","v":"Colombie-Britannique"}]
[18,"Cumul 2019","PROPRIÉTAIRES-OCCUPANTS, À L’UNITÉ","Territoires",71.830985915492946,"Prêts hypothécaires assurés au cours de la période selon le milieu urbain/rural (%)","71.8","Territoires",{"$f":"IFERROR(VLOOKUP(A6250,Translation!$A:$C,3,FALSE),A6250)","v":18},{"$f":"IFERROR(VLOOKUP(B6250,Translation!$A:$C,3,FALSE),B6250)","v":"Cumul 2019"},{"$f":"IFERROR(VLOOKUP(C6250,Translation!$A:$C,3,FALSE),C6250)","v":"PROPRIÉTAIRES-OCCUPANTS, À L’UNITÉ"},{"$f":"IFERROR(VLOOKUP(D6250,Translation!$A:$C,3,FALSE),D6250)","v":"Territoires"},{"$f":"IFERROR(VLOOKUP(E6250,Translation!$A:$C,3,FALSE),E6250)","v":71.830985915492946},{"$f":"IFERROR(VLOOKUP(F6250,Translation!$A:$C,3,FALSE),F6250)","v":"Prêts hypothécaires assurés au cours de la période selon le milieu urbain/rural (%)"},{"$f":"IFERROR(VLOOKUP(G6250,Translation!$A:$C,3,FALSE),G6250)","v":"71.8"},{"$f":"IFERROR(VLOOKUP(H6250,Translation!$A:$C,3,FALSE),H6250)","v":"Territoires"}]
[18,"T1 2020","ASSURANCE DE PORTEFEUILLE","Terre-Neuve-et-Labrador",72.727272727272734,"Prêts hypothécaires assurés au cours de la période selon le milieu urbain/rural (%)","72.7","Terre-Neuve-et-Labrador",{"$f":"IFERROR(VLOOKUP(A6252,Translation!$A:$C,3,FALSE),A6252)","v":18},{"$f":"IFERROR(VLOOKUP(B6252,Translation!$A:$C,3,FALSE),B6252)","v":"T1 2020"},{"$f":"IFERROR(VLOOKUP(C6252,Translation!$A:$C,3,FALSE),C6252)","v":"ASSURANCE DE PORTEFEUILLE"},{"$f":"IFERROR(VLOOKUP(D6252,Translation!$A:$C,3,FALSE),D6252)","v":"Terre-Neuve-et-Labrador"},{"$f":"IFERROR(VLOOKUP(E6252,Translation!$A:$C,3,FALSE),E6252)","v":72.727272727272734},{"$f":"IFERROR(VLOOKUP(F6252,Translation!$A:$C,3,FALSE),F6252)","v":"Prêts hypothécaires assurés au cours de la période selon le milieu urbain/rural (%)"},{"$f":"IFERROR(VLOOKUP(G6252,Translation!$A:$C,3,FALSE),G6252)","v":"72.7"},{"$f":"IFERROR(VLOOKUP(H6252,Translation!$A:$C,3,FALSE),H6252)","v":"Terre-Neuve-et-Labrador"}]
[18,"Cumul 2019","ASSURANCE DE PORTEFEUILLE","Terre-Neuve-et-Labrador",79.166666666666657,"Prêts hypothécaires assurés au cours de la période selon le milieu urbain/rural (%)","79.2","Terre-Neuve-et-Labrador",{"$f":"IFERROR(VLOOKUP(A6253,Translation!$A:$C,3,FALSE),A6253)","v":18},{"$f":"IFERROR(VLOOKUP(B6253,Translation!$A:$C,3,FALSE),B6253)","v":"Cumul 2019"},{"$f":"IFERROR(VLOOKUP(C6253,Translation!$A:$C,3,FALSE),C6253)","v":"ASSURANCE DE PORTEFEUILLE"},{"$f":"IFERROR(VLOOKUP(D6253,Translation!$A:$C,3,FALSE),D6253)","v":"Terre-Neuve-et-Labrador"},{"$f":"IFERROR(VLOOKUP(E6253,Translation!$A:$C,3,FALSE),E6253)","v":79.166666666666657},{"$f":"IFERROR(VLOOKUP(F6253,Translation!$A:$C,3,FALSE),F6253)","v":"Prêts hypothécaires assurés au cours de la période selon le milieu urbain/rural (%)"},{"$f":"IFERROR(VLOOKUP(G6253,Translation!$A:$C,3,FALSE),G6253)","v":"79.2"},{"$f":"IFERROR(VLOOKUP(H6253,Translation!$A:$C,3,FALSE),H6253)","v":"Terre-Neuve-et-Labrador"}]
[18,"Cumul 2019","ASSURANCE DE PORTEFEUILLE","Île-du-Prince-Édouard",66.666666666666643,"Prêts hypothécaires assurés au cours de la période selon le milieu urbain/rural (%)","66.7","Île-du-Prince-Édouard",{"$f":"IFERROR(VLOOKUP(A6255,Translation!$A:$C,3,FALSE),A6255)","v":18},{"$f":"IFERROR(VLOOKUP(B6255,Translation!$A:$C,3,FALSE),B6255)","v":"Cumul 2019"},{"$f":"IFERROR(VLOOKUP(C6255,Translation!$A:$C,3,FALSE),C6255)","v":"ASSURANCE DE PORTEFEUILLE"},{"$f":"IFERROR(VLOOKUP(D6255,Translation!$A:$C,3,FALSE),D6255)","v":"Île-du-Prince-Édouard"},{"$f":"IFERROR(VLOOKUP(E6255,Translation!$A:$C,3,FALSE),E6255)","v":66.666666666666643},{"$f":"IFERROR(VLOOKUP(F6255,Translation!$A:$C,3,FALSE),F6255)","v":"Prêts hypothécaires assurés au cours de la période selon le milieu urbain/rural (%)"},{"$f":"IFERROR(VLOOKUP(G6255,Translation!$A:$C,3,FALSE),G6255)","v":"66.7"},{"$f":"IFERROR(VLOOKUP(H6255,Translation!$A:$C,3,FALSE),H6255)","v":"Île-du-Prince-Édouard"}]
[18,"Cumul 2020","ASSURANCE DE PORTEFEUILLE","Nouvelle-Écosse",100,"Prêts hypothécaires assurés au cours de la période selon le milieu urbain/rural (%)","100.0","Nouvelle-Écosse",{"$f":"IFERROR(VLOOKUP(A6258,Translation!$A:$C,3,FALSE),A6258)","v":18},{"$f":"IFERROR(VLOOKUP(B6258,Translation!$A:$C,3,FALSE),B6258)","v":"Cumul 2020"},{"$f":"IFERROR(VLOOKUP(C6258,Translation!$A:$C,3,FALSE),C6258)","v":"ASSURANCE DE PORTEFEUILLE"},{"$f":"IFERROR(VLOOKUP(D6258,Translation!$A:$C,3,FALSE),D6258)","v":"Nouvelle-Écosse"},{"$f":"IFERROR(VLOOKUP(E6258,Translation!$A:$C,3,FALSE),E6258)","v":100},{"$f":"IFERROR(VLOOKUP(F6258,Translation!$A:$C,3,FALSE),F6258)","v":"Prêts hypothécaires assurés au cours de la période selon le milieu urbain/rural (%)"},{"$f":"IFERROR(VLOOKUP(G6258,Translation!$A:$C,3,FALSE),G6258)","v":"100.0"},{"$f":"IFERROR(VLOOKUP(H6258,Translation!$A:$C,3,FALSE),H6258)","v":"Nouvelle-Écosse"}]
[18,"Cumul 2020","ASSURANCE DE PORTEFEUILLE","Nouveau-Brunswick",95.238095238095227,"Prêts hypothécaires assurés au cours de la période selon le milieu urbain/rural (%)","95.2","Nouveau-Brunswick",{"$f":"IFERROR(VLOOKUP(A6261,Translation!$A:$C,3,FALSE),A6261)","v":18},{"$f":"IFERROR(VLOOKUP(B6261,Translation!$A:$C,3,FALSE),B6261)","v":"Cumul 2020"},{"$f":"IFERROR(VLOOKUP(C6261,Translation!$A:$C,3,FALSE),C6261)","v":"ASSURANCE DE PORTEFEUILLE"},{"$f":"IFERROR(VLOOKUP(D6261,Translation!$A:$C,3,FALSE),D6261)","v":"Nouveau-Brunswick"},{"$f":"IFERROR(VLOOKUP(E6261,Translation!$A:$C,3,FALSE),E6261)","v":95.238095238095227},{"$f":"IFERROR(VLOOKUP(F6261,Translation!$A:$C,3,FALSE),F6261)","v":"Prêts hypothécaires assurés au cours de la période selon le milieu urbain/rural (%)"},{"$f":"IFERROR(VLOOKUP(G6261,Translation!$A:$C,3,FALSE),G6261)","v":"95.2"},{"$f":"IFERROR(VLOOKUP(H6261,Translation!$A:$C,3,FALSE),H6261)","v":"Nouveau-Brunswick"}]
[18,"Cumul 2019","ASSURANCE DE PORTEFEUILLE","Québec",94.787644787644822,"Prêts hypothécaires assurés au cours de la période selon le milieu urbain/rural (%)","94.8","Québec",{"$f":"IFERROR(VLOOKUP(A6263,Translation!$A:$C,3,FALSE),A6263)","v":18},{"$f":"IFERROR(VLOOKUP(B6263,Translation!$A:$C,3,FALSE),B6263)","v":"Cumul 2019"},{"$f":"IFERROR(VLOOKUP(C6263,Translation!$A:$C,3,FALSE),C6263)","v":"ASSURANCE DE PORTEFEUILLE"},{"$f":"IFERROR(VLOOKUP(D6263,Translation!$A:$C,3,FALSE),D6263)","v":"Québec"},{"$f":"IFERROR(VLOOKUP(E6263,Translation!$A:$C,3,FALSE),E6263)","v":94.787644787644822},{"$f":"IFERROR(VLOOKUP(F6263,Translation!$A:$C,3,FALSE),F6263)","v":"Prêts hypothécaires assurés au cours de la période selon le milieu urbain/rural (%)"},{"$f":"IFERROR(VLOOKUP(G6263,Translation!$A:$C,3,FALSE),G6263)","v":"94.8"},{"$f":"IFERROR(VLOOKUP(H6263,Translation!$A:$C,3,FALSE),H6263)","v":"Québec"}]
[18,"Cumul 2019","ASSURANCE DE PORTEFEUILLE","Ontario",93.791946308724832,"Prêts hypothécaires assurés au cours de la période selon le milieu urbain/rural (%)","93.8","Ontario",{"$f":"IFERROR(VLOOKUP(A6266,Translation!$A:$C,3,FALSE),A6266)","v":18},{"$f":"IFERROR(VLOOKUP(B6266,Translation!$A:$C,3,FALSE),B6266)","v":"Cumul 2019"},{"$f":"IFERROR(VLOOKUP(C6266,Translation!$A:$C,3,FALSE),C6266)","v":"ASSURANCE DE PORTEFEUILLE"},{"$f":"IFERROR(VLOOKUP(D6266,Translation!$A:$C,3,FALSE),D6266)","v":"Ontario"},{"$f":"IFERROR(VLOOKUP(E6266,Translation!$A:$C,3,FALSE),E6266)","v":93.791946308724832},{"$f":"IFERROR(VLOOKUP(F6266,Translation!$A:$C,3,FALSE),F6266)","v":"Prêts hypothécaires assurés au cours de la période selon le milieu urbain/rural (%)"},{"$f":"IFERROR(VLOOKUP(G6266,Translation!$A:$C,3,FALSE),G6266)","v":"93.8"},{"$f":"IFERROR(VLOOKUP(H6266,Translation!$A:$C,3,FALSE),H6266)","v":"Ontario"}]
[18,"Cumul 2019","ASSURANCE DE PORTEFEUILLE","Manitoba",96.969696969696983,"Prêts hypothécaires assurés au cours de la période selon le milieu urbain/rural (%)","97.0","Manitoba",{"$f":"IFERROR(VLOOKUP(A6269,Translation!$A:$C,3,FALSE),A6269)","v":18},{"$f":"IFERROR(VLOOKUP(B6269,Translation!$A:$C,3,FALSE),B6269)","v":"Cumul 2019"},{"$f":"IFERROR(VLOOKUP(C6269,Translation!$A:$C,3,FALSE),C6269)","v":"ASSURANCE DE PORTEFEUILLE"},{"$f":"IFERROR(VLOOKUP(D6269,Translation!$A:$C,3,FALSE),D6269)","v":"Manitoba"},{"$f":"IFERROR(VLOOKUP(E6269,Translation!$A:$C,3,FALSE),E6269)","v":96.969696969696983},{"$f":"IFERROR(VLOOKUP(F6269,Translation!$A:$C,3,FALSE),F6269)","v":"Prêts hypothécaires assurés au cours de la période selon le milieu urbain/rural (%)"},{"$f":"IFERROR(VLOOKUP(G6269,Translation!$A:$C,3,FALSE),G6269)","v":"97.0"},{"$f":"IFERROR(VLOOKUP(H6269,Translation!$A:$C,3,FALSE),H6269)","v":"Manitoba"}]
[18,"T1 2020","ASSURANCE DE PORTEFEUILLE","Saskatchewan",92.857142857142875,"Prêts hypothécaires assurés au cours de la période selon le milieu urbain/rural (%)","92.9","Saskatchewan",{"$f":"IFERROR(VLOOKUP(A6271,Translation!$A:$C,3,FALSE),A6271)","v":18},{"$f":"IFERROR(VLOOKUP(B6271,Translation!$A:$C,3,FALSE),B6271)","v":"T1 2020"},{"$f":"IFERROR(VLOOKUP(C6271,Translation!$A:$C,3,FALSE),C6271)","v":"ASSURANCE DE PORTEFEUILLE"},{"$f":"IFERROR(VLOOKUP(D6271,Translation!$A:$C,3,FALSE),D6271)","v":"Saskatchewan"},{"$f":"IFERROR(VLOOKUP(E6271,Translation!$A:$C,3,FALSE),E6271)","v":92.857142857142875},{"$f":"IFERROR(VLOOKUP(F6271,Translation!$A:$C,3,FALSE),F6271)","v":"Prêts hypothécaires assurés au cours de la période selon le milieu urbain/rural (%)"},{"$f":"IFERROR(VLOOKUP(G6271,Translation!$A:$C,3,FALSE),G6271)","v":"92.9"},{"$f":"IFERROR(VLOOKUP(H6271,Translation!$A:$C,3,FALSE),H6271)","v":"Saskatchewan"}]
[18,"Cumul 2019","ASSURANCE DE PORTEFEUILLE","Saskatchewan",83.75,"Prêts hypothécaires assurés au cours de la période selon le milieu urbain/rural (%)","83.8","Saskatchewan",{"$f":"IFERROR(VLOOKUP(A6272,Translation!$A:$C,3,FALSE),A6272)","v":18},{"$f":"IFERROR(VLOOKUP(B6272,Translation!$A:$C,3,FALSE),B6272)","v":"Cumul 2019"},{"$f":"IFERROR(VLOOKUP(C6272,Translation!$A:$C,3,FALSE),C6272)","v":"ASSURANCE DE PORTEFEUILLE"},{"$f":"IFERROR(VLOOKUP(D6272,Translation!$A:$C,3,FALSE),D6272)","v":"Saskatchewan"},{"$f":"IFERROR(VLOOKUP(E6272,Translation!$A:$C,3,FALSE),E6272)","v":83.75},{"$f":"IFERROR(VLOOKUP(F6272,Translation!$A:$C,3,FALSE),F6272)","v":"Prêts hypothécaires assurés au cours de la période selon le milieu urbain/rural (%)"},{"$f":"IFERROR(VLOOKUP(G6272,Translation!$A:$C,3,FALSE),G6272)","v":"83.8"},{"$f":"IFERROR(VLOOKUP(H6272,Translation!$A:$C,3,FALSE),H6272)","v":"Saskatchewan"}]
[18,"Cumul 2020","ASSURANCE DE PORTEFEUILLE","Alberta",99.567099567099604,"Prêts hypothécaires assurés au cours de la période selon le milieu urbain/rural (%)","99.6","Alberta",{"$f":"IFERROR(VLOOKUP(A6276,Translation!$A:$C,3,FALSE),A6276)","v":18},{"$f":"IFERROR(VLOOKUP(B6276,Translation!$A:$C,3,FALSE),B6276)","v":"Cumul 2020"},{"$f":"IFERROR(VLOOKUP(C6276,Translation!$A:$C,3,FALSE),C6276)","v":"ASSURANCE DE PORTEFEUILLE"},{"$f":"IFERROR(VLOOKUP(D6276,Translation!$A:$C,3,FALSE),D6276)","v":"Alberta"},{"$f":"IFERROR(VLOOKUP(E6276,Translation!$A:$C,3,FALSE),E6276)","v":99.567099567099604},{"$f":"IFERROR(VLOOKUP(F6276,Translation!$A:$C,3,FALSE),F6276)","v":"Prêts hypothécaires assurés au cours de la période selon le milieu urbain/rural (%)"},{"$f":"IFERROR(VLOOKUP(G6276,Translation!$A:$C,3,FALSE),G6276)","v":"99.6"},{"$f":"IFERROR(VLOOKUP(H6276,Translation!$A:$C,3,FALSE),H6276)","v":"Alberta"}]
[18,"T1 2020","ASSURANCE DE PORTEFEUILLE","Colombie-Britannique",95.189639222941722,"Prêts hypothécaires assurés au cours de la période selon le milieu urbain/rural (%)","95.2","Colombie-Britannique",{"$f":"IFERROR(VLOOKUP(A6277,Translation!$A:$C,3,FALSE),A6277)","v":18},{"$f":"IFERROR(VLOOKUP(B6277,Translation!$A:$C,3,FALSE),B6277)","v":"T1 2020"},{"$f":"IFERROR(VLOOKUP(C6277,Translation!$A:$C,3,FALSE),C6277)","v":"ASSURANCE DE PORTEFEUILLE"},{"$f":"IFERROR(VLOOKUP(D6277,Translation!$A:$C,3,FALSE),D6277)","v":"Colombie-Britannique"},{"$f":"IFERROR(VLOOKUP(E6277,Translation!$A:$C,3,FALSE),E6277)","v":95.189639222941722},{"$f":"IFERROR(VLOOKUP(F6277,Translation!$A:$C,3,FALSE),F6277)","v":"Prêts hypothécaires assurés au cours de la période selon le milieu urbain/rural (%)"},{"$f":"IFERROR(VLOOKUP(G6277,Translation!$A:$C,3,FALSE),G6277)","v":"95.2"},{"$f":"IFERROR(VLOOKUP(H6277,Translation!$A:$C,3,FALSE),H6277)","v":"Colombie-Britannique"}]
[18,"Cumul 2019","ASSURANCE DE PORTEFEUILLE","Territoires",100,"Prêts hypothécaires assurés au cours de la période selon le milieu urbain/rural (%)","100.0","Territoires",{"$f":"IFERROR(VLOOKUP(A6280,Translation!$A:$C,3,FALSE),A6280)","v":18},{"$f":"IFERROR(VLOOKUP(B6280,Translation!$A:$C,3,FALSE),B6280)","v":"Cumul 2019"},{"$f":"IFERROR(VLOOKUP(C6280,Translation!$A:$C,3,FALSE),C6280)","v":"ASSURANCE DE PORTEFEUILLE"},{"$f":"IFERROR(VLOOKUP(D6280,Translation!$A:$C,3,FALSE),D6280)","v":"Territoires"},{"$f":"IFERROR(VLOOKUP(E6280,Translation!$A:$C,3,FALSE),E6280)","v":100},{"$f":"IFERROR(VLOOKUP(F6280,Translation!$A:$C,3,FALSE),F6280)","v":"Prêts hypothécaires assurés au cours de la période selon le milieu urbain/rural (%)"},{"$f":"IFERROR(VLOOKUP(G6280,Translation!$A:$C,3,FALSE),G6280)","v":"100.0"},{"$f":"IFERROR(VLOOKUP(H6280,Translation!$A:$C,3,FALSE),H6280)","v":"Territoires"}]
[30,"Cumul 2019","IMMEUBLES COLLECTIFS RÉSIDENTIELS","Rural",1.4498554591950188,"Prêts hypothécaires assurés au cours de la période selon le milieu urbain/rural (%)","1.4","Rural",{"$f":"IFERROR(VLOOKUP(A6282,Translation!$A:$C,3,FALSE),A6282)","v":30},{"$f":"IFERROR(VLOOKUP(B6282,Translation!$A:$C,3,FALSE),B6282)","v":"Cumul 2019"},{"$f":"IFERROR(VLOOKUP(C6282,Translation!$A:$C,3,FALSE),C6282)","v":"IMMEUBLES COLLECTIFS RÉSIDENTIELS"},{"$f":"IFERROR(VLOOKUP(D6282,Translation!$A:$C,3,FALSE),D6282)","v":"Rural"},{"$f":"IFERROR(VLOOKUP(E6282,Translation!$A:$C,3,FALSE),E6282)","v":1.4498554591950188},{"$f":"IFERROR(VLOOKUP(F6282,Translation!$A:$C,3,FALSE),F6282)","v":"Prêts hypothécaires assurés au cours de la période selon le milieu urbain/rural (%)"},{"$f":"IFERROR(VLOOKUP(G6282,Translation!$A:$C,3,FALSE),G6282)","v":"1.4"},{"$f":"IFERROR(VLOOKUP(H6282,Translation!$A:$C,3,FALSE),H6282)","v":"Rural"}]
[30,"Cumul 2020","IMMEUBLES COLLECTIFS RÉSIDENTIELS","Urbain",99.031476997578693,"Prêts hypothécaires assurés au cours de la période selon le milieu urbain/rural (%)","99.0","Urbain",{"$f":"IFERROR(VLOOKUP(A6286,Translation!$A:$C,3,FALSE),A6286)","v":30},{"$f":"IFERROR(VLOOKUP(B6286,Translation!$A:$C,3,FALSE),B6286)","v":"Cumul 2020"},{"$f":"IFERROR(VLOOKUP(C6286,Translation!$A:$C,3,FALSE),C6286)","v":"IMMEUBLES COLLECTIFS RÉSIDENTIELS"},{"$f":"IFERROR(VLOOKUP(D6286,Translation!$A:$C,3,FALSE),D6286)","v":"Urbain"},{"$f":"IFERROR(VLOOKUP(E6286,Translation!$A:$C,3,FALSE),E6286)","v":99.031476997578693},{"$f":"IFERROR(VLOOKUP(F6286,Translation!$A:$C,3,FALSE),F6286)","v":"Prêts hypothécaires assurés au cours de la période selon le milieu urbain/rural (%)"},{"$f":"IFERROR(VLOOKUP(G6286,Translation!$A:$C,3,FALSE),G6286)","v":"99.0"},{"$f":"IFERROR(VLOOKUP(H6286,Translation!$A:$C,3,FALSE),H6286)","v":"Urbain"}]
[30,"T1 2020","IMMEUBLES COLLECTIFS RÉSIDENTIELS","Terre-Neuve-et-Labrador",95,"Prêts hypothécaires assurés au cours de la période selon le milieu urbain/rural (%)","95.0","Terre-Neuve-et-Labrador",{"$f":"IFERROR(VLOOKUP(A6287,Translation!$A:$C,3,FALSE),A6287)","v":30},{"$f":"IFERROR(VLOOKUP(B6287,Translation!$A:$C,3,FALSE),B6287)","v":"T1 2020"},{"$f":"IFERROR(VLOOKUP(C6287,Translation!$A:$C,3,FALSE),C6287)","v":"IMMEUBLES COLLECTIFS RÉSIDENTIELS"},{"$f":"IFERROR(VLOOKUP(D6287,Translation!$A:$C,3,FALSE),D6287)","v":"Terre-Neuve-et-Labrador"},{"$f":"IFERROR(VLOOKUP(E6287,Translation!$A:$C,3,FALSE),E6287)","v":95},{"$f":"IFERROR(VLOOKUP(F6287,Translation!$A:$C,3,FALSE),F6287)","v":"Prêts hypothécaires assurés au cours de la période selon le milieu urbain/rural (%)"},{"$f":"IFERROR(VLOOKUP(G6287,Translation!$A:$C,3,FALSE),G6287)","v":"95.0"},{"$f":"IFERROR(VLOOKUP(H6287,Translation!$A:$C,3,FALSE),H6287)","v":"Terre-Neuve-et-Labrador"}]
[30,"Cumul 2019","IMMEUBLES COLLECTIFS RÉSIDENTIELS","Île-du-Prince-Édouard",100,"Prêts hypothécaires assurés au cours de la période selon le milieu urbain/rural (%)","100.0","Île-du-Prince-Édouard",{"$f":"IFERROR(VLOOKUP(A6290,Translation!$A:$C,3,FALSE),A6290)","v":30},{"$f":"IFERROR(VLOOKUP(B6290,Translation!$A:$C,3,FALSE),B6290)","v":"Cumul 2019"},{"$f":"IFERROR(VLOOKUP(C6290,Translation!$A:$C,3,FALSE),C6290)","v":"IMMEUBLES COLLECTIFS RÉSIDENTIELS"},{"$f":"IFERROR(VLOOKUP(D6290,Translation!$A:$C,3,FALSE),D6290)","v":"Île-du-Prince-Édouard"},{"$f":"IFERROR(VLOOKUP(E6290,Translation!$A:$C,3,FALSE),E6290)","v":100},{"$f":"IFERROR(VLOOKUP(F6290,Translation!$A:$C,3,FALSE),F6290)","v":"Prêts hypothécaires assurés au cours de la période selon le milieu urbain/rural (%)"},{"$f":"IFERROR(VLOOKUP(G6290,Translation!$A:$C,3,FALSE),G6290)","v":"100.0"},{"$f":"IFERROR(VLOOKUP(H6290,Translation!$A:$C,3,FALSE),H6290)","v":"Île-du-Prince-Édouard"}]
[30,"Cumul 2020","IMMEUBLES COLLECTIFS RÉSIDENTIELS","Île-du-Prince-Édouard",100,"Prêts hypothécaires assurés au cours de la période selon le milieu urbain/rural (%)","100.0","Île-du-Prince-Édouard",{"$f":"IFERROR(VLOOKUP(A6291,Translation!$A:$C,3,FALSE),A6291)","v":30},{"$f":"IFERROR(VLOOKUP(B6291,Translation!$A:$C,3,FALSE),B6291)","v":"Cumul 2020"},{"$f":"IFERROR(VLOOKUP(C6291,Translation!$A:$C,3,FALSE),C6291)","v":"IMMEUBLES COLLECTIFS RÉSIDENTIELS"},{"$f":"IFERROR(VLOOKUP(D6291,Translation!$A:$C,3,FALSE),D6291)","v":"Île-du-Prince-Édouard"},{"$f":"IFERROR(VLOOKUP(E6291,Translation!$A:$C,3,FALSE),E6291)","v":100},{"$f":"IFERROR(VLOOKUP(F6291,Translation!$A:$C,3,FALSE),F6291)","v":"Prêts hypothécaires assurés au cours de la période selon le milieu urbain/rural (%)"},{"$f":"IFERROR(VLOOKUP(G6291,Translation!$A:$C,3,FALSE),G6291)","v":"100.0"},{"$f":"IFERROR(VLOOKUP(H6291,Translation!$A:$C,3,FALSE),H6291)","v":"Île-du-Prince-Édouard"}]
[30,"T1 2020","IMMEUBLES COLLECTIFS RÉSIDENTIELS","Nouveau-Brunswick",100,"Prêts hypothécaires assurés au cours de la période selon le milieu urbain/rural (%)","100.0","Nouveau-Brunswick",{"$f":"IFERROR(VLOOKUP(A6295,Translation!$A:$C,3,FALSE),A6295)","v":30},{"$f":"IFERROR(VLOOKUP(B6295,Translation!$A:$C,3,FALSE),B6295)","v":"T1 2020"},{"$f":"IFERROR(VLOOKUP(C6295,Translation!$A:$C,3,FALSE),C6295)","v":"IMMEUBLES COLLECTIFS RÉSIDENTIELS"},{"$f":"IFERROR(VLOOKUP(D6295,Translation!$A:$C,3,FALSE),D6295)","v":"Nouveau-Brunswick"},{"$f":"IFERROR(VLOOKUP(E6295,Translation!$A:$C,3,FALSE),E6295)","v":100},{"$f":"IFERROR(VLOOKUP(F6295,Translation!$A:$C,3,FALSE),F6295)","v":"Prêts hypothécaires assurés au cours de la période selon le milieu urbain/rural (%)"},{"$f":"IFERROR(VLOOKUP(G6295,Translation!$A:$C,3,FALSE),G6295)","v":"100.0"},{"$f":"IFERROR(VLOOKUP(H6295,Translation!$A:$C,3,FALSE),H6295)","v":"Nouveau-Brunswick"}]
[30,"Cumul 2020","IMMEUBLES COLLECTIFS RÉSIDENTIELS","Nouveau-Brunswick",100,"Prêts hypothécaires assurés au cours de la période selon le milieu urbain/rural (%)","100.0","Nouveau-Brunswick",{"$f":"IFERROR(VLOOKUP(A6297,Translation!$A:$C,3,FALSE),A6297)","v":30},{"$f":"IFERROR(VLOOKUP(B6297,Translation!$A:$C,3,FALSE),B6297)","v":"Cumul 2020"},{"$f":"IFERROR(VLOOKUP(C6297,Translation!$A:$C,3,FALSE),C6297)","v":"IMMEUBLES COLLECTIFS RÉSIDENTIELS"},{"$f":"IFERROR(VLOOKUP(D6297,Translation!$A:$C,3,FALSE),D6297)","v":"Nouveau-Brunswick"},{"$f":"IFERROR(VLOOKUP(E6297,Translation!$A:$C,3,FALSE),E6297)","v":100},{"$f":"IFERROR(VLOOKUP(F6297,Translation!$A:$C,3,FALSE),F6297)","v":"Prêts hypothécaires assurés au cours de la période selon le milieu urbain/rural (%)"},{"$f":"IFERROR(VLOOKUP(G6297,Translation!$A:$C,3,FALSE),G6297)","v":"100.0"},{"$f":"IFERROR(VLOOKUP(H6297,Translation!$A:$C,3,FALSE),H6297)","v":"Nouveau-Brunswick"}]
[30,"Cumul 2020","IMMEUBLES COLLECTIFS RÉSIDENTIELS","Québec",97.99471860042911,"Prêts hypothécaires assurés au cours de la période selon le milieu urbain/rural (%)","98.0","Québec",{"$f":"IFERROR(VLOOKUP(A6300,Translation!$A:$C,3,FALSE),A6300)","v":30},{"$f":"IFERROR(VLOOKUP(B6300,Translation!$A:$C,3,FALSE),B6300)","v":"Cumul 2020"},{"$f":"IFERROR(VLOOKUP(C6300,Translation!$A:$C,3,FALSE),C6300)","v":"IMMEUBLES COLLECTIFS RÉSIDENTIELS"},{"$f":"IFERROR(VLOOKUP(D6300,Translation!$A:$C,3,FALSE),D6300)","v":"Québec"},{"$f":"IFERROR(VLOOKUP(E6300,Translation!$A:$C,3,FALSE),E6300)","v":97.99471860042911},{"$f":"IFERROR(VLOOKUP(F6300,Translation!$A:$C,3,FALSE),F6300)","v":"Prêts hypothécaires assurés au cours de la période selon le milieu urbain/rural (%)"},{"$f":"IFERROR(VLOOKUP(G6300,Translation!$A:$C,3,FALSE),G6300)","v":"98.0"},{"$f":"IFERROR(VLOOKUP(H6300,Translation!$A:$C,3,FALSE),H6300)","v":"Québec"}]
[30,"T1 2020","IMMEUBLES COLLECTIFS RÉSIDENTIELS","Ontario",99.478676417348495,"Prêts hypothécaires assurés au cours de la période selon le milieu urbain/rural (%)","99.5","Ontario",{"$f":"IFERROR(VLOOKUP(A6301,Translation!$A:$C,3,FALSE),A6301)","v":30},{"$f":"IFERROR(VLOOKUP(B6301,Translation!$A:$C,3,FALSE),B6301)","v":"T1 2020"},{"$f":"IFERROR(VLOOKUP(C6301,Translation!$A:$C,3,FALSE),C6301)","v":"IMMEUBLES COLLECTIFS RÉSIDENTIELS"},{"$f":"IFERROR(VLOOKUP(D6301,Translation!$A:$C,3,FALSE),D6301)","v":"Ontario"},{"$f":"IFERROR(VLOOKUP(E6301,Translation!$A:$C,3,FALSE),E6301)","v":99.478676417348495},{"$f":"IFERROR(VLOOKUP(F6301,Translation!$A:$C,3,FALSE),F6301)","v":"Prêts hypothécaires assurés au cours de la période selon le milieu urbain/rural (%)"},{"$f":"IFERROR(VLOOKUP(G6301,Translation!$A:$C,3,FALSE),G6301)","v":"99.5"},{"$f":"IFERROR(VLOOKUP(H6301,Translation!$A:$C,3,FALSE),H6301)","v":"Ontario"}]
[30,"Cumul 2019","IMMEUBLES COLLECTIFS RÉSIDENTIELS","Manitoba",100,"Prêts hypothécaires assurés au cours de la période selon le milieu urbain/rural (%)","100.0","Manitoba",{"$f":"IFERROR(VLOOKUP(A6305,Translation!$A:$C,3,FALSE),A6305)","v":30},{"$f":"IFERROR(VLOOKUP(B6305,Translation!$A:$C,3,FALSE),B6305)","v":"Cumul 2019"},{"$f":"IFERROR(VLOOKUP(C6305,Translation!$A:$C,3,FALSE),C6305)","v":"IMMEUBLES COLLECTIFS RÉSIDENTIELS"},{"$f":"IFERROR(VLOOKUP(D6305,Translation!$A:$C,3,FALSE),D6305)","v":"Manitoba"},{"$f":"IFERROR(VLOOKUP(E6305,Translation!$A:$C,3,FALSE),E6305)","v":100},{"$f":"IFERROR(VLOOKUP(F6305,Translation!$A:$C,3,FALSE),F6305)","v":"Prêts hypothécaires assurés au cours de la période selon le milieu urbain/rural (%)"},{"$f":"IFERROR(VLOOKUP(G6305,Translation!$A:$C,3,FALSE),G6305)","v":"100.0"},{"$f":"IFERROR(VLOOKUP(H6305,Translation!$A:$C,3,FALSE),H6305)","v":"Manitoba"}]
[30,"Cumul 2020","IMMEUBLES COLLECTIFS RÉSIDENTIELS","Manitoba",100,"Prêts hypothécaires assurés au cours de la période selon le milieu urbain/rural (%)","100.0","Manitoba",{"$f":"IFERROR(VLOOKUP(A6306,Translation!$A:$C,3,FALSE),A6306)","v":30},{"$f":"IFERROR(VLOOKUP(B6306,Translation!$A:$C,3,FALSE),B6306)","v":"Cumul 2020"},{"$f":"IFERROR(VLOOKUP(C6306,Translation!$A:$C,3,FALSE),C6306)","v":"IMMEUBLES COLLECTIFS RÉSIDENTIELS"},{"$f":"IFERROR(VLOOKUP(D6306,Translation!$A:$C,3,FALSE),D6306)","v":"Manitoba"},{"$f":"IFERROR(VLOOKUP(E6306,Translation!$A:$C,3,FALSE),E6306)","v":100},{"$f":"IFERROR(VLOOKUP(F6306,Translation!$A:$C,3,FALSE),F6306)","v":"Prêts hypothécaires assurés au cours de la période selon le milieu urbain/rural (%)"},{"$f":"IFERROR(VLOOKUP(G6306,Translation!$A:$C,3,FALSE),G6306)","v":"100.0"},{"$f":"IFERROR(VLOOKUP(H6306,Translation!$A:$C,3,FALSE),H6306)","v":"Manitoba"}]
[30,"Cumul 2019","IMMEUBLES COLLECTIFS RÉSIDENTIELS","Saskatchewan",100,"Prêts hypothécaires assurés au cours de la période selon le milieu urbain/rural (%)","100.0","Saskatchewan",{"$f":"IFERROR(VLOOKUP(A6308,Translation!$A:$C,3,FALSE),A6308)","v":30},{"$f":"IFERROR(VLOOKUP(B6308,Translation!$A:$C,3,FALSE),B6308)","v":"Cumul 2019"},{"$f":"IFERROR(VLOOKUP(C6308,Translation!$A:$C,3,FALSE),C6308)","v":"IMMEUBLES COLLECTIFS RÉSIDENTIELS"},{"$f":"IFERROR(VLOOKUP(D6308,Translation!$A:$C,3,FALSE),D6308)","v":"Saskatchewan"},{"$f":"IFERROR(VLOOKUP(E6308,Translation!$A:$C,3,FALSE),E6308)","v":100},{"$f":"IFERROR(VLOOKUP(F6308,Translation!$A:$C,3,FALSE),F6308)","v":"Prêts hypothécaires assurés au cours de la période selon le milieu urbain/rural (%)"},{"$f":"IFERROR(VLOOKUP(G6308,Translation!$A:$C,3,FALSE),G6308)","v":"100.0"},{"$f":"IFERROR(VLOOKUP(H6308,Translation!$A:$C,3,FALSE),H6308)","v":"Saskatchewan"}]
[30,"Cumul 2019","IMMEUBLES COLLECTIFS RÉSIDENTIELS","Alberta",97.594501718213053,"Prêts hypothécaires assurés au cours de la période selon le milieu urbain/rural (%)","97.6","Alberta",{"$f":"IFERROR(VLOOKUP(A6311,Translation!$A:$C,3,FALSE),A6311)","v":30},{"$f":"IFERROR(VLOOKUP(B6311,Translation!$A:$C,3,FALSE),B6311)","v":"Cumul 2019"},{"$f":"IFERROR(VLOOKUP(C6311,Translation!$A:$C,3,FALSE),C6311)","v":"IMMEUBLES COLLECTIFS RÉSIDENTIELS"},{"$f":"IFERROR(VLOOKUP(D6311,Translation!$A:$C,3,FALSE),D6311)","v":"Alberta"},{"$f":"IFERROR(VLOOKUP(E6311,Translation!$A:$C,3,FALSE),E6311)","v":97.594501718213053},{"$f":"IFERROR(VLOOKUP(F6311,Translation!$A:$C,3,FALSE),F6311)","v":"Prêts hypothécaires assurés au cours de la période selon le milieu urbain/rural (%)"},{"$f":"IFERROR(VLOOKUP(G6311,Translation!$A:$C,3,FALSE),G6311)","v":"97.6"},{"$f":"IFERROR(VLOOKUP(H6311,Translation!$A:$C,3,FALSE),H6311)","v":"Alberta"}]
[30,"Cumul 2019","IMMEUBLES COLLECTIFS RÉSIDENTIELS","Colombie-Britannique",100,"Prêts hypothécaires assurés au cours de la période selon le milieu urbain/rural (%)","100.0","Colombie-Britannique",{"$f":"IFERROR(VLOOKUP(A6314,Translation!$A:$C,3,FALSE),A6314)","v":30},{"$f":"IFERROR(VLOOKUP(B6314,Translation!$A:$C,3,FALSE),B6314)","v":"Cumul 2019"},{"$f":"IFERROR(VLOOKUP(C6314,Translation!$A:$C,3,FALSE),C6314)","v":"IMMEUBLES COLLECTIFS RÉSIDENTIELS"},{"$f":"IFERROR(VLOOKUP(D6314,Translation!$A:$C,3,FALSE),D6314)","v":"Colombie-Britannique"},{"$f":"IFERROR(VLOOKUP(E6314,Translation!$A:$C,3,FALSE),E6314)","v":100},{"$f":"IFERROR(VLOOKUP(F6314,Translation!$A:$C,3,FALSE),F6314)","v":"Prêts hypothécaires assurés au cours de la période selon le milieu urbain/rural (%)"},{"$f":"IFERROR(VLOOKUP(G6314,Translation!$A:$C,3,FALSE),G6314)","v":"100.0"},{"$f":"IFERROR(VLOOKUP(H6314,Translation!$A:$C,3,FALSE),H6314)","v":"Colombie-Britannique"}]
[30,"Cumul 2019","IMMEUBLES COLLECTIFS RÉSIDENTIELS","Territoires",100,"Prêts hypothécaires assurés au cours de la période selon le milieu urbain/rural (%)","100.0","Territoires",{"$f":"IFERROR(VLOOKUP(A6316,Translation!$A:$C,3,FALSE),A6316)","v":30},{"$f":"IFERROR(VLOOKUP(B6316,Translation!$A:$C,3,FALSE),B6316)","v":"Cumul 2019"},{"$f":"IFERROR(VLOOKUP(C6316,Translation!$A:$C,3,FALSE),C6316)","v":"IMMEUBLES COLLECTIFS RÉSIDENTIELS"},{"$f":"IFERROR(VLOOKUP(D6316,Translation!$A:$C,3,FALSE),D6316)","v":"Territoires"},{"$f":"IFERROR(VLOOKUP(E6316,Translation!$A:$C,3,FALSE),E6316)","v":100},{"$f":"IFERROR(VLOOKUP(F6316,Translation!$A:$C,3,FALSE),F6316)","v":"Prêts hypothécaires assurés au cours de la période selon le milieu urbain/rural (%)"},{"$f":"IFERROR(VLOOKUP(G6316,Translation!$A:$C,3,FALSE),G6316)","v":"100.0"},{"$f":"IFERROR(VLOOKUP(H6316,Translation!$A:$C,3,FALSE),H6316)","v":"Territoires"}]
[18,"T4 2019","PROPRIÉTAIRES-OCCUPANTS, À L’UNITÉ","Urbain",85.540865384615373,"Prêts hypothécaires assurés au cours de la période selon le milieu urbain/rural (%)","85.5","Urbain",{"$f":"IFERROR(VLOOKUP(A6319,Translation!$A:$C,3,FALSE),A6319)","v":18},{"$f":"IFERROR(VLOOKUP(B6319,Translation!$A:$C,3,FALSE),B6319)","v":"T4 2019"},{"$f":"IFERROR(VLOOKUP(C6319,Translation!$A:$C,3,FALSE),C6319)","v":"PROPRIÉTAIRES-OCCUPANTS, À L’UNITÉ"},{"$f":"IFERROR(VLOOKUP(D6319,Translation!$A:$C,3,FALSE),D6319)","v":"Urbain"},{"$f":"IFERROR(VLOOKUP(E6319,Translation!$A:$C,3,FALSE),E6319)","v":85.540865384615373},{"$f":"IFERROR(VLOOKUP(F6319,Translation!$A:$C,3,FALSE),F6319)","v":"Prêts hypothécaires assurés au cours de la période selon le milieu urbain/rural (%)"},{"$f":"IFERROR(VLOOKUP(G6319,Translation!$A:$C,3,FALSE),G6319)","v":"85.5"},{"$f":"IFERROR(VLOOKUP(H6319,Translation!$A:$C,3,FALSE),H6319)","v":"Urbain"}]
[18,"T4 2019","ASSURANCE DE PORTEFEUILLE","Rural",5.9950645957323268,"Prêts hypothécaires assurés au cours de la période selon le milieu urbain/rural (%)","6.0","Rural",{"$f":"IFERROR(VLOOKUP(A6321,Translation!$A:$C,3,FALSE),A6321)","v":18},{"$f":"IFERROR(VLOOKUP(B6321,Translation!$A:$C,3,FALSE),B6321)","v":"T4 2019"},{"$f":"IFERROR(VLOOKUP(C6321,Translation!$A:$C,3,FALSE),C6321)","v":"ASSURANCE DE PORTEFEUILLE"},{"$f":"IFERROR(VLOOKUP(D6321,Translation!$A:$C,3,FALSE),D6321)","v":"Rural"},{"$f":"IFERROR(VLOOKUP(E6321,Translation!$A:$C,3,FALSE),E6321)","v":5.9950645957323268},{"$f":"IFERROR(VLOOKUP(F6321,Translation!$A:$C,3,FALSE),F6321)","v":"Prêts hypothécaires assurés au cours de la période selon le milieu urbain/rural (%)"},{"$f":"IFERROR(VLOOKUP(G6321,Translation!$A:$C,3,FALSE),G6321)","v":"6.0"},{"$f":"IFERROR(VLOOKUP(H6321,Translation!$A:$C,3,FALSE),H6321)","v":"Rural"}]
[18,"Cumul 2018","ASSURANCE DE PORTEFEUILLE","Urbain",92.97041294167731,"Prêts hypothécaires assurés au cours de la période selon le milieu urbain/rural (%)","93.0","Urbain",{"$f":"IFERROR(VLOOKUP(A6324,Translation!$A:$C,3,FALSE),A6324)","v":18},{"$f":"IFERROR(VLOOKUP(B6324,Translation!$A:$C,3,FALSE),B6324)","v":"Cumul 2018"},{"$f":"IFERROR(VLOOKUP(C6324,Translation!$A:$C,3,FALSE),C6324)","v":"ASSURANCE DE PORTEFEUILLE"},{"$f":"IFERROR(VLOOKUP(D6324,Translation!$A:$C,3,FALSE),D6324)","v":"Urbain"},{"$f":"IFERROR(VLOOKUP(E6324,Translation!$A:$C,3,FALSE),E6324)","v":92.97041294167731},{"$f":"IFERROR(VLOOKUP(F6324,Translation!$A:$C,3,FALSE),F6324)","v":"Prêts hypothécaires assurés au cours de la période selon le milieu urbain/rural (%)"},{"$f":"IFERROR(VLOOKUP(G6324,Translation!$A:$C,3,FALSE),G6324)","v":"93.0"},{"$f":"IFERROR(VLOOKUP(H6324,Translation!$A:$C,3,FALSE),H6324)","v":"Urbain"}]
[18,"T4 2019","PROPRIÉTAIRES-OCCUPANTS, À L’UNITÉ","Terre-Neuve-et-Labrador",68.827930174563605,"Prêts hypothécaires assurés au cours de la période selon le milieu urbain/rural (%)","68.8","Terre-Neuve-et-Labrador",{"$f":"IFERROR(VLOOKUP(A6325,Translation!$A:$C,3,FALSE),A6325)","v":18},{"$f":"IFERROR(VLOOKUP(B6325,Translation!$A:$C,3,FALSE),B6325)","v":"T4 2019"},{"$f":"IFERROR(VLOOKUP(C6325,Translation!$A:$C,3,FALSE),C6325)","v":"PROPRIÉTAIRES-OCCUPANTS, À L’UNITÉ"},{"$f":"IFERROR(VLOOKUP(D6325,Translation!$A:$C,3,FALSE),D6325)","v":"Terre-Neuve-et-Labrador"},{"$f":"IFERROR(VLOOKUP(E6325,Translation!$A:$C,3,FALSE),E6325)","v":68.827930174563605},{"$f":"IFERROR(VLOOKUP(F6325,Translation!$A:$C,3,FALSE),F6325)","v":"Prêts hypothécaires assurés au cours de la période selon le milieu urbain/rural (%)"},{"$f":"IFERROR(VLOOKUP(G6325,Translation!$A:$C,3,FALSE),G6325)","v":"68.8"},{"$f":"IFERROR(VLOOKUP(H6325,Translation!$A:$C,3,FALSE),H6325)","v":"Terre-Neuve-et-Labrador"}]
[18,"T4 2019","PROPRIÉTAIRES-OCCUPANTS, À L’UNITÉ","Île-du-Prince-Édouard",69.411764705882348,"Prêts hypothécaires assurés au cours de la période selon le milieu urbain/rural (%)","69.4","Île-du-Prince-Édouard",{"$f":"IFERROR(VLOOKUP(A6327,Translation!$A:$C,3,FALSE),A6327)","v":18},{"$f":"IFERROR(VLOOKUP(B6327,Translation!$A:$C,3,FALSE),B6327)","v":"T4 2019"},{"$f":"IFERROR(VLOOKUP(C6327,Translation!$A:$C,3,FALSE),C6327)","v":"PROPRIÉTAIRES-OCCUPANTS, À L’UNITÉ"},{"$f":"IFERROR(VLOOKUP(D6327,Translation!$A:$C,3,FALSE),D6327)","v":"Île-du-Prince-Édouard"},{"$f":"IFERROR(VLOOKUP(E6327,Translation!$A:$C,3,FALSE),E6327)","v":69.411764705882348},{"$f":"IFERROR(VLOOKUP(F6327,Translation!$A:$C,3,FALSE),F6327)","v":"Prêts hypothécaires assurés au cours de la période selon le milieu urbain/rural (%)"},{"$f":"IFERROR(VLOOKUP(G6327,Translation!$A:$C,3,FALSE),G6327)","v":"69.4"},{"$f":"IFERROR(VLOOKUP(H6327,Translation!$A:$C,3,FALSE),H6327)","v":"Île-du-Prince-Édouard"}]
[18,"Cumul 2018","PROPRIÉTAIRES-OCCUPANTS, À L’UNITÉ","Nouvelle-Écosse",84.615384615384627,"Prêts hypothécaires assurés au cours de la période selon le milieu urbain/rural (%)","84.6","Nouvelle-Écosse",{"$f":"IFERROR(VLOOKUP(A6330,Translation!$A:$C,3,FALSE),A6330)","v":18},{"$f":"IFERROR(VLOOKUP(B6330,Translation!$A:$C,3,FALSE),B6330)","v":"Cumul 2018"},{"$f":"IFERROR(VLOOKUP(C6330,Translation!$A:$C,3,FALSE),C6330)","v":"PROPRIÉTAIRES-OCCUPANTS, À L’UNITÉ"},{"$f":"IFERROR(VLOOKUP(D6330,Translation!$A:$C,3,FALSE),D6330)","v":"Nouvelle-Écosse"},{"$f":"IFERROR(VLOOKUP(E6330,Translation!$A:$C,3,FALSE),E6330)","v":84.615384615384627},{"$f":"IFERROR(VLOOKUP(F6330,Translation!$A:$C,3,FALSE),F6330)","v":"Prêts hypothécaires assurés au cours de la période selon le milieu urbain/rural (%)"},{"$f":"IFERROR(VLOOKUP(G6330,Translation!$A:$C,3,FALSE),G6330)","v":"84.6"},{"$f":"IFERROR(VLOOKUP(H6330,Translation!$A:$C,3,FALSE),H6330)","v":"Nouvelle-Écosse"}]
[18,"Cumul 2018","PROPRIÉTAIRES-OCCUPANTS, À L’UNITÉ","Nouveau-Brunswick",72.1171287898419,"Prêts hypothécaires assurés au cours de la période selon le milieu urbain/rural (%)","72.1","Nouveau-Brunswick",{"$f":"IFERROR(VLOOKUP(A6332,Translation!$A:$C,3,FALSE),A6332)","v":18},{"$f":"IFERROR(VLOOKUP(B6332,Translation!$A:$C,3,FALSE),B6332)","v":"Cumul 2018"},{"$f":"IFERROR(VLOOKUP(C6332,Translation!$A:$C,3,FALSE),C6332)","v":"PROPRIÉTAIRES-OCCUPANTS, À L’UNITÉ"},{"$f":"IFERROR(VLOOKUP(D6332,Translation!$A:$C,3,FALSE),D6332)","v":"Nouveau-Brunswick"},{"$f":"IFERROR(VLOOKUP(E6332,Translation!$A:$C,3,FALSE),E6332)","v":72.1171287898419},{"$f":"IFERROR(VLOOKUP(F6332,Translation!$A:$C,3,FALSE),F6332)","v":"Prêts hypothécaires assurés au cours de la période selon le milieu urbain/rural (%)"},{"$f":"IFERROR(VLOOKUP(G6332,Translation!$A:$C,3,FALSE),G6332)","v":"72.1"},{"$f":"IFERROR(VLOOKUP(H6332,Translation!$A:$C,3,FALSE),H6332)","v":"Nouveau-Brunswick"}]
[18,"T4 2019","PROPRIÉTAIRES-OCCUPANTS, À L’UNITÉ","Ontario",90.501110053916889,"Prêts hypothécaires assurés au cours de la période selon le milieu urbain/rural (%)","90.5","Ontario",{"$f":"IFERROR(VLOOKUP(A6335,Translation!$A:$C,3,FALSE),A6335)","v":18},{"$f":"IFERROR(VLOOKUP(B6335,Translation!$A:$C,3,FALSE),B6335)","v":"T4 2019"},{"$f":"IFERROR(VLOOKUP(C6335,Translation!$A:$C,3,FALSE),C6335)","v":"PROPRIÉTAIRES-OCCUPANTS, À L’UNITÉ"},{"$f":"IFERROR(VLOOKUP(D6335,Translation!$A:$C,3,FALSE),D6335)","v":"Ontario"},{"$f":"IFERROR(VLOOKUP(E6335,Translation!$A:$C,3,FALSE),E6335)","v":90.501110053916889},{"$f":"IFERROR(VLOOKUP(F6335,Translation!$A:$C,3,FALSE),F6335)","v":"Prêts hypothécaires assurés au cours de la période selon le milieu urbain/rural (%)"},{"$f":"IFERROR(VLOOKUP(G6335,Translation!$A:$C,3,FALSE),G6335)","v":"90.5"},{"$f":"IFERROR(VLOOKUP(H6335,Translation!$A:$C,3,FALSE),H6335)","v":"Ontario"}]
[18,"Cumul 2018","PROPRIÉTAIRES-OCCUPANTS, À L’UNITÉ","Manitoba",83.80462724935731,"Prêts hypothécaires assurés au cours de la période selon le milieu urbain/rural (%)","83.8","Manitoba",{"$f":"IFERROR(VLOOKUP(A6338,Translation!$A:$C,3,FALSE),A6338)","v":18},{"$f":"IFERROR(VLOOKUP(B6338,Translation!$A:$C,3,FALSE),B6338)","v":"Cumul 2018"},{"$f":"IFERROR(VLOOKUP(C6338,Translation!$A:$C,3,FALSE),C6338)","v":"PROPRIÉTAIRES-OCCUPANTS, À L’UNITÉ"},{"$f":"IFERROR(VLOOKUP(D6338,Translation!$A:$C,3,FALSE),D6338)","v":"Manitoba"},{"$f":"IFERROR(VLOOKUP(E6338,Translation!$A:$C,3,FALSE),E6338)","v":83.80462724935731},{"$f":"IFERROR(VLOOKUP(F6338,Translation!$A:$C,3,FALSE),F6338)","v":"Prêts hypothécaires assurés au cours de la période selon le milieu urbain/rural (%)"},{"$f":"IFERROR(VLOOKUP(G6338,Translation!$A:$C,3,FALSE),G6338)","v":"83.8"},{"$f":"IFERROR(VLOOKUP(H6338,Translation!$A:$C,3,FALSE),H6338)","v":"Manitoba"}]
[18,"Cumul 2018","PROPRIÉTAIRES-OCCUPANTS, À L’UNITÉ","Saskatchewan",77.433913604126374,"Prêts hypothécaires assurés au cours de la période selon le milieu urbain/rural (%)","77.4","Saskatchewan",{"$f":"IFERROR(VLOOKUP(A6340,Translation!$A:$C,3,FALSE),A6340)","v":18},{"$f":"IFERROR(VLOOKUP(B6340,Translation!$A:$C,3,FALSE),B6340)","v":"Cumul 2018"},{"$f":"IFERROR(VLOOKUP(C6340,Translation!$A:$C,3,FALSE),C6340)","v":"PROPRIÉTAIRES-OCCUPANTS, À L’UNITÉ"},{"$f":"IFERROR(VLOOKUP(D6340,Translation!$A:$C,3,FALSE),D6340)","v":"Saskatchewan"},{"$f":"IFERROR(VLOOKUP(E6340,Translation!$A:$C,3,FALSE),E6340)","v":77.433913604126374},{"$f":"IFERROR(VLOOKUP(F6340,Translation!$A:$C,3,FALSE),F6340)","v":"Prêts hypothécaires assurés au cours de la période selon le milieu urbain/rural (%)"},{"$f":"IFERROR(VLOOKUP(G6340,Translation!$A:$C,3,FALSE),G6340)","v":"77.4"},{"$f":"IFERROR(VLOOKUP(H6340,Translation!$A:$C,3,FALSE),H6340)","v":"Saskatchewan"}]
[18,"T4 2019","PROPRIÉTAIRES-OCCUPANTS, À L’UNITÉ","Colombie-Britannique",86.327345309381244,"Prêts hypothécaires assurés au cours de la période selon le milieu urbain/rural (%)","86.3","Colombie-Britannique",{"$f":"IFERROR(VLOOKUP(A6343,Translation!$A:$C,3,FALSE),A6343)","v":18},{"$f":"IFERROR(VLOOKUP(B6343,Translation!$A:$C,3,FALSE),B6343)","v":"T4 2019"},{"$f":"IFERROR(VLOOKUP(C6343,Translation!$A:$C,3,FALSE),C6343)","v":"PROPRIÉTAIRES-OCCUPANTS, À L’UNITÉ"},{"$f":"IFERROR(VLOOKUP(D6343,Translation!$A:$C,3,FALSE),D6343)","v":"Colombie-Britannique"},{"$f":"IFERROR(VLOOKUP(E6343,Translation!$A:$C,3,FALSE),E6343)","v":86.327345309381244},{"$f":"IFERROR(VLOOKUP(F6343,Translation!$A:$C,3,FALSE),F6343)","v":"Prêts hypothécaires assurés au cours de la période selon le milieu urbain/rural (%)"},{"$f":"IFERROR(VLOOKUP(G6343,Translation!$A:$C,3,FALSE),G6343)","v":"86.3"},{"$f":"IFERROR(VLOOKUP(H6343,Translation!$A:$C,3,FALSE),H6343)","v":"Colombie-Britannique"}]
[18,"Cumul 2018","PROPRIÉTAIRES-OCCUPANTS, À L’UNITÉ","Territoires",78.669275929549897,"Prêts hypothécaires assurés au cours de la période selon le milieu urbain/rural (%)","78.7","Territoires",{"$f":"IFERROR(VLOOKUP(A6346,Translation!$A:$C,3,FALSE),A6346)","v":18},{"$f":"IFERROR(VLOOKUP(B6346,Translation!$A:$C,3,FALSE),B6346)","v":"Cumul 2018"},{"$f":"IFERROR(VLOOKUP(C6346,Translation!$A:$C,3,FALSE),C6346)","v":"PROPRIÉTAIRES-OCCUPANTS, À L’UNITÉ"},{"$f":"IFERROR(VLOOKUP(D6346,Translation!$A:$C,3,FALSE),D6346)","v":"Territoires"},{"$f":"IFERROR(VLOOKUP(E6346,Translation!$A:$C,3,FALSE),E6346)","v":78.669275929549897},{"$f":"IFERROR(VLOOKUP(F6346,Translation!$A:$C,3,FALSE),F6346)","v":"Prêts hypothécaires assurés au cours de la période selon le milieu urbain/rural (%)"},{"$f":"IFERROR(VLOOKUP(G6346,Translation!$A:$C,3,FALSE),G6346)","v":"78.7"},{"$f":"IFERROR(VLOOKUP(H6346,Translation!$A:$C,3,FALSE),H6346)","v":"Territoires"}]
[18,"Cumul 2018","ASSURANCE DE PORTEFEUILLE","Terre-Neuve-et-Labrador",93.650793650793617,"Prêts hypothécaires assurés au cours de la période selon le milieu urbain/rural (%)","93.7","Terre-Neuve-et-Labrador",{"$f":"IFERROR(VLOOKUP(A6348,Translation!$A:$C,3,FALSE),A6348)","v":18},{"$f":"IFERROR(VLOOKUP(B6348,Translation!$A:$C,3,FALSE),B6348)","v":"Cumul 2018"},{"$f":"IFERROR(VLOOKUP(C6348,Translation!$A:$C,3,FALSE),C6348)","v":"ASSURANCE DE PORTEFEUILLE"},{"$f":"IFERROR(VLOOKUP(D6348,Translation!$A:$C,3,FALSE),D6348)","v":"Terre-Neuve-et-Labrador"},{"$f":"IFERROR(VLOOKUP(E6348,Translation!$A:$C,3,FALSE),E6348)","v":93.650793650793617},{"$f":"IFERROR(VLOOKUP(F6348,Translation!$A:$C,3,FALSE),F6348)","v":"Prêts hypothécaires assurés au cours de la période selon le milieu urbain/rural (%)"},{"$f":"IFERROR(VLOOKUP(G6348,Translation!$A:$C,3,FALSE),G6348)","v":"93.7"},{"$f":"IFERROR(VLOOKUP(H6348,Translation!$A:$C,3,FALSE),H6348)","v":"Terre-Neuve-et-Labrador"}]
[18,"T4 2019","ASSURANCE DE PORTEFEUILLE","Île-du-Prince-Édouard",92.307692307692321,"Prêts hypothécaires assurés au cours de la période selon le milieu urbain/rural (%)","92.3","Île-du-Prince-Édouard",{"$f":"IFERROR(VLOOKUP(A6349,Translation!$A:$C,3,FALSE),A6349)","v":18},{"$f":"IFERROR(VLOOKUP(B6349,Translation!$A:$C,3,FALSE),B6349)","v":"T4 2019"},{"$f":"IFERROR(VLOOKUP(C6349,Translation!$A:$C,3,FALSE),C6349)","v":"ASSURANCE DE PORTEFEUILLE"},{"$f":"IFERROR(VLOOKUP(D6349,Translation!$A:$C,3,FALSE),D6349)","v":"Île-du-Prince-Édouard"},{"$f":"IFERROR(VLOOKUP(E6349,Translation!$A:$C,3,FALSE),E6349)","v":92.307692307692321},{"$f":"IFERROR(VLOOKUP(F6349,Translation!$A:$C,3,FALSE),F6349)","v":"Prêts hypothécaires assurés au cours de la période selon le milieu urbain/rural (%)"},{"$f":"IFERROR(VLOOKUP(G6349,Translation!$A:$C,3,FALSE),G6349)","v":"92.3"},{"$f":"IFERROR(VLOOKUP(H6349,Translation!$A:$C,3,FALSE),H6349)","v":"Île-du-Prince-Édouard"}]
[18,"T4 2019","ASSURANCE DE PORTEFEUILLE","Nouvelle-Écosse",97.222222222222229,"Prêts hypothécaires assurés au cours de la période selon le milieu urbain/rural (%)","97.2","Nouvelle-Écosse",{"$f":"IFERROR(VLOOKUP(A6351,Translation!$A:$C,3,FALSE),A6351)","v":18},{"$f":"IFERROR(VLOOKUP(B6351,Translation!$A:$C,3,FALSE),B6351)","v":"T4 2019"},{"$f":"IFERROR(VLOOKUP(C6351,Translation!$A:$C,3,FALSE),C6351)","v":"ASSURANCE DE PORTEFEUILLE"},{"$f":"IFERROR(VLOOKUP(D6351,Translation!$A:$C,3,FALSE),D6351)","v":"Nouvelle-Écosse"},{"$f":"IFERROR(VLOOKUP(E6351,Translation!$A:$C,3,FALSE),E6351)","v":97.222222222222229},{"$f":"IFERROR(VLOOKUP(F6351,Translation!$A:$C,3,FALSE),F6351)","v":"Prêts hypothécaires assurés au cours de la période selon le milieu urbain/rural (%)"},{"$f":"IFERROR(VLOOKUP(G6351,Translation!$A:$C,3,FALSE),G6351)","v":"97.2"},{"$f":"IFERROR(VLOOKUP(H6351,Translation!$A:$C,3,FALSE),H6351)","v":"Nouvelle-Écosse"}]
[18,"Cumul 2018","ASSURANCE DE PORTEFEUILLE","Nouveau-Brunswick",81.707317073170714,"Prêts hypothécaires assurés au cours de la période selon le milieu urbain/rural (%)","81.7","Nouveau-Brunswick",{"$f":"IFERROR(VLOOKUP(A6354,Translation!$A:$C,3,FALSE),A6354)","v":18},{"$f":"IFERROR(VLOOKUP(B6354,Translation!$A:$C,3,FALSE),B6354)","v":"Cumul 2018"},{"$f":"IFERROR(VLOOKUP(C6354,Translation!$A:$C,3,FALSE),C6354)","v":"ASSURANCE DE PORTEFEUILLE"},{"$f":"IFERROR(VLOOKUP(D6354,Translation!$A:$C,3,FALSE),D6354)","v":"Nouveau-Brunswick"},{"$f":"IFERROR(VLOOKUP(E6354,Translation!$A:$C,3,FALSE),E6354)","v":81.707317073170714},{"$f":"IFERROR(VLOOKUP(F6354,Translation!$A:$C,3,FALSE),F6354)","v":"Prêts hypothécaires assurés au cours de la période selon le milieu urbain/rural (%)"},{"$f":"IFERROR(VLOOKUP(G6354,Translation!$A:$C,3,FALSE),G6354)","v":"81.7"},{"$f":"IFERROR(VLOOKUP(H6354,Translation!$A:$C,3,FALSE),H6354)","v":"Nouveau-Brunswick"}]
[18,"T4 2019","ASSURANCE DE PORTEFEUILLE","Ontario",92.932120363890817,"Prêts hypothécaires assurés au cours de la période selon le milieu urbain/rural (%)","92.9","Ontario",{"$f":"IFERROR(VLOOKUP(A6357,Translation!$A:$C,3,FALSE),A6357)","v":18},{"$f":"IFERROR(VLOOKUP(B6357,Translation!$A:$C,3,FALSE),B6357)","v":"T4 2019"},{"$f":"IFERROR(VLOOKUP(C6357,Translation!$A:$C,3,FALSE),C6357)","v":"ASSURANCE DE PORTEFEUILLE"},{"$f":"IFERROR(VLOOKUP(D6357,Translation!$A:$C,3,FALSE),D6357)","v":"Ontario"},{"$f":"IFERROR(VLOOKUP(E6357,Translation!$A:$C,3,FALSE),E6357)","v":92.932120363890817},{"$f":"IFERROR(VLOOKUP(F6357,Translation!$A:$C,3,FALSE),F6357)","v":"Prêts hypothécaires assurés au cours de la période selon le milieu urbain/rural (%)"},{"$f":"IFERROR(VLOOKUP(G6357,Translation!$A:$C,3,FALSE),G6357)","v":"92.9"},{"$f":"IFERROR(VLOOKUP(H6357,Translation!$A:$C,3,FALSE),H6357)","v":"Ontario"}]
[18,"T4 2019","ASSURANCE DE PORTEFEUILLE","Manitoba",93.518518518518533,"Prêts hypothécaires assurés au cours de la période selon le milieu urbain/rural (%)","93.5","Manitoba",{"$f":"IFERROR(VLOOKUP(A6359,Translation!$A:$C,3,FALSE),A6359)","v":18},{"$f":"IFERROR(VLOOKUP(B6359,Translation!$A:$C,3,FALSE),B6359)","v":"T4 2019"},{"$f":"IFERROR(VLOOKUP(C6359,Translation!$A:$C,3,FALSE),C6359)","v":"ASSURANCE DE PORTEFEUILLE"},{"$f":"IFERROR(VLOOKUP(D6359,Translation!$A:$C,3,FALSE),D6359)","v":"Manitoba"},{"$f":"IFERROR(VLOOKUP(E6359,Translation!$A:$C,3,FALSE),E6359)","v":93.518518518518533},{"$f":"IFERROR(VLOOKUP(F6359,Translation!$A:$C,3,FALSE),F6359)","v":"Prêts hypothécaires assurés au cours de la période selon le milieu urbain/rural (%)"},{"$f":"IFERROR(VLOOKUP(G6359,Translation!$A:$C,3,FALSE),G6359)","v":"93.5"},{"$f":"IFERROR(VLOOKUP(H6359,Translation!$A:$C,3,FALSE),H6359)","v":"Manitoba"}]
[18,"Cumul 2018","ASSURANCE DE PORTEFEUILLE","Saskatchewan",83.843537414965979,"Prêts hypothécaires assurés au cours de la période selon le milieu urbain/rural (%)","83.8","Saskatchewan",{"$f":"IFERROR(VLOOKUP(A6362,Translation!$A:$C,3,FALSE),A6362)","v":18},{"$f":"IFERROR(VLOOKUP(B6362,Translation!$A:$C,3,FALSE),B6362)","v":"Cumul 2018"},{"$f":"IFERROR(VLOOKUP(C6362,Translation!$A:$C,3,FALSE),C6362)","v":"ASSURANCE DE PORTEFEUILLE"},{"$f":"IFERROR(VLOOKUP(D6362,Translation!$A:$C,3,FALSE),D6362)","v":"Saskatchewan"},{"$f":"IFERROR(VLOOKUP(E6362,Translation!$A:$C,3,FALSE),E6362)","v":83.843537414965979},{"$f":"IFERROR(VLOOKUP(F6362,Translation!$A:$C,3,FALSE),F6362)","v":"Prêts hypothécaires assurés au cours de la période selon le milieu urbain/rural (%)"},{"$f":"IFERROR(VLOOKUP(G6362,Translation!$A:$C,3,FALSE),G6362)","v":"83.8"},{"$f":"IFERROR(VLOOKUP(H6362,Translation!$A:$C,3,FALSE),H6362)","v":"Saskatchewan"}]
[18,"T4 2019","ASSURANCE DE PORTEFEUILLE","Colombie-Britannique",96.307692307692321,"Prêts hypothécaires assurés au cours de la période selon le milieu urbain/rural (%)","96.3","Colombie-Britannique",{"$f":"IFERROR(VLOOKUP(A6365,Translation!$A:$C,3,FALSE),A6365)","v":18},{"$f":"IFERROR(VLOOKUP(B6365,Translation!$A:$C,3,FALSE),B6365)","v":"T4 2019"},{"$f":"IFERROR(VLOOKUP(C6365,Translation!$A:$C,3,FALSE),C6365)","v":"ASSURANCE DE PORTEFEUILLE"},{"$f":"IFERROR(VLOOKUP(D6365,Translation!$A:$C,3,FALSE),D6365)","v":"Colombie-Britannique"},{"$f":"IFERROR(VLOOKUP(E6365,Translation!$A:$C,3,FALSE),E6365)","v":96.307692307692321},{"$f":"IFERROR(VLOOKUP(F6365,Translation!$A:$C,3,FALSE),F6365)","v":"Prêts hypothécaires assurés au cours de la période selon le milieu urbain/rural (%)"},{"$f":"IFERROR(VLOOKUP(G6365,Translation!$A:$C,3,FALSE),G6365)","v":"96.3"},{"$f":"IFERROR(VLOOKUP(H6365,Translation!$A:$C,3,FALSE),H6365)","v":"Colombie-Britannique"}]
[18,"T4 2019","ASSURANCE DE PORTEFEUILLE","Territoires",88.636363636363654,"Prêts hypothécaires assurés au cours de la période selon le milieu urbain/rural (%)","88.6","Territoires",{"$f":"IFERROR(VLOOKUP(A6367,Translation!$A:$C,3,FALSE),A6367)","v":18},{"$f":"IFERROR(VLOOKUP(B6367,Translation!$A:$C,3,FALSE),B6367)","v":"T4 2019"},{"$f":"IFERROR(VLOOKUP(C6367,Translation!$A:$C,3,FALSE),C6367)","v":"ASSURANCE DE PORTEFEUILLE"},{"$f":"IFERROR(VLOOKUP(D6367,Translation!$A:$C,3,FALSE),D6367)","v":"Territoires"},{"$f":"IFERROR(VLOOKUP(E6367,Translation!$A:$C,3,FALSE),E6367)","v":88.636363636363654},{"$f":"IFERROR(VLOOKUP(F6367,Translation!$A:$C,3,FALSE),F6367)","v":"Prêts hypothécaires assurés au cours de la période selon le milieu urbain/rural (%)"},{"$f":"IFERROR(VLOOKUP(G6367,Translation!$A:$C,3,FALSE),G6367)","v":"88.6"},{"$f":"IFERROR(VLOOKUP(H6367,Translation!$A:$C,3,FALSE),H6367)","v":"Territoires"}]
[30,"T4 2019","IMMEUBLES COLLECTIFS RÉSIDENTIELS","Rural",1.1307036125264784,"Prêts hypothécaires assurés au cours de la période selon le milieu urbain/rural (%)","1.1","Rural",{"$f":"IFERROR(VLOOKUP(A6368,Translation!$A:$C,3,FALSE),A6368)","v":30},{"$f":"IFERROR(VLOOKUP(B6368,Translation!$A:$C,3,FALSE),B6368)","v":"T4 2019"},{"$f":"IFERROR(VLOOKUP(C6368,Translation!$A:$C,3,FALSE),C6368)","v":"IMMEUBLES COLLECTIFS RÉSIDENTIELS"},{"$f":"IFERROR(VLOOKUP(D6368,Translation!$A:$C,3,FALSE),D6368)","v":"Rural"},{"$f":"IFERROR(VLOOKUP(E6368,Translation!$A:$C,3,FALSE),E6368)","v":1.1307036125264784},{"$f":"IFERROR(VLOOKUP(F6368,Translation!$A:$C,3,FALSE),F6368)","v":"Prêts hypothécaires assurés au cours de la période selon le milieu urbain/rural (%)"},{"$f":"IFERROR(VLOOKUP(G6368,Translation!$A:$C,3,FALSE),G6368)","v":"1.1"},{"$f":"IFERROR(VLOOKUP(H6368,Translation!$A:$C,3,FALSE),H6368)","v":"Rural"}]
[30,"T4 2019","IMMEUBLES COLLECTIFS RÉSIDENTIELS","Terre-Neuve-et-Labrador",100,"Prêts hypothécaires assurés au cours de la période selon le milieu urbain/rural (%)","100.0","Terre-Neuve-et-Labrador",{"$f":"IFERROR(VLOOKUP(A6372,Translation!$A:$C,3,FALSE),A6372)","v":30},{"$f":"IFERROR(VLOOKUP(B6372,Translation!$A:$C,3,FALSE),B6372)","v":"T4 2019"},{"$f":"IFERROR(VLOOKUP(C6372,Translation!$A:$C,3,FALSE),C6372)","v":"IMMEUBLES COLLECTIFS RÉSIDENTIELS"},{"$f":"IFERROR(VLOOKUP(D6372,Translation!$A:$C,3,FALSE),D6372)","v":"Terre-Neuve-et-Labrador"},{"$f":"IFERROR(VLOOKUP(E6372,Translation!$A:$C,3,FALSE),E6372)","v":100},{"$f":"IFERROR(VLOOKUP(F6372,Translation!$A:$C,3,FALSE),F6372)","v":"Prêts hypothécaires assurés au cours de la période selon le milieu urbain/rural (%)"},{"$f":"IFERROR(VLOOKUP(G6372,Translation!$A:$C,3,FALSE),G6372)","v":"100.0"},{"$f":"IFERROR(VLOOKUP(H6372,Translation!$A:$C,3,FALSE),H6372)","v":"Terre-Neuve-et-Labrador"}]
[30,"Cumul 2018","IMMEUBLES COLLECTIFS RÉSIDENTIELS","Terre-Neuve-et-Labrador",97.014925373134375,"Prêts hypothécaires assurés au cours de la période selon le milieu urbain/rural (%)","97.0","Terre-Neuve-et-Labrador",{"$f":"IFERROR(VLOOKUP(A6373,Translation!$A:$C,3,FALSE),A6373)","v":30},{"$f":"IFERROR(VLOOKUP(B6373,Translation!$A:$C,3,FALSE),B6373)","v":"Cumul 2018"},{"$f":"IFERROR(VLOOKUP(C6373,Translation!$A:$C,3,FALSE),C6373)","v":"IMMEUBLES COLLECTIFS RÉSIDENTIELS"},{"$f":"IFERROR(VLOOKUP(D6373,Translation!$A:$C,3,FALSE),D6373)","v":"Terre-Neuve-et-Labrador"},{"$f":"IFERROR(VLOOKUP(E6373,Translation!$A:$C,3,FALSE),E6373)","v":97.014925373134375},{"$f":"IFERROR(VLOOKUP(F6373,Translation!$A:$C,3,FALSE),F6373)","v":"Prêts hypothécaires assurés au cours de la période selon le milieu urbain/rural (%)"},{"$f":"IFERROR(VLOOKUP(G6373,Translation!$A:$C,3,FALSE),G6373)","v":"97.0"},{"$f":"IFERROR(VLOOKUP(H6373,Translation!$A:$C,3,FALSE),H6373)","v":"Terre-Neuve-et-Labrador"}]
[30,"T4 2019","IMMEUBLES COLLECTIFS RÉSIDENTIELS","Nouvelle-Écosse",99.547803617571077,"Prêts hypothécaires assurés au cours de la période selon le milieu urbain/rural (%)","99.5","Nouvelle-Écosse",{"$f":"IFERROR(VLOOKUP(A6376,Translation!$A:$C,3,FALSE),A6376)","v":30},{"$f":"IFERROR(VLOOKUP(B6376,Translation!$A:$C,3,FALSE),B6376)","v":"T4 2019"},{"$f":"IFERROR(VLOOKUP(C6376,Translation!$A:$C,3,FALSE),C6376)","v":"IMMEUBLES COLLECTIFS RÉSIDENTIELS"},{"$f":"IFERROR(VLOOKUP(D6376,Translation!$A:$C,3,FALSE),D6376)","v":"Nouvelle-Écosse"},{"$f":"IFERROR(VLOOKUP(E6376,Translation!$A:$C,3,FALSE),E6376)","v":99.547803617571077},{"$f":"IFERROR(VLOOKUP(F6376,Translation!$A:$C,3,FALSE),F6376)","v":"Prêts hypothécaires assurés au cours de la période selon le milieu urbain/rural (%)"},{"$f":"IFERROR(VLOOKUP(G6376,Translation!$A:$C,3,FALSE),G6376)","v":"99.5"},{"$f":"IFERROR(VLOOKUP(H6376,Translation!$A:$C,3,FALSE),H6376)","v":"Nouvelle-Écosse"}]
[30,"T4 2019","IMMEUBLES COLLECTIFS RÉSIDENTIELS","Nouveau-Brunswick",100,"Prêts hypothécaires assurés au cours de la période selon le milieu urbain/rural (%)","100.0","Nouveau-Brunswick",{"$f":"IFERROR(VLOOKUP(A6378,Translation!$A:$C,3,FALSE),A6378)","v":30},{"$f":"IFERROR(VLOOKUP(B6378,Translation!$A:$C,3,FALSE),B6378)","v":"T4 2019"},{"$f":"IFERROR(VLOOKUP(C6378,Translation!$A:$C,3,FALSE),C6378)","v":"IMMEUBLES COLLECTIFS RÉSIDENTIELS"},{"$f":"IFERROR(VLOOKUP(D6378,Translation!$A:$C,3,FALSE),D6378)","v":"Nouveau-Brunswick"},{"$f":"IFERROR(VLOOKUP(E6378,Translation!$A:$C,3,FALSE),E6378)","v":100},{"$f":"IFERROR(VLOOKUP(F6378,Translation!$A:$C,3,FALSE),F6378)","v":"Prêts hypothécaires assurés au cours de la période selon le milieu urbain/rural (%)"},{"$f":"IFERROR(VLOOKUP(G6378,Translation!$A:$C,3,FALSE),G6378)","v":"100.0"},{"$f":"IFERROR(VLOOKUP(H6378,Translation!$A:$C,3,FALSE),H6378)","v":"Nouveau-Brunswick"}]
[30,"T4 2019","IMMEUBLES COLLECTIFS RÉSIDENTIELS","Ontario",98.648648648648646,"Prêts hypothécaires assurés au cours de la période selon le milieu urbain/rural (%)","98.6","Ontario",{"$f":"IFERROR(VLOOKUP(A6382,Translation!$A:$C,3,FALSE),A6382)","v":30},{"$f":"IFERROR(VLOOKUP(B6382,Translation!$A:$C,3,FALSE),B6382)","v":"T4 2019"},{"$f":"IFERROR(VLOOKUP(C6382,Translation!$A:$C,3,FALSE),C6382)","v":"IMMEUBLES COLLECTIFS RÉSIDENTIELS"},{"$f":"IFERROR(VLOOKUP(D6382,Translation!$A:$C,3,FALSE),D6382)","v":"Ontario"},{"$f":"IFERROR(VLOOKUP(E6382,Translation!$A:$C,3,FALSE),E6382)","v":98.648648648648646},{"$f":"IFERROR(VLOOKUP(F6382,Translation!$A:$C,3,FALSE),F6382)","v":"Prêts hypothécaires assurés au cours de la période selon le milieu urbain/rural (%)"},{"$f":"IFERROR(VLOOKUP(G6382,Translation!$A:$C,3,FALSE),G6382)","v":"98.6"},{"$f":"IFERROR(VLOOKUP(H6382,Translation!$A:$C,3,FALSE),H6382)","v":"Ontario"}]
[30,"Cumul 2018","IMMEUBLES COLLECTIFS RÉSIDENTIELS","Ontario",98.013166619304698,"Prêts hypothécaires assurés au cours de la période selon le milieu urbain/rural (%)","98.0","Ontario",{"$f":"IFERROR(VLOOKUP(A6383,Translation!$A:$C,3,FALSE),A6383)","v":30},{"$f":"IFERROR(VLOOKUP(B6383,Translation!$A:$C,3,FALSE),B6383)","v":"Cumul 2018"},{"$f":"IFERROR(VLOOKUP(C6383,Translation!$A:$C,3,FALSE),C6383)","v":"IMMEUBLES COLLECTIFS RÉSIDENTIELS"},{"$f":"IFERROR(VLOOKUP(D6383,Translation!$A:$C,3,FALSE),D6383)","v":"Ontario"},{"$f":"IFERROR(VLOOKUP(E6383,Translation!$A:$C,3,FALSE),E6383)","v":98.013166619304698},{"$f":"IFERROR(VLOOKUP(F6383,Translation!$A:$C,3,FALSE),F6383)","v":"Prêts hypothécaires assurés au cours de la période selon le milieu urbain/rural (%)"},{"$f":"IFERROR(VLOOKUP(G6383,Translation!$A:$C,3,FALSE),G6383)","v":"98.0"},{"$f":"IFERROR(VLOOKUP(H6383,Translation!$A:$C,3,FALSE),H6383)","v":"Ontario"}]
[30,"T4 2019","IMMEUBLES COLLECTIFS RÉSIDENTIELS","Saskatchewan",100,"Prêts hypothécaires assurés au cours de la période selon le milieu urbain/rural (%)","100.0","Saskatchewan",{"$f":"IFERROR(VLOOKUP(A6386,Translation!$A:$C,3,FALSE),A6386)","v":30},{"$f":"IFERROR(VLOOKUP(B6386,Translation!$A:$C,3,FALSE),B6386)","v":"T4 2019"},{"$f":"IFERROR(VLOOKUP(C6386,Translation!$A:$C,3,FALSE),C6386)","v":"IMMEUBLES COLLECTIFS RÉSIDENTIELS"},{"$f":"IFERROR(VLOOKUP(D6386,Translation!$A:$C,3,FALSE),D6386)","v":"Saskatchewan"},{"$f":"IFERROR(VLOOKUP(E6386,Translation!$A:$C,3,FALSE),E6386)","v":100},{"$f":"IFERROR(VLOOKUP(F6386,Translation!$A:$C,3,FALSE),F6386)","v":"Prêts hypothécaires assurés au cours de la période selon le milieu urbain/rural (%)"},{"$f":"IFERROR(VLOOKUP(G6386,Translation!$A:$C,3,FALSE),G6386)","v":"100.0"},{"$f":"IFERROR(VLOOKUP(H6386,Translation!$A:$C,3,FALSE),H6386)","v":"Saskatchewan"}]
[30,"Cumul 2018","IMMEUBLES COLLECTIFS RÉSIDENTIELS","Saskatchewan",96.216216216216239,"Prêts hypothécaires assurés au cours de la période selon le milieu urbain/rural (%)","96.2","Saskatchewan",{"$f":"IFERROR(VLOOKUP(A6387,Translation!$A:$C,3,FALSE),A6387)","v":30},{"$f":"IFERROR(VLOOKUP(B6387,Translation!$A:$C,3,FALSE),B6387)","v":"Cumul 2018"},{"$f":"IFERROR(VLOOKUP(C6387,Translation!$A:$C,3,FALSE),C6387)","v":"IMMEUBLES COLLECTIFS RÉSIDENTIELS"},{"$f":"IFERROR(VLOOKUP(D6387,Translation!$A:$C,3,FALSE),D6387)","v":"Saskatchewan"},{"$f":"IFERROR(VLOOKUP(E6387,Translation!$A:$C,3,FALSE),E6387)","v":96.216216216216239},{"$f":"IFERROR(VLOOKUP(F6387,Translation!$A:$C,3,FALSE),F6387)","v":"Prêts hypothécaires assurés au cours de la période selon le milieu urbain/rural (%)"},{"$f":"IFERROR(VLOOKUP(G6387,Translation!$A:$C,3,FALSE),G6387)","v":"96.2"},{"$f":"IFERROR(VLOOKUP(H6387,Translation!$A:$C,3,FALSE),H6387)","v":"Saskatchewan"}]
[30,"Cumul 2018","IMMEUBLES COLLECTIFS RÉSIDENTIELS","Colombie-Britannique",99.612936521589518,"Prêts hypothécaires assurés au cours de la période selon le milieu urbain/rural (%)","99.6","Colombie-Britannique",{"$f":"IFERROR(VLOOKUP(A6391,Translation!$A:$C,3,FALSE),A6391)","v":30},{"$f":"IFERROR(VLOOKUP(B6391,Translation!$A:$C,3,FALSE),B6391)","v":"Cumul 2018"},{"$f":"IFERROR(VLOOKUP(C6391,Translation!$A:$C,3,FALSE),C6391)","v":"IMMEUBLES COLLECTIFS RÉSIDENTIELS"},{"$f":"IFERROR(VLOOKUP(D6391,Translation!$A:$C,3,FALSE),D6391)","v":"Colombie-Britannique"},{"$f":"IFERROR(VLOOKUP(E6391,Translation!$A:$C,3,FALSE),E6391)","v":99.612936521589518},{"$f":"IFERROR(VLOOKUP(F6391,Translation!$A:$C,3,FALSE),F6391)","v":"Prêts hypothécaires assurés au cours de la période selon le milieu urbain/rural (%)"},{"$f":"IFERROR(VLOOKUP(G6391,Translation!$A:$C,3,FALSE),G6391)","v":"99.6"},{"$f":"IFERROR(VLOOKUP(H6391,Translation!$A:$C,3,FALSE),H6391)","v":"Colombie-Britannique"}]
[18,"T3 2019","PROPRIÉTAIRES-OCCUPANTS, À L’UNITÉ","Rural",14.350274864254152,"Prêts hypothécaires assurés au cours de la période selon le milieu urbain/rural (%)","14.4","Rural",{"$f":"IFERROR(VLOOKUP(A6393,Translation!$A:$C,3,FALSE),A6393)","v":18},{"$f":"IFERROR(VLOOKUP(B6393,Translation!$A:$C,3,FALSE),B6393)","v":"T3 2019"},{"$f":"IFERROR(VLOOKUP(C6393,Translation!$A:$C,3,FALSE),C6393)","v":"PROPRIÉTAIRES-OCCUPANTS, À L’UNITÉ"},{"$f":"IFERROR(VLOOKUP(D6393,Translation!$A:$C,3,FALSE),D6393)","v":"Rural"},{"$f":"IFERROR(VLOOKUP(E6393,Translation!$A:$C,3,FALSE),E6393)","v":14.350274864254152},{"$f":"IFERROR(VLOOKUP(F6393,Translation!$A:$C,3,FALSE),F6393)","v":"Prêts hypothécaires assurés au cours de la période selon le milieu urbain/rural (%)"},{"$f":"IFERROR(VLOOKUP(G6393,Translation!$A:$C,3,FALSE),G6393)","v":"14.4"},{"$f":"IFERROR(VLOOKUP(H6393,Translation!$A:$C,3,FALSE),H6393)","v":"Rural"}]
[18,"T3 2019","ASSURANCE DE PORTEFEUILLE","Urbain",93.329912775782404,"Prêts hypothécaires assurés au cours de la période selon le milieu urbain/rural (%)","93.3","Urbain",{"$f":"IFERROR(VLOOKUP(A6396,Translation!$A:$C,3,FALSE),A6396)","v":18},{"$f":"IFERROR(VLOOKUP(B6396,Translation!$A:$C,3,FALSE),B6396)","v":"T3 2019"},{"$f":"IFERROR(VLOOKUP(C6396,Translation!$A:$C,3,FALSE),C6396)","v":"ASSURANCE DE PORTEFEUILLE"},{"$f":"IFERROR(VLOOKUP(D6396,Translation!$A:$C,3,FALSE),D6396)","v":"Urbain"},{"$f":"IFERROR(VLOOKUP(E6396,Translation!$A:$C,3,FALSE),E6396)","v":93.329912775782404},{"$f":"IFERROR(VLOOKUP(F6396,Translation!$A:$C,3,FALSE),F6396)","v":"Prêts hypothécaires assurés au cours de la période selon le milieu urbain/rural (%)"},{"$f":"IFERROR(VLOOKUP(G6396,Translation!$A:$C,3,FALSE),G6396)","v":"93.3"},{"$f":"IFERROR(VLOOKUP(H6396,Translation!$A:$C,3,FALSE),H6396)","v":"Urbain"}]
[18,"T3 2019","PROPRIÉTAIRES-OCCUPANTS, À L’UNITÉ","Terre-Neuve-et-Labrador",68.86792452830187,"Prêts hypothécaires assurés au cours de la période selon le milieu urbain/rural (%)","68.9","Terre-Neuve-et-Labrador",{"$f":"IFERROR(VLOOKUP(A6397,Translation!$A:$C,3,FALSE),A6397)","v":18},{"$f":"IFERROR(VLOOKUP(B6397,Translation!$A:$C,3,FALSE),B6397)","v":"T3 2019"},{"$f":"IFERROR(VLOOKUP(C6397,Translation!$A:$C,3,FALSE),C6397)","v":"PROPRIÉTAIRES-OCCUPANTS, À L’UNITÉ"},{"$f":"IFERROR(VLOOKUP(D6397,Translation!$A:$C,3,FALSE),D6397)","v":"Terre-Neuve-et-Labrador"},{"$f":"IFERROR(VLOOKUP(E6397,Translation!$A:$C,3,FALSE),E6397)","v":68.86792452830187},{"$f":"IFERROR(VLOOKUP(F6397,Translation!$A:$C,3,FALSE),F6397)","v":"Prêts hypothécaires assurés au cours de la période selon le milieu urbain/rural (%)"},{"$f":"IFERROR(VLOOKUP(G6397,Translation!$A:$C,3,FALSE),G6397)","v":"68.9"},{"$f":"IFERROR(VLOOKUP(H6397,Translation!$A:$C,3,FALSE),H6397)","v":"Terre-Neuve-et-Labrador"}]
[18,"T3 2019","PROPRIÉTAIRES-OCCUPANTS, À L’UNITÉ","Québec",81.796116504854353,"Prêts hypothécaires assurés au cours de la période selon le milieu urbain/rural (%)","81.8","Québec",{"$f":"IFERROR(VLOOKUP(A6401,Translation!$A:$C,3,FALSE),A6401)","v":18},{"$f":"IFERROR(VLOOKUP(B6401,Translation!$A:$C,3,FALSE),B6401)","v":"T3 2019"},{"$f":"IFERROR(VLOOKUP(C6401,Translation!$A:$C,3,FALSE),C6401)","v":"PROPRIÉTAIRES-OCCUPANTS, À L’UNITÉ"},{"$f":"IFERROR(VLOOKUP(D6401,Translation!$A:$C,3,FALSE),D6401)","v":"Québec"},{"$f":"IFERROR(VLOOKUP(E6401,Translation!$A:$C,3,FALSE),E6401)","v":81.796116504854353},{"$f":"IFERROR(VLOOKUP(F6401,Translation!$A:$C,3,FALSE),F6401)","v":"Prêts hypothécaires assurés au cours de la période selon le milieu urbain/rural (%)"},{"$f":"IFERROR(VLOOKUP(G6401,Translation!$A:$C,3,FALSE),G6401)","v":"81.8"},{"$f":"IFERROR(VLOOKUP(H6401,Translation!$A:$C,3,FALSE),H6401)","v":"Québec"}]
[18,"T3 2019","PROPRIÉTAIRES-OCCUPANTS, À L’UNITÉ","Ontario",90.395406498760295,"Prêts hypothécaires assurés au cours de la période selon le milieu urbain/rural (%)","90.4","Ontario",{"$f":"IFERROR(VLOOKUP(A6402,Translation!$A:$C,3,FALSE),A6402)","v":18},{"$f":"IFERROR(VLOOKUP(B6402,Translation!$A:$C,3,FALSE),B6402)","v":"T3 2019"},{"$f":"IFERROR(VLOOKUP(C6402,Translation!$A:$C,3,FALSE),C6402)","v":"PROPRIÉTAIRES-OCCUPANTS, À L’UNITÉ"},{"$f":"IFERROR(VLOOKUP(D6402,Translation!$A:$C,3,FALSE),D6402)","v":"Ontario"},{"$f":"IFERROR(VLOOKUP(E6402,Translation!$A:$C,3,FALSE),E6402)","v":90.395406498760295},{"$f":"IFERROR(VLOOKUP(F6402,Translation!$A:$C,3,FALSE),F6402)","v":"Prêts hypothécaires assurés au cours de la période selon le milieu urbain/rural (%)"},{"$f":"IFERROR(VLOOKUP(G6402,Translation!$A:$C,3,FALSE),G6402)","v":"90.4"},{"$f":"IFERROR(VLOOKUP(H6402,Translation!$A:$C,3,FALSE),H6402)","v":"Ontario"}]
[18,"T3 2019","PROPRIÉTAIRES-OCCUPANTS, À L’UNITÉ","Saskatchewan",79.473106476399551,"Prêts hypothécaires assurés au cours de la période selon le milieu urbain/rural (%)","79.5","Saskatchewan",{"$f":"IFERROR(VLOOKUP(A6404,Translation!$A:$C,3,FALSE),A6404)","v":18},{"$f":"IFERROR(VLOOKUP(B6404,Translation!$A:$C,3,FALSE),B6404)","v":"T3 2019"},{"$f":"IFERROR(VLOOKUP(C6404,Translation!$A:$C,3,FALSE),C6404)","v":"PROPRIÉTAIRES-OCCUPANTS, À L’UNITÉ"},{"$f":"IFERROR(VLOOKUP(D6404,Translation!$A:$C,3,FALSE),D6404)","v":"Saskatchewan"},{"$f":"IFERROR(VLOOKUP(E6404,Translation!$A:$C,3,FALSE),E6404)","v":79.473106476399551},{"$f":"IFERROR(VLOOKUP(F6404,Translation!$A:$C,3,FALSE),F6404)","v":"Prêts hypothécaires assurés au cours de la période selon le milieu urbain/rural (%)"},{"$f":"IFERROR(VLOOKUP(G6404,Translation!$A:$C,3,FALSE),G6404)","v":"79.5"},{"$f":"IFERROR(VLOOKUP(H6404,Translation!$A:$C,3,FALSE),H6404)","v":"Saskatchewan"}]
[18,"T3 2019","PROPRIÉTAIRES-OCCUPANTS, À L’UNITÉ","Territoires",84.745762711864401,"Prêts hypothécaires assurés au cours de la période selon le milieu urbain/rural (%)","84.7","Territoires",{"$f":"IFERROR(VLOOKUP(A6407,Translation!$A:$C,3,FALSE),A6407)","v":18},{"$f":"IFERROR(VLOOKUP(B6407,Translation!$A:$C,3,FALSE),B6407)","v":"T3 2019"},{"$f":"IFERROR(VLOOKUP(C6407,Translation!$A:$C,3,FALSE),C6407)","v":"PROPRIÉTAIRES-OCCUPANTS, À L’UNITÉ"},{"$f":"IFERROR(VLOOKUP(D6407,Translation!$A:$C,3,FALSE),D6407)","v":"Territoires"},{"$f":"IFERROR(VLOOKUP(E6407,Translation!$A:$C,3,FALSE),E6407)","v":84.745762711864401},{"$f":"IFERROR(VLOOKUP(F6407,Translation!$A:$C,3,FALSE),F6407)","v":"Prêts hypothécaires assurés au cours de la période selon le milieu urbain/rural (%)"},{"$f":"IFERROR(VLOOKUP(G6407,Translation!$A:$C,3,FALSE),G6407)","v":"84.7"},{"$f":"IFERROR(VLOOKUP(H6407,Translation!$A:$C,3,FALSE),H6407)","v":"Territoires"}]
[18,"T3 2019","ASSURANCE DE PORTEFEUILLE","Québec",95.145631067961148,"Prêts hypothécaires assurés au cours de la période selon le milieu urbain/rural (%)","95.1","Québec",{"$f":"IFERROR(VLOOKUP(A6410,Translation!$A:$C,3,FALSE),A6410)","v":18},{"$f":"IFERROR(VLOOKUP(B6410,Translation!$A:$C,3,FALSE),B6410)","v":"T3 2019"},{"$f":"IFERROR(VLOOKUP(C6410,Translation!$A:$C,3,FALSE),C6410)","v":"ASSURANCE DE PORTEFEUILLE"},{"$f":"IFERROR(VLOOKUP(D6410,Translation!$A:$C,3,FALSE),D6410)","v":"Québec"},{"$f":"IFERROR(VLOOKUP(E6410,Translation!$A:$C,3,FALSE),E6410)","v":95.145631067961148},{"$f":"IFERROR(VLOOKUP(F6410,Translation!$A:$C,3,FALSE),F6410)","v":"Prêts hypothécaires assurés au cours de la période selon le milieu urbain/rural (%)"},{"$f":"IFERROR(VLOOKUP(G6410,Translation!$A:$C,3,FALSE),G6410)","v":"95.1"},{"$f":"IFERROR(VLOOKUP(H6410,Translation!$A:$C,3,FALSE),H6410)","v":"Québec"}]
[18,"T3 2019","ASSURANCE DE PORTEFEUILLE","Manitoba",97.142857142857125,"Prêts hypothécaires assurés au cours de la période selon le milieu urbain/rural (%)","97.1","Manitoba",{"$f":"IFERROR(VLOOKUP(A6412,Translation!$A:$C,3,FALSE),A6412)","v":18},{"$f":"IFERROR(VLOOKUP(B6412,Translation!$A:$C,3,FALSE),B6412)","v":"T3 2019"},{"$f":"IFERROR(VLOOKUP(C6412,Translation!$A:$C,3,FALSE),C6412)","v":"ASSURANCE DE PORTEFEUILLE"},{"$f":"IFERROR(VLOOKUP(D6412,Translation!$A:$C,3,FALSE),D6412)","v":"Manitoba"},{"$f":"IFERROR(VLOOKUP(E6412,Translation!$A:$C,3,FALSE),E6412)","v":97.142857142857125},{"$f":"IFERROR(VLOOKUP(F6412,Translation!$A:$C,3,FALSE),F6412)","v":"Prêts hypothécaires assurés au cours de la période selon le milieu urbain/rural (%)"},{"$f":"IFERROR(VLOOKUP(G6412,Translation!$A:$C,3,FALSE),G6412)","v":"97.1"},{"$f":"IFERROR(VLOOKUP(H6412,Translation!$A:$C,3,FALSE),H6412)","v":"Manitoba"}]
[18,"T3 2019","ASSURANCE DE PORTEFEUILLE","Colombie-Britannique",97.969543147208157,"Prêts hypothécaires assurés au cours de la période selon le milieu urbain/rural (%)","98.0","Colombie-Britannique",{"$f":"IFERROR(VLOOKUP(A6415,Translation!$A:$C,3,FALSE),A6415)","v":18},{"$f":"IFERROR(VLOOKUP(B6415,Translation!$A:$C,3,FALSE),B6415)","v":"T3 2019"},{"$f":"IFERROR(VLOOKUP(C6415,Translation!$A:$C,3,FALSE),C6415)","v":"ASSURANCE DE PORTEFEUILLE"},{"$f":"IFERROR(VLOOKUP(D6415,Translation!$A:$C,3,FALSE),D6415)","v":"Colombie-Britannique"},{"$f":"IFERROR(VLOOKUP(E6415,Translation!$A:$C,3,FALSE),E6415)","v":97.969543147208157},{"$f":"IFERROR(VLOOKUP(F6415,Translation!$A:$C,3,FALSE),F6415)","v":"Prêts hypothécaires assurés au cours de la période selon le milieu urbain/rural (%)"},{"$f":"IFERROR(VLOOKUP(G6415,Translation!$A:$C,3,FALSE),G6415)","v":"98.0"},{"$f":"IFERROR(VLOOKUP(H6415,Translation!$A:$C,3,FALSE),H6415)","v":"Colombie-Britannique"}]
[30,"T3 2019","IMMEUBLES COLLECTIFS RÉSIDENTIELS","Île-du-Prince-Édouard",100,"Prêts hypothécaires assurés au cours de la période selon le milieu urbain/rural (%)","100.0","Île-du-Prince-Édouard",{"$f":"IFERROR(VLOOKUP(A6418,Translation!$A:$C,3,FALSE),A6418)","v":30},{"$f":"IFERROR(VLOOKUP(B6418,Translation!$A:$C,3,FALSE),B6418)","v":"T3 2019"},{"$f":"IFERROR(VLOOKUP(C6418,Translation!$A:$C,3,FALSE),C6418)","v":"IMMEUBLES COLLECTIFS RÉSIDENTIELS"},{"$f":"IFERROR(VLOOKUP(D6418,Translation!$A:$C,3,FALSE),D6418)","v":"Île-du-Prince-Édouard"},{"$f":"IFERROR(VLOOKUP(E6418,Translation!$A:$C,3,FALSE),E6418)","v":100},{"$f":"IFERROR(VLOOKUP(F6418,Translation!$A:$C,3,FALSE),F6418)","v":"Prêts hypothécaires assurés au cours de la période selon le milieu urbain/rural (%)"},{"$f":"IFERROR(VLOOKUP(G6418,Translation!$A:$C,3,FALSE),G6418)","v":"100.0"},{"$f":"IFERROR(VLOOKUP(H6418,Translation!$A:$C,3,FALSE),H6418)","v":"Île-du-Prince-Édouard"}]
[30,"T3 2019","IMMEUBLES COLLECTIFS RÉSIDENTIELS","Nouveau-Brunswick",100,"Prêts hypothécaires assurés au cours de la période selon le milieu urbain/rural (%)","100.0","Nouveau-Brunswick",{"$f":"IFERROR(VLOOKUP(A6420,Translation!$A:$C,3,FALSE),A6420)","v":30},{"$f":"IFERROR(VLOOKUP(B6420,Translation!$A:$C,3,FALSE),B6420)","v":"T3 2019"},{"$f":"IFERROR(VLOOKUP(C6420,Translation!$A:$C,3,FALSE),C6420)","v":"IMMEUBLES COLLECTIFS RÉSIDENTIELS"},{"$f":"IFERROR(VLOOKUP(D6420,Translation!$A:$C,3,FALSE),D6420)","v":"Nouveau-Brunswick"},{"$f":"IFERROR(VLOOKUP(E6420,Translation!$A:$C,3,FALSE),E6420)","v":100},{"$f":"IFERROR(VLOOKUP(F6420,Translation!$A:$C,3,FALSE),F6420)","v":"Prêts hypothécaires assurés au cours de la période selon le milieu urbain/rural (%)"},{"$f":"IFERROR(VLOOKUP(G6420,Translation!$A:$C,3,FALSE),G6420)","v":"100.0"},{"$f":"IFERROR(VLOOKUP(H6420,Translation!$A:$C,3,FALSE),H6420)","v":"Nouveau-Brunswick"}]
[30,"T3 2019","IMMEUBLES COLLECTIFS RÉSIDENTIELS","Québec",97.690779672239685,"Prêts hypothécaires assurés au cours de la période selon le milieu urbain/rural (%)","97.7","Québec",{"$f":"IFERROR(VLOOKUP(A6421,Translation!$A:$C,3,FALSE),A6421)","v":30},{"$f":"IFERROR(VLOOKUP(B6421,Translation!$A:$C,3,FALSE),B6421)","v":"T3 2019"},{"$f":"IFERROR(VLOOKUP(C6421,Translation!$A:$C,3,FALSE),C6421)","v":"IMMEUBLES COLLECTIFS RÉSIDENTIELS"},{"$f":"IFERROR(VLOOKUP(D6421,Translation!$A:$C,3,FALSE),D6421)","v":"Québec"},{"$f":"IFERROR(VLOOKUP(E6421,Translation!$A:$C,3,FALSE),E6421)","v":97.690779672239685},{"$f":"IFERROR(VLOOKUP(F6421,Translation!$A:$C,3,FALSE),F6421)","v":"Prêts hypothécaires assurés au cours de la période selon le milieu urbain/rural (%)"},{"$f":"IFERROR(VLOOKUP(G6421,Translation!$A:$C,3,FALSE),G6421)","v":"97.7"},{"$f":"IFERROR(VLOOKUP(H6421,Translation!$A:$C,3,FALSE),H6421)","v":"Québec"}]
[30,"T3 2019","IMMEUBLES COLLECTIFS RÉSIDENTIELS","Manitoba",100,"Prêts hypothécaires assurés au cours de la période selon le milieu urbain/rural (%)","100.0","Manitoba",{"$f":"IFERROR(VLOOKUP(A6423,Translation!$A:$C,3,FALSE),A6423)","v":30},{"$f":"IFERROR(VLOOKUP(B6423,Translation!$A:$C,3,FALSE),B6423)","v":"T3 2019"},{"$f":"IFERROR(VLOOKUP(C6423,Translation!$A:$C,3,FALSE),C6423)","v":"IMMEUBLES COLLECTIFS RÉSIDENTIELS"},{"$f":"IFERROR(VLOOKUP(D6423,Translation!$A:$C,3,FALSE),D6423)","v":"Manitoba"},{"$f":"IFERROR(VLOOKUP(E6423,Translation!$A:$C,3,FALSE),E6423)","v":100},{"$f":"IFERROR(VLOOKUP(F6423,Translation!$A:$C,3,FALSE),F6423)","v":"Prêts hypothécaires assurés au cours de la période selon le milieu urbain/rural (%)"},{"$f":"IFERROR(VLOOKUP(G6423,Translation!$A:$C,3,FALSE),G6423)","v":"100.0"},{"$f":"IFERROR(VLOOKUP(H6423,Translation!$A:$C,3,FALSE),H6423)","v":"Manitoba"}]
[30,"T3 2019","IMMEUBLES COLLECTIFS RÉSIDENTIELS","Colombie-Britannique",100,"Prêts hypothécaires assurés au cours de la période selon le milieu urbain/rural (%)","100.0","Colombie-Britannique",{"$f":"IFERROR(VLOOKUP(A6426,Translation!$A:$C,3,FALSE),A6426)","v":30},{"$f":"IFERROR(VLOOKUP(B6426,Translation!$A:$C,3,FALSE),B6426)","v":"T3 2019"},{"$f":"IFERROR(VLOOKUP(C6426,Translation!$A:$C,3,FALSE),C6426)","v":"IMMEUBLES COLLECTIFS RÉSIDENTIELS"},{"$f":"IFERROR(VLOOKUP(D6426,Translation!$A:$C,3,FALSE),D6426)","v":"Colombie-Britannique"},{"$f":"IFERROR(VLOOKUP(E6426,Translation!$A:$C,3,FALSE),E6426)","v":100},{"$f":"IFERROR(VLOOKUP(F6426,Translation!$A:$C,3,FALSE),F6426)","v":"Prêts hypothécaires assurés au cours de la période selon le milieu urbain/rural (%)"},{"$f":"IFERROR(VLOOKUP(G6426,Translation!$A:$C,3,FALSE),G6426)","v":"100.0"},{"$f":"IFERROR(VLOOKUP(H6426,Translation!$A:$C,3,FALSE),H6426)","v":"Colombie-Britannique"}]
[18,"T2 2019","PROPRIÉTAIRES-OCCUPANTS, À L’UNITÉ","Urbain",85.918054757802011,"Prêts hypothécaires assurés au cours de la période selon le milieu urbain/rural (%)","85.9","Urbain",{"$f":"IFERROR(VLOOKUP(A6429,Translation!$A:$C,3,FALSE),A6429)","v":18},{"$f":"IFERROR(VLOOKUP(B6429,Translation!$A:$C,3,FALSE),B6429)","v":"T2 2019"},{"$f":"IFERROR(VLOOKUP(C6429,Translation!$A:$C,3,FALSE),C6429)","v":"PROPRIÉTAIRES-OCCUPANTS, À L’UNITÉ"},{"$f":"IFERROR(VLOOKUP(D6429,Translation!$A:$C,3,FALSE),D6429)","v":"Urbain"},{"$f":"IFERROR(VLOOKUP(E6429,Translation!$A:$C,3,FALSE),E6429)","v":85.918054757802011},{"$f":"IFERROR(VLOOKUP(F6429,Translation!$A:$C,3,FALSE),F6429)","v":"Prêts hypothécaires assurés au cours de la période selon le milieu urbain/rural (%)"},{"$f":"IFERROR(VLOOKUP(G6429,Translation!$A:$C,3,FALSE),G6429)","v":"85.9"},{"$f":"IFERROR(VLOOKUP(H6429,Translation!$A:$C,3,FALSE),H6429)","v":"Urbain"}]
[18,"T2 2019","ASSURANCE DE PORTEFEUILLE","Urbain",94.147509578544032,"Prêts hypothécaires assurés au cours de la période selon le milieu urbain/rural (%)","94.1","Urbain",{"$f":"IFERROR(VLOOKUP(A6431,Translation!$A:$C,3,FALSE),A6431)","v":18},{"$f":"IFERROR(VLOOKUP(B6431,Translation!$A:$C,3,FALSE),B6431)","v":"T2 2019"},{"$f":"IFERROR(VLOOKUP(C6431,Translation!$A:$C,3,FALSE),C6431)","v":"ASSURANCE DE PORTEFEUILLE"},{"$f":"IFERROR(VLOOKUP(D6431,Translation!$A:$C,3,FALSE),D6431)","v":"Urbain"},{"$f":"IFERROR(VLOOKUP(E6431,Translation!$A:$C,3,FALSE),E6431)","v":94.147509578544032},{"$f":"IFERROR(VLOOKUP(F6431,Translation!$A:$C,3,FALSE),F6431)","v":"Prêts hypothécaires assurés au cours de la période selon le milieu urbain/rural (%)"},{"$f":"IFERROR(VLOOKUP(G6431,Translation!$A:$C,3,FALSE),G6431)","v":"94.1"},{"$f":"IFERROR(VLOOKUP(H6431,Translation!$A:$C,3,FALSE),H6431)","v":"Urbain"}]
[18,"T2 2019","PROPRIÉTAIRES-OCCUPANTS, À L’UNITÉ","Nouvelle-Écosse",84.385382059800634,"Prêts hypothécaires assurés au cours de la période selon le milieu urbain/rural (%)","84.4","Nouvelle-Écosse",{"$f":"IFERROR(VLOOKUP(A6434,Translation!$A:$C,3,FALSE),A6434)","v":18},{"$f":"IFERROR(VLOOKUP(B6434,Translation!$A:$C,3,FALSE),B6434)","v":"T2 2019"},{"$f":"IFERROR(VLOOKUP(C6434,Translation!$A:$C,3,FALSE),C6434)","v":"PROPRIÉTAIRES-OCCUPANTS, À L’UNITÉ"},{"$f":"IFERROR(VLOOKUP(D6434,Translation!$A:$C,3,FALSE),D6434)","v":"Nouvelle-Écosse"},{"$f":"IFERROR(VLOOKUP(E6434,Translation!$A:$C,3,FALSE),E6434)","v":84.385382059800634},{"$f":"IFERROR(VLOOKUP(F6434,Translation!$A:$C,3,FALSE),F6434)","v":"Prêts hypothécaires assurés au cours de la période selon le milieu urbain/rural (%)"},{"$f":"IFERROR(VLOOKUP(G6434,Translation!$A:$C,3,FALSE),G6434)","v":"84.4"},{"$f":"IFERROR(VLOOKUP(H6434,Translation!$A:$C,3,FALSE),H6434)","v":"Nouvelle-Écosse"}]
[18,"T2 2019","PROPRIÉTAIRES-OCCUPANTS, À L’UNITÉ","Ontario",89.72361342979039,"Prêts hypothécaires assurés au cours de la période selon le milieu urbain/rural (%)","89.7","Ontario",{"$f":"IFERROR(VLOOKUP(A6437,Translation!$A:$C,3,FALSE),A6437)","v":18},{"$f":"IFERROR(VLOOKUP(B6437,Translation!$A:$C,3,FALSE),B6437)","v":"T2 2019"},{"$f":"IFERROR(VLOOKUP(C6437,Translation!$A:$C,3,FALSE),C6437)","v":"PROPRIÉTAIRES-OCCUPANTS, À L’UNITÉ"},{"$f":"IFERROR(VLOOKUP(D6437,Translation!$A:$C,3,FALSE),D6437)","v":"Ontario"},{"$f":"IFERROR(VLOOKUP(E6437,Translation!$A:$C,3,FALSE),E6437)","v":89.72361342979039},{"$f":"IFERROR(VLOOKUP(F6437,Translation!$A:$C,3,FALSE),F6437)","v":"Prêts hypothécaires assurés au cours de la période selon le milieu urbain/rural (%)"},{"$f":"IFERROR(VLOOKUP(G6437,Translation!$A:$C,3,FALSE),G6437)","v":"89.7"},{"$f":"IFERROR(VLOOKUP(H6437,Translation!$A:$C,3,FALSE),H6437)","v":"Ontario"}]
[18,"T2 2019","PROPRIÉTAIRES-OCCUPANTS, À L’UNITÉ","Saskatchewan",77.379619260918261,"Prêts hypothécaires assurés au cours de la période selon le milieu urbain/rural (%)","77.4","Saskatchewan",{"$f":"IFERROR(VLOOKUP(A6439,Translation!$A:$C,3,FALSE),A6439)","v":18},{"$f":"IFERROR(VLOOKUP(B6439,Translation!$A:$C,3,FALSE),B6439)","v":"T2 2019"},{"$f":"IFERROR(VLOOKUP(C6439,Translation!$A:$C,3,FALSE),C6439)","v":"PROPRIÉTAIRES-OCCUPANTS, À L’UNITÉ"},{"$f":"IFERROR(VLOOKUP(D6439,Translation!$A:$C,3,FALSE),D6439)","v":"Saskatchewan"},{"$f":"IFERROR(VLOOKUP(E6439,Translation!$A:$C,3,FALSE),E6439)","v":77.379619260918261},{"$f":"IFERROR(VLOOKUP(F6439,Translation!$A:$C,3,FALSE),F6439)","v":"Prêts hypothécaires assurés au cours de la période selon le milieu urbain/rural (%)"},{"$f":"IFERROR(VLOOKUP(G6439,Translation!$A:$C,3,FALSE),G6439)","v":"77.4"},{"$f":"IFERROR(VLOOKUP(H6439,Translation!$A:$C,3,FALSE),H6439)","v":"Saskatchewan"}]
[18,"T2 2019","PROPRIÉTAIRES-OCCUPANTS, À L’UNITÉ","Alberta",93.394010569583045,"Prêts hypothécaires assurés au cours de la période selon le milieu urbain/rural (%)","93.4","Alberta",{"$f":"IFERROR(VLOOKUP(A6440,Translation!$A:$C,3,FALSE),A6440)","v":18},{"$f":"IFERROR(VLOOKUP(B6440,Translation!$A:$C,3,FALSE),B6440)","v":"T2 2019"},{"$f":"IFERROR(VLOOKUP(C6440,Translation!$A:$C,3,FALSE),C6440)","v":"PROPRIÉTAIRES-OCCUPANTS, À L’UNITÉ"},{"$f":"IFERROR(VLOOKUP(D6440,Translation!$A:$C,3,FALSE),D6440)","v":"Alberta"},{"$f":"IFERROR(VLOOKUP(E6440,Translation!$A:$C,3,FALSE),E6440)","v":93.394010569583045},{"$f":"IFERROR(VLOOKUP(F6440,Translation!$A:$C,3,FALSE),F6440)","v":"Prêts hypothécaires assurés au cours de la période selon le milieu urbain/rural (%)"},{"$f":"IFERROR(VLOOKUP(G6440,Translation!$A:$C,3,FALSE),G6440)","v":"93.4"},{"$f":"IFERROR(VLOOKUP(H6440,Translation!$A:$C,3,FALSE),H6440)","v":"Alberta"}]
[18,"T2 2019","ASSURANCE DE PORTEFEUILLE","Île-du-Prince-Édouard",79.310344827586235,"Prêts hypothécaires assurés au cours de la période selon le milieu urbain/rural (%)","79.3","Île-du-Prince-Édouard",{"$f":"IFERROR(VLOOKUP(A6444,Translation!$A:$C,3,FALSE),A6444)","v":18},{"$f":"IFERROR(VLOOKUP(B6444,Translation!$A:$C,3,FALSE),B6444)","v":"T2 2019"},{"$f":"IFERROR(VLOOKUP(C6444,Translation!$A:$C,3,FALSE),C6444)","v":"ASSURANCE DE PORTEFEUILLE"},{"$f":"IFERROR(VLOOKUP(D6444,Translation!$A:$C,3,FALSE),D6444)","v":"Île-du-Prince-Édouard"},{"$f":"IFERROR(VLOOKUP(E6444,Translation!$A:$C,3,FALSE),E6444)","v":79.310344827586235},{"$f":"IFERROR(VLOOKUP(F6444,Translation!$A:$C,3,FALSE),F6444)","v":"Prêts hypothécaires assurés au cours de la période selon le milieu urbain/rural (%)"},{"$f":"IFERROR(VLOOKUP(G6444,Translation!$A:$C,3,FALSE),G6444)","v":"79.3"},{"$f":"IFERROR(VLOOKUP(H6444,Translation!$A:$C,3,FALSE),H6444)","v":"Île-du-Prince-Édouard"}]
[18,"T2 2019","ASSURANCE DE PORTEFEUILLE","Nouvelle-Écosse",94.021739130434781,"Prêts hypothécaires assurés au cours de la période selon le milieu urbain/rural (%)","94.0","Nouvelle-Écosse",{"$f":"IFERROR(VLOOKUP(A6445,Translation!$A:$C,3,FALSE),A6445)","v":18},{"$f":"IFERROR(VLOOKUP(B6445,Translation!$A:$C,3,FALSE),B6445)","v":"T2 2019"},{"$f":"IFERROR(VLOOKUP(C6445,Translation!$A:$C,3,FALSE),C6445)","v":"ASSURANCE DE PORTEFEUILLE"},{"$f":"IFERROR(VLOOKUP(D6445,Translation!$A:$C,3,FALSE),D6445)","v":"Nouvelle-Écosse"},{"$f":"IFERROR(VLOOKUP(E6445,Translation!$A:$C,3,FALSE),E6445)","v":94.021739130434781},{"$f":"IFERROR(VLOOKUP(F6445,Translation!$A:$C,3,FALSE),F6445)","v":"Prêts hypothécaires assurés au cours de la période selon le milieu urbain/rural (%)"},{"$f":"IFERROR(VLOOKUP(G6445,Translation!$A:$C,3,FALSE),G6445)","v":"94.0"},{"$f":"IFERROR(VLOOKUP(H6445,Translation!$A:$C,3,FALSE),H6445)","v":"Nouvelle-Écosse"}]
[18,"T2 2019","ASSURANCE DE PORTEFEUILLE","Ontario",94.114241605557723,"Prêts hypothécaires assurés au cours de la période selon le milieu urbain/rural (%)","94.1","Ontario",{"$f":"IFERROR(VLOOKUP(A6448,Translation!$A:$C,3,FALSE),A6448)","v":18},{"$f":"IFERROR(VLOOKUP(B6448,Translation!$A:$C,3,FALSE),B6448)","v":"T2 2019"},{"$f":"IFERROR(VLOOKUP(C6448,Translation!$A:$C,3,FALSE),C6448)","v":"ASSURANCE DE PORTEFEUILLE"},{"$f":"IFERROR(VLOOKUP(D6448,Translation!$A:$C,3,FALSE),D6448)","v":"Ontario"},{"$f":"IFERROR(VLOOKUP(E6448,Translation!$A:$C,3,FALSE),E6448)","v":94.114241605557723},{"$f":"IFERROR(VLOOKUP(F6448,Translation!$A:$C,3,FALSE),F6448)","v":"Prêts hypothécaires assurés au cours de la période selon le milieu urbain/rural (%)"},{"$f":"IFERROR(VLOOKUP(G6448,Translation!$A:$C,3,FALSE),G6448)","v":"94.1"},{"$f":"IFERROR(VLOOKUP(H6448,Translation!$A:$C,3,FALSE),H6448)","v":"Ontario"}]
[18,"T2 2019","ASSURANCE DE PORTEFEUILLE","Saskatchewan",89.878542510121477,"Prêts hypothécaires assurés au cours de la période selon le milieu urbain/rural (%)","89.9","Saskatchewan",{"$f":"IFERROR(VLOOKUP(A6450,Translation!$A:$C,3,FALSE),A6450)","v":18},{"$f":"IFERROR(VLOOKUP(B6450,Translation!$A:$C,3,FALSE),B6450)","v":"T2 2019"},{"$f":"IFERROR(VLOOKUP(C6450,Translation!$A:$C,3,FALSE),C6450)","v":"ASSURANCE DE PORTEFEUILLE"},{"$f":"IFERROR(VLOOKUP(D6450,Translation!$A:$C,3,FALSE),D6450)","v":"Saskatchewan"},{"$f":"IFERROR(VLOOKUP(E6450,Translation!$A:$C,3,FALSE),E6450)","v":89.878542510121477},{"$f":"IFERROR(VLOOKUP(F6450,Translation!$A:$C,3,FALSE),F6450)","v":"Prêts hypothécaires assurés au cours de la période selon le milieu urbain/rural (%)"},{"$f":"IFERROR(VLOOKUP(G6450,Translation!$A:$C,3,FALSE),G6450)","v":"89.9"},{"$f":"IFERROR(VLOOKUP(H6450,Translation!$A:$C,3,FALSE),H6450)","v":"Saskatchewan"}]
[30,"T2 2019","IMMEUBLES COLLECTIFS RÉSIDENTIELS","Rural",1.2718010997537359,"Prêts hypothécaires assurés au cours de la période selon le milieu urbain/rural (%)","1.3","Rural",{"$f":"IFERROR(VLOOKUP(A6453,Translation!$A:$C,3,FALSE),A6453)","v":30},{"$f":"IFERROR(VLOOKUP(B6453,Translation!$A:$C,3,FALSE),B6453)","v":"T2 2019"},{"$f":"IFERROR(VLOOKUP(C6453,Translation!$A:$C,3,FALSE),C6453)","v":"IMMEUBLES COLLECTIFS RÉSIDENTIELS"},{"$f":"IFERROR(VLOOKUP(D6453,Translation!$A:$C,3,FALSE),D6453)","v":"Rural"},{"$f":"IFERROR(VLOOKUP(E6453,Translation!$A:$C,3,FALSE),E6453)","v":1.2718010997537359},{"$f":"IFERROR(VLOOKUP(F6453,Translation!$A:$C,3,FALSE),F6453)","v":"Prêts hypothécaires assurés au cours de la période selon le milieu urbain/rural (%)"},{"$f":"IFERROR(VLOOKUP(G6453,Translation!$A:$C,3,FALSE),G6453)","v":"1.3"},{"$f":"IFERROR(VLOOKUP(H6453,Translation!$A:$C,3,FALSE),H6453)","v":"Rural"}]
[30,"T2 2019","IMMEUBLES COLLECTIFS RÉSIDENTIELS","Terre-Neuve-et-Labrador",100,"Prêts hypothécaires assurés au cours de la période selon le milieu urbain/rural (%)","100.0","Terre-Neuve-et-Labrador",{"$f":"IFERROR(VLOOKUP(A6455,Translation!$A:$C,3,FALSE),A6455)","v":30},{"$f":"IFERROR(VLOOKUP(B6455,Translation!$A:$C,3,FALSE),B6455)","v":"T2 2019"},{"$f":"IFERROR(VLOOKUP(C6455,Translation!$A:$C,3,FALSE),C6455)","v":"IMMEUBLES COLLECTIFS RÉSIDENTIELS"},{"$f":"IFERROR(VLOOKUP(D6455,Translation!$A:$C,3,FALSE),D6455)","v":"Terre-Neuve-et-Labrador"},{"$f":"IFERROR(VLOOKUP(E6455,Translation!$A:$C,3,FALSE),E6455)","v":100},{"$f":"IFERROR(VLOOKUP(F6455,Translation!$A:$C,3,FALSE),F6455)","v":"Prêts hypothécaires assurés au cours de la période selon le milieu urbain/rural (%)"},{"$f":"IFERROR(VLOOKUP(G6455,Translation!$A:$C,3,FALSE),G6455)","v":"100.0"},{"$f":"IFERROR(VLOOKUP(H6455,Translation!$A:$C,3,FALSE),H6455)","v":"Terre-Neuve-et-Labrador"}]
[30,"T2 2019","IMMEUBLES COLLECTIFS RÉSIDENTIELS","Nouveau-Brunswick",100,"Prêts hypothécaires assurés au cours de la période selon le milieu urbain/rural (%)","100.0","Nouveau-Brunswick",{"$f":"IFERROR(VLOOKUP(A6458,Translation!$A:$C,3,FALSE),A6458)","v":30},{"$f":"IFERROR(VLOOKUP(B6458,Translation!$A:$C,3,FALSE),B6458)","v":"T2 2019"},{"$f":"IFERROR(VLOOKUP(C6458,Translation!$A:$C,3,FALSE),C6458)","v":"IMMEUBLES COLLECTIFS RÉSIDENTIELS"},{"$f":"IFERROR(VLOOKUP(D6458,Translation!$A:$C,3,FALSE),D6458)","v":"Nouveau-Brunswick"},{"$f":"IFERROR(VLOOKUP(E6458,Translation!$A:$C,3,FALSE),E6458)","v":100},{"$f":"IFERROR(VLOOKUP(F6458,Translation!$A:$C,3,FALSE),F6458)","v":"Prêts hypothécaires assurés au cours de la période selon le milieu urbain/rural (%)"},{"$f":"IFERROR(VLOOKUP(G6458,Translation!$A:$C,3,FALSE),G6458)","v":"100.0"},{"$f":"IFERROR(VLOOKUP(H6458,Translation!$A:$C,3,FALSE),H6458)","v":"Nouveau-Brunswick"}]
[30,"T2 2019","IMMEUBLES COLLECTIFS RÉSIDENTIELS","Québec",99.300302571860826,"Prêts hypothécaires assurés au cours de la période selon le milieu urbain/rural (%)","99.3","Québec",{"$f":"IFERROR(VLOOKUP(A6459,Translation!$A:$C,3,FALSE),A6459)","v":30},{"$f":"IFERROR(VLOOKUP(B6459,Translation!$A:$C,3,FALSE),B6459)","v":"T2 2019"},{"$f":"IFERROR(VLOOKUP(C6459,Translation!$A:$C,3,FALSE),C6459)","v":"IMMEUBLES COLLECTIFS RÉSIDENTIELS"},{"$f":"IFERROR(VLOOKUP(D6459,Translation!$A:$C,3,FALSE),D6459)","v":"Québec"},{"$f":"IFERROR(VLOOKUP(E6459,Translation!$A:$C,3,FALSE),E6459)","v":99.300302571860826},{"$f":"IFERROR(VLOOKUP(F6459,Translation!$A:$C,3,FALSE),F6459)","v":"Prêts hypothécaires assurés au cours de la période selon le milieu urbain/rural (%)"},{"$f":"IFERROR(VLOOKUP(G6459,Translation!$A:$C,3,FALSE),G6459)","v":"99.3"},{"$f":"IFERROR(VLOOKUP(H6459,Translation!$A:$C,3,FALSE),H6459)","v":"Québec"}]
[30,"T2 2019","IMMEUBLES COLLECTIFS RÉSIDENTIELS","Alberta",99.225235196458229,"Prêts hypothécaires assurés au cours de la période selon le milieu urbain/rural (%)","99.2","Alberta",{"$f":"IFERROR(VLOOKUP(A6463,Translation!$A:$C,3,FALSE),A6463)","v":30},{"$f":"IFERROR(VLOOKUP(B6463,Translation!$A:$C,3,FALSE),B6463)","v":"T2 2019"},{"$f":"IFERROR(VLOOKUP(C6463,Translation!$A:$C,3,FALSE),C6463)","v":"IMMEUBLES COLLECTIFS RÉSIDENTIELS"},{"$f":"IFERROR(VLOOKUP(D6463,Translation!$A:$C,3,FALSE),D6463)","v":"Alberta"},{"$f":"IFERROR(VLOOKUP(E6463,Translation!$A:$C,3,FALSE),E6463)","v":99.225235196458229},{"$f":"IFERROR(VLOOKUP(F6463,Translation!$A:$C,3,FALSE),F6463)","v":"Prêts hypothécaires assurés au cours de la période selon le milieu urbain/rural (%)"},{"$f":"IFERROR(VLOOKUP(G6463,Translation!$A:$C,3,FALSE),G6463)","v":"99.2"},{"$f":"IFERROR(VLOOKUP(H6463,Translation!$A:$C,3,FALSE),H6463)","v":"Alberta"}]
[30,"T2 2019","IMMEUBLES COLLECTIFS RÉSIDENTIELS","Colombie-Britannique",99.368088467614555,"Prêts hypothécaires assurés au cours de la période selon le milieu urbain/rural (%)","99.4","Colombie-Britannique",{"$f":"IFERROR(VLOOKUP(A6464,Translation!$A:$C,3,FALSE),A6464)","v":30},{"$f":"IFERROR(VLOOKUP(B6464,Translation!$A:$C,3,FALSE),B6464)","v":"T2 2019"},{"$f":"IFERROR(VLOOKUP(C6464,Translation!$A:$C,3,FALSE),C6464)","v":"IMMEUBLES COLLECTIFS RÉSIDENTIELS"},{"$f":"IFERROR(VLOOKUP(D6464,Translation!$A:$C,3,FALSE),D6464)","v":"Colombie-Britannique"},{"$f":"IFERROR(VLOOKUP(E6464,Translation!$A:$C,3,FALSE),E6464)","v":99.368088467614555},{"$f":"IFERROR(VLOOKUP(F6464,Translation!$A:$C,3,FALSE),F6464)","v":"Prêts hypothécaires assurés au cours de la période selon le milieu urbain/rural (%)"},{"$f":"IFERROR(VLOOKUP(G6464,Translation!$A:$C,3,FALSE),G6464)","v":"99.4"},{"$f":"IFERROR(VLOOKUP(H6464,Translation!$A:$C,3,FALSE),H6464)","v":"Colombie-Britannique"}]
[18,"T1 2019","ASSURANCE DE PORTEFEUILLE","Urbain",94.156827126854381,"Prêts hypothécaires assurés au cours de la période selon le milieu urbain/rural (%)","94.2","Urbain",{"$f":"IFERROR(VLOOKUP(A6468,Translation!$A:$C,3,FALSE),A6468)","v":18},{"$f":"IFERROR(VLOOKUP(B6468,Translation!$A:$C,3,FALSE),B6468)","v":"T1 2019"},{"$f":"IFERROR(VLOOKUP(C6468,Translation!$A:$C,3,FALSE),C6468)","v":"ASSURANCE DE PORTEFEUILLE"},{"$f":"IFERROR(VLOOKUP(D6468,Translation!$A:$C,3,FALSE),D6468)","v":"Urbain"},{"$f":"IFERROR(VLOOKUP(E6468,Translation!$A:$C,3,FALSE),E6468)","v":94.156827126854381},{"$f":"IFERROR(VLOOKUP(F6468,Translation!$A:$C,3,FALSE),F6468)","v":"Prêts hypothécaires assurés au cours de la période selon le milieu urbain/rural (%)"},{"$f":"IFERROR(VLOOKUP(G6468,Translation!$A:$C,3,FALSE),G6468)","v":"94.2"},{"$f":"IFERROR(VLOOKUP(H6468,Translation!$A:$C,3,FALSE),H6468)","v":"Urbain"}]
[18,"T1 2019","PROPRIÉTAIRES-OCCUPANTS, À L’UNITÉ","Terre-Neuve-et-Labrador",77.209302325581376,"Prêts hypothécaires assurés au cours de la période selon le milieu urbain/rural (%)","77.2","Terre-Neuve-et-Labrador",{"$f":"IFERROR(VLOOKUP(A6469,Translation!$A:$C,3,FALSE),A6469)","v":18},{"$f":"IFERROR(VLOOKUP(B6469,Translation!$A:$C,3,FALSE),B6469)","v":"T1 2019"},{"$f":"IFERROR(VLOOKUP(C6469,Translation!$A:$C,3,FALSE),C6469)","v":"PROPRIÉTAIRES-OCCUPANTS, À L’UNITÉ"},{"$f":"IFERROR(VLOOKUP(D6469,Translation!$A:$C,3,FALSE),D6469)","v":"Terre-Neuve-et-Labrador"},{"$f":"IFERROR(VLOOKUP(E6469,Translation!$A:$C,3,FALSE),E6469)","v":77.209302325581376},{"$f":"IFERROR(VLOOKUP(F6469,Translation!$A:$C,3,FALSE),F6469)","v":"Prêts hypothécaires assurés au cours de la période selon le milieu urbain/rural (%)"},{"$f":"IFERROR(VLOOKUP(G6469,Translation!$A:$C,3,FALSE),G6469)","v":"77.2"},{"$f":"IFERROR(VLOOKUP(H6469,Translation!$A:$C,3,FALSE),H6469)","v":"Terre-Neuve-et-Labrador"}]
[18,"T1 2019","PROPRIÉTAIRES-OCCUPANTS, À L’UNITÉ","Nouveau-Brunswick",77.736549165120607,"Prêts hypothécaires assurés au cours de la période selon le milieu urbain/rural (%)","77.7","Nouveau-Brunswick",{"$f":"IFERROR(VLOOKUP(A6472,Translation!$A:$C,3,FALSE),A6472)","v":18},{"$f":"IFERROR(VLOOKUP(B6472,Translation!$A:$C,3,FALSE),B6472)","v":"T1 2019"},{"$f":"IFERROR(VLOOKUP(C6472,Translation!$A:$C,3,FALSE),C6472)","v":"PROPRIÉTAIRES-OCCUPANTS, À L’UNITÉ"},{"$f":"IFERROR(VLOOKUP(D6472,Translation!$A:$C,3,FALSE),D6472)","v":"Nouveau-Brunswick"},{"$f":"IFERROR(VLOOKUP(E6472,Translation!$A:$C,3,FALSE),E6472)","v":77.736549165120607},{"$f":"IFERROR(VLOOKUP(F6472,Translation!$A:$C,3,FALSE),F6472)","v":"Prêts hypothécaires assurés au cours de la période selon le milieu urbain/rural (%)"},{"$f":"IFERROR(VLOOKUP(G6472,Translation!$A:$C,3,FALSE),G6472)","v":"77.7"},{"$f":"IFERROR(VLOOKUP(H6472,Translation!$A:$C,3,FALSE),H6472)","v":"Nouveau-Brunswick"}]
[18,"T1 2019","PROPRIÉTAIRES-OCCUPANTS, À L’UNITÉ","Ontario",92.184310294546492,"Prêts hypothécaires assurés au cours de la période selon le milieu urbain/rural (%)","92.2","Ontario",{"$f":"IFERROR(VLOOKUP(A6474,Translation!$A:$C,3,FALSE),A6474)","v":18},{"$f":"IFERROR(VLOOKUP(B6474,Translation!$A:$C,3,FALSE),B6474)","v":"T1 2019"},{"$f":"IFERROR(VLOOKUP(C6474,Translation!$A:$C,3,FALSE),C6474)","v":"PROPRIÉTAIRES-OCCUPANTS, À L’UNITÉ"},{"$f":"IFERROR(VLOOKUP(D6474,Translation!$A:$C,3,FALSE),D6474)","v":"Ontario"},{"$f":"IFERROR(VLOOKUP(E6474,Translation!$A:$C,3,FALSE),E6474)","v":92.184310294546492},{"$f":"IFERROR(VLOOKUP(F6474,Translation!$A:$C,3,FALSE),F6474)","v":"Prêts hypothécaires assurés au cours de la période selon le milieu urbain/rural (%)"},{"$f":"IFERROR(VLOOKUP(G6474,Translation!$A:$C,3,FALSE),G6474)","v":"92.2"},{"$f":"IFERROR(VLOOKUP(H6474,Translation!$A:$C,3,FALSE),H6474)","v":"Ontario"}]
[18,"T1 2019","PROPRIÉTAIRES-OCCUPANTS, À L’UNITÉ","Alberta",93.862640038967356,"Prêts hypothécaires assurés au cours de la période selon le milieu urbain/rural (%)","93.9","Alberta",{"$f":"IFERROR(VLOOKUP(A6477,Translation!$A:$C,3,FALSE),A6477)","v":18},{"$f":"IFERROR(VLOOKUP(B6477,Translation!$A:$C,3,FALSE),B6477)","v":"T1 2019"},{"$f":"IFERROR(VLOOKUP(C6477,Translation!$A:$C,3,FALSE),C6477)","v":"PROPRIÉTAIRES-OCCUPANTS, À L’UNITÉ"},{"$f":"IFERROR(VLOOKUP(D6477,Translation!$A:$C,3,FALSE),D6477)","v":"Alberta"},{"$f":"IFERROR(VLOOKUP(E6477,Translation!$A:$C,3,FALSE),E6477)","v":93.862640038967356},{"$f":"IFERROR(VLOOKUP(F6477,Translation!$A:$C,3,FALSE),F6477)","v":"Prêts hypothécaires assurés au cours de la période selon le milieu urbain/rural (%)"},{"$f":"IFERROR(VLOOKUP(G6477,Translation!$A:$C,3,FALSE),G6477)","v":"93.9"},{"$f":"IFERROR(VLOOKUP(H6477,Translation!$A:$C,3,FALSE),H6477)","v":"Alberta"}]
[18,"T1 2019","PROPRIÉTAIRES-OCCUPANTS, À L’UNITÉ","Colombie-Britannique",89.124893797791003,"Prêts hypothécaires assurés au cours de la période selon le milieu urbain/rural (%)","89.1","Colombie-Britannique",{"$f":"IFERROR(VLOOKUP(A6478,Translation!$A:$C,3,FALSE),A6478)","v":18},{"$f":"IFERROR(VLOOKUP(B6478,Translation!$A:$C,3,FALSE),B6478)","v":"T1 2019"},{"$f":"IFERROR(VLOOKUP(C6478,Translation!$A:$C,3,FALSE),C6478)","v":"PROPRIÉTAIRES-OCCUPANTS, À L’UNITÉ"},{"$f":"IFERROR(VLOOKUP(D6478,Translation!$A:$C,3,FALSE),D6478)","v":"Colombie-Britannique"},{"$f":"IFERROR(VLOOKUP(E6478,Translation!$A:$C,3,FALSE),E6478)","v":89.124893797791003},{"$f":"IFERROR(VLOOKUP(F6478,Translation!$A:$C,3,FALSE),F6478)","v":"Prêts hypothécaires assurés au cours de la période selon le milieu urbain/rural (%)"},{"$f":"IFERROR(VLOOKUP(G6478,Translation!$A:$C,3,FALSE),G6478)","v":"89.1"},{"$f":"IFERROR(VLOOKUP(H6478,Translation!$A:$C,3,FALSE),H6478)","v":"Colombie-Britannique"}]
[18,"T1 2019","ASSURANCE DE PORTEFEUILLE","Nouvelle-Écosse",92.682926829268283,"Prêts hypothécaires assurés au cours de la période selon le milieu urbain/rural (%)","92.7","Nouvelle-Écosse",{"$f":"IFERROR(VLOOKUP(A6482,Translation!$A:$C,3,FALSE),A6482)","v":18},{"$f":"IFERROR(VLOOKUP(B6482,Translation!$A:$C,3,FALSE),B6482)","v":"T1 2019"},{"$f":"IFERROR(VLOOKUP(C6482,Translation!$A:$C,3,FALSE),C6482)","v":"ASSURANCE DE PORTEFEUILLE"},{"$f":"IFERROR(VLOOKUP(D6482,Translation!$A:$C,3,FALSE),D6482)","v":"Nouvelle-Écosse"},{"$f":"IFERROR(VLOOKUP(E6482,Translation!$A:$C,3,FALSE),E6482)","v":92.682926829268283},{"$f":"IFERROR(VLOOKUP(F6482,Translation!$A:$C,3,FALSE),F6482)","v":"Prêts hypothécaires assurés au cours de la période selon le milieu urbain/rural (%)"},{"$f":"IFERROR(VLOOKUP(G6482,Translation!$A:$C,3,FALSE),G6482)","v":"92.7"},{"$f":"IFERROR(VLOOKUP(H6482,Translation!$A:$C,3,FALSE),H6482)","v":"Nouvelle-Écosse"}]
[18,"T1 2019","ASSURANCE DE PORTEFEUILLE","Nouveau-Brunswick",87.5,"Prêts hypothécaires assurés au cours de la période selon le milieu urbain/rural (%)","87.5","Nouveau-Brunswick",{"$f":"IFERROR(VLOOKUP(A6483,Translation!$A:$C,3,FALSE),A6483)","v":18},{"$f":"IFERROR(VLOOKUP(B6483,Translation!$A:$C,3,FALSE),B6483)","v":"T1 2019"},{"$f":"IFERROR(VLOOKUP(C6483,Translation!$A:$C,3,FALSE),C6483)","v":"ASSURANCE DE PORTEFEUILLE"},{"$f":"IFERROR(VLOOKUP(D6483,Translation!$A:$C,3,FALSE),D6483)","v":"Nouveau-Brunswick"},{"$f":"IFERROR(VLOOKUP(E6483,Translation!$A:$C,3,FALSE),E6483)","v":87.5},{"$f":"IFERROR(VLOOKUP(F6483,Translation!$A:$C,3,FALSE),F6483)","v":"Prêts hypothécaires assurés au cours de la période selon le milieu urbain/rural (%)"},{"$f":"IFERROR(VLOOKUP(G6483,Translation!$A:$C,3,FALSE),G6483)","v":"87.5"},{"$f":"IFERROR(VLOOKUP(H6483,Translation!$A:$C,3,FALSE),H6483)","v":"Nouveau-Brunswick"}]
[18,"T1 2019","ASSURANCE DE PORTEFEUILLE","Saskatchewan",83.75,"Prêts hypothécaires assurés au cours de la période selon le milieu urbain/rural (%)","83.8","Saskatchewan",{"$f":"IFERROR(VLOOKUP(A6487,Translation!$A:$C,3,FALSE),A6487)","v":18},{"$f":"IFERROR(VLOOKUP(B6487,Translation!$A:$C,3,FALSE),B6487)","v":"T1 2019"},{"$f":"IFERROR(VLOOKUP(C6487,Translation!$A:$C,3,FALSE),C6487)","v":"ASSURANCE DE PORTEFEUILLE"},{"$f":"IFERROR(VLOOKUP(D6487,Translation!$A:$C,3,FALSE),D6487)","v":"Saskatchewan"},{"$f":"IFERROR(VLOOKUP(E6487,Translation!$A:$C,3,FALSE),E6487)","v":83.75},{"$f":"IFERROR(VLOOKUP(F6487,Translation!$A:$C,3,FALSE),F6487)","v":"Prêts hypothécaires assurés au cours de la période selon le milieu urbain/rural (%)"},{"$f":"IFERROR(VLOOKUP(G6487,Translation!$A:$C,3,FALSE),G6487)","v":"83.8"},{"$f":"IFERROR(VLOOKUP(H6487,Translation!$A:$C,3,FALSE),H6487)","v":"Saskatchewan"}]
[18,"T1 2019","ASSURANCE DE PORTEFEUILLE","Alberta",97.971014492753611,"Prêts hypothécaires assurés au cours de la période selon le milieu urbain/rural (%)","98.0","Alberta",{"$f":"IFERROR(VLOOKUP(A6488,Translation!$A:$C,3,FALSE),A6488)","v":18},{"$f":"IFERROR(VLOOKUP(B6488,Translation!$A:$C,3,FALSE),B6488)","v":"T1 2019"},{"$f":"IFERROR(VLOOKUP(C6488,Translation!$A:$C,3,FALSE),C6488)","v":"ASSURANCE DE PORTEFEUILLE"},{"$f":"IFERROR(VLOOKUP(D6488,Translation!$A:$C,3,FALSE),D6488)","v":"Alberta"},{"$f":"IFERROR(VLOOKUP(E6488,Translation!$A:$C,3,FALSE),E6488)","v":97.971014492753611},{"$f":"IFERROR(VLOOKUP(F6488,Translation!$A:$C,3,FALSE),F6488)","v":"Prêts hypothécaires assurés au cours de la période selon le milieu urbain/rural (%)"},{"$f":"IFERROR(VLOOKUP(G6488,Translation!$A:$C,3,FALSE),G6488)","v":"98.0"},{"$f":"IFERROR(VLOOKUP(H6488,Translation!$A:$C,3,FALSE),H6488)","v":"Alberta"}]
[30,"T1 2019","IMMEUBLES COLLECTIFS RÉSIDENTIELS","Urbain",98.550144540804979,"Prêts hypothécaires assurés au cours de la période selon le milieu urbain/rural (%)","98.6","Urbain",{"$f":"IFERROR(VLOOKUP(A6492,Translation!$A:$C,3,FALSE),A6492)","v":30},{"$f":"IFERROR(VLOOKUP(B6492,Translation!$A:$C,3,FALSE),B6492)","v":"T1 2019"},{"$f":"IFERROR(VLOOKUP(C6492,Translation!$A:$C,3,FALSE),C6492)","v":"IMMEUBLES COLLECTIFS RÉSIDENTIELS"},{"$f":"IFERROR(VLOOKUP(D6492,Translation!$A:$C,3,FALSE),D6492)","v":"Urbain"},{"$f":"IFERROR(VLOOKUP(E6492,Translation!$A:$C,3,FALSE),E6492)","v":98.550144540804979},{"$f":"IFERROR(VLOOKUP(F6492,Translation!$A:$C,3,FALSE),F6492)","v":"Prêts hypothécaires assurés au cours de la période selon le milieu urbain/rural (%)"},{"$f":"IFERROR(VLOOKUP(G6492,Translation!$A:$C,3,FALSE),G6492)","v":"98.6"},{"$f":"IFERROR(VLOOKUP(H6492,Translation!$A:$C,3,FALSE),H6492)","v":"Urbain"}]
[30,"T1 2019","IMMEUBLES COLLECTIFS RÉSIDENTIELS","Île-du-Prince-Édouard",100,"Prêts hypothécaires assurés au cours de la période selon le milieu urbain/rural (%)","100.0","Île-du-Prince-Édouard",{"$f":"IFERROR(VLOOKUP(A6493,Translation!$A:$C,3,FALSE),A6493)","v":30},{"$f":"IFERROR(VLOOKUP(B6493,Translation!$A:$C,3,FALSE),B6493)","v":"T1 2019"},{"$f":"IFERROR(VLOOKUP(C6493,Translation!$A:$C,3,FALSE),C6493)","v":"IMMEUBLES COLLECTIFS RÉSIDENTIELS"},{"$f":"IFERROR(VLOOKUP(D6493,Translation!$A:$C,3,FALSE),D6493)","v":"Île-du-Prince-Édouard"},{"$f":"IFERROR(VLOOKUP(E6493,Translation!$A:$C,3,FALSE),E6493)","v":100},{"$f":"IFERROR(VLOOKUP(F6493,Translation!$A:$C,3,FALSE),F6493)","v":"Prêts hypothécaires assurés au cours de la période selon le milieu urbain/rural (%)"},{"$f":"IFERROR(VLOOKUP(G6493,Translation!$A:$C,3,FALSE),G6493)","v":"100.0"},{"$f":"IFERROR(VLOOKUP(H6493,Translation!$A:$C,3,FALSE),H6493)","v":"Île-du-Prince-Édouard"}]
[30,"T1 2019","IMMEUBLES COLLECTIFS RÉSIDENTIELS","Ontario",98.611846985270759,"Prêts hypothécaires assurés au cours de la période selon le milieu urbain/rural (%)","98.6","Ontario",{"$f":"IFERROR(VLOOKUP(A6497,Translation!$A:$C,3,FALSE),A6497)","v":30},{"$f":"IFERROR(VLOOKUP(B6497,Translation!$A:$C,3,FALSE),B6497)","v":"T1 2019"},{"$f":"IFERROR(VLOOKUP(C6497,Translation!$A:$C,3,FALSE),C6497)","v":"IMMEUBLES COLLECTIFS RÉSIDENTIELS"},{"$f":"IFERROR(VLOOKUP(D6497,Translation!$A:$C,3,FALSE),D6497)","v":"Ontario"},{"$f":"IFERROR(VLOOKUP(E6497,Translation!$A:$C,3,FALSE),E6497)","v":98.611846985270759},{"$f":"IFERROR(VLOOKUP(F6497,Translation!$A:$C,3,FALSE),F6497)","v":"Prêts hypothécaires assurés au cours de la période selon le milieu urbain/rural (%)"},{"$f":"IFERROR(VLOOKUP(G6497,Translation!$A:$C,3,FALSE),G6497)","v":"98.6"},{"$f":"IFERROR(VLOOKUP(H6497,Translation!$A:$C,3,FALSE),H6497)","v":"Ontario"}]
[30,"T1 2019","IMMEUBLES COLLECTIFS RÉSIDENTIELS","Manitoba",100,"Prêts hypothécaires assurés au cours de la période selon le milieu urbain/rural (%)","100.0","Manitoba",{"$f":"IFERROR(VLOOKUP(A6498,Translation!$A:$C,3,FALSE),A6498)","v":30},{"$f":"IFERROR(VLOOKUP(B6498,Translation!$A:$C,3,FALSE),B6498)","v":"T1 2019"},{"$f":"IFERROR(VLOOKUP(C6498,Translation!$A:$C,3,FALSE),C6498)","v":"IMMEUBLES COLLECTIFS RÉSIDENTIELS"},{"$f":"IFERROR(VLOOKUP(D6498,Translation!$A:$C,3,FALSE),D6498)","v":"Manitoba"},{"$f":"IFERROR(VLOOKUP(E6498,Translation!$A:$C,3,FALSE),E6498)","v":100},{"$f":"IFERROR(VLOOKUP(F6498,Translation!$A:$C,3,FALSE),F6498)","v":"Prêts hypothécaires assurés au cours de la période selon le milieu urbain/rural (%)"},{"$f":"IFERROR(VLOOKUP(G6498,Translation!$A:$C,3,FALSE),G6498)","v":"100.0"},{"$f":"IFERROR(VLOOKUP(H6498,Translation!$A:$C,3,FALSE),H6498)","v":"Manitoba"}]
[30,"T1 2019","IMMEUBLES COLLECTIFS RÉSIDENTIELS","Colombie-Britannique",100,"Prêts hypothécaires assurés au cours de la période selon le milieu urbain/rural (%)","100.0","Colombie-Britannique",{"$f":"IFERROR(VLOOKUP(A6501,Translation!$A:$C,3,FALSE),A6501)","v":30},{"$f":"IFERROR(VLOOKUP(B6501,Translation!$A:$C,3,FALSE),B6501)","v":"T1 2019"},{"$f":"IFERROR(VLOOKUP(C6501,Translation!$A:$C,3,FALSE),C6501)","v":"IMMEUBLES COLLECTIFS RÉSIDENTIELS"},{"$f":"IFERROR(VLOOKUP(D6501,Translation!$A:$C,3,FALSE),D6501)","v":"Colombie-Britannique"},{"$f":"IFERROR(VLOOKUP(E6501,Translation!$A:$C,3,FALSE),E6501)","v":100},{"$f":"IFERROR(VLOOKUP(F6501,Translation!$A:$C,3,FALSE),F6501)","v":"Prêts hypothécaires assurés au cours de la période selon le milieu urbain/rural (%)"},{"$f":"IFERROR(VLOOKUP(G6501,Translation!$A:$C,3,FALSE),G6501)","v":"100.0"},{"$f":"IFERROR(VLOOKUP(H6501,Translation!$A:$C,3,FALSE),H6501)","v":"Colombie-Britannique"}]
[30,"T1 2019","IMMEUBLES COLLECTIFS RÉSIDENTIELS","Territoires",100,"Prêts hypothécaires assurés au cours de la période selon le milieu urbain/rural (%)","100.0","Territoires",{"$f":"IFERROR(VLOOKUP(A6502,Translation!$A:$C,3,FALSE),A6502)","v":30},{"$f":"IFERROR(VLOOKUP(B6502,Translation!$A:$C,3,FALSE),B6502)","v":"T1 2019"},{"$f":"IFERROR(VLOOKUP(C6502,Translation!$A:$C,3,FALSE),C6502)","v":"IMMEUBLES COLLECTIFS RÉSIDENTIELS"},{"$f":"IFERROR(VLOOKUP(D6502,Translation!$A:$C,3,FALSE),D6502)","v":"Territoires"},{"$f":"IFERROR(VLOOKUP(E6502,Translation!$A:$C,3,FALSE),E6502)","v":100},{"$f":"IFERROR(VLOOKUP(F6502,Translation!$A:$C,3,FALSE),F6502)","v":"Prêts hypothécaires assurés au cours de la période selon le milieu urbain/rural (%)"},{"$f":"IFERROR(VLOOKUP(G6502,Translation!$A:$C,3,FALSE),G6502)","v":"100.0"},{"$f":"IFERROR(VLOOKUP(H6502,Translation!$A:$C,3,FALSE),H6502)","v":"Territoires"}]
[18,"Cumul 2017","PROPRIÉTAIRES-OCCUPANTS, À L’UNITÉ","Urbain",86.423695027078509,"Prêts hypothécaires assurés au cours de la période selon le milieu urbain/rural (%)","86.4","Urbain",{"$f":"IFERROR(VLOOKUP(A6506,Translation!$A:$C,3,FALSE),A6506)","v":18},{"$f":"IFERROR(VLOOKUP(B6506,Translation!$A:$C,3,FALSE),B6506)","v":"Cumul 2017"},{"$f":"IFERROR(VLOOKUP(C6506,Translation!$A:$C,3,FALSE),C6506)","v":"PROPRIÉTAIRES-OCCUPANTS, À L’UNITÉ"},{"$f":"IFERROR(VLOOKUP(D6506,Translation!$A:$C,3,FALSE),D6506)","v":"Urbain"},{"$f":"IFERROR(VLOOKUP(E6506,Translation!$A:$C,3,FALSE),E6506)","v":86.423695027078509},{"$f":"IFERROR(VLOOKUP(F6506,Translation!$A:$C,3,FALSE),F6506)","v":"Prêts hypothécaires assurés au cours de la période selon le milieu urbain/rural (%)"},{"$f":"IFERROR(VLOOKUP(G6506,Translation!$A:$C,3,FALSE),G6506)","v":"86.4"},{"$f":"IFERROR(VLOOKUP(H6506,Translation!$A:$C,3,FALSE),H6506)","v":"Urbain"}]
[18,"Cumul 2017","ASSURANCE DE PORTEFEUILLE","Rural",5.7284768211920518,"Prêts hypothécaires assurés au cours de la période selon le milieu urbain/rural (%)","5.7","Rural",{"$f":"IFERROR(VLOOKUP(A6508,Translation!$A:$C,3,FALSE),A6508)","v":18},{"$f":"IFERROR(VLOOKUP(B6508,Translation!$A:$C,3,FALSE),B6508)","v":"Cumul 2017"},{"$f":"IFERROR(VLOOKUP(C6508,Translation!$A:$C,3,FALSE),C6508)","v":"ASSURANCE DE PORTEFEUILLE"},{"$f":"IFERROR(VLOOKUP(D6508,Translation!$A:$C,3,FALSE),D6508)","v":"Rural"},{"$f":"IFERROR(VLOOKUP(E6508,Translation!$A:$C,3,FALSE),E6508)","v":5.7284768211920518},{"$f":"IFERROR(VLOOKUP(F6508,Translation!$A:$C,3,FALSE),F6508)","v":"Prêts hypothécaires assurés au cours de la période selon le milieu urbain/rural (%)"},{"$f":"IFERROR(VLOOKUP(G6508,Translation!$A:$C,3,FALSE),G6508)","v":"5.7"},{"$f":"IFERROR(VLOOKUP(H6508,Translation!$A:$C,3,FALSE),H6508)","v":"Rural"}]
[18,"T4 2018","PROPRIÉTAIRES-OCCUPANTS, À L’UNITÉ","Terre-Neuve-et-Labrador",69.473684210526315,"Prêts hypothécaires assurés au cours de la période selon le milieu urbain/rural (%)","69.5","Terre-Neuve-et-Labrador",{"$f":"IFERROR(VLOOKUP(A6511,Translation!$A:$C,3,FALSE),A6511)","v":18},{"$f":"IFERROR(VLOOKUP(B6511,Translation!$A:$C,3,FALSE),B6511)","v":"T4 2018"},{"$f":"IFERROR(VLOOKUP(C6511,Translation!$A:$C,3,FALSE),C6511)","v":"PROPRIÉTAIRES-OCCUPANTS, À L’UNITÉ"},{"$f":"IFERROR(VLOOKUP(D6511,Translation!$A:$C,3,FALSE),D6511)","v":"Terre-Neuve-et-Labrador"},{"$f":"IFERROR(VLOOKUP(E6511,Translation!$A:$C,3,FALSE),E6511)","v":69.473684210526315},{"$f":"IFERROR(VLOOKUP(F6511,Translation!$A:$C,3,FALSE),F6511)","v":"Prêts hypothécaires assurés au cours de la période selon le milieu urbain/rural (%)"},{"$f":"IFERROR(VLOOKUP(G6511,Translation!$A:$C,3,FALSE),G6511)","v":"69.5"},{"$f":"IFERROR(VLOOKUP(H6511,Translation!$A:$C,3,FALSE),H6511)","v":"Terre-Neuve-et-Labrador"}]
[18,"Cumul 2017","PROPRIÉTAIRES-OCCUPANTS, À L’UNITÉ","Terre-Neuve-et-Labrador",70.351180195739758,"Prêts hypothécaires assurés au cours de la période selon le milieu urbain/rural (%)","70.4","Terre-Neuve-et-Labrador",{"$f":"IFERROR(VLOOKUP(A6512,Translation!$A:$C,3,FALSE),A6512)","v":18},{"$f":"IFERROR(VLOOKUP(B6512,Translation!$A:$C,3,FALSE),B6512)","v":"Cumul 2017"},{"$f":"IFERROR(VLOOKUP(C6512,Translation!$A:$C,3,FALSE),C6512)","v":"PROPRIÉTAIRES-OCCUPANTS, À L’UNITÉ"},{"$f":"IFERROR(VLOOKUP(D6512,Translation!$A:$C,3,FALSE),D6512)","v":"Terre-Neuve-et-Labrador"},{"$f":"IFERROR(VLOOKUP(E6512,Translation!$A:$C,3,FALSE),E6512)","v":70.351180195739758},{"$f":"IFERROR(VLOOKUP(F6512,Translation!$A:$C,3,FALSE),F6512)","v":"Prêts hypothécaires assurés au cours de la période selon le milieu urbain/rural (%)"},{"$f":"IFERROR(VLOOKUP(G6512,Translation!$A:$C,3,FALSE),G6512)","v":"70.4"},{"$f":"IFERROR(VLOOKUP(H6512,Translation!$A:$C,3,FALSE),H6512)","v":"Terre-Neuve-et-Labrador"}]
[18,"Cumul 2017","PROPRIÉTAIRES-OCCUPANTS, À L’UNITÉ","Nouvelle-Écosse",84.717035334673938,"Prêts hypothécaires assurés au cours de la période selon le milieu urbain/rural (%)","84.7","Nouvelle-Écosse",{"$f":"IFERROR(VLOOKUP(A6516,Translation!$A:$C,3,FALSE),A6516)","v":18},{"$f":"IFERROR(VLOOKUP(B6516,Translation!$A:$C,3,FALSE),B6516)","v":"Cumul 2017"},{"$f":"IFERROR(VLOOKUP(C6516,Translation!$A:$C,3,FALSE),C6516)","v":"PROPRIÉTAIRES-OCCUPANTS, À L’UNITÉ"},{"$f":"IFERROR(VLOOKUP(D6516,Translation!$A:$C,3,FALSE),D6516)","v":"Nouvelle-Écosse"},{"$f":"IFERROR(VLOOKUP(E6516,Translation!$A:$C,3,FALSE),E6516)","v":84.717035334673938},{"$f":"IFERROR(VLOOKUP(F6516,Translation!$A:$C,3,FALSE),F6516)","v":"Prêts hypothécaires assurés au cours de la période selon le milieu urbain/rural (%)"},{"$f":"IFERROR(VLOOKUP(G6516,Translation!$A:$C,3,FALSE),G6516)","v":"84.7"},{"$f":"IFERROR(VLOOKUP(H6516,Translation!$A:$C,3,FALSE),H6516)","v":"Nouvelle-Écosse"}]
[18,"T4 2018","PROPRIÉTAIRES-OCCUPANTS, À L’UNITÉ","Nouveau-Brunswick",70.087124878993194,"Prêts hypothécaires assurés au cours de la période selon le milieu urbain/rural (%)","70.1","Nouveau-Brunswick",{"$f":"IFERROR(VLOOKUP(A6517,Translation!$A:$C,3,FALSE),A6517)","v":18},{"$f":"IFERROR(VLOOKUP(B6517,Translation!$A:$C,3,FALSE),B6517)","v":"T4 2018"},{"$f":"IFERROR(VLOOKUP(C6517,Translation!$A:$C,3,FALSE),C6517)","v":"PROPRIÉTAIRES-OCCUPANTS, À L’UNITÉ"},{"$f":"IFERROR(VLOOKUP(D6517,Translation!$A:$C,3,FALSE),D6517)","v":"Nouveau-Brunswick"},{"$f":"IFERROR(VLOOKUP(E6517,Translation!$A:$C,3,FALSE),E6517)","v":70.087124878993194},{"$f":"IFERROR(VLOOKUP(F6517,Translation!$A:$C,3,FALSE),F6517)","v":"Prêts hypothécaires assurés au cours de la période selon le milieu urbain/rural (%)"},{"$f":"IFERROR(VLOOKUP(G6517,Translation!$A:$C,3,FALSE),G6517)","v":"70.1"},{"$f":"IFERROR(VLOOKUP(H6517,Translation!$A:$C,3,FALSE),H6517)","v":"Nouveau-Brunswick"}]
[18,"T4 2018","PROPRIÉTAIRES-OCCUPANTS, À L’UNITÉ","Québec",81.619856303069909,"Prêts hypothécaires assurés au cours de la période selon le milieu urbain/rural (%)","81.6","Québec",{"$f":"IFERROR(VLOOKUP(A6519,Translation!$A:$C,3,FALSE),A6519)","v":18},{"$f":"IFERROR(VLOOKUP(B6519,Translation!$A:$C,3,FALSE),B6519)","v":"T4 2018"},{"$f":"IFERROR(VLOOKUP(C6519,Translation!$A:$C,3,FALSE),C6519)","v":"PROPRIÉTAIRES-OCCUPANTS, À L’UNITÉ"},{"$f":"IFERROR(VLOOKUP(D6519,Translation!$A:$C,3,FALSE),D6519)","v":"Québec"},{"$f":"IFERROR(VLOOKUP(E6519,Translation!$A:$C,3,FALSE),E6519)","v":81.619856303069909},{"$f":"IFERROR(VLOOKUP(F6519,Translation!$A:$C,3,FALSE),F6519)","v":"Prêts hypothécaires assurés au cours de la période selon le milieu urbain/rural (%)"},{"$f":"IFERROR(VLOOKUP(G6519,Translation!$A:$C,3,FALSE),G6519)","v":"81.6"},{"$f":"IFERROR(VLOOKUP(H6519,Translation!$A:$C,3,FALSE),H6519)","v":"Québec"}]
[18,"Cumul 2017","PROPRIÉTAIRES-OCCUPANTS, À L’UNITÉ","Ontario",90.959626554537991,"Prêts hypothécaires assurés au cours de la période selon le milieu urbain/rural (%)","91.0","Ontario",{"$f":"IFERROR(VLOOKUP(A6522,Translation!$A:$C,3,FALSE),A6522)","v":18},{"$f":"IFERROR(VLOOKUP(B6522,Translation!$A:$C,3,FALSE),B6522)","v":"Cumul 2017"},{"$f":"IFERROR(VLOOKUP(C6522,Translation!$A:$C,3,FALSE),C6522)","v":"PROPRIÉTAIRES-OCCUPANTS, À L’UNITÉ"},{"$f":"IFERROR(VLOOKUP(D6522,Translation!$A:$C,3,FALSE),D6522)","v":"Ontario"},{"$f":"IFERROR(VLOOKUP(E6522,Translation!$A:$C,3,FALSE),E6522)","v":90.959626554537991},{"$f":"IFERROR(VLOOKUP(F6522,Translation!$A:$C,3,FALSE),F6522)","v":"Prêts hypothécaires assurés au cours de la période selon le milieu urbain/rural (%)"},{"$f":"IFERROR(VLOOKUP(G6522,Translation!$A:$C,3,FALSE),G6522)","v":"91.0"},{"$f":"IFERROR(VLOOKUP(H6522,Translation!$A:$C,3,FALSE),H6522)","v":"Ontario"}]
[18,"T4 2018","PROPRIÉTAIRES-OCCUPANTS, À L’UNITÉ","Saskatchewan",77.626193724420176,"Prêts hypothécaires assurés au cours de la période selon le milieu urbain/rural (%)","77.6","Saskatchewan",{"$f":"IFERROR(VLOOKUP(A6525,Translation!$A:$C,3,FALSE),A6525)","v":18},{"$f":"IFERROR(VLOOKUP(B6525,Translation!$A:$C,3,FALSE),B6525)","v":"T4 2018"},{"$f":"IFERROR(VLOOKUP(C6525,Translation!$A:$C,3,FALSE),C6525)","v":"PROPRIÉTAIRES-OCCUPANTS, À L’UNITÉ"},{"$f":"IFERROR(VLOOKUP(D6525,Translation!$A:$C,3,FALSE),D6525)","v":"Saskatchewan"},{"$f":"IFERROR(VLOOKUP(E6525,Translation!$A:$C,3,FALSE),E6525)","v":77.626193724420176},{"$f":"IFERROR(VLOOKUP(F6525,Translation!$A:$C,3,FALSE),F6525)","v":"Prêts hypothécaires assurés au cours de la période selon le milieu urbain/rural (%)"},{"$f":"IFERROR(VLOOKUP(G6525,Translation!$A:$C,3,FALSE),G6525)","v":"77.6"},{"$f":"IFERROR(VLOOKUP(H6525,Translation!$A:$C,3,FALSE),H6525)","v":"Saskatchewan"}]
[18,"T4 2018","PROPRIÉTAIRES-OCCUPANTS, À L’UNITÉ","Alberta",93.441688052466489,"Prêts hypothécaires assurés au cours de la période selon le milieu urbain/rural (%)","93.4","Alberta",{"$f":"IFERROR(VLOOKUP(A6527,Translation!$A:$C,3,FALSE),A6527)","v":18},{"$f":"IFERROR(VLOOKUP(B6527,Translation!$A:$C,3,FALSE),B6527)","v":"T4 2018"},{"$f":"IFERROR(VLOOKUP(C6527,Translation!$A:$C,3,FALSE),C6527)","v":"PROPRIÉTAIRES-OCCUPANTS, À L’UNITÉ"},{"$f":"IFERROR(VLOOKUP(D6527,Translation!$A:$C,3,FALSE),D6527)","v":"Alberta"},{"$f":"IFERROR(VLOOKUP(E6527,Translation!$A:$C,3,FALSE),E6527)","v":93.441688052466489},{"$f":"IFERROR(VLOOKUP(F6527,Translation!$A:$C,3,FALSE),F6527)","v":"Prêts hypothécaires assurés au cours de la période selon le milieu urbain/rural (%)"},{"$f":"IFERROR(VLOOKUP(G6527,Translation!$A:$C,3,FALSE),G6527)","v":"93.4"},{"$f":"IFERROR(VLOOKUP(H6527,Translation!$A:$C,3,FALSE),H6527)","v":"Alberta"}]
[18,"Cumul 2017","PROPRIÉTAIRES-OCCUPANTS, À L’UNITÉ","Colombie-Britannique",86.846168693302431,"Prêts hypothécaires assurés au cours de la période selon le milieu urbain/rural (%)","86.8","Colombie-Britannique",{"$f":"IFERROR(VLOOKUP(A6530,Translation!$A:$C,3,FALSE),A6530)","v":18},{"$f":"IFERROR(VLOOKUP(B6530,Translation!$A:$C,3,FALSE),B6530)","v":"Cumul 2017"},{"$f":"IFERROR(VLOOKUP(C6530,Translation!$A:$C,3,FALSE),C6530)","v":"PROPRIÉTAIRES-OCCUPANTS, À L’UNITÉ"},{"$f":"IFERROR(VLOOKUP(D6530,Translation!$A:$C,3,FALSE),D6530)","v":"Colombie-Britannique"},{"$f":"IFERROR(VLOOKUP(E6530,Translation!$A:$C,3,FALSE),E6530)","v":86.846168693302431},{"$f":"IFERROR(VLOOKUP(F6530,Translation!$A:$C,3,FALSE),F6530)","v":"Prêts hypothécaires assurés au cours de la période selon le milieu urbain/rural (%)"},{"$f":"IFERROR(VLOOKUP(G6530,Translation!$A:$C,3,FALSE),G6530)","v":"86.8"},{"$f":"IFERROR(VLOOKUP(H6530,Translation!$A:$C,3,FALSE),H6530)","v":"Colombie-Britannique"}]
[18,"T4 2018","ASSURANCE DE PORTEFEUILLE","Terre-Neuve-et-Labrador",92.857142857142875,"Prêts hypothécaires assurés au cours de la période selon le milieu urbain/rural (%)","92.9","Terre-Neuve-et-Labrador",{"$f":"IFERROR(VLOOKUP(A6533,Translation!$A:$C,3,FALSE),A6533)","v":18},{"$f":"IFERROR(VLOOKUP(B6533,Translation!$A:$C,3,FALSE),B6533)","v":"T4 2018"},{"$f":"IFERROR(VLOOKUP(C6533,Translation!$A:$C,3,FALSE),C6533)","v":"ASSURANCE DE PORTEFEUILLE"},{"$f":"IFERROR(VLOOKUP(D6533,Translation!$A:$C,3,FALSE),D6533)","v":"Terre-Neuve-et-Labrador"},{"$f":"IFERROR(VLOOKUP(E6533,Translation!$A:$C,3,FALSE),E6533)","v":92.857142857142875},{"$f":"IFERROR(VLOOKUP(F6533,Translation!$A:$C,3,FALSE),F6533)","v":"Prêts hypothécaires assurés au cours de la période selon le milieu urbain/rural (%)"},{"$f":"IFERROR(VLOOKUP(G6533,Translation!$A:$C,3,FALSE),G6533)","v":"92.9"},{"$f":"IFERROR(VLOOKUP(H6533,Translation!$A:$C,3,FALSE),H6533)","v":"Terre-Neuve-et-Labrador"}]
[18,"T4 2018","ASSURANCE DE PORTEFEUILLE","Île-du-Prince-Édouard",81.818181818181827,"Prêts hypothécaires assurés au cours de la période selon le milieu urbain/rural (%)","81.8","Île-du-Prince-Édouard",{"$f":"IFERROR(VLOOKUP(A6535,Translation!$A:$C,3,FALSE),A6535)","v":18},{"$f":"IFERROR(VLOOKUP(B6535,Translation!$A:$C,3,FALSE),B6535)","v":"T4 2018"},{"$f":"IFERROR(VLOOKUP(C6535,Translation!$A:$C,3,FALSE),C6535)","v":"ASSURANCE DE PORTEFEUILLE"},{"$f":"IFERROR(VLOOKUP(D6535,Translation!$A:$C,3,FALSE),D6535)","v":"Île-du-Prince-Édouard"},{"$f":"IFERROR(VLOOKUP(E6535,Translation!$A:$C,3,FALSE),E6535)","v":81.818181818181827},{"$f":"IFERROR(VLOOKUP(F6535,Translation!$A:$C,3,FALSE),F6535)","v":"Prêts hypothécaires assurés au cours de la période selon le milieu urbain/rural (%)"},{"$f":"IFERROR(VLOOKUP(G6535,Translation!$A:$C,3,FALSE),G6535)","v":"81.8"},{"$f":"IFERROR(VLOOKUP(H6535,Translation!$A:$C,3,FALSE),H6535)","v":"Île-du-Prince-Édouard"}]
[18,"Cumul 2017","ASSURANCE DE PORTEFEUILLE","Île-du-Prince-Édouard",83.333333333333357,"Prêts hypothécaires assurés au cours de la période selon le milieu urbain/rural (%)","83.3","Île-du-Prince-Édouard",{"$f":"IFERROR(VLOOKUP(A6536,Translation!$A:$C,3,FALSE),A6536)","v":18},{"$f":"IFERROR(VLOOKUP(B6536,Translation!$A:$C,3,FALSE),B6536)","v":"Cumul 2017"},{"$f":"IFERROR(VLOOKUP(C6536,Translation!$A:$C,3,FALSE),C6536)","v":"ASSURANCE DE PORTEFEUILLE"},{"$f":"IFERROR(VLOOKUP(D6536,Translation!$A:$C,3,FALSE),D6536)","v":"Île-du-Prince-Édouard"},{"$f":"IFERROR(VLOOKUP(E6536,Translation!$A:$C,3,FALSE),E6536)","v":83.333333333333357},{"$f":"IFERROR(VLOOKUP(F6536,Translation!$A:$C,3,FALSE),F6536)","v":"Prêts hypothécaires assurés au cours de la période selon le milieu urbain/rural (%)"},{"$f":"IFERROR(VLOOKUP(G6536,Translation!$A:$C,3,FALSE),G6536)","v":"83.3"},{"$f":"IFERROR(VLOOKUP(H6536,Translation!$A:$C,3,FALSE),H6536)","v":"Île-du-Prince-Édouard"}]
[18,"Cumul 2017","ASSURANCE DE PORTEFEUILLE","Nouvelle-Écosse",96.153846153846175,"Prêts hypothécaires assurés au cours de la période selon le milieu urbain/rural (%)","96.2","Nouvelle-Écosse",{"$f":"IFERROR(VLOOKUP(A6538,Translation!$A:$C,3,FALSE),A6538)","v":18},{"$f":"IFERROR(VLOOKUP(B6538,Translation!$A:$C,3,FALSE),B6538)","v":"Cumul 2017"},{"$f":"IFERROR(VLOOKUP(C6538,Translation!$A:$C,3,FALSE),C6538)","v":"ASSURANCE DE PORTEFEUILLE"},{"$f":"IFERROR(VLOOKUP(D6538,Translation!$A:$C,3,FALSE),D6538)","v":"Nouvelle-Écosse"},{"$f":"IFERROR(VLOOKUP(E6538,Translation!$A:$C,3,FALSE),E6538)","v":96.153846153846175},{"$f":"IFERROR(VLOOKUP(F6538,Translation!$A:$C,3,FALSE),F6538)","v":"Prêts hypothécaires assurés au cours de la période selon le milieu urbain/rural (%)"},{"$f":"IFERROR(VLOOKUP(G6538,Translation!$A:$C,3,FALSE),G6538)","v":"96.2"},{"$f":"IFERROR(VLOOKUP(H6538,Translation!$A:$C,3,FALSE),H6538)","v":"Nouvelle-Écosse"}]
[18,"T4 2018","ASSURANCE DE PORTEFEUILLE","Québec",93.771626297577839,"Prêts hypothécaires assurés au cours de la période selon le milieu urbain/rural (%)","93.8","Québec",{"$f":"IFERROR(VLOOKUP(A6541,Translation!$A:$C,3,FALSE),A6541)","v":18},{"$f":"IFERROR(VLOOKUP(B6541,Translation!$A:$C,3,FALSE),B6541)","v":"T4 2018"},{"$f":"IFERROR(VLOOKUP(C6541,Translation!$A:$C,3,FALSE),C6541)","v":"ASSURANCE DE PORTEFEUILLE"},{"$f":"IFERROR(VLOOKUP(D6541,Translation!$A:$C,3,FALSE),D6541)","v":"Québec"},{"$f":"IFERROR(VLOOKUP(E6541,Translation!$A:$C,3,FALSE),E6541)","v":93.771626297577839},{"$f":"IFERROR(VLOOKUP(F6541,Translation!$A:$C,3,FALSE),F6541)","v":"Prêts hypothécaires assurés au cours de la période selon le milieu urbain/rural (%)"},{"$f":"IFERROR(VLOOKUP(G6541,Translation!$A:$C,3,FALSE),G6541)","v":"93.8"},{"$f":"IFERROR(VLOOKUP(H6541,Translation!$A:$C,3,FALSE),H6541)","v":"Québec"}]
[18,"Cumul 2017","ASSURANCE DE PORTEFEUILLE","Ontario",95.729900909183755,"Prêts hypothécaires assurés au cours de la période selon le milieu urbain/rural (%)","95.7","Ontario",{"$f":"IFERROR(VLOOKUP(A6544,Translation!$A:$C,3,FALSE),A6544)","v":18},{"$f":"IFERROR(VLOOKUP(B6544,Translation!$A:$C,3,FALSE),B6544)","v":"Cumul 2017"},{"$f":"IFERROR(VLOOKUP(C6544,Translation!$A:$C,3,FALSE),C6544)","v":"ASSURANCE DE PORTEFEUILLE"},{"$f":"IFERROR(VLOOKUP(D6544,Translation!$A:$C,3,FALSE),D6544)","v":"Ontario"},{"$f":"IFERROR(VLOOKUP(E6544,Translation!$A:$C,3,FALSE),E6544)","v":95.729900909183755},{"$f":"IFERROR(VLOOKUP(F6544,Translation!$A:$C,3,FALSE),F6544)","v":"Prêts hypothécaires assurés au cours de la période selon le milieu urbain/rural (%)"},{"$f":"IFERROR(VLOOKUP(G6544,Translation!$A:$C,3,FALSE),G6544)","v":"95.7"},{"$f":"IFERROR(VLOOKUP(H6544,Translation!$A:$C,3,FALSE),H6544)","v":"Ontario"}]
[18,"Cumul 2017","ASSURANCE DE PORTEFEUILLE","Manitoba",96.835443037974699,"Prêts hypothécaires assurés au cours de la période selon le milieu urbain/rural (%)","96.8","Manitoba",{"$f":"IFERROR(VLOOKUP(A6546,Translation!$A:$C,3,FALSE),A6546)","v":18},{"$f":"IFERROR(VLOOKUP(B6546,Translation!$A:$C,3,FALSE),B6546)","v":"Cumul 2017"},{"$f":"IFERROR(VLOOKUP(C6546,Translation!$A:$C,3,FALSE),C6546)","v":"ASSURANCE DE PORTEFEUILLE"},{"$f":"IFERROR(VLOOKUP(D6546,Translation!$A:$C,3,FALSE),D6546)","v":"Manitoba"},{"$f":"IFERROR(VLOOKUP(E6546,Translation!$A:$C,3,FALSE),E6546)","v":96.835443037974699},{"$f":"IFERROR(VLOOKUP(F6546,Translation!$A:$C,3,FALSE),F6546)","v":"Prêts hypothécaires assurés au cours de la période selon le milieu urbain/rural (%)"},{"$f":"IFERROR(VLOOKUP(G6546,Translation!$A:$C,3,FALSE),G6546)","v":"96.8"},{"$f":"IFERROR(VLOOKUP(H6546,Translation!$A:$C,3,FALSE),H6546)","v":"Manitoba"}]
[18,"T4 2018","ASSURANCE DE PORTEFEUILLE","Alberta",93.9443535188216,"Prêts hypothécaires assurés au cours de la période selon le milieu urbain/rural (%)","93.9","Alberta",{"$f":"IFERROR(VLOOKUP(A6549,Translation!$A:$C,3,FALSE),A6549)","v":18},{"$f":"IFERROR(VLOOKUP(B6549,Translation!$A:$C,3,FALSE),B6549)","v":"T4 2018"},{"$f":"IFERROR(VLOOKUP(C6549,Translation!$A:$C,3,FALSE),C6549)","v":"ASSURANCE DE PORTEFEUILLE"},{"$f":"IFERROR(VLOOKUP(D6549,Translation!$A:$C,3,FALSE),D6549)","v":"Alberta"},{"$f":"IFERROR(VLOOKUP(E6549,Translation!$A:$C,3,FALSE),E6549)","v":93.9443535188216},{"$f":"IFERROR(VLOOKUP(F6549,Translation!$A:$C,3,FALSE),F6549)","v":"Prêts hypothécaires assurés au cours de la période selon le milieu urbain/rural (%)"},{"$f":"IFERROR(VLOOKUP(G6549,Translation!$A:$C,3,FALSE),G6549)","v":"93.9"},{"$f":"IFERROR(VLOOKUP(H6549,Translation!$A:$C,3,FALSE),H6549)","v":"Alberta"}]
[18,"Cumul 2017","ASSURANCE DE PORTEFEUILLE","Colombie-Britannique",96.44628099173552,"Prêts hypothécaires assurés au cours de la période selon le milieu urbain/rural (%)","96.4","Colombie-Britannique",{"$f":"IFERROR(VLOOKUP(A6552,Translation!$A:$C,3,FALSE),A6552)","v":18},{"$f":"IFERROR(VLOOKUP(B6552,Translation!$A:$C,3,FALSE),B6552)","v":"Cumul 2017"},{"$f":"IFERROR(VLOOKUP(C6552,Translation!$A:$C,3,FALSE),C6552)","v":"ASSURANCE DE PORTEFEUILLE"},{"$f":"IFERROR(VLOOKUP(D6552,Translation!$A:$C,3,FALSE),D6552)","v":"Colombie-Britannique"},{"$f":"IFERROR(VLOOKUP(E6552,Translation!$A:$C,3,FALSE),E6552)","v":96.44628099173552},{"$f":"IFERROR(VLOOKUP(F6552,Translation!$A:$C,3,FALSE),F6552)","v":"Prêts hypothécaires assurés au cours de la période selon le milieu urbain/rural (%)"},{"$f":"IFERROR(VLOOKUP(G6552,Translation!$A:$C,3,FALSE),G6552)","v":"96.4"},{"$f":"IFERROR(VLOOKUP(H6552,Translation!$A:$C,3,FALSE),H6552)","v":"Colombie-Britannique"}]
[30,"T4 2018","IMMEUBLES COLLECTIFS RÉSIDENTIELS","Rural",1.7526695365349123,"Prêts hypothécaires assurés au cours de la période selon le milieu urbain/rural (%)","1.8","Rural",{"$f":"IFERROR(VLOOKUP(A6554,Translation!$A:$C,3,FALSE),A6554)","v":30},{"$f":"IFERROR(VLOOKUP(B6554,Translation!$A:$C,3,FALSE),B6554)","v":"T4 2018"},{"$f":"IFERROR(VLOOKUP(C6554,Translation!$A:$C,3,FALSE),C6554)","v":"IMMEUBLES COLLECTIFS RÉSIDENTIELS"},{"$f":"IFERROR(VLOOKUP(D6554,Translation!$A:$C,3,FALSE),D6554)","v":"Rural"},{"$f":"IFERROR(VLOOKUP(E6554,Translation!$A:$C,3,FALSE),E6554)","v":1.7526695365349123},{"$f":"IFERROR(VLOOKUP(F6554,Translation!$A:$C,3,FALSE),F6554)","v":"Prêts hypothécaires assurés au cours de la période selon le milieu urbain/rural (%)"},{"$f":"IFERROR(VLOOKUP(G6554,Translation!$A:$C,3,FALSE),G6554)","v":"1.8"},{"$f":"IFERROR(VLOOKUP(H6554,Translation!$A:$C,3,FALSE),H6554)","v":"Rural"}]
[30,"Cumul 2017","IMMEUBLES COLLECTIFS RÉSIDENTIELS","Rural",1.1216155272344619,"Prêts hypothécaires assurés au cours de la période selon le milieu urbain/rural (%)","1.1","Rural",{"$f":"IFERROR(VLOOKUP(A6555,Translation!$A:$C,3,FALSE),A6555)","v":30},{"$f":"IFERROR(VLOOKUP(B6555,Translation!$A:$C,3,FALSE),B6555)","v":"Cumul 2017"},{"$f":"IFERROR(VLOOKUP(C6555,Translation!$A:$C,3,FALSE),C6555)","v":"IMMEUBLES COLLECTIFS RÉSIDENTIELS"},{"$f":"IFERROR(VLOOKUP(D6555,Translation!$A:$C,3,FALSE),D6555)","v":"Rural"},{"$f":"IFERROR(VLOOKUP(E6555,Translation!$A:$C,3,FALSE),E6555)","v":1.1216155272344619},{"$f":"IFERROR(VLOOKUP(F6555,Translation!$A:$C,3,FALSE),F6555)","v":"Prêts hypothécaires assurés au cours de la période selon le milieu urbain/rural (%)"},{"$f":"IFERROR(VLOOKUP(G6555,Translation!$A:$C,3,FALSE),G6555)","v":"1.1"},{"$f":"IFERROR(VLOOKUP(H6555,Translation!$A:$C,3,FALSE),H6555)","v":"Rural"}]
[30,"Cumul 2017","IMMEUBLES COLLECTIFS RÉSIDENTIELS","Terre-Neuve-et-Labrador",96,"Prêts hypothécaires assurés au cours de la période selon le milieu urbain/rural (%)","96.0","Terre-Neuve-et-Labrador",{"$f":"IFERROR(VLOOKUP(A6559,Translation!$A:$C,3,FALSE),A6559)","v":30},{"$f":"IFERROR(VLOOKUP(B6559,Translation!$A:$C,3,FALSE),B6559)","v":"Cumul 2017"},{"$f":"IFERROR(VLOOKUP(C6559,Translation!$A:$C,3,FALSE),C6559)","v":"IMMEUBLES COLLECTIFS RÉSIDENTIELS"},{"$f":"IFERROR(VLOOKUP(D6559,Translation!$A:$C,3,FALSE),D6559)","v":"Terre-Neuve-et-Labrador"},{"$f":"IFERROR(VLOOKUP(E6559,Translation!$A:$C,3,FALSE),E6559)","v":96},{"$f":"IFERROR(VLOOKUP(F6559,Translation!$A:$C,3,FALSE),F6559)","v":"Prêts hypothécaires assurés au cours de la période selon le milieu urbain/rural (%)"},{"$f":"IFERROR(VLOOKUP(G6559,Translation!$A:$C,3,FALSE),G6559)","v":"96.0"},{"$f":"IFERROR(VLOOKUP(H6559,Translation!$A:$C,3,FALSE),H6559)","v":"Terre-Neuve-et-Labrador"}]
[30,"T4 2018","IMMEUBLES COLLECTIFS RÉSIDENTIELS","Île-du-Prince-Édouard",100,"Prêts hypothécaires assurés au cours de la période selon le milieu urbain/rural (%)","100.0","Île-du-Prince-Édouard",{"$f":"IFERROR(VLOOKUP(A6560,Translation!$A:$C,3,FALSE),A6560)","v":30},{"$f":"IFERROR(VLOOKUP(B6560,Translation!$A:$C,3,FALSE),B6560)","v":"T4 2018"},{"$f":"IFERROR(VLOOKUP(C6560,Translation!$A:$C,3,FALSE),C6560)","v":"IMMEUBLES COLLECTIFS RÉSIDENTIELS"},{"$f":"IFERROR(VLOOKUP(D6560,Translation!$A:$C,3,FALSE),D6560)","v":"Île-du-Prince-Édouard"},{"$f":"IFERROR(VLOOKUP(E6560,Translation!$A:$C,3,FALSE),E6560)","v":100},{"$f":"IFERROR(VLOOKUP(F6560,Translation!$A:$C,3,FALSE),F6560)","v":"Prêts hypothécaires assurés au cours de la période selon le milieu urbain/rural (%)"},{"$f":"IFERROR(VLOOKUP(G6560,Translation!$A:$C,3,FALSE),G6560)","v":"100.0"},{"$f":"IFERROR(VLOOKUP(H6560,Translation!$A:$C,3,FALSE),H6560)","v":"Île-du-Prince-Édouard"}]
[30,"Cumul 2017","IMMEUBLES COLLECTIFS RÉSIDENTIELS","Nouvelle-Écosse",98.691527641478558,"Prêts hypothécaires assurés au cours de la période selon le milieu urbain/rural (%)","98.7","Nouvelle-Écosse",{"$f":"IFERROR(VLOOKUP(A6563,Translation!$A:$C,3,FALSE),A6563)","v":30},{"$f":"IFERROR(VLOOKUP(B6563,Translation!$A:$C,3,FALSE),B6563)","v":"Cumul 2017"},{"$f":"IFERROR(VLOOKUP(C6563,Translation!$A:$C,3,FALSE),C6563)","v":"IMMEUBLES COLLECTIFS RÉSIDENTIELS"},{"$f":"IFERROR(VLOOKUP(D6563,Translation!$A:$C,3,FALSE),D6563)","v":"Nouvelle-Écosse"},{"$f":"IFERROR(VLOOKUP(E6563,Translation!$A:$C,3,FALSE),E6563)","v":98.691527641478558},{"$f":"IFERROR(VLOOKUP(F6563,Translation!$A:$C,3,FALSE),F6563)","v":"Prêts hypothécaires assurés au cours de la période selon le milieu urbain/rural (%)"},{"$f":"IFERROR(VLOOKUP(G6563,Translation!$A:$C,3,FALSE),G6563)","v":"98.7"},{"$f":"IFERROR(VLOOKUP(H6563,Translation!$A:$C,3,FALSE),H6563)","v":"Nouvelle-Écosse"}]
[30,"Cumul 2017","IMMEUBLES COLLECTIFS RÉSIDENTIELS","Nouveau-Brunswick",97.80018331805681,"Prêts hypothécaires assurés au cours de la période selon le milieu urbain/rural (%)","97.8","Nouveau-Brunswick",{"$f":"IFERROR(VLOOKUP(A6565,Translation!$A:$C,3,FALSE),A6565)","v":30},{"$f":"IFERROR(VLOOKUP(B6565,Translation!$A:$C,3,FALSE),B6565)","v":"Cumul 2017"},{"$f":"IFERROR(VLOOKUP(C6565,Translation!$A:$C,3,FALSE),C6565)","v":"IMMEUBLES COLLECTIFS RÉSIDENTIELS"},{"$f":"IFERROR(VLOOKUP(D6565,Translation!$A:$C,3,FALSE),D6565)","v":"Nouveau-Brunswick"},{"$f":"IFERROR(VLOOKUP(E6565,Translation!$A:$C,3,FALSE),E6565)","v":97.80018331805681},{"$f":"IFERROR(VLOOKUP(F6565,Translation!$A:$C,3,FALSE),F6565)","v":"Prêts hypothécaires assurés au cours de la période selon le milieu urbain/rural (%)"},{"$f":"IFERROR(VLOOKUP(G6565,Translation!$A:$C,3,FALSE),G6565)","v":"97.8"},{"$f":"IFERROR(VLOOKUP(H6565,Translation!$A:$C,3,FALSE),H6565)","v":"Nouveau-Brunswick"}]
[30,"Cumul 2017","IMMEUBLES COLLECTIFS RÉSIDENTIELS","Ontario",99.310601418191382,"Prêts hypothécaires assurés au cours de la période selon le milieu urbain/rural (%)","99.3","Ontario",{"$f":"IFERROR(VLOOKUP(A6569,Translation!$A:$C,3,FALSE),A6569)","v":30},{"$f":"IFERROR(VLOOKUP(B6569,Translation!$A:$C,3,FALSE),B6569)","v":"Cumul 2017"},{"$f":"IFERROR(VLOOKUP(C6569,Translation!$A:$C,3,FALSE),C6569)","v":"IMMEUBLES COLLECTIFS RÉSIDENTIELS"},{"$f":"IFERROR(VLOOKUP(D6569,Translation!$A:$C,3,FALSE),D6569)","v":"Ontario"},{"$f":"IFERROR(VLOOKUP(E6569,Translation!$A:$C,3,FALSE),E6569)","v":99.310601418191382},{"$f":"IFERROR(VLOOKUP(F6569,Translation!$A:$C,3,FALSE),F6569)","v":"Prêts hypothécaires assurés au cours de la période selon le milieu urbain/rural (%)"},{"$f":"IFERROR(VLOOKUP(G6569,Translation!$A:$C,3,FALSE),G6569)","v":"99.3"},{"$f":"IFERROR(VLOOKUP(H6569,Translation!$A:$C,3,FALSE),H6569)","v":"Ontario"}]
[30,"T4 2018","IMMEUBLES COLLECTIFS RÉSIDENTIELS","Manitoba",100,"Prêts hypothécaires assurés au cours de la période selon le milieu urbain/rural (%)","100.0","Manitoba",{"$f":"IFERROR(VLOOKUP(A6570,Translation!$A:$C,3,FALSE),A6570)","v":30},{"$f":"IFERROR(VLOOKUP(B6570,Translation!$A:$C,3,FALSE),B6570)","v":"T4 2018"},{"$f":"IFERROR(VLOOKUP(C6570,Translation!$A:$C,3,FALSE),C6570)","v":"IMMEUBLES COLLECTIFS RÉSIDENTIELS"},{"$f":"IFERROR(VLOOKUP(D6570,Translation!$A:$C,3,FALSE),D6570)","v":"Manitoba"},{"$f":"IFERROR(VLOOKUP(E6570,Translation!$A:$C,3,FALSE),E6570)","v":100},{"$f":"IFERROR(VLOOKUP(F6570,Translation!$A:$C,3,FALSE),F6570)","v":"Prêts hypothécaires assurés au cours de la période selon le milieu urbain/rural (%)"},{"$f":"IFERROR(VLOOKUP(G6570,Translation!$A:$C,3,FALSE),G6570)","v":"100.0"},{"$f":"IFERROR(VLOOKUP(H6570,Translation!$A:$C,3,FALSE),H6570)","v":"Manitoba"}]
[30,"Cumul 2017","IMMEUBLES COLLECTIFS RÉSIDENTIELS","Saskatchewan",98.726114649681563,"Prêts hypothécaires assurés au cours de la période selon le milieu urbain/rural (%)","98.7","Saskatchewan",{"$f":"IFERROR(VLOOKUP(A6573,Translation!$A:$C,3,FALSE),A6573)","v":30},{"$f":"IFERROR(VLOOKUP(B6573,Translation!$A:$C,3,FALSE),B6573)","v":"Cumul 2017"},{"$f":"IFERROR(VLOOKUP(C6573,Translation!$A:$C,3,FALSE),C6573)","v":"IMMEUBLES COLLECTIFS RÉSIDENTIELS"},{"$f":"IFERROR(VLOOKUP(D6573,Translation!$A:$C,3,FALSE),D6573)","v":"Saskatchewan"},{"$f":"IFERROR(VLOOKUP(E6573,Translation!$A:$C,3,FALSE),E6573)","v":98.726114649681563},{"$f":"IFERROR(VLOOKUP(F6573,Translation!$A:$C,3,FALSE),F6573)","v":"Prêts hypothécaires assurés au cours de la période selon le milieu urbain/rural (%)"},{"$f":"IFERROR(VLOOKUP(G6573,Translation!$A:$C,3,FALSE),G6573)","v":"98.7"},{"$f":"IFERROR(VLOOKUP(H6573,Translation!$A:$C,3,FALSE),H6573)","v":"Saskatchewan"}]
[30,"T4 2018","IMMEUBLES COLLECTIFS RÉSIDENTIELS","Alberta",100,"Prêts hypothécaires assurés au cours de la période selon le milieu urbain/rural (%)","100.0","Alberta",{"$f":"IFERROR(VLOOKUP(A6574,Translation!$A:$C,3,FALSE),A6574)","v":30},{"$f":"IFERROR(VLOOKUP(B6574,Translation!$A:$C,3,FALSE),B6574)","v":"T4 2018"},{"$f":"IFERROR(VLOOKUP(C6574,Translation!$A:$C,3,FALSE),C6574)","v":"IMMEUBLES COLLECTIFS RÉSIDENTIELS"},{"$f":"IFERROR(VLOOKUP(D6574,Translation!$A:$C,3,FALSE),D6574)","v":"Alberta"},{"$f":"IFERROR(VLOOKUP(E6574,Translation!$A:$C,3,FALSE),E6574)","v":100},{"$f":"IFERROR(VLOOKUP(F6574,Translation!$A:$C,3,FALSE),F6574)","v":"Prêts hypothécaires assurés au cours de la période selon le milieu urbain/rural (%)"},{"$f":"IFERROR(VLOOKUP(G6574,Translation!$A:$C,3,FALSE),G6574)","v":"100.0"},{"$f":"IFERROR(VLOOKUP(H6574,Translation!$A:$C,3,FALSE),H6574)","v":"Alberta"}]
[30,"T4 2018","IMMEUBLES COLLECTIFS RÉSIDENTIELS","Territoires",100,"Prêts hypothécaires assurés au cours de la période selon le milieu urbain/rural (%)","100.0","Territoires",{"$f":"IFERROR(VLOOKUP(A6578,Translation!$A:$C,3,FALSE),A6578)","v":30},{"$f":"IFERROR(VLOOKUP(B6578,Translation!$A:$C,3,FALSE),B6578)","v":"T4 2018"},{"$f":"IFERROR(VLOOKUP(C6578,Translation!$A:$C,3,FALSE),C6578)","v":"IMMEUBLES COLLECTIFS RÉSIDENTIELS"},{"$f":"IFERROR(VLOOKUP(D6578,Translation!$A:$C,3,FALSE),D6578)","v":"Territoires"},{"$f":"IFERROR(VLOOKUP(E6578,Translation!$A:$C,3,FALSE),E6578)","v":100},{"$f":"IFERROR(VLOOKUP(F6578,Translation!$A:$C,3,FALSE),F6578)","v":"Prêts hypothécaires assurés au cours de la période selon le milieu urbain/rural (%)"},{"$f":"IFERROR(VLOOKUP(G6578,Translation!$A:$C,3,FALSE),G6578)","v":"100.0"},{"$f":"IFERROR(VLOOKUP(H6578,Translation!$A:$C,3,FALSE),H6578)","v":"Territoires"}]
[18,"T3 2018","PROPRIÉTAIRES-OCCUPANTS, À L’UNITÉ","Rural",14.26227894615965,"Prêts hypothécaires assurés au cours de la période selon le milieu urbain/rural (%)","14.3","Rural",{"$f":"IFERROR(VLOOKUP(A6580,Translation!$A:$C,3,FALSE),A6580)","v":18},{"$f":"IFERROR(VLOOKUP(B6580,Translation!$A:$C,3,FALSE),B6580)","v":"T3 2018"},{"$f":"IFERROR(VLOOKUP(C6580,Translation!$A:$C,3,FALSE),C6580)","v":"PROPRIÉTAIRES-OCCUPANTS, À L’UNITÉ"},{"$f":"IFERROR(VLOOKUP(D6580,Translation!$A:$C,3,FALSE),D6580)","v":"Rural"},{"$f":"IFERROR(VLOOKUP(E6580,Translation!$A:$C,3,FALSE),E6580)","v":14.26227894615965},{"$f":"IFERROR(VLOOKUP(F6580,Translation!$A:$C,3,FALSE),F6580)","v":"Prêts hypothécaires assurés au cours de la période selon le milieu urbain/rural (%)"},{"$f":"IFERROR(VLOOKUP(G6580,Translation!$A:$C,3,FALSE),G6580)","v":"14.3"},{"$f":"IFERROR(VLOOKUP(H6580,Translation!$A:$C,3,FALSE),H6580)","v":"Rural"}]
[18,"T3 2018","ASSURANCE DE PORTEFEUILLE","Urbain",96.091597796143262,"Prêts hypothécaires assurés au cours de la période selon le milieu urbain/rural (%)","96.1","Urbain",{"$f":"IFERROR(VLOOKUP(A6583,Translation!$A:$C,3,FALSE),A6583)","v":18},{"$f":"IFERROR(VLOOKUP(B6583,Translation!$A:$C,3,FALSE),B6583)","v":"T3 2018"},{"$f":"IFERROR(VLOOKUP(C6583,Translation!$A:$C,3,FALSE),C6583)","v":"ASSURANCE DE PORTEFEUILLE"},{"$f":"IFERROR(VLOOKUP(D6583,Translation!$A:$C,3,FALSE),D6583)","v":"Urbain"},{"$f":"IFERROR(VLOOKUP(E6583,Translation!$A:$C,3,FALSE),E6583)","v":96.091597796143262},{"$f":"IFERROR(VLOOKUP(F6583,Translation!$A:$C,3,FALSE),F6583)","v":"Prêts hypothécaires assurés au cours de la période selon le milieu urbain/rural (%)"},{"$f":"IFERROR(VLOOKUP(G6583,Translation!$A:$C,3,FALSE),G6583)","v":"96.1"},{"$f":"IFERROR(VLOOKUP(H6583,Translation!$A:$C,3,FALSE),H6583)","v":"Urbain"}]
[18,"T3 2018","PROPRIÉTAIRES-OCCUPANTS, À L’UNITÉ","Terre-Neuve-et-Labrador",72.93868921775902,"Prêts hypothécaires assurés au cours de la période selon le milieu urbain/rural (%)","72.9","Terre-Neuve-et-Labrador",{"$f":"IFERROR(VLOOKUP(A6584,Translation!$A:$C,3,FALSE),A6584)","v":18},{"$f":"IFERROR(VLOOKUP(B6584,Translation!$A:$C,3,FALSE),B6584)","v":"T3 2018"},{"$f":"IFERROR(VLOOKUP(C6584,Translation!$A:$C,3,FALSE),C6584)","v":"PROPRIÉTAIRES-OCCUPANTS, À L’UNITÉ"},{"$f":"IFERROR(VLOOKUP(D6584,Translation!$A:$C,3,FALSE),D6584)","v":"Terre-Neuve-et-Labrador"},{"$f":"IFERROR(VLOOKUP(E6584,Translation!$A:$C,3,FALSE),E6584)","v":72.93868921775902},{"$f":"IFERROR(VLOOKUP(F6584,Translation!$A:$C,3,FALSE),F6584)","v":"Prêts hypothécaires assurés au cours de la période selon le milieu urbain/rural (%)"},{"$f":"IFERROR(VLOOKUP(G6584,Translation!$A:$C,3,FALSE),G6584)","v":"72.9"},{"$f":"IFERROR(VLOOKUP(H6584,Translation!$A:$C,3,FALSE),H6584)","v":"Terre-Neuve-et-Labrador"}]
[18,"T3 2018","PROPRIÉTAIRES-OCCUPANTS, À L’UNITÉ","Québec",82.586427656850205,"Prêts hypothécaires assurés au cours de la période selon le milieu urbain/rural (%)","82.6","Québec",{"$f":"IFERROR(VLOOKUP(A6588,Translation!$A:$C,3,FALSE),A6588)","v":18},{"$f":"IFERROR(VLOOKUP(B6588,Translation!$A:$C,3,FALSE),B6588)","v":"T3 2018"},{"$f":"IFERROR(VLOOKUP(C6588,Translation!$A:$C,3,FALSE),C6588)","v":"PROPRIÉTAIRES-OCCUPANTS, À L’UNITÉ"},{"$f":"IFERROR(VLOOKUP(D6588,Translation!$A:$C,3,FALSE),D6588)","v":"Québec"},{"$f":"IFERROR(VLOOKUP(E6588,Translation!$A:$C,3,FALSE),E6588)","v":82.586427656850205},{"$f":"IFERROR(VLOOKUP(F6588,Translation!$A:$C,3,FALSE),F6588)","v":"Prêts hypothécaires assurés au cours de la période selon le milieu urbain/rural (%)"},{"$f":"IFERROR(VLOOKUP(G6588,Translation!$A:$C,3,FALSE),G6588)","v":"82.6"},{"$f":"IFERROR(VLOOKUP(H6588,Translation!$A:$C,3,FALSE),H6588)","v":"Québec"}]
[18,"T3 2018","PROPRIÉTAIRES-OCCUPANTS, À L’UNITÉ","Ontario",90.251930624129628,"Prêts hypothécaires assurés au cours de la période selon le milieu urbain/rural (%)","90.3","Ontario",{"$f":"IFERROR(VLOOKUP(A6589,Translation!$A:$C,3,FALSE),A6589)","v":18},{"$f":"IFERROR(VLOOKUP(B6589,Translation!$A:$C,3,FALSE),B6589)","v":"T3 2018"},{"$f":"IFERROR(VLOOKUP(C6589,Translation!$A:$C,3,FALSE),C6589)","v":"PROPRIÉTAIRES-OCCUPANTS, À L’UNITÉ"},{"$f":"IFERROR(VLOOKUP(D6589,Translation!$A:$C,3,FALSE),D6589)","v":"Ontario"},{"$f":"IFERROR(VLOOKUP(E6589,Translation!$A:$C,3,FALSE),E6589)","v":90.251930624129628},{"$f":"IFERROR(VLOOKUP(F6589,Translation!$A:$C,3,FALSE),F6589)","v":"Prêts hypothécaires assurés au cours de la période selon le milieu urbain/rural (%)"},{"$f":"IFERROR(VLOOKUP(G6589,Translation!$A:$C,3,FALSE),G6589)","v":"90.3"},{"$f":"IFERROR(VLOOKUP(H6589,Translation!$A:$C,3,FALSE),H6589)","v":"Ontario"}]
[18,"T3 2018","PROPRIÉTAIRES-OCCUPANTS, À L’UNITÉ","Saskatchewan",76.805696846388614,"Prêts hypothécaires assurés au cours de la période selon le milieu urbain/rural (%)","76.8","Saskatchewan",{"$f":"IFERROR(VLOOKUP(A6591,Translation!$A:$C,3,FALSE),A6591)","v":18},{"$f":"IFERROR(VLOOKUP(B6591,Translation!$A:$C,3,FALSE),B6591)","v":"T3 2018"},{"$f":"IFERROR(VLOOKUP(C6591,Translation!$A:$C,3,FALSE),C6591)","v":"PROPRIÉTAIRES-OCCUPANTS, À L’UNITÉ"},{"$f":"IFERROR(VLOOKUP(D6591,Translation!$A:$C,3,FALSE),D6591)","v":"Saskatchewan"},{"$f":"IFERROR(VLOOKUP(E6591,Translation!$A:$C,3,FALSE),E6591)","v":76.805696846388614},{"$f":"IFERROR(VLOOKUP(F6591,Translation!$A:$C,3,FALSE),F6591)","v":"Prêts hypothécaires assurés au cours de la période selon le milieu urbain/rural (%)"},{"$f":"IFERROR(VLOOKUP(G6591,Translation!$A:$C,3,FALSE),G6591)","v":"76.8"},{"$f":"IFERROR(VLOOKUP(H6591,Translation!$A:$C,3,FALSE),H6591)","v":"Saskatchewan"}]
[18,"T3 2018","PROPRIÉTAIRES-OCCUPANTS, À L’UNITÉ","Territoires",77.34806629834253,"Prêts hypothécaires assurés au cours de la période selon le milieu urbain/rural (%)","77.3","Territoires",{"$f":"IFERROR(VLOOKUP(A6594,Translation!$A:$C,3,FALSE),A6594)","v":18},{"$f":"IFERROR(VLOOKUP(B6594,Translation!$A:$C,3,FALSE),B6594)","v":"T3 2018"},{"$f":"IFERROR(VLOOKUP(C6594,Translation!$A:$C,3,FALSE),C6594)","v":"PROPRIÉTAIRES-OCCUPANTS, À L’UNITÉ"},{"$f":"IFERROR(VLOOKUP(D6594,Translation!$A:$C,3,FALSE),D6594)","v":"Territoires"},{"$f":"IFERROR(VLOOKUP(E6594,Translation!$A:$C,3,FALSE),E6594)","v":77.34806629834253},{"$f":"IFERROR(VLOOKUP(F6594,Translation!$A:$C,3,FALSE),F6594)","v":"Prêts hypothécaires assurés au cours de la période selon le milieu urbain/rural (%)"},{"$f":"IFERROR(VLOOKUP(G6594,Translation!$A:$C,3,FALSE),G6594)","v":"77.3"},{"$f":"IFERROR(VLOOKUP(H6594,Translation!$A:$C,3,FALSE),H6594)","v":"Territoires"}]
[18,"T3 2018","ASSURANCE DE PORTEFEUILLE","Nouveau-Brunswick",92.857142857142875,"Prêts hypothécaires assurés au cours de la période selon le milieu urbain/rural (%)","92.9",0,{"$f":"IFERROR(VLOOKUP(A6597,Translation!$A:$C,3,FALSE),A6597)","v":18},{"$f":"IFERROR(VLOOKUP(B6597,Translation!$A:$C,3,FALSE),B6597)","v":"T3 2018"},{"$f":"IFERROR(VLOOKUP(C6597,Translation!$A:$C,3,FALSE),C6597)","v":"ASSURANCE DE PORTEFEUILLE"},{"$f":"IFERROR(VLOOKUP(D6597,Translation!$A:$C,3,FALSE),D6597)","v":"Nouveau-Brunswick"},{"$f":"IFERROR(VLOOKUP(E6597,Translation!$A:$C,3,FALSE),E6597)","v":92.857142857142875},{"$f":"IFERROR(VLOOKUP(F6597,Translation!$A:$C,3,FALSE),F6597)","v":"Prêts hypothécaires assurés au cours de la période selon le milieu urbain/rural (%)"},{"$f":"IFERROR(VLOOKUP(G6597,Translation!$A:$C,3,FALSE),G6597)","v":"92.9"},{"$f":"IFERROR(VLOOKUP(H6597,Translation!$A:$C,3,FALSE),H6597)","v":0}]
[18,"T3 2018","ASSURANCE DE PORTEFEUILLE","Ontario",96.093477502615983,"Prêts hypothécaires assurés au cours de la période selon le milieu urbain/rural (%)","96.1",0,{"$f":"IFERROR(VLOOKUP(A6599,Translation!$A:$C,3,FALSE),A6599)","v":18},{"$f":"IFERROR(VLOOKUP(B6599,Translation!$A:$C,3,FALSE),B6599)","v":"T3 2018"},{"$f":"IFERROR(VLOOKUP(C6599,Translation!$A:$C,3,FALSE),C6599)","v":"ASSURANCE DE PORTEFEUILLE"},{"$f":"IFERROR(VLOOKUP(D6599,Translation!$A:$C,3,FALSE),D6599)","v":"Ontario"},{"$f":"IFERROR(VLOOKUP(E6599,Translation!$A:$C,3,FALSE),E6599)","v":96.093477502615983},{"$f":"IFERROR(VLOOKUP(F6599,Translation!$A:$C,3,FALSE),F6599)","v":"Prêts hypothécaires assurés au cours de la période selon le milieu urbain/rural (%)"},{"$f":"IFERROR(VLOOKUP(G6599,Translation!$A:$C,3,FALSE),G6599)","v":"96.1"},{"$f":"IFERROR(VLOOKUP(H6599,Translation!$A:$C,3,FALSE),H6599)","v":0}]
[18,"T3 2018","ASSURANCE DE PORTEFEUILLE","Alberta",98.897058823529406,"Prêts hypothécaires assurés au cours de la période selon le milieu urbain/rural (%)","98.9",0,{"$f":"IFERROR(VLOOKUP(A6602,Translation!$A:$C,3,FALSE),A6602)","v":18},{"$f":"IFERROR(VLOOKUP(B6602,Translation!$A:$C,3,FALSE),B6602)","v":"T3 2018"},{"$f":"IFERROR(VLOOKUP(C6602,Translation!$A:$C,3,FALSE),C6602)","v":"ASSURANCE DE PORTEFEUILLE"},{"$f":"IFERROR(VLOOKUP(D6602,Translation!$A:$C,3,FALSE),D6602)","v":"Alberta"},{"$f":"IFERROR(VLOOKUP(E6602,Translation!$A:$C,3,FALSE),E6602)","v":98.897058823529406},{"$f":"IFERROR(VLOOKUP(F6602,Translation!$A:$C,3,FALSE),F6602)","v":"Prêts hypothécaires assurés au cours de la période selon le milieu urbain/rural (%)"},{"$f":"IFERROR(VLOOKUP(G6602,Translation!$A:$C,3,FALSE),G6602)","v":"98.9"},{"$f":"IFERROR(VLOOKUP(H6602,Translation!$A:$C,3,FALSE),H6602)","v":0}]
[30,"T3 2018","IMMEUBLES COLLECTIFS RÉSIDENTIELS","Rural",1.4454850680332219,"Prêts hypothécaires assurés au cours de la période selon le milieu urbain/rural (%)","1.4",0,{"$f":"IFERROR(VLOOKUP(A6604,Translation!$A:$C,3,FALSE),A6604)","v":30},{"$f":"IFERROR(VLOOKUP(B6604,Translation!$A:$C,3,FALSE),B6604)","v":"T3 2018"},{"$f":"IFERROR(VLOOKUP(C6604,Translation!$A:$C,3,FALSE),C6604)","v":"IMMEUBLES COLLECTIFS RÉSIDENTIELS"},{"$f":"IFERROR(VLOOKUP(D6604,Translation!$A:$C,3,FALSE),D6604)","v":"Rural"},{"$f":"IFERROR(VLOOKUP(E6604,Translation!$A:$C,3,FALSE),E6604)","v":1.4454850680332219},{"$f":"IFERROR(VLOOKUP(F6604,Translation!$A:$C,3,FALSE),F6604)","v":"Prêts hypothécaires assurés au cours de la période selon le milieu urbain/rural (%)"},{"$f":"IFERROR(VLOOKUP(G6604,Translation!$A:$C,3,FALSE),G6604)","v":"1.4"},{"$f":"IFERROR(VLOOKUP(H6604,Translation!$A:$C,3,FALSE),H6604)","v":0}]
[30,"T3 2018","IMMEUBLES COLLECTIFS RÉSIDENTIELS","Île-du-Prince-Édouard",100,"Prêts hypothécaires assurés au cours de la période selon le milieu urbain/rural (%)","100.0",0,{"$f":"IFERROR(VLOOKUP(A6607,Translation!$A:$C,3,FALSE),A6607)","v":30},{"$f":"IFERROR(VLOOKUP(B6607,Translation!$A:$C,3,FALSE),B6607)","v":"T3 2018"},{"$f":"IFERROR(VLOOKUP(C6607,Translation!$A:$C,3,FALSE),C6607)","v":"IMMEUBLES COLLECTIFS RÉSIDENTIELS"},{"$f":"IFERROR(VLOOKUP(D6607,Translation!$A:$C,3,FALSE),D6607)","v":"Île-du-Prince-Édouard"},{"$f":"IFERROR(VLOOKUP(E6607,Translation!$A:$C,3,FALSE),E6607)","v":100},{"$f":"IFERROR(VLOOKUP(F6607,Translation!$A:$C,3,FALSE),F6607)","v":"Prêts hypothécaires assurés au cours de la période selon le milieu urbain/rural (%)"},{"$f":"IFERROR(VLOOKUP(G6607,Translation!$A:$C,3,FALSE),G6607)","v":"100.0"},{"$f":"IFERROR(VLOOKUP(H6607,Translation!$A:$C,3,FALSE),H6607)","v":0}]
[30,"T3 2018","IMMEUBLES COLLECTIFS RÉSIDENTIELS","Nouvelle-Écosse",98.153846153846175,"Prêts hypothécaires assurés au cours de la période selon le milieu urbain/rural (%)","98.2",0,{"$f":"IFERROR(VLOOKUP(A6608,Translation!$A:$C,3,FALSE),A6608)","v":30},{"$f":"IFERROR(VLOOKUP(B6608,Translation!$A:$C,3,FALSE),B6608)","v":"T3 2018"},{"$f":"IFERROR(VLOOKUP(C6608,Translation!$A:$C,3,FALSE),C6608)","v":"IMMEUBLES COLLECTIFS RÉSIDENTIELS"},{"$f":"IFERROR(VLOOKUP(D6608,Translation!$A:$C,3,FALSE),D6608)","v":"Nouvelle-Écosse"},{"$f":"IFERROR(VLOOKUP(E6608,Translation!$A:$C,3,FALSE),E6608)","v":98.153846153846175},{"$f":"IFERROR(VLOOKUP(F6608,Translation!$A:$C,3,FALSE),F6608)","v":"Prêts hypothécaires assurés au cours de la période selon le milieu urbain/rural (%)"},{"$f":"IFERROR(VLOOKUP(G6608,Translation!$A:$C,3,FALSE),G6608)","v":"98.2"},{"$f":"IFERROR(VLOOKUP(H6608,Translation!$A:$C,3,FALSE),H6608)","v":0}]
[30,"T3 2018","IMMEUBLES COLLECTIFS RÉSIDENTIELS","Québec",98.466386554621891,"Prêts hypothécaires assurés au cours de la période selon le milieu urbain/rural (%)","98.5",0,{"$f":"IFERROR(VLOOKUP(A6610,Translation!$A:$C,3,FALSE),A6610)","v":30},{"$f":"IFERROR(VLOOKUP(B6610,Translation!$A:$C,3,FALSE),B6610)","v":"T3 2018"},{"$f":"IFERROR(VLOOKUP(C6610,Translation!$A:$C,3,FALSE),C6610)","v":"IMMEUBLES COLLECTIFS RÉSIDENTIELS"},{"$f":"IFERROR(VLOOKUP(D6610,Translation!$A:$C,3,FALSE),D6610)","v":"Québec"},{"$f":"IFERROR(VLOOKUP(E6610,Translation!$A:$C,3,FALSE),E6610)","v":98.466386554621891},{"$f":"IFERROR(VLOOKUP(F6610,Translation!$A:$C,3,FALSE),F6610)","v":"Prêts hypothécaires assurés au cours de la période selon le milieu urbain/rural (%)"},{"$f":"IFERROR(VLOOKUP(G6610,Translation!$A:$C,3,FALSE),G6610)","v":"98.5"},{"$f":"IFERROR(VLOOKUP(H6610,Translation!$A:$C,3,FALSE),H6610)","v":0}]
[30,"T3 2018","IMMEUBLES COLLECTIFS RÉSIDENTIELS","Saskatchewan",95.628415300546436,"Prêts hypothécaires assurés au cours de la période selon le milieu urbain/rural (%)","95.6",0,{"$f":"IFERROR(VLOOKUP(A6613,Translation!$A:$C,3,FALSE),A6613)","v":30},{"$f":"IFERROR(VLOOKUP(B6613,Translation!$A:$C,3,FALSE),B6613)","v":"T3 2018"},{"$f":"IFERROR(VLOOKUP(C6613,Translation!$A:$C,3,FALSE),C6613)","v":"IMMEUBLES COLLECTIFS RÉSIDENTIELS"},{"$f":"IFERROR(VLOOKUP(D6613,Translation!$A:$C,3,FALSE),D6613)","v":"Saskatchewan"},{"$f":"IFERROR(VLOOKUP(E6613,Translation!$A:$C,3,FALSE),E6613)","v":95.628415300546436},{"$f":"IFERROR(VLOOKUP(F6613,Translation!$A:$C,3,FALSE),F6613)","v":"Prêts hypothécaires assurés au cours de la période selon le milieu urbain/rural (%)"},{"$f":"IFERROR(VLOOKUP(G6613,Translation!$A:$C,3,FALSE),G6613)","v":"95.6"},{"$f":"IFERROR(VLOOKUP(H6613,Translation!$A:$C,3,FALSE),H6613)","v":0}]
[30,"T3 2018","IMMEUBLES COLLECTIFS RÉSIDENTIELS","Colombie-Britannique",100,"Prêts hypothécaires assurés au cours de la période selon le milieu urbain/rural (%)","100.0",0,{"$f":"IFERROR(VLOOKUP(A6615,Translation!$A:$C,3,FALSE),A6615)","v":30},{"$f":"IFERROR(VLOOKUP(B6615,Translation!$A:$C,3,FALSE),B6615)","v":"T3 2018"},{"$f":"IFERROR(VLOOKUP(C6615,Translation!$A:$C,3,FALSE),C6615)","v":"IMMEUBLES COLLECTIFS RÉSIDENTIELS"},{"$f":"IFERROR(VLOOKUP(D6615,Translation!$A:$C,3,FALSE),D6615)","v":"Colombie-Britannique"},{"$f":"IFERROR(VLOOKUP(E6615,Translation!$A:$C,3,FALSE),E6615)","v":100},{"$f":"IFERROR(VLOOKUP(F6615,Translation!$A:$C,3,FALSE),F6615)","v":"Prêts hypothécaires assurés au cours de la période selon le milieu urbain/rural (%)"},{"$f":"IFERROR(VLOOKUP(G6615,Translation!$A:$C,3,FALSE),G6615)","v":"100.0"},{"$f":"IFERROR(VLOOKUP(H6615,Translation!$A:$C,3,FALSE),H6615)","v":0}]
[18,"T2 2018","ASSURANCE DE PORTEFEUILLE","Rural",6.5640645280919721,"Prêts hypothécaires assurés au cours de la période selon le milieu urbain/rural (%)","6.6",0,{"$f":"IFERROR(VLOOKUP(A6618,Translation!$A:$C,3,FALSE),A6618)","v":18},{"$f":"IFERROR(VLOOKUP(B6618,Translation!$A:$C,3,FALSE),B6618)","v":"T2 2018"},{"$f":"IFERROR(VLOOKUP(C6618,Translation!$A:$C,3,FALSE),C6618)","v":"ASSURANCE DE PORTEFEUILLE"},{"$f":"IFERROR(VLOOKUP(D6618,Translation!$A:$C,3,FALSE),D6618)","v":"Rural"},{"$f":"IFERROR(VLOOKUP(E6618,Translation!$A:$C,3,FALSE),E6618)","v":6.5640645280919721},{"$f":"IFERROR(VLOOKUP(F6618,Translation!$A:$C,3,FALSE),F6618)","v":"Prêts hypothécaires assurés au cours de la période selon le milieu urbain/rural (%)"},{"$f":"IFERROR(VLOOKUP(G6618,Translation!$A:$C,3,FALSE),G6618)","v":"6.6"},{"$f":"IFERROR(VLOOKUP(H6618,Translation!$A:$C,3,FALSE),H6618)","v":0}]
[18,"T2 2018","PROPRIÉTAIRES-OCCUPANTS, À L’UNITÉ","Île-du-Prince-Édouard",79.8611111111111,"Prêts hypothécaires assurés au cours de la période selon le milieu urbain/rural (%)","79.9",0,{"$f":"IFERROR(VLOOKUP(A6621,Translation!$A:$C,3,FALSE),A6621)","v":18},{"$f":"IFERROR(VLOOKUP(B6621,Translation!$A:$C,3,FALSE),B6621)","v":"T2 2018"},{"$f":"IFERROR(VLOOKUP(C6621,Translation!$A:$C,3,FALSE),C6621)","v":"PROPRIÉTAIRES-OCCUPANTS, À L’UNITÉ"},{"$f":"IFERROR(VLOOKUP(D6621,Translation!$A:$C,3,FALSE),D6621)","v":"Île-du-Prince-Édouard"},{"$f":"IFERROR(VLOOKUP(E6621,Translation!$A:$C,3,FALSE),E6621)","v":79.8611111111111},{"$f":"IFERROR(VLOOKUP(F6621,Translation!$A:$C,3,FALSE),F6621)","v":"Prêts hypothécaires assurés au cours de la période selon le milieu urbain/rural (%)"},{"$f":"IFERROR(VLOOKUP(G6621,Translation!$A:$C,3,FALSE),G6621)","v":"79.9"},{"$f":"IFERROR(VLOOKUP(H6621,Translation!$A:$C,3,FALSE),H6621)","v":0}]
[18,"T2 2018","PROPRIÉTAIRES-OCCUPANTS, À L’UNITÉ","Québec",84.802967647774267,"Prêts hypothécaires assurés au cours de la période selon le milieu urbain/rural (%)","84.8",0,{"$f":"IFERROR(VLOOKUP(A6624,Translation!$A:$C,3,FALSE),A6624)","v":18},{"$f":"IFERROR(VLOOKUP(B6624,Translation!$A:$C,3,FALSE),B6624)","v":"T2 2018"},{"$f":"IFERROR(VLOOKUP(C6624,Translation!$A:$C,3,FALSE),C6624)","v":"PROPRIÉTAIRES-OCCUPANTS, À L’UNITÉ"},{"$f":"IFERROR(VLOOKUP(D6624,Translation!$A:$C,3,FALSE),D6624)","v":"Québec"},{"$f":"IFERROR(VLOOKUP(E6624,Translation!$A:$C,3,FALSE),E6624)","v":84.802967647774267},{"$f":"IFERROR(VLOOKUP(F6624,Translation!$A:$C,3,FALSE),F6624)","v":"Prêts hypothécaires assurés au cours de la période selon le milieu urbain/rural (%)"},{"$f":"IFERROR(VLOOKUP(G6624,Translation!$A:$C,3,FALSE),G6624)","v":"84.8"},{"$f":"IFERROR(VLOOKUP(H6624,Translation!$A:$C,3,FALSE),H6624)","v":0}]
[18,"T2 2018","PROPRIÉTAIRES-OCCUPANTS, À L’UNITÉ","Manitoba",83.88838883888387,"Prêts hypothécaires assurés au cours de la période selon le milieu urbain/rural (%)","83.9",0,{"$f":"IFERROR(VLOOKUP(A6626,Translation!$A:$C,3,FALSE),A6626)","v":18},{"$f":"IFERROR(VLOOKUP(B6626,Translation!$A:$C,3,FALSE),B6626)","v":"T2 2018"},{"$f":"IFERROR(VLOOKUP(C6626,Translation!$A:$C,3,FALSE),C6626)","v":"PROPRIÉTAIRES-OCCUPANTS, À L’UNITÉ"},{"$f":"IFERROR(VLOOKUP(D6626,Translation!$A:$C,3,FALSE),D6626)","v":"Manitoba"},{"$f":"IFERROR(VLOOKUP(E6626,Translation!$A:$C,3,FALSE),E6626)","v":83.88838883888387},{"$f":"IFERROR(VLOOKUP(F6626,Translation!$A:$C,3,FALSE),F6626)","v":"Prêts hypothécaires assurés au cours de la période selon le milieu urbain/rural (%)"},{"$f":"IFERROR(VLOOKUP(G6626,Translation!$A:$C,3,FALSE),G6626)","v":"83.9"},{"$f":"IFERROR(VLOOKUP(H6626,Translation!$A:$C,3,FALSE),H6626)","v":0}]
[18,"T2 2018","PROPRIÉTAIRES-OCCUPANTS, À L’UNITÉ","Colombie-Britannique",85.199824330259105,"Prêts hypothécaires assurés au cours de la période selon le milieu urbain/rural (%)","85.2",0,{"$f":"IFERROR(VLOOKUP(A6629,Translation!$A:$C,3,FALSE),A6629)","v":18},{"$f":"IFERROR(VLOOKUP(B6629,Translation!$A:$C,3,FALSE),B6629)","v":"T2 2018"},{"$f":"IFERROR(VLOOKUP(C6629,Translation!$A:$C,3,FALSE),C6629)","v":"PROPRIÉTAIRES-OCCUPANTS, À L’UNITÉ"},{"$f":"IFERROR(VLOOKUP(D6629,Translation!$A:$C,3,FALSE),D6629)","v":"Colombie-Britannique"},{"$f":"IFERROR(VLOOKUP(E6629,Translation!$A:$C,3,FALSE),E6629)","v":85.199824330259105},{"$f":"IFERROR(VLOOKUP(F6629,Translation!$A:$C,3,FALSE),F6629)","v":"Prêts hypothécaires assurés au cours de la période selon le milieu urbain/rural (%)"},{"$f":"IFERROR(VLOOKUP(G6629,Translation!$A:$C,3,FALSE),G6629)","v":"85.2"},{"$f":"IFERROR(VLOOKUP(H6629,Translation!$A:$C,3,FALSE),H6629)","v":0}]
[18,"T2 2018","ASSURANCE DE PORTEFEUILLE","Terre-Neuve-et-Labrador",92.307692307692321,"Prêts hypothécaires assurés au cours de la période selon le milieu urbain/rural (%)","92.3",0,{"$f":"IFERROR(VLOOKUP(A6631,Translation!$A:$C,3,FALSE),A6631)","v":18},{"$f":"IFERROR(VLOOKUP(B6631,Translation!$A:$C,3,FALSE),B6631)","v":"T2 2018"},{"$f":"IFERROR(VLOOKUP(C6631,Translation!$A:$C,3,FALSE),C6631)","v":"ASSURANCE DE PORTEFEUILLE"},{"$f":"IFERROR(VLOOKUP(D6631,Translation!$A:$C,3,FALSE),D6631)","v":"Terre-Neuve-et-Labrador"},{"$f":"IFERROR(VLOOKUP(E6631,Translation!$A:$C,3,FALSE),E6631)","v":92.307692307692321},{"$f":"IFERROR(VLOOKUP(F6631,Translation!$A:$C,3,FALSE),F6631)","v":"Prêts hypothécaires assurés au cours de la période selon le milieu urbain/rural (%)"},{"$f":"IFERROR(VLOOKUP(G6631,Translation!$A:$C,3,FALSE),G6631)","v":"92.3"},{"$f":"IFERROR(VLOOKUP(H6631,Translation!$A:$C,3,FALSE),H6631)","v":0}]
[18,"T2 2018","ASSURANCE DE PORTEFEUILLE","Île-du-Prince-Édouard",57.142857142857117,"Prêts hypothécaires assurés au cours de la période selon le milieu urbain/rural (%)","57.1",0,{"$f":"IFERROR(VLOOKUP(A6632,Translation!$A:$C,3,FALSE),A6632)","v":18},{"$f":"IFERROR(VLOOKUP(B6632,Translation!$A:$C,3,FALSE),B6632)","v":"T2 2018"},{"$f":"IFERROR(VLOOKUP(C6632,Translation!$A:$C,3,FALSE),C6632)","v":"ASSURANCE DE PORTEFEUILLE"},{"$f":"IFERROR(VLOOKUP(D6632,Translation!$A:$C,3,FALSE),D6632)","v":"Île-du-Prince-Édouard"},{"$f":"IFERROR(VLOOKUP(E6632,Translation!$A:$C,3,FALSE),E6632)","v":57.142857142857117},{"$f":"IFERROR(VLOOKUP(F6632,Translation!$A:$C,3,FALSE),F6632)","v":"Prêts hypothécaires assurés au cours de la période selon le milieu urbain/rural (%)"},{"$f":"IFERROR(VLOOKUP(G6632,Translation!$A:$C,3,FALSE),G6632)","v":"57.1"},{"$f":"IFERROR(VLOOKUP(H6632,Translation!$A:$C,3,FALSE),H6632)","v":0}]
[18,"T2 2018","ASSURANCE DE PORTEFEUILLE","Nouveau-Brunswick",81.818181818181827,"Prêts hypothécaires assurés au cours de la période selon le milieu urbain/rural (%)","81.8",0,{"$f":"IFERROR(VLOOKUP(A6634,Translation!$A:$C,3,FALSE),A6634)","v":18},{"$f":"IFERROR(VLOOKUP(B6634,Translation!$A:$C,3,FALSE),B6634)","v":"T2 2018"},{"$f":"IFERROR(VLOOKUP(C6634,Translation!$A:$C,3,FALSE),C6634)","v":"ASSURANCE DE PORTEFEUILLE"},{"$f":"IFERROR(VLOOKUP(D6634,Translation!$A:$C,3,FALSE),D6634)","v":"Nouveau-Brunswick"},{"$f":"IFERROR(VLOOKUP(E6634,Translation!$A:$C,3,FALSE),E6634)","v":81.818181818181827},{"$f":"IFERROR(VLOOKUP(F6634,Translation!$A:$C,3,FALSE),F6634)","v":"Prêts hypothécaires assurés au cours de la période selon le milieu urbain/rural (%)"},{"$f":"IFERROR(VLOOKUP(G6634,Translation!$A:$C,3,FALSE),G6634)","v":"81.8"},{"$f":"IFERROR(VLOOKUP(H6634,Translation!$A:$C,3,FALSE),H6634)","v":0}]
[18,"T2 2018","ASSURANCE DE PORTEFEUILLE","Manitoba",98.41269841269839,"Prêts hypothécaires assurés au cours de la période selon le milieu urbain/rural (%)","98.4",0,{"$f":"IFERROR(VLOOKUP(A6637,Translation!$A:$C,3,FALSE),A6637)","v":18},{"$f":"IFERROR(VLOOKUP(B6637,Translation!$A:$C,3,FALSE),B6637)","v":"T2 2018"},{"$f":"IFERROR(VLOOKUP(C6637,Translation!$A:$C,3,FALSE),C6637)","v":"ASSURANCE DE PORTEFEUILLE"},{"$f":"IFERROR(VLOOKUP(D6637,Translation!$A:$C,3,FALSE),D6637)","v":"Manitoba"},{"$f":"IFERROR(VLOOKUP(E6637,Translation!$A:$C,3,FALSE),E6637)","v":98.41269841269839},{"$f":"IFERROR(VLOOKUP(F6637,Translation!$A:$C,3,FALSE),F6637)","v":"Prêts hypothécaires assurés au cours de la période selon le milieu urbain/rural (%)"},{"$f":"IFERROR(VLOOKUP(G6637,Translation!$A:$C,3,FALSE),G6637)","v":"98.4"},{"$f":"IFERROR(VLOOKUP(H6637,Translation!$A:$C,3,FALSE),H6637)","v":0}]
[18,"T2 2018","ASSURANCE DE PORTEFEUILLE","Colombie-Britannique",96.100278551532028,"Prêts hypothécaires assurés au cours de la période selon le milieu urbain/rural (%)","96.1",0,{"$f":"IFERROR(VLOOKUP(A6640,Translation!$A:$C,3,FALSE),A6640)","v":18},{"$f":"IFERROR(VLOOKUP(B6640,Translation!$A:$C,3,FALSE),B6640)","v":"T2 2018"},{"$f":"IFERROR(VLOOKUP(C6640,Translation!$A:$C,3,FALSE),C6640)","v":"ASSURANCE DE PORTEFEUILLE"},{"$f":"IFERROR(VLOOKUP(D6640,Translation!$A:$C,3,FALSE),D6640)","v":"Colombie-Britannique"},{"$f":"IFERROR(VLOOKUP(E6640,Translation!$A:$C,3,FALSE),E6640)","v":96.100278551532028},{"$f":"IFERROR(VLOOKUP(F6640,Translation!$A:$C,3,FALSE),F6640)","v":"Prêts hypothécaires assurés au cours de la période selon le milieu urbain/rural (%)"},{"$f":"IFERROR(VLOOKUP(G6640,Translation!$A:$C,3,FALSE),G6640)","v":"96.1"},{"$f":"IFERROR(VLOOKUP(H6640,Translation!$A:$C,3,FALSE),H6640)","v":0}]
[30,"T2 2018","IMMEUBLES COLLECTIFS RÉSIDENTIELS","Urbain",98.22065532973869,"Prêts hypothécaires assurés au cours de la période selon le milieu urbain/rural (%)","98.2",0,{"$f":"IFERROR(VLOOKUP(A6642,Translation!$A:$C,3,FALSE),A6642)","v":30},{"$f":"IFERROR(VLOOKUP(B6642,Translation!$A:$C,3,FALSE),B6642)","v":"T2 2018"},{"$f":"IFERROR(VLOOKUP(C6642,Translation!$A:$C,3,FALSE),C6642)","v":"IMMEUBLES COLLECTIFS RÉSIDENTIELS"},{"$f":"IFERROR(VLOOKUP(D6642,Translation!$A:$C,3,FALSE),D6642)","v":"Urbain"},{"$f":"IFERROR(VLOOKUP(E6642,Translation!$A:$C,3,FALSE),E6642)","v":98.22065532973869},{"$f":"IFERROR(VLOOKUP(F6642,Translation!$A:$C,3,FALSE),F6642)","v":"Prêts hypothécaires assurés au cours de la période selon le milieu urbain/rural (%)"},{"$f":"IFERROR(VLOOKUP(G6642,Translation!$A:$C,3,FALSE),G6642)","v":"98.2"},{"$f":"IFERROR(VLOOKUP(H6642,Translation!$A:$C,3,FALSE),H6642)","v":0}]
[30,"T2 2018","IMMEUBLES COLLECTIFS RÉSIDENTIELS","Nouveau-Brunswick",100,"Prêts hypothécaires assurés au cours de la période selon le milieu urbain/rural (%)","100.0",0,{"$f":"IFERROR(VLOOKUP(A6645,Translation!$A:$C,3,FALSE),A6645)","v":30},{"$f":"IFERROR(VLOOKUP(B6645,Translation!$A:$C,3,FALSE),B6645)","v":"T2 2018"},{"$f":"IFERROR(VLOOKUP(C6645,Translation!$A:$C,3,FALSE),C6645)","v":"IMMEUBLES COLLECTIFS RÉSIDENTIELS"},{"$f":"IFERROR(VLOOKUP(D6645,Translation!$A:$C,3,FALSE),D6645)","v":"Nouveau-Brunswick"},{"$f":"IFERROR(VLOOKUP(E6645,Translation!$A:$C,3,FALSE),E6645)","v":100},{"$f":"IFERROR(VLOOKUP(F6645,Translation!$A:$C,3,FALSE),F6645)","v":"Prêts hypothécaires assurés au cours de la période selon le milieu urbain/rural (%)"},{"$f":"IFERROR(VLOOKUP(G6645,Translation!$A:$C,3,FALSE),G6645)","v":"100.0"},{"$f":"IFERROR(VLOOKUP(H6645,Translation!$A:$C,3,FALSE),H6645)","v":0}]
[30,"T2 2018","IMMEUBLES COLLECTIFS RÉSIDENTIELS","Manitoba",100,"Prêts hypothécaires assurés au cours de la période selon le milieu urbain/rural (%)","100.0",0,{"$f":"IFERROR(VLOOKUP(A6648,Translation!$A:$C,3,FALSE),A6648)","v":30},{"$f":"IFERROR(VLOOKUP(B6648,Translation!$A:$C,3,FALSE),B6648)","v":"T2 2018"},{"$f":"IFERROR(VLOOKUP(C6648,Translation!$A:$C,3,FALSE),C6648)","v":"IMMEUBLES COLLECTIFS RÉSIDENTIELS"},{"$f":"IFERROR(VLOOKUP(D6648,Translation!$A:$C,3,FALSE),D6648)","v":"Manitoba"},{"$f":"IFERROR(VLOOKUP(E6648,Translation!$A:$C,3,FALSE),E6648)","v":100},{"$f":"IFERROR(VLOOKUP(F6648,Translation!$A:$C,3,FALSE),F6648)","v":"Prêts hypothécaires assurés au cours de la période selon le milieu urbain/rural (%)"},{"$f":"IFERROR(VLOOKUP(G6648,Translation!$A:$C,3,FALSE),G6648)","v":"100.0"},{"$f":"IFERROR(VLOOKUP(H6648,Translation!$A:$C,3,FALSE),H6648)","v":0}]
[30,"T2 2018","IMMEUBLES COLLECTIFS RÉSIDENTIELS","Alberta",98.735408560311285,"Prêts hypothécaires assurés au cours de la période selon le milieu urbain/rural (%)","98.7",0,{"$f":"IFERROR(VLOOKUP(A6650,Translation!$A:$C,3,FALSE),A6650)","v":30},{"$f":"IFERROR(VLOOKUP(B6650,Translation!$A:$C,3,FALSE),B6650)","v":"T2 2018"},{"$f":"IFERROR(VLOOKUP(C6650,Translation!$A:$C,3,FALSE),C6650)","v":"IMMEUBLES COLLECTIFS RÉSIDENTIELS"},{"$f":"IFERROR(VLOOKUP(D6650,Translation!$A:$C,3,FALSE),D6650)","v":"Alberta"},{"$f":"IFERROR(VLOOKUP(E6650,Translation!$A:$C,3,FALSE),E6650)","v":98.735408560311285},{"$f":"IFERROR(VLOOKUP(F6650,Translation!$A:$C,3,FALSE),F6650)","v":"Prêts hypothécaires assurés au cours de la période selon le milieu urbain/rural (%)"},{"$f":"IFERROR(VLOOKUP(G6650,Translation!$A:$C,3,FALSE),G6650)","v":"98.7"},{"$f":"IFERROR(VLOOKUP(H6650,Translation!$A:$C,3,FALSE),H6650)","v":0}]
[30,"T2 2018","IMMEUBLES COLLECTIFS RÉSIDENTIELS","Colombie-Britannique",100,"Prêts hypothécaires assurés au cours de la période selon le milieu urbain/rural (%)","100.0",0,{"$f":"IFERROR(VLOOKUP(A6651,Translation!$A:$C,3,FALSE),A6651)","v":30},{"$f":"IFERROR(VLOOKUP(B6651,Translation!$A:$C,3,FALSE),B6651)","v":"T2 2018"},{"$f":"IFERROR(VLOOKUP(C6651,Translation!$A:$C,3,FALSE),C6651)","v":"IMMEUBLES COLLECTIFS RÉSIDENTIELS"},{"$f":"IFERROR(VLOOKUP(D6651,Translation!$A:$C,3,FALSE),D6651)","v":"Colombie-Britannique"},{"$f":"IFERROR(VLOOKUP(E6651,Translation!$A:$C,3,FALSE),E6651)","v":100},{"$f":"IFERROR(VLOOKUP(F6651,Translation!$A:$C,3,FALSE),F6651)","v":"Prêts hypothécaires assurés au cours de la période selon le milieu urbain/rural (%)"},{"$f":"IFERROR(VLOOKUP(G6651,Translation!$A:$C,3,FALSE),G6651)","v":"100.0"},{"$f":"IFERROR(VLOOKUP(H6651,Translation!$A:$C,3,FALSE),H6651)","v":0}]
[18,"T2 2017","PROPRIÉTAIRES-OCCUPANTS, À L’UNITÉ","Rural",13.390483424664964,"Prêts hypothécaires assurés au cours de la période selon le milieu urbain/rural (%)","13.4",0,{"$f":"IFERROR(VLOOKUP(A6655,Translation!$A:$C,3,FALSE),A6655)","v":18},{"$f":"IFERROR(VLOOKUP(B6655,Translation!$A:$C,3,FALSE),B6655)","v":"T2 2017"},{"$f":"IFERROR(VLOOKUP(C6655,Translation!$A:$C,3,FALSE),C6655)","v":"PROPRIÉTAIRES-OCCUPANTS, À L’UNITÉ"},{"$f":"IFERROR(VLOOKUP(D6655,Translation!$A:$C,3,FALSE),D6655)","v":"Rural"},{"$f":"IFERROR(VLOOKUP(E6655,Translation!$A:$C,3,FALSE),E6655)","v":13.390483424664964},{"$f":"IFERROR(VLOOKUP(F6655,Translation!$A:$C,3,FALSE),F6655)","v":"Prêts hypothécaires assurés au cours de la période selon le milieu urbain/rural (%)"},{"$f":"IFERROR(VLOOKUP(G6655,Translation!$A:$C,3,FALSE),G6655)","v":"13.4"},{"$f":"IFERROR(VLOOKUP(H6655,Translation!$A:$C,3,FALSE),H6655)","v":0}]
[18,"Q3 2016","PROPRIÉTAIRES-OCCUPANTS, À L’UNITÉ","Rural",13.657214790159809,"Prêts hypothécaires assurés au cours de la période selon le milieu urbain/rural (%)","13.7",0,{"$f":"IFERROR(VLOOKUP(A6656,Translation!$A:$C,3,FALSE),A6656)","v":18},{"$f":"IFERROR(VLOOKUP(B6656,Translation!$A:$C,3,FALSE),B6656)","v":"Q3 2016"},{"$f":"IFERROR(VLOOKUP(C6656,Translation!$A:$C,3,FALSE),C6656)","v":"PROPRIÉTAIRES-OCCUPANTS, À L’UNITÉ"},{"$f":"IFERROR(VLOOKUP(D6656,Translation!$A:$C,3,FALSE),D6656)","v":"Rural"},{"$f":"IFERROR(VLOOKUP(E6656,Translation!$A:$C,3,FALSE),E6656)","v":13.657214790159809},{"$f":"IFERROR(VLOOKUP(F6656,Translation!$A:$C,3,FALSE),F6656)","v":"Prêts hypothécaires assurés au cours de la période selon le milieu urbain/rural (%)"},{"$f":"IFERROR(VLOOKUP(G6656,Translation!$A:$C,3,FALSE),G6656)","v":"13.7"},{"$f":"IFERROR(VLOOKUP(H6656,Translation!$A:$C,3,FALSE),H6656)","v":0}]
[18,"T4 2017","PROPRIÉTAIRES-OCCUPANTS, À L’UNITÉ","Rural",14.966504873841712,"Prêts hypothécaires assurés au cours de la période selon le milieu urbain/rural (%)","15.0",0,{"$f":"IFERROR(VLOOKUP(A6659,Translation!$A:$C,3,FALSE),A6659)","v":18},{"$f":"IFERROR(VLOOKUP(B6659,Translation!$A:$C,3,FALSE),B6659)","v":"T4 2017"},{"$f":"IFERROR(VLOOKUP(C6659,Translation!$A:$C,3,FALSE),C6659)","v":"PROPRIÉTAIRES-OCCUPANTS, À L’UNITÉ"},{"$f":"IFERROR(VLOOKUP(D6659,Translation!$A:$C,3,FALSE),D6659)","v":"Rural"},{"$f":"IFERROR(VLOOKUP(E6659,Translation!$A:$C,3,FALSE),E6659)","v":14.966504873841712},{"$f":"IFERROR(VLOOKUP(F6659,Translation!$A:$C,3,FALSE),F6659)","v":"Prêts hypothécaires assurés au cours de la période selon le milieu urbain/rural (%)"},{"$f":"IFERROR(VLOOKUP(G6659,Translation!$A:$C,3,FALSE),G6659)","v":"15.0"},{"$f":"IFERROR(VLOOKUP(H6659,Translation!$A:$C,3,FALSE),H6659)","v":0}]
[18,"T1 2018","PROPRIÉTAIRES-OCCUPANTS, À L’UNITÉ","Urbain",86.965811965811952,"Prêts hypothécaires assurés au cours de la période selon le milieu urbain/rural (%)","87.0",0,{"$f":"IFERROR(VLOOKUP(A6661,Translation!$A:$C,3,FALSE),A6661)","v":18},{"$f":"IFERROR(VLOOKUP(B6661,Translation!$A:$C,3,FALSE),B6661)","v":"T1 2018"},{"$f":"IFERROR(VLOOKUP(C6661,Translation!$A:$C,3,FALSE),C6661)","v":"PROPRIÉTAIRES-OCCUPANTS, À L’UNITÉ"},{"$f":"IFERROR(VLOOKUP(D6661,Translation!$A:$C,3,FALSE),D6661)","v":"Urbain"},{"$f":"IFERROR(VLOOKUP(E6661,Translation!$A:$C,3,FALSE),E6661)","v":86.965811965811952},{"$f":"IFERROR(VLOOKUP(F6661,Translation!$A:$C,3,FALSE),F6661)","v":"Prêts hypothécaires assurés au cours de la période selon le milieu urbain/rural (%)"},{"$f":"IFERROR(VLOOKUP(G6661,Translation!$A:$C,3,FALSE),G6661)","v":"87.0"},{"$f":"IFERROR(VLOOKUP(H6661,Translation!$A:$C,3,FALSE),H6661)","v":0}]
[18,"T3 2017","PROPRIÉTAIRES-OCCUPANTS, À L’UNITÉ","Urbain",86.271895266379772,"Prêts hypothécaires assurés au cours de la période selon le milieu urbain/rural (%)","86.3",0,{"$f":"IFERROR(VLOOKUP(A6665,Translation!$A:$C,3,FALSE),A6665)","v":18},{"$f":"IFERROR(VLOOKUP(B6665,Translation!$A:$C,3,FALSE),B6665)","v":"T3 2017"},{"$f":"IFERROR(VLOOKUP(C6665,Translation!$A:$C,3,FALSE),C6665)","v":"PROPRIÉTAIRES-OCCUPANTS, À L’UNITÉ"},{"$f":"IFERROR(VLOOKUP(D6665,Translation!$A:$C,3,FALSE),D6665)","v":"Urbain"},{"$f":"IFERROR(VLOOKUP(E6665,Translation!$A:$C,3,FALSE),E6665)","v":86.271895266379772},{"$f":"IFERROR(VLOOKUP(F6665,Translation!$A:$C,3,FALSE),F6665)","v":"Prêts hypothécaires assurés au cours de la période selon le milieu urbain/rural (%)"},{"$f":"IFERROR(VLOOKUP(G6665,Translation!$A:$C,3,FALSE),G6665)","v":"86.3"},{"$f":"IFERROR(VLOOKUP(H6665,Translation!$A:$C,3,FALSE),H6665)","v":0}]
[18,"Q4 2016","PROPRIÉTAIRES-OCCUPANTS, À L’UNITÉ","Urbain",85.457894883746917,"Prêts hypothécaires assurés au cours de la période selon le milieu urbain/rural (%)","85.5",0,{"$f":"IFERROR(VLOOKUP(A6666,Translation!$A:$C,3,FALSE),A6666)","v":18},{"$f":"IFERROR(VLOOKUP(B6666,Translation!$A:$C,3,FALSE),B6666)","v":"Q4 2016"},{"$f":"IFERROR(VLOOKUP(C6666,Translation!$A:$C,3,FALSE),C6666)","v":"PROPRIÉTAIRES-OCCUPANTS, À L’UNITÉ"},{"$f":"IFERROR(VLOOKUP(D6666,Translation!$A:$C,3,FALSE),D6666)","v":"Urbain"},{"$f":"IFERROR(VLOOKUP(E6666,Translation!$A:$C,3,FALSE),E6666)","v":85.457894883746917},{"$f":"IFERROR(VLOOKUP(F6666,Translation!$A:$C,3,FALSE),F6666)","v":"Prêts hypothécaires assurés au cours de la période selon le milieu urbain/rural (%)"},{"$f":"IFERROR(VLOOKUP(G6666,Translation!$A:$C,3,FALSE),G6666)","v":"85.5"},{"$f":"IFERROR(VLOOKUP(H6666,Translation!$A:$C,3,FALSE),H6666)","v":0}]
[18,"T1 2018","ASSURANCE DE PORTEFEUILLE","Rural",6.9037656903765683,"Prêts hypothécaires assurés au cours de la période selon le milieu urbain/rural (%)","6.9",0,{"$f":"IFERROR(VLOOKUP(A6669,Translation!$A:$C,3,FALSE),A6669)","v":18},{"$f":"IFERROR(VLOOKUP(B6669,Translation!$A:$C,3,FALSE),B6669)","v":"T1 2018"},{"$f":"IFERROR(VLOOKUP(C6669,Translation!$A:$C,3,FALSE),C6669)","v":"ASSURANCE DE PORTEFEUILLE"},{"$f":"IFERROR(VLOOKUP(D6669,Translation!$A:$C,3,FALSE),D6669)","v":"Rural"},{"$f":"IFERROR(VLOOKUP(E6669,Translation!$A:$C,3,FALSE),E6669)","v":6.9037656903765683},{"$f":"IFERROR(VLOOKUP(F6669,Translation!$A:$C,3,FALSE),F6669)","v":"Prêts hypothécaires assurés au cours de la période selon le milieu urbain/rural (%)"},{"$f":"IFERROR(VLOOKUP(G6669,Translation!$A:$C,3,FALSE),G6669)","v":"6.9"},{"$f":"IFERROR(VLOOKUP(H6669,Translation!$A:$C,3,FALSE),H6669)","v":0}]
[18,"Q2 2016","ASSURANCE DE PORTEFEUILLE","Rural",7.0254151506032336,"Prêts hypothécaires assurés au cours de la période selon le milieu urbain/rural (%)","7.0",0,{"$f":"IFERROR(VLOOKUP(A6670,Translation!$A:$C,3,FALSE),A6670)","v":18},{"$f":"IFERROR(VLOOKUP(B6670,Translation!$A:$C,3,FALSE),B6670)","v":"Q2 2016"},{"$f":"IFERROR(VLOOKUP(C6670,Translation!$A:$C,3,FALSE),C6670)","v":"ASSURANCE DE PORTEFEUILLE"},{"$f":"IFERROR(VLOOKUP(D6670,Translation!$A:$C,3,FALSE),D6670)","v":"Rural"},{"$f":"IFERROR(VLOOKUP(E6670,Translation!$A:$C,3,FALSE),E6670)","v":7.0254151506032336},{"$f":"IFERROR(VLOOKUP(F6670,Translation!$A:$C,3,FALSE),F6670)","v":"Prêts hypothécaires assurés au cours de la période selon le milieu urbain/rural (%)"},{"$f":"IFERROR(VLOOKUP(G6670,Translation!$A:$C,3,FALSE),G6670)","v":"7.0"},{"$f":"IFERROR(VLOOKUP(H6670,Translation!$A:$C,3,FALSE),H6670)","v":0}]
[18,"Q4 2016","ASSURANCE DE PORTEFEUILLE","Rural",8.7692641632298631,"Prêts hypothécaires assurés au cours de la période selon le milieu urbain/rural (%)","8.8",0,{"$f":"IFERROR(VLOOKUP(A6674,Translation!$A:$C,3,FALSE),A6674)","v":18},{"$f":"IFERROR(VLOOKUP(B6674,Translation!$A:$C,3,FALSE),B6674)","v":"Q4 2016"},{"$f":"IFERROR(VLOOKUP(C6674,Translation!$A:$C,3,FALSE),C6674)","v":"ASSURANCE DE PORTEFEUILLE"},{"$f":"IFERROR(VLOOKUP(D6674,Translation!$A:$C,3,FALSE),D6674)","v":"Rural"},{"$f":"IFERROR(VLOOKUP(E6674,Translation!$A:$C,3,FALSE),E6674)","v":8.7692641632298631},{"$f":"IFERROR(VLOOKUP(F6674,Translation!$A:$C,3,FALSE),F6674)","v":"Prêts hypothécaires assurés au cours de la période selon le milieu urbain/rural (%)"},{"$f":"IFERROR(VLOOKUP(G6674,Translation!$A:$C,3,FALSE),G6674)","v":"8.8"},{"$f":"IFERROR(VLOOKUP(H6674,Translation!$A:$C,3,FALSE),H6674)","v":0}]
[18,"T1 2017","ASSURANCE DE PORTEFEUILLE","Urbain",91.899641577060933,"Prêts hypothécaires assurés au cours de la période selon le milieu urbain/rural (%)","91.9",0,{"$f":"IFERROR(VLOOKUP(A6676,Translation!$A:$C,3,FALSE),A6676)","v":18},{"$f":"IFERROR(VLOOKUP(B6676,Translation!$A:$C,3,FALSE),B6676)","v":"T1 2017"},{"$f":"IFERROR(VLOOKUP(C6676,Translation!$A:$C,3,FALSE),C6676)","v":"ASSURANCE DE PORTEFEUILLE"},{"$f":"IFERROR(VLOOKUP(D6676,Translation!$A:$C,3,FALSE),D6676)","v":"Urbain"},{"$f":"IFERROR(VLOOKUP(E6676,Translation!$A:$C,3,FALSE),E6676)","v":91.899641577060933},{"$f":"IFERROR(VLOOKUP(F6676,Translation!$A:$C,3,FALSE),F6676)","v":"Prêts hypothécaires assurés au cours de la période selon le milieu urbain/rural (%)"},{"$f":"IFERROR(VLOOKUP(G6676,Translation!$A:$C,3,FALSE),G6676)","v":"91.9"},{"$f":"IFERROR(VLOOKUP(H6676,Translation!$A:$C,3,FALSE),H6676)","v":0}]
[18,"T2 2017","ASSURANCE DE PORTEFEUILLE","Urbain",94.845242204579435,"Prêts hypothécaires assurés au cours de la période selon le milieu urbain/rural (%)","94.8",0,{"$f":"IFERROR(VLOOKUP(A6679,Translation!$A:$C,3,FALSE),A6679)","v":18},{"$f":"IFERROR(VLOOKUP(B6679,Translation!$A:$C,3,FALSE),B6679)","v":"T2 2017"},{"$f":"IFERROR(VLOOKUP(C6679,Translation!$A:$C,3,FALSE),C6679)","v":"ASSURANCE DE PORTEFEUILLE"},{"$f":"IFERROR(VLOOKUP(D6679,Translation!$A:$C,3,FALSE),D6679)","v":"Urbain"},{"$f":"IFERROR(VLOOKUP(E6679,Translation!$A:$C,3,FALSE),E6679)","v":94.845242204579435},{"$f":"IFERROR(VLOOKUP(F6679,Translation!$A:$C,3,FALSE),F6679)","v":"Prêts hypothécaires assurés au cours de la période selon le milieu urbain/rural (%)"},{"$f":"IFERROR(VLOOKUP(G6679,Translation!$A:$C,3,FALSE),G6679)","v":"94.8"},{"$f":"IFERROR(VLOOKUP(H6679,Translation!$A:$C,3,FALSE),H6679)","v":0}]
[18,"Q3 2016","ASSURANCE DE PORTEFEUILLE","Urbain",94.640187913730486,"Prêts hypothécaires assurés au cours de la période selon le milieu urbain/rural (%)","94.6",0,{"$f":"IFERROR(VLOOKUP(A6680,Translation!$A:$C,3,FALSE),A6680)","v":18},{"$f":"IFERROR(VLOOKUP(B6680,Translation!$A:$C,3,FALSE),B6680)","v":"Q3 2016"},{"$f":"IFERROR(VLOOKUP(C6680,Translation!$A:$C,3,FALSE),C6680)","v":"ASSURANCE DE PORTEFEUILLE"},{"$f":"IFERROR(VLOOKUP(D6680,Translation!$A:$C,3,FALSE),D6680)","v":"Urbain"},{"$f":"IFERROR(VLOOKUP(E6680,Translation!$A:$C,3,FALSE),E6680)","v":94.640187913730486},{"$f":"IFERROR(VLOOKUP(F6680,Translation!$A:$C,3,FALSE),F6680)","v":"Prêts hypothécaires assurés au cours de la période selon le milieu urbain/rural (%)"},{"$f":"IFERROR(VLOOKUP(G6680,Translation!$A:$C,3,FALSE),G6680)","v":"94.6"},{"$f":"IFERROR(VLOOKUP(H6680,Translation!$A:$C,3,FALSE),H6680)","v":0}]
[18,"T1 2017","PROPRIÉTAIRES-OCCUPANTS, À L’UNITÉ","Terre-Neuve-et-Labrador",76.923076923076948,"Prêts hypothécaires assurés au cours de la période selon le milieu urbain/rural (%)","76.9",0,{"$f":"IFERROR(VLOOKUP(A6684,Translation!$A:$C,3,FALSE),A6684)","v":18},{"$f":"IFERROR(VLOOKUP(B6684,Translation!$A:$C,3,FALSE),B6684)","v":"T1 2017"},{"$f":"IFERROR(VLOOKUP(C6684,Translation!$A:$C,3,FALSE),C6684)","v":"PROPRIÉTAIRES-OCCUPANTS, À L’UNITÉ"},{"$f":"IFERROR(VLOOKUP(D6684,Translation!$A:$C,3,FALSE),D6684)","v":"Terre-Neuve-et-Labrador"},{"$f":"IFERROR(VLOOKUP(E6684,Translation!$A:$C,3,FALSE),E6684)","v":76.923076923076948},{"$f":"IFERROR(VLOOKUP(F6684,Translation!$A:$C,3,FALSE),F6684)","v":"Prêts hypothécaires assurés au cours de la période selon le milieu urbain/rural (%)"},{"$f":"IFERROR(VLOOKUP(G6684,Translation!$A:$C,3,FALSE),G6684)","v":"76.9"},{"$f":"IFERROR(VLOOKUP(H6684,Translation!$A:$C,3,FALSE),H6684)","v":0}]
[18,"T1 2018","PROPRIÉTAIRES-OCCUPANTS, À L’UNITÉ","Terre-Neuve-et-Labrador",70.040485829959493,"Prêts hypothécaires assurés au cours de la période selon le milieu urbain/rural (%)","70.0",0,{"$f":"IFERROR(VLOOKUP(A6685,Translation!$A:$C,3,FALSE),A6685)","v":18},{"$f":"IFERROR(VLOOKUP(B6685,Translation!$A:$C,3,FALSE),B6685)","v":"T1 2018"},{"$f":"IFERROR(VLOOKUP(C6685,Translation!$A:$C,3,FALSE),C6685)","v":"PROPRIÉTAIRES-OCCUPANTS, À L’UNITÉ"},{"$f":"IFERROR(VLOOKUP(D6685,Translation!$A:$C,3,FALSE),D6685)","v":"Terre-Neuve-et-Labrador"},{"$f":"IFERROR(VLOOKUP(E6685,Translation!$A:$C,3,FALSE),E6685)","v":70.040485829959493},{"$f":"IFERROR(VLOOKUP(F6685,Translation!$A:$C,3,FALSE),F6685)","v":"Prêts hypothécaires assurés au cours de la période selon le milieu urbain/rural (%)"},{"$f":"IFERROR(VLOOKUP(G6685,Translation!$A:$C,3,FALSE),G6685)","v":"70.0"},{"$f":"IFERROR(VLOOKUP(H6685,Translation!$A:$C,3,FALSE),H6685)","v":0}]
[18,"T2 2017","PROPRIÉTAIRES-OCCUPANTS, À L’UNITÉ","Terre-Neuve-et-Labrador",72.371638141809285,"Prêts hypothécaires assurés au cours de la période selon le milieu urbain/rural (%)","72.4",0,{"$f":"IFERROR(VLOOKUP(A6687,Translation!$A:$C,3,FALSE),A6687)","v":18},{"$f":"IFERROR(VLOOKUP(B6687,Translation!$A:$C,3,FALSE),B6687)","v":"T2 2017"},{"$f":"IFERROR(VLOOKUP(C6687,Translation!$A:$C,3,FALSE),C6687)","v":"PROPRIÉTAIRES-OCCUPANTS, À L’UNITÉ"},{"$f":"IFERROR(VLOOKUP(D6687,Translation!$A:$C,3,FALSE),D6687)","v":"Terre-Neuve-et-Labrador"},{"$f":"IFERROR(VLOOKUP(E6687,Translation!$A:$C,3,FALSE),E6687)","v":72.371638141809285},{"$f":"IFERROR(VLOOKUP(F6687,Translation!$A:$C,3,FALSE),F6687)","v":"Prêts hypothécaires assurés au cours de la période selon le milieu urbain/rural (%)"},{"$f":"IFERROR(VLOOKUP(G6687,Translation!$A:$C,3,FALSE),G6687)","v":"72.4"},{"$f":"IFERROR(VLOOKUP(H6687,Translation!$A:$C,3,FALSE),H6687)","v":0}]
[18,"Q4 2016","PROPRIÉTAIRES-OCCUPANTS, À L’UNITÉ","Terre-Neuve-et-Labrador",67.590027700831001,"Prêts hypothécaires assurés au cours de la période selon le milieu urbain/rural (%)","67.6",0,{"$f":"IFERROR(VLOOKUP(A6690,Translation!$A:$C,3,FALSE),A6690)","v":18},{"$f":"IFERROR(VLOOKUP(B6690,Translation!$A:$C,3,FALSE),B6690)","v":"Q4 2016"},{"$f":"IFERROR(VLOOKUP(C6690,Translation!$A:$C,3,FALSE),C6690)","v":"PROPRIÉTAIRES-OCCUPANTS, À L’UNITÉ"},{"$f":"IFERROR(VLOOKUP(D6690,Translation!$A:$C,3,FALSE),D6690)","v":"Terre-Neuve-et-Labrador"},{"$f":"IFERROR(VLOOKUP(E6690,Translation!$A:$C,3,FALSE),E6690)","v":67.590027700831001},{"$f":"IFERROR(VLOOKUP(F6690,Translation!$A:$C,3,FALSE),F6690)","v":"Prêts hypothécaires assurés au cours de la période selon le milieu urbain/rural (%)"},{"$f":"IFERROR(VLOOKUP(G6690,Translation!$A:$C,3,FALSE),G6690)","v":"67.6"},{"$f":"IFERROR(VLOOKUP(H6690,Translation!$A:$C,3,FALSE),H6690)","v":0}]
[18,"T1 2018","PROPRIÉTAIRES-OCCUPANTS, À L’UNITÉ","Île-du-Prince-Édouard",74.666666666666686,"Prêts hypothécaires assurés au cours de la période selon le milieu urbain/rural (%)","74.7",0,{"$f":"IFERROR(VLOOKUP(A6693,Translation!$A:$C,3,FALSE),A6693)","v":18},{"$f":"IFERROR(VLOOKUP(B6693,Translation!$A:$C,3,FALSE),B6693)","v":"T1 2018"},{"$f":"IFERROR(VLOOKUP(C6693,Translation!$A:$C,3,FALSE),C6693)","v":"PROPRIÉTAIRES-OCCUPANTS, À L’UNITÉ"},{"$f":"IFERROR(VLOOKUP(D6693,Translation!$A:$C,3,FALSE),D6693)","v":"Île-du-Prince-Édouard"},{"$f":"IFERROR(VLOOKUP(E6693,Translation!$A:$C,3,FALSE),E6693)","v":74.666666666666686},{"$f":"IFERROR(VLOOKUP(F6693,Translation!$A:$C,3,FALSE),F6693)","v":"Prêts hypothécaires assurés au cours de la période selon le milieu urbain/rural (%)"},{"$f":"IFERROR(VLOOKUP(G6693,Translation!$A:$C,3,FALSE),G6693)","v":"74.7"},{"$f":"IFERROR(VLOOKUP(H6693,Translation!$A:$C,3,FALSE),H6693)","v":0}]
[18,"T2 2017","PROPRIÉTAIRES-OCCUPANTS, À L’UNITÉ","Île-du-Prince-Édouard",73.584905660377359,"Prêts hypothécaires assurés au cours de la période selon le milieu urbain/rural (%)","73.6",0,{"$f":"IFERROR(VLOOKUP(A6695,Translation!$A:$C,3,FALSE),A6695)","v":18},{"$f":"IFERROR(VLOOKUP(B6695,Translation!$A:$C,3,FALSE),B6695)","v":"T2 2017"},{"$f":"IFERROR(VLOOKUP(C6695,Translation!$A:$C,3,FALSE),C6695)","v":"PROPRIÉTAIRES-OCCUPANTS, À L’UNITÉ"},{"$f":"IFERROR(VLOOKUP(D6695,Translation!$A:$C,3,FALSE),D6695)","v":"Île-du-Prince-Édouard"},{"$f":"IFERROR(VLOOKUP(E6695,Translation!$A:$C,3,FALSE),E6695)","v":73.584905660377359},{"$f":"IFERROR(VLOOKUP(F6695,Translation!$A:$C,3,FALSE),F6695)","v":"Prêts hypothécaires assurés au cours de la période selon le milieu urbain/rural (%)"},{"$f":"IFERROR(VLOOKUP(G6695,Translation!$A:$C,3,FALSE),G6695)","v":"73.6"},{"$f":"IFERROR(VLOOKUP(H6695,Translation!$A:$C,3,FALSE),H6695)","v":0}]
[18,"Q4 2016","PROPRIÉTAIRES-OCCUPANTS, À L’UNITÉ","Île-du-Prince-Édouard",74.429223744292258,"Prêts hypothécaires assurés au cours de la période selon le milieu urbain/rural (%)","74.4",0,{"$f":"IFERROR(VLOOKUP(A6698,Translation!$A:$C,3,FALSE),A6698)","v":18},{"$f":"IFERROR(VLOOKUP(B6698,Translation!$A:$C,3,FALSE),B6698)","v":"Q4 2016"},{"$f":"IFERROR(VLOOKUP(C6698,Translation!$A:$C,3,FALSE),C6698)","v":"PROPRIÉTAIRES-OCCUPANTS, À L’UNITÉ"},{"$f":"IFERROR(VLOOKUP(D6698,Translation!$A:$C,3,FALSE),D6698)","v":"Île-du-Prince-Édouard"},{"$f":"IFERROR(VLOOKUP(E6698,Translation!$A:$C,3,FALSE),E6698)","v":74.429223744292258},{"$f":"IFERROR(VLOOKUP(F6698,Translation!$A:$C,3,FALSE),F6698)","v":"Prêts hypothécaires assurés au cours de la période selon le milieu urbain/rural (%)"},{"$f":"IFERROR(VLOOKUP(G6698,Translation!$A:$C,3,FALSE),G6698)","v":"74.4"},{"$f":"IFERROR(VLOOKUP(H6698,Translation!$A:$C,3,FALSE),H6698)","v":0}]
[18,"T1 2018","PROPRIÉTAIRES-OCCUPANTS, À L’UNITÉ","Nouvelle-Écosse",84.432234432234438,"Prêts hypothécaires assurés au cours de la période selon le milieu urbain/rural (%)","84.4",0,{"$f":"IFERROR(VLOOKUP(A6701,Translation!$A:$C,3,FALSE),A6701)","v":18},{"$f":"IFERROR(VLOOKUP(B6701,Translation!$A:$C,3,FALSE),B6701)","v":"T1 2018"},{"$f":"IFERROR(VLOOKUP(C6701,Translation!$A:$C,3,FALSE),C6701)","v":"PROPRIÉTAIRES-OCCUPANTS, À L’UNITÉ"},{"$f":"IFERROR(VLOOKUP(D6701,Translation!$A:$C,3,FALSE),D6701)","v":"Nouvelle-Écosse"},{"$f":"IFERROR(VLOOKUP(E6701,Translation!$A:$C,3,FALSE),E6701)","v":84.432234432234438},{"$f":"IFERROR(VLOOKUP(F6701,Translation!$A:$C,3,FALSE),F6701)","v":"Prêts hypothécaires assurés au cours de la période selon le milieu urbain/rural (%)"},{"$f":"IFERROR(VLOOKUP(G6701,Translation!$A:$C,3,FALSE),G6701)","v":"84.4"},{"$f":"IFERROR(VLOOKUP(H6701,Translation!$A:$C,3,FALSE),H6701)","v":0}]
[18,"T2 2017","PROPRIÉTAIRES-OCCUPANTS, À L’UNITÉ","Nouvelle-Écosse",84.943820224719104,"Prêts hypothécaires assurés au cours de la période selon le milieu urbain/rural (%)","84.9",0,{"$f":"IFERROR(VLOOKUP(A6703,Translation!$A:$C,3,FALSE),A6703)","v":18},{"$f":"IFERROR(VLOOKUP(B6703,Translation!$A:$C,3,FALSE),B6703)","v":"T2 2017"},{"$f":"IFERROR(VLOOKUP(C6703,Translation!$A:$C,3,FALSE),C6703)","v":"PROPRIÉTAIRES-OCCUPANTS, À L’UNITÉ"},{"$f":"IFERROR(VLOOKUP(D6703,Translation!$A:$C,3,FALSE),D6703)","v":"Nouvelle-Écosse"},{"$f":"IFERROR(VLOOKUP(E6703,Translation!$A:$C,3,FALSE),E6703)","v":84.943820224719104},{"$f":"IFERROR(VLOOKUP(F6703,Translation!$A:$C,3,FALSE),F6703)","v":"Prêts hypothécaires assurés au cours de la période selon le milieu urbain/rural (%)"},{"$f":"IFERROR(VLOOKUP(G6703,Translation!$A:$C,3,FALSE),G6703)","v":"84.9"},{"$f":"IFERROR(VLOOKUP(H6703,Translation!$A:$C,3,FALSE),H6703)","v":0}]
[18,"Q3 2016","PROPRIÉTAIRES-OCCUPANTS, À L’UNITÉ","Nouvelle-Écosse",83.97790055248619,"Prêts hypothécaires assurés au cours de la période selon le milieu urbain/rural (%)","84.0",0,{"$f":"IFERROR(VLOOKUP(A6704,Translation!$A:$C,3,FALSE),A6704)","v":18},{"$f":"IFERROR(VLOOKUP(B6704,Translation!$A:$C,3,FALSE),B6704)","v":"Q3 2016"},{"$f":"IFERROR(VLOOKUP(C6704,Translation!$A:$C,3,FALSE),C6704)","v":"PROPRIÉTAIRES-OCCUPANTS, À L’UNITÉ"},{"$f":"IFERROR(VLOOKUP(D6704,Translation!$A:$C,3,FALSE),D6704)","v":"Nouvelle-Écosse"},{"$f":"IFERROR(VLOOKUP(E6704,Translation!$A:$C,3,FALSE),E6704)","v":83.97790055248619},{"$f":"IFERROR(VLOOKUP(F6704,Translation!$A:$C,3,FALSE),F6704)","v":"Prêts hypothécaires assurés au cours de la période selon le milieu urbain/rural (%)"},{"$f":"IFERROR(VLOOKUP(G6704,Translation!$A:$C,3,FALSE),G6704)","v":"84.0"},{"$f":"IFERROR(VLOOKUP(H6704,Translation!$A:$C,3,FALSE),H6704)","v":0}]
[18,"Q4 2016","PROPRIÉTAIRES-OCCUPANTS, À L’UNITÉ","Nouvelle-Écosse",82.005371530886265,"Prêts hypothécaires assurés au cours de la période selon le milieu urbain/rural (%)","82.0",0,{"$f":"IFERROR(VLOOKUP(A6706,Translation!$A:$C,3,FALSE),A6706)","v":18},{"$f":"IFERROR(VLOOKUP(B6706,Translation!$A:$C,3,FALSE),B6706)","v":"Q4 2016"},{"$f":"IFERROR(VLOOKUP(C6706,Translation!$A:$C,3,FALSE),C6706)","v":"PROPRIÉTAIRES-OCCUPANTS, À L’UNITÉ"},{"$f":"IFERROR(VLOOKUP(D6706,Translation!$A:$C,3,FALSE),D6706)","v":"Nouvelle-Écosse"},{"$f":"IFERROR(VLOOKUP(E6706,Translation!$A:$C,3,FALSE),E6706)","v":82.005371530886265},{"$f":"IFERROR(VLOOKUP(F6706,Translation!$A:$C,3,FALSE),F6706)","v":"Prêts hypothécaires assurés au cours de la période selon le milieu urbain/rural (%)"},{"$f":"IFERROR(VLOOKUP(G6706,Translation!$A:$C,3,FALSE),G6706)","v":"82.0"},{"$f":"IFERROR(VLOOKUP(H6706,Translation!$A:$C,3,FALSE),H6706)","v":0}]
[18,"T1 2018","PROPRIÉTAIRES-OCCUPANTS, À L’UNITÉ","Nouveau-Brunswick",72.834645669291362,"Prêts hypothécaires assurés au cours de la période selon le milieu urbain/rural (%)","72.8",0,{"$f":"IFERROR(VLOOKUP(A6709,Translation!$A:$C,3,FALSE),A6709)","v":18},{"$f":"IFERROR(VLOOKUP(B6709,Translation!$A:$C,3,FALSE),B6709)","v":"T1 2018"},{"$f":"IFERROR(VLOOKUP(C6709,Translation!$A:$C,3,FALSE),C6709)","v":"PROPRIÉTAIRES-OCCUPANTS, À L’UNITÉ"},{"$f":"IFERROR(VLOOKUP(D6709,Translation!$A:$C,3,FALSE),D6709)","v":"Nouveau-Brunswick"},{"$f":"IFERROR(VLOOKUP(E6709,Translation!$A:$C,3,FALSE),E6709)","v":72.834645669291362},{"$f":"IFERROR(VLOOKUP(F6709,Translation!$A:$C,3,FALSE),F6709)","v":"Prêts hypothécaires assurés au cours de la période selon le milieu urbain/rural (%)"},{"$f":"IFERROR(VLOOKUP(G6709,Translation!$A:$C,3,FALSE),G6709)","v":"72.8"},{"$f":"IFERROR(VLOOKUP(H6709,Translation!$A:$C,3,FALSE),H6709)","v":0}]
[18,"Q3 2016","PROPRIÉTAIRES-OCCUPANTS, À L’UNITÉ","Nouveau-Brunswick",68.268090154211151,"Prêts hypothécaires assurés au cours de la période selon le milieu urbain/rural (%)","68.3",0,{"$f":"IFERROR(VLOOKUP(A6712,Translation!$A:$C,3,FALSE),A6712)","v":18},{"$f":"IFERROR(VLOOKUP(B6712,Translation!$A:$C,3,FALSE),B6712)","v":"Q3 2016"},{"$f":"IFERROR(VLOOKUP(C6712,Translation!$A:$C,3,FALSE),C6712)","v":"PROPRIÉTAIRES-OCCUPANTS, À L’UNITÉ"},{"$f":"IFERROR(VLOOKUP(D6712,Translation!$A:$C,3,FALSE),D6712)","v":"Nouveau-Brunswick"},{"$f":"IFERROR(VLOOKUP(E6712,Translation!$A:$C,3,FALSE),E6712)","v":68.268090154211151},{"$f":"IFERROR(VLOOKUP(F6712,Translation!$A:$C,3,FALSE),F6712)","v":"Prêts hypothécaires assurés au cours de la période selon le milieu urbain/rural (%)"},{"$f":"IFERROR(VLOOKUP(G6712,Translation!$A:$C,3,FALSE),G6712)","v":"68.3"},{"$f":"IFERROR(VLOOKUP(H6712,Translation!$A:$C,3,FALSE),H6712)","v":0}]
[18,"Q4 2016","PROPRIÉTAIRES-OCCUPANTS, À L’UNITÉ","Nouveau-Brunswick",66.404405979543682,"Prêts hypothécaires assurés au cours de la période selon le milieu urbain/rural (%)","66.4",0,{"$f":"IFERROR(VLOOKUP(A6714,Translation!$A:$C,3,FALSE),A6714)","v":18},{"$f":"IFERROR(VLOOKUP(B6714,Translation!$A:$C,3,FALSE),B6714)","v":"Q4 2016"},{"$f":"IFERROR(VLOOKUP(C6714,Translation!$A:$C,3,FALSE),C6714)","v":"PROPRIÉTAIRES-OCCUPANTS, À L’UNITÉ"},{"$f":"IFERROR(VLOOKUP(D6714,Translation!$A:$C,3,FALSE),D6714)","v":"Nouveau-Brunswick"},{"$f":"IFERROR(VLOOKUP(E6714,Translation!$A:$C,3,FALSE),E6714)","v":66.404405979543682},{"$f":"IFERROR(VLOOKUP(F6714,Translation!$A:$C,3,FALSE),F6714)","v":"Prêts hypothécaires assurés au cours de la période selon le milieu urbain/rural (%)"},{"$f":"IFERROR(VLOOKUP(G6714,Translation!$A:$C,3,FALSE),G6714)","v":"66.4"},{"$f":"IFERROR(VLOOKUP(H6714,Translation!$A:$C,3,FALSE),H6714)","v":0}]
[18,"T1 2018","PROPRIÉTAIRES-OCCUPANTS, À L’UNITÉ","Québec",84.116972477064238,"Prêts hypothécaires assurés au cours de la période selon le milieu urbain/rural (%)","84.1",0,{"$f":"IFERROR(VLOOKUP(A6717,Translation!$A:$C,3,FALSE),A6717)","v":18},{"$f":"IFERROR(VLOOKUP(B6717,Translation!$A:$C,3,FALSE),B6717)","v":"T1 2018"},{"$f":"IFERROR(VLOOKUP(C6717,Translation!$A:$C,3,FALSE),C6717)","v":"PROPRIÉTAIRES-OCCUPANTS, À L’UNITÉ"},{"$f":"IFERROR(VLOOKUP(D6717,Translation!$A:$C,3,FALSE),D6717)","v":"Québec"},{"$f":"IFERROR(VLOOKUP(E6717,Translation!$A:$C,3,FALSE),E6717)","v":84.116972477064238},{"$f":"IFERROR(VLOOKUP(F6717,Translation!$A:$C,3,FALSE),F6717)","v":"Prêts hypothécaires assurés au cours de la période selon le milieu urbain/rural (%)"},{"$f":"IFERROR(VLOOKUP(G6717,Translation!$A:$C,3,FALSE),G6717)","v":"84.1"},{"$f":"IFERROR(VLOOKUP(H6717,Translation!$A:$C,3,FALSE),H6717)","v":0}]
[18,"Q3 2016","PROPRIÉTAIRES-OCCUPANTS, À L’UNITÉ","Québec",81.304130579613584,"Prêts hypothécaires assurés au cours de la période selon le milieu urbain/rural (%)","81.3",0,{"$f":"IFERROR(VLOOKUP(A6720,Translation!$A:$C,3,FALSE),A6720)","v":18},{"$f":"IFERROR(VLOOKUP(B6720,Translation!$A:$C,3,FALSE),B6720)","v":"Q3 2016"},{"$f":"IFERROR(VLOOKUP(C6720,Translation!$A:$C,3,FALSE),C6720)","v":"PROPRIÉTAIRES-OCCUPANTS, À L’UNITÉ"},{"$f":"IFERROR(VLOOKUP(D6720,Translation!$A:$C,3,FALSE),D6720)","v":"Québec"},{"$f":"IFERROR(VLOOKUP(E6720,Translation!$A:$C,3,FALSE),E6720)","v":81.304130579613584},{"$f":"IFERROR(VLOOKUP(F6720,Translation!$A:$C,3,FALSE),F6720)","v":"Prêts hypothécaires assurés au cours de la période selon le milieu urbain/rural (%)"},{"$f":"IFERROR(VLOOKUP(G6720,Translation!$A:$C,3,FALSE),G6720)","v":"81.3"},{"$f":"IFERROR(VLOOKUP(H6720,Translation!$A:$C,3,FALSE),H6720)","v":0}]
[18,"Q4 2016","PROPRIÉTAIRES-OCCUPANTS, À L’UNITÉ","Québec",81.078553615960118,"Prêts hypothécaires assurés au cours de la période selon le milieu urbain/rural (%)","81.1",0,{"$f":"IFERROR(VLOOKUP(A6722,Translation!$A:$C,3,FALSE),A6722)","v":18},{"$f":"IFERROR(VLOOKUP(B6722,Translation!$A:$C,3,FALSE),B6722)","v":"Q4 2016"},{"$f":"IFERROR(VLOOKUP(C6722,Translation!$A:$C,3,FALSE),C6722)","v":"PROPRIÉTAIRES-OCCUPANTS, À L’UNITÉ"},{"$f":"IFERROR(VLOOKUP(D6722,Translation!$A:$C,3,FALSE),D6722)","v":"Québec"},{"$f":"IFERROR(VLOOKUP(E6722,Translation!$A:$C,3,FALSE),E6722)","v":81.078553615960118},{"$f":"IFERROR(VLOOKUP(F6722,Translation!$A:$C,3,FALSE),F6722)","v":"Prêts hypothécaires assurés au cours de la période selon le milieu urbain/rural (%)"},{"$f":"IFERROR(VLOOKUP(G6722,Translation!$A:$C,3,FALSE),G6722)","v":"81.1"},{"$f":"IFERROR(VLOOKUP(H6722,Translation!$A:$C,3,FALSE),H6722)","v":0}]
[18,"T4 2017","PROPRIÉTAIRES-OCCUPANTS, À L’UNITÉ","Québec",82.334301557961439,"Prêts hypothécaires assurés au cours de la période selon le milieu urbain/rural (%)","82.3",0,{"$f":"IFERROR(VLOOKUP(A6723,Translation!$A:$C,3,FALSE),A6723)","v":18},{"$f":"IFERROR(VLOOKUP(B6723,Translation!$A:$C,3,FALSE),B6723)","v":"T4 2017"},{"$f":"IFERROR(VLOOKUP(C6723,Translation!$A:$C,3,FALSE),C6723)","v":"PROPRIÉTAIRES-OCCUPANTS, À L’UNITÉ"},{"$f":"IFERROR(VLOOKUP(D6723,Translation!$A:$C,3,FALSE),D6723)","v":"Québec"},{"$f":"IFERROR(VLOOKUP(E6723,Translation!$A:$C,3,FALSE),E6723)","v":82.334301557961439},{"$f":"IFERROR(VLOOKUP(F6723,Translation!$A:$C,3,FALSE),F6723)","v":"Prêts hypothécaires assurés au cours de la période selon le milieu urbain/rural (%)"},{"$f":"IFERROR(VLOOKUP(G6723,Translation!$A:$C,3,FALSE),G6723)","v":"82.3"},{"$f":"IFERROR(VLOOKUP(H6723,Translation!$A:$C,3,FALSE),H6723)","v":0}]
[18,"T2 2017","PROPRIÉTAIRES-OCCUPANTS, À L’UNITÉ","Ontario",90.809164349092811,"Prêts hypothécaires assurés au cours de la période selon le milieu urbain/rural (%)","90.8",0,{"$f":"IFERROR(VLOOKUP(A6727,Translation!$A:$C,3,FALSE),A6727)","v":18},{"$f":"IFERROR(VLOOKUP(B6727,Translation!$A:$C,3,FALSE),B6727)","v":"T2 2017"},{"$f":"IFERROR(VLOOKUP(C6727,Translation!$A:$C,3,FALSE),C6727)","v":"PROPRIÉTAIRES-OCCUPANTS, À L’UNITÉ"},{"$f":"IFERROR(VLOOKUP(D6727,Translation!$A:$C,3,FALSE),D6727)","v":"Ontario"},{"$f":"IFERROR(VLOOKUP(E6727,Translation!$A:$C,3,FALSE),E6727)","v":90.809164349092811},{"$f":"IFERROR(VLOOKUP(F6727,Translation!$A:$C,3,FALSE),F6727)","v":"Prêts hypothécaires assurés au cours de la période selon le milieu urbain/rural (%)"},{"$f":"IFERROR(VLOOKUP(G6727,Translation!$A:$C,3,FALSE),G6727)","v":"90.8"},{"$f":"IFERROR(VLOOKUP(H6727,Translation!$A:$C,3,FALSE),H6727)","v":0}]
[18,"Q3 2016","PROPRIÉTAIRES-OCCUPANTS, À L’UNITÉ","Ontario",91.772286341428881,"Prêts hypothécaires assurés au cours de la période selon le milieu urbain/rural (%)","91.8",0,{"$f":"IFERROR(VLOOKUP(A6728,Translation!$A:$C,3,FALSE),A6728)","v":18},{"$f":"IFERROR(VLOOKUP(B6728,Translation!$A:$C,3,FALSE),B6728)","v":"Q3 2016"},{"$f":"IFERROR(VLOOKUP(C6728,Translation!$A:$C,3,FALSE),C6728)","v":"PROPRIÉTAIRES-OCCUPANTS, À L’UNITÉ"},{"$f":"IFERROR(VLOOKUP(D6728,Translation!$A:$C,3,FALSE),D6728)","v":"Ontario"},{"$f":"IFERROR(VLOOKUP(E6728,Translation!$A:$C,3,FALSE),E6728)","v":91.772286341428881},{"$f":"IFERROR(VLOOKUP(F6728,Translation!$A:$C,3,FALSE),F6728)","v":"Prêts hypothécaires assurés au cours de la période selon le milieu urbain/rural (%)"},{"$f":"IFERROR(VLOOKUP(G6728,Translation!$A:$C,3,FALSE),G6728)","v":"91.8"},{"$f":"IFERROR(VLOOKUP(H6728,Translation!$A:$C,3,FALSE),H6728)","v":0}]
[18,"T4 2017","PROPRIÉTAIRES-OCCUPANTS, À L’UNITÉ","Ontario",89.752116082224902,"Prêts hypothécaires assurés au cours de la période selon le milieu urbain/rural (%)","89.8",0,{"$f":"IFERROR(VLOOKUP(A6731,Translation!$A:$C,3,FALSE),A6731)","v":18},{"$f":"IFERROR(VLOOKUP(B6731,Translation!$A:$C,3,FALSE),B6731)","v":"T4 2017"},{"$f":"IFERROR(VLOOKUP(C6731,Translation!$A:$C,3,FALSE),C6731)","v":"PROPRIÉTAIRES-OCCUPANTS, À L’UNITÉ"},{"$f":"IFERROR(VLOOKUP(D6731,Translation!$A:$C,3,FALSE),D6731)","v":"Ontario"},{"$f":"IFERROR(VLOOKUP(E6731,Translation!$A:$C,3,FALSE),E6731)","v":89.752116082224902},{"$f":"IFERROR(VLOOKUP(F6731,Translation!$A:$C,3,FALSE),F6731)","v":"Prêts hypothécaires assurés au cours de la période selon le milieu urbain/rural (%)"},{"$f":"IFERROR(VLOOKUP(G6731,Translation!$A:$C,3,FALSE),G6731)","v":"89.8"},{"$f":"IFERROR(VLOOKUP(H6731,Translation!$A:$C,3,FALSE),H6731)","v":0}]
[18,"T1 2018","PROPRIÉTAIRES-OCCUPANTS, À L’UNITÉ","Manitoba",84.546805349182748,"Prêts hypothécaires assurés au cours de la période selon le milieu urbain/rural (%)","84.5",0,{"$f":"IFERROR(VLOOKUP(A6733,Translation!$A:$C,3,FALSE),A6733)","v":18},{"$f":"IFERROR(VLOOKUP(B6733,Translation!$A:$C,3,FALSE),B6733)","v":"T1 2018"},{"$f":"IFERROR(VLOOKUP(C6733,Translation!$A:$C,3,FALSE),C6733)","v":"PROPRIÉTAIRES-OCCUPANTS, À L’UNITÉ"},{"$f":"IFERROR(VLOOKUP(D6733,Translation!$A:$C,3,FALSE),D6733)","v":"Manitoba"},{"$f":"IFERROR(VLOOKUP(E6733,Translation!$A:$C,3,FALSE),E6733)","v":84.546805349182748},{"$f":"IFERROR(VLOOKUP(F6733,Translation!$A:$C,3,FALSE),F6733)","v":"Prêts hypothécaires assurés au cours de la période selon le milieu urbain/rural (%)"},{"$f":"IFERROR(VLOOKUP(G6733,Translation!$A:$C,3,FALSE),G6733)","v":"84.5"},{"$f":"IFERROR(VLOOKUP(H6733,Translation!$A:$C,3,FALSE),H6733)","v":0}]
[18,"T3 2017","PROPRIÉTAIRES-OCCUPANTS, À L’UNITÉ","Manitoba",85.745614035087698,"Prêts hypothécaires assurés au cours de la période selon le milieu urbain/rural (%)","85.7",0,{"$f":"IFERROR(VLOOKUP(A6737,Translation!$A:$C,3,FALSE),A6737)","v":18},{"$f":"IFERROR(VLOOKUP(B6737,Translation!$A:$C,3,FALSE),B6737)","v":"T3 2017"},{"$f":"IFERROR(VLOOKUP(C6737,Translation!$A:$C,3,FALSE),C6737)","v":"PROPRIÉTAIRES-OCCUPANTS, À L’UNITÉ"},{"$f":"IFERROR(VLOOKUP(D6737,Translation!$A:$C,3,FALSE),D6737)","v":"Manitoba"},{"$f":"IFERROR(VLOOKUP(E6737,Translation!$A:$C,3,FALSE),E6737)","v":85.745614035087698},{"$f":"IFERROR(VLOOKUP(F6737,Translation!$A:$C,3,FALSE),F6737)","v":"Prêts hypothécaires assurés au cours de la période selon le milieu urbain/rural (%)"},{"$f":"IFERROR(VLOOKUP(G6737,Translation!$A:$C,3,FALSE),G6737)","v":"85.7"},{"$f":"IFERROR(VLOOKUP(H6737,Translation!$A:$C,3,FALSE),H6737)","v":0}]
[18,"Q4 2016","PROPRIÉTAIRES-OCCUPANTS, À L’UNITÉ","Manitoba",83.510011778563012,"Prêts hypothécaires assurés au cours de la période selon le milieu urbain/rural (%)","83.5",0,{"$f":"IFERROR(VLOOKUP(A6738,Translation!$A:$C,3,FALSE),A6738)","v":18},{"$f":"IFERROR(VLOOKUP(B6738,Translation!$A:$C,3,FALSE),B6738)","v":"Q4 2016"},{"$f":"IFERROR(VLOOKUP(C6738,Translation!$A:$C,3,FALSE),C6738)","v":"PROPRIÉTAIRES-OCCUPANTS, À L’UNITÉ"},{"$f":"IFERROR(VLOOKUP(D6738,Translation!$A:$C,3,FALSE),D6738)","v":"Manitoba"},{"$f":"IFERROR(VLOOKUP(E6738,Translation!$A:$C,3,FALSE),E6738)","v":83.510011778563012},{"$f":"IFERROR(VLOOKUP(F6738,Translation!$A:$C,3,FALSE),F6738)","v":"Prêts hypothécaires assurés au cours de la période selon le milieu urbain/rural (%)"},{"$f":"IFERROR(VLOOKUP(G6738,Translation!$A:$C,3,FALSE),G6738)","v":"83.5"},{"$f":"IFERROR(VLOOKUP(H6738,Translation!$A:$C,3,FALSE),H6738)","v":0}]
[18,"T1 2018","PROPRIÉTAIRES-OCCUPANTS, À L’UNITÉ","Saskatchewan",78.107606679035243,"Prêts hypothécaires assurés au cours de la période selon le milieu urbain/rural (%)","78.1",0,{"$f":"IFERROR(VLOOKUP(A6741,Translation!$A:$C,3,FALSE),A6741)","v":18},{"$f":"IFERROR(VLOOKUP(B6741,Translation!$A:$C,3,FALSE),B6741)","v":"T1 2018"},{"$f":"IFERROR(VLOOKUP(C6741,Translation!$A:$C,3,FALSE),C6741)","v":"PROPRIÉTAIRES-OCCUPANTS, À L’UNITÉ"},{"$f":"IFERROR(VLOOKUP(D6741,Translation!$A:$C,3,FALSE),D6741)","v":"Saskatchewan"},{"$f":"IFERROR(VLOOKUP(E6741,Translation!$A:$C,3,FALSE),E6741)","v":78.107606679035243},{"$f":"IFERROR(VLOOKUP(F6741,Translation!$A:$C,3,FALSE),F6741)","v":"Prêts hypothécaires assurés au cours de la période selon le milieu urbain/rural (%)"},{"$f":"IFERROR(VLOOKUP(G6741,Translation!$A:$C,3,FALSE),G6741)","v":"78.1"},{"$f":"IFERROR(VLOOKUP(H6741,Translation!$A:$C,3,FALSE),H6741)","v":0}]
[18,"Q2 2016","PROPRIÉTAIRES-OCCUPANTS, À L’UNITÉ","Saskatchewan",75.517241379310306,"Prêts hypothécaires assurés au cours de la période selon le milieu urbain/rural (%)","75.5",0,{"$f":"IFERROR(VLOOKUP(A6742,Translation!$A:$C,3,FALSE),A6742)","v":18},{"$f":"IFERROR(VLOOKUP(B6742,Translation!$A:$C,3,FALSE),B6742)","v":"Q2 2016"},{"$f":"IFERROR(VLOOKUP(C6742,Translation!$A:$C,3,FALSE),C6742)","v":"PROPRIÉTAIRES-OCCUPANTS, À L’UNITÉ"},{"$f":"IFERROR(VLOOKUP(D6742,Translation!$A:$C,3,FALSE),D6742)","v":"Saskatchewan"},{"$f":"IFERROR(VLOOKUP(E6742,Translation!$A:$C,3,FALSE),E6742)","v":75.517241379310306},{"$f":"IFERROR(VLOOKUP(F6742,Translation!$A:$C,3,FALSE),F6742)","v":"Prêts hypothécaires assurés au cours de la période selon le milieu urbain/rural (%)"},{"$f":"IFERROR(VLOOKUP(G6742,Translation!$A:$C,3,FALSE),G6742)","v":"75.5"},{"$f":"IFERROR(VLOOKUP(H6742,Translation!$A:$C,3,FALSE),H6742)","v":0}]
[18,"Q4 2016","PROPRIÉTAIRES-OCCUPANTS, À L’UNITÉ","Saskatchewan",75.595727198027959,"Prêts hypothécaires assurés au cours de la période selon le milieu urbain/rural (%)","75.6",0,{"$f":"IFERROR(VLOOKUP(A6746,Translation!$A:$C,3,FALSE),A6746)","v":18},{"$f":"IFERROR(VLOOKUP(B6746,Translation!$A:$C,3,FALSE),B6746)","v":"Q4 2016"},{"$f":"IFERROR(VLOOKUP(C6746,Translation!$A:$C,3,FALSE),C6746)","v":"PROPRIÉTAIRES-OCCUPANTS, À L’UNITÉ"},{"$f":"IFERROR(VLOOKUP(D6746,Translation!$A:$C,3,FALSE),D6746)","v":"Saskatchewan"},{"$f":"IFERROR(VLOOKUP(E6746,Translation!$A:$C,3,FALSE),E6746)","v":75.595727198027959},{"$f":"IFERROR(VLOOKUP(F6746,Translation!$A:$C,3,FALSE),F6746)","v":"Prêts hypothécaires assurés au cours de la période selon le milieu urbain/rural (%)"},{"$f":"IFERROR(VLOOKUP(G6746,Translation!$A:$C,3,FALSE),G6746)","v":"75.6"},{"$f":"IFERROR(VLOOKUP(H6746,Translation!$A:$C,3,FALSE),H6746)","v":0}]
[18,"T4 2017","PROPRIÉTAIRES-OCCUPANTS, À L’UNITÉ","Saskatchewan",71.040189125295498,"Prêts hypothécaires assurés au cours de la période selon le milieu urbain/rural (%)","71.0",0,{"$f":"IFERROR(VLOOKUP(A6747,Translation!$A:$C,3,FALSE),A6747)","v":18},{"$f":"IFERROR(VLOOKUP(B6747,Translation!$A:$C,3,FALSE),B6747)","v":"T4 2017"},{"$f":"IFERROR(VLOOKUP(C6747,Translation!$A:$C,3,FALSE),C6747)","v":"PROPRIÉTAIRES-OCCUPANTS, À L’UNITÉ"},{"$f":"IFERROR(VLOOKUP(D6747,Translation!$A:$C,3,FALSE),D6747)","v":"Saskatchewan"},{"$f":"IFERROR(VLOOKUP(E6747,Translation!$A:$C,3,FALSE),E6747)","v":71.040189125295498},{"$f":"IFERROR(VLOOKUP(F6747,Translation!$A:$C,3,FALSE),F6747)","v":"Prêts hypothécaires assurés au cours de la période selon le milieu urbain/rural (%)"},{"$f":"IFERROR(VLOOKUP(G6747,Translation!$A:$C,3,FALSE),G6747)","v":"71.0"},{"$f":"IFERROR(VLOOKUP(H6747,Translation!$A:$C,3,FALSE),H6747)","v":0}]
[18,"T2 2017","PROPRIÉTAIRES-OCCUPANTS, À L’UNITÉ","Alberta",93.681021423934212,"Prêts hypothécaires assurés au cours de la période selon le milieu urbain/rural (%)","93.7",0,{"$f":"IFERROR(VLOOKUP(A6751,Translation!$A:$C,3,FALSE),A6751)","v":18},{"$f":"IFERROR(VLOOKUP(B6751,Translation!$A:$C,3,FALSE),B6751)","v":"T2 2017"},{"$f":"IFERROR(VLOOKUP(C6751,Translation!$A:$C,3,FALSE),C6751)","v":"PROPRIÉTAIRES-OCCUPANTS, À L’UNITÉ"},{"$f":"IFERROR(VLOOKUP(D6751,Translation!$A:$C,3,FALSE),D6751)","v":"Alberta"},{"$f":"IFERROR(VLOOKUP(E6751,Translation!$A:$C,3,FALSE),E6751)","v":93.681021423934212},{"$f":"IFERROR(VLOOKUP(F6751,Translation!$A:$C,3,FALSE),F6751)","v":"Prêts hypothécaires assurés au cours de la période selon le milieu urbain/rural (%)"},{"$f":"IFERROR(VLOOKUP(G6751,Translation!$A:$C,3,FALSE),G6751)","v":"93.7"},{"$f":"IFERROR(VLOOKUP(H6751,Translation!$A:$C,3,FALSE),H6751)","v":0}]
[18,"Q3 2016","PROPRIÉTAIRES-OCCUPANTS, À L’UNITÉ","Alberta",93.461316397228629,"Prêts hypothécaires assurés au cours de la période selon le milieu urbain/rural (%)","93.5",0,{"$f":"IFERROR(VLOOKUP(A6752,Translation!$A:$C,3,FALSE),A6752)","v":18},{"$f":"IFERROR(VLOOKUP(B6752,Translation!$A:$C,3,FALSE),B6752)","v":"Q3 2016"},{"$f":"IFERROR(VLOOKUP(C6752,Translation!$A:$C,3,FALSE),C6752)","v":"PROPRIÉTAIRES-OCCUPANTS, À L’UNITÉ"},{"$f":"IFERROR(VLOOKUP(D6752,Translation!$A:$C,3,FALSE),D6752)","v":"Alberta"},{"$f":"IFERROR(VLOOKUP(E6752,Translation!$A:$C,3,FALSE),E6752)","v":93.461316397228629},{"$f":"IFERROR(VLOOKUP(F6752,Translation!$A:$C,3,FALSE),F6752)","v":"Prêts hypothécaires assurés au cours de la période selon le milieu urbain/rural (%)"},{"$f":"IFERROR(VLOOKUP(G6752,Translation!$A:$C,3,FALSE),G6752)","v":"93.5"},{"$f":"IFERROR(VLOOKUP(H6752,Translation!$A:$C,3,FALSE),H6752)","v":0}]
[18,"T1 2017","PROPRIÉTAIRES-OCCUPANTS, À L’UNITÉ","Colombie-Britannique",88.936859147328676,"Prêts hypothécaires assurés au cours de la période selon le milieu urbain/rural (%)","88.9",0,{"$f":"IFERROR(VLOOKUP(A6756,Translation!$A:$C,3,FALSE),A6756)","v":18},{"$f":"IFERROR(VLOOKUP(B6756,Translation!$A:$C,3,FALSE),B6756)","v":"T1 2017"},{"$f":"IFERROR(VLOOKUP(C6756,Translation!$A:$C,3,FALSE),C6756)","v":"PROPRIÉTAIRES-OCCUPANTS, À L’UNITÉ"},{"$f":"IFERROR(VLOOKUP(D6756,Translation!$A:$C,3,FALSE),D6756)","v":"Colombie-Britannique"},{"$f":"IFERROR(VLOOKUP(E6756,Translation!$A:$C,3,FALSE),E6756)","v":88.936859147328676},{"$f":"IFERROR(VLOOKUP(F6756,Translation!$A:$C,3,FALSE),F6756)","v":"Prêts hypothécaires assurés au cours de la période selon le milieu urbain/rural (%)"},{"$f":"IFERROR(VLOOKUP(G6756,Translation!$A:$C,3,FALSE),G6756)","v":"88.9"},{"$f":"IFERROR(VLOOKUP(H6756,Translation!$A:$C,3,FALSE),H6756)","v":0}]
[18,"T1 2018","PROPRIÉTAIRES-OCCUPANTS, À L’UNITÉ","Colombie-Britannique",87.436823104693133,"Prêts hypothécaires assurés au cours de la période selon le milieu urbain/rural (%)","87.4",0,{"$f":"IFERROR(VLOOKUP(A6757,Translation!$A:$C,3,FALSE),A6757)","v":18},{"$f":"IFERROR(VLOOKUP(B6757,Translation!$A:$C,3,FALSE),B6757)","v":"T1 2018"},{"$f":"IFERROR(VLOOKUP(C6757,Translation!$A:$C,3,FALSE),C6757)","v":"PROPRIÉTAIRES-OCCUPANTS, À L’UNITÉ"},{"$f":"IFERROR(VLOOKUP(D6757,Translation!$A:$C,3,FALSE),D6757)","v":"Colombie-Britannique"},{"$f":"IFERROR(VLOOKUP(E6757,Translation!$A:$C,3,FALSE),E6757)","v":87.436823104693133},{"$f":"IFERROR(VLOOKUP(F6757,Translation!$A:$C,3,FALSE),F6757)","v":"Prêts hypothécaires assurés au cours de la période selon le milieu urbain/rural (%)"},{"$f":"IFERROR(VLOOKUP(G6757,Translation!$A:$C,3,FALSE),G6757)","v":"87.4"},{"$f":"IFERROR(VLOOKUP(H6757,Translation!$A:$C,3,FALSE),H6757)","v":0}]
[18,"T3 2017","PROPRIÉTAIRES-OCCUPANTS, À L’UNITÉ","Colombie-Britannique",86.27569528415961,"Prêts hypothécaires assurés au cours de la période selon le milieu urbain/rural (%)","86.3",0,{"$f":"IFERROR(VLOOKUP(A6761,Translation!$A:$C,3,FALSE),A6761)","v":18},{"$f":"IFERROR(VLOOKUP(B6761,Translation!$A:$C,3,FALSE),B6761)","v":"T3 2017"},{"$f":"IFERROR(VLOOKUP(C6761,Translation!$A:$C,3,FALSE),C6761)","v":"PROPRIÉTAIRES-OCCUPANTS, À L’UNITÉ"},{"$f":"IFERROR(VLOOKUP(D6761,Translation!$A:$C,3,FALSE),D6761)","v":"Colombie-Britannique"},{"$f":"IFERROR(VLOOKUP(E6761,Translation!$A:$C,3,FALSE),E6761)","v":86.27569528415961},{"$f":"IFERROR(VLOOKUP(F6761,Translation!$A:$C,3,FALSE),F6761)","v":"Prêts hypothécaires assurés au cours de la période selon le milieu urbain/rural (%)"},{"$f":"IFERROR(VLOOKUP(G6761,Translation!$A:$C,3,FALSE),G6761)","v":"86.3"},{"$f":"IFERROR(VLOOKUP(H6761,Translation!$A:$C,3,FALSE),H6761)","v":0}]
[18,"Q4 2016","PROPRIÉTAIRES-OCCUPANTS, À L’UNITÉ","Colombie-Britannique",87.367244270542173,"Prêts hypothécaires assurés au cours de la période selon le milieu urbain/rural (%)","87.4",0,{"$f":"IFERROR(VLOOKUP(A6762,Translation!$A:$C,3,FALSE),A6762)","v":18},{"$f":"IFERROR(VLOOKUP(B6762,Translation!$A:$C,3,FALSE),B6762)","v":"Q4 2016"},{"$f":"IFERROR(VLOOKUP(C6762,Translation!$A:$C,3,FALSE),C6762)","v":"PROPRIÉTAIRES-OCCUPANTS, À L’UNITÉ"},{"$f":"IFERROR(VLOOKUP(D6762,Translation!$A:$C,3,FALSE),D6762)","v":"Colombie-Britannique"},{"$f":"IFERROR(VLOOKUP(E6762,Translation!$A:$C,3,FALSE),E6762)","v":87.367244270542173},{"$f":"IFERROR(VLOOKUP(F6762,Translation!$A:$C,3,FALSE),F6762)","v":"Prêts hypothécaires assurés au cours de la période selon le milieu urbain/rural (%)"},{"$f":"IFERROR(VLOOKUP(G6762,Translation!$A:$C,3,FALSE),G6762)","v":"87.4"},{"$f":"IFERROR(VLOOKUP(H6762,Translation!$A:$C,3,FALSE),H6762)","v":0}]
[18,"T1 2018","PROPRIÉTAIRES-OCCUPANTS, À L’UNITÉ","Territoires",77.922077922077932,"Prêts hypothécaires assurés au cours de la période selon le milieu urbain/rural (%)","77.9",0,{"$f":"IFERROR(VLOOKUP(A6765,Translation!$A:$C,3,FALSE),A6765)","v":18},{"$f":"IFERROR(VLOOKUP(B6765,Translation!$A:$C,3,FALSE),B6765)","v":"T1 2018"},{"$f":"IFERROR(VLOOKUP(C6765,Translation!$A:$C,3,FALSE),C6765)","v":"PROPRIÉTAIRES-OCCUPANTS, À L’UNITÉ"},{"$f":"IFERROR(VLOOKUP(D6765,Translation!$A:$C,3,FALSE),D6765)","v":"Territoires"},{"$f":"IFERROR(VLOOKUP(E6765,Translation!$A:$C,3,FALSE),E6765)","v":77.922077922077932},{"$f":"IFERROR(VLOOKUP(F6765,Translation!$A:$C,3,FALSE),F6765)","v":"Prêts hypothécaires assurés au cours de la période selon le milieu urbain/rural (%)"},{"$f":"IFERROR(VLOOKUP(G6765,Translation!$A:$C,3,FALSE),G6765)","v":"77.9"},{"$f":"IFERROR(VLOOKUP(H6765,Translation!$A:$C,3,FALSE),H6765)","v":0}]
[18,"Q2 2016","PROPRIÉTAIRES-OCCUPANTS, À L’UNITÉ","Territoires",81.057268722466944,"Prêts hypothécaires assurés au cours de la période selon le milieu urbain/rural (%)","81.1",0,{"$f":"IFERROR(VLOOKUP(A6766,Translation!$A:$C,3,FALSE),A6766)","v":18},{"$f":"IFERROR(VLOOKUP(B6766,Translation!$A:$C,3,FALSE),B6766)","v":"Q2 2016"},{"$f":"IFERROR(VLOOKUP(C6766,Translation!$A:$C,3,FALSE),C6766)","v":"PROPRIÉTAIRES-OCCUPANTS, À L’UNITÉ"},{"$f":"IFERROR(VLOOKUP(D6766,Translation!$A:$C,3,FALSE),D6766)","v":"Territoires"},{"$f":"IFERROR(VLOOKUP(E6766,Translation!$A:$C,3,FALSE),E6766)","v":81.057268722466944},{"$f":"IFERROR(VLOOKUP(F6766,Translation!$A:$C,3,FALSE),F6766)","v":"Prêts hypothécaires assurés au cours de la période selon le milieu urbain/rural (%)"},{"$f":"IFERROR(VLOOKUP(G6766,Translation!$A:$C,3,FALSE),G6766)","v":"81.1"},{"$f":"IFERROR(VLOOKUP(H6766,Translation!$A:$C,3,FALSE),H6766)","v":0}]
[18,"Q4 2016","PROPRIÉTAIRES-OCCUPANTS, À L’UNITÉ","Territoires",68.316831683168303,"Prêts hypothécaires assurés au cours de la période selon le milieu urbain/rural (%)","68.3",0,{"$f":"IFERROR(VLOOKUP(A6770,Translation!$A:$C,3,FALSE),A6770)","v":18},{"$f":"IFERROR(VLOOKUP(B6770,Translation!$A:$C,3,FALSE),B6770)","v":"Q4 2016"},{"$f":"IFERROR(VLOOKUP(C6770,Translation!$A:$C,3,FALSE),C6770)","v":"PROPRIÉTAIRES-OCCUPANTS, À L’UNITÉ"},{"$f":"IFERROR(VLOOKUP(D6770,Translation!$A:$C,3,FALSE),D6770)","v":"Territoires"},{"$f":"IFERROR(VLOOKUP(E6770,Translation!$A:$C,3,FALSE),E6770)","v":68.316831683168303},{"$f":"IFERROR(VLOOKUP(F6770,Translation!$A:$C,3,FALSE),F6770)","v":"Prêts hypothécaires assurés au cours de la période selon le milieu urbain/rural (%)"},{"$f":"IFERROR(VLOOKUP(G6770,Translation!$A:$C,3,FALSE),G6770)","v":"68.3"},{"$f":"IFERROR(VLOOKUP(H6770,Translation!$A:$C,3,FALSE),H6770)","v":0}]
[18,"T1 2017","ASSURANCE DE PORTEFEUILLE","Terre-Neuve-et-Labrador",86.206896551724128,"Prêts hypothécaires assurés au cours de la période selon le milieu urbain/rural (%)","86.2",0,{"$f":"IFERROR(VLOOKUP(A6772,Translation!$A:$C,3,FALSE),A6772)","v":18},{"$f":"IFERROR(VLOOKUP(B6772,Translation!$A:$C,3,FALSE),B6772)","v":"T1 2017"},{"$f":"IFERROR(VLOOKUP(C6772,Translation!$A:$C,3,FALSE),C6772)","v":"ASSURANCE DE PORTEFEUILLE"},{"$f":"IFERROR(VLOOKUP(D6772,Translation!$A:$C,3,FALSE),D6772)","v":"Terre-Neuve-et-Labrador"},{"$f":"IFERROR(VLOOKUP(E6772,Translation!$A:$C,3,FALSE),E6772)","v":86.206896551724128},{"$f":"IFERROR(VLOOKUP(F6772,Translation!$A:$C,3,FALSE),F6772)","v":"Prêts hypothécaires assurés au cours de la période selon le milieu urbain/rural (%)"},{"$f":"IFERROR(VLOOKUP(G6772,Translation!$A:$C,3,FALSE),G6772)","v":"86.2"},{"$f":"IFERROR(VLOOKUP(H6772,Translation!$A:$C,3,FALSE),H6772)","v":0}]
[18,"T2 2017","ASSURANCE DE PORTEFEUILLE","Terre-Neuve-et-Labrador",100,"Prêts hypothécaires assurés au cours de la période selon le milieu urbain/rural (%)","100.0",0,{"$f":"IFERROR(VLOOKUP(A6775,Translation!$A:$C,3,FALSE),A6775)","v":18},{"$f":"IFERROR(VLOOKUP(B6775,Translation!$A:$C,3,FALSE),B6775)","v":"T2 2017"},{"$f":"IFERROR(VLOOKUP(C6775,Translation!$A:$C,3,FALSE),C6775)","v":"ASSURANCE DE PORTEFEUILLE"},{"$f":"IFERROR(VLOOKUP(D6775,Translation!$A:$C,3,FALSE),D6775)","v":"Terre-Neuve-et-Labrador"},{"$f":"IFERROR(VLOOKUP(E6775,Translation!$A:$C,3,FALSE),E6775)","v":100},{"$f":"IFERROR(VLOOKUP(F6775,Translation!$A:$C,3,FALSE),F6775)","v":"Prêts hypothécaires assurés au cours de la période selon le milieu urbain/rural (%)"},{"$f":"IFERROR(VLOOKUP(G6775,Translation!$A:$C,3,FALSE),G6775)","v":"100.0"},{"$f":"IFERROR(VLOOKUP(H6775,Translation!$A:$C,3,FALSE),H6775)","v":0}]
[18,"Q3 2016","ASSURANCE DE PORTEFEUILLE","Terre-Neuve-et-Labrador",85.034013605442169,"Prêts hypothécaires assurés au cours de la période selon le milieu urbain/rural (%)","85.0",0,{"$f":"IFERROR(VLOOKUP(A6776,Translation!$A:$C,3,FALSE),A6776)","v":18},{"$f":"IFERROR(VLOOKUP(B6776,Translation!$A:$C,3,FALSE),B6776)","v":"Q3 2016"},{"$f":"IFERROR(VLOOKUP(C6776,Translation!$A:$C,3,FALSE),C6776)","v":"ASSURANCE DE PORTEFEUILLE"},{"$f":"IFERROR(VLOOKUP(D6776,Translation!$A:$C,3,FALSE),D6776)","v":"Terre-Neuve-et-Labrador"},{"$f":"IFERROR(VLOOKUP(E6776,Translation!$A:$C,3,FALSE),E6776)","v":85.034013605442169},{"$f":"IFERROR(VLOOKUP(F6776,Translation!$A:$C,3,FALSE),F6776)","v":"Prêts hypothécaires assurés au cours de la période selon le milieu urbain/rural (%)"},{"$f":"IFERROR(VLOOKUP(G6776,Translation!$A:$C,3,FALSE),G6776)","v":"85.0"},{"$f":"IFERROR(VLOOKUP(H6776,Translation!$A:$C,3,FALSE),H6776)","v":0}]
[18,"T1 2017","ASSURANCE DE PORTEFEUILLE","Île-du-Prince-Édouard",100,"Prêts hypothécaires assurés au cours de la période selon le milieu urbain/rural (%)","100.0",0,{"$f":"IFERROR(VLOOKUP(A6780,Translation!$A:$C,3,FALSE),A6780)","v":18},{"$f":"IFERROR(VLOOKUP(B6780,Translation!$A:$C,3,FALSE),B6780)","v":"T1 2017"},{"$f":"IFERROR(VLOOKUP(C6780,Translation!$A:$C,3,FALSE),C6780)","v":"ASSURANCE DE PORTEFEUILLE"},{"$f":"IFERROR(VLOOKUP(D6780,Translation!$A:$C,3,FALSE),D6780)","v":"Île-du-Prince-Édouard"},{"$f":"IFERROR(VLOOKUP(E6780,Translation!$A:$C,3,FALSE),E6780)","v":100},{"$f":"IFERROR(VLOOKUP(F6780,Translation!$A:$C,3,FALSE),F6780)","v":"Prêts hypothécaires assurés au cours de la période selon le milieu urbain/rural (%)"},{"$f":"IFERROR(VLOOKUP(G6780,Translation!$A:$C,3,FALSE),G6780)","v":"100.0"},{"$f":"IFERROR(VLOOKUP(H6780,Translation!$A:$C,3,FALSE),H6780)","v":0}]
[18,"Q2 2016","ASSURANCE DE PORTEFEUILLE","Île-du-Prince-Édouard",78.494623655913983,"Prêts hypothécaires assurés au cours de la période selon le milieu urbain/rural (%)","78.5",0,{"$f":"IFERROR(VLOOKUP(A6781,Translation!$A:$C,3,FALSE),A6781)","v":18},{"$f":"IFERROR(VLOOKUP(B6781,Translation!$A:$C,3,FALSE),B6781)","v":"Q2 2016"},{"$f":"IFERROR(VLOOKUP(C6781,Translation!$A:$C,3,FALSE),C6781)","v":"ASSURANCE DE PORTEFEUILLE"},{"$f":"IFERROR(VLOOKUP(D6781,Translation!$A:$C,3,FALSE),D6781)","v":"Île-du-Prince-Édouard"},{"$f":"IFERROR(VLOOKUP(E6781,Translation!$A:$C,3,FALSE),E6781)","v":78.494623655913983},{"$f":"IFERROR(VLOOKUP(F6781,Translation!$A:$C,3,FALSE),F6781)","v":"Prêts hypothécaires assurés au cours de la période selon le milieu urbain/rural (%)"},{"$f":"IFERROR(VLOOKUP(G6781,Translation!$A:$C,3,FALSE),G6781)","v":"78.5"},{"$f":"IFERROR(VLOOKUP(H6781,Translation!$A:$C,3,FALSE),H6781)","v":0}]
[18,"Q3 2016","ASSURANCE DE PORTEFEUILLE","Île-du-Prince-Édouard",57.894736842105281,"Prêts hypothécaires assurés au cours de la période selon le milieu urbain/rural (%)","57.9",0,{"$f":"IFERROR(VLOOKUP(A6783,Translation!$A:$C,3,FALSE),A6783)","v":18},{"$f":"IFERROR(VLOOKUP(B6783,Translation!$A:$C,3,FALSE),B6783)","v":"Q3 2016"},{"$f":"IFERROR(VLOOKUP(C6783,Translation!$A:$C,3,FALSE),C6783)","v":"ASSURANCE DE PORTEFEUILLE"},{"$f":"IFERROR(VLOOKUP(D6783,Translation!$A:$C,3,FALSE),D6783)","v":"Île-du-Prince-Édouard"},{"$f":"IFERROR(VLOOKUP(E6783,Translation!$A:$C,3,FALSE),E6783)","v":57.894736842105281},{"$f":"IFERROR(VLOOKUP(F6783,Translation!$A:$C,3,FALSE),F6783)","v":"Prêts hypothécaires assurés au cours de la période selon le milieu urbain/rural (%)"},{"$f":"IFERROR(VLOOKUP(G6783,Translation!$A:$C,3,FALSE),G6783)","v":"57.9"},{"$f":"IFERROR(VLOOKUP(H6783,Translation!$A:$C,3,FALSE),H6783)","v":0}]
[18,"T4 2017","ASSURANCE DE PORTEFEUILLE","Île-du-Prince-Édouard",71.428571428571445,"Prêts hypothécaires assurés au cours de la période selon le milieu urbain/rural (%)","71.4",0,{"$f":"IFERROR(VLOOKUP(A6786,Translation!$A:$C,3,FALSE),A6786)","v":18},{"$f":"IFERROR(VLOOKUP(B6786,Translation!$A:$C,3,FALSE),B6786)","v":"T4 2017"},{"$f":"IFERROR(VLOOKUP(C6786,Translation!$A:$C,3,FALSE),C6786)","v":"ASSURANCE DE PORTEFEUILLE"},{"$f":"IFERROR(VLOOKUP(D6786,Translation!$A:$C,3,FALSE),D6786)","v":"Île-du-Prince-Édouard"},{"$f":"IFERROR(VLOOKUP(E6786,Translation!$A:$C,3,FALSE),E6786)","v":71.428571428571445},{"$f":"IFERROR(VLOOKUP(F6786,Translation!$A:$C,3,FALSE),F6786)","v":"Prêts hypothécaires assurés au cours de la période selon le milieu urbain/rural (%)"},{"$f":"IFERROR(VLOOKUP(G6786,Translation!$A:$C,3,FALSE),G6786)","v":"71.4"},{"$f":"IFERROR(VLOOKUP(H6786,Translation!$A:$C,3,FALSE),H6786)","v":0}]
[18,"Q2 2016","ASSURANCE DE PORTEFEUILLE","Nouvelle-Écosse",93.814432989690715,"Prêts hypothécaires assurés au cours de la période selon le milieu urbain/rural (%)","93.8",0,{"$f":"IFERROR(VLOOKUP(A6789,Translation!$A:$C,3,FALSE),A6789)","v":18},{"$f":"IFERROR(VLOOKUP(B6789,Translation!$A:$C,3,FALSE),B6789)","v":"Q2 2016"},{"$f":"IFERROR(VLOOKUP(C6789,Translation!$A:$C,3,FALSE),C6789)","v":"ASSURANCE DE PORTEFEUILLE"},{"$f":"IFERROR(VLOOKUP(D6789,Translation!$A:$C,3,FALSE),D6789)","v":"Nouvelle-Écosse"},{"$f":"IFERROR(VLOOKUP(E6789,Translation!$A:$C,3,FALSE),E6789)","v":93.814432989690715},{"$f":"IFERROR(VLOOKUP(F6789,Translation!$A:$C,3,FALSE),F6789)","v":"Prêts hypothécaires assurés au cours de la période selon le milieu urbain/rural (%)"},{"$f":"IFERROR(VLOOKUP(G6789,Translation!$A:$C,3,FALSE),G6789)","v":"93.8"},{"$f":"IFERROR(VLOOKUP(H6789,Translation!$A:$C,3,FALSE),H6789)","v":0}]
[18,"Q3 2016","ASSURANCE DE PORTEFEUILLE","Nouvelle-Écosse",94.535519125683038,"Prêts hypothécaires assurés au cours de la période selon le milieu urbain/rural (%)","94.5",0,{"$f":"IFERROR(VLOOKUP(A6791,Translation!$A:$C,3,FALSE),A6791)","v":18},{"$f":"IFERROR(VLOOKUP(B6791,Translation!$A:$C,3,FALSE),B6791)","v":"Q3 2016"},{"$f":"IFERROR(VLOOKUP(C6791,Translation!$A:$C,3,FALSE),C6791)","v":"ASSURANCE DE PORTEFEUILLE"},{"$f":"IFERROR(VLOOKUP(D6791,Translation!$A:$C,3,FALSE),D6791)","v":"Nouvelle-Écosse"},{"$f":"IFERROR(VLOOKUP(E6791,Translation!$A:$C,3,FALSE),E6791)","v":94.535519125683038},{"$f":"IFERROR(VLOOKUP(F6791,Translation!$A:$C,3,FALSE),F6791)","v":"Prêts hypothécaires assurés au cours de la période selon le milieu urbain/rural (%)"},{"$f":"IFERROR(VLOOKUP(G6791,Translation!$A:$C,3,FALSE),G6791)","v":"94.5"},{"$f":"IFERROR(VLOOKUP(H6791,Translation!$A:$C,3,FALSE),H6791)","v":0}]
[18,"T4 2017","ASSURANCE DE PORTEFEUILLE","Nouvelle-Écosse",95.50561797752809,"Prêts hypothécaires assurés au cours de la période selon le milieu urbain/rural (%)","95.5",0,{"$f":"IFERROR(VLOOKUP(A6794,Translation!$A:$C,3,FALSE),A6794)","v":18},{"$f":"IFERROR(VLOOKUP(B6794,Translation!$A:$C,3,FALSE),B6794)","v":"T4 2017"},{"$f":"IFERROR(VLOOKUP(C6794,Translation!$A:$C,3,FALSE),C6794)","v":"ASSURANCE DE PORTEFEUILLE"},{"$f":"IFERROR(VLOOKUP(D6794,Translation!$A:$C,3,FALSE),D6794)","v":"Nouvelle-Écosse"},{"$f":"IFERROR(VLOOKUP(E6794,Translation!$A:$C,3,FALSE),E6794)","v":95.50561797752809},{"$f":"IFERROR(VLOOKUP(F6794,Translation!$A:$C,3,FALSE),F6794)","v":"Prêts hypothécaires assurés au cours de la période selon le milieu urbain/rural (%)"},{"$f":"IFERROR(VLOOKUP(G6794,Translation!$A:$C,3,FALSE),G6794)","v":"95.5"},{"$f":"IFERROR(VLOOKUP(H6794,Translation!$A:$C,3,FALSE),H6794)","v":0}]
[18,"Q2 2016","ASSURANCE DE PORTEFEUILLE","Nouveau-Brunswick",71.037181996086119,"Prêts hypothécaires assurés au cours de la période selon le milieu urbain/rural (%)","71.0",0,{"$f":"IFERROR(VLOOKUP(A6797,Translation!$A:$C,3,FALSE),A6797)","v":18},{"$f":"IFERROR(VLOOKUP(B6797,Translation!$A:$C,3,FALSE),B6797)","v":"Q2 2016"},{"$f":"IFERROR(VLOOKUP(C6797,Translation!$A:$C,3,FALSE),C6797)","v":"ASSURANCE DE PORTEFEUILLE"},{"$f":"IFERROR(VLOOKUP(D6797,Translation!$A:$C,3,FALSE),D6797)","v":"Nouveau-Brunswick"},{"$f":"IFERROR(VLOOKUP(E6797,Translation!$A:$C,3,FALSE),E6797)","v":71.037181996086119},{"$f":"IFERROR(VLOOKUP(F6797,Translation!$A:$C,3,FALSE),F6797)","v":"Prêts hypothécaires assurés au cours de la période selon le milieu urbain/rural (%)"},{"$f":"IFERROR(VLOOKUP(G6797,Translation!$A:$C,3,FALSE),G6797)","v":"71.0"},{"$f":"IFERROR(VLOOKUP(H6797,Translation!$A:$C,3,FALSE),H6797)","v":0}]
[18,"T2 2017","ASSURANCE DE PORTEFEUILLE","Nouveau-Brunswick",100,"Prêts hypothécaires assurés au cours de la période selon le milieu urbain/rural (%)","100.0",0,{"$f":"IFERROR(VLOOKUP(A6798,Translation!$A:$C,3,FALSE),A6798)","v":18},{"$f":"IFERROR(VLOOKUP(B6798,Translation!$A:$C,3,FALSE),B6798)","v":"T2 2017"},{"$f":"IFERROR(VLOOKUP(C6798,Translation!$A:$C,3,FALSE),C6798)","v":"ASSURANCE DE PORTEFEUILLE"},{"$f":"IFERROR(VLOOKUP(D6798,Translation!$A:$C,3,FALSE),D6798)","v":"Nouveau-Brunswick"},{"$f":"IFERROR(VLOOKUP(E6798,Translation!$A:$C,3,FALSE),E6798)","v":100},{"$f":"IFERROR(VLOOKUP(F6798,Translation!$A:$C,3,FALSE),F6798)","v":"Prêts hypothécaires assurés au cours de la période selon le milieu urbain/rural (%)"},{"$f":"IFERROR(VLOOKUP(G6798,Translation!$A:$C,3,FALSE),G6798)","v":"100.0"},{"$f":"IFERROR(VLOOKUP(H6798,Translation!$A:$C,3,FALSE),H6798)","v":0}]
[18,"Q3 2016","ASSURANCE DE PORTEFEUILLE","Nouveau-Brunswick",75.280898876404493,"Prêts hypothécaires assurés au cours de la période selon le milieu urbain/rural (%)","75.3",0,{"$f":"IFERROR(VLOOKUP(A6799,Translation!$A:$C,3,FALSE),A6799)","v":18},{"$f":"IFERROR(VLOOKUP(B6799,Translation!$A:$C,3,FALSE),B6799)","v":"Q3 2016"},{"$f":"IFERROR(VLOOKUP(C6799,Translation!$A:$C,3,FALSE),C6799)","v":"ASSURANCE DE PORTEFEUILLE"},{"$f":"IFERROR(VLOOKUP(D6799,Translation!$A:$C,3,FALSE),D6799)","v":"Nouveau-Brunswick"},{"$f":"IFERROR(VLOOKUP(E6799,Translation!$A:$C,3,FALSE),E6799)","v":75.280898876404493},{"$f":"IFERROR(VLOOKUP(F6799,Translation!$A:$C,3,FALSE),F6799)","v":"Prêts hypothécaires assurés au cours de la période selon le milieu urbain/rural (%)"},{"$f":"IFERROR(VLOOKUP(G6799,Translation!$A:$C,3,FALSE),G6799)","v":"75.3"},{"$f":"IFERROR(VLOOKUP(H6799,Translation!$A:$C,3,FALSE),H6799)","v":0}]
[18,"T3 2017","ASSURANCE DE PORTEFEUILLE","Nouveau-Brunswick",100,"Prêts hypothécaires assurés au cours de la période selon le milieu urbain/rural (%)","100.0",0,{"$f":"IFERROR(VLOOKUP(A6800,Translation!$A:$C,3,FALSE),A6800)","v":18},{"$f":"IFERROR(VLOOKUP(B6800,Translation!$A:$C,3,FALSE),B6800)","v":"T3 2017"},{"$f":"IFERROR(VLOOKUP(C6800,Translation!$A:$C,3,FALSE),C6800)","v":"ASSURANCE DE PORTEFEUILLE"},{"$f":"IFERROR(VLOOKUP(D6800,Translation!$A:$C,3,FALSE),D6800)","v":"Nouveau-Brunswick"},{"$f":"IFERROR(VLOOKUP(E6800,Translation!$A:$C,3,FALSE),E6800)","v":100},{"$f":"IFERROR(VLOOKUP(F6800,Translation!$A:$C,3,FALSE),F6800)","v":"Prêts hypothécaires assurés au cours de la période selon le milieu urbain/rural (%)"},{"$f":"IFERROR(VLOOKUP(G6800,Translation!$A:$C,3,FALSE),G6800)","v":"100.0"},{"$f":"IFERROR(VLOOKUP(H6800,Translation!$A:$C,3,FALSE),H6800)","v":0}]
[18,"Q4 2016","ASSURANCE DE PORTEFEUILLE","Nouveau-Brunswick",72.440944881889763,"Prêts hypothécaires assurés au cours de la période selon le milieu urbain/rural (%)","72.4",0,{"$f":"IFERROR(VLOOKUP(A6801,Translation!$A:$C,3,FALSE),A6801)","v":18},{"$f":"IFERROR(VLOOKUP(B6801,Translation!$A:$C,3,FALSE),B6801)","v":"Q4 2016"},{"$f":"IFERROR(VLOOKUP(C6801,Translation!$A:$C,3,FALSE),C6801)","v":"ASSURANCE DE PORTEFEUILLE"},{"$f":"IFERROR(VLOOKUP(D6801,Translation!$A:$C,3,FALSE),D6801)","v":"Nouveau-Brunswick"},{"$f":"IFERROR(VLOOKUP(E6801,Translation!$A:$C,3,FALSE),E6801)","v":72.440944881889763},{"$f":"IFERROR(VLOOKUP(F6801,Translation!$A:$C,3,FALSE),F6801)","v":"Prêts hypothécaires assurés au cours de la période selon le milieu urbain/rural (%)"},{"$f":"IFERROR(VLOOKUP(G6801,Translation!$A:$C,3,FALSE),G6801)","v":"72.4"},{"$f":"IFERROR(VLOOKUP(H6801,Translation!$A:$C,3,FALSE),H6801)","v":0}]
[18,"T4 2017","ASSURANCE DE PORTEFEUILLE","Nouveau-Brunswick",85.18518518518519,"Prêts hypothécaires assurés au cours de la période selon le milieu urbain/rural (%)","85.2",0,{"$f":"IFERROR(VLOOKUP(A6802,Translation!$A:$C,3,FALSE),A6802)","v":18},{"$f":"IFERROR(VLOOKUP(B6802,Translation!$A:$C,3,FALSE),B6802)","v":"T4 2017"},{"$f":"IFERROR(VLOOKUP(C6802,Translation!$A:$C,3,FALSE),C6802)","v":"ASSURANCE DE PORTEFEUILLE"},{"$f":"IFERROR(VLOOKUP(D6802,Translation!$A:$C,3,FALSE),D6802)","v":"Nouveau-Brunswick"},{"$f":"IFERROR(VLOOKUP(E6802,Translation!$A:$C,3,FALSE),E6802)","v":85.18518518518519},{"$f":"IFERROR(VLOOKUP(F6802,Translation!$A:$C,3,FALSE),F6802)","v":"Prêts hypothécaires assurés au cours de la période selon le milieu urbain/rural (%)"},{"$f":"IFERROR(VLOOKUP(G6802,Translation!$A:$C,3,FALSE),G6802)","v":"85.2"},{"$f":"IFERROR(VLOOKUP(H6802,Translation!$A:$C,3,FALSE),H6802)","v":0}]
[18,"T1 2017","ASSURANCE DE PORTEFEUILLE","Québec",89.026915113871652,"Prêts hypothécaires assurés au cours de la période selon le milieu urbain/rural (%)","89.0",0,{"$f":"IFERROR(VLOOKUP(A6803,Translation!$A:$C,3,FALSE),A6803)","v":18},{"$f":"IFERROR(VLOOKUP(B6803,Translation!$A:$C,3,FALSE),B6803)","v":"T1 2017"},{"$f":"IFERROR(VLOOKUP(C6803,Translation!$A:$C,3,FALSE),C6803)","v":"ASSURANCE DE PORTEFEUILLE"},{"$f":"IFERROR(VLOOKUP(D6803,Translation!$A:$C,3,FALSE),D6803)","v":"Québec"},{"$f":"IFERROR(VLOOKUP(E6803,Translation!$A:$C,3,FALSE),E6803)","v":89.026915113871652},{"$f":"IFERROR(VLOOKUP(F6803,Translation!$A:$C,3,FALSE),F6803)","v":"Prêts hypothécaires assurés au cours de la période selon le milieu urbain/rural (%)"},{"$f":"IFERROR(VLOOKUP(G6803,Translation!$A:$C,3,FALSE),G6803)","v":"89.0"},{"$f":"IFERROR(VLOOKUP(H6803,Translation!$A:$C,3,FALSE),H6803)","v":0}]
[18,"T1 2018","ASSURANCE DE PORTEFEUILLE","Québec",96.981132075471692,"Prêts hypothécaires assurés au cours de la période selon le milieu urbain/rural (%)","97.0",0,{"$f":"IFERROR(VLOOKUP(A6804,Translation!$A:$C,3,FALSE),A6804)","v":18},{"$f":"IFERROR(VLOOKUP(B6804,Translation!$A:$C,3,FALSE),B6804)","v":"T1 2018"},{"$f":"IFERROR(VLOOKUP(C6804,Translation!$A:$C,3,FALSE),C6804)","v":"ASSURANCE DE PORTEFEUILLE"},{"$f":"IFERROR(VLOOKUP(D6804,Translation!$A:$C,3,FALSE),D6804)","v":"Québec"},{"$f":"IFERROR(VLOOKUP(E6804,Translation!$A:$C,3,FALSE),E6804)","v":96.981132075471692},{"$f":"IFERROR(VLOOKUP(F6804,Translation!$A:$C,3,FALSE),F6804)","v":"Prêts hypothécaires assurés au cours de la période selon le milieu urbain/rural (%)"},{"$f":"IFERROR(VLOOKUP(G6804,Translation!$A:$C,3,FALSE),G6804)","v":"97.0"},{"$f":"IFERROR(VLOOKUP(H6804,Translation!$A:$C,3,FALSE),H6804)","v":0}]
[18,"Q2 2016","ASSURANCE DE PORTEFEUILLE","Québec",90.866821653935546,"Prêts hypothécaires assurés au cours de la période selon le milieu urbain/rural (%)","90.9",0,{"$f":"IFERROR(VLOOKUP(A6805,Translation!$A:$C,3,FALSE),A6805)","v":18},{"$f":"IFERROR(VLOOKUP(B6805,Translation!$A:$C,3,FALSE),B6805)","v":"Q2 2016"},{"$f":"IFERROR(VLOOKUP(C6805,Translation!$A:$C,3,FALSE),C6805)","v":"ASSURANCE DE PORTEFEUILLE"},{"$f":"IFERROR(VLOOKUP(D6805,Translation!$A:$C,3,FALSE),D6805)","v":"Québec"},{"$f":"IFERROR(VLOOKUP(E6805,Translation!$A:$C,3,FALSE),E6805)","v":90.866821653935546},{"$f":"IFERROR(VLOOKUP(F6805,Translation!$A:$C,3,FALSE),F6805)","v":"Prêts hypothécaires assurés au cours de la période selon le milieu urbain/rural (%)"},{"$f":"IFERROR(VLOOKUP(G6805,Translation!$A:$C,3,FALSE),G6805)","v":"90.9"},{"$f":"IFERROR(VLOOKUP(H6805,Translation!$A:$C,3,FALSE),H6805)","v":0}]
[18,"T2 2017","ASSURANCE DE PORTEFEUILLE","Québec",92.010535557506572,"Prêts hypothécaires assurés au cours de la période selon le milieu urbain/rural (%)","92.0",0,{"$f":"IFERROR(VLOOKUP(A6806,Translation!$A:$C,3,FALSE),A6806)","v":18},{"$f":"IFERROR(VLOOKUP(B6806,Translation!$A:$C,3,FALSE),B6806)","v":"T2 2017"},{"$f":"IFERROR(VLOOKUP(C6806,Translation!$A:$C,3,FALSE),C6806)","v":"ASSURANCE DE PORTEFEUILLE"},{"$f":"IFERROR(VLOOKUP(D6806,Translation!$A:$C,3,FALSE),D6806)","v":"Québec"},{"$f":"IFERROR(VLOOKUP(E6806,Translation!$A:$C,3,FALSE),E6806)","v":92.010535557506572},{"$f":"IFERROR(VLOOKUP(F6806,Translation!$A:$C,3,FALSE),F6806)","v":"Prêts hypothécaires assurés au cours de la période selon le milieu urbain/rural (%)"},{"$f":"IFERROR(VLOOKUP(G6806,Translation!$A:$C,3,FALSE),G6806)","v":"92.0"},{"$f":"IFERROR(VLOOKUP(H6806,Translation!$A:$C,3,FALSE),H6806)","v":0}]
[18,"Q3 2016","ASSURANCE DE PORTEFEUILLE","Québec",90.616411464468001,"Prêts hypothécaires assurés au cours de la période selon le milieu urbain/rural (%)","90.6",0,{"$f":"IFERROR(VLOOKUP(A6807,Translation!$A:$C,3,FALSE),A6807)","v":18},{"$f":"IFERROR(VLOOKUP(B6807,Translation!$A:$C,3,FALSE),B6807)","v":"Q3 2016"},{"$f":"IFERROR(VLOOKUP(C6807,Translation!$A:$C,3,FALSE),C6807)","v":"ASSURANCE DE PORTEFEUILLE"},{"$f":"IFERROR(VLOOKUP(D6807,Translation!$A:$C,3,FALSE),D6807)","v":"Québec"},{"$f":"IFERROR(VLOOKUP(E6807,Translation!$A:$C,3,FALSE),E6807)","v":90.616411464468001},{"$f":"IFERROR(VLOOKUP(F6807,Translation!$A:$C,3,FALSE),F6807)","v":"Prêts hypothécaires assurés au cours de la période selon le milieu urbain/rural (%)"},{"$f":"IFERROR(VLOOKUP(G6807,Translation!$A:$C,3,FALSE),G6807)","v":"90.6"},{"$f":"IFERROR(VLOOKUP(H6807,Translation!$A:$C,3,FALSE),H6807)","v":0}]
[18,"T3 2017","ASSURANCE DE PORTEFEUILLE","Québec",84.246575342465761,"Prêts hypothécaires assurés au cours de la période selon le milieu urbain/rural (%)","84.2",0,{"$f":"IFERROR(VLOOKUP(A6808,Translation!$A:$C,3,FALSE),A6808)","v":18},{"$f":"IFERROR(VLOOKUP(B6808,Translation!$A:$C,3,FALSE),B6808)","v":"T3 2017"},{"$f":"IFERROR(VLOOKUP(C6808,Translation!$A:$C,3,FALSE),C6808)","v":"ASSURANCE DE PORTEFEUILLE"},{"$f":"IFERROR(VLOOKUP(D6808,Translation!$A:$C,3,FALSE),D6808)","v":"Québec"},{"$f":"IFERROR(VLOOKUP(E6808,Translation!$A:$C,3,FALSE),E6808)","v":84.246575342465761},{"$f":"IFERROR(VLOOKUP(F6808,Translation!$A:$C,3,FALSE),F6808)","v":"Prêts hypothécaires assurés au cours de la période selon le milieu urbain/rural (%)"},{"$f":"IFERROR(VLOOKUP(G6808,Translation!$A:$C,3,FALSE),G6808)","v":"84.2"},{"$f":"IFERROR(VLOOKUP(H6808,Translation!$A:$C,3,FALSE),H6808)","v":0}]
[18,"Q4 2016","ASSURANCE DE PORTEFEUILLE","Québec",87.461564742056737,"Prêts hypothécaires assurés au cours de la période selon le milieu urbain/rural (%)","87.5",0,{"$f":"IFERROR(VLOOKUP(A6809,Translation!$A:$C,3,FALSE),A6809)","v":18},{"$f":"IFERROR(VLOOKUP(B6809,Translation!$A:$C,3,FALSE),B6809)","v":"Q4 2016"},{"$f":"IFERROR(VLOOKUP(C6809,Translation!$A:$C,3,FALSE),C6809)","v":"ASSURANCE DE PORTEFEUILLE"},{"$f":"IFERROR(VLOOKUP(D6809,Translation!$A:$C,3,FALSE),D6809)","v":"Québec"},{"$f":"IFERROR(VLOOKUP(E6809,Translation!$A:$C,3,FALSE),E6809)","v":87.461564742056737},{"$f":"IFERROR(VLOOKUP(F6809,Translation!$A:$C,3,FALSE),F6809)","v":"Prêts hypothécaires assurés au cours de la période selon le milieu urbain/rural (%)"},{"$f":"IFERROR(VLOOKUP(G6809,Translation!$A:$C,3,FALSE),G6809)","v":"87.5"},{"$f":"IFERROR(VLOOKUP(H6809,Translation!$A:$C,3,FALSE),H6809)","v":0}]
[18,"T4 2017","ASSURANCE DE PORTEFEUILLE","Québec",93.025447690857675,"Prêts hypothécaires assurés au cours de la période selon le milieu urbain/rural (%)","93.0",0,{"$f":"IFERROR(VLOOKUP(A6810,Translation!$A:$C,3,FALSE),A6810)","v":18},{"$f":"IFERROR(VLOOKUP(B6810,Translation!$A:$C,3,FALSE),B6810)","v":"T4 2017"},{"$f":"IFERROR(VLOOKUP(C6810,Translation!$A:$C,3,FALSE),C6810)","v":"ASSURANCE DE PORTEFEUILLE"},{"$f":"IFERROR(VLOOKUP(D6810,Translation!$A:$C,3,FALSE),D6810)","v":"Québec"},{"$f":"IFERROR(VLOOKUP(E6810,Translation!$A:$C,3,FALSE),E6810)","v":93.025447690857675},{"$f":"IFERROR(VLOOKUP(F6810,Translation!$A:$C,3,FALSE),F6810)","v":"Prêts hypothécaires assurés au cours de la période selon le milieu urbain/rural (%)"},{"$f":"IFERROR(VLOOKUP(G6810,Translation!$A:$C,3,FALSE),G6810)","v":"93.0"},{"$f":"IFERROR(VLOOKUP(H6810,Translation!$A:$C,3,FALSE),H6810)","v":0}]
[18,"T1 2017","ASSURANCE DE PORTEFEUILLE","Ontario",94.729542302357842,"Prêts hypothécaires assurés au cours de la période selon le milieu urbain/rural (%)","94.7",0,{"$f":"IFERROR(VLOOKUP(A6811,Translation!$A:$C,3,FALSE),A6811)","v":18},{"$f":"IFERROR(VLOOKUP(B6811,Translation!$A:$C,3,FALSE),B6811)","v":"T1 2017"},{"$f":"IFERROR(VLOOKUP(C6811,Translation!$A:$C,3,FALSE),C6811)","v":"ASSURANCE DE PORTEFEUILLE"},{"$f":"IFERROR(VLOOKUP(D6811,Translation!$A:$C,3,FALSE),D6811)","v":"Ontario"},{"$f":"IFERROR(VLOOKUP(E6811,Translation!$A:$C,3,FALSE),E6811)","v":94.729542302357842},{"$f":"IFERROR(VLOOKUP(F6811,Translation!$A:$C,3,FALSE),F6811)","v":"Prêts hypothécaires assurés au cours de la période selon le milieu urbain/rural (%)"},{"$f":"IFERROR(VLOOKUP(G6811,Translation!$A:$C,3,FALSE),G6811)","v":"94.7"},{"$f":"IFERROR(VLOOKUP(H6811,Translation!$A:$C,3,FALSE),H6811)","v":0}]
[18,"T1 2018","ASSURANCE DE PORTEFEUILLE","Ontario",93.087121212121218,"Prêts hypothécaires assurés au cours de la période selon le milieu urbain/rural (%)","93.1",0,{"$f":"IFERROR(VLOOKUP(A6812,Translation!$A:$C,3,FALSE),A6812)","v":18},{"$f":"IFERROR(VLOOKUP(B6812,Translation!$A:$C,3,FALSE),B6812)","v":"T1 2018"},{"$f":"IFERROR(VLOOKUP(C6812,Translation!$A:$C,3,FALSE),C6812)","v":"ASSURANCE DE PORTEFEUILLE"},{"$f":"IFERROR(VLOOKUP(D6812,Translation!$A:$C,3,FALSE),D6812)","v":"Ontario"},{"$f":"IFERROR(VLOOKUP(E6812,Translation!$A:$C,3,FALSE),E6812)","v":93.087121212121218},{"$f":"IFERROR(VLOOKUP(F6812,Translation!$A:$C,3,FALSE),F6812)","v":"Prêts hypothécaires assurés au cours de la période selon le milieu urbain/rural (%)"},{"$f":"IFERROR(VLOOKUP(G6812,Translation!$A:$C,3,FALSE),G6812)","v":"93.1"},{"$f":"IFERROR(VLOOKUP(H6812,Translation!$A:$C,3,FALSE),H6812)","v":0}]
[18,"Q2 2016","ASSURANCE DE PORTEFEUILLE","Ontario",94.308103511116499,"Prêts hypothécaires assurés au cours de la période selon le milieu urbain/rural (%)","94.3",0,{"$f":"IFERROR(VLOOKUP(A6813,Translation!$A:$C,3,FALSE),A6813)","v":18},{"$f":"IFERROR(VLOOKUP(B6813,Translation!$A:$C,3,FALSE),B6813)","v":"Q2 2016"},{"$f":"IFERROR(VLOOKUP(C6813,Translation!$A:$C,3,FALSE),C6813)","v":"ASSURANCE DE PORTEFEUILLE"},{"$f":"IFERROR(VLOOKUP(D6813,Translation!$A:$C,3,FALSE),D6813)","v":"Ontario"},{"$f":"IFERROR(VLOOKUP(E6813,Translation!$A:$C,3,FALSE),E6813)","v":94.308103511116499},{"$f":"IFERROR(VLOOKUP(F6813,Translation!$A:$C,3,FALSE),F6813)","v":"Prêts hypothécaires assurés au cours de la période selon le milieu urbain/rural (%)"},{"$f":"IFERROR(VLOOKUP(G6813,Translation!$A:$C,3,FALSE),G6813)","v":"94.3"},{"$f":"IFERROR(VLOOKUP(H6813,Translation!$A:$C,3,FALSE),H6813)","v":0}]
[18,"T2 2017","ASSURANCE DE PORTEFEUILLE","Ontario",98.673184357541942,"Prêts hypothécaires assurés au cours de la période selon le milieu urbain/rural (%)","98.7",0,{"$f":"IFERROR(VLOOKUP(A6814,Translation!$A:$C,3,FALSE),A6814)","v":18},{"$f":"IFERROR(VLOOKUP(B6814,Translation!$A:$C,3,FALSE),B6814)","v":"T2 2017"},{"$f":"IFERROR(VLOOKUP(C6814,Translation!$A:$C,3,FALSE),C6814)","v":"ASSURANCE DE PORTEFEUILLE"},{"$f":"IFERROR(VLOOKUP(D6814,Translation!$A:$C,3,FALSE),D6814)","v":"Ontario"},{"$f":"IFERROR(VLOOKUP(E6814,Translation!$A:$C,3,FALSE),E6814)","v":98.673184357541942},{"$f":"IFERROR(VLOOKUP(F6814,Translation!$A:$C,3,FALSE),F6814)","v":"Prêts hypothécaires assurés au cours de la période selon le milieu urbain/rural (%)"},{"$f":"IFERROR(VLOOKUP(G6814,Translation!$A:$C,3,FALSE),G6814)","v":"98.7"},{"$f":"IFERROR(VLOOKUP(H6814,Translation!$A:$C,3,FALSE),H6814)","v":0}]
[18,"Q3 2016","ASSURANCE DE PORTEFEUILLE","Ontario",95.51256213892249,"Prêts hypothécaires assurés au cours de la période selon le milieu urbain/rural (%)","95.5",0,{"$f":"IFERROR(VLOOKUP(A6815,Translation!$A:$C,3,FALSE),A6815)","v":18},{"$f":"IFERROR(VLOOKUP(B6815,Translation!$A:$C,3,FALSE),B6815)","v":"Q3 2016"},{"$f":"IFERROR(VLOOKUP(C6815,Translation!$A:$C,3,FALSE),C6815)","v":"ASSURANCE DE PORTEFEUILLE"},{"$f":"IFERROR(VLOOKUP(D6815,Translation!$A:$C,3,FALSE),D6815)","v":"Ontario"},{"$f":"IFERROR(VLOOKUP(E6815,Translation!$A:$C,3,FALSE),E6815)","v":95.51256213892249},{"$f":"IFERROR(VLOOKUP(F6815,Translation!$A:$C,3,FALSE),F6815)","v":"Prêts hypothécaires assurés au cours de la période selon le milieu urbain/rural (%)"},{"$f":"IFERROR(VLOOKUP(G6815,Translation!$A:$C,3,FALSE),G6815)","v":"95.5"},{"$f":"IFERROR(VLOOKUP(H6815,Translation!$A:$C,3,FALSE),H6815)","v":0}]
[18,"T3 2017","ASSURANCE DE PORTEFEUILLE","Ontario",95.074276778733406,"Prêts hypothécaires assurés au cours de la période selon le milieu urbain/rural (%)","95.1",0,{"$f":"IFERROR(VLOOKUP(A6816,Translation!$A:$C,3,FALSE),A6816)","v":18},{"$f":"IFERROR(VLOOKUP(B6816,Translation!$A:$C,3,FALSE),B6816)","v":"T3 2017"},{"$f":"IFERROR(VLOOKUP(C6816,Translation!$A:$C,3,FALSE),C6816)","v":"ASSURANCE DE PORTEFEUILLE"},{"$f":"IFERROR(VLOOKUP(D6816,Translation!$A:$C,3,FALSE),D6816)","v":"Ontario"},{"$f":"IFERROR(VLOOKUP(E6816,Translation!$A:$C,3,FALSE),E6816)","v":95.074276778733406},{"$f":"IFERROR(VLOOKUP(F6816,Translation!$A:$C,3,FALSE),F6816)","v":"Prêts hypothécaires assurés au cours de la période selon le milieu urbain/rural (%)"},{"$f":"IFERROR(VLOOKUP(G6816,Translation!$A:$C,3,FALSE),G6816)","v":"95.1"},{"$f":"IFERROR(VLOOKUP(H6816,Translation!$A:$C,3,FALSE),H6816)","v":0}]
[18,"Q4 2016","ASSURANCE DE PORTEFEUILLE","Ontario",95.785671282359985,"Prêts hypothécaires assurés au cours de la période selon le milieu urbain/rural (%)","95.8",0,{"$f":"IFERROR(VLOOKUP(A6817,Translation!$A:$C,3,FALSE),A6817)","v":18},{"$f":"IFERROR(VLOOKUP(B6817,Translation!$A:$C,3,FALSE),B6817)","v":"Q4 2016"},{"$f":"IFERROR(VLOOKUP(C6817,Translation!$A:$C,3,FALSE),C6817)","v":"ASSURANCE DE PORTEFEUILLE"},{"$f":"IFERROR(VLOOKUP(D6817,Translation!$A:$C,3,FALSE),D6817)","v":"Ontario"},{"$f":"IFERROR(VLOOKUP(E6817,Translation!$A:$C,3,FALSE),E6817)","v":95.785671282359985},{"$f":"IFERROR(VLOOKUP(F6817,Translation!$A:$C,3,FALSE),F6817)","v":"Prêts hypothécaires assurés au cours de la période selon le milieu urbain/rural (%)"},{"$f":"IFERROR(VLOOKUP(G6817,Translation!$A:$C,3,FALSE),G6817)","v":"95.8"},{"$f":"IFERROR(VLOOKUP(H6817,Translation!$A:$C,3,FALSE),H6817)","v":0}]
[18,"T4 2017","ASSURANCE DE PORTEFEUILLE","Ontario",94.267364414843001,"Prêts hypothécaires assurés au cours de la période selon le milieu urbain/rural (%)","94.3",0,{"$f":"IFERROR(VLOOKUP(A6818,Translation!$A:$C,3,FALSE),A6818)","v":18},{"$f":"IFERROR(VLOOKUP(B6818,Translation!$A:$C,3,FALSE),B6818)","v":"T4 2017"},{"$f":"IFERROR(VLOOKUP(C6818,Translation!$A:$C,3,FALSE),C6818)","v":"ASSURANCE DE PORTEFEUILLE"},{"$f":"IFERROR(VLOOKUP(D6818,Translation!$A:$C,3,FALSE),D6818)","v":"Ontario"},{"$f":"IFERROR(VLOOKUP(E6818,Translation!$A:$C,3,FALSE),E6818)","v":94.267364414843001},{"$f":"IFERROR(VLOOKUP(F6818,Translation!$A:$C,3,FALSE),F6818)","v":"Prêts hypothécaires assurés au cours de la période selon le milieu urbain/rural (%)"},{"$f":"IFERROR(VLOOKUP(G6818,Translation!$A:$C,3,FALSE),G6818)","v":"94.3"},{"$f":"IFERROR(VLOOKUP(H6818,Translation!$A:$C,3,FALSE),H6818)","v":0}]
[18,"T1 2017","ASSURANCE DE PORTEFEUILLE","Manitoba",89.285714285714306,"Prêts hypothécaires assurés au cours de la période selon le milieu urbain/rural (%)","89.3",0,{"$f":"IFERROR(VLOOKUP(A6819,Translation!$A:$C,3,FALSE),A6819)","v":18},{"$f":"IFERROR(VLOOKUP(B6819,Translation!$A:$C,3,FALSE),B6819)","v":"T1 2017"},{"$f":"IFERROR(VLOOKUP(C6819,Translation!$A:$C,3,FALSE),C6819)","v":"ASSURANCE DE PORTEFEUILLE"},{"$f":"IFERROR(VLOOKUP(D6819,Translation!$A:$C,3,FALSE),D6819)","v":"Manitoba"},{"$f":"IFERROR(VLOOKUP(E6819,Translation!$A:$C,3,FALSE),E6819)","v":89.285714285714306},{"$f":"IFERROR(VLOOKUP(F6819,Translation!$A:$C,3,FALSE),F6819)","v":"Prêts hypothécaires assurés au cours de la période selon le milieu urbain/rural (%)"},{"$f":"IFERROR(VLOOKUP(G6819,Translation!$A:$C,3,FALSE),G6819)","v":"89.3"},{"$f":"IFERROR(VLOOKUP(H6819,Translation!$A:$C,3,FALSE),H6819)","v":0}]
[18,"T1 2018","ASSURANCE DE PORTEFEUILLE","Manitoba",90.909090909090892,"Prêts hypothécaires assurés au cours de la période selon le milieu urbain/rural (%)","90.9",0,{"$f":"IFERROR(VLOOKUP(A6820,Translation!$A:$C,3,FALSE),A6820)","v":18},{"$f":"IFERROR(VLOOKUP(B6820,Translation!$A:$C,3,FALSE),B6820)","v":"T1 2018"},{"$f":"IFERROR(VLOOKUP(C6820,Translation!$A:$C,3,FALSE),C6820)","v":"ASSURANCE DE PORTEFEUILLE"},{"$f":"IFERROR(VLOOKUP(D6820,Translation!$A:$C,3,FALSE),D6820)","v":"Manitoba"},{"$f":"IFERROR(VLOOKUP(E6820,Translation!$A:$C,3,FALSE),E6820)","v":90.909090909090892},{"$f":"IFERROR(VLOOKUP(F6820,Translation!$A:$C,3,FALSE),F6820)","v":"Prêts hypothécaires assurés au cours de la période selon le milieu urbain/rural (%)"},{"$f":"IFERROR(VLOOKUP(G6820,Translation!$A:$C,3,FALSE),G6820)","v":"90.9"},{"$f":"IFERROR(VLOOKUP(H6820,Translation!$A:$C,3,FALSE),H6820)","v":0}]
[18,"Q2 2016","ASSURANCE DE PORTEFEUILLE","Manitoba",80.303030303030297,"Prêts hypothécaires assurés au cours de la période selon le milieu urbain/rural (%)","80.3",0,{"$f":"IFERROR(VLOOKUP(A6821,Translation!$A:$C,3,FALSE),A6821)","v":18},{"$f":"IFERROR(VLOOKUP(B6821,Translation!$A:$C,3,FALSE),B6821)","v":"Q2 2016"},{"$f":"IFERROR(VLOOKUP(C6821,Translation!$A:$C,3,FALSE),C6821)","v":"ASSURANCE DE PORTEFEUILLE"},{"$f":"IFERROR(VLOOKUP(D6821,Translation!$A:$C,3,FALSE),D6821)","v":"Manitoba"},{"$f":"IFERROR(VLOOKUP(E6821,Translation!$A:$C,3,FALSE),E6821)","v":80.303030303030297},{"$f":"IFERROR(VLOOKUP(F6821,Translation!$A:$C,3,FALSE),F6821)","v":"Prêts hypothécaires assurés au cours de la période selon le milieu urbain/rural (%)"},{"$f":"IFERROR(VLOOKUP(G6821,Translation!$A:$C,3,FALSE),G6821)","v":"80.3"},{"$f":"IFERROR(VLOOKUP(H6821,Translation!$A:$C,3,FALSE),H6821)","v":0}]
[18,"T2 2017","ASSURANCE DE PORTEFEUILLE","Manitoba",100,"Prêts hypothécaires assurés au cours de la période selon le milieu urbain/rural (%)","100.0",0,{"$f":"IFERROR(VLOOKUP(A6822,Translation!$A:$C,3,FALSE),A6822)","v":18},{"$f":"IFERROR(VLOOKUP(B6822,Translation!$A:$C,3,FALSE),B6822)","v":"T2 2017"},{"$f":"IFERROR(VLOOKUP(C6822,Translation!$A:$C,3,FALSE),C6822)","v":"ASSURANCE DE PORTEFEUILLE"},{"$f":"IFERROR(VLOOKUP(D6822,Translation!$A:$C,3,FALSE),D6822)","v":"Manitoba"},{"$f":"IFERROR(VLOOKUP(E6822,Translation!$A:$C,3,FALSE),E6822)","v":100},{"$f":"IFERROR(VLOOKUP(F6822,Translation!$A:$C,3,FALSE),F6822)","v":"Prêts hypothécaires assurés au cours de la période selon le milieu urbain/rural (%)"},{"$f":"IFERROR(VLOOKUP(G6822,Translation!$A:$C,3,FALSE),G6822)","v":"100.0"},{"$f":"IFERROR(VLOOKUP(H6822,Translation!$A:$C,3,FALSE),H6822)","v":0}]
[18,"Q3 2016","ASSURANCE DE PORTEFEUILLE","Manitoba",92.039800995024876,"Prêts hypothécaires assurés au cours de la période selon le milieu urbain/rural (%)","92.0",0,{"$f":"IFERROR(VLOOKUP(A6823,Translation!$A:$C,3,FALSE),A6823)","v":18},{"$f":"IFERROR(VLOOKUP(B6823,Translation!$A:$C,3,FALSE),B6823)","v":"Q3 2016"},{"$f":"IFERROR(VLOOKUP(C6823,Translation!$A:$C,3,FALSE),C6823)","v":"ASSURANCE DE PORTEFEUILLE"},{"$f":"IFERROR(VLOOKUP(D6823,Translation!$A:$C,3,FALSE),D6823)","v":"Manitoba"},{"$f":"IFERROR(VLOOKUP(E6823,Translation!$A:$C,3,FALSE),E6823)","v":92.039800995024876},{"$f":"IFERROR(VLOOKUP(F6823,Translation!$A:$C,3,FALSE),F6823)","v":"Prêts hypothécaires assurés au cours de la période selon le milieu urbain/rural (%)"},{"$f":"IFERROR(VLOOKUP(G6823,Translation!$A:$C,3,FALSE),G6823)","v":"92.0"},{"$f":"IFERROR(VLOOKUP(H6823,Translation!$A:$C,3,FALSE),H6823)","v":0}]
[18,"T3 2017","ASSURANCE DE PORTEFEUILLE","Manitoba",100,"Prêts hypothécaires assurés au cours de la période selon le milieu urbain/rural (%)","100.0",0,{"$f":"IFERROR(VLOOKUP(A6824,Translation!$A:$C,3,FALSE),A6824)","v":18},{"$f":"IFERROR(VLOOKUP(B6824,Translation!$A:$C,3,FALSE),B6824)","v":"T3 2017"},{"$f":"IFERROR(VLOOKUP(C6824,Translation!$A:$C,3,FALSE),C6824)","v":"ASSURANCE DE PORTEFEUILLE"},{"$f":"IFERROR(VLOOKUP(D6824,Translation!$A:$C,3,FALSE),D6824)","v":"Manitoba"},{"$f":"IFERROR(VLOOKUP(E6824,Translation!$A:$C,3,FALSE),E6824)","v":100},{"$f":"IFERROR(VLOOKUP(F6824,Translation!$A:$C,3,FALSE),F6824)","v":"Prêts hypothécaires assurés au cours de la période selon le milieu urbain/rural (%)"},{"$f":"IFERROR(VLOOKUP(G6824,Translation!$A:$C,3,FALSE),G6824)","v":"100.0"},{"$f":"IFERROR(VLOOKUP(H6824,Translation!$A:$C,3,FALSE),H6824)","v":0}]
[18,"Q4 2016","ASSURANCE DE PORTEFEUILLE","Manitoba",94.871794871794876,"Prêts hypothécaires assurés au cours de la période selon le milieu urbain/rural (%)","94.9",0,{"$f":"IFERROR(VLOOKUP(A6825,Translation!$A:$C,3,FALSE),A6825)","v":18},{"$f":"IFERROR(VLOOKUP(B6825,Translation!$A:$C,3,FALSE),B6825)","v":"Q4 2016"},{"$f":"IFERROR(VLOOKUP(C6825,Translation!$A:$C,3,FALSE),C6825)","v":"ASSURANCE DE PORTEFEUILLE"},{"$f":"IFERROR(VLOOKUP(D6825,Translation!$A:$C,3,FALSE),D6825)","v":"Manitoba"},{"$f":"IFERROR(VLOOKUP(E6825,Translation!$A:$C,3,FALSE),E6825)","v":94.871794871794876},{"$f":"IFERROR(VLOOKUP(F6825,Translation!$A:$C,3,FALSE),F6825)","v":"Prêts hypothécaires assurés au cours de la période selon le milieu urbain/rural (%)"},{"$f":"IFERROR(VLOOKUP(G6825,Translation!$A:$C,3,FALSE),G6825)","v":"94.9"},{"$f":"IFERROR(VLOOKUP(H6825,Translation!$A:$C,3,FALSE),H6825)","v":0}]
[18,"T4 2017","ASSURANCE DE PORTEFEUILLE","Manitoba",96.153846153846175,"Prêts hypothécaires assurés au cours de la période selon le milieu urbain/rural (%)","96.2",0,{"$f":"IFERROR(VLOOKUP(A6826,Translation!$A:$C,3,FALSE),A6826)","v":18},{"$f":"IFERROR(VLOOKUP(B6826,Translation!$A:$C,3,FALSE),B6826)","v":"T4 2017"},{"$f":"IFERROR(VLOOKUP(C6826,Translation!$A:$C,3,FALSE),C6826)","v":"ASSURANCE DE PORTEFEUILLE"},{"$f":"IFERROR(VLOOKUP(D6826,Translation!$A:$C,3,FALSE),D6826)","v":"Manitoba"},{"$f":"IFERROR(VLOOKUP(E6826,Translation!$A:$C,3,FALSE),E6826)","v":96.153846153846175},{"$f":"IFERROR(VLOOKUP(F6826,Translation!$A:$C,3,FALSE),F6826)","v":"Prêts hypothécaires assurés au cours de la période selon le milieu urbain/rural (%)"},{"$f":"IFERROR(VLOOKUP(G6826,Translation!$A:$C,3,FALSE),G6826)","v":"96.2"},{"$f":"IFERROR(VLOOKUP(H6826,Translation!$A:$C,3,FALSE),H6826)","v":0}]
[18,"T1 2017","ASSURANCE DE PORTEFEUILLE","Saskatchewan",85.18518518518519,"Prêts hypothécaires assurés au cours de la période selon le milieu urbain/rural (%)","85.2",0,{"$f":"IFERROR(VLOOKUP(A6827,Translation!$A:$C,3,FALSE),A6827)","v":18},{"$f":"IFERROR(VLOOKUP(B6827,Translation!$A:$C,3,FALSE),B6827)","v":"T1 2017"},{"$f":"IFERROR(VLOOKUP(C6827,Translation!$A:$C,3,FALSE),C6827)","v":"ASSURANCE DE PORTEFEUILLE"},{"$f":"IFERROR(VLOOKUP(D6827,Translation!$A:$C,3,FALSE),D6827)","v":"Saskatchewan"},{"$f":"IFERROR(VLOOKUP(E6827,Translation!$A:$C,3,FALSE),E6827)","v":85.18518518518519},{"$f":"IFERROR(VLOOKUP(F6827,Translation!$A:$C,3,FALSE),F6827)","v":"Prêts hypothécaires assurés au cours de la période selon le milieu urbain/rural (%)"},{"$f":"IFERROR(VLOOKUP(G6827,Translation!$A:$C,3,FALSE),G6827)","v":"85.2"},{"$f":"IFERROR(VLOOKUP(H6827,Translation!$A:$C,3,FALSE),H6827)","v":0}]
[18,"T1 2018","ASSURANCE DE PORTEFEUILLE","Saskatchewan",89.393939393939377,"Prêts hypothécaires assurés au cours de la période selon le milieu urbain/rural (%)","89.4",0,{"$f":"IFERROR(VLOOKUP(A6828,Translation!$A:$C,3,FALSE),A6828)","v":18},{"$f":"IFERROR(VLOOKUP(B6828,Translation!$A:$C,3,FALSE),B6828)","v":"T1 2018"},{"$f":"IFERROR(VLOOKUP(C6828,Translation!$A:$C,3,FALSE),C6828)","v":"ASSURANCE DE PORTEFEUILLE"},{"$f":"IFERROR(VLOOKUP(D6828,Translation!$A:$C,3,FALSE),D6828)","v":"Saskatchewan"},{"$f":"IFERROR(VLOOKUP(E6828,Translation!$A:$C,3,FALSE),E6828)","v":89.393939393939377},{"$f":"IFERROR(VLOOKUP(F6828,Translation!$A:$C,3,FALSE),F6828)","v":"Prêts hypothécaires assurés au cours de la période selon le milieu urbain/rural (%)"},{"$f":"IFERROR(VLOOKUP(G6828,Translation!$A:$C,3,FALSE),G6828)","v":"89.4"},{"$f":"IFERROR(VLOOKUP(H6828,Translation!$A:$C,3,FALSE),H6828)","v":0}]
[18,"Q2 2016","ASSURANCE DE PORTEFEUILLE","Saskatchewan",86.359269932756945,"Prêts hypothécaires assurés au cours de la période selon le milieu urbain/rural (%)","86.4",0,{"$f":"IFERROR(VLOOKUP(A6829,Translation!$A:$C,3,FALSE),A6829)","v":18},{"$f":"IFERROR(VLOOKUP(B6829,Translation!$A:$C,3,FALSE),B6829)","v":"Q2 2016"},{"$f":"IFERROR(VLOOKUP(C6829,Translation!$A:$C,3,FALSE),C6829)","v":"ASSURANCE DE PORTEFEUILLE"},{"$f":"IFERROR(VLOOKUP(D6829,Translation!$A:$C,3,FALSE),D6829)","v":"Saskatchewan"},{"$f":"IFERROR(VLOOKUP(E6829,Translation!$A:$C,3,FALSE),E6829)","v":86.359269932756945},{"$f":"IFERROR(VLOOKUP(F6829,Translation!$A:$C,3,FALSE),F6829)","v":"Prêts hypothécaires assurés au cours de la période selon le milieu urbain/rural (%)"},{"$f":"IFERROR(VLOOKUP(G6829,Translation!$A:$C,3,FALSE),G6829)","v":"86.4"},{"$f":"IFERROR(VLOOKUP(H6829,Translation!$A:$C,3,FALSE),H6829)","v":0}]
[18,"T2 2017","ASSURANCE DE PORTEFEUILLE","Saskatchewan",94.444444444444443,"Prêts hypothécaires assurés au cours de la période selon le milieu urbain/rural (%)","94.4",0,{"$f":"IFERROR(VLOOKUP(A6830,Translation!$A:$C,3,FALSE),A6830)","v":18},{"$f":"IFERROR(VLOOKUP(B6830,Translation!$A:$C,3,FALSE),B6830)","v":"T2 2017"},{"$f":"IFERROR(VLOOKUP(C6830,Translation!$A:$C,3,FALSE),C6830)","v":"ASSURANCE DE PORTEFEUILLE"},{"$f":"IFERROR(VLOOKUP(D6830,Translation!$A:$C,3,FALSE),D6830)","v":"Saskatchewan"},{"$f":"IFERROR(VLOOKUP(E6830,Translation!$A:$C,3,FALSE),E6830)","v":94.444444444444443},{"$f":"IFERROR(VLOOKUP(F6830,Translation!$A:$C,3,FALSE),F6830)","v":"Prêts hypothécaires assurés au cours de la période selon le milieu urbain/rural (%)"},{"$f":"IFERROR(VLOOKUP(G6830,Translation!$A:$C,3,FALSE),G6830)","v":"94.4"},{"$f":"IFERROR(VLOOKUP(H6830,Translation!$A:$C,3,FALSE),H6830)","v":0}]
[18,"Q3 2016","ASSURANCE DE PORTEFEUILLE","Saskatchewan",89.830508474576263,"Prêts hypothécaires assurés au cours de la période selon le milieu urbain/rural (%)","89.8",0,{"$f":"IFERROR(VLOOKUP(A6831,Translation!$A:$C,3,FALSE),A6831)","v":18},{"$f":"IFERROR(VLOOKUP(B6831,Translation!$A:$C,3,FALSE),B6831)","v":"Q3 2016"},{"$f":"IFERROR(VLOOKUP(C6831,Translation!$A:$C,3,FALSE),C6831)","v":"ASSURANCE DE PORTEFEUILLE"},{"$f":"IFERROR(VLOOKUP(D6831,Translation!$A:$C,3,FALSE),D6831)","v":"Saskatchewan"},{"$f":"IFERROR(VLOOKUP(E6831,Translation!$A:$C,3,FALSE),E6831)","v":89.830508474576263},{"$f":"IFERROR(VLOOKUP(F6831,Translation!$A:$C,3,FALSE),F6831)","v":"Prêts hypothécaires assurés au cours de la période selon le milieu urbain/rural (%)"},{"$f":"IFERROR(VLOOKUP(G6831,Translation!$A:$C,3,FALSE),G6831)","v":"89.8"},{"$f":"IFERROR(VLOOKUP(H6831,Translation!$A:$C,3,FALSE),H6831)","v":0}]
[18,"T3 2017","ASSURANCE DE PORTEFEUILLE","Saskatchewan",100,"Prêts hypothécaires assurés au cours de la période selon le milieu urbain/rural (%)","100.0",0,{"$f":"IFERROR(VLOOKUP(A6832,Translation!$A:$C,3,FALSE),A6832)","v":18},{"$f":"IFERROR(VLOOKUP(B6832,Translation!$A:$C,3,FALSE),B6832)","v":"T3 2017"},{"$f":"IFERROR(VLOOKUP(C6832,Translation!$A:$C,3,FALSE),C6832)","v":"ASSURANCE DE PORTEFEUILLE"},{"$f":"IFERROR(VLOOKUP(D6832,Translation!$A:$C,3,FALSE),D6832)","v":"Saskatchewan"},{"$f":"IFERROR(VLOOKUP(E6832,Translation!$A:$C,3,FALSE),E6832)","v":100},{"$f":"IFERROR(VLOOKUP(F6832,Translation!$A:$C,3,FALSE),F6832)","v":"Prêts hypothécaires assurés au cours de la période selon le milieu urbain/rural (%)"},{"$f":"IFERROR(VLOOKUP(G6832,Translation!$A:$C,3,FALSE),G6832)","v":"100.0"},{"$f":"IFERROR(VLOOKUP(H6832,Translation!$A:$C,3,FALSE),H6832)","v":0}]
[18,"Q4 2016","ASSURANCE DE PORTEFEUILLE","Saskatchewan",88.023952095808383,"Prêts hypothécaires assurés au cours de la période selon le milieu urbain/rural (%)","88.0",0,{"$f":"IFERROR(VLOOKUP(A6833,Translation!$A:$C,3,FALSE),A6833)","v":18},{"$f":"IFERROR(VLOOKUP(B6833,Translation!$A:$C,3,FALSE),B6833)","v":"Q4 2016"},{"$f":"IFERROR(VLOOKUP(C6833,Translation!$A:$C,3,FALSE),C6833)","v":"ASSURANCE DE PORTEFEUILLE"},{"$f":"IFERROR(VLOOKUP(D6833,Translation!$A:$C,3,FALSE),D6833)","v":"Saskatchewan"},{"$f":"IFERROR(VLOOKUP(E6833,Translation!$A:$C,3,FALSE),E6833)","v":88.023952095808383},{"$f":"IFERROR(VLOOKUP(F6833,Translation!$A:$C,3,FALSE),F6833)","v":"Prêts hypothécaires assurés au cours de la période selon le milieu urbain/rural (%)"},{"$f":"IFERROR(VLOOKUP(G6833,Translation!$A:$C,3,FALSE),G6833)","v":"88.0"},{"$f":"IFERROR(VLOOKUP(H6833,Translation!$A:$C,3,FALSE),H6833)","v":0}]
[18,"T4 2017","ASSURANCE DE PORTEFEUILLE","Saskatchewan",85.13513513513513,"Prêts hypothécaires assurés au cours de la période selon le milieu urbain/rural (%)","85.1",0,{"$f":"IFERROR(VLOOKUP(A6834,Translation!$A:$C,3,FALSE),A6834)","v":18},{"$f":"IFERROR(VLOOKUP(B6834,Translation!$A:$C,3,FALSE),B6834)","v":"T4 2017"},{"$f":"IFERROR(VLOOKUP(C6834,Translation!$A:$C,3,FALSE),C6834)","v":"ASSURANCE DE PORTEFEUILLE"},{"$f":"IFERROR(VLOOKUP(D6834,Translation!$A:$C,3,FALSE),D6834)","v":"Saskatchewan"},{"$f":"IFERROR(VLOOKUP(E6834,Translation!$A:$C,3,FALSE),E6834)","v":85.13513513513513},{"$f":"IFERROR(VLOOKUP(F6834,Translation!$A:$C,3,FALSE),F6834)","v":"Prêts hypothécaires assurés au cours de la période selon le milieu urbain/rural (%)"},{"$f":"IFERROR(VLOOKUP(G6834,Translation!$A:$C,3,FALSE),G6834)","v":"85.1"},{"$f":"IFERROR(VLOOKUP(H6834,Translation!$A:$C,3,FALSE),H6834)","v":0}]
[18,"T1 2017","ASSURANCE DE PORTEFEUILLE","Alberta",87.265135699373729,"Prêts hypothécaires assurés au cours de la période selon le milieu urbain/rural (%)","87.3",0,{"$f":"IFERROR(VLOOKUP(A6835,Translation!$A:$C,3,FALSE),A6835)","v":18},{"$f":"IFERROR(VLOOKUP(B6835,Translation!$A:$C,3,FALSE),B6835)","v":"T1 2017"},{"$f":"IFERROR(VLOOKUP(C6835,Translation!$A:$C,3,FALSE),C6835)","v":"ASSURANCE DE PORTEFEUILLE"},{"$f":"IFERROR(VLOOKUP(D6835,Translation!$A:$C,3,FALSE),D6835)","v":"Alberta"},{"$f":"IFERROR(VLOOKUP(E6835,Translation!$A:$C,3,FALSE),E6835)","v":87.265135699373729},{"$f":"IFERROR(VLOOKUP(F6835,Translation!$A:$C,3,FALSE),F6835)","v":"Prêts hypothécaires assurés au cours de la période selon le milieu urbain/rural (%)"},{"$f":"IFERROR(VLOOKUP(G6835,Translation!$A:$C,3,FALSE),G6835)","v":"87.3"},{"$f":"IFERROR(VLOOKUP(H6835,Translation!$A:$C,3,FALSE),H6835)","v":0}]
[18,"T1 2018","ASSURANCE DE PORTEFEUILLE","Alberta",98.770491803278688,"Prêts hypothécaires assurés au cours de la période selon le milieu urbain/rural (%)","98.8",0,{"$f":"IFERROR(VLOOKUP(A6836,Translation!$A:$C,3,FALSE),A6836)","v":18},{"$f":"IFERROR(VLOOKUP(B6836,Translation!$A:$C,3,FALSE),B6836)","v":"T1 2018"},{"$f":"IFERROR(VLOOKUP(C6836,Translation!$A:$C,3,FALSE),C6836)","v":"ASSURANCE DE PORTEFEUILLE"},{"$f":"IFERROR(VLOOKUP(D6836,Translation!$A:$C,3,FALSE),D6836)","v":"Alberta"},{"$f":"IFERROR(VLOOKUP(E6836,Translation!$A:$C,3,FALSE),E6836)","v":98.770491803278688},{"$f":"IFERROR(VLOOKUP(F6836,Translation!$A:$C,3,FALSE),F6836)","v":"Prêts hypothécaires assurés au cours de la période selon le milieu urbain/rural (%)"},{"$f":"IFERROR(VLOOKUP(G6836,Translation!$A:$C,3,FALSE),G6836)","v":"98.8"},{"$f":"IFERROR(VLOOKUP(H6836,Translation!$A:$C,3,FALSE),H6836)","v":0}]
[18,"Q2 2016","ASSURANCE DE PORTEFEUILLE","Alberta",97.614580541409836,"Prêts hypothécaires assurés au cours de la période selon le milieu urbain/rural (%)","97.6",0,{"$f":"IFERROR(VLOOKUP(A6837,Translation!$A:$C,3,FALSE),A6837)","v":18},{"$f":"IFERROR(VLOOKUP(B6837,Translation!$A:$C,3,FALSE),B6837)","v":"Q2 2016"},{"$f":"IFERROR(VLOOKUP(C6837,Translation!$A:$C,3,FALSE),C6837)","v":"ASSURANCE DE PORTEFEUILLE"},{"$f":"IFERROR(VLOOKUP(D6837,Translation!$A:$C,3,FALSE),D6837)","v":"Alberta"},{"$f":"IFERROR(VLOOKUP(E6837,Translation!$A:$C,3,FALSE),E6837)","v":97.614580541409836},{"$f":"IFERROR(VLOOKUP(F6837,Translation!$A:$C,3,FALSE),F6837)","v":"Prêts hypothécaires assurés au cours de la période selon le milieu urbain/rural (%)"},{"$f":"IFERROR(VLOOKUP(G6837,Translation!$A:$C,3,FALSE),G6837)","v":"97.6"},{"$f":"IFERROR(VLOOKUP(H6837,Translation!$A:$C,3,FALSE),H6837)","v":0}]
[18,"T2 2017","ASSURANCE DE PORTEFEUILLE","Alberta",94.590643274853818,"Prêts hypothécaires assurés au cours de la période selon le milieu urbain/rural (%)","94.6",0,{"$f":"IFERROR(VLOOKUP(A6838,Translation!$A:$C,3,FALSE),A6838)","v":18},{"$f":"IFERROR(VLOOKUP(B6838,Translation!$A:$C,3,FALSE),B6838)","v":"T2 2017"},{"$f":"IFERROR(VLOOKUP(C6838,Translation!$A:$C,3,FALSE),C6838)","v":"ASSURANCE DE PORTEFEUILLE"},{"$f":"IFERROR(VLOOKUP(D6838,Translation!$A:$C,3,FALSE),D6838)","v":"Alberta"},{"$f":"IFERROR(VLOOKUP(E6838,Translation!$A:$C,3,FALSE),E6838)","v":94.590643274853818},{"$f":"IFERROR(VLOOKUP(F6838,Translation!$A:$C,3,FALSE),F6838)","v":"Prêts hypothécaires assurés au cours de la période selon le milieu urbain/rural (%)"},{"$f":"IFERROR(VLOOKUP(G6838,Translation!$A:$C,3,FALSE),G6838)","v":"94.6"},{"$f":"IFERROR(VLOOKUP(H6838,Translation!$A:$C,3,FALSE),H6838)","v":0}]
[18,"Q3 2016","ASSURANCE DE PORTEFEUILLE","Alberta",97.660818713450297,"Prêts hypothécaires assurés au cours de la période selon le milieu urbain/rural (%)","97.7",0,{"$f":"IFERROR(VLOOKUP(A6839,Translation!$A:$C,3,FALSE),A6839)","v":18},{"$f":"IFERROR(VLOOKUP(B6839,Translation!$A:$C,3,FALSE),B6839)","v":"Q3 2016"},{"$f":"IFERROR(VLOOKUP(C6839,Translation!$A:$C,3,FALSE),C6839)","v":"ASSURANCE DE PORTEFEUILLE"},{"$f":"IFERROR(VLOOKUP(D6839,Translation!$A:$C,3,FALSE),D6839)","v":"Alberta"},{"$f":"IFERROR(VLOOKUP(E6839,Translation!$A:$C,3,FALSE),E6839)","v":97.660818713450297},{"$f":"IFERROR(VLOOKUP(F6839,Translation!$A:$C,3,FALSE),F6839)","v":"Prêts hypothécaires assurés au cours de la période selon le milieu urbain/rural (%)"},{"$f":"IFERROR(VLOOKUP(G6839,Translation!$A:$C,3,FALSE),G6839)","v":"97.7"},{"$f":"IFERROR(VLOOKUP(H6839,Translation!$A:$C,3,FALSE),H6839)","v":0}]
[18,"T3 2017","ASSURANCE DE PORTEFEUILLE","Alberta",100,"Prêts hypothécaires assurés au cours de la période selon le milieu urbain/rural (%)","100.0",0,{"$f":"IFERROR(VLOOKUP(A6840,Translation!$A:$C,3,FALSE),A6840)","v":18},{"$f":"IFERROR(VLOOKUP(B6840,Translation!$A:$C,3,FALSE),B6840)","v":"T3 2017"},{"$f":"IFERROR(VLOOKUP(C6840,Translation!$A:$C,3,FALSE),C6840)","v":"ASSURANCE DE PORTEFEUILLE"},{"$f":"IFERROR(VLOOKUP(D6840,Translation!$A:$C,3,FALSE),D6840)","v":"Alberta"},{"$f":"IFERROR(VLOOKUP(E6840,Translation!$A:$C,3,FALSE),E6840)","v":100},{"$f":"IFERROR(VLOOKUP(F6840,Translation!$A:$C,3,FALSE),F6840)","v":"Prêts hypothécaires assurés au cours de la période selon le milieu urbain/rural (%)"},{"$f":"IFERROR(VLOOKUP(G6840,Translation!$A:$C,3,FALSE),G6840)","v":"100.0"},{"$f":"IFERROR(VLOOKUP(H6840,Translation!$A:$C,3,FALSE),H6840)","v":0}]
[18,"Q4 2016","ASSURANCE DE PORTEFEUILLE","Alberta",93.210393964794619,"Prêts hypothécaires assurés au cours de la période selon le milieu urbain/rural (%)","93.2",0,{"$f":"IFERROR(VLOOKUP(A6841,Translation!$A:$C,3,FALSE),A6841)","v":18},{"$f":"IFERROR(VLOOKUP(B6841,Translation!$A:$C,3,FALSE),B6841)","v":"Q4 2016"},{"$f":"IFERROR(VLOOKUP(C6841,Translation!$A:$C,3,FALSE),C6841)","v":"ASSURANCE DE PORTEFEUILLE"},{"$f":"IFERROR(VLOOKUP(D6841,Translation!$A:$C,3,FALSE),D6841)","v":"Alberta"},{"$f":"IFERROR(VLOOKUP(E6841,Translation!$A:$C,3,FALSE),E6841)","v":93.210393964794619},{"$f":"IFERROR(VLOOKUP(F6841,Translation!$A:$C,3,FALSE),F6841)","v":"Prêts hypothécaires assurés au cours de la période selon le milieu urbain/rural (%)"},{"$f":"IFERROR(VLOOKUP(G6841,Translation!$A:$C,3,FALSE),G6841)","v":"93.2"},{"$f":"IFERROR(VLOOKUP(H6841,Translation!$A:$C,3,FALSE),H6841)","v":0}]
[18,"T4 2017","ASSURANCE DE PORTEFEUILLE","Alberta",96.604938271604922,"Prêts hypothécaires assurés au cours de la période selon le milieu urbain/rural (%)","96.6",0,{"$f":"IFERROR(VLOOKUP(A6842,Translation!$A:$C,3,FALSE),A6842)","v":18},{"$f":"IFERROR(VLOOKUP(B6842,Translation!$A:$C,3,FALSE),B6842)","v":"T4 2017"},{"$f":"IFERROR(VLOOKUP(C6842,Translation!$A:$C,3,FALSE),C6842)","v":"ASSURANCE DE PORTEFEUILLE"},{"$f":"IFERROR(VLOOKUP(D6842,Translation!$A:$C,3,FALSE),D6842)","v":"Alberta"},{"$f":"IFERROR(VLOOKUP(E6842,Translation!$A:$C,3,FALSE),E6842)","v":96.604938271604922},{"$f":"IFERROR(VLOOKUP(F6842,Translation!$A:$C,3,FALSE),F6842)","v":"Prêts hypothécaires assurés au cours de la période selon le milieu urbain/rural (%)"},{"$f":"IFERROR(VLOOKUP(G6842,Translation!$A:$C,3,FALSE),G6842)","v":"96.6"},{"$f":"IFERROR(VLOOKUP(H6842,Translation!$A:$C,3,FALSE),H6842)","v":0}]
[18,"T1 2017","ASSURANCE DE PORTEFEUILLE","Colombie-Britannique",92.771084337349379,"Prêts hypothécaires assurés au cours de la période selon le milieu urbain/rural (%)","92.8",0,{"$f":"IFERROR(VLOOKUP(A6843,Translation!$A:$C,3,FALSE),A6843)","v":18},{"$f":"IFERROR(VLOOKUP(B6843,Translation!$A:$C,3,FALSE),B6843)","v":"T1 2017"},{"$f":"IFERROR(VLOOKUP(C6843,Translation!$A:$C,3,FALSE),C6843)","v":"ASSURANCE DE PORTEFEUILLE"},{"$f":"IFERROR(VLOOKUP(D6843,Translation!$A:$C,3,FALSE),D6843)","v":"Colombie-Britannique"},{"$f":"IFERROR(VLOOKUP(E6843,Translation!$A:$C,3,FALSE),E6843)","v":92.771084337349379},{"$f":"IFERROR(VLOOKUP(F6843,Translation!$A:$C,3,FALSE),F6843)","v":"Prêts hypothécaires assurés au cours de la période selon le milieu urbain/rural (%)"},{"$f":"IFERROR(VLOOKUP(G6843,Translation!$A:$C,3,FALSE),G6843)","v":"92.8"},{"$f":"IFERROR(VLOOKUP(H6843,Translation!$A:$C,3,FALSE),H6843)","v":0}]
[18,"T1 2018","ASSURANCE DE PORTEFEUILLE","Colombie-Britannique",90.069930069930081,"Prêts hypothécaires assurés au cours de la période selon le milieu urbain/rural (%)","90.1",0,{"$f":"IFERROR(VLOOKUP(A6844,Translation!$A:$C,3,FALSE),A6844)","v":18},{"$f":"IFERROR(VLOOKUP(B6844,Translation!$A:$C,3,FALSE),B6844)","v":"T1 2018"},{"$f":"IFERROR(VLOOKUP(C6844,Translation!$A:$C,3,FALSE),C6844)","v":"ASSURANCE DE PORTEFEUILLE"},{"$f":"IFERROR(VLOOKUP(D6844,Translation!$A:$C,3,FALSE),D6844)","v":"Colombie-Britannique"},{"$f":"IFERROR(VLOOKUP(E6844,Translation!$A:$C,3,FALSE),E6844)","v":90.069930069930081},{"$f":"IFERROR(VLOOKUP(F6844,Translation!$A:$C,3,FALSE),F6844)","v":"Prêts hypothécaires assurés au cours de la période selon le milieu urbain/rural (%)"},{"$f":"IFERROR(VLOOKUP(G6844,Translation!$A:$C,3,FALSE),G6844)","v":"90.1"},{"$f":"IFERROR(VLOOKUP(H6844,Translation!$A:$C,3,FALSE),H6844)","v":0}]
[18,"Q2 2016","ASSURANCE DE PORTEFEUILLE","Colombie-Britannique",95.045871559633028,"Prêts hypothécaires assurés au cours de la période selon le milieu urbain/rural (%)","95.0",0,{"$f":"IFERROR(VLOOKUP(A6845,Translation!$A:$C,3,FALSE),A6845)","v":18},{"$f":"IFERROR(VLOOKUP(B6845,Translation!$A:$C,3,FALSE),B6845)","v":"Q2 2016"},{"$f":"IFERROR(VLOOKUP(C6845,Translation!$A:$C,3,FALSE),C6845)","v":"ASSURANCE DE PORTEFEUILLE"},{"$f":"IFERROR(VLOOKUP(D6845,Translation!$A:$C,3,FALSE),D6845)","v":"Colombie-Britannique"},{"$f":"IFERROR(VLOOKUP(E6845,Translation!$A:$C,3,FALSE),E6845)","v":95.045871559633028},{"$f":"IFERROR(VLOOKUP(F6845,Translation!$A:$C,3,FALSE),F6845)","v":"Prêts hypothécaires assurés au cours de la période selon le milieu urbain/rural (%)"},{"$f":"IFERROR(VLOOKUP(G6845,Translation!$A:$C,3,FALSE),G6845)","v":"95.0"},{"$f":"IFERROR(VLOOKUP(H6845,Translation!$A:$C,3,FALSE),H6845)","v":0}]
[18,"T2 2017","ASSURANCE DE PORTEFEUILLE","Colombie-Britannique",98.870056497175113,"Prêts hypothécaires assurés au cours de la période selon le milieu urbain/rural (%)","98.9",0,{"$f":"IFERROR(VLOOKUP(A6846,Translation!$A:$C,3,FALSE),A6846)","v":18},{"$f":"IFERROR(VLOOKUP(B6846,Translation!$A:$C,3,FALSE),B6846)","v":"T2 2017"},{"$f":"IFERROR(VLOOKUP(C6846,Translation!$A:$C,3,FALSE),C6846)","v":"ASSURANCE DE PORTEFEUILLE"},{"$f":"IFERROR(VLOOKUP(D6846,Translation!$A:$C,3,FALSE),D6846)","v":"Colombie-Britannique"},{"$f":"IFERROR(VLOOKUP(E6846,Translation!$A:$C,3,FALSE),E6846)","v":98.870056497175113},{"$f":"IFERROR(VLOOKUP(F6846,Translation!$A:$C,3,FALSE),F6846)","v":"Prêts hypothécaires assurés au cours de la période selon le milieu urbain/rural (%)"},{"$f":"IFERROR(VLOOKUP(G6846,Translation!$A:$C,3,FALSE),G6846)","v":"98.9"},{"$f":"IFERROR(VLOOKUP(H6846,Translation!$A:$C,3,FALSE),H6846)","v":0}]
[18,"Q3 2016","ASSURANCE DE PORTEFEUILLE","Colombie-Britannique",97.173144876325111,"Prêts hypothécaires assurés au cours de la période selon le milieu urbain/rural (%)","97.2",0,{"$f":"IFERROR(VLOOKUP(A6847,Translation!$A:$C,3,FALSE),A6847)","v":18},{"$f":"IFERROR(VLOOKUP(B6847,Translation!$A:$C,3,FALSE),B6847)","v":"Q3 2016"},{"$f":"IFERROR(VLOOKUP(C6847,Translation!$A:$C,3,FALSE),C6847)","v":"ASSURANCE DE PORTEFEUILLE"},{"$f":"IFERROR(VLOOKUP(D6847,Translation!$A:$C,3,FALSE),D6847)","v":"Colombie-Britannique"},{"$f":"IFERROR(VLOOKUP(E6847,Translation!$A:$C,3,FALSE),E6847)","v":97.173144876325111},{"$f":"IFERROR(VLOOKUP(F6847,Translation!$A:$C,3,FALSE),F6847)","v":"Prêts hypothécaires assurés au cours de la période selon le milieu urbain/rural (%)"},{"$f":"IFERROR(VLOOKUP(G6847,Translation!$A:$C,3,FALSE),G6847)","v":"97.2"},{"$f":"IFERROR(VLOOKUP(H6847,Translation!$A:$C,3,FALSE),H6847)","v":0}]
[18,"T3 2017","ASSURANCE DE PORTEFEUILLE","Colombie-Britannique",93.548387096774221,"Prêts hypothécaires assurés au cours de la période selon le milieu urbain/rural (%)","93.5",0,{"$f":"IFERROR(VLOOKUP(A6848,Translation!$A:$C,3,FALSE),A6848)","v":18},{"$f":"IFERROR(VLOOKUP(B6848,Translation!$A:$C,3,FALSE),B6848)","v":"T3 2017"},{"$f":"IFERROR(VLOOKUP(C6848,Translation!$A:$C,3,FALSE),C6848)","v":"ASSURANCE DE PORTEFEUILLE"},{"$f":"IFERROR(VLOOKUP(D6848,Translation!$A:$C,3,FALSE),D6848)","v":"Colombie-Britannique"},{"$f":"IFERROR(VLOOKUP(E6848,Translation!$A:$C,3,FALSE),E6848)","v":93.548387096774221},{"$f":"IFERROR(VLOOKUP(F6848,Translation!$A:$C,3,FALSE),F6848)","v":"Prêts hypothécaires assurés au cours de la période selon le milieu urbain/rural (%)"},{"$f":"IFERROR(VLOOKUP(G6848,Translation!$A:$C,3,FALSE),G6848)","v":"93.5"},{"$f":"IFERROR(VLOOKUP(H6848,Translation!$A:$C,3,FALSE),H6848)","v":0}]
[18,"Q4 2016","ASSURANCE DE PORTEFEUILLE","Colombie-Britannique",96.700879765395868,"Prêts hypothécaires assurés au cours de la période selon le milieu urbain/rural (%)","96.7",0,{"$f":"IFERROR(VLOOKUP(A6849,Translation!$A:$C,3,FALSE),A6849)","v":18},{"$f":"IFERROR(VLOOKUP(B6849,Translation!$A:$C,3,FALSE),B6849)","v":"Q4 2016"},{"$f":"IFERROR(VLOOKUP(C6849,Translation!$A:$C,3,FALSE),C6849)","v":"ASSURANCE DE PORTEFEUILLE"},{"$f":"IFERROR(VLOOKUP(D6849,Translation!$A:$C,3,FALSE),D6849)","v":"Colombie-Britannique"},{"$f":"IFERROR(VLOOKUP(E6849,Translation!$A:$C,3,FALSE),E6849)","v":96.700879765395868},{"$f":"IFERROR(VLOOKUP(F6849,Translation!$A:$C,3,FALSE),F6849)","v":"Prêts hypothécaires assurés au cours de la période selon le milieu urbain/rural (%)"},{"$f":"IFERROR(VLOOKUP(G6849,Translation!$A:$C,3,FALSE),G6849)","v":"96.7"},{"$f":"IFERROR(VLOOKUP(H6849,Translation!$A:$C,3,FALSE),H6849)","v":0}]
[18,"T4 2017","ASSURANCE DE PORTEFEUILLE","Colombie-Britannique",96.875,"Prêts hypothécaires assurés au cours de la période selon le milieu urbain/rural (%)","96.9",0,{"$f":"IFERROR(VLOOKUP(A6850,Translation!$A:$C,3,FALSE),A6850)","v":18},{"$f":"IFERROR(VLOOKUP(B6850,Translation!$A:$C,3,FALSE),B6850)","v":"T4 2017"},{"$f":"IFERROR(VLOOKUP(C6850,Translation!$A:$C,3,FALSE),C6850)","v":"ASSURANCE DE PORTEFEUILLE"},{"$f":"IFERROR(VLOOKUP(D6850,Translation!$A:$C,3,FALSE),D6850)","v":"Colombie-Britannique"},{"$f":"IFERROR(VLOOKUP(E6850,Translation!$A:$C,3,FALSE),E6850)","v":96.875},{"$f":"IFERROR(VLOOKUP(F6850,Translation!$A:$C,3,FALSE),F6850)","v":"Prêts hypothécaires assurés au cours de la période selon le milieu urbain/rural (%)"},{"$f":"IFERROR(VLOOKUP(G6850,Translation!$A:$C,3,FALSE),G6850)","v":"96.9"},{"$f":"IFERROR(VLOOKUP(H6850,Translation!$A:$C,3,FALSE),H6850)","v":0}]
[18,"Q2 2016","ASSURANCE DE PORTEFEUILLE","Territoires",89.523809523809547,"Prêts hypothécaires assurés au cours de la période selon le milieu urbain/rural (%)","89.5",0,{"$f":"IFERROR(VLOOKUP(A6851,Translation!$A:$C,3,FALSE),A6851)","v":18},{"$f":"IFERROR(VLOOKUP(B6851,Translation!$A:$C,3,FALSE),B6851)","v":"Q2 2016"},{"$f":"IFERROR(VLOOKUP(C6851,Translation!$A:$C,3,FALSE),C6851)","v":"ASSURANCE DE PORTEFEUILLE"},{"$f":"IFERROR(VLOOKUP(D6851,Translation!$A:$C,3,FALSE),D6851)","v":"Territoires"},{"$f":"IFERROR(VLOOKUP(E6851,Translation!$A:$C,3,FALSE),E6851)","v":89.523809523809547},{"$f":"IFERROR(VLOOKUP(F6851,Translation!$A:$C,3,FALSE),F6851)","v":"Prêts hypothécaires assurés au cours de la période selon le milieu urbain/rural (%)"},{"$f":"IFERROR(VLOOKUP(G6851,Translation!$A:$C,3,FALSE),G6851)","v":"89.5"},{"$f":"IFERROR(VLOOKUP(H6851,Translation!$A:$C,3,FALSE),H6851)","v":0}]
[18,"Q3 2016","ASSURANCE DE PORTEFEUILLE","Territoires",100,"Prêts hypothécaires assurés au cours de la période selon le milieu urbain/rural (%)","100.0",0,{"$f":"IFERROR(VLOOKUP(A6852,Translation!$A:$C,3,FALSE),A6852)","v":18},{"$f":"IFERROR(VLOOKUP(B6852,Translation!$A:$C,3,FALSE),B6852)","v":"Q3 2016"},{"$f":"IFERROR(VLOOKUP(C6852,Translation!$A:$C,3,FALSE),C6852)","v":"ASSURANCE DE PORTEFEUILLE"},{"$f":"IFERROR(VLOOKUP(D6852,Translation!$A:$C,3,FALSE),D6852)","v":"Territoires"},{"$f":"IFERROR(VLOOKUP(E6852,Translation!$A:$C,3,FALSE),E6852)","v":100},{"$f":"IFERROR(VLOOKUP(F6852,Translation!$A:$C,3,FALSE),F6852)","v":"Prêts hypothécaires assurés au cours de la période selon le milieu urbain/rural (%)"},{"$f":"IFERROR(VLOOKUP(G6852,Translation!$A:$C,3,FALSE),G6852)","v":"100.0"},{"$f":"IFERROR(VLOOKUP(H6852,Translation!$A:$C,3,FALSE),H6852)","v":0}]
[18,"Q4 2016","ASSURANCE DE PORTEFEUILLE","Territoires",100,"Prêts hypothécaires assurés au cours de la période selon le milieu urbain/rural (%)","100.0",0,{"$f":"IFERROR(VLOOKUP(A6853,Translation!$A:$C,3,FALSE),A6853)","v":18},{"$f":"IFERROR(VLOOKUP(B6853,Translation!$A:$C,3,FALSE),B6853)","v":"Q4 2016"},{"$f":"IFERROR(VLOOKUP(C6853,Translation!$A:$C,3,FALSE),C6853)","v":"ASSURANCE DE PORTEFEUILLE"},{"$f":"IFERROR(VLOOKUP(D6853,Translation!$A:$C,3,FALSE),D6853)","v":"Territoires"},{"$f":"IFERROR(VLOOKUP(E6853,Translation!$A:$C,3,FALSE),E6853)","v":100},{"$f":"IFERROR(VLOOKUP(F6853,Translation!$A:$C,3,FALSE),F6853)","v":"Prêts hypothécaires assurés au cours de la période selon le milieu urbain/rural (%)"},{"$f":"IFERROR(VLOOKUP(G6853,Translation!$A:$C,3,FALSE),G6853)","v":"100.0"},{"$f":"IFERROR(VLOOKUP(H6853,Translation!$A:$C,3,FALSE),H6853)","v":0}]
[18,"T4 2017","ASSURANCE DE PORTEFEUILLE","Territoires",100,"Prêts hypothécaires assurés au cours de la période selon le milieu urbain/rural (%)","100.0",0,{"$f":"IFERROR(VLOOKUP(A6854,Translation!$A:$C,3,FALSE),A6854)","v":18},{"$f":"IFERROR(VLOOKUP(B6854,Translation!$A:$C,3,FALSE),B6854)","v":"T4 2017"},{"$f":"IFERROR(VLOOKUP(C6854,Translation!$A:$C,3,FALSE),C6854)","v":"ASSURANCE DE PORTEFEUILLE"},{"$f":"IFERROR(VLOOKUP(D6854,Translation!$A:$C,3,FALSE),D6854)","v":"Territoires"},{"$f":"IFERROR(VLOOKUP(E6854,Translation!$A:$C,3,FALSE),E6854)","v":100},{"$f":"IFERROR(VLOOKUP(F6854,Translation!$A:$C,3,FALSE),F6854)","v":"Prêts hypothécaires assurés au cours de la période selon le milieu urbain/rural (%)"},{"$f":"IFERROR(VLOOKUP(G6854,Translation!$A:$C,3,FALSE),G6854)","v":"100.0"},{"$f":"IFERROR(VLOOKUP(H6854,Translation!$A:$C,3,FALSE),H6854)","v":0}]
[30,"T1 2017","IMMEUBLES COLLECTIFS RÉSIDENTIELS","Rural",1.7517674783974859,"Prêts hypothécaires assurés au cours de la période selon le milieu urbain/rural (%)","1.8",0,{"$f":"IFERROR(VLOOKUP(A6855,Translation!$A:$C,3,FALSE),A6855)","v":30},{"$f":"IFERROR(VLOOKUP(B6855,Translation!$A:$C,3,FALSE),B6855)","v":"T1 2017"},{"$f":"IFERROR(VLOOKUP(C6855,Translation!$A:$C,3,FALSE),C6855)","v":"IMMEUBLES COLLECTIFS RÉSIDENTIELS"},{"$f":"IFERROR(VLOOKUP(D6855,Translation!$A:$C,3,FALSE),D6855)","v":"Rural"},{"$f":"IFERROR(VLOOKUP(E6855,Translation!$A:$C,3,FALSE),E6855)","v":1.7517674783974859},{"$f":"IFERROR(VLOOKUP(F6855,Translation!$A:$C,3,FALSE),F6855)","v":"Prêts hypothécaires assurés au cours de la période selon le milieu urbain/rural (%)"},{"$f":"IFERROR(VLOOKUP(G6855,Translation!$A:$C,3,FALSE),G6855)","v":"1.8"},{"$f":"IFERROR(VLOOKUP(H6855,Translation!$A:$C,3,FALSE),H6855)","v":0}]
[30,"T1 2018","IMMEUBLES COLLECTIFS RÉSIDENTIELS","Rural",1.7425406323279691,"Prêts hypothécaires assurés au cours de la période selon le milieu urbain/rural (%)","1.7",0,{"$f":"IFERROR(VLOOKUP(A6856,Translation!$A:$C,3,FALSE),A6856)","v":30},{"$f":"IFERROR(VLOOKUP(B6856,Translation!$A:$C,3,FALSE),B6856)","v":"T1 2018"},{"$f":"IFERROR(VLOOKUP(C6856,Translation!$A:$C,3,FALSE),C6856)","v":"IMMEUBLES COLLECTIFS RÉSIDENTIELS"},{"$f":"IFERROR(VLOOKUP(D6856,Translation!$A:$C,3,FALSE),D6856)","v":"Rural"},{"$f":"IFERROR(VLOOKUP(E6856,Translation!$A:$C,3,FALSE),E6856)","v":1.7425406323279691},{"$f":"IFERROR(VLOOKUP(F6856,Translation!$A:$C,3,FALSE),F6856)","v":"Prêts hypothécaires assurés au cours de la période selon le milieu urbain/rural (%)"},{"$f":"IFERROR(VLOOKUP(G6856,Translation!$A:$C,3,FALSE),G6856)","v":"1.7"},{"$f":"IFERROR(VLOOKUP(H6856,Translation!$A:$C,3,FALSE),H6856)","v":0}]
[30,"Q2 2016","IMMEUBLES COLLECTIFS RÉSIDENTIELS","Rural",1.5861388030703572,"Prêts hypothécaires assurés au cours de la période selon le milieu urbain/rural (%)","1.6",0,{"$f":"IFERROR(VLOOKUP(A6857,Translation!$A:$C,3,FALSE),A6857)","v":30},{"$f":"IFERROR(VLOOKUP(B6857,Translation!$A:$C,3,FALSE),B6857)","v":"Q2 2016"},{"$f":"IFERROR(VLOOKUP(C6857,Translation!$A:$C,3,FALSE),C6857)","v":"IMMEUBLES COLLECTIFS RÉSIDENTIELS"},{"$f":"IFERROR(VLOOKUP(D6857,Translation!$A:$C,3,FALSE),D6857)","v":"Rural"},{"$f":"IFERROR(VLOOKUP(E6857,Translation!$A:$C,3,FALSE),E6857)","v":1.5861388030703572},{"$f":"IFERROR(VLOOKUP(F6857,Translation!$A:$C,3,FALSE),F6857)","v":"Prêts hypothécaires assurés au cours de la période selon le milieu urbain/rural (%)"},{"$f":"IFERROR(VLOOKUP(G6857,Translation!$A:$C,3,FALSE),G6857)","v":"1.6"},{"$f":"IFERROR(VLOOKUP(H6857,Translation!$A:$C,3,FALSE),H6857)","v":0}]
[30,"T2 2017","IMMEUBLES COLLECTIFS RÉSIDENTIELS","Rural",0.76560838523469554,"Prêts hypothécaires assurés au cours de la période selon le milieu urbain/rural (%)","0.8",0,{"$f":"IFERROR(VLOOKUP(A6858,Translation!$A:$C,3,FALSE),A6858)","v":30},{"$f":"IFERROR(VLOOKUP(B6858,Translation!$A:$C,3,FALSE),B6858)","v":"T2 2017"},{"$f":"IFERROR(VLOOKUP(C6858,Translation!$A:$C,3,FALSE),C6858)","v":"IMMEUBLES COLLECTIFS RÉSIDENTIELS"},{"$f":"IFERROR(VLOOKUP(D6858,Translation!$A:$C,3,FALSE),D6858)","v":"Rural"},{"$f":"IFERROR(VLOOKUP(E6858,Translation!$A:$C,3,FALSE),E6858)","v":0.76560838523469554},{"$f":"IFERROR(VLOOKUP(F6858,Translation!$A:$C,3,FALSE),F6858)","v":"Prêts hypothécaires assurés au cours de la période selon le milieu urbain/rural (%)"},{"$f":"IFERROR(VLOOKUP(G6858,Translation!$A:$C,3,FALSE),G6858)","v":"0.8"},{"$f":"IFERROR(VLOOKUP(H6858,Translation!$A:$C,3,FALSE),H6858)","v":0}]
[30,"Q3 2016","IMMEUBLES COLLECTIFS RÉSIDENTIELS","Rural",2.0009721322099807,"Prêts hypothécaires assurés au cours de la période selon le milieu urbain/rural (%)","2.0",0,{"$f":"IFERROR(VLOOKUP(A6859,Translation!$A:$C,3,FALSE),A6859)","v":30},{"$f":"IFERROR(VLOOKUP(B6859,Translation!$A:$C,3,FALSE),B6859)","v":"Q3 2016"},{"$f":"IFERROR(VLOOKUP(C6859,Translation!$A:$C,3,FALSE),C6859)","v":"IMMEUBLES COLLECTIFS RÉSIDENTIELS"},{"$f":"IFERROR(VLOOKUP(D6859,Translation!$A:$C,3,FALSE),D6859)","v":"Rural"},{"$f":"IFERROR(VLOOKUP(E6859,Translation!$A:$C,3,FALSE),E6859)","v":2.0009721322099807},{"$f":"IFERROR(VLOOKUP(F6859,Translation!$A:$C,3,FALSE),F6859)","v":"Prêts hypothécaires assurés au cours de la période selon le milieu urbain/rural (%)"},{"$f":"IFERROR(VLOOKUP(G6859,Translation!$A:$C,3,FALSE),G6859)","v":"2.0"},{"$f":"IFERROR(VLOOKUP(H6859,Translation!$A:$C,3,FALSE),H6859)","v":0}]
[30,"T3 2017","IMMEUBLES COLLECTIFS RÉSIDENTIELS","Rural",0.83230579531442661,"Prêts hypothécaires assurés au cours de la période selon le milieu urbain/rural (%)","0.8",0,{"$f":"IFERROR(VLOOKUP(A6860,Translation!$A:$C,3,FALSE),A6860)","v":30},{"$f":"IFERROR(VLOOKUP(B6860,Translation!$A:$C,3,FALSE),B6860)","v":"T3 2017"},{"$f":"IFERROR(VLOOKUP(C6860,Translation!$A:$C,3,FALSE),C6860)","v":"IMMEUBLES COLLECTIFS RÉSIDENTIELS"},{"$f":"IFERROR(VLOOKUP(D6860,Translation!$A:$C,3,FALSE),D6860)","v":"Rural"},{"$f":"IFERROR(VLOOKUP(E6860,Translation!$A:$C,3,FALSE),E6860)","v":0.83230579531442661},{"$f":"IFERROR(VLOOKUP(F6860,Translation!$A:$C,3,FALSE),F6860)","v":"Prêts hypothécaires assurés au cours de la période selon le milieu urbain/rural (%)"},{"$f":"IFERROR(VLOOKUP(G6860,Translation!$A:$C,3,FALSE),G6860)","v":"0.8"},{"$f":"IFERROR(VLOOKUP(H6860,Translation!$A:$C,3,FALSE),H6860)","v":0}]
[30,"Q4 2016","IMMEUBLES COLLECTIFS RÉSIDENTIELS","Rural",1.7102718110556858,"Prêts hypothécaires assurés au cours de la période selon le milieu urbain/rural (%)","1.7",0,{"$f":"IFERROR(VLOOKUP(A6861,Translation!$A:$C,3,FALSE),A6861)","v":30},{"$f":"IFERROR(VLOOKUP(B6861,Translation!$A:$C,3,FALSE),B6861)","v":"Q4 2016"},{"$f":"IFERROR(VLOOKUP(C6861,Translation!$A:$C,3,FALSE),C6861)","v":"IMMEUBLES COLLECTIFS RÉSIDENTIELS"},{"$f":"IFERROR(VLOOKUP(D6861,Translation!$A:$C,3,FALSE),D6861)","v":"Rural"},{"$f":"IFERROR(VLOOKUP(E6861,Translation!$A:$C,3,FALSE),E6861)","v":1.7102718110556858},{"$f":"IFERROR(VLOOKUP(F6861,Translation!$A:$C,3,FALSE),F6861)","v":"Prêts hypothécaires assurés au cours de la période selon le milieu urbain/rural (%)"},{"$f":"IFERROR(VLOOKUP(G6861,Translation!$A:$C,3,FALSE),G6861)","v":"1.7"},{"$f":"IFERROR(VLOOKUP(H6861,Translation!$A:$C,3,FALSE),H6861)","v":0}]
[30,"T4 2017","IMMEUBLES COLLECTIFS RÉSIDENTIELS","Rural",1.258918661804344,"Prêts hypothécaires assurés au cours de la période selon le milieu urbain/rural (%)","1.3",0,{"$f":"IFERROR(VLOOKUP(A6862,Translation!$A:$C,3,FALSE),A6862)","v":30},{"$f":"IFERROR(VLOOKUP(B6862,Translation!$A:$C,3,FALSE),B6862)","v":"T4 2017"},{"$f":"IFERROR(VLOOKUP(C6862,Translation!$A:$C,3,FALSE),C6862)","v":"IMMEUBLES COLLECTIFS RÉSIDENTIELS"},{"$f":"IFERROR(VLOOKUP(D6862,Translation!$A:$C,3,FALSE),D6862)","v":"Rural"},{"$f":"IFERROR(VLOOKUP(E6862,Translation!$A:$C,3,FALSE),E6862)","v":1.258918661804344},{"$f":"IFERROR(VLOOKUP(F6862,Translation!$A:$C,3,FALSE),F6862)","v":"Prêts hypothécaires assurés au cours de la période selon le milieu urbain/rural (%)"},{"$f":"IFERROR(VLOOKUP(G6862,Translation!$A:$C,3,FALSE),G6862)","v":"1.3"},{"$f":"IFERROR(VLOOKUP(H6862,Translation!$A:$C,3,FALSE),H6862)","v":0}]
[30,"T1 2017","IMMEUBLES COLLECTIFS RÉSIDENTIELS","Urbain",98.248232521602532,"Prêts hypothécaires assurés au cours de la période selon le milieu urbain/rural (%)","98.2",0,{"$f":"IFERROR(VLOOKUP(A6863,Translation!$A:$C,3,FALSE),A6863)","v":30},{"$f":"IFERROR(VLOOKUP(B6863,Translation!$A:$C,3,FALSE),B6863)","v":"T1 2017"},{"$f":"IFERROR(VLOOKUP(C6863,Translation!$A:$C,3,FALSE),C6863)","v":"IMMEUBLES COLLECTIFS RÉSIDENTIELS"},{"$f":"IFERROR(VLOOKUP(D6863,Translation!$A:$C,3,FALSE),D6863)","v":"Urbain"},{"$f":"IFERROR(VLOOKUP(E6863,Translation!$A:$C,3,FALSE),E6863)","v":98.248232521602532},{"$f":"IFERROR(VLOOKUP(F6863,Translation!$A:$C,3,FALSE),F6863)","v":"Prêts hypothécaires assurés au cours de la période selon le milieu urbain/rural (%)"},{"$f":"IFERROR(VLOOKUP(G6863,Translation!$A:$C,3,FALSE),G6863)","v":"98.2"},{"$f":"IFERROR(VLOOKUP(H6863,Translation!$A:$C,3,FALSE),H6863)","v":0}]
[30,"T1 2018","IMMEUBLES COLLECTIFS RÉSIDENTIELS","Urbain",98.257459367671999,"Prêts hypothécaires assurés au cours de la période selon le milieu urbain/rural (%)","98.3",0,{"$f":"IFERROR(VLOOKUP(A6864,Translation!$A:$C,3,FALSE),A6864)","v":30},{"$f":"IFERROR(VLOOKUP(B6864,Translation!$A:$C,3,FALSE),B6864)","v":"T1 2018"},{"$f":"IFERROR(VLOOKUP(C6864,Translation!$A:$C,3,FALSE),C6864)","v":"IMMEUBLES COLLECTIFS RÉSIDENTIELS"},{"$f":"IFERROR(VLOOKUP(D6864,Translation!$A:$C,3,FALSE),D6864)","v":"Urbain"},{"$f":"IFERROR(VLOOKUP(E6864,Translation!$A:$C,3,FALSE),E6864)","v":98.257459367671999},{"$f":"IFERROR(VLOOKUP(F6864,Translation!$A:$C,3,FALSE),F6864)","v":"Prêts hypothécaires assurés au cours de la période selon le milieu urbain/rural (%)"},{"$f":"IFERROR(VLOOKUP(G6864,Translation!$A:$C,3,FALSE),G6864)","v":"98.3"},{"$f":"IFERROR(VLOOKUP(H6864,Translation!$A:$C,3,FALSE),H6864)","v":0}]
[30,"Q2 2016","IMMEUBLES COLLECTIFS RÉSIDENTIELS","Urbain",98.413861196929631,"Prêts hypothécaires assurés au cours de la période selon le milieu urbain/rural (%)","98.4",0,{"$f":"IFERROR(VLOOKUP(A6865,Translation!$A:$C,3,FALSE),A6865)","v":30},{"$f":"IFERROR(VLOOKUP(B6865,Translation!$A:$C,3,FALSE),B6865)","v":"Q2 2016"},{"$f":"IFERROR(VLOOKUP(C6865,Translation!$A:$C,3,FALSE),C6865)","v":"IMMEUBLES COLLECTIFS RÉSIDENTIELS"},{"$f":"IFERROR(VLOOKUP(D6865,Translation!$A:$C,3,FALSE),D6865)","v":"Urbain"},{"$f":"IFERROR(VLOOKUP(E6865,Translation!$A:$C,3,FALSE),E6865)","v":98.413861196929631},{"$f":"IFERROR(VLOOKUP(F6865,Translation!$A:$C,3,FALSE),F6865)","v":"Prêts hypothécaires assurés au cours de la période selon le milieu urbain/rural (%)"},{"$f":"IFERROR(VLOOKUP(G6865,Translation!$A:$C,3,FALSE),G6865)","v":"98.4"},{"$f":"IFERROR(VLOOKUP(H6865,Translation!$A:$C,3,FALSE),H6865)","v":0}]
[30,"T2 2017","IMMEUBLES COLLECTIFS RÉSIDENTIELS","Urbain",99.234391614765315,"Prêts hypothécaires assurés au cours de la période selon le milieu urbain/rural (%)","99.2",0,{"$f":"IFERROR(VLOOKUP(A6866,Translation!$A:$C,3,FALSE),A6866)","v":30},{"$f":"IFERROR(VLOOKUP(B6866,Translation!$A:$C,3,FALSE),B6866)","v":"T2 2017"},{"$f":"IFERROR(VLOOKUP(C6866,Translation!$A:$C,3,FALSE),C6866)","v":"IMMEUBLES COLLECTIFS RÉSIDENTIELS"},{"$f":"IFERROR(VLOOKUP(D6866,Translation!$A:$C,3,FALSE),D6866)","v":"Urbain"},{"$f":"IFERROR(VLOOKUP(E6866,Translation!$A:$C,3,FALSE),E6866)","v":99.234391614765315},{"$f":"IFERROR(VLOOKUP(F6866,Translation!$A:$C,3,FALSE),F6866)","v":"Prêts hypothécaires assurés au cours de la période selon le milieu urbain/rural (%)"},{"$f":"IFERROR(VLOOKUP(G6866,Translation!$A:$C,3,FALSE),G6866)","v":"99.2"},{"$f":"IFERROR(VLOOKUP(H6866,Translation!$A:$C,3,FALSE),H6866)","v":0}]
[30,"Q3 2016","IMMEUBLES COLLECTIFS RÉSIDENTIELS","Urbain",97.999027867790019,"Prêts hypothécaires assurés au cours de la période selon le milieu urbain/rural (%)","98.0",0,{"$f":"IFERROR(VLOOKUP(A6867,Translation!$A:$C,3,FALSE),A6867)","v":30},{"$f":"IFERROR(VLOOKUP(B6867,Translation!$A:$C,3,FALSE),B6867)","v":"Q3 2016"},{"$f":"IFERROR(VLOOKUP(C6867,Translation!$A:$C,3,FALSE),C6867)","v":"IMMEUBLES COLLECTIFS RÉSIDENTIELS"},{"$f":"IFERROR(VLOOKUP(D6867,Translation!$A:$C,3,FALSE),D6867)","v":"Urbain"},{"$f":"IFERROR(VLOOKUP(E6867,Translation!$A:$C,3,FALSE),E6867)","v":97.999027867790019},{"$f":"IFERROR(VLOOKUP(F6867,Translation!$A:$C,3,FALSE),F6867)","v":"Prêts hypothécaires assurés au cours de la période selon le milieu urbain/rural (%)"},{"$f":"IFERROR(VLOOKUP(G6867,Translation!$A:$C,3,FALSE),G6867)","v":"98.0"},{"$f":"IFERROR(VLOOKUP(H6867,Translation!$A:$C,3,FALSE),H6867)","v":0}]
[30,"T3 2017","IMMEUBLES COLLECTIFS RÉSIDENTIELS","Urbain",99.167694204685574,"Prêts hypothécaires assurés au cours de la période selon le milieu urbain/rural (%)","99.2",0,{"$f":"IFERROR(VLOOKUP(A6868,Translation!$A:$C,3,FALSE),A6868)","v":30},{"$f":"IFERROR(VLOOKUP(B6868,Translation!$A:$C,3,FALSE),B6868)","v":"T3 2017"},{"$f":"IFERROR(VLOOKUP(C6868,Translation!$A:$C,3,FALSE),C6868)","v":"IMMEUBLES COLLECTIFS RÉSIDENTIELS"},{"$f":"IFERROR(VLOOKUP(D6868,Translation!$A:$C,3,FALSE),D6868)","v":"Urbain"},{"$f":"IFERROR(VLOOKUP(E6868,Translation!$A:$C,3,FALSE),E6868)","v":99.167694204685574},{"$f":"IFERROR(VLOOKUP(F6868,Translation!$A:$C,3,FALSE),F6868)","v":"Prêts hypothécaires assurés au cours de la période selon le milieu urbain/rural (%)"},{"$f":"IFERROR(VLOOKUP(G6868,Translation!$A:$C,3,FALSE),G6868)","v":"99.2"},{"$f":"IFERROR(VLOOKUP(H6868,Translation!$A:$C,3,FALSE),H6868)","v":0}]
[30,"Q4 2016","IMMEUBLES COLLECTIFS RÉSIDENTIELS","Urbain",98.289728188944324,"Prêts hypothécaires assurés au cours de la période selon le milieu urbain/rural (%)","98.3",0,{"$f":"IFERROR(VLOOKUP(A6869,Translation!$A:$C,3,FALSE),A6869)","v":30},{"$f":"IFERROR(VLOOKUP(B6869,Translation!$A:$C,3,FALSE),B6869)","v":"Q4 2016"},{"$f":"IFERROR(VLOOKUP(C6869,Translation!$A:$C,3,FALSE),C6869)","v":"IMMEUBLES COLLECTIFS RÉSIDENTIELS"},{"$f":"IFERROR(VLOOKUP(D6869,Translation!$A:$C,3,FALSE),D6869)","v":"Urbain"},{"$f":"IFERROR(VLOOKUP(E6869,Translation!$A:$C,3,FALSE),E6869)","v":98.289728188944324},{"$f":"IFERROR(VLOOKUP(F6869,Translation!$A:$C,3,FALSE),F6869)","v":"Prêts hypothécaires assurés au cours de la période selon le milieu urbain/rural (%)"},{"$f":"IFERROR(VLOOKUP(G6869,Translation!$A:$C,3,FALSE),G6869)","v":"98.3"},{"$f":"IFERROR(VLOOKUP(H6869,Translation!$A:$C,3,FALSE),H6869)","v":0}]
[30,"T4 2017","IMMEUBLES COLLECTIFS RÉSIDENTIELS","Urbain",98.741081338195642,"Prêts hypothécaires assurés au cours de la période selon le milieu urbain/rural (%)","98.7",0,{"$f":"IFERROR(VLOOKUP(A6870,Translation!$A:$C,3,FALSE),A6870)","v":30},{"$f":"IFERROR(VLOOKUP(B6870,Translation!$A:$C,3,FALSE),B6870)","v":"T4 2017"},{"$f":"IFERROR(VLOOKUP(C6870,Translation!$A:$C,3,FALSE),C6870)","v":"IMMEUBLES COLLECTIFS RÉSIDENTIELS"},{"$f":"IFERROR(VLOOKUP(D6870,Translation!$A:$C,3,FALSE),D6870)","v":"Urbain"},{"$f":"IFERROR(VLOOKUP(E6870,Translation!$A:$C,3,FALSE),E6870)","v":98.741081338195642},{"$f":"IFERROR(VLOOKUP(F6870,Translation!$A:$C,3,FALSE),F6870)","v":"Prêts hypothécaires assurés au cours de la période selon le milieu urbain/rural (%)"},{"$f":"IFERROR(VLOOKUP(G6870,Translation!$A:$C,3,FALSE),G6870)","v":"98.7"},{"$f":"IFERROR(VLOOKUP(H6870,Translation!$A:$C,3,FALSE),H6870)","v":0}]
[30,"T1 2018","IMMEUBLES COLLECTIFS RÉSIDENTIELS","Terre-Neuve-et-Labrador",100,"Prêts hypothécaires assurés au cours de la période selon le milieu urbain/rural (%)","100.0",0,{"$f":"IFERROR(VLOOKUP(A6871,Translation!$A:$C,3,FALSE),A6871)","v":30},{"$f":"IFERROR(VLOOKUP(B6871,Translation!$A:$C,3,FALSE),B6871)","v":"T1 2018"},{"$f":"IFERROR(VLOOKUP(C6871,Translation!$A:$C,3,FALSE),C6871)","v":"IMMEUBLES COLLECTIFS RÉSIDENTIELS"},{"$f":"IFERROR(VLOOKUP(D6871,Translation!$A:$C,3,FALSE),D6871)","v":"Terre-Neuve-et-Labrador"},{"$f":"IFERROR(VLOOKUP(E6871,Translation!$A:$C,3,FALSE),E6871)","v":100},{"$f":"IFERROR(VLOOKUP(F6871,Translation!$A:$C,3,FALSE),F6871)","v":"Prêts hypothécaires assurés au cours de la période selon le milieu urbain/rural (%)"},{"$f":"IFERROR(VLOOKUP(G6871,Translation!$A:$C,3,FALSE),G6871)","v":"100.0"},{"$f":"IFERROR(VLOOKUP(H6871,Translation!$A:$C,3,FALSE),H6871)","v":0}]
[30,"Q2 2016","IMMEUBLES COLLECTIFS RÉSIDENTIELS","Terre-Neuve-et-Labrador",100,"Prêts hypothécaires assurés au cours de la période selon le milieu urbain/rural (%)","100.0",0,{"$f":"IFERROR(VLOOKUP(A6872,Translation!$A:$C,3,FALSE),A6872)","v":30},{"$f":"IFERROR(VLOOKUP(B6872,Translation!$A:$C,3,FALSE),B6872)","v":"Q2 2016"},{"$f":"IFERROR(VLOOKUP(C6872,Translation!$A:$C,3,FALSE),C6872)","v":"IMMEUBLES COLLECTIFS RÉSIDENTIELS"},{"$f":"IFERROR(VLOOKUP(D6872,Translation!$A:$C,3,FALSE),D6872)","v":"Terre-Neuve-et-Labrador"},{"$f":"IFERROR(VLOOKUP(E6872,Translation!$A:$C,3,FALSE),E6872)","v":100},{"$f":"IFERROR(VLOOKUP(F6872,Translation!$A:$C,3,FALSE),F6872)","v":"Prêts hypothécaires assurés au cours de la période selon le milieu urbain/rural (%)"},{"$f":"IFERROR(VLOOKUP(G6872,Translation!$A:$C,3,FALSE),G6872)","v":"100.0"},{"$f":"IFERROR(VLOOKUP(H6872,Translation!$A:$C,3,FALSE),H6872)","v":0}]
[30,"T2 2017","IMMEUBLES COLLECTIFS RÉSIDENTIELS","Terre-Neuve-et-Labrador",100,"Prêts hypothécaires assurés au cours de la période selon le milieu urbain/rural (%)","100.0",0,{"$f":"IFERROR(VLOOKUP(A6873,Translation!$A:$C,3,FALSE),A6873)","v":30},{"$f":"IFERROR(VLOOKUP(B6873,Translation!$A:$C,3,FALSE),B6873)","v":"T2 2017"},{"$f":"IFERROR(VLOOKUP(C6873,Translation!$A:$C,3,FALSE),C6873)","v":"IMMEUBLES COLLECTIFS RÉSIDENTIELS"},{"$f":"IFERROR(VLOOKUP(D6873,Translation!$A:$C,3,FALSE),D6873)","v":"Terre-Neuve-et-Labrador"},{"$f":"IFERROR(VLOOKUP(E6873,Translation!$A:$C,3,FALSE),E6873)","v":100},{"$f":"IFERROR(VLOOKUP(F6873,Translation!$A:$C,3,FALSE),F6873)","v":"Prêts hypothécaires assurés au cours de la période selon le milieu urbain/rural (%)"},{"$f":"IFERROR(VLOOKUP(G6873,Translation!$A:$C,3,FALSE),G6873)","v":"100.0"},{"$f":"IFERROR(VLOOKUP(H6873,Translation!$A:$C,3,FALSE),H6873)","v":0}]
[30,"Q3 2016","IMMEUBLES COLLECTIFS RÉSIDENTIELS","Terre-Neuve-et-Labrador",72.727272727272734,"Prêts hypothécaires assurés au cours de la période selon le milieu urbain/rural (%)","72.7",0,{"$f":"IFERROR(VLOOKUP(A6874,Translation!$A:$C,3,FALSE),A6874)","v":30},{"$f":"IFERROR(VLOOKUP(B6874,Translation!$A:$C,3,FALSE),B6874)","v":"Q3 2016"},{"$f":"IFERROR(VLOOKUP(C6874,Translation!$A:$C,3,FALSE),C6874)","v":"IMMEUBLES COLLECTIFS RÉSIDENTIELS"},{"$f":"IFERROR(VLOOKUP(D6874,Translation!$A:$C,3,FALSE),D6874)","v":"Terre-Neuve-et-Labrador"},{"$f":"IFERROR(VLOOKUP(E6874,Translation!$A:$C,3,FALSE),E6874)","v":72.727272727272734},{"$f":"IFERROR(VLOOKUP(F6874,Translation!$A:$C,3,FALSE),F6874)","v":"Prêts hypothécaires assurés au cours de la période selon le milieu urbain/rural (%)"},{"$f":"IFERROR(VLOOKUP(G6874,Translation!$A:$C,3,FALSE),G6874)","v":"72.7"},{"$f":"IFERROR(VLOOKUP(H6874,Translation!$A:$C,3,FALSE),H6874)","v":0}]
[30,"T3 2017","IMMEUBLES COLLECTIFS RÉSIDENTIELS","Terre-Neuve-et-Labrador",89.393939393939377,"Prêts hypothécaires assurés au cours de la période selon le milieu urbain/rural (%)","89.4",0,{"$f":"IFERROR(VLOOKUP(A6875,Translation!$A:$C,3,FALSE),A6875)","v":30},{"$f":"IFERROR(VLOOKUP(B6875,Translation!$A:$C,3,FALSE),B6875)","v":"T3 2017"},{"$f":"IFERROR(VLOOKUP(C6875,Translation!$A:$C,3,FALSE),C6875)","v":"IMMEUBLES COLLECTIFS RÉSIDENTIELS"},{"$f":"IFERROR(VLOOKUP(D6875,Translation!$A:$C,3,FALSE),D6875)","v":"Terre-Neuve-et-Labrador"},{"$f":"IFERROR(VLOOKUP(E6875,Translation!$A:$C,3,FALSE),E6875)","v":89.393939393939377},{"$f":"IFERROR(VLOOKUP(F6875,Translation!$A:$C,3,FALSE),F6875)","v":"Prêts hypothécaires assurés au cours de la période selon le milieu urbain/rural (%)"},{"$f":"IFERROR(VLOOKUP(G6875,Translation!$A:$C,3,FALSE),G6875)","v":"89.4"},{"$f":"IFERROR(VLOOKUP(H6875,Translation!$A:$C,3,FALSE),H6875)","v":0}]
[30,"Q4 2016","IMMEUBLES COLLECTIFS RÉSIDENTIELS","Terre-Neuve-et-Labrador",100,"Prêts hypothécaires assurés au cours de la période selon le milieu urbain/rural (%)","100.0",0,{"$f":"IFERROR(VLOOKUP(A6876,Translation!$A:$C,3,FALSE),A6876)","v":30},{"$f":"IFERROR(VLOOKUP(B6876,Translation!$A:$C,3,FALSE),B6876)","v":"Q4 2016"},{"$f":"IFERROR(VLOOKUP(C6876,Translation!$A:$C,3,FALSE),C6876)","v":"IMMEUBLES COLLECTIFS RÉSIDENTIELS"},{"$f":"IFERROR(VLOOKUP(D6876,Translation!$A:$C,3,FALSE),D6876)","v":"Terre-Neuve-et-Labrador"},{"$f":"IFERROR(VLOOKUP(E6876,Translation!$A:$C,3,FALSE),E6876)","v":100},{"$f":"IFERROR(VLOOKUP(F6876,Translation!$A:$C,3,FALSE),F6876)","v":"Prêts hypothécaires assurés au cours de la période selon le milieu urbain/rural (%)"},{"$f":"IFERROR(VLOOKUP(G6876,Translation!$A:$C,3,FALSE),G6876)","v":"100.0"},{"$f":"IFERROR(VLOOKUP(H6876,Translation!$A:$C,3,FALSE),H6876)","v":0}]
[30,"T4 2017","IMMEUBLES COLLECTIFS RÉSIDENTIELS","Terre-Neuve-et-Labrador",100,"Prêts hypothécaires assurés au cours de la période selon le milieu urbain/rural (%)","100.0",0,{"$f":"IFERROR(VLOOKUP(A6877,Translation!$A:$C,3,FALSE),A6877)","v":30},{"$f":"IFERROR(VLOOKUP(B6877,Translation!$A:$C,3,FALSE),B6877)","v":"T4 2017"},{"$f":"IFERROR(VLOOKUP(C6877,Translation!$A:$C,3,FALSE),C6877)","v":"IMMEUBLES COLLECTIFS RÉSIDENTIELS"},{"$f":"IFERROR(VLOOKUP(D6877,Translation!$A:$C,3,FALSE),D6877)","v":"Terre-Neuve-et-Labrador"},{"$f":"IFERROR(VLOOKUP(E6877,Translation!$A:$C,3,FALSE),E6877)","v":100},{"$f":"IFERROR(VLOOKUP(F6877,Translation!$A:$C,3,FALSE),F6877)","v":"Prêts hypothécaires assurés au cours de la période selon le milieu urbain/rural (%)"},{"$f":"IFERROR(VLOOKUP(G6877,Translation!$A:$C,3,FALSE),G6877)","v":"100.0"},{"$f":"IFERROR(VLOOKUP(H6877,Translation!$A:$C,3,FALSE),H6877)","v":0}]
[30,"T1 2018","IMMEUBLES COLLECTIFS RÉSIDENTIELS","Île-du-Prince-Édouard",100,"Prêts hypothécaires assurés au cours de la période selon le milieu urbain/rural (%)","100.0",0,{"$f":"IFERROR(VLOOKUP(A6878,Translation!$A:$C,3,FALSE),A6878)","v":30},{"$f":"IFERROR(VLOOKUP(B6878,Translation!$A:$C,3,FALSE),B6878)","v":"T1 2018"},{"$f":"IFERROR(VLOOKUP(C6878,Translation!$A:$C,3,FALSE),C6878)","v":"IMMEUBLES COLLECTIFS RÉSIDENTIELS"},{"$f":"IFERROR(VLOOKUP(D6878,Translation!$A:$C,3,FALSE),D6878)","v":"Île-du-Prince-Édouard"},{"$f":"IFERROR(VLOOKUP(E6878,Translation!$A:$C,3,FALSE),E6878)","v":100},{"$f":"IFERROR(VLOOKUP(F6878,Translation!$A:$C,3,FALSE),F6878)","v":"Prêts hypothécaires assurés au cours de la période selon le milieu urbain/rural (%)"},{"$f":"IFERROR(VLOOKUP(G6878,Translation!$A:$C,3,FALSE),G6878)","v":"100.0"},{"$f":"IFERROR(VLOOKUP(H6878,Translation!$A:$C,3,FALSE),H6878)","v":0}]
[30,"Q2 2016","IMMEUBLES COLLECTIFS RÉSIDENTIELS","Île-du-Prince-Édouard",85.714285714285694,"Prêts hypothécaires assurés au cours de la période selon le milieu urbain/rural (%)","85.7",0,{"$f":"IFERROR(VLOOKUP(A6879,Translation!$A:$C,3,FALSE),A6879)","v":30},{"$f":"IFERROR(VLOOKUP(B6879,Translation!$A:$C,3,FALSE),B6879)","v":"Q2 2016"},{"$f":"IFERROR(VLOOKUP(C6879,Translation!$A:$C,3,FALSE),C6879)","v":"IMMEUBLES COLLECTIFS RÉSIDENTIELS"},{"$f":"IFERROR(VLOOKUP(D6879,Translation!$A:$C,3,FALSE),D6879)","v":"Île-du-Prince-Édouard"},{"$f":"IFERROR(VLOOKUP(E6879,Translation!$A:$C,3,FALSE),E6879)","v":85.714285714285694},{"$f":"IFERROR(VLOOKUP(F6879,Translation!$A:$C,3,FALSE),F6879)","v":"Prêts hypothécaires assurés au cours de la période selon le milieu urbain/rural (%)"},{"$f":"IFERROR(VLOOKUP(G6879,Translation!$A:$C,3,FALSE),G6879)","v":"85.7"},{"$f":"IFERROR(VLOOKUP(H6879,Translation!$A:$C,3,FALSE),H6879)","v":0}]
[30,"T2 2017","IMMEUBLES COLLECTIFS RÉSIDENTIELS","Île-du-Prince-Édouard",18,"Prêts hypothécaires assurés au cours de la période selon le milieu urbain/rural (%)","18.0",0,{"$f":"IFERROR(VLOOKUP(A6880,Translation!$A:$C,3,FALSE),A6880)","v":30},{"$f":"IFERROR(VLOOKUP(B6880,Translation!$A:$C,3,FALSE),B6880)","v":"T2 2017"},{"$f":"IFERROR(VLOOKUP(C6880,Translation!$A:$C,3,FALSE),C6880)","v":"IMMEUBLES COLLECTIFS RÉSIDENTIELS"},{"$f":"IFERROR(VLOOKUP(D6880,Translation!$A:$C,3,FALSE),D6880)","v":"Île-du-Prince-Édouard"},{"$f":"IFERROR(VLOOKUP(E6880,Translation!$A:$C,3,FALSE),E6880)","v":18},{"$f":"IFERROR(VLOOKUP(F6880,Translation!$A:$C,3,FALSE),F6880)","v":"Prêts hypothécaires assurés au cours de la période selon le milieu urbain/rural (%)"},{"$f":"IFERROR(VLOOKUP(G6880,Translation!$A:$C,3,FALSE),G6880)","v":"18.0"},{"$f":"IFERROR(VLOOKUP(H6880,Translation!$A:$C,3,FALSE),H6880)","v":0}]
[30,"Q3 2016","IMMEUBLES COLLECTIFS RÉSIDENTIELS","Île-du-Prince-Édouard",100,"Prêts hypothécaires assurés au cours de la période selon le milieu urbain/rural (%)","100.0",0,{"$f":"IFERROR(VLOOKUP(A6881,Translation!$A:$C,3,FALSE),A6881)","v":30},{"$f":"IFERROR(VLOOKUP(B6881,Translation!$A:$C,3,FALSE),B6881)","v":"Q3 2016"},{"$f":"IFERROR(VLOOKUP(C6881,Translation!$A:$C,3,FALSE),C6881)","v":"IMMEUBLES COLLECTIFS RÉSIDENTIELS"},{"$f":"IFERROR(VLOOKUP(D6881,Translation!$A:$C,3,FALSE),D6881)","v":"Île-du-Prince-Édouard"},{"$f":"IFERROR(VLOOKUP(E6881,Translation!$A:$C,3,FALSE),E6881)","v":100},{"$f":"IFERROR(VLOOKUP(F6881,Translation!$A:$C,3,FALSE),F6881)","v":"Prêts hypothécaires assurés au cours de la période selon le milieu urbain/rural (%)"},{"$f":"IFERROR(VLOOKUP(G6881,Translation!$A:$C,3,FALSE),G6881)","v":"100.0"},{"$f":"IFERROR(VLOOKUP(H6881,Translation!$A:$C,3,FALSE),H6881)","v":0}]
[30,"T3 2017","IMMEUBLES COLLECTIFS RÉSIDENTIELS","Île-du-Prince-Édouard",100,"Prêts hypothécaires assurés au cours de la période selon le milieu urbain/rural (%)","100.0",0,{"$f":"IFERROR(VLOOKUP(A6882,Translation!$A:$C,3,FALSE),A6882)","v":30},{"$f":"IFERROR(VLOOKUP(B6882,Translation!$A:$C,3,FALSE),B6882)","v":"T3 2017"},{"$f":"IFERROR(VLOOKUP(C6882,Translation!$A:$C,3,FALSE),C6882)","v":"IMMEUBLES COLLECTIFS RÉSIDENTIELS"},{"$f":"IFERROR(VLOOKUP(D6882,Translation!$A:$C,3,FALSE),D6882)","v":"Île-du-Prince-Édouard"},{"$f":"IFERROR(VLOOKUP(E6882,Translation!$A:$C,3,FALSE),E6882)","v":100},{"$f":"IFERROR(VLOOKUP(F6882,Translation!$A:$C,3,FALSE),F6882)","v":"Prêts hypothécaires assurés au cours de la période selon le milieu urbain/rural (%)"},{"$f":"IFERROR(VLOOKUP(G6882,Translation!$A:$C,3,FALSE),G6882)","v":"100.0"},{"$f":"IFERROR(VLOOKUP(H6882,Translation!$A:$C,3,FALSE),H6882)","v":0}]
[30,"Q4 2016","IMMEUBLES COLLECTIFS RÉSIDENTIELS","Île-du-Prince-Édouard",66.666666666666643,"Prêts hypothécaires assurés au cours de la période selon le milieu urbain/rural (%)","66.7",0,{"$f":"IFERROR(VLOOKUP(A6883,Translation!$A:$C,3,FALSE),A6883)","v":30},{"$f":"IFERROR(VLOOKUP(B6883,Translation!$A:$C,3,FALSE),B6883)","v":"Q4 2016"},{"$f":"IFERROR(VLOOKUP(C6883,Translation!$A:$C,3,FALSE),C6883)","v":"IMMEUBLES COLLECTIFS RÉSIDENTIELS"},{"$f":"IFERROR(VLOOKUP(D6883,Translation!$A:$C,3,FALSE),D6883)","v":"Île-du-Prince-Édouard"},{"$f":"IFERROR(VLOOKUP(E6883,Translation!$A:$C,3,FALSE),E6883)","v":66.666666666666643},{"$f":"IFERROR(VLOOKUP(F6883,Translation!$A:$C,3,FALSE),F6883)","v":"Prêts hypothécaires assurés au cours de la période selon le milieu urbain/rural (%)"},{"$f":"IFERROR(VLOOKUP(G6883,Translation!$A:$C,3,FALSE),G6883)","v":"66.7"},{"$f":"IFERROR(VLOOKUP(H6883,Translation!$A:$C,3,FALSE),H6883)","v":0}]
[30,"T4 2017","IMMEUBLES COLLECTIFS RÉSIDENTIELS","Île-du-Prince-Édouard",76.666666666666686,"Prêts hypothécaires assurés au cours de la période selon le milieu urbain/rural (%)","76.7",0,{"$f":"IFERROR(VLOOKUP(A6884,Translation!$A:$C,3,FALSE),A6884)","v":30},{"$f":"IFERROR(VLOOKUP(B6884,Translation!$A:$C,3,FALSE),B6884)","v":"T4 2017"},{"$f":"IFERROR(VLOOKUP(C6884,Translation!$A:$C,3,FALSE),C6884)","v":"IMMEUBLES COLLECTIFS RÉSIDENTIELS"},{"$f":"IFERROR(VLOOKUP(D6884,Translation!$A:$C,3,FALSE),D6884)","v":"Île-du-Prince-Édouard"},{"$f":"IFERROR(VLOOKUP(E6884,Translation!$A:$C,3,FALSE),E6884)","v":76.666666666666686},{"$f":"IFERROR(VLOOKUP(F6884,Translation!$A:$C,3,FALSE),F6884)","v":"Prêts hypothécaires assurés au cours de la période selon le milieu urbain/rural (%)"},{"$f":"IFERROR(VLOOKUP(G6884,Translation!$A:$C,3,FALSE),G6884)","v":"76.7"},{"$f":"IFERROR(VLOOKUP(H6884,Translation!$A:$C,3,FALSE),H6884)","v":0}]
[30,"T1 2017","IMMEUBLES COLLECTIFS RÉSIDENTIELS","Nouvelle-Écosse",97.835497835497819,"Prêts hypothécaires assurés au cours de la période selon le milieu urbain/rural (%)","97.8",0,{"$f":"IFERROR(VLOOKUP(A6885,Translation!$A:$C,3,FALSE),A6885)","v":30},{"$f":"IFERROR(VLOOKUP(B6885,Translation!$A:$C,3,FALSE),B6885)","v":"T1 2017"},{"$f":"IFERROR(VLOOKUP(C6885,Translation!$A:$C,3,FALSE),C6885)","v":"IMMEUBLES COLLECTIFS RÉSIDENTIELS"},{"$f":"IFERROR(VLOOKUP(D6885,Translation!$A:$C,3,FALSE),D6885)","v":"Nouvelle-Écosse"},{"$f":"IFERROR(VLOOKUP(E6885,Translation!$A:$C,3,FALSE),E6885)","v":97.835497835497819},{"$f":"IFERROR(VLOOKUP(F6885,Translation!$A:$C,3,FALSE),F6885)","v":"Prêts hypothécaires assurés au cours de la période selon le milieu urbain/rural (%)"},{"$f":"IFERROR(VLOOKUP(G6885,Translation!$A:$C,3,FALSE),G6885)","v":"97.8"},{"$f":"IFERROR(VLOOKUP(H6885,Translation!$A:$C,3,FALSE),H6885)","v":0}]
[30,"T1 2018","IMMEUBLES COLLECTIFS RÉSIDENTIELS","Nouvelle-Écosse",100,"Prêts hypothécaires assurés au cours de la période selon le milieu urbain/rural (%)","100.0",0,{"$f":"IFERROR(VLOOKUP(A6886,Translation!$A:$C,3,FALSE),A6886)","v":30},{"$f":"IFERROR(VLOOKUP(B6886,Translation!$A:$C,3,FALSE),B6886)","v":"T1 2018"},{"$f":"IFERROR(VLOOKUP(C6886,Translation!$A:$C,3,FALSE),C6886)","v":"IMMEUBLES COLLECTIFS RÉSIDENTIELS"},{"$f":"IFERROR(VLOOKUP(D6886,Translation!$A:$C,3,FALSE),D6886)","v":"Nouvelle-Écosse"},{"$f":"IFERROR(VLOOKUP(E6886,Translation!$A:$C,3,FALSE),E6886)","v":100},{"$f":"IFERROR(VLOOKUP(F6886,Translation!$A:$C,3,FALSE),F6886)","v":"Prêts hypothécaires assurés au cours de la période selon le milieu urbain/rural (%)"},{"$f":"IFERROR(VLOOKUP(G6886,Translation!$A:$C,3,FALSE),G6886)","v":"100.0"},{"$f":"IFERROR(VLOOKUP(H6886,Translation!$A:$C,3,FALSE),H6886)","v":0}]
[30,"Q2 2016","IMMEUBLES COLLECTIFS RÉSIDENTIELS","Nouvelle-Écosse",99.787955894826155,"Prêts hypothécaires assurés au cours de la période selon le milieu urbain/rural (%)","99.8",0,{"$f":"IFERROR(VLOOKUP(A6887,Translation!$A:$C,3,FALSE),A6887)","v":30},{"$f":"IFERROR(VLOOKUP(B6887,Translation!$A:$C,3,FALSE),B6887)","v":"Q2 2016"},{"$f":"IFERROR(VLOOKUP(C6887,Translation!$A:$C,3,FALSE),C6887)","v":"IMMEUBLES COLLECTIFS RÉSIDENTIELS"},{"$f":"IFERROR(VLOOKUP(D6887,Translation!$A:$C,3,FALSE),D6887)","v":"Nouvelle-Écosse"},{"$f":"IFERROR(VLOOKUP(E6887,Translation!$A:$C,3,FALSE),E6887)","v":99.787955894826155},{"$f":"IFERROR(VLOOKUP(F6887,Translation!$A:$C,3,FALSE),F6887)","v":"Prêts hypothécaires assurés au cours de la période selon le milieu urbain/rural (%)"},{"$f":"IFERROR(VLOOKUP(G6887,Translation!$A:$C,3,FALSE),G6887)","v":"99.8"},{"$f":"IFERROR(VLOOKUP(H6887,Translation!$A:$C,3,FALSE),H6887)","v":0}]
[30,"T2 2017","IMMEUBLES COLLECTIFS RÉSIDENTIELS","Nouvelle-Écosse",100,"Prêts hypothécaires assurés au cours de la période selon le milieu urbain/rural (%)","100.0",0,{"$f":"IFERROR(VLOOKUP(A6888,Translation!$A:$C,3,FALSE),A6888)","v":30},{"$f":"IFERROR(VLOOKUP(B6888,Translation!$A:$C,3,FALSE),B6888)","v":"T2 2017"},{"$f":"IFERROR(VLOOKUP(C6888,Translation!$A:$C,3,FALSE),C6888)","v":"IMMEUBLES COLLECTIFS RÉSIDENTIELS"},{"$f":"IFERROR(VLOOKUP(D6888,Translation!$A:$C,3,FALSE),D6888)","v":"Nouvelle-Écosse"},{"$f":"IFERROR(VLOOKUP(E6888,Translation!$A:$C,3,FALSE),E6888)","v":100},{"$f":"IFERROR(VLOOKUP(F6888,Translation!$A:$C,3,FALSE),F6888)","v":"Prêts hypothécaires assurés au cours de la période selon le milieu urbain/rural (%)"},{"$f":"IFERROR(VLOOKUP(G6888,Translation!$A:$C,3,FALSE),G6888)","v":"100.0"},{"$f":"IFERROR(VLOOKUP(H6888,Translation!$A:$C,3,FALSE),H6888)","v":0}]
[30,"Q3 2016","IMMEUBLES COLLECTIFS RÉSIDENTIELS","Nouvelle-Écosse",100,"Prêts hypothécaires assurés au cours de la période selon le milieu urbain/rural (%)","100.0",0,{"$f":"IFERROR(VLOOKUP(A6889,Translation!$A:$C,3,FALSE),A6889)","v":30},{"$f":"IFERROR(VLOOKUP(B6889,Translation!$A:$C,3,FALSE),B6889)","v":"Q3 2016"},{"$f":"IFERROR(VLOOKUP(C6889,Translation!$A:$C,3,FALSE),C6889)","v":"IMMEUBLES COLLECTIFS RÉSIDENTIELS"},{"$f":"IFERROR(VLOOKUP(D6889,Translation!$A:$C,3,FALSE),D6889)","v":"Nouvelle-Écosse"},{"$f":"IFERROR(VLOOKUP(E6889,Translation!$A:$C,3,FALSE),E6889)","v":100},{"$f":"IFERROR(VLOOKUP(F6889,Translation!$A:$C,3,FALSE),F6889)","v":"Prêts hypothécaires assurés au cours de la période selon le milieu urbain/rural (%)"},{"$f":"IFERROR(VLOOKUP(G6889,Translation!$A:$C,3,FALSE),G6889)","v":"100.0"},{"$f":"IFERROR(VLOOKUP(H6889,Translation!$A:$C,3,FALSE),H6889)","v":0}]
[30,"T3 2017","IMMEUBLES COLLECTIFS RÉSIDENTIELS","Nouvelle-Écosse",100,"Prêts hypothécaires assurés au cours de la période selon le milieu urbain/rural (%)","100.0",0,{"$f":"IFERROR(VLOOKUP(A6890,Translation!$A:$C,3,FALSE),A6890)","v":30},{"$f":"IFERROR(VLOOKUP(B6890,Translation!$A:$C,3,FALSE),B6890)","v":"T3 2017"},{"$f":"IFERROR(VLOOKUP(C6890,Translation!$A:$C,3,FALSE),C6890)","v":"IMMEUBLES COLLECTIFS RÉSIDENTIELS"},{"$f":"IFERROR(VLOOKUP(D6890,Translation!$A:$C,3,FALSE),D6890)","v":"Nouvelle-Écosse"},{"$f":"IFERROR(VLOOKUP(E6890,Translation!$A:$C,3,FALSE),E6890)","v":100},{"$f":"IFERROR(VLOOKUP(F6890,Translation!$A:$C,3,FALSE),F6890)","v":"Prêts hypothécaires assurés au cours de la période selon le milieu urbain/rural (%)"},{"$f":"IFERROR(VLOOKUP(G6890,Translation!$A:$C,3,FALSE),G6890)","v":"100.0"},{"$f":"IFERROR(VLOOKUP(H6890,Translation!$A:$C,3,FALSE),H6890)","v":0}]
[30,"Q4 2016","IMMEUBLES COLLECTIFS RÉSIDENTIELS","Nouvelle-Écosse",100,"Prêts hypothécaires assurés au cours de la période selon le milieu urbain/rural (%)","100.0",0,{"$f":"IFERROR(VLOOKUP(A6891,Translation!$A:$C,3,FALSE),A6891)","v":30},{"$f":"IFERROR(VLOOKUP(B6891,Translation!$A:$C,3,FALSE),B6891)","v":"Q4 2016"},{"$f":"IFERROR(VLOOKUP(C6891,Translation!$A:$C,3,FALSE),C6891)","v":"IMMEUBLES COLLECTIFS RÉSIDENTIELS"},{"$f":"IFERROR(VLOOKUP(D6891,Translation!$A:$C,3,FALSE),D6891)","v":"Nouvelle-Écosse"},{"$f":"IFERROR(VLOOKUP(E6891,Translation!$A:$C,3,FALSE),E6891)","v":100},{"$f":"IFERROR(VLOOKUP(F6891,Translation!$A:$C,3,FALSE),F6891)","v":"Prêts hypothécaires assurés au cours de la période selon le milieu urbain/rural (%)"},{"$f":"IFERROR(VLOOKUP(G6891,Translation!$A:$C,3,FALSE),G6891)","v":"100.0"},{"$f":"IFERROR(VLOOKUP(H6891,Translation!$A:$C,3,FALSE),H6891)","v":0}]
[30,"T4 2017","IMMEUBLES COLLECTIFS RÉSIDENTIELS","Nouvelle-Écosse",95.121951219512169,"Prêts hypothécaires assurés au cours de la période selon le milieu urbain/rural (%)","95.1",0,{"$f":"IFERROR(VLOOKUP(A6892,Translation!$A:$C,3,FALSE),A6892)","v":30},{"$f":"IFERROR(VLOOKUP(B6892,Translation!$A:$C,3,FALSE),B6892)","v":"T4 2017"},{"$f":"IFERROR(VLOOKUP(C6892,Translation!$A:$C,3,FALSE),C6892)","v":"IMMEUBLES COLLECTIFS RÉSIDENTIELS"},{"$f":"IFERROR(VLOOKUP(D6892,Translation!$A:$C,3,FALSE),D6892)","v":"Nouvelle-Écosse"},{"$f":"IFERROR(VLOOKUP(E6892,Translation!$A:$C,3,FALSE),E6892)","v":95.121951219512169},{"$f":"IFERROR(VLOOKUP(F6892,Translation!$A:$C,3,FALSE),F6892)","v":"Prêts hypothécaires assurés au cours de la période selon le milieu urbain/rural (%)"},{"$f":"IFERROR(VLOOKUP(G6892,Translation!$A:$C,3,FALSE),G6892)","v":"95.1"},{"$f":"IFERROR(VLOOKUP(H6892,Translation!$A:$C,3,FALSE),H6892)","v":0}]
[30,"T1 2017","IMMEUBLES COLLECTIFS RÉSIDENTIELS","Nouveau-Brunswick",100,"Prêts hypothécaires assurés au cours de la période selon le milieu urbain/rural (%)","100.0",0,{"$f":"IFERROR(VLOOKUP(A6893,Translation!$A:$C,3,FALSE),A6893)","v":30},{"$f":"IFERROR(VLOOKUP(B6893,Translation!$A:$C,3,FALSE),B6893)","v":"T1 2017"},{"$f":"IFERROR(VLOOKUP(C6893,Translation!$A:$C,3,FALSE),C6893)","v":"IMMEUBLES COLLECTIFS RÉSIDENTIELS"},{"$f":"IFERROR(VLOOKUP(D6893,Translation!$A:$C,3,FALSE),D6893)","v":"Nouveau-Brunswick"},{"$f":"IFERROR(VLOOKUP(E6893,Translation!$A:$C,3,FALSE),E6893)","v":100},{"$f":"IFERROR(VLOOKUP(F6893,Translation!$A:$C,3,FALSE),F6893)","v":"Prêts hypothécaires assurés au cours de la période selon le milieu urbain/rural (%)"},{"$f":"IFERROR(VLOOKUP(G6893,Translation!$A:$C,3,FALSE),G6893)","v":"100.0"},{"$f":"IFERROR(VLOOKUP(H6893,Translation!$A:$C,3,FALSE),H6893)","v":0}]
[30,"T1 2018","IMMEUBLES COLLECTIFS RÉSIDENTIELS","Nouveau-Brunswick",100,"Prêts hypothécaires assurés au cours de la période selon le milieu urbain/rural (%)","100.0",0,{"$f":"IFERROR(VLOOKUP(A6894,Translation!$A:$C,3,FALSE),A6894)","v":30},{"$f":"IFERROR(VLOOKUP(B6894,Translation!$A:$C,3,FALSE),B6894)","v":"T1 2018"},{"$f":"IFERROR(VLOOKUP(C6894,Translation!$A:$C,3,FALSE),C6894)","v":"IMMEUBLES COLLECTIFS RÉSIDENTIELS"},{"$f":"IFERROR(VLOOKUP(D6894,Translation!$A:$C,3,FALSE),D6894)","v":"Nouveau-Brunswick"},{"$f":"IFERROR(VLOOKUP(E6894,Translation!$A:$C,3,FALSE),E6894)","v":100},{"$f":"IFERROR(VLOOKUP(F6894,Translation!$A:$C,3,FALSE),F6894)","v":"Prêts hypothécaires assurés au cours de la période selon le milieu urbain/rural (%)"},{"$f":"IFERROR(VLOOKUP(G6894,Translation!$A:$C,3,FALSE),G6894)","v":"100.0"},{"$f":"IFERROR(VLOOKUP(H6894,Translation!$A:$C,3,FALSE),H6894)","v":0}]
[30,"Q2 2016","IMMEUBLES COLLECTIFS RÉSIDENTIELS","Nouveau-Brunswick",98.032786885245898,"Prêts hypothécaires assurés au cours de la période selon le milieu urbain/rural (%)","98.0",0,{"$f":"IFERROR(VLOOKUP(A6895,Translation!$A:$C,3,FALSE),A6895)","v":30},{"$f":"IFERROR(VLOOKUP(B6895,Translation!$A:$C,3,FALSE),B6895)","v":"Q2 2016"},{"$f":"IFERROR(VLOOKUP(C6895,Translation!$A:$C,3,FALSE),C6895)","v":"IMMEUBLES COLLECTIFS RÉSIDENTIELS"},{"$f":"IFERROR(VLOOKUP(D6895,Translation!$A:$C,3,FALSE),D6895)","v":"Nouveau-Brunswick"},{"$f":"IFERROR(VLOOKUP(E6895,Translation!$A:$C,3,FALSE),E6895)","v":98.032786885245898},{"$f":"IFERROR(VLOOKUP(F6895,Translation!$A:$C,3,FALSE),F6895)","v":"Prêts hypothécaires assurés au cours de la période selon le milieu urbain/rural (%)"},{"$f":"IFERROR(VLOOKUP(G6895,Translation!$A:$C,3,FALSE),G6895)","v":"98.0"},{"$f":"IFERROR(VLOOKUP(H6895,Translation!$A:$C,3,FALSE),H6895)","v":0}]
[30,"T2 2017","IMMEUBLES COLLECTIFS RÉSIDENTIELS","Nouveau-Brunswick",100,"Prêts hypothécaires assurés au cours de la période selon le milieu urbain/rural (%)","100.0",0,{"$f":"IFERROR(VLOOKUP(A6896,Translation!$A:$C,3,FALSE),A6896)","v":30},{"$f":"IFERROR(VLOOKUP(B6896,Translation!$A:$C,3,FALSE),B6896)","v":"T2 2017"},{"$f":"IFERROR(VLOOKUP(C6896,Translation!$A:$C,3,FALSE),C6896)","v":"IMMEUBLES COLLECTIFS RÉSIDENTIELS"},{"$f":"IFERROR(VLOOKUP(D6896,Translation!$A:$C,3,FALSE),D6896)","v":"Nouveau-Brunswick"},{"$f":"IFERROR(VLOOKUP(E6896,Translation!$A:$C,3,FALSE),E6896)","v":100},{"$f":"IFERROR(VLOOKUP(F6896,Translation!$A:$C,3,FALSE),F6896)","v":"Prêts hypothécaires assurés au cours de la période selon le milieu urbain/rural (%)"},{"$f":"IFERROR(VLOOKUP(G6896,Translation!$A:$C,3,FALSE),G6896)","v":"100.0"},{"$f":"IFERROR(VLOOKUP(H6896,Translation!$A:$C,3,FALSE),H6896)","v":0}]
[30,"Q3 2016","IMMEUBLES COLLECTIFS RÉSIDENTIELS","Nouveau-Brunswick",100,"Prêts hypothécaires assurés au cours de la période selon le milieu urbain/rural (%)","100.0",0,{"$f":"IFERROR(VLOOKUP(A6897,Translation!$A:$C,3,FALSE),A6897)","v":30},{"$f":"IFERROR(VLOOKUP(B6897,Translation!$A:$C,3,FALSE),B6897)","v":"Q3 2016"},{"$f":"IFERROR(VLOOKUP(C6897,Translation!$A:$C,3,FALSE),C6897)","v":"IMMEUBLES COLLECTIFS RÉSIDENTIELS"},{"$f":"IFERROR(VLOOKUP(D6897,Translation!$A:$C,3,FALSE),D6897)","v":"Nouveau-Brunswick"},{"$f":"IFERROR(VLOOKUP(E6897,Translation!$A:$C,3,FALSE),E6897)","v":100},{"$f":"IFERROR(VLOOKUP(F6897,Translation!$A:$C,3,FALSE),F6897)","v":"Prêts hypothécaires assurés au cours de la période selon le milieu urbain/rural (%)"},{"$f":"IFERROR(VLOOKUP(G6897,Translation!$A:$C,3,FALSE),G6897)","v":"100.0"},{"$f":"IFERROR(VLOOKUP(H6897,Translation!$A:$C,3,FALSE),H6897)","v":0}]
[30,"T3 2017","IMMEUBLES COLLECTIFS RÉSIDENTIELS","Nouveau-Brunswick",95.02074688796678,"Prêts hypothécaires assurés au cours de la période selon le milieu urbain/rural (%)","95.0",0,{"$f":"IFERROR(VLOOKUP(A6898,Translation!$A:$C,3,FALSE),A6898)","v":30},{"$f":"IFERROR(VLOOKUP(B6898,Translation!$A:$C,3,FALSE),B6898)","v":"T3 2017"},{"$f":"IFERROR(VLOOKUP(C6898,Translation!$A:$C,3,FALSE),C6898)","v":"IMMEUBLES COLLECTIFS RÉSIDENTIELS"},{"$f":"IFERROR(VLOOKUP(D6898,Translation!$A:$C,3,FALSE),D6898)","v":"Nouveau-Brunswick"},{"$f":"IFERROR(VLOOKUP(E6898,Translation!$A:$C,3,FALSE),E6898)","v":95.02074688796678},{"$f":"IFERROR(VLOOKUP(F6898,Translation!$A:$C,3,FALSE),F6898)","v":"Prêts hypothécaires assurés au cours de la période selon le milieu urbain/rural (%)"},{"$f":"IFERROR(VLOOKUP(G6898,Translation!$A:$C,3,FALSE),G6898)","v":"95.0"},{"$f":"IFERROR(VLOOKUP(H6898,Translation!$A:$C,3,FALSE),H6898)","v":0}]
[30,"Q4 2016","IMMEUBLES COLLECTIFS RÉSIDENTIELS","Nouveau-Brunswick",100,"Prêts hypothécaires assurés au cours de la période selon le milieu urbain/rural (%)","100.0",0,{"$f":"IFERROR(VLOOKUP(A6899,Translation!$A:$C,3,FALSE),A6899)","v":30},{"$f":"IFERROR(VLOOKUP(B6899,Translation!$A:$C,3,FALSE),B6899)","v":"Q4 2016"},{"$f":"IFERROR(VLOOKUP(C6899,Translation!$A:$C,3,FALSE),C6899)","v":"IMMEUBLES COLLECTIFS RÉSIDENTIELS"},{"$f":"IFERROR(VLOOKUP(D6899,Translation!$A:$C,3,FALSE),D6899)","v":"Nouveau-Brunswick"},{"$f":"IFERROR(VLOOKUP(E6899,Translation!$A:$C,3,FALSE),E6899)","v":100},{"$f":"IFERROR(VLOOKUP(F6899,Translation!$A:$C,3,FALSE),F6899)","v":"Prêts hypothécaires assurés au cours de la période selon le milieu urbain/rural (%)"},{"$f":"IFERROR(VLOOKUP(G6899,Translation!$A:$C,3,FALSE),G6899)","v":"100.0"},{"$f":"IFERROR(VLOOKUP(H6899,Translation!$A:$C,3,FALSE),H6899)","v":0}]
[30,"T4 2017","IMMEUBLES COLLECTIFS RÉSIDENTIELS","Nouveau-Brunswick",100,"Prêts hypothécaires assurés au cours de la période selon le milieu urbain/rural (%)","100.0",0,{"$f":"IFERROR(VLOOKUP(A6900,Translation!$A:$C,3,FALSE),A6900)","v":30},{"$f":"IFERROR(VLOOKUP(B6900,Translation!$A:$C,3,FALSE),B6900)","v":"T4 2017"},{"$f":"IFERROR(VLOOKUP(C6900,Translation!$A:$C,3,FALSE),C6900)","v":"IMMEUBLES COLLECTIFS RÉSIDENTIELS"},{"$f":"IFERROR(VLOOKUP(D6900,Translation!$A:$C,3,FALSE),D6900)","v":"Nouveau-Brunswick"},{"$f":"IFERROR(VLOOKUP(E6900,Translation!$A:$C,3,FALSE),E6900)","v":100},{"$f":"IFERROR(VLOOKUP(F6900,Translation!$A:$C,3,FALSE),F6900)","v":"Prêts hypothécaires assurés au cours de la période selon le milieu urbain/rural (%)"},{"$f":"IFERROR(VLOOKUP(G6900,Translation!$A:$C,3,FALSE),G6900)","v":"100.0"},{"$f":"IFERROR(VLOOKUP(H6900,Translation!$A:$C,3,FALSE),H6900)","v":0}]
[30,"T1 2017","IMMEUBLES COLLECTIFS RÉSIDENTIELS","Québec",98.245286540974433,"Prêts hypothécaires assurés au cours de la période selon le milieu urbain/rural (%)","98.2",0,{"$f":"IFERROR(VLOOKUP(A6901,Translation!$A:$C,3,FALSE),A6901)","v":30},{"$f":"IFERROR(VLOOKUP(B6901,Translation!$A:$C,3,FALSE),B6901)","v":"T1 2017"},{"$f":"IFERROR(VLOOKUP(C6901,Translation!$A:$C,3,FALSE),C6901)","v":"IMMEUBLES COLLECTIFS RÉSIDENTIELS"},{"$f":"IFERROR(VLOOKUP(D6901,Translation!$A:$C,3,FALSE),D6901)","v":"Québec"},{"$f":"IFERROR(VLOOKUP(E6901,Translation!$A:$C,3,FALSE),E6901)","v":98.245286540974433},{"$f":"IFERROR(VLOOKUP(F6901,Translation!$A:$C,3,FALSE),F6901)","v":"Prêts hypothécaires assurés au cours de la période selon le milieu urbain/rural (%)"},{"$f":"IFERROR(VLOOKUP(G6901,Translation!$A:$C,3,FALSE),G6901)","v":"98.2"},{"$f":"IFERROR(VLOOKUP(H6901,Translation!$A:$C,3,FALSE),H6901)","v":0}]
[30,"T1 2018","IMMEUBLES COLLECTIFS RÉSIDENTIELS","Québec",98.73691028824355,"Prêts hypothécaires assurés au cours de la période selon le milieu urbain/rural (%)","98.7",0,{"$f":"IFERROR(VLOOKUP(A6902,Translation!$A:$C,3,FALSE),A6902)","v":30},{"$f":"IFERROR(VLOOKUP(B6902,Translation!$A:$C,3,FALSE),B6902)","v":"T1 2018"},{"$f":"IFERROR(VLOOKUP(C6902,Translation!$A:$C,3,FALSE),C6902)","v":"IMMEUBLES COLLECTIFS RÉSIDENTIELS"},{"$f":"IFERROR(VLOOKUP(D6902,Translation!$A:$C,3,FALSE),D6902)","v":"Québec"},{"$f":"IFERROR(VLOOKUP(E6902,Translation!$A:$C,3,FALSE),E6902)","v":98.73691028824355},{"$f":"IFERROR(VLOOKUP(F6902,Translation!$A:$C,3,FALSE),F6902)","v":"Prêts hypothécaires assurés au cours de la période selon le milieu urbain/rural (%)"},{"$f":"IFERROR(VLOOKUP(G6902,Translation!$A:$C,3,FALSE),G6902)","v":"98.7"},{"$f":"IFERROR(VLOOKUP(H6902,Translation!$A:$C,3,FALSE),H6902)","v":0}]
[30,"Q2 2016","IMMEUBLES COLLECTIFS RÉSIDENTIELS","Québec",96.759210387416886,"Prêts hypothécaires assurés au cours de la période selon le milieu urbain/rural (%)","96.8",0,{"$f":"IFERROR(VLOOKUP(A6903,Translation!$A:$C,3,FALSE),A6903)","v":30},{"$f":"IFERROR(VLOOKUP(B6903,Translation!$A:$C,3,FALSE),B6903)","v":"Q2 2016"},{"$f":"IFERROR(VLOOKUP(C6903,Translation!$A:$C,3,FALSE),C6903)","v":"IMMEUBLES COLLECTIFS RÉSIDENTIELS"},{"$f":"IFERROR(VLOOKUP(D6903,Translation!$A:$C,3,FALSE),D6903)","v":"Québec"},{"$f":"IFERROR(VLOOKUP(E6903,Translation!$A:$C,3,FALSE),E6903)","v":96.759210387416886},{"$f":"IFERROR(VLOOKUP(F6903,Translation!$A:$C,3,FALSE),F6903)","v":"Prêts hypothécaires assurés au cours de la période selon le milieu urbain/rural (%)"},{"$f":"IFERROR(VLOOKUP(G6903,Translation!$A:$C,3,FALSE),G6903)","v":"96.8"},{"$f":"IFERROR(VLOOKUP(H6903,Translation!$A:$C,3,FALSE),H6903)","v":0}]
[30,"T2 2017","IMMEUBLES COLLECTIFS RÉSIDENTIELS","Québec",99.089924160346683,"Prêts hypothécaires assurés au cours de la période selon le milieu urbain/rural (%)","99.1",0,{"$f":"IFERROR(VLOOKUP(A6904,Translation!$A:$C,3,FALSE),A6904)","v":30},{"$f":"IFERROR(VLOOKUP(B6904,Translation!$A:$C,3,FALSE),B6904)","v":"T2 2017"},{"$f":"IFERROR(VLOOKUP(C6904,Translation!$A:$C,3,FALSE),C6904)","v":"IMMEUBLES COLLECTIFS RÉSIDENTIELS"},{"$f":"IFERROR(VLOOKUP(D6904,Translation!$A:$C,3,FALSE),D6904)","v":"Québec"},{"$f":"IFERROR(VLOOKUP(E6904,Translation!$A:$C,3,FALSE),E6904)","v":99.089924160346683},{"$f":"IFERROR(VLOOKUP(F6904,Translation!$A:$C,3,FALSE),F6904)","v":"Prêts hypothécaires assurés au cours de la période selon le milieu urbain/rural (%)"},{"$f":"IFERROR(VLOOKUP(G6904,Translation!$A:$C,3,FALSE),G6904)","v":"99.1"},{"$f":"IFERROR(VLOOKUP(H6904,Translation!$A:$C,3,FALSE),H6904)","v":0}]
[30,"Q3 2016","IMMEUBLES COLLECTIFS RÉSIDENTIELS","Québec",97.264402457401147,"Prêts hypothécaires assurés au cours de la période selon le milieu urbain/rural (%)","97.3",0,{"$f":"IFERROR(VLOOKUP(A6905,Translation!$A:$C,3,FALSE),A6905)","v":30},{"$f":"IFERROR(VLOOKUP(B6905,Translation!$A:$C,3,FALSE),B6905)","v":"Q3 2016"},{"$f":"IFERROR(VLOOKUP(C6905,Translation!$A:$C,3,FALSE),C6905)","v":"IMMEUBLES COLLECTIFS RÉSIDENTIELS"},{"$f":"IFERROR(VLOOKUP(D6905,Translation!$A:$C,3,FALSE),D6905)","v":"Québec"},{"$f":"IFERROR(VLOOKUP(E6905,Translation!$A:$C,3,FALSE),E6905)","v":97.264402457401147},{"$f":"IFERROR(VLOOKUP(F6905,Translation!$A:$C,3,FALSE),F6905)","v":"Prêts hypothécaires assurés au cours de la période selon le milieu urbain/rural (%)"},{"$f":"IFERROR(VLOOKUP(G6905,Translation!$A:$C,3,FALSE),G6905)","v":"97.3"},{"$f":"IFERROR(VLOOKUP(H6905,Translation!$A:$C,3,FALSE),H6905)","v":0}]
[30,"T3 2017","IMMEUBLES COLLECTIFS RÉSIDENTIELS","Québec",98.827868852459005,"Prêts hypothécaires assurés au cours de la période selon le milieu urbain/rural (%)","98.8",0,{"$f":"IFERROR(VLOOKUP(A6906,Translation!$A:$C,3,FALSE),A6906)","v":30},{"$f":"IFERROR(VLOOKUP(B6906,Translation!$A:$C,3,FALSE),B6906)","v":"T3 2017"},{"$f":"IFERROR(VLOOKUP(C6906,Translation!$A:$C,3,FALSE),C6906)","v":"IMMEUBLES COLLECTIFS RÉSIDENTIELS"},{"$f":"IFERROR(VLOOKUP(D6906,Translation!$A:$C,3,FALSE),D6906)","v":"Québec"},{"$f":"IFERROR(VLOOKUP(E6906,Translation!$A:$C,3,FALSE),E6906)","v":98.827868852459005},{"$f":"IFERROR(VLOOKUP(F6906,Translation!$A:$C,3,FALSE),F6906)","v":"Prêts hypothécaires assurés au cours de la période selon le milieu urbain/rural (%)"},{"$f":"IFERROR(VLOOKUP(G6906,Translation!$A:$C,3,FALSE),G6906)","v":"98.8"},{"$f":"IFERROR(VLOOKUP(H6906,Translation!$A:$C,3,FALSE),H6906)","v":0}]
[30,"Q4 2016","IMMEUBLES COLLECTIFS RÉSIDENTIELS","Québec",96.633526921941154,"Prêts hypothécaires assurés au cours de la période selon le milieu urbain/rural (%)","96.6",0,{"$f":"IFERROR(VLOOKUP(A6907,Translation!$A:$C,3,FALSE),A6907)","v":30},{"$f":"IFERROR(VLOOKUP(B6907,Translation!$A:$C,3,FALSE),B6907)","v":"Q4 2016"},{"$f":"IFERROR(VLOOKUP(C6907,Translation!$A:$C,3,FALSE),C6907)","v":"IMMEUBLES COLLECTIFS RÉSIDENTIELS"},{"$f":"IFERROR(VLOOKUP(D6907,Translation!$A:$C,3,FALSE),D6907)","v":"Québec"},{"$f":"IFERROR(VLOOKUP(E6907,Translation!$A:$C,3,FALSE),E6907)","v":96.633526921941154},{"$f":"IFERROR(VLOOKUP(F6907,Translation!$A:$C,3,FALSE),F6907)","v":"Prêts hypothécaires assurés au cours de la période selon le milieu urbain/rural (%)"},{"$f":"IFERROR(VLOOKUP(G6907,Translation!$A:$C,3,FALSE),G6907)","v":"96.6"},{"$f":"IFERROR(VLOOKUP(H6907,Translation!$A:$C,3,FALSE),H6907)","v":0}]
[30,"T4 2017","IMMEUBLES COLLECTIFS RÉSIDENTIELS","Québec",97.826855123674889,"Prêts hypothécaires assurés au cours de la période selon le milieu urbain/rural (%)","97.8",0,{"$f":"IFERROR(VLOOKUP(A6908,Translation!$A:$C,3,FALSE),A6908)","v":30},{"$f":"IFERROR(VLOOKUP(B6908,Translation!$A:$C,3,FALSE),B6908)","v":"T4 2017"},{"$f":"IFERROR(VLOOKUP(C6908,Translation!$A:$C,3,FALSE),C6908)","v":"IMMEUBLES COLLECTIFS RÉSIDENTIELS"},{"$f":"IFERROR(VLOOKUP(D6908,Translation!$A:$C,3,FALSE),D6908)","v":"Québec"},{"$f":"IFERROR(VLOOKUP(E6908,Translation!$A:$C,3,FALSE),E6908)","v":97.826855123674889},{"$f":"IFERROR(VLOOKUP(F6908,Translation!$A:$C,3,FALSE),F6908)","v":"Prêts hypothécaires assurés au cours de la période selon le milieu urbain/rural (%)"},{"$f":"IFERROR(VLOOKUP(G6908,Translation!$A:$C,3,FALSE),G6908)","v":"97.8"},{"$f":"IFERROR(VLOOKUP(H6908,Translation!$A:$C,3,FALSE),H6908)","v":0}]
[30,"T1 2017","IMMEUBLES COLLECTIFS RÉSIDENTIELS","Ontario",98.777534309768171,"Prêts hypothécaires assurés au cours de la période selon le milieu urbain/rural (%)","98.8",0,{"$f":"IFERROR(VLOOKUP(A6909,Translation!$A:$C,3,FALSE),A6909)","v":30},{"$f":"IFERROR(VLOOKUP(B6909,Translation!$A:$C,3,FALSE),B6909)","v":"T1 2017"},{"$f":"IFERROR(VLOOKUP(C6909,Translation!$A:$C,3,FALSE),C6909)","v":"IMMEUBLES COLLECTIFS RÉSIDENTIELS"},{"$f":"IFERROR(VLOOKUP(D6909,Translation!$A:$C,3,FALSE),D6909)","v":"Ontario"},{"$f":"IFERROR(VLOOKUP(E6909,Translation!$A:$C,3,FALSE),E6909)","v":98.777534309768171},{"$f":"IFERROR(VLOOKUP(F6909,Translation!$A:$C,3,FALSE),F6909)","v":"Prêts hypothécaires assurés au cours de la période selon le milieu urbain/rural (%)"},{"$f":"IFERROR(VLOOKUP(G6909,Translation!$A:$C,3,FALSE),G6909)","v":"98.8"},{"$f":"IFERROR(VLOOKUP(H6909,Translation!$A:$C,3,FALSE),H6909)","v":0}]
[30,"T1 2018","IMMEUBLES COLLECTIFS RÉSIDENTIELS","Ontario",96.898646488329987,"Prêts hypothécaires assurés au cours de la période selon le milieu urbain/rural (%)","96.9",0,{"$f":"IFERROR(VLOOKUP(A6910,Translation!$A:$C,3,FALSE),A6910)","v":30},{"$f":"IFERROR(VLOOKUP(B6910,Translation!$A:$C,3,FALSE),B6910)","v":"T1 2018"},{"$f":"IFERROR(VLOOKUP(C6910,Translation!$A:$C,3,FALSE),C6910)","v":"IMMEUBLES COLLECTIFS RÉSIDENTIELS"},{"$f":"IFERROR(VLOOKUP(D6910,Translation!$A:$C,3,FALSE),D6910)","v":"Ontario"},{"$f":"IFERROR(VLOOKUP(E6910,Translation!$A:$C,3,FALSE),E6910)","v":96.898646488329987},{"$f":"IFERROR(VLOOKUP(F6910,Translation!$A:$C,3,FALSE),F6910)","v":"Prêts hypothécaires assurés au cours de la période selon le milieu urbain/rural (%)"},{"$f":"IFERROR(VLOOKUP(G6910,Translation!$A:$C,3,FALSE),G6910)","v":"96.9"},{"$f":"IFERROR(VLOOKUP(H6910,Translation!$A:$C,3,FALSE),H6910)","v":0}]
[30,"Q2 2016","IMMEUBLES COLLECTIFS RÉSIDENTIELS","Ontario",98.921938936103231,"Prêts hypothécaires assurés au cours de la période selon le milieu urbain/rural (%)","98.9",0,{"$f":"IFERROR(VLOOKUP(A6911,Translation!$A:$C,3,FALSE),A6911)","v":30},{"$f":"IFERROR(VLOOKUP(B6911,Translation!$A:$C,3,FALSE),B6911)","v":"Q2 2016"},{"$f":"IFERROR(VLOOKUP(C6911,Translation!$A:$C,3,FALSE),C6911)","v":"IMMEUBLES COLLECTIFS RÉSIDENTIELS"},{"$f":"IFERROR(VLOOKUP(D6911,Translation!$A:$C,3,FALSE),D6911)","v":"Ontario"},{"$f":"IFERROR(VLOOKUP(E6911,Translation!$A:$C,3,FALSE),E6911)","v":98.921938936103231},{"$f":"IFERROR(VLOOKUP(F6911,Translation!$A:$C,3,FALSE),F6911)","v":"Prêts hypothécaires assurés au cours de la période selon le milieu urbain/rural (%)"},{"$f":"IFERROR(VLOOKUP(G6911,Translation!$A:$C,3,FALSE),G6911)","v":"98.9"},{"$f":"IFERROR(VLOOKUP(H6911,Translation!$A:$C,3,FALSE),H6911)","v":0}]
[30,"T2 2017","IMMEUBLES COLLECTIFS RÉSIDENTIELS","Ontario",99.650516282764102,"Prêts hypothécaires assurés au cours de la période selon le milieu urbain/rural (%)","99.7",0,{"$f":"IFERROR(VLOOKUP(A6912,Translation!$A:$C,3,FALSE),A6912)","v":30},{"$f":"IFERROR(VLOOKUP(B6912,Translation!$A:$C,3,FALSE),B6912)","v":"T2 2017"},{"$f":"IFERROR(VLOOKUP(C6912,Translation!$A:$C,3,FALSE),C6912)","v":"IMMEUBLES COLLECTIFS RÉSIDENTIELS"},{"$f":"IFERROR(VLOOKUP(D6912,Translation!$A:$C,3,FALSE),D6912)","v":"Ontario"},{"$f":"IFERROR(VLOOKUP(E6912,Translation!$A:$C,3,FALSE),E6912)","v":99.650516282764102},{"$f":"IFERROR(VLOOKUP(F6912,Translation!$A:$C,3,FALSE),F6912)","v":"Prêts hypothécaires assurés au cours de la période selon le milieu urbain/rural (%)"},{"$f":"IFERROR(VLOOKUP(G6912,Translation!$A:$C,3,FALSE),G6912)","v":"99.7"},{"$f":"IFERROR(VLOOKUP(H6912,Translation!$A:$C,3,FALSE),H6912)","v":0}]
[30,"Q3 2016","IMMEUBLES COLLECTIFS RÉSIDENTIELS","Ontario",98.873653281096963,"Prêts hypothécaires assurés au cours de la période selon le milieu urbain/rural (%)","98.9",0,{"$f":"IFERROR(VLOOKUP(A6913,Translation!$A:$C,3,FALSE),A6913)","v":30},{"$f":"IFERROR(VLOOKUP(B6913,Translation!$A:$C,3,FALSE),B6913)","v":"Q3 2016"},{"$f":"IFERROR(VLOOKUP(C6913,Translation!$A:$C,3,FALSE),C6913)","v":"IMMEUBLES COLLECTIFS RÉSIDENTIELS"},{"$f":"IFERROR(VLOOKUP(D6913,Translation!$A:$C,3,FALSE),D6913)","v":"Ontario"},{"$f":"IFERROR(VLOOKUP(E6913,Translation!$A:$C,3,FALSE),E6913)","v":98.873653281096963},{"$f":"IFERROR(VLOOKUP(F6913,Translation!$A:$C,3,FALSE),F6913)","v":"Prêts hypothécaires assurés au cours de la période selon le milieu urbain/rural (%)"},{"$f":"IFERROR(VLOOKUP(G6913,Translation!$A:$C,3,FALSE),G6913)","v":"98.9"},{"$f":"IFERROR(VLOOKUP(H6913,Translation!$A:$C,3,FALSE),H6913)","v":0}]
[30,"T3 2017","IMMEUBLES COLLECTIFS RÉSIDENTIELS","Ontario",99.32840179092851,"Prêts hypothécaires assurés au cours de la période selon le milieu urbain/rural (%)","99.3",0,{"$f":"IFERROR(VLOOKUP(A6914,Translation!$A:$C,3,FALSE),A6914)","v":30},{"$f":"IFERROR(VLOOKUP(B6914,Translation!$A:$C,3,FALSE),B6914)","v":"T3 2017"},{"$f":"IFERROR(VLOOKUP(C6914,Translation!$A:$C,3,FALSE),C6914)","v":"IMMEUBLES COLLECTIFS RÉSIDENTIELS"},{"$f":"IFERROR(VLOOKUP(D6914,Translation!$A:$C,3,FALSE),D6914)","v":"Ontario"},{"$f":"IFERROR(VLOOKUP(E6914,Translation!$A:$C,3,FALSE),E6914)","v":99.32840179092851},{"$f":"IFERROR(VLOOKUP(F6914,Translation!$A:$C,3,FALSE),F6914)","v":"Prêts hypothécaires assurés au cours de la période selon le milieu urbain/rural (%)"},{"$f":"IFERROR(VLOOKUP(G6914,Translation!$A:$C,3,FALSE),G6914)","v":"99.3"},{"$f":"IFERROR(VLOOKUP(H6914,Translation!$A:$C,3,FALSE),H6914)","v":0}]
[30,"Q4 2016","IMMEUBLES COLLECTIFS RÉSIDENTIELS","Ontario",98.794477931168558,"Prêts hypothécaires assurés au cours de la période selon le milieu urbain/rural (%)","98.8",0,{"$f":"IFERROR(VLOOKUP(A6915,Translation!$A:$C,3,FALSE),A6915)","v":30},{"$f":"IFERROR(VLOOKUP(B6915,Translation!$A:$C,3,FALSE),B6915)","v":"Q4 2016"},{"$f":"IFERROR(VLOOKUP(C6915,Translation!$A:$C,3,FALSE),C6915)","v":"IMMEUBLES COLLECTIFS RÉSIDENTIELS"},{"$f":"IFERROR(VLOOKUP(D6915,Translation!$A:$C,3,FALSE),D6915)","v":"Ontario"},{"$f":"IFERROR(VLOOKUP(E6915,Translation!$A:$C,3,FALSE),E6915)","v":98.794477931168558},{"$f":"IFERROR(VLOOKUP(F6915,Translation!$A:$C,3,FALSE),F6915)","v":"Prêts hypothécaires assurés au cours de la période selon le milieu urbain/rural (%)"},{"$f":"IFERROR(VLOOKUP(G6915,Translation!$A:$C,3,FALSE),G6915)","v":"98.8"},{"$f":"IFERROR(VLOOKUP(H6915,Translation!$A:$C,3,FALSE),H6915)","v":0}]
[30,"T4 2017","IMMEUBLES COLLECTIFS RÉSIDENTIELS","Ontario",99.309402201280477,"Prêts hypothécaires assurés au cours de la période selon le milieu urbain/rural (%)","99.3",0,{"$f":"IFERROR(VLOOKUP(A6916,Translation!$A:$C,3,FALSE),A6916)","v":30},{"$f":"IFERROR(VLOOKUP(B6916,Translation!$A:$C,3,FALSE),B6916)","v":"T4 2017"},{"$f":"IFERROR(VLOOKUP(C6916,Translation!$A:$C,3,FALSE),C6916)","v":"IMMEUBLES COLLECTIFS RÉSIDENTIELS"},{"$f":"IFERROR(VLOOKUP(D6916,Translation!$A:$C,3,FALSE),D6916)","v":"Ontario"},{"$f":"IFERROR(VLOOKUP(E6916,Translation!$A:$C,3,FALSE),E6916)","v":99.309402201280477},{"$f":"IFERROR(VLOOKUP(F6916,Translation!$A:$C,3,FALSE),F6916)","v":"Prêts hypothécaires assurés au cours de la période selon le milieu urbain/rural (%)"},{"$f":"IFERROR(VLOOKUP(G6916,Translation!$A:$C,3,FALSE),G6916)","v":"99.3"},{"$f":"IFERROR(VLOOKUP(H6916,Translation!$A:$C,3,FALSE),H6916)","v":0}]
[30,"T1 2017","IMMEUBLES COLLECTIFS RÉSIDENTIELS","Manitoba",100,"Prêts hypothécaires assurés au cours de la période selon le milieu urbain/rural (%)","100.0",0,{"$f":"IFERROR(VLOOKUP(A6917,Translation!$A:$C,3,FALSE),A6917)","v":30},{"$f":"IFERROR(VLOOKUP(B6917,Translation!$A:$C,3,FALSE),B6917)","v":"T1 2017"},{"$f":"IFERROR(VLOOKUP(C6917,Translation!$A:$C,3,FALSE),C6917)","v":"IMMEUBLES COLLECTIFS RÉSIDENTIELS"},{"$f":"IFERROR(VLOOKUP(D6917,Translation!$A:$C,3,FALSE),D6917)","v":"Manitoba"},{"$f":"IFERROR(VLOOKUP(E6917,Translation!$A:$C,3,FALSE),E6917)","v":100},{"$f":"IFERROR(VLOOKUP(F6917,Translation!$A:$C,3,FALSE),F6917)","v":"Prêts hypothécaires assurés au cours de la période selon le milieu urbain/rural (%)"},{"$f":"IFERROR(VLOOKUP(G6917,Translation!$A:$C,3,FALSE),G6917)","v":"100.0"},{"$f":"IFERROR(VLOOKUP(H6917,Translation!$A:$C,3,FALSE),H6917)","v":0}]
[30,"T1 2018","IMMEUBLES COLLECTIFS RÉSIDENTIELS","Manitoba",100,"Prêts hypothécaires assurés au cours de la période selon le milieu urbain/rural (%)","100.0",0,{"$f":"IFERROR(VLOOKUP(A6918,Translation!$A:$C,3,FALSE),A6918)","v":30},{"$f":"IFERROR(VLOOKUP(B6918,Translation!$A:$C,3,FALSE),B6918)","v":"T1 2018"},{"$f":"IFERROR(VLOOKUP(C6918,Translation!$A:$C,3,FALSE),C6918)","v":"IMMEUBLES COLLECTIFS RÉSIDENTIELS"},{"$f":"IFERROR(VLOOKUP(D6918,Translation!$A:$C,3,FALSE),D6918)","v":"Manitoba"},{"$f":"IFERROR(VLOOKUP(E6918,Translation!$A:$C,3,FALSE),E6918)","v":100},{"$f":"IFERROR(VLOOKUP(F6918,Translation!$A:$C,3,FALSE),F6918)","v":"Prêts hypothécaires assurés au cours de la période selon le milieu urbain/rural (%)"},{"$f":"IFERROR(VLOOKUP(G6918,Translation!$A:$C,3,FALSE),G6918)","v":"100.0"},{"$f":"IFERROR(VLOOKUP(H6918,Translation!$A:$C,3,FALSE),H6918)","v":0}]
[30,"Q2 2016","IMMEUBLES COLLECTIFS RÉSIDENTIELS","Manitoba",100,"Prêts hypothécaires assurés au cours de la période selon le milieu urbain/rural (%)","100.0",0,{"$f":"IFERROR(VLOOKUP(A6919,Translation!$A:$C,3,FALSE),A6919)","v":30},{"$f":"IFERROR(VLOOKUP(B6919,Translation!$A:$C,3,FALSE),B6919)","v":"Q2 2016"},{"$f":"IFERROR(VLOOKUP(C6919,Translation!$A:$C,3,FALSE),C6919)","v":"IMMEUBLES COLLECTIFS RÉSIDENTIELS"},{"$f":"IFERROR(VLOOKUP(D6919,Translation!$A:$C,3,FALSE),D6919)","v":"Manitoba"},{"$f":"IFERROR(VLOOKUP(E6919,Translation!$A:$C,3,FALSE),E6919)","v":100},{"$f":"IFERROR(VLOOKUP(F6919,Translation!$A:$C,3,FALSE),F6919)","v":"Prêts hypothécaires assurés au cours de la période selon le milieu urbain/rural (%)"},{"$f":"IFERROR(VLOOKUP(G6919,Translation!$A:$C,3,FALSE),G6919)","v":"100.0"},{"$f":"IFERROR(VLOOKUP(H6919,Translation!$A:$C,3,FALSE),H6919)","v":0}]
[30,"T2 2017","IMMEUBLES COLLECTIFS RÉSIDENTIELS","Manitoba",100,"Prêts hypothécaires assurés au cours de la période selon le milieu urbain/rural (%)","100.0",0,{"$f":"IFERROR(VLOOKUP(A6920,Translation!$A:$C,3,FALSE),A6920)","v":30},{"$f":"IFERROR(VLOOKUP(B6920,Translation!$A:$C,3,FALSE),B6920)","v":"T2 2017"},{"$f":"IFERROR(VLOOKUP(C6920,Translation!$A:$C,3,FALSE),C6920)","v":"IMMEUBLES COLLECTIFS RÉSIDENTIELS"},{"$f":"IFERROR(VLOOKUP(D6920,Translation!$A:$C,3,FALSE),D6920)","v":"Manitoba"},{"$f":"IFERROR(VLOOKUP(E6920,Translation!$A:$C,3,FALSE),E6920)","v":100},{"$f":"IFERROR(VLOOKUP(F6920,Translation!$A:$C,3,FALSE),F6920)","v":"Prêts hypothécaires assurés au cours de la période selon le milieu urbain/rural (%)"},{"$f":"IFERROR(VLOOKUP(G6920,Translation!$A:$C,3,FALSE),G6920)","v":"100.0"},{"$f":"IFERROR(VLOOKUP(H6920,Translation!$A:$C,3,FALSE),H6920)","v":0}]
[30,"Q3 2016","IMMEUBLES COLLECTIFS RÉSIDENTIELS","Manitoba",100,"Prêts hypothécaires assurés au cours de la période selon le milieu urbain/rural (%)","100.0",0,{"$f":"IFERROR(VLOOKUP(A6921,Translation!$A:$C,3,FALSE),A6921)","v":30},{"$f":"IFERROR(VLOOKUP(B6921,Translation!$A:$C,3,FALSE),B6921)","v":"Q3 2016"},{"$f":"IFERROR(VLOOKUP(C6921,Translation!$A:$C,3,FALSE),C6921)","v":"IMMEUBLES COLLECTIFS RÉSIDENTIELS"},{"$f":"IFERROR(VLOOKUP(D6921,Translation!$A:$C,3,FALSE),D6921)","v":"Manitoba"},{"$f":"IFERROR(VLOOKUP(E6921,Translation!$A:$C,3,FALSE),E6921)","v":100},{"$f":"IFERROR(VLOOKUP(F6921,Translation!$A:$C,3,FALSE),F6921)","v":"Prêts hypothécaires assurés au cours de la période selon le milieu urbain/rural (%)"},{"$f":"IFERROR(VLOOKUP(G6921,Translation!$A:$C,3,FALSE),G6921)","v":"100.0"},{"$f":"IFERROR(VLOOKUP(H6921,Translation!$A:$C,3,FALSE),H6921)","v":0}]
[30,"T3 2017","IMMEUBLES COLLECTIFS RÉSIDENTIELS","Manitoba",100,"Prêts hypothécaires assurés au cours de la période selon le milieu urbain/rural (%)","100.0",0,{"$f":"IFERROR(VLOOKUP(A6922,Translation!$A:$C,3,FALSE),A6922)","v":30},{"$f":"IFERROR(VLOOKUP(B6922,Translation!$A:$C,3,FALSE),B6922)","v":"T3 2017"},{"$f":"IFERROR(VLOOKUP(C6922,Translation!$A:$C,3,FALSE),C6922)","v":"IMMEUBLES COLLECTIFS RÉSIDENTIELS"},{"$f":"IFERROR(VLOOKUP(D6922,Translation!$A:$C,3,FALSE),D6922)","v":"Manitoba"},{"$f":"IFERROR(VLOOKUP(E6922,Translation!$A:$C,3,FALSE),E6922)","v":100},{"$f":"IFERROR(VLOOKUP(F6922,Translation!$A:$C,3,FALSE),F6922)","v":"Prêts hypothécaires assurés au cours de la période selon le milieu urbain/rural (%)"},{"$f":"IFERROR(VLOOKUP(G6922,Translation!$A:$C,3,FALSE),G6922)","v":"100.0"},{"$f":"IFERROR(VLOOKUP(H6922,Translation!$A:$C,3,FALSE),H6922)","v":0}]
[30,"Q4 2016","IMMEUBLES COLLECTIFS RÉSIDENTIELS","Manitoba",100,"Prêts hypothécaires assurés au cours de la période selon le milieu urbain/rural (%)","100.0",0,{"$f":"IFERROR(VLOOKUP(A6923,Translation!$A:$C,3,FALSE),A6923)","v":30},{"$f":"IFERROR(VLOOKUP(B6923,Translation!$A:$C,3,FALSE),B6923)","v":"Q4 2016"},{"$f":"IFERROR(VLOOKUP(C6923,Translation!$A:$C,3,FALSE),C6923)","v":"IMMEUBLES COLLECTIFS RÉSIDENTIELS"},{"$f":"IFERROR(VLOOKUP(D6923,Translation!$A:$C,3,FALSE),D6923)","v":"Manitoba"},{"$f":"IFERROR(VLOOKUP(E6923,Translation!$A:$C,3,FALSE),E6923)","v":100},{"$f":"IFERROR(VLOOKUP(F6923,Translation!$A:$C,3,FALSE),F6923)","v":"Prêts hypothécaires assurés au cours de la période selon le milieu urbain/rural (%)"},{"$f":"IFERROR(VLOOKUP(G6923,Translation!$A:$C,3,FALSE),G6923)","v":"100.0"},{"$f":"IFERROR(VLOOKUP(H6923,Translation!$A:$C,3,FALSE),H6923)","v":0}]
[30,"T4 2017","IMMEUBLES COLLECTIFS RÉSIDENTIELS","Manitoba",100,"Prêts hypothécaires assurés au cours de la période selon le milieu urbain/rural (%)","100.0",0,{"$f":"IFERROR(VLOOKUP(A6924,Translation!$A:$C,3,FALSE),A6924)","v":30},{"$f":"IFERROR(VLOOKUP(B6924,Translation!$A:$C,3,FALSE),B6924)","v":"T4 2017"},{"$f":"IFERROR(VLOOKUP(C6924,Translation!$A:$C,3,FALSE),C6924)","v":"IMMEUBLES COLLECTIFS RÉSIDENTIELS"},{"$f":"IFERROR(VLOOKUP(D6924,Translation!$A:$C,3,FALSE),D6924)","v":"Manitoba"},{"$f":"IFERROR(VLOOKUP(E6924,Translation!$A:$C,3,FALSE),E6924)","v":100},{"$f":"IFERROR(VLOOKUP(F6924,Translation!$A:$C,3,FALSE),F6924)","v":"Prêts hypothécaires assurés au cours de la période selon le milieu urbain/rural (%)"},{"$f":"IFERROR(VLOOKUP(G6924,Translation!$A:$C,3,FALSE),G6924)","v":"100.0"},{"$f":"IFERROR(VLOOKUP(H6924,Translation!$A:$C,3,FALSE),H6924)","v":0}]
[30,"T1 2017","IMMEUBLES COLLECTIFS RÉSIDENTIELS","Saskatchewan",100,"Prêts hypothécaires assurés au cours de la période selon le milieu urbain/rural (%)","100.0",0,{"$f":"IFERROR(VLOOKUP(A6925,Translation!$A:$C,3,FALSE),A6925)","v":30},{"$f":"IFERROR(VLOOKUP(B6925,Translation!$A:$C,3,FALSE),B6925)","v":"T1 2017"},{"$f":"IFERROR(VLOOKUP(C6925,Translation!$A:$C,3,FALSE),C6925)","v":"IMMEUBLES COLLECTIFS RÉSIDENTIELS"},{"$f":"IFERROR(VLOOKUP(D6925,Translation!$A:$C,3,FALSE),D6925)","v":"Saskatchewan"},{"$f":"IFERROR(VLOOKUP(E6925,Translation!$A:$C,3,FALSE),E6925)","v":100},{"$f":"IFERROR(VLOOKUP(F6925,Translation!$A:$C,3,FALSE),F6925)","v":"Prêts hypothécaires assurés au cours de la période selon le milieu urbain/rural (%)"},{"$f":"IFERROR(VLOOKUP(G6925,Translation!$A:$C,3,FALSE),G6925)","v":"100.0"},{"$f":"IFERROR(VLOOKUP(H6925,Translation!$A:$C,3,FALSE),H6925)","v":0}]
[30,"T1 2018","IMMEUBLES COLLECTIFS RÉSIDENTIELS","Saskatchewan",100,"Prêts hypothécaires assurés au cours de la période selon le milieu urbain/rural (%)","100.0",0,{"$f":"IFERROR(VLOOKUP(A6926,Translation!$A:$C,3,FALSE),A6926)","v":30},{"$f":"IFERROR(VLOOKUP(B6926,Translation!$A:$C,3,FALSE),B6926)","v":"T1 2018"},{"$f":"IFERROR(VLOOKUP(C6926,Translation!$A:$C,3,FALSE),C6926)","v":"IMMEUBLES COLLECTIFS RÉSIDENTIELS"},{"$f":"IFERROR(VLOOKUP(D6926,Translation!$A:$C,3,FALSE),D6926)","v":"Saskatchewan"},{"$f":"IFERROR(VLOOKUP(E6926,Translation!$A:$C,3,FALSE),E6926)","v":100},{"$f":"IFERROR(VLOOKUP(F6926,Translation!$A:$C,3,FALSE),F6926)","v":"Prêts hypothécaires assurés au cours de la période selon le milieu urbain/rural (%)"},{"$f":"IFERROR(VLOOKUP(G6926,Translation!$A:$C,3,FALSE),G6926)","v":"100.0"},{"$f":"IFERROR(VLOOKUP(H6926,Translation!$A:$C,3,FALSE),H6926)","v":0}]
[30,"Q2 2016","IMMEUBLES COLLECTIFS RÉSIDENTIELS","Saskatchewan",100,"Prêts hypothécaires assurés au cours de la période selon le milieu urbain/rural (%)","100.0",0,{"$f":"IFERROR(VLOOKUP(A6927,Translation!$A:$C,3,FALSE),A6927)","v":30},{"$f":"IFERROR(VLOOKUP(B6927,Translation!$A:$C,3,FALSE),B6927)","v":"Q2 2016"},{"$f":"IFERROR(VLOOKUP(C6927,Translation!$A:$C,3,FALSE),C6927)","v":"IMMEUBLES COLLECTIFS RÉSIDENTIELS"},{"$f":"IFERROR(VLOOKUP(D6927,Translation!$A:$C,3,FALSE),D6927)","v":"Saskatchewan"},{"$f":"IFERROR(VLOOKUP(E6927,Translation!$A:$C,3,FALSE),E6927)","v":100},{"$f":"IFERROR(VLOOKUP(F6927,Translation!$A:$C,3,FALSE),F6927)","v":"Prêts hypothécaires assurés au cours de la période selon le milieu urbain/rural (%)"},{"$f":"IFERROR(VLOOKUP(G6927,Translation!$A:$C,3,FALSE),G6927)","v":"100.0"},{"$f":"IFERROR(VLOOKUP(H6927,Translation!$A:$C,3,FALSE),H6927)","v":0}]
[30,"T2 2017","IMMEUBLES COLLECTIFS RÉSIDENTIELS","Saskatchewan",100,"Prêts hypothécaires assurés au cours de la période selon le milieu urbain/rural (%)","100.0",0,{"$f":"IFERROR(VLOOKUP(A6928,Translation!$A:$C,3,FALSE),A6928)","v":30},{"$f":"IFERROR(VLOOKUP(B6928,Translation!$A:$C,3,FALSE),B6928)","v":"T2 2017"},{"$f":"IFERROR(VLOOKUP(C6928,Translation!$A:$C,3,FALSE),C6928)","v":"IMMEUBLES COLLECTIFS RÉSIDENTIELS"},{"$f":"IFERROR(VLOOKUP(D6928,Translation!$A:$C,3,FALSE),D6928)","v":"Saskatchewan"},{"$f":"IFERROR(VLOOKUP(E6928,Translation!$A:$C,3,FALSE),E6928)","v":100},{"$f":"IFERROR(VLOOKUP(F6928,Translation!$A:$C,3,FALSE),F6928)","v":"Prêts hypothécaires assurés au cours de la période selon le milieu urbain/rural (%)"},{"$f":"IFERROR(VLOOKUP(G6928,Translation!$A:$C,3,FALSE),G6928)","v":"100.0"},{"$f":"IFERROR(VLOOKUP(H6928,Translation!$A:$C,3,FALSE),H6928)","v":0}]
[30,"Q3 2016","IMMEUBLES COLLECTIFS RÉSIDENTIELS","Saskatchewan",100,"Prêts hypothécaires assurés au cours de la période selon le milieu urbain/rural (%)","100.0",0,{"$f":"IFERROR(VLOOKUP(A6929,Translation!$A:$C,3,FALSE),A6929)","v":30},{"$f":"IFERROR(VLOOKUP(B6929,Translation!$A:$C,3,FALSE),B6929)","v":"Q3 2016"},{"$f":"IFERROR(VLOOKUP(C6929,Translation!$A:$C,3,FALSE),C6929)","v":"IMMEUBLES COLLECTIFS RÉSIDENTIELS"},{"$f":"IFERROR(VLOOKUP(D6929,Translation!$A:$C,3,FALSE),D6929)","v":"Saskatchewan"},{"$f":"IFERROR(VLOOKUP(E6929,Translation!$A:$C,3,FALSE),E6929)","v":100},{"$f":"IFERROR(VLOOKUP(F6929,Translation!$A:$C,3,FALSE),F6929)","v":"Prêts hypothécaires assurés au cours de la période selon le milieu urbain/rural (%)"},{"$f":"IFERROR(VLOOKUP(G6929,Translation!$A:$C,3,FALSE),G6929)","v":"100.0"},{"$f":"IFERROR(VLOOKUP(H6929,Translation!$A:$C,3,FALSE),H6929)","v":0}]
[30,"T3 2017","IMMEUBLES COLLECTIFS RÉSIDENTIELS","Saskatchewan",100,"Prêts hypothécaires assurés au cours de la période selon le milieu urbain/rural (%)","100.0",0,{"$f":"IFERROR(VLOOKUP(A6930,Translation!$A:$C,3,FALSE),A6930)","v":30},{"$f":"IFERROR(VLOOKUP(B6930,Translation!$A:$C,3,FALSE),B6930)","v":"T3 2017"},{"$f":"IFERROR(VLOOKUP(C6930,Translation!$A:$C,3,FALSE),C6930)","v":"IMMEUBLES COLLECTIFS RÉSIDENTIELS"},{"$f":"IFERROR(VLOOKUP(D6930,Translation!$A:$C,3,FALSE),D6930)","v":"Saskatchewan"},{"$f":"IFERROR(VLOOKUP(E6930,Translation!$A:$C,3,FALSE),E6930)","v":100},{"$f":"IFERROR(VLOOKUP(F6930,Translation!$A:$C,3,FALSE),F6930)","v":"Prêts hypothécaires assurés au cours de la période selon le milieu urbain/rural (%)"},{"$f":"IFERROR(VLOOKUP(G6930,Translation!$A:$C,3,FALSE),G6930)","v":"100.0"},{"$f":"IFERROR(VLOOKUP(H6930,Translation!$A:$C,3,FALSE),H6930)","v":0}]
[30,"Q4 2016","IMMEUBLES COLLECTIFS RÉSIDENTIELS","Saskatchewan",100,"Prêts hypothécaires assurés au cours de la période selon le milieu urbain/rural (%)","100.0",0,{"$f":"IFERROR(VLOOKUP(A6931,Translation!$A:$C,3,FALSE),A6931)","v":30},{"$f":"IFERROR(VLOOKUP(B6931,Translation!$A:$C,3,FALSE),B6931)","v":"Q4 2016"},{"$f":"IFERROR(VLOOKUP(C6931,Translation!$A:$C,3,FALSE),C6931)","v":"IMMEUBLES COLLECTIFS RÉSIDENTIELS"},{"$f":"IFERROR(VLOOKUP(D6931,Translation!$A:$C,3,FALSE),D6931)","v":"Saskatchewan"},{"$f":"IFERROR(VLOOKUP(E6931,Translation!$A:$C,3,FALSE),E6931)","v":100},{"$f":"IFERROR(VLOOKUP(F6931,Translation!$A:$C,3,FALSE),F6931)","v":"Prêts hypothécaires assurés au cours de la période selon le milieu urbain/rural (%)"},{"$f":"IFERROR(VLOOKUP(G6931,Translation!$A:$C,3,FALSE),G6931)","v":"100.0"},{"$f":"IFERROR(VLOOKUP(H6931,Translation!$A:$C,3,FALSE),H6931)","v":0}]
[30,"T4 2017","IMMEUBLES COLLECTIFS RÉSIDENTIELS","Saskatchewan",92.885375494071127,"Prêts hypothécaires assurés au cours de la période selon le milieu urbain/rural (%)","92.9",0,{"$f":"IFERROR(VLOOKUP(A6932,Translation!$A:$C,3,FALSE),A6932)","v":30},{"$f":"IFERROR(VLOOKUP(B6932,Translation!$A:$C,3,FALSE),B6932)","v":"T4 2017"},{"$f":"IFERROR(VLOOKUP(C6932,Translation!$A:$C,3,FALSE),C6932)","v":"IMMEUBLES COLLECTIFS RÉSIDENTIELS"},{"$f":"IFERROR(VLOOKUP(D6932,Translation!$A:$C,3,FALSE),D6932)","v":"Saskatchewan"},{"$f":"IFERROR(VLOOKUP(E6932,Translation!$A:$C,3,FALSE),E6932)","v":92.885375494071127},{"$f":"IFERROR(VLOOKUP(F6932,Translation!$A:$C,3,FALSE),F6932)","v":"Prêts hypothécaires assurés au cours de la période selon le milieu urbain/rural (%)"},{"$f":"IFERROR(VLOOKUP(G6932,Translation!$A:$C,3,FALSE),G6932)","v":"92.9"},{"$f":"IFERROR(VLOOKUP(H6932,Translation!$A:$C,3,FALSE),H6932)","v":0}]
[30,"T1 2017","IMMEUBLES COLLECTIFS RÉSIDENTIELS","Alberta",98.896044158233678,"Prêts hypothécaires assurés au cours de la période selon le milieu urbain/rural (%)","98.9",0,{"$f":"IFERROR(VLOOKUP(A6933,Translation!$A:$C,3,FALSE),A6933)","v":30},{"$f":"IFERROR(VLOOKUP(B6933,Translation!$A:$C,3,FALSE),B6933)","v":"T1 2017"},{"$f":"IFERROR(VLOOKUP(C6933,Translation!$A:$C,3,FALSE),C6933)","v":"IMMEUBLES COLLECTIFS RÉSIDENTIELS"},{"$f":"IFERROR(VLOOKUP(D6933,Translation!$A:$C,3,FALSE),D6933)","v":"Alberta"},{"$f":"IFERROR(VLOOKUP(E6933,Translation!$A:$C,3,FALSE),E6933)","v":98.896044158233678},{"$f":"IFERROR(VLOOKUP(F6933,Translation!$A:$C,3,FALSE),F6933)","v":"Prêts hypothécaires assurés au cours de la période selon le milieu urbain/rural (%)"},{"$f":"IFERROR(VLOOKUP(G6933,Translation!$A:$C,3,FALSE),G6933)","v":"98.9"},{"$f":"IFERROR(VLOOKUP(H6933,Translation!$A:$C,3,FALSE),H6933)","v":0}]
[30,"T1 2018","IMMEUBLES COLLECTIFS RÉSIDENTIELS","Alberta",98.834262544348675,"Prêts hypothécaires assurés au cours de la période selon le milieu urbain/rural (%)","98.8",0,{"$f":"IFERROR(VLOOKUP(A6934,Translation!$A:$C,3,FALSE),A6934)","v":30},{"$f":"IFERROR(VLOOKUP(B6934,Translation!$A:$C,3,FALSE),B6934)","v":"T1 2018"},{"$f":"IFERROR(VLOOKUP(C6934,Translation!$A:$C,3,FALSE),C6934)","v":"IMMEUBLES COLLECTIFS RÉSIDENTIELS"},{"$f":"IFERROR(VLOOKUP(D6934,Translation!$A:$C,3,FALSE),D6934)","v":"Alberta"},{"$f":"IFERROR(VLOOKUP(E6934,Translation!$A:$C,3,FALSE),E6934)","v":98.834262544348675},{"$f":"IFERROR(VLOOKUP(F6934,Translation!$A:$C,3,FALSE),F6934)","v":"Prêts hypothécaires assurés au cours de la période selon le milieu urbain/rural (%)"},{"$f":"IFERROR(VLOOKUP(G6934,Translation!$A:$C,3,FALSE),G6934)","v":"98.8"},{"$f":"IFERROR(VLOOKUP(H6934,Translation!$A:$C,3,FALSE),H6934)","v":0}]
[30,"Q2 2016","IMMEUBLES COLLECTIFS RÉSIDENTIELS","Alberta",100,"Prêts hypothécaires assurés au cours de la période selon le milieu urbain/rural (%)","100.0",0,{"$f":"IFERROR(VLOOKUP(A6935,Translation!$A:$C,3,FALSE),A6935)","v":30},{"$f":"IFERROR(VLOOKUP(B6935,Translation!$A:$C,3,FALSE),B6935)","v":"Q2 2016"},{"$f":"IFERROR(VLOOKUP(C6935,Translation!$A:$C,3,FALSE),C6935)","v":"IMMEUBLES COLLECTIFS RÉSIDENTIELS"},{"$f":"IFERROR(VLOOKUP(D6935,Translation!$A:$C,3,FALSE),D6935)","v":"Alberta"},{"$f":"IFERROR(VLOOKUP(E6935,Translation!$A:$C,3,FALSE),E6935)","v":100},{"$f":"IFERROR(VLOOKUP(F6935,Translation!$A:$C,3,FALSE),F6935)","v":"Prêts hypothécaires assurés au cours de la période selon le milieu urbain/rural (%)"},{"$f":"IFERROR(VLOOKUP(G6935,Translation!$A:$C,3,FALSE),G6935)","v":"100.0"},{"$f":"IFERROR(VLOOKUP(H6935,Translation!$A:$C,3,FALSE),H6935)","v":0}]
[30,"T2 2017","IMMEUBLES COLLECTIFS RÉSIDENTIELS","Alberta",100,"Prêts hypothécaires assurés au cours de la période selon le milieu urbain/rural (%)","100.0",0,{"$f":"IFERROR(VLOOKUP(A6936,Translation!$A:$C,3,FALSE),A6936)","v":30},{"$f":"IFERROR(VLOOKUP(B6936,Translation!$A:$C,3,FALSE),B6936)","v":"T2 2017"},{"$f":"IFERROR(VLOOKUP(C6936,Translation!$A:$C,3,FALSE),C6936)","v":"IMMEUBLES COLLECTIFS RÉSIDENTIELS"},{"$f":"IFERROR(VLOOKUP(D6936,Translation!$A:$C,3,FALSE),D6936)","v":"Alberta"},{"$f":"IFERROR(VLOOKUP(E6936,Translation!$A:$C,3,FALSE),E6936)","v":100},{"$f":"IFERROR(VLOOKUP(F6936,Translation!$A:$C,3,FALSE),F6936)","v":"Prêts hypothécaires assurés au cours de la période selon le milieu urbain/rural (%)"},{"$f":"IFERROR(VLOOKUP(G6936,Translation!$A:$C,3,FALSE),G6936)","v":"100.0"},{"$f":"IFERROR(VLOOKUP(H6936,Translation!$A:$C,3,FALSE),H6936)","v":0}]
[30,"Q3 2016","IMMEUBLES COLLECTIFS RÉSIDENTIELS","Alberta",99.141150112023922,"Prêts hypothécaires assurés au cours de la période selon le milieu urbain/rural (%)","99.1",0,{"$f":"IFERROR(VLOOKUP(A6937,Translation!$A:$C,3,FALSE),A6937)","v":30},{"$f":"IFERROR(VLOOKUP(B6937,Translation!$A:$C,3,FALSE),B6937)","v":"Q3 2016"},{"$f":"IFERROR(VLOOKUP(C6937,Translation!$A:$C,3,FALSE),C6937)","v":"IMMEUBLES COLLECTIFS RÉSIDENTIELS"},{"$f":"IFERROR(VLOOKUP(D6937,Translation!$A:$C,3,FALSE),D6937)","v":"Alberta"},{"$f":"IFERROR(VLOOKUP(E6937,Translation!$A:$C,3,FALSE),E6937)","v":99.141150112023922},{"$f":"IFERROR(VLOOKUP(F6937,Translation!$A:$C,3,FALSE),F6937)","v":"Prêts hypothécaires assurés au cours de la période selon le milieu urbain/rural (%)"},{"$f":"IFERROR(VLOOKUP(G6937,Translation!$A:$C,3,FALSE),G6937)","v":"99.1"},{"$f":"IFERROR(VLOOKUP(H6937,Translation!$A:$C,3,FALSE),H6937)","v":0}]
[30,"T3 2017","IMMEUBLES COLLECTIFS RÉSIDENTIELS","Alberta",100,"Prêts hypothécaires assurés au cours de la période selon le milieu urbain/rural (%)","100.0",0,{"$f":"IFERROR(VLOOKUP(A6938,Translation!$A:$C,3,FALSE),A6938)","v":30},{"$f":"IFERROR(VLOOKUP(B6938,Translation!$A:$C,3,FALSE),B6938)","v":"T3 2017"},{"$f":"IFERROR(VLOOKUP(C6938,Translation!$A:$C,3,FALSE),C6938)","v":"IMMEUBLES COLLECTIFS RÉSIDENTIELS"},{"$f":"IFERROR(VLOOKUP(D6938,Translation!$A:$C,3,FALSE),D6938)","v":"Alberta"},{"$f":"IFERROR(VLOOKUP(E6938,Translation!$A:$C,3,FALSE),E6938)","v":100},{"$f":"IFERROR(VLOOKUP(F6938,Translation!$A:$C,3,FALSE),F6938)","v":"Prêts hypothécaires assurés au cours de la période selon le milieu urbain/rural (%)"},{"$f":"IFERROR(VLOOKUP(G6938,Translation!$A:$C,3,FALSE),G6938)","v":"100.0"},{"$f":"IFERROR(VLOOKUP(H6938,Translation!$A:$C,3,FALSE),H6938)","v":0}]
[30,"Q4 2016","IMMEUBLES COLLECTIFS RÉSIDENTIELS","Alberta",100,"Prêts hypothécaires assurés au cours de la période selon le milieu urbain/rural (%)","100.0",0,{"$f":"IFERROR(VLOOKUP(A6939,Translation!$A:$C,3,FALSE),A6939)","v":30},{"$f":"IFERROR(VLOOKUP(B6939,Translation!$A:$C,3,FALSE),B6939)","v":"Q4 2016"},{"$f":"IFERROR(VLOOKUP(C6939,Translation!$A:$C,3,FALSE),C6939)","v":"IMMEUBLES COLLECTIFS RÉSIDENTIELS"},{"$f":"IFERROR(VLOOKUP(D6939,Translation!$A:$C,3,FALSE),D6939)","v":"Alberta"},{"$f":"IFERROR(VLOOKUP(E6939,Translation!$A:$C,3,FALSE),E6939)","v":100},{"$f":"IFERROR(VLOOKUP(F6939,Translation!$A:$C,3,FALSE),F6939)","v":"Prêts hypothécaires assurés au cours de la période selon le milieu urbain/rural (%)"},{"$f":"IFERROR(VLOOKUP(G6939,Translation!$A:$C,3,FALSE),G6939)","v":"100.0"},{"$f":"IFERROR(VLOOKUP(H6939,Translation!$A:$C,3,FALSE),H6939)","v":0}]
[30,"T4 2017","IMMEUBLES COLLECTIFS RÉSIDENTIELS","Alberta",100,"Prêts hypothécaires assurés au cours de la période selon le milieu urbain/rural (%)","100.0",0,{"$f":"IFERROR(VLOOKUP(A6940,Translation!$A:$C,3,FALSE),A6940)","v":30},{"$f":"IFERROR(VLOOKUP(B6940,Translation!$A:$C,3,FALSE),B6940)","v":"T4 2017"},{"$f":"IFERROR(VLOOKUP(C6940,Translation!$A:$C,3,FALSE),C6940)","v":"IMMEUBLES COLLECTIFS RÉSIDENTIELS"},{"$f":"IFERROR(VLOOKUP(D6940,Translation!$A:$C,3,FALSE),D6940)","v":"Alberta"},{"$f":"IFERROR(VLOOKUP(E6940,Translation!$A:$C,3,FALSE),E6940)","v":100},{"$f":"IFERROR(VLOOKUP(F6940,Translation!$A:$C,3,FALSE),F6940)","v":"Prêts hypothécaires assurés au cours de la période selon le milieu urbain/rural (%)"},{"$f":"IFERROR(VLOOKUP(G6940,Translation!$A:$C,3,FALSE),G6940)","v":"100.0"},{"$f":"IFERROR(VLOOKUP(H6940,Translation!$A:$C,3,FALSE),H6940)","v":0}]
[30,"T1 2017","IMMEUBLES COLLECTIFS RÉSIDENTIELS","Colombie-Britannique",100,"Prêts hypothécaires assurés au cours de la période selon le milieu urbain/rural (%)","100.0",0,{"$f":"IFERROR(VLOOKUP(A6941,Translation!$A:$C,3,FALSE),A6941)","v":30},{"$f":"IFERROR(VLOOKUP(B6941,Translation!$A:$C,3,FALSE),B6941)","v":"T1 2017"},{"$f":"IFERROR(VLOOKUP(C6941,Translation!$A:$C,3,FALSE),C6941)","v":"IMMEUBLES COLLECTIFS RÉSIDENTIELS"},{"$f":"IFERROR(VLOOKUP(D6941,Translation!$A:$C,3,FALSE),D6941)","v":"Colombie-Britannique"},{"$f":"IFERROR(VLOOKUP(E6941,Translation!$A:$C,3,FALSE),E6941)","v":100},{"$f":"IFERROR(VLOOKUP(F6941,Translation!$A:$C,3,FALSE),F6941)","v":"Prêts hypothécaires assurés au cours de la période selon le milieu urbain/rural (%)"},{"$f":"IFERROR(VLOOKUP(G6941,Translation!$A:$C,3,FALSE),G6941)","v":"100.0"},{"$f":"IFERROR(VLOOKUP(H6941,Translation!$A:$C,3,FALSE),H6941)","v":0}]
[30,"T1 2018","IMMEUBLES COLLECTIFS RÉSIDENTIELS","Colombie-Britannique",100,"Prêts hypothécaires assurés au cours de la période selon le milieu urbain/rural (%)","100.0",0,{"$f":"IFERROR(VLOOKUP(A6942,Translation!$A:$C,3,FALSE),A6942)","v":30},{"$f":"IFERROR(VLOOKUP(B6942,Translation!$A:$C,3,FALSE),B6942)","v":"T1 2018"},{"$f":"IFERROR(VLOOKUP(C6942,Translation!$A:$C,3,FALSE),C6942)","v":"IMMEUBLES COLLECTIFS RÉSIDENTIELS"},{"$f":"IFERROR(VLOOKUP(D6942,Translation!$A:$C,3,FALSE),D6942)","v":"Colombie-Britannique"},{"$f":"IFERROR(VLOOKUP(E6942,Translation!$A:$C,3,FALSE),E6942)","v":100},{"$f":"IFERROR(VLOOKUP(F6942,Translation!$A:$C,3,FALSE),F6942)","v":"Prêts hypothécaires assurés au cours de la période selon le milieu urbain/rural (%)"},{"$f":"IFERROR(VLOOKUP(G6942,Translation!$A:$C,3,FALSE),G6942)","v":"100.0"},{"$f":"IFERROR(VLOOKUP(H6942,Translation!$A:$C,3,FALSE),H6942)","v":0}]
[30,"Q2 2016","IMMEUBLES COLLECTIFS RÉSIDENTIELS","Colombie-Britannique",100,"Prêts hypothécaires assurés au cours de la période selon le milieu urbain/rural (%)","100.0",0,{"$f":"IFERROR(VLOOKUP(A6943,Translation!$A:$C,3,FALSE),A6943)","v":30},{"$f":"IFERROR(VLOOKUP(B6943,Translation!$A:$C,3,FALSE),B6943)","v":"Q2 2016"},{"$f":"IFERROR(VLOOKUP(C6943,Translation!$A:$C,3,FALSE),C6943)","v":"IMMEUBLES COLLECTIFS RÉSIDENTIELS"},{"$f":"IFERROR(VLOOKUP(D6943,Translation!$A:$C,3,FALSE),D6943)","v":"Colombie-Britannique"},{"$f":"IFERROR(VLOOKUP(E6943,Translation!$A:$C,3,FALSE),E6943)","v":100},{"$f":"IFERROR(VLOOKUP(F6943,Translation!$A:$C,3,FALSE),F6943)","v":"Prêts hypothécaires assurés au cours de la période selon le milieu urbain/rural (%)"},{"$f":"IFERROR(VLOOKUP(G6943,Translation!$A:$C,3,FALSE),G6943)","v":"100.0"},{"$f":"IFERROR(VLOOKUP(H6943,Translation!$A:$C,3,FALSE),H6943)","v":0}]
[30,"T2 2017","IMMEUBLES COLLECTIFS RÉSIDENTIELS","Colombie-Britannique",100,"Prêts hypothécaires assurés au cours de la période selon le milieu urbain/rural (%)","100.0",0,{"$f":"IFERROR(VLOOKUP(A6944,Translation!$A:$C,3,FALSE),A6944)","v":30},{"$f":"IFERROR(VLOOKUP(B6944,Translation!$A:$C,3,FALSE),B6944)","v":"T2 2017"},{"$f":"IFERROR(VLOOKUP(C6944,Translation!$A:$C,3,FALSE),C6944)","v":"IMMEUBLES COLLECTIFS RÉSIDENTIELS"},{"$f":"IFERROR(VLOOKUP(D6944,Translation!$A:$C,3,FALSE),D6944)","v":"Colombie-Britannique"},{"$f":"IFERROR(VLOOKUP(E6944,Translation!$A:$C,3,FALSE),E6944)","v":100},{"$f":"IFERROR(VLOOKUP(F6944,Translation!$A:$C,3,FALSE),F6944)","v":"Prêts hypothécaires assurés au cours de la période selon le milieu urbain/rural (%)"},{"$f":"IFERROR(VLOOKUP(G6944,Translation!$A:$C,3,FALSE),G6944)","v":"100.0"},{"$f":"IFERROR(VLOOKUP(H6944,Translation!$A:$C,3,FALSE),H6944)","v":0}]
[30,"Q3 2016","IMMEUBLES COLLECTIFS RÉSIDENTIELS","Colombie-Britannique",100,"Prêts hypothécaires assurés au cours de la période selon le milieu urbain/rural (%)","100.0",0,{"$f":"IFERROR(VLOOKUP(A6945,Translation!$A:$C,3,FALSE),A6945)","v":30},{"$f":"IFERROR(VLOOKUP(B6945,Translation!$A:$C,3,FALSE),B6945)","v":"Q3 2016"},{"$f":"IFERROR(VLOOKUP(C6945,Translation!$A:$C,3,FALSE),C6945)","v":"IMMEUBLES COLLECTIFS RÉSIDENTIELS"},{"$f":"IFERROR(VLOOKUP(D6945,Translation!$A:$C,3,FALSE),D6945)","v":"Colombie-Britannique"},{"$f":"IFERROR(VLOOKUP(E6945,Translation!$A:$C,3,FALSE),E6945)","v":100},{"$f":"IFERROR(VLOOKUP(F6945,Translation!$A:$C,3,FALSE),F6945)","v":"Prêts hypothécaires assurés au cours de la période selon le milieu urbain/rural (%)"},{"$f":"IFERROR(VLOOKUP(G6945,Translation!$A:$C,3,FALSE),G6945)","v":"100.0"},{"$f":"IFERROR(VLOOKUP(H6945,Translation!$A:$C,3,FALSE),H6945)","v":0}]
[30,"T3 2017","IMMEUBLES COLLECTIFS RÉSIDENTIELS","Colombie-Britannique",100,"Prêts hypothécaires assurés au cours de la période selon le milieu urbain/rural (%)","100.0",0,{"$f":"IFERROR(VLOOKUP(A6946,Translation!$A:$C,3,FALSE),A6946)","v":30},{"$f":"IFERROR(VLOOKUP(B6946,Translation!$A:$C,3,FALSE),B6946)","v":"T3 2017"},{"$f":"IFERROR(VLOOKUP(C6946,Translation!$A:$C,3,FALSE),C6946)","v":"IMMEUBLES COLLECTIFS RÉSIDENTIELS"},{"$f":"IFERROR(VLOOKUP(D6946,Translation!$A:$C,3,FALSE),D6946)","v":"Colombie-Britannique"},{"$f":"IFERROR(VLOOKUP(E6946,Translation!$A:$C,3,FALSE),E6946)","v":100},{"$f":"IFERROR(VLOOKUP(F6946,Translation!$A:$C,3,FALSE),F6946)","v":"Prêts hypothécaires assurés au cours de la période selon le milieu urbain/rural (%)"},{"$f":"IFERROR(VLOOKUP(G6946,Translation!$A:$C,3,FALSE),G6946)","v":"100.0"},{"$f":"IFERROR(VLOOKUP(H6946,Translation!$A:$C,3,FALSE),H6946)","v":0}]
[30,"Q4 2016","IMMEUBLES COLLECTIFS RÉSIDENTIELS","Colombie-Britannique",100,"Prêts hypothécaires assurés au cours de la période selon le milieu urbain/rural (%)","100.0",0,{"$f":"IFERROR(VLOOKUP(A6947,Translation!$A:$C,3,FALSE),A6947)","v":30},{"$f":"IFERROR(VLOOKUP(B6947,Translation!$A:$C,3,FALSE),B6947)","v":"Q4 2016"},{"$f":"IFERROR(VLOOKUP(C6947,Translation!$A:$C,3,FALSE),C6947)","v":"IMMEUBLES COLLECTIFS RÉSIDENTIELS"},{"$f":"IFERROR(VLOOKUP(D6947,Translation!$A:$C,3,FALSE),D6947)","v":"Colombie-Britannique"},{"$f":"IFERROR(VLOOKUP(E6947,Translation!$A:$C,3,FALSE),E6947)","v":100},{"$f":"IFERROR(VLOOKUP(F6947,Translation!$A:$C,3,FALSE),F6947)","v":"Prêts hypothécaires assurés au cours de la période selon le milieu urbain/rural (%)"},{"$f":"IFERROR(VLOOKUP(G6947,Translation!$A:$C,3,FALSE),G6947)","v":"100.0"},{"$f":"IFERROR(VLOOKUP(H6947,Translation!$A:$C,3,FALSE),H6947)","v":0}]
[30,"T4 2017","IMMEUBLES COLLECTIFS RÉSIDENTIELS","Colombie-Britannique",100,"Prêts hypothécaires assurés au cours de la période selon le milieu urbain/rural (%)","100.0",0,{"$f":"IFERROR(VLOOKUP(A6948,Translation!$A:$C,3,FALSE),A6948)","v":30},{"$f":"IFERROR(VLOOKUP(B6948,Translation!$A:$C,3,FALSE),B6948)","v":"T4 2017"},{"$f":"IFERROR(VLOOKUP(C6948,Translation!$A:$C,3,FALSE),C6948)","v":"IMMEUBLES COLLECTIFS RÉSIDENTIELS"},{"$f":"IFERROR(VLOOKUP(D6948,Translation!$A:$C,3,FALSE),D6948)","v":"Colombie-Britannique"},{"$f":"IFERROR(VLOOKUP(E6948,Translation!$A:$C,3,FALSE),E6948)","v":100},{"$f":"IFERROR(VLOOKUP(F6948,Translation!$A:$C,3,FALSE),F6948)","v":"Prêts hypothécaires assurés au cours de la période selon le milieu urbain/rural (%)"},{"$f":"IFERROR(VLOOKUP(G6948,Translation!$A:$C,3,FALSE),G6948)","v":"100.0"},{"$f":"IFERROR(VLOOKUP(H6948,Translation!$A:$C,3,FALSE),H6948)","v":0}]
[30,"T2 2017","IMMEUBLES COLLECTIFS RÉSIDENTIELS","Territoires",100,"Prêts hypothécaires assurés au cours de la période selon le milieu urbain/rural (%)","100.0",0,{"$f":"IFERROR(VLOOKUP(A6949,Translation!$A:$C,3,FALSE),A6949)","v":30},{"$f":"IFERROR(VLOOKUP(B6949,Translation!$A:$C,3,FALSE),B6949)","v":"T2 2017"},{"$f":"IFERROR(VLOOKUP(C6949,Translation!$A:$C,3,FALSE),C6949)","v":"IMMEUBLES COLLECTIFS RÉSIDENTIELS"},{"$f":"IFERROR(VLOOKUP(D6949,Translation!$A:$C,3,FALSE),D6949)","v":"Territoires"},{"$f":"IFERROR(VLOOKUP(E6949,Translation!$A:$C,3,FALSE),E6949)","v":100},{"$f":"IFERROR(VLOOKUP(F6949,Translation!$A:$C,3,FALSE),F6949)","v":"Prêts hypothécaires assurés au cours de la période selon le milieu urbain/rural (%)"},{"$f":"IFERROR(VLOOKUP(G6949,Translation!$A:$C,3,FALSE),G6949)","v":"100.0"},{"$f":"IFERROR(VLOOKUP(H6949,Translation!$A:$C,3,FALSE),H6949)","v":0}]
[30,"T3 2017","IMMEUBLES COLLECTIFS RÉSIDENTIELS","Territoires",100,"Prêts hypothécaires assurés au cours de la période selon le milieu urbain/rural (%)","100.0",0,{"$f":"IFERROR(VLOOKUP(A6950,Translation!$A:$C,3,FALSE),A6950)","v":30},{"$f":"IFERROR(VLOOKUP(B6950,Translation!$A:$C,3,FALSE),B6950)","v":"T3 2017"},{"$f":"IFERROR(VLOOKUP(C6950,Translation!$A:$C,3,FALSE),C6950)","v":"IMMEUBLES COLLECTIFS RÉSIDENTIELS"},{"$f":"IFERROR(VLOOKUP(D6950,Translation!$A:$C,3,FALSE),D6950)","v":"Territoires"},{"$f":"IFERROR(VLOOKUP(E6950,Translation!$A:$C,3,FALSE),E6950)","v":100},{"$f":"IFERROR(VLOOKUP(F6950,Translation!$A:$C,3,FALSE),F6950)","v":"Prêts hypothécaires assurés au cours de la période selon le milieu urbain/rural (%)"},{"$f":"IFERROR(VLOOKUP(G6950,Translation!$A:$C,3,FALSE),G6950)","v":"100.0"},{"$f":"IFERROR(VLOOKUP(H6950,Translation!$A:$C,3,FALSE),H6950)","v":0}]
[30,"T4 2017","IMMEUBLES COLLECTIFS RÉSIDENTIELS","Territoires",100,"Prêts hypothécaires assurés au cours de la période selon le milieu urbain/rural (%)","100.0",0,{"$f":"IFERROR(VLOOKUP(A6951,Translation!$A:$C,3,FALSE),A6951)","v":30},{"$f":"IFERROR(VLOOKUP(B6951,Translation!$A:$C,3,FALSE),B6951)","v":"T4 2017"},{"$f":"IFERROR(VLOOKUP(C6951,Translation!$A:$C,3,FALSE),C6951)","v":"IMMEUBLES COLLECTIFS RÉSIDENTIELS"},{"$f":"IFERROR(VLOOKUP(D6951,Translation!$A:$C,3,FALSE),D6951)","v":"Territoires"},{"$f":"IFERROR(VLOOKUP(E6951,Translation!$A:$C,3,FALSE),E6951)","v":100},{"$f":"IFERROR(VLOOKUP(F6951,Translation!$A:$C,3,FALSE),F6951)","v":"Prêts hypothécaires assurés au cours de la période selon le milieu urbain/rural (%)"},{"$f":"IFERROR(VLOOKUP(G6951,Translation!$A:$C,3,FALSE),G6951)","v":"100.0"},{"$f":"IFERROR(VLOOKUP(H6951,Translation!$A:$C,3,FALSE),H6951)","v":0}]
[3,"T1 2020","ALL","Terre-Neuve-et-Labrador",0.4797152665621508,"Prêts hypothécaires assurés au cours de la période selon la province (%)","0.5",0,{"$f":"IFERROR(VLOOKUP(A6952,Translation!$A:$C,3,FALSE),A6952)","v":3},{"$f":"IFERROR(VLOOKUP(B6952,Translation!$A:$C,3,FALSE),B6952)","v":"T1 2020"},{"$f":"IFERROR(VLOOKUP(C6952,Translation!$A:$C,3,FALSE),C6952)","v":"ALL"},{"$f":"IFERROR(VLOOKUP(D6952,Translation!$A:$C,3,FALSE),D6952)","v":"Terre-Neuve-et-Labrador"},{"$f":"IFERROR(VLOOKUP(E6952,Translation!$A:$C,3,FALSE),E6952)","v":0.4797152665621508},{"$f":"IFERROR(VLOOKUP(F6952,Translation!$A:$C,3,FALSE),F6952)","v":"Prêts hypothécaires assurés au cours de la période selon la province (%)"},{"$f":"IFERROR(VLOOKUP(G6952,Translation!$A:$C,3,FALSE),G6952)","v":"0.5"},{"$f":"IFERROR(VLOOKUP(H6952,Translation!$A:$C,3,FALSE),H6952)","v":0}]
[3,"Cumul 2019","ALL","Terre-Neuve-et-Labrador",0.65700434289550613,"Prêts hypothécaires assurés au cours de la période selon la province (%)","0.7",0,{"$f":"IFERROR(VLOOKUP(A6953,Translation!$A:$C,3,FALSE),A6953)","v":3},{"$f":"IFERROR(VLOOKUP(B6953,Translation!$A:$C,3,FALSE),B6953)","v":"Cumul 2019"},{"$f":"IFERROR(VLOOKUP(C6953,Translation!$A:$C,3,FALSE),C6953)","v":"ALL"},{"$f":"IFERROR(VLOOKUP(D6953,Translation!$A:$C,3,FALSE),D6953)","v":"Terre-Neuve-et-Labrador"},{"$f":"IFERROR(VLOOKUP(E6953,Translation!$A:$C,3,FALSE),E6953)","v":0.65700434289550613},{"$f":"IFERROR(VLOOKUP(F6953,Translation!$A:$C,3,FALSE),F6953)","v":"Prêts hypothécaires assurés au cours de la période selon la province (%)"},{"$f":"IFERROR(VLOOKUP(G6953,Translation!$A:$C,3,FALSE),G6953)","v":"0.7"},{"$f":"IFERROR(VLOOKUP(H6953,Translation!$A:$C,3,FALSE),H6953)","v":0}]
[3,"Cumul 2020","ALL","Terre-Neuve-et-Labrador",0.4797152665621508,"Prêts hypothécaires assurés au cours de la période selon la province (%)","0.5",0,{"$f":"IFERROR(VLOOKUP(A6954,Translation!$A:$C,3,FALSE),A6954)","v":3},{"$f":"IFERROR(VLOOKUP(B6954,Translation!$A:$C,3,FALSE),B6954)","v":"Cumul 2020"},{"$f":"IFERROR(VLOOKUP(C6954,Translation!$A:$C,3,FALSE),C6954)","v":"ALL"},{"$f":"IFERROR(VLOOKUP(D6954,Translation!$A:$C,3,FALSE),D6954)","v":"Terre-Neuve-et-Labrador"},{"$f":"IFERROR(VLOOKUP(E6954,Translation!$A:$C,3,FALSE),E6954)","v":0.4797152665621508},{"$f":"IFERROR(VLOOKUP(F6954,Translation!$A:$C,3,FALSE),F6954)","v":"Prêts hypothécaires assurés au cours de la période selon la province (%)"},{"$f":"IFERROR(VLOOKUP(G6954,Translation!$A:$C,3,FALSE),G6954)","v":"0.5"},{"$f":"IFERROR(VLOOKUP(H6954,Translation!$A:$C,3,FALSE),H6954)","v":0}]
[3,"T1 2020","ALL","Île-du-Prince-Édouard",0.17787751775979468,"Prêts hypothécaires assurés au cours de la période selon la province (%)","0.2",0,{"$f":"IFERROR(VLOOKUP(A6955,Translation!$A:$C,3,FALSE),A6955)","v":3},{"$f":"IFERROR(VLOOKUP(B6955,Translation!$A:$C,3,FALSE),B6955)","v":"T1 2020"},{"$f":"IFERROR(VLOOKUP(C6955,Translation!$A:$C,3,FALSE),C6955)","v":"ALL"},{"$f":"IFERROR(VLOOKUP(D6955,Translation!$A:$C,3,FALSE),D6955)","v":"Île-du-Prince-Édouard"},{"$f":"IFERROR(VLOOKUP(E6955,Translation!$A:$C,3,FALSE),E6955)","v":0.17787751775979468},{"$f":"IFERROR(VLOOKUP(F6955,Translation!$A:$C,3,FALSE),F6955)","v":"Prêts hypothécaires assurés au cours de la période selon la province (%)"},{"$f":"IFERROR(VLOOKUP(G6955,Translation!$A:$C,3,FALSE),G6955)","v":"0.2"},{"$f":"IFERROR(VLOOKUP(H6955,Translation!$A:$C,3,FALSE),H6955)","v":0}]
[3,"Cumul 2019","ALL","Île-du-Prince-Édouard",0.23399445589760248,"Prêts hypothécaires assurés au cours de la période selon la province (%)","0.2",0,{"$f":"IFERROR(VLOOKUP(A6956,Translation!$A:$C,3,FALSE),A6956)","v":3},{"$f":"IFERROR(VLOOKUP(B6956,Translation!$A:$C,3,FALSE),B6956)","v":"Cumul 2019"},{"$f":"IFERROR(VLOOKUP(C6956,Translation!$A:$C,3,FALSE),C6956)","v":"ALL"},{"$f":"IFERROR(VLOOKUP(D6956,Translation!$A:$C,3,FALSE),D6956)","v":"Île-du-Prince-Édouard"},{"$f":"IFERROR(VLOOKUP(E6956,Translation!$A:$C,3,FALSE),E6956)","v":0.23399445589760248},{"$f":"IFERROR(VLOOKUP(F6956,Translation!$A:$C,3,FALSE),F6956)","v":"Prêts hypothécaires assurés au cours de la période selon la province (%)"},{"$f":"IFERROR(VLOOKUP(G6956,Translation!$A:$C,3,FALSE),G6956)","v":"0.2"},{"$f":"IFERROR(VLOOKUP(H6956,Translation!$A:$C,3,FALSE),H6956)","v":0}]
[3,"Cumul 2020","ALL","Île-du-Prince-Édouard",0.17787751775979468,"Prêts hypothécaires assurés au cours de la période selon la province (%)","0.2",0,{"$f":"IFERROR(VLOOKUP(A6957,Translation!$A:$C,3,FALSE),A6957)","v":3},{"$f":"IFERROR(VLOOKUP(B6957,Translation!$A:$C,3,FALSE),B6957)","v":"Cumul 2020"},{"$f":"IFERROR(VLOOKUP(C6957,Translation!$A:$C,3,FALSE),C6957)","v":"ALL"},{"$f":"IFERROR(VLOOKUP(D6957,Translation!$A:$C,3,FALSE),D6957)","v":"Île-du-Prince-Édouard"},{"$f":"IFERROR(VLOOKUP(E6957,Translation!$A:$C,3,FALSE),E6957)","v":0.17787751775979468},{"$f":"IFERROR(VLOOKUP(F6957,Translation!$A:$C,3,FALSE),F6957)","v":"Prêts hypothécaires assurés au cours de la période selon la province (%)"},{"$f":"IFERROR(VLOOKUP(G6957,Translation!$A:$C,3,FALSE),G6957)","v":"0.2"},{"$f":"IFERROR(VLOOKUP(H6957,Translation!$A:$C,3,FALSE),H6957)","v":0}]
[3,"T1 2020","ALL","Nouvelle-Écosse",2.2111095209446718,"Prêts hypothécaires assurés au cours de la période selon la province (%)","2.2",0,{"$f":"IFERROR(VLOOKUP(A6958,Translation!$A:$C,3,FALSE),A6958)","v":3},{"$f":"IFERROR(VLOOKUP(B6958,Translation!$A:$C,3,FALSE),B6958)","v":"T1 2020"},{"$f":"IFERROR(VLOOKUP(C6958,Translation!$A:$C,3,FALSE),C6958)","v":"ALL"},{"$f":"IFERROR(VLOOKUP(D6958,Translation!$A:$C,3,FALSE),D6958)","v":"Nouvelle-Écosse"},{"$f":"IFERROR(VLOOKUP(E6958,Translation!$A:$C,3,FALSE),E6958)","v":2.2111095209446718},{"$f":"IFERROR(VLOOKUP(F6958,Translation!$A:$C,3,FALSE),F6958)","v":"Prêts hypothécaires assurés au cours de la période selon la province (%)"},{"$f":"IFERROR(VLOOKUP(G6958,Translation!$A:$C,3,FALSE),G6958)","v":"2.2"},{"$f":"IFERROR(VLOOKUP(H6958,Translation!$A:$C,3,FALSE),H6958)","v":0}]
[3,"Cumul 2019","ALL","Nouvelle-Écosse",2.4104006471946975,"Prêts hypothécaires assurés au cours de la période selon la province (%)","2.4",0,{"$f":"IFERROR(VLOOKUP(A6959,Translation!$A:$C,3,FALSE),A6959)","v":3},{"$f":"IFERROR(VLOOKUP(B6959,Translation!$A:$C,3,FALSE),B6959)","v":"Cumul 2019"},{"$f":"IFERROR(VLOOKUP(C6959,Translation!$A:$C,3,FALSE),C6959)","v":"ALL"},{"$f":"IFERROR(VLOOKUP(D6959,Translation!$A:$C,3,FALSE),D6959)","v":"Nouvelle-Écosse"},{"$f":"IFERROR(VLOOKUP(E6959,Translation!$A:$C,3,FALSE),E6959)","v":2.4104006471946975},{"$f":"IFERROR(VLOOKUP(F6959,Translation!$A:$C,3,FALSE),F6959)","v":"Prêts hypothécaires assurés au cours de la période selon la province (%)"},{"$f":"IFERROR(VLOOKUP(G6959,Translation!$A:$C,3,FALSE),G6959)","v":"2.4"},{"$f":"IFERROR(VLOOKUP(H6959,Translation!$A:$C,3,FALSE),H6959)","v":0}]
[3,"Cumul 2020","ALL","Nouvelle-Écosse",2.2111095209446718,"Prêts hypothécaires assurés au cours de la période selon la province (%)","2.2",0,{"$f":"IFERROR(VLOOKUP(A6960,Translation!$A:$C,3,FALSE),A6960)","v":3},{"$f":"IFERROR(VLOOKUP(B6960,Translation!$A:$C,3,FALSE),B6960)","v":"Cumul 2020"},{"$f":"IFERROR(VLOOKUP(C6960,Translation!$A:$C,3,FALSE),C6960)","v":"ALL"},{"$f":"IFERROR(VLOOKUP(D6960,Translation!$A:$C,3,FALSE),D6960)","v":"Nouvelle-Écosse"},{"$f":"IFERROR(VLOOKUP(E6960,Translation!$A:$C,3,FALSE),E6960)","v":2.2111095209446718},{"$f":"IFERROR(VLOOKUP(F6960,Translation!$A:$C,3,FALSE),F6960)","v":"Prêts hypothécaires assurés au cours de la période selon la province (%)"},{"$f":"IFERROR(VLOOKUP(G6960,Translation!$A:$C,3,FALSE),G6960)","v":"2.2"},{"$f":"IFERROR(VLOOKUP(H6960,Translation!$A:$C,3,FALSE),H6960)","v":0}]
[3,"T1 2020","ALL","Nouveau-Brunswick",1.4710848283877573,"Prêts hypothécaires assurés au cours de la période selon la province (%)","1.5",0,{"$f":"IFERROR(VLOOKUP(A6961,Translation!$A:$C,3,FALSE),A6961)","v":3},{"$f":"IFERROR(VLOOKUP(B6961,Translation!$A:$C,3,FALSE),B6961)","v":"T1 2020"},{"$f":"IFERROR(VLOOKUP(C6961,Translation!$A:$C,3,FALSE),C6961)","v":"ALL"},{"$f":"IFERROR(VLOOKUP(D6961,Translation!$A:$C,3,FALSE),D6961)","v":"Nouveau-Brunswick"},{"$f":"IFERROR(VLOOKUP(E6961,Translation!$A:$C,3,FALSE),E6961)","v":1.4710848283877573},{"$f":"IFERROR(VLOOKUP(F6961,Translation!$A:$C,3,FALSE),F6961)","v":"Prêts hypothécaires assurés au cours de la période selon la province (%)"},{"$f":"IFERROR(VLOOKUP(G6961,Translation!$A:$C,3,FALSE),G6961)","v":"1.5"},{"$f":"IFERROR(VLOOKUP(H6961,Translation!$A:$C,3,FALSE),H6961)","v":0}]
[3,"Cumul 2019","ALL","Nouveau-Brunswick",1.2775672978538921,"Prêts hypothécaires assurés au cours de la période selon la province (%)","1.3",0,{"$f":"IFERROR(VLOOKUP(A6962,Translation!$A:$C,3,FALSE),A6962)","v":3},{"$f":"IFERROR(VLOOKUP(B6962,Translation!$A:$C,3,FALSE),B6962)","v":"Cumul 2019"},{"$f":"IFERROR(VLOOKUP(C6962,Translation!$A:$C,3,FALSE),C6962)","v":"ALL"},{"$f":"IFERROR(VLOOKUP(D6962,Translation!$A:$C,3,FALSE),D6962)","v":"Nouveau-Brunswick"},{"$f":"IFERROR(VLOOKUP(E6962,Translation!$A:$C,3,FALSE),E6962)","v":1.2775672978538921},{"$f":"IFERROR(VLOOKUP(F6962,Translation!$A:$C,3,FALSE),F6962)","v":"Prêts hypothécaires assurés au cours de la période selon la province (%)"},{"$f":"IFERROR(VLOOKUP(G6962,Translation!$A:$C,3,FALSE),G6962)","v":"1.3"},{"$f":"IFERROR(VLOOKUP(H6962,Translation!$A:$C,3,FALSE),H6962)","v":0}]
[3,"Cumul 2020","ALL","Nouveau-Brunswick",1.4710848283877573,"Prêts hypothécaires assurés au cours de la période selon la province (%)","1.5",0,{"$f":"IFERROR(VLOOKUP(A6963,Translation!$A:$C,3,FALSE),A6963)","v":3},{"$f":"IFERROR(VLOOKUP(B6963,Translation!$A:$C,3,FALSE),B6963)","v":"Cumul 2020"},{"$f":"IFERROR(VLOOKUP(C6963,Translation!$A:$C,3,FALSE),C6963)","v":"ALL"},{"$f":"IFERROR(VLOOKUP(D6963,Translation!$A:$C,3,FALSE),D6963)","v":"Nouveau-Brunswick"},{"$f":"IFERROR(VLOOKUP(E6963,Translation!$A:$C,3,FALSE),E6963)","v":1.4710848283877573},{"$f":"IFERROR(VLOOKUP(F6963,Translation!$A:$C,3,FALSE),F6963)","v":"Prêts hypothécaires assurés au cours de la période selon la province (%)"},{"$f":"IFERROR(VLOOKUP(G6963,Translation!$A:$C,3,FALSE),G6963)","v":"1.5"},{"$f":"IFERROR(VLOOKUP(H6963,Translation!$A:$C,3,FALSE),H6963)","v":0}]
[3,"T1 2020","ALL","Québec",23.994561278131545,"Prêts hypothécaires assurés au cours de la période selon la province (%)","24.0",0,{"$f":"IFERROR(VLOOKUP(A6964,Translation!$A:$C,3,FALSE),A6964)","v":3},{"$f":"IFERROR(VLOOKUP(B6964,Translation!$A:$C,3,FALSE),B6964)","v":"T1 2020"},{"$f":"IFERROR(VLOOKUP(C6964,Translation!$A:$C,3,FALSE),C6964)","v":"ALL"},{"$f":"IFERROR(VLOOKUP(D6964,Translation!$A:$C,3,FALSE),D6964)","v":"Québec"},{"$f":"IFERROR(VLOOKUP(E6964,Translation!$A:$C,3,FALSE),E6964)","v":23.994561278131545},{"$f":"IFERROR(VLOOKUP(F6964,Translation!$A:$C,3,FALSE),F6964)","v":"Prêts hypothécaires assurés au cours de la période selon la province (%)"},{"$f":"IFERROR(VLOOKUP(G6964,Translation!$A:$C,3,FALSE),G6964)","v":"24.0"},{"$f":"IFERROR(VLOOKUP(H6964,Translation!$A:$C,3,FALSE),H6964)","v":0}]
[3,"Cumul 2019","ALL","Québec",23.253614929811096,"Prêts hypothécaires assurés au cours de la période selon la province (%)","23.3",0,{"$f":"IFERROR(VLOOKUP(A6965,Translation!$A:$C,3,FALSE),A6965)","v":3},{"$f":"IFERROR(VLOOKUP(B6965,Translation!$A:$C,3,FALSE),B6965)","v":"Cumul 2019"},{"$f":"IFERROR(VLOOKUP(C6965,Translation!$A:$C,3,FALSE),C6965)","v":"ALL"},{"$f":"IFERROR(VLOOKUP(D6965,Translation!$A:$C,3,FALSE),D6965)","v":"Québec"},{"$f":"IFERROR(VLOOKUP(E6965,Translation!$A:$C,3,FALSE),E6965)","v":23.253614929811096},{"$f":"IFERROR(VLOOKUP(F6965,Translation!$A:$C,3,FALSE),F6965)","v":"Prêts hypothécaires assurés au cours de la période selon la province (%)"},{"$f":"IFERROR(VLOOKUP(G6965,Translation!$A:$C,3,FALSE),G6965)","v":"23.3"},{"$f":"IFERROR(VLOOKUP(H6965,Translation!$A:$C,3,FALSE),H6965)","v":0}]
[3,"Cumul 2020","ALL","Québec",23.994561278131545,"Prêts hypothécaires assurés au cours de la période selon la province (%)","24.0",0,{"$f":"IFERROR(VLOOKUP(A6966,Translation!$A:$C,3,FALSE),A6966)","v":3},{"$f":"IFERROR(VLOOKUP(B6966,Translation!$A:$C,3,FALSE),B6966)","v":"Cumul 2020"},{"$f":"IFERROR(VLOOKUP(C6966,Translation!$A:$C,3,FALSE),C6966)","v":"ALL"},{"$f":"IFERROR(VLOOKUP(D6966,Translation!$A:$C,3,FALSE),D6966)","v":"Québec"},{"$f":"IFERROR(VLOOKUP(E6966,Translation!$A:$C,3,FALSE),E6966)","v":23.994561278131545},{"$f":"IFERROR(VLOOKUP(F6966,Translation!$A:$C,3,FALSE),F6966)","v":"Prêts hypothécaires assurés au cours de la période selon la province (%)"},{"$f":"IFERROR(VLOOKUP(G6966,Translation!$A:$C,3,FALSE),G6966)","v":"24.0"},{"$f":"IFERROR(VLOOKUP(H6966,Translation!$A:$C,3,FALSE),H6966)","v":0}]
[3,"T1 2020","ALL","Ontario",40.294406991151426,"Prêts hypothécaires assurés au cours de la période selon la province (%)","40.3",0,{"$f":"IFERROR(VLOOKUP(A6967,Translation!$A:$C,3,FALSE),A6967)","v":3},{"$f":"IFERROR(VLOOKUP(B6967,Translation!$A:$C,3,FALSE),B6967)","v":"T1 2020"},{"$f":"IFERROR(VLOOKUP(C6967,Translation!$A:$C,3,FALSE),C6967)","v":"ALL"},{"$f":"IFERROR(VLOOKUP(D6967,Translation!$A:$C,3,FALSE),D6967)","v":"Ontario"},{"$f":"IFERROR(VLOOKUP(E6967,Translation!$A:$C,3,FALSE),E6967)","v":40.294406991151426},{"$f":"IFERROR(VLOOKUP(F6967,Translation!$A:$C,3,FALSE),F6967)","v":"Prêts hypothécaires assurés au cours de la période selon la province (%)"},{"$f":"IFERROR(VLOOKUP(G6967,Translation!$A:$C,3,FALSE),G6967)","v":"40.3"},{"$f":"IFERROR(VLOOKUP(H6967,Translation!$A:$C,3,FALSE),H6967)","v":0}]
[3,"Cumul 2019","ALL","Ontario",40.351504376473088,"Prêts hypothécaires assurés au cours de la période selon la province (%)","40.4",0,{"$f":"IFERROR(VLOOKUP(A6968,Translation!$A:$C,3,FALSE),A6968)","v":3},{"$f":"IFERROR(VLOOKUP(B6968,Translation!$A:$C,3,FALSE),B6968)","v":"Cumul 2019"},{"$f":"IFERROR(VLOOKUP(C6968,Translation!$A:$C,3,FALSE),C6968)","v":"ALL"},{"$f":"IFERROR(VLOOKUP(D6968,Translation!$A:$C,3,FALSE),D6968)","v":"Ontario"},{"$f":"IFERROR(VLOOKUP(E6968,Translation!$A:$C,3,FALSE),E6968)","v":40.351504376473088},{"$f":"IFERROR(VLOOKUP(F6968,Translation!$A:$C,3,FALSE),F6968)","v":"Prêts hypothécaires assurés au cours de la période selon la province (%)"},{"$f":"IFERROR(VLOOKUP(G6968,Translation!$A:$C,3,FALSE),G6968)","v":"40.4"},{"$f":"IFERROR(VLOOKUP(H6968,Translation!$A:$C,3,FALSE),H6968)","v":0}]
[3,"Cumul 2020","ALL","Ontario",40.294406991151426,"Prêts hypothécaires assurés au cours de la période selon la province (%)","40.3",0,{"$f":"IFERROR(VLOOKUP(A6969,Translation!$A:$C,3,FALSE),A6969)","v":3},{"$f":"IFERROR(VLOOKUP(B6969,Translation!$A:$C,3,FALSE),B6969)","v":"Cumul 2020"},{"$f":"IFERROR(VLOOKUP(C6969,Translation!$A:$C,3,FALSE),C6969)","v":"ALL"},{"$f":"IFERROR(VLOOKUP(D6969,Translation!$A:$C,3,FALSE),D6969)","v":"Ontario"},{"$f":"IFERROR(VLOOKUP(E6969,Translation!$A:$C,3,FALSE),E6969)","v":40.294406991151426},{"$f":"IFERROR(VLOOKUP(F6969,Translation!$A:$C,3,FALSE),F6969)","v":"Prêts hypothécaires assurés au cours de la période selon la province (%)"},{"$f":"IFERROR(VLOOKUP(G6969,Translation!$A:$C,3,FALSE),G6969)","v":"40.3"},{"$f":"IFERROR(VLOOKUP(H6969,Translation!$A:$C,3,FALSE),H6969)","v":0}]
[3,"T1 2020","ALL","Manitoba",3.8894392849375343,"Prêts hypothécaires assurés au cours de la période selon la province (%)","3.9",0,{"$f":"IFERROR(VLOOKUP(A6970,Translation!$A:$C,3,FALSE),A6970)","v":3},{"$f":"IFERROR(VLOOKUP(B6970,Translation!$A:$C,3,FALSE),B6970)","v":"T1 2020"},{"$f":"IFERROR(VLOOKUP(C6970,Translation!$A:$C,3,FALSE),C6970)","v":"ALL"},{"$f":"IFERROR(VLOOKUP(D6970,Translation!$A:$C,3,FALSE),D6970)","v":"Manitoba"},{"$f":"IFERROR(VLOOKUP(E6970,Translation!$A:$C,3,FALSE),E6970)","v":3.8894392849375343},{"$f":"IFERROR(VLOOKUP(F6970,Translation!$A:$C,3,FALSE),F6970)","v":"Prêts hypothécaires assurés au cours de la période selon la province (%)"},{"$f":"IFERROR(VLOOKUP(G6970,Translation!$A:$C,3,FALSE),G6970)","v":"3.9"},{"$f":"IFERROR(VLOOKUP(H6970,Translation!$A:$C,3,FALSE),H6970)","v":0}]
[3,"Cumul 2019","ALL","Manitoba",2.8329390600223654,"Prêts hypothécaires assurés au cours de la période selon la province (%)","2.8",0,{"$f":"IFERROR(VLOOKUP(A6971,Translation!$A:$C,3,FALSE),A6971)","v":3},{"$f":"IFERROR(VLOOKUP(B6971,Translation!$A:$C,3,FALSE),B6971)","v":"Cumul 2019"},{"$f":"IFERROR(VLOOKUP(C6971,Translation!$A:$C,3,FALSE),C6971)","v":"ALL"},{"$f":"IFERROR(VLOOKUP(D6971,Translation!$A:$C,3,FALSE),D6971)","v":"Manitoba"},{"$f":"IFERROR(VLOOKUP(E6971,Translation!$A:$C,3,FALSE),E6971)","v":2.8329390600223654},{"$f":"IFERROR(VLOOKUP(F6971,Translation!$A:$C,3,FALSE),F6971)","v":"Prêts hypothécaires assurés au cours de la période selon la province (%)"},{"$f":"IFERROR(VLOOKUP(G6971,Translation!$A:$C,3,FALSE),G6971)","v":"2.8"},{"$f":"IFERROR(VLOOKUP(H6971,Translation!$A:$C,3,FALSE),H6971)","v":0}]
[3,"Cumul 2020","ALL","Manitoba",3.8894392849375343,"Prêts hypothécaires assurés au cours de la période selon la province (%)","3.9",0,{"$f":"IFERROR(VLOOKUP(A6972,Translation!$A:$C,3,FALSE),A6972)","v":3},{"$f":"IFERROR(VLOOKUP(B6972,Translation!$A:$C,3,FALSE),B6972)","v":"Cumul 2020"},{"$f":"IFERROR(VLOOKUP(C6972,Translation!$A:$C,3,FALSE),C6972)","v":"ALL"},{"$f":"IFERROR(VLOOKUP(D6972,Translation!$A:$C,3,FALSE),D6972)","v":"Manitoba"},{"$f":"IFERROR(VLOOKUP(E6972,Translation!$A:$C,3,FALSE),E6972)","v":3.8894392849375343},{"$f":"IFERROR(VLOOKUP(F6972,Translation!$A:$C,3,FALSE),F6972)","v":"Prêts hypothécaires assurés au cours de la période selon la province (%)"},{"$f":"IFERROR(VLOOKUP(G6972,Translation!$A:$C,3,FALSE),G6972)","v":"3.9"},{"$f":"IFERROR(VLOOKUP(H6972,Translation!$A:$C,3,FALSE),H6972)","v":0}]
[3,"T1 2020","ALL","Saskatchewan",2.2298425900136958,"Prêts hypothécaires assurés au cours de la période selon la province (%)","2.2",0,{"$f":"IFERROR(VLOOKUP(A6973,Translation!$A:$C,3,FALSE),A6973)","v":3},{"$f":"IFERROR(VLOOKUP(B6973,Translation!$A:$C,3,FALSE),B6973)","v":"T1 2020"},{"$f":"IFERROR(VLOOKUP(C6973,Translation!$A:$C,3,FALSE),C6973)","v":"ALL"},{"$f":"IFERROR(VLOOKUP(D6973,Translation!$A:$C,3,FALSE),D6973)","v":"Saskatchewan"},{"$f":"IFERROR(VLOOKUP(E6973,Translation!$A:$C,3,FALSE),E6973)","v":2.2298425900136958},{"$f":"IFERROR(VLOOKUP(F6973,Translation!$A:$C,3,FALSE),F6973)","v":"Prêts hypothécaires assurés au cours de la période selon la province (%)"},{"$f":"IFERROR(VLOOKUP(G6973,Translation!$A:$C,3,FALSE),G6973)","v":"2.2"},{"$f":"IFERROR(VLOOKUP(H6973,Translation!$A:$C,3,FALSE),H6973)","v":0}]
[3,"Cumul 2019","ALL","Saskatchewan",2.2845765790427657,"Prêts hypothécaires assurés au cours de la période selon la province (%)","2.3",0,{"$f":"IFERROR(VLOOKUP(A6974,Translation!$A:$C,3,FALSE),A6974)","v":3},{"$f":"IFERROR(VLOOKUP(B6974,Translation!$A:$C,3,FALSE),B6974)","v":"Cumul 2019"},{"$f":"IFERROR(VLOOKUP(C6974,Translation!$A:$C,3,FALSE),C6974)","v":"ALL"},{"$f":"IFERROR(VLOOKUP(D6974,Translation!$A:$C,3,FALSE),D6974)","v":"Saskatchewan"},{"$f":"IFERROR(VLOOKUP(E6974,Translation!$A:$C,3,FALSE),E6974)","v":2.2845765790427657},{"$f":"IFERROR(VLOOKUP(F6974,Translation!$A:$C,3,FALSE),F6974)","v":"Prêts hypothécaires assurés au cours de la période selon la province (%)"},{"$f":"IFERROR(VLOOKUP(G6974,Translation!$A:$C,3,FALSE),G6974)","v":"2.3"},{"$f":"IFERROR(VLOOKUP(H6974,Translation!$A:$C,3,FALSE),H6974)","v":0}]
[3,"Cumul 2020","ALL","Saskatchewan",2.2298425900136958,"Prêts hypothécaires assurés au cours de la période selon la province (%)","2.2",0,{"$f":"IFERROR(VLOOKUP(A6975,Translation!$A:$C,3,FALSE),A6975)","v":3},{"$f":"IFERROR(VLOOKUP(B6975,Translation!$A:$C,3,FALSE),B6975)","v":"Cumul 2020"},{"$f":"IFERROR(VLOOKUP(C6975,Translation!$A:$C,3,FALSE),C6975)","v":"ALL"},{"$f":"IFERROR(VLOOKUP(D6975,Translation!$A:$C,3,FALSE),D6975)","v":"Saskatchewan"},{"$f":"IFERROR(VLOOKUP(E6975,Translation!$A:$C,3,FALSE),E6975)","v":2.2298425900136958},{"$f":"IFERROR(VLOOKUP(F6975,Translation!$A:$C,3,FALSE),F6975)","v":"Prêts hypothécaires assurés au cours de la période selon la province (%)"},{"$f":"IFERROR(VLOOKUP(G6975,Translation!$A:$C,3,FALSE),G6975)","v":"2.2"},{"$f":"IFERROR(VLOOKUP(H6975,Translation!$A:$C,3,FALSE),H6975)","v":0}]
[3,"T1 2020","ALL","Alberta",11.960765338089079,"Prêts hypothécaires assurés au cours de la période selon la province (%)","12.0",0,{"$f":"IFERROR(VLOOKUP(A6976,Translation!$A:$C,3,FALSE),A6976)","v":3},{"$f":"IFERROR(VLOOKUP(B6976,Translation!$A:$C,3,FALSE),B6976)","v":"T1 2020"},{"$f":"IFERROR(VLOOKUP(C6976,Translation!$A:$C,3,FALSE),C6976)","v":"ALL"},{"$f":"IFERROR(VLOOKUP(D6976,Translation!$A:$C,3,FALSE),D6976)","v":"Alberta"},{"$f":"IFERROR(VLOOKUP(E6976,Translation!$A:$C,3,FALSE),E6976)","v":11.960765338089079},{"$f":"IFERROR(VLOOKUP(F6976,Translation!$A:$C,3,FALSE),F6976)","v":"Prêts hypothécaires assurés au cours de la période selon la province (%)"},{"$f":"IFERROR(VLOOKUP(G6976,Translation!$A:$C,3,FALSE),G6976)","v":"12.0"},{"$f":"IFERROR(VLOOKUP(H6976,Translation!$A:$C,3,FALSE),H6976)","v":0}]
[3,"Cumul 2019","ALL","Alberta",13.070681310896484,"Prêts hypothécaires assurés au cours de la période selon la province (%)","13.1",0,{"$f":"IFERROR(VLOOKUP(A6977,Translation!$A:$C,3,FALSE),A6977)","v":3},{"$f":"IFERROR(VLOOKUP(B6977,Translation!$A:$C,3,FALSE),B6977)","v":"Cumul 2019"},{"$f":"IFERROR(VLOOKUP(C6977,Translation!$A:$C,3,FALSE),C6977)","v":"ALL"},{"$f":"IFERROR(VLOOKUP(D6977,Translation!$A:$C,3,FALSE),D6977)","v":"Alberta"},{"$f":"IFERROR(VLOOKUP(E6977,Translation!$A:$C,3,FALSE),E6977)","v":13.070681310896484},{"$f":"IFERROR(VLOOKUP(F6977,Translation!$A:$C,3,FALSE),F6977)","v":"Prêts hypothécaires assurés au cours de la période selon la province (%)"},{"$f":"IFERROR(VLOOKUP(G6977,Translation!$A:$C,3,FALSE),G6977)","v":"13.1"},{"$f":"IFERROR(VLOOKUP(H6977,Translation!$A:$C,3,FALSE),H6977)","v":0}]
[3,"Cumul 2020","ALL","Alberta",11.960765338089079,"Prêts hypothécaires assurés au cours de la période selon la province (%)","12.0",0,{"$f":"IFERROR(VLOOKUP(A6978,Translation!$A:$C,3,FALSE),A6978)","v":3},{"$f":"IFERROR(VLOOKUP(B6978,Translation!$A:$C,3,FALSE),B6978)","v":"Cumul 2020"},{"$f":"IFERROR(VLOOKUP(C6978,Translation!$A:$C,3,FALSE),C6978)","v":"ALL"},{"$f":"IFERROR(VLOOKUP(D6978,Translation!$A:$C,3,FALSE),D6978)","v":"Alberta"},{"$f":"IFERROR(VLOOKUP(E6978,Translation!$A:$C,3,FALSE),E6978)","v":11.960765338089079},{"$f":"IFERROR(VLOOKUP(F6978,Translation!$A:$C,3,FALSE),F6978)","v":"Prêts hypothécaires assurés au cours de la période selon la province (%)"},{"$f":"IFERROR(VLOOKUP(G6978,Translation!$A:$C,3,FALSE),G6978)","v":"12.0"},{"$f":"IFERROR(VLOOKUP(H6978,Translation!$A:$C,3,FALSE),H6978)","v":0}]
[3,"T1 2020","ALL","Colombie-Britannique",13.095464507715253,"Prêts hypothécaires assurés au cours de la période selon la province (%)","13.1",0,{"$f":"IFERROR(VLOOKUP(A6979,Translation!$A:$C,3,FALSE),A6979)","v":3},{"$f":"IFERROR(VLOOKUP(B6979,Translation!$A:$C,3,FALSE),B6979)","v":"T1 2020"},{"$f":"IFERROR(VLOOKUP(C6979,Translation!$A:$C,3,FALSE),C6979)","v":"ALL"},{"$f":"IFERROR(VLOOKUP(D6979,Translation!$A:$C,3,FALSE),D6979)","v":"Colombie-Britannique"},{"$f":"IFERROR(VLOOKUP(E6979,Translation!$A:$C,3,FALSE),E6979)","v":13.095464507715253},{"$f":"IFERROR(VLOOKUP(F6979,Translation!$A:$C,3,FALSE),F6979)","v":"Prêts hypothécaires assurés au cours de la période selon la province (%)"},{"$f":"IFERROR(VLOOKUP(G6979,Translation!$A:$C,3,FALSE),G6979)","v":"13.1"},{"$f":"IFERROR(VLOOKUP(H6979,Translation!$A:$C,3,FALSE),H6979)","v":0}]
[3,"Cumul 2019","ALL","Colombie-Britannique",13.185119738899783,"Prêts hypothécaires assurés au cours de la période selon la province (%)","13.2",0,{"$f":"IFERROR(VLOOKUP(A6980,Translation!$A:$C,3,FALSE),A6980)","v":3},{"$f":"IFERROR(VLOOKUP(B6980,Translation!$A:$C,3,FALSE),B6980)","v":"Cumul 2019"},{"$f":"IFERROR(VLOOKUP(C6980,Translation!$A:$C,3,FALSE),C6980)","v":"ALL"},{"$f":"IFERROR(VLOOKUP(D6980,Translation!$A:$C,3,FALSE),D6980)","v":"Colombie-Britannique"},{"$f":"IFERROR(VLOOKUP(E6980,Translation!$A:$C,3,FALSE),E6980)","v":13.185119738899783},{"$f":"IFERROR(VLOOKUP(F6980,Translation!$A:$C,3,FALSE),F6980)","v":"Prêts hypothécaires assurés au cours de la période selon la province (%)"},{"$f":"IFERROR(VLOOKUP(G6980,Translation!$A:$C,3,FALSE),G6980)","v":"13.2"},{"$f":"IFERROR(VLOOKUP(H6980,Translation!$A:$C,3,FALSE),H6980)","v":0}]
[3,"Cumul 2020","ALL","Colombie-Britannique",13.095464507715253,"Prêts hypothécaires assurés au cours de la période selon la province (%)","13.1",0,{"$f":"IFERROR(VLOOKUP(A6981,Translation!$A:$C,3,FALSE),A6981)","v":3},{"$f":"IFERROR(VLOOKUP(B6981,Translation!$A:$C,3,FALSE),B6981)","v":"Cumul 2020"},{"$f":"IFERROR(VLOOKUP(C6981,Translation!$A:$C,3,FALSE),C6981)","v":"ALL"},{"$f":"IFERROR(VLOOKUP(D6981,Translation!$A:$C,3,FALSE),D6981)","v":"Colombie-Britannique"},{"$f":"IFERROR(VLOOKUP(E6981,Translation!$A:$C,3,FALSE),E6981)","v":13.095464507715253},{"$f":"IFERROR(VLOOKUP(F6981,Translation!$A:$C,3,FALSE),F6981)","v":"Prêts hypothécaires assurés au cours de la période selon la province (%)"},{"$f":"IFERROR(VLOOKUP(G6981,Translation!$A:$C,3,FALSE),G6981)","v":"13.1"},{"$f":"IFERROR(VLOOKUP(H6981,Translation!$A:$C,3,FALSE),H6981)","v":0}]
[3,"T1 2020","ALL","Territoires",0.19573287630707725,"Prêts hypothécaires assurés au cours de la période selon la province (%)","0.2",0,{"$f":"IFERROR(VLOOKUP(A6982,Translation!$A:$C,3,FALSE),A6982)","v":3},{"$f":"IFERROR(VLOOKUP(B6982,Translation!$A:$C,3,FALSE),B6982)","v":"T1 2020"},{"$f":"IFERROR(VLOOKUP(C6982,Translation!$A:$C,3,FALSE),C6982)","v":"ALL"},{"$f":"IFERROR(VLOOKUP(D6982,Translation!$A:$C,3,FALSE),D6982)","v":"Territoires"},{"$f":"IFERROR(VLOOKUP(E6982,Translation!$A:$C,3,FALSE),E6982)","v":0.19573287630707725},{"$f":"IFERROR(VLOOKUP(F6982,Translation!$A:$C,3,FALSE),F6982)","v":"Prêts hypothécaires assurés au cours de la période selon la province (%)"},{"$f":"IFERROR(VLOOKUP(G6982,Translation!$A:$C,3,FALSE),G6982)","v":"0.2"},{"$f":"IFERROR(VLOOKUP(H6982,Translation!$A:$C,3,FALSE),H6982)","v":0}]
[3,"Cumul 2019","ALL","Territoires",0.44259726101272928,"Prêts hypothécaires assurés au cours de la période selon la province (%)","0.4",0,{"$f":"IFERROR(VLOOKUP(A6983,Translation!$A:$C,3,FALSE),A6983)","v":3},{"$f":"IFERROR(VLOOKUP(B6983,Translation!$A:$C,3,FALSE),B6983)","v":"Cumul 2019"},{"$f":"IFERROR(VLOOKUP(C6983,Translation!$A:$C,3,FALSE),C6983)","v":"ALL"},{"$f":"IFERROR(VLOOKUP(D6983,Translation!$A:$C,3,FALSE),D6983)","v":"Territoires"},{"$f":"IFERROR(VLOOKUP(E6983,Translation!$A:$C,3,FALSE),E6983)","v":0.44259726101272928},{"$f":"IFERROR(VLOOKUP(F6983,Translation!$A:$C,3,FALSE),F6983)","v":"Prêts hypothécaires assurés au cours de la période selon la province (%)"},{"$f":"IFERROR(VLOOKUP(G6983,Translation!$A:$C,3,FALSE),G6983)","v":"0.4"},{"$f":"IFERROR(VLOOKUP(H6983,Translation!$A:$C,3,FALSE),H6983)","v":0}]
[3,"Cumul 2020","ALL","Territoires",0.19573287630707725,"Prêts hypothécaires assurés au cours de la période selon la province (%)","0.2",0,{"$f":"IFERROR(VLOOKUP(A6984,Translation!$A:$C,3,FALSE),A6984)","v":3},{"$f":"IFERROR(VLOOKUP(B6984,Translation!$A:$C,3,FALSE),B6984)","v":"Cumul 2020"},{"$f":"IFERROR(VLOOKUP(C6984,Translation!$A:$C,3,FALSE),C6984)","v":"ALL"},{"$f":"IFERROR(VLOOKUP(D6984,Translation!$A:$C,3,FALSE),D6984)","v":"Territoires"},{"$f":"IFERROR(VLOOKUP(E6984,Translation!$A:$C,3,FALSE),E6984)","v":0.19573287630707725},{"$f":"IFERROR(VLOOKUP(F6984,Translation!$A:$C,3,FALSE),F6984)","v":"Prêts hypothécaires assurés au cours de la période selon la province (%)"},{"$f":"IFERROR(VLOOKUP(G6984,Translation!$A:$C,3,FALSE),G6984)","v":"0.2"},{"$f":"IFERROR(VLOOKUP(H6984,Translation!$A:$C,3,FALSE),H6984)","v":0}]
[3,"T1 2020","ALL","PROPRIÉTAIRES-OCCUPANTS, À L’UNITÉ",15023,"UNIT","15023.0",0,{"$f":"IFERROR(VLOOKUP(A6985,Translation!$A:$C,3,FALSE),A6985)","v":3},{"$f":"IFERROR(VLOOKUP(B6985,Translation!$A:$C,3,FALSE),B6985)","v":"T1 2020"},{"$f":"IFERROR(VLOOKUP(C6985,Translation!$A:$C,3,FALSE),C6985)","v":"ALL"},{"$f":"IFERROR(VLOOKUP(D6985,Translation!$A:$C,3,FALSE),D6985)","v":"PROPRIÉTAIRES-OCCUPANTS, À L’UNITÉ"},{"$f":"IFERROR(VLOOKUP(E6985,Translation!$A:$C,3,FALSE),E6985)","v":15023},{"$f":"IFERROR(VLOOKUP(F6985,Translation!$A:$C,3,FALSE),F6985)","v":"UNIT"},{"$f":"IFERROR(VLOOKUP(G6985,Translation!$A:$C,3,FALSE),G6985)","v":"15023.0"},{"$f":"IFERROR(VLOOKUP(H6985,Translation!$A:$C,3,FALSE),H6985)","v":0}]
[3,"Cumul 2019","ALL","PROPRIÉTAIRES-OCCUPANTS, À L’UNITÉ",13893,"UNIT","13893.0",0,{"$f":"IFERROR(VLOOKUP(A6986,Translation!$A:$C,3,FALSE),A6986)","v":3},{"$f":"IFERROR(VLOOKUP(B6986,Translation!$A:$C,3,FALSE),B6986)","v":"Cumul 2019"},{"$f":"IFERROR(VLOOKUP(C6986,Translation!$A:$C,3,FALSE),C6986)","v":"ALL"},{"$f":"IFERROR(VLOOKUP(D6986,Translation!$A:$C,3,FALSE),D6986)","v":"PROPRIÉTAIRES-OCCUPANTS, À L’UNITÉ"},{"$f":"IFERROR(VLOOKUP(E6986,Translation!$A:$C,3,FALSE),E6986)","v":13893},{"$f":"IFERROR(VLOOKUP(F6986,Translation!$A:$C,3,FALSE),F6986)","v":"UNIT"},{"$f":"IFERROR(VLOOKUP(G6986,Translation!$A:$C,3,FALSE),G6986)","v":"13893.0"},{"$f":"IFERROR(VLOOKUP(H6986,Translation!$A:$C,3,FALSE),H6986)","v":0}]
[3,"Cumul 2020","ALL","PROPRIÉTAIRES-OCCUPANTS, À L’UNITÉ",15023,"UNIT","15023.0",0,{"$f":"IFERROR(VLOOKUP(A6987,Translation!$A:$C,3,FALSE),A6987)","v":3},{"$f":"IFERROR(VLOOKUP(B6987,Translation!$A:$C,3,FALSE),B6987)","v":"Cumul 2020"},{"$f":"IFERROR(VLOOKUP(C6987,Translation!$A:$C,3,FALSE),C6987)","v":"ALL"},{"$f":"IFERROR(VLOOKUP(D6987,Translation!$A:$C,3,FALSE),D6987)","v":"PROPRIÉTAIRES-OCCUPANTS, À L’UNITÉ"},{"$f":"IFERROR(VLOOKUP(E6987,Translation!$A:$C,3,FALSE),E6987)","v":15023},{"$f":"IFERROR(VLOOKUP(F6987,Translation!$A:$C,3,FALSE),F6987)","v":"UNIT"},{"$f":"IFERROR(VLOOKUP(G6987,Translation!$A:$C,3,FALSE),G6987)","v":"15023.0"},{"$f":"IFERROR(VLOOKUP(H6987,Translation!$A:$C,3,FALSE),H6987)","v":0}]
[3,"T1 2020","ALL","Assurance de portefeuille (nouveaux prêts)",4222,"UNIT","4222.0",0,{"$f":"IFERROR(VLOOKUP(A6988,Translation!$A:$C,3,FALSE),A6988)","v":3},{"$f":"IFERROR(VLOOKUP(B6988,Translation!$A:$C,3,FALSE),B6988)","v":"T1 2020"},{"$f":"IFERROR(VLOOKUP(C6988,Translation!$A:$C,3,FALSE),C6988)","v":"ALL"},{"$f":"IFERROR(VLOOKUP(D6988,Translation!$A:$C,3,FALSE),D6988)","v":"Assurance de portefeuille (nouveaux prêts)"},{"$f":"IFERROR(VLOOKUP(E6988,Translation!$A:$C,3,FALSE),E6988)","v":4222},{"$f":"IFERROR(VLOOKUP(F6988,Translation!$A:$C,3,FALSE),F6988)","v":"UNIT"},{"$f":"IFERROR(VLOOKUP(G6988,Translation!$A:$C,3,FALSE),G6988)","v":"4222.0"},{"$f":"IFERROR(VLOOKUP(H6988,Translation!$A:$C,3,FALSE),H6988)","v":0}]
[3,"Cumul 2019","ALL","Assurance de portefeuille (nouveaux prêts)",3303,"UNIT","3303.0",0,{"$f":"IFERROR(VLOOKUP(A6989,Translation!$A:$C,3,FALSE),A6989)","v":3},{"$f":"IFERROR(VLOOKUP(B6989,Translation!$A:$C,3,FALSE),B6989)","v":"Cumul 2019"},{"$f":"IFERROR(VLOOKUP(C6989,Translation!$A:$C,3,FALSE),C6989)","v":"ALL"},{"$f":"IFERROR(VLOOKUP(D6989,Translation!$A:$C,3,FALSE),D6989)","v":"Assurance de portefeuille (nouveaux prêts)"},{"$f":"IFERROR(VLOOKUP(E6989,Translation!$A:$C,3,FALSE),E6989)","v":3303},{"$f":"IFERROR(VLOOKUP(F6989,Translation!$A:$C,3,FALSE),F6989)","v":"UNIT"},{"$f":"IFERROR(VLOOKUP(G6989,Translation!$A:$C,3,FALSE),G6989)","v":"3303.0"},{"$f":"IFERROR(VLOOKUP(H6989,Translation!$A:$C,3,FALSE),H6989)","v":0}]
[3,"Cumul 2020","ALL","Assurance de portefeuille (nouveaux prêts)",4222,"UNIT","4222.0",0,{"$f":"IFERROR(VLOOKUP(A6990,Translation!$A:$C,3,FALSE),A6990)","v":3},{"$f":"IFERROR(VLOOKUP(B6990,Translation!$A:$C,3,FALSE),B6990)","v":"Cumul 2020"},{"$f":"IFERROR(VLOOKUP(C6990,Translation!$A:$C,3,FALSE),C6990)","v":"ALL"},{"$f":"IFERROR(VLOOKUP(D6990,Translation!$A:$C,3,FALSE),D6990)","v":"Assurance de portefeuille (nouveaux prêts)"},{"$f":"IFERROR(VLOOKUP(E6990,Translation!$A:$C,3,FALSE),E6990)","v":4222},{"$f":"IFERROR(VLOOKUP(F6990,Translation!$A:$C,3,FALSE),F6990)","v":"UNIT"},{"$f":"IFERROR(VLOOKUP(G6990,Translation!$A:$C,3,FALSE),G6990)","v":"4222.0"},{"$f":"IFERROR(VLOOKUP(H6990,Translation!$A:$C,3,FALSE),H6990)","v":0}]
[3,"Cumul 2019","ALL","Assurance de portefeuille (prêts de substitution)",3766,"UNIT","3766.0",0,{"$f":"IFERROR(VLOOKUP(A6991,Translation!$A:$C,3,FALSE),A6991)","v":3},{"$f":"IFERROR(VLOOKUP(B6991,Translation!$A:$C,3,FALSE),B6991)","v":"Cumul 2019"},{"$f":"IFERROR(VLOOKUP(C6991,Translation!$A:$C,3,FALSE),C6991)","v":"ALL"},{"$f":"IFERROR(VLOOKUP(D6991,Translation!$A:$C,3,FALSE),D6991)","v":"Assurance de portefeuille (prêts de substitution)"},{"$f":"IFERROR(VLOOKUP(E6991,Translation!$A:$C,3,FALSE),E6991)","v":3766},{"$f":"IFERROR(VLOOKUP(F6991,Translation!$A:$C,3,FALSE),F6991)","v":"UNIT"},{"$f":"IFERROR(VLOOKUP(G6991,Translation!$A:$C,3,FALSE),G6991)","v":"3766.0"},{"$f":"IFERROR(VLOOKUP(H6991,Translation!$A:$C,3,FALSE),H6991)","v":0}]
[3,"T1 2020","ALL","IMMEUBLES COLLECTIFS RÉSIDENTIELS",36757,"UNIT","36757.0",0,{"$f":"IFERROR(VLOOKUP(A6992,Translation!$A:$C,3,FALSE),A6992)","v":3},{"$f":"IFERROR(VLOOKUP(B6992,Translation!$A:$C,3,FALSE),B6992)","v":"T1 2020"},{"$f":"IFERROR(VLOOKUP(C6992,Translation!$A:$C,3,FALSE),C6992)","v":"ALL"},{"$f":"IFERROR(VLOOKUP(D6992,Translation!$A:$C,3,FALSE),D6992)","v":"IMMEUBLES COLLECTIFS RÉSIDENTIELS"},{"$f":"IFERROR(VLOOKUP(E6992,Translation!$A:$C,3,FALSE),E6992)","v":36757},{"$f":"IFERROR(VLOOKUP(F6992,Translation!$A:$C,3,FALSE),F6992)","v":"UNIT"},{"$f":"IFERROR(VLOOKUP(G6992,Translation!$A:$C,3,FALSE),G6992)","v":"36757.0"},{"$f":"IFERROR(VLOOKUP(H6992,Translation!$A:$C,3,FALSE),H6992)","v":0}]
[3,"Cumul 2019","ALL","IMMEUBLES COLLECTIFS RÉSIDENTIELS",22485,"UNIT","22485.0",0,{"$f":"IFERROR(VLOOKUP(A6993,Translation!$A:$C,3,FALSE),A6993)","v":3},{"$f":"IFERROR(VLOOKUP(B6993,Translation!$A:$C,3,FALSE),B6993)","v":"Cumul 2019"},{"$f":"IFERROR(VLOOKUP(C6993,Translation!$A:$C,3,FALSE),C6993)","v":"ALL"},{"$f":"IFERROR(VLOOKUP(D6993,Translation!$A:$C,3,FALSE),D6993)","v":"IMMEUBLES COLLECTIFS RÉSIDENTIELS"},{"$f":"IFERROR(VLOOKUP(E6993,Translation!$A:$C,3,FALSE),E6993)","v":22485},{"$f":"IFERROR(VLOOKUP(F6993,Translation!$A:$C,3,FALSE),F6993)","v":"UNIT"},{"$f":"IFERROR(VLOOKUP(G6993,Translation!$A:$C,3,FALSE),G6993)","v":"22485.0"},{"$f":"IFERROR(VLOOKUP(H6993,Translation!$A:$C,3,FALSE),H6993)","v":0}]
[3,"Cumul 2020","ALL","IMMEUBLES COLLECTIFS RÉSIDENTIELS",36757,"UNIT","36757.0",0,{"$f":"IFERROR(VLOOKUP(A6994,Translation!$A:$C,3,FALSE),A6994)","v":3},{"$f":"IFERROR(VLOOKUP(B6994,Translation!$A:$C,3,FALSE),B6994)","v":"Cumul 2020"},{"$f":"IFERROR(VLOOKUP(C6994,Translation!$A:$C,3,FALSE),C6994)","v":"ALL"},{"$f":"IFERROR(VLOOKUP(D6994,Translation!$A:$C,3,FALSE),D6994)","v":"IMMEUBLES COLLECTIFS RÉSIDENTIELS"},{"$f":"IFERROR(VLOOKUP(E6994,Translation!$A:$C,3,FALSE),E6994)","v":36757},{"$f":"IFERROR(VLOOKUP(F6994,Translation!$A:$C,3,FALSE),F6994)","v":"UNIT"},{"$f":"IFERROR(VLOOKUP(G6994,Translation!$A:$C,3,FALSE),G6994)","v":"36757.0"},{"$f":"IFERROR(VLOOKUP(H6994,Translation!$A:$C,3,FALSE),H6994)","v":0}]
[3,"Cumul 2019","ALL","Total Insured Volumes (units)",43447,"UNIT","43447.0",0,{"$f":"IFERROR(VLOOKUP(A6995,Translation!$A:$C,3,FALSE),A6995)","v":3},{"$f":"IFERROR(VLOOKUP(B6995,Translation!$A:$C,3,FALSE),B6995)","v":"Cumul 2019"},{"$f":"IFERROR(VLOOKUP(C6995,Translation!$A:$C,3,FALSE),C6995)","v":"ALL"},{"$f":"IFERROR(VLOOKUP(D6995,Translation!$A:$C,3,FALSE),D6995)","v":"Total Insured Volumes (units)"},{"$f":"IFERROR(VLOOKUP(E6995,Translation!$A:$C,3,FALSE),E6995)","v":43447},{"$f":"IFERROR(VLOOKUP(F6995,Translation!$A:$C,3,FALSE),F6995)","v":"UNIT"},{"$f":"IFERROR(VLOOKUP(G6995,Translation!$A:$C,3,FALSE),G6995)","v":"43447.0"},{"$f":"IFERROR(VLOOKUP(H6995,Translation!$A:$C,3,FALSE),H6995)","v":0}]
[3,"Cumul 2020","ALL","Total Insured Volumes (units)",56002,"UNIT","56002.0",0,{"$f":"IFERROR(VLOOKUP(A6996,Translation!$A:$C,3,FALSE),A6996)","v":3},{"$f":"IFERROR(VLOOKUP(B6996,Translation!$A:$C,3,FALSE),B6996)","v":"Cumul 2020"},{"$f":"IFERROR(VLOOKUP(C6996,Translation!$A:$C,3,FALSE),C6996)","v":"ALL"},{"$f":"IFERROR(VLOOKUP(D6996,Translation!$A:$C,3,FALSE),D6996)","v":"Total Insured Volumes (units)"},{"$f":"IFERROR(VLOOKUP(E6996,Translation!$A:$C,3,FALSE),E6996)","v":56002},{"$f":"IFERROR(VLOOKUP(F6996,Translation!$A:$C,3,FALSE),F6996)","v":"UNIT"},{"$f":"IFERROR(VLOOKUP(G6996,Translation!$A:$C,3,FALSE),G6996)","v":"56002.0"},{"$f":"IFERROR(VLOOKUP(H6996,Translation!$A:$C,3,FALSE),H6996)","v":0}]
[3,"T1 2020","ALL","PROPRIÉTAIRES-OCCUPANTS, À L’UNITÉ",4202589861.5299754,"AMT","4202589861.5",0,{"$f":"IFERROR(VLOOKUP(A6997,Translation!$A:$C,3,FALSE),A6997)","v":3},{"$f":"IFERROR(VLOOKUP(B6997,Translation!$A:$C,3,FALSE),B6997)","v":"T1 2020"},{"$f":"IFERROR(VLOOKUP(C6997,Translation!$A:$C,3,FALSE),C6997)","v":"ALL"},{"$f":"IFERROR(VLOOKUP(D6997,Translation!$A:$C,3,FALSE),D6997)","v":"PROPRIÉTAIRES-OCCUPANTS, À L’UNITÉ"},{"$f":"IFERROR(VLOOKUP(E6997,Translation!$A:$C,3,FALSE),E6997)","v":4202589861.5299754},{"$f":"IFERROR(VLOOKUP(F6997,Translation!$A:$C,3,FALSE),F6997)","v":"AMT"},{"$f":"IFERROR(VLOOKUP(G6997,Translation!$A:$C,3,FALSE),G6997)","v":"4202589861.5"},{"$f":"IFERROR(VLOOKUP(H6997,Translation!$A:$C,3,FALSE),H6997)","v":0}]
[3,"Cumul 2019","ALL","PROPRIÉTAIRES-OCCUPANTS, À L’UNITÉ",3764162330.969985,"AMT","3764162331.0",0,{"$f":"IFERROR(VLOOKUP(A6998,Translation!$A:$C,3,FALSE),A6998)","v":3},{"$f":"IFERROR(VLOOKUP(B6998,Translation!$A:$C,3,FALSE),B6998)","v":"Cumul 2019"},{"$f":"IFERROR(VLOOKUP(C6998,Translation!$A:$C,3,FALSE),C6998)","v":"ALL"},{"$f":"IFERROR(VLOOKUP(D6998,Translation!$A:$C,3,FALSE),D6998)","v":"PROPRIÉTAIRES-OCCUPANTS, À L’UNITÉ"},{"$f":"IFERROR(VLOOKUP(E6998,Translation!$A:$C,3,FALSE),E6998)","v":3764162330.969985},{"$f":"IFERROR(VLOOKUP(F6998,Translation!$A:$C,3,FALSE),F6998)","v":"AMT"},{"$f":"IFERROR(VLOOKUP(G6998,Translation!$A:$C,3,FALSE),G6998)","v":"3764162331.0"},{"$f":"IFERROR(VLOOKUP(H6998,Translation!$A:$C,3,FALSE),H6998)","v":0}]
[3,"Cumul 2020","ALL","PROPRIÉTAIRES-OCCUPANTS, À L’UNITÉ",4202589861.5299754,"AMT","4202589861.5",0,{"$f":"IFERROR(VLOOKUP(A6999,Translation!$A:$C,3,FALSE),A6999)","v":3},{"$f":"IFERROR(VLOOKUP(B6999,Translation!$A:$C,3,FALSE),B6999)","v":"Cumul 2020"},{"$f":"IFERROR(VLOOKUP(C6999,Translation!$A:$C,3,FALSE),C6999)","v":"ALL"},{"$f":"IFERROR(VLOOKUP(D6999,Translation!$A:$C,3,FALSE),D6999)","v":"PROPRIÉTAIRES-OCCUPANTS, À L’UNITÉ"},{"$f":"IFERROR(VLOOKUP(E6999,Translation!$A:$C,3,FALSE),E6999)","v":4202589861.5299754},{"$f":"IFERROR(VLOOKUP(F6999,Translation!$A:$C,3,FALSE),F6999)","v":"AMT"},{"$f":"IFERROR(VLOOKUP(G6999,Translation!$A:$C,3,FALSE),G6999)","v":"4202589861.5"},{"$f":"IFERROR(VLOOKUP(H6999,Translation!$A:$C,3,FALSE),H6999)","v":0}]
[3,"T1 2020","ALL","Assurance de portefeuille (nouveaux prêts)",1326860770.9700048,"AMT","1326860771.0",0,{"$f":"IFERROR(VLOOKUP(A7000,Translation!$A:$C,3,FALSE),A7000)","v":3},{"$f":"IFERROR(VLOOKUP(B7000,Translation!$A:$C,3,FALSE),B7000)","v":"T1 2020"},{"$f":"IFERROR(VLOOKUP(C7000,Translation!$A:$C,3,FALSE),C7000)","v":"ALL"},{"$f":"IFERROR(VLOOKUP(D7000,Translation!$A:$C,3,FALSE),D7000)","v":"Assurance de portefeuille (nouveaux prêts)"},{"$f":"IFERROR(VLOOKUP(E7000,Translation!$A:$C,3,FALSE),E7000)","v":1326860770.9700048},{"$f":"IFERROR(VLOOKUP(F7000,Translation!$A:$C,3,FALSE),F7000)","v":"AMT"},{"$f":"IFERROR(VLOOKUP(G7000,Translation!$A:$C,3,FALSE),G7000)","v":"1326860771.0"},{"$f":"IFERROR(VLOOKUP(H7000,Translation!$A:$C,3,FALSE),H7000)","v":0}]
[3,"Cumul 2019","ALL","Assurance de portefeuille (nouveaux prêts)",835417715.02000141,"AMT","835417715.0",0,{"$f":"IFERROR(VLOOKUP(A7001,Translation!$A:$C,3,FALSE),A7001)","v":3},{"$f":"IFERROR(VLOOKUP(B7001,Translation!$A:$C,3,FALSE),B7001)","v":"Cumul 2019"},{"$f":"IFERROR(VLOOKUP(C7001,Translation!$A:$C,3,FALSE),C7001)","v":"ALL"},{"$f":"IFERROR(VLOOKUP(D7001,Translation!$A:$C,3,FALSE),D7001)","v":"Assurance de portefeuille (nouveaux prêts)"},{"$f":"IFERROR(VLOOKUP(E7001,Translation!$A:$C,3,FALSE),E7001)","v":835417715.02000141},{"$f":"IFERROR(VLOOKUP(F7001,Translation!$A:$C,3,FALSE),F7001)","v":"AMT"},{"$f":"IFERROR(VLOOKUP(G7001,Translation!$A:$C,3,FALSE),G7001)","v":"835417715.0"},{"$f":"IFERROR(VLOOKUP(H7001,Translation!$A:$C,3,FALSE),H7001)","v":0}]
[3,"Cumul 2020","ALL","Assurance de portefeuille (nouveaux prêts)",1326860770.9700048,"AMT","1326860771.0",0,{"$f":"IFERROR(VLOOKUP(A7002,Translation!$A:$C,3,FALSE),A7002)","v":3},{"$f":"IFERROR(VLOOKUP(B7002,Translation!$A:$C,3,FALSE),B7002)","v":"Cumul 2020"},{"$f":"IFERROR(VLOOKUP(C7002,Translation!$A:$C,3,FALSE),C7002)","v":"ALL"},{"$f":"IFERROR(VLOOKUP(D7002,Translation!$A:$C,3,FALSE),D7002)","v":"Assurance de portefeuille (nouveaux prêts)"},{"$f":"IFERROR(VLOOKUP(E7002,Translation!$A:$C,3,FALSE),E7002)","v":1326860770.9700048},{"$f":"IFERROR(VLOOKUP(F7002,Translation!$A:$C,3,FALSE),F7002)","v":"AMT"},{"$f":"IFERROR(VLOOKUP(G7002,Translation!$A:$C,3,FALSE),G7002)","v":"1326860771.0"},{"$f":"IFERROR(VLOOKUP(H7002,Translation!$A:$C,3,FALSE),H7002)","v":0}]
[3,"Cumul 2019","ALL","Assurance de portefeuille (prêts de substitution)",529421231.1699996,"AMT","529421231.2",0,{"$f":"IFERROR(VLOOKUP(A7003,Translation!$A:$C,3,FALSE),A7003)","v":3},{"$f":"IFERROR(VLOOKUP(B7003,Translation!$A:$C,3,FALSE),B7003)","v":"Cumul 2019"},{"$f":"IFERROR(VLOOKUP(C7003,Translation!$A:$C,3,FALSE),C7003)","v":"ALL"},{"$f":"IFERROR(VLOOKUP(D7003,Translation!$A:$C,3,FALSE),D7003)","v":"Assurance de portefeuille (prêts de substitution)"},{"$f":"IFERROR(VLOOKUP(E7003,Translation!$A:$C,3,FALSE),E7003)","v":529421231.1699996},{"$f":"IFERROR(VLOOKUP(F7003,Translation!$A:$C,3,FALSE),F7003)","v":"AMT"},{"$f":"IFERROR(VLOOKUP(G7003,Translation!$A:$C,3,FALSE),G7003)","v":"529421231.2"},{"$f":"IFERROR(VLOOKUP(H7003,Translation!$A:$C,3,FALSE),H7003)","v":0}]
[3,"T1 2020","ALL","IMMEUBLES COLLECTIFS RÉSIDENTIELS",5264556919.3299961,"AMT","5264556919.3",0,{"$f":"IFERROR(VLOOKUP(A7004,Translation!$A:$C,3,FALSE),A7004)","v":3},{"$f":"IFERROR(VLOOKUP(B7004,Translation!$A:$C,3,FALSE),B7004)","v":"T1 2020"},{"$f":"IFERROR(VLOOKUP(C7004,Translation!$A:$C,3,FALSE),C7004)","v":"ALL"},{"$f":"IFERROR(VLOOKUP(D7004,Translation!$A:$C,3,FALSE),D7004)","v":"IMMEUBLES COLLECTIFS RÉSIDENTIELS"},{"$f":"IFERROR(VLOOKUP(E7004,Translation!$A:$C,3,FALSE),E7004)","v":5264556919.3299961},{"$f":"IFERROR(VLOOKUP(F7004,Translation!$A:$C,3,FALSE),F7004)","v":"AMT"},{"$f":"IFERROR(VLOOKUP(G7004,Translation!$A:$C,3,FALSE),G7004)","v":"5264556919.3"},{"$f":"IFERROR(VLOOKUP(H7004,Translation!$A:$C,3,FALSE),H7004)","v":0}]
[3,"Cumul 2019","ALL","IMMEUBLES COLLECTIFS RÉSIDENTIELS",2763194458.1799998,"AMT","2763194458.2",0,{"$f":"IFERROR(VLOOKUP(A7005,Translation!$A:$C,3,FALSE),A7005)","v":3},{"$f":"IFERROR(VLOOKUP(B7005,Translation!$A:$C,3,FALSE),B7005)","v":"Cumul 2019"},{"$f":"IFERROR(VLOOKUP(C7005,Translation!$A:$C,3,FALSE),C7005)","v":"ALL"},{"$f":"IFERROR(VLOOKUP(D7005,Translation!$A:$C,3,FALSE),D7005)","v":"IMMEUBLES COLLECTIFS RÉSIDENTIELS"},{"$f":"IFERROR(VLOOKUP(E7005,Translation!$A:$C,3,FALSE),E7005)","v":2763194458.1799998},{"$f":"IFERROR(VLOOKUP(F7005,Translation!$A:$C,3,FALSE),F7005)","v":"AMT"},{"$f":"IFERROR(VLOOKUP(G7005,Translation!$A:$C,3,FALSE),G7005)","v":"2763194458.2"},{"$f":"IFERROR(VLOOKUP(H7005,Translation!$A:$C,3,FALSE),H7005)","v":0}]
[3,"Cumul 2020","ALL","IMMEUBLES COLLECTIFS RÉSIDENTIELS",5264556919.3299961,"AMT","5264556919.3",0,{"$f":"IFERROR(VLOOKUP(A7006,Translation!$A:$C,3,FALSE),A7006)","v":3},{"$f":"IFERROR(VLOOKUP(B7006,Translation!$A:$C,3,FALSE),B7006)","v":"Cumul 2020"},{"$f":"IFERROR(VLOOKUP(C7006,Translation!$A:$C,3,FALSE),C7006)","v":"ALL"},{"$f":"IFERROR(VLOOKUP(D7006,Translation!$A:$C,3,FALSE),D7006)","v":"IMMEUBLES COLLECTIFS RÉSIDENTIELS"},{"$f":"IFERROR(VLOOKUP(E7006,Translation!$A:$C,3,FALSE),E7006)","v":5264556919.3299961},{"$f":"IFERROR(VLOOKUP(F7006,Translation!$A:$C,3,FALSE),F7006)","v":"AMT"},{"$f":"IFERROR(VLOOKUP(G7006,Translation!$A:$C,3,FALSE),G7006)","v":"5264556919.3"},{"$f":"IFERROR(VLOOKUP(H7006,Translation!$A:$C,3,FALSE),H7006)","v":0}]
[3,"Cumul 2019","ALL","Volume total d'assurance (M$)",7892195735.3399858,"AMT","7892195735.3",0,{"$f":"IFERROR(VLOOKUP(A7007,Translation!$A:$C,3,FALSE),A7007)","v":3},{"$f":"IFERROR(VLOOKUP(B7007,Translation!$A:$C,3,FALSE),B7007)","v":"Cumul 2019"},{"$f":"IFERROR(VLOOKUP(C7007,Translation!$A:$C,3,FALSE),C7007)","v":"ALL"},{"$f":"IFERROR(VLOOKUP(D7007,Translation!$A:$C,3,FALSE),D7007)","v":"Volume total d'assurance (M$)"},{"$f":"IFERROR(VLOOKUP(E7007,Translation!$A:$C,3,FALSE),E7007)","v":7892195735.3399858},{"$f":"IFERROR(VLOOKUP(F7007,Translation!$A:$C,3,FALSE),F7007)","v":"AMT"},{"$f":"IFERROR(VLOOKUP(G7007,Translation!$A:$C,3,FALSE),G7007)","v":"7892195735.3"},{"$f":"IFERROR(VLOOKUP(H7007,Translation!$A:$C,3,FALSE),H7007)","v":0}]
[3,"Cumul 2020","ALL","Volume total d'assurance (M$)",10794007551.829975,"AMT","10794007551.8",0,{"$f":"IFERROR(VLOOKUP(A7008,Translation!$A:$C,3,FALSE),A7008)","v":3},{"$f":"IFERROR(VLOOKUP(B7008,Translation!$A:$C,3,FALSE),B7008)","v":"Cumul 2020"},{"$f":"IFERROR(VLOOKUP(C7008,Translation!$A:$C,3,FALSE),C7008)","v":"ALL"},{"$f":"IFERROR(VLOOKUP(D7008,Translation!$A:$C,3,FALSE),D7008)","v":"Volume total d'assurance (M$)"},{"$f":"IFERROR(VLOOKUP(E7008,Translation!$A:$C,3,FALSE),E7008)","v":10794007551.829975},{"$f":"IFERROR(VLOOKUP(F7008,Translation!$A:$C,3,FALSE),F7008)","v":"AMT"},{"$f":"IFERROR(VLOOKUP(G7008,Translation!$A:$C,3,FALSE),G7008)","v":"10794007551.8"},{"$f":"IFERROR(VLOOKUP(H7008,Translation!$A:$C,3,FALSE),H7008)","v":0}]
[3,"T1 2020","ALL","Total Insured Volumes (units)",56002,"UNIT","56002.0",0,{"$f":"IFERROR(VLOOKUP(A7009,Translation!$A:$C,3,FALSE),A7009)","v":3},{"$f":"IFERROR(VLOOKUP(B7009,Translation!$A:$C,3,FALSE),B7009)","v":"T1 2020"},{"$f":"IFERROR(VLOOKUP(C7009,Translation!$A:$C,3,FALSE),C7009)","v":"ALL"},{"$f":"IFERROR(VLOOKUP(D7009,Translation!$A:$C,3,FALSE),D7009)","v":"Total Insured Volumes (units)"},{"$f":"IFERROR(VLOOKUP(E7009,Translation!$A:$C,3,FALSE),E7009)","v":56002},{"$f":"IFERROR(VLOOKUP(F7009,Translation!$A:$C,3,FALSE),F7009)","v":"UNIT"},{"$f":"IFERROR(VLOOKUP(G7009,Translation!$A:$C,3,FALSE),G7009)","v":"56002.0"},{"$f":"IFERROR(VLOOKUP(H7009,Translation!$A:$C,3,FALSE),H7009)","v":0}]
[3,"T1 2020","ALL","Volume total d'assurance (M$)",10794007551.829975,"AMT","10794007551.8",0,{"$f":"IFERROR(VLOOKUP(A7010,Translation!$A:$C,3,FALSE),A7010)","v":3},{"$f":"IFERROR(VLOOKUP(B7010,Translation!$A:$C,3,FALSE),B7010)","v":"T1 2020"},{"$f":"IFERROR(VLOOKUP(C7010,Translation!$A:$C,3,FALSE),C7010)","v":"ALL"},{"$f":"IFERROR(VLOOKUP(D7010,Translation!$A:$C,3,FALSE),D7010)","v":"Volume total d'assurance (M$)"},{"$f":"IFERROR(VLOOKUP(E7010,Translation!$A:$C,3,FALSE),E7010)","v":10794007551.829975},{"$f":"IFERROR(VLOOKUP(F7010,Translation!$A:$C,3,FALSE),F7010)","v":"AMT"},{"$f":"IFERROR(VLOOKUP(G7010,Translation!$A:$C,3,FALSE),G7010)","v":"10794007551.8"},{"$f":"IFERROR(VLOOKUP(H7010,Translation!$A:$C,3,FALSE),H7010)","v":0}]
[3,"T4 2019","ALL","Terre-Neuve-et-Labrador",0.70060764353431759,"Prêts hypothécaires assurés au cours de la période selon la province (%)","0.7",0,{"$f":"IFERROR(VLOOKUP(A7011,Translation!$A:$C,3,FALSE),A7011)","v":3},{"$f":"IFERROR(VLOOKUP(B7011,Translation!$A:$C,3,FALSE),B7011)","v":"T4 2019"},{"$f":"IFERROR(VLOOKUP(C7011,Translation!$A:$C,3,FALSE),C7011)","v":"ALL"},{"$f":"IFERROR(VLOOKUP(D7011,Translation!$A:$C,3,FALSE),D7011)","v":"Terre-Neuve-et-Labrador"},{"$f":"IFERROR(VLOOKUP(E7011,Translation!$A:$C,3,FALSE),E7011)","v":0.70060764353431759},{"$f":"IFERROR(VLOOKUP(F7011,Translation!$A:$C,3,FALSE),F7011)","v":"Prêts hypothécaires assurés au cours de la période selon la province (%)"},{"$f":"IFERROR(VLOOKUP(G7011,Translation!$A:$C,3,FALSE),G7011)","v":"0.7"},{"$f":"IFERROR(VLOOKUP(H7011,Translation!$A:$C,3,FALSE),H7011)","v":0}]
[3,"Cumul 2018","ALL","Terre-Neuve-et-Labrador",0.79654375632369701,"Prêts hypothécaires assurés au cours de la période selon la province (%)","0.8",0,{"$f":"IFERROR(VLOOKUP(A7012,Translation!$A:$C,3,FALSE),A7012)","v":3},{"$f":"IFERROR(VLOOKUP(B7012,Translation!$A:$C,3,FALSE),B7012)","v":"Cumul 2018"},{"$f":"IFERROR(VLOOKUP(C7012,Translation!$A:$C,3,FALSE),C7012)","v":"ALL"},{"$f":"IFERROR(VLOOKUP(D7012,Translation!$A:$C,3,FALSE),D7012)","v":"Terre-Neuve-et-Labrador"},{"$f":"IFERROR(VLOOKUP(E7012,Translation!$A:$C,3,FALSE),E7012)","v":0.79654375632369701},{"$f":"IFERROR(VLOOKUP(F7012,Translation!$A:$C,3,FALSE),F7012)","v":"Prêts hypothécaires assurés au cours de la période selon la province (%)"},{"$f":"IFERROR(VLOOKUP(G7012,Translation!$A:$C,3,FALSE),G7012)","v":"0.8"},{"$f":"IFERROR(VLOOKUP(H7012,Translation!$A:$C,3,FALSE),H7012)","v":0}]
[3,"T4 2019","ALL","Île-du-Prince-Édouard",0.48444180933921421,"Prêts hypothécaires assurés au cours de la période selon la province (%)","0.5",0,{"$f":"IFERROR(VLOOKUP(A7013,Translation!$A:$C,3,FALSE),A7013)","v":3},{"$f":"IFERROR(VLOOKUP(B7013,Translation!$A:$C,3,FALSE),B7013)","v":"T4 2019"},{"$f":"IFERROR(VLOOKUP(C7013,Translation!$A:$C,3,FALSE),C7013)","v":"ALL"},{"$f":"IFERROR(VLOOKUP(D7013,Translation!$A:$C,3,FALSE),D7013)","v":"Île-du-Prince-Édouard"},{"$f":"IFERROR(VLOOKUP(E7013,Translation!$A:$C,3,FALSE),E7013)","v":0.48444180933921421},{"$f":"IFERROR(VLOOKUP(F7013,Translation!$A:$C,3,FALSE),F7013)","v":"Prêts hypothécaires assurés au cours de la période selon la province (%)"},{"$f":"IFERROR(VLOOKUP(G7013,Translation!$A:$C,3,FALSE),G7013)","v":"0.5"},{"$f":"IFERROR(VLOOKUP(H7013,Translation!$A:$C,3,FALSE),H7013)","v":0}]
[3,"Cumul 2018","ALL","Île-du-Prince-Édouard",0.28088627690279444,"Prêts hypothécaires assurés au cours de la période selon la province (%)","0.3",0,{"$f":"IFERROR(VLOOKUP(A7014,Translation!$A:$C,3,FALSE),A7014)","v":3},{"$f":"IFERROR(VLOOKUP(B7014,Translation!$A:$C,3,FALSE),B7014)","v":"Cumul 2018"},{"$f":"IFERROR(VLOOKUP(C7014,Translation!$A:$C,3,FALSE),C7014)","v":"ALL"},{"$f":"IFERROR(VLOOKUP(D7014,Translation!$A:$C,3,FALSE),D7014)","v":"Île-du-Prince-Édouard"},{"$f":"IFERROR(VLOOKUP(E7014,Translation!$A:$C,3,FALSE),E7014)","v":0.28088627690279444},{"$f":"IFERROR(VLOOKUP(F7014,Translation!$A:$C,3,FALSE),F7014)","v":"Prêts hypothécaires assurés au cours de la période selon la province (%)"},{"$f":"IFERROR(VLOOKUP(G7014,Translation!$A:$C,3,FALSE),G7014)","v":"0.3"},{"$f":"IFERROR(VLOOKUP(H7014,Translation!$A:$C,3,FALSE),H7014)","v":0}]
[3,"T4 2019","ALL","Nouvelle-Écosse",3.021967273976641,"Prêts hypothécaires assurés au cours de la période selon la province (%)","3.0",0,{"$f":"IFERROR(VLOOKUP(A7015,Translation!$A:$C,3,FALSE),A7015)","v":3},{"$f":"IFERROR(VLOOKUP(B7015,Translation!$A:$C,3,FALSE),B7015)","v":"T4 2019"},{"$f":"IFERROR(VLOOKUP(C7015,Translation!$A:$C,3,FALSE),C7015)","v":"ALL"},{"$f":"IFERROR(VLOOKUP(D7015,Translation!$A:$C,3,FALSE),D7015)","v":"Nouvelle-Écosse"},{"$f":"IFERROR(VLOOKUP(E7015,Translation!$A:$C,3,FALSE),E7015)","v":3.021967273976641},{"$f":"IFERROR(VLOOKUP(F7015,Translation!$A:$C,3,FALSE),F7015)","v":"Prêts hypothécaires assurés au cours de la période selon la province (%)"},{"$f":"IFERROR(VLOOKUP(G7015,Translation!$A:$C,3,FALSE),G7015)","v":"3.0"},{"$f":"IFERROR(VLOOKUP(H7015,Translation!$A:$C,3,FALSE),H7015)","v":0}]
[3,"Cumul 2018","ALL","Nouvelle-Écosse",3.6159002130449154,"Prêts hypothécaires assurés au cours de la période selon la province (%)","3.6",0,{"$f":"IFERROR(VLOOKUP(A7016,Translation!$A:$C,3,FALSE),A7016)","v":3},{"$f":"IFERROR(VLOOKUP(B7016,Translation!$A:$C,3,FALSE),B7016)","v":"Cumul 2018"},{"$f":"IFERROR(VLOOKUP(C7016,Translation!$A:$C,3,FALSE),C7016)","v":"ALL"},{"$f":"IFERROR(VLOOKUP(D7016,Translation!$A:$C,3,FALSE),D7016)","v":"Nouvelle-Écosse"},{"$f":"IFERROR(VLOOKUP(E7016,Translation!$A:$C,3,FALSE),E7016)","v":3.6159002130449154},{"$f":"IFERROR(VLOOKUP(F7016,Translation!$A:$C,3,FALSE),F7016)","v":"Prêts hypothécaires assurés au cours de la période selon la province (%)"},{"$f":"IFERROR(VLOOKUP(G7016,Translation!$A:$C,3,FALSE),G7016)","v":"3.6"},{"$f":"IFERROR(VLOOKUP(H7016,Translation!$A:$C,3,FALSE),H7016)","v":0}]
[3,"T4 2019","ALL","Nouveau-Brunswick",1.4327418038638375,"Prêts hypothécaires assurés au cours de la période selon la province (%)","1.4",0,{"$f":"IFERROR(VLOOKUP(A7017,Translation!$A:$C,3,FALSE),A7017)","v":3},{"$f":"IFERROR(VLOOKUP(B7017,Translation!$A:$C,3,FALSE),B7017)","v":"T4 2019"},{"$f":"IFERROR(VLOOKUP(C7017,Translation!$A:$C,3,FALSE),C7017)","v":"ALL"},{"$f":"IFERROR(VLOOKUP(D7017,Translation!$A:$C,3,FALSE),D7017)","v":"Nouveau-Brunswick"},{"$f":"IFERROR(VLOOKUP(E7017,Translation!$A:$C,3,FALSE),E7017)","v":1.4327418038638375},{"$f":"IFERROR(VLOOKUP(F7017,Translation!$A:$C,3,FALSE),F7017)","v":"Prêts hypothécaires assurés au cours de la période selon la province (%)"},{"$f":"IFERROR(VLOOKUP(G7017,Translation!$A:$C,3,FALSE),G7017)","v":"1.4"},{"$f":"IFERROR(VLOOKUP(H7017,Translation!$A:$C,3,FALSE),H7017)","v":0}]
[3,"Cumul 2018","ALL","Nouveau-Brunswick",1.432566349660958,"Prêts hypothécaires assurés au cours de la période selon la province (%)","1.4",0,{"$f":"IFERROR(VLOOKUP(A7018,Translation!$A:$C,3,FALSE),A7018)","v":3},{"$f":"IFERROR(VLOOKUP(B7018,Translation!$A:$C,3,FALSE),B7018)","v":"Cumul 2018"},{"$f":"IFERROR(VLOOKUP(C7018,Translation!$A:$C,3,FALSE),C7018)","v":"ALL"},{"$f":"IFERROR(VLOOKUP(D7018,Translation!$A:$C,3,FALSE),D7018)","v":"Nouveau-Brunswick"},{"$f":"IFERROR(VLOOKUP(E7018,Translation!$A:$C,3,FALSE),E7018)","v":1.432566349660958},{"$f":"IFERROR(VLOOKUP(F7018,Translation!$A:$C,3,FALSE),F7018)","v":"Prêts hypothécaires assurés au cours de la période selon la province (%)"},{"$f":"IFERROR(VLOOKUP(G7018,Translation!$A:$C,3,FALSE),G7018)","v":"1.4"},{"$f":"IFERROR(VLOOKUP(H7018,Translation!$A:$C,3,FALSE),H7018)","v":0}]
[3,"T4 2019","ALL","Québec",23.913003157751756,"Prêts hypothécaires assurés au cours de la période selon la province (%)","23.9",0,{"$f":"IFERROR(VLOOKUP(A7019,Translation!$A:$C,3,FALSE),A7019)","v":3},{"$f":"IFERROR(VLOOKUP(B7019,Translation!$A:$C,3,FALSE),B7019)","v":"T4 2019"},{"$f":"IFERROR(VLOOKUP(C7019,Translation!$A:$C,3,FALSE),C7019)","v":"ALL"},{"$f":"IFERROR(VLOOKUP(D7019,Translation!$A:$C,3,FALSE),D7019)","v":"Québec"},{"$f":"IFERROR(VLOOKUP(E7019,Translation!$A:$C,3,FALSE),E7019)","v":23.913003157751756},{"$f":"IFERROR(VLOOKUP(F7019,Translation!$A:$C,3,FALSE),F7019)","v":"Prêts hypothécaires assurés au cours de la période selon la province (%)"},{"$f":"IFERROR(VLOOKUP(G7019,Translation!$A:$C,3,FALSE),G7019)","v":"23.9"},{"$f":"IFERROR(VLOOKUP(H7019,Translation!$A:$C,3,FALSE),H7019)","v":0}]
[3,"Cumul 2018","ALL","Québec",25.7964312295734,"Prêts hypothécaires assurés au cours de la période selon la province (%)","25.8",0,{"$f":"IFERROR(VLOOKUP(A7020,Translation!$A:$C,3,FALSE),A7020)","v":3},{"$f":"IFERROR(VLOOKUP(B7020,Translation!$A:$C,3,FALSE),B7020)","v":"Cumul 2018"},{"$f":"IFERROR(VLOOKUP(C7020,Translation!$A:$C,3,FALSE),C7020)","v":"ALL"},{"$f":"IFERROR(VLOOKUP(D7020,Translation!$A:$C,3,FALSE),D7020)","v":"Québec"},{"$f":"IFERROR(VLOOKUP(E7020,Translation!$A:$C,3,FALSE),E7020)","v":25.7964312295734},{"$f":"IFERROR(VLOOKUP(F7020,Translation!$A:$C,3,FALSE),F7020)","v":"Prêts hypothécaires assurés au cours de la période selon la province (%)"},{"$f":"IFERROR(VLOOKUP(G7020,Translation!$A:$C,3,FALSE),G7020)","v":"25.8"},{"$f":"IFERROR(VLOOKUP(H7020,Translation!$A:$C,3,FALSE),H7020)","v":0}]
[3,"T4 2019","ALL","Ontario",39.998478416807266,"Prêts hypothécaires assurés au cours de la période selon la province (%)","40.0",0,{"$f":"IFERROR(VLOOKUP(A7021,Translation!$A:$C,3,FALSE),A7021)","v":3},{"$f":"IFERROR(VLOOKUP(B7021,Translation!$A:$C,3,FALSE),B7021)","v":"T4 2019"},{"$f":"IFERROR(VLOOKUP(C7021,Translation!$A:$C,3,FALSE),C7021)","v":"ALL"},{"$f":"IFERROR(VLOOKUP(D7021,Translation!$A:$C,3,FALSE),D7021)","v":"Ontario"},{"$f":"IFERROR(VLOOKUP(E7021,Translation!$A:$C,3,FALSE),E7021)","v":39.998478416807266},{"$f":"IFERROR(VLOOKUP(F7021,Translation!$A:$C,3,FALSE),F7021)","v":"Prêts hypothécaires assurés au cours de la période selon la province (%)"},{"$f":"IFERROR(VLOOKUP(G7021,Translation!$A:$C,3,FALSE),G7021)","v":"40.0"},{"$f":"IFERROR(VLOOKUP(H7021,Translation!$A:$C,3,FALSE),H7021)","v":0}]
[3,"Cumul 2018","ALL","Ontario",35.52569471970515,"Prêts hypothécaires assurés au cours de la période selon la province (%)","35.5",0,{"$f":"IFERROR(VLOOKUP(A7022,Translation!$A:$C,3,FALSE),A7022)","v":3},{"$f":"IFERROR(VLOOKUP(B7022,Translation!$A:$C,3,FALSE),B7022)","v":"Cumul 2018"},{"$f":"IFERROR(VLOOKUP(C7022,Translation!$A:$C,3,FALSE),C7022)","v":"ALL"},{"$f":"IFERROR(VLOOKUP(D7022,Translation!$A:$C,3,FALSE),D7022)","v":"Ontario"},{"$f":"IFERROR(VLOOKUP(E7022,Translation!$A:$C,3,FALSE),E7022)","v":35.52569471970515},{"$f":"IFERROR(VLOOKUP(F7022,Translation!$A:$C,3,FALSE),F7022)","v":"Prêts hypothécaires assurés au cours de la période selon la province (%)"},{"$f":"IFERROR(VLOOKUP(G7022,Translation!$A:$C,3,FALSE),G7022)","v":"35.5"},{"$f":"IFERROR(VLOOKUP(H7022,Translation!$A:$C,3,FALSE),H7022)","v":0}]
[3,"T4 2019","ALL","Manitoba",3.7840648258861198,"Prêts hypothécaires assurés au cours de la période selon la province (%)","3.8",0,{"$f":"IFERROR(VLOOKUP(A7023,Translation!$A:$C,3,FALSE),A7023)","v":3},{"$f":"IFERROR(VLOOKUP(B7023,Translation!$A:$C,3,FALSE),B7023)","v":"T4 2019"},{"$f":"IFERROR(VLOOKUP(C7023,Translation!$A:$C,3,FALSE),C7023)","v":"ALL"},{"$f":"IFERROR(VLOOKUP(D7023,Translation!$A:$C,3,FALSE),D7023)","v":"Manitoba"},{"$f":"IFERROR(VLOOKUP(E7023,Translation!$A:$C,3,FALSE),E7023)","v":3.7840648258861198},{"$f":"IFERROR(VLOOKUP(F7023,Translation!$A:$C,3,FALSE),F7023)","v":"Prêts hypothécaires assurés au cours de la période selon la province (%)"},{"$f":"IFERROR(VLOOKUP(G7023,Translation!$A:$C,3,FALSE),G7023)","v":"3.8"},{"$f":"IFERROR(VLOOKUP(H7023,Translation!$A:$C,3,FALSE),H7023)","v":0}]
[3,"Cumul 2018","ALL","Manitoba",3.4518967892922126,"Prêts hypothécaires assurés au cours de la période selon la province (%)","3.5",0,{"$f":"IFERROR(VLOOKUP(A7024,Translation!$A:$C,3,FALSE),A7024)","v":3},{"$f":"IFERROR(VLOOKUP(B7024,Translation!$A:$C,3,FALSE),B7024)","v":"Cumul 2018"},{"$f":"IFERROR(VLOOKUP(C7024,Translation!$A:$C,3,FALSE),C7024)","v":"ALL"},{"$f":"IFERROR(VLOOKUP(D7024,Translation!$A:$C,3,FALSE),D7024)","v":"Manitoba"},{"$f":"IFERROR(VLOOKUP(E7024,Translation!$A:$C,3,FALSE),E7024)","v":3.4518967892922126},{"$f":"IFERROR(VLOOKUP(F7024,Translation!$A:$C,3,FALSE),F7024)","v":"Prêts hypothécaires assurés au cours de la période selon la province (%)"},{"$f":"IFERROR(VLOOKUP(G7024,Translation!$A:$C,3,FALSE),G7024)","v":"3.5"},{"$f":"IFERROR(VLOOKUP(H7024,Translation!$A:$C,3,FALSE),H7024)","v":0}]
[3,"T4 2019","ALL","Saskatchewan",2.7510364575254247,"Prêts hypothécaires assurés au cours de la période selon la province (%)","2.8",0,{"$f":"IFERROR(VLOOKUP(A7025,Translation!$A:$C,3,FALSE),A7025)","v":3},{"$f":"IFERROR(VLOOKUP(B7025,Translation!$A:$C,3,FALSE),B7025)","v":"T4 2019"},{"$f":"IFERROR(VLOOKUP(C7025,Translation!$A:$C,3,FALSE),C7025)","v":"ALL"},{"$f":"IFERROR(VLOOKUP(D7025,Translation!$A:$C,3,FALSE),D7025)","v":"Saskatchewan"},{"$f":"IFERROR(VLOOKUP(E7025,Translation!$A:$C,3,FALSE),E7025)","v":2.7510364575254247},{"$f":"IFERROR(VLOOKUP(F7025,Translation!$A:$C,3,FALSE),F7025)","v":"Prêts hypothécaires assurés au cours de la période selon la province (%)"},{"$f":"IFERROR(VLOOKUP(G7025,Translation!$A:$C,3,FALSE),G7025)","v":"2.8"},{"$f":"IFERROR(VLOOKUP(H7025,Translation!$A:$C,3,FALSE),H7025)","v":0}]
[3,"Cumul 2018","ALL","Saskatchewan",2.2710956382962282,"Prêts hypothécaires assurés au cours de la période selon la province (%)","2.3",0,{"$f":"IFERROR(VLOOKUP(A7026,Translation!$A:$C,3,FALSE),A7026)","v":3},{"$f":"IFERROR(VLOOKUP(B7026,Translation!$A:$C,3,FALSE),B7026)","v":"Cumul 2018"},{"$f":"IFERROR(VLOOKUP(C7026,Translation!$A:$C,3,FALSE),C7026)","v":"ALL"},{"$f":"IFERROR(VLOOKUP(D7026,Translation!$A:$C,3,FALSE),D7026)","v":"Saskatchewan"},{"$f":"IFERROR(VLOOKUP(E7026,Translation!$A:$C,3,FALSE),E7026)","v":2.2710956382962282},{"$f":"IFERROR(VLOOKUP(F7026,Translation!$A:$C,3,FALSE),F7026)","v":"Prêts hypothécaires assurés au cours de la période selon la province (%)"},{"$f":"IFERROR(VLOOKUP(G7026,Translation!$A:$C,3,FALSE),G7026)","v":"2.3"},{"$f":"IFERROR(VLOOKUP(H7026,Translation!$A:$C,3,FALSE),H7026)","v":0}]
[3,"T4 2019","ALL","Alberta",12.243329170908797,"Prêts hypothécaires assurés au cours de la période selon la province (%)","12.2",0,{"$f":"IFERROR(VLOOKUP(A7027,Translation!$A:$C,3,FALSE),A7027)","v":3},{"$f":"IFERROR(VLOOKUP(B7027,Translation!$A:$C,3,FALSE),B7027)","v":"T4 2019"},{"$f":"IFERROR(VLOOKUP(C7027,Translation!$A:$C,3,FALSE),C7027)","v":"ALL"},{"$f":"IFERROR(VLOOKUP(D7027,Translation!$A:$C,3,FALSE),D7027)","v":"Alberta"},{"$f":"IFERROR(VLOOKUP(E7027,Translation!$A:$C,3,FALSE),E7027)","v":12.243329170908797},{"$f":"IFERROR(VLOOKUP(F7027,Translation!$A:$C,3,FALSE),F7027)","v":"Prêts hypothécaires assurés au cours de la période selon la province (%)"},{"$f":"IFERROR(VLOOKUP(G7027,Translation!$A:$C,3,FALSE),G7027)","v":"12.2"},{"$f":"IFERROR(VLOOKUP(H7027,Translation!$A:$C,3,FALSE),H7027)","v":0}]
[3,"Cumul 2018","ALL","Alberta",13.506564391245483,"Prêts hypothécaires assurés au cours de la période selon la province (%)","13.5",0,{"$f":"IFERROR(VLOOKUP(A7028,Translation!$A:$C,3,FALSE),A7028)","v":3},{"$f":"IFERROR(VLOOKUP(B7028,Translation!$A:$C,3,FALSE),B7028)","v":"Cumul 2018"},{"$f":"IFERROR(VLOOKUP(C7028,Translation!$A:$C,3,FALSE),C7028)","v":"ALL"},{"$f":"IFERROR(VLOOKUP(D7028,Translation!$A:$C,3,FALSE),D7028)","v":"Alberta"},{"$f":"IFERROR(VLOOKUP(E7028,Translation!$A:$C,3,FALSE),E7028)","v":13.506564391245483},{"$f":"IFERROR(VLOOKUP(F7028,Translation!$A:$C,3,FALSE),F7028)","v":"Prêts hypothécaires assurés au cours de la période selon la province (%)"},{"$f":"IFERROR(VLOOKUP(G7028,Translation!$A:$C,3,FALSE),G7028)","v":"13.5"},{"$f":"IFERROR(VLOOKUP(H7028,Translation!$A:$C,3,FALSE),H7028)","v":0}]
[3,"T4 2019","ALL","Colombie-Britannique",11.187799745611773,"Prêts hypothécaires assurés au cours de la période selon la province (%)","11.2",0,{"$f":"IFERROR(VLOOKUP(A7029,Translation!$A:$C,3,FALSE),A7029)","v":3},{"$f":"IFERROR(VLOOKUP(B7029,Translation!$A:$C,3,FALSE),B7029)","v":"T4 2019"},{"$f":"IFERROR(VLOOKUP(C7029,Translation!$A:$C,3,FALSE),C7029)","v":"ALL"},{"$f":"IFERROR(VLOOKUP(D7029,Translation!$A:$C,3,FALSE),D7029)","v":"Colombie-Britannique"},{"$f":"IFERROR(VLOOKUP(E7029,Translation!$A:$C,3,FALSE),E7029)","v":11.187799745611773},{"$f":"IFERROR(VLOOKUP(F7029,Translation!$A:$C,3,FALSE),F7029)","v":"Prêts hypothécaires assurés au cours de la période selon la province (%)"},{"$f":"IFERROR(VLOOKUP(G7029,Translation!$A:$C,3,FALSE),G7029)","v":"11.2"},{"$f":"IFERROR(VLOOKUP(H7029,Translation!$A:$C,3,FALSE),H7029)","v":0}]
[3,"Cumul 2018","ALL","Colombie-Britannique",12.910461227037109,"Prêts hypothécaires assurés au cours de la période selon la province (%)","12.9",0,{"$f":"IFERROR(VLOOKUP(A7030,Translation!$A:$C,3,FALSE),A7030)","v":3},{"$f":"IFERROR(VLOOKUP(B7030,Translation!$A:$C,3,FALSE),B7030)","v":"Cumul 2018"},{"$f":"IFERROR(VLOOKUP(C7030,Translation!$A:$C,3,FALSE),C7030)","v":"ALL"},{"$f":"IFERROR(VLOOKUP(D7030,Translation!$A:$C,3,FALSE),D7030)","v":"Colombie-Britannique"},{"$f":"IFERROR(VLOOKUP(E7030,Translation!$A:$C,3,FALSE),E7030)","v":12.910461227037109},{"$f":"IFERROR(VLOOKUP(F7030,Translation!$A:$C,3,FALSE),F7030)","v":"Prêts hypothécaires assurés au cours de la période selon la province (%)"},{"$f":"IFERROR(VLOOKUP(G7030,Translation!$A:$C,3,FALSE),G7030)","v":"12.9"},{"$f":"IFERROR(VLOOKUP(H7030,Translation!$A:$C,3,FALSE),H7030)","v":0}]
[3,"T4 2019","ALL","Territoires",0.48252969479485874,"Prêts hypothécaires assurés au cours de la période selon la province (%)","0.5",0,{"$f":"IFERROR(VLOOKUP(A7031,Translation!$A:$C,3,FALSE),A7031)","v":3},{"$f":"IFERROR(VLOOKUP(B7031,Translation!$A:$C,3,FALSE),B7031)","v":"T4 2019"},{"$f":"IFERROR(VLOOKUP(C7031,Translation!$A:$C,3,FALSE),C7031)","v":"ALL"},{"$f":"IFERROR(VLOOKUP(D7031,Translation!$A:$C,3,FALSE),D7031)","v":"Territoires"},{"$f":"IFERROR(VLOOKUP(E7031,Translation!$A:$C,3,FALSE),E7031)","v":0.48252969479485874},{"$f":"IFERROR(VLOOKUP(F7031,Translation!$A:$C,3,FALSE),F7031)","v":"Prêts hypothécaires assurés au cours de la période selon la province (%)"},{"$f":"IFERROR(VLOOKUP(G7031,Translation!$A:$C,3,FALSE),G7031)","v":"0.5"},{"$f":"IFERROR(VLOOKUP(H7031,Translation!$A:$C,3,FALSE),H7031)","v":0}]
[3,"Cumul 2018","ALL","Territoires",0.41195940891803839,"Prêts hypothécaires assurés au cours de la période selon la province (%)","0.4",0,{"$f":"IFERROR(VLOOKUP(A7032,Translation!$A:$C,3,FALSE),A7032)","v":3},{"$f":"IFERROR(VLOOKUP(B7032,Translation!$A:$C,3,FALSE),B7032)","v":"Cumul 2018"},{"$f":"IFERROR(VLOOKUP(C7032,Translation!$A:$C,3,FALSE),C7032)","v":"ALL"},{"$f":"IFERROR(VLOOKUP(D7032,Translation!$A:$C,3,FALSE),D7032)","v":"Territoires"},{"$f":"IFERROR(VLOOKUP(E7032,Translation!$A:$C,3,FALSE),E7032)","v":0.41195940891803839},{"$f":"IFERROR(VLOOKUP(F7032,Translation!$A:$C,3,FALSE),F7032)","v":"Prêts hypothécaires assurés au cours de la période selon la province (%)"},{"$f":"IFERROR(VLOOKUP(G7032,Translation!$A:$C,3,FALSE),G7032)","v":"0.4"},{"$f":"IFERROR(VLOOKUP(H7032,Translation!$A:$C,3,FALSE),H7032)","v":0}]
[3,"Cumul 2018","ALL","PROPRIÉTAIRES-OCCUPANTS, À L’UNITÉ",104440,"UNIT","104440.0",0,{"$f":"IFERROR(VLOOKUP(A7033,Translation!$A:$C,3,FALSE),A7033)","v":3},{"$f":"IFERROR(VLOOKUP(B7033,Translation!$A:$C,3,FALSE),B7033)","v":"Cumul 2018"},{"$f":"IFERROR(VLOOKUP(C7033,Translation!$A:$C,3,FALSE),C7033)","v":"ALL"},{"$f":"IFERROR(VLOOKUP(D7033,Translation!$A:$C,3,FALSE),D7033)","v":"PROPRIÉTAIRES-OCCUPANTS, À L’UNITÉ"},{"$f":"IFERROR(VLOOKUP(E7033,Translation!$A:$C,3,FALSE),E7033)","v":104440},{"$f":"IFERROR(VLOOKUP(F7033,Translation!$A:$C,3,FALSE),F7033)","v":"UNIT"},{"$f":"IFERROR(VLOOKUP(G7033,Translation!$A:$C,3,FALSE),G7033)","v":"104440.0"},{"$f":"IFERROR(VLOOKUP(H7033,Translation!$A:$C,3,FALSE),H7033)","v":0}]
[3,"Cumul 2018","ALL","Assurance de portefeuille (nouveaux prêts)",18792,"UNIT","18792.0",0,{"$f":"IFERROR(VLOOKUP(A7034,Translation!$A:$C,3,FALSE),A7034)","v":3},{"$f":"IFERROR(VLOOKUP(B7034,Translation!$A:$C,3,FALSE),B7034)","v":"Cumul 2018"},{"$f":"IFERROR(VLOOKUP(C7034,Translation!$A:$C,3,FALSE),C7034)","v":"ALL"},{"$f":"IFERROR(VLOOKUP(D7034,Translation!$A:$C,3,FALSE),D7034)","v":"Assurance de portefeuille (nouveaux prêts)"},{"$f":"IFERROR(VLOOKUP(E7034,Translation!$A:$C,3,FALSE),E7034)","v":18792},{"$f":"IFERROR(VLOOKUP(F7034,Translation!$A:$C,3,FALSE),F7034)","v":"UNIT"},{"$f":"IFERROR(VLOOKUP(G7034,Translation!$A:$C,3,FALSE),G7034)","v":"18792.0"},{"$f":"IFERROR(VLOOKUP(H7034,Translation!$A:$C,3,FALSE),H7034)","v":0}]
[3,"Cumul 2018","ALL","Assurance de portefeuille (prêts de substitution)",16955,"UNIT","16955.0",0,{"$f":"IFERROR(VLOOKUP(A7035,Translation!$A:$C,3,FALSE),A7035)","v":3},{"$f":"IFERROR(VLOOKUP(B7035,Translation!$A:$C,3,FALSE),B7035)","v":"Cumul 2018"},{"$f":"IFERROR(VLOOKUP(C7035,Translation!$A:$C,3,FALSE),C7035)","v":"ALL"},{"$f":"IFERROR(VLOOKUP(D7035,Translation!$A:$C,3,FALSE),D7035)","v":"Assurance de portefeuille (prêts de substitution)"},{"$f":"IFERROR(VLOOKUP(E7035,Translation!$A:$C,3,FALSE),E7035)","v":16955},{"$f":"IFERROR(VLOOKUP(F7035,Translation!$A:$C,3,FALSE),F7035)","v":"UNIT"},{"$f":"IFERROR(VLOOKUP(G7035,Translation!$A:$C,3,FALSE),G7035)","v":"16955.0"},{"$f":"IFERROR(VLOOKUP(H7035,Translation!$A:$C,3,FALSE),H7035)","v":0}]
[3,"Cumul 2018","ALL","IMMEUBLES COLLECTIFS RÉSIDENTIELS",113298,"UNIT","113298.0",0,{"$f":"IFERROR(VLOOKUP(A7036,Translation!$A:$C,3,FALSE),A7036)","v":3},{"$f":"IFERROR(VLOOKUP(B7036,Translation!$A:$C,3,FALSE),B7036)","v":"Cumul 2018"},{"$f":"IFERROR(VLOOKUP(C7036,Translation!$A:$C,3,FALSE),C7036)","v":"ALL"},{"$f":"IFERROR(VLOOKUP(D7036,Translation!$A:$C,3,FALSE),D7036)","v":"IMMEUBLES COLLECTIFS RÉSIDENTIELS"},{"$f":"IFERROR(VLOOKUP(E7036,Translation!$A:$C,3,FALSE),E7036)","v":113298},{"$f":"IFERROR(VLOOKUP(F7036,Translation!$A:$C,3,FALSE),F7036)","v":"UNIT"},{"$f":"IFERROR(VLOOKUP(G7036,Translation!$A:$C,3,FALSE),G7036)","v":"113298.0"},{"$f":"IFERROR(VLOOKUP(H7036,Translation!$A:$C,3,FALSE),H7036)","v":0}]
[3,"Cumul 2018","ALL","Total Insured Volumes (units)",253485,"UNIT","253485.0",0,{"$f":"IFERROR(VLOOKUP(A7037,Translation!$A:$C,3,FALSE),A7037)","v":3},{"$f":"IFERROR(VLOOKUP(B7037,Translation!$A:$C,3,FALSE),B7037)","v":"Cumul 2018"},{"$f":"IFERROR(VLOOKUP(C7037,Translation!$A:$C,3,FALSE),C7037)","v":"ALL"},{"$f":"IFERROR(VLOOKUP(D7037,Translation!$A:$C,3,FALSE),D7037)","v":"Total Insured Volumes (units)"},{"$f":"IFERROR(VLOOKUP(E7037,Translation!$A:$C,3,FALSE),E7037)","v":253485},{"$f":"IFERROR(VLOOKUP(F7037,Translation!$A:$C,3,FALSE),F7037)","v":"UNIT"},{"$f":"IFERROR(VLOOKUP(G7037,Translation!$A:$C,3,FALSE),G7037)","v":"253485.0"},{"$f":"IFERROR(VLOOKUP(H7037,Translation!$A:$C,3,FALSE),H7037)","v":0}]
[3,"Cumul 2018","ALL","PROPRIÉTAIRES-OCCUPANTS, À L’UNITÉ",27578752142.05088,"AMT","27578752142.1",0,{"$f":"IFERROR(VLOOKUP(A7038,Translation!$A:$C,3,FALSE),A7038)","v":3},{"$f":"IFERROR(VLOOKUP(B7038,Translation!$A:$C,3,FALSE),B7038)","v":"Cumul 2018"},{"$f":"IFERROR(VLOOKUP(C7038,Translation!$A:$C,3,FALSE),C7038)","v":"ALL"},{"$f":"IFERROR(VLOOKUP(D7038,Translation!$A:$C,3,FALSE),D7038)","v":"PROPRIÉTAIRES-OCCUPANTS, À L’UNITÉ"},{"$f":"IFERROR(VLOOKUP(E7038,Translation!$A:$C,3,FALSE),E7038)","v":27578752142.05088},{"$f":"IFERROR(VLOOKUP(F7038,Translation!$A:$C,3,FALSE),F7038)","v":"AMT"},{"$f":"IFERROR(VLOOKUP(G7038,Translation!$A:$C,3,FALSE),G7038)","v":"27578752142.1"},{"$f":"IFERROR(VLOOKUP(H7038,Translation!$A:$C,3,FALSE),H7038)","v":0}]
[3,"Cumul 2018","ALL","Assurance de portefeuille (nouveaux prêts)",4634172302.5199881,"AMT","4634172302.5",0,{"$f":"IFERROR(VLOOKUP(A7039,Translation!$A:$C,3,FALSE),A7039)","v":3},{"$f":"IFERROR(VLOOKUP(B7039,Translation!$A:$C,3,FALSE),B7039)","v":"Cumul 2018"},{"$f":"IFERROR(VLOOKUP(C7039,Translation!$A:$C,3,FALSE),C7039)","v":"ALL"},{"$f":"IFERROR(VLOOKUP(D7039,Translation!$A:$C,3,FALSE),D7039)","v":"Assurance de portefeuille (nouveaux prêts)"},{"$f":"IFERROR(VLOOKUP(E7039,Translation!$A:$C,3,FALSE),E7039)","v":4634172302.5199881},{"$f":"IFERROR(VLOOKUP(F7039,Translation!$A:$C,3,FALSE),F7039)","v":"AMT"},{"$f":"IFERROR(VLOOKUP(G7039,Translation!$A:$C,3,FALSE),G7039)","v":"4634172302.5"},{"$f":"IFERROR(VLOOKUP(H7039,Translation!$A:$C,3,FALSE),H7039)","v":0}]
[3,"Cumul 2018","ALL","Assurance de portefeuille (prêts de substitution)",2424094184.9099979,"AMT","2424094184.9",0,{"$f":"IFERROR(VLOOKUP(A7040,Translation!$A:$C,3,FALSE),A7040)","v":3},{"$f":"IFERROR(VLOOKUP(B7040,Translation!$A:$C,3,FALSE),B7040)","v":"Cumul 2018"},{"$f":"IFERROR(VLOOKUP(C7040,Translation!$A:$C,3,FALSE),C7040)","v":"ALL"},{"$f":"IFERROR(VLOOKUP(D7040,Translation!$A:$C,3,FALSE),D7040)","v":"Assurance de portefeuille (prêts de substitution)"},{"$f":"IFERROR(VLOOKUP(E7040,Translation!$A:$C,3,FALSE),E7040)","v":2424094184.9099979},{"$f":"IFERROR(VLOOKUP(F7040,Translation!$A:$C,3,FALSE),F7040)","v":"AMT"},{"$f":"IFERROR(VLOOKUP(G7040,Translation!$A:$C,3,FALSE),G7040)","v":"2424094184.9"},{"$f":"IFERROR(VLOOKUP(H7040,Translation!$A:$C,3,FALSE),H7040)","v":0}]
[3,"Cumul 2018","ALL","IMMEUBLES COLLECTIFS RÉSIDENTIELS",13095915297.730022,"AMT","13095915297.7",0,{"$f":"IFERROR(VLOOKUP(A7041,Translation!$A:$C,3,FALSE),A7041)","v":3},{"$f":"IFERROR(VLOOKUP(B7041,Translation!$A:$C,3,FALSE),B7041)","v":"Cumul 2018"},{"$f":"IFERROR(VLOOKUP(C7041,Translation!$A:$C,3,FALSE),C7041)","v":"ALL"},{"$f":"IFERROR(VLOOKUP(D7041,Translation!$A:$C,3,FALSE),D7041)","v":"IMMEUBLES COLLECTIFS RÉSIDENTIELS"},{"$f":"IFERROR(VLOOKUP(E7041,Translation!$A:$C,3,FALSE),E7041)","v":13095915297.730022},{"$f":"IFERROR(VLOOKUP(F7041,Translation!$A:$C,3,FALSE),F7041)","v":"AMT"},{"$f":"IFERROR(VLOOKUP(G7041,Translation!$A:$C,3,FALSE),G7041)","v":"13095915297.7"},{"$f":"IFERROR(VLOOKUP(H7041,Translation!$A:$C,3,FALSE),H7041)","v":0}]
[3,"Cumul 2018","ALL","Volume total d'assurance (M$)",47732933927.210892,"AMT","47732933927.2",0,{"$f":"IFERROR(VLOOKUP(A7042,Translation!$A:$C,3,FALSE),A7042)","v":3},{"$f":"IFERROR(VLOOKUP(B7042,Translation!$A:$C,3,FALSE),B7042)","v":"Cumul 2018"},{"$f":"IFERROR(VLOOKUP(C7042,Translation!$A:$C,3,FALSE),C7042)","v":"ALL"},{"$f":"IFERROR(VLOOKUP(D7042,Translation!$A:$C,3,FALSE),D7042)","v":"Volume total d'assurance (M$)"},{"$f":"IFERROR(VLOOKUP(E7042,Translation!$A:$C,3,FALSE),E7042)","v":47732933927.210892},{"$f":"IFERROR(VLOOKUP(F7042,Translation!$A:$C,3,FALSE),F7042)","v":"AMT"},{"$f":"IFERROR(VLOOKUP(G7042,Translation!$A:$C,3,FALSE),G7042)","v":"47732933927.2"},{"$f":"IFERROR(VLOOKUP(H7042,Translation!$A:$C,3,FALSE),H7042)","v":0}]
[3,"T4 2019","ALL","PROPRIÉTAIRES-OCCUPANTS, À L’UNITÉ",25158,"UNIT","25158.0",0,{"$f":"IFERROR(VLOOKUP(A7043,Translation!$A:$C,3,FALSE),A7043)","v":3},{"$f":"IFERROR(VLOOKUP(B7043,Translation!$A:$C,3,FALSE),B7043)","v":"T4 2019"},{"$f":"IFERROR(VLOOKUP(C7043,Translation!$A:$C,3,FALSE),C7043)","v":"ALL"},{"$f":"IFERROR(VLOOKUP(D7043,Translation!$A:$C,3,FALSE),D7043)","v":"PROPRIÉTAIRES-OCCUPANTS, À L’UNITÉ"},{"$f":"IFERROR(VLOOKUP(E7043,Translation!$A:$C,3,FALSE),E7043)","v":25158},{"$f":"IFERROR(VLOOKUP(F7043,Translation!$A:$C,3,FALSE),F7043)","v":"UNIT"},{"$f":"IFERROR(VLOOKUP(G7043,Translation!$A:$C,3,FALSE),G7043)","v":"25158.0"},{"$f":"IFERROR(VLOOKUP(H7043,Translation!$A:$C,3,FALSE),H7043)","v":0}]
[3,"T4 2019","ALL","Assurance de portefeuille (nouveaux prêts)",6889,"UNIT","6889.0",0,{"$f":"IFERROR(VLOOKUP(A7044,Translation!$A:$C,3,FALSE),A7044)","v":3},{"$f":"IFERROR(VLOOKUP(B7044,Translation!$A:$C,3,FALSE),B7044)","v":"T4 2019"},{"$f":"IFERROR(VLOOKUP(C7044,Translation!$A:$C,3,FALSE),C7044)","v":"ALL"},{"$f":"IFERROR(VLOOKUP(D7044,Translation!$A:$C,3,FALSE),D7044)","v":"Assurance de portefeuille (nouveaux prêts)"},{"$f":"IFERROR(VLOOKUP(E7044,Translation!$A:$C,3,FALSE),E7044)","v":6889},{"$f":"IFERROR(VLOOKUP(F7044,Translation!$A:$C,3,FALSE),F7044)","v":"UNIT"},{"$f":"IFERROR(VLOOKUP(G7044,Translation!$A:$C,3,FALSE),G7044)","v":"6889.0"},{"$f":"IFERROR(VLOOKUP(H7044,Translation!$A:$C,3,FALSE),H7044)","v":0}]
[3,"T4 2019","ALL","Assurance de portefeuille (prêts de substitution)",1901,"UNIT","1901.0",0,{"$f":"IFERROR(VLOOKUP(A7045,Translation!$A:$C,3,FALSE),A7045)","v":3},{"$f":"IFERROR(VLOOKUP(B7045,Translation!$A:$C,3,FALSE),B7045)","v":"T4 2019"},{"$f":"IFERROR(VLOOKUP(C7045,Translation!$A:$C,3,FALSE),C7045)","v":"ALL"},{"$f":"IFERROR(VLOOKUP(D7045,Translation!$A:$C,3,FALSE),D7045)","v":"Assurance de portefeuille (prêts de substitution)"},{"$f":"IFERROR(VLOOKUP(E7045,Translation!$A:$C,3,FALSE),E7045)","v":1901},{"$f":"IFERROR(VLOOKUP(F7045,Translation!$A:$C,3,FALSE),F7045)","v":"UNIT"},{"$f":"IFERROR(VLOOKUP(G7045,Translation!$A:$C,3,FALSE),G7045)","v":"1901.0"},{"$f":"IFERROR(VLOOKUP(H7045,Translation!$A:$C,3,FALSE),H7045)","v":0}]
[3,"T4 2019","ALL","IMMEUBLES COLLECTIFS RÉSIDENTIELS",36509,"UNIT","36509.0",0,{"$f":"IFERROR(VLOOKUP(A7046,Translation!$A:$C,3,FALSE),A7046)","v":3},{"$f":"IFERROR(VLOOKUP(B7046,Translation!$A:$C,3,FALSE),B7046)","v":"T4 2019"},{"$f":"IFERROR(VLOOKUP(C7046,Translation!$A:$C,3,FALSE),C7046)","v":"ALL"},{"$f":"IFERROR(VLOOKUP(D7046,Translation!$A:$C,3,FALSE),D7046)","v":"IMMEUBLES COLLECTIFS RÉSIDENTIELS"},{"$f":"IFERROR(VLOOKUP(E7046,Translation!$A:$C,3,FALSE),E7046)","v":36509},{"$f":"IFERROR(VLOOKUP(F7046,Translation!$A:$C,3,FALSE),F7046)","v":"UNIT"},{"$f":"IFERROR(VLOOKUP(G7046,Translation!$A:$C,3,FALSE),G7046)","v":"36509.0"},{"$f":"IFERROR(VLOOKUP(H7046,Translation!$A:$C,3,FALSE),H7046)","v":0}]
[3,"T4 2019","ALL","Total Insured Volumes (units)",70457,"UNIT","70457.0",0,{"$f":"IFERROR(VLOOKUP(A7047,Translation!$A:$C,3,FALSE),A7047)","v":3},{"$f":"IFERROR(VLOOKUP(B7047,Translation!$A:$C,3,FALSE),B7047)","v":"T4 2019"},{"$f":"IFERROR(VLOOKUP(C7047,Translation!$A:$C,3,FALSE),C7047)","v":"ALL"},{"$f":"IFERROR(VLOOKUP(D7047,Translation!$A:$C,3,FALSE),D7047)","v":"Total Insured Volumes (units)"},{"$f":"IFERROR(VLOOKUP(E7047,Translation!$A:$C,3,FALSE),E7047)","v":70457},{"$f":"IFERROR(VLOOKUP(F7047,Translation!$A:$C,3,FALSE),F7047)","v":"UNIT"},{"$f":"IFERROR(VLOOKUP(G7047,Translation!$A:$C,3,FALSE),G7047)","v":"70457.0"},{"$f":"IFERROR(VLOOKUP(H7047,Translation!$A:$C,3,FALSE),H7047)","v":0}]
[3,"T4 2019","ALL","PROPRIÉTAIRES-OCCUPANTS, À L’UNITÉ",7000884368.2103252,"AMT","7000884368.2",0,{"$f":"IFERROR(VLOOKUP(A7048,Translation!$A:$C,3,FALSE),A7048)","v":3},{"$f":"IFERROR(VLOOKUP(B7048,Translation!$A:$C,3,FALSE),B7048)","v":"T4 2019"},{"$f":"IFERROR(VLOOKUP(C7048,Translation!$A:$C,3,FALSE),C7048)","v":"ALL"},{"$f":"IFERROR(VLOOKUP(D7048,Translation!$A:$C,3,FALSE),D7048)","v":"PROPRIÉTAIRES-OCCUPANTS, À L’UNITÉ"},{"$f":"IFERROR(VLOOKUP(E7048,Translation!$A:$C,3,FALSE),E7048)","v":7000884368.2103252},{"$f":"IFERROR(VLOOKUP(F7048,Translation!$A:$C,3,FALSE),F7048)","v":"AMT"},{"$f":"IFERROR(VLOOKUP(G7048,Translation!$A:$C,3,FALSE),G7048)","v":"7000884368.2"},{"$f":"IFERROR(VLOOKUP(H7048,Translation!$A:$C,3,FALSE),H7048)","v":0}]
[3,"T4 2019","ALL","Assurance de portefeuille (nouveaux prêts)",1896223908.5599875,"AMT","1896223908.6",0,{"$f":"IFERROR(VLOOKUP(A7049,Translation!$A:$C,3,FALSE),A7049)","v":3},{"$f":"IFERROR(VLOOKUP(B7049,Translation!$A:$C,3,FALSE),B7049)","v":"T4 2019"},{"$f":"IFERROR(VLOOKUP(C7049,Translation!$A:$C,3,FALSE),C7049)","v":"ALL"},{"$f":"IFERROR(VLOOKUP(D7049,Translation!$A:$C,3,FALSE),D7049)","v":"Assurance de portefeuille (nouveaux prêts)"},{"$f":"IFERROR(VLOOKUP(E7049,Translation!$A:$C,3,FALSE),E7049)","v":1896223908.5599875},{"$f":"IFERROR(VLOOKUP(F7049,Translation!$A:$C,3,FALSE),F7049)","v":"AMT"},{"$f":"IFERROR(VLOOKUP(G7049,Translation!$A:$C,3,FALSE),G7049)","v":"1896223908.6"},{"$f":"IFERROR(VLOOKUP(H7049,Translation!$A:$C,3,FALSE),H7049)","v":0}]
[3,"T4 2019","ALL","Assurance de portefeuille (prêts de substitution)",366468859.68999553,"AMT","366468859.7",0,{"$f":"IFERROR(VLOOKUP(A7050,Translation!$A:$C,3,FALSE),A7050)","v":3},{"$f":"IFERROR(VLOOKUP(B7050,Translation!$A:$C,3,FALSE),B7050)","v":"T4 2019"},{"$f":"IFERROR(VLOOKUP(C7050,Translation!$A:$C,3,FALSE),C7050)","v":"ALL"},{"$f":"IFERROR(VLOOKUP(D7050,Translation!$A:$C,3,FALSE),D7050)","v":"Assurance de portefeuille (prêts de substitution)"},{"$f":"IFERROR(VLOOKUP(E7050,Translation!$A:$C,3,FALSE),E7050)","v":366468859.68999553},{"$f":"IFERROR(VLOOKUP(F7050,Translation!$A:$C,3,FALSE),F7050)","v":"AMT"},{"$f":"IFERROR(VLOOKUP(G7050,Translation!$A:$C,3,FALSE),G7050)","v":"366468859.7"},{"$f":"IFERROR(VLOOKUP(H7050,Translation!$A:$C,3,FALSE),H7050)","v":0}]
[3,"T4 2019","ALL","IMMEUBLES COLLECTIFS RÉSIDENTIELS",5056064135.5800362,"AMT","5056064135.6",0,{"$f":"IFERROR(VLOOKUP(A7051,Translation!$A:$C,3,FALSE),A7051)","v":3},{"$f":"IFERROR(VLOOKUP(B7051,Translation!$A:$C,3,FALSE),B7051)","v":"T4 2019"},{"$f":"IFERROR(VLOOKUP(C7051,Translation!$A:$C,3,FALSE),C7051)","v":"ALL"},{"$f":"IFERROR(VLOOKUP(D7051,Translation!$A:$C,3,FALSE),D7051)","v":"IMMEUBLES COLLECTIFS RÉSIDENTIELS"},{"$f":"IFERROR(VLOOKUP(E7051,Translation!$A:$C,3,FALSE),E7051)","v":5056064135.5800362},{"$f":"IFERROR(VLOOKUP(F7051,Translation!$A:$C,3,FALSE),F7051)","v":"AMT"},{"$f":"IFERROR(VLOOKUP(G7051,Translation!$A:$C,3,FALSE),G7051)","v":"5056064135.6"},{"$f":"IFERROR(VLOOKUP(H7051,Translation!$A:$C,3,FALSE),H7051)","v":0}]
[3,"T4 2019","ALL","Volume total d'assurance (M$)",14319641272.040344,"AMT","14319641272.0",0,{"$f":"IFERROR(VLOOKUP(A7052,Translation!$A:$C,3,FALSE),A7052)","v":3},{"$f":"IFERROR(VLOOKUP(B7052,Translation!$A:$C,3,FALSE),B7052)","v":"T4 2019"},{"$f":"IFERROR(VLOOKUP(C7052,Translation!$A:$C,3,FALSE),C7052)","v":"ALL"},{"$f":"IFERROR(VLOOKUP(D7052,Translation!$A:$C,3,FALSE),D7052)","v":"Volume total d'assurance (M$)"},{"$f":"IFERROR(VLOOKUP(E7052,Translation!$A:$C,3,FALSE),E7052)","v":14319641272.040344},{"$f":"IFERROR(VLOOKUP(F7052,Translation!$A:$C,3,FALSE),F7052)","v":"AMT"},{"$f":"IFERROR(VLOOKUP(G7052,Translation!$A:$C,3,FALSE),G7052)","v":"14319641272.0"},{"$f":"IFERROR(VLOOKUP(H7052,Translation!$A:$C,3,FALSE),H7052)","v":0}]
[3,"T3 2019","ALL","Terre-Neuve-et-Labrador",0.64646491624900115,"Prêts hypothécaires assurés au cours de la période selon la province (%)","0.6",0,{"$f":"IFERROR(VLOOKUP(A7053,Translation!$A:$C,3,FALSE),A7053)","v":3},{"$f":"IFERROR(VLOOKUP(B7053,Translation!$A:$C,3,FALSE),B7053)","v":"T3 2019"},{"$f":"IFERROR(VLOOKUP(C7053,Translation!$A:$C,3,FALSE),C7053)","v":"ALL"},{"$f":"IFERROR(VLOOKUP(D7053,Translation!$A:$C,3,FALSE),D7053)","v":"Terre-Neuve-et-Labrador"},{"$f":"IFERROR(VLOOKUP(E7053,Translation!$A:$C,3,FALSE),E7053)","v":0.64646491624900115},{"$f":"IFERROR(VLOOKUP(F7053,Translation!$A:$C,3,FALSE),F7053)","v":"Prêts hypothécaires assurés au cours de la période selon la province (%)"},{"$f":"IFERROR(VLOOKUP(G7053,Translation!$A:$C,3,FALSE),G7053)","v":"0.6"},{"$f":"IFERROR(VLOOKUP(H7053,Translation!$A:$C,3,FALSE),H7053)","v":0}]
[3,"T3 2019","ALL","Île-du-Prince-Édouard",0.28080609458941286,"Prêts hypothécaires assurés au cours de la période selon la province (%)","0.3",0,{"$f":"IFERROR(VLOOKUP(A7054,Translation!$A:$C,3,FALSE),A7054)","v":3},{"$f":"IFERROR(VLOOKUP(B7054,Translation!$A:$C,3,FALSE),B7054)","v":"T3 2019"},{"$f":"IFERROR(VLOOKUP(C7054,Translation!$A:$C,3,FALSE),C7054)","v":"ALL"},{"$f":"IFERROR(VLOOKUP(D7054,Translation!$A:$C,3,FALSE),D7054)","v":"Île-du-Prince-Édouard"},{"$f":"IFERROR(VLOOKUP(E7054,Translation!$A:$C,3,FALSE),E7054)","v":0.28080609458941286},{"$f":"IFERROR(VLOOKUP(F7054,Translation!$A:$C,3,FALSE),F7054)","v":"Prêts hypothécaires assurés au cours de la période selon la province (%)"},{"$f":"IFERROR(VLOOKUP(G7054,Translation!$A:$C,3,FALSE),G7054)","v":"0.3"},{"$f":"IFERROR(VLOOKUP(H7054,Translation!$A:$C,3,FALSE),H7054)","v":0}]
[3,"T3 2019","ALL","Nouvelle-Écosse",3.1147231680136076,"Prêts hypothécaires assurés au cours de la période selon la province (%)","3.1",0,{"$f":"IFERROR(VLOOKUP(A7055,Translation!$A:$C,3,FALSE),A7055)","v":3},{"$f":"IFERROR(VLOOKUP(B7055,Translation!$A:$C,3,FALSE),B7055)","v":"T3 2019"},{"$f":"IFERROR(VLOOKUP(C7055,Translation!$A:$C,3,FALSE),C7055)","v":"ALL"},{"$f":"IFERROR(VLOOKUP(D7055,Translation!$A:$C,3,FALSE),D7055)","v":"Nouvelle-Écosse"},{"$f":"IFERROR(VLOOKUP(E7055,Translation!$A:$C,3,FALSE),E7055)","v":3.1147231680136076},{"$f":"IFERROR(VLOOKUP(F7055,Translation!$A:$C,3,FALSE),F7055)","v":"Prêts hypothécaires assurés au cours de la période selon la province (%)"},{"$f":"IFERROR(VLOOKUP(G7055,Translation!$A:$C,3,FALSE),G7055)","v":"3.1"},{"$f":"IFERROR(VLOOKUP(H7055,Translation!$A:$C,3,FALSE),H7055)","v":0}]
[3,"T3 2019","ALL","Nouveau-Brunswick",1.8323241249011464,"Prêts hypothécaires assurés au cours de la période selon la province (%)","1.8",0,{"$f":"IFERROR(VLOOKUP(A7056,Translation!$A:$C,3,FALSE),A7056)","v":3},{"$f":"IFERROR(VLOOKUP(B7056,Translation!$A:$C,3,FALSE),B7056)","v":"T3 2019"},{"$f":"IFERROR(VLOOKUP(C7056,Translation!$A:$C,3,FALSE),C7056)","v":"ALL"},{"$f":"IFERROR(VLOOKUP(D7056,Translation!$A:$C,3,FALSE),D7056)","v":"Nouveau-Brunswick"},{"$f":"IFERROR(VLOOKUP(E7056,Translation!$A:$C,3,FALSE),E7056)","v":1.8323241249011464},{"$f":"IFERROR(VLOOKUP(F7056,Translation!$A:$C,3,FALSE),F7056)","v":"Prêts hypothécaires assurés au cours de la période selon la province (%)"},{"$f":"IFERROR(VLOOKUP(G7056,Translation!$A:$C,3,FALSE),G7056)","v":"1.8"},{"$f":"IFERROR(VLOOKUP(H7056,Translation!$A:$C,3,FALSE),H7056)","v":0}]
[3,"T3 2019","ALL","Québec",23.812433574276472,"Prêts hypothécaires assurés au cours de la période selon la province (%)","23.8",0,{"$f":"IFERROR(VLOOKUP(A7057,Translation!$A:$C,3,FALSE),A7057)","v":3},{"$f":"IFERROR(VLOOKUP(B7057,Translation!$A:$C,3,FALSE),B7057)","v":"T3 2019"},{"$f":"IFERROR(VLOOKUP(C7057,Translation!$A:$C,3,FALSE),C7057)","v":"ALL"},{"$f":"IFERROR(VLOOKUP(D7057,Translation!$A:$C,3,FALSE),D7057)","v":"Québec"},{"$f":"IFERROR(VLOOKUP(E7057,Translation!$A:$C,3,FALSE),E7057)","v":23.812433574276472},{"$f":"IFERROR(VLOOKUP(F7057,Translation!$A:$C,3,FALSE),F7057)","v":"Prêts hypothécaires assurés au cours de la période selon la province (%)"},{"$f":"IFERROR(VLOOKUP(G7057,Translation!$A:$C,3,FALSE),G7057)","v":"23.8"},{"$f":"IFERROR(VLOOKUP(H7057,Translation!$A:$C,3,FALSE),H7057)","v":0}]
[3,"T3 2019","ALL","Ontario",36.702492265382141,"Prêts hypothécaires assurés au cours de la période selon la province (%)","36.7",0,{"$f":"IFERROR(VLOOKUP(A7058,Translation!$A:$C,3,FALSE),A7058)","v":3},{"$f":"IFERROR(VLOOKUP(B7058,Translation!$A:$C,3,FALSE),B7058)","v":"T3 2019"},{"$f":"IFERROR(VLOOKUP(C7058,Translation!$A:$C,3,FALSE),C7058)","v":"ALL"},{"$f":"IFERROR(VLOOKUP(D7058,Translation!$A:$C,3,FALSE),D7058)","v":"Ontario"},{"$f":"IFERROR(VLOOKUP(E7058,Translation!$A:$C,3,FALSE),E7058)","v":36.702492265382141},{"$f":"IFERROR(VLOOKUP(F7058,Translation!$A:$C,3,FALSE),F7058)","v":"Prêts hypothécaires assurés au cours de la période selon la province (%)"},{"$f":"IFERROR(VLOOKUP(G7058,Translation!$A:$C,3,FALSE),G7058)","v":"36.7"},{"$f":"IFERROR(VLOOKUP(H7058,Translation!$A:$C,3,FALSE),H7058)","v":0}]
[3,"T3 2019","ALL","Manitoba",4.819203987069141,"Prêts hypothécaires assurés au cours de la période selon la province (%)","4.8",0,{"$f":"IFERROR(VLOOKUP(A7059,Translation!$A:$C,3,FALSE),A7059)","v":3},{"$f":"IFERROR(VLOOKUP(B7059,Translation!$A:$C,3,FALSE),B7059)","v":"T3 2019"},{"$f":"IFERROR(VLOOKUP(C7059,Translation!$A:$C,3,FALSE),C7059)","v":"ALL"},{"$f":"IFERROR(VLOOKUP(D7059,Translation!$A:$C,3,FALSE),D7059)","v":"Manitoba"},{"$f":"IFERROR(VLOOKUP(E7059,Translation!$A:$C,3,FALSE),E7059)","v":4.819203987069141},{"$f":"IFERROR(VLOOKUP(F7059,Translation!$A:$C,3,FALSE),F7059)","v":"Prêts hypothécaires assurés au cours de la période selon la province (%)"},{"$f":"IFERROR(VLOOKUP(G7059,Translation!$A:$C,3,FALSE),G7059)","v":"4.8"},{"$f":"IFERROR(VLOOKUP(H7059,Translation!$A:$C,3,FALSE),H7059)","v":0}]
[3,"T3 2019","ALL","Saskatchewan",1.8179584362935888,"Prêts hypothécaires assurés au cours de la période selon la province (%)","1.8",0,{"$f":"IFERROR(VLOOKUP(A7060,Translation!$A:$C,3,FALSE),A7060)","v":3},{"$f":"IFERROR(VLOOKUP(B7060,Translation!$A:$C,3,FALSE),B7060)","v":"T3 2019"},{"$f":"IFERROR(VLOOKUP(C7060,Translation!$A:$C,3,FALSE),C7060)","v":"ALL"},{"$f":"IFERROR(VLOOKUP(D7060,Translation!$A:$C,3,FALSE),D7060)","v":"Saskatchewan"},{"$f":"IFERROR(VLOOKUP(E7060,Translation!$A:$C,3,FALSE),E7060)","v":1.8179584362935888},{"$f":"IFERROR(VLOOKUP(F7060,Translation!$A:$C,3,FALSE),F7060)","v":"Prêts hypothécaires assurés au cours de la période selon la province (%)"},{"$f":"IFERROR(VLOOKUP(G7060,Translation!$A:$C,3,FALSE),G7060)","v":"1.8"},{"$f":"IFERROR(VLOOKUP(H7060,Translation!$A:$C,3,FALSE),H7060)","v":0}]
[3,"T3 2019","ALL","Alberta",11.609851407800891,"Prêts hypothécaires assurés au cours de la période selon la province (%)","11.6",0,{"$f":"IFERROR(VLOOKUP(A7061,Translation!$A:$C,3,FALSE),A7061)","v":3},{"$f":"IFERROR(VLOOKUP(B7061,Translation!$A:$C,3,FALSE),B7061)","v":"T3 2019"},{"$f":"IFERROR(VLOOKUP(C7061,Translation!$A:$C,3,FALSE),C7061)","v":"ALL"},{"$f":"IFERROR(VLOOKUP(D7061,Translation!$A:$C,3,FALSE),D7061)","v":"Alberta"},{"$f":"IFERROR(VLOOKUP(E7061,Translation!$A:$C,3,FALSE),E7061)","v":11.609851407800891},{"$f":"IFERROR(VLOOKUP(F7061,Translation!$A:$C,3,FALSE),F7061)","v":"Prêts hypothécaires assurés au cours de la période selon la province (%)"},{"$f":"IFERROR(VLOOKUP(G7061,Translation!$A:$C,3,FALSE),G7061)","v":"11.6"},{"$f":"IFERROR(VLOOKUP(H7061,Translation!$A:$C,3,FALSE),H7061)","v":0}]
[3,"T3 2019","ALL","Colombie-Britannique",14.701846958706538,"Prêts hypothécaires assurés au cours de la période selon la province (%)","14.7",0,{"$f":"IFERROR(VLOOKUP(A7062,Translation!$A:$C,3,FALSE),A7062)","v":3},{"$f":"IFERROR(VLOOKUP(B7062,Translation!$A:$C,3,FALSE),B7062)","v":"T3 2019"},{"$f":"IFERROR(VLOOKUP(C7062,Translation!$A:$C,3,FALSE),C7062)","v":"ALL"},{"$f":"IFERROR(VLOOKUP(D7062,Translation!$A:$C,3,FALSE),D7062)","v":"Colombie-Britannique"},{"$f":"IFERROR(VLOOKUP(E7062,Translation!$A:$C,3,FALSE),E7062)","v":14.701846958706538},{"$f":"IFERROR(VLOOKUP(F7062,Translation!$A:$C,3,FALSE),F7062)","v":"Prêts hypothécaires assurés au cours de la période selon la province (%)"},{"$f":"IFERROR(VLOOKUP(G7062,Translation!$A:$C,3,FALSE),G7062)","v":"14.7"},{"$f":"IFERROR(VLOOKUP(H7062,Translation!$A:$C,3,FALSE),H7062)","v":0}]
[3,"T3 2019","ALL","Territoires",0.66189506671806053,"Prêts hypothécaires assurés au cours de la période selon la province (%)","0.7",0,{"$f":"IFERROR(VLOOKUP(A7063,Translation!$A:$C,3,FALSE),A7063)","v":3},{"$f":"IFERROR(VLOOKUP(B7063,Translation!$A:$C,3,FALSE),B7063)","v":"T3 2019"},{"$f":"IFERROR(VLOOKUP(C7063,Translation!$A:$C,3,FALSE),C7063)","v":"ALL"},{"$f":"IFERROR(VLOOKUP(D7063,Translation!$A:$C,3,FALSE),D7063)","v":"Territoires"},{"$f":"IFERROR(VLOOKUP(E7063,Translation!$A:$C,3,FALSE),E7063)","v":0.66189506671806053},{"$f":"IFERROR(VLOOKUP(F7063,Translation!$A:$C,3,FALSE),F7063)","v":"Prêts hypothécaires assurés au cours de la période selon la province (%)"},{"$f":"IFERROR(VLOOKUP(G7063,Translation!$A:$C,3,FALSE),G7063)","v":"0.7"},{"$f":"IFERROR(VLOOKUP(H7063,Translation!$A:$C,3,FALSE),H7063)","v":0}]
[3,"T3 2019","ALL","PROPRIÉTAIRES-OCCUPANTS, À L’UNITÉ",29477,"UNIT","29477.0",0,{"$f":"IFERROR(VLOOKUP(A7064,Translation!$A:$C,3,FALSE),A7064)","v":3},{"$f":"IFERROR(VLOOKUP(B7064,Translation!$A:$C,3,FALSE),B7064)","v":"T3 2019"},{"$f":"IFERROR(VLOOKUP(C7064,Translation!$A:$C,3,FALSE),C7064)","v":"ALL"},{"$f":"IFERROR(VLOOKUP(D7064,Translation!$A:$C,3,FALSE),D7064)","v":"PROPRIÉTAIRES-OCCUPANTS, À L’UNITÉ"},{"$f":"IFERROR(VLOOKUP(E7064,Translation!$A:$C,3,FALSE),E7064)","v":29477},{"$f":"IFERROR(VLOOKUP(F7064,Translation!$A:$C,3,FALSE),F7064)","v":"UNIT"},{"$f":"IFERROR(VLOOKUP(G7064,Translation!$A:$C,3,FALSE),G7064)","v":"29477.0"},{"$f":"IFERROR(VLOOKUP(H7064,Translation!$A:$C,3,FALSE),H7064)","v":0}]
[3,"T3 2019","ALL","Assurance de portefeuille (nouveaux prêts)",1949,"UNIT","1949.0",0,{"$f":"IFERROR(VLOOKUP(A7065,Translation!$A:$C,3,FALSE),A7065)","v":3},{"$f":"IFERROR(VLOOKUP(B7065,Translation!$A:$C,3,FALSE),B7065)","v":"T3 2019"},{"$f":"IFERROR(VLOOKUP(C7065,Translation!$A:$C,3,FALSE),C7065)","v":"ALL"},{"$f":"IFERROR(VLOOKUP(D7065,Translation!$A:$C,3,FALSE),D7065)","v":"Assurance de portefeuille (nouveaux prêts)"},{"$f":"IFERROR(VLOOKUP(E7065,Translation!$A:$C,3,FALSE),E7065)","v":1949},{"$f":"IFERROR(VLOOKUP(F7065,Translation!$A:$C,3,FALSE),F7065)","v":"UNIT"},{"$f":"IFERROR(VLOOKUP(G7065,Translation!$A:$C,3,FALSE),G7065)","v":"1949.0"},{"$f":"IFERROR(VLOOKUP(H7065,Translation!$A:$C,3,FALSE),H7065)","v":0}]
[3,"T3 2019","ALL","Assurance de portefeuille (prêts de substitution)",3048,"UNIT","3048.0",0,{"$f":"IFERROR(VLOOKUP(A7066,Translation!$A:$C,3,FALSE),A7066)","v":3},{"$f":"IFERROR(VLOOKUP(B7066,Translation!$A:$C,3,FALSE),B7066)","v":"T3 2019"},{"$f":"IFERROR(VLOOKUP(C7066,Translation!$A:$C,3,FALSE),C7066)","v":"ALL"},{"$f":"IFERROR(VLOOKUP(D7066,Translation!$A:$C,3,FALSE),D7066)","v":"Assurance de portefeuille (prêts de substitution)"},{"$f":"IFERROR(VLOOKUP(E7066,Translation!$A:$C,3,FALSE),E7066)","v":3048},{"$f":"IFERROR(VLOOKUP(F7066,Translation!$A:$C,3,FALSE),F7066)","v":"UNIT"},{"$f":"IFERROR(VLOOKUP(G7066,Translation!$A:$C,3,FALSE),G7066)","v":"3048.0"},{"$f":"IFERROR(VLOOKUP(H7066,Translation!$A:$C,3,FALSE),H7066)","v":0}]
[3,"T3 2019","ALL","IMMEUBLES COLLECTIFS RÉSIDENTIELS",38208,"UNIT","38208.0",0,{"$f":"IFERROR(VLOOKUP(A7067,Translation!$A:$C,3,FALSE),A7067)","v":3},{"$f":"IFERROR(VLOOKUP(B7067,Translation!$A:$C,3,FALSE),B7067)","v":"T3 2019"},{"$f":"IFERROR(VLOOKUP(C7067,Translation!$A:$C,3,FALSE),C7067)","v":"ALL"},{"$f":"IFERROR(VLOOKUP(D7067,Translation!$A:$C,3,FALSE),D7067)","v":"IMMEUBLES COLLECTIFS RÉSIDENTIELS"},{"$f":"IFERROR(VLOOKUP(E7067,Translation!$A:$C,3,FALSE),E7067)","v":38208},{"$f":"IFERROR(VLOOKUP(F7067,Translation!$A:$C,3,FALSE),F7067)","v":"UNIT"},{"$f":"IFERROR(VLOOKUP(G7067,Translation!$A:$C,3,FALSE),G7067)","v":"38208.0"},{"$f":"IFERROR(VLOOKUP(H7067,Translation!$A:$C,3,FALSE),H7067)","v":0}]
[3,"T3 2019","ALL","Total Insured Volumes (units)",72682,"UNIT","72682.0",0,{"$f":"IFERROR(VLOOKUP(A7068,Translation!$A:$C,3,FALSE),A7068)","v":3},{"$f":"IFERROR(VLOOKUP(B7068,Translation!$A:$C,3,FALSE),B7068)","v":"T3 2019"},{"$f":"IFERROR(VLOOKUP(C7068,Translation!$A:$C,3,FALSE),C7068)","v":"ALL"},{"$f":"IFERROR(VLOOKUP(D7068,Translation!$A:$C,3,FALSE),D7068)","v":"Total Insured Volumes (units)"},{"$f":"IFERROR(VLOOKUP(E7068,Translation!$A:$C,3,FALSE),E7068)","v":72682},{"$f":"IFERROR(VLOOKUP(F7068,Translation!$A:$C,3,FALSE),F7068)","v":"UNIT"},{"$f":"IFERROR(VLOOKUP(G7068,Translation!$A:$C,3,FALSE),G7068)","v":"72682.0"},{"$f":"IFERROR(VLOOKUP(H7068,Translation!$A:$C,3,FALSE),H7068)","v":0}]
[3,"T3 2019","ALL","PROPRIÉTAIRES-OCCUPANTS, À L’UNITÉ",8302357943.7404604,"AMT","8302357943.7",0,{"$f":"IFERROR(VLOOKUP(A7069,Translation!$A:$C,3,FALSE),A7069)","v":3},{"$f":"IFERROR(VLOOKUP(B7069,Translation!$A:$C,3,FALSE),B7069)","v":"T3 2019"},{"$f":"IFERROR(VLOOKUP(C7069,Translation!$A:$C,3,FALSE),C7069)","v":"ALL"},{"$f":"IFERROR(VLOOKUP(D7069,Translation!$A:$C,3,FALSE),D7069)","v":"PROPRIÉTAIRES-OCCUPANTS, À L’UNITÉ"},{"$f":"IFERROR(VLOOKUP(E7069,Translation!$A:$C,3,FALSE),E7069)","v":8302357943.7404604},{"$f":"IFERROR(VLOOKUP(F7069,Translation!$A:$C,3,FALSE),F7069)","v":"AMT"},{"$f":"IFERROR(VLOOKUP(G7069,Translation!$A:$C,3,FALSE),G7069)","v":"8302357943.7"},{"$f":"IFERROR(VLOOKUP(H7069,Translation!$A:$C,3,FALSE),H7069)","v":0}]
[3,"T3 2019","ALL","Assurance de portefeuille (nouveaux prêts)",511896257.0899868,"AMT","511896257.1",0,{"$f":"IFERROR(VLOOKUP(A7070,Translation!$A:$C,3,FALSE),A7070)","v":3},{"$f":"IFERROR(VLOOKUP(B7070,Translation!$A:$C,3,FALSE),B7070)","v":"T3 2019"},{"$f":"IFERROR(VLOOKUP(C7070,Translation!$A:$C,3,FALSE),C7070)","v":"ALL"},{"$f":"IFERROR(VLOOKUP(D7070,Translation!$A:$C,3,FALSE),D7070)","v":"Assurance de portefeuille (nouveaux prêts)"},{"$f":"IFERROR(VLOOKUP(E7070,Translation!$A:$C,3,FALSE),E7070)","v":511896257.0899868},{"$f":"IFERROR(VLOOKUP(F7070,Translation!$A:$C,3,FALSE),F7070)","v":"AMT"},{"$f":"IFERROR(VLOOKUP(G7070,Translation!$A:$C,3,FALSE),G7070)","v":"511896257.1"},{"$f":"IFERROR(VLOOKUP(H7070,Translation!$A:$C,3,FALSE),H7070)","v":0}]
[3,"T3 2019","ALL","Assurance de portefeuille (prêts de substitution)",431498184.86000115,"AMT","431498184.9",0,{"$f":"IFERROR(VLOOKUP(A7071,Translation!$A:$C,3,FALSE),A7071)","v":3},{"$f":"IFERROR(VLOOKUP(B7071,Translation!$A:$C,3,FALSE),B7071)","v":"T3 2019"},{"$f":"IFERROR(VLOOKUP(C7071,Translation!$A:$C,3,FALSE),C7071)","v":"ALL"},{"$f":"IFERROR(VLOOKUP(D7071,Translation!$A:$C,3,FALSE),D7071)","v":"Assurance de portefeuille (prêts de substitution)"},{"$f":"IFERROR(VLOOKUP(E7071,Translation!$A:$C,3,FALSE),E7071)","v":431498184.86000115},{"$f":"IFERROR(VLOOKUP(F7071,Translation!$A:$C,3,FALSE),F7071)","v":"AMT"},{"$f":"IFERROR(VLOOKUP(G7071,Translation!$A:$C,3,FALSE),G7071)","v":"431498184.9"},{"$f":"IFERROR(VLOOKUP(H7071,Translation!$A:$C,3,FALSE),H7071)","v":0}]
[3,"T3 2019","ALL","IMMEUBLES COLLECTIFS RÉSIDENTIELS",4816767270.4600248,"AMT","4816767270.5",0,{"$f":"IFERROR(VLOOKUP(A7072,Translation!$A:$C,3,FALSE),A7072)","v":3},{"$f":"IFERROR(VLOOKUP(B7072,Translation!$A:$C,3,FALSE),B7072)","v":"T3 2019"},{"$f":"IFERROR(VLOOKUP(C7072,Translation!$A:$C,3,FALSE),C7072)","v":"ALL"},{"$f":"IFERROR(VLOOKUP(D7072,Translation!$A:$C,3,FALSE),D7072)","v":"IMMEUBLES COLLECTIFS RÉSIDENTIELS"},{"$f":"IFERROR(VLOOKUP(E7072,Translation!$A:$C,3,FALSE),E7072)","v":4816767270.4600248},{"$f":"IFERROR(VLOOKUP(F7072,Translation!$A:$C,3,FALSE),F7072)","v":"AMT"},{"$f":"IFERROR(VLOOKUP(G7072,Translation!$A:$C,3,FALSE),G7072)","v":"4816767270.5"},{"$f":"IFERROR(VLOOKUP(H7072,Translation!$A:$C,3,FALSE),H7072)","v":0}]
[3,"T3 2019","ALL","Volume total d'assurance (M$)",14062519656.150471,"AMT","14062519656.2",0,{"$f":"IFERROR(VLOOKUP(A7073,Translation!$A:$C,3,FALSE),A7073)","v":3},{"$f":"IFERROR(VLOOKUP(B7073,Translation!$A:$C,3,FALSE),B7073)","v":"T3 2019"},{"$f":"IFERROR(VLOOKUP(C7073,Translation!$A:$C,3,FALSE),C7073)","v":"ALL"},{"$f":"IFERROR(VLOOKUP(D7073,Translation!$A:$C,3,FALSE),D7073)","v":"Volume total d'assurance (M$)"},{"$f":"IFERROR(VLOOKUP(E7073,Translation!$A:$C,3,FALSE),E7073)","v":14062519656.150471},{"$f":"IFERROR(VLOOKUP(F7073,Translation!$A:$C,3,FALSE),F7073)","v":"AMT"},{"$f":"IFERROR(VLOOKUP(G7073,Translation!$A:$C,3,FALSE),G7073)","v":"14062519656.2"},{"$f":"IFERROR(VLOOKUP(H7073,Translation!$A:$C,3,FALSE),H7073)","v":0}]
[3,"T2 2019","ALL","Terre-Neuve-et-Labrador",0.64166050550303699,"Prêts hypothécaires assurés au cours de la période selon la province (%)","0.6",0,{"$f":"IFERROR(VLOOKUP(A7074,Translation!$A:$C,3,FALSE),A7074)","v":3},{"$f":"IFERROR(VLOOKUP(B7074,Translation!$A:$C,3,FALSE),B7074)","v":"T2 2019"},{"$f":"IFERROR(VLOOKUP(C7074,Translation!$A:$C,3,FALSE),C7074)","v":"ALL"},{"$f":"IFERROR(VLOOKUP(D7074,Translation!$A:$C,3,FALSE),D7074)","v":"Terre-Neuve-et-Labrador"},{"$f":"IFERROR(VLOOKUP(E7074,Translation!$A:$C,3,FALSE),E7074)","v":0.64166050550303699},{"$f":"IFERROR(VLOOKUP(F7074,Translation!$A:$C,3,FALSE),F7074)","v":"Prêts hypothécaires assurés au cours de la période selon la province (%)"},{"$f":"IFERROR(VLOOKUP(G7074,Translation!$A:$C,3,FALSE),G7074)","v":"0.6"},{"$f":"IFERROR(VLOOKUP(H7074,Translation!$A:$C,3,FALSE),H7074)","v":0}]
[3,"T2 2019","ALL","Île-du-Prince-Édouard",0.23751610554819763,"Prêts hypothécaires assurés au cours de la période selon la province (%)","0.2",0,{"$f":"IFERROR(VLOOKUP(A7075,Translation!$A:$C,3,FALSE),A7075)","v":3},{"$f":"IFERROR(VLOOKUP(B7075,Translation!$A:$C,3,FALSE),B7075)","v":"T2 2019"},{"$f":"IFERROR(VLOOKUP(C7075,Translation!$A:$C,3,FALSE),C7075)","v":"ALL"},{"$f":"IFERROR(VLOOKUP(D7075,Translation!$A:$C,3,FALSE),D7075)","v":"Île-du-Prince-Édouard"},{"$f":"IFERROR(VLOOKUP(E7075,Translation!$A:$C,3,FALSE),E7075)","v":0.23751610554819763},{"$f":"IFERROR(VLOOKUP(F7075,Translation!$A:$C,3,FALSE),F7075)","v":"Prêts hypothécaires assurés au cours de la période selon la province (%)"},{"$f":"IFERROR(VLOOKUP(G7075,Translation!$A:$C,3,FALSE),G7075)","v":"0.2"},{"$f":"IFERROR(VLOOKUP(H7075,Translation!$A:$C,3,FALSE),H7075)","v":0}]
[3,"T2 2019","ALL","Nouvelle-Écosse",2.8491215657143742,"Prêts hypothécaires assurés au cours de la période selon la province (%)","2.8",0,{"$f":"IFERROR(VLOOKUP(A7076,Translation!$A:$C,3,FALSE),A7076)","v":3},{"$f":"IFERROR(VLOOKUP(B7076,Translation!$A:$C,3,FALSE),B7076)","v":"T2 2019"},{"$f":"IFERROR(VLOOKUP(C7076,Translation!$A:$C,3,FALSE),C7076)","v":"ALL"},{"$f":"IFERROR(VLOOKUP(D7076,Translation!$A:$C,3,FALSE),D7076)","v":"Nouvelle-Écosse"},{"$f":"IFERROR(VLOOKUP(E7076,Translation!$A:$C,3,FALSE),E7076)","v":2.8491215657143742},{"$f":"IFERROR(VLOOKUP(F7076,Translation!$A:$C,3,FALSE),F7076)","v":"Prêts hypothécaires assurés au cours de la période selon la province (%)"},{"$f":"IFERROR(VLOOKUP(G7076,Translation!$A:$C,3,FALSE),G7076)","v":"2.8"},{"$f":"IFERROR(VLOOKUP(H7076,Translation!$A:$C,3,FALSE),H7076)","v":0}]
[3,"T2 2019","ALL","Nouveau-Brunswick",1.5926236137818144,"Prêts hypothécaires assurés au cours de la période selon la province (%)","1.6",0,{"$f":"IFERROR(VLOOKUP(A7077,Translation!$A:$C,3,FALSE),A7077)","v":3},{"$f":"IFERROR(VLOOKUP(B7077,Translation!$A:$C,3,FALSE),B7077)","v":"T2 2019"},{"$f":"IFERROR(VLOOKUP(C7077,Translation!$A:$C,3,FALSE),C7077)","v":"ALL"},{"$f":"IFERROR(VLOOKUP(D7077,Translation!$A:$C,3,FALSE),D7077)","v":"Nouveau-Brunswick"},{"$f":"IFERROR(VLOOKUP(E7077,Translation!$A:$C,3,FALSE),E7077)","v":1.5926236137818144},{"$f":"IFERROR(VLOOKUP(F7077,Translation!$A:$C,3,FALSE),F7077)","v":"Prêts hypothécaires assurés au cours de la période selon la province (%)"},{"$f":"IFERROR(VLOOKUP(G7077,Translation!$A:$C,3,FALSE),G7077)","v":"1.6"},{"$f":"IFERROR(VLOOKUP(H7077,Translation!$A:$C,3,FALSE),H7077)","v":0}]
[3,"T2 2019","ALL","Québec",34.04682458682948,"Prêts hypothécaires assurés au cours de la période selon la province (%)","34.0",0,{"$f":"IFERROR(VLOOKUP(A7078,Translation!$A:$C,3,FALSE),A7078)","v":3},{"$f":"IFERROR(VLOOKUP(B7078,Translation!$A:$C,3,FALSE),B7078)","v":"T2 2019"},{"$f":"IFERROR(VLOOKUP(C7078,Translation!$A:$C,3,FALSE),C7078)","v":"ALL"},{"$f":"IFERROR(VLOOKUP(D7078,Translation!$A:$C,3,FALSE),D7078)","v":"Québec"},{"$f":"IFERROR(VLOOKUP(E7078,Translation!$A:$C,3,FALSE),E7078)","v":34.04682458682948},{"$f":"IFERROR(VLOOKUP(F7078,Translation!$A:$C,3,FALSE),F7078)","v":"Prêts hypothécaires assurés au cours de la période selon la province (%)"},{"$f":"IFERROR(VLOOKUP(G7078,Translation!$A:$C,3,FALSE),G7078)","v":"34.0"},{"$f":"IFERROR(VLOOKUP(H7078,Translation!$A:$C,3,FALSE),H7078)","v":0}]
[3,"T2 2019","ALL","Ontario",30.478159918288856,"Prêts hypothécaires assurés au cours de la période selon la province (%)","30.5",0,{"$f":"IFERROR(VLOOKUP(A7079,Translation!$A:$C,3,FALSE),A7079)","v":3},{"$f":"IFERROR(VLOOKUP(B7079,Translation!$A:$C,3,FALSE),B7079)","v":"T2 2019"},{"$f":"IFERROR(VLOOKUP(C7079,Translation!$A:$C,3,FALSE),C7079)","v":"ALL"},{"$f":"IFERROR(VLOOKUP(D7079,Translation!$A:$C,3,FALSE),D7079)","v":"Ontario"},{"$f":"IFERROR(VLOOKUP(E7079,Translation!$A:$C,3,FALSE),E7079)","v":30.478159918288856},{"$f":"IFERROR(VLOOKUP(F7079,Translation!$A:$C,3,FALSE),F7079)","v":"Prêts hypothécaires assurés au cours de la période selon la province (%)"},{"$f":"IFERROR(VLOOKUP(G7079,Translation!$A:$C,3,FALSE),G7079)","v":"30.5"},{"$f":"IFERROR(VLOOKUP(H7079,Translation!$A:$C,3,FALSE),H7079)","v":0}]
[3,"T2 2019","ALL","Manitoba",2.9724373635083201,"Prêts hypothécaires assurés au cours de la période selon la province (%)","3.0",0,{"$f":"IFERROR(VLOOKUP(A7080,Translation!$A:$C,3,FALSE),A7080)","v":3},{"$f":"IFERROR(VLOOKUP(B7080,Translation!$A:$C,3,FALSE),B7080)","v":"T2 2019"},{"$f":"IFERROR(VLOOKUP(C7080,Translation!$A:$C,3,FALSE),C7080)","v":"ALL"},{"$f":"IFERROR(VLOOKUP(D7080,Translation!$A:$C,3,FALSE),D7080)","v":"Manitoba"},{"$f":"IFERROR(VLOOKUP(E7080,Translation!$A:$C,3,FALSE),E7080)","v":2.9724373635083201},{"$f":"IFERROR(VLOOKUP(F7080,Translation!$A:$C,3,FALSE),F7080)","v":"Prêts hypothécaires assurés au cours de la période selon la province (%)"},{"$f":"IFERROR(VLOOKUP(G7080,Translation!$A:$C,3,FALSE),G7080)","v":"3.0"},{"$f":"IFERROR(VLOOKUP(H7080,Translation!$A:$C,3,FALSE),H7080)","v":0}]
[3,"T2 2019","ALL","Saskatchewan",2.2245466863026282,"Prêts hypothécaires assurés au cours de la période selon la province (%)","2.2",0,{"$f":"IFERROR(VLOOKUP(A7081,Translation!$A:$C,3,FALSE),A7081)","v":3},{"$f":"IFERROR(VLOOKUP(B7081,Translation!$A:$C,3,FALSE),B7081)","v":"T2 2019"},{"$f":"IFERROR(VLOOKUP(C7081,Translation!$A:$C,3,FALSE),C7081)","v":"ALL"},{"$f":"IFERROR(VLOOKUP(D7081,Translation!$A:$C,3,FALSE),D7081)","v":"Saskatchewan"},{"$f":"IFERROR(VLOOKUP(E7081,Translation!$A:$C,3,FALSE),E7081)","v":2.2245466863026282},{"$f":"IFERROR(VLOOKUP(F7081,Translation!$A:$C,3,FALSE),F7081)","v":"Prêts hypothécaires assurés au cours de la période selon la province (%)"},{"$f":"IFERROR(VLOOKUP(G7081,Translation!$A:$C,3,FALSE),G7081)","v":"2.2"},{"$f":"IFERROR(VLOOKUP(H7081,Translation!$A:$C,3,FALSE),H7081)","v":0}]
[3,"T2 2019","ALL","Alberta",11.624083252067177,"Prêts hypothécaires assurés au cours de la période selon la province (%)","11.6",0,{"$f":"IFERROR(VLOOKUP(A7082,Translation!$A:$C,3,FALSE),A7082)","v":3},{"$f":"IFERROR(VLOOKUP(B7082,Translation!$A:$C,3,FALSE),B7082)","v":"T2 2019"},{"$f":"IFERROR(VLOOKUP(C7082,Translation!$A:$C,3,FALSE),C7082)","v":"ALL"},{"$f":"IFERROR(VLOOKUP(D7082,Translation!$A:$C,3,FALSE),D7082)","v":"Alberta"},{"$f":"IFERROR(VLOOKUP(E7082,Translation!$A:$C,3,FALSE),E7082)","v":11.624083252067177},{"$f":"IFERROR(VLOOKUP(F7082,Translation!$A:$C,3,FALSE),F7082)","v":"Prêts hypothécaires assurés au cours de la période selon la province (%)"},{"$f":"IFERROR(VLOOKUP(G7082,Translation!$A:$C,3,FALSE),G7082)","v":"11.6"},{"$f":"IFERROR(VLOOKUP(H7082,Translation!$A:$C,3,FALSE),H7082)","v":0}]
[3,"T2 2019","ALL","Colombie-Britannique",12.932663226438541,"Prêts hypothécaires assurés au cours de la période selon la province (%)","12.9",0,{"$f":"IFERROR(VLOOKUP(A7083,Translation!$A:$C,3,FALSE),A7083)","v":3},{"$f":"IFERROR(VLOOKUP(B7083,Translation!$A:$C,3,FALSE),B7083)","v":"T2 2019"},{"$f":"IFERROR(VLOOKUP(C7083,Translation!$A:$C,3,FALSE),C7083)","v":"ALL"},{"$f":"IFERROR(VLOOKUP(D7083,Translation!$A:$C,3,FALSE),D7083)","v":"Colombie-Britannique"},{"$f":"IFERROR(VLOOKUP(E7083,Translation!$A:$C,3,FALSE),E7083)","v":12.932663226438541},{"$f":"IFERROR(VLOOKUP(F7083,Translation!$A:$C,3,FALSE),F7083)","v":"Prêts hypothécaires assurés au cours de la période selon la province (%)"},{"$f":"IFERROR(VLOOKUP(G7083,Translation!$A:$C,3,FALSE),G7083)","v":"12.9"},{"$f":"IFERROR(VLOOKUP(H7083,Translation!$A:$C,3,FALSE),H7083)","v":0}]
[3,"T2 2019","ALL","Territoires",0.40036317601759042,"Prêts hypothécaires assurés au cours de la période selon la province (%)","0.4",0,{"$f":"IFERROR(VLOOKUP(A7084,Translation!$A:$C,3,FALSE),A7084)","v":3},{"$f":"IFERROR(VLOOKUP(B7084,Translation!$A:$C,3,FALSE),B7084)","v":"T2 2019"},{"$f":"IFERROR(VLOOKUP(C7084,Translation!$A:$C,3,FALSE),C7084)","v":"ALL"},{"$f":"IFERROR(VLOOKUP(D7084,Translation!$A:$C,3,FALSE),D7084)","v":"Territoires"},{"$f":"IFERROR(VLOOKUP(E7084,Translation!$A:$C,3,FALSE),E7084)","v":0.40036317601759042},{"$f":"IFERROR(VLOOKUP(F7084,Translation!$A:$C,3,FALSE),F7084)","v":"Prêts hypothécaires assurés au cours de la période selon la province (%)"},{"$f":"IFERROR(VLOOKUP(G7084,Translation!$A:$C,3,FALSE),G7084)","v":"0.4"},{"$f":"IFERROR(VLOOKUP(H7084,Translation!$A:$C,3,FALSE),H7084)","v":0}]
[3,"T2 2019","ALL","PROPRIÉTAIRES-OCCUPANTS, À L’UNITÉ",31327,"UNIT","31327.0",0,{"$f":"IFERROR(VLOOKUP(A7085,Translation!$A:$C,3,FALSE),A7085)","v":3},{"$f":"IFERROR(VLOOKUP(B7085,Translation!$A:$C,3,FALSE),B7085)","v":"T2 2019"},{"$f":"IFERROR(VLOOKUP(C7085,Translation!$A:$C,3,FALSE),C7085)","v":"ALL"},{"$f":"IFERROR(VLOOKUP(D7085,Translation!$A:$C,3,FALSE),D7085)","v":"PROPRIÉTAIRES-OCCUPANTS, À L’UNITÉ"},{"$f":"IFERROR(VLOOKUP(E7085,Translation!$A:$C,3,FALSE),E7085)","v":31327},{"$f":"IFERROR(VLOOKUP(F7085,Translation!$A:$C,3,FALSE),F7085)","v":"UNIT"},{"$f":"IFERROR(VLOOKUP(G7085,Translation!$A:$C,3,FALSE),G7085)","v":"31327.0"},{"$f":"IFERROR(VLOOKUP(H7085,Translation!$A:$C,3,FALSE),H7085)","v":0}]
[3,"T2 2019","ALL","Assurance de portefeuille (nouveaux prêts)",10440,"UNIT","10440.0",0,{"$f":"IFERROR(VLOOKUP(A7086,Translation!$A:$C,3,FALSE),A7086)","v":3},{"$f":"IFERROR(VLOOKUP(B7086,Translation!$A:$C,3,FALSE),B7086)","v":"T2 2019"},{"$f":"IFERROR(VLOOKUP(C7086,Translation!$A:$C,3,FALSE),C7086)","v":"ALL"},{"$f":"IFERROR(VLOOKUP(D7086,Translation!$A:$C,3,FALSE),D7086)","v":"Assurance de portefeuille (nouveaux prêts)"},{"$f":"IFERROR(VLOOKUP(E7086,Translation!$A:$C,3,FALSE),E7086)","v":10440},{"$f":"IFERROR(VLOOKUP(F7086,Translation!$A:$C,3,FALSE),F7086)","v":"UNIT"},{"$f":"IFERROR(VLOOKUP(G7086,Translation!$A:$C,3,FALSE),G7086)","v":"10440.0"},{"$f":"IFERROR(VLOOKUP(H7086,Translation!$A:$C,3,FALSE),H7086)","v":0}]
[3,"T2 2019","ALL","Assurance de portefeuille (prêts de substitution)",1402,"UNIT","1402.0",0,{"$f":"IFERROR(VLOOKUP(A7087,Translation!$A:$C,3,FALSE),A7087)","v":3},{"$f":"IFERROR(VLOOKUP(B7087,Translation!$A:$C,3,FALSE),B7087)","v":"T2 2019"},{"$f":"IFERROR(VLOOKUP(C7087,Translation!$A:$C,3,FALSE),C7087)","v":"ALL"},{"$f":"IFERROR(VLOOKUP(D7087,Translation!$A:$C,3,FALSE),D7087)","v":"Assurance de portefeuille (prêts de substitution)"},{"$f":"IFERROR(VLOOKUP(E7087,Translation!$A:$C,3,FALSE),E7087)","v":1402},{"$f":"IFERROR(VLOOKUP(F7087,Translation!$A:$C,3,FALSE),F7087)","v":"UNIT"},{"$f":"IFERROR(VLOOKUP(G7087,Translation!$A:$C,3,FALSE),G7087)","v":"1402.0"},{"$f":"IFERROR(VLOOKUP(H7087,Translation!$A:$C,3,FALSE),H7087)","v":0}]
[3,"T2 2019","ALL","IMMEUBLES COLLECTIFS RÉSIDENTIELS",29947,"UNIT","29947.0",0,{"$f":"IFERROR(VLOOKUP(A7088,Translation!$A:$C,3,FALSE),A7088)","v":3},{"$f":"IFERROR(VLOOKUP(B7088,Translation!$A:$C,3,FALSE),B7088)","v":"T2 2019"},{"$f":"IFERROR(VLOOKUP(C7088,Translation!$A:$C,3,FALSE),C7088)","v":"ALL"},{"$f":"IFERROR(VLOOKUP(D7088,Translation!$A:$C,3,FALSE),D7088)","v":"IMMEUBLES COLLECTIFS RÉSIDENTIELS"},{"$f":"IFERROR(VLOOKUP(E7088,Translation!$A:$C,3,FALSE),E7088)","v":29947},{"$f":"IFERROR(VLOOKUP(F7088,Translation!$A:$C,3,FALSE),F7088)","v":"UNIT"},{"$f":"IFERROR(VLOOKUP(G7088,Translation!$A:$C,3,FALSE),G7088)","v":"29947.0"},{"$f":"IFERROR(VLOOKUP(H7088,Translation!$A:$C,3,FALSE),H7088)","v":0}]
[3,"T2 2019","ALL","Total Insured Volumes (units)",73116,"UNIT","73116.0",0,{"$f":"IFERROR(VLOOKUP(A7089,Translation!$A:$C,3,FALSE),A7089)","v":3},{"$f":"IFERROR(VLOOKUP(B7089,Translation!$A:$C,3,FALSE),B7089)","v":"T2 2019"},{"$f":"IFERROR(VLOOKUP(C7089,Translation!$A:$C,3,FALSE),C7089)","v":"ALL"},{"$f":"IFERROR(VLOOKUP(D7089,Translation!$A:$C,3,FALSE),D7089)","v":"Total Insured Volumes (units)"},{"$f":"IFERROR(VLOOKUP(E7089,Translation!$A:$C,3,FALSE),E7089)","v":73116},{"$f":"IFERROR(VLOOKUP(F7089,Translation!$A:$C,3,FALSE),F7089)","v":"UNIT"},{"$f":"IFERROR(VLOOKUP(G7089,Translation!$A:$C,3,FALSE),G7089)","v":"73116.0"},{"$f":"IFERROR(VLOOKUP(H7089,Translation!$A:$C,3,FALSE),H7089)","v":0}]
[3,"T2 2019","ALL","PROPRIÉTAIRES-OCCUPANTS, À L’UNITÉ",8001593459.5000019,"AMT","8001593459.5",0,{"$f":"IFERROR(VLOOKUP(A7090,Translation!$A:$C,3,FALSE),A7090)","v":3},{"$f":"IFERROR(VLOOKUP(B7090,Translation!$A:$C,3,FALSE),B7090)","v":"T2 2019"},{"$f":"IFERROR(VLOOKUP(C7090,Translation!$A:$C,3,FALSE),C7090)","v":"ALL"},{"$f":"IFERROR(VLOOKUP(D7090,Translation!$A:$C,3,FALSE),D7090)","v":"PROPRIÉTAIRES-OCCUPANTS, À L’UNITÉ"},{"$f":"IFERROR(VLOOKUP(E7090,Translation!$A:$C,3,FALSE),E7090)","v":8001593459.5000019},{"$f":"IFERROR(VLOOKUP(F7090,Translation!$A:$C,3,FALSE),F7090)","v":"AMT"},{"$f":"IFERROR(VLOOKUP(G7090,Translation!$A:$C,3,FALSE),G7090)","v":"8001593459.5"},{"$f":"IFERROR(VLOOKUP(H7090,Translation!$A:$C,3,FALSE),H7090)","v":0}]
[3,"T2 2019","ALL","Assurance de portefeuille (nouveaux prêts)",2666345497.8600154,"AMT","2666345497.9",0,{"$f":"IFERROR(VLOOKUP(A7091,Translation!$A:$C,3,FALSE),A7091)","v":3},{"$f":"IFERROR(VLOOKUP(B7091,Translation!$A:$C,3,FALSE),B7091)","v":"T2 2019"},{"$f":"IFERROR(VLOOKUP(C7091,Translation!$A:$C,3,FALSE),C7091)","v":"ALL"},{"$f":"IFERROR(VLOOKUP(D7091,Translation!$A:$C,3,FALSE),D7091)","v":"Assurance de portefeuille (nouveaux prêts)"},{"$f":"IFERROR(VLOOKUP(E7091,Translation!$A:$C,3,FALSE),E7091)","v":2666345497.8600154},{"$f":"IFERROR(VLOOKUP(F7091,Translation!$A:$C,3,FALSE),F7091)","v":"AMT"},{"$f":"IFERROR(VLOOKUP(G7091,Translation!$A:$C,3,FALSE),G7091)","v":"2666345497.9"},{"$f":"IFERROR(VLOOKUP(H7091,Translation!$A:$C,3,FALSE),H7091)","v":0}]
[3,"T2 2019","ALL","Assurance de portefeuille (prêts de substitution)",107792287.98999788,"AMT","107792288.0",0,{"$f":"IFERROR(VLOOKUP(A7092,Translation!$A:$C,3,FALSE),A7092)","v":3},{"$f":"IFERROR(VLOOKUP(B7092,Translation!$A:$C,3,FALSE),B7092)","v":"T2 2019"},{"$f":"IFERROR(VLOOKUP(C7092,Translation!$A:$C,3,FALSE),C7092)","v":"ALL"},{"$f":"IFERROR(VLOOKUP(D7092,Translation!$A:$C,3,FALSE),D7092)","v":"Assurance de portefeuille (prêts de substitution)"},{"$f":"IFERROR(VLOOKUP(E7092,Translation!$A:$C,3,FALSE),E7092)","v":107792287.98999788},{"$f":"IFERROR(VLOOKUP(F7092,Translation!$A:$C,3,FALSE),F7092)","v":"AMT"},{"$f":"IFERROR(VLOOKUP(G7092,Translation!$A:$C,3,FALSE),G7092)","v":"107792288.0"},{"$f":"IFERROR(VLOOKUP(H7092,Translation!$A:$C,3,FALSE),H7092)","v":0}]
[3,"T2 2019","ALL","IMMEUBLES COLLECTIFS RÉSIDENTIELS",3414597709.6000051,"AMT","3414597709.6",0,{"$f":"IFERROR(VLOOKUP(A7093,Translation!$A:$C,3,FALSE),A7093)","v":3},{"$f":"IFERROR(VLOOKUP(B7093,Translation!$A:$C,3,FALSE),B7093)","v":"T2 2019"},{"$f":"IFERROR(VLOOKUP(C7093,Translation!$A:$C,3,FALSE),C7093)","v":"ALL"},{"$f":"IFERROR(VLOOKUP(D7093,Translation!$A:$C,3,FALSE),D7093)","v":"IMMEUBLES COLLECTIFS RÉSIDENTIELS"},{"$f":"IFERROR(VLOOKUP(E7093,Translation!$A:$C,3,FALSE),E7093)","v":3414597709.6000051},{"$f":"IFERROR(VLOOKUP(F7093,Translation!$A:$C,3,FALSE),F7093)","v":"AMT"},{"$f":"IFERROR(VLOOKUP(G7093,Translation!$A:$C,3,FALSE),G7093)","v":"3414597709.6"},{"$f":"IFERROR(VLOOKUP(H7093,Translation!$A:$C,3,FALSE),H7093)","v":0}]
[3,"T2 2019","ALL","Volume total d'assurance (M$)",14190328954.95002,"AMT","14190328955.0",0,{"$f":"IFERROR(VLOOKUP(A7094,Translation!$A:$C,3,FALSE),A7094)","v":3},{"$f":"IFERROR(VLOOKUP(B7094,Translation!$A:$C,3,FALSE),B7094)","v":"T2 2019"},{"$f":"IFERROR(VLOOKUP(C7094,Translation!$A:$C,3,FALSE),C7094)","v":"ALL"},{"$f":"IFERROR(VLOOKUP(D7094,Translation!$A:$C,3,FALSE),D7094)","v":"Volume total d'assurance (M$)"},{"$f":"IFERROR(VLOOKUP(E7094,Translation!$A:$C,3,FALSE),E7094)","v":14190328954.95002},{"$f":"IFERROR(VLOOKUP(F7094,Translation!$A:$C,3,FALSE),F7094)","v":"AMT"},{"$f":"IFERROR(VLOOKUP(G7094,Translation!$A:$C,3,FALSE),G7094)","v":"14190328955.0"},{"$f":"IFERROR(VLOOKUP(H7094,Translation!$A:$C,3,FALSE),H7094)","v":0}]
[3,"T1 2019","ALL","Terre-Neuve-et-Labrador",0.65700434289550613,"Prêts hypothécaires assurés au cours de la période selon la province (%)","0.7",0,{"$f":"IFERROR(VLOOKUP(A7095,Translation!$A:$C,3,FALSE),A7095)","v":3},{"$f":"IFERROR(VLOOKUP(B7095,Translation!$A:$C,3,FALSE),B7095)","v":"T1 2019"},{"$f":"IFERROR(VLOOKUP(C7095,Translation!$A:$C,3,FALSE),C7095)","v":"ALL"},{"$f":"IFERROR(VLOOKUP(D7095,Translation!$A:$C,3,FALSE),D7095)","v":"Terre-Neuve-et-Labrador"},{"$f":"IFERROR(VLOOKUP(E7095,Translation!$A:$C,3,FALSE),E7095)","v":0.65700434289550613},{"$f":"IFERROR(VLOOKUP(F7095,Translation!$A:$C,3,FALSE),F7095)","v":"Prêts hypothécaires assurés au cours de la période selon la province (%)"},{"$f":"IFERROR(VLOOKUP(G7095,Translation!$A:$C,3,FALSE),G7095)","v":"0.7"},{"$f":"IFERROR(VLOOKUP(H7095,Translation!$A:$C,3,FALSE),H7095)","v":0}]
[3,"T1 2019","ALL","Île-du-Prince-Édouard",0.23399445589760248,"Prêts hypothécaires assurés au cours de la période selon la province (%)","0.2",0,{"$f":"IFERROR(VLOOKUP(A7096,Translation!$A:$C,3,FALSE),A7096)","v":3},{"$f":"IFERROR(VLOOKUP(B7096,Translation!$A:$C,3,FALSE),B7096)","v":"T1 2019"},{"$f":"IFERROR(VLOOKUP(C7096,Translation!$A:$C,3,FALSE),C7096)","v":"ALL"},{"$f":"IFERROR(VLOOKUP(D7096,Translation!$A:$C,3,FALSE),D7096)","v":"Île-du-Prince-Édouard"},{"$f":"IFERROR(VLOOKUP(E7096,Translation!$A:$C,3,FALSE),E7096)","v":0.23399445589760248},{"$f":"IFERROR(VLOOKUP(F7096,Translation!$A:$C,3,FALSE),F7096)","v":"Prêts hypothécaires assurés au cours de la période selon la province (%)"},{"$f":"IFERROR(VLOOKUP(G7096,Translation!$A:$C,3,FALSE),G7096)","v":"0.2"},{"$f":"IFERROR(VLOOKUP(H7096,Translation!$A:$C,3,FALSE),H7096)","v":0}]
[3,"T1 2019","ALL","Nouvelle-Écosse",2.4104006471946975,"Prêts hypothécaires assurés au cours de la période selon la province (%)","2.4",0,{"$f":"IFERROR(VLOOKUP(A7097,Translation!$A:$C,3,FALSE),A7097)","v":3},{"$f":"IFERROR(VLOOKUP(B7097,Translation!$A:$C,3,FALSE),B7097)","v":"T1 2019"},{"$f":"IFERROR(VLOOKUP(C7097,Translation!$A:$C,3,FALSE),C7097)","v":"ALL"},{"$f":"IFERROR(VLOOKUP(D7097,Translation!$A:$C,3,FALSE),D7097)","v":"Nouvelle-Écosse"},{"$f":"IFERROR(VLOOKUP(E7097,Translation!$A:$C,3,FALSE),E7097)","v":2.4104006471946975},{"$f":"IFERROR(VLOOKUP(F7097,Translation!$A:$C,3,FALSE),F7097)","v":"Prêts hypothécaires assurés au cours de la période selon la province (%)"},{"$f":"IFERROR(VLOOKUP(G7097,Translation!$A:$C,3,FALSE),G7097)","v":"2.4"},{"$f":"IFERROR(VLOOKUP(H7097,Translation!$A:$C,3,FALSE),H7097)","v":0}]
[3,"T1 2019","ALL","Nouveau-Brunswick",1.2775672978538921,"Prêts hypothécaires assurés au cours de la période selon la province (%)","1.3",0,{"$f":"IFERROR(VLOOKUP(A7098,Translation!$A:$C,3,FALSE),A7098)","v":3},{"$f":"IFERROR(VLOOKUP(B7098,Translation!$A:$C,3,FALSE),B7098)","v":"T1 2019"},{"$f":"IFERROR(VLOOKUP(C7098,Translation!$A:$C,3,FALSE),C7098)","v":"ALL"},{"$f":"IFERROR(VLOOKUP(D7098,Translation!$A:$C,3,FALSE),D7098)","v":"Nouveau-Brunswick"},{"$f":"IFERROR(VLOOKUP(E7098,Translation!$A:$C,3,FALSE),E7098)","v":1.2775672978538921},{"$f":"IFERROR(VLOOKUP(F7098,Translation!$A:$C,3,FALSE),F7098)","v":"Prêts hypothécaires assurés au cours de la période selon la province (%)"},{"$f":"IFERROR(VLOOKUP(G7098,Translation!$A:$C,3,FALSE),G7098)","v":"1.3"},{"$f":"IFERROR(VLOOKUP(H7098,Translation!$A:$C,3,FALSE),H7098)","v":0}]
[3,"T1 2019","ALL","Québec",23.253614929811096,"Prêts hypothécaires assurés au cours de la période selon la province (%)","23.3",0,{"$f":"IFERROR(VLOOKUP(A7099,Translation!$A:$C,3,FALSE),A7099)","v":3},{"$f":"IFERROR(VLOOKUP(B7099,Translation!$A:$C,3,FALSE),B7099)","v":"T1 2019"},{"$f":"IFERROR(VLOOKUP(C7099,Translation!$A:$C,3,FALSE),C7099)","v":"ALL"},{"$f":"IFERROR(VLOOKUP(D7099,Translation!$A:$C,3,FALSE),D7099)","v":"Québec"},{"$f":"IFERROR(VLOOKUP(E7099,Translation!$A:$C,3,FALSE),E7099)","v":23.253614929811096},{"$f":"IFERROR(VLOOKUP(F7099,Translation!$A:$C,3,FALSE),F7099)","v":"Prêts hypothécaires assurés au cours de la période selon la province (%)"},{"$f":"IFERROR(VLOOKUP(G7099,Translation!$A:$C,3,FALSE),G7099)","v":"23.3"},{"$f":"IFERROR(VLOOKUP(H7099,Translation!$A:$C,3,FALSE),H7099)","v":0}]
[3,"T1 2019","ALL","Ontario",40.351504376473088,"Prêts hypothécaires assurés au cours de la période selon la province (%)","40.4",0,{"$f":"IFERROR(VLOOKUP(A7100,Translation!$A:$C,3,FALSE),A7100)","v":3},{"$f":"IFERROR(VLOOKUP(B7100,Translation!$A:$C,3,FALSE),B7100)","v":"T1 2019"},{"$f":"IFERROR(VLOOKUP(C7100,Translation!$A:$C,3,FALSE),C7100)","v":"ALL"},{"$f":"IFERROR(VLOOKUP(D7100,Translation!$A:$C,3,FALSE),D7100)","v":"Ontario"},{"$f":"IFERROR(VLOOKUP(E7100,Translation!$A:$C,3,FALSE),E7100)","v":40.351504376473088},{"$f":"IFERROR(VLOOKUP(F7100,Translation!$A:$C,3,FALSE),F7100)","v":"Prêts hypothécaires assurés au cours de la période selon la province (%)"},{"$f":"IFERROR(VLOOKUP(G7100,Translation!$A:$C,3,FALSE),G7100)","v":"40.4"},{"$f":"IFERROR(VLOOKUP(H7100,Translation!$A:$C,3,FALSE),H7100)","v":0}]
[3,"T1 2019","ALL","Manitoba",2.8329390600223654,"Prêts hypothécaires assurés au cours de la période selon la province (%)","2.8",0,{"$f":"IFERROR(VLOOKUP(A7101,Translation!$A:$C,3,FALSE),A7101)","v":3},{"$f":"IFERROR(VLOOKUP(B7101,Translation!$A:$C,3,FALSE),B7101)","v":"T1 2019"},{"$f":"IFERROR(VLOOKUP(C7101,Translation!$A:$C,3,FALSE),C7101)","v":"ALL"},{"$f":"IFERROR(VLOOKUP(D7101,Translation!$A:$C,3,FALSE),D7101)","v":"Manitoba"},{"$f":"IFERROR(VLOOKUP(E7101,Translation!$A:$C,3,FALSE),E7101)","v":2.8329390600223654},{"$f":"IFERROR(VLOOKUP(F7101,Translation!$A:$C,3,FALSE),F7101)","v":"Prêts hypothécaires assurés au cours de la période selon la province (%)"},{"$f":"IFERROR(VLOOKUP(G7101,Translation!$A:$C,3,FALSE),G7101)","v":"2.8"},{"$f":"IFERROR(VLOOKUP(H7101,Translation!$A:$C,3,FALSE),H7101)","v":0}]
[3,"T1 2019","ALL","Saskatchewan",2.2845765790427657,"Prêts hypothécaires assurés au cours de la période selon la province (%)","2.3",0,{"$f":"IFERROR(VLOOKUP(A7102,Translation!$A:$C,3,FALSE),A7102)","v":3},{"$f":"IFERROR(VLOOKUP(B7102,Translation!$A:$C,3,FALSE),B7102)","v":"T1 2019"},{"$f":"IFERROR(VLOOKUP(C7102,Translation!$A:$C,3,FALSE),C7102)","v":"ALL"},{"$f":"IFERROR(VLOOKUP(D7102,Translation!$A:$C,3,FALSE),D7102)","v":"Saskatchewan"},{"$f":"IFERROR(VLOOKUP(E7102,Translation!$A:$C,3,FALSE),E7102)","v":2.2845765790427657},{"$f":"IFERROR(VLOOKUP(F7102,Translation!$A:$C,3,FALSE),F7102)","v":"Prêts hypothécaires assurés au cours de la période selon la province (%)"},{"$f":"IFERROR(VLOOKUP(G7102,Translation!$A:$C,3,FALSE),G7102)","v":"2.3"},{"$f":"IFERROR(VLOOKUP(H7102,Translation!$A:$C,3,FALSE),H7102)","v":0}]
[3,"T1 2019","ALL","Alberta",13.070681310896484,"Prêts hypothécaires assurés au cours de la période selon la province (%)","13.1",0,{"$f":"IFERROR(VLOOKUP(A7103,Translation!$A:$C,3,FALSE),A7103)","v":3},{"$f":"IFERROR(VLOOKUP(B7103,Translation!$A:$C,3,FALSE),B7103)","v":"T1 2019"},{"$f":"IFERROR(VLOOKUP(C7103,Translation!$A:$C,3,FALSE),C7103)","v":"ALL"},{"$f":"IFERROR(VLOOKUP(D7103,Translation!$A:$C,3,FALSE),D7103)","v":"Alberta"},{"$f":"IFERROR(VLOOKUP(E7103,Translation!$A:$C,3,FALSE),E7103)","v":13.070681310896484},{"$f":"IFERROR(VLOOKUP(F7103,Translation!$A:$C,3,FALSE),F7103)","v":"Prêts hypothécaires assurés au cours de la période selon la province (%)"},{"$f":"IFERROR(VLOOKUP(G7103,Translation!$A:$C,3,FALSE),G7103)","v":"13.1"},{"$f":"IFERROR(VLOOKUP(H7103,Translation!$A:$C,3,FALSE),H7103)","v":0}]
[3,"T1 2019","ALL","Colombie-Britannique",13.185119738899783,"Prêts hypothécaires assurés au cours de la période selon la province (%)","13.2",0,{"$f":"IFERROR(VLOOKUP(A7104,Translation!$A:$C,3,FALSE),A7104)","v":3},{"$f":"IFERROR(VLOOKUP(B7104,Translation!$A:$C,3,FALSE),B7104)","v":"T1 2019"},{"$f":"IFERROR(VLOOKUP(C7104,Translation!$A:$C,3,FALSE),C7104)","v":"ALL"},{"$f":"IFERROR(VLOOKUP(D7104,Translation!$A:$C,3,FALSE),D7104)","v":"Colombie-Britannique"},{"$f":"IFERROR(VLOOKUP(E7104,Translation!$A:$C,3,FALSE),E7104)","v":13.185119738899783},{"$f":"IFERROR(VLOOKUP(F7104,Translation!$A:$C,3,FALSE),F7104)","v":"Prêts hypothécaires assurés au cours de la période selon la province (%)"},{"$f":"IFERROR(VLOOKUP(G7104,Translation!$A:$C,3,FALSE),G7104)","v":"13.2"},{"$f":"IFERROR(VLOOKUP(H7104,Translation!$A:$C,3,FALSE),H7104)","v":0}]
[3,"T1 2019","ALL","Territoires",0.44259726101272928,"Prêts hypothécaires assurés au cours de la période selon la province (%)","0.4",0,{"$f":"IFERROR(VLOOKUP(A7105,Translation!$A:$C,3,FALSE),A7105)","v":3},{"$f":"IFERROR(VLOOKUP(B7105,Translation!$A:$C,3,FALSE),B7105)","v":"T1 2019"},{"$f":"IFERROR(VLOOKUP(C7105,Translation!$A:$C,3,FALSE),C7105)","v":"ALL"},{"$f":"IFERROR(VLOOKUP(D7105,Translation!$A:$C,3,FALSE),D7105)","v":"Territoires"},{"$f":"IFERROR(VLOOKUP(E7105,Translation!$A:$C,3,FALSE),E7105)","v":0.44259726101272928},{"$f":"IFERROR(VLOOKUP(F7105,Translation!$A:$C,3,FALSE),F7105)","v":"Prêts hypothécaires assurés au cours de la période selon la province (%)"},{"$f":"IFERROR(VLOOKUP(G7105,Translation!$A:$C,3,FALSE),G7105)","v":"0.4"},{"$f":"IFERROR(VLOOKUP(H7105,Translation!$A:$C,3,FALSE),H7105)","v":0}]
[3,"T1 2019","ALL","PROPRIÉTAIRES-OCCUPANTS, À L’UNITÉ",13893,"UNIT","13893.0",0,{"$f":"IFERROR(VLOOKUP(A7106,Translation!$A:$C,3,FALSE),A7106)","v":3},{"$f":"IFERROR(VLOOKUP(B7106,Translation!$A:$C,3,FALSE),B7106)","v":"T1 2019"},{"$f":"IFERROR(VLOOKUP(C7106,Translation!$A:$C,3,FALSE),C7106)","v":"ALL"},{"$f":"IFERROR(VLOOKUP(D7106,Translation!$A:$C,3,FALSE),D7106)","v":"PROPRIÉTAIRES-OCCUPANTS, À L’UNITÉ"},{"$f":"IFERROR(VLOOKUP(E7106,Translation!$A:$C,3,FALSE),E7106)","v":13893},{"$f":"IFERROR(VLOOKUP(F7106,Translation!$A:$C,3,FALSE),F7106)","v":"UNIT"},{"$f":"IFERROR(VLOOKUP(G7106,Translation!$A:$C,3,FALSE),G7106)","v":"13893.0"},{"$f":"IFERROR(VLOOKUP(H7106,Translation!$A:$C,3,FALSE),H7106)","v":0}]
[3,"T1 2019","ALL","Assurance de portefeuille (nouveaux prêts)",3303,"UNIT","3303.0",0,{"$f":"IFERROR(VLOOKUP(A7107,Translation!$A:$C,3,FALSE),A7107)","v":3},{"$f":"IFERROR(VLOOKUP(B7107,Translation!$A:$C,3,FALSE),B7107)","v":"T1 2019"},{"$f":"IFERROR(VLOOKUP(C7107,Translation!$A:$C,3,FALSE),C7107)","v":"ALL"},{"$f":"IFERROR(VLOOKUP(D7107,Translation!$A:$C,3,FALSE),D7107)","v":"Assurance de portefeuille (nouveaux prêts)"},{"$f":"IFERROR(VLOOKUP(E7107,Translation!$A:$C,3,FALSE),E7107)","v":3303},{"$f":"IFERROR(VLOOKUP(F7107,Translation!$A:$C,3,FALSE),F7107)","v":"UNIT"},{"$f":"IFERROR(VLOOKUP(G7107,Translation!$A:$C,3,FALSE),G7107)","v":"3303.0"},{"$f":"IFERROR(VLOOKUP(H7107,Translation!$A:$C,3,FALSE),H7107)","v":0}]
[3,"T1 2019","ALL","Assurance de portefeuille (prêts de substitution)",3766,"UNIT","3766.0",0,{"$f":"IFERROR(VLOOKUP(A7108,Translation!$A:$C,3,FALSE),A7108)","v":3},{"$f":"IFERROR(VLOOKUP(B7108,Translation!$A:$C,3,FALSE),B7108)","v":"T1 2019"},{"$f":"IFERROR(VLOOKUP(C7108,Translation!$A:$C,3,FALSE),C7108)","v":"ALL"},{"$f":"IFERROR(VLOOKUP(D7108,Translation!$A:$C,3,FALSE),D7108)","v":"Assurance de portefeuille (prêts de substitution)"},{"$f":"IFERROR(VLOOKUP(E7108,Translation!$A:$C,3,FALSE),E7108)","v":3766},{"$f":"IFERROR(VLOOKUP(F7108,Translation!$A:$C,3,FALSE),F7108)","v":"UNIT"},{"$f":"IFERROR(VLOOKUP(G7108,Translation!$A:$C,3,FALSE),G7108)","v":"3766.0"},{"$f":"IFERROR(VLOOKUP(H7108,Translation!$A:$C,3,FALSE),H7108)","v":0}]
[3,"T1 2019","ALL","IMMEUBLES COLLECTIFS RÉSIDENTIELS",22485,"UNIT","22485.0",0,{"$f":"IFERROR(VLOOKUP(A7109,Translation!$A:$C,3,FALSE),A7109)","v":3},{"$f":"IFERROR(VLOOKUP(B7109,Translation!$A:$C,3,FALSE),B7109)","v":"T1 2019"},{"$f":"IFERROR(VLOOKUP(C7109,Translation!$A:$C,3,FALSE),C7109)","v":"ALL"},{"$f":"IFERROR(VLOOKUP(D7109,Translation!$A:$C,3,FALSE),D7109)","v":"IMMEUBLES COLLECTIFS RÉSIDENTIELS"},{"$f":"IFERROR(VLOOKUP(E7109,Translation!$A:$C,3,FALSE),E7109)","v":22485},{"$f":"IFERROR(VLOOKUP(F7109,Translation!$A:$C,3,FALSE),F7109)","v":"UNIT"},{"$f":"IFERROR(VLOOKUP(G7109,Translation!$A:$C,3,FALSE),G7109)","v":"22485.0"},{"$f":"IFERROR(VLOOKUP(H7109,Translation!$A:$C,3,FALSE),H7109)","v":0}]
[3,"T1 2019","ALL","PROPRIÉTAIRES-OCCUPANTS, À L’UNITÉ",3764162330.969985,"AMT","3764162331.0",0,{"$f":"IFERROR(VLOOKUP(A7110,Translation!$A:$C,3,FALSE),A7110)","v":3},{"$f":"IFERROR(VLOOKUP(B7110,Translation!$A:$C,3,FALSE),B7110)","v":"T1 2019"},{"$f":"IFERROR(VLOOKUP(C7110,Translation!$A:$C,3,FALSE),C7110)","v":"ALL"},{"$f":"IFERROR(VLOOKUP(D7110,Translation!$A:$C,3,FALSE),D7110)","v":"PROPRIÉTAIRES-OCCUPANTS, À L’UNITÉ"},{"$f":"IFERROR(VLOOKUP(E7110,Translation!$A:$C,3,FALSE),E7110)","v":3764162330.969985},{"$f":"IFERROR(VLOOKUP(F7110,Translation!$A:$C,3,FALSE),F7110)","v":"AMT"},{"$f":"IFERROR(VLOOKUP(G7110,Translation!$A:$C,3,FALSE),G7110)","v":"3764162331.0"},{"$f":"IFERROR(VLOOKUP(H7110,Translation!$A:$C,3,FALSE),H7110)","v":0}]
[3,"T1 2019","ALL","Assurance de portefeuille (nouveaux prêts)",835417715.02000141,"AMT","835417715.0",0,{"$f":"IFERROR(VLOOKUP(A7111,Translation!$A:$C,3,FALSE),A7111)","v":3},{"$f":"IFERROR(VLOOKUP(B7111,Translation!$A:$C,3,FALSE),B7111)","v":"T1 2019"},{"$f":"IFERROR(VLOOKUP(C7111,Translation!$A:$C,3,FALSE),C7111)","v":"ALL"},{"$f":"IFERROR(VLOOKUP(D7111,Translation!$A:$C,3,FALSE),D7111)","v":"Assurance de portefeuille (nouveaux prêts)"},{"$f":"IFERROR(VLOOKUP(E7111,Translation!$A:$C,3,FALSE),E7111)","v":835417715.02000141},{"$f":"IFERROR(VLOOKUP(F7111,Translation!$A:$C,3,FALSE),F7111)","v":"AMT"},{"$f":"IFERROR(VLOOKUP(G7111,Translation!$A:$C,3,FALSE),G7111)","v":"835417715.0"},{"$f":"IFERROR(VLOOKUP(H7111,Translation!$A:$C,3,FALSE),H7111)","v":0}]
[3,"T1 2019","ALL","Assurance de portefeuille (prêts de substitution)",529421231.1699996,"AMT","529421231.2",0,{"$f":"IFERROR(VLOOKUP(A7112,Translation!$A:$C,3,FALSE),A7112)","v":3},{"$f":"IFERROR(VLOOKUP(B7112,Translation!$A:$C,3,FALSE),B7112)","v":"T1 2019"},{"$f":"IFERROR(VLOOKUP(C7112,Translation!$A:$C,3,FALSE),C7112)","v":"ALL"},{"$f":"IFERROR(VLOOKUP(D7112,Translation!$A:$C,3,FALSE),D7112)","v":"Assurance de portefeuille (prêts de substitution)"},{"$f":"IFERROR(VLOOKUP(E7112,Translation!$A:$C,3,FALSE),E7112)","v":529421231.1699996},{"$f":"IFERROR(VLOOKUP(F7112,Translation!$A:$C,3,FALSE),F7112)","v":"AMT"},{"$f":"IFERROR(VLOOKUP(G7112,Translation!$A:$C,3,FALSE),G7112)","v":"529421231.2"},{"$f":"IFERROR(VLOOKUP(H7112,Translation!$A:$C,3,FALSE),H7112)","v":0}]
[3,"T1 2019","ALL","IMMEUBLES COLLECTIFS RÉSIDENTIELS",2763194458.1799998,"AMT","2763194458.2",0,{"$f":"IFERROR(VLOOKUP(A7113,Translation!$A:$C,3,FALSE),A7113)","v":3},{"$f":"IFERROR(VLOOKUP(B7113,Translation!$A:$C,3,FALSE),B7113)","v":"T1 2019"},{"$f":"IFERROR(VLOOKUP(C7113,Translation!$A:$C,3,FALSE),C7113)","v":"ALL"},{"$f":"IFERROR(VLOOKUP(D7113,Translation!$A:$C,3,FALSE),D7113)","v":"IMMEUBLES COLLECTIFS RÉSIDENTIELS"},{"$f":"IFERROR(VLOOKUP(E7113,Translation!$A:$C,3,FALSE),E7113)","v":2763194458.1799998},{"$f":"IFERROR(VLOOKUP(F7113,Translation!$A:$C,3,FALSE),F7113)","v":"AMT"},{"$f":"IFERROR(VLOOKUP(G7113,Translation!$A:$C,3,FALSE),G7113)","v":"2763194458.2"},{"$f":"IFERROR(VLOOKUP(H7113,Translation!$A:$C,3,FALSE),H7113)","v":0}]
[3,"T1 2019","ALL","Total Insured Volumes (units)",43447,"UNIT","43447.0",0,{"$f":"IFERROR(VLOOKUP(A7114,Translation!$A:$C,3,FALSE),A7114)","v":3},{"$f":"IFERROR(VLOOKUP(B7114,Translation!$A:$C,3,FALSE),B7114)","v":"T1 2019"},{"$f":"IFERROR(VLOOKUP(C7114,Translation!$A:$C,3,FALSE),C7114)","v":"ALL"},{"$f":"IFERROR(VLOOKUP(D7114,Translation!$A:$C,3,FALSE),D7114)","v":"Total Insured Volumes (units)"},{"$f":"IFERROR(VLOOKUP(E7114,Translation!$A:$C,3,FALSE),E7114)","v":43447},{"$f":"IFERROR(VLOOKUP(F7114,Translation!$A:$C,3,FALSE),F7114)","v":"UNIT"},{"$f":"IFERROR(VLOOKUP(G7114,Translation!$A:$C,3,FALSE),G7114)","v":"43447.0"},{"$f":"IFERROR(VLOOKUP(H7114,Translation!$A:$C,3,FALSE),H7114)","v":0}]
[3,"T1 2019","ALL","Volume total d'assurance (M$)",7892195735.3399858,"AMT","7892195735.3",0,{"$f":"IFERROR(VLOOKUP(A7115,Translation!$A:$C,3,FALSE),A7115)","v":3},{"$f":"IFERROR(VLOOKUP(B7115,Translation!$A:$C,3,FALSE),B7115)","v":"T1 2019"},{"$f":"IFERROR(VLOOKUP(C7115,Translation!$A:$C,3,FALSE),C7115)","v":"ALL"},{"$f":"IFERROR(VLOOKUP(D7115,Translation!$A:$C,3,FALSE),D7115)","v":"Volume total d'assurance (M$)"},{"$f":"IFERROR(VLOOKUP(E7115,Translation!$A:$C,3,FALSE),E7115)","v":7892195735.3399858},{"$f":"IFERROR(VLOOKUP(F7115,Translation!$A:$C,3,FALSE),F7115)","v":"AMT"},{"$f":"IFERROR(VLOOKUP(G7115,Translation!$A:$C,3,FALSE),G7115)","v":"7892195735.3"},{"$f":"IFERROR(VLOOKUP(H7115,Translation!$A:$C,3,FALSE),H7115)","v":0}]
[3,"T4 2018","ALL","Terre-Neuve-et-Labrador",0.70169429825493801,"Prêts hypothécaires assurés au cours de la période selon la province (%)","0.7",0,{"$f":"IFERROR(VLOOKUP(A7116,Translation!$A:$C,3,FALSE),A7116)","v":3},{"$f":"IFERROR(VLOOKUP(B7116,Translation!$A:$C,3,FALSE),B7116)","v":"T4 2018"},{"$f":"IFERROR(VLOOKUP(C7116,Translation!$A:$C,3,FALSE),C7116)","v":"ALL"},{"$f":"IFERROR(VLOOKUP(D7116,Translation!$A:$C,3,FALSE),D7116)","v":"Terre-Neuve-et-Labrador"},{"$f":"IFERROR(VLOOKUP(E7116,Translation!$A:$C,3,FALSE),E7116)","v":0.70169429825493801},{"$f":"IFERROR(VLOOKUP(F7116,Translation!$A:$C,3,FALSE),F7116)","v":"Prêts hypothécaires assurés au cours de la période selon la province (%)"},{"$f":"IFERROR(VLOOKUP(G7116,Translation!$A:$C,3,FALSE),G7116)","v":"0.7"},{"$f":"IFERROR(VLOOKUP(H7116,Translation!$A:$C,3,FALSE),H7116)","v":0}]
[3,"Cumul 2017","ALL","Terre-Neuve-et-Labrador",0.82352519255466139,"Prêts hypothécaires assurés au cours de la période selon la province (%)","0.8",0,{"$f":"IFERROR(VLOOKUP(A7117,Translation!$A:$C,3,FALSE),A7117)","v":3},{"$f":"IFERROR(VLOOKUP(B7117,Translation!$A:$C,3,FALSE),B7117)","v":"Cumul 2017"},{"$f":"IFERROR(VLOOKUP(C7117,Translation!$A:$C,3,FALSE),C7117)","v":"ALL"},{"$f":"IFERROR(VLOOKUP(D7117,Translation!$A:$C,3,FALSE),D7117)","v":"Terre-Neuve-et-Labrador"},{"$f":"IFERROR(VLOOKUP(E7117,Translation!$A:$C,3,FALSE),E7117)","v":0.82352519255466139},{"$f":"IFERROR(VLOOKUP(F7117,Translation!$A:$C,3,FALSE),F7117)","v":"Prêts hypothécaires assurés au cours de la période selon la province (%)"},{"$f":"IFERROR(VLOOKUP(G7117,Translation!$A:$C,3,FALSE),G7117)","v":"0.8"},{"$f":"IFERROR(VLOOKUP(H7117,Translation!$A:$C,3,FALSE),H7117)","v":0}]
[3,"T4 2018","ALL","Île-du-Prince-Édouard",0.27643694867608609,"Prêts hypothécaires assurés au cours de la période selon la province (%)","0.3",0,{"$f":"IFERROR(VLOOKUP(A7118,Translation!$A:$C,3,FALSE),A7118)","v":3},{"$f":"IFERROR(VLOOKUP(B7118,Translation!$A:$C,3,FALSE),B7118)","v":"T4 2018"},{"$f":"IFERROR(VLOOKUP(C7118,Translation!$A:$C,3,FALSE),C7118)","v":"ALL"},{"$f":"IFERROR(VLOOKUP(D7118,Translation!$A:$C,3,FALSE),D7118)","v":"Île-du-Prince-Édouard"},{"$f":"IFERROR(VLOOKUP(E7118,Translation!$A:$C,3,FALSE),E7118)","v":0.27643694867608609},{"$f":"IFERROR(VLOOKUP(F7118,Translation!$A:$C,3,FALSE),F7118)","v":"Prêts hypothécaires assurés au cours de la période selon la province (%)"},{"$f":"IFERROR(VLOOKUP(G7118,Translation!$A:$C,3,FALSE),G7118)","v":"0.3"},{"$f":"IFERROR(VLOOKUP(H7118,Translation!$A:$C,3,FALSE),H7118)","v":0}]
[3,"Cumul 2017","ALL","Île-du-Prince-Édouard",0.22385847717662391,"Prêts hypothécaires assurés au cours de la période selon la province (%)","0.2",0,{"$f":"IFERROR(VLOOKUP(A7119,Translation!$A:$C,3,FALSE),A7119)","v":3},{"$f":"IFERROR(VLOOKUP(B7119,Translation!$A:$C,3,FALSE),B7119)","v":"Cumul 2017"},{"$f":"IFERROR(VLOOKUP(C7119,Translation!$A:$C,3,FALSE),C7119)","v":"ALL"},{"$f":"IFERROR(VLOOKUP(D7119,Translation!$A:$C,3,FALSE),D7119)","v":"Île-du-Prince-Édouard"},{"$f":"IFERROR(VLOOKUP(E7119,Translation!$A:$C,3,FALSE),E7119)","v":0.22385847717662391},{"$f":"IFERROR(VLOOKUP(F7119,Translation!$A:$C,3,FALSE),F7119)","v":"Prêts hypothécaires assurés au cours de la période selon la province (%)"},{"$f":"IFERROR(VLOOKUP(G7119,Translation!$A:$C,3,FALSE),G7119)","v":"0.2"},{"$f":"IFERROR(VLOOKUP(H7119,Translation!$A:$C,3,FALSE),H7119)","v":0}]
[3,"T4 2018","ALL","Nouvelle-Écosse",3.3842656627234038,"Prêts hypothécaires assurés au cours de la période selon la province (%)","3.4",0,{"$f":"IFERROR(VLOOKUP(A7120,Translation!$A:$C,3,FALSE),A7120)","v":3},{"$f":"IFERROR(VLOOKUP(B7120,Translation!$A:$C,3,FALSE),B7120)","v":"T4 2018"},{"$f":"IFERROR(VLOOKUP(C7120,Translation!$A:$C,3,FALSE),C7120)","v":"ALL"},{"$f":"IFERROR(VLOOKUP(D7120,Translation!$A:$C,3,FALSE),D7120)","v":"Nouvelle-Écosse"},{"$f":"IFERROR(VLOOKUP(E7120,Translation!$A:$C,3,FALSE),E7120)","v":3.3842656627234038},{"$f":"IFERROR(VLOOKUP(F7120,Translation!$A:$C,3,FALSE),F7120)","v":"Prêts hypothécaires assurés au cours de la période selon la province (%)"},{"$f":"IFERROR(VLOOKUP(G7120,Translation!$A:$C,3,FALSE),G7120)","v":"3.4"},{"$f":"IFERROR(VLOOKUP(H7120,Translation!$A:$C,3,FALSE),H7120)","v":0}]
[3,"Cumul 2017","ALL","Nouvelle-Écosse",2.0280319339250767,"Prêts hypothécaires assurés au cours de la période selon la province (%)","2.0",0,{"$f":"IFERROR(VLOOKUP(A7121,Translation!$A:$C,3,FALSE),A7121)","v":3},{"$f":"IFERROR(VLOOKUP(B7121,Translation!$A:$C,3,FALSE),B7121)","v":"Cumul 2017"},{"$f":"IFERROR(VLOOKUP(C7121,Translation!$A:$C,3,FALSE),C7121)","v":"ALL"},{"$f":"IFERROR(VLOOKUP(D7121,Translation!$A:$C,3,FALSE),D7121)","v":"Nouvelle-Écosse"},{"$f":"IFERROR(VLOOKUP(E7121,Translation!$A:$C,3,FALSE),E7121)","v":2.0280319339250767},{"$f":"IFERROR(VLOOKUP(F7121,Translation!$A:$C,3,FALSE),F7121)","v":"Prêts hypothécaires assurés au cours de la période selon la province (%)"},{"$f":"IFERROR(VLOOKUP(G7121,Translation!$A:$C,3,FALSE),G7121)","v":"2.0"},{"$f":"IFERROR(VLOOKUP(H7121,Translation!$A:$C,3,FALSE),H7121)","v":0}]
[3,"T4 2018","ALL","Nouveau-Brunswick",1.5016618730532336,"Prêts hypothécaires assurés au cours de la période selon la province (%)","1.5",0,{"$f":"IFERROR(VLOOKUP(A7122,Translation!$A:$C,3,FALSE),A7122)","v":3},{"$f":"IFERROR(VLOOKUP(B7122,Translation!$A:$C,3,FALSE),B7122)","v":"T4 2018"},{"$f":"IFERROR(VLOOKUP(C7122,Translation!$A:$C,3,FALSE),C7122)","v":"ALL"},{"$f":"IFERROR(VLOOKUP(D7122,Translation!$A:$C,3,FALSE),D7122)","v":"Nouveau-Brunswick"},{"$f":"IFERROR(VLOOKUP(E7122,Translation!$A:$C,3,FALSE),E7122)","v":1.5016618730532336},{"$f":"IFERROR(VLOOKUP(F7122,Translation!$A:$C,3,FALSE),F7122)","v":"Prêts hypothécaires assurés au cours de la période selon la province (%)"},{"$f":"IFERROR(VLOOKUP(G7122,Translation!$A:$C,3,FALSE),G7122)","v":"1.5"},{"$f":"IFERROR(VLOOKUP(H7122,Translation!$A:$C,3,FALSE),H7122)","v":0}]
[3,"Cumul 2017","ALL","Nouveau-Brunswick",1.3285829744547699,"Prêts hypothécaires assurés au cours de la période selon la province (%)","1.3",0,{"$f":"IFERROR(VLOOKUP(A7123,Translation!$A:$C,3,FALSE),A7123)","v":3},{"$f":"IFERROR(VLOOKUP(B7123,Translation!$A:$C,3,FALSE),B7123)","v":"Cumul 2017"},{"$f":"IFERROR(VLOOKUP(C7123,Translation!$A:$C,3,FALSE),C7123)","v":"ALL"},{"$f":"IFERROR(VLOOKUP(D7123,Translation!$A:$C,3,FALSE),D7123)","v":"Nouveau-Brunswick"},{"$f":"IFERROR(VLOOKUP(E7123,Translation!$A:$C,3,FALSE),E7123)","v":1.3285829744547699},{"$f":"IFERROR(VLOOKUP(F7123,Translation!$A:$C,3,FALSE),F7123)","v":"Prêts hypothécaires assurés au cours de la période selon la province (%)"},{"$f":"IFERROR(VLOOKUP(G7123,Translation!$A:$C,3,FALSE),G7123)","v":"1.3"},{"$f":"IFERROR(VLOOKUP(H7123,Translation!$A:$C,3,FALSE),H7123)","v":0}]
[3,"T4 2018","ALL","Québec",24.284081841443275,"Prêts hypothécaires assurés au cours de la période selon la province (%)","24.3",0,{"$f":"IFERROR(VLOOKUP(A7124,Translation!$A:$C,3,FALSE),A7124)","v":3},{"$f":"IFERROR(VLOOKUP(B7124,Translation!$A:$C,3,FALSE),B7124)","v":"T4 2018"},{"$f":"IFERROR(VLOOKUP(C7124,Translation!$A:$C,3,FALSE),C7124)","v":"ALL"},{"$f":"IFERROR(VLOOKUP(D7124,Translation!$A:$C,3,FALSE),D7124)","v":"Québec"},{"$f":"IFERROR(VLOOKUP(E7124,Translation!$A:$C,3,FALSE),E7124)","v":24.284081841443275},{"$f":"IFERROR(VLOOKUP(F7124,Translation!$A:$C,3,FALSE),F7124)","v":"Prêts hypothécaires assurés au cours de la période selon la province (%)"},{"$f":"IFERROR(VLOOKUP(G7124,Translation!$A:$C,3,FALSE),G7124)","v":"24.3"},{"$f":"IFERROR(VLOOKUP(H7124,Translation!$A:$C,3,FALSE),H7124)","v":0}]
[3,"Cumul 2017","ALL","Québec",27.424275583180041,"Prêts hypothécaires assurés au cours de la période selon la province (%)","27.4",0,{"$f":"IFERROR(VLOOKUP(A7125,Translation!$A:$C,3,FALSE),A7125)","v":3},{"$f":"IFERROR(VLOOKUP(B7125,Translation!$A:$C,3,FALSE),B7125)","v":"Cumul 2017"},{"$f":"IFERROR(VLOOKUP(C7125,Translation!$A:$C,3,FALSE),C7125)","v":"ALL"},{"$f":"IFERROR(VLOOKUP(D7125,Translation!$A:$C,3,FALSE),D7125)","v":"Québec"},{"$f":"IFERROR(VLOOKUP(E7125,Translation!$A:$C,3,FALSE),E7125)","v":27.424275583180041},{"$f":"IFERROR(VLOOKUP(F7125,Translation!$A:$C,3,FALSE),F7125)","v":"Prêts hypothécaires assurés au cours de la période selon la province (%)"},{"$f":"IFERROR(VLOOKUP(G7125,Translation!$A:$C,3,FALSE),G7125)","v":"27.4"},{"$f":"IFERROR(VLOOKUP(H7125,Translation!$A:$C,3,FALSE),H7125)","v":0}]
[3,"T4 2018","ALL","Ontario",35.605257796209905,"Prêts hypothécaires assurés au cours de la période selon la province (%)","35.6",0,{"$f":"IFERROR(VLOOKUP(A7126,Translation!$A:$C,3,FALSE),A7126)","v":3},{"$f":"IFERROR(VLOOKUP(B7126,Translation!$A:$C,3,FALSE),B7126)","v":"T4 2018"},{"$f":"IFERROR(VLOOKUP(C7126,Translation!$A:$C,3,FALSE),C7126)","v":"ALL"},{"$f":"IFERROR(VLOOKUP(D7126,Translation!$A:$C,3,FALSE),D7126)","v":"Ontario"},{"$f":"IFERROR(VLOOKUP(E7126,Translation!$A:$C,3,FALSE),E7126)","v":35.605257796209905},{"$f":"IFERROR(VLOOKUP(F7126,Translation!$A:$C,3,FALSE),F7126)","v":"Prêts hypothécaires assurés au cours de la période selon la province (%)"},{"$f":"IFERROR(VLOOKUP(G7126,Translation!$A:$C,3,FALSE),G7126)","v":"35.6"},{"$f":"IFERROR(VLOOKUP(H7126,Translation!$A:$C,3,FALSE),H7126)","v":0}]
[3,"Cumul 2017","ALL","Ontario",35.666808951315929,"Prêts hypothécaires assurés au cours de la période selon la province (%)","35.7",0,{"$f":"IFERROR(VLOOKUP(A7127,Translation!$A:$C,3,FALSE),A7127)","v":3},{"$f":"IFERROR(VLOOKUP(B7127,Translation!$A:$C,3,FALSE),B7127)","v":"Cumul 2017"},{"$f":"IFERROR(VLOOKUP(C7127,Translation!$A:$C,3,FALSE),C7127)","v":"ALL"},{"$f":"IFERROR(VLOOKUP(D7127,Translation!$A:$C,3,FALSE),D7127)","v":"Ontario"},{"$f":"IFERROR(VLOOKUP(E7127,Translation!$A:$C,3,FALSE),E7127)","v":35.666808951315929},{"$f":"IFERROR(VLOOKUP(F7127,Translation!$A:$C,3,FALSE),F7127)","v":"Prêts hypothécaires assurés au cours de la période selon la province (%)"},{"$f":"IFERROR(VLOOKUP(G7127,Translation!$A:$C,3,FALSE),G7127)","v":"35.7"},{"$f":"IFERROR(VLOOKUP(H7127,Translation!$A:$C,3,FALSE),H7127)","v":0}]
[3,"T4 2018","ALL","Manitoba",3.6840359024511424,"Prêts hypothécaires assurés au cours de la période selon la province (%)","3.7",0,{"$f":"IFERROR(VLOOKUP(A7128,Translation!$A:$C,3,FALSE),A7128)","v":3},{"$f":"IFERROR(VLOOKUP(B7128,Translation!$A:$C,3,FALSE),B7128)","v":"T4 2018"},{"$f":"IFERROR(VLOOKUP(C7128,Translation!$A:$C,3,FALSE),C7128)","v":"ALL"},{"$f":"IFERROR(VLOOKUP(D7128,Translation!$A:$C,3,FALSE),D7128)","v":"Manitoba"},{"$f":"IFERROR(VLOOKUP(E7128,Translation!$A:$C,3,FALSE),E7128)","v":3.6840359024511424},{"$f":"IFERROR(VLOOKUP(F7128,Translation!$A:$C,3,FALSE),F7128)","v":"Prêts hypothécaires assurés au cours de la période selon la province (%)"},{"$f":"IFERROR(VLOOKUP(G7128,Translation!$A:$C,3,FALSE),G7128)","v":"3.7"},{"$f":"IFERROR(VLOOKUP(H7128,Translation!$A:$C,3,FALSE),H7128)","v":0}]
[3,"Cumul 2017","ALL","Manitoba",3.0202180464907928,"Prêts hypothécaires assurés au cours de la période selon la province (%)","3.0",0,{"$f":"IFERROR(VLOOKUP(A7129,Translation!$A:$C,3,FALSE),A7129)","v":3},{"$f":"IFERROR(VLOOKUP(B7129,Translation!$A:$C,3,FALSE),B7129)","v":"Cumul 2017"},{"$f":"IFERROR(VLOOKUP(C7129,Translation!$A:$C,3,FALSE),C7129)","v":"ALL"},{"$f":"IFERROR(VLOOKUP(D7129,Translation!$A:$C,3,FALSE),D7129)","v":"Manitoba"},{"$f":"IFERROR(VLOOKUP(E7129,Translation!$A:$C,3,FALSE),E7129)","v":3.0202180464907928},{"$f":"IFERROR(VLOOKUP(F7129,Translation!$A:$C,3,FALSE),F7129)","v":"Prêts hypothécaires assurés au cours de la période selon la province (%)"},{"$f":"IFERROR(VLOOKUP(G7129,Translation!$A:$C,3,FALSE),G7129)","v":"3.0"},{"$f":"IFERROR(VLOOKUP(H7129,Translation!$A:$C,3,FALSE),H7129)","v":0}]
[3,"T4 2018","ALL","Saskatchewan",2.3041515976695406,"Prêts hypothécaires assurés au cours de la période selon la province (%)","2.3",0,{"$f":"IFERROR(VLOOKUP(A7130,Translation!$A:$C,3,FALSE),A7130)","v":3},{"$f":"IFERROR(VLOOKUP(B7130,Translation!$A:$C,3,FALSE),B7130)","v":"T4 2018"},{"$f":"IFERROR(VLOOKUP(C7130,Translation!$A:$C,3,FALSE),C7130)","v":"ALL"},{"$f":"IFERROR(VLOOKUP(D7130,Translation!$A:$C,3,FALSE),D7130)","v":"Saskatchewan"},{"$f":"IFERROR(VLOOKUP(E7130,Translation!$A:$C,3,FALSE),E7130)","v":2.3041515976695406},{"$f":"IFERROR(VLOOKUP(F7130,Translation!$A:$C,3,FALSE),F7130)","v":"Prêts hypothécaires assurés au cours de la période selon la province (%)"},{"$f":"IFERROR(VLOOKUP(G7130,Translation!$A:$C,3,FALSE),G7130)","v":"2.3"},{"$f":"IFERROR(VLOOKUP(H7130,Translation!$A:$C,3,FALSE),H7130)","v":0}]
[3,"Cumul 2017","ALL","Saskatchewan",2.5148971130558126,"Prêts hypothécaires assurés au cours de la période selon la province (%)","2.5",0,{"$f":"IFERROR(VLOOKUP(A7131,Translation!$A:$C,3,FALSE),A7131)","v":3},{"$f":"IFERROR(VLOOKUP(B7131,Translation!$A:$C,3,FALSE),B7131)","v":"Cumul 2017"},{"$f":"IFERROR(VLOOKUP(C7131,Translation!$A:$C,3,FALSE),C7131)","v":"ALL"},{"$f":"IFERROR(VLOOKUP(D7131,Translation!$A:$C,3,FALSE),D7131)","v":"Saskatchewan"},{"$f":"IFERROR(VLOOKUP(E7131,Translation!$A:$C,3,FALSE),E7131)","v":2.5148971130558126},{"$f":"IFERROR(VLOOKUP(F7131,Translation!$A:$C,3,FALSE),F7131)","v":"Prêts hypothécaires assurés au cours de la période selon la province (%)"},{"$f":"IFERROR(VLOOKUP(G7131,Translation!$A:$C,3,FALSE),G7131)","v":"2.5"},{"$f":"IFERROR(VLOOKUP(H7131,Translation!$A:$C,3,FALSE),H7131)","v":0}]
[3,"T4 2018","ALL","Alberta",13.63662489822004,"Prêts hypothécaires assurés au cours de la période selon la province (%)","13.6",0,{"$f":"IFERROR(VLOOKUP(A7132,Translation!$A:$C,3,FALSE),A7132)","v":3},{"$f":"IFERROR(VLOOKUP(B7132,Translation!$A:$C,3,FALSE),B7132)","v":"T4 2018"},{"$f":"IFERROR(VLOOKUP(C7132,Translation!$A:$C,3,FALSE),C7132)","v":"ALL"},{"$f":"IFERROR(VLOOKUP(D7132,Translation!$A:$C,3,FALSE),D7132)","v":"Alberta"},{"$f":"IFERROR(VLOOKUP(E7132,Translation!$A:$C,3,FALSE),E7132)","v":13.63662489822004},{"$f":"IFERROR(VLOOKUP(F7132,Translation!$A:$C,3,FALSE),F7132)","v":"Prêts hypothécaires assurés au cours de la période selon la province (%)"},{"$f":"IFERROR(VLOOKUP(G7132,Translation!$A:$C,3,FALSE),G7132)","v":"13.6"},{"$f":"IFERROR(VLOOKUP(H7132,Translation!$A:$C,3,FALSE),H7132)","v":0}]
[3,"Cumul 2017","ALL","Alberta",14.244573735098989,"Prêts hypothécaires assurés au cours de la période selon la province (%)","14.2",0,{"$f":"IFERROR(VLOOKUP(A7133,Translation!$A:$C,3,FALSE),A7133)","v":3},{"$f":"IFERROR(VLOOKUP(B7133,Translation!$A:$C,3,FALSE),B7133)","v":"Cumul 2017"},{"$f":"IFERROR(VLOOKUP(C7133,Translation!$A:$C,3,FALSE),C7133)","v":"ALL"},{"$f":"IFERROR(VLOOKUP(D7133,Translation!$A:$C,3,FALSE),D7133)","v":"Alberta"},{"$f":"IFERROR(VLOOKUP(E7133,Translation!$A:$C,3,FALSE),E7133)","v":14.244573735098989},{"$f":"IFERROR(VLOOKUP(F7133,Translation!$A:$C,3,FALSE),F7133)","v":"Prêts hypothécaires assurés au cours de la période selon la province (%)"},{"$f":"IFERROR(VLOOKUP(G7133,Translation!$A:$C,3,FALSE),G7133)","v":"14.2"},{"$f":"IFERROR(VLOOKUP(H7133,Translation!$A:$C,3,FALSE),H7133)","v":0}]
[3,"T4 2018","ALL","Colombie-Britannique",14.179104041867877,"Prêts hypothécaires assurés au cours de la période selon la province (%)","14.2",0,{"$f":"IFERROR(VLOOKUP(A7134,Translation!$A:$C,3,FALSE),A7134)","v":3},{"$f":"IFERROR(VLOOKUP(B7134,Translation!$A:$C,3,FALSE),B7134)","v":"T4 2018"},{"$f":"IFERROR(VLOOKUP(C7134,Translation!$A:$C,3,FALSE),C7134)","v":"ALL"},{"$f":"IFERROR(VLOOKUP(D7134,Translation!$A:$C,3,FALSE),D7134)","v":"Colombie-Britannique"},{"$f":"IFERROR(VLOOKUP(E7134,Translation!$A:$C,3,FALSE),E7134)","v":14.179104041867877},{"$f":"IFERROR(VLOOKUP(F7134,Translation!$A:$C,3,FALSE),F7134)","v":"Prêts hypothécaires assurés au cours de la période selon la province (%)"},{"$f":"IFERROR(VLOOKUP(G7134,Translation!$A:$C,3,FALSE),G7134)","v":"14.2"},{"$f":"IFERROR(VLOOKUP(H7134,Translation!$A:$C,3,FALSE),H7134)","v":0}]
[3,"Cumul 2017","ALL","Colombie-Britannique",12.235452259477633,"Prêts hypothécaires assurés au cours de la période selon la province (%)","12.2",0,{"$f":"IFERROR(VLOOKUP(A7135,Translation!$A:$C,3,FALSE),A7135)","v":3},{"$f":"IFERROR(VLOOKUP(B7135,Translation!$A:$C,3,FALSE),B7135)","v":"Cumul 2017"},{"$f":"IFERROR(VLOOKUP(C7135,Translation!$A:$C,3,FALSE),C7135)","v":"ALL"},{"$f":"IFERROR(VLOOKUP(D7135,Translation!$A:$C,3,FALSE),D7135)","v":"Colombie-Britannique"},{"$f":"IFERROR(VLOOKUP(E7135,Translation!$A:$C,3,FALSE),E7135)","v":12.235452259477633},{"$f":"IFERROR(VLOOKUP(F7135,Translation!$A:$C,3,FALSE),F7135)","v":"Prêts hypothécaires assurés au cours de la période selon la province (%)"},{"$f":"IFERROR(VLOOKUP(G7135,Translation!$A:$C,3,FALSE),G7135)","v":"12.2"},{"$f":"IFERROR(VLOOKUP(H7135,Translation!$A:$C,3,FALSE),H7135)","v":0}]
[3,"T4 2018","ALL","Territoires",0.44268513943058208,"Prêts hypothécaires assurés au cours de la période selon la province (%)","0.4",0,{"$f":"IFERROR(VLOOKUP(A7136,Translation!$A:$C,3,FALSE),A7136)","v":3},{"$f":"IFERROR(VLOOKUP(B7136,Translation!$A:$C,3,FALSE),B7136)","v":"T4 2018"},{"$f":"IFERROR(VLOOKUP(C7136,Translation!$A:$C,3,FALSE),C7136)","v":"ALL"},{"$f":"IFERROR(VLOOKUP(D7136,Translation!$A:$C,3,FALSE),D7136)","v":"Territoires"},{"$f":"IFERROR(VLOOKUP(E7136,Translation!$A:$C,3,FALSE),E7136)","v":0.44268513943058208},{"$f":"IFERROR(VLOOKUP(F7136,Translation!$A:$C,3,FALSE),F7136)","v":"Prêts hypothécaires assurés au cours de la période selon la province (%)"},{"$f":"IFERROR(VLOOKUP(G7136,Translation!$A:$C,3,FALSE),G7136)","v":"0.4"},{"$f":"IFERROR(VLOOKUP(H7136,Translation!$A:$C,3,FALSE),H7136)","v":0}]
[3,"Cumul 2017","ALL","Territoires",0.48977573326968632,"Prêts hypothécaires assurés au cours de la période selon la province (%)","0.5",0,{"$f":"IFERROR(VLOOKUP(A7137,Translation!$A:$C,3,FALSE),A7137)","v":3},{"$f":"IFERROR(VLOOKUP(B7137,Translation!$A:$C,3,FALSE),B7137)","v":"Cumul 2017"},{"$f":"IFERROR(VLOOKUP(C7137,Translation!$A:$C,3,FALSE),C7137)","v":"ALL"},{"$f":"IFERROR(VLOOKUP(D7137,Translation!$A:$C,3,FALSE),D7137)","v":"Territoires"},{"$f":"IFERROR(VLOOKUP(E7137,Translation!$A:$C,3,FALSE),E7137)","v":0.48977573326968632},{"$f":"IFERROR(VLOOKUP(F7137,Translation!$A:$C,3,FALSE),F7137)","v":"Prêts hypothécaires assurés au cours de la période selon la province (%)"},{"$f":"IFERROR(VLOOKUP(G7137,Translation!$A:$C,3,FALSE),G7137)","v":"0.5"},{"$f":"IFERROR(VLOOKUP(H7137,Translation!$A:$C,3,FALSE),H7137)","v":0}]
[3,"Cumul 2017","ALL","PROPRIÉTAIRES-OCCUPANTS, À L’UNITÉ",113374,"UNIT","113374.0",0,{"$f":"IFERROR(VLOOKUP(A7138,Translation!$A:$C,3,FALSE),A7138)","v":3},{"$f":"IFERROR(VLOOKUP(B7138,Translation!$A:$C,3,FALSE),B7138)","v":"Cumul 2017"},{"$f":"IFERROR(VLOOKUP(C7138,Translation!$A:$C,3,FALSE),C7138)","v":"ALL"},{"$f":"IFERROR(VLOOKUP(D7138,Translation!$A:$C,3,FALSE),D7138)","v":"PROPRIÉTAIRES-OCCUPANTS, À L’UNITÉ"},{"$f":"IFERROR(VLOOKUP(E7138,Translation!$A:$C,3,FALSE),E7138)","v":113374},{"$f":"IFERROR(VLOOKUP(F7138,Translation!$A:$C,3,FALSE),F7138)","v":"UNIT"},{"$f":"IFERROR(VLOOKUP(G7138,Translation!$A:$C,3,FALSE),G7138)","v":"113374.0"},{"$f":"IFERROR(VLOOKUP(H7138,Translation!$A:$C,3,FALSE),H7138)","v":0}]
[3,"Cumul 2017","ALL","Assurance de portefeuille (nouveaux prêts)",21140,"UNIT","21140.0",0,{"$f":"IFERROR(VLOOKUP(A7139,Translation!$A:$C,3,FALSE),A7139)","v":3},{"$f":"IFERROR(VLOOKUP(B7139,Translation!$A:$C,3,FALSE),B7139)","v":"Cumul 2017"},{"$f":"IFERROR(VLOOKUP(C7139,Translation!$A:$C,3,FALSE),C7139)","v":"ALL"},{"$f":"IFERROR(VLOOKUP(D7139,Translation!$A:$C,3,FALSE),D7139)","v":"Assurance de portefeuille (nouveaux prêts)"},{"$f":"IFERROR(VLOOKUP(E7139,Translation!$A:$C,3,FALSE),E7139)","v":21140},{"$f":"IFERROR(VLOOKUP(F7139,Translation!$A:$C,3,FALSE),F7139)","v":"UNIT"},{"$f":"IFERROR(VLOOKUP(G7139,Translation!$A:$C,3,FALSE),G7139)","v":"21140.0"},{"$f":"IFERROR(VLOOKUP(H7139,Translation!$A:$C,3,FALSE),H7139)","v":0}]
[3,"Cumul 2017","ALL","Assurance de portefeuille (prêts de substitution)",40647,"UNIT","40647.0",0,{"$f":"IFERROR(VLOOKUP(A7140,Translation!$A:$C,3,FALSE),A7140)","v":3},{"$f":"IFERROR(VLOOKUP(B7140,Translation!$A:$C,3,FALSE),B7140)","v":"Cumul 2017"},{"$f":"IFERROR(VLOOKUP(C7140,Translation!$A:$C,3,FALSE),C7140)","v":"ALL"},{"$f":"IFERROR(VLOOKUP(D7140,Translation!$A:$C,3,FALSE),D7140)","v":"Assurance de portefeuille (prêts de substitution)"},{"$f":"IFERROR(VLOOKUP(E7140,Translation!$A:$C,3,FALSE),E7140)","v":40647},{"$f":"IFERROR(VLOOKUP(F7140,Translation!$A:$C,3,FALSE),F7140)","v":"UNIT"},{"$f":"IFERROR(VLOOKUP(G7140,Translation!$A:$C,3,FALSE),G7140)","v":"40647.0"},{"$f":"IFERROR(VLOOKUP(H7140,Translation!$A:$C,3,FALSE),H7140)","v":0}]
[3,"Cumul 2017","ALL","IMMEUBLES COLLECTIFS RÉSIDENTIELS",119738,"UNIT","119738.0",0,{"$f":"IFERROR(VLOOKUP(A7141,Translation!$A:$C,3,FALSE),A7141)","v":3},{"$f":"IFERROR(VLOOKUP(B7141,Translation!$A:$C,3,FALSE),B7141)","v":"Cumul 2017"},{"$f":"IFERROR(VLOOKUP(C7141,Translation!$A:$C,3,FALSE),C7141)","v":"ALL"},{"$f":"IFERROR(VLOOKUP(D7141,Translation!$A:$C,3,FALSE),D7141)","v":"IMMEUBLES COLLECTIFS RÉSIDENTIELS"},{"$f":"IFERROR(VLOOKUP(E7141,Translation!$A:$C,3,FALSE),E7141)","v":119738},{"$f":"IFERROR(VLOOKUP(F7141,Translation!$A:$C,3,FALSE),F7141)","v":"UNIT"},{"$f":"IFERROR(VLOOKUP(G7141,Translation!$A:$C,3,FALSE),G7141)","v":"119738.0"},{"$f":"IFERROR(VLOOKUP(H7141,Translation!$A:$C,3,FALSE),H7141)","v":0}]
[3,"Cumul 2017","ALL","Total Insured Volumes (units)",294899,"UNIT","294899.0",0,{"$f":"IFERROR(VLOOKUP(A7142,Translation!$A:$C,3,FALSE),A7142)","v":3},{"$f":"IFERROR(VLOOKUP(B7142,Translation!$A:$C,3,FALSE),B7142)","v":"Cumul 2017"},{"$f":"IFERROR(VLOOKUP(C7142,Translation!$A:$C,3,FALSE),C7142)","v":"ALL"},{"$f":"IFERROR(VLOOKUP(D7142,Translation!$A:$C,3,FALSE),D7142)","v":"Total Insured Volumes (units)"},{"$f":"IFERROR(VLOOKUP(E7142,Translation!$A:$C,3,FALSE),E7142)","v":294899},{"$f":"IFERROR(VLOOKUP(F7142,Translation!$A:$C,3,FALSE),F7142)","v":"UNIT"},{"$f":"IFERROR(VLOOKUP(G7142,Translation!$A:$C,3,FALSE),G7142)","v":"294899.0"},{"$f":"IFERROR(VLOOKUP(H7142,Translation!$A:$C,3,FALSE),H7142)","v":0}]
[3,"Cumul 2017","ALL","PROPRIÉTAIRES-OCCUPANTS, À L’UNITÉ",29611767895.090839,"AMT","29611767895.1",0,{"$f":"IFERROR(VLOOKUP(A7143,Translation!$A:$C,3,FALSE),A7143)","v":3},{"$f":"IFERROR(VLOOKUP(B7143,Translation!$A:$C,3,FALSE),B7143)","v":"Cumul 2017"},{"$f":"IFERROR(VLOOKUP(C7143,Translation!$A:$C,3,FALSE),C7143)","v":"ALL"},{"$f":"IFERROR(VLOOKUP(D7143,Translation!$A:$C,3,FALSE),D7143)","v":"PROPRIÉTAIRES-OCCUPANTS, À L’UNITÉ"},{"$f":"IFERROR(VLOOKUP(E7143,Translation!$A:$C,3,FALSE),E7143)","v":29611767895.090839},{"$f":"IFERROR(VLOOKUP(F7143,Translation!$A:$C,3,FALSE),F7143)","v":"AMT"},{"$f":"IFERROR(VLOOKUP(G7143,Translation!$A:$C,3,FALSE),G7143)","v":"29611767895.1"},{"$f":"IFERROR(VLOOKUP(H7143,Translation!$A:$C,3,FALSE),H7143)","v":0}]
[3,"Cumul 2017","ALL","Assurance de portefeuille (nouveaux prêts)",5164560835.9700003,"AMT","5164560836.0",0,{"$f":"IFERROR(VLOOKUP(A7144,Translation!$A:$C,3,FALSE),A7144)","v":3},{"$f":"IFERROR(VLOOKUP(B7144,Translation!$A:$C,3,FALSE),B7144)","v":"Cumul 2017"},{"$f":"IFERROR(VLOOKUP(C7144,Translation!$A:$C,3,FALSE),C7144)","v":"ALL"},{"$f":"IFERROR(VLOOKUP(D7144,Translation!$A:$C,3,FALSE),D7144)","v":"Assurance de portefeuille (nouveaux prêts)"},{"$f":"IFERROR(VLOOKUP(E7144,Translation!$A:$C,3,FALSE),E7144)","v":5164560835.9700003},{"$f":"IFERROR(VLOOKUP(F7144,Translation!$A:$C,3,FALSE),F7144)","v":"AMT"},{"$f":"IFERROR(VLOOKUP(G7144,Translation!$A:$C,3,FALSE),G7144)","v":"5164560836.0"},{"$f":"IFERROR(VLOOKUP(H7144,Translation!$A:$C,3,FALSE),H7144)","v":0}]
[3,"Cumul 2017","ALL","Assurance de portefeuille (prêts de substitution)",7337401674.6299772,"AMT","7337401674.6",0,{"$f":"IFERROR(VLOOKUP(A7145,Translation!$A:$C,3,FALSE),A7145)","v":3},{"$f":"IFERROR(VLOOKUP(B7145,Translation!$A:$C,3,FALSE),B7145)","v":"Cumul 2017"},{"$f":"IFERROR(VLOOKUP(C7145,Translation!$A:$C,3,FALSE),C7145)","v":"ALL"},{"$f":"IFERROR(VLOOKUP(D7145,Translation!$A:$C,3,FALSE),D7145)","v":"Assurance de portefeuille (prêts de substitution)"},{"$f":"IFERROR(VLOOKUP(E7145,Translation!$A:$C,3,FALSE),E7145)","v":7337401674.6299772},{"$f":"IFERROR(VLOOKUP(F7145,Translation!$A:$C,3,FALSE),F7145)","v":"AMT"},{"$f":"IFERROR(VLOOKUP(G7145,Translation!$A:$C,3,FALSE),G7145)","v":"7337401674.6"},{"$f":"IFERROR(VLOOKUP(H7145,Translation!$A:$C,3,FALSE),H7145)","v":0}]
[3,"Cumul 2017","ALL","IMMEUBLES COLLECTIFS RÉSIDENTIELS",11455193369.550028,"AMT","11455193369.6",0,{"$f":"IFERROR(VLOOKUP(A7146,Translation!$A:$C,3,FALSE),A7146)","v":3},{"$f":"IFERROR(VLOOKUP(B7146,Translation!$A:$C,3,FALSE),B7146)","v":"Cumul 2017"},{"$f":"IFERROR(VLOOKUP(C7146,Translation!$A:$C,3,FALSE),C7146)","v":"ALL"},{"$f":"IFERROR(VLOOKUP(D7146,Translation!$A:$C,3,FALSE),D7146)","v":"IMMEUBLES COLLECTIFS RÉSIDENTIELS"},{"$f":"IFERROR(VLOOKUP(E7146,Translation!$A:$C,3,FALSE),E7146)","v":11455193369.550028},{"$f":"IFERROR(VLOOKUP(F7146,Translation!$A:$C,3,FALSE),F7146)","v":"AMT"},{"$f":"IFERROR(VLOOKUP(G7146,Translation!$A:$C,3,FALSE),G7146)","v":"11455193369.6"},{"$f":"IFERROR(VLOOKUP(H7146,Translation!$A:$C,3,FALSE),H7146)","v":0}]
[3,"Cumul 2017","ALL","Volume total d'assurance (M$)",53568923775.240837,"AMT","53568923775.2",0,{"$f":"IFERROR(VLOOKUP(A7147,Translation!$A:$C,3,FALSE),A7147)","v":3},{"$f":"IFERROR(VLOOKUP(B7147,Translation!$A:$C,3,FALSE),B7147)","v":"Cumul 2017"},{"$f":"IFERROR(VLOOKUP(C7147,Translation!$A:$C,3,FALSE),C7147)","v":"ALL"},{"$f":"IFERROR(VLOOKUP(D7147,Translation!$A:$C,3,FALSE),D7147)","v":"Volume total d'assurance (M$)"},{"$f":"IFERROR(VLOOKUP(E7147,Translation!$A:$C,3,FALSE),E7147)","v":53568923775.240837},{"$f":"IFERROR(VLOOKUP(F7147,Translation!$A:$C,3,FALSE),F7147)","v":"AMT"},{"$f":"IFERROR(VLOOKUP(G7147,Translation!$A:$C,3,FALSE),G7147)","v":"53568923775.2"},{"$f":"IFERROR(VLOOKUP(H7147,Translation!$A:$C,3,FALSE),H7147)","v":0}]
[3,"T4 2018","ALL","PROPRIÉTAIRES-OCCUPANTS, À L’UNITÉ",23961,"UNIT","23961.0",0,{"$f":"IFERROR(VLOOKUP(A7148,Translation!$A:$C,3,FALSE),A7148)","v":3},{"$f":"IFERROR(VLOOKUP(B7148,Translation!$A:$C,3,FALSE),B7148)","v":"T4 2018"},{"$f":"IFERROR(VLOOKUP(C7148,Translation!$A:$C,3,FALSE),C7148)","v":"ALL"},{"$f":"IFERROR(VLOOKUP(D7148,Translation!$A:$C,3,FALSE),D7148)","v":"PROPRIÉTAIRES-OCCUPANTS, À L’UNITÉ"},{"$f":"IFERROR(VLOOKUP(E7148,Translation!$A:$C,3,FALSE),E7148)","v":23961},{"$f":"IFERROR(VLOOKUP(F7148,Translation!$A:$C,3,FALSE),F7148)","v":"UNIT"},{"$f":"IFERROR(VLOOKUP(G7148,Translation!$A:$C,3,FALSE),G7148)","v":"23961.0"},{"$f":"IFERROR(VLOOKUP(H7148,Translation!$A:$C,3,FALSE),H7148)","v":0}]
[3,"T4 2018","ALL","Assurance de portefeuille (nouveaux prêts)",5201,"UNIT","5201.0",0,{"$f":"IFERROR(VLOOKUP(A7149,Translation!$A:$C,3,FALSE),A7149)","v":3},{"$f":"IFERROR(VLOOKUP(B7149,Translation!$A:$C,3,FALSE),B7149)","v":"T4 2018"},{"$f":"IFERROR(VLOOKUP(C7149,Translation!$A:$C,3,FALSE),C7149)","v":"ALL"},{"$f":"IFERROR(VLOOKUP(D7149,Translation!$A:$C,3,FALSE),D7149)","v":"Assurance de portefeuille (nouveaux prêts)"},{"$f":"IFERROR(VLOOKUP(E7149,Translation!$A:$C,3,FALSE),E7149)","v":5201},{"$f":"IFERROR(VLOOKUP(F7149,Translation!$A:$C,3,FALSE),F7149)","v":"UNIT"},{"$f":"IFERROR(VLOOKUP(G7149,Translation!$A:$C,3,FALSE),G7149)","v":"5201.0"},{"$f":"IFERROR(VLOOKUP(H7149,Translation!$A:$C,3,FALSE),H7149)","v":0}]
[3,"T4 2018","ALL","Assurance de portefeuille (prêts de substitution)",1603,"UNIT","1603.0",0,{"$f":"IFERROR(VLOOKUP(A7150,Translation!$A:$C,3,FALSE),A7150)","v":3},{"$f":"IFERROR(VLOOKUP(B7150,Translation!$A:$C,3,FALSE),B7150)","v":"T4 2018"},{"$f":"IFERROR(VLOOKUP(C7150,Translation!$A:$C,3,FALSE),C7150)","v":"ALL"},{"$f":"IFERROR(VLOOKUP(D7150,Translation!$A:$C,3,FALSE),D7150)","v":"Assurance de portefeuille (prêts de substitution)"},{"$f":"IFERROR(VLOOKUP(E7150,Translation!$A:$C,3,FALSE),E7150)","v":1603},{"$f":"IFERROR(VLOOKUP(F7150,Translation!$A:$C,3,FALSE),F7150)","v":"UNIT"},{"$f":"IFERROR(VLOOKUP(G7150,Translation!$A:$C,3,FALSE),G7150)","v":"1603.0"},{"$f":"IFERROR(VLOOKUP(H7150,Translation!$A:$C,3,FALSE),H7150)","v":0}]
[3,"T4 2018","ALL","IMMEUBLES COLLECTIFS RÉSIDENTIELS",36195,"UNIT","36195.0",0,{"$f":"IFERROR(VLOOKUP(A7151,Translation!$A:$C,3,FALSE),A7151)","v":3},{"$f":"IFERROR(VLOOKUP(B7151,Translation!$A:$C,3,FALSE),B7151)","v":"T4 2018"},{"$f":"IFERROR(VLOOKUP(C7151,Translation!$A:$C,3,FALSE),C7151)","v":"ALL"},{"$f":"IFERROR(VLOOKUP(D7151,Translation!$A:$C,3,FALSE),D7151)","v":"IMMEUBLES COLLECTIFS RÉSIDENTIELS"},{"$f":"IFERROR(VLOOKUP(E7151,Translation!$A:$C,3,FALSE),E7151)","v":36195},{"$f":"IFERROR(VLOOKUP(F7151,Translation!$A:$C,3,FALSE),F7151)","v":"UNIT"},{"$f":"IFERROR(VLOOKUP(G7151,Translation!$A:$C,3,FALSE),G7151)","v":"36195.0"},{"$f":"IFERROR(VLOOKUP(H7151,Translation!$A:$C,3,FALSE),H7151)","v":0}]
[3,"T4 2018","ALL","Total Insured Volumes (units)",66960,"UNIT","66960.0",0,{"$f":"IFERROR(VLOOKUP(A7152,Translation!$A:$C,3,FALSE),A7152)","v":3},{"$f":"IFERROR(VLOOKUP(B7152,Translation!$A:$C,3,FALSE),B7152)","v":"T4 2018"},{"$f":"IFERROR(VLOOKUP(C7152,Translation!$A:$C,3,FALSE),C7152)","v":"ALL"},{"$f":"IFERROR(VLOOKUP(D7152,Translation!$A:$C,3,FALSE),D7152)","v":"Total Insured Volumes (units)"},{"$f":"IFERROR(VLOOKUP(E7152,Translation!$A:$C,3,FALSE),E7152)","v":66960},{"$f":"IFERROR(VLOOKUP(F7152,Translation!$A:$C,3,FALSE),F7152)","v":"UNIT"},{"$f":"IFERROR(VLOOKUP(G7152,Translation!$A:$C,3,FALSE),G7152)","v":"66960.0"},{"$f":"IFERROR(VLOOKUP(H7152,Translation!$A:$C,3,FALSE),H7152)","v":0}]
[3,"T4 2018","ALL","PROPRIÉTAIRES-OCCUPANTS, À L’UNITÉ",6425929804.1803751,"AMT","6425929804.2",0,{"$f":"IFERROR(VLOOKUP(A7153,Translation!$A:$C,3,FALSE),A7153)","v":3},{"$f":"IFERROR(VLOOKUP(B7153,Translation!$A:$C,3,FALSE),B7153)","v":"T4 2018"},{"$f":"IFERROR(VLOOKUP(C7153,Translation!$A:$C,3,FALSE),C7153)","v":"ALL"},{"$f":"IFERROR(VLOOKUP(D7153,Translation!$A:$C,3,FALSE),D7153)","v":"PROPRIÉTAIRES-OCCUPANTS, À L’UNITÉ"},{"$f":"IFERROR(VLOOKUP(E7153,Translation!$A:$C,3,FALSE),E7153)","v":6425929804.1803751},{"$f":"IFERROR(VLOOKUP(F7153,Translation!$A:$C,3,FALSE),F7153)","v":"AMT"},{"$f":"IFERROR(VLOOKUP(G7153,Translation!$A:$C,3,FALSE),G7153)","v":"6425929804.2"},{"$f":"IFERROR(VLOOKUP(H7153,Translation!$A:$C,3,FALSE),H7153)","v":0}]
[3,"T4 2018","ALL","Assurance de portefeuille (nouveaux prêts)",1203724334.7399735,"AMT","1203724334.7",0,{"$f":"IFERROR(VLOOKUP(A7154,Translation!$A:$C,3,FALSE),A7154)","v":3},{"$f":"IFERROR(VLOOKUP(B7154,Translation!$A:$C,3,FALSE),B7154)","v":"T4 2018"},{"$f":"IFERROR(VLOOKUP(C7154,Translation!$A:$C,3,FALSE),C7154)","v":"ALL"},{"$f":"IFERROR(VLOOKUP(D7154,Translation!$A:$C,3,FALSE),D7154)","v":"Assurance de portefeuille (nouveaux prêts)"},{"$f":"IFERROR(VLOOKUP(E7154,Translation!$A:$C,3,FALSE),E7154)","v":1203724334.7399735},{"$f":"IFERROR(VLOOKUP(F7154,Translation!$A:$C,3,FALSE),F7154)","v":"AMT"},{"$f":"IFERROR(VLOOKUP(G7154,Translation!$A:$C,3,FALSE),G7154)","v":"1203724334.7"},{"$f":"IFERROR(VLOOKUP(H7154,Translation!$A:$C,3,FALSE),H7154)","v":0}]
[3,"T4 2018","ALL","Assurance de portefeuille (prêts de substitution)",318628246.52999562,"AMT","318628246.5",0,{"$f":"IFERROR(VLOOKUP(A7155,Translation!$A:$C,3,FALSE),A7155)","v":3},{"$f":"IFERROR(VLOOKUP(B7155,Translation!$A:$C,3,FALSE),B7155)","v":"T4 2018"},{"$f":"IFERROR(VLOOKUP(C7155,Translation!$A:$C,3,FALSE),C7155)","v":"ALL"},{"$f":"IFERROR(VLOOKUP(D7155,Translation!$A:$C,3,FALSE),D7155)","v":"Assurance de portefeuille (prêts de substitution)"},{"$f":"IFERROR(VLOOKUP(E7155,Translation!$A:$C,3,FALSE),E7155)","v":318628246.52999562},{"$f":"IFERROR(VLOOKUP(F7155,Translation!$A:$C,3,FALSE),F7155)","v":"AMT"},{"$f":"IFERROR(VLOOKUP(G7155,Translation!$A:$C,3,FALSE),G7155)","v":"318628246.5"},{"$f":"IFERROR(VLOOKUP(H7155,Translation!$A:$C,3,FALSE),H7155)","v":0}]
[3,"T4 2018","ALL","IMMEUBLES COLLECTIFS RÉSIDENTIELS",4209418102.9000192,"AMT","4209418102.9",0,{"$f":"IFERROR(VLOOKUP(A7156,Translation!$A:$C,3,FALSE),A7156)","v":3},{"$f":"IFERROR(VLOOKUP(B7156,Translation!$A:$C,3,FALSE),B7156)","v":"T4 2018"},{"$f":"IFERROR(VLOOKUP(C7156,Translation!$A:$C,3,FALSE),C7156)","v":"ALL"},{"$f":"IFERROR(VLOOKUP(D7156,Translation!$A:$C,3,FALSE),D7156)","v":"IMMEUBLES COLLECTIFS RÉSIDENTIELS"},{"$f":"IFERROR(VLOOKUP(E7156,Translation!$A:$C,3,FALSE),E7156)","v":4209418102.9000192},{"$f":"IFERROR(VLOOKUP(F7156,Translation!$A:$C,3,FALSE),F7156)","v":"AMT"},{"$f":"IFERROR(VLOOKUP(G7156,Translation!$A:$C,3,FALSE),G7156)","v":"4209418102.9"},{"$f":"IFERROR(VLOOKUP(H7156,Translation!$A:$C,3,FALSE),H7156)","v":0}]
[3,"T4 2018","ALL","Volume total d'assurance (M$)",12157700488.350363,"AMT","12157700488.4",0,{"$f":"IFERROR(VLOOKUP(A7157,Translation!$A:$C,3,FALSE),A7157)","v":3},{"$f":"IFERROR(VLOOKUP(B7157,Translation!$A:$C,3,FALSE),B7157)","v":"T4 2018"},{"$f":"IFERROR(VLOOKUP(C7157,Translation!$A:$C,3,FALSE),C7157)","v":"ALL"},{"$f":"IFERROR(VLOOKUP(D7157,Translation!$A:$C,3,FALSE),D7157)","v":"Volume total d'assurance (M$)"},{"$f":"IFERROR(VLOOKUP(E7157,Translation!$A:$C,3,FALSE),E7157)","v":12157700488.350363},{"$f":"IFERROR(VLOOKUP(F7157,Translation!$A:$C,3,FALSE),F7157)","v":"AMT"},{"$f":"IFERROR(VLOOKUP(G7157,Translation!$A:$C,3,FALSE),G7157)","v":"12157700488.4"},{"$f":"IFERROR(VLOOKUP(H7157,Translation!$A:$C,3,FALSE),H7157)","v":0}]
[3,"T3 2018","ALL","Terre-Neuve-et-Labrador",1.0188920644229702,"Prêts hypothécaires assurés au cours de la période selon la province (%)","1.0",0,{"$f":"IFERROR(VLOOKUP(A7158,Translation!$A:$C,3,FALSE),A7158)","v":3},{"$f":"IFERROR(VLOOKUP(B7158,Translation!$A:$C,3,FALSE),B7158)","v":"T3 2018"},{"$f":"IFERROR(VLOOKUP(C7158,Translation!$A:$C,3,FALSE),C7158)","v":"ALL"},{"$f":"IFERROR(VLOOKUP(D7158,Translation!$A:$C,3,FALSE),D7158)","v":"Terre-Neuve-et-Labrador"},{"$f":"IFERROR(VLOOKUP(E7158,Translation!$A:$C,3,FALSE),E7158)","v":1.0188920644229702},{"$f":"IFERROR(VLOOKUP(F7158,Translation!$A:$C,3,FALSE),F7158)","v":"Prêts hypothécaires assurés au cours de la période selon la province (%)"},{"$f":"IFERROR(VLOOKUP(G7158,Translation!$A:$C,3,FALSE),G7158)","v":"1.0"},{"$f":"IFERROR(VLOOKUP(H7158,Translation!$A:$C,3,FALSE),H7158)","v":0}]
[3,"T3 2018","ALL","Île-du-Prince-Édouard",0.3541358561419985,"Prêts hypothécaires assurés au cours de la période selon la province (%)","0.4",0,{"$f":"IFERROR(VLOOKUP(A7159,Translation!$A:$C,3,FALSE),A7159)","v":3},{"$f":"IFERROR(VLOOKUP(B7159,Translation!$A:$C,3,FALSE),B7159)","v":"T3 2018"},{"$f":"IFERROR(VLOOKUP(C7159,Translation!$A:$C,3,FALSE),C7159)","v":"ALL"},{"$f":"IFERROR(VLOOKUP(D7159,Translation!$A:$C,3,FALSE),D7159)","v":"Île-du-Prince-Édouard"},{"$f":"IFERROR(VLOOKUP(E7159,Translation!$A:$C,3,FALSE),E7159)","v":0.3541358561419985},{"$f":"IFERROR(VLOOKUP(F7159,Translation!$A:$C,3,FALSE),F7159)","v":"Prêts hypothécaires assurés au cours de la période selon la province (%)"},{"$f":"IFERROR(VLOOKUP(G7159,Translation!$A:$C,3,FALSE),G7159)","v":"0.4"},{"$f":"IFERROR(VLOOKUP(H7159,Translation!$A:$C,3,FALSE),H7159)","v":0}]
[3,"T3 2018","ALL","Nouvelle-Écosse",3.5061628539110408,"Prêts hypothécaires assurés au cours de la période selon la province (%)","3.5",0,{"$f":"IFERROR(VLOOKUP(A7160,Translation!$A:$C,3,FALSE),A7160)","v":3},{"$f":"IFERROR(VLOOKUP(B7160,Translation!$A:$C,3,FALSE),B7160)","v":"T3 2018"},{"$f":"IFERROR(VLOOKUP(C7160,Translation!$A:$C,3,FALSE),C7160)","v":"ALL"},{"$f":"IFERROR(VLOOKUP(D7160,Translation!$A:$C,3,FALSE),D7160)","v":"Nouvelle-Écosse"},{"$f":"IFERROR(VLOOKUP(E7160,Translation!$A:$C,3,FALSE),E7160)","v":3.5061628539110408},{"$f":"IFERROR(VLOOKUP(F7160,Translation!$A:$C,3,FALSE),F7160)","v":"Prêts hypothécaires assurés au cours de la période selon la province (%)"},{"$f":"IFERROR(VLOOKUP(G7160,Translation!$A:$C,3,FALSE),G7160)","v":"3.5"},{"$f":"IFERROR(VLOOKUP(H7160,Translation!$A:$C,3,FALSE),H7160)","v":0}]
[3,"T3 2018","ALL","Nouveau-Brunswick",1.5782056546869947,"Prêts hypothécaires assurés au cours de la période selon la province (%)","1.6",0,{"$f":"IFERROR(VLOOKUP(A7161,Translation!$A:$C,3,FALSE),A7161)","v":3},{"$f":"IFERROR(VLOOKUP(B7161,Translation!$A:$C,3,FALSE),B7161)","v":"T3 2018"},{"$f":"IFERROR(VLOOKUP(C7161,Translation!$A:$C,3,FALSE),C7161)","v":"ALL"},{"$f":"IFERROR(VLOOKUP(D7161,Translation!$A:$C,3,FALSE),D7161)","v":"Nouveau-Brunswick"},{"$f":"IFERROR(VLOOKUP(E7161,Translation!$A:$C,3,FALSE),E7161)","v":1.5782056546869947},{"$f":"IFERROR(VLOOKUP(F7161,Translation!$A:$C,3,FALSE),F7161)","v":"Prêts hypothécaires assurés au cours de la période selon la province (%)"},{"$f":"IFERROR(VLOOKUP(G7161,Translation!$A:$C,3,FALSE),G7161)","v":"1.6"},{"$f":"IFERROR(VLOOKUP(H7161,Translation!$A:$C,3,FALSE),H7161)","v":0}]
[3,"T3 2018","ALL","Québec",21.964478863717485,"Prêts hypothécaires assurés au cours de la période selon la province (%)","22.0",0,{"$f":"IFERROR(VLOOKUP(A7162,Translation!$A:$C,3,FALSE),A7162)","v":3},{"$f":"IFERROR(VLOOKUP(B7162,Translation!$A:$C,3,FALSE),B7162)","v":"T3 2018"},{"$f":"IFERROR(VLOOKUP(C7162,Translation!$A:$C,3,FALSE),C7162)","v":"ALL"},{"$f":"IFERROR(VLOOKUP(D7162,Translation!$A:$C,3,FALSE),D7162)","v":"Québec"},{"$f":"IFERROR(VLOOKUP(E7162,Translation!$A:$C,3,FALSE),E7162)","v":21.964478863717485},{"$f":"IFERROR(VLOOKUP(F7162,Translation!$A:$C,3,FALSE),F7162)","v":"Prêts hypothécaires assurés au cours de la période selon la province (%)"},{"$f":"IFERROR(VLOOKUP(G7162,Translation!$A:$C,3,FALSE),G7162)","v":"22.0"},{"$f":"IFERROR(VLOOKUP(H7162,Translation!$A:$C,3,FALSE),H7162)","v":0}]
[3,"T3 2018","ALL","Ontario",37.633661523843507,"Prêts hypothécaires assurés au cours de la période selon la province (%)","37.6",0,{"$f":"IFERROR(VLOOKUP(A7163,Translation!$A:$C,3,FALSE),A7163)","v":3},{"$f":"IFERROR(VLOOKUP(B7163,Translation!$A:$C,3,FALSE),B7163)","v":"T3 2018"},{"$f":"IFERROR(VLOOKUP(C7163,Translation!$A:$C,3,FALSE),C7163)","v":"ALL"},{"$f":"IFERROR(VLOOKUP(D7163,Translation!$A:$C,3,FALSE),D7163)","v":"Ontario"},{"$f":"IFERROR(VLOOKUP(E7163,Translation!$A:$C,3,FALSE),E7163)","v":37.633661523843507},{"$f":"IFERROR(VLOOKUP(F7163,Translation!$A:$C,3,FALSE),F7163)","v":"Prêts hypothécaires assurés au cours de la période selon la province (%)"},{"$f":"IFERROR(VLOOKUP(G7163,Translation!$A:$C,3,FALSE),G7163)","v":"37.6"},{"$f":"IFERROR(VLOOKUP(H7163,Translation!$A:$C,3,FALSE),H7163)","v":0}]
[3,"T3 2018","ALL","Manitoba",4.1760542037009092,"Prêts hypothécaires assurés au cours de la période selon la province (%)","4.2",0,{"$f":"IFERROR(VLOOKUP(A7164,Translation!$A:$C,3,FALSE),A7164)","v":3},{"$f":"IFERROR(VLOOKUP(B7164,Translation!$A:$C,3,FALSE),B7164)","v":"T3 2018"},{"$f":"IFERROR(VLOOKUP(C7164,Translation!$A:$C,3,FALSE),C7164)","v":"ALL"},{"$f":"IFERROR(VLOOKUP(D7164,Translation!$A:$C,3,FALSE),D7164)","v":"Manitoba"},{"$f":"IFERROR(VLOOKUP(E7164,Translation!$A:$C,3,FALSE),E7164)","v":4.1760542037009092},{"$f":"IFERROR(VLOOKUP(F7164,Translation!$A:$C,3,FALSE),F7164)","v":"Prêts hypothécaires assurés au cours de la période selon la province (%)"},{"$f":"IFERROR(VLOOKUP(G7164,Translation!$A:$C,3,FALSE),G7164)","v":"4.2"},{"$f":"IFERROR(VLOOKUP(H7164,Translation!$A:$C,3,FALSE),H7164)","v":0}]
[3,"T3 2018","ALL","Saskatchewan",2.181385325149968,"Prêts hypothécaires assurés au cours de la période selon la province (%)","2.2",0,{"$f":"IFERROR(VLOOKUP(A7165,Translation!$A:$C,3,FALSE),A7165)","v":3},{"$f":"IFERROR(VLOOKUP(B7165,Translation!$A:$C,3,FALSE),B7165)","v":"T3 2018"},{"$f":"IFERROR(VLOOKUP(C7165,Translation!$A:$C,3,FALSE),C7165)","v":"ALL"},{"$f":"IFERROR(VLOOKUP(D7165,Translation!$A:$C,3,FALSE),D7165)","v":"Saskatchewan"},{"$f":"IFERROR(VLOOKUP(E7165,Translation!$A:$C,3,FALSE),E7165)","v":2.181385325149968},{"$f":"IFERROR(VLOOKUP(F7165,Translation!$A:$C,3,FALSE),F7165)","v":"Prêts hypothécaires assurés au cours de la période selon la province (%)"},{"$f":"IFERROR(VLOOKUP(G7165,Translation!$A:$C,3,FALSE),G7165)","v":"2.2"},{"$f":"IFERROR(VLOOKUP(H7165,Translation!$A:$C,3,FALSE),H7165)","v":0}]
[3,"T3 2018","ALL","Alberta",13.777649881528022,"Prêts hypothécaires assurés au cours de la période selon la province (%)","13.8",0,{"$f":"IFERROR(VLOOKUP(A7166,Translation!$A:$C,3,FALSE),A7166)","v":3},{"$f":"IFERROR(VLOOKUP(B7166,Translation!$A:$C,3,FALSE),B7166)","v":"T3 2018"},{"$f":"IFERROR(VLOOKUP(C7166,Translation!$A:$C,3,FALSE),C7166)","v":"ALL"},{"$f":"IFERROR(VLOOKUP(D7166,Translation!$A:$C,3,FALSE),D7166)","v":"Alberta"},{"$f":"IFERROR(VLOOKUP(E7166,Translation!$A:$C,3,FALSE),E7166)","v":13.777649881528022},{"$f":"IFERROR(VLOOKUP(F7166,Translation!$A:$C,3,FALSE),F7166)","v":"Prêts hypothécaires assurés au cours de la période selon la province (%)"},{"$f":"IFERROR(VLOOKUP(G7166,Translation!$A:$C,3,FALSE),G7166)","v":"13.8"},{"$f":"IFERROR(VLOOKUP(H7166,Translation!$A:$C,3,FALSE),H7166)","v":0}]
[3,"T3 2018","ALL","Colombie-Britannique",13.282499518077241,"Prêts hypothécaires assurés au cours de la période selon la province (%)","13.3",0,{"$f":"IFERROR(VLOOKUP(A7167,Translation!$A:$C,3,FALSE),A7167)","v":3},{"$f":"IFERROR(VLOOKUP(B7167,Translation!$A:$C,3,FALSE),B7167)","v":"T3 2018"},{"$f":"IFERROR(VLOOKUP(C7167,Translation!$A:$C,3,FALSE),C7167)","v":"ALL"},{"$f":"IFERROR(VLOOKUP(D7167,Translation!$A:$C,3,FALSE),D7167)","v":"Colombie-Britannique"},{"$f":"IFERROR(VLOOKUP(E7167,Translation!$A:$C,3,FALSE),E7167)","v":13.282499518077241},{"$f":"IFERROR(VLOOKUP(F7167,Translation!$A:$C,3,FALSE),F7167)","v":"Prêts hypothécaires assurés au cours de la période selon la province (%)"},{"$f":"IFERROR(VLOOKUP(G7167,Translation!$A:$C,3,FALSE),G7167)","v":"13.3"},{"$f":"IFERROR(VLOOKUP(H7167,Translation!$A:$C,3,FALSE),H7167)","v":0}]
[3,"T3 2018","ALL","Territoires",0.52687425481985317,"Prêts hypothécaires assurés au cours de la période selon la province (%)","0.5",0,{"$f":"IFERROR(VLOOKUP(A7168,Translation!$A:$C,3,FALSE),A7168)","v":3},{"$f":"IFERROR(VLOOKUP(B7168,Translation!$A:$C,3,FALSE),B7168)","v":"T3 2018"},{"$f":"IFERROR(VLOOKUP(C7168,Translation!$A:$C,3,FALSE),C7168)","v":"ALL"},{"$f":"IFERROR(VLOOKUP(D7168,Translation!$A:$C,3,FALSE),D7168)","v":"Territoires"},{"$f":"IFERROR(VLOOKUP(E7168,Translation!$A:$C,3,FALSE),E7168)","v":0.52687425481985317},{"$f":"IFERROR(VLOOKUP(F7168,Translation!$A:$C,3,FALSE),F7168)","v":"Prêts hypothécaires assurés au cours de la période selon la province (%)"},{"$f":"IFERROR(VLOOKUP(G7168,Translation!$A:$C,3,FALSE),G7168)","v":"0.5"},{"$f":"IFERROR(VLOOKUP(H7168,Translation!$A:$C,3,FALSE),H7168)","v":0}]
[3,"T3 2018","ALL","PROPRIÉTAIRES-OCCUPANTS, À L’UNITÉ",30481,"UNIT","30481.0",0,{"$f":"IFERROR(VLOOKUP(A7169,Translation!$A:$C,3,FALSE),A7169)","v":3},{"$f":"IFERROR(VLOOKUP(B7169,Translation!$A:$C,3,FALSE),B7169)","v":"T3 2018"},{"$f":"IFERROR(VLOOKUP(C7169,Translation!$A:$C,3,FALSE),C7169)","v":"ALL"},{"$f":"IFERROR(VLOOKUP(D7169,Translation!$A:$C,3,FALSE),D7169)","v":"PROPRIÉTAIRES-OCCUPANTS, À L’UNITÉ"},{"$f":"IFERROR(VLOOKUP(E7169,Translation!$A:$C,3,FALSE),E7169)","v":30481},{"$f":"IFERROR(VLOOKUP(F7169,Translation!$A:$C,3,FALSE),F7169)","v":"UNIT"},{"$f":"IFERROR(VLOOKUP(G7169,Translation!$A:$C,3,FALSE),G7169)","v":"30481.0"},{"$f":"IFERROR(VLOOKUP(H7169,Translation!$A:$C,3,FALSE),H7169)","v":0}]
[3,"T3 2018","ALL","Assurance de portefeuille (nouveaux prêts)",5808,"UNIT","5808.0",0,{"$f":"IFERROR(VLOOKUP(A7170,Translation!$A:$C,3,FALSE),A7170)","v":3},{"$f":"IFERROR(VLOOKUP(B7170,Translation!$A:$C,3,FALSE),B7170)","v":"T3 2018"},{"$f":"IFERROR(VLOOKUP(C7170,Translation!$A:$C,3,FALSE),C7170)","v":"ALL"},{"$f":"IFERROR(VLOOKUP(D7170,Translation!$A:$C,3,FALSE),D7170)","v":"Assurance de portefeuille (nouveaux prêts)"},{"$f":"IFERROR(VLOOKUP(E7170,Translation!$A:$C,3,FALSE),E7170)","v":5808},{"$f":"IFERROR(VLOOKUP(F7170,Translation!$A:$C,3,FALSE),F7170)","v":"UNIT"},{"$f":"IFERROR(VLOOKUP(G7170,Translation!$A:$C,3,FALSE),G7170)","v":"5808.0"},{"$f":"IFERROR(VLOOKUP(H7170,Translation!$A:$C,3,FALSE),H7170)","v":0}]
[3,"T3 2018","ALL","Assurance de portefeuille (prêts de substitution)",1172,"UNIT","1172.0",0,{"$f":"IFERROR(VLOOKUP(A7171,Translation!$A:$C,3,FALSE),A7171)","v":3},{"$f":"IFERROR(VLOOKUP(B7171,Translation!$A:$C,3,FALSE),B7171)","v":"T3 2018"},{"$f":"IFERROR(VLOOKUP(C7171,Translation!$A:$C,3,FALSE),C7171)","v":"ALL"},{"$f":"IFERROR(VLOOKUP(D7171,Translation!$A:$C,3,FALSE),D7171)","v":"Assurance de portefeuille (prêts de substitution)"},{"$f":"IFERROR(VLOOKUP(E7171,Translation!$A:$C,3,FALSE),E7171)","v":1172},{"$f":"IFERROR(VLOOKUP(F7171,Translation!$A:$C,3,FALSE),F7171)","v":"UNIT"},{"$f":"IFERROR(VLOOKUP(G7171,Translation!$A:$C,3,FALSE),G7171)","v":"1172.0"},{"$f":"IFERROR(VLOOKUP(H7171,Translation!$A:$C,3,FALSE),H7171)","v":0}]
[3,"T3 2018","ALL","IMMEUBLES COLLECTIFS RÉSIDENTIELS",28218,"UNIT","28218.0",0,{"$f":"IFERROR(VLOOKUP(A7172,Translation!$A:$C,3,FALSE),A7172)","v":3},{"$f":"IFERROR(VLOOKUP(B7172,Translation!$A:$C,3,FALSE),B7172)","v":"T3 2018"},{"$f":"IFERROR(VLOOKUP(C7172,Translation!$A:$C,3,FALSE),C7172)","v":"ALL"},{"$f":"IFERROR(VLOOKUP(D7172,Translation!$A:$C,3,FALSE),D7172)","v":"IMMEUBLES COLLECTIFS RÉSIDENTIELS"},{"$f":"IFERROR(VLOOKUP(E7172,Translation!$A:$C,3,FALSE),E7172)","v":28218},{"$f":"IFERROR(VLOOKUP(F7172,Translation!$A:$C,3,FALSE),F7172)","v":"UNIT"},{"$f":"IFERROR(VLOOKUP(G7172,Translation!$A:$C,3,FALSE),G7172)","v":"28218.0"},{"$f":"IFERROR(VLOOKUP(H7172,Translation!$A:$C,3,FALSE),H7172)","v":0}]
[3,"T3 2018","ALL","Total Insured Volumes (units)",65679,"UNIT","65679.0",0,{"$f":"IFERROR(VLOOKUP(A7173,Translation!$A:$C,3,FALSE),A7173)","v":3},{"$f":"IFERROR(VLOOKUP(B7173,Translation!$A:$C,3,FALSE),B7173)","v":"T3 2018"},{"$f":"IFERROR(VLOOKUP(C7173,Translation!$A:$C,3,FALSE),C7173)","v":"ALL"},{"$f":"IFERROR(VLOOKUP(D7173,Translation!$A:$C,3,FALSE),D7173)","v":"Total Insured Volumes (units)"},{"$f":"IFERROR(VLOOKUP(E7173,Translation!$A:$C,3,FALSE),E7173)","v":65679},{"$f":"IFERROR(VLOOKUP(F7173,Translation!$A:$C,3,FALSE),F7173)","v":"UNIT"},{"$f":"IFERROR(VLOOKUP(G7173,Translation!$A:$C,3,FALSE),G7173)","v":"65679.0"},{"$f":"IFERROR(VLOOKUP(H7173,Translation!$A:$C,3,FALSE),H7173)","v":0}]
[3,"T3 2018","ALL","PROPRIÉTAIRES-OCCUPANTS, À L’UNITÉ",8244086283.8304348,"AMT","8244086283.8",0,{"$f":"IFERROR(VLOOKUP(A7174,Translation!$A:$C,3,FALSE),A7174)","v":3},{"$f":"IFERROR(VLOOKUP(B7174,Translation!$A:$C,3,FALSE),B7174)","v":"T3 2018"},{"$f":"IFERROR(VLOOKUP(C7174,Translation!$A:$C,3,FALSE),C7174)","v":"ALL"},{"$f":"IFERROR(VLOOKUP(D7174,Translation!$A:$C,3,FALSE),D7174)","v":"PROPRIÉTAIRES-OCCUPANTS, À L’UNITÉ"},{"$f":"IFERROR(VLOOKUP(E7174,Translation!$A:$C,3,FALSE),E7174)","v":8244086283.8304348},{"$f":"IFERROR(VLOOKUP(F7174,Translation!$A:$C,3,FALSE),F7174)","v":"AMT"},{"$f":"IFERROR(VLOOKUP(G7174,Translation!$A:$C,3,FALSE),G7174)","v":"8244086283.8"},{"$f":"IFERROR(VLOOKUP(H7174,Translation!$A:$C,3,FALSE),H7174)","v":0}]
[3,"T3 2018","ALL","Assurance de portefeuille (nouveaux prêts)",1512789799.160008,"AMT","1512789799.2",0,{"$f":"IFERROR(VLOOKUP(A7175,Translation!$A:$C,3,FALSE),A7175)","v":3},{"$f":"IFERROR(VLOOKUP(B7175,Translation!$A:$C,3,FALSE),B7175)","v":"T3 2018"},{"$f":"IFERROR(VLOOKUP(C7175,Translation!$A:$C,3,FALSE),C7175)","v":"ALL"},{"$f":"IFERROR(VLOOKUP(D7175,Translation!$A:$C,3,FALSE),D7175)","v":"Assurance de portefeuille (nouveaux prêts)"},{"$f":"IFERROR(VLOOKUP(E7175,Translation!$A:$C,3,FALSE),E7175)","v":1512789799.160008},{"$f":"IFERROR(VLOOKUP(F7175,Translation!$A:$C,3,FALSE),F7175)","v":"AMT"},{"$f":"IFERROR(VLOOKUP(G7175,Translation!$A:$C,3,FALSE),G7175)","v":"1512789799.2"},{"$f":"IFERROR(VLOOKUP(H7175,Translation!$A:$C,3,FALSE),H7175)","v":0}]
[3,"T3 2018","ALL","Assurance de portefeuille (prêts de substitution)",161935178.19000149,"AMT","161935178.2",0,{"$f":"IFERROR(VLOOKUP(A7176,Translation!$A:$C,3,FALSE),A7176)","v":3},{"$f":"IFERROR(VLOOKUP(B7176,Translation!$A:$C,3,FALSE),B7176)","v":"T3 2018"},{"$f":"IFERROR(VLOOKUP(C7176,Translation!$A:$C,3,FALSE),C7176)","v":"ALL"},{"$f":"IFERROR(VLOOKUP(D7176,Translation!$A:$C,3,FALSE),D7176)","v":"Assurance de portefeuille (prêts de substitution)"},{"$f":"IFERROR(VLOOKUP(E7176,Translation!$A:$C,3,FALSE),E7176)","v":161935178.19000149},{"$f":"IFERROR(VLOOKUP(F7176,Translation!$A:$C,3,FALSE),F7176)","v":"AMT"},{"$f":"IFERROR(VLOOKUP(G7176,Translation!$A:$C,3,FALSE),G7176)","v":"161935178.2"},{"$f":"IFERROR(VLOOKUP(H7176,Translation!$A:$C,3,FALSE),H7176)","v":0}]
[3,"T3 2018","ALL","IMMEUBLES COLLECTIFS RÉSIDENTIELS",3387735854.7300105,"AMT","3387735854.7",0,{"$f":"IFERROR(VLOOKUP(A7177,Translation!$A:$C,3,FALSE),A7177)","v":3},{"$f":"IFERROR(VLOOKUP(B7177,Translation!$A:$C,3,FALSE),B7177)","v":"T3 2018"},{"$f":"IFERROR(VLOOKUP(C7177,Translation!$A:$C,3,FALSE),C7177)","v":"ALL"},{"$f":"IFERROR(VLOOKUP(D7177,Translation!$A:$C,3,FALSE),D7177)","v":"IMMEUBLES COLLECTIFS RÉSIDENTIELS"},{"$f":"IFERROR(VLOOKUP(E7177,Translation!$A:$C,3,FALSE),E7177)","v":3387735854.7300105},{"$f":"IFERROR(VLOOKUP(F7177,Translation!$A:$C,3,FALSE),F7177)","v":"AMT"},{"$f":"IFERROR(VLOOKUP(G7177,Translation!$A:$C,3,FALSE),G7177)","v":"3387735854.7"},{"$f":"IFERROR(VLOOKUP(H7177,Translation!$A:$C,3,FALSE),H7177)","v":0}]
[3,"T3 2018","ALL","Volume total d'assurance (M$)",13306547115.910452,"AMT","13306547115.9",0,{"$f":"IFERROR(VLOOKUP(A7178,Translation!$A:$C,3,FALSE),A7178)","v":3},{"$f":"IFERROR(VLOOKUP(B7178,Translation!$A:$C,3,FALSE),B7178)","v":"T3 2018"},{"$f":"IFERROR(VLOOKUP(C7178,Translation!$A:$C,3,FALSE),C7178)","v":"ALL"},{"$f":"IFERROR(VLOOKUP(D7178,Translation!$A:$C,3,FALSE),D7178)","v":"Volume total d'assurance (M$)"},{"$f":"IFERROR(VLOOKUP(E7178,Translation!$A:$C,3,FALSE),E7178)","v":13306547115.910452},{"$f":"IFERROR(VLOOKUP(F7178,Translation!$A:$C,3,FALSE),F7178)","v":"AMT"},{"$f":"IFERROR(VLOOKUP(G7178,Translation!$A:$C,3,FALSE),G7178)","v":"13306547115.9"},{"$f":"IFERROR(VLOOKUP(H7178,Translation!$A:$C,3,FALSE),H7178)","v":0}]
[3,"T2 2018","ALL","Terre-Neuve-et-Labrador",0.67865726322892084,"Prêts hypothécaires assurés au cours de la période selon la province (%)","0.7",0,{"$f":"IFERROR(VLOOKUP(A7179,Translation!$A:$C,3,FALSE),A7179)","v":3},{"$f":"IFERROR(VLOOKUP(B7179,Translation!$A:$C,3,FALSE),B7179)","v":"T2 2018"},{"$f":"IFERROR(VLOOKUP(C7179,Translation!$A:$C,3,FALSE),C7179)","v":"ALL"},{"$f":"IFERROR(VLOOKUP(D7179,Translation!$A:$C,3,FALSE),D7179)","v":"Terre-Neuve-et-Labrador"},{"$f":"IFERROR(VLOOKUP(E7179,Translation!$A:$C,3,FALSE),E7179)","v":0.67865726322892084},{"$f":"IFERROR(VLOOKUP(F7179,Translation!$A:$C,3,FALSE),F7179)","v":"Prêts hypothécaires assurés au cours de la période selon la province (%)"},{"$f":"IFERROR(VLOOKUP(G7179,Translation!$A:$C,3,FALSE),G7179)","v":"0.7"},{"$f":"IFERROR(VLOOKUP(H7179,Translation!$A:$C,3,FALSE),H7179)","v":0}]
[3,"T2 2018","ALL","Île-du-Prince-Édouard",0.22456150281520537,"Prêts hypothécaires assurés au cours de la période selon la province (%)","0.2",0,{"$f":"IFERROR(VLOOKUP(A7180,Translation!$A:$C,3,FALSE),A7180)","v":3},{"$f":"IFERROR(VLOOKUP(B7180,Translation!$A:$C,3,FALSE),B7180)","v":"T2 2018"},{"$f":"IFERROR(VLOOKUP(C7180,Translation!$A:$C,3,FALSE),C7180)","v":"ALL"},{"$f":"IFERROR(VLOOKUP(D7180,Translation!$A:$C,3,FALSE),D7180)","v":"Île-du-Prince-Édouard"},{"$f":"IFERROR(VLOOKUP(E7180,Translation!$A:$C,3,FALSE),E7180)","v":0.22456150281520537},{"$f":"IFERROR(VLOOKUP(F7180,Translation!$A:$C,3,FALSE),F7180)","v":"Prêts hypothécaires assurés au cours de la période selon la province (%)"},{"$f":"IFERROR(VLOOKUP(G7180,Translation!$A:$C,3,FALSE),G7180)","v":"0.2"},{"$f":"IFERROR(VLOOKUP(H7180,Translation!$A:$C,3,FALSE),H7180)","v":0}]
[3,"T2 2018","ALL","Nouvelle-Écosse",3.7867387991387238,"Prêts hypothécaires assurés au cours de la période selon la province (%)","3.8",0,{"$f":"IFERROR(VLOOKUP(A7181,Translation!$A:$C,3,FALSE),A7181)","v":3},{"$f":"IFERROR(VLOOKUP(B7181,Translation!$A:$C,3,FALSE),B7181)","v":"T2 2018"},{"$f":"IFERROR(VLOOKUP(C7181,Translation!$A:$C,3,FALSE),C7181)","v":"ALL"},{"$f":"IFERROR(VLOOKUP(D7181,Translation!$A:$C,3,FALSE),D7181)","v":"Nouvelle-Écosse"},{"$f":"IFERROR(VLOOKUP(E7181,Translation!$A:$C,3,FALSE),E7181)","v":3.7867387991387238},{"$f":"IFERROR(VLOOKUP(F7181,Translation!$A:$C,3,FALSE),F7181)","v":"Prêts hypothécaires assurés au cours de la période selon la province (%)"},{"$f":"IFERROR(VLOOKUP(G7181,Translation!$A:$C,3,FALSE),G7181)","v":"3.8"},{"$f":"IFERROR(VLOOKUP(H7181,Translation!$A:$C,3,FALSE),H7181)","v":0}]
[3,"T2 2018","ALL","Nouveau-Brunswick",1.299840267797695,"Prêts hypothécaires assurés au cours de la période selon la province (%)","1.3",0,{"$f":"IFERROR(VLOOKUP(A7182,Translation!$A:$C,3,FALSE),A7182)","v":3},{"$f":"IFERROR(VLOOKUP(B7182,Translation!$A:$C,3,FALSE),B7182)","v":"T2 2018"},{"$f":"IFERROR(VLOOKUP(C7182,Translation!$A:$C,3,FALSE),C7182)","v":"ALL"},{"$f":"IFERROR(VLOOKUP(D7182,Translation!$A:$C,3,FALSE),D7182)","v":"Nouveau-Brunswick"},{"$f":"IFERROR(VLOOKUP(E7182,Translation!$A:$C,3,FALSE),E7182)","v":1.299840267797695},{"$f":"IFERROR(VLOOKUP(F7182,Translation!$A:$C,3,FALSE),F7182)","v":"Prêts hypothécaires assurés au cours de la période selon la province (%)"},{"$f":"IFERROR(VLOOKUP(G7182,Translation!$A:$C,3,FALSE),G7182)","v":"1.3"},{"$f":"IFERROR(VLOOKUP(H7182,Translation!$A:$C,3,FALSE),H7182)","v":0}]
[3,"T2 2018","ALL","Québec",32.075563280996711,"Prêts hypothécaires assurés au cours de la période selon la province (%)","32.1",0,{"$f":"IFERROR(VLOOKUP(A7183,Translation!$A:$C,3,FALSE),A7183)","v":3},{"$f":"IFERROR(VLOOKUP(B7183,Translation!$A:$C,3,FALSE),B7183)","v":"T2 2018"},{"$f":"IFERROR(VLOOKUP(C7183,Translation!$A:$C,3,FALSE),C7183)","v":"ALL"},{"$f":"IFERROR(VLOOKUP(D7183,Translation!$A:$C,3,FALSE),D7183)","v":"Québec"},{"$f":"IFERROR(VLOOKUP(E7183,Translation!$A:$C,3,FALSE),E7183)","v":32.075563280996711},{"$f":"IFERROR(VLOOKUP(F7183,Translation!$A:$C,3,FALSE),F7183)","v":"Prêts hypothécaires assurés au cours de la période selon la province (%)"},{"$f":"IFERROR(VLOOKUP(G7183,Translation!$A:$C,3,FALSE),G7183)","v":"32.1"},{"$f":"IFERROR(VLOOKUP(H7183,Translation!$A:$C,3,FALSE),H7183)","v":0}]
[3,"T2 2018","ALL","Ontario",32.620048714954571,"Prêts hypothécaires assurés au cours de la période selon la province (%)","32.6",0,{"$f":"IFERROR(VLOOKUP(A7184,Translation!$A:$C,3,FALSE),A7184)","v":3},{"$f":"IFERROR(VLOOKUP(B7184,Translation!$A:$C,3,FALSE),B7184)","v":"T2 2018"},{"$f":"IFERROR(VLOOKUP(C7184,Translation!$A:$C,3,FALSE),C7184)","v":"ALL"},{"$f":"IFERROR(VLOOKUP(D7184,Translation!$A:$C,3,FALSE),D7184)","v":"Ontario"},{"$f":"IFERROR(VLOOKUP(E7184,Translation!$A:$C,3,FALSE),E7184)","v":32.620048714954571},{"$f":"IFERROR(VLOOKUP(F7184,Translation!$A:$C,3,FALSE),F7184)","v":"Prêts hypothécaires assurés au cours de la période selon la province (%)"},{"$f":"IFERROR(VLOOKUP(G7184,Translation!$A:$C,3,FALSE),G7184)","v":"32.6"},{"$f":"IFERROR(VLOOKUP(H7184,Translation!$A:$C,3,FALSE),H7184)","v":0}]
[3,"T2 2018","ALL","Manitoba",2.8103075375536175,"Prêts hypothécaires assurés au cours de la période selon la province (%)","2.8",0,{"$f":"IFERROR(VLOOKUP(A7185,Translation!$A:$C,3,FALSE),A7185)","v":3},{"$f":"IFERROR(VLOOKUP(B7185,Translation!$A:$C,3,FALSE),B7185)","v":"T2 2018"},{"$f":"IFERROR(VLOOKUP(C7185,Translation!$A:$C,3,FALSE),C7185)","v":"ALL"},{"$f":"IFERROR(VLOOKUP(D7185,Translation!$A:$C,3,FALSE),D7185)","v":"Manitoba"},{"$f":"IFERROR(VLOOKUP(E7185,Translation!$A:$C,3,FALSE),E7185)","v":2.8103075375536175},{"$f":"IFERROR(VLOOKUP(F7185,Translation!$A:$C,3,FALSE),F7185)","v":"Prêts hypothécaires assurés au cours de la période selon la province (%)"},{"$f":"IFERROR(VLOOKUP(G7185,Translation!$A:$C,3,FALSE),G7185)","v":"2.8"},{"$f":"IFERROR(VLOOKUP(H7185,Translation!$A:$C,3,FALSE),H7185)","v":0}]
[3,"T2 2018","ALL","Saskatchewan",2.4719831814590338,"Prêts hypothécaires assurés au cours de la période selon la province (%)","2.5",0,{"$f":"IFERROR(VLOOKUP(A7186,Translation!$A:$C,3,FALSE),A7186)","v":3},{"$f":"IFERROR(VLOOKUP(B7186,Translation!$A:$C,3,FALSE),B7186)","v":"T2 2018"},{"$f":"IFERROR(VLOOKUP(C7186,Translation!$A:$C,3,FALSE),C7186)","v":"ALL"},{"$f":"IFERROR(VLOOKUP(D7186,Translation!$A:$C,3,FALSE),D7186)","v":"Saskatchewan"},{"$f":"IFERROR(VLOOKUP(E7186,Translation!$A:$C,3,FALSE),E7186)","v":2.4719831814590338},{"$f":"IFERROR(VLOOKUP(F7186,Translation!$A:$C,3,FALSE),F7186)","v":"Prêts hypothécaires assurés au cours de la période selon la province (%)"},{"$f":"IFERROR(VLOOKUP(G7186,Translation!$A:$C,3,FALSE),G7186)","v":"2.5"},{"$f":"IFERROR(VLOOKUP(H7186,Translation!$A:$C,3,FALSE),H7186)","v":0}]
[3,"T2 2018","ALL","Alberta",12.244104073573798,"Prêts hypothécaires assurés au cours de la période selon la province (%)","12.2",0,{"$f":"IFERROR(VLOOKUP(A7187,Translation!$A:$C,3,FALSE),A7187)","v":3},{"$f":"IFERROR(VLOOKUP(B7187,Translation!$A:$C,3,FALSE),B7187)","v":"T2 2018"},{"$f":"IFERROR(VLOOKUP(C7187,Translation!$A:$C,3,FALSE),C7187)","v":"ALL"},{"$f":"IFERROR(VLOOKUP(D7187,Translation!$A:$C,3,FALSE),D7187)","v":"Alberta"},{"$f":"IFERROR(VLOOKUP(E7187,Translation!$A:$C,3,FALSE),E7187)","v":12.244104073573798},{"$f":"IFERROR(VLOOKUP(F7187,Translation!$A:$C,3,FALSE),F7187)","v":"Prêts hypothécaires assurés au cours de la période selon la province (%)"},{"$f":"IFERROR(VLOOKUP(G7187,Translation!$A:$C,3,FALSE),G7187)","v":"12.2"},{"$f":"IFERROR(VLOOKUP(H7187,Translation!$A:$C,3,FALSE),H7187)","v":0}]
[3,"T2 2018","ALL","Colombie-Britannique",11.459119972002101,"Prêts hypothécaires assurés au cours de la période selon la province (%)","11.5",0,{"$f":"IFERROR(VLOOKUP(A7188,Translation!$A:$C,3,FALSE),A7188)","v":3},{"$f":"IFERROR(VLOOKUP(B7188,Translation!$A:$C,3,FALSE),B7188)","v":"T2 2018"},{"$f":"IFERROR(VLOOKUP(C7188,Translation!$A:$C,3,FALSE),C7188)","v":"ALL"},{"$f":"IFERROR(VLOOKUP(D7188,Translation!$A:$C,3,FALSE),D7188)","v":"Colombie-Britannique"},{"$f":"IFERROR(VLOOKUP(E7188,Translation!$A:$C,3,FALSE),E7188)","v":11.459119972002101},{"$f":"IFERROR(VLOOKUP(F7188,Translation!$A:$C,3,FALSE),F7188)","v":"Prêts hypothécaires assurés au cours de la période selon la province (%)"},{"$f":"IFERROR(VLOOKUP(G7188,Translation!$A:$C,3,FALSE),G7188)","v":"11.5"},{"$f":"IFERROR(VLOOKUP(H7188,Translation!$A:$C,3,FALSE),H7188)","v":0}]
[3,"T2 2018","ALL","Territoires",0.32907540647965278,"Prêts hypothécaires assurés au cours de la période selon la province (%)","0.3",0,{"$f":"IFERROR(VLOOKUP(A7189,Translation!$A:$C,3,FALSE),A7189)","v":3},{"$f":"IFERROR(VLOOKUP(B7189,Translation!$A:$C,3,FALSE),B7189)","v":"T2 2018"},{"$f":"IFERROR(VLOOKUP(C7189,Translation!$A:$C,3,FALSE),C7189)","v":"ALL"},{"$f":"IFERROR(VLOOKUP(D7189,Translation!$A:$C,3,FALSE),D7189)","v":"Territoires"},{"$f":"IFERROR(VLOOKUP(E7189,Translation!$A:$C,3,FALSE),E7189)","v":0.32907540647965278},{"$f":"IFERROR(VLOOKUP(F7189,Translation!$A:$C,3,FALSE),F7189)","v":"Prêts hypothécaires assurés au cours de la période selon la province (%)"},{"$f":"IFERROR(VLOOKUP(G7189,Translation!$A:$C,3,FALSE),G7189)","v":"0.3"},{"$f":"IFERROR(VLOOKUP(H7189,Translation!$A:$C,3,FALSE),H7189)","v":0}]
[3,"T2 2018","ALL","PROPRIÉTAIRES-OCCUPANTS, À L’UNITÉ",34086,"UNIT","34086.0",0,{"$f":"IFERROR(VLOOKUP(A7190,Translation!$A:$C,3,FALSE),A7190)","v":3},{"$f":"IFERROR(VLOOKUP(B7190,Translation!$A:$C,3,FALSE),B7190)","v":"T2 2018"},{"$f":"IFERROR(VLOOKUP(C7190,Translation!$A:$C,3,FALSE),C7190)","v":"ALL"},{"$f":"IFERROR(VLOOKUP(D7190,Translation!$A:$C,3,FALSE),D7190)","v":"PROPRIÉTAIRES-OCCUPANTS, À L’UNITÉ"},{"$f":"IFERROR(VLOOKUP(E7190,Translation!$A:$C,3,FALSE),E7190)","v":34086},{"$f":"IFERROR(VLOOKUP(F7190,Translation!$A:$C,3,FALSE),F7190)","v":"UNIT"},{"$f":"IFERROR(VLOOKUP(G7190,Translation!$A:$C,3,FALSE),G7190)","v":"34086.0"},{"$f":"IFERROR(VLOOKUP(H7190,Translation!$A:$C,3,FALSE),H7190)","v":0}]
[3,"T2 2018","ALL","Assurance de portefeuille (nouveaux prêts)",5393,"UNIT","5393.0",0,{"$f":"IFERROR(VLOOKUP(A7191,Translation!$A:$C,3,FALSE),A7191)","v":3},{"$f":"IFERROR(VLOOKUP(B7191,Translation!$A:$C,3,FALSE),B7191)","v":"T2 2018"},{"$f":"IFERROR(VLOOKUP(C7191,Translation!$A:$C,3,FALSE),C7191)","v":"ALL"},{"$f":"IFERROR(VLOOKUP(D7191,Translation!$A:$C,3,FALSE),D7191)","v":"Assurance de portefeuille (nouveaux prêts)"},{"$f":"IFERROR(VLOOKUP(E7191,Translation!$A:$C,3,FALSE),E7191)","v":5393},{"$f":"IFERROR(VLOOKUP(F7191,Translation!$A:$C,3,FALSE),F7191)","v":"UNIT"},{"$f":"IFERROR(VLOOKUP(G7191,Translation!$A:$C,3,FALSE),G7191)","v":"5393.0"},{"$f":"IFERROR(VLOOKUP(H7191,Translation!$A:$C,3,FALSE),H7191)","v":0}]
[3,"T2 2018","ALL","Assurance de portefeuille (prêts de substitution)",9086,"UNIT","9086.0",0,{"$f":"IFERROR(VLOOKUP(A7192,Translation!$A:$C,3,FALSE),A7192)","v":3},{"$f":"IFERROR(VLOOKUP(B7192,Translation!$A:$C,3,FALSE),B7192)","v":"T2 2018"},{"$f":"IFERROR(VLOOKUP(C7192,Translation!$A:$C,3,FALSE),C7192)","v":"ALL"},{"$f":"IFERROR(VLOOKUP(D7192,Translation!$A:$C,3,FALSE),D7192)","v":"Assurance de portefeuille (prêts de substitution)"},{"$f":"IFERROR(VLOOKUP(E7192,Translation!$A:$C,3,FALSE),E7192)","v":9086},{"$f":"IFERROR(VLOOKUP(F7192,Translation!$A:$C,3,FALSE),F7192)","v":"UNIT"},{"$f":"IFERROR(VLOOKUP(G7192,Translation!$A:$C,3,FALSE),G7192)","v":"9086.0"},{"$f":"IFERROR(VLOOKUP(H7192,Translation!$A:$C,3,FALSE),H7192)","v":0}]
[3,"T2 2018","ALL","IMMEUBLES COLLECTIFS RÉSIDENTIELS",24151,"UNIT","24151.0",0,{"$f":"IFERROR(VLOOKUP(A7193,Translation!$A:$C,3,FALSE),A7193)","v":3},{"$f":"IFERROR(VLOOKUP(B7193,Translation!$A:$C,3,FALSE),B7193)","v":"T2 2018"},{"$f":"IFERROR(VLOOKUP(C7193,Translation!$A:$C,3,FALSE),C7193)","v":"ALL"},{"$f":"IFERROR(VLOOKUP(D7193,Translation!$A:$C,3,FALSE),D7193)","v":"IMMEUBLES COLLECTIFS RÉSIDENTIELS"},{"$f":"IFERROR(VLOOKUP(E7193,Translation!$A:$C,3,FALSE),E7193)","v":24151},{"$f":"IFERROR(VLOOKUP(F7193,Translation!$A:$C,3,FALSE),F7193)","v":"UNIT"},{"$f":"IFERROR(VLOOKUP(G7193,Translation!$A:$C,3,FALSE),G7193)","v":"24151.0"},{"$f":"IFERROR(VLOOKUP(H7193,Translation!$A:$C,3,FALSE),H7193)","v":0}]
[3,"T2 2018","ALL","Total Insured Volumes (units)",72716,"UNIT","72716.0",0,{"$f":"IFERROR(VLOOKUP(A7194,Translation!$A:$C,3,FALSE),A7194)","v":3},{"$f":"IFERROR(VLOOKUP(B7194,Translation!$A:$C,3,FALSE),B7194)","v":"T2 2018"},{"$f":"IFERROR(VLOOKUP(C7194,Translation!$A:$C,3,FALSE),C7194)","v":"ALL"},{"$f":"IFERROR(VLOOKUP(D7194,Translation!$A:$C,3,FALSE),D7194)","v":"Total Insured Volumes (units)"},{"$f":"IFERROR(VLOOKUP(E7194,Translation!$A:$C,3,FALSE),E7194)","v":72716},{"$f":"IFERROR(VLOOKUP(F7194,Translation!$A:$C,3,FALSE),F7194)","v":"UNIT"},{"$f":"IFERROR(VLOOKUP(G7194,Translation!$A:$C,3,FALSE),G7194)","v":"72716.0"},{"$f":"IFERROR(VLOOKUP(H7194,Translation!$A:$C,3,FALSE),H7194)","v":0}]
[3,"T2 2018","ALL","PROPRIÉTAIRES-OCCUPANTS, À L’UNITÉ",8654336320.8000946,"AMT","8654336320.8",0,{"$f":"IFERROR(VLOOKUP(A7195,Translation!$A:$C,3,FALSE),A7195)","v":3},{"$f":"IFERROR(VLOOKUP(B7195,Translation!$A:$C,3,FALSE),B7195)","v":"T2 2018"},{"$f":"IFERROR(VLOOKUP(C7195,Translation!$A:$C,3,FALSE),C7195)","v":"ALL"},{"$f":"IFERROR(VLOOKUP(D7195,Translation!$A:$C,3,FALSE),D7195)","v":"PROPRIÉTAIRES-OCCUPANTS, À L’UNITÉ"},{"$f":"IFERROR(VLOOKUP(E7195,Translation!$A:$C,3,FALSE),E7195)","v":8654336320.8000946},{"$f":"IFERROR(VLOOKUP(F7195,Translation!$A:$C,3,FALSE),F7195)","v":"AMT"},{"$f":"IFERROR(VLOOKUP(G7195,Translation!$A:$C,3,FALSE),G7195)","v":"8654336320.8"},{"$f":"IFERROR(VLOOKUP(H7195,Translation!$A:$C,3,FALSE),H7195)","v":0}]
[3,"T2 2018","ALL","Assurance de portefeuille (nouveaux prêts)",1341741015.8300059,"AMT","1341741015.8",0,{"$f":"IFERROR(VLOOKUP(A7196,Translation!$A:$C,3,FALSE),A7196)","v":3},{"$f":"IFERROR(VLOOKUP(B7196,Translation!$A:$C,3,FALSE),B7196)","v":"T2 2018"},{"$f":"IFERROR(VLOOKUP(C7196,Translation!$A:$C,3,FALSE),C7196)","v":"ALL"},{"$f":"IFERROR(VLOOKUP(D7196,Translation!$A:$C,3,FALSE),D7196)","v":"Assurance de portefeuille (nouveaux prêts)"},{"$f":"IFERROR(VLOOKUP(E7196,Translation!$A:$C,3,FALSE),E7196)","v":1341741015.8300059},{"$f":"IFERROR(VLOOKUP(F7196,Translation!$A:$C,3,FALSE),F7196)","v":"AMT"},{"$f":"IFERROR(VLOOKUP(G7196,Translation!$A:$C,3,FALSE),G7196)","v":"1341741015.8"},{"$f":"IFERROR(VLOOKUP(H7196,Translation!$A:$C,3,FALSE),H7196)","v":0}]
[3,"T2 2018","ALL","Assurance de portefeuille (prêts de substitution)",1268551677.5400021,"AMT","1268551677.5",0,{"$f":"IFERROR(VLOOKUP(A7197,Translation!$A:$C,3,FALSE),A7197)","v":3},{"$f":"IFERROR(VLOOKUP(B7197,Translation!$A:$C,3,FALSE),B7197)","v":"T2 2018"},{"$f":"IFERROR(VLOOKUP(C7197,Translation!$A:$C,3,FALSE),C7197)","v":"ALL"},{"$f":"IFERROR(VLOOKUP(D7197,Translation!$A:$C,3,FALSE),D7197)","v":"Assurance de portefeuille (prêts de substitution)"},{"$f":"IFERROR(VLOOKUP(E7197,Translation!$A:$C,3,FALSE),E7197)","v":1268551677.5400021},{"$f":"IFERROR(VLOOKUP(F7197,Translation!$A:$C,3,FALSE),F7197)","v":"AMT"},{"$f":"IFERROR(VLOOKUP(G7197,Translation!$A:$C,3,FALSE),G7197)","v":"1268551677.5"},{"$f":"IFERROR(VLOOKUP(H7197,Translation!$A:$C,3,FALSE),H7197)","v":0}]
[3,"T2 2018","ALL","IMMEUBLES COLLECTIFS RÉSIDENTIELS",2738566604.2299962,"AMT","2738566604.2",0,{"$f":"IFERROR(VLOOKUP(A7198,Translation!$A:$C,3,FALSE),A7198)","v":3},{"$f":"IFERROR(VLOOKUP(B7198,Translation!$A:$C,3,FALSE),B7198)","v":"T2 2018"},{"$f":"IFERROR(VLOOKUP(C7198,Translation!$A:$C,3,FALSE),C7198)","v":"ALL"},{"$f":"IFERROR(VLOOKUP(D7198,Translation!$A:$C,3,FALSE),D7198)","v":"IMMEUBLES COLLECTIFS RÉSIDENTIELS"},{"$f":"IFERROR(VLOOKUP(E7198,Translation!$A:$C,3,FALSE),E7198)","v":2738566604.2299962},{"$f":"IFERROR(VLOOKUP(F7198,Translation!$A:$C,3,FALSE),F7198)","v":"AMT"},{"$f":"IFERROR(VLOOKUP(G7198,Translation!$A:$C,3,FALSE),G7198)","v":"2738566604.2"},{"$f":"IFERROR(VLOOKUP(H7198,Translation!$A:$C,3,FALSE),H7198)","v":0}]
[3,"T2 2018","ALL","Volume total d'assurance (M$)",14003195618.400101,"AMT","14003195618.4",0,{"$f":"IFERROR(VLOOKUP(A7199,Translation!$A:$C,3,FALSE),A7199)","v":3},{"$f":"IFERROR(VLOOKUP(B7199,Translation!$A:$C,3,FALSE),B7199)","v":"T2 2018"},{"$f":"IFERROR(VLOOKUP(C7199,Translation!$A:$C,3,FALSE),C7199)","v":"ALL"},{"$f":"IFERROR(VLOOKUP(D7199,Translation!$A:$C,3,FALSE),D7199)","v":"Volume total d'assurance (M$)"},{"$f":"IFERROR(VLOOKUP(E7199,Translation!$A:$C,3,FALSE),E7199)","v":14003195618.400101},{"$f":"IFERROR(VLOOKUP(F7199,Translation!$A:$C,3,FALSE),F7199)","v":"AMT"},{"$f":"IFERROR(VLOOKUP(G7199,Translation!$A:$C,3,FALSE),G7199)","v":"14003195618.4"},{"$f":"IFERROR(VLOOKUP(H7199,Translation!$A:$C,3,FALSE),H7199)","v":0}]
[3,"T1 2017","ALL","Terre-Neuve-et-Labrador",0.83907899547114639,"Prêts hypothécaires assurés au cours de la période selon la province (%)","0.8",0,{"$f":"IFERROR(VLOOKUP(A7200,Translation!$A:$C,3,FALSE),A7200)","v":3},{"$f":"IFERROR(VLOOKUP(B7200,Translation!$A:$C,3,FALSE),B7200)","v":"T1 2017"},{"$f":"IFERROR(VLOOKUP(C7200,Translation!$A:$C,3,FALSE),C7200)","v":"ALL"},{"$f":"IFERROR(VLOOKUP(D7200,Translation!$A:$C,3,FALSE),D7200)","v":"Terre-Neuve-et-Labrador"},{"$f":"IFERROR(VLOOKUP(E7200,Translation!$A:$C,3,FALSE),E7200)","v":0.83907899547114639},{"$f":"IFERROR(VLOOKUP(F7200,Translation!$A:$C,3,FALSE),F7200)","v":"Prêts hypothécaires assurés au cours de la période selon la province (%)"},{"$f":"IFERROR(VLOOKUP(G7200,Translation!$A:$C,3,FALSE),G7200)","v":"0.8"},{"$f":"IFERROR(VLOOKUP(H7200,Translation!$A:$C,3,FALSE),H7200)","v":0}]
[3,"T1 2018","ALL","Terre-Neuve-et-Labrador",0.75158325949206484,"Prêts hypothécaires assurés au cours de la période selon la province (%)","0.8",0,{"$f":"IFERROR(VLOOKUP(A7201,Translation!$A:$C,3,FALSE),A7201)","v":3},{"$f":"IFERROR(VLOOKUP(B7201,Translation!$A:$C,3,FALSE),B7201)","v":"T1 2018"},{"$f":"IFERROR(VLOOKUP(C7201,Translation!$A:$C,3,FALSE),C7201)","v":"ALL"},{"$f":"IFERROR(VLOOKUP(D7201,Translation!$A:$C,3,FALSE),D7201)","v":"Terre-Neuve-et-Labrador"},{"$f":"IFERROR(VLOOKUP(E7201,Translation!$A:$C,3,FALSE),E7201)","v":0.75158325949206484},{"$f":"IFERROR(VLOOKUP(F7201,Translation!$A:$C,3,FALSE),F7201)","v":"Prêts hypothécaires assurés au cours de la période selon la province (%)"},{"$f":"IFERROR(VLOOKUP(G7201,Translation!$A:$C,3,FALSE),G7201)","v":"0.8"},{"$f":"IFERROR(VLOOKUP(H7201,Translation!$A:$C,3,FALSE),H7201)","v":0}]
[3,"Q2 2016","ALL","Terre-Neuve-et-Labrador",1.0247360221932678,"Prêts hypothécaires assurés au cours de la période selon la province (%)","1.0",0,{"$f":"IFERROR(VLOOKUP(A7202,Translation!$A:$C,3,FALSE),A7202)","v":3},{"$f":"IFERROR(VLOOKUP(B7202,Translation!$A:$C,3,FALSE),B7202)","v":"Q2 2016"},{"$f":"IFERROR(VLOOKUP(C7202,Translation!$A:$C,3,FALSE),C7202)","v":"ALL"},{"$f":"IFERROR(VLOOKUP(D7202,Translation!$A:$C,3,FALSE),D7202)","v":"Terre-Neuve-et-Labrador"},{"$f":"IFERROR(VLOOKUP(E7202,Translation!$A:$C,3,FALSE),E7202)","v":1.0247360221932678},{"$f":"IFERROR(VLOOKUP(F7202,Translation!$A:$C,3,FALSE),F7202)","v":"Prêts hypothécaires assurés au cours de la période selon la province (%)"},{"$f":"IFERROR(VLOOKUP(G7202,Translation!$A:$C,3,FALSE),G7202)","v":"1.0"},{"$f":"IFERROR(VLOOKUP(H7202,Translation!$A:$C,3,FALSE),H7202)","v":0}]
[3,"T2 2017","ALL","Terre-Neuve-et-Labrador",0.63058151643649074,"Prêts hypothécaires assurés au cours de la période selon la province (%)","0.6",0,{"$f":"IFERROR(VLOOKUP(A7203,Translation!$A:$C,3,FALSE),A7203)","v":3},{"$f":"IFERROR(VLOOKUP(B7203,Translation!$A:$C,3,FALSE),B7203)","v":"T2 2017"},{"$f":"IFERROR(VLOOKUP(C7203,Translation!$A:$C,3,FALSE),C7203)","v":"ALL"},{"$f":"IFERROR(VLOOKUP(D7203,Translation!$A:$C,3,FALSE),D7203)","v":"Terre-Neuve-et-Labrador"},{"$f":"IFERROR(VLOOKUP(E7203,Translation!$A:$C,3,FALSE),E7203)","v":0.63058151643649074},{"$f":"IFERROR(VLOOKUP(F7203,Translation!$A:$C,3,FALSE),F7203)","v":"Prêts hypothécaires assurés au cours de la période selon la province (%)"},{"$f":"IFERROR(VLOOKUP(G7203,Translation!$A:$C,3,FALSE),G7203)","v":"0.6"},{"$f":"IFERROR(VLOOKUP(H7203,Translation!$A:$C,3,FALSE),H7203)","v":0}]
[3,"Q3 2016","ALL","Terre-Neuve-et-Labrador",1.0789904196198519,"Prêts hypothécaires assurés au cours de la période selon la province (%)","1.1",0,{"$f":"IFERROR(VLOOKUP(A7204,Translation!$A:$C,3,FALSE),A7204)","v":3},{"$f":"IFERROR(VLOOKUP(B7204,Translation!$A:$C,3,FALSE),B7204)","v":"Q3 2016"},{"$f":"IFERROR(VLOOKUP(C7204,Translation!$A:$C,3,FALSE),C7204)","v":"ALL"},{"$f":"IFERROR(VLOOKUP(D7204,Translation!$A:$C,3,FALSE),D7204)","v":"Terre-Neuve-et-Labrador"},{"$f":"IFERROR(VLOOKUP(E7204,Translation!$A:$C,3,FALSE),E7204)","v":1.0789904196198519},{"$f":"IFERROR(VLOOKUP(F7204,Translation!$A:$C,3,FALSE),F7204)","v":"Prêts hypothécaires assurés au cours de la période selon la province (%)"},{"$f":"IFERROR(VLOOKUP(G7204,Translation!$A:$C,3,FALSE),G7204)","v":"1.1"},{"$f":"IFERROR(VLOOKUP(H7204,Translation!$A:$C,3,FALSE),H7204)","v":0}]
[3,"T3 2017","ALL","Terre-Neuve-et-Labrador",0.92882764285531516,"Prêts hypothécaires assurés au cours de la période selon la province (%)","0.9",0,{"$f":"IFERROR(VLOOKUP(A7205,Translation!$A:$C,3,FALSE),A7205)","v":3},{"$f":"IFERROR(VLOOKUP(B7205,Translation!$A:$C,3,FALSE),B7205)","v":"T3 2017"},{"$f":"IFERROR(VLOOKUP(C7205,Translation!$A:$C,3,FALSE),C7205)","v":"ALL"},{"$f":"IFERROR(VLOOKUP(D7205,Translation!$A:$C,3,FALSE),D7205)","v":"Terre-Neuve-et-Labrador"},{"$f":"IFERROR(VLOOKUP(E7205,Translation!$A:$C,3,FALSE),E7205)","v":0.92882764285531516},{"$f":"IFERROR(VLOOKUP(F7205,Translation!$A:$C,3,FALSE),F7205)","v":"Prêts hypothécaires assurés au cours de la période selon la province (%)"},{"$f":"IFERROR(VLOOKUP(G7205,Translation!$A:$C,3,FALSE),G7205)","v":"0.9"},{"$f":"IFERROR(VLOOKUP(H7205,Translation!$A:$C,3,FALSE),H7205)","v":0}]
[3,"Q4 2016","ALL","Terre-Neuve-et-Labrador",0.9246109970123626,"Prêts hypothécaires assurés au cours de la période selon la province (%)","0.9",0,{"$f":"IFERROR(VLOOKUP(A7206,Translation!$A:$C,3,FALSE),A7206)","v":3},{"$f":"IFERROR(VLOOKUP(B7206,Translation!$A:$C,3,FALSE),B7206)","v":"Q4 2016"},{"$f":"IFERROR(VLOOKUP(C7206,Translation!$A:$C,3,FALSE),C7206)","v":"ALL"},{"$f":"IFERROR(VLOOKUP(D7206,Translation!$A:$C,3,FALSE),D7206)","v":"Terre-Neuve-et-Labrador"},{"$f":"IFERROR(VLOOKUP(E7206,Translation!$A:$C,3,FALSE),E7206)","v":0.9246109970123626},{"$f":"IFERROR(VLOOKUP(F7206,Translation!$A:$C,3,FALSE),F7206)","v":"Prêts hypothécaires assurés au cours de la période selon la province (%)"},{"$f":"IFERROR(VLOOKUP(G7206,Translation!$A:$C,3,FALSE),G7206)","v":"0.9"},{"$f":"IFERROR(VLOOKUP(H7206,Translation!$A:$C,3,FALSE),H7206)","v":0}]
[3,"T4 2017","ALL","Terre-Neuve-et-Labrador",0.93863420304276723,"Prêts hypothécaires assurés au cours de la période selon la province (%)","0.9",0,{"$f":"IFERROR(VLOOKUP(A7207,Translation!$A:$C,3,FALSE),A7207)","v":3},{"$f":"IFERROR(VLOOKUP(B7207,Translation!$A:$C,3,FALSE),B7207)","v":"T4 2017"},{"$f":"IFERROR(VLOOKUP(C7207,Translation!$A:$C,3,FALSE),C7207)","v":"ALL"},{"$f":"IFERROR(VLOOKUP(D7207,Translation!$A:$C,3,FALSE),D7207)","v":"Terre-Neuve-et-Labrador"},{"$f":"IFERROR(VLOOKUP(E7207,Translation!$A:$C,3,FALSE),E7207)","v":0.93863420304276723},{"$f":"IFERROR(VLOOKUP(F7207,Translation!$A:$C,3,FALSE),F7207)","v":"Prêts hypothécaires assurés au cours de la période selon la province (%)"},{"$f":"IFERROR(VLOOKUP(G7207,Translation!$A:$C,3,FALSE),G7207)","v":"0.9"},{"$f":"IFERROR(VLOOKUP(H7207,Translation!$A:$C,3,FALSE),H7207)","v":0}]
[3,"T1 2017","ALL","Île-du-Prince-Édouard",0.17896262481890357,"Prêts hypothécaires assurés au cours de la période selon la province (%)","0.2",0,{"$f":"IFERROR(VLOOKUP(A7208,Translation!$A:$C,3,FALSE),A7208)","v":3},{"$f":"IFERROR(VLOOKUP(B7208,Translation!$A:$C,3,FALSE),B7208)","v":"T1 2017"},{"$f":"IFERROR(VLOOKUP(C7208,Translation!$A:$C,3,FALSE),C7208)","v":"ALL"},{"$f":"IFERROR(VLOOKUP(D7208,Translation!$A:$C,3,FALSE),D7208)","v":"Île-du-Prince-Édouard"},{"$f":"IFERROR(VLOOKUP(E7208,Translation!$A:$C,3,FALSE),E7208)","v":0.17896262481890357},{"$f":"IFERROR(VLOOKUP(F7208,Translation!$A:$C,3,FALSE),F7208)","v":"Prêts hypothécaires assurés au cours de la période selon la province (%)"},{"$f":"IFERROR(VLOOKUP(G7208,Translation!$A:$C,3,FALSE),G7208)","v":"0.2"},{"$f":"IFERROR(VLOOKUP(H7208,Translation!$A:$C,3,FALSE),H7208)","v":0}]
[3,"T1 2018","ALL","Île-du-Prince-Édouard",0.25371397264496154,"Prêts hypothécaires assurés au cours de la période selon la province (%)","0.3",0,{"$f":"IFERROR(VLOOKUP(A7209,Translation!$A:$C,3,FALSE),A7209)","v":3},{"$f":"IFERROR(VLOOKUP(B7209,Translation!$A:$C,3,FALSE),B7209)","v":"T1 2018"},{"$f":"IFERROR(VLOOKUP(C7209,Translation!$A:$C,3,FALSE),C7209)","v":"ALL"},{"$f":"IFERROR(VLOOKUP(D7209,Translation!$A:$C,3,FALSE),D7209)","v":"Île-du-Prince-Édouard"},{"$f":"IFERROR(VLOOKUP(E7209,Translation!$A:$C,3,FALSE),E7209)","v":0.25371397264496154},{"$f":"IFERROR(VLOOKUP(F7209,Translation!$A:$C,3,FALSE),F7209)","v":"Prêts hypothécaires assurés au cours de la période selon la province (%)"},{"$f":"IFERROR(VLOOKUP(G7209,Translation!$A:$C,3,FALSE),G7209)","v":"0.3"},{"$f":"IFERROR(VLOOKUP(H7209,Translation!$A:$C,3,FALSE),H7209)","v":0}]
[3,"Q2 2016","ALL","Île-du-Prince-Édouard",0.21003649038924849,"Prêts hypothécaires assurés au cours de la période selon la province (%)","0.2",0,{"$f":"IFERROR(VLOOKUP(A7210,Translation!$A:$C,3,FALSE),A7210)","v":3},{"$f":"IFERROR(VLOOKUP(B7210,Translation!$A:$C,3,FALSE),B7210)","v":"Q2 2016"},{"$f":"IFERROR(VLOOKUP(C7210,Translation!$A:$C,3,FALSE),C7210)","v":"ALL"},{"$f":"IFERROR(VLOOKUP(D7210,Translation!$A:$C,3,FALSE),D7210)","v":"Île-du-Prince-Édouard"},{"$f":"IFERROR(VLOOKUP(E7210,Translation!$A:$C,3,FALSE),E7210)","v":0.21003649038924849},{"$f":"IFERROR(VLOOKUP(F7210,Translation!$A:$C,3,FALSE),F7210)","v":"Prêts hypothécaires assurés au cours de la période selon la province (%)"},{"$f":"IFERROR(VLOOKUP(G7210,Translation!$A:$C,3,FALSE),G7210)","v":"0.2"},{"$f":"IFERROR(VLOOKUP(H7210,Translation!$A:$C,3,FALSE),H7210)","v":0}]
[3,"T2 2017","ALL","Île-du-Prince-Édouard",0.21053898572002913,"Prêts hypothécaires assurés au cours de la période selon la province (%)","0.2",0,{"$f":"IFERROR(VLOOKUP(A7211,Translation!$A:$C,3,FALSE),A7211)","v":3},{"$f":"IFERROR(VLOOKUP(B7211,Translation!$A:$C,3,FALSE),B7211)","v":"T2 2017"},{"$f":"IFERROR(VLOOKUP(C7211,Translation!$A:$C,3,FALSE),C7211)","v":"ALL"},{"$f":"IFERROR(VLOOKUP(D7211,Translation!$A:$C,3,FALSE),D7211)","v":"Île-du-Prince-Édouard"},{"$f":"IFERROR(VLOOKUP(E7211,Translation!$A:$C,3,FALSE),E7211)","v":0.21053898572002913},{"$f":"IFERROR(VLOOKUP(F7211,Translation!$A:$C,3,FALSE),F7211)","v":"Prêts hypothécaires assurés au cours de la période selon la province (%)"},{"$f":"IFERROR(VLOOKUP(G7211,Translation!$A:$C,3,FALSE),G7211)","v":"0.2"},{"$f":"IFERROR(VLOOKUP(H7211,Translation!$A:$C,3,FALSE),H7211)","v":0}]
[3,"Q3 2016","ALL","Île-du-Prince-Édouard",0.24668824550275129,"Prêts hypothécaires assurés au cours de la période selon la province (%)","0.2",0,{"$f":"IFERROR(VLOOKUP(A7212,Translation!$A:$C,3,FALSE),A7212)","v":3},{"$f":"IFERROR(VLOOKUP(B7212,Translation!$A:$C,3,FALSE),B7212)","v":"Q3 2016"},{"$f":"IFERROR(VLOOKUP(C7212,Translation!$A:$C,3,FALSE),C7212)","v":"ALL"},{"$f":"IFERROR(VLOOKUP(D7212,Translation!$A:$C,3,FALSE),D7212)","v":"Île-du-Prince-Édouard"},{"$f":"IFERROR(VLOOKUP(E7212,Translation!$A:$C,3,FALSE),E7212)","v":0.24668824550275129},{"$f":"IFERROR(VLOOKUP(F7212,Translation!$A:$C,3,FALSE),F7212)","v":"Prêts hypothécaires assurés au cours de la période selon la province (%)"},{"$f":"IFERROR(VLOOKUP(G7212,Translation!$A:$C,3,FALSE),G7212)","v":"0.2"},{"$f":"IFERROR(VLOOKUP(H7212,Translation!$A:$C,3,FALSE),H7212)","v":0}]
[3,"T3 2017","ALL","Île-du-Prince-Édouard",0.26581887713760222,"Prêts hypothécaires assurés au cours de la période selon la province (%)","0.3",0,{"$f":"IFERROR(VLOOKUP(A7213,Translation!$A:$C,3,FALSE),A7213)","v":3},{"$f":"IFERROR(VLOOKUP(B7213,Translation!$A:$C,3,FALSE),B7213)","v":"T3 2017"},{"$f":"IFERROR(VLOOKUP(C7213,Translation!$A:$C,3,FALSE),C7213)","v":"ALL"},{"$f":"IFERROR(VLOOKUP(D7213,Translation!$A:$C,3,FALSE),D7213)","v":"Île-du-Prince-Édouard"},{"$f":"IFERROR(VLOOKUP(E7213,Translation!$A:$C,3,FALSE),E7213)","v":0.26581887713760222},{"$f":"IFERROR(VLOOKUP(F7213,Translation!$A:$C,3,FALSE),F7213)","v":"Prêts hypothécaires assurés au cours de la période selon la province (%)"},{"$f":"IFERROR(VLOOKUP(G7213,Translation!$A:$C,3,FALSE),G7213)","v":"0.3"},{"$f":"IFERROR(VLOOKUP(H7213,Translation!$A:$C,3,FALSE),H7213)","v":0}]
[3,"Q4 2016","ALL","Île-du-Prince-Édouard",0.212670204021458,"Prêts hypothécaires assurés au cours de la période selon la province (%)","0.2",0,{"$f":"IFERROR(VLOOKUP(A7214,Translation!$A:$C,3,FALSE),A7214)","v":3},{"$f":"IFERROR(VLOOKUP(B7214,Translation!$A:$C,3,FALSE),B7214)","v":"Q4 2016"},{"$f":"IFERROR(VLOOKUP(C7214,Translation!$A:$C,3,FALSE),C7214)","v":"ALL"},{"$f":"IFERROR(VLOOKUP(D7214,Translation!$A:$C,3,FALSE),D7214)","v":"Île-du-Prince-Édouard"},{"$f":"IFERROR(VLOOKUP(E7214,Translation!$A:$C,3,FALSE),E7214)","v":0.212670204021458},{"$f":"IFERROR(VLOOKUP(F7214,Translation!$A:$C,3,FALSE),F7214)","v":"Prêts hypothécaires assurés au cours de la période selon la province (%)"},{"$f":"IFERROR(VLOOKUP(G7214,Translation!$A:$C,3,FALSE),G7214)","v":"0.2"},{"$f":"IFERROR(VLOOKUP(H7214,Translation!$A:$C,3,FALSE),H7214)","v":0}]
[3,"T4 2017","ALL","Île-du-Prince-Édouard",0.22280660056198889,"Prêts hypothécaires assurés au cours de la période selon la province (%)","0.2",0,{"$f":"IFERROR(VLOOKUP(A7215,Translation!$A:$C,3,FALSE),A7215)","v":3},{"$f":"IFERROR(VLOOKUP(B7215,Translation!$A:$C,3,FALSE),B7215)","v":"T4 2017"},{"$f":"IFERROR(VLOOKUP(C7215,Translation!$A:$C,3,FALSE),C7215)","v":"ALL"},{"$f":"IFERROR(VLOOKUP(D7215,Translation!$A:$C,3,FALSE),D7215)","v":"Île-du-Prince-Édouard"},{"$f":"IFERROR(VLOOKUP(E7215,Translation!$A:$C,3,FALSE),E7215)","v":0.22280660056198889},{"$f":"IFERROR(VLOOKUP(F7215,Translation!$A:$C,3,FALSE),F7215)","v":"Prêts hypothécaires assurés au cours de la période selon la province (%)"},{"$f":"IFERROR(VLOOKUP(G7215,Translation!$A:$C,3,FALSE),G7215)","v":"0.2"},{"$f":"IFERROR(VLOOKUP(H7215,Translation!$A:$C,3,FALSE),H7215)","v":0}]
[3,"T1 2017","ALL","Nouvelle-Écosse",1.5668553978467705,"Prêts hypothécaires assurés au cours de la période selon la province (%)","1.6",0,{"$f":"IFERROR(VLOOKUP(A7216,Translation!$A:$C,3,FALSE),A7216)","v":3},{"$f":"IFERROR(VLOOKUP(B7216,Translation!$A:$C,3,FALSE),B7216)","v":"T1 2017"},{"$f":"IFERROR(VLOOKUP(C7216,Translation!$A:$C,3,FALSE),C7216)","v":"ALL"},{"$f":"IFERROR(VLOOKUP(D7216,Translation!$A:$C,3,FALSE),D7216)","v":"Nouvelle-Écosse"},{"$f":"IFERROR(VLOOKUP(E7216,Translation!$A:$C,3,FALSE),E7216)","v":1.5668553978467705},{"$f":"IFERROR(VLOOKUP(F7216,Translation!$A:$C,3,FALSE),F7216)","v":"Prêts hypothécaires assurés au cours de la période selon la province (%)"},{"$f":"IFERROR(VLOOKUP(G7216,Translation!$A:$C,3,FALSE),G7216)","v":"1.6"},{"$f":"IFERROR(VLOOKUP(H7216,Translation!$A:$C,3,FALSE),H7216)","v":0}]
[3,"T1 2018","ALL","Nouvelle-Écosse",3.8722151490024048,"Prêts hypothécaires assurés au cours de la période selon la province (%)","3.9",0,{"$f":"IFERROR(VLOOKUP(A7217,Translation!$A:$C,3,FALSE),A7217)","v":3},{"$f":"IFERROR(VLOOKUP(B7217,Translation!$A:$C,3,FALSE),B7217)","v":"T1 2018"},{"$f":"IFERROR(VLOOKUP(C7217,Translation!$A:$C,3,FALSE),C7217)","v":"ALL"},{"$f":"IFERROR(VLOOKUP(D7217,Translation!$A:$C,3,FALSE),D7217)","v":"Nouvelle-Écosse"},{"$f":"IFERROR(VLOOKUP(E7217,Translation!$A:$C,3,FALSE),E7217)","v":3.8722151490024048},{"$f":"IFERROR(VLOOKUP(F7217,Translation!$A:$C,3,FALSE),F7217)","v":"Prêts hypothécaires assurés au cours de la période selon la province (%)"},{"$f":"IFERROR(VLOOKUP(G7217,Translation!$A:$C,3,FALSE),G7217)","v":"3.9"},{"$f":"IFERROR(VLOOKUP(H7217,Translation!$A:$C,3,FALSE),H7217)","v":0}]
[3,"Q2 2016","ALL","Nouvelle-Écosse",2.0128993757407878,"Prêts hypothécaires assurés au cours de la période selon la province (%)","2.0",0,{"$f":"IFERROR(VLOOKUP(A7218,Translation!$A:$C,3,FALSE),A7218)","v":3},{"$f":"IFERROR(VLOOKUP(B7218,Translation!$A:$C,3,FALSE),B7218)","v":"Q2 2016"},{"$f":"IFERROR(VLOOKUP(C7218,Translation!$A:$C,3,FALSE),C7218)","v":"ALL"},{"$f":"IFERROR(VLOOKUP(D7218,Translation!$A:$C,3,FALSE),D7218)","v":"Nouvelle-Écosse"},{"$f":"IFERROR(VLOOKUP(E7218,Translation!$A:$C,3,FALSE),E7218)","v":2.0128993757407878},{"$f":"IFERROR(VLOOKUP(F7218,Translation!$A:$C,3,FALSE),F7218)","v":"Prêts hypothécaires assurés au cours de la période selon la province (%)"},{"$f":"IFERROR(VLOOKUP(G7218,Translation!$A:$C,3,FALSE),G7218)","v":"2.0"},{"$f":"IFERROR(VLOOKUP(H7218,Translation!$A:$C,3,FALSE),H7218)","v":0}]
[3,"T2 2017","ALL","Nouvelle-Écosse",1.7573327694526908,"Prêts hypothécaires assurés au cours de la période selon la province (%)","1.8",0,{"$f":"IFERROR(VLOOKUP(A7219,Translation!$A:$C,3,FALSE),A7219)","v":3},{"$f":"IFERROR(VLOOKUP(B7219,Translation!$A:$C,3,FALSE),B7219)","v":"T2 2017"},{"$f":"IFERROR(VLOOKUP(C7219,Translation!$A:$C,3,FALSE),C7219)","v":"ALL"},{"$f":"IFERROR(VLOOKUP(D7219,Translation!$A:$C,3,FALSE),D7219)","v":"Nouvelle-Écosse"},{"$f":"IFERROR(VLOOKUP(E7219,Translation!$A:$C,3,FALSE),E7219)","v":1.7573327694526908},{"$f":"IFERROR(VLOOKUP(F7219,Translation!$A:$C,3,FALSE),F7219)","v":"Prêts hypothécaires assurés au cours de la période selon la province (%)"},{"$f":"IFERROR(VLOOKUP(G7219,Translation!$A:$C,3,FALSE),G7219)","v":"1.8"},{"$f":"IFERROR(VLOOKUP(H7219,Translation!$A:$C,3,FALSE),H7219)","v":0}]
[3,"Q3 2016","ALL","Nouvelle-Écosse",2.4225014103910358,"Prêts hypothécaires assurés au cours de la période selon la province (%)","2.4",0,{"$f":"IFERROR(VLOOKUP(A7220,Translation!$A:$C,3,FALSE),A7220)","v":3},{"$f":"IFERROR(VLOOKUP(B7220,Translation!$A:$C,3,FALSE),B7220)","v":"Q3 2016"},{"$f":"IFERROR(VLOOKUP(C7220,Translation!$A:$C,3,FALSE),C7220)","v":"ALL"},{"$f":"IFERROR(VLOOKUP(D7220,Translation!$A:$C,3,FALSE),D7220)","v":"Nouvelle-Écosse"},{"$f":"IFERROR(VLOOKUP(E7220,Translation!$A:$C,3,FALSE),E7220)","v":2.4225014103910358},{"$f":"IFERROR(VLOOKUP(F7220,Translation!$A:$C,3,FALSE),F7220)","v":"Prêts hypothécaires assurés au cours de la période selon la province (%)"},{"$f":"IFERROR(VLOOKUP(G7220,Translation!$A:$C,3,FALSE),G7220)","v":"2.4"},{"$f":"IFERROR(VLOOKUP(H7220,Translation!$A:$C,3,FALSE),H7220)","v":0}]
[3,"T3 2017","ALL","Nouvelle-Écosse",2.6516419741410155,"Prêts hypothécaires assurés au cours de la période selon la province (%)","2.7",0,{"$f":"IFERROR(VLOOKUP(A7221,Translation!$A:$C,3,FALSE),A7221)","v":3},{"$f":"IFERROR(VLOOKUP(B7221,Translation!$A:$C,3,FALSE),B7221)","v":"T3 2017"},{"$f":"IFERROR(VLOOKUP(C7221,Translation!$A:$C,3,FALSE),C7221)","v":"ALL"},{"$f":"IFERROR(VLOOKUP(D7221,Translation!$A:$C,3,FALSE),D7221)","v":"Nouvelle-Écosse"},{"$f":"IFERROR(VLOOKUP(E7221,Translation!$A:$C,3,FALSE),E7221)","v":2.6516419741410155},{"$f":"IFERROR(VLOOKUP(F7221,Translation!$A:$C,3,FALSE),F7221)","v":"Prêts hypothécaires assurés au cours de la période selon la province (%)"},{"$f":"IFERROR(VLOOKUP(G7221,Translation!$A:$C,3,FALSE),G7221)","v":"2.7"},{"$f":"IFERROR(VLOOKUP(H7221,Translation!$A:$C,3,FALSE),H7221)","v":0}]
[3,"Q4 2016","ALL","Nouvelle-Écosse",2.091392545219549,"Prêts hypothécaires assurés au cours de la période selon la province (%)","2.1",0,{"$f":"IFERROR(VLOOKUP(A7222,Translation!$A:$C,3,FALSE),A7222)","v":3},{"$f":"IFERROR(VLOOKUP(B7222,Translation!$A:$C,3,FALSE),B7222)","v":"Q4 2016"},{"$f":"IFERROR(VLOOKUP(C7222,Translation!$A:$C,3,FALSE),C7222)","v":"ALL"},{"$f":"IFERROR(VLOOKUP(D7222,Translation!$A:$C,3,FALSE),D7222)","v":"Nouvelle-Écosse"},{"$f":"IFERROR(VLOOKUP(E7222,Translation!$A:$C,3,FALSE),E7222)","v":2.091392545219549},{"$f":"IFERROR(VLOOKUP(F7222,Translation!$A:$C,3,FALSE),F7222)","v":"Prêts hypothécaires assurés au cours de la période selon la province (%)"},{"$f":"IFERROR(VLOOKUP(G7222,Translation!$A:$C,3,FALSE),G7222)","v":"2.1"},{"$f":"IFERROR(VLOOKUP(H7222,Translation!$A:$C,3,FALSE),H7222)","v":0}]
[3,"T4 2017","ALL","Nouvelle-Écosse",2.0374811177507368,"Prêts hypothécaires assurés au cours de la période selon la province (%)","2.0",0,{"$f":"IFERROR(VLOOKUP(A7223,Translation!$A:$C,3,FALSE),A7223)","v":3},{"$f":"IFERROR(VLOOKUP(B7223,Translation!$A:$C,3,FALSE),B7223)","v":"T4 2017"},{"$f":"IFERROR(VLOOKUP(C7223,Translation!$A:$C,3,FALSE),C7223)","v":"ALL"},{"$f":"IFERROR(VLOOKUP(D7223,Translation!$A:$C,3,FALSE),D7223)","v":"Nouvelle-Écosse"},{"$f":"IFERROR(VLOOKUP(E7223,Translation!$A:$C,3,FALSE),E7223)","v":2.0374811177507368},{"$f":"IFERROR(VLOOKUP(F7223,Translation!$A:$C,3,FALSE),F7223)","v":"Prêts hypothécaires assurés au cours de la période selon la province (%)"},{"$f":"IFERROR(VLOOKUP(G7223,Translation!$A:$C,3,FALSE),G7223)","v":"2.0"},{"$f":"IFERROR(VLOOKUP(H7223,Translation!$A:$C,3,FALSE),H7223)","v":0}]
[3,"T1 2017","ALL","Nouveau-Brunswick",1.069769587499569,"Prêts hypothécaires assurés au cours de la période selon la province (%)","1.1",0,{"$f":"IFERROR(VLOOKUP(A7224,Translation!$A:$C,3,FALSE),A7224)","v":3},{"$f":"IFERROR(VLOOKUP(B7224,Translation!$A:$C,3,FALSE),B7224)","v":"T1 2017"},{"$f":"IFERROR(VLOOKUP(C7224,Translation!$A:$C,3,FALSE),C7224)","v":"ALL"},{"$f":"IFERROR(VLOOKUP(D7224,Translation!$A:$C,3,FALSE),D7224)","v":"Nouveau-Brunswick"},{"$f":"IFERROR(VLOOKUP(E7224,Translation!$A:$C,3,FALSE),E7224)","v":1.069769587499569},{"$f":"IFERROR(VLOOKUP(F7224,Translation!$A:$C,3,FALSE),F7224)","v":"Prêts hypothécaires assurés au cours de la période selon la province (%)"},{"$f":"IFERROR(VLOOKUP(G7224,Translation!$A:$C,3,FALSE),G7224)","v":"1.1"},{"$f":"IFERROR(VLOOKUP(H7224,Translation!$A:$C,3,FALSE),H7224)","v":0}]
[3,"T1 2018","ALL","Nouveau-Brunswick",1.2491646860329275,"Prêts hypothécaires assurés au cours de la période selon la province (%)","1.2",0,{"$f":"IFERROR(VLOOKUP(A7225,Translation!$A:$C,3,FALSE),A7225)","v":3},{"$f":"IFERROR(VLOOKUP(B7225,Translation!$A:$C,3,FALSE),B7225)","v":"T1 2018"},{"$f":"IFERROR(VLOOKUP(C7225,Translation!$A:$C,3,FALSE),C7225)","v":"ALL"},{"$f":"IFERROR(VLOOKUP(D7225,Translation!$A:$C,3,FALSE),D7225)","v":"Nouveau-Brunswick"},{"$f":"IFERROR(VLOOKUP(E7225,Translation!$A:$C,3,FALSE),E7225)","v":1.2491646860329275},{"$f":"IFERROR(VLOOKUP(F7225,Translation!$A:$C,3,FALSE),F7225)","v":"Prêts hypothécaires assurés au cours de la période selon la province (%)"},{"$f":"IFERROR(VLOOKUP(G7225,Translation!$A:$C,3,FALSE),G7225)","v":"1.2"},{"$f":"IFERROR(VLOOKUP(H7225,Translation!$A:$C,3,FALSE),H7225)","v":0}]
[3,"Q2 2016","ALL","Nouveau-Brunswick",1.1299191535666397,"Prêts hypothécaires assurés au cours de la période selon la province (%)","1.1",0,{"$f":"IFERROR(VLOOKUP(A7226,Translation!$A:$C,3,FALSE),A7226)","v":3},{"$f":"IFERROR(VLOOKUP(B7226,Translation!$A:$C,3,FALSE),B7226)","v":"Q2 2016"},{"$f":"IFERROR(VLOOKUP(C7226,Translation!$A:$C,3,FALSE),C7226)","v":"ALL"},{"$f":"IFERROR(VLOOKUP(D7226,Translation!$A:$C,3,FALSE),D7226)","v":"Nouveau-Brunswick"},{"$f":"IFERROR(VLOOKUP(E7226,Translation!$A:$C,3,FALSE),E7226)","v":1.1299191535666397},{"$f":"IFERROR(VLOOKUP(F7226,Translation!$A:$C,3,FALSE),F7226)","v":"Prêts hypothécaires assurés au cours de la période selon la province (%)"},{"$f":"IFERROR(VLOOKUP(G7226,Translation!$A:$C,3,FALSE),G7226)","v":"1.1"},{"$f":"IFERROR(VLOOKUP(H7226,Translation!$A:$C,3,FALSE),H7226)","v":0}]
[3,"T2 2017","ALL","Nouveau-Brunswick",1.1132211598650876,"Prêts hypothécaires assurés au cours de la période selon la province (%)","1.1",0,{"$f":"IFERROR(VLOOKUP(A7227,Translation!$A:$C,3,FALSE),A7227)","v":3},{"$f":"IFERROR(VLOOKUP(B7227,Translation!$A:$C,3,FALSE),B7227)","v":"T2 2017"},{"$f":"IFERROR(VLOOKUP(C7227,Translation!$A:$C,3,FALSE),C7227)","v":"ALL"},{"$f":"IFERROR(VLOOKUP(D7227,Translation!$A:$C,3,FALSE),D7227)","v":"Nouveau-Brunswick"},{"$f":"IFERROR(VLOOKUP(E7227,Translation!$A:$C,3,FALSE),E7227)","v":1.1132211598650876},{"$f":"IFERROR(VLOOKUP(F7227,Translation!$A:$C,3,FALSE),F7227)","v":"Prêts hypothécaires assurés au cours de la période selon la province (%)"},{"$f":"IFERROR(VLOOKUP(G7227,Translation!$A:$C,3,FALSE),G7227)","v":"1.1"},{"$f":"IFERROR(VLOOKUP(H7227,Translation!$A:$C,3,FALSE),H7227)","v":0}]
[3,"Q3 2016","ALL","Nouveau-Brunswick",1.2965344778857362,"Prêts hypothécaires assurés au cours de la période selon la province (%)","1.3",0,{"$f":"IFERROR(VLOOKUP(A7228,Translation!$A:$C,3,FALSE),A7228)","v":3},{"$f":"IFERROR(VLOOKUP(B7228,Translation!$A:$C,3,FALSE),B7228)","v":"Q3 2016"},{"$f":"IFERROR(VLOOKUP(C7228,Translation!$A:$C,3,FALSE),C7228)","v":"ALL"},{"$f":"IFERROR(VLOOKUP(D7228,Translation!$A:$C,3,FALSE),D7228)","v":"Nouveau-Brunswick"},{"$f":"IFERROR(VLOOKUP(E7228,Translation!$A:$C,3,FALSE),E7228)","v":1.2965344778857362},{"$f":"IFERROR(VLOOKUP(F7228,Translation!$A:$C,3,FALSE),F7228)","v":"Prêts hypothécaires assurés au cours de la période selon la province (%)"},{"$f":"IFERROR(VLOOKUP(G7228,Translation!$A:$C,3,FALSE),G7228)","v":"1.3"},{"$f":"IFERROR(VLOOKUP(H7228,Translation!$A:$C,3,FALSE),H7228)","v":0}]
[3,"T3 2017","ALL","Nouveau-Brunswick",1.8124029926151219,"Prêts hypothécaires assurés au cours de la période selon la province (%)","1.8",0,{"$f":"IFERROR(VLOOKUP(A7229,Translation!$A:$C,3,FALSE),A7229)","v":3},{"$f":"IFERROR(VLOOKUP(B7229,Translation!$A:$C,3,FALSE),B7229)","v":"T3 2017"},{"$f":"IFERROR(VLOOKUP(C7229,Translation!$A:$C,3,FALSE),C7229)","v":"ALL"},{"$f":"IFERROR(VLOOKUP(D7229,Translation!$A:$C,3,FALSE),D7229)","v":"Nouveau-Brunswick"},{"$f":"IFERROR(VLOOKUP(E7229,Translation!$A:$C,3,FALSE),E7229)","v":1.8124029926151219},{"$f":"IFERROR(VLOOKUP(F7229,Translation!$A:$C,3,FALSE),F7229)","v":"Prêts hypothécaires assurés au cours de la période selon la province (%)"},{"$f":"IFERROR(VLOOKUP(G7229,Translation!$A:$C,3,FALSE),G7229)","v":"1.8"},{"$f":"IFERROR(VLOOKUP(H7229,Translation!$A:$C,3,FALSE),H7229)","v":0}]
[3,"Q4 2016","ALL","Nouveau-Brunswick",1.1722005622594678,"Prêts hypothécaires assurés au cours de la période selon la province (%)","1.2",0,{"$f":"IFERROR(VLOOKUP(A7230,Translation!$A:$C,3,FALSE),A7230)","v":3},{"$f":"IFERROR(VLOOKUP(B7230,Translation!$A:$C,3,FALSE),B7230)","v":"Q4 2016"},{"$f":"IFERROR(VLOOKUP(C7230,Translation!$A:$C,3,FALSE),C7230)","v":"ALL"},{"$f":"IFERROR(VLOOKUP(D7230,Translation!$A:$C,3,FALSE),D7230)","v":"Nouveau-Brunswick"},{"$f":"IFERROR(VLOOKUP(E7230,Translation!$A:$C,3,FALSE),E7230)","v":1.1722005622594678},{"$f":"IFERROR(VLOOKUP(F7230,Translation!$A:$C,3,FALSE),F7230)","v":"Prêts hypothécaires assurés au cours de la période selon la province (%)"},{"$f":"IFERROR(VLOOKUP(G7230,Translation!$A:$C,3,FALSE),G7230)","v":"1.2"},{"$f":"IFERROR(VLOOKUP(H7230,Translation!$A:$C,3,FALSE),H7230)","v":0}]
[3,"T4 2017","ALL","Nouveau-Brunswick",1.2348334875567948,"Prêts hypothécaires assurés au cours de la période selon la province (%)","1.2",0,{"$f":"IFERROR(VLOOKUP(A7231,Translation!$A:$C,3,FALSE),A7231)","v":3},{"$f":"IFERROR(VLOOKUP(B7231,Translation!$A:$C,3,FALSE),B7231)","v":"T4 2017"},{"$f":"IFERROR(VLOOKUP(C7231,Translation!$A:$C,3,FALSE),C7231)","v":"ALL"},{"$f":"IFERROR(VLOOKUP(D7231,Translation!$A:$C,3,FALSE),D7231)","v":"Nouveau-Brunswick"},{"$f":"IFERROR(VLOOKUP(E7231,Translation!$A:$C,3,FALSE),E7231)","v":1.2348334875567948},{"$f":"IFERROR(VLOOKUP(F7231,Translation!$A:$C,3,FALSE),F7231)","v":"Prêts hypothécaires assurés au cours de la période selon la province (%)"},{"$f":"IFERROR(VLOOKUP(G7231,Translation!$A:$C,3,FALSE),G7231)","v":"1.2"},{"$f":"IFERROR(VLOOKUP(H7231,Translation!$A:$C,3,FALSE),H7231)","v":0}]
[3,"T1 2017","ALL","Québec",23.822288720856911,"Prêts hypothécaires assurés au cours de la période selon la province (%)","23.8",0,{"$f":"IFERROR(VLOOKUP(A7232,Translation!$A:$C,3,FALSE),A7232)","v":3},{"$f":"IFERROR(VLOOKUP(B7232,Translation!$A:$C,3,FALSE),B7232)","v":"T1 2017"},{"$f":"IFERROR(VLOOKUP(C7232,Translation!$A:$C,3,FALSE),C7232)","v":"ALL"},{"$f":"IFERROR(VLOOKUP(D7232,Translation!$A:$C,3,FALSE),D7232)","v":"Québec"},{"$f":"IFERROR(VLOOKUP(E7232,Translation!$A:$C,3,FALSE),E7232)","v":23.822288720856911},{"$f":"IFERROR(VLOOKUP(F7232,Translation!$A:$C,3,FALSE),F7232)","v":"Prêts hypothécaires assurés au cours de la période selon la province (%)"},{"$f":"IFERROR(VLOOKUP(G7232,Translation!$A:$C,3,FALSE),G7232)","v":"23.8"},{"$f":"IFERROR(VLOOKUP(H7232,Translation!$A:$C,3,FALSE),H7232)","v":0}]
[3,"T1 2018","ALL","Québec",24.130154320105305,"Prêts hypothécaires assurés au cours de la période selon la province (%)","24.1",0,{"$f":"IFERROR(VLOOKUP(A7233,Translation!$A:$C,3,FALSE),A7233)","v":3},{"$f":"IFERROR(VLOOKUP(B7233,Translation!$A:$C,3,FALSE),B7233)","v":"T1 2018"},{"$f":"IFERROR(VLOOKUP(C7233,Translation!$A:$C,3,FALSE),C7233)","v":"ALL"},{"$f":"IFERROR(VLOOKUP(D7233,Translation!$A:$C,3,FALSE),D7233)","v":"Québec"},{"$f":"IFERROR(VLOOKUP(E7233,Translation!$A:$C,3,FALSE),E7233)","v":24.130154320105305},{"$f":"IFERROR(VLOOKUP(F7233,Translation!$A:$C,3,FALSE),F7233)","v":"Prêts hypothécaires assurés au cours de la période selon la province (%)"},{"$f":"IFERROR(VLOOKUP(G7233,Translation!$A:$C,3,FALSE),G7233)","v":"24.1"},{"$f":"IFERROR(VLOOKUP(H7233,Translation!$A:$C,3,FALSE),H7233)","v":0}]
[3,"Q2 2016","ALL","Québec",23.080635762868727,"Prêts hypothécaires assurés au cours de la période selon la province (%)","23.1",0,{"$f":"IFERROR(VLOOKUP(A7234,Translation!$A:$C,3,FALSE),A7234)","v":3},{"$f":"IFERROR(VLOOKUP(B7234,Translation!$A:$C,3,FALSE),B7234)","v":"Q2 2016"},{"$f":"IFERROR(VLOOKUP(C7234,Translation!$A:$C,3,FALSE),C7234)","v":"ALL"},{"$f":"IFERROR(VLOOKUP(D7234,Translation!$A:$C,3,FALSE),D7234)","v":"Québec"},{"$f":"IFERROR(VLOOKUP(E7234,Translation!$A:$C,3,FALSE),E7234)","v":23.080635762868727},{"$f":"IFERROR(VLOOKUP(F7234,Translation!$A:$C,3,FALSE),F7234)","v":"Prêts hypothécaires assurés au cours de la période selon la province (%)"},{"$f":"IFERROR(VLOOKUP(G7234,Translation!$A:$C,3,FALSE),G7234)","v":"23.1"},{"$f":"IFERROR(VLOOKUP(H7234,Translation!$A:$C,3,FALSE),H7234)","v":0}]
[3,"T2 2017","ALL","Québec",36.619168408747797,"Prêts hypothécaires assurés au cours de la période selon la province (%)","36.6",0,{"$f":"IFERROR(VLOOKUP(A7235,Translation!$A:$C,3,FALSE),A7235)","v":3},{"$f":"IFERROR(VLOOKUP(B7235,Translation!$A:$C,3,FALSE),B7235)","v":"T2 2017"},{"$f":"IFERROR(VLOOKUP(C7235,Translation!$A:$C,3,FALSE),C7235)","v":"ALL"},{"$f":"IFERROR(VLOOKUP(D7235,Translation!$A:$C,3,FALSE),D7235)","v":"Québec"},{"$f":"IFERROR(VLOOKUP(E7235,Translation!$A:$C,3,FALSE),E7235)","v":36.619168408747797},{"$f":"IFERROR(VLOOKUP(F7235,Translation!$A:$C,3,FALSE),F7235)","v":"Prêts hypothécaires assurés au cours de la période selon la province (%)"},{"$f":"IFERROR(VLOOKUP(G7235,Translation!$A:$C,3,FALSE),G7235)","v":"36.6"},{"$f":"IFERROR(VLOOKUP(H7235,Translation!$A:$C,3,FALSE),H7235)","v":0}]
[3,"Q3 2016","ALL","Québec",17.149213042352724,"Prêts hypothécaires assurés au cours de la période selon la province (%)","17.1",0,{"$f":"IFERROR(VLOOKUP(A7236,Translation!$A:$C,3,FALSE),A7236)","v":3},{"$f":"IFERROR(VLOOKUP(B7236,Translation!$A:$C,3,FALSE),B7236)","v":"Q3 2016"},{"$f":"IFERROR(VLOOKUP(C7236,Translation!$A:$C,3,FALSE),C7236)","v":"ALL"},{"$f":"IFERROR(VLOOKUP(D7236,Translation!$A:$C,3,FALSE),D7236)","v":"Québec"},{"$f":"IFERROR(VLOOKUP(E7236,Translation!$A:$C,3,FALSE),E7236)","v":17.149213042352724},{"$f":"IFERROR(VLOOKUP(F7236,Translation!$A:$C,3,FALSE),F7236)","v":"Prêts hypothécaires assurés au cours de la période selon la province (%)"},{"$f":"IFERROR(VLOOKUP(G7236,Translation!$A:$C,3,FALSE),G7236)","v":"17.1"},{"$f":"IFERROR(VLOOKUP(H7236,Translation!$A:$C,3,FALSE),H7236)","v":0}]
[3,"T3 2017","ALL","Québec",24.259891250674485,"Prêts hypothécaires assurés au cours de la période selon la province (%)","24.3",0,{"$f":"IFERROR(VLOOKUP(A7237,Translation!$A:$C,3,FALSE),A7237)","v":3},{"$f":"IFERROR(VLOOKUP(B7237,Translation!$A:$C,3,FALSE),B7237)","v":"T3 2017"},{"$f":"IFERROR(VLOOKUP(C7237,Translation!$A:$C,3,FALSE),C7237)","v":"ALL"},{"$f":"IFERROR(VLOOKUP(D7237,Translation!$A:$C,3,FALSE),D7237)","v":"Québec"},{"$f":"IFERROR(VLOOKUP(E7237,Translation!$A:$C,3,FALSE),E7237)","v":24.259891250674485},{"$f":"IFERROR(VLOOKUP(F7237,Translation!$A:$C,3,FALSE),F7237)","v":"Prêts hypothécaires assurés au cours de la période selon la province (%)"},{"$f":"IFERROR(VLOOKUP(G7237,Translation!$A:$C,3,FALSE),G7237)","v":"24.3"},{"$f":"IFERROR(VLOOKUP(H7237,Translation!$A:$C,3,FALSE),H7237)","v":0}]
[3,"Q4 2016","ALL","Québec",25.229758082758998,"Prêts hypothécaires assurés au cours de la période selon la province (%)","25.2",0,{"$f":"IFERROR(VLOOKUP(A7238,Translation!$A:$C,3,FALSE),A7238)","v":3},{"$f":"IFERROR(VLOOKUP(B7238,Translation!$A:$C,3,FALSE),B7238)","v":"Q4 2016"},{"$f":"IFERROR(VLOOKUP(C7238,Translation!$A:$C,3,FALSE),C7238)","v":"ALL"},{"$f":"IFERROR(VLOOKUP(D7238,Translation!$A:$C,3,FALSE),D7238)","v":"Québec"},{"$f":"IFERROR(VLOOKUP(E7238,Translation!$A:$C,3,FALSE),E7238)","v":25.229758082758998},{"$f":"IFERROR(VLOOKUP(F7238,Translation!$A:$C,3,FALSE),F7238)","v":"Prêts hypothécaires assurés au cours de la période selon la province (%)"},{"$f":"IFERROR(VLOOKUP(G7238,Translation!$A:$C,3,FALSE),G7238)","v":"25.2"},{"$f":"IFERROR(VLOOKUP(H7238,Translation!$A:$C,3,FALSE),H7238)","v":0}]
[3,"T4 2017","ALL","Québec",21.825408736970537,"Prêts hypothécaires assurés au cours de la période selon la province (%)","21.8",0,{"$f":"IFERROR(VLOOKUP(A7239,Translation!$A:$C,3,FALSE),A7239)","v":3},{"$f":"IFERROR(VLOOKUP(B7239,Translation!$A:$C,3,FALSE),B7239)","v":"T4 2017"},{"$f":"IFERROR(VLOOKUP(C7239,Translation!$A:$C,3,FALSE),C7239)","v":"ALL"},{"$f":"IFERROR(VLOOKUP(D7239,Translation!$A:$C,3,FALSE),D7239)","v":"Québec"},{"$f":"IFERROR(VLOOKUP(E7239,Translation!$A:$C,3,FALSE),E7239)","v":21.825408736970537},{"$f":"IFERROR(VLOOKUP(F7239,Translation!$A:$C,3,FALSE),F7239)","v":"Prêts hypothécaires assurés au cours de la période selon la province (%)"},{"$f":"IFERROR(VLOOKUP(G7239,Translation!$A:$C,3,FALSE),G7239)","v":"21.8"},{"$f":"IFERROR(VLOOKUP(H7239,Translation!$A:$C,3,FALSE),H7239)","v":0}]
[3,"T1 2017","ALL","Ontario",36.441306723470447,"Prêts hypothécaires assurés au cours de la période selon la province (%)","36.4",0,{"$f":"IFERROR(VLOOKUP(A7240,Translation!$A:$C,3,FALSE),A7240)","v":3},{"$f":"IFERROR(VLOOKUP(B7240,Translation!$A:$C,3,FALSE),B7240)","v":"T1 2017"},{"$f":"IFERROR(VLOOKUP(C7240,Translation!$A:$C,3,FALSE),C7240)","v":"ALL"},{"$f":"IFERROR(VLOOKUP(D7240,Translation!$A:$C,3,FALSE),D7240)","v":"Ontario"},{"$f":"IFERROR(VLOOKUP(E7240,Translation!$A:$C,3,FALSE),E7240)","v":36.441306723470447},{"$f":"IFERROR(VLOOKUP(F7240,Translation!$A:$C,3,FALSE),F7240)","v":"Prêts hypothécaires assurés au cours de la période selon la province (%)"},{"$f":"IFERROR(VLOOKUP(G7240,Translation!$A:$C,3,FALSE),G7240)","v":"36.4"},{"$f":"IFERROR(VLOOKUP(H7240,Translation!$A:$C,3,FALSE),H7240)","v":0}]
[3,"T1 2018","ALL","Ontario",36.775098004675378,"Prêts hypothécaires assurés au cours de la période selon la province (%)","36.8",0,{"$f":"IFERROR(VLOOKUP(A7241,Translation!$A:$C,3,FALSE),A7241)","v":3},{"$f":"IFERROR(VLOOKUP(B7241,Translation!$A:$C,3,FALSE),B7241)","v":"T1 2018"},{"$f":"IFERROR(VLOOKUP(C7241,Translation!$A:$C,3,FALSE),C7241)","v":"ALL"},{"$f":"IFERROR(VLOOKUP(D7241,Translation!$A:$C,3,FALSE),D7241)","v":"Ontario"},{"$f":"IFERROR(VLOOKUP(E7241,Translation!$A:$C,3,FALSE),E7241)","v":36.775098004675378},{"$f":"IFERROR(VLOOKUP(F7241,Translation!$A:$C,3,FALSE),F7241)","v":"Prêts hypothécaires assurés au cours de la période selon la province (%)"},{"$f":"IFERROR(VLOOKUP(G7241,Translation!$A:$C,3,FALSE),G7241)","v":"36.8"},{"$f":"IFERROR(VLOOKUP(H7241,Translation!$A:$C,3,FALSE),H7241)","v":0}]
[3,"Q2 2016","ALL","Ontario",37.157081731713824,"Prêts hypothécaires assurés au cours de la période selon la province (%)","37.2",0,{"$f":"IFERROR(VLOOKUP(A7242,Translation!$A:$C,3,FALSE),A7242)","v":3},{"$f":"IFERROR(VLOOKUP(B7242,Translation!$A:$C,3,FALSE),B7242)","v":"Q2 2016"},{"$f":"IFERROR(VLOOKUP(C7242,Translation!$A:$C,3,FALSE),C7242)","v":"ALL"},{"$f":"IFERROR(VLOOKUP(D7242,Translation!$A:$C,3,FALSE),D7242)","v":"Ontario"},{"$f":"IFERROR(VLOOKUP(E7242,Translation!$A:$C,3,FALSE),E7242)","v":37.157081731713824},{"$f":"IFERROR(VLOOKUP(F7242,Translation!$A:$C,3,FALSE),F7242)","v":"Prêts hypothécaires assurés au cours de la période selon la province (%)"},{"$f":"IFERROR(VLOOKUP(G7242,Translation!$A:$C,3,FALSE),G7242)","v":"37.2"},{"$f":"IFERROR(VLOOKUP(H7242,Translation!$A:$C,3,FALSE),H7242)","v":0}]
[3,"T2 2017","ALL","Ontario",32.082849525051358,"Prêts hypothécaires assurés au cours de la période selon la province (%)","32.1",0,{"$f":"IFERROR(VLOOKUP(A7243,Translation!$A:$C,3,FALSE),A7243)","v":3},{"$f":"IFERROR(VLOOKUP(B7243,Translation!$A:$C,3,FALSE),B7243)","v":"T2 2017"},{"$f":"IFERROR(VLOOKUP(C7243,Translation!$A:$C,3,FALSE),C7243)","v":"ALL"},{"$f":"IFERROR(VLOOKUP(D7243,Translation!$A:$C,3,FALSE),D7243)","v":"Ontario"},{"$f":"IFERROR(VLOOKUP(E7243,Translation!$A:$C,3,FALSE),E7243)","v":32.082849525051358},{"$f":"IFERROR(VLOOKUP(F7243,Translation!$A:$C,3,FALSE),F7243)","v":"Prêts hypothécaires assurés au cours de la période selon la province (%)"},{"$f":"IFERROR(VLOOKUP(G7243,Translation!$A:$C,3,FALSE),G7243)","v":"32.1"},{"$f":"IFERROR(VLOOKUP(H7243,Translation!$A:$C,3,FALSE),H7243)","v":0}]
[3,"Q3 2016","ALL","Ontario",42.219129659716337,"Prêts hypothécaires assurés au cours de la période selon la province (%)","42.2",0,{"$f":"IFERROR(VLOOKUP(A7244,Translation!$A:$C,3,FALSE),A7244)","v":3},{"$f":"IFERROR(VLOOKUP(B7244,Translation!$A:$C,3,FALSE),B7244)","v":"Q3 2016"},{"$f":"IFERROR(VLOOKUP(C7244,Translation!$A:$C,3,FALSE),C7244)","v":"ALL"},{"$f":"IFERROR(VLOOKUP(D7244,Translation!$A:$C,3,FALSE),D7244)","v":"Ontario"},{"$f":"IFERROR(VLOOKUP(E7244,Translation!$A:$C,3,FALSE),E7244)","v":42.219129659716337},{"$f":"IFERROR(VLOOKUP(F7244,Translation!$A:$C,3,FALSE),F7244)","v":"Prêts hypothécaires assurés au cours de la période selon la province (%)"},{"$f":"IFERROR(VLOOKUP(G7244,Translation!$A:$C,3,FALSE),G7244)","v":"42.2"},{"$f":"IFERROR(VLOOKUP(H7244,Translation!$A:$C,3,FALSE),H7244)","v":0}]
[3,"T3 2017","ALL","Ontario",35.377237366356042,"Prêts hypothécaires assurés au cours de la période selon la province (%)","35.4",0,{"$f":"IFERROR(VLOOKUP(A7245,Translation!$A:$C,3,FALSE),A7245)","v":3},{"$f":"IFERROR(VLOOKUP(B7245,Translation!$A:$C,3,FALSE),B7245)","v":"T3 2017"},{"$f":"IFERROR(VLOOKUP(C7245,Translation!$A:$C,3,FALSE),C7245)","v":"ALL"},{"$f":"IFERROR(VLOOKUP(D7245,Translation!$A:$C,3,FALSE),D7245)","v":"Ontario"},{"$f":"IFERROR(VLOOKUP(E7245,Translation!$A:$C,3,FALSE),E7245)","v":35.377237366356042},{"$f":"IFERROR(VLOOKUP(F7245,Translation!$A:$C,3,FALSE),F7245)","v":"Prêts hypothécaires assurés au cours de la période selon la province (%)"},{"$f":"IFERROR(VLOOKUP(G7245,Translation!$A:$C,3,FALSE),G7245)","v":"35.4"},{"$f":"IFERROR(VLOOKUP(H7245,Translation!$A:$C,3,FALSE),H7245)","v":0}]
[3,"Q4 2016","ALL","Ontario",35.795581009959925,"Prêts hypothécaires assurés au cours de la période selon la province (%)","35.8",0,{"$f":"IFERROR(VLOOKUP(A7246,Translation!$A:$C,3,FALSE),A7246)","v":3},{"$f":"IFERROR(VLOOKUP(B7246,Translation!$A:$C,3,FALSE),B7246)","v":"Q4 2016"},{"$f":"IFERROR(VLOOKUP(C7246,Translation!$A:$C,3,FALSE),C7246)","v":"ALL"},{"$f":"IFERROR(VLOOKUP(D7246,Translation!$A:$C,3,FALSE),D7246)","v":"Ontario"},{"$f":"IFERROR(VLOOKUP(E7246,Translation!$A:$C,3,FALSE),E7246)","v":35.795581009959925},{"$f":"IFERROR(VLOOKUP(F7246,Translation!$A:$C,3,FALSE),F7246)","v":"Prêts hypothécaires assurés au cours de la période selon la province (%)"},{"$f":"IFERROR(VLOOKUP(G7246,Translation!$A:$C,3,FALSE),G7246)","v":"35.8"},{"$f":"IFERROR(VLOOKUP(H7246,Translation!$A:$C,3,FALSE),H7246)","v":0}]
[3,"T4 2017","ALL","Ontario",39.703164459476753,"Prêts hypothécaires assurés au cours de la période selon la province (%)","39.7",0,{"$f":"IFERROR(VLOOKUP(A7247,Translation!$A:$C,3,FALSE),A7247)","v":3},{"$f":"IFERROR(VLOOKUP(B7247,Translation!$A:$C,3,FALSE),B7247)","v":"T4 2017"},{"$f":"IFERROR(VLOOKUP(C7247,Translation!$A:$C,3,FALSE),C7247)","v":"ALL"},{"$f":"IFERROR(VLOOKUP(D7247,Translation!$A:$C,3,FALSE),D7247)","v":"Ontario"},{"$f":"IFERROR(VLOOKUP(E7247,Translation!$A:$C,3,FALSE),E7247)","v":39.703164459476753},{"$f":"IFERROR(VLOOKUP(F7247,Translation!$A:$C,3,FALSE),F7247)","v":"Prêts hypothécaires assurés au cours de la période selon la province (%)"},{"$f":"IFERROR(VLOOKUP(G7247,Translation!$A:$C,3,FALSE),G7247)","v":"39.7"},{"$f":"IFERROR(VLOOKUP(H7247,Translation!$A:$C,3,FALSE),H7247)","v":0}]
[3,"T1 2017","ALL","Manitoba",3.0461842666847443,"Prêts hypothécaires assurés au cours de la période selon la province (%)","3.0",0,{"$f":"IFERROR(VLOOKUP(A7248,Translation!$A:$C,3,FALSE),A7248)","v":3},{"$f":"IFERROR(VLOOKUP(B7248,Translation!$A:$C,3,FALSE),B7248)","v":"T1 2017"},{"$f":"IFERROR(VLOOKUP(C7248,Translation!$A:$C,3,FALSE),C7248)","v":"ALL"},{"$f":"IFERROR(VLOOKUP(D7248,Translation!$A:$C,3,FALSE),D7248)","v":"Manitoba"},{"$f":"IFERROR(VLOOKUP(E7248,Translation!$A:$C,3,FALSE),E7248)","v":3.0461842666847443},{"$f":"IFERROR(VLOOKUP(F7248,Translation!$A:$C,3,FALSE),F7248)","v":"Prêts hypothécaires assurés au cours de la période selon la province (%)"},{"$f":"IFERROR(VLOOKUP(G7248,Translation!$A:$C,3,FALSE),G7248)","v":"3.0"},{"$f":"IFERROR(VLOOKUP(H7248,Translation!$A:$C,3,FALSE),H7248)","v":0}]
[3,"T1 2018","ALL","Manitoba",2.7196470853742905,"Prêts hypothécaires assurés au cours de la période selon la province (%)","2.7",0,{"$f":"IFERROR(VLOOKUP(A7249,Translation!$A:$C,3,FALSE),A7249)","v":3},{"$f":"IFERROR(VLOOKUP(B7249,Translation!$A:$C,3,FALSE),B7249)","v":"T1 2018"},{"$f":"IFERROR(VLOOKUP(C7249,Translation!$A:$C,3,FALSE),C7249)","v":"ALL"},{"$f":"IFERROR(VLOOKUP(D7249,Translation!$A:$C,3,FALSE),D7249)","v":"Manitoba"},{"$f":"IFERROR(VLOOKUP(E7249,Translation!$A:$C,3,FALSE),E7249)","v":2.7196470853742905},{"$f":"IFERROR(VLOOKUP(F7249,Translation!$A:$C,3,FALSE),F7249)","v":"Prêts hypothécaires assurés au cours de la période selon la province (%)"},{"$f":"IFERROR(VLOOKUP(G7249,Translation!$A:$C,3,FALSE),G7249)","v":"2.7"},{"$f":"IFERROR(VLOOKUP(H7249,Translation!$A:$C,3,FALSE),H7249)","v":0}]
[3,"Q2 2016","ALL","Manitoba",2.548953809665663,"Prêts hypothécaires assurés au cours de la période selon la province (%)","2.5",0,{"$f":"IFERROR(VLOOKUP(A7250,Translation!$A:$C,3,FALSE),A7250)","v":3},{"$f":"IFERROR(VLOOKUP(B7250,Translation!$A:$C,3,FALSE),B7250)","v":"Q2 2016"},{"$f":"IFERROR(VLOOKUP(C7250,Translation!$A:$C,3,FALSE),C7250)","v":"ALL"},{"$f":"IFERROR(VLOOKUP(D7250,Translation!$A:$C,3,FALSE),D7250)","v":"Manitoba"},{"$f":"IFERROR(VLOOKUP(E7250,Translation!$A:$C,3,FALSE),E7250)","v":2.548953809665663},{"$f":"IFERROR(VLOOKUP(F7250,Translation!$A:$C,3,FALSE),F7250)","v":"Prêts hypothécaires assurés au cours de la période selon la province (%)"},{"$f":"IFERROR(VLOOKUP(G7250,Translation!$A:$C,3,FALSE),G7250)","v":"2.5"},{"$f":"IFERROR(VLOOKUP(H7250,Translation!$A:$C,3,FALSE),H7250)","v":0}]
[3,"T2 2017","ALL","Manitoba",2.1624858408680998,"Prêts hypothécaires assurés au cours de la période selon la province (%)","2.2",0,{"$f":"IFERROR(VLOOKUP(A7251,Translation!$A:$C,3,FALSE),A7251)","v":3},{"$f":"IFERROR(VLOOKUP(B7251,Translation!$A:$C,3,FALSE),B7251)","v":"T2 2017"},{"$f":"IFERROR(VLOOKUP(C7251,Translation!$A:$C,3,FALSE),C7251)","v":"ALL"},{"$f":"IFERROR(VLOOKUP(D7251,Translation!$A:$C,3,FALSE),D7251)","v":"Manitoba"},{"$f":"IFERROR(VLOOKUP(E7251,Translation!$A:$C,3,FALSE),E7251)","v":2.1624858408680998},{"$f":"IFERROR(VLOOKUP(F7251,Translation!$A:$C,3,FALSE),F7251)","v":"Prêts hypothécaires assurés au cours de la période selon la province (%)"},{"$f":"IFERROR(VLOOKUP(G7251,Translation!$A:$C,3,FALSE),G7251)","v":"2.2"},{"$f":"IFERROR(VLOOKUP(H7251,Translation!$A:$C,3,FALSE),H7251)","v":0}]
[3,"Q3 2016","ALL","Manitoba",3.3516009713334625,"Prêts hypothécaires assurés au cours de la période selon la province (%)","3.4",0,{"$f":"IFERROR(VLOOKUP(A7252,Translation!$A:$C,3,FALSE),A7252)","v":3},{"$f":"IFERROR(VLOOKUP(B7252,Translation!$A:$C,3,FALSE),B7252)","v":"Q3 2016"},{"$f":"IFERROR(VLOOKUP(C7252,Translation!$A:$C,3,FALSE),C7252)","v":"ALL"},{"$f":"IFERROR(VLOOKUP(D7252,Translation!$A:$C,3,FALSE),D7252)","v":"Manitoba"},{"$f":"IFERROR(VLOOKUP(E7252,Translation!$A:$C,3,FALSE),E7252)","v":3.3516009713334625},{"$f":"IFERROR(VLOOKUP(F7252,Translation!$A:$C,3,FALSE),F7252)","v":"Prêts hypothécaires assurés au cours de la période selon la province (%)"},{"$f":"IFERROR(VLOOKUP(G7252,Translation!$A:$C,3,FALSE),G7252)","v":"3.4"},{"$f":"IFERROR(VLOOKUP(H7252,Translation!$A:$C,3,FALSE),H7252)","v":0}]
[3,"T3 2017","ALL","Manitoba",4.0102197815637757,"Prêts hypothécaires assurés au cours de la période selon la province (%)","4.0",0,{"$f":"IFERROR(VLOOKUP(A7253,Translation!$A:$C,3,FALSE),A7253)","v":3},{"$f":"IFERROR(VLOOKUP(B7253,Translation!$A:$C,3,FALSE),B7253)","v":"T3 2017"},{"$f":"IFERROR(VLOOKUP(C7253,Translation!$A:$C,3,FALSE),C7253)","v":"ALL"},{"$f":"IFERROR(VLOOKUP(D7253,Translation!$A:$C,3,FALSE),D7253)","v":"Manitoba"},{"$f":"IFERROR(VLOOKUP(E7253,Translation!$A:$C,3,FALSE),E7253)","v":4.0102197815637757},{"$f":"IFERROR(VLOOKUP(F7253,Translation!$A:$C,3,FALSE),F7253)","v":"Prêts hypothécaires assurés au cours de la période selon la province (%)"},{"$f":"IFERROR(VLOOKUP(G7253,Translation!$A:$C,3,FALSE),G7253)","v":"4.0"},{"$f":"IFERROR(VLOOKUP(H7253,Translation!$A:$C,3,FALSE),H7253)","v":0}]
[3,"Q4 2016","ALL","Manitoba",2.8578521004265447,"Prêts hypothécaires assurés au cours de la période selon la province (%)","2.9",0,{"$f":"IFERROR(VLOOKUP(A7254,Translation!$A:$C,3,FALSE),A7254)","v":3},{"$f":"IFERROR(VLOOKUP(B7254,Translation!$A:$C,3,FALSE),B7254)","v":"Q4 2016"},{"$f":"IFERROR(VLOOKUP(C7254,Translation!$A:$C,3,FALSE),C7254)","v":"ALL"},{"$f":"IFERROR(VLOOKUP(D7254,Translation!$A:$C,3,FALSE),D7254)","v":"Manitoba"},{"$f":"IFERROR(VLOOKUP(E7254,Translation!$A:$C,3,FALSE),E7254)","v":2.8578521004265447},{"$f":"IFERROR(VLOOKUP(F7254,Translation!$A:$C,3,FALSE),F7254)","v":"Prêts hypothécaires assurés au cours de la période selon la province (%)"},{"$f":"IFERROR(VLOOKUP(G7254,Translation!$A:$C,3,FALSE),G7254)","v":"2.9"},{"$f":"IFERROR(VLOOKUP(H7254,Translation!$A:$C,3,FALSE),H7254)","v":0}]
[3,"T4 2017","ALL","Manitoba",2.9485388259981256,"Prêts hypothécaires assurés au cours de la période selon la province (%)","2.9",0,{"$f":"IFERROR(VLOOKUP(A7255,Translation!$A:$C,3,FALSE),A7255)","v":3},{"$f":"IFERROR(VLOOKUP(B7255,Translation!$A:$C,3,FALSE),B7255)","v":"T4 2017"},{"$f":"IFERROR(VLOOKUP(C7255,Translation!$A:$C,3,FALSE),C7255)","v":"ALL"},{"$f":"IFERROR(VLOOKUP(D7255,Translation!$A:$C,3,FALSE),D7255)","v":"Manitoba"},{"$f":"IFERROR(VLOOKUP(E7255,Translation!$A:$C,3,FALSE),E7255)","v":2.9485388259981256},{"$f":"IFERROR(VLOOKUP(F7255,Translation!$A:$C,3,FALSE),F7255)","v":"Prêts hypothécaires assurés au cours de la période selon la province (%)"},{"$f":"IFERROR(VLOOKUP(G7255,Translation!$A:$C,3,FALSE),G7255)","v":"2.9"},{"$f":"IFERROR(VLOOKUP(H7255,Translation!$A:$C,3,FALSE),H7255)","v":0}]
[3,"T1 2017","ALL","Saskatchewan",2.8318701861858995,"Prêts hypothécaires assurés au cours de la période selon la province (%)","2.8",0,{"$f":"IFERROR(VLOOKUP(A7256,Translation!$A:$C,3,FALSE),A7256)","v":3},{"$f":"IFERROR(VLOOKUP(B7256,Translation!$A:$C,3,FALSE),B7256)","v":"T1 2017"},{"$f":"IFERROR(VLOOKUP(C7256,Translation!$A:$C,3,FALSE),C7256)","v":"ALL"},{"$f":"IFERROR(VLOOKUP(D7256,Translation!$A:$C,3,FALSE),D7256)","v":"Saskatchewan"},{"$f":"IFERROR(VLOOKUP(E7256,Translation!$A:$C,3,FALSE),E7256)","v":2.8318701861858995},{"$f":"IFERROR(VLOOKUP(F7256,Translation!$A:$C,3,FALSE),F7256)","v":"Prêts hypothécaires assurés au cours de la période selon la province (%)"},{"$f":"IFERROR(VLOOKUP(G7256,Translation!$A:$C,3,FALSE),G7256)","v":"2.8"},{"$f":"IFERROR(VLOOKUP(H7256,Translation!$A:$C,3,FALSE),H7256)","v":0}]
[3,"T1 2018","ALL","Saskatchewan",2.0727900395548966,"Prêts hypothécaires assurés au cours de la période selon la province (%)","2.1",0,{"$f":"IFERROR(VLOOKUP(A7257,Translation!$A:$C,3,FALSE),A7257)","v":3},{"$f":"IFERROR(VLOOKUP(B7257,Translation!$A:$C,3,FALSE),B7257)","v":"T1 2018"},{"$f":"IFERROR(VLOOKUP(C7257,Translation!$A:$C,3,FALSE),C7257)","v":"ALL"},{"$f":"IFERROR(VLOOKUP(D7257,Translation!$A:$C,3,FALSE),D7257)","v":"Saskatchewan"},{"$f":"IFERROR(VLOOKUP(E7257,Translation!$A:$C,3,FALSE),E7257)","v":2.0727900395548966},{"$f":"IFERROR(VLOOKUP(F7257,Translation!$A:$C,3,FALSE),F7257)","v":"Prêts hypothécaires assurés au cours de la période selon la province (%)"},{"$f":"IFERROR(VLOOKUP(G7257,Translation!$A:$C,3,FALSE),G7257)","v":"2.1"},{"$f":"IFERROR(VLOOKUP(H7257,Translation!$A:$C,3,FALSE),H7257)","v":0}]
[3,"Q2 2016","ALL","Saskatchewan",2.6106324568867159,"Prêts hypothécaires assurés au cours de la période selon la province (%)","2.6",0,{"$f":"IFERROR(VLOOKUP(A7258,Translation!$A:$C,3,FALSE),A7258)","v":3},{"$f":"IFERROR(VLOOKUP(B7258,Translation!$A:$C,3,FALSE),B7258)","v":"Q2 2016"},{"$f":"IFERROR(VLOOKUP(C7258,Translation!$A:$C,3,FALSE),C7258)","v":"ALL"},{"$f":"IFERROR(VLOOKUP(D7258,Translation!$A:$C,3,FALSE),D7258)","v":"Saskatchewan"},{"$f":"IFERROR(VLOOKUP(E7258,Translation!$A:$C,3,FALSE),E7258)","v":2.6106324568867159},{"$f":"IFERROR(VLOOKUP(F7258,Translation!$A:$C,3,FALSE),F7258)","v":"Prêts hypothécaires assurés au cours de la période selon la province (%)"},{"$f":"IFERROR(VLOOKUP(G7258,Translation!$A:$C,3,FALSE),G7258)","v":"2.6"},{"$f":"IFERROR(VLOOKUP(H7258,Translation!$A:$C,3,FALSE),H7258)","v":0}]
[3,"T2 2017","ALL","Saskatchewan",2.2388103941592363,"Prêts hypothécaires assurés au cours de la période selon la province (%)","2.2",0,{"$f":"IFERROR(VLOOKUP(A7259,Translation!$A:$C,3,FALSE),A7259)","v":3},{"$f":"IFERROR(VLOOKUP(B7259,Translation!$A:$C,3,FALSE),B7259)","v":"T2 2017"},{"$f":"IFERROR(VLOOKUP(C7259,Translation!$A:$C,3,FALSE),C7259)","v":"ALL"},{"$f":"IFERROR(VLOOKUP(D7259,Translation!$A:$C,3,FALSE),D7259)","v":"Saskatchewan"},{"$f":"IFERROR(VLOOKUP(E7259,Translation!$A:$C,3,FALSE),E7259)","v":2.2388103941592363},{"$f":"IFERROR(VLOOKUP(F7259,Translation!$A:$C,3,FALSE),F7259)","v":"Prêts hypothécaires assurés au cours de la période selon la province (%)"},{"$f":"IFERROR(VLOOKUP(G7259,Translation!$A:$C,3,FALSE),G7259)","v":"2.2"},{"$f":"IFERROR(VLOOKUP(H7259,Translation!$A:$C,3,FALSE),H7259)","v":0}]
[3,"Q3 2016","ALL","Saskatchewan",2.4109185826008264,"Prêts hypothécaires assurés au cours de la période selon la province (%)","2.4",0,{"$f":"IFERROR(VLOOKUP(A7260,Translation!$A:$C,3,FALSE),A7260)","v":3},{"$f":"IFERROR(VLOOKUP(B7260,Translation!$A:$C,3,FALSE),B7260)","v":"Q3 2016"},{"$f":"IFERROR(VLOOKUP(C7260,Translation!$A:$C,3,FALSE),C7260)","v":"ALL"},{"$f":"IFERROR(VLOOKUP(D7260,Translation!$A:$C,3,FALSE),D7260)","v":"Saskatchewan"},{"$f":"IFERROR(VLOOKUP(E7260,Translation!$A:$C,3,FALSE),E7260)","v":2.4109185826008264},{"$f":"IFERROR(VLOOKUP(F7260,Translation!$A:$C,3,FALSE),F7260)","v":"Prêts hypothécaires assurés au cours de la période selon la province (%)"},{"$f":"IFERROR(VLOOKUP(G7260,Translation!$A:$C,3,FALSE),G7260)","v":"2.4"},{"$f":"IFERROR(VLOOKUP(H7260,Translation!$A:$C,3,FALSE),H7260)","v":0}]
[3,"T3 2017","ALL","Saskatchewan",2.8686974122130322,"Prêts hypothécaires assurés au cours de la période selon la province (%)","2.9",0,{"$f":"IFERROR(VLOOKUP(A7261,Translation!$A:$C,3,FALSE),A7261)","v":3},{"$f":"IFERROR(VLOOKUP(B7261,Translation!$A:$C,3,FALSE),B7261)","v":"T3 2017"},{"$f":"IFERROR(VLOOKUP(C7261,Translation!$A:$C,3,FALSE),C7261)","v":"ALL"},{"$f":"IFERROR(VLOOKUP(D7261,Translation!$A:$C,3,FALSE),D7261)","v":"Saskatchewan"},{"$f":"IFERROR(VLOOKUP(E7261,Translation!$A:$C,3,FALSE),E7261)","v":2.8686974122130322},{"$f":"IFERROR(VLOOKUP(F7261,Translation!$A:$C,3,FALSE),F7261)","v":"Prêts hypothécaires assurés au cours de la période selon la province (%)"},{"$f":"IFERROR(VLOOKUP(G7261,Translation!$A:$C,3,FALSE),G7261)","v":"2.9"},{"$f":"IFERROR(VLOOKUP(H7261,Translation!$A:$C,3,FALSE),H7261)","v":0}]
[3,"Q4 2016","ALL","Saskatchewan",2.0652100051102176,"Prêts hypothécaires assurés au cours de la période selon la province (%)","2.1",0,{"$f":"IFERROR(VLOOKUP(A7262,Translation!$A:$C,3,FALSE),A7262)","v":3},{"$f":"IFERROR(VLOOKUP(B7262,Translation!$A:$C,3,FALSE),B7262)","v":"Q4 2016"},{"$f":"IFERROR(VLOOKUP(C7262,Translation!$A:$C,3,FALSE),C7262)","v":"ALL"},{"$f":"IFERROR(VLOOKUP(D7262,Translation!$A:$C,3,FALSE),D7262)","v":"Saskatchewan"},{"$f":"IFERROR(VLOOKUP(E7262,Translation!$A:$C,3,FALSE),E7262)","v":2.0652100051102176},{"$f":"IFERROR(VLOOKUP(F7262,Translation!$A:$C,3,FALSE),F7262)","v":"Prêts hypothécaires assurés au cours de la période selon la province (%)"},{"$f":"IFERROR(VLOOKUP(G7262,Translation!$A:$C,3,FALSE),G7262)","v":"2.1"},{"$f":"IFERROR(VLOOKUP(H7262,Translation!$A:$C,3,FALSE),H7262)","v":0}]
[3,"T4 2017","ALL","Saskatchewan",2.2903773255394775,"Prêts hypothécaires assurés au cours de la période selon la province (%)","2.3",0,{"$f":"IFERROR(VLOOKUP(A7263,Translation!$A:$C,3,FALSE),A7263)","v":3},{"$f":"IFERROR(VLOOKUP(B7263,Translation!$A:$C,3,FALSE),B7263)","v":"T4 2017"},{"$f":"IFERROR(VLOOKUP(C7263,Translation!$A:$C,3,FALSE),C7263)","v":"ALL"},{"$f":"IFERROR(VLOOKUP(D7263,Translation!$A:$C,3,FALSE),D7263)","v":"Saskatchewan"},{"$f":"IFERROR(VLOOKUP(E7263,Translation!$A:$C,3,FALSE),E7263)","v":2.2903773255394775},{"$f":"IFERROR(VLOOKUP(F7263,Translation!$A:$C,3,FALSE),F7263)","v":"Prêts hypothécaires assurés au cours de la période selon la province (%)"},{"$f":"IFERROR(VLOOKUP(G7263,Translation!$A:$C,3,FALSE),G7263)","v":"2.3"},{"$f":"IFERROR(VLOOKUP(H7263,Translation!$A:$C,3,FALSE),H7263)","v":0}]
[3,"T1 2017","ALL","Alberta",17.72550665109155,"Prêts hypothécaires assurés au cours de la période selon la province (%)","17.7",0,{"$f":"IFERROR(VLOOKUP(A7264,Translation!$A:$C,3,FALSE),A7264)","v":3},{"$f":"IFERROR(VLOOKUP(B7264,Translation!$A:$C,3,FALSE),B7264)","v":"T1 2017"},{"$f":"IFERROR(VLOOKUP(C7264,Translation!$A:$C,3,FALSE),C7264)","v":"ALL"},{"$f":"IFERROR(VLOOKUP(D7264,Translation!$A:$C,3,FALSE),D7264)","v":"Alberta"},{"$f":"IFERROR(VLOOKUP(E7264,Translation!$A:$C,3,FALSE),E7264)","v":17.72550665109155},{"$f":"IFERROR(VLOOKUP(F7264,Translation!$A:$C,3,FALSE),F7264)","v":"Prêts hypothécaires assurés au cours de la période selon la province (%)"},{"$f":"IFERROR(VLOOKUP(G7264,Translation!$A:$C,3,FALSE),G7264)","v":"17.7"},{"$f":"IFERROR(VLOOKUP(H7264,Translation!$A:$C,3,FALSE),H7264)","v":0}]
[3,"T1 2018","ALL","Alberta",15.06143496113682,"Prêts hypothécaires assurés au cours de la période selon la province (%)","15.1",0,{"$f":"IFERROR(VLOOKUP(A7265,Translation!$A:$C,3,FALSE),A7265)","v":3},{"$f":"IFERROR(VLOOKUP(B7265,Translation!$A:$C,3,FALSE),B7265)","v":"T1 2018"},{"$f":"IFERROR(VLOOKUP(C7265,Translation!$A:$C,3,FALSE),C7265)","v":"ALL"},{"$f":"IFERROR(VLOOKUP(D7265,Translation!$A:$C,3,FALSE),D7265)","v":"Alberta"},{"$f":"IFERROR(VLOOKUP(E7265,Translation!$A:$C,3,FALSE),E7265)","v":15.06143496113682},{"$f":"IFERROR(VLOOKUP(F7265,Translation!$A:$C,3,FALSE),F7265)","v":"Prêts hypothécaires assurés au cours de la période selon la province (%)"},{"$f":"IFERROR(VLOOKUP(G7265,Translation!$A:$C,3,FALSE),G7265)","v":"15.1"},{"$f":"IFERROR(VLOOKUP(H7265,Translation!$A:$C,3,FALSE),H7265)","v":0}]
[3,"Q2 2016","ALL","Alberta",14.500208558662225,"Prêts hypothécaires assurés au cours de la période selon la province (%)","14.5",0,{"$f":"IFERROR(VLOOKUP(A7266,Translation!$A:$C,3,FALSE),A7266)","v":3},{"$f":"IFERROR(VLOOKUP(B7266,Translation!$A:$C,3,FALSE),B7266)","v":"Q2 2016"},{"$f":"IFERROR(VLOOKUP(C7266,Translation!$A:$C,3,FALSE),C7266)","v":"ALL"},{"$f":"IFERROR(VLOOKUP(D7266,Translation!$A:$C,3,FALSE),D7266)","v":"Alberta"},{"$f":"IFERROR(VLOOKUP(E7266,Translation!$A:$C,3,FALSE),E7266)","v":14.500208558662225},{"$f":"IFERROR(VLOOKUP(F7266,Translation!$A:$C,3,FALSE),F7266)","v":"Prêts hypothécaires assurés au cours de la période selon la province (%)"},{"$f":"IFERROR(VLOOKUP(G7266,Translation!$A:$C,3,FALSE),G7266)","v":"14.5"},{"$f":"IFERROR(VLOOKUP(H7266,Translation!$A:$C,3,FALSE),H7266)","v":0}]
[3,"T2 2017","ALL","Alberta",12.680244049463132,"Prêts hypothécaires assurés au cours de la période selon la province (%)","12.7",0,{"$f":"IFERROR(VLOOKUP(A7267,Translation!$A:$C,3,FALSE),A7267)","v":3},{"$f":"IFERROR(VLOOKUP(B7267,Translation!$A:$C,3,FALSE),B7267)","v":"T2 2017"},{"$f":"IFERROR(VLOOKUP(C7267,Translation!$A:$C,3,FALSE),C7267)","v":"ALL"},{"$f":"IFERROR(VLOOKUP(D7267,Translation!$A:$C,3,FALSE),D7267)","v":"Alberta"},{"$f":"IFERROR(VLOOKUP(E7267,Translation!$A:$C,3,FALSE),E7267)","v":12.680244049463132},{"$f":"IFERROR(VLOOKUP(F7267,Translation!$A:$C,3,FALSE),F7267)","v":"Prêts hypothécaires assurés au cours de la période selon la province (%)"},{"$f":"IFERROR(VLOOKUP(G7267,Translation!$A:$C,3,FALSE),G7267)","v":"12.7"},{"$f":"IFERROR(VLOOKUP(H7267,Translation!$A:$C,3,FALSE),H7267)","v":0}]
[3,"Q3 2016","ALL","Alberta",16.432172768058535,"Prêts hypothécaires assurés au cours de la période selon la province (%)","16.4",0,{"$f":"IFERROR(VLOOKUP(A7268,Translation!$A:$C,3,FALSE),A7268)","v":3},{"$f":"IFERROR(VLOOKUP(B7268,Translation!$A:$C,3,FALSE),B7268)","v":"Q3 2016"},{"$f":"IFERROR(VLOOKUP(C7268,Translation!$A:$C,3,FALSE),C7268)","v":"ALL"},{"$f":"IFERROR(VLOOKUP(D7268,Translation!$A:$C,3,FALSE),D7268)","v":"Alberta"},{"$f":"IFERROR(VLOOKUP(E7268,Translation!$A:$C,3,FALSE),E7268)","v":16.432172768058535},{"$f":"IFERROR(VLOOKUP(F7268,Translation!$A:$C,3,FALSE),F7268)","v":"Prêts hypothécaires assurés au cours de la période selon la province (%)"},{"$f":"IFERROR(VLOOKUP(G7268,Translation!$A:$C,3,FALSE),G7268)","v":"16.4"},{"$f":"IFERROR(VLOOKUP(H7268,Translation!$A:$C,3,FALSE),H7268)","v":0}]
[3,"T3 2017","ALL","Alberta",15.058926513215919,"Prêts hypothécaires assurés au cours de la période selon la province (%)","15.1",0,{"$f":"IFERROR(VLOOKUP(A7269,Translation!$A:$C,3,FALSE),A7269)","v":3},{"$f":"IFERROR(VLOOKUP(B7269,Translation!$A:$C,3,FALSE),B7269)","v":"T3 2017"},{"$f":"IFERROR(VLOOKUP(C7269,Translation!$A:$C,3,FALSE),C7269)","v":"ALL"},{"$f":"IFERROR(VLOOKUP(D7269,Translation!$A:$C,3,FALSE),D7269)","v":"Alberta"},{"$f":"IFERROR(VLOOKUP(E7269,Translation!$A:$C,3,FALSE),E7269)","v":15.058926513215919},{"$f":"IFERROR(VLOOKUP(F7269,Translation!$A:$C,3,FALSE),F7269)","v":"Prêts hypothécaires assurés au cours de la période selon la province (%)"},{"$f":"IFERROR(VLOOKUP(G7269,Translation!$A:$C,3,FALSE),G7269)","v":"15.1"},{"$f":"IFERROR(VLOOKUP(H7269,Translation!$A:$C,3,FALSE),H7269)","v":0}]
[3,"Q4 2016","ALL","Alberta",13.784852422017517,"Prêts hypothécaires assurés au cours de la période selon la province (%)","13.8",0,{"$f":"IFERROR(VLOOKUP(A7270,Translation!$A:$C,3,FALSE),A7270)","v":3},{"$f":"IFERROR(VLOOKUP(B7270,Translation!$A:$C,3,FALSE),B7270)","v":"Q4 2016"},{"$f":"IFERROR(VLOOKUP(C7270,Translation!$A:$C,3,FALSE),C7270)","v":"ALL"},{"$f":"IFERROR(VLOOKUP(D7270,Translation!$A:$C,3,FALSE),D7270)","v":"Alberta"},{"$f":"IFERROR(VLOOKUP(E7270,Translation!$A:$C,3,FALSE),E7270)","v":13.784852422017517},{"$f":"IFERROR(VLOOKUP(F7270,Translation!$A:$C,3,FALSE),F7270)","v":"Prêts hypothécaires assurés au cours de la période selon la province (%)"},{"$f":"IFERROR(VLOOKUP(G7270,Translation!$A:$C,3,FALSE),G7270)","v":"13.8"},{"$f":"IFERROR(VLOOKUP(H7270,Translation!$A:$C,3,FALSE),H7270)","v":0}]
[3,"T4 2017","ALL","Alberta",13.132885258125022,"Prêts hypothécaires assurés au cours de la période selon la province (%)","13.1",0,{"$f":"IFERROR(VLOOKUP(A7271,Translation!$A:$C,3,FALSE),A7271)","v":3},{"$f":"IFERROR(VLOOKUP(B7271,Translation!$A:$C,3,FALSE),B7271)","v":"T4 2017"},{"$f":"IFERROR(VLOOKUP(C7271,Translation!$A:$C,3,FALSE),C7271)","v":"ALL"},{"$f":"IFERROR(VLOOKUP(D7271,Translation!$A:$C,3,FALSE),D7271)","v":"Alberta"},{"$f":"IFERROR(VLOOKUP(E7271,Translation!$A:$C,3,FALSE),E7271)","v":13.132885258125022},{"$f":"IFERROR(VLOOKUP(F7271,Translation!$A:$C,3,FALSE),F7271)","v":"Prêts hypothécaires assurés au cours de la période selon la province (%)"},{"$f":"IFERROR(VLOOKUP(G7271,Translation!$A:$C,3,FALSE),G7271)","v":"13.1"},{"$f":"IFERROR(VLOOKUP(H7271,Translation!$A:$C,3,FALSE),H7271)","v":0}]
[3,"T1 2017","ALL","Colombie-Britannique",12.001406800772576,"Prêts hypothécaires assurés au cours de la période selon la province (%)","12.0",0,{"$f":"IFERROR(VLOOKUP(A7272,Translation!$A:$C,3,FALSE),A7272)","v":3},{"$f":"IFERROR(VLOOKUP(B7272,Translation!$A:$C,3,FALSE),B7272)","v":"T1 2017"},{"$f":"IFERROR(VLOOKUP(C7272,Translation!$A:$C,3,FALSE),C7272)","v":"ALL"},{"$f":"IFERROR(VLOOKUP(D7272,Translation!$A:$C,3,FALSE),D7272)","v":"Colombie-Britannique"},{"$f":"IFERROR(VLOOKUP(E7272,Translation!$A:$C,3,FALSE),E7272)","v":12.001406800772576},{"$f":"IFERROR(VLOOKUP(F7272,Translation!$A:$C,3,FALSE),F7272)","v":"Prêts hypothécaires assurés au cours de la période selon la province (%)"},{"$f":"IFERROR(VLOOKUP(G7272,Translation!$A:$C,3,FALSE),G7272)","v":"12.0"},{"$f":"IFERROR(VLOOKUP(H7272,Translation!$A:$C,3,FALSE),H7272)","v":0}]
[3,"T1 2018","ALL","Colombie-Britannique",12.809290550254421,"Prêts hypothécaires assurés au cours de la période selon la province (%)","12.8",0,{"$f":"IFERROR(VLOOKUP(A7273,Translation!$A:$C,3,FALSE),A7273)","v":3},{"$f":"IFERROR(VLOOKUP(B7273,Translation!$A:$C,3,FALSE),B7273)","v":"T1 2018"},{"$f":"IFERROR(VLOOKUP(C7273,Translation!$A:$C,3,FALSE),C7273)","v":"ALL"},{"$f":"IFERROR(VLOOKUP(D7273,Translation!$A:$C,3,FALSE),D7273)","v":"Colombie-Britannique"},{"$f":"IFERROR(VLOOKUP(E7273,Translation!$A:$C,3,FALSE),E7273)","v":12.809290550254421},{"$f":"IFERROR(VLOOKUP(F7273,Translation!$A:$C,3,FALSE),F7273)","v":"Prêts hypothécaires assurés au cours de la période selon la province (%)"},{"$f":"IFERROR(VLOOKUP(G7273,Translation!$A:$C,3,FALSE),G7273)","v":"12.8"},{"$f":"IFERROR(VLOOKUP(H7273,Translation!$A:$C,3,FALSE),H7273)","v":0}]
[3,"Q2 2016","ALL","Colombie-Britannique",15.314227075975939,"Prêts hypothécaires assurés au cours de la période selon la province (%)","15.3",0,{"$f":"IFERROR(VLOOKUP(A7274,Translation!$A:$C,3,FALSE),A7274)","v":3},{"$f":"IFERROR(VLOOKUP(B7274,Translation!$A:$C,3,FALSE),B7274)","v":"Q2 2016"},{"$f":"IFERROR(VLOOKUP(C7274,Translation!$A:$C,3,FALSE),C7274)","v":"ALL"},{"$f":"IFERROR(VLOOKUP(D7274,Translation!$A:$C,3,FALSE),D7274)","v":"Colombie-Britannique"},{"$f":"IFERROR(VLOOKUP(E7274,Translation!$A:$C,3,FALSE),E7274)","v":15.314227075975939},{"$f":"IFERROR(VLOOKUP(F7274,Translation!$A:$C,3,FALSE),F7274)","v":"Prêts hypothécaires assurés au cours de la période selon la province (%)"},{"$f":"IFERROR(VLOOKUP(G7274,Translation!$A:$C,3,FALSE),G7274)","v":"15.3"},{"$f":"IFERROR(VLOOKUP(H7274,Translation!$A:$C,3,FALSE),H7274)","v":0}]
[3,"T2 2017","ALL","Colombie-Britannique",10.144870918044637,"Prêts hypothécaires assurés au cours de la période selon la province (%)","10.1",0,{"$f":"IFERROR(VLOOKUP(A7275,Translation!$A:$C,3,FALSE),A7275)","v":3},{"$f":"IFERROR(VLOOKUP(B7275,Translation!$A:$C,3,FALSE),B7275)","v":"T2 2017"},{"$f":"IFERROR(VLOOKUP(C7275,Translation!$A:$C,3,FALSE),C7275)","v":"ALL"},{"$f":"IFERROR(VLOOKUP(D7275,Translation!$A:$C,3,FALSE),D7275)","v":"Colombie-Britannique"},{"$f":"IFERROR(VLOOKUP(E7275,Translation!$A:$C,3,FALSE),E7275)","v":10.144870918044637},{"$f":"IFERROR(VLOOKUP(F7275,Translation!$A:$C,3,FALSE),F7275)","v":"Prêts hypothécaires assurés au cours de la période selon la province (%)"},{"$f":"IFERROR(VLOOKUP(G7275,Translation!$A:$C,3,FALSE),G7275)","v":"10.1"},{"$f":"IFERROR(VLOOKUP(H7275,Translation!$A:$C,3,FALSE),H7275)","v":0}]
[3,"Q3 2016","ALL","Colombie-Britannique",12.932512313165399,"Prêts hypothécaires assurés au cours de la période selon la province (%)","12.9",0,{"$f":"IFERROR(VLOOKUP(A7276,Translation!$A:$C,3,FALSE),A7276)","v":3},{"$f":"IFERROR(VLOOKUP(B7276,Translation!$A:$C,3,FALSE),B7276)","v":"Q3 2016"},{"$f":"IFERROR(VLOOKUP(C7276,Translation!$A:$C,3,FALSE),C7276)","v":"ALL"},{"$f":"IFERROR(VLOOKUP(D7276,Translation!$A:$C,3,FALSE),D7276)","v":"Colombie-Britannique"},{"$f":"IFERROR(VLOOKUP(E7276,Translation!$A:$C,3,FALSE),E7276)","v":12.932512313165399},{"$f":"IFERROR(VLOOKUP(F7276,Translation!$A:$C,3,FALSE),F7276)","v":"Prêts hypothécaires assurés au cours de la période selon la province (%)"},{"$f":"IFERROR(VLOOKUP(G7276,Translation!$A:$C,3,FALSE),G7276)","v":"12.9"},{"$f":"IFERROR(VLOOKUP(H7276,Translation!$A:$C,3,FALSE),H7276)","v":0}]
[3,"T3 2017","ALL","Colombie-Britannique",12.196942164489609,"Prêts hypothécaires assurés au cours de la période selon la province (%)","12.2",0,{"$f":"IFERROR(VLOOKUP(A7277,Translation!$A:$C,3,FALSE),A7277)","v":3},{"$f":"IFERROR(VLOOKUP(B7277,Translation!$A:$C,3,FALSE),B7277)","v":"T3 2017"},{"$f":"IFERROR(VLOOKUP(C7277,Translation!$A:$C,3,FALSE),C7277)","v":"ALL"},{"$f":"IFERROR(VLOOKUP(D7277,Translation!$A:$C,3,FALSE),D7277)","v":"Colombie-Britannique"},{"$f":"IFERROR(VLOOKUP(E7277,Translation!$A:$C,3,FALSE),E7277)","v":12.196942164489609},{"$f":"IFERROR(VLOOKUP(F7277,Translation!$A:$C,3,FALSE),F7277)","v":"Prêts hypothécaires assurés au cours de la période selon la province (%)"},{"$f":"IFERROR(VLOOKUP(G7277,Translation!$A:$C,3,FALSE),G7277)","v":"12.2"},{"$f":"IFERROR(VLOOKUP(H7277,Translation!$A:$C,3,FALSE),H7277)","v":0}]
[3,"Q4 2016","ALL","Colombie-Britannique",15.534225193223563,"Prêts hypothécaires assurés au cours de la période selon la province (%)","15.5",0,{"$f":"IFERROR(VLOOKUP(A7278,Translation!$A:$C,3,FALSE),A7278)","v":3},{"$f":"IFERROR(VLOOKUP(B7278,Translation!$A:$C,3,FALSE),B7278)","v":"Q4 2016"},{"$f":"IFERROR(VLOOKUP(C7278,Translation!$A:$C,3,FALSE),C7278)","v":"ALL"},{"$f":"IFERROR(VLOOKUP(D7278,Translation!$A:$C,3,FALSE),D7278)","v":"Colombie-Britannique"},{"$f":"IFERROR(VLOOKUP(E7278,Translation!$A:$C,3,FALSE),E7278)","v":15.534225193223563},{"$f":"IFERROR(VLOOKUP(F7278,Translation!$A:$C,3,FALSE),F7278)","v":"Prêts hypothécaires assurés au cours de la période selon la province (%)"},{"$f":"IFERROR(VLOOKUP(G7278,Translation!$A:$C,3,FALSE),G7278)","v":"15.5"},{"$f":"IFERROR(VLOOKUP(H7278,Translation!$A:$C,3,FALSE),H7278)","v":0}]
[3,"T4 2017","ALL","Colombie-Britannique",15.082862108932346,"Prêts hypothécaires assurés au cours de la période selon la province (%)","15.1",0,{"$f":"IFERROR(VLOOKUP(A7279,Translation!$A:$C,3,FALSE),A7279)","v":3},{"$f":"IFERROR(VLOOKUP(B7279,Translation!$A:$C,3,FALSE),B7279)","v":"T4 2017"},{"$f":"IFERROR(VLOOKUP(C7279,Translation!$A:$C,3,FALSE),C7279)","v":"ALL"},{"$f":"IFERROR(VLOOKUP(D7279,Translation!$A:$C,3,FALSE),D7279)","v":"Colombie-Britannique"},{"$f":"IFERROR(VLOOKUP(E7279,Translation!$A:$C,3,FALSE),E7279)","v":15.082862108932346},{"$f":"IFERROR(VLOOKUP(F7279,Translation!$A:$C,3,FALSE),F7279)","v":"Prêts hypothécaires assurés au cours de la période selon la province (%)"},{"$f":"IFERROR(VLOOKUP(G7279,Translation!$A:$C,3,FALSE),G7279)","v":"15.1"},{"$f":"IFERROR(VLOOKUP(H7279,Translation!$A:$C,3,FALSE),H7279)","v":0}]
[3,"T1 2017","ALL","Territoires",0.47677004530148009,"Prêts hypothécaires assurés au cours de la période selon la province (%)","0.5",0,{"$f":"IFERROR(VLOOKUP(A7280,Translation!$A:$C,3,FALSE),A7280)","v":3},{"$f":"IFERROR(VLOOKUP(B7280,Translation!$A:$C,3,FALSE),B7280)","v":"T1 2017"},{"$f":"IFERROR(VLOOKUP(C7280,Translation!$A:$C,3,FALSE),C7280)","v":"ALL"},{"$f":"IFERROR(VLOOKUP(D7280,Translation!$A:$C,3,FALSE),D7280)","v":"Territoires"},{"$f":"IFERROR(VLOOKUP(E7280,Translation!$A:$C,3,FALSE),E7280)","v":0.47677004530148009},{"$f":"IFERROR(VLOOKUP(F7280,Translation!$A:$C,3,FALSE),F7280)","v":"Prêts hypothécaires assurés au cours de la période selon la province (%)"},{"$f":"IFERROR(VLOOKUP(G7280,Translation!$A:$C,3,FALSE),G7280)","v":"0.5"},{"$f":"IFERROR(VLOOKUP(H7280,Translation!$A:$C,3,FALSE),H7280)","v":0}]
[3,"T1 2018","ALL","Territoires",0.30490797172650591,"Prêts hypothécaires assurés au cours de la période selon la province (%)","0.3",0,{"$f":"IFERROR(VLOOKUP(A7281,Translation!$A:$C,3,FALSE),A7281)","v":3},{"$f":"IFERROR(VLOOKUP(B7281,Translation!$A:$C,3,FALSE),B7281)","v":"T1 2018"},{"$f":"IFERROR(VLOOKUP(C7281,Translation!$A:$C,3,FALSE),C7281)","v":"ALL"},{"$f":"IFERROR(VLOOKUP(D7281,Translation!$A:$C,3,FALSE),D7281)","v":"Territoires"},{"$f":"IFERROR(VLOOKUP(E7281,Translation!$A:$C,3,FALSE),E7281)","v":0.30490797172650591},{"$f":"IFERROR(VLOOKUP(F7281,Translation!$A:$C,3,FALSE),F7281)","v":"Prêts hypothécaires assurés au cours de la période selon la province (%)"},{"$f":"IFERROR(VLOOKUP(G7281,Translation!$A:$C,3,FALSE),G7281)","v":"0.3"},{"$f":"IFERROR(VLOOKUP(H7281,Translation!$A:$C,3,FALSE),H7281)","v":0}]
[3,"Q2 2016","ALL","Territoires",0.41066956233698343,"Prêts hypothécaires assurés au cours de la période selon la province (%)","0.4",0,{"$f":"IFERROR(VLOOKUP(A7282,Translation!$A:$C,3,FALSE),A7282)","v":3},{"$f":"IFERROR(VLOOKUP(B7282,Translation!$A:$C,3,FALSE),B7282)","v":"Q2 2016"},{"$f":"IFERROR(VLOOKUP(C7282,Translation!$A:$C,3,FALSE),C7282)","v":"ALL"},{"$f":"IFERROR(VLOOKUP(D7282,Translation!$A:$C,3,FALSE),D7282)","v":"Territoires"},{"$f":"IFERROR(VLOOKUP(E7282,Translation!$A:$C,3,FALSE),E7282)","v":0.41066956233698343},{"$f":"IFERROR(VLOOKUP(F7282,Translation!$A:$C,3,FALSE),F7282)","v":"Prêts hypothécaires assurés au cours de la période selon la province (%)"},{"$f":"IFERROR(VLOOKUP(G7282,Translation!$A:$C,3,FALSE),G7282)","v":"0.4"},{"$f":"IFERROR(VLOOKUP(H7282,Translation!$A:$C,3,FALSE),H7282)","v":0}]
[3,"T2 2017","ALL","Territoires",0.3598964321914595,"Prêts hypothécaires assurés au cours de la période selon la province (%)","0.4",0,{"$f":"IFERROR(VLOOKUP(A7283,Translation!$A:$C,3,FALSE),A7283)","v":3},{"$f":"IFERROR(VLOOKUP(B7283,Translation!$A:$C,3,FALSE),B7283)","v":"T2 2017"},{"$f":"IFERROR(VLOOKUP(C7283,Translation!$A:$C,3,FALSE),C7283)","v":"ALL"},{"$f":"IFERROR(VLOOKUP(D7283,Translation!$A:$C,3,FALSE),D7283)","v":"Territoires"},{"$f":"IFERROR(VLOOKUP(E7283,Translation!$A:$C,3,FALSE),E7283)","v":0.3598964321914595},{"$f":"IFERROR(VLOOKUP(F7283,Translation!$A:$C,3,FALSE),F7283)","v":"Prêts hypothécaires assurés au cours de la période selon la province (%)"},{"$f":"IFERROR(VLOOKUP(G7283,Translation!$A:$C,3,FALSE),G7283)","v":"0.4"},{"$f":"IFERROR(VLOOKUP(H7283,Translation!$A:$C,3,FALSE),H7283)","v":0}]
[3,"Q3 2016","ALL","Territoires",0.45973810937333159,"Prêts hypothécaires assurés au cours de la période selon la province (%)","0.5",0,{"$f":"IFERROR(VLOOKUP(A7284,Translation!$A:$C,3,FALSE),A7284)","v":3},{"$f":"IFERROR(VLOOKUP(B7284,Translation!$A:$C,3,FALSE),B7284)","v":"Q3 2016"},{"$f":"IFERROR(VLOOKUP(C7284,Translation!$A:$C,3,FALSE),C7284)","v":"ALL"},{"$f":"IFERROR(VLOOKUP(D7284,Translation!$A:$C,3,FALSE),D7284)","v":"Territoires"},{"$f":"IFERROR(VLOOKUP(E7284,Translation!$A:$C,3,FALSE),E7284)","v":0.45973810937333159},{"$f":"IFERROR(VLOOKUP(F7284,Translation!$A:$C,3,FALSE),F7284)","v":"Prêts hypothécaires assurés au cours de la période selon la province (%)"},{"$f":"IFERROR(VLOOKUP(G7284,Translation!$A:$C,3,FALSE),G7284)","v":"0.5"},{"$f":"IFERROR(VLOOKUP(H7284,Translation!$A:$C,3,FALSE),H7284)","v":0}]
[3,"T3 2017","ALL","Territoires",0.56939402473804679,"Prêts hypothécaires assurés au cours de la période selon la province (%)","0.6",0,{"$f":"IFERROR(VLOOKUP(A7285,Translation!$A:$C,3,FALSE),A7285)","v":3},{"$f":"IFERROR(VLOOKUP(B7285,Translation!$A:$C,3,FALSE),B7285)","v":"T3 2017"},{"$f":"IFERROR(VLOOKUP(C7285,Translation!$A:$C,3,FALSE),C7285)","v":"ALL"},{"$f":"IFERROR(VLOOKUP(D7285,Translation!$A:$C,3,FALSE),D7285)","v":"Territoires"},{"$f":"IFERROR(VLOOKUP(E7285,Translation!$A:$C,3,FALSE),E7285)","v":0.56939402473804679},{"$f":"IFERROR(VLOOKUP(F7285,Translation!$A:$C,3,FALSE),F7285)","v":"Prêts hypothécaires assurés au cours de la période selon la province (%)"},{"$f":"IFERROR(VLOOKUP(G7285,Translation!$A:$C,3,FALSE),G7285)","v":"0.6"},{"$f":"IFERROR(VLOOKUP(H7285,Translation!$A:$C,3,FALSE),H7285)","v":0}]
[3,"Q4 2016","ALL","Territoires",0.33164687799037768,"Prêts hypothécaires assurés au cours de la période selon la province (%)","0.3",0,{"$f":"IFERROR(VLOOKUP(A7286,Translation!$A:$C,3,FALSE),A7286)","v":3},{"$f":"IFERROR(VLOOKUP(B7286,Translation!$A:$C,3,FALSE),B7286)","v":"Q4 2016"},{"$f":"IFERROR(VLOOKUP(C7286,Translation!$A:$C,3,FALSE),C7286)","v":"ALL"},{"$f":"IFERROR(VLOOKUP(D7286,Translation!$A:$C,3,FALSE),D7286)","v":"Territoires"},{"$f":"IFERROR(VLOOKUP(E7286,Translation!$A:$C,3,FALSE),E7286)","v":0.33164687799037768},{"$f":"IFERROR(VLOOKUP(F7286,Translation!$A:$C,3,FALSE),F7286)","v":"Prêts hypothécaires assurés au cours de la période selon la province (%)"},{"$f":"IFERROR(VLOOKUP(G7286,Translation!$A:$C,3,FALSE),G7286)","v":"0.3"},{"$f":"IFERROR(VLOOKUP(H7286,Translation!$A:$C,3,FALSE),H7286)","v":0}]
[3,"T4 2017","ALL","Territoires",0.58300787604544912,"Prêts hypothécaires assurés au cours de la période selon la province (%)","0.6",0,{"$f":"IFERROR(VLOOKUP(A7287,Translation!$A:$C,3,FALSE),A7287)","v":3},{"$f":"IFERROR(VLOOKUP(B7287,Translation!$A:$C,3,FALSE),B7287)","v":"T4 2017"},{"$f":"IFERROR(VLOOKUP(C7287,Translation!$A:$C,3,FALSE),C7287)","v":"ALL"},{"$f":"IFERROR(VLOOKUP(D7287,Translation!$A:$C,3,FALSE),D7287)","v":"Territoires"},{"$f":"IFERROR(VLOOKUP(E7287,Translation!$A:$C,3,FALSE),E7287)","v":0.58300787604544912},{"$f":"IFERROR(VLOOKUP(F7287,Translation!$A:$C,3,FALSE),F7287)","v":"Prêts hypothécaires assurés au cours de la période selon la province (%)"},{"$f":"IFERROR(VLOOKUP(G7287,Translation!$A:$C,3,FALSE),G7287)","v":"0.6"},{"$f":"IFERROR(VLOOKUP(H7287,Translation!$A:$C,3,FALSE),H7287)","v":0}]
[3,"T1 2018","ALL","Total Insured Volumes (units)",48130,"UNIT","48130.0",0,{"$f":"IFERROR(VLOOKUP(A7288,Translation!$A:$C,3,FALSE),A7288)","v":3},{"$f":"IFERROR(VLOOKUP(B7288,Translation!$A:$C,3,FALSE),B7288)","v":"T1 2018"},{"$f":"IFERROR(VLOOKUP(C7288,Translation!$A:$C,3,FALSE),C7288)","v":"ALL"},{"$f":"IFERROR(VLOOKUP(D7288,Translation!$A:$C,3,FALSE),D7288)","v":"Total Insured Volumes (units)"},{"$f":"IFERROR(VLOOKUP(E7288,Translation!$A:$C,3,FALSE),E7288)","v":48130},{"$f":"IFERROR(VLOOKUP(F7288,Translation!$A:$C,3,FALSE),F7288)","v":"UNIT"},{"$f":"IFERROR(VLOOKUP(G7288,Translation!$A:$C,3,FALSE),G7288)","v":"48130.0"},{"$f":"IFERROR(VLOOKUP(H7288,Translation!$A:$C,3,FALSE),H7288)","v":0}]
[3,"T1 2018","ALL","PROPRIÉTAIRES-OCCUPANTS, À L’UNITÉ",15912,"UNIT","15912.0",0,{"$f":"IFERROR(VLOOKUP(A7289,Translation!$A:$C,3,FALSE),A7289)","v":3},{"$f":"IFERROR(VLOOKUP(B7289,Translation!$A:$C,3,FALSE),B7289)","v":"T1 2018"},{"$f":"IFERROR(VLOOKUP(C7289,Translation!$A:$C,3,FALSE),C7289)","v":"ALL"},{"$f":"IFERROR(VLOOKUP(D7289,Translation!$A:$C,3,FALSE),D7289)","v":"PROPRIÉTAIRES-OCCUPANTS, À L’UNITÉ"},{"$f":"IFERROR(VLOOKUP(E7289,Translation!$A:$C,3,FALSE),E7289)","v":15912},{"$f":"IFERROR(VLOOKUP(F7289,Translation!$A:$C,3,FALSE),F7289)","v":"UNIT"},{"$f":"IFERROR(VLOOKUP(G7289,Translation!$A:$C,3,FALSE),G7289)","v":"15912.0"},{"$f":"IFERROR(VLOOKUP(H7289,Translation!$A:$C,3,FALSE),H7289)","v":0}]
[3,"T1 2018","ALL","Assurance de portefeuille (nouveaux prêts)",2390,"UNIT","2390.0",0,{"$f":"IFERROR(VLOOKUP(A7290,Translation!$A:$C,3,FALSE),A7290)","v":3},{"$f":"IFERROR(VLOOKUP(B7290,Translation!$A:$C,3,FALSE),B7290)","v":"T1 2018"},{"$f":"IFERROR(VLOOKUP(C7290,Translation!$A:$C,3,FALSE),C7290)","v":"ALL"},{"$f":"IFERROR(VLOOKUP(D7290,Translation!$A:$C,3,FALSE),D7290)","v":"Assurance de portefeuille (nouveaux prêts)"},{"$f":"IFERROR(VLOOKUP(E7290,Translation!$A:$C,3,FALSE),E7290)","v":2390},{"$f":"IFERROR(VLOOKUP(F7290,Translation!$A:$C,3,FALSE),F7290)","v":"UNIT"},{"$f":"IFERROR(VLOOKUP(G7290,Translation!$A:$C,3,FALSE),G7290)","v":"2390.0"},{"$f":"IFERROR(VLOOKUP(H7290,Translation!$A:$C,3,FALSE),H7290)","v":0}]
[3,"T1 2018","ALL","Assurance de portefeuille (prêts de substitution)",5094,"UNIT","5094.0",0,{"$f":"IFERROR(VLOOKUP(A7291,Translation!$A:$C,3,FALSE),A7291)","v":3},{"$f":"IFERROR(VLOOKUP(B7291,Translation!$A:$C,3,FALSE),B7291)","v":"T1 2018"},{"$f":"IFERROR(VLOOKUP(C7291,Translation!$A:$C,3,FALSE),C7291)","v":"ALL"},{"$f":"IFERROR(VLOOKUP(D7291,Translation!$A:$C,3,FALSE),D7291)","v":"Assurance de portefeuille (prêts de substitution)"},{"$f":"IFERROR(VLOOKUP(E7291,Translation!$A:$C,3,FALSE),E7291)","v":5094},{"$f":"IFERROR(VLOOKUP(F7291,Translation!$A:$C,3,FALSE),F7291)","v":"UNIT"},{"$f":"IFERROR(VLOOKUP(G7291,Translation!$A:$C,3,FALSE),G7291)","v":"5094.0"},{"$f":"IFERROR(VLOOKUP(H7291,Translation!$A:$C,3,FALSE),H7291)","v":0}]
[3,"T1 2018","ALL","IMMEUBLES COLLECTIFS RÉSIDENTIELS",24734,"UNIT","24734.0",0,{"$f":"IFERROR(VLOOKUP(A7292,Translation!$A:$C,3,FALSE),A7292)","v":3},{"$f":"IFERROR(VLOOKUP(B7292,Translation!$A:$C,3,FALSE),B7292)","v":"T1 2018"},{"$f":"IFERROR(VLOOKUP(C7292,Translation!$A:$C,3,FALSE),C7292)","v":"ALL"},{"$f":"IFERROR(VLOOKUP(D7292,Translation!$A:$C,3,FALSE),D7292)","v":"IMMEUBLES COLLECTIFS RÉSIDENTIELS"},{"$f":"IFERROR(VLOOKUP(E7292,Translation!$A:$C,3,FALSE),E7292)","v":24734},{"$f":"IFERROR(VLOOKUP(F7292,Translation!$A:$C,3,FALSE),F7292)","v":"UNIT"},{"$f":"IFERROR(VLOOKUP(G7292,Translation!$A:$C,3,FALSE),G7292)","v":"24734.0"},{"$f":"IFERROR(VLOOKUP(H7292,Translation!$A:$C,3,FALSE),H7292)","v":0}]
[3,"T1 2018","ALL","Volume total d'assurance (M$)",8265490705,"AMT","8265490705.0",0,{"$f":"IFERROR(VLOOKUP(A7293,Translation!$A:$C,3,FALSE),A7293)","v":3},{"$f":"IFERROR(VLOOKUP(B7293,Translation!$A:$C,3,FALSE),B7293)","v":"T1 2018"},{"$f":"IFERROR(VLOOKUP(C7293,Translation!$A:$C,3,FALSE),C7293)","v":"ALL"},{"$f":"IFERROR(VLOOKUP(D7293,Translation!$A:$C,3,FALSE),D7293)","v":"Volume total d'assurance (M$)"},{"$f":"IFERROR(VLOOKUP(E7293,Translation!$A:$C,3,FALSE),E7293)","v":8265490705},{"$f":"IFERROR(VLOOKUP(F7293,Translation!$A:$C,3,FALSE),F7293)","v":"AMT"},{"$f":"IFERROR(VLOOKUP(G7293,Translation!$A:$C,3,FALSE),G7293)","v":"8265490705.0"},{"$f":"IFERROR(VLOOKUP(H7293,Translation!$A:$C,3,FALSE),H7293)","v":0}]
[3,"T1 2018","ALL","PROPRIÉTAIRES-OCCUPANTS, À L’UNITÉ",4254399733,"AMT","4254399733.0",0,{"$f":"IFERROR(VLOOKUP(A7294,Translation!$A:$C,3,FALSE),A7294)","v":3},{"$f":"IFERROR(VLOOKUP(B7294,Translation!$A:$C,3,FALSE),B7294)","v":"T1 2018"},{"$f":"IFERROR(VLOOKUP(C7294,Translation!$A:$C,3,FALSE),C7294)","v":"ALL"},{"$f":"IFERROR(VLOOKUP(D7294,Translation!$A:$C,3,FALSE),D7294)","v":"PROPRIÉTAIRES-OCCUPANTS, À L’UNITÉ"},{"$f":"IFERROR(VLOOKUP(E7294,Translation!$A:$C,3,FALSE),E7294)","v":4254399733},{"$f":"IFERROR(VLOOKUP(F7294,Translation!$A:$C,3,FALSE),F7294)","v":"AMT"},{"$f":"IFERROR(VLOOKUP(G7294,Translation!$A:$C,3,FALSE),G7294)","v":"4254399733.0"},{"$f":"IFERROR(VLOOKUP(H7294,Translation!$A:$C,3,FALSE),H7294)","v":0}]
[3,"T1 2018","ALL","Assurance de portefeuille (nouveaux prêts)",575917153,"AMT","575917153.0",0,{"$f":"IFERROR(VLOOKUP(A7295,Translation!$A:$C,3,FALSE),A7295)","v":3},{"$f":"IFERROR(VLOOKUP(B7295,Translation!$A:$C,3,FALSE),B7295)","v":"T1 2018"},{"$f":"IFERROR(VLOOKUP(C7295,Translation!$A:$C,3,FALSE),C7295)","v":"ALL"},{"$f":"IFERROR(VLOOKUP(D7295,Translation!$A:$C,3,FALSE),D7295)","v":"Assurance de portefeuille (nouveaux prêts)"},{"$f":"IFERROR(VLOOKUP(E7295,Translation!$A:$C,3,FALSE),E7295)","v":575917153},{"$f":"IFERROR(VLOOKUP(F7295,Translation!$A:$C,3,FALSE),F7295)","v":"AMT"},{"$f":"IFERROR(VLOOKUP(G7295,Translation!$A:$C,3,FALSE),G7295)","v":"575917153.0"},{"$f":"IFERROR(VLOOKUP(H7295,Translation!$A:$C,3,FALSE),H7295)","v":0}]
[3,"T1 2018","ALL","Assurance de portefeuille (prêts de substitution)",674979083,"AMT","674979083.0",0,{"$f":"IFERROR(VLOOKUP(A7296,Translation!$A:$C,3,FALSE),A7296)","v":3},{"$f":"IFERROR(VLOOKUP(B7296,Translation!$A:$C,3,FALSE),B7296)","v":"T1 2018"},{"$f":"IFERROR(VLOOKUP(C7296,Translation!$A:$C,3,FALSE),C7296)","v":"ALL"},{"$f":"IFERROR(VLOOKUP(D7296,Translation!$A:$C,3,FALSE),D7296)","v":"Assurance de portefeuille (prêts de substitution)"},{"$f":"IFERROR(VLOOKUP(E7296,Translation!$A:$C,3,FALSE),E7296)","v":674979083},{"$f":"IFERROR(VLOOKUP(F7296,Translation!$A:$C,3,FALSE),F7296)","v":"AMT"},{"$f":"IFERROR(VLOOKUP(G7296,Translation!$A:$C,3,FALSE),G7296)","v":"674979083.0"},{"$f":"IFERROR(VLOOKUP(H7296,Translation!$A:$C,3,FALSE),H7296)","v":0}]
[3,"T1 2018","ALL","IMMEUBLES COLLECTIFS RÉSIDENTIELS",2760194736,"AMT","2760194736.0",0,{"$f":"IFERROR(VLOOKUP(A7297,Translation!$A:$C,3,FALSE),A7297)","v":3},{"$f":"IFERROR(VLOOKUP(B7297,Translation!$A:$C,3,FALSE),B7297)","v":"T1 2018"},{"$f":"IFERROR(VLOOKUP(C7297,Translation!$A:$C,3,FALSE),C7297)","v":"ALL"},{"$f":"IFERROR(VLOOKUP(D7297,Translation!$A:$C,3,FALSE),D7297)","v":"IMMEUBLES COLLECTIFS RÉSIDENTIELS"},{"$f":"IFERROR(VLOOKUP(E7297,Translation!$A:$C,3,FALSE),E7297)","v":2760194736},{"$f":"IFERROR(VLOOKUP(F7297,Translation!$A:$C,3,FALSE),F7297)","v":"AMT"},{"$f":"IFERROR(VLOOKUP(G7297,Translation!$A:$C,3,FALSE),G7297)","v":"2760194736.0"},{"$f":"IFERROR(VLOOKUP(H7297,Translation!$A:$C,3,FALSE),H7297)","v":0}]

{"sheet":"1.Cover Page","index":2,"n_rows":28,"n_cols":6,"rows_kept":28,"cut":false,"hidden":false,"merged":[[0,1,3,6],[4,1,9,6],[11,5,11,7],[12,5,12,7],[27,1,34,6]]}
[null,{"$f":"VLOOKUP(\"CANADA MORTGAGE AND HOUSING CORPORATION\",Translation!$A$1:$C$328, Translation!A1+1, 0)","v":"SOCIÉTÉ CANADIENNE D'HYPOTHÈQUES ET DE LOGEMENT"}]
[]
[]
[]
[null,{"$f":"VLOOKUP(\"National Mortgage Loan Insurance Business Supplement\",Translation!$A$1:$C$328, Translation!A1+1, 0)","v":"Supplément national d’information sur les activités d’assurance prêt hypothécaire"}]
[]
[]
[]
[]
[]
[]
[null,null,null,null,null,{"$f":"VLOOKUP(\"First Quarter\",Translation!$A$1:$C$328, Translation!A1+1, 0)","v":"Premier trimestre"}]
[null,null,null,null,null,{"$f":"VLOOKUP(\"March 31, 2020\",Translation!$A$1:$C$328, Translation!A1+1, 0)","v":"31 mars 2020"}]
[]
[]
[]
[]
[]
[]
[]
[]
[]
[]
[]
[]
[]
[]
[null,{"$f":"IF(Translation!A1=1,\"To supplement CMHC’s unaudited quarterly consolidated financial statements, which are prepared in accordance with IFRS, CMHC uses non-IFRS measures to analyse its performance.\"&\"The following Mortgage Loan Insurance Business Supplement is prepared for the \" & LOWER(F12) &\" ending \" &F13&\" and is intended to help readers better understand CMHC’s insurance activities.\"&\"CMHC believes that these performance measures provide meaningful information that enables greater transparency and clarity with respect to CMHC’s residential mortgage insurance underwriting practices.\",\"Afin de compléter ses états financiers consolidés trimestriels non audités, qui sont préparés conformément aux IFRS, la SCHL a recours à des mesures non définies par les IFRS pour analyser son rendement.\"&\"Le présent supplément d’information sur les activités d’assurance prêt hypothécaire vise le \" & LOWER(F12) &\" clos \" &F13&\" et a pour but d’aider le lecteur à mieux comprendre les activités d’assurance de la SCHL.\"&\" La Société est d’avis que ces mesures de rendement fournissent des informations utiles qui se traduisent par une plus grande transparence et davantage de clarté quant \"&\"aux pratiques de souscription d’assurance prêt hypothécaire à l’habitation qu’elle applique.\")","v":"Afin de compléter ses états financiers consolidés trimestriels non audités, qui sont préparés conformément aux IFRS, la SCHL a recours à des mesures non définies par les IFRS pour analyser son rendement.Le présent supplément d’information sur les activités d’assurance prêt hypothécaire vise le premier trimestre clos 31 mars 2020 et a pour but d’aider le lecteur à mieux comprendre les activités d’assurance de la SCHL. La Société est d’avis que ces mesures de rendement fournissent des informations utiles qui se traduisent par une plus grande transparence et davantage de clarté quant aux pratiques de souscription d’assurance prêt hypothécaire à l’habitation qu’elle applique."}]

{"sheet":"2. ToC","index":3,"n_rows":30,"n_cols":6,"rows_kept":30,"cut":false,"hidden":false,"merged":[[0,1,4,5]]}
[null,{"$f":"VLOOKUP(\"Table of Contents\",Translation!$A$1:$C$328, Translation!A1+1, 0)","v":"Table des matières"}]
[]
[]
[]
[]
[]
[]
[]
[]
[null,{"$f":"VLOOKUP(\"NATIONAL INSURED VOLUMES\",Translation!$A$1:$C$328, Translation!A1+1, 0)","v":"VOLUME DE PRÊTS ASSURÉS À L’ÉCHELLE NATIONALE"},null,null,null,"3-6"]
[null,{"$f":"VLOOKUP(\"Transactional Homeowner and Portfolio\",Translation!$A$1:$C$328, Translation!A1+1, 0)","v":"Propriétaires-occupants (à l’unité) et assurance de portefeuille"},null,null,null,"7-26"]
[null,null,{"$f":"VLOOKUP(\"Loan-to-Value\",Translation!$A$1:$C$328, Translation!A1+1, 0)","v":"Rapport prêt-valeur"},null,null,"7-9"]
[null,null,{"$f":"VLOOKUP(\"Amortization\",Translation!$A$1:$C$328, Translation!A1+1, 0)","v":"Période d'amortissement"},null,null,"10-12"]
[null,null,{"$f":"VLOOKUP(\"Credit Score\",Translation!$A$1:$C$328, Translation!A1+1, 0)","v":"Pointage de crédit"},null,null,"13-14"]
[null,null,{"$f":"VLOOKUP(\"Purchase Price\",Translation!$A$1:$C$328, Translation!A1+1, 0)","v":"Prix d'achat"},null,null,"15"]
[null,null,{"$f":"VLOOKUP(\"Dwelling Type\",Translation!$A$1:$C$328, Translation!A1+1, 0)","v":"Type de logement"},null,null,"16-17"]
[null,null,{"$f":"VLOOKUP(\"Urban/Rural \",Translation!$A$1:$C$328, Translation!A1+1, 0)","v":"Urbain/Rural"},null,null,"18-19"]
[null,null,{"$f":"VLOOKUP(\"New/Existing \",Translation!$A$1:$C$328, Translation!A1+1, 0)","v":"Neuf/Existant"},null,null,"20-21"]
[null,null,{"$f":"VLOOKUP(\"GDS/TDS\",Translation!$A$1:$C$328, Translation!A1+1, 0)","v":"Rapport d’amortissement brut de la dette/Rapport d'amortissement total de la dette"},null,null,"22-23"]
[null,null,{"$f":"VLOOKUP(\"Interest Rate Type\",Translation!$A$1:$C$328, Translation!A1+1, 0)","v":"Type de taux d’intérêt"},null,null,"24"]
[null,null,{"$f":"VLOOKUP(\"Arrears\",Translation!$A$1:$C$328, Translation!A1+1, 0)","v":"Prêts en souffrance"},null,null,"25"]
[null,null,{"$f":"VLOOKUP(\"Claims Paid \",Translation!$A$1:$C$328, Translation!A1+1, 0)","v":"Règlements payés"},null,null,"26"]
[null,{"$f":"VLOOKUP(\"Multi-Unit Residential \",Translation!$A$1:$C$328, Translation!A1+1, 0)","v":"Immeubles collectifs résidentiels"},null,null,null,"27-32"]
[null,null,{"$f":"VLOOKUP(\"Loan-to-Value\",Translation!$A$1:$C$328, Translation!A1+1, 0)","v":"Rapport prêt-valeur"},null,null,"27"]
[null,null,{"$f":"VLOOKUP(\"Amortization\",Translation!$A$1:$C$328, Translation!A1+1, 0)","v":"Période d'amortissement"},null,null,"28"]
[null,null,{"$f":"VLOOKUP(\"Dwelling Type\",Translation!$A$1:$C$328, Translation!A1+1, 0)","v":"Type de logement"},null,null,"29"]
[null,null,{"$f":"VLOOKUP(\"Urban/Rural \",Translation!$A$1:$C$328, Translation!A1+1, 0)","v":"Urbain/Rural"},null,null,"30"]
[null,null,{"$f":"VLOOKUP(\"New/Existing \",Translation!$A$1:$C$328, Translation!A1+1, 0)","v":"Neuf/Existant"},null,null,"31"]
[null,null,{"$f":"VLOOKUP(\"Arrears and claims paid\",Translation!$A$1:$C$328, Translation!A1+1, 0)","v":"Arrérages et Règlements payés"},null,null,"32"]
[null,{"$f":"VLOOKUP(\"Glossary\",Translation!$A$1:$C$328, Translation!A1+1, 0)","v":"Glossaire"},null,null,null,33]

{"sheet":"3","index":4,"n_rows":31,"n_cols":11,"rows_kept":31,"cut":false,"hidden":false,"merged":[[0,5,0,8]]}
[{"$f":"VLOOKUP(\"NATIONAL INSURED VOLUMES\",Translation!$A$1:$C$354, Translation!A1+1, 0)","v":"VOLUME DE PRÊTS ASSURÉS À L’ÉCHELLE NATIONALE"},null,null,null,null,{"$f":"VLOOKUP(\"Back to Table of Contents\",Translation!$A$1:$C$354, Translation!A1+1, 0)","v":"Retour à la table des matières"}]
[{"$f":"VLOOKUP(\"Loans insured in period\",Translation!$A$1:$C$354, Translation!A1+1, 0)","v":"Prêts assurés au cours de la période"}]
[null,{"$f":"VLOOKUP(\"Q1 2020\",Translation!$A$1:$C$354, Translation!$A$1+1, 0)","v":"T1 2020"},{"$f":"VLOOKUP(\"Q4 2019\",Translation!$A$1:$C$354, Translation!$A$1+1, 0)","v":"T4 2019"},{"$f":"VLOOKUP(\"Q3 2019\",Translation!$A$1:$C$354, Translation!$A$1+1, 0)","v":"T3 2019"},{"$f":"VLOOKUP(\"Q2 2019\",Translation!$A$1:$C$354, Translation!$A$1+1, 0)","v":"T2 2019"},{"$f":"VLOOKUP(\"Q1 2019\",Translation!$A$1:$C$354, Translation!$A$1+1, 0)","v":"T1 2019"},{"$f":"VLOOKUP(\"Q4 2018\",Translation!$A$1:$C$354, Translation!$A$1+1, 0)","v":"T4 2018"},{"$f":"VLOOKUP(\"Q3 2018\",Translation!$A$1:$C$354, Translation!$A$1+1, 0)","v":"T3 2018"},{"$f":"VLOOKUP(\"Q2 2018\",Translation!$A$1:$C$354, Translation!$A$1+1, 0)","v":"T2 2018"},{"$f":"VLOOKUP(\"YTD 2020\",Translation!$A$1:$C$354, Translation!$A$1+1, 0)","v":"Cumul 2020"},{"$f":"VLOOKUP(\"YTD 2019\",Translation!$A$1:$C$354, Translation!$A$1+1, 0)","v":"Cumul 2019"}]
[{"$f":"VLOOKUP(\"Total Insured Volumes (units)¹\",Translation!$A$1:$C$354, Translation!A1+1, 0)","v":"Volume total d'assurance (nbre de logements)¹"},{"$f":"SUMIFS(Data!$E:$E,Data!$B:$B,'3'!B$3,Data!$C:$C,\"ALL\",Data!$D:$D,\"Total Insured Volumes (units)\",Data!$F:$F,\"UNIT\")","v":56002},{"$f":"SUMIFS(Data!$E:$E,Data!$B:$B,'3'!C$3,Data!$C:$C,\"ALL\",Data!$D:$D,\"Total Insured Volumes (units)\",Data!$F:$F,\"UNIT\")","v":70457},{"$f":"SUMIFS(Data!$E:$E,Data!$B:$B,'3'!D$3,Data!$C:$C,\"ALL\",Data!$D:$D,\"Total Insured Volumes (units)\",Data!$F:$F,\"UNIT\")","v":72682},{"$f":"SUMIFS(Data!$E:$E,Data!$B:$B,'3'!E$3,Data!$C:$C,\"ALL\",Data!$D:$D,\"Total Insured Volumes (units)\",Data!$F:$F,\"UNIT\")","v":73116},{"$f":"SUMIFS(Data!$E:$E,Data!$B:$B,'3'!F$3,Data!$C:$C,\"ALL\",Data!$D:$D,\"Total Insured Volumes (units)\",Data!$F:$F,\"UNIT\")","v":43447},{"$f":"SUMIFS(Data!$E:$E,Data!$B:$B,'3'!G$3,Data!$C:$C,\"ALL\",Data!$D:$D,\"Total Insured Volumes (units)\",Data!$F:$F,\"UNIT\")","v":66960},{"$f":"SUMIFS(Data!$E:$E,Data!$B:$B,'3'!H$3,Data!$C:$C,\"ALL\",Data!$D:$D,\"Total Insured Volumes (units)\",Data!$F:$F,\"UNIT\")","v":65679},{"$f":"SUMIFS(Data!$E:$E,Data!$B:$B,'3'!I$3,Data!$C:$C,\"ALL\",Data!$D:$D,\"Total Insured Volumes (units)\",Data!$F:$F,\"UNIT\")","v":72716},{"$f":"SUMIFS(Data!$E:$E,Data!$B:$B,'3'!J$3,Data!$C:$C,\"ALL\",Data!$D:$D,\"Total Insured Volumes (units)\",Data!$F:$F,\"UNIT\")","v":56002},{"$f":"SUM(C4:F4)","v":259702}]
[{"$f":"VLOOKUP(\"TRANSACTIONAL HOMEOWNER\",Translation!$A$1:$C$354, Translation!A1+1, 0)","v":"PROPRIÉTAIRES-OCCUPANTS, À L’UNITÉ"},{"$f":"SUMIFS(Data!$E:$E,Data!$B:$B,'3'!B$3,Data!$C:$C,\"ALL\",Data!$D:$D,A5,Data!$F:$F,\"UNIT\")","v":15023},{"$f":"SUMIFS(Data!$E:$E,Data!$B:$B,'3'!C$3,Data!$C:$C,\"ALL\",Data!$D:$D,A5,Data!$F:$F,\"UNIT\")","v":25158},{"$f":"SUMIFS(Data!$E:$E,Data!$B:$B,'3'!D$3,Data!$C:$C,\"ALL\",Data!$D:$D,A5,Data!$F:$F,\"UNIT\")","v":29477},{"$f":"SUMIFS(Data!$E:$E,Data!$B:$B,'3'!E$3,Data!$C:$C,\"ALL\",Data!$D:$D,$A5,Data!$F:$F,\"UNIT\")","v":31327},{"$f":"SUMIFS(Data!$E:$E,Data!$B:$B,'3'!F$3,Data!$C:$C,\"ALL\",Data!$D:$D,$A5,Data!$F:$F,\"UNIT\")","v":13893},{"$f":"SUMIFS(Data!$E:$E,Data!$B:$B,'3'!G$3,Data!$C:$C,\"ALL\",Data!$D:$D,A5,Data!$F:$F,\"UNIT\")","v":23961},{"$f":"SUMIFS(Data!$E:$E,Data!$B:$B,'3'!H$3,Data!$C:$C,\"ALL\",Data!$D:$D,$A5,Data!$F:$F,\"UNIT\")","v":30481},{"$f":"SUMIFS(Data!$E:$E,Data!$B:$B,'3'!I$3,Data!$C:$C,\"ALL\",Data!$D:$D,$A5,Data!$F:$F,\"UNIT\")","v":34086},{"$f":"SUMIFS(Data!$E:$E,Data!$B:$B,'3'!J$3,Data!$C:$C,\"ALL\",Data!$D:$D,$A5,Data!$F:$F,\"UNIT\")","v":15023},{"$f":"SUM(C5:F5)","v":99855}]
[{"$f":"VLOOKUP(\"Portfolio (New)\",Translation!$A$1:$C$354, Translation!A1+1, 0)","v":"Assurance de portefeuille (nouveaux prêts)"},{"$f":"SUMIFS(Data!$E:$E,Data!$B:$B,'3'!B$3,Data!$C:$C,\"ALL\",Data!$D:$D,A6,Data!$F:$F,\"UNIT\")","v":4222},{"$f":"SUMIFS(Data!$E:$E,Data!$B:$B,'3'!C$3,Data!$C:$C,\"ALL\",Data!$D:$D,A6,Data!$F:$F,\"UNIT\")","v":6889},{"$f":"SUMIFS(Data!$E:$E,Data!$B:$B,'3'!D$3,Data!$C:$C,\"ALL\",Data!$D:$D,A6,Data!$F:$F,\"UNIT\")","v":1949},{"$f":"SUMIFS(Data!$E:$E,Data!$B:$B,'3'!E$3,Data!$C:$C,\"ALL\",Data!$D:$D,$A6,Data!$F:$F,\"UNIT\")","v":10440},{"$f":"SUMIFS(Data!$E:$E,Data!$B:$B,'3'!F$3,Data!$C:$C,\"ALL\",Data!$D:$D,$A6,Data!$F:$F,\"UNIT\")","v":3303},{"$f":"SUMIFS(Data!$E:$E,Data!$B:$B,'3'!G$3,Data!$C:$C,\"ALL\",Data!$D:$D,A6,Data!$F:$F,\"UNIT\")","v":5201},{"$f":"SUMIFS(Data!$E:$E,Data!$B:$B,'3'!H$3,Data!$C:$C,\"ALL\",Data!$D:$D,$A6,Data!$F:$F,\"UNIT\")","v":5808},{"$f":"SUMIFS(Data!$E:$E,Data!$B:$B,'3'!I$3,Data!$C:$C,\"ALL\",Data!$D:$D,$A6,Data!$F:$F,\"UNIT\")","v":5393},{"$f":"SUMIFS(Data!$E:$E,Data!$B:$B,'3'!J$3,Data!$C:$C,\"ALL\",Data!$D:$D,$A6,Data!$F:$F,\"UNIT\")","v":4222},{"$f":"SUM(C6:F6)","v":22581}]
[{"$f":"VLOOKUP(\"Portfolio (Substitutions)\",Translation!$A$1:$C$354, Translation!A1+1, 0)","v":"Assurance de portefeuille (prêts de substitution)"},{"$f":"SUMIFS(Data!$E:$E,Data!$B:$B,'3'!B$3,Data!$C:$C,\"ALL\",Data!$D:$D,A7,Data!$F:$F,\"UNIT\")","v":0},{"$f":"SUMIFS(Data!$E:$E,Data!$B:$B,'3'!C$3,Data!$C:$C,\"ALL\",Data!$D:$D,A7,Data!$F:$F,\"UNIT\")","v":1901},{"$f":"SUMIFS(Data!$E:$E,Data!$B:$B,'3'!D$3,Data!$C:$C,\"ALL\",Data!$D:$D,A7,Data!$F:$F,\"UNIT\")","v":3048},{"$f":"SUMIFS(Data!$E:$E,Data!$B:$B,'3'!E$3,Data!$C:$C,\"ALL\",Data!$D:$D,$A7,Data!$F:$F,\"UNIT\")","v":1402},{"$f":"SUMIFS(Data!$E:$E,Data!$B:$B,'3'!F$3,Data!$C:$C,\"ALL\",Data!$D:$D,$A7,Data!$F:$F,\"UNIT\")","v":3766},{"$f":"SUMIFS(Data!$E:$E,Data!$B:$B,'3'!G$3,Data!$C:$C,\"ALL\",Data!$D:$D,A7,Data!$F:$F,\"UNIT\")","v":1603},{"$f":"SUMIFS(Data!$E:$E,Data!$B:$B,'3'!H$3,Data!$C:$C,\"ALL\",Data!$D:$D,$A7,Data!$F:$F,\"UNIT\")","v":1172},{"$f":"SUMIFS(Data!$E:$E,Data!$B:$B,'3'!I$3,Data!$C:$C,\"ALL\",Data!$D:$D,$A7,Data!$F:$F,\"UNIT\")","v":9086},{"$f":"SUMIFS(Data!$E:$E,Data!$B:$B,'3'!J$3,Data!$C:$C,\"ALL\",Data!$D:$D,$A7,Data!$F:$F,\"UNIT\")","v":0},10117]
[{"$f":"PROPER(VLOOKUP(\"Multi-Unit Residential\",Translation!$A$1:$C$354, Translation!A1+1, 0))","v":"Immeubles Collectifs Résidentiels"},{"$f":"SUMIFS(Data!$E:$E,Data!$B:$B,'3'!B$3,Data!$C:$C,\"ALL\",Data!$D:$D,A8,Data!$F:$F,\"UNIT\")","v":36757},{"$f":"SUMIFS(Data!$E:$E,Data!$B:$B,'3'!C$3,Data!$C:$C,\"ALL\",Data!$D:$D,A8,Data!$F:$F,\"UNIT\")","v":36509},{"$f":"SUMIFS(Data!$E:$E,Data!$B:$B,'3'!D$3,Data!$C:$C,\"ALL\",Data!$D:$D,A8,Data!$F:$F,\"UNIT\")","v":38208},{"$f":"SUMIFS(Data!$E:$E,Data!$B:$B,'3'!E$3,Data!$C:$C,\"ALL\",Data!$D:$D,$A8,Data!$F:$F,\"UNIT\")","v":29947},{"$f":"SUMIFS(Data!$E:$E,Data!$B:$B,'3'!F$3,Data!$C:$C,\"ALL\",Data!$D:$D,$A8,Data!$F:$F,\"UNIT\")","v":22485},{"$f":"SUMIFS(Data!$E:$E,Data!$B:$B,'3'!G$3,Data!$C:$C,\"ALL\",Data!$D:$D,A8,Data!$F:$F,\"UNIT\")","v":36195},{"$f":"SUMIFS(Data!$E:$E,Data!$B:$B,'3'!H$3,Data!$C:$C,\"ALL\",Data!$D:$D,$A8,Data!$F:$F,\"UNIT\")","v":28218},{"$f":"SUMIFS(Data!$E:$E,Data!$B:$B,'3'!I$3,Data!$C:$C,\"ALL\",Data!$D:$D,$A8,Data!$F:$F,\"UNIT\")","v":24151},{"$f":"SUMIFS(Data!$E:$E,Data!$B:$B,'3'!J$3,Data!$C:$C,\"ALL\",Data!$D:$D,$A8,Data!$F:$F,\"UNIT\")","v":36757},127149]
[{"$f":"VLOOKUP(\"Total Insured Volumes ($M)\",Translation!$A$1:$C$354, Translation!A1+1, 0)","v":"Volume total d'assurance (M$)"},{"$f":"SUM(B10:B13)","v":10794.007551829976},{"$f":"SUM(C10:C13)","v":14319.641272040344},{"$f":"SUM(D10:D13)","v":14062.519656150474},{"$f":"SUM(E10:E13)","v":14190.328954950019},7892.1957353399857,{"$f":"SUM(G10:G13)","v":12157.700488350363},{"$f":"SUM(H10:H13)","v":13306.547115910455},{"$f":"SUM(I10:I13)","v":14003.195618400099},10794.007551829976,{"$f":"SUM(C9:F9)","v":50464.68561848082}]
[{"$f":"VLOOKUP(\"TRANSACTIONAL HOMEOWNER\",Translation!$A$1:$C$354, Translation!A1+1, 0)","v":"PROPRIÉTAIRES-OCCUPANTS, À L’UNITÉ"},{"$f":"SUMIFS(Data!$E:$E,Data!$B:$B,'3'!B$3,Data!$C:$C,\"ALL\",Data!$D:$D,A10,Data!$F:$F,\"AMT\")/1000000","v":4202.5898615299757},{"$f":"SUMIFS(Data!$E:$E,Data!$B:$B,'3'!C$3,Data!$C:$C,\"ALL\",Data!$D:$D,A10,Data!$F:$F,\"AMT\")/1000000","v":7000.8843682103252},{"$f":"SUMIFS(Data!$E:$E,Data!$B:$B,'3'!D$3,Data!$C:$C,\"ALL\",Data!$D:$D,$A10,Data!$F:$F,\"AMT\")/1000000","v":8302.3579437404605},{"$f":"SUMIFS(Data!$E:$E,Data!$B:$B,'3'!E$3,Data!$C:$C,\"ALL\",Data!$D:$D,$A10,Data!$F:$F,\"AMT\")/1000000","v":8001.5934595000017},{"$f":"SUMIFS(Data!$E:$E,Data!$B:$B,'3'!F$3,Data!$C:$C,\"ALL\",Data!$D:$D,$A10,Data!$F:$F,\"AMT\")/1000000","v":3764.1623309699849},{"$f":"SUMIFS(Data!$E:$E,Data!$B:$B,'3'!G$3,Data!$C:$C,\"ALL\",Data!$D:$D,A10,Data!$F:$F,\"AMT\")/1000000","v":6425.929804180375},{"$f":"SUMIFS(Data!$E:$E,Data!$B:$B,'3'!H$3,Data!$C:$C,\"ALL\",Data!$D:$D,$A10,Data!$F:$F,\"AMT\")/1000000","v":8244.0862838304347},{"$f":"SUMIFS(Data!$E:$E,Data!$B:$B,'3'!I$3,Data!$C:$C,\"ALL\",Data!$D:$D,$A10,Data!$F:$F,\"AMT\")/1000000","v":8654.3363208000937},{"$f":"SUMIFS(Data!$E:$E,Data!$B:$B,'3'!J$3,Data!$C:$C,\"ALL\",Data!$D:$D,$A10,Data!$F:$F,\"AMT\")/1000000","v":4202.5898615299757},{"$f":"SUM(C10:F10)","v":27068.998102420774}]
[{"$f":"VLOOKUP(\"Portfolio (New)\",Translation!$A$1:$C$354, Translation!A1+1, 0)","v":"Assurance de portefeuille (nouveaux prêts)"},{"$f":"SUMIFS(Data!$E:$E,Data!$B:$B,'3'!B$3,Data!$C:$C,\"ALL\",Data!$D:$D,A11,Data!$F:$F,\"AMT\")/1000000","v":1326.8607709700048},{"$f":"SUMIFS(Data!$E:$E,Data!$B:$B,'3'!C$3,Data!$C:$C,\"ALL\",Data!$D:$D,A11,Data!$F:$F,\"AMT\")/1000000","v":1896.2239085599876},{"$f":"SUMIFS(Data!$E:$E,Data!$B:$B,'3'!D$3,Data!$C:$C,\"ALL\",Data!$D:$D,$A11,Data!$F:$F,\"AMT\")/1000000","v":511.89625708998682},{"$f":"SUMIFS(Data!$E:$E,Data!$B:$B,'3'!E$3,Data!$C:$C,\"ALL\",Data!$D:$D,$A11,Data!$F:$F,\"AMT\")/1000000","v":2666.3454978600153},{"$f":"SUMIFS(Data!$E:$E,Data!$B:$B,'3'!F$3,Data!$C:$C,\"ALL\",Data!$D:$D,$A11,Data!$F:$F,\"AMT\")/1000000","v":835.41771502000142},{"$f":"SUMIFS(Data!$E:$E,Data!$B:$B,'3'!G$3,Data!$C:$C,\"ALL\",Data!$D:$D,A11,Data!$F:$F,\"AMT\")/1000000","v":1203.7243347399735},{"$f":"SUMIFS(Data!$E:$E,Data!$B:$B,'3'!H$3,Data!$C:$C,\"ALL\",Data!$D:$D,$A11,Data!$F:$F,\"AMT\")/1000000","v":1512.789799160008},{"$f":"SUMIFS(Data!$E:$E,Data!$B:$B,'3'!I$3,Data!$C:$C,\"ALL\",Data!$D:$D,$A11,Data!$F:$F,\"AMT\")/1000000","v":1341.7410158300058},{"$f":"SUMIFS(Data!$E:$E,Data!$B:$B,'3'!J$3,Data!$C:$C,\"ALL\",Data!$D:$D,$A11,Data!$F:$F,\"AMT\")/1000000","v":1326.8607709700048},{"$f":"SUM(C11:F11)","v":5909.8833785299903}]
[{"$f":"VLOOKUP(\"Portfolio (Substitutions)\",Translation!$A$1:$C$354, Translation!A1+1, 0)","v":"Assurance de portefeuille (prêts de substitution)"},{"$f":"SUMIFS(Data!$E:$E,Data!$B:$B,'3'!B$3,Data!$C:$C,\"ALL\",Data!$D:$D,A12,Data!$F:$F,\"AMT\")/1000000","v":0},{"$f":"SUMIFS(Data!$E:$E,Data!$B:$B,'3'!C$3,Data!$C:$C,\"ALL\",Data!$D:$D,A12,Data!$F:$F,\"AMT\")/1000000","v":366.46885968999555},{"$f":"SUMIFS(Data!$E:$E,Data!$B:$B,'3'!D$3,Data!$C:$C,\"ALL\",Data!$D:$D,$A12,Data!$F:$F,\"AMT\")/1000000","v":431.49818486000117},{"$f":"SUMIFS(Data!$E:$E,Data!$B:$B,'3'!E$3,Data!$C:$C,\"ALL\",Data!$D:$D,$A12,Data!$F:$F,\"AMT\")/1000000","v":107.79228798999787},{"$f":"SUMIFS(Data!$E:$E,Data!$B:$B,'3'!F$3,Data!$C:$C,\"ALL\",Data!$D:$D,$A12,Data!$F:$F,\"AMT\")/1000000","v":529.4212311699996},{"$f":"SUMIFS(Data!$E:$E,Data!$B:$B,'3'!G$3,Data!$C:$C,\"ALL\",Data!$D:$D,A12,Data!$F:$F,\"AMT\")/1000000","v":318.62824652999564},{"$f":"SUMIFS(Data!$E:$E,Data!$B:$B,'3'!H$3,Data!$C:$C,\"ALL\",Data!$D:$D,$A12,Data!$F:$F,\"AMT\")/1000000","v":161.93517819000149},{"$f":"SUMIFS(Data!$E:$E,Data!$B:$B,'3'!I$3,Data!$C:$C,\"ALL\",Data!$D:$D,$A12,Data!$F:$F,\"AMT\")/1000000","v":1268.5516775400022},{"$f":"SUMIFS(Data!$E:$E,Data!$B:$B,'3'!J$3,Data!$C:$C,\"ALL\",Data!$D:$D,$A12,Data!$F:$F,\"AMT\")/1000000","v":0},1435.1805637099942]
[{"$f":"PROPER(VLOOKUP(\"Multi-Unit Residential\",Translation!$A$1:$C$354, Translation!A1+1, 0))","v":"Immeubles Collectifs Résidentiels"},{"$f":"SUMIFS(Data!$E:$E,Data!$B:$B,'3'!B$3,Data!$C:$C,\"ALL\",Data!$D:$D,A13,Data!$F:$F,\"AMT\")/1000000","v":5264.5569193299962},{"$f":"SUMIFS(Data!$E:$E,Data!$B:$B,'3'!C$3,Data!$C:$C,\"ALL\",Data!$D:$D,A13,Data!$F:$F,\"AMT\")/1000000","v":5056.0641355800362},{"$f":"SUMIFS(Data!$E:$E,Data!$B:$B,'3'!D$3,Data!$C:$C,\"ALL\",Data!$D:$D,$A13,Data!$F:$F,\"AMT\")/1000000","v":4816.7672704600245},{"$f":"SUMIFS(Data!$E:$E,Data!$B:$B,'3'!E$3,Data!$C:$C,\"ALL\",Data!$D:$D,$A13,Data!$F:$F,\"AMT\")/1000000","v":3414.5977096000051},{"$f":"SUMIFS(Data!$E:$E,Data!$B:$B,'3'!F$3,Data!$C:$C,\"ALL\",Data!$D:$D,$A13,Data!$F:$F,\"AMT\")/1000000","v":2763.1944581799999},{"$f":"SUMIFS(Data!$E:$E,Data!$B:$B,'3'!G$3,Data!$C:$C,\"ALL\",Data!$D:$D,A13,Data!$F:$F,\"AMT\")/1000000","v":4209.4181029000192},{"$f":"SUMIFS(Data!$E:$E,Data!$B:$B,'3'!H$3,Data!$C:$C,\"ALL\",Data!$D:$D,$A13,Data!$F:$F,\"AMT\")/1000000","v":3387.7358547300105},{"$f":"SUMIFS(Data!$E:$E,Data!$B:$B,'3'!I$3,Data!$C:$C,\"ALL\",Data!$D:$D,$A13,Data!$F:$F,\"AMT\")/1000000","v":2738.5666042299963},{"$f":"SUMIFS(Data!$E:$E,Data!$B:$B,'3'!J$3,Data!$C:$C,\"ALL\",Data!$D:$D,$A13,Data!$F:$F,\"AMT\")/1000000","v":5264.5569193299962},16050.623573820065]
[{"$f":"VLOOKUP(\"¹ The sum of all breakdown categories may not add up to total due to rounding.\",Translation!$A$1:$C$354, Translation!A1+1, 0)","v":"¹ Les chiffres ayant été arrondis, il se peut que la somme de l'ensemble des catégories n'égale pas 100 %."}]
[]
[{"$f":"VLOOKUP(\"Loans insured during period by province (%)\",Translation!$A$1:$C$354, Translation!A1+1, 0)","v":"Prêts hypothécaires assurés au cours de la période selon la province (%)"}]
[null,{"$f":"VLOOKUP(\"Q1 2020\",Translation!$A$1:$C$354, Translation!$A$1+1, 0)","v":"T1 2020"},{"$f":"VLOOKUP(\"Q4 2019\",Translation!$A$1:$C$354, Translation!$A$1+1, 0)","v":"T4 2019"},{"$f":"VLOOKUP(\"Q3 2019\",Translation!$A$1:$C$354, Translation!$A$1+1, 0)","v":"T3 2019"},{"$f":"VLOOKUP(\"Q2 2019\",Translation!$A$1:$C$354, Translation!$A$1+1, 0)","v":"T2 2019"},{"$f":"VLOOKUP(\"Q1 2019\",Translation!$A$1:$C$354, Translation!$A$1+1, 0)","v":"T1 2019"},{"$f":"VLOOKUP(\"Q4 2018\",Translation!$A$1:$C$354, Translation!$A$1+1, 0)","v":"T4 2018"},{"$f":"VLOOKUP(\"Q3 2018\",Translation!$A$1:$C$354, Translation!$A$1+1, 0)","v":"T3 2018"},{"$f":"VLOOKUP(\"Q2 2018\",Translation!$A$1:$C$354, Translation!$A$1+1, 0)","v":"T2 2018"},{"$f":"VLOOKUP(\"YTD 2020\",Translation!$A$1:$C$354, Translation!$A$1+1, 0)","v":"Cumul 2020"},{"$f":"VLOOKUP(\"YTD 2019\",Translation!$A$1:$C$354, Translation!$A$1+1, 0)","v":"Cumul 2019"}]
[{"$f":"VLOOKUP(\"Newfoundland and Labrador\",Translation!$A$1:$C$354, Translation!A1+1, 0)","v":"Terre-Neuve-et-Labrador"},{"$f":"SUMIFS(Data!$E:$E,Data!$B:$B,'3'!B$17,Data!$C:$C,\"ALL\",Data!$D:$D,'3'!$A18,Data!$F:$F,'3'!$A$16)","v":0.4797152665621508},{"$f":"SUMIFS(Data!$E:$E,Data!$B:$B,'3'!C$17,Data!$C:$C,\"ALL\",Data!$D:$D,'3'!$A18,Data!$F:$F,'3'!$A$16)","v":0.70060764353431759},{"$f":"SUMIFS(Data!$E:$E,Data!$B:$B,'3'!D$17,Data!$C:$C,\"ALL\",Data!$D:$D,'3'!$A18,Data!$F:$F,'3'!$A$16)","v":0.64646491624900115},{"$f":"SUMIFS(Data!$E:$E,Data!$B:$B,'3'!E$17,Data!$C:$C,\"ALL\",Data!$D:$D,'3'!$A18,Data!$F:$F,'3'!$A$16)","v":0.64166050550303699},{"$f":"SUMIFS(Data!$E:$E,Data!$B:$B,'3'!F$17,Data!$C:$C,\"ALL\",Data!$D:$D,'3'!$A18,Data!$F:$F,'3'!$A$16)","v":0.65700434289550613},{"$f":"SUMIFS(Data!$E:$E,Data!$B:$B,'3'!G$17,Data!$C:$C,\"ALL\",Data!$D:$D,'3'!$A18,Data!$F:$F,'3'!$A$16)","v":0.70169429825493801},{"$f":"SUMIFS(Data!$E:$E,Data!$B:$B,'3'!H$17,Data!$C:$C,\"ALL\",Data!$D:$D,'3'!$A18,Data!$F:$F,'3'!$A$16)","v":1.0188920644229702},{"$f":"SUMIFS(Data!$E:$E,Data!$B:$B,'3'!I$17,Data!$C:$C,\"ALL\",Data!$D:$D,'3'!$A18,Data!$F:$F,'3'!$A$16)","v":0.67865726322892084},{"$f":"SUMIFS(Data!$E:$E,Data!$B:$B,'3'!J$17,Data!$C:$C,\"ALL\",Data!$D:$D,'3'!$A18,Data!$F:$F,'3'!$A$16)","v":0.4797152665621508},{"$f":"SUMIFS(Data!$E:$E,Data!$B:$B,'3'!K$17,Data!$C:$C,\"ALL\",Data!$D:$D,'3'!$A18,Data!$F:$F,'3'!$A$16)","v":0.65700434289550613}]
[{"$f":"VLOOKUP(\"Prince Edward Island\",Translation!$A$1:$C$354, Translation!A1+1, 0)","v":"Île-du-Prince-Édouard"},{"$f":"SUMIFS(Data!$E:$E,Data!$B:$B,'3'!B$17,Data!$C:$C,\"ALL\",Data!$D:$D,'3'!$A19,Data!$F:$F,'3'!$A$16)","v":0.17787751775979468},{"$f":"SUMIFS(Data!$E:$E,Data!$B:$B,'3'!C$17,Data!$C:$C,\"ALL\",Data!$D:$D,'3'!$A19,Data!$F:$F,'3'!$A$16)","v":0.48444180933921421},{"$f":"SUMIFS(Data!$E:$E,Data!$B:$B,'3'!D$17,Data!$C:$C,\"ALL\",Data!$D:$D,'3'!$A19,Data!$F:$F,'3'!$A$16)","v":0.28080609458941286},{"$f":"SUMIFS(Data!$E:$E,Data!$B:$B,'3'!E$17,Data!$C:$C,\"ALL\",Data!$D:$D,'3'!$A19,Data!$F:$F,'3'!$A$16)","v":0.23751610554819763},{"$f":"SUMIFS(Data!$E:$E,Data!$B:$B,'3'!F$17,Data!$C:$C,\"ALL\",Data!$D:$D,'3'!$A19,Data!$F:$F,'3'!$A$16)","v":0.23399445589760248},{"$f":"SUMIFS(Data!E:E,Data!B:B,'3'!G$17,Data!C:C,\"ALL\",Data!D:D,'3'!A19,Data!F:F,'3'!$A$16)","v":0.27643694867608609},{"$f":"SUMIFS(Data!$E:$E,Data!$B:$B,'3'!H$17,Data!$C:$C,\"ALL\",Data!$D:$D,'3'!$A19,Data!$F:$F,'3'!$A$16)","v":0.3541358561419985},{"$f":"SUMIFS(Data!$E:$E,Data!$B:$B,'3'!I$17,Data!$C:$C,\"ALL\",Data!$D:$D,'3'!$A19,Data!$F:$F,'3'!$A$16)","v":0.22456150281520537},{"$f":"SUMIFS(Data!$E:$E,Data!$B:$B,'3'!J$17,Data!$C:$C,\"ALL\",Data!$D:$D,'3'!$A19,Data!$F:$F,'3'!$A$16)","v":0.17787751775979468},{"$f":"SUMIFS(Data!$E:$E,Data!$B:$B,'3'!K$17,Data!$C:$C,\"ALL\",Data!$D:$D,'3'!$A19,Data!$F:$F,'3'!$A$16)","v":0.23399445589760248}]
[{"$f":"VLOOKUP(\"Nova Scotia\",Translation!$A$1:$C$354, Translation!A1+1, 0)","v":"Nouvelle-Écosse"},{"$f":"SUMIFS(Data!$E:$E,Data!$B:$B,'3'!B$17,Data!$C:$C,\"ALL\",Data!$D:$D,'3'!$A20,Data!$F:$F,'3'!$A$16)","v":2.2111095209446718},{"$f":"SUMIFS(Data!$E:$E,Data!$B:$B,'3'!C$17,Data!$C:$C,\"ALL\",Data!$D:$D,'3'!$A20,Data!$F:$F,'3'!$A$16)","v":3.021967273976641},{"$f":"SUMIFS(Data!$E:$E,Data!$B:$B,'3'!D$17,Data!$C:$C,\"ALL\",Data!$D:$D,'3'!$A20,Data!$F:$F,'3'!$A$16)","v":3.1147231680136076},{"$f":"SUMIFS(Data!$E:$E,Data!$B:$B,'3'!E$17,Data!$C:$C,\"ALL\",Data!$D:$D,'3'!$A20,Data!$F:$F,'3'!$A$16)","v":2.8491215657143742},{"$f":"SUMIFS(Data!$E:$E,Data!$B:$B,'3'!F$17,Data!$C:$C,\"ALL\",Data!$D:$D,'3'!$A20,Data!$F:$F,'3'!$A$16)","v":2.4104006471946975},{"$f":"SUMIFS(Data!E:E,Data!B:B,'3'!G$17,Data!C:C,\"ALL\",Data!D:D,'3'!A20,Data!F:F,'3'!$A$16)","v":3.3842656627234038},{"$f":"SUMIFS(Data!$E:$E,Data!$B:$B,'3'!H$17,Data!$C:$C,\"ALL\",Data!$D:$D,'3'!$A20,Data!$F:$F,'3'!$A$16)","v":3.5061628539110408},{"$f":"SUMIFS(Data!$E:$E,Data!$B:$B,'3'!I$17,Data!$C:$C,\"ALL\",Data!$D:$D,'3'!$A20,Data!$F:$F,'3'!$A$16)","v":3.7867387991387238},{"$f":"SUMIFS(Data!$E:$E,Data!$B:$B,'3'!J$17,Data!$C:$C,\"ALL\",Data!$D:$D,'3'!$A20,Data!$F:$F,'3'!$A$16)","v":2.2111095209446718},{"$f":"SUMIFS(Data!$E:$E,Data!$B:$B,'3'!K$17,Data!$C:$C,\"ALL\",Data!$D:$D,'3'!$A20,Data!$F:$F,'3'!$A$16)","v":2.4104006471946975}]
[{"$f":"VLOOKUP(\"New Brunswick\",Translation!$A$1:$C$354, Translation!A1+1, 0)","v":"Nouveau-Brunswick"},{"$f":"SUMIFS(Data!$E:$E,Data!$B:$B,'3'!B$17,Data!$C:$C,\"ALL\",Data!$D:$D,'3'!$A21,Data!$F:$F,'3'!$A$16)","v":1.4710848283877573},{"$f":"SUMIFS(Data!$E:$E,Data!$B:$B,'3'!C$17,Data!$C:$C,\"ALL\",Data!$D:$D,'3'!$A21,Data!$F:$F,'3'!$A$16)","v":1.4327418038638375},{"$f":"SUMIFS(Data!$E:$E,Data!$B:$B,'3'!D$17,Data!$C:$C,\"ALL\",Data!$D:$D,'3'!$A21,Data!$F:$F,'3'!$A$16)","v":1.8323241249011464},{"$f":"SUMIFS(Data!$E:$E,Data!$B:$B,'3'!E$17,Data!$C:$C,\"ALL\",Data!$D:$D,'3'!$A21,Data!$F:$F,'3'!$A$16)","v":1.5926236137818144},{"$f":"SUMIFS(Data!$E:$E,Data!$B:$B,'3'!F$17,Data!$C:$C,\"ALL\",Data!$D:$D,'3'!$A21,Data!$F:$F,'3'!$A$16)","v":1.2775672978538921},{"$f":"SUMIFS(Data!E:E,Data!B:B,'3'!G$17,Data!C:C,\"ALL\",Data!D:D,'3'!A21,Data!F:F,'3'!$A$16)","v":1.5016618730532336},{"$f":"SUMIFS(Data!$E:$E,Data!$B:$B,'3'!H$17,Data!$C:$C,\"ALL\",Data!$D:$D,'3'!$A21,Data!$F:$F,'3'!$A$16)","v":1.5782056546869947},{"$f":"SUMIFS(Data!$E:$E,Data!$B:$B,'3'!I$17,Data!$C:$C,\"ALL\",Data!$D:$D,'3'!$A21,Data!$F:$F,'3'!$A$16)","v":1.299840267797695},{"$f":"SUMIFS(Data!$E:$E,Data!$B:$B,'3'!J$17,Data!$C:$C,\"ALL\",Data!$D:$D,'3'!$A21,Data!$F:$F,'3'!$A$16)","v":1.4710848283877573},{"$f":"SUMIFS(Data!$E:$E,Data!$B:$B,'3'!K$17,Data!$C:$C,\"ALL\",Data!$D:$D,'3'!$A21,Data!$F:$F,'3'!$A$16)","v":1.2775672978538921}]
[{"$f":"VLOOKUP(\"Quebec\",Translation!$A$1:$C$354, Translation!A1+1, 0)","v":"Québec"},{"$f":"SUMIFS(Data!$E:$E,Data!$B:$B,'3'!B$17,Data!$C:$C,\"ALL\",Data!$D:$D,'3'!$A22,Data!$F:$F,'3'!$A$16)","v":23.994561278131545},{"$f":"SUMIFS(Data!$E:$E,Data!$B:$B,'3'!C$17,Data!$C:$C,\"ALL\",Data!$D:$D,'3'!$A22,Data!$F:$F,'3'!$A$16)","v":23.913003157751756},{"$f":"SUMIFS(Data!$E:$E,Data!$B:$B,'3'!D$17,Data!$C:$C,\"ALL\",Data!$D:$D,'3'!$A22,Data!$F:$F,'3'!$A$16)","v":23.812433574276472},{"$f":"SUMIFS(Data!$E:$E,Data!$B:$B,'3'!E$17,Data!$C:$C,\"ALL\",Data!$D:$D,'3'!$A22,Data!$F:$F,'3'!$A$16)","v":34.04682458682948},{"$f":"SUMIFS(Data!$E:$E,Data!$B:$B,'3'!F$17,Data!$C:$C,\"ALL\",Data!$D:$D,'3'!$A22,Data!$F:$F,'3'!$A$16)","v":23.253614929811096},{"$f":"SUMIFS(Data!E:E,Data!B:B,'3'!G$17,Data!C:C,\"ALL\",Data!D:D,'3'!A22,Data!F:F,'3'!$A$16)","v":24.284081841443275},{"$f":"SUMIFS(Data!$E:$E,Data!$B:$B,'3'!H$17,Data!$C:$C,\"ALL\",Data!$D:$D,'3'!$A22,Data!$F:$F,'3'!$A$16)","v":21.964478863717485},{"$f":"SUMIFS(Data!$E:$E,Data!$B:$B,'3'!I$17,Data!$C:$C,\"ALL\",Data!$D:$D,'3'!$A22,Data!$F:$F,'3'!$A$16)","v":32.075563280996711},{"$f":"SUMIFS(Data!$E:$E,Data!$B:$B,'3'!J$17,Data!$C:$C,\"ALL\",Data!$D:$D,'3'!$A22,Data!$F:$F,'3'!$A$16)","v":23.994561278131545},{"$f":"SUMIFS(Data!$E:$E,Data!$B:$B,'3'!K$17,Data!$C:$C,\"ALL\",Data!$D:$D,'3'!$A22,Data!$F:$F,'3'!$A$16)","v":23.253614929811096}]
[{"$f":"VLOOKUP(\"Ontario\",Translation!$A$1:$C$354, Translation!A1+1, 0)","v":"Ontario"},{"$f":"SUMIFS(Data!$E:$E,Data!$B:$B,'3'!B$17,Data!$C:$C,\"ALL\",Data!$D:$D,'3'!$A23,Data!$F:$F,'3'!$A$16)","v":40.294406991151426},{"$f":"SUMIFS(Data!$E:$E,Data!$B:$B,'3'!C$17,Data!$C:$C,\"ALL\",Data!$D:$D,'3'!$A23,Data!$F:$F,'3'!$A$16)","v":39.998478416807266},{"$f":"SUMIFS(Data!$E:$E,Data!$B:$B,'3'!D$17,Data!$C:$C,\"ALL\",Data!$D:$D,'3'!$A23,Data!$F:$F,'3'!$A$16)","v":36.702492265382141},{"$f":"SUMIFS(Data!$E:$E,Data!$B:$B,'3'!E$17,Data!$C:$C,\"ALL\",Data!$D:$D,'3'!$A23,Data!$F:$F,'3'!$A$16)","v":30.478159918288856},{"$f":"SUMIFS(Data!$E:$E,Data!$B:$B,'3'!F$17,Data!$C:$C,\"ALL\",Data!$D:$D,'3'!$A23,Data!$F:$F,'3'!$A$16)","v":40.351504376473088},{"$f":"SUMIFS(Data!E:E,Data!B:B,'3'!G$17,Data!C:C,\"ALL\",Data!D:D,'3'!A23,Data!F:F,'3'!$A$16)","v":35.605257796209905},{"$f":"SUMIFS(Data!$E:$E,Data!$B:$B,'3'!H$17,Data!$C:$C,\"ALL\",Data!$D:$D,'3'!$A23,Data!$F:$F,'3'!$A$16)","v":37.633661523843507},{"$f":"SUMIFS(Data!$E:$E,Data!$B:$B,'3'!I$17,Data!$C:$C,\"ALL\",Data!$D:$D,'3'!$A23,Data!$F:$F,'3'!$A$16)","v":32.620048714954571},{"$f":"SUMIFS(Data!$E:$E,Data!$B:$B,'3'!J$17,Data!$C:$C,\"ALL\",Data!$D:$D,'3'!$A23,Data!$F:$F,'3'!$A$16)","v":40.294406991151426},{"$f":"SUMIFS(Data!$E:$E,Data!$B:$B,'3'!K$17,Data!$C:$C,\"ALL\",Data!$D:$D,'3'!$A23,Data!$F:$F,'3'!$A$16)","v":40.351504376473088}]
[{"$f":"VLOOKUP(\"Manitoba\",Translation!$A$1:$C$354, Translation!A1+1, 0)","v":"Manitoba"},{"$f":"SUMIFS(Data!$E:$E,Data!$B:$B,'3'!B$17,Data!$C:$C,\"ALL\",Data!$D:$D,'3'!$A24,Data!$F:$F,'3'!$A$16)","v":3.8894392849375343},{"$f":"SUMIFS(Data!$E:$E,Data!$B:$B,'3'!C$17,Data!$C:$C,\"ALL\",Data!$D:$D,'3'!$A24,Data!$F:$F,'3'!$A$16)","v":3.7840648258861198},{"$f":"SUMIFS(Data!$E:$E,Data!$B:$B,'3'!D$17,Data!$C:$C,\"ALL\",Data!$D:$D,'3'!$A24,Data!$F:$F,'3'!$A$16)","v":4.819203987069141},{"$f":"SUMIFS(Data!$E:$E,Data!$B:$B,'3'!E$17,Data!$C:$C,\"ALL\",Data!$D:$D,'3'!$A24,Data!$F:$F,'3'!$A$16)","v":2.9724373635083201},{"$f":"SUMIFS(Data!$E:$E,Data!$B:$B,'3'!F$17,Data!$C:$C,\"ALL\",Data!$D:$D,'3'!$A24,Data!$F:$F,'3'!$A$16)","v":2.8329390600223654},{"$f":"SUMIFS(Data!E:E,Data!B:B,'3'!G$17,Data!C:C,\"ALL\",Data!D:D,'3'!A24,Data!F:F,'3'!$A$16)","v":3.6840359024511424},{"$f":"SUMIFS(Data!$E:$E,Data!$B:$B,'3'!H$17,Data!$C:$C,\"ALL\",Data!$D:$D,'3'!$A24,Data!$F:$F,'3'!$A$16)","v":4.1760542037009092},{"$f":"SUMIFS(Data!$E:$E,Data!$B:$B,'3'!I$17,Data!$C:$C,\"ALL\",Data!$D:$D,'3'!$A24,Data!$F:$F,'3'!$A$16)","v":2.8103075375536175},{"$f":"SUMIFS(Data!$E:$E,Data!$B:$B,'3'!J$17,Data!$C:$C,\"ALL\",Data!$D:$D,'3'!$A24,Data!$F:$F,'3'!$A$16)","v":3.8894392849375343},{"$f":"SUMIFS(Data!$E:$E,Data!$B:$B,'3'!K$17,Data!$C:$C,\"ALL\",Data!$D:$D,'3'!$A24,Data!$F:$F,'3'!$A$16)","v":2.8329390600223654}]
[{"$f":"VLOOKUP(\"Saskatchewan\",Translation!$A$1:$C$354, Translation!A1+1, 0)","v":"Saskatchewan"},{"$f":"SUMIFS(Data!$E:$E,Data!$B:$B,'3'!B$17,Data!$C:$C,\"ALL\",Data!$D:$D,'3'!$A25,Data!$F:$F,'3'!$A$16)","v":2.2298425900136958},{"$f":"SUMIFS(Data!$E:$E,Data!$B:$B,'3'!C$17,Data!$C:$C,\"ALL\",Data!$D:$D,'3'!$A25,Data!$F:$F,'3'!$A$16)","v":2.7510364575254247},{"$f":"SUMIFS(Data!$E:$E,Data!$B:$B,'3'!D$17,Data!$C:$C,\"ALL\",Data!$D:$D,'3'!$A25,Data!$F:$F,'3'!$A$16)","v":1.8179584362935888},{"$f":"SUMIFS(Data!$E:$E,Data!$B:$B,'3'!E$17,Data!$C:$C,\"ALL\",Data!$D:$D,'3'!$A25,Data!$F:$F,'3'!$A$16)","v":2.2245466863026282},{"$f":"SUMIFS(Data!$E:$E,Data!$B:$B,'3'!F$17,Data!$C:$C,\"ALL\",Data!$D:$D,'3'!$A25,Data!$F:$F,'3'!$A$16)","v":2.2845765790427657},{"$f":"SUMIFS(Data!E:E,Data!B:B,'3'!G$17,Data!C:C,\"ALL\",Data!D:D,'3'!A25,Data!F:F,'3'!$A$16)","v":2.3041515976695406},{"$f":"SUMIFS(Data!$E:$E,Data!$B:$B,'3'!H$17,Data!$C:$C,\"ALL\",Data!$D:$D,'3'!$A25,Data!$F:$F,'3'!$A$16)","v":2.181385325149968},{"$f":"SUMIFS(Data!$E:$E,Data!$B:$B,'3'!I$17,Data!$C:$C,\"ALL\",Data!$D:$D,'3'!$A25,Data!$F:$F,'3'!$A$16)","v":2.4719831814590338},{"$f":"SUMIFS(Data!$E:$E,Data!$B:$B,'3'!J$17,Data!$C:$C,\"ALL\",Data!$D:$D,'3'!$A25,Data!$F:$F,'3'!$A$16)","v":2.2298425900136958},{"$f":"SUMIFS(Data!$E:$E,Data!$B:$B,'3'!K$17,Data!$C:$C,\"ALL\",Data!$D:$D,'3'!$A25,Data!$F:$F,'3'!$A$16)","v":2.2845765790427657}]
[{"$f":"VLOOKUP(\"Alberta\",Translation!$A$1:$C$354, Translation!A1+1, 0)","v":"Alberta"},{"$f":"SUMIFS(Data!$E:$E,Data!$B:$B,'3'!B$17,Data!$C:$C,\"ALL\",Data!$D:$D,'3'!$A26,Data!$F:$F,'3'!$A$16)","v":11.960765338089079},{"$f":"SUMIFS(Data!$E:$E,Data!$B:$B,'3'!C$17,Data!$C:$C,\"ALL\",Data!$D:$D,'3'!$A26,Data!$F:$F,'3'!$A$16)","v":12.243329170908797},{"$f":"SUMIFS(Data!$E:$E,Data!$B:$B,'3'!D$17,Data!$C:$C,\"ALL\",Data!$D:$D,'3'!$A26,Data!$F:$F,'3'!$A$16)","v":11.609851407800891},{"$f":"SUMIFS(Data!$E:$E,Data!$B:$B,'3'!E$17,Data!$C:$C,\"ALL\",Data!$D:$D,'3'!$A26,Data!$F:$F,'3'!$A$16)","v":11.624083252067177},{"$f":"SUMIFS(Data!$E:$E,Data!$B:$B,'3'!F$17,Data!$C:$C,\"ALL\",Data!$D:$D,'3'!$A26,Data!$F:$F,'3'!$A$16)","v":13.070681310896484},{"$f":"SUMIFS(Data!E:E,Data!B:B,'3'!G$17,Data!C:C,\"ALL\",Data!D:D,'3'!A26,Data!F:F,'3'!$A$16)","v":13.63662489822004},{"$f":"SUMIFS(Data!$E:$E,Data!$B:$B,'3'!H$17,Data!$C:$C,\"ALL\",Data!$D:$D,'3'!$A26,Data!$F:$F,'3'!$A$16)","v":13.777649881528022},{"$f":"SUMIFS(Data!$E:$E,Data!$B:$B,'3'!I$17,Data!$C:$C,\"ALL\",Data!$D:$D,'3'!$A26,Data!$F:$F,'3'!$A$16)","v":12.244104073573798},{"$f":"SUMIFS(Data!$E:$E,Data!$B:$B,'3'!J$17,Data!$C:$C,\"ALL\",Data!$D:$D,'3'!$A26,Data!$F:$F,'3'!$A$16)","v":11.960765338089079},{"$f":"SUMIFS(Data!$E:$E,Data!$B:$B,'3'!K$17,Data!$C:$C,\"ALL\",Data!$D:$D,'3'!$A26,Data!$F:$F,'3'!$A$16)","v":13.070681310896484}]
[{"$f":"VLOOKUP(\"British Columbia\",Translation!$A$1:$C$354, Translation!A1+1, 0)","v":"Colombie-Britannique"},{"$f":"SUMIFS(Data!$E:$E,Data!$B:$B,'3'!B$17,Data!$C:$C,\"ALL\",Data!$D:$D,'3'!$A27,Data!$F:$F,'3'!$A$16)","v":13.095464507715253},{"$f":"SUMIFS(Data!$E:$E,Data!$B:$B,'3'!C$17,Data!$C:$C,\"ALL\",Data!$D:$D,'3'!$A27,Data!$F:$F,'3'!$A$16)","v":11.187799745611773},{"$f":"SUMIFS(Data!$E:$E,Data!$B:$B,'3'!D$17,Data!$C:$C,\"ALL\",Data!$D:$D,'3'!$A27,Data!$F:$F,'3'!$A$16)","v":14.701846958706538},{"$f":"SUMIFS(Data!$E:$E,Data!$B:$B,'3'!E$17,Data!$C:$C,\"ALL\",Data!$D:$D,'3'!$A27,Data!$F:$F,'3'!$A$16)","v":12.932663226438541},{"$f":"SUMIFS(Data!$E:$E,Data!$B:$B,'3'!F$17,Data!$C:$C,\"ALL\",Data!$D:$D,'3'!$A27,Data!$F:$F,'3'!$A$16)","v":13.185119738899783},{"$f":"SUMIFS(Data!E:E,Data!B:B,'3'!G$17,Data!C:C,\"ALL\",Data!D:D,'3'!A27,Data!F:F,'3'!$A$16)","v":14.179104041867877},{"$f":"SUMIFS(Data!$E:$E,Data!$B:$B,'3'!H$17,Data!$C:$C,\"ALL\",Data!$D:$D,'3'!$A27,Data!$F:$F,'3'!$A$16)","v":13.282499518077241},{"$f":"SUMIFS(Data!$E:$E,Data!$B:$B,'3'!I$17,Data!$C:$C,\"ALL\",Data!$D:$D,'3'!$A27,Data!$F:$F,'3'!$A$16)","v":11.459119972002101},{"$f":"SUMIFS(Data!$E:$E,Data!$B:$B,'3'!J$17,Data!$C:$C,\"ALL\",Data!$D:$D,'3'!$A27,Data!$F:$F,'3'!$A$16)","v":13.095464507715253},{"$f":"SUMIFS(Data!$E:$E,Data!$B:$B,'3'!K$17,Data!$C:$C,\"ALL\",Data!$D:$D,'3'!$A27,Data!$F:$F,'3'!$A$16)","v":13.185119738899783}]
[{"$f":"VLOOKUP(\"Territories\",Translation!$A$1:$C$354, Translation!A1+1, 0)","v":"Territoires"},{"$f":"SUMIFS(Data!$E:$E,Data!$B:$B,'3'!B$17,Data!$C:$C,\"ALL\",Data!$D:$D,'3'!$A28,Data!$F:$F,'3'!$A$16)","v":0.19573287630707725},{"$f":"SUMIFS(Data!$E:$E,Data!$B:$B,'3'!C$17,Data!$C:$C,\"ALL\",Data!$D:$D,'3'!$A28,Data!$F:$F,'3'!$A$16)","v":0.48252969479485874},{"$f":"SUMIFS(Data!$E:$E,Data!$B:$B,'3'!D$17,Data!$C:$C,\"ALL\",Data!$D:$D,'3'!$A28,Data!$F:$F,'3'!$A$16)","v":0.66189506671806053},{"$f":"SUMIFS(Data!$E:$E,Data!$B:$B,'3'!E$17,Data!$C:$C,\"ALL\",Data!$D:$D,'3'!$A28,Data!$F:$F,'3'!$A$16)","v":0.40036317601759042},{"$f":"SUMIFS(Data!$E:$E,Data!$B:$B,'3'!F$17,Data!$C:$C,\"ALL\",Data!$D:$D,'3'!$A28,Data!$F:$F,'3'!$A$16)","v":0.44259726101272928},{"$f":"SUMIFS(Data!E:E,Data!B:B,'3'!G$17,Data!C:C,\"ALL\",Data!D:D,'3'!A28,Data!F:F,'3'!$A$16)","v":0.44268513943058208},{"$f":"SUMIFS(Data!$E:$E,Data!$B:$B,'3'!H$17,Data!$C:$C,\"ALL\",Data!$D:$D,'3'!$A28,Data!$F:$F,'3'!$A$16)","v":0.52687425481985317},{"$f":"SUMIFS(Data!$E:$E,Data!$B:$B,'3'!I$17,Data!$C:$C,\"ALL\",Data!$D:$D,'3'!$A28,Data!$F:$F,'3'!$A$16)","v":0.32907540647965278},{"$f":"SUMIFS(Data!$E:$E,Data!$B:$B,'3'!J$17,Data!$C:$C,\"ALL\",Data!$D:$D,'3'!$A28,Data!$F:$F,'3'!$A$16)","v":0.19573287630707725},{"$f":"SUMIFS(Data!$E:$E,Data!$B:$B,'3'!K$17,Data!$C:$C,\"ALL\",Data!$D:$D,'3'!$A28,Data!$F:$F,'3'!$A$16)","v":0.44259726101272928}]
[{"$f":"VLOOKUP(\"Distributions do not include substitutions volumes for Portfolio insurance.\",Translation!$A$1:$C$354, Translation!A1+1, 0)","v":"La répartition des prêts hypothécaires pour l'assurance de portefeuille ne comprend pas les prêts de remplacement. "}]
[{"$f":"VLOOKUP(\"Distribution based on loan amounts, not number of loans.\",Translation!$A$1:$C$354, Translation!A1+1, 0)","v":"La répartition est établie d'après le montant, plutôt que le nombre de prêts assurés."}]
[{"$f":"VLOOKUP(\"The sum of all breakdown categories may not add up to 100 due to rounding.\",Translation!$A$1:$C$354, Translation!A1+1, 0)","v":"Les chiffres ayant été arrondis, il se peut que la somme de l'ensemble des catégories n'égale pas 100 %."}]

{"sheet":"4","index":5,"n_rows":30,"n_cols":12,"rows_kept":30,"cut":false,"hidden":false,"merged":[[29,0,29,11],[0,7,0,9],[2,1,2,11],[14,1,14,11]]}
[{"$f":"VLOOKUP(\"NATIONAL INSURED VOLUMES\",Translation!$A$1:$C$354, Translation!A1+1, 0)","v":"VOLUME DE PRÊTS ASSURÉS À L’ÉCHELLE NATIONALE"},null,null,null,null,null,null,{"$f":"VLOOKUP(\"Back to Table of Contents\",Translation!$A$1:$C$354, Translation!A1+1, 0)","v":"Retour à la table des matières"}]
[{"$f":"VLOOKUP(\"Insurance-in-force\",Translation!$A$1:$C$354, Translation!A1+1, 0)","v":"Contrats d’assurance en vigueur"}]
[null,{"$f":"VLOOKUP(\"As at\",Translation!$A$1:$C$354,Translation!A1+1,0)","v":"Aux"}]
[null,"Q1 2020","Q4 2019","Q3 2019","Q2 2019",{"$f":"VLOOKUP(\"Q1 2019\",Translation!$A$1:$C$354, Translation!$A$1+1, 0)","v":"T1 2019"},{"$f":"VLOOKUP(\"Q4 2018\",Translation!$A$1:$C$354, Translation!$A$1+1, 0)","v":"T4 2018"},{"$f":"VLOOKUP(\"Q3 2018\",Translation!$A$1:$C$354, Translation!$A$1+1, 0)","v":"T3 2018"},{"$f":"VLOOKUP(\"Q2 2018\",Translation!$A$1:$C$354, Translation!$A$1+1, 0)","v":"T2 2018"},{"$f":"VLOOKUP(\"Q1 2018\",Translation!$A$1:$C$354, Translation!$A$1+1, 0)","v":"T1 2018"},{"$f":"VLOOKUP(\"Q4 2017\",Translation!$A$1:$C$354, Translation!$A$1+1, 0)","v":"T4 2017"},{"$f":"VLOOKUP(\"Q3 2017\",Translation!$A$1:$C$354, Translation!$A$1+1, 0)","v":"T3 2017"}]
[{"$f":"VLOOKUP(\"Insurance-in-force (loans)\",Translation!$A$1:$C$354, Translation!A1+1, 0)","v":"Contrats d’assurance en vigueur (nbre de prêts assurés)"},1967973.0000031188,2006247.9999987397,2048380.999999651,2103278.0000012461,2145088.9999994547,2181242.9999902602,2225339.000007513,2287241.0000001653,2302564.0000003893,2348403.999997179,2381498.9999988703]
[{"$f":"VLOOKUP(\"Transactional Homeowner \",Translation!$A$1:$C$354, Translation!A1+1, 0)","v":"Propriétaires-occupants, à l’unité"},1118848.6868321567,1131863.887705534,1146990.8733745324,1164077.4778692964,1179095.4021401834,1193186.0893584718,1209439.5998336691,1226488.7438241611,1242575.7360496982,1262211.1892573817,1278288.6979148849]
[{"$f":"VLOOKUP(\"Portfolio \",Translation!$A$1:$C$354, Translation!A1+1, 0)","v":"Assurance de portefeuille "},824421,849965,877105,915101,942176.00000000012,964331,992417,1037343,1036519,1064056,1080263]
[{"$f":"PROPER(VLOOKUP(\"Multi-Unit Residential\",Translation!$A$1:$C$354, Translation!A1+1, 0))","v":"Immeubles Collectifs Résidentiels"},24703.313170962167,24419.112293205886,24285.126625118286,24099.522131950016,23817.597859270994,23725.910635720706,23482.400173843758,23409.256176004288,23469.263950691551,22136.810739797624,22947.302083985927]
[{"$f":"VLOOKUP(\"Insurance-in-force ($B)\",Translation!$A$1:$C$354, Translation!A1+1, 0)","v":"Contrats d’assurance en vigueur (G$)"},425,428.56077123433067,432.81163010758121,439,442,448,452.57499927284653,463,472.41562186233205,480.42713242015782,484.36828779632469]
[{"$f":"VLOOKUP(\"Transactional Homeowner \",Translation!$A$1:$C$354, Translation!A1+1, 0)","v":"Propriétaires-occupants, à l’unité"},225,227.21261581467189,229.24757460292486,231,234,236,239.67535262952728,242,244.73907968962652,249,252.10833395660993]
[{"$f":"VLOOKUP(\"Portfolio \",Translation!$A$1:$C$354, Translation!A1+1, 0)","v":"Assurance de portefeuille "},112,117,120.98292548379233,128,132,136,140.8463397203254,149,156.01902777879803,161.63918496954136,165.08591266815631]
[{"$f":"PROPER(VLOOKUP(\"Multi-Unit Residential\",Translation!$A$1:$C$354, Translation!A1+1, 0))","v":"Immeubles Collectifs Résidentiels"},88,84.863548524093531,82.581130020864023,80,76,76,72.053306922993784,72,71.657514393907547,69.081373040744168,67.1740411715585]
[{"$f":"VLOOKUP(\"Insurance In-force product level dollar amounts have been rounded to add up to the total insurance in-force.\",Translation!$A$1:$C$354, Translation!A1+1, 0)","v":"Les montants des produits d’assurance en vigueur ont été arrondis de manière à correspondre au total des contrats d’assurance en vigueur."}]
[{"$f":"VLOOKUP(\"Insurance-in-force by province (%)\",Translation!$A$1:$C$354, Translation!A1+1, 0)","v":"Contrats d’assurance en vigueur selon la province (%)"}]
[null,{"$f":"VLOOKUP(\"As at\",Translation!$A$1:$C$354,Translation!A1+1,0)","v":"Aux"}]
[null,"Q1 2020",{"$f":"C4","v":"Q4 2019"},{"$f":"D4","v":"Q3 2019"},{"$f":"E4","v":"Q2 2019"},{"$f":"VLOOKUP(\"Q1 2019\",Translation!$A$1:$C$354, Translation!A1+1, 0)","v":"T1 2019"},{"$f":"VLOOKUP(\"Q4 2018\",Translation!$A$1:$C$354, Translation!A1+1, 0)","v":"T4 2018"},{"$f":"VLOOKUP(\"Q3 2018\",Translation!$A$1:$C$354, Translation!A1+1, 0)","v":"T3 2018"},{"$f":"VLOOKUP(\"Q2 2018\",Translation!$A$1:$C$354, Translation!A1+1, 0)","v":"T2 2018"},{"$f":"VLOOKUP(\"Q1 2018\",Translation!$A$1:$C$354, Translation!A1+1, 0)","v":"T1 2018"},{"$f":"VLOOKUP(\"Q4 2017\",Translation!$A$1:$C$354, Translation!A1+1, 0)","v":"T4 2017"},{"$f":"VLOOKUP(\"Q3 2017\",Translation!$A$1:$C$354, Translation!A1+1, 0)","v":"T3 2017"}]
[{"$f":"VLOOKUP(\"Newfoundland and Labrador\",Translation!$A$1:$C$354, Translation!A1+1, 0)","v":"Terre-Neuve-et-Labrador"},1.1822986620779252,1.1913614947277011,1.1924935580648741,1.2030492977888836,1.2112916920043522,1.2199343599757713,1.2272828816801429,1.2236782847039394,1.2239562915186704,1.2263260766294719,1.230682326910137]
[{"$f":"VLOOKUP(\"Prince Edward Island\",Translation!$A$1:$C$354, Translation!A1+1, 0)","v":"Île-du-Prince-Édouard"},0.25858236817556229,0.25954871040580046,0.25909087352838323,0.26009069574547999,0.26237091671943008,0.26401349829205412,0.2654177676698059,0.26240938635767569,0.26558712694442249,0.26299164666365932,0.2668169441537282]
[{"$f":"VLOOKUP(\"Nova Scotia\",Translation!$A$1:$C$354, Translation!A1+1, 0)","v":"Nouvelle-Écosse"},2.7390642252763735,2.7389754388240015,2.6938825786430862,2.6723166907186657,2.6552458907859338,2.6391541033833446,2.6257840158097063,2.5886238880455501,2.524566138489019,2.4657109039659342,2.462023602350496]
[{"$f":"VLOOKUP(\"New Brunswick\",Translation!$A$1:$C$354, Translation!A1+1, 0)","v":"Nouveau-Brunswick"},1.55941533602033,1.563221876978742,1.5660986108229551,1.5629766082980667,1.5616285927421738,1.5587540565669391,1.5653192608243616,1.5510133314119865,1.5472229318067303,1.5419678071072702,1.5532883764217271]
[{"$f":"VLOOKUP(\"Quebec\",Translation!$A$1:$C$354, Translation!A1+1, 0)","v":"Québec"},21.72910588440277,21.551068523721721,21.360924126386081,21.218681934132057,20.780778417669644,20.778316748407097,20.537205551110663,20.474718612768374,20.184194918947959,20.017922314842842,19.873514446074605]
[{"$f":"VLOOKUP(\"Ontario\",Translation!$A$1:$C$354, Translation!A1+1, 0)","v":"Ontario"},34.672449104562013,34.821411824063105,35.106908417864794,35.380992711830281,35.707702995459464,35.71059303018567,35.932209807437744,36.211254427805819,36.564945101677409,36.891206186554214,36.845486827532262]
[{"$f":"VLOOKUP(\"Manitoba\",Translation!$A$1:$C$354, Translation!A1+1, 0)","v":"Manitoba"},3.1941518736042078,3.1520765426689619,3.1393373615226983,3.0666872294716288,3.0316404965577153,3.0087859578488891,3.0244650888678954,2.9822918253185953,2.9417196479175489,2.8793015094966545,2.8827854608911823]
[{"$f":"VLOOKUP(\"Saskatchewan\",Translation!$A$1:$C$354, Translation!A1+1, 0)","v":"Saskatchewan"},2.8788882438306356,2.876098989587796,2.8544062473794418,2.8522163103639917,2.8545731621915396,2.8450828343122114,2.8453720673832503,2.8099191339183367,2.7930637274467833,2.7814736752911342,2.7671266479032015]
[{"$f":"VLOOKUP(\"Alberta\",Translation!$A$1:$C$354, Translation!A1+1, 0)","v":"Alberta"},18.263455610628334,18.222189374028371,18.174415001703288,18.090888286980491,18.233707596062494,18.185838559937565,18.132435526998115,17.999761588247715,17.895491315482541,17.784311581098024,17.793923988739351]
[{"$f":"VLOOKUP(\"British Columbia\",Translation!$A$1:$C$354, Translation!A1+1, 0)","v":"Colombie-Britannique"},13.092441897307189,13.190805281768675,13.223356210671891,13.26880374663496,13.276639532315231,13.366376061342475,13.422092790314249,13.47833236157652,13.642954978896737,13.732527850913037,13.910158742050244]
[{"$f":"VLOOKUP(\"Territories\",Translation!$A$1:$C$354, Translation!A1+1, 0)","v":"Territoires"},0.43014679377619008,0.4332419428661704,0.42908701339825089,0.4232964888003638,0.42442070749443978,0.42315078889042224,0.42241524186823742,0.41799716005621801,0.41629782032499868,0.41626044731749057,0.41419263708682186]
[{"$f":"VLOOKUP(\"Distribution based on outstanding loan amounts, not number of loans.\",Translation!$A$1:$C$354, Translation!A1+1, 0)","v":"La répartition est établie d'après le solde, plutôt que le nombre de prêts assurés."}]
[{"$f":"VLOOKUP(\"The sum of all breakdown categories may not add up to 100 due to rounding.\",Translation!$A$1:$C$354, Translation!A1+1, 0)","v":"Les chiffres ayant été arrondis, il se peut que la somme de l'ensemble des catégories n'égale pas 100 %."}]
[{"$f":"VLOOKUP(\"Portfolio-insured Line of Credit loans with zero ($0.00) balance were included in the number of loans in force starting from Q2 2018.\",Translation!$A$1:$C$354, Translation!A1+1, 0)","v":"Les prêts liés à une marge de crédit couverts par une assurance de portefeuille ayant un solde nul (0,00 $) sont inclus dans le nombre des prêts en cours depuis le deuxième trimestre de 2018."}]

{"sheet":"5","index":6,"n_rows":49,"n_cols":11,"rows_kept":49,"cut":false,"hidden":false,"merged":[[0,6,0,10]]}
[{"$f":"VLOOKUP(\"NATIONAL INSURED VOLUMES\",Translation!$A$1:$C$354, Translation!A1+1, 0)","v":"VOLUME DE PRÊTS ASSURÉS À L’ÉCHELLE NATIONALE"},null,null,null,null,null,{"$f":"VLOOKUP(\"Back to Table of Contents\",Translation!$A$1:$C$354, Translation!A1+1, 0)","v":"Retour à la table des matières"}]
[{"$f":"VLOOKUP(\"Loans insured during period by province (%)\",Translation!$A$1:$C$354, Translation!A1+1, 0)","v":"Prêts hypothécaires assurés au cours de la période selon la province (%)"}]
[{"$f":"VLOOKUP(\"TRANSACTIONAL HOMEOWNER\",Translation!$A$1:$C$354, Translation!A1+1, 0)","v":"PROPRIÉTAIRES-OCCUPANTS, À L’UNITÉ"},{"$f":"VLOOKUP(\"Q1 2020\",Translation!$A$1:$C$354, Translation!$A$1+1, 0)","v":"T1 2020"},{"$f":"VLOOKUP(\"Q4 2019\",Translation!$A$1:$C$354, Translation!$A$1+1, 0)","v":"T4 2019"},{"$f":"VLOOKUP(\"Q3 2019\",Translation!$A$1:$C$354, Translation!$A$1+1, 0)","v":"T3 2019"},{"$f":"VLOOKUP(\"Q2 2019\",Translation!$A$1:$C$354, Translation!$A$1+1, 0)","v":"T2 2019"},{"$f":"VLOOKUP(\"Q1 2019\",Translation!$A$1:$C$354, Translation!$A$1+1, 0)","v":"T1 2019"},{"$f":"VLOOKUP(\"Q4 2018\",Translation!$A$1:$C$354, Translation!$A$1+1, 0)","v":"T4 2018"},{"$f":"VLOOKUP(\"Q3 2018\",Translation!$A$1:$C$354, Translation!$A$1+1, 0)","v":"T3 2018"},{"$f":"VLOOKUP(\"Q2 2018\",Translation!$A$1:$C$354, Translation!$A$1+1, 0)","v":"T2 2018"},{"$f":"VLOOKUP(\"YTD 2020\",Translation!$A$1:$C$354, Translation!$A$1+1, 0)","v":"Cumul 2020"},{"$f":"VLOOKUP(\"YTD 2019\",Translation!$A$1:$C$354, Translation!$A$1+1, 0)","v":"Cumul 2019"}]
[{"$f":"VLOOKUP(\"Newfoundland and Labrador\",Translation!$A$1:$C$354, Translation!A1+1, 0)","v":"Terre-Neuve-et-Labrador"},{"$f":"SUMIFS(Data!E:E,Data!B:B,'5'!$B$3,Data!C:C,'5'!$A$3,Data!D:D,'5'!A4,Data!F:F,'5'!$A$2)","v":0.89491214225477189},{"$f":"SUMIFS(Data!E:E,Data!B:B,'5'!$C$3,Data!C:C,'5'!$A$3,Data!D:D,'5'!A4,Data!F:F,'5'!$A$2)","v":1.1749959752627277},{"$f":"SUMIFS(Data!E:E,Data!B:B,'5'!$D$3,Data!C:C,'5'!$A$3,Data!D:D,'5'!A4,Data!F:F,'5'!$A$2)","v":1.0524776701540817},{"$f":"SUMIFS(Data!E:E,Data!B:B,'5'!$E$3,Data!C:C,'5'!$A$3,Data!D:D,'5'!A4,Data!F:F,'5'!$A$2)","v":0.83714742577113732},{"$f":"SUMIFS(Data!E:E,Data!B:B,'5'!$F$3,Data!C:C,'5'!$A$3,Data!D:D,'5'!A4,Data!F:F,'5'!$A$2)","v":1.1491687184716348},{"$f":"SUMIFS(Data!E:E,Data!B:B,'5'!$G$3,Data!C:C,'5'!$A$3,Data!D:D,'5'!A4,Data!F:F,'5'!$A$2)","v":1.1795091446593216},{"$f":"SUMIFS(Data!E:E,Data!B:B,'5'!$H$3,Data!C:C,'5'!$A$3,Data!D:D,'5'!A4,Data!F:F,'5'!$A$2)","v":1.1659375243051813},{"$f":"SUMIFS(Data!E:E,Data!B:B,'5'!$I$3,Data!C:C,'5'!$A$3,Data!D:D,'5'!A4,Data!F:F,'5'!$A$2)","v":0.9731714290279182},{"$f":"SUMIFS(Data!E:E,Data!B:B,'5'!$J$3,Data!C:C,'5'!$A$3,Data!D:D,'5'!A4,Data!F:F,'5'!$A$2)","v":0.89491214225477189},{"$f":"SUMIFS(Data!E:E,Data!B:B,'5'!$K$3,Data!C:C,'5'!$A$3,Data!D:D,'5'!A4,Data!F:F,'5'!$A$2)","v":1.1491687184716348}]
[{"$f":"VLOOKUP(\"Prince Edward Island\",Translation!$A$1:$C$354, Translation!A1+1, 0)","v":"Île-du-Prince-Édouard"},{"$f":"SUMIFS(Data!E:E,Data!B:B,'5'!$B$3,Data!C:C,'5'!$A$3,Data!D:D,'5'!A5,Data!F:F,'5'!$A$2)","v":0.4090740916064825},{"$f":"SUMIFS(Data!E:E,Data!B:B,'5'!$C$3,Data!C:C,'5'!$A$3,Data!D:D,'5'!A5,Data!F:F,'5'!$A$2)","v":0.4464617908486001},{"$f":"SUMIFS(Data!E:E,Data!B:B,'5'!$D$3,Data!C:C,'5'!$A$3,Data!D:D,'5'!A5,Data!F:F,'5'!$A$2)","v":0.42536753081958528},{"$f":"SUMIFS(Data!E:E,Data!B:B,'5'!$E$3,Data!C:C,'5'!$A$3,Data!D:D,'5'!A5,Data!F:F,'5'!$A$2)","v":0.3248869219155941},{"$f":"SUMIFS(Data!E:E,Data!B:B,'5'!$F$3,Data!C:C,'5'!$A$3,Data!D:D,'5'!A5,Data!F:F,'5'!$A$2)","v":0.29218198799534323},{"$f":"SUMIFS(Data!E:E,Data!B:B,'5'!$G$3,Data!C:C,'5'!$A$3,Data!D:D,'5'!A5,Data!F:F,'5'!$A$2)","v":0.45128340266956096},{"$f":"SUMIFS(Data!E:E,Data!B:B,'5'!$H$3,Data!C:C,'5'!$A$3,Data!D:D,'5'!A5,Data!F:F,'5'!$A$2)","v":0.4259080039243956},{"$f":"SUMIFS(Data!E:E,Data!B:B,'5'!$I$3,Data!C:C,'5'!$A$3,Data!D:D,'5'!A5,Data!F:F,'5'!$A$2)","v":0.26073409771826322},{"$f":"SUMIFS(Data!E:E,Data!B:B,'5'!$J$3,Data!C:C,'5'!$A$3,Data!D:D,'5'!A5,Data!F:F,'5'!$A$2)","v":0.4090740916064825},{"$f":"SUMIFS(Data!E:E,Data!B:B,'5'!$K$3,Data!C:C,'5'!$A$3,Data!D:D,'5'!A5,Data!F:F,'5'!$A$2)","v":0.29218198799534323}]
[{"$f":"VLOOKUP(\"Nova Scotia\",Translation!$A$1:$C$354, Translation!A1+1, 0)","v":"Nouvelle-Écosse"},{"$f":"SUMIFS(Data!E:E,Data!B:B,'5'!$B$3,Data!C:C,'5'!$A$3,Data!D:D,'5'!A6,Data!F:F,'5'!$A$2)","v":2.3588717204469054},{"$f":"SUMIFS(Data!E:E,Data!B:B,'5'!$C$3,Data!C:C,'5'!$A$3,Data!D:D,'5'!A6,Data!F:F,'5'!$A$2)","v":2.3747786492405742},{"$f":"SUMIFS(Data!E:E,Data!B:B,'5'!$D$3,Data!C:C,'5'!$A$3,Data!D:D,'5'!A6,Data!F:F,'5'!$A$2)","v":2.9549395090140695},{"$f":"SUMIFS(Data!E:E,Data!B:B,'5'!$E$3,Data!C:C,'5'!$A$3,Data!D:D,'5'!A6,Data!F:F,'5'!$A$2)","v":1.9903984376769099},{"$f":"SUMIFS(Data!E:E,Data!B:B,'5'!$F$3,Data!C:C,'5'!$A$3,Data!D:D,'5'!A6,Data!F:F,'5'!$A$2)","v":2.3318964264057276},{"$f":"SUMIFS(Data!E:E,Data!B:B,'5'!$G$3,Data!C:C,'5'!$A$3,Data!D:D,'5'!A6,Data!F:F,'5'!$A$2)","v":2.3876041421715546},{"$f":"SUMIFS(Data!E:E,Data!B:B,'5'!$H$3,Data!C:C,'5'!$A$3,Data!D:D,'5'!A6,Data!F:F,'5'!$A$2)","v":2.9128685449552321},{"$f":"SUMIFS(Data!E:E,Data!B:B,'5'!$I$3,Data!C:C,'5'!$A$3,Data!D:D,'5'!A6,Data!F:F,'5'!$A$2)","v":2.0242868771011153},{"$f":"SUMIFS(Data!E:E,Data!B:B,'5'!$J$3,Data!C:C,'5'!$A$3,Data!D:D,'5'!A6,Data!F:F,'5'!$A$2)","v":2.3588717204469054},{"$f":"SUMIFS(Data!E:E,Data!B:B,'5'!$K$3,Data!C:C,'5'!$A$3,Data!D:D,'5'!A6,Data!F:F,'5'!$A$2)","v":2.3318964264057276}]
[{"$f":"VLOOKUP(\"New Brunswick\",Translation!$A$1:$C$354, Translation!A1+1, 0)","v":"Nouveau-Brunswick"},{"$f":"SUMIFS(Data!E:E,Data!B:B,'5'!$B$3,Data!C:C,'5'!$A$3,Data!D:D,'5'!A7,Data!F:F,'5'!$A$2)","v":1.926181530608112},{"$f":"SUMIFS(Data!E:E,Data!B:B,'5'!$C$3,Data!C:C,'5'!$A$3,Data!D:D,'5'!A7,Data!F:F,'5'!$A$2)","v":2.1699942586558674},{"$f":"SUMIFS(Data!E:E,Data!B:B,'5'!$D$3,Data!C:C,'5'!$A$3,Data!D:D,'5'!A7,Data!F:F,'5'!$A$2)","v":2.5072629378769671},{"$f":"SUMIFS(Data!E:E,Data!B:B,'5'!$E$3,Data!C:C,'5'!$A$3,Data!D:D,'5'!A7,Data!F:F,'5'!$A$2)","v":1.8344649932359405},{"$f":"SUMIFS(Data!E:E,Data!B:B,'5'!$F$3,Data!C:C,'5'!$A$3,Data!D:D,'5'!A7,Data!F:F,'5'!$A$2)","v":2.0367189746103169},{"$f":"SUMIFS(Data!E:E,Data!B:B,'5'!$G$3,Data!C:C,'5'!$A$3,Data!D:D,'5'!A7,Data!F:F,'5'!$A$2)","v":2.3614159981736877},{"$f":"SUMIFS(Data!E:E,Data!B:B,'5'!$H$3,Data!C:C,'5'!$A$3,Data!D:D,'5'!A7,Data!F:F,'5'!$A$2)","v":2.2085258271449275},{"$f":"SUMIFS(Data!E:E,Data!B:B,'5'!$I$3,Data!C:C,'5'!$A$3,Data!D:D,'5'!A7,Data!F:F,'5'!$A$2)","v":1.7344004213725019},{"$f":"SUMIFS(Data!E:E,Data!B:B,'5'!$J$3,Data!C:C,'5'!$A$3,Data!D:D,'5'!A7,Data!F:F,'5'!$A$2)","v":1.926181530608112},{"$f":"SUMIFS(Data!E:E,Data!B:B,'5'!$K$3,Data!C:C,'5'!$A$3,Data!D:D,'5'!A7,Data!F:F,'5'!$A$2)","v":2.0367189746103169}]
[{"$f":"VLOOKUP(\"Quebec\",Translation!$A$1:$C$354, Translation!A1+1, 0)","v":"Québec"},{"$f":"SUMIFS(Data!E:E,Data!B:B,'5'!$B$3,Data!C:C,'5'!$A$3,Data!D:D,'5'!A8,Data!F:F,'5'!$A$2)","v":29.496303675674611},{"$f":"SUMIFS(Data!E:E,Data!B:B,'5'!$C$3,Data!C:C,'5'!$A$3,Data!D:D,'5'!A8,Data!F:F,'5'!$A$2)","v":26.618319239720208},{"$f":"SUMIFS(Data!E:E,Data!B:B,'5'!$D$3,Data!C:C,'5'!$A$3,Data!D:D,'5'!A8,Data!F:F,'5'!$A$2)","v":24.29977699514604},{"$f":"SUMIFS(Data!E:E,Data!B:B,'5'!$E$3,Data!C:C,'5'!$A$3,Data!D:D,'5'!A8,Data!F:F,'5'!$A$2)","v":43.128140674666305},{"$f":"SUMIFS(Data!E:E,Data!B:B,'5'!$F$3,Data!C:C,'5'!$A$3,Data!D:D,'5'!A8,Data!F:F,'5'!$A$2)","v":26.155324521200807},{"$f":"SUMIFS(Data!E:E,Data!B:B,'5'!$G$3,Data!C:C,'5'!$A$3,Data!D:D,'5'!A8,Data!F:F,'5'!$A$2)","v":24.278669589729823},{"$f":"SUMIFS(Data!E:E,Data!B:B,'5'!$H$3,Data!C:C,'5'!$A$3,Data!D:D,'5'!A8,Data!F:F,'5'!$A$2)","v":23.538000350300099},{"$f":"SUMIFS(Data!E:E,Data!B:B,'5'!$I$3,Data!C:C,'5'!$A$3,Data!D:D,'5'!A8,Data!F:F,'5'!$A$2)","v":39.604060013631006},{"$f":"SUMIFS(Data!E:E,Data!B:B,'5'!$J$3,Data!C:C,'5'!$A$3,Data!D:D,'5'!A8,Data!F:F,'5'!$A$2)","v":29.496303675674611},{"$f":"SUMIFS(Data!E:E,Data!B:B,'5'!$K$3,Data!C:C,'5'!$A$3,Data!D:D,'5'!A8,Data!F:F,'5'!$A$2)","v":26.155324521200807}]
[{"$f":"VLOOKUP(\"Ontario\",Translation!$A$1:$C$354, Translation!A1+1, 0)","v":"Ontario"},{"$f":"SUMIFS(Data!E:E,Data!B:B,'5'!$B$3,Data!C:C,'5'!$A$3,Data!D:D,'5'!A9,Data!F:F,'5'!$A$2)","v":30.109596954086879},{"$f":"SUMIFS(Data!E:E,Data!B:B,'5'!$C$3,Data!C:C,'5'!$A$3,Data!D:D,'5'!A9,Data!F:F,'5'!$A$2)","v":34.385792799150394},{"$f":"SUMIFS(Data!E:E,Data!B:B,'5'!$D$3,Data!C:C,'5'!$A$3,Data!D:D,'5'!A9,Data!F:F,'5'!$A$2)","v":34.716678692221791},{"$f":"SUMIFS(Data!E:E,Data!B:B,'5'!$E$3,Data!C:C,'5'!$A$3,Data!D:D,'5'!A9,Data!F:F,'5'!$A$2)","v":24.063526901708247},{"$f":"SUMIFS(Data!E:E,Data!B:B,'5'!$F$3,Data!C:C,'5'!$A$3,Data!D:D,'5'!A9,Data!F:F,'5'!$A$2)","v":33.050157915198497},{"$f":"SUMIFS(Data!E:E,Data!B:B,'5'!$G$3,Data!C:C,'5'!$A$3,Data!D:D,'5'!A9,Data!F:F,'5'!$A$2)","v":33.728388662234572},{"$f":"SUMIFS(Data!E:E,Data!B:B,'5'!$H$3,Data!C:C,'5'!$A$3,Data!D:D,'5'!A9,Data!F:F,'5'!$A$2)","v":32.946998069159498},{"$f":"SUMIFS(Data!E:E,Data!B:B,'5'!$I$3,Data!C:C,'5'!$A$3,Data!D:D,'5'!A9,Data!F:F,'5'!$A$2)","v":25.772467793684225},{"$f":"SUMIFS(Data!E:E,Data!B:B,'5'!$J$3,Data!C:C,'5'!$A$3,Data!D:D,'5'!A9,Data!F:F,'5'!$A$2)","v":30.109596954086879},{"$f":"SUMIFS(Data!E:E,Data!B:B,'5'!$K$3,Data!C:C,'5'!$A$3,Data!D:D,'5'!A9,Data!F:F,'5'!$A$2)","v":33.050157915198497}]
[{"$f":"VLOOKUP(\"Manitoba\",Translation!$A$1:$C$354, Translation!A1+1, 0)","v":"Manitoba"},{"$f":"SUMIFS(Data!E:E,Data!B:B,'5'!$B$3,Data!C:C,'5'!$A$3,Data!D:D,'5'!A10,Data!F:F,'5'!$A$2)","v":4.1961965659384628},{"$f":"SUMIFS(Data!E:E,Data!B:B,'5'!$C$3,Data!C:C,'5'!$A$3,Data!D:D,'5'!A10,Data!F:F,'5'!$A$2)","v":4.4183276315555151},{"$f":"SUMIFS(Data!E:E,Data!B:B,'5'!$D$3,Data!C:C,'5'!$A$3,Data!D:D,'5'!A10,Data!F:F,'5'!$A$2)","v":4.9898810318320361},{"$f":"SUMIFS(Data!E:E,Data!B:B,'5'!$E$3,Data!C:C,'5'!$A$3,Data!D:D,'5'!A10,Data!F:F,'5'!$A$2)","v":3.2966436974377449},{"$f":"SUMIFS(Data!E:E,Data!B:B,'5'!$F$3,Data!C:C,'5'!$A$3,Data!D:D,'5'!A10,Data!F:F,'5'!$A$2)","v":3.68661038415524},{"$f":"SUMIFS(Data!E:E,Data!B:B,'5'!$G$3,Data!C:C,'5'!$A$3,Data!D:D,'5'!A10,Data!F:F,'5'!$A$2)","v":4.4908876087620406},{"$f":"SUMIFS(Data!E:E,Data!B:B,'5'!$H$3,Data!C:C,'5'!$A$3,Data!D:D,'5'!A10,Data!F:F,'5'!$A$2)","v":4.8969913451631131},{"$f":"SUMIFS(Data!E:E,Data!B:B,'5'!$I$3,Data!C:C,'5'!$A$3,Data!D:D,'5'!A10,Data!F:F,'5'!$A$2)","v":3.0866038753250358},{"$f":"SUMIFS(Data!E:E,Data!B:B,'5'!$J$3,Data!C:C,'5'!$A$3,Data!D:D,'5'!A10,Data!F:F,'5'!$A$2)","v":4.1961965659384628},{"$f":"SUMIFS(Data!E:E,Data!B:B,'5'!$K$3,Data!C:C,'5'!$A$3,Data!D:D,'5'!A10,Data!F:F,'5'!$A$2)","v":3.68661038415524}]
[{"$f":"VLOOKUP(\"Saskatchewan\",Translation!$A$1:$C$354, Translation!A1+1, 0)","v":"Saskatchewan"},{"$f":"SUMIFS(Data!E:E,Data!B:B,'5'!$B$3,Data!C:C,'5'!$A$3,Data!D:D,'5'!A11,Data!F:F,'5'!$A$2)","v":2.3999674563360882},{"$f":"SUMIFS(Data!E:E,Data!B:B,'5'!$C$3,Data!C:C,'5'!$A$3,Data!D:D,'5'!A11,Data!F:F,'5'!$A$2)","v":2.7303124823938454},{"$f":"SUMIFS(Data!E:E,Data!B:B,'5'!$D$3,Data!C:C,'5'!$A$3,Data!D:D,'5'!A11,Data!F:F,'5'!$A$2)","v":2.6590608201167072},{"$f":"SUMIFS(Data!E:E,Data!B:B,'5'!$E$3,Data!C:C,'5'!$A$3,Data!D:D,'5'!A11,Data!F:F,'5'!$A$2)","v":2.5921666710456424},{"$f":"SUMIFS(Data!E:E,Data!B:B,'5'!$F$3,Data!C:C,'5'!$A$3,Data!D:D,'5'!A11,Data!F:F,'5'!$A$2)","v":2.7250238034651204},{"$f":"SUMIFS(Data!E:E,Data!B:B,'5'!$G$3,Data!C:C,'5'!$A$3,Data!D:D,'5'!A11,Data!F:F,'5'!$A$2)","v":2.6940890008978},{"$f":"SUMIFS(Data!E:E,Data!B:B,'5'!$H$3,Data!C:C,'5'!$A$3,Data!D:D,'5'!A11,Data!F:F,'5'!$A$2)","v":2.901539170447073},{"$f":"SUMIFS(Data!E:E,Data!B:B,'5'!$I$3,Data!C:C,'5'!$A$3,Data!D:D,'5'!A11,Data!F:F,'5'!$A$2)","v":2.3736327113791797},{"$f":"SUMIFS(Data!E:E,Data!B:B,'5'!$J$3,Data!C:C,'5'!$A$3,Data!D:D,'5'!A11,Data!F:F,'5'!$A$2)","v":2.3999674563360882},{"$f":"SUMIFS(Data!E:E,Data!B:B,'5'!$K$3,Data!C:C,'5'!$A$3,Data!D:D,'5'!A11,Data!F:F,'5'!$A$2)","v":2.7250238034651204}]
[{"$f":"VLOOKUP(\"Alberta\",Translation!$A$1:$C$354, Translation!A1+1, 0)","v":"Alberta"},{"$f":"SUMIFS(Data!E:E,Data!B:B,'5'!$B$3,Data!C:C,'5'!$A$3,Data!D:D,'5'!A12,Data!F:F,'5'!$A$2)","v":16.264807666745469},{"$f":"SUMIFS(Data!E:E,Data!B:B,'5'!$C$3,Data!C:C,'5'!$A$3,Data!D:D,'5'!A12,Data!F:F,'5'!$A$2)","v":14.676741623338859},{"$f":"SUMIFS(Data!E:E,Data!B:B,'5'!$D$3,Data!C:C,'5'!$A$3,Data!D:D,'5'!A12,Data!F:F,'5'!$A$2)","v":15.57771034150338},{"$f":"SUMIFS(Data!E:E,Data!B:B,'5'!$E$3,Data!C:C,'5'!$A$3,Data!D:D,'5'!A12,Data!F:F,'5'!$A$2)","v":13.417578165486569},{"$f":"SUMIFS(Data!E:E,Data!B:B,'5'!$F$3,Data!C:C,'5'!$A$3,Data!D:D,'5'!A12,Data!F:F,'5'!$A$2)","v":17.27330900584322},{"$f":"SUMIFS(Data!E:E,Data!B:B,'5'!$G$3,Data!C:C,'5'!$A$3,Data!D:D,'5'!A12,Data!F:F,'5'!$A$2)","v":17.288145774465857},{"$f":"SUMIFS(Data!E:E,Data!B:B,'5'!$H$3,Data!C:C,'5'!$A$3,Data!D:D,'5'!A12,Data!F:F,'5'!$A$2)","v":18.008268107833082},{"$f":"SUMIFS(Data!E:E,Data!B:B,'5'!$I$3,Data!C:C,'5'!$A$3,Data!D:D,'5'!A12,Data!F:F,'5'!$A$2)","v":15.132771865115616},{"$f":"SUMIFS(Data!E:E,Data!B:B,'5'!$J$3,Data!C:C,'5'!$A$3,Data!D:D,'5'!A12,Data!F:F,'5'!$A$2)","v":16.264807666745469},{"$f":"SUMIFS(Data!E:E,Data!B:B,'5'!$K$3,Data!C:C,'5'!$A$3,Data!D:D,'5'!A12,Data!F:F,'5'!$A$2)","v":17.27330900584322}]
[{"$f":"VLOOKUP(\"British Columbia\",Translation!$A$1:$C$354, Translation!A1+1, 0)","v":"Colombie-Britannique"},{"$f":"SUMIFS(Data!E:E,Data!B:B,'5'!$B$3,Data!C:C,'5'!$A$3,Data!D:D,'5'!A13,Data!F:F,'5'!$A$2)","v":11.44136434871964},{"$f":"SUMIFS(Data!E:E,Data!B:B,'5'!$C$3,Data!C:C,'5'!$A$3,Data!D:D,'5'!A13,Data!F:F,'5'!$A$2)","v":10.372180179654881},{"$f":"SUMIFS(Data!E:E,Data!B:B,'5'!$D$3,Data!C:C,'5'!$A$3,Data!D:D,'5'!A13,Data!F:F,'5'!$A$2)","v":10.08850690484204},{"$f":"SUMIFS(Data!E:E,Data!B:B,'5'!$E$3,Data!C:C,'5'!$A$3,Data!D:D,'5'!A13,Data!F:F,'5'!$A$2)","v":7.9579210413536563},{"$f":"SUMIFS(Data!E:E,Data!B:B,'5'!$F$3,Data!C:C,'5'!$A$3,Data!D:D,'5'!A13,Data!F:F,'5'!$A$2)","v":10.70740238814667},{"$f":"SUMIFS(Data!E:E,Data!B:B,'5'!$G$3,Data!C:C,'5'!$A$3,Data!D:D,'5'!A13,Data!F:F,'5'!$A$2)","v":10.520440834753304},{"$f":"SUMIFS(Data!E:E,Data!B:B,'5'!$H$3,Data!C:C,'5'!$A$3,Data!D:D,'5'!A13,Data!F:F,'5'!$A$2)","v":10.24849289292886},{"$f":"SUMIFS(Data!E:E,Data!B:B,'5'!$I$3,Data!C:C,'5'!$A$3,Data!D:D,'5'!A13,Data!F:F,'5'!$A$2)","v":8.5540119870714211},{"$f":"SUMIFS(Data!E:E,Data!B:B,'5'!$J$3,Data!C:C,'5'!$A$3,Data!D:D,'5'!A13,Data!F:F,'5'!$A$2)","v":11.44136434871964},{"$f":"SUMIFS(Data!E:E,Data!B:B,'5'!$K$3,Data!C:C,'5'!$A$3,Data!D:D,'5'!A13,Data!F:F,'5'!$A$2)","v":10.70740238814667}]
[{"$f":"VLOOKUP(\"Territories\",Translation!$A$1:$C$354, Translation!A1+1, 0)","v":"Territoires"},{"$f":"SUMIFS(Data!E:E,Data!B:B,'5'!$B$3,Data!C:C,'5'!$A$3,Data!D:D,'5'!A14,Data!F:F,'5'!$A$2)","v":0.50272384758260236},{"$f":"SUMIFS(Data!E:E,Data!B:B,'5'!$C$3,Data!C:C,'5'!$A$3,Data!D:D,'5'!A14,Data!F:F,'5'!$A$2)","v":0.632095370178547},{"$f":"SUMIFS(Data!E:E,Data!B:B,'5'!$D$3,Data!C:C,'5'!$A$3,Data!D:D,'5'!A14,Data!F:F,'5'!$A$2)","v":0.72833756647329029},{"$f":"SUMIFS(Data!E:E,Data!B:B,'5'!$E$3,Data!C:C,'5'!$A$3,Data!D:D,'5'!A14,Data!F:F,'5'!$A$2)","v":0.5571250697022625},{"$f":"SUMIFS(Data!E:E,Data!B:B,'5'!$F$3,Data!C:C,'5'!$A$3,Data!D:D,'5'!A14,Data!F:F,'5'!$A$2)","v":0.59220587450742557},{"$f":"SUMIFS(Data!E:E,Data!B:B,'5'!$G$3,Data!C:C,'5'!$A$3,Data!D:D,'5'!A14,Data!F:F,'5'!$A$2)","v":0.61956584148247851},{"$f":"SUMIFS(Data!E:E,Data!B:B,'5'!$H$3,Data!C:C,'5'!$A$3,Data!D:D,'5'!A14,Data!F:F,'5'!$A$2)","v":0.74647016383854115},{"$f":"SUMIFS(Data!E:E,Data!B:B,'5'!$I$3,Data!C:C,'5'!$A$3,Data!D:D,'5'!A14,Data!F:F,'5'!$A$2)","v":0.4838589285737247},{"$f":"SUMIFS(Data!E:E,Data!B:B,'5'!$J$3,Data!C:C,'5'!$A$3,Data!D:D,'5'!A14,Data!F:F,'5'!$A$2)","v":0.50272384758260236},{"$f":"SUMIFS(Data!E:E,Data!B:B,'5'!$K$3,Data!C:C,'5'!$A$3,Data!D:D,'5'!A14,Data!F:F,'5'!$A$2)","v":0.59220587450742557}]
[{"$f":"VLOOKUP(\"Distribution based on loan amounts, not number of loans.\",Translation!$A$1:$C$354, Translation!A1+1, 0)","v":"La répartition est établie d'après le montant, plutôt que le nombre de prêts assurés."}]
[{"$f":"VLOOKUP(\"The sum of all breakdown categories may not add up to 100 due to rounding.\",Translation!$A$1:$C$354, Translation!A1+1, 0)","v":"Les chiffres ayant été arrondis, il se peut que la somme de l'ensemble des catégories n'égale pas 100 %."}]
[]
[{"$f":"VLOOKUP(\"Loans insured during period by province (%)\",Translation!$A$1:$C$354, Translation!A1+1, 0)","v":"Prêts hypothécaires assurés au cours de la période selon la province (%)"}]
[{"$f":"VLOOKUP(\"PORTFOLIO\",Translation!$A$1:$C$354, Translation!A1+1, 0)","v":"ASSURANCE DE PORTEFEUILLE"},{"$f":"VLOOKUP(\"Q1 2020\",Translation!$A$1:$C$354, Translation!$A$1+1, 0)","v":"T1 2020"},{"$f":"VLOOKUP(\"Q4 2019\",Translation!$A$1:$C$354, Translation!$A$1+1, 0)","v":"T4 2019"},{"$f":"VLOOKUP(\"Q3 2019\",Translation!$A$1:$C$354, Translation!$A$1+1, 0)","v":"T3 2019"},{"$f":"VLOOKUP(\"Q2 2019\",Translation!$A$1:$C$354, Translation!$A$1+1, 0)","v":"T2 2019"},{"$f":"VLOOKUP(\"Q1 2019\",Translation!$A$1:$C$354, Translation!$A$1+1, 0)","v":"T1 2019"},{"$f":"VLOOKUP(\"Q4 2018\",Translation!$A$1:$C$354, Translation!$A$1+1, 0)","v":"T4 2018"},{"$f":"VLOOKUP(\"Q3 2018\",Translation!$A$1:$C$354, Translation!$A$1+1, 0)","v":"T3 2018"},{"$f":"VLOOKUP(\"Q2 2018\",Translation!$A$1:$C$354, Translation!$A$1+1, 0)","v":"T2 2018"},{"$f":"VLOOKUP(\"YTD 2020\",Translation!$A$1:$C$354, Translation!$A$1+1, 0)","v":"Cumul 2020"},{"$f":"VLOOKUP(\"YTD 2019\",Translation!$A$1:$C$354, Translation!$A$1+1, 0)","v":"Cumul 2019"}]
[{"$f":"VLOOKUP(\"Newfoundland and Labrador\",Translation!$A$1:$C$354, Translation!A1+1, 0)","v":"Terre-Neuve-et-Labrador"},{"$f":"SUMIFS(Data!E:E,Data!B:B,'5'!B$19,Data!C:C,'5'!$A$19,Data!D:D,'5'!A20,Data!F:F,'5'!$A$18)","v":0.13559436147055079},{"$f":"SUMIFS(Data!E:E,Data!B:B,'5'!C$19,Data!C:C,'5'!$A$19,Data!D:D,'5'!A20,Data!F:F,'5'!$A$18)","v":0.69604473556200652},{"$f":"SUMIFS(Data!E:E,Data!B:B,'5'!D$19,Data!C:C,'5'!$A$19,Data!D:D,'5'!A20,Data!F:F,'5'!$A$18)","v":0},{"$f":"SUMIFS(Data!E:E,Data!B:B,'5'!E$19,Data!C:C,'5'!$A$19,Data!D:D,'5'!A20,Data!F:F,'5'!$A$18)","v":0.66799717757114141},{"$f":"SUMIFS(Data!E:E,Data!B:B,'5'!F$19,Data!C:C,'5'!$A$19,Data!D:D,'5'!A20,Data!F:F,'5'!$A$18)","v":0.61252857558538798},{"$f":"SUMIFS(Data!E:E,Data!B:B,'5'!G$19,Data!C:C,'5'!$A$19,Data!D:D,'5'!A20,Data!F:F,'5'!$A$18)","v":0.39200229187185182},{"$f":"SUMIFS(Data!E:E,Data!B:B,'5'!H$19,Data!C:C,'5'!$A$19,Data!D:D,'5'!A20,Data!F:F,'5'!$A$18)","v":0.31485155126275682},{"$f":"SUMIFS(Data!E:E,Data!B:B,'5'!I$19,Data!C:C,'5'!$A$19,Data!D:D,'5'!A20,Data!F:F,'5'!$A$18)","v":0.15949675121738577},{"$f":"SUMIFS(Data!E:E,Data!B:B,'5'!J$19,Data!C:C,'5'!$A$19,Data!D:D,'5'!A20,Data!F:F,'5'!$A$18)","v":0.13559436147055079},{"$f":"SUMIFS(Data!E:E,Data!B:B,'5'!K$19,Data!C:C,'5'!$A$19,Data!D:D,'5'!A20,Data!F:F,'5'!$A$18)","v":0.61252857558538798}]
[{"$f":"VLOOKUP(\"Prince Edward Island\",Translation!$A$1:$C$354, Translation!A1+1, 0)","v":"Île-du-Prince-Édouard"},{"$f":"SUMIFS(Data!E:E,Data!B:B,'5'!B$19,Data!C:C,'5'!$A$19,Data!D:D,'5'!A21,Data!F:F,'5'!$A$18)","v":0},{"$f":"SUMIFS(Data!E:E,Data!B:B,'5'!C$19,Data!C:C,'5'!$A$19,Data!D:D,'5'!A21,Data!F:F,'5'!$A$18)","v":0.16275267947357749},{"$f":"SUMIFS(Data!E:E,Data!B:B,'5'!D$19,Data!C:C,'5'!$A$19,Data!D:D,'5'!A21,Data!F:F,'5'!$A$18)","v":0},{"$f":"SUMIFS(Data!E:E,Data!B:B,'5'!E$19,Data!C:C,'5'!$A$19,Data!D:D,'5'!A21,Data!F:F,'5'!$A$18)","v":0.19934295252681763},{"$f":"SUMIFS(Data!E:E,Data!B:B,'5'!F$19,Data!C:C,'5'!$A$19,Data!D:D,'5'!A21,Data!F:F,'5'!$A$18)","v":4.4625898313764498E-2},{"$f":"SUMIFS(Data!E:E,Data!B:B,'5'!G$19,Data!C:C,'5'!$A$19,Data!D:D,'5'!A21,Data!F:F,'5'!$A$18)","v":6.6847144880044562E-2},{"$f":"SUMIFS(Data!E:E,Data!B:B,'5'!H$19,Data!C:C,'5'!$A$19,Data!D:D,'5'!A21,Data!F:F,'5'!$A$18)","v":0},{"$f":"SUMIFS(Data!E:E,Data!B:B,'5'!I$19,Data!C:C,'5'!$A$19,Data!D:D,'5'!A21,Data!F:F,'5'!$A$18)","v":0.16323926928961871},{"$f":"SUMIFS(Data!E:E,Data!B:B,'5'!J$19,Data!C:C,'5'!$A$19,Data!D:D,'5'!A21,Data!F:F,'5'!$A$18)","v":0},{"$f":"SUMIFS(Data!E:E,Data!B:B,'5'!K$19,Data!C:C,'5'!$A$19,Data!D:D,'5'!A21,Data!F:F,'5'!$A$18)","v":4.4625898313764498E-2}]
[{"$f":"VLOOKUP(\"Nova Scotia\",Translation!$A$1:$C$354, Translation!A1+1, 0)","v":"Nouvelle-Écosse"},{"$f":"SUMIFS(Data!E:E,Data!B:B,'5'!B$19,Data!C:C,'5'!$A$19,Data!D:D,'5'!A22,Data!F:F,'5'!$A$18)","v":0.52414659564588484},{"$f":"SUMIFS(Data!E:E,Data!B:B,'5'!C$19,Data!C:C,'5'!$A$19,Data!D:D,'5'!A22,Data!F:F,'5'!$A$18)","v":1.7520481252253322},{"$f":"SUMIFS(Data!E:E,Data!B:B,'5'!D$19,Data!C:C,'5'!$A$19,Data!D:D,'5'!A22,Data!F:F,'5'!$A$18)","v":0.60591432678803114},{"$f":"SUMIFS(Data!E:E,Data!B:B,'5'!E$19,Data!C:C,'5'!$A$19,Data!D:D,'5'!A22,Data!F:F,'5'!$A$18)","v":1.468643950359358},{"$f":"SUMIFS(Data!E:E,Data!B:B,'5'!F$19,Data!C:C,'5'!$A$19,Data!D:D,'5'!A22,Data!F:F,'5'!$A$18)","v":0.91649732251807747},{"$f":"SUMIFS(Data!E:E,Data!B:B,'5'!G$19,Data!C:C,'5'!$A$19,Data!D:D,'5'!A22,Data!F:F,'5'!$A$18)","v":0.51665957067681267},{"$f":"SUMIFS(Data!E:E,Data!B:B,'5'!H$19,Data!C:C,'5'!$A$19,Data!D:D,'5'!A22,Data!F:F,'5'!$A$18)","v":0.64045835484743852},{"$f":"SUMIFS(Data!E:E,Data!B:B,'5'!I$19,Data!C:C,'5'!$A$19,Data!D:D,'5'!A22,Data!F:F,'5'!$A$18)","v":0.41733928335909776},{"$f":"SUMIFS(Data!E:E,Data!B:B,'5'!J$19,Data!C:C,'5'!$A$19,Data!D:D,'5'!A22,Data!F:F,'5'!$A$18)","v":0.52414659564588484},{"$f":"SUMIFS(Data!E:E,Data!B:B,'5'!K$19,Data!C:C,'5'!$A$19,Data!D:D,'5'!A22,Data!F:F,'5'!$A$18)","v":0.91649732251807747}]
[{"$f":"VLOOKUP(\"New Brunswick\",Translation!$A$1:$C$354, Translation!A1+1, 0)","v":"Nouveau-Brunswick"},{"$f":"SUMIFS(Data!E:E,Data!B:B,'5'!B$19,Data!C:C,'5'!$A$19,Data!D:D,'5'!A23,Data!F:F,'5'!$A$18)","v":0.26657779228895234},{"$f":"SUMIFS(Data!E:E,Data!B:B,'5'!C$19,Data!C:C,'5'!$A$19,Data!D:D,'5'!A23,Data!F:F,'5'!$A$18)","v":0.97414940063843825},{"$f":"SUMIFS(Data!E:E,Data!B:B,'5'!D$19,Data!C:C,'5'!$A$19,Data!D:D,'5'!A23,Data!F:F,'5'!$A$18)","v":0.10877547985315741},{"$f":"SUMIFS(Data!E:E,Data!B:B,'5'!E$19,Data!C:C,'5'!$A$19,Data!D:D,'5'!A23,Data!F:F,'5'!$A$18)","v":0.95972736918520674},{"$f":"SUMIFS(Data!E:E,Data!B:B,'5'!F$19,Data!C:C,'5'!$A$19,Data!D:D,'5'!A23,Data!F:F,'5'!$A$18)","v":0.28745716625634499},{"$f":"SUMIFS(Data!E:E,Data!B:B,'5'!G$19,Data!C:C,'5'!$A$19,Data!D:D,'5'!A23,Data!F:F,'5'!$A$18)","v":0.28234749119150321},{"$f":"SUMIFS(Data!E:E,Data!B:B,'5'!H$19,Data!C:C,'5'!$A$19,Data!D:D,'5'!A23,Data!F:F,'5'!$A$18)","v":0.29145492602132994},{"$f":"SUMIFS(Data!E:E,Data!B:B,'5'!I$19,Data!C:C,'5'!$A$19,Data!D:D,'5'!A23,Data!F:F,'5'!$A$18)","v":0.10838765475916992},{"$f":"SUMIFS(Data!E:E,Data!B:B,'5'!J$19,Data!C:C,'5'!$A$19,Data!D:D,'5'!A23,Data!F:F,'5'!$A$18)","v":0.26657779228895234},{"$f":"SUMIFS(Data!E:E,Data!B:B,'5'!K$19,Data!C:C,'5'!$A$19,Data!D:D,'5'!A23,Data!F:F,'5'!$A$18)","v":0.28745716625634499}]
[{"$f":"VLOOKUP(\"Quebec\",Translation!$A$1:$C$354, Translation!A1+1, 0)","v":"Québec"},{"$f":"SUMIFS(Data!E:E,Data!B:B,'5'!B$19,Data!C:C,'5'!$A$19,Data!D:D,'5'!A24,Data!F:F,'5'!$A$18)","v":5.4075238329298836},{"$f":"SUMIFS(Data!E:E,Data!B:B,'5'!C$19,Data!C:C,'5'!$A$19,Data!D:D,'5'!A24,Data!F:F,'5'!$A$18)","v":18.054328676827129},{"$f":"SUMIFS(Data!E:E,Data!B:B,'5'!D$19,Data!C:C,'5'!$A$19,Data!D:D,'5'!A24,Data!F:F,'5'!$A$18)","v":3.9611057922689623},{"$f":"SUMIFS(Data!E:E,Data!B:B,'5'!E$19,Data!C:C,'5'!$A$19,Data!D:D,'5'!A24,Data!F:F,'5'!$A$18)","v":12.50960378719507},{"$f":"SUMIFS(Data!E:E,Data!B:B,'5'!F$19,Data!C:C,'5'!$A$19,Data!D:D,'5'!A24,Data!F:F,'5'!$A$18)","v":11.748974863149767},{"$f":"SUMIFS(Data!E:E,Data!B:B,'5'!G$19,Data!C:C,'5'!$A$19,Data!D:D,'5'!A24,Data!F:F,'5'!$A$18)","v":4.9712699272566709},{"$f":"SUMIFS(Data!E:E,Data!B:B,'5'!H$19,Data!C:C,'5'!$A$19,Data!D:D,'5'!A24,Data!F:F,'5'!$A$18)","v":8.0605538355499693},{"$f":"SUMIFS(Data!E:E,Data!B:B,'5'!I$19,Data!C:C,'5'!$A$19,Data!D:D,'5'!A24,Data!F:F,'5'!$A$18)","v":5.8515670322138815},{"$f":"SUMIFS(Data!E:E,Data!B:B,'5'!J$19,Data!C:C,'5'!$A$19,Data!D:D,'5'!A24,Data!F:F,'5'!$A$18)","v":5.4075238329298836},{"$f":"SUMIFS(Data!E:E,Data!B:B,'5'!K$19,Data!C:C,'5'!$A$19,Data!D:D,'5'!A24,Data!F:F,'5'!$A$18)","v":11.748974863149767}]
[{"$f":"VLOOKUP(\"Ontario\",Translation!$A$1:$C$354, Translation!A1+1, 0)","v":"Ontario"},{"$f":"SUMIFS(Data!E:E,Data!B:B,'5'!B$19,Data!C:C,'5'!$A$19,Data!D:D,'5'!A25,Data!F:F,'5'!$A$18)","v":55.638669690287486},{"$f":"SUMIFS(Data!E:E,Data!B:B,'5'!C$19,Data!C:C,'5'!$A$19,Data!D:D,'5'!A25,Data!F:F,'5'!$A$18)","v":45.131434886288979},{"$f":"SUMIFS(Data!E:E,Data!B:B,'5'!D$19,Data!C:C,'5'!$A$19,Data!D:D,'5'!A25,Data!F:F,'5'!$A$18)","v":55.99365564214424},{"$f":"SUMIFS(Data!E:E,Data!B:B,'5'!E$19,Data!C:C,'5'!$A$19,Data!D:D,'5'!A25,Data!F:F,'5'!$A$18)","v":51.537443772868158},{"$f":"SUMIFS(Data!E:E,Data!B:B,'5'!F$19,Data!C:C,'5'!$A$19,Data!D:D,'5'!A25,Data!F:F,'5'!$A$18)","v":58.168703924163992},{"$f":"SUMIFS(Data!E:E,Data!B:B,'5'!G$19,Data!C:C,'5'!$A$19,Data!D:D,'5'!A25,Data!F:F,'5'!$A$18)","v":47.281768817354063},{"$f":"SUMIFS(Data!E:E,Data!B:B,'5'!H$19,Data!C:C,'5'!$A$19,Data!D:D,'5'!A25,Data!F:F,'5'!$A$18)","v":52.556014248738947},{"$f":"SUMIFS(Data!E:E,Data!B:B,'5'!I$19,Data!C:C,'5'!$A$19,Data!D:D,'5'!A25,Data!F:F,'5'!$A$18)","v":65.062437501769452},{"$f":"SUMIFS(Data!E:E,Data!B:B,'5'!J$19,Data!C:C,'5'!$A$19,Data!D:D,'5'!A25,Data!F:F,'5'!$A$18)","v":55.638669690287486},{"$f":"SUMIFS(Data!E:E,Data!B:B,'5'!K$19,Data!C:C,'5'!$A$19,Data!D:D,'5'!A25,Data!F:F,'5'!$A$18)","v":58.168703924163992}]
[{"$f":"VLOOKUP(\"Manitoba\",Translation!$A$1:$C$354, Translation!A1+1, 0)","v":"Manitoba"},{"$f":"SUMIFS(Data!E:E,Data!B:B,'5'!B$19,Data!C:C,'5'!$A$19,Data!D:D,'5'!A26,Data!F:F,'5'!$A$18)","v":0.9864641736624179},{"$f":"SUMIFS(Data!E:E,Data!B:B,'5'!C$19,Data!C:C,'5'!$A$19,Data!D:D,'5'!A26,Data!F:F,'5'!$A$18)","v":1.4838414209937529},{"$f":"SUMIFS(Data!E:E,Data!B:B,'5'!D$19,Data!C:C,'5'!$A$19,Data!D:D,'5'!A26,Data!F:F,'5'!$A$18)","v":1.7464992224836988},{"$f":"SUMIFS(Data!E:E,Data!B:B,'5'!E$19,Data!C:C,'5'!$A$19,Data!D:D,'5'!A26,Data!F:F,'5'!$A$18)","v":1.1234179623023774},{"$f":"SUMIFS(Data!E:E,Data!B:B,'5'!F$19,Data!C:C,'5'!$A$19,Data!D:D,'5'!A26,Data!F:F,'5'!$A$18)","v":0.90895517816715332},{"$f":"SUMIFS(Data!E:E,Data!B:B,'5'!G$19,Data!C:C,'5'!$A$19,Data!D:D,'5'!A26,Data!F:F,'5'!$A$18)","v":1.0639961758990601},{"$f":"SUMIFS(Data!E:E,Data!B:B,'5'!H$19,Data!C:C,'5'!$A$19,Data!D:D,'5'!A26,Data!F:F,'5'!$A$18)","v":1.0115777306600868},{"$f":"SUMIFS(Data!E:E,Data!B:B,'5'!I$19,Data!C:C,'5'!$A$19,Data!D:D,'5'!A26,Data!F:F,'5'!$A$18)","v":1.0607953570827819},{"$f":"SUMIFS(Data!E:E,Data!B:B,'5'!J$19,Data!C:C,'5'!$A$19,Data!D:D,'5'!A26,Data!F:F,'5'!$A$18)","v":0.9864641736624179},{"$f":"SUMIFS(Data!E:E,Data!B:B,'5'!K$19,Data!C:C,'5'!$A$19,Data!D:D,'5'!A26,Data!F:F,'5'!$A$18)","v":0.90895517816715332}]
[{"$f":"VLOOKUP(\"Saskatchewan\",Translation!$A$1:$C$354, Translation!A1+1, 0)","v":"Saskatchewan"},{"$f":"SUMIFS(Data!E:E,Data!B:B,'5'!B$19,Data!C:C,'5'!$A$19,Data!D:D,'5'!A27,Data!F:F,'5'!$A$18)","v":1.764736463109241},{"$f":"SUMIFS(Data!E:E,Data!B:B,'5'!C$19,Data!C:C,'5'!$A$19,Data!D:D,'5'!A27,Data!F:F,'5'!$A$18)","v":3.362086039112016},{"$f":"SUMIFS(Data!E:E,Data!B:B,'5'!D$19,Data!C:C,'5'!$A$19,Data!D:D,'5'!A27,Data!F:F,'5'!$A$18)","v":2.9945795398353319},{"$f":"SUMIFS(Data!E:E,Data!B:B,'5'!E$19,Data!C:C,'5'!$A$19,Data!D:D,'5'!A27,Data!F:F,'5'!$A$18)","v":2.1315821155066312},{"$f":"SUMIFS(Data!E:E,Data!B:B,'5'!F$19,Data!C:C,'5'!$A$19,Data!D:D,'5'!A27,Data!F:F,'5'!$A$18)","v":3.996024903446151},{"$f":"SUMIFS(Data!E:E,Data!B:B,'5'!G$19,Data!C:C,'5'!$A$19,Data!D:D,'5'!A27,Data!F:F,'5'!$A$18)","v":3.744848307792715},{"$f":"SUMIFS(Data!E:E,Data!B:B,'5'!H$19,Data!C:C,'5'!$A$19,Data!D:D,'5'!A27,Data!F:F,'5'!$A$18)","v":2.0768712340237725},{"$f":"SUMIFS(Data!E:E,Data!B:B,'5'!I$19,Data!C:C,'5'!$A$19,Data!D:D,'5'!A27,Data!F:F,'5'!$A$18)","v":1.7285598820017396},{"$f":"SUMIFS(Data!E:E,Data!B:B,'5'!J$19,Data!C:C,'5'!$A$19,Data!D:D,'5'!A27,Data!F:F,'5'!$A$18)","v":1.764736463109241},{"$f":"SUMIFS(Data!E:E,Data!B:B,'5'!K$19,Data!C:C,'5'!$A$19,Data!D:D,'5'!A27,Data!F:F,'5'!$A$18)","v":3.996024903446151}]
[{"$f":"VLOOKUP(\"Alberta\",Translation!$A$1:$C$354, Translation!A1+1, 0)","v":"Alberta"},{"$f":"SUMIFS(Data!E:E,Data!B:B,'5'!B$19,Data!C:C,'5'!$A$19,Data!D:D,'5'!A28,Data!F:F,'5'!$A$18)","v":10.845910662110732},{"$f":"SUMIFS(Data!E:E,Data!B:B,'5'!C$19,Data!C:C,'5'!$A$19,Data!D:D,'5'!A28,Data!F:F,'5'!$A$18)","v":12.552047530122602},{"$f":"SUMIFS(Data!E:E,Data!B:B,'5'!D$19,Data!C:C,'5'!$A$19,Data!D:D,'5'!A28,Data!F:F,'5'!$A$18)","v":10.744870277558922},{"$f":"SUMIFS(Data!E:E,Data!B:B,'5'!E$19,Data!C:C,'5'!$A$19,Data!D:D,'5'!A28,Data!F:F,'5'!$A$18)","v":12.143263465288562},{"$f":"SUMIFS(Data!E:E,Data!B:B,'5'!F$19,Data!C:C,'5'!$A$19,Data!D:D,'5'!A28,Data!F:F,'5'!$A$18)","v":11.119718616186644},{"$f":"SUMIFS(Data!E:E,Data!B:B,'5'!G$19,Data!C:C,'5'!$A$19,Data!D:D,'5'!A28,Data!F:F,'5'!$A$18)","v":13.740079658331778},{"$f":"SUMIFS(Data!E:E,Data!B:B,'5'!H$19,Data!C:C,'5'!$A$19,Data!D:D,'5'!A28,Data!F:F,'5'!$A$18)","v":10.154191539716576},{"$f":"SUMIFS(Data!E:E,Data!B:B,'5'!I$19,Data!C:C,'5'!$A$19,Data!D:D,'5'!A28,Data!F:F,'5'!$A$18)","v":10.23136847203553},{"$f":"SUMIFS(Data!E:E,Data!B:B,'5'!J$19,Data!C:C,'5'!$A$19,Data!D:D,'5'!A28,Data!F:F,'5'!$A$18)","v":10.845910662110732},{"$f":"SUMIFS(Data!E:E,Data!B:B,'5'!K$19,Data!C:C,'5'!$A$19,Data!D:D,'5'!A28,Data!F:F,'5'!$A$18)","v":11.119718616186644}]
[{"$f":"VLOOKUP(\"British Columbia\",Translation!$A$1:$C$354, Translation!A1+1, 0)","v":"Colombie-Britannique"},{"$f":"SUMIFS(Data!E:E,Data!B:B,'5'!B$19,Data!C:C,'5'!$A$19,Data!D:D,'5'!A29,Data!F:F,'5'!$A$18)","v":24.430376428494871},{"$f":"SUMIFS(Data!E:E,Data!B:B,'5'!C$19,Data!C:C,'5'!$A$19,Data!D:D,'5'!A29,Data!F:F,'5'!$A$18)","v":15.1501533807873},{"$f":"SUMIFS(Data!E:E,Data!B:B,'5'!D$19,Data!C:C,'5'!$A$19,Data!D:D,'5'!A29,Data!F:F,'5'!$A$18)","v":23.844599719067674},{"$f":"SUMIFS(Data!E:E,Data!B:B,'5'!E$19,Data!C:C,'5'!$A$19,Data!D:D,'5'!A29,Data!F:F,'5'!$A$18)","v":17.258977447196667},{"$f":"SUMIFS(Data!E:E,Data!B:B,'5'!F$19,Data!C:C,'5'!$A$19,Data!D:D,'5'!A29,Data!F:F,'5'!$A$18)","v":12.17408406135668},{"$f":"SUMIFS(Data!E:E,Data!B:B,'5'!G$19,Data!C:C,'5'!$A$19,Data!D:D,'5'!A29,Data!F:F,'5'!$A$18)","v":27.940180614745501},{"$f":"SUMIFS(Data!E:E,Data!B:B,'5'!H$19,Data!C:C,'5'!$A$19,Data!D:D,'5'!A29,Data!F:F,'5'!$A$18)","v":24.894026579179094},{"$f":"SUMIFS(Data!E:E,Data!B:B,'5'!I$19,Data!C:C,'5'!$A$19,Data!D:D,'5'!A29,Data!F:F,'5'!$A$18)","v":15.216808796271337},{"$f":"SUMIFS(Data!E:E,Data!B:B,'5'!J$19,Data!C:C,'5'!$A$19,Data!D:D,'5'!A29,Data!F:F,'5'!$A$18)","v":24.430376428494871},{"$f":"SUMIFS(Data!E:E,Data!B:B,'5'!K$19,Data!C:C,'5'!$A$19,Data!D:D,'5'!A29,Data!F:F,'5'!$A$18)","v":12.17408406135668}]
[{"$f":"VLOOKUP(\"Territories\",Translation!$A$1:$C$354, Translation!A1+1, 0)","v":"Territoires"},{"$f":"SUMIFS(Data!E:E,Data!B:B,'5'!B$19,Data!C:C,'5'!$A$19,Data!D:D,'5'!A30,Data!F:F,'5'!$A$18)","v":0},{"$f":"SUMIFS(Data!E:E,Data!B:B,'5'!C$19,Data!C:C,'5'!$A$19,Data!D:D,'5'!A30,Data!F:F,'5'!$A$18)","v":0.68111312496887699},{"$f":"SUMIFS(Data!E:E,Data!B:B,'5'!D$19,Data!C:C,'5'!$A$19,Data!D:D,'5'!A30,Data!F:F,'5'!$A$18)","v":0},{"$f":"SUMIFS(Data!E:E,Data!B:B,'5'!E$19,Data!C:C,'5'!$A$19,Data!D:D,'5'!A30,Data!F:F,'5'!$A$18)","v":0},{"$f":"SUMIFS(Data!E:E,Data!B:B,'5'!F$19,Data!C:C,'5'!$A$19,Data!D:D,'5'!A30,Data!F:F,'5'!$A$18)","v":2.2429490856022128E-2},{"$f":"SUMIFS(Data!E:E,Data!B:B,'5'!G$19,Data!C:C,'5'!$A$19,Data!D:D,'5'!A30,Data!F:F,'5'!$A$18)","v":0},{"$f":"SUMIFS(Data!E:E,Data!B:B,'5'!H$19,Data!C:C,'5'!$A$19,Data!D:D,'5'!A30,Data!F:F,'5'!$A$18)","v":0},{"$f":"SUMIFS(Data!E:E,Data!B:B,'5'!I$19,Data!C:C,'5'!$A$19,Data!D:D,'5'!A30,Data!F:F,'5'!$A$18)","v":0},{"$f":"SUMIFS(Data!E:E,Data!B:B,'5'!J$19,Data!C:C,'5'!$A$19,Data!D:D,'5'!A30,Data!F:F,'5'!$A$18)","v":0},{"$f":"SUMIFS(Data!E:E,Data!B:B,'5'!K$19,Data!C:C,'5'!$A$19,Data!D:D,'5'!A30,Data!F:F,'5'!$A$18)","v":2.2429490856022128E-2}]
[{"$f":"VLOOKUP(\"Portfolio distributions do not include substitutions volumes for Portfolio insurance.\",Translation!$A$1:$C$354, Translation!A1+1, 0)","v":"La répartition des prêts hypothécaires pour l'assurance de portefeuille ne comprend pas les prêts de remplacement. "}]
[{"$f":"VLOOKUP(\"Distribution based on loan amounts, not number of loans.\",Translation!$A$1:$C$354, Translation!A1+1, 0)","v":"La répartition est établie d'après le montant, plutôt que le nombre de prêts assurés."}]
[{"$f":"VLOOKUP(\"The sum of all breakdown categories may not add up to 100 due to rounding.\",Translation!$A$1:$C$354, Translation!A1+1, 0)","v":"Les chiffres ayant été arrondis, il se peut que la somme de l'ensemble des catégories n'égale pas 100 %."}]
[]
[{"$f":"VLOOKUP(\"Loans insured during period by province (%)\",Translation!$A$1:$C$354, Translation!A1+1, 0)","v":"Prêts hypothécaires assurés au cours de la période selon la province (%)"}]
[{"$f":"VLOOKUP(\"MULTI-UNIT RESIDENTIAL\",Translation!$A$1:$C$354, Translation!A1+1, 0)","v":"IMMEUBLES COLLECTIFS RÉSIDENTIELS"},{"$f":"VLOOKUP(\"Q1 2020\",Translation!$A$1:$C$354, Translation!$A$1+1, 0)","v":"T1 2020"},{"$f":"VLOOKUP(\"Q4 2019\",Translation!$A$1:$C$354, Translation!$A$1+1, 0)","v":"T4 2019"},{"$f":"VLOOKUP(\"Q3 2019\",Translation!$A$1:$C$354, Translation!$A$1+1, 0)","v":"T3 2019"},{"$f":"VLOOKUP(\"Q2 2019\",Translation!$A$1:$C$354, Translation!$A$1+1, 0)","v":"T2 2019"},{"$f":"VLOOKUP(\"Q1 2019\",Translation!$A$1:$C$354, Translation!$A$1+1, 0)","v":"T1 2019"},{"$f":"VLOOKUP(\"Q4 2018\",Translation!$A$1:$C$354, Translation!$A$1+1, 0)","v":"T4 2018"},{"$f":"VLOOKUP(\"Q3 2018\",Translation!$A$1:$C$354, Translation!$A$1+1, 0)","v":"T3 2018"},{"$f":"VLOOKUP(\"Q2 2018\",Translation!$A$1:$C$354, Translation!$A$1+1, 0)","v":"T2 2018"},{"$f":"VLOOKUP(\"YTD 2020\",Translation!$A$1:$C$354, Translation!$A$1+1, 0)","v":"Cumul 2020"},{"$f":"VLOOKUP(\"YTD 2019\",Translation!$A$1:$C$354, Translation!$A$1+1, 0)","v":"Cumul 2019"}]
[{"$f":"VLOOKUP(\"Newfoundland and Labrador\",Translation!$A$1:$C$354, Translation!A1+1, 0)","v":"Terre-Neuve-et-Labrador"},{"$f":"SUMIFS(Data!E:E,Data!B:B,'5'!B$36,Data!C:C,'5'!$A$36,Data!D:D,'5'!A37,Data!F:F,'5'!$A$35)","v":0.23500300100420457},{"$f":"SUMIFS(Data!E:E,Data!B:B,'5'!C$36,Data!C:C,'5'!$A$36,Data!D:D,'5'!A37,Data!F:F,'5'!$A$35)","v":1.4131959539533402E-2},{"$f":"SUMIFS(Data!E:E,Data!B:B,'5'!D$36,Data!C:C,'5'!$A$36,Data!D:D,'5'!A37,Data!F:F,'5'!$A$35)","v":0},{"$f":"SUMIFS(Data!E:E,Data!B:B,'5'!E$36,Data!C:C,'5'!$A$36,Data!D:D,'5'!A37,Data!F:F,'5'!$A$35)","v":0.15905441377273499},{"$f":"SUMIFS(Data!E:E,Data!B:B,'5'!F$36,Data!C:C,'5'!$A$36,Data!D:D,'5'!A37,Data!F:F,'5'!$A$35)","v":0},{"$f":"SUMIFS(Data!E:E,Data!B:B,'5'!G$36,Data!C:C,'5'!$A$36,Data!D:D,'5'!A37,Data!F:F,'5'!$A$35)","v":5.6846569722433904E-2},{"$f":"SUMIFS(Data!E:E,Data!B:B,'5'!H$36,Data!C:C,'5'!$A$36,Data!D:D,'5'!A37,Data!F:F,'5'!$A$35)","v":0.97552390996223615},{"$f":"SUMIFS(Data!$E:$E,Data!$B:$B,'5'!I$36,Data!$C:$C,'5'!$A$36,Data!$D:$D,'5'!$A37,Data!$F:$F,'5'!$A$35)","v":0},{"$f":"SUMIFS(Data!E:E,Data!B:B,'5'!J$36,Data!C:C,'5'!$A$36,Data!D:D,'5'!A37,Data!F:F,'5'!$A$35)","v":0.23500300100420457},{"$f":"SUMIFS(Data!E:E,Data!B:B,'5'!K$36,Data!C:C,'5'!$A$36,Data!D:D,'5'!A37,Data!F:F,'5'!$A$35)","v":0}]
[{"$f":"VLOOKUP(\"Prince Edward Island\",Translation!$A$1:$C$354, Translation!A1+1, 0)","v":"Île-du-Prince-Édouard"},{"$f":"SUMIFS(Data!E:E,Data!B:B,'5'!B$36,Data!C:C,'5'!$A$36,Data!D:D,'5'!A38,Data!F:F,'5'!$A$35)","v":3.8149580881644302E-2},{"$f":"SUMIFS(Data!E:E,Data!B:B,'5'!C$36,Data!C:C,'5'!$A$36,Data!D:D,'5'!A38,Data!F:F,'5'!$A$35)","v":0.66677589646041113},{"$f":"SUMIFS(Data!E:E,Data!B:B,'5'!D$36,Data!C:C,'5'!$A$36,Data!D:D,'5'!A38,Data!F:F,'5'!$A$35)","v":5.611439365733361E-2},{"$f":"SUMIFS(Data!E:E,Data!B:B,'5'!E$36,Data!C:C,'5'!$A$36,Data!D:D,'5'!A38,Data!F:F,'5'!$A$35)","v":6.1109011326035481E-2},{"$f":"SUMIFS(Data!E:E,Data!B:B,'5'!F$36,Data!C:C,'5'!$A$36,Data!D:D,'5'!A38,Data!F:F,'5'!$A$35)","v":0.21198172038380783},{"$f":"SUMIFS(Data!E:E,Data!B:B,'5'!G$36,Data!C:C,'5'!$A$36,Data!D:D,'5'!A38,Data!F:F,'5'!$A$35)","v":6.8144469428516388E-2},{"$f":"SUMIFS(Data!E:E,Data!B:B,'5'!H$36,Data!C:C,'5'!$A$36,Data!D:D,'5'!A38,Data!F:F,'5'!$A$35)","v":0.33765391332454886},{"$f":"SUMIFS(Data!E:E,Data!B:B,'5'!I$36,Data!C:C,'5'!$A$36,Data!D:D,'5'!A38,Data!F:F,'5'!$A$35)","v":0.14000958736988844},{"$f":"SUMIFS(Data!E:E,Data!B:B,'5'!J$36,Data!C:C,'5'!$A$36,Data!D:D,'5'!A38,Data!F:F,'5'!$A$35)","v":3.8149580881644302E-2},{"$f":"SUMIFS(Data!E:E,Data!B:B,'5'!K$36,Data!C:C,'5'!$A$36,Data!D:D,'5'!A38,Data!F:F,'5'!$A$35)","v":0.21198172038380783}]
[{"$f":"VLOOKUP(\"Nova Scotia\",Translation!$A$1:$C$354, Translation!A1+1, 0)","v":"Nouvelle-Écosse"},{"$f":"SUMIFS(Data!E:E,Data!B:B,'5'!B$36,Data!C:C,'5'!$A$36,Data!D:D,'5'!A39,Data!F:F,'5'!$A$35)","v":2.5183302483292902},{"$f":"SUMIFS(Data!E:E,Data!B:B,'5'!C$36,Data!C:C,'5'!$A$36,Data!D:D,'5'!A39,Data!F:F,'5'!$A$35)","v":4.4632193784045446},{"$f":"SUMIFS(Data!E:E,Data!B:B,'5'!D$36,Data!C:C,'5'!$A$36,Data!D:D,'5'!A39,Data!F:F,'5'!$A$35)","v":3.6683761363246594},{"$f":"SUMIFS(Data!E:E,Data!B:B,'5'!E$36,Data!C:C,'5'!$A$36,Data!D:D,'5'!A39,Data!F:F,'5'!$A$35)","v":5.9640325127221292},{"$f":"SUMIFS(Data!E:E,Data!B:B,'5'!F$36,Data!C:C,'5'!$A$36,Data!D:D,'5'!A39,Data!F:F,'5'!$A$35)","v":2.9690062596620845},{"$f":"SUMIFS(Data!E:E,Data!B:B,'5'!G$36,Data!C:C,'5'!$A$36,Data!D:D,'5'!A39,Data!F:F,'5'!$A$35)","v":5.7394988177067043},{"$f":"SUMIFS(Data!E:E,Data!B:B,'5'!H$36,Data!C:C,'5'!$A$36,Data!D:D,'5'!A39,Data!F:F,'5'!$A$35)","v":6.2283854654653696},{"$f":"SUMIFS(Data!E:E,Data!B:B,'5'!I$36,Data!C:C,'5'!$A$36,Data!D:D,'5'!A39,Data!F:F,'5'!$A$35)","v":11.026525151509894},{"$f":"SUMIFS(Data!E:E,Data!B:B,'5'!J$36,Data!C:C,'5'!$A$36,Data!D:D,'5'!A39,Data!F:F,'5'!$A$35)","v":2.5183302483292902},{"$f":"SUMIFS(Data!E:E,Data!B:B,'5'!K$36,Data!C:C,'5'!$A$36,Data!D:D,'5'!A39,Data!F:F,'5'!$A$35)","v":2.9690062596620845}]
[{"$f":"VLOOKUP(\"New Brunswick\",Translation!$A$1:$C$354, Translation!A1+1, 0)","v":"Nouveau-Brunswick"},{"$f":"SUMIFS(Data!E:E,Data!B:B,'5'!B$36,Data!C:C,'5'!$A$36,Data!D:D,'5'!A40,Data!F:F,'5'!$A$35)","v":1.4113700875221269},{"$f":"SUMIFS(Data!E:E,Data!B:B,'5'!C$36,Data!C:C,'5'!$A$36,Data!D:D,'5'!A40,Data!F:F,'5'!$A$35)","v":0.54445286364996714},{"$f":"SUMIFS(Data!E:E,Data!B:B,'5'!D$36,Data!C:C,'5'!$A$36,Data!D:D,'5'!A40,Data!F:F,'5'!$A$35)","v":0.82793886457671106},{"$f":"SUMIFS(Data!E:E,Data!B:B,'5'!E$36,Data!C:C,'5'!$A$36,Data!D:D,'5'!A40,Data!F:F,'5'!$A$35)","v":1.5190802950883397},{"$f":"SUMIFS(Data!E:E,Data!B:B,'5'!F$36,Data!C:C,'5'!$A$36,Data!D:D,'5'!A40,Data!F:F,'5'!$A$35)","v":0.5427603082947059},{"$f":"SUMIFS(Data!E:E,Data!B:B,'5'!G$36,Data!C:C,'5'!$A$36,Data!D:D,'5'!A40,Data!F:F,'5'!$A$35)","v":0.53170459104126599},{"$f":"SUMIFS(Data!E:E,Data!B:B,'5'!H$36,Data!C:C,'5'!$A$36,Data!D:D,'5'!A40,Data!F:F,'5'!$A$35)","v":0.61953396614239398},{"$f":"SUMIFS(Data!E:E,Data!B:B,'5'!I$36,Data!C:C,'5'!$A$36,Data!D:D,'5'!A40,Data!F:F,'5'!$A$35)","v":0.5072690171178863},{"$f":"SUMIFS(Data!E:E,Data!B:B,'5'!J$36,Data!C:C,'5'!$A$36,Data!D:D,'5'!A40,Data!F:F,'5'!$A$35)","v":1.4113700875221269},{"$f":"SUMIFS(Data!E:E,Data!B:B,'5'!K$36,Data!C:C,'5'!$A$36,Data!D:D,'5'!A40,Data!F:F,'5'!$A$35)","v":0.5427603082947059}]
[{"$f":"VLOOKUP(\"Quebec\",Translation!$A$1:$C$354, Translation!A1+1, 0)","v":"Québec"},{"$f":"SUMIFS(Data!E:E,Data!B:B,'5'!B$36,Data!C:C,'5'!$A$36,Data!D:D,'5'!A41,Data!F:F,'5'!$A$35)","v":24.287243841457482},{"$f":"SUMIFS(Data!E:E,Data!B:B,'5'!C$36,Data!C:C,'5'!$A$36,Data!D:D,'5'!A41,Data!F:F,'5'!$A$35)","v":22.305050295712348},{"$f":"SUMIFS(Data!E:E,Data!B:B,'5'!D$36,Data!C:C,'5'!$A$36,Data!D:D,'5'!A41,Data!F:F,'5'!$A$35)","v":25.102224156897368},{"$f":"SUMIFS(Data!E:E,Data!B:B,'5'!E$36,Data!C:C,'5'!$A$36,Data!D:D,'5'!A41,Data!F:F,'5'!$A$35)","v":29.53217828510784},{"$f":"SUMIFS(Data!E:E,Data!B:B,'5'!F$36,Data!C:C,'5'!$A$36,Data!D:D,'5'!A41,Data!F:F,'5'!$A$35)","v":22.779046149889101},{"$f":"SUMIFS(Data!E:E,Data!B:B,'5'!G$36,Data!C:C,'5'!$A$36,Data!D:D,'5'!A41,Data!F:F,'5'!$A$35)","v":29.844863997835112},{"$f":"SUMIFS(Data!E:E,Data!B:B,'5'!H$36,Data!C:C,'5'!$A$36,Data!D:D,'5'!A41,Data!F:F,'5'!$A$35)","v":24.343909593835598},{"$f":"SUMIFS(Data!E:E,Data!B:B,'5'!I$36,Data!C:C,'5'!$A$36,Data!D:D,'5'!A41,Data!F:F,'5'!$A$35)","v":21.084770419893527},{"$f":"SUMIFS(Data!E:E,Data!B:B,'5'!J$36,Data!C:C,'5'!$A$36,Data!D:D,'5'!A41,Data!F:F,'5'!$A$35)","v":24.287243841457482},{"$f":"SUMIFS(Data!E:E,Data!B:B,'5'!K$36,Data!C:C,'5'!$A$36,Data!D:D,'5'!A41,Data!F:F,'5'!$A$35)","v":22.779046149889101}]
[{"$f":"VLOOKUP(\"Ontario\",Translation!$A$1:$C$354, Translation!A1+1, 0)","v":"Ontario"},{"$f":"SUMIFS(Data!E:E,Data!B:B,'5'!B$36,Data!C:C,'5'!$A$36,Data!D:D,'5'!A42,Data!F:F,'5'!$A$35)","v":44.557420861517343},{"$f":"SUMIFS(Data!E:E,Data!B:B,'5'!C$36,Data!C:C,'5'!$A$36,Data!D:D,'5'!A42,Data!F:F,'5'!$A$35)","v":46.111699419914245},{"$f":"SUMIFS(Data!E:E,Data!B:B,'5'!D$36,Data!C:C,'5'!$A$36,Data!D:D,'5'!A42,Data!F:F,'5'!$A$35)","v":38.117650488632073},{"$f":"SUMIFS(Data!E:E,Data!B:B,'5'!E$36,Data!C:C,'5'!$A$36,Data!D:D,'5'!A42,Data!F:F,'5'!$A$35)","v":29.06804967843922},{"$f":"SUMIFS(Data!E:E,Data!B:B,'5'!F$36,Data!C:C,'5'!$A$36,Data!D:D,'5'!A42,Data!F:F,'5'!$A$35)","v":44.910955175676605},{"$f":"SUMIFS(Data!E:E,Data!B:B,'5'!G$36,Data!C:C,'5'!$A$36,Data!D:D,'5'!A42,Data!F:F,'5'!$A$35)","v":35.13095753781294},{"$f":"SUMIFS(Data!E:E,Data!B:B,'5'!H$36,Data!C:C,'5'!$A$36,Data!D:D,'5'!A42,Data!F:F,'5'!$A$35)","v":42.371384734379909},{"$f":"SUMIFS(Data!E:E,Data!B:B,'5'!I$36,Data!C:C,'5'!$A$36,Data!D:D,'5'!A42,Data!F:F,'5'!$A$35)","v":38.400692679948001},{"$f":"SUMIFS(Data!E:E,Data!B:B,'5'!J$36,Data!C:C,'5'!$A$36,Data!D:D,'5'!A42,Data!F:F,'5'!$A$35)","v":44.557420861517343},{"$f":"SUMIFS(Data!E:E,Data!B:B,'5'!K$36,Data!C:C,'5'!$A$36,Data!D:D,'5'!A42,Data!F:F,'5'!$A$35)","v":44.910955175676605}]
[{"$f":"VLOOKUP(\"Manitoba\",Translation!$A$1:$C$354, Translation!A1+1, 0)","v":"Manitoba"},{"$f":"SUMIFS(Data!E:E,Data!B:B,'5'!B$36,Data!C:C,'5'!$A$36,Data!D:D,'5'!A43,Data!F:F,'5'!$A$35)","v":4.3762169557722359},{"$f":"SUMIFS(Data!E:E,Data!B:B,'5'!C$36,Data!C:C,'5'!$A$36,Data!D:D,'5'!A43,Data!F:F,'5'!$A$35)","v":3.7735757041834255},{"$f":"SUMIFS(Data!E:E,Data!B:B,'5'!D$36,Data!C:C,'5'!$A$36,Data!D:D,'5'!A43,Data!F:F,'5'!$A$35)","v":4.8507737650185616},{"$f":"SUMIFS(Data!E:E,Data!B:B,'5'!E$36,Data!C:C,'5'!$A$36,Data!D:D,'5'!A43,Data!F:F,'5'!$A$35)","v":3.6609517642255174},{"$f":"SUMIFS(Data!E:E,Data!B:B,'5'!F$36,Data!C:C,'5'!$A$36,Data!D:D,'5'!A43,Data!F:F,'5'!$A$35)","v":2.2517178512648464},{"$f":"SUMIFS(Data!E:E,Data!B:B,'5'!G$36,Data!C:C,'5'!$A$36,Data!D:D,'5'!A43,Data!F:F,'5'!$A$35)","v":3.198043578839441},{"$f":"SUMIFS(Data!E:E,Data!B:B,'5'!H$36,Data!C:C,'5'!$A$36,Data!D:D,'5'!A43,Data!F:F,'5'!$A$35)","v":3.8351781180266351},{"$f":"SUMIFS(Data!E:E,Data!B:B,'5'!I$36,Data!C:C,'5'!$A$36,Data!D:D,'5'!A43,Data!F:F,'5'!$A$35)","v":2.7932486048285279},{"$f":"SUMIFS(Data!E:E,Data!B:B,'5'!J$36,Data!C:C,'5'!$A$36,Data!D:D,'5'!A43,Data!F:F,'5'!$A$35)","v":4.3762169557722359},{"$f":"SUMIFS(Data!E:E,Data!B:B,'5'!K$36,Data!C:C,'5'!$A$36,Data!D:D,'5'!A43,Data!F:F,'5'!$A$35)","v":2.2517178512648464}]
[{"$f":"VLOOKUP(\"Saskatchewan\",Translation!$A$1:$C$354, Translation!A1+1, 0)","v":"Saskatchewan"},{"$f":"SUMIFS(Data!E:E,Data!B:B,'5'!B$36,Data!C:C,'5'!$A$36,Data!D:D,'5'!A44,Data!F:F,'5'!$A$35)","v":2.2112590765723064},{"$f":"SUMIFS(Data!E:E,Data!B:B,'5'!C$36,Data!C:C,'5'!$A$36,Data!D:D,'5'!A44,Data!F:F,'5'!$A$35)","v":2.539431294168299},{"$f":"SUMIFS(Data!E:E,Data!B:B,'5'!D$36,Data!C:C,'5'!$A$36,Data!D:D,'5'!A44,Data!F:F,'5'!$A$35)","v":0.20627971340200524},{"$f":"SUMIFS(Data!E:E,Data!B:B,'5'!E$36,Data!C:C,'5'!$A$36,Data!D:D,'5'!A44,Data!F:F,'5'!$A$35)","v":1.4290804249348084},{"$f":"SUMIFS(Data!E:E,Data!B:B,'5'!F$36,Data!C:C,'5'!$A$36,Data!D:D,'5'!A44,Data!F:F,'5'!$A$35)","v":1.1671419770884304},{"$f":"SUMIFS(Data!E:E,Data!B:B,'5'!G$36,Data!C:C,'5'!$A$36,Data!D:D,'5'!A44,Data!F:F,'5'!$A$35)","v":1.2910364627698003},{"$f":"SUMIFS(Data!E:E,Data!B:B,'5'!H$36,Data!C:C,'5'!$A$36,Data!D:D,'5'!A44,Data!F:F,'5'!$A$35)","v":0.47648472817601006},{"$f":"SUMIFS(Data!E:E,Data!B:B,'5'!I$36,Data!C:C,'5'!$A$36,Data!D:D,'5'!A44,Data!F:F,'5'!$A$35)","v":3.148576981907961},{"$f":"SUMIFS(Data!E:E,Data!B:B,'5'!J$36,Data!C:C,'5'!$A$36,Data!D:D,'5'!A44,Data!F:F,'5'!$A$35)","v":2.2112590765723064},{"$f":"SUMIFS(Data!E:E,Data!B:B,'5'!K$36,Data!C:C,'5'!$A$36,Data!D:D,'5'!A44,Data!F:F,'5'!$A$35)","v":1.1671419770884304}]
[{"$f":"VLOOKUP(\"Alberta\",Translation!$A$1:$C$354, Translation!A1+1, 0)","v":"Alberta"},{"$f":"SUMIFS(Data!E:E,Data!B:B,'5'!B$36,Data!C:C,'5'!$A$36,Data!D:D,'5'!A45,Data!F:F,'5'!$A$35)","v":8.8059190758830255},{"$f":"SUMIFS(Data!E:E,Data!B:B,'5'!C$36,Data!C:C,'5'!$A$36,Data!D:D,'5'!A45,Data!F:F,'5'!$A$35)","v":8.5906411181552542},{"$f":"SUMIFS(Data!E:E,Data!B:B,'5'!D$36,Data!C:C,'5'!$A$36,Data!D:D,'5'!A45,Data!F:F,'5'!$A$35)","v":4.7016128503853043},{"$f":"SUMIFS(Data!E:E,Data!B:B,'5'!E$36,Data!C:C,'5'!$A$36,Data!D:D,'5'!A45,Data!F:F,'5'!$A$35)","v":6.9780744360770797},{"$f":"SUMIFS(Data!E:E,Data!B:B,'5'!F$36,Data!C:C,'5'!$A$36,Data!D:D,'5'!A45,Data!F:F,'5'!$A$35)","v":7.9355001723051393},{"$f":"SUMIFS(Data!E:E,Data!B:B,'5'!G$36,Data!C:C,'5'!$A$36,Data!D:D,'5'!A45,Data!F:F,'5'!$A$35)","v":7.9984422712833183},{"$f":"SUMIFS(Data!E:E,Data!B:B,'5'!H$36,Data!C:C,'5'!$A$36,Data!D:D,'5'!A45,Data!F:F,'5'!$A$35)","v":5.1054297466819616},{"$f":"SUMIFS(Data!E:E,Data!B:B,'5'!I$36,Data!C:C,'5'!$A$36,Data!D:D,'5'!A45,Data!F:F,'5'!$A$35)","v":4.0763349251420644},{"$f":"SUMIFS(Data!E:E,Data!B:B,'5'!J$36,Data!C:C,'5'!$A$36,Data!D:D,'5'!A45,Data!F:F,'5'!$A$35)","v":8.8059190758830255},{"$f":"SUMIFS(Data!E:E,Data!B:B,'5'!K$36,Data!C:C,'5'!$A$36,Data!D:D,'5'!A45,Data!F:F,'5'!$A$35)","v":7.9355001723051393}]
[{"$f":"VLOOKUP(\"British Columbia\",Translation!$A$1:$C$354, Translation!A1+1, 0)","v":"Colombie-Britannique"},{"$f":"SUMIFS(Data!E:E,Data!B:B,'5'!B$36,Data!C:C,'5'!$A$36,Data!D:D,'5'!A46,Data!F:F,'5'!$A$35)","v":11.55908727106033},{"$f":"SUMIFS(Data!E:E,Data!B:B,'5'!C$36,Data!C:C,'5'!$A$36,Data!D:D,'5'!A46,Data!F:F,'5'!$A$35)","v":10.804034893710552},{"$f":"SUMIFS(Data!E:E,Data!B:B,'5'!D$36,Data!C:C,'5'!$A$36,Data!D:D,'5'!A46,Data!F:F,'5'!$A$35)","v":21.852703372556043},{"$f":"SUMIFS(Data!E:E,Data!B:B,'5'!E$36,Data!C:C,'5'!$A$36,Data!D:D,'5'!A46,Data!F:F,'5'!$A$35)","v":21.283469776546998},{"$f":"SUMIFS(Data!E:E,Data!B:B,'5'!F$36,Data!C:C,'5'!$A$36,Data!D:D,'5'!A46,Data!F:F,'5'!$A$35)","v":16.866064959357303},{"$f":"SUMIFS(Data!E:E,Data!B:B,'5'!G$36,Data!C:C,'5'!$A$36,Data!D:D,'5'!A46,Data!F:F,'5'!$A$35)","v":15.84217814008535},{"$f":"SUMIFS(Data!E:E,Data!B:B,'5'!H$36,Data!C:C,'5'!$A$36,Data!D:D,'5'!A46,Data!F:F,'5'!$A$35)","v":15.47855138804143},{"$f":"SUMIFS(Data!E:E,Data!B:B,'5'!I$36,Data!C:C,'5'!$A$36,Data!D:D,'5'!A46,Data!F:F,'5'!$A$35)","v":18.822572632282213},{"$f":"SUMIFS(Data!E:E,Data!B:B,'5'!J$36,Data!C:C,'5'!$A$36,Data!D:D,'5'!A46,Data!F:F,'5'!$A$35)","v":11.55908727106033},{"$f":"SUMIFS(Data!E:E,Data!B:B,'5'!K$36,Data!C:C,'5'!$A$36,Data!D:D,'5'!A46,Data!F:F,'5'!$A$35)","v":16.866064959357303}]
[{"$f":"VLOOKUP(\"Territories\",Translation!$A$1:$C$354, Translation!A1+1, 0)","v":"Territoires"},{"$f":"SUMIFS(Data!E:E,Data!B:B,'5'!B$36,Data!C:C,'5'!$A$36,Data!D:D,'5'!A47,Data!F:F,'5'!$A$35)","v":0},{"$f":"SUMIFS(Data!E:E,Data!B:B,'5'!C$36,Data!C:C,'5'!$A$36,Data!D:D,'5'!A47,Data!F:F,'5'!$A$35)","v":0.18698717610141877},{"$f":"SUMIFS(Data!E:E,Data!B:B,'5'!D$36,Data!C:C,'5'!$A$36,Data!D:D,'5'!A47,Data!F:F,'5'!$A$35)","v":0.61632625854993917},{"$f":"SUMIFS(Data!E:E,Data!B:B,'5'!E$36,Data!C:C,'5'!$A$36,Data!D:D,'5'!A47,Data!F:F,'5'!$A$35)","v":0.34491940175930358},{"$f":"SUMIFS(Data!E:E,Data!B:B,'5'!F$36,Data!C:C,'5'!$A$36,Data!D:D,'5'!A47,Data!F:F,'5'!$A$35)","v":0.36582542607797569},{"$f":"SUMIFS(Data!E:E,Data!B:B,'5'!G$36,Data!C:C,'5'!$A$36,Data!D:D,'5'!A47,Data!F:F,'5'!$A$35)","v":0.29828356347514057},{"$f":"SUMIFS(Data!E:E,Data!B:B,'5'!H$36,Data!C:C,'5'!$A$36,Data!D:D,'5'!A47,Data!F:F,'5'!$A$35)","v":0.22796443596389024},{"$f":"SUMIFS(Data!E:E,Data!B:B,'5'!I$36,Data!C:C,'5'!$A$36,Data!D:D,'5'!A47,Data!F:F,'5'!$A$35)","v":0},{"$f":"SUMIFS(Data!E:E,Data!B:B,'5'!J$36,Data!C:C,'5'!$A$36,Data!D:D,'5'!A47,Data!F:F,'5'!$A$35)","v":0},{"$f":"SUMIFS(Data!E:E,Data!B:B,'5'!K$36,Data!C:C,'5'!$A$36,Data!D:D,'5'!A47,Data!F:F,'5'!$A$35)","v":0.36582542607797569}]
[{"$f":"VLOOKUP(\"Distribution based on loan amounts, not number of loans.\",Translation!$A$1:$C$354, Translation!A1+1, 0)","v":"La répartition est établie d'après le montant, plutôt que le nombre de prêts assurés."}]
[{"$f":"VLOOKUP(\"The sum of all breakdown categories may not add up to 100 due to rounding.\",Translation!$A$1:$C$354, Translation!A1+1, 0)","v":"Les chiffres ayant été arrondis, il se peut que la somme de l'ensemble des catégories n'égale pas 100 %."}]

{"sheet":"6","index":7,"n_rows":53,"n_cols":10,"rows_kept":53,"cut":false,"hidden":false,"merged":[[38,2,38,9],[2,0,3,0],[19,0,20,0],[19,2,19,9],[2,1,2,9],[0,6,0,9]]}
[{"$f":"VLOOKUP(\"NATIONAL INSURED VOLUMES\",Translation!$A$1:$C$354, Translation!A1+1, 0)","v":"VOLUME DE PRÊTS ASSURÉS À L’ÉCHELLE NATIONALE"},null,null,null,null,null,{"$f":"VLOOKUP(\"Back to Table of Contents\",Translation!$A$1:$C$354, Translation!A1+1, 0)","v":"Retour à la table des matières"}]
[{"$f":"VLOOKUP(\"Insurance-in-force by province (%)\",Translation!$A$1:$C$354, Translation!A1+1, 0)","v":"Contrats d’assurance en vigueur selon la province (%)"}]
[{"$f":"VLOOKUP(\"TRANSACTIONAL HOMEOWNER\",Translation!$A$1:$C$354, Translation!A1+1, 0)","v":"PROPRIÉTAIRES-OCCUPANTS, À L’UNITÉ"},{"$f":"VLOOKUP(\"As at\",Translation!$A$1:$C$354,Translation!A1+1,0)","v":"Aux"}]
[null,"Q1 2020","Q4 2019","Q3 2019","Q2 2019",{"$f":"VLOOKUP(\"Q1 2019\",Translation!$A$1:$C$354, Translation!$A1+1, 0)","v":"T1 2019"},{"$f":"VLOOKUP(\"Q4 2018\",Translation!$A$1:$C$354, Translation!A1+1, 0)","v":"T4 2018"},{"$f":"VLOOKUP(\"Q3 2018\",Translation!$A$1:$C$354, Translation!A1+1, 0)","v":"T3 2018"},{"$f":"VLOOKUP(\"Q2 2018\",Translation!$A$1:$C$354, Translation!A1+1, 0)","v":"T2 2018"},{"$f":"VLOOKUP(\"Q4 2017\",Translation!$A$1:$C$354, Translation!A1+1, 0)","v":"T4 2017"}]
[{"$f":"VLOOKUP(\"Newfoundland and Labrador\",Translation!$A$1:$C$354, Translation!A1+1, 0)","v":"Terre-Neuve-et-Labrador"},1.590848421025292,1.6067419548550641,1.5850284726156794,1.5899196232248554,1.5940005010898994,1.5988365644858196,1.5974295293789069,1.5914376295374781,1.5870851716133196]
[{"$f":"VLOOKUP(\"Prince Edward Island\",Translation!$A$1:$C$354, Translation!A1+1, 0)","v":"Île-du-Prince-Édouard"},0.32034874849916639,0.32039077197502919,0.32404781264011107,0.32271109677847892,0.32355307951308604,0.32496190372875827,0.32381856143441828,0.32193631054382149,0.32222552682923261]
[{"$f":"VLOOKUP(\"Nova Scotia\",Translation!$A$1:$C$354, Translation!A1+1, 0)","v":"Nouvelle-Écosse"},2.5284076563283708,2.5285175890401819,2.5293016517116027,2.5058015263610502,2.5196480512981867,2.5200249117031599,2.5160285715965518,2.4972345487546637,2.4771677153963054]
[{"$f":"VLOOKUP(\"New Brunswick\",Translation!$A$1:$C$354, Translation!A1+1, 0)","v":"Nouveau-Brunswick"},2.2216152927648407,2.2254484430050376,2.2284531165739563,2.2272563500146512,2.2237596340646535,2.2192385415960469,2.2052461575052638,2.1972951511364731,2.1866819268809152]
[{"$f":"VLOOKUP(\"Quebec\",Translation!$A$1:$C$354, Translation!A1+1, 0)","v":"Québec"},23.660100909685873,23.552181983352131,23.452861846881675,23.418207702908976,22.863293234802445,22.739773460503205,22.631526094565849,22.528645377389715,22.031379510400264]
[{"$f":"VLOOKUP(\"Ontario\",Translation!$A$1:$C$354, Translation!A1+1, 0)","v":"Ontario"},28.118118269684562,28.343057111049379,28.587603741816519,28.806838396970541,29.131526204937085,29.266303595709363,29.456723504019973,29.721299822991487,30.379983982679811]
[{"$f":"VLOOKUP(\"Manitoba\",Translation!$A$1:$C$354, Translation!A1+1, 0)","v":"Manitoba"},3.8773322528399059,3.8574591386971218,3.851302504605862,3.8190640964361804,3.7897840262843396,3.796735116285078,3.7913001784819067,3.7420673603367205,3.6903319176665992]
[{"$f":"VLOOKUP(\"Saskatchewan\",Translation!$A$1:$C$354, Translation!A1+1, 0)","v":"Saskatchewan"},3.8119867234089715,3.8102486806297193,3.7970482120541922,3.7800764807538467,3.7553302346239223,3.74711785604809,3.7296892973172464,3.6868100935701018,3.6508938689019885]
[{"$f":"VLOOKUP(\"Alberta\",Translation!$A$1:$C$354, Translation!A1+1, 0)","v":"Alberta"},22.928294493718166,22.742785117047262,22.673276865158531,22.407050722129977,22.540725841090779,22.422716835265046,22.256251492256926,22.068795338040012,21.739687813453582]
[{"$f":"VLOOKUP(\"British Columbia\",Translation!$A$1:$C$354, Translation!A1+1, 0)","v":"Colombie-Britannique"},10.359689889224564,10.430315493932071,10.387588599101859,10.540517846459727,10.676113510356725,10.783840746131022,10.911685371671398,11.068443510221474,11.365514841143556]
[{"$f":"VLOOKUP(\"Territories\",Translation!$A$1:$C$354, Translation!A1+1, 0)","v":"Territoires"},0.58325734254753903,0.58285371689909959,0.58348717627912838,0.58255615859970733,0.58226568194310846,0.58045046764249641,0.58030124209003153,0.57603485750639571,0.56904772480206445]
[{"$f":"VLOOKUP(\"Distribution based on outstanding loan amounts, not number of loans.\",Translation!$A$1:$C$354, Translation!A1+1, 0)","v":"La répartition est établie d'après le solde, plutôt que le nombre de prêts assurés."}]
[{"$f":"VLOOKUP(\"The sum of all breakdown categories may not add up to 100 due to rounding.\",Translation!$A$1:$C$354, Translation!A1+1, 0)","v":"Les chiffres ayant été arrondis, il se peut que la somme de l'ensemble des catégories n'égale pas 100 %."}]
[]
[{"$f":"VLOOKUP(\"Insurance-in-force by province (%)\",Translation!$A$1:$C$354, Translation!A1+1, 0)","v":"Contrats d’assurance en vigueur selon la province (%)"}]
[{"$f":"VLOOKUP(\"PORTFOLIO\",Translation!$A$1:$C$354, Translation!A1+1, 0)","v":"ASSURANCE DE PORTEFEUILLE"},null,{"$f":"VLOOKUP(\"As at\",Translation!$A$1:$C$354,Translation!A1+1,0)","v":"Aux"}]
[null,"Q1 2020",{"$f":"C4","v":"Q4 2019"},{"$f":"D4","v":"Q3 2019"},"Q2 2019",{"$f":"VLOOKUP(\"Q1 2019\",Translation!$A$1:$C$354, Translation!$A1+1, 0)","v":"T1 2019"},{"$f":"VLOOKUP(\"Q4 2018\",Translation!$A$1:$C$354, Translation!A1+1, 0)","v":"T4 2018"},{"$f":"VLOOKUP(\"Q3 2018\",Translation!$A$1:$C$354, Translation!A1+1, 0)","v":"T3 2018"},{"$f":"VLOOKUP(\"Q2 2018\",Translation!$A$1:$C$354, Translation!A1+1, 0)","v":"T2 2018"},{"$f":"VLOOKUP(\"Q4 2017\",Translation!$A$1:$C$354, Translation!A1+1, 0)","v":"T4 2017"}]
[{"$f":"VLOOKUP(\"Newfoundland and Labrador\",Translation!$A$1:$C$354, Translation!A1+1, 0)","v":"Terre-Neuve-et-Labrador"},1.0279128541804932,1.0307198519463778,1.0236274862736174,1.0235138716165537,1.0238441023857883,1.0212647284266092,1.0240783099682047,1.0204718021605661,1.0195582391302491]
[{"$f":"VLOOKUP(\"Prince Edward Island\",Translation!$A$1:$C$354, Translation!A1+1, 0)","v":"Île-du-Prince-Édouard"},0.18041362002974534,0.1844631647003756,0.18433677216698058,0.18463670263917259,0.18446780073679619,0.18564364063554084,0.19010103555524493,0.19188601486067333,0.19176397990276792]
[{"$f":"VLOOKUP(\"Nova Scotia\",Translation!$A$1:$C$354, Translation!A1+1, 0)","v":"Nouvelle-Écosse"},1.7015954865333405,1.713632681295604,1.7059638424072772,1.713620692952273,1.7160854275055475,1.7181027713079209,1.7314405304904432,1.7333988030165719,1.6976367646972339]
[{"$f":"VLOOKUP(\"New Brunswick\",Translation!$A$1:$C$354, Translation!A1+1, 0)","v":"Nouveau-Brunswick"},0.84193898738497441,0.84713566772329352,0.8434453319916827,0.8486025051662851,0.84433123715444203,0.84456137204238202,0.85609133717231156,0.85751934749824721,0.85303750228001818]
[{"$f":"VLOOKUP(\"Quebec\",Translation!$A$1:$C$354, Translation!A1+1, 0)","v":"Québec"},12.606784872874643,12.689080218405913,12.560439918934005,12.531671182064322,12.681219515233927,12.713672633354356,12.848434455452429,12.98728153041005,13.126184675044742]
[{"$f":"VLOOKUP(\"Ontario\",Translation!$A$1:$C$354, Translation!A1+1, 0)","v":"Ontario"},46.418946397253549,46.322630838788051,46.57532269414466,46.837229383104187,46.775669556601272,46.796022498331133,46.720630312385524,46.963172791317071,47.052083244684091]
[{"$f":"VLOOKUP(\"Manitoba\",Translation!$A$1:$C$354, Translation!A1+1, 0)","v":"Manitoba"},1.6938125713319128,1.7066711157650265,1.7094031429394634,1.7247036421963242,1.740752614353638,1.7486181611637932,1.7707617878550057,1.7720596251229552,1.7577828661319281]
[{"$f":"VLOOKUP(\"Saskatchewan\",Translation!$A$1:$C$354, Translation!A1+1, 0)","v":"Saskatchewan"},2.0660879142936341,2.0683485294886248,2.0576088830845389,2.0483428897311584,2.0548088837409204,2.0478807811002144,2.0447647479435056,2.0263807857484517,2.0057096569812662]
[{"$f":"VLOOKUP(\"Alberta\",Translation!$A$1:$C$354, Translation!A1+1, 0)","v":"Alberta"},15.244950310914115,15.217269184173787,15.110156727024506,15.001595598814374,14.951162725727738,14.889474461309661,14.791663198616495,14.618906604018148,14.418676561906016]
[{"$f":"VLOOKUP(\"British Columbia\",Translation!$A$1:$C$354, Translation!A1+1, 0)","v":"Colombie-Britannique"},18.046608831466827,18.046432337352549,18.070203621484396,17.924369723994637,17.862148178439899,17.86900502923482,17.857443236879728,17.660992533971214,17.708486690960985]
[{"$f":"VLOOKUP(\"Territories\",Translation!$A$1:$C$354, Translation!A1+1, 0)","v":"Territoires"},0.17094815373591615,0.17361641035797473,0.15949157955008642,0.16171380771924199,0.16550995812192412,0.16575392309052742,0.16459104768382091,0.16793016187709328,0.16907981827642188]
[{"$f":"VLOOKUP(\"Distributions do not include substitutions volumes for Portfolio insurance.\",Translation!$A$1:$C$354, Translation!A1+1, 0)","v":"La répartition des prêts hypothécaires pour l'assurance de portefeuille ne comprend pas les prêts de remplacement. "}]
[{"$f":"VLOOKUP(\"Distribution based on outstanding loan amounts, not number of loans.\",Translation!$A$1:$C$354, Translation!A1+1, 0)","v":"La répartition est établie d'après le solde, plutôt que le nombre de prêts assurés."}]
[{"$f":"VLOOKUP(\"The sum of all breakdown categories may not add up to 100 due to rounding.\",Translation!$A$1:$C$354, Translation!A1+1, 0)","v":"Les chiffres ayant été arrondis, il se peut que la somme de l'ensemble des catégories n'égale pas 100 %."}]
[{"$f":"VLOOKUP(\"Portfolio-insured Line of Credit loans with zero ($0.00) balance were included in the number of loans in force starting from Q2 2018.\",Translation!$A$1:$C$354, Translation!A1+1, 0)","v":"Les prêts liés à une marge de crédit couverts par une assurance de portefeuille ayant un solde nul (0,00 $) sont inclus dans le nombre des prêts en cours depuis le deuxième trimestre de 2018."}]
[]
[{"$f":"VLOOKUP(\"Insurance-in-force by province (%)\",Translation!$A$1:$C$354, Translation!A1+1, 0)","v":"Contrats d’assurance en vigueur selon la province (%)"}]
[null,null,{"$f":"VLOOKUP(\"As at\",Translation!$A$1:$C$354,Translation!A1+1,0)","v":"Aux"}]
[{"$f":"VLOOKUP(\"MULTI-UNIT RESIDENTIAL\",Translation!$A$1:$C$354, Translation!A1+1, 0)","v":"IMMEUBLES COLLECTIFS RÉSIDENTIELS"},"Q1 2020",{"$f":"C4","v":"Q4 2019"},{"$f":"D4","v":"Q3 2019"},"Q2 2019",{"$f":"VLOOKUP(\"Q1 2019\",Translation!$A$1:$C$354, Translation!$A1+1, 0)","v":"T1 2019"},{"$f":"VLOOKUP(\"Q4 2018\",Translation!$A$1:$C$354, Translation!A1+1, 0)","v":"T4 2018"},{"$f":"VLOOKUP(\"Q3 2018\",Translation!$A$1:$C$354, Translation!A1+1, 0)","v":"T3 2018"},{"$f":"VLOOKUP(\"Q2 2018\",Translation!$A$1:$C$354, Translation!A1+1, 0)","v":"T2 2018"},{"$f":"VLOOKUP(\"Q4 2017\",Translation!$A$1:$C$354, Translation!A1+1, 0)","v":"T4 2017"}]
[{"$f":"VLOOKUP(\"Newfoundland and Labrador\",Translation!$A$1:$C$354, Translation!A1+1, 0)","v":"Terre-Neuve-et-Labrador"},0.33680824540212811,0.34293119625013624,0.35019743410699639,0.36704924339717798,0.36368230204306379,0.39070925299147885,0.39325581564992262,0.40170923341026388,0.40610304732217356]
[{"$f":"VLOOKUP(\"Prince Edward Island\",Translation!$A$1:$C$354, Translation!A1+1, 0)","v":"Île-du-Prince-Édouard"},0.20089450213559612,0.19838344114075346,0.18828473574439766,0.19903274497269172,0.20985365891948909,0.21394937349062662,0.21838113679374196,0.20729975792772148,0.21554170236878575]
[{"$f":"VLOOKUP(\"Nova Scotia\",Translation!$A$1:$C$354, Translation!A1+1, 0)","v":"Nouvelle-Écosse"},4.6040000856300365,4.7081356829621646,4.598083661063038,4.6903802002383461,4.6963916389765163,4.6654896134043371,4.7390899508049475,4.6686939824380822,4.2214669260811624]
[{"$f":"VLOOKUP(\"New Brunswick\",Translation!$A$1:$C$354, Translation!A1+1, 0)","v":"Nouveau-Brunswick"},0.78670037199415377,0.77241239752780344,0.78608438514349344,0.77754289153255363,0.77550226887750495,0.77371452321176337,0.82305565311856566,0.8032091313712969,0.82352202114995521]
[{"$f":"VLOOKUP(\"Quebec\",Translation!$A$1:$C$354, Translation!A1+1, 0)","v":"Québec"},28.468948268086457,28.350313094776453,28.446521965243566,28.73674584424052,28.424473904280578,29.117179886758343,28.600378163596773,29.040538713618673,28.865478887576867]
[{"$f":"VLOOKUP(\"Ontario\",Translation!$A$1:$C$354, Translation!A1+1, 0)","v":"Ontario"},36.378588567326908,36.364592380633113,36.403239373899119,36.13317422659911,36.687813885339779,35.979040609022228,36.383333082250083,35.875800192289617,36.65234448200119]
[{"$f":"VLOOKUP(\"Manitoba\",Translation!$A$1:$C$354, Translation!A1+1, 0)","v":"Manitoba"},3.3693310644351415,3.2352986466317777,3.2577826135374557,3.0300299366629693,2.9444454705058294,2.8049541710176724,2.9243732294614673,2.921139166190303,2.5718631279228314]
[{"$f":"VLOOKUP(\"Saskatchewan\",Translation!$A$1:$C$354, Translation!A1+1, 0)","v":"Saskatchewan"},1.5365386643954702,1.4941039229701607,1.4049285283997606,1.4446685918562856,1.4803766715560922,1.4530632856778036,1.4688018909729075,1.4692715879278833,1.4539656860277368]
[{"$f":"VLOOKUP(\"Alberta\",Translation!$A$1:$C$354, Translation!A1+1, 0)","v":"Alberta"},10.2159549046926,10.235518413568395,10.174642656394001,10.502731494178773,10.725358241617162,10.843034768035926,10.945513601266512,11.250649272055229,11.361958802932735]
[{"$f":"VLOOKUP(\"British Columbia\",Translation!$A$1:$C$354, Translation!A1+1, 0)","v":"Colombie-Britannique"},13.731391044755636,13.910026954769798,13.994804457246381,13.739094148746126,13.302889440460957,13.365943668847931,13.102605823636914,12.959867034131744,12.985408419857345]
[{"$f":"VLOOKUP(\"Territories\",Translation!$A$1:$C$354, Translation!A1+1, 0)","v":"Territoires"},0.37084428113836165,0.38828386878612098,0.39543018920059392,0.3795506775776652,0.38921251742329033,0.39292084754773821,0.40121165245558466,0.40182192863960975,0.44234689674758354]
[{"$f":"VLOOKUP(\"Distribution based on outstanding loan amounts, not number of loans.\",Translation!$A$1:$C$354, Translation!A1+1, 0)","v":"La répartition est établie d'après le solde, plutôt que le nombre de prêts assurés."}]
[{"$f":"VLOOKUP(\"The sum of all breakdown categories may not add up to 100 due to rounding.\",Translation!$A$1:$C$354, Translation!A1+1, 0)","v":"Les chiffres ayant été arrondis, il se peut que la somme de l'ensemble des catégories n'égale pas 100 %."}]

{"sheet":"7","index":8,"n_rows":61,"n_cols":11,"rows_kept":61,"cut":false,"hidden":false,"merged":[[0,6,0,10]]}
[{"$f":"VLOOKUP(\"TRANSACTIONAL HOMEOWNER AND PORTFOLIO - LOAN-TO-VALUE RATIO\",Translation!$A$1:$C$354, Translation!A1+1, 0)","v":"PROPRIÉTAIRES-OCCUPANTS (À L’UNITÉ) ET ASSURANCE DE PORTEFEUILLE - RAPPORT PRÊT-VALEUR"},null,null,null,null,null,{"$f":"VLOOKUP(\"Back to Table of Contents\",Translation!$A$1:$C$354, Translation!A1+1, 0)","v":"Retour à la table des matières"}]
[{"$f":"VLOOKUP(\"Loans insured in period by loan-to-value (LTV) ratio based on original property value (%)\",Translation!$A$1:$C$354, Translation!A1+1, 0)","v":"Prêts hypothécaires assurés au cours de la période selon le rapport prêt-valeur (RPV) établi d’après la valeur initiale de la propriété (%)"}]
[{"$f":"VLOOKUP(\"TRANSACTIONAL HOMEOWNER\",Translation!$A$1:$C$354, Translation!A1+1, 0)","v":"PROPRIÉTAIRES-OCCUPANTS, À L’UNITÉ"},{"$f":"VLOOKUP(\"Q1 2020\",Translation!$A$1:$C$354, Translation!$A$1+1, 0)","v":"T1 2020"},{"$f":"VLOOKUP(\"Q4 2019\",Translation!$A$1:$C$354, Translation!$A$1+1, 0)","v":"T4 2019"},{"$f":"VLOOKUP(\"Q3 2019\",Translation!$A$1:$C$354, Translation!$A$1+1, 0)","v":"T3 2019"},{"$f":"VLOOKUP(\"Q2 2019\",Translation!$A$1:$C$354, Translation!$A$1+1, 0)","v":"T2 2019"},{"$f":"VLOOKUP(\"Q1 2019\",Translation!$A$1:$C$354, Translation!$A$1+1, 0)","v":"T1 2019"},{"$f":"VLOOKUP(\"Q4 2018\",Translation!$A$1:$C$354, Translation!$A$1+1, 0)","v":"T4 2018"},{"$f":"VLOOKUP(\"Q3 2018\",Translation!$A$1:$C$354, Translation!$A$1+1, 0)","v":"T3 2018"},{"$f":"VLOOKUP(\"Q2 2018\",Translation!$A$1:$C$354, Translation!$A$1+1, 0)","v":"T2 2018"},{"$f":"VLOOKUP(\"YTD 2020\",Translation!$A$1:$C$354, Translation!$A$1+1, 0)","v":"Cumul 2020"},{"$f":"VLOOKUP(\"YTD 2019\",Translation!$A$1:$C$354, Translation!$A$1+1, 0)","v":"Cumul 2019"}]
[" <= 50 %",{"$f":"SUMIFS(Data!$E:$E,Data!$B:$B,'7'!B$3,Data!$C:$C,'7'!$A$3,Data!$H:$H,'7'!$A4,Data!$F:$F,'7'!$A$2)","v":9.3025079030117933E-2},{"$f":"SUMIFS(Data!$E:$E,Data!$B:$B,'7'!C$3,Data!$C:$C,'7'!$A$3,Data!$H:$H,'7'!$A4,Data!$F:$F,'7'!$A$2)","v":0.1002579082684265},{"$f":"SUMIFS(Data!$E:$E,Data!$B:$B,'7'!D$3,Data!$C:$C,'7'!$A$3,Data!$H:$H,'7'!$A4,Data!$F:$F,'7'!$A$2)","v":9.7184092345537598E-2},{"$f":"SUMIFS(Data!$E:$E,Data!$B:$B,'7'!E$3,Data!$C:$C,'7'!$A$3,Data!$H:$H,'7'!$A4,Data!$F:$F,'7'!$A$2)","v":8.0927605433052496E-2},{"$f":"SUMIFS(Data!$E:$E,Data!$B:$B,'7'!F$3,Data!$C:$C,'7'!$A$3,Data!$H:$H,'7'!$A4,Data!$F:$F,'7'!$A$2)","v":0.13310926627090611},{"$f":"SUMIFS(Data!$E:$E,Data!$B:$B,'7'!G$3,Data!$C:$C,'7'!$A$3,Data!$H:$H,'7'!$A4,Data!$F:$F,'7'!$A$2)","v":0.12989854025525899},{"$f":"SUMIFS(Data!$E:$E,Data!$B:$B,'7'!H$3,Data!$C:$C,'7'!$A$3,Data!$H:$H,'7'!$A4,Data!$F:$F,'7'!$A$2)","v":0.13575900839186544},{"$f":"SUMIFS(Data!$E:$E,Data!$B:$B,'7'!I$3,Data!$C:$C,'7'!$A$3,Data!$H:$H,'7'!$A4,Data!$F:$F,'7'!$A$2)","v":0.16729550615345715},{"$f":"SUMIFS(Data!$E:$E,Data!$B:$B,'7'!J$3,Data!$C:$C,'7'!$A$3,Data!$H:$H,'7'!$A4,Data!$F:$F,'7'!$A$2)","v":9.3025079030117933E-2},{"$f":"SUMIFS(Data!$E:$E,Data!$B:$B,'7'!K$3,Data!$C:$C,'7'!$A$3,Data!$H:$H,'7'!$A4,Data!$F:$F,'7'!$A$2)","v":0.13310926627090611}]
[" > 50 % <= 55 %",{"$f":"SUMIFS(Data!$E:$E,Data!$B:$B,'7'!B$3,Data!$C:$C,'7'!$A$3,Data!$H:$H,'7'!$A5,Data!$F:$F,'7'!$A$2)","v":3.054306421261609E-2},{"$f":"SUMIFS(Data!$E:$E,Data!$B:$B,'7'!C$3,Data!$C:$C,'7'!$A$3,Data!$H:$H,'7'!$A5,Data!$F:$F,'7'!$A$2)","v":2.7263933209576565E-2},{"$f":"SUMIFS(Data!$E:$E,Data!$B:$B,'7'!D$3,Data!$C:$C,'7'!$A$3,Data!$H:$H,'7'!$A5,Data!$F:$F,'7'!$A$2)","v":6.2779792098383441E-2},{"$f":"SUMIFS(Data!$E:$E,Data!$B:$B,'7'!E$3,Data!$C:$C,'7'!$A$3,Data!$H:$H,'7'!$A5,Data!$F:$F,'7'!$A$2)","v":3.6689836015548885E-2},{"$f":"SUMIFS(Data!$E:$E,Data!$B:$B,'7'!F$3,Data!$C:$C,'7'!$A$3,Data!$H:$H,'7'!$A5,Data!$F:$F,'7'!$A$2)","v":3.2634847862245173E-2},{"$f":"SUMIFS(Data!$E:$E,Data!$B:$B,'7'!G$3,Data!$C:$C,'7'!$A$3,Data!$H:$H,'7'!$A5,Data!$F:$F,'7'!$A$2)","v":5.3198650313802658E-2},{"$f":"SUMIFS(Data!$E:$E,Data!$B:$B,'7'!H$3,Data!$C:$C,'7'!$A$3,Data!$H:$H,'7'!$A5,Data!$F:$F,'7'!$A$2)","v":4.9565322172043839E-2},{"$f":"SUMIFS(Data!$E:$E,Data!$B:$B,'7'!I$3,Data!$C:$C,'7'!$A$3,Data!$H:$H,'7'!$A5,Data!$F:$F,'7'!$A$2)","v":6.1576251696459645E-2},{"$f":"SUMIFS(Data!$E:$E,Data!$B:$B,'7'!J$3,Data!$C:$C,'7'!$A$3,Data!$H:$H,'7'!$A5,Data!$F:$F,'7'!$A$2)","v":3.054306421261609E-2},{"$f":"SUMIFS(Data!$E:$E,Data!$B:$B,'7'!K$3,Data!$C:$C,'7'!$A$3,Data!$H:$H,'7'!$A5,Data!$F:$F,'7'!$A$2)","v":3.2634847862245173E-2}]
[" > 55 % <= 60 %",{"$f":"SUMIFS(Data!$E:$E,Data!$B:$B,'7'!B$3,Data!$C:$C,'7'!$A$3,Data!$H:$H,'7'!$A6,Data!$F:$F,'7'!$A$2)","v":2.8018472151629833E-2},{"$f":"SUMIFS(Data!$E:$E,Data!$B:$B,'7'!C$3,Data!$C:$C,'7'!$A$3,Data!$H:$H,'7'!$A6,Data!$F:$F,'7'!$A$2)","v":3.5722358319727039E-2},{"$f":"SUMIFS(Data!$E:$E,Data!$B:$B,'7'!D$3,Data!$C:$C,'7'!$A$3,Data!$H:$H,'7'!$A6,Data!$F:$F,'7'!$A$2)","v":4.8455604768876719E-2},{"$f":"SUMIFS(Data!$E:$E,Data!$B:$B,'7'!E$3,Data!$C:$C,'7'!$A$3,Data!$H:$H,'7'!$A6,Data!$F:$F,'7'!$A$2)","v":5.8633250381798951E-2},{"$f":"SUMIFS(Data!$E:$E,Data!$B:$B,'7'!F$3,Data!$C:$C,'7'!$A$3,Data!$H:$H,'7'!$A6,Data!$F:$F,'7'!$A$2)","v":0.14810595903719637},{"$f":"SUMIFS(Data!$E:$E,Data!$B:$B,'7'!G$3,Data!$C:$C,'7'!$A$3,Data!$H:$H,'7'!$A6,Data!$F:$F,'7'!$A$2)","v":9.1579655538533103E-2},{"$f":"SUMIFS(Data!$E:$E,Data!$B:$B,'7'!H$3,Data!$C:$C,'7'!$A$3,Data!$H:$H,'7'!$A6,Data!$F:$F,'7'!$A$2)","v":8.0145370487972448E-2},{"$f":"SUMIFS(Data!$E:$E,Data!$B:$B,'7'!I$3,Data!$C:$C,'7'!$A$3,Data!$H:$H,'7'!$A6,Data!$F:$F,'7'!$A$2)","v":7.87344503432965E-2},{"$f":"SUMIFS(Data!$E:$E,Data!$B:$B,'7'!J$3,Data!$C:$C,'7'!$A$3,Data!$H:$H,'7'!$A6,Data!$F:$F,'7'!$A$2)","v":2.8018472151629833E-2},{"$f":"SUMIFS(Data!$E:$E,Data!$B:$B,'7'!K$3,Data!$C:$C,'7'!$A$3,Data!$H:$H,'7'!$A6,Data!$F:$F,'7'!$A$2)","v":0.14810595903719637}]
[" > 60 % <= 65 %",{"$f":"SUMIFS(Data!$E:$E,Data!$B:$B,'7'!B$3,Data!$C:$C,'7'!$A$3,Data!$H:$H,'7'!$A7,Data!$F:$F,'7'!$A$2)","v":0.102129010477302},{"$f":"SUMIFS(Data!$E:$E,Data!$B:$B,'7'!C$3,Data!$C:$C,'7'!$A$3,Data!$H:$H,'7'!$A7,Data!$F:$F,'7'!$A$2)","v":7.5289682737427061E-2},{"$f":"SUMIFS(Data!$E:$E,Data!$B:$B,'7'!D$3,Data!$C:$C,'7'!$A$3,Data!$H:$H,'7'!$A7,Data!$F:$F,'7'!$A$2)","v":9.9874016460166901E-2},{"$f":"SUMIFS(Data!$E:$E,Data!$B:$B,'7'!E$3,Data!$C:$C,'7'!$A$3,Data!$H:$H,'7'!$A7,Data!$F:$F,'7'!$A$2)","v":0.1079383341577156},{"$f":"SUMIFS(Data!$E:$E,Data!$B:$B,'7'!F$3,Data!$C:$C,'7'!$A$3,Data!$H:$H,'7'!$A7,Data!$F:$F,'7'!$A$2)","v":6.4488970893411435E-2},{"$f":"SUMIFS(Data!$E:$E,Data!$B:$B,'7'!G$3,Data!$C:$C,'7'!$A$3,Data!$H:$H,'7'!$A7,Data!$F:$F,'7'!$A$2)","v":0.14357126554434263},{"$f":"SUMIFS(Data!$E:$E,Data!$B:$B,'7'!H$3,Data!$C:$C,'7'!$A$3,Data!$H:$H,'7'!$A7,Data!$F:$F,'7'!$A$2)","v":0.15522341064705403},{"$f":"SUMIFS(Data!$E:$E,Data!$B:$B,'7'!I$3,Data!$C:$C,'7'!$A$3,Data!$H:$H,'7'!$A7,Data!$F:$F,'7'!$A$2)","v":0.10756800518668767},{"$f":"SUMIFS(Data!$E:$E,Data!$B:$B,'7'!J$3,Data!$C:$C,'7'!$A$3,Data!$H:$H,'7'!$A7,Data!$F:$F,'7'!$A$2)","v":0.102129010477302},{"$f":"SUMIFS(Data!$E:$E,Data!$B:$B,'7'!K$3,Data!$C:$C,'7'!$A$3,Data!$H:$H,'7'!$A7,Data!$F:$F,'7'!$A$2)","v":6.4488970893411435E-2}]
[" > 65 % <= 70 %",{"$f":"SUMIFS(Data!$E:$E,Data!$B:$B,'7'!B$3,Data!$C:$C,'7'!$A$3,Data!$H:$H,'7'!$A8,Data!$F:$F,'7'!$A$2)","v":4.8165666569782009E-2},{"$f":"SUMIFS(Data!$E:$E,Data!$B:$B,'7'!C$3,Data!$C:$C,'7'!$A$3,Data!$H:$H,'7'!$A8,Data!$F:$F,'7'!$A$2)","v":5.8036587100342256E-2},{"$f":"SUMIFS(Data!$E:$E,Data!$B:$B,'7'!D$3,Data!$C:$C,'7'!$A$3,Data!$H:$H,'7'!$A8,Data!$F:$F,'7'!$A$2)","v":5.2060460875412509E-2},{"$f":"SUMIFS(Data!$E:$E,Data!$B:$B,'7'!E$3,Data!$C:$C,'7'!$A$3,Data!$H:$H,'7'!$A8,Data!$F:$F,'7'!$A$2)","v":8.0555242963995188E-2},{"$f":"SUMIFS(Data!$E:$E,Data!$B:$B,'7'!F$3,Data!$C:$C,'7'!$A$3,Data!$H:$H,'7'!$A8,Data!$F:$F,'7'!$A$2)","v":6.3330581956748275E-2},{"$f":"SUMIFS(Data!$E:$E,Data!$B:$B,'7'!G$3,Data!$C:$C,'7'!$A$3,Data!$H:$H,'7'!$A8,Data!$F:$F,'7'!$A$2)","v":7.614610048279763E-2},{"$f":"SUMIFS(Data!$E:$E,Data!$B:$B,'7'!H$3,Data!$C:$C,'7'!$A$3,Data!$H:$H,'7'!$A8,Data!$F:$F,'7'!$A$2)","v":0.10063741655309857},{"$f":"SUMIFS(Data!$E:$E,Data!$B:$B,'7'!I$3,Data!$C:$C,'7'!$A$3,Data!$H:$H,'7'!$A8,Data!$F:$F,'7'!$A$2)","v":9.6347361956179114E-2},{"$f":"SUMIFS(Data!$E:$E,Data!$B:$B,'7'!J$3,Data!$C:$C,'7'!$A$3,Data!$H:$H,'7'!$A8,Data!$F:$F,'7'!$A$2)","v":4.8165666569782009E-2},{"$f":"SUMIFS(Data!$E:$E,Data!$B:$B,'7'!K$3,Data!$C:$C,'7'!$A$3,Data!$H:$H,'7'!$A8,Data!$F:$F,'7'!$A$2)","v":6.3330581956748275E-2}]
[" > 70 % <= 75 %",{"$f":"SUMIFS(Data!$E:$E,Data!$B:$B,'7'!B$3,Data!$C:$C,'7'!$A$3,Data!$H:$H,'7'!$A9,Data!$F:$F,'7'!$A$2)","v":0.1109270108100157},{"$f":"SUMIFS(Data!$E:$E,Data!$B:$B,'7'!C$3,Data!$C:$C,'7'!$A$3,Data!$H:$H,'7'!$A9,Data!$F:$F,'7'!$A$2)","v":0.11921561159064303},{"$f":"SUMIFS(Data!$E:$E,Data!$B:$B,'7'!D$3,Data!$C:$C,'7'!$A$3,Data!$H:$H,'7'!$A9,Data!$F:$F,'7'!$A$2)","v":0.17602578029202118},{"$f":"SUMIFS(Data!$E:$E,Data!$B:$B,'7'!E$3,Data!$C:$C,'7'!$A$3,Data!$H:$H,'7'!$A9,Data!$F:$F,'7'!$A$2)","v":0.14282221664359679},{"$f":"SUMIFS(Data!$E:$E,Data!$B:$B,'7'!F$3,Data!$C:$C,'7'!$A$3,Data!$H:$H,'7'!$A9,Data!$F:$F,'7'!$A$2)","v":0.19822019971379043},{"$f":"SUMIFS(Data!$E:$E,Data!$B:$B,'7'!G$3,Data!$C:$C,'7'!$A$3,Data!$H:$H,'7'!$A9,Data!$F:$F,'7'!$A$2)","v":0.20758167572783351},{"$f":"SUMIFS(Data!$E:$E,Data!$B:$B,'7'!H$3,Data!$C:$C,'7'!$A$3,Data!$H:$H,'7'!$A9,Data!$F:$F,'7'!$A$2)","v":0.22372700966184847},{"$f":"SUMIFS(Data!$E:$E,Data!$B:$B,'7'!I$3,Data!$C:$C,'7'!$A$3,Data!$H:$H,'7'!$A9,Data!$F:$F,'7'!$A$2)","v":0.22189598892574725},{"$f":"SUMIFS(Data!$E:$E,Data!$B:$B,'7'!J$3,Data!$C:$C,'7'!$A$3,Data!$H:$H,'7'!$A9,Data!$F:$F,'7'!$A$2)","v":0.1109270108100157},{"$f":"SUMIFS(Data!$E:$E,Data!$B:$B,'7'!K$3,Data!$C:$C,'7'!$A$3,Data!$H:$H,'7'!$A9,Data!$F:$F,'7'!$A$2)","v":0.19822019971379043}]
[" > 75 % <= 80 %",{"$f":"SUMIFS(Data!$E:$E,Data!$B:$B,'7'!B$3,Data!$C:$C,'7'!$A$3,Data!$H:$H,'7'!$A10,Data!$F:$F,'7'!$A$2)","v":0.51448367464838507},{"$f":"SUMIFS(Data!$E:$E,Data!$B:$B,'7'!C$3,Data!$C:$C,'7'!$A$3,Data!$H:$H,'7'!$A10,Data!$F:$F,'7'!$A$2)","v":0.5668961259271772},{"$f":"SUMIFS(Data!$E:$E,Data!$B:$B,'7'!D$3,Data!$C:$C,'7'!$A$3,Data!$H:$H,'7'!$A10,Data!$F:$F,'7'!$A$2)","v":0.69588055421360084},{"$f":"SUMIFS(Data!$E:$E,Data!$B:$B,'7'!E$3,Data!$C:$C,'7'!$A$3,Data!$H:$H,'7'!$A10,Data!$F:$F,'7'!$A$2)","v":0.62135776181243951},{"$f":"SUMIFS(Data!$E:$E,Data!$B:$B,'7'!F$3,Data!$C:$C,'7'!$A$3,Data!$H:$H,'7'!$A10,Data!$F:$F,'7'!$A$2)","v":0.85109428109452445},{"$f":"SUMIFS(Data!$E:$E,Data!$B:$B,'7'!G$3,Data!$C:$C,'7'!$A$3,Data!$H:$H,'7'!$A10,Data!$F:$F,'7'!$A$2)","v":0.84233520070269396},{"$f":"SUMIFS(Data!$E:$E,Data!$B:$B,'7'!H$3,Data!$C:$C,'7'!$A$3,Data!$H:$H,'7'!$A10,Data!$F:$F,'7'!$A$2)","v":0.90368194203106866},{"$f":"SUMIFS(Data!$E:$E,Data!$B:$B,'7'!I$3,Data!$C:$C,'7'!$A$3,Data!$H:$H,'7'!$A10,Data!$F:$F,'7'!$A$2)","v":1.0761654419125848},{"$f":"SUMIFS(Data!$E:$E,Data!$B:$B,'7'!J$3,Data!$C:$C,'7'!$A$3,Data!$H:$H,'7'!$A10,Data!$F:$F,'7'!$A$2)","v":0.51448367464838507},{"$f":"SUMIFS(Data!$E:$E,Data!$B:$B,'7'!K$3,Data!$C:$C,'7'!$A$3,Data!$H:$H,'7'!$A10,Data!$F:$F,'7'!$A$2)","v":0.85109428109452445}]
[" > 80 % <= 85 %",{"$f":"SUMIFS(Data!$E:$E,Data!$B:$B,'7'!B$3,Data!$C:$C,'7'!$A$3,Data!$H:$H,'7'!$A11,Data!$F:$F,'7'!$A$2)","v":6.0352698677967282},{"$f":"SUMIFS(Data!$E:$E,Data!$B:$B,'7'!C$3,Data!$C:$C,'7'!$A$3,Data!$H:$H,'7'!$A11,Data!$F:$F,'7'!$A$2)","v":5.1729188547899323},{"$f":"SUMIFS(Data!$E:$E,Data!$B:$B,'7'!D$3,Data!$C:$C,'7'!$A$3,Data!$H:$H,'7'!$A11,Data!$F:$F,'7'!$A$2)","v":4.511064294217431},{"$f":"SUMIFS(Data!$E:$E,Data!$B:$B,'7'!E$3,Data!$C:$C,'7'!$A$3,Data!$H:$H,'7'!$A11,Data!$F:$F,'7'!$A$2)","v":3.9362264260308009},{"$f":"SUMIFS(Data!$E:$E,Data!$B:$B,'7'!F$3,Data!$C:$C,'7'!$A$3,Data!$H:$H,'7'!$A11,Data!$F:$F,'7'!$A$2)","v":4.9785134806263427},{"$f":"SUMIFS(Data!$E:$E,Data!$B:$B,'7'!G$3,Data!$C:$C,'7'!$A$3,Data!$H:$H,'7'!$A11,Data!$F:$F,'7'!$A$2)","v":5.025554731831769},{"$f":"SUMIFS(Data!$E:$E,Data!$B:$B,'7'!H$3,Data!$C:$C,'7'!$A$3,Data!$H:$H,'7'!$A11,Data!$F:$F,'7'!$A$2)","v":5.1417725863660735},{"$f":"SUMIFS(Data!$E:$E,Data!$B:$B,'7'!I$3,Data!$C:$C,'7'!$A$3,Data!$H:$H,'7'!$A11,Data!$F:$F,'7'!$A$2)","v":4.4860715640113282},{"$f":"SUMIFS(Data!$E:$E,Data!$B:$B,'7'!J$3,Data!$C:$C,'7'!$A$3,Data!$H:$H,'7'!$A11,Data!$F:$F,'7'!$A$2)","v":6.0352698677967282},{"$f":"SUMIFS(Data!$E:$E,Data!$B:$B,'7'!K$3,Data!$C:$C,'7'!$A$3,Data!$H:$H,'7'!$A11,Data!$F:$F,'7'!$A$2)","v":4.9785134806263427}]
[" > 85 % <= 90 %",{"$f":"SUMIFS(Data!$E:$E,Data!$B:$B,'7'!B$3,Data!$C:$C,'7'!$A$3,Data!$H:$H,'7'!$A12,Data!$F:$F,'7'!$A$2)","v":28.311469497688226},{"$f":"SUMIFS(Data!$E:$E,Data!$B:$B,'7'!C$3,Data!$C:$C,'7'!$A$3,Data!$H:$H,'7'!$A12,Data!$F:$F,'7'!$A$2)","v":27.649108377786764},{"$f":"SUMIFS(Data!$E:$E,Data!$B:$B,'7'!D$3,Data!$C:$C,'7'!$A$3,Data!$H:$H,'7'!$A12,Data!$F:$F,'7'!$A$2)","v":26.560546564805097},{"$f":"SUMIFS(Data!$E:$E,Data!$B:$B,'7'!E$3,Data!$C:$C,'7'!$A$3,Data!$H:$H,'7'!$A12,Data!$F:$F,'7'!$A$2)","v":24.409321928262639},{"$f":"SUMIFS(Data!$E:$E,Data!$B:$B,'7'!F$3,Data!$C:$C,'7'!$A$3,Data!$H:$H,'7'!$A12,Data!$F:$F,'7'!$A$2)","v":26.211649612245804},{"$f":"SUMIFS(Data!$E:$E,Data!$B:$B,'7'!G$3,Data!$C:$C,'7'!$A$3,Data!$H:$H,'7'!$A12,Data!$F:$F,'7'!$A$2)","v":26.430162277624472},{"$f":"SUMIFS(Data!$E:$E,Data!$B:$B,'7'!H$3,Data!$C:$C,'7'!$A$3,Data!$H:$H,'7'!$A12,Data!$F:$F,'7'!$A$2)","v":26.543808079383162},{"$f":"SUMIFS(Data!$E:$E,Data!$B:$B,'7'!I$3,Data!$C:$C,'7'!$A$3,Data!$H:$H,'7'!$A12,Data!$F:$F,'7'!$A$2)","v":24.495341723667735},{"$f":"SUMIFS(Data!$E:$E,Data!$B:$B,'7'!J$3,Data!$C:$C,'7'!$A$3,Data!$H:$H,'7'!$A12,Data!$F:$F,'7'!$A$2)","v":28.311469497688226},{"$f":"SUMIFS(Data!$E:$E,Data!$B:$B,'7'!K$3,Data!$C:$C,'7'!$A$3,Data!$H:$H,'7'!$A12,Data!$F:$F,'7'!$A$2)","v":26.211649612245804}]
[" > 90 % <= 95 %",{"$f":"SUMIFS(Data!$E:$E,Data!$B:$B,'7'!B$3,Data!$C:$C,'7'!$A$3,Data!$H:$H,'7'!$A13,Data!$F:$F,'7'!$A$2)","v":64.725968656615223},{"$f":"SUMIFS(Data!$E:$E,Data!$B:$B,'7'!C$3,Data!$C:$C,'7'!$A$3,Data!$H:$H,'7'!$A13,Data!$F:$F,'7'!$A$2)","v":66.195290560269981},{"$f":"SUMIFS(Data!$E:$E,Data!$B:$B,'7'!D$3,Data!$C:$C,'7'!$A$3,Data!$H:$H,'7'!$A13,Data!$F:$F,'7'!$A$2)","v":67.696128839923475},{"$f":"SUMIFS(Data!$E:$E,Data!$B:$B,'7'!E$3,Data!$C:$C,'7'!$A$3,Data!$H:$H,'7'!$A13,Data!$F:$F,'7'!$A$2)","v":70.525527398298394},{"$f":"SUMIFS(Data!$E:$E,Data!$B:$B,'7'!F$3,Data!$C:$C,'7'!$A$3,Data!$H:$H,'7'!$A13,Data!$F:$F,'7'!$A$2)","v":67.318852800299055},{"$f":"SUMIFS(Data!$E:$E,Data!$B:$B,'7'!G$3,Data!$C:$C,'7'!$A$3,Data!$H:$H,'7'!$A13,Data!$F:$F,'7'!$A$2)","v":66.999971901978498},{"$f":"SUMIFS(Data!$E:$E,Data!$B:$B,'7'!H$3,Data!$C:$C,'7'!$A$3,Data!$H:$H,'7'!$A13,Data!$F:$F,'7'!$A$2)","v":66.665679854305836},{"$f":"SUMIFS(Data!$E:$E,Data!$B:$B,'7'!I$3,Data!$C:$C,'7'!$A$3,Data!$H:$H,'7'!$A13,Data!$F:$F,'7'!$A$2)","v":69.20900370614649},{"$f":"SUMIFS(Data!$E:$E,Data!$B:$B,'7'!J$3,Data!$C:$C,'7'!$A$3,Data!$H:$H,'7'!$A13,Data!$F:$F,'7'!$A$2)","v":64.725968656615223},{"$f":"SUMIFS(Data!$E:$E,Data!$B:$B,'7'!K$3,Data!$C:$C,'7'!$A$3,Data!$H:$H,'7'!$A13,Data!$F:$F,'7'!$A$2)","v":67.318852800299055}]
[" > 95 %",{"$f":"SUMIFS(Data!$E:$E,Data!$B:$B,'7'!B$3,Data!$C:$C,'7'!$A$3,Data!$H:$H,'7'!$A14,Data!$F:$F,'7'!$A$2)","v":0},{"$f":"SUMIFS(Data!$E:$E,Data!$B:$B,'7'!C$3,Data!$C:$C,'7'!$A$3,Data!$H:$H,'7'!$A14,Data!$F:$F,'7'!$A$2)","v":0},{"$f":"SUMIFS(Data!$E:$E,Data!$B:$B,'7'!D$3,Data!$C:$C,'7'!$A$3,Data!$H:$H,'7'!$A14,Data!$F:$F,'7'!$A$2)","v":0},{"$f":"SUMIFS(Data!$E:$E,Data!$B:$B,'7'!E$3,Data!$C:$C,'7'!$A$3,Data!$H:$H,'7'!$A14,Data!$F:$F,'7'!$A$2)","v":0},{"$f":"SUMIFS(Data!$E:$E,Data!$B:$B,'7'!F$3,Data!$C:$C,'7'!$A$3,Data!$H:$H,'7'!$A14,Data!$F:$F,'7'!$A$2)","v":0},{"$f":"SUMIFS(Data!$E:$E,Data!$B:$B,'7'!G$3,Data!$C:$C,'7'!$A$3,Data!$H:$H,'7'!$A14,Data!$F:$F,'7'!$A$2)","v":0},{"$f":"SUMIFS(Data!$E:$E,Data!$B:$B,'7'!H$3,Data!$C:$C,'7'!$A$3,Data!$H:$H,'7'!$A14,Data!$F:$F,'7'!$A$2)","v":0},{"$f":"SUMIFS(Data!$E:$E,Data!$B:$B,'7'!I$3,Data!$C:$C,'7'!$A$3,Data!$H:$H,'7'!$A14,Data!$F:$F,'7'!$A$2)","v":0},{"$f":"SUMIFS(Data!$E:$E,Data!$B:$B,'7'!J$3,Data!$C:$C,'7'!$A$3,Data!$H:$H,'7'!$A14,Data!$F:$F,'7'!$A$2)","v":0},{"$f":"SUMIFS(Data!$E:$E,Data!$B:$B,'7'!K$3,Data!$C:$C,'7'!$A$3,Data!$H:$H,'7'!$A14,Data!$F:$F,'7'!$A$2)","v":0}]
[{"$f":"VLOOKUP(\"Average loan-to-value\",Translation!$A$1:$C$354, Translation!A1+1, 0)","v":"Rapport prêt-valeur moyen "},{"$f":"SUMIFS(Data!$E:$E,Data!$B:$B,'7'!B$3,Data!$C:$C,'7'!$A$3,Data!$H:$H,'7'!$A15,Data!$F:$F,'7'!$A$2)","v":92.248388192660641},{"$f":"SUMIFS(Data!$E:$E,Data!$B:$B,'7'!C$3,Data!$C:$C,'7'!$A$3,Data!$D:$D,'7'!$A15,Data!$F:$F,'7'!$A$2)","v":92.353442794675559},{"$f":"SUMIFS(Data!$E:$E,Data!$B:$B,'7'!D$3,Data!$C:$C,'7'!$A$3,Data!$D:$D,'7'!$A15,Data!$F:$F,'7'!$A$2)","v":92.427540373313263},{"$f":"SUMIFS(Data!$E:$E,Data!$B:$B,'7'!E$3,Data!$C:$C,'7'!$A$3,Data!$D:$D,'7'!$A15,Data!$F:$F,'7'!$A$2)","v":92.689125385638405},{"$f":"SUMIFS(Data!$E:$E,Data!$B:$B,'7'!F$3,Data!$C:$C,'7'!$A$3,Data!$D:$D,'7'!$A15,Data!$F:$F,'7'!$A$2)","v":92.352444813334586},{"$f":"SUMIFS(Data!E:E,Data!B:B,'7'!$G$3,Data!C:C,'7'!$A$3,Data!D:D,'7'!A15,Data!F:F,'7'!$A$2)","v":92.334166910622884},{"$f":"SUMIFS(Data!E:E,Data!B:B,'7'!$H$3,Data!C:C,'7'!$A$3,Data!D:D,'7'!A15,Data!F:F,'7'!$A$2)","v":92.28697989704898},{"$f":"SUMIFS(Data!E:E,Data!B:B,'7'!$I$3,Data!C:C,'7'!$A$3,Data!D:D,'7'!A15,Data!F:F,'7'!$A$2)","v":92.457540237386553},{"$f":"SUMIFS(Data!E:E,Data!B:B,'7'!$J$3,Data!C:C,'7'!$A$3,Data!D:D,'7'!A15,Data!F:F,'7'!$A$2)","v":92.248388192660641},{"$f":"SUMIFS(Data!E:E,Data!B:B,'7'!$K$3,Data!C:C,'7'!$A$3,Data!D:D,'7'!A15,Data!F:F,'7'!$A$2)","v":92.352444813334586}]
[{"$f":"VLOOKUP(\"Average equity\",Translation!$A$1:$C$354, Translation!A1+1, 0)","v":"Avoir propre foncier moyen "},{"$f":"SUMIFS(Data!$E:$E,Data!$B:$B,'7'!B$3,Data!$C:$C,'7'!$A$3,Data!$H:$H,'7'!$A16,Data!$F:$F,'7'!$A$2)","v":7.7516118073393745},{"$f":"SUMIFS(Data!$E:$E,Data!$B:$B,'7'!C$3,Data!$C:$C,'7'!$A$3,Data!$D:$D,'7'!$A16,Data!$F:$F,'7'!$A$2)","v":7.6465572053244397},{"$f":"SUMIFS(Data!$E:$E,Data!$B:$B,'7'!D$3,Data!$C:$C,'7'!$A$3,Data!$D:$D,'7'!$A16,Data!$F:$F,'7'!$A$2)","v":7.5724596266867357},{"$f":"SUMIFS(Data!$E:$E,Data!$B:$B,'7'!E$3,Data!$C:$C,'7'!$A$3,Data!$D:$D,'7'!$A16,Data!$F:$F,'7'!$A$2)","v":7.3108746143616257},{"$f":"SUMIFS(Data!$E:$E,Data!$B:$B,'7'!F$3,Data!$C:$C,'7'!$A$3,Data!$D:$D,'7'!$A16,Data!$F:$F,'7'!$A$2)","v":7.6475551866654143},{"$f":"SUMIFS(Data!E:E,Data!B:B,'7'!$G$3,Data!C:C,'7'!$A$3,Data!D:D,'7'!A16,Data!F:F,'7'!$A$2)","v":7.6658330893771183},{"$f":"SUMIFS(Data!E:E,Data!B:B,'7'!$H$3,Data!C:C,'7'!$A$3,Data!D:D,'7'!A16,Data!F:F,'7'!$A$2)","v":7.7130201029510062},{"$f":"SUMIFS(Data!E:E,Data!B:B,'7'!$I$3,Data!C:C,'7'!$A$3,Data!D:D,'7'!A16,Data!F:F,'7'!$A$2)","v":7.5424597626134355},{"$f":"SUMIFS(Data!E:E,Data!B:B,'7'!$J$3,Data!C:C,'7'!$A$3,Data!D:D,'7'!A16,Data!F:F,'7'!$A$2)","v":7.7516118073393745},{"$f":"SUMIFS(Data!E:E,Data!B:B,'7'!$K$3,Data!C:C,'7'!$A$3,Data!D:D,'7'!A16,Data!F:F,'7'!$A$2)","v":7.6475551866654143}]
[{"$f":"VLOOKUP(\"Average equity by province\",Translation!$A$1:$C$354, Translation!A1+1, 0)","v":"Avoir propre foncier moyen selon la province"}]
[{"$f":"VLOOKUP(\"Newfoundland and Labrador\",Translation!$A$1:$C$354, Translation!A1+1, 0)","v":"Terre-Neuve-et-Labrador"},{"$f":"IF((SUMIFS(Data!$E:$E,Data!$B:$B,'7'!B$3,Data!$C:$C,'7'!$A$3,Data!$D:$D,'7'!$A18,Data!$F:$F,'7'!$A$17))=0,\"-\",SUMIFS(Data!$E:$E,Data!$B:$B,'7'!B$3,Data!$C:$C,'7'!$A$3,Data!$D:$D,'7'!$A18,Data!$F:$F,'7'!$A$17))","v":6.2510283953019883},{"$f":"IF((SUMIFS(Data!$E:$E,Data!$B:$B,'7'!C$3,Data!$C:$C,'7'!$A$3,Data!$D:$D,'7'!$A18,Data!$F:$F,'7'!$A$17))=0,\"-\",SUMIFS(Data!$E:$E,Data!$B:$B,'7'!C$3,Data!$C:$C,'7'!$A$3,Data!$D:$D,'7'!$A18,Data!$F:$F,'7'!$A$17))","v":6.465649360345024},{"$f":"IF((SUMIFS(Data!$E:$E,Data!$B:$B,'7'!D$3,Data!$C:$C,'7'!$A$3,Data!$D:$D,'7'!$A18,Data!$F:$F,'7'!$A$17))=0,\"-\",SUMIFS(Data!$E:$E,Data!$B:$B,'7'!D$3,Data!$C:$C,'7'!$A$3,Data!$D:$D,'7'!$A18,Data!$F:$F,'7'!$A$17))","v":5.8907900223543397},{"$f":"IF((SUMIFS(Data!$E:$E,Data!$B:$B,'7'!E$3,Data!$C:$C,'7'!$A$3,Data!$D:$D,'7'!$A18,Data!$F:$F,'7'!$A$17))=0,\"-\",SUMIFS(Data!$E:$E,Data!$B:$B,'7'!E$3,Data!$C:$C,'7'!$A$3,Data!$D:$D,'7'!$A18,Data!$F:$F,'7'!$A$17))","v":5.9179577582542606},{"$f":"IF((SUMIFS(Data!$E:$E,Data!$B:$B,'7'!F$3,Data!$C:$C,'7'!$A$3,Data!$D:$D,'7'!$A18,Data!$F:$F,'7'!$A$17))=0,\"-\",SUMIFS(Data!$E:$E,Data!$B:$B,'7'!F$3,Data!$C:$C,'7'!$A$3,Data!$D:$D,'7'!$A18,Data!$F:$F,'7'!$A$17))","v":6.0264137548882797},{"$f":"IF((SUMIFS(Data!$E:$E,Data!$B:$B,'7'!G$3,Data!$C:$C,'7'!$A$3,Data!$D:$D,'7'!$A18,Data!$F:$F,'7'!$A$17))=0,\"-\",SUMIFS(Data!$E:$E,Data!$B:$B,'7'!G$3,Data!$C:$C,'7'!$A$3,Data!$D:$D,'7'!$A18,Data!$F:$F,'7'!$A$17))","v":6.4127227587881199},{"$f":"IF((SUMIFS(Data!$E:$E,Data!$B:$B,'7'!H$3,Data!$C:$C,'7'!$A$3,Data!$D:$D,'7'!$A18,Data!$F:$F,'7'!$A$17))=0,\"-\",SUMIFS(Data!$E:$E,Data!$B:$B,'7'!H$3,Data!$C:$C,'7'!$A$3,Data!$D:$D,'7'!$A18,Data!$F:$F,'7'!$A$17))","v":6.0605191398716567},{"$f":"IF((SUMIFS(Data!$E:$E,Data!$B:$B,'7'!I$3,Data!$C:$C,'7'!$A$3,Data!$D:$D,'7'!$A18,Data!$F:$F,'7'!$A$17))=0,\"-\",SUMIFS(Data!$E:$E,Data!$B:$B,'7'!I$3,Data!$C:$C,'7'!$A$3,Data!$D:$D,'7'!$A18,Data!$F:$F,'7'!$A$17))","v":6.5089694539042284},{"$f":"IF((SUMIFS(Data!$E:$E,Data!$B:$B,'7'!J$3,Data!$C:$C,'7'!$A$3,Data!$D:$D,'7'!$A18,Data!$F:$F,'7'!$A$17))=0,\"-\",SUMIFS(Data!$E:$E,Data!$B:$B,'7'!J$3,Data!$C:$C,'7'!$A$3,Data!$D:$D,'7'!$A18,Data!$F:$F,'7'!$A$17))","v":6.2510283953019883},{"$f":"IF((SUMIFS(Data!$E:$E,Data!$B:$B,'7'!K$3,Data!$C:$C,'7'!$A$3,Data!$D:$D,'7'!$A18,Data!$F:$F,'7'!$A$17))=0,\"-\",SUMIFS(Data!$E:$E,Data!$B:$B,'7'!K$3,Data!$C:$C,'7'!$A$3,Data!$D:$D,'7'!$A18,Data!$F:$F,'7'!$A$17))","v":6.0264137548882797}]
[{"$f":"VLOOKUP(\"Prince Edward Island\",Translation!$A$1:$C$354, Translation!A1+1, 0)","v":"Île-du-Prince-Édouard"},{"$f":"IF((SUMIFS(Data!$E:$E,Data!$B:$B,'7'!B$3,Data!$C:$C,'7'!$A$3,Data!$D:$D,'7'!$A19,Data!$F:$F,'7'!$A$17))=0,\"-\",SUMIFS(Data!$E:$E,Data!$B:$B,'7'!B$3,Data!$C:$C,'7'!$A$3,Data!$D:$D,'7'!$A19,Data!$F:$F,'7'!$A$17))","v":8.2101864233743953},{"$f":"IF((SUMIFS(Data!$E:$E,Data!$B:$B,'7'!C$3,Data!$C:$C,'7'!$A$3,Data!$D:$D,'7'!$A19,Data!$F:$F,'7'!$A$17))=0,\"-\",SUMIFS(Data!$E:$E,Data!$B:$B,'7'!C$3,Data!$C:$C,'7'!$A$3,Data!$D:$D,'7'!$A19,Data!$F:$F,'7'!$A$17))","v":7.2155268647969821},{"$f":"IF((SUMIFS(Data!$E:$E,Data!$B:$B,'7'!D$3,Data!$C:$C,'7'!$A$3,Data!$D:$D,'7'!$A19,Data!$F:$F,'7'!$A$17))=0,\"-\",SUMIFS(Data!$E:$E,Data!$B:$B,'7'!D$3,Data!$C:$C,'7'!$A$3,Data!$D:$D,'7'!$A19,Data!$F:$F,'7'!$A$17))","v":7.9444067012919808},{"$f":"IF((SUMIFS(Data!$E:$E,Data!$B:$B,'7'!E$3,Data!$C:$C,'7'!$A$3,Data!$D:$D,'7'!$A19,Data!$F:$F,'7'!$A$17))=0,\"-\",SUMIFS(Data!$E:$E,Data!$B:$B,'7'!E$3,Data!$C:$C,'7'!$A$3,Data!$D:$D,'7'!$A19,Data!$F:$F,'7'!$A$17))","v":7.0328967984656723},{"$f":"IF((SUMIFS(Data!$E:$E,Data!$B:$B,'7'!F$3,Data!$C:$C,'7'!$A$3,Data!$D:$D,'7'!$A19,Data!$F:$F,'7'!$A$17))=0,\"-\",SUMIFS(Data!$E:$E,Data!$B:$B,'7'!F$3,Data!$C:$C,'7'!$A$3,Data!$D:$D,'7'!$A19,Data!$F:$F,'7'!$A$17))","v":8.3120668838491998},{"$f":"IF((SUMIFS(Data!$E:$E,Data!$B:$B,'7'!G$3,Data!$C:$C,'7'!$A$3,Data!$D:$D,'7'!$A19,Data!$F:$F,'7'!$A$17))=0,\"-\",SUMIFS(Data!$E:$E,Data!$B:$B,'7'!G$3,Data!$C:$C,'7'!$A$3,Data!$D:$D,'7'!$A19,Data!$F:$F,'7'!$A$17))","v":6.9231569428516497},{"$f":"IF((SUMIFS(Data!$E:$E,Data!$B:$B,'7'!H$3,Data!$C:$C,'7'!$A$3,Data!$D:$D,'7'!$A19,Data!$F:$F,'7'!$A$17))=0,\"-\",SUMIFS(Data!$E:$E,Data!$B:$B,'7'!H$3,Data!$C:$C,'7'!$A$3,Data!$D:$D,'7'!$A19,Data!$F:$F,'7'!$A$17))","v":7.650433598454045},{"$f":"IF((SUMIFS(Data!$E:$E,Data!$B:$B,'7'!I$3,Data!$C:$C,'7'!$A$3,Data!$D:$D,'7'!$A19,Data!$F:$F,'7'!$A$17))=0,\"-\",SUMIFS(Data!$E:$E,Data!$B:$B,'7'!I$3,Data!$C:$C,'7'!$A$3,Data!$D:$D,'7'!$A19,Data!$F:$F,'7'!$A$17))","v":7.3865407276832942},{"$f":"IF((SUMIFS(Data!$E:$E,Data!$B:$B,'7'!J$3,Data!$C:$C,'7'!$A$3,Data!$D:$D,'7'!$A19,Data!$F:$F,'7'!$A$17))=0,\"-\",SUMIFS(Data!$E:$E,Data!$B:$B,'7'!J$3,Data!$C:$C,'7'!$A$3,Data!$D:$D,'7'!$A19,Data!$F:$F,'7'!$A$17))","v":8.2101864233743953},{"$f":"IF((SUMIFS(Data!$E:$E,Data!$B:$B,'7'!K$3,Data!$C:$C,'7'!$A$3,Data!$D:$D,'7'!$A19,Data!$F:$F,'7'!$A$17))=0,\"-\",SUMIFS(Data!$E:$E,Data!$B:$B,'7'!K$3,Data!$C:$C,'7'!$A$3,Data!$D:$D,'7'!$A19,Data!$F:$F,'7'!$A$17))","v":8.3120668838491998}]
[{"$f":"VLOOKUP(\"Nova Scotia\",Translation!$A$1:$C$354, Translation!A1+1, 0)","v":"Nouvelle-Écosse"},{"$f":"IF((SUMIFS(Data!$E:$E,Data!$B:$B,'7'!B$3,Data!$C:$C,'7'!$A$3,Data!$D:$D,'7'!$A20,Data!$F:$F,'7'!$A$17))=0,\"-\",SUMIFS(Data!$E:$E,Data!$B:$B,'7'!B$3,Data!$C:$C,'7'!$A$3,Data!$D:$D,'7'!$A20,Data!$F:$F,'7'!$A$17))","v":7.1619226986842097},{"$f":"IF((SUMIFS(Data!$E:$E,Data!$B:$B,'7'!C$3,Data!$C:$C,'7'!$A$3,Data!$D:$D,'7'!$A20,Data!$F:$F,'7'!$A$17))=0,\"-\",SUMIFS(Data!$E:$E,Data!$B:$B,'7'!C$3,Data!$C:$C,'7'!$A$3,Data!$D:$D,'7'!$A20,Data!$F:$F,'7'!$A$17))","v":7.0050997143242864},{"$f":"IF((SUMIFS(Data!$E:$E,Data!$B:$B,'7'!D$3,Data!$C:$C,'7'!$A$3,Data!$D:$D,'7'!$A20,Data!$F:$F,'7'!$A$17))=0,\"-\",SUMIFS(Data!$E:$E,Data!$B:$B,'7'!D$3,Data!$C:$C,'7'!$A$3,Data!$D:$D,'7'!$A20,Data!$F:$F,'7'!$A$17))","v":6.685223417381124},{"$f":"IF((SUMIFS(Data!$E:$E,Data!$B:$B,'7'!E$3,Data!$C:$C,'7'!$A$3,Data!$D:$D,'7'!$A20,Data!$F:$F,'7'!$A$17))=0,\"-\",SUMIFS(Data!$E:$E,Data!$B:$B,'7'!E$3,Data!$C:$C,'7'!$A$3,Data!$D:$D,'7'!$A20,Data!$F:$F,'7'!$A$17))","v":6.6372226762931215},{"$f":"IF((SUMIFS(Data!$E:$E,Data!$B:$B,'7'!F$3,Data!$C:$C,'7'!$A$3,Data!$D:$D,'7'!$A20,Data!$F:$F,'7'!$A$17))=0,\"-\",SUMIFS(Data!$E:$E,Data!$B:$B,'7'!F$3,Data!$C:$C,'7'!$A$3,Data!$D:$D,'7'!$A20,Data!$F:$F,'7'!$A$17))","v":6.9892060270426137},{"$f":"IF((SUMIFS(Data!$E:$E,Data!$B:$B,'7'!G$3,Data!$C:$C,'7'!$A$3,Data!$D:$D,'7'!$A20,Data!$F:$F,'7'!$A$17))=0,\"-\",SUMIFS(Data!$E:$E,Data!$B:$B,'7'!G$3,Data!$C:$C,'7'!$A$3,Data!$D:$D,'7'!$A20,Data!$F:$F,'7'!$A$17))","v":7.0339288037264396},{"$f":"IF((SUMIFS(Data!$E:$E,Data!$B:$B,'7'!H$3,Data!$C:$C,'7'!$A$3,Data!$D:$D,'7'!$A20,Data!$F:$F,'7'!$A$17))=0,\"-\",SUMIFS(Data!$E:$E,Data!$B:$B,'7'!H$3,Data!$C:$C,'7'!$A$3,Data!$D:$D,'7'!$A20,Data!$F:$F,'7'!$A$17))","v":7.1294529810511884},{"$f":"IF((SUMIFS(Data!$E:$E,Data!$B:$B,'7'!I$3,Data!$C:$C,'7'!$A$3,Data!$D:$D,'7'!$A20,Data!$F:$F,'7'!$A$17))=0,\"-\",SUMIFS(Data!$E:$E,Data!$B:$B,'7'!I$3,Data!$C:$C,'7'!$A$3,Data!$D:$D,'7'!$A20,Data!$F:$F,'7'!$A$17))","v":6.7802300836084752},{"$f":"IF((SUMIFS(Data!$E:$E,Data!$B:$B,'7'!J$3,Data!$C:$C,'7'!$A$3,Data!$D:$D,'7'!$A20,Data!$F:$F,'7'!$A$17))=0,\"-\",SUMIFS(Data!$E:$E,Data!$B:$B,'7'!J$3,Data!$C:$C,'7'!$A$3,Data!$D:$D,'7'!$A20,Data!$F:$F,'7'!$A$17))","v":7.1619226986842097},{"$f":"IF((SUMIFS(Data!$E:$E,Data!$B:$B,'7'!K$3,Data!$C:$C,'7'!$A$3,Data!$D:$D,'7'!$A20,Data!$F:$F,'7'!$A$17))=0,\"-\",SUMIFS(Data!$E:$E,Data!$B:$B,'7'!K$3,Data!$C:$C,'7'!$A$3,Data!$D:$D,'7'!$A20,Data!$F:$F,'7'!$A$17))","v":6.9892060270426137}]
[{"$f":"VLOOKUP(\"New Brunswick\",Translation!$A$1:$C$354, Translation!A1+1, 0)","v":"Nouveau-Brunswick"},{"$f":"IF((SUMIFS(Data!$E:$E,Data!$B:$B,'7'!B$3,Data!$C:$C,'7'!$A$3,Data!$D:$D,'7'!$A21,Data!$F:$F,'7'!$A$17))=0,\"-\",SUMIFS(Data!$E:$E,Data!$B:$B,'7'!B$3,Data!$C:$C,'7'!$A$3,Data!$D:$D,'7'!$A21,Data!$F:$F,'7'!$A$17))","v":6.5546191146257806},{"$f":"IF((SUMIFS(Data!$E:$E,Data!$B:$B,'7'!C$3,Data!$C:$C,'7'!$A$3,Data!$D:$D,'7'!$A21,Data!$F:$F,'7'!$A$17))=0,\"-\",SUMIFS(Data!$E:$E,Data!$B:$B,'7'!C$3,Data!$C:$C,'7'!$A$3,Data!$D:$D,'7'!$A21,Data!$F:$F,'7'!$A$17))","v":6.4161621461448144},{"$f":"IF((SUMIFS(Data!$E:$E,Data!$B:$B,'7'!D$3,Data!$C:$C,'7'!$A$3,Data!$D:$D,'7'!$A21,Data!$F:$F,'7'!$A$17))=0,\"-\",SUMIFS(Data!$E:$E,Data!$B:$B,'7'!D$3,Data!$C:$C,'7'!$A$3,Data!$D:$D,'7'!$A21,Data!$F:$F,'7'!$A$17))","v":6.2880134764245224},{"$f":"IF((SUMIFS(Data!$E:$E,Data!$B:$B,'7'!E$3,Data!$C:$C,'7'!$A$3,Data!$D:$D,'7'!$A21,Data!$F:$F,'7'!$A$17))=0,\"-\",SUMIFS(Data!$E:$E,Data!$B:$B,'7'!E$3,Data!$C:$C,'7'!$A$3,Data!$D:$D,'7'!$A21,Data!$F:$F,'7'!$A$17))","v":6.2210423064790783},{"$f":"IF((SUMIFS(Data!$E:$E,Data!$B:$B,'7'!F$3,Data!$C:$C,'7'!$A$3,Data!$D:$D,'7'!$A21,Data!$F:$F,'7'!$A$17))=0,\"-\",SUMIFS(Data!$E:$E,Data!$B:$B,'7'!F$3,Data!$C:$C,'7'!$A$3,Data!$D:$D,'7'!$A21,Data!$F:$F,'7'!$A$17))","v":6.6355898616687767},{"$f":"IF((SUMIFS(Data!$E:$E,Data!$B:$B,'7'!G$3,Data!$C:$C,'7'!$A$3,Data!$D:$D,'7'!$A21,Data!$F:$F,'7'!$A$17))=0,\"-\",SUMIFS(Data!$E:$E,Data!$B:$B,'7'!G$3,Data!$C:$C,'7'!$A$3,Data!$D:$D,'7'!$A21,Data!$F:$F,'7'!$A$17))","v":6.450151023451328},{"$f":"IF((SUMIFS(Data!$E:$E,Data!$B:$B,'7'!H$3,Data!$C:$C,'7'!$A$3,Data!$D:$D,'7'!$A21,Data!$F:$F,'7'!$A$17))=0,\"-\",SUMIFS(Data!$E:$E,Data!$B:$B,'7'!H$3,Data!$C:$C,'7'!$A$3,Data!$D:$D,'7'!$A21,Data!$F:$F,'7'!$A$17))","v":6.5539956262709902},{"$f":"IF((SUMIFS(Data!$E:$E,Data!$B:$B,'7'!I$3,Data!$C:$C,'7'!$A$3,Data!$D:$D,'7'!$A21,Data!$F:$F,'7'!$A$17))=0,\"-\",SUMIFS(Data!$E:$E,Data!$B:$B,'7'!I$3,Data!$C:$C,'7'!$A$3,Data!$D:$D,'7'!$A21,Data!$F:$F,'7'!$A$17))","v":6.0545812257536653},{"$f":"IF((SUMIFS(Data!$E:$E,Data!$B:$B,'7'!J$3,Data!$C:$C,'7'!$A$3,Data!$D:$D,'7'!$A21,Data!$F:$F,'7'!$A$17))=0,\"-\",SUMIFS(Data!$E:$E,Data!$B:$B,'7'!J$3,Data!$C:$C,'7'!$A$3,Data!$D:$D,'7'!$A21,Data!$F:$F,'7'!$A$17))","v":6.5546191146257806},{"$f":"IF((SUMIFS(Data!$E:$E,Data!$B:$B,'7'!K$3,Data!$C:$C,'7'!$A$3,Data!$D:$D,'7'!$A21,Data!$F:$F,'7'!$A$17))=0,\"-\",SUMIFS(Data!$E:$E,Data!$B:$B,'7'!K$3,Data!$C:$C,'7'!$A$3,Data!$D:$D,'7'!$A21,Data!$F:$F,'7'!$A$17))","v":6.6355898616687767}]
[{"$f":"VLOOKUP(\"Quebec\",Translation!$A$1:$C$354, Translation!A1+1, 0)","v":"Québec"},{"$f":"IF((SUMIFS(Data!$E:$E,Data!$B:$B,'7'!B$3,Data!$C:$C,'7'!$A$3,Data!$D:$D,'7'!$A22,Data!$F:$F,'7'!$A$17))=0,\"-\",SUMIFS(Data!$E:$E,Data!$B:$B,'7'!B$3,Data!$C:$C,'7'!$A$3,Data!$D:$D,'7'!$A22,Data!$F:$F,'7'!$A$17))","v":7.4024016442532012},{"$f":"IF((SUMIFS(Data!$E:$E,Data!$B:$B,'7'!C$3,Data!$C:$C,'7'!$A$3,Data!$D:$D,'7'!$A22,Data!$F:$F,'7'!$A$17))=0,\"-\",SUMIFS(Data!$E:$E,Data!$B:$B,'7'!C$3,Data!$C:$C,'7'!$A$3,Data!$D:$D,'7'!$A22,Data!$F:$F,'7'!$A$17))","v":7.3123332919129505},{"$f":"IF((SUMIFS(Data!$E:$E,Data!$B:$B,'7'!D$3,Data!$C:$C,'7'!$A$3,Data!$D:$D,'7'!$A22,Data!$F:$F,'7'!$A$17))=0,\"-\",SUMIFS(Data!$E:$E,Data!$B:$B,'7'!D$3,Data!$C:$C,'7'!$A$3,Data!$D:$D,'7'!$A22,Data!$F:$F,'7'!$A$17))","v":7.0639249060930922},{"$f":"IF((SUMIFS(Data!$E:$E,Data!$B:$B,'7'!E$3,Data!$C:$C,'7'!$A$3,Data!$D:$D,'7'!$A22,Data!$F:$F,'7'!$A$17))=0,\"-\",SUMIFS(Data!$E:$E,Data!$B:$B,'7'!E$3,Data!$C:$C,'7'!$A$3,Data!$D:$D,'7'!$A22,Data!$F:$F,'7'!$A$17))","v":6.8997497829799359},{"$f":"IF((SUMIFS(Data!$E:$E,Data!$B:$B,'7'!F$3,Data!$C:$C,'7'!$A$3,Data!$D:$D,'7'!$A22,Data!$F:$F,'7'!$A$17))=0,\"-\",SUMIFS(Data!$E:$E,Data!$B:$B,'7'!F$3,Data!$C:$C,'7'!$A$3,Data!$D:$D,'7'!$A22,Data!$F:$F,'7'!$A$17))","v":7.1780416166628518},{"$f":"IF((SUMIFS(Data!$E:$E,Data!$B:$B,'7'!G$3,Data!$C:$C,'7'!$A$3,Data!$D:$D,'7'!$A22,Data!$F:$F,'7'!$A$17))=0,\"-\",SUMIFS(Data!$E:$E,Data!$B:$B,'7'!G$3,Data!$C:$C,'7'!$A$3,Data!$D:$D,'7'!$A22,Data!$F:$F,'7'!$A$17))","v":7.1113024031492955},{"$f":"IF((SUMIFS(Data!$E:$E,Data!$B:$B,'7'!H$3,Data!$C:$C,'7'!$A$3,Data!$D:$D,'7'!$A22,Data!$F:$F,'7'!$A$17))=0,\"-\",SUMIFS(Data!$E:$E,Data!$B:$B,'7'!H$3,Data!$C:$C,'7'!$A$3,Data!$D:$D,'7'!$A22,Data!$F:$F,'7'!$A$17))","v":7.1261416719451507},{"$f":"IF((SUMIFS(Data!$E:$E,Data!$B:$B,'7'!I$3,Data!$C:$C,'7'!$A$3,Data!$D:$D,'7'!$A22,Data!$F:$F,'7'!$A$17))=0,\"-\",SUMIFS(Data!$E:$E,Data!$B:$B,'7'!I$3,Data!$C:$C,'7'!$A$3,Data!$D:$D,'7'!$A22,Data!$F:$F,'7'!$A$17))","v":6.9358437257552357},{"$f":"IF((SUMIFS(Data!$E:$E,Data!$B:$B,'7'!J$3,Data!$C:$C,'7'!$A$3,Data!$D:$D,'7'!$A22,Data!$F:$F,'7'!$A$17))=0,\"-\",SUMIFS(Data!$E:$E,Data!$B:$B,'7'!J$3,Data!$C:$C,'7'!$A$3,Data!$D:$D,'7'!$A22,Data!$F:$F,'7'!$A$17))","v":7.4024016442532012},{"$f":"IF((SUMIFS(Data!$E:$E,Data!$B:$B,'7'!K$3,Data!$C:$C,'7'!$A$3,Data!$D:$D,'7'!$A22,Data!$F:$F,'7'!$A$17))=0,\"-\",SUMIFS(Data!$E:$E,Data!$B:$B,'7'!K$3,Data!$C:$C,'7'!$A$3,Data!$D:$D,'7'!$A22,Data!$F:$F,'7'!$A$17))","v":7.1780416166628518}]
[{"$f":"VLOOKUP(\"Ontario\",Translation!$A$1:$C$354, Translation!A1+1, 0)","v":"Ontario"},{"$f":"IF((SUMIFS(Data!$E:$E,Data!$B:$B,'7'!B$3,Data!$C:$C,'7'!$A$3,Data!$D:$D,'7'!$A23,Data!$F:$F,'7'!$A$17))=0,\"-\",SUMIFS(Data!$E:$E,Data!$B:$B,'7'!B$3,Data!$C:$C,'7'!$A$3,Data!$D:$D,'7'!$A23,Data!$F:$F,'7'!$A$17))","v":8.3190660843356454},{"$f":"IF((SUMIFS(Data!$E:$E,Data!$B:$B,'7'!C$3,Data!$C:$C,'7'!$A$3,Data!$D:$D,'7'!$A23,Data!$F:$F,'7'!$A$17))=0,\"-\",SUMIFS(Data!$E:$E,Data!$B:$B,'7'!C$3,Data!$C:$C,'7'!$A$3,Data!$D:$D,'7'!$A23,Data!$F:$F,'7'!$A$17))","v":8.1964854809913561},{"$f":"IF((SUMIFS(Data!$E:$E,Data!$B:$B,'7'!D$3,Data!$C:$C,'7'!$A$3,Data!$D:$D,'7'!$A23,Data!$F:$F,'7'!$A$17))=0,\"-\",SUMIFS(Data!$E:$E,Data!$B:$B,'7'!D$3,Data!$C:$C,'7'!$A$3,Data!$D:$D,'7'!$A23,Data!$F:$F,'7'!$A$17))","v":8.3329117191935183},{"$f":"IF((SUMIFS(Data!$E:$E,Data!$B:$B,'7'!E$3,Data!$C:$C,'7'!$A$3,Data!$D:$D,'7'!$A23,Data!$F:$F,'7'!$A$17))=0,\"-\",SUMIFS(Data!$E:$E,Data!$B:$B,'7'!E$3,Data!$C:$C,'7'!$A$3,Data!$D:$D,'7'!$A23,Data!$F:$F,'7'!$A$17))","v":8.1937601501760753},{"$f":"IF((SUMIFS(Data!$E:$E,Data!$B:$B,'7'!F$3,Data!$C:$C,'7'!$A$3,Data!$D:$D,'7'!$A23,Data!$F:$F,'7'!$A$17))=0,\"-\",SUMIFS(Data!$E:$E,Data!$B:$B,'7'!F$3,Data!$C:$C,'7'!$A$3,Data!$D:$D,'7'!$A23,Data!$F:$F,'7'!$A$17))","v":8.3825103002071604},{"$f":"IF((SUMIFS(Data!$E:$E,Data!$B:$B,'7'!G$3,Data!$C:$C,'7'!$A$3,Data!$D:$D,'7'!$A23,Data!$F:$F,'7'!$A$17))=0,\"-\",SUMIFS(Data!$E:$E,Data!$B:$B,'7'!G$3,Data!$C:$C,'7'!$A$3,Data!$D:$D,'7'!$A23,Data!$F:$F,'7'!$A$17))","v":8.4453103308429434},{"$f":"IF((SUMIFS(Data!$E:$E,Data!$B:$B,'7'!H$3,Data!$C:$C,'7'!$A$3,Data!$D:$D,'7'!$A23,Data!$F:$F,'7'!$A$17))=0,\"-\",SUMIFS(Data!$E:$E,Data!$B:$B,'7'!H$3,Data!$C:$C,'7'!$A$3,Data!$D:$D,'7'!$A23,Data!$F:$F,'7'!$A$17))","v":8.5157704126738842},{"$f":"IF((SUMIFS(Data!$E:$E,Data!$B:$B,'7'!I$3,Data!$C:$C,'7'!$A$3,Data!$D:$D,'7'!$A23,Data!$F:$F,'7'!$A$17))=0,\"-\",SUMIFS(Data!$E:$E,Data!$B:$B,'7'!I$3,Data!$C:$C,'7'!$A$3,Data!$D:$D,'7'!$A23,Data!$F:$F,'7'!$A$17))","v":8.8046567546790708},{"$f":"IF((SUMIFS(Data!$E:$E,Data!$B:$B,'7'!J$3,Data!$C:$C,'7'!$A$3,Data!$D:$D,'7'!$A23,Data!$F:$F,'7'!$A$17))=0,\"-\",SUMIFS(Data!$E:$E,Data!$B:$B,'7'!J$3,Data!$C:$C,'7'!$A$3,Data!$D:$D,'7'!$A23,Data!$F:$F,'7'!$A$17))","v":8.3190660843356454},{"$f":"IF((SUMIFS(Data!$E:$E,Data!$B:$B,'7'!K$3,Data!$C:$C,'7'!$A$3,Data!$D:$D,'7'!$A23,Data!$F:$F,'7'!$A$17))=0,\"-\",SUMIFS(Data!$E:$E,Data!$B:$B,'7'!K$3,Data!$C:$C,'7'!$A$3,Data!$D:$D,'7'!$A23,Data!$F:$F,'7'!$A$17))","v":8.3825103002071604}]
[{"$f":"VLOOKUP(\"Manitoba\",Translation!$A$1:$C$354, Translation!A1+1, 0)","v":"Manitoba"},{"$f":"IF((SUMIFS(Data!$E:$E,Data!$B:$B,'7'!B$3,Data!$C:$C,'7'!$A$3,Data!$D:$D,'7'!$A24,Data!$F:$F,'7'!$A$17))=0,\"-\",SUMIFS(Data!$E:$E,Data!$B:$B,'7'!B$3,Data!$C:$C,'7'!$A$3,Data!$D:$D,'7'!$A24,Data!$F:$F,'7'!$A$17))","v":7.0920414179792877},{"$f":"IF((SUMIFS(Data!$E:$E,Data!$B:$B,'7'!C$3,Data!$C:$C,'7'!$A$3,Data!$D:$D,'7'!$A24,Data!$F:$F,'7'!$A$17))=0,\"-\",SUMIFS(Data!$E:$E,Data!$B:$B,'7'!C$3,Data!$C:$C,'7'!$A$3,Data!$D:$D,'7'!$A24,Data!$F:$F,'7'!$A$17))","v":6.8714684026412973},{"$f":"IF((SUMIFS(Data!$E:$E,Data!$B:$B,'7'!D$3,Data!$C:$C,'7'!$A$3,Data!$D:$D,'7'!$A24,Data!$F:$F,'7'!$A$17))=0,\"-\",SUMIFS(Data!$E:$E,Data!$B:$B,'7'!D$3,Data!$C:$C,'7'!$A$3,Data!$D:$D,'7'!$A24,Data!$F:$F,'7'!$A$17))","v":6.5494918475790644},{"$f":"IF((SUMIFS(Data!$E:$E,Data!$B:$B,'7'!E$3,Data!$C:$C,'7'!$A$3,Data!$D:$D,'7'!$A24,Data!$F:$F,'7'!$A$17))=0,\"-\",SUMIFS(Data!$E:$E,Data!$B:$B,'7'!E$3,Data!$C:$C,'7'!$A$3,Data!$D:$D,'7'!$A24,Data!$F:$F,'7'!$A$17))","v":6.5678306143059757},{"$f":"IF((SUMIFS(Data!$E:$E,Data!$B:$B,'7'!F$3,Data!$C:$C,'7'!$A$3,Data!$D:$D,'7'!$A24,Data!$F:$F,'7'!$A$17))=0,\"-\",SUMIFS(Data!$E:$E,Data!$B:$B,'7'!F$3,Data!$C:$C,'7'!$A$3,Data!$D:$D,'7'!$A24,Data!$F:$F,'7'!$A$17))","v":6.4582125802275252},{"$f":"IF((SUMIFS(Data!$E:$E,Data!$B:$B,'7'!G$3,Data!$C:$C,'7'!$A$3,Data!$D:$D,'7'!$A24,Data!$F:$F,'7'!$A$17))=0,\"-\",SUMIFS(Data!$E:$E,Data!$B:$B,'7'!G$3,Data!$C:$C,'7'!$A$3,Data!$D:$D,'7'!$A24,Data!$F:$F,'7'!$A$17))","v":6.4216221182988686},{"$f":"IF((SUMIFS(Data!$E:$E,Data!$B:$B,'7'!H$3,Data!$C:$C,'7'!$A$3,Data!$D:$D,'7'!$A24,Data!$F:$F,'7'!$A$17))=0,\"-\",SUMIFS(Data!$E:$E,Data!$B:$B,'7'!H$3,Data!$C:$C,'7'!$A$3,Data!$D:$D,'7'!$A24,Data!$F:$F,'7'!$A$17))","v":6.7039663686580164},{"$f":"IF((SUMIFS(Data!$E:$E,Data!$B:$B,'7'!I$3,Data!$C:$C,'7'!$A$3,Data!$D:$D,'7'!$A24,Data!$F:$F,'7'!$A$17))=0,\"-\",SUMIFS(Data!$E:$E,Data!$B:$B,'7'!I$3,Data!$C:$C,'7'!$A$3,Data!$D:$D,'7'!$A24,Data!$F:$F,'7'!$A$17))","v":6.5984857697383887},{"$f":"IF((SUMIFS(Data!$E:$E,Data!$B:$B,'7'!J$3,Data!$C:$C,'7'!$A$3,Data!$D:$D,'7'!$A24,Data!$F:$F,'7'!$A$17))=0,\"-\",SUMIFS(Data!$E:$E,Data!$B:$B,'7'!J$3,Data!$C:$C,'7'!$A$3,Data!$D:$D,'7'!$A24,Data!$F:$F,'7'!$A$17))","v":7.0920414179792877},{"$f":"IF((SUMIFS(Data!$E:$E,Data!$B:$B,'7'!K$3,Data!$C:$C,'7'!$A$3,Data!$D:$D,'7'!$A24,Data!$F:$F,'7'!$A$17))=0,\"-\",SUMIFS(Data!$E:$E,Data!$B:$B,'7'!K$3,Data!$C:$C,'7'!$A$3,Data!$D:$D,'7'!$A24,Data!$F:$F,'7'!$A$17))","v":6.4582125802275252}]
[{"$f":"VLOOKUP(\"Saskatchewan\",Translation!$A$1:$C$354, Translation!A1+1, 0)","v":"Saskatchewan"},{"$f":"IF((SUMIFS(Data!$E:$E,Data!$B:$B,'7'!B$3,Data!$C:$C,'7'!$A$3,Data!$D:$D,'7'!$A25,Data!$F:$F,'7'!$A$17))=0,\"-\",SUMIFS(Data!$E:$E,Data!$B:$B,'7'!B$3,Data!$C:$C,'7'!$A$3,Data!$D:$D,'7'!$A25,Data!$F:$F,'7'!$A$17))","v":6.986808031023851},{"$f":"IF((SUMIFS(Data!$E:$E,Data!$B:$B,'7'!C$3,Data!$C:$C,'7'!$A$3,Data!$D:$D,'7'!$A25,Data!$F:$F,'7'!$A$17))=0,\"-\",SUMIFS(Data!$E:$E,Data!$B:$B,'7'!C$3,Data!$C:$C,'7'!$A$3,Data!$D:$D,'7'!$A25,Data!$F:$F,'7'!$A$17))","v":6.7408407635482348},{"$f":"IF((SUMIFS(Data!$E:$E,Data!$B:$B,'7'!D$3,Data!$C:$C,'7'!$A$3,Data!$D:$D,'7'!$A25,Data!$F:$F,'7'!$A$17))=0,\"-\",SUMIFS(Data!$E:$E,Data!$B:$B,'7'!D$3,Data!$C:$C,'7'!$A$3,Data!$D:$D,'7'!$A25,Data!$F:$F,'7'!$A$17))","v":6.4505263270951598},{"$f":"IF((SUMIFS(Data!$E:$E,Data!$B:$B,'7'!E$3,Data!$C:$C,'7'!$A$3,Data!$D:$D,'7'!$A25,Data!$F:$F,'7'!$A$17))=0,\"-\",SUMIFS(Data!$E:$E,Data!$B:$B,'7'!E$3,Data!$C:$C,'7'!$A$3,Data!$D:$D,'7'!$A25,Data!$F:$F,'7'!$A$17))","v":6.4815301623793307},{"$f":"IF((SUMIFS(Data!$E:$E,Data!$B:$B,'7'!F$3,Data!$C:$C,'7'!$A$3,Data!$D:$D,'7'!$A25,Data!$F:$F,'7'!$A$17))=0,\"-\",SUMIFS(Data!$E:$E,Data!$B:$B,'7'!F$3,Data!$C:$C,'7'!$A$3,Data!$D:$D,'7'!$A25,Data!$F:$F,'7'!$A$17))","v":6.7373368151768576},{"$f":"IF((SUMIFS(Data!$E:$E,Data!$B:$B,'7'!G$3,Data!$C:$C,'7'!$A$3,Data!$D:$D,'7'!$A25,Data!$F:$F,'7'!$A$17))=0,\"-\",SUMIFS(Data!$E:$E,Data!$B:$B,'7'!G$3,Data!$C:$C,'7'!$A$3,Data!$D:$D,'7'!$A25,Data!$F:$F,'7'!$A$17))","v":6.7423284398452816},{"$f":"IF((SUMIFS(Data!$E:$E,Data!$B:$B,'7'!H$3,Data!$C:$C,'7'!$A$3,Data!$D:$D,'7'!$A25,Data!$F:$F,'7'!$A$17))=0,\"-\",SUMIFS(Data!$E:$E,Data!$B:$B,'7'!H$3,Data!$C:$C,'7'!$A$3,Data!$D:$D,'7'!$A25,Data!$F:$F,'7'!$A$17))","v":6.6972632406866071},{"$f":"IF((SUMIFS(Data!$E:$E,Data!$B:$B,'7'!I$3,Data!$C:$C,'7'!$A$3,Data!$D:$D,'7'!$A25,Data!$F:$F,'7'!$A$17))=0,\"-\",SUMIFS(Data!$E:$E,Data!$B:$B,'7'!I$3,Data!$C:$C,'7'!$A$3,Data!$D:$D,'7'!$A25,Data!$F:$F,'7'!$A$17))","v":6.6619787439225009},{"$f":"IF((SUMIFS(Data!$E:$E,Data!$B:$B,'7'!J$3,Data!$C:$C,'7'!$A$3,Data!$D:$D,'7'!$A25,Data!$F:$F,'7'!$A$17))=0,\"-\",SUMIFS(Data!$E:$E,Data!$B:$B,'7'!J$3,Data!$C:$C,'7'!$A$3,Data!$D:$D,'7'!$A25,Data!$F:$F,'7'!$A$17))","v":6.986808031023851},{"$f":"IF((SUMIFS(Data!$E:$E,Data!$B:$B,'7'!K$3,Data!$C:$C,'7'!$A$3,Data!$D:$D,'7'!$A25,Data!$F:$F,'7'!$A$17))=0,\"-\",SUMIFS(Data!$E:$E,Data!$B:$B,'7'!K$3,Data!$C:$C,'7'!$A$3,Data!$D:$D,'7'!$A25,Data!$F:$F,'7'!$A$17))","v":6.7373368151768576}]
[{"$f":"VLOOKUP(\"Alberta\",Translation!$A$1:$C$354, Translation!A1+1, 0)","v":"Alberta"},{"$f":"IF((SUMIFS(Data!$E:$E,Data!$B:$B,'7'!B$3,Data!$C:$C,'7'!$A$3,Data!$D:$D,'7'!$A26,Data!$F:$F,'7'!$A$17))=0,\"-\",SUMIFS(Data!$E:$E,Data!$B:$B,'7'!B$3,Data!$C:$C,'7'!$A$3,Data!$D:$D,'7'!$A26,Data!$F:$F,'7'!$A$17))","v":7.3941123203503887},{"$f":"IF((SUMIFS(Data!$E:$E,Data!$B:$B,'7'!C$3,Data!$C:$C,'7'!$A$3,Data!$D:$D,'7'!$A26,Data!$F:$F,'7'!$A$17))=0,\"-\",SUMIFS(Data!$E:$E,Data!$B:$B,'7'!C$3,Data!$C:$C,'7'!$A$3,Data!$D:$D,'7'!$A26,Data!$F:$F,'7'!$A$17))","v":7.2712872161940814},{"$f":"IF((SUMIFS(Data!$E:$E,Data!$B:$B,'7'!D$3,Data!$C:$C,'7'!$A$3,Data!$D:$D,'7'!$A26,Data!$F:$F,'7'!$A$17))=0,\"-\",SUMIFS(Data!$E:$E,Data!$B:$B,'7'!D$3,Data!$C:$C,'7'!$A$3,Data!$D:$D,'7'!$A26,Data!$F:$F,'7'!$A$17))","v":6.9555282326445251},{"$f":"IF((SUMIFS(Data!$E:$E,Data!$B:$B,'7'!E$3,Data!$C:$C,'7'!$A$3,Data!$D:$D,'7'!$A26,Data!$F:$F,'7'!$A$17))=0,\"-\",SUMIFS(Data!$E:$E,Data!$B:$B,'7'!E$3,Data!$C:$C,'7'!$A$3,Data!$D:$D,'7'!$A26,Data!$F:$F,'7'!$A$17))","v":6.9589946236621927},{"$f":"IF((SUMIFS(Data!$E:$E,Data!$B:$B,'7'!F$3,Data!$C:$C,'7'!$A$3,Data!$D:$D,'7'!$A26,Data!$F:$F,'7'!$A$17))=0,\"-\",SUMIFS(Data!$E:$E,Data!$B:$B,'7'!F$3,Data!$C:$C,'7'!$A$3,Data!$D:$D,'7'!$A26,Data!$F:$F,'7'!$A$17))","v":6.9055332413161192},{"$f":"IF((SUMIFS(Data!$E:$E,Data!$B:$B,'7'!G$3,Data!$C:$C,'7'!$A$3,Data!$D:$D,'7'!$A26,Data!$F:$F,'7'!$A$17))=0,\"-\",SUMIFS(Data!$E:$E,Data!$B:$B,'7'!G$3,Data!$C:$C,'7'!$A$3,Data!$D:$D,'7'!$A26,Data!$F:$F,'7'!$A$17))","v":6.9828163234449212},{"$f":"IF((SUMIFS(Data!$E:$E,Data!$B:$B,'7'!H$3,Data!$C:$C,'7'!$A$3,Data!$D:$D,'7'!$A26,Data!$F:$F,'7'!$A$17))=0,\"-\",SUMIFS(Data!$E:$E,Data!$B:$B,'7'!H$3,Data!$C:$C,'7'!$A$3,Data!$D:$D,'7'!$A26,Data!$F:$F,'7'!$A$17))","v":7.0917091883293608},{"$f":"IF((SUMIFS(Data!$E:$E,Data!$B:$B,'7'!I$3,Data!$C:$C,'7'!$A$3,Data!$D:$D,'7'!$A26,Data!$F:$F,'7'!$A$17))=0,\"-\",SUMIFS(Data!$E:$E,Data!$B:$B,'7'!I$3,Data!$C:$C,'7'!$A$3,Data!$D:$D,'7'!$A26,Data!$F:$F,'7'!$A$17))","v":6.9182318917488317},{"$f":"IF((SUMIFS(Data!$E:$E,Data!$B:$B,'7'!J$3,Data!$C:$C,'7'!$A$3,Data!$D:$D,'7'!$A26,Data!$F:$F,'7'!$A$17))=0,\"-\",SUMIFS(Data!$E:$E,Data!$B:$B,'7'!J$3,Data!$C:$C,'7'!$A$3,Data!$D:$D,'7'!$A26,Data!$F:$F,'7'!$A$17))","v":7.3941123203503887},{"$f":"IF((SUMIFS(Data!$E:$E,Data!$B:$B,'7'!K$3,Data!$C:$C,'7'!$A$3,Data!$D:$D,'7'!$A26,Data!$F:$F,'7'!$A$17))=0,\"-\",SUMIFS(Data!$E:$E,Data!$B:$B,'7'!K$3,Data!$C:$C,'7'!$A$3,Data!$D:$D,'7'!$A26,Data!$F:$F,'7'!$A$17))","v":6.9055332413161192}]
[{"$f":"VLOOKUP(\"British Columbia\",Translation!$A$1:$C$354, Translation!A1+1, 0)","v":"Colombie-Britannique"},{"$f":"IF((SUMIFS(Data!$E:$E,Data!$B:$B,'7'!B$3,Data!$C:$C,'7'!$A$3,Data!$D:$D,'7'!$A27,Data!$F:$F,'7'!$A$17))=0,\"-\",SUMIFS(Data!$E:$E,Data!$B:$B,'7'!B$3,Data!$C:$C,'7'!$A$3,Data!$D:$D,'7'!$A27,Data!$F:$F,'7'!$A$17))","v":8.5002924194674865},{"$f":"IF((SUMIFS(Data!$E:$E,Data!$B:$B,'7'!C$3,Data!$C:$C,'7'!$A$3,Data!$D:$D,'7'!$A27,Data!$F:$F,'7'!$A$17))=0,\"-\",SUMIFS(Data!$E:$E,Data!$B:$B,'7'!C$3,Data!$C:$C,'7'!$A$3,Data!$D:$D,'7'!$A27,Data!$F:$F,'7'!$A$17))","v":8.2916407453097207},{"$f":"IF((SUMIFS(Data!$E:$E,Data!$B:$B,'7'!D$3,Data!$C:$C,'7'!$A$3,Data!$D:$D,'7'!$A27,Data!$F:$F,'7'!$A$17))=0,\"-\",SUMIFS(Data!$E:$E,Data!$B:$B,'7'!D$3,Data!$C:$C,'7'!$A$3,Data!$D:$D,'7'!$A27,Data!$F:$F,'7'!$A$17))","v":8.6565987623310434},{"$f":"IF((SUMIFS(Data!$E:$E,Data!$B:$B,'7'!E$3,Data!$C:$C,'7'!$A$3,Data!$D:$D,'7'!$A27,Data!$F:$F,'7'!$A$17))=0,\"-\",SUMIFS(Data!$E:$E,Data!$B:$B,'7'!E$3,Data!$C:$C,'7'!$A$3,Data!$D:$D,'7'!$A27,Data!$F:$F,'7'!$A$17))","v":8.570547417855936},{"$f":"IF((SUMIFS(Data!$E:$E,Data!$B:$B,'7'!F$3,Data!$C:$C,'7'!$A$3,Data!$D:$D,'7'!$A27,Data!$F:$F,'7'!$A$17))=0,\"-\",SUMIFS(Data!$E:$E,Data!$B:$B,'7'!F$3,Data!$C:$C,'7'!$A$3,Data!$D:$D,'7'!$A27,Data!$F:$F,'7'!$A$17))","v":8.7968692065987},{"$f":"IF((SUMIFS(Data!$E:$E,Data!$B:$B,'7'!G$3,Data!$C:$C,'7'!$A$3,Data!$D:$D,'7'!$A27,Data!$F:$F,'7'!$A$17))=0,\"-\",SUMIFS(Data!$E:$E,Data!$B:$B,'7'!G$3,Data!$C:$C,'7'!$A$3,Data!$D:$D,'7'!$A27,Data!$F:$F,'7'!$A$17))","v":8.8160311550457511},{"$f":"IF((SUMIFS(Data!$E:$E,Data!$B:$B,'7'!H$3,Data!$C:$C,'7'!$A$3,Data!$D:$D,'7'!$A27,Data!$F:$F,'7'!$A$17))=0,\"-\",SUMIFS(Data!$E:$E,Data!$B:$B,'7'!H$3,Data!$C:$C,'7'!$A$3,Data!$D:$D,'7'!$A27,Data!$F:$F,'7'!$A$17))","v":8.8840917342280807},{"$f":"IF((SUMIFS(Data!$E:$E,Data!$B:$B,'7'!I$3,Data!$C:$C,'7'!$A$3,Data!$D:$D,'7'!$A27,Data!$F:$F,'7'!$A$17))=0,\"-\",SUMIFS(Data!$E:$E,Data!$B:$B,'7'!I$3,Data!$C:$C,'7'!$A$3,Data!$D:$D,'7'!$A27,Data!$F:$F,'7'!$A$17))","v":8.7846397644161112},{"$f":"IF((SUMIFS(Data!$E:$E,Data!$B:$B,'7'!J$3,Data!$C:$C,'7'!$A$3,Data!$D:$D,'7'!$A27,Data!$F:$F,'7'!$A$17))=0,\"-\",SUMIFS(Data!$E:$E,Data!$B:$B,'7'!J$3,Data!$C:$C,'7'!$A$3,Data!$D:$D,'7'!$A27,Data!$F:$F,'7'!$A$17))","v":8.5002924194674865},{"$f":"IF((SUMIFS(Data!$E:$E,Data!$B:$B,'7'!K$3,Data!$C:$C,'7'!$A$3,Data!$D:$D,'7'!$A27,Data!$F:$F,'7'!$A$17))=0,\"-\",SUMIFS(Data!$E:$E,Data!$B:$B,'7'!K$3,Data!$C:$C,'7'!$A$3,Data!$D:$D,'7'!$A27,Data!$F:$F,'7'!$A$17))","v":8.7968692065987}]
[{"$f":"VLOOKUP(\"Territories\",Translation!$A$1:$C$354, Translation!A1+1, 0)","v":"Territoires"},{"$f":"IF((SUMIFS(Data!$E:$E,Data!$B:$B,'7'!B$3,Data!$C:$C,'7'!$A$3,Data!$D:$D,'7'!$A28,Data!$F:$F,'7'!$A$17))=0,\"-\",SUMIFS(Data!$E:$E,Data!$B:$B,'7'!B$3,Data!$C:$C,'7'!$A$3,Data!$D:$D,'7'!$A28,Data!$F:$F,'7'!$A$17))","v":7.5893733463531552},{"$f":"IF((SUMIFS(Data!$E:$E,Data!$B:$B,'7'!C$3,Data!$C:$C,'7'!$A$3,Data!$D:$D,'7'!$A28,Data!$F:$F,'7'!$A$17))=0,\"-\",SUMIFS(Data!$E:$E,Data!$B:$B,'7'!C$3,Data!$C:$C,'7'!$A$3,Data!$D:$D,'7'!$A28,Data!$F:$F,'7'!$A$17))","v":8.396970131767107},{"$f":"IF((SUMIFS(Data!$E:$E,Data!$B:$B,'7'!D$3,Data!$C:$C,'7'!$A$3,Data!$D:$D,'7'!$A28,Data!$F:$F,'7'!$A$17))=0,\"-\",SUMIFS(Data!$E:$E,Data!$B:$B,'7'!D$3,Data!$C:$C,'7'!$A$3,Data!$D:$D,'7'!$A28,Data!$F:$F,'7'!$A$17))","v":7.808062195887814},{"$f":"IF((SUMIFS(Data!$E:$E,Data!$B:$B,'7'!E$3,Data!$C:$C,'7'!$A$3,Data!$D:$D,'7'!$A28,Data!$F:$F,'7'!$A$17))=0,\"-\",SUMIFS(Data!$E:$E,Data!$B:$B,'7'!E$3,Data!$C:$C,'7'!$A$3,Data!$D:$D,'7'!$A28,Data!$F:$F,'7'!$A$17))","v":7.9903338233957024},{"$f":"IF((SUMIFS(Data!$E:$E,Data!$B:$B,'7'!F$3,Data!$C:$C,'7'!$A$3,Data!$D:$D,'7'!$A28,Data!$F:$F,'7'!$A$17))=0,\"-\",SUMIFS(Data!$E:$E,Data!$B:$B,'7'!F$3,Data!$C:$C,'7'!$A$3,Data!$D:$D,'7'!$A28,Data!$F:$F,'7'!$A$17))","v":8.7130818226341393},{"$f":"IF((SUMIFS(Data!$E:$E,Data!$B:$B,'7'!G$3,Data!$C:$C,'7'!$A$3,Data!$D:$D,'7'!$A28,Data!$F:$F,'7'!$A$17))=0,\"-\",SUMIFS(Data!$E:$E,Data!$B:$B,'7'!G$3,Data!$C:$C,'7'!$A$3,Data!$D:$D,'7'!$A28,Data!$F:$F,'7'!$A$17))","v":9.5196391398566238},{"$f":"IF((SUMIFS(Data!$E:$E,Data!$B:$B,'7'!H$3,Data!$C:$C,'7'!$A$3,Data!$D:$D,'7'!$A28,Data!$F:$F,'7'!$A$17))=0,\"-\",SUMIFS(Data!$E:$E,Data!$B:$B,'7'!H$3,Data!$C:$C,'7'!$A$3,Data!$D:$D,'7'!$A28,Data!$F:$F,'7'!$A$17))","v":8.5895327714478746},{"$f":"IF((SUMIFS(Data!$E:$E,Data!$B:$B,'7'!I$3,Data!$C:$C,'7'!$A$3,Data!$D:$D,'7'!$A28,Data!$F:$F,'7'!$A$17))=0,\"-\",SUMIFS(Data!$E:$E,Data!$B:$B,'7'!I$3,Data!$C:$C,'7'!$A$3,Data!$D:$D,'7'!$A28,Data!$F:$F,'7'!$A$17))","v":8.55262943952836},{"$f":"IF((SUMIFS(Data!$E:$E,Data!$B:$B,'7'!J$3,Data!$C:$C,'7'!$A$3,Data!$D:$D,'7'!$A28,Data!$F:$F,'7'!$A$17))=0,\"-\",SUMIFS(Data!$E:$E,Data!$B:$B,'7'!J$3,Data!$C:$C,'7'!$A$3,Data!$D:$D,'7'!$A28,Data!$F:$F,'7'!$A$17))","v":7.5893733463531552},{"$f":"IF((SUMIFS(Data!$E:$E,Data!$B:$B,'7'!K$3,Data!$C:$C,'7'!$A$3,Data!$D:$D,'7'!$A28,Data!$F:$F,'7'!$A$17))=0,\"-\",SUMIFS(Data!$E:$E,Data!$B:$B,'7'!K$3,Data!$C:$C,'7'!$A$3,Data!$D:$D,'7'!$A28,Data!$F:$F,'7'!$A$17))","v":8.7130818226341393}]
[{"$f":"VLOOKUP(\"Distribution based on loan amounts, not number of loans.\",Translation!$A$1:$C$354, Translation!A1+1, 0)","v":"La répartition est établie d'après le montant, plutôt que le nombre de prêts assurés."}]
[{"$f":"VLOOKUP(\"The sum of all breakdown categories may not add up to 100 due to rounding.\",Translation!$A$1:$C$354, Translation!A1+1, 0)","v":"Les chiffres ayant été arrondis, il se peut que la somme de l'ensemble des catégories n'égale pas 100 %."}]
[]
[{"$f":"VLOOKUP(\"Loans insured in period by loan-to-value (LTV) ratio based on original property value (%)\",Translation!$A$1:$C$354, Translation!A1+1, 0)","v":"Prêts hypothécaires assurés au cours de la période selon le rapport prêt-valeur (RPV) établi d’après la valeur initiale de la propriété (%)"}]
[{"$f":"VLOOKUP(\"PORTFOLIO\",Translation!$A$1:$C$354, Translation!A1+1, 0)","v":"ASSURANCE DE PORTEFEUILLE"},{"$f":"VLOOKUP(\"Q1 2020\",Translation!$A$1:$C$354, Translation!$A$1+1, 0)","v":"T1 2020"},{"$f":"VLOOKUP(\"Q4 2019\",Translation!$A$1:$C$354, Translation!$A$1+1, 0)","v":"T4 2019"},{"$f":"VLOOKUP(\"Q3 2019\",Translation!$A$1:$C$354, Translation!$A$1+1, 0)","v":"T3 2019"},{"$f":"VLOOKUP(\"Q2 2019\",Translation!$A$1:$C$354, Translation!$A$1+1, 0)","v":"T2 2019"},{"$f":"VLOOKUP(\"Q1 2019\",Translation!$A$1:$C$354, Translation!$A$1+1, 0)","v":"T1 2019"},{"$f":"VLOOKUP(\"Q4 2018\",Translation!$A$1:$C$354, Translation!$A$1+1, 0)","v":"T4 2018"},{"$f":"VLOOKUP(\"Q3 2018\",Translation!$A$1:$C$354, Translation!$A$1+1, 0)","v":"T3 2018"},{"$f":"VLOOKUP(\"Q2 2018\",Translation!$A$1:$C$354, Translation!$A$1+1, 0)","v":"T2 2018"},{"$f":"VLOOKUP(\"YTD 2020\",Translation!$A$1:$C$354, Translation!$A$1+1, 0)","v":"Cumul 2020"},{"$f":"VLOOKUP(\"YTD 2019\",Translation!$A$1:$C$354, Translation!$A$1+1, 0)","v":"Cumul 2019"}]
[" <= 50 %",{"$f":"SUMIFS(Data!$E:$E,Data!$B:$B,'7'!B$33,Data!$C:$C,'7'!$A$33,Data!$H:$H,'7'!$A34,Data!$F:$F,'7'!$A$32)","v":19.531492932792361},{"$f":"SUMIFS(Data!$E:$E,Data!$B:$B,'7'!C$33,Data!$C:$C,'7'!$A$33,Data!$H:$H,'7'!$A34,Data!$F:$F,'7'!$A$32)","v":15.892458653727846},{"$f":"SUMIFS(Data!$E:$E,Data!$B:$B,'7'!D$33,Data!$C:$C,'7'!$A$33,Data!$H:$H,'7'!$A34,Data!$F:$F,'7'!$A$32)","v":25.610197961840317},{"$f":"SUMIFS(Data!$E:$E,Data!$B:$B,'7'!E$33,Data!$C:$C,'7'!$A$33,Data!$H:$H,'7'!$A34,Data!$F:$F,'7'!$A$32)","v":20.45654281029114},{"$f":"SUMIFS(Data!$E:$E,Data!$B:$B,'7'!F$33,Data!$C:$C,'7'!$A$33,Data!$H:$H,'7'!$A34,Data!$F:$F,'7'!$A$32)","v":24.967129657408179},{"$f":"SUMIFS(Data!$E:$E,Data!$B:$B,'7'!G$33,Data!$C:$C,'7'!$A$33,Data!$H:$H,'7'!$A34,Data!$F:$F,'7'!$A$32)","v":24.541027024580902},{"$f":"SUMIFS(Data!$E:$E,Data!$B:$B,'7'!H$33,Data!$C:$C,'7'!$A$33,Data!$H:$H,'7'!$A34,Data!$F:$F,'7'!$A$32)","v":29.259882886292775},{"$f":"SUMIFS(Data!$E:$E,Data!$B:$B,'7'!I$33,Data!$C:$C,'7'!$A$33,Data!$H:$H,'7'!$A34,Data!$F:$F,'7'!$A$32)","v":26.375194265868497},{"$f":"SUMIFS(Data!$E:$E,Data!$B:$B,'7'!J$33,Data!$C:$C,'7'!$A$33,Data!$H:$H,'7'!$A34,Data!$F:$F,'7'!$A$32)","v":19.531492932792361},{"$f":"SUMIFS(Data!$E:$E,Data!$B:$B,'7'!K$33,Data!$C:$C,'7'!$A$33,Data!$H:$H,'7'!$A34,Data!$F:$F,'7'!$A$32)","v":24.967129657408179}]
[" > 50 % <= 55 %",{"$f":"SUMIFS(Data!$E:$E,Data!$B:$B,'7'!B$33,Data!$C:$C,'7'!$A$33,Data!$H:$H,'7'!$A35,Data!$F:$F,'7'!$A$32)","v":5.5192799125761267},{"$f":"SUMIFS(Data!$E:$E,Data!$B:$B,'7'!C$33,Data!$C:$C,'7'!$A$33,Data!$H:$H,'7'!$A35,Data!$F:$F,'7'!$A$32)","v":5.223986171296894},{"$f":"SUMIFS(Data!$E:$E,Data!$B:$B,'7'!D$33,Data!$C:$C,'7'!$A$33,Data!$H:$H,'7'!$A35,Data!$F:$F,'7'!$A$32)","v":6.8994354892871437},{"$f":"SUMIFS(Data!$E:$E,Data!$B:$B,'7'!E$33,Data!$C:$C,'7'!$A$33,Data!$H:$H,'7'!$A35,Data!$F:$F,'7'!$A$32)","v":5.4329842068953802},{"$f":"SUMIFS(Data!$E:$E,Data!$B:$B,'7'!F$33,Data!$C:$C,'7'!$A$33,Data!$H:$H,'7'!$A35,Data!$F:$F,'7'!$A$32)","v":7.5597851188118579},{"$f":"SUMIFS(Data!$E:$E,Data!$B:$B,'7'!G$33,Data!$C:$C,'7'!$A$33,Data!$H:$H,'7'!$A35,Data!$F:$F,'7'!$A$32)","v":7.022841271067211},{"$f":"SUMIFS(Data!$E:$E,Data!$B:$B,'7'!H$33,Data!$C:$C,'7'!$A$33,Data!$H:$H,'7'!$A35,Data!$F:$F,'7'!$A$32)","v":9.2471758123750121},{"$f":"SUMIFS(Data!$E:$E,Data!$B:$B,'7'!I$33,Data!$C:$C,'7'!$A$33,Data!$H:$H,'7'!$A35,Data!$F:$F,'7'!$A$32)","v":7.0961998199854932},{"$f":"SUMIFS(Data!$E:$E,Data!$B:$B,'7'!J$33,Data!$C:$C,'7'!$A$33,Data!$H:$H,'7'!$A35,Data!$F:$F,'7'!$A$32)","v":5.5192799125761267},{"$f":"SUMIFS(Data!$E:$E,Data!$B:$B,'7'!K$33,Data!$C:$C,'7'!$A$33,Data!$H:$H,'7'!$A35,Data!$F:$F,'7'!$A$32)","v":7.5597851188118579}]
[" > 55 % <= 60 %",{"$f":"SUMIFS(Data!$E:$E,Data!$B:$B,'7'!B$33,Data!$C:$C,'7'!$A$33,Data!$H:$H,'7'!$A36,Data!$F:$F,'7'!$A$32)","v":6.3186458567698223},{"$f":"SUMIFS(Data!$E:$E,Data!$B:$B,'7'!C$33,Data!$C:$C,'7'!$A$33,Data!$H:$H,'7'!$A36,Data!$F:$F,'7'!$A$32)","v":6.5129642719137948},{"$f":"SUMIFS(Data!$E:$E,Data!$B:$B,'7'!D$33,Data!$C:$C,'7'!$A$33,Data!$H:$H,'7'!$A36,Data!$F:$F,'7'!$A$32)","v":9.8157773658356291},{"$f":"SUMIFS(Data!$E:$E,Data!$B:$B,'7'!E$33,Data!$C:$C,'7'!$A$33,Data!$H:$H,'7'!$A36,Data!$F:$F,'7'!$A$32)","v":6.4593886740570818},{"$f":"SUMIFS(Data!$E:$E,Data!$B:$B,'7'!F$33,Data!$C:$C,'7'!$A$33,Data!$H:$H,'7'!$A36,Data!$F:$F,'7'!$A$32)","v":9.4626447822102318},{"$f":"SUMIFS(Data!$E:$E,Data!$B:$B,'7'!G$33,Data!$C:$C,'7'!$A$33,Data!$H:$H,'7'!$A36,Data!$F:$F,'7'!$A$32)","v":8.0945048145965863},{"$f":"SUMIFS(Data!$E:$E,Data!$B:$B,'7'!H$33,Data!$C:$C,'7'!$A$33,Data!$H:$H,'7'!$A36,Data!$F:$F,'7'!$A$32)","v":10.071593122494701},{"$f":"SUMIFS(Data!$E:$E,Data!$B:$B,'7'!I$33,Data!$C:$C,'7'!$A$33,Data!$H:$H,'7'!$A36,Data!$F:$F,'7'!$A$32)","v":9.0507844067715553},{"$f":"SUMIFS(Data!$E:$E,Data!$B:$B,'7'!J$33,Data!$C:$C,'7'!$A$33,Data!$H:$H,'7'!$A36,Data!$F:$F,'7'!$A$32)","v":6.3186458567698223},{"$f":"SUMIFS(Data!$E:$E,Data!$B:$B,'7'!K$33,Data!$C:$C,'7'!$A$33,Data!$H:$H,'7'!$A36,Data!$F:$F,'7'!$A$32)","v":9.4626447822102318}]
[" > 60 % <= 65 %",{"$f":"SUMIFS(Data!$E:$E,Data!$B:$B,'7'!B$33,Data!$C:$C,'7'!$A$33,Data!$H:$H,'7'!$A37,Data!$F:$F,'7'!$A$32)","v":8.2295380697835689},{"$f":"SUMIFS(Data!$E:$E,Data!$B:$B,'7'!C$33,Data!$C:$C,'7'!$A$33,Data!$H:$H,'7'!$A37,Data!$F:$F,'7'!$A$32)","v":8.6389122903950817},{"$f":"SUMIFS(Data!$E:$E,Data!$B:$B,'7'!D$33,Data!$C:$C,'7'!$A$33,Data!$H:$H,'7'!$A37,Data!$F:$F,'7'!$A$32)","v":12.560888668247323},{"$f":"SUMIFS(Data!$E:$E,Data!$B:$B,'7'!E$33,Data!$C:$C,'7'!$A$33,Data!$H:$H,'7'!$A37,Data!$F:$F,'7'!$A$32)","v":6.6765690797714896},{"$f":"SUMIFS(Data!$E:$E,Data!$B:$B,'7'!F$33,Data!$C:$C,'7'!$A$33,Data!$H:$H,'7'!$A37,Data!$F:$F,'7'!$A$32)","v":16.451481649118438},{"$f":"SUMIFS(Data!$E:$E,Data!$B:$B,'7'!G$33,Data!$C:$C,'7'!$A$33,Data!$H:$H,'7'!$A37,Data!$F:$F,'7'!$A$32)","v":11.95175888099617},{"$f":"SUMIFS(Data!$E:$E,Data!$B:$B,'7'!H$33,Data!$C:$C,'7'!$A$33,Data!$H:$H,'7'!$A37,Data!$F:$F,'7'!$A$32)","v":13.312143578164131},{"$f":"SUMIFS(Data!$E:$E,Data!$B:$B,'7'!I$33,Data!$C:$C,'7'!$A$33,Data!$H:$H,'7'!$A37,Data!$F:$F,'7'!$A$32)","v":13.399279374998169},{"$f":"SUMIFS(Data!$E:$E,Data!$B:$B,'7'!J$33,Data!$C:$C,'7'!$A$33,Data!$H:$H,'7'!$A37,Data!$F:$F,'7'!$A$32)","v":8.2295380697835689},{"$f":"SUMIFS(Data!$E:$E,Data!$B:$B,'7'!K$33,Data!$C:$C,'7'!$A$33,Data!$H:$H,'7'!$A37,Data!$F:$F,'7'!$A$32)","v":16.451481649118438}]
[" > 65 % <= 70 %",{"$f":"SUMIFS(Data!$E:$E,Data!$B:$B,'7'!B$33,Data!$C:$C,'7'!$A$33,Data!$H:$H,'7'!$A38,Data!$F:$F,'7'!$A$32)","v":8.6932137450770881},{"$f":"SUMIFS(Data!$E:$E,Data!$B:$B,'7'!C$33,Data!$C:$C,'7'!$A$33,Data!$H:$H,'7'!$A38,Data!$F:$F,'7'!$A$32)","v":8.8335945688610149},{"$f":"SUMIFS(Data!$E:$E,Data!$B:$B,'7'!D$33,Data!$C:$C,'7'!$A$33,Data!$H:$H,'7'!$A38,Data!$F:$F,'7'!$A$32)","v":12.380419837462812},{"$f":"SUMIFS(Data!$E:$E,Data!$B:$B,'7'!E$33,Data!$C:$C,'7'!$A$33,Data!$H:$H,'7'!$A38,Data!$F:$F,'7'!$A$32)","v":8.0240081640475189},{"$f":"SUMIFS(Data!$E:$E,Data!$B:$B,'7'!F$33,Data!$C:$C,'7'!$A$33,Data!$H:$H,'7'!$A38,Data!$F:$F,'7'!$A$32)","v":12.24989132503014},{"$f":"SUMIFS(Data!$E:$E,Data!$B:$B,'7'!G$33,Data!$C:$C,'7'!$A$33,Data!$H:$H,'7'!$A38,Data!$F:$F,'7'!$A$32)","v":10.47750734284535},{"$f":"SUMIFS(Data!$E:$E,Data!$B:$B,'7'!H$33,Data!$C:$C,'7'!$A$33,Data!$H:$H,'7'!$A38,Data!$F:$F,'7'!$A$32)","v":11.474288959139196},{"$f":"SUMIFS(Data!$E:$E,Data!$B:$B,'7'!I$33,Data!$C:$C,'7'!$A$33,Data!$H:$H,'7'!$A38,Data!$F:$F,'7'!$A$32)","v":10.920251729009106},{"$f":"SUMIFS(Data!$E:$E,Data!$B:$B,'7'!J$33,Data!$C:$C,'7'!$A$33,Data!$H:$H,'7'!$A38,Data!$F:$F,'7'!$A$32)","v":8.6932137450770881},{"$f":"SUMIFS(Data!$E:$E,Data!$B:$B,'7'!K$33,Data!$C:$C,'7'!$A$33,Data!$H:$H,'7'!$A38,Data!$F:$F,'7'!$A$32)","v":12.24989132503014}]
[" > 70 % <= 75 %",{"$f":"SUMIFS(Data!$E:$E,Data!$B:$B,'7'!B$33,Data!$C:$C,'7'!$A$33,Data!$H:$H,'7'!$A39,Data!$F:$F,'7'!$A$32)","v":9.3705952312619196},{"$f":"SUMIFS(Data!$E:$E,Data!$B:$B,'7'!C$33,Data!$C:$C,'7'!$A$33,Data!$H:$H,'7'!$A39,Data!$F:$F,'7'!$A$32)","v":10.621222235982962},{"$f":"SUMIFS(Data!$E:$E,Data!$B:$B,'7'!D$33,Data!$C:$C,'7'!$A$33,Data!$H:$H,'7'!$A39,Data!$F:$F,'7'!$A$32)","v":11.316980721704065},{"$f":"SUMIFS(Data!$E:$E,Data!$B:$B,'7'!E$33,Data!$C:$C,'7'!$A$33,Data!$H:$H,'7'!$A39,Data!$F:$F,'7'!$A$32)","v":11.301998072337696},{"$f":"SUMIFS(Data!$E:$E,Data!$B:$B,'7'!F$33,Data!$C:$C,'7'!$A$33,Data!$H:$H,'7'!$A39,Data!$F:$F,'7'!$A$32)","v":8.8785889617176945},{"$f":"SUMIFS(Data!$E:$E,Data!$B:$B,'7'!G$33,Data!$C:$C,'7'!$A$33,Data!$H:$H,'7'!$A39,Data!$F:$F,'7'!$A$32)","v":10.542134614850118},{"$f":"SUMIFS(Data!$E:$E,Data!$B:$B,'7'!H$33,Data!$C:$C,'7'!$A$33,Data!$H:$H,'7'!$A39,Data!$F:$F,'7'!$A$32)","v":12.10429142513231},{"$f":"SUMIFS(Data!$E:$E,Data!$B:$B,'7'!I$33,Data!$C:$C,'7'!$A$33,Data!$H:$H,'7'!$A39,Data!$F:$F,'7'!$A$32)","v":13.561792183675411},{"$f":"SUMIFS(Data!$E:$E,Data!$B:$B,'7'!J$33,Data!$C:$C,'7'!$A$33,Data!$H:$H,'7'!$A39,Data!$F:$F,'7'!$A$32)","v":9.3705952312619196},{"$f":"SUMIFS(Data!$E:$E,Data!$B:$B,'7'!K$33,Data!$C:$C,'7'!$A$33,Data!$H:$H,'7'!$A39,Data!$F:$F,'7'!$A$32)","v":8.8785889617176945}]
[" > 75 % <= 80 %",{"$f":"SUMIFS(Data!$E:$E,Data!$B:$B,'7'!B$33,Data!$C:$C,'7'!$A$33,Data!$H:$H,'7'!$A40,Data!$F:$F,'7'!$A$32)","v":42.337234251739105},{"$f":"SUMIFS(Data!$E:$E,Data!$B:$B,'7'!C$33,Data!$C:$C,'7'!$A$33,Data!$H:$H,'7'!$A40,Data!$F:$F,'7'!$A$32)","v":44.276861807822407},{"$f":"SUMIFS(Data!$E:$E,Data!$B:$B,'7'!D$33,Data!$C:$C,'7'!$A$33,Data!$H:$H,'7'!$A40,Data!$F:$F,'7'!$A$32)","v":21.416299955622705},{"$f":"SUMIFS(Data!$E:$E,Data!$B:$B,'7'!E$33,Data!$C:$C,'7'!$A$33,Data!$H:$H,'7'!$A40,Data!$F:$F,'7'!$A$32)","v":41.648508992599673},{"$f":"SUMIFS(Data!$E:$E,Data!$B:$B,'7'!F$33,Data!$C:$C,'7'!$A$33,Data!$H:$H,'7'!$A40,Data!$F:$F,'7'!$A$32)","v":20.430478505703444},{"$f":"SUMIFS(Data!$E:$E,Data!$B:$B,'7'!G$33,Data!$C:$C,'7'!$A$33,Data!$H:$H,'7'!$A40,Data!$F:$F,'7'!$A$32)","v":27.370226051063657},{"$f":"SUMIFS(Data!$E:$E,Data!$B:$B,'7'!H$33,Data!$C:$C,'7'!$A$33,Data!$H:$H,'7'!$A40,Data!$F:$F,'7'!$A$32)","v":14.530624216401877},{"$f":"SUMIFS(Data!$E:$E,Data!$B:$B,'7'!I$33,Data!$C:$C,'7'!$A$33,Data!$H:$H,'7'!$A40,Data!$F:$F,'7'!$A$32)","v":19.596498219691764},{"$f":"SUMIFS(Data!$E:$E,Data!$B:$B,'7'!J$33,Data!$C:$C,'7'!$A$33,Data!$H:$H,'7'!$A40,Data!$F:$F,'7'!$A$32)","v":42.337234251739105},{"$f":"SUMIFS(Data!$E:$E,Data!$B:$B,'7'!K$33,Data!$C:$C,'7'!$A$33,Data!$H:$H,'7'!$A40,Data!$F:$F,'7'!$A$32)","v":20.430478505703444}]
[" > 80 % <= 85 %",{"$f":"SUMIFS(Data!$E:$E,Data!$B:$B,'7'!B$33,Data!$C:$C,'7'!$A$33,Data!$H:$H,'7'!$A41,Data!$F:$F,'7'!$A$32)","v":0},{"$f":"SUMIFS(Data!$E:$E,Data!$B:$B,'7'!C$33,Data!$C:$C,'7'!$A$33,Data!$H:$H,'7'!$A41,Data!$F:$F,'7'!$A$32)","v":0},{"$f":"SUMIFS(Data!$E:$E,Data!$B:$B,'7'!D$33,Data!$C:$C,'7'!$A$33,Data!$H:$H,'7'!$A41,Data!$F:$F,'7'!$A$32)","v":0},{"$f":"SUMIFS(Data!$E:$E,Data!$B:$B,'7'!E$33,Data!$C:$C,'7'!$A$33,Data!$H:$H,'7'!$A41,Data!$F:$F,'7'!$A$32)","v":0},{"$f":"SUMIFS(Data!$E:$E,Data!$B:$B,'7'!F$33,Data!$C:$C,'7'!$A$33,Data!$H:$H,'7'!$A41,Data!$F:$F,'7'!$A$32)","v":0},{"$f":"SUMIFS(Data!$E:$E,Data!$B:$B,'7'!G$33,Data!$C:$C,'7'!$A$33,Data!$H:$H,'7'!$A41,Data!$F:$F,'7'!$A$32)","v":0},{"$f":"SUMIFS(Data!$E:$E,Data!$B:$B,'7'!H$33,Data!$C:$C,'7'!$A$33,Data!$H:$H,'7'!$A41,Data!$F:$F,'7'!$A$32)","v":0},{"$f":"SUMIFS(Data!$E:$E,Data!$B:$B,'7'!I$33,Data!$C:$C,'7'!$A$33,Data!$H:$H,'7'!$A41,Data!$F:$F,'7'!$A$32)","v":0},{"$f":"SUMIFS(Data!$E:$E,Data!$B:$B,'7'!J$33,Data!$C:$C,'7'!$A$33,Data!$H:$H,'7'!$A41,Data!$F:$F,'7'!$A$32)","v":0},{"$f":"SUMIFS(Data!$E:$E,Data!$B:$B,'7'!K$33,Data!$C:$C,'7'!$A$33,Data!$H:$H,'7'!$A41,Data!$F:$F,'7'!$A$32)","v":0}]
[" > 85 % <= 90 %",{"$f":"SUMIFS(Data!$E:$E,Data!$B:$B,'7'!B$33,Data!$C:$C,'7'!$A$33,Data!$H:$H,'7'!$A42,Data!$F:$F,'7'!$A$32)","v":0},{"$f":"SUMIFS(Data!$E:$E,Data!$B:$B,'7'!C$33,Data!$C:$C,'7'!$A$33,Data!$H:$H,'7'!$A42,Data!$F:$F,'7'!$A$32)","v":0},{"$f":"SUMIFS(Data!$E:$E,Data!$B:$B,'7'!D$33,Data!$C:$C,'7'!$A$33,Data!$H:$H,'7'!$A42,Data!$F:$F,'7'!$A$32)","v":0},{"$f":"SUMIFS(Data!$E:$E,Data!$B:$B,'7'!E$33,Data!$C:$C,'7'!$A$33,Data!$H:$H,'7'!$A42,Data!$F:$F,'7'!$A$32)","v":0},{"$f":"SUMIFS(Data!$E:$E,Data!$B:$B,'7'!F$33,Data!$C:$C,'7'!$A$33,Data!$H:$H,'7'!$A42,Data!$F:$F,'7'!$A$32)","v":0},{"$f":"SUMIFS(Data!$E:$E,Data!$B:$B,'7'!G$33,Data!$C:$C,'7'!$A$33,Data!$H:$H,'7'!$A42,Data!$F:$F,'7'!$A$32)","v":0},{"$f":"SUMIFS(Data!$E:$E,Data!$B:$B,'7'!H$33,Data!$C:$C,'7'!$A$33,Data!$H:$H,'7'!$A42,Data!$F:$F,'7'!$A$32)","v":0},{"$f":"SUMIFS(Data!$E:$E,Data!$B:$B,'7'!I$33,Data!$C:$C,'7'!$A$33,Data!$H:$H,'7'!$A42,Data!$F:$F,'7'!$A$32)","v":0},{"$f":"SUMIFS(Data!$E:$E,Data!$B:$B,'7'!J$33,Data!$C:$C,'7'!$A$33,Data!$H:$H,'7'!$A42,Data!$F:$F,'7'!$A$32)","v":0},{"$f":"SUMIFS(Data!$E:$E,Data!$B:$B,'7'!K$33,Data!$C:$C,'7'!$A$33,Data!$H:$H,'7'!$A42,Data!$F:$F,'7'!$A$32)","v":0}]
[" > 90 % <= 95 %",{"$f":"SUMIFS(Data!$E:$E,Data!$B:$B,'7'!B$33,Data!$C:$C,'7'!$A$33,Data!$H:$H,'7'!$A43,Data!$F:$F,'7'!$A$32)","v":0},{"$f":"SUMIFS(Data!$E:$E,Data!$B:$B,'7'!C$33,Data!$C:$C,'7'!$A$33,Data!$H:$H,'7'!$A43,Data!$F:$F,'7'!$A$32)","v":0},{"$f":"SUMIFS(Data!$E:$E,Data!$B:$B,'7'!D$33,Data!$C:$C,'7'!$A$33,Data!$H:$H,'7'!$A43,Data!$F:$F,'7'!$A$32)","v":0},{"$f":"SUMIFS(Data!$E:$E,Data!$B:$B,'7'!E$33,Data!$C:$C,'7'!$A$33,Data!$H:$H,'7'!$A43,Data!$F:$F,'7'!$A$32)","v":0},{"$f":"SUMIFS(Data!$E:$E,Data!$B:$B,'7'!F$33,Data!$C:$C,'7'!$A$33,Data!$H:$H,'7'!$A43,Data!$F:$F,'7'!$A$32)","v":0},{"$f":"SUMIFS(Data!$E:$E,Data!$B:$B,'7'!G$33,Data!$C:$C,'7'!$A$33,Data!$H:$H,'7'!$A43,Data!$F:$F,'7'!$A$32)","v":0},{"$f":"SUMIFS(Data!$E:$E,Data!$B:$B,'7'!H$33,Data!$C:$C,'7'!$A$33,Data!$H:$H,'7'!$A43,Data!$F:$F,'7'!$A$32)","v":0},{"$f":"SUMIFS(Data!$E:$E,Data!$B:$B,'7'!I$33,Data!$C:$C,'7'!$A$33,Data!$H:$H,'7'!$A43,Data!$F:$F,'7'!$A$32)","v":0},{"$f":"SUMIFS(Data!$E:$E,Data!$B:$B,'7'!J$33,Data!$C:$C,'7'!$A$33,Data!$H:$H,'7'!$A43,Data!$F:$F,'7'!$A$32)","v":0},{"$f":"SUMIFS(Data!$E:$E,Data!$B:$B,'7'!K$33,Data!$C:$C,'7'!$A$33,Data!$H:$H,'7'!$A43,Data!$F:$F,'7'!$A$32)","v":0}]
[" > 95 %",{"$f":"SUMIFS(Data!$E:$E,Data!$B:$B,'7'!B$33,Data!$C:$C,'7'!$A$33,Data!$H:$H,'7'!$A44,Data!$F:$F,'7'!$A$32)","v":0},{"$f":"SUMIFS(Data!$E:$E,Data!$B:$B,'7'!C$33,Data!$C:$C,'7'!$A$33,Data!$H:$H,'7'!$A44,Data!$F:$F,'7'!$A$32)","v":0},{"$f":"SUMIFS(Data!$E:$E,Data!$B:$B,'7'!D$33,Data!$C:$C,'7'!$A$33,Data!$H:$H,'7'!$A44,Data!$F:$F,'7'!$A$32)","v":0},{"$f":"SUMIFS(Data!$E:$E,Data!$B:$B,'7'!E$33,Data!$C:$C,'7'!$A$33,Data!$H:$H,'7'!$A44,Data!$F:$F,'7'!$A$32)","v":0},{"$f":"SUMIFS(Data!$E:$E,Data!$B:$B,'7'!F$33,Data!$C:$C,'7'!$A$33,Data!$H:$H,'7'!$A44,Data!$F:$F,'7'!$A$32)","v":0},{"$f":"SUMIFS(Data!$E:$E,Data!$B:$B,'7'!G$33,Data!$C:$C,'7'!$A$33,Data!$H:$H,'7'!$A44,Data!$F:$F,'7'!$A$32)","v":0},{"$f":"SUMIFS(Data!$E:$E,Data!$B:$B,'7'!H$33,Data!$C:$C,'7'!$A$33,Data!$H:$H,'7'!$A44,Data!$F:$F,'7'!$A$32)","v":0},{"$f":"SUMIFS(Data!$E:$E,Data!$B:$B,'7'!I$33,Data!$C:$C,'7'!$A$33,Data!$H:$H,'7'!$A44,Data!$F:$F,'7'!$A$32)","v":0},{"$f":"SUMIFS(Data!$E:$E,Data!$B:$B,'7'!J$33,Data!$C:$C,'7'!$A$33,Data!$H:$H,'7'!$A44,Data!$F:$F,'7'!$A$32)","v":0},{"$f":"SUMIFS(Data!$E:$E,Data!$B:$B,'7'!K$33,Data!$C:$C,'7'!$A$33,Data!$H:$H,'7'!$A44,Data!$F:$F,'7'!$A$32)","v":0}]
[{"$f":"VLOOKUP(\"Average loan-to-value\",Translation!$A$1:$C$354, Translation!A1+1, 0)","v":"Rapport prêt-valeur moyen "},{"$f":"SUMIFS(Data!$E:$E,Data!$B:$B,'7'!B$33,Data!$C:$C,'7'!$A$33,Data!$H:$H,'7'!$A45,Data!$F:$F,'7'!$A$32)","v":64.874442585322356},{"$f":"SUMIFS(Data!$E:$E,Data!$B:$B,'7'!C$33,Data!$C:$C,'7'!$A$33,Data!$D:$D,'7'!$A45,Data!$F:$F,'7'!$A$32)","v":66.407285332123578},{"$f":"SUMIFS(Data!$E:$E,Data!$B:$B,'7'!D$33,Data!$C:$C,'7'!$A$33,Data!$D:$D,'7'!$A45,Data!$F:$F,'7'!$A$32)","v":60.522481068762353},{"$f":"SUMIFS(Data!$E:$E,Data!$B:$B,'7'!E$33,Data!$C:$C,'7'!$A$33,Data!$D:$D,'7'!$A45,Data!$F:$F,'7'!$A$32)","v":64.615233268501839},{"$f":"SUMIFS(Data!$E:$E,Data!$B:$B,'7'!F$33,Data!$C:$C,'7'!$A$33,Data!$D:$D,'7'!$A45,Data!$F:$F,'7'!$A$32)","v":60.271436723747314},{"$f":"SUMIFS(Data!$E:$E,Data!$B:$B,'7'!G$33,Data!$C:$C,'7'!$A$33,Data!$D:$D,'7'!$A45,Data!$F:$F,'7'!$A$32)","v":61.453598957386987},{"$f":"SUMIFS(Data!$E:$E,Data!$B:$B,'7'!H$33,Data!$C:$C,'7'!$A$33,Data!$D:$D,'7'!$A45,Data!$F:$F,'7'!$A$32)","v":57.912363513808977},{"$f":"SUMIFS(Data!$E:$E,Data!$B:$B,'7'!I$33,Data!$C:$C,'7'!$A$33,Data!$D:$D,'7'!$A45,Data!$F:$F,'7'!$A$32)","v":60.163006601607037},{"$f":"SUMIFS(Data!$E:$E,Data!$B:$B,'7'!J$33,Data!$C:$C,'7'!$A$33,Data!$D:$D,'7'!$A45,Data!$F:$F,'7'!$A$32)","v":64.874442585322356},{"$f":"SUMIFS(Data!$E:$E,Data!$B:$B,'7'!K$33,Data!$C:$C,'7'!$A$33,Data!$D:$D,'7'!$A45,Data!$F:$F,'7'!$A$32)","v":60.271436723747314}]
[{"$f":"VLOOKUP(\"Average equity\",Translation!$A$1:$C$354, Translation!A1+1, 0)","v":"Avoir propre foncier moyen "},{"$f":"SUMIFS(Data!$E:$E,Data!$B:$B,'7'!B$33,Data!$C:$C,'7'!$A$33,Data!$H:$H,'7'!$A46,Data!$F:$F,'7'!$A$32)","v":35.125557414677637},{"$f":"SUMIFS(Data!$E:$E,Data!$B:$B,'7'!C$33,Data!$C:$C,'7'!$A$33,Data!$D:$D,'7'!$A46,Data!$F:$F,'7'!$A$32)","v":33.592714667876407},{"$f":"SUMIFS(Data!$E:$E,Data!$B:$B,'7'!D$33,Data!$C:$C,'7'!$A$33,Data!$D:$D,'7'!$A46,Data!$F:$F,'7'!$A$32)","v":39.477518931237647},{"$f":"SUMIFS(Data!$E:$E,Data!$B:$B,'7'!E$33,Data!$C:$C,'7'!$A$33,Data!$D:$D,'7'!$A46,Data!$F:$F,'7'!$A$32)","v":35.384766731498175},{"$f":"SUMIFS(Data!$E:$E,Data!$B:$B,'7'!F$33,Data!$C:$C,'7'!$A$33,Data!$D:$D,'7'!$A46,Data!$F:$F,'7'!$A$32)","v":39.728563276252657},{"$f":"SUMIFS(Data!$E:$E,Data!$B:$B,'7'!G$33,Data!$C:$C,'7'!$A$33,Data!$D:$D,'7'!$A46,Data!$F:$F,'7'!$A$32)","v":38.546401042613034},{"$f":"SUMIFS(Data!$E:$E,Data!$B:$B,'7'!H$33,Data!$C:$C,'7'!$A$33,Data!$D:$D,'7'!$A46,Data!$F:$F,'7'!$A$32)","v":42.087636486191037},{"$f":"SUMIFS(Data!$E:$E,Data!$B:$B,'7'!I$33,Data!$C:$C,'7'!$A$33,Data!$D:$D,'7'!$A46,Data!$F:$F,'7'!$A$32)","v":39.836993398392949},{"$f":"SUMIFS(Data!$E:$E,Data!$B:$B,'7'!J$33,Data!$C:$C,'7'!$A$33,Data!$D:$D,'7'!$A46,Data!$F:$F,'7'!$A$32)","v":35.125557414677637},{"$f":"SUMIFS(Data!$E:$E,Data!$B:$B,'7'!K$33,Data!$C:$C,'7'!$A$33,Data!$D:$D,'7'!$A46,Data!$F:$F,'7'!$A$32)","v":39.728563276252657}]
[{"$f":"VLOOKUP(\"Average equity by province\",Translation!$A$1:$C$354, Translation!A1+1, 0)","v":"Avoir propre foncier moyen selon la province"}]
[{"$f":"VLOOKUP(\"Newfoundland and Labrador\",Translation!$A$1:$C$354, Translation!A1+1, 0)","v":"Terre-Neuve-et-Labrador"},{"$f":"IF((SUMIFS(Data!$E:$E,Data!$B:$B,'7'!B$33,Data!$C:$C,'7'!$A$33,Data!$D:$D,'7'!$A48,Data!$F:$F,'7'!$A$47))=0,\"-\",SUMIFS(Data!$E:$E,Data!$B:$B,'7'!B$33,Data!$C:$C,'7'!$A$33,Data!$D:$D,'7'!$A48,Data!$F:$F,'7'!$A$47))","v":36.499749485421809},{"$f":"IF((SUMIFS(Data!$E:$E,Data!$B:$B,'7'!C$33,Data!$C:$C,'7'!$A$33,Data!$D:$D,'7'!$A48,Data!$F:$F,'7'!$A$47))=0,\"-\",SUMIFS(Data!$E:$E,Data!$B:$B,'7'!C$33,Data!$C:$C,'7'!$A$33,Data!$D:$D,'7'!$A48,Data!$F:$F,'7'!$A$47))","v":30.64164785382464},{"$f":"IF((SUMIFS(Data!$E:$E,Data!$B:$B,'7'!D$33,Data!$C:$C,'7'!$A$33,Data!$D:$D,'7'!$A48,Data!$F:$F,'7'!$A$47))=0,\"-\",SUMIFS(Data!$E:$E,Data!$B:$B,'7'!D$33,Data!$C:$C,'7'!$A$33,Data!$D:$D,'7'!$A48,Data!$F:$F,'7'!$A$47))","v":"-"},{"$f":"IF((SUMIFS(Data!$E:$E,Data!$B:$B,'7'!E$33,Data!$C:$C,'7'!$A$33,Data!$D:$D,'7'!$A48,Data!$F:$F,'7'!$A$47))=0,\"-\",SUMIFS(Data!$E:$E,Data!$B:$B,'7'!E$33,Data!$C:$C,'7'!$A$33,Data!$D:$D,'7'!$A48,Data!$F:$F,'7'!$A$47))","v":28.616674438318512},{"$f":"IF((SUMIFS(Data!$E:$E,Data!$B:$B,'7'!F$33,Data!$C:$C,'7'!$A$33,Data!$D:$D,'7'!$A48,Data!$F:$F,'7'!$A$47))=0,\"-\",SUMIFS(Data!$E:$E,Data!$B:$B,'7'!F$33,Data!$C:$C,'7'!$A$33,Data!$D:$D,'7'!$A48,Data!$F:$F,'7'!$A$47))","v":35.280379028946633},{"$f":"IF((SUMIFS(Data!$E:$E,Data!$B:$B,'7'!G$33,Data!$C:$C,'7'!$A$33,Data!$D:$D,'7'!$A48,Data!$F:$F,'7'!$A$47))=0,\"-\",SUMIFS(Data!$E:$E,Data!$B:$B,'7'!G$33,Data!$C:$C,'7'!$A$33,Data!$D:$D,'7'!$A48,Data!$F:$F,'7'!$A$47))","v":29.08482607722468},{"$f":"IF((SUMIFS(Data!$E:$E,Data!$B:$B,'7'!H$33,Data!$C:$C,'7'!$A$33,Data!$D:$D,'7'!$A48,Data!$F:$F,'7'!$A$47))=0,\"-\",SUMIFS(Data!$E:$E,Data!$B:$B,'7'!H$33,Data!$C:$C,'7'!$A$33,Data!$D:$D,'7'!$A48,Data!$F:$F,'7'!$A$47))","v":42.731083495450491},{"$f":"IF((SUMIFS(Data!$E:$E,Data!$B:$B,'7'!I$33,Data!$C:$C,'7'!$A$33,Data!$D:$D,'7'!$A48,Data!$F:$F,'7'!$A$47))=0,\"-\",SUMIFS(Data!$E:$E,Data!$B:$B,'7'!I$33,Data!$C:$C,'7'!$A$33,Data!$D:$D,'7'!$A48,Data!$F:$F,'7'!$A$47))","v":37.940874514977779},{"$f":"IF((SUMIFS(Data!$E:$E,Data!$B:$B,'7'!J$33,Data!$C:$C,'7'!$A$33,Data!$D:$D,'7'!$A48,Data!$F:$F,'7'!$A$47))=0,\"-\",SUMIFS(Data!$E:$E,Data!$B:$B,'7'!J$33,Data!$C:$C,'7'!$A$33,Data!$D:$D,'7'!$A48,Data!$F:$F,'7'!$A$47))","v":36.499749485421809},{"$f":"IF((SUMIFS(Data!$E:$E,Data!$B:$B,'7'!K$33,Data!$C:$C,'7'!$A$33,Data!$D:$D,'7'!$A48,Data!$F:$F,'7'!$A$47))=0,\"-\",SUMIFS(Data!$E:$E,Data!$B:$B,'7'!K$33,Data!$C:$C,'7'!$A$33,Data!$D:$D,'7'!$A48,Data!$F:$F,'7'!$A$47))","v":35.280379028946633}]
[{"$f":"VLOOKUP(\"Prince Edward Island\",Translation!$A$1:$C$354, Translation!A1+1, 0)","v":"Île-du-Prince-Édouard"},{"$f":"IF((SUMIFS(Data!$E:$E,Data!$B:$B,'7'!B$33,Data!$C:$C,'7'!$A$33,Data!$D:$D,'7'!$A49,Data!$F:$F,'7'!$A$47))=0,\"-\",SUMIFS(Data!$E:$E,Data!$B:$B,'7'!B$33,Data!$C:$C,'7'!$A$33,Data!$D:$D,'7'!$A49,Data!$F:$F,'7'!$A$47))","v":"-"},{"$f":"IF((SUMIFS(Data!$E:$E,Data!$B:$B,'7'!C$33,Data!$C:$C,'7'!$A$33,Data!$D:$D,'7'!$A49,Data!$F:$F,'7'!$A$47))=0,\"-\",SUMIFS(Data!$E:$E,Data!$B:$B,'7'!C$33,Data!$C:$C,'7'!$A$33,Data!$D:$D,'7'!$A49,Data!$F:$F,'7'!$A$47))","v":31.247854005379558},{"$f":"IF((SUMIFS(Data!$E:$E,Data!$B:$B,'7'!D$33,Data!$C:$C,'7'!$A$33,Data!$D:$D,'7'!$A49,Data!$F:$F,'7'!$A$47))=0,\"-\",SUMIFS(Data!$E:$E,Data!$B:$B,'7'!D$33,Data!$C:$C,'7'!$A$33,Data!$D:$D,'7'!$A49,Data!$F:$F,'7'!$A$47))","v":"-"},{"$f":"IF((SUMIFS(Data!$E:$E,Data!$B:$B,'7'!E$33,Data!$C:$C,'7'!$A$33,Data!$D:$D,'7'!$A49,Data!$F:$F,'7'!$A$47))=0,\"-\",SUMIFS(Data!$E:$E,Data!$B:$B,'7'!E$33,Data!$C:$C,'7'!$A$33,Data!$D:$D,'7'!$A49,Data!$F:$F,'7'!$A$47))","v":27.664498825215809},{"$f":"IF((SUMIFS(Data!$E:$E,Data!$B:$B,'7'!F$33,Data!$C:$C,'7'!$A$33,Data!$D:$D,'7'!$A49,Data!$F:$F,'7'!$A$47))=0,\"-\",SUMIFS(Data!$E:$E,Data!$B:$B,'7'!F$33,Data!$C:$C,'7'!$A$33,Data!$D:$D,'7'!$A49,Data!$F:$F,'7'!$A$47))","v":43.611253901624465},{"$f":"IF((SUMIFS(Data!$E:$E,Data!$B:$B,'7'!G$33,Data!$C:$C,'7'!$A$33,Data!$D:$D,'7'!$A49,Data!$F:$F,'7'!$A$47))=0,\"-\",SUMIFS(Data!$E:$E,Data!$B:$B,'7'!G$33,Data!$C:$C,'7'!$A$33,Data!$D:$D,'7'!$A49,Data!$F:$F,'7'!$A$47))","v":39.466751888370602},{"$f":"IF((SUMIFS(Data!$E:$E,Data!$B:$B,'7'!H$33,Data!$C:$C,'7'!$A$33,Data!$D:$D,'7'!$A49,Data!$F:$F,'7'!$A$47))=0,\"-\",SUMIFS(Data!$E:$E,Data!$B:$B,'7'!H$33,Data!$C:$C,'7'!$A$33,Data!$D:$D,'7'!$A49,Data!$F:$F,'7'!$A$47))","v":"-"},{"$f":"IF((SUMIFS(Data!$E:$E,Data!$B:$B,'7'!I$33,Data!$C:$C,'7'!$A$33,Data!$D:$D,'7'!$A49,Data!$F:$F,'7'!$A$47))=0,\"-\",SUMIFS(Data!$E:$E,Data!$B:$B,'7'!I$33,Data!$C:$C,'7'!$A$33,Data!$D:$D,'7'!$A49,Data!$F:$F,'7'!$A$47))","v":31.569079459728627},{"$f":"IF((SUMIFS(Data!$E:$E,Data!$B:$B,'7'!J$33,Data!$C:$C,'7'!$A$33,Data!$D:$D,'7'!$A49,Data!$F:$F,'7'!$A$47))=0,\"-\",SUMIFS(Data!$E:$E,Data!$B:$B,'7'!J$33,Data!$C:$C,'7'!$A$33,Data!$D:$D,'7'!$A49,Data!$F:$F,'7'!$A$47))","v":"-"},{"$f":"IF((SUMIFS(Data!$E:$E,Data!$B:$B,'7'!K$33,Data!$C:$C,'7'!$A$33,Data!$D:$D,'7'!$A49,Data!$F:$F,'7'!$A$47))=0,\"-\",SUMIFS(Data!$E:$E,Data!$B:$B,'7'!K$33,Data!$C:$C,'7'!$A$33,Data!$D:$D,'7'!$A49,Data!$F:$F,'7'!$A$47))","v":43.611253901624465}]
[{"$f":"VLOOKUP(\"Nova Scotia\",Translation!$A$1:$C$354, Translation!A1+1, 0)","v":"Nouvelle-Écosse"},{"$f":"IF((SUMIFS(Data!$E:$E,Data!$B:$B,'7'!B$33,Data!$C:$C,'7'!$A$33,Data!$D:$D,'7'!$A50,Data!$F:$F,'7'!$A$47))=0,\"-\",SUMIFS(Data!$E:$E,Data!$B:$B,'7'!B$33,Data!$C:$C,'7'!$A$33,Data!$D:$D,'7'!$A50,Data!$F:$F,'7'!$A$47))","v":34.464681658085397},{"$f":"IF((SUMIFS(Data!$E:$E,Data!$B:$B,'7'!C$33,Data!$C:$C,'7'!$A$33,Data!$D:$D,'7'!$A50,Data!$F:$F,'7'!$A$47))=0,\"-\",SUMIFS(Data!$E:$E,Data!$B:$B,'7'!C$33,Data!$C:$C,'7'!$A$33,Data!$D:$D,'7'!$A50,Data!$F:$F,'7'!$A$47))","v":28.722866419228023},{"$f":"IF((SUMIFS(Data!$E:$E,Data!$B:$B,'7'!D$33,Data!$C:$C,'7'!$A$33,Data!$D:$D,'7'!$A50,Data!$F:$F,'7'!$A$47))=0,\"-\",SUMIFS(Data!$E:$E,Data!$B:$B,'7'!D$33,Data!$C:$C,'7'!$A$33,Data!$D:$D,'7'!$A50,Data!$F:$F,'7'!$A$47))","v":38.764544567458302},{"$f":"IF((SUMIFS(Data!$E:$E,Data!$B:$B,'7'!E$33,Data!$C:$C,'7'!$A$33,Data!$D:$D,'7'!$A50,Data!$F:$F,'7'!$A$47))=0,\"-\",SUMIFS(Data!$E:$E,Data!$B:$B,'7'!E$33,Data!$C:$C,'7'!$A$33,Data!$D:$D,'7'!$A50,Data!$F:$F,'7'!$A$47))","v":27.939867711249505},{"$f":"IF((SUMIFS(Data!$E:$E,Data!$B:$B,'7'!F$33,Data!$C:$C,'7'!$A$33,Data!$D:$D,'7'!$A50,Data!$F:$F,'7'!$A$47))=0,\"-\",SUMIFS(Data!$E:$E,Data!$B:$B,'7'!F$33,Data!$C:$C,'7'!$A$33,Data!$D:$D,'7'!$A50,Data!$F:$F,'7'!$A$47))","v":34.751664170393653},{"$f":"IF((SUMIFS(Data!$E:$E,Data!$B:$B,'7'!G$33,Data!$C:$C,'7'!$A$33,Data!$D:$D,'7'!$A50,Data!$F:$F,'7'!$A$47))=0,\"-\",SUMIFS(Data!$E:$E,Data!$B:$B,'7'!G$33,Data!$C:$C,'7'!$A$33,Data!$D:$D,'7'!$A50,Data!$F:$F,'7'!$A$47))","v":38.493225288389475},{"$f":"IF((SUMIFS(Data!$E:$E,Data!$B:$B,'7'!H$33,Data!$C:$C,'7'!$A$33,Data!$D:$D,'7'!$A50,Data!$F:$F,'7'!$A$47))=0,\"-\",SUMIFS(Data!$E:$E,Data!$B:$B,'7'!H$33,Data!$C:$C,'7'!$A$33,Data!$D:$D,'7'!$A50,Data!$F:$F,'7'!$A$47))","v":39.566756805891558},{"$f":"IF((SUMIFS(Data!$E:$E,Data!$B:$B,'7'!I$33,Data!$C:$C,'7'!$A$33,Data!$D:$D,'7'!$A50,Data!$F:$F,'7'!$A$47))=0,\"-\",SUMIFS(Data!$E:$E,Data!$B:$B,'7'!I$33,Data!$C:$C,'7'!$A$33,Data!$D:$D,'7'!$A50,Data!$F:$F,'7'!$A$47))","v":35.662191022691445},{"$f":"IF((SUMIFS(Data!$E:$E,Data!$B:$B,'7'!J$33,Data!$C:$C,'7'!$A$33,Data!$D:$D,'7'!$A50,Data!$F:$F,'7'!$A$47))=0,\"-\",SUMIFS(Data!$E:$E,Data!$B:$B,'7'!J$33,Data!$C:$C,'7'!$A$33,Data!$D:$D,'7'!$A50,Data!$F:$F,'7'!$A$47))","v":34.464681658085397},{"$f":"IF((SUMIFS(Data!$E:$E,Data!$B:$B,'7'!K$33,Data!$C:$C,'7'!$A$33,Data!$D:$D,'7'!$A50,Data!$F:$F,'7'!$A$47))=0,\"-\",SUMIFS(Data!$E:$E,Data!$B:$B,'7'!K$33,Data!$C:$C,'7'!$A$33,Data!$D:$D,'7'!$A50,Data!$F:$F,'7'!$A$47))","v":34.751664170393653}]
[{"$f":"VLOOKUP(\"New Brunswick\",Translation!$A$1:$C$354, Translation!A1+1, 0)","v":"Nouveau-Brunswick"},{"$f":"IF((SUMIFS(Data!$E:$E,Data!$B:$B,'7'!B$33,Data!$C:$C,'7'!$A$33,Data!$D:$D,'7'!$A51,Data!$F:$F,'7'!$A$47))=0,\"-\",SUMIFS(Data!$E:$E,Data!$B:$B,'7'!B$33,Data!$C:$C,'7'!$A$33,Data!$D:$D,'7'!$A51,Data!$F:$F,'7'!$A$47))","v":29.215528543273869},{"$f":"IF((SUMIFS(Data!$E:$E,Data!$B:$B,'7'!C$33,Data!$C:$C,'7'!$A$33,Data!$D:$D,'7'!$A51,Data!$F:$F,'7'!$A$47))=0,\"-\",SUMIFS(Data!$E:$E,Data!$B:$B,'7'!C$33,Data!$C:$C,'7'!$A$33,Data!$D:$D,'7'!$A51,Data!$F:$F,'7'!$A$47))","v":27.755585822280196},{"$f":"IF((SUMIFS(Data!$E:$E,Data!$B:$B,'7'!D$33,Data!$C:$C,'7'!$A$33,Data!$D:$D,'7'!$A51,Data!$F:$F,'7'!$A$47))=0,\"-\",SUMIFS(Data!$E:$E,Data!$B:$B,'7'!D$33,Data!$C:$C,'7'!$A$33,Data!$D:$D,'7'!$A51,Data!$F:$F,'7'!$A$47))","v":36.987762955988408},{"$f":"IF((SUMIFS(Data!$E:$E,Data!$B:$B,'7'!E$33,Data!$C:$C,'7'!$A$33,Data!$D:$D,'7'!$A51,Data!$F:$F,'7'!$A$47))=0,\"-\",SUMIFS(Data!$E:$E,Data!$B:$B,'7'!E$33,Data!$C:$C,'7'!$A$33,Data!$D:$D,'7'!$A51,Data!$F:$F,'7'!$A$47))","v":26.54683552814863},{"$f":"IF((SUMIFS(Data!$E:$E,Data!$B:$B,'7'!F$33,Data!$C:$C,'7'!$A$33,Data!$D:$D,'7'!$A51,Data!$F:$F,'7'!$A$47))=0,\"-\",SUMIFS(Data!$E:$E,Data!$B:$B,'7'!F$33,Data!$C:$C,'7'!$A$33,Data!$D:$D,'7'!$A51,Data!$F:$F,'7'!$A$47))","v":32.890269232101275},{"$f":"IF((SUMIFS(Data!$E:$E,Data!$B:$B,'7'!G$33,Data!$C:$C,'7'!$A$33,Data!$D:$D,'7'!$A51,Data!$F:$F,'7'!$A$47))=0,\"-\",SUMIFS(Data!$E:$E,Data!$B:$B,'7'!G$33,Data!$C:$C,'7'!$A$33,Data!$D:$D,'7'!$A51,Data!$F:$F,'7'!$A$47))","v":37.912630650822258},{"$f":"IF((SUMIFS(Data!$E:$E,Data!$B:$B,'7'!H$33,Data!$C:$C,'7'!$A$33,Data!$D:$D,'7'!$A51,Data!$F:$F,'7'!$A$47))=0,\"-\",SUMIFS(Data!$E:$E,Data!$B:$B,'7'!H$33,Data!$C:$C,'7'!$A$33,Data!$D:$D,'7'!$A51,Data!$F:$F,'7'!$A$47))","v":41.894811736459474},{"$f":"IF((SUMIFS(Data!$E:$E,Data!$B:$B,'7'!I$33,Data!$C:$C,'7'!$A$33,Data!$D:$D,'7'!$A51,Data!$F:$F,'7'!$A$47))=0,\"-\",SUMIFS(Data!$E:$E,Data!$B:$B,'7'!I$33,Data!$C:$C,'7'!$A$33,Data!$D:$D,'7'!$A51,Data!$F:$F,'7'!$A$47))","v":25.732357550252196},{"$f":"IF((SUMIFS(Data!$E:$E,Data!$B:$B,'7'!J$33,Data!$C:$C,'7'!$A$33,Data!$D:$D,'7'!$A51,Data!$F:$F,'7'!$A$47))=0,\"-\",SUMIFS(Data!$E:$E,Data!$B:$B,'7'!J$33,Data!$C:$C,'7'!$A$33,Data!$D:$D,'7'!$A51,Data!$F:$F,'7'!$A$47))","v":29.215528543273869},{"$f":"IF((SUMIFS(Data!$E:$E,Data!$B:$B,'7'!K$33,Data!$C:$C,'7'!$A$33,Data!$D:$D,'7'!$A51,Data!$F:$F,'7'!$A$47))=0,\"-\",SUMIFS(Data!$E:$E,Data!$B:$B,'7'!K$33,Data!$C:$C,'7'!$A$33,Data!$D:$D,'7'!$A51,Data!$F:$F,'7'!$A$47))","v":32.890269232101275}]
[{"$f":"VLOOKUP(\"Quebec\",Translation!$A$1:$C$354, Translation!A1+1, 0)","v":"Québec"},{"$f":"IF((SUMIFS(Data!$E:$E,Data!$B:$B,'7'!B$33,Data!$C:$C,'7'!$A$33,Data!$D:$D,'7'!$A52,Data!$F:$F,'7'!$A$47))=0,\"-\",SUMIFS(Data!$E:$E,Data!$B:$B,'7'!B$33,Data!$C:$C,'7'!$A$33,Data!$D:$D,'7'!$A52,Data!$F:$F,'7'!$A$47))","v":30.934390429717624},{"$f":"IF((SUMIFS(Data!$E:$E,Data!$B:$B,'7'!C$33,Data!$C:$C,'7'!$A$33,Data!$D:$D,'7'!$A52,Data!$F:$F,'7'!$A$47))=0,\"-\",SUMIFS(Data!$E:$E,Data!$B:$B,'7'!C$33,Data!$C:$C,'7'!$A$33,Data!$D:$D,'7'!$A52,Data!$F:$F,'7'!$A$47))","v":28.548449842513769},{"$f":"IF((SUMIFS(Data!$E:$E,Data!$B:$B,'7'!D$33,Data!$C:$C,'7'!$A$33,Data!$D:$D,'7'!$A52,Data!$F:$F,'7'!$A$47))=0,\"-\",SUMIFS(Data!$E:$E,Data!$B:$B,'7'!D$33,Data!$C:$C,'7'!$A$33,Data!$D:$D,'7'!$A52,Data!$F:$F,'7'!$A$47))","v":33.76078440223425},{"$f":"IF((SUMIFS(Data!$E:$E,Data!$B:$B,'7'!E$33,Data!$C:$C,'7'!$A$33,Data!$D:$D,'7'!$A52,Data!$F:$F,'7'!$A$47))=0,\"-\",SUMIFS(Data!$E:$E,Data!$B:$B,'7'!E$33,Data!$C:$C,'7'!$A$33,Data!$D:$D,'7'!$A52,Data!$F:$F,'7'!$A$47))","v":29.034878114506036},{"$f":"IF((SUMIFS(Data!$E:$E,Data!$B:$B,'7'!F$33,Data!$C:$C,'7'!$A$33,Data!$D:$D,'7'!$A52,Data!$F:$F,'7'!$A$47))=0,\"-\",SUMIFS(Data!$E:$E,Data!$B:$B,'7'!F$33,Data!$C:$C,'7'!$A$33,Data!$D:$D,'7'!$A52,Data!$F:$F,'7'!$A$47))","v":38.217189849583129},{"$f":"IF((SUMIFS(Data!$E:$E,Data!$B:$B,'7'!G$33,Data!$C:$C,'7'!$A$33,Data!$D:$D,'7'!$A52,Data!$F:$F,'7'!$A$47))=0,\"-\",SUMIFS(Data!$E:$E,Data!$B:$B,'7'!G$33,Data!$C:$C,'7'!$A$33,Data!$D:$D,'7'!$A52,Data!$F:$F,'7'!$A$47))","v":33.324602211381901},{"$f":"IF((SUMIFS(Data!$E:$E,Data!$B:$B,'7'!H$33,Data!$C:$C,'7'!$A$33,Data!$D:$D,'7'!$A52,Data!$F:$F,'7'!$A$47))=0,\"-\",SUMIFS(Data!$E:$E,Data!$B:$B,'7'!H$33,Data!$C:$C,'7'!$A$33,Data!$D:$D,'7'!$A52,Data!$F:$F,'7'!$A$47))","v":39.008171457420971},{"$f":"IF((SUMIFS(Data!$E:$E,Data!$B:$B,'7'!I$33,Data!$C:$C,'7'!$A$33,Data!$D:$D,'7'!$A52,Data!$F:$F,'7'!$A$47))=0,\"-\",SUMIFS(Data!$E:$E,Data!$B:$B,'7'!I$33,Data!$C:$C,'7'!$A$33,Data!$D:$D,'7'!$A52,Data!$F:$F,'7'!$A$47))","v":38.774853353213601},{"$f":"IF((SUMIFS(Data!$E:$E,Data!$B:$B,'7'!J$33,Data!$C:$C,'7'!$A$33,Data!$D:$D,'7'!$A52,Data!$F:$F,'7'!$A$47))=0,\"-\",SUMIFS(Data!$E:$E,Data!$B:$B,'7'!J$33,Data!$C:$C,'7'!$A$33,Data!$D:$D,'7'!$A52,Data!$F:$F,'7'!$A$47))","v":30.934390429717624},{"$f":"IF((SUMIFS(Data!$E:$E,Data!$B:$B,'7'!K$33,Data!$C:$C,'7'!$A$33,Data!$D:$D,'7'!$A52,Data!$F:$F,'7'!$A$47))=0,\"-\",SUMIFS(Data!$E:$E,Data!$B:$B,'7'!K$33,Data!$C:$C,'7'!$A$33,Data!$D:$D,'7'!$A52,Data!$F:$F,'7'!$A$47))","v":38.217189849583129}]
[{"$f":"VLOOKUP(\"Ontario\",Translation!$A$1:$C$354, Translation!A1+1, 0)","v":"Ontario"},{"$f":"IF((SUMIFS(Data!$E:$E,Data!$B:$B,'7'!B$33,Data!$C:$C,'7'!$A$33,Data!$D:$D,'7'!$A53,Data!$F:$F,'7'!$A$47))=0,\"-\",SUMIFS(Data!$E:$E,Data!$B:$B,'7'!B$33,Data!$C:$C,'7'!$A$33,Data!$D:$D,'7'!$A53,Data!$F:$F,'7'!$A$47))","v":33.986428929460374},{"$f":"IF((SUMIFS(Data!$E:$E,Data!$B:$B,'7'!C$33,Data!$C:$C,'7'!$A$33,Data!$D:$D,'7'!$A53,Data!$F:$F,'7'!$A$47))=0,\"-\",SUMIFS(Data!$E:$E,Data!$B:$B,'7'!C$33,Data!$C:$C,'7'!$A$33,Data!$D:$D,'7'!$A53,Data!$F:$F,'7'!$A$47))","v":34.79242328186011},{"$f":"IF((SUMIFS(Data!$E:$E,Data!$B:$B,'7'!D$33,Data!$C:$C,'7'!$A$33,Data!$D:$D,'7'!$A53,Data!$F:$F,'7'!$A$47))=0,\"-\",SUMIFS(Data!$E:$E,Data!$B:$B,'7'!D$33,Data!$C:$C,'7'!$A$33,Data!$D:$D,'7'!$A53,Data!$F:$F,'7'!$A$47))","v":40.877408609664649},{"$f":"IF((SUMIFS(Data!$E:$E,Data!$B:$B,'7'!E$33,Data!$C:$C,'7'!$A$33,Data!$D:$D,'7'!$A53,Data!$F:$F,'7'!$A$47))=0,\"-\",SUMIFS(Data!$E:$E,Data!$B:$B,'7'!E$33,Data!$C:$C,'7'!$A$33,Data!$D:$D,'7'!$A53,Data!$F:$F,'7'!$A$47))","v":36.278283801374286},{"$f":"IF((SUMIFS(Data!$E:$E,Data!$B:$B,'7'!F$33,Data!$C:$C,'7'!$A$33,Data!$D:$D,'7'!$A53,Data!$F:$F,'7'!$A$47))=0,\"-\",SUMIFS(Data!$E:$E,Data!$B:$B,'7'!F$33,Data!$C:$C,'7'!$A$33,Data!$D:$D,'7'!$A53,Data!$F:$F,'7'!$A$47))","v":40.173174464062647},{"$f":"IF((SUMIFS(Data!$E:$E,Data!$B:$B,'7'!G$33,Data!$C:$C,'7'!$A$33,Data!$D:$D,'7'!$A53,Data!$F:$F,'7'!$A$47))=0,\"-\",SUMIFS(Data!$E:$E,Data!$B:$B,'7'!G$33,Data!$C:$C,'7'!$A$33,Data!$D:$D,'7'!$A53,Data!$F:$F,'7'!$A$47))","v":38.452781176966795},{"$f":"IF((SUMIFS(Data!$E:$E,Data!$B:$B,'7'!H$33,Data!$C:$C,'7'!$A$33,Data!$D:$D,'7'!$A53,Data!$F:$F,'7'!$A$47))=0,\"-\",SUMIFS(Data!$E:$E,Data!$B:$B,'7'!H$33,Data!$C:$C,'7'!$A$33,Data!$D:$D,'7'!$A53,Data!$F:$F,'7'!$A$47))","v":41.250126655690671},{"$f":"IF((SUMIFS(Data!$E:$E,Data!$B:$B,'7'!I$33,Data!$C:$C,'7'!$A$33,Data!$D:$D,'7'!$A53,Data!$F:$F,'7'!$A$47))=0,\"-\",SUMIFS(Data!$E:$E,Data!$B:$B,'7'!I$33,Data!$C:$C,'7'!$A$33,Data!$D:$D,'7'!$A53,Data!$F:$F,'7'!$A$47))","v":39.047531798483213},{"$f":"IF((SUMIFS(Data!$E:$E,Data!$B:$B,'7'!J$33,Data!$C:$C,'7'!$A$33,Data!$D:$D,'7'!$A53,Data!$F:$F,'7'!$A$47))=0,\"-\",SUMIFS(Data!$E:$E,Data!$B:$B,'7'!J$33,Data!$C:$C,'7'!$A$33,Data!$D:$D,'7'!$A53,Data!$F:$F,'7'!$A$47))","v":33.986428929460374},{"$f":"IF((SUMIFS(Data!$E:$E,Data!$B:$B,'7'!K$33,Data!$C:$C,'7'!$A$33,Data!$D:$D,'7'!$A53,Data!$F:$F,'7'!$A$47))=0,\"-\",SUMIFS(Data!$E:$E,Data!$B:$B,'7'!K$33,Data!$C:$C,'7'!$A$33,Data!$D:$D,'7'!$A53,Data!$F:$F,'7'!$A$47))","v":40.173174464062647}]
[{"$f":"VLOOKUP(\"Manitoba\",Translation!$A$1:$C$354, Translation!A1+1, 0)","v":"Manitoba"},{"$f":"IF((SUMIFS(Data!$E:$E,Data!$B:$B,'7'!B$33,Data!$C:$C,'7'!$A$33,Data!$D:$D,'7'!$A54,Data!$F:$F,'7'!$A$47))=0,\"-\",SUMIFS(Data!$E:$E,Data!$B:$B,'7'!B$33,Data!$C:$C,'7'!$A$33,Data!$D:$D,'7'!$A54,Data!$F:$F,'7'!$A$47))","v":31.024903712421992},{"$f":"IF((SUMIFS(Data!$E:$E,Data!$B:$B,'7'!C$33,Data!$C:$C,'7'!$A$33,Data!$D:$D,'7'!$A54,Data!$F:$F,'7'!$A$47))=0,\"-\",SUMIFS(Data!$E:$E,Data!$B:$B,'7'!C$33,Data!$C:$C,'7'!$A$33,Data!$D:$D,'7'!$A54,Data!$F:$F,'7'!$A$47))","v":29.193155495223511},{"$f":"IF((SUMIFS(Data!$E:$E,Data!$B:$B,'7'!D$33,Data!$C:$C,'7'!$A$33,Data!$D:$D,'7'!$A54,Data!$F:$F,'7'!$A$47))=0,\"-\",SUMIFS(Data!$E:$E,Data!$B:$B,'7'!D$33,Data!$C:$C,'7'!$A$33,Data!$D:$D,'7'!$A54,Data!$F:$F,'7'!$A$47))","v":34.938125735412406},{"$f":"IF((SUMIFS(Data!$E:$E,Data!$B:$B,'7'!E$33,Data!$C:$C,'7'!$A$33,Data!$D:$D,'7'!$A54,Data!$F:$F,'7'!$A$47))=0,\"-\",SUMIFS(Data!$E:$E,Data!$B:$B,'7'!E$33,Data!$C:$C,'7'!$A$33,Data!$D:$D,'7'!$A54,Data!$F:$F,'7'!$A$47))","v":30.824236986998475},{"$f":"IF((SUMIFS(Data!$E:$E,Data!$B:$B,'7'!F$33,Data!$C:$C,'7'!$A$33,Data!$D:$D,'7'!$A54,Data!$F:$F,'7'!$A$47))=0,\"-\",SUMIFS(Data!$E:$E,Data!$B:$B,'7'!F$33,Data!$C:$C,'7'!$A$33,Data!$D:$D,'7'!$A54,Data!$F:$F,'7'!$A$47))","v":31.712642026225289},{"$f":"IF((SUMIFS(Data!$E:$E,Data!$B:$B,'7'!G$33,Data!$C:$C,'7'!$A$33,Data!$D:$D,'7'!$A54,Data!$F:$F,'7'!$A$47))=0,\"-\",SUMIFS(Data!$E:$E,Data!$B:$B,'7'!G$33,Data!$C:$C,'7'!$A$33,Data!$D:$D,'7'!$A54,Data!$F:$F,'7'!$A$47))","v":31.8320117892459},{"$f":"IF((SUMIFS(Data!$E:$E,Data!$B:$B,'7'!H$33,Data!$C:$C,'7'!$A$33,Data!$D:$D,'7'!$A54,Data!$F:$F,'7'!$A$47))=0,\"-\",SUMIFS(Data!$E:$E,Data!$B:$B,'7'!H$33,Data!$C:$C,'7'!$A$33,Data!$D:$D,'7'!$A54,Data!$F:$F,'7'!$A$47))","v":34.848857275175},{"$f":"IF((SUMIFS(Data!$E:$E,Data!$B:$B,'7'!I$33,Data!$C:$C,'7'!$A$33,Data!$D:$D,'7'!$A54,Data!$F:$F,'7'!$A$47))=0,\"-\",SUMIFS(Data!$E:$E,Data!$B:$B,'7'!I$33,Data!$C:$C,'7'!$A$33,Data!$D:$D,'7'!$A54,Data!$F:$F,'7'!$A$47))","v":39.519097053167449},{"$f":"IF((SUMIFS(Data!$E:$E,Data!$B:$B,'7'!J$33,Data!$C:$C,'7'!$A$33,Data!$D:$D,'7'!$A54,Data!$F:$F,'7'!$A$47))=0,\"-\",SUMIFS(Data!$E:$E,Data!$B:$B,'7'!J$33,Data!$C:$C,'7'!$A$33,Data!$D:$D,'7'!$A54,Data!$F:$F,'7'!$A$47))","v":31.024903712421992},{"$f":"IF((SUMIFS(Data!$E:$E,Data!$B:$B,'7'!K$33,Data!$C:$C,'7'!$A$33,Data!$D:$D,'7'!$A54,Data!$F:$F,'7'!$A$47))=0,\"-\",SUMIFS(Data!$E:$E,Data!$B:$B,'7'!K$33,Data!$C:$C,'7'!$A$33,Data!$D:$D,'7'!$A54,Data!$F:$F,'7'!$A$47))","v":31.712642026225289}]
[{"$f":"VLOOKUP(\"Saskatchewan\",Translation!$A$1:$C$354, Translation!A1+1, 0)","v":"Saskatchewan"},{"$f":"IF((SUMIFS(Data!$E:$E,Data!$B:$B,'7'!B$33,Data!$C:$C,'7'!$A$33,Data!$D:$D,'7'!$A55,Data!$F:$F,'7'!$A$47))=0,\"-\",SUMIFS(Data!$E:$E,Data!$B:$B,'7'!B$33,Data!$C:$C,'7'!$A$33,Data!$D:$D,'7'!$A55,Data!$F:$F,'7'!$A$47))","v":33.880649368788376},{"$f":"IF((SUMIFS(Data!$E:$E,Data!$B:$B,'7'!C$33,Data!$C:$C,'7'!$A$33,Data!$D:$D,'7'!$A55,Data!$F:$F,'7'!$A$47))=0,\"-\",SUMIFS(Data!$E:$E,Data!$B:$B,'7'!C$33,Data!$C:$C,'7'!$A$33,Data!$D:$D,'7'!$A55,Data!$F:$F,'7'!$A$47))","v":33.419216269599161},{"$f":"IF((SUMIFS(Data!$E:$E,Data!$B:$B,'7'!D$33,Data!$C:$C,'7'!$A$33,Data!$D:$D,'7'!$A55,Data!$F:$F,'7'!$A$47))=0,\"-\",SUMIFS(Data!$E:$E,Data!$B:$B,'7'!D$33,Data!$C:$C,'7'!$A$33,Data!$D:$D,'7'!$A55,Data!$F:$F,'7'!$A$47))","v":40.277815617990797},{"$f":"IF((SUMIFS(Data!$E:$E,Data!$B:$B,'7'!E$33,Data!$C:$C,'7'!$A$33,Data!$D:$D,'7'!$A55,Data!$F:$F,'7'!$A$47))=0,\"-\",SUMIFS(Data!$E:$E,Data!$B:$B,'7'!E$33,Data!$C:$C,'7'!$A$33,Data!$D:$D,'7'!$A55,Data!$F:$F,'7'!$A$47))","v":31.398252020855207},{"$f":"IF((SUMIFS(Data!$E:$E,Data!$B:$B,'7'!F$33,Data!$C:$C,'7'!$A$33,Data!$D:$D,'7'!$A55,Data!$F:$F,'7'!$A$47))=0,\"-\",SUMIFS(Data!$E:$E,Data!$B:$B,'7'!F$33,Data!$C:$C,'7'!$A$33,Data!$D:$D,'7'!$A55,Data!$F:$F,'7'!$A$47))","v":36.837945598729192},{"$f":"IF((SUMIFS(Data!$E:$E,Data!$B:$B,'7'!G$33,Data!$C:$C,'7'!$A$33,Data!$D:$D,'7'!$A55,Data!$F:$F,'7'!$A$47))=0,\"-\",SUMIFS(Data!$E:$E,Data!$B:$B,'7'!G$33,Data!$C:$C,'7'!$A$33,Data!$D:$D,'7'!$A55,Data!$F:$F,'7'!$A$47))","v":36.257683044694659},{"$f":"IF((SUMIFS(Data!$E:$E,Data!$B:$B,'7'!H$33,Data!$C:$C,'7'!$A$33,Data!$D:$D,'7'!$A55,Data!$F:$F,'7'!$A$47))=0,\"-\",SUMIFS(Data!$E:$E,Data!$B:$B,'7'!H$33,Data!$C:$C,'7'!$A$33,Data!$D:$D,'7'!$A55,Data!$F:$F,'7'!$A$47))","v":39.82378291151413},{"$f":"IF((SUMIFS(Data!$E:$E,Data!$B:$B,'7'!I$33,Data!$C:$C,'7'!$A$33,Data!$D:$D,'7'!$A55,Data!$F:$F,'7'!$A$47))=0,\"-\",SUMIFS(Data!$E:$E,Data!$B:$B,'7'!I$33,Data!$C:$C,'7'!$A$33,Data!$D:$D,'7'!$A55,Data!$F:$F,'7'!$A$47))","v":35.208621649410773},{"$f":"IF((SUMIFS(Data!$E:$E,Data!$B:$B,'7'!J$33,Data!$C:$C,'7'!$A$33,Data!$D:$D,'7'!$A55,Data!$F:$F,'7'!$A$47))=0,\"-\",SUMIFS(Data!$E:$E,Data!$B:$B,'7'!J$33,Data!$C:$C,'7'!$A$33,Data!$D:$D,'7'!$A55,Data!$F:$F,'7'!$A$47))","v":33.880649368788376},{"$f":"IF((SUMIFS(Data!$E:$E,Data!$B:$B,'7'!K$33,Data!$C:$C,'7'!$A$33,Data!$D:$D,'7'!$A55,Data!$F:$F,'7'!$A$47))=0,\"-\",SUMIFS(Data!$E:$E,Data!$B:$B,'7'!K$33,Data!$C:$C,'7'!$A$33,Data!$D:$D,'7'!$A55,Data!$F:$F,'7'!$A$47))","v":36.837945598729192}]
[{"$f":"VLOOKUP(\"Alberta\",Translation!$A$1:$C$354, Translation!A1+1, 0)","v":"Alberta"},{"$f":"IF((SUMIFS(Data!$E:$E,Data!$B:$B,'7'!B$33,Data!$C:$C,'7'!$A$33,Data!$D:$D,'7'!$A56,Data!$F:$F,'7'!$A$47))=0,\"-\",SUMIFS(Data!$E:$E,Data!$B:$B,'7'!B$33,Data!$C:$C,'7'!$A$33,Data!$D:$D,'7'!$A56,Data!$F:$F,'7'!$A$47))","v":32.174181535896601},{"$f":"IF((SUMIFS(Data!$E:$E,Data!$B:$B,'7'!C$33,Data!$C:$C,'7'!$A$33,Data!$D:$D,'7'!$A56,Data!$F:$F,'7'!$A$47))=0,\"-\",SUMIFS(Data!$E:$E,Data!$B:$B,'7'!C$33,Data!$C:$C,'7'!$A$33,Data!$D:$D,'7'!$A56,Data!$F:$F,'7'!$A$47))","v":30.673752928559821},{"$f":"IF((SUMIFS(Data!$E:$E,Data!$B:$B,'7'!D$33,Data!$C:$C,'7'!$A$33,Data!$D:$D,'7'!$A56,Data!$F:$F,'7'!$A$47))=0,\"-\",SUMIFS(Data!$E:$E,Data!$B:$B,'7'!D$33,Data!$C:$C,'7'!$A$33,Data!$D:$D,'7'!$A56,Data!$F:$F,'7'!$A$47))","v":34.172218220620302},{"$f":"IF((SUMIFS(Data!$E:$E,Data!$B:$B,'7'!E$33,Data!$C:$C,'7'!$A$33,Data!$D:$D,'7'!$A56,Data!$F:$F,'7'!$A$47))=0,\"-\",SUMIFS(Data!$E:$E,Data!$B:$B,'7'!E$33,Data!$C:$C,'7'!$A$33,Data!$D:$D,'7'!$A56,Data!$F:$F,'7'!$A$47))","v":31.502017836169848},{"$f":"IF((SUMIFS(Data!$E:$E,Data!$B:$B,'7'!F$33,Data!$C:$C,'7'!$A$33,Data!$D:$D,'7'!$A56,Data!$F:$F,'7'!$A$47))=0,\"-\",SUMIFS(Data!$E:$E,Data!$B:$B,'7'!F$33,Data!$C:$C,'7'!$A$33,Data!$D:$D,'7'!$A56,Data!$F:$F,'7'!$A$47))","v":37.391109402154775},{"$f":"IF((SUMIFS(Data!$E:$E,Data!$B:$B,'7'!G$33,Data!$C:$C,'7'!$A$33,Data!$D:$D,'7'!$A56,Data!$F:$F,'7'!$A$47))=0,\"-\",SUMIFS(Data!$E:$E,Data!$B:$B,'7'!G$33,Data!$C:$C,'7'!$A$33,Data!$D:$D,'7'!$A56,Data!$F:$F,'7'!$A$47))","v":31.812461778596042},{"$f":"IF((SUMIFS(Data!$E:$E,Data!$B:$B,'7'!H$33,Data!$C:$C,'7'!$A$33,Data!$D:$D,'7'!$A56,Data!$F:$F,'7'!$A$47))=0,\"-\",SUMIFS(Data!$E:$E,Data!$B:$B,'7'!H$33,Data!$C:$C,'7'!$A$33,Data!$D:$D,'7'!$A56,Data!$F:$F,'7'!$A$47))","v":38.672721758136198},{"$f":"IF((SUMIFS(Data!$E:$E,Data!$B:$B,'7'!I$33,Data!$C:$C,'7'!$A$33,Data!$D:$D,'7'!$A56,Data!$F:$F,'7'!$A$47))=0,\"-\",SUMIFS(Data!$E:$E,Data!$B:$B,'7'!I$33,Data!$C:$C,'7'!$A$33,Data!$D:$D,'7'!$A56,Data!$F:$F,'7'!$A$47))","v":39.33103406449397},{"$f":"IF((SUMIFS(Data!$E:$E,Data!$B:$B,'7'!J$33,Data!$C:$C,'7'!$A$33,Data!$D:$D,'7'!$A56,Data!$F:$F,'7'!$A$47))=0,\"-\",SUMIFS(Data!$E:$E,Data!$B:$B,'7'!J$33,Data!$C:$C,'7'!$A$33,Data!$D:$D,'7'!$A56,Data!$F:$F,'7'!$A$47))","v":32.174181535896601},{"$f":"IF((SUMIFS(Data!$E:$E,Data!$B:$B,'7'!K$33,Data!$C:$C,'7'!$A$33,Data!$D:$D,'7'!$A56,Data!$F:$F,'7'!$A$47))=0,\"-\",SUMIFS(Data!$E:$E,Data!$B:$B,'7'!K$33,Data!$C:$C,'7'!$A$33,Data!$D:$D,'7'!$A56,Data!$F:$F,'7'!$A$47))","v":37.391109402154775}]
[{"$f":"VLOOKUP(\"British Columbia\",Translation!$A$1:$C$354, Translation!A1+1, 0)","v":"Colombie-Britannique"},{"$f":"IF((SUMIFS(Data!$E:$E,Data!$B:$B,'7'!B$33,Data!$C:$C,'7'!$A$33,Data!$D:$D,'7'!$A57,Data!$F:$F,'7'!$A$47))=0,\"-\",SUMIFS(Data!$E:$E,Data!$B:$B,'7'!B$33,Data!$C:$C,'7'!$A$33,Data!$D:$D,'7'!$A57,Data!$F:$F,'7'!$A$47))","v":40.284357013258067},{"$f":"IF((SUMIFS(Data!$E:$E,Data!$B:$B,'7'!C$33,Data!$C:$C,'7'!$A$33,Data!$D:$D,'7'!$A57,Data!$F:$F,'7'!$A$47))=0,\"-\",SUMIFS(Data!$E:$E,Data!$B:$B,'7'!C$33,Data!$C:$C,'7'!$A$33,Data!$D:$D,'7'!$A57,Data!$F:$F,'7'!$A$47))","v":40.286267607399729},{"$f":"IF((SUMIFS(Data!$E:$E,Data!$B:$B,'7'!D$33,Data!$C:$C,'7'!$A$33,Data!$D:$D,'7'!$A57,Data!$F:$F,'7'!$A$47))=0,\"-\",SUMIFS(Data!$E:$E,Data!$B:$B,'7'!D$33,Data!$C:$C,'7'!$A$33,Data!$D:$D,'7'!$A57,Data!$F:$F,'7'!$A$47))","v":39.792002632282127},{"$f":"IF((SUMIFS(Data!$E:$E,Data!$B:$B,'7'!E$33,Data!$C:$C,'7'!$A$33,Data!$D:$D,'7'!$A57,Data!$F:$F,'7'!$A$47))=0,\"-\",SUMIFS(Data!$E:$E,Data!$B:$B,'7'!E$33,Data!$C:$C,'7'!$A$33,Data!$D:$D,'7'!$A57,Data!$F:$F,'7'!$A$47))","v":42.316299640974883},{"$f":"IF((SUMIFS(Data!$E:$E,Data!$B:$B,'7'!F$33,Data!$C:$C,'7'!$A$33,Data!$D:$D,'7'!$A57,Data!$F:$F,'7'!$A$47))=0,\"-\",SUMIFS(Data!$E:$E,Data!$B:$B,'7'!F$33,Data!$C:$C,'7'!$A$33,Data!$D:$D,'7'!$A57,Data!$F:$F,'7'!$A$47))","v":43.50006024392647},{"$f":"IF((SUMIFS(Data!$E:$E,Data!$B:$B,'7'!G$33,Data!$C:$C,'7'!$A$33,Data!$D:$D,'7'!$A57,Data!$F:$F,'7'!$A$47))=0,\"-\",SUMIFS(Data!$E:$E,Data!$B:$B,'7'!G$33,Data!$C:$C,'7'!$A$33,Data!$D:$D,'7'!$A57,Data!$F:$F,'7'!$A$47))","v":43.645837868182227},{"$f":"IF((SUMIFS(Data!$E:$E,Data!$B:$B,'7'!H$33,Data!$C:$C,'7'!$A$33,Data!$D:$D,'7'!$A57,Data!$F:$F,'7'!$A$47))=0,\"-\",SUMIFS(Data!$E:$E,Data!$B:$B,'7'!H$33,Data!$C:$C,'7'!$A$33,Data!$D:$D,'7'!$A57,Data!$F:$F,'7'!$A$47))","v":46.787821014551909},{"$f":"IF((SUMIFS(Data!$E:$E,Data!$B:$B,'7'!I$33,Data!$C:$C,'7'!$A$33,Data!$D:$D,'7'!$A57,Data!$F:$F,'7'!$A$47))=0,\"-\",SUMIFS(Data!$E:$E,Data!$B:$B,'7'!I$33,Data!$C:$C,'7'!$A$33,Data!$D:$D,'7'!$A57,Data!$F:$F,'7'!$A$47))","v":44.8325826987748},{"$f":"IF((SUMIFS(Data!$E:$E,Data!$B:$B,'7'!J$33,Data!$C:$C,'7'!$A$33,Data!$D:$D,'7'!$A57,Data!$F:$F,'7'!$A$47))=0,\"-\",SUMIFS(Data!$E:$E,Data!$B:$B,'7'!J$33,Data!$C:$C,'7'!$A$33,Data!$D:$D,'7'!$A57,Data!$F:$F,'7'!$A$47))","v":40.284357013258067},{"$f":"IF((SUMIFS(Data!$E:$E,Data!$B:$B,'7'!K$33,Data!$C:$C,'7'!$A$33,Data!$D:$D,'7'!$A57,Data!$F:$F,'7'!$A$47))=0,\"-\",SUMIFS(Data!$E:$E,Data!$B:$B,'7'!K$33,Data!$C:$C,'7'!$A$33,Data!$D:$D,'7'!$A57,Data!$F:$F,'7'!$A$47))","v":43.50006024392647}]
[{"$f":"VLOOKUP(\"Territories\",Translation!$A$1:$C$354, Translation!A1+1, 0)","v":"Territoires"},{"$f":"IF((SUMIFS(Data!$E:$E,Data!$B:$B,'7'!B$33,Data!$C:$C,'7'!$A$33,Data!$D:$D,'7'!$A58,Data!$F:$F,'7'!$A$47))=0,\"-\",SUMIFS(Data!$E:$E,Data!$B:$B,'7'!B$33,Data!$C:$C,'7'!$A$33,Data!$D:$D,'7'!$A58,Data!$F:$F,'7'!$A$47))","v":"-"},{"$f":"IF((SUMIFS(Data!$E:$E,Data!$B:$B,'7'!C$33,Data!$C:$C,'7'!$A$33,Data!$D:$D,'7'!$A58,Data!$F:$F,'7'!$A$47))=0,\"-\",SUMIFS(Data!$E:$E,Data!$B:$B,'7'!C$33,Data!$C:$C,'7'!$A$33,Data!$D:$D,'7'!$A58,Data!$F:$F,'7'!$A$47))","v":27.606267560994961},{"$f":"IF((SUMIFS(Data!$E:$E,Data!$B:$B,'7'!D$33,Data!$C:$C,'7'!$A$33,Data!$D:$D,'7'!$A58,Data!$F:$F,'7'!$A$47))=0,\"-\",SUMIFS(Data!$E:$E,Data!$B:$B,'7'!D$33,Data!$C:$C,'7'!$A$33,Data!$D:$D,'7'!$A58,Data!$F:$F,'7'!$A$47))","v":"-"},{"$f":"IF((SUMIFS(Data!$E:$E,Data!$B:$B,'7'!E$33,Data!$C:$C,'7'!$A$33,Data!$D:$D,'7'!$A58,Data!$F:$F,'7'!$A$47))=0,\"-\",SUMIFS(Data!$E:$E,Data!$B:$B,'7'!E$33,Data!$C:$C,'7'!$A$33,Data!$D:$D,'7'!$A58,Data!$F:$F,'7'!$A$47))","v":"-"},{"$f":"IF((SUMIFS(Data!$E:$E,Data!$B:$B,'7'!F$33,Data!$C:$C,'7'!$A$33,Data!$D:$D,'7'!$A58,Data!$F:$F,'7'!$A$47))=0,\"-\",SUMIFS(Data!$E:$E,Data!$B:$B,'7'!F$33,Data!$C:$C,'7'!$A$33,Data!$D:$D,'7'!$A58,Data!$F:$F,'7'!$A$47))","v":34.710000000000008},{"$f":"IF((SUMIFS(Data!$E:$E,Data!$B:$B,'7'!G$33,Data!$C:$C,'7'!$A$33,Data!$D:$D,'7'!$A58,Data!$F:$F,'7'!$A$47))=0,\"-\",SUMIFS(Data!$E:$E,Data!$B:$B,'7'!G$33,Data!$C:$C,'7'!$A$33,Data!$D:$D,'7'!$A58,Data!$F:$F,'7'!$A$47))","v":"-"},{"$f":"IF((SUMIFS(Data!$E:$E,Data!$B:$B,'7'!H$33,Data!$C:$C,'7'!$A$33,Data!$D:$D,'7'!$A58,Data!$F:$F,'7'!$A$47))=0,\"-\",SUMIFS(Data!$E:$E,Data!$B:$B,'7'!H$33,Data!$C:$C,'7'!$A$33,Data!$D:$D,'7'!$A58,Data!$F:$F,'7'!$A$47))","v":"-"},{"$f":"IF((SUMIFS(Data!$E:$E,Data!$B:$B,'7'!I$33,Data!$C:$C,'7'!$A$33,Data!$D:$D,'7'!$A58,Data!$F:$F,'7'!$A$47))=0,\"-\",SUMIFS(Data!$E:$E,Data!$B:$B,'7'!I$33,Data!$C:$C,'7'!$A$33,Data!$D:$D,'7'!$A58,Data!$F:$F,'7'!$A$47))","v":"-"},{"$f":"IF((SUMIFS(Data!$E:$E,Data!$B:$B,'7'!J$33,Data!$C:$C,'7'!$A$33,Data!$D:$D,'7'!$A58,Data!$F:$F,'7'!$A$47))=0,\"-\",SUMIFS(Data!$E:$E,Data!$B:$B,'7'!J$33,Data!$C:$C,'7'!$A$33,Data!$D:$D,'7'!$A58,Data!$F:$F,'7'!$A$47))","v":"-"},{"$f":"IF((SUMIFS(Data!$E:$E,Data!$B:$B,'7'!K$33,Data!$C:$C,'7'!$A$33,Data!$D:$D,'7'!$A58,Data!$F:$F,'7'!$A$47))=0,\"-\",SUMIFS(Data!$E:$E,Data!$B:$B,'7'!K$33,Data!$C:$C,'7'!$A$33,Data!$D:$D,'7'!$A58,Data!$F:$F,'7'!$A$47))","v":34.710000000000008}]
[{"$f":"VLOOKUP(\"Portfolio distributions do not include substitutions volumes for Portfolio insurance.\",Translation!$A$1:$C$354, Translation!A1+1, 0)","v":"La répartition des prêts hypothécaires pour l'assurance de portefeuille ne comprend pas les prêts de remplacement. "}]
[{"$f":"VLOOKUP(\"Distribution based on loan amounts, not number of loans.\",Translation!$A$1:$C$354, Translation!A1+1, 0)","v":"La répartition est établie d'après le montant, plutôt que le nombre de prêts assurés."}]
[{"$f":"VLOOKUP(\"The sum of all breakdown categories may not add up to 100 due to rounding.\",Translation!$A$1:$C$354, Translation!A1+1, 0)","v":"Les chiffres ayant été arrondis, il se peut que la somme de l'ensemble des catégories n'égale pas 100 %."}]

{"sheet":"8","index":9,"n_rows":67,"n_cols":11,"rows_kept":67,"cut":false,"hidden":false,"merged":[[2,0,4,0],[35,0,37,0],[35,6,35,10],[2,6,2,10],[0,6,0,10],[3,1,3,10],[36,1,36,10]]}
[{"$f":"VLOOKUP(\"TRANSACTIONAL HOMEOWNER AND PORTFOLIO - LOAN-TO-VALUE RATIO\",Translation!$A$1:$C$354, Translation!A1+1, 0)","v":"PROPRIÉTAIRES-OCCUPANTS (À L’UNITÉ) ET ASSURANCE DE PORTEFEUILLE - RAPPORT PRÊT-VALEUR"},null,null,null,null,null,{"$f":"VLOOKUP(\"Back to Table of Contents\",Translation!$A$1:$C$354, Translation!A1+1, 0)","v":"Retour à la table des matières"}]
[{"$f":"VLOOKUP(\"Insurance-in-force by loan-to-value (LTV) ratio based on original property value (%)\",Translation!$A$1:$C$354, Translation!A1+1, 0)","v":"Contrats d’assurance en vigueur selon le rapport prêt-valeur établi d'après la valeur originale de la propriété (%)"}]
[{"$f":"VLOOKUP(\"TRANSACTIONAL HOMEOWNER\",Translation!$A$1:$C$354, Translation!A1+1, 0)","v":"PROPRIÉTAIRES-OCCUPANTS, À L’UNITÉ"}]
[null,{"$f":"VLOOKUP(\"As at\",Translation!$A$1:$C$354,Translation!A1+1,0)","v":"Aux"}]
[null,{"$f":"VLOOKUP(\"Q1 2020\",Translation!$A$1:$C$354, Translation!$A1+1, 0)","v":"T1 2020"},{"$f":"VLOOKUP(\"Q4 2019\",Translation!$A$1:$C$354, Translation!$A1+1, 0)","v":"T4 2019"},{"$f":"VLOOKUP(\"Q3 2019\",Translation!$A$1:$C$354, Translation!$A1+1, 0)","v":"T3 2019"},{"$f":"VLOOKUP(\"Q2 2019\",Translation!$A$1:$C$354, Translation!$A1+1, 0)","v":"T2 2019"},{"$f":"VLOOKUP(\"Q1 2019\",Translation!$A$1:$C$354, Translation!$A1+1, 0)","v":"T1 2019"},{"$f":"VLOOKUP(\"Q4 2018\",Translation!$A$1:$C$354, Translation!A1+1, 0)","v":"T4 2018"},{"$f":"VLOOKUP(\"Q3 2018\",Translation!$A$1:$C$354, Translation!A1+1, 0)","v":"T3 2018"},{"$f":"VLOOKUP(\"Q2 2018\",Translation!$A$1:$C$354, Translation!A1+1, 0)","v":"T2 2018"},{"$f":"VLOOKUP(\"Q4 2017\",Translation!$A$1:$C$354, Translation!A1+1, 0)","v":"T4 2017"},{"$f":"VLOOKUP(\"Q3 2017\",Translation!$A$1:$C$354, Translation!A1+1, 0)","v":"T3 2017"}]
["<= 50 %",0.24750273969248604,0.24214979518152333,0.23669323671201736,0.22905178698354248,0.22924066863368769,0.23133010217089092,0.23090494532995381,0.23663643588704786,0.24423760582247322,0.24769574737064792]
["> 50 % <= 55 %",9.4313182288371863E-2,9.4244877398679067E-2,9.4017662270435592E-2,9.4357835638263068E-2,9.6213762624300994E-2,9.6583506599749624E-2,9.6033912913799868E-2,9.749506957670398E-2,9.8357388191105954E-2,0.10089570322408779]
["> 55 % <= 60 %",0.14465522252097651,0.14414773495777675,0.14292169902135299,0.14208410095809962,0.14586260689529632,0.14568530156522105,0.14709819860446874,0.14967981916397344,0.15622477683334912,0.16050245488577677]
["> 60 % <= 65 %",0.25395754888445865,0.25480617548019191,0.25059435253734996,0.24841619212981769,0.25143618124166089,0.25301398348207788,0.25242173968798309,0.25542582335273645,0.26891723813555218,0.27368091711579506]
["> 65 % <= 70 %",0.26194576124893715,0.26532867220124567,0.26673723365413543,0.27327761557330205,0.28024933316974809,0.28317671886389545,0.2895844438918308,0.2962509994393055,0.31048180554804766,0.32024129374678745]
["> 70 % <= 75 %",0.60974359113249654,0.62384190877159373,0.6416764759781195,0.66300494914289232,0.68606830347416448,0.69932517746434641,0.71733718413645564,0.73176438901263163,0.77447485774479552,0.79331255330683992]
["> 75 % <= 80 %",2.6921872810773828,2.7444503700905796,2.8316073977967204,2.9533659231162699,3.0689375291067118,3.1371393807140193,3.2235885602718115,3.3256492012905348,3.5175680748003169,3.6003517461199661]
["> 80 % <= 85 %",5.4095394776650698,5.4262273921136224,5.4563997085120963,5.5201667716864637,5.5979682946993323,5.6255084280140624,5.6574385315366147,5.7036050022709217,5.7792605089065825,5.866587635090724]
["> 85 % <= 90 %",24.577268751809335,24.566939723265385,24.521448370887718,24.544278212321526,24.507300844478159,24.504588849079639,24.493671062151499,24.470442035829716,24.41894292680248,24.43118810220912]
["> 90 % <= 95 %",64.867024305781229,64.77539627953422,64.671300409567834,64.409169878626074,64.183426502399726,64.055796383584237,63.893933700647274,63.688547424693141,63.3076427978814,63.037251185947937]
["> 95 %",0.83038124589559725,0.85083898661919033,0.87437333366901571,0.9103721651150759,0.94083917518513571,0.95504682501900695,0.98464942129330657,1.0311144129059975,1.1103170234364326,1.1545195625638847]
[{"$f":"VLOOKUP(\"Average loan-to-value\",Translation!$A$1:$C$354, Translation!A1+1, 0)","v":"Rapport prêt-valeur moyen "},91.245892022169855,91.222888141047733,91.201962190972083,91.16213184434929,91.11312511119948,91.073062754508101,91.041586058686065,91.000832572649131,90.913993872750552,90.877881932398097]
[{"$f":"VLOOKUP(\"Average equity\",Translation!$A$1:$C$354, Translation!A1+1, 0)","v":"Avoir propre foncier moyen "},{"$f":"100-B17","v":8.7541079778301452},{"$f":"100-C17","v":8.7771118589522672},{"$f":"100-D17","v":8.7980378090279174},{"$f":"100-E17","v":8.8378681556507104},{"$f":"100-F17","v":8.88687488880052},8.926937245491942,8.9584139413139354,8.9991674273508693,9.0860061272494477,9.1221180676019031]
[{"$f":"VLOOKUP(\"Average equity by province\",Translation!$A$1:$C$354, Translation!A1+1, 0)","v":"Avoir propre foncier moyen selon la province"}]
[{"$f":"VLOOKUP(\"Newfoundland and Labrador\",Translation!$A$1:$C$354, Translation!A1+1, 0)","v":"Terre-Neuve-et-Labrador"},9.5465587431758365,9.5756958035441215,9.667383261537708,9.7425564936824998,9.8244799150871529,9.918282065160767,10.005953489634081,10.062821513373578,10.231074494918744,10.328174601914398]
[{"$f":"VLOOKUP(\"Prince Edward Island\",Translation!$A$1:$C$354, Translation!A1+1, 0)","v":"Île-du-Prince-Édouard"},9.2462075963445045,9.2687610549294703,9.3153557012549015,9.3449285366967132,9.392510329106571,9.4778893256448811,9.5328959260101271,9.6166043048502559,9.7019127060982413,9.7635224353823133]
[{"$f":"VLOOKUP(\"Nova Scotia\",Translation!$A$1:$C$354, Translation!A1+1, 0)","v":"Nouvelle-Écosse"},9.0839487790614868,9.0996982173654004,9.1556331424656889,9.2511147616589255,9.2876176165580659,9.3503131373069408,9.395734390405778,9.4536425650709788,9.5622109427039987,9.6162162828510702]
[{"$f":"VLOOKUP(\"New Brunswick\",Translation!$A$1:$C$354, Translation!A1+1, 0)","v":"Nouveau-Brunswick"},9.0387226109947107,9.0898989877214262,9.1566695243759142,9.2405800772666851,9.2987520778682722,9.353554690129954,9.4290708933577605,9.5182422588644329,9.673592773777159,9.76384860604594]
[{"$f":"VLOOKUP(\"Quebec\",Translation!$A$1:$C$354, Translation!A1+1, 0)","v":"Québec"},8.526602874103375,8.5647373602069479,8.6103272209004444,8.6795101319920462,8.7927410940935005,8.8382561845917422,8.8941622150683628,8.957058363854415,9.1555910761752131,9.2268660466463359]
[{"$f":"VLOOKUP(\"Ontario\",Translation!$A$1:$C$354, Translation!A1+1, 0)","v":"Ontario"},9.0413354841462876,9.0328261314453329,9.023773255613591,9.0106516363335771,9.0065412737950084,9.042990908202853,9.0446583679533887,9.0471546248798944,9.0414884952439536,9.0218390299649087]
[{"$f":"VLOOKUP(\"Manitoba\",Translation!$A$1:$C$354, Translation!A1+1, 0)","v":"Manitoba"},7.9401268110813987,7.9640912785334876,7.9967698875158391,8.0469426527843666,8.0973137859058824,8.1413541058944787,8.1861596034736266,8.250038343111683,8.350042216632346,8.3897066778831686]
[{"$f":"VLOOKUP(\"Saskatchewan\",Translation!$A$1:$C$354, Translation!A1+1, 0)","v":"Saskatchewan"},8.165725667351083,8.2139184237886553,8.2339473561614938,8.2806990415054855,8.3314764741169824,8.3717892353085688,8.420342130434193,8.4864694682697746,8.5915595400459921,8.6745605248326001]
[{"$f":"VLOOKUP(\"Alberta\",Translation!$A$1:$C$354, Translation!A1+1, 0)","v":"Alberta"},8.0506427962250768,8.0740900144831045,8.0851485723468102,8.1289228664876276,8.1628540410125936,8.1896811545403523,8.2174564787960378,8.2595870352046319,8.3148177480578624,8.3694408766724422]
[{"$f":"VLOOKUP(\"British Columbia\",Translation!$A$1:$C$354, Translation!A1+1, 0)","v":"Colombie-Britannique"},10.082762198618198,10.07793902310739,10.038711169979507,10.018715398949823,10.016286502978318,10.015713191883108,9.9855776092936281,9.9779105062288238,9.9568644190486282,9.944387492033016]
[{"$f":"VLOOKUP(\"Territories\",Translation!$A$1:$C$354, Translation!A1+1, 0)","v":"Territoires"},12.434128613954996,12.539554235490982,12.679214943809882,12.782123381141801,12.940386866059669,13.034276873361307,13.118073719227169,13.229711831134566,13.424934000687898,13.599281925157584]
[{"$f":"VLOOKUP(\"LTV calculated on the basis of loan amounts and property values at insurance origination.\",Translation!$A$1:$C$354, Translation!A1+1, 0)","v":"Le RPV est fondé sur le montant du prêt et la valeur de la propriété à l'initiation de l'assurance."}]
[{"$f":"VLOOKUP(\"Distribution based on outstanding loan amounts, not number of loans.\",Translation!$A$1:$C$354, Translation!A1+1, 0)","v":"La répartition est établie d'après le solde, plutôt que le nombre de prêts assurés."}]
[{"$f":"VLOOKUP(\"The sum of all breakdown categories may not add up to 100 due to rounding.\",Translation!$A$1:$C$354, Translation!A1+1, 0)","v":"Les chiffres ayant été arrondis, il se peut que la somme de l'ensemble des catégories n'égale pas 100 %."}]
[]
[{"$f":"VLOOKUP(\"Insurance-in-force by loan-to-value (LTV) ratio based on original property value (%)\",Translation!$A$1:$C$354, Translation!A1+1, 0)","v":"Contrats d’assurance en vigueur selon le rapport prêt-valeur établi d'après la valeur originale de la propriété (%)"}]
[{"$f":"VLOOKUP(\"PORTFOLIO\",Translation!$A$1:$C$354, Translation!A1+1, 0)","v":"ASSURANCE DE PORTEFEUILLE"}]
[null,{"$f":"VLOOKUP(\"As at\",Translation!$A$1:$C$354,Translation!A1+1,0)","v":"Aux"}]
[null,{"$f":"VLOOKUP(\"Q1 2020\",Translation!$A$1:$C$354, Translation!$A1+1, 0)","v":"T1 2020"},{"$f":"VLOOKUP(\"Q4 2019\",Translation!$A$1:$C$354, Translation!$A1+1, 0)","v":"T4 2019"},{"$f":"VLOOKUP(\"Q3 2019\",Translation!$A$1:$C$354, Translation!$A1+1, 0)","v":"T3 2019"},{"$f":"VLOOKUP(\"Q2 2019\",Translation!$A$1:$C$354, Translation!$A1+1, 0)","v":"T2 2019"},{"$f":"VLOOKUP(\"Q1 2019\",Translation!$A$1:$C$354, Translation!$A1+1, 0)","v":"T1 2019"},{"$f":"VLOOKUP(\"Q4 2018\",Translation!$A$1:$C$354, Translation!A1+1, 0)","v":"T4 2018"},{"$f":"VLOOKUP(\"Q3 2018\",Translation!$A$1:$C$354, Translation!A1+1, 0)","v":"T3 2018"},{"$f":"VLOOKUP(\"Q2 2018\",Translation!$A$1:$C$354, Translation!A1+1, 0)","v":"T2 2018"},{"$f":"VLOOKUP(\"Q4 2017\",Translation!$A$1:$C$354, Translation!A1+1, 0)","v":"T4 2017"},{"$f":"VLOOKUP(\"Q3 2017\",Translation!$A$1:$C$354, Translation!A1+1, 0)","v":"T3 2017"}]
["<= 50 %",20.122709269384448,20.170044656498472,20.253619978409695,20.276584710374344,20.231038028562836,20.218735697856623,20.33065433896197,20.182550774739333,20.188364723317491,20.150602942601182]
["> 50 % <= 55 %",5.8236680214029297,5.824326528778446,5.8440062964731325,5.8538459087367753,5.871555229015625,5.8652681430354319,5.8615250077659802,5.8462017577058383,5.839509353179599,5.8269492046763443]
["> 55 % <= 60 %",7.2644953932264968,7.285905923598099,7.3004957523064,7.313309307081278,7.3264183343236686,7.3175048589924714,7.3153991398776874,7.3050666119382077,7.2968185885817896,7.2678651141952262]
["> 60 % <= 65 %",10.009878452348854,10.040157957199625,10.061045722382451,10.035000114310943,10.078226958520991,10.037542358513285,10.02042535958304,10.032942973283209,10.001160529258799,10.000464638957791]
["> 65 % <= 70 %",9.8346067887977586,9.84518082074338,9.8337776429155959,9.8025149429280898,9.8354082409793353,9.8141332475036887,9.8113957211099354,9.8304767196884928,9.7956150645731217,9.7149776216086927]
["> 70 % <= 75 %",16.265506844623541,16.35295858077038,16.341341420834841,16.25400944619718,16.362499748913827,16.363915236157233,16.316394900565005,16.37620759686865,16.281519217155314,16.128940917643366]
["> 75 % <= 80 %",30.57558241402602,30.37681148172706,30.259865342193166,30.360270919674914,30.191901090303702,30.280049137445396,30.244214588973385,30.32554877953833,30.499400144140747,30.811797685018462]
["> 80 % <= 85 %",0,0,0,0,0,0,0,0,0,0]
["> 85 % <= 90 %",1.8916061379784633E-4,1.9060786563079119E-4,1.9175142200630966E-4,1.8545623577351862E-4,0,0,0,0,0,0]
["> 90 % <= 95 %",0,0,0,0,0,0,0,0,0,0]
["> 95 %",0,0,0,0,0,0,0,0,0,1.159262149670456E-4]
[{"$f":"VLOOKUP(\"Average loan-to-value\",Translation!$A$1:$C$354, Translation!A1+1, 0)","v":"Rapport prêt-valeur moyen "},55.556475405560711,55.524069357128006,55.513025211426253,55.524030450041828,55.531102439853747,55.556105714034373,55.529658150580559,55.583669346363074,56.817345431067437,56.904516659369698]
[{"$f":"VLOOKUP(\"Average equity\",Translation!$A$1:$C$354, Translation!A1+1, 0)","v":"Avoir propre foncier moyen "},{"$f":"100-B50","v":44.443524594439289},{"$f":"100-C50","v":44.475930642871994},44.486974788573747,{"$f":"100-E50","v":44.475969549958172},{"$f":"100-F50","v":44.468897560146253},44.443894285965627,44.470341849419441,44.416330653636926,43.182654568932563,43.095483340630302]
[{"$f":"VLOOKUP(\"Average equity by province\",Translation!$A$1:$C$354, Translation!A1+1, 0)","v":"Avoir propre foncier moyen selon la province"}]
[{"$f":"VLOOKUP(\"Newfoundland and Labrador\",Translation!$A$1:$C$354, Translation!A1+1, 0)","v":"Terre-Neuve-et-Labrador"},39.270111243909135,39.354314512532476,39.382523867384101,39.454718726560834,39.450134080936039,39.433817747711942,39.578904721558821,39.660258040665475,39.281822799096794,39.276928337171164]
[{"$f":"VLOOKUP(\"Prince Edward Island\",Translation!$A$1:$C$354, Translation!A1+1, 0)","v":"Île-du-Prince-Édouard"},39.888921675774107,39.879517313746035,39.847111790689702,39.886771986970736,39.973350157728703,39.90982246709514,39.915721815519767,39.941594851706704,39.134105291871158,39.247327077747919]
[{"$f":"VLOOKUP(\"Nova Scotia\",Translation!$A$1:$C$354, Translation!A1+1, 0)","v":"Nouvelle-Écosse"},41.141472763304073,41.262416884572268,41.312523602033622,41.37588587806151,41.494392827004305,41.551215103351531,41.664108737244973,41.73347993886118,40.943076581082565,41.018584819303769]
[{"$f":"VLOOKUP(\"New Brunswick\",Translation!$A$1:$C$354, Translation!A1+1, 0)","v":"Nouveau-Brunswick"},39.782475673951147,39.929010336315883,40.009181715998459,40.090457993416322,40.221345535839077,40.306488497508163,40.40315914332804,40.414779639582676,39.766665643606622,39.86312503784432]
[{"$f":"VLOOKUP(\"Quebec\",Translation!$A$1:$C$354, Translation!A1+1, 0)","v":"Québec"},42.989739924083381,43.04991216447587,43.060474664269272,43.074057942794305,43.149553065549874,43.190846546766871,43.265663948510543,43.300134881026111,42.923621154284255,42.972531853902062]
[{"$f":"VLOOKUP(\"Ontario\",Translation!$A$1:$C$354, Translation!A1+1, 0)","v":"Ontario"},45.959167058164589,45.966864996055278,45.941546978788928,45.87798239641976,45.829924490766011,45.762771783060032,45.763686461173947,45.649443018389256,43.944828229113853,43.775190538133835]
[{"$f":"VLOOKUP(\"Manitoba\",Translation!$A$1:$C$354, Translation!A1+1, 0)","v":"Manitoba"},42.641889966250268,42.690106179106174,42.756792056425745,42.81958788858266,42.880070299577469,42.924288912771047,43.003564313742196,43.018261335974088,42.190853653637525,42.234845827106184]
[{"$f":"VLOOKUP(\"Saskatchewan\",Translation!$A$1:$C$354, Translation!A1+1, 0)","v":"Saskatchewan"},42.582179864662344,42.631399839099117,42.774103367266825,42.84652973635805,42.889050528249854,42.941380630630611,43.066982622432867,43.144817462667667,42.313453685258949,42.356618492363438]
[{"$f":"VLOOKUP(\"Alberta\",Translation!$A$1:$C$354, Translation!A1+1, 0)","v":"Alberta"},41.732622215741152,41.798929538693436,41.872728195606015,41.918984597354701,41.988781602242973,42.002007960262318,42.096014795754222,42.111823154125965,40.940859295916802,40.906895657136843]
[{"$f":"VLOOKUP(\"British Columbia\",Translation!$A$1:$C$354, Translation!A1+1, 0)","v":"Colombie-Britannique"},45.949474805450329,45.969558739450228,45.9372524975416,45.940788646795404,45.864998138525024,45.81156478309579,45.768798237977251,45.658152913433554,44.592618924917872,44.44517949992558]
[{"$f":"VLOOKUP(\"Territories\",Translation!$A$1:$C$354, Translation!A1+1, 0)","v":"Territoires"},41.349464144996126,41.391786525359592,41.384871794871856,41.490477239353901,41.371431593794114,41.447828767123347,41.142405405405391,41.230748560460604,40.829390394088747,40.858872638634899]
[{"$f":"VLOOKUP(\"LTV calculated on the basis of loan amounts and property values at insurance origination.\",Translation!$A$1:$C$354, Translation!A1+1, 0)","v":"Le RPV est fondé sur le montant du prêt et la valeur de la propriété à l'initiation de l'assurance."}]
[{"$f":"VLOOKUP(\"Distribution based on outstanding loan amounts, not number of loans.\",Translation!$A$1:$C$354, Translation!A1+1, 0)","v":"La répartition est établie d'après le solde, plutôt que le nombre de prêts assurés."}]
[{"$f":"VLOOKUP(\"The sum of all breakdown categories may not add up to 100 due to rounding.\",Translation!$A$1:$C$354, Translation!A1+1, 0)","v":"Les chiffres ayant été arrondis, il se peut que la somme de l'ensemble des catégories n'égale pas 100 %."}]
[{"$f":"VLOOKUP(\"Portfolio-insured Line of Credit loans with zero ($0.00) balance were included in the number of loans in force starting from Q2 2018.\",Translation!$A$1:$C$354, Translation!A1+1, 0)","v":"Les prêts liés à une marge de crédit couverts par une assurance de portefeuille ayant un solde nul (0,00 $) sont inclus dans le nombre des prêts en cours depuis le deuxième trimestre de 2018."}]

{"sheet":"9","index":10,"n_rows":67,"n_cols":12,"rows_kept":67,"cut":false,"hidden":false,"merged":[[0,10,0,11],[66,0,66,11],[2,0,4,0],[35,0,37,0],[35,6,35,11],[2,6,2,11],[0,5,0,9],[3,1,3,11],[36,1,36,11]]}
[{"$f":"VLOOKUP(\"TRANSACTIONAL HOMEOWNER AND PORTFOLIO - LOAN-TO-VALUE RATIO\",Translation!$A$1:$C$354, Translation!A1+1, 0)","v":"PROPRIÉTAIRES-OCCUPANTS (À L’UNITÉ) ET ASSURANCE DE PORTEFEUILLE - RAPPORT PRÊT-VALEUR"},null,null,null,null,{"$f":"VLOOKUP(\"Back to Table of Contents\",Translation!$A$1:$C$354, Translation!A1+1, 0)","v":"Retour à la table des matières"},null,null,null,null,{"$f":"VLOOKUP(\"Back to Table of Contents\",Translation!$A$1:$C$354, Translation!A1+1, 0)","v":"Retour à la table des matières"}]
[{"$f":"VLOOKUP(\"Insurance-in-force by loan-to-value (LTV) ratio based on updated property value (%)\",Translation!$A$1:$C$354, Translation!A1+1, 0)","v":"Contrats d’assurance en vigueur selon le rapport prêt-valeur établi d'après la valeur courante de la propriété (%)"}]
[{"$f":"VLOOKUP(\"TRANSACTIONAL HOMEOWNER\",Translation!$A$1:$C$354, Translation!A1+1, 0)","v":"PROPRIÉTAIRES-OCCUPANTS, À L’UNITÉ"}]
[null,{"$f":"VLOOKUP(\"As at\",Translation!$A$1:$C$354,Translation!A1+1,0)","v":"Aux"}]
[null,{"$f":"VLOOKUP(\"Q1 2020\",Translation!$A$1:$C$354, Translation!$A1+1, 0)","v":"T1 2020"},{"$f":"VLOOKUP(\"Q4 2019\",Translation!$A$1:$C$354, Translation!$A1+1, 0)","v":"T4 2019"},{"$f":"VLOOKUP(\"Q3 2019\",Translation!$A$1:$C$354, Translation!$A1+1, 0)","v":"T3 2019"},{"$f":"VLOOKUP(\"Q2 2019\",Translation!$A$1:$C$354, Translation!$A1+1, 0)","v":"T2 2019"},{"$f":"VLOOKUP(\"Q1 2019\",Translation!$A$1:$C$354, Translation!$A1+1, 0)","v":"T1 2019"},{"$f":"VLOOKUP(\"Q4 2018\",Translation!$A$1:$C$354, Translation!A1+1, 0)","v":"T4 2018"},{"$f":"VLOOKUP(\"Q3 2018\",Translation!$A$1:$C$354, Translation!A1+1, 0)","v":"T3 2018"},{"$f":"VLOOKUP(\"Q2 2018\",Translation!$A$1:$C$354, Translation!A1+1, 0)","v":"T2 2018"},{"$f":"VLOOKUP(\"Q1 2018\",Translation!$A$1:$C$354, Translation!A1+1, 0)","v":"T1 2018"},{"$f":"VLOOKUP(\"Q4 2017\",Translation!$A$1:$C$354, Translation!A1+1, 0)","v":"T4 2017"},{"$f":"VLOOKUP(\"Q3 2017\",Translation!$A$1:$C$354, Translation!A1+1, 0)","v":"T3 2017"}]
["<= 50 %",21.429702590444354,19.058814043618046,19.093077145738576,18.35765062015648,18.240193895907453,20.911109031715402,20.448242241997928,19.739640989059456,17.618913525334438,15.765652481073056,16.023135988308791]
["> 50 % <= 55 %",5.4827734207366028,5.4358336003362417,5.6438783095710763,5.8123675230000469,5.7769983674057537,5.7083114447026215,5.8308935500556203,5.9704154370901907,5.3801198020429464,5.0191287862401079,5.1620120047876226]
["> 55 % <= 60 %",5.8913057207259314,6.1817622089886175,6.3461200917573288,6.3257282370683576,6.472230879425668,6.6403497431774161,6.510088658762216,6.6056715148774563,6.8418195929524304,6.4342177214149281,6.5618460024169796]
["> 60 % <= 65 %",6.8031857059679259,6.4236586515731675,7.0341314640906631,7.3714927481354557,7.4545172967305398,7.5822130732463755,7.5657097993784621,7.5449673240171657,7.9071471821637704,8.0822683454244224,8.1996611414122658]
["> 65 % <= 70 %",8.3747689031491124,7.8449088545717762,8.7773689487372124,8.74368397691822,9.0008146909595279,9.2910328195725729,9.292323426310773,9.3580652613299105,9.2972368201906459,8.8982679686773309,9.013263419297294]
["> 70 % <= 75 %",9.2036315970602303,8.8042473920618924,9.3021852135105849,9.4879849485715564,9.8364489867755704,9.7248983988993842,9.644739761323013,9.9537906325960126,10.776941111698699,10.678129980814225,10.71017119424387]
["> 75 % <= 80 %",9.4952760844532893,9.1167558006517755,10.128607457636955,9.9525052079025063,10.142447309629578,9.464212250696395,9.5672856506161814,9.5601648934351875,10.723396888310846,10.994124880319614,11.266905066597822]
["> 80 % <= 85 %",11.668044718595738,9.9633355799022141,11.086953986746547,9.9871855039633548,10.06695533671887,9.9289112488246438,10.058397863479573,10.186270963619279,10.71006970977291,10.757461668543705,10.739891175334773]
["> 85 % <= 90 %",12.036621782794874,10.826969769095331,11.852988108362275,12.419315911779732,11.947665174225429,11.761875742913581,11.050670332746854,11.959322385432507,11.678611517074486,11.608746818588846,11.282834419585296]
["> 90 % <= 95 %",8.3443106711243615,9.7727667227340778,8.3468756451649764,9.8273759298360925,9.3514828327022972,8.5536071126277946,9.1123100149119516,8.6163900491379035,8.5118452677607976,10.674340132942254,10.483443313588714]
["> 95 %",1.2703788047476068,6.5709473768476414,2.3878136282501927,1.7147093932845543,1.7102452298995274,0.43347913279108985,0.91933870072143931,0.50530054951566983,0.55389858239599521,1.0876612156869665,0.55683627448983053]
[{"$f":"VLOOKUP(\"Average loan-to-value\",Translation!$A$1:$C$354, Translation!A1+1, 0)","v":"Rapport prêt-valeur moyen "},59.920006557098212,62.057182235695826,62.057182235695826,61.783254643157022,61.796679750778239,60.252167167643016,60.578435460233464,61.000798193515713,62.102887829614851,63.458346206409708,63.225974355423084]
[{"$f":"VLOOKUP(\"Average equity\",Translation!$A$1:$C$354, Translation!A1+1, 0)","v":"Avoir propre foncier moyen "},37.942817764304174,{"$f":"100-C17","v":37.942817764304174},{"$f":"100-D17","v":37.942817764304174},{"$f":"100-E17","v":38.216745356842978},{"$f":"100-F17","v":38.203320249221761},39.747832832356984,39.421564539766536,38.999201806484287,37.897112170385149,36.541653793590292,36.774025644576916]
[{"$f":"VLOOKUP(\"Average equity by province\",Translation!$A$1:$C$354, Translation!A1+1, 0)","v":"Avoir propre foncier moyen selon la province"}]
[{"$f":"VLOOKUP(\"Newfoundland and Labrador\",Translation!$A$1:$C$354, Translation!A1+1, 0)","v":"Terre-Neuve-et-Labrador"},35.225713254872304,42.44435987344292,39.260609122850902,35.634387797900146,33.82522421449967,35.853295589255069,37.992822948000082,36.462520774869134,36.252825578848238,35.499189957910943,34.683982986478199]
[{"$f":"VLOOKUP(\"Prince Edward Island\",Translation!$A$1:$C$354, Translation!A1+1, 0)","v":"Île-du-Prince-Édouard"},48.50828708997615,59.331401610054982,57.784019001724111,52.659695543872203,48.679658511911661,45.264803578897904,45.472430421847037,39.55075081438207,41.315131384074874,38.953718931192135,38.956806817130051]
[{"$f":"VLOOKUP(\"Nova Scotia\",Translation!$A$1:$C$354, Translation!A1+1, 0)","v":"Nouvelle-Écosse"},40.827320452398126,40.398105319523452,42.761507191655873,38.648557657025016,37.173028129226573,38.71029328807613,37.889448131071987,35.917734875418702,36.760566737592185,34.428148205083104,34.498629160627914]
[{"$f":"VLOOKUP(\"New Brunswick\",Translation!$A$1:$C$354, Translation!A1+1, 0)","v":"Nouveau-Brunswick"},43.633938158564717,45.612327343315684,36.314638824483623,36.552838993569239,36.375167224644578,38.982103058747292,37.51726270284172,38.01104707354235,34.77012193242328,33.771568177554784,33.705240380815567]
[{"$f":"VLOOKUP(\"Quebec\",Translation!$A$1:$C$354, Translation!A1+1, 0)","v":"Québec"},36.185981668058318,33.526488378110656,34.226227116508468,32.747516592119624,33.079806556536312,33.640338350484683,33.182420593555236,32.22188288528308,31.907553016340458,30.85289311018829,31.041936374034364]
[{"$f":"VLOOKUP(\"Ontario\",Translation!$A$1:$C$354, Translation!A1+1, 0)","v":"Ontario"},52.52152747595332,51.026232240402607,51.042689672285185,50.239041550639072,50.000676165950566,50.66978759106464,50.210265240429109,49.847761388399938,48.608943389240942,46.556466610458941,46.912870624851777]
[{"$f":"VLOOKUP(\"Manitoba\",Translation!$A$1:$C$354, Translation!A1+1, 0)","v":"Manitoba"},33.273670172322369,33.237368769646238,33.362751557042259,33.395302256568158,33.259593111396171,33.961447234889064,34.039723321267914,34.037426413727673,33.794830053176867,33.268186921514769,33.194085788220235]
[{"$f":"VLOOKUP(\"Saskatchewan\",Translation!$A$1:$C$354, Translation!A1+1, 0)","v":"Saskatchewan"},23.843704017639908,20.446273908385237,26.979501070369849,28.742305247697857,28.112684568309263,28.583344220532197,28.598324332844001,29.5172918426873,30.593360252911936,30.047784142249483,30.098208169579394]
[{"$f":"VLOOKUP(\"Alberta\",Translation!$A$1:$C$354, Translation!A1+1, 0)","v":"Alberta"},28.143704714611886,23.560073952578406,26.254683104771146,27.182883528536934,27.381245337939887,29.987053638171304,29.705573342136987,29.985238636764066,28.70460574078632,28.308098059432595,28.477763507262779]
[{"$f":"VLOOKUP(\"British Columbia\",Translation!$A$1:$C$354, Translation!A1+1, 0)","v":"Colombie-Britannique"},51.096325010958395,45.839759813286705,47.07984640818718,47.851101945206892,47.811245771701358,53.109955191456997,52.460237976455538,51.197955985125944,46.076164849070437,42.699207076922889,42.892641889651955]
[{"$f":"VLOOKUP(\"Territories\",Translation!$A$1:$C$354, Translation!A1+1, 0)","v":"Territoires"},35.322182689677319,44.274290933227583,45.644526926332439,42.101174868410673,43.110248162527654,39.323559301250015,39.925049550402655,39.490413978748705,36.517840620379303,38.566256902345593,38.749025405833017]
[{"$f":"VLOOKUP(\"LTV calculated on the basis of outstanding loan amounts and estimated updated property values reflecting changes in local resale prices.\",Translation!$A$1:$C$354, Translation!A1+1, 0)","v":"Le RPV est fondé sur le solde du prêt et la valeur courante estimative de la propriété en tenant compte des variations des prix de revente sur le marché local."}]
[{"$f":"VLOOKUP(\"Distribution based on outstanding loan amounts, not number of loans.\",Translation!$A$1:$C$354, Translation!A1+1, 0)","v":"La répartition est établie d'après le solde, plutôt que le nombre de prêts assurés."}]
[{"$f":"VLOOKUP(\"The sum of all breakdown categories may not add up to 100 due to rounding.\",Translation!$A$1:$C$354, Translation!A1+1, 0)","v":"Les chiffres ayant été arrondis, il se peut que la somme de l'ensemble des catégories n'égale pas 100 %."}]
[]
[{"$f":"VLOOKUP(\"Insurance-in-force by loan-to-value (LTV) ratio based on updated property value (%)\",Translation!$A$1:$C$354, Translation!A1+1, 0)","v":"Contrats d’assurance en vigueur selon le rapport prêt-valeur établi d'après la valeur courante de la propriété (%)"}]
[{"$f":"VLOOKUP(\"PORTFOLIO\",Translation!$A$1:$C$354, Translation!A1+1, 0)","v":"ASSURANCE DE PORTEFEUILLE"}]
[null,{"$f":"VLOOKUP(\"As at\",Translation!$A$1:$C$354,Translation!A1+1,0)","v":"Aux"}]
[null,{"$f":"VLOOKUP(\"Q1 2020\",Translation!$A$1:$C$354, Translation!$A1+1, 0)","v":"T1 2020"},{"$f":"VLOOKUP(\"Q4 2019\",Translation!$A$1:$C$354, Translation!$A1+1, 0)","v":"T4 2019"},{"$f":"VLOOKUP(\"Q3 2019\",Translation!$A$1:$C$354, Translation!$A1+1, 0)","v":"T3 2019"},{"$f":"VLOOKUP(\"Q2 2019\",Translation!$A$1:$C$354, Translation!$A1+1, 0)","v":"T2 2019"},{"$f":"VLOOKUP(\"Q1 2019\",Translation!$A$1:$C$354, Translation!$A1+1, 0)","v":"T1 2019"},{"$f":"VLOOKUP(\"Q4 2018\",Translation!$A$1:$C$354, Translation!A1+1, 0)","v":"T4 2018"},{"$f":"VLOOKUP(\"Q3 2018\",Translation!$A$1:$C$354, Translation!A1+1, 0)","v":"T3 2018"},{"$f":"VLOOKUP(\"Q2 2018\",Translation!$A$1:$C$354, Translation!A1+1, 0)","v":"T2 2018"},{"$f":"VLOOKUP(\"Q1 2018\",Translation!$A$1:$C$354, Translation!A1+1, 0)","v":"T1 2018"},{"$f":"VLOOKUP(\"Q4 2017\",Translation!$A$1:$C$354, Translation!A1+1, 0)","v":"T4 2017"},{"$f":"VLOOKUP(\"Q3 2017\",Translation!$A$1:$C$354, Translation!A1+1, 0)","v":"T3 2017"}]
["<= 50 %",71.63300335890483,69.185719946473242,69.654116715585644,68.417804287283701,68.142761045014893,69.720078228112243,68.649010030712944,67.483074171376941,65.149536119715776,62.158651980675842,62.6789237063157]
["> 50 % <= 55 %",7.0714117125280804,7.0644405946572455,7.5608794495419547,7.8575806062776916,7.9801537130149232,7.7907316901483199,7.7610949971727088,7.9265050989867385,8.3068804598108219,8.4437995591220982,8.558307279240017]
["> 55 % <= 60 %",6.4049566596890557,6.95858648978703,7.2306505179801848,7.2854337604110464,7.5053346880932139,7.2751046220802849,7.508405732393622,7.611930809049511,8.1142024662813359,8.2368613075038422,8.2321042132544449]
["> 60 % <= 65 %",5.1695454092000945,5.5463317286253719,5.8857826855853803,5.9740967775891827,6.2199313365711921,5.8329061788796297,6.0184294512359822,6.2913340112669536,6.8025422148555768,7.4269945087168763,7.4299219239937102]
["> 65 % <= 70 %",3.9898355012146371,4.0705017524155105,4.2315510957489435,4.3502696116907096,4.6769408469008091,4.7298292760330227,4.8966712413933342,5.0863328798098726,5.4827059666711113,6.0887045327716622,6.0743488244130406]
["> 70 % <= 75 %",3.7514836286328457,3.5608356787735072,3.602015381592341,3.3433058562358524,3.3905152314210132,3.379878230282952,3.5594076685206222,4.2084743152619417,4.3457525560815835,5.1371427280762489,4.6976949795099845]
["> 75 % <= 80 %",1.8366896341538024,2.6992220206865043,1.5418163741611597,2.566276523806823,1.9385033288215379,1.2576006656405969,1.4062821826565617,1.3764932201448552,1.7423398545898159,2.3822032384914849,2.253129724821842]
["> 80 % <= 85 %",0.11815081869008569,0.7222609572554104,0.21078234410986477,0.10849459061277526,0.10103940948072705,8.0223769263196437E-3,4.9886274691711009E-2,1.0419839983340749E-2,4.9705639865873008E-2,0.11856276485953637,4.7919517516904014E-2]
["> 85 % <= 90 %",1.5710411327692617E-2,0.12982744890168646,2.9431890503292923E-2,8.7481999469605446E-3,2.8986977147952802E-3,3.8710104814822092E-4,1.2029337485061763E-2,2.9066947933132102E-4,7.0813590631193754E-4,6.9036683118860979E-4,2.5573715474469104E-3]
["> 90 % <= 95 %",3.0908011536264399E-3,2.2547709384401281E-2,8.8246247848066672E-3,6.6200900083902741E-3,1.7118041004991582E-3,2.2480516687210453E-4,7.8825679208192195E-3,4.9708020555508164E-4,3.2154141396902708E-4,1.4816902833965085E-4,2.370353349552326E-4]
["> 95 %",6.1220644954405896E-3,3.9725673045673822E-2,4.4148920403542173E-2,8.1369696135919989E-2,4.020989886815067E-2,5.2368256858626085E-3,0.13090051581592677,4.6479044392777171E-3,5.3050448078118696E-3,6.2408439222624923E-3,2.485542405097578E-2]
[{"$f":"VLOOKUP(\"Average loan-to-value\",Translation!$A$1:$C$354, Translation!A1+1, 0)","v":"Rapport prêt-valeur moyen "},29.108778441655179,30.574947552073986,30.487298263474042,31.355007915159888,31.590773539763198,30.808832436797633,31.341487442327868,32.01904059812091,32.959557512832156,34.358921292252319,34.340426573361924]
[{"$f":"VLOOKUP(\"Average equity\",Translation!$A$1:$C$354, Translation!A1+1, 0)","v":"Avoir propre foncier moyen "},{"$f":"100-B50","v":70.891221558344824},{"$f":"100-C50","v":69.425052447926021},{"$f":"100-D50","v":69.512701736525955},{"$f":"100-E50","v":68.644992084840112},{"$f":"100-F50","v":68.409226460236795},69.19116756320237,68.65851255767214,67.98095940187909,67.040442487167837,65.641078707747681,65.659573426638076]
[{"$f":"VLOOKUP(\"Average equity by province\",Translation!$A$1:$C$354, Translation!A1+1, 0)","v":"Avoir propre foncier moyen selon la province"}]
[{"$f":"VLOOKUP(\"Newfoundland and Labrador\",Translation!$A$1:$C$354, Translation!A1+1, 0)","v":"Terre-Neuve-et-Labrador"},59.417439146798131,60.596693665126104,59.360587203242439,58.030373598100951,56.987835652459928,58.06678881256083,58.55241708462308,57.817709767915098,57.358153583497199,56.732558533157601,56.329301061105063]
[{"$f":"VLOOKUP(\"Prince Edward Island\",Translation!$A$1:$C$354, Translation!A1+1, 0)","v":"Île-du-Prince-Édouard"},71.568874318064516,76.769607197976114,76.017045392406658,71.976240932795321,69.660647138874793,67.789005305612591,67.260447109553766,62.819168488590655,63.894992197016073,61.810331841807951,61.712998431095748]
[{"$f":"VLOOKUP(\"Nova Scotia\",Translation!$A$1:$C$354, Translation!A1+1, 0)","v":"Nouvelle-Écosse"},65.962945252733732,65.253930690536095,66.038441553120578,62.894199670790776,61.913134509657823,62.527496917519862,61.59279688539354,59.758334259101382,60.563454281900498,58.50885097621989,58.458635561077138]
[{"$f":"VLOOKUP(\"New Brunswick\",Translation!$A$1:$C$354, Translation!A1+1, 0)","v":"Nouveau-Brunswick"},66.752182991562847,66.8365481016519,62.174716910419399,61.23292664427121,60.990126135092765,62.341816669934786,60.985029634123158,60.601675896439289,58.958907933671476,57.493523098304472,57.353056320132474]
[{"$f":"VLOOKUP(\"Quebec\",Translation!$A$1:$C$354, Translation!A1+1, 0)","v":"Québec"},66.939937316293822,65.280910100808171,65.12631469058249,63.621853270298715,63.21999030844065,63.353180727919913,62.600622135612532,61.526384917571598,61.104955445073934,59.742272886658675,59.648991699433829]
[{"$f":"VLOOKUP(\"Ontario\",Translation!$A$1:$C$354, Translation!A1+1, 0)","v":"Ontario"},76.182144227091015,75.145750323964478,74.995109183891287,73.796249081803367,73.544017111234808,73.800561871416065,73.356043335210785,72.761364881418984,71.833330740055928,70.446186408926451,70.57232586096147]
[{"$f":"VLOOKUP(\"Manitoba\",Translation!$A$1:$C$354, Translation!A1+1, 0)","v":"Manitoba"},65.310564634959434,64.675653056412273,64.920912004976628,64.345511538512142,63.914123720858562,64.289488881772229,63.798426747644456,63.123921056383772,62.995818378629316,62.048074506779727,61.958622171710623]
[{"$f":"VLOOKUP(\"Saskatchewan\",Translation!$A$1:$C$354, Translation!A1+1, 0)","v":"Saskatchewan"},56.85067286661684,55.058138398003017,58.014635306863525,58.598668935229036,58.127816895911003,58.564684655586952,58.178238474810875,58.400131529119896,58.679053770274507,58.108436641477034,57.913796725466277]
[{"$f":"VLOOKUP(\"Alberta\",Translation!$A$1:$C$354, Translation!A1+1, 0)","v":"Alberta"},59.14191909747575,56.664355218202338,58.297211205908908,57.845280736985153,58.00480407537416,59.412841119600174,59.054211507552495,58.95432480446852,58.403689069501716,57.922376727686164,57.729854519498971]
[{"$f":"VLOOKUP(\"British Columbia\",Translation!$A$1:$C$354, Translation!A1+1, 0)","v":"Colombie-Britannique"},75.196467675017018,72.595244783636275,72.037782651461654,72.782959770044357,72.826021790870541,75.657616626096342,75.014482125153066,74.105147585554477,71.480657355613346,68.852314287032286,68.975236365648186]
[{"$f":"VLOOKUP(\"Territories\",Translation!$A$1:$C$354, Translation!A1+1, 0)","v":"Territoires"},60.765328451480961,65.12089853449892,67.966167913642948,65.4504597857823,64.91630164537608,62.438179112198171,62.411731752290827,61.107383205486073,60.732310034263257,58.950574435564377,59.158719834214395]
[{"$f":"VLOOKUP(\"LTV calculated on the basis of outstanding loan amounts and estimated updated property values reflecting changes in local resale prices.\",Translation!$A$1:$C$354, Translation!A1+1, 0)","v":"Le RPV est fondé sur le solde du prêt et la valeur courante estimative de la propriété en tenant compte des variations des prix de revente sur le marché local."}]
[{"$f":"VLOOKUP(\"Distribution based on outstanding loan amounts, not number of loans.\",Translation!$A$1:$C$354, Translation!A1+1, 0)","v":"La répartition est établie d'après le solde, plutôt que le nombre de prêts assurés."}]
[{"$f":"VLOOKUP(\"The sum of all breakdown categories may not add up to 100 due to rounding.\",Translation!$A$1:$C$354, Translation!A1+1, 0)","v":"Les chiffres ayant été arrondis, il se peut que la somme de l'ensemble des catégories n'égale pas 100 %."}]
[{"$f":"VLOOKUP(\"Portfolio-insured Line of Credit loans with zero ($0.00) balance were included in the number of loans in force starting from Q2 2018.\",Translation!$A$1:$C$354, Translation!A1+1, 0)","v":"Les prêts liés à une marge de crédit couverts par une assurance de portefeuille ayant un solde nul (0,00 $) sont inclus dans le nombre des prêts en cours depuis le deuxième trimestre de 2018."}]

{"sheet":"10","index":11,"n_rows":53,"n_cols":11,"rows_kept":53,"cut":false,"hidden":false,"merged":[[0,6,0,10]]}
[{"$f":"VLOOKUP(\"TRANSACTIONAL HOMEOWNER AND PORTFOLIO - AMORTIZATION\",Translation!$A$1:$C$354, Translation!A1+1, 0)","v":"PROPRIÉTAIRES-OCCUPANTS (À L’UNITÉ) ET ASSURANCE DE PORTEFEUILLE - AMORTISSEMENT"},null,null,null,null,null,{"$f":"VLOOKUP(\"Back to Table of Contents\",Translation!$A$1:$C$354, Translation!A1+1, 0)","v":"Retour à la table des matières"}]
[{"$f":"VLOOKUP(\"Loans insured during the period by amortization (years) at origination (%)\",Translation!$A$1:$C$354, Translation!A1+1, 0)","v":"Prêts hypothécaires assurés au cours de la période selon la période d’amortissement (en années) à l'initiation (%)"}]
[{"$f":"VLOOKUP(\"TRANSACTIONAL HOMEOWNER\",Translation!$A$1:$C$354, Translation!A1+1, 0)","v":"PROPRIÉTAIRES-OCCUPANTS, À L’UNITÉ"},{"$f":"VLOOKUP(\"Q1 2020\",Translation!$A$1:$C$354, Translation!$A$1+1, 0)","v":"T1 2020"},{"$f":"VLOOKUP(\"Q4 2019\",Translation!$A$1:$C$354, Translation!$A$1+1, 0)","v":"T4 2019"},{"$f":"VLOOKUP(\"Q3 2019\",Translation!$A$1:$C$354, Translation!$A$1+1, 0)","v":"T3 2019"},{"$f":"VLOOKUP(\"Q2 2019\",Translation!$A$1:$C$354, Translation!$A$1+1, 0)","v":"T2 2019"},{"$f":"VLOOKUP(\"Q1 2019\",Translation!$A$1:$C$354, Translation!$A$1+1, 0)","v":"T1 2019"},{"$f":"VLOOKUP(\"Q4 2018\",Translation!$A$1:$C$354, Translation!$A$1+1, 0)","v":"T4 2018"},{"$f":"VLOOKUP(\"Q3 2018\",Translation!$A$1:$C$354, Translation!$A$1+1, 0)","v":"T3 2018"},{"$f":"VLOOKUP(\"Q2 2018\",Translation!$A$1:$C$354, Translation!$A$1+1, 0)","v":"T2 2018"},{"$f":"VLOOKUP(\"YTD 2020\",Translation!$A$1:$C$354, Translation!$A$1+1, 0)","v":"Cumul 2020"},{"$f":"VLOOKUP(\"YTD 2019\",Translation!$A$1:$C$354, Translation!$A$1+1, 0)","v":"Cumul 2019"}]
[" <= 5",{"$f":"SUMIFS(Data!$E:$E,Data!$B:$B,'10'!B$3,Data!$C:$C,'10'!$A$3,Data!$H:$H,'10'!$A4,Data!$F:$F,'10'!$A$2)","v":3.8834600895502097E-3},{"$f":"SUMIFS(Data!$E:$E,Data!$B:$B,'10'!C$3,Data!$C:$C,'10'!$A$3,Data!$H:$H,'10'!$A4,Data!$F:$F,'10'!$A$2)","v":3.7641510072579888E-3},{"$f":"SUMIFS(Data!$E:$E,Data!$B:$B,'10'!D$3,Data!$C:$C,'10'!$A$3,Data!$H:$H,'10'!$A4,Data!$F:$F,'10'!$A$2)","v":3.9213895849560063E-3},{"$f":"SUMIFS(Data!$E:$E,Data!$B:$B,'10'!E$3,Data!$C:$C,'10'!$A$3,Data!$H:$H,'10'!$A4,Data!$F:$F,'10'!$A$2)","v":1.5750541383088651E-2},{"$f":"SUMIFS(Data!$E:$E,Data!$B:$B,'10'!F$3,Data!$C:$C,'10'!$A$3,Data!$H:$H,'10'!$A4,Data!$F:$F,'10'!$A$2)","v":6.1547823826264047E-3},{"$f":"SUMIFS(Data!$E:$E,Data!$B:$B,'10'!G$3,Data!$C:$C,'10'!$A$3,Data!$H:$H,'10'!$A4,Data!$F:$F,'10'!$A$2)","v":2.0356648273447994E-3},{"$f":"SUMIFS(Data!$E:$E,Data!$B:$B,'10'!H$3,Data!$C:$C,'10'!$A$3,Data!$H:$H,'10'!$A4,Data!$F:$F,'10'!$A$2)","v":2.1726106802449071E-2},{"$f":"SUMIFS(Data!$E:$E,Data!$B:$B,'10'!I$3,Data!$C:$C,'10'!$A$3,Data!$H:$H,'10'!$A4,Data!$F:$F,'10'!$A$2)","v":6.1802365899019133E-3},{"$f":"SUMIFS(Data!$E:$E,Data!$B:$B,'10'!J$3,Data!$C:$C,'10'!$A$3,Data!$H:$H,'10'!$A4,Data!$F:$F,'10'!$A$2)","v":3.8834600895502097E-3},{"$f":"SUMIFS(Data!$E:$E,Data!$B:$B,'10'!K$3,Data!$C:$C,'10'!$A$3,Data!$H:$H,'10'!$A4,Data!$F:$F,'10'!$A$2)","v":6.1547823826264047E-3}]
[" > 5 <= 10",{"$f":"SUMIFS(Data!$E:$E,Data!$B:$B,'10'!B$3,Data!$C:$C,'10'!$A$3,Data!$H:$H,'10'!$A5,Data!$F:$F,'10'!$A$2)","v":4.0292352234998635E-2},{"$f":"SUMIFS(Data!$E:$E,Data!$B:$B,'10'!C$3,Data!$C:$C,'10'!$A$3,Data!$H:$H,'10'!$A5,Data!$F:$F,'10'!$A$2)","v":5.2423630854769442E-2},{"$f":"SUMIFS(Data!$E:$E,Data!$B:$B,'10'!D$3,Data!$C:$C,'10'!$A$3,Data!$H:$H,'10'!$A5,Data!$F:$F,'10'!$A$2)","v":4.6387931989942559E-2},{"$f":"SUMIFS(Data!$E:$E,Data!$B:$B,'10'!E$3,Data!$C:$C,'10'!$A$3,Data!$H:$H,'10'!$A5,Data!$F:$F,'10'!$A$2)","v":4.1381142791501437E-2},{"$f":"SUMIFS(Data!$E:$E,Data!$B:$B,'10'!F$3,Data!$C:$C,'10'!$A$3,Data!$H:$H,'10'!$A5,Data!$F:$F,'10'!$A$2)","v":5.0417371067813667E-2},{"$f":"SUMIFS(Data!$E:$E,Data!$B:$B,'10'!G$3,Data!$C:$C,'10'!$A$3,Data!$H:$H,'10'!$A5,Data!$F:$F,'10'!$A$2)","v":4.9174904525054255E-2},{"$f":"SUMIFS(Data!$E:$E,Data!$B:$B,'10'!H$3,Data!$C:$C,'10'!$A$3,Data!$H:$H,'10'!$A5,Data!$F:$F,'10'!$A$2)","v":7.5380534070210753E-2},{"$f":"SUMIFS(Data!$E:$E,Data!$B:$B,'10'!I$3,Data!$C:$C,'10'!$A$3,Data!$H:$H,'10'!$A5,Data!$F:$F,'10'!$A$2)","v":3.8758840588825991E-2},{"$f":"SUMIFS(Data!$E:$E,Data!$B:$B,'10'!J$3,Data!$C:$C,'10'!$A$3,Data!$H:$H,'10'!$A5,Data!$F:$F,'10'!$A$2)","v":4.0292352234998635E-2},{"$f":"SUMIFS(Data!$E:$E,Data!$B:$B,'10'!K$3,Data!$C:$C,'10'!$A$3,Data!$H:$H,'10'!$A5,Data!$F:$F,'10'!$A$2)","v":5.0417371067813667E-2}]
[" > 10 <= 15",{"$f":"SUMIFS(Data!$E:$E,Data!$B:$B,'10'!B$3,Data!$C:$C,'10'!$A$3,Data!$H:$H,'10'!$A6,Data!$F:$F,'10'!$A$2)","v":0.13935756314483339},{"$f":"SUMIFS(Data!$E:$E,Data!$B:$B,'10'!C$3,Data!$C:$C,'10'!$A$3,Data!$H:$H,'10'!$A6,Data!$F:$F,'10'!$A$2)","v":0.13155314409171112},{"$f":"SUMIFS(Data!$E:$E,Data!$B:$B,'10'!D$3,Data!$C:$C,'10'!$A$3,Data!$H:$H,'10'!$A6,Data!$F:$F,'10'!$A$2)","v":0.17912794828576678},{"$f":"SUMIFS(Data!$E:$E,Data!$B:$B,'10'!E$3,Data!$C:$C,'10'!$A$3,Data!$H:$H,'10'!$A6,Data!$F:$F,'10'!$A$2)","v":0.1412123590269462},{"$f":"SUMIFS(Data!$E:$E,Data!$B:$B,'10'!F$3,Data!$C:$C,'10'!$A$3,Data!$H:$H,'10'!$A6,Data!$F:$F,'10'!$A$2)","v":0.13327435293438203},{"$f":"SUMIFS(Data!$E:$E,Data!$B:$B,'10'!G$3,Data!$C:$C,'10'!$A$3,Data!$H:$H,'10'!$A6,Data!$F:$F,'10'!$A$2)","v":0.19985145631571316},{"$f":"SUMIFS(Data!$E:$E,Data!$B:$B,'10'!H$3,Data!$C:$C,'10'!$A$3,Data!$H:$H,'10'!$A6,Data!$F:$F,'10'!$A$2)","v":0.19600804553960072},{"$f":"SUMIFS(Data!$E:$E,Data!$B:$B,'10'!I$3,Data!$C:$C,'10'!$A$3,Data!$H:$H,'10'!$A6,Data!$F:$F,'10'!$A$2)","v":0.20274943476209087},{"$f":"SUMIFS(Data!$E:$E,Data!$B:$B,'10'!J$3,Data!$C:$C,'10'!$A$3,Data!$H:$H,'10'!$A6,Data!$F:$F,'10'!$A$2)","v":0.13935756314483339},{"$f":"SUMIFS(Data!$E:$E,Data!$B:$B,'10'!K$3,Data!$C:$C,'10'!$A$3,Data!$H:$H,'10'!$A6,Data!$F:$F,'10'!$A$2)","v":0.13327435293438203}]
[" > 15 <= 20",{"$f":"SUMIFS(Data!$E:$E,Data!$B:$B,'10'!B$3,Data!$C:$C,'10'!$A$3,Data!$H:$H,'10'!$A7,Data!$F:$F,'10'!$A$2)","v":0.67596602323829613},{"$f":"SUMIFS(Data!$E:$E,Data!$B:$B,'10'!C$3,Data!$C:$C,'10'!$A$3,Data!$H:$H,'10'!$A7,Data!$F:$F,'10'!$A$2)","v":0.7036069022132696},{"$f":"SUMIFS(Data!$E:$E,Data!$B:$B,'10'!D$3,Data!$C:$C,'10'!$A$3,Data!$H:$H,'10'!$A7,Data!$F:$F,'10'!$A$2)","v":0.83635930418796556},{"$f":"SUMIFS(Data!$E:$E,Data!$B:$B,'10'!E$3,Data!$C:$C,'10'!$A$3,Data!$H:$H,'10'!$A7,Data!$F:$F,'10'!$A$2)","v":0.63108486205590897},{"$f":"SUMIFS(Data!$E:$E,Data!$B:$B,'10'!F$3,Data!$C:$C,'10'!$A$3,Data!$H:$H,'10'!$A7,Data!$F:$F,'10'!$A$2)","v":0.60056344818090324},{"$f":"SUMIFS(Data!$E:$E,Data!$B:$B,'10'!G$3,Data!$C:$C,'10'!$A$3,Data!$H:$H,'10'!$A7,Data!$F:$F,'10'!$A$2)","v":0.775336361390495},{"$f":"SUMIFS(Data!$E:$E,Data!$B:$B,'10'!H$3,Data!$C:$C,'10'!$A$3,Data!$H:$H,'10'!$A7,Data!$F:$F,'10'!$A$2)","v":0.70850370621483882},{"$f":"SUMIFS(Data!$E:$E,Data!$B:$B,'10'!I$3,Data!$C:$C,'10'!$A$3,Data!$H:$H,'10'!$A7,Data!$F:$F,'10'!$A$2)","v":0.77241243421479056},{"$f":"SUMIFS(Data!$E:$E,Data!$B:$B,'10'!J$3,Data!$C:$C,'10'!$A$3,Data!$H:$H,'10'!$A7,Data!$F:$F,'10'!$A$2)","v":0.67596602323829613},{"$f":"SUMIFS(Data!$E:$E,Data!$B:$B,'10'!K$3,Data!$C:$C,'10'!$A$3,Data!$H:$H,'10'!$A7,Data!$F:$F,'10'!$A$2)","v":0.60056344818090324}]
[" > 20 <= 25",{"$f":"SUMIFS(Data!$E:$E,Data!$B:$B,'10'!B$3,Data!$C:$C,'10'!$A$3,Data!$H:$H,'10'!$A8,Data!$F:$F,'10'!$A$2)","v":99.130299912095325},{"$f":"SUMIFS(Data!$E:$E,Data!$B:$B,'10'!C$3,Data!$C:$C,'10'!$A$3,Data!$H:$H,'10'!$A8,Data!$F:$F,'10'!$A$2)","v":99.108652171832972},{"$f":"SUMIFS(Data!$E:$E,Data!$B:$B,'10'!D$3,Data!$C:$C,'10'!$A$3,Data!$H:$H,'10'!$A8,Data!$F:$F,'10'!$A$2)","v":98.934203425951381},{"$f":"SUMIFS(Data!$E:$E,Data!$B:$B,'10'!E$3,Data!$C:$C,'10'!$A$3,Data!$H:$H,'10'!$A8,Data!$F:$F,'10'!$A$2)","v":99.170571094742556},{"$f":"SUMIFS(Data!$E:$E,Data!$B:$B,'10'!F$3,Data!$C:$C,'10'!$A$3,Data!$H:$H,'10'!$A8,Data!$F:$F,'10'!$A$2)","v":99.205147137682317},{"$f":"SUMIFS(Data!$E:$E,Data!$B:$B,'10'!G$3,Data!$C:$C,'10'!$A$3,Data!$H:$H,'10'!$A8,Data!$F:$F,'10'!$A$2)","v":98.914156358844764},{"$f":"SUMIFS(Data!$E:$E,Data!$B:$B,'10'!H$3,Data!$C:$C,'10'!$A$3,Data!$H:$H,'10'!$A8,Data!$F:$F,'10'!$A$2)","v":98.830366000049821},{"$f":"SUMIFS(Data!$E:$E,Data!$B:$B,'10'!I$3,Data!$C:$C,'10'!$A$3,Data!$H:$H,'10'!$A8,Data!$F:$F,'10'!$A$2)","v":98.973836707985498},{"$f":"SUMIFS(Data!$E:$E,Data!$B:$B,'10'!J$3,Data!$C:$C,'10'!$A$3,Data!$H:$H,'10'!$A8,Data!$F:$F,'10'!$A$2)","v":99.130299912095325},{"$f":"SUMIFS(Data!$E:$E,Data!$B:$B,'10'!K$3,Data!$C:$C,'10'!$A$3,Data!$H:$H,'10'!$A8,Data!$F:$F,'10'!$A$2)","v":99.205147137682317}]
[" > 25 <= 30",{"$f":"SUMIFS(Data!$E:$E,Data!$B:$B,'10'!B$3,Data!$C:$C,'10'!$A$3,Data!$H:$H,'10'!$A9,Data!$F:$F,'10'!$A$2)","v":1.0200689197016524E-2},{"$f":"SUMIFS(Data!$E:$E,Data!$B:$B,'10'!C$3,Data!$C:$C,'10'!$A$3,Data!$H:$H,'10'!$A9,Data!$F:$F,'10'!$A$2)","v":0},{"$f":"SUMIFS(Data!$E:$E,Data!$B:$B,'10'!D$3,Data!$C:$C,'10'!$A$3,Data!$H:$H,'10'!$A9,Data!$F:$F,'10'!$A$2)","v":0},{"$f":"SUMIFS(Data!$E:$E,Data!$B:$B,'10'!E$3,Data!$C:$C,'10'!$A$3,Data!$H:$H,'10'!$A9,Data!$F:$F,'10'!$A$2)","v":0},{"$f":"SUMIFS(Data!$E:$E,Data!$B:$B,'10'!F$3,Data!$C:$C,'10'!$A$3,Data!$H:$H,'10'!$A9,Data!$F:$F,'10'!$A$2)","v":4.4429077519859373E-3},{"$f":"SUMIFS(Data!$E:$E,Data!$B:$B,'10'!G$3,Data!$C:$C,'10'!$A$3,Data!$H:$H,'10'!$A9,Data!$F:$F,'10'!$A$2)","v":5.9445254096632497E-2},{"$f":"SUMIFS(Data!$E:$E,Data!$B:$B,'10'!H$3,Data!$C:$C,'10'!$A$3,Data!$H:$H,'10'!$A9,Data!$F:$F,'10'!$A$2)","v":0.16801560732304299},{"$f":"SUMIFS(Data!$E:$E,Data!$B:$B,'10'!I$3,Data!$C:$C,'10'!$A$3,Data!$H:$H,'10'!$A9,Data!$F:$F,'10'!$A$2)","v":6.0623458588955088E-3},{"$f":"SUMIFS(Data!$E:$E,Data!$B:$B,'10'!J$3,Data!$C:$C,'10'!$A$3,Data!$H:$H,'10'!$A9,Data!$F:$F,'10'!$A$2)","v":1.0200689197016524E-2},{"$f":"SUMIFS(Data!$E:$E,Data!$B:$B,'10'!K$3,Data!$C:$C,'10'!$A$3,Data!$H:$H,'10'!$A9,Data!$F:$F,'10'!$A$2)","v":4.4429077519859373E-3}]
[" > 30 <= 35",{"$f":"SUMIFS(Data!$E:$E,Data!$B:$B,'10'!B$3,Data!$C:$C,'10'!$A$3,Data!$H:$H,'10'!$A10,Data!$F:$F,'10'!$A$2)","v":0},{"$f":"SUMIFS(Data!$E:$E,Data!$B:$B,'10'!C$3,Data!$C:$C,'10'!$A$3,Data!$H:$H,'10'!$A10,Data!$F:$F,'10'!$A$2)","v":0},{"$f":"SUMIFS(Data!$E:$E,Data!$B:$B,'10'!D$3,Data!$C:$C,'10'!$A$3,Data!$H:$H,'10'!$A10,Data!$F:$F,'10'!$A$2)","v":0},{"$f":"SUMIFS(Data!$E:$E,Data!$B:$B,'10'!E$3,Data!$C:$C,'10'!$A$3,Data!$H:$H,'10'!$A10,Data!$F:$F,'10'!$A$2)","v":0},{"$f":"SUMIFS(Data!$E:$E,Data!$B:$B,'10'!F$3,Data!$C:$C,'10'!$A$3,Data!$H:$H,'10'!$A10,Data!$F:$F,'10'!$A$2)","v":0},{"$f":"SUMIFS(Data!$E:$E,Data!$B:$B,'10'!G$3,Data!$C:$C,'10'!$A$3,Data!$H:$H,'10'!$A10,Data!$F:$F,'10'!$A$2)","v":0},{"$f":"SUMIFS(Data!$E:$E,Data!$B:$B,'10'!H$3,Data!$C:$C,'10'!$A$3,Data!$H:$H,'10'!$A10,Data!$F:$F,'10'!$A$2)","v":0},{"$f":"SUMIFS(Data!$E:$E,Data!$B:$B,'10'!I$3,Data!$C:$C,'10'!$A$3,Data!$H:$H,'10'!$A10,Data!$F:$F,'10'!$A$2)","v":0},{"$f":"SUMIFS(Data!$E:$E,Data!$B:$B,'10'!J$3,Data!$C:$C,'10'!$A$3,Data!$H:$H,'10'!$A10,Data!$F:$F,'10'!$A$2)","v":0},{"$f":"SUMIFS(Data!$E:$E,Data!$B:$B,'10'!K$3,Data!$C:$C,'10'!$A$3,Data!$H:$H,'10'!$A10,Data!$F:$F,'10'!$A$2)","v":0}]
[" > 35",{"$f":"SUMIFS(Data!$E:$E,Data!$B:$B,'10'!B$3,Data!$C:$C,'10'!$A$3,Data!$H:$H,'10'!$A11,Data!$F:$F,'10'!$A$2)","v":0},{"$f":"SUMIFS(Data!$E:$E,Data!$B:$B,'10'!C$3,Data!$C:$C,'10'!$A$3,Data!$H:$H,'10'!$A11,Data!$F:$F,'10'!$A$2)","v":0},{"$f":"SUMIFS(Data!$E:$E,Data!$B:$B,'10'!D$3,Data!$C:$C,'10'!$A$3,Data!$H:$H,'10'!$A11,Data!$F:$F,'10'!$A$2)","v":0},{"$f":"SUMIFS(Data!$E:$E,Data!$B:$B,'10'!E$3,Data!$C:$C,'10'!$A$3,Data!$H:$H,'10'!$A11,Data!$F:$F,'10'!$A$2)","v":0},{"$f":"SUMIFS(Data!$E:$E,Data!$B:$B,'10'!F$3,Data!$C:$C,'10'!$A$3,Data!$H:$H,'10'!$A11,Data!$F:$F,'10'!$A$2)","v":0},{"$f":"SUMIFS(Data!$E:$E,Data!$B:$B,'10'!G$3,Data!$C:$C,'10'!$A$3,Data!$H:$H,'10'!$A11,Data!$F:$F,'10'!$A$2)","v":0},{"$f":"SUMIFS(Data!$E:$E,Data!$B:$B,'10'!H$3,Data!$C:$C,'10'!$A$3,Data!$H:$H,'10'!$A11,Data!$F:$F,'10'!$A$2)","v":0},{"$f":"SUMIFS(Data!$E:$E,Data!$B:$B,'10'!I$3,Data!$C:$C,'10'!$A$3,Data!$H:$H,'10'!$A11,Data!$F:$F,'10'!$A$2)","v":0},{"$f":"SUMIFS(Data!$E:$E,Data!$B:$B,'10'!J$3,Data!$C:$C,'10'!$A$3,Data!$H:$H,'10'!$A11,Data!$F:$F,'10'!$A$2)","v":0},{"$f":"SUMIFS(Data!$E:$E,Data!$B:$B,'10'!K$3,Data!$C:$C,'10'!$A$3,Data!$H:$H,'10'!$A11,Data!$F:$F,'10'!$A$2)","v":0}]
[{"$f":"VLOOKUP(\"Average amortization period\",Translation!$A$1:$C$354, Translation!A1+1, 0)","v":"Période d’amortissement moyenne"},{"$f":"SUMIFS(Data!$E:$E,Data!$B:$B,'10'!B$3,Data!$C:$C,'10'!$A$3,Data!$H:$H,'10'!$A12,Data!$F:$F,'10'!$A$2)","v":24.895853118304881},{"$f":"SUMIFS(Data!$E:$E,Data!$B:$B,'10'!C$3,Data!$C:$C,'10'!$A$3,Data!$D:$D,'10'!$A12,Data!$F:$F,'10'!$A$2)","v":24.885885049715256},{"$f":"SUMIFS(Data!$E:$E,Data!$B:$B,'10'!D$3,Data!$C:$C,'10'!$A$3,Data!$D:$D,'10'!$A12,Data!$F:$F,'10'!$A$2)","v":24.868975640013421},{"$f":"SUMIFS(Data!$E:$E,Data!$B:$B,'10'!E$3,Data!$C:$C,'10'!$A$3,Data!$D:$D,'10'!$A12,Data!$F:$F,'10'!$A$2)","v":24.882135943521},{"$f":"SUMIFS(Data!$E:$E,Data!$B:$B,'10'!F$3,Data!$C:$C,'10'!$A$3,Data!$D:$D,'10'!$A12,Data!$F:$F,'10'!$A$2)","v":24.871239945749618},{"$f":"SUMIFS(Data!$E:$E,Data!$B:$B,'10'!G$3,Data!$C:$C,'10'!$A$3,Data!$D:$D,'10'!$A12,Data!$F:$F,'10'!$A$2)","v":24.867591896073353},{"$f":"SUMIFS(Data!$E:$E,Data!$B:$B,'10'!H$3,Data!$C:$C,'10'!$A$3,Data!$D:$D,'10'!$A12,Data!$F:$F,'10'!$A$2)","v":24.855555130677832},{"$f":"SUMIFS(Data!$E:$E,Data!$B:$B,'10'!I$3,Data!$C:$C,'10'!$A$3,Data!$D:$D,'10'!$A12,Data!$F:$F,'10'!$A$2)","v":24.865227694395969},{"$f":"SUMIFS(Data!$E:$E,Data!$B:$B,'10'!J$3,Data!$C:$C,'10'!$A$3,Data!$D:$D,'10'!$A12,Data!$F:$F,'10'!$A$2)","v":24.895853118304881},{"$f":"SUMIFS(Data!$E:$E,Data!$B:$B,'10'!K$3,Data!$C:$C,'10'!$A$3,Data!$D:$D,'10'!$A12,Data!$F:$F,'10'!$A$2)","v":24.871239945749618}]
[{"$f":"VLOOKUP(\"Average amortization period by province\",Translation!$A$1:$C$354, Translation!A1+1, 0)","v":"Période d’amortissement moyenne selon la province"}]
[{"$f":"VLOOKUP(\"Newfoundland and Labrador\",Translation!$A$1:$C$354, Translation!A1+1, 0)","v":"Terre-Neuve-et-Labrador"},{"$f":"IF((SUMIFS(Data!$E:$E,Data!$B:$B,'10'!B$3,Data!$C:$C,'10'!$A$3,Data!$D:$D,'10'!$A14,Data!$F:$F,'10'!$A$13))=0,\"-\",SUMIFS(Data!$E:$E,Data!$B:$B,'10'!B$3,Data!$C:$C,'10'!$A$3,Data!$D:$D,'10'!$A14,Data!$F:$F,'10'!$A$13))","v":24.787072802884804},{"$f":"IF((SUMIFS(Data!$E:$E,Data!$B:$B,'10'!C$3,Data!$C:$C,'10'!$A$3,Data!$D:$D,'10'!$A14,Data!$F:$F,'10'!$A$13))=0,\"-\",SUMIFS(Data!$E:$E,Data!$B:$B,'10'!C$3,Data!$C:$C,'10'!$A$3,Data!$D:$D,'10'!$A14,Data!$F:$F,'10'!$A$13))","v":24.736327546089314},{"$f":"IF((SUMIFS(Data!$E:$E,Data!$B:$B,'10'!D$3,Data!$C:$C,'10'!$A$3,Data!$D:$D,'10'!$A14,Data!$F:$F,'10'!$A$13))=0,\"-\",SUMIFS(Data!$E:$E,Data!$B:$B,'10'!D$3,Data!$C:$C,'10'!$A$3,Data!$D:$D,'10'!$A14,Data!$F:$F,'10'!$A$13))","v":24.785847090074764},{"$f":"IF((SUMIFS(Data!$E:$E,Data!$B:$B,'10'!E$3,Data!$C:$C,'10'!$A$3,Data!$D:$D,'10'!$A14,Data!$F:$F,'10'!$A$13))=0,\"-\",SUMIFS(Data!$E:$E,Data!$B:$B,'10'!E$3,Data!$C:$C,'10'!$A$3,Data!$D:$D,'10'!$A14,Data!$F:$F,'10'!$A$13))","v":24.914773808007329},{"$f":"IF((SUMIFS(Data!$E:$E,Data!$B:$B,'10'!F$3,Data!$C:$C,'10'!$A$3,Data!$D:$D,'10'!$A14,Data!$F:$F,'10'!$A$13))=0,\"-\",SUMIFS(Data!$E:$E,Data!$B:$B,'10'!F$3,Data!$C:$C,'10'!$A$3,Data!$D:$D,'10'!$A14,Data!$F:$F,'10'!$A$13))","v":24.884286440108305},{"$f":"IF((SUMIFS(Data!$E:$E,Data!$B:$B,'10'!G$3,Data!$C:$C,'10'!$A$3,Data!$D:$D,'10'!$A14,Data!$F:$F,'10'!$A$13))=0,\"-\",SUMIFS(Data!$E:$E,Data!$B:$B,'10'!G$3,Data!$C:$C,'10'!$A$3,Data!$D:$D,'10'!$A14,Data!$F:$F,'10'!$A$13))","v":24.874769218277898},{"$f":"IF((SUMIFS(Data!$E:$E,Data!$B:$B,'10'!H$3,Data!$C:$C,'10'!$A$3,Data!$D:$D,'10'!$A14,Data!$F:$F,'10'!$A$13))=0,\"-\",SUMIFS(Data!$E:$E,Data!$B:$B,'10'!H$3,Data!$C:$C,'10'!$A$3,Data!$D:$D,'10'!$A14,Data!$F:$F,'10'!$A$13))","v":24.837161634445074},{"$f":"IF((SUMIFS(Data!$E:$E,Data!$B:$B,'10'!I$3,Data!$C:$C,'10'!$A$3,Data!$D:$D,'10'!$A14,Data!$F:$F,'10'!$A$13))=0,\"-\",SUMIFS(Data!$E:$E,Data!$B:$B,'10'!I$3,Data!$C:$C,'10'!$A$3,Data!$D:$D,'10'!$A14,Data!$F:$F,'10'!$A$13))","v":24.841456322204191},{"$f":"IF((SUMIFS(Data!$E:$E,Data!$B:$B,'10'!J$3,Data!$C:$C,'10'!$A$3,Data!$D:$D,'10'!$A14,Data!$F:$F,'10'!$A$13))=0,\"-\",SUMIFS(Data!$E:$E,Data!$B:$B,'10'!J$3,Data!$C:$C,'10'!$A$3,Data!$D:$D,'10'!$A14,Data!$F:$F,'10'!$A$13))","v":24.787072802884804},{"$f":"IF((SUMIFS(Data!$E:$E,Data!$B:$B,'10'!K$3,Data!$C:$C,'10'!$A$3,Data!$D:$D,'10'!$A14,Data!$F:$F,'10'!$A$13))=0,\"-\",SUMIFS(Data!$E:$E,Data!$B:$B,'10'!K$3,Data!$C:$C,'10'!$A$3,Data!$D:$D,'10'!$A14,Data!$F:$F,'10'!$A$13))","v":24.884286440108305}]
[{"$f":"VLOOKUP(\"Prince Edward Island\",Translation!$A$1:$C$354, Translation!A1+1, 0)","v":"Île-du-Prince-Édouard"},{"$f":"IF((SUMIFS(Data!$E:$E,Data!$B:$B,'10'!B$3,Data!$C:$C,'10'!$A$3,Data!$D:$D,'10'!$A15,Data!$F:$F,'10'!$A$13))=0,\"-\",SUMIFS(Data!$E:$E,Data!$B:$B,'10'!B$3,Data!$C:$C,'10'!$A$3,Data!$D:$D,'10'!$A15,Data!$F:$F,'10'!$A$13))","v":24.912991865153018},{"$f":"IF((SUMIFS(Data!$E:$E,Data!$B:$B,'10'!C$3,Data!$C:$C,'10'!$A$3,Data!$D:$D,'10'!$A15,Data!$F:$F,'10'!$A$13))=0,\"-\",SUMIFS(Data!$E:$E,Data!$B:$B,'10'!C$3,Data!$C:$C,'10'!$A$3,Data!$D:$D,'10'!$A15,Data!$F:$F,'10'!$A$13))","v":24.840138437319201},{"$f":"IF((SUMIFS(Data!$E:$E,Data!$B:$B,'10'!D$3,Data!$C:$C,'10'!$A$3,Data!$D:$D,'10'!$A15,Data!$F:$F,'10'!$A$13))=0,\"-\",SUMIFS(Data!$E:$E,Data!$B:$B,'10'!D$3,Data!$C:$C,'10'!$A$3,Data!$D:$D,'10'!$A15,Data!$F:$F,'10'!$A$13))","v":24.919500383206326},{"$f":"IF((SUMIFS(Data!$E:$E,Data!$B:$B,'10'!E$3,Data!$C:$C,'10'!$A$3,Data!$D:$D,'10'!$A15,Data!$F:$F,'10'!$A$13))=0,\"-\",SUMIFS(Data!$E:$E,Data!$B:$B,'10'!E$3,Data!$C:$C,'10'!$A$3,Data!$D:$D,'10'!$A15,Data!$F:$F,'10'!$A$13))","v":24.899093314360695},{"$f":"IF((SUMIFS(Data!$E:$E,Data!$B:$B,'10'!F$3,Data!$C:$C,'10'!$A$3,Data!$D:$D,'10'!$A15,Data!$F:$F,'10'!$A$13))=0,\"-\",SUMIFS(Data!$E:$E,Data!$B:$B,'10'!F$3,Data!$C:$C,'10'!$A$3,Data!$D:$D,'10'!$A15,Data!$F:$F,'10'!$A$13))","v":24.87290334330422},{"$f":"IF((SUMIFS(Data!$E:$E,Data!$B:$B,'10'!G$3,Data!$C:$C,'10'!$A$3,Data!$D:$D,'10'!$A15,Data!$F:$F,'10'!$A$13))=0,\"-\",SUMIFS(Data!$E:$E,Data!$B:$B,'10'!G$3,Data!$C:$C,'10'!$A$3,Data!$D:$D,'10'!$A15,Data!$F:$F,'10'!$A$13))","v":24.722005538842353},{"$f":"IF((SUMIFS(Data!$E:$E,Data!$B:$B,'10'!H$3,Data!$C:$C,'10'!$A$3,Data!$D:$D,'10'!$A15,Data!$F:$F,'10'!$A$13))=0,\"-\",SUMIFS(Data!$E:$E,Data!$B:$B,'10'!H$3,Data!$C:$C,'10'!$A$3,Data!$D:$D,'10'!$A15,Data!$F:$F,'10'!$A$13))","v":24.776434207884368},{"$f":"IF((SUMIFS(Data!$E:$E,Data!$B:$B,'10'!I$3,Data!$C:$C,'10'!$A$3,Data!$D:$D,'10'!$A15,Data!$F:$F,'10'!$A$13))=0,\"-\",SUMIFS(Data!$E:$E,Data!$B:$B,'10'!I$3,Data!$C:$C,'10'!$A$3,Data!$D:$D,'10'!$A15,Data!$F:$F,'10'!$A$13))","v":24.802649582518196},{"$f":"IF((SUMIFS(Data!$E:$E,Data!$B:$B,'10'!J$3,Data!$C:$C,'10'!$A$3,Data!$D:$D,'10'!$A15,Data!$F:$F,'10'!$A$13))=0,\"-\",SUMIFS(Data!$E:$E,Data!$B:$B,'10'!J$3,Data!$C:$C,'10'!$A$3,Data!$D:$D,'10'!$A15,Data!$F:$F,'10'!$A$13))","v":24.912991865153018},{"$f":"IF((SUMIFS(Data!$E:$E,Data!$B:$B,'10'!K$3,Data!$C:$C,'10'!$A$3,Data!$D:$D,'10'!$A15,Data!$F:$F,'10'!$A$13))=0,\"-\",SUMIFS(Data!$E:$E,Data!$B:$B,'10'!K$3,Data!$C:$C,'10'!$A$3,Data!$D:$D,'10'!$A15,Data!$F:$F,'10'!$A$13))","v":24.87290334330422}]
[{"$f":"VLOOKUP(\"Nova Scotia\",Translation!$A$1:$C$354, Translation!A1+1, 0)","v":"Nouvelle-Écosse"},{"$f":"IF((SUMIFS(Data!$E:$E,Data!$B:$B,'10'!B$3,Data!$C:$C,'10'!$A$3,Data!$D:$D,'10'!$A16,Data!$F:$F,'10'!$A$13))=0,\"-\",SUMIFS(Data!$E:$E,Data!$B:$B,'10'!B$3,Data!$C:$C,'10'!$A$3,Data!$D:$D,'10'!$A16,Data!$F:$F,'10'!$A$13))","v":24.794989457742993},{"$f":"IF((SUMIFS(Data!$E:$E,Data!$B:$B,'10'!C$3,Data!$C:$C,'10'!$A$3,Data!$D:$D,'10'!$A16,Data!$F:$F,'10'!$A$13))=0,\"-\",SUMIFS(Data!$E:$E,Data!$B:$B,'10'!C$3,Data!$C:$C,'10'!$A$3,Data!$D:$D,'10'!$A16,Data!$F:$F,'10'!$A$13))","v":24.81570530280711},{"$f":"IF((SUMIFS(Data!$E:$E,Data!$B:$B,'10'!D$3,Data!$C:$C,'10'!$A$3,Data!$D:$D,'10'!$A16,Data!$F:$F,'10'!$A$13))=0,\"-\",SUMIFS(Data!$E:$E,Data!$B:$B,'10'!D$3,Data!$C:$C,'10'!$A$3,Data!$D:$D,'10'!$A16,Data!$F:$F,'10'!$A$13))","v":24.798401455969575},{"$f":"IF((SUMIFS(Data!$E:$E,Data!$B:$B,'10'!E$3,Data!$C:$C,'10'!$A$3,Data!$D:$D,'10'!$A16,Data!$F:$F,'10'!$A$13))=0,\"-\",SUMIFS(Data!$E:$E,Data!$B:$B,'10'!E$3,Data!$C:$C,'10'!$A$3,Data!$D:$D,'10'!$A16,Data!$F:$F,'10'!$A$13))","v":24.712096805603121},{"$f":"IF((SUMIFS(Data!$E:$E,Data!$B:$B,'10'!F$3,Data!$C:$C,'10'!$A$3,Data!$D:$D,'10'!$A16,Data!$F:$F,'10'!$A$13))=0,\"-\",SUMIFS(Data!$E:$E,Data!$B:$B,'10'!F$3,Data!$C:$C,'10'!$A$3,Data!$D:$D,'10'!$A16,Data!$F:$F,'10'!$A$13))","v":24.794296030410798},{"$f":"IF((SUMIFS(Data!$E:$E,Data!$B:$B,'10'!G$3,Data!$C:$C,'10'!$A$3,Data!$D:$D,'10'!$A16,Data!$F:$F,'10'!$A$13))=0,\"-\",SUMIFS(Data!$E:$E,Data!$B:$B,'10'!G$3,Data!$C:$C,'10'!$A$3,Data!$D:$D,'10'!$A16,Data!$F:$F,'10'!$A$13))","v":24.732750892479249},{"$f":"IF((SUMIFS(Data!$E:$E,Data!$B:$B,'10'!H$3,Data!$C:$C,'10'!$A$3,Data!$D:$D,'10'!$A16,Data!$F:$F,'10'!$A$13))=0,\"-\",SUMIFS(Data!$E:$E,Data!$B:$B,'10'!H$3,Data!$C:$C,'10'!$A$3,Data!$D:$D,'10'!$A16,Data!$F:$F,'10'!$A$13))","v":24.786557399334161},{"$f":"IF((SUMIFS(Data!$E:$E,Data!$B:$B,'10'!I$3,Data!$C:$C,'10'!$A$3,Data!$D:$D,'10'!$A16,Data!$F:$F,'10'!$A$13))=0,\"-\",SUMIFS(Data!$E:$E,Data!$B:$B,'10'!I$3,Data!$C:$C,'10'!$A$3,Data!$D:$D,'10'!$A16,Data!$F:$F,'10'!$A$13))","v":24.732968311512689},{"$f":"IF((SUMIFS(Data!$E:$E,Data!$B:$B,'10'!J$3,Data!$C:$C,'10'!$A$3,Data!$D:$D,'10'!$A16,Data!$F:$F,'10'!$A$13))=0,\"-\",SUMIFS(Data!$E:$E,Data!$B:$B,'10'!J$3,Data!$C:$C,'10'!$A$3,Data!$D:$D,'10'!$A16,Data!$F:$F,'10'!$A$13))","v":24.794989457742993},{"$f":"IF((SUMIFS(Data!$E:$E,Data!$B:$B,'10'!K$3,Data!$C:$C,'10'!$A$3,Data!$D:$D,'10'!$A16,Data!$F:$F,'10'!$A$13))=0,\"-\",SUMIFS(Data!$E:$E,Data!$B:$B,'10'!K$3,Data!$C:$C,'10'!$A$3,Data!$D:$D,'10'!$A16,Data!$F:$F,'10'!$A$13))","v":24.794296030410798}]
[{"$f":"VLOOKUP(\"New Brunswick\",Translation!$A$1:$C$354, Translation!A1+1, 0)","v":"Nouveau-Brunswick"},{"$f":"IF((SUMIFS(Data!$E:$E,Data!$B:$B,'10'!B$3,Data!$C:$C,'10'!$A$3,Data!$D:$D,'10'!$A17,Data!$F:$F,'10'!$A$13))=0,\"-\",SUMIFS(Data!$E:$E,Data!$B:$B,'10'!B$3,Data!$C:$C,'10'!$A$3,Data!$D:$D,'10'!$A17,Data!$F:$F,'10'!$A$13))","v":24.695702263585421},{"$f":"IF((SUMIFS(Data!$E:$E,Data!$B:$B,'10'!C$3,Data!$C:$C,'10'!$A$3,Data!$D:$D,'10'!$A17,Data!$F:$F,'10'!$A$13))=0,\"-\",SUMIFS(Data!$E:$E,Data!$B:$B,'10'!C$3,Data!$C:$C,'10'!$A$3,Data!$D:$D,'10'!$A17,Data!$F:$F,'10'!$A$13))","v":24.835436615083101},{"$f":"IF((SUMIFS(Data!$E:$E,Data!$B:$B,'10'!D$3,Data!$C:$C,'10'!$A$3,Data!$D:$D,'10'!$A17,Data!$F:$F,'10'!$A$13))=0,\"-\",SUMIFS(Data!$E:$E,Data!$B:$B,'10'!D$3,Data!$C:$C,'10'!$A$3,Data!$D:$D,'10'!$A17,Data!$F:$F,'10'!$A$13))","v":24.725308960649219},{"$f":"IF((SUMIFS(Data!$E:$E,Data!$B:$B,'10'!E$3,Data!$C:$C,'10'!$A$3,Data!$D:$D,'10'!$A17,Data!$F:$F,'10'!$A$13))=0,\"-\",SUMIFS(Data!$E:$E,Data!$B:$B,'10'!E$3,Data!$C:$C,'10'!$A$3,Data!$D:$D,'10'!$A17,Data!$F:$F,'10'!$A$13))","v":24.715791042748503},{"$f":"IF((SUMIFS(Data!$E:$E,Data!$B:$B,'10'!F$3,Data!$C:$C,'10'!$A$3,Data!$D:$D,'10'!$A17,Data!$F:$F,'10'!$A$13))=0,\"-\",SUMIFS(Data!$E:$E,Data!$B:$B,'10'!F$3,Data!$C:$C,'10'!$A$3,Data!$D:$D,'10'!$A17,Data!$F:$F,'10'!$A$13))","v":24.804978133626129},{"$f":"IF((SUMIFS(Data!$E:$E,Data!$B:$B,'10'!G$3,Data!$C:$C,'10'!$A$3,Data!$D:$D,'10'!$A17,Data!$F:$F,'10'!$A$13))=0,\"-\",SUMIFS(Data!$E:$E,Data!$B:$B,'10'!G$3,Data!$C:$C,'10'!$A$3,Data!$D:$D,'10'!$A17,Data!$F:$F,'10'!$A$13))","v":24.787255422594033},{"$f":"IF((SUMIFS(Data!$E:$E,Data!$B:$B,'10'!H$3,Data!$C:$C,'10'!$A$3,Data!$D:$D,'10'!$A17,Data!$F:$F,'10'!$A$13))=0,\"-\",SUMIFS(Data!$E:$E,Data!$B:$B,'10'!H$3,Data!$C:$C,'10'!$A$3,Data!$D:$D,'10'!$A17,Data!$F:$F,'10'!$A$13))","v":24.740940933810929},{"$f":"IF((SUMIFS(Data!$E:$E,Data!$B:$B,'10'!I$3,Data!$C:$C,'10'!$A$3,Data!$D:$D,'10'!$A17,Data!$F:$F,'10'!$A$13))=0,\"-\",SUMIFS(Data!$E:$E,Data!$B:$B,'10'!I$3,Data!$C:$C,'10'!$A$3,Data!$D:$D,'10'!$A17,Data!$F:$F,'10'!$A$13))","v":24.735893742427969},{"$f":"IF((SUMIFS(Data!$E:$E,Data!$B:$B,'10'!J$3,Data!$C:$C,'10'!$A$3,Data!$D:$D,'10'!$A17,Data!$F:$F,'10'!$A$13))=0,\"-\",SUMIFS(Data!$E:$E,Data!$B:$B,'10'!J$3,Data!$C:$C,'10'!$A$3,Data!$D:$D,'10'!$A17,Data!$F:$F,'10'!$A$13))","v":24.695702263585421},{"$f":"IF((SUMIFS(Data!$E:$E,Data!$B:$B,'10'!K$3,Data!$C:$C,'10'!$A$3,Data!$D:$D,'10'!$A17,Data!$F:$F,'10'!$A$13))=0,\"-\",SUMIFS(Data!$E:$E,Data!$B:$B,'10'!K$3,Data!$C:$C,'10'!$A$3,Data!$D:$D,'10'!$A17,Data!$F:$F,'10'!$A$13))","v":24.804978133626129}]
[{"$f":"VLOOKUP(\"Quebec\",Translation!$A$1:$C$354, Translation!A1+1, 0)","v":"Québec"},{"$f":"IF((SUMIFS(Data!$E:$E,Data!$B:$B,'10'!B$3,Data!$C:$C,'10'!$A$3,Data!$D:$D,'10'!$A18,Data!$F:$F,'10'!$A$13))=0,\"-\",SUMIFS(Data!$E:$E,Data!$B:$B,'10'!B$3,Data!$C:$C,'10'!$A$3,Data!$D:$D,'10'!$A18,Data!$F:$F,'10'!$A$13))","v":24.901898891015151},{"$f":"IF((SUMIFS(Data!$E:$E,Data!$B:$B,'10'!C$3,Data!$C:$C,'10'!$A$3,Data!$D:$D,'10'!$A18,Data!$F:$F,'10'!$A$13))=0,\"-\",SUMIFS(Data!$E:$E,Data!$B:$B,'10'!C$3,Data!$C:$C,'10'!$A$3,Data!$D:$D,'10'!$A18,Data!$F:$F,'10'!$A$13))","v":24.89041719139064},{"$f":"IF((SUMIFS(Data!$E:$E,Data!$B:$B,'10'!D$3,Data!$C:$C,'10'!$A$3,Data!$D:$D,'10'!$A18,Data!$F:$F,'10'!$A$13))=0,\"-\",SUMIFS(Data!$E:$E,Data!$B:$B,'10'!D$3,Data!$C:$C,'10'!$A$3,Data!$D:$D,'10'!$A18,Data!$F:$F,'10'!$A$13))","v":24.878702338946656},{"$f":"IF((SUMIFS(Data!$E:$E,Data!$B:$B,'10'!E$3,Data!$C:$C,'10'!$A$3,Data!$D:$D,'10'!$A18,Data!$F:$F,'10'!$A$13))=0,\"-\",SUMIFS(Data!$E:$E,Data!$B:$B,'10'!E$3,Data!$C:$C,'10'!$A$3,Data!$D:$D,'10'!$A18,Data!$F:$F,'10'!$A$13))","v":24.909343324308121},{"$f":"IF((SUMIFS(Data!$E:$E,Data!$B:$B,'10'!F$3,Data!$C:$C,'10'!$A$3,Data!$D:$D,'10'!$A18,Data!$F:$F,'10'!$A$13))=0,\"-\",SUMIFS(Data!$E:$E,Data!$B:$B,'10'!F$3,Data!$C:$C,'10'!$A$3,Data!$D:$D,'10'!$A18,Data!$F:$F,'10'!$A$13))","v":24.836499141625755},{"$f":"IF((SUMIFS(Data!$E:$E,Data!$B:$B,'10'!G$3,Data!$C:$C,'10'!$A$3,Data!$D:$D,'10'!$A18,Data!$F:$F,'10'!$A$13))=0,\"-\",SUMIFS(Data!$E:$E,Data!$B:$B,'10'!G$3,Data!$C:$C,'10'!$A$3,Data!$D:$D,'10'!$A18,Data!$F:$F,'10'!$A$13))","v":24.880011865587001},{"$f":"IF((SUMIFS(Data!$E:$E,Data!$B:$B,'10'!H$3,Data!$C:$C,'10'!$A$3,Data!$D:$D,'10'!$A18,Data!$F:$F,'10'!$A$13))=0,\"-\",SUMIFS(Data!$E:$E,Data!$B:$B,'10'!H$3,Data!$C:$C,'10'!$A$3,Data!$D:$D,'10'!$A18,Data!$F:$F,'10'!$A$13))","v":24.871141905724368},{"$f":"IF((SUMIFS(Data!$E:$E,Data!$B:$B,'10'!I$3,Data!$C:$C,'10'!$A$3,Data!$D:$D,'10'!$A18,Data!$F:$F,'10'!$A$13))=0,\"-\",SUMIFS(Data!$E:$E,Data!$B:$B,'10'!I$3,Data!$C:$C,'10'!$A$3,Data!$D:$D,'10'!$A18,Data!$F:$F,'10'!$A$13))","v":24.893620853258152},{"$f":"IF((SUMIFS(Data!$E:$E,Data!$B:$B,'10'!J$3,Data!$C:$C,'10'!$A$3,Data!$D:$D,'10'!$A18,Data!$F:$F,'10'!$A$13))=0,\"-\",SUMIFS(Data!$E:$E,Data!$B:$B,'10'!J$3,Data!$C:$C,'10'!$A$3,Data!$D:$D,'10'!$A18,Data!$F:$F,'10'!$A$13))","v":24.901898891015151},{"$f":"IF((SUMIFS(Data!$E:$E,Data!$B:$B,'10'!K$3,Data!$C:$C,'10'!$A$3,Data!$D:$D,'10'!$A18,Data!$F:$F,'10'!$A$13))=0,\"-\",SUMIFS(Data!$E:$E,Data!$B:$B,'10'!K$3,Data!$C:$C,'10'!$A$3,Data!$D:$D,'10'!$A18,Data!$F:$F,'10'!$A$13))","v":24.836499141625755}]
[{"$f":"VLOOKUP(\"Ontario\",Translation!$A$1:$C$354, Translation!A1+1, 0)","v":"Ontario"},{"$f":"IF((SUMIFS(Data!$E:$E,Data!$B:$B,'10'!B$3,Data!$C:$C,'10'!$A$3,Data!$D:$D,'10'!$A19,Data!$F:$F,'10'!$A$13))=0,\"-\",SUMIFS(Data!$E:$E,Data!$B:$B,'10'!B$3,Data!$C:$C,'10'!$A$3,Data!$D:$D,'10'!$A19,Data!$F:$F,'10'!$A$13))","v":24.958812204631752},{"$f":"IF((SUMIFS(Data!$E:$E,Data!$B:$B,'10'!C$3,Data!$C:$C,'10'!$A$3,Data!$D:$D,'10'!$A19,Data!$F:$F,'10'!$A$13))=0,\"-\",SUMIFS(Data!$E:$E,Data!$B:$B,'10'!C$3,Data!$C:$C,'10'!$A$3,Data!$D:$D,'10'!$A19,Data!$F:$F,'10'!$A$13))","v":24.946157496911638},{"$f":"IF((SUMIFS(Data!$E:$E,Data!$B:$B,'10'!D$3,Data!$C:$C,'10'!$A$3,Data!$D:$D,'10'!$A19,Data!$F:$F,'10'!$A$13))=0,\"-\",SUMIFS(Data!$E:$E,Data!$B:$B,'10'!D$3,Data!$C:$C,'10'!$A$3,Data!$D:$D,'10'!$A19,Data!$F:$F,'10'!$A$13))","v":24.929126312288648},{"$f":"IF((SUMIFS(Data!$E:$E,Data!$B:$B,'10'!E$3,Data!$C:$C,'10'!$A$3,Data!$D:$D,'10'!$A19,Data!$F:$F,'10'!$A$13))=0,\"-\",SUMIFS(Data!$E:$E,Data!$B:$B,'10'!E$3,Data!$C:$C,'10'!$A$3,Data!$D:$D,'10'!$A19,Data!$F:$F,'10'!$A$13))","v":24.92029379599504},{"$f":"IF((SUMIFS(Data!$E:$E,Data!$B:$B,'10'!F$3,Data!$C:$C,'10'!$A$3,Data!$D:$D,'10'!$A19,Data!$F:$F,'10'!$A$13))=0,\"-\",SUMIFS(Data!$E:$E,Data!$B:$B,'10'!F$3,Data!$C:$C,'10'!$A$3,Data!$D:$D,'10'!$A19,Data!$F:$F,'10'!$A$13))","v":24.921949316172888},{"$f":"IF((SUMIFS(Data!$E:$E,Data!$B:$B,'10'!G$3,Data!$C:$C,'10'!$A$3,Data!$D:$D,'10'!$A19,Data!$F:$F,'10'!$A$13))=0,\"-\",SUMIFS(Data!$E:$E,Data!$B:$B,'10'!G$3,Data!$C:$C,'10'!$A$3,Data!$D:$D,'10'!$A19,Data!$F:$F,'10'!$A$13))","v":24.925607432234209},{"$f":"IF((SUMIFS(Data!$E:$E,Data!$B:$B,'10'!H$3,Data!$C:$C,'10'!$A$3,Data!$D:$D,'10'!$A19,Data!$F:$F,'10'!$A$13))=0,\"-\",SUMIFS(Data!$E:$E,Data!$B:$B,'10'!H$3,Data!$C:$C,'10'!$A$3,Data!$D:$D,'10'!$A19,Data!$F:$F,'10'!$A$13))","v":24.900632809891281},{"$f":"IF((SUMIFS(Data!$E:$E,Data!$B:$B,'10'!I$3,Data!$C:$C,'10'!$A$3,Data!$D:$D,'10'!$A19,Data!$F:$F,'10'!$A$13))=0,\"-\",SUMIFS(Data!$E:$E,Data!$B:$B,'10'!I$3,Data!$C:$C,'10'!$A$3,Data!$D:$D,'10'!$A19,Data!$F:$F,'10'!$A$13))","v":24.882423469322099},{"$f":"IF((SUMIFS(Data!$E:$E,Data!$B:$B,'10'!J$3,Data!$C:$C,'10'!$A$3,Data!$D:$D,'10'!$A19,Data!$F:$F,'10'!$A$13))=0,\"-\",SUMIFS(Data!$E:$E,Data!$B:$B,'10'!J$3,Data!$C:$C,'10'!$A$3,Data!$D:$D,'10'!$A19,Data!$F:$F,'10'!$A$13))","v":24.958812204631752},{"$f":"IF((SUMIFS(Data!$E:$E,Data!$B:$B,'10'!K$3,Data!$C:$C,'10'!$A$3,Data!$D:$D,'10'!$A19,Data!$F:$F,'10'!$A$13))=0,\"-\",SUMIFS(Data!$E:$E,Data!$B:$B,'10'!K$3,Data!$C:$C,'10'!$A$3,Data!$D:$D,'10'!$A19,Data!$F:$F,'10'!$A$13))","v":24.921949316172888}]
[{"$f":"VLOOKUP(\"Manitoba\",Translation!$A$1:$C$354, Translation!A1+1, 0)","v":"Manitoba"},{"$f":"IF((SUMIFS(Data!$E:$E,Data!$B:$B,'10'!B$3,Data!$C:$C,'10'!$A$3,Data!$D:$D,'10'!$A20,Data!$F:$F,'10'!$A$13))=0,\"-\",SUMIFS(Data!$E:$E,Data!$B:$B,'10'!B$3,Data!$C:$C,'10'!$A$3,Data!$D:$D,'10'!$A20,Data!$F:$F,'10'!$A$13))","v":24.884209626602576},{"$f":"IF((SUMIFS(Data!$E:$E,Data!$B:$B,'10'!C$3,Data!$C:$C,'10'!$A$3,Data!$D:$D,'10'!$A20,Data!$F:$F,'10'!$A$13))=0,\"-\",SUMIFS(Data!$E:$E,Data!$B:$B,'10'!C$3,Data!$C:$C,'10'!$A$3,Data!$D:$D,'10'!$A20,Data!$F:$F,'10'!$A$13))","v":24.845022256244874},{"$f":"IF((SUMIFS(Data!$E:$E,Data!$B:$B,'10'!D$3,Data!$C:$C,'10'!$A$3,Data!$D:$D,'10'!$A20,Data!$F:$F,'10'!$A$13))=0,\"-\",SUMIFS(Data!$E:$E,Data!$B:$B,'10'!D$3,Data!$C:$C,'10'!$A$3,Data!$D:$D,'10'!$A20,Data!$F:$F,'10'!$A$13))","v":24.864800892383879},{"$f":"IF((SUMIFS(Data!$E:$E,Data!$B:$B,'10'!E$3,Data!$C:$C,'10'!$A$3,Data!$D:$D,'10'!$A20,Data!$F:$F,'10'!$A$13))=0,\"-\",SUMIFS(Data!$E:$E,Data!$B:$B,'10'!E$3,Data!$C:$C,'10'!$A$3,Data!$D:$D,'10'!$A20,Data!$F:$F,'10'!$A$13))","v":24.827652642881088},{"$f":"IF((SUMIFS(Data!$E:$E,Data!$B:$B,'10'!F$3,Data!$C:$C,'10'!$A$3,Data!$D:$D,'10'!$A20,Data!$F:$F,'10'!$A$13))=0,\"-\",SUMIFS(Data!$E:$E,Data!$B:$B,'10'!F$3,Data!$C:$C,'10'!$A$3,Data!$D:$D,'10'!$A20,Data!$F:$F,'10'!$A$13))","v":24.879769566255344},{"$f":"IF((SUMIFS(Data!$E:$E,Data!$B:$B,'10'!G$3,Data!$C:$C,'10'!$A$3,Data!$D:$D,'10'!$A20,Data!$F:$F,'10'!$A$13))=0,\"-\",SUMIFS(Data!$E:$E,Data!$B:$B,'10'!G$3,Data!$C:$C,'10'!$A$3,Data!$D:$D,'10'!$A20,Data!$F:$F,'10'!$A$13))","v":24.823121449179926},{"$f":"IF((SUMIFS(Data!$E:$E,Data!$B:$B,'10'!H$3,Data!$C:$C,'10'!$A$3,Data!$D:$D,'10'!$A20,Data!$F:$F,'10'!$A$13))=0,\"-\",SUMIFS(Data!$E:$E,Data!$B:$B,'10'!H$3,Data!$C:$C,'10'!$A$3,Data!$D:$D,'10'!$A20,Data!$F:$F,'10'!$A$13))","v":24.8286006947917},{"$f":"IF((SUMIFS(Data!$E:$E,Data!$B:$B,'10'!I$3,Data!$C:$C,'10'!$A$3,Data!$D:$D,'10'!$A20,Data!$F:$F,'10'!$A$13))=0,\"-\",SUMIFS(Data!$E:$E,Data!$B:$B,'10'!I$3,Data!$C:$C,'10'!$A$3,Data!$D:$D,'10'!$A20,Data!$F:$F,'10'!$A$13))","v":24.847788364511661},{"$f":"IF((SUMIFS(Data!$E:$E,Data!$B:$B,'10'!J$3,Data!$C:$C,'10'!$A$3,Data!$D:$D,'10'!$A20,Data!$F:$F,'10'!$A$13))=0,\"-\",SUMIFS(Data!$E:$E,Data!$B:$B,'10'!J$3,Data!$C:$C,'10'!$A$3,Data!$D:$D,'10'!$A20,Data!$F:$F,'10'!$A$13))","v":24.884209626602576},{"$f":"IF((SUMIFS(Data!$E:$E,Data!$B:$B,'10'!K$3,Data!$C:$C,'10'!$A$3,Data!$D:$D,'10'!$A20,Data!$F:$F,'10'!$A$13))=0,\"-\",SUMIFS(Data!$E:$E,Data!$B:$B,'10'!K$3,Data!$C:$C,'10'!$A$3,Data!$D:$D,'10'!$A20,Data!$F:$F,'10'!$A$13))","v":24.879769566255344}]
[{"$f":"VLOOKUP(\"Saskatchewan\",Translation!$A$1:$C$354, Translation!A1+1, 0)","v":"Saskatchewan"},{"$f":"IF((SUMIFS(Data!$E:$E,Data!$B:$B,'10'!B$3,Data!$C:$C,'10'!$A$3,Data!$D:$D,'10'!$A21,Data!$F:$F,'10'!$A$13))=0,\"-\",SUMIFS(Data!$E:$E,Data!$B:$B,'10'!B$3,Data!$C:$C,'10'!$A$3,Data!$D:$D,'10'!$A21,Data!$F:$F,'10'!$A$13))","v":24.676672497682265},{"$f":"IF((SUMIFS(Data!$E:$E,Data!$B:$B,'10'!C$3,Data!$C:$C,'10'!$A$3,Data!$D:$D,'10'!$A21,Data!$F:$F,'10'!$A$13))=0,\"-\",SUMIFS(Data!$E:$E,Data!$B:$B,'10'!C$3,Data!$C:$C,'10'!$A$3,Data!$D:$D,'10'!$A21,Data!$F:$F,'10'!$A$13))","v":24.755302826378482},{"$f":"IF((SUMIFS(Data!$E:$E,Data!$B:$B,'10'!D$3,Data!$C:$C,'10'!$A$3,Data!$D:$D,'10'!$A21,Data!$F:$F,'10'!$A$13))=0,\"-\",SUMIFS(Data!$E:$E,Data!$B:$B,'10'!D$3,Data!$C:$C,'10'!$A$3,Data!$D:$D,'10'!$A21,Data!$F:$F,'10'!$A$13))","v":24.804421645162769},{"$f":"IF((SUMIFS(Data!$E:$E,Data!$B:$B,'10'!E$3,Data!$C:$C,'10'!$A$3,Data!$D:$D,'10'!$A21,Data!$F:$F,'10'!$A$13))=0,\"-\",SUMIFS(Data!$E:$E,Data!$B:$B,'10'!E$3,Data!$C:$C,'10'!$A$3,Data!$D:$D,'10'!$A21,Data!$F:$F,'10'!$A$13))","v":24.751859295691339},{"$f":"IF((SUMIFS(Data!$E:$E,Data!$B:$B,'10'!F$3,Data!$C:$C,'10'!$A$3,Data!$D:$D,'10'!$A21,Data!$F:$F,'10'!$A$13))=0,\"-\",SUMIFS(Data!$E:$E,Data!$B:$B,'10'!F$3,Data!$C:$C,'10'!$A$3,Data!$D:$D,'10'!$A21,Data!$F:$F,'10'!$A$13))","v":24.802152160103994},{"$f":"IF((SUMIFS(Data!$E:$E,Data!$B:$B,'10'!G$3,Data!$C:$C,'10'!$A$3,Data!$D:$D,'10'!$A21,Data!$F:$F,'10'!$A$13))=0,\"-\",SUMIFS(Data!$E:$E,Data!$B:$B,'10'!G$3,Data!$C:$C,'10'!$A$3,Data!$D:$D,'10'!$A21,Data!$F:$F,'10'!$A$13))","v":24.73845557629781},{"$f":"IF((SUMIFS(Data!$E:$E,Data!$B:$B,'10'!H$3,Data!$C:$C,'10'!$A$3,Data!$D:$D,'10'!$A21,Data!$F:$F,'10'!$A$13))=0,\"-\",SUMIFS(Data!$E:$E,Data!$B:$B,'10'!H$3,Data!$C:$C,'10'!$A$3,Data!$D:$D,'10'!$A21,Data!$F:$F,'10'!$A$13))","v":24.711538403879473},{"$f":"IF((SUMIFS(Data!$E:$E,Data!$B:$B,'10'!I$3,Data!$C:$C,'10'!$A$3,Data!$D:$D,'10'!$A21,Data!$F:$F,'10'!$A$13))=0,\"-\",SUMIFS(Data!$E:$E,Data!$B:$B,'10'!I$3,Data!$C:$C,'10'!$A$3,Data!$D:$D,'10'!$A21,Data!$F:$F,'10'!$A$13))","v":24.775127226120073},{"$f":"IF((SUMIFS(Data!$E:$E,Data!$B:$B,'10'!J$3,Data!$C:$C,'10'!$A$3,Data!$D:$D,'10'!$A21,Data!$F:$F,'10'!$A$13))=0,\"-\",SUMIFS(Data!$E:$E,Data!$B:$B,'10'!J$3,Data!$C:$C,'10'!$A$3,Data!$D:$D,'10'!$A21,Data!$F:$F,'10'!$A$13))","v":24.676672497682265},{"$f":"IF((SUMIFS(Data!$E:$E,Data!$B:$B,'10'!K$3,Data!$C:$C,'10'!$A$3,Data!$D:$D,'10'!$A21,Data!$F:$F,'10'!$A$13))=0,\"-\",SUMIFS(Data!$E:$E,Data!$B:$B,'10'!K$3,Data!$C:$C,'10'!$A$3,Data!$D:$D,'10'!$A21,Data!$F:$F,'10'!$A$13))","v":24.802152160103994}]
[{"$f":"VLOOKUP(\"Alberta\",Translation!$A$1:$C$354, Translation!A1+1, 0)","v":"Alberta"},{"$f":"IF((SUMIFS(Data!$E:$E,Data!$B:$B,'10'!B$3,Data!$C:$C,'10'!$A$3,Data!$D:$D,'10'!$A22,Data!$F:$F,'10'!$A$13))=0,\"-\",SUMIFS(Data!$E:$E,Data!$B:$B,'10'!B$3,Data!$C:$C,'10'!$A$3,Data!$D:$D,'10'!$A22,Data!$F:$F,'10'!$A$13))","v":24.887863804254735},{"$f":"IF((SUMIFS(Data!$E:$E,Data!$B:$B,'10'!C$3,Data!$C:$C,'10'!$A$3,Data!$D:$D,'10'!$A22,Data!$F:$F,'10'!$A$13))=0,\"-\",SUMIFS(Data!$E:$E,Data!$B:$B,'10'!C$3,Data!$C:$C,'10'!$A$3,Data!$D:$D,'10'!$A22,Data!$F:$F,'10'!$A$13))","v":24.825154074003031},{"$f":"IF((SUMIFS(Data!$E:$E,Data!$B:$B,'10'!D$3,Data!$C:$C,'10'!$A$3,Data!$D:$D,'10'!$A22,Data!$F:$F,'10'!$A$13))=0,\"-\",SUMIFS(Data!$E:$E,Data!$B:$B,'10'!D$3,Data!$C:$C,'10'!$A$3,Data!$D:$D,'10'!$A22,Data!$F:$F,'10'!$A$13))","v":24.819049913604317},{"$f":"IF((SUMIFS(Data!$E:$E,Data!$B:$B,'10'!E$3,Data!$C:$C,'10'!$A$3,Data!$D:$D,'10'!$A22,Data!$F:$F,'10'!$A$13))=0,\"-\",SUMIFS(Data!$E:$E,Data!$B:$B,'10'!E$3,Data!$C:$C,'10'!$A$3,Data!$D:$D,'10'!$A22,Data!$F:$F,'10'!$A$13))","v":24.83179012803264},{"$f":"IF((SUMIFS(Data!$E:$E,Data!$B:$B,'10'!F$3,Data!$C:$C,'10'!$A$3,Data!$D:$D,'10'!$A22,Data!$F:$F,'10'!$A$13))=0,\"-\",SUMIFS(Data!$E:$E,Data!$B:$B,'10'!F$3,Data!$C:$C,'10'!$A$3,Data!$D:$D,'10'!$A22,Data!$F:$F,'10'!$A$13))","v":24.874795977995355},{"$f":"IF((SUMIFS(Data!$E:$E,Data!$B:$B,'10'!G$3,Data!$C:$C,'10'!$A$3,Data!$D:$D,'10'!$A22,Data!$F:$F,'10'!$A$13))=0,\"-\",SUMIFS(Data!$E:$E,Data!$B:$B,'10'!G$3,Data!$C:$C,'10'!$A$3,Data!$D:$D,'10'!$A22,Data!$F:$F,'10'!$A$13))","v":24.825175336144419},{"$f":"IF((SUMIFS(Data!$E:$E,Data!$B:$B,'10'!H$3,Data!$C:$C,'10'!$A$3,Data!$D:$D,'10'!$A22,Data!$F:$F,'10'!$A$13))=0,\"-\",SUMIFS(Data!$E:$E,Data!$B:$B,'10'!H$3,Data!$C:$C,'10'!$A$3,Data!$D:$D,'10'!$A22,Data!$F:$F,'10'!$A$13))","v":24.832914422232879},{"$f":"IF((SUMIFS(Data!$E:$E,Data!$B:$B,'10'!I$3,Data!$C:$C,'10'!$A$3,Data!$D:$D,'10'!$A22,Data!$F:$F,'10'!$A$13))=0,\"-\",SUMIFS(Data!$E:$E,Data!$B:$B,'10'!I$3,Data!$C:$C,'10'!$A$3,Data!$D:$D,'10'!$A22,Data!$F:$F,'10'!$A$13))","v":24.839375862516167},{"$f":"IF((SUMIFS(Data!$E:$E,Data!$B:$B,'10'!J$3,Data!$C:$C,'10'!$A$3,Data!$D:$D,'10'!$A22,Data!$F:$F,'10'!$A$13))=0,\"-\",SUMIFS(Data!$E:$E,Data!$B:$B,'10'!J$3,Data!$C:$C,'10'!$A$3,Data!$D:$D,'10'!$A22,Data!$F:$F,'10'!$A$13))","v":24.887863804254735},{"$f":"IF((SUMIFS(Data!$E:$E,Data!$B:$B,'10'!K$3,Data!$C:$C,'10'!$A$3,Data!$D:$D,'10'!$A22,Data!$F:$F,'10'!$A$13))=0,\"-\",SUMIFS(Data!$E:$E,Data!$B:$B,'10'!K$3,Data!$C:$C,'10'!$A$3,Data!$D:$D,'10'!$A22,Data!$F:$F,'10'!$A$13))","v":24.874795977995355}]
[{"$f":"VLOOKUP(\"British Columbia\",Translation!$A$1:$C$354, Translation!A1+1, 0)","v":"Colombie-Britannique"},{"$f":"IF((SUMIFS(Data!$E:$E,Data!$B:$B,'10'!B$3,Data!$C:$C,'10'!$A$3,Data!$D:$D,'10'!$A23,Data!$F:$F,'10'!$A$13))=0,\"-\",SUMIFS(Data!$E:$E,Data!$B:$B,'10'!B$3,Data!$C:$C,'10'!$A$3,Data!$D:$D,'10'!$A23,Data!$F:$F,'10'!$A$13))","v":24.845105094632796},{"$f":"IF((SUMIFS(Data!$E:$E,Data!$B:$B,'10'!C$3,Data!$C:$C,'10'!$A$3,Data!$D:$D,'10'!$A23,Data!$F:$F,'10'!$A$13))=0,\"-\",SUMIFS(Data!$E:$E,Data!$B:$B,'10'!C$3,Data!$C:$C,'10'!$A$3,Data!$D:$D,'10'!$A23,Data!$F:$F,'10'!$A$13))","v":24.86732546027206},{"$f":"IF((SUMIFS(Data!$E:$E,Data!$B:$B,'10'!D$3,Data!$C:$C,'10'!$A$3,Data!$D:$D,'10'!$A23,Data!$F:$F,'10'!$A$13))=0,\"-\",SUMIFS(Data!$E:$E,Data!$B:$B,'10'!D$3,Data!$C:$C,'10'!$A$3,Data!$D:$D,'10'!$A23,Data!$F:$F,'10'!$A$13))","v":24.811702428759688},{"$f":"IF((SUMIFS(Data!$E:$E,Data!$B:$B,'10'!E$3,Data!$C:$C,'10'!$A$3,Data!$D:$D,'10'!$A23,Data!$F:$F,'10'!$A$13))=0,\"-\",SUMIFS(Data!$E:$E,Data!$B:$B,'10'!E$3,Data!$C:$C,'10'!$A$3,Data!$D:$D,'10'!$A23,Data!$F:$F,'10'!$A$13))","v":24.853131255871503},{"$f":"IF((SUMIFS(Data!$E:$E,Data!$B:$B,'10'!F$3,Data!$C:$C,'10'!$A$3,Data!$D:$D,'10'!$A23,Data!$F:$F,'10'!$A$13))=0,\"-\",SUMIFS(Data!$E:$E,Data!$B:$B,'10'!F$3,Data!$C:$C,'10'!$A$3,Data!$D:$D,'10'!$A23,Data!$F:$F,'10'!$A$13))","v":24.848020963621003},{"$f":"IF((SUMIFS(Data!$E:$E,Data!$B:$B,'10'!G$3,Data!$C:$C,'10'!$A$3,Data!$D:$D,'10'!$A23,Data!$F:$F,'10'!$A$13))=0,\"-\",SUMIFS(Data!$E:$E,Data!$B:$B,'10'!G$3,Data!$C:$C,'10'!$A$3,Data!$D:$D,'10'!$A23,Data!$F:$F,'10'!$A$13))","v":24.836426502250475},{"$f":"IF((SUMIFS(Data!$E:$E,Data!$B:$B,'10'!H$3,Data!$C:$C,'10'!$A$3,Data!$D:$D,'10'!$A23,Data!$F:$F,'10'!$A$13))=0,\"-\",SUMIFS(Data!$E:$E,Data!$B:$B,'10'!H$3,Data!$C:$C,'10'!$A$3,Data!$D:$D,'10'!$A23,Data!$F:$F,'10'!$A$13))","v":24.819401279401401},{"$f":"IF((SUMIFS(Data!$E:$E,Data!$B:$B,'10'!I$3,Data!$C:$C,'10'!$A$3,Data!$D:$D,'10'!$A23,Data!$F:$F,'10'!$A$13))=0,\"-\",SUMIFS(Data!$E:$E,Data!$B:$B,'10'!I$3,Data!$C:$C,'10'!$A$3,Data!$D:$D,'10'!$A23,Data!$F:$F,'10'!$A$13))","v":24.82913396843254},{"$f":"IF((SUMIFS(Data!$E:$E,Data!$B:$B,'10'!J$3,Data!$C:$C,'10'!$A$3,Data!$D:$D,'10'!$A23,Data!$F:$F,'10'!$A$13))=0,\"-\",SUMIFS(Data!$E:$E,Data!$B:$B,'10'!J$3,Data!$C:$C,'10'!$A$3,Data!$D:$D,'10'!$A23,Data!$F:$F,'10'!$A$13))","v":24.845105094632796},{"$f":"IF((SUMIFS(Data!$E:$E,Data!$B:$B,'10'!K$3,Data!$C:$C,'10'!$A$3,Data!$D:$D,'10'!$A23,Data!$F:$F,'10'!$A$13))=0,\"-\",SUMIFS(Data!$E:$E,Data!$B:$B,'10'!K$3,Data!$C:$C,'10'!$A$3,Data!$D:$D,'10'!$A23,Data!$F:$F,'10'!$A$13))","v":24.848020963621003}]
[{"$f":"VLOOKUP(\"Territories\",Translation!$A$1:$C$354, Translation!A1+1, 0)","v":"Territoires"},{"$f":"IF((SUMIFS(Data!$E:$E,Data!$B:$B,'10'!B$3,Data!$C:$C,'10'!$A$3,Data!$D:$D,'10'!$A24,Data!$F:$F,'10'!$A$13))=0,\"-\",SUMIFS(Data!$E:$E,Data!$B:$B,'10'!B$3,Data!$C:$C,'10'!$A$3,Data!$D:$D,'10'!$A24,Data!$F:$F,'10'!$A$13))","v":24.747152163710918},{"$f":"IF((SUMIFS(Data!$E:$E,Data!$B:$B,'10'!C$3,Data!$C:$C,'10'!$A$3,Data!$D:$D,'10'!$A24,Data!$F:$F,'10'!$A$13))=0,\"-\",SUMIFS(Data!$E:$E,Data!$B:$B,'10'!C$3,Data!$C:$C,'10'!$A$3,Data!$D:$D,'10'!$A24,Data!$F:$F,'10'!$A$13))","v":24.727753233845942},{"$f":"IF((SUMIFS(Data!$E:$E,Data!$B:$B,'10'!D$3,Data!$C:$C,'10'!$A$3,Data!$D:$D,'10'!$A24,Data!$F:$F,'10'!$A$13))=0,\"-\",SUMIFS(Data!$E:$E,Data!$B:$B,'10'!D$3,Data!$C:$C,'10'!$A$3,Data!$D:$D,'10'!$A24,Data!$F:$F,'10'!$A$13))","v":24.674255420826523},{"$f":"IF((SUMIFS(Data!$E:$E,Data!$B:$B,'10'!E$3,Data!$C:$C,'10'!$A$3,Data!$D:$D,'10'!$A24,Data!$F:$F,'10'!$A$13))=0,\"-\",SUMIFS(Data!$E:$E,Data!$B:$B,'10'!E$3,Data!$C:$C,'10'!$A$3,Data!$D:$D,'10'!$A24,Data!$F:$F,'10'!$A$13))","v":24.779462565158639},{"$f":"IF((SUMIFS(Data!$E:$E,Data!$B:$B,'10'!F$3,Data!$C:$C,'10'!$A$3,Data!$D:$D,'10'!$A24,Data!$F:$F,'10'!$A$13))=0,\"-\",SUMIFS(Data!$E:$E,Data!$B:$B,'10'!F$3,Data!$C:$C,'10'!$A$3,Data!$D:$D,'10'!$A24,Data!$F:$F,'10'!$A$13))","v":24.661209291484184},{"$f":"IF((SUMIFS(Data!$E:$E,Data!$B:$B,'10'!G$3,Data!$C:$C,'10'!$A$3,Data!$D:$D,'10'!$A24,Data!$F:$F,'10'!$A$13))=0,\"-\",SUMIFS(Data!$E:$E,Data!$B:$B,'10'!G$3,Data!$C:$C,'10'!$A$3,Data!$D:$D,'10'!$A24,Data!$F:$F,'10'!$A$13))","v":24.737456807640736},{"$f":"IF((SUMIFS(Data!$E:$E,Data!$B:$B,'10'!H$3,Data!$C:$C,'10'!$A$3,Data!$D:$D,'10'!$A24,Data!$F:$F,'10'!$A$13))=0,\"-\",SUMIFS(Data!$E:$E,Data!$B:$B,'10'!H$3,Data!$C:$C,'10'!$A$3,Data!$D:$D,'10'!$A24,Data!$F:$F,'10'!$A$13))","v":24.835870699467392},{"$f":"IF((SUMIFS(Data!$E:$E,Data!$B:$B,'10'!I$3,Data!$C:$C,'10'!$A$3,Data!$D:$D,'10'!$A24,Data!$F:$F,'10'!$A$13))=0,\"-\",SUMIFS(Data!$E:$E,Data!$B:$B,'10'!I$3,Data!$C:$C,'10'!$A$3,Data!$D:$D,'10'!$A24,Data!$F:$F,'10'!$A$13))","v":24.723627536592382},{"$f":"IF((SUMIFS(Data!$E:$E,Data!$B:$B,'10'!J$3,Data!$C:$C,'10'!$A$3,Data!$D:$D,'10'!$A24,Data!$F:$F,'10'!$A$13))=0,\"-\",SUMIFS(Data!$E:$E,Data!$B:$B,'10'!J$3,Data!$C:$C,'10'!$A$3,Data!$D:$D,'10'!$A24,Data!$F:$F,'10'!$A$13))","v":24.747152163710918},{"$f":"IF((SUMIFS(Data!$E:$E,Data!$B:$B,'10'!K$3,Data!$C:$C,'10'!$A$3,Data!$D:$D,'10'!$A24,Data!$F:$F,'10'!$A$13))=0,\"-\",SUMIFS(Data!$E:$E,Data!$B:$B,'10'!K$3,Data!$C:$C,'10'!$A$3,Data!$D:$D,'10'!$A24,Data!$F:$F,'10'!$A$13))","v":24.661209291484184}]
[{"$f":"VLOOKUP(\"Distribution based on loan amounts, not number of loans.\",Translation!$A$1:$C$354, Translation!A1+1, 0)","v":"La répartition est établie d'après le montant, plutôt que le nombre de prêts assurés."}]
[{"$f":"VLOOKUP(\"The sum of all breakdown categories may not add up to 100 due to rounding.\",Translation!$A$1:$C$354, Translation!A1+1, 0)","v":"Les chiffres ayant été arrondis, il se peut que la somme de l'ensemble des catégories n'égale pas 100 %."}]
[]
[{"$f":"VLOOKUP(\"Loans insured during the period by amortization (years) at origination (%)\",Translation!$A$1:$C$354, Translation!A1+1, 0)","v":"Prêts hypothécaires assurés au cours de la période selon la période d’amortissement (en années) à l'initiation (%)"}]
[{"$f":"VLOOKUP(\"PORTFOLIO\",Translation!$A$1:$C$354, Translation!A1+1, 0)","v":"ASSURANCE DE PORTEFEUILLE"},{"$f":"VLOOKUP(\"Q1 2020\",Translation!$A$1:$C$354, Translation!$A$1+1, 0)","v":"T1 2020"},{"$f":"VLOOKUP(\"Q4 2019\",Translation!$A$1:$C$354, Translation!$A$1+1, 0)","v":"T4 2019"},{"$f":"VLOOKUP(\"Q3 2019\",Translation!$A$1:$C$354, Translation!$A$1+1, 0)","v":"T3 2019"},{"$f":"VLOOKUP(\"Q2 2019\",Translation!$A$1:$C$354, Translation!$A$1+1, 0)","v":"T2 2019"},{"$f":"VLOOKUP(\"Q1 2019\",Translation!$A$1:$C$354, Translation!$A$1+1, 0)","v":"T1 2019"},{"$f":"VLOOKUP(\"Q4 2018\",Translation!$A$1:$C$354, Translation!$A$1+1, 0)","v":"T4 2018"},{"$f":"VLOOKUP(\"Q3 2018\",Translation!$A$1:$C$354, Translation!$A$1+1, 0)","v":"T3 2018"},{"$f":"VLOOKUP(\"Q2 2018\",Translation!$A$1:$C$354, Translation!$A$1+1, 0)","v":"T2 2018"},{"$f":"VLOOKUP(\"YTD 2020\",Translation!$A$1:$C$354, Translation!$A$1+1, 0)","v":"Cumul 2020"},{"$f":"VLOOKUP(\"YTD 2019\",Translation!$A$1:$C$354, Translation!$A$1+1, 0)","v":"Cumul 2019"}]
[" <= 5",{"$f":"SUMIFS(Data!$E:$E,Data!$B:$B,'10'!B$29,Data!$C:$C,'10'!$A$29,Data!$H:$H,'10'!$A30,Data!$F:$F,'10'!$A$28)","v":0.19472322767604217},{"$f":"SUMIFS(Data!$E:$E,Data!$B:$B,'10'!C$29,Data!$C:$C,'10'!$A$29,Data!$H:$H,'10'!$A30,Data!$F:$F,'10'!$A$28)","v":0.14926396440963549},{"$f":"SUMIFS(Data!$E:$E,Data!$B:$B,'10'!D$29,Data!$C:$C,'10'!$A$29,Data!$H:$H,'10'!$A30,Data!$F:$F,'10'!$A$28)","v":0.33683966352909739},{"$f":"SUMIFS(Data!$E:$E,Data!$B:$B,'10'!E$29,Data!$C:$C,'10'!$A$29,Data!$H:$H,'10'!$A30,Data!$F:$F,'10'!$A$28)","v":0.3913522087957067},{"$f":"SUMIFS(Data!$E:$E,Data!$B:$B,'10'!F$29,Data!$C:$C,'10'!$A$29,Data!$H:$H,'10'!$A30,Data!$F:$F,'10'!$A$28)","v":0.26941560246254997},{"$f":"SUMIFS(Data!$E:$E,Data!$B:$B,'10'!G$29,Data!$C:$C,'10'!$A$29,Data!$H:$H,'10'!$A30,Data!$F:$F,'10'!$A$28)","v":0.42135249522022128},{"$f":"SUMIFS(Data!$E:$E,Data!$B:$B,'10'!H$29,Data!$C:$C,'10'!$A$29,Data!$H:$H,'10'!$A30,Data!$F:$F,'10'!$A$28)","v":0.18390895096892088},{"$f":"SUMIFS(Data!$E:$E,Data!$B:$B,'10'!I$29,Data!$C:$C,'10'!$A$29,Data!$H:$H,'10'!$A30,Data!$F:$F,'10'!$A$28)","v":0.20876625495921361},{"$f":"SUMIFS(Data!$E:$E,Data!$B:$B,'10'!J$29,Data!$C:$C,'10'!$A$29,Data!$H:$H,'10'!$A30,Data!$F:$F,'10'!$A$28)","v":0.19472322767604217},{"$f":"SUMIFS(Data!$E:$E,Data!$B:$B,'10'!K$29,Data!$C:$C,'10'!$A$29,Data!$H:$H,'10'!$A30,Data!$F:$F,'10'!$A$28)","v":0.26941560246254997}]
[" > 5 <= 10",{"$f":"SUMIFS(Data!$E:$E,Data!$B:$B,'10'!B$29,Data!$C:$C,'10'!$A$29,Data!$H:$H,'10'!$A31,Data!$F:$F,'10'!$A$28)","v":1.6684681169536619},{"$f":"SUMIFS(Data!$E:$E,Data!$B:$B,'10'!C$29,Data!$C:$C,'10'!$A$29,Data!$H:$H,'10'!$A31,Data!$F:$F,'10'!$A$28)","v":1.2715956149034613},{"$f":"SUMIFS(Data!$E:$E,Data!$B:$B,'10'!D$29,Data!$C:$C,'10'!$A$29,Data!$H:$H,'10'!$A31,Data!$F:$F,'10'!$A$28)","v":2.2867641046146407},{"$f":"SUMIFS(Data!$E:$E,Data!$B:$B,'10'!E$29,Data!$C:$C,'10'!$A$29,Data!$H:$H,'10'!$A31,Data!$F:$F,'10'!$A$28)","v":5.0963169652642915},{"$f":"SUMIFS(Data!$E:$E,Data!$B:$B,'10'!F$29,Data!$C:$C,'10'!$A$29,Data!$H:$H,'10'!$A31,Data!$F:$F,'10'!$A$28)","v":2.2439350785793697},{"$f":"SUMIFS(Data!$E:$E,Data!$B:$B,'10'!G$29,Data!$C:$C,'10'!$A$29,Data!$H:$H,'10'!$A31,Data!$F:$F,'10'!$A$28)","v":3.3211012128150488},{"$f":"SUMIFS(Data!$E:$E,Data!$B:$B,'10'!H$29,Data!$C:$C,'10'!$A$29,Data!$H:$H,'10'!$A31,Data!$F:$F,'10'!$A$28)","v":2.4554821853390378},{"$f":"SUMIFS(Data!$E:$E,Data!$B:$B,'10'!I$29,Data!$C:$C,'10'!$A$29,Data!$H:$H,'10'!$A31,Data!$F:$F,'10'!$A$28)","v":3.3012497864649126},{"$f":"SUMIFS(Data!$E:$E,Data!$B:$B,'10'!J$29,Data!$C:$C,'10'!$A$29,Data!$H:$H,'10'!$A31,Data!$F:$F,'10'!$A$28)","v":1.6684681169536619},{"$f":"SUMIFS(Data!$E:$E,Data!$B:$B,'10'!K$29,Data!$C:$C,'10'!$A$29,Data!$H:$H,'10'!$A31,Data!$F:$F,'10'!$A$28)","v":2.2439350785793697}]
[" > 10 <= 15",{"$f":"SUMIFS(Data!$E:$E,Data!$B:$B,'10'!B$29,Data!$C:$C,'10'!$A$29,Data!$H:$H,'10'!$A32,Data!$F:$F,'10'!$A$28)","v":3.8211147785260993},{"$f":"SUMIFS(Data!$E:$E,Data!$B:$B,'10'!C$29,Data!$C:$C,'10'!$A$29,Data!$H:$H,'10'!$A32,Data!$F:$F,'10'!$A$28)","v":3.3670130985999882},{"$f":"SUMIFS(Data!$E:$E,Data!$B:$B,'10'!D$29,Data!$C:$C,'10'!$A$29,Data!$H:$H,'10'!$A32,Data!$F:$F,'10'!$A$28)","v":6.6556063573658752},{"$f":"SUMIFS(Data!$E:$E,Data!$B:$B,'10'!E$29,Data!$C:$C,'10'!$A$29,Data!$H:$H,'10'!$A32,Data!$F:$F,'10'!$A$28)","v":6.1924648104500495},{"$f":"SUMIFS(Data!$E:$E,Data!$B:$B,'10'!F$29,Data!$C:$C,'10'!$A$29,Data!$H:$H,'10'!$A32,Data!$F:$F,'10'!$A$28)","v":6.9988546123420798},{"$f":"SUMIFS(Data!$E:$E,Data!$B:$B,'10'!G$29,Data!$C:$C,'10'!$A$29,Data!$H:$H,'10'!$A32,Data!$F:$F,'10'!$A$28)","v":7.2864465649392001},{"$f":"SUMIFS(Data!$E:$E,Data!$B:$B,'10'!H$29,Data!$C:$C,'10'!$A$29,Data!$H:$H,'10'!$A32,Data!$F:$F,'10'!$A$28)","v":5.6595752640281187},{"$f":"SUMIFS(Data!$E:$E,Data!$B:$B,'10'!I$29,Data!$C:$C,'10'!$A$29,Data!$H:$H,'10'!$A32,Data!$F:$F,'10'!$A$28)","v":8.0420800331016729},{"$f":"SUMIFS(Data!$E:$E,Data!$B:$B,'10'!J$29,Data!$C:$C,'10'!$A$29,Data!$H:$H,'10'!$A32,Data!$F:$F,'10'!$A$28)","v":3.8211147785260993},{"$f":"SUMIFS(Data!$E:$E,Data!$B:$B,'10'!K$29,Data!$C:$C,'10'!$A$29,Data!$H:$H,'10'!$A32,Data!$F:$F,'10'!$A$28)","v":6.9988546123420798}]
[" > 15 <= 20",{"$f":"SUMIFS(Data!$E:$E,Data!$B:$B,'10'!B$29,Data!$C:$C,'10'!$A$29,Data!$H:$H,'10'!$A33,Data!$F:$F,'10'!$A$28)","v":12.222717763480157},{"$f":"SUMIFS(Data!$E:$E,Data!$B:$B,'10'!C$29,Data!$C:$C,'10'!$A$29,Data!$H:$H,'10'!$A33,Data!$F:$F,'10'!$A$28)","v":11.845363111710411},{"$f":"SUMIFS(Data!$E:$E,Data!$B:$B,'10'!D$29,Data!$C:$C,'10'!$A$29,Data!$H:$H,'10'!$A33,Data!$F:$F,'10'!$A$28)","v":16.456533976021863},{"$f":"SUMIFS(Data!$E:$E,Data!$B:$B,'10'!E$29,Data!$C:$C,'10'!$A$29,Data!$H:$H,'10'!$A33,Data!$F:$F,'10'!$A$28)","v":14.073640872166612},{"$f":"SUMIFS(Data!$E:$E,Data!$B:$B,'10'!F$29,Data!$C:$C,'10'!$A$29,Data!$H:$H,'10'!$A33,Data!$F:$F,'10'!$A$28)","v":16.823481911277803},{"$f":"SUMIFS(Data!$E:$E,Data!$B:$B,'10'!G$29,Data!$C:$C,'10'!$A$29,Data!$H:$H,'10'!$A33,Data!$F:$F,'10'!$A$28)","v":14.818232171781023},{"$f":"SUMIFS(Data!$E:$E,Data!$B:$B,'10'!H$29,Data!$C:$C,'10'!$A$29,Data!$H:$H,'10'!$A33,Data!$F:$F,'10'!$A$28)","v":21.516215945581877},{"$f":"SUMIFS(Data!$E:$E,Data!$B:$B,'10'!I$29,Data!$C:$C,'10'!$A$29,Data!$H:$H,'10'!$A33,Data!$F:$F,'10'!$A$28)","v":16.705120610876403},{"$f":"SUMIFS(Data!$E:$E,Data!$B:$B,'10'!J$29,Data!$C:$C,'10'!$A$29,Data!$H:$H,'10'!$A33,Data!$F:$F,'10'!$A$28)","v":12.222717763480157},{"$f":"SUMIFS(Data!$E:$E,Data!$B:$B,'10'!K$29,Data!$C:$C,'10'!$A$29,Data!$H:$H,'10'!$A33,Data!$F:$F,'10'!$A$28)","v":16.823481911277803}]
[" > 20 <= 25",{"$f":"SUMIFS(Data!$E:$E,Data!$B:$B,'10'!B$29,Data!$C:$C,'10'!$A$29,Data!$H:$H,'10'!$A34,Data!$F:$F,'10'!$A$28)","v":81.044902244254686},{"$f":"SUMIFS(Data!$E:$E,Data!$B:$B,'10'!C$29,Data!$C:$C,'10'!$A$29,Data!$H:$H,'10'!$A34,Data!$F:$F,'10'!$A$28)","v":82.413212689990303},{"$f":"SUMIFS(Data!$E:$E,Data!$B:$B,'10'!D$29,Data!$C:$C,'10'!$A$29,Data!$H:$H,'10'!$A34,Data!$F:$F,'10'!$A$28)","v":73.430007548172611},{"$f":"SUMIFS(Data!$E:$E,Data!$B:$B,'10'!E$29,Data!$C:$C,'10'!$A$29,Data!$H:$H,'10'!$A34,Data!$F:$F,'10'!$A$28)","v":68.987343072618671},{"$f":"SUMIFS(Data!$E:$E,Data!$B:$B,'10'!F$29,Data!$C:$C,'10'!$A$29,Data!$H:$H,'10'!$A34,Data!$F:$F,'10'!$A$28)","v":64.667491386278115},{"$f":"SUMIFS(Data!$E:$E,Data!$B:$B,'10'!G$29,Data!$C:$C,'10'!$A$29,Data!$H:$H,'10'!$A34,Data!$F:$F,'10'!$A$28)","v":71.752319972542239},{"$f":"SUMIFS(Data!$E:$E,Data!$B:$B,'10'!H$29,Data!$C:$C,'10'!$A$29,Data!$H:$H,'10'!$A34,Data!$F:$F,'10'!$A$28)","v":53.971754119003357},{"$f":"SUMIFS(Data!$E:$E,Data!$B:$B,'10'!I$29,Data!$C:$C,'10'!$A$29,Data!$H:$H,'10'!$A34,Data!$F:$F,'10'!$A$28)","v":62.833996964643582},{"$f":"SUMIFS(Data!$E:$E,Data!$B:$B,'10'!J$29,Data!$C:$C,'10'!$A$29,Data!$H:$H,'10'!$A34,Data!$F:$F,'10'!$A$28)","v":81.044902244254686},{"$f":"SUMIFS(Data!$E:$E,Data!$B:$B,'10'!K$29,Data!$C:$C,'10'!$A$29,Data!$H:$H,'10'!$A34,Data!$F:$F,'10'!$A$28)","v":64.667491386278115}]
[" > 25 <= 30",{"$f":"SUMIFS(Data!$E:$E,Data!$B:$B,'10'!B$29,Data!$C:$C,'10'!$A$29,Data!$H:$H,'10'!$A35,Data!$F:$F,'10'!$A$28)","v":1.0480738691093929},{"$f":"SUMIFS(Data!$E:$E,Data!$B:$B,'10'!C$29,Data!$C:$C,'10'!$A$29,Data!$H:$H,'10'!$A35,Data!$F:$F,'10'!$A$28)","v":0.89783456917431215},{"$f":"SUMIFS(Data!$E:$E,Data!$B:$B,'10'!D$29,Data!$C:$C,'10'!$A$29,Data!$H:$H,'10'!$A35,Data!$F:$F,'10'!$A$28)","v":0.83424835029594191},{"$f":"SUMIFS(Data!$E:$E,Data!$B:$B,'10'!E$29,Data!$C:$C,'10'!$A$29,Data!$H:$H,'10'!$A35,Data!$F:$F,'10'!$A$28)","v":5.1250945711903011},{"$f":"SUMIFS(Data!$E:$E,Data!$B:$B,'10'!F$29,Data!$C:$C,'10'!$A$29,Data!$H:$H,'10'!$A35,Data!$F:$F,'10'!$A$28)","v":8.4806079349542998},{"$f":"SUMIFS(Data!$E:$E,Data!$B:$B,'10'!G$29,Data!$C:$C,'10'!$A$29,Data!$H:$H,'10'!$A35,Data!$F:$F,'10'!$A$28)","v":2.400547582702266},{"$f":"SUMIFS(Data!$E:$E,Data!$B:$B,'10'!H$29,Data!$C:$C,'10'!$A$29,Data!$H:$H,'10'!$A35,Data!$F:$F,'10'!$A$28)","v":12.097591502905416},{"$f":"SUMIFS(Data!$E:$E,Data!$B:$B,'10'!I$29,Data!$C:$C,'10'!$A$29,Data!$H:$H,'10'!$A35,Data!$F:$F,'10'!$A$28)","v":8.908786349954207},{"$f":"SUMIFS(Data!$E:$E,Data!$B:$B,'10'!J$29,Data!$C:$C,'10'!$A$29,Data!$H:$H,'10'!$A35,Data!$F:$F,'10'!$A$28)","v":1.0480738691093929},{"$f":"SUMIFS(Data!$E:$E,Data!$B:$B,'10'!K$29,Data!$C:$C,'10'!$A$29,Data!$H:$H,'10'!$A35,Data!$F:$F,'10'!$A$28)","v":8.4806079349542998}]
[" > 30 <= 35",{"$f":"SUMIFS(Data!$E:$E,Data!$B:$B,'10'!B$29,Data!$C:$C,'10'!$A$29,Data!$H:$H,'10'!$A36,Data!$F:$F,'10'!$A$28)","v":0},{"$f":"SUMIFS(Data!$E:$E,Data!$B:$B,'10'!C$29,Data!$C:$C,'10'!$A$29,Data!$H:$H,'10'!$A36,Data!$F:$F,'10'!$A$28)","v":5.5716951211859961E-2},{"$f":"SUMIFS(Data!$E:$E,Data!$B:$B,'10'!D$29,Data!$C:$C,'10'!$A$29,Data!$H:$H,'10'!$A36,Data!$F:$F,'10'!$A$28)","v":0},{"$f":"SUMIFS(Data!$E:$E,Data!$B:$B,'10'!E$29,Data!$C:$C,'10'!$A$29,Data!$H:$H,'10'!$A36,Data!$F:$F,'10'!$A$28)","v":2.0178228231555663E-2},{"$f":"SUMIFS(Data!$E:$E,Data!$B:$B,'10'!F$29,Data!$C:$C,'10'!$A$29,Data!$H:$H,'10'!$A36,Data!$F:$F,'10'!$A$28)","v":5.6361967376850279E-2},{"$f":"SUMIFS(Data!$E:$E,Data!$B:$B,'10'!G$29,Data!$C:$C,'10'!$A$29,Data!$H:$H,'10'!$A36,Data!$F:$F,'10'!$A$28)","v":0},{"$f":"SUMIFS(Data!$E:$E,Data!$B:$B,'10'!H$29,Data!$C:$C,'10'!$A$29,Data!$H:$H,'10'!$A36,Data!$F:$F,'10'!$A$28)","v":4.1154720321732698},{"$f":"SUMIFS(Data!$E:$E,Data!$B:$B,'10'!I$29,Data!$C:$C,'10'!$A$29,Data!$H:$H,'10'!$A36,Data!$F:$F,'10'!$A$28)","v":0},{"$f":"SUMIFS(Data!$E:$E,Data!$B:$B,'10'!J$29,Data!$C:$C,'10'!$A$29,Data!$H:$H,'10'!$A36,Data!$F:$F,'10'!$A$28)","v":0},{"$f":"SUMIFS(Data!$E:$E,Data!$B:$B,'10'!K$29,Data!$C:$C,'10'!$A$29,Data!$H:$H,'10'!$A36,Data!$F:$F,'10'!$A$28)","v":5.6361967376850279E-2}]
[" > 35",{"$f":"SUMIFS(Data!$E:$E,Data!$B:$B,'10'!B$29,Data!$C:$C,'10'!$A$29,Data!$H:$H,'10'!$A37,Data!$F:$F,'10'!$A$28)","v":0},{"$f":"SUMIFS(Data!$E:$E,Data!$B:$B,'10'!C$29,Data!$C:$C,'10'!$A$29,Data!$H:$H,'10'!$A37,Data!$F:$F,'10'!$A$28)","v":0},{"$f":"SUMIFS(Data!$E:$E,Data!$B:$B,'10'!D$29,Data!$C:$C,'10'!$A$29,Data!$H:$H,'10'!$A37,Data!$F:$F,'10'!$A$28)","v":0},{"$f":"SUMIFS(Data!$E:$E,Data!$B:$B,'10'!E$29,Data!$C:$C,'10'!$A$29,Data!$H:$H,'10'!$A37,Data!$F:$F,'10'!$A$28)","v":0.11360927128278152},{"$f":"SUMIFS(Data!$E:$E,Data!$B:$B,'10'!F$29,Data!$C:$C,'10'!$A$29,Data!$H:$H,'10'!$A37,Data!$F:$F,'10'!$A$28)","v":0.45985150672894598},{"$f":"SUMIFS(Data!$E:$E,Data!$B:$B,'10'!G$29,Data!$C:$C,'10'!$A$29,Data!$H:$H,'10'!$A37,Data!$F:$F,'10'!$A$28)","v":0},{"$f":"SUMIFS(Data!$E:$E,Data!$B:$B,'10'!H$29,Data!$C:$C,'10'!$A$29,Data!$H:$H,'10'!$A37,Data!$F:$F,'10'!$A$28)","v":0},{"$f":"SUMIFS(Data!$E:$E,Data!$B:$B,'10'!I$29,Data!$C:$C,'10'!$A$29,Data!$H:$H,'10'!$A37,Data!$F:$F,'10'!$A$28)","v":0},{"$f":"SUMIFS(Data!$E:$E,Data!$B:$B,'10'!J$29,Data!$C:$C,'10'!$A$29,Data!$H:$H,'10'!$A37,Data!$F:$F,'10'!$A$28)","v":0},{"$f":"SUMIFS(Data!$E:$E,Data!$B:$B,'10'!K$29,Data!$C:$C,'10'!$A$29,Data!$H:$H,'10'!$A37,Data!$F:$F,'10'!$A$28)","v":0.45985150672894598}]
[{"$f":"VLOOKUP(\"Average amortization period\",Translation!$A$1:$C$354, Translation!A1+1, 0)","v":"Période d’amortissement moyenne"},{"$f":"SUMIFS(Data!$E:$E,Data!$B:$B,'10'!B$29,Data!$C:$C,'10'!$A$29,Data!$H:$H,'10'!$A38,Data!$F:$F,'10'!$A$28)","v":22.588879318925237},{"$f":"SUMIFS(Data!$E:$E,Data!$B:$B,'10'!C$29,Data!$C:$C,'10'!$A$29,Data!$D:$D,'10'!$A38,Data!$F:$F,'10'!$A$28)","v":22.844407844180179},{"$f":"SUMIFS(Data!$E:$E,Data!$B:$B,'10'!D$29,Data!$C:$C,'10'!$A$29,Data!$D:$D,'10'!$A38,Data!$F:$F,'10'!$A$28)","v":21.842966125238632},{"$f":"SUMIFS(Data!$E:$E,Data!$B:$B,'10'!E$29,Data!$C:$C,'10'!$A$29,Data!$D:$D,'10'!$A38,Data!$F:$F,'10'!$A$28)","v":21.566066764570387},{"$f":"SUMIFS(Data!$E:$E,Data!$B:$B,'10'!F$29,Data!$C:$C,'10'!$A$29,Data!$D:$D,'10'!$A38,Data!$F:$F,'10'!$A$28)","v":22.303489589592814},{"$f":"SUMIFS(Data!$E:$E,Data!$B:$B,'10'!G$29,Data!$C:$C,'10'!$A$29,Data!$D:$D,'10'!$A38,Data!$F:$F,'10'!$A$28)","v":21.80269842521875},{"$f":"SUMIFS(Data!$E:$E,Data!$B:$B,'10'!H$29,Data!$C:$C,'10'!$A$29,Data!$D:$D,'10'!$A38,Data!$F:$F,'10'!$A$28)","v":22.27231693398538},{"$f":"SUMIFS(Data!$E:$E,Data!$B:$B,'10'!I$29,Data!$C:$C,'10'!$A$29,Data!$D:$D,'10'!$A38,Data!$F:$F,'10'!$A$28)","v":21.740077859740524},{"$f":"SUMIFS(Data!$E:$E,Data!$B:$B,'10'!J$29,Data!$C:$C,'10'!$A$29,Data!$D:$D,'10'!$A38,Data!$F:$F,'10'!$A$28)","v":22.588879318925237},{"$f":"SUMIFS(Data!$E:$E,Data!$B:$B,'10'!K$29,Data!$C:$C,'10'!$A$29,Data!$D:$D,'10'!$A38,Data!$F:$F,'10'!$A$28)","v":22.303489589592814}]
[{"$f":"VLOOKUP(\"Average amortization period by province\",Translation!$A$1:$C$354, Translation!A1+1, 0)","v":"Période d’amortissement moyenne selon la province"}]
[{"$f":"VLOOKUP(\"Newfoundland and Labrador\",Translation!$A$1:$C$354, Translation!A1+1, 0)","v":"Terre-Neuve-et-Labrador"},{"$f":"IF((SUMIFS(Data!$E:$E,Data!$B:$B,'10'!B$29,Data!$C:$C,'10'!$A$29,Data!$D:$D,'10'!$A40,Data!$F:$F,'10'!$A$39))=0,\"-\",SUMIFS(Data!$E:$E,Data!$B:$B,'10'!B$29,Data!$C:$C,'10'!$A$29,Data!$D:$D,'10'!$A40,Data!$F:$F,'10'!$A$39))","v":20.439601993678057},{"$f":"IF((SUMIFS(Data!$E:$E,Data!$B:$B,'10'!C$29,Data!$C:$C,'10'!$A$29,Data!$D:$D,'10'!$A40,Data!$F:$F,'10'!$A$39))=0,\"-\",SUMIFS(Data!$E:$E,Data!$B:$B,'10'!C$29,Data!$C:$C,'10'!$A$29,Data!$D:$D,'10'!$A40,Data!$F:$F,'10'!$A$39))","v":22.16466119808398},{"$f":"IF((SUMIFS(Data!$E:$E,Data!$B:$B,'10'!D$29,Data!$C:$C,'10'!$A$29,Data!$D:$D,'10'!$A40,Data!$F:$F,'10'!$A$39))=0,\"-\",SUMIFS(Data!$E:$E,Data!$B:$B,'10'!D$29,Data!$C:$C,'10'!$A$29,Data!$D:$D,'10'!$A40,Data!$F:$F,'10'!$A$39))","v":"-"},{"$f":"IF((SUMIFS(Data!$E:$E,Data!$B:$B,'10'!E$29,Data!$C:$C,'10'!$A$29,Data!$D:$D,'10'!$A40,Data!$F:$F,'10'!$A$39))=0,\"-\",SUMIFS(Data!$E:$E,Data!$B:$B,'10'!E$29,Data!$C:$C,'10'!$A$29,Data!$D:$D,'10'!$A40,Data!$F:$F,'10'!$A$39))","v":21.920264714527057},{"$f":"IF((SUMIFS(Data!$E:$E,Data!$B:$B,'10'!F$29,Data!$C:$C,'10'!$A$29,Data!$D:$D,'10'!$A40,Data!$F:$F,'10'!$A$39))=0,\"-\",SUMIFS(Data!$E:$E,Data!$B:$B,'10'!F$29,Data!$C:$C,'10'!$A$29,Data!$D:$D,'10'!$A40,Data!$F:$F,'10'!$A$39))","v":20.905083589985004},{"$f":"IF((SUMIFS(Data!$E:$E,Data!$B:$B,'10'!G$29,Data!$C:$C,'10'!$A$29,Data!$D:$D,'10'!$A40,Data!$F:$F,'10'!$A$39))=0,\"-\",SUMIFS(Data!$E:$E,Data!$B:$B,'10'!G$29,Data!$C:$C,'10'!$A$29,Data!$D:$D,'10'!$A40,Data!$F:$F,'10'!$A$39))","v":21.718305356664015},{"$f":"IF((SUMIFS(Data!$E:$E,Data!$B:$B,'10'!H$29,Data!$C:$C,'10'!$A$29,Data!$D:$D,'10'!$A40,Data!$F:$F,'10'!$A$39))=0,\"-\",SUMIFS(Data!$E:$E,Data!$B:$B,'10'!H$29,Data!$C:$C,'10'!$A$29,Data!$D:$D,'10'!$A40,Data!$F:$F,'10'!$A$39))","v":22.401769720149687},{"$f":"IF((SUMIFS(Data!$E:$E,Data!$B:$B,'10'!I$29,Data!$C:$C,'10'!$A$29,Data!$D:$D,'10'!$A40,Data!$F:$F,'10'!$A$39))=0,\"-\",SUMIFS(Data!$E:$E,Data!$B:$B,'10'!I$29,Data!$C:$C,'10'!$A$29,Data!$D:$D,'10'!$A40,Data!$F:$F,'10'!$A$39))","v":17.933155189456794},{"$f":"IF((SUMIFS(Data!$E:$E,Data!$B:$B,'10'!J$29,Data!$C:$C,'10'!$A$29,Data!$D:$D,'10'!$A40,Data!$F:$F,'10'!$A$39))=0,\"-\",SUMIFS(Data!$E:$E,Data!$B:$B,'10'!J$29,Data!$C:$C,'10'!$A$29,Data!$D:$D,'10'!$A40,Data!$F:$F,'10'!$A$39))","v":20.439601993678057},{"$f":"IF((SUMIFS(Data!$E:$E,Data!$B:$B,'10'!K$29,Data!$C:$C,'10'!$A$29,Data!$D:$D,'10'!$A40,Data!$F:$F,'10'!$A$39))=0,\"-\",SUMIFS(Data!$E:$E,Data!$B:$B,'10'!K$29,Data!$C:$C,'10'!$A$29,Data!$D:$D,'10'!$A40,Data!$F:$F,'10'!$A$39))","v":20.905083589985004}]
[{"$f":"VLOOKUP(\"Prince Edward Island\",Translation!$A$1:$C$354, Translation!A1+1, 0)","v":"Île-du-Prince-Édouard"},{"$f":"IF((SUMIFS(Data!$E:$E,Data!$B:$B,'10'!B$29,Data!$C:$C,'10'!$A$29,Data!$D:$D,'10'!$A41,Data!$F:$F,'10'!$A$39))=0,\"-\",SUMIFS(Data!$E:$E,Data!$B:$B,'10'!B$29,Data!$C:$C,'10'!$A$29,Data!$D:$D,'10'!$A41,Data!$F:$F,'10'!$A$39))","v":"-"},{"$f":"IF((SUMIFS(Data!$E:$E,Data!$B:$B,'10'!C$29,Data!$C:$C,'10'!$A$29,Data!$D:$D,'10'!$A41,Data!$F:$F,'10'!$A$39))=0,\"-\",SUMIFS(Data!$E:$E,Data!$B:$B,'10'!C$29,Data!$C:$C,'10'!$A$29,Data!$D:$D,'10'!$A41,Data!$F:$F,'10'!$A$39))","v":22.644684702540658},{"$f":"IF((SUMIFS(Data!$E:$E,Data!$B:$B,'10'!D$29,Data!$C:$C,'10'!$A$29,Data!$D:$D,'10'!$A41,Data!$F:$F,'10'!$A$39))=0,\"-\",SUMIFS(Data!$E:$E,Data!$B:$B,'10'!D$29,Data!$C:$C,'10'!$A$29,Data!$D:$D,'10'!$A41,Data!$F:$F,'10'!$A$39))","v":"-"},{"$f":"IF((SUMIFS(Data!$E:$E,Data!$B:$B,'10'!E$29,Data!$C:$C,'10'!$A$29,Data!$D:$D,'10'!$A41,Data!$F:$F,'10'!$A$39))=0,\"-\",SUMIFS(Data!$E:$E,Data!$B:$B,'10'!E$29,Data!$C:$C,'10'!$A$29,Data!$D:$D,'10'!$A41,Data!$F:$F,'10'!$A$39))","v":20.825047020806505},{"$f":"IF((SUMIFS(Data!$E:$E,Data!$B:$B,'10'!F$29,Data!$C:$C,'10'!$A$29,Data!$D:$D,'10'!$A41,Data!$F:$F,'10'!$A$39))=0,\"-\",SUMIFS(Data!$E:$E,Data!$B:$B,'10'!F$29,Data!$C:$C,'10'!$A$29,Data!$D:$D,'10'!$A41,Data!$F:$F,'10'!$A$39))","v":24.270016040585464},{"$f":"IF((SUMIFS(Data!$E:$E,Data!$B:$B,'10'!G$29,Data!$C:$C,'10'!$A$29,Data!$D:$D,'10'!$A41,Data!$F:$F,'10'!$A$39))=0,\"-\",SUMIFS(Data!$E:$E,Data!$B:$B,'10'!G$29,Data!$C:$C,'10'!$A$29,Data!$D:$D,'10'!$A41,Data!$F:$F,'10'!$A$39))","v":15.162123790017676},{"$f":"IF((SUMIFS(Data!$E:$E,Data!$B:$B,'10'!H$29,Data!$C:$C,'10'!$A$29,Data!$D:$D,'10'!$A41,Data!$F:$F,'10'!$A$39))=0,\"-\",SUMIFS(Data!$E:$E,Data!$B:$B,'10'!H$29,Data!$C:$C,'10'!$A$29,Data!$D:$D,'10'!$A41,Data!$F:$F,'10'!$A$39))","v":"-"},{"$f":"IF((SUMIFS(Data!$E:$E,Data!$B:$B,'10'!I$29,Data!$C:$C,'10'!$A$29,Data!$D:$D,'10'!$A41,Data!$F:$F,'10'!$A$39))=0,\"-\",SUMIFS(Data!$E:$E,Data!$B:$B,'10'!I$29,Data!$C:$C,'10'!$A$29,Data!$D:$D,'10'!$A41,Data!$F:$F,'10'!$A$39))","v":18.341037171313378},{"$f":"IF((SUMIFS(Data!$E:$E,Data!$B:$B,'10'!J$29,Data!$C:$C,'10'!$A$29,Data!$D:$D,'10'!$A41,Data!$F:$F,'10'!$A$39))=0,\"-\",SUMIFS(Data!$E:$E,Data!$B:$B,'10'!J$29,Data!$C:$C,'10'!$A$29,Data!$D:$D,'10'!$A41,Data!$F:$F,'10'!$A$39))","v":"-"},{"$f":"IF((SUMIFS(Data!$E:$E,Data!$B:$B,'10'!K$29,Data!$C:$C,'10'!$A$29,Data!$D:$D,'10'!$A41,Data!$F:$F,'10'!$A$39))=0,\"-\",SUMIFS(Data!$E:$E,Data!$B:$B,'10'!K$29,Data!$C:$C,'10'!$A$29,Data!$D:$D,'10'!$A41,Data!$F:$F,'10'!$A$39))","v":24.270016040585464}]
[{"$f":"VLOOKUP(\"Nova Scotia\",Translation!$A$1:$C$354, Translation!A1+1, 0)","v":"Nouvelle-Écosse"},{"$f":"IF((SUMIFS(Data!$E:$E,Data!$B:$B,'10'!B$29,Data!$C:$C,'10'!$A$29,Data!$D:$D,'10'!$A42,Data!$F:$F,'10'!$A$39))=0,\"-\",SUMIFS(Data!$E:$E,Data!$B:$B,'10'!B$29,Data!$C:$C,'10'!$A$29,Data!$D:$D,'10'!$A42,Data!$F:$F,'10'!$A$39))","v":21.647317597920377},{"$f":"IF((SUMIFS(Data!$E:$E,Data!$B:$B,'10'!C$29,Data!$C:$C,'10'!$A$29,Data!$D:$D,'10'!$A42,Data!$F:$F,'10'!$A$39))=0,\"-\",SUMIFS(Data!$E:$E,Data!$B:$B,'10'!C$29,Data!$C:$C,'10'!$A$29,Data!$D:$D,'10'!$A42,Data!$F:$F,'10'!$A$39))","v":22.784125271594263},{"$f":"IF((SUMIFS(Data!$E:$E,Data!$B:$B,'10'!D$29,Data!$C:$C,'10'!$A$29,Data!$D:$D,'10'!$A42,Data!$F:$F,'10'!$A$39))=0,\"-\",SUMIFS(Data!$E:$E,Data!$B:$B,'10'!D$29,Data!$C:$C,'10'!$A$29,Data!$D:$D,'10'!$A42,Data!$F:$F,'10'!$A$39))","v":21.751189157937844},{"$f":"IF((SUMIFS(Data!$E:$E,Data!$B:$B,'10'!E$29,Data!$C:$C,'10'!$A$29,Data!$D:$D,'10'!$A42,Data!$F:$F,'10'!$A$39))=0,\"-\",SUMIFS(Data!$E:$E,Data!$B:$B,'10'!E$29,Data!$C:$C,'10'!$A$29,Data!$D:$D,'10'!$A42,Data!$F:$F,'10'!$A$39))","v":22.187538441080569},{"$f":"IF((SUMIFS(Data!$E:$E,Data!$B:$B,'10'!F$29,Data!$C:$C,'10'!$A$29,Data!$D:$D,'10'!$A42,Data!$F:$F,'10'!$A$39))=0,\"-\",SUMIFS(Data!$E:$E,Data!$B:$B,'10'!F$29,Data!$C:$C,'10'!$A$29,Data!$D:$D,'10'!$A42,Data!$F:$F,'10'!$A$39))","v":23.136158399185604},{"$f":"IF((SUMIFS(Data!$E:$E,Data!$B:$B,'10'!G$29,Data!$C:$C,'10'!$A$29,Data!$D:$D,'10'!$A42,Data!$F:$F,'10'!$A$39))=0,\"-\",SUMIFS(Data!$E:$E,Data!$B:$B,'10'!G$29,Data!$C:$C,'10'!$A$29,Data!$D:$D,'10'!$A42,Data!$F:$F,'10'!$A$39))","v":20.036602160453381},{"$f":"IF((SUMIFS(Data!$E:$E,Data!$B:$B,'10'!H$29,Data!$C:$C,'10'!$A$29,Data!$D:$D,'10'!$A42,Data!$F:$F,'10'!$A$39))=0,\"-\",SUMIFS(Data!$E:$E,Data!$B:$B,'10'!H$29,Data!$C:$C,'10'!$A$29,Data!$D:$D,'10'!$A42,Data!$F:$F,'10'!$A$39))","v":22.035729378354844},{"$f":"IF((SUMIFS(Data!$E:$E,Data!$B:$B,'10'!I$29,Data!$C:$C,'10'!$A$29,Data!$D:$D,'10'!$A42,Data!$F:$F,'10'!$A$39))=0,\"-\",SUMIFS(Data!$E:$E,Data!$B:$B,'10'!I$29,Data!$C:$C,'10'!$A$29,Data!$D:$D,'10'!$A42,Data!$F:$F,'10'!$A$39))","v":18.781301377700963},{"$f":"IF((SUMIFS(Data!$E:$E,Data!$B:$B,'10'!J$29,Data!$C:$C,'10'!$A$29,Data!$D:$D,'10'!$A42,Data!$F:$F,'10'!$A$39))=0,\"-\",SUMIFS(Data!$E:$E,Data!$B:$B,'10'!J$29,Data!$C:$C,'10'!$A$29,Data!$D:$D,'10'!$A42,Data!$F:$F,'10'!$A$39))","v":21.647317597920377},{"$f":"IF((SUMIFS(Data!$E:$E,Data!$B:$B,'10'!K$29,Data!$C:$C,'10'!$A$29,Data!$D:$D,'10'!$A42,Data!$F:$F,'10'!$A$39))=0,\"-\",SUMIFS(Data!$E:$E,Data!$B:$B,'10'!K$29,Data!$C:$C,'10'!$A$29,Data!$D:$D,'10'!$A42,Data!$F:$F,'10'!$A$39))","v":23.136158399185604}]
[{"$f":"VLOOKUP(\"New Brunswick\",Translation!$A$1:$C$354, Translation!A1+1, 0)","v":"Nouveau-Brunswick"},{"$f":"IF((SUMIFS(Data!$E:$E,Data!$B:$B,'10'!B$29,Data!$C:$C,'10'!$A$29,Data!$D:$D,'10'!$A43,Data!$F:$F,'10'!$A$39))=0,\"-\",SUMIFS(Data!$E:$E,Data!$B:$B,'10'!B$29,Data!$C:$C,'10'!$A$29,Data!$D:$D,'10'!$A43,Data!$F:$F,'10'!$A$39))","v":22.714207525858793},{"$f":"IF((SUMIFS(Data!$E:$E,Data!$B:$B,'10'!C$29,Data!$C:$C,'10'!$A$29,Data!$D:$D,'10'!$A43,Data!$F:$F,'10'!$A$39))=0,\"-\",SUMIFS(Data!$E:$E,Data!$B:$B,'10'!C$29,Data!$C:$C,'10'!$A$29,Data!$D:$D,'10'!$A43,Data!$F:$F,'10'!$A$39))","v":22.367782800828671},{"$f":"IF((SUMIFS(Data!$E:$E,Data!$B:$B,'10'!D$29,Data!$C:$C,'10'!$A$29,Data!$D:$D,'10'!$A43,Data!$F:$F,'10'!$A$39))=0,\"-\",SUMIFS(Data!$E:$E,Data!$B:$B,'10'!D$29,Data!$C:$C,'10'!$A$29,Data!$D:$D,'10'!$A43,Data!$F:$F,'10'!$A$39))","v":20.249584968825488},{"$f":"IF((SUMIFS(Data!$E:$E,Data!$B:$B,'10'!E$29,Data!$C:$C,'10'!$A$29,Data!$D:$D,'10'!$A43,Data!$F:$F,'10'!$A$39))=0,\"-\",SUMIFS(Data!$E:$E,Data!$B:$B,'10'!E$29,Data!$C:$C,'10'!$A$29,Data!$D:$D,'10'!$A43,Data!$F:$F,'10'!$A$39))","v":21.914118277843922},{"$f":"IF((SUMIFS(Data!$E:$E,Data!$B:$B,'10'!F$29,Data!$C:$C,'10'!$A$29,Data!$D:$D,'10'!$A43,Data!$F:$F,'10'!$A$39))=0,\"-\",SUMIFS(Data!$E:$E,Data!$B:$B,'10'!F$29,Data!$C:$C,'10'!$A$29,Data!$D:$D,'10'!$A43,Data!$F:$F,'10'!$A$39))","v":22.420537918744529},{"$f":"IF((SUMIFS(Data!$E:$E,Data!$B:$B,'10'!G$29,Data!$C:$C,'10'!$A$29,Data!$D:$D,'10'!$A43,Data!$F:$F,'10'!$A$39))=0,\"-\",SUMIFS(Data!$E:$E,Data!$B:$B,'10'!G$29,Data!$C:$C,'10'!$A$29,Data!$D:$D,'10'!$A43,Data!$F:$F,'10'!$A$39))","v":19.92362982475975},{"$f":"IF((SUMIFS(Data!$E:$E,Data!$B:$B,'10'!H$29,Data!$C:$C,'10'!$A$29,Data!$D:$D,'10'!$A43,Data!$F:$F,'10'!$A$39))=0,\"-\",SUMIFS(Data!$E:$E,Data!$B:$B,'10'!H$29,Data!$C:$C,'10'!$A$29,Data!$D:$D,'10'!$A43,Data!$F:$F,'10'!$A$39))","v":18.894620674158286},{"$f":"IF((SUMIFS(Data!$E:$E,Data!$B:$B,'10'!I$29,Data!$C:$C,'10'!$A$29,Data!$D:$D,'10'!$A43,Data!$F:$F,'10'!$A$39))=0,\"-\",SUMIFS(Data!$E:$E,Data!$B:$B,'10'!I$29,Data!$C:$C,'10'!$A$29,Data!$D:$D,'10'!$A43,Data!$F:$F,'10'!$A$39))","v":22.349745407289127},{"$f":"IF((SUMIFS(Data!$E:$E,Data!$B:$B,'10'!J$29,Data!$C:$C,'10'!$A$29,Data!$D:$D,'10'!$A43,Data!$F:$F,'10'!$A$39))=0,\"-\",SUMIFS(Data!$E:$E,Data!$B:$B,'10'!J$29,Data!$C:$C,'10'!$A$29,Data!$D:$D,'10'!$A43,Data!$F:$F,'10'!$A$39))","v":22.714207525858793},{"$f":"IF((SUMIFS(Data!$E:$E,Data!$B:$B,'10'!K$29,Data!$C:$C,'10'!$A$29,Data!$D:$D,'10'!$A43,Data!$F:$F,'10'!$A$39))=0,\"-\",SUMIFS(Data!$E:$E,Data!$B:$B,'10'!K$29,Data!$C:$C,'10'!$A$29,Data!$D:$D,'10'!$A43,Data!$F:$F,'10'!$A$39))","v":22.420537918744529}]
[{"$f":"VLOOKUP(\"Quebec\",Translation!$A$1:$C$354, Translation!A1+1, 0)","v":"Québec"},{"$f":"IF((SUMIFS(Data!$E:$E,Data!$B:$B,'10'!B$29,Data!$C:$C,'10'!$A$29,Data!$D:$D,'10'!$A44,Data!$F:$F,'10'!$A$39))=0,\"-\",SUMIFS(Data!$E:$E,Data!$B:$B,'10'!B$29,Data!$C:$C,'10'!$A$29,Data!$D:$D,'10'!$A44,Data!$F:$F,'10'!$A$39))","v":22.011742631470874},{"$f":"IF((SUMIFS(Data!$E:$E,Data!$B:$B,'10'!C$29,Data!$C:$C,'10'!$A$29,Data!$D:$D,'10'!$A44,Data!$F:$F,'10'!$A$39))=0,\"-\",SUMIFS(Data!$E:$E,Data!$B:$B,'10'!C$29,Data!$C:$C,'10'!$A$29,Data!$D:$D,'10'!$A44,Data!$F:$F,'10'!$A$39))","v":23.235500793307502},{"$f":"IF((SUMIFS(Data!$E:$E,Data!$B:$B,'10'!D$29,Data!$C:$C,'10'!$A$29,Data!$D:$D,'10'!$A44,Data!$F:$F,'10'!$A$39))=0,\"-\",SUMIFS(Data!$E:$E,Data!$B:$B,'10'!D$29,Data!$C:$C,'10'!$A$29,Data!$D:$D,'10'!$A44,Data!$F:$F,'10'!$A$39))","v":21.92717870685691},{"$f":"IF((SUMIFS(Data!$E:$E,Data!$B:$B,'10'!E$29,Data!$C:$C,'10'!$A$29,Data!$D:$D,'10'!$A44,Data!$F:$F,'10'!$A$39))=0,\"-\",SUMIFS(Data!$E:$E,Data!$B:$B,'10'!E$29,Data!$C:$C,'10'!$A$29,Data!$D:$D,'10'!$A44,Data!$F:$F,'10'!$A$39))","v":22.424522594980196},{"$f":"IF((SUMIFS(Data!$E:$E,Data!$B:$B,'10'!F$29,Data!$C:$C,'10'!$A$29,Data!$D:$D,'10'!$A44,Data!$F:$F,'10'!$A$39))=0,\"-\",SUMIFS(Data!$E:$E,Data!$B:$B,'10'!F$29,Data!$C:$C,'10'!$A$29,Data!$D:$D,'10'!$A44,Data!$F:$F,'10'!$A$39))","v":21.455162910769996},{"$f":"IF((SUMIFS(Data!$E:$E,Data!$B:$B,'10'!G$29,Data!$C:$C,'10'!$A$29,Data!$D:$D,'10'!$A44,Data!$F:$F,'10'!$A$39))=0,\"-\",SUMIFS(Data!$E:$E,Data!$B:$B,'10'!G$29,Data!$C:$C,'10'!$A$29,Data!$D:$D,'10'!$A44,Data!$F:$F,'10'!$A$39))","v":22.194082376513055},{"$f":"IF((SUMIFS(Data!$E:$E,Data!$B:$B,'10'!H$29,Data!$C:$C,'10'!$A$29,Data!$D:$D,'10'!$A44,Data!$F:$F,'10'!$A$39))=0,\"-\",SUMIFS(Data!$E:$E,Data!$B:$B,'10'!H$29,Data!$C:$C,'10'!$A$29,Data!$D:$D,'10'!$A44,Data!$F:$F,'10'!$A$39))","v":21.400231025650289},{"$f":"IF((SUMIFS(Data!$E:$E,Data!$B:$B,'10'!I$29,Data!$C:$C,'10'!$A$29,Data!$D:$D,'10'!$A44,Data!$F:$F,'10'!$A$39))=0,\"-\",SUMIFS(Data!$E:$E,Data!$B:$B,'10'!I$29,Data!$C:$C,'10'!$A$29,Data!$D:$D,'10'!$A44,Data!$F:$F,'10'!$A$39))","v":20.243091423970295},{"$f":"IF((SUMIFS(Data!$E:$E,Data!$B:$B,'10'!J$29,Data!$C:$C,'10'!$A$29,Data!$D:$D,'10'!$A44,Data!$F:$F,'10'!$A$39))=0,\"-\",SUMIFS(Data!$E:$E,Data!$B:$B,'10'!J$29,Data!$C:$C,'10'!$A$29,Data!$D:$D,'10'!$A44,Data!$F:$F,'10'!$A$39))","v":22.011742631470874},{"$f":"IF((SUMIFS(Data!$E:$E,Data!$B:$B,'10'!K$29,Data!$C:$C,'10'!$A$29,Data!$D:$D,'10'!$A44,Data!$F:$F,'10'!$A$39))=0,\"-\",SUMIFS(Data!$E:$E,Data!$B:$B,'10'!K$29,Data!$C:$C,'10'!$A$29,Data!$D:$D,'10'!$A44,Data!$F:$F,'10'!$A$39))","v":21.455162910769996}]
[{"$f":"VLOOKUP(\"Ontario\",Translation!$A$1:$C$354, Translation!A1+1, 0)","v":"Ontario"},{"$f":"IF((SUMIFS(Data!$E:$E,Data!$B:$B,'10'!B$29,Data!$C:$C,'10'!$A$29,Data!$D:$D,'10'!$A45,Data!$F:$F,'10'!$A$39))=0,\"-\",SUMIFS(Data!$E:$E,Data!$B:$B,'10'!B$29,Data!$C:$C,'10'!$A$29,Data!$D:$D,'10'!$A45,Data!$F:$F,'10'!$A$39))","v":22.884156220074203},{"$f":"IF((SUMIFS(Data!$E:$E,Data!$B:$B,'10'!C$29,Data!$C:$C,'10'!$A$29,Data!$D:$D,'10'!$A45,Data!$F:$F,'10'!$A$39))=0,\"-\",SUMIFS(Data!$E:$E,Data!$B:$B,'10'!C$29,Data!$C:$C,'10'!$A$29,Data!$D:$D,'10'!$A45,Data!$F:$F,'10'!$A$39))","v":22.923118726742647},{"$f":"IF((SUMIFS(Data!$E:$E,Data!$B:$B,'10'!D$29,Data!$C:$C,'10'!$A$29,Data!$D:$D,'10'!$A45,Data!$F:$F,'10'!$A$39))=0,\"-\",SUMIFS(Data!$E:$E,Data!$B:$B,'10'!D$29,Data!$C:$C,'10'!$A$29,Data!$D:$D,'10'!$A45,Data!$F:$F,'10'!$A$39))","v":21.506280542959527},{"$f":"IF((SUMIFS(Data!$E:$E,Data!$B:$B,'10'!E$29,Data!$C:$C,'10'!$A$29,Data!$D:$D,'10'!$A45,Data!$F:$F,'10'!$A$39))=0,\"-\",SUMIFS(Data!$E:$E,Data!$B:$B,'10'!E$29,Data!$C:$C,'10'!$A$29,Data!$D:$D,'10'!$A45,Data!$F:$F,'10'!$A$39))","v":21.827354799180995},{"$f":"IF((SUMIFS(Data!$E:$E,Data!$B:$B,'10'!F$29,Data!$C:$C,'10'!$A$29,Data!$D:$D,'10'!$A45,Data!$F:$F,'10'!$A$39))=0,\"-\",SUMIFS(Data!$E:$E,Data!$B:$B,'10'!F$29,Data!$C:$C,'10'!$A$29,Data!$D:$D,'10'!$A45,Data!$F:$F,'10'!$A$39))","v":22.674495298802832},{"$f":"IF((SUMIFS(Data!$E:$E,Data!$B:$B,'10'!G$29,Data!$C:$C,'10'!$A$29,Data!$D:$D,'10'!$A45,Data!$F:$F,'10'!$A$39))=0,\"-\",SUMIFS(Data!$E:$E,Data!$B:$B,'10'!G$29,Data!$C:$C,'10'!$A$29,Data!$D:$D,'10'!$A45,Data!$F:$F,'10'!$A$39))","v":21.922004243436405},{"$f":"IF((SUMIFS(Data!$E:$E,Data!$B:$B,'10'!H$29,Data!$C:$C,'10'!$A$29,Data!$D:$D,'10'!$A45,Data!$F:$F,'10'!$A$39))=0,\"-\",SUMIFS(Data!$E:$E,Data!$B:$B,'10'!H$29,Data!$C:$C,'10'!$A$29,Data!$D:$D,'10'!$A45,Data!$F:$F,'10'!$A$39))","v":22.402512104261952},{"$f":"IF((SUMIFS(Data!$E:$E,Data!$B:$B,'10'!I$29,Data!$C:$C,'10'!$A$29,Data!$D:$D,'10'!$A45,Data!$F:$F,'10'!$A$39))=0,\"-\",SUMIFS(Data!$E:$E,Data!$B:$B,'10'!I$29,Data!$C:$C,'10'!$A$29,Data!$D:$D,'10'!$A45,Data!$F:$F,'10'!$A$39))","v":21.988056801080614},{"$f":"IF((SUMIFS(Data!$E:$E,Data!$B:$B,'10'!J$29,Data!$C:$C,'10'!$A$29,Data!$D:$D,'10'!$A45,Data!$F:$F,'10'!$A$39))=0,\"-\",SUMIFS(Data!$E:$E,Data!$B:$B,'10'!J$29,Data!$C:$C,'10'!$A$29,Data!$D:$D,'10'!$A45,Data!$F:$F,'10'!$A$39))","v":22.884156220074203},{"$f":"IF((SUMIFS(Data!$E:$E,Data!$B:$B,'10'!K$29,Data!$C:$C,'10'!$A$29,Data!$D:$D,'10'!$A45,Data!$F:$F,'10'!$A$39))=0,\"-\",SUMIFS(Data!$E:$E,Data!$B:$B,'10'!K$29,Data!$C:$C,'10'!$A$29,Data!$D:$D,'10'!$A45,Data!$F:$F,'10'!$A$39))","v":22.674495298802832}]
[{"$f":"VLOOKUP(\"Manitoba\",Translation!$A$1:$C$354, Translation!A1+1, 0)","v":"Manitoba"},{"$f":"IF((SUMIFS(Data!$E:$E,Data!$B:$B,'10'!B$29,Data!$C:$C,'10'!$A$29,Data!$D:$D,'10'!$A46,Data!$F:$F,'10'!$A$39))=0,\"-\",SUMIFS(Data!$E:$E,Data!$B:$B,'10'!B$29,Data!$C:$C,'10'!$A$29,Data!$D:$D,'10'!$A46,Data!$F:$F,'10'!$A$39))","v":22.329403186005894},{"$f":"IF((SUMIFS(Data!$E:$E,Data!$B:$B,'10'!C$29,Data!$C:$C,'10'!$A$29,Data!$D:$D,'10'!$A46,Data!$F:$F,'10'!$A$39))=0,\"-\",SUMIFS(Data!$E:$E,Data!$B:$B,'10'!C$29,Data!$C:$C,'10'!$A$29,Data!$D:$D,'10'!$A46,Data!$F:$F,'10'!$A$39))","v":22.851491235037894},{"$f":"IF((SUMIFS(Data!$E:$E,Data!$B:$B,'10'!D$29,Data!$C:$C,'10'!$A$29,Data!$D:$D,'10'!$A46,Data!$F:$F,'10'!$A$39))=0,\"-\",SUMIFS(Data!$E:$E,Data!$B:$B,'10'!D$29,Data!$C:$C,'10'!$A$29,Data!$D:$D,'10'!$A46,Data!$F:$F,'10'!$A$39))","v":20.956601913993779},{"$f":"IF((SUMIFS(Data!$E:$E,Data!$B:$B,'10'!E$29,Data!$C:$C,'10'!$A$29,Data!$D:$D,'10'!$A46,Data!$F:$F,'10'!$A$39))=0,\"-\",SUMIFS(Data!$E:$E,Data!$B:$B,'10'!E$29,Data!$C:$C,'10'!$A$29,Data!$D:$D,'10'!$A46,Data!$F:$F,'10'!$A$39))","v":21.894466451963535},{"$f":"IF((SUMIFS(Data!$E:$E,Data!$B:$B,'10'!F$29,Data!$C:$C,'10'!$A$29,Data!$D:$D,'10'!$A46,Data!$F:$F,'10'!$A$39))=0,\"-\",SUMIFS(Data!$E:$E,Data!$B:$B,'10'!F$29,Data!$C:$C,'10'!$A$29,Data!$D:$D,'10'!$A46,Data!$F:$F,'10'!$A$39))","v":22.540431387764524},{"$f":"IF((SUMIFS(Data!$E:$E,Data!$B:$B,'10'!G$29,Data!$C:$C,'10'!$A$29,Data!$D:$D,'10'!$A46,Data!$F:$F,'10'!$A$39))=0,\"-\",SUMIFS(Data!$E:$E,Data!$B:$B,'10'!G$29,Data!$C:$C,'10'!$A$29,Data!$D:$D,'10'!$A46,Data!$F:$F,'10'!$A$39))","v":22.351086604771002},{"$f":"IF((SUMIFS(Data!$E:$E,Data!$B:$B,'10'!H$29,Data!$C:$C,'10'!$A$29,Data!$D:$D,'10'!$A46,Data!$F:$F,'10'!$A$39))=0,\"-\",SUMIFS(Data!$E:$E,Data!$B:$B,'10'!H$29,Data!$C:$C,'10'!$A$29,Data!$D:$D,'10'!$A46,Data!$F:$F,'10'!$A$39))","v":22.733293548407445},{"$f":"IF((SUMIFS(Data!$E:$E,Data!$B:$B,'10'!I$29,Data!$C:$C,'10'!$A$29,Data!$D:$D,'10'!$A46,Data!$F:$F,'10'!$A$39))=0,\"-\",SUMIFS(Data!$E:$E,Data!$B:$B,'10'!I$29,Data!$C:$C,'10'!$A$29,Data!$D:$D,'10'!$A46,Data!$F:$F,'10'!$A$39))","v":19.685080544039849},{"$f":"IF((SUMIFS(Data!$E:$E,Data!$B:$B,'10'!J$29,Data!$C:$C,'10'!$A$29,Data!$D:$D,'10'!$A46,Data!$F:$F,'10'!$A$39))=0,\"-\",SUMIFS(Data!$E:$E,Data!$B:$B,'10'!J$29,Data!$C:$C,'10'!$A$29,Data!$D:$D,'10'!$A46,Data!$F:$F,'10'!$A$39))","v":22.329403186005894},{"$f":"IF((SUMIFS(Data!$E:$E,Data!$B:$B,'10'!K$29,Data!$C:$C,'10'!$A$29,Data!$D:$D,'10'!$A46,Data!$F:$F,'10'!$A$39))=0,\"-\",SUMIFS(Data!$E:$E,Data!$B:$B,'10'!K$29,Data!$C:$C,'10'!$A$29,Data!$D:$D,'10'!$A46,Data!$F:$F,'10'!$A$39))","v":22.540431387764524}]
[{"$f":"VLOOKUP(\"Saskatchewan\",Translation!$A$1:$C$354, Translation!A1+1, 0)","v":"Saskatchewan"},{"$f":"IF((SUMIFS(Data!$E:$E,Data!$B:$B,'10'!B$29,Data!$C:$C,'10'!$A$29,Data!$D:$D,'10'!$A47,Data!$F:$F,'10'!$A$39))=0,\"-\",SUMIFS(Data!$E:$E,Data!$B:$B,'10'!B$29,Data!$C:$C,'10'!$A$29,Data!$D:$D,'10'!$A47,Data!$F:$F,'10'!$A$39))","v":20.786385547549372},{"$f":"IF((SUMIFS(Data!$E:$E,Data!$B:$B,'10'!C$29,Data!$C:$C,'10'!$A$29,Data!$D:$D,'10'!$A47,Data!$F:$F,'10'!$A$39))=0,\"-\",SUMIFS(Data!$E:$E,Data!$B:$B,'10'!C$29,Data!$C:$C,'10'!$A$29,Data!$D:$D,'10'!$A47,Data!$F:$F,'10'!$A$39))","v":21.028570422699602},{"$f":"IF((SUMIFS(Data!$E:$E,Data!$B:$B,'10'!D$29,Data!$C:$C,'10'!$A$29,Data!$D:$D,'10'!$A47,Data!$F:$F,'10'!$A$39))=0,\"-\",SUMIFS(Data!$E:$E,Data!$B:$B,'10'!D$29,Data!$C:$C,'10'!$A$29,Data!$D:$D,'10'!$A47,Data!$F:$F,'10'!$A$39))","v":18.429867604380295},{"$f":"IF((SUMIFS(Data!$E:$E,Data!$B:$B,'10'!E$29,Data!$C:$C,'10'!$A$29,Data!$D:$D,'10'!$A47,Data!$F:$F,'10'!$A$39))=0,\"-\",SUMIFS(Data!$E:$E,Data!$B:$B,'10'!E$29,Data!$C:$C,'10'!$A$29,Data!$D:$D,'10'!$A47,Data!$F:$F,'10'!$A$39))","v":21.227435086897273},{"$f":"IF((SUMIFS(Data!$E:$E,Data!$B:$B,'10'!F$29,Data!$C:$C,'10'!$A$29,Data!$D:$D,'10'!$A47,Data!$F:$F,'10'!$A$39))=0,\"-\",SUMIFS(Data!$E:$E,Data!$B:$B,'10'!F$29,Data!$C:$C,'10'!$A$29,Data!$D:$D,'10'!$A47,Data!$F:$F,'10'!$A$39))","v":20.422149571180249},{"$f":"IF((SUMIFS(Data!$E:$E,Data!$B:$B,'10'!G$29,Data!$C:$C,'10'!$A$29,Data!$D:$D,'10'!$A47,Data!$F:$F,'10'!$A$39))=0,\"-\",SUMIFS(Data!$E:$E,Data!$B:$B,'10'!G$29,Data!$C:$C,'10'!$A$29,Data!$D:$D,'10'!$A47,Data!$F:$F,'10'!$A$39))","v":19.950577961501565},{"$f":"IF((SUMIFS(Data!$E:$E,Data!$B:$B,'10'!H$29,Data!$C:$C,'10'!$A$29,Data!$D:$D,'10'!$A47,Data!$F:$F,'10'!$A$39))=0,\"-\",SUMIFS(Data!$E:$E,Data!$B:$B,'10'!H$29,Data!$C:$C,'10'!$A$29,Data!$D:$D,'10'!$A47,Data!$F:$F,'10'!$A$39))","v":19.437953798980512},{"$f":"IF((SUMIFS(Data!$E:$E,Data!$B:$B,'10'!I$29,Data!$C:$C,'10'!$A$29,Data!$D:$D,'10'!$A47,Data!$F:$F,'10'!$A$39))=0,\"-\",SUMIFS(Data!$E:$E,Data!$B:$B,'10'!I$29,Data!$C:$C,'10'!$A$29,Data!$D:$D,'10'!$A47,Data!$F:$F,'10'!$A$39))","v":20.650104737813276},{"$f":"IF((SUMIFS(Data!$E:$E,Data!$B:$B,'10'!J$29,Data!$C:$C,'10'!$A$29,Data!$D:$D,'10'!$A47,Data!$F:$F,'10'!$A$39))=0,\"-\",SUMIFS(Data!$E:$E,Data!$B:$B,'10'!J$29,Data!$C:$C,'10'!$A$29,Data!$D:$D,'10'!$A47,Data!$F:$F,'10'!$A$39))","v":20.786385547549372},{"$f":"IF((SUMIFS(Data!$E:$E,Data!$B:$B,'10'!K$29,Data!$C:$C,'10'!$A$29,Data!$D:$D,'10'!$A47,Data!$F:$F,'10'!$A$39))=0,\"-\",SUMIFS(Data!$E:$E,Data!$B:$B,'10'!K$29,Data!$C:$C,'10'!$A$29,Data!$D:$D,'10'!$A47,Data!$F:$F,'10'!$A$39))","v":20.422149571180249}]
[{"$f":"VLOOKUP(\"Alberta\",Translation!$A$1:$C$354, Translation!A1+1, 0)","v":"Alberta"},{"$f":"IF((SUMIFS(Data!$E:$E,Data!$B:$B,'10'!B$29,Data!$C:$C,'10'!$A$29,Data!$D:$D,'10'!$A48,Data!$F:$F,'10'!$A$39))=0,\"-\",SUMIFS(Data!$E:$E,Data!$B:$B,'10'!B$29,Data!$C:$C,'10'!$A$29,Data!$D:$D,'10'!$A48,Data!$F:$F,'10'!$A$39))","v":22.271864587882689},{"$f":"IF((SUMIFS(Data!$E:$E,Data!$B:$B,'10'!C$29,Data!$C:$C,'10'!$A$29,Data!$D:$D,'10'!$A48,Data!$F:$F,'10'!$A$39))=0,\"-\",SUMIFS(Data!$E:$E,Data!$B:$B,'10'!C$29,Data!$C:$C,'10'!$A$29,Data!$D:$D,'10'!$A48,Data!$F:$F,'10'!$A$39))","v":22.407533657983912},{"$f":"IF((SUMIFS(Data!$E:$E,Data!$B:$B,'10'!D$29,Data!$C:$C,'10'!$A$29,Data!$D:$D,'10'!$A48,Data!$F:$F,'10'!$A$39))=0,\"-\",SUMIFS(Data!$E:$E,Data!$B:$B,'10'!D$29,Data!$C:$C,'10'!$A$29,Data!$D:$D,'10'!$A48,Data!$F:$F,'10'!$A$39))","v":21.044499786391089},{"$f":"IF((SUMIFS(Data!$E:$E,Data!$B:$B,'10'!E$29,Data!$C:$C,'10'!$A$29,Data!$D:$D,'10'!$A48,Data!$F:$F,'10'!$A$39))=0,\"-\",SUMIFS(Data!$E:$E,Data!$B:$B,'10'!E$29,Data!$C:$C,'10'!$A$29,Data!$D:$D,'10'!$A48,Data!$F:$F,'10'!$A$39))","v":21.741363893110712},{"$f":"IF((SUMIFS(Data!$E:$E,Data!$B:$B,'10'!F$29,Data!$C:$C,'10'!$A$29,Data!$D:$D,'10'!$A48,Data!$F:$F,'10'!$A$39))=0,\"-\",SUMIFS(Data!$E:$E,Data!$B:$B,'10'!F$29,Data!$C:$C,'10'!$A$29,Data!$D:$D,'10'!$A48,Data!$F:$F,'10'!$A$39))","v":21.366442028312452},{"$f":"IF((SUMIFS(Data!$E:$E,Data!$B:$B,'10'!G$29,Data!$C:$C,'10'!$A$29,Data!$D:$D,'10'!$A48,Data!$F:$F,'10'!$A$39))=0,\"-\",SUMIFS(Data!$E:$E,Data!$B:$B,'10'!G$29,Data!$C:$C,'10'!$A$29,Data!$D:$D,'10'!$A48,Data!$F:$F,'10'!$A$39))","v":22.217431214187439},{"$f":"IF((SUMIFS(Data!$E:$E,Data!$B:$B,'10'!H$29,Data!$C:$C,'10'!$A$29,Data!$D:$D,'10'!$A48,Data!$F:$F,'10'!$A$39))=0,\"-\",SUMIFS(Data!$E:$E,Data!$B:$B,'10'!H$29,Data!$C:$C,'10'!$A$29,Data!$D:$D,'10'!$A48,Data!$F:$F,'10'!$A$39))","v":21.371518131180263},{"$f":"IF((SUMIFS(Data!$E:$E,Data!$B:$B,'10'!I$29,Data!$C:$C,'10'!$A$29,Data!$D:$D,'10'!$A48,Data!$F:$F,'10'!$A$39))=0,\"-\",SUMIFS(Data!$E:$E,Data!$B:$B,'10'!I$29,Data!$C:$C,'10'!$A$29,Data!$D:$D,'10'!$A48,Data!$F:$F,'10'!$A$39))","v":20.429569723134502},{"$f":"IF((SUMIFS(Data!$E:$E,Data!$B:$B,'10'!J$29,Data!$C:$C,'10'!$A$29,Data!$D:$D,'10'!$A48,Data!$F:$F,'10'!$A$39))=0,\"-\",SUMIFS(Data!$E:$E,Data!$B:$B,'10'!J$29,Data!$C:$C,'10'!$A$29,Data!$D:$D,'10'!$A48,Data!$F:$F,'10'!$A$39))","v":22.271864587882689},{"$f":"IF((SUMIFS(Data!$E:$E,Data!$B:$B,'10'!K$29,Data!$C:$C,'10'!$A$29,Data!$D:$D,'10'!$A48,Data!$F:$F,'10'!$A$39))=0,\"-\",SUMIFS(Data!$E:$E,Data!$B:$B,'10'!K$29,Data!$C:$C,'10'!$A$29,Data!$D:$D,'10'!$A48,Data!$F:$F,'10'!$A$39))","v":21.366442028312452}]
[{"$f":"VLOOKUP(\"British Columbia\",Translation!$A$1:$C$354, Translation!A1+1, 0)","v":"Colombie-Britannique"},{"$f":"IF((SUMIFS(Data!$E:$E,Data!$B:$B,'10'!B$29,Data!$C:$C,'10'!$A$29,Data!$D:$D,'10'!$A49,Data!$F:$F,'10'!$A$39))=0,\"-\",SUMIFS(Data!$E:$E,Data!$B:$B,'10'!B$29,Data!$C:$C,'10'!$A$29,Data!$D:$D,'10'!$A49,Data!$F:$F,'10'!$A$39))","v":22.356333037426285},{"$f":"IF((SUMIFS(Data!$E:$E,Data!$B:$B,'10'!C$29,Data!$C:$C,'10'!$A$29,Data!$D:$D,'10'!$A49,Data!$F:$F,'10'!$A$39))=0,\"-\",SUMIFS(Data!$E:$E,Data!$B:$B,'10'!C$29,Data!$C:$C,'10'!$A$29,Data!$D:$D,'10'!$A49,Data!$F:$F,'10'!$A$39))","v":23.016444416285889},{"$f":"IF((SUMIFS(Data!$E:$E,Data!$B:$B,'10'!D$29,Data!$C:$C,'10'!$A$29,Data!$D:$D,'10'!$A49,Data!$F:$F,'10'!$A$39))=0,\"-\",SUMIFS(Data!$E:$E,Data!$B:$B,'10'!D$29,Data!$C:$C,'10'!$A$29,Data!$D:$D,'10'!$A49,Data!$F:$F,'10'!$A$39))","v":23.48257670727962},{"$f":"IF((SUMIFS(Data!$E:$E,Data!$B:$B,'10'!E$29,Data!$C:$C,'10'!$A$29,Data!$D:$D,'10'!$A49,Data!$F:$F,'10'!$A$39))=0,\"-\",SUMIFS(Data!$E:$E,Data!$B:$B,'10'!E$29,Data!$C:$C,'10'!$A$29,Data!$D:$D,'10'!$A49,Data!$F:$F,'10'!$A$39))","v":19.983325885056281},{"$f":"IF((SUMIFS(Data!$E:$E,Data!$B:$B,'10'!F$29,Data!$C:$C,'10'!$A$29,Data!$D:$D,'10'!$A49,Data!$F:$F,'10'!$A$39))=0,\"-\",SUMIFS(Data!$E:$E,Data!$B:$B,'10'!F$29,Data!$C:$C,'10'!$A$29,Data!$D:$D,'10'!$A49,Data!$F:$F,'10'!$A$39))","v":22.819768238489097},{"$f":"IF((SUMIFS(Data!$E:$E,Data!$B:$B,'10'!G$29,Data!$C:$C,'10'!$A$29,Data!$D:$D,'10'!$A49,Data!$F:$F,'10'!$A$39))=0,\"-\",SUMIFS(Data!$E:$E,Data!$B:$B,'10'!G$29,Data!$C:$C,'10'!$A$29,Data!$D:$D,'10'!$A49,Data!$F:$F,'10'!$A$39))","v":21.623290382851795},{"$f":"IF((SUMIFS(Data!$E:$E,Data!$B:$B,'10'!H$29,Data!$C:$C,'10'!$A$29,Data!$D:$D,'10'!$A49,Data!$F:$F,'10'!$A$39))=0,\"-\",SUMIFS(Data!$E:$E,Data!$B:$B,'10'!H$29,Data!$C:$C,'10'!$A$29,Data!$D:$D,'10'!$A49,Data!$F:$F,'10'!$A$39))","v":22.908989574517118},{"$f":"IF((SUMIFS(Data!$E:$E,Data!$B:$B,'10'!I$29,Data!$C:$C,'10'!$A$29,Data!$D:$D,'10'!$A49,Data!$F:$F,'10'!$A$39))=0,\"-\",SUMIFS(Data!$E:$E,Data!$B:$B,'10'!I$29,Data!$C:$C,'10'!$A$29,Data!$D:$D,'10'!$A49,Data!$F:$F,'10'!$A$39))","v":22.556851682673845},{"$f":"IF((SUMIFS(Data!$E:$E,Data!$B:$B,'10'!J$29,Data!$C:$C,'10'!$A$29,Data!$D:$D,'10'!$A49,Data!$F:$F,'10'!$A$39))=0,\"-\",SUMIFS(Data!$E:$E,Data!$B:$B,'10'!J$29,Data!$C:$C,'10'!$A$29,Data!$D:$D,'10'!$A49,Data!$F:$F,'10'!$A$39))","v":22.356333037426285},{"$f":"IF((SUMIFS(Data!$E:$E,Data!$B:$B,'10'!K$29,Data!$C:$C,'10'!$A$29,Data!$D:$D,'10'!$A49,Data!$F:$F,'10'!$A$39))=0,\"-\",SUMIFS(Data!$E:$E,Data!$B:$B,'10'!K$29,Data!$C:$C,'10'!$A$29,Data!$D:$D,'10'!$A49,Data!$F:$F,'10'!$A$39))","v":22.819768238489097}]
[{"$f":"VLOOKUP(\"Territories\",Translation!$A$1:$C$354, Translation!A1+1, 0)","v":"Territoires"},{"$f":"IF((SUMIFS(Data!$E:$E,Data!$B:$B,'10'!B$29,Data!$C:$C,'10'!$A$29,Data!$D:$D,'10'!$A50,Data!$F:$F,'10'!$A$39))=0,\"-\",SUMIFS(Data!$E:$E,Data!$B:$B,'10'!B$29,Data!$C:$C,'10'!$A$29,Data!$D:$D,'10'!$A50,Data!$F:$F,'10'!$A$39))","v":"-"},{"$f":"IF((SUMIFS(Data!$E:$E,Data!$B:$B,'10'!C$29,Data!$C:$C,'10'!$A$29,Data!$D:$D,'10'!$A50,Data!$F:$F,'10'!$A$39))=0,\"-\",SUMIFS(Data!$E:$E,Data!$B:$B,'10'!C$29,Data!$C:$C,'10'!$A$29,Data!$D:$D,'10'!$A50,Data!$F:$F,'10'!$A$39))","v":22.013535457478607},{"$f":"IF((SUMIFS(Data!$E:$E,Data!$B:$B,'10'!D$29,Data!$C:$C,'10'!$A$29,Data!$D:$D,'10'!$A50,Data!$F:$F,'10'!$A$39))=0,\"-\",SUMIFS(Data!$E:$E,Data!$B:$B,'10'!D$29,Data!$C:$C,'10'!$A$29,Data!$D:$D,'10'!$A50,Data!$F:$F,'10'!$A$39))","v":"-"},{"$f":"IF((SUMIFS(Data!$E:$E,Data!$B:$B,'10'!E$29,Data!$C:$C,'10'!$A$29,Data!$D:$D,'10'!$A50,Data!$F:$F,'10'!$A$39))=0,\"-\",SUMIFS(Data!$E:$E,Data!$B:$B,'10'!E$29,Data!$C:$C,'10'!$A$29,Data!$D:$D,'10'!$A50,Data!$F:$F,'10'!$A$39))","v":"-"},{"$f":"IF((SUMIFS(Data!$E:$E,Data!$B:$B,'10'!F$29,Data!$C:$C,'10'!$A$29,Data!$D:$D,'10'!$A50,Data!$F:$F,'10'!$A$39))=0,\"-\",SUMIFS(Data!$E:$E,Data!$B:$B,'10'!F$29,Data!$C:$C,'10'!$A$29,Data!$D:$D,'10'!$A50,Data!$F:$F,'10'!$A$39))","v":13.166666666666663},{"$f":"IF((SUMIFS(Data!$E:$E,Data!$B:$B,'10'!G$29,Data!$C:$C,'10'!$A$29,Data!$D:$D,'10'!$A50,Data!$F:$F,'10'!$A$39))=0,\"-\",SUMIFS(Data!$E:$E,Data!$B:$B,'10'!G$29,Data!$C:$C,'10'!$A$29,Data!$D:$D,'10'!$A50,Data!$F:$F,'10'!$A$39))","v":"-"},{"$f":"IF((SUMIFS(Data!$E:$E,Data!$B:$B,'10'!H$29,Data!$C:$C,'10'!$A$29,Data!$D:$D,'10'!$A50,Data!$F:$F,'10'!$A$39))=0,\"-\",SUMIFS(Data!$E:$E,Data!$B:$B,'10'!H$29,Data!$C:$C,'10'!$A$29,Data!$D:$D,'10'!$A50,Data!$F:$F,'10'!$A$39))","v":"-"},{"$f":"IF((SUMIFS(Data!$E:$E,Data!$B:$B,'10'!I$29,Data!$C:$C,'10'!$A$29,Data!$D:$D,'10'!$A50,Data!$F:$F,'10'!$A$39))=0,\"-\",SUMIFS(Data!$E:$E,Data!$B:$B,'10'!I$29,Data!$C:$C,'10'!$A$29,Data!$D:$D,'10'!$A50,Data!$F:$F,'10'!$A$39))","v":"-"},{"$f":"IF((SUMIFS(Data!$E:$E,Data!$B:$B,'10'!J$29,Data!$C:$C,'10'!$A$29,Data!$D:$D,'10'!$A50,Data!$F:$F,'10'!$A$39))=0,\"-\",SUMIFS(Data!$E:$E,Data!$B:$B,'10'!J$29,Data!$C:$C,'10'!$A$29,Data!$D:$D,'10'!$A50,Data!$F:$F,'10'!$A$39))","v":"-"},{"$f":"IF((SUMIFS(Data!$E:$E,Data!$B:$B,'10'!K$29,Data!$C:$C,'10'!$A$29,Data!$D:$D,'10'!$A50,Data!$F:$F,'10'!$A$39))=0,\"-\",SUMIFS(Data!$E:$E,Data!$B:$B,'10'!K$29,Data!$C:$C,'10'!$A$29,Data!$D:$D,'10'!$A50,Data!$F:$F,'10'!$A$39))","v":13.166666666666663}]
[{"$f":"VLOOKUP(\"Portfolio distributions do not include substitutions volumes for Portfolio insurance.\",Translation!$A$1:$C$354, Translation!A1+1, 0)","v":"La répartition des prêts hypothécaires pour l'assurance de portefeuille ne comprend pas les prêts de remplacement. "}]
[{"$f":"VLOOKUP(\"Distribution based on loan amounts, not number of loans.\",Translation!$A$1:$C$354, Translation!A1+1, 0)","v":"La répartition est établie d'après le montant, plutôt que le nombre de prêts assurés."}]
[{"$f":"VLOOKUP(\"The sum of all breakdown categories may not add up to 100 due to rounding.\",Translation!$A$1:$C$354, Translation!A1+1, 0)","v":"Les chiffres ayant été arrondis, il se peut que la somme de l'ensemble des catégories n'égale pas 100 %."}]

{"sheet":"11","index":12,"n_rows":57,"n_cols":12,"rows_kept":57,"cut":false,"hidden":false,"merged":[[0,10,0,11],[2,0,4,0],[30,0,32,0],[2,6,2,11],[30,6,30,11],[0,6,0,9],[3,1,3,11],[31,1,31,11]]}
[{"$f":"VLOOKUP(\"TRANSACTIONAL HOMEOWNER AND PORTFOLIO - AMORTIZATION\",Translation!$A$1:$C$354, Translation!A1+1, 0)","v":"PROPRIÉTAIRES-OCCUPANTS (À L’UNITÉ) ET ASSURANCE DE PORTEFEUILLE - AMORTISSEMENT"},null,null,null,null,null,{"$f":"VLOOKUP(\"Back to Table of Contents\",Translation!$A$1:$C$354, Translation!A1+1, 0)","v":"Retour à la table des matières"}]
[{"$f":"VLOOKUP(\"Insurance-in-force by amortization (years) at origination (%)\",Translation!$A$1:$C$354, Translation!A1+1, 0)","v":"Contrats d’assurance en vigueur selon la période d’amortissement (en années) à l'initiation (%)"}]
[{"$f":"VLOOKUP(\"TRANSACTIONAL HOMEOWNER\",Translation!$A$1:$C$354, Translation!A1+1, 0)","v":"PROPRIÉTAIRES-OCCUPANTS, À L’UNITÉ"}]
[null,{"$f":"VLOOKUP(\"As at\",Translation!$A$1:$C$354,Translation!A1+1,0)","v":"Aux"}]
[null,{"$f":"VLOOKUP(\"Q1 2020\",Translation!$A$1:$C$354, Translation!$A1+1, 0)","v":"T1 2020"},{"$f":"VLOOKUP(\"Q4 2019\",Translation!$A$1:$C$354, Translation!$A1+1, 0)","v":"T4 2019"},{"$f":"VLOOKUP(\"Q3 2019\",Translation!$A$1:$C$354, Translation!$A1+1, 0)","v":"T3 2019"},{"$f":"VLOOKUP(\"Q2 2019\",Translation!$A$1:$C$354, Translation!$A1+1, 0)","v":"T2 2019"},{"$f":"VLOOKUP(\"Q1 2019\",Translation!$A$1:$C$354, Translation!$A1+1, 0)","v":"T1 2019"},{"$f":"VLOOKUP(\"Q4 2018\",Translation!$A$1:$C$354, Translation!A1+1, 0)","v":"T4 2018"},{"$f":"VLOOKUP(\"Q3 2018\",Translation!$A$1:$C$354, Translation!A1+1, 0)","v":"T3 2018"},{"$f":"VLOOKUP(\"Q2 2018\",Translation!$A$1:$C$354, Translation!A1+1, 0)","v":"T2 2018"},{"$f":"VLOOKUP(\"Q1 2018\",Translation!$A$1:$C$354, Translation!A1+1, 0)","v":"T1 2018"},{"$f":"VLOOKUP(\"Q4 2017\",Translation!$A$1:$C$354, Translation!A1+1, 0)","v":"T4 2017"},{"$f":"VLOOKUP(\"Q3 2017\",Translation!$A$1:$C$354, Translation!A1+1, 0)","v":"T3 2017"}]
["<= 5",6.9647717774199064E-2,0.10187350637939005,8.1837202930946956E-2,8.9122909234373798E-2,9.3805601202809286E-2,0.10175430144461738,0.11185387256209052,0.12016727672928941,0.13211290894717403,0.13610055951889985,0.14134288389375485]
["> 5 <= 10",6.5076511643785265E-2,6.6953828094001924E-2,6.9893326177694365E-2,7.1336076741079252E-2,7.6462820077043414E-2,8.1231084011251314E-2,8.5634645062660025E-2,8.9268550428457411E-2,9.6671704801499142E-2,0.10605260203330794,0.11084008950670136]
["> 10 <= 15",0.31715458158040205,0.32586279893858844,0.33414383084695731,0.3416299287075501,0.35572449794823346,0.36626223500935445,0.37716344478400327,0.39181959312950809,0.4087985896464883,0.4250971991266248,0.43941618477136629]
["> 15 <= 20",1.405354092134639,1.4160470298598251,1.4266029021217956,1.4323770512659455,1.4546034292107881,1.4680374813788046,1.479266001830307,1.4939717763949592,1.518730644746404,1.5476163971615169,1.5738224790610971]
["> 20 <= 25",77.8616041027758,77.270286255704804,76.499048520327605,75.498986184787867,74.504383560836771,73.987409225755272,73.218997726835639,72.239097654849971,71.110228675171825,70.59482752799407,69.575833257429693]
["> 25 <= 30",7.848832012194765,8.0656151930152511,8.3771728448853366,8.7837046705684116,9.1969278399714351,9.3948647273021155,9.6964187802851409,10.083798811495857,10.519608820976325,10.738509614460403,11.113824313994732]
["> 30 <= 35",9.8081247876420576,10.074602172316984,10.467818186997125,10.945050708929431,11.396344358929699,11.634696656747886,11.992411550292523,12.416825945975123,12.915705481440899,13.102583232071266,13.566591031048642]
["> 35",2.6242061941699664,2.6787592157920423,2.7434831856190889,2.837792470168818,2.9217478918304254,2.9657442877162685,3.0382539783489091,3.1650503909140602,3.2981431737425173,3.3492128675904529,3.4783297605803876]
[{"$f":"VLOOKUP(\"Average amortization period\",Translation!$A$1:$C$354, Translation!A1+1, 0)","v":"Période d’amortissement moyenne"},26.322527104104449,26.332673842635021,26.359939307920552,26.396891395740752,26.428033970558335,26.435136771482057,26.453368842382702,26.485040001021343,26.517750759497016,26.509456822356285,26.543908297160304]
[{"$f":"VLOOKUP(\"Average amortization period by province\",Translation!$A$1:$C$354, Translation!A1+1, 0)","v":"Période d’amortissement moyenne selon la province"}]
[{"$f":"VLOOKUP(\"Newfoundland and Labrador\",Translation!$A$1:$C$354, Translation!A1+1, 0)","v":"Terre-Neuve-et-Labrador"},25.466290980663569,25.445549800464835,25.431890395163304,25.430893410455596,25.402148166299039,25.362162737142352,25.329193398624302,25.319773897164787,25.302844275715316,25.276414483901888,25.250544208207835]
[{"$f":"VLOOKUP(\"Prince Edward Island\",Translation!$A$1:$C$354, Translation!A1+1, 0)","v":"Île-du-Prince-Édouard"},25.419840433073961,25.405171618870959,25.396984171374417,25.392173592401637,25.406272273699216,25.388587294000526,25.383503674672216,25.374345979233265,25.373797852390197,25.378002732674471,25.380952484898465]
[{"$f":"VLOOKUP(\"Nova Scotia\",Translation!$A$1:$C$354, Translation!A1+1, 0)","v":"Nouvelle-Écosse"},25.734597792968682,25.738366514226193,25.74308652961528,25.746210334934293,25.77506350550355,25.762936385460648,25.767021220113289,25.780551706502774,25.738961274893715,25.773568033922643,25.764657564864354]
[{"$f":"VLOOKUP(\"New Brunswick\",Translation!$A$1:$C$354, Translation!A1+1, 0)","v":"Nouveau-Brunswick"},25.354888576802885,25.341440335448237,25.335565159666732,25.327549432221044,25.329888234587091,25.312658134961342,25.302733998665243,25.297792511115354,25.279337912869696,25.244409432438438,25.231606474620001]
[{"$f":"VLOOKUP(\"Quebec\",Translation!$A$1:$C$354, Translation!A1+1, 0)","v":"Québec"},25.89312977744293,25.91045928421023,25.939770325325274,25.962997678292915,26.010541415190445,26.020664523720686,26.035097101135385,26.056925783757087,26.10859301167331,26.08395573834164,26.110789549538126]
[{"$f":"VLOOKUP(\"Ontario\",Translation!$A$1:$C$354, Translation!A1+1, 0)","v":"Ontario"},26.724992364005999,26.724751228754297,26.753071462937523,26.796786344158637,26.817852445748478,26.830852582786768,26.850186951544586,26.884379187430422,26.909050904123671,26.876319678156577,26.928917239122843]
[{"$f":"VLOOKUP(\"Manitoba\",Translation!$A$1:$C$354, Translation!A1+1, 0)","v":"Manitoba"},25.691682562491351,25.70969932796875,25.72422200336371,25.76087163855502,25.788925340491172,25.789094391322337,25.805395412459411,25.824789900963253,25.841807979223567,25.842609061936074,25.86448990756594]
[{"$f":"VLOOKUP(\"Saskatchewan\",Translation!$A$1:$C$354, Translation!A1+1, 0)","v":"Saskatchewan"},25.754194578026834,25.752942980204786,25.772274595469739,25.785087118263586,25.804260699972222,25.791300025660266,25.798378118361423,25.816695845648326,25.81254905483107,25.806406604058697,25.803116062891306]
[{"$f":"VLOOKUP(\"Alberta\",Translation!$A$1:$C$354, Translation!A1+1, 0)","v":"Alberta"},26.992287422520373,27.005877968337636,27.030169574990364,27.092740761974007,27.109424164623004,27.118631395090468,27.146031568655662,27.194081674538577,27.229977516511692,27.254090544892787,27.272984120437965]
[{"$f":"VLOOKUP(\"British Columbia\",Translation!$A$1:$C$354, Translation!A1+1, 0)","v":"Colombie-Britannique"},26.808860402575952,26.839241918889016,26.906297985601849,26.964442089811197,26.995785904577641,26.997176104588178,27.028888685906029,27.076185157077742,27.130279323453504,27.160417581170318,27.227971793705212]
[{"$f":"VLOOKUP(\"Territories\",Translation!$A$1:$C$354, Translation!A1+1, 0)","v":"Territoires"},24.556183160021689,24.510373270195696,24.495240990765442,24.493966259673368,24.468358548885654,24.456981365619615,24.43545246870363,24.423031531211084,24.406493176742611,24.391025145661221,24.395548945513159]
[{"$f":"VLOOKUP(\"Distribution based on outstanding loan amounts, not number of loans.\",Translation!$A$1:$C$354, Translation!A1+1, 0)","v":"La répartition est établie d'après le solde, plutôt que le nombre de prêts assurés."}]
[{"$f":"VLOOKUP(\"The sum of all breakdown categories may not add up to 100 due to rounding.\",Translation!$A$1:$C$354, Translation!A1+1, 0)","v":"Les chiffres ayant été arrondis, il se peut que la somme de l'ensemble des catégories n'égale pas 100 %."}]
[]
[{"$f":"VLOOKUP(\"Insurance-in-force by amortization (years) at origination (%)\",Translation!$A$1:$C$354, Translation!A1+1, 0)","v":"Contrats d’assurance en vigueur selon la période d’amortissement (en années) à l'initiation (%)"}]
[{"$f":"VLOOKUP(\"PORTFOLIO\",Translation!$A$1:$C$354, Translation!A1+1, 0)","v":"ASSURANCE DE PORTEFEUILLE"}]
[null,{"$f":"VLOOKUP(\"As at\",Translation!$A$1:$C$354,Translation!A1+1,0)","v":"Aux"}]
[null,{"$f":"VLOOKUP(\"Q1 2020\",Translation!$A$1:$C$354, Translation!$A1+1, 0)","v":"T1 2020"},{"$f":"VLOOKUP(\"Q4 2019\",Translation!$A$1:$C$354, Translation!$A1+1, 0)","v":"T4 2019"},{"$f":"VLOOKUP(\"Q3 2019\",Translation!$A$1:$C$354, Translation!$A1+1, 0)","v":"T3 2019"},{"$f":"VLOOKUP(\"Q2 2019\",Translation!$A$1:$C$354, Translation!$A1+1, 0)","v":"T2 2019"},{"$f":"VLOOKUP(\"Q1 2019\",Translation!$A$1:$C$354, Translation!$A1+1, 0)","v":"T1 2019"},{"$f":"VLOOKUP(\"Q4 2018\",Translation!$A$1:$C$354, Translation!A1+1, 0)","v":"T4 2018"},{"$f":"VLOOKUP(\"Q3 2018\",Translation!$A$1:$C$354, Translation!A1+1, 0)","v":"T3 2018"},{"$f":"VLOOKUP(\"Q2 2018\",Translation!$A$1:$C$354, Translation!A1+1, 0)","v":"T2 2018"},{"$f":"VLOOKUP(\"Q1 2018\",Translation!$A$1:$C$354, Translation!A1+1, 0)","v":"T1 2018"},{"$f":"VLOOKUP(\"Q4 2017\",Translation!$A$1:$C$354, Translation!A1+1, 0)","v":"T4 2017"},{"$f":"VLOOKUP(\"Q3 2017\",Translation!$A$1:$C$354, Translation!A1+1, 0)","v":"T3 2017"}]
["<= 5",0.27858638190206791,0.31306467996833703,0.33684882192289695,0.37344668885951671,0.39290420759963696,0.42815829498163116,0.46847362422068817,0.51702571271990239,0.56069056949269069,0.54030927579506061,0.57448216399685048]
["> 5 <= 10",2.2373721147552912,2.3780636154555288,2.5009309525296666,2.6252578733742458,2.6840059727698962,2.7770052980882109,2.9009836603090564,3.0346544310282821,3.1620190960002619,3.2193483256552904,3.2583259987921922]
["> 10 <= 15",5.3181011514372898,5.4663718641025882,5.6099835401396927,5.7549526391064765,5.8600333869064434,5.9393687927371879,6.0720166657022743,6.2199774067406688,6.3398340406164237,6.3517489276218946,6.2991253801969762]
["> 15 <= 20",11.04312979303252,11.141702035106835,11.204882611642955,11.298248397619172,11.31761003369197,11.335302100842297,11.413509626484013,11.464935683847996,11.557707702232133,11.562905996711793,11.509764381800565]
["> 20 <= 25",45.020552632119468,44.262308716053219,43.445590897850508,43.049408377054391,42.314531323228785,42.064685459009546,41.56410384420689,41.13562169943755,40.730303502973996,40.57573689777535,40.421150577423781]
["> 25 <= 30",27.113017523023963,27.42476130847848,27.832592568520536,27.905574942908721,28.34779151111103,28.383745797460371,28.517319870069148,28.657273126773237,28.704439251634138,28.795628399771584,28.808935684633084]
["> 30 <= 35",7.8195955567749138,7.8466024179778664,7.9018930924520765,7.8397145465412068,7.9250652549877119,7.9225858514977539,7.9156282891396801,7.8312278633287251,7.8102968545767872,7.8183565513219575,7.9710701557262471]
["> 35",1.1696448469524379,1.1671253628548577,1.1672775149409165,1.1533965345365711,1.1580583097066803,1.1491484053791254,1.1479644198710095,1.1392840761243113,1.1347089824645051,1.1359656253438393,1.1571456574310348]
[{"$f":"VLOOKUP(\"Average amortization period\",Translation!$A$1:$C$354, Translation!A1+1, 0)","v":"Période d’amortissement moyenne"},22.464649181509628,22.386327236678309,22.331401492994349,22.254084614906343,22.216646758289425,22.163891150501641,22.105692483300885,22.032731357609272,21.976186617116248,21.976463644769957,21.957671418904567]
[{"$f":"VLOOKUP(\"Average amortization period by province\",Translation!$A$1:$C$354, Translation!A1+1, 0)","v":"Période d’amortissement moyenne selon la province"}]
[{"$f":"VLOOKUP(\"Newfoundland and Labrador\",Translation!$A$1:$C$354, Translation!A1+1, 0)","v":"Terre-Neuve-et-Labrador"},20.282425603593392,20.167785843920161,20.092778954802331,20.004659832246141,19.942904290429119,19.876534237726101,19.766241888828073,19.652343457067992,19.589464581681888,19.595090293453623,19.586700160491237]
[{"$f":"VLOOKUP(\"Prince Edward Island\",Translation!$A$1:$C$354, Translation!A1+1, 0)","v":"Île-du-Prince-Édouard"},19.960551512830346,19.871559633027537,19.749377888375353,19.623292349726722,19.597556949488304,19.547603833865828,19.478486420506542,19.390584132519642,19.336204501250332,19.361702127659559,19.31957104557646]
[{"$f":"VLOOKUP(\"Nova Scotia\",Translation!$A$1:$C$354, Translation!A1+1, 0)","v":"Nouvelle-Écosse"},20.353855439867292,20.239321212121254,20.161310055997482,20.070657551497639,19.996769405395856,19.895211363443103,19.812664581961876,19.712006617820894,19.662297058048026,19.700937349486789,19.656328951704094]
[{"$f":"VLOOKUP(\"New Brunswick\",Translation!$A$1:$C$354, Translation!A1+1, 0)","v":"Nouveau-Brunswick"},19.718783571605652,19.567906160229882,19.496477510257776,19.370860437610915,19.266859205776189,19.167523775977603,19.058284706201668,18.943956258543164,18.880885737388699,18.889202627217458,18.843293975174074]
[{"$f":"VLOOKUP(\"Quebec\",Translation!$A$1:$C$354, Translation!A1+1, 0)","v":"Québec"},21.411568822868869,21.335663163030105,21.325780971611643,21.263980749104821,21.206787284064443,21.143329665522074,21.068454998534666,21.021118700832545,20.965887627152949,21.007845621287579,20.953813203701312]
[{"$f":"VLOOKUP(\"Ontario\",Translation!$A$1:$C$354, Translation!A1+1, 0)","v":"Ontario"},22.506815949715264,22.42715244382838,22.352849348682994,22.271733764193662,22.238391322243761,22.189095297128791,22.140110902346336,22.056106566751232,21.995638034007055,21.98251487492119,21.979071024034965]
[{"$f":"VLOOKUP(\"Manitoba\",Translation!$A$1:$C$354, Translation!A1+1, 0)","v":"Manitoba"},21.643877378196951,21.543649714441333,21.459574022711877,21.334776334776382,21.232438661353083,21.143550268253001,21.044097875773076,20.958288724251581,20.884733922334057,20.871128429678965,20.82958389050572]
[{"$f":"VLOOKUP(\"Saskatchewan\",Translation!$A$1:$C$354, Translation!A1+1, 0)","v":"Saskatchewan"},21.998199083169439,21.924688411561942,21.81840629662025,21.707517716437902,21.661751240904099,21.589583923011759,21.507932141219623,21.403150370631764,21.345728217087142,21.338852921646776,21.321070783379923]
[{"$f":"VLOOKUP(\"Alberta\",Translation!$A$1:$C$354, Translation!A1+1, 0)","v":"Alberta"},23.43168014236517,23.360802933433526,23.311757964702736,23.247413564417656,23.213912503664421,23.175481560924599,23.124201643275754,23.071421746608308,23.031878642152289,23.010587485471859,22.98499010458745]
[{"$f":"VLOOKUP(\"British Columbia\",Translation!$A$1:$C$354, Translation!A1+1, 0)","v":"Colombie-Britannique"},23.847886101544706,23.798697120797662,23.76187640255473,23.705269368523339,23.727188074396942,23.69465721189507,23.669291943011345,23.640751325258524,23.603700476727202,23.595287666714558,23.579794166252402]
[{"$f":"VLOOKUP(\"Territories\",Translation!$A$1:$C$354, Translation!A1+1, 0)","v":"Territoires"},19.561632653061238,19.430805316653604,19.580929487179485,19.474601971190296,19.458968772694256,19.394366197183107,19.563019390581708,19.491469816272943,19.393103448275834,19.370073891625626,19.360755636806839]
[{"$f":"VLOOKUP(\"Distribution based on outstanding loan amounts, not number of loans.\",Translation!$A$1:$C$354, Translation!A1+1, 0)","v":"La répartition est établie d'après le solde, plutôt que le nombre de prêts assurés."}]
[{"$f":"VLOOKUP(\"The sum of all breakdown categories may not add up to 100 due to rounding.\",Translation!$A$1:$C$354, Translation!A1+1, 0)","v":"Les chiffres ayant été arrondis, il se peut que la somme de l'ensemble des catégories n'égale pas 100 %."}]
[{"$f":"VLOOKUP(\"Portfolio-insured Line of Credit loans with zero ($0.00) balance were included in the number of loans in force starting from Q2 2018.\",Translation!$A$1:$C$354, Translation!A1+1, 0)","v":"Les prêts liés à une marge de crédit couverts par une assurance de portefeuille ayant un solde nul (0,00 $) sont inclus dans le nombre des prêts en cours depuis le deuxième trimestre de 2018."}]

{"sheet":"12","index":13,"n_rows":59,"n_cols":12,"rows_kept":59,"cut":false,"hidden":false,"merged":[[2,0,4,0],[31,0,33,0],[31,6,31,11],[0,5,0,9],[59,6,59,8],[59,9,59,11],[2,6,2,11],[3,1,3,11],[32,1,32,11]]}
[{"$f":"VLOOKUP(\"TRANSACTIONAL HOMEOWNER AND PORTFOLIO - AMORTIZATION\",Translation!$A$1:$C$354, Translation!A1+1, 0)","v":"PROPRIÉTAIRES-OCCUPANTS (À L’UNITÉ) ET ASSURANCE DE PORTEFEUILLE - AMORTISSEMENT"},null,null,null,null,{"$f":"VLOOKUP(\"Back to Table of Contents\",Translation!$A$1:$C$354, Translation!A1+1, 0)","v":"Retour à la table des matières"}]
[{"$f":"VLOOKUP(\"Insurance-in-force by remaining amortization (years) (%)\",Translation!$A$1:$C$354, Translation!A1+1, 0)","v":"Contrats d’assurance en vigueur selon la période d’amortissement résiduelle (en années) (%)"}]
[{"$f":"VLOOKUP(\"TRANSACTIONAL HOMEOWNER\",Translation!$A$1:$C$354, Translation!A1+1, 0)","v":"PROPRIÉTAIRES-OCCUPANTS, À L’UNITÉ"}]
[null,{"$f":"VLOOKUP(\"As at\",Translation!$A$1:$C$354,Translation!A1+1,0)","v":"Aux"}]
[null,{"$f":"VLOOKUP(\"Q1 2020\",Translation!$A$1:$C$354, Translation!$A1+1, 0)","v":"T1 2020"},{"$f":"VLOOKUP(\"Q4 2019\",Translation!$A$1:$C$354, Translation!$A1+1, 0)","v":"T4 2019"},{"$f":"VLOOKUP(\"Q3 2019\",Translation!$A$1:$C$354, Translation!$A1+1, 0)","v":"T3 2019"},{"$f":"VLOOKUP(\"Q2 2019\",Translation!$A$1:$C$354, Translation!$A1+1, 0)","v":"T2 2019"},{"$f":"VLOOKUP(\"Q1 2019\",Translation!$A$1:$C$354, Translation!$A1+1, 0)","v":"T1 2019"},{"$f":"VLOOKUP(\"Q4 2018\",Translation!$A$1:$C$354, Translation!A1+1, 0)","v":"T4 2018"},{"$f":"VLOOKUP(\"Q3 2018\",Translation!$A$1:$C$354, Translation!A1+1, 0)","v":"T3 2018"},{"$f":"VLOOKUP(\"Q2 2018\",Translation!$A$1:$C$354, Translation!A1+1, 0)","v":"T2 2018"},{"$f":"VLOOKUP(\"Q1 2018\",Translation!$A$1:$C$354, Translation!A1+1, 0)","v":"T1 2018"},{"$f":"VLOOKUP(\"Q4 2017\",Translation!$A$1:$C$354, Translation!A1+1, 0)","v":"T4 2017"},{"$f":"VLOOKUP(\"Q3 2017\",Translation!$A$1:$C$354, Translation!A1+1, 0)","v":"T3 2017"}]
["<= 5",5.845094772463467,5.7944958942588203,5.7626434662113608,5.7841272616735697,5.2213285391199147,5.1631441071953592,5.1159546407324763,5.0830296011109848,5.0842933133953556,5.0808335155124063,5.1756124899434592]
["> 5 <= 10",6.9817798163019473,6.8777771259049771,6.8775564002142406,6.8707927645801847,7.1647900635771604,7.0813404146822263,7.0708358749010536,7.0681249063770597,7.0047397311085255,6.9520271138331102,6.9537470374171209]
["> 10 <= 15",11.009491492971518,10.433391859078148,10.299410496931175,10.243471486761869,10.814906447101293,10.647889346692796,10.588600539622293,10.582746138015159,10.479647800387923,10.386095516378694,10.406853005654765]
["> 15 <= 20",28.22386931968806,26.40652228825854,25.636817995763295,24.864282414102298,25.845536806297147,24.932100035794193,24.102985258034202,23.219093103610888,22.075050528597419,21.260552710467699,20.396813606304434]
["> 20 <= 25",42.599448783224084,43.106795342548125,43.449939183701652,43.504894031110567,43.690533712353215,44.287242355645255,45.193894250396518,46.09612012343171,46.374781251436389,47.356592272225328,47.851333877698679]
["> 25 <= 30",5.0353519696359186,6.650771586652132,7.2337068192572396,7.8666945175301439,6.394068714814785,6.8505231575936483,6.9462886114313536,6.8760445181634031,7.0187472613302564,7.0650456379512629,7.4974220011090749]
["> 30 <= 35",0.10703730917964134,0.4373391216931779,0.51153117874997966,0.56642601637015488,0.55466622417203304,0.60348087592405231,0.63028868235775248,0.72910214080575131,1.006566589932931,1.0245091566572238,1.2432806440076165]
["> 35",8.5920466704710059E-3,3.9171555859579606E-2,3.4570394532062183E-2,3.9289154788265564E-2,3.8395014290733137E-2,4.1463153963280319E-2,4.7831285802631962E-2,3.1806749647757655E-2,3.830039417719347E-2,1.7940747915507014E-2,2.1123152485315749E-2]
[{"$f":"VLOOKUP(\"Not Available\",Translation!$A$1:$C$354, Translation!A1+1, 0)","v":"Non disponible "},0.18933448961082017,0.25373522577271868,0.19382406465600557,0.26002235284453024,0.27577447850677522,0.39281655314330371,0.30332085615032373,0.31393271905166259,0.91787312950583588,0.85640332944091291,0.45381418549883074]
[{"$f":"VLOOKUP(\"Average remaining amortization period\",Translation!$A$1:$C$354, Translation!A1+1, 0)","v":"Période d’amortissement résiduelle moyenne"},18.129694652138653,18.493757827467554,18.555854490453729,18.596242672753323,18.453597731794094,18.599757243221621,18.673907121746051,18.708300351492532,18.774912123286189,18.869981186216187,18.95637986297562]
[{"$f":"VLOOKUP(\"Average remaining amortization period by province\",Translation!$A$1:$C$354, Translation!A1+1, 0)","v":"Période d’amortissement résiduelle moyenne selon la province"}]
[{"$f":"VLOOKUP(\"Newfoundland and Labrador\",Translation!$A$1:$C$354, Translation!A1+1, 0)","v":"Terre-Neuve-et-Labrador"},16.48562327376489,16.723277845273,16.527267293738834,16.578756677315248,16.650632444625209,16.828532542962606,16.852645147537604,16.87989479234551,16.921192508995102,16.971546033435974,17.029605012804399]
[{"$f":"VLOOKUP(\"Prince Edward Island\",Translation!$A$1:$C$354, Translation!A1+1, 0)","v":"Île-du-Prince-Édouard"},16.092122169633338,16.28030257290872,16.341445090410122,16.342571926143439,16.424176724174345,16.742925322508846,16.797257488350976,16.778549437066516,16.805357273862285,16.923306804186723,16.987601627463903]
[{"$f":"VLOOKUP(\"Nova Scotia\",Translation!$A$1:$C$354, Translation!A1+1, 0)","v":"Nouvelle-Écosse"},16.455963635822982,16.709578284120937,16.77956139314368,16.772491454975381,16.899287656348569,17.054604863447629,17.098838722194657,17.097310142858309,17.124227553702688,17.231607502603545,17.306741415812319]
[{"$f":"VLOOKUP(\"New Brunswick\",Translation!$A$1:$C$354, Translation!A1+1, 0)","v":"Nouveau-Brunswick"},16.332739486536973,16.543228014917023,16.593771793996023,16.607462958727218,16.655648869482185,16.799044595007793,16.829911200586764,16.824934403240469,16.855490944325396,16.940633660156063,17.010409405531615]
[{"$f":"VLOOKUP(\"Quebec\",Translation!$A$1:$C$354, Translation!A1+1, 0)","v":"Québec"},19.258383124395507,19.653645380443219,19.697421097315004,19.72161924226447,18.974928778270513,19.100645983432713,19.122904399554955,19.134003361319341,19.105680088297799,19.165302204773546,19.23720687491226]
[{"$f":"VLOOKUP(\"Ontario\",Translation!$A$1:$C$354, Translation!A1+1, 0)","v":"Ontario"},17.558949814905681,17.928845636972298,18.030136850995589,18.058154804505712,18.11833171392427,18.272585700854421,18.395611101730164,18.432588534086449,18.541891141825776,18.649100485371129,18.761838196951874]
[{"$f":"VLOOKUP(\"Manitoba\",Translation!$A$1:$C$354, Translation!A1+1, 0)","v":"Manitoba"},18.174220253585663,18.417048486897528,18.486826680677051,18.509205147474766,18.605266890926568,18.741242537502057,18.909040381200608,18.919480470663231,18.994095208891235,19.077827966853249,19.205434643524391]
[{"$f":"VLOOKUP(\"Saskatchewan\",Translation!$A$1:$C$354, Translation!A1+1, 0)","v":"Saskatchewan"},17.919029895923721,18.196681485369666,18.302510317213105,18.381234190622163,18.449707402224586,18.577645526642009,18.656463138723758,18.697033476157824,18.772886465364646,18.859852735625221,18.94397808262708]
[{"$f":"VLOOKUP(\"Alberta\",Translation!$A$1:$C$354, Translation!A1+1, 0)","v":"Alberta"},18.43616118141443,18.774905713643843,18.919436568668594,18.990620651845468,19.117065741900415,19.285457974542563,19.360329860678249,19.440165028979958,19.564147445170139,19.688712278531149,19.73767355060329]
[{"$f":"VLOOKUP(\"British Columbia\",Translation!$A$1:$C$354, Translation!A1+1, 0)","v":"Colombie-Britannique"},17.986313469575126,18.404577294610469,18.51552977141932,18.640503168555664,18.760129689061039,18.923597642817739,19.012838814665947,19.087777100458961,19.249710091111695,19.367745433952695,19.516163821668901]
[{"$f":"VLOOKUP(\"Territories\",Translation!$A$1:$C$354, Translation!A1+1, 0)","v":"Territoires"},15.940374365453694,16.163565341706668,16.176325935966961,16.196177294218813,16.183878469667153,16.313776556484481,16.336452255747869,16.283466863258852,16.333595807169043,16.419815368738593,16.478057844025148]
[{"$f":"VLOOKUP(\"Distribution based on number of loans, not loan amounts.\",Translation!$A$1:$C$354, Translation!A1+1, 0)","v":"Distribution basée sur le nombre de prêts et non sur le montant des prêts."}]
[{"$f":"VLOOKUP(\"The sum of all breakdown categories may not add up to 100 due to rounding.\",Translation!$A$1:$C$354, Translation!A1+1, 0)","v":"Les chiffres ayant été arrondis, il se peut que la somme de l'ensemble des catégories n'égale pas 100 %."}]
[{"$f":"VLOOKUP(\"Portfolio-insured Line of Credit loans with zero ($0.00) balance were included in the number of loans in force starting from Q2 2018.\",Translation!$A$1:$C$354, Translation!A1+1, 0)","v":"Les prêts liés à une marge de crédit couverts par une assurance de portefeuille ayant un solde nul (0,00 $) sont inclus dans le nombre des prêts en cours depuis le deuxième trimestre de 2018."}]
[{"$f":"VLOOKUP(\"Insurance-in-force by remaining amortization (years) (%)\",Translation!$A$1:$C$354, Translation!A1+1, 0)","v":"Contrats d’assurance en vigueur selon la période d’amortissement résiduelle (en années) (%)"}]
[{"$f":"VLOOKUP(\"PORTFOLIO\",Translation!$A$1:$C$354, Translation!A1+1, 0)","v":"ASSURANCE DE PORTEFEUILLE"}]
[null,{"$f":"VLOOKUP(\"As at\",Translation!$A$1:$C$354,Translation!A1+1,0)","v":"Aux"}]
[null,{"$f":"VLOOKUP(\"Q1 2020\",Translation!$A$1:$C$354, Translation!$A1+1, 0)","v":"T1 2020"},{"$f":"VLOOKUP(\"Q4 2019\",Translation!$A$1:$C$354, Translation!$A1+1, 0)","v":"T4 2019"},{"$f":"VLOOKUP(\"Q3 2019\",Translation!$A$1:$C$354, Translation!$A1+1, 0)","v":"T3 2019"},{"$f":"VLOOKUP(\"Q2 2019\",Translation!$A$1:$C$354, Translation!$A1+1, 0)","v":"T2 2019"},{"$f":"VLOOKUP(\"Q1 2019\",Translation!$A$1:$C$354, Translation!$A1+1, 0)","v":"T1 2019"},{"$f":"VLOOKUP(\"Q4 2018\",Translation!$A$1:$C$354, Translation!A1+1, 0)","v":"T4 2018"},{"$f":"VLOOKUP(\"Q3 2018\",Translation!$A$1:$C$354, Translation!A1+1, 0)","v":"T3 2018"},{"$f":"VLOOKUP(\"Q2 2018\",Translation!$A$1:$C$354, Translation!A1+1, 0)","v":"T2 2018"},{"$f":"VLOOKUP(\"Q1 2018\",Translation!$A$1:$C$354, Translation!A1+1, 0)","v":"T1 2018"},{"$f":"VLOOKUP(\"Q4 2017\",Translation!$A$1:$C$354, Translation!A1+1, 0)","v":"T4 2017"},{"$f":"VLOOKUP(\"Q3 2017\",Translation!$A$1:$C$354, Translation!A1+1, 0)","v":"T3 2017"}]
["<= 5",16.765463276651129,16.613939129401494,16.436800611101294,16.176793599832152,16.012719491899603,15.863951278139975,15.617023892174359,15.315281444999387,15.732851978593734,15.48170397046772,15.548806170349257]
["> 5 <= 10",15.279086777265499,15.187295506766732,15.206161177966148,15.163353553323622,15.28705889345515,15.286037677934235,15.30999569737318,15.365602312831916,15.958221701676475,15.917113385009813,15.887982833809916]
["> 10 <= 15",15.467582703497362,14.940462394422372,14.957616248909765,14.865681493081093,14.941369765309243,14.891256218041315,14.911171412823441,14.959564965493573,15.488186902507334,15.440446743404483,15.396250727832021]
["> 15 <= 20",16.744600149680807,15.969561171198412,15.94324510748428,15.848414546591034,15.788769826444316,15.73847568936392,15.728872036653947,15.662129112550044,16.111812711585603,15.96288165284534,15.851139953881601]
["> 20 <= 25",15.93809473557806,15.981679288725326,15.858648622456833,15.763942996456128,15.519817953333559,15.599934047541767,15.65168674055362,15.83892695087353,16.452182738570155,16.673746494545398,16.609473804064383]
["> 25 <= 30",5.4042776688124148,6.827676839218463,7.2705092320759777,8.1239120053414862,8.5568938287538625,8.9438170088901003,9.2444002873791966,9.6783802464565714,10.846689737477075,11.191798176035848,11.399261105860333]
["> 30 <= 35",0.12384449207383122,0.48813659824440242,0.55899806750617087,0.61752746418154936,0.64467785212104745,0.63038521005754256,0.70998380721007404,0.67219810612304709,0.79120594991505222,0.74742306795882918,0.91431438455265057]
["> 35",2.4259449965490935E-4,4.506057293989061E-2,4.0474059548172681E-2,3.9558474966151273E-2,4.5002207655469889E-2,5.1019826180014952E-2,2.6198664472696455E-2,8.0976109155795131E-3,1.0419490621976057E-2,2.4434804183238478E-3,3.7028020028456029E-3]
[{"$f":"VLOOKUP(\"Not Available\",Translation!$A$1:$C$354, Translation!A1+1, 0)","v":"Non disponible "},14.276807601941242,13.946188499082906,13.727546872951358,13.400815866226786,13.203690181027749,12.995123043851125,12.800667461359488,12.499819249756348,8.6084287890525886,8.5824430293142466,8.3890682176469991]
[{"$f":"VLOOKUP(\"Average remaining amortization period\",Translation!$A$1:$C$354, Translation!A1+1, 0)","v":"Période d’amortissement résiduelle moyenne"},13.334508256452027,13.69745506399099,13.794982694595335,13.969510663915804,14.0292861760501,14.143773858830754,14.252605399625866,14.355585247652533,14.493873901120947,14.587825135134901,14.635617375797588]
[{"$f":"VLOOKUP(\"Average remaining amortization period by province\",Translation!$A$1:$C$354, Translation!A1+1, 0)","v":"Période d’amortissement résiduelle moyenne selon la province"}]
[{"$f":"VLOOKUP(\"Newfoundland and Labrador\",Translation!$A$1:$C$354, Translation!A1+1, 0)","v":"Terre-Neuve-et-Labrador"},12.059416209687909,12.380045378363844,12.42619278331491,12.608359587020681,12.685247456458033,12.797044802565013,12.866999864001093,12.986559223908586,13.128951274117728,13.245273549118114,13.262759027929979]
[{"$f":"VLOOKUP(\"Prince Edward Island\",Translation!$A$1:$C$354, Translation!A1+1, 0)","v":"Île-du-Prince-Édouard"},10.514658210007029,10.825889112903241,10.850253609051874,10.994900497512432,11.017317896767947,11.112637042220678,11.262426413417773,11.446859137055846,11.627594673957054,11.735870646766182,11.764333627105378]
[{"$f":"VLOOKUP(\"Nova Scotia\",Translation!$A$1:$C$354, Translation!A1+1, 0)","v":"Nouvelle-Écosse"},11.121384068252883,11.393596279167618,11.45484745560722,11.641646764471677,11.722671110900968,11.82912810240823,11.959795953208076,12.102661854675,12.278273383745493,12.354014618118557,12.373662032439606]
[{"$f":"VLOOKUP(\"New Brunswick\",Translation!$A$1:$C$354, Translation!A1+1, 0)","v":"Nouveau-Brunswick"},10.680799769676003,10.878759057970941,10.920535511685939,11.079845039650461,11.095924727789104,11.191387670283978,11.318788766155194,11.451483621667633,11.624113607566304,11.692019400352764,11.700914560373089]
[{"$f":"VLOOKUP(\"Quebec\",Translation!$A$1:$C$354, Translation!A1+1, 0)","v":"Québec"},12.892031722595775,13.251216845992452,13.32092567095877,13.469117582224474,13.480209511077645,13.610008372169132,13.742879075993706,13.872968697011906,14.057327572532786,14.185017197016835,14.212299275197273]
[{"$f":"VLOOKUP(\"Ontario\",Translation!$A$1:$C$354, Translation!A1+1, 0)","v":"Ontario"},13.280694015603448,13.640913643482495,13.747458815787276,13.937445262308033,14.001622756612486,14.116531117867686,14.217424679977771,14.338525634041089,14.453781268923041,14.539128487302751,14.601179219619738]
[{"$f":"VLOOKUP(\"Manitoba\",Translation!$A$1:$C$354, Translation!A1+1, 0)","v":"Manitoba"},12.407972913936177,12.682187431135727,12.751873265494881,12.909816376446575,13.010074810556096,13.122830470819421,13.251278078373449,13.38919137655996,13.519765915488611,13.598078452160063,13.620870611286463]
[{"$f":"VLOOKUP(\"Saskatchewan\",Translation!$A$1:$C$354, Translation!A1+1, 0)","v":"Saskatchewan"},12.394933594929022,12.687846538521677,12.748272532392361,12.915079423665791,13.041980864885931,13.13189614844852,13.243213268624753,13.338408376666449,13.470109847060321,13.562669557995774,13.590789114718403]
[{"$f":"VLOOKUP(\"Alberta\",Translation!$A$1:$C$354, Translation!A1+1, 0)","v":"Alberta"},13.952375578703693,14.324483407044827,14.413743565042967,14.592979158448482,14.653253264753568,14.743357833649629,14.841862590397877,14.918225516142973,15.051647965988945,15.129138566801876,15.179205130856971]
[{"$f":"VLOOKUP(\"British Columbia\",Translation!$A$1:$C$354, Translation!A1+1, 0)","v":"Colombie-Britannique"},14.671251821204184,15.112435486814174,15.25405342005234,15.423652494275535,15.526179860966341,15.658015116111605,15.783157466485608,15.822390903100825,15.979854493022884,16.065774700737293,16.100412036068668]
[{"$f":"VLOOKUP(\"Territories\",Translation!$A$1:$C$354, Translation!A1+1, 0)","v":"Territoires"},12.217520254629644,12.605361596009978,12.188303341902328,12.278069466882048,12.450386100386098,12.525511477045926,12.663227708179809,12.854484512251506,13.027153558052436,13.153704903866929,13.032038938810423]
[{"$f":"VLOOKUP(\"Distribution based on number of loans, not loan amounts.\",Translation!$A$1:$C$354, Translation!A1+1, 0)","v":"Distribution basée sur le nombre de prêts et non sur le montant des prêts."}]
[{"$f":"VLOOKUP(\"The sum of all breakdown categories may not add up to 100 due to rounding.\",Translation!$A$1:$C$354, Translation!A1+1, 0)","v":"Les chiffres ayant été arrondis, il se peut que la somme de l'ensemble des catégories n'égale pas 100 %."}]
[{"$f":"VLOOKUP(\"Portfolio-insured Line of Credit loans with zero ($0.00) balance were included in the number of loans in force starting from Q2 2018.\",Translation!$A$1:$C$354, Translation!A1+1, 0)","v":"Les prêts liés à une marge de crédit couverts par une assurance de portefeuille ayant un solde nul (0,00 $) sont inclus dans le nombre des prêts en cours depuis le deuxième trimestre de 2018."}]

{"sheet":"13","index":14,"n_rows":51,"n_cols":11,"rows_kept":51,"cut":false,"hidden":false,"merged":[[0,5,0,10]]}
[{"$f":"VLOOKUP(\"TRANSACTIONAL HOMEOWNER AND PORTFOLIO - CREDIT SCORE\",Translation!$A$1:$C$354, Translation!A1+1, 0)","v":"PROPRIÉTAIRES-OCCUPANTS (À L’UNITÉ) ET ASSURANCE DE PORTEFEUILLE - POINTAGE DE CRÉDIT"},null,null,null,null,{"$f":"VLOOKUP(\"Back to Table of Contents\",Translation!$A$1:$C$354, Translation!A1+1, 0)","v":"Retour à la table des matières"}]
[{"$f":"VLOOKUP(\"Loans insured during period by credit score at origination (%)\",Translation!$A$1:$C$354, Translation!A1+1, 0)","v":"Prêts hypothécaires assurés au cours de la période selon le pointage de crédit à l’initiation (%)"}]
[{"$f":"VLOOKUP(\"TRANSACTIONAL HOMEOWNER\",Translation!$A$1:$C$354, Translation!A1+1, 0)","v":"PROPRIÉTAIRES-OCCUPANTS, À L’UNITÉ"},{"$f":"VLOOKUP(\"Q1 2020\",Translation!$A$1:$C$354, Translation!$A$1+1, 0)","v":"T1 2020"},{"$f":"VLOOKUP(\"Q4 2019\",Translation!$A$1:$C$354, Translation!$A$1+1, 0)","v":"T4 2019"},{"$f":"VLOOKUP(\"Q3 2019\",Translation!$A$1:$C$354, Translation!$A$1+1, 0)","v":"T3 2019"},{"$f":"VLOOKUP(\"Q2 2019\",Translation!$A$1:$C$354, Translation!$A$1+1, 0)","v":"T2 2019"},{"$f":"VLOOKUP(\"Q1 2019\",Translation!$A$1:$C$354, Translation!$A$1+1, 0)","v":"T1 2019"},{"$f":"VLOOKUP(\"Q4 2018\",Translation!$A$1:$C$354, Translation!$A$1+1, 0)","v":"T4 2018"},{"$f":"VLOOKUP(\"Q3 2018\",Translation!$A$1:$C$354, Translation!$A$1+1, 0)","v":"T3 2018"},{"$f":"VLOOKUP(\"Q2 2018\",Translation!$A$1:$C$354, Translation!$A$1+1, 0)","v":"T2 2018"},{"$f":"VLOOKUP(\"YTD 2020\",Translation!$A$1:$C$354, Translation!$A$1+1, 0)","v":"Cumul 2020"},{"$f":"VLOOKUP(\"YTD 2019\",Translation!$A$1:$C$354, Translation!$A$1+1, 0)","v":"Cumul 2019"}]
[{"$f":"VLOOKUP(\"No credit score\",Translation!$A$1:$C$354, Translation!A1+1, 0)","v":"Aucun pointage de crédit"},{"$f":"SUMIFS(Data!$E:$E,Data!$B:$B,'13'!B$3,Data!$C:$C,'13'!$A$3,Data!$D:$D,'13'!$A4,Data!$F:$F,'13'!$A$2)","v":3.5115521348131992E-2},{"$f":"SUMIFS(Data!$E:$E,Data!$B:$B,'13'!C$3,Data!$C:$C,'13'!$A$3,Data!$D:$D,'13'!$A4,Data!$F:$F,'13'!$A$2)","v":4.6074228726421203E-2},{"$f":"SUMIFS(Data!$E:$E,Data!$B:$B,'13'!D$3,Data!$C:$C,'13'!$A$3,Data!$D:$D,'13'!$A4,Data!$F:$F,'13'!$A$2)","v":1.049253717717169E-2},{"$f":"SUMIFS(Data!$E:$E,Data!$B:$B,'13'!E$3,Data!$C:$C,'13'!$A$3,Data!$D:$D,'13'!$A4,Data!$F:$F,'13'!$A$2)","v":0.22156909389990448},{"$f":"SUMIFS(Data!$E:$E,Data!$B:$B,'13'!F$3,Data!$C:$C,'13'!$A$3,Data!$D:$D,'13'!$A4,Data!$F:$F,'13'!$A$2)","v":2.461033501074537},{"$f":"SUMIFS(Data!$E:$E,Data!$B:$B,'13'!G$3,Data!$C:$C,'13'!$A$3,Data!$D:$D,'13'!$A4,Data!$F:$F,'13'!$A$2)","v":3.2593928831956471E-3},{"$f":"SUMIFS(Data!$E:$E,Data!$B:$B,'13'!H$3,Data!$C:$C,'13'!$A$3,Data!$D:$D,'13'!$A4,Data!$F:$F,'13'!$A$2)","v":5.3288953296902865E-3},{"$f":"SUMIFS(Data!$E:$E,Data!$B:$B,'13'!I$3,Data!$C:$C,'13'!$A$3,Data!$D:$D,'13'!$A4,Data!$F:$F,'13'!$A$2)","v":6.8415445825257323E-4},{"$f":"SUMIFS(Data!$E:$E,Data!$B:$B,'13'!J$3,Data!$C:$C,'13'!$A$3,Data!$H:$H,'13'!$A4,Data!$F:$F,'13'!$A$2)","v":3.5115521348131992E-2},{"$f":"SUMIFS(Data!$E:$E,Data!$B:$B,'13'!K$3,Data!$C:$C,'13'!$A$3,Data!$H:$H,'13'!$A4,Data!$F:$F,'13'!$A$2)","v":2.461033501074537}]
[" < 600",{"$f":"SUMIFS(Data!$E:$E,Data!$B:$B,'13'!B$3,Data!$C:$C,'13'!$A$3,Data!$D:$D,'13'!$A5,Data!$F:$F,'13'!$A$2)","v":0.29050425933201257},{"$f":"SUMIFS(Data!$E:$E,Data!$B:$B,'13'!C$3,Data!$C:$C,'13'!$A$3,Data!$H:$H,'13'!$A5,Data!$F:$F,'13'!$A$2)","v":0.34135356141188916},{"$f":"SUMIFS(Data!$E:$E,Data!$B:$B,'13'!D$3,Data!$C:$C,'13'!$A$3,Data!$H:$H,'13'!$A5,Data!$F:$F,'13'!$A$2)","v":0.33536424964793676},{"$f":"SUMIFS(Data!$E:$E,Data!$B:$B,'13'!E$3,Data!$C:$C,'13'!$A$3,Data!$H:$H,'13'!$A5,Data!$F:$F,'13'!$A$2)","v":0.30539328759991691},{"$f":"SUMIFS(Data!$E:$E,Data!$B:$B,'13'!F$3,Data!$C:$C,'13'!$A$3,Data!$H:$H,'13'!$A5,Data!$F:$F,'13'!$A$2)","v":0.35247063498935305},{"$f":"SUMIFS(Data!$E:$E,Data!$B:$B,'13'!G$3,Data!$C:$C,'13'!$A$3,Data!$H:$H,'13'!$A5,Data!$F:$F,'13'!$A$2)","v":0.35164998308889478},{"$f":"SUMIFS(Data!$E:$E,Data!$B:$B,'13'!H$3,Data!$C:$C,'13'!$A$3,Data!$H:$H,'13'!$A5,Data!$F:$F,'13'!$A$2)","v":0.28387353824565142},{"$f":"SUMIFS(Data!$E:$E,Data!$B:$B,'13'!I$3,Data!$C:$C,'13'!$A$3,Data!$H:$H,'13'!$A5,Data!$F:$F,'13'!$A$2)","v":0.32262652214166776},{"$f":"SUMIFS(Data!$E:$E,Data!$B:$B,'13'!J$3,Data!$C:$C,'13'!$A$3,Data!$H:$H,'13'!$A5,Data!$F:$F,'13'!$A$2)","v":0.29050425933201257},{"$f":"SUMIFS(Data!$E:$E,Data!$B:$B,'13'!K$3,Data!$C:$C,'13'!$A$3,Data!$H:$H,'13'!$A5,Data!$F:$F,'13'!$A$2)","v":0.35247063498935305}]
[" >= 600 < 680",{"$f":"SUMIFS(Data!$E:$E,Data!$B:$B,'13'!B$3,Data!$C:$C,'13'!$A$3,Data!$D:$D,'13'!$A6,Data!$F:$F,'13'!$A$2)","v":5.5604128739539957},{"$f":"SUMIFS(Data!$E:$E,Data!$B:$B,'13'!C$3,Data!$C:$C,'13'!$A$3,Data!$H:$H,'13'!$A6,Data!$F:$F,'13'!$A$2)","v":4.8167690399245453},{"$f":"SUMIFS(Data!$E:$E,Data!$B:$B,'13'!D$3,Data!$C:$C,'13'!$A$3,Data!$H:$H,'13'!$A6,Data!$F:$F,'13'!$A$2)","v":5.4882675232011806},{"$f":"SUMIFS(Data!$E:$E,Data!$B:$B,'13'!E$3,Data!$C:$C,'13'!$A$3,Data!$H:$H,'13'!$A6,Data!$F:$F,'13'!$A$2)","v":5.5943601372404812},{"$f":"SUMIFS(Data!$E:$E,Data!$B:$B,'13'!F$3,Data!$C:$C,'13'!$A$3,Data!$H:$H,'13'!$A6,Data!$F:$F,'13'!$A$2)","v":5.4102971427249722},{"$f":"SUMIFS(Data!$E:$E,Data!$B:$B,'13'!G$3,Data!$C:$C,'13'!$A$3,Data!$H:$H,'13'!$A6,Data!$F:$F,'13'!$A$2)","v":5.7787147489350081},{"$f":"SUMIFS(Data!$E:$E,Data!$B:$B,'13'!H$3,Data!$C:$C,'13'!$A$3,Data!$H:$H,'13'!$A6,Data!$F:$F,'13'!$A$2)","v":5.8574792589980849},{"$f":"SUMIFS(Data!$E:$E,Data!$B:$B,'13'!I$3,Data!$C:$C,'13'!$A$3,Data!$H:$H,'13'!$A6,Data!$F:$F,'13'!$A$2)","v":5.5922847888207432},{"$f":"SUMIFS(Data!$E:$E,Data!$B:$B,'13'!J$3,Data!$C:$C,'13'!$A$3,Data!$H:$H,'13'!$A6,Data!$F:$F,'13'!$A$2)","v":5.5604128739539957},{"$f":"SUMIFS(Data!$E:$E,Data!$B:$B,'13'!K$3,Data!$C:$C,'13'!$A$3,Data!$H:$H,'13'!$A6,Data!$F:$F,'13'!$A$2)","v":5.4102971427249722}]
[" >= 680 < 700",{"$f":"SUMIFS(Data!$E:$E,Data!$B:$B,'13'!B$3,Data!$C:$C,'13'!$A$3,Data!$D:$D,'13'!$A7,Data!$F:$F,'13'!$A$2)","v":4.9012905390917592},{"$f":"SUMIFS(Data!$E:$E,Data!$B:$B,'13'!C$3,Data!$C:$C,'13'!$A$3,Data!$H:$H,'13'!$A7,Data!$F:$F,'13'!$A$2)","v":5.3853755701330037},{"$f":"SUMIFS(Data!$E:$E,Data!$B:$B,'13'!D$3,Data!$C:$C,'13'!$A$3,Data!$H:$H,'13'!$A7,Data!$F:$F,'13'!$A$2)","v":5.1572348924779554},{"$f":"SUMIFS(Data!$E:$E,Data!$B:$B,'13'!E$3,Data!$C:$C,'13'!$A$3,Data!$H:$H,'13'!$A7,Data!$F:$F,'13'!$A$2)","v":5.3895041394011409},{"$f":"SUMIFS(Data!$E:$E,Data!$B:$B,'13'!F$3,Data!$C:$C,'13'!$A$3,Data!$H:$H,'13'!$A7,Data!$F:$F,'13'!$A$2)","v":5.1367250001190419},{"$f":"SUMIFS(Data!$E:$E,Data!$B:$B,'13'!G$3,Data!$C:$C,'13'!$A$3,Data!$H:$H,'13'!$A7,Data!$F:$F,'13'!$A$2)","v":5.43724537202415},{"$f":"SUMIFS(Data!$E:$E,Data!$B:$B,'13'!H$3,Data!$C:$C,'13'!$A$3,Data!$H:$H,'13'!$A7,Data!$F:$F,'13'!$A$2)","v":5.3989134911660397},{"$f":"SUMIFS(Data!$E:$E,Data!$B:$B,'13'!I$3,Data!$C:$C,'13'!$A$3,Data!$H:$H,'13'!$A7,Data!$F:$F,'13'!$A$2)","v":5.2120251351633842},{"$f":"SUMIFS(Data!$E:$E,Data!$B:$B,'13'!J$3,Data!$C:$C,'13'!$A$3,Data!$H:$H,'13'!$A7,Data!$F:$F,'13'!$A$2)","v":4.9012905390917592},{"$f":"SUMIFS(Data!$E:$E,Data!$B:$B,'13'!K$3,Data!$C:$C,'13'!$A$3,Data!$H:$H,'13'!$A7,Data!$F:$F,'13'!$A$2)","v":5.1367250001190419}]
[" >= 700 < 750",{"$f":"SUMIFS(Data!$E:$E,Data!$B:$B,'13'!B$3,Data!$C:$C,'13'!$A$3,Data!$D:$D,'13'!$A8,Data!$F:$F,'13'!$A$2)","v":26.525434224603639},{"$f":"SUMIFS(Data!$E:$E,Data!$B:$B,'13'!C$3,Data!$C:$C,'13'!$A$3,Data!$H:$H,'13'!$A8,Data!$F:$F,'13'!$A$2)","v":26.52200024231464},{"$f":"SUMIFS(Data!$E:$E,Data!$B:$B,'13'!D$3,Data!$C:$C,'13'!$A$3,Data!$H:$H,'13'!$A8,Data!$F:$F,'13'!$A$2)","v":26.971358623495234},{"$f":"SUMIFS(Data!$E:$E,Data!$B:$B,'13'!E$3,Data!$C:$C,'13'!$A$3,Data!$H:$H,'13'!$A8,Data!$F:$F,'13'!$A$2)","v":26.776460389186006},{"$f":"SUMIFS(Data!$E:$E,Data!$B:$B,'13'!F$3,Data!$C:$C,'13'!$A$3,Data!$H:$H,'13'!$A8,Data!$F:$F,'13'!$A$2)","v":26.567069862853103},{"$f":"SUMIFS(Data!$E:$E,Data!$B:$B,'13'!G$3,Data!$C:$C,'13'!$A$3,Data!$H:$H,'13'!$A8,Data!$F:$F,'13'!$A$2)","v":26.913708543167569},{"$f":"SUMIFS(Data!$E:$E,Data!$B:$B,'13'!H$3,Data!$C:$C,'13'!$A$3,Data!$H:$H,'13'!$A8,Data!$F:$F,'13'!$A$2)","v":27.530551450316462},{"$f":"SUMIFS(Data!$E:$E,Data!$B:$B,'13'!I$3,Data!$C:$C,'13'!$A$3,Data!$H:$H,'13'!$A8,Data!$F:$F,'13'!$A$2)","v":27.482074654841878},{"$f":"SUMIFS(Data!$E:$E,Data!$B:$B,'13'!J$3,Data!$C:$C,'13'!$A$3,Data!$H:$H,'13'!$A8,Data!$F:$F,'13'!$A$2)","v":26.525434224603639},{"$f":"SUMIFS(Data!$E:$E,Data!$B:$B,'13'!K$3,Data!$C:$C,'13'!$A$3,Data!$H:$H,'13'!$A8,Data!$F:$F,'13'!$A$2)","v":26.567069862853103}]
[" >= 750 < 780",{"$f":"SUMIFS(Data!$E:$E,Data!$B:$B,'13'!B$3,Data!$C:$C,'13'!$A$3,Data!$D:$D,'13'!$A9,Data!$F:$F,'13'!$A$2)","v":28.577610033846199},{"$f":"SUMIFS(Data!$E:$E,Data!$B:$B,'13'!C$3,Data!$C:$C,'13'!$A$3,Data!$H:$H,'13'!$A9,Data!$F:$F,'13'!$A$2)","v":28.023474761004255},{"$f":"SUMIFS(Data!$E:$E,Data!$B:$B,'13'!D$3,Data!$C:$C,'13'!$A$3,Data!$H:$H,'13'!$A9,Data!$F:$F,'13'!$A$2)","v":27.522679691370705},{"$f":"SUMIFS(Data!$E:$E,Data!$B:$B,'13'!E$3,Data!$C:$C,'13'!$A$3,Data!$H:$H,'13'!$A9,Data!$F:$F,'13'!$A$2)","v":27.793200927436256},{"$f":"SUMIFS(Data!$E:$E,Data!$B:$B,'13'!F$3,Data!$C:$C,'13'!$A$3,Data!$H:$H,'13'!$A9,Data!$F:$F,'13'!$A$2)","v":26.768746809342403},{"$f":"SUMIFS(Data!$E:$E,Data!$B:$B,'13'!G$3,Data!$C:$C,'13'!$A$3,Data!$H:$H,'13'!$A9,Data!$F:$F,'13'!$A$2)","v":28.204308117375241},{"$f":"SUMIFS(Data!$E:$E,Data!$B:$B,'13'!H$3,Data!$C:$C,'13'!$A$3,Data!$H:$H,'13'!$A9,Data!$F:$F,'13'!$A$2)","v":27.82801901352947},{"$f":"SUMIFS(Data!$E:$E,Data!$B:$B,'13'!I$3,Data!$C:$C,'13'!$A$3,Data!$H:$H,'13'!$A9,Data!$F:$F,'13'!$A$2)","v":28.245026421975162},{"$f":"SUMIFS(Data!$E:$E,Data!$B:$B,'13'!J$3,Data!$C:$C,'13'!$A$3,Data!$H:$H,'13'!$A9,Data!$F:$F,'13'!$A$2)","v":28.577610033846199},{"$f":"SUMIFS(Data!$E:$E,Data!$B:$B,'13'!K$3,Data!$C:$C,'13'!$A$3,Data!$H:$H,'13'!$A9,Data!$F:$F,'13'!$A$2)","v":26.768746809342403}]
[" >= 780",{"$f":"SUMIFS(Data!$E:$E,Data!$B:$B,'13'!B$3,Data!$C:$C,'13'!$A$3,Data!$D:$D,'13'!$A10,Data!$F:$F,'13'!$A$2)","v":34.109632547824248},{"$f":"SUMIFS(Data!$E:$E,Data!$B:$B,'13'!C$3,Data!$C:$C,'13'!$A$3,Data!$H:$H,'13'!$A10,Data!$F:$F,'13'!$A$2)","v":34.864952596485253},{"$f":"SUMIFS(Data!$E:$E,Data!$B:$B,'13'!D$3,Data!$C:$C,'13'!$A$3,Data!$H:$H,'13'!$A10,Data!$F:$F,'13'!$A$2)","v":34.514602482629833},{"$f":"SUMIFS(Data!$E:$E,Data!$B:$B,'13'!E$3,Data!$C:$C,'13'!$A$3,Data!$H:$H,'13'!$A10,Data!$F:$F,'13'!$A$2)","v":33.91951202523628},{"$f":"SUMIFS(Data!$E:$E,Data!$B:$B,'13'!F$3,Data!$C:$C,'13'!$A$3,Data!$H:$H,'13'!$A10,Data!$F:$F,'13'!$A$2)","v":33.303657048896568},{"$f":"SUMIFS(Data!$E:$E,Data!$B:$B,'13'!G$3,Data!$C:$C,'13'!$A$3,Data!$H:$H,'13'!$A10,Data!$F:$F,'13'!$A$2)","v":33.311113842525977},{"$f":"SUMIFS(Data!$E:$E,Data!$B:$B,'13'!H$3,Data!$C:$C,'13'!$A$3,Data!$H:$H,'13'!$A10,Data!$F:$F,'13'!$A$2)","v":33.095834352414606},{"$f":"SUMIFS(Data!$E:$E,Data!$B:$B,'13'!I$3,Data!$C:$C,'13'!$A$3,Data!$H:$H,'13'!$A10,Data!$F:$F,'13'!$A$2)","v":33.145278322598905},{"$f":"SUMIFS(Data!$E:$E,Data!$B:$B,'13'!J$3,Data!$C:$C,'13'!$A$3,Data!$H:$H,'13'!$A10,Data!$F:$F,'13'!$A$2)","v":34.109632547824248},{"$f":"SUMIFS(Data!$E:$E,Data!$B:$B,'13'!K$3,Data!$C:$C,'13'!$A$3,Data!$H:$H,'13'!$A10,Data!$F:$F,'13'!$A$2)","v":33.303657048896568}]
[{"$f":"VLOOKUP(\"Average credit score at origination\",Translation!$A$1:$C$354, Translation!A1+1, 0)","v":"Pointage de crédit moyen à l'initiation "},{"$f":"SUMIFS(Data!$E:$E,Data!$B:$B,'13'!B$3,Data!$C:$C,'13'!$A$3,Data!$D:$D,'13'!$A11,Data!$F:$F,'13'!$A$2)","v":756.18271306601116},{"$f":"SUMIFS(Data!$E:$E,Data!$B:$B,'13'!C$3,Data!$C:$C,'13'!$A$3,Data!$D:$D,'13'!$A11,Data!$F:$F,'13'!$A$2)","v":756.33844797701101},{"$f":"SUMIFS(Data!$E:$E,Data!$B:$B,'13'!D$3,Data!$C:$C,'13'!$A$3,Data!$D:$D,'13'!$A11,Data!$F:$F,'13'!$A$2)","v":755.9369513483133},{"$f":"SUMIFS(Data!$E:$E,Data!$B:$B,'13'!E$3,Data!$C:$C,'13'!$A$3,Data!$D:$D,'13'!$A11,Data!$F:$F,'13'!$A$2)","v":755.18236503524452},{"$f":"SUMIFS(Data!$E:$E,Data!$B:$B,'13'!F$3,Data!$C:$C,'13'!$A$3,Data!$D:$D,'13'!$A11,Data!$F:$F,'13'!$A$2)","v":754.54874794205728},{"$f":"SUMIFS(Data!$E:$E,Data!$B:$B,'13'!G$3,Data!$C:$C,'13'!$A$3,Data!$D:$D,'13'!$A11,Data!$F:$F,'13'!$A$2)","v":754.56220337585341},{"$f":"SUMIFS(Data!$E:$E,Data!$B:$B,'13'!H$3,Data!$C:$C,'13'!$A$3,Data!$D:$D,'13'!$A11,Data!$F:$F,'13'!$A$2)","v":754.33509862778556},{"$f":"SUMIFS(Data!$E:$E,Data!$B:$B,'13'!I$3,Data!$C:$C,'13'!$A$3,Data!$D:$D,'13'!$A11,Data!$F:$F,'13'!$A$2)","v":754.677433210083},{"$f":"SUMIFS(Data!$E:$E,Data!$B:$B,'13'!J$3,Data!$C:$C,'13'!$A$3,Data!$D:$D,'13'!$A11,Data!$F:$F,'13'!$A$2)","v":756.18271306601116},{"$f":"SUMIFS(Data!$E:$E,Data!$B:$B,'13'!K$3,Data!$C:$C,'13'!$A$3,Data!$D:$D,'13'!$A11,Data!$F:$F,'13'!$A$2)","v":754.54874794205728}]
[{"$f":"VLOOKUP(\"Average credit score at origination by province\",Translation!$A$1:$C$354, Translation!A1+1, 0)","v":"Pointage de crédit moyen à l'initiation selon la province"}]
[{"$f":"VLOOKUP(\"Newfoundland and Labrador\",Translation!$A$1:$C$354, Translation!A1+1, 0)","v":"Terre-Neuve-et-Labrador"},{"$f":"IF((SUMIFS(Data!$E:$E,Data!$B:$B,'13'!B$3,Data!$C:$C,'13'!$A$3,Data!$D:$D,'13'!$A13,Data!$F:$F,'13'!$A$2))=0,\"-\",SUMIFS(Data!$E:$E,Data!$B:$B,'13'!B$3,Data!$C:$C,'13'!$A$3,Data!$D:$D,'13'!$A13,Data!$F:$F,'13'!$A$2))","v":749.73529067198979},{"$f":"IF((SUMIFS(Data!$E:$E,Data!$B:$B,'13'!C$3,Data!$C:$C,'13'!$A$3,Data!$D:$D,'13'!$A13,Data!$F:$F,'13'!$A$2))=0,\"-\",SUMIFS(Data!$E:$E,Data!$B:$B,'13'!C$3,Data!$C:$C,'13'!$A$3,Data!$D:$D,'13'!$A13,Data!$F:$F,'13'!$A$2))","v":741.18507366828987},{"$f":"IF((SUMIFS(Data!$E:$E,Data!$B:$B,'13'!D$3,Data!$C:$C,'13'!$A$3,Data!$D:$D,'13'!$A13,Data!$F:$F,'13'!$A$2))=0,\"-\",SUMIFS(Data!$E:$E,Data!$B:$B,'13'!D$3,Data!$C:$C,'13'!$A$3,Data!$D:$D,'13'!$A13,Data!$F:$F,'13'!$A$2))","v":751.46748907192818},{"$f":"IF((SUMIFS(Data!$E:$E,Data!$B:$B,'13'!E$3,Data!$C:$C,'13'!$A$3,Data!$D:$D,'13'!$A13,Data!$F:$F,'13'!$A$2))=0,\"-\",SUMIFS(Data!$E:$E,Data!$B:$B,'13'!E$3,Data!$C:$C,'13'!$A$3,Data!$D:$D,'13'!$A13,Data!$F:$F,'13'!$A$2))","v":745.00473795906373},{"$f":"IF((SUMIFS(Data!$E:$E,Data!$B:$B,'13'!F$3,Data!$C:$C,'13'!$A$3,Data!$D:$D,'13'!$A13,Data!$F:$F,'13'!$A$2))=0,\"-\",SUMIFS(Data!$E:$E,Data!$B:$B,'13'!F$3,Data!$C:$C,'13'!$A$3,Data!$D:$D,'13'!$A13,Data!$F:$F,'13'!$A$2))","v":750.21550673110971},{"$f":"IF((SUMIFS(Data!$E:$E,Data!$B:$B,'13'!G$3,Data!$C:$C,'13'!$A$3,Data!$D:$D,'13'!$A13,Data!$F:$F,'13'!$A$2))=0,\"-\",SUMIFS(Data!$E:$E,Data!$B:$B,'13'!G$3,Data!$C:$C,'13'!$A$3,Data!$D:$D,'13'!$A13,Data!$F:$F,'13'!$A$2))","v":742.89291866349504},{"$f":"IF((SUMIFS(Data!$E:$E,Data!$B:$B,'13'!H$3,Data!$C:$C,'13'!$A$3,Data!$D:$D,'13'!$A13,Data!$F:$F,'13'!$A$2))=0,\"-\",SUMIFS(Data!$E:$E,Data!$B:$B,'13'!H$3,Data!$C:$C,'13'!$A$3,Data!$D:$D,'13'!$A13,Data!$F:$F,'13'!$A$2))","v":741.84769074748613},{"$f":"IF((SUMIFS(Data!$E:$E,Data!$B:$B,'13'!I$3,Data!$C:$C,'13'!$A$3,Data!$D:$D,'13'!$A13,Data!$F:$F,'13'!$A$2))=0,\"-\",SUMIFS(Data!$E:$E,Data!$B:$B,'13'!I$3,Data!$C:$C,'13'!$A$3,Data!$D:$D,'13'!$A13,Data!$F:$F,'13'!$A$2))","v":741.74030735067868},{"$f":"IF((SUMIFS(Data!$E:$E,Data!$B:$B,'13'!J$3,Data!$C:$C,'13'!$A$3,Data!$D:$D,'13'!$A13,Data!$F:$F,'13'!$A$2))=0,\"-\",SUMIFS(Data!$E:$E,Data!$B:$B,'13'!J$3,Data!$C:$C,'13'!$A$3,Data!$D:$D,'13'!$A13,Data!$F:$F,'13'!$A$2))","v":749.73529067198979},{"$f":"IF((SUMIFS(Data!$E:$E,Data!$B:$B,'13'!K$3,Data!$C:$C,'13'!$A$3,Data!$D:$D,'13'!$A13,Data!$F:$F,'13'!$A$2))=0,\"-\",SUMIFS(Data!$E:$E,Data!$B:$B,'13'!K$3,Data!$C:$C,'13'!$A$3,Data!$D:$D,'13'!$A13,Data!$F:$F,'13'!$A$2))","v":750.21550673110971}]
[{"$f":"VLOOKUP(\"Prince Edward Island\",Translation!$A$1:$C$354, Translation!A1+1, 0)","v":"Île-du-Prince-Édouard"},{"$f":"IF((SUMIFS(Data!$E:$E,Data!$B:$B,'13'!B$3,Data!$C:$C,'13'!$A$3,Data!$D:$D,'13'!$A14,Data!$F:$F,'13'!$A$2))=0,\"-\",SUMIFS(Data!$E:$E,Data!$B:$B,'13'!B$3,Data!$C:$C,'13'!$A$3,Data!$D:$D,'13'!$A14,Data!$F:$F,'13'!$A$2))","v":751.27102548337484},{"$f":"IF((SUMIFS(Data!$E:$E,Data!$B:$B,'13'!C$3,Data!$C:$C,'13'!$A$3,Data!$D:$D,'13'!$A14,Data!$F:$F,'13'!$A$2))=0,\"-\",SUMIFS(Data!$E:$E,Data!$B:$B,'13'!C$3,Data!$C:$C,'13'!$A$3,Data!$D:$D,'13'!$A14,Data!$F:$F,'13'!$A$2))","v":742.65670282964402},{"$f":"IF((SUMIFS(Data!$E:$E,Data!$B:$B,'13'!D$3,Data!$C:$C,'13'!$A$3,Data!$D:$D,'13'!$A14,Data!$F:$F,'13'!$A$2))=0,\"-\",SUMIFS(Data!$E:$E,Data!$B:$B,'13'!D$3,Data!$C:$C,'13'!$A$3,Data!$D:$D,'13'!$A14,Data!$F:$F,'13'!$A$2))","v":745.63623403847055},{"$f":"IF((SUMIFS(Data!$E:$E,Data!$B:$B,'13'!E$3,Data!$C:$C,'13'!$A$3,Data!$D:$D,'13'!$A14,Data!$F:$F,'13'!$A$2))=0,\"-\",SUMIFS(Data!$E:$E,Data!$B:$B,'13'!E$3,Data!$C:$C,'13'!$A$3,Data!$D:$D,'13'!$A14,Data!$F:$F,'13'!$A$2))","v":732.57876084808197},{"$f":"IF((SUMIFS(Data!$E:$E,Data!$B:$B,'13'!F$3,Data!$C:$C,'13'!$A$3,Data!$D:$D,'13'!$A14,Data!$F:$F,'13'!$A$2))=0,\"-\",SUMIFS(Data!$E:$E,Data!$B:$B,'13'!F$3,Data!$C:$C,'13'!$A$3,Data!$D:$D,'13'!$A14,Data!$F:$F,'13'!$A$2))","v":761.54302377468196},{"$f":"IF((SUMIFS(Data!$E:$E,Data!$B:$B,'13'!G$3,Data!$C:$C,'13'!$A$3,Data!$D:$D,'13'!$A14,Data!$F:$F,'13'!$A$2))=0,\"-\",SUMIFS(Data!$E:$E,Data!$B:$B,'13'!G$3,Data!$C:$C,'13'!$A$3,Data!$D:$D,'13'!$A14,Data!$F:$F,'13'!$A$2))","v":743.25235038773985},{"$f":"IF((SUMIFS(Data!$E:$E,Data!$B:$B,'13'!H$3,Data!$C:$C,'13'!$A$3,Data!$D:$D,'13'!$A14,Data!$F:$F,'13'!$A$2))=0,\"-\",SUMIFS(Data!$E:$E,Data!$B:$B,'13'!H$3,Data!$C:$C,'13'!$A$3,Data!$D:$D,'13'!$A14,Data!$F:$F,'13'!$A$2))","v":747.82101634041317},{"$f":"IF((SUMIFS(Data!$E:$E,Data!$B:$B,'13'!I$3,Data!$C:$C,'13'!$A$3,Data!$D:$D,'13'!$A14,Data!$F:$F,'13'!$A$2))=0,\"-\",SUMIFS(Data!$E:$E,Data!$B:$B,'13'!I$3,Data!$C:$C,'13'!$A$3,Data!$D:$D,'13'!$A14,Data!$F:$F,'13'!$A$2))","v":743.06956105562142},{"$f":"IF((SUMIFS(Data!$E:$E,Data!$B:$B,'13'!J$3,Data!$C:$C,'13'!$A$3,Data!$D:$D,'13'!$A14,Data!$F:$F,'13'!$A$2))=0,\"-\",SUMIFS(Data!$E:$E,Data!$B:$B,'13'!J$3,Data!$C:$C,'13'!$A$3,Data!$D:$D,'13'!$A14,Data!$F:$F,'13'!$A$2))","v":751.27102548337484},{"$f":"IF((SUMIFS(Data!$E:$E,Data!$B:$B,'13'!K$3,Data!$C:$C,'13'!$A$3,Data!$D:$D,'13'!$A14,Data!$F:$F,'13'!$A$2))=0,\"-\",SUMIFS(Data!$E:$E,Data!$B:$B,'13'!K$3,Data!$C:$C,'13'!$A$3,Data!$D:$D,'13'!$A14,Data!$F:$F,'13'!$A$2))","v":761.54302377468196}]
[{"$f":"VLOOKUP(\"Nova Scotia\",Translation!$A$1:$C$354, Translation!A1+1, 0)","v":"Nouvelle-Écosse"},{"$f":"IF((SUMIFS(Data!$E:$E,Data!$B:$B,'13'!B$3,Data!$C:$C,'13'!$A$3,Data!$D:$D,'13'!$A15,Data!$F:$F,'13'!$A$2))=0,\"-\",SUMIFS(Data!$E:$E,Data!$B:$B,'13'!B$3,Data!$C:$C,'13'!$A$3,Data!$D:$D,'13'!$A15,Data!$F:$F,'13'!$A$2))","v":749.17417476986532},{"$f":"IF((SUMIFS(Data!$E:$E,Data!$B:$B,'13'!C$3,Data!$C:$C,'13'!$A$3,Data!$D:$D,'13'!$A15,Data!$F:$F,'13'!$A$2))=0,\"-\",SUMIFS(Data!$E:$E,Data!$B:$B,'13'!C$3,Data!$C:$C,'13'!$A$3,Data!$D:$D,'13'!$A15,Data!$F:$F,'13'!$A$2))","v":748.98618073552564},{"$f":"IF((SUMIFS(Data!$E:$E,Data!$B:$B,'13'!D$3,Data!$C:$C,'13'!$A$3,Data!$D:$D,'13'!$A15,Data!$F:$F,'13'!$A$2))=0,\"-\",SUMIFS(Data!$E:$E,Data!$B:$B,'13'!D$3,Data!$C:$C,'13'!$A$3,Data!$D:$D,'13'!$A15,Data!$F:$F,'13'!$A$2))","v":747.09172704687126},{"$f":"IF((SUMIFS(Data!$E:$E,Data!$B:$B,'13'!E$3,Data!$C:$C,'13'!$A$3,Data!$D:$D,'13'!$A15,Data!$F:$F,'13'!$A$2))=0,\"-\",SUMIFS(Data!$E:$E,Data!$B:$B,'13'!E$3,Data!$C:$C,'13'!$A$3,Data!$D:$D,'13'!$A15,Data!$F:$F,'13'!$A$2))","v":741.03806603532814},{"$f":"IF((SUMIFS(Data!$E:$E,Data!$B:$B,'13'!F$3,Data!$C:$C,'13'!$A$3,Data!$D:$D,'13'!$A15,Data!$F:$F,'13'!$A$2))=0,\"-\",SUMIFS(Data!$E:$E,Data!$B:$B,'13'!F$3,Data!$C:$C,'13'!$A$3,Data!$D:$D,'13'!$A15,Data!$F:$F,'13'!$A$2))","v":740.35321113506416},{"$f":"IF((SUMIFS(Data!$E:$E,Data!$B:$B,'13'!G$3,Data!$C:$C,'13'!$A$3,Data!$D:$D,'13'!$A15,Data!$F:$F,'13'!$A$2))=0,\"-\",SUMIFS(Data!$E:$E,Data!$B:$B,'13'!G$3,Data!$C:$C,'13'!$A$3,Data!$D:$D,'13'!$A15,Data!$F:$F,'13'!$A$2))","v":742.99641825820322},{"$f":"IF((SUMIFS(Data!$E:$E,Data!$B:$B,'13'!H$3,Data!$C:$C,'13'!$A$3,Data!$D:$D,'13'!$A15,Data!$F:$F,'13'!$A$2))=0,\"-\",SUMIFS(Data!$E:$E,Data!$B:$B,'13'!H$3,Data!$C:$C,'13'!$A$3,Data!$D:$D,'13'!$A15,Data!$F:$F,'13'!$A$2))","v":750.20771815446017},{"$f":"IF((SUMIFS(Data!$E:$E,Data!$B:$B,'13'!I$3,Data!$C:$C,'13'!$A$3,Data!$D:$D,'13'!$A15,Data!$F:$F,'13'!$A$2))=0,\"-\",SUMIFS(Data!$E:$E,Data!$B:$B,'13'!I$3,Data!$C:$C,'13'!$A$3,Data!$D:$D,'13'!$A15,Data!$F:$F,'13'!$A$2))","v":744.9943550123462},{"$f":"IF((SUMIFS(Data!$E:$E,Data!$B:$B,'13'!J$3,Data!$C:$C,'13'!$A$3,Data!$D:$D,'13'!$A15,Data!$F:$F,'13'!$A$2))=0,\"-\",SUMIFS(Data!$E:$E,Data!$B:$B,'13'!J$3,Data!$C:$C,'13'!$A$3,Data!$D:$D,'13'!$A15,Data!$F:$F,'13'!$A$2))","v":749.17417476986532},{"$f":"IF((SUMIFS(Data!$E:$E,Data!$B:$B,'13'!K$3,Data!$C:$C,'13'!$A$3,Data!$D:$D,'13'!$A15,Data!$F:$F,'13'!$A$2))=0,\"-\",SUMIFS(Data!$E:$E,Data!$B:$B,'13'!K$3,Data!$C:$C,'13'!$A$3,Data!$D:$D,'13'!$A15,Data!$F:$F,'13'!$A$2))","v":740.35321113506416}]
[{"$f":"VLOOKUP(\"New Brunswick\",Translation!$A$1:$C$354, Translation!A1+1, 0)","v":"Nouveau-Brunswick"},{"$f":"IF((SUMIFS(Data!$E:$E,Data!$B:$B,'13'!B$3,Data!$C:$C,'13'!$A$3,Data!$D:$D,'13'!$A16,Data!$F:$F,'13'!$A$2))=0,\"-\",SUMIFS(Data!$E:$E,Data!$B:$B,'13'!B$3,Data!$C:$C,'13'!$A$3,Data!$D:$D,'13'!$A16,Data!$F:$F,'13'!$A$2))","v":743.61237476497934},{"$f":"IF((SUMIFS(Data!$E:$E,Data!$B:$B,'13'!C$3,Data!$C:$C,'13'!$A$3,Data!$D:$D,'13'!$A16,Data!$F:$F,'13'!$A$2))=0,\"-\",SUMIFS(Data!$E:$E,Data!$B:$B,'13'!C$3,Data!$C:$C,'13'!$A$3,Data!$D:$D,'13'!$A16,Data!$F:$F,'13'!$A$2))","v":745.18212547493317},{"$f":"IF((SUMIFS(Data!$E:$E,Data!$B:$B,'13'!D$3,Data!$C:$C,'13'!$A$3,Data!$D:$D,'13'!$A16,Data!$F:$F,'13'!$A$2))=0,\"-\",SUMIFS(Data!$E:$E,Data!$B:$B,'13'!D$3,Data!$C:$C,'13'!$A$3,Data!$D:$D,'13'!$A16,Data!$F:$F,'13'!$A$2))","v":747.63371827803553},{"$f":"IF((SUMIFS(Data!$E:$E,Data!$B:$B,'13'!E$3,Data!$C:$C,'13'!$A$3,Data!$D:$D,'13'!$A16,Data!$F:$F,'13'!$A$2))=0,\"-\",SUMIFS(Data!$E:$E,Data!$B:$B,'13'!E$3,Data!$C:$C,'13'!$A$3,Data!$D:$D,'13'!$A16,Data!$F:$F,'13'!$A$2))","v":745.47152795167915},{"$f":"IF((SUMIFS(Data!$E:$E,Data!$B:$B,'13'!F$3,Data!$C:$C,'13'!$A$3,Data!$D:$D,'13'!$A16,Data!$F:$F,'13'!$A$2))=0,\"-\",SUMIFS(Data!$E:$E,Data!$B:$B,'13'!F$3,Data!$C:$C,'13'!$A$3,Data!$D:$D,'13'!$A16,Data!$F:$F,'13'!$A$2))","v":737.57539188782687},{"$f":"IF((SUMIFS(Data!$E:$E,Data!$B:$B,'13'!G$3,Data!$C:$C,'13'!$A$3,Data!$D:$D,'13'!$A16,Data!$F:$F,'13'!$A$2))=0,\"-\",SUMIFS(Data!$E:$E,Data!$B:$B,'13'!G$3,Data!$C:$C,'13'!$A$3,Data!$D:$D,'13'!$A16,Data!$F:$F,'13'!$A$2))","v":747.52620832481102},{"$f":"IF((SUMIFS(Data!$E:$E,Data!$B:$B,'13'!H$3,Data!$C:$C,'13'!$A$3,Data!$D:$D,'13'!$A16,Data!$F:$F,'13'!$A$2))=0,\"-\",SUMIFS(Data!$E:$E,Data!$B:$B,'13'!H$3,Data!$C:$C,'13'!$A$3,Data!$D:$D,'13'!$A16,Data!$F:$F,'13'!$A$2))","v":749.21198439656848},{"$f":"IF((SUMIFS(Data!$E:$E,Data!$B:$B,'13'!I$3,Data!$C:$C,'13'!$A$3,Data!$D:$D,'13'!$A16,Data!$F:$F,'13'!$A$2))=0,\"-\",SUMIFS(Data!$E:$E,Data!$B:$B,'13'!I$3,Data!$C:$C,'13'!$A$3,Data!$D:$D,'13'!$A16,Data!$F:$F,'13'!$A$2))","v":742.95799482488064},{"$f":"IF((SUMIFS(Data!$E:$E,Data!$B:$B,'13'!J$3,Data!$C:$C,'13'!$A$3,Data!$D:$D,'13'!$A16,Data!$F:$F,'13'!$A$2))=0,\"-\",SUMIFS(Data!$E:$E,Data!$B:$B,'13'!J$3,Data!$C:$C,'13'!$A$3,Data!$D:$D,'13'!$A16,Data!$F:$F,'13'!$A$2))","v":743.61237476497934},{"$f":"IF((SUMIFS(Data!$E:$E,Data!$B:$B,'13'!K$3,Data!$C:$C,'13'!$A$3,Data!$D:$D,'13'!$A16,Data!$F:$F,'13'!$A$2))=0,\"-\",SUMIFS(Data!$E:$E,Data!$B:$B,'13'!K$3,Data!$C:$C,'13'!$A$3,Data!$D:$D,'13'!$A16,Data!$F:$F,'13'!$A$2))","v":737.57539188782687}]
[{"$f":"VLOOKUP(\"Quebec\",Translation!$A$1:$C$354, Translation!A1+1, 0)","v":"Québec"},{"$f":"IF((SUMIFS(Data!$E:$E,Data!$B:$B,'13'!B$3,Data!$C:$C,'13'!$A$3,Data!$D:$D,'13'!$A17,Data!$F:$F,'13'!$A$2))=0,\"-\",SUMIFS(Data!$E:$E,Data!$B:$B,'13'!B$3,Data!$C:$C,'13'!$A$3,Data!$D:$D,'13'!$A17,Data!$F:$F,'13'!$A$2))","v":756.71639667130944},{"$f":"IF((SUMIFS(Data!$E:$E,Data!$B:$B,'13'!C$3,Data!$C:$C,'13'!$A$3,Data!$D:$D,'13'!$A17,Data!$F:$F,'13'!$A$2))=0,\"-\",SUMIFS(Data!$E:$E,Data!$B:$B,'13'!C$3,Data!$C:$C,'13'!$A$3,Data!$D:$D,'13'!$A17,Data!$F:$F,'13'!$A$2))","v":756.3380442152345},{"$f":"IF((SUMIFS(Data!$E:$E,Data!$B:$B,'13'!D$3,Data!$C:$C,'13'!$A$3,Data!$D:$D,'13'!$A17,Data!$F:$F,'13'!$A$2))=0,\"-\",SUMIFS(Data!$E:$E,Data!$B:$B,'13'!D$3,Data!$C:$C,'13'!$A$3,Data!$D:$D,'13'!$A17,Data!$F:$F,'13'!$A$2))","v":755.93534090536707},{"$f":"IF((SUMIFS(Data!$E:$E,Data!$B:$B,'13'!E$3,Data!$C:$C,'13'!$A$3,Data!$D:$D,'13'!$A17,Data!$F:$F,'13'!$A$2))=0,\"-\",SUMIFS(Data!$E:$E,Data!$B:$B,'13'!E$3,Data!$C:$C,'13'!$A$3,Data!$D:$D,'13'!$A17,Data!$F:$F,'13'!$A$2))","v":755.96807870754299},{"$f":"IF((SUMIFS(Data!$E:$E,Data!$B:$B,'13'!F$3,Data!$C:$C,'13'!$A$3,Data!$D:$D,'13'!$A17,Data!$F:$F,'13'!$A$2))=0,\"-\",SUMIFS(Data!$E:$E,Data!$B:$B,'13'!F$3,Data!$C:$C,'13'!$A$3,Data!$D:$D,'13'!$A17,Data!$F:$F,'13'!$A$2))","v":755.96288566957946},{"$f":"IF((SUMIFS(Data!$E:$E,Data!$B:$B,'13'!G$3,Data!$C:$C,'13'!$A$3,Data!$D:$D,'13'!$A17,Data!$F:$F,'13'!$A$2))=0,\"-\",SUMIFS(Data!$E:$E,Data!$B:$B,'13'!G$3,Data!$C:$C,'13'!$A$3,Data!$D:$D,'13'!$A17,Data!$F:$F,'13'!$A$2))","v":756.01274642446356},{"$f":"IF((SUMIFS(Data!$E:$E,Data!$B:$B,'13'!H$3,Data!$C:$C,'13'!$A$3,Data!$D:$D,'13'!$A17,Data!$F:$F,'13'!$A$2))=0,\"-\",SUMIFS(Data!$E:$E,Data!$B:$B,'13'!H$3,Data!$C:$C,'13'!$A$3,Data!$D:$D,'13'!$A17,Data!$F:$F,'13'!$A$2))","v":755.48758467987648},{"$f":"IF((SUMIFS(Data!$E:$E,Data!$B:$B,'13'!I$3,Data!$C:$C,'13'!$A$3,Data!$D:$D,'13'!$A17,Data!$F:$F,'13'!$A$2))=0,\"-\",SUMIFS(Data!$E:$E,Data!$B:$B,'13'!I$3,Data!$C:$C,'13'!$A$3,Data!$D:$D,'13'!$A17,Data!$F:$F,'13'!$A$2))","v":756.11490473414301},{"$f":"IF((SUMIFS(Data!$E:$E,Data!$B:$B,'13'!J$3,Data!$C:$C,'13'!$A$3,Data!$D:$D,'13'!$A17,Data!$F:$F,'13'!$A$2))=0,\"-\",SUMIFS(Data!$E:$E,Data!$B:$B,'13'!J$3,Data!$C:$C,'13'!$A$3,Data!$D:$D,'13'!$A17,Data!$F:$F,'13'!$A$2))","v":756.71639667130944},{"$f":"IF((SUMIFS(Data!$E:$E,Data!$B:$B,'13'!K$3,Data!$C:$C,'13'!$A$3,Data!$D:$D,'13'!$A17,Data!$F:$F,'13'!$A$2))=0,\"-\",SUMIFS(Data!$E:$E,Data!$B:$B,'13'!K$3,Data!$C:$C,'13'!$A$3,Data!$D:$D,'13'!$A17,Data!$F:$F,'13'!$A$2))","v":755.96288566957946}]
[{"$f":"VLOOKUP(\"Ontario\",Translation!$A$1:$C$354, Translation!A1+1, 0)","v":"Ontario"},{"$f":"IF((SUMIFS(Data!$E:$E,Data!$B:$B,'13'!B$3,Data!$C:$C,'13'!$A$3,Data!$D:$D,'13'!$A18,Data!$F:$F,'13'!$A$2))=0,\"-\",SUMIFS(Data!$E:$E,Data!$B:$B,'13'!B$3,Data!$C:$C,'13'!$A$3,Data!$D:$D,'13'!$A18,Data!$F:$F,'13'!$A$2))","v":761.33396087857795},{"$f":"IF((SUMIFS(Data!$E:$E,Data!$B:$B,'13'!C$3,Data!$C:$C,'13'!$A$3,Data!$D:$D,'13'!$A18,Data!$F:$F,'13'!$A$2))=0,\"-\",SUMIFS(Data!$E:$E,Data!$B:$B,'13'!C$3,Data!$C:$C,'13'!$A$3,Data!$D:$D,'13'!$A18,Data!$F:$F,'13'!$A$2))","v":761.66478567563649},{"$f":"IF((SUMIFS(Data!$E:$E,Data!$B:$B,'13'!D$3,Data!$C:$C,'13'!$A$3,Data!$D:$D,'13'!$A18,Data!$F:$F,'13'!$A$2))=0,\"-\",SUMIFS(Data!$E:$E,Data!$B:$B,'13'!D$3,Data!$C:$C,'13'!$A$3,Data!$D:$D,'13'!$A18,Data!$F:$F,'13'!$A$2))","v":759.49745541394475},{"$f":"IF((SUMIFS(Data!$E:$E,Data!$B:$B,'13'!E$3,Data!$C:$C,'13'!$A$3,Data!$D:$D,'13'!$A18,Data!$F:$F,'13'!$A$2))=0,\"-\",SUMIFS(Data!$E:$E,Data!$B:$B,'13'!E$3,Data!$C:$C,'13'!$A$3,Data!$D:$D,'13'!$A18,Data!$F:$F,'13'!$A$2))","v":760.76647579189569},{"$f":"IF((SUMIFS(Data!$E:$E,Data!$B:$B,'13'!F$3,Data!$C:$C,'13'!$A$3,Data!$D:$D,'13'!$A18,Data!$F:$F,'13'!$A$2))=0,\"-\",SUMIFS(Data!$E:$E,Data!$B:$B,'13'!F$3,Data!$C:$C,'13'!$A$3,Data!$D:$D,'13'!$A18,Data!$F:$F,'13'!$A$2))","v":758.68180737175237},{"$f":"IF((SUMIFS(Data!$E:$E,Data!$B:$B,'13'!G$3,Data!$C:$C,'13'!$A$3,Data!$D:$D,'13'!$A18,Data!$F:$F,'13'!$A$2))=0,\"-\",SUMIFS(Data!$E:$E,Data!$B:$B,'13'!G$3,Data!$C:$C,'13'!$A$3,Data!$D:$D,'13'!$A18,Data!$F:$F,'13'!$A$2))","v":759.84929094977201},{"$f":"IF((SUMIFS(Data!$E:$E,Data!$B:$B,'13'!H$3,Data!$C:$C,'13'!$A$3,Data!$D:$D,'13'!$A18,Data!$F:$F,'13'!$A$2))=0,\"-\",SUMIFS(Data!$E:$E,Data!$B:$B,'13'!H$3,Data!$C:$C,'13'!$A$3,Data!$D:$D,'13'!$A18,Data!$F:$F,'13'!$A$2))","v":757.77845008450049},{"$f":"IF((SUMIFS(Data!$E:$E,Data!$B:$B,'13'!I$3,Data!$C:$C,'13'!$A$3,Data!$D:$D,'13'!$A18,Data!$F:$F,'13'!$A$2))=0,\"-\",SUMIFS(Data!$E:$E,Data!$B:$B,'13'!I$3,Data!$C:$C,'13'!$A$3,Data!$D:$D,'13'!$A18,Data!$F:$F,'13'!$A$2))","v":760.01715324830627},{"$f":"IF((SUMIFS(Data!$E:$E,Data!$B:$B,'13'!J$3,Data!$C:$C,'13'!$A$3,Data!$D:$D,'13'!$A18,Data!$F:$F,'13'!$A$2))=0,\"-\",SUMIFS(Data!$E:$E,Data!$B:$B,'13'!J$3,Data!$C:$C,'13'!$A$3,Data!$D:$D,'13'!$A18,Data!$F:$F,'13'!$A$2))","v":761.33396087857795},{"$f":"IF((SUMIFS(Data!$E:$E,Data!$B:$B,'13'!K$3,Data!$C:$C,'13'!$A$3,Data!$D:$D,'13'!$A18,Data!$F:$F,'13'!$A$2))=0,\"-\",SUMIFS(Data!$E:$E,Data!$B:$B,'13'!K$3,Data!$C:$C,'13'!$A$3,Data!$D:$D,'13'!$A18,Data!$F:$F,'13'!$A$2))","v":758.68180737175237}]
[{"$f":"VLOOKUP(\"Manitoba\",Translation!$A$1:$C$354, Translation!A1+1, 0)","v":"Manitoba"},{"$f":"IF((SUMIFS(Data!$E:$E,Data!$B:$B,'13'!B$3,Data!$C:$C,'13'!$A$3,Data!$D:$D,'13'!$A19,Data!$F:$F,'13'!$A$2))=0,\"-\",SUMIFS(Data!$E:$E,Data!$B:$B,'13'!B$3,Data!$C:$C,'13'!$A$3,Data!$D:$D,'13'!$A19,Data!$F:$F,'13'!$A$2))","v":753.05673469016187},{"$f":"IF((SUMIFS(Data!$E:$E,Data!$B:$B,'13'!C$3,Data!$C:$C,'13'!$A$3,Data!$D:$D,'13'!$A19,Data!$F:$F,'13'!$A$2))=0,\"-\",SUMIFS(Data!$E:$E,Data!$B:$B,'13'!C$3,Data!$C:$C,'13'!$A$3,Data!$D:$D,'13'!$A19,Data!$F:$F,'13'!$A$2))","v":754.32399483063386},{"$f":"IF((SUMIFS(Data!$E:$E,Data!$B:$B,'13'!D$3,Data!$C:$C,'13'!$A$3,Data!$D:$D,'13'!$A19,Data!$F:$F,'13'!$A$2))=0,\"-\",SUMIFS(Data!$E:$E,Data!$B:$B,'13'!D$3,Data!$C:$C,'13'!$A$3,Data!$D:$D,'13'!$A19,Data!$F:$F,'13'!$A$2))","v":753.31098239435437},{"$f":"IF((SUMIFS(Data!$E:$E,Data!$B:$B,'13'!E$3,Data!$C:$C,'13'!$A$3,Data!$D:$D,'13'!$A19,Data!$F:$F,'13'!$A$2))=0,\"-\",SUMIFS(Data!$E:$E,Data!$B:$B,'13'!E$3,Data!$C:$C,'13'!$A$3,Data!$D:$D,'13'!$A19,Data!$F:$F,'13'!$A$2))","v":753.91033374946483},{"$f":"IF((SUMIFS(Data!$E:$E,Data!$B:$B,'13'!F$3,Data!$C:$C,'13'!$A$3,Data!$D:$D,'13'!$A19,Data!$F:$F,'13'!$A$2))=0,\"-\",SUMIFS(Data!$E:$E,Data!$B:$B,'13'!F$3,Data!$C:$C,'13'!$A$3,Data!$D:$D,'13'!$A19,Data!$F:$F,'13'!$A$2))","v":752.72506517544389},{"$f":"IF((SUMIFS(Data!$E:$E,Data!$B:$B,'13'!G$3,Data!$C:$C,'13'!$A$3,Data!$D:$D,'13'!$A19,Data!$F:$F,'13'!$A$2))=0,\"-\",SUMIFS(Data!$E:$E,Data!$B:$B,'13'!G$3,Data!$C:$C,'13'!$A$3,Data!$D:$D,'13'!$A19,Data!$F:$F,'13'!$A$2))","v":752.02608567600294},{"$f":"IF((SUMIFS(Data!$E:$E,Data!$B:$B,'13'!H$3,Data!$C:$C,'13'!$A$3,Data!$D:$D,'13'!$A19,Data!$F:$F,'13'!$A$2))=0,\"-\",SUMIFS(Data!$E:$E,Data!$B:$B,'13'!H$3,Data!$C:$C,'13'!$A$3,Data!$D:$D,'13'!$A19,Data!$F:$F,'13'!$A$2))","v":751.90771919241104},{"$f":"IF((SUMIFS(Data!$E:$E,Data!$B:$B,'13'!I$3,Data!$C:$C,'13'!$A$3,Data!$D:$D,'13'!$A19,Data!$F:$F,'13'!$A$2))=0,\"-\",SUMIFS(Data!$E:$E,Data!$B:$B,'13'!I$3,Data!$C:$C,'13'!$A$3,Data!$D:$D,'13'!$A19,Data!$F:$F,'13'!$A$2))","v":750.68648975402243},{"$f":"IF((SUMIFS(Data!$E:$E,Data!$B:$B,'13'!J$3,Data!$C:$C,'13'!$A$3,Data!$D:$D,'13'!$A19,Data!$F:$F,'13'!$A$2))=0,\"-\",SUMIFS(Data!$E:$E,Data!$B:$B,'13'!J$3,Data!$C:$C,'13'!$A$3,Data!$D:$D,'13'!$A19,Data!$F:$F,'13'!$A$2))","v":753.05673469016187},{"$f":"IF((SUMIFS(Data!$E:$E,Data!$B:$B,'13'!K$3,Data!$C:$C,'13'!$A$3,Data!$D:$D,'13'!$A19,Data!$F:$F,'13'!$A$2))=0,\"-\",SUMIFS(Data!$E:$E,Data!$B:$B,'13'!K$3,Data!$C:$C,'13'!$A$3,Data!$D:$D,'13'!$A19,Data!$F:$F,'13'!$A$2))","v":752.72506517544389}]
[{"$f":"VLOOKUP(\"Saskatchewan\",Translation!$A$1:$C$354, Translation!A1+1, 0)","v":"Saskatchewan"},{"$f":"IF((SUMIFS(Data!$E:$E,Data!$B:$B,'13'!B$3,Data!$C:$C,'13'!$A$3,Data!$D:$D,'13'!$A20,Data!$F:$F,'13'!$A$2))=0,\"-\",SUMIFS(Data!$E:$E,Data!$B:$B,'13'!B$3,Data!$C:$C,'13'!$A$3,Data!$D:$D,'13'!$A20,Data!$F:$F,'13'!$A$2))","v":752.29758051783676},{"$f":"IF((SUMIFS(Data!$E:$E,Data!$B:$B,'13'!C$3,Data!$C:$C,'13'!$A$3,Data!$D:$D,'13'!$A20,Data!$F:$F,'13'!$A$2))=0,\"-\",SUMIFS(Data!$E:$E,Data!$B:$B,'13'!C$3,Data!$C:$C,'13'!$A$3,Data!$D:$D,'13'!$A20,Data!$F:$F,'13'!$A$2))","v":752.54562061885053},{"$f":"IF((SUMIFS(Data!$E:$E,Data!$B:$B,'13'!D$3,Data!$C:$C,'13'!$A$3,Data!$D:$D,'13'!$A20,Data!$F:$F,'13'!$A$2))=0,\"-\",SUMIFS(Data!$E:$E,Data!$B:$B,'13'!D$3,Data!$C:$C,'13'!$A$3,Data!$D:$D,'13'!$A20,Data!$F:$F,'13'!$A$2))","v":752.48602998692991},{"$f":"IF((SUMIFS(Data!$E:$E,Data!$B:$B,'13'!E$3,Data!$C:$C,'13'!$A$3,Data!$D:$D,'13'!$A20,Data!$F:$F,'13'!$A$2))=0,\"-\",SUMIFS(Data!$E:$E,Data!$B:$B,'13'!E$3,Data!$C:$C,'13'!$A$3,Data!$D:$D,'13'!$A20,Data!$F:$F,'13'!$A$2))","v":752.22975819066357},{"$f":"IF((SUMIFS(Data!$E:$E,Data!$B:$B,'13'!F$3,Data!$C:$C,'13'!$A$3,Data!$D:$D,'13'!$A20,Data!$F:$F,'13'!$A$2))=0,\"-\",SUMIFS(Data!$E:$E,Data!$B:$B,'13'!F$3,Data!$C:$C,'13'!$A$3,Data!$D:$D,'13'!$A20,Data!$F:$F,'13'!$A$2))","v":753.05274914141296},{"$f":"IF((SUMIFS(Data!$E:$E,Data!$B:$B,'13'!G$3,Data!$C:$C,'13'!$A$3,Data!$D:$D,'13'!$A20,Data!$F:$F,'13'!$A$2))=0,\"-\",SUMIFS(Data!$E:$E,Data!$B:$B,'13'!G$3,Data!$C:$C,'13'!$A$3,Data!$D:$D,'13'!$A20,Data!$F:$F,'13'!$A$2))","v":742.0227212708071},{"$f":"IF((SUMIFS(Data!$E:$E,Data!$B:$B,'13'!H$3,Data!$C:$C,'13'!$A$3,Data!$D:$D,'13'!$A20,Data!$F:$F,'13'!$A$2))=0,\"-\",SUMIFS(Data!$E:$E,Data!$B:$B,'13'!H$3,Data!$C:$C,'13'!$A$3,Data!$D:$D,'13'!$A20,Data!$F:$F,'13'!$A$2))","v":752.27842005417892},{"$f":"IF((SUMIFS(Data!$E:$E,Data!$B:$B,'13'!I$3,Data!$C:$C,'13'!$A$3,Data!$D:$D,'13'!$A20,Data!$F:$F,'13'!$A$2))=0,\"-\",SUMIFS(Data!$E:$E,Data!$B:$B,'13'!I$3,Data!$C:$C,'13'!$A$3,Data!$D:$D,'13'!$A20,Data!$F:$F,'13'!$A$2))","v":750.7194045888541},{"$f":"IF((SUMIFS(Data!$E:$E,Data!$B:$B,'13'!J$3,Data!$C:$C,'13'!$A$3,Data!$D:$D,'13'!$A20,Data!$F:$F,'13'!$A$2))=0,\"-\",SUMIFS(Data!$E:$E,Data!$B:$B,'13'!J$3,Data!$C:$C,'13'!$A$3,Data!$D:$D,'13'!$A20,Data!$F:$F,'13'!$A$2))","v":752.29758051783676},{"$f":"IF((SUMIFS(Data!$E:$E,Data!$B:$B,'13'!K$3,Data!$C:$C,'13'!$A$3,Data!$D:$D,'13'!$A20,Data!$F:$F,'13'!$A$2))=0,\"-\",SUMIFS(Data!$E:$E,Data!$B:$B,'13'!K$3,Data!$C:$C,'13'!$A$3,Data!$D:$D,'13'!$A20,Data!$F:$F,'13'!$A$2))","v":753.05274914141296}]
[{"$f":"VLOOKUP(\"Alberta\",Translation!$A$1:$C$354, Translation!A1+1, 0)","v":"Alberta"},{"$f":"IF((SUMIFS(Data!$E:$E,Data!$B:$B,'13'!B$3,Data!$C:$C,'13'!$A$3,Data!$D:$D,'13'!$A21,Data!$F:$F,'13'!$A$2))=0,\"-\",SUMIFS(Data!$E:$E,Data!$B:$B,'13'!B$3,Data!$C:$C,'13'!$A$3,Data!$D:$D,'13'!$A21,Data!$F:$F,'13'!$A$2))","v":749.49107519756501},{"$f":"IF((SUMIFS(Data!$E:$E,Data!$B:$B,'13'!C$3,Data!$C:$C,'13'!$A$3,Data!$D:$D,'13'!$A21,Data!$F:$F,'13'!$A$2))=0,\"-\",SUMIFS(Data!$E:$E,Data!$B:$B,'13'!C$3,Data!$C:$C,'13'!$A$3,Data!$D:$D,'13'!$A21,Data!$F:$F,'13'!$A$2))","v":750.02005795525918},{"$f":"IF((SUMIFS(Data!$E:$E,Data!$B:$B,'13'!D$3,Data!$C:$C,'13'!$A$3,Data!$D:$D,'13'!$A21,Data!$F:$F,'13'!$A$2))=0,\"-\",SUMIFS(Data!$E:$E,Data!$B:$B,'13'!D$3,Data!$C:$C,'13'!$A$3,Data!$D:$D,'13'!$A21,Data!$F:$F,'13'!$A$2))","v":752.76045967531377},{"$f":"IF((SUMIFS(Data!$E:$E,Data!$B:$B,'13'!E$3,Data!$C:$C,'13'!$A$3,Data!$D:$D,'13'!$A21,Data!$F:$F,'13'!$A$2))=0,\"-\",SUMIFS(Data!$E:$E,Data!$B:$B,'13'!E$3,Data!$C:$C,'13'!$A$3,Data!$D:$D,'13'!$A21,Data!$F:$F,'13'!$A$2))","v":749.13432364459322},{"$f":"IF((SUMIFS(Data!$E:$E,Data!$B:$B,'13'!F$3,Data!$C:$C,'13'!$A$3,Data!$D:$D,'13'!$A21,Data!$F:$F,'13'!$A$2))=0,\"-\",SUMIFS(Data!$E:$E,Data!$B:$B,'13'!F$3,Data!$C:$C,'13'!$A$3,Data!$D:$D,'13'!$A21,Data!$F:$F,'13'!$A$2))","v":747.10773154062019},{"$f":"IF((SUMIFS(Data!$E:$E,Data!$B:$B,'13'!G$3,Data!$C:$C,'13'!$A$3,Data!$D:$D,'13'!$A21,Data!$F:$F,'13'!$A$2))=0,\"-\",SUMIFS(Data!$E:$E,Data!$B:$B,'13'!G$3,Data!$C:$C,'13'!$A$3,Data!$D:$D,'13'!$A21,Data!$F:$F,'13'!$A$2))","v":749.10584102189921},{"$f":"IF((SUMIFS(Data!$E:$E,Data!$B:$B,'13'!H$3,Data!$C:$C,'13'!$A$3,Data!$D:$D,'13'!$A21,Data!$F:$F,'13'!$A$2))=0,\"-\",SUMIFS(Data!$E:$E,Data!$B:$B,'13'!H$3,Data!$C:$C,'13'!$A$3,Data!$D:$D,'13'!$A21,Data!$F:$F,'13'!$A$2))","v":749.84007533240674},{"$f":"IF((SUMIFS(Data!$E:$E,Data!$B:$B,'13'!I$3,Data!$C:$C,'13'!$A$3,Data!$D:$D,'13'!$A21,Data!$F:$F,'13'!$A$2))=0,\"-\",SUMIFS(Data!$E:$E,Data!$B:$B,'13'!I$3,Data!$C:$C,'13'!$A$3,Data!$D:$D,'13'!$A21,Data!$F:$F,'13'!$A$2))","v":748.07940134401645},{"$f":"IF((SUMIFS(Data!$E:$E,Data!$B:$B,'13'!J$3,Data!$C:$C,'13'!$A$3,Data!$D:$D,'13'!$A21,Data!$F:$F,'13'!$A$2))=0,\"-\",SUMIFS(Data!$E:$E,Data!$B:$B,'13'!J$3,Data!$C:$C,'13'!$A$3,Data!$D:$D,'13'!$A21,Data!$F:$F,'13'!$A$2))","v":749.49107519756501},{"$f":"IF((SUMIFS(Data!$E:$E,Data!$B:$B,'13'!K$3,Data!$C:$C,'13'!$A$3,Data!$D:$D,'13'!$A21,Data!$F:$F,'13'!$A$2))=0,\"-\",SUMIFS(Data!$E:$E,Data!$B:$B,'13'!K$3,Data!$C:$C,'13'!$A$3,Data!$D:$D,'13'!$A21,Data!$F:$F,'13'!$A$2))","v":747.10773154062019}]
[{"$f":"VLOOKUP(\"British Columbia\",Translation!$A$1:$C$354, Translation!A1+1, 0)","v":"Colombie-Britannique"},{"$f":"IF((SUMIFS(Data!$E:$E,Data!$B:$B,'13'!B$3,Data!$C:$C,'13'!$A$3,Data!$D:$D,'13'!$A22,Data!$F:$F,'13'!$A$2))=0,\"-\",SUMIFS(Data!$E:$E,Data!$B:$B,'13'!B$3,Data!$C:$C,'13'!$A$3,Data!$D:$D,'13'!$A22,Data!$F:$F,'13'!$A$2))","v":756.79361502831648},{"$f":"IF((SUMIFS(Data!$E:$E,Data!$B:$B,'13'!C$3,Data!$C:$C,'13'!$A$3,Data!$D:$D,'13'!$A22,Data!$F:$F,'13'!$A$2))=0,\"-\",SUMIFS(Data!$E:$E,Data!$B:$B,'13'!C$3,Data!$C:$C,'13'!$A$3,Data!$D:$D,'13'!$A22,Data!$F:$F,'13'!$A$2))","v":757.62721647760691},{"$f":"IF((SUMIFS(Data!$E:$E,Data!$B:$B,'13'!D$3,Data!$C:$C,'13'!$A$3,Data!$D:$D,'13'!$A22,Data!$F:$F,'13'!$A$2))=0,\"-\",SUMIFS(Data!$E:$E,Data!$B:$B,'13'!D$3,Data!$C:$C,'13'!$A$3,Data!$D:$D,'13'!$A22,Data!$F:$F,'13'!$A$2))","v":757.70264961584758},{"$f":"IF((SUMIFS(Data!$E:$E,Data!$B:$B,'13'!E$3,Data!$C:$C,'13'!$A$3,Data!$D:$D,'13'!$A22,Data!$F:$F,'13'!$A$2))=0,\"-\",SUMIFS(Data!$E:$E,Data!$B:$B,'13'!E$3,Data!$C:$C,'13'!$A$3,Data!$D:$D,'13'!$A22,Data!$F:$F,'13'!$A$2))","v":753.61457167176945},{"$f":"IF((SUMIFS(Data!$E:$E,Data!$B:$B,'13'!F$3,Data!$C:$C,'13'!$A$3,Data!$D:$D,'13'!$A22,Data!$F:$F,'13'!$A$2))=0,\"-\",SUMIFS(Data!$E:$E,Data!$B:$B,'13'!F$3,Data!$C:$C,'13'!$A$3,Data!$D:$D,'13'!$A22,Data!$F:$F,'13'!$A$2))","v":758.38641620528517},{"$f":"IF((SUMIFS(Data!$E:$E,Data!$B:$B,'13'!G$3,Data!$C:$C,'13'!$A$3,Data!$D:$D,'13'!$A22,Data!$F:$F,'13'!$A$2))=0,\"-\",SUMIFS(Data!$E:$E,Data!$B:$B,'13'!G$3,Data!$C:$C,'13'!$A$3,Data!$D:$D,'13'!$A22,Data!$F:$F,'13'!$A$2))","v":753.25429900106724},{"$f":"IF((SUMIFS(Data!$E:$E,Data!$B:$B,'13'!H$3,Data!$C:$C,'13'!$A$3,Data!$D:$D,'13'!$A22,Data!$F:$F,'13'!$A$2))=0,\"-\",SUMIFS(Data!$E:$E,Data!$B:$B,'13'!H$3,Data!$C:$C,'13'!$A$3,Data!$D:$D,'13'!$A22,Data!$F:$F,'13'!$A$2))","v":754.74136513572512},{"$f":"IF((SUMIFS(Data!$E:$E,Data!$B:$B,'13'!I$3,Data!$C:$C,'13'!$A$3,Data!$D:$D,'13'!$A22,Data!$F:$F,'13'!$A$2))=0,\"-\",SUMIFS(Data!$E:$E,Data!$B:$B,'13'!I$3,Data!$C:$C,'13'!$A$3,Data!$D:$D,'13'!$A22,Data!$F:$F,'13'!$A$2))","v":752.89647412872171},{"$f":"IF((SUMIFS(Data!$E:$E,Data!$B:$B,'13'!J$3,Data!$C:$C,'13'!$A$3,Data!$D:$D,'13'!$A22,Data!$F:$F,'13'!$A$2))=0,\"-\",SUMIFS(Data!$E:$E,Data!$B:$B,'13'!J$3,Data!$C:$C,'13'!$A$3,Data!$D:$D,'13'!$A22,Data!$F:$F,'13'!$A$2))","v":756.79361502831648},{"$f":"IF((SUMIFS(Data!$E:$E,Data!$B:$B,'13'!K$3,Data!$C:$C,'13'!$A$3,Data!$D:$D,'13'!$A22,Data!$F:$F,'13'!$A$2))=0,\"-\",SUMIFS(Data!$E:$E,Data!$B:$B,'13'!K$3,Data!$C:$C,'13'!$A$3,Data!$D:$D,'13'!$A22,Data!$F:$F,'13'!$A$2))","v":758.38641620528517}]
[{"$f":"VLOOKUP(\"Territories\",Translation!$A$1:$C$354, Translation!A1+1, 0)","v":"Territoires"},{"$f":"IF((SUMIFS(Data!$E:$E,Data!$B:$B,'13'!B$3,Data!$C:$C,'13'!$A$3,Data!$D:$D,'13'!$A23,Data!$F:$F,'13'!$A$2))=0,\"-\",SUMIFS(Data!$E:$E,Data!$B:$B,'13'!B$3,Data!$C:$C,'13'!$A$3,Data!$D:$D,'13'!$A23,Data!$F:$F,'13'!$A$2))","v":759.96658272370496},{"$f":"IF((SUMIFS(Data!$E:$E,Data!$B:$B,'13'!C$3,Data!$C:$C,'13'!$A$3,Data!$D:$D,'13'!$A23,Data!$F:$F,'13'!$A$2))=0,\"-\",SUMIFS(Data!$E:$E,Data!$B:$B,'13'!C$3,Data!$C:$C,'13'!$A$3,Data!$D:$D,'13'!$A23,Data!$F:$F,'13'!$A$2))","v":726.32674910514629},{"$f":"IF((SUMIFS(Data!$E:$E,Data!$B:$B,'13'!D$3,Data!$C:$C,'13'!$A$3,Data!$D:$D,'13'!$A23,Data!$F:$F,'13'!$A$2))=0,\"-\",SUMIFS(Data!$E:$E,Data!$B:$B,'13'!D$3,Data!$C:$C,'13'!$A$3,Data!$D:$D,'13'!$A23,Data!$F:$F,'13'!$A$2))","v":737.19208572069772},{"$f":"IF((SUMIFS(Data!$E:$E,Data!$B:$B,'13'!E$3,Data!$C:$C,'13'!$A$3,Data!$D:$D,'13'!$A23,Data!$F:$F,'13'!$A$2))=0,\"-\",SUMIFS(Data!$E:$E,Data!$B:$B,'13'!E$3,Data!$C:$C,'13'!$A$3,Data!$D:$D,'13'!$A23,Data!$F:$F,'13'!$A$2))","v":753.5759312864385},{"$f":"IF((SUMIFS(Data!$E:$E,Data!$B:$B,'13'!F$3,Data!$C:$C,'13'!$A$3,Data!$D:$D,'13'!$A23,Data!$F:$F,'13'!$A$2))=0,\"-\",SUMIFS(Data!$E:$E,Data!$B:$B,'13'!F$3,Data!$C:$C,'13'!$A$3,Data!$D:$D,'13'!$A23,Data!$F:$F,'13'!$A$2))","v":748.17265756468294},{"$f":"IF((SUMIFS(Data!$E:$E,Data!$B:$B,'13'!G$3,Data!$C:$C,'13'!$A$3,Data!$D:$D,'13'!$A23,Data!$F:$F,'13'!$A$2))=0,\"-\",SUMIFS(Data!$E:$E,Data!$B:$B,'13'!G$3,Data!$C:$C,'13'!$A$3,Data!$D:$D,'13'!$A23,Data!$F:$F,'13'!$A$2))","v":759.04845136376844},{"$f":"IF((SUMIFS(Data!$E:$E,Data!$B:$B,'13'!H$3,Data!$C:$C,'13'!$A$3,Data!$D:$D,'13'!$A23,Data!$F:$F,'13'!$A$2))=0,\"-\",SUMIFS(Data!$E:$E,Data!$B:$B,'13'!H$3,Data!$C:$C,'13'!$A$3,Data!$D:$D,'13'!$A23,Data!$F:$F,'13'!$A$2))","v":747.24986715571504},{"$f":"IF((SUMIFS(Data!$E:$E,Data!$B:$B,'13'!I$3,Data!$C:$C,'13'!$A$3,Data!$D:$D,'13'!$A23,Data!$F:$F,'13'!$A$2))=0,\"-\",SUMIFS(Data!$E:$E,Data!$B:$B,'13'!I$3,Data!$C:$C,'13'!$A$3,Data!$D:$D,'13'!$A23,Data!$F:$F,'13'!$A$2))","v":750.098132479328},{"$f":"IF((SUMIFS(Data!$E:$E,Data!$B:$B,'13'!J$3,Data!$C:$C,'13'!$A$3,Data!$D:$D,'13'!$A23,Data!$F:$F,'13'!$A$2))=0,\"-\",SUMIFS(Data!$E:$E,Data!$B:$B,'13'!J$3,Data!$C:$C,'13'!$A$3,Data!$D:$D,'13'!$A23,Data!$F:$F,'13'!$A$2))","v":759.96658272370496},{"$f":"IF((SUMIFS(Data!$E:$E,Data!$B:$B,'13'!K$3,Data!$C:$C,'13'!$A$3,Data!$D:$D,'13'!$A23,Data!$F:$F,'13'!$A$2))=0,\"-\",SUMIFS(Data!$E:$E,Data!$B:$B,'13'!K$3,Data!$C:$C,'13'!$A$3,Data!$D:$D,'13'!$A23,Data!$F:$F,'13'!$A$2))","v":748.17265756468294}]
[{"$f":"VLOOKUP(\"Distribution based on loan amounts, not number of loans.\",Translation!$A$1:$C$354, Translation!A1+1, 0)","v":"La répartition est établie d'après le montant, plutôt que le nombre de prêts assurés."}]
[{"$f":"VLOOKUP(\"The sum of all breakdown categories may not add up to 100 due to rounding.\",Translation!$A$1:$C$354, Translation!A1+1, 0)","v":"Les chiffres ayant été arrondis, il se peut que la somme de l'ensemble des catégories n'égale pas 100 %."}]
[]
[{"$f":"VLOOKUP(\"Loans insured during period by credit score at origination (%)\",Translation!$A$1:$C$354, Translation!A1+1, 0)","v":"Prêts hypothécaires assurés au cours de la période selon le pointage de crédit à l’initiation (%)"}]
[{"$f":"VLOOKUP(\"PORTFOLIO\",Translation!$A$1:$C$354, Translation!A1+1, 0)","v":"ASSURANCE DE PORTEFEUILLE"},{"$f":"VLOOKUP(\"Q1 2020\",Translation!$A$1:$C$354, Translation!$A$1+1, 0)","v":"T1 2020"},{"$f":"VLOOKUP(\"Q4 2019\",Translation!$A$1:$C$354, Translation!$A$1+1, 0)","v":"T4 2019"},{"$f":"VLOOKUP(\"Q3 2019\",Translation!$A$1:$C$354, Translation!$A$1+1, 0)","v":"T3 2019"},{"$f":"VLOOKUP(\"Q2 2019\",Translation!$A$1:$C$354, Translation!$A$1+1, 0)","v":"T2 2019"},{"$f":"VLOOKUP(\"Q1 2019\",Translation!$A$1:$C$354, Translation!$A$1+1, 0)","v":"T1 2019"},{"$f":"VLOOKUP(\"Q4 2018\",Translation!$A$1:$C$354, Translation!$A$1+1, 0)","v":"T4 2018"},{"$f":"VLOOKUP(\"Q3 2018\",Translation!$A$1:$C$354, Translation!$A$1+1, 0)","v":"T3 2018"},{"$f":"VLOOKUP(\"Q2 2018\",Translation!$A$1:$C$354, Translation!$A$1+1, 0)","v":"T2 2018"},{"$f":"VLOOKUP(\"YTD 2020\",Translation!$A$1:$C$354, Translation!$A$1+1, 0)","v":"Cumul 2020"},{"$f":"VLOOKUP(\"YTD 2019\",Translation!$A$1:$C$354, Translation!$A$1+1, 0)","v":"Cumul 2019"}]
[{"$f":"VLOOKUP(\"No credit score\",Translation!$A$1:$C$354, Translation!A1+1, 0)","v":"Aucun pointage de crédit"},{"$f":"SUMIFS(Data!$E:$E,Data!$B:$B,'13'!B$28,Data!$C:$C,'13'!$A$28,Data!$D:$D,'13'!$A29,Data!$F:$F,'13'!$A$27)","v":1.8608727110041499E-2},{"$f":"SUMIFS(Data!$E:$E,Data!$B:$B,'13'!C$28,Data!$C:$C,'13'!$A$28,Data!$D:$D,'13'!$A29,Data!$F:$F,'13'!$A$27)","v":0},{"$f":"SUMIFS(Data!$E:$E,Data!$B:$B,'13'!D$28,Data!$C:$C,'13'!$A$28,Data!$D:$D,'13'!$A29,Data!$F:$F,'13'!$A$27)","v":0.19164162589833561},{"$f":"SUMIFS(Data!$E:$E,Data!$B:$B,'13'!E$28,Data!$C:$C,'13'!$A$28,Data!$D:$D,'13'!$A29,Data!$F:$F,'13'!$A$27)","v":2.4270369332083401E-3},{"$f":"SUMIFS(Data!$E:$E,Data!$B:$B,'13'!F$28,Data!$C:$C,'13'!$A$28,Data!$D:$D,'13'!$A29,Data!$F:$F,'13'!$A$27)","v":1.191686364917658E-2},{"$f":"SUMIFS(Data!$E:$E,Data!$B:$B,'13'!G$28,Data!$C:$C,'13'!$A$28,Data!$D:$D,'13'!$A29,Data!$F:$F,'13'!$A$27)","v":9.6493126081968139E-2},{"$f":"SUMIFS(Data!$E:$E,Data!$B:$B,'13'!H$28,Data!$C:$C,'13'!$A$28,Data!$D:$D,'13'!$A29,Data!$F:$F,'13'!$A$27)","v":8.253139799681776E-2},{"$f":"SUMIFS(Data!$E:$E,Data!$B:$B,'13'!I$28,Data!$C:$C,'13'!$A$28,Data!$D:$D,'13'!$A29,Data!$F:$F,'13'!$A$27)","v":4.4899649998948056E-2},{"$f":"SUMIFS(Data!$E:$E,Data!$B:$B,'13'!J$28,Data!$C:$C,'13'!$A$28,Data!$H:$H,'13'!$A29,Data!$F:$F,'13'!$A$27)","v":1.8608727110041499E-2},{"$f":"SUMIFS(Data!$E:$E,Data!$B:$B,'13'!K$28,Data!$C:$C,'13'!$A$28,Data!$H:$H,'13'!$A29,Data!$F:$F,'13'!$A$27)","v":1.191686364917658E-2}]
[" < 600",{"$f":"SUMIFS(Data!$E:$E,Data!$B:$B,'13'!B$28,Data!$C:$C,'13'!$A$28,Data!$D:$D,'13'!$A30,Data!$F:$F,'13'!$A$27)","v":6.2577550573976001E-2},{"$f":"SUMIFS(Data!$E:$E,Data!$B:$B,'13'!C$28,Data!$C:$C,'13'!$A$28,Data!$H:$H,'13'!$A30,Data!$F:$F,'13'!$A$27)","v":0},{"$f":"SUMIFS(Data!$E:$E,Data!$B:$B,'13'!D$28,Data!$C:$C,'13'!$A$28,Data!$H:$H,'13'!$A30,Data!$F:$F,'13'!$A$27)","v":0.18528882109666217},{"$f":"SUMIFS(Data!$E:$E,Data!$B:$B,'13'!E$28,Data!$C:$C,'13'!$A$28,Data!$H:$H,'13'!$A30,Data!$F:$F,'13'!$A$27)","v":9.125018426729592E-2},{"$f":"SUMIFS(Data!$E:$E,Data!$B:$B,'13'!F$28,Data!$C:$C,'13'!$A$28,Data!$H:$H,'13'!$A30,Data!$F:$F,'13'!$A$27)","v":0.55269456548326412},{"$f":"SUMIFS(Data!$E:$E,Data!$B:$B,'13'!G$28,Data!$C:$C,'13'!$A$28,Data!$H:$H,'13'!$A30,Data!$F:$F,'13'!$A$27)","v":0.27368714288820845},{"$f":"SUMIFS(Data!$E:$E,Data!$B:$B,'13'!H$28,Data!$C:$C,'13'!$A$28,Data!$H:$H,'13'!$A30,Data!$F:$F,'13'!$A$27)","v":2.8424305890928422E-2},{"$f":"SUMIFS(Data!$E:$E,Data!$B:$B,'13'!I$28,Data!$C:$C,'13'!$A$28,Data!$H:$H,'13'!$A30,Data!$F:$F,'13'!$A$27)","v":6.0285195164853235E-2},{"$f":"SUMIFS(Data!$E:$E,Data!$B:$B,'13'!J$28,Data!$C:$C,'13'!$A$28,Data!$H:$H,'13'!$A30,Data!$F:$F,'13'!$A$27)","v":6.2577550573976001E-2},{"$f":"SUMIFS(Data!$E:$E,Data!$B:$B,'13'!K$28,Data!$C:$C,'13'!$A$28,Data!$H:$H,'13'!$A30,Data!$F:$F,'13'!$A$27)","v":0.55269456548326412}]
[" >= 600 < 680",{"$f":"SUMIFS(Data!$E:$E,Data!$B:$B,'13'!B$28,Data!$C:$C,'13'!$A$28,Data!$D:$D,'13'!$A31,Data!$F:$F,'13'!$A$27)","v":2.0597321081412794},{"$f":"SUMIFS(Data!$E:$E,Data!$B:$B,'13'!C$28,Data!$C:$C,'13'!$A$28,Data!$H:$H,'13'!$A31,Data!$F:$F,'13'!$A$27)","v":1.663212982265911},{"$f":"SUMIFS(Data!$E:$E,Data!$B:$B,'13'!D$28,Data!$C:$C,'13'!$A$28,Data!$H:$H,'13'!$A31,Data!$F:$F,'13'!$A$27)","v":2.5744844052811597},{"$f":"SUMIFS(Data!$E:$E,Data!$B:$B,'13'!E$28,Data!$C:$C,'13'!$A$28,Data!$H:$H,'13'!$A31,Data!$F:$F,'13'!$A$27)","v":1.761257548494406},{"$f":"SUMIFS(Data!$E:$E,Data!$B:$B,'13'!F$28,Data!$C:$C,'13'!$A$28,Data!$H:$H,'13'!$A31,Data!$F:$F,'13'!$A$27)","v":5.9331733417711119},{"$f":"SUMIFS(Data!$E:$E,Data!$B:$B,'13'!G$28,Data!$C:$C,'13'!$A$28,Data!$H:$H,'13'!$A31,Data!$F:$F,'13'!$A$27)","v":3.0712700917511424},{"$f":"SUMIFS(Data!$E:$E,Data!$B:$B,'13'!H$28,Data!$C:$C,'13'!$A$28,Data!$H:$H,'13'!$A31,Data!$F:$F,'13'!$A$27)","v":3.1417231664564684},{"$f":"SUMIFS(Data!$E:$E,Data!$B:$B,'13'!I$28,Data!$C:$C,'13'!$A$28,Data!$H:$H,'13'!$A31,Data!$F:$F,'13'!$A$27)","v":3.3118533499187719},{"$f":"SUMIFS(Data!$E:$E,Data!$B:$B,'13'!J$28,Data!$C:$C,'13'!$A$28,Data!$H:$H,'13'!$A31,Data!$F:$F,'13'!$A$27)","v":2.0597321081412794},{"$f":"SUMIFS(Data!$E:$E,Data!$B:$B,'13'!K$28,Data!$C:$C,'13'!$A$28,Data!$H:$H,'13'!$A31,Data!$F:$F,'13'!$A$27)","v":5.9331733417711119}]
[" >= 680 < 700",{"$f":"SUMIFS(Data!$E:$E,Data!$B:$B,'13'!B$28,Data!$C:$C,'13'!$A$28,Data!$D:$D,'13'!$A32,Data!$F:$F,'13'!$A$27)","v":2.9287427241963906},{"$f":"SUMIFS(Data!$E:$E,Data!$B:$B,'13'!C$28,Data!$C:$C,'13'!$A$28,Data!$H:$H,'13'!$A32,Data!$F:$F,'13'!$A$27)","v":2.1981944601496974},{"$f":"SUMIFS(Data!$E:$E,Data!$B:$B,'13'!D$28,Data!$C:$C,'13'!$A$28,Data!$H:$H,'13'!$A32,Data!$F:$F,'13'!$A$27)","v":2.8586658228734025},{"$f":"SUMIFS(Data!$E:$E,Data!$B:$B,'13'!E$28,Data!$C:$C,'13'!$A$28,Data!$H:$H,'13'!$A32,Data!$F:$F,'13'!$A$27)","v":1.7910602177523014},{"$f":"SUMIFS(Data!$E:$E,Data!$B:$B,'13'!F$28,Data!$C:$C,'13'!$A$28,Data!$H:$H,'13'!$A32,Data!$F:$F,'13'!$A$27)","v":3.2526825349100328},{"$f":"SUMIFS(Data!$E:$E,Data!$B:$B,'13'!G$28,Data!$C:$C,'13'!$A$28,Data!$H:$H,'13'!$A32,Data!$F:$F,'13'!$A$27)","v":2.7908993596325642},{"$f":"SUMIFS(Data!$E:$E,Data!$B:$B,'13'!H$28,Data!$C:$C,'13'!$A$28,Data!$H:$H,'13'!$A32,Data!$F:$F,'13'!$A$27)","v":2.811846036615234},{"$f":"SUMIFS(Data!$E:$E,Data!$B:$B,'13'!I$28,Data!$C:$C,'13'!$A$28,Data!$H:$H,'13'!$A32,Data!$F:$F,'13'!$A$27)","v":3.1054163238965322},{"$f":"SUMIFS(Data!$E:$E,Data!$B:$B,'13'!J$28,Data!$C:$C,'13'!$A$28,Data!$H:$H,'13'!$A32,Data!$F:$F,'13'!$A$27)","v":2.9287427241963906},{"$f":"SUMIFS(Data!$E:$E,Data!$B:$B,'13'!K$28,Data!$C:$C,'13'!$A$28,Data!$H:$H,'13'!$A32,Data!$F:$F,'13'!$A$27)","v":3.2526825349100328}]
[" >= 700 < 750",{"$f":"SUMIFS(Data!$E:$E,Data!$B:$B,'13'!B$28,Data!$C:$C,'13'!$A$28,Data!$D:$D,'13'!$A33,Data!$F:$F,'13'!$A$27)","v":17.84028293842383},{"$f":"SUMIFS(Data!$E:$E,Data!$B:$B,'13'!C$28,Data!$C:$C,'13'!$A$28,Data!$H:$H,'13'!$A33,Data!$F:$F,'13'!$A$27)","v":14.059061177139702},{"$f":"SUMIFS(Data!$E:$E,Data!$B:$B,'13'!D$28,Data!$C:$C,'13'!$A$28,Data!$H:$H,'13'!$A33,Data!$F:$F,'13'!$A$27)","v":15.62787266208414},{"$f":"SUMIFS(Data!$E:$E,Data!$B:$B,'13'!E$28,Data!$C:$C,'13'!$A$28,Data!$H:$H,'13'!$A33,Data!$F:$F,'13'!$A$27)","v":15.73081052086607},{"$f":"SUMIFS(Data!$E:$E,Data!$B:$B,'13'!F$28,Data!$C:$C,'13'!$A$28,Data!$H:$H,'13'!$A33,Data!$F:$F,'13'!$A$27)","v":18.239089401683596},{"$f":"SUMIFS(Data!$E:$E,Data!$B:$B,'13'!G$28,Data!$C:$C,'13'!$A$28,Data!$H:$H,'13'!$A33,Data!$F:$F,'13'!$A$27)","v":17.983021402217979},{"$f":"SUMIFS(Data!$E:$E,Data!$B:$B,'13'!H$28,Data!$C:$C,'13'!$A$28,Data!$H:$H,'13'!$A33,Data!$F:$F,'13'!$A$27)","v":17.566788872952571},{"$f":"SUMIFS(Data!$E:$E,Data!$B:$B,'13'!I$28,Data!$C:$C,'13'!$A$28,Data!$H:$H,'13'!$A33,Data!$F:$F,'13'!$A$27)","v":18.717144127449032},{"$f":"SUMIFS(Data!$E:$E,Data!$B:$B,'13'!J$28,Data!$C:$C,'13'!$A$28,Data!$H:$H,'13'!$A33,Data!$F:$F,'13'!$A$27)","v":17.84028293842383},{"$f":"SUMIFS(Data!$E:$E,Data!$B:$B,'13'!K$28,Data!$C:$C,'13'!$A$28,Data!$H:$H,'13'!$A33,Data!$F:$F,'13'!$A$27)","v":18.239089401683596}]
[" >= 750 < 780",{"$f":"SUMIFS(Data!$E:$E,Data!$B:$B,'13'!B$28,Data!$C:$C,'13'!$A$28,Data!$D:$D,'13'!$A34,Data!$F:$F,'13'!$A$27)","v":27.597792922335159},{"$f":"SUMIFS(Data!$E:$E,Data!$B:$B,'13'!C$28,Data!$C:$C,'13'!$A$28,Data!$H:$H,'13'!$A34,Data!$F:$F,'13'!$A$27)","v":27.425842800122339},{"$f":"SUMIFS(Data!$E:$E,Data!$B:$B,'13'!D$28,Data!$C:$C,'13'!$A$28,Data!$H:$H,'13'!$A34,Data!$F:$F,'13'!$A$27)","v":26.380657607788965},{"$f":"SUMIFS(Data!$E:$E,Data!$B:$B,'13'!E$28,Data!$C:$C,'13'!$A$28,Data!$H:$H,'13'!$A34,Data!$F:$F,'13'!$A$27)","v":27.053552667084777},{"$f":"SUMIFS(Data!$E:$E,Data!$B:$B,'13'!F$28,Data!$C:$C,'13'!$A$28,Data!$H:$H,'13'!$A34,Data!$F:$F,'13'!$A$27)","v":25.742982963301358},{"$f":"SUMIFS(Data!$E:$E,Data!$B:$B,'13'!G$28,Data!$C:$C,'13'!$A$28,Data!$H:$H,'13'!$A34,Data!$F:$F,'13'!$A$27)","v":28.50957612185562},{"$f":"SUMIFS(Data!$E:$E,Data!$B:$B,'13'!H$28,Data!$C:$C,'13'!$A$28,Data!$H:$H,'13'!$A34,Data!$F:$F,'13'!$A$27)","v":27.016049144893419},{"$f":"SUMIFS(Data!$E:$E,Data!$B:$B,'13'!I$28,Data!$C:$C,'13'!$A$28,Data!$H:$H,'13'!$A34,Data!$F:$F,'13'!$A$27)","v":26.849494360664607},{"$f":"SUMIFS(Data!$E:$E,Data!$B:$B,'13'!J$28,Data!$C:$C,'13'!$A$28,Data!$H:$H,'13'!$A34,Data!$F:$F,'13'!$A$27)","v":27.597792922335159},{"$f":"SUMIFS(Data!$E:$E,Data!$B:$B,'13'!K$28,Data!$C:$C,'13'!$A$28,Data!$H:$H,'13'!$A34,Data!$F:$F,'13'!$A$27)","v":25.742982963301358}]
[" >= 780",{"$f":"SUMIFS(Data!$E:$E,Data!$B:$B,'13'!B$28,Data!$C:$C,'13'!$A$28,Data!$D:$D,'13'!$A35,Data!$F:$F,'13'!$A$27)","v":49.492263029219323},{"$f":"SUMIFS(Data!$E:$E,Data!$B:$B,'13'!C$28,Data!$C:$C,'13'!$A$28,Data!$H:$H,'13'!$A35,Data!$F:$F,'13'!$A$27)","v":54.653688580322353},{"$f":"SUMIFS(Data!$E:$E,Data!$B:$B,'13'!D$28,Data!$C:$C,'13'!$A$28,Data!$H:$H,'13'!$A35,Data!$F:$F,'13'!$A$27)","v":52.181389054977345},{"$f":"SUMIFS(Data!$E:$E,Data!$B:$B,'13'!E$28,Data!$C:$C,'13'!$A$28,Data!$H:$H,'13'!$A35,Data!$F:$F,'13'!$A$27)","v":53.569641824601938},{"$f":"SUMIFS(Data!$E:$E,Data!$B:$B,'13'!F$28,Data!$C:$C,'13'!$A$28,Data!$H:$H,'13'!$A35,Data!$F:$F,'13'!$A$27)","v":46.267460329201469},{"$f":"SUMIFS(Data!$E:$E,Data!$B:$B,'13'!G$28,Data!$C:$C,'13'!$A$28,Data!$H:$H,'13'!$A35,Data!$F:$F,'13'!$A$27)","v":47.27505275557251},{"$f":"SUMIFS(Data!$E:$E,Data!$B:$B,'13'!H$28,Data!$C:$C,'13'!$A$28,Data!$H:$H,'13'!$A35,Data!$F:$F,'13'!$A$27)","v":49.352637075194565},{"$f":"SUMIFS(Data!$E:$E,Data!$B:$B,'13'!I$28,Data!$C:$C,'13'!$A$28,Data!$H:$H,'13'!$A35,Data!$F:$F,'13'!$A$27)","v":47.910906992907265},{"$f":"SUMIFS(Data!$E:$E,Data!$B:$B,'13'!J$28,Data!$C:$C,'13'!$A$28,Data!$H:$H,'13'!$A35,Data!$F:$F,'13'!$A$27)","v":49.492263029219323},{"$f":"SUMIFS(Data!$E:$E,Data!$B:$B,'13'!K$28,Data!$C:$C,'13'!$A$28,Data!$H:$H,'13'!$A35,Data!$F:$F,'13'!$A$27)","v":46.267460329201469}]
[{"$f":"VLOOKUP(\"Average credit score at origination\",Translation!$A$1:$C$354, Translation!A1+1, 0)","v":"Pointage de crédit moyen à l'initiation "},{"$f":"SUMIFS(Data!$E:$E,Data!$B:$B,'13'!B$28,Data!$C:$C,'13'!$A$28,Data!$D:$D,'13'!$A36,Data!$F:$F,'13'!$A$27)","v":771.77324505783156},{"$f":"SUMIFS(Data!$E:$E,Data!$B:$B,'13'!C$28,Data!$C:$C,'13'!$A$28,Data!$D:$D,'13'!$A36,Data!$F:$F,'13'!$A$27)","v":776.42083716483648},{"$f":"SUMIFS(Data!$E:$E,Data!$B:$B,'13'!D$28,Data!$C:$C,'13'!$A$28,Data!$D:$D,'13'!$A36,Data!$F:$F,'13'!$A$27)","v":771.70840664743707},{"$f":"SUMIFS(Data!$E:$E,Data!$B:$B,'13'!E$28,Data!$C:$C,'13'!$A$28,Data!$D:$D,'13'!$A36,Data!$F:$F,'13'!$A$27)","v":775.33660451207891},{"$f":"SUMIFS(Data!$E:$E,Data!$B:$B,'13'!F$28,Data!$C:$C,'13'!$A$28,Data!$D:$D,'13'!$A36,Data!$F:$F,'13'!$A$27)","v":762.2032910710642},{"$f":"SUMIFS(Data!$E:$E,Data!$B:$B,'13'!G$28,Data!$C:$C,'13'!$A$28,Data!$D:$D,'13'!$A36,Data!$F:$F,'13'!$A$27)","v":769.13522286173247},{"$f":"SUMIFS(Data!$E:$E,Data!$B:$B,'13'!H$28,Data!$C:$C,'13'!$A$28,Data!$D:$D,'13'!$A36,Data!$F:$F,'13'!$A$27)","v":771.87213733036799},{"$f":"SUMIFS(Data!$E:$E,Data!$B:$B,'13'!I$28,Data!$C:$C,'13'!$A$28,Data!$D:$D,'13'!$A36,Data!$F:$F,'13'!$A$27)","v":768.91269210369217},{"$f":"SUMIFS(Data!$E:$E,Data!$B:$B,'13'!J$28,Data!$C:$C,'13'!$A$28,Data!$D:$D,'13'!$A36,Data!$F:$F,'13'!$A$27)","v":771.77324505783156},{"$f":"SUMIFS(Data!$E:$E,Data!$B:$B,'13'!K$28,Data!$C:$C,'13'!$A$28,Data!$D:$D,'13'!$A36,Data!$F:$F,'13'!$A$27)","v":762.2032910710642}]
[{"$f":"VLOOKUP(\"Average credit score at origination by province\",Translation!$A$1:$C$354, Translation!A1+1, 0)","v":"Pointage de crédit moyen à l'initiation selon la province"}]
[{"$f":"VLOOKUP(\"Newfoundland and Labrador\",Translation!$A$1:$C$354, Translation!A1+1, 0)","v":"Terre-Neuve-et-Labrador"},{"$f":"IF((SUMIFS(Data!$E:$E,Data!$B:$B,'13'!B$28,Data!$C:$C,'13'!$A$28,Data!$D:$D,'13'!$A38,Data!$F:$F,'13'!$A$27))=0,\"-\",SUMIFS(Data!$E:$E,Data!$B:$B,'13'!B$28,Data!$C:$C,'13'!$A$28,Data!$D:$D,'13'!$A38,Data!$F:$F,'13'!$A$27))","v":763.12058786323917},{"$f":"IF((SUMIFS(Data!$E:$E,Data!$B:$B,'13'!C$28,Data!$C:$C,'13'!$A$28,Data!$D:$D,'13'!$A38,Data!$F:$F,'13'!$A$27))=0,\"-\",SUMIFS(Data!$E:$E,Data!$B:$B,'13'!C$28,Data!$C:$C,'13'!$A$28,Data!$D:$D,'13'!$A38,Data!$F:$F,'13'!$A$27))","v":781.55194644245125},{"$f":"IF((SUMIFS(Data!$E:$E,Data!$B:$B,'13'!D$28,Data!$C:$C,'13'!$A$28,Data!$D:$D,'13'!$A38,Data!$F:$F,'13'!$A$27))=0,\"-\",SUMIFS(Data!$E:$E,Data!$B:$B,'13'!D$28,Data!$C:$C,'13'!$A$28,Data!$D:$D,'13'!$A38,Data!$F:$F,'13'!$A$27))","v":"-"},{"$f":"IF((SUMIFS(Data!$E:$E,Data!$B:$B,'13'!E$28,Data!$C:$C,'13'!$A$28,Data!$D:$D,'13'!$A38,Data!$F:$F,'13'!$A$27))=0,\"-\",SUMIFS(Data!$E:$E,Data!$B:$B,'13'!E$28,Data!$C:$C,'13'!$A$28,Data!$D:$D,'13'!$A38,Data!$F:$F,'13'!$A$27))","v":776.05340134261246},{"$f":"IF((SUMIFS(Data!$E:$E,Data!$B:$B,'13'!F$28,Data!$C:$C,'13'!$A$28,Data!$D:$D,'13'!$A38,Data!$F:$F,'13'!$A$27))=0,\"-\",SUMIFS(Data!$E:$E,Data!$B:$B,'13'!F$28,Data!$C:$C,'13'!$A$28,Data!$D:$D,'13'!$A38,Data!$F:$F,'13'!$A$27))","v":761.91972800376107},{"$f":"IF((SUMIFS(Data!$E:$E,Data!$B:$B,'13'!G$28,Data!$C:$C,'13'!$A$28,Data!$D:$D,'13'!$A38,Data!$F:$F,'13'!$A$27))=0,\"-\",SUMIFS(Data!$E:$E,Data!$B:$B,'13'!G$28,Data!$C:$C,'13'!$A$28,Data!$D:$D,'13'!$A38,Data!$F:$F,'13'!$A$27))","v":757.71631849992093},{"$f":"IF((SUMIFS(Data!$E:$E,Data!$B:$B,'13'!H$28,Data!$C:$C,'13'!$A$28,Data!$D:$D,'13'!$A38,Data!$F:$F,'13'!$A$27))=0,\"-\",SUMIFS(Data!$E:$E,Data!$B:$B,'13'!H$28,Data!$C:$C,'13'!$A$28,Data!$D:$D,'13'!$A38,Data!$F:$F,'13'!$A$27))","v":769.43173438849362},{"$f":"IF((SUMIFS(Data!$E:$E,Data!$B:$B,'13'!I$28,Data!$C:$C,'13'!$A$28,Data!$D:$D,'13'!$A38,Data!$F:$F,'13'!$A$27))=0,\"-\",SUMIFS(Data!$E:$E,Data!$B:$B,'13'!I$28,Data!$C:$C,'13'!$A$28,Data!$D:$D,'13'!$A38,Data!$F:$F,'13'!$A$27))","v":781.61551718449186},{"$f":"IF((SUMIFS(Data!$E:$E,Data!$B:$B,'13'!J$28,Data!$C:$C,'13'!$A$28,Data!$D:$D,'13'!$A38,Data!$F:$F,'13'!$A$27))=0,\"-\",SUMIFS(Data!$E:$E,Data!$B:$B,'13'!J$28,Data!$C:$C,'13'!$A$28,Data!$D:$D,'13'!$A38,Data!$F:$F,'13'!$A$27))","v":763.12058786323917},{"$f":"IF((SUMIFS(Data!$E:$E,Data!$B:$B,'13'!K$28,Data!$C:$C,'13'!$A$28,Data!$D:$D,'13'!$A38,Data!$F:$F,'13'!$A$27))=0,\"-\",SUMIFS(Data!$E:$E,Data!$B:$B,'13'!K$28,Data!$C:$C,'13'!$A$28,Data!$D:$D,'13'!$A38,Data!$F:$F,'13'!$A$27))","v":761.91972800376107}]
[{"$f":"VLOOKUP(\"Prince Edward Island\",Translation!$A$1:$C$354, Translation!A1+1, 0)","v":"Île-du-Prince-Édouard"},{"$f":"IF((SUMIFS(Data!$E:$E,Data!$B:$B,'13'!B$28,Data!$C:$C,'13'!$A$28,Data!$D:$D,'13'!$A39,Data!$F:$F,'13'!$A$27))=0,\"-\",SUMIFS(Data!$E:$E,Data!$B:$B,'13'!B$28,Data!$C:$C,'13'!$A$28,Data!$D:$D,'13'!$A39,Data!$F:$F,'13'!$A$27))","v":"-"},{"$f":"IF((SUMIFS(Data!$E:$E,Data!$B:$B,'13'!C$28,Data!$C:$C,'13'!$A$28,Data!$D:$D,'13'!$A39,Data!$F:$F,'13'!$A$27))=0,\"-\",SUMIFS(Data!$E:$E,Data!$B:$B,'13'!C$28,Data!$C:$C,'13'!$A$28,Data!$D:$D,'13'!$A39,Data!$F:$F,'13'!$A$27))","v":766.84547645986549},{"$f":"IF((SUMIFS(Data!$E:$E,Data!$B:$B,'13'!D$28,Data!$C:$C,'13'!$A$28,Data!$D:$D,'13'!$A39,Data!$F:$F,'13'!$A$27))=0,\"-\",SUMIFS(Data!$E:$E,Data!$B:$B,'13'!D$28,Data!$C:$C,'13'!$A$28,Data!$D:$D,'13'!$A39,Data!$F:$F,'13'!$A$27))","v":"-"},{"$f":"IF((SUMIFS(Data!$E:$E,Data!$B:$B,'13'!E$28,Data!$C:$C,'13'!$A$28,Data!$D:$D,'13'!$A39,Data!$F:$F,'13'!$A$27))=0,\"-\",SUMIFS(Data!$E:$E,Data!$B:$B,'13'!E$28,Data!$C:$C,'13'!$A$28,Data!$D:$D,'13'!$A39,Data!$F:$F,'13'!$A$27))","v":789.72384371866315},{"$f":"IF((SUMIFS(Data!$E:$E,Data!$B:$B,'13'!F$28,Data!$C:$C,'13'!$A$28,Data!$D:$D,'13'!$A39,Data!$F:$F,'13'!$A$27))=0,\"-\",SUMIFS(Data!$E:$E,Data!$B:$B,'13'!F$28,Data!$C:$C,'13'!$A$28,Data!$D:$D,'13'!$A39,Data!$F:$F,'13'!$A$27))","v":740.81505628054595},{"$f":"IF((SUMIFS(Data!$E:$E,Data!$B:$B,'13'!G$28,Data!$C:$C,'13'!$A$28,Data!$D:$D,'13'!$A39,Data!$F:$F,'13'!$A$27))=0,\"-\",SUMIFS(Data!$E:$E,Data!$B:$B,'13'!G$28,Data!$C:$C,'13'!$A$28,Data!$D:$D,'13'!$A39,Data!$F:$F,'13'!$A$27))","v":719.35318033988096},{"$f":"IF((SUMIFS(Data!$E:$E,Data!$B:$B,'13'!H$28,Data!$C:$C,'13'!$A$28,Data!$D:$D,'13'!$A39,Data!$F:$F,'13'!$A$27))=0,\"-\",SUMIFS(Data!$E:$E,Data!$B:$B,'13'!H$28,Data!$C:$C,'13'!$A$28,Data!$D:$D,'13'!$A39,Data!$F:$F,'13'!$A$27))","v":"-"},{"$f":"IF((SUMIFS(Data!$E:$E,Data!$B:$B,'13'!I$28,Data!$C:$C,'13'!$A$28,Data!$D:$D,'13'!$A39,Data!$F:$F,'13'!$A$27))=0,\"-\",SUMIFS(Data!$E:$E,Data!$B:$B,'13'!I$28,Data!$C:$C,'13'!$A$28,Data!$D:$D,'13'!$A39,Data!$F:$F,'13'!$A$27))","v":760.24439626644516},{"$f":"IF((SUMIFS(Data!$E:$E,Data!$B:$B,'13'!J$28,Data!$C:$C,'13'!$A$28,Data!$D:$D,'13'!$A39,Data!$F:$F,'13'!$A$27))=0,\"-\",SUMIFS(Data!$E:$E,Data!$B:$B,'13'!J$28,Data!$C:$C,'13'!$A$28,Data!$D:$D,'13'!$A39,Data!$F:$F,'13'!$A$27))","v":"-"},{"$f":"IF((SUMIFS(Data!$E:$E,Data!$B:$B,'13'!K$28,Data!$C:$C,'13'!$A$28,Data!$D:$D,'13'!$A39,Data!$F:$F,'13'!$A$27))=0,\"-\",SUMIFS(Data!$E:$E,Data!$B:$B,'13'!K$28,Data!$C:$C,'13'!$A$28,Data!$D:$D,'13'!$A39,Data!$F:$F,'13'!$A$27))","v":740.81505628054595}]
[{"$f":"VLOOKUP(\"Nova Scotia\",Translation!$A$1:$C$354, Translation!A1+1, 0)","v":"Nouvelle-Écosse"},{"$f":"IF((SUMIFS(Data!$E:$E,Data!$B:$B,'13'!B$28,Data!$C:$C,'13'!$A$28,Data!$D:$D,'13'!$A40,Data!$F:$F,'13'!$A$27))=0,\"-\",SUMIFS(Data!$E:$E,Data!$B:$B,'13'!B$28,Data!$C:$C,'13'!$A$28,Data!$D:$D,'13'!$A40,Data!$F:$F,'13'!$A$27))","v":773.670453316004},{"$f":"IF((SUMIFS(Data!$E:$E,Data!$B:$B,'13'!C$28,Data!$C:$C,'13'!$A$28,Data!$D:$D,'13'!$A40,Data!$F:$F,'13'!$A$27))=0,\"-\",SUMIFS(Data!$E:$E,Data!$B:$B,'13'!C$28,Data!$C:$C,'13'!$A$28,Data!$D:$D,'13'!$A40,Data!$F:$F,'13'!$A$27))","v":772.53016341199645},{"$f":"IF((SUMIFS(Data!$E:$E,Data!$B:$B,'13'!D$28,Data!$C:$C,'13'!$A$28,Data!$D:$D,'13'!$A40,Data!$F:$F,'13'!$A$27))=0,\"-\",SUMIFS(Data!$E:$E,Data!$B:$B,'13'!D$28,Data!$C:$C,'13'!$A$28,Data!$D:$D,'13'!$A40,Data!$F:$F,'13'!$A$27))","v":771.71761991500284},{"$f":"IF((SUMIFS(Data!$E:$E,Data!$B:$B,'13'!E$28,Data!$C:$C,'13'!$A$28,Data!$D:$D,'13'!$A40,Data!$F:$F,'13'!$A$27))=0,\"-\",SUMIFS(Data!$E:$E,Data!$B:$B,'13'!E$28,Data!$C:$C,'13'!$A$28,Data!$D:$D,'13'!$A40,Data!$F:$F,'13'!$A$27))","v":780.64210868482417},{"$f":"IF((SUMIFS(Data!$E:$E,Data!$B:$B,'13'!F$28,Data!$C:$C,'13'!$A$28,Data!$D:$D,'13'!$A40,Data!$F:$F,'13'!$A$27))=0,\"-\",SUMIFS(Data!$E:$E,Data!$B:$B,'13'!F$28,Data!$C:$C,'13'!$A$28,Data!$D:$D,'13'!$A40,Data!$F:$F,'13'!$A$27))","v":764.82666042953986},{"$f":"IF((SUMIFS(Data!$E:$E,Data!$B:$B,'13'!G$28,Data!$C:$C,'13'!$A$28,Data!$D:$D,'13'!$A40,Data!$F:$F,'13'!$A$27))=0,\"-\",SUMIFS(Data!$E:$E,Data!$B:$B,'13'!G$28,Data!$C:$C,'13'!$A$28,Data!$D:$D,'13'!$A40,Data!$F:$F,'13'!$A$27))","v":751.25240697494019},{"$f":"IF((SUMIFS(Data!$E:$E,Data!$B:$B,'13'!H$28,Data!$C:$C,'13'!$A$28,Data!$D:$D,'13'!$A40,Data!$F:$F,'13'!$A$27))=0,\"-\",SUMIFS(Data!$E:$E,Data!$B:$B,'13'!H$28,Data!$C:$C,'13'!$A$28,Data!$D:$D,'13'!$A40,Data!$F:$F,'13'!$A$27))","v":778.71095967842052},{"$f":"IF((SUMIFS(Data!$E:$E,Data!$B:$B,'13'!I$28,Data!$C:$C,'13'!$A$28,Data!$D:$D,'13'!$A40,Data!$F:$F,'13'!$A$27))=0,\"-\",SUMIFS(Data!$E:$E,Data!$B:$B,'13'!I$28,Data!$C:$C,'13'!$A$28,Data!$D:$D,'13'!$A40,Data!$F:$F,'13'!$A$27))","v":777.47520653902939},{"$f":"IF((SUMIFS(Data!$E:$E,Data!$B:$B,'13'!J$28,Data!$C:$C,'13'!$A$28,Data!$D:$D,'13'!$A40,Data!$F:$F,'13'!$A$27))=0,\"-\",SUMIFS(Data!$E:$E,Data!$B:$B,'13'!J$28,Data!$C:$C,'13'!$A$28,Data!$D:$D,'13'!$A40,Data!$F:$F,'13'!$A$27))","v":773.670453316004},{"$f":"IF((SUMIFS(Data!$E:$E,Data!$B:$B,'13'!K$28,Data!$C:$C,'13'!$A$28,Data!$D:$D,'13'!$A40,Data!$F:$F,'13'!$A$27))=0,\"-\",SUMIFS(Data!$E:$E,Data!$B:$B,'13'!K$28,Data!$C:$C,'13'!$A$28,Data!$D:$D,'13'!$A40,Data!$F:$F,'13'!$A$27))","v":764.82666042953986}]
[{"$f":"VLOOKUP(\"New Brunswick\",Translation!$A$1:$C$354, Translation!A1+1, 0)","v":"Nouveau-Brunswick"},{"$f":"IF((SUMIFS(Data!$E:$E,Data!$B:$B,'13'!B$28,Data!$C:$C,'13'!$A$28,Data!$D:$D,'13'!$A41,Data!$F:$F,'13'!$A$27))=0,\"-\",SUMIFS(Data!$E:$E,Data!$B:$B,'13'!B$28,Data!$C:$C,'13'!$A$28,Data!$D:$D,'13'!$A41,Data!$F:$F,'13'!$A$27))","v":761.48936439364559},{"$f":"IF((SUMIFS(Data!$E:$E,Data!$B:$B,'13'!C$28,Data!$C:$C,'13'!$A$28,Data!$D:$D,'13'!$A41,Data!$F:$F,'13'!$A$27))=0,\"-\",SUMIFS(Data!$E:$E,Data!$B:$B,'13'!C$28,Data!$C:$C,'13'!$A$28,Data!$D:$D,'13'!$A41,Data!$F:$F,'13'!$A$27))","v":781.41748038776848},{"$f":"IF((SUMIFS(Data!$E:$E,Data!$B:$B,'13'!D$28,Data!$C:$C,'13'!$A$28,Data!$D:$D,'13'!$A41,Data!$F:$F,'13'!$A$27))=0,\"-\",SUMIFS(Data!$E:$E,Data!$B:$B,'13'!D$28,Data!$C:$C,'13'!$A$28,Data!$D:$D,'13'!$A41,Data!$F:$F,'13'!$A$27))","v":791.85572906000607},{"$f":"IF((SUMIFS(Data!$E:$E,Data!$B:$B,'13'!E$28,Data!$C:$C,'13'!$A$28,Data!$D:$D,'13'!$A41,Data!$F:$F,'13'!$A$27))=0,\"-\",SUMIFS(Data!$E:$E,Data!$B:$B,'13'!E$28,Data!$C:$C,'13'!$A$28,Data!$D:$D,'13'!$A41,Data!$F:$F,'13'!$A$27))","v":781.84018720734684},{"$f":"IF((SUMIFS(Data!$E:$E,Data!$B:$B,'13'!F$28,Data!$C:$C,'13'!$A$28,Data!$D:$D,'13'!$A41,Data!$F:$F,'13'!$A$27))=0,\"-\",SUMIFS(Data!$E:$E,Data!$B:$B,'13'!F$28,Data!$C:$C,'13'!$A$28,Data!$D:$D,'13'!$A41,Data!$F:$F,'13'!$A$27))","v":734.89002373127505},{"$f":"IF((SUMIFS(Data!$E:$E,Data!$B:$B,'13'!G$28,Data!$C:$C,'13'!$A$28,Data!$D:$D,'13'!$A41,Data!$F:$F,'13'!$A$27))=0,\"-\",SUMIFS(Data!$E:$E,Data!$B:$B,'13'!G$28,Data!$C:$C,'13'!$A$28,Data!$D:$D,'13'!$A41,Data!$F:$F,'13'!$A$27))","v":732.06018684941773},{"$f":"IF((SUMIFS(Data!$E:$E,Data!$B:$B,'13'!H$28,Data!$C:$C,'13'!$A$28,Data!$D:$D,'13'!$A41,Data!$F:$F,'13'!$A$27))=0,\"-\",SUMIFS(Data!$E:$E,Data!$B:$B,'13'!H$28,Data!$C:$C,'13'!$A$28,Data!$D:$D,'13'!$A41,Data!$F:$F,'13'!$A$27))","v":767.19724781544357},{"$f":"IF((SUMIFS(Data!$E:$E,Data!$B:$B,'13'!I$28,Data!$C:$C,'13'!$A$28,Data!$D:$D,'13'!$A41,Data!$F:$F,'13'!$A$27))=0,\"-\",SUMIFS(Data!$E:$E,Data!$B:$B,'13'!I$28,Data!$C:$C,'13'!$A$28,Data!$D:$D,'13'!$A41,Data!$F:$F,'13'!$A$27))","v":780.79408833483023},{"$f":"IF((SUMIFS(Data!$E:$E,Data!$B:$B,'13'!J$28,Data!$C:$C,'13'!$A$28,Data!$D:$D,'13'!$A41,Data!$F:$F,'13'!$A$27))=0,\"-\",SUMIFS(Data!$E:$E,Data!$B:$B,'13'!J$28,Data!$C:$C,'13'!$A$28,Data!$D:$D,'13'!$A41,Data!$F:$F,'13'!$A$27))","v":761.48936439364559},{"$f":"IF((SUMIFS(Data!$E:$E,Data!$B:$B,'13'!K$28,Data!$C:$C,'13'!$A$28,Data!$D:$D,'13'!$A41,Data!$F:$F,'13'!$A$27))=0,\"-\",SUMIFS(Data!$E:$E,Data!$B:$B,'13'!K$28,Data!$C:$C,'13'!$A$28,Data!$D:$D,'13'!$A41,Data!$F:$F,'13'!$A$27))","v":734.89002373127505}]
[{"$f":"VLOOKUP(\"Quebec\",Translation!$A$1:$C$354, Translation!A1+1, 0)","v":"Québec"},{"$f":"IF((SUMIFS(Data!$E:$E,Data!$B:$B,'13'!B$28,Data!$C:$C,'13'!$A$28,Data!$D:$D,'13'!$A42,Data!$F:$F,'13'!$A$27))=0,\"-\",SUMIFS(Data!$E:$E,Data!$B:$B,'13'!B$28,Data!$C:$C,'13'!$A$28,Data!$D:$D,'13'!$A42,Data!$F:$F,'13'!$A$27))","v":766.87406818904003},{"$f":"IF((SUMIFS(Data!$E:$E,Data!$B:$B,'13'!C$28,Data!$C:$C,'13'!$A$28,Data!$D:$D,'13'!$A42,Data!$F:$F,'13'!$A$27))=0,\"-\",SUMIFS(Data!$E:$E,Data!$B:$B,'13'!C$28,Data!$C:$C,'13'!$A$28,Data!$D:$D,'13'!$A42,Data!$F:$F,'13'!$A$27))","v":777.45119257967679},{"$f":"IF((SUMIFS(Data!$E:$E,Data!$B:$B,'13'!D$28,Data!$C:$C,'13'!$A$28,Data!$D:$D,'13'!$A42,Data!$F:$F,'13'!$A$27))=0,\"-\",SUMIFS(Data!$E:$E,Data!$B:$B,'13'!D$28,Data!$C:$C,'13'!$A$28,Data!$D:$D,'13'!$A42,Data!$F:$F,'13'!$A$27))","v":767.63736582048045},{"$f":"IF((SUMIFS(Data!$E:$E,Data!$B:$B,'13'!E$28,Data!$C:$C,'13'!$A$28,Data!$D:$D,'13'!$A42,Data!$F:$F,'13'!$A$27))=0,\"-\",SUMIFS(Data!$E:$E,Data!$B:$B,'13'!E$28,Data!$C:$C,'13'!$A$28,Data!$D:$D,'13'!$A42,Data!$F:$F,'13'!$A$27))","v":778.40411238286197},{"$f":"IF((SUMIFS(Data!$E:$E,Data!$B:$B,'13'!F$28,Data!$C:$C,'13'!$A$28,Data!$D:$D,'13'!$A42,Data!$F:$F,'13'!$A$27))=0,\"-\",SUMIFS(Data!$E:$E,Data!$B:$B,'13'!F$28,Data!$C:$C,'13'!$A$28,Data!$D:$D,'13'!$A42,Data!$F:$F,'13'!$A$27))","v":767.13200750319436},{"$f":"IF((SUMIFS(Data!$E:$E,Data!$B:$B,'13'!G$28,Data!$C:$C,'13'!$A$28,Data!$D:$D,'13'!$A42,Data!$F:$F,'13'!$A$27))=0,\"-\",SUMIFS(Data!$E:$E,Data!$B:$B,'13'!G$28,Data!$C:$C,'13'!$A$28,Data!$D:$D,'13'!$A42,Data!$F:$F,'13'!$A$27))","v":776.22465484990971},{"$f":"IF((SUMIFS(Data!$E:$E,Data!$B:$B,'13'!H$28,Data!$C:$C,'13'!$A$28,Data!$D:$D,'13'!$A42,Data!$F:$F,'13'!$A$27))=0,\"-\",SUMIFS(Data!$E:$E,Data!$B:$B,'13'!H$28,Data!$C:$C,'13'!$A$28,Data!$D:$D,'13'!$A42,Data!$F:$F,'13'!$A$27))","v":771.84534202793611},{"$f":"IF((SUMIFS(Data!$E:$E,Data!$B:$B,'13'!I$28,Data!$C:$C,'13'!$A$28,Data!$D:$D,'13'!$A42,Data!$F:$F,'13'!$A$27))=0,\"-\",SUMIFS(Data!$E:$E,Data!$B:$B,'13'!I$28,Data!$C:$C,'13'!$A$28,Data!$D:$D,'13'!$A42,Data!$F:$F,'13'!$A$27))","v":777.999585619301},{"$f":"IF((SUMIFS(Data!$E:$E,Data!$B:$B,'13'!J$28,Data!$C:$C,'13'!$A$28,Data!$D:$D,'13'!$A42,Data!$F:$F,'13'!$A$27))=0,\"-\",SUMIFS(Data!$E:$E,Data!$B:$B,'13'!J$28,Data!$C:$C,'13'!$A$28,Data!$D:$D,'13'!$A42,Data!$F:$F,'13'!$A$27))","v":766.87406818904003},{"$f":"IF((SUMIFS(Data!$E:$E,Data!$B:$B,'13'!K$28,Data!$C:$C,'13'!$A$28,Data!$D:$D,'13'!$A42,Data!$F:$F,'13'!$A$27))=0,\"-\",SUMIFS(Data!$E:$E,Data!$B:$B,'13'!K$28,Data!$C:$C,'13'!$A$28,Data!$D:$D,'13'!$A42,Data!$F:$F,'13'!$A$27))","v":767.13200750319436}]
[{"$f":"VLOOKUP(\"Ontario\",Translation!$A$1:$C$354, Translation!A1+1, 0)","v":"Ontario"},{"$f":"IF((SUMIFS(Data!$E:$E,Data!$B:$B,'13'!B$28,Data!$C:$C,'13'!$A$28,Data!$D:$D,'13'!$A43,Data!$F:$F,'13'!$A$27))=0,\"-\",SUMIFS(Data!$E:$E,Data!$B:$B,'13'!B$28,Data!$C:$C,'13'!$A$28,Data!$D:$D,'13'!$A43,Data!$F:$F,'13'!$A$27))","v":770.64510092559487},{"$f":"IF((SUMIFS(Data!$E:$E,Data!$B:$B,'13'!C$28,Data!$C:$C,'13'!$A$28,Data!$D:$D,'13'!$A43,Data!$F:$F,'13'!$A$27))=0,\"-\",SUMIFS(Data!$E:$E,Data!$B:$B,'13'!C$28,Data!$C:$C,'13'!$A$28,Data!$D:$D,'13'!$A43,Data!$F:$F,'13'!$A$27))","v":775.81066127009979},{"$f":"IF((SUMIFS(Data!$E:$E,Data!$B:$B,'13'!D$28,Data!$C:$C,'13'!$A$28,Data!$D:$D,'13'!$A43,Data!$F:$F,'13'!$A$27))=0,\"-\",SUMIFS(Data!$E:$E,Data!$B:$B,'13'!D$28,Data!$C:$C,'13'!$A$28,Data!$D:$D,'13'!$A43,Data!$F:$F,'13'!$A$27))","v":771.73830604864349},{"$f":"IF((SUMIFS(Data!$E:$E,Data!$B:$B,'13'!E$28,Data!$C:$C,'13'!$A$28,Data!$D:$D,'13'!$A43,Data!$F:$F,'13'!$A$27))=0,\"-\",SUMIFS(Data!$E:$E,Data!$B:$B,'13'!E$28,Data!$C:$C,'13'!$A$28,Data!$D:$D,'13'!$A43,Data!$F:$F,'13'!$A$27))","v":774.30452323661473},{"$f":"IF((SUMIFS(Data!$E:$E,Data!$B:$B,'13'!F$28,Data!$C:$C,'13'!$A$28,Data!$D:$D,'13'!$A43,Data!$F:$F,'13'!$A$27))=0,\"-\",SUMIFS(Data!$E:$E,Data!$B:$B,'13'!F$28,Data!$C:$C,'13'!$A$28,Data!$D:$D,'13'!$A43,Data!$F:$F,'13'!$A$27))","v":758.3108326970214},{"$f":"IF((SUMIFS(Data!$E:$E,Data!$B:$B,'13'!G$28,Data!$C:$C,'13'!$A$28,Data!$D:$D,'13'!$A43,Data!$F:$F,'13'!$A$27))=0,\"-\",SUMIFS(Data!$E:$E,Data!$B:$B,'13'!G$28,Data!$C:$C,'13'!$A$28,Data!$D:$D,'13'!$A43,Data!$F:$F,'13'!$A$27))","v":768.232694211384},{"$f":"IF((SUMIFS(Data!$E:$E,Data!$B:$B,'13'!H$28,Data!$C:$C,'13'!$A$28,Data!$D:$D,'13'!$A43,Data!$F:$F,'13'!$A$27))=0,\"-\",SUMIFS(Data!$E:$E,Data!$B:$B,'13'!H$28,Data!$C:$C,'13'!$A$28,Data!$D:$D,'13'!$A43,Data!$F:$F,'13'!$A$27))","v":770.38940891285085},{"$f":"IF((SUMIFS(Data!$E:$E,Data!$B:$B,'13'!I$28,Data!$C:$C,'13'!$A$28,Data!$D:$D,'13'!$A43,Data!$F:$F,'13'!$A$27))=0,\"-\",SUMIFS(Data!$E:$E,Data!$B:$B,'13'!I$28,Data!$C:$C,'13'!$A$28,Data!$D:$D,'13'!$A43,Data!$F:$F,'13'!$A$27))","v":764.64520723621695},{"$f":"IF((SUMIFS(Data!$E:$E,Data!$B:$B,'13'!J$28,Data!$C:$C,'13'!$A$28,Data!$D:$D,'13'!$A43,Data!$F:$F,'13'!$A$27))=0,\"-\",SUMIFS(Data!$E:$E,Data!$B:$B,'13'!J$28,Data!$C:$C,'13'!$A$28,Data!$D:$D,'13'!$A43,Data!$F:$F,'13'!$A$27))","v":770.64510092559487},{"$f":"IF((SUMIFS(Data!$E:$E,Data!$B:$B,'13'!K$28,Data!$C:$C,'13'!$A$28,Data!$D:$D,'13'!$A43,Data!$F:$F,'13'!$A$27))=0,\"-\",SUMIFS(Data!$E:$E,Data!$B:$B,'13'!K$28,Data!$C:$C,'13'!$A$28,Data!$D:$D,'13'!$A43,Data!$F:$F,'13'!$A$27))","v":758.3108326970214}]
[{"$f":"VLOOKUP(\"Manitoba\",Translation!$A$1:$C$354, Translation!A1+1, 0)","v":"Manitoba"},{"$f":"IF((SUMIFS(Data!$E:$E,Data!$B:$B,'13'!B$28,Data!$C:$C,'13'!$A$28,Data!$D:$D,'13'!$A44,Data!$F:$F,'13'!$A$27))=0,\"-\",SUMIFS(Data!$E:$E,Data!$B:$B,'13'!B$28,Data!$C:$C,'13'!$A$28,Data!$D:$D,'13'!$A44,Data!$F:$F,'13'!$A$27))","v":749.87456820308307},{"$f":"IF((SUMIFS(Data!$E:$E,Data!$B:$B,'13'!C$28,Data!$C:$C,'13'!$A$28,Data!$D:$D,'13'!$A44,Data!$F:$F,'13'!$A$27))=0,\"-\",SUMIFS(Data!$E:$E,Data!$B:$B,'13'!C$28,Data!$C:$C,'13'!$A$28,Data!$D:$D,'13'!$A44,Data!$F:$F,'13'!$A$27))","v":782.3773276991742},{"$f":"IF((SUMIFS(Data!$E:$E,Data!$B:$B,'13'!D$28,Data!$C:$C,'13'!$A$28,Data!$D:$D,'13'!$A44,Data!$F:$F,'13'!$A$27))=0,\"-\",SUMIFS(Data!$E:$E,Data!$B:$B,'13'!D$28,Data!$C:$C,'13'!$A$28,Data!$D:$D,'13'!$A44,Data!$F:$F,'13'!$A$27))","v":780.36654449298351},{"$f":"IF((SUMIFS(Data!$E:$E,Data!$B:$B,'13'!E$28,Data!$C:$C,'13'!$A$28,Data!$D:$D,'13'!$A44,Data!$F:$F,'13'!$A$27))=0,\"-\",SUMIFS(Data!$E:$E,Data!$B:$B,'13'!E$28,Data!$C:$C,'13'!$A$28,Data!$D:$D,'13'!$A44,Data!$F:$F,'13'!$A$27))","v":775.20274689647204},{"$f":"IF((SUMIFS(Data!$E:$E,Data!$B:$B,'13'!F$28,Data!$C:$C,'13'!$A$28,Data!$D:$D,'13'!$A44,Data!$F:$F,'13'!$A$27))=0,\"-\",SUMIFS(Data!$E:$E,Data!$B:$B,'13'!F$28,Data!$C:$C,'13'!$A$28,Data!$D:$D,'13'!$A44,Data!$F:$F,'13'!$A$27))","v":762.04230227427445},{"$f":"IF((SUMIFS(Data!$E:$E,Data!$B:$B,'13'!G$28,Data!$C:$C,'13'!$A$28,Data!$D:$D,'13'!$A44,Data!$F:$F,'13'!$A$27))=0,\"-\",SUMIFS(Data!$E:$E,Data!$B:$B,'13'!G$28,Data!$C:$C,'13'!$A$28,Data!$D:$D,'13'!$A44,Data!$F:$F,'13'!$A$27))","v":768.36431291904944},{"$f":"IF((SUMIFS(Data!$E:$E,Data!$B:$B,'13'!H$28,Data!$C:$C,'13'!$A$28,Data!$D:$D,'13'!$A44,Data!$F:$F,'13'!$A$27))=0,\"-\",SUMIFS(Data!$E:$E,Data!$B:$B,'13'!H$28,Data!$C:$C,'13'!$A$28,Data!$D:$D,'13'!$A44,Data!$F:$F,'13'!$A$27))","v":775.09991817010621},{"$f":"IF((SUMIFS(Data!$E:$E,Data!$B:$B,'13'!I$28,Data!$C:$C,'13'!$A$28,Data!$D:$D,'13'!$A44,Data!$F:$F,'13'!$A$27))=0,\"-\",SUMIFS(Data!$E:$E,Data!$B:$B,'13'!I$28,Data!$C:$C,'13'!$A$28,Data!$D:$D,'13'!$A44,Data!$F:$F,'13'!$A$27))","v":769.08359836599232},{"$f":"IF((SUMIFS(Data!$E:$E,Data!$B:$B,'13'!J$28,Data!$C:$C,'13'!$A$28,Data!$D:$D,'13'!$A44,Data!$F:$F,'13'!$A$27))=0,\"-\",SUMIFS(Data!$E:$E,Data!$B:$B,'13'!J$28,Data!$C:$C,'13'!$A$28,Data!$D:$D,'13'!$A44,Data!$F:$F,'13'!$A$27))","v":749.87456820308307},{"$f":"IF((SUMIFS(Data!$E:$E,Data!$B:$B,'13'!K$28,Data!$C:$C,'13'!$A$28,Data!$D:$D,'13'!$A44,Data!$F:$F,'13'!$A$27))=0,\"-\",SUMIFS(Data!$E:$E,Data!$B:$B,'13'!K$28,Data!$C:$C,'13'!$A$28,Data!$D:$D,'13'!$A44,Data!$F:$F,'13'!$A$27))","v":762.04230227427445}]
[{"$f":"VLOOKUP(\"Saskatchewan\",Translation!$A$1:$C$354, Translation!A1+1, 0)","v":"Saskatchewan"},{"$f":"IF((SUMIFS(Data!$E:$E,Data!$B:$B,'13'!B$28,Data!$C:$C,'13'!$A$28,Data!$D:$D,'13'!$A45,Data!$F:$F,'13'!$A$27))=0,\"-\",SUMIFS(Data!$E:$E,Data!$B:$B,'13'!B$28,Data!$C:$C,'13'!$A$28,Data!$D:$D,'13'!$A45,Data!$F:$F,'13'!$A$27))","v":779.08278181743651},{"$f":"IF((SUMIFS(Data!$E:$E,Data!$B:$B,'13'!C$28,Data!$C:$C,'13'!$A$28,Data!$D:$D,'13'!$A45,Data!$F:$F,'13'!$A$27))=0,\"-\",SUMIFS(Data!$E:$E,Data!$B:$B,'13'!C$28,Data!$C:$C,'13'!$A$28,Data!$D:$D,'13'!$A45,Data!$F:$F,'13'!$A$27))","v":778.25331719682015},{"$f":"IF((SUMIFS(Data!$E:$E,Data!$B:$B,'13'!D$28,Data!$C:$C,'13'!$A$28,Data!$D:$D,'13'!$A45,Data!$F:$F,'13'!$A$27))=0,\"-\",SUMIFS(Data!$E:$E,Data!$B:$B,'13'!D$28,Data!$C:$C,'13'!$A$28,Data!$D:$D,'13'!$A45,Data!$F:$F,'13'!$A$27))","v":775.21893412370252},{"$f":"IF((SUMIFS(Data!$E:$E,Data!$B:$B,'13'!E$28,Data!$C:$C,'13'!$A$28,Data!$D:$D,'13'!$A45,Data!$F:$F,'13'!$A$27))=0,\"-\",SUMIFS(Data!$E:$E,Data!$B:$B,'13'!E$28,Data!$C:$C,'13'!$A$28,Data!$D:$D,'13'!$A45,Data!$F:$F,'13'!$A$27))","v":780.47670805422842},{"$f":"IF((SUMIFS(Data!$E:$E,Data!$B:$B,'13'!F$28,Data!$C:$C,'13'!$A$28,Data!$D:$D,'13'!$A45,Data!$F:$F,'13'!$A$27))=0,\"-\",SUMIFS(Data!$E:$E,Data!$B:$B,'13'!F$28,Data!$C:$C,'13'!$A$28,Data!$D:$D,'13'!$A45,Data!$F:$F,'13'!$A$27))","v":765.20805801466236},{"$f":"IF((SUMIFS(Data!$E:$E,Data!$B:$B,'13'!G$28,Data!$C:$C,'13'!$A$28,Data!$D:$D,'13'!$A45,Data!$F:$F,'13'!$A$27))=0,\"-\",SUMIFS(Data!$E:$E,Data!$B:$B,'13'!G$28,Data!$C:$C,'13'!$A$28,Data!$D:$D,'13'!$A45,Data!$F:$F,'13'!$A$27))","v":768.30652136776257},{"$f":"IF((SUMIFS(Data!$E:$E,Data!$B:$B,'13'!H$28,Data!$C:$C,'13'!$A$28,Data!$D:$D,'13'!$A45,Data!$F:$F,'13'!$A$27))=0,\"-\",SUMIFS(Data!$E:$E,Data!$B:$B,'13'!H$28,Data!$C:$C,'13'!$A$28,Data!$D:$D,'13'!$A45,Data!$F:$F,'13'!$A$27))","v":772.08667550987013},{"$f":"IF((SUMIFS(Data!$E:$E,Data!$B:$B,'13'!I$28,Data!$C:$C,'13'!$A$28,Data!$D:$D,'13'!$A45,Data!$F:$F,'13'!$A$27))=0,\"-\",SUMIFS(Data!$E:$E,Data!$B:$B,'13'!I$28,Data!$C:$C,'13'!$A$28,Data!$D:$D,'13'!$A45,Data!$F:$F,'13'!$A$27))","v":778.5456295893789},{"$f":"IF((SUMIFS(Data!$E:$E,Data!$B:$B,'13'!J$28,Data!$C:$C,'13'!$A$28,Data!$D:$D,'13'!$A45,Data!$F:$F,'13'!$A$27))=0,\"-\",SUMIFS(Data!$E:$E,Data!$B:$B,'13'!J$28,Data!$C:$C,'13'!$A$28,Data!$D:$D,'13'!$A45,Data!$F:$F,'13'!$A$27))","v":779.08278181743651},{"$f":"IF((SUMIFS(Data!$E:$E,Data!$B:$B,'13'!K$28,Data!$C:$C,'13'!$A$28,Data!$D:$D,'13'!$A45,Data!$F:$F,'13'!$A$27))=0,\"-\",SUMIFS(Data!$E:$E,Data!$B:$B,'13'!K$28,Data!$C:$C,'13'!$A$28,Data!$D:$D,'13'!$A45,Data!$F:$F,'13'!$A$27))","v":765.20805801466236}]
[{"$f":"VLOOKUP(\"Alberta\",Translation!$A$1:$C$354, Translation!A1+1, 0)","v":"Alberta"},{"$f":"IF((SUMIFS(Data!$E:$E,Data!$B:$B,'13'!B$28,Data!$C:$C,'13'!$A$28,Data!$D:$D,'13'!$A46,Data!$F:$F,'13'!$A$27))=0,\"-\",SUMIFS(Data!$E:$E,Data!$B:$B,'13'!B$28,Data!$C:$C,'13'!$A$28,Data!$D:$D,'13'!$A46,Data!$F:$F,'13'!$A$27))","v":774.67813589219008},{"$f":"IF((SUMIFS(Data!$E:$E,Data!$B:$B,'13'!C$28,Data!$C:$C,'13'!$A$28,Data!$D:$D,'13'!$A46,Data!$F:$F,'13'!$A$27))=0,\"-\",SUMIFS(Data!$E:$E,Data!$B:$B,'13'!C$28,Data!$C:$C,'13'!$A$28,Data!$D:$D,'13'!$A46,Data!$F:$F,'13'!$A$27))","v":773.88009128197996},{"$f":"IF((SUMIFS(Data!$E:$E,Data!$B:$B,'13'!D$28,Data!$C:$C,'13'!$A$28,Data!$D:$D,'13'!$A46,Data!$F:$F,'13'!$A$27))=0,\"-\",SUMIFS(Data!$E:$E,Data!$B:$B,'13'!D$28,Data!$C:$C,'13'!$A$28,Data!$D:$D,'13'!$A46,Data!$F:$F,'13'!$A$27))","v":774.54802013365793},{"$f":"IF((SUMIFS(Data!$E:$E,Data!$B:$B,'13'!E$28,Data!$C:$C,'13'!$A$28,Data!$D:$D,'13'!$A46,Data!$F:$F,'13'!$A$27))=0,\"-\",SUMIFS(Data!$E:$E,Data!$B:$B,'13'!E$28,Data!$C:$C,'13'!$A$28,Data!$D:$D,'13'!$A46,Data!$F:$F,'13'!$A$27))","v":775.30617039040851},{"$f":"IF((SUMIFS(Data!$E:$E,Data!$B:$B,'13'!F$28,Data!$C:$C,'13'!$A$28,Data!$D:$D,'13'!$A46,Data!$F:$F,'13'!$A$27))=0,\"-\",SUMIFS(Data!$E:$E,Data!$B:$B,'13'!F$28,Data!$C:$C,'13'!$A$28,Data!$D:$D,'13'!$A46,Data!$F:$F,'13'!$A$27))","v":764.74361158326099},{"$f":"IF((SUMIFS(Data!$E:$E,Data!$B:$B,'13'!G$28,Data!$C:$C,'13'!$A$28,Data!$D:$D,'13'!$A46,Data!$F:$F,'13'!$A$27))=0,\"-\",SUMIFS(Data!$E:$E,Data!$B:$B,'13'!G$28,Data!$C:$C,'13'!$A$28,Data!$D:$D,'13'!$A46,Data!$F:$F,'13'!$A$27))","v":765.25093177323595},{"$f":"IF((SUMIFS(Data!$E:$E,Data!$B:$B,'13'!H$28,Data!$C:$C,'13'!$A$28,Data!$D:$D,'13'!$A46,Data!$F:$F,'13'!$A$27))=0,\"-\",SUMIFS(Data!$E:$E,Data!$B:$B,'13'!H$28,Data!$C:$C,'13'!$A$28,Data!$D:$D,'13'!$A46,Data!$F:$F,'13'!$A$27))","v":773.35268057705468},{"$f":"IF((SUMIFS(Data!$E:$E,Data!$B:$B,'13'!I$28,Data!$C:$C,'13'!$A$28,Data!$D:$D,'13'!$A46,Data!$F:$F,'13'!$A$27))=0,\"-\",SUMIFS(Data!$E:$E,Data!$B:$B,'13'!I$28,Data!$C:$C,'13'!$A$28,Data!$D:$D,'13'!$A46,Data!$F:$F,'13'!$A$27))","v":779.8333912569725},{"$f":"IF((SUMIFS(Data!$E:$E,Data!$B:$B,'13'!J$28,Data!$C:$C,'13'!$A$28,Data!$D:$D,'13'!$A46,Data!$F:$F,'13'!$A$27))=0,\"-\",SUMIFS(Data!$E:$E,Data!$B:$B,'13'!J$28,Data!$C:$C,'13'!$A$28,Data!$D:$D,'13'!$A46,Data!$F:$F,'13'!$A$27))","v":774.67813589219008},{"$f":"IF((SUMIFS(Data!$E:$E,Data!$B:$B,'13'!K$28,Data!$C:$C,'13'!$A$28,Data!$D:$D,'13'!$A46,Data!$F:$F,'13'!$A$27))=0,\"-\",SUMIFS(Data!$E:$E,Data!$B:$B,'13'!K$28,Data!$C:$C,'13'!$A$28,Data!$D:$D,'13'!$A46,Data!$F:$F,'13'!$A$27))","v":764.74361158326099}]
[{"$f":"VLOOKUP(\"British Columbia\",Translation!$A$1:$C$354, Translation!A1+1, 0)","v":"Colombie-Britannique"},{"$f":"IF((SUMIFS(Data!$E:$E,Data!$B:$B,'13'!B$28,Data!$C:$C,'13'!$A$28,Data!$D:$D,'13'!$A47,Data!$F:$F,'13'!$A$27))=0,\"-\",SUMIFS(Data!$E:$E,Data!$B:$B,'13'!B$28,Data!$C:$C,'13'!$A$28,Data!$D:$D,'13'!$A47,Data!$F:$F,'13'!$A$27))","v":774.61220332855021},{"$f":"IF((SUMIFS(Data!$E:$E,Data!$B:$B,'13'!C$28,Data!$C:$C,'13'!$A$28,Data!$D:$D,'13'!$A47,Data!$F:$F,'13'!$A$27))=0,\"-\",SUMIFS(Data!$E:$E,Data!$B:$B,'13'!C$28,Data!$C:$C,'13'!$A$28,Data!$D:$D,'13'!$A47,Data!$F:$F,'13'!$A$27))","v":778.06574783841791},{"$f":"IF((SUMIFS(Data!$E:$E,Data!$B:$B,'13'!D$28,Data!$C:$C,'13'!$A$28,Data!$D:$D,'13'!$A47,Data!$F:$F,'13'!$A$27))=0,\"-\",SUMIFS(Data!$E:$E,Data!$B:$B,'13'!D$28,Data!$C:$C,'13'!$A$28,Data!$D:$D,'13'!$A47,Data!$F:$F,'13'!$A$27))","v":769.87967150262693},{"$f":"IF((SUMIFS(Data!$E:$E,Data!$B:$B,'13'!E$28,Data!$C:$C,'13'!$A$28,Data!$D:$D,'13'!$A47,Data!$F:$F,'13'!$A$27))=0,\"-\",SUMIFS(Data!$E:$E,Data!$B:$B,'13'!E$28,Data!$C:$C,'13'!$A$28,Data!$D:$D,'13'!$A47,Data!$F:$F,'13'!$A$27))","v":774.58383607298299},{"$f":"IF((SUMIFS(Data!$E:$E,Data!$B:$B,'13'!F$28,Data!$C:$C,'13'!$A$28,Data!$D:$D,'13'!$A47,Data!$F:$F,'13'!$A$27))=0,\"-\",SUMIFS(Data!$E:$E,Data!$B:$B,'13'!F$28,Data!$C:$C,'13'!$A$28,Data!$D:$D,'13'!$A47,Data!$F:$F,'13'!$A$27))","v":773.19143069073061},{"$f":"IF((SUMIFS(Data!$E:$E,Data!$B:$B,'13'!G$28,Data!$C:$C,'13'!$A$28,Data!$D:$D,'13'!$A47,Data!$F:$F,'13'!$A$27))=0,\"-\",SUMIFS(Data!$E:$E,Data!$B:$B,'13'!G$28,Data!$C:$C,'13'!$A$28,Data!$D:$D,'13'!$A47,Data!$F:$F,'13'!$A$27))","v":772.44580907269471},{"$f":"IF((SUMIFS(Data!$E:$E,Data!$B:$B,'13'!H$28,Data!$C:$C,'13'!$A$28,Data!$D:$D,'13'!$A47,Data!$F:$F,'13'!$A$27))=0,\"-\",SUMIFS(Data!$E:$E,Data!$B:$B,'13'!H$28,Data!$C:$C,'13'!$A$28,Data!$D:$D,'13'!$A47,Data!$F:$F,'13'!$A$27))","v":774.16600101887218},{"$f":"IF((SUMIFS(Data!$E:$E,Data!$B:$B,'13'!I$28,Data!$C:$C,'13'!$A$28,Data!$D:$D,'13'!$A47,Data!$F:$F,'13'!$A$27))=0,\"-\",SUMIFS(Data!$E:$E,Data!$B:$B,'13'!I$28,Data!$C:$C,'13'!$A$28,Data!$D:$D,'13'!$A47,Data!$F:$F,'13'!$A$27))","v":774.85503168819275},{"$f":"IF((SUMIFS(Data!$E:$E,Data!$B:$B,'13'!J$28,Data!$C:$C,'13'!$A$28,Data!$D:$D,'13'!$A47,Data!$F:$F,'13'!$A$27))=0,\"-\",SUMIFS(Data!$E:$E,Data!$B:$B,'13'!J$28,Data!$C:$C,'13'!$A$28,Data!$D:$D,'13'!$A47,Data!$F:$F,'13'!$A$27))","v":774.61220332855021},{"$f":"IF((SUMIFS(Data!$E:$E,Data!$B:$B,'13'!K$28,Data!$C:$C,'13'!$A$28,Data!$D:$D,'13'!$A47,Data!$F:$F,'13'!$A$27))=0,\"-\",SUMIFS(Data!$E:$E,Data!$B:$B,'13'!K$28,Data!$C:$C,'13'!$A$28,Data!$D:$D,'13'!$A47,Data!$F:$F,'13'!$A$27))","v":773.19143069073061}]
[{"$f":"VLOOKUP(\"Territories\",Translation!$A$1:$C$354, Translation!A1+1, 0)","v":"Territoires"},{"$f":"IF((SUMIFS(Data!$E:$E,Data!$B:$B,'13'!B$28,Data!$C:$C,'13'!$A$28,Data!$D:$D,'13'!$A48,Data!$F:$F,'13'!$A$27))=0,\"-\",SUMIFS(Data!$E:$E,Data!$B:$B,'13'!B$28,Data!$C:$C,'13'!$A$28,Data!$D:$D,'13'!$A48,Data!$F:$F,'13'!$A$27))","v":"-"},{"$f":"IF((SUMIFS(Data!$E:$E,Data!$B:$B,'13'!C$28,Data!$C:$C,'13'!$A$28,Data!$D:$D,'13'!$A48,Data!$F:$F,'13'!$A$27))=0,\"-\",SUMIFS(Data!$E:$E,Data!$B:$B,'13'!C$28,Data!$C:$C,'13'!$A$28,Data!$D:$D,'13'!$A48,Data!$F:$F,'13'!$A$27))","v":777.65897830987547},{"$f":"IF((SUMIFS(Data!$E:$E,Data!$B:$B,'13'!D$28,Data!$C:$C,'13'!$A$28,Data!$D:$D,'13'!$A48,Data!$F:$F,'13'!$A$27))=0,\"-\",SUMIFS(Data!$E:$E,Data!$B:$B,'13'!D$28,Data!$C:$C,'13'!$A$28,Data!$D:$D,'13'!$A48,Data!$F:$F,'13'!$A$27))","v":"-"},{"$f":"IF((SUMIFS(Data!$E:$E,Data!$B:$B,'13'!E$28,Data!$C:$C,'13'!$A$28,Data!$D:$D,'13'!$A48,Data!$F:$F,'13'!$A$27))=0,\"-\",SUMIFS(Data!$E:$E,Data!$B:$B,'13'!E$28,Data!$C:$C,'13'!$A$28,Data!$D:$D,'13'!$A48,Data!$F:$F,'13'!$A$27))","v":"-"},{"$f":"IF((SUMIFS(Data!$E:$E,Data!$B:$B,'13'!F$28,Data!$C:$C,'13'!$A$28,Data!$D:$D,'13'!$A48,Data!$F:$F,'13'!$A$27))=0,\"-\",SUMIFS(Data!$E:$E,Data!$B:$B,'13'!F$28,Data!$C:$C,'13'!$A$28,Data!$D:$D,'13'!$A48,Data!$F:$F,'13'!$A$27))","v":813.99999999999989},{"$f":"IF((SUMIFS(Data!$E:$E,Data!$B:$B,'13'!G$28,Data!$C:$C,'13'!$A$28,Data!$D:$D,'13'!$A48,Data!$F:$F,'13'!$A$27))=0,\"-\",SUMIFS(Data!$E:$E,Data!$B:$B,'13'!G$28,Data!$C:$C,'13'!$A$28,Data!$D:$D,'13'!$A48,Data!$F:$F,'13'!$A$27))","v":"-"},{"$f":"IF((SUMIFS(Data!$E:$E,Data!$B:$B,'13'!H$28,Data!$C:$C,'13'!$A$28,Data!$D:$D,'13'!$A48,Data!$F:$F,'13'!$A$27))=0,\"-\",SUMIFS(Data!$E:$E,Data!$B:$B,'13'!H$28,Data!$C:$C,'13'!$A$28,Data!$D:$D,'13'!$A48,Data!$F:$F,'13'!$A$27))","v":"-"},{"$f":"IF((SUMIFS(Data!$E:$E,Data!$B:$B,'13'!I$28,Data!$C:$C,'13'!$A$28,Data!$D:$D,'13'!$A48,Data!$F:$F,'13'!$A$27))=0,\"-\",SUMIFS(Data!$E:$E,Data!$B:$B,'13'!I$28,Data!$C:$C,'13'!$A$28,Data!$D:$D,'13'!$A48,Data!$F:$F,'13'!$A$27))","v":"-"},{"$f":"IF((SUMIFS(Data!$E:$E,Data!$B:$B,'13'!J$28,Data!$C:$C,'13'!$A$28,Data!$D:$D,'13'!$A48,Data!$F:$F,'13'!$A$27))=0,\"-\",SUMIFS(Data!$E:$E,Data!$B:$B,'13'!J$28,Data!$C:$C,'13'!$A$28,Data!$D:$D,'13'!$A48,Data!$F:$F,'13'!$A$27))","v":"-"},{"$f":"IF((SUMIFS(Data!$E:$E,Data!$B:$B,'13'!K$28,Data!$C:$C,'13'!$A$28,Data!$D:$D,'13'!$A48,Data!$F:$F,'13'!$A$27))=0,\"-\",SUMIFS(Data!$E:$E,Data!$B:$B,'13'!K$28,Data!$C:$C,'13'!$A$28,Data!$D:$D,'13'!$A48,Data!$F:$F,'13'!$A$27))","v":813.99999999999989}]
[{"$f":"VLOOKUP(\"Portfolio distributions do not include substitutions volumes for Portfolio insurance.\",Translation!$A$1:$C$354, Translation!A1+1, 0)","v":"La répartition des prêts hypothécaires pour l'assurance de portefeuille ne comprend pas les prêts de remplacement. "}]
[{"$f":"VLOOKUP(\"Distribution based on loan amounts, not number of loans.\",Translation!$A$1:$C$354, Translation!A1+1, 0)","v":"La répartition est établie d'après le montant, plutôt que le nombre de prêts assurés."}]
[{"$f":"VLOOKUP(\"The sum of all breakdown categories may not add up to 100 due to rounding.\",Translation!$A$1:$C$354, Translation!A1+1, 0)","v":"Les chiffres ayant été arrondis, il se peut que la somme de l'ensemble des catégories n'égale pas 100 %."}]

{"sheet":"14","index":15,"n_rows":53,"n_cols":11,"rows_kept":53,"cut":false,"hidden":false,"merged":[[0,6,0,10],[2,0,3,0],[28,0,29,0],[28,1,28,10],[2,1,2,10]]}
[{"$f":"VLOOKUP(\"TRANSACTIONAL HOMEOWNER AND PORTFOLIO - CREDIT SCORE\",Translation!$A$1:$C$354, Translation!A1+1, 0)","v":"PROPRIÉTAIRES-OCCUPANTS (À L’UNITÉ) ET ASSURANCE DE PORTEFEUILLE - POINTAGE DE CRÉDIT"},null,null,null,null,null,{"$f":"VLOOKUP(\"Back to Table of Contents\",Translation!$A$1:$C$354, Translation!A1+1, 0)","v":"Retour à la table des matières"}]
[{"$f":"VLOOKUP(\"Insurance-in-force by credit score at origination (%)\",Translation!$A$1:$C$354, Translation!A1+1, 0)","v":"Contrats d’assurance en vigueur selon le pointage de crédit à l'initiation (%)"}]
[{"$f":"VLOOKUP(\"TRANSACTIONAL HOMEOWNER\",Translation!$A$1:$C$354, Translation!A1+1, 0)","v":"PROPRIÉTAIRES-OCCUPANTS, À L’UNITÉ"},{"$f":"VLOOKUP(\"As at\",Translation!$A$1:$C$354,Translation!A1+1,0)","v":"Aux"}]
[null,{"$f":"VLOOKUP(\"Q1 2020\",Translation!$A$1:$C$354, Translation!$A1+1, 0)","v":"T1 2020"},{"$f":"VLOOKUP(\"Q4 2019\",Translation!$A$1:$C$354, Translation!$A1+1, 0)","v":"T4 2019"},{"$f":"VLOOKUP(\"Q3 2019\",Translation!$A$1:$C$354, Translation!$A1+1, 0)","v":"T3 2019"},{"$f":"VLOOKUP(\"Q2 2019\",Translation!$A$1:$C$354, Translation!$A1+1, 0)","v":"T2 2019"},{"$f":"VLOOKUP(\"Q1 2019\",Translation!$A$1:$C$354, Translation!$A1+1, 0)","v":"T1 2019"},{"$f":"VLOOKUP(\"Q4 2018\",Translation!$A$1:$C$354, Translation!A1+1, 0)","v":"T4 2018"},{"$f":"VLOOKUP(\"Q3 2018\",Translation!$A$1:$C$354, Translation!A1+1, 0)","v":"T3 2018"},{"$f":"VLOOKUP(\"Q2 2018\",Translation!$A$1:$C$354, Translation!A1+1, 0)","v":"T2 2018"},{"$f":"VLOOKUP(\"Q4 2017\",Translation!$A$1:$C$354, Translation!A1+1, 0)","v":"T4 2017"},{"$f":"VLOOKUP(\"Q3 2017\",Translation!$A$1:$C$354, Translation!A1+1, 0)","v":"T3 2017"}]
[{"$f":"VLOOKUP(\"No credit score\",Translation!$A$1:$C$354, Translation!A1+1, 0)","v":"Aucun pointage de crédit"},8.3337959753641611E-2,9.2009944821546993E-2,9.5996567324016985E-2,0.10317552436494197,0.1477454638754801,0.11736608081738122,0.12768516645943656,0.13643305422062416,0.15763387081643832,0.17337702604762642]
[" < 600",0.44553263551886191,0.44985910000362878,0.45303985662817192,0.45699804941578698,0.45988746610403253,0.46145732439059711,0.46482301543344018,0.46994527214149595,0.47778237342965929,0.48253726947842568]
[">= 600 < 680",9.6378471870480702,9.7600088795918492,9.9519326689182339,10.148023665727294,10.350913884868435,10.469732338530283,10.637204402186597,10.810218721557451,11.133662369031537,11.302412669539061]
[">= 680 < 700",6.9073400161884857,6.9818285532893416,7.0627308981799271,7.1592166324111712,7.2471044440165251,7.3028931869589142,7.3739734595628619,7.4512750631492413,7.6028016598889856,7.6783042310544971]
[">= 700 < 750",29.352772472578803,29.444780881787779,29.609872566396866,29.769158817004815,29.956769192183717,30.053113696960672,30.177814969070411,30.308920715250899,30.582907196662767,30.708601207764495]
[">= 750 < 780",25.379868566417805,25.296227025306568,25.182420910291597,25.076203730805062,24.939085993875199,24.895315076439019,24.794621117545372,24.701513410418251,24.48663924938236,24.371165606467297]
[">= 780",28.19330116250174,27.975285615198136,27.644006532258175,27.287223580271618,26.898493555080456,26.700122295906592,26.423877869739282,26.121693763266084,25.558573280787357,25.283601989650805]
[{"$f":"VLOOKUP(\"Average credit score at origination\",Translation!$A$1:$C$354, Translation!A1+1, 0)","v":"Pointage de crédit moyen à l'initiation "},739.9761759051255,739.68403923036317,739.30220293181856,738.87394471461391,738.40657382018514,738.17447432488314,737.79891984191067,737.40773438177644,736.66288812542609,736.2464445605267]
[{"$f":"VLOOKUP(\"Average credit score at origination by province\",Translation!$A$1:$C$354, Translation!A1+1, 0)","v":"Pointage de crédit moyen à l'initiation selon la province"}]
[{"$f":"VLOOKUP(\"Newfoundland and Labrador\",Translation!$A$1:$C$354, Translation!A1+1, 0)","v":"Terre-Neuve-et-Labrador"},726.52002578426959,726.21665886756966,725.91929499072239,725.61335939774222,725.29860683023185,725.49100689881936,725.24640506946128,725.11026355087506,724.52404963561662,724.26375511795572]
[{"$f":"VLOOKUP(\"Prince Edward Island\",Translation!$A$1:$C$354, Translation!A1+1, 0)","v":"Île-du-Prince-Édouard"},724.4899893015446,724.17753350398971,723.69409686441975,722.93645484949957,722.73745339833511,723.28525641025522,722.34223055836026,721.90309690309914,720.90000000000032,720.61177439275309]
[{"$f":"VLOOKUP(\"Nova Scotia\",Translation!$A$1:$C$354, Translation!A1+1, 0)","v":"Nouvelle-Écosse"},724.9040838021009,724.55676659576693,724.05958526745246,723.85671589694266,723.30541756390687,723.23110394158755,722.84543581549246,722.19607351188688,721.50314504320625,721.07613261020845]
[{"$f":"VLOOKUP(\"New Brunswick\",Translation!$A$1:$C$354, Translation!A1+1, 0)","v":"Nouveau-Brunswick"},724.22261684600289,724.03065484226431,723.57823436441595,722.92591085704942,722.51286961079177,722.42317324838564,721.8683958881204,721.25917956411899,720.47547382320874,720.11479955327923]
[{"$f":"VLOOKUP(\"Quebec\",Translation!$A$1:$C$354, Translation!A1+1, 0)","v":"Québec"},746.45034843776023,746.1960707932443,745.86508301470315,745.49243322076813,744.9766668475246,744.72999800272964,744.4440685852087,744.132801256059,743.36927626002023,743.02345739288444]
[{"$f":"VLOOKUP(\"Ontario\",Translation!$A$1:$C$354, Translation!A1+1, 0)","v":"Ontario"},743.21983189951891,742.80399076870128,742.22032163004155,741.62898154744664,741.08792056483719,740.71842523419775,740.19330775657568,739.68015217978802,738.69308500211525,738.18001235617487]
[{"$f":"VLOOKUP(\"Manitoba\",Translation!$A$1:$C$354, Translation!A1+1, 0)","v":"Manitoba"},739.08292572183245,738.79057194929044,738.29840703660204,737.75468699710245,737.3706786427141,737.07223440617884,736.56529468071665,736.19213837703126,735.38862967070656,735.30504039574134]
[{"$f":"VLOOKUP(\"Saskatchewan\",Translation!$A$1:$C$354, Translation!A1+1, 0)","v":"Saskatchewan"},733.31959441664662,733.10715453891271,732.84600677848573,732.48054647411368,732.05384183960371,731.77609987344476,731.53526147277728,731.1261040235529,730.58991500938828,730.32312903700893]
[{"$f":"VLOOKUP(\"Alberta\",Translation!$A$1:$C$354, Translation!A1+1, 0)","v":"Alberta"},735.6423009826517,735.40371271914285,735.16287891799664,734.69018362760471,734.4294675256657,734.25221281694348,733.95103142471521,733.61174430365816,733.25846118264701,732.62472330682499]
[{"$f":"VLOOKUP(\"British Columbia\",Translation!$A$1:$C$354, Translation!A1+1, 0)","v":"Colombie-Britannique"},742.47493546639168,742.10027605604716,741.71116512353944,741.23615344508153,740.84930998084292,740.50993371120671,740.08433033449774,739.6207905760109,738.79714493860092,738.49738052591158]
[{"$f":"VLOOKUP(\"Territories\",Translation!$A$1:$C$354, Translation!A1+1, 0)","v":"Territoires"},729.47977877635765,729.27372013651541,729.38270980788786,729.3483388704301,728.81040709126398,728.6215600065135,728.12823397075215,727.52061117300423,726.95776417019965,726.51069143124585]
[{"$f":"VLOOKUP(\"Distribution based on outstanding loan amounts, not number of loans.\",Translation!$A$1:$C$354, Translation!A1+1, 0)","v":"La répartition est établie d'après le solde, plutôt que le nombre de prêts assurés."}]
[{"$f":"VLOOKUP(\"The sum of all breakdown categories may not add up to 100 due to rounding.\",Translation!$A$1:$C$354, Translation!A1+1, 0)","v":"Les chiffres ayant été arrondis, il se peut que la somme de l'ensemble des catégories n'égale pas 100 %."}]
[]
[{"$f":"VLOOKUP(\"Insurance-in-force by credit score at origination (%)\",Translation!$A$1:$C$354, Translation!A1+1, 0)","v":"Contrats d’assurance en vigueur selon le pointage de crédit à l'initiation (%)"}]
[{"$f":"VLOOKUP(\"PORTFOLIO\",Translation!$A$1:$C$354, Translation!A1+1, 0)","v":"ASSURANCE DE PORTEFEUILLE"},{"$f":"VLOOKUP(\"As at\",Translation!$A$1:$C$354,Translation!A1+1,0)","v":"Aux"}]
[null,{"$f":"VLOOKUP(\"Q1 2020\",Translation!$A$1:$C$354, Translation!$A1+1, 0)","v":"T1 2020"},{"$f":"VLOOKUP(\"Q4 2019\",Translation!$A$1:$C$354, Translation!$A1+1, 0)","v":"T4 2019"},{"$f":"VLOOKUP(\"Q3 2019\",Translation!$A$1:$C$354, Translation!$A1+1, 0)","v":"T3 2019"},{"$f":"VLOOKUP(\"Q2 2019\",Translation!$A$1:$C$354, Translation!$A1+1, 0)","v":"T2 2019"},{"$f":"VLOOKUP(\"Q1 2019\",Translation!$A$1:$C$354, Translation!$A1+1, 0)","v":"T1 2019"},{"$f":"VLOOKUP(\"Q4 2018\",Translation!$A$1:$C$354, Translation!A1+1, 0)","v":"T4 2018"},{"$f":"VLOOKUP(\"Q3 2018\",Translation!$A$1:$C$354, Translation!A1+1, 0)","v":"T3 2018"},{"$f":"VLOOKUP(\"Q2 2018\",Translation!$A$1:$C$354, Translation!A1+1, 0)","v":"T2 2018"},{"$f":"VLOOKUP(\"Q4 2017\",Translation!$A$1:$C$354, Translation!A1+1, 0)","v":"T4 2017"},{"$f":"VLOOKUP(\"Q3 2017\",Translation!$A$1:$C$354, Translation!A1+1, 0)","v":"T3 2017"}]
[{"$f":"VLOOKUP(\"No credit score\",Translation!$A$1:$C$354, Translation!A1+1, 0)","v":"Aucun pointage de crédit"},0.49352671148777444,0.50092416891884306,0.50963188404847426,0.50962886909483862,0.52025333473874869,0.52641380870867538,0.53602477491367806,0.53483511781129256,0.51328052450667183,0.54077848873424061]
[" < 600",0.46487418180763473,0.47209502846416762,0.48313368308184645,0.48254680344777384,0.48874757720983475,0.49094917300219071,0.49076333115405624,0.49195430194818657,0.49999315864668742,0.50854955279410952]
[">= 600 < 680",5.0889444777378818,5.1282950015838731,5.2056143133386277,5.2204893198033755,5.2679461655076016,5.2687447245644652,5.2774405890631488,5.2628824876171567,5.3090300822456236,5.3349217626906054]
[">= 680 < 700",4.4210335550561979,4.4374839655459137,4.4861756567848667,4.4836979806569799,4.5252205539157133,4.5266706709730231,4.5258420571083757,4.528690085931367,4.5631110945094155,4.5719190495747473]
[">= 700 < 750",21.411066058082099,21.430145896109849,21.573787654074671,21.59012070364922,21.711329577157564,21.715882735421861,21.728656612796261,21.729271423290228,21.839756523724194,21.956723046884818]
[">= 750 < 780",25.546732137376527,25.507587832346701,25.480475555428583,25.47341266104139,25.457888157050373,25.45596450768663,25.424675087523074,25.461036100199202,25.490117229873011,25.584602570087174]
[">= 780",42.573822878449782,42.523468107032009,42.261181253243713,42.24010366230393,42.028614634414268,42.015374379641756,42.01659754744945,41.9913304831977,41.784711386490216,41.502505529234263]
[{"$f":"VLOOKUP(\"Average credit score at origination\",Translation!$A$1:$C$354, Translation!A1+1, 0)","v":"Pointage de crédit moyen à l'initiation "},764.21529280435698,764.23980826779405,764.06337847950499,764.03428697618631,763.90806622880712,763.88894370220771,763.88261049319522,763.84571338442868,763.66602831911939,763.41507899606302]
[{"$f":"VLOOKUP(\"Average credit score at origination by province\",Translation!$A$1:$C$354, Translation!A1+1, 0)","v":"Pointage de crédit moyen à l'initiation selon la province"},null,null,null,null," "]
[{"$f":"VLOOKUP(\"Newfoundland and Labrador\",Translation!$A$1:$C$354, Translation!A1+1, 0)","v":"Terre-Neuve-et-Labrador"},756.79789037483579,756.95379839298846,756.65147476901461,756.56220687302664,756.29669325357202,756.26098275301035,756.1349456436111,756.24903635401472,755.90818576203844,755.61926217966709]
[{"$f":"VLOOKUP(\"Prince Edward Island\",Translation!$A$1:$C$354, Translation!A1+1, 0)","v":"Île-du-Prince-Édouard"},756.24156649864221,756.22433035714482,756.02341498559042,756.30564209068996,755.95246066287166,755.63869086195768,755.66284829721371,755.54762606900681,754.97425249169419,754.68753402286177]
[{"$f":"VLOOKUP(\"Nova Scotia\",Translation!$A$1:$C$354, Translation!A1+1, 0)","v":"Nouvelle-Écosse"},755.93791844187422,756.21617524815269,755.97095396297982,756.05072135014711,755.81796554914467,755.91552197802002,755.93174926266545,756.084287987273,755.6548510255991,755.39855662472223]
[{"$f":"VLOOKUP(\"New Brunswick\",Translation!$A$1:$C$354, Translation!A1+1, 0)","v":"Nouveau-Brunswick"},754.65954972168777,754.78280397818207,754.49233284035188,754.51524390243696,754.15452233926737,754.2780180052448,754.46251536255488,754.55819741927087,754.35453983940624,754.13165914908882]
[{"$f":"VLOOKUP(\"Quebec\",Translation!$A$1:$C$354, Translation!A1+1, 0)","v":"Québec"},767.54665776358013,767.59366788980071,767.28384357674622,767.16116820289847,767.03256498955352,766.96834017485719,766.94419170883407,766.77348046222346,766.45945477905684,766.29707587597625]
[{"$f":"VLOOKUP(\"Ontario\",Translation!$A$1:$C$354, Translation!A1+1, 0)","v":"Ontario"},765.66995342427731,765.65156102564413,765.46908755458401,765.42143646133184,765.2866679507589,765.25649090157265,765.2559126995061,765.17927107563139,765.01746431603453,764.72835856411393]
[{"$f":"VLOOKUP(\"Manitoba\",Translation!$A$1:$C$354, Translation!A1+1, 0)","v":"Manitoba"},763.60919866159747,763.57008579704018,763.49474292924322,763.46493376655962,763.48480316480186,763.5492310577622,763.56352745124661,763.54346329288251,763.27062479819153,763.22791414680535]
[{"$f":"VLOOKUP(\"Saskatchewan\",Translation!$A$1:$C$354, Translation!A1+1, 0)","v":"Saskatchewan"},758.91911603422079,758.9337561287532,758.99105665839136,758.92590748394321,758.846772240787,758.83644726859052,758.99276330951659,759.224563115411,759.12519816437168,758.89113652313358]
[{"$f":"VLOOKUP(\"Alberta\",Translation!$A$1:$C$354, Translation!A1+1, 0)","v":"Alberta"},757.20343537181975,757.29974447388759,757.22754013915062,757.38192086357139,757.28008609720678,757.3349751171653,757.31946076103247,757.37766167272093,757.35336618649376,757.16123421992393]
[{"$f":"VLOOKUP(\"British Columbia\",Translation!$A$1:$C$354, Translation!A1+1, 0)","v":"Colombie-Britannique"},766.70380262224262,766.67871801826163,766.50286907080101,766.41318664682274,766.24381886149524,766.15412541782064,766.06654379744509,766.00638380867974,765.70266186700542,765.33321529022055]
[{"$f":"VLOOKUP(\"Territories\",Translation!$A$1:$C$354, Translation!A1+1, 0)","v":"Territoires"},765.74856674856778,765.8147566718992,764.22526146419921,764.06773211567725,764.38629737609324,764.3394625176802,764.39707927677193,764.51251646903859,764.88682745825656,764.30416156670822]
[{"$f":"VLOOKUP(\"Distribution based on outstanding loan amounts, not number of loans.\",Translation!$A$1:$C$354, Translation!A1+1, 0)","v":"La répartition est établie d'après le solde, plutôt que le nombre de prêts assurés."}]
[{"$f":"VLOOKUP(\"The sum of all breakdown categories may not add up to 100 due to rounding.\",Translation!$A$1:$C$354, Translation!A1+1, 0)","v":"Les chiffres ayant été arrondis, il se peut que la somme de l'ensemble des catégories n'égale pas 100 %."}]
[{"$f":"VLOOKUP(\"Portfolio-insured Line of Credit loans with zero ($0.00) balance were included in the number of loans in force starting from Q2 2018.\",Translation!$A$1:$C$354, Translation!A1+1, 0)","v":"Les prêts liés à une marge de crédit couverts par une assurance de portefeuille ayant un solde nul (0,00 $) sont inclus dans le nombre des prêts en cours depuis le deuxième trimestre de 2018."}]

{"sheet":"15","index":16,"n_rows":26,"n_cols":11,"rows_kept":26,"cut":false,"hidden":false,"merged":[[0,5,0,10]]}
[{"$f":"VLOOKUP(\"TRANSACTIONAL HOMEOWNER AND PORTFOLIO - PURCHASE PRICE\",Translation!$A$1:$C$354, Translation!A1+1, 0)","v":"PROPRIÉTAIRES-OCCUPANTS (À L’UNITÉ) ET ASSURANCE DE PORTEFEUILLE - PRIX D'ACHAT"},null,null,null,null,{"$f":"VLOOKUP(\"Back to Table of Contents\",Translation!$A$1:$C$354, Translation!A1+1, 0)","v":"Retour à la table des matières"}]
[{"$f":"VLOOKUP(\"Loans insured in period by purchase price (%)\",Translation!$A$1:$C$354, Translation!A1+1, 0)","v":"Prêts hypothécaires assurés au cours de la période selon le prix d'achat (%)"}]
[{"$f":"VLOOKUP(\"TRANSACTIONAL HOMEOWNER\",Translation!$A$1:$C$354, Translation!A1+1, 0)","v":"PROPRIÉTAIRES-OCCUPANTS, À L’UNITÉ"},{"$f":"VLOOKUP(\"Q1 2020\",Translation!$A$1:$C$354, Translation!$A$1+1, 0)","v":"T1 2020"},{"$f":"VLOOKUP(\"Q4 2019\",Translation!$A$1:$C$354, Translation!$A$1+1, 0)","v":"T4 2019"},{"$f":"VLOOKUP(\"Q3 2019\",Translation!$A$1:$C$354, Translation!$A$1+1, 0)","v":"T3 2019"},{"$f":"VLOOKUP(\"Q2 2019\",Translation!$A$1:$C$354, Translation!$A$1+1, 0)","v":"T2 2019"},{"$f":"VLOOKUP(\"Q1 2019\",Translation!$A$1:$C$354, Translation!$A$1+1, 0)","v":"T1 2019"},{"$f":"VLOOKUP(\"Q4 2018\",Translation!$A$1:$C$354, Translation!$A$1+1, 0)","v":"T4 2018"},{"$f":"VLOOKUP(\"Q3 2018\",Translation!$A$1:$C$354, Translation!$A$1+1, 0)","v":"T3 2018"},{"$f":"VLOOKUP(\"Q2 2018\",Translation!$A$1:$C$354, Translation!$A$1+1, 0)","v":"T2 2018"},{"$f":"VLOOKUP(\"YTD 2020\",Translation!$A$1:$C$354, Translation!$A$1+1, 0)","v":"Cumul 2020"},{"$f":"VLOOKUP(\"YTD 2019\",Translation!$A$1:$C$354, Translation!$A$1+1, 0)","v":"Cumul 2019"}]
[{"$f":"VLOOKUP(\"Over $1,000,000\",Translation!$A$1:$C$354, Translation!A1+1, 0)","v":"Plus de 1 000 000 $"},{"$f":"SUMIFS(Data!$E:$E,Data!$B:$B,'15'!B$3,Data!$C:$C,'15'!$A$3,Data!$D:$D,'15'!$A4,Data!$F:$F,'15'!$A$2)","v":0},{"$f":"SUMIFS(Data!$E:$E,Data!$B:$B,'15'!C$3,Data!$C:$C,'15'!$A$3,Data!$D:$D,'15'!$A4,Data!$F:$F,'15'!$A$2)","v":0},{"$f":"SUMIFS(Data!$E:$E,Data!$B:$B,'15'!D$3,Data!$C:$C,'15'!$A$3,Data!$D:$D,'15'!$A4,Data!$F:$F,'15'!$A$2)","v":0},{"$f":"SUMIFS(Data!$E:$E,Data!$B:$B,'15'!E$3,Data!$C:$C,'15'!$A$3,Data!$D:$D,'15'!$A4,Data!$F:$F,'15'!$A$2)","v":0},{"$f":"SUMIFS(Data!$E:$E,Data!$B:$B,'15'!F$3,Data!$C:$C,'15'!$A$3,Data!$D:$D,'15'!$A4,Data!$F:$F,'15'!$A$2)","v":0},{"$f":"SUMIFS(Data!$E:$E,Data!$B:$B,'15'!G$3,Data!$C:$C,'15'!$A$3,Data!$D:$D,'15'!$A4,Data!$F:$F,'15'!$A$2)","v":0},{"$f":"SUMIFS(Data!$E:$E,Data!$B:$B,'15'!H$3,Data!$C:$C,'15'!$A$3,Data!$D:$D,'15'!$A4,Data!$F:$F,'15'!$A$2)","v":0},{"$f":"SUMIFS(Data!$E:$E,Data!$B:$B,'15'!I$3,Data!$C:$C,'15'!$A$3,Data!$D:$D,'15'!$A4,Data!$F:$F,'15'!$A$2)","v":0},{"$f":"SUMIFS(Data!$E:$E,Data!$B:$B,'15'!J$3,Data!$C:$C,'15'!$A$3,Data!$D:$D,'15'!$A4,Data!$F:$F,'15'!$A$2)","v":0},{"$f":"SUMIFS(Data!$E:$E,Data!$B:$B,'15'!K$3,Data!$C:$C,'15'!$A$3,Data!$D:$D,'15'!$A4,Data!$F:$F,'15'!$A$2)","v":0}]
[{"$f":"VLOOKUP(\"Over $850,000 to $1,000,000\",Translation!$A$1:$C$354, Translation!A1+1, 0)","v":"Plus de 850 000 $ à 1 000 000 $"},{"$f":"SUMIFS(Data!$E:$E,Data!$B:$B,'15'!B$3,Data!$C:$C,'15'!$A$3,Data!$D:$D,'15'!$A5,Data!$F:$F,'15'!$A$2)","v":0.87217043941411443},{"$f":"SUMIFS(Data!$E:$E,Data!$B:$B,'15'!C$3,Data!$C:$C,'15'!$A$3,Data!$D:$D,'15'!$A5,Data!$F:$F,'15'!$A$2)","v":0.69722711973072615},{"$f":"SUMIFS(Data!$E:$E,Data!$B:$B,'15'!D$3,Data!$C:$C,'15'!$A$3,Data!$D:$D,'15'!$A5,Data!$F:$F,'15'!$A$2)","v":0.70496171619388115},{"$f":"SUMIFS(Data!$E:$E,Data!$B:$B,'15'!E$3,Data!$C:$C,'15'!$A$3,Data!$D:$D,'15'!$A5,Data!$F:$F,'15'!$A$2)","v":0.41489803083011512},{"$f":"SUMIFS(Data!$E:$E,Data!$B:$B,'15'!F$3,Data!$C:$C,'15'!$A$3,Data!$D:$D,'15'!$A5,Data!$F:$F,'15'!$A$2)","v":0.56879544963640283},{"$f":"SUMIFS(Data!$E:$E,Data!$B:$B,'15'!G$3,Data!$C:$C,'15'!$A$3,Data!$D:$D,'15'!$A5,Data!$F:$F,'15'!$A$2)","v":0.56350962140501748},{"$f":"SUMIFS(Data!$E:$E,Data!$B:$B,'15'!H$3,Data!$C:$C,'15'!$A$3,Data!$D:$D,'15'!$A5,Data!$F:$F,'15'!$A$2)","v":0.60389248088220815},{"$f":"SUMIFS(Data!$E:$E,Data!$B:$B,'15'!I$3,Data!$C:$C,'15'!$A$3,Data!$D:$D,'15'!$A5,Data!$F:$F,'15'!$A$2)","v":0.41079812206572786},{"$f":"SUMIFS(Data!$E:$E,Data!$B:$B,'15'!J$3,Data!$C:$C,'15'!$A$3,Data!$D:$D,'15'!$A5,Data!$F:$F,'15'!$A$2)","v":0.87217043941411443},{"$f":"SUMIFS(Data!$E:$E,Data!$B:$B,'15'!K$3,Data!$C:$C,'15'!$A$3,Data!$D:$D,'15'!$A5,Data!$F:$F,'15'!$A$2)","v":0.56879544963640283}]
[{"$f":"VLOOKUP(\"Over $600,000 to $850,000\",Translation!$A$1:$C$354, Translation!A1+1, 0)","v":"Plus de 600 000 $ à 850 000 $"},{"$f":"SUMIFS(Data!$E:$E,Data!$B:$B,'15'!B$3,Data!$C:$C,'15'!$A$3,Data!$D:$D,'15'!$A6,Data!$F:$F,'15'!$A$2)","v":6.1384820239680407},{"$f":"SUMIFS(Data!$E:$E,Data!$B:$B,'15'!C$3,Data!$C:$C,'15'!$A$3,Data!$D:$D,'15'!$A6,Data!$F:$F,'15'!$A$2)","v":6.2750440775765348},{"$f":"SUMIFS(Data!$E:$E,Data!$B:$B,'15'!D$3,Data!$C:$C,'15'!$A$3,Data!$D:$D,'15'!$A6,Data!$F:$F,'15'!$A$2)","v":6.1017978210274224},{"$f":"SUMIFS(Data!$E:$E,Data!$B:$B,'15'!E$3,Data!$C:$C,'15'!$A$3,Data!$D:$D,'15'!$A6,Data!$F:$F,'15'!$A$2)","v":3.9830210959691055},{"$f":"SUMIFS(Data!$E:$E,Data!$B:$B,'15'!F$3,Data!$C:$C,'15'!$A$3,Data!$D:$D,'15'!$A6,Data!$F:$F,'15'!$A$2)","v":5.4647562819497448},{"$f":"SUMIFS(Data!$E:$E,Data!$B:$B,'15'!G$3,Data!$C:$C,'15'!$A$3,Data!$D:$D,'15'!$A6,Data!$F:$F,'15'!$A$2)","v":5.1216763367700473},{"$f":"SUMIFS(Data!$E:$E,Data!$B:$B,'15'!H$3,Data!$C:$C,'15'!$A$3,Data!$D:$D,'15'!$A6,Data!$F:$F,'15'!$A$2)","v":4.6637566050740089},{"$f":"SUMIFS(Data!$E:$E,Data!$B:$B,'15'!I$3,Data!$C:$C,'15'!$A$3,Data!$D:$D,'15'!$A6,Data!$F:$F,'15'!$A$2)","v":3.8350938967136146},{"$f":"SUMIFS(Data!$E:$E,Data!$B:$B,'15'!J$3,Data!$C:$C,'15'!$A$3,Data!$D:$D,'15'!$A6,Data!$F:$F,'15'!$A$2)","v":6.1384820239680407},{"$f":"SUMIFS(Data!$E:$E,Data!$B:$B,'15'!K$3,Data!$C:$C,'15'!$A$3,Data!$D:$D,'15'!$A6,Data!$F:$F,'15'!$A$2)","v":5.4647562819497448}]
[{"$f":"VLOOKUP(\"Over $500,000 to $600,000\",Translation!$A$1:$C$354, Translation!A1+1, 0)","v":"Plus de 500 000 $ à 600 000 $"},{"$f":"SUMIFS(Data!$E:$E,Data!$B:$B,'15'!B$3,Data!$C:$C,'15'!$A$3,Data!$D:$D,'15'!$A7,Data!$F:$F,'15'!$A$2)","v":6.8708388814913484},{"$f":"SUMIFS(Data!$E:$E,Data!$B:$B,'15'!C$3,Data!$C:$C,'15'!$A$3,Data!$D:$D,'15'!$A7,Data!$F:$F,'15'!$A$2)","v":6.683763423625579},{"$f":"SUMIFS(Data!$E:$E,Data!$B:$B,'15'!D$3,Data!$C:$C,'15'!$A$3,Data!$D:$D,'15'!$A7,Data!$F:$F,'15'!$A$2)","v":6.0343373697170026},{"$f":"SUMIFS(Data!$E:$E,Data!$B:$B,'15'!E$3,Data!$C:$C,'15'!$A$3,Data!$D:$D,'15'!$A7,Data!$F:$F,'15'!$A$2)","v":4.5862190023298108},{"$f":"SUMIFS(Data!$E:$E,Data!$B:$B,'15'!F$3,Data!$C:$C,'15'!$A$3,Data!$D:$D,'15'!$A7,Data!$F:$F,'15'!$A$2)","v":6.1127510979912154},{"$f":"SUMIFS(Data!$E:$E,Data!$B:$B,'15'!G$3,Data!$C:$C,'15'!$A$3,Data!$D:$D,'15'!$A7,Data!$F:$F,'15'!$A$2)","v":5.7227532662687297},{"$f":"SUMIFS(Data!$E:$E,Data!$B:$B,'15'!H$3,Data!$C:$C,'15'!$A$3,Data!$D:$D,'15'!$A7,Data!$F:$F,'15'!$A$2)","v":5.3332895730086323},{"$f":"SUMIFS(Data!$E:$E,Data!$B:$B,'15'!I$3,Data!$C:$C,'15'!$A$3,Data!$D:$D,'15'!$A7,Data!$F:$F,'15'!$A$2)","v":4.269366197183099},{"$f":"SUMIFS(Data!$E:$E,Data!$B:$B,'15'!J$3,Data!$C:$C,'15'!$A$3,Data!$D:$D,'15'!$A7,Data!$F:$F,'15'!$A$2)","v":6.8708388814913484},{"$f":"SUMIFS(Data!$E:$E,Data!$B:$B,'15'!K$3,Data!$C:$C,'15'!$A$3,Data!$D:$D,'15'!$A7,Data!$F:$F,'15'!$A$2)","v":6.1127510979912154}]
[{"$f":"VLOOKUP(\"Over $400,000 to $500,000\",Translation!$A$1:$C$354, Translation!A1+1, 0)","v":"Plus de 400 000 $ à 500 000 $"},{"$f":"SUMIFS(Data!$E:$E,Data!$B:$B,'15'!B$3,Data!$C:$C,'15'!$A$3,Data!$D:$D,'15'!$A8,Data!$F:$F,'15'!$A$2)","v":12.729693741677764},{"$f":"SUMIFS(Data!$E:$E,Data!$B:$B,'15'!C$3,Data!$C:$C,'15'!$A$3,Data!$D:$D,'15'!$A8,Data!$F:$F,'15'!$A$2)","v":11.941016188491748},{"$f":"SUMIFS(Data!$E:$E,Data!$B:$B,'15'!D$3,Data!$C:$C,'15'!$A$3,Data!$D:$D,'15'!$A8,Data!$F:$F,'15'!$A$2)","v":11.502006948426484},{"$f":"SUMIFS(Data!$E:$E,Data!$B:$B,'15'!E$3,Data!$C:$C,'15'!$A$3,Data!$D:$D,'15'!$A8,Data!$F:$F,'15'!$A$2)","v":9.5937190821178913},{"$f":"SUMIFS(Data!$E:$E,Data!$B:$B,'15'!F$3,Data!$C:$C,'15'!$A$3,Data!$D:$D,'15'!$A8,Data!$F:$F,'15'!$A$2)","v":11.210310317517463},{"$f":"SUMIFS(Data!$E:$E,Data!$B:$B,'15'!G$3,Data!$C:$C,'15'!$A$3,Data!$D:$D,'15'!$A8,Data!$F:$F,'15'!$A$2)","v":10.802688149601364},{"$f":"SUMIFS(Data!$E:$E,Data!$B:$B,'15'!H$3,Data!$C:$C,'15'!$A$3,Data!$D:$D,'15'!$A8,Data!$F:$F,'15'!$A$2)","v":10.748629754832782},{"$f":"SUMIFS(Data!$E:$E,Data!$B:$B,'15'!I$3,Data!$C:$C,'15'!$A$3,Data!$D:$D,'15'!$A8,Data!$F:$F,'15'!$A$2)","v":9.2224178403755861},{"$f":"SUMIFS(Data!$E:$E,Data!$B:$B,'15'!J$3,Data!$C:$C,'15'!$A$3,Data!$D:$D,'15'!$A8,Data!$F:$F,'15'!$A$2)","v":12.729693741677764},{"$f":"SUMIFS(Data!$E:$E,Data!$B:$B,'15'!K$3,Data!$C:$C,'15'!$A$3,Data!$D:$D,'15'!$A8,Data!$F:$F,'15'!$A$2)","v":11.210310317517463}]
[{"$f":"VLOOKUP(\"Over $300,000 to $400,000\",Translation!$A$1:$C$354, Translation!A1+1, 0)","v":"Plus de 300 000 $ à 400 000 $"},{"$f":"SUMIFS(Data!$E:$E,Data!$B:$B,'15'!B$3,Data!$C:$C,'15'!$A$3,Data!$D:$D,'15'!$A9,Data!$F:$F,'15'!$A$2)","v":18.928095872170434},{"$f":"SUMIFS(Data!$E:$E,Data!$B:$B,'15'!C$3,Data!$C:$C,'15'!$A$3,Data!$D:$D,'15'!$A9,Data!$F:$F,'15'!$A$2)","v":19.317999679435804},{"$f":"SUMIFS(Data!$E:$E,Data!$B:$B,'15'!D$3,Data!$C:$C,'15'!$A$3,Data!$D:$D,'15'!$A9,Data!$F:$F,'15'!$A$2)","v":20.221270280298171},{"$f":"SUMIFS(Data!$E:$E,Data!$B:$B,'15'!E$3,Data!$C:$C,'15'!$A$3,Data!$D:$D,'15'!$A9,Data!$F:$F,'15'!$A$2)","v":18.590623304503236},{"$f":"SUMIFS(Data!$E:$E,Data!$B:$B,'15'!F$3,Data!$C:$C,'15'!$A$3,Data!$D:$D,'15'!$A9,Data!$F:$F,'15'!$A$2)","v":19.634242926056597},{"$f":"SUMIFS(Data!$E:$E,Data!$B:$B,'15'!G$3,Data!$C:$C,'15'!$A$3,Data!$D:$D,'15'!$A9,Data!$F:$F,'15'!$A$2)","v":19.835538673456604},{"$f":"SUMIFS(Data!$E:$E,Data!$B:$B,'15'!H$3,Data!$C:$C,'15'!$A$3,Data!$D:$D,'15'!$A9,Data!$F:$F,'15'!$A$2)","v":20.657061275394664},{"$f":"SUMIFS(Data!$E:$E,Data!$B:$B,'15'!I$3,Data!$C:$C,'15'!$A$3,Data!$D:$D,'15'!$A9,Data!$F:$F,'15'!$A$2)","v":19.025821596244128},{"$f":"SUMIFS(Data!$E:$E,Data!$B:$B,'15'!J$3,Data!$C:$C,'15'!$A$3,Data!$D:$D,'15'!$A9,Data!$F:$F,'15'!$A$2)","v":18.928095872170434},{"$f":"SUMIFS(Data!$E:$E,Data!$B:$B,'15'!K$3,Data!$C:$C,'15'!$A$3,Data!$D:$D,'15'!$A9,Data!$F:$F,'15'!$A$2)","v":19.634242926056597}]
[{"$f":"VLOOKUP(\"Over $200,000 to $300,000\",Translation!$A$1:$C$354, Translation!A1+1, 0)","v":"Plus de 200 000 $ à 300 000 $"},{"$f":"SUMIFS(Data!$E:$E,Data!$B:$B,'15'!B$3,Data!$C:$C,'15'!$A$3,Data!$D:$D,'15'!$A10,Data!$F:$F,'15'!$A$2)","v":25.286284953395473},{"$f":"SUMIFS(Data!$E:$E,Data!$B:$B,'15'!C$3,Data!$C:$C,'15'!$A$3,Data!$D:$D,'15'!$A10,Data!$F:$F,'15'!$A$2)","v":26.005770155473641},{"$f":"SUMIFS(Data!$E:$E,Data!$B:$B,'15'!D$3,Data!$C:$C,'15'!$A$3,Data!$D:$D,'15'!$A10,Data!$F:$F,'15'!$A$2)","v":25.736162174924942},{"$f":"SUMIFS(Data!$E:$E,Data!$B:$B,'15'!E$3,Data!$C:$C,'15'!$A$3,Data!$D:$D,'15'!$A10,Data!$F:$F,'15'!$A$2)","v":29.837551463313439},{"$f":"SUMIFS(Data!$E:$E,Data!$B:$B,'15'!F$3,Data!$C:$C,'15'!$A$3,Data!$D:$D,'15'!$A10,Data!$F:$F,'15'!$A$2)","v":26.042191662466703},{"$f":"SUMIFS(Data!$E:$E,Data!$B:$B,'15'!G$3,Data!$C:$C,'15'!$A$3,Data!$D:$D,'15'!$A10,Data!$F:$F,'15'!$A$2)","v":26.188587886630216},{"$f":"SUMIFS(Data!$E:$E,Data!$B:$B,'15'!H$3,Data!$C:$C,'15'!$A$3,Data!$D:$D,'15'!$A10,Data!$F:$F,'15'!$A$2)","v":27.316288686862048},{"$f":"SUMIFS(Data!$E:$E,Data!$B:$B,'15'!I$3,Data!$C:$C,'15'!$A$3,Data!$D:$D,'15'!$A10,Data!$F:$F,'15'!$A$2)","v":30.293427230046952},{"$f":"SUMIFS(Data!$E:$E,Data!$B:$B,'15'!J$3,Data!$C:$C,'15'!$A$3,Data!$D:$D,'15'!$A10,Data!$F:$F,'15'!$A$2)","v":25.286284953395473},{"$f":"SUMIFS(Data!$E:$E,Data!$B:$B,'15'!K$3,Data!$C:$C,'15'!$A$3,Data!$D:$D,'15'!$A10,Data!$F:$F,'15'!$A$2)","v":26.042191662466703}]
[{"$f":"VLOOKUP(\"$200,000 or under\",Translation!$A$1:$C$354, Translation!A1+1, 0)","v":"200 000 $ ou moins"},{"$f":"SUMIFS(Data!$E:$E,Data!$B:$B,'15'!B$3,Data!$C:$C,'15'!$A$3,Data!$D:$D,'15'!$A11,Data!$F:$F,'15'!$A$2)","v":29.174434087882823},{"$f":"SUMIFS(Data!$E:$E,Data!$B:$B,'15'!C$3,Data!$C:$C,'15'!$A$3,Data!$D:$D,'15'!$A11,Data!$F:$F,'15'!$A$2)","v":29.079179355665975},{"$f":"SUMIFS(Data!$E:$E,Data!$B:$B,'15'!D$3,Data!$C:$C,'15'!$A$3,Data!$D:$D,'15'!$A11,Data!$F:$F,'15'!$A$2)","v":29.699463689412077},{"$f":"SUMIFS(Data!$E:$E,Data!$B:$B,'15'!E$3,Data!$C:$C,'15'!$A$3,Data!$D:$D,'15'!$A11,Data!$F:$F,'15'!$A$2)","v":32.993968020936393},{"$f":"SUMIFS(Data!$E:$E,Data!$B:$B,'15'!F$3,Data!$C:$C,'15'!$A$3,Data!$D:$D,'15'!$A11,Data!$F:$F,'15'!$A$2)","v":30.966952264381888},{"$f":"SUMIFS(Data!$E:$E,Data!$B:$B,'15'!G$3,Data!$C:$C,'15'!$A$3,Data!$D:$D,'15'!$A11,Data!$F:$F,'15'!$A$2)","v":31.765246065868009},{"$f":"SUMIFS(Data!$E:$E,Data!$B:$B,'15'!H$3,Data!$C:$C,'15'!$A$3,Data!$D:$D,'15'!$A11,Data!$F:$F,'15'!$A$2)","v":30.677081623945657},{"$f":"SUMIFS(Data!$E:$E,Data!$B:$B,'15'!I$3,Data!$C:$C,'15'!$A$3,Data!$D:$D,'15'!$A11,Data!$F:$F,'15'!$A$2)","v":32.943075117370881},{"$f":"SUMIFS(Data!$E:$E,Data!$B:$B,'15'!J$3,Data!$C:$C,'15'!$A$3,Data!$D:$D,'15'!$A11,Data!$F:$F,'15'!$A$2)","v":29.174434087882823},{"$f":"SUMIFS(Data!$E:$E,Data!$B:$B,'15'!K$3,Data!$C:$C,'15'!$A$3,Data!$D:$D,'15'!$A11,Data!$F:$F,'15'!$A$2)","v":30.966952264381888}]
[{"$f":"VLOOKUP(\"Average purchase price amount ($)\",Translation!$A$1:$C$354, Translation!A1+1, 0)","v":"Prix d'achat moyen ($)"},{"$f":"SUMIFS(Data!$E:$E,Data!$B:$B,'15'!B$3,Data!$C:$C,'15'!$A$3,Data!$D:$D,'15'!$A12,Data!$F:$F,'15'!$A$2)","v":293514.73868375499},{"$f":"SUMIFS(Data!$E:$E,Data!$B:$B,'15'!C$3,Data!$C:$C,'15'!$A$3,Data!$D:$D,'15'!$A12,Data!$F:$F,'15'!$A$2)","v":292063.28484492714},{"$f":"SUMIFS(Data!$E:$E,Data!$B:$B,'15'!D$3,Data!$C:$C,'15'!$A$3,Data!$D:$D,'15'!$A12,Data!$F:$F,'15'!$A$2)","v":294689.01895099034},{"$f":"SUMIFS(Data!$E:$E,Data!$B:$B,'15'!E$3,Data!$C:$C,'15'!$A$3,Data!$D:$D,'15'!$A12,Data!$F:$F,'15'!$A$2)","v":266755.8067171991},{"$f":"SUMIFS(Data!$E:$E,Data!$B:$B,'15'!F$3,Data!$C:$C,'15'!$A$3,Data!$D:$D,'15'!$A12,Data!$F:$F,'15'!$A$2)","v":284164.39020519861},{"$f":"SUMIFS(Data!$E:$E,Data!$B:$B,'15'!G$3,Data!$C:$C,'15'!$A$3,Data!$D:$D,'15'!$A12,Data!$F:$F,'15'!$A$2)","v":281423.37679383904},{"$f":"SUMIFS(Data!$E:$E,Data!$B:$B,'15'!H$3,Data!$C:$C,'15'!$A$3,Data!$D:$D,'15'!$A12,Data!$F:$F,'15'!$A$2)","v":283907.19164790469},{"$f":"SUMIFS(Data!$E:$E,Data!$B:$B,'15'!I$3,Data!$C:$C,'15'!$A$3,Data!$D:$D,'15'!$A12,Data!$F:$F,'15'!$A$2)","v":265802.64885592746},{"$f":"SUMIFS(Data!$E:$E,Data!$B:$B,'15'!J$3,Data!$C:$C,'15'!$A$3,Data!$D:$D,'15'!$A12,Data!$F:$F,'15'!$A$2)","v":293514.73868375499},{"$f":"SUMIFS(Data!$E:$E,Data!$B:$B,'15'!K$3,Data!$C:$C,'15'!$A$3,Data!$D:$D,'15'!$A12,Data!$F:$F,'15'!$A$2)","v":284164.39020519861}]
[{"$f":"VLOOKUP(\"Average purchase price amount ($) by province\",Translation!$A$1:$C$354, Translation!A1+1, 0)","v":"Prix d'achat moyen ($) selon la province"}]
[{"$f":"VLOOKUP(\"Newfoundland and Labrador\",Translation!$A$1:$C$354, Translation!A1+1, 0)","v":"Terre-Neuve-et-Labrador"},{"$f":"SUMIFS(Data!$E:$E,Data!$B:$B,'15'!B$3,Data!$C:$C,'15'!$A$3,Data!$D:$D,'15'!$A14,Data!$F:$F,'15'!$A$2)","v":218571.38711864408},{"$f":"SUMIFS(Data!$E:$E,Data!$B:$B,'15'!C$3,Data!$C:$C,'15'!$A$3,Data!$D:$D,'15'!$A14,Data!$F:$F,'15'!$A$2)","v":210501.34304239397},{"$f":"SUMIFS(Data!$E:$E,Data!$B:$B,'15'!D$3,Data!$C:$C,'15'!$A$3,Data!$D:$D,'15'!$A14,Data!$F:$F,'15'!$A$2)","v":212185.68469339624},{"$f":"SUMIFS(Data!$E:$E,Data!$B:$B,'15'!E$3,Data!$C:$C,'15'!$A$3,Data!$D:$D,'15'!$A14,Data!$F:$F,'15'!$A$2)","v":217883.36238095243},{"$f":"SUMIFS(Data!$E:$E,Data!$B:$B,'15'!F$3,Data!$C:$C,'15'!$A$3,Data!$D:$D,'15'!$A14,Data!$F:$F,'15'!$A$2)","v":206421.5606976744},{"$f":"SUMIFS(Data!$E:$E,Data!$B:$B,'15'!G$3,Data!$C:$C,'15'!$A$3,Data!$D:$D,'15'!$A14,Data!$F:$F,'15'!$A$2)","v":206271.34584210516},{"$f":"SUMIFS(Data!$E:$E,Data!$B:$B,'15'!H$3,Data!$C:$C,'15'!$A$3,Data!$D:$D,'15'!$A14,Data!$F:$F,'15'!$A$2)","v":208650.68704016911},{"$f":"SUMIFS(Data!$E:$E,Data!$B:$B,'15'!I$3,Data!$C:$C,'15'!$A$3,Data!$D:$D,'15'!$A14,Data!$F:$F,'15'!$A$2)","v":210273.68062650604},{"$f":"SUMIFS(Data!$E:$E,Data!$B:$B,'15'!J$3,Data!$C:$C,'15'!$A$3,Data!$D:$D,'15'!$A14,Data!$F:$F,'15'!$A$2)","v":218571.38711864408},{"$f":"SUMIFS(Data!$E:$E,Data!$B:$B,'15'!K$3,Data!$C:$C,'15'!$A$3,Data!$D:$D,'15'!$A14,Data!$F:$F,'15'!$A$2)","v":206421.5606976744}]
[{"$f":"VLOOKUP(\"Prince Edward Island\",Translation!$A$1:$C$354, Translation!A1+1, 0)","v":"Île-du-Prince-Édouard"},{"$f":"SUMIFS(Data!$E:$E,Data!$B:$B,'15'!B$3,Data!$C:$C,'15'!$A$3,Data!$D:$D,'15'!$A15,Data!$F:$F,'15'!$A$2)","v":202155.70744444444},{"$f":"SUMIFS(Data!$E:$E,Data!$B:$B,'15'!C$3,Data!$C:$C,'15'!$A$3,Data!$D:$D,'15'!$A15,Data!$F:$F,'15'!$A$2)","v":190467.55558823529},{"$f":"SUMIFS(Data!$E:$E,Data!$B:$B,'15'!D$3,Data!$C:$C,'15'!$A$3,Data!$D:$D,'15'!$A15,Data!$F:$F,'15'!$A$2)","v":193553.23621761656},{"$f":"SUMIFS(Data!$E:$E,Data!$B:$B,'15'!E$3,Data!$C:$C,'15'!$A$3,Data!$D:$D,'15'!$A15,Data!$F:$F,'15'!$A$2)","v":174585.32909677419},{"$f":"SUMIFS(Data!$E:$E,Data!$B:$B,'15'!F$3,Data!$C:$C,'15'!$A$3,Data!$D:$D,'15'!$A15,Data!$F:$F,'15'!$A$2)","v":171346.37279411763},{"$f":"SUMIFS(Data!$E:$E,Data!$B:$B,'15'!G$3,Data!$C:$C,'15'!$A$3,Data!$D:$D,'15'!$A15,Data!$F:$F,'15'!$A$2)","v":175396.78494186047},{"$f":"SUMIFS(Data!$E:$E,Data!$B:$B,'15'!H$3,Data!$C:$C,'15'!$A$3,Data!$D:$D,'15'!$A15,Data!$F:$F,'15'!$A$2)","v":179683.94570731703},{"$f":"SUMIFS(Data!$E:$E,Data!$B:$B,'15'!I$3,Data!$C:$C,'15'!$A$3,Data!$D:$D,'15'!$A15,Data!$F:$F,'15'!$A$2)","v":163833.63256944445},{"$f":"SUMIFS(Data!$E:$E,Data!$B:$B,'15'!J$3,Data!$C:$C,'15'!$A$3,Data!$D:$D,'15'!$A15,Data!$F:$F,'15'!$A$2)","v":202155.70744444444},{"$f":"SUMIFS(Data!$E:$E,Data!$B:$B,'15'!K$3,Data!$C:$C,'15'!$A$3,Data!$D:$D,'15'!$A15,Data!$F:$F,'15'!$A$2)","v":171346.37279411763}]
[{"$f":"VLOOKUP(\"Nova Scotia\",Translation!$A$1:$C$354, Translation!A1+1, 0)","v":"Nouvelle-Écosse"},{"$f":"SUMIFS(Data!$E:$E,Data!$B:$B,'15'!B$3,Data!$C:$C,'15'!$A$3,Data!$D:$D,'15'!$A16,Data!$F:$F,'15'!$A$2)","v":194841.02244821095},{"$f":"SUMIFS(Data!$E:$E,Data!$B:$B,'15'!C$3,Data!$C:$C,'15'!$A$3,Data!$D:$D,'15'!$A16,Data!$F:$F,'15'!$A$2)","v":187227.87965141603},{"$f":"SUMIFS(Data!$E:$E,Data!$B:$B,'15'!D$3,Data!$C:$C,'15'!$A$3,Data!$D:$D,'15'!$A16,Data!$F:$F,'15'!$A$2)","v":196798.35037779497},{"$f":"SUMIFS(Data!$E:$E,Data!$B:$B,'15'!E$3,Data!$C:$C,'15'!$A$3,Data!$D:$D,'15'!$A16,Data!$F:$F,'15'!$A$2)","v":183054.11877076412},{"$f":"SUMIFS(Data!$E:$E,Data!$B:$B,'15'!F$3,Data!$C:$C,'15'!$A$3,Data!$D:$D,'15'!$A16,Data!$F:$F,'15'!$A$2)","v":177266.1523883495},{"$f":"SUMIFS(Data!$E:$E,Data!$B:$B,'15'!G$3,Data!$C:$C,'15'!$A$3,Data!$D:$D,'15'!$A16,Data!$F:$F,'15'!$A$2)","v":180334.04471251412},{"$f":"SUMIFS(Data!$E:$E,Data!$B:$B,'15'!H$3,Data!$C:$C,'15'!$A$3,Data!$D:$D,'15'!$A16,Data!$F:$F,'15'!$A$2)","v":188699.71481927711},{"$f":"SUMIFS(Data!$E:$E,Data!$B:$B,'15'!I$3,Data!$C:$C,'15'!$A$3,Data!$D:$D,'15'!$A16,Data!$F:$F,'15'!$A$2)","v":182976.26804216873},{"$f":"SUMIFS(Data!$E:$E,Data!$B:$B,'15'!J$3,Data!$C:$C,'15'!$A$3,Data!$D:$D,'15'!$A16,Data!$F:$F,'15'!$A$2)","v":194841.02244821095},{"$f":"SUMIFS(Data!$E:$E,Data!$B:$B,'15'!K$3,Data!$C:$C,'15'!$A$3,Data!$D:$D,'15'!$A16,Data!$F:$F,'15'!$A$2)","v":177266.1523883495}]
[{"$f":"VLOOKUP(\"New Brunswick\",Translation!$A$1:$C$354, Translation!A1+1, 0)","v":"Nouveau-Brunswick"},{"$f":"SUMIFS(Data!$E:$E,Data!$B:$B,'15'!B$3,Data!$C:$C,'15'!$A$3,Data!$D:$D,'15'!$A17,Data!$F:$F,'15'!$A$2)","v":151862.89878402901},{"$f":"SUMIFS(Data!$E:$E,Data!$B:$B,'15'!C$3,Data!$C:$C,'15'!$A$3,Data!$D:$D,'15'!$A17,Data!$F:$F,'15'!$A$2)","v":154213.96527722763},{"$f":"SUMIFS(Data!$E:$E,Data!$B:$B,'15'!D$3,Data!$C:$C,'15'!$A$3,Data!$D:$D,'15'!$A17,Data!$F:$F,'15'!$A$2)","v":159004.9363495576},{"$f":"SUMIFS(Data!$E:$E,Data!$B:$B,'15'!E$3,Data!$C:$C,'15'!$A$3,Data!$D:$D,'15'!$A17,Data!$F:$F,'15'!$A$2)","v":146190.30215458939},{"$f":"SUMIFS(Data!$E:$E,Data!$B:$B,'15'!F$3,Data!$C:$C,'15'!$A$3,Data!$D:$D,'15'!$A17,Data!$F:$F,'15'!$A$2)","v":147485.81534322817},{"$f":"SUMIFS(Data!$E:$E,Data!$B:$B,'15'!G$3,Data!$C:$C,'15'!$A$3,Data!$D:$D,'15'!$A17,Data!$F:$F,'15'!$A$2)","v":151758.54046466597},{"$f":"SUMIFS(Data!$E:$E,Data!$B:$B,'15'!H$3,Data!$C:$C,'15'!$A$3,Data!$D:$D,'15'!$A17,Data!$F:$F,'15'!$A$2)","v":152157.47037995153},{"$f":"SUMIFS(Data!$E:$E,Data!$B:$B,'15'!I$3,Data!$C:$C,'15'!$A$3,Data!$D:$D,'15'!$A17,Data!$F:$F,'15'!$A$2)","v":144244.08321495328},{"$f":"SUMIFS(Data!$E:$E,Data!$B:$B,'15'!J$3,Data!$C:$C,'15'!$A$3,Data!$D:$D,'15'!$A17,Data!$F:$F,'15'!$A$2)","v":151862.89878402901},{"$f":"SUMIFS(Data!$E:$E,Data!$B:$B,'15'!K$3,Data!$C:$C,'15'!$A$3,Data!$D:$D,'15'!$A17,Data!$F:$F,'15'!$A$2)","v":147485.81534322817}]
[{"$f":"VLOOKUP(\"Quebec\",Translation!$A$1:$C$354, Translation!A1+1, 0)","v":"Québec"},{"$f":"SUMIFS(Data!$E:$E,Data!$B:$B,'15'!B$3,Data!$C:$C,'15'!$A$3,Data!$D:$D,'15'!$A18,Data!$F:$F,'15'!$A$2)","v":224936.91260295379},{"$f":"SUMIFS(Data!$E:$E,Data!$B:$B,'15'!C$3,Data!$C:$C,'15'!$A$3,Data!$D:$D,'15'!$A18,Data!$F:$F,'15'!$A$2)","v":221806.75814653185},{"$f":"SUMIFS(Data!$E:$E,Data!$B:$B,'15'!D$3,Data!$C:$C,'15'!$A$3,Data!$D:$D,'15'!$A18,Data!$F:$F,'15'!$A$2)","v":222519.55023427613},{"$f":"SUMIFS(Data!$E:$E,Data!$B:$B,'15'!E$3,Data!$C:$C,'15'!$A$3,Data!$D:$D,'15'!$A18,Data!$F:$F,'15'!$A$2)","v":222034.03772437287},{"$f":"SUMIFS(Data!$E:$E,Data!$B:$B,'15'!F$3,Data!$C:$C,'15'!$A$3,Data!$D:$D,'15'!$A18,Data!$F:$F,'15'!$A$2)","v":213288.34494907499},{"$f":"SUMIFS(Data!$E:$E,Data!$B:$B,'15'!G$3,Data!$C:$C,'15'!$A$3,Data!$D:$D,'15'!$A18,Data!$F:$F,'15'!$A$2)","v":212290.17032266501},{"$f":"SUMIFS(Data!$E:$E,Data!$B:$B,'15'!H$3,Data!$C:$C,'15'!$A$3,Data!$D:$D,'15'!$A18,Data!$F:$F,'15'!$A$2)","v":215533.27713050903},{"$f":"SUMIFS(Data!$E:$E,Data!$B:$B,'15'!I$3,Data!$C:$C,'15'!$A$3,Data!$D:$D,'15'!$A18,Data!$F:$F,'15'!$A$2)","v":216676.42987532687},{"$f":"SUMIFS(Data!$E:$E,Data!$B:$B,'15'!J$3,Data!$C:$C,'15'!$A$3,Data!$D:$D,'15'!$A18,Data!$F:$F,'15'!$A$2)","v":224936.91260295379},{"$f":"SUMIFS(Data!$E:$E,Data!$B:$B,'15'!K$3,Data!$C:$C,'15'!$A$3,Data!$D:$D,'15'!$A18,Data!$F:$F,'15'!$A$2)","v":213288.34494907499}]
[{"$f":"VLOOKUP(\"Ontario\",Translation!$A$1:$C$354, Translation!A1+1, 0)","v":"Ontario"},{"$f":"SUMIFS(Data!$E:$E,Data!$B:$B,'15'!B$3,Data!$C:$C,'15'!$A$3,Data!$D:$D,'15'!$A19,Data!$F:$F,'15'!$A$2)","v":415778.06554310606},{"$f":"SUMIFS(Data!$E:$E,Data!$B:$B,'15'!C$3,Data!$C:$C,'15'!$A$3,Data!$D:$D,'15'!$A19,Data!$F:$F,'15'!$A$2)","v":399995.58704473358},{"$f":"SUMIFS(Data!$E:$E,Data!$B:$B,'15'!D$3,Data!$C:$C,'15'!$A$3,Data!$D:$D,'15'!$A19,Data!$F:$F,'15'!$A$2)","v":399371.26382245449},{"$f":"SUMIFS(Data!$E:$E,Data!$B:$B,'15'!E$3,Data!$C:$C,'15'!$A$3,Data!$D:$D,'15'!$A19,Data!$F:$F,'15'!$A$2)","v":377334.33043986635},{"$f":"SUMIFS(Data!$E:$E,Data!$B:$B,'15'!F$3,Data!$C:$C,'15'!$A$3,Data!$D:$D,'15'!$A19,Data!$F:$F,'15'!$A$2)","v":383631.07253792282},{"$f":"SUMIFS(Data!$E:$E,Data!$B:$B,'15'!G$3,Data!$C:$C,'15'!$A$3,Data!$D:$D,'15'!$A19,Data!$F:$F,'15'!$A$2)","v":370343.30226421193},{"$f":"SUMIFS(Data!$E:$E,Data!$B:$B,'15'!H$3,Data!$C:$C,'15'!$A$3,Data!$D:$D,'15'!$A19,Data!$F:$F,'15'!$A$2)","v":364435.12662907119},{"$f":"SUMIFS(Data!$E:$E,Data!$B:$B,'15'!I$3,Data!$C:$C,'15'!$A$3,Data!$D:$D,'15'!$A19,Data!$F:$F,'15'!$A$2)","v":362073.42739423655},{"$f":"SUMIFS(Data!$E:$E,Data!$B:$B,'15'!J$3,Data!$C:$C,'15'!$A$3,Data!$D:$D,'15'!$A19,Data!$F:$F,'15'!$A$2)","v":415778.06554310606},{"$f":"SUMIFS(Data!$E:$E,Data!$B:$B,'15'!K$3,Data!$C:$C,'15'!$A$3,Data!$D:$D,'15'!$A19,Data!$F:$F,'15'!$A$2)","v":383631.07253792282}]
[{"$f":"VLOOKUP(\"Manitoba\",Translation!$A$1:$C$354, Translation!A1+1, 0)","v":"Manitoba"},{"$f":"SUMIFS(Data!$E:$E,Data!$B:$B,'15'!B$3,Data!$C:$C,'15'!$A$3,Data!$D:$D,'15'!$A20,Data!$F:$F,'15'!$A$2)","v":254823.43708333329},{"$f":"SUMIFS(Data!$E:$E,Data!$B:$B,'15'!C$3,Data!$C:$C,'15'!$A$3,Data!$D:$D,'15'!$A20,Data!$F:$F,'15'!$A$2)","v":259634.17026037423},{"$f":"SUMIFS(Data!$E:$E,Data!$B:$B,'15'!D$3,Data!$C:$C,'15'!$A$3,Data!$D:$D,'15'!$A20,Data!$F:$F,'15'!$A$2)","v":260198.77011487304},{"$f":"SUMIFS(Data!$E:$E,Data!$B:$B,'15'!E$3,Data!$C:$C,'15'!$A$3,Data!$D:$D,'15'!$A20,Data!$F:$F,'15'!$A$2)","v":253569.31223255821},{"$f":"SUMIFS(Data!$E:$E,Data!$B:$B,'15'!F$3,Data!$C:$C,'15'!$A$3,Data!$D:$D,'15'!$A20,Data!$F:$F,'15'!$A$2)","v":243071.35035653657},{"$f":"SUMIFS(Data!$E:$E,Data!$B:$B,'15'!G$3,Data!$C:$C,'15'!$A$3,Data!$D:$D,'15'!$A20,Data!$F:$F,'15'!$A$2)","v":243509.30709150317},{"$f":"SUMIFS(Data!$E:$E,Data!$B:$B,'15'!H$3,Data!$C:$C,'15'!$A$3,Data!$D:$D,'15'!$A20,Data!$F:$F,'15'!$A$2)","v":253994.15274772039},{"$f":"SUMIFS(Data!$E:$E,Data!$B:$B,'15'!I$3,Data!$C:$C,'15'!$A$3,Data!$D:$D,'15'!$A20,Data!$F:$F,'15'!$A$2)","v":249052.98704770472},{"$f":"SUMIFS(Data!$E:$E,Data!$B:$B,'15'!J$3,Data!$C:$C,'15'!$A$3,Data!$D:$D,'15'!$A20,Data!$F:$F,'15'!$A$2)","v":254823.43708333329},{"$f":"SUMIFS(Data!$E:$E,Data!$B:$B,'15'!K$3,Data!$C:$C,'15'!$A$3,Data!$D:$D,'15'!$A20,Data!$F:$F,'15'!$A$2)","v":243071.35035653657}]
[{"$f":"VLOOKUP(\"Saskatchewan\",Translation!$A$1:$C$354, Translation!A1+1, 0)","v":"Saskatchewan"},{"$f":"SUMIFS(Data!$E:$E,Data!$B:$B,'15'!B$3,Data!$C:$C,'15'!$A$3,Data!$D:$D,'15'!$A21,Data!$F:$F,'15'!$A$2)","v":237540.34244897956},{"$f":"SUMIFS(Data!$E:$E,Data!$B:$B,'15'!C$3,Data!$C:$C,'15'!$A$3,Data!$D:$D,'15'!$A21,Data!$F:$F,'15'!$A$2)","v":247887.37539042821},{"$f":"SUMIFS(Data!$E:$E,Data!$B:$B,'15'!D$3,Data!$C:$C,'15'!$A$3,Data!$D:$D,'15'!$A21,Data!$F:$F,'15'!$A$2)","v":251150.02477497255},{"$f":"SUMIFS(Data!$E:$E,Data!$B:$B,'15'!E$3,Data!$C:$C,'15'!$A$3,Data!$D:$D,'15'!$A21,Data!$F:$F,'15'!$A$2)","v":240054.26735722276},{"$f":"SUMIFS(Data!$E:$E,Data!$B:$B,'15'!F$3,Data!$C:$C,'15'!$A$3,Data!$D:$D,'15'!$A21,Data!$F:$F,'15'!$A$2)","v":250141.17077647059},{"$f":"SUMIFS(Data!$E:$E,Data!$B:$B,'15'!G$3,Data!$C:$C,'15'!$A$3,Data!$D:$D,'15'!$A21,Data!$F:$F,'15'!$A$2)","v":245271.85631650756},{"$f":"SUMIFS(Data!$E:$E,Data!$B:$B,'15'!H$3,Data!$C:$C,'15'!$A$3,Data!$D:$D,'15'!$A21,Data!$F:$F,'15'!$A$2)","v":251924.15005086464},{"$f":"SUMIFS(Data!$E:$E,Data!$B:$B,'15'!I$3,Data!$C:$C,'15'!$A$3,Data!$D:$D,'15'!$A21,Data!$F:$F,'15'!$A$2)","v":248177.12962703957},{"$f":"SUMIFS(Data!$E:$E,Data!$B:$B,'15'!J$3,Data!$C:$C,'15'!$A$3,Data!$D:$D,'15'!$A21,Data!$F:$F,'15'!$A$2)","v":237540.34244897956},{"$f":"SUMIFS(Data!$E:$E,Data!$B:$B,'15'!K$3,Data!$C:$C,'15'!$A$3,Data!$D:$D,'15'!$A21,Data!$F:$F,'15'!$A$2)","v":250141.17077647059}]
[{"$f":"VLOOKUP(\"Alberta\",Translation!$A$1:$C$354, Translation!A1+1, 0)","v":"Alberta"},{"$f":"SUMIFS(Data!$E:$E,Data!$B:$B,'15'!B$3,Data!$C:$C,'15'!$A$3,Data!$D:$D,'15'!$A22,Data!$F:$F,'15'!$A$2)","v":327523.19027994486},{"$f":"SUMIFS(Data!$E:$E,Data!$B:$B,'15'!C$3,Data!$C:$C,'15'!$A$3,Data!$D:$D,'15'!$A22,Data!$F:$F,'15'!$A$2)","v":324595.79579926794},{"$f":"SUMIFS(Data!$E:$E,Data!$B:$B,'15'!D$3,Data!$C:$C,'15'!$A$3,Data!$D:$D,'15'!$A22,Data!$F:$F,'15'!$A$2)","v":331161.74619631906},{"$f":"SUMIFS(Data!$E:$E,Data!$B:$B,'15'!E$3,Data!$C:$C,'15'!$A$3,Data!$D:$D,'15'!$A22,Data!$F:$F,'15'!$A$2)","v":327681.32022026443},{"$f":"SUMIFS(Data!$E:$E,Data!$B:$B,'15'!F$3,Data!$C:$C,'15'!$A$3,Data!$D:$D,'15'!$A22,Data!$F:$F,'15'!$A$2)","v":328594.52403508779},{"$f":"SUMIFS(Data!$E:$E,Data!$B:$B,'15'!G$3,Data!$C:$C,'15'!$A$3,Data!$D:$D,'15'!$A22,Data!$F:$F,'15'!$A$2)","v":329488.36858447455},{"$f":"SUMIFS(Data!$E:$E,Data!$B:$B,'15'!H$3,Data!$C:$C,'15'!$A$3,Data!$D:$D,'15'!$A22,Data!$F:$F,'15'!$A$2)","v":335044.22795533395},{"$f":"SUMIFS(Data!$E:$E,Data!$B:$B,'15'!I$3,Data!$C:$C,'15'!$A$3,Data!$D:$D,'15'!$A22,Data!$F:$F,'15'!$A$2)","v":331007.89234492806},{"$f":"SUMIFS(Data!$E:$E,Data!$B:$B,'15'!J$3,Data!$C:$C,'15'!$A$3,Data!$D:$D,'15'!$A22,Data!$F:$F,'15'!$A$2)","v":327523.19027994486},{"$f":"SUMIFS(Data!$E:$E,Data!$B:$B,'15'!K$3,Data!$C:$C,'15'!$A$3,Data!$D:$D,'15'!$A22,Data!$F:$F,'15'!$A$2)","v":328594.52403508779}]
[{"$f":"VLOOKUP(\"British Columbia\",Translation!$A$1:$C$354, Translation!A1+1, 0)","v":"Colombie-Britannique"},{"$f":"SUMIFS(Data!$E:$E,Data!$B:$B,'15'!B$3,Data!$C:$C,'15'!$A$3,Data!$D:$D,'15'!$A23,Data!$F:$F,'15'!$A$2)","v":392097.30567255965},{"$f":"SUMIFS(Data!$E:$E,Data!$B:$B,'15'!C$3,Data!$C:$C,'15'!$A$3,Data!$D:$D,'15'!$A23,Data!$F:$F,'15'!$A$2)","v":381599.83740019967},{"$f":"SUMIFS(Data!$E:$E,Data!$B:$B,'15'!D$3,Data!$C:$C,'15'!$A$3,Data!$D:$D,'15'!$A23,Data!$F:$F,'15'!$A$2)","v":370570.12516501657},{"$f":"SUMIFS(Data!$E:$E,Data!$B:$B,'15'!E$3,Data!$C:$C,'15'!$A$3,Data!$D:$D,'15'!$A23,Data!$F:$F,'15'!$A$2)","v":359327.11688029679},{"$f":"SUMIFS(Data!$E:$E,Data!$B:$B,'15'!F$3,Data!$C:$C,'15'!$A$3,Data!$D:$D,'15'!$A23,Data!$F:$F,'15'!$A$2)","v":366616.84799319721},{"$f":"SUMIFS(Data!$E:$E,Data!$B:$B,'15'!G$3,Data!$C:$C,'15'!$A$3,Data!$D:$D,'15'!$A23,Data!$F:$F,'15'!$A$2)","v":351160.2053621778},{"$f":"SUMIFS(Data!$E:$E,Data!$B:$B,'15'!H$3,Data!$C:$C,'15'!$A$3,Data!$D:$D,'15'!$A23,Data!$F:$F,'15'!$A$2)","v":355575.18375933927},{"$f":"SUMIFS(Data!$E:$E,Data!$B:$B,'15'!I$3,Data!$C:$C,'15'!$A$3,Data!$D:$D,'15'!$A23,Data!$F:$F,'15'!$A$2)","v":347718.13980659354},{"$f":"SUMIFS(Data!$E:$E,Data!$B:$B,'15'!J$3,Data!$C:$C,'15'!$A$3,Data!$D:$D,'15'!$A23,Data!$F:$F,'15'!$A$2)","v":392097.30567255965},{"$f":"SUMIFS(Data!$E:$E,Data!$B:$B,'15'!K$3,Data!$C:$C,'15'!$A$3,Data!$D:$D,'15'!$A23,Data!$F:$F,'15'!$A$2)","v":366616.84799319721}]
[{"$f":"VLOOKUP(\"Territories\",Translation!$A$1:$C$354, Translation!A1+1, 0)","v":"Territoires"},{"$f":"SUMIFS(Data!$E:$E,Data!$B:$B,'15'!B$3,Data!$C:$C,'15'!$A$3,Data!$D:$D,'15'!$A24,Data!$F:$F,'15'!$A$2)","v":357202.21048387093},{"$f":"SUMIFS(Data!$E:$E,Data!$B:$B,'15'!C$3,Data!$C:$C,'15'!$A$3,Data!$D:$D,'15'!$A24,Data!$F:$F,'15'!$A$2)","v":332714.43121428578},{"$f":"SUMIFS(Data!$E:$E,Data!$B:$B,'15'!D$3,Data!$C:$C,'15'!$A$3,Data!$D:$D,'15'!$A24,Data!$F:$F,'15'!$A$2)","v":360299.48824858753},{"$f":"SUMIFS(Data!$E:$E,Data!$B:$B,'15'!E$3,Data!$C:$C,'15'!$A$3,Data!$D:$D,'15'!$A24,Data!$F:$F,'15'!$A$2)","v":358961.83083969483},{"$f":"SUMIFS(Data!$E:$E,Data!$B:$B,'15'!F$3,Data!$C:$C,'15'!$A$3,Data!$D:$D,'15'!$A24,Data!$F:$F,'15'!$A$2)","v":335579.7183098591},{"$f":"SUMIFS(Data!$E:$E,Data!$B:$B,'15'!G$3,Data!$C:$C,'15'!$A$3,Data!$D:$D,'15'!$A24,Data!$F:$F,'15'!$A$2)","v":365293.16258333327},{"$f":"SUMIFS(Data!$E:$E,Data!$B:$B,'15'!H$3,Data!$C:$C,'15'!$A$3,Data!$D:$D,'15'!$A24,Data!$F:$F,'15'!$A$2)","v":362407.78850828722},{"$f":"SUMIFS(Data!$E:$E,Data!$B:$B,'15'!I$3,Data!$C:$C,'15'!$A$3,Data!$D:$D,'15'!$A24,Data!$F:$F,'15'!$A$2)","v":335860.78473684198},{"$f":"SUMIFS(Data!$E:$E,Data!$B:$B,'15'!J$3,Data!$C:$C,'15'!$A$3,Data!$D:$D,'15'!$A24,Data!$F:$F,'15'!$A$2)","v":357202.21048387093},{"$f":"SUMIFS(Data!$E:$E,Data!$B:$B,'15'!K$3,Data!$C:$C,'15'!$A$3,Data!$D:$D,'15'!$A24,Data!$F:$F,'15'!$A$2)","v":335579.7183098591}]
[{"$f":"VLOOKUP(\"Distribution based on number of units, not number of loans.\",Translation!$A$1:$C$354, Translation!A1+1, 0)","v":"La répartition est établie d'après le nombre de logements, plutôt que le nombre de prêts assurés."}]
[{"$f":"VLOOKUP(\"The sum of all breakdown categories may not add up to 100 due to rounding.\",Translation!$A$1:$C$354, Translation!A1+1, 0)","v":"Les chiffres ayant été arrondis, il se peut que la somme de l'ensemble des catégories n'égale pas 100 %."}]

{"sheet":"16","index":17,"n_rows":47,"n_cols":11,"rows_kept":47,"cut":false,"hidden":false,"merged":[[0,5,0,10]]}
[{"$f":"VLOOKUP(\"TRANSACTIONAL HOMEOWNER AND PORTFOLIO - DWELLING TYPE\",Translation!$A$1:$C$354, Translation!A1+1, 0)","v":"PROPRIÉTAIRES-OCCUPANTS (À L’UNITÉ) ET ASSURANCE DE PORTEFEUILLE – TYPE DE LOGEMENT"},null,null,null,null,{"$f":"VLOOKUP(\"Back to Table of Contents\",Translation!$A$1:$C$354, Translation!A1+1, 0)","v":"Retour à la table des matières"}]
[{"$f":"VLOOKUP(\"Loans insured in period by dwelling type (%)\",Translation!$A$1:$C$354, Translation!A1+1, 0)","v":"Prêts hypothécaires assurés au cours de la période selon le type de logement (%)"}]
[{"$f":"VLOOKUP(\"TRANSACTIONAL HOMEOWNER\",Translation!$A$1:$C$354, Translation!A1+1, 0)","v":"PROPRIÉTAIRES-OCCUPANTS, À L’UNITÉ"},{"$f":"VLOOKUP(\"Q1 2020\",Translation!$A$1:$C$354, Translation!$A$1+1, 0)","v":"T1 2020"},{"$f":"VLOOKUP(\"Q4 2019\",Translation!$A$1:$C$354, Translation!$A$1+1, 0)","v":"T4 2019"},{"$f":"VLOOKUP(\"Q3 2019\",Translation!$A$1:$C$354, Translation!$A$1+1, 0)","v":"T3 2019"},{"$f":"VLOOKUP(\"Q2 2019\",Translation!$A$1:$C$354, Translation!$A$1+1, 0)","v":"T2 2019"},{"$f":"VLOOKUP(\"Q1 2019\",Translation!$A$1:$C$354, Translation!$A$1+1, 0)","v":"T1 2019"},{"$f":"VLOOKUP(\"Q4 2018\",Translation!$A$1:$C$354, Translation!$A$1+1, 0)","v":"T4 2018"},{"$f":"VLOOKUP(\"Q3 2018\",Translation!$A$1:$C$354, Translation!$A$1+1, 0)","v":"T3 2018"},{"$f":"VLOOKUP(\"Q2 2018\",Translation!$A$1:$C$354, Translation!$A$1+1, 0)","v":"T2 2018"},{"$f":"VLOOKUP(\"YTD 2020\",Translation!$A$1:$C$354, Translation!$A$1+1, 0)","v":"Cumul 2020"},{"$f":"VLOOKUP(\"YTD 2019\",Translation!$A$1:$C$354, Translation!$A$1+1, 0)","v":"Cumul 2019"}]
[{"$f":"VLOOKUP(\"Single\",Translation!$A$1:$C$354, Translation!A1+1, 0)","v":"Logement unifamilial"},{"$f":"SUMIFS(Data!$E:$E,Data!$B:$B,'16'!B$3,Data!$C:$C,'16'!$A$3,Data!$D:$D,'16'!$A4,Data!$F:$F,'16'!$A$2)","v":59.442237444758291},{"$f":"SUMIFS(Data!$E:$E,Data!$B:$B,'16'!C$3,Data!$C:$C,'16'!$A$3,Data!$D:$D,'16'!$A4,Data!$F:$F,'16'!$A$2)","v":61.957639074485186},{"$f":"SUMIFS(Data!$E:$E,Data!$B:$B,'16'!D$3,Data!$C:$C,'16'!$A$3,Data!$D:$D,'16'!$A4,Data!$F:$F,'16'!$A$2)","v":64.499147770875879},{"$f":"SUMIFS(Data!$E:$E,Data!$B:$B,'16'!E$3,Data!$C:$C,'16'!$A$3,Data!$D:$D,'16'!$A4,Data!$F:$F,'16'!$A$2)","v":63.517025144539346},{"$f":"SUMIFS(Data!$E:$E,Data!$B:$B,'16'!F$3,Data!$C:$C,'16'!$A$3,Data!$D:$D,'16'!$A4,Data!$F:$F,'16'!$A$2)","v":60.530718924729598},{"$f":"SUMIFS(Data!$E:$E,Data!$B:$B,'16'!G$3,Data!$C:$C,'16'!$A$3,Data!$D:$D,'16'!$A4,Data!$F:$F,'16'!$A$2)","v":63.740854907548048},{"$f":"SUMIFS(Data!$E:$E,Data!$B:$B,'16'!H$3,Data!$C:$C,'16'!$A$3,Data!$D:$D,'16'!$A4,Data!$F:$F,'16'!$A$2)","v":65.826591265341619},{"$f":"SUMIFS(Data!$E:$E,Data!$B:$B,'16'!I$3,Data!$C:$C,'16'!$A$3,Data!$D:$D,'16'!$A4,Data!$F:$F,'16'!$A$2)","v":62.957602040956687},{"$f":"SUMIFS(Data!$E:$E,Data!$B:$B,'16'!J$3,Data!$C:$C,'16'!$A$3,Data!$D:$D,'16'!$A4,Data!$F:$F,'16'!$A$2)","v":59.442237444758291},{"$f":"SUMIFS(Data!$E:$E,Data!$B:$B,'16'!K$3,Data!$C:$C,'16'!$A$3,Data!$D:$D,'16'!$A4,Data!$F:$F,'16'!$A$2)","v":60.530718924729598}]
[{"$f":"VLOOKUP(\"Row\",Translation!$A$1:$C$354, Translation!A1+1, 0)","v":"Maison en rangée"},{"$f":"SUMIFS(Data!$E:$E,Data!$B:$B,'16'!B$3,Data!$C:$C,'16'!$A$3,Data!$D:$D,'16'!$A5,Data!$F:$F,'16'!$A$2)","v":12.16651786200836},{"$f":"SUMIFS(Data!$E:$E,Data!$B:$B,'16'!C$3,Data!$C:$C,'16'!$A$3,Data!$D:$D,'16'!$A5,Data!$F:$F,'16'!$A$2)","v":11.454607298617043},{"$f":"SUMIFS(Data!$E:$E,Data!$B:$B,'16'!D$3,Data!$C:$C,'16'!$A$3,Data!$D:$D,'16'!$A5,Data!$F:$F,'16'!$A$2)","v":10.589133921119048},{"$f":"SUMIFS(Data!$E:$E,Data!$B:$B,'16'!E$3,Data!$C:$C,'16'!$A$3,Data!$D:$D,'16'!$A5,Data!$F:$F,'16'!$A$2)","v":8.9529529422820797},{"$f":"SUMIFS(Data!$E:$E,Data!$B:$B,'16'!F$3,Data!$C:$C,'16'!$A$3,Data!$D:$D,'16'!$A5,Data!$F:$F,'16'!$A$2)","v":11.680925087964919},{"$f":"SUMIFS(Data!$E:$E,Data!$B:$B,'16'!G$3,Data!$C:$C,'16'!$A$3,Data!$D:$D,'16'!$A5,Data!$F:$F,'16'!$A$2)","v":10.953226812762423},{"$f":"SUMIFS(Data!$E:$E,Data!$B:$B,'16'!H$3,Data!$C:$C,'16'!$A$3,Data!$D:$D,'16'!$A5,Data!$F:$F,'16'!$A$2)","v":10.322332038686902},{"$f":"SUMIFS(Data!$E:$E,Data!$B:$B,'16'!I$3,Data!$C:$C,'16'!$A$3,Data!$D:$D,'16'!$A5,Data!$F:$F,'16'!$A$2)","v":9.5247836853622072},{"$f":"SUMIFS(Data!$E:$E,Data!$B:$B,'16'!J$3,Data!$C:$C,'16'!$A$3,Data!$D:$D,'16'!$A5,Data!$F:$F,'16'!$A$2)","v":12.16651786200836},{"$f":"SUMIFS(Data!$E:$E,Data!$B:$B,'16'!K$3,Data!$C:$C,'16'!$A$3,Data!$D:$D,'16'!$A5,Data!$F:$F,'16'!$A$2)","v":11.680925087964919}]
[{"$f":"VLOOKUP(\"Apartment\",Translation!$A$1:$C$354, Translation!A1+1, 0)","v":"Appartement"},{"$f":"SUMIFS(Data!$E:$E,Data!$B:$B,'16'!B$3,Data!$C:$C,'16'!$A$3,Data!$D:$D,'16'!$A6,Data!$F:$F,'16'!$A$2)","v":12.759134554110048},{"$f":"SUMIFS(Data!$E:$E,Data!$B:$B,'16'!C$3,Data!$C:$C,'16'!$A$3,Data!$D:$D,'16'!$A6,Data!$F:$F,'16'!$A$2)","v":10.805505781425863},{"$f":"SUMIFS(Data!$E:$E,Data!$B:$B,'16'!D$3,Data!$C:$C,'16'!$A$3,Data!$D:$D,'16'!$A6,Data!$F:$F,'16'!$A$2)","v":9.6872203061293405},{"$f":"SUMIFS(Data!$E:$E,Data!$B:$B,'16'!E$3,Data!$C:$C,'16'!$A$3,Data!$D:$D,'16'!$A6,Data!$F:$F,'16'!$A$2)","v":10.95500852329678},{"$f":"SUMIFS(Data!$E:$E,Data!$B:$B,'16'!F$3,Data!$C:$C,'16'!$A$3,Data!$D:$D,'16'!$A6,Data!$F:$F,'16'!$A$2)","v":12.306383296722164},{"$f":"SUMIFS(Data!$E:$E,Data!$B:$B,'16'!G$3,Data!$C:$C,'16'!$A$3,Data!$D:$D,'16'!$A6,Data!$F:$F,'16'!$A$2)","v":10.004770548218213},{"$f":"SUMIFS(Data!$E:$E,Data!$B:$B,'16'!H$3,Data!$C:$C,'16'!$A$3,Data!$D:$D,'16'!$A6,Data!$F:$F,'16'!$A$2)","v":9.8196009734337579},{"$f":"SUMIFS(Data!$E:$E,Data!$B:$B,'16'!I$3,Data!$C:$C,'16'!$A$3,Data!$D:$D,'16'!$A6,Data!$F:$F,'16'!$A$2)","v":10.966098713605126},{"$f":"SUMIFS(Data!$E:$E,Data!$B:$B,'16'!J$3,Data!$C:$C,'16'!$A$3,Data!$D:$D,'16'!$A6,Data!$F:$F,'16'!$A$2)","v":12.759134554110048},{"$f":"SUMIFS(Data!$E:$E,Data!$B:$B,'16'!K$3,Data!$C:$C,'16'!$A$3,Data!$D:$D,'16'!$A6,Data!$F:$F,'16'!$A$2)","v":12.306383296722164}]
[{"$f":"VLOOKUP(\"Semi-detached\",Translation!$A$1:$C$354, Translation!A1+1, 0)","v":"Jumelé"},{"$f":"SUMIFS(Data!$E:$E,Data!$B:$B,'16'!B$3,Data!$C:$C,'16'!$A$3,Data!$D:$D,'16'!$A7,Data!$F:$F,'16'!$A$2)","v":7.4502219570865185},{"$f":"SUMIFS(Data!$E:$E,Data!$B:$B,'16'!C$3,Data!$C:$C,'16'!$A$3,Data!$D:$D,'16'!$A7,Data!$F:$F,'16'!$A$2)","v":7.5610113548557472},{"$f":"SUMIFS(Data!$E:$E,Data!$B:$B,'16'!D$3,Data!$C:$C,'16'!$A$3,Data!$D:$D,'16'!$A7,Data!$F:$F,'16'!$A$2)","v":7.9442808914986802},{"$f":"SUMIFS(Data!$E:$E,Data!$B:$B,'16'!E$3,Data!$C:$C,'16'!$A$3,Data!$D:$D,'16'!$A7,Data!$F:$F,'16'!$A$2)","v":8.40712397724959},{"$f":"SUMIFS(Data!$E:$E,Data!$B:$B,'16'!F$3,Data!$C:$C,'16'!$A$3,Data!$D:$D,'16'!$A7,Data!$F:$F,'16'!$A$2)","v":7.7943501321951487},{"$f":"SUMIFS(Data!$E:$E,Data!$B:$B,'16'!G$3,Data!$C:$C,'16'!$A$3,Data!$D:$D,'16'!$A7,Data!$F:$F,'16'!$A$2)","v":7.5980910693123764},{"$f":"SUMIFS(Data!$E:$E,Data!$B:$B,'16'!H$3,Data!$C:$C,'16'!$A$3,Data!$D:$D,'16'!$A7,Data!$F:$F,'16'!$A$2)","v":7.3443868652778255},{"$f":"SUMIFS(Data!$E:$E,Data!$B:$B,'16'!I$3,Data!$C:$C,'16'!$A$3,Data!$D:$D,'16'!$A7,Data!$F:$F,'16'!$A$2)","v":8.8701673466730426},{"$f":"SUMIFS(Data!$E:$E,Data!$B:$B,'16'!J$3,Data!$C:$C,'16'!$A$3,Data!$D:$D,'16'!$A7,Data!$F:$F,'16'!$A$2)","v":7.4502219570865185},{"$f":"SUMIFS(Data!$E:$E,Data!$B:$B,'16'!K$3,Data!$C:$C,'16'!$A$3,Data!$D:$D,'16'!$A7,Data!$F:$F,'16'!$A$2)","v":7.7943501321951487}]
[{"$f":"VLOOKUP(\"Plexes\",Translation!$A$1:$C$354, Translation!A1+1, 0)","v":"Plex"},{"$f":"SUMIFS(Data!$E:$E,Data!$B:$B,'16'!B$3,Data!$C:$C,'16'!$A$3,Data!$D:$D,'16'!$A8,Data!$F:$F,'16'!$A$2)","v":5.0997774689337314},{"$f":"SUMIFS(Data!$E:$E,Data!$B:$B,'16'!C$3,Data!$C:$C,'16'!$A$3,Data!$D:$D,'16'!$A8,Data!$F:$F,'16'!$A$2)","v":5.04728662646066},{"$f":"SUMIFS(Data!$E:$E,Data!$B:$B,'16'!D$3,Data!$C:$C,'16'!$A$3,Data!$D:$D,'16'!$A8,Data!$F:$F,'16'!$A$2)","v":3.6390001100508096},{"$f":"SUMIFS(Data!$E:$E,Data!$B:$B,'16'!E$3,Data!$C:$C,'16'!$A$3,Data!$D:$D,'16'!$A8,Data!$F:$F,'16'!$A$2)","v":4.9672539940064073},{"$f":"SUMIFS(Data!$E:$E,Data!$B:$B,'16'!F$3,Data!$C:$C,'16'!$A$3,Data!$D:$D,'16'!$A8,Data!$F:$F,'16'!$A$2)","v":4.559844760089546},{"$f":"SUMIFS(Data!$E:$E,Data!$B:$B,'16'!G$3,Data!$C:$C,'16'!$A$3,Data!$D:$D,'16'!$A8,Data!$F:$F,'16'!$A$2)","v":4.2382574261923027},{"$f":"SUMIFS(Data!$E:$E,Data!$B:$B,'16'!H$3,Data!$C:$C,'16'!$A$3,Data!$D:$D,'16'!$A8,Data!$F:$F,'16'!$A$2)","v":3.4332898974713912},{"$f":"SUMIFS(Data!$E:$E,Data!$B:$B,'16'!I$3,Data!$C:$C,'16'!$A$3,Data!$D:$D,'16'!$A8,Data!$F:$F,'16'!$A$2)","v":4.6907205649369805},{"$f":"SUMIFS(Data!$E:$E,Data!$B:$B,'16'!J$3,Data!$C:$C,'16'!$A$3,Data!$D:$D,'16'!$A8,Data!$F:$F,'16'!$A$2)","v":5.0997774689337314},{"$f":"SUMIFS(Data!$E:$E,Data!$B:$B,'16'!K$3,Data!$C:$C,'16'!$A$3,Data!$D:$D,'16'!$A8,Data!$F:$F,'16'!$A$2)","v":4.559844760089546}]
[{"$f":"VLOOKUP(\"Other\",Translation!$A$1:$C$354, Translation!A1+1, 0)","v":"Autre"},{"$f":"SUMIFS(Data!$E:$E,Data!$B:$B,'16'!B$3,Data!$C:$C,'16'!$A$3,Data!$D:$D,'16'!$A9,Data!$F:$F,'16'!$A$2)","v":3.0821107131030825},{"$f":"SUMIFS(Data!$E:$E,Data!$B:$B,'16'!C$3,Data!$C:$C,'16'!$A$3,Data!$D:$D,'16'!$A9,Data!$F:$F,'16'!$A$2)","v":3.1739498641555146},{"$f":"SUMIFS(Data!$E:$E,Data!$B:$B,'16'!D$3,Data!$C:$C,'16'!$A$3,Data!$D:$D,'16'!$A9,Data!$F:$F,'16'!$A$2)","v":3.6412170003262343},{"$f":"SUMIFS(Data!$E:$E,Data!$B:$B,'16'!E$3,Data!$C:$C,'16'!$A$3,Data!$D:$D,'16'!$A9,Data!$F:$F,'16'!$A$2)","v":3.2006354186258124},{"$f":"SUMIFS(Data!$E:$E,Data!$B:$B,'16'!F$3,Data!$C:$C,'16'!$A$3,Data!$D:$D,'16'!$A9,Data!$F:$F,'16'!$A$2)","v":3.127777798298637},{"$f":"SUMIFS(Data!$E:$E,Data!$B:$B,'16'!G$3,Data!$C:$C,'16'!$A$3,Data!$D:$D,'16'!$A9,Data!$F:$F,'16'!$A$2)","v":3.4647992359666762},{"$f":"SUMIFS(Data!$E:$E,Data!$B:$B,'16'!H$3,Data!$C:$C,'16'!$A$3,Data!$D:$D,'16'!$A9,Data!$F:$F,'16'!$A$2)","v":3.253798959788524},{"$f":"SUMIFS(Data!$E:$E,Data!$B:$B,'16'!I$3,Data!$C:$C,'16'!$A$3,Data!$D:$D,'16'!$A9,Data!$F:$F,'16'!$A$2)","v":2.9906276484659404},{"$f":"SUMIFS(Data!$E:$E,Data!$B:$B,'16'!J$3,Data!$C:$C,'16'!$A$3,Data!$D:$D,'16'!$A9,Data!$F:$F,'16'!$A$2)","v":3.0821107131030825},{"$f":"SUMIFS(Data!$E:$E,Data!$B:$B,'16'!K$3,Data!$C:$C,'16'!$A$3,Data!$D:$D,'16'!$A9,Data!$F:$F,'16'!$A$2)","v":3.127777798298637}]
[{"$f":"VLOOKUP(\"Single by province (%)\",Translation!$A$1:$C$354, Translation!A1+1, 0)","v":"Logements individuels selon la province (%)"}]
[{"$f":"VLOOKUP(\"Newfoundland and Labrador\",Translation!$A$1:$C$354, Translation!A1+1, 0)","v":"Terre-Neuve-et-Labrador"},{"$f":"IF(SUMIFS(Data!$E:$E,Data!$B:$B,'16'!B$3,Data!$C:$C,'16'!$A$3,Data!$D:$D,'16'!$A11,Data!$F:$F,'16'!$A$2)=0,\"-\",SUMIFS(Data!$E:$E,Data!$B:$B,'16'!B$3,Data!$C:$C,'16'!$A$3,Data!$D:$D,'16'!$A11,Data!$F:$F,'16'!$A$2))","v":80.653309502098011},{"$f":"IF(SUMIFS(Data!$E:$E,Data!$B:$B,'16'!C$3,Data!$C:$C,'16'!$A$3,Data!$D:$D,'16'!$A11,Data!$F:$F,'16'!$A$2)=0,\"-\",SUMIFS(Data!$E:$E,Data!$B:$B,'16'!C$3,Data!$C:$C,'16'!$A$3,Data!$D:$D,'16'!$A11,Data!$F:$F,'16'!$A$2))","v":83.755830161362297},{"$f":"IF(SUMIFS(Data!$E:$E,Data!$B:$B,'16'!D$3,Data!$C:$C,'16'!$A$3,Data!$D:$D,'16'!$A11,Data!$F:$F,'16'!$A$2)=0,\"-\",SUMIFS(Data!$E:$E,Data!$B:$B,'16'!D$3,Data!$C:$C,'16'!$A$3,Data!$D:$D,'16'!$A11,Data!$F:$F,'16'!$A$2))","v":83.558794354523741},{"$f":"IF(SUMIFS(Data!$E:$E,Data!$B:$B,'16'!E$3,Data!$C:$C,'16'!$A$3,Data!$D:$D,'16'!$A11,Data!$F:$F,'16'!$A$2)=0,\"-\",SUMIFS(Data!$E:$E,Data!$B:$B,'16'!E$3,Data!$C:$C,'16'!$A$3,Data!$D:$D,'16'!$A11,Data!$F:$F,'16'!$A$2))","v":80.772537882447395},{"$f":"IF(SUMIFS(Data!$E:$E,Data!$B:$B,'16'!F$3,Data!$C:$C,'16'!$A$3,Data!$D:$D,'16'!$A11,Data!$F:$F,'16'!$A$2)=0,\"-\",SUMIFS(Data!$E:$E,Data!$B:$B,'16'!F$3,Data!$C:$C,'16'!$A$3,Data!$D:$D,'16'!$A11,Data!$F:$F,'16'!$A$2))","v":82.082294385906877},{"$f":"IF(SUMIFS(Data!$E:$E,Data!$B:$B,'16'!G$3,Data!$C:$C,'16'!$A$3,Data!$D:$D,'16'!$A11,Data!$F:$F,'16'!$A$2)=0,\"-\",SUMIFS(Data!$E:$E,Data!$B:$B,'16'!G$3,Data!$C:$C,'16'!$A$3,Data!$D:$D,'16'!$A11,Data!$F:$F,'16'!$A$2))","v":87.487034500741956},{"$f":"IF(SUMIFS(Data!$E:$E,Data!$B:$B,'16'!H$3,Data!$C:$C,'16'!$A$3,Data!$D:$D,'16'!$A11,Data!$F:$F,'16'!$A$2)=0,\"-\",SUMIFS(Data!$E:$E,Data!$B:$B,'16'!H$3,Data!$C:$C,'16'!$A$3,Data!$D:$D,'16'!$A11,Data!$F:$F,'16'!$A$2))","v":84.228802592474239},{"$f":"IF(SUMIFS(Data!$E:$E,Data!$B:$B,'16'!I$3,Data!$C:$C,'16'!$A$3,Data!$D:$D,'16'!$A11,Data!$F:$F,'16'!$A$2)=0,\"-\",SUMIFS(Data!$E:$E,Data!$B:$B,'16'!I$3,Data!$C:$C,'16'!$A$3,Data!$D:$D,'16'!$A11,Data!$F:$F,'16'!$A$2))","v":81.449877029456502},{"$f":"IF(SUMIFS(Data!$E:$E,Data!$B:$B,'16'!J$3,Data!$C:$C,'16'!$A$3,Data!$D:$D,'16'!$A11,Data!$F:$F,'16'!$A$2)=0,\"-\",SUMIFS(Data!$E:$E,Data!$B:$B,'16'!J$3,Data!$C:$C,'16'!$A$3,Data!$D:$D,'16'!$A11,Data!$F:$F,'16'!$A$2))","v":80.653309502098011},{"$f":"IF(SUMIFS(Data!$E:$E,Data!$B:$B,'16'!K$3,Data!$C:$C,'16'!$A$3,Data!$D:$D,'16'!$A11,Data!$F:$F,'16'!$A$2)=0,\"-\",SUMIFS(Data!$E:$E,Data!$B:$B,'16'!K$3,Data!$C:$C,'16'!$A$3,Data!$D:$D,'16'!$A11,Data!$F:$F,'16'!$A$2))","v":82.082294385906877}]
[{"$f":"VLOOKUP(\"Prince Edward Island\",Translation!$A$1:$C$354, Translation!A1+1, 0)","v":"Île-du-Prince-Édouard"},{"$f":"IF(SUMIFS(Data!$E:$E,Data!$B:$B,'16'!B$3,Data!$C:$C,'16'!$A$3,Data!$D:$D,'16'!$A12,Data!$F:$F,'16'!$A$2)=0,\"-\",SUMIFS(Data!$E:$E,Data!$B:$B,'16'!B$3,Data!$C:$C,'16'!$A$3,Data!$D:$D,'16'!$A12,Data!$F:$F,'16'!$A$2))","v":66.342069431467664},{"$f":"IF(SUMIFS(Data!$E:$E,Data!$B:$B,'16'!C$3,Data!$C:$C,'16'!$A$3,Data!$D:$D,'16'!$A12,Data!$F:$F,'16'!$A$2)=0,\"-\",SUMIFS(Data!$E:$E,Data!$B:$B,'16'!C$3,Data!$C:$C,'16'!$A$3,Data!$D:$D,'16'!$A12,Data!$F:$F,'16'!$A$2))","v":66.199617288171723},{"$f":"IF(SUMIFS(Data!$E:$E,Data!$B:$B,'16'!D$3,Data!$C:$C,'16'!$A$3,Data!$D:$D,'16'!$A12,Data!$F:$F,'16'!$A$2)=0,\"-\",SUMIFS(Data!$E:$E,Data!$B:$B,'16'!D$3,Data!$C:$C,'16'!$A$3,Data!$D:$D,'16'!$A12,Data!$F:$F,'16'!$A$2))","v":75.199990354619501},{"$f":"IF(SUMIFS(Data!$E:$E,Data!$B:$B,'16'!E$3,Data!$C:$C,'16'!$A$3,Data!$D:$D,'16'!$A12,Data!$F:$F,'16'!$A$2)=0,\"-\",SUMIFS(Data!$E:$E,Data!$B:$B,'16'!E$3,Data!$C:$C,'16'!$A$3,Data!$D:$D,'16'!$A12,Data!$F:$F,'16'!$A$2))","v":79.312838052176943},{"$f":"IF(SUMIFS(Data!$E:$E,Data!$B:$B,'16'!F$3,Data!$C:$C,'16'!$A$3,Data!$D:$D,'16'!$A12,Data!$F:$F,'16'!$A$2)=0,\"-\",SUMIFS(Data!$E:$E,Data!$B:$B,'16'!F$3,Data!$C:$C,'16'!$A$3,Data!$D:$D,'16'!$A12,Data!$F:$F,'16'!$A$2))","v":79.913448652940247},{"$f":"IF(SUMIFS(Data!$E:$E,Data!$B:$B,'16'!G$3,Data!$C:$C,'16'!$A$3,Data!$D:$D,'16'!$A12,Data!$F:$F,'16'!$A$2)=0,\"-\",SUMIFS(Data!$E:$E,Data!$B:$B,'16'!G$3,Data!$C:$C,'16'!$A$3,Data!$D:$D,'16'!$A12,Data!$F:$F,'16'!$A$2))","v":75.067168756256891},{"$f":"IF(SUMIFS(Data!$E:$E,Data!$B:$B,'16'!H$3,Data!$C:$C,'16'!$A$3,Data!$D:$D,'16'!$A12,Data!$F:$F,'16'!$A$2)=0,\"-\",SUMIFS(Data!$E:$E,Data!$B:$B,'16'!H$3,Data!$C:$C,'16'!$A$3,Data!$D:$D,'16'!$A12,Data!$F:$F,'16'!$A$2))","v":79.393681443396943},{"$f":"IF(SUMIFS(Data!$E:$E,Data!$B:$B,'16'!I$3,Data!$C:$C,'16'!$A$3,Data!$D:$D,'16'!$A12,Data!$F:$F,'16'!$A$2)=0,\"-\",SUMIFS(Data!$E:$E,Data!$B:$B,'16'!I$3,Data!$C:$C,'16'!$A$3,Data!$D:$D,'16'!$A12,Data!$F:$F,'16'!$A$2))","v":71.933216362349555},{"$f":"IF(SUMIFS(Data!$E:$E,Data!$B:$B,'16'!J$3,Data!$C:$C,'16'!$A$3,Data!$D:$D,'16'!$A12,Data!$F:$F,'16'!$A$2)=0,\"-\",SUMIFS(Data!$E:$E,Data!$B:$B,'16'!J$3,Data!$C:$C,'16'!$A$3,Data!$D:$D,'16'!$A12,Data!$F:$F,'16'!$A$2))","v":66.342069431467664},{"$f":"IF(SUMIFS(Data!$E:$E,Data!$B:$B,'16'!K$3,Data!$C:$C,'16'!$A$3,Data!$D:$D,'16'!$A12,Data!$F:$F,'16'!$A$2)=0,\"-\",SUMIFS(Data!$E:$E,Data!$B:$B,'16'!K$3,Data!$C:$C,'16'!$A$3,Data!$D:$D,'16'!$A12,Data!$F:$F,'16'!$A$2))","v":79.913448652940247}]
[{"$f":"VLOOKUP(\"Nova Scotia\",Translation!$A$1:$C$354, Translation!A1+1, 0)","v":"Nouvelle-Écosse"},{"$f":"IF(SUMIFS(Data!$E:$E,Data!$B:$B,'16'!B$3,Data!$C:$C,'16'!$A$3,Data!$D:$D,'16'!$A13,Data!$F:$F,'16'!$A$2)=0,\"-\",SUMIFS(Data!$E:$E,Data!$B:$B,'16'!B$3,Data!$C:$C,'16'!$A$3,Data!$D:$D,'16'!$A13,Data!$F:$F,'16'!$A$2))","v":74.173593100686787},{"$f":"IF(SUMIFS(Data!$E:$E,Data!$B:$B,'16'!C$3,Data!$C:$C,'16'!$A$3,Data!$D:$D,'16'!$A13,Data!$F:$F,'16'!$A$2)=0,\"-\",SUMIFS(Data!$E:$E,Data!$B:$B,'16'!C$3,Data!$C:$C,'16'!$A$3,Data!$D:$D,'16'!$A13,Data!$F:$F,'16'!$A$2))","v":78.784825761525994},{"$f":"IF(SUMIFS(Data!$E:$E,Data!$B:$B,'16'!D$3,Data!$C:$C,'16'!$A$3,Data!$D:$D,'16'!$A13,Data!$F:$F,'16'!$A$2)=0,\"-\",SUMIFS(Data!$E:$E,Data!$B:$B,'16'!D$3,Data!$C:$C,'16'!$A$3,Data!$D:$D,'16'!$A13,Data!$F:$F,'16'!$A$2))","v":80.021299601452512},{"$f":"IF(SUMIFS(Data!$E:$E,Data!$B:$B,'16'!E$3,Data!$C:$C,'16'!$A$3,Data!$D:$D,'16'!$A13,Data!$F:$F,'16'!$A$2)=0,\"-\",SUMIFS(Data!$E:$E,Data!$B:$B,'16'!E$3,Data!$C:$C,'16'!$A$3,Data!$D:$D,'16'!$A13,Data!$F:$F,'16'!$A$2))","v":77.593194300606498},{"$f":"IF(SUMIFS(Data!$E:$E,Data!$B:$B,'16'!F$3,Data!$C:$C,'16'!$A$3,Data!$D:$D,'16'!$A13,Data!$F:$F,'16'!$A$2)=0,\"-\",SUMIFS(Data!$E:$E,Data!$B:$B,'16'!F$3,Data!$C:$C,'16'!$A$3,Data!$D:$D,'16'!$A13,Data!$F:$F,'16'!$A$2))","v":76.669034265228618},{"$f":"IF(SUMIFS(Data!$E:$E,Data!$B:$B,'16'!G$3,Data!$C:$C,'16'!$A$3,Data!$D:$D,'16'!$A13,Data!$F:$F,'16'!$A$2)=0,\"-\",SUMIFS(Data!$E:$E,Data!$B:$B,'16'!G$3,Data!$C:$C,'16'!$A$3,Data!$D:$D,'16'!$A13,Data!$F:$F,'16'!$A$2))","v":77.943227930942498},{"$f":"IF(SUMIFS(Data!$E:$E,Data!$B:$B,'16'!H$3,Data!$C:$C,'16'!$A$3,Data!$D:$D,'16'!$A13,Data!$F:$F,'16'!$A$2)=0,\"-\",SUMIFS(Data!$E:$E,Data!$B:$B,'16'!H$3,Data!$C:$C,'16'!$A$3,Data!$D:$D,'16'!$A13,Data!$F:$F,'16'!$A$2))","v":80.240270895527019},{"$f":"IF(SUMIFS(Data!$E:$E,Data!$B:$B,'16'!I$3,Data!$C:$C,'16'!$A$3,Data!$D:$D,'16'!$A13,Data!$F:$F,'16'!$A$2)=0,\"-\",SUMIFS(Data!$E:$E,Data!$B:$B,'16'!I$3,Data!$C:$C,'16'!$A$3,Data!$D:$D,'16'!$A13,Data!$F:$F,'16'!$A$2))","v":80.069995475604387},{"$f":"IF(SUMIFS(Data!$E:$E,Data!$B:$B,'16'!J$3,Data!$C:$C,'16'!$A$3,Data!$D:$D,'16'!$A13,Data!$F:$F,'16'!$A$2)=0,\"-\",SUMIFS(Data!$E:$E,Data!$B:$B,'16'!J$3,Data!$C:$C,'16'!$A$3,Data!$D:$D,'16'!$A13,Data!$F:$F,'16'!$A$2))","v":74.173593100686787},{"$f":"IF(SUMIFS(Data!$E:$E,Data!$B:$B,'16'!K$3,Data!$C:$C,'16'!$A$3,Data!$D:$D,'16'!$A13,Data!$F:$F,'16'!$A$2)=0,\"-\",SUMIFS(Data!$E:$E,Data!$B:$B,'16'!K$3,Data!$C:$C,'16'!$A$3,Data!$D:$D,'16'!$A13,Data!$F:$F,'16'!$A$2))","v":76.669034265228618}]
[{"$f":"VLOOKUP(\"New Brunswick\",Translation!$A$1:$C$354, Translation!A1+1, 0)","v":"Nouveau-Brunswick"},{"$f":"IF(SUMIFS(Data!$E:$E,Data!$B:$B,'16'!B$3,Data!$C:$C,'16'!$A$3,Data!$D:$D,'16'!$A14,Data!$F:$F,'16'!$A$2)=0,\"-\",SUMIFS(Data!$E:$E,Data!$B:$B,'16'!B$3,Data!$C:$C,'16'!$A$3,Data!$D:$D,'16'!$A14,Data!$F:$F,'16'!$A$2))","v":79.119934748877199},{"$f":"IF(SUMIFS(Data!$E:$E,Data!$B:$B,'16'!C$3,Data!$C:$C,'16'!$A$3,Data!$D:$D,'16'!$A14,Data!$F:$F,'16'!$A$2)=0,\"-\",SUMIFS(Data!$E:$E,Data!$B:$B,'16'!C$3,Data!$C:$C,'16'!$A$3,Data!$D:$D,'16'!$A14,Data!$F:$F,'16'!$A$2))","v":81.364350045131985},{"$f":"IF(SUMIFS(Data!$E:$E,Data!$B:$B,'16'!D$3,Data!$C:$C,'16'!$A$3,Data!$D:$D,'16'!$A14,Data!$F:$F,'16'!$A$2)=0,\"-\",SUMIFS(Data!$E:$E,Data!$B:$B,'16'!D$3,Data!$C:$C,'16'!$A$3,Data!$D:$D,'16'!$A14,Data!$F:$F,'16'!$A$2))","v":82.439889349350722},{"$f":"IF(SUMIFS(Data!$E:$E,Data!$B:$B,'16'!E$3,Data!$C:$C,'16'!$A$3,Data!$D:$D,'16'!$A14,Data!$F:$F,'16'!$A$2)=0,\"-\",SUMIFS(Data!$E:$E,Data!$B:$B,'16'!E$3,Data!$C:$C,'16'!$A$3,Data!$D:$D,'16'!$A14,Data!$F:$F,'16'!$A$2))","v":77.919233725192385},{"$f":"IF(SUMIFS(Data!$E:$E,Data!$B:$B,'16'!F$3,Data!$C:$C,'16'!$A$3,Data!$D:$D,'16'!$A14,Data!$F:$F,'16'!$A$2)=0,\"-\",SUMIFS(Data!$E:$E,Data!$B:$B,'16'!F$3,Data!$C:$C,'16'!$A$3,Data!$D:$D,'16'!$A14,Data!$F:$F,'16'!$A$2))","v":82.428453241333614},{"$f":"IF(SUMIFS(Data!$E:$E,Data!$B:$B,'16'!G$3,Data!$C:$C,'16'!$A$3,Data!$D:$D,'16'!$A14,Data!$F:$F,'16'!$A$2)=0,\"-\",SUMIFS(Data!$E:$E,Data!$B:$B,'16'!G$3,Data!$C:$C,'16'!$A$3,Data!$D:$D,'16'!$A14,Data!$F:$F,'16'!$A$2))","v":83.668392774400644},{"$f":"IF(SUMIFS(Data!$E:$E,Data!$B:$B,'16'!H$3,Data!$C:$C,'16'!$A$3,Data!$D:$D,'16'!$A14,Data!$F:$F,'16'!$A$2)=0,\"-\",SUMIFS(Data!$E:$E,Data!$B:$B,'16'!H$3,Data!$C:$C,'16'!$A$3,Data!$D:$D,'16'!$A14,Data!$F:$F,'16'!$A$2))","v":83.569736488119119},{"$f":"IF(SUMIFS(Data!$E:$E,Data!$B:$B,'16'!I$3,Data!$C:$C,'16'!$A$3,Data!$D:$D,'16'!$A14,Data!$F:$F,'16'!$A$2)=0,\"-\",SUMIFS(Data!$E:$E,Data!$B:$B,'16'!I$3,Data!$C:$C,'16'!$A$3,Data!$D:$D,'16'!$A14,Data!$F:$F,'16'!$A$2))","v":83.219051024946779},{"$f":"IF(SUMIFS(Data!$E:$E,Data!$B:$B,'16'!J$3,Data!$C:$C,'16'!$A$3,Data!$D:$D,'16'!$A14,Data!$F:$F,'16'!$A$2)=0,\"-\",SUMIFS(Data!$E:$E,Data!$B:$B,'16'!J$3,Data!$C:$C,'16'!$A$3,Data!$D:$D,'16'!$A14,Data!$F:$F,'16'!$A$2))","v":79.119934748877199},{"$f":"IF(SUMIFS(Data!$E:$E,Data!$B:$B,'16'!K$3,Data!$C:$C,'16'!$A$3,Data!$D:$D,'16'!$A14,Data!$F:$F,'16'!$A$2)=0,\"-\",SUMIFS(Data!$E:$E,Data!$B:$B,'16'!K$3,Data!$C:$C,'16'!$A$3,Data!$D:$D,'16'!$A14,Data!$F:$F,'16'!$A$2))","v":82.428453241333614}]
[{"$f":"VLOOKUP(\"Quebec\",Translation!$A$1:$C$354, Translation!A1+1, 0)","v":"Québec"},{"$f":"IF(SUMIFS(Data!$E:$E,Data!$B:$B,'16'!B$3,Data!$C:$C,'16'!$A$3,Data!$D:$D,'16'!$A15,Data!$F:$F,'16'!$A$2)=0,\"-\",SUMIFS(Data!$E:$E,Data!$B:$B,'16'!B$3,Data!$C:$C,'16'!$A$3,Data!$D:$D,'16'!$A15,Data!$F:$F,'16'!$A$2))","v":56.870810681822498},{"$f":"IF(SUMIFS(Data!$E:$E,Data!$B:$B,'16'!C$3,Data!$C:$C,'16'!$A$3,Data!$D:$D,'16'!$A15,Data!$F:$F,'16'!$A$2)=0,\"-\",SUMIFS(Data!$E:$E,Data!$B:$B,'16'!C$3,Data!$C:$C,'16'!$A$3,Data!$D:$D,'16'!$A15,Data!$F:$F,'16'!$A$2))","v":57.269345954637394},{"$f":"IF(SUMIFS(Data!$E:$E,Data!$B:$B,'16'!D$3,Data!$C:$C,'16'!$A$3,Data!$D:$D,'16'!$A15,Data!$F:$F,'16'!$A$2)=0,\"-\",SUMIFS(Data!$E:$E,Data!$B:$B,'16'!D$3,Data!$C:$C,'16'!$A$3,Data!$D:$D,'16'!$A15,Data!$F:$F,'16'!$A$2))","v":60.997735958272791},{"$f":"IF(SUMIFS(Data!$E:$E,Data!$B:$B,'16'!E$3,Data!$C:$C,'16'!$A$3,Data!$D:$D,'16'!$A15,Data!$F:$F,'16'!$A$2)=0,\"-\",SUMIFS(Data!$E:$E,Data!$B:$B,'16'!E$3,Data!$C:$C,'16'!$A$3,Data!$D:$D,'16'!$A15,Data!$F:$F,'16'!$A$2))","v":61.243674172056046},{"$f":"IF(SUMIFS(Data!$E:$E,Data!$B:$B,'16'!F$3,Data!$C:$C,'16'!$A$3,Data!$D:$D,'16'!$A15,Data!$F:$F,'16'!$A$2)=0,\"-\",SUMIFS(Data!$E:$E,Data!$B:$B,'16'!F$3,Data!$C:$C,'16'!$A$3,Data!$D:$D,'16'!$A15,Data!$F:$F,'16'!$A$2))","v":58.990069586279859},{"$f":"IF(SUMIFS(Data!$E:$E,Data!$B:$B,'16'!G$3,Data!$C:$C,'16'!$A$3,Data!$D:$D,'16'!$A15,Data!$F:$F,'16'!$A$2)=0,\"-\",SUMIFS(Data!$E:$E,Data!$B:$B,'16'!G$3,Data!$C:$C,'16'!$A$3,Data!$D:$D,'16'!$A15,Data!$F:$F,'16'!$A$2))","v":58.758686042266191},{"$f":"IF(SUMIFS(Data!$E:$E,Data!$B:$B,'16'!H$3,Data!$C:$C,'16'!$A$3,Data!$D:$D,'16'!$A15,Data!$F:$F,'16'!$A$2)=0,\"-\",SUMIFS(Data!$E:$E,Data!$B:$B,'16'!H$3,Data!$C:$C,'16'!$A$3,Data!$D:$D,'16'!$A15,Data!$F:$F,'16'!$A$2))","v":62.238986067882195},{"$f":"IF(SUMIFS(Data!$E:$E,Data!$B:$B,'16'!I$3,Data!$C:$C,'16'!$A$3,Data!$D:$D,'16'!$A15,Data!$F:$F,'16'!$A$2)=0,\"-\",SUMIFS(Data!$E:$E,Data!$B:$B,'16'!I$3,Data!$C:$C,'16'!$A$3,Data!$D:$D,'16'!$A15,Data!$F:$F,'16'!$A$2))","v":61.625234541448144},{"$f":"IF(SUMIFS(Data!$E:$E,Data!$B:$B,'16'!J$3,Data!$C:$C,'16'!$A$3,Data!$D:$D,'16'!$A15,Data!$F:$F,'16'!$A$2)=0,\"-\",SUMIFS(Data!$E:$E,Data!$B:$B,'16'!J$3,Data!$C:$C,'16'!$A$3,Data!$D:$D,'16'!$A15,Data!$F:$F,'16'!$A$2))","v":56.870810681822498},{"$f":"IF(SUMIFS(Data!$E:$E,Data!$B:$B,'16'!K$3,Data!$C:$C,'16'!$A$3,Data!$D:$D,'16'!$A15,Data!$F:$F,'16'!$A$2)=0,\"-\",SUMIFS(Data!$E:$E,Data!$B:$B,'16'!K$3,Data!$C:$C,'16'!$A$3,Data!$D:$D,'16'!$A15,Data!$F:$F,'16'!$A$2))","v":58.990069586279859}]
[{"$f":"VLOOKUP(\"Ontario\",Translation!$A$1:$C$354, Translation!A1+1, 0)","v":"Ontario"},{"$f":"IF(SUMIFS(Data!$E:$E,Data!$B:$B,'16'!B$3,Data!$C:$C,'16'!$A$3,Data!$D:$D,'16'!$A16,Data!$F:$F,'16'!$A$2)=0,\"-\",SUMIFS(Data!$E:$E,Data!$B:$B,'16'!B$3,Data!$C:$C,'16'!$A$3,Data!$D:$D,'16'!$A16,Data!$F:$F,'16'!$A$2))","v":51.482059728350045},{"$f":"IF(SUMIFS(Data!$E:$E,Data!$B:$B,'16'!C$3,Data!$C:$C,'16'!$A$3,Data!$D:$D,'16'!$A16,Data!$F:$F,'16'!$A$2)=0,\"-\",SUMIFS(Data!$E:$E,Data!$B:$B,'16'!C$3,Data!$C:$C,'16'!$A$3,Data!$D:$D,'16'!$A16,Data!$F:$F,'16'!$A$2))","v":57.475300048282577},{"$f":"IF(SUMIFS(Data!$E:$E,Data!$B:$B,'16'!D$3,Data!$C:$C,'16'!$A$3,Data!$D:$D,'16'!$A16,Data!$F:$F,'16'!$A$2)=0,\"-\",SUMIFS(Data!$E:$E,Data!$B:$B,'16'!D$3,Data!$C:$C,'16'!$A$3,Data!$D:$D,'16'!$A16,Data!$F:$F,'16'!$A$2))","v":58.771074127704722},{"$f":"IF(SUMIFS(Data!$E:$E,Data!$B:$B,'16'!E$3,Data!$C:$C,'16'!$A$3,Data!$D:$D,'16'!$A16,Data!$F:$F,'16'!$A$2)=0,\"-\",SUMIFS(Data!$E:$E,Data!$B:$B,'16'!E$3,Data!$C:$C,'16'!$A$3,Data!$D:$D,'16'!$A16,Data!$F:$F,'16'!$A$2))","v":59.768684588250878},{"$f":"IF(SUMIFS(Data!$E:$E,Data!$B:$B,'16'!F$3,Data!$C:$C,'16'!$A$3,Data!$D:$D,'16'!$A16,Data!$F:$F,'16'!$A$2)=0,\"-\",SUMIFS(Data!$E:$E,Data!$B:$B,'16'!F$3,Data!$C:$C,'16'!$A$3,Data!$D:$D,'16'!$A16,Data!$F:$F,'16'!$A$2))","v":54.502143700076118},{"$f":"IF(SUMIFS(Data!$E:$E,Data!$B:$B,'16'!G$3,Data!$C:$C,'16'!$A$3,Data!$D:$D,'16'!$A16,Data!$F:$F,'16'!$A$2)=0,\"-\",SUMIFS(Data!$E:$E,Data!$B:$B,'16'!G$3,Data!$C:$C,'16'!$A$3,Data!$D:$D,'16'!$A16,Data!$F:$F,'16'!$A$2))","v":58.641865993089894},{"$f":"IF(SUMIFS(Data!$E:$E,Data!$B:$B,'16'!H$3,Data!$C:$C,'16'!$A$3,Data!$D:$D,'16'!$A16,Data!$F:$F,'16'!$A$2)=0,\"-\",SUMIFS(Data!$E:$E,Data!$B:$B,'16'!H$3,Data!$C:$C,'16'!$A$3,Data!$D:$D,'16'!$A16,Data!$F:$F,'16'!$A$2))","v":61.097057525224216},{"$f":"IF(SUMIFS(Data!$E:$E,Data!$B:$B,'16'!I$3,Data!$C:$C,'16'!$A$3,Data!$D:$D,'16'!$A16,Data!$F:$F,'16'!$A$2)=0,\"-\",SUMIFS(Data!$E:$E,Data!$B:$B,'16'!I$3,Data!$C:$C,'16'!$A$3,Data!$D:$D,'16'!$A16,Data!$F:$F,'16'!$A$2))","v":57.126299485279887},{"$f":"IF(SUMIFS(Data!$E:$E,Data!$B:$B,'16'!J$3,Data!$C:$C,'16'!$A$3,Data!$D:$D,'16'!$A16,Data!$F:$F,'16'!$A$2)=0,\"-\",SUMIFS(Data!$E:$E,Data!$B:$B,'16'!J$3,Data!$C:$C,'16'!$A$3,Data!$D:$D,'16'!$A16,Data!$F:$F,'16'!$A$2))","v":51.482059728350045},{"$f":"IF(SUMIFS(Data!$E:$E,Data!$B:$B,'16'!K$3,Data!$C:$C,'16'!$A$3,Data!$D:$D,'16'!$A16,Data!$F:$F,'16'!$A$2)=0,\"-\",SUMIFS(Data!$E:$E,Data!$B:$B,'16'!K$3,Data!$C:$C,'16'!$A$3,Data!$D:$D,'16'!$A16,Data!$F:$F,'16'!$A$2))","v":54.502143700076118}]
[{"$f":"VLOOKUP(\"Manitoba\",Translation!$A$1:$C$354, Translation!A1+1, 0)","v":"Manitoba"},{"$f":"IF(SUMIFS(Data!$E:$E,Data!$B:$B,'16'!B$3,Data!$C:$C,'16'!$A$3,Data!$D:$D,'16'!$A17,Data!$F:$F,'16'!$A$2)=0,\"-\",SUMIFS(Data!$E:$E,Data!$B:$B,'16'!B$3,Data!$C:$C,'16'!$A$3,Data!$D:$D,'16'!$A17,Data!$F:$F,'16'!$A$2))","v":86.066160102043497},{"$f":"IF(SUMIFS(Data!$E:$E,Data!$B:$B,'16'!C$3,Data!$C:$C,'16'!$A$3,Data!$D:$D,'16'!$A17,Data!$F:$F,'16'!$A$2)=0,\"-\",SUMIFS(Data!$E:$E,Data!$B:$B,'16'!C$3,Data!$C:$C,'16'!$A$3,Data!$D:$D,'16'!$A17,Data!$F:$F,'16'!$A$2))","v":88.826089090323052},{"$f":"IF(SUMIFS(Data!$E:$E,Data!$B:$B,'16'!D$3,Data!$C:$C,'16'!$A$3,Data!$D:$D,'16'!$A17,Data!$F:$F,'16'!$A$2)=0,\"-\",SUMIFS(Data!$E:$E,Data!$B:$B,'16'!D$3,Data!$C:$C,'16'!$A$3,Data!$D:$D,'16'!$A17,Data!$F:$F,'16'!$A$2))","v":86.532225405497613},{"$f":"IF(SUMIFS(Data!$E:$E,Data!$B:$B,'16'!E$3,Data!$C:$C,'16'!$A$3,Data!$D:$D,'16'!$A17,Data!$F:$F,'16'!$A$2)=0,\"-\",SUMIFS(Data!$E:$E,Data!$B:$B,'16'!E$3,Data!$C:$C,'16'!$A$3,Data!$D:$D,'16'!$A17,Data!$F:$F,'16'!$A$2))","v":85.757459404288355},{"$f":"IF(SUMIFS(Data!$E:$E,Data!$B:$B,'16'!F$3,Data!$C:$C,'16'!$A$3,Data!$D:$D,'16'!$A17,Data!$F:$F,'16'!$A$2)=0,\"-\",SUMIFS(Data!$E:$E,Data!$B:$B,'16'!F$3,Data!$C:$C,'16'!$A$3,Data!$D:$D,'16'!$A17,Data!$F:$F,'16'!$A$2))","v":83.959335259021259},{"$f":"IF(SUMIFS(Data!$E:$E,Data!$B:$B,'16'!G$3,Data!$C:$C,'16'!$A$3,Data!$D:$D,'16'!$A17,Data!$F:$F,'16'!$A$2)=0,\"-\",SUMIFS(Data!$E:$E,Data!$B:$B,'16'!G$3,Data!$C:$C,'16'!$A$3,Data!$D:$D,'16'!$A17,Data!$F:$F,'16'!$A$2))","v":86.038783101336662},{"$f":"IF(SUMIFS(Data!$E:$E,Data!$B:$B,'16'!H$3,Data!$C:$C,'16'!$A$3,Data!$D:$D,'16'!$A17,Data!$F:$F,'16'!$A$2)=0,\"-\",SUMIFS(Data!$E:$E,Data!$B:$B,'16'!H$3,Data!$C:$C,'16'!$A$3,Data!$D:$D,'16'!$A17,Data!$F:$F,'16'!$A$2))","v":86.978344930847399},{"$f":"IF(SUMIFS(Data!$E:$E,Data!$B:$B,'16'!I$3,Data!$C:$C,'16'!$A$3,Data!$D:$D,'16'!$A17,Data!$F:$F,'16'!$A$2)=0,\"-\",SUMIFS(Data!$E:$E,Data!$B:$B,'16'!I$3,Data!$C:$C,'16'!$A$3,Data!$D:$D,'16'!$A17,Data!$F:$F,'16'!$A$2))","v":84.312904243500228},{"$f":"IF(SUMIFS(Data!$E:$E,Data!$B:$B,'16'!J$3,Data!$C:$C,'16'!$A$3,Data!$D:$D,'16'!$A17,Data!$F:$F,'16'!$A$2)=0,\"-\",SUMIFS(Data!$E:$E,Data!$B:$B,'16'!J$3,Data!$C:$C,'16'!$A$3,Data!$D:$D,'16'!$A17,Data!$F:$F,'16'!$A$2))","v":86.066160102043497},{"$f":"IF(SUMIFS(Data!$E:$E,Data!$B:$B,'16'!K$3,Data!$C:$C,'16'!$A$3,Data!$D:$D,'16'!$A17,Data!$F:$F,'16'!$A$2)=0,\"-\",SUMIFS(Data!$E:$E,Data!$B:$B,'16'!K$3,Data!$C:$C,'16'!$A$3,Data!$D:$D,'16'!$A17,Data!$F:$F,'16'!$A$2))","v":83.959335259021259}]
[{"$f":"VLOOKUP(\"Saskatchewan\",Translation!$A$1:$C$354, Translation!A1+1, 0)","v":"Saskatchewan"},{"$f":"IF(SUMIFS(Data!$E:$E,Data!$B:$B,'16'!B$3,Data!$C:$C,'16'!$A$3,Data!$D:$D,'16'!$A18,Data!$F:$F,'16'!$A$2)=0,\"-\",SUMIFS(Data!$E:$E,Data!$B:$B,'16'!B$3,Data!$C:$C,'16'!$A$3,Data!$D:$D,'16'!$A18,Data!$F:$F,'16'!$A$2))","v":85.709054100300605},{"$f":"IF(SUMIFS(Data!$E:$E,Data!$B:$B,'16'!C$3,Data!$C:$C,'16'!$A$3,Data!$D:$D,'16'!$A18,Data!$F:$F,'16'!$A$2)=0,\"-\",SUMIFS(Data!$E:$E,Data!$B:$B,'16'!C$3,Data!$C:$C,'16'!$A$3,Data!$D:$D,'16'!$A18,Data!$F:$F,'16'!$A$2))","v":86.450964454444602},{"$f":"IF(SUMIFS(Data!$E:$E,Data!$B:$B,'16'!D$3,Data!$C:$C,'16'!$A$3,Data!$D:$D,'16'!$A18,Data!$F:$F,'16'!$A$2)=0,\"-\",SUMIFS(Data!$E:$E,Data!$B:$B,'16'!D$3,Data!$C:$C,'16'!$A$3,Data!$D:$D,'16'!$A18,Data!$F:$F,'16'!$A$2))","v":85.735884411054698},{"$f":"IF(SUMIFS(Data!$E:$E,Data!$B:$B,'16'!E$3,Data!$C:$C,'16'!$A$3,Data!$D:$D,'16'!$A18,Data!$F:$F,'16'!$A$2)=0,\"-\",SUMIFS(Data!$E:$E,Data!$B:$B,'16'!E$3,Data!$C:$C,'16'!$A$3,Data!$D:$D,'16'!$A18,Data!$F:$F,'16'!$A$2))","v":84.492642359006638},{"$f":"IF(SUMIFS(Data!$E:$E,Data!$B:$B,'16'!F$3,Data!$C:$C,'16'!$A$3,Data!$D:$D,'16'!$A18,Data!$F:$F,'16'!$A$2)=0,\"-\",SUMIFS(Data!$E:$E,Data!$B:$B,'16'!F$3,Data!$C:$C,'16'!$A$3,Data!$D:$D,'16'!$A18,Data!$F:$F,'16'!$A$2))","v":85.042994229166084},{"$f":"IF(SUMIFS(Data!$E:$E,Data!$B:$B,'16'!G$3,Data!$C:$C,'16'!$A$3,Data!$D:$D,'16'!$A18,Data!$F:$F,'16'!$A$2)=0,\"-\",SUMIFS(Data!$E:$E,Data!$B:$B,'16'!G$3,Data!$C:$C,'16'!$A$3,Data!$D:$D,'16'!$A18,Data!$F:$F,'16'!$A$2))","v":83.767977718879692},{"$f":"IF(SUMIFS(Data!$E:$E,Data!$B:$B,'16'!H$3,Data!$C:$C,'16'!$A$3,Data!$D:$D,'16'!$A18,Data!$F:$F,'16'!$A$2)=0,\"-\",SUMIFS(Data!$E:$E,Data!$B:$B,'16'!H$3,Data!$C:$C,'16'!$A$3,Data!$D:$D,'16'!$A18,Data!$F:$F,'16'!$A$2))","v":87.826118348636257},{"$f":"IF(SUMIFS(Data!$E:$E,Data!$B:$B,'16'!I$3,Data!$C:$C,'16'!$A$3,Data!$D:$D,'16'!$A18,Data!$F:$F,'16'!$A$2)=0,\"-\",SUMIFS(Data!$E:$E,Data!$B:$B,'16'!I$3,Data!$C:$C,'16'!$A$3,Data!$D:$D,'16'!$A18,Data!$F:$F,'16'!$A$2))","v":85.56745800904369},{"$f":"IF(SUMIFS(Data!$E:$E,Data!$B:$B,'16'!J$3,Data!$C:$C,'16'!$A$3,Data!$D:$D,'16'!$A18,Data!$F:$F,'16'!$A$2)=0,\"-\",SUMIFS(Data!$E:$E,Data!$B:$B,'16'!J$3,Data!$C:$C,'16'!$A$3,Data!$D:$D,'16'!$A18,Data!$F:$F,'16'!$A$2))","v":85.709054100300605},{"$f":"IF(SUMIFS(Data!$E:$E,Data!$B:$B,'16'!K$3,Data!$C:$C,'16'!$A$3,Data!$D:$D,'16'!$A18,Data!$F:$F,'16'!$A$2)=0,\"-\",SUMIFS(Data!$E:$E,Data!$B:$B,'16'!K$3,Data!$C:$C,'16'!$A$3,Data!$D:$D,'16'!$A18,Data!$F:$F,'16'!$A$2))","v":85.042994229166084}]
[{"$f":"VLOOKUP(\"Alberta\",Translation!$A$1:$C$354, Translation!A1+1, 0)","v":"Alberta"},{"$f":"IF(SUMIFS(Data!$E:$E,Data!$B:$B,'16'!B$3,Data!$C:$C,'16'!$A$3,Data!$D:$D,'16'!$A19,Data!$F:$F,'16'!$A$2)=0,\"-\",SUMIFS(Data!$E:$E,Data!$B:$B,'16'!B$3,Data!$C:$C,'16'!$A$3,Data!$D:$D,'16'!$A19,Data!$F:$F,'16'!$A$2))","v":73.042982867513373},{"$f":"IF(SUMIFS(Data!$E:$E,Data!$B:$B,'16'!C$3,Data!$C:$C,'16'!$A$3,Data!$D:$D,'16'!$A19,Data!$F:$F,'16'!$A$2)=0,\"-\",SUMIFS(Data!$E:$E,Data!$B:$B,'16'!C$3,Data!$C:$C,'16'!$A$3,Data!$D:$D,'16'!$A19,Data!$F:$F,'16'!$A$2))","v":72.218171598686268},{"$f":"IF(SUMIFS(Data!$E:$E,Data!$B:$B,'16'!D$3,Data!$C:$C,'16'!$A$3,Data!$D:$D,'16'!$A19,Data!$F:$F,'16'!$A$2)=0,\"-\",SUMIFS(Data!$E:$E,Data!$B:$B,'16'!D$3,Data!$C:$C,'16'!$A$3,Data!$D:$D,'16'!$A19,Data!$F:$F,'16'!$A$2))","v":73.411287399860555},{"$f":"IF(SUMIFS(Data!$E:$E,Data!$B:$B,'16'!E$3,Data!$C:$C,'16'!$A$3,Data!$D:$D,'16'!$A19,Data!$F:$F,'16'!$A$2)=0,\"-\",SUMIFS(Data!$E:$E,Data!$B:$B,'16'!E$3,Data!$C:$C,'16'!$A$3,Data!$D:$D,'16'!$A19,Data!$F:$F,'16'!$A$2))","v":72.351076822934843},{"$f":"IF(SUMIFS(Data!$E:$E,Data!$B:$B,'16'!F$3,Data!$C:$C,'16'!$A$3,Data!$D:$D,'16'!$A19,Data!$F:$F,'16'!$A$2)=0,\"-\",SUMIFS(Data!$E:$E,Data!$B:$B,'16'!F$3,Data!$C:$C,'16'!$A$3,Data!$D:$D,'16'!$A19,Data!$F:$F,'16'!$A$2))","v":69.205391523958809},{"$f":"IF(SUMIFS(Data!$E:$E,Data!$B:$B,'16'!G$3,Data!$C:$C,'16'!$A$3,Data!$D:$D,'16'!$A19,Data!$F:$F,'16'!$A$2)=0,\"-\",SUMIFS(Data!$E:$E,Data!$B:$B,'16'!G$3,Data!$C:$C,'16'!$A$3,Data!$D:$D,'16'!$A19,Data!$F:$F,'16'!$A$2))","v":72.717979520661856},{"$f":"IF(SUMIFS(Data!$E:$E,Data!$B:$B,'16'!H$3,Data!$C:$C,'16'!$A$3,Data!$D:$D,'16'!$A19,Data!$F:$F,'16'!$A$2)=0,\"-\",SUMIFS(Data!$E:$E,Data!$B:$B,'16'!H$3,Data!$C:$C,'16'!$A$3,Data!$D:$D,'16'!$A19,Data!$F:$F,'16'!$A$2))","v":73.03049738486078},{"$f":"IF(SUMIFS(Data!$E:$E,Data!$B:$B,'16'!I$3,Data!$C:$C,'16'!$A$3,Data!$D:$D,'16'!$A19,Data!$F:$F,'16'!$A$2)=0,\"-\",SUMIFS(Data!$E:$E,Data!$B:$B,'16'!I$3,Data!$C:$C,'16'!$A$3,Data!$D:$D,'16'!$A19,Data!$F:$F,'16'!$A$2))","v":71.343906481313383},{"$f":"IF(SUMIFS(Data!$E:$E,Data!$B:$B,'16'!J$3,Data!$C:$C,'16'!$A$3,Data!$D:$D,'16'!$A19,Data!$F:$F,'16'!$A$2)=0,\"-\",SUMIFS(Data!$E:$E,Data!$B:$B,'16'!J$3,Data!$C:$C,'16'!$A$3,Data!$D:$D,'16'!$A19,Data!$F:$F,'16'!$A$2))","v":73.042982867513373},{"$f":"IF(SUMIFS(Data!$E:$E,Data!$B:$B,'16'!K$3,Data!$C:$C,'16'!$A$3,Data!$D:$D,'16'!$A19,Data!$F:$F,'16'!$A$2)=0,\"-\",SUMIFS(Data!$E:$E,Data!$B:$B,'16'!K$3,Data!$C:$C,'16'!$A$3,Data!$D:$D,'16'!$A19,Data!$F:$F,'16'!$A$2))","v":69.205391523958809}]
[{"$f":"VLOOKUP(\"British Columbia\",Translation!$A$1:$C$354, Translation!A1+1, 0)","v":"Colombie-Britannique"},{"$f":"IF(SUMIFS(Data!$E:$E,Data!$B:$B,'16'!B$3,Data!$C:$C,'16'!$A$3,Data!$D:$D,'16'!$A20,Data!$F:$F,'16'!$A$2)=0,\"-\",SUMIFS(Data!$E:$E,Data!$B:$B,'16'!B$3,Data!$C:$C,'16'!$A$3,Data!$D:$D,'16'!$A20,Data!$F:$F,'16'!$A$2))","v":44.811217315355087},{"$f":"IF(SUMIFS(Data!$E:$E,Data!$B:$B,'16'!C$3,Data!$C:$C,'16'!$A$3,Data!$D:$D,'16'!$A20,Data!$F:$F,'16'!$A$2)=0,\"-\",SUMIFS(Data!$E:$E,Data!$B:$B,'16'!C$3,Data!$C:$C,'16'!$A$3,Data!$D:$D,'16'!$A20,Data!$F:$F,'16'!$A$2))","v":46.851007245072083},{"$f":"IF(SUMIFS(Data!$E:$E,Data!$B:$B,'16'!D$3,Data!$C:$C,'16'!$A$3,Data!$D:$D,'16'!$A20,Data!$F:$F,'16'!$A$2)=0,\"-\",SUMIFS(Data!$E:$E,Data!$B:$B,'16'!D$3,Data!$C:$C,'16'!$A$3,Data!$D:$D,'16'!$A20,Data!$F:$F,'16'!$A$2))","v":51.779300154855029},{"$f":"IF(SUMIFS(Data!$E:$E,Data!$B:$B,'16'!E$3,Data!$C:$C,'16'!$A$3,Data!$D:$D,'16'!$A20,Data!$F:$F,'16'!$A$2)=0,\"-\",SUMIFS(Data!$E:$E,Data!$B:$B,'16'!E$3,Data!$C:$C,'16'!$A$3,Data!$D:$D,'16'!$A20,Data!$F:$F,'16'!$A$2))","v":48.343003714792751},{"$f":"IF(SUMIFS(Data!$E:$E,Data!$B:$B,'16'!F$3,Data!$C:$C,'16'!$A$3,Data!$D:$D,'16'!$A20,Data!$F:$F,'16'!$A$2)=0,\"-\",SUMIFS(Data!$E:$E,Data!$B:$B,'16'!F$3,Data!$C:$C,'16'!$A$3,Data!$D:$D,'16'!$A20,Data!$F:$F,'16'!$A$2))","v":44.351594978082595},{"$f":"IF(SUMIFS(Data!$E:$E,Data!$B:$B,'16'!G$3,Data!$C:$C,'16'!$A$3,Data!$D:$D,'16'!$A20,Data!$F:$F,'16'!$A$2)=0,\"-\",SUMIFS(Data!$E:$E,Data!$B:$B,'16'!G$3,Data!$C:$C,'16'!$A$3,Data!$D:$D,'16'!$A20,Data!$F:$F,'16'!$A$2))","v":51.27146974098688},{"$f":"IF(SUMIFS(Data!$E:$E,Data!$B:$B,'16'!H$3,Data!$C:$C,'16'!$A$3,Data!$D:$D,'16'!$A20,Data!$F:$F,'16'!$A$2)=0,\"-\",SUMIFS(Data!$E:$E,Data!$B:$B,'16'!H$3,Data!$C:$C,'16'!$A$3,Data!$D:$D,'16'!$A20,Data!$F:$F,'16'!$A$2))","v":50.345205432085201},{"$f":"IF(SUMIFS(Data!$E:$E,Data!$B:$B,'16'!I$3,Data!$C:$C,'16'!$A$3,Data!$D:$D,'16'!$A20,Data!$F:$F,'16'!$A$2)=0,\"-\",SUMIFS(Data!$E:$E,Data!$B:$B,'16'!I$3,Data!$C:$C,'16'!$A$3,Data!$D:$D,'16'!$A20,Data!$F:$F,'16'!$A$2))","v":48.304435630479553},{"$f":"IF(SUMIFS(Data!$E:$E,Data!$B:$B,'16'!J$3,Data!$C:$C,'16'!$A$3,Data!$D:$D,'16'!$A20,Data!$F:$F,'16'!$A$2)=0,\"-\",SUMIFS(Data!$E:$E,Data!$B:$B,'16'!J$3,Data!$C:$C,'16'!$A$3,Data!$D:$D,'16'!$A20,Data!$F:$F,'16'!$A$2))","v":44.811217315355087},{"$f":"IF(SUMIFS(Data!$E:$E,Data!$B:$B,'16'!K$3,Data!$C:$C,'16'!$A$3,Data!$D:$D,'16'!$A20,Data!$F:$F,'16'!$A$2)=0,\"-\",SUMIFS(Data!$E:$E,Data!$B:$B,'16'!K$3,Data!$C:$C,'16'!$A$3,Data!$D:$D,'16'!$A20,Data!$F:$F,'16'!$A$2))","v":44.351594978082595}]
[{"$f":"VLOOKUP(\"Territories\",Translation!$A$1:$C$354, Translation!A1+1, 0)","v":"Territoires"},{"$f":"IF(SUMIFS(Data!$E:$E,Data!$B:$B,'16'!B$3,Data!$C:$C,'16'!$A$3,Data!$D:$D,'16'!$A21,Data!$F:$F,'16'!$A$2)=0,\"-\",SUMIFS(Data!$E:$E,Data!$B:$B,'16'!B$3,Data!$C:$C,'16'!$A$3,Data!$D:$D,'16'!$A21,Data!$F:$F,'16'!$A$2))","v":44.513861250209509},{"$f":"IF(SUMIFS(Data!$E:$E,Data!$B:$B,'16'!C$3,Data!$C:$C,'16'!$A$3,Data!$D:$D,'16'!$A21,Data!$F:$F,'16'!$A$2)=0,\"-\",SUMIFS(Data!$E:$E,Data!$B:$B,'16'!C$3,Data!$C:$C,'16'!$A$3,Data!$D:$D,'16'!$A21,Data!$F:$F,'16'!$A$2))","v":45.904327767175374},{"$f":"IF(SUMIFS(Data!$E:$E,Data!$B:$B,'16'!D$3,Data!$C:$C,'16'!$A$3,Data!$D:$D,'16'!$A21,Data!$F:$F,'16'!$A$2)=0,\"-\",SUMIFS(Data!$E:$E,Data!$B:$B,'16'!D$3,Data!$C:$C,'16'!$A$3,Data!$D:$D,'16'!$A21,Data!$F:$F,'16'!$A$2))","v":52.916234554914155},{"$f":"IF(SUMIFS(Data!$E:$E,Data!$B:$B,'16'!E$3,Data!$C:$C,'16'!$A$3,Data!$D:$D,'16'!$A21,Data!$F:$F,'16'!$A$2)=0,\"-\",SUMIFS(Data!$E:$E,Data!$B:$B,'16'!E$3,Data!$C:$C,'16'!$A$3,Data!$D:$D,'16'!$A21,Data!$F:$F,'16'!$A$2))","v":43.341847801704347},{"$f":"IF(SUMIFS(Data!$E:$E,Data!$B:$B,'16'!F$3,Data!$C:$C,'16'!$A$3,Data!$D:$D,'16'!$A21,Data!$F:$F,'16'!$A$2)=0,\"-\",SUMIFS(Data!$E:$E,Data!$B:$B,'16'!F$3,Data!$C:$C,'16'!$A$3,Data!$D:$D,'16'!$A21,Data!$F:$F,'16'!$A$2))","v":55.645308071771083},{"$f":"IF(SUMIFS(Data!$E:$E,Data!$B:$B,'16'!G$3,Data!$C:$C,'16'!$A$3,Data!$D:$D,'16'!$A21,Data!$F:$F,'16'!$A$2)=0,\"-\",SUMIFS(Data!$E:$E,Data!$B:$B,'16'!G$3,Data!$C:$C,'16'!$A$3,Data!$D:$D,'16'!$A21,Data!$F:$F,'16'!$A$2))","v":64.947015700172045},{"$f":"IF(SUMIFS(Data!$E:$E,Data!$B:$B,'16'!H$3,Data!$C:$C,'16'!$A$3,Data!$D:$D,'16'!$A21,Data!$F:$F,'16'!$A$2)=0,\"-\",SUMIFS(Data!$E:$E,Data!$B:$B,'16'!H$3,Data!$C:$C,'16'!$A$3,Data!$D:$D,'16'!$A21,Data!$F:$F,'16'!$A$2))","v":56.960915496333392},{"$f":"IF(SUMIFS(Data!$E:$E,Data!$B:$B,'16'!I$3,Data!$C:$C,'16'!$A$3,Data!$D:$D,'16'!$A21,Data!$F:$F,'16'!$A$2)=0,\"-\",SUMIFS(Data!$E:$E,Data!$B:$B,'16'!I$3,Data!$C:$C,'16'!$A$3,Data!$D:$D,'16'!$A21,Data!$F:$F,'16'!$A$2))","v":45.986612527141638},{"$f":"IF(SUMIFS(Data!$E:$E,Data!$B:$B,'16'!J$3,Data!$C:$C,'16'!$A$3,Data!$D:$D,'16'!$A21,Data!$F:$F,'16'!$A$2)=0,\"-\",SUMIFS(Data!$E:$E,Data!$B:$B,'16'!J$3,Data!$C:$C,'16'!$A$3,Data!$D:$D,'16'!$A21,Data!$F:$F,'16'!$A$2))","v":44.513861250209509},{"$f":"IF(SUMIFS(Data!$E:$E,Data!$B:$B,'16'!K$3,Data!$C:$C,'16'!$A$3,Data!$D:$D,'16'!$A21,Data!$F:$F,'16'!$A$2)=0,\"-\",SUMIFS(Data!$E:$E,Data!$B:$B,'16'!K$3,Data!$C:$C,'16'!$A$3,Data!$D:$D,'16'!$A21,Data!$F:$F,'16'!$A$2))","v":55.645308071771083}]
[{"$f":"VLOOKUP(\"Distribution based on loan amounts, not number of loans.\",Translation!$A$1:$C$354, Translation!A1+1, 0)","v":"La répartition est établie d'après le montant, plutôt que le nombre de prêts assurés."}]
[{"$f":"VLOOKUP(\"The sum of all breakdown categories may not add up to 100 due to rounding.\",Translation!$A$1:$C$354, Translation!A1+1, 0)","v":"Les chiffres ayant été arrondis, il se peut que la somme de l'ensemble des catégories n'égale pas 100 %."}]
[]
[{"$f":"VLOOKUP(\"Loans insured in period by dwelling type (%)\",Translation!$A$1:$C$354, Translation!A1+1, 0)","v":"Prêts hypothécaires assurés au cours de la période selon le type de logement (%)"}]
[{"$f":"VLOOKUP(\"PORTFOLIO\",Translation!$A$1:$C$354, Translation!A1+1, 0)","v":"ASSURANCE DE PORTEFEUILLE"},{"$f":"VLOOKUP(\"Q1 2020\",Translation!$A$1:$C$354, Translation!$A$1+1, 0)","v":"T1 2020"},{"$f":"VLOOKUP(\"Q4 2019\",Translation!$A$1:$C$354, Translation!$A$1+1, 0)","v":"T4 2019"},{"$f":"VLOOKUP(\"Q3 2019\",Translation!$A$1:$C$354, Translation!$A$1+1, 0)","v":"T3 2019"},{"$f":"VLOOKUP(\"Q2 2019\",Translation!$A$1:$C$354, Translation!$A$1+1, 0)","v":"T2 2019"},{"$f":"VLOOKUP(\"Q1 2019\",Translation!$A$1:$C$354, Translation!$A$1+1, 0)","v":"T1 2019"},{"$f":"VLOOKUP(\"Q4 2018\",Translation!$A$1:$C$354, Translation!$A$1+1, 0)","v":"T4 2018"},{"$f":"VLOOKUP(\"Q3 2018\",Translation!$A$1:$C$354, Translation!$A$1+1, 0)","v":"T3 2018"},{"$f":"VLOOKUP(\"Q2 2018\",Translation!$A$1:$C$354, Translation!$A$1+1, 0)","v":"T2 2018"},{"$f":"VLOOKUP(\"YTD 2020\",Translation!$A$1:$C$354, Translation!$A$1+1, 0)","v":"Cumul 2020"},{"$f":"VLOOKUP(\"YTD 2019\",Translation!$A$1:$C$354, Translation!$A$1+1, 0)","v":"Cumul 2019"}]
[{"$f":"VLOOKUP(\"Single\",Translation!$A$1:$C$354, Translation!A1+1, 0)","v":"Logement unifamilial"},{"$f":"SUMIFS(Data!$E:$E,Data!$B:$B,'16'!B$26,Data!$C:$C,'16'!$A$26,Data!$D:$D,'16'!$A27,Data!$F:$F,'16'!$A$25)","v":68.287596613291242},{"$f":"SUMIFS(Data!$E:$E,Data!$B:$B,'16'!C$26,Data!$C:$C,'16'!$A$26,Data!$D:$D,'16'!$A27,Data!$F:$F,'16'!$A$25)","v":66.518307244520756},{"$f":"SUMIFS(Data!$E:$E,Data!$B:$B,'16'!D$26,Data!$C:$C,'16'!$A$26,Data!$D:$D,'16'!$A27,Data!$F:$F,'16'!$A$25)","v":76.235713620658089},{"$f":"SUMIFS(Data!$E:$E,Data!$B:$B,'16'!E$26,Data!$C:$C,'16'!$A$26,Data!$D:$D,'16'!$A27,Data!$F:$F,'16'!$A$25)","v":67.768766424690796},{"$f":"SUMIFS(Data!$E:$E,Data!$B:$B,'16'!F$26,Data!$C:$C,'16'!$A$26,Data!$D:$D,'16'!$A27,Data!$F:$F,'16'!$A$25)","v":72.266880996837216},{"$f":"SUMIFS(Data!$E:$E,Data!$B:$B,'16'!G$26,Data!$C:$C,'16'!$A$26,Data!$D:$D,'16'!$A27,Data!$F:$F,'16'!$A$25)","v":76.844121326150201},{"$f":"SUMIFS(Data!$E:$E,Data!$B:$B,'16'!H$26,Data!$C:$C,'16'!$A$26,Data!$D:$D,'16'!$A27,Data!$F:$F,'16'!$A$25)","v":69.903740592195405},{"$f":"SUMIFS(Data!$E:$E,Data!$B:$B,'16'!I$26,Data!$C:$C,'16'!$A$26,Data!$D:$D,'16'!$A27,Data!$F:$F,'16'!$A$25)","v":75.241226822413054},{"$f":"SUMIFS(Data!$E:$E,Data!$B:$B,'16'!J$26,Data!$C:$C,'16'!$A$26,Data!$D:$D,'16'!$A27,Data!$F:$F,'16'!$A$25)","v":68.287596613291242},{"$f":"SUMIFS(Data!$E:$E,Data!$B:$B,'16'!K$26,Data!$C:$C,'16'!$A$26,Data!$D:$D,'16'!$A27,Data!$F:$F,'16'!$A$25)","v":72.266880996837216}]
[{"$f":"VLOOKUP(\"Row\",Translation!$A$1:$C$354, Translation!A1+1, 0)","v":"Maison en rangée"},{"$f":"SUMIFS(Data!$E:$E,Data!$B:$B,'16'!B$26,Data!$C:$C,'16'!$A$26,Data!$D:$D,'16'!$A28,Data!$F:$F,'16'!$A$25)","v":23.615360295936021},{"$f":"SUMIFS(Data!$E:$E,Data!$B:$B,'16'!C$26,Data!$C:$C,'16'!$A$26,Data!$D:$D,'16'!$A28,Data!$F:$F,'16'!$A$25)","v":13.511507731413699},{"$f":"SUMIFS(Data!$E:$E,Data!$B:$B,'16'!D$26,Data!$C:$C,'16'!$A$26,Data!$D:$D,'16'!$A28,Data!$F:$F,'16'!$A$25)","v":7.6029885491343361},{"$f":"SUMIFS(Data!$E:$E,Data!$B:$B,'16'!E$26,Data!$C:$C,'16'!$A$26,Data!$D:$D,'16'!$A28,Data!$F:$F,'16'!$A$25)","v":11.509514779547624},{"$f":"SUMIFS(Data!$E:$E,Data!$B:$B,'16'!F$26,Data!$C:$C,'16'!$A$26,Data!$D:$D,'16'!$A28,Data!$F:$F,'16'!$A$25)","v":10.016390354853412},{"$f":"SUMIFS(Data!$E:$E,Data!$B:$B,'16'!G$26,Data!$C:$C,'16'!$A$26,Data!$D:$D,'16'!$A28,Data!$F:$F,'16'!$A$25)","v":8.0118382628553224},{"$f":"SUMIFS(Data!$E:$E,Data!$B:$B,'16'!H$26,Data!$C:$C,'16'!$A$26,Data!$D:$D,'16'!$A28,Data!$F:$F,'16'!$A$25)","v":19.427073246606216},{"$f":"SUMIFS(Data!$E:$E,Data!$B:$B,'16'!I$26,Data!$C:$C,'16'!$A$26,Data!$D:$D,'16'!$A28,Data!$F:$F,'16'!$A$25)","v":9.6930870298801626},{"$f":"SUMIFS(Data!$E:$E,Data!$B:$B,'16'!J$26,Data!$C:$C,'16'!$A$26,Data!$D:$D,'16'!$A28,Data!$F:$F,'16'!$A$25)","v":23.615360295936021},{"$f":"SUMIFS(Data!$E:$E,Data!$B:$B,'16'!K$26,Data!$C:$C,'16'!$A$26,Data!$D:$D,'16'!$A28,Data!$F:$F,'16'!$A$25)","v":10.016390354853412}]
[{"$f":"VLOOKUP(\"Apartment\",Translation!$A$1:$C$354, Translation!A1+1, 0)","v":"Appartement"},{"$f":"SUMIFS(Data!$E:$E,Data!$B:$B,'16'!B$26,Data!$C:$C,'16'!$A$26,Data!$D:$D,'16'!$A29,Data!$F:$F,'16'!$A$25)","v":5.8334084406923852},{"$f":"SUMIFS(Data!$E:$E,Data!$B:$B,'16'!C$26,Data!$C:$C,'16'!$A$26,Data!$D:$D,'16'!$A29,Data!$F:$F,'16'!$A$25)","v":13.055515554489499},{"$f":"SUMIFS(Data!$E:$E,Data!$B:$B,'16'!D$26,Data!$C:$C,'16'!$A$26,Data!$D:$D,'16'!$A29,Data!$F:$F,'16'!$A$25)","v":8.3706758032548727},{"$f":"SUMIFS(Data!$E:$E,Data!$B:$B,'16'!E$26,Data!$C:$C,'16'!$A$26,Data!$D:$D,'16'!$A29,Data!$F:$F,'16'!$A$25)","v":14.32652508861238},{"$f":"SUMIFS(Data!$E:$E,Data!$B:$B,'16'!F$26,Data!$C:$C,'16'!$A$26,Data!$D:$D,'16'!$A29,Data!$F:$F,'16'!$A$25)","v":10.474844995105842},{"$f":"SUMIFS(Data!$E:$E,Data!$B:$B,'16'!G$26,Data!$C:$C,'16'!$A$26,Data!$D:$D,'16'!$A29,Data!$F:$F,'16'!$A$25)","v":8.5452002864274981},{"$f":"SUMIFS(Data!$E:$E,Data!$B:$B,'16'!H$26,Data!$C:$C,'16'!$A$26,Data!$D:$D,'16'!$A29,Data!$F:$F,'16'!$A$25)","v":5.9823431028059311},{"$f":"SUMIFS(Data!$E:$E,Data!$B:$B,'16'!I$26,Data!$C:$C,'16'!$A$26,Data!$D:$D,'16'!$A29,Data!$F:$F,'16'!$A$25)","v":9.0090022630205908},{"$f":"SUMIFS(Data!$E:$E,Data!$B:$B,'16'!J$26,Data!$C:$C,'16'!$A$26,Data!$D:$D,'16'!$A29,Data!$F:$F,'16'!$A$25)","v":5.8334084406923852},{"$f":"SUMIFS(Data!$E:$E,Data!$B:$B,'16'!K$26,Data!$C:$C,'16'!$A$26,Data!$D:$D,'16'!$A29,Data!$F:$F,'16'!$A$25)","v":10.474844995105842}]
[{"$f":"VLOOKUP(\"Semi-detached\",Translation!$A$1:$C$354, Translation!A1+1, 0)","v":"Jumelé"},{"$f":"SUMIFS(Data!$E:$E,Data!$B:$B,'16'!B$26,Data!$C:$C,'16'!$A$26,Data!$D:$D,'16'!$A30,Data!$F:$F,'16'!$A$25)","v":1.5184582384835263},{"$f":"SUMIFS(Data!$E:$E,Data!$B:$B,'16'!C$26,Data!$C:$C,'16'!$A$26,Data!$D:$D,'16'!$A30,Data!$F:$F,'16'!$A$25)","v":4.8289216487907423},{"$f":"SUMIFS(Data!$E:$E,Data!$B:$B,'16'!D$26,Data!$C:$C,'16'!$A$26,Data!$D:$D,'16'!$A30,Data!$F:$F,'16'!$A$25)","v":7.0594142698813478},{"$f":"SUMIFS(Data!$E:$E,Data!$B:$B,'16'!E$26,Data!$C:$C,'16'!$A$26,Data!$D:$D,'16'!$A30,Data!$F:$F,'16'!$A$25)","v":5.1480267242248843},{"$f":"SUMIFS(Data!$E:$E,Data!$B:$B,'16'!F$26,Data!$C:$C,'16'!$A$26,Data!$D:$D,'16'!$A30,Data!$F:$F,'16'!$A$25)","v":6.1711831594049684},{"$f":"SUMIFS(Data!$E:$E,Data!$B:$B,'16'!G$26,Data!$C:$C,'16'!$A$26,Data!$D:$D,'16'!$A30,Data!$F:$F,'16'!$A$25)","v":5.3497620677336721},{"$f":"SUMIFS(Data!$E:$E,Data!$B:$B,'16'!H$26,Data!$C:$C,'16'!$A$26,Data!$D:$D,'16'!$A30,Data!$F:$F,'16'!$A$25)","v":4.0387481316918894},{"$f":"SUMIFS(Data!$E:$E,Data!$B:$B,'16'!I$26,Data!$C:$C,'16'!$A$26,Data!$D:$D,'16'!$A30,Data!$F:$F,'16'!$A$25)","v":5.6003784041376221},{"$f":"SUMIFS(Data!$E:$E,Data!$B:$B,'16'!J$26,Data!$C:$C,'16'!$A$26,Data!$D:$D,'16'!$A30,Data!$F:$F,'16'!$A$25)","v":1.5184582384835263},{"$f":"SUMIFS(Data!$E:$E,Data!$B:$B,'16'!K$26,Data!$C:$C,'16'!$A$26,Data!$D:$D,'16'!$A30,Data!$F:$F,'16'!$A$25)","v":6.1711831594049684}]
[{"$f":"VLOOKUP(\"Plexes\",Translation!$A$1:$C$354, Translation!A1+1, 0)","v":"Plex"},{"$f":"SUMIFS(Data!$E:$E,Data!$B:$B,'16'!B$26,Data!$C:$C,'16'!$A$26,Data!$D:$D,'16'!$A31,Data!$F:$F,'16'!$A$25)","v":0.61370279747189205},{"$f":"SUMIFS(Data!$E:$E,Data!$B:$B,'16'!C$26,Data!$C:$C,'16'!$A$26,Data!$D:$D,'16'!$A31,Data!$F:$F,'16'!$A$25)","v":2.0546669633327821},{"$f":"SUMIFS(Data!$E:$E,Data!$B:$B,'16'!D$26,Data!$C:$C,'16'!$A$26,Data!$D:$D,'16'!$A31,Data!$F:$F,'16'!$A$25)","v":0.63815853012296087},{"$f":"SUMIFS(Data!$E:$E,Data!$B:$B,'16'!E$26,Data!$C:$C,'16'!$A$26,Data!$D:$D,'16'!$A31,Data!$F:$F,'16'!$A$25)","v":1.2161299927569456},{"$f":"SUMIFS(Data!$E:$E,Data!$B:$B,'16'!F$26,Data!$C:$C,'16'!$A$26,Data!$D:$D,'16'!$A31,Data!$F:$F,'16'!$A$25)","v":0.89566658277301148},{"$f":"SUMIFS(Data!$E:$E,Data!$B:$B,'16'!G$26,Data!$C:$C,'16'!$A$26,Data!$D:$D,'16'!$A31,Data!$F:$F,'16'!$A$25)","v":0.52077460254668761},{"$f":"SUMIFS(Data!$E:$E,Data!$B:$B,'16'!H$26,Data!$C:$C,'16'!$A$26,Data!$D:$D,'16'!$A31,Data!$F:$F,'16'!$A$25)","v":0.50915058352963938},{"$f":"SUMIFS(Data!$E:$E,Data!$B:$B,'16'!I$26,Data!$C:$C,'16'!$A$26,Data!$D:$D,'16'!$A31,Data!$F:$F,'16'!$A$25)","v":0.41052542592153246},{"$f":"SUMIFS(Data!$E:$E,Data!$B:$B,'16'!J$26,Data!$C:$C,'16'!$A$26,Data!$D:$D,'16'!$A31,Data!$F:$F,'16'!$A$25)","v":0.61370279747189205},{"$f":"SUMIFS(Data!$E:$E,Data!$B:$B,'16'!K$26,Data!$C:$C,'16'!$A$26,Data!$D:$D,'16'!$A31,Data!$F:$F,'16'!$A$25)","v":0.89566658277301148}]
[{"$f":"VLOOKUP(\"Other\",Translation!$A$1:$C$354, Translation!A1+1, 0)","v":"Autre"},{"$f":"SUMIFS(Data!$E:$E,Data!$B:$B,'16'!B$26,Data!$C:$C,'16'!$A$26,Data!$D:$D,'16'!$A32,Data!$F:$F,'16'!$A$25)","v":0.13147361412491729},{"$f":"SUMIFS(Data!$E:$E,Data!$B:$B,'16'!C$26,Data!$C:$C,'16'!$A$26,Data!$D:$D,'16'!$A32,Data!$F:$F,'16'!$A$25)","v":3.1080857452512742E-2},{"$f":"SUMIFS(Data!$E:$E,Data!$B:$B,'16'!D$26,Data!$C:$C,'16'!$A$26,Data!$D:$D,'16'!$A32,Data!$F:$F,'16'!$A$25)","v":9.3049226948392252E-2},{"$f":"SUMIFS(Data!$E:$E,Data!$B:$B,'16'!E$26,Data!$C:$C,'16'!$A$26,Data!$D:$D,'16'!$A32,Data!$F:$F,'16'!$A$25)","v":3.103699016741044E-2},{"$f":"SUMIFS(Data!$E:$E,Data!$B:$B,'16'!F$26,Data!$C:$C,'16'!$A$26,Data!$D:$D,'16'!$A32,Data!$F:$F,'16'!$A$25)","v":0.17503391102557539},{"$f":"SUMIFS(Data!$E:$E,Data!$B:$B,'16'!G$26,Data!$C:$C,'16'!$A$26,Data!$D:$D,'16'!$A32,Data!$F:$F,'16'!$A$25)","v":0.72830345428661525},{"$f":"SUMIFS(Data!$E:$E,Data!$B:$B,'16'!H$26,Data!$C:$C,'16'!$A$26,Data!$D:$D,'16'!$A32,Data!$F:$F,'16'!$A$25)","v":0.13894434317095031},{"$f":"SUMIFS(Data!$E:$E,Data!$B:$B,'16'!I$26,Data!$C:$C,'16'!$A$26,Data!$D:$D,'16'!$A32,Data!$F:$F,'16'!$A$25)","v":4.5780054627012047E-2},{"$f":"SUMIFS(Data!$E:$E,Data!$B:$B,'16'!J$26,Data!$C:$C,'16'!$A$26,Data!$D:$D,'16'!$A32,Data!$F:$F,'16'!$A$25)","v":0.13147361412491729},{"$f":"SUMIFS(Data!$E:$E,Data!$B:$B,'16'!K$26,Data!$C:$C,'16'!$A$26,Data!$D:$D,'16'!$A32,Data!$F:$F,'16'!$A$25)","v":0.17503391102557539}]
[{"$f":"VLOOKUP(\"Single by province (%)\",Translation!$A$1:$C$354, Translation!A1+1, 0)","v":"Logements individuels selon la province (%)"}]
[{"$f":"VLOOKUP(\"Newfoundland and Labrador\",Translation!$A$1:$C$354, Translation!A1+1, 0)","v":"Terre-Neuve-et-Labrador"},{"$f":"IF(SUMIFS(Data!$E:$E,Data!$B:$B,'16'!B$26,Data!$C:$C,'16'!$A$26,Data!$D:$D,'16'!$A34,Data!$F:$F,'16'!$A$25)=0,\"-\",SUMIFS(Data!$E:$E,Data!$B:$B,'16'!B$26,Data!$C:$C,'16'!$A$26,Data!$D:$D,'16'!$A34,Data!$F:$F,'16'!$A$25))","v":100},{"$f":"IF(SUMIFS(Data!$E:$E,Data!$B:$B,'16'!C$26,Data!$C:$C,'16'!$A$26,Data!$D:$D,'16'!$A34,Data!$F:$F,'16'!$A$25)=0,\"-\",SUMIFS(Data!$E:$E,Data!$B:$B,'16'!C$26,Data!$C:$C,'16'!$A$26,Data!$D:$D,'16'!$A34,Data!$F:$F,'16'!$A$25))","v":93.458765104743364},{"$f":"IF(SUMIFS(Data!$E:$E,Data!$B:$B,'16'!D$26,Data!$C:$C,'16'!$A$26,Data!$D:$D,'16'!$A34,Data!$F:$F,'16'!$A$25)=0,\"-\",SUMIFS(Data!$E:$E,Data!$B:$B,'16'!D$26,Data!$C:$C,'16'!$A$26,Data!$D:$D,'16'!$A34,Data!$F:$F,'16'!$A$25))","v":"-"},{"$f":"IF(SUMIFS(Data!$E:$E,Data!$B:$B,'16'!E$26,Data!$C:$C,'16'!$A$26,Data!$D:$D,'16'!$A34,Data!$F:$F,'16'!$A$25)=0,\"-\",SUMIFS(Data!$E:$E,Data!$B:$B,'16'!E$26,Data!$C:$C,'16'!$A$26,Data!$D:$D,'16'!$A34,Data!$F:$F,'16'!$A$25))","v":89.925016851852902},{"$f":"IF(SUMIFS(Data!$E:$E,Data!$B:$B,'16'!F$26,Data!$C:$C,'16'!$A$26,Data!$D:$D,'16'!$A34,Data!$F:$F,'16'!$A$25)=0,\"-\",SUMIFS(Data!$E:$E,Data!$B:$B,'16'!F$26,Data!$C:$C,'16'!$A$26,Data!$D:$D,'16'!$A34,Data!$F:$F,'16'!$A$25))","v":97.086230376889219},{"$f":"IF(SUMIFS(Data!$E:$E,Data!$B:$B,'16'!G$26,Data!$C:$C,'16'!$A$26,Data!$D:$D,'16'!$A34,Data!$F:$F,'16'!$A$25)=0,\"-\",SUMIFS(Data!$E:$E,Data!$B:$B,'16'!G$26,Data!$C:$C,'16'!$A$26,Data!$D:$D,'16'!$A34,Data!$F:$F,'16'!$A$25))","v":84.07052065810889},{"$f":"IF(SUMIFS(Data!$E:$E,Data!$B:$B,'16'!H$26,Data!$C:$C,'16'!$A$26,Data!$D:$D,'16'!$A34,Data!$F:$F,'16'!$A$25)=0,\"-\",SUMIFS(Data!$E:$E,Data!$B:$B,'16'!H$26,Data!$C:$C,'16'!$A$26,Data!$D:$D,'16'!$A34,Data!$F:$F,'16'!$A$25))","v":96.282198552452485},{"$f":"IF(SUMIFS(Data!$E:$E,Data!$B:$B,'16'!I$26,Data!$C:$C,'16'!$A$26,Data!$D:$D,'16'!$A34,Data!$F:$F,'16'!$A$25)=0,\"-\",SUMIFS(Data!$E:$E,Data!$B:$B,'16'!I$26,Data!$C:$C,'16'!$A$26,Data!$D:$D,'16'!$A34,Data!$F:$F,'16'!$A$25))","v":75.220777052103216},{"$f":"IF(SUMIFS(Data!$E:$E,Data!$B:$B,'16'!J$26,Data!$C:$C,'16'!$A$26,Data!$D:$D,'16'!$A34,Data!$F:$F,'16'!$A$25)=0,\"-\",SUMIFS(Data!$E:$E,Data!$B:$B,'16'!J$26,Data!$C:$C,'16'!$A$26,Data!$D:$D,'16'!$A34,Data!$F:$F,'16'!$A$25))","v":100},{"$f":"IF(SUMIFS(Data!$E:$E,Data!$B:$B,'16'!K$26,Data!$C:$C,'16'!$A$26,Data!$D:$D,'16'!$A34,Data!$F:$F,'16'!$A$25)=0,\"-\",SUMIFS(Data!$E:$E,Data!$B:$B,'16'!K$26,Data!$C:$C,'16'!$A$26,Data!$D:$D,'16'!$A34,Data!$F:$F,'16'!$A$25))","v":97.086230376889219}]
[{"$f":"VLOOKUP(\"Prince Edward Island\",Translation!$A$1:$C$354, Translation!A1+1, 0)","v":"Île-du-Prince-Édouard"},{"$f":"IF(SUMIFS(Data!$E:$E,Data!$B:$B,'16'!B$26,Data!$C:$C,'16'!$A$26,Data!$D:$D,'16'!$A35,Data!$F:$F,'16'!$A$25)=0,\"-\",SUMIFS(Data!$E:$E,Data!$B:$B,'16'!B$26,Data!$C:$C,'16'!$A$26,Data!$D:$D,'16'!$A35,Data!$F:$F,'16'!$A$25))","v":"-"},{"$f":"IF(SUMIFS(Data!$E:$E,Data!$B:$B,'16'!C$26,Data!$C:$C,'16'!$A$26,Data!$D:$D,'16'!$A35,Data!$F:$F,'16'!$A$25)=0,\"-\",SUMIFS(Data!$E:$E,Data!$B:$B,'16'!C$26,Data!$C:$C,'16'!$A$26,Data!$D:$D,'16'!$A35,Data!$F:$F,'16'!$A$25))","v":90.925685196093283},{"$f":"IF(SUMIFS(Data!$E:$E,Data!$B:$B,'16'!D$26,Data!$C:$C,'16'!$A$26,Data!$D:$D,'16'!$A35,Data!$F:$F,'16'!$A$25)=0,\"-\",SUMIFS(Data!$E:$E,Data!$B:$B,'16'!D$26,Data!$C:$C,'16'!$A$26,Data!$D:$D,'16'!$A35,Data!$F:$F,'16'!$A$25))","v":"-"},{"$f":"IF(SUMIFS(Data!$E:$E,Data!$B:$B,'16'!E$26,Data!$C:$C,'16'!$A$26,Data!$D:$D,'16'!$A35,Data!$F:$F,'16'!$A$25)=0,\"-\",SUMIFS(Data!$E:$E,Data!$B:$B,'16'!E$26,Data!$C:$C,'16'!$A$26,Data!$D:$D,'16'!$A35,Data!$F:$F,'16'!$A$25))","v":90.95030199437538},{"$f":"IF(SUMIFS(Data!$E:$E,Data!$B:$B,'16'!F$26,Data!$C:$C,'16'!$A$26,Data!$D:$D,'16'!$A35,Data!$F:$F,'16'!$A$25)=0,\"-\",SUMIFS(Data!$E:$E,Data!$B:$B,'16'!F$26,Data!$C:$C,'16'!$A$26,Data!$D:$D,'16'!$A35,Data!$F:$F,'16'!$A$25))","v":100},{"$f":"IF(SUMIFS(Data!$E:$E,Data!$B:$B,'16'!G$26,Data!$C:$C,'16'!$A$26,Data!$D:$D,'16'!$A35,Data!$F:$F,'16'!$A$25)=0,\"-\",SUMIFS(Data!$E:$E,Data!$B:$B,'16'!G$26,Data!$C:$C,'16'!$A$26,Data!$D:$D,'16'!$A35,Data!$F:$F,'16'!$A$25))","v":100},{"$f":"IF(SUMIFS(Data!$E:$E,Data!$B:$B,'16'!H$26,Data!$C:$C,'16'!$A$26,Data!$D:$D,'16'!$A35,Data!$F:$F,'16'!$A$25)=0,\"-\",SUMIFS(Data!$E:$E,Data!$B:$B,'16'!H$26,Data!$C:$C,'16'!$A$26,Data!$D:$D,'16'!$A35,Data!$F:$F,'16'!$A$25))","v":"-"},{"$f":"IF(SUMIFS(Data!$E:$E,Data!$B:$B,'16'!I$26,Data!$C:$C,'16'!$A$26,Data!$D:$D,'16'!$A35,Data!$F:$F,'16'!$A$25)=0,\"-\",SUMIFS(Data!$E:$E,Data!$B:$B,'16'!I$26,Data!$C:$C,'16'!$A$26,Data!$D:$D,'16'!$A35,Data!$F:$F,'16'!$A$25))","v":100},{"$f":"IF(SUMIFS(Data!$E:$E,Data!$B:$B,'16'!J$26,Data!$C:$C,'16'!$A$26,Data!$D:$D,'16'!$A35,Data!$F:$F,'16'!$A$25)=0,\"-\",SUMIFS(Data!$E:$E,Data!$B:$B,'16'!J$26,Data!$C:$C,'16'!$A$26,Data!$D:$D,'16'!$A35,Data!$F:$F,'16'!$A$25))","v":"-"},{"$f":"IF(SUMIFS(Data!$E:$E,Data!$B:$B,'16'!K$26,Data!$C:$C,'16'!$A$26,Data!$D:$D,'16'!$A35,Data!$F:$F,'16'!$A$25)=0,\"-\",SUMIFS(Data!$E:$E,Data!$B:$B,'16'!K$26,Data!$C:$C,'16'!$A$26,Data!$D:$D,'16'!$A35,Data!$F:$F,'16'!$A$25))","v":100}]
[{"$f":"VLOOKUP(\"Nova Scotia\",Translation!$A$1:$C$354, Translation!A1+1, 0)","v":"Nouvelle-Écosse"},{"$f":"IF(SUMIFS(Data!$E:$E,Data!$B:$B,'16'!B$26,Data!$C:$C,'16'!$A$26,Data!$D:$D,'16'!$A36,Data!$F:$F,'16'!$A$25)=0,\"-\",SUMIFS(Data!$E:$E,Data!$B:$B,'16'!B$26,Data!$C:$C,'16'!$A$26,Data!$D:$D,'16'!$A36,Data!$F:$F,'16'!$A$25))","v":90.964102244613599},{"$f":"IF(SUMIFS(Data!$E:$E,Data!$B:$B,'16'!C$26,Data!$C:$C,'16'!$A$26,Data!$D:$D,'16'!$A36,Data!$F:$F,'16'!$A$25)=0,\"-\",SUMIFS(Data!$E:$E,Data!$B:$B,'16'!C$26,Data!$C:$C,'16'!$A$26,Data!$D:$D,'16'!$A36,Data!$F:$F,'16'!$A$25))","v":85.06233831518702},{"$f":"IF(SUMIFS(Data!$E:$E,Data!$B:$B,'16'!D$26,Data!$C:$C,'16'!$A$26,Data!$D:$D,'16'!$A36,Data!$F:$F,'16'!$A$25)=0,\"-\",SUMIFS(Data!$E:$E,Data!$B:$B,'16'!D$26,Data!$C:$C,'16'!$A$26,Data!$D:$D,'16'!$A36,Data!$F:$F,'16'!$A$25))","v":92.869156636347654},{"$f":"IF(SUMIFS(Data!$E:$E,Data!$B:$B,'16'!E$26,Data!$C:$C,'16'!$A$26,Data!$D:$D,'16'!$A36,Data!$F:$F,'16'!$A$25)=0,\"-\",SUMIFS(Data!$E:$E,Data!$B:$B,'16'!E$26,Data!$C:$C,'16'!$A$26,Data!$D:$D,'16'!$A36,Data!$F:$F,'16'!$A$25))","v":86.64388123912947},{"$f":"IF(SUMIFS(Data!$E:$E,Data!$B:$B,'16'!F$26,Data!$C:$C,'16'!$A$26,Data!$D:$D,'16'!$A36,Data!$F:$F,'16'!$A$25)=0,\"-\",SUMIFS(Data!$E:$E,Data!$B:$B,'16'!F$26,Data!$C:$C,'16'!$A$26,Data!$D:$D,'16'!$A36,Data!$F:$F,'16'!$A$25))","v":91.182940128476318},{"$f":"IF(SUMIFS(Data!$E:$E,Data!$B:$B,'16'!G$26,Data!$C:$C,'16'!$A$26,Data!$D:$D,'16'!$A36,Data!$F:$F,'16'!$A$25)=0,\"-\",SUMIFS(Data!$E:$E,Data!$B:$B,'16'!G$26,Data!$C:$C,'16'!$A$26,Data!$D:$D,'16'!$A36,Data!$F:$F,'16'!$A$25))","v":87.060855473051589},{"$f":"IF(SUMIFS(Data!$E:$E,Data!$B:$B,'16'!H$26,Data!$C:$C,'16'!$A$26,Data!$D:$D,'16'!$A36,Data!$F:$F,'16'!$A$25)=0,\"-\",SUMIFS(Data!$E:$E,Data!$B:$B,'16'!H$26,Data!$C:$C,'16'!$A$26,Data!$D:$D,'16'!$A36,Data!$F:$F,'16'!$A$25))","v":88.440795136509891},{"$f":"IF(SUMIFS(Data!$E:$E,Data!$B:$B,'16'!I$26,Data!$C:$C,'16'!$A$26,Data!$D:$D,'16'!$A36,Data!$F:$F,'16'!$A$25)=0,\"-\",SUMIFS(Data!$E:$E,Data!$B:$B,'16'!I$26,Data!$C:$C,'16'!$A$26,Data!$D:$D,'16'!$A36,Data!$F:$F,'16'!$A$25))","v":85.902850374817206},{"$f":"IF(SUMIFS(Data!$E:$E,Data!$B:$B,'16'!J$26,Data!$C:$C,'16'!$A$26,Data!$D:$D,'16'!$A36,Data!$F:$F,'16'!$A$25)=0,\"-\",SUMIFS(Data!$E:$E,Data!$B:$B,'16'!J$26,Data!$C:$C,'16'!$A$26,Data!$D:$D,'16'!$A36,Data!$F:$F,'16'!$A$25))","v":90.964102244613599},{"$f":"IF(SUMIFS(Data!$E:$E,Data!$B:$B,'16'!K$26,Data!$C:$C,'16'!$A$26,Data!$D:$D,'16'!$A36,Data!$F:$F,'16'!$A$25)=0,\"-\",SUMIFS(Data!$E:$E,Data!$B:$B,'16'!K$26,Data!$C:$C,'16'!$A$26,Data!$D:$D,'16'!$A36,Data!$F:$F,'16'!$A$25))","v":91.182940128476318}]
[{"$f":"VLOOKUP(\"New Brunswick\",Translation!$A$1:$C$354, Translation!A1+1, 0)","v":"Nouveau-Brunswick"},{"$f":"IF(SUMIFS(Data!$E:$E,Data!$B:$B,'16'!B$26,Data!$C:$C,'16'!$A$26,Data!$D:$D,'16'!$A37,Data!$F:$F,'16'!$A$25)=0,\"-\",SUMIFS(Data!$E:$E,Data!$B:$B,'16'!B$26,Data!$C:$C,'16'!$A$26,Data!$D:$D,'16'!$A37,Data!$F:$F,'16'!$A$25))","v":90.911254638895613},{"$f":"IF(SUMIFS(Data!$E:$E,Data!$B:$B,'16'!C$26,Data!$C:$C,'16'!$A$26,Data!$D:$D,'16'!$A37,Data!$F:$F,'16'!$A$25)=0,\"-\",SUMIFS(Data!$E:$E,Data!$B:$B,'16'!C$26,Data!$C:$C,'16'!$A$26,Data!$D:$D,'16'!$A37,Data!$F:$F,'16'!$A$25))","v":89.645359543841579},{"$f":"IF(SUMIFS(Data!$E:$E,Data!$B:$B,'16'!D$26,Data!$C:$C,'16'!$A$26,Data!$D:$D,'16'!$A37,Data!$F:$F,'16'!$A$25)=0,\"-\",SUMIFS(Data!$E:$E,Data!$B:$B,'16'!D$26,Data!$C:$C,'16'!$A$26,Data!$D:$D,'16'!$A37,Data!$F:$F,'16'!$A$25))","v":70.2979149671649},{"$f":"IF(SUMIFS(Data!$E:$E,Data!$B:$B,'16'!E$26,Data!$C:$C,'16'!$A$26,Data!$D:$D,'16'!$A37,Data!$F:$F,'16'!$A$25)=0,\"-\",SUMIFS(Data!$E:$E,Data!$B:$B,'16'!E$26,Data!$C:$C,'16'!$A$26,Data!$D:$D,'16'!$A37,Data!$F:$F,'16'!$A$25))","v":89.193204947430431},{"$f":"IF(SUMIFS(Data!$E:$E,Data!$B:$B,'16'!F$26,Data!$C:$C,'16'!$A$26,Data!$D:$D,'16'!$A37,Data!$F:$F,'16'!$A$25)=0,\"-\",SUMIFS(Data!$E:$E,Data!$B:$B,'16'!F$26,Data!$C:$C,'16'!$A$26,Data!$D:$D,'16'!$A37,Data!$F:$F,'16'!$A$25))","v":80.822292750098555},{"$f":"IF(SUMIFS(Data!$E:$E,Data!$B:$B,'16'!G$26,Data!$C:$C,'16'!$A$26,Data!$D:$D,'16'!$A37,Data!$F:$F,'16'!$A$25)=0,\"-\",SUMIFS(Data!$E:$E,Data!$B:$B,'16'!G$26,Data!$C:$C,'16'!$A$26,Data!$D:$D,'16'!$A37,Data!$F:$F,'16'!$A$25))","v":99.601303499265285},{"$f":"IF(SUMIFS(Data!$E:$E,Data!$B:$B,'16'!H$26,Data!$C:$C,'16'!$A$26,Data!$D:$D,'16'!$A37,Data!$F:$F,'16'!$A$25)=0,\"-\",SUMIFS(Data!$E:$E,Data!$B:$B,'16'!H$26,Data!$C:$C,'16'!$A$26,Data!$D:$D,'16'!$A37,Data!$F:$F,'16'!$A$25))","v":97.113640453988381},{"$f":"IF(SUMIFS(Data!$E:$E,Data!$B:$B,'16'!I$26,Data!$C:$C,'16'!$A$26,Data!$D:$D,'16'!$A37,Data!$F:$F,'16'!$A$25)=0,\"-\",SUMIFS(Data!$E:$E,Data!$B:$B,'16'!I$26,Data!$C:$C,'16'!$A$26,Data!$D:$D,'16'!$A37,Data!$F:$F,'16'!$A$25))","v":80.311646928467681},{"$f":"IF(SUMIFS(Data!$E:$E,Data!$B:$B,'16'!J$26,Data!$C:$C,'16'!$A$26,Data!$D:$D,'16'!$A37,Data!$F:$F,'16'!$A$25)=0,\"-\",SUMIFS(Data!$E:$E,Data!$B:$B,'16'!J$26,Data!$C:$C,'16'!$A$26,Data!$D:$D,'16'!$A37,Data!$F:$F,'16'!$A$25))","v":90.911254638895613},{"$f":"IF(SUMIFS(Data!$E:$E,Data!$B:$B,'16'!K$26,Data!$C:$C,'16'!$A$26,Data!$D:$D,'16'!$A37,Data!$F:$F,'16'!$A$25)=0,\"-\",SUMIFS(Data!$E:$E,Data!$B:$B,'16'!K$26,Data!$C:$C,'16'!$A$26,Data!$D:$D,'16'!$A37,Data!$F:$F,'16'!$A$25))","v":80.822292750098555}]
[{"$f":"VLOOKUP(\"Quebec\",Translation!$A$1:$C$354, Translation!A1+1, 0)","v":"Québec"},{"$f":"IF(SUMIFS(Data!$E:$E,Data!$B:$B,'16'!B$26,Data!$C:$C,'16'!$A$26,Data!$D:$D,'16'!$A38,Data!$F:$F,'16'!$A$25)=0,\"-\",SUMIFS(Data!$E:$E,Data!$B:$B,'16'!B$26,Data!$C:$C,'16'!$A$26,Data!$D:$D,'16'!$A38,Data!$F:$F,'16'!$A$25))","v":71.960102037978004},{"$f":"IF(SUMIFS(Data!$E:$E,Data!$B:$B,'16'!C$26,Data!$C:$C,'16'!$A$26,Data!$D:$D,'16'!$A38,Data!$F:$F,'16'!$A$25)=0,\"-\",SUMIFS(Data!$E:$E,Data!$B:$B,'16'!C$26,Data!$C:$C,'16'!$A$26,Data!$D:$D,'16'!$A38,Data!$F:$F,'16'!$A$25))","v":54.384881939980005},{"$f":"IF(SUMIFS(Data!$E:$E,Data!$B:$B,'16'!D$26,Data!$C:$C,'16'!$A$26,Data!$D:$D,'16'!$A38,Data!$F:$F,'16'!$A$25)=0,\"-\",SUMIFS(Data!$E:$E,Data!$B:$B,'16'!D$26,Data!$C:$C,'16'!$A$26,Data!$D:$D,'16'!$A38,Data!$F:$F,'16'!$A$25))","v":60.235512992006846},{"$f":"IF(SUMIFS(Data!$E:$E,Data!$B:$B,'16'!E$26,Data!$C:$C,'16'!$A$26,Data!$D:$D,'16'!$A38,Data!$F:$F,'16'!$A$25)=0,\"-\",SUMIFS(Data!$E:$E,Data!$B:$B,'16'!E$26,Data!$C:$C,'16'!$A$26,Data!$D:$D,'16'!$A38,Data!$F:$F,'16'!$A$25))","v":53.644976701641689},{"$f":"IF(SUMIFS(Data!$E:$E,Data!$B:$B,'16'!F$26,Data!$C:$C,'16'!$A$26,Data!$D:$D,'16'!$A38,Data!$F:$F,'16'!$A$25)=0,\"-\",SUMIFS(Data!$E:$E,Data!$B:$B,'16'!F$26,Data!$C:$C,'16'!$A$26,Data!$D:$D,'16'!$A38,Data!$F:$F,'16'!$A$25))","v":68.546355051870066},{"$f":"IF(SUMIFS(Data!$E:$E,Data!$B:$B,'16'!G$26,Data!$C:$C,'16'!$A$26,Data!$D:$D,'16'!$A38,Data!$F:$F,'16'!$A$25)=0,\"-\",SUMIFS(Data!$E:$E,Data!$B:$B,'16'!G$26,Data!$C:$C,'16'!$A$26,Data!$D:$D,'16'!$A38,Data!$F:$F,'16'!$A$25))","v":62.525557735432656},{"$f":"IF(SUMIFS(Data!$E:$E,Data!$B:$B,'16'!H$26,Data!$C:$C,'16'!$A$26,Data!$D:$D,'16'!$A38,Data!$F:$F,'16'!$A$25)=0,\"-\",SUMIFS(Data!$E:$E,Data!$B:$B,'16'!H$26,Data!$C:$C,'16'!$A$26,Data!$D:$D,'16'!$A38,Data!$F:$F,'16'!$A$25))","v":67.860770136242792},{"$f":"IF(SUMIFS(Data!$E:$E,Data!$B:$B,'16'!I$26,Data!$C:$C,'16'!$A$26,Data!$D:$D,'16'!$A38,Data!$F:$F,'16'!$A$25)=0,\"-\",SUMIFS(Data!$E:$E,Data!$B:$B,'16'!I$26,Data!$C:$C,'16'!$A$26,Data!$D:$D,'16'!$A38,Data!$F:$F,'16'!$A$25))","v":63.011088522496017},{"$f":"IF(SUMIFS(Data!$E:$E,Data!$B:$B,'16'!J$26,Data!$C:$C,'16'!$A$26,Data!$D:$D,'16'!$A38,Data!$F:$F,'16'!$A$25)=0,\"-\",SUMIFS(Data!$E:$E,Data!$B:$B,'16'!J$26,Data!$C:$C,'16'!$A$26,Data!$D:$D,'16'!$A38,Data!$F:$F,'16'!$A$25))","v":71.960102037978004},{"$f":"IF(SUMIFS(Data!$E:$E,Data!$B:$B,'16'!K$26,Data!$C:$C,'16'!$A$26,Data!$D:$D,'16'!$A38,Data!$F:$F,'16'!$A$25)=0,\"-\",SUMIFS(Data!$E:$E,Data!$B:$B,'16'!K$26,Data!$C:$C,'16'!$A$26,Data!$D:$D,'16'!$A38,Data!$F:$F,'16'!$A$25))","v":68.546355051870066}]
[{"$f":"VLOOKUP(\"Ontario\",Translation!$A$1:$C$354, Translation!A1+1, 0)","v":"Ontario"},{"$f":"IF(SUMIFS(Data!$E:$E,Data!$B:$B,'16'!B$26,Data!$C:$C,'16'!$A$26,Data!$D:$D,'16'!$A39,Data!$F:$F,'16'!$A$25)=0,\"-\",SUMIFS(Data!$E:$E,Data!$B:$B,'16'!B$26,Data!$C:$C,'16'!$A$26,Data!$D:$D,'16'!$A39,Data!$F:$F,'16'!$A$25))","v":70.726709998099821},{"$f":"IF(SUMIFS(Data!$E:$E,Data!$B:$B,'16'!C$26,Data!$C:$C,'16'!$A$26,Data!$D:$D,'16'!$A39,Data!$F:$F,'16'!$A$25)=0,\"-\",SUMIFS(Data!$E:$E,Data!$B:$B,'16'!C$26,Data!$C:$C,'16'!$A$26,Data!$D:$D,'16'!$A39,Data!$F:$F,'16'!$A$25))","v":67.65715351956301},{"$f":"IF(SUMIFS(Data!$E:$E,Data!$B:$B,'16'!D$26,Data!$C:$C,'16'!$A$26,Data!$D:$D,'16'!$A39,Data!$F:$F,'16'!$A$25)=0,\"-\",SUMIFS(Data!$E:$E,Data!$B:$B,'16'!D$26,Data!$C:$C,'16'!$A$26,Data!$D:$D,'16'!$A39,Data!$F:$F,'16'!$A$25))","v":73.020255798338113},{"$f":"IF(SUMIFS(Data!$E:$E,Data!$B:$B,'16'!E$26,Data!$C:$C,'16'!$A$26,Data!$D:$D,'16'!$A39,Data!$F:$F,'16'!$A$25)=0,\"-\",SUMIFS(Data!$E:$E,Data!$B:$B,'16'!E$26,Data!$C:$C,'16'!$A$26,Data!$D:$D,'16'!$A39,Data!$F:$F,'16'!$A$25))","v":68.241724004699947},{"$f":"IF(SUMIFS(Data!$E:$E,Data!$B:$B,'16'!F$26,Data!$C:$C,'16'!$A$26,Data!$D:$D,'16'!$A39,Data!$F:$F,'16'!$A$25)=0,\"-\",SUMIFS(Data!$E:$E,Data!$B:$B,'16'!F$26,Data!$C:$C,'16'!$A$26,Data!$D:$D,'16'!$A39,Data!$F:$F,'16'!$A$25))","v":70.539911636319019},{"$f":"IF(SUMIFS(Data!$E:$E,Data!$B:$B,'16'!G$26,Data!$C:$C,'16'!$A$26,Data!$D:$D,'16'!$A39,Data!$F:$F,'16'!$A$25)=0,\"-\",SUMIFS(Data!$E:$E,Data!$B:$B,'16'!G$26,Data!$C:$C,'16'!$A$26,Data!$D:$D,'16'!$A39,Data!$F:$F,'16'!$A$25))","v":76.397256096319055},{"$f":"IF(SUMIFS(Data!$E:$E,Data!$B:$B,'16'!H$26,Data!$C:$C,'16'!$A$26,Data!$D:$D,'16'!$A39,Data!$F:$F,'16'!$A$25)=0,\"-\",SUMIFS(Data!$E:$E,Data!$B:$B,'16'!H$26,Data!$C:$C,'16'!$A$26,Data!$D:$D,'16'!$A39,Data!$F:$F,'16'!$A$25))","v":71.592913339234883},{"$f":"IF(SUMIFS(Data!$E:$E,Data!$B:$B,'16'!I$26,Data!$C:$C,'16'!$A$26,Data!$D:$D,'16'!$A39,Data!$F:$F,'16'!$A$25)=0,\"-\",SUMIFS(Data!$E:$E,Data!$B:$B,'16'!I$26,Data!$C:$C,'16'!$A$26,Data!$D:$D,'16'!$A39,Data!$F:$F,'16'!$A$25))","v":75.558349806985987},{"$f":"IF(SUMIFS(Data!$E:$E,Data!$B:$B,'16'!J$26,Data!$C:$C,'16'!$A$26,Data!$D:$D,'16'!$A39,Data!$F:$F,'16'!$A$25)=0,\"-\",SUMIFS(Data!$E:$E,Data!$B:$B,'16'!J$26,Data!$C:$C,'16'!$A$26,Data!$D:$D,'16'!$A39,Data!$F:$F,'16'!$A$25))","v":70.726709998099821},{"$f":"IF(SUMIFS(Data!$E:$E,Data!$B:$B,'16'!K$26,Data!$C:$C,'16'!$A$26,Data!$D:$D,'16'!$A39,Data!$F:$F,'16'!$A$25)=0,\"-\",SUMIFS(Data!$E:$E,Data!$B:$B,'16'!K$26,Data!$C:$C,'16'!$A$26,Data!$D:$D,'16'!$A39,Data!$F:$F,'16'!$A$25))","v":70.539911636319019}]
[{"$f":"VLOOKUP(\"Manitoba\",Translation!$A$1:$C$354, Translation!A1+1, 0)","v":"Manitoba"},{"$f":"IF(SUMIFS(Data!$E:$E,Data!$B:$B,'16'!B$26,Data!$C:$C,'16'!$A$26,Data!$D:$D,'16'!$A40,Data!$F:$F,'16'!$A$25)=0,\"-\",SUMIFS(Data!$E:$E,Data!$B:$B,'16'!B$26,Data!$C:$C,'16'!$A$26,Data!$D:$D,'16'!$A40,Data!$F:$F,'16'!$A$25))","v":86.077622467980603},{"$f":"IF(SUMIFS(Data!$E:$E,Data!$B:$B,'16'!C$26,Data!$C:$C,'16'!$A$26,Data!$D:$D,'16'!$A40,Data!$F:$F,'16'!$A$25)=0,\"-\",SUMIFS(Data!$E:$E,Data!$B:$B,'16'!C$26,Data!$C:$C,'16'!$A$26,Data!$D:$D,'16'!$A40,Data!$F:$F,'16'!$A$25))","v":91.556515574281306},{"$f":"IF(SUMIFS(Data!$E:$E,Data!$B:$B,'16'!D$26,Data!$C:$C,'16'!$A$26,Data!$D:$D,'16'!$A40,Data!$F:$F,'16'!$A$25)=0,\"-\",SUMIFS(Data!$E:$E,Data!$B:$B,'16'!D$26,Data!$C:$C,'16'!$A$26,Data!$D:$D,'16'!$A40,Data!$F:$F,'16'!$A$25))","v":91.928170377381988},{"$f":"IF(SUMIFS(Data!$E:$E,Data!$B:$B,'16'!E$26,Data!$C:$C,'16'!$A$26,Data!$D:$D,'16'!$A40,Data!$F:$F,'16'!$A$25)=0,\"-\",SUMIFS(Data!$E:$E,Data!$B:$B,'16'!E$26,Data!$C:$C,'16'!$A$26,Data!$D:$D,'16'!$A40,Data!$F:$F,'16'!$A$25))","v":90.612066020544646},{"$f":"IF(SUMIFS(Data!$E:$E,Data!$B:$B,'16'!F$26,Data!$C:$C,'16'!$A$26,Data!$D:$D,'16'!$A40,Data!$F:$F,'16'!$A$25)=0,\"-\",SUMIFS(Data!$E:$E,Data!$B:$B,'16'!F$26,Data!$C:$C,'16'!$A$26,Data!$D:$D,'16'!$A40,Data!$F:$F,'16'!$A$25))","v":82.300855943092884},{"$f":"IF(SUMIFS(Data!$E:$E,Data!$B:$B,'16'!G$26,Data!$C:$C,'16'!$A$26,Data!$D:$D,'16'!$A40,Data!$F:$F,'16'!$A$25)=0,\"-\",SUMIFS(Data!$E:$E,Data!$B:$B,'16'!G$26,Data!$C:$C,'16'!$A$26,Data!$D:$D,'16'!$A40,Data!$F:$F,'16'!$A$25))","v":93.613788919040786},{"$f":"IF(SUMIFS(Data!$E:$E,Data!$B:$B,'16'!H$26,Data!$C:$C,'16'!$A$26,Data!$D:$D,'16'!$A40,Data!$F:$F,'16'!$A$25)=0,\"-\",SUMIFS(Data!$E:$E,Data!$B:$B,'16'!H$26,Data!$C:$C,'16'!$A$26,Data!$D:$D,'16'!$A40,Data!$F:$F,'16'!$A$25))","v":91.658729400877036},{"$f":"IF(SUMIFS(Data!$E:$E,Data!$B:$B,'16'!I$26,Data!$C:$C,'16'!$A$26,Data!$D:$D,'16'!$A40,Data!$F:$F,'16'!$A$25)=0,\"-\",SUMIFS(Data!$E:$E,Data!$B:$B,'16'!I$26,Data!$C:$C,'16'!$A$26,Data!$D:$D,'16'!$A40,Data!$F:$F,'16'!$A$25))","v":93.11365027995538},{"$f":"IF(SUMIFS(Data!$E:$E,Data!$B:$B,'16'!J$26,Data!$C:$C,'16'!$A$26,Data!$D:$D,'16'!$A40,Data!$F:$F,'16'!$A$25)=0,\"-\",SUMIFS(Data!$E:$E,Data!$B:$B,'16'!J$26,Data!$C:$C,'16'!$A$26,Data!$D:$D,'16'!$A40,Data!$F:$F,'16'!$A$25))","v":86.077622467980603},{"$f":"IF(SUMIFS(Data!$E:$E,Data!$B:$B,'16'!K$26,Data!$C:$C,'16'!$A$26,Data!$D:$D,'16'!$A40,Data!$F:$F,'16'!$A$25)=0,\"-\",SUMIFS(Data!$E:$E,Data!$B:$B,'16'!K$26,Data!$C:$C,'16'!$A$26,Data!$D:$D,'16'!$A40,Data!$F:$F,'16'!$A$25))","v":82.300855943092884}]
[{"$f":"VLOOKUP(\"Saskatchewan\",Translation!$A$1:$C$354, Translation!A1+1, 0)","v":"Saskatchewan"},{"$f":"IF(SUMIFS(Data!$E:$E,Data!$B:$B,'16'!B$26,Data!$C:$C,'16'!$A$26,Data!$D:$D,'16'!$A41,Data!$F:$F,'16'!$A$25)=0,\"-\",SUMIFS(Data!$E:$E,Data!$B:$B,'16'!B$26,Data!$C:$C,'16'!$A$26,Data!$D:$D,'16'!$A41,Data!$F:$F,'16'!$A$25))","v":88.223946429372617},{"$f":"IF(SUMIFS(Data!$E:$E,Data!$B:$B,'16'!C$26,Data!$C:$C,'16'!$A$26,Data!$D:$D,'16'!$A41,Data!$F:$F,'16'!$A$25)=0,\"-\",SUMIFS(Data!$E:$E,Data!$B:$B,'16'!C$26,Data!$C:$C,'16'!$A$26,Data!$D:$D,'16'!$A41,Data!$F:$F,'16'!$A$25))","v":89.413887456805284},{"$f":"IF(SUMIFS(Data!$E:$E,Data!$B:$B,'16'!D$26,Data!$C:$C,'16'!$A$26,Data!$D:$D,'16'!$A41,Data!$F:$F,'16'!$A$25)=0,\"-\",SUMIFS(Data!$E:$E,Data!$B:$B,'16'!D$26,Data!$C:$C,'16'!$A$26,Data!$D:$D,'16'!$A41,Data!$F:$F,'16'!$A$25))","v":95.881635720506878},{"$f":"IF(SUMIFS(Data!$E:$E,Data!$B:$B,'16'!E$26,Data!$C:$C,'16'!$A$26,Data!$D:$D,'16'!$A41,Data!$F:$F,'16'!$A$25)=0,\"-\",SUMIFS(Data!$E:$E,Data!$B:$B,'16'!E$26,Data!$C:$C,'16'!$A$26,Data!$D:$D,'16'!$A41,Data!$F:$F,'16'!$A$25))","v":92.303403059015238},{"$f":"IF(SUMIFS(Data!$E:$E,Data!$B:$B,'16'!F$26,Data!$C:$C,'16'!$A$26,Data!$D:$D,'16'!$A41,Data!$F:$F,'16'!$A$25)=0,\"-\",SUMIFS(Data!$E:$E,Data!$B:$B,'16'!F$26,Data!$C:$C,'16'!$A$26,Data!$D:$D,'16'!$A41,Data!$F:$F,'16'!$A$25))","v":92.136769437842219},{"$f":"IF(SUMIFS(Data!$E:$E,Data!$B:$B,'16'!G$26,Data!$C:$C,'16'!$A$26,Data!$D:$D,'16'!$A41,Data!$F:$F,'16'!$A$25)=0,\"-\",SUMIFS(Data!$E:$E,Data!$B:$B,'16'!G$26,Data!$C:$C,'16'!$A$26,Data!$D:$D,'16'!$A41,Data!$F:$F,'16'!$A$25))","v":93.877461387773437},{"$f":"IF(SUMIFS(Data!$E:$E,Data!$B:$B,'16'!H$26,Data!$C:$C,'16'!$A$26,Data!$D:$D,'16'!$A41,Data!$F:$F,'16'!$A$25)=0,\"-\",SUMIFS(Data!$E:$E,Data!$B:$B,'16'!H$26,Data!$C:$C,'16'!$A$26,Data!$D:$D,'16'!$A41,Data!$F:$F,'16'!$A$25))","v":86.417526504251484},{"$f":"IF(SUMIFS(Data!$E:$E,Data!$B:$B,'16'!I$26,Data!$C:$C,'16'!$A$26,Data!$D:$D,'16'!$A41,Data!$F:$F,'16'!$A$25)=0,\"-\",SUMIFS(Data!$E:$E,Data!$B:$B,'16'!I$26,Data!$C:$C,'16'!$A$26,Data!$D:$D,'16'!$A41,Data!$F:$F,'16'!$A$25))","v":88.107449569303611},{"$f":"IF(SUMIFS(Data!$E:$E,Data!$B:$B,'16'!J$26,Data!$C:$C,'16'!$A$26,Data!$D:$D,'16'!$A41,Data!$F:$F,'16'!$A$25)=0,\"-\",SUMIFS(Data!$E:$E,Data!$B:$B,'16'!J$26,Data!$C:$C,'16'!$A$26,Data!$D:$D,'16'!$A41,Data!$F:$F,'16'!$A$25))","v":88.223946429372617},{"$f":"IF(SUMIFS(Data!$E:$E,Data!$B:$B,'16'!K$26,Data!$C:$C,'16'!$A$26,Data!$D:$D,'16'!$A41,Data!$F:$F,'16'!$A$25)=0,\"-\",SUMIFS(Data!$E:$E,Data!$B:$B,'16'!K$26,Data!$C:$C,'16'!$A$26,Data!$D:$D,'16'!$A41,Data!$F:$F,'16'!$A$25))","v":92.136769437842219}]
[{"$f":"VLOOKUP(\"Alberta\",Translation!$A$1:$C$354, Translation!A1+1, 0)","v":"Alberta"},{"$f":"IF(SUMIFS(Data!$E:$E,Data!$B:$B,'16'!B$26,Data!$C:$C,'16'!$A$26,Data!$D:$D,'16'!$A42,Data!$F:$F,'16'!$A$25)=0,\"-\",SUMIFS(Data!$E:$E,Data!$B:$B,'16'!B$26,Data!$C:$C,'16'!$A$26,Data!$D:$D,'16'!$A42,Data!$F:$F,'16'!$A$25))","v":84.110647039622734},{"$f":"IF(SUMIFS(Data!$E:$E,Data!$B:$B,'16'!C$26,Data!$C:$C,'16'!$A$26,Data!$D:$D,'16'!$A42,Data!$F:$F,'16'!$A$25)=0,\"-\",SUMIFS(Data!$E:$E,Data!$B:$B,'16'!C$26,Data!$C:$C,'16'!$A$26,Data!$D:$D,'16'!$A42,Data!$F:$F,'16'!$A$25))","v":75.468884984417798},{"$f":"IF(SUMIFS(Data!$E:$E,Data!$B:$B,'16'!D$26,Data!$C:$C,'16'!$A$26,Data!$D:$D,'16'!$A42,Data!$F:$F,'16'!$A$25)=0,\"-\",SUMIFS(Data!$E:$E,Data!$B:$B,'16'!D$26,Data!$C:$C,'16'!$A$26,Data!$D:$D,'16'!$A42,Data!$F:$F,'16'!$A$25))","v":85.483303027905222},{"$f":"IF(SUMIFS(Data!$E:$E,Data!$B:$B,'16'!E$26,Data!$C:$C,'16'!$A$26,Data!$D:$D,'16'!$A42,Data!$F:$F,'16'!$A$25)=0,\"-\",SUMIFS(Data!$E:$E,Data!$B:$B,'16'!E$26,Data!$C:$C,'16'!$A$26,Data!$D:$D,'16'!$A42,Data!$F:$F,'16'!$A$25))","v":80.364448798021556},{"$f":"IF(SUMIFS(Data!$E:$E,Data!$B:$B,'16'!F$26,Data!$C:$C,'16'!$A$26,Data!$D:$D,'16'!$A42,Data!$F:$F,'16'!$A$25)=0,\"-\",SUMIFS(Data!$E:$E,Data!$B:$B,'16'!F$26,Data!$C:$C,'16'!$A$26,Data!$D:$D,'16'!$A42,Data!$F:$F,'16'!$A$25))","v":80.677534128511056},{"$f":"IF(SUMIFS(Data!$E:$E,Data!$B:$B,'16'!G$26,Data!$C:$C,'16'!$A$26,Data!$D:$D,'16'!$A42,Data!$F:$F,'16'!$A$25)=0,\"-\",SUMIFS(Data!$E:$E,Data!$B:$B,'16'!G$26,Data!$C:$C,'16'!$A$26,Data!$D:$D,'16'!$A42,Data!$F:$F,'16'!$A$25))","v":83.535829254969769},{"$f":"IF(SUMIFS(Data!$E:$E,Data!$B:$B,'16'!H$26,Data!$C:$C,'16'!$A$26,Data!$D:$D,'16'!$A42,Data!$F:$F,'16'!$A$25)=0,\"-\",SUMIFS(Data!$E:$E,Data!$B:$B,'16'!H$26,Data!$C:$C,'16'!$A$26,Data!$D:$D,'16'!$A42,Data!$F:$F,'16'!$A$25))","v":84.980245121347764},{"$f":"IF(SUMIFS(Data!$E:$E,Data!$B:$B,'16'!I$26,Data!$C:$C,'16'!$A$26,Data!$D:$D,'16'!$A42,Data!$F:$F,'16'!$A$25)=0,\"-\",SUMIFS(Data!$E:$E,Data!$B:$B,'16'!I$26,Data!$C:$C,'16'!$A$26,Data!$D:$D,'16'!$A42,Data!$F:$F,'16'!$A$25))","v":84.163456285360951},{"$f":"IF(SUMIFS(Data!$E:$E,Data!$B:$B,'16'!J$26,Data!$C:$C,'16'!$A$26,Data!$D:$D,'16'!$A42,Data!$F:$F,'16'!$A$25)=0,\"-\",SUMIFS(Data!$E:$E,Data!$B:$B,'16'!J$26,Data!$C:$C,'16'!$A$26,Data!$D:$D,'16'!$A42,Data!$F:$F,'16'!$A$25))","v":84.110647039622734},{"$f":"IF(SUMIFS(Data!$E:$E,Data!$B:$B,'16'!K$26,Data!$C:$C,'16'!$A$26,Data!$D:$D,'16'!$A42,Data!$F:$F,'16'!$A$25)=0,\"-\",SUMIFS(Data!$E:$E,Data!$B:$B,'16'!K$26,Data!$C:$C,'16'!$A$26,Data!$D:$D,'16'!$A42,Data!$F:$F,'16'!$A$25))","v":80.677534128511056}]
[{"$f":"VLOOKUP(\"British Columbia\",Translation!$A$1:$C$354, Translation!A1+1, 0)","v":"Colombie-Britannique"},{"$f":"IF(SUMIFS(Data!$E:$E,Data!$B:$B,'16'!B$26,Data!$C:$C,'16'!$A$26,Data!$D:$D,'16'!$A43,Data!$F:$F,'16'!$A$25)=0,\"-\",SUMIFS(Data!$E:$E,Data!$B:$B,'16'!B$26,Data!$C:$C,'16'!$A$26,Data!$D:$D,'16'!$A43,Data!$F:$F,'16'!$A$25))","v":51.827268840211367},{"$f":"IF(SUMIFS(Data!$E:$E,Data!$B:$B,'16'!C$26,Data!$C:$C,'16'!$A$26,Data!$D:$D,'16'!$A43,Data!$F:$F,'16'!$A$25)=0,\"-\",SUMIFS(Data!$E:$E,Data!$B:$B,'16'!C$26,Data!$C:$C,'16'!$A$26,Data!$D:$D,'16'!$A43,Data!$F:$F,'16'!$A$25))","v":57.977898538489491},{"$f":"IF(SUMIFS(Data!$E:$E,Data!$B:$B,'16'!D$26,Data!$C:$C,'16'!$A$26,Data!$D:$D,'16'!$A43,Data!$F:$F,'16'!$A$25)=0,\"-\",SUMIFS(Data!$E:$E,Data!$B:$B,'16'!D$26,Data!$C:$C,'16'!$A$26,Data!$D:$D,'16'!$A43,Data!$F:$F,'16'!$A$25))","v":78.265057078566784},{"$f":"IF(SUMIFS(Data!$E:$E,Data!$B:$B,'16'!E$26,Data!$C:$C,'16'!$A$26,Data!$D:$D,'16'!$A43,Data!$F:$F,'16'!$A$25)=0,\"-\",SUMIFS(Data!$E:$E,Data!$B:$B,'16'!E$26,Data!$C:$C,'16'!$A$26,Data!$D:$D,'16'!$A43,Data!$F:$F,'16'!$A$25))","v":59.291514585530258},{"$f":"IF(SUMIFS(Data!$E:$E,Data!$B:$B,'16'!F$26,Data!$C:$C,'16'!$A$26,Data!$D:$D,'16'!$A43,Data!$F:$F,'16'!$A$25)=0,\"-\",SUMIFS(Data!$E:$E,Data!$B:$B,'16'!F$26,Data!$C:$C,'16'!$A$26,Data!$D:$D,'16'!$A43,Data!$F:$F,'16'!$A$25))","v":66.31224310964889},{"$f":"IF(SUMIFS(Data!$E:$E,Data!$B:$B,'16'!G$26,Data!$C:$C,'16'!$A$26,Data!$D:$D,'16'!$A43,Data!$F:$F,'16'!$A$25)=0,\"-\",SUMIFS(Data!$E:$E,Data!$B:$B,'16'!G$26,Data!$C:$C,'16'!$A$26,Data!$D:$D,'16'!$A43,Data!$F:$F,'16'!$A$25))","v":73.359913711003742},{"$f":"IF(SUMIFS(Data!$E:$E,Data!$B:$B,'16'!H$26,Data!$C:$C,'16'!$A$26,Data!$D:$D,'16'!$A43,Data!$F:$F,'16'!$A$25)=0,\"-\",SUMIFS(Data!$E:$E,Data!$B:$B,'16'!H$26,Data!$C:$C,'16'!$A$26,Data!$D:$D,'16'!$A43,Data!$F:$F,'16'!$A$25))","v":57.458575655831858},{"$f":"IF(SUMIFS(Data!$E:$E,Data!$B:$B,'16'!I$26,Data!$C:$C,'16'!$A$26,Data!$D:$D,'16'!$A43,Data!$F:$F,'16'!$A$25)=0,\"-\",SUMIFS(Data!$E:$E,Data!$B:$B,'16'!I$26,Data!$C:$C,'16'!$A$26,Data!$D:$D,'16'!$A43,Data!$F:$F,'16'!$A$25))","v":69.287916461952364},{"$f":"IF(SUMIFS(Data!$E:$E,Data!$B:$B,'16'!J$26,Data!$C:$C,'16'!$A$26,Data!$D:$D,'16'!$A43,Data!$F:$F,'16'!$A$25)=0,\"-\",SUMIFS(Data!$E:$E,Data!$B:$B,'16'!J$26,Data!$C:$C,'16'!$A$26,Data!$D:$D,'16'!$A43,Data!$F:$F,'16'!$A$25))","v":51.827268840211367},{"$f":"IF(SUMIFS(Data!$E:$E,Data!$B:$B,'16'!K$26,Data!$C:$C,'16'!$A$26,Data!$D:$D,'16'!$A43,Data!$F:$F,'16'!$A$25)=0,\"-\",SUMIFS(Data!$E:$E,Data!$B:$B,'16'!K$26,Data!$C:$C,'16'!$A$26,Data!$D:$D,'16'!$A43,Data!$F:$F,'16'!$A$25))","v":66.31224310964889}]
[{"$f":"VLOOKUP(\"Territories\",Translation!$A$1:$C$354, Translation!A1+1, 0)","v":"Territoires"},{"$f":"IF(SUMIFS(Data!$E:$E,Data!$B:$B,'16'!B$26,Data!$C:$C,'16'!$A$26,Data!$D:$D,'16'!$A44,Data!$F:$F,'16'!$A$25)=0,\"-\",SUMIFS(Data!$E:$E,Data!$B:$B,'16'!B$26,Data!$C:$C,'16'!$A$26,Data!$D:$D,'16'!$A44,Data!$F:$F,'16'!$A$25))","v":"-"},{"$f":"IF(SUMIFS(Data!$E:$E,Data!$B:$B,'16'!C$26,Data!$C:$C,'16'!$A$26,Data!$D:$D,'16'!$A44,Data!$F:$F,'16'!$A$25)=0,\"-\",SUMIFS(Data!$E:$E,Data!$B:$B,'16'!C$26,Data!$C:$C,'16'!$A$26,Data!$D:$D,'16'!$A44,Data!$F:$F,'16'!$A$25))","v":55.99215020168684},{"$f":"IF(SUMIFS(Data!$E:$E,Data!$B:$B,'16'!D$26,Data!$C:$C,'16'!$A$26,Data!$D:$D,'16'!$A44,Data!$F:$F,'16'!$A$25)=0,\"-\",SUMIFS(Data!$E:$E,Data!$B:$B,'16'!D$26,Data!$C:$C,'16'!$A$26,Data!$D:$D,'16'!$A44,Data!$F:$F,'16'!$A$25))","v":"-"},{"$f":"IF(SUMIFS(Data!$E:$E,Data!$B:$B,'16'!E$26,Data!$C:$C,'16'!$A$26,Data!$D:$D,'16'!$A44,Data!$F:$F,'16'!$A$25)=0,\"-\",SUMIFS(Data!$E:$E,Data!$B:$B,'16'!E$26,Data!$C:$C,'16'!$A$26,Data!$D:$D,'16'!$A44,Data!$F:$F,'16'!$A$25))","v":"-"},{"$f":"IF(SUMIFS(Data!$E:$E,Data!$B:$B,'16'!F$26,Data!$C:$C,'16'!$A$26,Data!$D:$D,'16'!$A44,Data!$F:$F,'16'!$A$25)=0,\"-\",SUMIFS(Data!$E:$E,Data!$B:$B,'16'!F$26,Data!$C:$C,'16'!$A$26,Data!$D:$D,'16'!$A44,Data!$F:$F,'16'!$A$25))","v":"-"},{"$f":"IF(SUMIFS(Data!$E:$E,Data!$B:$B,'16'!G$26,Data!$C:$C,'16'!$A$26,Data!$D:$D,'16'!$A44,Data!$F:$F,'16'!$A$25)=0,\"-\",SUMIFS(Data!$E:$E,Data!$B:$B,'16'!G$26,Data!$C:$C,'16'!$A$26,Data!$D:$D,'16'!$A44,Data!$F:$F,'16'!$A$25))","v":"-"},{"$f":"IF(SUMIFS(Data!$E:$E,Data!$B:$B,'16'!H$26,Data!$C:$C,'16'!$A$26,Data!$D:$D,'16'!$A44,Data!$F:$F,'16'!$A$25)=0,\"-\",SUMIFS(Data!$E:$E,Data!$B:$B,'16'!H$26,Data!$C:$C,'16'!$A$26,Data!$D:$D,'16'!$A44,Data!$F:$F,'16'!$A$25))","v":56.960915496333392},{"$f":"IF(SUMIFS(Data!$E:$E,Data!$B:$B,'16'!I$26,Data!$C:$C,'16'!$A$26,Data!$D:$D,'16'!$A44,Data!$F:$F,'16'!$A$25)=0,\"-\",SUMIFS(Data!$E:$E,Data!$B:$B,'16'!I$26,Data!$C:$C,'16'!$A$26,Data!$D:$D,'16'!$A44,Data!$F:$F,'16'!$A$25))","v":45.986612527141638},{"$f":"IF(SUMIFS(Data!$E:$E,Data!$B:$B,'16'!J$26,Data!$C:$C,'16'!$A$26,Data!$D:$D,'16'!$A44,Data!$F:$F,'16'!$A$25)=0,\"-\",SUMIFS(Data!$E:$E,Data!$B:$B,'16'!J$26,Data!$C:$C,'16'!$A$26,Data!$D:$D,'16'!$A44,Data!$F:$F,'16'!$A$25))","v":"-"},{"$f":"IF(SUMIFS(Data!$E:$E,Data!$B:$B,'16'!K$26,Data!$C:$C,'16'!$A$26,Data!$D:$D,'16'!$A44,Data!$F:$F,'16'!$A$25)=0,\"-\",SUMIFS(Data!$E:$E,Data!$B:$B,'16'!K$26,Data!$C:$C,'16'!$A$26,Data!$D:$D,'16'!$A44,Data!$F:$F,'16'!$A$25))","v":"-"}]
[{"$f":"VLOOKUP(\"Portfolio distributions do not include substitutions volumes for Portfolio insurance.\",Translation!$A$1:$C$354, Translation!A1+1, 0)","v":"La répartition des prêts hypothécaires pour l'assurance de portefeuille ne comprend pas les prêts de remplacement. "}]
[{"$f":"VLOOKUP(\"Distribution based on loan amounts, not number of loans.\",Translation!$A$1:$C$354, Translation!A1+1, 0)","v":"La répartition est établie d'après le montant, plutôt que le nombre de prêts assurés."}]
[{"$f":"VLOOKUP(\"The sum of all breakdown categories may not add up to 100 due to rounding.\",Translation!$A$1:$C$354, Translation!A1+1, 0)","v":"Les chiffres ayant été arrondis, il se peut que la somme de l'ensemble des catégories n'égale pas 100 %."}]

{"sheet":"17","index":18,"n_rows":49,"n_cols":11,"rows_kept":49,"cut":false,"hidden":false,"merged":[[0,5,0,10],[2,0,3,0],[26,0,27,0],[26,1,26,10],[2,1,2,10]]}
[{"$f":"VLOOKUP(\"TRANSACTIONAL HOMEOWNER AND PORTFOLIO - DWELLING TYPE\",Translation!$A$1:$C$354, Translation!A1+1, 0)","v":"PROPRIÉTAIRES-OCCUPANTS (À L’UNITÉ) ET ASSURANCE DE PORTEFEUILLE – TYPE DE LOGEMENT"},null,null,null,null,{"$f":"VLOOKUP(\"Back to Table of Contents\",Translation!$A$1:$C$354, Translation!A1+1, 0)","v":"Retour à la table des matières"}]
[{"$f":"VLOOKUP(\"Insurance-in-force by dwelling type (%)\",Translation!$A$1:$C$354, Translation!A1+1, 0)","v":"Contrats d’assurance en vigueur selon le type de logement (%)"}]
[{"$f":"VLOOKUP(\"TRANSACTIONAL HOMEOWNER\",Translation!$A$1:$C$354, Translation!A1+1, 0)","v":"PROPRIÉTAIRES-OCCUPANTS, À L’UNITÉ"},{"$f":"VLOOKUP(\"As at\",Translation!$A$1:$C$354,Translation!A1+1,0)","v":"Aux"}]
[null,{"$f":"VLOOKUP(\"Q1 2020\",Translation!$A$1:$C$354, Translation!$A1+1, 0)","v":"T1 2020"},{"$f":"VLOOKUP(\"Q4 2019\",Translation!$A$1:$C$354, Translation!$A1+1, 0)","v":"T4 2019"},{"$f":"VLOOKUP(\"Q3 2019\",Translation!$A$1:$C$354, Translation!$A1+1, 0)","v":"T3 2019"},{"$f":"VLOOKUP(\"Q2 2019\",Translation!$A$1:$C$354, Translation!$A1+1, 0)","v":"T2 2019"},{"$f":"VLOOKUP(\"Q1 2019\",Translation!$A$1:$C$354, Translation!$A1+1, 0)","v":"T1 2019"},{"$f":"VLOOKUP(\"Q4 2018\",Translation!$A$1:$C$354, Translation!A1+1, 0)","v":"T4 2018"},{"$f":"VLOOKUP(\"Q3 2018\",Translation!$A$1:$C$354, Translation!A1+1, 0)","v":"T3 2018"},{"$f":"VLOOKUP(\"Q2 2018\",Translation!$A$1:$C$354, Translation!A1+1, 0)","v":"T2 2018"},{"$f":"VLOOKUP(\"Q4 2017\",Translation!$A$1:$C$354, Translation!A1+1, 0)","v":"T4 2017"},{"$f":"VLOOKUP(\"Q3 2017\",Translation!$A$1:$C$354, Translation!A1+1, 0)","v":"T3 2017"}]
[{"$f":"VLOOKUP(\"Single\",Translation!$A$1:$C$354, Translation!A1+1, 0)","v":"Logement unifamilial"},66.618347856140048,66.729515582820099,66.849251708624607,66.894468978030105,66.954427057255657,67.043071549926324,67.073299881064074,67.114256691545691,67.360425768960283,67.377462618410789]
[{"$f":"VLOOKUP(\"Row\",Translation!$A$1:$C$354, Translation!A1+1, 0)","v":"Maison en rangée"},8.893575091181658,8.825047490753489,8.7776571984479901,8.7614257033124776,8.7478125344860764,8.6963452305549804,8.6678197701204649,8.6491915912210402,8.5693999202773856,8.5820301590653756]
[{"$f":"VLOOKUP(\"Apartment\",Translation!$A$1:$C$354, Translation!A1+1, 0)","v":"Appartement"},9.8600250285197948,9.817298378935984,9.8249436233812215,9.8818205957238554,9.8884374826444024,9.8645930038056182,9.8970082679661715,9.9167570012791479,9.9236080633205894,9.9677792816361244]
[{"$f":"VLOOKUP(\"Semi-detached\",Translation!$A$1:$C$354, Translation!A1+1, 0)","v":"Jumelé"},7.0321538835564841,7.0344358134750635,7.0172240823567336,6.9986407678120148,6.9431905559340032,6.9413657850418193,6.9191194136699679,6.9026757828029126,6.8250439103894864,6.7858587230182525]
[{"$f":"VLOOKUP(\"Plexes\",Translation!$A$1:$C$354, Translation!A1+1, 0)","v":"Plex"},4.4072073646865366,4.4089289141960117,4.3877170589555998,4.3869239056366567,4.3674334243766868,4.3620710770014881,4.3642631282780036,4.3666514251962854,4.3111966419169034,4.2931770423305808]
[{"$f":"VLOOKUP(\"Other\",Translation!$A$1:$C$354, Translation!A1+1, 0)","v":"Autre"},3.1886907757874754,3.1847738200165434,3.1432063280647871,3.0767200499564962,3.0986989455485356,3.0925533529248277,3.0784895389686375,3.0504675079196013,3.0103256950615251,2.9936921757800929]
[{"$f":"VLOOKUP(\"Single by province (%)\",Translation!$A$1:$C$354, Translation!A1+1, 0)","v":"Logements individuels selon la province (%)"}]
[{"$f":"VLOOKUP(\"Newfoundland and Labrador\",Translation!$A$1:$C$354, Translation!A1+1, 0)","v":"Terre-Neuve-et-Labrador"},86.392482826319466,86.521436125076406,86.7,86.83248749836298,86.938447102271226,87.037284067679451,87.050181993628797,87.129212027304533,87.481322532809813,87.705082036726566]
[{"$f":"VLOOKUP(\"Prince Edward Island\",Translation!$A$1:$C$354, Translation!A1+1, 0)","v":"Île-du-Prince-Édouard"},80.709080474103004,80.985918078046879,81.7,82.208007175178551,82.249995828092977,82.053848941451704,82.372956959539891,82.489634579902301,82.869634117372144,83.190495748076515]
[{"$f":"VLOOKUP(\"Nova Scotia\",Translation!$A$1:$C$354, Translation!A1+1, 0)","v":"Nouvelle-Écosse"},80.600799954683538,80.917343299015855,81,81.325393792132687,81.053418346620404,81.099396869229608,81.198736990345267,81.241609150123438,81.392933857884145,81.520768349178525]
[{"$f":"VLOOKUP(\"New Brunswick\",Translation!$A$1:$C$354, Translation!A1+1, 0)","v":"Nouveau-Brunswick"},82.863509857742841,82.940867523489032,82.9,82.949579125236951,82.993112912908913,83.011034313189157,82.932291004113722,82.866729987690675,82.89403965231223,82.897667580920213]
[{"$f":"VLOOKUP(\"Quebec\",Translation!$A$1:$C$354, Translation!A1+1, 0)","v":"Québec"},61.053920426734543,61.05062394743468,61.1,60.993539663532189,60.890098269704204,60.886726548266736,60.883200941057005,60.811901079009566,60.867659284935115,60.706411470115597]
[{"$f":"VLOOKUP(\"Ontario\",Translation!$A$1:$C$354, Translation!A1+1, 0)","v":"Ontario"},63.167452342548266,63.474302188493134,63.7,63.891739510703971,64.075325748449202,64.296010830089756,64.462823182530613,64.640666282489192,65.290042274136084,65.377360392950763]
[{"$f":"VLOOKUP(\"Manitoba\",Translation!$A$1:$C$354, Translation!A1+1, 0)","v":"Manitoba"},85.771035485938867,85.814813608618863,85.8,85.822799456993025,85.890686244800236,85.930766163595777,85.98657557888653,85.995795939361159,86.201111234124411,86.279929938071632]
[{"$f":"VLOOKUP(\"Saskatchewan\",Translation!$A$1:$C$354, Translation!A1+1, 0)","v":"Saskatchewan"},83.24096674851036,83.228843822854444,83.2,83.242233896898583,83.258621473245356,83.257312927005671,83.273588964631855,83.282867962478704,83.227413736426698,83.20055092096446]
[{"$f":"VLOOKUP(\"Alberta\",Translation!$A$1:$C$354, Translation!A1+1, 0)","v":"Alberta"},70.711995685051505,70.775350158462444,70.8,70.889994003968511,70.859584427243959,70.919406235448449,70.948704658289429,70.970781781622208,71.140271256090784,71.251044729344272]
[{"$f":"VLOOKUP(\"British Columbia\",Translation!$A$1:$C$354, Translation!A1+1, 0)","v":"Colombie-Britannique"},56.597437603698609,56.901732451779239,57,57.289907032025631,57.535208056462025,57.722525478272821,57.680511833520853,58.044320437030493,58.268623450357993,58.209151421368986]
[{"$f":"VLOOKUP(\"Territories\",Translation!$A$1:$C$354, Translation!A1+1, 0)","v":"Territoires"},55.643410314109673,55.960907061321329,56.2,56.16858704060764,56.413959294781712,56.380437777077141,56.250874887784285,56.389018034680646,56.793847587018952,57.051025398806743]
[{"$f":"VLOOKUP(\"Distribution based on outstanding loan amounts, not number of loans.\",Translation!$A$1:$C$354, Translation!A1+1, 0)","v":"La répartition est établie d'après le solde, plutôt que le nombre de prêts assurés."}]
[{"$f":"VLOOKUP(\"The sum of all breakdown categories may not add up to 100 due to rounding.\",Translation!$A$1:$C$354, Translation!A1+1, 0)","v":"Les chiffres ayant été arrondis, il se peut que la somme de l'ensemble des catégories n'égale pas 100 %."}]
[]
[{"$f":"VLOOKUP(\"Insurance-in-force by dwelling type (%)\",Translation!$A$1:$C$354, Translation!A1+1, 0)","v":"Contrats d’assurance en vigueur selon le type de logement (%)"}]
[{"$f":"VLOOKUP(\"PORTFOLIO\",Translation!$A$1:$C$354, Translation!A1+1, 0)","v":"ASSURANCE DE PORTEFEUILLE"},{"$f":"VLOOKUP(\"As at\",Translation!$A$1:$C$354,Translation!A1+1,0)","v":"Aux"}]
[null,{"$f":"VLOOKUP(\"Q1 2020\",Translation!$A$1:$C$354, Translation!$A1+1, 0)","v":"T1 2020"},{"$f":"VLOOKUP(\"Q4 2019\",Translation!$A$1:$C$354, Translation!$A1+1, 0)","v":"T4 2019"},{"$f":"VLOOKUP(\"Q3 2019\",Translation!$A$1:$C$354, Translation!$A1+1, 0)","v":"T3 2019"},{"$f":"VLOOKUP(\"Q2 2019\",Translation!$A$1:$C$354, Translation!$A1+1, 0)","v":"T2 2019"},{"$f":"VLOOKUP(\"Q1 2019\",Translation!$A$1:$C$354, Translation!$A1+1, 0)","v":"T1 2019"},{"$f":"VLOOKUP(\"Q4 2018\",Translation!$A$1:$C$354, Translation!A1+1, 0)","v":"T4 2018"},{"$f":"VLOOKUP(\"Q3 2018\",Translation!$A$1:$C$354, Translation!A1+1, 0)","v":"T3 2018"},{"$f":"VLOOKUP(\"Q2 2018\",Translation!$A$1:$C$354, Translation!A1+1, 0)","v":"T2 2018"},{"$f":"VLOOKUP(\"Q4 2017\",Translation!$A$1:$C$354, Translation!A1+1, 0)","v":"T4 2017"},{"$f":"VLOOKUP(\"Q3 2017\",Translation!$A$1:$C$354, Translation!A1+1, 0)","v":"T3 2017"}]
[{"$f":"VLOOKUP(\"Single\",Translation!$A$1:$C$354, Translation!A1+1, 0)","v":"Logement unifamilial"},77.080916545015072,77.191880093854721,77.480370970945401,77.592632858192928,77.77779762824774,77.857060557441187,77.813461552220843,77.985030021143601,78.102814769959352,78.200626258315722]
[{"$f":"VLOOKUP(\"Row\",Translation!$A$1:$C$354, Translation!A1+1, 0)","v":"Maison en rangée"},5.4808682518062994,5.2596814213852161,5.1176412641547389,5.1047260943924035,4.9694144729795209,4.9404145349508974,4.9247428401924669,4.7468540526823073,4.6879869493944826,4.6791667971860047]
[{"$f":"VLOOKUP(\"Apartment\",Translation!$A$1:$C$354, Translation!A1+1, 0)","v":"Appartement"},8.6021938172066452,8.6459689226567793,8.5083234225719178,8.457669237002289,8.3542730658718778,8.3120558080686333,8.3655190314678123,8.3189875190623024,8.2454551162585741,8.1512643355760837]
[{"$f":"VLOOKUP(\"Semi-detached\",Translation!$A$1:$C$354, Translation!A1+1, 0)","v":"Jumelé"},3.8788258521616132,3.9007346542650709,3.8825136895696852,3.8725007449067017,3.8515113030419061,3.827143522675684,3.7984528938936628,3.8084516240706781,3.7613813494329342,3.7292581683303307]
[{"$f":"VLOOKUP(\"Plexes\",Translation!$A$1:$C$354, Translation!A1+1, 0)","v":"Plex"},2.171468852089232,2.1828288225752233,2.1546119793402401,2.114144964484149,2.1217294310999888,2.1075852358540614,2.1014780627791092,2.11401033202146,2.1276821967692596,2.1394850718544816]
[{"$f":"VLOOKUP(\"Other\",Translation!$A$1:$C$354, Translation!A1+1, 0)","v":"Autre"},2.7857266817230797,2.8189060852595942,2.8565386734205589,2.8583261010231387,2.9252740987612622,2.9557403410079961,2.9963456194530633,3.0266664510188441,3.0746796181794123,3.1001993687357974]
[{"$f":"VLOOKUP(\"Single by province (%)\",Translation!$A$1:$C$354, Translation!A1+1, 0)","v":"Logements individuels selon la province (%)"}]
[{"$f":"VLOOKUP(\"Newfoundland and Labrador\",Translation!$A$1:$C$354, Translation!A1+1, 0)","v":"Terre-Neuve-et-Labrador"},92.935040065630375,92.93717913172371,93,93.089638966397175,93.103298178415386,93.128935487910624,93.200885583513539,93.255617758394237,93.41301141183456,93.360082044912048]
[{"$f":"VLOOKUP(\"Prince Edward Island\",Translation!$A$1:$C$354, Translation!A1+1, 0)","v":"Île-du-Prince-Édouard"},92.393958299623506,92.396056842169386,92.7,92.758666598094692,92.816591072872725,92.756100437563532,92.762420305083509,92.858573238069226,93.023563121515281,92.946904879368972]
[{"$f":"VLOOKUP(\"Nova Scotia\",Translation!$A$1:$C$354, Translation!A1+1, 0)","v":"Nouvelle-Écosse"},89.617884720399516,89.496496532530884,89.6,89.550989939507446,89.583147931890664,89.664578509869614,89.585490826075869,89.653736636255729,89.694895113724471,89.720288271888222]
[{"$f":"VLOOKUP(\"New Brunswick\",Translation!$A$1:$C$354, Translation!A1+1, 0)","v":"Nouveau-Brunswick"},93.605152289753121,93.691365658239107,93.7,93.72497426181647,93.828612372886298,93.83988209134175,93.846370879524102,93.87427536217524,93.892024783510109,93.809054313763681]
[{"$f":"VLOOKUP(\"Quebec\",Translation!$A$1:$C$354, Translation!A1+1, 0)","v":"Québec"},71.608233299246905,71.610904524521658,72.2,72.410730609383549,72.763343470960564,72.8407346781418,72.89653858561185,72.750944301556842,72.907412100930827,73.005539788241819]
[{"$f":"VLOOKUP(\"Ontario\",Translation!$A$1:$C$354, Translation!A1+1, 0)","v":"Ontario"},76.973601003401242,77.082892908310313,77.3,77.422498807886768,77.609460907920692,77.704363540550318,77.750521504811104,77.93335964813852,78.06975919705134,78.155993509873284]
[{"$f":"VLOOKUP(\"Manitoba\",Translation!$A$1:$C$354, Translation!A1+1, 0)","v":"Manitoba"},91.687490481141467,91.818576563369319,91.9,92.031379794722298,92.013815030003073,92.092882556528622,92.185254043365219,92.236709910122528,92.395905345379077,92.485722512942274]
[{"$f":"VLOOKUP(\"Saskatchewan\",Translation!$A$1:$C$354, Translation!A1+1, 0)","v":"Saskatchewan"},89.07100643922054,89.095206624330999,89.3,89.38921066504038,89.358869331449853,89.424483109211238,89.456390912845805,89.597981590880337,89.782849266817166,89.669614344592148]
[{"$f":"VLOOKUP(\"Alberta\",Translation!$A$1:$C$354, Translation!A1+1, 0)","v":"Alberta"},81.744450526738859,81.8198070085528,82.1,82.226575743542881,82.341633863699272,82.459300746974279,82.539609136393338,82.616881347150141,82.923945624891857,83.118597596489877]
[{"$f":"VLOOKUP(\"British Columbia\",Translation!$A$1:$C$354, Translation!A1+1, 0)","v":"Colombie-Britannique"},71.437134405061698,71.695650447259993,71.900000000000006,72.0247835639085,72.245177144401296,72.286854244733192,71.821276451599985,72.346208643618468,72.393472254571435,72.554197909698402]
[{"$f":"VLOOKUP(\"Territories\",Translation!$A$1:$C$354, Translation!A1+1, 0)","v":"Territoires"},82.417246240882164,82.630254153975557,85.3,85.511056141061388,85.02039193258905,85.105054992609908,85.401161808905073,85.140116394309473,85.02795226998866,85.967411427670285]
[{"$f":"VLOOKUP(\"Distribution based on outstanding loan amounts, not number of loans.\",Translation!$A$1:$C$354, Translation!A1+1, 0)","v":"La répartition est établie d'après le solde, plutôt que le nombre de prêts assurés."}]
[{"$f":"VLOOKUP(\"The sum of all breakdown categories may not add up to 100 due to rounding.\",Translation!$A$1:$C$354, Translation!A1+1, 0)","v":"Les chiffres ayant été arrondis, il se peut que la somme de l'ensemble des catégories n'égale pas 100 %."}]
[{"$f":"VLOOKUP(\"Portfolio-insured Line of Credit loans with zero ($0.00) balance were included in the number of loans in force starting from Q2 2018.\",Translation!$A$1:$C$354, Translation!A1+1, 0)","v":"Les prêts liés à une marge de crédit couverts par une assurance de portefeuille ayant un solde nul (0,00 $) sont inclus dans le nombre des prêts en cours depuis le deuxième trimestre de 2018."}]

{"sheet":"18","index":19,"n_rows":39,"n_cols":11,"rows_kept":39,"cut":false,"hidden":false,"merged":[[0,6,0,10]]}
[{"$f":"VLOOKUP(\"TRANSACTIONAL HOMEOWNER AND PORTFOLIO - URBAN/RURAL\",Translation!$A$1:$C$354, Translation!A1+1, 0)","v":"PROPRIÉTAIRES-OCCUPANTS (À L’UNITÉ) ET ASSURANCE DE PORTEFEUILLE - URBAIN/RURAL"},null,null,null,null,null,{"$f":"VLOOKUP(\"Back to Table of Contents\",Translation!$A$1:$C$354, Translation!A1+1, 0)","v":"Retour à la table des matières"}]
[{"$f":"VLOOKUP(\"Loans insured in period by urban and rural type (%)\",Translation!$A$1:$C$354, Translation!A1+1, 0)","v":"Prêts hypothécaires assurés au cours de la période selon le milieu urbain/rural (%)"}]
[{"$f":"VLOOKUP(\"TRANSACTIONAL HOMEOWNER\",Translation!$A$1:$C$354, Translation!A1+1, 0)","v":"PROPRIÉTAIRES-OCCUPANTS, À L’UNITÉ"},{"$f":"VLOOKUP(\"Q1 2020\",Translation!$A$1:$C$354, Translation!$A$1+1, 0)","v":"T1 2020"},{"$f":"VLOOKUP(\"Q4 2019\",Translation!$A$1:$C$354, Translation!$A$1+1, 0)","v":"T4 2019"},{"$f":"VLOOKUP(\"Q3 2019\",Translation!$A$1:$C$354, Translation!$A$1+1, 0)","v":"T3 2019"},{"$f":"VLOOKUP(\"Q2 2019\",Translation!$A$1:$C$354, Translation!$A$1+1, 0)","v":"T2 2019"},{"$f":"VLOOKUP(\"Q1 2019\",Translation!$A$1:$C$354, Translation!$A$1+1, 0)","v":"T1 2019"},{"$f":"VLOOKUP(\"Q4 2018\",Translation!$A$1:$C$354, Translation!$A$1+1, 0)","v":"T4 2018"},{"$f":"VLOOKUP(\"Q3 2018\",Translation!$A$1:$C$354, Translation!$A$1+1, 0)","v":"T3 2018"},{"$f":"VLOOKUP(\"Q2 2018\",Translation!$A$1:$C$354, Translation!$A$1+1, 0)","v":"T2 2018"},{"$f":"VLOOKUP(\"YTD 2020\",Translation!$A$1:$C$354, Translation!$A$1+1, 0)","v":"Cumul 2020"},{"$f":"VLOOKUP(\"YTD 2019\",Translation!$A$1:$C$354, Translation!$A$1+1, 0)","v":"Cumul 2019"}]
[{"$f":"VLOOKUP(\"Urban\",Translation!$A$1:$C$354, Translation!A1+1, 0)","v":"Urbain"},{"$f":"SUMIFS(Data!$E:$E,Data!$B:$B,'18'!B$3,Data!$C:$C,'18'!$A$3,Data!$D:$D,'18'!$A4,Data!$F:$F,'18'!$A$2)","v":86.986620515210021},{"$f":"SUMIFS(Data!$E:$E,Data!$B:$B,'18'!C$3,Data!$C:$C,'18'!$A$3,Data!$D:$D,'18'!$A4,Data!$F:$F,'18'!$A$2)","v":85.540865384615373},{"$f":"SUMIFS(Data!$E:$E,Data!$B:$B,'18'!D$3,Data!$C:$C,'18'!$A$3,Data!$D:$D,'18'!$A4,Data!$F:$F,'18'!$A$2)","v":85.649725135745854},{"$f":"SUMIFS(Data!$E:$E,Data!$B:$B,'18'!E$3,Data!$C:$C,'18'!$A$3,Data!$D:$D,'18'!$A4,Data!$F:$F,'18'!$A$2)","v":85.918054757802011},{"$f":"SUMIFS(Data!$E:$E,Data!$B:$B,'18'!F$3,Data!$C:$C,'18'!$A$3,Data!$D:$D,'18'!$A4,Data!$F:$F,'18'!$A$2)","v":87.022241416540723},{"$f":"SUMIFS(Data!$E:$E,Data!$B:$B,'18'!G$3,Data!$C:$C,'18'!$A$3,Data!$D:$D,'18'!$A4,Data!$F:$F,'18'!$A$2)","v":85.013351134846431},{"$f":"SUMIFS(Data!$E:$E,Data!$B:$B,'18'!H$3,Data!$C:$C,'18'!$A$3,Data!$D:$D,'18'!$A4,Data!$F:$F,'18'!$A$2)","v":85.737721053840346},{"$f":"SUMIFS(Data!$E:$E,Data!$B:$B,'18'!I$3,Data!$C:$C,'18'!$A$3,Data!$D:$D,'18'!$A4,Data!$F:$F,'18'!$A$2)","v":86.257618377871523},{"$f":"SUMIFS(Data!$E:$E,Data!$B:$B,'18'!J$3,Data!$C:$C,'18'!$A$3,Data!$D:$D,'18'!$A4,Data!$F:$F,'18'!$A$2)","v":86.986620515210021},{"$f":"SUMIFS(Data!$E:$E,Data!$B:$B,'18'!K$3,Data!$C:$C,'18'!$A$3,Data!$D:$D,'18'!$A4,Data!$F:$F,'18'!$A$2)","v":87.022241416540723}]
[{"$f":"VLOOKUP(\"Rural\",Translation!$A$1:$C$354, Translation!A1+1, 0)","v":"Rural"},{"$f":"SUMIFS(Data!$E:$E,Data!$B:$B,'18'!B$3,Data!$C:$C,'18'!$A$3,Data!$D:$D,'18'!$A5,Data!$F:$F,'18'!$A$2)","v":13.013379484789985},{"$f":"SUMIFS(Data!$E:$E,Data!$B:$B,'18'!C$3,Data!$C:$C,'18'!$A$3,Data!$D:$D,'18'!$A5,Data!$F:$F,'18'!$A$2)","v":14.45913461538462},{"$f":"SUMIFS(Data!$E:$E,Data!$B:$B,'18'!D$3,Data!$C:$C,'18'!$A$3,Data!$D:$D,'18'!$A5,Data!$F:$F,'18'!$A$2)","v":14.350274864254152},{"$f":"SUMIFS(Data!$E:$E,Data!$B:$B,'18'!E$3,Data!$C:$C,'18'!$A$3,Data!$D:$D,'18'!$A5,Data!$F:$F,'18'!$A$2)","v":14.081945242197971},{"$f":"SUMIFS(Data!$E:$E,Data!$B:$B,'18'!F$3,Data!$C:$C,'18'!$A$3,Data!$D:$D,'18'!$A5,Data!$F:$F,'18'!$A$2)","v":12.977758583459297},{"$f":"SUMIFS(Data!$E:$E,Data!$B:$B,'18'!G$3,Data!$C:$C,'18'!$A$3,Data!$D:$D,'18'!$A5,Data!$F:$F,'18'!$A$2)","v":14.986648865153541},{"$f":"SUMIFS(Data!$E:$E,Data!$B:$B,'18'!H$3,Data!$C:$C,'18'!$A$3,Data!$D:$D,'18'!$A5,Data!$F:$F,'18'!$A$2)","v":14.26227894615965},{"$f":"SUMIFS(Data!$E:$E,Data!$B:$B,'18'!I$3,Data!$C:$C,'18'!$A$3,Data!$D:$D,'18'!$A5,Data!$F:$F,'18'!$A$2)","v":13.742381622128455},{"$f":"SUMIFS(Data!$E:$E,Data!$B:$B,'18'!J$3,Data!$C:$C,'18'!$A$3,Data!$D:$D,'18'!$A5,Data!$F:$F,'18'!$A$2)","v":13.013379484789985},{"$f":"SUMIFS(Data!$E:$E,Data!$B:$B,'18'!K$3,Data!$C:$C,'18'!$A$3,Data!$D:$D,'18'!$A5,Data!$F:$F,'18'!$A$2)","v":12.977758583459297}]
[{"$f":"VLOOKUP(\"Urban properties by province (%)\",Translation!$A$1:$C$354, Translation!A1+1, 0)","v":"Propriétés urbaines selon la province (%)"}]
[{"$f":"VLOOKUP(\"Newfoundland and Labrador\",Translation!$A$1:$C$354, Translation!A1+1, 0)","v":"Terre-Neuve-et-Labrador"},{"$f":"IF(SUMIFS(Data!$E:$E,Data!$B:$B,'18'!B$3,Data!$C:$C,'18'!$A$3,Data!$D:$D,'18'!$A7,Data!$F:$F,'18'!$A$2)=0,\"-\",SUMIFS(Data!$E:$E,Data!$B:$B,'18'!B$3,Data!$C:$C,'18'!$A$3,Data!$D:$D,'18'!$A7,Data!$F:$F,'18'!$A$2))","v":77.401129943502809},{"$f":"IF(SUMIFS(Data!$E:$E,Data!$B:$B,'18'!C$3,Data!$C:$C,'18'!$A$3,Data!$D:$D,'18'!$A7,Data!$F:$F,'18'!$A$2)=0,\"-\",SUMIFS(Data!$E:$E,Data!$B:$B,'18'!C$3,Data!$C:$C,'18'!$A$3,Data!$D:$D,'18'!$A7,Data!$F:$F,'18'!$A$2))","v":68.827930174563605},{"$f":"IF(SUMIFS(Data!$E:$E,Data!$B:$B,'18'!D$3,Data!$C:$C,'18'!$A$3,Data!$D:$D,'18'!$A7,Data!$F:$F,'18'!$A$2)=0,\"-\",SUMIFS(Data!$E:$E,Data!$B:$B,'18'!D$3,Data!$C:$C,'18'!$A$3,Data!$D:$D,'18'!$A7,Data!$F:$F,'18'!$A$2))","v":68.86792452830187},{"$f":"IF(SUMIFS(Data!$E:$E,Data!$B:$B,'18'!E$3,Data!$C:$C,'18'!$A$3,Data!$D:$D,'18'!$A7,Data!$F:$F,'18'!$A$2)=0,\"-\",SUMIFS(Data!$E:$E,Data!$B:$B,'18'!E$3,Data!$C:$C,'18'!$A$3,Data!$D:$D,'18'!$A7,Data!$F:$F,'18'!$A$2))","v":76.507936507936492},{"$f":"IF(SUMIFS(Data!$E:$E,Data!$B:$B,'18'!F$3,Data!$C:$C,'18'!$A$3,Data!$D:$D,'18'!$A7,Data!$F:$F,'18'!$A$2)=0,\"-\",SUMIFS(Data!$E:$E,Data!$B:$B,'18'!F$3,Data!$C:$C,'18'!$A$3,Data!$D:$D,'18'!$A7,Data!$F:$F,'18'!$A$2))","v":77.209302325581376},{"$f":"IF(SUMIFS(Data!$E:$E,Data!$B:$B,'18'!G$3,Data!$C:$C,'18'!$A$3,Data!$D:$D,'18'!$A7,Data!$F:$F,'18'!$A$2)=0,\"-\",SUMIFS(Data!$E:$E,Data!$B:$B,'18'!G$3,Data!$C:$C,'18'!$A$3,Data!$D:$D,'18'!$A7,Data!$F:$F,'18'!$A$2))","v":69.473684210526315},{"$f":"IF(SUMIFS(Data!$E:$E,Data!$B:$B,'18'!H$3,Data!$C:$C,'18'!$A$3,Data!$D:$D,'18'!$A7,Data!$F:$F,'18'!$A$2)=0,\"-\",SUMIFS(Data!$E:$E,Data!$B:$B,'18'!H$3,Data!$C:$C,'18'!$A$3,Data!$D:$D,'18'!$A7,Data!$F:$F,'18'!$A$2))","v":72.93868921775902},{"$f":"IF(SUMIFS(Data!$E:$E,Data!$B:$B,'18'!I$3,Data!$C:$C,'18'!$A$3,Data!$D:$D,'18'!$A7,Data!$F:$F,'18'!$A$2)=0,\"-\",SUMIFS(Data!$E:$E,Data!$B:$B,'18'!I$3,Data!$C:$C,'18'!$A$3,Data!$D:$D,'18'!$A7,Data!$F:$F,'18'!$A$2))","v":76.626506024096386},{"$f":"IF(SUMIFS(Data!$E:$E,Data!$B:$B,'18'!J$3,Data!$C:$C,'18'!$A$3,Data!$D:$D,'18'!$A7,Data!$F:$F,'18'!$A$2)=0,\"-\",SUMIFS(Data!$E:$E,Data!$B:$B,'18'!J$3,Data!$C:$C,'18'!$A$3,Data!$D:$D,'18'!$A7,Data!$F:$F,'18'!$A$2))","v":77.401129943502809},{"$f":"IF(SUMIFS(Data!$E:$E,Data!$B:$B,'18'!K$3,Data!$C:$C,'18'!$A$3,Data!$D:$D,'18'!$A7,Data!$F:$F,'18'!$A$2)=0,\"-\",SUMIFS(Data!$E:$E,Data!$B:$B,'18'!K$3,Data!$C:$C,'18'!$A$3,Data!$D:$D,'18'!$A7,Data!$F:$F,'18'!$A$2))","v":77.209302325581376}]
[{"$f":"VLOOKUP(\"Prince Edward Island\",Translation!$A$1:$C$354, Translation!A1+1, 0)","v":"Île-du-Prince-Édouard"},{"$f":"IF(SUMIFS(Data!$E:$E,Data!$B:$B,'18'!B$3,Data!$C:$C,'18'!$A$3,Data!$D:$D,'18'!$A8,Data!$F:$F,'18'!$A$2)=0,\"-\",SUMIFS(Data!$E:$E,Data!$B:$B,'18'!B$3,Data!$C:$C,'18'!$A$3,Data!$D:$D,'18'!$A8,Data!$F:$F,'18'!$A$2))","v":70},{"$f":"IF(SUMIFS(Data!$E:$E,Data!$B:$B,'18'!C$3,Data!$C:$C,'18'!$A$3,Data!$D:$D,'18'!$A8,Data!$F:$F,'18'!$A$2)=0,\"-\",SUMIFS(Data!$E:$E,Data!$B:$B,'18'!C$3,Data!$C:$C,'18'!$A$3,Data!$D:$D,'18'!$A8,Data!$F:$F,'18'!$A$2))","v":69.411764705882348},{"$f":"IF(SUMIFS(Data!$E:$E,Data!$B:$B,'18'!D$3,Data!$C:$C,'18'!$A$3,Data!$D:$D,'18'!$A8,Data!$F:$F,'18'!$A$2)=0,\"-\",SUMIFS(Data!$E:$E,Data!$B:$B,'18'!D$3,Data!$C:$C,'18'!$A$3,Data!$D:$D,'18'!$A8,Data!$F:$F,'18'!$A$2))","v":69.94818652849743},{"$f":"IF(SUMIFS(Data!$E:$E,Data!$B:$B,'18'!E$3,Data!$C:$C,'18'!$A$3,Data!$D:$D,'18'!$A8,Data!$F:$F,'18'!$A$2)=0,\"-\",SUMIFS(Data!$E:$E,Data!$B:$B,'18'!E$3,Data!$C:$C,'18'!$A$3,Data!$D:$D,'18'!$A8,Data!$F:$F,'18'!$A$2))","v":63.870967741935466},{"$f":"IF(SUMIFS(Data!$E:$E,Data!$B:$B,'18'!F$3,Data!$C:$C,'18'!$A$3,Data!$D:$D,'18'!$A8,Data!$F:$F,'18'!$A$2)=0,\"-\",SUMIFS(Data!$E:$E,Data!$B:$B,'18'!F$3,Data!$C:$C,'18'!$A$3,Data!$D:$D,'18'!$A8,Data!$F:$F,'18'!$A$2))","v":60.294117647058819},{"$f":"IF(SUMIFS(Data!$E:$E,Data!$B:$B,'18'!G$3,Data!$C:$C,'18'!$A$3,Data!$D:$D,'18'!$A8,Data!$F:$F,'18'!$A$2)=0,\"-\",SUMIFS(Data!$E:$E,Data!$B:$B,'18'!G$3,Data!$C:$C,'18'!$A$3,Data!$D:$D,'18'!$A8,Data!$F:$F,'18'!$A$2))","v":75.581395348837205},{"$f":"IF(SUMIFS(Data!$E:$E,Data!$B:$B,'18'!H$3,Data!$C:$C,'18'!$A$3,Data!$D:$D,'18'!$A8,Data!$F:$F,'18'!$A$2)=0,\"-\",SUMIFS(Data!$E:$E,Data!$B:$B,'18'!H$3,Data!$C:$C,'18'!$A$3,Data!$D:$D,'18'!$A8,Data!$F:$F,'18'!$A$2))","v":72.195121951219505},{"$f":"IF(SUMIFS(Data!$E:$E,Data!$B:$B,'18'!I$3,Data!$C:$C,'18'!$A$3,Data!$D:$D,'18'!$A8,Data!$F:$F,'18'!$A$2)=0,\"-\",SUMIFS(Data!$E:$E,Data!$B:$B,'18'!I$3,Data!$C:$C,'18'!$A$3,Data!$D:$D,'18'!$A8,Data!$F:$F,'18'!$A$2))","v":79.8611111111111},{"$f":"IF(SUMIFS(Data!$E:$E,Data!$B:$B,'18'!J$3,Data!$C:$C,'18'!$A$3,Data!$D:$D,'18'!$A8,Data!$F:$F,'18'!$A$2)=0,\"-\",SUMIFS(Data!$E:$E,Data!$B:$B,'18'!J$3,Data!$C:$C,'18'!$A$3,Data!$D:$D,'18'!$A8,Data!$F:$F,'18'!$A$2))","v":70},{"$f":"IF(SUMIFS(Data!$E:$E,Data!$B:$B,'18'!K$3,Data!$C:$C,'18'!$A$3,Data!$D:$D,'18'!$A8,Data!$F:$F,'18'!$A$2)=0,\"-\",SUMIFS(Data!$E:$E,Data!$B:$B,'18'!K$3,Data!$C:$C,'18'!$A$3,Data!$D:$D,'18'!$A8,Data!$F:$F,'18'!$A$2))","v":60.294117647058819}]
[{"$f":"VLOOKUP(\"Nova Scotia\",Translation!$A$1:$C$354, Translation!A1+1, 0)","v":"Nouvelle-Écosse"},{"$f":"IF(SUMIFS(Data!$E:$E,Data!$B:$B,'18'!B$3,Data!$C:$C,'18'!$A$3,Data!$D:$D,'18'!$A9,Data!$F:$F,'18'!$A$2)=0,\"-\",SUMIFS(Data!$E:$E,Data!$B:$B,'18'!B$3,Data!$C:$C,'18'!$A$3,Data!$D:$D,'18'!$A9,Data!$F:$F,'18'!$A$2))","v":87.193973634651613},{"$f":"IF(SUMIFS(Data!$E:$E,Data!$B:$B,'18'!C$3,Data!$C:$C,'18'!$A$3,Data!$D:$D,'18'!$A9,Data!$F:$F,'18'!$A$2)=0,\"-\",SUMIFS(Data!$E:$E,Data!$B:$B,'18'!C$3,Data!$C:$C,'18'!$A$3,Data!$D:$D,'18'!$A9,Data!$F:$F,'18'!$A$2))","v":84.858387799564284},{"$f":"IF(SUMIFS(Data!$E:$E,Data!$B:$B,'18'!D$3,Data!$C:$C,'18'!$A$3,Data!$D:$D,'18'!$A9,Data!$F:$F,'18'!$A$2)=0,\"-\",SUMIFS(Data!$E:$E,Data!$B:$B,'18'!D$3,Data!$C:$C,'18'!$A$3,Data!$D:$D,'18'!$A9,Data!$F:$F,'18'!$A$2))","v":86.04471858134157},{"$f":"IF(SUMIFS(Data!$E:$E,Data!$B:$B,'18'!E$3,Data!$C:$C,'18'!$A$3,Data!$D:$D,'18'!$A9,Data!$F:$F,'18'!$A$2)=0,\"-\",SUMIFS(Data!$E:$E,Data!$B:$B,'18'!E$3,Data!$C:$C,'18'!$A$3,Data!$D:$D,'18'!$A9,Data!$F:$F,'18'!$A$2))","v":84.385382059800634},{"$f":"IF(SUMIFS(Data!$E:$E,Data!$B:$B,'18'!F$3,Data!$C:$C,'18'!$A$3,Data!$D:$D,'18'!$A9,Data!$F:$F,'18'!$A$2)=0,\"-\",SUMIFS(Data!$E:$E,Data!$B:$B,'18'!F$3,Data!$C:$C,'18'!$A$3,Data!$D:$D,'18'!$A9,Data!$F:$F,'18'!$A$2))","v":83.300970873786426},{"$f":"IF(SUMIFS(Data!$E:$E,Data!$B:$B,'18'!G$3,Data!$C:$C,'18'!$A$3,Data!$D:$D,'18'!$A9,Data!$F:$F,'18'!$A$2)=0,\"-\",SUMIFS(Data!$E:$E,Data!$B:$B,'18'!G$3,Data!$C:$C,'18'!$A$3,Data!$D:$D,'18'!$A9,Data!$F:$F,'18'!$A$2))","v":82.638105975197263},{"$f":"IF(SUMIFS(Data!$E:$E,Data!$B:$B,'18'!H$3,Data!$C:$C,'18'!$A$3,Data!$D:$D,'18'!$A9,Data!$F:$F,'18'!$A$2)=0,\"-\",SUMIFS(Data!$E:$E,Data!$B:$B,'18'!H$3,Data!$C:$C,'18'!$A$3,Data!$D:$D,'18'!$A9,Data!$F:$F,'18'!$A$2))","v":86.21987951807229},{"$f":"IF(SUMIFS(Data!$E:$E,Data!$B:$B,'18'!I$3,Data!$C:$C,'18'!$A$3,Data!$D:$D,'18'!$A9,Data!$F:$F,'18'!$A$2)=0,\"-\",SUMIFS(Data!$E:$E,Data!$B:$B,'18'!I$3,Data!$C:$C,'18'!$A$3,Data!$D:$D,'18'!$A9,Data!$F:$F,'18'!$A$2))","v":84.353059177532572},{"$f":"IF(SUMIFS(Data!$E:$E,Data!$B:$B,'18'!J$3,Data!$C:$C,'18'!$A$3,Data!$D:$D,'18'!$A9,Data!$F:$F,'18'!$A$2)=0,\"-\",SUMIFS(Data!$E:$E,Data!$B:$B,'18'!J$3,Data!$C:$C,'18'!$A$3,Data!$D:$D,'18'!$A9,Data!$F:$F,'18'!$A$2))","v":87.193973634651613},{"$f":"IF(SUMIFS(Data!$E:$E,Data!$B:$B,'18'!K$3,Data!$C:$C,'18'!$A$3,Data!$D:$D,'18'!$A9,Data!$F:$F,'18'!$A$2)=0,\"-\",SUMIFS(Data!$E:$E,Data!$B:$B,'18'!K$3,Data!$C:$C,'18'!$A$3,Data!$D:$D,'18'!$A9,Data!$F:$F,'18'!$A$2))","v":83.300970873786426}]
[{"$f":"VLOOKUP(\"New Brunswick\",Translation!$A$1:$C$354, Translation!A1+1, 0)","v":"Nouveau-Brunswick"},{"$f":"IF(SUMIFS(Data!$E:$E,Data!$B:$B,'18'!B$3,Data!$C:$C,'18'!$A$3,Data!$D:$D,'18'!$A10,Data!$F:$F,'18'!$A$2)=0,\"-\",SUMIFS(Data!$E:$E,Data!$B:$B,'18'!B$3,Data!$C:$C,'18'!$A$3,Data!$D:$D,'18'!$A10,Data!$F:$F,'18'!$A$2))","v":71.143375680580746},{"$f":"IF(SUMIFS(Data!$E:$E,Data!$B:$B,'18'!C$3,Data!$C:$C,'18'!$A$3,Data!$D:$D,'18'!$A10,Data!$F:$F,'18'!$A$2)=0,\"-\",SUMIFS(Data!$E:$E,Data!$B:$B,'18'!C$3,Data!$C:$C,'18'!$A$3,Data!$D:$D,'18'!$A10,Data!$F:$F,'18'!$A$2))","v":70.792079207920793},{"$f":"IF(SUMIFS(Data!$E:$E,Data!$B:$B,'18'!D$3,Data!$C:$C,'18'!$A$3,Data!$D:$D,'18'!$A10,Data!$F:$F,'18'!$A$2)=0,\"-\",SUMIFS(Data!$E:$E,Data!$B:$B,'18'!D$3,Data!$C:$C,'18'!$A$3,Data!$D:$D,'18'!$A10,Data!$F:$F,'18'!$A$2))","v":76.106194690265482},{"$f":"IF(SUMIFS(Data!$E:$E,Data!$B:$B,'18'!E$3,Data!$C:$C,'18'!$A$3,Data!$D:$D,'18'!$A10,Data!$F:$F,'18'!$A$2)=0,\"-\",SUMIFS(Data!$E:$E,Data!$B:$B,'18'!E$3,Data!$C:$C,'18'!$A$3,Data!$D:$D,'18'!$A10,Data!$F:$F,'18'!$A$2))","v":74.589371980676347},{"$f":"IF(SUMIFS(Data!$E:$E,Data!$B:$B,'18'!F$3,Data!$C:$C,'18'!$A$3,Data!$D:$D,'18'!$A10,Data!$F:$F,'18'!$A$2)=0,\"-\",SUMIFS(Data!$E:$E,Data!$B:$B,'18'!F$3,Data!$C:$C,'18'!$A$3,Data!$D:$D,'18'!$A10,Data!$F:$F,'18'!$A$2))","v":77.736549165120607},{"$f":"IF(SUMIFS(Data!$E:$E,Data!$B:$B,'18'!G$3,Data!$C:$C,'18'!$A$3,Data!$D:$D,'18'!$A10,Data!$F:$F,'18'!$A$2)=0,\"-\",SUMIFS(Data!$E:$E,Data!$B:$B,'18'!G$3,Data!$C:$C,'18'!$A$3,Data!$D:$D,'18'!$A10,Data!$F:$F,'18'!$A$2))","v":70.087124878993194},{"$f":"IF(SUMIFS(Data!$E:$E,Data!$B:$B,'18'!H$3,Data!$C:$C,'18'!$A$3,Data!$D:$D,'18'!$A10,Data!$F:$F,'18'!$A$2)=0,\"-\",SUMIFS(Data!$E:$E,Data!$B:$B,'18'!H$3,Data!$C:$C,'18'!$A$3,Data!$D:$D,'18'!$A10,Data!$F:$F,'18'!$A$2))","v":72.109943411479378},{"$f":"IF(SUMIFS(Data!$E:$E,Data!$B:$B,'18'!I$3,Data!$C:$C,'18'!$A$3,Data!$D:$D,'18'!$A10,Data!$F:$F,'18'!$A$2)=0,\"-\",SUMIFS(Data!$E:$E,Data!$B:$B,'18'!I$3,Data!$C:$C,'18'!$A$3,Data!$D:$D,'18'!$A10,Data!$F:$F,'18'!$A$2))","v":73.364485981308405},{"$f":"IF(SUMIFS(Data!$E:$E,Data!$B:$B,'18'!J$3,Data!$C:$C,'18'!$A$3,Data!$D:$D,'18'!$A10,Data!$F:$F,'18'!$A$2)=0,\"-\",SUMIFS(Data!$E:$E,Data!$B:$B,'18'!J$3,Data!$C:$C,'18'!$A$3,Data!$D:$D,'18'!$A10,Data!$F:$F,'18'!$A$2))","v":71.143375680580746},{"$f":"IF(SUMIFS(Data!$E:$E,Data!$B:$B,'18'!K$3,Data!$C:$C,'18'!$A$3,Data!$D:$D,'18'!$A10,Data!$F:$F,'18'!$A$2)=0,\"-\",SUMIFS(Data!$E:$E,Data!$B:$B,'18'!K$3,Data!$C:$C,'18'!$A$3,Data!$D:$D,'18'!$A10,Data!$F:$F,'18'!$A$2))","v":77.736549165120607}]
[{"$f":"VLOOKUP(\"Quebec\",Translation!$A$1:$C$354, Translation!A1+1, 0)","v":"Québec"},{"$f":"IF(SUMIFS(Data!$E:$E,Data!$B:$B,'18'!B$3,Data!$C:$C,'18'!$A$3,Data!$D:$D,'18'!$A11,Data!$F:$F,'18'!$A$2)=0,\"-\",SUMIFS(Data!$E:$E,Data!$B:$B,'18'!B$3,Data!$C:$C,'18'!$A$3,Data!$D:$D,'18'!$A11,Data!$F:$F,'18'!$A$2))","v":84.639443961772358},{"$f":"IF(SUMIFS(Data!$E:$E,Data!$B:$B,'18'!C$3,Data!$C:$C,'18'!$A$3,Data!$D:$D,'18'!$A11,Data!$F:$F,'18'!$A$2)=0,\"-\",SUMIFS(Data!$E:$E,Data!$B:$B,'18'!C$3,Data!$C:$C,'18'!$A$3,Data!$D:$D,'18'!$A11,Data!$F:$F,'18'!$A$2))","v":82.91422666207373},{"$f":"IF(SUMIFS(Data!$E:$E,Data!$B:$B,'18'!D$3,Data!$C:$C,'18'!$A$3,Data!$D:$D,'18'!$A11,Data!$F:$F,'18'!$A$2)=0,\"-\",SUMIFS(Data!$E:$E,Data!$B:$B,'18'!D$3,Data!$C:$C,'18'!$A$3,Data!$D:$D,'18'!$A11,Data!$F:$F,'18'!$A$2))","v":81.796116504854353},{"$f":"IF(SUMIFS(Data!$E:$E,Data!$B:$B,'18'!E$3,Data!$C:$C,'18'!$A$3,Data!$D:$D,'18'!$A11,Data!$F:$F,'18'!$A$2)=0,\"-\",SUMIFS(Data!$E:$E,Data!$B:$B,'18'!E$3,Data!$C:$C,'18'!$A$3,Data!$D:$D,'18'!$A11,Data!$F:$F,'18'!$A$2))","v":85.06039021368845},{"$f":"IF(SUMIFS(Data!$E:$E,Data!$B:$B,'18'!F$3,Data!$C:$C,'18'!$A$3,Data!$D:$D,'18'!$A11,Data!$F:$F,'18'!$A$2)=0,\"-\",SUMIFS(Data!$E:$E,Data!$B:$B,'18'!F$3,Data!$C:$C,'18'!$A$3,Data!$D:$D,'18'!$A11,Data!$F:$F,'18'!$A$2))","v":83.270989193682482},{"$f":"IF(SUMIFS(Data!$E:$E,Data!$B:$B,'18'!G$3,Data!$C:$C,'18'!$A$3,Data!$D:$D,'18'!$A11,Data!$F:$F,'18'!$A$2)=0,\"-\",SUMIFS(Data!$E:$E,Data!$B:$B,'18'!G$3,Data!$C:$C,'18'!$A$3,Data!$D:$D,'18'!$A11,Data!$F:$F,'18'!$A$2))","v":81.619856303069909},{"$f":"IF(SUMIFS(Data!$E:$E,Data!$B:$B,'18'!H$3,Data!$C:$C,'18'!$A$3,Data!$D:$D,'18'!$A11,Data!$F:$F,'18'!$A$2)=0,\"-\",SUMIFS(Data!$E:$E,Data!$B:$B,'18'!H$3,Data!$C:$C,'18'!$A$3,Data!$D:$D,'18'!$A11,Data!$F:$F,'18'!$A$2))","v":82.586427656850205},{"$f":"IF(SUMIFS(Data!$E:$E,Data!$B:$B,'18'!I$3,Data!$C:$C,'18'!$A$3,Data!$D:$D,'18'!$A11,Data!$F:$F,'18'!$A$2)=0,\"-\",SUMIFS(Data!$E:$E,Data!$B:$B,'18'!I$3,Data!$C:$C,'18'!$A$3,Data!$D:$D,'18'!$A11,Data!$F:$F,'18'!$A$2))","v":84.802967647774267},{"$f":"IF(SUMIFS(Data!$E:$E,Data!$B:$B,'18'!J$3,Data!$C:$C,'18'!$A$3,Data!$D:$D,'18'!$A11,Data!$F:$F,'18'!$A$2)=0,\"-\",SUMIFS(Data!$E:$E,Data!$B:$B,'18'!J$3,Data!$C:$C,'18'!$A$3,Data!$D:$D,'18'!$A11,Data!$F:$F,'18'!$A$2))","v":84.639443961772358},{"$f":"IF(SUMIFS(Data!$E:$E,Data!$B:$B,'18'!K$3,Data!$C:$C,'18'!$A$3,Data!$D:$D,'18'!$A11,Data!$F:$F,'18'!$A$2)=0,\"-\",SUMIFS(Data!$E:$E,Data!$B:$B,'18'!K$3,Data!$C:$C,'18'!$A$3,Data!$D:$D,'18'!$A11,Data!$F:$F,'18'!$A$2))","v":83.270989193682482}]
[{"$f":"VLOOKUP(\"Ontario\",Translation!$A$1:$C$354, Translation!A1+1, 0)","v":"Ontario"},{"$f":"IF(SUMIFS(Data!$E:$E,Data!$B:$B,'18'!B$3,Data!$C:$C,'18'!$A$3,Data!$D:$D,'18'!$A12,Data!$F:$F,'18'!$A$2)=0,\"-\",SUMIFS(Data!$E:$E,Data!$B:$B,'18'!B$3,Data!$C:$C,'18'!$A$3,Data!$D:$D,'18'!$A12,Data!$F:$F,'18'!$A$2))","v":92.226368159203986},{"$f":"IF(SUMIFS(Data!$E:$E,Data!$B:$B,'18'!C$3,Data!$C:$C,'18'!$A$3,Data!$D:$D,'18'!$A12,Data!$F:$F,'18'!$A$2)=0,\"-\",SUMIFS(Data!$E:$E,Data!$B:$B,'18'!C$3,Data!$C:$C,'18'!$A$3,Data!$D:$D,'18'!$A12,Data!$F:$F,'18'!$A$2))","v":90.501110053916889},{"$f":"IF(SUMIFS(Data!$E:$E,Data!$B:$B,'18'!D$3,Data!$C:$C,'18'!$A$3,Data!$D:$D,'18'!$A12,Data!$F:$F,'18'!$A$2)=0,\"-\",SUMIFS(Data!$E:$E,Data!$B:$B,'18'!D$3,Data!$C:$C,'18'!$A$3,Data!$D:$D,'18'!$A12,Data!$F:$F,'18'!$A$2))","v":90.395406498760295},{"$f":"IF(SUMIFS(Data!$E:$E,Data!$B:$B,'18'!E$3,Data!$C:$C,'18'!$A$3,Data!$D:$D,'18'!$A12,Data!$F:$F,'18'!$A$2)=0,\"-\",SUMIFS(Data!$E:$E,Data!$B:$B,'18'!E$3,Data!$C:$C,'18'!$A$3,Data!$D:$D,'18'!$A12,Data!$F:$F,'18'!$A$2))","v":89.72361342979039},{"$f":"IF(SUMIFS(Data!$E:$E,Data!$B:$B,'18'!F$3,Data!$C:$C,'18'!$A$3,Data!$D:$D,'18'!$A12,Data!$F:$F,'18'!$A$2)=0,\"-\",SUMIFS(Data!$E:$E,Data!$B:$B,'18'!F$3,Data!$C:$C,'18'!$A$3,Data!$D:$D,'18'!$A12,Data!$F:$F,'18'!$A$2))","v":92.184310294546492},{"$f":"IF(SUMIFS(Data!$E:$E,Data!$B:$B,'18'!G$3,Data!$C:$C,'18'!$A$3,Data!$D:$D,'18'!$A12,Data!$F:$F,'18'!$A$2)=0,\"-\",SUMIFS(Data!$E:$E,Data!$B:$B,'18'!G$3,Data!$C:$C,'18'!$A$3,Data!$D:$D,'18'!$A12,Data!$F:$F,'18'!$A$2))","v":90.222652468538257},{"$f":"IF(SUMIFS(Data!$E:$E,Data!$B:$B,'18'!H$3,Data!$C:$C,'18'!$A$3,Data!$D:$D,'18'!$A12,Data!$F:$F,'18'!$A$2)=0,\"-\",SUMIFS(Data!$E:$E,Data!$B:$B,'18'!H$3,Data!$C:$C,'18'!$A$3,Data!$D:$D,'18'!$A12,Data!$F:$F,'18'!$A$2))","v":90.251930624129628},{"$f":"IF(SUMIFS(Data!$E:$E,Data!$B:$B,'18'!I$3,Data!$C:$C,'18'!$A$3,Data!$D:$D,'18'!$A12,Data!$F:$F,'18'!$A$2)=0,\"-\",SUMIFS(Data!$E:$E,Data!$B:$B,'18'!I$3,Data!$C:$C,'18'!$A$3,Data!$D:$D,'18'!$A12,Data!$F:$F,'18'!$A$2))","v":90.633566859579673},{"$f":"IF(SUMIFS(Data!$E:$E,Data!$B:$B,'18'!J$3,Data!$C:$C,'18'!$A$3,Data!$D:$D,'18'!$A12,Data!$F:$F,'18'!$A$2)=0,\"-\",SUMIFS(Data!$E:$E,Data!$B:$B,'18'!J$3,Data!$C:$C,'18'!$A$3,Data!$D:$D,'18'!$A12,Data!$F:$F,'18'!$A$2))","v":92.226368159203986},{"$f":"IF(SUMIFS(Data!$E:$E,Data!$B:$B,'18'!K$3,Data!$C:$C,'18'!$A$3,Data!$D:$D,'18'!$A12,Data!$F:$F,'18'!$A$2)=0,\"-\",SUMIFS(Data!$E:$E,Data!$B:$B,'18'!K$3,Data!$C:$C,'18'!$A$3,Data!$D:$D,'18'!$A12,Data!$F:$F,'18'!$A$2))","v":92.184310294546492}]
[{"$f":"VLOOKUP(\"Manitoba\",Translation!$A$1:$C$354, Translation!A1+1, 0)","v":"Manitoba"},{"$f":"IF(SUMIFS(Data!$E:$E,Data!$B:$B,'18'!B$3,Data!$C:$C,'18'!$A$3,Data!$D:$D,'18'!$A13,Data!$F:$F,'18'!$A$2)=0,\"-\",SUMIFS(Data!$E:$E,Data!$B:$B,'18'!B$3,Data!$C:$C,'18'!$A$3,Data!$D:$D,'18'!$A13,Data!$F:$F,'18'!$A$2))","v":83.75},{"$f":"IF(SUMIFS(Data!$E:$E,Data!$B:$B,'18'!C$3,Data!$C:$C,'18'!$A$3,Data!$D:$D,'18'!$A13,Data!$F:$F,'18'!$A$2)=0,\"-\",SUMIFS(Data!$E:$E,Data!$B:$B,'18'!C$3,Data!$C:$C,'18'!$A$3,Data!$D:$D,'18'!$A13,Data!$F:$F,'18'!$A$2))","v":83.319772172497949},{"$f":"IF(SUMIFS(Data!$E:$E,Data!$B:$B,'18'!D$3,Data!$C:$C,'18'!$A$3,Data!$D:$D,'18'!$A13,Data!$F:$F,'18'!$A$2)=0,\"-\",SUMIFS(Data!$E:$E,Data!$B:$B,'18'!D$3,Data!$C:$C,'18'!$A$3,Data!$D:$D,'18'!$A13,Data!$F:$F,'18'!$A$2))","v":85.187424425634845},{"$f":"IF(SUMIFS(Data!$E:$E,Data!$B:$B,'18'!E$3,Data!$C:$C,'18'!$A$3,Data!$D:$D,'18'!$A13,Data!$F:$F,'18'!$A$2)=0,\"-\",SUMIFS(Data!$E:$E,Data!$B:$B,'18'!E$3,Data!$C:$C,'18'!$A$3,Data!$D:$D,'18'!$A13,Data!$F:$F,'18'!$A$2))","v":84.758364312267673},{"$f":"IF(SUMIFS(Data!$E:$E,Data!$B:$B,'18'!F$3,Data!$C:$C,'18'!$A$3,Data!$D:$D,'18'!$A13,Data!$F:$F,'18'!$A$2)=0,\"-\",SUMIFS(Data!$E:$E,Data!$B:$B,'18'!F$3,Data!$C:$C,'18'!$A$3,Data!$D:$D,'18'!$A13,Data!$F:$F,'18'!$A$2))","v":84.88964346349745},{"$f":"IF(SUMIFS(Data!$E:$E,Data!$B:$B,'18'!G$3,Data!$C:$C,'18'!$A$3,Data!$D:$D,'18'!$A13,Data!$F:$F,'18'!$A$2)=0,\"-\",SUMIFS(Data!$E:$E,Data!$B:$B,'18'!G$3,Data!$C:$C,'18'!$A$3,Data!$D:$D,'18'!$A13,Data!$F:$F,'18'!$A$2))","v":81.944444444444443},{"$f":"IF(SUMIFS(Data!$E:$E,Data!$B:$B,'18'!H$3,Data!$C:$C,'18'!$A$3,Data!$D:$D,'18'!$A13,Data!$F:$F,'18'!$A$2)=0,\"-\",SUMIFS(Data!$E:$E,Data!$B:$B,'18'!H$3,Data!$C:$C,'18'!$A$3,Data!$D:$D,'18'!$A13,Data!$F:$F,'18'!$A$2))","v":84.872417982989091},{"$f":"IF(SUMIFS(Data!$E:$E,Data!$B:$B,'18'!I$3,Data!$C:$C,'18'!$A$3,Data!$D:$D,'18'!$A13,Data!$F:$F,'18'!$A$2)=0,\"-\",SUMIFS(Data!$E:$E,Data!$B:$B,'18'!I$3,Data!$C:$C,'18'!$A$3,Data!$D:$D,'18'!$A13,Data!$F:$F,'18'!$A$2))","v":83.88838883888387},{"$f":"IF(SUMIFS(Data!$E:$E,Data!$B:$B,'18'!J$3,Data!$C:$C,'18'!$A$3,Data!$D:$D,'18'!$A13,Data!$F:$F,'18'!$A$2)=0,\"-\",SUMIFS(Data!$E:$E,Data!$B:$B,'18'!J$3,Data!$C:$C,'18'!$A$3,Data!$D:$D,'18'!$A13,Data!$F:$F,'18'!$A$2))","v":83.75},{"$f":"IF(SUMIFS(Data!$E:$E,Data!$B:$B,'18'!K$3,Data!$C:$C,'18'!$A$3,Data!$D:$D,'18'!$A13,Data!$F:$F,'18'!$A$2)=0,\"-\",SUMIFS(Data!$E:$E,Data!$B:$B,'18'!K$3,Data!$C:$C,'18'!$A$3,Data!$D:$D,'18'!$A13,Data!$F:$F,'18'!$A$2))","v":84.88964346349745}]
[{"$f":"VLOOKUP(\"Saskatchewan\",Translation!$A$1:$C$354, Translation!A1+1, 0)","v":"Saskatchewan"},{"$f":"IF(SUMIFS(Data!$E:$E,Data!$B:$B,'18'!B$3,Data!$C:$C,'18'!$A$3,Data!$D:$D,'18'!$A14,Data!$F:$F,'18'!$A$2)=0,\"-\",SUMIFS(Data!$E:$E,Data!$B:$B,'18'!B$3,Data!$C:$C,'18'!$A$3,Data!$D:$D,'18'!$A14,Data!$F:$F,'18'!$A$2))","v":77.551020408163268},{"$f":"IF(SUMIFS(Data!$E:$E,Data!$B:$B,'18'!C$3,Data!$C:$C,'18'!$A$3,Data!$D:$D,'18'!$A14,Data!$F:$F,'18'!$A$2)=0,\"-\",SUMIFS(Data!$E:$E,Data!$B:$B,'18'!C$3,Data!$C:$C,'18'!$A$3,Data!$D:$D,'18'!$A14,Data!$F:$F,'18'!$A$2))","v":78.589420654911805},{"$f":"IF(SUMIFS(Data!$E:$E,Data!$B:$B,'18'!D$3,Data!$C:$C,'18'!$A$3,Data!$D:$D,'18'!$A14,Data!$F:$F,'18'!$A$2)=0,\"-\",SUMIFS(Data!$E:$E,Data!$B:$B,'18'!D$3,Data!$C:$C,'18'!$A$3,Data!$D:$D,'18'!$A14,Data!$F:$F,'18'!$A$2))","v":79.473106476399551},{"$f":"IF(SUMIFS(Data!$E:$E,Data!$B:$B,'18'!E$3,Data!$C:$C,'18'!$A$3,Data!$D:$D,'18'!$A14,Data!$F:$F,'18'!$A$2)=0,\"-\",SUMIFS(Data!$E:$E,Data!$B:$B,'18'!E$3,Data!$C:$C,'18'!$A$3,Data!$D:$D,'18'!$A14,Data!$F:$F,'18'!$A$2))","v":77.379619260918261},{"$f":"IF(SUMIFS(Data!$E:$E,Data!$B:$B,'18'!F$3,Data!$C:$C,'18'!$A$3,Data!$D:$D,'18'!$A14,Data!$F:$F,'18'!$A$2)=0,\"-\",SUMIFS(Data!$E:$E,Data!$B:$B,'18'!F$3,Data!$C:$C,'18'!$A$3,Data!$D:$D,'18'!$A14,Data!$F:$F,'18'!$A$2))","v":80},{"$f":"IF(SUMIFS(Data!$E:$E,Data!$B:$B,'18'!G$3,Data!$C:$C,'18'!$A$3,Data!$D:$D,'18'!$A14,Data!$F:$F,'18'!$A$2)=0,\"-\",SUMIFS(Data!$E:$E,Data!$B:$B,'18'!G$3,Data!$C:$C,'18'!$A$3,Data!$D:$D,'18'!$A14,Data!$F:$F,'18'!$A$2))","v":77.626193724420176},{"$f":"IF(SUMIFS(Data!$E:$E,Data!$B:$B,'18'!H$3,Data!$C:$C,'18'!$A$3,Data!$D:$D,'18'!$A14,Data!$F:$F,'18'!$A$2)=0,\"-\",SUMIFS(Data!$E:$E,Data!$B:$B,'18'!H$3,Data!$C:$C,'18'!$A$3,Data!$D:$D,'18'!$A14,Data!$F:$F,'18'!$A$2))","v":76.805696846388614},{"$f":"IF(SUMIFS(Data!$E:$E,Data!$B:$B,'18'!I$3,Data!$C:$C,'18'!$A$3,Data!$D:$D,'18'!$A14,Data!$F:$F,'18'!$A$2)=0,\"-\",SUMIFS(Data!$E:$E,Data!$B:$B,'18'!I$3,Data!$C:$C,'18'!$A$3,Data!$D:$D,'18'!$A14,Data!$F:$F,'18'!$A$2))","v":77.38927738927741},{"$f":"IF(SUMIFS(Data!$E:$E,Data!$B:$B,'18'!J$3,Data!$C:$C,'18'!$A$3,Data!$D:$D,'18'!$A14,Data!$F:$F,'18'!$A$2)=0,\"-\",SUMIFS(Data!$E:$E,Data!$B:$B,'18'!J$3,Data!$C:$C,'18'!$A$3,Data!$D:$D,'18'!$A14,Data!$F:$F,'18'!$A$2))","v":77.551020408163268},{"$f":"IF(SUMIFS(Data!$E:$E,Data!$B:$B,'18'!K$3,Data!$C:$C,'18'!$A$3,Data!$D:$D,'18'!$A14,Data!$F:$F,'18'!$A$2)=0,\"-\",SUMIFS(Data!$E:$E,Data!$B:$B,'18'!K$3,Data!$C:$C,'18'!$A$3,Data!$D:$D,'18'!$A14,Data!$F:$F,'18'!$A$2))","v":80}]
[{"$f":"VLOOKUP(\"Alberta\",Translation!$A$1:$C$354, Translation!A1+1, 0)","v":"Alberta"},{"$f":"IF(SUMIFS(Data!$E:$E,Data!$B:$B,'18'!B$3,Data!$C:$C,'18'!$A$3,Data!$D:$D,'18'!$A15,Data!$F:$F,'18'!$A$2)=0,\"-\",SUMIFS(Data!$E:$E,Data!$B:$B,'18'!B$3,Data!$C:$C,'18'!$A$3,Data!$D:$D,'18'!$A15,Data!$F:$F,'18'!$A$2))","v":93.942175309775124},{"$f":"IF(SUMIFS(Data!$E:$E,Data!$B:$B,'18'!C$3,Data!$C:$C,'18'!$A$3,Data!$D:$D,'18'!$A15,Data!$F:$F,'18'!$A$2)=0,\"-\",SUMIFS(Data!$E:$E,Data!$B:$B,'18'!C$3,Data!$C:$C,'18'!$A$3,Data!$D:$D,'18'!$A15,Data!$F:$F,'18'!$A$2))","v":93.107654772796622},{"$f":"IF(SUMIFS(Data!$E:$E,Data!$B:$B,'18'!D$3,Data!$C:$C,'18'!$A$3,Data!$D:$D,'18'!$A15,Data!$F:$F,'18'!$A$2)=0,\"-\",SUMIFS(Data!$E:$E,Data!$B:$B,'18'!D$3,Data!$C:$C,'18'!$A$3,Data!$D:$D,'18'!$A15,Data!$F:$F,'18'!$A$2))","v":93.276073619631873},{"$f":"IF(SUMIFS(Data!$E:$E,Data!$B:$B,'18'!E$3,Data!$C:$C,'18'!$A$3,Data!$D:$D,'18'!$A15,Data!$F:$F,'18'!$A$2)=0,\"-\",SUMIFS(Data!$E:$E,Data!$B:$B,'18'!E$3,Data!$C:$C,'18'!$A$3,Data!$D:$D,'18'!$A15,Data!$F:$F,'18'!$A$2))","v":93.394010569583045},{"$f":"IF(SUMIFS(Data!$E:$E,Data!$B:$B,'18'!F$3,Data!$C:$C,'18'!$A$3,Data!$D:$D,'18'!$A15,Data!$F:$F,'18'!$A$2)=0,\"-\",SUMIFS(Data!$E:$E,Data!$B:$B,'18'!F$3,Data!$C:$C,'18'!$A$3,Data!$D:$D,'18'!$A15,Data!$F:$F,'18'!$A$2))","v":93.862640038967356},{"$f":"IF(SUMIFS(Data!$E:$E,Data!$B:$B,'18'!G$3,Data!$C:$C,'18'!$A$3,Data!$D:$D,'18'!$A15,Data!$F:$F,'18'!$A$2)=0,\"-\",SUMIFS(Data!$E:$E,Data!$B:$B,'18'!G$3,Data!$C:$C,'18'!$A$3,Data!$D:$D,'18'!$A15,Data!$F:$F,'18'!$A$2))","v":93.441688052466489},{"$f":"IF(SUMIFS(Data!$E:$E,Data!$B:$B,'18'!H$3,Data!$C:$C,'18'!$A$3,Data!$D:$D,'18'!$A15,Data!$F:$F,'18'!$A$2)=0,\"-\",SUMIFS(Data!$E:$E,Data!$B:$B,'18'!H$3,Data!$C:$C,'18'!$A$3,Data!$D:$D,'18'!$A15,Data!$F:$F,'18'!$A$2))","v":93.169991326973118},{"$f":"IF(SUMIFS(Data!$E:$E,Data!$B:$B,'18'!I$3,Data!$C:$C,'18'!$A$3,Data!$D:$D,'18'!$A15,Data!$F:$F,'18'!$A$2)=0,\"-\",SUMIFS(Data!$E:$E,Data!$B:$B,'18'!I$3,Data!$C:$C,'18'!$A$3,Data!$D:$D,'18'!$A15,Data!$F:$F,'18'!$A$2))","v":93.31388281060056},{"$f":"IF(SUMIFS(Data!$E:$E,Data!$B:$B,'18'!J$3,Data!$C:$C,'18'!$A$3,Data!$D:$D,'18'!$A15,Data!$F:$F,'18'!$A$2)=0,\"-\",SUMIFS(Data!$E:$E,Data!$B:$B,'18'!J$3,Data!$C:$C,'18'!$A$3,Data!$D:$D,'18'!$A15,Data!$F:$F,'18'!$A$2))","v":93.942175309775124},{"$f":"IF(SUMIFS(Data!$E:$E,Data!$B:$B,'18'!K$3,Data!$C:$C,'18'!$A$3,Data!$D:$D,'18'!$A15,Data!$F:$F,'18'!$A$2)=0,\"-\",SUMIFS(Data!$E:$E,Data!$B:$B,'18'!K$3,Data!$C:$C,'18'!$A$3,Data!$D:$D,'18'!$A15,Data!$F:$F,'18'!$A$2))","v":93.862640038967356}]
[{"$f":"VLOOKUP(\"British Columbia\",Translation!$A$1:$C$354, Translation!A1+1, 0)","v":"Colombie-Britannique"},{"$f":"IF(SUMIFS(Data!$E:$E,Data!$B:$B,'18'!B$3,Data!$C:$C,'18'!$A$3,Data!$D:$D,'18'!$A16,Data!$F:$F,'18'!$A$2)=0,\"-\",SUMIFS(Data!$E:$E,Data!$B:$B,'18'!B$3,Data!$C:$C,'18'!$A$3,Data!$D:$D,'18'!$A16,Data!$F:$F,'18'!$A$2))","v":87.394312067640286},{"$f":"IF(SUMIFS(Data!$E:$E,Data!$B:$B,'18'!C$3,Data!$C:$C,'18'!$A$3,Data!$D:$D,'18'!$A16,Data!$F:$F,'18'!$A$2)=0,\"-\",SUMIFS(Data!$E:$E,Data!$B:$B,'18'!C$3,Data!$C:$C,'18'!$A$3,Data!$D:$D,'18'!$A16,Data!$F:$F,'18'!$A$2))","v":86.327345309381244},{"$f":"IF(SUMIFS(Data!$E:$E,Data!$B:$B,'18'!D$3,Data!$C:$C,'18'!$A$3,Data!$D:$D,'18'!$A16,Data!$F:$F,'18'!$A$2)=0,\"-\",SUMIFS(Data!$E:$E,Data!$B:$B,'18'!D$3,Data!$C:$C,'18'!$A$3,Data!$D:$D,'18'!$A16,Data!$F:$F,'18'!$A$2))","v":84.907216494845315},{"$f":"IF(SUMIFS(Data!$E:$E,Data!$B:$B,'18'!E$3,Data!$C:$C,'18'!$A$3,Data!$D:$D,'18'!$A16,Data!$F:$F,'18'!$A$2)=0,\"-\",SUMIFS(Data!$E:$E,Data!$B:$B,'18'!E$3,Data!$C:$C,'18'!$A$3,Data!$D:$D,'18'!$A16,Data!$F:$F,'18'!$A$2))","v":84.11016949152544},{"$f":"IF(SUMIFS(Data!$E:$E,Data!$B:$B,'18'!F$3,Data!$C:$C,'18'!$A$3,Data!$D:$D,'18'!$A16,Data!$F:$F,'18'!$A$2)=0,\"-\",SUMIFS(Data!$E:$E,Data!$B:$B,'18'!F$3,Data!$C:$C,'18'!$A$3,Data!$D:$D,'18'!$A16,Data!$F:$F,'18'!$A$2))","v":89.124893797791003},{"$f":"IF(SUMIFS(Data!$E:$E,Data!$B:$B,'18'!G$3,Data!$C:$C,'18'!$A$3,Data!$D:$D,'18'!$A16,Data!$F:$F,'18'!$A$2)=0,\"-\",SUMIFS(Data!$E:$E,Data!$B:$B,'18'!G$3,Data!$C:$C,'18'!$A$3,Data!$D:$D,'18'!$A16,Data!$F:$F,'18'!$A$2))","v":84.652744050509938},{"$f":"IF(SUMIFS(Data!$E:$E,Data!$B:$B,'18'!H$3,Data!$C:$C,'18'!$A$3,Data!$D:$D,'18'!$A16,Data!$F:$F,'18'!$A$2)=0,\"-\",SUMIFS(Data!$E:$E,Data!$B:$B,'18'!H$3,Data!$C:$C,'18'!$A$3,Data!$D:$D,'18'!$A16,Data!$F:$F,'18'!$A$2))","v":84.30987023200943},{"$f":"IF(SUMIFS(Data!$E:$E,Data!$B:$B,'18'!I$3,Data!$C:$C,'18'!$A$3,Data!$D:$D,'18'!$A16,Data!$F:$F,'18'!$A$2)=0,\"-\",SUMIFS(Data!$E:$E,Data!$B:$B,'18'!I$3,Data!$C:$C,'18'!$A$3,Data!$D:$D,'18'!$A16,Data!$F:$F,'18'!$A$2))","v":85.199824330259105},{"$f":"IF(SUMIFS(Data!$E:$E,Data!$B:$B,'18'!J$3,Data!$C:$C,'18'!$A$3,Data!$D:$D,'18'!$A16,Data!$F:$F,'18'!$A$2)=0,\"-\",SUMIFS(Data!$E:$E,Data!$B:$B,'18'!J$3,Data!$C:$C,'18'!$A$3,Data!$D:$D,'18'!$A16,Data!$F:$F,'18'!$A$2))","v":87.394312067640286},{"$f":"IF(SUMIFS(Data!$E:$E,Data!$B:$B,'18'!K$3,Data!$C:$C,'18'!$A$3,Data!$D:$D,'18'!$A16,Data!$F:$F,'18'!$A$2)=0,\"-\",SUMIFS(Data!$E:$E,Data!$B:$B,'18'!K$3,Data!$C:$C,'18'!$A$3,Data!$D:$D,'18'!$A16,Data!$F:$F,'18'!$A$2))","v":89.124893797791003}]
[{"$f":"VLOOKUP(\"Territories\",Translation!$A$1:$C$354, Translation!A1+1, 0)","v":"Territoires"},{"$f":"IF(SUMIFS(Data!$E:$E,Data!$B:$B,'18'!B$3,Data!$C:$C,'18'!$A$3,Data!$D:$D,'18'!$A17,Data!$F:$F,'18'!$A$2)=0,\"-\",SUMIFS(Data!$E:$E,Data!$B:$B,'18'!B$3,Data!$C:$C,'18'!$A$3,Data!$D:$D,'18'!$A17,Data!$F:$F,'18'!$A$2))","v":75.806451612903217},{"$f":"IF(SUMIFS(Data!$E:$E,Data!$B:$B,'18'!C$3,Data!$C:$C,'18'!$A$3,Data!$D:$D,'18'!$A17,Data!$F:$F,'18'!$A$2)=0,\"-\",SUMIFS(Data!$E:$E,Data!$B:$B,'18'!C$3,Data!$C:$C,'18'!$A$3,Data!$D:$D,'18'!$A17,Data!$F:$F,'18'!$A$2))","v":74.285714285714306},{"$f":"IF(SUMIFS(Data!$E:$E,Data!$B:$B,'18'!D$3,Data!$C:$C,'18'!$A$3,Data!$D:$D,'18'!$A17,Data!$F:$F,'18'!$A$2)=0,\"-\",SUMIFS(Data!$E:$E,Data!$B:$B,'18'!D$3,Data!$C:$C,'18'!$A$3,Data!$D:$D,'18'!$A17,Data!$F:$F,'18'!$A$2))","v":84.745762711864401},{"$f":"IF(SUMIFS(Data!$E:$E,Data!$B:$B,'18'!E$3,Data!$C:$C,'18'!$A$3,Data!$D:$D,'18'!$A17,Data!$F:$F,'18'!$A$2)=0,\"-\",SUMIFS(Data!$E:$E,Data!$B:$B,'18'!E$3,Data!$C:$C,'18'!$A$3,Data!$D:$D,'18'!$A17,Data!$F:$F,'18'!$A$2))","v":83.206106870228993},{"$f":"IF(SUMIFS(Data!$E:$E,Data!$B:$B,'18'!F$3,Data!$C:$C,'18'!$A$3,Data!$D:$D,'18'!$A17,Data!$F:$F,'18'!$A$2)=0,\"-\",SUMIFS(Data!$E:$E,Data!$B:$B,'18'!F$3,Data!$C:$C,'18'!$A$3,Data!$D:$D,'18'!$A17,Data!$F:$F,'18'!$A$2))","v":71.830985915492946},{"$f":"IF(SUMIFS(Data!$E:$E,Data!$B:$B,'18'!G$3,Data!$C:$C,'18'!$A$3,Data!$D:$D,'18'!$A17,Data!$F:$F,'18'!$A$2)=0,\"-\",SUMIFS(Data!$E:$E,Data!$B:$B,'18'!G$3,Data!$C:$C,'18'!$A$3,Data!$D:$D,'18'!$A17,Data!$F:$F,'18'!$A$2))","v":77.5},{"$f":"IF(SUMIFS(Data!$E:$E,Data!$B:$B,'18'!H$3,Data!$C:$C,'18'!$A$3,Data!$D:$D,'18'!$A17,Data!$F:$F,'18'!$A$2)=0,\"-\",SUMIFS(Data!$E:$E,Data!$B:$B,'18'!H$3,Data!$C:$C,'18'!$A$3,Data!$D:$D,'18'!$A17,Data!$F:$F,'18'!$A$2))","v":77.34806629834253},{"$f":"IF(SUMIFS(Data!$E:$E,Data!$B:$B,'18'!I$3,Data!$C:$C,'18'!$A$3,Data!$D:$D,'18'!$A17,Data!$F:$F,'18'!$A$2)=0,\"-\",SUMIFS(Data!$E:$E,Data!$B:$B,'18'!I$3,Data!$C:$C,'18'!$A$3,Data!$D:$D,'18'!$A17,Data!$F:$F,'18'!$A$2))","v":81.954887218045116},{"$f":"IF(SUMIFS(Data!$E:$E,Data!$B:$B,'18'!J$3,Data!$C:$C,'18'!$A$3,Data!$D:$D,'18'!$A17,Data!$F:$F,'18'!$A$2)=0,\"-\",SUMIFS(Data!$E:$E,Data!$B:$B,'18'!J$3,Data!$C:$C,'18'!$A$3,Data!$D:$D,'18'!$A17,Data!$F:$F,'18'!$A$2))","v":75.806451612903217},{"$f":"IF(SUMIFS(Data!$E:$E,Data!$B:$B,'18'!K$3,Data!$C:$C,'18'!$A$3,Data!$D:$D,'18'!$A17,Data!$F:$F,'18'!$A$2)=0,\"-\",SUMIFS(Data!$E:$E,Data!$B:$B,'18'!K$3,Data!$C:$C,'18'!$A$3,Data!$D:$D,'18'!$A17,Data!$F:$F,'18'!$A$2))","v":71.830985915492946}]
[{"$f":"VLOOKUP(\"Distribution based on number of units, not number of loans.\",Translation!$A$1:$C$354, Translation!A1+1, 0)","v":"La répartition est établie d'après le nombre de logements, plutôt que le nombre de prêts assurés."}]
[{"$f":"VLOOKUP(\"The sum of all breakdown categories may not add up to 100 due to rounding.\",Translation!$A$1:$C$354, Translation!A1+1, 0)","v":"Les chiffres ayant été arrondis, il se peut que la somme de l'ensemble des catégories n'égale pas 100 %."}]
[]
[{"$f":"VLOOKUP(\"Loans insured in period by urban and rural type (%)\",Translation!$A$1:$C$354, Translation!A1+1, 0)","v":"Prêts hypothécaires assurés au cours de la période selon le milieu urbain/rural (%)"}]
[{"$f":"VLOOKUP(\"PORTFOLIO\",Translation!$A$1:$C$354, Translation!A1+1, 0)","v":"ASSURANCE DE PORTEFEUILLE"},{"$f":"VLOOKUP(\"Q1 2020\",Translation!$A$1:$C$354, Translation!$A$1+1, 0)","v":"T1 2020"},{"$f":"VLOOKUP(\"Q4 2019\",Translation!$A$1:$C$354, Translation!$A$1+1, 0)","v":"T4 2019"},{"$f":"VLOOKUP(\"Q3 2019\",Translation!$A$1:$C$354, Translation!$A$1+1, 0)","v":"T3 2019"},{"$f":"VLOOKUP(\"Q2 2019\",Translation!$A$1:$C$354, Translation!$A$1+1, 0)","v":"T2 2019"},{"$f":"VLOOKUP(\"Q1 2019\",Translation!$A$1:$C$354, Translation!$A$1+1, 0)","v":"T1 2019"},{"$f":"VLOOKUP(\"Q4 2018\",Translation!$A$1:$C$354, Translation!$A$1+1, 0)","v":"T4 2018"},{"$f":"VLOOKUP(\"Q3 2018\",Translation!$A$1:$C$354, Translation!$A$1+1, 0)","v":"T3 2018"},{"$f":"VLOOKUP(\"Q2 2018\",Translation!$A$1:$C$354, Translation!$A$1+1, 0)","v":"T2 2018"},{"$f":"VLOOKUP(\"YTD 2020\",Translation!$A$1:$C$354, Translation!$A$1+1, 0)","v":"Cumul 2020"},{"$f":"VLOOKUP(\"YTD 2019\",Translation!$A$1:$C$354, Translation!$A$1+1, 0)","v":"Cumul 2019"}]
[{"$f":"VLOOKUP(\"Urban\",Translation!$A$1:$C$354, Translation!A1+1, 0)","v":"Urbain"},{"$f":"SUMIFS(Data!$E:$E,Data!$B:$B,'18'!B$22,Data!$C:$C,'18'!$A$22,Data!$D:$D,'18'!$A23,Data!$F:$F,'18'!$A$21)","v":96.376125059213635},{"$f":"SUMIFS(Data!$E:$E,Data!$B:$B,'18'!C$22,Data!$C:$C,'18'!$A$22,Data!$D:$D,'18'!$A23,Data!$F:$F,'18'!$A$21)","v":94.004935404267684},{"$f":"SUMIFS(Data!$E:$E,Data!$B:$B,'18'!D$22,Data!$C:$C,'18'!$A$22,Data!$D:$D,'18'!$A23,Data!$F:$F,'18'!$A$21)","v":93.329912775782404},{"$f":"SUMIFS(Data!$E:$E,Data!$B:$B,'18'!E$22,Data!$C:$C,'18'!$A$22,Data!$D:$D,'18'!$A23,Data!$F:$F,'18'!$A$21)","v":94.147509578544032},{"$f":"SUMIFS(Data!$E:$E,Data!$B:$B,'18'!F$22,Data!$C:$C,'18'!$A$22,Data!$D:$D,'18'!$A23,Data!$F:$F,'18'!$A$21)","v":94.156827126854381},{"$f":"SUMIFS(Data!$E:$E,Data!$B:$B,'18'!G$22,Data!$C:$C,'18'!$A$22,Data!$D:$D,'18'!$A23,Data!$F:$F,'18'!$A$21)","v":88.944433762737987},{"$f":"SUMIFS(Data!$E:$E,Data!$B:$B,'18'!H$22,Data!$C:$C,'18'!$A$22,Data!$D:$D,'18'!$A23,Data!$F:$F,'18'!$A$21)","v":96.091597796143262},{"$f":"SUMIFS(Data!$E:$E,Data!$B:$B,'18'!I$22,Data!$C:$C,'18'!$A$22,Data!$D:$D,'18'!$A23,Data!$F:$F,'18'!$A$21)","v":93.43593547190801},{"$f":"SUMIFS(Data!$E:$E,Data!$B:$B,'18'!J$22,Data!$C:$C,'18'!$A$22,Data!$D:$D,'18'!$A23,Data!$F:$F,'18'!$A$21)","v":96.376125059213635},{"$f":"SUMIFS(Data!$E:$E,Data!$B:$B,'18'!K$22,Data!$C:$C,'18'!$A$22,Data!$D:$D,'18'!$A23,Data!$F:$F,'18'!$A$21)","v":94.156827126854381}]
[{"$f":"VLOOKUP(\"Rural\",Translation!$A$1:$C$354, Translation!A1+1, 0)","v":"Rural"},{"$f":"SUMIFS(Data!$E:$E,Data!$B:$B,'18'!B$22,Data!$C:$C,'18'!$A$22,Data!$D:$D,'18'!$A24,Data!$F:$F,'18'!$A$21)","v":3.6238749407863575},{"$f":"SUMIFS(Data!$E:$E,Data!$B:$B,'18'!C$22,Data!$C:$C,'18'!$A$22,Data!$D:$D,'18'!$A24,Data!$F:$F,'18'!$A$21)","v":5.9950645957323268},{"$f":"SUMIFS(Data!$E:$E,Data!$B:$B,'18'!D$22,Data!$C:$C,'18'!$A$22,Data!$D:$D,'18'!$A24,Data!$F:$F,'18'!$A$21)","v":6.6700872242175473},{"$f":"SUMIFS(Data!$E:$E,Data!$B:$B,'18'!E$22,Data!$C:$C,'18'!$A$22,Data!$D:$D,'18'!$A24,Data!$F:$F,'18'!$A$21)","v":5.8524904214559381},{"$f":"SUMIFS(Data!$E:$E,Data!$B:$B,'18'!F$22,Data!$C:$C,'18'!$A$22,Data!$D:$D,'18'!$A24,Data!$F:$F,'18'!$A$21)","v":5.8431728731456252},{"$f":"SUMIFS(Data!$E:$E,Data!$B:$B,'18'!G$22,Data!$C:$C,'18'!$A$22,Data!$D:$D,'18'!$A24,Data!$F:$F,'18'!$A$21)","v":11.055566237262061},{"$f":"SUMIFS(Data!$E:$E,Data!$B:$B,'18'!H$22,Data!$C:$C,'18'!$A$22,Data!$D:$D,'18'!$A24,Data!$F:$F,'18'!$A$21)","v":3.9084022038567503},{"$f":"SUMIFS(Data!$E:$E,Data!$B:$B,'18'!I$22,Data!$C:$C,'18'!$A$22,Data!$D:$D,'18'!$A24,Data!$F:$F,'18'!$A$21)","v":6.5640645280919721},{"$f":"SUMIFS(Data!$E:$E,Data!$B:$B,'18'!J$22,Data!$C:$C,'18'!$A$22,Data!$D:$D,'18'!$A24,Data!$F:$F,'18'!$A$21)","v":3.6238749407863575},{"$f":"SUMIFS(Data!$E:$E,Data!$B:$B,'18'!K$22,Data!$C:$C,'18'!$A$22,Data!$D:$D,'18'!$A24,Data!$F:$F,'18'!$A$21)","v":5.8431728731456252}]
[{"$f":"VLOOKUP(\"Urban properties by province (%)\",Translation!$A$1:$C$354, Translation!A1+1, 0)","v":"Propriétés urbaines selon la province (%)"}]
[{"$f":"VLOOKUP(\"Newfoundland and Labrador\",Translation!$A$1:$C$354, Translation!A1+1, 0)","v":"Terre-Neuve-et-Labrador"},{"$f":"IF(SUMIFS(Data!$E:$E,Data!$B:$B,'18'!B$22,Data!$C:$C,'18'!$A$22,Data!$D:$D,'18'!$A26,Data!$F:$F,'18'!$A$21)=0,\"-\",SUMIFS(Data!$E:$E,Data!$B:$B,'18'!B$22,Data!$C:$C,'18'!$A$22,Data!$D:$D,'18'!$A26,Data!$F:$F,'18'!$A$21))","v":72.727272727272734},{"$f":"IF(SUMIFS(Data!$E:$E,Data!$B:$B,'18'!C$22,Data!$C:$C,'18'!$A$22,Data!$D:$D,'18'!$A26,Data!$F:$F,'18'!$A$21)=0,\"-\",SUMIFS(Data!$E:$E,Data!$B:$B,'18'!C$22,Data!$C:$C,'18'!$A$22,Data!$D:$D,'18'!$A26,Data!$F:$F,'18'!$A$21))","v":77.419354838709694},{"$f":"IF(SUMIFS(Data!$E:$E,Data!$B:$B,'18'!D$22,Data!$C:$C,'18'!$A$22,Data!$D:$D,'18'!$A26,Data!$F:$F,'18'!$A$21)=0,\"-\",SUMIFS(Data!$E:$E,Data!$B:$B,'18'!D$22,Data!$C:$C,'18'!$A$22,Data!$D:$D,'18'!$A26,Data!$F:$F,'18'!$A$21))","v":"-"},{"$f":"IF(SUMIFS(Data!$E:$E,Data!$B:$B,'18'!E$22,Data!$C:$C,'18'!$A$22,Data!$D:$D,'18'!$A26,Data!$F:$F,'18'!$A$21)=0,\"-\",SUMIFS(Data!$E:$E,Data!$B:$B,'18'!E$22,Data!$C:$C,'18'!$A$22,Data!$D:$D,'18'!$A26,Data!$F:$F,'18'!$A$21))","v":80},{"$f":"IF(SUMIFS(Data!$E:$E,Data!$B:$B,'18'!F$22,Data!$C:$C,'18'!$A$22,Data!$D:$D,'18'!$A26,Data!$F:$F,'18'!$A$21)=0,\"-\",SUMIFS(Data!$E:$E,Data!$B:$B,'18'!F$22,Data!$C:$C,'18'!$A$22,Data!$D:$D,'18'!$A26,Data!$F:$F,'18'!$A$21))","v":79.166666666666657},{"$f":"IF(SUMIFS(Data!$E:$E,Data!$B:$B,'18'!G$22,Data!$C:$C,'18'!$A$22,Data!$D:$D,'18'!$A26,Data!$F:$F,'18'!$A$21)=0,\"-\",SUMIFS(Data!$E:$E,Data!$B:$B,'18'!G$22,Data!$C:$C,'18'!$A$22,Data!$D:$D,'18'!$A26,Data!$F:$F,'18'!$A$21))","v":92.857142857142875},{"$f":"IF(SUMIFS(Data!$E:$E,Data!$B:$B,'18'!H$22,Data!$C:$C,'18'!$A$22,Data!$D:$D,'18'!$A26,Data!$F:$F,'18'!$A$21)=0,\"-\",SUMIFS(Data!$E:$E,Data!$B:$B,'18'!H$22,Data!$C:$C,'18'!$A$22,Data!$D:$D,'18'!$A26,Data!$F:$F,'18'!$A$21))","v":95.238095238095227},{"$f":"IF(SUMIFS(Data!$E:$E,Data!$B:$B,'18'!I$22,Data!$C:$C,'18'!$A$22,Data!$D:$D,'18'!$A26,Data!$F:$F,'18'!$A$21)=0,\"-\",SUMIFS(Data!$E:$E,Data!$B:$B,'18'!I$22,Data!$C:$C,'18'!$A$22,Data!$D:$D,'18'!$A26,Data!$F:$F,'18'!$A$21))","v":92.307692307692321},{"$f":"IF(SUMIFS(Data!$E:$E,Data!$B:$B,'18'!J$22,Data!$C:$C,'18'!$A$22,Data!$D:$D,'18'!$A26,Data!$F:$F,'18'!$A$21)=0,\"-\",SUMIFS(Data!$E:$E,Data!$B:$B,'18'!J$22,Data!$C:$C,'18'!$A$22,Data!$D:$D,'18'!$A26,Data!$F:$F,'18'!$A$21))","v":72.727272727272734},{"$f":"IF(SUMIFS(Data!$E:$E,Data!$B:$B,'18'!K$22,Data!$C:$C,'18'!$A$22,Data!$D:$D,'18'!$A26,Data!$F:$F,'18'!$A$21)=0,\"-\",SUMIFS(Data!$E:$E,Data!$B:$B,'18'!K$22,Data!$C:$C,'18'!$A$22,Data!$D:$D,'18'!$A26,Data!$F:$F,'18'!$A$21))","v":79.166666666666657}]
[{"$f":"VLOOKUP(\"Prince Edward Island\",Translation!$A$1:$C$354, Translation!A1+1, 0)","v":"Île-du-Prince-Édouard"},{"$f":"IF(SUMIFS(Data!$E:$E,Data!$B:$B,'18'!B$22,Data!$C:$C,'18'!$A$22,Data!$D:$D,'18'!$A27,Data!$F:$F,'18'!$A$21)=0,\"-\",SUMIFS(Data!$E:$E,Data!$B:$B,'18'!B$22,Data!$C:$C,'18'!$A$22,Data!$D:$D,'18'!$A27,Data!$F:$F,'18'!$A$21))","v":"-"},{"$f":"IF(SUMIFS(Data!$E:$E,Data!$B:$B,'18'!C$22,Data!$C:$C,'18'!$A$22,Data!$D:$D,'18'!$A27,Data!$F:$F,'18'!$A$21)=0,\"-\",SUMIFS(Data!$E:$E,Data!$B:$B,'18'!C$22,Data!$C:$C,'18'!$A$22,Data!$D:$D,'18'!$A27,Data!$F:$F,'18'!$A$21))","v":92.307692307692321},{"$f":"IF(SUMIFS(Data!$E:$E,Data!$B:$B,'18'!D$22,Data!$C:$C,'18'!$A$22,Data!$D:$D,'18'!$A27,Data!$F:$F,'18'!$A$21)=0,\"-\",SUMIFS(Data!$E:$E,Data!$B:$B,'18'!D$22,Data!$C:$C,'18'!$A$22,Data!$D:$D,'18'!$A27,Data!$F:$F,'18'!$A$21))","v":"-"},{"$f":"IF(SUMIFS(Data!$E:$E,Data!$B:$B,'18'!E$22,Data!$C:$C,'18'!$A$22,Data!$D:$D,'18'!$A27,Data!$F:$F,'18'!$A$21)=0,\"-\",SUMIFS(Data!$E:$E,Data!$B:$B,'18'!E$22,Data!$C:$C,'18'!$A$22,Data!$D:$D,'18'!$A27,Data!$F:$F,'18'!$A$21))","v":79.310344827586235},{"$f":"IF(SUMIFS(Data!$E:$E,Data!$B:$B,'18'!F$22,Data!$C:$C,'18'!$A$22,Data!$D:$D,'18'!$A27,Data!$F:$F,'18'!$A$21)=0,\"-\",SUMIFS(Data!$E:$E,Data!$B:$B,'18'!F$22,Data!$C:$C,'18'!$A$22,Data!$D:$D,'18'!$A27,Data!$F:$F,'18'!$A$21))","v":66.666666666666643},{"$f":"IF(SUMIFS(Data!$E:$E,Data!$B:$B,'18'!G$22,Data!$C:$C,'18'!$A$22,Data!$D:$D,'18'!$A27,Data!$F:$F,'18'!$A$21)=0,\"-\",SUMIFS(Data!$E:$E,Data!$B:$B,'18'!G$22,Data!$C:$C,'18'!$A$22,Data!$D:$D,'18'!$A27,Data!$F:$F,'18'!$A$21))","v":81.818181818181827},{"$f":"IF(SUMIFS(Data!$E:$E,Data!$B:$B,'18'!H$22,Data!$C:$C,'18'!$A$22,Data!$D:$D,'18'!$A27,Data!$F:$F,'18'!$A$21)=0,\"-\",SUMIFS(Data!$E:$E,Data!$B:$B,'18'!H$22,Data!$C:$C,'18'!$A$22,Data!$D:$D,'18'!$A27,Data!$F:$F,'18'!$A$21))","v":"-"},{"$f":"IF(SUMIFS(Data!$E:$E,Data!$B:$B,'18'!I$22,Data!$C:$C,'18'!$A$22,Data!$D:$D,'18'!$A27,Data!$F:$F,'18'!$A$21)=0,\"-\",SUMIFS(Data!$E:$E,Data!$B:$B,'18'!I$22,Data!$C:$C,'18'!$A$22,Data!$D:$D,'18'!$A27,Data!$F:$F,'18'!$A$21))","v":57.142857142857117},{"$f":"IF(SUMIFS(Data!$E:$E,Data!$B:$B,'18'!J$22,Data!$C:$C,'18'!$A$22,Data!$D:$D,'18'!$A27,Data!$F:$F,'18'!$A$21)=0,\"-\",SUMIFS(Data!$E:$E,Data!$B:$B,'18'!J$22,Data!$C:$C,'18'!$A$22,Data!$D:$D,'18'!$A27,Data!$F:$F,'18'!$A$21))","v":"-"},{"$f":"IF(SUMIFS(Data!$E:$E,Data!$B:$B,'18'!K$22,Data!$C:$C,'18'!$A$22,Data!$D:$D,'18'!$A27,Data!$F:$F,'18'!$A$21)=0,\"-\",SUMIFS(Data!$E:$E,Data!$B:$B,'18'!K$22,Data!$C:$C,'18'!$A$22,Data!$D:$D,'18'!$A27,Data!$F:$F,'18'!$A$21))","v":66.666666666666643}]
[{"$f":"VLOOKUP(\"Nova Scotia\",Translation!$A$1:$C$354, Translation!A1+1, 0)","v":"Nouvelle-Écosse"},{"$f":"IF(SUMIFS(Data!$E:$E,Data!$B:$B,'18'!B$22,Data!$C:$C,'18'!$A$22,Data!$D:$D,'18'!$A28,Data!$F:$F,'18'!$A$21)=0,\"-\",SUMIFS(Data!$E:$E,Data!$B:$B,'18'!B$22,Data!$C:$C,'18'!$A$22,Data!$D:$D,'18'!$A28,Data!$F:$F,'18'!$A$21))","v":100},{"$f":"IF(SUMIFS(Data!$E:$E,Data!$B:$B,'18'!C$22,Data!$C:$C,'18'!$A$22,Data!$D:$D,'18'!$A28,Data!$F:$F,'18'!$A$21)=0,\"-\",SUMIFS(Data!$E:$E,Data!$B:$B,'18'!C$22,Data!$C:$C,'18'!$A$22,Data!$D:$D,'18'!$A28,Data!$F:$F,'18'!$A$21))","v":97.222222222222229},{"$f":"IF(SUMIFS(Data!$E:$E,Data!$B:$B,'18'!D$22,Data!$C:$C,'18'!$A$22,Data!$D:$D,'18'!$A28,Data!$F:$F,'18'!$A$21)=0,\"-\",SUMIFS(Data!$E:$E,Data!$B:$B,'18'!D$22,Data!$C:$C,'18'!$A$22,Data!$D:$D,'18'!$A28,Data!$F:$F,'18'!$A$21))","v":100},{"$f":"IF(SUMIFS(Data!$E:$E,Data!$B:$B,'18'!E$22,Data!$C:$C,'18'!$A$22,Data!$D:$D,'18'!$A28,Data!$F:$F,'18'!$A$21)=0,\"-\",SUMIFS(Data!$E:$E,Data!$B:$B,'18'!E$22,Data!$C:$C,'18'!$A$22,Data!$D:$D,'18'!$A28,Data!$F:$F,'18'!$A$21))","v":94.021739130434781},{"$f":"IF(SUMIFS(Data!$E:$E,Data!$B:$B,'18'!F$22,Data!$C:$C,'18'!$A$22,Data!$D:$D,'18'!$A28,Data!$F:$F,'18'!$A$21)=0,\"-\",SUMIFS(Data!$E:$E,Data!$B:$B,'18'!F$22,Data!$C:$C,'18'!$A$22,Data!$D:$D,'18'!$A28,Data!$F:$F,'18'!$A$21))","v":92.682926829268283},{"$f":"IF(SUMIFS(Data!$E:$E,Data!$B:$B,'18'!G$22,Data!$C:$C,'18'!$A$22,Data!$D:$D,'18'!$A28,Data!$F:$F,'18'!$A$21)=0,\"-\",SUMIFS(Data!$E:$E,Data!$B:$B,'18'!G$22,Data!$C:$C,'18'!$A$22,Data!$D:$D,'18'!$A28,Data!$F:$F,'18'!$A$21))","v":94.117647058823522},{"$f":"IF(SUMIFS(Data!$E:$E,Data!$B:$B,'18'!H$22,Data!$C:$C,'18'!$A$22,Data!$D:$D,'18'!$A28,Data!$F:$F,'18'!$A$21)=0,\"-\",SUMIFS(Data!$E:$E,Data!$B:$B,'18'!H$22,Data!$C:$C,'18'!$A$22,Data!$D:$D,'18'!$A28,Data!$F:$F,'18'!$A$21))","v":100},{"$f":"IF(SUMIFS(Data!$E:$E,Data!$B:$B,'18'!I$22,Data!$C:$C,'18'!$A$22,Data!$D:$D,'18'!$A28,Data!$F:$F,'18'!$A$21)=0,\"-\",SUMIFS(Data!$E:$E,Data!$B:$B,'18'!I$22,Data!$C:$C,'18'!$A$22,Data!$D:$D,'18'!$A28,Data!$F:$F,'18'!$A$21))","v":93.333333333333314},{"$f":"IF(SUMIFS(Data!$E:$E,Data!$B:$B,'18'!J$22,Data!$C:$C,'18'!$A$22,Data!$D:$D,'18'!$A28,Data!$F:$F,'18'!$A$21)=0,\"-\",SUMIFS(Data!$E:$E,Data!$B:$B,'18'!J$22,Data!$C:$C,'18'!$A$22,Data!$D:$D,'18'!$A28,Data!$F:$F,'18'!$A$21))","v":100},{"$f":"IF(SUMIFS(Data!$E:$E,Data!$B:$B,'18'!K$22,Data!$C:$C,'18'!$A$22,Data!$D:$D,'18'!$A28,Data!$F:$F,'18'!$A$21)=0,\"-\",SUMIFS(Data!$E:$E,Data!$B:$B,'18'!K$22,Data!$C:$C,'18'!$A$22,Data!$D:$D,'18'!$A28,Data!$F:$F,'18'!$A$21))","v":92.682926829268283}]
[{"$f":"VLOOKUP(\"New Brunswick\",Translation!$A$1:$C$354, Translation!A1+1, 0)","v":"Nouveau-Brunswick"},{"$f":"IF(SUMIFS(Data!$E:$E,Data!$B:$B,'18'!B$22,Data!$C:$C,'18'!$A$22,Data!$D:$D,'18'!$A29,Data!$F:$F,'18'!$A$21)=0,\"-\",SUMIFS(Data!$E:$E,Data!$B:$B,'18'!B$22,Data!$C:$C,'18'!$A$22,Data!$D:$D,'18'!$A29,Data!$F:$F,'18'!$A$21))","v":95.238095238095227},{"$f":"IF(SUMIFS(Data!$E:$E,Data!$B:$B,'18'!C$22,Data!$C:$C,'18'!$A$22,Data!$D:$D,'18'!$A29,Data!$F:$F,'18'!$A$21)=0,\"-\",SUMIFS(Data!$E:$E,Data!$B:$B,'18'!C$22,Data!$C:$C,'18'!$A$22,Data!$D:$D,'18'!$A29,Data!$F:$F,'18'!$A$21))","v":90.816326530612244},{"$f":"IF(SUMIFS(Data!$E:$E,Data!$B:$B,'18'!D$22,Data!$C:$C,'18'!$A$22,Data!$D:$D,'18'!$A29,Data!$F:$F,'18'!$A$21)=0,\"-\",SUMIFS(Data!$E:$E,Data!$B:$B,'18'!D$22,Data!$C:$C,'18'!$A$22,Data!$D:$D,'18'!$A29,Data!$F:$F,'18'!$A$21))","v":100},{"$f":"IF(SUMIFS(Data!$E:$E,Data!$B:$B,'18'!E$22,Data!$C:$C,'18'!$A$22,Data!$D:$D,'18'!$A29,Data!$F:$F,'18'!$A$21)=0,\"-\",SUMIFS(Data!$E:$E,Data!$B:$B,'18'!E$22,Data!$C:$C,'18'!$A$22,Data!$D:$D,'18'!$A29,Data!$F:$F,'18'!$A$21))","v":83.766233766233782},{"$f":"IF(SUMIFS(Data!$E:$E,Data!$B:$B,'18'!F$22,Data!$C:$C,'18'!$A$22,Data!$D:$D,'18'!$A29,Data!$F:$F,'18'!$A$21)=0,\"-\",SUMIFS(Data!$E:$E,Data!$B:$B,'18'!F$22,Data!$C:$C,'18'!$A$22,Data!$D:$D,'18'!$A29,Data!$F:$F,'18'!$A$21))","v":87.5},{"$f":"IF(SUMIFS(Data!$E:$E,Data!$B:$B,'18'!G$22,Data!$C:$C,'18'!$A$22,Data!$D:$D,'18'!$A29,Data!$F:$F,'18'!$A$21)=0,\"-\",SUMIFS(Data!$E:$E,Data!$B:$B,'18'!G$22,Data!$C:$C,'18'!$A$22,Data!$D:$D,'18'!$A29,Data!$F:$F,'18'!$A$21))","v":72.5},{"$f":"IF(SUMIFS(Data!$E:$E,Data!$B:$B,'18'!H$22,Data!$C:$C,'18'!$A$22,Data!$D:$D,'18'!$A29,Data!$F:$F,'18'!$A$21)=0,\"-\",SUMIFS(Data!$E:$E,Data!$B:$B,'18'!H$22,Data!$C:$C,'18'!$A$22,Data!$D:$D,'18'!$A29,Data!$F:$F,'18'!$A$21))","v":92.857142857142875},{"$f":"IF(SUMIFS(Data!$E:$E,Data!$B:$B,'18'!I$22,Data!$C:$C,'18'!$A$22,Data!$D:$D,'18'!$A29,Data!$F:$F,'18'!$A$21)=0,\"-\",SUMIFS(Data!$E:$E,Data!$B:$B,'18'!I$22,Data!$C:$C,'18'!$A$22,Data!$D:$D,'18'!$A29,Data!$F:$F,'18'!$A$21))","v":81.818181818181827},{"$f":"IF(SUMIFS(Data!$E:$E,Data!$B:$B,'18'!J$22,Data!$C:$C,'18'!$A$22,Data!$D:$D,'18'!$A29,Data!$F:$F,'18'!$A$21)=0,\"-\",SUMIFS(Data!$E:$E,Data!$B:$B,'18'!J$22,Data!$C:$C,'18'!$A$22,Data!$D:$D,'18'!$A29,Data!$F:$F,'18'!$A$21))","v":95.238095238095227},{"$f":"IF(SUMIFS(Data!$E:$E,Data!$B:$B,'18'!K$22,Data!$C:$C,'18'!$A$22,Data!$D:$D,'18'!$A29,Data!$F:$F,'18'!$A$21)=0,\"-\",SUMIFS(Data!$E:$E,Data!$B:$B,'18'!K$22,Data!$C:$C,'18'!$A$22,Data!$D:$D,'18'!$A29,Data!$F:$F,'18'!$A$21))","v":87.5}]
[{"$f":"VLOOKUP(\"Quebec\",Translation!$A$1:$C$354, Translation!A1+1, 0)","v":"Québec"},{"$f":"IF(SUMIFS(Data!$E:$E,Data!$B:$B,'18'!B$22,Data!$C:$C,'18'!$A$22,Data!$D:$D,'18'!$A30,Data!$F:$F,'18'!$A$21)=0,\"-\",SUMIFS(Data!$E:$E,Data!$B:$B,'18'!B$22,Data!$C:$C,'18'!$A$22,Data!$D:$D,'18'!$A30,Data!$F:$F,'18'!$A$21))","v":95.27272727272728},{"$f":"IF(SUMIFS(Data!$E:$E,Data!$B:$B,'18'!C$22,Data!$C:$C,'18'!$A$22,Data!$D:$D,'18'!$A30,Data!$F:$F,'18'!$A$21)=0,\"-\",SUMIFS(Data!$E:$E,Data!$B:$B,'18'!C$22,Data!$C:$C,'18'!$A$22,Data!$D:$D,'18'!$A30,Data!$F:$F,'18'!$A$21))","v":95.702592087312382},{"$f":"IF(SUMIFS(Data!$E:$E,Data!$B:$B,'18'!D$22,Data!$C:$C,'18'!$A$22,Data!$D:$D,'18'!$A30,Data!$F:$F,'18'!$A$21)=0,\"-\",SUMIFS(Data!$E:$E,Data!$B:$B,'18'!D$22,Data!$C:$C,'18'!$A$22,Data!$D:$D,'18'!$A30,Data!$F:$F,'18'!$A$21))","v":95.145631067961148},{"$f":"IF(SUMIFS(Data!$E:$E,Data!$B:$B,'18'!E$22,Data!$C:$C,'18'!$A$22,Data!$D:$D,'18'!$A30,Data!$F:$F,'18'!$A$21)=0,\"-\",SUMIFS(Data!$E:$E,Data!$B:$B,'18'!E$22,Data!$C:$C,'18'!$A$22,Data!$D:$D,'18'!$A30,Data!$F:$F,'18'!$A$21))","v":92.839195979899515},{"$f":"IF(SUMIFS(Data!$E:$E,Data!$B:$B,'18'!F$22,Data!$C:$C,'18'!$A$22,Data!$D:$D,'18'!$A30,Data!$F:$F,'18'!$A$21)=0,\"-\",SUMIFS(Data!$E:$E,Data!$B:$B,'18'!F$22,Data!$C:$C,'18'!$A$22,Data!$D:$D,'18'!$A30,Data!$F:$F,'18'!$A$21))","v":94.787644787644822},{"$f":"IF(SUMIFS(Data!$E:$E,Data!$B:$B,'18'!G$22,Data!$C:$C,'18'!$A$22,Data!$D:$D,'18'!$A30,Data!$F:$F,'18'!$A$21)=0,\"-\",SUMIFS(Data!$E:$E,Data!$B:$B,'18'!G$22,Data!$C:$C,'18'!$A$22,Data!$D:$D,'18'!$A30,Data!$F:$F,'18'!$A$21))","v":93.771626297577839},{"$f":"IF(SUMIFS(Data!$E:$E,Data!$B:$B,'18'!H$22,Data!$C:$C,'18'!$A$22,Data!$D:$D,'18'!$A30,Data!$F:$F,'18'!$A$21)=0,\"-\",SUMIFS(Data!$E:$E,Data!$B:$B,'18'!H$22,Data!$C:$C,'18'!$A$22,Data!$D:$D,'18'!$A30,Data!$F:$F,'18'!$A$21))","v":95.04},{"$f":"IF(SUMIFS(Data!$E:$E,Data!$B:$B,'18'!I$22,Data!$C:$C,'18'!$A$22,Data!$D:$D,'18'!$A30,Data!$F:$F,'18'!$A$21)=0,\"-\",SUMIFS(Data!$E:$E,Data!$B:$B,'18'!I$22,Data!$C:$C,'18'!$A$22,Data!$D:$D,'18'!$A30,Data!$F:$F,'18'!$A$21))","v":97.690531177829115},{"$f":"IF(SUMIFS(Data!$E:$E,Data!$B:$B,'18'!J$22,Data!$C:$C,'18'!$A$22,Data!$D:$D,'18'!$A30,Data!$F:$F,'18'!$A$21)=0,\"-\",SUMIFS(Data!$E:$E,Data!$B:$B,'18'!J$22,Data!$C:$C,'18'!$A$22,Data!$D:$D,'18'!$A30,Data!$F:$F,'18'!$A$21))","v":95.27272727272728},{"$f":"IF(SUMIFS(Data!$E:$E,Data!$B:$B,'18'!K$22,Data!$C:$C,'18'!$A$22,Data!$D:$D,'18'!$A30,Data!$F:$F,'18'!$A$21)=0,\"-\",SUMIFS(Data!$E:$E,Data!$B:$B,'18'!K$22,Data!$C:$C,'18'!$A$22,Data!$D:$D,'18'!$A30,Data!$F:$F,'18'!$A$21))","v":94.787644787644822}]
[{"$f":"VLOOKUP(\"Ontario\",Translation!$A$1:$C$354, Translation!A1+1, 0)","v":"Ontario"},{"$f":"IF(SUMIFS(Data!$E:$E,Data!$B:$B,'18'!B$22,Data!$C:$C,'18'!$A$22,Data!$D:$D,'18'!$A31,Data!$F:$F,'18'!$A$21)=0,\"-\",SUMIFS(Data!$E:$E,Data!$B:$B,'18'!B$22,Data!$C:$C,'18'!$A$22,Data!$D:$D,'18'!$A31,Data!$F:$F,'18'!$A$21))","v":96.621004566210019},{"$f":"IF(SUMIFS(Data!$E:$E,Data!$B:$B,'18'!C$22,Data!$C:$C,'18'!$A$22,Data!$D:$D,'18'!$A31,Data!$F:$F,'18'!$A$21)=0,\"-\",SUMIFS(Data!$E:$E,Data!$B:$B,'18'!C$22,Data!$C:$C,'18'!$A$22,Data!$D:$D,'18'!$A31,Data!$F:$F,'18'!$A$21))","v":92.932120363890817},{"$f":"IF(SUMIFS(Data!$E:$E,Data!$B:$B,'18'!D$22,Data!$C:$C,'18'!$A$22,Data!$D:$D,'18'!$A31,Data!$F:$F,'18'!$A$21)=0,\"-\",SUMIFS(Data!$E:$E,Data!$B:$B,'18'!D$22,Data!$C:$C,'18'!$A$22,Data!$D:$D,'18'!$A31,Data!$F:$F,'18'!$A$21))","v":92.16549295774648},{"$f":"IF(SUMIFS(Data!$E:$E,Data!$B:$B,'18'!E$22,Data!$C:$C,'18'!$A$22,Data!$D:$D,'18'!$A31,Data!$F:$F,'18'!$A$21)=0,\"-\",SUMIFS(Data!$E:$E,Data!$B:$B,'18'!E$22,Data!$C:$C,'18'!$A$22,Data!$D:$D,'18'!$A31,Data!$F:$F,'18'!$A$21))","v":94.114241605557723},{"$f":"IF(SUMIFS(Data!$E:$E,Data!$B:$B,'18'!F$22,Data!$C:$C,'18'!$A$22,Data!$D:$D,'18'!$A31,Data!$F:$F,'18'!$A$21)=0,\"-\",SUMIFS(Data!$E:$E,Data!$B:$B,'18'!F$22,Data!$C:$C,'18'!$A$22,Data!$D:$D,'18'!$A31,Data!$F:$F,'18'!$A$21))","v":93.791946308724832},{"$f":"IF(SUMIFS(Data!$E:$E,Data!$B:$B,'18'!G$22,Data!$C:$C,'18'!$A$22,Data!$D:$D,'18'!$A31,Data!$F:$F,'18'!$A$21)=0,\"-\",SUMIFS(Data!$E:$E,Data!$B:$B,'18'!G$22,Data!$C:$C,'18'!$A$22,Data!$D:$D,'18'!$A31,Data!$F:$F,'18'!$A$21))","v":92.777777777777771},{"$f":"IF(SUMIFS(Data!$E:$E,Data!$B:$B,'18'!H$22,Data!$C:$C,'18'!$A$22,Data!$D:$D,'18'!$A31,Data!$F:$F,'18'!$A$21)=0,\"-\",SUMIFS(Data!$E:$E,Data!$B:$B,'18'!H$22,Data!$C:$C,'18'!$A$22,Data!$D:$D,'18'!$A31,Data!$F:$F,'18'!$A$21))","v":96.093477502615983},{"$f":"IF(SUMIFS(Data!$E:$E,Data!$B:$B,'18'!I$22,Data!$C:$C,'18'!$A$22,Data!$D:$D,'18'!$A31,Data!$F:$F,'18'!$A$21)=0,\"-\",SUMIFS(Data!$E:$E,Data!$B:$B,'18'!I$22,Data!$C:$C,'18'!$A$22,Data!$D:$D,'18'!$A31,Data!$F:$F,'18'!$A$21))","v":91.903409090909108},{"$f":"IF(SUMIFS(Data!$E:$E,Data!$B:$B,'18'!J$22,Data!$C:$C,'18'!$A$22,Data!$D:$D,'18'!$A31,Data!$F:$F,'18'!$A$21)=0,\"-\",SUMIFS(Data!$E:$E,Data!$B:$B,'18'!J$22,Data!$C:$C,'18'!$A$22,Data!$D:$D,'18'!$A31,Data!$F:$F,'18'!$A$21))","v":96.621004566210019},{"$f":"IF(SUMIFS(Data!$E:$E,Data!$B:$B,'18'!K$22,Data!$C:$C,'18'!$A$22,Data!$D:$D,'18'!$A31,Data!$F:$F,'18'!$A$21)=0,\"-\",SUMIFS(Data!$E:$E,Data!$B:$B,'18'!K$22,Data!$C:$C,'18'!$A$22,Data!$D:$D,'18'!$A31,Data!$F:$F,'18'!$A$21))","v":93.791946308724832}]
[{"$f":"VLOOKUP(\"Manitoba\",Translation!$A$1:$C$354, Translation!A1+1, 0)","v":"Manitoba"},{"$f":"IF(SUMIFS(Data!$E:$E,Data!$B:$B,'18'!B$22,Data!$C:$C,'18'!$A$22,Data!$D:$D,'18'!$A32,Data!$F:$F,'18'!$A$21)=0,\"-\",SUMIFS(Data!$E:$E,Data!$B:$B,'18'!B$22,Data!$C:$C,'18'!$A$22,Data!$D:$D,'18'!$A32,Data!$F:$F,'18'!$A$21))","v":98.076923076923052},{"$f":"IF(SUMIFS(Data!$E:$E,Data!$B:$B,'18'!C$22,Data!$C:$C,'18'!$A$22,Data!$D:$D,'18'!$A32,Data!$F:$F,'18'!$A$21)=0,\"-\",SUMIFS(Data!$E:$E,Data!$B:$B,'18'!C$22,Data!$C:$C,'18'!$A$22,Data!$D:$D,'18'!$A32,Data!$F:$F,'18'!$A$21))","v":93.518518518518533},{"$f":"IF(SUMIFS(Data!$E:$E,Data!$B:$B,'18'!D$22,Data!$C:$C,'18'!$A$22,Data!$D:$D,'18'!$A32,Data!$F:$F,'18'!$A$21)=0,\"-\",SUMIFS(Data!$E:$E,Data!$B:$B,'18'!D$22,Data!$C:$C,'18'!$A$22,Data!$D:$D,'18'!$A32,Data!$F:$F,'18'!$A$21))","v":97.142857142857125},{"$f":"IF(SUMIFS(Data!$E:$E,Data!$B:$B,'18'!E$22,Data!$C:$C,'18'!$A$22,Data!$D:$D,'18'!$A32,Data!$F:$F,'18'!$A$21)=0,\"-\",SUMIFS(Data!$E:$E,Data!$B:$B,'18'!E$22,Data!$C:$C,'18'!$A$22,Data!$D:$D,'18'!$A32,Data!$F:$F,'18'!$A$21))","v":94.573643410852668},{"$f":"IF(SUMIFS(Data!$E:$E,Data!$B:$B,'18'!F$22,Data!$C:$C,'18'!$A$22,Data!$D:$D,'18'!$A32,Data!$F:$F,'18'!$A$21)=0,\"-\",SUMIFS(Data!$E:$E,Data!$B:$B,'18'!F$22,Data!$C:$C,'18'!$A$22,Data!$D:$D,'18'!$A32,Data!$F:$F,'18'!$A$21))","v":96.969696969696983},{"$f":"IF(SUMIFS(Data!$E:$E,Data!$B:$B,'18'!G$22,Data!$C:$C,'18'!$A$22,Data!$D:$D,'18'!$A32,Data!$F:$F,'18'!$A$21)=0,\"-\",SUMIFS(Data!$E:$E,Data!$B:$B,'18'!G$22,Data!$C:$C,'18'!$A$22,Data!$D:$D,'18'!$A32,Data!$F:$F,'18'!$A$21))","v":93.650793650793617},{"$f":"IF(SUMIFS(Data!$E:$E,Data!$B:$B,'18'!H$22,Data!$C:$C,'18'!$A$22,Data!$D:$D,'18'!$A32,Data!$F:$F,'18'!$A$21)=0,\"-\",SUMIFS(Data!$E:$E,Data!$B:$B,'18'!H$22,Data!$C:$C,'18'!$A$22,Data!$D:$D,'18'!$A32,Data!$F:$F,'18'!$A$21))","v":96.774193548387117},{"$f":"IF(SUMIFS(Data!$E:$E,Data!$B:$B,'18'!I$22,Data!$C:$C,'18'!$A$22,Data!$D:$D,'18'!$A32,Data!$F:$F,'18'!$A$21)=0,\"-\",SUMIFS(Data!$E:$E,Data!$B:$B,'18'!I$22,Data!$C:$C,'18'!$A$22,Data!$D:$D,'18'!$A32,Data!$F:$F,'18'!$A$21))","v":98.41269841269839},{"$f":"IF(SUMIFS(Data!$E:$E,Data!$B:$B,'18'!J$22,Data!$C:$C,'18'!$A$22,Data!$D:$D,'18'!$A32,Data!$F:$F,'18'!$A$21)=0,\"-\",SUMIFS(Data!$E:$E,Data!$B:$B,'18'!J$22,Data!$C:$C,'18'!$A$22,Data!$D:$D,'18'!$A32,Data!$F:$F,'18'!$A$21))","v":98.076923076923052},{"$f":"IF(SUMIFS(Data!$E:$E,Data!$B:$B,'18'!K$22,Data!$C:$C,'18'!$A$22,Data!$D:$D,'18'!$A32,Data!$F:$F,'18'!$A$21)=0,\"-\",SUMIFS(Data!$E:$E,Data!$B:$B,'18'!K$22,Data!$C:$C,'18'!$A$22,Data!$D:$D,'18'!$A32,Data!$F:$F,'18'!$A$21))","v":96.969696969696983}]
[{"$f":"VLOOKUP(\"Saskatchewan\",Translation!$A$1:$C$354, Translation!A1+1, 0)","v":"Saskatchewan"},{"$f":"IF(SUMIFS(Data!$E:$E,Data!$B:$B,'18'!B$22,Data!$C:$C,'18'!$A$22,Data!$D:$D,'18'!$A33,Data!$F:$F,'18'!$A$21)=0,\"-\",SUMIFS(Data!$E:$E,Data!$B:$B,'18'!B$22,Data!$C:$C,'18'!$A$22,Data!$D:$D,'18'!$A33,Data!$F:$F,'18'!$A$21))","v":92.857142857142875},{"$f":"IF(SUMIFS(Data!$E:$E,Data!$B:$B,'18'!C$22,Data!$C:$C,'18'!$A$22,Data!$D:$D,'18'!$A33,Data!$F:$F,'18'!$A$21)=0,\"-\",SUMIFS(Data!$E:$E,Data!$B:$B,'18'!C$22,Data!$C:$C,'18'!$A$22,Data!$D:$D,'18'!$A33,Data!$F:$F,'18'!$A$21))","v":84.112149532710305},{"$f":"IF(SUMIFS(Data!$E:$E,Data!$B:$B,'18'!D$22,Data!$C:$C,'18'!$A$22,Data!$D:$D,'18'!$A33,Data!$F:$F,'18'!$A$21)=0,\"-\",SUMIFS(Data!$E:$E,Data!$B:$B,'18'!D$22,Data!$C:$C,'18'!$A$22,Data!$D:$D,'18'!$A33,Data!$F:$F,'18'!$A$21))","v":71.590909090909108},{"$f":"IF(SUMIFS(Data!$E:$E,Data!$B:$B,'18'!E$22,Data!$C:$C,'18'!$A$22,Data!$D:$D,'18'!$A33,Data!$F:$F,'18'!$A$21)=0,\"-\",SUMIFS(Data!$E:$E,Data!$B:$B,'18'!E$22,Data!$C:$C,'18'!$A$22,Data!$D:$D,'18'!$A33,Data!$F:$F,'18'!$A$21))","v":89.878542510121477},{"$f":"IF(SUMIFS(Data!$E:$E,Data!$B:$B,'18'!F$22,Data!$C:$C,'18'!$A$22,Data!$D:$D,'18'!$A33,Data!$F:$F,'18'!$A$21)=0,\"-\",SUMIFS(Data!$E:$E,Data!$B:$B,'18'!F$22,Data!$C:$C,'18'!$A$22,Data!$D:$D,'18'!$A33,Data!$F:$F,'18'!$A$21))","v":83.75},{"$f":"IF(SUMIFS(Data!$E:$E,Data!$B:$B,'18'!G$22,Data!$C:$C,'18'!$A$22,Data!$D:$D,'18'!$A33,Data!$F:$F,'18'!$A$21)=0,\"-\",SUMIFS(Data!$E:$E,Data!$B:$B,'18'!G$22,Data!$C:$C,'18'!$A$22,Data!$D:$D,'18'!$A33,Data!$F:$F,'18'!$A$21))","v":80.859375},{"$f":"IF(SUMIFS(Data!$E:$E,Data!$B:$B,'18'!H$22,Data!$C:$C,'18'!$A$22,Data!$D:$D,'18'!$A33,Data!$F:$F,'18'!$A$21)=0,\"-\",SUMIFS(Data!$E:$E,Data!$B:$B,'18'!H$22,Data!$C:$C,'18'!$A$22,Data!$D:$D,'18'!$A33,Data!$F:$F,'18'!$A$21))","v":84.242424242424235},{"$f":"IF(SUMIFS(Data!$E:$E,Data!$B:$B,'18'!I$22,Data!$C:$C,'18'!$A$22,Data!$D:$D,'18'!$A33,Data!$F:$F,'18'!$A$21)=0,\"-\",SUMIFS(Data!$E:$E,Data!$B:$B,'18'!I$22,Data!$C:$C,'18'!$A$22,Data!$D:$D,'18'!$A33,Data!$F:$F,'18'!$A$21))","v":87.128712871287121},{"$f":"IF(SUMIFS(Data!$E:$E,Data!$B:$B,'18'!J$22,Data!$C:$C,'18'!$A$22,Data!$D:$D,'18'!$A33,Data!$F:$F,'18'!$A$21)=0,\"-\",SUMIFS(Data!$E:$E,Data!$B:$B,'18'!J$22,Data!$C:$C,'18'!$A$22,Data!$D:$D,'18'!$A33,Data!$F:$F,'18'!$A$21))","v":92.857142857142875},{"$f":"IF(SUMIFS(Data!$E:$E,Data!$B:$B,'18'!K$22,Data!$C:$C,'18'!$A$22,Data!$D:$D,'18'!$A33,Data!$F:$F,'18'!$A$21)=0,\"-\",SUMIFS(Data!$E:$E,Data!$B:$B,'18'!K$22,Data!$C:$C,'18'!$A$22,Data!$D:$D,'18'!$A33,Data!$F:$F,'18'!$A$21))","v":83.75}]
[{"$f":"VLOOKUP(\"Alberta\",Translation!$A$1:$C$354, Translation!A1+1, 0)","v":"Alberta"},{"$f":"IF(SUMIFS(Data!$E:$E,Data!$B:$B,'18'!B$22,Data!$C:$C,'18'!$A$22,Data!$D:$D,'18'!$A34,Data!$F:$F,'18'!$A$21)=0,\"-\",SUMIFS(Data!$E:$E,Data!$B:$B,'18'!B$22,Data!$C:$C,'18'!$A$22,Data!$D:$D,'18'!$A34,Data!$F:$F,'18'!$A$21))","v":99.567099567099604},{"$f":"IF(SUMIFS(Data!$E:$E,Data!$B:$B,'18'!C$22,Data!$C:$C,'18'!$A$22,Data!$D:$D,'18'!$A34,Data!$F:$F,'18'!$A$21)=0,\"-\",SUMIFS(Data!$E:$E,Data!$B:$B,'18'!C$22,Data!$C:$C,'18'!$A$22,Data!$D:$D,'18'!$A34,Data!$F:$F,'18'!$A$21))","v":97.375},{"$f":"IF(SUMIFS(Data!$E:$E,Data!$B:$B,'18'!D$22,Data!$C:$C,'18'!$A$22,Data!$D:$D,'18'!$A34,Data!$F:$F,'18'!$A$21)=0,\"-\",SUMIFS(Data!$E:$E,Data!$B:$B,'18'!D$22,Data!$C:$C,'18'!$A$22,Data!$D:$D,'18'!$A34,Data!$F:$F,'18'!$A$21))","v":98.857142857142875},{"$f":"IF(SUMIFS(Data!$E:$E,Data!$B:$B,'18'!E$22,Data!$C:$C,'18'!$A$22,Data!$D:$D,'18'!$A34,Data!$F:$F,'18'!$A$21)=0,\"-\",SUMIFS(Data!$E:$E,Data!$B:$B,'18'!E$22,Data!$C:$C,'18'!$A$22,Data!$D:$D,'18'!$A34,Data!$F:$F,'18'!$A$21))","v":97.548161120840646},{"$f":"IF(SUMIFS(Data!$E:$E,Data!$B:$B,'18'!F$22,Data!$C:$C,'18'!$A$22,Data!$D:$D,'18'!$A34,Data!$F:$F,'18'!$A$21)=0,\"-\",SUMIFS(Data!$E:$E,Data!$B:$B,'18'!F$22,Data!$C:$C,'18'!$A$22,Data!$D:$D,'18'!$A34,Data!$F:$F,'18'!$A$21))","v":97.971014492753611},{"$f":"IF(SUMIFS(Data!$E:$E,Data!$B:$B,'18'!G$22,Data!$C:$C,'18'!$A$22,Data!$D:$D,'18'!$A34,Data!$F:$F,'18'!$A$21)=0,\"-\",SUMIFS(Data!$E:$E,Data!$B:$B,'18'!G$22,Data!$C:$C,'18'!$A$22,Data!$D:$D,'18'!$A34,Data!$F:$F,'18'!$A$21))","v":93.9443535188216},{"$f":"IF(SUMIFS(Data!$E:$E,Data!$B:$B,'18'!H$22,Data!$C:$C,'18'!$A$22,Data!$D:$D,'18'!$A34,Data!$F:$F,'18'!$A$21)=0,\"-\",SUMIFS(Data!$E:$E,Data!$B:$B,'18'!H$22,Data!$C:$C,'18'!$A$22,Data!$D:$D,'18'!$A34,Data!$F:$F,'18'!$A$21))","v":98.897058823529406},{"$f":"IF(SUMIFS(Data!$E:$E,Data!$B:$B,'18'!I$22,Data!$C:$C,'18'!$A$22,Data!$D:$D,'18'!$A34,Data!$F:$F,'18'!$A$21)=0,\"-\",SUMIFS(Data!$E:$E,Data!$B:$B,'18'!I$22,Data!$C:$C,'18'!$A$22,Data!$D:$D,'18'!$A34,Data!$F:$F,'18'!$A$21))","v":98.775510204081627},{"$f":"IF(SUMIFS(Data!$E:$E,Data!$B:$B,'18'!J$22,Data!$C:$C,'18'!$A$22,Data!$D:$D,'18'!$A34,Data!$F:$F,'18'!$A$21)=0,\"-\",SUMIFS(Data!$E:$E,Data!$B:$B,'18'!J$22,Data!$C:$C,'18'!$A$22,Data!$D:$D,'18'!$A34,Data!$F:$F,'18'!$A$21))","v":99.567099567099604},{"$f":"IF(SUMIFS(Data!$E:$E,Data!$B:$B,'18'!K$22,Data!$C:$C,'18'!$A$22,Data!$D:$D,'18'!$A34,Data!$F:$F,'18'!$A$21)=0,\"-\",SUMIFS(Data!$E:$E,Data!$B:$B,'18'!K$22,Data!$C:$C,'18'!$A$22,Data!$D:$D,'18'!$A34,Data!$F:$F,'18'!$A$21))","v":97.971014492753611}]
[{"$f":"VLOOKUP(\"British Columbia\",Translation!$A$1:$C$354, Translation!A1+1, 0)","v":"Colombie-Britannique"},{"$f":"IF(SUMIFS(Data!$E:$E,Data!$B:$B,'18'!B$22,Data!$C:$C,'18'!$A$22,Data!$D:$D,'18'!$A35,Data!$F:$F,'18'!$A$21)=0,\"-\",SUMIFS(Data!$E:$E,Data!$B:$B,'18'!B$22,Data!$C:$C,'18'!$A$22,Data!$D:$D,'18'!$A35,Data!$F:$F,'18'!$A$21))","v":95.189639222941722},{"$f":"IF(SUMIFS(Data!$E:$E,Data!$B:$B,'18'!C$22,Data!$C:$C,'18'!$A$22,Data!$D:$D,'18'!$A35,Data!$F:$F,'18'!$A$21)=0,\"-\",SUMIFS(Data!$E:$E,Data!$B:$B,'18'!C$22,Data!$C:$C,'18'!$A$22,Data!$D:$D,'18'!$A35,Data!$F:$F,'18'!$A$21))","v":96.307692307692321},{"$f":"IF(SUMIFS(Data!$E:$E,Data!$B:$B,'18'!D$22,Data!$C:$C,'18'!$A$22,Data!$D:$D,'18'!$A35,Data!$F:$F,'18'!$A$21)=0,\"-\",SUMIFS(Data!$E:$E,Data!$B:$B,'18'!D$22,Data!$C:$C,'18'!$A$22,Data!$D:$D,'18'!$A35,Data!$F:$F,'18'!$A$21))","v":97.969543147208157},{"$f":"IF(SUMIFS(Data!$E:$E,Data!$B:$B,'18'!E$22,Data!$C:$C,'18'!$A$22,Data!$D:$D,'18'!$A35,Data!$F:$F,'18'!$A$21)=0,\"-\",SUMIFS(Data!$E:$E,Data!$B:$B,'18'!E$22,Data!$C:$C,'18'!$A$22,Data!$D:$D,'18'!$A35,Data!$F:$F,'18'!$A$21))","v":95.695754716981114},{"$f":"IF(SUMIFS(Data!$E:$E,Data!$B:$B,'18'!F$22,Data!$C:$C,'18'!$A$22,Data!$D:$D,'18'!$A35,Data!$F:$F,'18'!$A$21)=0,\"-\",SUMIFS(Data!$E:$E,Data!$B:$B,'18'!F$22,Data!$C:$C,'18'!$A$22,Data!$D:$D,'18'!$A35,Data!$F:$F,'18'!$A$21))","v":97.326203208556166},{"$f":"IF(SUMIFS(Data!$E:$E,Data!$B:$B,'18'!G$22,Data!$C:$C,'18'!$A$22,Data!$D:$D,'18'!$A35,Data!$F:$F,'18'!$A$21)=0,\"-\",SUMIFS(Data!$E:$E,Data!$B:$B,'18'!G$22,Data!$C:$C,'18'!$A$22,Data!$D:$D,'18'!$A35,Data!$F:$F,'18'!$A$21))","v":81.481481481481467},{"$f":"IF(SUMIFS(Data!$E:$E,Data!$B:$B,'18'!H$22,Data!$C:$C,'18'!$A$22,Data!$D:$D,'18'!$A35,Data!$F:$F,'18'!$A$21)=0,\"-\",SUMIFS(Data!$E:$E,Data!$B:$B,'18'!H$22,Data!$C:$C,'18'!$A$22,Data!$D:$D,'18'!$A35,Data!$F:$F,'18'!$A$21))","v":96.76531314521678},{"$f":"IF(SUMIFS(Data!$E:$E,Data!$B:$B,'18'!I$22,Data!$C:$C,'18'!$A$22,Data!$D:$D,'18'!$A35,Data!$F:$F,'18'!$A$21)=0,\"-\",SUMIFS(Data!$E:$E,Data!$B:$B,'18'!I$22,Data!$C:$C,'18'!$A$22,Data!$D:$D,'18'!$A35,Data!$F:$F,'18'!$A$21))","v":96.100278551532028},{"$f":"IF(SUMIFS(Data!$E:$E,Data!$B:$B,'18'!J$22,Data!$C:$C,'18'!$A$22,Data!$D:$D,'18'!$A35,Data!$F:$F,'18'!$A$21)=0,\"-\",SUMIFS(Data!$E:$E,Data!$B:$B,'18'!J$22,Data!$C:$C,'18'!$A$22,Data!$D:$D,'18'!$A35,Data!$F:$F,'18'!$A$21))","v":95.189639222941722},{"$f":"IF(SUMIFS(Data!$E:$E,Data!$B:$B,'18'!K$22,Data!$C:$C,'18'!$A$22,Data!$D:$D,'18'!$A35,Data!$F:$F,'18'!$A$21)=0,\"-\",SUMIFS(Data!$E:$E,Data!$B:$B,'18'!K$22,Data!$C:$C,'18'!$A$22,Data!$D:$D,'18'!$A35,Data!$F:$F,'18'!$A$21))","v":97.326203208556166}]
[{"$f":"VLOOKUP(\"Territories\",Translation!$A$1:$C$354, Translation!A1+1, 0)","v":"Territoires"},{"$f":"IF(SUMIFS(Data!$E:$E,Data!$B:$B,'18'!B$22,Data!$C:$C,'18'!$A$22,Data!$D:$D,'18'!$A36,Data!$F:$F,'18'!$A$21)=0,\"-\",SUMIFS(Data!$E:$E,Data!$B:$B,'18'!B$22,Data!$C:$C,'18'!$A$22,Data!$D:$D,'18'!$A36,Data!$F:$F,'18'!$A$21))","v":"-"},{"$f":"IF(SUMIFS(Data!$E:$E,Data!$B:$B,'18'!C$22,Data!$C:$C,'18'!$A$22,Data!$D:$D,'18'!$A36,Data!$F:$F,'18'!$A$21)=0,\"-\",SUMIFS(Data!$E:$E,Data!$B:$B,'18'!C$22,Data!$C:$C,'18'!$A$22,Data!$D:$D,'18'!$A36,Data!$F:$F,'18'!$A$21))","v":88.636363636363654},{"$f":"IF(SUMIFS(Data!$E:$E,Data!$B:$B,'18'!D$22,Data!$C:$C,'18'!$A$22,Data!$D:$D,'18'!$A36,Data!$F:$F,'18'!$A$21)=0,\"-\",SUMIFS(Data!$E:$E,Data!$B:$B,'18'!D$22,Data!$C:$C,'18'!$A$22,Data!$D:$D,'18'!$A36,Data!$F:$F,'18'!$A$21))","v":"-"},{"$f":"IF(SUMIFS(Data!$E:$E,Data!$B:$B,'18'!E$22,Data!$C:$C,'18'!$A$22,Data!$D:$D,'18'!$A36,Data!$F:$F,'18'!$A$21)=0,\"-\",SUMIFS(Data!$E:$E,Data!$B:$B,'18'!E$22,Data!$C:$C,'18'!$A$22,Data!$D:$D,'18'!$A36,Data!$F:$F,'18'!$A$21))","v":"-"},{"$f":"IF(SUMIFS(Data!$E:$E,Data!$B:$B,'18'!F$22,Data!$C:$C,'18'!$A$22,Data!$D:$D,'18'!$A36,Data!$F:$F,'18'!$A$21)=0,\"-\",SUMIFS(Data!$E:$E,Data!$B:$B,'18'!F$22,Data!$C:$C,'18'!$A$22,Data!$D:$D,'18'!$A36,Data!$F:$F,'18'!$A$21))","v":100},{"$f":"IF(SUMIFS(Data!$E:$E,Data!$B:$B,'18'!G$22,Data!$C:$C,'18'!$A$22,Data!$D:$D,'18'!$A36,Data!$F:$F,'18'!$A$21)=0,\"-\",SUMIFS(Data!$E:$E,Data!$B:$B,'18'!G$22,Data!$C:$C,'18'!$A$22,Data!$D:$D,'18'!$A36,Data!$F:$F,'18'!$A$21))","v":"-"},{"$f":"IF(SUMIFS(Data!$E:$E,Data!$B:$B,'18'!H$22,Data!$C:$C,'18'!$A$22,Data!$D:$D,'18'!$A36,Data!$F:$F,'18'!$A$21)=0,\"-\",SUMIFS(Data!$E:$E,Data!$B:$B,'18'!H$22,Data!$C:$C,'18'!$A$22,Data!$D:$D,'18'!$A36,Data!$F:$F,'18'!$A$21))","v":"-"},{"$f":"IF(SUMIFS(Data!$E:$E,Data!$B:$B,'18'!I$22,Data!$C:$C,'18'!$A$22,Data!$D:$D,'18'!$A36,Data!$F:$F,'18'!$A$21)=0,\"-\",SUMIFS(Data!$E:$E,Data!$B:$B,'18'!I$22,Data!$C:$C,'18'!$A$22,Data!$D:$D,'18'!$A36,Data!$F:$F,'18'!$A$21))","v":"-"},{"$f":"IF(SUMIFS(Data!$E:$E,Data!$B:$B,'18'!J$22,Data!$C:$C,'18'!$A$22,Data!$D:$D,'18'!$A36,Data!$F:$F,'18'!$A$21)=0,\"-\",SUMIFS(Data!$E:$E,Data!$B:$B,'18'!J$22,Data!$C:$C,'18'!$A$22,Data!$D:$D,'18'!$A36,Data!$F:$F,'18'!$A$21))","v":"-"},{"$f":"IF(SUMIFS(Data!$E:$E,Data!$B:$B,'18'!K$22,Data!$C:$C,'18'!$A$22,Data!$D:$D,'18'!$A36,Data!$F:$F,'18'!$A$21)=0,\"-\",SUMIFS(Data!$E:$E,Data!$B:$B,'18'!K$22,Data!$C:$C,'18'!$A$22,Data!$D:$D,'18'!$A36,Data!$F:$F,'18'!$A$21))","v":100}]
[{"$f":"VLOOKUP(\"Portfolio distributions do not include substitutions volumes for Portfolio insurance.\",Translation!$A$1:$C$354, Translation!A1+1, 0)","v":"La répartition des prêts hypothécaires pour l'assurance de portefeuille ne comprend pas les prêts de remplacement. "}]
[{"$f":"VLOOKUP(\"Distribution based on number of units, not number of loans.\",Translation!$A$1:$C$354, Translation!A1+1, 0)","v":"La répartition est établie d'après le nombre de logements, plutôt que le nombre de prêts assurés."}]
[{"$f":"VLOOKUP(\"The sum of all breakdown categories may not add up to 100 due to rounding.\",Translation!$A$1:$C$354, Translation!A1+1, 0)","v":"Les chiffres ayant été arrondis, il se peut que la somme de l'ensemble des catégories n'égale pas 100 %."}]

{"sheet":"19","index":20,"n_rows":42,"n_cols":12,"rows_kept":42,"cut":false,"hidden":false,"merged":[[2,0,3,0],[22,0,23,0],[0,4,0,9],[22,1,22,11],[2,1,2,11]]}
[{"$f":"VLOOKUP(\"TRANSACTIONAL HOMEOWNER AND PORTFOLIO - URBAN/RURAL\",Translation!$A$1:$C$354, Translation!A1+1, 0)","v":"PROPRIÉTAIRES-OCCUPANTS (À L’UNITÉ) ET ASSURANCE DE PORTEFEUILLE - URBAIN/RURAL"},null,null,null,{"$f":"VLOOKUP(\"Back to Table of Contents\",Translation!$A$1:$C$354, Translation!A1+1, 0)","v":"Retour à la table des matières"}]
[{"$f":"VLOOKUP(\"Insurance-in-force by urban and rural type (%)\",Translation!$A$1:$C$354, Translation!A1+1, 0)","v":"Contrats d’assurance en vigueur selon le milieu urbain/rural (%)"}]
[{"$f":"VLOOKUP(\"TRANSACTIONAL HOMEOWNER\",Translation!$A$1:$C$354, Translation!A1+1, 0)","v":"PROPRIÉTAIRES-OCCUPANTS, À L’UNITÉ"},{"$f":"VLOOKUP(\"As at\",Translation!$A$1:$C$354,Translation!A1+1,0)","v":"Aux"}]
[null,{"$f":"VLOOKUP(\"Q1 2020\",Translation!$A$1:$C$354, Translation!$A1+1, 0)","v":"T1 2020"},{"$f":"VLOOKUP(\"Q4 2019\",Translation!$A$1:$C$354, Translation!$A1+1, 0)","v":"T4 2019"},{"$f":"VLOOKUP(\"Q3 2019\",Translation!$A$1:$C$354, Translation!$A1+1, 0)","v":"T3 2019"},{"$f":"VLOOKUP(\"Q2 2019\",Translation!$A$1:$C$354, Translation!$A1+1, 0)","v":"T2 2019"},{"$f":"VLOOKUP(\"Q1 2019\",Translation!$A$1:$C$354, Translation!$A1+1, 0)","v":"T1 2019"},{"$f":"VLOOKUP(\"Q4 2018\",Translation!$A$1:$C$354, Translation!A1+1, 0)","v":"T4 2018"},{"$f":"VLOOKUP(\"Q3 2018\",Translation!$A$1:$C$354, Translation!A1+1, 0)","v":"T3 2018"},{"$f":"VLOOKUP(\"Q2 2018\",Translation!$A$1:$C$354, Translation!A1+1, 0)","v":"T2 2018"},{"$f":"VLOOKUP(\"Q1 2018\",Translation!$A$1:$C$354, Translation!A1+1, 0)","v":"T1 2018"},{"$f":"VLOOKUP(\"Q4 2017\",Translation!$A$1:$C$354, Translation!A1+1, 0)","v":"T4 2017"},{"$f":"VLOOKUP(\"Q3 2017\",Translation!$A$1:$C$354, Translation!A1+1, 0)","v":"T3 2017"}]
[{"$f":"VLOOKUP(\"Urban\",Translation!$A$1:$C$354, Translation!A1+1, 0)","v":"Urbain"},90.63146760247399,90.625788896841073,90.669603266229331,90.705582933043402,90.756182215190989,90.756550521019093,90.790873837983241,90.852042963803697,90.881408949570769,90.904739818341824,90.984716903455421]
[{"$f":"VLOOKUP(\"Rural\",Translation!$A$1:$C$354, Translation!A1+1, 0)","v":"Rural"},9.3685323974055716,9.3742111030201123,9.3303967337479037,9.2944170672446251,9.2438177848062999,9.2434494785253918,9.2091261618997784,9.1479570361885276,9.118591049889833,9.0952601817684524,9.0152830968363933]
[{"$f":"VLOOKUP(\"Urban properties by province (%)\",Translation!$A$1:$C$354, Translation!A1+1, 0)","v":"Propriétés urbaines selon la province (%)"}]
[{"$f":"VLOOKUP(\"Newfoundland and Labrador\",Translation!$A$1:$C$354, Translation!A1+1, 0)","v":"Terre-Neuve-et-Labrador"},77.949521456656996,78.078883445631504,77.900000000000006,77.853513661271037,77.85779438590734,77.639445385146416,77.682843435165964,77.678541816616985,77.556319959106872,77.488582359675434,77.502177041019749]
[{"$f":"VLOOKUP(\"Prince Edward Island\",Translation!$A$1:$C$354, Translation!A1+1, 0)","v":"Île-du-Prince-Édouard"},74.937568723424178,74.819792846042816,74.7,74.583408282654034,74.842510891785793,75.276039581789391,75.209085258079739,75.093259127806007,75.020842571609535,74.98410656019071,74.721092813766347]
[{"$f":"VLOOKUP(\"Nova Scotia\",Translation!$A$1:$C$354, Translation!A1+1, 0)","v":"Nouvelle-Écosse"},85.956592713119363,85.930219643321493,85.9,85.554508097173084,85.770427787506165,85.819747166260186,85.749947436534697,85.637609253486815,85.126214903907709,85.548326140013515,85.362962806944367]
[{"$f":"VLOOKUP(\"New Brunswick\",Translation!$A$1:$C$354, Translation!A1+1, 0)","v":"Nouveau-Brunswick"},73.806693275607557,73.795315175973826,73.900000000000006,73.811135155816217,73.727298492898313,73.659559613318464,73.690889367170129,73.72838962639301,73.67152760197888,73.603818130268749,73.643985317883335]
[{"$f":"VLOOKUP(\"Quebec\",Translation!$A$1:$C$354, Translation!A1+1, 0)","v":"Québec"},87.426891228240777,87.425167402548936,87.5,87.581932774265454,87.618928898273012,87.625529612624646,87.655609909215045,87.723112337345384,87.71277671354261,87.632181496418866,87.75439603231176]
[{"$f":"VLOOKUP(\"Ontario\",Translation!$A$1:$C$354, Translation!A1+1, 0)","v":"Ontario"},93.935354065247793,93.912242952243304,93.9,93.943500065115359,93.996822577963826,94.010786369961181,94.039667937715805,94.116880841477766,94.152331412824324,94.20555807588326,94.296581518666173]
[{"$f":"VLOOKUP(\"Manitoba\",Translation!$A$1:$C$354, Translation!A1+1, 0)","v":"Manitoba"},88.820116944395679,88.871047534680997,88.9,88.871953230843985,88.848267040001488,88.806835361152935,88.884321933878525,88.923055161568115,88.872305421465356,88.856592125786804,88.782543502020445]
[{"$f":"VLOOKUP(\"Saskatchewan\",Translation!$A$1:$C$354, Translation!A1+1, 0)","v":"Saskatchewan"},84.936752515063588,84.946315354285019,84.9,84.78695210097402,84.675310494699843,84.640028804586308,84.603943408714954,84.544602770523554,84.550624513591245,84.55674529462803,84.527264891727413]
[{"$f":"VLOOKUP(\"Alberta\",Translation!$A$1:$C$354, Translation!A1+1, 0)","v":"Alberta"},95.198131724969855,95.178838961444285,95.2,95.230209101865341,95.155774433700486,95.135956889087723,95.114154688898608,95.111975228891026,95.109530183633055,95.084168788722778,95.083962008157755]
[{"$f":"VLOOKUP(\"British Columbia\",Translation!$A$1:$C$354, Translation!A1+1, 0)","v":"Colombie-Britannique"},89.56861757306001,89.601202947895842,89.8,89.907480978921981,90.008879692345971,90.019962276632128,90.174916601571709,90.322157839715899,90.480755308799957,90.620302797981253,90.796263313837215]
[{"$f":"VLOOKUP(\"Territories\",Translation!$A$1:$C$354, Translation!A1+1, 0)","v":"Territoires"},77.53027606502468,77.470079200178503,77.8,77.750674123694552,77.674627186794027,77.684022972614414,77.76201920803345,77.774751723077955,77.684536197926022,77.638060949567034,77.440133106214788]
[{"$f":"VLOOKUP(\"Distribution based on outstanding loan amounts, not number of loans.\",Translation!$A$1:$C$354, Translation!A1+1, 0)","v":"La répartition est établie d'après le solde, plutôt que le nombre de prêts assurés."}]
[{"$f":"VLOOKUP(\"The sum of all breakdown categories may not add up to 100 due to rounding.\",Translation!$A$1:$C$354, Translation!A1+1, 0)","v":"Les chiffres ayant été arrondis, il se peut que la somme de l'ensemble des catégories n'égale pas 100 %."}]
[]
[{"$f":"VLOOKUP(\"Insurance-in-force by urban and rural type (%)\",Translation!$A$1:$C$354, Translation!A1+1, 0)","v":"Contrats d’assurance en vigueur selon le milieu urbain/rural (%)"}]
[{"$f":"VLOOKUP(\"PORTFOLIO\",Translation!$A$1:$C$354, Translation!A1+1, 0)","v":"ASSURANCE DE PORTEFEUILLE"},{"$f":"VLOOKUP(\"As at\",Translation!$A$1:$C$354,Translation!A1+1,0)","v":"Aux"}]
[null,{"$f":"VLOOKUP(\"Q1 2020\",Translation!$A$1:$C$354, Translation!$A1+1, 0)","v":"T1 2020"},{"$f":"VLOOKUP(\"Q4 2019\",Translation!$A$1:$C$354, Translation!$A1+1, 0)","v":"T4 2019"},{"$f":"VLOOKUP(\"Q3 2019\",Translation!$A$1:$C$354, Translation!$A1+1, 0)","v":"T3 2019"},{"$f":"VLOOKUP(\"Q2 2019\",Translation!$A$1:$C$354, Translation!$A1+1, 0)","v":"T2 2019"},{"$f":"VLOOKUP(\"Q1 2019\",Translation!$A$1:$C$354, Translation!$A1+1, 0)","v":"T1 2019"},{"$f":"VLOOKUP(\"Q4 2018\",Translation!$A$1:$C$354, Translation!A1+1, 0)","v":"T4 2018"},{"$f":"VLOOKUP(\"Q3 2018\",Translation!$A$1:$C$354, Translation!A1+1, 0)","v":"T3 2018"},{"$f":"VLOOKUP(\"Q2 2018\",Translation!$A$1:$C$354, Translation!A1+1, 0)","v":"T2 2018"},{"$f":"VLOOKUP(\"Q1 2018\",Translation!$A$1:$C$354, Translation!A1+1, 0)","v":"T1 2018"},{"$f":"VLOOKUP(\"Q4 2017\",Translation!$A$1:$C$354, Translation!A1+1, 0)","v":"T4 2017"},{"$f":"VLOOKUP(\"Q3 2017\",Translation!$A$1:$C$354, Translation!A1+1, 0)","v":"T3 2017"}]
[{"$f":"VLOOKUP(\"Urban\",Translation!$A$1:$C$354, Translation!A1+1, 0)","v":"Urbain"},95.260732483433245,95.232379066269345,95.212912534982735,95.211094783072426,95.200252284044396,95.177791242762126,95.195599910653812,95.175697681893226,95.174802346178623,95.176353989112982,95.176130867939762]
[{"$f":"VLOOKUP(\"Rural\",Translation!$A$1:$C$354, Translation!A1+1, 0)","v":"Rural"},4.7392675165680522,4.7676209337244932,4.7870874650208828,4.7889052169280282,4.7997477159564887,4.8222087572339127,4.8044000893431758,4.824302318101096,4.8251976538097434,4.8236460108784565,4.8238691320606648]
[{"$f":"VLOOKUP(\"Urban properties by province (%)\",Translation!$A$1:$C$354, Translation!A1+1, 0)","v":"Propriétés urbaines selon la province (%)"}]
[{"$f":"VLOOKUP(\"Newfoundland and Labrador\",Translation!$A$1:$C$354, Translation!A1+1, 0)","v":"Terre-Neuve-et-Labrador"},88.152092053710845,88.118709381442329,88.3,88.301606925807405,88.396553353579833,88.336068118792866,88.324948712774813,88.284960813072374,88.383611426451509,88.429193477385056,88.628464397786374]
[{"$f":"VLOOKUP(\"Prince Edward Island\",Translation!$A$1:$C$354, Translation!A1+1, 0)","v":"Île-du-Prince-Édouard"},81.011072702816449,80.97323664872647,81.2,81.321257318510987,81.529352065705339,81.381910619925947,81.614597722971766,81.483131980673932,81.573427298593515,81.450078205544372,81.553458901075402]
[{"$f":"VLOOKUP(\"Nova Scotia\",Translation!$A$1:$C$354, Translation!A1+1, 0)","v":"Nouvelle-Écosse"},91.126489544664281,91.156993596084632,91,91.101721669277694,91.062718793047409,91.030365244455126,90.967124299629276,90.967190557549571,91.059666740158704,90.831862144258665,90.774838073488894]
[{"$f":"VLOOKUP(\"New Brunswick\",Translation!$A$1:$C$354, Translation!A1+1, 0)","v":"Nouveau-Brunswick"},79.69921290380158,79.752076717444126,79.7,79.801580079553446,79.761751375640117,79.732527191579692,79.88527656060927,80.021811977142349,80.195537904711003,80.288129929919478,80.103391907201384]
[{"$f":"VLOOKUP(\"Quebec\",Translation!$A$1:$C$354, Translation!A1+1, 0)","v":"Québec"},92.156332898928227,92.12835254351684,92,91.922657049279138,91.911157780500346,91.883941514111257,91.837992579410113,91.849476362821335,91.865722187243406,91.801219766570014,91.796102645698582]
[{"$f":"VLOOKUP(\"Ontario\",Translation!$A$1:$C$354, Translation!A1+1, 0)","v":"Ontario"},96.065906652832567,96.056597281081437,96.1,96.06033922363963,96.064854649518495,96.052560556092345,96.089130476319795,96.059281823876063,96.078506613812038,96.094759152899016,96.105796299120982]
[{"$f":"VLOOKUP(\"Manitoba\",Translation!$A$1:$C$354, Translation!A1+1, 0)","v":"Manitoba"},93.345480784668808,93.297298012302946,93.2,93.292647421296081,93.297467042609412,93.305383992542616,93.255690114744922,93.279996545892956,93.215590883142184,93.151475669595143,93.161423593125633]
[{"$f":"VLOOKUP(\"Saskatchewan\",Translation!$A$1:$C$354, Translation!A1+1, 0)","v":"Saskatchewan"},92.01116910939021,91.969139445413788,92,92.106343920500322,92.143226007415635,92.067389256821357,92.02517996168082,91.992841117778326,92.015946646162959,92.002680335301463,92.048681443020627]
[{"$f":"VLOOKUP(\"Alberta\",Translation!$A$1:$C$354, Translation!A1+1, 0)","v":"Alberta"},97.490587860506665,97.447455139093137,97.4,97.427897346258803,97.42453939892755,97.401712353679301,97.427837771930825,97.42560624880916,97.410273996591627,97.406268774398285,97.414165271976032]
[{"$f":"VLOOKUP(\"British Columbia\",Translation!$A$1:$C$354, Translation!A1+1, 0)","v":"Colombie-Britannique"},95.696915041620898,95.663244518145689,95.7,95.634523748535344,95.603665607832198,95.578550449343595,95.660462544471386,95.657814606768355,95.636210846171821,95.648114133100876,95.612232243270782]
[{"$f":"VLOOKUP(\"Territories\",Translation!$A$1:$C$354, Translation!A1+1, 0)","v":"Territoires"},94.488723208042984,94.391115681068442,95,95.281765064210731,95.339749922103834,95.355048633093588,95.42669115235698,95.501738633032446,95.631352680787685,95.737366122551848,95.450536694246281]
[{"$f":"VLOOKUP(\"Portfolio distributions do not include substitutions volumes for Portfolio insurance.\",Translation!$A$1:$C$354, Translation!A1+1, 0)","v":"La répartition des prêts hypothécaires pour l'assurance de portefeuille ne comprend pas les prêts de remplacement. "}]
[{"$f":"VLOOKUP(\"Distribution based on outstanding loan amounts, not number of loans.\",Translation!$A$1:$C$354, Translation!A1+1, 0)","v":"La répartition est établie d'après le solde, plutôt que le nombre de prêts assurés."}]
[{"$f":"VLOOKUP(\"The sum of all breakdown categories may not add up to 100 due to rounding.\",Translation!$A$1:$C$354, Translation!A1+1, 0)","v":"Les chiffres ayant été arrondis, il se peut que la somme de l'ensemble des catégories n'égale pas 100 %."}]
[{"$f":"VLOOKUP(\"Portfolio-insured Line of Credit loans with zero ($0.00) balance were included in the number of loans in force starting from Q2 2018.\",Translation!$A$1:$C$354, Translation!A1+1, 0)","v":"Les prêts liés à une marge de crédit couverts par une assurance de portefeuille ayant un solde nul (0,00 $) sont inclus dans le nombre des prêts en cours depuis le deuxième trimestre de 2018."}]

{"sheet":"20","index":21,"n_rows":19,"n_cols":11,"rows_kept":19,"cut":false,"hidden":false,"merged":[[0,6,0,10]]}
[{"$f":"VLOOKUP(\"TRANSACTIONAL HOMEOWNER AND PORTFOLIO - NEW/EXISTING\",Translation!$A$1:$C$354, Translation!A1+1, 0)","v":"PROPRIÉTAIRES-OCCUPANTS (À L’UNITÉ) ET ASSURANCE DE PORTEFEUILLE - NEUF/EXISTANT"},null,null,null,null,null,{"$f":"VLOOKUP(\"Back to Table of Contents\",Translation!$A$1:$C$354, Translation!A1+1, 0)","v":"Retour à la table des matières"}]
[{"$f":"VLOOKUP(\"Loans insured in period by new and existing type (%)\",Translation!$A$1:$C$354, Translation!A1+1, 0)","v":"Prêts hypothécaires assurés au cours de la période selon le type neuf/existant (%)"}]
[{"$f":"VLOOKUP(\"TRANSACTIONAL HOMEOWNER\",Translation!$A$1:$C$354, Translation!A1+1, 0)","v":"PROPRIÉTAIRES-OCCUPANTS, À L’UNITÉ"},{"$f":"VLOOKUP(\"Q1 2020\",Translation!$A$1:$C$354, Translation!$A$1+1, 0)","v":"T1 2020"},{"$f":"VLOOKUP(\"Q4 2019\",Translation!$A$1:$C$354, Translation!$A$1+1, 0)","v":"T4 2019"},{"$f":"VLOOKUP(\"Q3 2019\",Translation!$A$1:$C$354, Translation!$A$1+1, 0)","v":"T3 2019"},{"$f":"VLOOKUP(\"Q2 2019\",Translation!$A$1:$C$354, Translation!$A$1+1, 0)","v":"T2 2019"},{"$f":"VLOOKUP(\"Q1 2019\",Translation!$A$1:$C$354, Translation!$A$1+1, 0)","v":"T1 2019"},{"$f":"VLOOKUP(\"Q4 2018\",Translation!$A$1:$C$354, Translation!$A$1+1, 0)","v":"T4 2018"},{"$f":"VLOOKUP(\"Q3 2018\",Translation!$A$1:$C$354, Translation!$A$1+1, 0)","v":"T3 2018"},{"$f":"VLOOKUP(\"Q2 2018\",Translation!$A$1:$C$354, Translation!$A$1+1, 0)","v":"T2 2018"},{"$f":"VLOOKUP(\"YTD 2020\",Translation!$A$1:$C$354, Translation!$A$1+1, 0)","v":"Cumul 2020"},{"$f":"VLOOKUP(\"YTD 2019\",Translation!$A$1:$C$354, Translation!$A$1+1, 0)","v":"Cumul 2019"}]
[{"$f":"VLOOKUP(\"New\",Translation!$A$1:$C$354, Translation!A1+1, 0)","v":"Neuf"},{"$f":"SUMIFS(Data!$E:$E,Data!$B:$B,'20'!B$3,Data!$C:$C,'20'!$A$3,Data!$D:$D,'20'!$A4,Data!$F:$F,'20'!$A$2)","v":12.07900255070793},{"$f":"SUMIFS(Data!$E:$E,Data!$B:$B,'20'!C$3,Data!$C:$C,'20'!$A$3,Data!$D:$D,'20'!$A4,Data!$F:$F,'20'!$A$2)","v":12.283067870765684},{"$f":"SUMIFS(Data!$E:$E,Data!$B:$B,'20'!D$3,Data!$C:$C,'20'!$A$3,Data!$D:$D,'20'!$A4,Data!$F:$F,'20'!$A$2)","v":9.8216991568991556},{"$f":"SUMIFS(Data!$E:$E,Data!$B:$B,'20'!E$3,Data!$C:$C,'20'!$A$3,Data!$D:$D,'20'!$A4,Data!$F:$F,'20'!$A$2)","v":9.9634984478520945},{"$f":"SUMIFS(Data!$E:$E,Data!$B:$B,'20'!F$3,Data!$C:$C,'20'!$A$3,Data!$D:$D,'20'!$A4,Data!$F:$F,'20'!$A$2)","v":12.460856577328592},{"$f":"SUMIFS(Data!$E:$E,Data!$B:$B,'20'!G$3,Data!$C:$C,'20'!$A$3,Data!$D:$D,'20'!$A4,Data!$F:$F,'20'!$A$2)","v":13.494210626106383},{"$f":"SUMIFS(Data!$E:$E,Data!$B:$B,'20'!H$3,Data!$C:$C,'20'!$A$3,Data!$D:$D,'20'!$A4,Data!$F:$F,'20'!$A$2)","v":11.143461937018513},{"$f":"SUMIFS(Data!$E:$E,Data!$B:$B,'20'!I$3,Data!$C:$C,'20'!$A$3,Data!$D:$D,'20'!$A4,Data!$F:$F,'20'!$A$2)","v":11.46481327756409},{"$f":"SUMIFS(Data!$E:$E,Data!$B:$B,'20'!J$3,Data!$C:$C,'20'!$A$3,Data!$D:$D,'20'!$A4,Data!$F:$F,'20'!$A$2)","v":12.07900255070793},{"$f":"SUMIFS(Data!$E:$E,Data!$B:$B,'20'!K$3,Data!$C:$C,'20'!$A$3,Data!$D:$D,'20'!$A4,Data!$F:$F,'20'!$A$2)","v":12.460856577328592}]
[{"$f":"VLOOKUP(\"Existing\",Translation!$A$1:$C$354, Translation!A1+1, 0)","v":"Existant"},{"$f":"SUMIFS(Data!$E:$E,Data!$B:$B,'20'!B$3,Data!$C:$C,'20'!$A$3,Data!$D:$D,'20'!$A5,Data!$F:$F,'20'!$A$2)","v":87.920997449292059},{"$f":"SUMIFS(Data!$E:$E,Data!$B:$B,'20'!C$3,Data!$C:$C,'20'!$A$3,Data!$D:$D,'20'!$A5,Data!$F:$F,'20'!$A$2)","v":87.716932129234308},{"$f":"SUMIFS(Data!$E:$E,Data!$B:$B,'20'!D$3,Data!$C:$C,'20'!$A$3,Data!$D:$D,'20'!$A5,Data!$F:$F,'20'!$A$2)","v":90.178300843100871},{"$f":"SUMIFS(Data!$E:$E,Data!$B:$B,'20'!E$3,Data!$C:$C,'20'!$A$3,Data!$D:$D,'20'!$A5,Data!$F:$F,'20'!$A$2)","v":90.036501552147882},{"$f":"SUMIFS(Data!$E:$E,Data!$B:$B,'20'!F$3,Data!$C:$C,'20'!$A$3,Data!$D:$D,'20'!$A5,Data!$F:$F,'20'!$A$2)","v":87.539143422671387},{"$f":"SUMIFS(Data!$E:$E,Data!$B:$B,'20'!G$3,Data!$C:$C,'20'!$A$3,Data!$D:$D,'20'!$A5,Data!$F:$F,'20'!$A$2)","v":86.50578937389362},{"$f":"SUMIFS(Data!$E:$E,Data!$B:$B,'20'!H$3,Data!$C:$C,'20'!$A$3,Data!$D:$D,'20'!$A5,Data!$F:$F,'20'!$A$2)","v":88.856538062981485},{"$f":"SUMIFS(Data!$E:$E,Data!$B:$B,'20'!I$3,Data!$C:$C,'20'!$A$3,Data!$D:$D,'20'!$A5,Data!$F:$F,'20'!$A$2)","v":88.535186722435924},{"$f":"SUMIFS(Data!$E:$E,Data!$B:$B,'20'!J$3,Data!$C:$C,'20'!$A$3,Data!$D:$D,'20'!$A5,Data!$F:$F,'20'!$A$2)","v":87.920997449292059},{"$f":"SUMIFS(Data!$E:$E,Data!$B:$B,'20'!K$3,Data!$C:$C,'20'!$A$3,Data!$D:$D,'20'!$A5,Data!$F:$F,'20'!$A$2)","v":87.539143422671387}]
[{"$f":"VLOOKUP(\"Existing properties by province (%)\",Translation!$A$1:$C$354, Translation!A1+1, 0)","v":"Propriétés existantes selon la province (%)"}]
[{"$f":"VLOOKUP(\"Newfoundland and Labrador\",Translation!$A$1:$C$354, Translation!A1+1, 0)","v":"Terre-Neuve-et-Labrador"},{"$f":"IF(SUMIFS(Data!$E:$E,Data!$B:$B,'20'!B$3,Data!$C:$C,'20'!$A$3,Data!$D:$D,'20'!$A7,Data!$F:$F,'20'!$A$2)=0,\"-\",SUMIFS(Data!$E:$E,Data!$B:$B,'20'!B$3,Data!$C:$C,'20'!$A$3,Data!$D:$D,'20'!$A7,Data!$F:$F,'20'!$A$2))","v":90.329372389822154},{"$f":"IF(SUMIFS(Data!$E:$E,Data!$B:$B,'20'!C$3,Data!$C:$C,'20'!$A$3,Data!$D:$D,'20'!$A7,Data!$F:$F,'20'!$A$2)=0,\"-\",SUMIFS(Data!$E:$E,Data!$B:$B,'20'!C$3,Data!$C:$C,'20'!$A$3,Data!$D:$D,'20'!$A7,Data!$F:$F,'20'!$A$2))","v":89.659890276893918},{"$f":"IF(SUMIFS(Data!$E:$E,Data!$B:$B,'20'!D$3,Data!$C:$C,'20'!$A$3,Data!$D:$D,'20'!$A7,Data!$F:$F,'20'!$A$2)=0,\"-\",SUMIFS(Data!$E:$E,Data!$B:$B,'20'!D$3,Data!$C:$C,'20'!$A$3,Data!$D:$D,'20'!$A7,Data!$F:$F,'20'!$A$2))","v":93.937259760626105},{"$f":"IF(SUMIFS(Data!$E:$E,Data!$B:$B,'20'!E$3,Data!$C:$C,'20'!$A$3,Data!$D:$D,'20'!$A7,Data!$F:$F,'20'!$A$2)=0,\"-\",SUMIFS(Data!$E:$E,Data!$B:$B,'20'!E$3,Data!$C:$C,'20'!$A$3,Data!$D:$D,'20'!$A7,Data!$F:$F,'20'!$A$2))","v":93.026935191173621},{"$f":"IF(SUMIFS(Data!$E:$E,Data!$B:$B,'20'!F$3,Data!$C:$C,'20'!$A$3,Data!$D:$D,'20'!$A7,Data!$F:$F,'20'!$A$2)=0,\"-\",SUMIFS(Data!$E:$E,Data!$B:$B,'20'!F$3,Data!$C:$C,'20'!$A$3,Data!$D:$D,'20'!$A7,Data!$F:$F,'20'!$A$2))","v":90.555538935603423},{"$f":"IF(SUMIFS(Data!$E:$E,Data!$B:$B,'20'!G$3,Data!$C:$C,'20'!$A$3,Data!$D:$D,'20'!$A7,Data!$F:$F,'20'!$A$2)=0,\"-\",SUMIFS(Data!$E:$E,Data!$B:$B,'20'!G$3,Data!$C:$C,'20'!$A$3,Data!$D:$D,'20'!$A7,Data!$F:$F,'20'!$A$2))","v":86.570468916869487},{"$f":"IF(SUMIFS(Data!$E:$E,Data!$B:$B,'20'!H$3,Data!$C:$C,'20'!$A$3,Data!$D:$D,'20'!$A7,Data!$F:$F,'20'!$A$2)=0,\"-\",SUMIFS(Data!$E:$E,Data!$B:$B,'20'!H$3,Data!$C:$C,'20'!$A$3,Data!$D:$D,'20'!$A7,Data!$F:$F,'20'!$A$2))","v":87.559761119170545},{"$f":"IF(SUMIFS(Data!$E:$E,Data!$B:$B,'20'!I$3,Data!$C:$C,'20'!$A$3,Data!$D:$D,'20'!$A7,Data!$F:$F,'20'!$A$2)=0,\"-\",SUMIFS(Data!$E:$E,Data!$B:$B,'20'!I$3,Data!$C:$C,'20'!$A$3,Data!$D:$D,'20'!$A7,Data!$F:$F,'20'!$A$2))","v":92.628170355146324},{"$f":"IF(SUMIFS(Data!$E:$E,Data!$B:$B,'20'!J$3,Data!$C:$C,'20'!$A$3,Data!$D:$D,'20'!$A7,Data!$F:$F,'20'!$A$2)=0,\"-\",SUMIFS(Data!$E:$E,Data!$B:$B,'20'!J$3,Data!$C:$C,'20'!$A$3,Data!$D:$D,'20'!$A7,Data!$F:$F,'20'!$A$2))","v":90.329372389822154},{"$f":"IF(SUMIFS(Data!$E:$E,Data!$B:$B,'20'!K$3,Data!$C:$C,'20'!$A$3,Data!$D:$D,'20'!$A7,Data!$F:$F,'20'!$A$2)=0,\"-\",SUMIFS(Data!$E:$E,Data!$B:$B,'20'!K$3,Data!$C:$C,'20'!$A$3,Data!$D:$D,'20'!$A7,Data!$F:$F,'20'!$A$2))","v":90.555538935603423}]
[{"$f":"VLOOKUP(\"Prince Edward Island\",Translation!$A$1:$C$354, Translation!A1+1, 0)","v":"Île-du-Prince-Édouard"},{"$f":"IF(SUMIFS(Data!$E:$E,Data!$B:$B,'20'!B$3,Data!$C:$C,'20'!$A$3,Data!$D:$D,'20'!$A8,Data!$F:$F,'20'!$A$2)=0,\"-\",SUMIFS(Data!$E:$E,Data!$B:$B,'20'!B$3,Data!$C:$C,'20'!$A$3,Data!$D:$D,'20'!$A8,Data!$F:$F,'20'!$A$2))","v":84.161034091188498},{"$f":"IF(SUMIFS(Data!$E:$E,Data!$B:$B,'20'!C$3,Data!$C:$C,'20'!$A$3,Data!$D:$D,'20'!$A8,Data!$F:$F,'20'!$A$2)=0,\"-\",SUMIFS(Data!$E:$E,Data!$B:$B,'20'!C$3,Data!$C:$C,'20'!$A$3,Data!$D:$D,'20'!$A8,Data!$F:$F,'20'!$A$2))","v":77.313195833072285},{"$f":"IF(SUMIFS(Data!$E:$E,Data!$B:$B,'20'!D$3,Data!$C:$C,'20'!$A$3,Data!$D:$D,'20'!$A8,Data!$F:$F,'20'!$A$2)=0,\"-\",SUMIFS(Data!$E:$E,Data!$B:$B,'20'!D$3,Data!$C:$C,'20'!$A$3,Data!$D:$D,'20'!$A8,Data!$F:$F,'20'!$A$2))","v":80.378342839555643},{"$f":"IF(SUMIFS(Data!$E:$E,Data!$B:$B,'20'!E$3,Data!$C:$C,'20'!$A$3,Data!$D:$D,'20'!$A8,Data!$F:$F,'20'!$A$2)=0,\"-\",SUMIFS(Data!$E:$E,Data!$B:$B,'20'!E$3,Data!$C:$C,'20'!$A$3,Data!$D:$D,'20'!$A8,Data!$F:$F,'20'!$A$2))","v":96.456341305887321},{"$f":"IF(SUMIFS(Data!$E:$E,Data!$B:$B,'20'!F$3,Data!$C:$C,'20'!$A$3,Data!$D:$D,'20'!$A8,Data!$F:$F,'20'!$A$2)=0,\"-\",SUMIFS(Data!$E:$E,Data!$B:$B,'20'!F$3,Data!$C:$C,'20'!$A$3,Data!$D:$D,'20'!$A8,Data!$F:$F,'20'!$A$2))","v":86.082644001941389},{"$f":"IF(SUMIFS(Data!$E:$E,Data!$B:$B,'20'!G$3,Data!$C:$C,'20'!$A$3,Data!$D:$D,'20'!$A8,Data!$F:$F,'20'!$A$2)=0,\"-\",SUMIFS(Data!$E:$E,Data!$B:$B,'20'!G$3,Data!$C:$C,'20'!$A$3,Data!$D:$D,'20'!$A8,Data!$F:$F,'20'!$A$2))","v":83.860494409106693},{"$f":"IF(SUMIFS(Data!$E:$E,Data!$B:$B,'20'!H$3,Data!$C:$C,'20'!$A$3,Data!$D:$D,'20'!$A8,Data!$F:$F,'20'!$A$2)=0,\"-\",SUMIFS(Data!$E:$E,Data!$B:$B,'20'!H$3,Data!$C:$C,'20'!$A$3,Data!$D:$D,'20'!$A8,Data!$F:$F,'20'!$A$2))","v":84.70543193097798},{"$f":"IF(SUMIFS(Data!$E:$E,Data!$B:$B,'20'!I$3,Data!$C:$C,'20'!$A$3,Data!$D:$D,'20'!$A8,Data!$F:$F,'20'!$A$2)=0,\"-\",SUMIFS(Data!$E:$E,Data!$B:$B,'20'!I$3,Data!$C:$C,'20'!$A$3,Data!$D:$D,'20'!$A8,Data!$F:$F,'20'!$A$2))","v":91.414847845819935},{"$f":"IF(SUMIFS(Data!$E:$E,Data!$B:$B,'20'!J$3,Data!$C:$C,'20'!$A$3,Data!$D:$D,'20'!$A8,Data!$F:$F,'20'!$A$2)=0,\"-\",SUMIFS(Data!$E:$E,Data!$B:$B,'20'!J$3,Data!$C:$C,'20'!$A$3,Data!$D:$D,'20'!$A8,Data!$F:$F,'20'!$A$2))","v":84.161034091188498},{"$f":"IF(SUMIFS(Data!$E:$E,Data!$B:$B,'20'!K$3,Data!$C:$C,'20'!$A$3,Data!$D:$D,'20'!$A8,Data!$F:$F,'20'!$A$2)=0,\"-\",SUMIFS(Data!$E:$E,Data!$B:$B,'20'!K$3,Data!$C:$C,'20'!$A$3,Data!$D:$D,'20'!$A8,Data!$F:$F,'20'!$A$2))","v":86.082644001941389}]
[{"$f":"VLOOKUP(\"Nova Scotia\",Translation!$A$1:$C$354, Translation!A1+1, 0)","v":"Nouvelle-Écosse"},{"$f":"IF(SUMIFS(Data!$E:$E,Data!$B:$B,'20'!B$3,Data!$C:$C,'20'!$A$3,Data!$D:$D,'20'!$A9,Data!$F:$F,'20'!$A$2)=0,\"-\",SUMIFS(Data!$E:$E,Data!$B:$B,'20'!B$3,Data!$C:$C,'20'!$A$3,Data!$D:$D,'20'!$A9,Data!$F:$F,'20'!$A$2))","v":87.454951447336612},{"$f":"IF(SUMIFS(Data!$E:$E,Data!$B:$B,'20'!C$3,Data!$C:$C,'20'!$A$3,Data!$D:$D,'20'!$A9,Data!$F:$F,'20'!$A$2)=0,\"-\",SUMIFS(Data!$E:$E,Data!$B:$B,'20'!C$3,Data!$C:$C,'20'!$A$3,Data!$D:$D,'20'!$A9,Data!$F:$F,'20'!$A$2))","v":85.136648470070384},{"$f":"IF(SUMIFS(Data!$E:$E,Data!$B:$B,'20'!D$3,Data!$C:$C,'20'!$A$3,Data!$D:$D,'20'!$A9,Data!$F:$F,'20'!$A$2)=0,\"-\",SUMIFS(Data!$E:$E,Data!$B:$B,'20'!D$3,Data!$C:$C,'20'!$A$3,Data!$D:$D,'20'!$A9,Data!$F:$F,'20'!$A$2))","v":89.198950836974092},{"$f":"IF(SUMIFS(Data!$E:$E,Data!$B:$B,'20'!E$3,Data!$C:$C,'20'!$A$3,Data!$D:$D,'20'!$A9,Data!$F:$F,'20'!$A$2)=0,\"-\",SUMIFS(Data!$E:$E,Data!$B:$B,'20'!E$3,Data!$C:$C,'20'!$A$3,Data!$D:$D,'20'!$A9,Data!$F:$F,'20'!$A$2))","v":92.107495189289153},{"$f":"IF(SUMIFS(Data!$E:$E,Data!$B:$B,'20'!F$3,Data!$C:$C,'20'!$A$3,Data!$D:$D,'20'!$A9,Data!$F:$F,'20'!$A$2)=0,\"-\",SUMIFS(Data!$E:$E,Data!$B:$B,'20'!F$3,Data!$C:$C,'20'!$A$3,Data!$D:$D,'20'!$A9,Data!$F:$F,'20'!$A$2))","v":91.694546699607045},{"$f":"IF(SUMIFS(Data!$E:$E,Data!$B:$B,'20'!G$3,Data!$C:$C,'20'!$A$3,Data!$D:$D,'20'!$A9,Data!$F:$F,'20'!$A$2)=0,\"-\",SUMIFS(Data!$E:$E,Data!$B:$B,'20'!G$3,Data!$C:$C,'20'!$A$3,Data!$D:$D,'20'!$A9,Data!$F:$F,'20'!$A$2))","v":87.461183442713491},{"$f":"IF(SUMIFS(Data!$E:$E,Data!$B:$B,'20'!H$3,Data!$C:$C,'20'!$A$3,Data!$D:$D,'20'!$A9,Data!$F:$F,'20'!$A$2)=0,\"-\",SUMIFS(Data!$E:$E,Data!$B:$B,'20'!H$3,Data!$C:$C,'20'!$A$3,Data!$D:$D,'20'!$A9,Data!$F:$F,'20'!$A$2))","v":91.954611733346965},{"$f":"IF(SUMIFS(Data!$E:$E,Data!$B:$B,'20'!I$3,Data!$C:$C,'20'!$A$3,Data!$D:$D,'20'!$A9,Data!$F:$F,'20'!$A$2)=0,\"-\",SUMIFS(Data!$E:$E,Data!$B:$B,'20'!I$3,Data!$C:$C,'20'!$A$3,Data!$D:$D,'20'!$A9,Data!$F:$F,'20'!$A$2))","v":92.421912206978874},{"$f":"IF(SUMIFS(Data!$E:$E,Data!$B:$B,'20'!J$3,Data!$C:$C,'20'!$A$3,Data!$D:$D,'20'!$A9,Data!$F:$F,'20'!$A$2)=0,\"-\",SUMIFS(Data!$E:$E,Data!$B:$B,'20'!J$3,Data!$C:$C,'20'!$A$3,Data!$D:$D,'20'!$A9,Data!$F:$F,'20'!$A$2))","v":87.454951447336612},{"$f":"IF(SUMIFS(Data!$E:$E,Data!$B:$B,'20'!K$3,Data!$C:$C,'20'!$A$3,Data!$D:$D,'20'!$A9,Data!$F:$F,'20'!$A$2)=0,\"-\",SUMIFS(Data!$E:$E,Data!$B:$B,'20'!K$3,Data!$C:$C,'20'!$A$3,Data!$D:$D,'20'!$A9,Data!$F:$F,'20'!$A$2))","v":91.694546699607045}]
[{"$f":"VLOOKUP(\"New Brunswick\",Translation!$A$1:$C$354, Translation!A1+1, 0)","v":"Nouveau-Brunswick"},{"$f":"IF(SUMIFS(Data!$E:$E,Data!$B:$B,'20'!B$3,Data!$C:$C,'20'!$A$3,Data!$D:$D,'20'!$A10,Data!$F:$F,'20'!$A$2)=0,\"-\",SUMIFS(Data!$E:$E,Data!$B:$B,'20'!B$3,Data!$C:$C,'20'!$A$3,Data!$D:$D,'20'!$A10,Data!$F:$F,'20'!$A$2))","v":94.1108940912805},{"$f":"IF(SUMIFS(Data!$E:$E,Data!$B:$B,'20'!C$3,Data!$C:$C,'20'!$A$3,Data!$D:$D,'20'!$A10,Data!$F:$F,'20'!$A$2)=0,\"-\",SUMIFS(Data!$E:$E,Data!$B:$B,'20'!C$3,Data!$C:$C,'20'!$A$3,Data!$D:$D,'20'!$A10,Data!$F:$F,'20'!$A$2))","v":87.965425678206557},{"$f":"IF(SUMIFS(Data!$E:$E,Data!$B:$B,'20'!D$3,Data!$C:$C,'20'!$A$3,Data!$D:$D,'20'!$A10,Data!$F:$F,'20'!$A$2)=0,\"-\",SUMIFS(Data!$E:$E,Data!$B:$B,'20'!D$3,Data!$C:$C,'20'!$A$3,Data!$D:$D,'20'!$A10,Data!$F:$F,'20'!$A$2))","v":92.54464093399578},{"$f":"IF(SUMIFS(Data!$E:$E,Data!$B:$B,'20'!E$3,Data!$C:$C,'20'!$A$3,Data!$D:$D,'20'!$A10,Data!$F:$F,'20'!$A$2)=0,\"-\",SUMIFS(Data!$E:$E,Data!$B:$B,'20'!E$3,Data!$C:$C,'20'!$A$3,Data!$D:$D,'20'!$A10,Data!$F:$F,'20'!$A$2))","v":96.472672087859195},{"$f":"IF(SUMIFS(Data!$E:$E,Data!$B:$B,'20'!F$3,Data!$C:$C,'20'!$A$3,Data!$D:$D,'20'!$A10,Data!$F:$F,'20'!$A$2)=0,\"-\",SUMIFS(Data!$E:$E,Data!$B:$B,'20'!F$3,Data!$C:$C,'20'!$A$3,Data!$D:$D,'20'!$A10,Data!$F:$F,'20'!$A$2))","v":92.261507567109675},{"$f":"IF(SUMIFS(Data!$E:$E,Data!$B:$B,'20'!G$3,Data!$C:$C,'20'!$A$3,Data!$D:$D,'20'!$A10,Data!$F:$F,'20'!$A$2)=0,\"-\",SUMIFS(Data!$E:$E,Data!$B:$B,'20'!G$3,Data!$C:$C,'20'!$A$3,Data!$D:$D,'20'!$A10,Data!$F:$F,'20'!$A$2))","v":86.749359300333253},{"$f":"IF(SUMIFS(Data!$E:$E,Data!$B:$B,'20'!H$3,Data!$C:$C,'20'!$A$3,Data!$D:$D,'20'!$A10,Data!$F:$F,'20'!$A$2)=0,\"-\",SUMIFS(Data!$E:$E,Data!$B:$B,'20'!H$3,Data!$C:$C,'20'!$A$3,Data!$D:$D,'20'!$A10,Data!$F:$F,'20'!$A$2))","v":90.025210965814821},{"$f":"IF(SUMIFS(Data!$E:$E,Data!$B:$B,'20'!I$3,Data!$C:$C,'20'!$A$3,Data!$D:$D,'20'!$A10,Data!$F:$F,'20'!$A$2)=0,\"-\",SUMIFS(Data!$E:$E,Data!$B:$B,'20'!I$3,Data!$C:$C,'20'!$A$3,Data!$D:$D,'20'!$A10,Data!$F:$F,'20'!$A$2))","v":92.982128415184604},{"$f":"IF(SUMIFS(Data!$E:$E,Data!$B:$B,'20'!J$3,Data!$C:$C,'20'!$A$3,Data!$D:$D,'20'!$A10,Data!$F:$F,'20'!$A$2)=0,\"-\",SUMIFS(Data!$E:$E,Data!$B:$B,'20'!J$3,Data!$C:$C,'20'!$A$3,Data!$D:$D,'20'!$A10,Data!$F:$F,'20'!$A$2))","v":94.1108940912805},{"$f":"IF(SUMIFS(Data!$E:$E,Data!$B:$B,'20'!K$3,Data!$C:$C,'20'!$A$3,Data!$D:$D,'20'!$A10,Data!$F:$F,'20'!$A$2)=0,\"-\",SUMIFS(Data!$E:$E,Data!$B:$B,'20'!K$3,Data!$C:$C,'20'!$A$3,Data!$D:$D,'20'!$A10,Data!$F:$F,'20'!$A$2))","v":92.261507567109675}]
[{"$f":"VLOOKUP(\"Quebec\",Translation!$A$1:$C$354, Translation!A1+1, 0)","v":"Québec"},{"$f":"IF(SUMIFS(Data!$E:$E,Data!$B:$B,'20'!B$3,Data!$C:$C,'20'!$A$3,Data!$D:$D,'20'!$A11,Data!$F:$F,'20'!$A$2)=0,\"-\",SUMIFS(Data!$E:$E,Data!$B:$B,'20'!B$3,Data!$C:$C,'20'!$A$3,Data!$D:$D,'20'!$A11,Data!$F:$F,'20'!$A$2))","v":89.3578561761651},{"$f":"IF(SUMIFS(Data!$E:$E,Data!$B:$B,'20'!C$3,Data!$C:$C,'20'!$A$3,Data!$D:$D,'20'!$A11,Data!$F:$F,'20'!$A$2)=0,\"-\",SUMIFS(Data!$E:$E,Data!$B:$B,'20'!C$3,Data!$C:$C,'20'!$A$3,Data!$D:$D,'20'!$A11,Data!$F:$F,'20'!$A$2))","v":87.264962157389647},{"$f":"IF(SUMIFS(Data!$E:$E,Data!$B:$B,'20'!D$3,Data!$C:$C,'20'!$A$3,Data!$D:$D,'20'!$A11,Data!$F:$F,'20'!$A$2)=0,\"-\",SUMIFS(Data!$E:$E,Data!$B:$B,'20'!D$3,Data!$C:$C,'20'!$A$3,Data!$D:$D,'20'!$A11,Data!$F:$F,'20'!$A$2))","v":88.674588098343776},{"$f":"IF(SUMIFS(Data!$E:$E,Data!$B:$B,'20'!E$3,Data!$C:$C,'20'!$A$3,Data!$D:$D,'20'!$A11,Data!$F:$F,'20'!$A$2)=0,\"-\",SUMIFS(Data!$E:$E,Data!$B:$B,'20'!E$3,Data!$C:$C,'20'!$A$3,Data!$D:$D,'20'!$A11,Data!$F:$F,'20'!$A$2))","v":90.309984694853824},{"$f":"IF(SUMIFS(Data!$E:$E,Data!$B:$B,'20'!F$3,Data!$C:$C,'20'!$A$3,Data!$D:$D,'20'!$A11,Data!$F:$F,'20'!$A$2)=0,\"-\",SUMIFS(Data!$E:$E,Data!$B:$B,'20'!F$3,Data!$C:$C,'20'!$A$3,Data!$D:$D,'20'!$A11,Data!$F:$F,'20'!$A$2))","v":89.987706423214391},{"$f":"IF(SUMIFS(Data!$E:$E,Data!$B:$B,'20'!G$3,Data!$C:$C,'20'!$A$3,Data!$D:$D,'20'!$A11,Data!$F:$F,'20'!$A$2)=0,\"-\",SUMIFS(Data!$E:$E,Data!$B:$B,'20'!G$3,Data!$C:$C,'20'!$A$3,Data!$D:$D,'20'!$A11,Data!$F:$F,'20'!$A$2))","v":87.092042258025486},{"$f":"IF(SUMIFS(Data!$E:$E,Data!$B:$B,'20'!H$3,Data!$C:$C,'20'!$A$3,Data!$D:$D,'20'!$A11,Data!$F:$F,'20'!$A$2)=0,\"-\",SUMIFS(Data!$E:$E,Data!$B:$B,'20'!H$3,Data!$C:$C,'20'!$A$3,Data!$D:$D,'20'!$A11,Data!$F:$F,'20'!$A$2))","v":86.274536869945649},{"$f":"IF(SUMIFS(Data!$E:$E,Data!$B:$B,'20'!I$3,Data!$C:$C,'20'!$A$3,Data!$D:$D,'20'!$A11,Data!$F:$F,'20'!$A$2)=0,\"-\",SUMIFS(Data!$E:$E,Data!$B:$B,'20'!I$3,Data!$C:$C,'20'!$A$3,Data!$D:$D,'20'!$A11,Data!$F:$F,'20'!$A$2))","v":89.044288526000983},{"$f":"IF(SUMIFS(Data!$E:$E,Data!$B:$B,'20'!J$3,Data!$C:$C,'20'!$A$3,Data!$D:$D,'20'!$A11,Data!$F:$F,'20'!$A$2)=0,\"-\",SUMIFS(Data!$E:$E,Data!$B:$B,'20'!J$3,Data!$C:$C,'20'!$A$3,Data!$D:$D,'20'!$A11,Data!$F:$F,'20'!$A$2))","v":89.3578561761651},{"$f":"IF(SUMIFS(Data!$E:$E,Data!$B:$B,'20'!K$3,Data!$C:$C,'20'!$A$3,Data!$D:$D,'20'!$A11,Data!$F:$F,'20'!$A$2)=0,\"-\",SUMIFS(Data!$E:$E,Data!$B:$B,'20'!K$3,Data!$C:$C,'20'!$A$3,Data!$D:$D,'20'!$A11,Data!$F:$F,'20'!$A$2))","v":89.987706423214391}]
[{"$f":"VLOOKUP(\"Ontario\",Translation!$A$1:$C$354, Translation!A1+1, 0)","v":"Ontario"},{"$f":"IF(SUMIFS(Data!$E:$E,Data!$B:$B,'20'!B$3,Data!$C:$C,'20'!$A$3,Data!$D:$D,'20'!$A12,Data!$F:$F,'20'!$A$2)=0,\"-\",SUMIFS(Data!$E:$E,Data!$B:$B,'20'!B$3,Data!$C:$C,'20'!$A$3,Data!$D:$D,'20'!$A12,Data!$F:$F,'20'!$A$2))","v":90.282011870999114},{"$f":"IF(SUMIFS(Data!$E:$E,Data!$B:$B,'20'!C$3,Data!$C:$C,'20'!$A$3,Data!$D:$D,'20'!$A12,Data!$F:$F,'20'!$A$2)=0,\"-\",SUMIFS(Data!$E:$E,Data!$B:$B,'20'!C$3,Data!$C:$C,'20'!$A$3,Data!$D:$D,'20'!$A12,Data!$F:$F,'20'!$A$2))","v":92.839811165708511},{"$f":"IF(SUMIFS(Data!$E:$E,Data!$B:$B,'20'!D$3,Data!$C:$C,'20'!$A$3,Data!$D:$D,'20'!$A12,Data!$F:$F,'20'!$A$2)=0,\"-\",SUMIFS(Data!$E:$E,Data!$B:$B,'20'!D$3,Data!$C:$C,'20'!$A$3,Data!$D:$D,'20'!$A12,Data!$F:$F,'20'!$A$2))","v":94.393583635803239},{"$f":"IF(SUMIFS(Data!$E:$E,Data!$B:$B,'20'!E$3,Data!$C:$C,'20'!$A$3,Data!$D:$D,'20'!$A12,Data!$F:$F,'20'!$A$2)=0,\"-\",SUMIFS(Data!$E:$E,Data!$B:$B,'20'!E$3,Data!$C:$C,'20'!$A$3,Data!$D:$D,'20'!$A12,Data!$F:$F,'20'!$A$2))","v":93.131797939367019},{"$f":"IF(SUMIFS(Data!$E:$E,Data!$B:$B,'20'!F$3,Data!$C:$C,'20'!$A$3,Data!$D:$D,'20'!$A12,Data!$F:$F,'20'!$A$2)=0,\"-\",SUMIFS(Data!$E:$E,Data!$B:$B,'20'!F$3,Data!$C:$C,'20'!$A$3,Data!$D:$D,'20'!$A12,Data!$F:$F,'20'!$A$2))","v":91.008815274241954},{"$f":"IF(SUMIFS(Data!$E:$E,Data!$B:$B,'20'!G$3,Data!$C:$C,'20'!$A$3,Data!$D:$D,'20'!$A12,Data!$F:$F,'20'!$A$2)=0,\"-\",SUMIFS(Data!$E:$E,Data!$B:$B,'20'!G$3,Data!$C:$C,'20'!$A$3,Data!$D:$D,'20'!$A12,Data!$F:$F,'20'!$A$2))","v":90.592591015145942},{"$f":"IF(SUMIFS(Data!$E:$E,Data!$B:$B,'20'!H$3,Data!$C:$C,'20'!$A$3,Data!$D:$D,'20'!$A12,Data!$F:$F,'20'!$A$2)=0,\"-\",SUMIFS(Data!$E:$E,Data!$B:$B,'20'!H$3,Data!$C:$C,'20'!$A$3,Data!$D:$D,'20'!$A12,Data!$F:$F,'20'!$A$2))","v":92.960553309220074},{"$f":"IF(SUMIFS(Data!$E:$E,Data!$B:$B,'20'!I$3,Data!$C:$C,'20'!$A$3,Data!$D:$D,'20'!$A12,Data!$F:$F,'20'!$A$2)=0,\"-\",SUMIFS(Data!$E:$E,Data!$B:$B,'20'!I$3,Data!$C:$C,'20'!$A$3,Data!$D:$D,'20'!$A12,Data!$F:$F,'20'!$A$2))","v":91.018377391293683},{"$f":"IF(SUMIFS(Data!$E:$E,Data!$B:$B,'20'!J$3,Data!$C:$C,'20'!$A$3,Data!$D:$D,'20'!$A12,Data!$F:$F,'20'!$A$2)=0,\"-\",SUMIFS(Data!$E:$E,Data!$B:$B,'20'!J$3,Data!$C:$C,'20'!$A$3,Data!$D:$D,'20'!$A12,Data!$F:$F,'20'!$A$2))","v":90.282011870999114},{"$f":"IF(SUMIFS(Data!$E:$E,Data!$B:$B,'20'!K$3,Data!$C:$C,'20'!$A$3,Data!$D:$D,'20'!$A12,Data!$F:$F,'20'!$A$2)=0,\"-\",SUMIFS(Data!$E:$E,Data!$B:$B,'20'!K$3,Data!$C:$C,'20'!$A$3,Data!$D:$D,'20'!$A12,Data!$F:$F,'20'!$A$2))","v":91.008815274241954}]
[{"$f":"VLOOKUP(\"Manitoba\",Translation!$A$1:$C$354, Translation!A1+1, 0)","v":"Manitoba"},{"$f":"IF(SUMIFS(Data!$E:$E,Data!$B:$B,'20'!B$3,Data!$C:$C,'20'!$A$3,Data!$D:$D,'20'!$A13,Data!$F:$F,'20'!$A$2)=0,\"-\",SUMIFS(Data!$E:$E,Data!$B:$B,'20'!B$3,Data!$C:$C,'20'!$A$3,Data!$D:$D,'20'!$A13,Data!$F:$F,'20'!$A$2))","v":86.360503337203511},{"$f":"IF(SUMIFS(Data!$E:$E,Data!$B:$B,'20'!C$3,Data!$C:$C,'20'!$A$3,Data!$D:$D,'20'!$A13,Data!$F:$F,'20'!$A$2)=0,\"-\",SUMIFS(Data!$E:$E,Data!$B:$B,'20'!C$3,Data!$C:$C,'20'!$A$3,Data!$D:$D,'20'!$A13,Data!$F:$F,'20'!$A$2))","v":83.766154341968985},{"$f":"IF(SUMIFS(Data!$E:$E,Data!$B:$B,'20'!D$3,Data!$C:$C,'20'!$A$3,Data!$D:$D,'20'!$A13,Data!$F:$F,'20'!$A$2)=0,\"-\",SUMIFS(Data!$E:$E,Data!$B:$B,'20'!D$3,Data!$C:$C,'20'!$A$3,Data!$D:$D,'20'!$A13,Data!$F:$F,'20'!$A$2))","v":86.671669795089187},{"$f":"IF(SUMIFS(Data!$E:$E,Data!$B:$B,'20'!E$3,Data!$C:$C,'20'!$A$3,Data!$D:$D,'20'!$A13,Data!$F:$F,'20'!$A$2)=0,\"-\",SUMIFS(Data!$E:$E,Data!$B:$B,'20'!E$3,Data!$C:$C,'20'!$A$3,Data!$D:$D,'20'!$A13,Data!$F:$F,'20'!$A$2))","v":87.34884946772253},{"$f":"IF(SUMIFS(Data!$E:$E,Data!$B:$B,'20'!F$3,Data!$C:$C,'20'!$A$3,Data!$D:$D,'20'!$A13,Data!$F:$F,'20'!$A$2)=0,\"-\",SUMIFS(Data!$E:$E,Data!$B:$B,'20'!F$3,Data!$C:$C,'20'!$A$3,Data!$D:$D,'20'!$A13,Data!$F:$F,'20'!$A$2))","v":83.919839719460285},{"$f":"IF(SUMIFS(Data!$E:$E,Data!$B:$B,'20'!G$3,Data!$C:$C,'20'!$A$3,Data!$D:$D,'20'!$A13,Data!$F:$F,'20'!$A$2)=0,\"-\",SUMIFS(Data!$E:$E,Data!$B:$B,'20'!G$3,Data!$C:$C,'20'!$A$3,Data!$D:$D,'20'!$A13,Data!$F:$F,'20'!$A$2))","v":84.92310926266417},{"$f":"IF(SUMIFS(Data!$E:$E,Data!$B:$B,'20'!H$3,Data!$C:$C,'20'!$A$3,Data!$D:$D,'20'!$A13,Data!$F:$F,'20'!$A$2)=0,\"-\",SUMIFS(Data!$E:$E,Data!$B:$B,'20'!H$3,Data!$C:$C,'20'!$A$3,Data!$D:$D,'20'!$A13,Data!$F:$F,'20'!$A$2))","v":87.731900375582597},{"$f":"IF(SUMIFS(Data!$E:$E,Data!$B:$B,'20'!I$3,Data!$C:$C,'20'!$A$3,Data!$D:$D,'20'!$A13,Data!$F:$F,'20'!$A$2)=0,\"-\",SUMIFS(Data!$E:$E,Data!$B:$B,'20'!I$3,Data!$C:$C,'20'!$A$3,Data!$D:$D,'20'!$A13,Data!$F:$F,'20'!$A$2))","v":83.684880571960107},{"$f":"IF(SUMIFS(Data!$E:$E,Data!$B:$B,'20'!J$3,Data!$C:$C,'20'!$A$3,Data!$D:$D,'20'!$A13,Data!$F:$F,'20'!$A$2)=0,\"-\",SUMIFS(Data!$E:$E,Data!$B:$B,'20'!J$3,Data!$C:$C,'20'!$A$3,Data!$D:$D,'20'!$A13,Data!$F:$F,'20'!$A$2))","v":86.360503337203511},{"$f":"IF(SUMIFS(Data!$E:$E,Data!$B:$B,'20'!K$3,Data!$C:$C,'20'!$A$3,Data!$D:$D,'20'!$A13,Data!$F:$F,'20'!$A$2)=0,\"-\",SUMIFS(Data!$E:$E,Data!$B:$B,'20'!K$3,Data!$C:$C,'20'!$A$3,Data!$D:$D,'20'!$A13,Data!$F:$F,'20'!$A$2))","v":83.919839719460285}]
[{"$f":"VLOOKUP(\"Saskatchewan\",Translation!$A$1:$C$354, Translation!A1+1, 0)","v":"Saskatchewan"},{"$f":"IF(SUMIFS(Data!$E:$E,Data!$B:$B,'20'!B$3,Data!$C:$C,'20'!$A$3,Data!$D:$D,'20'!$A14,Data!$F:$F,'20'!$A$2)=0,\"-\",SUMIFS(Data!$E:$E,Data!$B:$B,'20'!B$3,Data!$C:$C,'20'!$A$3,Data!$D:$D,'20'!$A14,Data!$F:$F,'20'!$A$2))","v":95.893709110286693},{"$f":"IF(SUMIFS(Data!$E:$E,Data!$B:$B,'20'!C$3,Data!$C:$C,'20'!$A$3,Data!$D:$D,'20'!$A14,Data!$F:$F,'20'!$A$2)=0,\"-\",SUMIFS(Data!$E:$E,Data!$B:$B,'20'!C$3,Data!$C:$C,'20'!$A$3,Data!$D:$D,'20'!$A14,Data!$F:$F,'20'!$A$2))","v":86.483621118119984},{"$f":"IF(SUMIFS(Data!$E:$E,Data!$B:$B,'20'!D$3,Data!$C:$C,'20'!$A$3,Data!$D:$D,'20'!$A14,Data!$F:$F,'20'!$A$2)=0,\"-\",SUMIFS(Data!$E:$E,Data!$B:$B,'20'!D$3,Data!$C:$C,'20'!$A$3,Data!$D:$D,'20'!$A14,Data!$F:$F,'20'!$A$2))","v":90.114432556438814},{"$f":"IF(SUMIFS(Data!$E:$E,Data!$B:$B,'20'!E$3,Data!$C:$C,'20'!$A$3,Data!$D:$D,'20'!$A14,Data!$F:$F,'20'!$A$2)=0,\"-\",SUMIFS(Data!$E:$E,Data!$B:$B,'20'!E$3,Data!$C:$C,'20'!$A$3,Data!$D:$D,'20'!$A14,Data!$F:$F,'20'!$A$2))","v":90.552830654449465},{"$f":"IF(SUMIFS(Data!$E:$E,Data!$B:$B,'20'!F$3,Data!$C:$C,'20'!$A$3,Data!$D:$D,'20'!$A14,Data!$F:$F,'20'!$A$2)=0,\"-\",SUMIFS(Data!$E:$E,Data!$B:$B,'20'!F$3,Data!$C:$C,'20'!$A$3,Data!$D:$D,'20'!$A14,Data!$F:$F,'20'!$A$2))","v":86.822095390684609},{"$f":"IF(SUMIFS(Data!$E:$E,Data!$B:$B,'20'!G$3,Data!$C:$C,'20'!$A$3,Data!$D:$D,'20'!$A14,Data!$F:$F,'20'!$A$2)=0,\"-\",SUMIFS(Data!$E:$E,Data!$B:$B,'20'!G$3,Data!$C:$C,'20'!$A$3,Data!$D:$D,'20'!$A14,Data!$F:$F,'20'!$A$2))","v":82.475796278826977},{"$f":"IF(SUMIFS(Data!$E:$E,Data!$B:$B,'20'!H$3,Data!$C:$C,'20'!$A$3,Data!$D:$D,'20'!$A14,Data!$F:$F,'20'!$A$2)=0,\"-\",SUMIFS(Data!$E:$E,Data!$B:$B,'20'!H$3,Data!$C:$C,'20'!$A$3,Data!$D:$D,'20'!$A14,Data!$F:$F,'20'!$A$2))","v":89.754814443546479},{"$f":"IF(SUMIFS(Data!$E:$E,Data!$B:$B,'20'!I$3,Data!$C:$C,'20'!$A$3,Data!$D:$D,'20'!$A14,Data!$F:$F,'20'!$A$2)=0,\"-\",SUMIFS(Data!$E:$E,Data!$B:$B,'20'!I$3,Data!$C:$C,'20'!$A$3,Data!$D:$D,'20'!$A14,Data!$F:$F,'20'!$A$2))","v":87.257681538575909},{"$f":"IF(SUMIFS(Data!$E:$E,Data!$B:$B,'20'!J$3,Data!$C:$C,'20'!$A$3,Data!$D:$D,'20'!$A14,Data!$F:$F,'20'!$A$2)=0,\"-\",SUMIFS(Data!$E:$E,Data!$B:$B,'20'!J$3,Data!$C:$C,'20'!$A$3,Data!$D:$D,'20'!$A14,Data!$F:$F,'20'!$A$2))","v":95.893709110286693},{"$f":"IF(SUMIFS(Data!$E:$E,Data!$B:$B,'20'!K$3,Data!$C:$C,'20'!$A$3,Data!$D:$D,'20'!$A14,Data!$F:$F,'20'!$A$2)=0,\"-\",SUMIFS(Data!$E:$E,Data!$B:$B,'20'!K$3,Data!$C:$C,'20'!$A$3,Data!$D:$D,'20'!$A14,Data!$F:$F,'20'!$A$2))","v":86.822095390684609}]
[{"$f":"VLOOKUP(\"Alberta\",Translation!$A$1:$C$354, Translation!A1+1, 0)","v":"Alberta"},{"$f":"IF(SUMIFS(Data!$E:$E,Data!$B:$B,'20'!B$3,Data!$C:$C,'20'!$A$3,Data!$D:$D,'20'!$A15,Data!$F:$F,'20'!$A$2)=0,\"-\",SUMIFS(Data!$E:$E,Data!$B:$B,'20'!B$3,Data!$C:$C,'20'!$A$3,Data!$D:$D,'20'!$A15,Data!$F:$F,'20'!$A$2))","v":76.436319946311244},{"$f":"IF(SUMIFS(Data!$E:$E,Data!$B:$B,'20'!C$3,Data!$C:$C,'20'!$A$3,Data!$D:$D,'20'!$A15,Data!$F:$F,'20'!$A$2)=0,\"-\",SUMIFS(Data!$E:$E,Data!$B:$B,'20'!C$3,Data!$C:$C,'20'!$A$3,Data!$D:$D,'20'!$A15,Data!$F:$F,'20'!$A$2))","v":76.267434545090438},{"$f":"IF(SUMIFS(Data!$E:$E,Data!$B:$B,'20'!D$3,Data!$C:$C,'20'!$A$3,Data!$D:$D,'20'!$A15,Data!$F:$F,'20'!$A$2)=0,\"-\",SUMIFS(Data!$E:$E,Data!$B:$B,'20'!D$3,Data!$C:$C,'20'!$A$3,Data!$D:$D,'20'!$A15,Data!$F:$F,'20'!$A$2))","v":83.024707006791004},{"$f":"IF(SUMIFS(Data!$E:$E,Data!$B:$B,'20'!E$3,Data!$C:$C,'20'!$A$3,Data!$D:$D,'20'!$A15,Data!$F:$F,'20'!$A$2)=0,\"-\",SUMIFS(Data!$E:$E,Data!$B:$B,'20'!E$3,Data!$C:$C,'20'!$A$3,Data!$D:$D,'20'!$A15,Data!$F:$F,'20'!$A$2))","v":80.997378691472051},{"$f":"IF(SUMIFS(Data!$E:$E,Data!$B:$B,'20'!F$3,Data!$C:$C,'20'!$A$3,Data!$D:$D,'20'!$A15,Data!$F:$F,'20'!$A$2)=0,\"-\",SUMIFS(Data!$E:$E,Data!$B:$B,'20'!F$3,Data!$C:$C,'20'!$A$3,Data!$D:$D,'20'!$A15,Data!$F:$F,'20'!$A$2))","v":75.453670750168143},{"$f":"IF(SUMIFS(Data!$E:$E,Data!$B:$B,'20'!G$3,Data!$C:$C,'20'!$A$3,Data!$D:$D,'20'!$A15,Data!$F:$F,'20'!$A$2)=0,\"-\",SUMIFS(Data!$E:$E,Data!$B:$B,'20'!G$3,Data!$C:$C,'20'!$A$3,Data!$D:$D,'20'!$A15,Data!$F:$F,'20'!$A$2))","v":75.987461237853623},{"$f":"IF(SUMIFS(Data!$E:$E,Data!$B:$B,'20'!H$3,Data!$C:$C,'20'!$A$3,Data!$D:$D,'20'!$A15,Data!$F:$F,'20'!$A$2)=0,\"-\",SUMIFS(Data!$E:$E,Data!$B:$B,'20'!H$3,Data!$C:$C,'20'!$A$3,Data!$D:$D,'20'!$A15,Data!$F:$F,'20'!$A$2))","v":82.699656855108998},{"$f":"IF(SUMIFS(Data!$E:$E,Data!$B:$B,'20'!I$3,Data!$C:$C,'20'!$A$3,Data!$D:$D,'20'!$A15,Data!$F:$F,'20'!$A$2)=0,\"-\",SUMIFS(Data!$E:$E,Data!$B:$B,'20'!I$3,Data!$C:$C,'20'!$A$3,Data!$D:$D,'20'!$A15,Data!$F:$F,'20'!$A$2))","v":80.655965551254042},{"$f":"IF(SUMIFS(Data!$E:$E,Data!$B:$B,'20'!J$3,Data!$C:$C,'20'!$A$3,Data!$D:$D,'20'!$A15,Data!$F:$F,'20'!$A$2)=0,\"-\",SUMIFS(Data!$E:$E,Data!$B:$B,'20'!J$3,Data!$C:$C,'20'!$A$3,Data!$D:$D,'20'!$A15,Data!$F:$F,'20'!$A$2))","v":76.436319946311244},{"$f":"IF(SUMIFS(Data!$E:$E,Data!$B:$B,'20'!K$3,Data!$C:$C,'20'!$A$3,Data!$D:$D,'20'!$A15,Data!$F:$F,'20'!$A$2)=0,\"-\",SUMIFS(Data!$E:$E,Data!$B:$B,'20'!K$3,Data!$C:$C,'20'!$A$3,Data!$D:$D,'20'!$A15,Data!$F:$F,'20'!$A$2))","v":75.453670750168143}]
[{"$f":"VLOOKUP(\"British Columbia\",Translation!$A$1:$C$354, Translation!A1+1, 0)","v":"Colombie-Britannique"},{"$f":"IF(SUMIFS(Data!$E:$E,Data!$B:$B,'20'!B$3,Data!$C:$C,'20'!$A$3,Data!$D:$D,'20'!$A16,Data!$F:$F,'20'!$A$2)=0,\"-\",SUMIFS(Data!$E:$E,Data!$B:$B,'20'!B$3,Data!$C:$C,'20'!$A$3,Data!$D:$D,'20'!$A16,Data!$F:$F,'20'!$A$2))","v":91.910548205746522},{"$f":"IF(SUMIFS(Data!$E:$E,Data!$B:$B,'20'!C$3,Data!$C:$C,'20'!$A$3,Data!$D:$D,'20'!$A16,Data!$F:$F,'20'!$A$2)=0,\"-\",SUMIFS(Data!$E:$E,Data!$B:$B,'20'!C$3,Data!$C:$C,'20'!$A$3,Data!$D:$D,'20'!$A16,Data!$F:$F,'20'!$A$2))","v":90.678301412500176},{"$f":"IF(SUMIFS(Data!$E:$E,Data!$B:$B,'20'!D$3,Data!$C:$C,'20'!$A$3,Data!$D:$D,'20'!$A16,Data!$F:$F,'20'!$A$2)=0,\"-\",SUMIFS(Data!$E:$E,Data!$B:$B,'20'!D$3,Data!$C:$C,'20'!$A$3,Data!$D:$D,'20'!$A16,Data!$F:$F,'20'!$A$2))","v":91.957687552232315},{"$f":"IF(SUMIFS(Data!$E:$E,Data!$B:$B,'20'!E$3,Data!$C:$C,'20'!$A$3,Data!$D:$D,'20'!$A16,Data!$F:$F,'20'!$A$2)=0,\"-\",SUMIFS(Data!$E:$E,Data!$B:$B,'20'!E$3,Data!$C:$C,'20'!$A$3,Data!$D:$D,'20'!$A16,Data!$F:$F,'20'!$A$2))","v":92.737733158422643},{"$f":"IF(SUMIFS(Data!$E:$E,Data!$B:$B,'20'!F$3,Data!$C:$C,'20'!$A$3,Data!$D:$D,'20'!$A16,Data!$F:$F,'20'!$A$2)=0,\"-\",SUMIFS(Data!$E:$E,Data!$B:$B,'20'!F$3,Data!$C:$C,'20'!$A$3,Data!$D:$D,'20'!$A16,Data!$F:$F,'20'!$A$2))","v":89.641282348393261},{"$f":"IF(SUMIFS(Data!$E:$E,Data!$B:$B,'20'!G$3,Data!$C:$C,'20'!$A$3,Data!$D:$D,'20'!$A16,Data!$F:$F,'20'!$A$2)=0,\"-\",SUMIFS(Data!$E:$E,Data!$B:$B,'20'!G$3,Data!$C:$C,'20'!$A$3,Data!$D:$D,'20'!$A16,Data!$F:$F,'20'!$A$2))","v":90.466260557095353},{"$f":"IF(SUMIFS(Data!$E:$E,Data!$B:$B,'20'!H$3,Data!$C:$C,'20'!$A$3,Data!$D:$D,'20'!$A16,Data!$F:$F,'20'!$A$2)=0,\"-\",SUMIFS(Data!$E:$E,Data!$B:$B,'20'!H$3,Data!$C:$C,'20'!$A$3,Data!$D:$D,'20'!$A16,Data!$F:$F,'20'!$A$2))","v":91.789521645724477},{"$f":"IF(SUMIFS(Data!$E:$E,Data!$B:$B,'20'!I$3,Data!$C:$C,'20'!$A$3,Data!$D:$D,'20'!$A16,Data!$F:$F,'20'!$A$2)=0,\"-\",SUMIFS(Data!$E:$E,Data!$B:$B,'20'!I$3,Data!$C:$C,'20'!$A$3,Data!$D:$D,'20'!$A16,Data!$F:$F,'20'!$A$2))","v":92.199897137570431},{"$f":"IF(SUMIFS(Data!$E:$E,Data!$B:$B,'20'!J$3,Data!$C:$C,'20'!$A$3,Data!$D:$D,'20'!$A16,Data!$F:$F,'20'!$A$2)=0,\"-\",SUMIFS(Data!$E:$E,Data!$B:$B,'20'!J$3,Data!$C:$C,'20'!$A$3,Data!$D:$D,'20'!$A16,Data!$F:$F,'20'!$A$2))","v":91.910548205746522},{"$f":"IF(SUMIFS(Data!$E:$E,Data!$B:$B,'20'!K$3,Data!$C:$C,'20'!$A$3,Data!$D:$D,'20'!$A16,Data!$F:$F,'20'!$A$2)=0,\"-\",SUMIFS(Data!$E:$E,Data!$B:$B,'20'!K$3,Data!$C:$C,'20'!$A$3,Data!$D:$D,'20'!$A16,Data!$F:$F,'20'!$A$2))","v":89.641282348393261}]
[{"$f":"VLOOKUP(\"Territories\",Translation!$A$1:$C$354, Translation!A1+1, 0)","v":"Territoires"},{"$f":"IF(SUMIFS(Data!$E:$E,Data!$B:$B,'20'!B$3,Data!$C:$C,'20'!$A$3,Data!$D:$D,'20'!$A17,Data!$F:$F,'20'!$A$2)=0,\"-\",SUMIFS(Data!$E:$E,Data!$B:$B,'20'!B$3,Data!$C:$C,'20'!$A$3,Data!$D:$D,'20'!$A17,Data!$F:$F,'20'!$A$2))","v":95.18570592058694},{"$f":"IF(SUMIFS(Data!$E:$E,Data!$B:$B,'20'!C$3,Data!$C:$C,'20'!$A$3,Data!$D:$D,'20'!$A17,Data!$F:$F,'20'!$A$2)=0,\"-\",SUMIFS(Data!$E:$E,Data!$B:$B,'20'!C$3,Data!$C:$C,'20'!$A$3,Data!$D:$D,'20'!$A17,Data!$F:$F,'20'!$A$2))","v":90.841961669109764},{"$f":"IF(SUMIFS(Data!$E:$E,Data!$B:$B,'20'!D$3,Data!$C:$C,'20'!$A$3,Data!$D:$D,'20'!$A17,Data!$F:$F,'20'!$A$2)=0,\"-\",SUMIFS(Data!$E:$E,Data!$B:$B,'20'!D$3,Data!$C:$C,'20'!$A$3,Data!$D:$D,'20'!$A17,Data!$F:$F,'20'!$A$2))","v":88.1535142714133},{"$f":"IF(SUMIFS(Data!$E:$E,Data!$B:$B,'20'!E$3,Data!$C:$C,'20'!$A$3,Data!$D:$D,'20'!$A17,Data!$F:$F,'20'!$A$2)=0,\"-\",SUMIFS(Data!$E:$E,Data!$B:$B,'20'!E$3,Data!$C:$C,'20'!$A$3,Data!$D:$D,'20'!$A17,Data!$F:$F,'20'!$A$2))","v":90.955531703424981},{"$f":"IF(SUMIFS(Data!$E:$E,Data!$B:$B,'20'!F$3,Data!$C:$C,'20'!$A$3,Data!$D:$D,'20'!$A17,Data!$F:$F,'20'!$A$2)=0,\"-\",SUMIFS(Data!$E:$E,Data!$B:$B,'20'!F$3,Data!$C:$C,'20'!$A$3,Data!$D:$D,'20'!$A17,Data!$F:$F,'20'!$A$2))","v":88.348906571625989},{"$f":"IF(SUMIFS(Data!$E:$E,Data!$B:$B,'20'!G$3,Data!$C:$C,'20'!$A$3,Data!$D:$D,'20'!$A17,Data!$F:$F,'20'!$A$2)=0,\"-\",SUMIFS(Data!$E:$E,Data!$B:$B,'20'!G$3,Data!$C:$C,'20'!$A$3,Data!$D:$D,'20'!$A17,Data!$F:$F,'20'!$A$2))","v":93.491046262194047},{"$f":"IF(SUMIFS(Data!$E:$E,Data!$B:$B,'20'!H$3,Data!$C:$C,'20'!$A$3,Data!$D:$D,'20'!$A17,Data!$F:$F,'20'!$A$2)=0,\"-\",SUMIFS(Data!$E:$E,Data!$B:$B,'20'!H$3,Data!$C:$C,'20'!$A$3,Data!$D:$D,'20'!$A17,Data!$F:$F,'20'!$A$2))","v":90.131673018487845},{"$f":"IF(SUMIFS(Data!$E:$E,Data!$B:$B,'20'!I$3,Data!$C:$C,'20'!$A$3,Data!$D:$D,'20'!$A17,Data!$F:$F,'20'!$A$2)=0,\"-\",SUMIFS(Data!$E:$E,Data!$B:$B,'20'!I$3,Data!$C:$C,'20'!$A$3,Data!$D:$D,'20'!$A17,Data!$F:$F,'20'!$A$2))","v":91.45898532112929},{"$f":"IF(SUMIFS(Data!$E:$E,Data!$B:$B,'20'!J$3,Data!$C:$C,'20'!$A$3,Data!$D:$D,'20'!$A17,Data!$F:$F,'20'!$A$2)=0,\"-\",SUMIFS(Data!$E:$E,Data!$B:$B,'20'!J$3,Data!$C:$C,'20'!$A$3,Data!$D:$D,'20'!$A17,Data!$F:$F,'20'!$A$2))","v":95.18570592058694},{"$f":"IF(SUMIFS(Data!$E:$E,Data!$B:$B,'20'!K$3,Data!$C:$C,'20'!$A$3,Data!$D:$D,'20'!$A17,Data!$F:$F,'20'!$A$2)=0,\"-\",SUMIFS(Data!$E:$E,Data!$B:$B,'20'!K$3,Data!$C:$C,'20'!$A$3,Data!$D:$D,'20'!$A17,Data!$F:$F,'20'!$A$2))","v":88.348906571625989}]
[{"$f":"VLOOKUP(\"Distribution based on loan amounts, not number of loans.\",Translation!$A$1:$C$354, Translation!A1+1, 0)","v":"La répartition est établie d'après le montant, plutôt que le nombre de prêts assurés."}]
[{"$f":"VLOOKUP(\"The sum of all breakdown categories may not add up to 100 due to rounding.\",Translation!$A$1:$C$354, Translation!A1+1, 0)","v":"Les chiffres ayant été arrondis, il se peut que la somme de l'ensemble des catégories n'égale pas 100 %."}]

{"sheet":"21","index":22,"n_rows":20,"n_cols":11,"rows_kept":20,"cut":false,"hidden":false,"merged":[[2,0,3,0],[0,6,0,8],[2,2,2,10]]}
[{"$f":"VLOOKUP(\"TRANSACTIONAL HOMEOWNER AND PORTFOLIO - NEW/EXISTING\",Translation!$A$1:$C$354, Translation!A1+1, 0)","v":"PROPRIÉTAIRES-OCCUPANTS (À L’UNITÉ) ET ASSURANCE DE PORTEFEUILLE - NEUF/EXISTANT"},null,null,null,null,null,{"$f":"VLOOKUP(\"Back to Table of Contents\",Translation!$A$1:$C$354, Translation!A1+1, 0)","v":"Retour à la table des matières"},null,null,null,{"$f":"VLOOKUP(\"Back to Table of Contents\",Translation!$A$1:$C$354, Translation!A1+1, 0)","v":"Retour à la table des matières"}]
[{"$f":"VLOOKUP(\"Insurance-in-force by new and existing type (%)\",Translation!$A$1:$C$354, Translation!A1+1, 0)","v":"Contrats d’assurance en vigueur selon le type neuf/existant (%)"}]
[{"$f":"VLOOKUP(\"TRANSACTIONAL HOMEOWNER\",Translation!$A$1:$C$354, Translation!A1+1, 0)","v":"PROPRIÉTAIRES-OCCUPANTS, À L’UNITÉ"},null,{"$f":"VLOOKUP(\"As at\",Translation!$A$1:$C$354,Translation!A1+1,0)","v":"Aux"}]
[null,{"$f":"VLOOKUP(\"Q1 2020\",Translation!$A$1:$C$354, Translation!$A1+1, 0)","v":"T1 2020"},{"$f":"VLOOKUP(\"Q4 2019\",Translation!$A$1:$C$354, Translation!$A1+1, 0)","v":"T4 2019"},{"$f":"VLOOKUP(\"Q3 2019\",Translation!$A$1:$C$354, Translation!$A1+1, 0)","v":"T3 2019"},{"$f":"VLOOKUP(\"Q2 2019\",Translation!$A$1:$C$354, Translation!$A1+1, 0)","v":"T2 2019"},{"$f":"VLOOKUP(\"Q1 2019\",Translation!$A$1:$C$354, Translation!$A1+1, 0)","v":"T1 2019"},{"$f":"VLOOKUP(\"Q4 2018\",Translation!$A$1:$C$354, Translation!A1+1, 0)","v":"T4 2018"},{"$f":"VLOOKUP(\"Q3 2018\",Translation!$A$1:$C$354, Translation!A1+1, 0)","v":"T3 2018"},{"$f":"VLOOKUP(\"Q2 2018\",Translation!$A$1:$C$354, Translation!A1+1, 0)","v":"T2 2018"},{"$f":"VLOOKUP(\"Q4 2017\",Translation!$A$1:$C$354, Translation!A1+1, 0)","v":"T4 2017"},{"$f":"VLOOKUP(\"Q3 2017\",Translation!$A$1:$C$354, Translation!A1+1, 0)","v":"T3 2017"}]
[{"$f":"VLOOKUP(\"New\",Translation!$A$1:$C$354, Translation!A1+1, 0)","v":"Neuf"},13.501312449705013,13.499626886908594,13.536795041503643,13.567820886976516,13.728529369124528,13.745610865510669,13.737475632204674,13.806260938499429,13.888402098887612,13.8413652727805]
[{"$f":"VLOOKUP(\"Existing\",Translation!$A$1:$C$354, Translation!A1+1, 0)","v":"Existant"},86.498687550203826,86.500373112972412,86.463204958495552,86.432179113327109,86.271470630877928,86.254389134012015,86.262524367724495,86.19373906149815,86.111597901162057,86.158634727427923]
[{"$f":"VLOOKUP(\"Existing properties by province (%)\",Translation!$A$1:$C$354, Translation!A1+1, 0)","v":"Propriétés existantes selon la province (%)"}]
[{"$f":"VLOOKUP(\"Newfoundland and Labrador\",Translation!$A$1:$C$354, Translation!A1+1, 0)","v":"Terre-Neuve-et-Labrador"},84.716531690909264,84.636754670426626,84.6,84.257081390272759,84.175985570758911,83.971921657712812,83.923381340782711,83.821186356814664,83.651190111108718,83.566765963574881]
[{"$f":"VLOOKUP(\"Prince Edward Island\",Translation!$A$1:$C$354, Translation!A1+1, 0)","v":"Île-du-Prince-Édouard"},85.659567311587224,85.672859288458852,85.5,85.973060724366391,85.68724720359458,85.609734563939384,85.735202452622005,85.720575220273815,85.804846640743776,86.26767239947489]
[{"$f":"VLOOKUP(\"Nova Scotia\",Translation!$A$1:$C$354, Translation!A1+1, 0)","v":"Nouvelle-Écosse"},89.273094165428603,89.380853860613257,89.6,89.412070587012209,89.390121589310837,89.331222352360015,89.398519342679947,89.293207761999099,89.172100012109951,89.309459265788448]
[{"$f":"VLOOKUP(\"New Brunswick\",Translation!$A$1:$C$354, Translation!A1+1, 0)","v":"Nouveau-Brunswick"},88.098165721515869,87.985648741456785,87.9,87.797106195747546,87.575166513389021,87.492137355082477,87.553829001680398,87.53241682904661,87.310414295102447,87.318509529184823]
[{"$f":"VLOOKUP(\"Quebec\",Translation!$A$1:$C$354, Translation!A1+1, 0)","v":"Québec"},86.704896830201264,86.631345793995209,86.6,86.429054422745992,86.120254603300552,86.050979346488091,86.006319845653792,85.976082160789446,85.649616763303015,85.720769690906621]
[{"$f":"VLOOKUP(\"Ontario\",Translation!$A$1:$C$354, Translation!A1+1, 0)","v":"Ontario"},91.184139716135419,91.130967361962661,91,90.952980957134741,90.819019609492031,90.733539093437571,90.68556529824906,90.503634019267508,90.385772298408043,90.371792697823594]
[{"$f":"VLOOKUP(\"Manitoba\",Translation!$A$1:$C$354, Translation!A1+1, 0)","v":"Manitoba"},87.065141823270721,87.195037516153633,87.3,87.257744080487882,87.276963956681698,87.385460668440388,87.583691376570684,87.653513517233634,88.054834871176709,88.22334145449679]
[{"$f":"VLOOKUP(\"Saskatchewan\",Translation!$A$1:$C$354, Translation!A1+1, 0)","v":"Saskatchewan"},84.733424313339043,84.570723096112047,84.5,84.295151245472994,84.124502089244231,84.083179560750878,84.057146885936859,83.93223589332257,83.750965849374765,83.701733834392599]
[{"$f":"VLOOKUP(\"Alberta\",Translation!$A$1:$C$354, Translation!A1+1, 0)","v":"Alberta"},78.700488789434729,78.788794387340062,78.8,78.852503930992697,78.721916810530743,78.787127873419607,78.833755061413967,78.72601719479816,78.730364615258623,78.837441316819252]
[{"$f":"VLOOKUP(\"British Columbia\",Translation!$A$1:$C$354, Translation!A1+1, 0)","v":"Colombie-Britannique"},90.103299790619602,90.026674244928486,89.9,89.83368794843706,89.670649669796262,89.625704825051542,89.518506039687622,89.450816845219023,89.143752749526513,88.987886537257765]
[{"$f":"VLOOKUP(\"Territories\",Translation!$A$1:$C$354, Translation!A1+1, 0)","v":"Territoires"},89.752975803198922,89.711110408143782,89.7,89.614250163306579,89.466359458663632,89.388741384879268,89.203220179224161,89.118459659537109,88.897091912363678,88.925213713247061]
[{"$f":"VLOOKUP(\"Distribution based on outstanding loan amounts, not number of loans.\",Translation!$A$1:$C$354, Translation!A1+1, 0)","v":"La répartition est établie d'après le solde, plutôt que le nombre de prêts assurés."}]
[{"$f":"VLOOKUP(\"The sum of all breakdown categories may not add up to 100 due to rounding.\",Translation!$A$1:$C$354, Translation!A1+1, 0)","v":"Les chiffres ayant été arrondis, il se peut que la somme de l'ensemble des catégories n'égale pas 100 %."}]

{"sheet":"22","index":23,"n_rows":45,"n_cols":11,"rows_kept":45,"cut":false,"hidden":false,"merged":[[0,6,0,10]]}
[{"$f":"VLOOKUP(\"TRANSACTIONAL HOMEOWNER AND PORTFOLIO - GDS/TDS\",Translation!$A$1:$C$354, Translation!A1+1, 0)","v":"PROPRIÉTAIRES-OCCUPANTS (À L’UNITÉ) ET ASSURANCE DE PORTEFEUILLE - ABD/ATD"},null,null,null,null,null,{"$f":"VLOOKUP(\"Back to Table of Contents\",Translation!$A$1:$C$354, Translation!A1+1, 0)","v":"Retour à la table des matières"}]
[{"$f":"VLOOKUP(\"Loans insured in period by borrower average gross debt service ratio (GDS) (%)\",Translation!$A$1:$C$354, Translation!A1+1, 0)","v":"Prêts hypothécaires assurés au cours de la période selon le rapport d’amortissement brut de la dette (ABD) moyen des emprunteurs détenant un prêt assuré par la SCHL (%)"}]
[{"$f":"VLOOKUP(\"TRANSACTIONAL HOMEOWNER\",Translation!$A$1:$C$354, Translation!A1+1, 0)","v":"PROPRIÉTAIRES-OCCUPANTS, À L’UNITÉ"},{"$f":"VLOOKUP(\"Q1 2020\",Translation!$A$1:$C$354, Translation!$A$1+1, 0)","v":"T1 2020"},{"$f":"VLOOKUP(\"Q4 2019\",Translation!$A$1:$C$354, Translation!$A$1+1, 0)","v":"T4 2019"},{"$f":"VLOOKUP(\"Q3 2019\",Translation!$A$1:$C$354, Translation!$A$1+1, 0)","v":"T3 2019"},{"$f":"VLOOKUP(\"Q2 2019\",Translation!$A$1:$C$354, Translation!$A$1+1, 0)","v":"T2 2019"},{"$f":"VLOOKUP(\"Q1 2019\",Translation!$A$1:$C$354, Translation!$A$1+1, 0)","v":"T1 2019"},{"$f":"VLOOKUP(\"Q4 2018\",Translation!$A$1:$C$354, Translation!$A$1+1, 0)","v":"T4 2018"},{"$f":"VLOOKUP(\"Q3 2018\",Translation!$A$1:$C$354, Translation!$A$1+1, 0)","v":"T3 2018"},{"$f":"VLOOKUP(\"Q2 2018\",Translation!$A$1:$C$354, Translation!$A$1+1, 0)","v":"T2 2018"},{"$f":"VLOOKUP(\"YTD 2020\",Translation!$A$1:$C$354, Translation!$A$1+1, 0)","v":"Cumul 2020"},{"$f":"VLOOKUP(\"YTD 2019\",Translation!$A$1:$C$354, Translation!$A$1+1, 0)","v":"Cumul 2019"}]
[" <= 30 %",{"$f":"SUMIFS(Data!$E:$E,Data!$B:$B,'22'!B$3,Data!$C:$C,'22'!$A$3,Data!$H:$H,'22'!$A4,Data!$F:$F,'22'!$A$2)","v":56.685670001181293},{"$f":"SUMIFS(Data!$E:$E,Data!$B:$B,'22'!C$3,Data!$C:$C,'22'!$A$3,Data!$H:$H,'22'!$A4,Data!$F:$F,'22'!$A$2)","v":56.403996457236957},{"$f":"SUMIFS(Data!$E:$E,Data!$B:$B,'22'!D$3,Data!$C:$C,'22'!$A$3,Data!$H:$H,'22'!$A4,Data!$F:$F,'22'!$A$2)","v":57.348010316915719},{"$f":"SUMIFS(Data!$E:$E,Data!$B:$B,'22'!E$3,Data!$C:$C,'22'!$A$3,Data!$H:$H,'22'!$A4,Data!$F:$F,'22'!$A$2)","v":62.216994509818349},{"$f":"SUMIFS(Data!$E:$E,Data!$B:$B,'22'!F$3,Data!$C:$C,'22'!$A$3,Data!$H:$H,'22'!$A4,Data!$F:$F,'22'!$A$2)","v":56.753901699013298},{"$f":"SUMIFS(Data!$E:$E,Data!$B:$B,'22'!G$3,Data!$C:$C,'22'!$A$3,Data!$H:$H,'22'!$A4,Data!$F:$F,'22'!$A$2)","v":58.205238480241363},{"$f":"SUMIFS(Data!$E:$E,Data!$B:$B,'22'!H$3,Data!$C:$C,'22'!$A$3,Data!$H:$H,'22'!$A4,Data!$F:$F,'22'!$A$2)","v":59.292172956486894},{"$f":"SUMIFS(Data!$E:$E,Data!$B:$B,'22'!I$3,Data!$C:$C,'22'!$A$3,Data!$H:$H,'22'!$A4,Data!$F:$F,'22'!$A$2)","v":62.124749569178348},{"$f":"SUMIFS(Data!$E:$E,Data!$B:$B,'22'!J$3,Data!$C:$C,'22'!$A$3,Data!$H:$H,'22'!$A4,Data!$F:$F,'22'!$A$2)","v":56.685670001181293},{"$f":"SUMIFS(Data!$E:$E,Data!$B:$B,'22'!K$3,Data!$C:$C,'22'!$A$3,Data!$H:$H,'22'!$A4,Data!$F:$F,'22'!$A$2)","v":56.753901699013298}]
[" > 30 % <= 35 %",{"$f":"SUMIFS(Data!$E:$E,Data!$B:$B,'22'!B$3,Data!$C:$C,'22'!$A$3,Data!$H:$H,'22'!$A5,Data!$F:$F,'22'!$A$2)","v":23.764345964190905},{"$f":"SUMIFS(Data!$E:$E,Data!$B:$B,'22'!C$3,Data!$C:$C,'22'!$A$3,Data!$H:$H,'22'!$A5,Data!$F:$F,'22'!$A$2)","v":24.62639634422408},{"$f":"SUMIFS(Data!$E:$E,Data!$B:$B,'22'!D$3,Data!$C:$C,'22'!$A$3,Data!$H:$H,'22'!$A5,Data!$F:$F,'22'!$A$2)","v":23.933337596468405},{"$f":"SUMIFS(Data!$E:$E,Data!$B:$B,'22'!E$3,Data!$C:$C,'22'!$A$3,Data!$H:$H,'22'!$A5,Data!$F:$F,'22'!$A$2)","v":22.30035703427286},{"$f":"SUMIFS(Data!$E:$E,Data!$B:$B,'22'!F$3,Data!$C:$C,'22'!$A$3,Data!$H:$H,'22'!$A5,Data!$F:$F,'22'!$A$2)","v":24.792654327145076},{"$f":"SUMIFS(Data!$E:$E,Data!$B:$B,'22'!G$3,Data!$C:$C,'22'!$A$3,Data!$H:$H,'22'!$A5,Data!$F:$F,'22'!$A$2)","v":23.788007467462808},{"$f":"SUMIFS(Data!$E:$E,Data!$B:$B,'22'!H$3,Data!$C:$C,'22'!$A$3,Data!$H:$H,'22'!$A5,Data!$F:$F,'22'!$A$2)","v":23.743944396094889},{"$f":"SUMIFS(Data!$E:$E,Data!$B:$B,'22'!I$3,Data!$C:$C,'22'!$A$3,Data!$H:$H,'22'!$A5,Data!$F:$F,'22'!$A$2)","v":22.432435410758099},{"$f":"SUMIFS(Data!$E:$E,Data!$B:$B,'22'!J$3,Data!$C:$C,'22'!$A$3,Data!$H:$H,'22'!$A5,Data!$F:$F,'22'!$A$2)","v":23.764345964190905},{"$f":"SUMIFS(Data!$E:$E,Data!$B:$B,'22'!K$3,Data!$C:$C,'22'!$A$3,Data!$H:$H,'22'!$A5,Data!$F:$F,'22'!$A$2)","v":24.792654327145076}]
[" > 35 % <= 39 %",{"$f":"SUMIFS(Data!$E:$E,Data!$B:$B,'22'!B$3,Data!$C:$C,'22'!$A$3,Data!$H:$H,'22'!$A6,Data!$F:$F,'22'!$A$2)","v":19.549984034627798},{"$f":"SUMIFS(Data!$E:$E,Data!$B:$B,'22'!C$3,Data!$C:$C,'22'!$A$3,Data!$H:$H,'22'!$A6,Data!$F:$F,'22'!$A$2)","v":18.969607198538935},{"$f":"SUMIFS(Data!$E:$E,Data!$B:$B,'22'!D$3,Data!$C:$C,'22'!$A$3,Data!$H:$H,'22'!$A6,Data!$F:$F,'22'!$A$2)","v":18.718652086615872},{"$f":"SUMIFS(Data!$E:$E,Data!$B:$B,'22'!E$3,Data!$C:$C,'22'!$A$3,Data!$H:$H,'22'!$A6,Data!$F:$F,'22'!$A$2)","v":15.482648455908778},{"$f":"SUMIFS(Data!$E:$E,Data!$B:$B,'22'!F$3,Data!$C:$C,'22'!$A$3,Data!$H:$H,'22'!$A6,Data!$F:$F,'22'!$A$2)","v":18.453443973841605},{"$f":"SUMIFS(Data!$E:$E,Data!$B:$B,'22'!G$3,Data!$C:$C,'22'!$A$3,Data!$H:$H,'22'!$A6,Data!$F:$F,'22'!$A$2)","v":18.006754052295836},{"$f":"SUMIFS(Data!$E:$E,Data!$B:$B,'22'!H$3,Data!$C:$C,'22'!$A$3,Data!$H:$H,'22'!$A6,Data!$F:$F,'22'!$A$2)","v":16.963882647418181},{"$f":"SUMIFS(Data!$E:$E,Data!$B:$B,'22'!I$3,Data!$C:$C,'22'!$A$3,Data!$H:$H,'22'!$A6,Data!$F:$F,'22'!$A$2)","v":15.43026683765938},{"$f":"SUMIFS(Data!$E:$E,Data!$B:$B,'22'!J$3,Data!$C:$C,'22'!$A$3,Data!$H:$H,'22'!$A6,Data!$F:$F,'22'!$A$2)","v":19.549984034627798},{"$f":"SUMIFS(Data!$E:$E,Data!$B:$B,'22'!K$3,Data!$C:$C,'22'!$A$3,Data!$H:$H,'22'!$A6,Data!$F:$F,'22'!$A$2)","v":18.453443973841605}]
[" > 39 %",{"$f":"SUMIFS(Data!$E:$E,Data!$B:$B,'22'!B$3,Data!$C:$C,'22'!$A$3,Data!$H:$H,'22'!$A7,Data!$F:$F,'22'!$A$2)","v":0},{"$f":"SUMIFS(Data!$E:$E,Data!$B:$B,'22'!C$3,Data!$C:$C,'22'!$A$3,Data!$H:$H,'22'!$A7,Data!$F:$F,'22'!$A$2)","v":0},{"$f":"SUMIFS(Data!$E:$E,Data!$B:$B,'22'!D$3,Data!$C:$C,'22'!$A$3,Data!$H:$H,'22'!$A7,Data!$F:$F,'22'!$A$2)","v":0},{"$f":"SUMIFS(Data!$E:$E,Data!$B:$B,'22'!E$3,Data!$C:$C,'22'!$A$3,Data!$H:$H,'22'!$A7,Data!$F:$F,'22'!$A$2)","v":0},{"$f":"SUMIFS(Data!$E:$E,Data!$B:$B,'22'!F$3,Data!$C:$C,'22'!$A$3,Data!$H:$H,'22'!$A7,Data!$F:$F,'22'!$A$2)","v":0},{"$f":"SUMIFS(Data!$E:$E,Data!$B:$B,'22'!G$3,Data!$C:$C,'22'!$A$3,Data!$H:$H,'22'!$A7,Data!$F:$F,'22'!$A$2)","v":0},{"$f":"SUMIFS(Data!$E:$E,Data!$B:$B,'22'!H$3,Data!$C:$C,'22'!$A$3,Data!$H:$H,'22'!$A7,Data!$F:$F,'22'!$A$2)","v":0},{"$f":"SUMIFS(Data!$E:$E,Data!$B:$B,'22'!I$3,Data!$C:$C,'22'!$A$3,Data!$H:$H,'22'!$A7,Data!$F:$F,'22'!$A$2)","v":1.2548182404163877E-2},{"$f":"SUMIFS(Data!$E:$E,Data!$B:$B,'22'!J$3,Data!$C:$C,'22'!$A$3,Data!$H:$H,'22'!$A7,Data!$F:$F,'22'!$A$2)","v":0},{"$f":"SUMIFS(Data!$E:$E,Data!$B:$B,'22'!K$3,Data!$C:$C,'22'!$A$3,Data!$H:$H,'22'!$A7,Data!$F:$F,'22'!$A$2)","v":0}]
[{"$f":"VLOOKUP(\"Average Gross Debt Service Ratio (GDS)\",Translation!$A$1:$C$354, Translation!A1+1, 0)","v":"Rapport d'amortissement brut de la dette (ABD) moyen"},{"$f":"SUMIFS(Data!$E:$E,Data!$B:$B,'22'!B$3,Data!$C:$C,'22'!$A$3,Data!$H:$H,'22'!$A8,Data!$F:$F,'22'!$A$2)","v":27.84730794247012},{"$f":"SUMIFS(Data!$E:$E,Data!$B:$B,'22'!C$3,Data!$C:$C,'22'!$A$3,Data!$D:$D,'22'!$A8,Data!$F:$F,'22'!$A$2)","v":27.728439213029976},{"$f":"SUMIFS(Data!$E:$E,Data!$B:$B,'22'!D$3,Data!$C:$C,'22'!$A$3,Data!$D:$D,'22'!$A8,Data!$F:$F,'22'!$A$2)","v":27.635379269698316},{"$f":"SUMIFS(Data!$E:$E,Data!$B:$B,'22'!E$3,Data!$C:$C,'22'!$A$3,Data!$D:$D,'22'!$A8,Data!$F:$F,'22'!$A$2)","v":26.969540206497957},{"$f":"SUMIFS(Data!$E:$E,Data!$B:$B,'22'!F$3,Data!$C:$C,'22'!$A$3,Data!$D:$D,'22'!$A8,Data!$F:$F,'22'!$A$2)","v":27.666137550899201},{"$f":"SUMIFS(Data!$E:$E,Data!$B:$B,'22'!G$3,Data!$C:$C,'22'!$A$3,Data!$D:$D,'22'!$A8,Data!$F:$F,'22'!$A$2)","v":27.5138184243742},{"$f":"SUMIFS(Data!$E:$E,Data!$B:$B,'22'!H$3,Data!$C:$C,'22'!$A$3,Data!$D:$D,'22'!$A8,Data!$F:$F,'22'!$A$2)","v":27.361392734328543},{"$f":"SUMIFS(Data!$E:$E,Data!$B:$B,'22'!I$3,Data!$C:$C,'22'!$A$3,Data!$D:$D,'22'!$A8,Data!$F:$F,'22'!$A$2)","v":26.992709169128485},{"$f":"SUMIFS(Data!$E:$E,Data!$B:$B,'22'!J$3,Data!$C:$C,'22'!$A$3,Data!$D:$D,'22'!$A8,Data!$F:$F,'22'!$A$2)","v":27.84730794247012},{"$f":"SUMIFS(Data!$E:$E,Data!$B:$B,'22'!K$3,Data!$C:$C,'22'!$A$3,Data!$D:$D,'22'!$A8,Data!$F:$F,'22'!$A$2)","v":27.666137550899201}]
[{"$f":"VLOOKUP(\"Average Gross Debt Service Ratio (GDS) by province\",Translation!$A$1:$C$354, Translation!A1+1, 0)","v":"Rapport d'amortissement brut de la dette (ABD) moyen selon la province"}]
[{"$f":"VLOOKUP(\"Newfoundland and Labrador\",Translation!$A$1:$C$354, Translation!A1+1, 0)","v":"Terre-Neuve-et-Labrador"},{"$f":"SUMIFS(Data!$E:$E,Data!$B:$B,'22'!B$3,Data!$C:$C,'22'!$A$3,Data!$D:$D,'22'!$A10,Data!$F:$F,'22'!$A$2)","v":21.862060406235177},{"$f":"SUMIFS(Data!$E:$E,Data!$B:$B,'22'!C$3,Data!$C:$C,'22'!$A$3,Data!$D:$D,'22'!$A10,Data!$F:$F,'22'!$A$2)","v":21.431013887905337},{"$f":"SUMIFS(Data!$E:$E,Data!$B:$B,'22'!D$3,Data!$C:$C,'22'!$A$3,Data!$D:$D,'22'!$A10,Data!$F:$F,'22'!$A$2)","v":21.694564639199111},{"$f":"SUMIFS(Data!$E:$E,Data!$B:$B,'22'!E$3,Data!$C:$C,'22'!$A$3,Data!$D:$D,'22'!$A10,Data!$F:$F,'22'!$A$2)","v":21.979798466689203},{"$f":"SUMIFS(Data!$E:$E,Data!$B:$B,'22'!F$3,Data!$C:$C,'22'!$A$3,Data!$D:$D,'22'!$A10,Data!$F:$F,'22'!$A$2)","v":21.974646805980139},{"$f":"SUMIFS(Data!$E:$E,Data!$B:$B,'22'!G$3,Data!$C:$C,'22'!$A$3,Data!$D:$D,'22'!$A10,Data!$F:$F,'22'!$A$2)","v":21.360170219595563},{"$f":"SUMIFS(Data!$E:$E,Data!$B:$B,'22'!H$3,Data!$C:$C,'22'!$A$3,Data!$D:$D,'22'!$A10,Data!$F:$F,'22'!$A$2)","v":21.939961519154135},{"$f":"SUMIFS(Data!$E:$E,Data!$B:$B,'22'!I$3,Data!$C:$C,'22'!$A$3,Data!$D:$D,'22'!$A10,Data!$F:$F,'22'!$A$2)","v":22.26974820759979},{"$f":"SUMIFS(Data!$E:$E,Data!$B:$B,'22'!J$3,Data!$C:$C,'22'!$A$3,Data!$D:$D,'22'!$A10,Data!$F:$F,'22'!$A$2)","v":21.862060406235177},{"$f":"SUMIFS(Data!$E:$E,Data!$B:$B,'22'!K$3,Data!$C:$C,'22'!$A$3,Data!$D:$D,'22'!$A10,Data!$F:$F,'22'!$A$2)","v":21.974646805980139}]
[{"$f":"VLOOKUP(\"Prince Edward Island\",Translation!$A$1:$C$354, Translation!A1+1, 0)","v":"Île-du-Prince-Édouard"},{"$f":"SUMIFS(Data!$E:$E,Data!$B:$B,'22'!B$3,Data!$C:$C,'22'!$A$3,Data!$D:$D,'22'!$A11,Data!$F:$F,'22'!$A$2)","v":24.984996638840599},{"$f":"SUMIFS(Data!$E:$E,Data!$B:$B,'22'!C$3,Data!$C:$C,'22'!$A$3,Data!$D:$D,'22'!$A11,Data!$F:$F,'22'!$A$2)","v":24.54979429115625},{"$f":"SUMIFS(Data!$E:$E,Data!$B:$B,'22'!D$3,Data!$C:$C,'22'!$A$3,Data!$D:$D,'22'!$A11,Data!$F:$F,'22'!$A$2)","v":23.607015274855804},{"$f":"SUMIFS(Data!$E:$E,Data!$B:$B,'22'!E$3,Data!$C:$C,'22'!$A$3,Data!$D:$D,'22'!$A11,Data!$F:$F,'22'!$A$2)","v":22.676628048203945},{"$f":"SUMIFS(Data!$E:$E,Data!$B:$B,'22'!F$3,Data!$C:$C,'22'!$A$3,Data!$D:$D,'22'!$A11,Data!$F:$F,'22'!$A$2)","v":23.498614077717441},{"$f":"SUMIFS(Data!$E:$E,Data!$B:$B,'22'!G$3,Data!$C:$C,'22'!$A$3,Data!$D:$D,'22'!$A11,Data!$F:$F,'22'!$A$2)","v":23.194260915904355},{"$f":"SUMIFS(Data!$E:$E,Data!$B:$B,'22'!H$3,Data!$C:$C,'22'!$A$3,Data!$D:$D,'22'!$A11,Data!$F:$F,'22'!$A$2)","v":23.007705729118744},{"$f":"SUMIFS(Data!$E:$E,Data!$B:$B,'22'!I$3,Data!$C:$C,'22'!$A$3,Data!$D:$D,'22'!$A11,Data!$F:$F,'22'!$A$2)","v":22.57208737960422},{"$f":"SUMIFS(Data!$E:$E,Data!$B:$B,'22'!J$3,Data!$C:$C,'22'!$A$3,Data!$D:$D,'22'!$A11,Data!$F:$F,'22'!$A$2)","v":24.984996638840599},{"$f":"SUMIFS(Data!$E:$E,Data!$B:$B,'22'!K$3,Data!$C:$C,'22'!$A$3,Data!$D:$D,'22'!$A11,Data!$F:$F,'22'!$A$2)","v":23.498614077717441}]
[{"$f":"VLOOKUP(\"Nova Scotia\",Translation!$A$1:$C$354, Translation!A1+1, 0)","v":"Nouvelle-Écosse"},{"$f":"SUMIFS(Data!$E:$E,Data!$B:$B,'22'!B$3,Data!$C:$C,'22'!$A$3,Data!$D:$D,'22'!$A12,Data!$F:$F,'22'!$A$2)","v":22.986361231521151},{"$f":"SUMIFS(Data!$E:$E,Data!$B:$B,'22'!C$3,Data!$C:$C,'22'!$A$3,Data!$D:$D,'22'!$A12,Data!$F:$F,'22'!$A$2)","v":22.938490255800485},{"$f":"SUMIFS(Data!$E:$E,Data!$B:$B,'22'!D$3,Data!$C:$C,'22'!$A$3,Data!$D:$D,'22'!$A12,Data!$F:$F,'22'!$A$2)","v":23.072456435094448},{"$f":"SUMIFS(Data!$E:$E,Data!$B:$B,'22'!E$3,Data!$C:$C,'22'!$A$3,Data!$D:$D,'22'!$A12,Data!$F:$F,'22'!$A$2)","v":22.395858606631258},{"$f":"SUMIFS(Data!$E:$E,Data!$B:$B,'22'!F$3,Data!$C:$C,'22'!$A$3,Data!$D:$D,'22'!$A12,Data!$F:$F,'22'!$A$2)","v":22.616932096981639},{"$f":"SUMIFS(Data!$E:$E,Data!$B:$B,'22'!G$3,Data!$C:$C,'22'!$A$3,Data!$D:$D,'22'!$A12,Data!$F:$F,'22'!$A$2)","v":22.645023532916756},{"$f":"SUMIFS(Data!$E:$E,Data!$B:$B,'22'!H$3,Data!$C:$C,'22'!$A$3,Data!$D:$D,'22'!$A12,Data!$F:$F,'22'!$A$2)","v":22.655340505318041},{"$f":"SUMIFS(Data!$E:$E,Data!$B:$B,'22'!I$3,Data!$C:$C,'22'!$A$3,Data!$D:$D,'22'!$A12,Data!$F:$F,'22'!$A$2)","v":22.443843963478859},{"$f":"SUMIFS(Data!$E:$E,Data!$B:$B,'22'!J$3,Data!$C:$C,'22'!$A$3,Data!$D:$D,'22'!$A12,Data!$F:$F,'22'!$A$2)","v":22.986361231521151},{"$f":"SUMIFS(Data!$E:$E,Data!$B:$B,'22'!K$3,Data!$C:$C,'22'!$A$3,Data!$D:$D,'22'!$A12,Data!$F:$F,'22'!$A$2)","v":22.616932096981639}]
[{"$f":"VLOOKUP(\"New Brunswick\",Translation!$A$1:$C$354, Translation!A1+1, 0)","v":"Nouveau-Brunswick"},{"$f":"SUMIFS(Data!$E:$E,Data!$B:$B,'22'!B$3,Data!$C:$C,'22'!$A$3,Data!$D:$D,'22'!$A13,Data!$F:$F,'22'!$A$2)","v":21.258173585036253},{"$f":"SUMIFS(Data!$E:$E,Data!$B:$B,'22'!C$3,Data!$C:$C,'22'!$A$3,Data!$D:$D,'22'!$A13,Data!$F:$F,'22'!$A$2)","v":21.192434287716075},{"$f":"SUMIFS(Data!$E:$E,Data!$B:$B,'22'!D$3,Data!$C:$C,'22'!$A$3,Data!$D:$D,'22'!$A13,Data!$F:$F,'22'!$A$2)","v":21.750710484561846},{"$f":"SUMIFS(Data!$E:$E,Data!$B:$B,'22'!E$3,Data!$C:$C,'22'!$A$3,Data!$D:$D,'22'!$A13,Data!$F:$F,'22'!$A$2)","v":20.452629955779127},{"$f":"SUMIFS(Data!$E:$E,Data!$B:$B,'22'!F$3,Data!$C:$C,'22'!$A$3,Data!$D:$D,'22'!$A13,Data!$F:$F,'22'!$A$2)","v":21.228331781492475},{"$f":"SUMIFS(Data!$E:$E,Data!$B:$B,'22'!G$3,Data!$C:$C,'22'!$A$3,Data!$D:$D,'22'!$A13,Data!$F:$F,'22'!$A$2)","v":21.173444036828808},{"$f":"SUMIFS(Data!$E:$E,Data!$B:$B,'22'!H$3,Data!$C:$C,'22'!$A$3,Data!$D:$D,'22'!$A13,Data!$F:$F,'22'!$A$2)","v":20.969360006553327},{"$f":"SUMIFS(Data!$E:$E,Data!$B:$B,'22'!I$3,Data!$C:$C,'22'!$A$3,Data!$D:$D,'22'!$A13,Data!$F:$F,'22'!$A$2)","v":20.392439246395725},{"$f":"SUMIFS(Data!$E:$E,Data!$B:$B,'22'!J$3,Data!$C:$C,'22'!$A$3,Data!$D:$D,'22'!$A13,Data!$F:$F,'22'!$A$2)","v":21.258173585036253},{"$f":"SUMIFS(Data!$E:$E,Data!$B:$B,'22'!K$3,Data!$C:$C,'22'!$A$3,Data!$D:$D,'22'!$A13,Data!$F:$F,'22'!$A$2)","v":21.228331781492475}]
[{"$f":"VLOOKUP(\"Quebec\",Translation!$A$1:$C$354, Translation!A1+1, 0)","v":"Québec"},{"$f":"SUMIFS(Data!$E:$E,Data!$B:$B,'22'!B$3,Data!$C:$C,'22'!$A$3,Data!$D:$D,'22'!$A14,Data!$F:$F,'22'!$A$2)","v":25.935427116406245},{"$f":"SUMIFS(Data!$E:$E,Data!$B:$B,'22'!C$3,Data!$C:$C,'22'!$A$3,Data!$D:$D,'22'!$A14,Data!$F:$F,'22'!$A$2)","v":25.746222111553877},{"$f":"SUMIFS(Data!$E:$E,Data!$B:$B,'22'!D$3,Data!$C:$C,'22'!$A$3,Data!$D:$D,'22'!$A14,Data!$F:$F,'22'!$A$2)","v":25.752923512317569},{"$f":"SUMIFS(Data!$E:$E,Data!$B:$B,'22'!E$3,Data!$C:$C,'22'!$A$3,Data!$D:$D,'22'!$A14,Data!$F:$F,'22'!$A$2)","v":25.828227838866781},{"$f":"SUMIFS(Data!$E:$E,Data!$B:$B,'22'!F$3,Data!$C:$C,'22'!$A$3,Data!$D:$D,'22'!$A14,Data!$F:$F,'22'!$A$2)","v":25.79772503832746},{"$f":"SUMIFS(Data!$E:$E,Data!$B:$B,'22'!G$3,Data!$C:$C,'22'!$A$3,Data!$D:$D,'22'!$A14,Data!$F:$F,'22'!$A$2)","v":25.863855050374969},{"$f":"SUMIFS(Data!$E:$E,Data!$B:$B,'22'!H$3,Data!$C:$C,'22'!$A$3,Data!$D:$D,'22'!$A14,Data!$F:$F,'22'!$A$2)","v":25.916541320753751},{"$f":"SUMIFS(Data!$E:$E,Data!$B:$B,'22'!I$3,Data!$C:$C,'22'!$A$3,Data!$D:$D,'22'!$A14,Data!$F:$F,'22'!$A$2)","v":25.871667950111846},{"$f":"SUMIFS(Data!$E:$E,Data!$B:$B,'22'!J$3,Data!$C:$C,'22'!$A$3,Data!$D:$D,'22'!$A14,Data!$F:$F,'22'!$A$2)","v":25.935427116406245},{"$f":"SUMIFS(Data!$E:$E,Data!$B:$B,'22'!K$3,Data!$C:$C,'22'!$A$3,Data!$D:$D,'22'!$A14,Data!$F:$F,'22'!$A$2)","v":25.79772503832746}]
[{"$f":"VLOOKUP(\"Ontario\",Translation!$A$1:$C$354, Translation!A1+1, 0)","v":"Ontario"},{"$f":"SUMIFS(Data!$E:$E,Data!$B:$B,'22'!B$3,Data!$C:$C,'22'!$A$3,Data!$D:$D,'22'!$A15,Data!$F:$F,'22'!$A$2)","v":30.519803358335192},{"$f":"SUMIFS(Data!$E:$E,Data!$B:$B,'22'!C$3,Data!$C:$C,'22'!$A$3,Data!$D:$D,'22'!$A15,Data!$F:$F,'22'!$A$2)","v":30.214185226980781},{"$f":"SUMIFS(Data!$E:$E,Data!$B:$B,'22'!D$3,Data!$C:$C,'22'!$A$3,Data!$D:$D,'22'!$A15,Data!$F:$F,'22'!$A$2)","v":30.129202542843821},{"$f":"SUMIFS(Data!$E:$E,Data!$B:$B,'22'!E$3,Data!$C:$C,'22'!$A$3,Data!$D:$D,'22'!$A15,Data!$F:$F,'22'!$A$2)","v":29.664204116298006},{"$f":"SUMIFS(Data!$E:$E,Data!$B:$B,'22'!F$3,Data!$C:$C,'22'!$A$3,Data!$D:$D,'22'!$A15,Data!$F:$F,'22'!$A$2)","v":29.9680873290683},{"$f":"SUMIFS(Data!$E:$E,Data!$B:$B,'22'!G$3,Data!$C:$C,'22'!$A$3,Data!$D:$D,'22'!$A15,Data!$F:$F,'22'!$A$2)","v":29.577794070816434},{"$f":"SUMIFS(Data!$E:$E,Data!$B:$B,'22'!H$3,Data!$C:$C,'22'!$A$3,Data!$D:$D,'22'!$A15,Data!$F:$F,'22'!$A$2)","v":29.226164227545631},{"$f":"SUMIFS(Data!$E:$E,Data!$B:$B,'22'!I$3,Data!$C:$C,'22'!$A$3,Data!$D:$D,'22'!$A15,Data!$F:$F,'22'!$A$2)","v":29.288334553608504},{"$f":"SUMIFS(Data!$E:$E,Data!$B:$B,'22'!J$3,Data!$C:$C,'22'!$A$3,Data!$D:$D,'22'!$A15,Data!$F:$F,'22'!$A$2)","v":30.519803358335192},{"$f":"SUMIFS(Data!$E:$E,Data!$B:$B,'22'!K$3,Data!$C:$C,'22'!$A$3,Data!$D:$D,'22'!$A15,Data!$F:$F,'22'!$A$2)","v":29.9680873290683}]
[{"$f":"VLOOKUP(\"Manitoba\",Translation!$A$1:$C$354, Translation!A1+1, 0)","v":"Manitoba"},{"$f":"SUMIFS(Data!$E:$E,Data!$B:$B,'22'!B$3,Data!$C:$C,'22'!$A$3,Data!$D:$D,'22'!$A16,Data!$F:$F,'22'!$A$2)","v":27.468572329986305},{"$f":"SUMIFS(Data!$E:$E,Data!$B:$B,'22'!C$3,Data!$C:$C,'22'!$A$3,Data!$D:$D,'22'!$A16,Data!$F:$F,'22'!$A$2)","v":27.245721927100792},{"$f":"SUMIFS(Data!$E:$E,Data!$B:$B,'22'!D$3,Data!$C:$C,'22'!$A$3,Data!$D:$D,'22'!$A16,Data!$F:$F,'22'!$A$2)","v":27.182420786239504},{"$f":"SUMIFS(Data!$E:$E,Data!$B:$B,'22'!E$3,Data!$C:$C,'22'!$A$3,Data!$D:$D,'22'!$A16,Data!$F:$F,'22'!$A$2)","v":27.101757998773756},{"$f":"SUMIFS(Data!$E:$E,Data!$B:$B,'22'!F$3,Data!$C:$C,'22'!$A$3,Data!$D:$D,'22'!$A16,Data!$F:$F,'22'!$A$2)","v":27.482824044558043},{"$f":"SUMIFS(Data!$E:$E,Data!$B:$B,'22'!G$3,Data!$C:$C,'22'!$A$3,Data!$D:$D,'22'!$A16,Data!$F:$F,'22'!$A$2)","v":26.99067467347076},{"$f":"SUMIFS(Data!$E:$E,Data!$B:$B,'22'!H$3,Data!$C:$C,'22'!$A$3,Data!$D:$D,'22'!$A16,Data!$F:$F,'22'!$A$2)","v":26.987094152134279},{"$f":"SUMIFS(Data!$E:$E,Data!$B:$B,'22'!I$3,Data!$C:$C,'22'!$A$3,Data!$D:$D,'22'!$A16,Data!$F:$F,'22'!$A$2)","v":26.374723579632313},{"$f":"SUMIFS(Data!$E:$E,Data!$B:$B,'22'!J$3,Data!$C:$C,'22'!$A$3,Data!$D:$D,'22'!$A16,Data!$F:$F,'22'!$A$2)","v":27.468572329986305},{"$f":"SUMIFS(Data!$E:$E,Data!$B:$B,'22'!K$3,Data!$C:$C,'22'!$A$3,Data!$D:$D,'22'!$A16,Data!$F:$F,'22'!$A$2)","v":27.482824044558043}]
[{"$f":"VLOOKUP(\"Saskatchewan\",Translation!$A$1:$C$354, Translation!A1+1, 0)","v":"Saskatchewan"},{"$f":"SUMIFS(Data!$E:$E,Data!$B:$B,'22'!B$3,Data!$C:$C,'22'!$A$3,Data!$D:$D,'22'!$A17,Data!$F:$F,'22'!$A$2)","v":25.484195916375807},{"$f":"SUMIFS(Data!$E:$E,Data!$B:$B,'22'!C$3,Data!$C:$C,'22'!$A$3,Data!$D:$D,'22'!$A17,Data!$F:$F,'22'!$A$2)","v":25.166913281789434},{"$f":"SUMIFS(Data!$E:$E,Data!$B:$B,'22'!D$3,Data!$C:$C,'22'!$A$3,Data!$D:$D,'22'!$A17,Data!$F:$F,'22'!$A$2)","v":24.905713691761562},{"$f":"SUMIFS(Data!$E:$E,Data!$B:$B,'22'!E$3,Data!$C:$C,'22'!$A$3,Data!$D:$D,'22'!$A17,Data!$F:$F,'22'!$A$2)","v":24.297199840930208},{"$f":"SUMIFS(Data!$E:$E,Data!$B:$B,'22'!F$3,Data!$C:$C,'22'!$A$3,Data!$D:$D,'22'!$A17,Data!$F:$F,'22'!$A$2)","v":24.813324816870804},{"$f":"SUMIFS(Data!$E:$E,Data!$B:$B,'22'!G$3,Data!$C:$C,'22'!$A$3,Data!$D:$D,'22'!$A17,Data!$F:$F,'22'!$A$2)","v":25.081242016782056},{"$f":"SUMIFS(Data!$E:$E,Data!$B:$B,'22'!H$3,Data!$C:$C,'22'!$A$3,Data!$D:$D,'22'!$A17,Data!$F:$F,'22'!$A$2)","v":25.431862559290941},{"$f":"SUMIFS(Data!$E:$E,Data!$B:$B,'22'!I$3,Data!$C:$C,'22'!$A$3,Data!$D:$D,'22'!$A17,Data!$F:$F,'22'!$A$2)","v":24.950059304729113},{"$f":"SUMIFS(Data!$E:$E,Data!$B:$B,'22'!J$3,Data!$C:$C,'22'!$A$3,Data!$D:$D,'22'!$A17,Data!$F:$F,'22'!$A$2)","v":25.484195916375807},{"$f":"SUMIFS(Data!$E:$E,Data!$B:$B,'22'!K$3,Data!$C:$C,'22'!$A$3,Data!$D:$D,'22'!$A17,Data!$F:$F,'22'!$A$2)","v":24.813324816870804}]
[{"$f":"VLOOKUP(\"Alberta\",Translation!$A$1:$C$354, Translation!A1+1, 0)","v":"Alberta"},{"$f":"SUMIFS(Data!$E:$E,Data!$B:$B,'22'!B$3,Data!$C:$C,'22'!$A$3,Data!$D:$D,'22'!$A18,Data!$F:$F,'22'!$A$2)","v":27.240499976614039},{"$f":"SUMIFS(Data!$E:$E,Data!$B:$B,'22'!C$3,Data!$C:$C,'22'!$A$3,Data!$D:$D,'22'!$A18,Data!$F:$F,'22'!$A$2)","v":27.217807436664604},{"$f":"SUMIFS(Data!$E:$E,Data!$B:$B,'22'!D$3,Data!$C:$C,'22'!$A$3,Data!$D:$D,'22'!$A18,Data!$F:$F,'22'!$A$2)","v":27.06440996255078},{"$f":"SUMIFS(Data!$E:$E,Data!$B:$B,'22'!E$3,Data!$C:$C,'22'!$A$3,Data!$D:$D,'22'!$A18,Data!$F:$F,'22'!$A$2)","v":27.03460807918928},{"$f":"SUMIFS(Data!$E:$E,Data!$B:$B,'22'!F$3,Data!$C:$C,'22'!$A$3,Data!$D:$D,'22'!$A18,Data!$F:$F,'22'!$A$2)","v":27.319353525679073},{"$f":"SUMIFS(Data!$E:$E,Data!$B:$B,'22'!G$3,Data!$C:$C,'22'!$A$3,Data!$D:$D,'22'!$A18,Data!$F:$F,'22'!$A$2)","v":27.514867508080766},{"$f":"SUMIFS(Data!$E:$E,Data!$B:$B,'22'!H$3,Data!$C:$C,'22'!$A$3,Data!$D:$D,'22'!$A18,Data!$F:$F,'22'!$A$2)","v":27.256291848243205},{"$f":"SUMIFS(Data!$E:$E,Data!$B:$B,'22'!I$3,Data!$C:$C,'22'!$A$3,Data!$D:$D,'22'!$A18,Data!$F:$F,'22'!$A$2)","v":27.245875101568579},{"$f":"SUMIFS(Data!$E:$E,Data!$B:$B,'22'!J$3,Data!$C:$C,'22'!$A$3,Data!$D:$D,'22'!$A18,Data!$F:$F,'22'!$A$2)","v":27.240499976614039},{"$f":"SUMIFS(Data!$E:$E,Data!$B:$B,'22'!K$3,Data!$C:$C,'22'!$A$3,Data!$D:$D,'22'!$A18,Data!$F:$F,'22'!$A$2)","v":27.319353525679073}]
[{"$f":"VLOOKUP(\"British Columbia\",Translation!$A$1:$C$354, Translation!A1+1, 0)","v":"Colombie-Britannique"},{"$f":"SUMIFS(Data!$E:$E,Data!$B:$B,'22'!B$3,Data!$C:$C,'22'!$A$3,Data!$D:$D,'22'!$A19,Data!$F:$F,'22'!$A$2)","v":30.088784728921759},{"$f":"SUMIFS(Data!$E:$E,Data!$B:$B,'22'!C$3,Data!$C:$C,'22'!$A$3,Data!$D:$D,'22'!$A19,Data!$F:$F,'22'!$A$2)","v":29.645621348752243},{"$f":"SUMIFS(Data!$E:$E,Data!$B:$B,'22'!D$3,Data!$C:$C,'22'!$A$3,Data!$D:$D,'22'!$A19,Data!$F:$F,'22'!$A$2)","v":29.177351943494696},{"$f":"SUMIFS(Data!$E:$E,Data!$B:$B,'22'!E$3,Data!$C:$C,'22'!$A$3,Data!$D:$D,'22'!$A19,Data!$F:$F,'22'!$A$2)","v":29.170024508539253},{"$f":"SUMIFS(Data!$E:$E,Data!$B:$B,'22'!F$3,Data!$C:$C,'22'!$A$3,Data!$D:$D,'22'!$A19,Data!$F:$F,'22'!$A$2)","v":29.68043145729504},{"$f":"SUMIFS(Data!$E:$E,Data!$B:$B,'22'!G$3,Data!$C:$C,'22'!$A$3,Data!$D:$D,'22'!$A19,Data!$F:$F,'22'!$A$2)","v":29.180649102336609},{"$f":"SUMIFS(Data!$E:$E,Data!$B:$B,'22'!H$3,Data!$C:$C,'22'!$A$3,Data!$D:$D,'22'!$A19,Data!$F:$F,'22'!$A$2)","v":29.264171741040759},{"$f":"SUMIFS(Data!$E:$E,Data!$B:$B,'22'!I$3,Data!$C:$C,'22'!$A$3,Data!$D:$D,'22'!$A19,Data!$F:$F,'22'!$A$2)","v":28.822524068717598},{"$f":"SUMIFS(Data!$E:$E,Data!$B:$B,'22'!J$3,Data!$C:$C,'22'!$A$3,Data!$D:$D,'22'!$A19,Data!$F:$F,'22'!$A$2)","v":30.088784728921759},{"$f":"SUMIFS(Data!$E:$E,Data!$B:$B,'22'!K$3,Data!$C:$C,'22'!$A$3,Data!$D:$D,'22'!$A19,Data!$F:$F,'22'!$A$2)","v":29.68043145729504}]
[{"$f":"VLOOKUP(\"Territories\",Translation!$A$1:$C$354, Translation!A1+1, 0)","v":"Territoires"},{"$f":"SUMIFS(Data!$E:$E,Data!$B:$B,'22'!B$3,Data!$C:$C,'22'!$A$3,Data!$D:$D,'22'!$A20,Data!$F:$F,'22'!$A$2)","v":24.059438351470003},{"$f":"SUMIFS(Data!$E:$E,Data!$B:$B,'22'!C$3,Data!$C:$C,'22'!$A$3,Data!$D:$D,'22'!$A20,Data!$F:$F,'22'!$A$2)","v":25.199257991461032},{"$f":"SUMIFS(Data!$E:$E,Data!$B:$B,'22'!D$3,Data!$C:$C,'22'!$A$3,Data!$D:$D,'22'!$A20,Data!$F:$F,'22'!$A$2)","v":25.200278953687128},{"$f":"SUMIFS(Data!$E:$E,Data!$B:$B,'22'!E$3,Data!$C:$C,'22'!$A$3,Data!$D:$D,'22'!$A20,Data!$F:$F,'22'!$A$2)","v":25.384364441691524},{"$f":"SUMIFS(Data!$E:$E,Data!$B:$B,'22'!F$3,Data!$C:$C,'22'!$A$3,Data!$D:$D,'22'!$A20,Data!$F:$F,'22'!$A$2)","v":24.804896072633522},{"$f":"SUMIFS(Data!$E:$E,Data!$B:$B,'22'!G$3,Data!$C:$C,'22'!$A$3,Data!$D:$D,'22'!$A20,Data!$F:$F,'22'!$A$2)","v":23.63693425173782},{"$f":"SUMIFS(Data!$E:$E,Data!$B:$B,'22'!H$3,Data!$C:$C,'22'!$A$3,Data!$D:$D,'22'!$A20,Data!$F:$F,'22'!$A$2)","v":25.210340262049808},{"$f":"SUMIFS(Data!$E:$E,Data!$B:$B,'22'!I$3,Data!$C:$C,'22'!$A$3,Data!$D:$D,'22'!$A20,Data!$F:$F,'22'!$A$2)","v":24.742146943574621},{"$f":"SUMIFS(Data!$E:$E,Data!$B:$B,'22'!J$3,Data!$C:$C,'22'!$A$3,Data!$D:$D,'22'!$A20,Data!$F:$F,'22'!$A$2)","v":24.059438351470003},{"$f":"SUMIFS(Data!$E:$E,Data!$B:$B,'22'!K$3,Data!$C:$C,'22'!$A$3,Data!$D:$D,'22'!$A20,Data!$F:$F,'22'!$A$2)","v":24.804896072633522}]
[{"$f":"VLOOKUP(\"Distribution based on loan amounts, not number of loans.\",Translation!$A$1:$C$354, Translation!A1+1, 0)","v":"La répartition est établie d'après le montant, plutôt que le nombre de prêts assurés."}]
[{"$f":"VLOOKUP(\"The sum of all breakdown categories may not add up to 100 due to rounding.\",Translation!$A$1:$C$354, Translation!A1+1, 0)","v":"Les chiffres ayant été arrondis, il se peut que la somme de l'ensemble des catégories n'égale pas 100 %."}]
[]
[{"$f":"VLOOKUP(\"Loans insured in period by borrower average total debt service ratio (TDS) (%)\",Translation!$A$1:$C$354, Translation!A1+1, 0)","v":"Prêts hypothécaires assurés au cours de la période selon le rapport d’amortissement total de la dette (ATD) moyen des emprunteurs détenant un prêt assuré par la SCHL (%)"}]
[{"$f":"VLOOKUP(\"TRANSACTIONAL HOMEOWNER\",Translation!$A$1:$C$354, Translation!A1+1, 0)","v":"PROPRIÉTAIRES-OCCUPANTS, À L’UNITÉ"},{"$f":"VLOOKUP(\"Q1 2020\",Translation!$A$1:$C$354, Translation!$A$1+1, 0)","v":"T1 2020"},{"$f":"VLOOKUP(\"Q4 2019\",Translation!$A$1:$C$354, Translation!$A$1+1, 0)","v":"T4 2019"},{"$f":"VLOOKUP(\"Q3 2019\",Translation!$A$1:$C$354, Translation!$A$1+1, 0)","v":"T3 2019"},{"$f":"VLOOKUP(\"Q2 2019\",Translation!$A$1:$C$354, Translation!$A$1+1, 0)","v":"T2 2019"},{"$f":"VLOOKUP(\"Q1 2019\",Translation!$A$1:$C$354, Translation!$A$1+1, 0)","v":"T1 2019"},{"$f":"VLOOKUP(\"Q4 2018\",Translation!$A$1:$C$354, Translation!$A$1+1, 0)","v":"T4 2018"},{"$f":"VLOOKUP(\"Q3 2018\",Translation!$A$1:$C$354, Translation!$A$1+1, 0)","v":"T3 2018"},{"$f":"VLOOKUP(\"Q2 2018\",Translation!$A$1:$C$354, Translation!$A$1+1, 0)","v":"T2 2018"},{"$f":"VLOOKUP(\"YTD 2019\",Translation!$A$1:$C$354, Translation!$A$1+1, 0)","v":"Cumul 2019"},{"$f":"VLOOKUP(\"YTD 2018\",Translation!$A$1:$C$354, Translation!$A$1+1, 0)","v":"Cumul 2018"}]
[" <= 30 %",{"$f":"SUMIFS(Data!$E:$E,Data!$B:$B,'22'!B$25,Data!$C:$C,'22'!$A$25,Data!$H:$H,'22'!$A26,Data!$F:$F,'22'!$A$24)","v":11.857978005223943},{"$f":"SUMIFS(Data!$E:$E,Data!$B:$B,'22'!C$25,Data!$C:$C,'22'!$A$25,Data!$H:$H,'22'!$A26,Data!$F:$F,'22'!$A$24)","v":11.760948046078251},{"$f":"SUMIFS(Data!$E:$E,Data!$B:$B,'22'!D$25,Data!$C:$C,'22'!$A$25,Data!$H:$H,'22'!$A26,Data!$F:$F,'22'!$A$24)","v":12.101637171339522},{"$f":"SUMIFS(Data!$E:$E,Data!$B:$B,'22'!E$25,Data!$C:$C,'22'!$A$25,Data!$H:$H,'22'!$A26,Data!$F:$F,'22'!$A$24)","v":13.544715711637329},{"$f":"SUMIFS(Data!$E:$E,Data!$B:$B,'22'!F$25,Data!$C:$C,'22'!$A$25,Data!$H:$H,'22'!$A26,Data!$F:$F,'22'!$A$24)","v":11.687056347451264},{"$f":"SUMIFS(Data!$E:$E,Data!$B:$B,'22'!G$25,Data!$C:$C,'22'!$A$25,Data!$H:$H,'22'!$A26,Data!$F:$F,'22'!$A$24)","v":11.507188385076516},{"$f":"SUMIFS(Data!$E:$E,Data!$B:$B,'22'!H$25,Data!$C:$C,'22'!$A$25,Data!$H:$H,'22'!$A26,Data!$F:$F,'22'!$A$24)","v":12.197737809209842},{"$f":"SUMIFS(Data!$E:$E,Data!$B:$B,'22'!I$25,Data!$C:$C,'22'!$A$25,Data!$H:$H,'22'!$A26,Data!$F:$F,'22'!$A$24)","v":13.402727389279324},{"$f":"SUMIFS(Data!$E:$E,Data!$B:$B,'22'!J$25,Data!$C:$C,'22'!$A$25,Data!$H:$H,'22'!$A26,Data!$F:$F,'22'!$A$24)","v":11.687056347451264},{"$f":"SUMIFS(Data!$E:$E,Data!$B:$B,'22'!K$25,Data!$C:$C,'22'!$A$25,Data!$H:$H,'22'!$A26,Data!$F:$F,'22'!$A$24)","v":12.286816196275241}]
[" > 30 % <= 35 %",{"$f":"SUMIFS(Data!$E:$E,Data!$B:$B,'22'!B$25,Data!$C:$C,'22'!$A$25,Data!$H:$H,'22'!$A27,Data!$F:$F,'22'!$A$24)","v":16.779564156500197},{"$f":"SUMIFS(Data!$E:$E,Data!$B:$B,'22'!C$25,Data!$C:$C,'22'!$A$25,Data!$H:$H,'22'!$A27,Data!$F:$F,'22'!$A$24)","v":16.804842877002486},{"$f":"SUMIFS(Data!$E:$E,Data!$B:$B,'22'!D$25,Data!$C:$C,'22'!$A$25,Data!$H:$H,'22'!$A27,Data!$F:$F,'22'!$A$24)","v":16.74842394312186},{"$f":"SUMIFS(Data!$E:$E,Data!$B:$B,'22'!E$25,Data!$C:$C,'22'!$A$25,Data!$H:$H,'22'!$A27,Data!$F:$F,'22'!$A$24)","v":18.736106414328123},{"$f":"SUMIFS(Data!$E:$E,Data!$B:$B,'22'!F$25,Data!$C:$C,'22'!$A$25,Data!$H:$H,'22'!$A27,Data!$F:$F,'22'!$A$24)","v":16.528610165961435},{"$f":"SUMIFS(Data!$E:$E,Data!$B:$B,'22'!G$25,Data!$C:$C,'22'!$A$25,Data!$H:$H,'22'!$A27,Data!$F:$F,'22'!$A$24)","v":17.177760642170412},{"$f":"SUMIFS(Data!$E:$E,Data!$B:$B,'22'!H$25,Data!$C:$C,'22'!$A$25,Data!$H:$H,'22'!$A27,Data!$F:$F,'22'!$A$24)","v":17.645173331871643},{"$f":"SUMIFS(Data!$E:$E,Data!$B:$B,'22'!I$25,Data!$C:$C,'22'!$A$25,Data!$H:$H,'22'!$A27,Data!$F:$F,'22'!$A$24)","v":18.033369869792313},{"$f":"SUMIFS(Data!$E:$E,Data!$B:$B,'22'!J$25,Data!$C:$C,'22'!$A$25,Data!$H:$H,'22'!$A27,Data!$F:$F,'22'!$A$24)","v":16.528610165961435},{"$f":"SUMIFS(Data!$E:$E,Data!$B:$B,'22'!K$25,Data!$C:$C,'22'!$A$25,Data!$H:$H,'22'!$A27,Data!$F:$F,'22'!$A$24)","v":17.613255013788748}]
[" > 35 % <= 40 %",{"$f":"SUMIFS(Data!$E:$E,Data!$B:$B,'22'!B$25,Data!$C:$C,'22'!$A$25,Data!$H:$H,'22'!$A28,Data!$F:$F,'22'!$A$24)","v":32.312820497682694},{"$f":"SUMIFS(Data!$E:$E,Data!$B:$B,'22'!C$25,Data!$C:$C,'22'!$A$25,Data!$H:$H,'22'!$A28,Data!$F:$F,'22'!$A$24)","v":33.313614628164522},{"$f":"SUMIFS(Data!$E:$E,Data!$B:$B,'22'!D$25,Data!$C:$C,'22'!$A$25,Data!$H:$H,'22'!$A28,Data!$F:$F,'22'!$A$24)","v":33.409949794515001},{"$f":"SUMIFS(Data!$E:$E,Data!$B:$B,'22'!E$25,Data!$C:$C,'22'!$A$25,Data!$H:$H,'22'!$A28,Data!$F:$F,'22'!$A$24)","v":32.643374586554984},{"$f":"SUMIFS(Data!$E:$E,Data!$B:$B,'22'!F$25,Data!$C:$C,'22'!$A$25,Data!$H:$H,'22'!$A28,Data!$F:$F,'22'!$A$24)","v":34.2077957229912},{"$f":"SUMIFS(Data!$E:$E,Data!$B:$B,'22'!G$25,Data!$C:$C,'22'!$A$25,Data!$H:$H,'22'!$A28,Data!$F:$F,'22'!$A$24)","v":33.485424866747337},{"$f":"SUMIFS(Data!$E:$E,Data!$B:$B,'22'!H$25,Data!$C:$C,'22'!$A$25,Data!$H:$H,'22'!$A28,Data!$F:$F,'22'!$A$24)","v":33.476020421793002},{"$f":"SUMIFS(Data!$E:$E,Data!$B:$B,'22'!I$25,Data!$C:$C,'22'!$A$25,Data!$H:$H,'22'!$A28,Data!$F:$F,'22'!$A$24)","v":33.466798209670074},{"$f":"SUMIFS(Data!$E:$E,Data!$B:$B,'22'!J$25,Data!$C:$C,'22'!$A$25,Data!$H:$H,'22'!$A28,Data!$F:$F,'22'!$A$24)","v":34.2077957229912},{"$f":"SUMIFS(Data!$E:$E,Data!$B:$B,'22'!K$25,Data!$C:$C,'22'!$A$25,Data!$H:$H,'22'!$A28,Data!$F:$F,'22'!$A$24)","v":33.543875630742541}]
[" > 40 % <= 44 %",{"$f":"SUMIFS(Data!$E:$E,Data!$B:$B,'22'!B$25,Data!$C:$C,'22'!$A$25,Data!$H:$H,'22'!$A29,Data!$F:$F,'22'!$A$24)","v":39.049637340593151},{"$f":"SUMIFS(Data!$E:$E,Data!$B:$B,'22'!C$25,Data!$C:$C,'22'!$A$25,Data!$H:$H,'22'!$A29,Data!$F:$F,'22'!$A$24)","v":38.120594448754737},{"$f":"SUMIFS(Data!$E:$E,Data!$B:$B,'22'!D$25,Data!$C:$C,'22'!$A$25,Data!$H:$H,'22'!$A29,Data!$F:$F,'22'!$A$24)","v":37.735137754390962},{"$f":"SUMIFS(Data!$E:$E,Data!$B:$B,'22'!E$25,Data!$C:$C,'22'!$A$25,Data!$H:$H,'22'!$A29,Data!$F:$F,'22'!$A$24)","v":35.075803287479594},{"$f":"SUMIFS(Data!$E:$E,Data!$B:$B,'22'!F$25,Data!$C:$C,'22'!$A$25,Data!$H:$H,'22'!$A29,Data!$F:$F,'22'!$A$24)","v":37.576537763596093},{"$f":"SUMIFS(Data!$E:$E,Data!$B:$B,'22'!G$25,Data!$C:$C,'22'!$A$25,Data!$H:$H,'22'!$A29,Data!$F:$F,'22'!$A$24)","v":37.829626106005712},{"$f":"SUMIFS(Data!$E:$E,Data!$B:$B,'22'!H$25,Data!$C:$C,'22'!$A$25,Data!$H:$H,'22'!$A29,Data!$F:$F,'22'!$A$24)","v":36.681068437125496},{"$f":"SUMIFS(Data!$E:$E,Data!$B:$B,'22'!I$25,Data!$C:$C,'22'!$A$25,Data!$H:$H,'22'!$A29,Data!$F:$F,'22'!$A$24)","v":35.097104531258282},{"$f":"SUMIFS(Data!$E:$E,Data!$B:$B,'22'!J$25,Data!$C:$C,'22'!$A$25,Data!$H:$H,'22'!$A29,Data!$F:$F,'22'!$A$24)","v":37.576537763596093},{"$f":"SUMIFS(Data!$E:$E,Data!$B:$B,'22'!K$25,Data!$C:$C,'22'!$A$25,Data!$H:$H,'22'!$A29,Data!$F:$F,'22'!$A$24)","v":36.556053159193489}]
[" > 44 %",{"$f":"SUMIFS(Data!$E:$E,Data!$B:$B,'22'!B$25,Data!$C:$C,'22'!$A$25,Data!$H:$H,'22'!$A30,Data!$F:$F,'22'!$A$24)","v":0},{"$f":"SUMIFS(Data!$E:$E,Data!$B:$B,'22'!C$25,Data!$C:$C,'22'!$A$25,Data!$H:$H,'22'!$A30,Data!$F:$F,'22'!$A$24)","v":0},{"$f":"SUMIFS(Data!$E:$E,Data!$B:$B,'22'!D$25,Data!$C:$C,'22'!$A$25,Data!$H:$H,'22'!$A30,Data!$F:$F,'22'!$A$24)","v":4.8513366326277665E-3},{"$f":"SUMIFS(Data!$E:$E,Data!$B:$B,'22'!E$25,Data!$C:$C,'22'!$A$25,Data!$H:$H,'22'!$A30,Data!$F:$F,'22'!$A$24)","v":0},{"$f":"SUMIFS(Data!$E:$E,Data!$B:$B,'22'!F$25,Data!$C:$C,'22'!$A$25,Data!$H:$H,'22'!$A30,Data!$F:$F,'22'!$A$24)","v":0},{"$f":"SUMIFS(Data!$E:$E,Data!$B:$B,'22'!G$25,Data!$C:$C,'22'!$A$25,Data!$H:$H,'22'!$A30,Data!$F:$F,'22'!$A$24)","v":0},{"$f":"SUMIFS(Data!$E:$E,Data!$B:$B,'22'!H$25,Data!$C:$C,'22'!$A$25,Data!$H:$H,'22'!$A30,Data!$F:$F,'22'!$A$24)","v":0},{"$f":"SUMIFS(Data!$E:$E,Data!$B:$B,'22'!I$25,Data!$C:$C,'22'!$A$25,Data!$H:$H,'22'!$A30,Data!$F:$F,'22'!$A$24)","v":0},{"$f":"SUMIFS(Data!$E:$E,Data!$B:$B,'22'!J$25,Data!$C:$C,'22'!$A$25,Data!$H:$H,'22'!$A30,Data!$F:$F,'22'!$A$24)","v":0},{"$f":"SUMIFS(Data!$E:$E,Data!$B:$B,'22'!K$25,Data!$C:$C,'22'!$A$25,Data!$H:$H,'22'!$A30,Data!$F:$F,'22'!$A$24)","v":0}]
[{"$f":"VLOOKUP(\"Average Total Debt Service Ratio (TDS)\",Translation!$A$1:$C$354, Translation!A1+1, 0)","v":"Rapport d'amortissement total de la dette (ATD) moyen"},{"$f":"SUMIFS(Data!$E:$E,Data!$B:$B,'22'!B$25,Data!$C:$C,'22'!$A$25,Data!$H:$H,'22'!$A31,Data!$F:$F,'22'!$A$24)","v":37.207235619016579},{"$f":"SUMIFS(Data!$E:$E,Data!$B:$B,'22'!C$25,Data!$C:$C,'22'!$A$25,Data!$D:$D,'22'!$A31,Data!$F:$F,'22'!$A$24)","v":37.186653381818552},{"$f":"SUMIFS(Data!$E:$E,Data!$B:$B,'22'!D$25,Data!$C:$C,'22'!$A$25,Data!$D:$D,'22'!$A31,Data!$F:$F,'22'!$A$24)","v":37.120082043874973},{"$f":"SUMIFS(Data!$E:$E,Data!$B:$B,'22'!E$25,Data!$C:$C,'22'!$A$25,Data!$D:$D,'22'!$A31,Data!$F:$F,'22'!$A$24)","v":36.688622617505608},{"$f":"SUMIFS(Data!$E:$E,Data!$B:$B,'22'!F$25,Data!$C:$C,'22'!$A$25,Data!$D:$D,'22'!$A31,Data!$F:$F,'22'!$A$24)","v":37.163945863632378},{"$f":"SUMIFS(Data!$E:$E,Data!$B:$B,'22'!G$25,Data!$C:$C,'22'!$A$25,Data!$D:$D,'22'!$A31,Data!$F:$F,'22'!$A$24)","v":37.175911569671534},{"$f":"SUMIFS(Data!$E:$E,Data!$B:$B,'22'!H$25,Data!$C:$C,'22'!$A$25,Data!$D:$D,'22'!$A31,Data!$F:$F,'22'!$A$24)","v":36.996401824825512},{"$f":"SUMIFS(Data!$E:$E,Data!$B:$B,'22'!I$25,Data!$C:$C,'22'!$A$25,Data!$D:$D,'22'!$A31,Data!$F:$F,'22'!$A$24)","v":36.749557699889998},{"$f":"SUMIFS(Data!$E:$E,Data!$B:$B,'22'!J$25,Data!$C:$C,'22'!$A$25,Data!$D:$D,'22'!$A31,Data!$F:$F,'22'!$A$24)","v":37.163945863632378},{"$f":"SUMIFS(Data!$E:$E,Data!$B:$B,'22'!K$25,Data!$C:$C,'22'!$A$25,Data!$D:$D,'22'!$A31,Data!$F:$F,'22'!$A$24)","v":36.980710764424174}]
[{"$f":"VLOOKUP(\"Average Total Debt Service Ratio (TDS) by province\",Translation!$A$1:$C$354, Translation!A1+1, 0)","v":"Rapport d'amortissement total de la dette (ATD) moyen selon la province"}]
[{"$f":"VLOOKUP(\"Newfoundland and Labrador\",Translation!$A$1:$C$354, Translation!A1+1, 0)","v":"Terre-Neuve-et-Labrador"},{"$f":"SUMIFS(Data!$E:$E,Data!$B:$B,'22'!B$25,Data!$C:$C,'22'!$A$25,Data!$D:$D,'22'!$A33,Data!$F:$F,'22'!$A$24)","v":35.974571352538085},{"$f":"SUMIFS(Data!$E:$E,Data!$B:$B,'22'!C$25,Data!$C:$C,'22'!$A$25,Data!$D:$D,'22'!$A33,Data!$F:$F,'22'!$A$24)","v":35.478376869013886},{"$f":"SUMIFS(Data!$E:$E,Data!$B:$B,'22'!D$25,Data!$C:$C,'22'!$A$25,Data!$D:$D,'22'!$A33,Data!$F:$F,'22'!$A$24)","v":36.04858265451589},{"$f":"SUMIFS(Data!$E:$E,Data!$B:$B,'22'!E$25,Data!$C:$C,'22'!$A$25,Data!$D:$D,'22'!$A33,Data!$F:$F,'22'!$A$24)","v":36.834426092889373},{"$f":"SUMIFS(Data!$E:$E,Data!$B:$B,'22'!F$25,Data!$C:$C,'22'!$A$25,Data!$D:$D,'22'!$A33,Data!$F:$F,'22'!$A$24)","v":35.684431917369395},{"$f":"SUMIFS(Data!$E:$E,Data!$B:$B,'22'!G$25,Data!$C:$C,'22'!$A$25,Data!$D:$D,'22'!$A33,Data!$F:$F,'22'!$A$24)","v":36.088316782824755},{"$f":"SUMIFS(Data!$E:$E,Data!$B:$B,'22'!H$25,Data!$C:$C,'22'!$A$25,Data!$D:$D,'22'!$A33,Data!$F:$F,'22'!$A$24)","v":36.251207812182514},{"$f":"SUMIFS(Data!$E:$E,Data!$B:$B,'22'!I$25,Data!$C:$C,'22'!$A$25,Data!$D:$D,'22'!$A33,Data!$F:$F,'22'!$A$24)","v":36.1674523510206},{"$f":"SUMIFS(Data!$E:$E,Data!$B:$B,'22'!J$25,Data!$C:$C,'22'!$A$25,Data!$D:$D,'22'!$A33,Data!$F:$F,'22'!$A$24)","v":35.684431917369395},{"$f":"SUMIFS(Data!$E:$E,Data!$B:$B,'22'!K$25,Data!$C:$C,'22'!$A$25,Data!$D:$D,'22'!$A33,Data!$F:$F,'22'!$A$24)","v":36.265580096074864}]
[{"$f":"VLOOKUP(\"Prince Edward Island\",Translation!$A$1:$C$354, Translation!A1+1, 0)","v":"Île-du-Prince-Édouard"},{"$f":"SUMIFS(Data!$E:$E,Data!$B:$B,'22'!B$25,Data!$C:$C,'22'!$A$25,Data!$D:$D,'22'!$A34,Data!$F:$F,'22'!$A$24)","v":35.923600042695703},{"$f":"SUMIFS(Data!$E:$E,Data!$B:$B,'22'!C$25,Data!$C:$C,'22'!$A$25,Data!$D:$D,'22'!$A34,Data!$F:$F,'22'!$A$24)","v":36.364288248286009},{"$f":"SUMIFS(Data!$E:$E,Data!$B:$B,'22'!D$25,Data!$C:$C,'22'!$A$25,Data!$D:$D,'22'!$A34,Data!$F:$F,'22'!$A$24)","v":36.400253580920705},{"$f":"SUMIFS(Data!$E:$E,Data!$B:$B,'22'!E$25,Data!$C:$C,'22'!$A$25,Data!$D:$D,'22'!$A34,Data!$F:$F,'22'!$A$24)","v":35.751227111334295},{"$f":"SUMIFS(Data!$E:$E,Data!$B:$B,'22'!F$25,Data!$C:$C,'22'!$A$25,Data!$D:$D,'22'!$A34,Data!$F:$F,'22'!$A$24)","v":35.539973273910519},{"$f":"SUMIFS(Data!$E:$E,Data!$B:$B,'22'!G$25,Data!$C:$C,'22'!$A$25,Data!$D:$D,'22'!$A34,Data!$F:$F,'22'!$A$24)","v":36.475240418283683},{"$f":"SUMIFS(Data!$E:$E,Data!$B:$B,'22'!H$25,Data!$C:$C,'22'!$A$25,Data!$D:$D,'22'!$A34,Data!$F:$F,'22'!$A$24)","v":35.426718233170945},{"$f":"SUMIFS(Data!$E:$E,Data!$B:$B,'22'!I$25,Data!$C:$C,'22'!$A$25,Data!$D:$D,'22'!$A34,Data!$F:$F,'22'!$A$24)","v":35.265697991727798},{"$f":"SUMIFS(Data!$E:$E,Data!$B:$B,'22'!J$25,Data!$C:$C,'22'!$A$25,Data!$D:$D,'22'!$A34,Data!$F:$F,'22'!$A$24)","v":35.539973273910519},{"$f":"SUMIFS(Data!$E:$E,Data!$B:$B,'22'!K$25,Data!$C:$C,'22'!$A$25,Data!$D:$D,'22'!$A34,Data!$F:$F,'22'!$A$24)","v":35.779261814369974}]
[{"$f":"VLOOKUP(\"Nova Scotia\",Translation!$A$1:$C$354, Translation!A1+1, 0)","v":"Nouvelle-Écosse"},{"$f":"SUMIFS(Data!$E:$E,Data!$B:$B,'22'!B$25,Data!$C:$C,'22'!$A$25,Data!$D:$D,'22'!$A35,Data!$F:$F,'22'!$A$24)","v":35.576644725750505},{"$f":"SUMIFS(Data!$E:$E,Data!$B:$B,'22'!C$25,Data!$C:$C,'22'!$A$25,Data!$D:$D,'22'!$A35,Data!$F:$F,'22'!$A$24)","v":35.660564387646644},{"$f":"SUMIFS(Data!$E:$E,Data!$B:$B,'22'!D$25,Data!$C:$C,'22'!$A$25,Data!$D:$D,'22'!$A35,Data!$F:$F,'22'!$A$24)","v":35.783260009911473},{"$f":"SUMIFS(Data!$E:$E,Data!$B:$B,'22'!E$25,Data!$C:$C,'22'!$A$25,Data!$D:$D,'22'!$A35,Data!$F:$F,'22'!$A$24)","v":35.402722269757298},{"$f":"SUMIFS(Data!$E:$E,Data!$B:$B,'22'!F$25,Data!$C:$C,'22'!$A$25,Data!$D:$D,'22'!$A35,Data!$F:$F,'22'!$A$24)","v":35.680394306134566},{"$f":"SUMIFS(Data!$E:$E,Data!$B:$B,'22'!G$25,Data!$C:$C,'22'!$A$25,Data!$D:$D,'22'!$A35,Data!$F:$F,'22'!$A$24)","v":35.432831883201423},{"$f":"SUMIFS(Data!$E:$E,Data!$B:$B,'22'!H$25,Data!$C:$C,'22'!$A$25,Data!$D:$D,'22'!$A35,Data!$F:$F,'22'!$A$24)","v":35.362318779773801},{"$f":"SUMIFS(Data!$E:$E,Data!$B:$B,'22'!I$25,Data!$C:$C,'22'!$A$25,Data!$D:$D,'22'!$A35,Data!$F:$F,'22'!$A$24)","v":35.638866153348573},{"$f":"SUMIFS(Data!$E:$E,Data!$B:$B,'22'!J$25,Data!$C:$C,'22'!$A$25,Data!$D:$D,'22'!$A35,Data!$F:$F,'22'!$A$24)","v":35.680394306134566},{"$f":"SUMIFS(Data!$E:$E,Data!$B:$B,'22'!K$25,Data!$C:$C,'22'!$A$25,Data!$D:$D,'22'!$A35,Data!$F:$F,'22'!$A$24)","v":35.503947073732377}]
[{"$f":"VLOOKUP(\"New Brunswick\",Translation!$A$1:$C$354, Translation!A1+1, 0)","v":"Nouveau-Brunswick"},{"$f":"SUMIFS(Data!$E:$E,Data!$B:$B,'22'!B$25,Data!$C:$C,'22'!$A$25,Data!$D:$D,'22'!$A36,Data!$F:$F,'22'!$A$24)","v":34.799203743348073},{"$f":"SUMIFS(Data!$E:$E,Data!$B:$B,'22'!C$25,Data!$C:$C,'22'!$A$25,Data!$D:$D,'22'!$A36,Data!$F:$F,'22'!$A$24)","v":35.677991508918211},{"$f":"SUMIFS(Data!$E:$E,Data!$B:$B,'22'!D$25,Data!$C:$C,'22'!$A$25,Data!$D:$D,'22'!$A36,Data!$F:$F,'22'!$A$24)","v":35.374900453461642},{"$f":"SUMIFS(Data!$E:$E,Data!$B:$B,'22'!E$25,Data!$C:$C,'22'!$A$25,Data!$D:$D,'22'!$A36,Data!$F:$F,'22'!$A$24)","v":35.021226492405056},{"$f":"SUMIFS(Data!$E:$E,Data!$B:$B,'22'!F$25,Data!$C:$C,'22'!$A$25,Data!$D:$D,'22'!$A36,Data!$F:$F,'22'!$A$24)","v":35.686646236543965},{"$f":"SUMIFS(Data!$E:$E,Data!$B:$B,'22'!G$25,Data!$C:$C,'22'!$A$25,Data!$D:$D,'22'!$A36,Data!$F:$F,'22'!$A$24)","v":35.43697540343863},{"$f":"SUMIFS(Data!$E:$E,Data!$B:$B,'22'!H$25,Data!$C:$C,'22'!$A$25,Data!$D:$D,'22'!$A36,Data!$F:$F,'22'!$A$24)","v":34.799626974705205},{"$f":"SUMIFS(Data!$E:$E,Data!$B:$B,'22'!I$25,Data!$C:$C,'22'!$A$25,Data!$D:$D,'22'!$A36,Data!$F:$F,'22'!$A$24)","v":34.709913661789059},{"$f":"SUMIFS(Data!$E:$E,Data!$B:$B,'22'!J$25,Data!$C:$C,'22'!$A$25,Data!$D:$D,'22'!$A36,Data!$F:$F,'22'!$A$24)","v":35.686646236543965},{"$f":"SUMIFS(Data!$E:$E,Data!$B:$B,'22'!K$25,Data!$C:$C,'22'!$A$25,Data!$D:$D,'22'!$A36,Data!$F:$F,'22'!$A$24)","v":34.965712347603315}]
[{"$f":"VLOOKUP(\"Quebec\",Translation!$A$1:$C$354, Translation!A1+1, 0)","v":"Québec"},{"$f":"SUMIFS(Data!$E:$E,Data!$B:$B,'22'!B$25,Data!$C:$C,'22'!$A$25,Data!$D:$D,'22'!$A37,Data!$F:$F,'22'!$A$24)","v":36.112729019468247},{"$f":"SUMIFS(Data!$E:$E,Data!$B:$B,'22'!C$25,Data!$C:$C,'22'!$A$25,Data!$D:$D,'22'!$A37,Data!$F:$F,'22'!$A$24)","v":36.16621420521944},{"$f":"SUMIFS(Data!$E:$E,Data!$B:$B,'22'!D$25,Data!$C:$C,'22'!$A$25,Data!$D:$D,'22'!$A37,Data!$F:$F,'22'!$A$24)","v":36.011535807957102},{"$f":"SUMIFS(Data!$E:$E,Data!$B:$B,'22'!E$25,Data!$C:$C,'22'!$A$25,Data!$D:$D,'22'!$A37,Data!$F:$F,'22'!$A$24)","v":35.95009823261811},{"$f":"SUMIFS(Data!$E:$E,Data!$B:$B,'22'!F$25,Data!$C:$C,'22'!$A$25,Data!$D:$D,'22'!$A37,Data!$F:$F,'22'!$A$24)","v":36.092024631731697},{"$f":"SUMIFS(Data!$E:$E,Data!$B:$B,'22'!G$25,Data!$C:$C,'22'!$A$25,Data!$D:$D,'22'!$A37,Data!$F:$F,'22'!$A$24)","v":36.322605296923683},{"$f":"SUMIFS(Data!$E:$E,Data!$B:$B,'22'!H$25,Data!$C:$C,'22'!$A$25,Data!$D:$D,'22'!$A37,Data!$F:$F,'22'!$A$24)","v":36.190182098534301},{"$f":"SUMIFS(Data!$E:$E,Data!$B:$B,'22'!I$25,Data!$C:$C,'22'!$A$25,Data!$D:$D,'22'!$A37,Data!$F:$F,'22'!$A$24)","v":36.006377355215669},{"$f":"SUMIFS(Data!$E:$E,Data!$B:$B,'22'!J$25,Data!$C:$C,'22'!$A$25,Data!$D:$D,'22'!$A37,Data!$F:$F,'22'!$A$24)","v":36.092024631731697},{"$f":"SUMIFS(Data!$E:$E,Data!$B:$B,'22'!K$25,Data!$C:$C,'22'!$A$25,Data!$D:$D,'22'!$A37,Data!$F:$F,'22'!$A$24)","v":36.116582369492569}]
[{"$f":"VLOOKUP(\"Ontario\",Translation!$A$1:$C$354, Translation!A1+1, 0)","v":"Ontario"},{"$f":"SUMIFS(Data!$E:$E,Data!$B:$B,'22'!B$25,Data!$C:$C,'22'!$A$25,Data!$D:$D,'22'!$A38,Data!$F:$F,'22'!$A$24)","v":38.268194087003913},{"$f":"SUMIFS(Data!$E:$E,Data!$B:$B,'22'!C$25,Data!$C:$C,'22'!$A$25,Data!$D:$D,'22'!$A38,Data!$F:$F,'22'!$A$24)","v":38.111055330375592},{"$f":"SUMIFS(Data!$E:$E,Data!$B:$B,'22'!D$25,Data!$C:$C,'22'!$A$25,Data!$D:$D,'22'!$A38,Data!$F:$F,'22'!$A$24)","v":38.105331582137346},{"$f":"SUMIFS(Data!$E:$E,Data!$B:$B,'22'!E$25,Data!$C:$C,'22'!$A$25,Data!$D:$D,'22'!$A38,Data!$F:$F,'22'!$A$24)","v":37.74378369220949},{"$f":"SUMIFS(Data!$E:$E,Data!$B:$B,'22'!F$25,Data!$C:$C,'22'!$A$25,Data!$D:$D,'22'!$A38,Data!$F:$F,'22'!$A$24)","v":38.074657946434449},{"$f":"SUMIFS(Data!$E:$E,Data!$B:$B,'22'!G$25,Data!$C:$C,'22'!$A$25,Data!$D:$D,'22'!$A38,Data!$F:$F,'22'!$A$24)","v":37.860627706030371},{"$f":"SUMIFS(Data!$E:$E,Data!$B:$B,'22'!H$25,Data!$C:$C,'22'!$A$25,Data!$D:$D,'22'!$A38,Data!$F:$F,'22'!$A$24)","v":37.712133854161074},{"$f":"SUMIFS(Data!$E:$E,Data!$B:$B,'22'!I$25,Data!$C:$C,'22'!$A$25,Data!$D:$D,'22'!$A38,Data!$F:$F,'22'!$A$24)","v":37.595187217706915},{"$f":"SUMIFS(Data!$E:$E,Data!$B:$B,'22'!J$25,Data!$C:$C,'22'!$A$25,Data!$D:$D,'22'!$A38,Data!$F:$F,'22'!$A$24)","v":38.074657946434449},{"$f":"SUMIFS(Data!$E:$E,Data!$B:$B,'22'!K$25,Data!$C:$C,'22'!$A$25,Data!$D:$D,'22'!$A38,Data!$F:$F,'22'!$A$24)","v":37.740817380411258}]
[{"$f":"VLOOKUP(\"Manitoba\",Translation!$A$1:$C$354, Translation!A1+1, 0)","v":"Manitoba"},{"$f":"SUMIFS(Data!$E:$E,Data!$B:$B,'22'!B$25,Data!$C:$C,'22'!$A$25,Data!$D:$D,'22'!$A39,Data!$F:$F,'22'!$A$24)","v":36.836304587763443},{"$f":"SUMIFS(Data!$E:$E,Data!$B:$B,'22'!C$25,Data!$C:$C,'22'!$A$25,Data!$D:$D,'22'!$A39,Data!$F:$F,'22'!$A$24)","v":36.256262476720032},{"$f":"SUMIFS(Data!$E:$E,Data!$B:$B,'22'!D$25,Data!$C:$C,'22'!$A$25,Data!$D:$D,'22'!$A39,Data!$F:$F,'22'!$A$24)","v":36.664022589258153},{"$f":"SUMIFS(Data!$E:$E,Data!$B:$B,'22'!E$25,Data!$C:$C,'22'!$A$25,Data!$D:$D,'22'!$A39,Data!$F:$F,'22'!$A$24)","v":36.440833831715508},{"$f":"SUMIFS(Data!$E:$E,Data!$B:$B,'22'!F$25,Data!$C:$C,'22'!$A$25,Data!$D:$D,'22'!$A39,Data!$F:$F,'22'!$A$24)","v":36.679476984580269},{"$f":"SUMIFS(Data!$E:$E,Data!$B:$B,'22'!G$25,Data!$C:$C,'22'!$A$25,Data!$D:$D,'22'!$A39,Data!$F:$F,'22'!$A$24)","v":36.57699218288387},{"$f":"SUMIFS(Data!$E:$E,Data!$B:$B,'22'!H$25,Data!$C:$C,'22'!$A$25,Data!$D:$D,'22'!$A39,Data!$F:$F,'22'!$A$24)","v":36.455160309639993},{"$f":"SUMIFS(Data!$E:$E,Data!$B:$B,'22'!I$25,Data!$C:$C,'22'!$A$25,Data!$D:$D,'22'!$A39,Data!$F:$F,'22'!$A$24)","v":36.293902976091793},{"$f":"SUMIFS(Data!$E:$E,Data!$B:$B,'22'!J$25,Data!$C:$C,'22'!$A$25,Data!$D:$D,'22'!$A39,Data!$F:$F,'22'!$A$24)","v":36.679476984580269},{"$f":"SUMIFS(Data!$E:$E,Data!$B:$B,'22'!K$25,Data!$C:$C,'22'!$A$25,Data!$D:$D,'22'!$A39,Data!$F:$F,'22'!$A$24)","v":36.441611295418994}]
[{"$f":"VLOOKUP(\"Saskatchewan\",Translation!$A$1:$C$354, Translation!A1+1, 0)","v":"Saskatchewan"},{"$f":"SUMIFS(Data!$E:$E,Data!$B:$B,'22'!B$25,Data!$C:$C,'22'!$A$25,Data!$D:$D,'22'!$A40,Data!$F:$F,'22'!$A$24)","v":36.477336910482023},{"$f":"SUMIFS(Data!$E:$E,Data!$B:$B,'22'!C$25,Data!$C:$C,'22'!$A$25,Data!$D:$D,'22'!$A40,Data!$F:$F,'22'!$A$24)","v":36.708704894631317},{"$f":"SUMIFS(Data!$E:$E,Data!$B:$B,'22'!D$25,Data!$C:$C,'22'!$A$25,Data!$D:$D,'22'!$A40,Data!$F:$F,'22'!$A$24)","v":36.653381927624373},{"$f":"SUMIFS(Data!$E:$E,Data!$B:$B,'22'!E$25,Data!$C:$C,'22'!$A$25,Data!$D:$D,'22'!$A40,Data!$F:$F,'22'!$A$24)","v":36.260652103393909},{"$f":"SUMIFS(Data!$E:$E,Data!$B:$B,'22'!F$25,Data!$C:$C,'22'!$A$25,Data!$D:$D,'22'!$A40,Data!$F:$F,'22'!$A$24)","v":36.579204970514525},{"$f":"SUMIFS(Data!$E:$E,Data!$B:$B,'22'!G$25,Data!$C:$C,'22'!$A$25,Data!$D:$D,'22'!$A40,Data!$F:$F,'22'!$A$24)","v":36.306800132920969},{"$f":"SUMIFS(Data!$E:$E,Data!$B:$B,'22'!H$25,Data!$C:$C,'22'!$A$25,Data!$D:$D,'22'!$A40,Data!$F:$F,'22'!$A$24)","v":36.412640039182271},{"$f":"SUMIFS(Data!$E:$E,Data!$B:$B,'22'!I$25,Data!$C:$C,'22'!$A$25,Data!$D:$D,'22'!$A40,Data!$F:$F,'22'!$A$24)","v":36.203658776407345},{"$f":"SUMIFS(Data!$E:$E,Data!$B:$B,'22'!J$25,Data!$C:$C,'22'!$A$25,Data!$D:$D,'22'!$A40,Data!$F:$F,'22'!$A$24)","v":36.579204970514525},{"$f":"SUMIFS(Data!$E:$E,Data!$B:$B,'22'!K$25,Data!$C:$C,'22'!$A$25,Data!$D:$D,'22'!$A40,Data!$F:$F,'22'!$A$24)","v":36.365124516016053}]
[{"$f":"VLOOKUP(\"Alberta\",Translation!$A$1:$C$354, Translation!A1+1, 0)","v":"Alberta"},{"$f":"SUMIFS(Data!$E:$E,Data!$B:$B,'22'!B$25,Data!$C:$C,'22'!$A$25,Data!$D:$D,'22'!$A41,Data!$F:$F,'22'!$A$24)","v":37.447770049926554},{"$f":"SUMIFS(Data!$E:$E,Data!$B:$B,'22'!C$25,Data!$C:$C,'22'!$A$25,Data!$D:$D,'22'!$A41,Data!$F:$F,'22'!$A$24)","v":37.55612133338041},{"$f":"SUMIFS(Data!$E:$E,Data!$B:$B,'22'!D$25,Data!$C:$C,'22'!$A$25,Data!$D:$D,'22'!$A41,Data!$F:$F,'22'!$A$24)","v":37.245184480103156},{"$f":"SUMIFS(Data!$E:$E,Data!$B:$B,'22'!E$25,Data!$C:$C,'22'!$A$25,Data!$D:$D,'22'!$A41,Data!$F:$F,'22'!$A$24)","v":37.20381682109636},{"$f":"SUMIFS(Data!$E:$E,Data!$B:$B,'22'!F$25,Data!$C:$C,'22'!$A$25,Data!$D:$D,'22'!$A41,Data!$F:$F,'22'!$A$24)","v":37.421765638585008},{"$f":"SUMIFS(Data!$E:$E,Data!$B:$B,'22'!G$25,Data!$C:$C,'22'!$A$25,Data!$D:$D,'22'!$A41,Data!$F:$F,'22'!$A$24)","v":37.714654871112756},{"$f":"SUMIFS(Data!$E:$E,Data!$B:$B,'22'!H$25,Data!$C:$C,'22'!$A$25,Data!$D:$D,'22'!$A41,Data!$F:$F,'22'!$A$24)","v":37.273819810451698},{"$f":"SUMIFS(Data!$E:$E,Data!$B:$B,'22'!I$25,Data!$C:$C,'22'!$A$25,Data!$D:$D,'22'!$A41,Data!$F:$F,'22'!$A$24)","v":37.569979940540463},{"$f":"SUMIFS(Data!$E:$E,Data!$B:$B,'22'!J$25,Data!$C:$C,'22'!$A$25,Data!$D:$D,'22'!$A41,Data!$F:$F,'22'!$A$24)","v":37.421765638585008},{"$f":"SUMIFS(Data!$E:$E,Data!$B:$B,'22'!K$25,Data!$C:$C,'22'!$A$25,Data!$D:$D,'22'!$A41,Data!$F:$F,'22'!$A$24)","v":37.495978435094059}]
[{"$f":"VLOOKUP(\"British Columbia\",Translation!$A$1:$C$354, Translation!A1+1, 0)","v":"Colombie-Britannique"},{"$f":"SUMIFS(Data!$E:$E,Data!$B:$B,'22'!B$25,Data!$C:$C,'22'!$A$25,Data!$D:$D,'22'!$A42,Data!$F:$F,'22'!$A$24)","v":38.169527449944844},{"$f":"SUMIFS(Data!$E:$E,Data!$B:$B,'22'!C$25,Data!$C:$C,'22'!$A$25,Data!$D:$D,'22'!$A42,Data!$F:$F,'22'!$A$24)","v":37.708129530216993},{"$f":"SUMIFS(Data!$E:$E,Data!$B:$B,'22'!D$25,Data!$C:$C,'22'!$A$25,Data!$D:$D,'22'!$A42,Data!$F:$F,'22'!$A$24)","v":37.593757443305513},{"$f":"SUMIFS(Data!$E:$E,Data!$B:$B,'22'!E$25,Data!$C:$C,'22'!$A$25,Data!$D:$D,'22'!$A42,Data!$F:$F,'22'!$A$24)","v":37.573689849634327},{"$f":"SUMIFS(Data!$E:$E,Data!$B:$B,'22'!F$25,Data!$C:$C,'22'!$A$25,Data!$D:$D,'22'!$A42,Data!$F:$F,'22'!$A$24)","v":37.69952024516725},{"$f":"SUMIFS(Data!$E:$E,Data!$B:$B,'22'!G$25,Data!$C:$C,'22'!$A$25,Data!$D:$D,'22'!$A42,Data!$F:$F,'22'!$A$24)","v":37.565315403253408},{"$f":"SUMIFS(Data!$E:$E,Data!$B:$B,'22'!H$25,Data!$C:$C,'22'!$A$25,Data!$D:$D,'22'!$A42,Data!$F:$F,'22'!$A$24)","v":37.659436761055694},{"$f":"SUMIFS(Data!$E:$E,Data!$B:$B,'22'!I$25,Data!$C:$C,'22'!$A$25,Data!$D:$D,'22'!$A42,Data!$F:$F,'22'!$A$24)","v":37.378268833399453},{"$f":"SUMIFS(Data!$E:$E,Data!$B:$B,'22'!J$25,Data!$C:$C,'22'!$A$25,Data!$D:$D,'22'!$A42,Data!$F:$F,'22'!$A$24)","v":37.69952024516725},{"$f":"SUMIFS(Data!$E:$E,Data!$B:$B,'22'!K$25,Data!$C:$C,'22'!$A$25,Data!$D:$D,'22'!$A42,Data!$F:$F,'22'!$A$24)","v":37.606898274910719}]
[{"$f":"VLOOKUP(\"Territories\",Translation!$A$1:$C$354, Translation!A1+1, 0)","v":"Territoires"},{"$f":"SUMIFS(Data!$E:$E,Data!$B:$B,'22'!B$25,Data!$C:$C,'22'!$A$25,Data!$D:$D,'22'!$A43,Data!$F:$F,'22'!$A$24)","v":34.895452883962804},{"$f":"SUMIFS(Data!$E:$E,Data!$B:$B,'22'!C$25,Data!$C:$C,'22'!$A$25,Data!$D:$D,'22'!$A43,Data!$F:$F,'22'!$A$24)","v":35.972684724481397},{"$f":"SUMIFS(Data!$E:$E,Data!$B:$B,'22'!D$25,Data!$C:$C,'22'!$A$25,Data!$D:$D,'22'!$A43,Data!$F:$F,'22'!$A$24)","v":36.133990159304929},{"$f":"SUMIFS(Data!$E:$E,Data!$B:$B,'22'!E$25,Data!$C:$C,'22'!$A$25,Data!$D:$D,'22'!$A43,Data!$F:$F,'22'!$A$24)","v":37.103785504825595},{"$f":"SUMIFS(Data!$E:$E,Data!$B:$B,'22'!F$25,Data!$C:$C,'22'!$A$25,Data!$D:$D,'22'!$A43,Data!$F:$F,'22'!$A$24)","v":36.778571051533447},{"$f":"SUMIFS(Data!$E:$E,Data!$B:$B,'22'!G$25,Data!$C:$C,'22'!$A$25,Data!$D:$D,'22'!$A43,Data!$F:$F,'22'!$A$24)","v":35.740236548758347},{"$f":"SUMIFS(Data!$E:$E,Data!$B:$B,'22'!H$25,Data!$C:$C,'22'!$A$25,Data!$D:$D,'22'!$A43,Data!$F:$F,'22'!$A$24)","v":35.787791404466006},{"$f":"SUMIFS(Data!$E:$E,Data!$B:$B,'22'!I$25,Data!$C:$C,'22'!$A$25,Data!$D:$D,'22'!$A43,Data!$F:$F,'22'!$A$24)","v":35.276447300788149},{"$f":"SUMIFS(Data!$E:$E,Data!$B:$B,'22'!J$25,Data!$C:$C,'22'!$A$25,Data!$D:$D,'22'!$A43,Data!$F:$F,'22'!$A$24)","v":36.778571051533447},{"$f":"SUMIFS(Data!$E:$E,Data!$B:$B,'22'!K$25,Data!$C:$C,'22'!$A$25,Data!$D:$D,'22'!$A43,Data!$F:$F,'22'!$A$24)","v":35.728258695477571}]
[{"$f":"VLOOKUP(\"Distribution based on loan amounts, not number of loans.\",Translation!$A$1:$C$354, Translation!A1+1, 0)","v":"La répartition est établie d'après le montant, plutôt que le nombre de prêts assurés."}]
[{"$f":"VLOOKUP(\"The sum of all breakdown categories may not add up to 100 due to rounding.\",Translation!$A$1:$C$354, Translation!A1+1, 0)","v":"Les chiffres ayant été arrondis, il se peut que la somme de l'ensemble des catégories n'égale pas 100 %."}]

{"sheet":"23","index":24,"n_rows":47,"n_cols":11,"rows_kept":47,"cut":false,"hidden":false,"merged":[[2,0,3,0],[25,0,26,0],[0,6,0,8],[2,2,2,10],[25,2,25,10]]}
[{"$f":"VLOOKUP(\"TRANSACTIONAL HOMEOWNER AND PORTFOLIO - GDS/TDS\",Translation!$A$1:$C$354, Translation!A1+1, 0)","v":"PROPRIÉTAIRES-OCCUPANTS (À L’UNITÉ) ET ASSURANCE DE PORTEFEUILLE - ABD/ATD"},null,null,null,null,null,{"$f":"VLOOKUP(\"Back to Table of Contents\",Translation!$A$1:$C$354, Translation!A1+1, 0)","v":"Retour à la table des matières"},null,null,null,{"$f":"VLOOKUP(\"Back to Table of Contents\",Translation!$A$1:$C$354, Translation!A1+1, 0)","v":"Retour à la table des matières"}]
[{"$f":"VLOOKUP(\"Insurance-in-force by CMHC  borrower average gross debt service ratio (GDS) at origination (%)\",Translation!$A$1:$C$354, Translation!A1+1, 0)","v":"Contrats d’assurance en vigueur selon le rapport d’amortissement brut de la dette (ABD) moyen des emprunteurs détenant un prêt assuré par la SCHL établi à l’initiation (%)"}]
[{"$f":"VLOOKUP(\"TRANSACTIONAL HOMEOWNER\",Translation!$A$1:$C$354, Translation!A1+1, 0)","v":"PROPRIÉTAIRES-OCCUPANTS, À L’UNITÉ"},null,{"$f":"VLOOKUP(\"As at\",Translation!$A$1:$C$354,Translation!A1+1,0)","v":"Aux"}]
[null,{"$f":"VLOOKUP(\"Q1 2020\",Translation!$A$1:$C$354, Translation!$A1+1, 0)","v":"T1 2020"},{"$f":"VLOOKUP(\"Q4 2019\",Translation!$A$1:$C$354, Translation!$A1+1, 0)","v":"T4 2019"},{"$f":"VLOOKUP(\"Q3 2019\",Translation!$A$1:$C$354, Translation!$A1+1, 0)","v":"T3 2019"},{"$f":"VLOOKUP(\"Q2 2019\",Translation!$A$1:$C$354, Translation!$A1+1, 0)","v":"T2 2019"},{"$f":"VLOOKUP(\"Q1 2019\",Translation!$A$1:$C$354, Translation!$A1+1, 0)","v":"T1 2019"},{"$f":"VLOOKUP(\"Q4 2018\",Translation!$A$1:$C$354, Translation!A1+1, 0)","v":"T4 2018"},{"$f":"VLOOKUP(\"Q3 2018\",Translation!$A$1:$C$354, Translation!A1+1, 0)","v":"T3 2018"},{"$f":"VLOOKUP(\"Q2 2018\",Translation!$A$1:$C$354, Translation!A1+1, 0)","v":"T2 2018"},{"$f":"VLOOKUP(\"Q4 2017\",Translation!$A$1:$C$354, Translation!A1+1, 0)","v":"T4 2017"},{"$f":"VLOOKUP(\"Q3 2017\",Translation!$A$1:$C$354, Translation!A1+1, 0)","v":"T3 2017"}]
["<= 30 %",66.701293151931736,66.989316373261005,67.413398392797518,67.877295093635254,68.263034281911047,68.429679600361908,68.880173545279689,69.248429306402215,69.900000000000006,70.339610834508534]
["> 30 % <= 35 %",20.84969528420309,20.756712324179247,20.595436638655521,20.426842185645455,20.304178430785068,20.208635458653898,20.082716362968448,19.908677724522885,19.675365248206454,19.600000000000001]
["> 35 % <= 39 %",11.608869445172921,11.391784709491008,11.101740352418577,10.767876715011209,10.474973329944691,10.300996845548106,10.031363187204033,9.7165062802605142,9.2227810452749548,9.0008281163430155]
["> 39 %",0.84014211869242361,0.86218659306549938,0.88942461612930712,0.92798600570933532,0.95781395735658603,0.97830282388643619,1.0057469045465319,1.0380249835409538,1.0939425267529796,1.1267053565273499]
[{"$f":"VLOOKUP(\"Average Gross Debt Service Ratio (GDS)\",Translation!$A$1:$C$354, Translation!A1+1, 0)","v":"Rapport d'amortissement brut de la dette (ABD) moyen"},24.247920124349779,24.207881152311458,24.155237483498237,24.105171793833275,24.044439097554132,24.017389259832878,23.97030857544733,23.910644039595407,23.825124085663159,23.77894525614478]
[{"$f":"VLOOKUP(\"Average Gross Debt Service Ratio (GDS) by province\",Translation!$A$1:$C$354, Translation!A1+1, 0)","v":"Rapport d'amortissement brut de la dette (ABD) moyen selon la province"}]
[{"$f":"VLOOKUP(\"Newfoundland and Labrador\",Translation!$A$1:$C$354, Translation!A1+1, 0)","v":"Terre-Neuve-et-Labrador"},19.836523010632796,19.813354585189813,19.781482278481015,19.765650582576583,19.721931643600094,19.722382371703244,19.704847905886115,19.660077828635576,19.606814860947892,19.579122662999357]
[{"$f":"VLOOKUP(\"Prince Edward Island\",Translation!$A$1:$C$354, Translation!A1+1, 0)","v":"Île-du-Prince-Édouard"},19.975323106291928,19.915011042575568,19.876796164021162,19.817173943968744,19.759391912396168,19.728697353112349,19.661531802476237,19.558847039567336,19.510326319434796,19.491762821213818]
[{"$f":"VLOOKUP(\"Nova Scotia\",Translation!$A$1:$C$354, Translation!A1+1, 0)","v":"Nouvelle-Écosse"},20.190850404396436,20.16593469723556,20.13642560636945,20.062692713036313,20.062363072104237,20.053457431601228,20.033922905685081,19.988012802204693,19.962903858732712,19.928402628743406]
[{"$f":"VLOOKUP(\"New Brunswick\",Translation!$A$1:$C$354, Translation!A1+1, 0)","v":"Nouveau-Brunswick"},19.488383711922069,19.464591505470104,19.441963122739232,19.398748504103594,19.375009680216142,19.372140750020144,19.341751281080871,19.306722736152697,19.275636977005707,19.253405966679107]
[{"$f":"VLOOKUP(\"Quebec\",Translation!$A$1:$C$354, Translation!A1+1, 0)","v":"Québec"},23.961380232265725,23.935325791324107,23.893290419757186,23.863667543442631,23.782299931867964,23.761004094159215,23.722578410619061,23.670945765380029,23.562288657380748,23.500290093102052]
[{"$f":"VLOOKUP(\"Ontario\",Translation!$A$1:$C$354, Translation!A1+1, 0)","v":"Ontario"},25.721639125035711,25.654895074133709,25.559281406319677,25.45796349387329,25.378203364188234,25.32448643597353,25.244423104330377,25.158835526595656,25.034468022724475,24.985320470795813]
[{"$f":"VLOOKUP(\"Manitoba\",Translation!$A$1:$C$354, Translation!A1+1, 0)","v":"Manitoba"},24.050803451267278,23.984343414744316,23.917846504318678,23.84335146398892,23.774957196190925,23.725797063937502,23.658079534847264,23.562762678839025,23.429258697811274,23.373584187031597]
[{"$f":"VLOOKUP(\"Saskatchewan\",Translation!$A$1:$C$354, Translation!A1+1, 0)","v":"Saskatchewan"},22.247718904001719,22.215764616689771,22.178227860362089,22.142246455247854,22.09264617897351,22.067703297079014,22.022892642339325,21.954611284261311,21.879960247301497,21.836869306640654]
[{"$f":"VLOOKUP(\"Alberta\",Translation!$A$1:$C$354, Translation!A1+1, 0)","v":"Alberta"},25.055833445169412,25.010144436647263,24.961164452734909,24.906131020324231,24.85244046488447,24.817291048685746,24.766077837471968,24.697277281513458,24.621176293083021,24.528810442349258]
[{"$f":"VLOOKUP(\"British Columbia\",Translation!$A$1:$C$354, Translation!A1+1, 0)","v":"Colombie-Britannique"},25.947285544464759,25.89300838686216,25.836670973663693,25.77135405154505,25.688274422041097,25.636712449143186,25.578882946105534,25.499269220289595,25.389653312983441,25.356424472907893]
[{"$f":"VLOOKUP(\"Territories\",Translation!$A$1:$C$354, Translation!A1+1, 0)","v":"Territoires"},21.84280666781525,21.769761741200544,21.715454984894258,21.590269417796961,21.476778710204005,21.435451247165517,21.397260734824215,21.279833380771585,21.150395462342189,21.081058353998763]
[{"$f":"VLOOKUP(\"Distribution based on outstanding loan amounts, not number of loans.\",Translation!$A$1:$C$354, Translation!A1+1, 0)","v":"La répartition est établie d'après le solde, plutôt que le nombre de prêts assurés."}]
[{"$f":"VLOOKUP(\"The sum of all breakdown categories may not add up to 100 due to rounding.\",Translation!$A$1:$C$354, Translation!A1+1, 0)","v":"Les chiffres ayant été arrondis, il se peut que la somme de l'ensemble des catégories n'égale pas 100 %."}]
[]
[{"$f":"VLOOKUP(\"Insurance-in-force by CMHC borrower average total debt service ratio (TDS) at origination (%)\",Translation!$A$1:$C$354, Translation!A1+1, 0)","v":"Contrats d’assurance en vigueur selon le rapport d’amortissement total de la dette (ATD) moyen des emprunteurs détenant un prêt assuré par la SCHL établi à l’initiation (%)"}]
[{"$f":"VLOOKUP(\"TRANSACTIONAL HOMEOWNER\",Translation!$A$1:$C$354, Translation!A1+1, 0)","v":"PROPRIÉTAIRES-OCCUPANTS, À L’UNITÉ"},null,{"$f":"VLOOKUP(\"As at\",Translation!$A$1:$C$354,Translation!A1+1,0)","v":"Aux"}]
[null,{"$f":"VLOOKUP(\"Q1 2020\",Translation!$A$1:$C$354, Translation!$A1+1, 0)","v":"T1 2020"},{"$f":"VLOOKUP(\"Q4 2019\",Translation!$A$1:$C$354, Translation!$A1+1, 0)","v":"T4 2019"},{"$f":"VLOOKUP(\"Q3 2019\",Translation!$A$1:$C$354, Translation!$A1+1, 0)","v":"T3 2019"},{"$f":"VLOOKUP(\"Q2 2019\",Translation!$A$1:$C$354, Translation!$A1+1, 0)","v":"T2 2019"},{"$f":"VLOOKUP(\"Q1 2019\",Translation!$A$1:$C$354, Translation!$A1+1, 0)","v":"T1 2019"},{"$f":"VLOOKUP(\"Q4 2018\",Translation!$A$1:$C$354, Translation!A1+1, 0)","v":"T4 2018"},{"$f":"VLOOKUP(\"Q3 2018\",Translation!$A$1:$C$354, Translation!A1+1, 0)","v":"T3 2018"},{"$f":"VLOOKUP(\"Q2 2018\",Translation!$A$1:$C$354, Translation!A1+1, 0)","v":"T2 2018"},{"$f":"VLOOKUP(\"Q4 2017\",Translation!$A$1:$C$354, Translation!A1+1, 0)","v":"T4 2017"},{"$f":"VLOOKUP(\"Q3 2017\",Translation!$A$1:$C$354, Translation!A1+1, 0)","v":"T3 2017"}]
["<= 30 %",17.173211865572625,17.301431583714681,17.489262997258599,17.731630132183184,17.912692520969347,18.042638537691978,18.2478528180241,18.511192193908251,18.883915244049824,19.053961922726927]
["> 30 % <= 35 %",20.003957254014868,20.070683016678082,20.195632890218253,20.339984760473317,20.428900716810073,20.499589497074091,20.60631200752692,20.723822659172498,20.926669790503201,21.001350565059575]
["> 35 % <= 40 %",33.219056144733358,33.240023245481893,33.243245332713919,33.247966789103558,33.274276092191812,33.264642968039496,33.261248656227856,33.256788899289461,33.270443724601236,33.261275594387072]
["> 40 % <= 44 %",29.149831082250362,28.918150079692108,28.58542310602224,28.168236121005801,27.854188927889822,27.65065971267865,27.321996691425461,26.921227691610856,26.290539087669824,26.033779140295515]
["> 44 %",0.44944956126057484,0.4653115433461123,0.48331334790838332,0.50903613514187096,0.52650847993036998,0.53894981282472443,0.5585467147641654,0.58252985906017973,0.6236619666036175,0.64432023813946282]
[{"$f":"VLOOKUP(\"Average Total Debt Service Ratio (TDS)\",Translation!$A$1:$C$354, Translation!A1+1, 0)","v":"Rapport d'amortissement total de la dette (ATD) moyen"},33.695331444382241,34.752861591584249,34.713048234033757,34.669556746418621,34.623207209654048,34.597654746834166,34.559918864088466,34.510190407697777,34.436583590445075,34.401853619718366]
[{"$f":"VLOOKUP(\"Average Total Debt Service Ratio (TDS) by province\",Translation!$A$1:$C$354, Translation!A1+1, 0)","v":"Rapport d'amortissement total de la dette (ATD) moyen selon la province"}]
[{"$f":"VLOOKUP(\"Newfoundland and Labrador\",Translation!$A$1:$C$354, Translation!A1+1, 0)","v":"Terre-Neuve-et-Labrador"},33.542025519242486,33.6612729260424,33.637348254542346,33.575103947914023,33.515625218067861,33.513726087845541,33.449520498928472,33.385613315665061,33.268903701817607,33.221411119290494]
[{"$f":"VLOOKUP(\"Prince Edward Island\",Translation!$A$1:$C$354, Translation!A1+1, 0)","v":"Île-du-Prince-Édouard"},33.6232734782512,33.492434045433896,33.439662419165238,33.360116054579812,33.332671471514466,33.36993206806293,33.308471350417499,33.259025619128856,33.177249632913025,33.12916946418806]
[{"$f":"VLOOKUP(\"Nova Scotia\",Translation!$A$1:$C$354, Translation!A1+1, 0)","v":"Nouvelle-Écosse"},33.079310883981591,33.603330631856046,33.563573679871325,33.509925956945473,33.477308691298013,33.463916053022217,33.449005313228945,33.41840689172853,33.356785924676622,33.310855720007623]
[{"$f":"VLOOKUP(\"New Brunswick\",Translation!$A$1:$C$354, Translation!A1+1, 0)","v":"Nouveau-Brunswick"},34.344602702242334,33.048285255210054,33.001605183328095,32.95678306348136,32.898727139286216,32.8794081856811,32.836160523589712,32.797804625372201,32.742639945325422,32.697011608601521]
[{"$f":"VLOOKUP(\"Quebec\",Translation!$A$1:$C$354, Translation!A1+1, 0)","v":"Québec"},35.250323782813538,34.318595165140444,34.278425727590928,34.24273624915201,34.170768034830374,34.141542878781692,34.097949220040149,34.040909984355331,33.924958382185224,33.863028059917298]
[{"$f":"VLOOKUP(\"Ontario\",Translation!$A$1:$C$354, Translation!A1+1, 0)","v":"Ontario"},34.183745959064183,35.22209373494632,35.173796220263469,35.120351820496886,35.076051028501055,35.043486331140471,34.999258397143258,34.944266399940616,34.873270505916281,34.851252011469604]
[{"$f":"VLOOKUP(\"Manitoba\",Translation!$A$1:$C$354, Translation!A1+1, 0)","v":"Manitoba"},34.247025275976846,34.146639275908719,34.102735458361636,34.024420321178496,33.975491477000631,33.936630386674565,33.87835901421704,33.81119391302677,33.717330246194102,33.686959695143209]
[{"$f":"VLOOKUP(\"Saskatchewan\",Translation!$A$1:$C$354, Translation!A1+1, 0)","v":"Saskatchewan"},35.573633561269538,34.21975394204393,34.175291804450815,34.13007634118447,34.075189518815108,34.04283597162258,34.004947907589425,33.949517216925607,33.892984318739636,33.847452177547318]
[{"$f":"VLOOKUP(\"Alberta\",Translation!$A$1:$C$354, Translation!A1+1, 0)","v":"Alberta"},35.498640912892157,35.542234012689875,35.50301948279504,35.451652936081693,35.416746865147957,35.390352853200895,35.353570275681705,35.302880129596929,35.243175236564603,35.182352062077179]
[{"$f":"VLOOKUP(\"British Columbia\",Translation!$A$1:$C$354, Translation!A1+1, 0)","v":"Colombie-Britannique"},33.15001414541684,35.47252279458317,35.45187781310252,35.428869670805881,35.394364869436934,35.368979996370712,35.354388554845997,35.31657444802731,35.263866403267365,35.274878485474808]
[{"$f":"VLOOKUP(\"Territories\",Translation!$A$1:$C$354, Translation!A1+1, 0)","v":"Territoires"},34.780290805787637,33.093575633395616,33.055040986908416,33.015892160105821,32.88183087346934,32.809665500485856,32.765754856230039,32.6685385357369,32.582973351005805,32.538447969621856]
[{"$f":"VLOOKUP(\"Distribution based on outstanding loan amounts, not number of loans.\",Translation!$A$1:$C$354, Translation!A1+1, 0)","v":"La répartition est établie d'après le solde, plutôt que le nombre de prêts assurés."}]
[{"$f":"VLOOKUP(\"The sum of all breakdown categories may not add up to 100 due to rounding.\",Translation!$A$1:$C$354, Translation!A1+1, 0)","v":"Les chiffres ayant été arrondis, il se peut que la somme de l'ensemble des catégories n'égale pas 100 %."}]

{"sheet":"24","index":25,"n_rows":20,"n_cols":13,"rows_kept":20,"cut":false,"hidden":false,"merged":[[0,5,0,10]]}
[{"$f":"VLOOKUP(\"TRANSACTIONAL HOMEOWNER AND PORTFOLIO - INTEREST RATE TYPE\",Translation!$A$1:$C$354, Translation!A1+1, 0)","v":"PROPRIÉTAIRES-OCCUPANTS (À L’UNITÉ) ET ASSURANCE DE PORTEFEUILLE – TYPE DE TAUX D’INTÉRÊT"},null,null,null,null,{"$f":"VLOOKUP(\"Back to Table of Contents\",Translation!$A$1:$C$354, Translation!A1+1, 0)","v":"Retour à la table des matières"}]
[{"$f":"VLOOKUP(\"Interest rate type for homeowner purchase loans at origination (%)\",Translation!$A$1:$C$354, Translation!A1+1, 0)","v":"Prêts achat pour propriétaires-occupants selon le type de taux d'intérêt à l'initiation (%)"}]
[{"$f":"VLOOKUP(\"TRANSACTIONAL HOMEOWNER\",Translation!$A$1:$C$354, Translation!A1+1, 0)","v":"PROPRIÉTAIRES-OCCUPANTS, À L’UNITÉ"},{"$f":"VLOOKUP(\"Q1 2020\",Translation!$A$1:$C$354, Translation!$A$1+1, 0)","v":"T1 2020"},{"$f":"VLOOKUP(\"Q4 2019\",Translation!$A$1:$C$354, Translation!$A$1+1, 0)","v":"T4 2019"},{"$f":"VLOOKUP(\"Q3 2019\",Translation!$A$1:$C$354, Translation!$A$1+1, 0)","v":"T3 2019"},{"$f":"VLOOKUP(\"Q2 2019\",Translation!$A$1:$C$354, Translation!$A$1+1, 0)","v":"T2 2019"},{"$f":"VLOOKUP(\"Q1 2019\",Translation!$A$1:$C$354, Translation!$A$1+1, 0)","v":"T1 2019"},{"$f":"VLOOKUP(\"Q4 2018\",Translation!$A$1:$C$354, Translation!$A$1+1, 0)","v":"T4 2018"},{"$f":"VLOOKUP(\"Q3 2018\",Translation!$A$1:$C$354, Translation!$A$1+1, 0)","v":"T3 2018"},{"$f":"VLOOKUP(\"Q2 2018\",Translation!$A$1:$C$354, Translation!$A$1+1, 0)","v":"T2 2018"},{"$f":"VLOOKUP(\"Q4 2017\",Translation!$A$1:$C$354, Translation!$A$1+1, 0)","v":"T4 2017"},{"$f":"VLOOKUP(\"Q3 2017\",Translation!$A$1:$C$354, Translation!$A$1+1, 0)","v":"T3 2017"},{"$f":"VLOOKUP(\"YTD 2019\",Translation!$A$1:$C$354, Translation!$A$1+1, 0)","v":"Cumul 2019"},{"$f":"VLOOKUP(\"YTD 2018\",Translation!$A$1:$C$354, Translation!$A$1+1, 0)","v":"Cumul 2018"}]
[{"$f":"VLOOKUP(\"Fixed\",Translation!$A$1:$C$354, Translation!A1+1, 0)","v":"Fixe"},96.634810948953771,98.379668615807304,97.168423188137908,94.447094235269731,79.94526397045702,74.750183336805549,68.701121673062076,80.345845249189907,82.860063371656707,81.270489418370715]
[{"$f":"VLOOKUP(\"Variable\",Translation!$A$1:$C$354, Translation!A1+1, 0)","v":"Variable"},3.3651890510463125,1.6203313841931091,2.8315768118618334,5.5529057647310154,20.054736029542887,25.249816663194458,31.298878326939118,19.654154750810864,17.139936628344593,18.729510581629803]
[{"$f":"VLOOKUP(\"Purchase loans that are fixed interest rate at origination by province (%)\",Translation!$A$1:$C$354, Translation!A1+1, 0)","v":"Prêts achat à taux fixe à l'initiation selon la province (%)"}]
[{"$f":"VLOOKUP(\"Newfoundland and Labrador\",Translation!$A$1:$C$354, Translation!A1+1, 0)","v":"Terre-Neuve-et-Labrador"},98.346511366253822,98.718184647343406,99.1,95.774853289525353,88.514924076499113,84.431982833681545,75.865674390428481,85.021891267451537,88.387011458714653,88.595824959105045]
[{"$f":"VLOOKUP(\"Prince Edward Island\",Translation!$A$1:$C$354, Translation!A1+1, 0)","v":"Île-du-Prince-Édouard"},93.086961323349556,100,98.8,94.829557595558654,95.031297986441345,87.227303721924599,92.481748260033058,89.860439179621778,90.070277702771591,97.9115557855053]
[{"$f":"VLOOKUP(\"Nova Scotia\",Translation!$A$1:$C$354, Translation!A1+1, 0)","v":"Nouvelle-Écosse"},99.195921227889045,98.948158636573865,99,98.303523121199092,93.00471876970299,86.975773641079002,82.381239904093391,90.240692568082096,91.197314843631105,88.638501038610258]
[{"$f":"VLOOKUP(\"New Brunswick\",Translation!$A$1:$C$354, Translation!A1+1, 0)","v":"Nouveau-Brunswick"},99.244988042347288,99.901774833641895,99.6,97.866433163573305,90.774488157929468,87.94950007700912,82.01387333803099,90.203430364534114,89.398614347441764,91.636641929927976]
[{"$f":"VLOOKUP(\"Quebec\",Translation!$A$1:$C$354, Translation!A1+1, 0)","v":"Québec"},97.784464021348555,98.580107429458877,98.6,96.844936207570086,90.012859400742414,81.252374557857237,72.968449026672303,84.221568668713132,88.409695811104825,85.290189294049839]
[{"$f":"VLOOKUP(\"Ontario\",Translation!$A$1:$C$354, Translation!A1+1, 0)","v":"Ontario"},94.539940572621362,97.722138115300382,94.1,88.327593916792907,67.444020221996041,64.037175012713533,59.139696413775823,69.797777411299322,73.547637929275794,73.202345656460665]
[{"$f":"VLOOKUP(\"Manitoba\",Translation!$A$1:$C$354, Translation!A1+1, 0)","v":"Manitoba"},99.181867521019853,98.705539717497132,99,98.365985408686399,91.395412001809433,88.761558978020901,79.314960930519376,89.041357797609606,90.614603886336639,90.164125969270657]
[{"$f":"VLOOKUP(\"Saskatchewan\",Translation!$A$1:$C$354, Translation!A1+1, 0)","v":"Saskatchewan"},98.554347299231964,99.717740285502444,99.3,97.789714487154782,86.963491205585569,83.590790367207987,77.786392082421003,87.077465502059439,89.207076651810198,85.825660671582341]
[{"$f":"VLOOKUP(\"Alberta\",Translation!$A$1:$C$354, Translation!A1+1, 0)","v":"Alberta"},97.6104743088341,98.780267650195157,99.3,95.831243614815037,81.740634531521593,76.697216974362846,70.68366688310573,82.808924245799048,83.92696849127654,84.296580756830735]
[{"$f":"VLOOKUP(\"British Columbia\",Translation!$A$1:$C$354, Translation!A1+1, 0)","v":"Colombie-Britannique"},95.008977054037999,98.223056675385791,97,93.734056547059978,78.82712379340748,74.63211689021179,69.07281713011065,79.518886168071148,88.390120555584829,82.309157396119772]
[{"$f":"VLOOKUP(\"Territories\",Translation!$A$1:$C$354, Translation!A1+1, 0)","v":"Territoires"},100,100,100,94.726912354785185,91.513605993318308,92.612330405543474,83.212756086529964,83.577812619874933,85.296298187905137,90.065414240397118]
[{"$f":"VLOOKUP(\"Distribution based on loan amounts, not number of loans.\",Translation!$A$1:$C$354, Translation!A1+1, 0)","v":"La répartition est établie d'après le montant, plutôt que le nombre de prêts assurés."}]
[{"$f":"VLOOKUP(\"The sum of all breakdown categories may not add up to 100 due to rounding.\",Translation!$A$1:$C$354, Translation!A1+1, 0)","v":"Les chiffres ayant été arrondis, il se peut que la somme de l'ensemble des catégories n'égale pas 100 %."}]
[{"$f":"VLOOKUP(\"Figures have been refreshed due to data sources consolidation. Slight differences from previous versions of the report may be found.\",Translation!$A$1:$C$354, Translation!A1+1, 0)","v":"Les résultats ont été actualisés en raison de la consolidation de sources de données, ce qui peut expliquer de légères différences par rapport aux versions précédentes du rapport."}]

{"sheet":"25","index":26,"n_rows":35,"n_cols":11,"rows_kept":35,"cut":false,"hidden":false,"merged":[[2,0,3,0],[19,0,20,0],[0,6,0,8],[19,2,19,10],[2,1,2,10]]}
[{"$f":"VLOOKUP(\"TRANSACTIONAL HOMEOWNER AND PORTFOLIO - ARREARS\",Translation!$A$1:$C$354, Translation!A1+1, 0)","v":"PROPRIÉTAIRES-OCCUPANTS (À L’UNITÉ) ET ASSURANCE DE PORTEFEUILLE – PRÊTS EN SOUFFRANCE"},null,null,null,null,null,{"$f":"VLOOKUP(\"Back to Table of Contents\",Translation!$A$1:$C$354, Translation!A1+1, 0)","v":"Retour à la table des matières"},null,null,null,{"$f":"VLOOKUP(\"Back to Table of Contents\",Translation!$A$1:$C$354, Translation!A1+1, 0)","v":"Retour à la table des matières"}]
[{"$f":"VLOOKUP(\"Arrears\",Translation!$A$1:$C$354, Translation!A1+1, 0)","v":"Prêts en souffrance"}]
[{"$f":"VLOOKUP(\"TRANSACTIONAL HOMEOWNER\",Translation!$A$1:$C$354, Translation!A1+1, 0)","v":"PROPRIÉTAIRES-OCCUPANTS, À L’UNITÉ"},{"$f":"VLOOKUP(\"As at\",Translation!$A$1:$C$354,Translation!A1+1,0)","v":"Aux"}]
[null,{"$f":"VLOOKUP(\"Q1 2020\",Translation!$A$1:$C$354, Translation!$A1+1, 0)","v":"T1 2020"},{"$f":"VLOOKUP(\"Q4 2019\",Translation!$A$1:$C$354, Translation!$A1+1, 0)","v":"T4 2019"},{"$f":"VLOOKUP(\"Q3 2019\",Translation!$A$1:$C$354, Translation!$A1+1, 0)","v":"T3 2019"},{"$f":"VLOOKUP(\"Q2 2019\",Translation!$A$1:$C$354, Translation!$A1+1, 0)","v":"T2 2019"},{"$f":"VLOOKUP(\"Q1 2019\",Translation!$A$1:$C$354, Translation!$A1+1, 0)","v":"T1 2019"},{"$f":"VLOOKUP(\"Q4 2018\",Translation!$A$1:$C$354, Translation!A1+1, 0)","v":"T4 2018"},{"$f":"VLOOKUP(\"Q3 2018\",Translation!$A$1:$C$354, Translation!A1+1, 0)","v":"T3 2018"},{"$f":"VLOOKUP(\"Q2 2018\",Translation!$A$1:$C$354, Translation!A1+1, 0)","v":"T2 2018"},{"$f":"VLOOKUP(\"Q4 2017\",Translation!$A$1:$C$354, Translation!A1+1, 0)","v":"T4 2017"},{"$f":"VLOOKUP(\"Q3 2017\",Translation!$A$1:$C$354, Translation!A1+1, 0)","v":"T3 2017"}]
[{"$f":"VLOOKUP(\"Number of Loans in Arrears\",Translation!$A$1:$C$354, Translation!A1+1, 0)","v":"Nombre de prêts en souffrance"},4878,4859,4799,4692,5033,5048,5087,4877,5376,5584]
[{"$f":"VLOOKUP(\"Canada\",Translation!$A$1:$C$354, Translation!A1+1, 0)","v":"Canada"},4.3598388749299909E-3,4.2926312136215266E-3,4.1839914435276631E-3,4.0306595473300292E-3,4.2516523111899842E-3,4.1999999999999997E-3,4.1999999999999997E-3,3.9763919763288139E-3,4.2591921587564517E-3,4.3683402732903618E-3]
[{"$f":"VLOOKUP(\"By province\",Translation!$A$1:$C$354, Translation!A1+1, 0)","v":"Répartition selon la province"}]
[{"$f":"VLOOKUP(\"Newfoundland and Labrador\",Translation!$A$1:$C$354, Translation!A1+1, 0)","v":"Terre-Neuve-et-Labrador"},6.8624929929443608E-3,6.4714639920239484E-3,6.1073299845931118E-3,6.0211564726603854E-3,6.4337840054393726E-3,5.5999999999999999E-3,5.4663328609865927E-3,4.7550761128351583E-3,4.7468495194726151E-3,4.8155878633405211E-3]
[{"$f":"VLOOKUP(\"Prince Edward Island\",Translation!$A$1:$C$354, Translation!A1+1, 0)","v":"Île-du-Prince-Édouard"},2.8859995835070272E-3,3.2929599477687279E-3,3.3611490559886039E-3,3.0272338132374143E-3,2.8437288490226953E-3,3.3999999999999998E-3,5.4007061833471924E-3,5.1933261690886162E-3,5.3059191328946372E-3,4.2605062424856581E-3]
[{"$f":"VLOOKUP(\"Nova Scotia\",Translation!$A$1:$C$354, Translation!A1+1, 0)","v":"Nouvelle-Écosse"},5.1785695288330399E-3,5.0194060793853036E-3,4.8137476949288967E-3,4.866871559649895E-3,4.4717868396493094E-3,5.3E-3,5.6871982145046017E-3,5.6923096877071989E-3,6.8993840782809032E-3,7.0349260808547651E-3]
[{"$f":"VLOOKUP(\"New Brunswick\",Translation!$A$1:$C$354, Translation!A1+1, 0)","v":"Nouveau-Brunswick"},4.4266945339692882E-3,4.7655221831841184E-3,4.402744377973734E-3,3.924058141182748E-3,4.2957823701465364E-3,4.7000000000000002E-3,4.8177583643043281E-3,3.9527177338404065E-3,5.5378572381688026E-3,5.483056047575278E-3]
[{"$f":"VLOOKUP(\"Quebec\",Translation!$A$1:$C$354, Translation!A1+1, 0)","v":"Québec"},4.0452046448172995E-3,4.0893720760920354E-3,4.0518424725201558E-3,3.8937135130202526E-3,4.3536369336341025E-3,4.4000000000000003E-3,4.4238322609709713E-3,4.3490670651824348E-3,4.456833145267125E-3,4.7727837239670426E-3]
[{"$f":"VLOOKUP(\"Ontario\",Translation!$A$1:$C$354, Translation!A1+1, 0)","v":"Ontario"},1.6997868121601701E-3,1.7206701190659111E-3,1.7074228529974688E-3,1.7083776686210262E-3,1.8210270902569686E-3,1.6999999999999999E-3,1.689137824397513E-3,1.5321673125090812E-3,1.7640861971050866E-3,1.7792924300115203E-3]
[{"$f":"VLOOKUP(\"Manitoba\",Translation!$A$1:$C$354, Translation!A1+1, 0)","v":"Manitoba"},5.0430408780360635E-3,5.126221665529191E-3,5.092974330945679E-3,4.5946129414002387E-3,4.5538457216300595E-3,4.4999999999999997E-3,4.4767730596465818E-3,3.8823998507502146E-3,4.1301704542801038E-3,4.1588708282773957E-3]
[{"$f":"VLOOKUP(\"Saskatchewan\",Translation!$A$1:$C$354, Translation!A1+1, 0)","v":"Saskatchewan"},1.184898510500584E-2,1.0559549920843656E-2,1.0646852718828899E-2,1.017583785427802E-2,1.108252864247378E-2,1.03E-2,1.0409859803947031E-2,1.0208113889524204E-2,9.7257162246244758E-3,1.0469761011116232E-2]
[{"$f":"VLOOKUP(\"Alberta\",Translation!$A$1:$C$354, Translation!A1+1, 0)","v":"Alberta"},6.6990764841695508E-3,6.6034856326619229E-3,6.4651896643046622E-3,6.4101757821678814E-3,6.570650109686947E-3,6.4999999999999997E-3,6.1660252372837798E-3,5.8364148648396607E-3,6.2550174734741226E-3,6.3505283722310492E-3]
[{"$f":"VLOOKUP(\"British Columbia\",Translation!$A$1:$C$354, Translation!A1+1, 0)","v":"Colombie-Britannique"},3.0258354613781234E-3,2.9245370055508337E-3,2.6914975696300083E-3,2.499943782132611E-3,2.761163479336214E-3,2.7000000000000001E-3,2.9897605589248415E-3,2.9551598850954303E-3,3.4455879850872769E-3,3.3921281439483471E-3]
[{"$f":"VLOOKUP(\"Territories\",Translation!$A$1:$C$354, Translation!A1+1, 0)","v":"Territoires"},1.0445306749634486E-2,1.0990703841238469E-2,9.8357730131653186E-3,1.0016489457818198E-2,1.0531847816287108E-2,1.11E-2,9.6691898421925881E-3,9.2570170541146739E-3,9.1200785594510413E-3,8.2961282150833381E-3]
[]
[{"$f":"VLOOKUP(\"PORTFOLIO\",Translation!$A$1:$C$354, Translation!A1+1, 0)","v":"ASSURANCE DE PORTEFEUILLE"},null,{"$f":"VLOOKUP(\"As at\",Translation!$A$1:$C$354,Translation!A1+1,0)","v":"Aux"}]
[null,{"$f":"VLOOKUP(\"Q1 2020\",Translation!$A$1:$C$354, Translation!$A1+1, 0)","v":"T1 2020"},{"$f":"VLOOKUP(\"Q4 2019\",Translation!$A$1:$C$354, Translation!$A1+1, 0)","v":"T4 2019"},{"$f":"VLOOKUP(\"Q3 2019\",Translation!$A$1:$C$354, Translation!$A1+1, 0)","v":"T3 2019"},{"$f":"VLOOKUP(\"Q2 2019\",Translation!$A$1:$C$354, Translation!$A1+1, 0)","v":"T2 2019"},{"$f":"VLOOKUP(\"Q1 2019\",Translation!$A$1:$C$354, Translation!$A1+1, 0)","v":"T1 2019"},{"$f":"VLOOKUP(\"Q4 2018\",Translation!$A$1:$C$354, Translation!A1+1, 0)","v":"T4 2018"},{"$f":"VLOOKUP(\"Q3 2018\",Translation!$A$1:$C$354, Translation!A1+1, 0)","v":"T3 2018"},{"$f":"VLOOKUP(\"Q2 2018\",Translation!$A$1:$C$354, Translation!A1+1, 0)","v":"T2 2018"},{"$f":"VLOOKUP(\"Q4 2017\",Translation!$A$1:$C$354, Translation!A1+1, 0)","v":"T4 2017"},{"$f":"VLOOKUP(\"Q3 2017\",Translation!$A$1:$C$354, Translation!A1+1, 0)","v":"T3 2017"}]
[{"$f":"VLOOKUP(\"Number of Loans in Arrears\",Translation!$A$1:$C$354, Translation!A1+1, 0)","v":"Nombre de prêts en souffrance"},1291,1275,1330,1293,1368,1296,1327,1301,1362,1443]
[{"$f":"VLOOKUP(\"Canada\",Translation!$A$1:$C$354, Translation!A1+1, 0)","v":"Canada"},1.5659474952724399E-3,1.500058237555105E-3,1.5163520901146385E-3,1.4129587881556243E-3,1.4519580205821418E-3,1.2999999999999999E-3,1.2999999999999999E-3,1.2541656906153509E-3,1.2800078191373384E-3,1.3357858225265516E-3]
[{"$f":"VLOOKUP(\"By province\",Translation!$A$1:$C$354, Translation!A1+1, 0)","v":"Répartition selon la province"}]
[{"$f":"VLOOKUP(\"Newfoundland and Labrador\",Translation!$A$1:$C$354, Translation!A1+1, 0)","v":"Terre-Neuve-et-Labrador"},2.298427875333272E-3,1.7839621800017837E-3,2.5169241451136956E-3,2.1668472372697724E-3,3.2501828227837815E-3,2.0999999999999999E-3,2.2335181762168821E-3,1.8481555407703113E-3,1.4108352144469526E-3,1.3257972228037122E-3]
[{"$f":"VLOOKUP(\"Prince Edward Island\",Translation!$A$1:$C$354, Translation!A1+1, 0)","v":"Île-du-Prince-Édouard"},1.092896174863388E-3,2.0986358866736622E-3,2.3785253143051308E-3,9.7719869706840395E-4,6.3091482649842276E-4,5.9999999999999995E-4,8.784773060029283E-4,1.1191941801902631E-3,2.4549918166939444E-3,1.6085790884718498E-3]
[{"$f":"VLOOKUP(\"Nova Scotia\",Translation!$A$1:$C$354, Translation!A1+1, 0)","v":"Nouvelle-Écosse"},2.996761564116197E-3,2.4280911468061261E-3,2.8594771241830064E-3,2.6055237102657635E-3,2.6582278481012659E-3,2.7000000000000001E-3,2.5111607142857145E-3,2.0634314100114637E-3,2.5934570782853543E-3,2.5264545421258833E-3]
[{"$f":"VLOOKUP(\"New Brunswick\",Translation!$A$1:$C$354, Translation!A1+1, 0)","v":"Nouveau-Brunswick"},2.9507935242044821E-3,3.4708831469340536E-3,3.5965832459163793E-3,3.2195750160978749E-3,2.9333705824835872E-3,2.7000000000000001E-3,3.0305026681599579E-3,3.0973451327433628E-3,3.4374808176293658E-3,3.2092037541628822E-3]
[{"$f":"VLOOKUP(\"Quebec\",Translation!$A$1:$C$354, Translation!A1+1, 0)","v":"Québec"},1.7896815601086149E-3,1.6076332809860151E-3,1.56604580683985E-3,1.5644664474095912E-3,1.6794737648870022E-3,1.5E-3,1.6180724321690292E-3,1.6139616551088093E-3,1.3779844754490949E-3,1.5913326866273557E-3]
[{"$f":"VLOOKUP(\"Ontario\",Translation!$A$1:$C$354, Translation!A1+1, 0)","v":"Ontario"},7.2411672034819897E-4,6.9302514295218633E-4,7.3177965895664262E-4,6.8772275479431048E-4,7.1658174683189493E-4,6.9999999999999999E-4,6.6854978438732034E-4,6.0727042203242737E-4,6.9308214847359803E-4,7.2044667693970266E-4]
[{"$f":"VLOOKUP(\"Manitoba\",Translation!$A$1:$C$354, Translation!A1+1, 0)","v":"Manitoba"},2.035568887936576E-3,2.5896001657344111E-3,2.3009203681472589E-3,1.853700270925424E-3,2.297266253158741E-3,2.0999999999999999E-3,2.2420557926960722E-3,2.1040471966665289E-3,1.727393243080384E-3,1.49453315503815E-3]
[{"$f":"VLOOKUP(\"Saskatchewan\",Translation!$A$1:$C$354, Translation!A1+1, 0)","v":"Saskatchewan"},5.1136363636363636E-3,5.1787420182010154E-3,4.8451035090295112E-3,5.2348613469156754E-3,4.9607275733774287E-3,4.7999999999999996E-3,4.8266783677051337E-3,4.2299395118649804E-3,4.233067729083665E-3,4.3110527180160946E-3]
[{"$f":"VLOOKUP(\"Alberta\",Translation!$A$1:$C$354, Translation!A1+1, 0)","v":"Alberta"},3.2351547406408339E-3,2.9834048107402573E-3,3.0886690959569668E-3,2.7873339527408779E-3,2.7952366551969336E-3,2.5999999999999999E-3,2.4238906189942028E-3,2.3362713715733424E-3,2.2719604094027668E-3,2.3941709719741164E-3]
[{"$f":"VLOOKUP(\"British Columbia\",Translation!$A$1:$C$354, Translation!A1+1, 0)","v":"Colombie-Britannique"},1.3994877346782499E-3,1.4163218292734953E-3,1.3136478927931129E-3,1.1771443115296512E-3,1.1244581275057968E-3,1E-3,1.0180444693627631E-3,9.6154531015178171E-4,1.1268921825290483E-3,1.1621814077846001E-3]
[{"$f":"VLOOKUP(\"Territories\",Translation!$A$1:$C$354, Translation!A1+1, 0)","v":"Territoires"},1.5760441292356187E-3,4.5420136260408781E-3,4.662004662004662E-3,5.1395007342143906E-3,4.9365303244005643E-3,3.3999999999999998E-3,4.72972972972973E-3,3.838771593090211E-3,3.0788177339901479E-3,3.0469226081657527E-3]

{"sheet":"26","index":27,"n_rows":35,"n_cols":11,"rows_kept":35,"cut":false,"hidden":false,"merged":[[2,0,3,0],[19,0,20,0],[19,3,19,10],[0,5,0,10],[2,1,2,10]]}
[{"$f":"VLOOKUP(\"TRANSACTIONAL HOMEOWNER AND PORTFOLIO - CLAIMS PAID\",Translation!$A$1:$C$354, Translation!A1+1, 0)","v":"PROPRIÉTAIRES-OCCUPANTS (À L’UNITÉ) ET ASSURANCE DE PORTEFEUILLE - RÈGLEMENTS PAYÉS"},null,null,null,null,{"$f":"VLOOKUP(\"Back to Table of Contents\",Translation!$A$1:$C$354, Translation!A1+1, 0)","v":"Retour à la table des matières"}]
[{"$f":"VLOOKUP(\"Claims Paid\",Translation!$A$1:$C$354, Translation!A1+1, 0)","v":"Règlements payés"}]
[{"$f":"VLOOKUP(\"TRANSACTIONAL HOMEOWNER\",Translation!$A$1:$C$354, Translation!A1+1, 0)","v":"PROPRIÉTAIRES-OCCUPANTS, À L’UNITÉ"},{"$f":"VLOOKUP(\"YTD\",Translation!$A$1:$C$354,Translation!A1+1,0)","v":"Cumul"}]
[null,{"$f":"VLOOKUP(\"Q1 2020\",Translation!$A$1:$C$354, Translation!$A1+1, 0)","v":"T1 2020"},{"$f":"VLOOKUP(\"Q4 2019\",Translation!$A$1:$C$354, Translation!$A1+1, 0)","v":"T4 2019"},{"$f":"VLOOKUP(\"Q3 2019\",Translation!$A$1:$C$354, Translation!$A1+1, 0)","v":"T3 2019"},{"$f":"VLOOKUP(\"Q2 2019\",Translation!$A$1:$C$354, Translation!$A1+1, 0)","v":"T2 2019"},{"$f":"VLOOKUP(\"Q1 2019\",Translation!$A$1:$C$354, Translation!$A1+1, 0)","v":"T1 2019"},{"$f":"VLOOKUP(\"Q4 2018\",Translation!$A$1:$C$354, Translation!A1+1, 0)","v":"T4 2018"},{"$f":"VLOOKUP(\"Q3 2018\",Translation!$A$1:$C$354, Translation!A1+1, 0)","v":"T3 2018"},{"$f":"VLOOKUP(\"Q2 2018\",Translation!$A$1:$C$354, Translation!A1+1, 0)","v":"T2 2018"},{"$f":"VLOOKUP(\"Q4 2017\",Translation!$A$1:$C$354, Translation!A1+1, 0)","v":"T4 2017"},{"$f":"VLOOKUP(\"Q3 2017\",Translation!$A$1:$C$354, Translation!A1+1, 0)","v":"T3 2017"}]
[{"$f":"VLOOKUP(\"Canada\",Translation!$A$1:$C$354, Translation!A1+1, 0)","v":"Canada"},800,3578,2737,1897,939,3970,3043,2072,4816,3650]
[{"$f":"VLOOKUP(\"By province\",Translation!$A$1:$C$354, Translation!A1+1, 0)","v":"Répartition selon la province"}]
[{"$f":"VLOOKUP(\"Newfoundland and Labrador\",Translation!$A$1:$C$354, Translation!A1+1, 0)","v":"Terre-Neuve-et-Labrador"},32,146,114,75,40,143,106,74,114,81]
[{"$f":"VLOOKUP(\"Prince Edward Island\",Translation!$A$1:$C$354, Translation!A1+1, 0)","v":"Île-du-Prince-Édouard"},4,20,18,11,10,29,22,18,44,38]
[{"$f":"VLOOKUP(\"Nova Scotia\",Translation!$A$1:$C$354, Translation!A1+1, 0)","v":"Nouvelle-Écosse"},37,179,144,105,67,282,219,152,355,268]
[{"$f":"VLOOKUP(\"New Brunswick\",Translation!$A$1:$C$354, Translation!A1+1, 0)","v":"Nouveau-Brunswick"},67,272,213,144,75,322,248,163,411,317]
[{"$f":"VLOOKUP(\"Quebec\",Translation!$A$1:$C$354, Translation!A1+1, 0)","v":"Québec"},200,1012,772,547,258,1268,963,658,1757,1357]
[{"$f":"VLOOKUP(\"Ontario\",Translation!$A$1:$C$354, Translation!A1+1, 0)","v":"Ontario"},41,222,168,117,53,257,213,152,449,341]
[{"$f":"VLOOKUP(\"Manitoba\",Translation!$A$1:$C$354, Translation!A1+1, 0)","v":"Manitoba"},24,117,89,59,22,125,96,64,133,95]
[{"$f":"VLOOKUP(\"Saskatchewan\",Translation!$A$1:$C$354, Translation!A1+1, 0)","v":"Saskatchewan"},66,305,231,159,71,266,194,124,232,165]
[{"$f":"VLOOKUP(\"Alberta\",Translation!$A$1:$C$354, Translation!A1+1, 0)","v":"Alberta"},298,1180,895,610,307,1089,828,558,1096,810]
[{"$f":"VLOOKUP(\"British Columbia\",Translation!$A$1:$C$354, Translation!A1+1, 0)","v":"Colombie-Britannique"},28,109,78,59,31,178,145,101,206,164]
[{"$f":"VLOOKUP(\"Territories\",Translation!$A$1:$C$354, Translation!A1+1, 0)","v":"Territoires"},3,16,15,11,5,11,9,8,19,14]
[{"$f":"VLOOKUP(\"Due to the re-freshing of data in Q1 2018, some differences  from previously reported figures are present. This is due to cancelation of claims which can occur up to 12 months after the original claim was received.\",Translation!$A$1:$C$354, Translation!A1+1, 0)","v":"Les données ayant été mises à jour au premier trimestre de 2018, il y a quelques écarts par rapport aux chiffres publiés précédemment. Cette différence s’explique par le fait qu’une demande de règlement peut être annulée au plus tard 12 mois après sa réception initiale."}]
[]
[{"$f":"VLOOKUP(\"PORTFOLIO\",Translation!$A$1:$C$354, Translation!A1+1, 0)","v":"ASSURANCE DE PORTEFEUILLE"},null,null,{"$f":"VLOOKUP(\"YTD\",Translation!$A$1:$C$354,Translation!A1+1,0)","v":"Cumul"}]
[null,{"$f":"VLOOKUP(\"Q1 2020\",Translation!$A$1:$C$354, Translation!$A1+1, 0)","v":"T1 2020"},{"$f":"VLOOKUP(\"Q4 2019\",Translation!$A$1:$C$354, Translation!$A1+1, 0)","v":"T4 2019"},{"$f":"VLOOKUP(\"Q3 2019\",Translation!$A$1:$C$354, Translation!$A1+1, 0)","v":"T3 2019"},{"$f":"VLOOKUP(\"Q2 2019\",Translation!$A$1:$C$354, Translation!$A1+1, 0)","v":"T2 2019"},{"$f":"VLOOKUP(\"Q1 2019\",Translation!$A$1:$C$354, Translation!$A1+1, 0)","v":"T1 2019"},{"$f":"VLOOKUP(\"Q4 2018\",Translation!$A$1:$C$354, Translation!A1+1, 0)","v":"T4 2018"},{"$f":"VLOOKUP(\"Q3 2018\",Translation!$A$1:$C$354, Translation!A1+1, 0)","v":"T3 2018"},{"$f":"VLOOKUP(\"Q2 2018\",Translation!$A$1:$C$354, Translation!A1+1, 0)","v":"T2 2018"},{"$f":"VLOOKUP(\"Q4 2017\",Translation!$A$1:$C$354, Translation!A1+1, 0)","v":"T4 2017"},{"$f":"VLOOKUP(\"Q3 2017\",Translation!$A$1:$C$354, Translation!A1+1, 0)","v":"T3 2017"}]
[{"$f":"VLOOKUP(\"Canada\",Translation!$A$1:$C$354, Translation!A1+1, 0)","v":"Canada"},78,341,250,164,81,349,258,178,377,276]
[{"$f":"VLOOKUP(\"By province\",Translation!$A$1:$C$354, Translation!A1+1, 0)","v":"Répartition selon la province"}]
[{"$f":"VLOOKUP(\"Newfoundland and Labrador\",Translation!$A$1:$C$354, Translation!A1+1, 0)","v":"Terre-Neuve-et-Labrador"},1,14,11,6,3,9,7,4,13,10]
[{"$f":"VLOOKUP(\"Prince Edward Island\",Translation!$A$1:$C$354, Translation!A1+1, 0)","v":"Île-du-Prince-Édouard"},1,0,0,0,0,1,1,1,3,3]
[{"$f":"VLOOKUP(\"Nova Scotia\",Translation!$A$1:$C$354, Translation!A1+1, 0)","v":"Nouvelle-Écosse"},6,30,21,16,10,39,33,27,39,29]
[{"$f":"VLOOKUP(\"New Brunswick\",Translation!$A$1:$C$354, Translation!A1+1, 0)","v":"Nouveau-Brunswick"},9,27,21,14,10,32,27,17,50,40]
[{"$f":"VLOOKUP(\"Quebec\",Translation!$A$1:$C$354, Translation!A1+1, 0)","v":"Québec"},11,68,55,32,10,98,69,50,99,74]
[{"$f":"VLOOKUP(\"Ontario\",Translation!$A$1:$C$354, Translation!A1+1, 0)","v":"Ontario"},6,17,16,14,10,28,23,18,58,40]
[{"$f":"VLOOKUP(\"Manitoba\",Translation!$A$1:$C$354, Translation!A1+1, 0)","v":"Manitoba"},4,8,5,3,1,4,3,2,5,3]
[{"$f":"VLOOKUP(\"Saskatchewan\",Translation!$A$1:$C$354, Translation!A1+1, 0)","v":"Saskatchewan"},7,33,22,16,6,24,15,9,15,11]
[{"$f":"VLOOKUP(\"Alberta\",Translation!$A$1:$C$354, Translation!A1+1, 0)","v":"Alberta"},29,134,92,58,28,100,69,44,66,42]
[{"$f":"VLOOKUP(\"British Columbia\",Translation!$A$1:$C$354, Translation!A1+1, 0)","v":"Colombie-Britannique"},4,10,7,5,3,14,11,6,28,23]
[{"$f":"VLOOKUP(\"Territories\",Translation!$A$1:$C$354, Translation!A1+1, 0)","v":"Territoires"},0,0,0,0,0,0,0,0,1,1]
[{"$f":"VLOOKUP(\"Due to the re-freshing of data in Q1 2018, some differences  from previously reported figures are present. This is due to cancelation of claims which can occur up to 12 months after the original claim was received.\",Translation!$A$1:$C$354, Translation!A1+1, 0)","v":"Les données ayant été mises à jour au premier trimestre de 2018, il y a quelques écarts par rapport aux chiffres publiés précédemment. Cette différence s’explique par le fait qu’une demande de règlement peut être annulée au plus tard 12 mois après sa réception initiale."}]

{"sheet":"27","index":28,"n_rows":63,"n_cols":11,"rows_kept":63,"cut":false,"hidden":false,"merged":[[0,5,0,10],[32,3,32,8],[32,0,34,0],[60,0,60,8],[33,1,33,8]]}
[{"$f":"VLOOKUP(\"MULTI-UNIT RESIDENTIAL - LOAN-TO-VALUE\",Translation!$A$1:$C$354, Translation!A1+1, 0)","v":"IMMEUBLES COLLECTIFS RÉSIDENTIELS - RAPPORT PRÊT-VALEUR"},null,null,null,null,{"$f":"VLOOKUP(\"Back to Table of Contents\",Translation!$A$1:$C$354, Translation!A1+1, 0)","v":"Retour à la table des matières"}]
[{"$f":"VLOOKUP(\"Loans insured in period by loan-to-value (LTV) ratio based on original property value (%)\",Translation!$A$1:$C$354, Translation!A1+1, 0)","v":"Prêts hypothécaires assurés au cours de la période selon le rapport prêt-valeur (RPV) établi d’après la valeur initiale de la propriété (%)"}]
[{"$f":"VLOOKUP(\"MULTI-UNIT RESIDENTIAL\",Translation!$A$1:$C$354, Translation!A1+1, 0)","v":"IMMEUBLES COLLECTIFS RÉSIDENTIELS"},{"$f":"VLOOKUP(\"Q1 2020\",Translation!$A$1:$C$354, Translation!$A$1+1, 0)","v":"T1 2020"},{"$f":"VLOOKUP(\"Q4 2019\",Translation!$A$1:$C$354, Translation!$A$1+1, 0)","v":"T4 2019"},{"$f":"VLOOKUP(\"Q3 2019\",Translation!$A$1:$C$354, Translation!$A$1+1, 0)","v":"T3 2019"},{"$f":"VLOOKUP(\"Q2 2019\",Translation!$A$1:$C$354, Translation!$A$1+1, 0)","v":"T2 2019"},{"$f":"VLOOKUP(\"Q1 2019\",Translation!$A$1:$C$354, Translation!$A$1+1, 0)","v":"T1 2019"},{"$f":"VLOOKUP(\"Q4 2018\",Translation!$A$1:$C$354, Translation!$A$1+1, 0)","v":"T4 2018"},{"$f":"VLOOKUP(\"Q3 2018\",Translation!$A$1:$C$354, Translation!$A$1+1, 0)","v":"T3 2018"},{"$f":"VLOOKUP(\"Q2 2018\",Translation!$A$1:$C$354, Translation!$A$1+1, 0)","v":"T2 2018"},{"$f":"VLOOKUP(\"YTD 2020\",Translation!$A$1:$C$354, Translation!$A$1+1, 0)","v":"Cumul 2020"},{"$f":"VLOOKUP(\"YTD 2019\",Translation!$A$1:$C$354, Translation!$A$1+1, 0)","v":"Cumul 2019"}]
[" <= 50 %",{"$f":"SUMIFS(Data!$E:$E,Data!$B:$B,'27'!B$3,Data!$C:$C,'27'!$A$3,Data!$H:$H,'27'!$A4,Data!$F:$F,'27'!$A$2)","v":8.3118463296183656},{"$f":"SUMIFS(Data!$E:$E,Data!$B:$B,'27'!C$3,Data!$C:$C,'27'!$A$3,Data!$H:$H,'27'!$A4,Data!$F:$F,'27'!$A$2)","v":6.7779661688829078},{"$f":"SUMIFS(Data!$E:$E,Data!$B:$B,'27'!D$3,Data!$C:$C,'27'!$A$3,Data!$H:$H,'27'!$A4,Data!$F:$F,'27'!$A$2)","v":1.8280962456083123},{"$f":"SUMIFS(Data!$E:$E,Data!$B:$B,'27'!E$3,Data!$C:$C,'27'!$A$3,Data!$H:$H,'27'!$A4,Data!$F:$F,'27'!$A$2)","v":1.9766533457186564},{"$f":"SUMIFS(Data!$E:$E,Data!$B:$B,'27'!F$3,Data!$C:$C,'27'!$A$3,Data!$H:$H,'27'!$A4,Data!$F:$F,'27'!$A$2)","v":0.36542636404427192},{"$f":"SUMIFS(Data!$E:$E,Data!$B:$B,'27'!G$3,Data!$C:$C,'27'!$A$3,Data!$H:$H,'27'!$A4,Data!$F:$F,'27'!$A$2)","v":1.5221092719496081},{"$f":"SUMIFS(Data!$E:$E,Data!$B:$B,'27'!H$3,Data!$C:$C,'27'!$A$3,Data!$H:$H,'27'!$A4,Data!$F:$F,'27'!$A$2)","v":5.493615669037899},{"$f":"SUMIFS(Data!$E:$E,Data!$B:$B,'27'!I$3,Data!$C:$C,'27'!$A$3,Data!$H:$H,'27'!$A4,Data!$F:$F,'27'!$A$2)","v":2.2803712451461942},{"$f":"SUMIFS(Data!$E:$E,Data!$B:$B,'27'!J$3,Data!$C:$C,'27'!$A$3,Data!$H:$H,'27'!$A4,Data!$F:$F,'27'!$A$2)","v":8.3118463296183656},{"$f":"SUMIFS(Data!$E:$E,Data!$B:$B,'27'!K$3,Data!$C:$C,'27'!$A$3,Data!$H:$H,'27'!$A4,Data!$F:$F,'27'!$A$2)","v":0.36542636404427192}]
[" > 50 % <= 55 %",{"$f":"SUMIFS(Data!$E:$E,Data!$B:$B,'27'!B$3,Data!$C:$C,'27'!$A$3,Data!$H:$H,'27'!$A5,Data!$F:$F,'27'!$A$2)","v":0.35963935275315806},{"$f":"SUMIFS(Data!$E:$E,Data!$B:$B,'27'!C$3,Data!$C:$C,'27'!$A$3,Data!$H:$H,'27'!$A5,Data!$F:$F,'27'!$A$2)","v":0.77747965847447187},{"$f":"SUMIFS(Data!$E:$E,Data!$B:$B,'27'!D$3,Data!$C:$C,'27'!$A$3,Data!$H:$H,'27'!$A5,Data!$F:$F,'27'!$A$2)","v":3.5249018255178446},{"$f":"SUMIFS(Data!$E:$E,Data!$B:$B,'27'!E$3,Data!$C:$C,'27'!$A$3,Data!$H:$H,'27'!$A5,Data!$F:$F,'27'!$A$2)","v":1.351736656865075},{"$f":"SUMIFS(Data!$E:$E,Data!$B:$B,'27'!F$3,Data!$C:$C,'27'!$A$3,Data!$H:$H,'27'!$A5,Data!$F:$F,'27'!$A$2)","v":0.82274635513614869},{"$f":"SUMIFS(Data!$E:$E,Data!$B:$B,'27'!G$3,Data!$C:$C,'27'!$A$3,Data!$H:$H,'27'!$A5,Data!$F:$F,'27'!$A$2)","v":0.94800632104364768},{"$f":"SUMIFS(Data!$E:$E,Data!$B:$B,'27'!H$3,Data!$C:$C,'27'!$A$3,Data!$H:$H,'27'!$A5,Data!$F:$F,'27'!$A$2)","v":1.2395409775136459},{"$f":"SUMIFS(Data!$E:$E,Data!$B:$B,'27'!I$3,Data!$C:$C,'27'!$A$3,Data!$H:$H,'27'!$A5,Data!$F:$F,'27'!$A$2)","v":0.64601772589023221},{"$f":"SUMIFS(Data!$E:$E,Data!$B:$B,'27'!J$3,Data!$C:$C,'27'!$A$3,Data!$H:$H,'27'!$A5,Data!$F:$F,'27'!$A$2)","v":0.35963935275315806},{"$f":"SUMIFS(Data!$E:$E,Data!$B:$B,'27'!K$3,Data!$C:$C,'27'!$A$3,Data!$H:$H,'27'!$A5,Data!$F:$F,'27'!$A$2)","v":0.82274635513614869}]
[" > 55 % <= 60 %",{"$f":"SUMIFS(Data!$E:$E,Data!$B:$B,'27'!B$3,Data!$C:$C,'27'!$A$3,Data!$H:$H,'27'!$A6,Data!$F:$F,'27'!$A$2)","v":1.521311742227166},{"$f":"SUMIFS(Data!$E:$E,Data!$B:$B,'27'!C$3,Data!$C:$C,'27'!$A$3,Data!$H:$H,'27'!$A6,Data!$F:$F,'27'!$A$2)","v":1.8216819069159689},{"$f":"SUMIFS(Data!$E:$E,Data!$B:$B,'27'!D$3,Data!$C:$C,'27'!$A$3,Data!$H:$H,'27'!$A6,Data!$F:$F,'27'!$A$2)","v":1.8438044666139788},{"$f":"SUMIFS(Data!$E:$E,Data!$B:$B,'27'!E$3,Data!$C:$C,'27'!$A$3,Data!$H:$H,'27'!$A6,Data!$F:$F,'27'!$A$2)","v":1.2292085303560056},{"$f":"SUMIFS(Data!$E:$E,Data!$B:$B,'27'!F$3,Data!$C:$C,'27'!$A$3,Data!$H:$H,'27'!$A6,Data!$F:$F,'27'!$A$2)","v":1.7792207737844774},{"$f":"SUMIFS(Data!$E:$E,Data!$B:$B,'27'!G$3,Data!$C:$C,'27'!$A$3,Data!$H:$H,'27'!$A6,Data!$F:$F,'27'!$A$2)","v":4.5916469532953119},{"$f":"SUMIFS(Data!$E:$E,Data!$B:$B,'27'!H$3,Data!$C:$C,'27'!$A$3,Data!$H:$H,'27'!$A6,Data!$F:$F,'27'!$A$2)","v":1.0469295025803258},{"$f":"SUMIFS(Data!$E:$E,Data!$B:$B,'27'!I$3,Data!$C:$C,'27'!$A$3,Data!$H:$H,'27'!$A6,Data!$F:$F,'27'!$A$2)","v":2.2589494471980478},{"$f":"SUMIFS(Data!$E:$E,Data!$B:$B,'27'!J$3,Data!$C:$C,'27'!$A$3,Data!$H:$H,'27'!$A6,Data!$F:$F,'27'!$A$2)","v":1.521311742227166},{"$f":"SUMIFS(Data!$E:$E,Data!$B:$B,'27'!K$3,Data!$C:$C,'27'!$A$3,Data!$H:$H,'27'!$A6,Data!$F:$F,'27'!$A$2)","v":1.7792207737844774}]
[" > 60 % <= 65 %",{"$f":"SUMIFS(Data!$E:$E,Data!$B:$B,'27'!B$3,Data!$C:$C,'27'!$A$3,Data!$H:$H,'27'!$A7,Data!$F:$F,'27'!$A$2)","v":11.38242840930786},{"$f":"SUMIFS(Data!$E:$E,Data!$B:$B,'27'!C$3,Data!$C:$C,'27'!$A$3,Data!$H:$H,'27'!$A7,Data!$F:$F,'27'!$A$2)","v":9.7621600878785255},{"$f":"SUMIFS(Data!$E:$E,Data!$B:$B,'27'!D$3,Data!$C:$C,'27'!$A$3,Data!$H:$H,'27'!$A7,Data!$F:$F,'27'!$A$2)","v":21.836518461267502},{"$f":"SUMIFS(Data!$E:$E,Data!$B:$B,'27'!E$3,Data!$C:$C,'27'!$A$3,Data!$H:$H,'27'!$A7,Data!$F:$F,'27'!$A$2)","v":17.68905047396559},{"$f":"SUMIFS(Data!$E:$E,Data!$B:$B,'27'!F$3,Data!$C:$C,'27'!$A$3,Data!$H:$H,'27'!$A7,Data!$F:$F,'27'!$A$2)","v":29.955232500183339},{"$f":"SUMIFS(Data!$E:$E,Data!$B:$B,'27'!G$3,Data!$C:$C,'27'!$A$3,Data!$H:$H,'27'!$A7,Data!$F:$F,'27'!$A$2)","v":17.053503226315922},{"$f":"SUMIFS(Data!$E:$E,Data!$B:$B,'27'!H$3,Data!$C:$C,'27'!$A$3,Data!$H:$H,'27'!$A7,Data!$F:$F,'27'!$A$2)","v":21.149889889097832},{"$f":"SUMIFS(Data!$E:$E,Data!$B:$B,'27'!I$3,Data!$C:$C,'27'!$A$3,Data!$H:$H,'27'!$A7,Data!$F:$F,'27'!$A$2)","v":19.865502016238626},{"$f":"SUMIFS(Data!$E:$E,Data!$B:$B,'27'!J$3,Data!$C:$C,'27'!$A$3,Data!$H:$H,'27'!$A7,Data!$F:$F,'27'!$A$2)","v":11.38242840930786},{"$f":"SUMIFS(Data!$E:$E,Data!$B:$B,'27'!K$3,Data!$C:$C,'27'!$A$3,Data!$H:$H,'27'!$A7,Data!$F:$F,'27'!$A$2)","v":29.955232500183339}]
[" > 65 % <= 70 %",{"$f":"SUMIFS(Data!$E:$E,Data!$B:$B,'27'!B$3,Data!$C:$C,'27'!$A$3,Data!$H:$H,'27'!$A8,Data!$F:$F,'27'!$A$2)","v":4.8569222450830969},{"$f":"SUMIFS(Data!$E:$E,Data!$B:$B,'27'!C$3,Data!$C:$C,'27'!$A$3,Data!$H:$H,'27'!$A8,Data!$F:$F,'27'!$A$2)","v":6.6176315355338815},{"$f":"SUMIFS(Data!$E:$E,Data!$B:$B,'27'!D$3,Data!$C:$C,'27'!$A$3,Data!$H:$H,'27'!$A8,Data!$F:$F,'27'!$A$2)","v":5.7239962961263364},{"$f":"SUMIFS(Data!$E:$E,Data!$B:$B,'27'!E$3,Data!$C:$C,'27'!$A$3,Data!$H:$H,'27'!$A8,Data!$F:$F,'27'!$A$2)","v":11.200377697630392},{"$f":"SUMIFS(Data!$E:$E,Data!$B:$B,'27'!F$3,Data!$C:$C,'27'!$A$3,Data!$H:$H,'27'!$A8,Data!$F:$F,'27'!$A$2)","v":10.494848792184044},{"$f":"SUMIFS(Data!$E:$E,Data!$B:$B,'27'!G$3,Data!$C:$C,'27'!$A$3,Data!$H:$H,'27'!$A8,Data!$F:$F,'27'!$A$2)","v":5.9878877974485594},{"$f":"SUMIFS(Data!$E:$E,Data!$B:$B,'27'!H$3,Data!$C:$C,'27'!$A$3,Data!$H:$H,'27'!$A8,Data!$F:$F,'27'!$A$2)","v":4.4995555532605591},{"$f":"SUMIFS(Data!$E:$E,Data!$B:$B,'27'!I$3,Data!$C:$C,'27'!$A$3,Data!$H:$H,'27'!$A8,Data!$F:$F,'27'!$A$2)","v":5.934891871400878},{"$f":"SUMIFS(Data!$E:$E,Data!$B:$B,'27'!J$3,Data!$C:$C,'27'!$A$3,Data!$H:$H,'27'!$A8,Data!$F:$F,'27'!$A$2)","v":4.8569222450830969},{"$f":"SUMIFS(Data!$E:$E,Data!$B:$B,'27'!K$3,Data!$C:$C,'27'!$A$3,Data!$H:$H,'27'!$A8,Data!$F:$F,'27'!$A$2)","v":10.494848792184044}]
[" > 70 % <= 75 %",{"$f":"SUMIFS(Data!$E:$E,Data!$B:$B,'27'!B$3,Data!$C:$C,'27'!$A$3,Data!$H:$H,'27'!$A9,Data!$F:$F,'27'!$A$2)","v":24.578863914623184},{"$f":"SUMIFS(Data!$E:$E,Data!$B:$B,'27'!C$3,Data!$C:$C,'27'!$A$3,Data!$H:$H,'27'!$A9,Data!$F:$F,'27'!$A$2)","v":15.777086043327484},{"$f":"SUMIFS(Data!$E:$E,Data!$B:$B,'27'!D$3,Data!$C:$C,'27'!$A$3,Data!$H:$H,'27'!$A9,Data!$F:$F,'27'!$A$2)","v":19.113177401961323},{"$f":"SUMIFS(Data!$E:$E,Data!$B:$B,'27'!E$3,Data!$C:$C,'27'!$A$3,Data!$H:$H,'27'!$A9,Data!$F:$F,'27'!$A$2)","v":22.38385871353632},{"$f":"SUMIFS(Data!$E:$E,Data!$B:$B,'27'!F$3,Data!$C:$C,'27'!$A$3,Data!$H:$H,'27'!$A9,Data!$F:$F,'27'!$A$2)","v":20.601921297821171},{"$f":"SUMIFS(Data!$E:$E,Data!$B:$B,'27'!G$3,Data!$C:$C,'27'!$A$3,Data!$H:$H,'27'!$A9,Data!$F:$F,'27'!$A$2)","v":30.844181619228856},{"$f":"SUMIFS(Data!$E:$E,Data!$B:$B,'27'!H$3,Data!$C:$C,'27'!$A$3,Data!$H:$H,'27'!$A9,Data!$F:$F,'27'!$A$2)","v":29.439696122151425},{"$f":"SUMIFS(Data!$E:$E,Data!$B:$B,'27'!I$3,Data!$C:$C,'27'!$A$3,Data!$H:$H,'27'!$A9,Data!$F:$F,'27'!$A$2)","v":27.89519703718889},{"$f":"SUMIFS(Data!$E:$E,Data!$B:$B,'27'!J$3,Data!$C:$C,'27'!$A$3,Data!$H:$H,'27'!$A9,Data!$F:$F,'27'!$A$2)","v":24.578863914623184},{"$f":"SUMIFS(Data!$E:$E,Data!$B:$B,'27'!K$3,Data!$C:$C,'27'!$A$3,Data!$H:$H,'27'!$A9,Data!$F:$F,'27'!$A$2)","v":20.601921297821171}]
[" > 75 % <= 80 %",{"$f":"SUMIFS(Data!$E:$E,Data!$B:$B,'27'!B$3,Data!$C:$C,'27'!$A$3,Data!$H:$H,'27'!$A10,Data!$F:$F,'27'!$A$2)","v":15.550782076722053},{"$f":"SUMIFS(Data!$E:$E,Data!$B:$B,'27'!C$3,Data!$C:$C,'27'!$A$3,Data!$H:$H,'27'!$A10,Data!$F:$F,'27'!$A$2)","v":7.4153936590728513},{"$f":"SUMIFS(Data!$E:$E,Data!$B:$B,'27'!D$3,Data!$C:$C,'27'!$A$3,Data!$H:$H,'27'!$A10,Data!$F:$F,'27'!$A$2)","v":8.202113350071798},{"$f":"SUMIFS(Data!$E:$E,Data!$B:$B,'27'!E$3,Data!$C:$C,'27'!$A$3,Data!$H:$H,'27'!$A10,Data!$F:$F,'27'!$A$2)","v":8.3833776298092282},{"$f":"SUMIFS(Data!$E:$E,Data!$B:$B,'27'!F$3,Data!$C:$C,'27'!$A$3,Data!$H:$H,'27'!$A10,Data!$F:$F,'27'!$A$2)","v":7.690161701104488},{"$f":"SUMIFS(Data!$E:$E,Data!$B:$B,'27'!G$3,Data!$C:$C,'27'!$A$3,Data!$H:$H,'27'!$A10,Data!$F:$F,'27'!$A$2)","v":5.8059559650111723},{"$f":"SUMIFS(Data!$E:$E,Data!$B:$B,'27'!H$3,Data!$C:$C,'27'!$A$3,Data!$H:$H,'27'!$A10,Data!$F:$F,'27'!$A$2)","v":7.5335973528774547},{"$f":"SUMIFS(Data!$E:$E,Data!$B:$B,'27'!I$3,Data!$C:$C,'27'!$A$3,Data!$H:$H,'27'!$A10,Data!$F:$F,'27'!$A$2)","v":9.9724559700524509},{"$f":"SUMIFS(Data!$E:$E,Data!$B:$B,'27'!J$3,Data!$C:$C,'27'!$A$3,Data!$H:$H,'27'!$A10,Data!$F:$F,'27'!$A$2)","v":15.550782076722053},{"$f":"SUMIFS(Data!$E:$E,Data!$B:$B,'27'!K$3,Data!$C:$C,'27'!$A$3,Data!$H:$H,'27'!$A10,Data!$F:$F,'27'!$A$2)","v":7.690161701104488}]
[" > 80 % <= 85 %",{"$f":"SUMIFS(Data!$E:$E,Data!$B:$B,'27'!B$3,Data!$C:$C,'27'!$A$3,Data!$H:$H,'27'!$A11,Data!$F:$F,'27'!$A$2)","v":25.480453166431296},{"$f":"SUMIFS(Data!$E:$E,Data!$B:$B,'27'!C$3,Data!$C:$C,'27'!$A$3,Data!$H:$H,'27'!$A11,Data!$F:$F,'27'!$A$2)","v":33.245035790376086},{"$f":"SUMIFS(Data!$E:$E,Data!$B:$B,'27'!D$3,Data!$C:$C,'27'!$A$3,Data!$H:$H,'27'!$A11,Data!$F:$F,'27'!$A$2)","v":28.085972801213504},{"$f":"SUMIFS(Data!$E:$E,Data!$B:$B,'27'!E$3,Data!$C:$C,'27'!$A$3,Data!$H:$H,'27'!$A11,Data!$F:$F,'27'!$A$2)","v":30.012038500518848},{"$f":"SUMIFS(Data!$E:$E,Data!$B:$B,'27'!F$3,Data!$C:$C,'27'!$A$3,Data!$H:$H,'27'!$A11,Data!$F:$F,'27'!$A$2)","v":24.818017131218763},{"$f":"SUMIFS(Data!$E:$E,Data!$B:$B,'27'!G$3,Data!$C:$C,'27'!$A$3,Data!$H:$H,'27'!$A11,Data!$F:$F,'27'!$A$2)","v":27.975739797676539},{"$f":"SUMIFS(Data!$E:$E,Data!$B:$B,'27'!H$3,Data!$C:$C,'27'!$A$3,Data!$H:$H,'27'!$A11,Data!$F:$F,'27'!$A$2)","v":21.065282747033013},{"$f":"SUMIFS(Data!$E:$E,Data!$B:$B,'27'!I$3,Data!$C:$C,'27'!$A$3,Data!$H:$H,'27'!$A11,Data!$F:$F,'27'!$A$2)","v":30.62434739282034},{"$f":"SUMIFS(Data!$E:$E,Data!$B:$B,'27'!J$3,Data!$C:$C,'27'!$A$3,Data!$H:$H,'27'!$A11,Data!$F:$F,'27'!$A$2)","v":25.480453166431296},{"$f":"SUMIFS(Data!$E:$E,Data!$B:$B,'27'!K$3,Data!$C:$C,'27'!$A$3,Data!$H:$H,'27'!$A11,Data!$F:$F,'27'!$A$2)","v":24.818017131218763}]
[" > 85 % <= 90 %",{"$f":"SUMIFS(Data!$E:$E,Data!$B:$B,'27'!B$3,Data!$C:$C,'27'!$A$3,Data!$H:$H,'27'!$A12,Data!$F:$F,'27'!$A$2)","v":2.5160199049924499},{"$f":"SUMIFS(Data!$E:$E,Data!$B:$B,'27'!C$3,Data!$C:$C,'27'!$A$3,Data!$H:$H,'27'!$A12,Data!$F:$F,'27'!$A$2)","v":5.451013991111342},{"$f":"SUMIFS(Data!$E:$E,Data!$B:$B,'27'!D$3,Data!$C:$C,'27'!$A$3,Data!$H:$H,'27'!$A12,Data!$F:$F,'27'!$A$2)","v":1.1051491467582453},{"$f":"SUMIFS(Data!$E:$E,Data!$B:$B,'27'!E$3,Data!$C:$C,'27'!$A$3,Data!$H:$H,'27'!$A12,Data!$F:$F,'27'!$A$2)","v":3.4892993427607992},{"$f":"SUMIFS(Data!$E:$E,Data!$B:$B,'27'!F$3,Data!$C:$C,'27'!$A$3,Data!$H:$H,'27'!$A12,Data!$F:$F,'27'!$A$2)","v":0.6721439725321765},{"$f":"SUMIFS(Data!$E:$E,Data!$B:$B,'27'!G$3,Data!$C:$C,'27'!$A$3,Data!$H:$H,'27'!$A12,Data!$F:$F,'27'!$A$2)","v":0},{"$f":"SUMIFS(Data!$E:$E,Data!$B:$B,'27'!H$3,Data!$C:$C,'27'!$A$3,Data!$H:$H,'27'!$A12,Data!$F:$F,'27'!$A$2)","v":4.1602744875842124},{"$f":"SUMIFS(Data!$E:$E,Data!$B:$B,'27'!I$3,Data!$C:$C,'27'!$A$3,Data!$H:$H,'27'!$A12,Data!$F:$F,'27'!$A$2)","v":0},{"$f":"SUMIFS(Data!$E:$E,Data!$B:$B,'27'!J$3,Data!$C:$C,'27'!$A$3,Data!$H:$H,'27'!$A12,Data!$F:$F,'27'!$A$2)","v":2.5160199049924499},{"$f":"SUMIFS(Data!$E:$E,Data!$B:$B,'27'!K$3,Data!$C:$C,'27'!$A$3,Data!$H:$H,'27'!$A12,Data!$F:$F,'27'!$A$2)","v":0.6721439725321765}]
[" > 90 % <= 95 %",{"$f":"SUMIFS(Data!$E:$E,Data!$B:$B,'27'!B$3,Data!$C:$C,'27'!$A$3,Data!$H:$H,'27'!$A13,Data!$F:$F,'27'!$A$2)","v":0.32448064256419945},{"$f":"SUMIFS(Data!$E:$E,Data!$B:$B,'27'!C$3,Data!$C:$C,'27'!$A$3,Data!$H:$H,'27'!$A13,Data!$F:$F,'27'!$A$2)","v":2.7793250303955515},{"$f":"SUMIFS(Data!$E:$E,Data!$B:$B,'27'!D$3,Data!$C:$C,'27'!$A$3,Data!$H:$H,'27'!$A13,Data!$F:$F,'27'!$A$2)","v":4.9351462272607316},{"$f":"SUMIFS(Data!$E:$E,Data!$B:$B,'27'!E$3,Data!$C:$C,'27'!$A$3,Data!$H:$H,'27'!$A13,Data!$F:$F,'27'!$A$2)","v":1.3467109647541644},{"$f":"SUMIFS(Data!$E:$E,Data!$B:$B,'27'!F$3,Data!$C:$C,'27'!$A$3,Data!$H:$H,'27'!$A13,Data!$F:$F,'27'!$A$2)","v":2.3118993602092179},{"$f":"SUMIFS(Data!$E:$E,Data!$B:$B,'27'!G$3,Data!$C:$C,'27'!$A$3,Data!$H:$H,'27'!$A13,Data!$F:$F,'27'!$A$2)","v":3.5356968415252918},{"$f":"SUMIFS(Data!$E:$E,Data!$B:$B,'27'!H$3,Data!$C:$C,'27'!$A$3,Data!$H:$H,'27'!$A13,Data!$F:$F,'27'!$A$2)","v":1.8822902219738995},{"$f":"SUMIFS(Data!$E:$E,Data!$B:$B,'27'!I$3,Data!$C:$C,'27'!$A$3,Data!$H:$H,'27'!$A13,Data!$F:$F,'27'!$A$2)","v":0.52226729406436845},{"$f":"SUMIFS(Data!$E:$E,Data!$B:$B,'27'!J$3,Data!$C:$C,'27'!$A$3,Data!$H:$H,'27'!$A13,Data!$F:$F,'27'!$A$2)","v":0.32448064256419945},{"$f":"SUMIFS(Data!$E:$E,Data!$B:$B,'27'!K$3,Data!$C:$C,'27'!$A$3,Data!$H:$H,'27'!$A13,Data!$F:$F,'27'!$A$2)","v":2.3118993602092179}]
[" > 95 %",{"$f":"SUMIFS(Data!$E:$E,Data!$B:$B,'27'!B$3,Data!$C:$C,'27'!$A$3,Data!$H:$H,'27'!$A14,Data!$F:$F,'27'!$A$2)","v":5.1172522156771683},{"$f":"SUMIFS(Data!$E:$E,Data!$B:$B,'27'!C$3,Data!$C:$C,'27'!$A$3,Data!$H:$H,'27'!$A14,Data!$F:$F,'27'!$A$2)","v":9.5752261280309199},{"$f":"SUMIFS(Data!$E:$E,Data!$B:$B,'27'!D$3,Data!$C:$C,'27'!$A$3,Data!$H:$H,'27'!$A14,Data!$F:$F,'27'!$A$2)","v":3.8011237776004112},{"$f":"SUMIFS(Data!$E:$E,Data!$B:$B,'27'!E$3,Data!$C:$C,'27'!$A$3,Data!$H:$H,'27'!$A14,Data!$F:$F,'27'!$A$2)","v":0.93768814408491596},{"$f":"SUMIFS(Data!$E:$E,Data!$B:$B,'27'!F$3,Data!$C:$C,'27'!$A$3,Data!$H:$H,'27'!$A14,Data!$F:$F,'27'!$A$2)","v":0.48838175178190479},{"$f":"SUMIFS(Data!$E:$E,Data!$B:$B,'27'!G$3,Data!$C:$C,'27'!$A$3,Data!$H:$H,'27'!$A14,Data!$F:$F,'27'!$A$2)","v":1.7352722065050683},{"$f":"SUMIFS(Data!$E:$E,Data!$B:$B,'27'!H$3,Data!$C:$C,'27'!$A$3,Data!$H:$H,'27'!$A14,Data!$F:$F,'27'!$A$2)","v":2.4893274768897289},{"$f":"SUMIFS(Data!$E:$E,Data!$B:$B,'27'!I$3,Data!$C:$C,'27'!$A$3,Data!$H:$H,'27'!$A14,Data!$F:$F,'27'!$A$2)","v":0},{"$f":"SUMIFS(Data!$E:$E,Data!$B:$B,'27'!J$3,Data!$C:$C,'27'!$A$3,Data!$H:$H,'27'!$A14,Data!$F:$F,'27'!$A$2)","v":5.1172522156771683},{"$f":"SUMIFS(Data!$E:$E,Data!$B:$B,'27'!K$3,Data!$C:$C,'27'!$A$3,Data!$H:$H,'27'!$A14,Data!$F:$F,'27'!$A$2)","v":0.48838175178190479}]
[{"$f":"VLOOKUP(\"Average loan-to-value\",Translation!$A$1:$C$354, Translation!A1+1, 0)","v":"Rapport prêt-valeur moyen "},{"$f":"SUMIFS(Data!$E:$E,Data!$B:$B,'27'!B$3,Data!$C:$C,'27'!$A$3,Data!$H:$H,'27'!$A15,Data!$F:$F,'27'!$A$2)","v":75.758913605344674},{"$f":"SUMIFS(Data!$E:$E,Data!$B:$B,'27'!C$3,Data!$C:$C,'27'!$A$3,Data!$D:$D,'27'!$A15,Data!$F:$F,'27'!$A$2)","v":76.902109488647994},{"$f":"SUMIFS(Data!$E:$E,Data!$B:$B,'27'!D$3,Data!$C:$C,'27'!$A$3,Data!$D:$D,'27'!$A15,Data!$F:$F,'27'!$A$2)","v":75.706834310031738},{"$f":"SUMIFS(Data!$E:$E,Data!$B:$B,'27'!E$3,Data!$C:$C,'27'!$A$3,Data!$D:$D,'27'!$A15,Data!$F:$F,'27'!$A$2)","v":75.203570444808307},{"$f":"SUMIFS(Data!$E:$E,Data!$B:$B,'27'!F$3,Data!$C:$C,'27'!$A$3,Data!$D:$D,'27'!$A15,Data!$F:$F,'27'!$A$2)","v":73.68425996802462},{"$f":"SUMIFS(Data!$E:$E,Data!$B:$B,'27'!G$3,Data!$C:$C,'27'!$A$3,Data!$D:$D,'27'!$A15,Data!$F:$F,'27'!$A$2)","v":74.938569495517996},{"$f":"SUMIFS(Data!$E:$E,Data!$B:$B,'27'!H$3,Data!$C:$C,'27'!$A$3,Data!$D:$D,'27'!$A15,Data!$F:$F,'27'!$A$2)","v":73.802692371796283},{"$f":"SUMIFS(Data!$E:$E,Data!$B:$B,'27'!I$3,Data!$C:$C,'27'!$A$3,Data!$D:$D,'27'!$A15,Data!$F:$F,'27'!$A$2)","v":74.271814933838755},{"$f":"SUMIFS(Data!$E:$E,Data!$B:$B,'27'!J$3,Data!$C:$C,'27'!$A$3,Data!$D:$D,'27'!$A15,Data!$F:$F,'27'!$A$2)","v":75.758913605344674},{"$f":"SUMIFS(Data!$E:$E,Data!$B:$B,'27'!K$3,Data!$C:$C,'27'!$A$3,Data!$D:$D,'27'!$A15,Data!$F:$F,'27'!$A$2)","v":73.68425996802462}]
[{"$f":"VLOOKUP(\"Average equity\",Translation!$A$1:$C$354, Translation!A1+1, 0)","v":"Avoir propre foncier moyen "},{"$f":"SUMIFS(Data!$E:$E,Data!$B:$B,'27'!B$3,Data!$C:$C,'27'!$A$3,Data!$H:$H,'27'!$A16,Data!$F:$F,'27'!$A$2)","v":24.241086394655344},{"$f":"SUMIFS(Data!$E:$E,Data!$B:$B,'27'!C$3,Data!$C:$C,'27'!$A$3,Data!$D:$D,'27'!$A16,Data!$F:$F,'27'!$A$2)","v":23.097890511351967},{"$f":"SUMIFS(Data!$E:$E,Data!$B:$B,'27'!D$3,Data!$C:$C,'27'!$A$3,Data!$D:$D,'27'!$A16,Data!$F:$F,'27'!$A$2)","v":24.293165689968223},{"$f":"SUMIFS(Data!$E:$E,Data!$B:$B,'27'!E$3,Data!$C:$C,'27'!$A$3,Data!$D:$D,'27'!$A16,Data!$F:$F,'27'!$A$2)","v":24.796429555191722},{"$f":"SUMIFS(Data!$E:$E,Data!$B:$B,'27'!F$3,Data!$C:$C,'27'!$A$3,Data!$D:$D,'27'!$A16,Data!$F:$F,'27'!$A$2)","v":26.315740031975366},{"$f":"SUMIFS(Data!$E:$E,Data!$B:$B,'27'!G$3,Data!$C:$C,'27'!$A$3,Data!$D:$D,'27'!$A16,Data!$F:$F,'27'!$A$2)","v":25.061430504482004},{"$f":"SUMIFS(Data!$E:$E,Data!$B:$B,'27'!H$3,Data!$C:$C,'27'!$A$3,Data!$D:$D,'27'!$A16,Data!$F:$F,'27'!$A$2)","v":26.197307628203717},{"$f":"SUMIFS(Data!$E:$E,Data!$B:$B,'27'!I$3,Data!$C:$C,'27'!$A$3,Data!$D:$D,'27'!$A16,Data!$F:$F,'27'!$A$2)","v":25.728185066161256},{"$f":"SUMIFS(Data!$E:$E,Data!$B:$B,'27'!J$3,Data!$C:$C,'27'!$A$3,Data!$D:$D,'27'!$A16,Data!$F:$F,'27'!$A$2)","v":24.241086394655344},{"$f":"SUMIFS(Data!$E:$E,Data!$B:$B,'27'!K$3,Data!$C:$C,'27'!$A$3,Data!$D:$D,'27'!$A16,Data!$F:$F,'27'!$A$2)","v":26.315740031975366}]
[{"$f":"VLOOKUP(\"Average equity by province\",Translation!$A$1:$C$354, Translation!A1+1, 0)","v":"Avoir propre foncier moyen selon la province"}]
[{"$f":"VLOOKUP(\"Newfoundland and Labrador\",Translation!$A$1:$C$354, Translation!A1+1, 0)","v":"Terre-Neuve-et-Labrador"},{"$f":"IF((SUMIFS(Data!$E:$E,Data!$B:$B,'27'!B$3,Data!$C:$C,'27'!$A$3,Data!$D:$D,'27'!$A18,Data!$F:$F,'27'!$A$17))=0,\"-\",SUMIFS(Data!$E:$E,Data!$B:$B,'27'!B$3,Data!$C:$C,'27'!$A$3,Data!$D:$D,'27'!$A18,Data!$F:$F,'27'!$A$17))","v":14.462346138265683},{"$f":"IF((SUMIFS(Data!$E:$E,Data!$B:$B,'27'!C$3,Data!$C:$C,'27'!$A$3,Data!$D:$D,'27'!$A18,Data!$F:$F,'27'!$A$17))=0,\"-\",SUMIFS(Data!$E:$E,Data!$B:$B,'27'!C$3,Data!$C:$C,'27'!$A$3,Data!$D:$D,'27'!$A18,Data!$F:$F,'27'!$A$17))","v":35},{"$f":"IF((SUMIFS(Data!$E:$E,Data!$B:$B,'27'!D$3,Data!$C:$C,'27'!$A$3,Data!$D:$D,'27'!$A18,Data!$F:$F,'27'!$A$17))=0,\"-\",SUMIFS(Data!$E:$E,Data!$B:$B,'27'!D$3,Data!$C:$C,'27'!$A$3,Data!$D:$D,'27'!$A18,Data!$F:$F,'27'!$A$17))","v":"-"},{"$f":"IF((SUMIFS(Data!$E:$E,Data!$B:$B,'27'!E$3,Data!$C:$C,'27'!$A$3,Data!$D:$D,'27'!$A18,Data!$F:$F,'27'!$A$17))=0,\"-\",SUMIFS(Data!$E:$E,Data!$B:$B,'27'!E$3,Data!$C:$C,'27'!$A$3,Data!$D:$D,'27'!$A18,Data!$F:$F,'27'!$A$17))","v":14.765788874522912},{"$f":"IF((SUMIFS(Data!$E:$E,Data!$B:$B,'27'!F$3,Data!$C:$C,'27'!$A$3,Data!$D:$D,'27'!$A18,Data!$F:$F,'27'!$A$17))=0,\"-\",SUMIFS(Data!$E:$E,Data!$B:$B,'27'!F$3,Data!$C:$C,'27'!$A$3,Data!$D:$D,'27'!$A18,Data!$F:$F,'27'!$A$17))","v":"-"},{"$f":"IF((SUMIFS(Data!$E:$E,Data!$B:$B,'27'!G$3,Data!$C:$C,'27'!$A$3,Data!$D:$D,'27'!$A18,Data!$F:$F,'27'!$A$17))=0,\"-\",SUMIFS(Data!$E:$E,Data!$B:$B,'27'!G$3,Data!$C:$C,'27'!$A$3,Data!$D:$D,'27'!$A18,Data!$F:$F,'27'!$A$17))","v":18.860000000000017},{"$f":"IF((SUMIFS(Data!$E:$E,Data!$B:$B,'27'!H$3,Data!$C:$C,'27'!$A$3,Data!$D:$D,'27'!$A18,Data!$F:$F,'27'!$A$17))=0,\"-\",SUMIFS(Data!$E:$E,Data!$B:$B,'27'!H$3,Data!$C:$C,'27'!$A$3,Data!$D:$D,'27'!$A18,Data!$F:$F,'27'!$A$17))","v":24.307183100398674},{"$f":"IF((SUMIFS(Data!$E:$E,Data!$B:$B,'27'!I$3,Data!$C:$C,'27'!$A$3,Data!$D:$D,'27'!$A18,Data!$F:$F,'27'!$A$17))=0,\"-\",SUMIFS(Data!$E:$E,Data!$B:$B,'27'!I$3,Data!$C:$C,'27'!$A$3,Data!$D:$D,'27'!$A18,Data!$F:$F,'27'!$A$17))","v":"-"},{"$f":"IF((SUMIFS(Data!$E:$E,Data!$B:$B,'27'!J$3,Data!$C:$C,'27'!$A$3,Data!$D:$D,'27'!$A18,Data!$F:$F,'27'!$A$17))=0,\"-\",SUMIFS(Data!$E:$E,Data!$B:$B,'27'!J$3,Data!$C:$C,'27'!$A$3,Data!$D:$D,'27'!$A18,Data!$F:$F,'27'!$A$17))","v":14.462346138265683},{"$f":"IF((SUMIFS(Data!$E:$E,Data!$B:$B,'27'!K$3,Data!$C:$C,'27'!$A$3,Data!$D:$D,'27'!$A18,Data!$F:$F,'27'!$A$17))=0,\"-\",SUMIFS(Data!$E:$E,Data!$B:$B,'27'!K$3,Data!$C:$C,'27'!$A$3,Data!$D:$D,'27'!$A18,Data!$F:$F,'27'!$A$17))","v":"-"}]
[{"$f":"VLOOKUP(\"Prince Edward Island\",Translation!$A$1:$C$354, Translation!A1+1, 0)","v":"Île-du-Prince-Édouard"},{"$f":"IF((SUMIFS(Data!$E:$E,Data!$B:$B,'27'!B$3,Data!$C:$C,'27'!$A$3,Data!$D:$D,'27'!$A19,Data!$F:$F,'27'!$A$17))=0,\"-\",SUMIFS(Data!$E:$E,Data!$B:$B,'27'!B$3,Data!$C:$C,'27'!$A$3,Data!$D:$D,'27'!$A19,Data!$F:$F,'27'!$A$17))","v":18.89},{"$f":"IF((SUMIFS(Data!$E:$E,Data!$B:$B,'27'!C$3,Data!$C:$C,'27'!$A$3,Data!$D:$D,'27'!$A19,Data!$F:$F,'27'!$A$17))=0,\"-\",SUMIFS(Data!$E:$E,Data!$B:$B,'27'!C$3,Data!$C:$C,'27'!$A$3,Data!$D:$D,'27'!$A19,Data!$F:$F,'27'!$A$17))","v":7.2521676972340723},{"$f":"IF((SUMIFS(Data!$E:$E,Data!$B:$B,'27'!D$3,Data!$C:$C,'27'!$A$3,Data!$D:$D,'27'!$A19,Data!$F:$F,'27'!$A$17))=0,\"-\",SUMIFS(Data!$E:$E,Data!$B:$B,'27'!D$3,Data!$C:$C,'27'!$A$3,Data!$D:$D,'27'!$A19,Data!$F:$F,'27'!$A$17))","v":15},{"$f":"IF((SUMIFS(Data!$E:$E,Data!$B:$B,'27'!E$3,Data!$C:$C,'27'!$A$3,Data!$D:$D,'27'!$A19,Data!$F:$F,'27'!$A$17))=0,\"-\",SUMIFS(Data!$E:$E,Data!$B:$B,'27'!E$3,Data!$C:$C,'27'!$A$3,Data!$D:$D,'27'!$A19,Data!$F:$F,'27'!$A$17))","v":37.738543041770448},{"$f":"IF((SUMIFS(Data!$E:$E,Data!$B:$B,'27'!F$3,Data!$C:$C,'27'!$A$3,Data!$D:$D,'27'!$A19,Data!$F:$F,'27'!$A$17))=0,\"-\",SUMIFS(Data!$E:$E,Data!$B:$B,'27'!F$3,Data!$C:$C,'27'!$A$3,Data!$D:$D,'27'!$A19,Data!$F:$F,'27'!$A$17))","v":26.700377645395751},{"$f":"IF((SUMIFS(Data!$E:$E,Data!$B:$B,'27'!G$3,Data!$C:$C,'27'!$A$3,Data!$D:$D,'27'!$A19,Data!$F:$F,'27'!$A$17))=0,\"-\",SUMIFS(Data!$E:$E,Data!$B:$B,'27'!G$3,Data!$C:$C,'27'!$A$3,Data!$D:$D,'27'!$A19,Data!$F:$F,'27'!$A$17))","v":25.53},{"$f":"IF((SUMIFS(Data!$E:$E,Data!$B:$B,'27'!H$3,Data!$C:$C,'27'!$A$3,Data!$D:$D,'27'!$A19,Data!$F:$F,'27'!$A$17))=0,\"-\",SUMIFS(Data!$E:$E,Data!$B:$B,'27'!H$3,Data!$C:$C,'27'!$A$3,Data!$D:$D,'27'!$A19,Data!$F:$F,'27'!$A$17))","v":23.110367520063765},{"$f":"IF((SUMIFS(Data!$E:$E,Data!$B:$B,'27'!I$3,Data!$C:$C,'27'!$A$3,Data!$D:$D,'27'!$A19,Data!$F:$F,'27'!$A$17))=0,\"-\",SUMIFS(Data!$E:$E,Data!$B:$B,'27'!I$3,Data!$C:$C,'27'!$A$3,Data!$D:$D,'27'!$A19,Data!$F:$F,'27'!$A$17))","v":22.260335448097614},{"$f":"IF((SUMIFS(Data!$E:$E,Data!$B:$B,'27'!J$3,Data!$C:$C,'27'!$A$3,Data!$D:$D,'27'!$A19,Data!$F:$F,'27'!$A$17))=0,\"-\",SUMIFS(Data!$E:$E,Data!$B:$B,'27'!J$3,Data!$C:$C,'27'!$A$3,Data!$D:$D,'27'!$A19,Data!$F:$F,'27'!$A$17))","v":18.89},{"$f":"IF((SUMIFS(Data!$E:$E,Data!$B:$B,'27'!K$3,Data!$C:$C,'27'!$A$3,Data!$D:$D,'27'!$A19,Data!$F:$F,'27'!$A$17))=0,\"-\",SUMIFS(Data!$E:$E,Data!$B:$B,'27'!K$3,Data!$C:$C,'27'!$A$3,Data!$D:$D,'27'!$A19,Data!$F:$F,'27'!$A$17))","v":26.700377645395751}]
[{"$f":"VLOOKUP(\"Nova Scotia\",Translation!$A$1:$C$354, Translation!A1+1, 0)","v":"Nouvelle-Écosse"},{"$f":"IF((SUMIFS(Data!$E:$E,Data!$B:$B,'27'!B$3,Data!$C:$C,'27'!$A$3,Data!$D:$D,'27'!$A20,Data!$F:$F,'27'!$A$17))=0,\"-\",SUMIFS(Data!$E:$E,Data!$B:$B,'27'!B$3,Data!$C:$C,'27'!$A$3,Data!$D:$D,'27'!$A20,Data!$F:$F,'27'!$A$17))","v":16.931913481236901},{"$f":"IF((SUMIFS(Data!$E:$E,Data!$B:$B,'27'!C$3,Data!$C:$C,'27'!$A$3,Data!$D:$D,'27'!$A20,Data!$F:$F,'27'!$A$17))=0,\"-\",SUMIFS(Data!$E:$E,Data!$B:$B,'27'!C$3,Data!$C:$C,'27'!$A$3,Data!$D:$D,'27'!$A20,Data!$F:$F,'27'!$A$17))","v":21.977660668229522},{"$f":"IF((SUMIFS(Data!$E:$E,Data!$B:$B,'27'!D$3,Data!$C:$C,'27'!$A$3,Data!$D:$D,'27'!$A20,Data!$F:$F,'27'!$A$17))=0,\"-\",SUMIFS(Data!$E:$E,Data!$B:$B,'27'!D$3,Data!$C:$C,'27'!$A$3,Data!$D:$D,'27'!$A20,Data!$F:$F,'27'!$A$17))","v":11.055312084622072},{"$f":"IF((SUMIFS(Data!$E:$E,Data!$B:$B,'27'!E$3,Data!$C:$C,'27'!$A$3,Data!$D:$D,'27'!$A20,Data!$F:$F,'27'!$A$17))=0,\"-\",SUMIFS(Data!$E:$E,Data!$B:$B,'27'!E$3,Data!$C:$C,'27'!$A$3,Data!$D:$D,'27'!$A20,Data!$F:$F,'27'!$A$17))","v":23.343145254670581},{"$f":"IF((SUMIFS(Data!$E:$E,Data!$B:$B,'27'!F$3,Data!$C:$C,'27'!$A$3,Data!$D:$D,'27'!$A20,Data!$F:$F,'27'!$A$17))=0,\"-\",SUMIFS(Data!$E:$E,Data!$B:$B,'27'!F$3,Data!$C:$C,'27'!$A$3,Data!$D:$D,'27'!$A20,Data!$F:$F,'27'!$A$17))","v":16.651864641708315},{"$f":"IF((SUMIFS(Data!$E:$E,Data!$B:$B,'27'!G$3,Data!$C:$C,'27'!$A$3,Data!$D:$D,'27'!$A20,Data!$F:$F,'27'!$A$17))=0,\"-\",SUMIFS(Data!$E:$E,Data!$B:$B,'27'!G$3,Data!$C:$C,'27'!$A$3,Data!$D:$D,'27'!$A20,Data!$F:$F,'27'!$A$17))","v":16.091577149633597},{"$f":"IF((SUMIFS(Data!$E:$E,Data!$B:$B,'27'!H$3,Data!$C:$C,'27'!$A$3,Data!$D:$D,'27'!$A20,Data!$F:$F,'27'!$A$17))=0,\"-\",SUMIFS(Data!$E:$E,Data!$B:$B,'27'!H$3,Data!$C:$C,'27'!$A$3,Data!$D:$D,'27'!$A20,Data!$F:$F,'27'!$A$17))","v":17.752863281741394},{"$f":"IF((SUMIFS(Data!$E:$E,Data!$B:$B,'27'!I$3,Data!$C:$C,'27'!$A$3,Data!$D:$D,'27'!$A20,Data!$F:$F,'27'!$A$17))=0,\"-\",SUMIFS(Data!$E:$E,Data!$B:$B,'27'!I$3,Data!$C:$C,'27'!$A$3,Data!$D:$D,'27'!$A20,Data!$F:$F,'27'!$A$17))","v":23.96284828941528},{"$f":"IF((SUMIFS(Data!$E:$E,Data!$B:$B,'27'!J$3,Data!$C:$C,'27'!$A$3,Data!$D:$D,'27'!$A20,Data!$F:$F,'27'!$A$17))=0,\"-\",SUMIFS(Data!$E:$E,Data!$B:$B,'27'!J$3,Data!$C:$C,'27'!$A$3,Data!$D:$D,'27'!$A20,Data!$F:$F,'27'!$A$17))","v":16.931913481236901},{"$f":"IF((SUMIFS(Data!$E:$E,Data!$B:$B,'27'!K$3,Data!$C:$C,'27'!$A$3,Data!$D:$D,'27'!$A20,Data!$F:$F,'27'!$A$17))=0,\"-\",SUMIFS(Data!$E:$E,Data!$B:$B,'27'!K$3,Data!$C:$C,'27'!$A$3,Data!$D:$D,'27'!$A20,Data!$F:$F,'27'!$A$17))","v":16.651864641708315}]
[{"$f":"VLOOKUP(\"New Brunswick\",Translation!$A$1:$C$354, Translation!A1+1, 0)","v":"Nouveau-Brunswick"},{"$f":"IF((SUMIFS(Data!$E:$E,Data!$B:$B,'27'!B$3,Data!$C:$C,'27'!$A$3,Data!$D:$D,'27'!$A21,Data!$F:$F,'27'!$A$17))=0,\"-\",SUMIFS(Data!$E:$E,Data!$B:$B,'27'!B$3,Data!$C:$C,'27'!$A$3,Data!$D:$D,'27'!$A21,Data!$F:$F,'27'!$A$17))","v":5.0747005122174889},{"$f":"IF((SUMIFS(Data!$E:$E,Data!$B:$B,'27'!C$3,Data!$C:$C,'27'!$A$3,Data!$D:$D,'27'!$A21,Data!$F:$F,'27'!$A$17))=0,\"-\",SUMIFS(Data!$E:$E,Data!$B:$B,'27'!C$3,Data!$C:$C,'27'!$A$3,Data!$D:$D,'27'!$A21,Data!$F:$F,'27'!$A$17))","v":11.345035957901317},{"$f":"IF((SUMIFS(Data!$E:$E,Data!$B:$B,'27'!D$3,Data!$C:$C,'27'!$A$3,Data!$D:$D,'27'!$A21,Data!$F:$F,'27'!$A$17))=0,\"-\",SUMIFS(Data!$E:$E,Data!$B:$B,'27'!D$3,Data!$C:$C,'27'!$A$3,Data!$D:$D,'27'!$A21,Data!$F:$F,'27'!$A$17))","v":16.846093281211797},{"$f":"IF((SUMIFS(Data!$E:$E,Data!$B:$B,'27'!E$3,Data!$C:$C,'27'!$A$3,Data!$D:$D,'27'!$A21,Data!$F:$F,'27'!$A$17))=0,\"-\",SUMIFS(Data!$E:$E,Data!$B:$B,'27'!E$3,Data!$C:$C,'27'!$A$3,Data!$D:$D,'27'!$A21,Data!$F:$F,'27'!$A$17))","v":17.192188942065645},{"$f":"IF((SUMIFS(Data!$E:$E,Data!$B:$B,'27'!F$3,Data!$C:$C,'27'!$A$3,Data!$D:$D,'27'!$A21,Data!$F:$F,'27'!$A$17))=0,\"-\",SUMIFS(Data!$E:$E,Data!$B:$B,'27'!F$3,Data!$C:$C,'27'!$A$3,Data!$D:$D,'27'!$A21,Data!$F:$F,'27'!$A$17))","v":23.640033621472558},{"$f":"IF((SUMIFS(Data!$E:$E,Data!$B:$B,'27'!G$3,Data!$C:$C,'27'!$A$3,Data!$D:$D,'27'!$A21,Data!$F:$F,'27'!$A$17))=0,\"-\",SUMIFS(Data!$E:$E,Data!$B:$B,'27'!G$3,Data!$C:$C,'27'!$A$3,Data!$D:$D,'27'!$A21,Data!$F:$F,'27'!$A$17))","v":18.104210973066483},{"$f":"IF((SUMIFS(Data!$E:$E,Data!$B:$B,'27'!H$3,Data!$C:$C,'27'!$A$3,Data!$D:$D,'27'!$A21,Data!$F:$F,'27'!$A$17))=0,\"-\",SUMIFS(Data!$E:$E,Data!$B:$B,'27'!H$3,Data!$C:$C,'27'!$A$3,Data!$D:$D,'27'!$A21,Data!$F:$F,'27'!$A$17))","v":30.70048764567327},{"$f":"IF((SUMIFS(Data!$E:$E,Data!$B:$B,'27'!I$3,Data!$C:$C,'27'!$A$3,Data!$D:$D,'27'!$A21,Data!$F:$F,'27'!$A$17))=0,\"-\",SUMIFS(Data!$E:$E,Data!$B:$B,'27'!I$3,Data!$C:$C,'27'!$A$3,Data!$D:$D,'27'!$A21,Data!$F:$F,'27'!$A$17))","v":25.228798595178944},{"$f":"IF((SUMIFS(Data!$E:$E,Data!$B:$B,'27'!J$3,Data!$C:$C,'27'!$A$3,Data!$D:$D,'27'!$A21,Data!$F:$F,'27'!$A$17))=0,\"-\",SUMIFS(Data!$E:$E,Data!$B:$B,'27'!J$3,Data!$C:$C,'27'!$A$3,Data!$D:$D,'27'!$A21,Data!$F:$F,'27'!$A$17))","v":5.0747005122174889},{"$f":"IF((SUMIFS(Data!$E:$E,Data!$B:$B,'27'!K$3,Data!$C:$C,'27'!$A$3,Data!$D:$D,'27'!$A21,Data!$F:$F,'27'!$A$17))=0,\"-\",SUMIFS(Data!$E:$E,Data!$B:$B,'27'!K$3,Data!$C:$C,'27'!$A$3,Data!$D:$D,'27'!$A21,Data!$F:$F,'27'!$A$17))","v":23.640033621472558}]
[{"$f":"VLOOKUP(\"Quebec\",Translation!$A$1:$C$354, Translation!A1+1, 0)","v":"Québec"},{"$f":"IF((SUMIFS(Data!$E:$E,Data!$B:$B,'27'!B$3,Data!$C:$C,'27'!$A$3,Data!$D:$D,'27'!$A22,Data!$F:$F,'27'!$A$17))=0,\"-\",SUMIFS(Data!$E:$E,Data!$B:$B,'27'!B$3,Data!$C:$C,'27'!$A$3,Data!$D:$D,'27'!$A22,Data!$F:$F,'27'!$A$17))","v":22.166802606355827},{"$f":"IF((SUMIFS(Data!$E:$E,Data!$B:$B,'27'!C$3,Data!$C:$C,'27'!$A$3,Data!$D:$D,'27'!$A22,Data!$F:$F,'27'!$A$17))=0,\"-\",SUMIFS(Data!$E:$E,Data!$B:$B,'27'!C$3,Data!$C:$C,'27'!$A$3,Data!$D:$D,'27'!$A22,Data!$F:$F,'27'!$A$17))","v":17.444447742386458},{"$f":"IF((SUMIFS(Data!$E:$E,Data!$B:$B,'27'!D$3,Data!$C:$C,'27'!$A$3,Data!$D:$D,'27'!$A22,Data!$F:$F,'27'!$A$17))=0,\"-\",SUMIFS(Data!$E:$E,Data!$B:$B,'27'!D$3,Data!$C:$C,'27'!$A$3,Data!$D:$D,'27'!$A22,Data!$F:$F,'27'!$A$17))","v":21.6901337620302},{"$f":"IF((SUMIFS(Data!$E:$E,Data!$B:$B,'27'!E$3,Data!$C:$C,'27'!$A$3,Data!$D:$D,'27'!$A22,Data!$F:$F,'27'!$A$17))=0,\"-\",SUMIFS(Data!$E:$E,Data!$B:$B,'27'!E$3,Data!$C:$C,'27'!$A$3,Data!$D:$D,'27'!$A22,Data!$F:$F,'27'!$A$17))","v":23.360239441695896},{"$f":"IF((SUMIFS(Data!$E:$E,Data!$B:$B,'27'!F$3,Data!$C:$C,'27'!$A$3,Data!$D:$D,'27'!$A22,Data!$F:$F,'27'!$A$17))=0,\"-\",SUMIFS(Data!$E:$E,Data!$B:$B,'27'!F$3,Data!$C:$C,'27'!$A$3,Data!$D:$D,'27'!$A22,Data!$F:$F,'27'!$A$17))","v":21.173474509143311},{"$f":"IF((SUMIFS(Data!$E:$E,Data!$B:$B,'27'!G$3,Data!$C:$C,'27'!$A$3,Data!$D:$D,'27'!$A22,Data!$F:$F,'27'!$A$17))=0,\"-\",SUMIFS(Data!$E:$E,Data!$B:$B,'27'!G$3,Data!$C:$C,'27'!$A$3,Data!$D:$D,'27'!$A22,Data!$F:$F,'27'!$A$17))","v":21.261523411907906},{"$f":"IF((SUMIFS(Data!$E:$E,Data!$B:$B,'27'!H$3,Data!$C:$C,'27'!$A$3,Data!$D:$D,'27'!$A22,Data!$F:$F,'27'!$A$17))=0,\"-\",SUMIFS(Data!$E:$E,Data!$B:$B,'27'!H$3,Data!$C:$C,'27'!$A$3,Data!$D:$D,'27'!$A22,Data!$F:$F,'27'!$A$17))","v":21.877214286040836},{"$f":"IF((SUMIFS(Data!$E:$E,Data!$B:$B,'27'!I$3,Data!$C:$C,'27'!$A$3,Data!$D:$D,'27'!$A22,Data!$F:$F,'27'!$A$17))=0,\"-\",SUMIFS(Data!$E:$E,Data!$B:$B,'27'!I$3,Data!$C:$C,'27'!$A$3,Data!$D:$D,'27'!$A22,Data!$F:$F,'27'!$A$17))","v":20.930449181641336},{"$f":"IF((SUMIFS(Data!$E:$E,Data!$B:$B,'27'!J$3,Data!$C:$C,'27'!$A$3,Data!$D:$D,'27'!$A22,Data!$F:$F,'27'!$A$17))=0,\"-\",SUMIFS(Data!$E:$E,Data!$B:$B,'27'!J$3,Data!$C:$C,'27'!$A$3,Data!$D:$D,'27'!$A22,Data!$F:$F,'27'!$A$17))","v":22.166802606355827},{"$f":"IF((SUMIFS(Data!$E:$E,Data!$B:$B,'27'!K$3,Data!$C:$C,'27'!$A$3,Data!$D:$D,'27'!$A22,Data!$F:$F,'27'!$A$17))=0,\"-\",SUMIFS(Data!$E:$E,Data!$B:$B,'27'!K$3,Data!$C:$C,'27'!$A$3,Data!$D:$D,'27'!$A22,Data!$F:$F,'27'!$A$17))","v":21.173474509143311}]
[{"$f":"VLOOKUP(\"Ontario\",Translation!$A$1:$C$354, Translation!A1+1, 0)","v":"Ontario"},{"$f":"IF((SUMIFS(Data!$E:$E,Data!$B:$B,'27'!B$3,Data!$C:$C,'27'!$A$3,Data!$D:$D,'27'!$A23,Data!$F:$F,'27'!$A$17))=0,\"-\",SUMIFS(Data!$E:$E,Data!$B:$B,'27'!B$3,Data!$C:$C,'27'!$A$3,Data!$D:$D,'27'!$A23,Data!$F:$F,'27'!$A$17))","v":26.881297802027007},{"$f":"IF((SUMIFS(Data!$E:$E,Data!$B:$B,'27'!C$3,Data!$C:$C,'27'!$A$3,Data!$D:$D,'27'!$A23,Data!$F:$F,'27'!$A$17))=0,\"-\",SUMIFS(Data!$E:$E,Data!$B:$B,'27'!C$3,Data!$C:$C,'27'!$A$3,Data!$D:$D,'27'!$A23,Data!$F:$F,'27'!$A$17))","v":25.515799344343911},{"$f":"IF((SUMIFS(Data!$E:$E,Data!$B:$B,'27'!D$3,Data!$C:$C,'27'!$A$3,Data!$D:$D,'27'!$A23,Data!$F:$F,'27'!$A$17))=0,\"-\",SUMIFS(Data!$E:$E,Data!$B:$B,'27'!D$3,Data!$C:$C,'27'!$A$3,Data!$D:$D,'27'!$A23,Data!$F:$F,'27'!$A$17))","v":27.713241180743321},{"$f":"IF((SUMIFS(Data!$E:$E,Data!$B:$B,'27'!E$3,Data!$C:$C,'27'!$A$3,Data!$D:$D,'27'!$A23,Data!$F:$F,'27'!$A$17))=0,\"-\",SUMIFS(Data!$E:$E,Data!$B:$B,'27'!E$3,Data!$C:$C,'27'!$A$3,Data!$D:$D,'27'!$A23,Data!$F:$F,'27'!$A$17))","v":29.357239404826711},{"$f":"IF((SUMIFS(Data!$E:$E,Data!$B:$B,'27'!F$3,Data!$C:$C,'27'!$A$3,Data!$D:$D,'27'!$A23,Data!$F:$F,'27'!$A$17))=0,\"-\",SUMIFS(Data!$E:$E,Data!$B:$B,'27'!F$3,Data!$C:$C,'27'!$A$3,Data!$D:$D,'27'!$A23,Data!$F:$F,'27'!$A$17))","v":27.966126617167351},{"$f":"IF((SUMIFS(Data!$E:$E,Data!$B:$B,'27'!G$3,Data!$C:$C,'27'!$A$3,Data!$D:$D,'27'!$A23,Data!$F:$F,'27'!$A$17))=0,\"-\",SUMIFS(Data!$E:$E,Data!$B:$B,'27'!G$3,Data!$C:$C,'27'!$A$3,Data!$D:$D,'27'!$A23,Data!$F:$F,'27'!$A$17))","v":30.482103828271207},{"$f":"IF((SUMIFS(Data!$E:$E,Data!$B:$B,'27'!H$3,Data!$C:$C,'27'!$A$3,Data!$D:$D,'27'!$A23,Data!$F:$F,'27'!$A$17))=0,\"-\",SUMIFS(Data!$E:$E,Data!$B:$B,'27'!H$3,Data!$C:$C,'27'!$A$3,Data!$D:$D,'27'!$A23,Data!$F:$F,'27'!$A$17))","v":30.279332795057449},{"$f":"IF((SUMIFS(Data!$E:$E,Data!$B:$B,'27'!I$3,Data!$C:$C,'27'!$A$3,Data!$D:$D,'27'!$A23,Data!$F:$F,'27'!$A$17))=0,\"-\",SUMIFS(Data!$E:$E,Data!$B:$B,'27'!I$3,Data!$C:$C,'27'!$A$3,Data!$D:$D,'27'!$A23,Data!$F:$F,'27'!$A$17))","v":28.942809003780567},{"$f":"IF((SUMIFS(Data!$E:$E,Data!$B:$B,'27'!J$3,Data!$C:$C,'27'!$A$3,Data!$D:$D,'27'!$A23,Data!$F:$F,'27'!$A$17))=0,\"-\",SUMIFS(Data!$E:$E,Data!$B:$B,'27'!J$3,Data!$C:$C,'27'!$A$3,Data!$D:$D,'27'!$A23,Data!$F:$F,'27'!$A$17))","v":26.881297802027007},{"$f":"IF((SUMIFS(Data!$E:$E,Data!$B:$B,'27'!K$3,Data!$C:$C,'27'!$A$3,Data!$D:$D,'27'!$A23,Data!$F:$F,'27'!$A$17))=0,\"-\",SUMIFS(Data!$E:$E,Data!$B:$B,'27'!K$3,Data!$C:$C,'27'!$A$3,Data!$D:$D,'27'!$A23,Data!$F:$F,'27'!$A$17))","v":27.966126617167351}]
[{"$f":"VLOOKUP(\"Manitoba\",Translation!$A$1:$C$354, Translation!A1+1, 0)","v":"Manitoba"},{"$f":"IF((SUMIFS(Data!$E:$E,Data!$B:$B,'27'!B$3,Data!$C:$C,'27'!$A$3,Data!$D:$D,'27'!$A24,Data!$F:$F,'27'!$A$17))=0,\"-\",SUMIFS(Data!$E:$E,Data!$B:$B,'27'!B$3,Data!$C:$C,'27'!$A$3,Data!$D:$D,'27'!$A24,Data!$F:$F,'27'!$A$17))","v":18.638891434501414},{"$f":"IF((SUMIFS(Data!$E:$E,Data!$B:$B,'27'!C$3,Data!$C:$C,'27'!$A$3,Data!$D:$D,'27'!$A24,Data!$F:$F,'27'!$A$17))=0,\"-\",SUMIFS(Data!$E:$E,Data!$B:$B,'27'!C$3,Data!$C:$C,'27'!$A$3,Data!$D:$D,'27'!$A24,Data!$F:$F,'27'!$A$17))","v":21.706318771128934},{"$f":"IF((SUMIFS(Data!$E:$E,Data!$B:$B,'27'!D$3,Data!$C:$C,'27'!$A$3,Data!$D:$D,'27'!$A24,Data!$F:$F,'27'!$A$17))=0,\"-\",SUMIFS(Data!$E:$E,Data!$B:$B,'27'!D$3,Data!$C:$C,'27'!$A$3,Data!$D:$D,'27'!$A24,Data!$F:$F,'27'!$A$17))","v":14.8390330789953},{"$f":"IF((SUMIFS(Data!$E:$E,Data!$B:$B,'27'!E$3,Data!$C:$C,'27'!$A$3,Data!$D:$D,'27'!$A24,Data!$F:$F,'27'!$A$17))=0,\"-\",SUMIFS(Data!$E:$E,Data!$B:$B,'27'!E$3,Data!$C:$C,'27'!$A$3,Data!$D:$D,'27'!$A24,Data!$F:$F,'27'!$A$17))","v":31.166100295383639},{"$f":"IF((SUMIFS(Data!$E:$E,Data!$B:$B,'27'!F$3,Data!$C:$C,'27'!$A$3,Data!$D:$D,'27'!$A24,Data!$F:$F,'27'!$A$17))=0,\"-\",SUMIFS(Data!$E:$E,Data!$B:$B,'27'!F$3,Data!$C:$C,'27'!$A$3,Data!$D:$D,'27'!$A24,Data!$F:$F,'27'!$A$17))","v":26.517333774885433},{"$f":"IF((SUMIFS(Data!$E:$E,Data!$B:$B,'27'!G$3,Data!$C:$C,'27'!$A$3,Data!$D:$D,'27'!$A24,Data!$F:$F,'27'!$A$17))=0,\"-\",SUMIFS(Data!$E:$E,Data!$B:$B,'27'!G$3,Data!$C:$C,'27'!$A$3,Data!$D:$D,'27'!$A24,Data!$F:$F,'27'!$A$17))","v":21.003129895687195},{"$f":"IF((SUMIFS(Data!$E:$E,Data!$B:$B,'27'!H$3,Data!$C:$C,'27'!$A$3,Data!$D:$D,'27'!$A24,Data!$F:$F,'27'!$A$17))=0,\"-\",SUMIFS(Data!$E:$E,Data!$B:$B,'27'!H$3,Data!$C:$C,'27'!$A$3,Data!$D:$D,'27'!$A24,Data!$F:$F,'27'!$A$17))","v":24.32675651415715},{"$f":"IF((SUMIFS(Data!$E:$E,Data!$B:$B,'27'!I$3,Data!$C:$C,'27'!$A$3,Data!$D:$D,'27'!$A24,Data!$F:$F,'27'!$A$17))=0,\"-\",SUMIFS(Data!$E:$E,Data!$B:$B,'27'!I$3,Data!$C:$C,'27'!$A$3,Data!$D:$D,'27'!$A24,Data!$F:$F,'27'!$A$17))","v":38.469137839439391},{"$f":"IF((SUMIFS(Data!$E:$E,Data!$B:$B,'27'!J$3,Data!$C:$C,'27'!$A$3,Data!$D:$D,'27'!$A24,Data!$F:$F,'27'!$A$17))=0,\"-\",SUMIFS(Data!$E:$E,Data!$B:$B,'27'!J$3,Data!$C:$C,'27'!$A$3,Data!$D:$D,'27'!$A24,Data!$F:$F,'27'!$A$17))","v":18.638891434501414},{"$f":"IF((SUMIFS(Data!$E:$E,Data!$B:$B,'27'!K$3,Data!$C:$C,'27'!$A$3,Data!$D:$D,'27'!$A24,Data!$F:$F,'27'!$A$17))=0,\"-\",SUMIFS(Data!$E:$E,Data!$B:$B,'27'!K$3,Data!$C:$C,'27'!$A$3,Data!$D:$D,'27'!$A24,Data!$F:$F,'27'!$A$17))","v":26.517333774885433}]
[{"$f":"VLOOKUP(\"Saskatchewan\",Translation!$A$1:$C$354, Translation!A1+1, 0)","v":"Saskatchewan"},{"$f":"IF((SUMIFS(Data!$E:$E,Data!$B:$B,'27'!B$3,Data!$C:$C,'27'!$A$3,Data!$D:$D,'27'!$A25,Data!$F:$F,'27'!$A$17))=0,\"-\",SUMIFS(Data!$E:$E,Data!$B:$B,'27'!B$3,Data!$C:$C,'27'!$A$3,Data!$D:$D,'27'!$A25,Data!$F:$F,'27'!$A$17))","v":25.240617375505263},{"$f":"IF((SUMIFS(Data!$E:$E,Data!$B:$B,'27'!C$3,Data!$C:$C,'27'!$A$3,Data!$D:$D,'27'!$A25,Data!$F:$F,'27'!$A$17))=0,\"-\",SUMIFS(Data!$E:$E,Data!$B:$B,'27'!C$3,Data!$C:$C,'27'!$A$3,Data!$D:$D,'27'!$A25,Data!$F:$F,'27'!$A$17))","v":18.660742954818236},{"$f":"IF((SUMIFS(Data!$E:$E,Data!$B:$B,'27'!D$3,Data!$C:$C,'27'!$A$3,Data!$D:$D,'27'!$A25,Data!$F:$F,'27'!$A$17))=0,\"-\",SUMIFS(Data!$E:$E,Data!$B:$B,'27'!D$3,Data!$C:$C,'27'!$A$3,Data!$D:$D,'27'!$A25,Data!$F:$F,'27'!$A$17))","v":24.015531558285655},{"$f":"IF((SUMIFS(Data!$E:$E,Data!$B:$B,'27'!E$3,Data!$C:$C,'27'!$A$3,Data!$D:$D,'27'!$A25,Data!$F:$F,'27'!$A$17))=0,\"-\",SUMIFS(Data!$E:$E,Data!$B:$B,'27'!E$3,Data!$C:$C,'27'!$A$3,Data!$D:$D,'27'!$A25,Data!$F:$F,'27'!$A$17))","v":18.2172323366343},{"$f":"IF((SUMIFS(Data!$E:$E,Data!$B:$B,'27'!F$3,Data!$C:$C,'27'!$A$3,Data!$D:$D,'27'!$A25,Data!$F:$F,'27'!$A$17))=0,\"-\",SUMIFS(Data!$E:$E,Data!$B:$B,'27'!F$3,Data!$C:$C,'27'!$A$3,Data!$D:$D,'27'!$A25,Data!$F:$F,'27'!$A$17))","v":31.635035605724681},{"$f":"IF((SUMIFS(Data!$E:$E,Data!$B:$B,'27'!G$3,Data!$C:$C,'27'!$A$3,Data!$D:$D,'27'!$A25,Data!$F:$F,'27'!$A$17))=0,\"-\",SUMIFS(Data!$E:$E,Data!$B:$B,'27'!G$3,Data!$C:$C,'27'!$A$3,Data!$D:$D,'27'!$A25,Data!$F:$F,'27'!$A$17))","v":19.946597034329272},{"$f":"IF((SUMIFS(Data!$E:$E,Data!$B:$B,'27'!H$3,Data!$C:$C,'27'!$A$3,Data!$D:$D,'27'!$A25,Data!$F:$F,'27'!$A$17))=0,\"-\",SUMIFS(Data!$E:$E,Data!$B:$B,'27'!H$3,Data!$C:$C,'27'!$A$3,Data!$D:$D,'27'!$A25,Data!$F:$F,'27'!$A$17))","v":22.19112910852348},{"$f":"IF((SUMIFS(Data!$E:$E,Data!$B:$B,'27'!I$3,Data!$C:$C,'27'!$A$3,Data!$D:$D,'27'!$A25,Data!$F:$F,'27'!$A$17))=0,\"-\",SUMIFS(Data!$E:$E,Data!$B:$B,'27'!I$3,Data!$C:$C,'27'!$A$3,Data!$D:$D,'27'!$A25,Data!$F:$F,'27'!$A$17))","v":20.277246924984645},{"$f":"IF((SUMIFS(Data!$E:$E,Data!$B:$B,'27'!J$3,Data!$C:$C,'27'!$A$3,Data!$D:$D,'27'!$A25,Data!$F:$F,'27'!$A$17))=0,\"-\",SUMIFS(Data!$E:$E,Data!$B:$B,'27'!J$3,Data!$C:$C,'27'!$A$3,Data!$D:$D,'27'!$A25,Data!$F:$F,'27'!$A$17))","v":25.240617375505263},{"$f":"IF((SUMIFS(Data!$E:$E,Data!$B:$B,'27'!K$3,Data!$C:$C,'27'!$A$3,Data!$D:$D,'27'!$A25,Data!$F:$F,'27'!$A$17))=0,\"-\",SUMIFS(Data!$E:$E,Data!$B:$B,'27'!K$3,Data!$C:$C,'27'!$A$3,Data!$D:$D,'27'!$A25,Data!$F:$F,'27'!$A$17))","v":31.635035605724681}]
[{"$f":"VLOOKUP(\"Alberta\",Translation!$A$1:$C$354, Translation!A1+1, 0)","v":"Alberta"},{"$f":"IF((SUMIFS(Data!$E:$E,Data!$B:$B,'27'!B$3,Data!$C:$C,'27'!$A$3,Data!$D:$D,'27'!$A26,Data!$F:$F,'27'!$A$17))=0,\"-\",SUMIFS(Data!$E:$E,Data!$B:$B,'27'!B$3,Data!$C:$C,'27'!$A$3,Data!$D:$D,'27'!$A26,Data!$F:$F,'27'!$A$17))","v":21.78036315036308},{"$f":"IF((SUMIFS(Data!$E:$E,Data!$B:$B,'27'!C$3,Data!$C:$C,'27'!$A$3,Data!$D:$D,'27'!$A26,Data!$F:$F,'27'!$A$17))=0,\"-\",SUMIFS(Data!$E:$E,Data!$B:$B,'27'!C$3,Data!$C:$C,'27'!$A$3,Data!$D:$D,'27'!$A26,Data!$F:$F,'27'!$A$17))","v":27.957906857595113},{"$f":"IF((SUMIFS(Data!$E:$E,Data!$B:$B,'27'!D$3,Data!$C:$C,'27'!$A$3,Data!$D:$D,'27'!$A26,Data!$F:$F,'27'!$A$17))=0,\"-\",SUMIFS(Data!$E:$E,Data!$B:$B,'27'!D$3,Data!$C:$C,'27'!$A$3,Data!$D:$D,'27'!$A26,Data!$F:$F,'27'!$A$17))","v":34.712379467067777},{"$f":"IF((SUMIFS(Data!$E:$E,Data!$B:$B,'27'!E$3,Data!$C:$C,'27'!$A$3,Data!$D:$D,'27'!$A26,Data!$F:$F,'27'!$A$17))=0,\"-\",SUMIFS(Data!$E:$E,Data!$B:$B,'27'!E$3,Data!$C:$C,'27'!$A$3,Data!$D:$D,'27'!$A26,Data!$F:$F,'27'!$A$17))","v":20.199059274753097},{"$f":"IF((SUMIFS(Data!$E:$E,Data!$B:$B,'27'!F$3,Data!$C:$C,'27'!$A$3,Data!$D:$D,'27'!$A26,Data!$F:$F,'27'!$A$17))=0,\"-\",SUMIFS(Data!$E:$E,Data!$B:$B,'27'!F$3,Data!$C:$C,'27'!$A$3,Data!$D:$D,'27'!$A26,Data!$F:$F,'27'!$A$17))","v":29.926394807232199},{"$f":"IF((SUMIFS(Data!$E:$E,Data!$B:$B,'27'!G$3,Data!$C:$C,'27'!$A$3,Data!$D:$D,'27'!$A26,Data!$F:$F,'27'!$A$17))=0,\"-\",SUMIFS(Data!$E:$E,Data!$B:$B,'27'!G$3,Data!$C:$C,'27'!$A$3,Data!$D:$D,'27'!$A26,Data!$F:$F,'27'!$A$17))","v":24.778995833578847},{"$f":"IF((SUMIFS(Data!$E:$E,Data!$B:$B,'27'!H$3,Data!$C:$C,'27'!$A$3,Data!$D:$D,'27'!$A26,Data!$F:$F,'27'!$A$17))=0,\"-\",SUMIFS(Data!$E:$E,Data!$B:$B,'27'!H$3,Data!$C:$C,'27'!$A$3,Data!$D:$D,'27'!$A26,Data!$F:$F,'27'!$A$17))","v":27.840486622593204},{"$f":"IF((SUMIFS(Data!$E:$E,Data!$B:$B,'27'!I$3,Data!$C:$C,'27'!$A$3,Data!$D:$D,'27'!$A26,Data!$F:$F,'27'!$A$17))=0,\"-\",SUMIFS(Data!$E:$E,Data!$B:$B,'27'!I$3,Data!$C:$C,'27'!$A$3,Data!$D:$D,'27'!$A26,Data!$F:$F,'27'!$A$17))","v":22.349449024310712},{"$f":"IF((SUMIFS(Data!$E:$E,Data!$B:$B,'27'!J$3,Data!$C:$C,'27'!$A$3,Data!$D:$D,'27'!$A26,Data!$F:$F,'27'!$A$17))=0,\"-\",SUMIFS(Data!$E:$E,Data!$B:$B,'27'!J$3,Data!$C:$C,'27'!$A$3,Data!$D:$D,'27'!$A26,Data!$F:$F,'27'!$A$17))","v":21.78036315036308},{"$f":"IF((SUMIFS(Data!$E:$E,Data!$B:$B,'27'!K$3,Data!$C:$C,'27'!$A$3,Data!$D:$D,'27'!$A26,Data!$F:$F,'27'!$A$17))=0,\"-\",SUMIFS(Data!$E:$E,Data!$B:$B,'27'!K$3,Data!$C:$C,'27'!$A$3,Data!$D:$D,'27'!$A26,Data!$F:$F,'27'!$A$17))","v":29.926394807232199}]
[{"$f":"VLOOKUP(\"British Columbia\",Translation!$A$1:$C$354, Translation!A1+1, 0)","v":"Colombie-Britannique"},{"$f":"IF((SUMIFS(Data!$E:$E,Data!$B:$B,'27'!B$3,Data!$C:$C,'27'!$A$3,Data!$D:$D,'27'!$A27,Data!$F:$F,'27'!$A$17))=0,\"-\",SUMIFS(Data!$E:$E,Data!$B:$B,'27'!B$3,Data!$C:$C,'27'!$A$3,Data!$D:$D,'27'!$A27,Data!$F:$F,'27'!$A$17))","v":26.375571850855639},{"$f":"IF((SUMIFS(Data!$E:$E,Data!$B:$B,'27'!C$3,Data!$C:$C,'27'!$A$3,Data!$D:$D,'27'!$A27,Data!$F:$F,'27'!$A$17))=0,\"-\",SUMIFS(Data!$E:$E,Data!$B:$B,'27'!C$3,Data!$C:$C,'27'!$A$3,Data!$D:$D,'27'!$A27,Data!$F:$F,'27'!$A$17))","v":24.097701688395997},{"$f":"IF((SUMIFS(Data!$E:$E,Data!$B:$B,'27'!D$3,Data!$C:$C,'27'!$A$3,Data!$D:$D,'27'!$A27,Data!$F:$F,'27'!$A$17))=0,\"-\",SUMIFS(Data!$E:$E,Data!$B:$B,'27'!D$3,Data!$C:$C,'27'!$A$3,Data!$D:$D,'27'!$A27,Data!$F:$F,'27'!$A$17))","v":23.562455963788601},{"$f":"IF((SUMIFS(Data!$E:$E,Data!$B:$B,'27'!E$3,Data!$C:$C,'27'!$A$3,Data!$D:$D,'27'!$A27,Data!$F:$F,'27'!$A$17))=0,\"-\",SUMIFS(Data!$E:$E,Data!$B:$B,'27'!E$3,Data!$C:$C,'27'!$A$3,Data!$D:$D,'27'!$A27,Data!$F:$F,'27'!$A$17))","v":22.398189076772713},{"$f":"IF((SUMIFS(Data!$E:$E,Data!$B:$B,'27'!F$3,Data!$C:$C,'27'!$A$3,Data!$D:$D,'27'!$A27,Data!$F:$F,'27'!$A$17))=0,\"-\",SUMIFS(Data!$E:$E,Data!$B:$B,'27'!F$3,Data!$C:$C,'27'!$A$3,Data!$D:$D,'27'!$A27,Data!$F:$F,'27'!$A$17))","v":28.57593510180212},{"$f":"IF((SUMIFS(Data!$E:$E,Data!$B:$B,'27'!G$3,Data!$C:$C,'27'!$A$3,Data!$D:$D,'27'!$A27,Data!$F:$F,'27'!$A$17))=0,\"-\",SUMIFS(Data!$E:$E,Data!$B:$B,'27'!G$3,Data!$C:$C,'27'!$A$3,Data!$D:$D,'27'!$A27,Data!$F:$F,'27'!$A$17))","v":25.082351600139688},{"$f":"IF((SUMIFS(Data!$E:$E,Data!$B:$B,'27'!H$3,Data!$C:$C,'27'!$A$3,Data!$D:$D,'27'!$A27,Data!$F:$F,'27'!$A$17))=0,\"-\",SUMIFS(Data!$E:$E,Data!$B:$B,'27'!H$3,Data!$C:$C,'27'!$A$3,Data!$D:$D,'27'!$A27,Data!$F:$F,'27'!$A$17))","v":25.282344483315704},{"$f":"IF((SUMIFS(Data!$E:$E,Data!$B:$B,'27'!I$3,Data!$C:$C,'27'!$A$3,Data!$D:$D,'27'!$A27,Data!$F:$F,'27'!$A$17))=0,\"-\",SUMIFS(Data!$E:$E,Data!$B:$B,'27'!I$3,Data!$C:$C,'27'!$A$3,Data!$D:$D,'27'!$A27,Data!$F:$F,'27'!$A$17))","v":25.37045868093082},{"$f":"IF((SUMIFS(Data!$E:$E,Data!$B:$B,'27'!J$3,Data!$C:$C,'27'!$A$3,Data!$D:$D,'27'!$A27,Data!$F:$F,'27'!$A$17))=0,\"-\",SUMIFS(Data!$E:$E,Data!$B:$B,'27'!J$3,Data!$C:$C,'27'!$A$3,Data!$D:$D,'27'!$A27,Data!$F:$F,'27'!$A$17))","v":26.375571850855639},{"$f":"IF((SUMIFS(Data!$E:$E,Data!$B:$B,'27'!K$3,Data!$C:$C,'27'!$A$3,Data!$D:$D,'27'!$A27,Data!$F:$F,'27'!$A$17))=0,\"-\",SUMIFS(Data!$E:$E,Data!$B:$B,'27'!K$3,Data!$C:$C,'27'!$A$3,Data!$D:$D,'27'!$A27,Data!$F:$F,'27'!$A$17))","v":28.57593510180212}]
[{"$f":"VLOOKUP(\"Territories\",Translation!$A$1:$C$354, Translation!A1+1, 0)","v":"Territoires"},{"$f":"IF((SUMIFS(Data!$E:$E,Data!$B:$B,'27'!B$3,Data!$C:$C,'27'!$A$3,Data!$D:$D,'27'!$A28,Data!$F:$F,'27'!$A$17))=0,\"-\",SUMIFS(Data!$E:$E,Data!$B:$B,'27'!B$3,Data!$C:$C,'27'!$A$3,Data!$D:$D,'27'!$A28,Data!$F:$F,'27'!$A$17))","v":"-"},{"$f":"IF((SUMIFS(Data!$E:$E,Data!$B:$B,'27'!C$3,Data!$C:$C,'27'!$A$3,Data!$D:$D,'27'!$A28,Data!$F:$F,'27'!$A$17))=0,\"-\",SUMIFS(Data!$E:$E,Data!$B:$B,'27'!C$3,Data!$C:$C,'27'!$A$3,Data!$D:$D,'27'!$A28,Data!$F:$F,'27'!$A$17))","v":25.070615683273793},{"$f":"IF((SUMIFS(Data!$E:$E,Data!$B:$B,'27'!D$3,Data!$C:$C,'27'!$A$3,Data!$D:$D,'27'!$A28,Data!$F:$F,'27'!$A$17))=0,\"-\",SUMIFS(Data!$E:$E,Data!$B:$B,'27'!D$3,Data!$C:$C,'27'!$A$3,Data!$D:$D,'27'!$A28,Data!$F:$F,'27'!$A$17))","v":29.341278402403752},{"$f":"IF((SUMIFS(Data!$E:$E,Data!$B:$B,'27'!E$3,Data!$C:$C,'27'!$A$3,Data!$D:$D,'27'!$A28,Data!$F:$F,'27'!$A$17))=0,\"-\",SUMIFS(Data!$E:$E,Data!$B:$B,'27'!E$3,Data!$C:$C,'27'!$A$3,Data!$D:$D,'27'!$A28,Data!$F:$F,'27'!$A$17))","v":25},{"$f":"IF((SUMIFS(Data!$E:$E,Data!$B:$B,'27'!F$3,Data!$C:$C,'27'!$A$3,Data!$D:$D,'27'!$A28,Data!$F:$F,'27'!$A$17))=0,\"-\",SUMIFS(Data!$E:$E,Data!$B:$B,'27'!F$3,Data!$C:$C,'27'!$A$3,Data!$D:$D,'27'!$A28,Data!$F:$F,'27'!$A$17))","v":25.340000000000003},{"$f":"IF((SUMIFS(Data!$E:$E,Data!$B:$B,'27'!G$3,Data!$C:$C,'27'!$A$3,Data!$D:$D,'27'!$A28,Data!$F:$F,'27'!$A$17))=0,\"-\",SUMIFS(Data!$E:$E,Data!$B:$B,'27'!G$3,Data!$C:$C,'27'!$A$3,Data!$D:$D,'27'!$A28,Data!$F:$F,'27'!$A$17))","v":25.015079780638715},{"$f":"IF((SUMIFS(Data!$E:$E,Data!$B:$B,'27'!H$3,Data!$C:$C,'27'!$A$3,Data!$D:$D,'27'!$A28,Data!$F:$F,'27'!$A$17))=0,\"-\",SUMIFS(Data!$E:$E,Data!$B:$B,'27'!H$3,Data!$C:$C,'27'!$A$3,Data!$D:$D,'27'!$A28,Data!$F:$F,'27'!$A$17))","v":25.120000000000005},{"$f":"IF((SUMIFS(Data!$E:$E,Data!$B:$B,'27'!I$3,Data!$C:$C,'27'!$A$3,Data!$D:$D,'27'!$A28,Data!$F:$F,'27'!$A$17))=0,\"-\",SUMIFS(Data!$E:$E,Data!$B:$B,'27'!I$3,Data!$C:$C,'27'!$A$3,Data!$D:$D,'27'!$A28,Data!$F:$F,'27'!$A$17))","v":"-"},{"$f":"IF((SUMIFS(Data!$E:$E,Data!$B:$B,'27'!J$3,Data!$C:$C,'27'!$A$3,Data!$D:$D,'27'!$A28,Data!$F:$F,'27'!$A$17))=0,\"-\",SUMIFS(Data!$E:$E,Data!$B:$B,'27'!J$3,Data!$C:$C,'27'!$A$3,Data!$D:$D,'27'!$A28,Data!$F:$F,'27'!$A$17))","v":"-"},{"$f":"IF((SUMIFS(Data!$E:$E,Data!$B:$B,'27'!K$3,Data!$C:$C,'27'!$A$3,Data!$D:$D,'27'!$A28,Data!$F:$F,'27'!$A$17))=0,\"-\",SUMIFS(Data!$E:$E,Data!$B:$B,'27'!K$3,Data!$C:$C,'27'!$A$3,Data!$D:$D,'27'!$A28,Data!$F:$F,'27'!$A$17))","v":25.340000000000003}]
[{"$f":"VLOOKUP(\"Distribution based on loan amounts, not number of loans.\",Translation!$A$1:$C$354, Translation!A1+1, 0)","v":"La répartition est établie d'après le montant, plutôt que le nombre de prêts assurés."}]
[{"$f":"VLOOKUP(\"The sum of all breakdown categories may not add up to 100 due to rounding.\",Translation!$A$1:$C$354, Translation!A1+1, 0)","v":"Les chiffres ayant été arrondis, il se peut que la somme de l'ensemble des catégories n'égale pas 100 %."}]
[]
[{"$f":"VLOOKUP(\"Insurance-in-force by loan-to-value (LTV) ratio based on original property value (%)\",Translation!$A$1:$C$354, Translation!A1+1, 0)","v":"Contrats d’assurance en vigueur selon le rapport prêt-valeur établi d'après la valeur originale de la propriété (%)"}]
[{"$f":"VLOOKUP(\"MULTI-UNIT RESIDENTIAL\",Translation!$A$1:$C$354, Translation!A1+1, 0)","v":"IMMEUBLES COLLECTIFS RÉSIDENTIELS"}]
[null,{"$f":"VLOOKUP(\"As at\",Translation!$A$1:$C$354,Translation!A1+1,0)","v":"Aux"}]
[null,{"$f":"VLOOKUP(\"Q1 2020\",Translation!$A$1:$C$354, Translation!A1+1, 0)","v":"T1 2020"},{"$f":"VLOOKUP(\"Q4 2019\",Translation!$A$1:$C$354, Translation!A1+1, 0)","v":"T4 2019"},{"$f":"VLOOKUP(\"Q3 2019\",Translation!$A$1:$C$354, Translation!A1+1, 0)","v":"T3 2019"},{"$f":"E3","v":"T2 2019"},{"$f":"F3","v":"T1 2019"},"T4 2018","T3 2018","T2 2018"]
["<= 50 %",2.3137197615837608,2.2852390104753413,2.2955651010133318,2.3313759077337122,2.3614737866019015,2.4759852495150647,2.5551618894746406,2.4438747004926924]
["> 50 % <= 55 %",1.5105801547798847,1.5979815575883345,1.6402144241608205,1.4022514062380635,1.420136159442863,1.4486515992861175,1.5124771647122293,1.486477252141724]
["> 55 % <= 60 %",8.1062795272112478,8.3770714865976164,8.8695256853556135,9.5517514766635045,10.183693015275008,10.157231836509334,10.592857844927194,10.803002906881538]
["> 60 % <= 65 %",10.503235778923742,10.012914899306738,9.7424699384878846,8.8350114809811764,8.3753416154390337,7.4567508102199307,6.9384775829790897,6.0583431977406521]
["> 65 % <= 70 %",6.1476202215145976,6.1241214907739119,5.8998336489835612,5.8894540392304888,5.4308467379105245,5.3108045841584337,5.1168588223886857,5.2151957386008796]
["> 70 % <= 75 %",35.195177978915574,35.712818085956492,36.588841714153055,37.408960529722364,38.090203972915518,38.502367383708574,38.788936290078531,38.944673653882901]
["> 75 % <= 80 %",6.4238616157140482,5.5451306837032979,5.2863149454930198,5.1280806596615847,4.7902234192428468,4.9586704984613004,4.7704639163100317,4.6908695095687802]
["> 80 % <= 85 %",27.703154396453613,27.729364434233666,27.330184764983635,27.174108502970778,27.301012586752311,27.464884623889557,27.648565216209896,28.081056592100097]
["> 85 % <= 90 %",0.50839130344272498,0.66389794088872012,0.4913063260226212,0.47765263589532131,0.33526892666599978,0.35336107283621621,0.29198352367335534,0.25207460116543495]
["> 90 % <= 95 %",0.87841717236141759,1.0827929161972889,1.0695341229460249,1.0608594444195372,0.95830892180274163,1.0935380540383923,0.98870573694299457,1.1542852527949916]
["> 95 %",0.70687934264831165,0.86585816984423458,0.78329243186858433,0.73744000428944867,0.75026274357891554,0.77446691934462197,0.79202451543943286,0.86660822119743464]
[{"$f":"VLOOKUP(\"Average loan-to-value\",Translation!$A$1:$C$354, Translation!A1+1, 0)","v":"Rapport prêt-valeur moyen "},77.598462063149697,77.517161113895256,77.517161113895256,78.098190733068009,78.150207663320472,78.067489727778224,78.163859264148371,78.259820768384856]
[{"$f":"VLOOKUP(\"Average equity\",Translation!$A$1:$C$354, Translation!A1+1, 0)","v":"Avoir propre foncier moyen "},{"$f":"100-B47","v":22.401537936850303},22.482838886104744,22.482838886104744,{"$f":"100-E47","v":21.901809266931991},21.849792336679528,21.932510272221776,21.836140735851629,21.740179231615144]
[{"$f":"VLOOKUP(\"Average equity by province\",Translation!$A$1:$C$354, Translation!A1+1, 0)","v":"Avoir propre foncier moyen selon la province"}]
[{"$f":"VLOOKUP(\"Newfoundland and Labrador\",Translation!$A$1:$C$354, Translation!A1+1, 0)","v":"Terre-Neuve-et-Labrador"},19.293557369573932,19.167746098444923,20.261868523583018,20.129272637679591,20.563617596050776,20.473731511799954,20.556647743267732,20.388740168275191]
[{"$f":"VLOOKUP(\"Prince Edward Island\",Translation!$A$1:$C$354, Translation!A1+1, 0)","v":"Île-du-Prince-Édouard"},19.874584481460801,21.22593811192904,21.713957309940596,22.404967439121464,21.904933988326519,21.768479103782738,21.208285888993586,20.79684178959711]
[{"$f":"VLOOKUP(\"Nova Scotia\",Translation!$A$1:$C$354, Translation!A1+1, 0)","v":"Nouvelle-Écosse"},20.979569462240335,21.055517494901906,20.906678156049395,20.766188740780493,20.276611994157903,20.379764355291584,20.208534399519081,20.340471558324268]
[{"$f":"VLOOKUP(\"New Brunswick\",Translation!$A$1:$C$354, Translation!A1+1, 0)","v":"Nouveau-Brunswick"},18.613549922311719,18.899194729461641,18.768661925234056,18.724791676954297,18.632479096492077,18.540688079549341,18.413582842196888,18.186015747703991]
[{"$f":"VLOOKUP(\"Quebec\",Translation!$A$1:$C$354, Translation!A1+1, 0)","v":"Québec"},19.10924065940749,19.11312217088043,19.066888557626967,19.062794142339527,19.013655380069423,18.907875109076926,18.800449903140262,18.6454192905138]
[{"$f":"VLOOKUP(\"Ontario\",Translation!$A$1:$C$354, Translation!A1+1, 0)","v":"Ontario"},28.044118245772822,28.098331745164714,28.133818447029654,25.997643826731405,25.905374159646144,26.430404091306741,26.235409309271617,26.08971291365971]
[{"$f":"VLOOKUP(\"Manitoba\",Translation!$A$1:$C$354, Translation!A1+1, 0)","v":"Manitoba"},27.080211232408018,26.929442478453609,27.69203094430496,28.128534177757274,28.14843822252088,28.252763460147861,28.393584773386124,28.110811532801733]
[{"$f":"VLOOKUP(\"Saskatchewan\",Translation!$A$1:$C$354, Translation!A1+1, 0)","v":"Saskatchewan"},23.10705967628229,23.004375643796052,23.125854790453175,23.223863659696988,23.26477265536451,23.475095136785626,23.448768209698116,23.720222871701566]
[{"$f":"VLOOKUP(\"Alberta\",Translation!$A$1:$C$354, Translation!A1+1, 0)","v":"Alberta"},24.896378336176241,24.972803427281974,25.056702493930885,25.011605939951707,25.045076429731026,25.100922588141884,25.110307457120939,25.162246684674173]
[{"$f":"VLOOKUP(\"British Columbia\",Translation!$A$1:$C$354, Translation!A1+1, 0)","v":"Colombie-Britannique"},27.346422732876803,27.25900012901748,27.466167093619532,27.45765066883007,27.57385379950189,27.525416950448815,27.591424532532614,27.593970286451381]
[{"$f":"VLOOKUP(\"Territories\",Translation!$A$1:$C$354, Translation!A1+1, 0)","v":"Territoires"},23.665461802403684,23.640507858324668,23.622790359463494,23.573073048936962,23.417185835170386,23.400910573325021,23.372924253088613,23.386417691697886]
[{"$f":"VLOOKUP(\"LTV calculated on the basis of loan amounts and property values at insurance origination.\",Translation!$A$1:$C$328, Translation!A1+1, 0)","v":"Le RPV est fondé sur le montant du prêt et la valeur de la propriété à l'initiation de l'assurance."}]
[{"$f":"VLOOKUP(\"Distribution based on outstanding loan amounts, not number of loans.\",Translation!$A$1:$C$328, Translation!A1+1, 0)","v":"La répartition est établie d'après le solde, plutôt que le nombre de prêts assurés."}]
[{"$f":"VLOOKUP(\"The sum of all breakdown categories may not add up to 100 due to rounding.\",Translation!$A$1:$C$328, Translation!A1+1, 0)","v":"Les chiffres ayant été arrondis, il se peut que la somme de l'ensemble des catégories n'égale pas 100 %."}]

{"sheet":"28","index":29,"n_rows":54,"n_cols":11,"rows_kept":54,"cut":false,"hidden":false,"merged":[[28,0,30,0],[29,1,29,8],[0,5,0,9]]}
[{"$f":"VLOOKUP(\"MULTI-UNIT RESIDENTIAL - AMORTIZATION\",Translation!$A$1:$C$354, Translation!A1+1, 0)","v":"IMMEUBLES COLLECTIFS RÉSIDENTIELS - AMORTISSEMENT"},null,null,null,null,{"$f":"VLOOKUP(\"Back to Table of Contents\",Translation!$A$1:$C$354, Translation!A1+1, 0)","v":"Retour à la table des matières"}]
[{"$f":"VLOOKUP(\"Loans insured during the period by amortization (years) at origination (%)\",Translation!$A$1:$C$354, Translation!A1+1, 0)","v":"Prêts hypothécaires assurés au cours de la période selon la période d’amortissement (en années) à l'initiation (%)"}]
[{"$f":"VLOOKUP(\"MULTI-UNIT RESIDENTIAL\",Translation!$A$1:$C$354, Translation!A1+1, 0)","v":"IMMEUBLES COLLECTIFS RÉSIDENTIELS"},{"$f":"VLOOKUP(\"Q1 2020\",Translation!$A$1:$C$354, Translation!$A$1+1, 0)","v":"T1 2020"},{"$f":"VLOOKUP(\"Q4 2019\",Translation!$A$1:$C$354, Translation!$A$1+1, 0)","v":"T4 2019"},{"$f":"VLOOKUP(\"Q3 2019\",Translation!$A$1:$C$354, Translation!$A$1+1, 0)","v":"T3 2019"},{"$f":"VLOOKUP(\"Q2 2019\",Translation!$A$1:$C$354, Translation!$A$1+1, 0)","v":"T2 2019"},{"$f":"VLOOKUP(\"Q1 2019\",Translation!$A$1:$C$354, Translation!$A$1+1, 0)","v":"T1 2019"},{"$f":"VLOOKUP(\"Q4 2018\",Translation!$A$1:$C$354, Translation!$A$1+1, 0)","v":"T4 2018"},{"$f":"VLOOKUP(\"Q3 2018\",Translation!$A$1:$C$354, Translation!$A$1+1, 0)","v":"T3 2018"},{"$f":"VLOOKUP(\"Q2 2018\",Translation!$A$1:$C$354, Translation!$A$1+1, 0)","v":"T2 2018"},{"$f":"VLOOKUP(\"YTD 2020\",Translation!$A$1:$C$354, Translation!$A$1+1, 0)","v":"Cumul 2020"},{"$f":"VLOOKUP(\"YTD 2019\",Translation!$A$1:$C$354, Translation!$A$1+1, 0)","v":"Cumul 2019"}]
[" <= 5",{"$f":"SUMIFS(Data!$E:$E,Data!$B:$B,'28'!B$3,Data!$C:$C,'28'!$A$3,Data!$H:$H,'28'!$A4,Data!$F:$F,'28'!$A$2)","v":0},{"$f":"SUMIFS(Data!$E:$E,Data!$B:$B,'28'!C$3,Data!$C:$C,'28'!$A$3,Data!$H:$H,'28'!$A4,Data!$F:$F,'28'!$A$2)","v":0},{"$f":"SUMIFS(Data!$E:$E,Data!$B:$B,'28'!D$3,Data!$C:$C,'28'!$A$3,Data!$H:$H,'28'!$A4,Data!$F:$F,'28'!$A$2)","v":0},{"$f":"SUMIFS(Data!$E:$E,Data!$B:$B,'28'!E$3,Data!$C:$C,'28'!$A$3,Data!$H:$H,'28'!$A4,Data!$F:$F,'28'!$A$2)","v":0},{"$f":"SUMIFS(Data!$E:$E,Data!$B:$B,'28'!F$3,Data!$C:$C,'28'!$A$3,Data!$H:$H,'28'!$A4,Data!$F:$F,'28'!$A$2)","v":0},{"$f":"SUMIFS(Data!$E:$E,Data!$B:$B,'28'!G$3,Data!$C:$C,'28'!$A$3,Data!$H:$H,'28'!$A4,Data!$F:$F,'28'!$A$2)","v":0},{"$f":"SUMIFS(Data!$E:$E,Data!$B:$B,'28'!H$3,Data!$C:$C,'28'!$A$3,Data!$H:$H,'28'!$A4,Data!$F:$F,'28'!$A$2)","v":0},{"$f":"SUMIFS(Data!$E:$E,Data!$B:$B,'28'!I$3,Data!$C:$C,'28'!$A$3,Data!$H:$H,'28'!$A4,Data!$F:$F,'28'!$A$2)","v":0},{"$f":"SUMIFS(Data!$E:$E,Data!$B:$B,'28'!J$3,Data!$C:$C,'28'!$A$3,Data!$H:$H,'28'!$A4,Data!$F:$F,'28'!$A$2)","v":0},{"$f":"SUMIFS(Data!$E:$E,Data!$B:$B,'28'!K$3,Data!$C:$C,'28'!$A$3,Data!$H:$H,'28'!$A4,Data!$F:$F,'28'!$A$2)","v":0}]
[" > 5 <= 10",{"$f":"SUMIFS(Data!$E:$E,Data!$B:$B,'28'!B$3,Data!$C:$C,'28'!$A$3,Data!$H:$H,'28'!$A5,Data!$F:$F,'28'!$A$2)","v":6.3044345627901371E-2},{"$f":"SUMIFS(Data!$E:$E,Data!$B:$B,'28'!C$3,Data!$C:$C,'28'!$A$3,Data!$H:$H,'28'!$A5,Data!$F:$F,'28'!$A$2)","v":2.4996293173662063E-2},{"$f":"SUMIFS(Data!$E:$E,Data!$B:$B,'28'!D$3,Data!$C:$C,'28'!$A$3,Data!$H:$H,'28'!$A5,Data!$F:$F,'28'!$A$2)","v":0},{"$f":"SUMIFS(Data!$E:$E,Data!$B:$B,'28'!E$3,Data!$C:$C,'28'!$A$3,Data!$H:$H,'28'!$A5,Data!$F:$F,'28'!$A$2)","v":0.54649823737669934},{"$f":"SUMIFS(Data!$E:$E,Data!$B:$B,'28'!F$3,Data!$C:$C,'28'!$A$3,Data!$H:$H,'28'!$A5,Data!$F:$F,'28'!$A$2)","v":0},{"$f":"SUMIFS(Data!$E:$E,Data!$B:$B,'28'!G$3,Data!$C:$C,'28'!$A$3,Data!$H:$H,'28'!$A5,Data!$F:$F,'28'!$A$2)","v":7.3193623274223985E-3},{"$f":"SUMIFS(Data!$E:$E,Data!$B:$B,'28'!H$3,Data!$C:$C,'28'!$A$3,Data!$H:$H,'28'!$A5,Data!$F:$F,'28'!$A$2)","v":0},{"$f":"SUMIFS(Data!$E:$E,Data!$B:$B,'28'!I$3,Data!$C:$C,'28'!$A$3,Data!$H:$H,'28'!$A5,Data!$F:$F,'28'!$A$2)","v":0},{"$f":"SUMIFS(Data!$E:$E,Data!$B:$B,'28'!J$3,Data!$C:$C,'28'!$A$3,Data!$H:$H,'28'!$A5,Data!$F:$F,'28'!$A$2)","v":6.3044345627901371E-2},{"$f":"SUMIFS(Data!$E:$E,Data!$B:$B,'28'!K$3,Data!$C:$C,'28'!$A$3,Data!$H:$H,'28'!$A5,Data!$F:$F,'28'!$A$2)","v":0}]
[" > 10 <= 15",{"$f":"SUMIFS(Data!$E:$E,Data!$B:$B,'28'!B$3,Data!$C:$C,'28'!$A$3,Data!$H:$H,'28'!$A6,Data!$F:$F,'28'!$A$2)","v":0.8107659277702739},{"$f":"SUMIFS(Data!$E:$E,Data!$B:$B,'28'!C$3,Data!$C:$C,'28'!$A$3,Data!$H:$H,'28'!$A6,Data!$F:$F,'28'!$A$2)","v":2.9806471481404501E-2},{"$f":"SUMIFS(Data!$E:$E,Data!$B:$B,'28'!D$3,Data!$C:$C,'28'!$A$3,Data!$H:$H,'28'!$A6,Data!$F:$F,'28'!$A$2)","v":0.13767363182920617},{"$f":"SUMIFS(Data!$E:$E,Data!$B:$B,'28'!E$3,Data!$C:$C,'28'!$A$3,Data!$H:$H,'28'!$A6,Data!$F:$F,'28'!$A$2)","v":0.23927793656984064},{"$f":"SUMIFS(Data!$E:$E,Data!$B:$B,'28'!F$3,Data!$C:$C,'28'!$A$3,Data!$H:$H,'28'!$A6,Data!$F:$F,'28'!$A$2)","v":0.49858250761961209},{"$f":"SUMIFS(Data!$E:$E,Data!$B:$B,'28'!G$3,Data!$C:$C,'28'!$A$3,Data!$H:$H,'28'!$A6,Data!$F:$F,'28'!$A$2)","v":0.9854585704044998},{"$f":"SUMIFS(Data!$E:$E,Data!$B:$B,'28'!H$3,Data!$C:$C,'28'!$A$3,Data!$H:$H,'28'!$A6,Data!$F:$F,'28'!$A$2)","v":0},{"$f":"SUMIFS(Data!$E:$E,Data!$B:$B,'28'!I$3,Data!$C:$C,'28'!$A$3,Data!$H:$H,'28'!$A6,Data!$F:$F,'28'!$A$2)","v":0.24474109185254245},{"$f":"SUMIFS(Data!$E:$E,Data!$B:$B,'28'!J$3,Data!$C:$C,'28'!$A$3,Data!$H:$H,'28'!$A6,Data!$F:$F,'28'!$A$2)","v":0.8107659277702739},{"$f":"SUMIFS(Data!$E:$E,Data!$B:$B,'28'!K$3,Data!$C:$C,'28'!$A$3,Data!$H:$H,'28'!$A6,Data!$F:$F,'28'!$A$2)","v":0.49858250761961209}]
[" > 15 <= 20",{"$f":"SUMIFS(Data!$E:$E,Data!$B:$B,'28'!B$3,Data!$C:$C,'28'!$A$3,Data!$H:$H,'28'!$A7,Data!$F:$F,'28'!$A$2)","v":0.15245250346768852},{"$f":"SUMIFS(Data!$E:$E,Data!$B:$B,'28'!C$3,Data!$C:$C,'28'!$A$3,Data!$H:$H,'28'!$A7,Data!$F:$F,'28'!$A$2)","v":0.18531511382289464},{"$f":"SUMIFS(Data!$E:$E,Data!$B:$B,'28'!D$3,Data!$C:$C,'28'!$A$3,Data!$H:$H,'28'!$A7,Data!$F:$F,'28'!$A$2)","v":1.2027261645353355},{"$f":"SUMIFS(Data!$E:$E,Data!$B:$B,'28'!E$3,Data!$C:$C,'28'!$A$3,Data!$H:$H,'28'!$A7,Data!$F:$F,'28'!$A$2)","v":0.85330240520204659},{"$f":"SUMIFS(Data!$E:$E,Data!$B:$B,'28'!F$3,Data!$C:$C,'28'!$A$3,Data!$H:$H,'28'!$A7,Data!$F:$F,'28'!$A$2)","v":0.62930499764585324},{"$f":"SUMIFS(Data!$E:$E,Data!$B:$B,'28'!G$3,Data!$C:$C,'28'!$A$3,Data!$H:$H,'28'!$A7,Data!$F:$F,'28'!$A$2)","v":0.88696447722240002},{"$f":"SUMIFS(Data!$E:$E,Data!$B:$B,'28'!H$3,Data!$C:$C,'28'!$A$3,Data!$H:$H,'28'!$A7,Data!$F:$F,'28'!$A$2)","v":0.9534182448713282},{"$f":"SUMIFS(Data!$E:$E,Data!$B:$B,'28'!I$3,Data!$C:$C,'28'!$A$3,Data!$H:$H,'28'!$A7,Data!$F:$F,'28'!$A$2)","v":1.6238788223785146},{"$f":"SUMIFS(Data!$E:$E,Data!$B:$B,'28'!J$3,Data!$C:$C,'28'!$A$3,Data!$H:$H,'28'!$A7,Data!$F:$F,'28'!$A$2)","v":0.15245250346768852},{"$f":"SUMIFS(Data!$E:$E,Data!$B:$B,'28'!K$3,Data!$C:$C,'28'!$A$3,Data!$H:$H,'28'!$A7,Data!$F:$F,'28'!$A$2)","v":0.62930499764585324}]
[" > 20 <= 25",{"$f":"SUMIFS(Data!$E:$E,Data!$B:$B,'28'!B$3,Data!$C:$C,'28'!$A$3,Data!$H:$H,'28'!$A8,Data!$F:$F,'28'!$A$2)","v":9.856474829149322},{"$f":"SUMIFS(Data!$E:$E,Data!$B:$B,'28'!C$3,Data!$C:$C,'28'!$A$3,Data!$H:$H,'28'!$A8,Data!$F:$F,'28'!$A$2)","v":14.91609247889016},{"$f":"SUMIFS(Data!$E:$E,Data!$B:$B,'28'!D$3,Data!$C:$C,'28'!$A$3,Data!$H:$H,'28'!$A8,Data!$F:$F,'28'!$A$2)","v":12.55346225108608},{"$f":"SUMIFS(Data!$E:$E,Data!$B:$B,'28'!E$3,Data!$C:$C,'28'!$A$3,Data!$H:$H,'28'!$A8,Data!$F:$F,'28'!$A$2)","v":14.81232521998913},{"$f":"SUMIFS(Data!$E:$E,Data!$B:$B,'28'!F$3,Data!$C:$C,'28'!$A$3,Data!$H:$H,'28'!$A8,Data!$F:$F,'28'!$A$2)","v":20.076326455699},{"$f":"SUMIFS(Data!$E:$E,Data!$B:$B,'28'!G$3,Data!$C:$C,'28'!$A$3,Data!$H:$H,'28'!$A8,Data!$F:$F,'28'!$A$2)","v":12.833021988121653},{"$f":"SUMIFS(Data!$E:$E,Data!$B:$B,'28'!H$3,Data!$C:$C,'28'!$A$3,Data!$H:$H,'28'!$A8,Data!$F:$F,'28'!$A$2)","v":28.376891078094928},{"$f":"SUMIFS(Data!$E:$E,Data!$B:$B,'28'!I$3,Data!$C:$C,'28'!$A$3,Data!$H:$H,'28'!$A8,Data!$F:$F,'28'!$A$2)","v":26.555105479192967},{"$f":"SUMIFS(Data!$E:$E,Data!$B:$B,'28'!J$3,Data!$C:$C,'28'!$A$3,Data!$H:$H,'28'!$A8,Data!$F:$F,'28'!$A$2)","v":9.856474829149322},{"$f":"SUMIFS(Data!$E:$E,Data!$B:$B,'28'!K$3,Data!$C:$C,'28'!$A$3,Data!$H:$H,'28'!$A8,Data!$F:$F,'28'!$A$2)","v":20.076326455699}]
[" > 25 <= 30",{"$f":"SUMIFS(Data!$E:$E,Data!$B:$B,'28'!B$3,Data!$C:$C,'28'!$A$3,Data!$H:$H,'28'!$A9,Data!$F:$F,'28'!$A$2)","v":23.688896222983843},{"$f":"SUMIFS(Data!$E:$E,Data!$B:$B,'28'!C$3,Data!$C:$C,'28'!$A$3,Data!$H:$H,'28'!$A9,Data!$F:$F,'28'!$A$2)","v":18.025476833004653},{"$f":"SUMIFS(Data!$E:$E,Data!$B:$B,'28'!D$3,Data!$C:$C,'28'!$A$3,Data!$H:$H,'28'!$A9,Data!$F:$F,'28'!$A$2)","v":22.893576831577633},{"$f":"SUMIFS(Data!$E:$E,Data!$B:$B,'28'!E$3,Data!$C:$C,'28'!$A$3,Data!$H:$H,'28'!$A9,Data!$F:$F,'28'!$A$2)","v":27.878795683328395},{"$f":"SUMIFS(Data!$E:$E,Data!$B:$B,'28'!F$3,Data!$C:$C,'28'!$A$3,Data!$H:$H,'28'!$A9,Data!$F:$F,'28'!$A$2)","v":22.560001776371248},{"$f":"SUMIFS(Data!$E:$E,Data!$B:$B,'28'!G$3,Data!$C:$C,'28'!$A$3,Data!$H:$H,'28'!$A9,Data!$F:$F,'28'!$A$2)","v":24.951620425028956},{"$f":"SUMIFS(Data!$E:$E,Data!$B:$B,'28'!H$3,Data!$C:$C,'28'!$A$3,Data!$H:$H,'28'!$A9,Data!$F:$F,'28'!$A$2)","v":25.646540960097465},{"$f":"SUMIFS(Data!$E:$E,Data!$B:$B,'28'!I$3,Data!$C:$C,'28'!$A$3,Data!$H:$H,'28'!$A9,Data!$F:$F,'28'!$A$2)","v":27.111509284799862},{"$f":"SUMIFS(Data!$E:$E,Data!$B:$B,'28'!J$3,Data!$C:$C,'28'!$A$3,Data!$H:$H,'28'!$A9,Data!$F:$F,'28'!$A$2)","v":23.688896222983843},{"$f":"SUMIFS(Data!$E:$E,Data!$B:$B,'28'!K$3,Data!$C:$C,'28'!$A$3,Data!$H:$H,'28'!$A9,Data!$F:$F,'28'!$A$2)","v":22.560001776371248}]
[" > 30 <= 35",{"$f":"SUMIFS(Data!$E:$E,Data!$B:$B,'28'!B$3,Data!$C:$C,'28'!$A$3,Data!$H:$H,'28'!$A10,Data!$F:$F,'28'!$A$2)","v":13.181367613332132},{"$f":"SUMIFS(Data!$E:$E,Data!$B:$B,'28'!C$3,Data!$C:$C,'28'!$A$3,Data!$H:$H,'28'!$A10,Data!$F:$F,'28'!$A$2)","v":14.817825541774347},{"$f":"SUMIFS(Data!$E:$E,Data!$B:$B,'28'!D$3,Data!$C:$C,'28'!$A$3,Data!$H:$H,'28'!$A10,Data!$F:$F,'28'!$A$2)","v":21.685460212608472},{"$f":"SUMIFS(Data!$E:$E,Data!$B:$B,'28'!E$3,Data!$C:$C,'28'!$A$3,Data!$H:$H,'28'!$A10,Data!$F:$F,'28'!$A$2)","v":21.378836371566795},{"$f":"SUMIFS(Data!$E:$E,Data!$B:$B,'28'!F$3,Data!$C:$C,'28'!$A$3,Data!$H:$H,'28'!$A10,Data!$F:$F,'28'!$A$2)","v":22.99028439527282},{"$f":"SUMIFS(Data!$E:$E,Data!$B:$B,'28'!G$3,Data!$C:$C,'28'!$A$3,Data!$H:$H,'28'!$A10,Data!$F:$F,'28'!$A$2)","v":27.067082912352024},{"$f":"SUMIFS(Data!$E:$E,Data!$B:$B,'28'!H$3,Data!$C:$C,'28'!$A$3,Data!$H:$H,'28'!$A10,Data!$F:$F,'28'!$A$2)","v":21.360348198616482},{"$f":"SUMIFS(Data!$E:$E,Data!$B:$B,'28'!I$3,Data!$C:$C,'28'!$A$3,Data!$H:$H,'28'!$A10,Data!$F:$F,'28'!$A$2)","v":30.620439241891059},{"$f":"SUMIFS(Data!$E:$E,Data!$B:$B,'28'!J$3,Data!$C:$C,'28'!$A$3,Data!$H:$H,'28'!$A10,Data!$F:$F,'28'!$A$2)","v":13.181367613332132},{"$f":"SUMIFS(Data!$E:$E,Data!$B:$B,'28'!K$3,Data!$C:$C,'28'!$A$3,Data!$H:$H,'28'!$A10,Data!$F:$F,'28'!$A$2)","v":22.99028439527282}]
[" > 35",{"$f":"SUMIFS(Data!$E:$E,Data!$B:$B,'28'!B$3,Data!$C:$C,'28'!$A$3,Data!$H:$H,'28'!$A11,Data!$F:$F,'28'!$A$2)","v":52.246998557668867},{"$f":"SUMIFS(Data!$E:$E,Data!$B:$B,'28'!C$3,Data!$C:$C,'28'!$A$3,Data!$H:$H,'28'!$A11,Data!$F:$F,'28'!$A$2)","v":52.000487267852883},{"$f":"SUMIFS(Data!$E:$E,Data!$B:$B,'28'!D$3,Data!$C:$C,'28'!$A$3,Data!$H:$H,'28'!$A11,Data!$F:$F,'28'!$A$2)","v":41.527100908363273},{"$f":"SUMIFS(Data!$E:$E,Data!$B:$B,'28'!E$3,Data!$C:$C,'28'!$A$3,Data!$H:$H,'28'!$A11,Data!$F:$F,'28'!$A$2)","v":34.290964145967081},{"$f":"SUMIFS(Data!$E:$E,Data!$B:$B,'28'!F$3,Data!$C:$C,'28'!$A$3,Data!$H:$H,'28'!$A11,Data!$F:$F,'28'!$A$2)","v":33.245499867391445},{"$f":"SUMIFS(Data!$E:$E,Data!$B:$B,'28'!G$3,Data!$C:$C,'28'!$A$3,Data!$H:$H,'28'!$A11,Data!$F:$F,'28'!$A$2)","v":33.268532264543047},{"$f":"SUMIFS(Data!$E:$E,Data!$B:$B,'28'!H$3,Data!$C:$C,'28'!$A$3,Data!$H:$H,'28'!$A11,Data!$F:$F,'28'!$A$2)","v":23.662801518319799},{"$f":"SUMIFS(Data!$E:$E,Data!$B:$B,'28'!I$3,Data!$C:$C,'28'!$A$3,Data!$H:$H,'28'!$A11,Data!$F:$F,'28'!$A$2)","v":13.844326079885063},{"$f":"SUMIFS(Data!$E:$E,Data!$B:$B,'28'!J$3,Data!$C:$C,'28'!$A$3,Data!$H:$H,'28'!$A11,Data!$F:$F,'28'!$A$2)","v":52.246998557668867},{"$f":"SUMIFS(Data!$E:$E,Data!$B:$B,'28'!K$3,Data!$C:$C,'28'!$A$3,Data!$H:$H,'28'!$A11,Data!$F:$F,'28'!$A$2)","v":33.245499867391445}]
[{"$f":"VLOOKUP(\"Average amortization period\",Translation!$A$1:$C$354, Translation!A1+1, 0)","v":"Période d’amortissement moyenne"},{"$f":"SUMIFS(Data!$E:$E,Data!$B:$B,'28'!B$3,Data!$C:$C,'28'!$A$3,Data!$H:$H,'28'!$A12,Data!$F:$F,'28'!$A$2)","v":35.764885242652902},{"$f":"SUMIFS(Data!$E:$E,Data!$B:$B,'28'!C$3,Data!$C:$C,'28'!$A$3,Data!$D:$D,'28'!$A12,Data!$F:$F,'28'!$A$2)","v":37.057481523659128},{"$f":"SUMIFS(Data!$E:$E,Data!$B:$B,'28'!D$3,Data!$C:$C,'28'!$A$3,Data!$D:$D,'28'!$A12,Data!$F:$F,'28'!$A$2)","v":34.917001678146342},{"$f":"SUMIFS(Data!$E:$E,Data!$B:$B,'28'!E$3,Data!$C:$C,'28'!$A$3,Data!$D:$D,'28'!$A12,Data!$F:$F,'28'!$A$2)","v":33.870859507018935},{"$f":"SUMIFS(Data!$E:$E,Data!$B:$B,'28'!F$3,Data!$C:$C,'28'!$A$3,Data!$D:$D,'28'!$A12,Data!$F:$F,'28'!$A$2)","v":33.393542347031257},{"$f":"SUMIFS(Data!$E:$E,Data!$B:$B,'28'!G$3,Data!$C:$C,'28'!$A$3,Data!$D:$D,'28'!$A12,Data!$F:$F,'28'!$A$2)","v":34.024956724070996},{"$f":"SUMIFS(Data!$E:$E,Data!$B:$B,'28'!H$3,Data!$C:$C,'28'!$A$3,Data!$D:$D,'28'!$A12,Data!$F:$F,'28'!$A$2)","v":32.343902436546848},{"$f":"SUMIFS(Data!$E:$E,Data!$B:$B,'28'!I$3,Data!$C:$C,'28'!$A$3,Data!$D:$D,'28'!$A12,Data!$F:$F,'28'!$A$2)","v":31.205030155633548},{"$f":"SUMIFS(Data!$E:$E,Data!$B:$B,'28'!J$3,Data!$C:$C,'28'!$A$3,Data!$D:$D,'28'!$A12,Data!$F:$F,'28'!$A$2)","v":35.764885242652902},{"$f":"SUMIFS(Data!$E:$E,Data!$B:$B,'28'!K$3,Data!$C:$C,'28'!$A$3,Data!$D:$D,'28'!$A12,Data!$F:$F,'28'!$A$2)","v":33.393542347031257}]
[{"$f":"VLOOKUP(\"Average amortization period by province\",Translation!$A$1:$C$354, Translation!A1+1, 0)","v":"Période d’amortissement moyenne selon la province"}]
[{"$f":"VLOOKUP(\"Newfoundland and Labrador\",Translation!$A$1:$C$354, Translation!A1+1, 0)","v":"Terre-Neuve-et-Labrador"},{"$f":"IF(SUMIFS(Data!$E:$E,Data!$B:$B,'28'!B$3,Data!$C:$C,'28'!$A$3,Data!$D:$D,'28'!$A14,Data!$F:$F,'28'!$A$13)=0,\"-\",SUMIFS(Data!$E:$E,Data!$B:$B,'28'!B$3,Data!$C:$C,'28'!$A$3,Data!$D:$D,'28'!$A14,Data!$F:$F,'28'!$A$13))","v":25},{"$f":"IF(SUMIFS(Data!$E:$E,Data!$B:$B,'28'!C$3,Data!$C:$C,'28'!$A$3,Data!$D:$D,'28'!$A14,Data!$F:$F,'28'!$A$13)=0,\"-\",SUMIFS(Data!$E:$E,Data!$B:$B,'28'!C$3,Data!$C:$C,'28'!$A$3,Data!$D:$D,'28'!$A14,Data!$F:$F,'28'!$A$13))","v":19.75},{"$f":"IF(SUMIFS(Data!$E:$E,Data!$B:$B,'28'!D$3,Data!$C:$C,'28'!$A$3,Data!$D:$D,'28'!$A14,Data!$F:$F,'28'!$A$13)=0,\"-\",SUMIFS(Data!$E:$E,Data!$B:$B,'28'!D$3,Data!$C:$C,'28'!$A$3,Data!$D:$D,'28'!$A14,Data!$F:$F,'28'!$A$13))","v":"-"},{"$f":"IF(SUMIFS(Data!$E:$E,Data!$B:$B,'28'!E$3,Data!$C:$C,'28'!$A$3,Data!$D:$D,'28'!$A14,Data!$F:$F,'28'!$A$13)=0,\"-\",SUMIFS(Data!$E:$E,Data!$B:$B,'28'!E$3,Data!$C:$C,'28'!$A$3,Data!$D:$D,'28'!$A14,Data!$F:$F,'28'!$A$13))","v":25.326213918238157},{"$f":"IF(SUMIFS(Data!$E:$E,Data!$B:$B,'28'!F$3,Data!$C:$C,'28'!$A$3,Data!$D:$D,'28'!$A14,Data!$F:$F,'28'!$A$13)=0,\"-\",SUMIFS(Data!$E:$E,Data!$B:$B,'28'!F$3,Data!$C:$C,'28'!$A$3,Data!$D:$D,'28'!$A14,Data!$F:$F,'28'!$A$13))","v":"-"},{"$f":"IF(SUMIFS(Data!$E:$E,Data!$B:$B,'28'!G$3,Data!$C:$C,'28'!$A$3,Data!$D:$D,'28'!$A14,Data!$F:$F,'28'!$A$13)=0,\"-\",SUMIFS(Data!$E:$E,Data!$B:$B,'28'!G$3,Data!$C:$C,'28'!$A$3,Data!$D:$D,'28'!$A14,Data!$F:$F,'28'!$A$13))","v":25},{"$f":"IF(SUMIFS(Data!$E:$E,Data!$B:$B,'28'!H$3,Data!$C:$C,'28'!$A$3,Data!$D:$D,'28'!$A14,Data!$F:$F,'28'!$A$13)=0,\"-\",SUMIFS(Data!$E:$E,Data!$B:$B,'28'!H$3,Data!$C:$C,'28'!$A$3,Data!$D:$D,'28'!$A14,Data!$F:$F,'28'!$A$13))","v":26.426886186459704},{"$f":"IF(SUMIFS(Data!$E:$E,Data!$B:$B,'28'!I$3,Data!$C:$C,'28'!$A$3,Data!$D:$D,'28'!$A14,Data!$F:$F,'28'!$A$13)=0,\"-\",SUMIFS(Data!$E:$E,Data!$B:$B,'28'!I$3,Data!$C:$C,'28'!$A$3,Data!$D:$D,'28'!$A14,Data!$F:$F,'28'!$A$13))","v":"-"},{"$f":"IF(SUMIFS(Data!$E:$E,Data!$B:$B,'28'!J$3,Data!$C:$C,'28'!$A$3,Data!$D:$D,'28'!$A14,Data!$F:$F,'28'!$A$13)=0,\"-\",SUMIFS(Data!$E:$E,Data!$B:$B,'28'!J$3,Data!$C:$C,'28'!$A$3,Data!$D:$D,'28'!$A14,Data!$F:$F,'28'!$A$13))","v":25},{"$f":"IF(SUMIFS(Data!$E:$E,Data!$B:$B,'28'!K$3,Data!$C:$C,'28'!$A$3,Data!$D:$D,'28'!$A14,Data!$F:$F,'28'!$A$13)=0,\"-\",SUMIFS(Data!$E:$E,Data!$B:$B,'28'!K$3,Data!$C:$C,'28'!$A$3,Data!$D:$D,'28'!$A14,Data!$F:$F,'28'!$A$13))","v":"-"}]
[{"$f":"VLOOKUP(\"Prince Edward Island\",Translation!$A$1:$C$354, Translation!A1+1, 0)","v":"Île-du-Prince-Édouard"},{"$f":"IF(SUMIFS(Data!$E:$E,Data!$B:$B,'28'!B$3,Data!$C:$C,'28'!$A$3,Data!$D:$D,'28'!$A15,Data!$F:$F,'28'!$A$13)=0,\"-\",SUMIFS(Data!$E:$E,Data!$B:$B,'28'!B$3,Data!$C:$C,'28'!$A$3,Data!$D:$D,'28'!$A15,Data!$F:$F,'28'!$A$13))","v":25},{"$f":"IF(SUMIFS(Data!$E:$E,Data!$B:$B,'28'!C$3,Data!$C:$C,'28'!$A$3,Data!$D:$D,'28'!$A15,Data!$F:$F,'28'!$A$13)=0,\"-\",SUMIFS(Data!$E:$E,Data!$B:$B,'28'!C$3,Data!$C:$C,'28'!$A$3,Data!$D:$D,'28'!$A15,Data!$F:$F,'28'!$A$13))","v":40.215396787046075},{"$f":"IF(SUMIFS(Data!$E:$E,Data!$B:$B,'28'!D$3,Data!$C:$C,'28'!$A$3,Data!$D:$D,'28'!$A15,Data!$F:$F,'28'!$A$13)=0,\"-\",SUMIFS(Data!$E:$E,Data!$B:$B,'28'!D$3,Data!$C:$C,'28'!$A$3,Data!$D:$D,'28'!$A15,Data!$F:$F,'28'!$A$13))","v":25},{"$f":"IF(SUMIFS(Data!$E:$E,Data!$B:$B,'28'!E$3,Data!$C:$C,'28'!$A$3,Data!$D:$D,'28'!$A15,Data!$F:$F,'28'!$A$13)=0,\"-\",SUMIFS(Data!$E:$E,Data!$B:$B,'28'!E$3,Data!$C:$C,'28'!$A$3,Data!$D:$D,'28'!$A15,Data!$F:$F,'28'!$A$13))","v":16.903460504548669},{"$f":"IF(SUMIFS(Data!$E:$E,Data!$B:$B,'28'!F$3,Data!$C:$C,'28'!$A$3,Data!$D:$D,'28'!$A15,Data!$F:$F,'28'!$A$13)=0,\"-\",SUMIFS(Data!$E:$E,Data!$B:$B,'28'!F$3,Data!$C:$C,'28'!$A$3,Data!$D:$D,'28'!$A15,Data!$F:$F,'28'!$A$13))","v":24.155721129396344},{"$f":"IF(SUMIFS(Data!$E:$E,Data!$B:$B,'28'!G$3,Data!$C:$C,'28'!$A$3,Data!$D:$D,'28'!$A15,Data!$F:$F,'28'!$A$13)=0,\"-\",SUMIFS(Data!$E:$E,Data!$B:$B,'28'!G$3,Data!$C:$C,'28'!$A$3,Data!$D:$D,'28'!$A15,Data!$F:$F,'28'!$A$13))","v":25},{"$f":"IF(SUMIFS(Data!$E:$E,Data!$B:$B,'28'!H$3,Data!$C:$C,'28'!$A$3,Data!$D:$D,'28'!$A15,Data!$F:$F,'28'!$A$13)=0,\"-\",SUMIFS(Data!$E:$E,Data!$B:$B,'28'!H$3,Data!$C:$C,'28'!$A$3,Data!$D:$D,'28'!$A15,Data!$F:$F,'28'!$A$13))","v":27.116946905359697},{"$f":"IF(SUMIFS(Data!$E:$E,Data!$B:$B,'28'!I$3,Data!$C:$C,'28'!$A$3,Data!$D:$D,'28'!$A15,Data!$F:$F,'28'!$A$13)=0,\"-\",SUMIFS(Data!$E:$E,Data!$B:$B,'28'!I$3,Data!$C:$C,'28'!$A$3,Data!$D:$D,'28'!$A15,Data!$F:$F,'28'!$A$13))","v":25},{"$f":"IF(SUMIFS(Data!$E:$E,Data!$B:$B,'28'!J$3,Data!$C:$C,'28'!$A$3,Data!$D:$D,'28'!$A15,Data!$F:$F,'28'!$A$13)=0,\"-\",SUMIFS(Data!$E:$E,Data!$B:$B,'28'!J$3,Data!$C:$C,'28'!$A$3,Data!$D:$D,'28'!$A15,Data!$F:$F,'28'!$A$13))","v":25},{"$f":"IF(SUMIFS(Data!$E:$E,Data!$B:$B,'28'!K$3,Data!$C:$C,'28'!$A$3,Data!$D:$D,'28'!$A15,Data!$F:$F,'28'!$A$13)=0,\"-\",SUMIFS(Data!$E:$E,Data!$B:$B,'28'!K$3,Data!$C:$C,'28'!$A$3,Data!$D:$D,'28'!$A15,Data!$F:$F,'28'!$A$13))","v":24.155721129396344}]
[{"$f":"VLOOKUP(\"Nova Scotia\",Translation!$A$1:$C$354, Translation!A1+1, 0)","v":"Nouvelle-Écosse"},{"$f":"IF(SUMIFS(Data!$E:$E,Data!$B:$B,'28'!B$3,Data!$C:$C,'28'!$A$3,Data!$D:$D,'28'!$A16,Data!$F:$F,'28'!$A$13)=0,\"-\",SUMIFS(Data!$E:$E,Data!$B:$B,'28'!B$3,Data!$C:$C,'28'!$A$3,Data!$D:$D,'28'!$A16,Data!$F:$F,'28'!$A$13))","v":33.094734785101409},{"$f":"IF(SUMIFS(Data!$E:$E,Data!$B:$B,'28'!C$3,Data!$C:$C,'28'!$A$3,Data!$D:$D,'28'!$A16,Data!$F:$F,'28'!$A$13)=0,\"-\",SUMIFS(Data!$E:$E,Data!$B:$B,'28'!C$3,Data!$C:$C,'28'!$A$3,Data!$D:$D,'28'!$A16,Data!$F:$F,'28'!$A$13))","v":32.543378337083794},{"$f":"IF(SUMIFS(Data!$E:$E,Data!$B:$B,'28'!D$3,Data!$C:$C,'28'!$A$3,Data!$D:$D,'28'!$A16,Data!$F:$F,'28'!$A$13)=0,\"-\",SUMIFS(Data!$E:$E,Data!$B:$B,'28'!D$3,Data!$C:$C,'28'!$A$3,Data!$D:$D,'28'!$A16,Data!$F:$F,'28'!$A$13))","v":33.08494321242609},{"$f":"IF(SUMIFS(Data!$E:$E,Data!$B:$B,'28'!E$3,Data!$C:$C,'28'!$A$3,Data!$D:$D,'28'!$A16,Data!$F:$F,'28'!$A$13)=0,\"-\",SUMIFS(Data!$E:$E,Data!$B:$B,'28'!E$3,Data!$C:$C,'28'!$A$3,Data!$D:$D,'28'!$A16,Data!$F:$F,'28'!$A$13))","v":32.260960937096677},{"$f":"IF(SUMIFS(Data!$E:$E,Data!$B:$B,'28'!F$3,Data!$C:$C,'28'!$A$3,Data!$D:$D,'28'!$A16,Data!$F:$F,'28'!$A$13)=0,\"-\",SUMIFS(Data!$E:$E,Data!$B:$B,'28'!F$3,Data!$C:$C,'28'!$A$3,Data!$D:$D,'28'!$A16,Data!$F:$F,'28'!$A$13))","v":34.305943471714187},{"$f":"IF(SUMIFS(Data!$E:$E,Data!$B:$B,'28'!G$3,Data!$C:$C,'28'!$A$3,Data!$D:$D,'28'!$A16,Data!$F:$F,'28'!$A$13)=0,\"-\",SUMIFS(Data!$E:$E,Data!$B:$B,'28'!G$3,Data!$C:$C,'28'!$A$3,Data!$D:$D,'28'!$A16,Data!$F:$F,'28'!$A$13))","v":33.317919779143438},{"$f":"IF(SUMIFS(Data!$E:$E,Data!$B:$B,'28'!H$3,Data!$C:$C,'28'!$A$3,Data!$D:$D,'28'!$A16,Data!$F:$F,'28'!$A$13)=0,\"-\",SUMIFS(Data!$E:$E,Data!$B:$B,'28'!H$3,Data!$C:$C,'28'!$A$3,Data!$D:$D,'28'!$A16,Data!$F:$F,'28'!$A$13))","v":31.952174599857742},{"$f":"IF(SUMIFS(Data!$E:$E,Data!$B:$B,'28'!I$3,Data!$C:$C,'28'!$A$3,Data!$D:$D,'28'!$A16,Data!$F:$F,'28'!$A$13)=0,\"-\",SUMIFS(Data!$E:$E,Data!$B:$B,'28'!I$3,Data!$C:$C,'28'!$A$3,Data!$D:$D,'28'!$A16,Data!$F:$F,'28'!$A$13))","v":31.657840533123498},{"$f":"IF(SUMIFS(Data!$E:$E,Data!$B:$B,'28'!J$3,Data!$C:$C,'28'!$A$3,Data!$D:$D,'28'!$A16,Data!$F:$F,'28'!$A$13)=0,\"-\",SUMIFS(Data!$E:$E,Data!$B:$B,'28'!J$3,Data!$C:$C,'28'!$A$3,Data!$D:$D,'28'!$A16,Data!$F:$F,'28'!$A$13))","v":33.094734785101409},{"$f":"IF(SUMIFS(Data!$E:$E,Data!$B:$B,'28'!K$3,Data!$C:$C,'28'!$A$3,Data!$D:$D,'28'!$A16,Data!$F:$F,'28'!$A$13)=0,\"-\",SUMIFS(Data!$E:$E,Data!$B:$B,'28'!K$3,Data!$C:$C,'28'!$A$3,Data!$D:$D,'28'!$A16,Data!$F:$F,'28'!$A$13))","v":34.305943471714187}]
[{"$f":"VLOOKUP(\"New Brunswick\",Translation!$A$1:$C$354, Translation!A1+1, 0)","v":"Nouveau-Brunswick"},{"$f":"IF(SUMIFS(Data!$E:$E,Data!$B:$B,'28'!B$3,Data!$C:$C,'28'!$A$3,Data!$D:$D,'28'!$A17,Data!$F:$F,'28'!$A$13)=0,\"-\",SUMIFS(Data!$E:$E,Data!$B:$B,'28'!B$3,Data!$C:$C,'28'!$A$3,Data!$D:$D,'28'!$A17,Data!$F:$F,'28'!$A$13))","v":33.244289988545944},{"$f":"IF(SUMIFS(Data!$E:$E,Data!$B:$B,'28'!C$3,Data!$C:$C,'28'!$A$3,Data!$D:$D,'28'!$A17,Data!$F:$F,'28'!$A$13)=0,\"-\",SUMIFS(Data!$E:$E,Data!$B:$B,'28'!C$3,Data!$C:$C,'28'!$A$3,Data!$D:$D,'28'!$A17,Data!$F:$F,'28'!$A$13))","v":28.474645882534599},{"$f":"IF(SUMIFS(Data!$E:$E,Data!$B:$B,'28'!D$3,Data!$C:$C,'28'!$A$3,Data!$D:$D,'28'!$A17,Data!$F:$F,'28'!$A$13)=0,\"-\",SUMIFS(Data!$E:$E,Data!$B:$B,'28'!D$3,Data!$C:$C,'28'!$A$3,Data!$D:$D,'28'!$A17,Data!$F:$F,'28'!$A$13))","v":28.742612256597425},{"$f":"IF(SUMIFS(Data!$E:$E,Data!$B:$B,'28'!E$3,Data!$C:$C,'28'!$A$3,Data!$D:$D,'28'!$A17,Data!$F:$F,'28'!$A$13)=0,\"-\",SUMIFS(Data!$E:$E,Data!$B:$B,'28'!E$3,Data!$C:$C,'28'!$A$3,Data!$D:$D,'28'!$A17,Data!$F:$F,'28'!$A$13))","v":30.836491524238003},{"$f":"IF(SUMIFS(Data!$E:$E,Data!$B:$B,'28'!F$3,Data!$C:$C,'28'!$A$3,Data!$D:$D,'28'!$A17,Data!$F:$F,'28'!$A$13)=0,\"-\",SUMIFS(Data!$E:$E,Data!$B:$B,'28'!F$3,Data!$C:$C,'28'!$A$3,Data!$D:$D,'28'!$A17,Data!$F:$F,'28'!$A$13))","v":28.977408446353312},{"$f":"IF(SUMIFS(Data!$E:$E,Data!$B:$B,'28'!G$3,Data!$C:$C,'28'!$A$3,Data!$D:$D,'28'!$A17,Data!$F:$F,'28'!$A$13)=0,\"-\",SUMIFS(Data!$E:$E,Data!$B:$B,'28'!G$3,Data!$C:$C,'28'!$A$3,Data!$D:$D,'28'!$A17,Data!$F:$F,'28'!$A$13))","v":28.98977483502016},{"$f":"IF(SUMIFS(Data!$E:$E,Data!$B:$B,'28'!H$3,Data!$C:$C,'28'!$A$3,Data!$D:$D,'28'!$A17,Data!$F:$F,'28'!$A$13)=0,\"-\",SUMIFS(Data!$E:$E,Data!$B:$B,'28'!H$3,Data!$C:$C,'28'!$A$3,Data!$D:$D,'28'!$A17,Data!$F:$F,'28'!$A$13))","v":30.897997690828301},{"$f":"IF(SUMIFS(Data!$E:$E,Data!$B:$B,'28'!I$3,Data!$C:$C,'28'!$A$3,Data!$D:$D,'28'!$A17,Data!$F:$F,'28'!$A$13)=0,\"-\",SUMIFS(Data!$E:$E,Data!$B:$B,'28'!I$3,Data!$C:$C,'28'!$A$3,Data!$D:$D,'28'!$A17,Data!$F:$F,'28'!$A$13))","v":26.928962557665113},{"$f":"IF(SUMIFS(Data!$E:$E,Data!$B:$B,'28'!J$3,Data!$C:$C,'28'!$A$3,Data!$D:$D,'28'!$A17,Data!$F:$F,'28'!$A$13)=0,\"-\",SUMIFS(Data!$E:$E,Data!$B:$B,'28'!J$3,Data!$C:$C,'28'!$A$3,Data!$D:$D,'28'!$A17,Data!$F:$F,'28'!$A$13))","v":33.244289988545944},{"$f":"IF(SUMIFS(Data!$E:$E,Data!$B:$B,'28'!K$3,Data!$C:$C,'28'!$A$3,Data!$D:$D,'28'!$A17,Data!$F:$F,'28'!$A$13)=0,\"-\",SUMIFS(Data!$E:$E,Data!$B:$B,'28'!K$3,Data!$C:$C,'28'!$A$3,Data!$D:$D,'28'!$A17,Data!$F:$F,'28'!$A$13))","v":28.977408446353312}]
[{"$f":"VLOOKUP(\"Quebec\",Translation!$A$1:$C$354, Translation!A1+1, 0)","v":"Québec"},{"$f":"IF(SUMIFS(Data!$E:$E,Data!$B:$B,'28'!B$3,Data!$C:$C,'28'!$A$3,Data!$D:$D,'28'!$A18,Data!$F:$F,'28'!$A$13)=0,\"-\",SUMIFS(Data!$E:$E,Data!$B:$B,'28'!B$3,Data!$C:$C,'28'!$A$3,Data!$D:$D,'28'!$A18,Data!$F:$F,'28'!$A$13))","v":33.543153212507903},{"$f":"IF(SUMIFS(Data!$E:$E,Data!$B:$B,'28'!C$3,Data!$C:$C,'28'!$A$3,Data!$D:$D,'28'!$A18,Data!$F:$F,'28'!$A$13)=0,\"-\",SUMIFS(Data!$E:$E,Data!$B:$B,'28'!C$3,Data!$C:$C,'28'!$A$3,Data!$D:$D,'28'!$A18,Data!$F:$F,'28'!$A$13))","v":36.080378421707024},{"$f":"IF(SUMIFS(Data!$E:$E,Data!$B:$B,'28'!D$3,Data!$C:$C,'28'!$A$3,Data!$D:$D,'28'!$A18,Data!$F:$F,'28'!$A$13)=0,\"-\",SUMIFS(Data!$E:$E,Data!$B:$B,'28'!D$3,Data!$C:$C,'28'!$A$3,Data!$D:$D,'28'!$A18,Data!$F:$F,'28'!$A$13))","v":34.315383159776907},{"$f":"IF(SUMIFS(Data!$E:$E,Data!$B:$B,'28'!E$3,Data!$C:$C,'28'!$A$3,Data!$D:$D,'28'!$A18,Data!$F:$F,'28'!$A$13)=0,\"-\",SUMIFS(Data!$E:$E,Data!$B:$B,'28'!E$3,Data!$C:$C,'28'!$A$3,Data!$D:$D,'28'!$A18,Data!$F:$F,'28'!$A$13))","v":34.518386901993701},{"$f":"IF(SUMIFS(Data!$E:$E,Data!$B:$B,'28'!F$3,Data!$C:$C,'28'!$A$3,Data!$D:$D,'28'!$A18,Data!$F:$F,'28'!$A$13)=0,\"-\",SUMIFS(Data!$E:$E,Data!$B:$B,'28'!F$3,Data!$C:$C,'28'!$A$3,Data!$D:$D,'28'!$A18,Data!$F:$F,'28'!$A$13))","v":35.13090644414514},{"$f":"IF(SUMIFS(Data!$E:$E,Data!$B:$B,'28'!G$3,Data!$C:$C,'28'!$A$3,Data!$D:$D,'28'!$A18,Data!$F:$F,'28'!$A$13)=0,\"-\",SUMIFS(Data!$E:$E,Data!$B:$B,'28'!G$3,Data!$C:$C,'28'!$A$3,Data!$D:$D,'28'!$A18,Data!$F:$F,'28'!$A$13))","v":34.498455766549746},{"$f":"IF(SUMIFS(Data!$E:$E,Data!$B:$B,'28'!H$3,Data!$C:$C,'28'!$A$3,Data!$D:$D,'28'!$A18,Data!$F:$F,'28'!$A$13)=0,\"-\",SUMIFS(Data!$E:$E,Data!$B:$B,'28'!H$3,Data!$C:$C,'28'!$A$3,Data!$D:$D,'28'!$A18,Data!$F:$F,'28'!$A$13))","v":33.163011090266075},{"$f":"IF(SUMIFS(Data!$E:$E,Data!$B:$B,'28'!I$3,Data!$C:$C,'28'!$A$3,Data!$D:$D,'28'!$A18,Data!$F:$F,'28'!$A$13)=0,\"-\",SUMIFS(Data!$E:$E,Data!$B:$B,'28'!I$3,Data!$C:$C,'28'!$A$3,Data!$D:$D,'28'!$A18,Data!$F:$F,'28'!$A$13))","v":33.508469104125723},{"$f":"IF(SUMIFS(Data!$E:$E,Data!$B:$B,'28'!J$3,Data!$C:$C,'28'!$A$3,Data!$D:$D,'28'!$A18,Data!$F:$F,'28'!$A$13)=0,\"-\",SUMIFS(Data!$E:$E,Data!$B:$B,'28'!J$3,Data!$C:$C,'28'!$A$3,Data!$D:$D,'28'!$A18,Data!$F:$F,'28'!$A$13))","v":33.543153212507903},{"$f":"IF(SUMIFS(Data!$E:$E,Data!$B:$B,'28'!K$3,Data!$C:$C,'28'!$A$3,Data!$D:$D,'28'!$A18,Data!$F:$F,'28'!$A$13)=0,\"-\",SUMIFS(Data!$E:$E,Data!$B:$B,'28'!K$3,Data!$C:$C,'28'!$A$3,Data!$D:$D,'28'!$A18,Data!$F:$F,'28'!$A$13))","v":35.13090644414514}]
[{"$f":"VLOOKUP(\"Ontario\",Translation!$A$1:$C$354, Translation!A1+1, 0)","v":"Ontario"},{"$f":"IF(SUMIFS(Data!$E:$E,Data!$B:$B,'28'!B$3,Data!$C:$C,'28'!$A$3,Data!$D:$D,'28'!$A19,Data!$F:$F,'28'!$A$13)=0,\"-\",SUMIFS(Data!$E:$E,Data!$B:$B,'28'!B$3,Data!$C:$C,'28'!$A$3,Data!$D:$D,'28'!$A19,Data!$F:$F,'28'!$A$13))","v":37.61140139293115},{"$f":"IF(SUMIFS(Data!$E:$E,Data!$B:$B,'28'!C$3,Data!$C:$C,'28'!$A$3,Data!$D:$D,'28'!$A19,Data!$F:$F,'28'!$A$13)=0,\"-\",SUMIFS(Data!$E:$E,Data!$B:$B,'28'!C$3,Data!$C:$C,'28'!$A$3,Data!$D:$D,'28'!$A19,Data!$F:$F,'28'!$A$13))","v":40.159796951840633},{"$f":"IF(SUMIFS(Data!$E:$E,Data!$B:$B,'28'!D$3,Data!$C:$C,'28'!$A$3,Data!$D:$D,'28'!$A19,Data!$F:$F,'28'!$A$13)=0,\"-\",SUMIFS(Data!$E:$E,Data!$B:$B,'28'!D$3,Data!$C:$C,'28'!$A$3,Data!$D:$D,'28'!$A19,Data!$F:$F,'28'!$A$13))","v":34.865044916997974},{"$f":"IF(SUMIFS(Data!$E:$E,Data!$B:$B,'28'!E$3,Data!$C:$C,'28'!$A$3,Data!$D:$D,'28'!$A19,Data!$F:$F,'28'!$A$13)=0,\"-\",SUMIFS(Data!$E:$E,Data!$B:$B,'28'!E$3,Data!$C:$C,'28'!$A$3,Data!$D:$D,'28'!$A19,Data!$F:$F,'28'!$A$13))","v":31.33370914536539},{"$f":"IF(SUMIFS(Data!$E:$E,Data!$B:$B,'28'!F$3,Data!$C:$C,'28'!$A$3,Data!$D:$D,'28'!$A19,Data!$F:$F,'28'!$A$13)=0,\"-\",SUMIFS(Data!$E:$E,Data!$B:$B,'28'!F$3,Data!$C:$C,'28'!$A$3,Data!$D:$D,'28'!$A19,Data!$F:$F,'28'!$A$13))","v":32.789778074231094},{"$f":"IF(SUMIFS(Data!$E:$E,Data!$B:$B,'28'!G$3,Data!$C:$C,'28'!$A$3,Data!$D:$D,'28'!$A19,Data!$F:$F,'28'!$A$13)=0,\"-\",SUMIFS(Data!$E:$E,Data!$B:$B,'28'!G$3,Data!$C:$C,'28'!$A$3,Data!$D:$D,'28'!$A19,Data!$F:$F,'28'!$A$13))","v":32.685499023358858},{"$f":"IF(SUMIFS(Data!$E:$E,Data!$B:$B,'28'!H$3,Data!$C:$C,'28'!$A$3,Data!$D:$D,'28'!$A19,Data!$F:$F,'28'!$A$13)=0,\"-\",SUMIFS(Data!$E:$E,Data!$B:$B,'28'!H$3,Data!$C:$C,'28'!$A$3,Data!$D:$D,'28'!$A19,Data!$F:$F,'28'!$A$13))","v":31.601298097748661},{"$f":"IF(SUMIFS(Data!$E:$E,Data!$B:$B,'28'!I$3,Data!$C:$C,'28'!$A$3,Data!$D:$D,'28'!$A19,Data!$F:$F,'28'!$A$13)=0,\"-\",SUMIFS(Data!$E:$E,Data!$B:$B,'28'!I$3,Data!$C:$C,'28'!$A$3,Data!$D:$D,'28'!$A19,Data!$F:$F,'28'!$A$13))","v":29.330519383947507},{"$f":"IF(SUMIFS(Data!$E:$E,Data!$B:$B,'28'!J$3,Data!$C:$C,'28'!$A$3,Data!$D:$D,'28'!$A19,Data!$F:$F,'28'!$A$13)=0,\"-\",SUMIFS(Data!$E:$E,Data!$B:$B,'28'!J$3,Data!$C:$C,'28'!$A$3,Data!$D:$D,'28'!$A19,Data!$F:$F,'28'!$A$13))","v":37.61140139293115},{"$f":"IF(SUMIFS(Data!$E:$E,Data!$B:$B,'28'!K$3,Data!$C:$C,'28'!$A$3,Data!$D:$D,'28'!$A19,Data!$F:$F,'28'!$A$13)=0,\"-\",SUMIFS(Data!$E:$E,Data!$B:$B,'28'!K$3,Data!$C:$C,'28'!$A$3,Data!$D:$D,'28'!$A19,Data!$F:$F,'28'!$A$13))","v":32.789778074231094}]
[{"$f":"VLOOKUP(\"Manitoba\",Translation!$A$1:$C$354, Translation!A1+1, 0)","v":"Manitoba"},{"$f":"IF(SUMIFS(Data!$E:$E,Data!$B:$B,'28'!B$3,Data!$C:$C,'28'!$A$3,Data!$D:$D,'28'!$A20,Data!$F:$F,'28'!$A$13)=0,\"-\",SUMIFS(Data!$E:$E,Data!$B:$B,'28'!B$3,Data!$C:$C,'28'!$A$3,Data!$D:$D,'28'!$A20,Data!$F:$F,'28'!$A$13))","v":32.851924665267525},{"$f":"IF(SUMIFS(Data!$E:$E,Data!$B:$B,'28'!C$3,Data!$C:$C,'28'!$A$3,Data!$D:$D,'28'!$A20,Data!$F:$F,'28'!$A$13)=0,\"-\",SUMIFS(Data!$E:$E,Data!$B:$B,'28'!C$3,Data!$C:$C,'28'!$A$3,Data!$D:$D,'28'!$A20,Data!$F:$F,'28'!$A$13))","v":33.839118632486056},{"$f":"IF(SUMIFS(Data!$E:$E,Data!$B:$B,'28'!D$3,Data!$C:$C,'28'!$A$3,Data!$D:$D,'28'!$A20,Data!$F:$F,'28'!$A$13)=0,\"-\",SUMIFS(Data!$E:$E,Data!$B:$B,'28'!D$3,Data!$C:$C,'28'!$A$3,Data!$D:$D,'28'!$A20,Data!$F:$F,'28'!$A$13))","v":37.412991347457186},{"$f":"IF(SUMIFS(Data!$E:$E,Data!$B:$B,'28'!E$3,Data!$C:$C,'28'!$A$3,Data!$D:$D,'28'!$A20,Data!$F:$F,'28'!$A$13)=0,\"-\",SUMIFS(Data!$E:$E,Data!$B:$B,'28'!E$3,Data!$C:$C,'28'!$A$3,Data!$D:$D,'28'!$A20,Data!$F:$F,'28'!$A$13))","v":33.384694860387945},{"$f":"IF(SUMIFS(Data!$E:$E,Data!$B:$B,'28'!F$3,Data!$C:$C,'28'!$A$3,Data!$D:$D,'28'!$A20,Data!$F:$F,'28'!$A$13)=0,\"-\",SUMIFS(Data!$E:$E,Data!$B:$B,'28'!F$3,Data!$C:$C,'28'!$A$3,Data!$D:$D,'28'!$A20,Data!$F:$F,'28'!$A$13))","v":32.241431417380475},{"$f":"IF(SUMIFS(Data!$E:$E,Data!$B:$B,'28'!G$3,Data!$C:$C,'28'!$A$3,Data!$D:$D,'28'!$A20,Data!$F:$F,'28'!$A$13)=0,\"-\",SUMIFS(Data!$E:$E,Data!$B:$B,'28'!G$3,Data!$C:$C,'28'!$A$3,Data!$D:$D,'28'!$A20,Data!$F:$F,'28'!$A$13))","v":32.947086916912085},{"$f":"IF(SUMIFS(Data!$E:$E,Data!$B:$B,'28'!H$3,Data!$C:$C,'28'!$A$3,Data!$D:$D,'28'!$A20,Data!$F:$F,'28'!$A$13)=0,\"-\",SUMIFS(Data!$E:$E,Data!$B:$B,'28'!H$3,Data!$C:$C,'28'!$A$3,Data!$D:$D,'28'!$A20,Data!$F:$F,'28'!$A$13))","v":34.542546648219435},{"$f":"IF(SUMIFS(Data!$E:$E,Data!$B:$B,'28'!I$3,Data!$C:$C,'28'!$A$3,Data!$D:$D,'28'!$A20,Data!$F:$F,'28'!$A$13)=0,\"-\",SUMIFS(Data!$E:$E,Data!$B:$B,'28'!I$3,Data!$C:$C,'28'!$A$3,Data!$D:$D,'28'!$A20,Data!$F:$F,'28'!$A$13))","v":26.066229008123123},{"$f":"IF(SUMIFS(Data!$E:$E,Data!$B:$B,'28'!J$3,Data!$C:$C,'28'!$A$3,Data!$D:$D,'28'!$A20,Data!$F:$F,'28'!$A$13)=0,\"-\",SUMIFS(Data!$E:$E,Data!$B:$B,'28'!J$3,Data!$C:$C,'28'!$A$3,Data!$D:$D,'28'!$A20,Data!$F:$F,'28'!$A$13))","v":32.851924665267525},{"$f":"IF(SUMIFS(Data!$E:$E,Data!$B:$B,'28'!K$3,Data!$C:$C,'28'!$A$3,Data!$D:$D,'28'!$A20,Data!$F:$F,'28'!$A$13)=0,\"-\",SUMIFS(Data!$E:$E,Data!$B:$B,'28'!K$3,Data!$C:$C,'28'!$A$3,Data!$D:$D,'28'!$A20,Data!$F:$F,'28'!$A$13))","v":32.241431417380475}]
[{"$f":"VLOOKUP(\"Saskatchewan\",Translation!$A$1:$C$354, Translation!A1+1, 0)","v":"Saskatchewan"},{"$f":"IF(SUMIFS(Data!$E:$E,Data!$B:$B,'28'!B$3,Data!$C:$C,'28'!$A$3,Data!$D:$D,'28'!$A21,Data!$F:$F,'28'!$A$13)=0,\"-\",SUMIFS(Data!$E:$E,Data!$B:$B,'28'!B$3,Data!$C:$C,'28'!$A$3,Data!$D:$D,'28'!$A21,Data!$F:$F,'28'!$A$13))","v":36.025620488832999},{"$f":"IF(SUMIFS(Data!$E:$E,Data!$B:$B,'28'!C$3,Data!$C:$C,'28'!$A$3,Data!$D:$D,'28'!$A21,Data!$F:$F,'28'!$A$13)=0,\"-\",SUMIFS(Data!$E:$E,Data!$B:$B,'28'!C$3,Data!$C:$C,'28'!$A$3,Data!$D:$D,'28'!$A21,Data!$F:$F,'28'!$A$13))","v":39.200140806575376},{"$f":"IF(SUMIFS(Data!$E:$E,Data!$B:$B,'28'!D$3,Data!$C:$C,'28'!$A$3,Data!$D:$D,'28'!$A21,Data!$F:$F,'28'!$A$13)=0,\"-\",SUMIFS(Data!$E:$E,Data!$B:$B,'28'!D$3,Data!$C:$C,'28'!$A$3,Data!$D:$D,'28'!$A21,Data!$F:$F,'28'!$A$13))","v":39.507273052195011},{"$f":"IF(SUMIFS(Data!$E:$E,Data!$B:$B,'28'!E$3,Data!$C:$C,'28'!$A$3,Data!$D:$D,'28'!$A21,Data!$F:$F,'28'!$A$13)=0,\"-\",SUMIFS(Data!$E:$E,Data!$B:$B,'28'!E$3,Data!$C:$C,'28'!$A$3,Data!$D:$D,'28'!$A21,Data!$F:$F,'28'!$A$13))","v":37.463864579838813},{"$f":"IF(SUMIFS(Data!$E:$E,Data!$B:$B,'28'!F$3,Data!$C:$C,'28'!$A$3,Data!$D:$D,'28'!$A21,Data!$F:$F,'28'!$A$13)=0,\"-\",SUMIFS(Data!$E:$E,Data!$B:$B,'28'!F$3,Data!$C:$C,'28'!$A$3,Data!$D:$D,'28'!$A21,Data!$F:$F,'28'!$A$13))","v":33.499473510290713},{"$f":"IF(SUMIFS(Data!$E:$E,Data!$B:$B,'28'!G$3,Data!$C:$C,'28'!$A$3,Data!$D:$D,'28'!$A21,Data!$F:$F,'28'!$A$13)=0,\"-\",SUMIFS(Data!$E:$E,Data!$B:$B,'28'!G$3,Data!$C:$C,'28'!$A$3,Data!$D:$D,'28'!$A21,Data!$F:$F,'28'!$A$13))","v":38.774625330520287},{"$f":"IF(SUMIFS(Data!$E:$E,Data!$B:$B,'28'!H$3,Data!$C:$C,'28'!$A$3,Data!$D:$D,'28'!$A21,Data!$F:$F,'28'!$A$13)=0,\"-\",SUMIFS(Data!$E:$E,Data!$B:$B,'28'!H$3,Data!$C:$C,'28'!$A$3,Data!$D:$D,'28'!$A21,Data!$F:$F,'28'!$A$13))","v":38.220784970207504},{"$f":"IF(SUMIFS(Data!$E:$E,Data!$B:$B,'28'!I$3,Data!$C:$C,'28'!$A$3,Data!$D:$D,'28'!$A21,Data!$F:$F,'28'!$A$13)=0,\"-\",SUMIFS(Data!$E:$E,Data!$B:$B,'28'!I$3,Data!$C:$C,'28'!$A$3,Data!$D:$D,'28'!$A21,Data!$F:$F,'28'!$A$13))","v":32.750445837229059},{"$f":"IF(SUMIFS(Data!$E:$E,Data!$B:$B,'28'!J$3,Data!$C:$C,'28'!$A$3,Data!$D:$D,'28'!$A21,Data!$F:$F,'28'!$A$13)=0,\"-\",SUMIFS(Data!$E:$E,Data!$B:$B,'28'!J$3,Data!$C:$C,'28'!$A$3,Data!$D:$D,'28'!$A21,Data!$F:$F,'28'!$A$13))","v":36.025620488832999},{"$f":"IF(SUMIFS(Data!$E:$E,Data!$B:$B,'28'!K$3,Data!$C:$C,'28'!$A$3,Data!$D:$D,'28'!$A21,Data!$F:$F,'28'!$A$13)=0,\"-\",SUMIFS(Data!$E:$E,Data!$B:$B,'28'!K$3,Data!$C:$C,'28'!$A$3,Data!$D:$D,'28'!$A21,Data!$F:$F,'28'!$A$13))","v":33.499473510290713}]
[{"$f":"VLOOKUP(\"Alberta\",Translation!$A$1:$C$354, Translation!A1+1, 0)","v":"Alberta"},{"$f":"IF(SUMIFS(Data!$E:$E,Data!$B:$B,'28'!B$3,Data!$C:$C,'28'!$A$3,Data!$D:$D,'28'!$A22,Data!$F:$F,'28'!$A$13)=0,\"-\",SUMIFS(Data!$E:$E,Data!$B:$B,'28'!B$3,Data!$C:$C,'28'!$A$3,Data!$D:$D,'28'!$A22,Data!$F:$F,'28'!$A$13))","v":35.573134140686406},{"$f":"IF(SUMIFS(Data!$E:$E,Data!$B:$B,'28'!C$3,Data!$C:$C,'28'!$A$3,Data!$D:$D,'28'!$A22,Data!$F:$F,'28'!$A$13)=0,\"-\",SUMIFS(Data!$E:$E,Data!$B:$B,'28'!C$3,Data!$C:$C,'28'!$A$3,Data!$D:$D,'28'!$A22,Data!$F:$F,'28'!$A$13))","v":31.830645406016288},{"$f":"IF(SUMIFS(Data!$E:$E,Data!$B:$B,'28'!D$3,Data!$C:$C,'28'!$A$3,Data!$D:$D,'28'!$A22,Data!$F:$F,'28'!$A$13)=0,\"-\",SUMIFS(Data!$E:$E,Data!$B:$B,'28'!D$3,Data!$C:$C,'28'!$A$3,Data!$D:$D,'28'!$A22,Data!$F:$F,'28'!$A$13))","v":33.179800132461125},{"$f":"IF(SUMIFS(Data!$E:$E,Data!$B:$B,'28'!E$3,Data!$C:$C,'28'!$A$3,Data!$D:$D,'28'!$A22,Data!$F:$F,'28'!$A$13)=0,\"-\",SUMIFS(Data!$E:$E,Data!$B:$B,'28'!E$3,Data!$C:$C,'28'!$A$3,Data!$D:$D,'28'!$A22,Data!$F:$F,'28'!$A$13))","v":37.323775472620333},{"$f":"IF(SUMIFS(Data!$E:$E,Data!$B:$B,'28'!F$3,Data!$C:$C,'28'!$A$3,Data!$D:$D,'28'!$A22,Data!$F:$F,'28'!$A$13)=0,\"-\",SUMIFS(Data!$E:$E,Data!$B:$B,'28'!F$3,Data!$C:$C,'28'!$A$3,Data!$D:$D,'28'!$A22,Data!$F:$F,'28'!$A$13))","v":31.708745489753397},{"$f":"IF(SUMIFS(Data!$E:$E,Data!$B:$B,'28'!G$3,Data!$C:$C,'28'!$A$3,Data!$D:$D,'28'!$A22,Data!$F:$F,'28'!$A$13)=0,\"-\",SUMIFS(Data!$E:$E,Data!$B:$B,'28'!G$3,Data!$C:$C,'28'!$A$3,Data!$D:$D,'28'!$A22,Data!$F:$F,'28'!$A$13))","v":34.871472241955807},{"$f":"IF(SUMIFS(Data!$E:$E,Data!$B:$B,'28'!H$3,Data!$C:$C,'28'!$A$3,Data!$D:$D,'28'!$A22,Data!$F:$F,'28'!$A$13)=0,\"-\",SUMIFS(Data!$E:$E,Data!$B:$B,'28'!H$3,Data!$C:$C,'28'!$A$3,Data!$D:$D,'28'!$A22,Data!$F:$F,'28'!$A$13))","v":32.644523298046281},{"$f":"IF(SUMIFS(Data!$E:$E,Data!$B:$B,'28'!I$3,Data!$C:$C,'28'!$A$3,Data!$D:$D,'28'!$A22,Data!$F:$F,'28'!$A$13)=0,\"-\",SUMIFS(Data!$E:$E,Data!$B:$B,'28'!I$3,Data!$C:$C,'28'!$A$3,Data!$D:$D,'28'!$A22,Data!$F:$F,'28'!$A$13))","v":31.707263415657959},{"$f":"IF(SUMIFS(Data!$E:$E,Data!$B:$B,'28'!J$3,Data!$C:$C,'28'!$A$3,Data!$D:$D,'28'!$A22,Data!$F:$F,'28'!$A$13)=0,\"-\",SUMIFS(Data!$E:$E,Data!$B:$B,'28'!J$3,Data!$C:$C,'28'!$A$3,Data!$D:$D,'28'!$A22,Data!$F:$F,'28'!$A$13))","v":35.573134140686406},{"$f":"IF(SUMIFS(Data!$E:$E,Data!$B:$B,'28'!K$3,Data!$C:$C,'28'!$A$3,Data!$D:$D,'28'!$A22,Data!$F:$F,'28'!$A$13)=0,\"-\",SUMIFS(Data!$E:$E,Data!$B:$B,'28'!K$3,Data!$C:$C,'28'!$A$3,Data!$D:$D,'28'!$A22,Data!$F:$F,'28'!$A$13))","v":31.708745489753397}]
[{"$f":"VLOOKUP(\"British Columbia\",Translation!$A$1:$C$354, Translation!A1+1, 0)","v":"Colombie-Britannique"},{"$f":"IF(SUMIFS(Data!$E:$E,Data!$B:$B,'28'!B$3,Data!$C:$C,'28'!$A$3,Data!$D:$D,'28'!$A23,Data!$F:$F,'28'!$A$13)=0,\"-\",SUMIFS(Data!$E:$E,Data!$B:$B,'28'!B$3,Data!$C:$C,'28'!$A$3,Data!$D:$D,'28'!$A23,Data!$F:$F,'28'!$A$13))","v":35.658108552077557},{"$f":"IF(SUMIFS(Data!$E:$E,Data!$B:$B,'28'!C$3,Data!$C:$C,'28'!$A$3,Data!$D:$D,'28'!$A23,Data!$F:$F,'28'!$A$13)=0,\"-\",SUMIFS(Data!$E:$E,Data!$B:$B,'28'!C$3,Data!$C:$C,'28'!$A$3,Data!$D:$D,'28'!$A23,Data!$F:$F,'28'!$A$13))","v":32.792165882987241},{"$f":"IF(SUMIFS(Data!$E:$E,Data!$B:$B,'28'!D$3,Data!$C:$C,'28'!$A$3,Data!$D:$D,'28'!$A23,Data!$F:$F,'28'!$A$13)=0,\"-\",SUMIFS(Data!$E:$E,Data!$B:$B,'28'!D$3,Data!$C:$C,'28'!$A$3,Data!$D:$D,'28'!$A23,Data!$F:$F,'28'!$A$13))","v":36.243821573962549},{"$f":"IF(SUMIFS(Data!$E:$E,Data!$B:$B,'28'!E$3,Data!$C:$C,'28'!$A$3,Data!$D:$D,'28'!$A23,Data!$F:$F,'28'!$A$13)=0,\"-\",SUMIFS(Data!$E:$E,Data!$B:$B,'28'!E$3,Data!$C:$C,'28'!$A$3,Data!$D:$D,'28'!$A23,Data!$F:$F,'28'!$A$13))","v":35.928119224350297},{"$f":"IF(SUMIFS(Data!$E:$E,Data!$B:$B,'28'!F$3,Data!$C:$C,'28'!$A$3,Data!$D:$D,'28'!$A23,Data!$F:$F,'28'!$A$13)=0,\"-\",SUMIFS(Data!$E:$E,Data!$B:$B,'28'!F$3,Data!$C:$C,'28'!$A$3,Data!$D:$D,'28'!$A23,Data!$F:$F,'28'!$A$13))","v":33.765182199436005},{"$f":"IF(SUMIFS(Data!$E:$E,Data!$B:$B,'28'!G$3,Data!$C:$C,'28'!$A$3,Data!$D:$D,'28'!$A23,Data!$F:$F,'28'!$A$13)=0,\"-\",SUMIFS(Data!$E:$E,Data!$B:$B,'28'!G$3,Data!$C:$C,'28'!$A$3,Data!$D:$D,'28'!$A23,Data!$F:$F,'28'!$A$13))","v":36.078530086348593},{"$f":"IF(SUMIFS(Data!$E:$E,Data!$B:$B,'28'!H$3,Data!$C:$C,'28'!$A$3,Data!$D:$D,'28'!$A23,Data!$F:$F,'28'!$A$13)=0,\"-\",SUMIFS(Data!$E:$E,Data!$B:$B,'28'!H$3,Data!$C:$C,'28'!$A$3,Data!$D:$D,'28'!$A23,Data!$F:$F,'28'!$A$13))","v":33.074235119025559},{"$f":"IF(SUMIFS(Data!$E:$E,Data!$B:$B,'28'!I$3,Data!$C:$C,'28'!$A$3,Data!$D:$D,'28'!$A23,Data!$F:$F,'28'!$A$13)=0,\"-\",SUMIFS(Data!$E:$E,Data!$B:$B,'28'!I$3,Data!$C:$C,'28'!$A$3,Data!$D:$D,'28'!$A23,Data!$F:$F,'28'!$A$13))","v":32.740463406230774},{"$f":"IF(SUMIFS(Data!$E:$E,Data!$B:$B,'28'!J$3,Data!$C:$C,'28'!$A$3,Data!$D:$D,'28'!$A23,Data!$F:$F,'28'!$A$13)=0,\"-\",SUMIFS(Data!$E:$E,Data!$B:$B,'28'!J$3,Data!$C:$C,'28'!$A$3,Data!$D:$D,'28'!$A23,Data!$F:$F,'28'!$A$13))","v":35.658108552077557},{"$f":"IF(SUMIFS(Data!$E:$E,Data!$B:$B,'28'!K$3,Data!$C:$C,'28'!$A$3,Data!$D:$D,'28'!$A23,Data!$F:$F,'28'!$A$13)=0,\"-\",SUMIFS(Data!$E:$E,Data!$B:$B,'28'!K$3,Data!$C:$C,'28'!$A$3,Data!$D:$D,'28'!$A23,Data!$F:$F,'28'!$A$13))","v":33.765182199436005}]
[{"$f":"VLOOKUP(\"Territories\",Translation!$A$1:$C$354, Translation!A1+1, 0)","v":"Territoires"},{"$f":"IF(SUMIFS(Data!$E:$E,Data!$B:$B,'28'!B$3,Data!$C:$C,'28'!$A$3,Data!$D:$D,'28'!$A24,Data!$F:$F,'28'!$A$13)=0,\"-\",SUMIFS(Data!$E:$E,Data!$B:$B,'28'!B$3,Data!$C:$C,'28'!$A$3,Data!$D:$D,'28'!$A24,Data!$F:$F,'28'!$A$13))","v":"-"},{"$f":"IF(SUMIFS(Data!$E:$E,Data!$B:$B,'28'!C$3,Data!$C:$C,'28'!$A$3,Data!$D:$D,'28'!$A24,Data!$F:$F,'28'!$A$13)=0,\"-\",SUMIFS(Data!$E:$E,Data!$B:$B,'28'!C$3,Data!$C:$C,'28'!$A$3,Data!$D:$D,'28'!$A24,Data!$F:$F,'28'!$A$13))","v":33.788480204612618},{"$f":"IF(SUMIFS(Data!$E:$E,Data!$B:$B,'28'!D$3,Data!$C:$C,'28'!$A$3,Data!$D:$D,'28'!$A24,Data!$F:$F,'28'!$A$13)=0,\"-\",SUMIFS(Data!$E:$E,Data!$B:$B,'28'!D$3,Data!$C:$C,'28'!$A$3,Data!$D:$D,'28'!$A24,Data!$F:$F,'28'!$A$13))","v":27.762190597325752},{"$f":"IF(SUMIFS(Data!$E:$E,Data!$B:$B,'28'!E$3,Data!$C:$C,'28'!$A$3,Data!$D:$D,'28'!$A24,Data!$F:$F,'28'!$A$13)=0,\"-\",SUMIFS(Data!$E:$E,Data!$B:$B,'28'!E$3,Data!$C:$C,'28'!$A$3,Data!$D:$D,'28'!$A24,Data!$F:$F,'28'!$A$13))","v":33.867326324387193},{"$f":"IF(SUMIFS(Data!$E:$E,Data!$B:$B,'28'!F$3,Data!$C:$C,'28'!$A$3,Data!$D:$D,'28'!$A24,Data!$F:$F,'28'!$A$13)=0,\"-\",SUMIFS(Data!$E:$E,Data!$B:$B,'28'!F$3,Data!$C:$C,'28'!$A$3,Data!$D:$D,'28'!$A24,Data!$F:$F,'28'!$A$13))","v":30},{"$f":"IF(SUMIFS(Data!$E:$E,Data!$B:$B,'28'!G$3,Data!$C:$C,'28'!$A$3,Data!$D:$D,'28'!$A24,Data!$F:$F,'28'!$A$13)=0,\"-\",SUMIFS(Data!$E:$E,Data!$B:$B,'28'!G$3,Data!$C:$C,'28'!$A$3,Data!$D:$D,'28'!$A24,Data!$F:$F,'28'!$A$13))","v":30},{"$f":"IF(SUMIFS(Data!$E:$E,Data!$B:$B,'28'!H$3,Data!$C:$C,'28'!$A$3,Data!$D:$D,'28'!$A24,Data!$F:$F,'28'!$A$13)=0,\"-\",SUMIFS(Data!$E:$E,Data!$B:$B,'28'!H$3,Data!$C:$C,'28'!$A$3,Data!$D:$D,'28'!$A24,Data!$F:$F,'28'!$A$13))","v":24.999999999999996},{"$f":"IF(SUMIFS(Data!$E:$E,Data!$B:$B,'28'!I$3,Data!$C:$C,'28'!$A$3,Data!$D:$D,'28'!$A24,Data!$F:$F,'28'!$A$13)=0,\"-\",SUMIFS(Data!$E:$E,Data!$B:$B,'28'!I$3,Data!$C:$C,'28'!$A$3,Data!$D:$D,'28'!$A24,Data!$F:$F,'28'!$A$13))","v":"-"},{"$f":"IF(SUMIFS(Data!$E:$E,Data!$B:$B,'28'!J$3,Data!$C:$C,'28'!$A$3,Data!$D:$D,'28'!$A24,Data!$F:$F,'28'!$A$13)=0,\"-\",SUMIFS(Data!$E:$E,Data!$B:$B,'28'!J$3,Data!$C:$C,'28'!$A$3,Data!$D:$D,'28'!$A24,Data!$F:$F,'28'!$A$13))","v":"-"},{"$f":"IF(SUMIFS(Data!$E:$E,Data!$B:$B,'28'!K$3,Data!$C:$C,'28'!$A$3,Data!$D:$D,'28'!$A24,Data!$F:$F,'28'!$A$13)=0,\"-\",SUMIFS(Data!$E:$E,Data!$B:$B,'28'!K$3,Data!$C:$C,'28'!$A$3,Data!$D:$D,'28'!$A24,Data!$F:$F,'28'!$A$13))","v":30}]
[{"$f":"VLOOKUP(\"Distribution based on loan amounts, not number of loans.\",Translation!$A$1:$C$354, Translation!A1+1, 0)","v":"La répartition est établie d'après le montant, plutôt que le nombre de prêts assurés."}]
[{"$f":"VLOOKUP(\"The sum of all breakdown categories may not add up to 100 due to rounding.\",Translation!$A$1:$C$354, Translation!A1+1, 0)","v":"Les chiffres ayant été arrondis, il se peut que la somme de l'ensemble des catégories n'égale pas 100 %."}]
[]
[{"$f":"VLOOKUP(\"Insurance-in-force by amortization (years) at origination (%)\",Translation!$A$1:$C$354, Translation!A1+1, 0)","v":"Contrats d’assurance en vigueur selon la période d’amortissement (en années) à l'initiation (%)"}]
[{"$f":"VLOOKUP(\"MULTI-UNIT RESIDENTIAL\",Translation!$A$1:$C$354, Translation!A1+1, 0)","v":"IMMEUBLES COLLECTIFS RÉSIDENTIELS"}]
[null,{"$f":"VLOOKUP(\"As at\",Translation!$A$1:$C$354,Translation!A1+1,0)","v":"Aux"}]
[null,{"$f":"VLOOKUP(\"Q1 2020\",Translation!$A$1:$C$354, Translation!A1+1, 0)","v":"T1 2020"},{"$f":"VLOOKUP(\"Q4 2019\",Translation!$A$1:$C$354, Translation!A1+1, 0)","v":"T4 2019"},{"$f":"VLOOKUP(\"Q3 2019\",Translation!$A$1:$C$354, Translation!A1+1, 0)","v":"T3 2019"},{"$f":"E3","v":"T2 2019"},{"$f":"F3","v":"T1 2019"},"T4 2018","T3 2018","T2 2018"]
["<= 5",0.87369743494611318,0.97288119085812674,1.1008340152377016,1.1895737663587598,1.2764381086807333,1.44847214045644,1.568103587703134,1.7787484753734306]
["> 5 <= 10",4.038837564738372E-2,3.9420316588787065E-2,4.3199920648784203E-2,4.5592736962167153E-2,2.4635285418552685E-2,2.458540282788137E-2,2.6724873315692236E-2,2.8682778179218243E-2]
["> 10 <= 15",0.47541753812124865,0.507974755900792,0.52882589566697535,0.55186574967190727,0.55360600758870504,0.59711652203723042,0.54622982612715487,0.55392906285484611]
["> 15 <= 20",1.5462797281022089,1.6039478011884427,1.6670857723696371,1.6668714684071784,1.6618861930475908,1.698301168922066,1.7040683975268118,1.7505809677981539]
["> 20 <= 25",33.628429995005845,34.986838248654948,36.14794253535252,37.887807337038062,38.941442800577228,40.045254664073191,41.021941291182749,42.292621360856089]
["> 25 <= 30",29.157119924419401,29.253540950977776,29.663631202863627,29.513481111885024,29.6456269864603,29.502311792048737,29.971060582330644,29.426035042278698]
["> 30 <= 35",18.732427196066816,18.588979597752722,18.462004131006296,18.163793115352298,17.948741253992669,17.557496945008374,16.884944992926258,16.696512762607391]
["> 35",15.546239807686396,14.046417138098549,12.386476526832189,10.981014714328122,9.9476233642294822,9.1264613646339132,8.2769264488945566,7.4728895500524333]
[{"$f":"VLOOKUP(\"Average amortization period\",Translation!$A$1:$C$354, Translation!A1+1, 0)","v":"Période d’amortissement moyenne"},28.849133440307735,28.660744350772394,28.443573990846286,28.336880826590484,28.14893507727313,27.942183146898312,27.763259518811441,27.562118219268196]
[{"$f":"VLOOKUP(\"Average amortization period by province\",Translation!$A$1:$C$354, Translation!A1+1, 0)","v":"Période d’amortissement moyenne selon la province"}]
[{"$f":"VLOOKUP(\"Newfoundland and Labrador\",Translation!$A$1:$C$354, Translation!A1+1, 0)","v":"Terre-Neuve-et-Labrador"},23.94145493001913,24.020638398303646,24.034007002451613,23.878387127434085,23.910570825189115,23.623316470061074,23.724695023484017,23.539667412521858]
[{"$f":"VLOOKUP(\"Prince Edward Island\",Translation!$A$1:$C$354, Translation!A1+1, 0)","v":"Île-du-Prince-Édouard"},23.966655224306695,24.245542869361522,23.749707949632615,23.778130409475143,23.975372709453836,24.052848894076501,23.573958735030626,23.12754585437051]
[{"$f":"VLOOKUP(\"Nova Scotia\",Translation!$A$1:$C$354, Translation!A1+1, 0)","v":"Nouvelle-Écosse"},26.58743680992314,26.421251336929785,26.226991315125186,26.128909319207235,25.835167322069999,25.729370700618659,25.688125567696062,25.35441385174521]
[{"$f":"VLOOKUP(\"New Brunswick\",Translation!$A$1:$C$354, Translation!A1+1, 0)","v":"Nouveau-Brunswick"},25.411511976003617,25.2824465061667,25.21150504830635,25.175382777633683,24.87005682144261,24.797453048771008,24.769143352208825,24.647287423287835]
[{"$f":"VLOOKUP(\"Quebec\",Translation!$A$1:$C$354, Translation!A1+1, 0)","v":"Québec"},29.892057574842127,29.702685626029613,29.517048855189067,29.353992612998461,29.190933762231129,29.03763720203494,28.885075228063524,28.688506888599672]
[{"$f":"VLOOKUP(\"Ontario\",Translation!$A$1:$C$354, Translation!A1+1, 0)","v":"Ontario"},27.435087805252611,27.250800887125131,26.990838761416221,26.986469152319824,26.802396441994979,26.48623318026284,26.285957833023971,26.128311212346933]
[{"$f":"VLOOKUP(\"Manitoba\",Translation!$A$1:$C$354, Translation!A1+1, 0)","v":"Manitoba"},28.814001039070291,28.647081281938419,27.872226864987361,27.37291441781905,27.096585466764935,26.931676806020384,26.545753996562883,26.389187621260682]
[{"$f":"VLOOKUP(\"Saskatchewan\",Translation!$A$1:$C$354, Translation!A1+1, 0)","v":"Saskatchewan"},30.173908721185928,29.622701863979596,29.388833796736847,29.248580722230482,29.088485994693539,28.451626462110539,28.306172676574452,27.811260942085923]
[{"$f":"VLOOKUP(\"Alberta\",Translation!$A$1:$C$354, Translation!A1+1, 0)","v":"Alberta"},29.330143054647344,29.152878425976844,29.008771171292903,28.759531472418328,28.652499143889258,28.512190372675057,28.325218069785851,28.204095560548733]
[{"$f":"VLOOKUP(\"British Columbia\",Translation!$A$1:$C$354, Translation!A1+1, 0)","v":"Colombie-Britannique"},27.286875693356528,27.316756932782503,27.004680693439852,26.794602929609859,26.434697735107921,26.210982972742624,25.900588322870529,25.636969915835977]
[{"$f":"VLOOKUP(\"Territories\",Translation!$A$1:$C$354, Translation!A1+1, 0)","v":"Territoires"},25.98096296312838,25.765997876738474,25.630832544750049,25.463195788129518,24.903580032614997,24.860065399471775,24.770801520347625,24.774052257941104]
[{"$f":"VLOOKUP(\"Distribution based on outstanding loan amounts, not number of loans.\",Translation!$A$1:$C$354, Translation!A1+1, 0)","v":"La répartition est établie d'après le solde, plutôt que le nombre de prêts assurés."}]
[{"$f":"VLOOKUP(\"The sum of all breakdown categories may not add up to 100 due to rounding.\",Translation!$A$1:$C$354, Translation!A1+1, 0)","v":"Les chiffres ayant été arrondis, il se peut que la somme de l'ensemble des catégories n'égale pas 100 %."}]

{"sheet":"29","index":30,"n_rows":41,"n_cols":11,"rows_kept":41,"cut":false,"hidden":false,"merged":[[22,0,23,0],[22,1,22,8],[0,5,0,10]]}
[{"$f":"VLOOKUP(\"MULTI-UNIT RESIDENTIAL - DWELLING TYPE\",Translation!$A$1:$C$354, Translation!A1+1, 0)","v":"IMMEUBLES COLLECTIFS RÉSIDENTIELS – TYPE DE LOGEMENT"},null,null,null,null,{"$f":"VLOOKUP(\"Back to Table of Contents\",Translation!$A$1:$C$354, Translation!A1+1, 0)","v":"Retour à la table des matières"}]
[{"$f":"VLOOKUP(\"Loans insured in period by dwelling type (%)\",Translation!$A$1:$C$354, Translation!A1+1, 0)","v":"Prêts hypothécaires assurés au cours de la période selon le type de logement (%)"}]
[{"$f":"VLOOKUP(\"MULTI-UNIT RESIDENTIAL\",Translation!$A$1:$C$354, Translation!A1+1, 0)","v":"IMMEUBLES COLLECTIFS RÉSIDENTIELS"},{"$f":"VLOOKUP(\"Q1 2020\",Translation!$A$1:$C$354, Translation!$A$1+1, 0)","v":"T1 2020"},{"$f":"VLOOKUP(\"Q4 2019\",Translation!$A$1:$C$354, Translation!$A$1+1, 0)","v":"T4 2019"},{"$f":"VLOOKUP(\"Q3 2019\",Translation!$A$1:$C$354, Translation!$A$1+1, 0)","v":"T3 2019"},{"$f":"VLOOKUP(\"Q2 2019\",Translation!$A$1:$C$354, Translation!$A$1+1, 0)","v":"T2 2019"},{"$f":"VLOOKUP(\"Q1 2019\",Translation!$A$1:$C$354, Translation!$A$1+1, 0)","v":"T1 2019"},{"$f":"VLOOKUP(\"Q4 2018\",Translation!$A$1:$C$354, Translation!$A$1+1, 0)","v":"T4 2018"},{"$f":"VLOOKUP(\"Q3 2018\",Translation!$A$1:$C$354, Translation!$A$1+1, 0)","v":"T3 2018"},{"$f":"VLOOKUP(\"Q2 2018\",Translation!$A$1:$C$354, Translation!$A$1+1, 0)","v":"T2 2018"},{"$f":"VLOOKUP(\"YTD 2020\",Translation!$A$1:$C$354, Translation!$A$1+1, 0)","v":"Cumul 2020"},{"$f":"VLOOKUP(\"YTD 2019\",Translation!$A$1:$C$354, Translation!$A$1+1, 0)","v":"Cumul 2019"}]
[{"$f":"VLOOKUP(\"Apartment\",Translation!$A$1:$C$354, Translation!A1+1, 0)","v":"Appartement"},{"$f":"SUMIFS(Data!$E:$E,Data!$B:$B,'29'!B$3,Data!$C:$C,'29'!$A$3,Data!$D:$D,'29'!$A4,Data!$F:$F,'29'!$A$2)","v":92.229322554801783},{"$f":"SUMIFS(Data!$E:$E,Data!$B:$B,'29'!C$3,Data!$C:$C,'29'!$A$3,Data!$D:$D,'29'!$A4,Data!$F:$F,'29'!$A$2)","v":93.801365974325407},{"$f":"SUMIFS(Data!$E:$E,Data!$B:$B,'29'!D$3,Data!$C:$C,'29'!$A$3,Data!$D:$D,'29'!$A4,Data!$F:$F,'29'!$A$2)","v":85.673115132639879},{"$f":"SUMIFS(Data!$E:$E,Data!$B:$B,'29'!E$3,Data!$C:$C,'29'!$A$3,Data!$D:$D,'29'!$A4,Data!$F:$F,'29'!$A$2)","v":89.570429568961785},{"$f":"SUMIFS(Data!$E:$E,Data!$B:$B,'29'!F$3,Data!$C:$C,'29'!$A$3,Data!$D:$D,'29'!$A4,Data!$F:$F,'29'!$A$2)","v":92.56494515715994},{"$f":"SUMIFS(Data!$E:$E,Data!$B:$B,'29'!G$3,Data!$C:$C,'29'!$A$3,Data!$D:$D,'29'!$A4,Data!$F:$F,'29'!$A$2)","v":88.583563807863655},{"$f":"SUMIFS(Data!$E:$E,Data!$B:$B,'29'!H$3,Data!$C:$C,'29'!$A$3,Data!$D:$D,'29'!$A4,Data!$F:$F,'29'!$A$2)","v":85.348698788544993},{"$f":"SUMIFS(Data!$E:$E,Data!$B:$B,'29'!I$3,Data!$C:$C,'29'!$A$3,Data!$D:$D,'29'!$A4,Data!$F:$F,'29'!$A$2)","v":87.129947470994495},{"$f":"SUMIFS(Data!$E:$E,Data!$B:$B,'29'!J$3,Data!$C:$C,'29'!$A$3,Data!$D:$D,'29'!$A4,Data!$F:$F,'29'!$A$2)","v":92.229322554801783},{"$f":"SUMIFS(Data!$E:$E,Data!$B:$B,'29'!K$3,Data!$C:$C,'29'!$A$3,Data!$D:$D,'29'!$A4,Data!$F:$F,'29'!$A$2)","v":92.56494515715994}]
[{"$f":"VLOOKUP(\"Retirement/Nursing homes\",Translation!$A$1:$C$354, Translation!A1+1, 0)","v":"Maison de retraite/de repos"},{"$f":"SUMIFS(Data!$E:$E,Data!$B:$B,'29'!B$3,Data!$C:$C,'29'!$A$3,Data!$D:$D,'29'!$A5,Data!$F:$F,'29'!$A$2)","v":2.8925311940473826},{"$f":"SUMIFS(Data!$E:$E,Data!$B:$B,'29'!C$3,Data!$C:$C,'29'!$A$3,Data!$D:$D,'29'!$A5,Data!$F:$F,'29'!$A$2)","v":4.1711320493262596},{"$f":"SUMIFS(Data!$E:$E,Data!$B:$B,'29'!D$3,Data!$C:$C,'29'!$A$3,Data!$D:$D,'29'!$A5,Data!$F:$F,'29'!$A$2)","v":8.0583524701439746},{"$f":"SUMIFS(Data!$E:$E,Data!$B:$B,'29'!E$3,Data!$C:$C,'29'!$A$3,Data!$D:$D,'29'!$A5,Data!$F:$F,'29'!$A$2)","v":6.7836951026349208},{"$f":"SUMIFS(Data!$E:$E,Data!$B:$B,'29'!F$3,Data!$C:$C,'29'!$A$3,Data!$D:$D,'29'!$A5,Data!$F:$F,'29'!$A$2)","v":5.4785746331334968},{"$f":"SUMIFS(Data!$E:$E,Data!$B:$B,'29'!G$3,Data!$C:$C,'29'!$A$3,Data!$D:$D,'29'!$A5,Data!$F:$F,'29'!$A$2)","v":9.8997638488089681},{"$f":"SUMIFS(Data!$E:$E,Data!$B:$B,'29'!H$3,Data!$C:$C,'29'!$A$3,Data!$D:$D,'29'!$A5,Data!$F:$F,'29'!$A$2)","v":10.44156098083506},{"$f":"SUMIFS(Data!$E:$E,Data!$B:$B,'29'!I$3,Data!$C:$C,'29'!$A$3,Data!$D:$D,'29'!$A5,Data!$F:$F,'29'!$A$2)","v":11.894876461702452},{"$f":"SUMIFS(Data!$E:$E,Data!$B:$B,'29'!J$3,Data!$C:$C,'29'!$A$3,Data!$D:$D,'29'!$A5,Data!$F:$F,'29'!$A$2)","v":2.8925311940473826},{"$f":"SUMIFS(Data!$E:$E,Data!$B:$B,'29'!K$3,Data!$C:$C,'29'!$A$3,Data!$D:$D,'29'!$A5,Data!$F:$F,'29'!$A$2)","v":5.4785746331334968}]
[{"$f":"VLOOKUP(\"Other\",Translation!$A$1:$C$354, Translation!A1+1, 0)","v":"Autre"},{"$f":"SUMIFS(Data!$E:$E,Data!$B:$B,'29'!B$3,Data!$C:$C,'29'!$A$3,Data!$D:$D,'29'!$A6,Data!$F:$F,'29'!$A$2)","v":4.8781462511508735},{"$f":"SUMIFS(Data!$E:$E,Data!$B:$B,'29'!C$3,Data!$C:$C,'29'!$A$3,Data!$D:$D,'29'!$A6,Data!$F:$F,'29'!$A$2)","v":2.0275019763483013},{"$f":"SUMIFS(Data!$E:$E,Data!$B:$B,'29'!D$3,Data!$C:$C,'29'!$A$3,Data!$D:$D,'29'!$A6,Data!$F:$F,'29'!$A$2)","v":6.2685323972161342},{"$f":"SUMIFS(Data!$E:$E,Data!$B:$B,'29'!E$3,Data!$C:$C,'29'!$A$3,Data!$D:$D,'29'!$A6,Data!$F:$F,'29'!$A$2)","v":3.6458753284033008},{"$f":"SUMIFS(Data!$E:$E,Data!$B:$B,'29'!F$3,Data!$C:$C,'29'!$A$3,Data!$D:$D,'29'!$A6,Data!$F:$F,'29'!$A$2)","v":1.9564802097065568},{"$f":"SUMIFS(Data!$E:$E,Data!$B:$B,'29'!G$3,Data!$C:$C,'29'!$A$3,Data!$D:$D,'29'!$A6,Data!$F:$F,'29'!$A$2)","v":1.5166723433273941},{"$f":"SUMIFS(Data!$E:$E,Data!$B:$B,'29'!H$3,Data!$C:$C,'29'!$A$3,Data!$D:$D,'29'!$A6,Data!$F:$F,'29'!$A$2)","v":4.2097402306199188},{"$f":"SUMIFS(Data!$E:$E,Data!$B:$B,'29'!I$3,Data!$C:$C,'29'!$A$3,Data!$D:$D,'29'!$A6,Data!$F:$F,'29'!$A$2)","v":0.97517606730306483},{"$f":"SUMIFS(Data!$E:$E,Data!$B:$B,'29'!J$3,Data!$C:$C,'29'!$A$3,Data!$D:$D,'29'!$A6,Data!$F:$F,'29'!$A$2)","v":4.8781462511508735},{"$f":"SUMIFS(Data!$E:$E,Data!$B:$B,'29'!K$3,Data!$C:$C,'29'!$A$3,Data!$D:$D,'29'!$A6,Data!$F:$F,'29'!$A$2)","v":1.9564802097065568}]
[{"$f":"VLOOKUP(\"Apartments by province (%)\",Translation!$A$1:$C$354, Translation!A1+1, 0)","v":"Appartements selon la province (%)"}]
[{"$f":"VLOOKUP(\"Newfoundland and Labrador\",Translation!$A$1:$C$354, Translation!A1+1, 0)","v":"Terre-Neuve-et-Labrador"},{"$f":"IF(SUMIFS(Data!$E:$E,Data!$B:$B,'29'!B$3,Data!$C:$C,'29'!$A$3,Data!$D:$D,'29'!$A8,Data!$F:$F,'29'!$A$2)=0,\"-\",SUMIFS(Data!$E:$E,Data!$B:$B,'29'!B$3,Data!$C:$C,'29'!$A$3,Data!$D:$D,'29'!$A8,Data!$F:$F,'29'!$A$2))","v":94.757824238609757},{"$f":"IF(SUMIFS(Data!$E:$E,Data!$B:$B,'29'!C$3,Data!$C:$C,'29'!$A$3,Data!$D:$D,'29'!$A8,Data!$F:$F,'29'!$A$2)=0,\"-\",SUMIFS(Data!$E:$E,Data!$B:$B,'29'!C$3,Data!$C:$C,'29'!$A$3,Data!$D:$D,'29'!$A8,Data!$F:$F,'29'!$A$2))","v":100},{"$f":"IF(SUMIFS(Data!$E:$E,Data!$B:$B,'29'!D$3,Data!$C:$C,'29'!$A$3,Data!$D:$D,'29'!$A8,Data!$F:$F,'29'!$A$2)=0,\"-\",SUMIFS(Data!$E:$E,Data!$B:$B,'29'!D$3,Data!$C:$C,'29'!$A$3,Data!$D:$D,'29'!$A8,Data!$F:$F,'29'!$A$2))","v":"-"},{"$f":"IF(SUMIFS(Data!$E:$E,Data!$B:$B,'29'!E$3,Data!$C:$C,'29'!$A$3,Data!$D:$D,'29'!$A8,Data!$F:$F,'29'!$A$2)=0,\"-\",SUMIFS(Data!$E:$E,Data!$B:$B,'29'!E$3,Data!$C:$C,'29'!$A$3,Data!$D:$D,'29'!$A8,Data!$F:$F,'29'!$A$2))","v":100},{"$f":"IF(SUMIFS(Data!$E:$E,Data!$B:$B,'29'!F$3,Data!$C:$C,'29'!$A$3,Data!$D:$D,'29'!$A8,Data!$F:$F,'29'!$A$2)=0,\"-\",SUMIFS(Data!$E:$E,Data!$B:$B,'29'!F$3,Data!$C:$C,'29'!$A$3,Data!$D:$D,'29'!$A8,Data!$F:$F,'29'!$A$2))","v":"-"},{"$f":"IF(SUMIFS(Data!$E:$E,Data!$B:$B,'29'!G$3,Data!$C:$C,'29'!$A$3,Data!$D:$D,'29'!$A8,Data!$F:$F,'29'!$A$2)=0,\"-\",SUMIFS(Data!$E:$E,Data!$B:$B,'29'!G$3,Data!$C:$C,'29'!$A$3,Data!$D:$D,'29'!$A8,Data!$F:$F,'29'!$A$2))","v":"-"},{"$f":"IF(SUMIFS(Data!$E:$E,Data!$B:$B,'29'!H$3,Data!$C:$C,'29'!$A$3,Data!$D:$D,'29'!$A8,Data!$F:$F,'29'!$A$2)=0,\"-\",SUMIFS(Data!$E:$E,Data!$B:$B,'29'!H$3,Data!$C:$C,'29'!$A$3,Data!$D:$D,'29'!$A8,Data!$F:$F,'29'!$A$2))","v":88.976813284852042},{"$f":"IF(SUMIFS(Data!$E:$E,Data!$B:$B,'29'!I$3,Data!$C:$C,'29'!$A$3,Data!$D:$D,'29'!$A8,Data!$F:$F,'29'!$A$2)=0,\"-\",SUMIFS(Data!$E:$E,Data!$B:$B,'29'!I$3,Data!$C:$C,'29'!$A$3,Data!$D:$D,'29'!$A8,Data!$F:$F,'29'!$A$2))","v":"-"},{"$f":"IF(SUMIFS(Data!$E:$E,Data!$B:$B,'29'!J$3,Data!$C:$C,'29'!$A$3,Data!$D:$D,'29'!$A8,Data!$F:$F,'29'!$A$2)=0,\"-\",SUMIFS(Data!$E:$E,Data!$B:$B,'29'!J$3,Data!$C:$C,'29'!$A$3,Data!$D:$D,'29'!$A8,Data!$F:$F,'29'!$A$2))","v":94.757824238609757},{"$f":"IF(SUMIFS(Data!$E:$E,Data!$B:$B,'29'!K$3,Data!$C:$C,'29'!$A$3,Data!$D:$D,'29'!$A8,Data!$F:$F,'29'!$A$2)=0,\"-\",SUMIFS(Data!$E:$E,Data!$B:$B,'29'!K$3,Data!$C:$C,'29'!$A$3,Data!$D:$D,'29'!$A8,Data!$F:$F,'29'!$A$2))","v":"-"}]
[{"$f":"VLOOKUP(\"Prince Edward Island\",Translation!$A$1:$C$354, Translation!A1+1, 0)","v":"Île-du-Prince-Édouard"},{"$f":"IF(SUMIFS(Data!$E:$E,Data!$B:$B,'29'!B$3,Data!$C:$C,'29'!$A$3,Data!$D:$D,'29'!$A9,Data!$F:$F,'29'!$A$2)=0,\"-\",SUMIFS(Data!$E:$E,Data!$B:$B,'29'!B$3,Data!$C:$C,'29'!$A$3,Data!$D:$D,'29'!$A9,Data!$F:$F,'29'!$A$2))","v":100},{"$f":"IF(SUMIFS(Data!$E:$E,Data!$B:$B,'29'!C$3,Data!$C:$C,'29'!$A$3,Data!$D:$D,'29'!$A9,Data!$F:$F,'29'!$A$2)=0,\"-\",SUMIFS(Data!$E:$E,Data!$B:$B,'29'!C$3,Data!$C:$C,'29'!$A$3,Data!$D:$D,'29'!$A9,Data!$F:$F,'29'!$A$2))","v":100},{"$f":"IF(SUMIFS(Data!$E:$E,Data!$B:$B,'29'!D$3,Data!$C:$C,'29'!$A$3,Data!$D:$D,'29'!$A9,Data!$F:$F,'29'!$A$2)=0,\"-\",SUMIFS(Data!$E:$E,Data!$B:$B,'29'!D$3,Data!$C:$C,'29'!$A$3,Data!$D:$D,'29'!$A9,Data!$F:$F,'29'!$A$2))","v":100},{"$f":"IF(SUMIFS(Data!$E:$E,Data!$B:$B,'29'!E$3,Data!$C:$C,'29'!$A$3,Data!$D:$D,'29'!$A9,Data!$F:$F,'29'!$A$2)=0,\"-\",SUMIFS(Data!$E:$E,Data!$B:$B,'29'!E$3,Data!$C:$C,'29'!$A$3,Data!$D:$D,'29'!$A9,Data!$F:$F,'29'!$A$2))","v":100},{"$f":"IF(SUMIFS(Data!$E:$E,Data!$B:$B,'29'!F$3,Data!$C:$C,'29'!$A$3,Data!$D:$D,'29'!$A9,Data!$F:$F,'29'!$A$2)=0,\"-\",SUMIFS(Data!$E:$E,Data!$B:$B,'29'!F$3,Data!$C:$C,'29'!$A$3,Data!$D:$D,'29'!$A9,Data!$F:$F,'29'!$A$2))","v":100},{"$f":"IF(SUMIFS(Data!$E:$E,Data!$B:$B,'29'!G$3,Data!$C:$C,'29'!$A$3,Data!$D:$D,'29'!$A9,Data!$F:$F,'29'!$A$2)=0,\"-\",SUMIFS(Data!$E:$E,Data!$B:$B,'29'!G$3,Data!$C:$C,'29'!$A$3,Data!$D:$D,'29'!$A9,Data!$F:$F,'29'!$A$2))","v":100},{"$f":"IF(SUMIFS(Data!$E:$E,Data!$B:$B,'29'!H$3,Data!$C:$C,'29'!$A$3,Data!$D:$D,'29'!$A9,Data!$F:$F,'29'!$A$2)=0,\"-\",SUMIFS(Data!$E:$E,Data!$B:$B,'29'!H$3,Data!$C:$C,'29'!$A$3,Data!$D:$D,'29'!$A9,Data!$F:$F,'29'!$A$2))","v":100},{"$f":"IF(SUMIFS(Data!$E:$E,Data!$B:$B,'29'!I$3,Data!$C:$C,'29'!$A$3,Data!$D:$D,'29'!$A9,Data!$F:$F,'29'!$A$2)=0,\"-\",SUMIFS(Data!$E:$E,Data!$B:$B,'29'!I$3,Data!$C:$C,'29'!$A$3,Data!$D:$D,'29'!$A9,Data!$F:$F,'29'!$A$2))","v":69.763826827321239},{"$f":"IF(SUMIFS(Data!$E:$E,Data!$B:$B,'29'!J$3,Data!$C:$C,'29'!$A$3,Data!$D:$D,'29'!$A9,Data!$F:$F,'29'!$A$2)=0,\"-\",SUMIFS(Data!$E:$E,Data!$B:$B,'29'!J$3,Data!$C:$C,'29'!$A$3,Data!$D:$D,'29'!$A9,Data!$F:$F,'29'!$A$2))","v":100},{"$f":"IF(SUMIFS(Data!$E:$E,Data!$B:$B,'29'!K$3,Data!$C:$C,'29'!$A$3,Data!$D:$D,'29'!$A9,Data!$F:$F,'29'!$A$2)=0,\"-\",SUMIFS(Data!$E:$E,Data!$B:$B,'29'!K$3,Data!$C:$C,'29'!$A$3,Data!$D:$D,'29'!$A9,Data!$F:$F,'29'!$A$2))","v":100}]
[{"$f":"VLOOKUP(\"Nova Scotia\",Translation!$A$1:$C$354, Translation!A1+1, 0)","v":"Nouvelle-Écosse"},{"$f":"IF(SUMIFS(Data!$E:$E,Data!$B:$B,'29'!B$3,Data!$C:$C,'29'!$A$3,Data!$D:$D,'29'!$A10,Data!$F:$F,'29'!$A$2)=0,\"-\",SUMIFS(Data!$E:$E,Data!$B:$B,'29'!B$3,Data!$C:$C,'29'!$A$3,Data!$D:$D,'29'!$A10,Data!$F:$F,'29'!$A$2))","v":100},{"$f":"IF(SUMIFS(Data!$E:$E,Data!$B:$B,'29'!C$3,Data!$C:$C,'29'!$A$3,Data!$D:$D,'29'!$A10,Data!$F:$F,'29'!$A$2)=0,\"-\",SUMIFS(Data!$E:$E,Data!$B:$B,'29'!C$3,Data!$C:$C,'29'!$A$3,Data!$D:$D,'29'!$A10,Data!$F:$F,'29'!$A$2))","v":99.582706854581375},{"$f":"IF(SUMIFS(Data!$E:$E,Data!$B:$B,'29'!D$3,Data!$C:$C,'29'!$A$3,Data!$D:$D,'29'!$A10,Data!$F:$F,'29'!$A$2)=0,\"-\",SUMIFS(Data!$E:$E,Data!$B:$B,'29'!D$3,Data!$C:$C,'29'!$A$3,Data!$D:$D,'29'!$A10,Data!$F:$F,'29'!$A$2))","v":92.328802808427014},{"$f":"IF(SUMIFS(Data!$E:$E,Data!$B:$B,'29'!E$3,Data!$C:$C,'29'!$A$3,Data!$D:$D,'29'!$A10,Data!$F:$F,'29'!$A$2)=0,\"-\",SUMIFS(Data!$E:$E,Data!$B:$B,'29'!E$3,Data!$C:$C,'29'!$A$3,Data!$D:$D,'29'!$A10,Data!$F:$F,'29'!$A$2))","v":98.250581760617933},{"$f":"IF(SUMIFS(Data!$E:$E,Data!$B:$B,'29'!F$3,Data!$C:$C,'29'!$A$3,Data!$D:$D,'29'!$A10,Data!$F:$F,'29'!$A$2)=0,\"-\",SUMIFS(Data!$E:$E,Data!$B:$B,'29'!F$3,Data!$C:$C,'29'!$A$3,Data!$D:$D,'29'!$A10,Data!$F:$F,'29'!$A$2))","v":100},{"$f":"IF(SUMIFS(Data!$E:$E,Data!$B:$B,'29'!G$3,Data!$C:$C,'29'!$A$3,Data!$D:$D,'29'!$A10,Data!$F:$F,'29'!$A$2)=0,\"-\",SUMIFS(Data!$E:$E,Data!$B:$B,'29'!G$3,Data!$C:$C,'29'!$A$3,Data!$D:$D,'29'!$A10,Data!$F:$F,'29'!$A$2))","v":98.098873544988507},{"$f":"IF(SUMIFS(Data!$E:$E,Data!$B:$B,'29'!H$3,Data!$C:$C,'29'!$A$3,Data!$D:$D,'29'!$A10,Data!$F:$F,'29'!$A$2)=0,\"-\",SUMIFS(Data!$E:$E,Data!$B:$B,'29'!H$3,Data!$C:$C,'29'!$A$3,Data!$D:$D,'29'!$A10,Data!$F:$F,'29'!$A$2))","v":94.518662034535097},{"$f":"IF(SUMIFS(Data!$E:$E,Data!$B:$B,'29'!I$3,Data!$C:$C,'29'!$A$3,Data!$D:$D,'29'!$A10,Data!$F:$F,'29'!$A$2)=0,\"-\",SUMIFS(Data!$E:$E,Data!$B:$B,'29'!I$3,Data!$C:$C,'29'!$A$3,Data!$D:$D,'29'!$A10,Data!$F:$F,'29'!$A$2))","v":100},{"$f":"IF(SUMIFS(Data!$E:$E,Data!$B:$B,'29'!J$3,Data!$C:$C,'29'!$A$3,Data!$D:$D,'29'!$A10,Data!$F:$F,'29'!$A$2)=0,\"-\",SUMIFS(Data!$E:$E,Data!$B:$B,'29'!J$3,Data!$C:$C,'29'!$A$3,Data!$D:$D,'29'!$A10,Data!$F:$F,'29'!$A$2))","v":100},{"$f":"IF(SUMIFS(Data!$E:$E,Data!$B:$B,'29'!K$3,Data!$C:$C,'29'!$A$3,Data!$D:$D,'29'!$A10,Data!$F:$F,'29'!$A$2)=0,\"-\",SUMIFS(Data!$E:$E,Data!$B:$B,'29'!K$3,Data!$C:$C,'29'!$A$3,Data!$D:$D,'29'!$A10,Data!$F:$F,'29'!$A$2))","v":100}]
[{"$f":"VLOOKUP(\"New Brunswick\",Translation!$A$1:$C$354, Translation!A1+1, 0)","v":"Nouveau-Brunswick"},{"$f":"IF(SUMIFS(Data!$E:$E,Data!$B:$B,'29'!B$3,Data!$C:$C,'29'!$A$3,Data!$D:$D,'29'!$A11,Data!$F:$F,'29'!$A$2)=0,\"-\",SUMIFS(Data!$E:$E,Data!$B:$B,'29'!B$3,Data!$C:$C,'29'!$A$3,Data!$D:$D,'29'!$A11,Data!$F:$F,'29'!$A$2))","v":86.378305066334491},{"$f":"IF(SUMIFS(Data!$E:$E,Data!$B:$B,'29'!C$3,Data!$C:$C,'29'!$A$3,Data!$D:$D,'29'!$A11,Data!$F:$F,'29'!$A$2)=0,\"-\",SUMIFS(Data!$E:$E,Data!$B:$B,'29'!C$3,Data!$C:$C,'29'!$A$3,Data!$D:$D,'29'!$A11,Data!$F:$F,'29'!$A$2))","v":100},{"$f":"IF(SUMIFS(Data!$E:$E,Data!$B:$B,'29'!D$3,Data!$C:$C,'29'!$A$3,Data!$D:$D,'29'!$A11,Data!$F:$F,'29'!$A$2)=0,\"-\",SUMIFS(Data!$E:$E,Data!$B:$B,'29'!D$3,Data!$C:$C,'29'!$A$3,Data!$D:$D,'29'!$A11,Data!$F:$F,'29'!$A$2))","v":97.665066306903014},{"$f":"IF(SUMIFS(Data!$E:$E,Data!$B:$B,'29'!E$3,Data!$C:$C,'29'!$A$3,Data!$D:$D,'29'!$A11,Data!$F:$F,'29'!$A$2)=0,\"-\",SUMIFS(Data!$E:$E,Data!$B:$B,'29'!E$3,Data!$C:$C,'29'!$A$3,Data!$D:$D,'29'!$A11,Data!$F:$F,'29'!$A$2))","v":100},{"$f":"IF(SUMIFS(Data!$E:$E,Data!$B:$B,'29'!F$3,Data!$C:$C,'29'!$A$3,Data!$D:$D,'29'!$A11,Data!$F:$F,'29'!$A$2)=0,\"-\",SUMIFS(Data!$E:$E,Data!$B:$B,'29'!F$3,Data!$C:$C,'29'!$A$3,Data!$D:$D,'29'!$A11,Data!$F:$F,'29'!$A$2))","v":100},{"$f":"IF(SUMIFS(Data!$E:$E,Data!$B:$B,'29'!G$3,Data!$C:$C,'29'!$A$3,Data!$D:$D,'29'!$A11,Data!$F:$F,'29'!$A$2)=0,\"-\",SUMIFS(Data!$E:$E,Data!$B:$B,'29'!G$3,Data!$C:$C,'29'!$A$3,Data!$D:$D,'29'!$A11,Data!$F:$F,'29'!$A$2))","v":100},{"$f":"IF(SUMIFS(Data!$E:$E,Data!$B:$B,'29'!H$3,Data!$C:$C,'29'!$A$3,Data!$D:$D,'29'!$A11,Data!$F:$F,'29'!$A$2)=0,\"-\",SUMIFS(Data!$E:$E,Data!$B:$B,'29'!H$3,Data!$C:$C,'29'!$A$3,Data!$D:$D,'29'!$A11,Data!$F:$F,'29'!$A$2))","v":86.611681706914311},{"$f":"IF(SUMIFS(Data!$E:$E,Data!$B:$B,'29'!I$3,Data!$C:$C,'29'!$A$3,Data!$D:$D,'29'!$A11,Data!$F:$F,'29'!$A$2)=0,\"-\",SUMIFS(Data!$E:$E,Data!$B:$B,'29'!I$3,Data!$C:$C,'29'!$A$3,Data!$D:$D,'29'!$A11,Data!$F:$F,'29'!$A$2))","v":100},{"$f":"IF(SUMIFS(Data!$E:$E,Data!$B:$B,'29'!J$3,Data!$C:$C,'29'!$A$3,Data!$D:$D,'29'!$A11,Data!$F:$F,'29'!$A$2)=0,\"-\",SUMIFS(Data!$E:$E,Data!$B:$B,'29'!J$3,Data!$C:$C,'29'!$A$3,Data!$D:$D,'29'!$A11,Data!$F:$F,'29'!$A$2))","v":86.378305066334491},{"$f":"IF(SUMIFS(Data!$E:$E,Data!$B:$B,'29'!K$3,Data!$C:$C,'29'!$A$3,Data!$D:$D,'29'!$A11,Data!$F:$F,'29'!$A$2)=0,\"-\",SUMIFS(Data!$E:$E,Data!$B:$B,'29'!K$3,Data!$C:$C,'29'!$A$3,Data!$D:$D,'29'!$A11,Data!$F:$F,'29'!$A$2))","v":100}]
[{"$f":"VLOOKUP(\"Quebec\",Translation!$A$1:$C$354, Translation!A1+1, 0)","v":"Québec"},{"$f":"IF(SUMIFS(Data!$E:$E,Data!$B:$B,'29'!B$3,Data!$C:$C,'29'!$A$3,Data!$D:$D,'29'!$A12,Data!$F:$F,'29'!$A$2)=0,\"-\",SUMIFS(Data!$E:$E,Data!$B:$B,'29'!B$3,Data!$C:$C,'29'!$A$3,Data!$D:$D,'29'!$A12,Data!$F:$F,'29'!$A$2))","v":93.535329061276173},{"$f":"IF(SUMIFS(Data!$E:$E,Data!$B:$B,'29'!C$3,Data!$C:$C,'29'!$A$3,Data!$D:$D,'29'!$A12,Data!$F:$F,'29'!$A$2)=0,\"-\",SUMIFS(Data!$E:$E,Data!$B:$B,'29'!C$3,Data!$C:$C,'29'!$A$3,Data!$D:$D,'29'!$A12,Data!$F:$F,'29'!$A$2))","v":94.306606411975693},{"$f":"IF(SUMIFS(Data!$E:$E,Data!$B:$B,'29'!D$3,Data!$C:$C,'29'!$A$3,Data!$D:$D,'29'!$A12,Data!$F:$F,'29'!$A$2)=0,\"-\",SUMIFS(Data!$E:$E,Data!$B:$B,'29'!D$3,Data!$C:$C,'29'!$A$3,Data!$D:$D,'29'!$A12,Data!$F:$F,'29'!$A$2))","v":85.971240568618143},{"$f":"IF(SUMIFS(Data!$E:$E,Data!$B:$B,'29'!E$3,Data!$C:$C,'29'!$A$3,Data!$D:$D,'29'!$A12,Data!$F:$F,'29'!$A$2)=0,\"-\",SUMIFS(Data!$E:$E,Data!$B:$B,'29'!E$3,Data!$C:$C,'29'!$A$3,Data!$D:$D,'29'!$A12,Data!$F:$F,'29'!$A$2))","v":90.448852171204507},{"$f":"IF(SUMIFS(Data!$E:$E,Data!$B:$B,'29'!F$3,Data!$C:$C,'29'!$A$3,Data!$D:$D,'29'!$A12,Data!$F:$F,'29'!$A$2)=0,\"-\",SUMIFS(Data!$E:$E,Data!$B:$B,'29'!F$3,Data!$C:$C,'29'!$A$3,Data!$D:$D,'29'!$A12,Data!$F:$F,'29'!$A$2))","v":89.027068068065063},{"$f":"IF(SUMIFS(Data!$E:$E,Data!$B:$B,'29'!G$3,Data!$C:$C,'29'!$A$3,Data!$D:$D,'29'!$A12,Data!$F:$F,'29'!$A$2)=0,\"-\",SUMIFS(Data!$E:$E,Data!$B:$B,'29'!G$3,Data!$C:$C,'29'!$A$3,Data!$D:$D,'29'!$A12,Data!$F:$F,'29'!$A$2))","v":81.810840704890012},{"$f":"IF(SUMIFS(Data!$E:$E,Data!$B:$B,'29'!H$3,Data!$C:$C,'29'!$A$3,Data!$D:$D,'29'!$A12,Data!$F:$F,'29'!$A$2)=0,\"-\",SUMIFS(Data!$E:$E,Data!$B:$B,'29'!H$3,Data!$C:$C,'29'!$A$3,Data!$D:$D,'29'!$A12,Data!$F:$F,'29'!$A$2))","v":90.945914206310434},{"$f":"IF(SUMIFS(Data!$E:$E,Data!$B:$B,'29'!I$3,Data!$C:$C,'29'!$A$3,Data!$D:$D,'29'!$A12,Data!$F:$F,'29'!$A$2)=0,\"-\",SUMIFS(Data!$E:$E,Data!$B:$B,'29'!I$3,Data!$C:$C,'29'!$A$3,Data!$D:$D,'29'!$A12,Data!$F:$F,'29'!$A$2))","v":96.177007344521243},{"$f":"IF(SUMIFS(Data!$E:$E,Data!$B:$B,'29'!J$3,Data!$C:$C,'29'!$A$3,Data!$D:$D,'29'!$A12,Data!$F:$F,'29'!$A$2)=0,\"-\",SUMIFS(Data!$E:$E,Data!$B:$B,'29'!J$3,Data!$C:$C,'29'!$A$3,Data!$D:$D,'29'!$A12,Data!$F:$F,'29'!$A$2))","v":93.535329061276173},{"$f":"IF(SUMIFS(Data!$E:$E,Data!$B:$B,'29'!K$3,Data!$C:$C,'29'!$A$3,Data!$D:$D,'29'!$A12,Data!$F:$F,'29'!$A$2)=0,\"-\",SUMIFS(Data!$E:$E,Data!$B:$B,'29'!K$3,Data!$C:$C,'29'!$A$3,Data!$D:$D,'29'!$A12,Data!$F:$F,'29'!$A$2))","v":89.027068068065063}]
[{"$f":"VLOOKUP(\"Ontario\",Translation!$A$1:$C$354, Translation!A1+1, 0)","v":"Ontario"},{"$f":"IF(SUMIFS(Data!$E:$E,Data!$B:$B,'29'!B$3,Data!$C:$C,'29'!$A$3,Data!$D:$D,'29'!$A13,Data!$F:$F,'29'!$A$2)=0,\"-\",SUMIFS(Data!$E:$E,Data!$B:$B,'29'!B$3,Data!$C:$C,'29'!$A$3,Data!$D:$D,'29'!$A13,Data!$F:$F,'29'!$A$2))","v":95.14595525776879},{"$f":"IF(SUMIFS(Data!$E:$E,Data!$B:$B,'29'!C$3,Data!$C:$C,'29'!$A$3,Data!$D:$D,'29'!$A13,Data!$F:$F,'29'!$A$2)=0,\"-\",SUMIFS(Data!$E:$E,Data!$B:$B,'29'!C$3,Data!$C:$C,'29'!$A$3,Data!$D:$D,'29'!$A13,Data!$F:$F,'29'!$A$2))","v":93.280521053791588},{"$f":"IF(SUMIFS(Data!$E:$E,Data!$B:$B,'29'!D$3,Data!$C:$C,'29'!$A$3,Data!$D:$D,'29'!$A13,Data!$F:$F,'29'!$A$2)=0,\"-\",SUMIFS(Data!$E:$E,Data!$B:$B,'29'!D$3,Data!$C:$C,'29'!$A$3,Data!$D:$D,'29'!$A13,Data!$F:$F,'29'!$A$2))","v":79.037398765848849},{"$f":"IF(SUMIFS(Data!$E:$E,Data!$B:$B,'29'!E$3,Data!$C:$C,'29'!$A$3,Data!$D:$D,'29'!$A13,Data!$F:$F,'29'!$A$2)=0,\"-\",SUMIFS(Data!$E:$E,Data!$B:$B,'29'!E$3,Data!$C:$C,'29'!$A$3,Data!$D:$D,'29'!$A13,Data!$F:$F,'29'!$A$2))","v":80.826248269206857},{"$f":"IF(SUMIFS(Data!$E:$E,Data!$B:$B,'29'!F$3,Data!$C:$C,'29'!$A$3,Data!$D:$D,'29'!$A13,Data!$F:$F,'29'!$A$2)=0,\"-\",SUMIFS(Data!$E:$E,Data!$B:$B,'29'!F$3,Data!$C:$C,'29'!$A$3,Data!$D:$D,'29'!$A13,Data!$F:$F,'29'!$A$2))","v":95.190544099508671},{"$f":"IF(SUMIFS(Data!$E:$E,Data!$B:$B,'29'!G$3,Data!$C:$C,'29'!$A$3,Data!$D:$D,'29'!$A13,Data!$F:$F,'29'!$A$2)=0,\"-\",SUMIFS(Data!$E:$E,Data!$B:$B,'29'!G$3,Data!$C:$C,'29'!$A$3,Data!$D:$D,'29'!$A13,Data!$F:$F,'29'!$A$2))","v":91.139556422428157},{"$f":"IF(SUMIFS(Data!$E:$E,Data!$B:$B,'29'!H$3,Data!$C:$C,'29'!$A$3,Data!$D:$D,'29'!$A13,Data!$F:$F,'29'!$A$2)=0,\"-\",SUMIFS(Data!$E:$E,Data!$B:$B,'29'!H$3,Data!$C:$C,'29'!$A$3,Data!$D:$D,'29'!$A13,Data!$F:$F,'29'!$A$2))","v":81.547360754647315},{"$f":"IF(SUMIFS(Data!$E:$E,Data!$B:$B,'29'!I$3,Data!$C:$C,'29'!$A$3,Data!$D:$D,'29'!$A13,Data!$F:$F,'29'!$A$2)=0,\"-\",SUMIFS(Data!$E:$E,Data!$B:$B,'29'!I$3,Data!$C:$C,'29'!$A$3,Data!$D:$D,'29'!$A13,Data!$F:$F,'29'!$A$2))","v":78.197538173449573},{"$f":"IF(SUMIFS(Data!$E:$E,Data!$B:$B,'29'!J$3,Data!$C:$C,'29'!$A$3,Data!$D:$D,'29'!$A13,Data!$F:$F,'29'!$A$2)=0,\"-\",SUMIFS(Data!$E:$E,Data!$B:$B,'29'!J$3,Data!$C:$C,'29'!$A$3,Data!$D:$D,'29'!$A13,Data!$F:$F,'29'!$A$2))","v":95.14595525776879},{"$f":"IF(SUMIFS(Data!$E:$E,Data!$B:$B,'29'!K$3,Data!$C:$C,'29'!$A$3,Data!$D:$D,'29'!$A13,Data!$F:$F,'29'!$A$2)=0,\"-\",SUMIFS(Data!$E:$E,Data!$B:$B,'29'!K$3,Data!$C:$C,'29'!$A$3,Data!$D:$D,'29'!$A13,Data!$F:$F,'29'!$A$2))","v":95.190544099508671}]
[{"$f":"VLOOKUP(\"Manitoba\",Translation!$A$1:$C$354, Translation!A1+1, 0)","v":"Manitoba"},{"$f":"IF(SUMIFS(Data!$E:$E,Data!$B:$B,'29'!B$3,Data!$C:$C,'29'!$A$3,Data!$D:$D,'29'!$A14,Data!$F:$F,'29'!$A$2)=0,\"-\",SUMIFS(Data!$E:$E,Data!$B:$B,'29'!B$3,Data!$C:$C,'29'!$A$3,Data!$D:$D,'29'!$A14,Data!$F:$F,'29'!$A$2))","v":92.58536206400349},{"$f":"IF(SUMIFS(Data!$E:$E,Data!$B:$B,'29'!C$3,Data!$C:$C,'29'!$A$3,Data!$D:$D,'29'!$A14,Data!$F:$F,'29'!$A$2)=0,\"-\",SUMIFS(Data!$E:$E,Data!$B:$B,'29'!C$3,Data!$C:$C,'29'!$A$3,Data!$D:$D,'29'!$A14,Data!$F:$F,'29'!$A$2))","v":73.081699421882391},{"$f":"IF(SUMIFS(Data!$E:$E,Data!$B:$B,'29'!D$3,Data!$C:$C,'29'!$A$3,Data!$D:$D,'29'!$A14,Data!$F:$F,'29'!$A$2)=0,\"-\",SUMIFS(Data!$E:$E,Data!$B:$B,'29'!D$3,Data!$C:$C,'29'!$A$3,Data!$D:$D,'29'!$A14,Data!$F:$F,'29'!$A$2))","v":99.110650935753199},{"$f":"IF(SUMIFS(Data!$E:$E,Data!$B:$B,'29'!E$3,Data!$C:$C,'29'!$A$3,Data!$D:$D,'29'!$A14,Data!$F:$F,'29'!$A$2)=0,\"-\",SUMIFS(Data!$E:$E,Data!$B:$B,'29'!E$3,Data!$C:$C,'29'!$A$3,Data!$D:$D,'29'!$A14,Data!$F:$F,'29'!$A$2))","v":100},{"$f":"IF(SUMIFS(Data!$E:$E,Data!$B:$B,'29'!F$3,Data!$C:$C,'29'!$A$3,Data!$D:$D,'29'!$A14,Data!$F:$F,'29'!$A$2)=0,\"-\",SUMIFS(Data!$E:$E,Data!$B:$B,'29'!F$3,Data!$C:$C,'29'!$A$3,Data!$D:$D,'29'!$A14,Data!$F:$F,'29'!$A$2))","v":89.409724219189613},{"$f":"IF(SUMIFS(Data!$E:$E,Data!$B:$B,'29'!G$3,Data!$C:$C,'29'!$A$3,Data!$D:$D,'29'!$A14,Data!$F:$F,'29'!$A$2)=0,\"-\",SUMIFS(Data!$E:$E,Data!$B:$B,'29'!G$3,Data!$C:$C,'29'!$A$3,Data!$D:$D,'29'!$A14,Data!$F:$F,'29'!$A$2))","v":100},{"$f":"IF(SUMIFS(Data!$E:$E,Data!$B:$B,'29'!H$3,Data!$C:$C,'29'!$A$3,Data!$D:$D,'29'!$A14,Data!$F:$F,'29'!$A$2)=0,\"-\",SUMIFS(Data!$E:$E,Data!$B:$B,'29'!H$3,Data!$C:$C,'29'!$A$3,Data!$D:$D,'29'!$A14,Data!$F:$F,'29'!$A$2))","v":100},{"$f":"IF(SUMIFS(Data!$E:$E,Data!$B:$B,'29'!I$3,Data!$C:$C,'29'!$A$3,Data!$D:$D,'29'!$A14,Data!$F:$F,'29'!$A$2)=0,\"-\",SUMIFS(Data!$E:$E,Data!$B:$B,'29'!I$3,Data!$C:$C,'29'!$A$3,Data!$D:$D,'29'!$A14,Data!$F:$F,'29'!$A$2))","v":100},{"$f":"IF(SUMIFS(Data!$E:$E,Data!$B:$B,'29'!J$3,Data!$C:$C,'29'!$A$3,Data!$D:$D,'29'!$A14,Data!$F:$F,'29'!$A$2)=0,\"-\",SUMIFS(Data!$E:$E,Data!$B:$B,'29'!J$3,Data!$C:$C,'29'!$A$3,Data!$D:$D,'29'!$A14,Data!$F:$F,'29'!$A$2))","v":92.58536206400349},{"$f":"IF(SUMIFS(Data!$E:$E,Data!$B:$B,'29'!K$3,Data!$C:$C,'29'!$A$3,Data!$D:$D,'29'!$A14,Data!$F:$F,'29'!$A$2)=0,\"-\",SUMIFS(Data!$E:$E,Data!$B:$B,'29'!K$3,Data!$C:$C,'29'!$A$3,Data!$D:$D,'29'!$A14,Data!$F:$F,'29'!$A$2))","v":89.409724219189613}]
[{"$f":"VLOOKUP(\"Saskatchewan\",Translation!$A$1:$C$354, Translation!A1+1, 0)","v":"Saskatchewan"},{"$f":"IF(SUMIFS(Data!$E:$E,Data!$B:$B,'29'!B$3,Data!$C:$C,'29'!$A$3,Data!$D:$D,'29'!$A15,Data!$F:$F,'29'!$A$2)=0,\"-\",SUMIFS(Data!$E:$E,Data!$B:$B,'29'!B$3,Data!$C:$C,'29'!$A$3,Data!$D:$D,'29'!$A15,Data!$F:$F,'29'!$A$2))","v":63.534042542738611},{"$f":"IF(SUMIFS(Data!$E:$E,Data!$B:$B,'29'!C$3,Data!$C:$C,'29'!$A$3,Data!$D:$D,'29'!$A15,Data!$F:$F,'29'!$A$2)=0,\"-\",SUMIFS(Data!$E:$E,Data!$B:$B,'29'!C$3,Data!$C:$C,'29'!$A$3,Data!$D:$D,'29'!$A15,Data!$F:$F,'29'!$A$2))","v":92.155329237025825},{"$f":"IF(SUMIFS(Data!$E:$E,Data!$B:$B,'29'!D$3,Data!$C:$C,'29'!$A$3,Data!$D:$D,'29'!$A15,Data!$F:$F,'29'!$A$2)=0,\"-\",SUMIFS(Data!$E:$E,Data!$B:$B,'29'!D$3,Data!$C:$C,'29'!$A$3,Data!$D:$D,'29'!$A15,Data!$F:$F,'29'!$A$2))","v":100},{"$f":"IF(SUMIFS(Data!$E:$E,Data!$B:$B,'29'!E$3,Data!$C:$C,'29'!$A$3,Data!$D:$D,'29'!$A15,Data!$F:$F,'29'!$A$2)=0,\"-\",SUMIFS(Data!$E:$E,Data!$B:$B,'29'!E$3,Data!$C:$C,'29'!$A$3,Data!$D:$D,'29'!$A15,Data!$F:$F,'29'!$A$2))","v":100},{"$f":"IF(SUMIFS(Data!$E:$E,Data!$B:$B,'29'!F$3,Data!$C:$C,'29'!$A$3,Data!$D:$D,'29'!$A15,Data!$F:$F,'29'!$A$2)=0,\"-\",SUMIFS(Data!$E:$E,Data!$B:$B,'29'!F$3,Data!$C:$C,'29'!$A$3,Data!$D:$D,'29'!$A15,Data!$F:$F,'29'!$A$2))","v":100},{"$f":"IF(SUMIFS(Data!$E:$E,Data!$B:$B,'29'!G$3,Data!$C:$C,'29'!$A$3,Data!$D:$D,'29'!$A15,Data!$F:$F,'29'!$A$2)=0,\"-\",SUMIFS(Data!$E:$E,Data!$B:$B,'29'!G$3,Data!$C:$C,'29'!$A$3,Data!$D:$D,'29'!$A15,Data!$F:$F,'29'!$A$2))","v":84.303783943671803},{"$f":"IF(SUMIFS(Data!$E:$E,Data!$B:$B,'29'!H$3,Data!$C:$C,'29'!$A$3,Data!$D:$D,'29'!$A15,Data!$F:$F,'29'!$A$2)=0,\"-\",SUMIFS(Data!$E:$E,Data!$B:$B,'29'!H$3,Data!$C:$C,'29'!$A$3,Data!$D:$D,'29'!$A15,Data!$F:$F,'29'!$A$2))","v":96.925059461839709},{"$f":"IF(SUMIFS(Data!$E:$E,Data!$B:$B,'29'!I$3,Data!$C:$C,'29'!$A$3,Data!$D:$D,'29'!$A15,Data!$F:$F,'29'!$A$2)=0,\"-\",SUMIFS(Data!$E:$E,Data!$B:$B,'29'!I$3,Data!$C:$C,'29'!$A$3,Data!$D:$D,'29'!$A15,Data!$F:$F,'29'!$A$2))","v":100},{"$f":"IF(SUMIFS(Data!$E:$E,Data!$B:$B,'29'!J$3,Data!$C:$C,'29'!$A$3,Data!$D:$D,'29'!$A15,Data!$F:$F,'29'!$A$2)=0,\"-\",SUMIFS(Data!$E:$E,Data!$B:$B,'29'!J$3,Data!$C:$C,'29'!$A$3,Data!$D:$D,'29'!$A15,Data!$F:$F,'29'!$A$2))","v":63.534042542738611},{"$f":"IF(SUMIFS(Data!$E:$E,Data!$B:$B,'29'!K$3,Data!$C:$C,'29'!$A$3,Data!$D:$D,'29'!$A15,Data!$F:$F,'29'!$A$2)=0,\"-\",SUMIFS(Data!$E:$E,Data!$B:$B,'29'!K$3,Data!$C:$C,'29'!$A$3,Data!$D:$D,'29'!$A15,Data!$F:$F,'29'!$A$2))","v":100}]
[{"$f":"VLOOKUP(\"Alberta\",Translation!$A$1:$C$354, Translation!A1+1, 0)","v":"Alberta"},{"$f":"IF(SUMIFS(Data!$E:$E,Data!$B:$B,'29'!B$3,Data!$C:$C,'29'!$A$3,Data!$D:$D,'29'!$A16,Data!$F:$F,'29'!$A$2)=0,\"-\",SUMIFS(Data!$E:$E,Data!$B:$B,'29'!B$3,Data!$C:$C,'29'!$A$3,Data!$D:$D,'29'!$A16,Data!$F:$F,'29'!$A$2))","v":84.817156562305385},{"$f":"IF(SUMIFS(Data!$E:$E,Data!$B:$B,'29'!C$3,Data!$C:$C,'29'!$A$3,Data!$D:$D,'29'!$A16,Data!$F:$F,'29'!$A$2)=0,\"-\",SUMIFS(Data!$E:$E,Data!$B:$B,'29'!C$3,Data!$C:$C,'29'!$A$3,Data!$D:$D,'29'!$A16,Data!$F:$F,'29'!$A$2))","v":98.394876760405594},{"$f":"IF(SUMIFS(Data!$E:$E,Data!$B:$B,'29'!D$3,Data!$C:$C,'29'!$A$3,Data!$D:$D,'29'!$A16,Data!$F:$F,'29'!$A$2)=0,\"-\",SUMIFS(Data!$E:$E,Data!$B:$B,'29'!D$3,Data!$C:$C,'29'!$A$3,Data!$D:$D,'29'!$A16,Data!$F:$F,'29'!$A$2))","v":76.415500854797557},{"$f":"IF(SUMIFS(Data!$E:$E,Data!$B:$B,'29'!E$3,Data!$C:$C,'29'!$A$3,Data!$D:$D,'29'!$A16,Data!$F:$F,'29'!$A$2)=0,\"-\",SUMIFS(Data!$E:$E,Data!$B:$B,'29'!E$3,Data!$C:$C,'29'!$A$3,Data!$D:$D,'29'!$A16,Data!$F:$F,'29'!$A$2))","v":82.256323987797856},{"$f":"IF(SUMIFS(Data!$E:$E,Data!$B:$B,'29'!F$3,Data!$C:$C,'29'!$A$3,Data!$D:$D,'29'!$A16,Data!$F:$F,'29'!$A$2)=0,\"-\",SUMIFS(Data!$E:$E,Data!$B:$B,'29'!F$3,Data!$C:$C,'29'!$A$3,Data!$D:$D,'29'!$A16,Data!$F:$F,'29'!$A$2))","v":82.584517108290569},{"$f":"IF(SUMIFS(Data!$E:$E,Data!$B:$B,'29'!G$3,Data!$C:$C,'29'!$A$3,Data!$D:$D,'29'!$A16,Data!$F:$F,'29'!$A$2)=0,\"-\",SUMIFS(Data!$E:$E,Data!$B:$B,'29'!G$3,Data!$C:$C,'29'!$A$3,Data!$D:$D,'29'!$A16,Data!$F:$F,'29'!$A$2))","v":97.899289846937378},{"$f":"IF(SUMIFS(Data!$E:$E,Data!$B:$B,'29'!H$3,Data!$C:$C,'29'!$A$3,Data!$D:$D,'29'!$A16,Data!$F:$F,'29'!$A$2)=0,\"-\",SUMIFS(Data!$E:$E,Data!$B:$B,'29'!H$3,Data!$C:$C,'29'!$A$3,Data!$D:$D,'29'!$A16,Data!$F:$F,'29'!$A$2))","v":91.869174591659274},{"$f":"IF(SUMIFS(Data!$E:$E,Data!$B:$B,'29'!I$3,Data!$C:$C,'29'!$A$3,Data!$D:$D,'29'!$A16,Data!$F:$F,'29'!$A$2)=0,\"-\",SUMIFS(Data!$E:$E,Data!$B:$B,'29'!I$3,Data!$C:$C,'29'!$A$3,Data!$D:$D,'29'!$A16,Data!$F:$F,'29'!$A$2))","v":89.650701029805191},{"$f":"IF(SUMIFS(Data!$E:$E,Data!$B:$B,'29'!J$3,Data!$C:$C,'29'!$A$3,Data!$D:$D,'29'!$A16,Data!$F:$F,'29'!$A$2)=0,\"-\",SUMIFS(Data!$E:$E,Data!$B:$B,'29'!J$3,Data!$C:$C,'29'!$A$3,Data!$D:$D,'29'!$A16,Data!$F:$F,'29'!$A$2))","v":84.817156562305385},{"$f":"IF(SUMIFS(Data!$E:$E,Data!$B:$B,'29'!K$3,Data!$C:$C,'29'!$A$3,Data!$D:$D,'29'!$A16,Data!$F:$F,'29'!$A$2)=0,\"-\",SUMIFS(Data!$E:$E,Data!$B:$B,'29'!K$3,Data!$C:$C,'29'!$A$3,Data!$D:$D,'29'!$A16,Data!$F:$F,'29'!$A$2))","v":82.584517108290569}]
[{"$f":"VLOOKUP(\"British Columbia\",Translation!$A$1:$C$354, Translation!A1+1, 0)","v":"Colombie-Britannique"},{"$f":"IF(SUMIFS(Data!$E:$E,Data!$B:$B,'29'!B$3,Data!$C:$C,'29'!$A$3,Data!$D:$D,'29'!$A17,Data!$F:$F,'29'!$A$2)=0,\"-\",SUMIFS(Data!$E:$E,Data!$B:$B,'29'!B$3,Data!$C:$C,'29'!$A$3,Data!$D:$D,'29'!$A17,Data!$F:$F,'29'!$A$2))","v":88.188065953305511},{"$f":"IF(SUMIFS(Data!$E:$E,Data!$B:$B,'29'!C$3,Data!$C:$C,'29'!$A$3,Data!$D:$D,'29'!$A17,Data!$F:$F,'29'!$A$2)=0,\"-\",SUMIFS(Data!$E:$E,Data!$B:$B,'29'!C$3,Data!$C:$C,'29'!$A$3,Data!$D:$D,'29'!$A17,Data!$F:$F,'29'!$A$2))","v":96.173295452569249},{"$f":"IF(SUMIFS(Data!$E:$E,Data!$B:$B,'29'!D$3,Data!$C:$C,'29'!$A$3,Data!$D:$D,'29'!$A17,Data!$F:$F,'29'!$A$2)=0,\"-\",SUMIFS(Data!$E:$E,Data!$B:$B,'29'!D$3,Data!$C:$C,'29'!$A$3,Data!$D:$D,'29'!$A17,Data!$F:$F,'29'!$A$2))","v":93.766579863235819},{"$f":"IF(SUMIFS(Data!$E:$E,Data!$B:$B,'29'!E$3,Data!$C:$C,'29'!$A$3,Data!$D:$D,'29'!$A17,Data!$F:$F,'29'!$A$2)=0,\"-\",SUMIFS(Data!$E:$E,Data!$B:$B,'29'!E$3,Data!$C:$C,'29'!$A$3,Data!$D:$D,'29'!$A17,Data!$F:$F,'29'!$A$2))","v":98.364690733591104},{"$f":"IF(SUMIFS(Data!$E:$E,Data!$B:$B,'29'!F$3,Data!$C:$C,'29'!$A$3,Data!$D:$D,'29'!$A17,Data!$F:$F,'29'!$A$2)=0,\"-\",SUMIFS(Data!$E:$E,Data!$B:$B,'29'!F$3,Data!$C:$C,'29'!$A$3,Data!$D:$D,'29'!$A17,Data!$F:$F,'29'!$A$2))","v":93.151430235479012},{"$f":"IF(SUMIFS(Data!$E:$E,Data!$B:$B,'29'!G$3,Data!$C:$C,'29'!$A$3,Data!$D:$D,'29'!$A17,Data!$F:$F,'29'!$A$2)=0,\"-\",SUMIFS(Data!$E:$E,Data!$B:$B,'29'!G$3,Data!$C:$C,'29'!$A$3,Data!$D:$D,'29'!$A17,Data!$F:$F,'29'!$A$2))","v":87.121502963963692},{"$f":"IF(SUMIFS(Data!$E:$E,Data!$B:$B,'29'!H$3,Data!$C:$C,'29'!$A$3,Data!$D:$D,'29'!$A17,Data!$F:$F,'29'!$A$2)=0,\"-\",SUMIFS(Data!$E:$E,Data!$B:$B,'29'!H$3,Data!$C:$C,'29'!$A$3,Data!$D:$D,'29'!$A17,Data!$F:$F,'29'!$A$2))","v":76.309792619261117},{"$f":"IF(SUMIFS(Data!$E:$E,Data!$B:$B,'29'!I$3,Data!$C:$C,'29'!$A$3,Data!$D:$D,'29'!$A17,Data!$F:$F,'29'!$A$2)=0,\"-\",SUMIFS(Data!$E:$E,Data!$B:$B,'29'!I$3,Data!$C:$C,'29'!$A$3,Data!$D:$D,'29'!$A17,Data!$F:$F,'29'!$A$2))","v":82.853133973347099},{"$f":"IF(SUMIFS(Data!$E:$E,Data!$B:$B,'29'!J$3,Data!$C:$C,'29'!$A$3,Data!$D:$D,'29'!$A17,Data!$F:$F,'29'!$A$2)=0,\"-\",SUMIFS(Data!$E:$E,Data!$B:$B,'29'!J$3,Data!$C:$C,'29'!$A$3,Data!$D:$D,'29'!$A17,Data!$F:$F,'29'!$A$2))","v":88.188065953305511},{"$f":"IF(SUMIFS(Data!$E:$E,Data!$B:$B,'29'!K$3,Data!$C:$C,'29'!$A$3,Data!$D:$D,'29'!$A17,Data!$F:$F,'29'!$A$2)=0,\"-\",SUMIFS(Data!$E:$E,Data!$B:$B,'29'!K$3,Data!$C:$C,'29'!$A$3,Data!$D:$D,'29'!$A17,Data!$F:$F,'29'!$A$2))","v":93.151430235479012}]
[{"$f":"VLOOKUP(\"Territories\",Translation!$A$1:$C$354, Translation!A1+1, 0)","v":"Territoires"},{"$f":"IF(SUMIFS(Data!$E:$E,Data!$B:$B,'29'!B$3,Data!$C:$C,'29'!$A$3,Data!$D:$D,'29'!$A18,Data!$F:$F,'29'!$A$2)=0,\"-\",SUMIFS(Data!$E:$E,Data!$B:$B,'29'!B$3,Data!$C:$C,'29'!$A$3,Data!$D:$D,'29'!$A18,Data!$F:$F,'29'!$A$2))","v":"-"},{"$f":"IF(SUMIFS(Data!$E:$E,Data!$B:$B,'29'!C$3,Data!$C:$C,'29'!$A$3,Data!$D:$D,'29'!$A18,Data!$F:$F,'29'!$A$2)=0,\"-\",SUMIFS(Data!$E:$E,Data!$B:$B,'29'!C$3,Data!$C:$C,'29'!$A$3,Data!$D:$D,'29'!$A18,Data!$F:$F,'29'!$A$2))","v":75.769604092252621},{"$f":"IF(SUMIFS(Data!$E:$E,Data!$B:$B,'29'!D$3,Data!$C:$C,'29'!$A$3,Data!$D:$D,'29'!$A18,Data!$F:$F,'29'!$A$2)=0,\"-\",SUMIFS(Data!$E:$E,Data!$B:$B,'29'!D$3,Data!$C:$C,'29'!$A$3,Data!$D:$D,'29'!$A18,Data!$F:$F,'29'!$A$2))","v":100},{"$f":"IF(SUMIFS(Data!$E:$E,Data!$B:$B,'29'!E$3,Data!$C:$C,'29'!$A$3,Data!$D:$D,'29'!$A18,Data!$F:$F,'29'!$A$2)=0,\"-\",SUMIFS(Data!$E:$E,Data!$B:$B,'29'!E$3,Data!$C:$C,'29'!$A$3,Data!$D:$D,'29'!$A18,Data!$F:$F,'29'!$A$2))","v":"-"},{"$f":"IF(SUMIFS(Data!$E:$E,Data!$B:$B,'29'!F$3,Data!$C:$C,'29'!$A$3,Data!$D:$D,'29'!$A18,Data!$F:$F,'29'!$A$2)=0,\"-\",SUMIFS(Data!$E:$E,Data!$B:$B,'29'!F$3,Data!$C:$C,'29'!$A$3,Data!$D:$D,'29'!$A18,Data!$F:$F,'29'!$A$2))","v":100},{"$f":"IF(SUMIFS(Data!$E:$E,Data!$B:$B,'29'!G$3,Data!$C:$C,'29'!$A$3,Data!$D:$D,'29'!$A18,Data!$F:$F,'29'!$A$2)=0,\"-\",SUMIFS(Data!$E:$E,Data!$B:$B,'29'!G$3,Data!$C:$C,'29'!$A$3,Data!$D:$D,'29'!$A18,Data!$F:$F,'29'!$A$2))","v":"-"},{"$f":"IF(SUMIFS(Data!$E:$E,Data!$B:$B,'29'!H$3,Data!$C:$C,'29'!$A$3,Data!$D:$D,'29'!$A18,Data!$F:$F,'29'!$A$2)=0,\"-\",SUMIFS(Data!$E:$E,Data!$B:$B,'29'!H$3,Data!$C:$C,'29'!$A$3,Data!$D:$D,'29'!$A18,Data!$F:$F,'29'!$A$2))","v":100},{"$f":"IF(SUMIFS(Data!$E:$E,Data!$B:$B,'29'!I$3,Data!$C:$C,'29'!$A$3,Data!$D:$D,'29'!$A18,Data!$F:$F,'29'!$A$2)=0,\"-\",SUMIFS(Data!$E:$E,Data!$B:$B,'29'!I$3,Data!$C:$C,'29'!$A$3,Data!$D:$D,'29'!$A18,Data!$F:$F,'29'!$A$2))","v":"-"},{"$f":"IF(SUMIFS(Data!$E:$E,Data!$B:$B,'29'!J$3,Data!$C:$C,'29'!$A$3,Data!$D:$D,'29'!$A18,Data!$F:$F,'29'!$A$2)=0,\"-\",SUMIFS(Data!$E:$E,Data!$B:$B,'29'!J$3,Data!$C:$C,'29'!$A$3,Data!$D:$D,'29'!$A18,Data!$F:$F,'29'!$A$2))","v":"-"},{"$f":"IF(SUMIFS(Data!$E:$E,Data!$B:$B,'29'!K$3,Data!$C:$C,'29'!$A$3,Data!$D:$D,'29'!$A18,Data!$F:$F,'29'!$A$2)=0,\"-\",SUMIFS(Data!$E:$E,Data!$B:$B,'29'!K$3,Data!$C:$C,'29'!$A$3,Data!$D:$D,'29'!$A18,Data!$F:$F,'29'!$A$2))","v":100}]
[{"$f":"VLOOKUP(\"Distribution based on loan amounts, not number of loans.\",Translation!$A$1:$C$354, Translation!A1+1, 0)","v":"La répartition est établie d'après le montant, plutôt que le nombre de prêts assurés."}]
[{"$f":"VLOOKUP(\"The sum of all breakdown categories may not add up to 100 due to rounding.\",Translation!$A$1:$C$354, Translation!A1+1, 0)","v":"Les chiffres ayant été arrondis, il se peut que la somme de l'ensemble des catégories n'égale pas 100 %."}]
[]
[{"$f":"VLOOKUP(\"Insurance-in-force by dwelling type (%)\",Translation!$A$1:$C$354, Translation!A1+1, 0)","v":"Contrats d’assurance en vigueur selon le type de logement (%)"}]
[{"$f":"VLOOKUP(\"MULTI-UNIT RESIDENTIAL\",Translation!$A$1:$C$354, Translation!A1+1, 0)","v":"IMMEUBLES COLLECTIFS RÉSIDENTIELS"},{"$f":"VLOOKUP(\"As at\",Translation!$A$1:$C$354,Translation!A1+1,0)","v":"Aux"}]
[null,{"$f":"VLOOKUP(\"Q1 2020\",Translation!$A$1:$C$354, Translation!A1+1, 0)","v":"T1 2020"},{"$f":"VLOOKUP(\"Q4 2019\",Translation!$A$1:$C$354, Translation!A1+1, 0)","v":"T4 2019"},{"$f":"VLOOKUP(\"Q3 2019\",Translation!$A$1:$C$354, Translation!A1+1, 0)","v":"T3 2019"},{"$f":"E3","v":"T2 2019"},{"$f":"F3","v":"T1 2019"},"T4 2018","T3 2018","T2 2018"]
[{"$f":"VLOOKUP(\"Apartment\",Translation!$A$1:$C$354, Translation!A1+1, 0)","v":"Appartement"},86.119712288088806,85.614106241646638,85.130934282195753,85.043945081027545,85.873069198724309,84.39065093394062,85.283482329711774,84.048252743163914]
[{"$f":"VLOOKUP(\"Retirement/Nursing homes\",Translation!$A$1:$C$354, Translation!A1+1, 0)","v":"Maison de retraite/de repos"},9.5806620481615248,9.9780573597074635,10.253894085416752,10.438026661237092,9.4846580766651005,10.8080627937992,9.6279535790475244,10.77123640537866]
[{"$f":"VLOOKUP(\"Other\",Translation!$A$1:$C$354, Translation!A1+1, 0)","v":"Autre"},4.2996256637467356,4.4078363986501117,4.6151716323808296,4.5180282577361224,4.6422727246092519,4.8012862722617653,5.0885640912450434,5.1805108514574272]
[{"$f":"VLOOKUP(\"Apartments by province (%)\",Translation!$A$1:$C$354, Translation!A1+1, 0)","v":"Appartements selon la province (%)"}]
[{"$f":"VLOOKUP(\"Newfoundland and Labrador\",Translation!$A$1:$C$354, Translation!A1+1, 0)","v":"Terre-Neuve-et-Labrador"},76.721820421321866,75.961970871137012,76.900000000000006,76.819397784267466,80.248994392164846,76.292122456833056,79.976717130489689,74.417173057593828]
[{"$f":"VLOOKUP(\"Prince Edward Island\",Translation!$A$1:$C$354, Translation!A1+1, 0)","v":"Île-du-Prince-Édouard"},76.983791355614983,75.49183820798433,73.099999999999994,72.130092787081892,71.934047755916438,71.157675280359882,69.242620588963064,66.999559369749079]
[{"$f":"VLOOKUP(\"Nova Scotia\",Translation!$A$1:$C$354, Translation!A1+1, 0)","v":"Nouvelle-Écosse"},95.113536854733198,94.977209393780129,94.5,94.58461293461707,94.575826150254827,94.196073582811721,94.137338042543661,93.880284338261148]
[{"$f":"VLOOKUP(\"New Brunswick\",Translation!$A$1:$C$354, Translation!A1+1, 0)","v":"Nouveau-Brunswick"},95.079845754821719,95.394631766095074,95.3,95.078883374486949,95.141992166435998,94.39918238449269,94.035397151650869,93.650534110229444]
[{"$f":"VLOOKUP(\"Quebec\",Translation!$A$1:$C$354, Translation!A1+1, 0)","v":"Québec"},83.43719602264818,82.687215993711902,82.2,81.972811802590243,83.324489322866654,81.370488908505862,83.039002265280146,80.787843414917731]
[{"$f":"VLOOKUP(\"Ontario\",Translation!$A$1:$C$354, Translation!A1+1, 0)","v":"Ontario"},86.118016357459368,85.391498463371946,85,85.385601509729042,85.89544804639938,84.937654280966839,85.253395249958189,84.7562317787811]
[{"$f":"VLOOKUP(\"Manitoba\",Translation!$A$1:$C$354, Translation!A1+1, 0)","v":"Manitoba"},93.709975877204513,93.503557571251889,93.6,92.955669305147936,92.300682535896598,92.673587987574635,91.787173945112642,91.583428800125446]
[{"$f":"VLOOKUP(\"Saskatchewan\",Translation!$A$1:$C$354, Translation!A1+1, 0)","v":"Saskatchewan"},85.744755449048114,86.905995769295345,85.6,86.209145947378161,86.042843839585814,84.933794030062145,84.78737051229696,84.411647031672445]
[{"$f":"VLOOKUP(\"Alberta\",Translation!$A$1:$C$354, Translation!A1+1, 0)","v":"Alberta"},86.012313536926882,85.716187775341695,84.8,84.391891564331743,85.473051342239557,84.248238339909292,84.740464037245971,83.744188916706406]
[{"$f":"VLOOKUP(\"British Columbia\",Translation!$A$1:$C$354, Translation!A1+1, 0)","v":"Colombie-Britannique"},87.048699393733997,87.048382069505607,86.6,86.089349842050211,87.178044036415841,84.52049447153901,86.206205502407684,84.562847129326016]
[{"$f":"VLOOKUP(\"Territories\",Translation!$A$1:$C$354, Translation!A1+1, 0)","v":"Territoires"},76.188770579774896,76.093814386587326,76.099999999999994,73.91426461129916,76.278774540943004,75.606901469502674,78.499176816663578,77.276704845048201]
[{"$f":"VLOOKUP(\"Distribution based on outstanding loan amounts, not number of loans.\",Translation!$A$1:$C$354, Translation!A1+1, 0)","v":"La répartition est établie d'après le solde, plutôt que le nombre de prêts assurés."}]
[{"$f":"VLOOKUP(\"The sum of all breakdown categories may not add up to 100 due to rounding.\",Translation!$A$1:$C$354, Translation!A1+1, 0)","v":"Les chiffres ayant été arrondis, il se peut que la somme de l'ensemble des catégories n'égale pas 100 %."}]

{"sheet":"30","index":31,"n_rows":39,"n_cols":11,"rows_kept":39,"cut":false,"hidden":false,"merged":[[21,0,22,0],[21,1,21,8],[0,6,0,10]]}
[{"$f":"VLOOKUP(\"MULTI-UNIT RESIDENTIAL - URBAN/RURAL\",Translation!$A$1:$C$354, Translation!A1+1, 0)","v":"IMMEUBLES COLLECTIFS RÉSIDENTIELS - URBAIN/RURAL"},null,null,null,null,null,{"$f":"VLOOKUP(\"Back to Table of Contents\",Translation!$A$1:$C$354, Translation!A1+1, 0)","v":"Retour à la table des matières"}]
[{"$f":"VLOOKUP(\"Loans insured in period by urban and rural type (%)\",Translation!$A$1:$C$354, Translation!A1+1, 0)","v":"Prêts hypothécaires assurés au cours de la période selon le milieu urbain/rural (%)"}]
[{"$f":"VLOOKUP(\"MULTI-UNIT RESIDENTIAL\",Translation!$A$1:$C$354, Translation!A1+1, 0)","v":"IMMEUBLES COLLECTIFS RÉSIDENTIELS"},{"$f":"VLOOKUP(\"Q1 2020\",Translation!$A$1:$C$354, Translation!$A$1+1, 0)","v":"T1 2020"},{"$f":"VLOOKUP(\"Q4 2019\",Translation!$A$1:$C$354, Translation!$A$1+1, 0)","v":"T4 2019"},{"$f":"VLOOKUP(\"Q3 2019\",Translation!$A$1:$C$354, Translation!$A$1+1, 0)","v":"T3 2019"},{"$f":"VLOOKUP(\"Q2 2019\",Translation!$A$1:$C$354, Translation!$A$1+1, 0)","v":"T2 2019"},{"$f":"VLOOKUP(\"Q1 2019\",Translation!$A$1:$C$354, Translation!$A$1+1, 0)","v":"T1 2019"},{"$f":"VLOOKUP(\"Q4 2018\",Translation!$A$1:$C$354, Translation!$A$1+1, 0)","v":"T4 2018"},{"$f":"VLOOKUP(\"Q3 2018\",Translation!$A$1:$C$354, Translation!$A$1+1, 0)","v":"T3 2018"},{"$f":"VLOOKUP(\"Q2 2018\",Translation!$A$1:$C$354, Translation!$A$1+1, 0)","v":"T2 2018"},{"$f":"VLOOKUP(\"YTD 2020\",Translation!$A$1:$C$354, Translation!$A$1+1, 0)","v":"Cumul 2020"},{"$f":"VLOOKUP(\"YTD 2019\",Translation!$A$1:$C$354, Translation!$A$1+1, 0)","v":"Cumul 2019"}]
[{"$f":"VLOOKUP(\"Urban\",Translation!$A$1:$C$354, Translation!A1+1, 0)","v":"Urbain"},{"$f":"SUMIFS(Data!$E:$E,Data!$B:$B,'30'!B$3,Data!$C:$C,'30'!$A$3,Data!$D:$D,'30'!$A4,Data!$F:$F,'30'!$A$2)","v":99.031476997578693},{"$f":"SUMIFS(Data!$E:$E,Data!$B:$B,'30'!C$3,Data!$C:$C,'30'!$A$3,Data!$D:$D,'30'!$A4,Data!$F:$F,'30'!$A$2)","v":98.869296387473526},{"$f":"SUMIFS(Data!$E:$E,Data!$B:$B,'30'!D$3,Data!$C:$C,'30'!$A$3,Data!$D:$D,'30'!$A4,Data!$F:$F,'30'!$A$2)","v":98.740446835139679},{"$f":"SUMIFS(Data!$E:$E,Data!$B:$B,'30'!E$3,Data!$C:$C,'30'!$A$3,Data!$D:$D,'30'!$A4,Data!$F:$F,'30'!$A$2)","v":98.728198900246255},{"$f":"SUMIFS(Data!$E:$E,Data!$B:$B,'30'!F$3,Data!$C:$C,'30'!$A$3,Data!$D:$D,'30'!$A4,Data!$F:$F,'30'!$A$2)","v":98.550144540804979},{"$f":"SUMIFS(Data!$E:$E,Data!$B:$B,'30'!G$3,Data!$C:$C,'30'!$A$3,Data!$D:$D,'30'!$A4,Data!$F:$F,'30'!$A$2)","v":98.247330463465104},{"$f":"SUMIFS(Data!$E:$E,Data!$B:$B,'30'!H$3,Data!$C:$C,'30'!$A$3,Data!$D:$D,'30'!$A4,Data!$F:$F,'30'!$A$2)","v":98.554514931966779},{"$f":"SUMIFS(Data!$E:$E,Data!$B:$B,'30'!I$3,Data!$C:$C,'30'!$A$3,Data!$D:$D,'30'!$A4,Data!$F:$F,'30'!$A$2)","v":98.22065532973869},{"$f":"SUMIFS(Data!$E:$E,Data!$B:$B,'30'!J$3,Data!$C:$C,'30'!$A$3,Data!$D:$D,'30'!$A4,Data!$F:$F,'30'!$A$2)","v":99.031476997578693},{"$f":"SUMIFS(Data!$E:$E,Data!$B:$B,'30'!K$3,Data!$C:$C,'30'!$A$3,Data!$D:$D,'30'!$A4,Data!$F:$F,'30'!$A$2)","v":98.550144540804979}]
[{"$f":"VLOOKUP(\"Rural\",Translation!$A$1:$C$354, Translation!A1+1, 0)","v":"Rural"},{"$f":"SUMIFS(Data!$E:$E,Data!$B:$B,'30'!B$3,Data!$C:$C,'30'!$A$3,Data!$D:$D,'30'!$A5,Data!$F:$F,'30'!$A$2)","v":0.96852300242130751},{"$f":"SUMIFS(Data!$E:$E,Data!$B:$B,'30'!C$3,Data!$C:$C,'30'!$A$3,Data!$D:$D,'30'!$A5,Data!$F:$F,'30'!$A$2)","v":1.1307036125264784},{"$f":"SUMIFS(Data!$E:$E,Data!$B:$B,'30'!D$3,Data!$C:$C,'30'!$A$3,Data!$D:$D,'30'!$A5,Data!$F:$F,'30'!$A$2)","v":1.2595531648603304},{"$f":"SUMIFS(Data!$E:$E,Data!$B:$B,'30'!E$3,Data!$C:$C,'30'!$A$3,Data!$D:$D,'30'!$A5,Data!$F:$F,'30'!$A$2)","v":1.2718010997537359},{"$f":"SUMIFS(Data!$E:$E,Data!$B:$B,'30'!F$3,Data!$C:$C,'30'!$A$3,Data!$D:$D,'30'!$A5,Data!$F:$F,'30'!$A$2)","v":1.4498554591950188},{"$f":"SUMIFS(Data!$E:$E,Data!$B:$B,'30'!G$3,Data!$C:$C,'30'!$A$3,Data!$D:$D,'30'!$A5,Data!$F:$F,'30'!$A$2)","v":1.7526695365349123},{"$f":"SUMIFS(Data!$E:$E,Data!$B:$B,'30'!H$3,Data!$C:$C,'30'!$A$3,Data!$D:$D,'30'!$A5,Data!$F:$F,'30'!$A$2)","v":1.4454850680332219},{"$f":"SUMIFS(Data!$E:$E,Data!$B:$B,'30'!I$3,Data!$C:$C,'30'!$A$3,Data!$D:$D,'30'!$A5,Data!$F:$F,'30'!$A$2)","v":1.7793446702613025},{"$f":"SUMIFS(Data!$E:$E,Data!$B:$B,'30'!J$3,Data!$C:$C,'30'!$A$3,Data!$D:$D,'30'!$A5,Data!$F:$F,'30'!$A$2)","v":0.96852300242130751},{"$f":"SUMIFS(Data!$E:$E,Data!$B:$B,'30'!K$3,Data!$C:$C,'30'!$A$3,Data!$D:$D,'30'!$A5,Data!$F:$F,'30'!$A$2)","v":1.4498554591950188}]
[{"$f":"VLOOKUP(\"Urban properties by province (%)\",Translation!$A$1:$C$354, Translation!A1+1, 0)","v":"Propriétés urbaines selon la province (%)"}]
[{"$f":"VLOOKUP(\"Newfoundland and Labrador\",Translation!$A$1:$C$354, Translation!A1+1, 0)","v":"Terre-Neuve-et-Labrador"},{"$f":"IF(SUMIFS(Data!$E:$E,Data!$B:$B,'30'!B$3,Data!$C:$C,'30'!$A$3,Data!$D:$D,'30'!$A7,Data!$F:$F,'30'!$A$2)=0,\"-\",SUMIFS(Data!$E:$E,Data!$B:$B,'30'!B$3,Data!$C:$C,'30'!$A$3,Data!$D:$D,'30'!$A7,Data!$F:$F,'30'!$A$2))","v":95},{"$f":"IF(SUMIFS(Data!$E:$E,Data!$B:$B,'30'!C$3,Data!$C:$C,'30'!$A$3,Data!$D:$D,'30'!$A7,Data!$F:$F,'30'!$A$2)=0,\"-\",SUMIFS(Data!$E:$E,Data!$B:$B,'30'!C$3,Data!$C:$C,'30'!$A$3,Data!$D:$D,'30'!$A7,Data!$F:$F,'30'!$A$2))","v":100},{"$f":"IF(SUMIFS(Data!$E:$E,Data!$B:$B,'30'!D$3,Data!$C:$C,'30'!$A$3,Data!$D:$D,'30'!$A7,Data!$F:$F,'30'!$A$2)=0,\"-\",SUMIFS(Data!$E:$E,Data!$B:$B,'30'!D$3,Data!$C:$C,'30'!$A$3,Data!$D:$D,'30'!$A7,Data!$F:$F,'30'!$A$2))","v":"-"},{"$f":"IF(SUMIFS(Data!$E:$E,Data!$B:$B,'30'!E$3,Data!$C:$C,'30'!$A$3,Data!$D:$D,'30'!$A7,Data!$F:$F,'30'!$A$2)=0,\"-\",SUMIFS(Data!$E:$E,Data!$B:$B,'30'!E$3,Data!$C:$C,'30'!$A$3,Data!$D:$D,'30'!$A7,Data!$F:$F,'30'!$A$2))","v":100},{"$f":"IF(SUMIFS(Data!$E:$E,Data!$B:$B,'30'!F$3,Data!$C:$C,'30'!$A$3,Data!$D:$D,'30'!$A7,Data!$F:$F,'30'!$A$2)=0,\"-\",SUMIFS(Data!$E:$E,Data!$B:$B,'30'!F$3,Data!$C:$C,'30'!$A$3,Data!$D:$D,'30'!$A7,Data!$F:$F,'30'!$A$2))","v":"-"},{"$f":"IF(SUMIFS(Data!$E:$E,Data!$B:$B,'30'!G$3,Data!$C:$C,'30'!$A$3,Data!$D:$D,'30'!$A7,Data!$F:$F,'30'!$A$2)=0,\"-\",SUMIFS(Data!$E:$E,Data!$B:$B,'30'!G$3,Data!$C:$C,'30'!$A$3,Data!$D:$D,'30'!$A7,Data!$F:$F,'30'!$A$2))","v":100},{"$f":"IF(SUMIFS(Data!$E:$E,Data!$B:$B,'30'!H$3,Data!$C:$C,'30'!$A$3,Data!$D:$D,'30'!$A7,Data!$F:$F,'30'!$A$2)=0,\"-\",SUMIFS(Data!$E:$E,Data!$B:$B,'30'!H$3,Data!$C:$C,'30'!$A$3,Data!$D:$D,'30'!$A7,Data!$F:$F,'30'!$A$2))","v":96.190476190476176},{"$f":"IF(SUMIFS(Data!$E:$E,Data!$B:$B,'30'!I$3,Data!$C:$C,'30'!$A$3,Data!$D:$D,'30'!$A7,Data!$F:$F,'30'!$A$2)=0,\"-\",SUMIFS(Data!$E:$E,Data!$B:$B,'30'!I$3,Data!$C:$C,'30'!$A$3,Data!$D:$D,'30'!$A7,Data!$F:$F,'30'!$A$2))","v":"-"},{"$f":"IF(SUMIFS(Data!$E:$E,Data!$B:$B,'30'!J$3,Data!$C:$C,'30'!$A$3,Data!$D:$D,'30'!$A7,Data!$F:$F,'30'!$A$2)=0,\"-\",SUMIFS(Data!$E:$E,Data!$B:$B,'30'!J$3,Data!$C:$C,'30'!$A$3,Data!$D:$D,'30'!$A7,Data!$F:$F,'30'!$A$2))","v":95},{"$f":"IF(SUMIFS(Data!$E:$E,Data!$B:$B,'30'!K$3,Data!$C:$C,'30'!$A$3,Data!$D:$D,'30'!$A7,Data!$F:$F,'30'!$A$2)=0,\"-\",SUMIFS(Data!$E:$E,Data!$B:$B,'30'!K$3,Data!$C:$C,'30'!$A$3,Data!$D:$D,'30'!$A7,Data!$F:$F,'30'!$A$2))","v":"-"}]
[{"$f":"VLOOKUP(\"Prince Edward Island\",Translation!$A$1:$C$354, Translation!A1+1, 0)","v":"Île-du-Prince-Édouard"},{"$f":"IF(SUMIFS(Data!$E:$E,Data!$B:$B,'30'!B$3,Data!$C:$C,'30'!$A$3,Data!$D:$D,'30'!$A8,Data!$F:$F,'30'!$A$2)=0,\"-\",SUMIFS(Data!$E:$E,Data!$B:$B,'30'!B$3,Data!$C:$C,'30'!$A$3,Data!$D:$D,'30'!$A8,Data!$F:$F,'30'!$A$2))","v":100},{"$f":"IF(SUMIFS(Data!$E:$E,Data!$B:$B,'30'!C$3,Data!$C:$C,'30'!$A$3,Data!$D:$D,'30'!$A8,Data!$F:$F,'30'!$A$2)=0,\"-\",SUMIFS(Data!$E:$E,Data!$B:$B,'30'!C$3,Data!$C:$C,'30'!$A$3,Data!$D:$D,'30'!$A8,Data!$F:$F,'30'!$A$2))","v":100},{"$f":"IF(SUMIFS(Data!$E:$E,Data!$B:$B,'30'!D$3,Data!$C:$C,'30'!$A$3,Data!$D:$D,'30'!$A8,Data!$F:$F,'30'!$A$2)=0,\"-\",SUMIFS(Data!$E:$E,Data!$B:$B,'30'!D$3,Data!$C:$C,'30'!$A$3,Data!$D:$D,'30'!$A8,Data!$F:$F,'30'!$A$2))","v":100},{"$f":"IF(SUMIFS(Data!$E:$E,Data!$B:$B,'30'!E$3,Data!$C:$C,'30'!$A$3,Data!$D:$D,'30'!$A8,Data!$F:$F,'30'!$A$2)=0,\"-\",SUMIFS(Data!$E:$E,Data!$B:$B,'30'!E$3,Data!$C:$C,'30'!$A$3,Data!$D:$D,'30'!$A8,Data!$F:$F,'30'!$A$2))","v":100},{"$f":"IF(SUMIFS(Data!$E:$E,Data!$B:$B,'30'!F$3,Data!$C:$C,'30'!$A$3,Data!$D:$D,'30'!$A8,Data!$F:$F,'30'!$A$2)=0,\"-\",SUMIFS(Data!$E:$E,Data!$B:$B,'30'!F$3,Data!$C:$C,'30'!$A$3,Data!$D:$D,'30'!$A8,Data!$F:$F,'30'!$A$2))","v":100},{"$f":"IF(SUMIFS(Data!$E:$E,Data!$B:$B,'30'!G$3,Data!$C:$C,'30'!$A$3,Data!$D:$D,'30'!$A8,Data!$F:$F,'30'!$A$2)=0,\"-\",SUMIFS(Data!$E:$E,Data!$B:$B,'30'!G$3,Data!$C:$C,'30'!$A$3,Data!$D:$D,'30'!$A8,Data!$F:$F,'30'!$A$2))","v":100},{"$f":"IF(SUMIFS(Data!$E:$E,Data!$B:$B,'30'!H$3,Data!$C:$C,'30'!$A$3,Data!$D:$D,'30'!$A8,Data!$F:$F,'30'!$A$2)=0,\"-\",SUMIFS(Data!$E:$E,Data!$B:$B,'30'!H$3,Data!$C:$C,'30'!$A$3,Data!$D:$D,'30'!$A8,Data!$F:$F,'30'!$A$2))","v":100},{"$f":"IF(SUMIFS(Data!$E:$E,Data!$B:$B,'30'!I$3,Data!$C:$C,'30'!$A$3,Data!$D:$D,'30'!$A8,Data!$F:$F,'30'!$A$2)=0,\"-\",SUMIFS(Data!$E:$E,Data!$B:$B,'30'!I$3,Data!$C:$C,'30'!$A$3,Data!$D:$D,'30'!$A8,Data!$F:$F,'30'!$A$2))","v":100},{"$f":"IF(SUMIFS(Data!$E:$E,Data!$B:$B,'30'!J$3,Data!$C:$C,'30'!$A$3,Data!$D:$D,'30'!$A8,Data!$F:$F,'30'!$A$2)=0,\"-\",SUMIFS(Data!$E:$E,Data!$B:$B,'30'!J$3,Data!$C:$C,'30'!$A$3,Data!$D:$D,'30'!$A8,Data!$F:$F,'30'!$A$2))","v":100},{"$f":"IF(SUMIFS(Data!$E:$E,Data!$B:$B,'30'!K$3,Data!$C:$C,'30'!$A$3,Data!$D:$D,'30'!$A8,Data!$F:$F,'30'!$A$2)=0,\"-\",SUMIFS(Data!$E:$E,Data!$B:$B,'30'!K$3,Data!$C:$C,'30'!$A$3,Data!$D:$D,'30'!$A8,Data!$F:$F,'30'!$A$2))","v":100}]
[{"$f":"VLOOKUP(\"Nova Scotia\",Translation!$A$1:$C$354, Translation!A1+1, 0)","v":"Nouvelle-Écosse"},{"$f":"IF(SUMIFS(Data!$E:$E,Data!$B:$B,'30'!B$3,Data!$C:$C,'30'!$A$3,Data!$D:$D,'30'!$A9,Data!$F:$F,'30'!$A$2)=0,\"-\",SUMIFS(Data!$E:$E,Data!$B:$B,'30'!B$3,Data!$C:$C,'30'!$A$3,Data!$D:$D,'30'!$A9,Data!$F:$F,'30'!$A$2))","v":96.88090737240077},{"$f":"IF(SUMIFS(Data!$E:$E,Data!$B:$B,'30'!C$3,Data!$C:$C,'30'!$A$3,Data!$D:$D,'30'!$A9,Data!$F:$F,'30'!$A$2)=0,\"-\",SUMIFS(Data!$E:$E,Data!$B:$B,'30'!C$3,Data!$C:$C,'30'!$A$3,Data!$D:$D,'30'!$A9,Data!$F:$F,'30'!$A$2))","v":99.547803617571077},{"$f":"IF(SUMIFS(Data!$E:$E,Data!$B:$B,'30'!D$3,Data!$C:$C,'30'!$A$3,Data!$D:$D,'30'!$A9,Data!$F:$F,'30'!$A$2)=0,\"-\",SUMIFS(Data!$E:$E,Data!$B:$B,'30'!D$3,Data!$C:$C,'30'!$A$3,Data!$D:$D,'30'!$A9,Data!$F:$F,'30'!$A$2))","v":94.788047255038236},{"$f":"IF(SUMIFS(Data!$E:$E,Data!$B:$B,'30'!E$3,Data!$C:$C,'30'!$A$3,Data!$D:$D,'30'!$A9,Data!$F:$F,'30'!$A$2)=0,\"-\",SUMIFS(Data!$E:$E,Data!$B:$B,'30'!E$3,Data!$C:$C,'30'!$A$3,Data!$D:$D,'30'!$A9,Data!$F:$F,'30'!$A$2))","v":97.433414043583554},{"$f":"IF(SUMIFS(Data!$E:$E,Data!$B:$B,'30'!F$3,Data!$C:$C,'30'!$A$3,Data!$D:$D,'30'!$A9,Data!$F:$F,'30'!$A$2)=0,\"-\",SUMIFS(Data!$E:$E,Data!$B:$B,'30'!F$3,Data!$C:$C,'30'!$A$3,Data!$D:$D,'30'!$A9,Data!$F:$F,'30'!$A$2))","v":100},{"$f":"IF(SUMIFS(Data!$E:$E,Data!$B:$B,'30'!G$3,Data!$C:$C,'30'!$A$3,Data!$D:$D,'30'!$A9,Data!$F:$F,'30'!$A$2)=0,\"-\",SUMIFS(Data!$E:$E,Data!$B:$B,'30'!G$3,Data!$C:$C,'30'!$A$3,Data!$D:$D,'30'!$A9,Data!$F:$F,'30'!$A$2))","v":94.871794871794876},{"$f":"IF(SUMIFS(Data!$E:$E,Data!$B:$B,'30'!H$3,Data!$C:$C,'30'!$A$3,Data!$D:$D,'30'!$A9,Data!$F:$F,'30'!$A$2)=0,\"-\",SUMIFS(Data!$E:$E,Data!$B:$B,'30'!H$3,Data!$C:$C,'30'!$A$3,Data!$D:$D,'30'!$A9,Data!$F:$F,'30'!$A$2))","v":98.153846153846175},{"$f":"IF(SUMIFS(Data!$E:$E,Data!$B:$B,'30'!I$3,Data!$C:$C,'30'!$A$3,Data!$D:$D,'30'!$A9,Data!$F:$F,'30'!$A$2)=0,\"-\",SUMIFS(Data!$E:$E,Data!$B:$B,'30'!I$3,Data!$C:$C,'30'!$A$3,Data!$D:$D,'30'!$A9,Data!$F:$F,'30'!$A$2))","v":99.698643897538915},{"$f":"IF(SUMIFS(Data!$E:$E,Data!$B:$B,'30'!J$3,Data!$C:$C,'30'!$A$3,Data!$D:$D,'30'!$A9,Data!$F:$F,'30'!$A$2)=0,\"-\",SUMIFS(Data!$E:$E,Data!$B:$B,'30'!J$3,Data!$C:$C,'30'!$A$3,Data!$D:$D,'30'!$A9,Data!$F:$F,'30'!$A$2))","v":96.88090737240077},{"$f":"IF(SUMIFS(Data!$E:$E,Data!$B:$B,'30'!K$3,Data!$C:$C,'30'!$A$3,Data!$D:$D,'30'!$A9,Data!$F:$F,'30'!$A$2)=0,\"-\",SUMIFS(Data!$E:$E,Data!$B:$B,'30'!K$3,Data!$C:$C,'30'!$A$3,Data!$D:$D,'30'!$A9,Data!$F:$F,'30'!$A$2))","v":100}]
[{"$f":"VLOOKUP(\"New Brunswick\",Translation!$A$1:$C$354, Translation!A1+1, 0)","v":"Nouveau-Brunswick"},{"$f":"IF(SUMIFS(Data!$E:$E,Data!$B:$B,'30'!B$3,Data!$C:$C,'30'!$A$3,Data!$D:$D,'30'!$A10,Data!$F:$F,'30'!$A$2)=0,\"-\",SUMIFS(Data!$E:$E,Data!$B:$B,'30'!B$3,Data!$C:$C,'30'!$A$3,Data!$D:$D,'30'!$A10,Data!$F:$F,'30'!$A$2))","v":100},{"$f":"IF(SUMIFS(Data!$E:$E,Data!$B:$B,'30'!C$3,Data!$C:$C,'30'!$A$3,Data!$D:$D,'30'!$A10,Data!$F:$F,'30'!$A$2)=0,\"-\",SUMIFS(Data!$E:$E,Data!$B:$B,'30'!C$3,Data!$C:$C,'30'!$A$3,Data!$D:$D,'30'!$A10,Data!$F:$F,'30'!$A$2))","v":100},{"$f":"IF(SUMIFS(Data!$E:$E,Data!$B:$B,'30'!D$3,Data!$C:$C,'30'!$A$3,Data!$D:$D,'30'!$A10,Data!$F:$F,'30'!$A$2)=0,\"-\",SUMIFS(Data!$E:$E,Data!$B:$B,'30'!D$3,Data!$C:$C,'30'!$A$3,Data!$D:$D,'30'!$A10,Data!$F:$F,'30'!$A$2))","v":100},{"$f":"IF(SUMIFS(Data!$E:$E,Data!$B:$B,'30'!E$3,Data!$C:$C,'30'!$A$3,Data!$D:$D,'30'!$A10,Data!$F:$F,'30'!$A$2)=0,\"-\",SUMIFS(Data!$E:$E,Data!$B:$B,'30'!E$3,Data!$C:$C,'30'!$A$3,Data!$D:$D,'30'!$A10,Data!$F:$F,'30'!$A$2))","v":100},{"$f":"IF(SUMIFS(Data!$E:$E,Data!$B:$B,'30'!F$3,Data!$C:$C,'30'!$A$3,Data!$D:$D,'30'!$A10,Data!$F:$F,'30'!$A$2)=0,\"-\",SUMIFS(Data!$E:$E,Data!$B:$B,'30'!F$3,Data!$C:$C,'30'!$A$3,Data!$D:$D,'30'!$A10,Data!$F:$F,'30'!$A$2))","v":100},{"$f":"IF(SUMIFS(Data!$E:$E,Data!$B:$B,'30'!G$3,Data!$C:$C,'30'!$A$3,Data!$D:$D,'30'!$A10,Data!$F:$F,'30'!$A$2)=0,\"-\",SUMIFS(Data!$E:$E,Data!$B:$B,'30'!G$3,Data!$C:$C,'30'!$A$3,Data!$D:$D,'30'!$A10,Data!$F:$F,'30'!$A$2))","v":100},{"$f":"IF(SUMIFS(Data!$E:$E,Data!$B:$B,'30'!H$3,Data!$C:$C,'30'!$A$3,Data!$D:$D,'30'!$A10,Data!$F:$F,'30'!$A$2)=0,\"-\",SUMIFS(Data!$E:$E,Data!$B:$B,'30'!H$3,Data!$C:$C,'30'!$A$3,Data!$D:$D,'30'!$A10,Data!$F:$F,'30'!$A$2))","v":98.949211908931716},{"$f":"IF(SUMIFS(Data!$E:$E,Data!$B:$B,'30'!I$3,Data!$C:$C,'30'!$A$3,Data!$D:$D,'30'!$A10,Data!$F:$F,'30'!$A$2)=0,\"-\",SUMIFS(Data!$E:$E,Data!$B:$B,'30'!I$3,Data!$C:$C,'30'!$A$3,Data!$D:$D,'30'!$A10,Data!$F:$F,'30'!$A$2))","v":100},{"$f":"IF(SUMIFS(Data!$E:$E,Data!$B:$B,'30'!J$3,Data!$C:$C,'30'!$A$3,Data!$D:$D,'30'!$A10,Data!$F:$F,'30'!$A$2)=0,\"-\",SUMIFS(Data!$E:$E,Data!$B:$B,'30'!J$3,Data!$C:$C,'30'!$A$3,Data!$D:$D,'30'!$A10,Data!$F:$F,'30'!$A$2))","v":100},{"$f":"IF(SUMIFS(Data!$E:$E,Data!$B:$B,'30'!K$3,Data!$C:$C,'30'!$A$3,Data!$D:$D,'30'!$A10,Data!$F:$F,'30'!$A$2)=0,\"-\",SUMIFS(Data!$E:$E,Data!$B:$B,'30'!K$3,Data!$C:$C,'30'!$A$3,Data!$D:$D,'30'!$A10,Data!$F:$F,'30'!$A$2))","v":100}]
[{"$f":"VLOOKUP(\"Quebec\",Translation!$A$1:$C$354, Translation!A1+1, 0)","v":"Québec"},{"$f":"IF(SUMIFS(Data!$E:$E,Data!$B:$B,'30'!B$3,Data!$C:$C,'30'!$A$3,Data!$D:$D,'30'!$A11,Data!$F:$F,'30'!$A$2)=0,\"-\",SUMIFS(Data!$E:$E,Data!$B:$B,'30'!B$3,Data!$C:$C,'30'!$A$3,Data!$D:$D,'30'!$A11,Data!$F:$F,'30'!$A$2))","v":97.99471860042911},{"$f":"IF(SUMIFS(Data!$E:$E,Data!$B:$B,'30'!C$3,Data!$C:$C,'30'!$A$3,Data!$D:$D,'30'!$A11,Data!$F:$F,'30'!$A$2)=0,\"-\",SUMIFS(Data!$E:$E,Data!$B:$B,'30'!C$3,Data!$C:$C,'30'!$A$3,Data!$D:$D,'30'!$A11,Data!$F:$F,'30'!$A$2))","v":98.801724137931018},{"$f":"IF(SUMIFS(Data!$E:$E,Data!$B:$B,'30'!D$3,Data!$C:$C,'30'!$A$3,Data!$D:$D,'30'!$A11,Data!$F:$F,'30'!$A$2)=0,\"-\",SUMIFS(Data!$E:$E,Data!$B:$B,'30'!D$3,Data!$C:$C,'30'!$A$3,Data!$D:$D,'30'!$A11,Data!$F:$F,'30'!$A$2))","v":97.690779672239685},{"$f":"IF(SUMIFS(Data!$E:$E,Data!$B:$B,'30'!E$3,Data!$C:$C,'30'!$A$3,Data!$D:$D,'30'!$A11,Data!$F:$F,'30'!$A$2)=0,\"-\",SUMIFS(Data!$E:$E,Data!$B:$B,'30'!E$3,Data!$C:$C,'30'!$A$3,Data!$D:$D,'30'!$A11,Data!$F:$F,'30'!$A$2))","v":99.300302571860826},{"$f":"IF(SUMIFS(Data!$E:$E,Data!$B:$B,'30'!F$3,Data!$C:$C,'30'!$A$3,Data!$D:$D,'30'!$A11,Data!$F:$F,'30'!$A$2)=0,\"-\",SUMIFS(Data!$E:$E,Data!$B:$B,'30'!F$3,Data!$C:$C,'30'!$A$3,Data!$D:$D,'30'!$A11,Data!$F:$F,'30'!$A$2))","v":97.630111524163596},{"$f":"IF(SUMIFS(Data!$E:$E,Data!$B:$B,'30'!G$3,Data!$C:$C,'30'!$A$3,Data!$D:$D,'30'!$A11,Data!$F:$F,'30'!$A$2)=0,\"-\",SUMIFS(Data!$E:$E,Data!$B:$B,'30'!G$3,Data!$C:$C,'30'!$A$3,Data!$D:$D,'30'!$A11,Data!$F:$F,'30'!$A$2))","v":97.898779936737469},{"$f":"IF(SUMIFS(Data!$E:$E,Data!$B:$B,'30'!H$3,Data!$C:$C,'30'!$A$3,Data!$D:$D,'30'!$A11,Data!$F:$F,'30'!$A$2)=0,\"-\",SUMIFS(Data!$E:$E,Data!$B:$B,'30'!H$3,Data!$C:$C,'30'!$A$3,Data!$D:$D,'30'!$A11,Data!$F:$F,'30'!$A$2))","v":98.466386554621891},{"$f":"IF(SUMIFS(Data!$E:$E,Data!$B:$B,'30'!I$3,Data!$C:$C,'30'!$A$3,Data!$D:$D,'30'!$A11,Data!$F:$F,'30'!$A$2)=0,\"-\",SUMIFS(Data!$E:$E,Data!$B:$B,'30'!I$3,Data!$C:$C,'30'!$A$3,Data!$D:$D,'30'!$A11,Data!$F:$F,'30'!$A$2))","v":98.34600506869414},{"$f":"IF(SUMIFS(Data!$E:$E,Data!$B:$B,'30'!J$3,Data!$C:$C,'30'!$A$3,Data!$D:$D,'30'!$A11,Data!$F:$F,'30'!$A$2)=0,\"-\",SUMIFS(Data!$E:$E,Data!$B:$B,'30'!J$3,Data!$C:$C,'30'!$A$3,Data!$D:$D,'30'!$A11,Data!$F:$F,'30'!$A$2))","v":97.99471860042911},{"$f":"IF(SUMIFS(Data!$E:$E,Data!$B:$B,'30'!K$3,Data!$C:$C,'30'!$A$3,Data!$D:$D,'30'!$A11,Data!$F:$F,'30'!$A$2)=0,\"-\",SUMIFS(Data!$E:$E,Data!$B:$B,'30'!K$3,Data!$C:$C,'30'!$A$3,Data!$D:$D,'30'!$A11,Data!$F:$F,'30'!$A$2))","v":97.630111524163596}]
[{"$f":"VLOOKUP(\"Ontario\",Translation!$A$1:$C$354, Translation!A1+1, 0)","v":"Ontario"},{"$f":"IF(SUMIFS(Data!$E:$E,Data!$B:$B,'30'!B$3,Data!$C:$C,'30'!$A$3,Data!$D:$D,'30'!$A12,Data!$F:$F,'30'!$A$2)=0,\"-\",SUMIFS(Data!$E:$E,Data!$B:$B,'30'!B$3,Data!$C:$C,'30'!$A$3,Data!$D:$D,'30'!$A12,Data!$F:$F,'30'!$A$2))","v":99.478676417348495},{"$f":"IF(SUMIFS(Data!$E:$E,Data!$B:$B,'30'!C$3,Data!$C:$C,'30'!$A$3,Data!$D:$D,'30'!$A12,Data!$F:$F,'30'!$A$2)=0,\"-\",SUMIFS(Data!$E:$E,Data!$B:$B,'30'!C$3,Data!$C:$C,'30'!$A$3,Data!$D:$D,'30'!$A12,Data!$F:$F,'30'!$A$2))","v":98.648648648648646},{"$f":"IF(SUMIFS(Data!$E:$E,Data!$B:$B,'30'!D$3,Data!$C:$C,'30'!$A$3,Data!$D:$D,'30'!$A12,Data!$F:$F,'30'!$A$2)=0,\"-\",SUMIFS(Data!$E:$E,Data!$B:$B,'30'!D$3,Data!$C:$C,'30'!$A$3,Data!$D:$D,'30'!$A12,Data!$F:$F,'30'!$A$2))","v":99.629972247918587},{"$f":"IF(SUMIFS(Data!$E:$E,Data!$B:$B,'30'!E$3,Data!$C:$C,'30'!$A$3,Data!$D:$D,'30'!$A12,Data!$F:$F,'30'!$A$2)=0,\"-\",SUMIFS(Data!$E:$E,Data!$B:$B,'30'!E$3,Data!$C:$C,'30'!$A$3,Data!$D:$D,'30'!$A12,Data!$F:$F,'30'!$A$2))","v":98.074637508913725},{"$f":"IF(SUMIFS(Data!$E:$E,Data!$B:$B,'30'!F$3,Data!$C:$C,'30'!$A$3,Data!$D:$D,'30'!$A12,Data!$F:$F,'30'!$A$2)=0,\"-\",SUMIFS(Data!$E:$E,Data!$B:$B,'30'!F$3,Data!$C:$C,'30'!$A$3,Data!$D:$D,'30'!$A12,Data!$F:$F,'30'!$A$2))","v":98.611846985270759},{"$f":"IF(SUMIFS(Data!$E:$E,Data!$B:$B,'30'!G$3,Data!$C:$C,'30'!$A$3,Data!$D:$D,'30'!$A12,Data!$F:$F,'30'!$A$2)=0,\"-\",SUMIFS(Data!$E:$E,Data!$B:$B,'30'!G$3,Data!$C:$C,'30'!$A$3,Data!$D:$D,'30'!$A12,Data!$F:$F,'30'!$A$2))","v":98.391043226811021},{"$f":"IF(SUMIFS(Data!$E:$E,Data!$B:$B,'30'!H$3,Data!$C:$C,'30'!$A$3,Data!$D:$D,'30'!$A12,Data!$F:$F,'30'!$A$2)=0,\"-\",SUMIFS(Data!$E:$E,Data!$B:$B,'30'!H$3,Data!$C:$C,'30'!$A$3,Data!$D:$D,'30'!$A12,Data!$F:$F,'30'!$A$2))","v":99.162916291629131},{"$f":"IF(SUMIFS(Data!$E:$E,Data!$B:$B,'30'!I$3,Data!$C:$C,'30'!$A$3,Data!$D:$D,'30'!$A12,Data!$F:$F,'30'!$A$2)=0,\"-\",SUMIFS(Data!$E:$E,Data!$B:$B,'30'!I$3,Data!$C:$C,'30'!$A$3,Data!$D:$D,'30'!$A12,Data!$F:$F,'30'!$A$2))","v":97.104622871046246},{"$f":"IF(SUMIFS(Data!$E:$E,Data!$B:$B,'30'!J$3,Data!$C:$C,'30'!$A$3,Data!$D:$D,'30'!$A12,Data!$F:$F,'30'!$A$2)=0,\"-\",SUMIFS(Data!$E:$E,Data!$B:$B,'30'!J$3,Data!$C:$C,'30'!$A$3,Data!$D:$D,'30'!$A12,Data!$F:$F,'30'!$A$2))","v":99.478676417348495},{"$f":"IF(SUMIFS(Data!$E:$E,Data!$B:$B,'30'!K$3,Data!$C:$C,'30'!$A$3,Data!$D:$D,'30'!$A12,Data!$F:$F,'30'!$A$2)=0,\"-\",SUMIFS(Data!$E:$E,Data!$B:$B,'30'!K$3,Data!$C:$C,'30'!$A$3,Data!$D:$D,'30'!$A12,Data!$F:$F,'30'!$A$2))","v":98.611846985270759}]
[{"$f":"VLOOKUP(\"Manitoba\",Translation!$A$1:$C$354, Translation!A1+1, 0)","v":"Manitoba"},{"$f":"IF(SUMIFS(Data!$E:$E,Data!$B:$B,'30'!B$3,Data!$C:$C,'30'!$A$3,Data!$D:$D,'30'!$A13,Data!$F:$F,'30'!$A$2)=0,\"-\",SUMIFS(Data!$E:$E,Data!$B:$B,'30'!B$3,Data!$C:$C,'30'!$A$3,Data!$D:$D,'30'!$A13,Data!$F:$F,'30'!$A$2))","v":100},{"$f":"IF(SUMIFS(Data!$E:$E,Data!$B:$B,'30'!C$3,Data!$C:$C,'30'!$A$3,Data!$D:$D,'30'!$A13,Data!$F:$F,'30'!$A$2)=0,\"-\",SUMIFS(Data!$E:$E,Data!$B:$B,'30'!C$3,Data!$C:$C,'30'!$A$3,Data!$D:$D,'30'!$A13,Data!$F:$F,'30'!$A$2))","v":100},{"$f":"IF(SUMIFS(Data!$E:$E,Data!$B:$B,'30'!D$3,Data!$C:$C,'30'!$A$3,Data!$D:$D,'30'!$A13,Data!$F:$F,'30'!$A$2)=0,\"-\",SUMIFS(Data!$E:$E,Data!$B:$B,'30'!D$3,Data!$C:$C,'30'!$A$3,Data!$D:$D,'30'!$A13,Data!$F:$F,'30'!$A$2))","v":100},{"$f":"IF(SUMIFS(Data!$E:$E,Data!$B:$B,'30'!E$3,Data!$C:$C,'30'!$A$3,Data!$D:$D,'30'!$A13,Data!$F:$F,'30'!$A$2)=0,\"-\",SUMIFS(Data!$E:$E,Data!$B:$B,'30'!E$3,Data!$C:$C,'30'!$A$3,Data!$D:$D,'30'!$A13,Data!$F:$F,'30'!$A$2))","v":100},{"$f":"IF(SUMIFS(Data!$E:$E,Data!$B:$B,'30'!F$3,Data!$C:$C,'30'!$A$3,Data!$D:$D,'30'!$A13,Data!$F:$F,'30'!$A$2)=0,\"-\",SUMIFS(Data!$E:$E,Data!$B:$B,'30'!F$3,Data!$C:$C,'30'!$A$3,Data!$D:$D,'30'!$A13,Data!$F:$F,'30'!$A$2))","v":100},{"$f":"IF(SUMIFS(Data!$E:$E,Data!$B:$B,'30'!G$3,Data!$C:$C,'30'!$A$3,Data!$D:$D,'30'!$A13,Data!$F:$F,'30'!$A$2)=0,\"-\",SUMIFS(Data!$E:$E,Data!$B:$B,'30'!G$3,Data!$C:$C,'30'!$A$3,Data!$D:$D,'30'!$A13,Data!$F:$F,'30'!$A$2))","v":100},{"$f":"IF(SUMIFS(Data!$E:$E,Data!$B:$B,'30'!H$3,Data!$C:$C,'30'!$A$3,Data!$D:$D,'30'!$A13,Data!$F:$F,'30'!$A$2)=0,\"-\",SUMIFS(Data!$E:$E,Data!$B:$B,'30'!H$3,Data!$C:$C,'30'!$A$3,Data!$D:$D,'30'!$A13,Data!$F:$F,'30'!$A$2))","v":100},{"$f":"IF(SUMIFS(Data!$E:$E,Data!$B:$B,'30'!I$3,Data!$C:$C,'30'!$A$3,Data!$D:$D,'30'!$A13,Data!$F:$F,'30'!$A$2)=0,\"-\",SUMIFS(Data!$E:$E,Data!$B:$B,'30'!I$3,Data!$C:$C,'30'!$A$3,Data!$D:$D,'30'!$A13,Data!$F:$F,'30'!$A$2))","v":100},{"$f":"IF(SUMIFS(Data!$E:$E,Data!$B:$B,'30'!J$3,Data!$C:$C,'30'!$A$3,Data!$D:$D,'30'!$A13,Data!$F:$F,'30'!$A$2)=0,\"-\",SUMIFS(Data!$E:$E,Data!$B:$B,'30'!J$3,Data!$C:$C,'30'!$A$3,Data!$D:$D,'30'!$A13,Data!$F:$F,'30'!$A$2))","v":100},{"$f":"IF(SUMIFS(Data!$E:$E,Data!$B:$B,'30'!K$3,Data!$C:$C,'30'!$A$3,Data!$D:$D,'30'!$A13,Data!$F:$F,'30'!$A$2)=0,\"-\",SUMIFS(Data!$E:$E,Data!$B:$B,'30'!K$3,Data!$C:$C,'30'!$A$3,Data!$D:$D,'30'!$A13,Data!$F:$F,'30'!$A$2))","v":100}]
[{"$f":"VLOOKUP(\"Saskatchewan\",Translation!$A$1:$C$354, Translation!A1+1, 0)","v":"Saskatchewan"},{"$f":"IF(SUMIFS(Data!$E:$E,Data!$B:$B,'30'!B$3,Data!$C:$C,'30'!$A$3,Data!$D:$D,'30'!$A14,Data!$F:$F,'30'!$A$2)=0,\"-\",SUMIFS(Data!$E:$E,Data!$B:$B,'30'!B$3,Data!$C:$C,'30'!$A$3,Data!$D:$D,'30'!$A14,Data!$F:$F,'30'!$A$2))","v":100},{"$f":"IF(SUMIFS(Data!$E:$E,Data!$B:$B,'30'!C$3,Data!$C:$C,'30'!$A$3,Data!$D:$D,'30'!$A14,Data!$F:$F,'30'!$A$2)=0,\"-\",SUMIFS(Data!$E:$E,Data!$B:$B,'30'!C$3,Data!$C:$C,'30'!$A$3,Data!$D:$D,'30'!$A14,Data!$F:$F,'30'!$A$2))","v":100},{"$f":"IF(SUMIFS(Data!$E:$E,Data!$B:$B,'30'!D$3,Data!$C:$C,'30'!$A$3,Data!$D:$D,'30'!$A14,Data!$F:$F,'30'!$A$2)=0,\"-\",SUMIFS(Data!$E:$E,Data!$B:$B,'30'!D$3,Data!$C:$C,'30'!$A$3,Data!$D:$D,'30'!$A14,Data!$F:$F,'30'!$A$2))","v":100},{"$f":"IF(SUMIFS(Data!$E:$E,Data!$B:$B,'30'!E$3,Data!$C:$C,'30'!$A$3,Data!$D:$D,'30'!$A14,Data!$F:$F,'30'!$A$2)=0,\"-\",SUMIFS(Data!$E:$E,Data!$B:$B,'30'!E$3,Data!$C:$C,'30'!$A$3,Data!$D:$D,'30'!$A14,Data!$F:$F,'30'!$A$2))","v":100},{"$f":"IF(SUMIFS(Data!$E:$E,Data!$B:$B,'30'!F$3,Data!$C:$C,'30'!$A$3,Data!$D:$D,'30'!$A14,Data!$F:$F,'30'!$A$2)=0,\"-\",SUMIFS(Data!$E:$E,Data!$B:$B,'30'!F$3,Data!$C:$C,'30'!$A$3,Data!$D:$D,'30'!$A14,Data!$F:$F,'30'!$A$2))","v":100},{"$f":"IF(SUMIFS(Data!$E:$E,Data!$B:$B,'30'!G$3,Data!$C:$C,'30'!$A$3,Data!$D:$D,'30'!$A14,Data!$F:$F,'30'!$A$2)=0,\"-\",SUMIFS(Data!$E:$E,Data!$B:$B,'30'!G$3,Data!$C:$C,'30'!$A$3,Data!$D:$D,'30'!$A14,Data!$F:$F,'30'!$A$2))","v":100},{"$f":"IF(SUMIFS(Data!$E:$E,Data!$B:$B,'30'!H$3,Data!$C:$C,'30'!$A$3,Data!$D:$D,'30'!$A14,Data!$F:$F,'30'!$A$2)=0,\"-\",SUMIFS(Data!$E:$E,Data!$B:$B,'30'!H$3,Data!$C:$C,'30'!$A$3,Data!$D:$D,'30'!$A14,Data!$F:$F,'30'!$A$2))","v":95.628415300546436},{"$f":"IF(SUMIFS(Data!$E:$E,Data!$B:$B,'30'!I$3,Data!$C:$C,'30'!$A$3,Data!$D:$D,'30'!$A14,Data!$F:$F,'30'!$A$2)=0,\"-\",SUMIFS(Data!$E:$E,Data!$B:$B,'30'!I$3,Data!$C:$C,'30'!$A$3,Data!$D:$D,'30'!$A14,Data!$F:$F,'30'!$A$2))","v":92.649310872894361},{"$f":"IF(SUMIFS(Data!$E:$E,Data!$B:$B,'30'!J$3,Data!$C:$C,'30'!$A$3,Data!$D:$D,'30'!$A14,Data!$F:$F,'30'!$A$2)=0,\"-\",SUMIFS(Data!$E:$E,Data!$B:$B,'30'!J$3,Data!$C:$C,'30'!$A$3,Data!$D:$D,'30'!$A14,Data!$F:$F,'30'!$A$2))","v":100},{"$f":"IF(SUMIFS(Data!$E:$E,Data!$B:$B,'30'!K$3,Data!$C:$C,'30'!$A$3,Data!$D:$D,'30'!$A14,Data!$F:$F,'30'!$A$2)=0,\"-\",SUMIFS(Data!$E:$E,Data!$B:$B,'30'!K$3,Data!$C:$C,'30'!$A$3,Data!$D:$D,'30'!$A14,Data!$F:$F,'30'!$A$2))","v":100}]
[{"$f":"VLOOKUP(\"Alberta\",Translation!$A$1:$C$354, Translation!A1+1, 0)","v":"Alberta"},{"$f":"IF(SUMIFS(Data!$E:$E,Data!$B:$B,'30'!B$3,Data!$C:$C,'30'!$A$3,Data!$D:$D,'30'!$A15,Data!$F:$F,'30'!$A$2)=0,\"-\",SUMIFS(Data!$E:$E,Data!$B:$B,'30'!B$3,Data!$C:$C,'30'!$A$3,Data!$D:$D,'30'!$A15,Data!$F:$F,'30'!$A$2))","v":100},{"$f":"IF(SUMIFS(Data!$E:$E,Data!$B:$B,'30'!C$3,Data!$C:$C,'30'!$A$3,Data!$D:$D,'30'!$A15,Data!$F:$F,'30'!$A$2)=0,\"-\",SUMIFS(Data!$E:$E,Data!$B:$B,'30'!C$3,Data!$C:$C,'30'!$A$3,Data!$D:$D,'30'!$A15,Data!$F:$F,'30'!$A$2))","v":100},{"$f":"IF(SUMIFS(Data!$E:$E,Data!$B:$B,'30'!D$3,Data!$C:$C,'30'!$A$3,Data!$D:$D,'30'!$A15,Data!$F:$F,'30'!$A$2)=0,\"-\",SUMIFS(Data!$E:$E,Data!$B:$B,'30'!D$3,Data!$C:$C,'30'!$A$3,Data!$D:$D,'30'!$A15,Data!$F:$F,'30'!$A$2))","v":100},{"$f":"IF(SUMIFS(Data!$E:$E,Data!$B:$B,'30'!E$3,Data!$C:$C,'30'!$A$3,Data!$D:$D,'30'!$A15,Data!$F:$F,'30'!$A$2)=0,\"-\",SUMIFS(Data!$E:$E,Data!$B:$B,'30'!E$3,Data!$C:$C,'30'!$A$3,Data!$D:$D,'30'!$A15,Data!$F:$F,'30'!$A$2))","v":99.225235196458229},{"$f":"IF(SUMIFS(Data!$E:$E,Data!$B:$B,'30'!F$3,Data!$C:$C,'30'!$A$3,Data!$D:$D,'30'!$A15,Data!$F:$F,'30'!$A$2)=0,\"-\",SUMIFS(Data!$E:$E,Data!$B:$B,'30'!F$3,Data!$C:$C,'30'!$A$3,Data!$D:$D,'30'!$A15,Data!$F:$F,'30'!$A$2))","v":97.594501718213053},{"$f":"IF(SUMIFS(Data!$E:$E,Data!$B:$B,'30'!G$3,Data!$C:$C,'30'!$A$3,Data!$D:$D,'30'!$A15,Data!$F:$F,'30'!$A$2)=0,\"-\",SUMIFS(Data!$E:$E,Data!$B:$B,'30'!G$3,Data!$C:$C,'30'!$A$3,Data!$D:$D,'30'!$A15,Data!$F:$F,'30'!$A$2))","v":100},{"$f":"IF(SUMIFS(Data!$E:$E,Data!$B:$B,'30'!H$3,Data!$C:$C,'30'!$A$3,Data!$D:$D,'30'!$A15,Data!$F:$F,'30'!$A$2)=0,\"-\",SUMIFS(Data!$E:$E,Data!$B:$B,'30'!H$3,Data!$C:$C,'30'!$A$3,Data!$D:$D,'30'!$A15,Data!$F:$F,'30'!$A$2))","v":92.481203007518786},{"$f":"IF(SUMIFS(Data!$E:$E,Data!$B:$B,'30'!I$3,Data!$C:$C,'30'!$A$3,Data!$D:$D,'30'!$A15,Data!$F:$F,'30'!$A$2)=0,\"-\",SUMIFS(Data!$E:$E,Data!$B:$B,'30'!I$3,Data!$C:$C,'30'!$A$3,Data!$D:$D,'30'!$A15,Data!$F:$F,'30'!$A$2))","v":98.735408560311285},{"$f":"IF(SUMIFS(Data!$E:$E,Data!$B:$B,'30'!J$3,Data!$C:$C,'30'!$A$3,Data!$D:$D,'30'!$A15,Data!$F:$F,'30'!$A$2)=0,\"-\",SUMIFS(Data!$E:$E,Data!$B:$B,'30'!J$3,Data!$C:$C,'30'!$A$3,Data!$D:$D,'30'!$A15,Data!$F:$F,'30'!$A$2))","v":100},{"$f":"IF(SUMIFS(Data!$E:$E,Data!$B:$B,'30'!K$3,Data!$C:$C,'30'!$A$3,Data!$D:$D,'30'!$A15,Data!$F:$F,'30'!$A$2)=0,\"-\",SUMIFS(Data!$E:$E,Data!$B:$B,'30'!K$3,Data!$C:$C,'30'!$A$3,Data!$D:$D,'30'!$A15,Data!$F:$F,'30'!$A$2))","v":97.594501718213053}]
[{"$f":"VLOOKUP(\"British Columbia\",Translation!$A$1:$C$354, Translation!A1+1, 0)","v":"Colombie-Britannique"},{"$f":"IF(SUMIFS(Data!$E:$E,Data!$B:$B,'30'!B$3,Data!$C:$C,'30'!$A$3,Data!$D:$D,'30'!$A16,Data!$F:$F,'30'!$A$2)=0,\"-\",SUMIFS(Data!$E:$E,Data!$B:$B,'30'!B$3,Data!$C:$C,'30'!$A$3,Data!$D:$D,'30'!$A16,Data!$F:$F,'30'!$A$2))","v":100},{"$f":"IF(SUMIFS(Data!$E:$E,Data!$B:$B,'30'!C$3,Data!$C:$C,'30'!$A$3,Data!$D:$D,'30'!$A16,Data!$F:$F,'30'!$A$2)=0,\"-\",SUMIFS(Data!$E:$E,Data!$B:$B,'30'!C$3,Data!$C:$C,'30'!$A$3,Data!$D:$D,'30'!$A16,Data!$F:$F,'30'!$A$2))","v":98.74686716791976},{"$f":"IF(SUMIFS(Data!$E:$E,Data!$B:$B,'30'!D$3,Data!$C:$C,'30'!$A$3,Data!$D:$D,'30'!$A16,Data!$F:$F,'30'!$A$2)=0,\"-\",SUMIFS(Data!$E:$E,Data!$B:$B,'30'!D$3,Data!$C:$C,'30'!$A$3,Data!$D:$D,'30'!$A16,Data!$F:$F,'30'!$A$2))","v":100},{"$f":"IF(SUMIFS(Data!$E:$E,Data!$B:$B,'30'!E$3,Data!$C:$C,'30'!$A$3,Data!$D:$D,'30'!$A16,Data!$F:$F,'30'!$A$2)=0,\"-\",SUMIFS(Data!$E:$E,Data!$B:$B,'30'!E$3,Data!$C:$C,'30'!$A$3,Data!$D:$D,'30'!$A16,Data!$F:$F,'30'!$A$2))","v":99.368088467614555},{"$f":"IF(SUMIFS(Data!$E:$E,Data!$B:$B,'30'!F$3,Data!$C:$C,'30'!$A$3,Data!$D:$D,'30'!$A16,Data!$F:$F,'30'!$A$2)=0,\"-\",SUMIFS(Data!$E:$E,Data!$B:$B,'30'!F$3,Data!$C:$C,'30'!$A$3,Data!$D:$D,'30'!$A16,Data!$F:$F,'30'!$A$2))","v":100},{"$f":"IF(SUMIFS(Data!$E:$E,Data!$B:$B,'30'!G$3,Data!$C:$C,'30'!$A$3,Data!$D:$D,'30'!$A16,Data!$F:$F,'30'!$A$2)=0,\"-\",SUMIFS(Data!$E:$E,Data!$B:$B,'30'!G$3,Data!$C:$C,'30'!$A$3,Data!$D:$D,'30'!$A16,Data!$F:$F,'30'!$A$2))","v":98.675691583284305},{"$f":"IF(SUMIFS(Data!$E:$E,Data!$B:$B,'30'!H$3,Data!$C:$C,'30'!$A$3,Data!$D:$D,'30'!$A16,Data!$F:$F,'30'!$A$2)=0,\"-\",SUMIFS(Data!$E:$E,Data!$B:$B,'30'!H$3,Data!$C:$C,'30'!$A$3,Data!$D:$D,'30'!$A16,Data!$F:$F,'30'!$A$2))","v":100},{"$f":"IF(SUMIFS(Data!$E:$E,Data!$B:$B,'30'!I$3,Data!$C:$C,'30'!$A$3,Data!$D:$D,'30'!$A16,Data!$F:$F,'30'!$A$2)=0,\"-\",SUMIFS(Data!$E:$E,Data!$B:$B,'30'!I$3,Data!$C:$C,'30'!$A$3,Data!$D:$D,'30'!$A16,Data!$F:$F,'30'!$A$2))","v":100},{"$f":"IF(SUMIFS(Data!$E:$E,Data!$B:$B,'30'!J$3,Data!$C:$C,'30'!$A$3,Data!$D:$D,'30'!$A16,Data!$F:$F,'30'!$A$2)=0,\"-\",SUMIFS(Data!$E:$E,Data!$B:$B,'30'!J$3,Data!$C:$C,'30'!$A$3,Data!$D:$D,'30'!$A16,Data!$F:$F,'30'!$A$2))","v":100},{"$f":"IF(SUMIFS(Data!$E:$E,Data!$B:$B,'30'!K$3,Data!$C:$C,'30'!$A$3,Data!$D:$D,'30'!$A16,Data!$F:$F,'30'!$A$2)=0,\"-\",SUMIFS(Data!$E:$E,Data!$B:$B,'30'!K$3,Data!$C:$C,'30'!$A$3,Data!$D:$D,'30'!$A16,Data!$F:$F,'30'!$A$2))","v":100}]
[{"$f":"VLOOKUP(\"Territories\",Translation!$A$1:$C$354, Translation!A1+1, 0)","v":"Territoires"},{"$f":"IF(SUMIFS(Data!$E:$E,Data!$B:$B,'30'!B$3,Data!$C:$C,'30'!$A$3,Data!$D:$D,'30'!$A17,Data!$F:$F,'30'!$A$2)=0,\"-\",SUMIFS(Data!$E:$E,Data!$B:$B,'30'!B$3,Data!$C:$C,'30'!$A$3,Data!$D:$D,'30'!$A17,Data!$F:$F,'30'!$A$2))","v":"-"},{"$f":"IF(SUMIFS(Data!$E:$E,Data!$B:$B,'30'!C$3,Data!$C:$C,'30'!$A$3,Data!$D:$D,'30'!$A17,Data!$F:$F,'30'!$A$2)=0,\"-\",SUMIFS(Data!$E:$E,Data!$B:$B,'30'!C$3,Data!$C:$C,'30'!$A$3,Data!$D:$D,'30'!$A17,Data!$F:$F,'30'!$A$2))","v":"-"},{"$f":"IF(SUMIFS(Data!$E:$E,Data!$B:$B,'30'!D$3,Data!$C:$C,'30'!$A$3,Data!$D:$D,'30'!$A17,Data!$F:$F,'30'!$A$2)=0,\"-\",SUMIFS(Data!$E:$E,Data!$B:$B,'30'!D$3,Data!$C:$C,'30'!$A$3,Data!$D:$D,'30'!$A17,Data!$F:$F,'30'!$A$2))","v":59.393939393939405},{"$f":"IF(SUMIFS(Data!$E:$E,Data!$B:$B,'30'!E$3,Data!$C:$C,'30'!$A$3,Data!$D:$D,'30'!$A17,Data!$F:$F,'30'!$A$2)=0,\"-\",SUMIFS(Data!$E:$E,Data!$B:$B,'30'!E$3,Data!$C:$C,'30'!$A$3,Data!$D:$D,'30'!$A17,Data!$F:$F,'30'!$A$2))","v":"-"},{"$f":"IF(SUMIFS(Data!$E:$E,Data!$B:$B,'30'!F$3,Data!$C:$C,'30'!$A$3,Data!$D:$D,'30'!$A17,Data!$F:$F,'30'!$A$2)=0,\"-\",SUMIFS(Data!$E:$E,Data!$B:$B,'30'!F$3,Data!$C:$C,'30'!$A$3,Data!$D:$D,'30'!$A17,Data!$F:$F,'30'!$A$2))","v":100},{"$f":"IF(SUMIFS(Data!$E:$E,Data!$B:$B,'30'!G$3,Data!$C:$C,'30'!$A$3,Data!$D:$D,'30'!$A17,Data!$F:$F,'30'!$A$2)=0,\"-\",SUMIFS(Data!$E:$E,Data!$B:$B,'30'!G$3,Data!$C:$C,'30'!$A$3,Data!$D:$D,'30'!$A17,Data!$F:$F,'30'!$A$2))","v":100},{"$f":"IF(SUMIFS(Data!$E:$E,Data!$B:$B,'30'!H$3,Data!$C:$C,'30'!$A$3,Data!$D:$D,'30'!$A17,Data!$F:$F,'30'!$A$2)=0,\"-\",SUMIFS(Data!$E:$E,Data!$B:$B,'30'!H$3,Data!$C:$C,'30'!$A$3,Data!$D:$D,'30'!$A17,Data!$F:$F,'30'!$A$2))","v":"-"},{"$f":"IF(SUMIFS(Data!$E:$E,Data!$B:$B,'30'!I$3,Data!$C:$C,'30'!$A$3,Data!$D:$D,'30'!$A17,Data!$F:$F,'30'!$A$2)=0,\"-\",SUMIFS(Data!$E:$E,Data!$B:$B,'30'!I$3,Data!$C:$C,'30'!$A$3,Data!$D:$D,'30'!$A17,Data!$F:$F,'30'!$A$2))","v":"-"},{"$f":"IF(SUMIFS(Data!$E:$E,Data!$B:$B,'30'!J$3,Data!$C:$C,'30'!$A$3,Data!$D:$D,'30'!$A17,Data!$F:$F,'30'!$A$2)=0,\"-\",SUMIFS(Data!$E:$E,Data!$B:$B,'30'!J$3,Data!$C:$C,'30'!$A$3,Data!$D:$D,'30'!$A17,Data!$F:$F,'30'!$A$2))","v":"-"},{"$f":"IF(SUMIFS(Data!$E:$E,Data!$B:$B,'30'!K$3,Data!$C:$C,'30'!$A$3,Data!$D:$D,'30'!$A17,Data!$F:$F,'30'!$A$2)=0,\"-\",SUMIFS(Data!$E:$E,Data!$B:$B,'30'!K$3,Data!$C:$C,'30'!$A$3,Data!$D:$D,'30'!$A17,Data!$F:$F,'30'!$A$2))","v":100}]
[{"$f":"VLOOKUP(\"Distribution based on number of units, not number of loans.\",Translation!$A$1:$C$354, Translation!A1+1, 0)","v":"La répartition est établie d'après le nombre de logements, plutôt que le nombre de prêts assurés."}]
[{"$f":"VLOOKUP(\"The sum of all breakdown categories may not add up to 100 due to rounding.\",Translation!$A$1:$C$354, Translation!A1+1, 0)","v":"Les chiffres ayant été arrondis, il se peut que la somme de l'ensemble des catégories n'égale pas 100 %."}]
[]
[{"$f":"VLOOKUP(\"Insurance-in-force by urban and rural type (%)\",Translation!$A$1:$C$354, Translation!A1+1, 0)","v":"Contrats d’assurance en vigueur selon le milieu urbain/rural (%)"}]
[{"$f":"VLOOKUP(\"MULTI-UNIT RESIDENTIAL\",Translation!$A$1:$C$354, Translation!A1+1, 0)","v":"IMMEUBLES COLLECTIFS RÉSIDENTIELS"},{"$f":"VLOOKUP(\"As at\",Translation!$A$1:$C$354,Translation!A1+1,0)","v":"Aux"}]
[null,{"$f":"VLOOKUP(\"Q1 2020\",Translation!$A$1:$C$354, Translation!A1+1, 0)","v":"T1 2020"},{"$f":"VLOOKUP(\"Q4 2019\",Translation!$A$1:$C$354, Translation!A1+1, 0)","v":"T4 2019"},{"$f":"VLOOKUP(\"Q3 2019\",Translation!$A$1:$C$354, Translation!A1+1, 0)","v":"T3 2019"},{"$f":"E3","v":"T2 2019"},{"$f":"F3","v":"T1 2019"},"T4 2018","T3 2018","T2 2018","Cumul 2020","Cumul 2019"]
[{"$f":"VLOOKUP(\"Urban\",Translation!$A$1:$C$354, Translation!A1+1, 0)","v":"Urbain"},98.618743322712263,98.581974532895785,98.567731711027221,98.556537979958776,98.566949519051022,98.506688566246254,98.507260721921313,98.466328424281684]
[{"$f":"VLOOKUP(\"Rural\",Translation!$A$1:$C$354, Translation!A1+1, 0)","v":"Rural"},1.3812566772868979,1.4180254671025632,1.4322682889713527,1.4434620200412096,1.4330504809495679,1.4933114337543714,1.4927392780802002,1.5336715757190778]
[{"$f":"VLOOKUP(\"Urban properties by province (%)\",Translation!$A$1:$C$354, Translation!A1+1, 0)","v":"Propriétés urbaines selon la province (%)"}]
[{"$f":"VLOOKUP(\"Newfoundland and Labrador\",Translation!$A$1:$C$354, Translation!A1+1, 0)","v":"Terre-Neuve-et-Labrador"},93.792441899962256,93.580119172735436,93.4,93.417736367000813,95.219640541638611,93.002347396071073,95.20139101751748,93.169872652005225]
[{"$f":"VLOOKUP(\"Prince Edward Island\",Translation!$A$1:$C$354, Translation!A1+1, 0)","v":"Île-du-Prince-Édouard"},93.018496060168118,92.567050250975328,91.8,91.88140066000588,91.703752573457848,91.68503394497715,91.332285231551566,90.420271880288922]
[{"$f":"VLOOKUP(\"Nova Scotia\",Translation!$A$1:$C$354, Translation!A1+1, 0)","v":"Nouvelle-Écosse"},98.213356533101773,97.997005162813267,97.8,98.067541817866015,98.19774845652006,98.170933363795427,98.169523174033728,98.193861360845005]
[{"$f":"VLOOKUP(\"New Brunswick\",Translation!$A$1:$C$354, Translation!A1+1, 0)","v":"Nouveau-Brunswick"},98.795332408589658,98.715406898162129,98.7,98.611428087800007,98.509938011707774,98.435314132631632,98.362463743082373,98.201235404363189]
[{"$f":"VLOOKUP(\"Quebec\",Translation!$A$1:$C$354, Translation!A1+1, 0)","v":"Québec"},98.074405316749562,98.089833966256364,98.1,98.089169302490376,98.076313854192833,98.069198791987731,97.984865826674877,97.955662559419565]
[{"$f":"VLOOKUP(\"Ontario\",Translation!$A$1:$C$354, Translation!A1+1, 0)","v":"Ontario"},99.264004289207321,99.270319800859923,99.3,99.271406213278865,99.264066183132982,99.240118239216031,99.263422329845696,99.261333015885356]
[{"$f":"VLOOKUP(\"Manitoba\",Translation!$A$1:$C$354, Translation!A1+1, 0)","v":"Manitoba"},99.806792760416712,99.687452385582048,99.7,99.566390436828456,99.527761066798135,99.577370521592158,99.488182762349922,99.484194371308504]
[{"$f":"VLOOKUP(\"Saskatchewan\",Translation!$A$1:$C$354, Translation!A1+1, 0)","v":"Saskatchewan"},98.651178406695095,98.548545822909091,98.4,98.369402049841156,98.317993611561732,98.257683754397831,98.172793064985029,98.062103784688006]
[{"$f":"VLOOKUP(\"Alberta\",Translation!$A$1:$C$354, Translation!A1+1, 0)","v":"Alberta"},98.854573164521426,98.807734849607627,98.8,98.652441229432938,98.767196028751854,98.63179091249269,98.716903932013039,98.665165730333342]
[{"$f":"VLOOKUP(\"British Columbia\",Translation!$A$1:$C$354, Translation!A1+1, 0)","v":"Colombie-Britannique"},99.478805840592571,99.399667662074037,99.4,99.373579989032848,99.314637341471084,99.235165558530994,99.335456009768819,99.244777204999906]
[{"$f":"VLOOKUP(\"Territories\",Translation!$A$1:$C$354, Translation!A1+1, 0)","v":"Territoires"},39.912892641370689,40.014587382252643,40.9,40.708300288844043,42.51049400302675,42.127594240430852,39.915253232332759,40.938615354848992]
[{"$f":"VLOOKUP(\"Distribution based on outstanding loan amounts, not number of loans.\",Translation!$A$1:$C$354, Translation!A1+1, 0)","v":"La répartition est établie d'après le solde, plutôt que le nombre de prêts assurés."}]
[{"$f":"VLOOKUP(\"The sum of all breakdown categories may not add up to 100 due to rounding.\",Translation!$A$1:$C$354, Translation!A1+1, 0)","v":"Les chiffres ayant été arrondis, il se peut que la somme de l'ensemble des catégories n'égale pas 100 %."}]

{"sheet":"31","index":32,"n_rows":39,"n_cols":11,"rows_kept":39,"cut":false,"hidden":false,"merged":[[21,0,22,0],[21,1,21,8],[0,5,0,10]]}
[{"$f":"VLOOKUP(\"MULTI-UNIT RESIDENTIAL - NEW/EXISTING\",Translation!$A$1:$C$354, Translation!A1+1, 0)","v":"IMMEUBLES COLLECTIFS RÉSIDENTIELS - NEUF/EXISTANT"},null,null,null,null,{"$f":"VLOOKUP(\"Back to Table of Contents\",Translation!$A$1:$C$354, Translation!A1+1, 0)","v":"Retour à la table des matières"}]
[{"$f":"VLOOKUP(\"Loans insured in period by new and existing type (%)\",Translation!$A$1:$C$354, Translation!A1+1, 0)","v":"Prêts hypothécaires assurés au cours de la période selon le type neuf/existant (%)"}]
[{"$f":"VLOOKUP(\"MULTI-UNIT RESIDENTIAL\",Translation!$A$1:$C$354, Translation!A1+1, 0)","v":"IMMEUBLES COLLECTIFS RÉSIDENTIELS"},{"$f":"VLOOKUP(\"Q1 2020\",Translation!$A$1:$C$354, Translation!$A$1+1, 0)","v":"T1 2020"},{"$f":"VLOOKUP(\"Q4 2019\",Translation!$A$1:$C$354, Translation!$A$1+1, 0)","v":"T4 2019"},{"$f":"VLOOKUP(\"Q3 2019\",Translation!$A$1:$C$354, Translation!$A$1+1, 0)","v":"T3 2019"},{"$f":"VLOOKUP(\"Q2 2019\",Translation!$A$1:$C$354, Translation!$A$1+1, 0)","v":"T2 2019"},{"$f":"VLOOKUP(\"Q1 2019\",Translation!$A$1:$C$354, Translation!$A$1+1, 0)","v":"T1 2019"},{"$f":"VLOOKUP(\"Q4 2018\",Translation!$A$1:$C$354, Translation!$A$1+1, 0)","v":"T4 2018"},{"$f":"VLOOKUP(\"Q3 2018\",Translation!$A$1:$C$354, Translation!$A$1+1, 0)","v":"T3 2018"},{"$f":"VLOOKUP(\"Q2 2018\",Translation!$A$1:$C$354, Translation!$A$1+1, 0)","v":"T2 2018"},{"$f":"VLOOKUP(\"YTD 2020\",Translation!$A$1:$C$354, Translation!$A$1+1, 0)","v":"Cumul 2020"},{"$f":"VLOOKUP(\"YTD 2019\",Translation!$A$1:$C$354, Translation!$A$1+1, 0)","v":"Cumul 2019"}]
[{"$f":"VLOOKUP(\"New\",Translation!$A$1:$C$354, Translation!A1+1, 0)","v":"Neuf"},{"$f":"SUMIFS(Data!$E:$E,Data!$B:$B,'31'!B$3,Data!$C:$C,'31'!$A$3,Data!$D:$D,'31'!$A4,Data!$F:$F,'31'!$A$2)","v":18.485340947626263},{"$f":"SUMIFS(Data!$E:$E,Data!$B:$B,'31'!C$3,Data!$C:$C,'31'!$A$3,Data!$D:$D,'31'!$A4,Data!$F:$F,'31'!$A$2)","v":35.857624391310722},{"$f":"SUMIFS(Data!$E:$E,Data!$B:$B,'31'!D$3,Data!$C:$C,'31'!$A$3,Data!$D:$D,'31'!$A4,Data!$F:$F,'31'!$A$2)","v":23.567387150793596},{"$f":"SUMIFS(Data!$E:$E,Data!$B:$B,'31'!E$3,Data!$C:$C,'31'!$A$3,Data!$D:$D,'31'!$A4,Data!$F:$F,'31'!$A$2)","v":17.621224592362267},{"$f":"SUMIFS(Data!$E:$E,Data!$B:$B,'31'!F$3,Data!$C:$C,'31'!$A$3,Data!$D:$D,'31'!$A4,Data!$F:$F,'31'!$A$2)","v":19.257422823961704},{"$f":"SUMIFS(Data!$E:$E,Data!$B:$B,'31'!G$3,Data!$C:$C,'31'!$A$3,Data!$D:$D,'31'!$A4,Data!$F:$F,'31'!$A$2)","v":19.409596128710344},{"$f":"SUMIFS(Data!$E:$E,Data!$B:$B,'31'!H$3,Data!$C:$C,'31'!$A$3,Data!$D:$D,'31'!$A4,Data!$F:$F,'31'!$A$2)","v":24.250381755224922},{"$f":"SUMIFS(Data!$E:$E,Data!$B:$B,'31'!I$3,Data!$C:$C,'31'!$A$3,Data!$D:$D,'31'!$A4,Data!$F:$F,'31'!$A$2)","v":16.242701096744508},{"$f":"SUMIFS(Data!$E:$E,Data!$B:$B,'31'!J$3,Data!$C:$C,'31'!$A$3,Data!$D:$D,'31'!$A4,Data!$F:$F,'31'!$A$2)","v":18.485340947626263},{"$f":"SUMIFS(Data!$E:$E,Data!$B:$B,'31'!K$3,Data!$C:$C,'31'!$A$3,Data!$D:$D,'31'!$A4,Data!$F:$F,'31'!$A$2)","v":19.257422823961704}]
[{"$f":"VLOOKUP(\"Existing\",Translation!$A$1:$C$354, Translation!A1+1, 0)","v":"Existant"},{"$f":"SUMIFS(Data!$E:$E,Data!$B:$B,'31'!B$3,Data!$C:$C,'31'!$A$3,Data!$D:$D,'31'!$A5,Data!$F:$F,'31'!$A$2)","v":81.514659052373744},{"$f":"SUMIFS(Data!$E:$E,Data!$B:$B,'31'!C$3,Data!$C:$C,'31'!$A$3,Data!$D:$D,'31'!$A5,Data!$F:$F,'31'!$A$2)","v":64.142375608689278},{"$f":"SUMIFS(Data!$E:$E,Data!$B:$B,'31'!D$3,Data!$C:$C,'31'!$A$3,Data!$D:$D,'31'!$A5,Data!$F:$F,'31'!$A$2)","v":76.432612849206393},{"$f":"SUMIFS(Data!$E:$E,Data!$B:$B,'31'!E$3,Data!$C:$C,'31'!$A$3,Data!$D:$D,'31'!$A5,Data!$F:$F,'31'!$A$2)","v":82.378775407637733},{"$f":"SUMIFS(Data!$E:$E,Data!$B:$B,'31'!F$3,Data!$C:$C,'31'!$A$3,Data!$D:$D,'31'!$A5,Data!$F:$F,'31'!$A$2)","v":80.74257717603831},{"$f":"SUMIFS(Data!$E:$E,Data!$B:$B,'31'!G$3,Data!$C:$C,'31'!$A$3,Data!$D:$D,'31'!$A5,Data!$F:$F,'31'!$A$2)","v":80.590403871289652},{"$f":"SUMIFS(Data!$E:$E,Data!$B:$B,'31'!H$3,Data!$C:$C,'31'!$A$3,Data!$D:$D,'31'!$A5,Data!$F:$F,'31'!$A$2)","v":75.749618244775107},{"$f":"SUMIFS(Data!$E:$E,Data!$B:$B,'31'!I$3,Data!$C:$C,'31'!$A$3,Data!$D:$D,'31'!$A5,Data!$F:$F,'31'!$A$2)","v":83.757298903255489},{"$f":"SUMIFS(Data!$E:$E,Data!$B:$B,'31'!J$3,Data!$C:$C,'31'!$A$3,Data!$D:$D,'31'!$A5,Data!$F:$F,'31'!$A$2)","v":81.514659052373744},{"$f":"SUMIFS(Data!$E:$E,Data!$B:$B,'31'!K$3,Data!$C:$C,'31'!$A$3,Data!$D:$D,'31'!$A5,Data!$F:$F,'31'!$A$2)","v":80.74257717603831}]
[{"$f":"VLOOKUP(\"Existing properties by province (%)\",Translation!$A$1:$C$354, Translation!A1+1, 0)","v":"Propriétés existantes selon la province (%)"}]
[{"$f":"VLOOKUP(\"Newfoundland and Labrador\",Translation!$A$1:$C$354, Translation!A1+1, 0)","v":"Terre-Neuve-et-Labrador"},{"$f":"IF(SUMIFS(Data!$E:$E,Data!$B:$B,'31'!B$3,Data!$C:$C,'31'!$A$3,Data!$D:$D,'31'!$A7,Data!$F:$F,'31'!$A$2)=0,\"-\",SUMIFS(Data!$E:$E,Data!$B:$B,'31'!B$3,Data!$C:$C,'31'!$A$3,Data!$D:$D,'31'!$A7,Data!$F:$F,'31'!$A$2))","v":94.757824238609757},{"$f":"IF(SUMIFS(Data!$E:$E,Data!$B:$B,'31'!C$3,Data!$C:$C,'31'!$A$3,Data!$D:$D,'31'!$A7,Data!$F:$F,'31'!$A$2)=0,\"-\",SUMIFS(Data!$E:$E,Data!$B:$B,'31'!C$3,Data!$C:$C,'31'!$A$3,Data!$D:$D,'31'!$A7,Data!$F:$F,'31'!$A$2))","v":100},{"$f":"IF(SUMIFS(Data!$E:$E,Data!$B:$B,'31'!D$3,Data!$C:$C,'31'!$A$3,Data!$D:$D,'31'!$A7,Data!$F:$F,'31'!$A$2)=0,\"-\",SUMIFS(Data!$E:$E,Data!$B:$B,'31'!D$3,Data!$C:$C,'31'!$A$3,Data!$D:$D,'31'!$A7,Data!$F:$F,'31'!$A$2))","v":"-"},{"$f":"IF(SUMIFS(Data!$E:$E,Data!$B:$B,'31'!E$3,Data!$C:$C,'31'!$A$3,Data!$D:$D,'31'!$A7,Data!$F:$F,'31'!$A$2)=0,\"-\",SUMIFS(Data!$E:$E,Data!$B:$B,'31'!E$3,Data!$C:$C,'31'!$A$3,Data!$D:$D,'31'!$A7,Data!$F:$F,'31'!$A$2))","v":77.554442412625178},{"$f":"IF(SUMIFS(Data!$E:$E,Data!$B:$B,'31'!F$3,Data!$C:$C,'31'!$A$3,Data!$D:$D,'31'!$A7,Data!$F:$F,'31'!$A$2)=0,\"-\",SUMIFS(Data!$E:$E,Data!$B:$B,'31'!F$3,Data!$C:$C,'31'!$A$3,Data!$D:$D,'31'!$A7,Data!$F:$F,'31'!$A$2))","v":"-"},{"$f":"IF(SUMIFS(Data!$E:$E,Data!$B:$B,'31'!G$3,Data!$C:$C,'31'!$A$3,Data!$D:$D,'31'!$A7,Data!$F:$F,'31'!$A$2)=0,\"-\",SUMIFS(Data!$E:$E,Data!$B:$B,'31'!G$3,Data!$C:$C,'31'!$A$3,Data!$D:$D,'31'!$A7,Data!$F:$F,'31'!$A$2))","v":"-"},{"$f":"IF(SUMIFS(Data!$E:$E,Data!$B:$B,'31'!H$3,Data!$C:$C,'31'!$A$3,Data!$D:$D,'31'!$A7,Data!$F:$F,'31'!$A$2)=0,\"-\",SUMIFS(Data!$E:$E,Data!$B:$B,'31'!H$3,Data!$C:$C,'31'!$A$3,Data!$D:$D,'31'!$A7,Data!$F:$F,'31'!$A$2))","v":42.449481887199056},{"$f":"IF(SUMIFS(Data!$E:$E,Data!$B:$B,'31'!I$3,Data!$C:$C,'31'!$A$3,Data!$D:$D,'31'!$A7,Data!$F:$F,'31'!$A$2)=0,\"-\",SUMIFS(Data!$E:$E,Data!$B:$B,'31'!I$3,Data!$C:$C,'31'!$A$3,Data!$D:$D,'31'!$A7,Data!$F:$F,'31'!$A$2))","v":"-"},{"$f":"IF(SUMIFS(Data!$E:$E,Data!$B:$B,'31'!J$3,Data!$C:$C,'31'!$A$3,Data!$D:$D,'31'!$A7,Data!$F:$F,'31'!$A$2)=0,\"-\",SUMIFS(Data!$E:$E,Data!$B:$B,'31'!J$3,Data!$C:$C,'31'!$A$3,Data!$D:$D,'31'!$A7,Data!$F:$F,'31'!$A$2))","v":94.757824238609757},{"$f":"IF(SUMIFS(Data!$E:$E,Data!$B:$B,'31'!K$3,Data!$C:$C,'31'!$A$3,Data!$D:$D,'31'!$A7,Data!$F:$F,'31'!$A$2)=0,\"-\",SUMIFS(Data!$E:$E,Data!$B:$B,'31'!K$3,Data!$C:$C,'31'!$A$3,Data!$D:$D,'31'!$A7,Data!$F:$F,'31'!$A$2))","v":"-"}]
[{"$f":"VLOOKUP(\"Prince Edward Island\",Translation!$A$1:$C$354, Translation!A1+1, 0)","v":"Île-du-Prince-Édouard"},{"$f":"IF(SUMIFS(Data!$E:$E,Data!$B:$B,'31'!B$3,Data!$C:$C,'31'!$A$3,Data!$D:$D,'31'!$A8,Data!$F:$F,'31'!$A$2)=0,\"-\",SUMIFS(Data!$E:$E,Data!$B:$B,'31'!B$3,Data!$C:$C,'31'!$A$3,Data!$D:$D,'31'!$A8,Data!$F:$F,'31'!$A$2))","v":"-"},{"$f":"IF(SUMIFS(Data!$E:$E,Data!$B:$B,'31'!C$3,Data!$C:$C,'31'!$A$3,Data!$D:$D,'31'!$A8,Data!$F:$F,'31'!$A$2)=0,\"-\",SUMIFS(Data!$E:$E,Data!$B:$B,'31'!C$3,Data!$C:$C,'31'!$A$3,Data!$D:$D,'31'!$A8,Data!$F:$F,'31'!$A$2))","v":"-"},{"$f":"IF(SUMIFS(Data!$E:$E,Data!$B:$B,'31'!D$3,Data!$C:$C,'31'!$A$3,Data!$D:$D,'31'!$A8,Data!$F:$F,'31'!$A$2)=0,\"-\",SUMIFS(Data!$E:$E,Data!$B:$B,'31'!D$3,Data!$C:$C,'31'!$A$3,Data!$D:$D,'31'!$A8,Data!$F:$F,'31'!$A$2))","v":100},{"$f":"IF(SUMIFS(Data!$E:$E,Data!$B:$B,'31'!E$3,Data!$C:$C,'31'!$A$3,Data!$D:$D,'31'!$A8,Data!$F:$F,'31'!$A$2)=0,\"-\",SUMIFS(Data!$E:$E,Data!$B:$B,'31'!E$3,Data!$C:$C,'31'!$A$3,Data!$D:$D,'31'!$A8,Data!$F:$F,'31'!$A$2))","v":100},{"$f":"IF(SUMIFS(Data!$E:$E,Data!$B:$B,'31'!F$3,Data!$C:$C,'31'!$A$3,Data!$D:$D,'31'!$A8,Data!$F:$F,'31'!$A$2)=0,\"-\",SUMIFS(Data!$E:$E,Data!$B:$B,'31'!F$3,Data!$C:$C,'31'!$A$3,Data!$D:$D,'31'!$A8,Data!$F:$F,'31'!$A$2))","v":100},{"$f":"IF(SUMIFS(Data!$E:$E,Data!$B:$B,'31'!G$3,Data!$C:$C,'31'!$A$3,Data!$D:$D,'31'!$A8,Data!$F:$F,'31'!$A$2)=0,\"-\",SUMIFS(Data!$E:$E,Data!$B:$B,'31'!G$3,Data!$C:$C,'31'!$A$3,Data!$D:$D,'31'!$A8,Data!$F:$F,'31'!$A$2))","v":100},{"$f":"IF(SUMIFS(Data!$E:$E,Data!$B:$B,'31'!H$3,Data!$C:$C,'31'!$A$3,Data!$D:$D,'31'!$A8,Data!$F:$F,'31'!$A$2)=0,\"-\",SUMIFS(Data!$E:$E,Data!$B:$B,'31'!H$3,Data!$C:$C,'31'!$A$3,Data!$D:$D,'31'!$A8,Data!$F:$F,'31'!$A$2))","v":100},{"$f":"IF(SUMIFS(Data!$E:$E,Data!$B:$B,'31'!I$3,Data!$C:$C,'31'!$A$3,Data!$D:$D,'31'!$A8,Data!$F:$F,'31'!$A$2)=0,\"-\",SUMIFS(Data!$E:$E,Data!$B:$B,'31'!I$3,Data!$C:$C,'31'!$A$3,Data!$D:$D,'31'!$A8,Data!$F:$F,'31'!$A$2))","v":100},{"$f":"IF(SUMIFS(Data!$E:$E,Data!$B:$B,'31'!J$3,Data!$C:$C,'31'!$A$3,Data!$D:$D,'31'!$A8,Data!$F:$F,'31'!$A$2)=0,\"-\",SUMIFS(Data!$E:$E,Data!$B:$B,'31'!J$3,Data!$C:$C,'31'!$A$3,Data!$D:$D,'31'!$A8,Data!$F:$F,'31'!$A$2))","v":"-"},{"$f":"IF(SUMIFS(Data!$E:$E,Data!$B:$B,'31'!K$3,Data!$C:$C,'31'!$A$3,Data!$D:$D,'31'!$A8,Data!$F:$F,'31'!$A$2)=0,\"-\",SUMIFS(Data!$E:$E,Data!$B:$B,'31'!K$3,Data!$C:$C,'31'!$A$3,Data!$D:$D,'31'!$A8,Data!$F:$F,'31'!$A$2))","v":100}]
[{"$f":"VLOOKUP(\"Nova Scotia\",Translation!$A$1:$C$354, Translation!A1+1, 0)","v":"Nouvelle-Écosse"},{"$f":"IF(SUMIFS(Data!$E:$E,Data!$B:$B,'31'!B$3,Data!$C:$C,'31'!$A$3,Data!$D:$D,'31'!$A9,Data!$F:$F,'31'!$A$2)=0,\"-\",SUMIFS(Data!$E:$E,Data!$B:$B,'31'!B$3,Data!$C:$C,'31'!$A$3,Data!$D:$D,'31'!$A9,Data!$F:$F,'31'!$A$2))","v":72.985148674606094},{"$f":"IF(SUMIFS(Data!$E:$E,Data!$B:$B,'31'!C$3,Data!$C:$C,'31'!$A$3,Data!$D:$D,'31'!$A9,Data!$F:$F,'31'!$A$2)=0,\"-\",SUMIFS(Data!$E:$E,Data!$B:$B,'31'!C$3,Data!$C:$C,'31'!$A$3,Data!$D:$D,'31'!$A9,Data!$F:$F,'31'!$A$2))","v":41.465736825743342},{"$f":"IF(SUMIFS(Data!$E:$E,Data!$B:$B,'31'!D$3,Data!$C:$C,'31'!$A$3,Data!$D:$D,'31'!$A9,Data!$F:$F,'31'!$A$2)=0,\"-\",SUMIFS(Data!$E:$E,Data!$B:$B,'31'!D$3,Data!$C:$C,'31'!$A$3,Data!$D:$D,'31'!$A9,Data!$F:$F,'31'!$A$2))","v":20.777452355080985},{"$f":"IF(SUMIFS(Data!$E:$E,Data!$B:$B,'31'!E$3,Data!$C:$C,'31'!$A$3,Data!$D:$D,'31'!$A9,Data!$F:$F,'31'!$A$2)=0,\"-\",SUMIFS(Data!$E:$E,Data!$B:$B,'31'!E$3,Data!$C:$C,'31'!$A$3,Data!$D:$D,'31'!$A9,Data!$F:$F,'31'!$A$2))","v":31.473722029733107},{"$f":"IF(SUMIFS(Data!$E:$E,Data!$B:$B,'31'!F$3,Data!$C:$C,'31'!$A$3,Data!$D:$D,'31'!$A9,Data!$F:$F,'31'!$A$2)=0,\"-\",SUMIFS(Data!$E:$E,Data!$B:$B,'31'!F$3,Data!$C:$C,'31'!$A$3,Data!$D:$D,'31'!$A9,Data!$F:$F,'31'!$A$2))","v":46.621965750616205},{"$f":"IF(SUMIFS(Data!$E:$E,Data!$B:$B,'31'!G$3,Data!$C:$C,'31'!$A$3,Data!$D:$D,'31'!$A9,Data!$F:$F,'31'!$A$2)=0,\"-\",SUMIFS(Data!$E:$E,Data!$B:$B,'31'!G$3,Data!$C:$C,'31'!$A$3,Data!$D:$D,'31'!$A9,Data!$F:$F,'31'!$A$2))","v":38.753170182934944},{"$f":"IF(SUMIFS(Data!$E:$E,Data!$B:$B,'31'!H$3,Data!$C:$C,'31'!$A$3,Data!$D:$D,'31'!$A9,Data!$F:$F,'31'!$A$2)=0,\"-\",SUMIFS(Data!$E:$E,Data!$B:$B,'31'!H$3,Data!$C:$C,'31'!$A$3,Data!$D:$D,'31'!$A9,Data!$F:$F,'31'!$A$2))","v":44.618452301169057},{"$f":"IF(SUMIFS(Data!$E:$E,Data!$B:$B,'31'!I$3,Data!$C:$C,'31'!$A$3,Data!$D:$D,'31'!$A9,Data!$F:$F,'31'!$A$2)=0,\"-\",SUMIFS(Data!$E:$E,Data!$B:$B,'31'!I$3,Data!$C:$C,'31'!$A$3,Data!$D:$D,'31'!$A9,Data!$F:$F,'31'!$A$2))","v":42.825346355578311},{"$f":"IF(SUMIFS(Data!$E:$E,Data!$B:$B,'31'!J$3,Data!$C:$C,'31'!$A$3,Data!$D:$D,'31'!$A9,Data!$F:$F,'31'!$A$2)=0,\"-\",SUMIFS(Data!$E:$E,Data!$B:$B,'31'!J$3,Data!$C:$C,'31'!$A$3,Data!$D:$D,'31'!$A9,Data!$F:$F,'31'!$A$2))","v":72.985148674606094},{"$f":"IF(SUMIFS(Data!$E:$E,Data!$B:$B,'31'!K$3,Data!$C:$C,'31'!$A$3,Data!$D:$D,'31'!$A9,Data!$F:$F,'31'!$A$2)=0,\"-\",SUMIFS(Data!$E:$E,Data!$B:$B,'31'!K$3,Data!$C:$C,'31'!$A$3,Data!$D:$D,'31'!$A9,Data!$F:$F,'31'!$A$2))","v":46.621965750616205}]
[{"$f":"VLOOKUP(\"New Brunswick\",Translation!$A$1:$C$354, Translation!A1+1, 0)","v":"Nouveau-Brunswick"},{"$f":"IF(SUMIFS(Data!$E:$E,Data!$B:$B,'31'!B$3,Data!$C:$C,'31'!$A$3,Data!$D:$D,'31'!$A10,Data!$F:$F,'31'!$A$2)=0,\"-\",SUMIFS(Data!$E:$E,Data!$B:$B,'31'!B$3,Data!$C:$C,'31'!$A$3,Data!$D:$D,'31'!$A10,Data!$F:$F,'31'!$A$2))","v":24.257155372257952},{"$f":"IF(SUMIFS(Data!$E:$E,Data!$B:$B,'31'!C$3,Data!$C:$C,'31'!$A$3,Data!$D:$D,'31'!$A10,Data!$F:$F,'31'!$A$2)=0,\"-\",SUMIFS(Data!$E:$E,Data!$B:$B,'31'!C$3,Data!$C:$C,'31'!$A$3,Data!$D:$D,'31'!$A10,Data!$F:$F,'31'!$A$2))","v":74.55639197592302},{"$f":"IF(SUMIFS(Data!$E:$E,Data!$B:$B,'31'!D$3,Data!$C:$C,'31'!$A$3,Data!$D:$D,'31'!$A10,Data!$F:$F,'31'!$A$2)=0,\"-\",SUMIFS(Data!$E:$E,Data!$B:$B,'31'!D$3,Data!$C:$C,'31'!$A$3,Data!$D:$D,'31'!$A10,Data!$F:$F,'31'!$A$2))","v":65.861649856230883},{"$f":"IF(SUMIFS(Data!$E:$E,Data!$B:$B,'31'!E$3,Data!$C:$C,'31'!$A$3,Data!$D:$D,'31'!$A10,Data!$F:$F,'31'!$A$2)=0,\"-\",SUMIFS(Data!$E:$E,Data!$B:$B,'31'!E$3,Data!$C:$C,'31'!$A$3,Data!$D:$D,'31'!$A10,Data!$F:$F,'31'!$A$2))","v":65.841292993260197},{"$f":"IF(SUMIFS(Data!$E:$E,Data!$B:$B,'31'!F$3,Data!$C:$C,'31'!$A$3,Data!$D:$D,'31'!$A10,Data!$F:$F,'31'!$A$2)=0,\"-\",SUMIFS(Data!$E:$E,Data!$B:$B,'31'!F$3,Data!$C:$C,'31'!$A$3,Data!$D:$D,'31'!$A10,Data!$F:$F,'31'!$A$2))","v":100},{"$f":"IF(SUMIFS(Data!$E:$E,Data!$B:$B,'31'!G$3,Data!$C:$C,'31'!$A$3,Data!$D:$D,'31'!$A10,Data!$F:$F,'31'!$A$2)=0,\"-\",SUMIFS(Data!$E:$E,Data!$B:$B,'31'!G$3,Data!$C:$C,'31'!$A$3,Data!$D:$D,'31'!$A10,Data!$F:$F,'31'!$A$2))","v":43.773636881904991},{"$f":"IF(SUMIFS(Data!$E:$E,Data!$B:$B,'31'!H$3,Data!$C:$C,'31'!$A$3,Data!$D:$D,'31'!$A10,Data!$F:$F,'31'!$A$2)=0,\"-\",SUMIFS(Data!$E:$E,Data!$B:$B,'31'!H$3,Data!$C:$C,'31'!$A$3,Data!$D:$D,'31'!$A10,Data!$F:$F,'31'!$A$2))","v":80.849695149784949},{"$f":"IF(SUMIFS(Data!$E:$E,Data!$B:$B,'31'!I$3,Data!$C:$C,'31'!$A$3,Data!$D:$D,'31'!$A10,Data!$F:$F,'31'!$A$2)=0,\"-\",SUMIFS(Data!$E:$E,Data!$B:$B,'31'!I$3,Data!$C:$C,'31'!$A$3,Data!$D:$D,'31'!$A10,Data!$F:$F,'31'!$A$2))","v":43.683937901242651},{"$f":"IF(SUMIFS(Data!$E:$E,Data!$B:$B,'31'!J$3,Data!$C:$C,'31'!$A$3,Data!$D:$D,'31'!$A10,Data!$F:$F,'31'!$A$2)=0,\"-\",SUMIFS(Data!$E:$E,Data!$B:$B,'31'!J$3,Data!$C:$C,'31'!$A$3,Data!$D:$D,'31'!$A10,Data!$F:$F,'31'!$A$2))","v":24.257155372257952},{"$f":"IF(SUMIFS(Data!$E:$E,Data!$B:$B,'31'!K$3,Data!$C:$C,'31'!$A$3,Data!$D:$D,'31'!$A10,Data!$F:$F,'31'!$A$2)=0,\"-\",SUMIFS(Data!$E:$E,Data!$B:$B,'31'!K$3,Data!$C:$C,'31'!$A$3,Data!$D:$D,'31'!$A10,Data!$F:$F,'31'!$A$2))","v":100}]
[{"$f":"VLOOKUP(\"Quebec\",Translation!$A$1:$C$354, Translation!A1+1, 0)","v":"Québec"},{"$f":"IF(SUMIFS(Data!$E:$E,Data!$B:$B,'31'!B$3,Data!$C:$C,'31'!$A$3,Data!$D:$D,'31'!$A11,Data!$F:$F,'31'!$A$2)=0,\"-\",SUMIFS(Data!$E:$E,Data!$B:$B,'31'!B$3,Data!$C:$C,'31'!$A$3,Data!$D:$D,'31'!$A11,Data!$F:$F,'31'!$A$2))","v":95.343723040995499},{"$f":"IF(SUMIFS(Data!$E:$E,Data!$B:$B,'31'!C$3,Data!$C:$C,'31'!$A$3,Data!$D:$D,'31'!$A11,Data!$F:$F,'31'!$A$2)=0,\"-\",SUMIFS(Data!$E:$E,Data!$B:$B,'31'!C$3,Data!$C:$C,'31'!$A$3,Data!$D:$D,'31'!$A11,Data!$F:$F,'31'!$A$2))","v":82.321743765550778},{"$f":"IF(SUMIFS(Data!$E:$E,Data!$B:$B,'31'!D$3,Data!$C:$C,'31'!$A$3,Data!$D:$D,'31'!$A11,Data!$F:$F,'31'!$A$2)=0,\"-\",SUMIFS(Data!$E:$E,Data!$B:$B,'31'!D$3,Data!$C:$C,'31'!$A$3,Data!$D:$D,'31'!$A11,Data!$F:$F,'31'!$A$2))","v":96.379958746064474},{"$f":"IF(SUMIFS(Data!$E:$E,Data!$B:$B,'31'!E$3,Data!$C:$C,'31'!$A$3,Data!$D:$D,'31'!$A11,Data!$F:$F,'31'!$A$2)=0,\"-\",SUMIFS(Data!$E:$E,Data!$B:$B,'31'!E$3,Data!$C:$C,'31'!$A$3,Data!$D:$D,'31'!$A11,Data!$F:$F,'31'!$A$2))","v":90.491563386476486},{"$f":"IF(SUMIFS(Data!$E:$E,Data!$B:$B,'31'!F$3,Data!$C:$C,'31'!$A$3,Data!$D:$D,'31'!$A11,Data!$F:$F,'31'!$A$2)=0,\"-\",SUMIFS(Data!$E:$E,Data!$B:$B,'31'!F$3,Data!$C:$C,'31'!$A$3,Data!$D:$D,'31'!$A11,Data!$F:$F,'31'!$A$2))","v":80.839136096031226},{"$f":"IF(SUMIFS(Data!$E:$E,Data!$B:$B,'31'!G$3,Data!$C:$C,'31'!$A$3,Data!$D:$D,'31'!$A11,Data!$F:$F,'31'!$A$2)=0,\"-\",SUMIFS(Data!$E:$E,Data!$B:$B,'31'!G$3,Data!$C:$C,'31'!$A$3,Data!$D:$D,'31'!$A11,Data!$F:$F,'31'!$A$2))","v":95.562727489520015},{"$f":"IF(SUMIFS(Data!$E:$E,Data!$B:$B,'31'!H$3,Data!$C:$C,'31'!$A$3,Data!$D:$D,'31'!$A11,Data!$F:$F,'31'!$A$2)=0,\"-\",SUMIFS(Data!$E:$E,Data!$B:$B,'31'!H$3,Data!$C:$C,'31'!$A$3,Data!$D:$D,'31'!$A11,Data!$F:$F,'31'!$A$2))","v":89.145501105960562},{"$f":"IF(SUMIFS(Data!$E:$E,Data!$B:$B,'31'!I$3,Data!$C:$C,'31'!$A$3,Data!$D:$D,'31'!$A11,Data!$F:$F,'31'!$A$2)=0,\"-\",SUMIFS(Data!$E:$E,Data!$B:$B,'31'!I$3,Data!$C:$C,'31'!$A$3,Data!$D:$D,'31'!$A11,Data!$F:$F,'31'!$A$2))","v":92.223360475910624},{"$f":"IF(SUMIFS(Data!$E:$E,Data!$B:$B,'31'!J$3,Data!$C:$C,'31'!$A$3,Data!$D:$D,'31'!$A11,Data!$F:$F,'31'!$A$2)=0,\"-\",SUMIFS(Data!$E:$E,Data!$B:$B,'31'!J$3,Data!$C:$C,'31'!$A$3,Data!$D:$D,'31'!$A11,Data!$F:$F,'31'!$A$2))","v":95.343723040995499},{"$f":"IF(SUMIFS(Data!$E:$E,Data!$B:$B,'31'!K$3,Data!$C:$C,'31'!$A$3,Data!$D:$D,'31'!$A11,Data!$F:$F,'31'!$A$2)=0,\"-\",SUMIFS(Data!$E:$E,Data!$B:$B,'31'!K$3,Data!$C:$C,'31'!$A$3,Data!$D:$D,'31'!$A11,Data!$F:$F,'31'!$A$2))","v":80.839136096031226}]
[{"$f":"VLOOKUP(\"Ontario\",Translation!$A$1:$C$354, Translation!A1+1, 0)","v":"Ontario"},{"$f":"IF(SUMIFS(Data!$E:$E,Data!$B:$B,'31'!B$3,Data!$C:$C,'31'!$A$3,Data!$D:$D,'31'!$A12,Data!$F:$F,'31'!$A$2)=0,\"-\",SUMIFS(Data!$E:$E,Data!$B:$B,'31'!B$3,Data!$C:$C,'31'!$A$3,Data!$D:$D,'31'!$A12,Data!$F:$F,'31'!$A$2))","v":72.439365155741029},{"$f":"IF(SUMIFS(Data!$E:$E,Data!$B:$B,'31'!C$3,Data!$C:$C,'31'!$A$3,Data!$D:$D,'31'!$A12,Data!$F:$F,'31'!$A$2)=0,\"-\",SUMIFS(Data!$E:$E,Data!$B:$B,'31'!C$3,Data!$C:$C,'31'!$A$3,Data!$D:$D,'31'!$A12,Data!$F:$F,'31'!$A$2))","v":52.04386643658912},{"$f":"IF(SUMIFS(Data!$E:$E,Data!$B:$B,'31'!D$3,Data!$C:$C,'31'!$A$3,Data!$D:$D,'31'!$A12,Data!$F:$F,'31'!$A$2)=0,\"-\",SUMIFS(Data!$E:$E,Data!$B:$B,'31'!D$3,Data!$C:$C,'31'!$A$3,Data!$D:$D,'31'!$A12,Data!$F:$F,'31'!$A$2))","v":73.614444044734682},{"$f":"IF(SUMIFS(Data!$E:$E,Data!$B:$B,'31'!E$3,Data!$C:$C,'31'!$A$3,Data!$D:$D,'31'!$A12,Data!$F:$F,'31'!$A$2)=0,\"-\",SUMIFS(Data!$E:$E,Data!$B:$B,'31'!E$3,Data!$C:$C,'31'!$A$3,Data!$D:$D,'31'!$A12,Data!$F:$F,'31'!$A$2))","v":98.082106733483769},{"$f":"IF(SUMIFS(Data!$E:$E,Data!$B:$B,'31'!F$3,Data!$C:$C,'31'!$A$3,Data!$D:$D,'31'!$A12,Data!$F:$F,'31'!$A$2)=0,\"-\",SUMIFS(Data!$E:$E,Data!$B:$B,'31'!F$3,Data!$C:$C,'31'!$A$3,Data!$D:$D,'31'!$A12,Data!$F:$F,'31'!$A$2))","v":79.825273859133603},{"$f":"IF(SUMIFS(Data!$E:$E,Data!$B:$B,'31'!G$3,Data!$C:$C,'31'!$A$3,Data!$D:$D,'31'!$A12,Data!$F:$F,'31'!$A$2)=0,\"-\",SUMIFS(Data!$E:$E,Data!$B:$B,'31'!G$3,Data!$C:$C,'31'!$A$3,Data!$D:$D,'31'!$A12,Data!$F:$F,'31'!$A$2))","v":76.653246398462684},{"$f":"IF(SUMIFS(Data!$E:$E,Data!$B:$B,'31'!H$3,Data!$C:$C,'31'!$A$3,Data!$D:$D,'31'!$A12,Data!$F:$F,'31'!$A$2)=0,\"-\",SUMIFS(Data!$E:$E,Data!$B:$B,'31'!H$3,Data!$C:$C,'31'!$A$3,Data!$D:$D,'31'!$A12,Data!$F:$F,'31'!$A$2))","v":85.056686012623018},{"$f":"IF(SUMIFS(Data!$E:$E,Data!$B:$B,'31'!I$3,Data!$C:$C,'31'!$A$3,Data!$D:$D,'31'!$A12,Data!$F:$F,'31'!$A$2)=0,\"-\",SUMIFS(Data!$E:$E,Data!$B:$B,'31'!I$3,Data!$C:$C,'31'!$A$3,Data!$D:$D,'31'!$A12,Data!$F:$F,'31'!$A$2))","v":87.6046682364329},{"$f":"IF(SUMIFS(Data!$E:$E,Data!$B:$B,'31'!J$3,Data!$C:$C,'31'!$A$3,Data!$D:$D,'31'!$A12,Data!$F:$F,'31'!$A$2)=0,\"-\",SUMIFS(Data!$E:$E,Data!$B:$B,'31'!J$3,Data!$C:$C,'31'!$A$3,Data!$D:$D,'31'!$A12,Data!$F:$F,'31'!$A$2))","v":72.439365155741029},{"$f":"IF(SUMIFS(Data!$E:$E,Data!$B:$B,'31'!K$3,Data!$C:$C,'31'!$A$3,Data!$D:$D,'31'!$A12,Data!$F:$F,'31'!$A$2)=0,\"-\",SUMIFS(Data!$E:$E,Data!$B:$B,'31'!K$3,Data!$C:$C,'31'!$A$3,Data!$D:$D,'31'!$A12,Data!$F:$F,'31'!$A$2))","v":79.825273859133603}]
[{"$f":"VLOOKUP(\"Manitoba\",Translation!$A$1:$C$354, Translation!A1+1, 0)","v":"Manitoba"},{"$f":"IF(SUMIFS(Data!$E:$E,Data!$B:$B,'31'!B$3,Data!$C:$C,'31'!$A$3,Data!$D:$D,'31'!$A13,Data!$F:$F,'31'!$A$2)=0,\"-\",SUMIFS(Data!$E:$E,Data!$B:$B,'31'!B$3,Data!$C:$C,'31'!$A$3,Data!$D:$D,'31'!$A13,Data!$F:$F,'31'!$A$2))","v":64.31061835009649},{"$f":"IF(SUMIFS(Data!$E:$E,Data!$B:$B,'31'!C$3,Data!$C:$C,'31'!$A$3,Data!$D:$D,'31'!$A13,Data!$F:$F,'31'!$A$2)=0,\"-\",SUMIFS(Data!$E:$E,Data!$B:$B,'31'!C$3,Data!$C:$C,'31'!$A$3,Data!$D:$D,'31'!$A13,Data!$F:$F,'31'!$A$2))","v":56.662300173037245},{"$f":"IF(SUMIFS(Data!$E:$E,Data!$B:$B,'31'!D$3,Data!$C:$C,'31'!$A$3,Data!$D:$D,'31'!$A13,Data!$F:$F,'31'!$A$2)=0,\"-\",SUMIFS(Data!$E:$E,Data!$B:$B,'31'!D$3,Data!$C:$C,'31'!$A$3,Data!$D:$D,'31'!$A13,Data!$F:$F,'31'!$A$2))","v":57.529536991603202},{"$f":"IF(SUMIFS(Data!$E:$E,Data!$B:$B,'31'!E$3,Data!$C:$C,'31'!$A$3,Data!$D:$D,'31'!$A13,Data!$F:$F,'31'!$A$2)=0,\"-\",SUMIFS(Data!$E:$E,Data!$B:$B,'31'!E$3,Data!$C:$C,'31'!$A$3,Data!$D:$D,'31'!$A13,Data!$F:$F,'31'!$A$2))","v":84.355377613201284},{"$f":"IF(SUMIFS(Data!$E:$E,Data!$B:$B,'31'!F$3,Data!$C:$C,'31'!$A$3,Data!$D:$D,'31'!$A13,Data!$F:$F,'31'!$A$2)=0,\"-\",SUMIFS(Data!$E:$E,Data!$B:$B,'31'!F$3,Data!$C:$C,'31'!$A$3,Data!$D:$D,'31'!$A13,Data!$F:$F,'31'!$A$2))","v":94.576485633240765},{"$f":"IF(SUMIFS(Data!$E:$E,Data!$B:$B,'31'!G$3,Data!$C:$C,'31'!$A$3,Data!$D:$D,'31'!$A13,Data!$F:$F,'31'!$A$2)=0,\"-\",SUMIFS(Data!$E:$E,Data!$B:$B,'31'!G$3,Data!$C:$C,'31'!$A$3,Data!$D:$D,'31'!$A13,Data!$F:$F,'31'!$A$2))","v":76.890822084472987},{"$f":"IF(SUMIFS(Data!$E:$E,Data!$B:$B,'31'!H$3,Data!$C:$C,'31'!$A$3,Data!$D:$D,'31'!$A13,Data!$F:$F,'31'!$A$2)=0,\"-\",SUMIFS(Data!$E:$E,Data!$B:$B,'31'!H$3,Data!$C:$C,'31'!$A$3,Data!$D:$D,'31'!$A13,Data!$F:$F,'31'!$A$2))","v":38.346877965445159},{"$f":"IF(SUMIFS(Data!$E:$E,Data!$B:$B,'31'!I$3,Data!$C:$C,'31'!$A$3,Data!$D:$D,'31'!$A13,Data!$F:$F,'31'!$A$2)=0,\"-\",SUMIFS(Data!$E:$E,Data!$B:$B,'31'!I$3,Data!$C:$C,'31'!$A$3,Data!$D:$D,'31'!$A13,Data!$F:$F,'31'!$A$2))","v":86.870054985400287},{"$f":"IF(SUMIFS(Data!$E:$E,Data!$B:$B,'31'!J$3,Data!$C:$C,'31'!$A$3,Data!$D:$D,'31'!$A13,Data!$F:$F,'31'!$A$2)=0,\"-\",SUMIFS(Data!$E:$E,Data!$B:$B,'31'!J$3,Data!$C:$C,'31'!$A$3,Data!$D:$D,'31'!$A13,Data!$F:$F,'31'!$A$2))","v":64.31061835009649},{"$f":"IF(SUMIFS(Data!$E:$E,Data!$B:$B,'31'!K$3,Data!$C:$C,'31'!$A$3,Data!$D:$D,'31'!$A13,Data!$F:$F,'31'!$A$2)=0,\"-\",SUMIFS(Data!$E:$E,Data!$B:$B,'31'!K$3,Data!$C:$C,'31'!$A$3,Data!$D:$D,'31'!$A13,Data!$F:$F,'31'!$A$2))","v":94.576485633240765}]
[{"$f":"VLOOKUP(\"Saskatchewan\",Translation!$A$1:$C$354, Translation!A1+1, 0)","v":"Saskatchewan"},{"$f":"IF(SUMIFS(Data!$E:$E,Data!$B:$B,'31'!B$3,Data!$C:$C,'31'!$A$3,Data!$D:$D,'31'!$A14,Data!$F:$F,'31'!$A$2)=0,\"-\",SUMIFS(Data!$E:$E,Data!$B:$B,'31'!B$3,Data!$C:$C,'31'!$A$3,Data!$D:$D,'31'!$A14,Data!$F:$F,'31'!$A$2))","v":100},{"$f":"IF(SUMIFS(Data!$E:$E,Data!$B:$B,'31'!C$3,Data!$C:$C,'31'!$A$3,Data!$D:$D,'31'!$A14,Data!$F:$F,'31'!$A$2)=0,\"-\",SUMIFS(Data!$E:$E,Data!$B:$B,'31'!C$3,Data!$C:$C,'31'!$A$3,Data!$D:$D,'31'!$A14,Data!$F:$F,'31'!$A$2))","v":84.137272441378201},{"$f":"IF(SUMIFS(Data!$E:$E,Data!$B:$B,'31'!D$3,Data!$C:$C,'31'!$A$3,Data!$D:$D,'31'!$A14,Data!$F:$F,'31'!$A$2)=0,\"-\",SUMIFS(Data!$E:$E,Data!$B:$B,'31'!D$3,Data!$C:$C,'31'!$A$3,Data!$D:$D,'31'!$A14,Data!$F:$F,'31'!$A$2))","v":100},{"$f":"IF(SUMIFS(Data!$E:$E,Data!$B:$B,'31'!E$3,Data!$C:$C,'31'!$A$3,Data!$D:$D,'31'!$A14,Data!$F:$F,'31'!$A$2)=0,\"-\",SUMIFS(Data!$E:$E,Data!$B:$B,'31'!E$3,Data!$C:$C,'31'!$A$3,Data!$D:$D,'31'!$A14,Data!$F:$F,'31'!$A$2))","v":47.107976289144439},{"$f":"IF(SUMIFS(Data!$E:$E,Data!$B:$B,'31'!F$3,Data!$C:$C,'31'!$A$3,Data!$D:$D,'31'!$A14,Data!$F:$F,'31'!$A$2)=0,\"-\",SUMIFS(Data!$E:$E,Data!$B:$B,'31'!F$3,Data!$C:$C,'31'!$A$3,Data!$D:$D,'31'!$A14,Data!$F:$F,'31'!$A$2))","v":100},{"$f":"IF(SUMIFS(Data!$E:$E,Data!$B:$B,'31'!G$3,Data!$C:$C,'31'!$A$3,Data!$D:$D,'31'!$A14,Data!$F:$F,'31'!$A$2)=0,\"-\",SUMIFS(Data!$E:$E,Data!$B:$B,'31'!G$3,Data!$C:$C,'31'!$A$3,Data!$D:$D,'31'!$A14,Data!$F:$F,'31'!$A$2))","v":24.507493389594167},{"$f":"IF(SUMIFS(Data!$E:$E,Data!$B:$B,'31'!H$3,Data!$C:$C,'31'!$A$3,Data!$D:$D,'31'!$A14,Data!$F:$F,'31'!$A$2)=0,\"-\",SUMIFS(Data!$E:$E,Data!$B:$B,'31'!H$3,Data!$C:$C,'31'!$A$3,Data!$D:$D,'31'!$A14,Data!$F:$F,'31'!$A$2))","v":100},{"$f":"IF(SUMIFS(Data!$E:$E,Data!$B:$B,'31'!I$3,Data!$C:$C,'31'!$A$3,Data!$D:$D,'31'!$A14,Data!$F:$F,'31'!$A$2)=0,\"-\",SUMIFS(Data!$E:$E,Data!$B:$B,'31'!I$3,Data!$C:$C,'31'!$A$3,Data!$D:$D,'31'!$A14,Data!$F:$F,'31'!$A$2))","v":80.678754781080727},{"$f":"IF(SUMIFS(Data!$E:$E,Data!$B:$B,'31'!J$3,Data!$C:$C,'31'!$A$3,Data!$D:$D,'31'!$A14,Data!$F:$F,'31'!$A$2)=0,\"-\",SUMIFS(Data!$E:$E,Data!$B:$B,'31'!J$3,Data!$C:$C,'31'!$A$3,Data!$D:$D,'31'!$A14,Data!$F:$F,'31'!$A$2))","v":100},{"$f":"IF(SUMIFS(Data!$E:$E,Data!$B:$B,'31'!K$3,Data!$C:$C,'31'!$A$3,Data!$D:$D,'31'!$A14,Data!$F:$F,'31'!$A$2)=0,\"-\",SUMIFS(Data!$E:$E,Data!$B:$B,'31'!K$3,Data!$C:$C,'31'!$A$3,Data!$D:$D,'31'!$A14,Data!$F:$F,'31'!$A$2))","v":100}]
[{"$f":"VLOOKUP(\"Alberta\",Translation!$A$1:$C$354, Translation!A1+1, 0)","v":"Alberta"},{"$f":"IF(SUMIFS(Data!$E:$E,Data!$B:$B,'31'!B$3,Data!$C:$C,'31'!$A$3,Data!$D:$D,'31'!$A15,Data!$F:$F,'31'!$A$2)=0,\"-\",SUMIFS(Data!$E:$E,Data!$B:$B,'31'!B$3,Data!$C:$C,'31'!$A$3,Data!$D:$D,'31'!$A15,Data!$F:$F,'31'!$A$2))","v":85.460146085523306},{"$f":"IF(SUMIFS(Data!$E:$E,Data!$B:$B,'31'!C$3,Data!$C:$C,'31'!$A$3,Data!$D:$D,'31'!$A15,Data!$F:$F,'31'!$A$2)=0,\"-\",SUMIFS(Data!$E:$E,Data!$B:$B,'31'!C$3,Data!$C:$C,'31'!$A$3,Data!$D:$D,'31'!$A15,Data!$F:$F,'31'!$A$2))","v":74.52450041553368},{"$f":"IF(SUMIFS(Data!$E:$E,Data!$B:$B,'31'!D$3,Data!$C:$C,'31'!$A$3,Data!$D:$D,'31'!$A15,Data!$F:$F,'31'!$A$2)=0,\"-\",SUMIFS(Data!$E:$E,Data!$B:$B,'31'!D$3,Data!$C:$C,'31'!$A$3,Data!$D:$D,'31'!$A15,Data!$F:$F,'31'!$A$2))","v":61.855744193081755},{"$f":"IF(SUMIFS(Data!$E:$E,Data!$B:$B,'31'!E$3,Data!$C:$C,'31'!$A$3,Data!$D:$D,'31'!$A15,Data!$F:$F,'31'!$A$2)=0,\"-\",SUMIFS(Data!$E:$E,Data!$B:$B,'31'!E$3,Data!$C:$C,'31'!$A$3,Data!$D:$D,'31'!$A15,Data!$F:$F,'31'!$A$2))","v":67.098045698284238},{"$f":"IF(SUMIFS(Data!$E:$E,Data!$B:$B,'31'!F$3,Data!$C:$C,'31'!$A$3,Data!$D:$D,'31'!$A15,Data!$F:$F,'31'!$A$2)=0,\"-\",SUMIFS(Data!$E:$E,Data!$B:$B,'31'!F$3,Data!$C:$C,'31'!$A$3,Data!$D:$D,'31'!$A15,Data!$F:$F,'31'!$A$2))","v":79.186023599799142},{"$f":"IF(SUMIFS(Data!$E:$E,Data!$B:$B,'31'!G$3,Data!$C:$C,'31'!$A$3,Data!$D:$D,'31'!$A15,Data!$F:$F,'31'!$A$2)=0,\"-\",SUMIFS(Data!$E:$E,Data!$B:$B,'31'!G$3,Data!$C:$C,'31'!$A$3,Data!$D:$D,'31'!$A15,Data!$F:$F,'31'!$A$2))","v":68.829062758397882},{"$f":"IF(SUMIFS(Data!$E:$E,Data!$B:$B,'31'!H$3,Data!$C:$C,'31'!$A$3,Data!$D:$D,'31'!$A15,Data!$F:$F,'31'!$A$2)=0,\"-\",SUMIFS(Data!$E:$E,Data!$B:$B,'31'!H$3,Data!$C:$C,'31'!$A$3,Data!$D:$D,'31'!$A15,Data!$F:$F,'31'!$A$2))","v":55.553842486666966},{"$f":"IF(SUMIFS(Data!$E:$E,Data!$B:$B,'31'!I$3,Data!$C:$C,'31'!$A$3,Data!$D:$D,'31'!$A15,Data!$F:$F,'31'!$A$2)=0,\"-\",SUMIFS(Data!$E:$E,Data!$B:$B,'31'!I$3,Data!$C:$C,'31'!$A$3,Data!$D:$D,'31'!$A15,Data!$F:$F,'31'!$A$2))","v":65.674072357903313},{"$f":"IF(SUMIFS(Data!$E:$E,Data!$B:$B,'31'!J$3,Data!$C:$C,'31'!$A$3,Data!$D:$D,'31'!$A15,Data!$F:$F,'31'!$A$2)=0,\"-\",SUMIFS(Data!$E:$E,Data!$B:$B,'31'!J$3,Data!$C:$C,'31'!$A$3,Data!$D:$D,'31'!$A15,Data!$F:$F,'31'!$A$2))","v":85.460146085523306},{"$f":"IF(SUMIFS(Data!$E:$E,Data!$B:$B,'31'!K$3,Data!$C:$C,'31'!$A$3,Data!$D:$D,'31'!$A15,Data!$F:$F,'31'!$A$2)=0,\"-\",SUMIFS(Data!$E:$E,Data!$B:$B,'31'!K$3,Data!$C:$C,'31'!$A$3,Data!$D:$D,'31'!$A15,Data!$F:$F,'31'!$A$2))","v":79.186023599799142}]
[{"$f":"VLOOKUP(\"British Columbia\",Translation!$A$1:$C$354, Translation!A1+1, 0)","v":"Colombie-Britannique"},{"$f":"IF(SUMIFS(Data!$E:$E,Data!$B:$B,'31'!B$3,Data!$C:$C,'31'!$A$3,Data!$D:$D,'31'!$A16,Data!$F:$F,'31'!$A$2)=0,\"-\",SUMIFS(Data!$E:$E,Data!$B:$B,'31'!B$3,Data!$C:$C,'31'!$A$3,Data!$D:$D,'31'!$A16,Data!$F:$F,'31'!$A$2))","v":96.261511640082574},{"$f":"IF(SUMIFS(Data!$E:$E,Data!$B:$B,'31'!C$3,Data!$C:$C,'31'!$A$3,Data!$D:$D,'31'!$A16,Data!$F:$F,'31'!$A$2)=0,\"-\",SUMIFS(Data!$E:$E,Data!$B:$B,'31'!C$3,Data!$C:$C,'31'!$A$3,Data!$D:$D,'31'!$A16,Data!$F:$F,'31'!$A$2))","v":80.039284782221316},{"$f":"IF(SUMIFS(Data!$E:$E,Data!$B:$B,'31'!D$3,Data!$C:$C,'31'!$A$3,Data!$D:$D,'31'!$A16,Data!$F:$F,'31'!$A$2)=0,\"-\",SUMIFS(Data!$E:$E,Data!$B:$B,'31'!D$3,Data!$C:$C,'31'!$A$3,Data!$D:$D,'31'!$A16,Data!$F:$F,'31'!$A$2))","v":74.562619662088352},{"$f":"IF(SUMIFS(Data!$E:$E,Data!$B:$B,'31'!E$3,Data!$C:$C,'31'!$A$3,Data!$D:$D,'31'!$A16,Data!$F:$F,'31'!$A$2)=0,\"-\",SUMIFS(Data!$E:$E,Data!$B:$B,'31'!E$3,Data!$C:$C,'31'!$A$3,Data!$D:$D,'31'!$A16,Data!$F:$F,'31'!$A$2))","v":71.857882191171939},{"$f":"IF(SUMIFS(Data!$E:$E,Data!$B:$B,'31'!F$3,Data!$C:$C,'31'!$A$3,Data!$D:$D,'31'!$A16,Data!$F:$F,'31'!$A$2)=0,\"-\",SUMIFS(Data!$E:$E,Data!$B:$B,'31'!F$3,Data!$C:$C,'31'!$A$3,Data!$D:$D,'31'!$A16,Data!$F:$F,'31'!$A$2))","v":85.334539905027484},{"$f":"IF(SUMIFS(Data!$E:$E,Data!$B:$B,'31'!G$3,Data!$C:$C,'31'!$A$3,Data!$D:$D,'31'!$A16,Data!$F:$F,'31'!$A$2)=0,\"-\",SUMIFS(Data!$E:$E,Data!$B:$B,'31'!G$3,Data!$C:$C,'31'!$A$3,Data!$D:$D,'31'!$A16,Data!$F:$F,'31'!$A$2))","v":88.6036661916133},{"$f":"IF(SUMIFS(Data!$E:$E,Data!$B:$B,'31'!H$3,Data!$C:$C,'31'!$A$3,Data!$D:$D,'31'!$A16,Data!$F:$F,'31'!$A$2)=0,\"-\",SUMIFS(Data!$E:$E,Data!$B:$B,'31'!H$3,Data!$C:$C,'31'!$A$3,Data!$D:$D,'31'!$A16,Data!$F:$F,'31'!$A$2))","v":57.921314693636866},{"$f":"IF(SUMIFS(Data!$E:$E,Data!$B:$B,'31'!I$3,Data!$C:$C,'31'!$A$3,Data!$D:$D,'31'!$A16,Data!$F:$F,'31'!$A$2)=0,\"-\",SUMIFS(Data!$E:$E,Data!$B:$B,'31'!I$3,Data!$C:$C,'31'!$A$3,Data!$D:$D,'31'!$A16,Data!$F:$F,'31'!$A$2))","v":95.331489986843579},{"$f":"IF(SUMIFS(Data!$E:$E,Data!$B:$B,'31'!J$3,Data!$C:$C,'31'!$A$3,Data!$D:$D,'31'!$A16,Data!$F:$F,'31'!$A$2)=0,\"-\",SUMIFS(Data!$E:$E,Data!$B:$B,'31'!J$3,Data!$C:$C,'31'!$A$3,Data!$D:$D,'31'!$A16,Data!$F:$F,'31'!$A$2))","v":96.261511640082574},{"$f":"IF(SUMIFS(Data!$E:$E,Data!$B:$B,'31'!K$3,Data!$C:$C,'31'!$A$3,Data!$D:$D,'31'!$A16,Data!$F:$F,'31'!$A$2)=0,\"-\",SUMIFS(Data!$E:$E,Data!$B:$B,'31'!K$3,Data!$C:$C,'31'!$A$3,Data!$D:$D,'31'!$A16,Data!$F:$F,'31'!$A$2))","v":85.334539905027484}]
[{"$f":"VLOOKUP(\"Territories\",Translation!$A$1:$C$354, Translation!A1+1, 0)","v":"Territoires"},{"$f":"IF(SUMIFS(Data!$E:$E,Data!$B:$B,'31'!B$3,Data!$C:$C,'31'!$A$3,Data!$D:$D,'31'!$A17,Data!$F:$F,'31'!$A$2)=0,\"-\",SUMIFS(Data!$E:$E,Data!$B:$B,'31'!B$3,Data!$C:$C,'31'!$A$3,Data!$D:$D,'31'!$A17,Data!$F:$F,'31'!$A$2))","v":"-"},{"$f":"IF(SUMIFS(Data!$E:$E,Data!$B:$B,'31'!C$3,Data!$C:$C,'31'!$A$3,Data!$D:$D,'31'!$A17,Data!$F:$F,'31'!$A$2)=0,\"-\",SUMIFS(Data!$E:$E,Data!$B:$B,'31'!C$3,Data!$C:$C,'31'!$A$3,Data!$D:$D,'31'!$A17,Data!$F:$F,'31'!$A$2))","v":100},{"$f":"IF(SUMIFS(Data!$E:$E,Data!$B:$B,'31'!D$3,Data!$C:$C,'31'!$A$3,Data!$D:$D,'31'!$A17,Data!$F:$F,'31'!$A$2)=0,\"-\",SUMIFS(Data!$E:$E,Data!$B:$B,'31'!D$3,Data!$C:$C,'31'!$A$3,Data!$D:$D,'31'!$A17,Data!$F:$F,'31'!$A$2))","v":100},{"$f":"IF(SUMIFS(Data!$E:$E,Data!$B:$B,'31'!E$3,Data!$C:$C,'31'!$A$3,Data!$D:$D,'31'!$A17,Data!$F:$F,'31'!$A$2)=0,\"-\",SUMIFS(Data!$E:$E,Data!$B:$B,'31'!E$3,Data!$C:$C,'31'!$A$3,Data!$D:$D,'31'!$A17,Data!$F:$F,'31'!$A$2))","v":100},{"$f":"IF(SUMIFS(Data!$E:$E,Data!$B:$B,'31'!F$3,Data!$C:$C,'31'!$A$3,Data!$D:$D,'31'!$A17,Data!$F:$F,'31'!$A$2)=0,\"-\",SUMIFS(Data!$E:$E,Data!$B:$B,'31'!F$3,Data!$C:$C,'31'!$A$3,Data!$D:$D,'31'!$A17,Data!$F:$F,'31'!$A$2))","v":100},{"$f":"IF(SUMIFS(Data!$E:$E,Data!$B:$B,'31'!G$3,Data!$C:$C,'31'!$A$3,Data!$D:$D,'31'!$A17,Data!$F:$F,'31'!$A$2)=0,\"-\",SUMIFS(Data!$E:$E,Data!$B:$B,'31'!G$3,Data!$C:$C,'31'!$A$3,Data!$D:$D,'31'!$A17,Data!$F:$F,'31'!$A$2))","v":100},{"$f":"IF(SUMIFS(Data!$E:$E,Data!$B:$B,'31'!H$3,Data!$C:$C,'31'!$A$3,Data!$D:$D,'31'!$A17,Data!$F:$F,'31'!$A$2)=0,\"-\",SUMIFS(Data!$E:$E,Data!$B:$B,'31'!H$3,Data!$C:$C,'31'!$A$3,Data!$D:$D,'31'!$A17,Data!$F:$F,'31'!$A$2))","v":100},{"$f":"IF(SUMIFS(Data!$E:$E,Data!$B:$B,'31'!I$3,Data!$C:$C,'31'!$A$3,Data!$D:$D,'31'!$A17,Data!$F:$F,'31'!$A$2)=0,\"-\",SUMIFS(Data!$E:$E,Data!$B:$B,'31'!I$3,Data!$C:$C,'31'!$A$3,Data!$D:$D,'31'!$A17,Data!$F:$F,'31'!$A$2))","v":"-"},{"$f":"IF(SUMIFS(Data!$E:$E,Data!$B:$B,'31'!J$3,Data!$C:$C,'31'!$A$3,Data!$D:$D,'31'!$A17,Data!$F:$F,'31'!$A$2)=0,\"-\",SUMIFS(Data!$E:$E,Data!$B:$B,'31'!J$3,Data!$C:$C,'31'!$A$3,Data!$D:$D,'31'!$A17,Data!$F:$F,'31'!$A$2))","v":"-"},{"$f":"IF(SUMIFS(Data!$E:$E,Data!$B:$B,'31'!K$3,Data!$C:$C,'31'!$A$3,Data!$D:$D,'31'!$A17,Data!$F:$F,'31'!$A$2)=0,\"-\",SUMIFS(Data!$E:$E,Data!$B:$B,'31'!K$3,Data!$C:$C,'31'!$A$3,Data!$D:$D,'31'!$A17,Data!$F:$F,'31'!$A$2))","v":100}]
[{"$f":"VLOOKUP(\"Distribution based on loan amounts, not number of loans.\",Translation!$A$1:$C$354, Translation!A1+1, 0)","v":"La répartition est établie d'après le montant, plutôt que le nombre de prêts assurés."}]
[{"$f":"VLOOKUP(\"The sum of all breakdown categories may not add up to 100 due to rounding.\",Translation!$A$1:$C$354, Translation!A1+1, 0)","v":"Les chiffres ayant été arrondis, il se peut que la somme de l'ensemble des catégories n'égale pas 100 %."}]
[]
[{"$f":"VLOOKUP(\"Insurance-in-force by new and existing type (%)\",Translation!$A$1:$C$354, Translation!A1+1, 0)","v":"Contrats d’assurance en vigueur selon le type neuf/existant (%)"}]
[{"$f":"VLOOKUP(\"MULTI-UNIT RESIDENTIAL\",Translation!$A$1:$C$354, Translation!A1+1, 0)","v":"IMMEUBLES COLLECTIFS RÉSIDENTIELS"},{"$f":"VLOOKUP(\"As at\",Translation!$A$1:$C$354,Translation!A1+1,0)","v":"Aux"}]
[null,{"$f":"VLOOKUP(\"Q1 2020\",Translation!$A$1:$C$354, Translation!A1+1, 0)","v":"T1 2020"},{"$f":"VLOOKUP(\"Q4 2019\",Translation!$A$1:$C$354, Translation!A1+1, 0)","v":"T4 2019"},{"$f":"VLOOKUP(\"Q3 2019\",Translation!$A$1:$C$354, Translation!A1+1, 0)","v":"T3 2019"},"Q2 2019","Q1 2019","Q4 2018","Q3 2018","Q2 2018"]
[{"$f":"VLOOKUP(\"New\",Translation!$A$1:$C$354, Translation!A1+1, 0)","v":"Neuf"},16.100263113882193,16.635946515973909,16.508933531022311,16.540200230874074,15.840614150446989,16.90620128652067,16.343898845599796,17.25197218313755]
[{"$f":"VLOOKUP(\"Existing\",Translation!$A$1:$C$354, Translation!A1+1, 0)","v":"Existant"},83.899736886116045,83.364053484033079,83.491066468970686,83.459799769128225,84.159385849551754,83.093798713481533,83.656101154403899,82.748027816863186]
[{"$f":"VLOOKUP(\"Existing properties by province (%)\",Translation!$A$1:$C$354, Translation!A1+1, 0)","v":"Propriétés existantes selon la province (%)"}]
[{"$f":"VLOOKUP(\"Newfoundland and Labrador\",Translation!$A$1:$C$354, Translation!A1+1, 0)","v":"Terre-Neuve-et-Labrador"},77.437953559623693,76.750087708133677,76.8,76.727965433327853,77.176747317359968,76.59860249506238,77.145528692825067,74.824862358684925]
[{"$f":"VLOOKUP(\"Prince Edward Island\",Translation!$A$1:$C$354, Translation!A1+1, 0)","v":"Île-du-Prince-Édouard"},67.362706386332476,68.080041488872993,72.5,71.388314170320413,70.536981460147047,70.502286042994271,68.236243077874775,65.249055702013877]
[{"$f":"VLOOKUP(\"Nova Scotia\",Translation!$A$1:$C$354, Translation!A1+1, 0)","v":"Nouvelle-Écosse"},56.161007803065601,55.11597479958116,56.5,56.665988535794163,58.684240224250161,58.10496841105639,57.643724369112384,56.273906641520618]
[{"$f":"VLOOKUP(\"New Brunswick\",Translation!$A$1:$C$354, Translation!A1+1, 0)","v":"Nouveau-Brunswick"},66.563928572989553,69.891276388670647,70.099999999999994,68.78407570629345,68.099764942670177,66.47221520586686,65.928218502876945,65.594216732344051]
[{"$f":"VLOOKUP(\"Quebec\",Translation!$A$1:$C$354, Translation!A1+1, 0)","v":"Québec"},86.111886327170211,85.380445704578293,85.3,84.769928866505396,86.173199041270038,84.253268147093451,85.804766994378269,83.622239077628407]
[{"$f":"VLOOKUP(\"Ontario\",Translation!$A$1:$C$354, Translation!A1+1, 0)","v":"Ontario"},88.001273176558712,87.465570252278269,87.7,88.115200917466225,88.379269001126161,87.736981359632665,87.92056018861598,87.063120643368791]
[{"$f":"VLOOKUP(\"Manitoba\",Translation!$A$1:$C$354, Translation!A1+1, 0)","v":"Manitoba"},74.707925212717626,74.920055582564899,76.8,77.388026107629102,75.29707982885931,74.803065520414066,74.724405608995667,75.681988367370408]
[{"$f":"VLOOKUP(\"Saskatchewan\",Translation!$A$1:$C$354, Translation!A1+1, 0)","v":"Saskatchewan"},73.016042717387947,71.237022441076533,68.599999999999994,69.333685339614149,71.035198905314573,70.065013225443977,72.380065790267096,71.88217707700602]
[{"$f":"VLOOKUP(\"Alberta\",Translation!$A$1:$C$354, Translation!A1+1, 0)","v":"Alberta"},83.975758073196815,83.991285244785757,84.5,84.246122252379791,84.326422968861294,84.05016289085691,84.49583077823209,85.118466497072163]
[{"$f":"VLOOKUP(\"British Columbia\",Translation!$A$1:$C$354, Translation!A1+1, 0)","v":"Colombie-Britannique"},82.61411588548782,82.101751915135452,81.2,81.174014360343023,82.036437360239063,80.725933871590186,80.93265802180251,81.006673118306196]
[{"$f":"VLOOKUP(\"Territories\",Translation!$A$1:$C$354, Translation!A1+1, 0)","v":"Territoires"},82.054386715522327,81.938088661460455,81.3,79.337364742607122,78.162723370421858,77.513078479224717,76.142866952728724,75.344360063837385]
[{"$f":"VLOOKUP(\"Distribution based on outstanding loan amounts, not number of loans.\",Translation!$A$1:$C$354, Translation!A1+1, 0)","v":"La répartition est établie d'après le solde, plutôt que le nombre de prêts assurés."}]
[{"$f":"VLOOKUP(\"The sum of all breakdown categories may not add up to 100 due to rounding.\",Translation!$A$1:$C$354, Translation!A1+1, 0)","v":"Les chiffres ayant été arrondis, il se peut que la somme de l'ensemble des catégories n'égale pas 100 %."}]

{"sheet":"32","index":33,"n_rows":37,"n_cols":11,"rows_kept":37,"cut":false,"hidden":false,"merged":[[35,0,35,10],[20,0,21,0],[2,1,2,10],[20,1,20,10],[0,6,0,10]]}
[{"$f":"VLOOKUP(\"MULTI-UNIT RESIDENTIAL - ARREARS AND CLAIMS PAID\",Translation!$A$1:$C$328, Translation!A1+1, 0)","v":"IMMEUBLES COLLECTIFS RÉSIDENTIELS –  PRÊTS EN SOUFFRANCE ET RÈGLEMENTS PAYÉS"},null,null,null,null,null,{"$f":"VLOOKUP(\"Back to Table of Contents\",Translation!$A$1:$C$354, Translation!A1+1, 0)","v":"Retour à la table des matières"}]
[{"$f":"VLOOKUP(\"Arrears\",Translation!$A$1:$C$354, Translation!A1+1, 0)","v":"Prêts en souffrance"}]
[null,{"$f":"VLOOKUP(\"As at\",Translation!$A$1:$C$354,Translation!A1+1,0)","v":"Aux"}]
[{"$f":"VLOOKUP(\"MULTI-UNIT RESIDENTIAL\",Translation!$A$1:$C$354, Translation!A1+1, 0)","v":"IMMEUBLES COLLECTIFS RÉSIDENTIELS"},{"$f":"VLOOKUP(\"Q1 2020\",Translation!$A$1:$C$354, Translation!$A1+1, 0)","v":"T1 2020"},{"$f":"VLOOKUP(\"Q4 2019\",Translation!$A$1:$C$354, Translation!$A1+1, 0)","v":"T4 2019"},{"$f":"VLOOKUP(\"Q3 2019\",Translation!$A$1:$C$354, Translation!$A1+1, 0)","v":"T3 2019"},{"$f":"VLOOKUP(\"Q2 2019\",Translation!$A$1:$C$354, Translation!$A1+1, 0)","v":"T2 2019"},{"$f":"VLOOKUP(\"Q1 2019\",Translation!$A$1:$C$354, Translation!$A1+1, 0)","v":"T1 2019"},{"$f":"VLOOKUP(\"Q4 2018\",Translation!$A$1:$C$354, Translation!A1+1, 0)","v":"T4 2018"},{"$f":"VLOOKUP(\"Q3 2018\",Translation!$A$1:$C$354, Translation!A1+1, 0)","v":"T3 2018"},{"$f":"VLOOKUP(\"Q2 2018\",Translation!$A$1:$C$354, Translation!A1+1, 0)","v":"T2 2018"},{"$f":"VLOOKUP(\"Q4 2017\",Translation!$A$1:$C$354, Translation!A1+1, 0)","v":"T4 2017"},{"$f":"VLOOKUP(\"Q3 2017\",Translation!$A$1:$C$354, Translation!A1+1, 0)","v":"T3 2017"}]
[{"$f":"VLOOKUP(\"Number of Loans in Arrears\",Translation!$A$1:$C$354, Translation!A1+1, 0)","v":"Nombre de prêts en souffrance"},97,87,87,93,105,86,83,96,106,107]
[{"$f":"VLOOKUP(\"Canada\",Translation!$A$1:$C$354, Translation!A1+1, 0)","v":"Canada"},3.8999999999999998E-3,3.5824396282956362E-3,3.5824396282956362E-3,3.8589976801538177E-3,4.4504907936691665E-3,3.5999999999999999E-3,3.5000000000000001E-3,4.1009419213586555E-3,4.7884043119831863E-3,4.6628575162512972E-3]
[{"$f":"VLOOKUP(\"By province\",Translation!$A$1:$C$354, Translation!A1+1, 0)","v":"Répartition selon la province"}]
[{"$f":"VLOOKUP(\"Newfoundland and Labrador\",Translation!$A$1:$C$354, Translation!A1+1, 0)","v":"Terre-Neuve-et-Labrador"},0,0,0,6.30956485755561E-3,0,0,0,0,0,0]
[{"$f":"VLOOKUP(\"Prince Edward Island\",Translation!$A$1:$C$354, Translation!A1+1, 0)","v":"Île-du-Prince-Édouard"},0,0,0,0,0,0,0,0,9.5263291028609923E-3,9.407942753670533E-3]
[{"$f":"VLOOKUP(\"Nova Scotia\",Translation!$A$1:$C$354, Translation!A1+1, 0)","v":"Nouvelle-Écosse"},7.9000000000000008E-3,1.3232172102737166E-3,1.3232172102737166E-3,2.6595960479628734E-3,6.7098577676626336E-3,9.4000000000000004E-3,9.52810012037506E-3,1.1004126547455296E-2,1.1059496223302687E-2,1.388804012487308E-2]
[{"$f":"VLOOKUP(\"New Brunswick\",Translation!$A$1:$C$354, Translation!A1+1, 0)","v":"Nouveau-Brunswick"},0,0,0,0,2.9743249195991698E-3,2.8999999999999998E-3,2.914856473925771E-3,2.967359050445104E-3,0,0]
[{"$f":"VLOOKUP(\"Quebec\",Translation!$A$1:$C$354, Translation!A1+1, 0)","v":"Québec"},4.1999999999999997E-3,3.8804460714713918E-3,3.8804460714713918E-3,4.7311393291568707E-3,5.3192652292619142E-3,3.7000000000000002E-3,3.9429708649287047E-3,4.7522592708008722E-3,5.7473328552946571E-3,5.6084438240839359E-3]
[{"$f":"VLOOKUP(\"Ontario\",Translation!$A$1:$C$354, Translation!A1+1, 0)","v":"Ontario"},2.3999999999999998E-3,2.3945166569797911E-3,2.3945166569797911E-3,1.8143396440948021E-3,2.4278364395026193E-3,3.3E-3,2.2616705429090189E-3,3.2908268202385851E-3,4.3352185215287204E-3,3.1165204229978024E-3]
[{"$f":"VLOOKUP(\"Manitoba\",Translation!$A$1:$C$354, Translation!A1+1, 0)","v":"Manitoba"},0,0,0,0,0,0,0,0,0,0]
[{"$f":"VLOOKUP(\"Saskatchewan\",Translation!$A$1:$C$354, Translation!A1+1, 0)","v":"Saskatchewan"},0,0,0,0,0,0,0,0,0,0]
[{"$f":"VLOOKUP(\"Alberta\",Translation!$A$1:$C$354, Translation!A1+1, 0)","v":"Alberta"},1.1900000000000001E-2,1.2232587309427168E-2,1.2232587309427168E-2,8.933929559554828E-3,1.0351874509776447E-2,7.7999999999999996E-3,7.8651839642670373E-3,5.8177117000646414E-3,3.2991336863460452E-3,4.6237154098040262E-3]
[{"$f":"VLOOKUP(\"British Columbia\",Translation!$A$1:$C$354, Translation!A1+1, 0)","v":"Colombie-Britannique"},1E-3,1.4581824686637759E-3,1.4581824686637759E-3,1.9534203474584929E-3,5.0012038773122132E-4,1E-3,4.9961486329529084E-4,4.96031746031746E-4,1.969726087666246E-3,1.9563437388331675E-3]
[{"$f":"VLOOKUP(\"Territories\",Translation!$A$1:$C$354, Translation!A1+1, 0)","v":"Territoires"},0,0,0,0,0,0,0,0,0,0]
[]
[{"$f":"VLOOKUP(\"Claims Paid\",Translation!$A$1:$C$354, Translation!A1+1, 0)","v":"Règlements payés"}]
[{"$f":"VLOOKUP(\"MULTI-UNIT RESIDENTIAL\",Translation!$A$1:$C$354, Translation!A1+1, 0)","v":"IMMEUBLES COLLECTIFS RÉSIDENTIELS"},{"$f":"VLOOKUP(\"YTD\",Translation!$A$1:$C$354,Translation!A1+1,0)","v":"Cumul"}]
[null,{"$f":"VLOOKUP(\"Q1 2020\",Translation!$A$1:$C$354, Translation!$A1+1, 0)","v":"T1 2020"},{"$f":"VLOOKUP(\"Q4 2019\",Translation!$A$1:$C$354, Translation!$A1+1, 0)","v":"T4 2019"},{"$f":"VLOOKUP(\"Q3 2019\",Translation!$A$1:$C$354, Translation!$A1+1, 0)","v":"T3 2019"},{"$f":"VLOOKUP(\"Q2 2019\",Translation!$A$1:$C$354, Translation!$A1+1, 0)","v":"T2 2019"},{"$f":"VLOOKUP(\"Q1 2019\",Translation!$A$1:$C$354, Translation!$A1+1, 0)","v":"T1 2019"},{"$f":"VLOOKUP(\"Q4 2018\",Translation!$A$1:$C$354, Translation!A1+1, 0)","v":"T4 2018"},{"$f":"VLOOKUP(\"Q3 2018\",Translation!$A$1:$C$354, Translation!A1+1, 0)","v":"T3 2018"},{"$f":"VLOOKUP(\"Q2 2018\",Translation!$A$1:$C$354, Translation!A1+1, 0)","v":"T2 2018"},{"$f":"VLOOKUP(\"Q4 2017\",Translation!$A$1:$C$354, Translation!A1+1, 0)","v":"T4 2017"},{"$f":"VLOOKUP(\"Q3 2017\",Translation!$A$1:$C$354, Translation!A1+1, 0)","v":"T3 2017"}]
[{"$f":"VLOOKUP(\"Canada\",Translation!$A$1:$C$354, Translation!A1+1, 0)","v":"Canada"},2,19,14,4,1,11,9,7,24,21]
[{"$f":"VLOOKUP(\"By province\",Translation!$A$1:$C$354, Translation!A1+1, 0)","v":"Répartition selon la province"}]
[{"$f":"VLOOKUP(\"Newfoundland and Labrador\",Translation!$A$1:$C$354, Translation!A1+1, 0)","v":"Terre-Neuve-et-Labrador"}]
[{"$f":"VLOOKUP(\"Prince Edward Island\",Translation!$A$1:$C$354, Translation!A1+1, 0)","v":"Île-du-Prince-Édouard"}]
[{"$f":"VLOOKUP(\"Nova Scotia\",Translation!$A$1:$C$354, Translation!A1+1, 0)","v":"Nouvelle-Écosse"},null,1,1,null,null,1,1,1]
[{"$f":"VLOOKUP(\"New Brunswick\",Translation!$A$1:$C$354, Translation!A1+1, 0)","v":"Nouveau-Brunswick"},null,1,1,1]
[{"$f":"VLOOKUP(\"Quebec\",Translation!$A$1:$C$354, Translation!A1+1, 0)","v":"Québec"},2,16,12,3,1,8,6,4]
[{"$f":"VLOOKUP(\"Ontario\",Translation!$A$1:$C$354, Translation!A1+1, 0)","v":"Ontario"},null,1,null,null,null,1,1,1]
[{"$f":"VLOOKUP(\"Manitoba\",Translation!$A$1:$C$354, Translation!A1+1, 0)","v":"Manitoba"}]
[{"$f":"VLOOKUP(\"Saskatchewan\",Translation!$A$1:$C$354, Translation!A1+1, 0)","v":"Saskatchewan"}]
[{"$f":"VLOOKUP(\"Alberta\",Translation!$A$1:$C$354, Translation!A1+1, 0)","v":"Alberta"},null,null,null,null,null,1,1,1]
[{"$f":"VLOOKUP(\"British Columbia\",Translation!$A$1:$C$354, Translation!A1+1, 0)","v":"Colombie-Britannique"}]
[{"$f":"VLOOKUP(\"Territories\",Translation!$A$1:$C$354, Translation!A1+1, 0)","v":"Territoires"}]
[{"$f":"VLOOKUP(\"Due to the re-freshing of data in Q1 2018, some differences  from previously reported figures are present. This is due to cancelation of claims which can occur up to 12 months after the original claim was received.\",Translation!$A$1:$C$354, Translation!A1+1, 0)","v":"Les données ayant été mises à jour au premier trimestre de 2018, il y a quelques écarts par rapport aux chiffres publiés précédemment. Cette différence s’explique par le fait qu’une demande de règlement peut être annulée au plus tard 12 mois après sa réception initiale."}]
[{"$f":"VLOOKUP(\"Provincial figures can not be disclosed due to confidentiality reasons.\",Translation!$A$1:$C$354, Translation!A1+1, 0)","v":"Les données provinciales ne peuvent être divulguées pour des raisons de confidentialité."}]

{"sheet":"33","index":34,"n_rows":68,"n_cols":7,"rows_kept":68,"cut":false,"hidden":false,"merged":[[0,6,0,8],[12,0,12,8],[15,0,16,8],[20,0,21,8],[23,0,23,8],[60,0,61,8],[64,0,64,8],[26,0,26,8],[32,0,33,8],[39,0,40,8],[43,0,44,8],[50,0,51,8]]}
[{"$f":"VLOOKUP(\"Glossary\",Translation!$A$1:$C$328, Translation!A1+1, 0)","v":"Glossaire"},null,null,null,null,null,{"$f":"VLOOKUP(\"Back to Table of Contents\",Translation!$A$1:$C$328, Translation!A1+1, 0)","v":"Retour à la table des matières"}]
[]
[{"$f":"VLOOKUP(\"Amortization\",Translation!$A$1:$C$328, Translation!A1+1, 0)","v":"Période d'amortissement"}]
[{"$f":"VLOOKUP(\"The period of time required to reduce a debt to zero when payments are made regularly.\",Translation!$A$1:$C$328, Translation!A1+1, 0)","v":"Période nécessaire pour rembourser entièrement la dette, lorsque les versements hypothécaires sont effectués à temps."}]
[]
[{"$f":"VLOOKUP(\"Arrears Rate  \",Translation!$A$1:$C$328, Translation!A1+1, 0)","v":"Taux de prêts en souffrance"}]
[{"$f":"VLOOKUP(\"All loans more than 90 days past due as a percentage of outstanding insured loans.\",Translation!$A$1:$C$328, Translation!A1+1, 0)","v":"Rapport, exprimé en pourcentage, de tous les prêts en souffrance depuis plus de 90 jours au nombre de prêts assurés en cours de remboursement."}]
[]
[{"$f":"VLOOKUP(\"Claims Paid\",Translation!$A$1:$C$328, Translation!A1+1, 0)","v":"Règlements payés"}]
[{"$f":"VLOOKUP(\"The total number of claims paid to the lender. The figures reflect claims paid year-to-date.\",Translation!$A$1:$C$328, Translation!A1+1, 0)","v":"Le nombre total de règlements payés au prêteur. Les données reflètent le volume payé depuis le début de l'année."}]
[]
[{"$f":"VLOOKUP(\"Credit Score\",Translation!$A$1:$C$328, Translation!A1+1, 0)","v":"Pointage de crédit"}]
[{"$f":"VLOOKUP(\"The credit score is based on credit report information sourced from Canadian credit bureaus, i.e. Equifax and TransUnion.\",Translation!$A$1:$C$326, Translation!A1+1, 0) & VLOOKUP(\"There are no credit score data available for Multiples.\",Translation!$A$1:$C$326, Translation!A1+1, 0) & VLOOKUP(\"The credit score reported is obtained during the original underwriting process.\",Translation!$A$1:$C$326, Translation!A1+1, 0)","v":"Le pointage de crédit est basé sur les informations de crédit fournies par les bureaux de crédit canadiens, à savoir Equifax et TransUnion.Les données de crédit ne sont pas disponibles pour les immeubles collectifs.Le pointage de crédit indiqué est obtenu lors du processus de souscription initial."}]
[]
[{"$f":"VLOOKUP(\"Gross Debt Service (GDS) Ratio\",Translation!$A$1:$C$328, Translation!A1+1, 0)","v":"Rapport d’amortissement brut de la dette (ABD)"}]
[{"$f":"VLOOKUP(\"The percentage of the borrower's gross income that will be used for monthly payments of principal, interest, taxes, heating costs, and half of any condominium, pad rent / lot rent fees, when applicable.\",Translation!$A$1:$C$326, Translation!A1+1, 0) & VLOOKUP(\"Provided by the lender during the original underwriting process.\",Translation!$A$1:$C$326, Translation!A1+1, 0)","v":"Le pourcentage du revenu brut de l'emprunteur qui sera utilisé pour les paiements mensuels du capital, des intérêts, des taxes, des frais de chauffage et de la moitié des frais de copropriété, des frais de loyer et de loyer, le cas échéant.Fourni par le prêteur au cours du processus de souscription initial."}]
[]
[]
[{"$f":"VLOOKUP(\"Dwelling Type\",Translation!$A$1:$C$328, Translation!A1+1, 0)","v":"Type de logement"}]
[{"$f":"VLOOKUP(\"For Transactional Homeowner and Portfolio:\",Translation!$A$1:$C$328, Translation!A1+1, 0)","v":"Pour propriétaires-occupants et assurance de portefeuille:"}]
[{"$f":"VLOOKUP(\"Type of physical structure and style of residential house and includes Single, Row (i.e. Townhouses), Apartment, Semi-detached, Plexes and Others. Plexes include Duplex, Triplex and Four Plex buildings.\",Translation!$A$1:$C$328, Translation!A1+1, 0)","v":"Type de structure physique et style d'habitation : comprend logement unifamlial, en rangée, (i.e. maisons en rangée), appartement, jumelé, plex et autres. Les plex comprennent les duplex, triplex et quadriplex."}]
[]
[{"$f":"VLOOKUP(\"For Multi-Unit:\",Translation!$A$1:$C$328, Translation!A1+1, 0)","v":"Pour Immeubles collectifs résidentiels:"}]
[{"$f":"VLOOKUP(\"Type of physical structure and style of residential house and includes Apartment, Retirement/Nursing homes, and Others.\",Translation!$A$1:$C$328, Translation!A1+1, 0)","v":"Type de structure physique et style d'habitation : comprend appartement, maisons de retraite/de repos, et autres."}]
[]
[{"$f":"VLOOKUP(\"Insurance-in-force\",Translation!$A$1:$C$328, Translation!A1+1, 0)","v":"Contrats d’assurance en vigueur"}]
[{"$f":"VLOOKUP(\"The outstanding balance of all mortgages insured as reported by the lender on a quarterly basis. CMHC’s insurance in-force has a legislated limit of $600 billion.\",Translation!$A$1:$C$328, Translation!A1+1, 0)","v":"Solde impayé de tous les prêts hypothécaires assurés. Communiqué par le prêteur tous les trimestres. La loi plafonne les contrats d’assurance en vigueur de la SCHL à 600 milliards de dollars."}]
[]
[{"$f":"VLOOKUP(\"Insured Volume\",Translation!$A$1:$C$328, Translation!A1+1, 0)","v":"Volume de prêts assurés"}]
[{"$f":"VLOOKUP(\"Number of loans for which a mortgage insurance premium was received.\",Translation!$A$1:$C$328, Translation!A1+1, 0)","v":"Nombre de prêts pour lesquels une prime d'assurance hypothécaire a été reçue."}]
[]
[{"$f":"VLOOKUP(\"Interest Rate Type    \",Translation!$A$1:$C$328, Translation!A1+1, 0)","v":"Type de taux d’intérêt"}]
[{"$f":"VLOOKUP(\"Interest rate (rate of the cost of borrowing money from lenders) type which includes fixed or variable interest rates. \",Translation!$A$1:$C$326, Translation!A1+1, 0) & VLOOKUP(\"A fixed interest rate remains unchanged for a given term or period of time while a floating interest rate fluctuates with general market conditions. \",Translation!$A$1:$C$326, Translation!A1+1, 0) & VLOOKUP(\"Provided by the lender during the original underwriting process.\",Translation!$A$1:$C$326, Translation!A1+1, 0)","v":"Type de taux d'intérêt (taux du coût d'emprunt auprès d'un prêteur) qui comprend des taux d'intérêt fixes ou variables.Un taux d'intérêt fixe demeure inchangé pour une durée ou une période donnée, tandis qu'un taux d'intérêt variable fluctue en fonction des conditions générales du marché.Fourni par le prêteur au cours du processus de souscription initial."}]
[]
[]
[{"$f":"VLOOKUP(\"Loan Amount\",Translation!$A$1:$C$328, Translation!A1+1, 0)","v":"Montant du prêt"}]
[{"$f":"VLOOKUP(\"Amount of the mortgage loans insured by CMHC which typically includes the mortgage loan insurance premium. \",Translation!$A$1:$C$328, Translation!A1+1, 0)","v":"Montant des prêts hypothécaires assurés par la SCHL. Comprend généralement la prime d’assurance hypothécaire."}]
[]
[{"$f":"VLOOKUP(\"Loan to Value \",Translation!$A$1:$C$328, Translation!A1+1, 0)","v":"Ratio prêt-valeur"}]
[{"$f":"VLOOKUP(\"The ratio of the loan to the lending value of a property expressed as a percentage. For example, the loan-to-value ratio of a loan for $25,000 on a home which costs $100,000 is 25%.\",Translation!$A$1:$C$328, Translation!A1+1, 0)","v":"Rapport entre le montant du prêt et la valeur d’emprunt, exprimé en pourcentage. Par exemple, dans le cas d’un prêt de 25 000 $ visant une propriété qui coûte 100 000 $, le rapport prêt-valeur est de 25 %."}]
[]
[]
[{"$f":"PROPER(VLOOKUP(\"Multi-Unit Residential\",Translation!$A$1:$C$328, Translation!A1+1, 0))","v":"Immeubles Collectifs Résidentiels"}]
[{"$f":"VLOOKUP(\"Default insurance for loans for the construction, purchase and refinancing of multi-unit residential properties consisting of 5 or more units. \",Translation!$A$1:$C$326, Translation!A1+1, 0) & VLOOKUP(\"These properties include rental buildings, licensed care facilities and retirement homes, affordable housing projects and purpose-built student housing.\",Translation!$A$1:$C$326, Translation!A1+1, 0)","v":"Assurance prêt hypothécaire consentie pour la construction, l’achat et le refinancement d’immeubles collectifs résidentiels comptant 5 logements ou plus. Il peut s’agir d’immeubles locatifs, de centres d’hébergement et de résidences pour personnes âgées, d’ensembles de logements abordables ou de logements pour étudiants."}]
[]
[]
[{"$f":"VLOOKUP(\"New/Existing Type\",Translation!$A$1:$C$328, Translation!A1+1, 0)","v":"Neuf/Existant"}]
[{"$f":"VLOOKUP(\"Determines whether the property was a new construction or existing building, at time of mortgage insurance initiation.\",Translation!$A$1:$C$328, Translation!A1+1, 0)","v":"Détermine si la propriété était une construction ou un bâtiment existant au moment de l'initiation de l'assurance prêt hypothécaire."}]
[]
[{"$f":"PROPER(VLOOKUP(\"Portfolio\",Translation!$A$1:$C$328, Translation!A1+1, 0))","v":"Assurance De Portefeuille"}]
[{"$f":"VLOOKUP(\"Default insurance for pools of loans with loan-to-value ratio less than or equal to 80% secured by residential properties of 4 or fewer units, previously uninsured on a transactional basis and that must be under repayment. \",Translation!$A$1:$C$326, Translation!A1+1, 0) & VLOOKUP(\"Mortgage insurance premium is assumed by the lender.\",Translation!$A$1:$C$326, Translation!A1+1, 0)","v":"Assurance prêt hypothécaire pour les blocs de prêts dont le rapport prêt/valeur est inférieur ou égal à 80 % et garantie par des propriétés résidentielles de 4 logements ou moins, auparavant non assurées à l'unité et devant être remboursées.La prime d'assurance hypothécaire est à la charge du prêteur."}]
[]
[]
[{"$f":"VLOOKUP(\"Purchase Price\",Translation!$A$1:$C$328, Translation!A1+1, 0)","v":"Prix d'achat"}]
[{"$f":"VLOOKUP(\"The price of the property at the time of purchase (as provided by Lender).\",Translation!$A$1:$C$328, Translation!A1+1, 0)","v":"Prix de la propriété au moment de l’achat (donnée fournie par le prêteur). "}]
[]
[{"$f":"VLOOKUP(\"Rural\",Translation!$A$1:$C$328, Translation!A1+1, 0)","v":"Rural"}]
[{"$f":"VLOOKUP(\"Area where the census population count is less than 10,000.\",Translation!$A$1:$C$328, Translation!A1+1, 0)","v":"Se dit d’un milieu qui, selon le recensement, compte moins de 10 000 habitants."}]
[]
[{"$f":"VLOOKUP(\"Total Debt Service (TDS) Ratio\",Translation!$A$1:$C$328, Translation!A1+1, 0)","v":"Rapport d’amortissement total de la dette (ATD)"}]
[{"$f":"VLOOKUP(\"The percent of gross annual income required to cover all payments for housing and all other debts, such as car payments or credit card payments. Provided by the lender during the original underwriting process.\",Translation!$A$1:$C$328, Translation!A1+1, 0)","v":"Le pourcentage du revenu annuel brut requis pour couvrir tous les paiements pour le logement et toutes les autres dettes, telles que les prêts auto ou les paiements sur une carte de crédit. Fourni par le prêteur au cours du processus de souscription initiale."}]
[]
[]
[{"$f":"PROPER(VLOOKUP(\"Transactional Homeowner\",Translation!$A$1:$C$328, Translation!A1+1, 0))","v":"Propriétaires-Occupants, À L’Unité"}]
[{"$f":"VLOOKUP(\"Default insurance for loans secured by residential properties of 4 or fewer units issued at the time the loan is originated the cost of which is usually assumed by the borrower.\",Translation!$A$1:$C$328, Translation!A1+1, 0)","v":"L'assurance prêt hypothécaire pour les prêts garantis par des propriétés résidentielles de 4 logements ou moins émise au moment du prêt dont le coût est habituellement assumé par l'emprunteur."}]
[]
[{"$f":"VLOOKUP(\"Urban\",Translation!$A$1:$C$328, Translation!A1+1, 0)","v":"Urbain"}]
[{"$f":"VLOOKUP(\"Area where the census population count is at least 10,000. \",Translation!$A$1:$C$328, Translation!A1+1, 0)","v":"Se dit d’un milieu qui, selon le recensement, compte 10 000 habitants ou plus."}]